{"text_format":"1","workbook":"xlsx","n_sheets":27,"sheets":["Option 1","Rent lookup by Agency","Rent lookup by Building","Other Facility Related Costs","Building RSF","rent dollars FY22","rent dollars FY23","rent allocations","Debt allocations","Debt Dollars FY22","Debt Dollars FY23","Security dollars","CC Allocations","CC dollars FY22","CC dollars FY23","CC park dollars FY22","CC park dollars FY23","Park Allocations","Park Dollars FY22","Park Dollars FY23","CPS Allocations","CPS Dollars FY22","CPS Dollars FY23","PHF Allocations","Childcare","Security Dollars FY22","Security Dollars FY23"],"not_rendered":{"charts":0,"images":0,"macros":1,"external_links":2,"defined_names":58,"comments":1,"pivot_tables":0},"unopened":[],"bounds":{"document_bytes":16777216,"sheet_cells":100000,"rows_first":2000,"rows_last":500,"rows_between":2000,"halvings":0,"cell_chars":16384,"cell_head_chars":4096},"cells_cut":0,"cells_raw":0,"read":"whole","date_system":"1900"}

{"sheet":"Option 1","index":0,"n_rows":34,"n_cols":21,"rows_kept":34,"cut":false,"hidden":true,"merged":[[1,10,1,11]]}
[]
[null,null,null,null,"Annual rates based on 21-23 CSM - $ per sqft per year - State Agency tenants only",null,null,null,null,null,"\"Add-on\" CSM charges",null,null,null,"Biennial Revenue For Building"]
[null,null,"By Building",null,"Rent","Debt","Campus Contracts","Total \"Rent and Related\"","Current Lease Rates",null,"Security on Campus","Parking - Goes to 045",null,"RSF","Rent","Debt","Security","Campus Contracts","Total",null,"Parking - Goes to 045"]
[null,null,"F6121","Cherberg",{"$f":"HLOOKUP(C4,'rent dollars FY22'!$E$2:$AK$112,111,FALSE)","v":7.0855904689296771},{"$f":"HLOOKUP(C4,'Debt Dollars FY22'!$G$4:$AN$114,111,FALSE)","v":0},{"$f":"HLOOKUP(C4,'CC dollars FY22'!$K$5:$AR$115,111,FALSE)","v":0.171295717339736},{"$f":"SUM(E4:G4)","v":7.256886186269413},"N/A",null,{"$f":"HLOOKUP(C4,'Security dollars'!$E$2:$AK$112,111,FALSE)","v":2.878143713829092},{"$f":"HLOOKUP(C4,'Park Dollars FY22'!$E$3:$AL$113,111,FALSE)","v":0.19205732896194372},null,{"$f":"HLOOKUP(C4,'rent dollars FY22'!$E$2:$AK$110,109,FALSE)","v":77281},{"$f":"$N4*E4*2","v":1095163.0340587087},{"$f":"$N4*F4*2","v":0},{"$f":"$N4*K4*2","v":444851.64869685209},{"$f":"$N4*G4*2","v":26475.808663464275},{"$f":"SUM(O4:R4)","v":1566490.4914190252},null,{"$f":"$N4*L4*2","v":29684.764879015944}]
[null,null,"F6122","O'Brien",{"$f":"HLOOKUP(C5,'rent dollars FY22'!$E$2:$AK$112,111,FALSE)","v":4.4665754440745706},{"$f":"HLOOKUP(C5,'Debt Dollars FY22'!$G$4:$AN$114,111,FALSE)","v":0},{"$f":"HLOOKUP(C5,'CC dollars FY22'!$K$5:$AR$115,111,FALSE)","v":0.14843540383261869},{"$f":"SUM(E5:G5)","v":4.6150108479071896},"N/A",null,{"$f":"HLOOKUP(C5,'Security dollars'!$E$2:$AK$112,111,FALSE)","v":1.814308361889917},{"$f":"HLOOKUP(C5,'Park Dollars FY22'!$E$3:$AL$113,111,FALSE)","v":0.19205732896194369},null,{"$f":"HLOOKUP(C5,'rent dollars FY22'!$E$2:$AK$110,109,FALSE)","v":78594},702092.06090319366,0,285187.50278875226,23332.264257641666,{"$f":"SUM(O5:R5)","v":1010611.8279495876},null,{"$f":"$N5*L5*2","v":30189.107424870006}]
[null,null,"F6123","Legislative",{"$f":"HLOOKUP(C6,'rent dollars FY22'!$E$2:$AK$112,111,FALSE)","v":9.2426397179065507},{"$f":"HLOOKUP(C6,'Debt Dollars FY22'!$G$4:$AN$114,111,FALSE)","v":0},{"$f":"HLOOKUP(C6,'CC dollars FY22'!$K$5:$AR$115,111,FALSE)","v":0.2182999020058137},9.4609396199123648,"N/A",null,{"$f":"HLOOKUP(C6,'Security dollars'!$E$2:$AK$112,111,FALSE)","v":3.7543300759376486},{"$f":"HLOOKUP(C6,'Park Dollars FY22'!$E$3:$AL$113,111,FALSE)","v":0.19205732896194369},null,{"$f":"HLOOKUP(C6,'rent dollars FY22'!$E$2:$AK$110,109,FALSE)","v":142254},2629604.9408621569,0,1068136.9412448686,62108.068519870045,3759849.9506268953,null,54641.846548304675]
[null,null,"F6124","Pritchard",{"$f":"HLOOKUP(C7,'rent dollars FY22'!$E$2:$AK$112,111,FALSE)","v":12.01335167405462},{"$f":"HLOOKUP(C7,'Debt Dollars FY22'!$G$4:$AN$114,111,FALSE)","v":0},{"$f":"HLOOKUP(C7,'CC dollars FY22'!$K$5:$AR$115,111,FALSE)","v":0.21956076234342006},12.23291243639804,"N/A",null,{"$f":"HLOOKUP(C7,'Security dollars'!$E$2:$AK$112,111,FALSE)","v":4.8797842260733209},{"$f":"HLOOKUP(C7,'Park Dollars FY22'!$E$3:$AL$113,111,FALSE)","v":0.19205732896194369},null,{"$f":"HLOOKUP(C7,'rent dollars FY22'!$E$2:$AK$110,109,FALSE)","v":23890},573997.94298632978,0,233156.09032178327,10490.613224768611,817644.64653288166,null,9176.4991778016702]
[null,null,"F6125","HLB",{"$f":"HLOOKUP(C8,'rent dollars FY22'!$E$2:$AK$112,111,FALSE)","v":5.3167901547568865},{"$f":"HLOOKUP(C8,'Debt Dollars FY22'!$G$4:$AN$114,111,FALSE)","v":0.71792963779958374},{"$f":"HLOOKUP(C8,'CC dollars FY22'!$K$5:$AR$115,111,FALSE)","v":0.20237899106328217},6.2370987836197527,"N/A",null,{"$f":"HLOOKUP(C8,'Security dollars'!$E$2:$AK$112,111,FALSE)","v":2.1596628013943735},{"$f":"HLOOKUP(C8,'Park Dollars FY22'!$E$3:$AL$113,111,FALSE)","v":0.19205732896194369},null,{"$f":"HLOOKUP(C8,'rent dollars FY22'!$E$2:$AK$110,109,FALSE)","v":177668},1889246.9464306931,255106.24577715289,767405.9411962711,71912.541168462427,2983671.6745725796,null,68244.883044021219]
[null,null,"F6126","OB2",{"$f":"HLOOKUP(C9,'rent dollars FY22'!$E$2:$AK$112,111,FALSE)","v":5.2965394858470392},{"$f":"HLOOKUP(C9,'Debt Dollars FY22'!$G$4:$AN$114,111,FALSE)","v":0.7428215190774986},{"$f":"HLOOKUP(C9,'CC dollars FY22'!$K$5:$AR$115,111,FALSE)","v":0.24274457272001079},6.2821055776445487,"N/A",null,{"$f":"HLOOKUP(C9,'Security dollars'!$E$2:$AK$112,111,FALSE)","v":2.151437045802191},{"$f":"HLOOKUP(C9,'Park Dollars FY22'!$E$3:$AL$113,111,FALSE)","v":0.19205732896194372},null,{"$f":"HLOOKUP(C9,'rent dollars FY22'!$E$2:$AK$110,109,FALSE)","v":250481},2653365.0139089045,372125.35384010186,1077788.2053391573,121605.80663896205,4224884.3797271252,null,96213.423631433252]
[null,null,"F6127","Archives",{"$f":"HLOOKUP(C10,'rent dollars FY22'!$E$2:$AK$112,111,FALSE)","v":4.6685912754205496},{"$f":"HLOOKUP(C10,'Debt Dollars FY22'!$G$4:$AN$114,111,FALSE)","v":0.37511972239178787},{"$f":"HLOOKUP(C10,'CC dollars FY22'!$K$5:$AR$115,111,FALSE)","v":0.17011914415249574},5.2138301419648334,"N/A",null,{"$f":"HLOOKUP(C10,'Security dollars'!$E$2:$AK$112,111,FALSE)","v":1.8963665329953401},{"$f":"HLOOKUP(C10,'Park Dollars FY22'!$E$3:$AL$113,111,FALSE)","v":0.19205732896194369},null,{"$f":"HLOOKUP(C10,'rent dollars FY22'!$E$2:$AK$110,109,FALSE)","v":47900},447251.04418528866,35936.469405133277,181671.91386095359,16297.414009809092,681156.84146118467,null,18399.092114554205]
[null,null,"F6129","NRB",{"$f":"HLOOKUP(C11,'rent dollars FY22'!$E$2:$AK$112,111,FALSE)","v":3.9851273808242902},{"$f":"HLOOKUP(C11,'Debt Dollars FY22'!$G$4:$AN$114,111,FALSE)","v":0.84498256264176108},{"$f":"HLOOKUP(C11,'CC dollars FY22'!$K$5:$AR$115,111,FALSE)","v":0.18997940466139776},5.0200893481274491,"N/A",null,{"$f":"HLOOKUP(C11,'Security dollars'!$E$2:$AK$112,111,FALSE)","v":1.6187457305389827},{"$f":"HLOOKUP(C11,'Park Dollars FY22'!$E$3:$AL$113,111,FALSE)","v":0.19205732896194369},null,{"$f":"HLOOKUP(C11,'rent dollars FY22'!$E$2:$AK$110,109,FALSE)","v":354696},2827017.4829377048,599423.87007756415,1148325.2712785101,134769.86983155829,4709536.4941253373,null,136243.93270697116]
[null,null,"F612A","Emp Sec",{"$f":"HLOOKUP(C12,'rent dollars FY22'!$E$2:$AK$112,111,FALSE)","v":5.44983521577206},{"$f":"HLOOKUP(C12,'Debt Dollars FY22'!$G$4:$AN$114,111,FALSE)","v":0},{"$f":"HLOOKUP(C12,'CC dollars FY22'!$K$5:$AR$115,111,FALSE)","v":0.23166540879609801},5.6815006245681579,"N/A",null,{"$f":"HLOOKUP(C12,'Security dollars'!$E$2:$AK$112,111,FALSE)","v":2.213705270782909},{"$f":"HLOOKUP(C12,'Park Dollars FY22'!$E$3:$AL$113,111,FALSE)","v":0.19205732896194369},null,{"$f":"HLOOKUP(C12,'rent dollars FY22'!$E$2:$AK$110,109,FALSE)","v":92619},1009516.5756991849,0,410062.33694928448,42913.236994571605,1462492.149643041,null,35576.315502252524]
[null,null,"F612C","Transportation",{"$f":"HLOOKUP(C13,'rent dollars FY22'!$E$2:$AK$112,111,FALSE)","v":4.5860997018966057},{"$f":"HLOOKUP(C13,'Debt Dollars FY22'!$G$4:$AN$114,111,FALSE)","v":0},{"$f":"HLOOKUP(C13,'CC dollars FY22'!$K$5:$AR$115,111,FALSE)","v":0.18901302454749264},4.7751127264440987,"N/A",null,{"$f":"HLOOKUP(C13,'Security dollars'!$E$2:$AK$112,111,FALSE)","v":1.862858725167198},{"$f":"HLOOKUP(C13,'Park Dollars FY22'!$E$3:$AL$113,111,FALSE)","v":0.19205732896194369},null,{"$f":"HLOOKUP(C13,'rent dollars FY22'!$E$2:$AK$110,109,FALSE)","v":184427},1691601.2194433706,0,687122.89221282164,69718.210156440851,2448442.321812633,null,70841.114016928783]
[null,null,"F612E","Insurance",{"$f":"HLOOKUP(C14,'rent dollars FY22'!$E$2:$AK$112,111,FALSE)","v":6.9297448799429002},{"$f":"HLOOKUP(C14,'Debt Dollars FY22'!$G$4:$AN$114,111,FALSE)","v":0},{"$f":"HLOOKUP(C14,'CC dollars FY22'!$K$5:$AR$115,111,FALSE)","v":0.18077490905593718},7.1105197889988379,"N/A",null,{"$f":"HLOOKUP(C14,'Security dollars'!$E$2:$AK$112,111,FALSE)","v":2.8148397444228501},{"$f":"HLOOKUP(C14,'Park Dollars FY22'!$E$3:$AL$113,111,FALSE)","v":0.19205732896194369},null,{"$f":"HLOOKUP(C14,'rent dollars FY22'!$E$2:$AK$110,109,FALSE)","v":55108},763768.76168778667,0,310240.37727130885,19924.287376509172,1093933.4263356049,null,21167.790568869586]
[null,null,"F612H","Old Cap",{"$f":"HLOOKUP(C15,'rent dollars FY22'!$E$2:$AK$112,111,FALSE)","v":5.2543541832519987},{"$f":"HLOOKUP(C15,'Debt Dollars FY22'!$G$4:$AN$114,111,FALSE)","v":0},{"$f":"HLOOKUP(C15,'CC dollars FY22'!$K$5:$AR$115,111,FALSE)","v":0.17936181069930232},5.4337159939513011,"N/A",null,{"$f":"HLOOKUP(C15,'Security dollars'!$E$2:$AK$112,111,FALSE)","v":2.1343015136242727},{"$f":"HLOOKUP(C15,'Park Dollars FY22'!$E$3:$AL$113,111,FALSE)","v":0.19205732896194369},null,{"$f":"HLOOKUP(C15,'rent dollars FY22'!$E$2:$AK$110,109,FALSE)","v":97800},1027751.678244091,0,417469.37606490776,35083.170172783532,1480304.2244817824,null,37566.413544956187]
[null,null,"F612J","TOJ",{"$f":"HLOOKUP(C16,'rent dollars FY22'!$E$2:$AK$112,111,FALSE)","v":7.2203471454286632},{"$f":"HLOOKUP(C16,'Debt Dollars FY22'!$G$4:$AN$114,111,FALSE)","v":0},{"$f":"HLOOKUP(C16,'CC dollars FY22'!$K$5:$AR$115,111,FALSE)","v":0.21700105033327682},7.4373481957619401,"N/A",null,{"$f":"HLOOKUP(C16,'Security dollars'!$E$2:$AK$112,111,FALSE)","v":2.9328814358386799},{"$f":"HLOOKUP(C16,'Park Dollars FY22'!$E$3:$AL$113,111,FALSE)","v":0.19205732896194372},null,{"$f":"HLOOKUP(C16,'rent dollars FY22'!$E$2:$AK$110,109,FALSE)","v":53609},774151.18023857044,0,314457.68178775156,23266.418614633276,1111875.2806409553,null,20592.002696641681]
[null,null,"F612K","Newhouse",{"$f":"HLOOKUP(C17,'rent dollars FY22'!$E$2:$AK$112,111,FALSE)","v":9.2259807846928972},{"$f":"HLOOKUP(C17,'Debt Dollars FY22'!$G$4:$AN$114,111,FALSE)","v":0},{"$f":"HLOOKUP(C17,'CC dollars FY22'!$K$5:$AR$115,111,FALSE)","v":0.22946795945422807},9.4554487441471249,"N/A",null,{"$f":"HLOOKUP(C17,'Security dollars'!$E$2:$AK$112,111,FALSE)","v":3.7475632716581426},{"$f":"HLOOKUP(C17,'Park Dollars FY22'!$E$3:$AL$113,111,FALSE)","v":0.19205732896194372},null,{"$f":"HLOOKUP(C17,'rent dollars FY22'!$E$2:$AK$110,109,FALSE)","v":22032},406533.61729670782,0,165132.6280023444,10111.276165391106,581777.5214644433,null,8462.8141433790879]
[null,null,"F6131","Modular Bldg",{"$f":"HLOOKUP(C18,'rent dollars FY22'!$E$2:$AK$112,111,FALSE)","v":2.7101220851029941},{"$f":"HLOOKUP(C18,'Debt Dollars FY22'!$G$4:$AN$114,111,FALSE)","v":0},{"$f":"HLOOKUP(C18,'CC dollars FY22'!$K$5:$AR$115,111,FALSE)","v":0},2.7101220851029941,{"$f":"VLOOKUP(C18,'[2]Building Compare'!$C$20:$G$30,5,FALSE)","v":5.4665883882330739},null,{"$f":"HLOOKUP(C18,'Security dollars'!$E$2:$AK$112,111,FALSE)","v":1.1008427423447789},{"$f":"HLOOKUP(C18,'Park Dollars FY22'!$E$3:$AL$113,111,FALSE)","v":0},null,{"$f":"HLOOKUP(C18,'rent dollars FY22'!$E$2:$AK$110,109,FALSE)","v":95386},517015.41041926842,0,210009.97164259816,0,727025.38206186658,null,0]
[null,null,"F6132","Isabella Bush",{"$f":"HLOOKUP(C19,'rent dollars FY22'!$E$2:$AK$112,111,FALSE)","v":1.1911391478404885},{"$f":"HLOOKUP(C19,'Debt Dollars FY22'!$G$4:$AN$114,111,FALSE)","v":3.377695759765996},{"$f":"HLOOKUP(C19,'CC dollars FY22'!$K$5:$AR$115,111,FALSE)","v":3.86401099076061E-2},4.6074750175140906,{"$f":"VLOOKUP(C19,'[2]Building Compare'!$C$20:$G$30,5,FALSE)","v":9.3170338983050858},null,{"$f":"HLOOKUP(C19,'Security dollars'!$E$2:$AK$112,111,FALSE)","v":0.48383683275032757},{"$f":"HLOOKUP(C19,'Park Dollars FY22'!$E$3:$AL$113,111,FALSE)","v":0},null,{"$f":"HLOOKUP(C19,'rent dollars FY22'!$E$2:$AK$110,109,FALSE)","v":47200},112443.53555614212,318854.47972191003,45674.197011630924,3647.626375278016,480619.83866496105,null,0]
[null,null,"F6133","1007 Washington",{"$f":"HLOOKUP(C20,'rent dollars FY22'!$E$2:$AK$112,111,FALSE)","v":2.5787761567781491},{"$f":"HLOOKUP(C20,'Debt Dollars FY22'!$G$4:$AN$114,111,FALSE)","v":0},{"$f":"HLOOKUP(C20,'CC dollars FY22'!$K$5:$AR$115,111,FALSE)","v":0.20212920179379743},2.7809053585719465,{"$f":"VLOOKUP(C20,'[2]Building Compare'!$C$20:$G$30,5,FALSE)","v":6},null,{"$f":"HLOOKUP(C20,'Security dollars'!$E$2:$AK$112,111,FALSE)","v":1.0474904551073396},{"$f":"HLOOKUP(C20,'Park Dollars FY22'!$E$3:$AL$113,111,FALSE)","v":0},null,{"$f":"HLOOKUP(C20,'rent dollars FY22'!$E$2:$AK$110,109,FALSE)","v":14308},73794.258502363518,0,29974.986863351631,5784.1292385313072,109553.37460424646,null,0]
[null,null,"F6134","120 E Union Avenue",{"$f":"HLOOKUP(C21,'rent dollars FY22'!$E$2:$AK$112,111,FALSE)","v":0},{"$f":"HLOOKUP(C21,'Debt Dollars FY22'!$G$4:$AN$114,111,FALSE)","v":0},{"$f":"HLOOKUP(C21,'CC dollars FY22'!$K$5:$AR$115,111,FALSE)","v":0},0,"N/A",null,{"$f":"HLOOKUP(C21,'Security dollars'!$E$2:$AK$112,111,FALSE)","v":0},{"$f":"HLOOKUP(C21,'Park Dollars FY22'!$E$3:$AL$113,111,FALSE)","v":0},null,{"$f":"HLOOKUP(C21,'rent dollars FY22'!$E$2:$AK$110,109,FALSE)","v":10125},0,0,0,0,0,null,0]
[null,null,"F613D","Capital Court",{"$f":"HLOOKUP(C22,'rent dollars FY22'!$E$2:$AK$112,111,FALSE)","v":10.979696519359663},{"$f":"HLOOKUP(C22,'Debt Dollars FY22'!$G$4:$AN$114,111,FALSE)","v":2.777924429577439},{"$f":"HLOOKUP(C22,'CC dollars FY22'!$K$5:$AR$115,111,FALSE)","v":0.16019373879139762},13.9178146877285,{"$f":"VLOOKUP(C22,'[2]Building Compare'!$C$20:$G$30,5,FALSE)","v":28.437849108633074},null,{"$f":"HLOOKUP(C22,'Security dollars'!$E$2:$AK$112,111,FALSE)","v":4.4599168771490865},{"$f":"HLOOKUP(C22,'Park Dollars FY22'!$E$3:$AL$113,111,FALSE)","v":0},null,{"$f":"HLOOKUP(C22,'rent dollars FY22'!$E$2:$AK$110,109,FALSE)","v":41341},907823.2676136957,229684.34768632182,368754.84723644075,13245.138710750338,1519507.6012472084,null,0]
[null,null,"F613E","James Dolliver Building",{"$f":"HLOOKUP(C23,'rent dollars FY22'!$E$2:$AK$112,111,FALSE)","v":8.6438196800633946},{"$f":"HLOOKUP(C23,'Debt Dollars FY22'!$G$4:$AN$114,111,FALSE)","v":3.7096550856518347},{"$f":"HLOOKUP(C23,'CC dollars FY22'!$K$5:$AR$115,111,FALSE)","v":0.20807010410863333},12.561544869823864,{"$f":"VLOOKUP(C23,'[2]Building Compare'!$C$20:$G$30,5,FALSE)","v":25.665882352941178},null,{"$f":"HLOOKUP(C23,'Security dollars'!$E$2:$AK$112,111,FALSE)","v":3.5110913317298524},{"$f":"HLOOKUP(C23,'Park Dollars FY22'!$E$3:$AL$113,111,FALSE)","v":0},null,{"$f":"HLOOKUP(C23,'rent dollars FY22'!$E$2:$AK$110,109,FALSE)","v":17000},293889.86912215542,126128.27291216239,119377.10527881498,7074.3835396935328,546469.63085282641,null,0]
[null,null,"F613G","1068 WA Street SE (ST Farm)",{"$f":"HLOOKUP(C24,'rent dollars FY22'!$E$2:$AK$112,111,FALSE)","v":7.9381086590614123},{"$f":"HLOOKUP(C24,'Debt Dollars FY22'!$G$4:$AN$114,111,FALSE)","v":0},{"$f":"HLOOKUP(C24,'CC dollars FY22'!$K$5:$AR$115,111,FALSE)","v":7.3268273774118348E-2},8.01137693283553,{"$f":"VLOOKUP(C24,'[2]Building Compare'!$C$20:$G$30,5,FALSE)","v":16.280701754385966},null,{"$f":"HLOOKUP(C24,'Security dollars'!$E$2:$AK$112,111,FALSE)","v":3.224433819164978},{"$f":"HLOOKUP(C24,'Park Dollars FY22'!$E$3:$AL$113,111,FALSE)","v":0},null,{"$f":"HLOOKUP(C24,'rent dollars FY22'!$E$2:$AK$110,109,FALSE)","v":1539},24433.498452591026,0,9924.8072953898027,225.51974667673628,34583.825494657562,null,0]
[null,null,"F613H","232 Perry Street",{"$f":"HLOOKUP(C25,'rent dollars FY22'!$E$2:$AK$112,111,FALSE)","v":0},{"$f":"HLOOKUP(C25,'Debt Dollars FY22'!$G$4:$AN$114,111,FALSE)","v":0},{"$f":"HLOOKUP(C25,'CC dollars FY22'!$K$5:$AR$115,111,FALSE)","v":0},0,"N/A",null,{"$f":"HLOOKUP(C25,'Security dollars'!$E$2:$AK$112,111,FALSE)","v":0},{"$f":"HLOOKUP(C25,'Park Dollars FY22'!$E$3:$AL$113,111,FALSE)","v":0},null,{"$f":"HLOOKUP(C25,'rent dollars FY22'!$E$2:$AK$110,109,FALSE)","v":7138},0,0,0,0,0,null,0]
[null,null,"F613i","208 11th Avenue SE (Pro Arts)",{"$f":"HLOOKUP(C26,'rent dollars FY22'!$E$2:$AK$112,111,FALSE)","v":0},{"$f":"HLOOKUP(C26,'Debt Dollars FY22'!$G$4:$AN$114,111,FALSE)","v":0},{"$f":"HLOOKUP(C26,'CC dollars FY22'!$K$5:$AR$115,111,FALSE)","v":0},0,"N/A",null,{"$f":"HLOOKUP(C26,'Security dollars'!$E$2:$AK$112,111,FALSE)","v":0},{"$f":"HLOOKUP(C26,'Park Dollars FY22'!$E$3:$AL$113,111,FALSE)","v":0},null,{"$f":"HLOOKUP(C26,'rent dollars FY22'!$E$2:$AK$110,109,FALSE)","v":885},0,0,0,0,0,null,0]
[null,null,"F613K","Press Houses Ayer(White); Carlyon(Blue)",{"$f":"HLOOKUP(C27,'rent dollars FY22'!$E$2:$AK$112,111,FALSE)","v":0},{"$f":"HLOOKUP(C27,'Debt Dollars FY22'!$G$4:$AN$114,111,FALSE)","v":0},{"$f":"HLOOKUP(C27,'CC dollars FY22'!$K$5:$AR$115,111,FALSE)","v":0},0,"N/A",null,{"$f":"HLOOKUP(C27,'Security dollars'!$E$2:$AK$112,111,FALSE)","v":0},{"$f":"HLOOKUP(C27,'Park Dollars FY22'!$E$3:$AL$113,111,FALSE)","v":0},null,{"$f":"HLOOKUP(C27,'rent dollars FY22'!$E$2:$AK$110,109,FALSE)","v":2492},0,0,0,0,0,null,0]
[null,null,"F613L","Visitor Center",{"$f":"HLOOKUP(C28,'rent dollars FY22'!$E$2:$AK$112,111,FALSE)","v":0},{"$f":"HLOOKUP(C28,'Debt Dollars FY22'!$G$4:$AN$114,111,FALSE)","v":0},{"$f":"HLOOKUP(C28,'CC dollars FY22'!$K$5:$AR$115,111,FALSE)","v":0},0,"N/A",null,{"$f":"HLOOKUP(C28,'Security dollars'!$E$2:$AK$112,111,FALSE)","v":0},{"$f":"HLOOKUP(C28,'Park Dollars FY22'!$E$3:$AL$113,111,FALSE)","v":0},null,{"$f":"HLOOKUP(C28,'rent dollars FY22'!$E$2:$AK$110,109,FALSE)","v":872},0,0,0,0,0,null,0]
[null,null,"F613M","Helen Sommers",{"$f":"HLOOKUP(C29,'rent dollars FY22'!$E$2:$AK$112,111,FALSE)","v":4.082909971941282},{"$f":"HLOOKUP(C29,'Debt Dollars FY22'!$G$4:$AN$114,111,FALSE)","v":11.906595031031456},{"$f":"HLOOKUP(C29,'CC dollars FY22'!$K$5:$AR$115,111,FALSE)","v":0},15.989505002972738,{"$f":"VLOOKUP(C29,'[2]Building Compare'!$C$20:$G$30,5,FALSE)","v":32.036851500246676},null,{"$f":"HLOOKUP(C29,'Security dollars'!$E$2:$AK$112,111,FALSE)","v":1.6584646997878227},{"$f":"HLOOKUP(C29,'Park Dollars FY22'!$E$3:$AL$113,111,FALSE)","v":0},null,{"$f":"HLOOKUP(C29,'rent dollars FY22'!$E$2:$AK$110,109,FALSE)","v":200592},1637998.1541832914,4776735.4209293239,665349.50211967784,0,7080083.0772322929,null,0]
[null,null,"F6141","Kelso Building",{"$f":"HLOOKUP(C30,'rent dollars FY22'!$E$2:$AK$112,111,FALSE)","v":9.1701446294719915},{"$f":"HLOOKUP(C30,'Debt Dollars FY22'!$G$4:$AN$114,111,FALSE)","v":0.63912009308332585},{"$f":"HLOOKUP(C30,'CC dollars FY22'!$K$5:$AR$115,111,FALSE)","v":0},9.8092647225553176,{"$f":"VLOOKUP(C30,'[2]Building Compare'!$C$20:$G$30,5,FALSE)","v":19.77534276423301},null,{"$f":"HLOOKUP(C30,'Security dollars'!$E$2:$AK$112,111,FALSE)","v":3.7248828077140121},{"$f":"HLOOKUP(C30,'Park Dollars FY22'!$E$3:$AL$113,111,FALSE)","v":0},null,{"$f":"HLOOKUP(C30,'rent dollars FY22'!$E$2:$AK$110,109,FALSE)","v":60581},1111073.0635960854,77437.068718161929,451314.25074824516,0,1639824.3830624926,null,0]
[null,null,"F6142","Yakima Building",{"$f":"HLOOKUP(C31,'rent dollars FY22'!$E$2:$AK$112,111,FALSE)","v":8.7482073035006866},{"$f":"HLOOKUP(C31,'Debt Dollars FY22'!$G$4:$AN$114,111,FALSE)","v":0.60119001530085381},{"$f":"HLOOKUP(C31,'CC dollars FY22'!$K$5:$AR$115,111,FALSE)","v":3.6844710861394098E-2},9.3862420296629345,{"$f":"VLOOKUP(C31,'[2]Building Compare'!$C$20:$G$30,5,FALSE)","v":19},null,{"$f":"HLOOKUP(C31,'Security dollars'!$E$2:$AK$112,111,FALSE)","v":3.5534932435415838},{"$f":"HLOOKUP(C31,'Park Dollars FY22'!$E$3:$AL$113,111,FALSE)","v":0},null,{"$f":"HLOOKUP(C31,'rent dollars FY22'!$E$2:$AK$110,109,FALSE)","v":99000},1732145.0460931361,119035.62302956905,703591.66222123359,7295.2527505560311,2562067.5840944946,null,0]
[null,null,"F6143","Alaska Street",{"$f":"HLOOKUP(C32,'rent dollars FY22'!$E$2:$AK$112,111,FALSE)","v":2.3499910212725865},{"$f":"HLOOKUP(C32,'Debt Dollars FY22'!$G$4:$AN$114,111,FALSE)","v":0},{"$f":"HLOOKUP(C32,'CC dollars FY22'!$K$5:$AR$115,111,FALSE)","v":8.8072879449440214E-2},2.4380639007220268,{"$f":"VLOOKUP(C32,'[2]Building Compare'!$C$20:$G$30,5,FALSE)","v":5.1025671238168826},null,{"$f":"HLOOKUP(C32,'Security dollars'!$E$2:$AK$112,111,FALSE)","v":0.95455868005481692},{"$f":"HLOOKUP(C32,'Park Dollars FY22'!$E$3:$AL$113,111,FALSE)","v":0},null,{"$f":"HLOOKUP(C32,'rent dollars FY22'!$E$2:$AK$110,109,FALSE)","v":20708},97327.22813702545,0,39534.002293150297,3647.626375278016,140508.85680545378,null,0]
[null,null,"F6144","Tacoma Rhodes",{"$f":"HLOOKUP(C33,'rent dollars FY22'!$E$2:$AK$112,111,FALSE)","v":5.0666588465959057},{"$f":"HLOOKUP(C33,'Debt Dollars FY22'!$G$4:$AN$114,111,FALSE)","v":0.71747623108163427},{"$f":"HLOOKUP(C33,'CC dollars FY22'!$K$5:$AR$115,111,FALSE)","v":6.9204021114857878E-2},5.8533390987923974,{"$f":"VLOOKUP(C33,'[2]Building Compare'!$C$20:$G$30,5,FALSE)","v":21.9281471576741},null,{"$f":"HLOOKUP(C33,'Security dollars'!$E$2:$AK$112,111,FALSE)","v":2.0580602807050679},{"$f":"HLOOKUP(C33,'Park Dollars FY22'!$E$3:$AL$113,111,FALSE)","v":0},null,{"$f":"HLOOKUP(C33,'rent dollars FY22'!$E$2:$AK$110,109,FALSE)","v":138355},1401995.1694415531,198532.84790259902,569485.86027389928,19149.444682692323,2189163.3223007433,null,0]
[null,null,null,null,null,null,null,null,null,null,null,null,null,null,{"$f":"SUM(O4:O33)","v":26400999.999999993},{"$f":"SUM(P4:P33)","v":7109000},10724000,728078.10721432231,44962078.107214317,null,637000.00000000012]

{"sheet":"Rent lookup by Agency","index":1,"n_rows":284,"n_cols":18,"rows_kept":284,"cut":false,"hidden":false,"merged":[[4,12,4,17],[4,4,4,10],[3,2,3,3]]}
["VIEW"]
["VIEW",null,"Rent Related Costs in the Central Service Model",null,null,null,null,null,null,null,null,null,null,null,null,null,null,"Department of Enterprise Services"]
["VIEW",null,"Agency"]
["VIEW",null,"082 - Public Disclosure Commission",null,null,"ç Select Agency Here"]
["VIEW",null,null,null,"Fiscal Year 22",null,null,null,null,null,null,null,"Fiscal Year 23"]
["VIEW",null,"Building","occupied RSF",null,"Rent \nCSM","Fin Cost Recovery \nCSM","Campus Contracts\nCSM (bldg)","TOTAL RENT\nAnnual Cost","Monthly Charge","Rent Rate/RSF",null,"Rent \nCSM","Fin Cost Recovery \nCSM","Campus Contracts\nCSM (bldg)","TOTAL RENT\nAnnual Cost","Monthly Charge","Rent Rate/RSF"]
[{"$f":"IF(D7=0,\"HIDE\",\"VIEW\")","v":"HIDE"},null,"Cherberg",{"$f":"VLOOKUP($C$4,'Building RSF'!$A$3:$AK$109,MATCH($C7,'Building RSF'!$A$3:$AK$3,0),FALSE)","v":0},null,{"$f":"VLOOKUP($C$4,'rent dollars FY22'!$A$2:$AL$108,MATCH($C7,'rent dollars FY22'!$A$3:$AL$3,0),FALSE)","v":0},{"$f":"VLOOKUP($C$4,'Debt Dollars FY22'!$A$4:$AN$110,MATCH($C7,'Debt Dollars FY22'!$A$5:$AN$5,0),FALSE)","v":0},{"$f":"VLOOKUP($C$4,'CC dollars FY22'!$B$5:$AR$111,MATCH($C7,'CC dollars FY22'!$B$6:$AR$6,0),FALSE)","v":0},{"$f":"SUM(F7:H7)","v":0},{"$f":"I7/12","v":0},{"$f":"IFERROR(I7/D7,0)","v":0},null,{"$f":"VLOOKUP($C$4,'rent dollars FY23'!$A$2:$AL$108,MATCH($C7,'rent dollars FY23'!$A$3:$AL$3,0),FALSE)","v":0},{"$f":"VLOOKUP($C$4,'Debt Dollars FY23'!$A$4:$AN$110,MATCH($C7,'Debt Dollars FY23'!$A$5:$AN$5,0),FALSE)","v":0},{"$f":"VLOOKUP($C$4,'CC dollars FY23'!$B$5:$AR$111,MATCH($C7,'CC dollars FY23'!$B$6:$AR$6,0),FALSE)","v":0},{"$f":"SUM(M7:O7)","v":0},{"$f":"P7/12","v":0},{"$f":"IFERROR(P7/D7,0)","v":0}]
[{"$f":"IF(D8=0,\"HIDE\",\"VIEW\")","v":"HIDE"},null,"O'Brien",{"$f":"VLOOKUP($C$4,'Building RSF'!$A$3:$AK$109,MATCH($C8,'Building RSF'!$A$3:$AK$3,0),FALSE)","v":0},null,{"$f":"VLOOKUP($C$4,'rent dollars FY22'!$A$2:$AL$108,MATCH($C8,'rent dollars FY22'!$A$3:$AL$3,0),FALSE)","v":0},{"$f":"VLOOKUP($C$4,'Debt Dollars FY22'!$A$4:$AN$110,MATCH($C8,'Debt Dollars FY22'!$A$5:$AN$5,0),FALSE)","v":0},{"$f":"VLOOKUP($C$4,'CC dollars FY22'!$B$5:$AR$111,MATCH($C8,'CC dollars FY22'!$B$6:$AR$6,0),FALSE)","v":0},{"$f":"SUM(F8:H8)","v":0},{"$f":"I8/12","v":0},0,null,{"$f":"VLOOKUP($C$4,'rent dollars FY23'!$A$2:$AL$108,MATCH($C8,'rent dollars FY23'!$A$3:$AL$3,0),FALSE)","v":0},{"$f":"VLOOKUP($C$4,'Debt Dollars FY23'!$A$4:$AN$110,MATCH($C8,'Debt Dollars FY23'!$A$5:$AN$5,0),FALSE)","v":0},{"$f":"VLOOKUP($C$4,'CC dollars FY23'!$B$5:$AR$111,MATCH($C8,'CC dollars FY23'!$B$6:$AR$6,0),FALSE)","v":0},{"$f":"SUM(M8:O8)","v":0},{"$f":"P8/12","v":0},0]
["HIDE",null,"Legislative",{"$f":"VLOOKUP($C$4,'Building RSF'!$A$3:$AK$109,MATCH($C9,'Building RSF'!$A$3:$AK$3,0),FALSE)","v":0},null,{"$f":"VLOOKUP($C$4,'rent dollars FY22'!$A$2:$AL$108,MATCH($C9,'rent dollars FY22'!$A$3:$AL$3,0),FALSE)","v":0},{"$f":"VLOOKUP($C$4,'Debt Dollars FY22'!$A$4:$AN$110,MATCH($C9,'Debt Dollars FY22'!$A$5:$AN$5,0),FALSE)","v":0},{"$f":"VLOOKUP($C$4,'CC dollars FY22'!$B$5:$AR$111,MATCH($C9,'CC dollars FY22'!$B$6:$AR$6,0),FALSE)","v":0},0,0,0,null,{"$f":"VLOOKUP($C$4,'rent dollars FY23'!$A$2:$AL$108,MATCH($C9,'rent dollars FY23'!$A$3:$AL$3,0),FALSE)","v":0},{"$f":"VLOOKUP($C$4,'Debt Dollars FY23'!$A$4:$AN$110,MATCH($C9,'Debt Dollars FY23'!$A$5:$AN$5,0),FALSE)","v":0},{"$f":"VLOOKUP($C$4,'CC dollars FY23'!$B$5:$AR$111,MATCH($C9,'CC dollars FY23'!$B$6:$AR$6,0),FALSE)","v":0},0,0,0]
["HIDE",null,"Pritchard",{"$f":"VLOOKUP($C$4,'Building RSF'!$A$3:$AK$109,MATCH($C10,'Building RSF'!$A$3:$AK$3,0),FALSE)","v":0},null,{"$f":"VLOOKUP($C$4,'rent dollars FY22'!$A$2:$AL$108,MATCH($C10,'rent dollars FY22'!$A$3:$AL$3,0),FALSE)","v":0},{"$f":"VLOOKUP($C$4,'Debt Dollars FY22'!$A$4:$AN$110,MATCH($C10,'Debt Dollars FY22'!$A$5:$AN$5,0),FALSE)","v":0},{"$f":"VLOOKUP($C$4,'CC dollars FY22'!$B$5:$AR$111,MATCH($C10,'CC dollars FY22'!$B$6:$AR$6,0),FALSE)","v":0},0,0,0,null,{"$f":"VLOOKUP($C$4,'rent dollars FY23'!$A$2:$AL$108,MATCH($C10,'rent dollars FY23'!$A$3:$AL$3,0),FALSE)","v":0},{"$f":"VLOOKUP($C$4,'Debt Dollars FY23'!$A$4:$AN$110,MATCH($C10,'Debt Dollars FY23'!$A$5:$AN$5,0),FALSE)","v":0},{"$f":"VLOOKUP($C$4,'CC dollars FY23'!$B$5:$AR$111,MATCH($C10,'CC dollars FY23'!$B$6:$AR$6,0),FALSE)","v":0},0,0,0]
["HIDE",null,"HLB",{"$f":"VLOOKUP($C$4,'Building RSF'!$A$3:$AK$109,MATCH($C11,'Building RSF'!$A$3:$AK$3,0),FALSE)","v":0},null,{"$f":"VLOOKUP($C$4,'rent dollars FY22'!$A$2:$AL$108,MATCH($C11,'rent dollars FY22'!$A$3:$AL$3,0),FALSE)","v":0},{"$f":"VLOOKUP($C$4,'Debt Dollars FY22'!$A$4:$AN$110,MATCH($C11,'Debt Dollars FY22'!$A$5:$AN$5,0),FALSE)","v":0},{"$f":"VLOOKUP($C$4,'CC dollars FY22'!$B$5:$AR$111,MATCH($C11,'CC dollars FY22'!$B$6:$AR$6,0),FALSE)","v":0},0,0,0,null,{"$f":"VLOOKUP($C$4,'rent dollars FY23'!$A$2:$AL$108,MATCH($C11,'rent dollars FY23'!$A$3:$AL$3,0),FALSE)","v":0},{"$f":"VLOOKUP($C$4,'Debt Dollars FY23'!$A$4:$AN$110,MATCH($C11,'Debt Dollars FY23'!$A$5:$AN$5,0),FALSE)","v":0},{"$f":"VLOOKUP($C$4,'CC dollars FY23'!$B$5:$AR$111,MATCH($C11,'CC dollars FY23'!$B$6:$AR$6,0),FALSE)","v":0},0,0,0]
["HIDE",null,"OB2",{"$f":"VLOOKUP($C$4,'Building RSF'!$A$3:$AK$109,MATCH($C12,'Building RSF'!$A$3:$AK$3,0),FALSE)","v":0},null,{"$f":"VLOOKUP($C$4,'rent dollars FY22'!$A$2:$AL$108,MATCH($C12,'rent dollars FY22'!$A$3:$AL$3,0),FALSE)","v":0},{"$f":"VLOOKUP($C$4,'Debt Dollars FY22'!$A$4:$AN$110,MATCH($C12,'Debt Dollars FY22'!$A$5:$AN$5,0),FALSE)","v":0},{"$f":"VLOOKUP($C$4,'CC dollars FY22'!$B$5:$AR$111,MATCH($C12,'CC dollars FY22'!$B$6:$AR$6,0),FALSE)","v":0},0,0,0,null,{"$f":"VLOOKUP($C$4,'rent dollars FY23'!$A$2:$AL$108,MATCH($C12,'rent dollars FY23'!$A$3:$AL$3,0),FALSE)","v":0},{"$f":"VLOOKUP($C$4,'Debt Dollars FY23'!$A$4:$AN$110,MATCH($C12,'Debt Dollars FY23'!$A$5:$AN$5,0),FALSE)","v":0},{"$f":"VLOOKUP($C$4,'CC dollars FY23'!$B$5:$AR$111,MATCH($C12,'CC dollars FY23'!$B$6:$AR$6,0),FALSE)","v":0},0,0,0]
["HIDE",null,"Archives",{"$f":"VLOOKUP($C$4,'Building RSF'!$A$3:$AK$109,MATCH($C13,'Building RSF'!$A$3:$AK$3,0),FALSE)","v":0},null,{"$f":"VLOOKUP($C$4,'rent dollars FY22'!$A$2:$AL$108,MATCH($C13,'rent dollars FY22'!$A$3:$AL$3,0),FALSE)","v":0},{"$f":"VLOOKUP($C$4,'Debt Dollars FY22'!$A$4:$AN$110,MATCH($C13,'Debt Dollars FY22'!$A$5:$AN$5,0),FALSE)","v":0},{"$f":"VLOOKUP($C$4,'CC dollars FY22'!$B$5:$AR$111,MATCH($C13,'CC dollars FY22'!$B$6:$AR$6,0),FALSE)","v":0},0,0,0,null,{"$f":"VLOOKUP($C$4,'rent dollars FY23'!$A$2:$AL$108,MATCH($C13,'rent dollars FY23'!$A$3:$AL$3,0),FALSE)","v":0},{"$f":"VLOOKUP($C$4,'Debt Dollars FY23'!$A$4:$AN$110,MATCH($C13,'Debt Dollars FY23'!$A$5:$AN$5,0),FALSE)","v":0},{"$f":"VLOOKUP($C$4,'CC dollars FY23'!$B$5:$AR$111,MATCH($C13,'CC dollars FY23'!$B$6:$AR$6,0),FALSE)","v":0},0,0,0]
["HIDE",null,"NRB",{"$f":"VLOOKUP($C$4,'Building RSF'!$A$3:$AK$109,MATCH($C14,'Building RSF'!$A$3:$AK$3,0),FALSE)","v":0},null,{"$f":"VLOOKUP($C$4,'rent dollars FY22'!$A$2:$AL$108,MATCH($C14,'rent dollars FY22'!$A$3:$AL$3,0),FALSE)","v":0},{"$f":"VLOOKUP($C$4,'Debt Dollars FY22'!$A$4:$AN$110,MATCH($C14,'Debt Dollars FY22'!$A$5:$AN$5,0),FALSE)","v":0},{"$f":"VLOOKUP($C$4,'CC dollars FY22'!$B$5:$AR$111,MATCH($C14,'CC dollars FY22'!$B$6:$AR$6,0),FALSE)","v":0},0,0,0,null,{"$f":"VLOOKUP($C$4,'rent dollars FY23'!$A$2:$AL$108,MATCH($C14,'rent dollars FY23'!$A$3:$AL$3,0),FALSE)","v":0},{"$f":"VLOOKUP($C$4,'Debt Dollars FY23'!$A$4:$AN$110,MATCH($C14,'Debt Dollars FY23'!$A$5:$AN$5,0),FALSE)","v":0},{"$f":"VLOOKUP($C$4,'CC dollars FY23'!$B$5:$AR$111,MATCH($C14,'CC dollars FY23'!$B$6:$AR$6,0),FALSE)","v":0},0,0,0]
["HIDE",null,"Emp Sec",{"$f":"VLOOKUP($C$4,'Building RSF'!$A$3:$AK$109,MATCH($C15,'Building RSF'!$A$3:$AK$3,0),FALSE)","v":0},null,{"$f":"VLOOKUP($C$4,'rent dollars FY22'!$A$2:$AL$108,MATCH($C15,'rent dollars FY22'!$A$3:$AL$3,0),FALSE)","v":0},{"$f":"VLOOKUP($C$4,'Debt Dollars FY22'!$A$4:$AN$110,MATCH($C15,'Debt Dollars FY22'!$A$5:$AN$5,0),FALSE)","v":0},{"$f":"VLOOKUP($C$4,'CC dollars FY22'!$B$5:$AR$111,MATCH($C15,'CC dollars FY22'!$B$6:$AR$6,0),FALSE)","v":0},0,0,0,null,{"$f":"VLOOKUP($C$4,'rent dollars FY23'!$A$2:$AL$108,MATCH($C15,'rent dollars FY23'!$A$3:$AL$3,0),FALSE)","v":0},{"$f":"VLOOKUP($C$4,'Debt Dollars FY23'!$A$4:$AN$110,MATCH($C15,'Debt Dollars FY23'!$A$5:$AN$5,0),FALSE)","v":0},{"$f":"VLOOKUP($C$4,'CC dollars FY23'!$B$5:$AR$111,MATCH($C15,'CC dollars FY23'!$B$6:$AR$6,0),FALSE)","v":0},0,0,0]
["HIDE",null,"Transportation",{"$f":"VLOOKUP($C$4,'Building RSF'!$A$3:$AK$109,MATCH($C16,'Building RSF'!$A$3:$AK$3,0),FALSE)","v":0},null,{"$f":"VLOOKUP($C$4,'rent dollars FY22'!$A$2:$AL$108,MATCH($C16,'rent dollars FY22'!$A$3:$AL$3,0),FALSE)","v":0},{"$f":"VLOOKUP($C$4,'Debt Dollars FY22'!$A$4:$AN$110,MATCH($C16,'Debt Dollars FY22'!$A$5:$AN$5,0),FALSE)","v":0},{"$f":"VLOOKUP($C$4,'CC dollars FY22'!$B$5:$AR$111,MATCH($C16,'CC dollars FY22'!$B$6:$AR$6,0),FALSE)","v":0},0,0,0,null,{"$f":"VLOOKUP($C$4,'rent dollars FY23'!$A$2:$AL$108,MATCH($C16,'rent dollars FY23'!$A$3:$AL$3,0),FALSE)","v":0},{"$f":"VLOOKUP($C$4,'Debt Dollars FY23'!$A$4:$AN$110,MATCH($C16,'Debt Dollars FY23'!$A$5:$AN$5,0),FALSE)","v":0},{"$f":"VLOOKUP($C$4,'CC dollars FY23'!$B$5:$AR$111,MATCH($C16,'CC dollars FY23'!$B$6:$AR$6,0),FALSE)","v":0},0,0,0]
["HIDE",null,"Insurance",{"$f":"VLOOKUP($C$4,'Building RSF'!$A$3:$AK$109,MATCH($C17,'Building RSF'!$A$3:$AK$3,0),FALSE)","v":0},null,{"$f":"VLOOKUP($C$4,'rent dollars FY22'!$A$2:$AL$108,MATCH($C17,'rent dollars FY22'!$A$3:$AL$3,0),FALSE)","v":0},{"$f":"VLOOKUP($C$4,'Debt Dollars FY22'!$A$4:$AN$110,MATCH($C17,'Debt Dollars FY22'!$A$5:$AN$5,0),FALSE)","v":0},{"$f":"VLOOKUP($C$4,'CC dollars FY22'!$B$5:$AR$111,MATCH($C17,'CC dollars FY22'!$B$6:$AR$6,0),FALSE)","v":0},0,0,0,null,{"$f":"VLOOKUP($C$4,'rent dollars FY23'!$A$2:$AL$108,MATCH($C17,'rent dollars FY23'!$A$3:$AL$3,0),FALSE)","v":0},{"$f":"VLOOKUP($C$4,'Debt Dollars FY23'!$A$4:$AN$110,MATCH($C17,'Debt Dollars FY23'!$A$5:$AN$5,0),FALSE)","v":0},{"$f":"VLOOKUP($C$4,'CC dollars FY23'!$B$5:$AR$111,MATCH($C17,'CC dollars FY23'!$B$6:$AR$6,0),FALSE)","v":0},0,0,0]
["HIDE",null,"Old Cap",{"$f":"VLOOKUP($C$4,'Building RSF'!$A$3:$AK$109,MATCH($C18,'Building RSF'!$A$3:$AK$3,0),FALSE)","v":0},null,{"$f":"VLOOKUP($C$4,'rent dollars FY22'!$A$2:$AL$108,MATCH($C18,'rent dollars FY22'!$A$3:$AL$3,0),FALSE)","v":0},{"$f":"VLOOKUP($C$4,'Debt Dollars FY22'!$A$4:$AN$110,MATCH($C18,'Debt Dollars FY22'!$A$5:$AN$5,0),FALSE)","v":0},{"$f":"VLOOKUP($C$4,'CC dollars FY22'!$B$5:$AR$111,MATCH($C18,'CC dollars FY22'!$B$6:$AR$6,0),FALSE)","v":0},0,0,0,null,{"$f":"VLOOKUP($C$4,'rent dollars FY23'!$A$2:$AL$108,MATCH($C18,'rent dollars FY23'!$A$3:$AL$3,0),FALSE)","v":0},{"$f":"VLOOKUP($C$4,'Debt Dollars FY23'!$A$4:$AN$110,MATCH($C18,'Debt Dollars FY23'!$A$5:$AN$5,0),FALSE)","v":0},{"$f":"VLOOKUP($C$4,'CC dollars FY23'!$B$5:$AR$111,MATCH($C18,'CC dollars FY23'!$B$6:$AR$6,0),FALSE)","v":0},0,0,0]
["HIDE",null,"TOJ",{"$f":"VLOOKUP($C$4,'Building RSF'!$A$3:$AK$109,MATCH($C19,'Building RSF'!$A$3:$AK$3,0),FALSE)","v":0},null,{"$f":"VLOOKUP($C$4,'rent dollars FY22'!$A$2:$AL$108,MATCH($C19,'rent dollars FY22'!$A$3:$AL$3,0),FALSE)","v":0},{"$f":"VLOOKUP($C$4,'Debt Dollars FY22'!$A$4:$AN$110,MATCH($C19,'Debt Dollars FY22'!$A$5:$AN$5,0),FALSE)","v":0},{"$f":"VLOOKUP($C$4,'CC dollars FY22'!$B$5:$AR$111,MATCH($C19,'CC dollars FY22'!$B$6:$AR$6,0),FALSE)","v":0},0,0,0,null,{"$f":"VLOOKUP($C$4,'rent dollars FY23'!$A$2:$AL$108,MATCH($C19,'rent dollars FY23'!$A$3:$AL$3,0),FALSE)","v":0},{"$f":"VLOOKUP($C$4,'Debt Dollars FY23'!$A$4:$AN$110,MATCH($C19,'Debt Dollars FY23'!$A$5:$AN$5,0),FALSE)","v":0},{"$f":"VLOOKUP($C$4,'CC dollars FY23'!$B$5:$AR$111,MATCH($C19,'CC dollars FY23'!$B$6:$AR$6,0),FALSE)","v":0},0,0,0]
["HIDE",null,"Newhouse",{"$f":"VLOOKUP($C$4,'Building RSF'!$A$3:$AK$109,MATCH($C20,'Building RSF'!$A$3:$AK$3,0),FALSE)","v":0},null,{"$f":"VLOOKUP($C$4,'rent dollars FY22'!$A$2:$AL$108,MATCH($C20,'rent dollars FY22'!$A$3:$AL$3,0),FALSE)","v":0},{"$f":"VLOOKUP($C$4,'Debt Dollars FY22'!$A$4:$AN$110,MATCH($C20,'Debt Dollars FY22'!$A$5:$AN$5,0),FALSE)","v":0},{"$f":"VLOOKUP($C$4,'CC dollars FY22'!$B$5:$AR$111,MATCH($C20,'CC dollars FY22'!$B$6:$AR$6,0),FALSE)","v":0},0,0,0,null,{"$f":"VLOOKUP($C$4,'rent dollars FY23'!$A$2:$AL$108,MATCH($C20,'rent dollars FY23'!$A$3:$AL$3,0),FALSE)","v":0},{"$f":"VLOOKUP($C$4,'Debt Dollars FY23'!$A$4:$AN$110,MATCH($C20,'Debt Dollars FY23'!$A$5:$AN$5,0),FALSE)","v":0},{"$f":"VLOOKUP($C$4,'CC dollars FY23'!$B$5:$AR$111,MATCH($C20,'CC dollars FY23'!$B$6:$AR$6,0),FALSE)","v":0},0,0,0]
["HIDE",null,"Modular Bldg",{"$f":"VLOOKUP($C$4,'Building RSF'!$A$3:$AK$109,MATCH($C21,'Building RSF'!$A$3:$AK$3,0),FALSE)","v":0},null,{"$f":"VLOOKUP($C$4,'rent dollars FY22'!$A$2:$AL$108,MATCH($C21,'rent dollars FY22'!$A$3:$AL$3,0),FALSE)","v":0},{"$f":"VLOOKUP($C$4,'Debt Dollars FY22'!$A$4:$AN$110,MATCH($C21,'Debt Dollars FY22'!$A$5:$AN$5,0),FALSE)","v":0},{"$f":"VLOOKUP($C$4,'CC dollars FY22'!$B$5:$AR$111,MATCH($C21,'CC dollars FY22'!$B$6:$AR$6,0),FALSE)","v":0},0,0,0,null,{"$f":"VLOOKUP($C$4,'rent dollars FY23'!$A$2:$AL$108,MATCH($C21,'rent dollars FY23'!$A$3:$AL$3,0),FALSE)","v":0},{"$f":"VLOOKUP($C$4,'Debt Dollars FY23'!$A$4:$AN$110,MATCH($C21,'Debt Dollars FY23'!$A$5:$AN$5,0),FALSE)","v":0},{"$f":"VLOOKUP($C$4,'CC dollars FY23'!$B$5:$AR$111,MATCH($C21,'CC dollars FY23'!$B$6:$AR$6,0),FALSE)","v":0},0,0,0]
["HIDE",null,"Isabella Bush",{"$f":"VLOOKUP($C$4,'Building RSF'!$A$3:$AK$109,MATCH($C22,'Building RSF'!$A$3:$AK$3,0),FALSE)","v":0},null,{"$f":"VLOOKUP($C$4,'rent dollars FY22'!$A$2:$AL$108,MATCH($C22,'rent dollars FY22'!$A$3:$AL$3,0),FALSE)","v":0},{"$f":"VLOOKUP($C$4,'Debt Dollars FY22'!$A$4:$AN$110,MATCH($C22,'Debt Dollars FY22'!$A$5:$AN$5,0),FALSE)","v":0},{"$f":"VLOOKUP($C$4,'CC dollars FY22'!$B$5:$AR$111,MATCH($C22,'CC dollars FY22'!$B$6:$AR$6,0),FALSE)","v":0},0,0,0,null,{"$f":"VLOOKUP($C$4,'rent dollars FY23'!$A$2:$AL$108,MATCH($C22,'rent dollars FY23'!$A$3:$AL$3,0),FALSE)","v":0},{"$f":"VLOOKUP($C$4,'Debt Dollars FY23'!$A$4:$AN$110,MATCH($C22,'Debt Dollars FY23'!$A$5:$AN$5,0),FALSE)","v":0},{"$f":"VLOOKUP($C$4,'CC dollars FY23'!$B$5:$AR$111,MATCH($C22,'CC dollars FY23'!$B$6:$AR$6,0),FALSE)","v":0},0,0,0]
["HIDE",null,"1007 Washington",{"$f":"VLOOKUP($C$4,'Building RSF'!$A$3:$AK$109,MATCH($C23,'Building RSF'!$A$3:$AK$3,0),FALSE)","v":0},null,{"$f":"VLOOKUP($C$4,'rent dollars FY22'!$A$2:$AL$108,MATCH($C23,'rent dollars FY22'!$A$3:$AL$3,0),FALSE)","v":0},{"$f":"VLOOKUP($C$4,'Debt Dollars FY22'!$A$4:$AN$110,MATCH($C23,'Debt Dollars FY22'!$A$5:$AN$5,0),FALSE)","v":0},{"$f":"VLOOKUP($C$4,'CC dollars FY22'!$B$5:$AR$111,MATCH($C23,'CC dollars FY22'!$B$6:$AR$6,0),FALSE)","v":0},0,0,0,null,{"$f":"VLOOKUP($C$4,'rent dollars FY23'!$A$2:$AL$108,MATCH($C23,'rent dollars FY23'!$A$3:$AL$3,0),FALSE)","v":0},{"$f":"VLOOKUP($C$4,'Debt Dollars FY23'!$A$4:$AN$110,MATCH($C23,'Debt Dollars FY23'!$A$5:$AN$5,0),FALSE)","v":0},{"$f":"VLOOKUP($C$4,'CC dollars FY23'!$B$5:$AR$111,MATCH($C23,'CC dollars FY23'!$B$6:$AR$6,0),FALSE)","v":0},0,0,0]
["HIDE",null,"120 E Union Avenue",{"$f":"VLOOKUP($C$4,'Building RSF'!$A$3:$AK$109,MATCH($C24,'Building RSF'!$A$3:$AK$3,0),FALSE)","v":0},null,{"$f":"VLOOKUP($C$4,'rent dollars FY22'!$A$2:$AL$108,MATCH($C24,'rent dollars FY22'!$A$3:$AL$3,0),FALSE)","v":0},{"$f":"VLOOKUP($C$4,'Debt Dollars FY22'!$A$4:$AN$110,MATCH($C24,'Debt Dollars FY22'!$A$5:$AN$5,0),FALSE)","v":0},{"$f":"VLOOKUP($C$4,'CC dollars FY22'!$B$5:$AR$111,MATCH($C24,'CC dollars FY22'!$B$6:$AR$6,0),FALSE)","v":0},0,0,0,null,{"$f":"VLOOKUP($C$4,'rent dollars FY23'!$A$2:$AL$108,MATCH($C24,'rent dollars FY23'!$A$3:$AL$3,0),FALSE)","v":0},{"$f":"VLOOKUP($C$4,'Debt Dollars FY23'!$A$4:$AN$110,MATCH($C24,'Debt Dollars FY23'!$A$5:$AN$5,0),FALSE)","v":0},{"$f":"VLOOKUP($C$4,'CC dollars FY23'!$B$5:$AR$111,MATCH($C24,'CC dollars FY23'!$B$6:$AR$6,0),FALSE)","v":0},0,0,0]
["HIDE",null,"Capital Court",{"$f":"VLOOKUP($C$4,'Building RSF'!$A$3:$AK$109,MATCH($C25,'Building RSF'!$A$3:$AK$3,0),FALSE)","v":0},null,{"$f":"VLOOKUP($C$4,'rent dollars FY22'!$A$2:$AL$108,MATCH($C25,'rent dollars FY22'!$A$3:$AL$3,0),FALSE)","v":0},{"$f":"VLOOKUP($C$4,'Debt Dollars FY22'!$A$4:$AN$110,MATCH($C25,'Debt Dollars FY22'!$A$5:$AN$5,0),FALSE)","v":0},{"$f":"VLOOKUP($C$4,'CC dollars FY22'!$B$5:$AR$111,MATCH($C25,'CC dollars FY22'!$B$6:$AR$6,0),FALSE)","v":0},0,0,0,null,{"$f":"VLOOKUP($C$4,'rent dollars FY23'!$A$2:$AL$108,MATCH($C25,'rent dollars FY23'!$A$3:$AL$3,0),FALSE)","v":0},{"$f":"VLOOKUP($C$4,'Debt Dollars FY23'!$A$4:$AN$110,MATCH($C25,'Debt Dollars FY23'!$A$5:$AN$5,0),FALSE)","v":0},{"$f":"VLOOKUP($C$4,'CC dollars FY23'!$B$5:$AR$111,MATCH($C25,'CC dollars FY23'!$B$6:$AR$6,0),FALSE)","v":0},0,0,0]
["HIDE",null,"James Dolliver Building",{"$f":"VLOOKUP($C$4,'Building RSF'!$A$3:$AK$109,MATCH($C26,'Building RSF'!$A$3:$AK$3,0),FALSE)","v":0},null,{"$f":"VLOOKUP($C$4,'rent dollars FY22'!$A$2:$AL$108,MATCH($C26,'rent dollars FY22'!$A$3:$AL$3,0),FALSE)","v":0},{"$f":"VLOOKUP($C$4,'Debt Dollars FY22'!$A$4:$AN$110,MATCH($C26,'Debt Dollars FY22'!$A$5:$AN$5,0),FALSE)","v":0},{"$f":"VLOOKUP($C$4,'CC dollars FY22'!$B$5:$AR$111,MATCH($C26,'CC dollars FY22'!$B$6:$AR$6,0),FALSE)","v":0},0,0,0,null,{"$f":"VLOOKUP($C$4,'rent dollars FY23'!$A$2:$AL$108,MATCH($C26,'rent dollars FY23'!$A$3:$AL$3,0),FALSE)","v":0},{"$f":"VLOOKUP($C$4,'Debt Dollars FY23'!$A$4:$AN$110,MATCH($C26,'Debt Dollars FY23'!$A$5:$AN$5,0),FALSE)","v":0},{"$f":"VLOOKUP($C$4,'CC dollars FY23'!$B$5:$AR$111,MATCH($C26,'CC dollars FY23'!$B$6:$AR$6,0),FALSE)","v":0},0,0,0]
["HIDE",null,"Undeveloped Properties",{"$f":"VLOOKUP($C$4,'Building RSF'!$A$3:$AK$109,MATCH($C27,'Building RSF'!$A$3:$AK$3,0),FALSE)","v":0},null,{"$f":"VLOOKUP($C$4,'rent dollars FY22'!$A$2:$AL$108,MATCH($C27,'rent dollars FY22'!$A$3:$AL$3,0),FALSE)","v":0},{"$f":"VLOOKUP($C$4,'Debt Dollars FY22'!$A$4:$AN$110,MATCH($C27,'Debt Dollars FY22'!$A$5:$AN$5,0),FALSE)","v":0},{"$f":"VLOOKUP($C$4,'CC dollars FY22'!$B$5:$AR$111,MATCH($C27,'CC dollars FY22'!$B$6:$AR$6,0),FALSE)","v":0},0,0,0,null,{"$f":"VLOOKUP($C$4,'rent dollars FY23'!$A$2:$AL$108,MATCH($C27,'rent dollars FY23'!$A$3:$AL$3,0),FALSE)","v":0},{"$f":"VLOOKUP($C$4,'Debt Dollars FY23'!$A$4:$AN$110,MATCH($C27,'Debt Dollars FY23'!$A$5:$AN$5,0),FALSE)","v":0},{"$f":"VLOOKUP($C$4,'CC dollars FY23'!$B$5:$AR$111,MATCH($C27,'CC dollars FY23'!$B$6:$AR$6,0),FALSE)","v":0},0,0,0]
["HIDE",null,"1068 WA Street SE (ST Farm)",{"$f":"VLOOKUP($C$4,'Building RSF'!$A$3:$AK$109,MATCH($C28,'Building RSF'!$A$3:$AK$3,0),FALSE)","v":0},null,{"$f":"VLOOKUP($C$4,'rent dollars FY22'!$A$2:$AL$108,MATCH($C28,'rent dollars FY22'!$A$3:$AL$3,0),FALSE)","v":0},{"$f":"VLOOKUP($C$4,'Debt Dollars FY22'!$A$4:$AN$110,MATCH($C28,'Debt Dollars FY22'!$A$5:$AN$5,0),FALSE)","v":0},{"$f":"VLOOKUP($C$4,'CC dollars FY22'!$B$5:$AR$111,MATCH($C28,'CC dollars FY22'!$B$6:$AR$6,0),FALSE)","v":0},0,0,0,null,{"$f":"VLOOKUP($C$4,'rent dollars FY23'!$A$2:$AL$108,MATCH($C28,'rent dollars FY23'!$A$3:$AL$3,0),FALSE)","v":0},{"$f":"VLOOKUP($C$4,'Debt Dollars FY23'!$A$4:$AN$110,MATCH($C28,'Debt Dollars FY23'!$A$5:$AN$5,0),FALSE)","v":0},{"$f":"VLOOKUP($C$4,'CC dollars FY23'!$B$5:$AR$111,MATCH($C28,'CC dollars FY23'!$B$6:$AR$6,0),FALSE)","v":0},0,0,0]
["HIDE",null,"232 Perry Street",{"$f":"VLOOKUP($C$4,'Building RSF'!$A$3:$AK$109,MATCH($C29,'Building RSF'!$A$3:$AK$3,0),FALSE)","v":0},null,{"$f":"VLOOKUP($C$4,'rent dollars FY22'!$A$2:$AL$108,MATCH($C29,'rent dollars FY22'!$A$3:$AL$3,0),FALSE)","v":0},{"$f":"VLOOKUP($C$4,'Debt Dollars FY22'!$A$4:$AN$110,MATCH($C29,'Debt Dollars FY22'!$A$5:$AN$5,0),FALSE)","v":0},{"$f":"VLOOKUP($C$4,'CC dollars FY22'!$B$5:$AR$111,MATCH($C29,'CC dollars FY22'!$B$6:$AR$6,0),FALSE)","v":0},0,0,0,null,{"$f":"VLOOKUP($C$4,'rent dollars FY23'!$A$2:$AL$108,MATCH($C29,'rent dollars FY23'!$A$3:$AL$3,0),FALSE)","v":0},{"$f":"VLOOKUP($C$4,'Debt Dollars FY23'!$A$4:$AN$110,MATCH($C29,'Debt Dollars FY23'!$A$5:$AN$5,0),FALSE)","v":0},{"$f":"VLOOKUP($C$4,'CC dollars FY23'!$B$5:$AR$111,MATCH($C29,'CC dollars FY23'!$B$6:$AR$6,0),FALSE)","v":0},0,0,0]
["HIDE",null,"208 11th Avenue SE (Pro Arts)",{"$f":"VLOOKUP($C$4,'Building RSF'!$A$3:$AK$109,MATCH($C30,'Building RSF'!$A$3:$AK$3,0),FALSE)","v":0},null,{"$f":"VLOOKUP($C$4,'rent dollars FY22'!$A$2:$AL$108,MATCH($C30,'rent dollars FY22'!$A$3:$AL$3,0),FALSE)","v":0},{"$f":"VLOOKUP($C$4,'Debt Dollars FY22'!$A$4:$AN$110,MATCH($C30,'Debt Dollars FY22'!$A$5:$AN$5,0),FALSE)","v":0},{"$f":"VLOOKUP($C$4,'CC dollars FY22'!$B$5:$AR$111,MATCH($C30,'CC dollars FY22'!$B$6:$AR$6,0),FALSE)","v":0},0,0,0,null,{"$f":"VLOOKUP($C$4,'rent dollars FY23'!$A$2:$AL$108,MATCH($C30,'rent dollars FY23'!$A$3:$AL$3,0),FALSE)","v":0},{"$f":"VLOOKUP($C$4,'Debt Dollars FY23'!$A$4:$AN$110,MATCH($C30,'Debt Dollars FY23'!$A$5:$AN$5,0),FALSE)","v":0},{"$f":"VLOOKUP($C$4,'CC dollars FY23'!$B$5:$AR$111,MATCH($C30,'CC dollars FY23'!$B$6:$AR$6,0),FALSE)","v":0},0,0,0]
["HIDE",null,"Press Houses Ayer(White); Carlyon(Blue)",{"$f":"VLOOKUP($C$4,'Building RSF'!$A$3:$AK$109,MATCH($C31,'Building RSF'!$A$3:$AK$3,0),FALSE)","v":0},null,{"$f":"VLOOKUP($C$4,'rent dollars FY22'!$A$2:$AL$108,MATCH($C31,'rent dollars FY22'!$A$3:$AL$3,0),FALSE)","v":0},{"$f":"VLOOKUP($C$4,'Debt Dollars FY22'!$A$4:$AN$110,MATCH($C31,'Debt Dollars FY22'!$A$5:$AN$5,0),FALSE)","v":0},{"$f":"VLOOKUP($C$4,'CC dollars FY22'!$B$5:$AR$111,MATCH($C31,'CC dollars FY22'!$B$6:$AR$6,0),FALSE)","v":0},0,0,0,null,{"$f":"VLOOKUP($C$4,'rent dollars FY23'!$A$2:$AL$108,MATCH($C31,'rent dollars FY23'!$A$3:$AL$3,0),FALSE)","v":0},{"$f":"VLOOKUP($C$4,'Debt Dollars FY23'!$A$4:$AN$110,MATCH($C31,'Debt Dollars FY23'!$A$5:$AN$5,0),FALSE)","v":0},{"$f":"VLOOKUP($C$4,'CC dollars FY23'!$B$5:$AR$111,MATCH($C31,'CC dollars FY23'!$B$6:$AR$6,0),FALSE)","v":0},0,0,0]
["HIDE",null,"Visitor Center",{"$f":"VLOOKUP($C$4,'Building RSF'!$A$3:$AK$109,MATCH($C32,'Building RSF'!$A$3:$AK$3,0),FALSE)","v":0},null,{"$f":"VLOOKUP($C$4,'rent dollars FY22'!$A$2:$AL$108,MATCH($C32,'rent dollars FY22'!$A$3:$AL$3,0),FALSE)","v":0},{"$f":"VLOOKUP($C$4,'Debt Dollars FY22'!$A$4:$AN$110,MATCH($C32,'Debt Dollars FY22'!$A$5:$AN$5,0),FALSE)","v":0},{"$f":"VLOOKUP($C$4,'CC dollars FY22'!$B$5:$AR$111,MATCH($C32,'CC dollars FY22'!$B$6:$AR$6,0),FALSE)","v":0},0,0,0,null,{"$f":"VLOOKUP($C$4,'rent dollars FY23'!$A$2:$AL$108,MATCH($C32,'rent dollars FY23'!$A$3:$AL$3,0),FALSE)","v":0},{"$f":"VLOOKUP($C$4,'Debt Dollars FY23'!$A$4:$AN$110,MATCH($C32,'Debt Dollars FY23'!$A$5:$AN$5,0),FALSE)","v":0},{"$f":"VLOOKUP($C$4,'CC dollars FY23'!$B$5:$AR$111,MATCH($C32,'CC dollars FY23'!$B$6:$AR$6,0),FALSE)","v":0},0,0,0]
["HIDE",null,"Helen Sommers",{"$f":"VLOOKUP($C$4,'Building RSF'!$A$3:$AK$109,MATCH($C33,'Building RSF'!$A$3:$AK$3,0),FALSE)","v":0},null,{"$f":"VLOOKUP($C$4,'rent dollars FY22'!$A$2:$AL$108,MATCH($C33,'rent dollars FY22'!$A$3:$AL$3,0),FALSE)","v":0},{"$f":"VLOOKUP($C$4,'Debt Dollars FY22'!$A$4:$AN$110,MATCH($C33,'Debt Dollars FY22'!$A$5:$AN$5,0),FALSE)","v":0},{"$f":"VLOOKUP($C$4,'CC dollars FY22'!$B$5:$AR$111,MATCH($C33,'CC dollars FY22'!$B$6:$AR$6,0),FALSE)","v":0},0,0,0,null,{"$f":"VLOOKUP($C$4,'rent dollars FY23'!$A$2:$AL$108,MATCH($C33,'rent dollars FY23'!$A$3:$AL$3,0),FALSE)","v":0},{"$f":"VLOOKUP($C$4,'Debt Dollars FY23'!$A$4:$AN$110,MATCH($C33,'Debt Dollars FY23'!$A$5:$AN$5,0),FALSE)","v":0},{"$f":"VLOOKUP($C$4,'CC dollars FY23'!$B$5:$AR$111,MATCH($C33,'CC dollars FY23'!$B$6:$AR$6,0),FALSE)","v":0},0,0,0]
["HIDE",null,"Kelso Building",{"$f":"VLOOKUP($C$4,'Building RSF'!$A$3:$AK$109,MATCH($C34,'Building RSF'!$A$3:$AK$3,0),FALSE)","v":0},null,{"$f":"VLOOKUP($C$4,'rent dollars FY22'!$A$2:$AL$108,MATCH($C34,'rent dollars FY22'!$A$3:$AL$3,0),FALSE)","v":0},{"$f":"VLOOKUP($C$4,'Debt Dollars FY22'!$A$4:$AN$110,MATCH($C34,'Debt Dollars FY22'!$A$5:$AN$5,0),FALSE)","v":0},{"$f":"VLOOKUP($C$4,'CC dollars FY22'!$B$5:$AR$111,MATCH($C34,'CC dollars FY22'!$B$6:$AR$6,0),FALSE)","v":0},0,0,0,null,{"$f":"VLOOKUP($C$4,'rent dollars FY23'!$A$2:$AL$108,MATCH($C34,'rent dollars FY23'!$A$3:$AL$3,0),FALSE)","v":0},{"$f":"VLOOKUP($C$4,'Debt Dollars FY23'!$A$4:$AN$110,MATCH($C34,'Debt Dollars FY23'!$A$5:$AN$5,0),FALSE)","v":0},{"$f":"VLOOKUP($C$4,'CC dollars FY23'!$B$5:$AR$111,MATCH($C34,'CC dollars FY23'!$B$6:$AR$6,0),FALSE)","v":0},0,0,0]
["HIDE",null,"Yakima Building",{"$f":"VLOOKUP($C$4,'Building RSF'!$A$3:$AK$109,MATCH($C35,'Building RSF'!$A$3:$AK$3,0),FALSE)","v":0},null,{"$f":"VLOOKUP($C$4,'rent dollars FY22'!$A$2:$AL$108,MATCH($C35,'rent dollars FY22'!$A$3:$AL$3,0),FALSE)","v":0},{"$f":"VLOOKUP($C$4,'Debt Dollars FY22'!$A$4:$AN$110,MATCH($C35,'Debt Dollars FY22'!$A$5:$AN$5,0),FALSE)","v":0},{"$f":"VLOOKUP($C$4,'CC dollars FY22'!$B$5:$AR$111,MATCH($C35,'CC dollars FY22'!$B$6:$AR$6,0),FALSE)","v":0},0,0,0,null,{"$f":"VLOOKUP($C$4,'rent dollars FY23'!$A$2:$AL$108,MATCH($C35,'rent dollars FY23'!$A$3:$AL$3,0),FALSE)","v":0},{"$f":"VLOOKUP($C$4,'Debt Dollars FY23'!$A$4:$AN$110,MATCH($C35,'Debt Dollars FY23'!$A$5:$AN$5,0),FALSE)","v":0},{"$f":"VLOOKUP($C$4,'CC dollars FY23'!$B$5:$AR$111,MATCH($C35,'CC dollars FY23'!$B$6:$AR$6,0),FALSE)","v":0},0,0,0]
["HIDE",null,"Alaska Street",{"$f":"VLOOKUP($C$4,'Building RSF'!$A$3:$AK$109,MATCH($C36,'Building RSF'!$A$3:$AK$3,0),FALSE)","v":0},null,{"$f":"VLOOKUP($C$4,'rent dollars FY22'!$A$2:$AL$108,MATCH($C36,'rent dollars FY22'!$A$3:$AL$3,0),FALSE)","v":0},{"$f":"VLOOKUP($C$4,'Debt Dollars FY22'!$A$4:$AN$110,MATCH($C36,'Debt Dollars FY22'!$A$5:$AN$5,0),FALSE)","v":0},{"$f":"VLOOKUP($C$4,'CC dollars FY22'!$B$5:$AR$111,MATCH($C36,'CC dollars FY22'!$B$6:$AR$6,0),FALSE)","v":0},0,0,0,null,{"$f":"VLOOKUP($C$4,'rent dollars FY23'!$A$2:$AL$108,MATCH($C36,'rent dollars FY23'!$A$3:$AL$3,0),FALSE)","v":0},{"$f":"VLOOKUP($C$4,'Debt Dollars FY23'!$A$4:$AN$110,MATCH($C36,'Debt Dollars FY23'!$A$5:$AN$5,0),FALSE)","v":0},{"$f":"VLOOKUP($C$4,'CC dollars FY23'!$B$5:$AR$111,MATCH($C36,'CC dollars FY23'!$B$6:$AR$6,0),FALSE)","v":0},0,0,0]
["HIDE",null,"Tacoma Rhodes",{"$f":"VLOOKUP($C$4,'Building RSF'!$A$3:$AK$109,MATCH($C37,'Building RSF'!$A$3:$AK$3,0),FALSE)","v":0},null,{"$f":"VLOOKUP($C$4,'rent dollars FY22'!$A$2:$AL$108,MATCH($C37,'rent dollars FY22'!$A$3:$AL$3,0),FALSE)","v":0},{"$f":"VLOOKUP($C$4,'Debt Dollars FY22'!$A$4:$AN$110,MATCH($C37,'Debt Dollars FY22'!$A$5:$AN$5,0),FALSE)","v":0},{"$f":"VLOOKUP($C$4,'CC dollars FY22'!$B$5:$AR$111,MATCH($C37,'CC dollars FY22'!$B$6:$AR$6,0),FALSE)","v":0},0,0,0,null,{"$f":"VLOOKUP($C$4,'rent dollars FY23'!$A$2:$AL$108,MATCH($C37,'rent dollars FY23'!$A$3:$AL$3,0),FALSE)","v":0},{"$f":"VLOOKUP($C$4,'Debt Dollars FY23'!$A$4:$AN$110,MATCH($C37,'Debt Dollars FY23'!$A$5:$AN$5,0),FALSE)","v":0},{"$f":"VLOOKUP($C$4,'CC dollars FY23'!$B$5:$AR$111,MATCH($C37,'CC dollars FY23'!$B$6:$AR$6,0),FALSE)","v":0},0,0,0]
["VIEW",null,"TOTAL",{"$f":"SUM(D7:D37)","v":0},{"$f":"SUM(E7:E37)","v":0},0,0,0,0,0,{"$f":"I38/D38","v":{"$error":"#DIV/0!"}},null,{"$f":"SUM(M7:M37)","v":0},{"$f":"SUM(N7:N37)","v":0},{"$f":"SUM(O7:O37)","v":0},{"$f":"SUM(P7:P37)","v":0},{"$f":"SUM(Q7:Q37)","v":0},{"$f":"P38/D38","v":{"$error":"#DIV/0!"}}]
["VIEW"]
["VIEW",null,"Notes:"]
[{"$f":"IF(D37=0,\"HIDE\",\"VIEW\")","v":"HIDE"},null,"o  Tacoma Rhodes:   This building was recently sold to private ownership.  DES will work with OFM to have this building removed from the CSM in the Supplemental 22 Budget."]
["VIEW",null,"o  Campus Contracts (CC) is invoiced in three parts:  "]
["VIEW",null,"1) CC Bldg pays for CC services within the buildings (see rent tab)"]
["VIEW",null,"2) CC Parking pays for CC services within parking garages and lots (see Other Facility Related Costs tab)"]
["VIEW",null,"3) CC PHF pays for CC services in public & historic spaces (see Other Facility Related Costs tab)  Note*  Public and Historic Facilities may not be eligible for Federal Funding or Reimbursement"]
["VIEW",null,"o  Facilities and Services charges for the House (011), Sentate (012), LSS (037), LSC (038) and Statute Law (040) for traditionally \"on-campus\" buildings are funded by an appropriation to DES and will not be invoiced. "]
["VIEW"]
["VIEW"]
["VIEW",null,null,null,null,null,null,null,"Prepared by DES Budget, Finance Division.  For question relating to CSM charges from DES, please contact DES Budget, desbudget@des.wa.gov"]
["VIEW"]
["VIEW"]
["VIEW"]
["VIEW"]
["VIEW"]
["VIEW"]
["VIEW"]
["VIEW"]
["VIEW"]
["VIEW"]
["VIEW"]
["VIEW"]
["VIEW"]
["VIEW"]
["VIEW"]
["VIEW"]
["VIEW"]
["VIEW"]
["VIEW"]
["VIEW"]
["VIEW"]
["VIEW"]
["VIEW"]
["VIEW"]
["VIEW"]
["VIEW"]
["VIEW"]
["VIEW"]
["VIEW"]
["VIEW"]
["VIEW"]
["VIEW"]
["VIEW"]
["VIEW"]
["VIEW"]
["VIEW"]
["VIEW"]
["VIEW"]
["VIEW"]
["VIEW"]
["VIEW"]
["VIEW"]
["VIEW"]
["VIEW"]
["VIEW"]
["VIEW"]
["VIEW"]
["VIEW"]
["VIEW"]
["VIEW"]
["VIEW"]
["VIEW"]
["VIEW"]
["VIEW"]
["VIEW"]
["VIEW"]
["VIEW"]
["VIEW"]
["VIEW"]
["VIEW"]
["VIEW"]
["VIEW"]
["VIEW"]
["VIEW"]
["VIEW"]
["VIEW"]
["VIEW"]
["VIEW"]
["VIEW"]
["VIEW"]
["VIEW"]
["VIEW"]
["VIEW"]
["VIEW"]
["VIEW"]
["VIEW"]
["VIEW"]
["VIEW"]
["VIEW"]
["VIEW"]
["VIEW"]
["VIEW"]
["VIEW"]
["VIEW"]
["VIEW"]
["VIEW"]
["VIEW"]
["VIEW"]
["VIEW"]
["VIEW"]
["VIEW"]
["VIEW"]
["VIEW"]
["VIEW"]
["VIEW"]
["VIEW"]
["VIEW"]
["VIEW"]
["VIEW"]
["VIEW"]
["VIEW"]
["VIEW"]
["VIEW"]
["VIEW"]
["VIEW"]
["VIEW"]
["VIEW"]
["VIEW"]
["VIEW"]
["VIEW"]
["VIEW"]
["VIEW"]
["VIEW"]
["VIEW"]
["VIEW"]
["VIEW"]
["VIEW"]
["VIEW"]
["VIEW"]
["VIEW"]
["VIEW"]
["VIEW"]
["VIEW"]
["VIEW"]
["VIEW"]
["VIEW"]
["VIEW"]
["VIEW"]
["VIEW"]
["VIEW"]
["VIEW"]
["VIEW"]
["VIEW"]
["VIEW"]
["VIEW"]
["VIEW"]
["VIEW"]
["VIEW"]
["VIEW"]
["VIEW"]
["VIEW"]
["VIEW"]
["VIEW"]
["VIEW"]
["VIEW"]
["VIEW"]
["VIEW"]
["VIEW"]
["VIEW"]
["VIEW"]
["VIEW"]
["VIEW"]
["VIEW"]
["VIEW"]
["VIEW"]
["VIEW"]
["VIEW"]
["VIEW"]
["VIEW"]
["VIEW"]
["VIEW"]
["VIEW"]
["VIEW"]
["VIEW"]
["VIEW"]
["VIEW"]
["VIEW"]
["VIEW"]
["VIEW"]
["VIEW"]
["VIEW"]
["VIEW"]
["VIEW"]
["VIEW"]
["VIEW"]
["VIEW"]
["VIEW"]
["VIEW"]
["VIEW"]
["VIEW"]
["VIEW"]
["VIEW"]
["VIEW"]
["VIEW"]
["VIEW"]
["VIEW"]
["VIEW"]
["VIEW"]
["VIEW"]
["VIEW"]
["VIEW"]
["VIEW"]
["VIEW"]
["VIEW"]
["VIEW"]
["VIEW"]
["VIEW"]
["VIEW"]
["VIEW"]
["VIEW"]
["VIEW"]
["VIEW"]
["VIEW"]
["VIEW"]
["VIEW"]
["VIEW"]
["VIEW"]
["VIEW"]
["VIEW"]
["VIEW"]
["VIEW"]
["VIEW"]
["VIEW"]
["VIEW"]
["VIEW"]
["VIEW"]
["VIEW"]
["VIEW"]
["VIEW"]
["VIEW"]
["VIEW"]
["VIEW"]
["VIEW"]
["VIEW"]
["VIEW"]
["VIEW"]
["VIEW"]
["VIEW"]
["VIEW"]
["VIEW"]
["VIEW"]
["VIEW"]
["VIEW"]
["VIEW"]
["VIEW"]

{"sheet":"Rent lookup by Building","index":2,"n_rows":145,"n_cols":18,"rows_kept":145,"cut":false,"hidden":false,"merged":[[3,2,3,3],[4,4,4,10],[4,12,4,17]]}
["VIEW"]
["VIEW",null,"Occupancy by Building in the Central Service Model",null,null,null,null,null,null,null,null,null,null,null,null,null,null,"Department of Enterprise Services"]
["VIEW",null,"Agency"]
["VIEW",null,"Alaska Street",null,null,"ç Select Building Here"]
["VIEW",null,null,null,"Fiscal Year 22",null,null,null,null,null,null,null,"Fiscal Year 23"]
["VIEW",null,"Agency","occupied RSF",null,"Rent \nCSM","Fin Cost Recovery \nCSM","Campus Contracts\nCSM","TOTAL RENT\nAnnual Cost","Monthly Charge","Rent Rate/RSF",null,"Rent \nCSM","Fin Cost Recovery \nCSM","Campus Contracts\nCSM","TOTAL RENT\nAnnual Cost","Monthly Charge","Rent Rate/RSF"]
[{"$f":"IF(D7=0,\"HIDE\",\"VIEW\")","v":"HIDE"},null,"011 - House of Representatives",{"$f":"HLOOKUP($C$4,'Building RSF'!$A$3:$AK$109,MATCH($C7,'Building RSF'!$A$3:$A$109,0),FALSE)","v":0},null,{"$f":"HLOOKUP($C$4,'rent dollars FY22'!$A$3:$AL$108,MATCH($C7,'rent dollars FY22'!$A$3:$A$108,0),FALSE)","v":0},{"$f":"HLOOKUP($C$4,'Debt Dollars FY22'!$C$5:$AN$110,MATCH($C7,'Debt Dollars FY22'!$A$5:$A$110,0),FALSE)","v":0},{"$f":"HLOOKUP($C$4,'CC dollars FY22'!$B$6:$AR$111,MATCH($C7,'CC dollars FY22'!$B$6:$B$111,0),FALSE)","v":0},{"$f":"SUM(F7:H7)","v":0},{"$f":"I7/12","v":0},{"$f":"IFERROR(I7/D7,0)","v":0},null,{"$f":"HLOOKUP($C$4,'rent dollars FY23'!$A$3:$AL$108,MATCH($C7,'rent dollars FY23'!$A$3:$A$108,0),FALSE)","v":0},{"$f":"HLOOKUP($C$4,'Debt Dollars FY23'!$C$5:$AN$110,MATCH($C7,'Debt Dollars FY23'!$A$5:$A$110,0),FALSE)","v":0},{"$f":"HLOOKUP($C$4,'CC dollars FY23'!$B$6:$AR$111,MATCH($C7,'CC dollars FY23'!$B$6:$B$111,0),FALSE)","v":0},{"$f":"SUM(M7:O7)","v":0},{"$f":"P7/12","v":0},{"$f":"IFERROR(P7/D7,0)","v":0}]
[{"$f":"IF(D8=0,\"HIDE\",\"VIEW\")","v":"HIDE"},null,"012 - Senate",{"$f":"HLOOKUP($C$4,'Building RSF'!$A$3:$AK$109,MATCH($C8,'Building RSF'!$A$3:$A$109,0),FALSE)","v":0},null,{"$f":"HLOOKUP($C$4,'rent dollars FY22'!$A$3:$AL$108,MATCH($C8,'rent dollars FY22'!$A$3:$A$108,0),FALSE)","v":0},{"$f":"HLOOKUP($C$4,'Debt Dollars FY22'!$C$5:$AN$110,MATCH($C8,'Debt Dollars FY22'!$A$5:$A$110,0),FALSE)","v":0},{"$f":"HLOOKUP($C$4,'CC dollars FY22'!$B$6:$AR$111,MATCH($C8,'CC dollars FY22'!$B$6:$B$111,0),FALSE)","v":0},{"$f":"SUM(F8:H8)","v":0},{"$f":"I8/12","v":0},{"$f":"IFERROR(I8/D8,0)","v":0},null,{"$f":"HLOOKUP($C$4,'rent dollars FY23'!$A$3:$AL$108,MATCH($C8,'rent dollars FY23'!$A$3:$A$108,0),FALSE)","v":0},{"$f":"HLOOKUP($C$4,'Debt Dollars FY23'!$C$5:$AN$110,MATCH($C8,'Debt Dollars FY23'!$A$5:$A$110,0),FALSE)","v":0},{"$f":"HLOOKUP($C$4,'CC dollars FY23'!$B$6:$AR$111,MATCH($C8,'CC dollars FY23'!$B$6:$B$111,0),FALSE)","v":0},{"$f":"SUM(M8:O8)","v":0},{"$f":"P8/12","v":0},{"$f":"IFERROR(P8/D8,0)","v":0}]
["HIDE",null,"013 - Joint Transportation Committee",{"$f":"HLOOKUP($C$4,'Building RSF'!$A$3:$AK$109,MATCH($C9,'Building RSF'!$A$3:$A$109,0),FALSE)","v":0},null,{"$f":"HLOOKUP($C$4,'rent dollars FY22'!$A$3:$AL$108,MATCH($C9,'rent dollars FY22'!$A$3:$A$108,0),FALSE)","v":0},{"$f":"HLOOKUP($C$4,'Debt Dollars FY22'!$C$5:$AN$110,MATCH($C9,'Debt Dollars FY22'!$A$5:$A$110,0),FALSE)","v":0},{"$f":"HLOOKUP($C$4,'CC dollars FY22'!$B$6:$AR$111,MATCH($C9,'CC dollars FY22'!$B$6:$B$111,0),FALSE)","v":0},0,0,0,null,{"$f":"HLOOKUP($C$4,'rent dollars FY23'!$A$3:$AL$108,MATCH($C9,'rent dollars FY23'!$A$3:$A$108,0),FALSE)","v":0},{"$f":"HLOOKUP($C$4,'Debt Dollars FY23'!$C$5:$AN$110,MATCH($C9,'Debt Dollars FY23'!$A$5:$A$110,0),FALSE)","v":0},{"$f":"HLOOKUP($C$4,'CC dollars FY23'!$B$6:$AR$111,MATCH($C9,'CC dollars FY23'!$B$6:$B$111,0),FALSE)","v":0},0,0,0]
["HIDE",null,"014 - Joint Legislative Audit and Review Committee",{"$f":"HLOOKUP($C$4,'Building RSF'!$A$3:$AK$109,MATCH($C10,'Building RSF'!$A$3:$A$109,0),FALSE)","v":0},null,{"$f":"HLOOKUP($C$4,'rent dollars FY22'!$A$3:$AL$108,MATCH($C10,'rent dollars FY22'!$A$3:$A$108,0),FALSE)","v":0},{"$f":"HLOOKUP($C$4,'Debt Dollars FY22'!$C$5:$AN$110,MATCH($C10,'Debt Dollars FY22'!$A$5:$A$110,0),FALSE)","v":0},{"$f":"HLOOKUP($C$4,'CC dollars FY22'!$B$6:$AR$111,MATCH($C10,'CC dollars FY22'!$B$6:$B$111,0),FALSE)","v":0},0,0,0,null,{"$f":"HLOOKUP($C$4,'rent dollars FY23'!$A$3:$AL$108,MATCH($C10,'rent dollars FY23'!$A$3:$A$108,0),FALSE)","v":0},{"$f":"HLOOKUP($C$4,'Debt Dollars FY23'!$C$5:$AN$110,MATCH($C10,'Debt Dollars FY23'!$A$5:$A$110,0),FALSE)","v":0},{"$f":"HLOOKUP($C$4,'CC dollars FY23'!$B$6:$AR$111,MATCH($C10,'CC dollars FY23'!$B$6:$B$111,0),FALSE)","v":0},0,0,0]
["HIDE",null,"020 - Legislative Evaluation and Accountability Program Committee",{"$f":"HLOOKUP($C$4,'Building RSF'!$A$3:$AK$109,MATCH($C11,'Building RSF'!$A$3:$A$109,0),FALSE)","v":0},null,{"$f":"HLOOKUP($C$4,'rent dollars FY22'!$A$3:$AL$108,MATCH($C11,'rent dollars FY22'!$A$3:$A$108,0),FALSE)","v":0},{"$f":"HLOOKUP($C$4,'Debt Dollars FY22'!$C$5:$AN$110,MATCH($C11,'Debt Dollars FY22'!$A$5:$A$110,0),FALSE)","v":0},{"$f":"HLOOKUP($C$4,'CC dollars FY22'!$B$6:$AR$111,MATCH($C11,'CC dollars FY22'!$B$6:$B$111,0),FALSE)","v":0},0,0,0,null,{"$f":"HLOOKUP($C$4,'rent dollars FY23'!$A$3:$AL$108,MATCH($C11,'rent dollars FY23'!$A$3:$A$108,0),FALSE)","v":0},{"$f":"HLOOKUP($C$4,'Debt Dollars FY23'!$C$5:$AN$110,MATCH($C11,'Debt Dollars FY23'!$A$5:$A$110,0),FALSE)","v":0},{"$f":"HLOOKUP($C$4,'CC dollars FY23'!$B$6:$AR$111,MATCH($C11,'CC dollars FY23'!$B$6:$B$111,0),FALSE)","v":0},0,0,0]
["HIDE",null,"035 - Office of the State Actuary",{"$f":"HLOOKUP($C$4,'Building RSF'!$A$3:$AK$109,MATCH($C12,'Building RSF'!$A$3:$A$109,0),FALSE)","v":0},null,{"$f":"HLOOKUP($C$4,'rent dollars FY22'!$A$3:$AL$108,MATCH($C12,'rent dollars FY22'!$A$3:$A$108,0),FALSE)","v":0},{"$f":"HLOOKUP($C$4,'Debt Dollars FY22'!$C$5:$AN$110,MATCH($C12,'Debt Dollars FY22'!$A$5:$A$110,0),FALSE)","v":0},{"$f":"HLOOKUP($C$4,'CC dollars FY22'!$B$6:$AR$111,MATCH($C12,'CC dollars FY22'!$B$6:$B$111,0),FALSE)","v":0},0,0,0,null,{"$f":"HLOOKUP($C$4,'rent dollars FY23'!$A$3:$AL$108,MATCH($C12,'rent dollars FY23'!$A$3:$A$108,0),FALSE)","v":0},{"$f":"HLOOKUP($C$4,'Debt Dollars FY23'!$C$5:$AN$110,MATCH($C12,'Debt Dollars FY23'!$A$5:$A$110,0),FALSE)","v":0},{"$f":"HLOOKUP($C$4,'CC dollars FY23'!$B$6:$AR$111,MATCH($C12,'CC dollars FY23'!$B$6:$B$111,0),FALSE)","v":0},0,0,0]
["HIDE",null,"037 - Office of Legislative Support Services",{"$f":"HLOOKUP($C$4,'Building RSF'!$A$3:$AK$109,MATCH($C13,'Building RSF'!$A$3:$A$109,0),FALSE)","v":0},null,{"$f":"HLOOKUP($C$4,'rent dollars FY22'!$A$3:$AL$108,MATCH($C13,'rent dollars FY22'!$A$3:$A$108,0),FALSE)","v":0},{"$f":"HLOOKUP($C$4,'Debt Dollars FY22'!$C$5:$AN$110,MATCH($C13,'Debt Dollars FY22'!$A$5:$A$110,0),FALSE)","v":0},{"$f":"HLOOKUP($C$4,'CC dollars FY22'!$B$6:$AR$111,MATCH($C13,'CC dollars FY22'!$B$6:$B$111,0),FALSE)","v":0},0,0,0,null,{"$f":"HLOOKUP($C$4,'rent dollars FY23'!$A$3:$AL$108,MATCH($C13,'rent dollars FY23'!$A$3:$A$108,0),FALSE)","v":0},{"$f":"HLOOKUP($C$4,'Debt Dollars FY23'!$C$5:$AN$110,MATCH($C13,'Debt Dollars FY23'!$A$5:$A$110,0),FALSE)","v":0},{"$f":"HLOOKUP($C$4,'CC dollars FY23'!$B$6:$AR$111,MATCH($C13,'CC dollars FY23'!$B$6:$B$111,0),FALSE)","v":0},0,0,0]
["HIDE",null,"038 - Joint Legislative Systems Committee",{"$f":"HLOOKUP($C$4,'Building RSF'!$A$3:$AK$109,MATCH($C14,'Building RSF'!$A$3:$A$109,0),FALSE)","v":0},null,{"$f":"HLOOKUP($C$4,'rent dollars FY22'!$A$3:$AL$108,MATCH($C14,'rent dollars FY22'!$A$3:$A$108,0),FALSE)","v":0},{"$f":"HLOOKUP($C$4,'Debt Dollars FY22'!$C$5:$AN$110,MATCH($C14,'Debt Dollars FY22'!$A$5:$A$110,0),FALSE)","v":0},{"$f":"HLOOKUP($C$4,'CC dollars FY22'!$B$6:$AR$111,MATCH($C14,'CC dollars FY22'!$B$6:$B$111,0),FALSE)","v":0},0,0,0,null,{"$f":"HLOOKUP($C$4,'rent dollars FY23'!$A$3:$AL$108,MATCH($C14,'rent dollars FY23'!$A$3:$A$108,0),FALSE)","v":0},{"$f":"HLOOKUP($C$4,'Debt Dollars FY23'!$C$5:$AN$110,MATCH($C14,'Debt Dollars FY23'!$A$5:$A$110,0),FALSE)","v":0},{"$f":"HLOOKUP($C$4,'CC dollars FY23'!$B$6:$AR$111,MATCH($C14,'CC dollars FY23'!$B$6:$B$111,0),FALSE)","v":0},0,0,0]
["HIDE",null,"040 - Statute Law Committee (Code Revisor)",{"$f":"HLOOKUP($C$4,'Building RSF'!$A$3:$AK$109,MATCH($C15,'Building RSF'!$A$3:$A$109,0),FALSE)","v":0},null,{"$f":"HLOOKUP($C$4,'rent dollars FY22'!$A$3:$AL$108,MATCH($C15,'rent dollars FY22'!$A$3:$A$108,0),FALSE)","v":0},{"$f":"HLOOKUP($C$4,'Debt Dollars FY22'!$C$5:$AN$110,MATCH($C15,'Debt Dollars FY22'!$A$5:$A$110,0),FALSE)","v":0},{"$f":"HLOOKUP($C$4,'CC dollars FY22'!$B$6:$AR$111,MATCH($C15,'CC dollars FY22'!$B$6:$B$111,0),FALSE)","v":0},0,0,0,null,{"$f":"HLOOKUP($C$4,'rent dollars FY23'!$A$3:$AL$108,MATCH($C15,'rent dollars FY23'!$A$3:$A$108,0),FALSE)","v":0},{"$f":"HLOOKUP($C$4,'Debt Dollars FY23'!$C$5:$AN$110,MATCH($C15,'Debt Dollars FY23'!$A$5:$A$110,0),FALSE)","v":0},{"$f":"HLOOKUP($C$4,'CC dollars FY23'!$B$6:$AR$111,MATCH($C15,'CC dollars FY23'!$B$6:$B$111,0),FALSE)","v":0},0,0,0]
["HIDE",null,"045 - Supreme Court",{"$f":"HLOOKUP($C$4,'Building RSF'!$A$3:$AK$109,MATCH($C16,'Building RSF'!$A$3:$A$109,0),FALSE)","v":0},null,{"$f":"HLOOKUP($C$4,'rent dollars FY22'!$A$3:$AL$108,MATCH($C16,'rent dollars FY22'!$A$3:$A$108,0),FALSE)","v":0},{"$f":"HLOOKUP($C$4,'Debt Dollars FY22'!$C$5:$AN$110,MATCH($C16,'Debt Dollars FY22'!$A$5:$A$110,0),FALSE)","v":0},{"$f":"HLOOKUP($C$4,'CC dollars FY22'!$B$6:$AR$111,MATCH($C16,'CC dollars FY22'!$B$6:$B$111,0),FALSE)","v":0},0,0,0,null,{"$f":"HLOOKUP($C$4,'rent dollars FY23'!$A$3:$AL$108,MATCH($C16,'rent dollars FY23'!$A$3:$A$108,0),FALSE)","v":0},{"$f":"HLOOKUP($C$4,'Debt Dollars FY23'!$C$5:$AN$110,MATCH($C16,'Debt Dollars FY23'!$A$5:$A$110,0),FALSE)","v":0},{"$f":"HLOOKUP($C$4,'CC dollars FY23'!$B$6:$AR$111,MATCH($C16,'CC dollars FY23'!$B$6:$B$111,0),FALSE)","v":0},0,0,0]
["HIDE",null,"046 - Law Library",{"$f":"HLOOKUP($C$4,'Building RSF'!$A$3:$AK$109,MATCH($C17,'Building RSF'!$A$3:$A$109,0),FALSE)","v":0},null,{"$f":"HLOOKUP($C$4,'rent dollars FY22'!$A$3:$AL$108,MATCH($C17,'rent dollars FY22'!$A$3:$A$108,0),FALSE)","v":0},{"$f":"HLOOKUP($C$4,'Debt Dollars FY22'!$C$5:$AN$110,MATCH($C17,'Debt Dollars FY22'!$A$5:$A$110,0),FALSE)","v":0},{"$f":"HLOOKUP($C$4,'CC dollars FY22'!$B$6:$AR$111,MATCH($C17,'CC dollars FY22'!$B$6:$B$111,0),FALSE)","v":0},0,0,0,null,{"$f":"HLOOKUP($C$4,'rent dollars FY23'!$A$3:$AL$108,MATCH($C17,'rent dollars FY23'!$A$3:$A$108,0),FALSE)","v":0},{"$f":"HLOOKUP($C$4,'Debt Dollars FY23'!$C$5:$AN$110,MATCH($C17,'Debt Dollars FY23'!$A$5:$A$110,0),FALSE)","v":0},{"$f":"HLOOKUP($C$4,'CC dollars FY23'!$B$6:$AR$111,MATCH($C17,'CC dollars FY23'!$B$6:$B$111,0),FALSE)","v":0},0,0,0]
["HIDE",null,"048 - Court of Appeals",{"$f":"HLOOKUP($C$4,'Building RSF'!$A$3:$AK$109,MATCH($C18,'Building RSF'!$A$3:$A$109,0),FALSE)","v":0},null,{"$f":"HLOOKUP($C$4,'rent dollars FY22'!$A$3:$AL$108,MATCH($C18,'rent dollars FY22'!$A$3:$A$108,0),FALSE)","v":0},{"$f":"HLOOKUP($C$4,'Debt Dollars FY22'!$C$5:$AN$110,MATCH($C18,'Debt Dollars FY22'!$A$5:$A$110,0),FALSE)","v":0},{"$f":"HLOOKUP($C$4,'CC dollars FY22'!$B$6:$AR$111,MATCH($C18,'CC dollars FY22'!$B$6:$B$111,0),FALSE)","v":0},0,0,0,null,{"$f":"HLOOKUP($C$4,'rent dollars FY23'!$A$3:$AL$108,MATCH($C18,'rent dollars FY23'!$A$3:$A$108,0),FALSE)","v":0},{"$f":"HLOOKUP($C$4,'Debt Dollars FY23'!$C$5:$AN$110,MATCH($C18,'Debt Dollars FY23'!$A$5:$A$110,0),FALSE)","v":0},{"$f":"HLOOKUP($C$4,'CC dollars FY23'!$B$6:$AR$111,MATCH($C18,'CC dollars FY23'!$B$6:$B$111,0),FALSE)","v":0},0,0,0]
["HIDE",null,"050 - Commission on Judicial Conduct",{"$f":"HLOOKUP($C$4,'Building RSF'!$A$3:$AK$109,MATCH($C19,'Building RSF'!$A$3:$A$109,0),FALSE)","v":0},null,{"$f":"HLOOKUP($C$4,'rent dollars FY22'!$A$3:$AL$108,MATCH($C19,'rent dollars FY22'!$A$3:$A$108,0),FALSE)","v":0},{"$f":"HLOOKUP($C$4,'Debt Dollars FY22'!$C$5:$AN$110,MATCH($C19,'Debt Dollars FY22'!$A$5:$A$110,0),FALSE)","v":0},{"$f":"HLOOKUP($C$4,'CC dollars FY22'!$B$6:$AR$111,MATCH($C19,'CC dollars FY22'!$B$6:$B$111,0),FALSE)","v":0},0,0,0,null,{"$f":"HLOOKUP($C$4,'rent dollars FY23'!$A$3:$AL$108,MATCH($C19,'rent dollars FY23'!$A$3:$A$108,0),FALSE)","v":0},{"$f":"HLOOKUP($C$4,'Debt Dollars FY23'!$C$5:$AN$110,MATCH($C19,'Debt Dollars FY23'!$A$5:$A$110,0),FALSE)","v":0},{"$f":"HLOOKUP($C$4,'CC dollars FY23'!$B$6:$AR$111,MATCH($C19,'CC dollars FY23'!$B$6:$B$111,0),FALSE)","v":0},0,0,0]
["HIDE",null,"055 - Administrative Office of the Courts",{"$f":"HLOOKUP($C$4,'Building RSF'!$A$3:$AK$109,MATCH($C20,'Building RSF'!$A$3:$A$109,0),FALSE)","v":0},null,{"$f":"HLOOKUP($C$4,'rent dollars FY22'!$A$3:$AL$108,MATCH($C20,'rent dollars FY22'!$A$3:$A$108,0),FALSE)","v":0},{"$f":"HLOOKUP($C$4,'Debt Dollars FY22'!$C$5:$AN$110,MATCH($C20,'Debt Dollars FY22'!$A$5:$A$110,0),FALSE)","v":0},{"$f":"HLOOKUP($C$4,'CC dollars FY22'!$B$6:$AR$111,MATCH($C20,'CC dollars FY22'!$B$6:$B$111,0),FALSE)","v":0},0,0,0,null,{"$f":"HLOOKUP($C$4,'rent dollars FY23'!$A$3:$AL$108,MATCH($C20,'rent dollars FY23'!$A$3:$A$108,0),FALSE)","v":0},{"$f":"HLOOKUP($C$4,'Debt Dollars FY23'!$C$5:$AN$110,MATCH($C20,'Debt Dollars FY23'!$A$5:$A$110,0),FALSE)","v":0},{"$f":"HLOOKUP($C$4,'CC dollars FY23'!$B$6:$AR$111,MATCH($C20,'CC dollars FY23'!$B$6:$B$111,0),FALSE)","v":0},0,0,0]
["HIDE",null,"056 - Office of Public Defense",{"$f":"HLOOKUP($C$4,'Building RSF'!$A$3:$AK$109,MATCH($C21,'Building RSF'!$A$3:$A$109,0),FALSE)","v":0},null,{"$f":"HLOOKUP($C$4,'rent dollars FY22'!$A$3:$AL$108,MATCH($C21,'rent dollars FY22'!$A$3:$A$108,0),FALSE)","v":0},{"$f":"HLOOKUP($C$4,'Debt Dollars FY22'!$C$5:$AN$110,MATCH($C21,'Debt Dollars FY22'!$A$5:$A$110,0),FALSE)","v":0},{"$f":"HLOOKUP($C$4,'CC dollars FY22'!$B$6:$AR$111,MATCH($C21,'CC dollars FY22'!$B$6:$B$111,0),FALSE)","v":0},0,0,0,null,{"$f":"HLOOKUP($C$4,'rent dollars FY23'!$A$3:$AL$108,MATCH($C21,'rent dollars FY23'!$A$3:$A$108,0),FALSE)","v":0},{"$f":"HLOOKUP($C$4,'Debt Dollars FY23'!$C$5:$AN$110,MATCH($C21,'Debt Dollars FY23'!$A$5:$A$110,0),FALSE)","v":0},{"$f":"HLOOKUP($C$4,'CC dollars FY23'!$B$6:$AR$111,MATCH($C21,'CC dollars FY23'!$B$6:$B$111,0),FALSE)","v":0},0,0,0]
["HIDE",null,"057 - Office of Civil Legal Aid",{"$f":"HLOOKUP($C$4,'Building RSF'!$A$3:$AK$109,MATCH($C22,'Building RSF'!$A$3:$A$109,0),FALSE)","v":0},null,{"$f":"HLOOKUP($C$4,'rent dollars FY22'!$A$3:$AL$108,MATCH($C22,'rent dollars FY22'!$A$3:$A$108,0),FALSE)","v":0},{"$f":"HLOOKUP($C$4,'Debt Dollars FY22'!$C$5:$AN$110,MATCH($C22,'Debt Dollars FY22'!$A$5:$A$110,0),FALSE)","v":0},{"$f":"HLOOKUP($C$4,'CC dollars FY22'!$B$6:$AR$111,MATCH($C22,'CC dollars FY22'!$B$6:$B$111,0),FALSE)","v":0},0,0,0,null,{"$f":"HLOOKUP($C$4,'rent dollars FY23'!$A$3:$AL$108,MATCH($C22,'rent dollars FY23'!$A$3:$A$108,0),FALSE)","v":0},{"$f":"HLOOKUP($C$4,'Debt Dollars FY23'!$C$5:$AN$110,MATCH($C22,'Debt Dollars FY23'!$A$5:$A$110,0),FALSE)","v":0},{"$f":"HLOOKUP($C$4,'CC dollars FY23'!$B$6:$AR$111,MATCH($C22,'CC dollars FY23'!$B$6:$B$111,0),FALSE)","v":0},0,0,0]
["HIDE",null,"075 - Office of the Governor",{"$f":"HLOOKUP($C$4,'Building RSF'!$A$3:$AK$109,MATCH($C23,'Building RSF'!$A$3:$A$109,0),FALSE)","v":0},null,{"$f":"HLOOKUP($C$4,'rent dollars FY22'!$A$3:$AL$108,MATCH($C23,'rent dollars FY22'!$A$3:$A$108,0),FALSE)","v":0},{"$f":"HLOOKUP($C$4,'Debt Dollars FY22'!$C$5:$AN$110,MATCH($C23,'Debt Dollars FY22'!$A$5:$A$110,0),FALSE)","v":0},{"$f":"HLOOKUP($C$4,'CC dollars FY22'!$B$6:$AR$111,MATCH($C23,'CC dollars FY22'!$B$6:$B$111,0),FALSE)","v":0},0,0,0,null,{"$f":"HLOOKUP($C$4,'rent dollars FY23'!$A$3:$AL$108,MATCH($C23,'rent dollars FY23'!$A$3:$A$108,0),FALSE)","v":0},{"$f":"HLOOKUP($C$4,'Debt Dollars FY23'!$C$5:$AN$110,MATCH($C23,'Debt Dollars FY23'!$A$5:$A$110,0),FALSE)","v":0},{"$f":"HLOOKUP($C$4,'CC dollars FY23'!$B$6:$AR$111,MATCH($C23,'CC dollars FY23'!$B$6:$B$111,0),FALSE)","v":0},0,0,0]
["HIDE",null,"080 - Office of Lieutenant Governor",{"$f":"HLOOKUP($C$4,'Building RSF'!$A$3:$AK$109,MATCH($C24,'Building RSF'!$A$3:$A$109,0),FALSE)","v":0},null,{"$f":"HLOOKUP($C$4,'rent dollars FY22'!$A$3:$AL$108,MATCH($C24,'rent dollars FY22'!$A$3:$A$108,0),FALSE)","v":0},{"$f":"HLOOKUP($C$4,'Debt Dollars FY22'!$C$5:$AN$110,MATCH($C24,'Debt Dollars FY22'!$A$5:$A$110,0),FALSE)","v":0},{"$f":"HLOOKUP($C$4,'CC dollars FY22'!$B$6:$AR$111,MATCH($C24,'CC dollars FY22'!$B$6:$B$111,0),FALSE)","v":0},0,0,0,null,{"$f":"HLOOKUP($C$4,'rent dollars FY23'!$A$3:$AL$108,MATCH($C24,'rent dollars FY23'!$A$3:$A$108,0),FALSE)","v":0},{"$f":"HLOOKUP($C$4,'Debt Dollars FY23'!$C$5:$AN$110,MATCH($C24,'Debt Dollars FY23'!$A$5:$A$110,0),FALSE)","v":0},{"$f":"HLOOKUP($C$4,'CC dollars FY23'!$B$6:$AR$111,MATCH($C24,'CC dollars FY23'!$B$6:$B$111,0),FALSE)","v":0},0,0,0]
["HIDE",null,"082 - Public Disclosure Commission",{"$f":"HLOOKUP($C$4,'Building RSF'!$A$3:$AK$109,MATCH($C25,'Building RSF'!$A$3:$A$109,0),FALSE)","v":0},null,{"$f":"HLOOKUP($C$4,'rent dollars FY22'!$A$3:$AL$108,MATCH($C25,'rent dollars FY22'!$A$3:$A$108,0),FALSE)","v":0},{"$f":"HLOOKUP($C$4,'Debt Dollars FY22'!$C$5:$AN$110,MATCH($C25,'Debt Dollars FY22'!$A$5:$A$110,0),FALSE)","v":0},{"$f":"HLOOKUP($C$4,'CC dollars FY22'!$B$6:$AR$111,MATCH($C25,'CC dollars FY22'!$B$6:$B$111,0),FALSE)","v":0},0,0,0,null,{"$f":"HLOOKUP($C$4,'rent dollars FY23'!$A$3:$AL$108,MATCH($C25,'rent dollars FY23'!$A$3:$A$108,0),FALSE)","v":0},{"$f":"HLOOKUP($C$4,'Debt Dollars FY23'!$C$5:$AN$110,MATCH($C25,'Debt Dollars FY23'!$A$5:$A$110,0),FALSE)","v":0},{"$f":"HLOOKUP($C$4,'CC dollars FY23'!$B$6:$AR$111,MATCH($C25,'CC dollars FY23'!$B$6:$B$111,0),FALSE)","v":0},0,0,0]
["HIDE",null,"085 - Office of the Secretary of State",{"$f":"HLOOKUP($C$4,'Building RSF'!$A$3:$AK$109,MATCH($C26,'Building RSF'!$A$3:$A$109,0),FALSE)","v":0},null,{"$f":"HLOOKUP($C$4,'rent dollars FY22'!$A$3:$AL$108,MATCH($C26,'rent dollars FY22'!$A$3:$A$108,0),FALSE)","v":0},{"$f":"HLOOKUP($C$4,'Debt Dollars FY22'!$C$5:$AN$110,MATCH($C26,'Debt Dollars FY22'!$A$5:$A$110,0),FALSE)","v":0},{"$f":"HLOOKUP($C$4,'CC dollars FY22'!$B$6:$AR$111,MATCH($C26,'CC dollars FY22'!$B$6:$B$111,0),FALSE)","v":0},0,0,0,null,{"$f":"HLOOKUP($C$4,'rent dollars FY23'!$A$3:$AL$108,MATCH($C26,'rent dollars FY23'!$A$3:$A$108,0),FALSE)","v":0},{"$f":"HLOOKUP($C$4,'Debt Dollars FY23'!$C$5:$AN$110,MATCH($C26,'Debt Dollars FY23'!$A$5:$A$110,0),FALSE)","v":0},{"$f":"HLOOKUP($C$4,'CC dollars FY23'!$B$6:$AR$111,MATCH($C26,'CC dollars FY23'!$B$6:$B$111,0),FALSE)","v":0},0,0,0]
["HIDE",null,"086 - Governor's Office of Indian Affairs",{"$f":"HLOOKUP($C$4,'Building RSF'!$A$3:$AK$109,MATCH($C27,'Building RSF'!$A$3:$A$109,0),FALSE)","v":0},null,{"$f":"HLOOKUP($C$4,'rent dollars FY22'!$A$3:$AL$108,MATCH($C27,'rent dollars FY22'!$A$3:$A$108,0),FALSE)","v":0},{"$f":"HLOOKUP($C$4,'Debt Dollars FY22'!$C$5:$AN$110,MATCH($C27,'Debt Dollars FY22'!$A$5:$A$110,0),FALSE)","v":0},{"$f":"HLOOKUP($C$4,'CC dollars FY22'!$B$6:$AR$111,MATCH($C27,'CC dollars FY22'!$B$6:$B$111,0),FALSE)","v":0},0,0,0,null,{"$f":"HLOOKUP($C$4,'rent dollars FY23'!$A$3:$AL$108,MATCH($C27,'rent dollars FY23'!$A$3:$A$108,0),FALSE)","v":0},{"$f":"HLOOKUP($C$4,'Debt Dollars FY23'!$C$5:$AN$110,MATCH($C27,'Debt Dollars FY23'!$A$5:$A$110,0),FALSE)","v":0},{"$f":"HLOOKUP($C$4,'CC dollars FY23'!$B$6:$AR$111,MATCH($C27,'CC dollars FY23'!$B$6:$B$111,0),FALSE)","v":0},{"$f":"SUM(M27:O27)","v":0},0,{"$f":"IFERROR(P27/D27,0)","v":0}]
["HIDE",null,"087 - Commission on Asian Pacific American Affairs",{"$f":"HLOOKUP($C$4,'Building RSF'!$A$3:$AK$109,MATCH($C28,'Building RSF'!$A$3:$A$109,0),FALSE)","v":0},null,{"$f":"HLOOKUP($C$4,'rent dollars FY22'!$A$3:$AL$108,MATCH($C28,'rent dollars FY22'!$A$3:$A$108,0),FALSE)","v":0},{"$f":"HLOOKUP($C$4,'Debt Dollars FY22'!$C$5:$AN$110,MATCH($C28,'Debt Dollars FY22'!$A$5:$A$110,0),FALSE)","v":0},{"$f":"HLOOKUP($C$4,'CC dollars FY22'!$B$6:$AR$111,MATCH($C28,'CC dollars FY22'!$B$6:$B$111,0),FALSE)","v":0},0,0,0,null,{"$f":"HLOOKUP($C$4,'rent dollars FY23'!$A$3:$AL$108,MATCH($C28,'rent dollars FY23'!$A$3:$A$108,0),FALSE)","v":0},{"$f":"HLOOKUP($C$4,'Debt Dollars FY23'!$C$5:$AN$110,MATCH($C28,'Debt Dollars FY23'!$A$5:$A$110,0),FALSE)","v":0},{"$f":"HLOOKUP($C$4,'CC dollars FY23'!$B$6:$AR$111,MATCH($C28,'CC dollars FY23'!$B$6:$B$111,0),FALSE)","v":0},0,0,0]
["HIDE",null,"090 - Office of State Treasurer",{"$f":"HLOOKUP($C$4,'Building RSF'!$A$3:$AK$109,MATCH($C29,'Building RSF'!$A$3:$A$109,0),FALSE)","v":0},null,{"$f":"HLOOKUP($C$4,'rent dollars FY22'!$A$3:$AL$108,MATCH($C29,'rent dollars FY22'!$A$3:$A$108,0),FALSE)","v":0},{"$f":"HLOOKUP($C$4,'Debt Dollars FY22'!$C$5:$AN$110,MATCH($C29,'Debt Dollars FY22'!$A$5:$A$110,0),FALSE)","v":0},{"$f":"HLOOKUP($C$4,'CC dollars FY22'!$B$6:$AR$111,MATCH($C29,'CC dollars FY22'!$B$6:$B$111,0),FALSE)","v":0},0,0,0,null,{"$f":"HLOOKUP($C$4,'rent dollars FY23'!$A$3:$AL$108,MATCH($C29,'rent dollars FY23'!$A$3:$A$108,0),FALSE)","v":0},{"$f":"HLOOKUP($C$4,'Debt Dollars FY23'!$C$5:$AN$110,MATCH($C29,'Debt Dollars FY23'!$A$5:$A$110,0),FALSE)","v":0},{"$f":"HLOOKUP($C$4,'CC dollars FY23'!$B$6:$AR$111,MATCH($C29,'CC dollars FY23'!$B$6:$B$111,0),FALSE)","v":0},0,0,0]
["HIDE",null,"095 - Office of State Auditor",{"$f":"HLOOKUP($C$4,'Building RSF'!$A$3:$AK$109,MATCH($C30,'Building RSF'!$A$3:$A$109,0),FALSE)","v":0},null,{"$f":"HLOOKUP($C$4,'rent dollars FY22'!$A$3:$AL$108,MATCH($C30,'rent dollars FY22'!$A$3:$A$108,0),FALSE)","v":0},{"$f":"HLOOKUP($C$4,'Debt Dollars FY22'!$C$5:$AN$110,MATCH($C30,'Debt Dollars FY22'!$A$5:$A$110,0),FALSE)","v":0},{"$f":"HLOOKUP($C$4,'CC dollars FY22'!$B$6:$AR$111,MATCH($C30,'CC dollars FY22'!$B$6:$B$111,0),FALSE)","v":0},0,0,0,null,{"$f":"HLOOKUP($C$4,'rent dollars FY23'!$A$3:$AL$108,MATCH($C30,'rent dollars FY23'!$A$3:$A$108,0),FALSE)","v":0},{"$f":"HLOOKUP($C$4,'Debt Dollars FY23'!$C$5:$AN$110,MATCH($C30,'Debt Dollars FY23'!$A$5:$A$110,0),FALSE)","v":0},{"$f":"HLOOKUP($C$4,'CC dollars FY23'!$B$6:$AR$111,MATCH($C30,'CC dollars FY23'!$B$6:$B$111,0),FALSE)","v":0},0,0,0]
["HIDE",null,"099 - Citizens' Commission on Salaries for Elected Officials",{"$f":"HLOOKUP($C$4,'Building RSF'!$A$3:$AK$109,MATCH($C31,'Building RSF'!$A$3:$A$109,0),FALSE)","v":0},null,{"$f":"HLOOKUP($C$4,'rent dollars FY22'!$A$3:$AL$108,MATCH($C31,'rent dollars FY22'!$A$3:$A$108,0),FALSE)","v":0},{"$f":"HLOOKUP($C$4,'Debt Dollars FY22'!$C$5:$AN$110,MATCH($C31,'Debt Dollars FY22'!$A$5:$A$110,0),FALSE)","v":0},{"$f":"HLOOKUP($C$4,'CC dollars FY22'!$B$6:$AR$111,MATCH($C31,'CC dollars FY22'!$B$6:$B$111,0),FALSE)","v":0},0,0,0,null,{"$f":"HLOOKUP($C$4,'rent dollars FY23'!$A$3:$AL$108,MATCH($C31,'rent dollars FY23'!$A$3:$A$108,0),FALSE)","v":0},{"$f":"HLOOKUP($C$4,'Debt Dollars FY23'!$C$5:$AN$110,MATCH($C31,'Debt Dollars FY23'!$A$5:$A$110,0),FALSE)","v":0},{"$f":"HLOOKUP($C$4,'CC dollars FY23'!$B$6:$AR$111,MATCH($C31,'CC dollars FY23'!$B$6:$B$111,0),FALSE)","v":0},0,0,0]
["HIDE",null,"100 - Office of Attorney General",{"$f":"HLOOKUP($C$4,'Building RSF'!$A$3:$AK$109,MATCH($C32,'Building RSF'!$A$3:$A$109,0),FALSE)","v":0},null,{"$f":"HLOOKUP($C$4,'rent dollars FY22'!$A$3:$AL$108,MATCH($C32,'rent dollars FY22'!$A$3:$A$108,0),FALSE)","v":0},{"$f":"HLOOKUP($C$4,'Debt Dollars FY22'!$C$5:$AN$110,MATCH($C32,'Debt Dollars FY22'!$A$5:$A$110,0),FALSE)","v":0},{"$f":"HLOOKUP($C$4,'CC dollars FY22'!$B$6:$AR$111,MATCH($C32,'CC dollars FY22'!$B$6:$B$111,0),FALSE)","v":0},0,0,0,null,{"$f":"HLOOKUP($C$4,'rent dollars FY23'!$A$3:$AL$108,MATCH($C32,'rent dollars FY23'!$A$3:$A$108,0),FALSE)","v":0},{"$f":"HLOOKUP($C$4,'Debt Dollars FY23'!$C$5:$AN$110,MATCH($C32,'Debt Dollars FY23'!$A$5:$A$110,0),FALSE)","v":0},{"$f":"HLOOKUP($C$4,'CC dollars FY23'!$B$6:$AR$111,MATCH($C32,'CC dollars FY23'!$B$6:$B$111,0),FALSE)","v":0},0,0,0]
["HIDE",null,"101 - Caseload Forecast Council",{"$f":"HLOOKUP($C$4,'Building RSF'!$A$3:$AK$109,MATCH($C33,'Building RSF'!$A$3:$A$109,0),FALSE)","v":0},null,{"$f":"HLOOKUP($C$4,'rent dollars FY22'!$A$3:$AL$108,MATCH($C33,'rent dollars FY22'!$A$3:$A$108,0),FALSE)","v":0},{"$f":"HLOOKUP($C$4,'Debt Dollars FY22'!$C$5:$AN$110,MATCH($C33,'Debt Dollars FY22'!$A$5:$A$110,0),FALSE)","v":0},{"$f":"HLOOKUP($C$4,'CC dollars FY22'!$B$6:$AR$111,MATCH($C33,'CC dollars FY22'!$B$6:$B$111,0),FALSE)","v":0},0,0,0,null,{"$f":"HLOOKUP($C$4,'rent dollars FY23'!$A$3:$AL$108,MATCH($C33,'rent dollars FY23'!$A$3:$A$108,0),FALSE)","v":0},{"$f":"HLOOKUP($C$4,'Debt Dollars FY23'!$C$5:$AN$110,MATCH($C33,'Debt Dollars FY23'!$A$5:$A$110,0),FALSE)","v":0},{"$f":"HLOOKUP($C$4,'CC dollars FY23'!$B$6:$AR$111,MATCH($C33,'CC dollars FY23'!$B$6:$B$111,0),FALSE)","v":0},0,0,0]
["HIDE",null,"102 - Department of Financial Institutions",{"$f":"HLOOKUP($C$4,'Building RSF'!$A$3:$AK$109,MATCH($C34,'Building RSF'!$A$3:$A$109,0),FALSE)","v":0},null,{"$f":"HLOOKUP($C$4,'rent dollars FY22'!$A$3:$AL$108,MATCH($C34,'rent dollars FY22'!$A$3:$A$108,0),FALSE)","v":0},{"$f":"HLOOKUP($C$4,'Debt Dollars FY22'!$C$5:$AN$110,MATCH($C34,'Debt Dollars FY22'!$A$5:$A$110,0),FALSE)","v":0},{"$f":"HLOOKUP($C$4,'CC dollars FY22'!$B$6:$AR$111,MATCH($C34,'CC dollars FY22'!$B$6:$B$111,0),FALSE)","v":0},0,0,0,null,{"$f":"HLOOKUP($C$4,'rent dollars FY23'!$A$3:$AL$108,MATCH($C34,'rent dollars FY23'!$A$3:$A$108,0),FALSE)","v":0},{"$f":"HLOOKUP($C$4,'Debt Dollars FY23'!$C$5:$AN$110,MATCH($C34,'Debt Dollars FY23'!$A$5:$A$110,0),FALSE)","v":0},{"$f":"HLOOKUP($C$4,'CC dollars FY23'!$B$6:$AR$111,MATCH($C34,'CC dollars FY23'!$B$6:$B$111,0),FALSE)","v":0},0,0,0]
["HIDE",null,"103 - Department of Commerce",{"$f":"HLOOKUP($C$4,'Building RSF'!$A$3:$AK$109,MATCH($C35,'Building RSF'!$A$3:$A$109,0),FALSE)","v":0},null,{"$f":"HLOOKUP($C$4,'rent dollars FY22'!$A$3:$AL$108,MATCH($C35,'rent dollars FY22'!$A$3:$A$108,0),FALSE)","v":0},{"$f":"HLOOKUP($C$4,'Debt Dollars FY22'!$C$5:$AN$110,MATCH($C35,'Debt Dollars FY22'!$A$5:$A$110,0),FALSE)","v":0},{"$f":"HLOOKUP($C$4,'CC dollars FY22'!$B$6:$AR$111,MATCH($C35,'CC dollars FY22'!$B$6:$B$111,0),FALSE)","v":0},0,0,0,null,{"$f":"HLOOKUP($C$4,'rent dollars FY23'!$A$3:$AL$108,MATCH($C35,'rent dollars FY23'!$A$3:$A$108,0),FALSE)","v":0},{"$f":"HLOOKUP($C$4,'Debt Dollars FY23'!$C$5:$AN$110,MATCH($C35,'Debt Dollars FY23'!$A$5:$A$110,0),FALSE)","v":0},{"$f":"HLOOKUP($C$4,'CC dollars FY23'!$B$6:$AR$111,MATCH($C35,'CC dollars FY23'!$B$6:$B$111,0),FALSE)","v":0},0,0,0]
["HIDE",null,"104 - Economic and Revenue Forecast Council",{"$f":"HLOOKUP($C$4,'Building RSF'!$A$3:$AK$109,MATCH($C36,'Building RSF'!$A$3:$A$109,0),FALSE)","v":0},null,{"$f":"HLOOKUP($C$4,'rent dollars FY22'!$A$3:$AL$108,MATCH($C36,'rent dollars FY22'!$A$3:$A$108,0),FALSE)","v":0},{"$f":"HLOOKUP($C$4,'Debt Dollars FY22'!$C$5:$AN$110,MATCH($C36,'Debt Dollars FY22'!$A$5:$A$110,0),FALSE)","v":0},{"$f":"HLOOKUP($C$4,'CC dollars FY22'!$B$6:$AR$111,MATCH($C36,'CC dollars FY22'!$B$6:$B$111,0),FALSE)","v":0},0,0,0,null,{"$f":"HLOOKUP($C$4,'rent dollars FY23'!$A$3:$AL$108,MATCH($C36,'rent dollars FY23'!$A$3:$A$108,0),FALSE)","v":0},{"$f":"HLOOKUP($C$4,'Debt Dollars FY23'!$C$5:$AN$110,MATCH($C36,'Debt Dollars FY23'!$A$5:$A$110,0),FALSE)","v":0},{"$f":"HLOOKUP($C$4,'CC dollars FY23'!$B$6:$AR$111,MATCH($C36,'CC dollars FY23'!$B$6:$B$111,0),FALSE)","v":0},0,0,0]
["HIDE",null,"105 - Office of Financial Management",{"$f":"HLOOKUP($C$4,'Building RSF'!$A$3:$AK$109,MATCH($C37,'Building RSF'!$A$3:$A$109,0),FALSE)","v":0},null,{"$f":"HLOOKUP($C$4,'rent dollars FY22'!$A$3:$AL$108,MATCH($C37,'rent dollars FY22'!$A$3:$A$108,0),FALSE)","v":0},{"$f":"HLOOKUP($C$4,'Debt Dollars FY22'!$C$5:$AN$110,MATCH($C37,'Debt Dollars FY22'!$A$5:$A$110,0),FALSE)","v":0},{"$f":"HLOOKUP($C$4,'CC dollars FY22'!$B$6:$AR$111,MATCH($C37,'CC dollars FY22'!$B$6:$B$111,0),FALSE)","v":0},0,0,0,null,{"$f":"HLOOKUP($C$4,'rent dollars FY23'!$A$3:$AL$108,MATCH($C37,'rent dollars FY23'!$A$3:$A$108,0),FALSE)","v":0},{"$f":"HLOOKUP($C$4,'Debt Dollars FY23'!$C$5:$AN$110,MATCH($C37,'Debt Dollars FY23'!$A$5:$A$110,0),FALSE)","v":0},{"$f":"HLOOKUP($C$4,'CC dollars FY23'!$B$6:$AR$111,MATCH($C37,'CC dollars FY23'!$B$6:$B$111,0),FALSE)","v":0},0,0,0]
["HIDE",null,"107 - Washington State Health Care Authority",{"$f":"HLOOKUP($C$4,'Building RSF'!$A$3:$AK$109,MATCH($C38,'Building RSF'!$A$3:$A$109,0),FALSE)","v":0},{"$f":"SUM(E7:E37)","v":0},{"$f":"HLOOKUP($C$4,'rent dollars FY22'!$A$3:$AL$108,MATCH($C38,'rent dollars FY22'!$A$3:$A$108,0),FALSE)","v":0},{"$f":"HLOOKUP($C$4,'Debt Dollars FY22'!$C$5:$AN$110,MATCH($C38,'Debt Dollars FY22'!$A$5:$A$110,0),FALSE)","v":0},{"$f":"HLOOKUP($C$4,'CC dollars FY22'!$B$6:$AR$111,MATCH($C38,'CC dollars FY22'!$B$6:$B$111,0),FALSE)","v":0},{"$f":"SUM(F38:H38)","v":0},0,{"$f":"IFERROR(I38/D38,0)","v":0},null,{"$f":"HLOOKUP($C$4,'rent dollars FY23'!$A$3:$AL$108,MATCH($C38,'rent dollars FY23'!$A$3:$A$108,0),FALSE)","v":0},{"$f":"HLOOKUP($C$4,'Debt Dollars FY23'!$C$5:$AN$110,MATCH($C38,'Debt Dollars FY23'!$A$5:$A$110,0),FALSE)","v":0},{"$f":"HLOOKUP($C$4,'CC dollars FY23'!$B$6:$AR$111,MATCH($C38,'CC dollars FY23'!$B$6:$B$111,0),FALSE)","v":0},0,0,0]
["HIDE",null,"110 - Office of Administrative Hearings",{"$f":"HLOOKUP($C$4,'Building RSF'!$A$3:$AK$109,MATCH($C39,'Building RSF'!$A$3:$A$109,0),FALSE)","v":0},null,{"$f":"HLOOKUP($C$4,'rent dollars FY22'!$A$3:$AL$108,MATCH($C39,'rent dollars FY22'!$A$3:$A$108,0),FALSE)","v":0},{"$f":"HLOOKUP($C$4,'Debt Dollars FY22'!$C$5:$AN$110,MATCH($C39,'Debt Dollars FY22'!$A$5:$A$110,0),FALSE)","v":0},{"$f":"HLOOKUP($C$4,'CC dollars FY22'!$B$6:$AR$111,MATCH($C39,'CC dollars FY22'!$B$6:$B$111,0),FALSE)","v":0},{"$f":"SUM(F39:H39)","v":0},0,{"$f":"IFERROR(I39/D39,0)","v":0},null,{"$f":"HLOOKUP($C$4,'rent dollars FY23'!$A$3:$AL$108,MATCH($C39,'rent dollars FY23'!$A$3:$A$108,0),FALSE)","v":0},{"$f":"HLOOKUP($C$4,'Debt Dollars FY23'!$C$5:$AN$110,MATCH($C39,'Debt Dollars FY23'!$A$5:$A$110,0),FALSE)","v":0},{"$f":"HLOOKUP($C$4,'CC dollars FY23'!$B$6:$AR$111,MATCH($C39,'CC dollars FY23'!$B$6:$B$111,0),FALSE)","v":0},{"$f":"SUM(M39:O39)","v":0},0,{"$f":"IFERROR(P39/D39,0)","v":0}]
["HIDE",null,"116 - State Lottery",{"$f":"HLOOKUP($C$4,'Building RSF'!$A$3:$AK$109,MATCH($C40,'Building RSF'!$A$3:$A$109,0),FALSE)","v":0},null,{"$f":"HLOOKUP($C$4,'rent dollars FY22'!$A$3:$AL$108,MATCH($C40,'rent dollars FY22'!$A$3:$A$108,0),FALSE)","v":0},{"$f":"HLOOKUP($C$4,'Debt Dollars FY22'!$C$5:$AN$110,MATCH($C40,'Debt Dollars FY22'!$A$5:$A$110,0),FALSE)","v":0},{"$f":"HLOOKUP($C$4,'CC dollars FY22'!$B$6:$AR$111,MATCH($C40,'CC dollars FY22'!$B$6:$B$111,0),FALSE)","v":0},0,0,0,null,{"$f":"HLOOKUP($C$4,'rent dollars FY23'!$A$3:$AL$108,MATCH($C40,'rent dollars FY23'!$A$3:$A$108,0),FALSE)","v":0},{"$f":"HLOOKUP($C$4,'Debt Dollars FY23'!$C$5:$AN$110,MATCH($C40,'Debt Dollars FY23'!$A$5:$A$110,0),FALSE)","v":0},{"$f":"HLOOKUP($C$4,'CC dollars FY23'!$B$6:$AR$111,MATCH($C40,'CC dollars FY23'!$B$6:$B$111,0),FALSE)","v":0},0,0,0]
["HIDE",null,"117 - Washington State Gambling Commission",{"$f":"HLOOKUP($C$4,'Building RSF'!$A$3:$AK$109,MATCH($C41,'Building RSF'!$A$3:$A$109,0),FALSE)","v":0},null,{"$f":"HLOOKUP($C$4,'rent dollars FY22'!$A$3:$AL$108,MATCH($C41,'rent dollars FY22'!$A$3:$A$108,0),FALSE)","v":0},{"$f":"HLOOKUP($C$4,'Debt Dollars FY22'!$C$5:$AN$110,MATCH($C41,'Debt Dollars FY22'!$A$5:$A$110,0),FALSE)","v":0},{"$f":"HLOOKUP($C$4,'CC dollars FY22'!$B$6:$AR$111,MATCH($C41,'CC dollars FY22'!$B$6:$B$111,0),FALSE)","v":0},0,0,0,null,{"$f":"HLOOKUP($C$4,'rent dollars FY23'!$A$3:$AL$108,MATCH($C41,'rent dollars FY23'!$A$3:$A$108,0),FALSE)","v":0},{"$f":"HLOOKUP($C$4,'Debt Dollars FY23'!$C$5:$AN$110,MATCH($C41,'Debt Dollars FY23'!$A$5:$A$110,0),FALSE)","v":0},{"$f":"HLOOKUP($C$4,'CC dollars FY23'!$B$6:$AR$111,MATCH($C41,'CC dollars FY23'!$B$6:$B$111,0),FALSE)","v":0},0,0,0]
["HIDE",null,"118 - Commission on Hispanic Affairs",{"$f":"HLOOKUP($C$4,'Building RSF'!$A$3:$AK$109,MATCH($C42,'Building RSF'!$A$3:$A$109,0),FALSE)","v":0},null,{"$f":"HLOOKUP($C$4,'rent dollars FY22'!$A$3:$AL$108,MATCH($C42,'rent dollars FY22'!$A$3:$A$108,0),FALSE)","v":0},{"$f":"HLOOKUP($C$4,'Debt Dollars FY22'!$C$5:$AN$110,MATCH($C42,'Debt Dollars FY22'!$A$5:$A$110,0),FALSE)","v":0},{"$f":"HLOOKUP($C$4,'CC dollars FY22'!$B$6:$AR$111,MATCH($C42,'CC dollars FY22'!$B$6:$B$111,0),FALSE)","v":0},0,0,0,null,{"$f":"HLOOKUP($C$4,'rent dollars FY23'!$A$3:$AL$108,MATCH($C42,'rent dollars FY23'!$A$3:$A$108,0),FALSE)","v":0},{"$f":"HLOOKUP($C$4,'Debt Dollars FY23'!$C$5:$AN$110,MATCH($C42,'Debt Dollars FY23'!$A$5:$A$110,0),FALSE)","v":0},{"$f":"HLOOKUP($C$4,'CC dollars FY23'!$B$6:$AR$111,MATCH($C42,'CC dollars FY23'!$B$6:$B$111,0),FALSE)","v":0},0,0,0]
["HIDE",null,"119 - Commission on African-American Affairs",{"$f":"HLOOKUP($C$4,'Building RSF'!$A$3:$AK$109,MATCH($C43,'Building RSF'!$A$3:$A$109,0),FALSE)","v":0},null,{"$f":"HLOOKUP($C$4,'rent dollars FY22'!$A$3:$AL$108,MATCH($C43,'rent dollars FY22'!$A$3:$A$108,0),FALSE)","v":0},{"$f":"HLOOKUP($C$4,'Debt Dollars FY22'!$C$5:$AN$110,MATCH($C43,'Debt Dollars FY22'!$A$5:$A$110,0),FALSE)","v":0},{"$f":"HLOOKUP($C$4,'CC dollars FY22'!$B$6:$AR$111,MATCH($C43,'CC dollars FY22'!$B$6:$B$111,0),FALSE)","v":0},0,0,0,null,{"$f":"HLOOKUP($C$4,'rent dollars FY23'!$A$3:$AL$108,MATCH($C43,'rent dollars FY23'!$A$3:$A$108,0),FALSE)","v":0},{"$f":"HLOOKUP($C$4,'Debt Dollars FY23'!$C$5:$AN$110,MATCH($C43,'Debt Dollars FY23'!$A$5:$A$110,0),FALSE)","v":0},{"$f":"HLOOKUP($C$4,'CC dollars FY23'!$B$6:$AR$111,MATCH($C43,'CC dollars FY23'!$B$6:$B$111,0),FALSE)","v":0},0,0,0]
["HIDE",null,"120 - Human Rights Commission",{"$f":"HLOOKUP($C$4,'Building RSF'!$A$3:$AK$109,MATCH($C44,'Building RSF'!$A$3:$A$109,0),FALSE)","v":0},null,{"$f":"HLOOKUP($C$4,'rent dollars FY22'!$A$3:$AL$108,MATCH($C44,'rent dollars FY22'!$A$3:$A$108,0),FALSE)","v":0},{"$f":"HLOOKUP($C$4,'Debt Dollars FY22'!$C$5:$AN$110,MATCH($C44,'Debt Dollars FY22'!$A$5:$A$110,0),FALSE)","v":0},{"$f":"HLOOKUP($C$4,'CC dollars FY22'!$B$6:$AR$111,MATCH($C44,'CC dollars FY22'!$B$6:$B$111,0),FALSE)","v":0},0,0,0,null,{"$f":"HLOOKUP($C$4,'rent dollars FY23'!$A$3:$AL$108,MATCH($C44,'rent dollars FY23'!$A$3:$A$108,0),FALSE)","v":0},{"$f":"HLOOKUP($C$4,'Debt Dollars FY23'!$C$5:$AN$110,MATCH($C44,'Debt Dollars FY23'!$A$5:$A$110,0),FALSE)","v":0},{"$f":"HLOOKUP($C$4,'CC dollars FY23'!$B$6:$AR$111,MATCH($C44,'CC dollars FY23'!$B$6:$B$111,0),FALSE)","v":0},0,0,0]
["HIDE",null,"124 - Department of Retirement Systems",{"$f":"HLOOKUP($C$4,'Building RSF'!$A$3:$AK$109,MATCH($C45,'Building RSF'!$A$3:$A$109,0),FALSE)","v":0},null,{"$f":"HLOOKUP($C$4,'rent dollars FY22'!$A$3:$AL$108,MATCH($C45,'rent dollars FY22'!$A$3:$A$108,0),FALSE)","v":0},{"$f":"HLOOKUP($C$4,'Debt Dollars FY22'!$C$5:$AN$110,MATCH($C45,'Debt Dollars FY22'!$A$5:$A$110,0),FALSE)","v":0},{"$f":"HLOOKUP($C$4,'CC dollars FY22'!$B$6:$AR$111,MATCH($C45,'CC dollars FY22'!$B$6:$B$111,0),FALSE)","v":0},0,0,0,null,{"$f":"HLOOKUP($C$4,'rent dollars FY23'!$A$3:$AL$108,MATCH($C45,'rent dollars FY23'!$A$3:$A$108,0),FALSE)","v":0},{"$f":"HLOOKUP($C$4,'Debt Dollars FY23'!$C$5:$AN$110,MATCH($C45,'Debt Dollars FY23'!$A$5:$A$110,0),FALSE)","v":0},{"$f":"HLOOKUP($C$4,'CC dollars FY23'!$B$6:$AR$111,MATCH($C45,'CC dollars FY23'!$B$6:$B$111,0),FALSE)","v":0},0,0,0]
["HIDE",null,"126 - State Investment Board",{"$f":"HLOOKUP($C$4,'Building RSF'!$A$3:$AK$109,MATCH($C46,'Building RSF'!$A$3:$A$109,0),FALSE)","v":0},null,{"$f":"HLOOKUP($C$4,'rent dollars FY22'!$A$3:$AL$108,MATCH($C46,'rent dollars FY22'!$A$3:$A$108,0),FALSE)","v":0},{"$f":"HLOOKUP($C$4,'Debt Dollars FY22'!$C$5:$AN$110,MATCH($C46,'Debt Dollars FY22'!$A$5:$A$110,0),FALSE)","v":0},{"$f":"HLOOKUP($C$4,'CC dollars FY22'!$B$6:$AR$111,MATCH($C46,'CC dollars FY22'!$B$6:$B$111,0),FALSE)","v":0},0,0,0,null,{"$f":"HLOOKUP($C$4,'rent dollars FY23'!$A$3:$AL$108,MATCH($C46,'rent dollars FY23'!$A$3:$A$108,0),FALSE)","v":0},{"$f":"HLOOKUP($C$4,'Debt Dollars FY23'!$C$5:$AN$110,MATCH($C46,'Debt Dollars FY23'!$A$5:$A$110,0),FALSE)","v":0},{"$f":"HLOOKUP($C$4,'CC dollars FY23'!$B$6:$AR$111,MATCH($C46,'CC dollars FY23'!$B$6:$B$111,0),FALSE)","v":0},0,0,0]
["HIDE",null,"140 - Department of Revenue",{"$f":"HLOOKUP($C$4,'Building RSF'!$A$3:$AK$109,MATCH($C47,'Building RSF'!$A$3:$A$109,0),FALSE)","v":0},null,{"$f":"HLOOKUP($C$4,'rent dollars FY22'!$A$3:$AL$108,MATCH($C47,'rent dollars FY22'!$A$3:$A$108,0),FALSE)","v":0},{"$f":"HLOOKUP($C$4,'Debt Dollars FY22'!$C$5:$AN$110,MATCH($C47,'Debt Dollars FY22'!$A$5:$A$110,0),FALSE)","v":0},{"$f":"HLOOKUP($C$4,'CC dollars FY22'!$B$6:$AR$111,MATCH($C47,'CC dollars FY22'!$B$6:$B$111,0),FALSE)","v":0},0,0,0,null,{"$f":"HLOOKUP($C$4,'rent dollars FY23'!$A$3:$AL$108,MATCH($C47,'rent dollars FY23'!$A$3:$A$108,0),FALSE)","v":0},{"$f":"HLOOKUP($C$4,'Debt Dollars FY23'!$C$5:$AN$110,MATCH($C47,'Debt Dollars FY23'!$A$5:$A$110,0),FALSE)","v":0},{"$f":"HLOOKUP($C$4,'CC dollars FY23'!$B$6:$AR$111,MATCH($C47,'CC dollars FY23'!$B$6:$B$111,0),FALSE)","v":0},0,0,0]
["HIDE",null,"142 - Board of Tax Appeals",{"$f":"HLOOKUP($C$4,'Building RSF'!$A$3:$AK$109,MATCH($C48,'Building RSF'!$A$3:$A$109,0),FALSE)","v":0},null,{"$f":"HLOOKUP($C$4,'rent dollars FY22'!$A$3:$AL$108,MATCH($C48,'rent dollars FY22'!$A$3:$A$108,0),FALSE)","v":0},{"$f":"HLOOKUP($C$4,'Debt Dollars FY22'!$C$5:$AN$110,MATCH($C48,'Debt Dollars FY22'!$A$5:$A$110,0),FALSE)","v":0},{"$f":"HLOOKUP($C$4,'CC dollars FY22'!$B$6:$AR$111,MATCH($C48,'CC dollars FY22'!$B$6:$B$111,0),FALSE)","v":0},0,0,0,null,{"$f":"HLOOKUP($C$4,'rent dollars FY23'!$A$3:$AL$108,MATCH($C48,'rent dollars FY23'!$A$3:$A$108,0),FALSE)","v":0},{"$f":"HLOOKUP($C$4,'Debt Dollars FY23'!$C$5:$AN$110,MATCH($C48,'Debt Dollars FY23'!$A$5:$A$110,0),FALSE)","v":0},{"$f":"HLOOKUP($C$4,'CC dollars FY23'!$B$6:$AR$111,MATCH($C48,'CC dollars FY23'!$B$6:$B$111,0),FALSE)","v":0},0,0,0]
["HIDE",null,"147 - Office of Minority and Women's Business Enterprises",{"$f":"HLOOKUP($C$4,'Building RSF'!$A$3:$AK$109,MATCH($C49,'Building RSF'!$A$3:$A$109,0),FALSE)","v":0},null,{"$f":"HLOOKUP($C$4,'rent dollars FY22'!$A$3:$AL$108,MATCH($C49,'rent dollars FY22'!$A$3:$A$108,0),FALSE)","v":0},{"$f":"HLOOKUP($C$4,'Debt Dollars FY22'!$C$5:$AN$110,MATCH($C49,'Debt Dollars FY22'!$A$5:$A$110,0),FALSE)","v":0},{"$f":"HLOOKUP($C$4,'CC dollars FY22'!$B$6:$AR$111,MATCH($C49,'CC dollars FY22'!$B$6:$B$111,0),FALSE)","v":0},0,0,0,null,{"$f":"HLOOKUP($C$4,'rent dollars FY23'!$A$3:$AL$108,MATCH($C49,'rent dollars FY23'!$A$3:$A$108,0),FALSE)","v":0},{"$f":"HLOOKUP($C$4,'Debt Dollars FY23'!$C$5:$AN$110,MATCH($C49,'Debt Dollars FY23'!$A$5:$A$110,0),FALSE)","v":0},{"$f":"HLOOKUP($C$4,'CC dollars FY23'!$B$6:$AR$111,MATCH($C49,'CC dollars FY23'!$B$6:$B$111,0),FALSE)","v":0},0,0,0]
["HIDE",null,"160 - Office of Insurance Commissioner",{"$f":"HLOOKUP($C$4,'Building RSF'!$A$3:$AK$109,MATCH($C50,'Building RSF'!$A$3:$A$109,0),FALSE)","v":0},null,{"$f":"HLOOKUP($C$4,'rent dollars FY22'!$A$3:$AL$108,MATCH($C50,'rent dollars FY22'!$A$3:$A$108,0),FALSE)","v":0},{"$f":"HLOOKUP($C$4,'Debt Dollars FY22'!$C$5:$AN$110,MATCH($C50,'Debt Dollars FY22'!$A$5:$A$110,0),FALSE)","v":0},{"$f":"HLOOKUP($C$4,'CC dollars FY22'!$B$6:$AR$111,MATCH($C50,'CC dollars FY22'!$B$6:$B$111,0),FALSE)","v":0},0,0,0,null,{"$f":"HLOOKUP($C$4,'rent dollars FY23'!$A$3:$AL$108,MATCH($C50,'rent dollars FY23'!$A$3:$A$108,0),FALSE)","v":0},{"$f":"HLOOKUP($C$4,'Debt Dollars FY23'!$C$5:$AN$110,MATCH($C50,'Debt Dollars FY23'!$A$5:$A$110,0),FALSE)","v":0},{"$f":"HLOOKUP($C$4,'CC dollars FY23'!$B$6:$AR$111,MATCH($C50,'CC dollars FY23'!$B$6:$B$111,0),FALSE)","v":0},0,0,0]
["HIDE",null,"163 - Consolidated Technology Services",{"$f":"HLOOKUP($C$4,'Building RSF'!$A$3:$AK$109,MATCH($C51,'Building RSF'!$A$3:$A$109,0),FALSE)","v":0},null,{"$f":"HLOOKUP($C$4,'rent dollars FY22'!$A$3:$AL$108,MATCH($C51,'rent dollars FY22'!$A$3:$A$108,0),FALSE)","v":0},{"$f":"HLOOKUP($C$4,'Debt Dollars FY22'!$C$5:$AN$110,MATCH($C51,'Debt Dollars FY22'!$A$5:$A$110,0),FALSE)","v":0},{"$f":"HLOOKUP($C$4,'CC dollars FY22'!$B$6:$AR$111,MATCH($C51,'CC dollars FY22'!$B$6:$B$111,0),FALSE)","v":0},0,0,0,null,{"$f":"HLOOKUP($C$4,'rent dollars FY23'!$A$3:$AL$108,MATCH($C51,'rent dollars FY23'!$A$3:$A$108,0),FALSE)","v":0},{"$f":"HLOOKUP($C$4,'Debt Dollars FY23'!$C$5:$AN$110,MATCH($C51,'Debt Dollars FY23'!$A$5:$A$110,0),FALSE)","v":0},{"$f":"HLOOKUP($C$4,'CC dollars FY23'!$B$6:$AR$111,MATCH($C51,'CC dollars FY23'!$B$6:$B$111,0),FALSE)","v":0},0,0,0]
["HIDE",null,"165 - Board of Accountancy",{"$f":"HLOOKUP($C$4,'Building RSF'!$A$3:$AK$109,MATCH($C52,'Building RSF'!$A$3:$A$109,0),FALSE)","v":0},null,{"$f":"HLOOKUP($C$4,'rent dollars FY22'!$A$3:$AL$108,MATCH($C52,'rent dollars FY22'!$A$3:$A$108,0),FALSE)","v":0},{"$f":"HLOOKUP($C$4,'Debt Dollars FY22'!$C$5:$AN$110,MATCH($C52,'Debt Dollars FY22'!$A$5:$A$110,0),FALSE)","v":0},{"$f":"HLOOKUP($C$4,'CC dollars FY22'!$B$6:$AR$111,MATCH($C52,'CC dollars FY22'!$B$6:$B$111,0),FALSE)","v":0},0,0,0,null,{"$f":"HLOOKUP($C$4,'rent dollars FY23'!$A$3:$AL$108,MATCH($C52,'rent dollars FY23'!$A$3:$A$108,0),FALSE)","v":0},{"$f":"HLOOKUP($C$4,'Debt Dollars FY23'!$C$5:$AN$110,MATCH($C52,'Debt Dollars FY23'!$A$5:$A$110,0),FALSE)","v":0},{"$f":"HLOOKUP($C$4,'CC dollars FY23'!$B$6:$AR$111,MATCH($C52,'CC dollars FY23'!$B$6:$B$111,0),FALSE)","v":0},0,0,0]
["HIDE",null,"166 - Brd Prof Eng Land Surveyors",{"$f":"HLOOKUP($C$4,'Building RSF'!$A$3:$AK$109,MATCH($C53,'Building RSF'!$A$3:$A$109,0),FALSE)","v":0},null,{"$f":"HLOOKUP($C$4,'rent dollars FY22'!$A$3:$AL$108,MATCH($C53,'rent dollars FY22'!$A$3:$A$108,0),FALSE)","v":0},{"$f":"HLOOKUP($C$4,'Debt Dollars FY22'!$C$5:$AN$110,MATCH($C53,'Debt Dollars FY22'!$A$5:$A$110,0),FALSE)","v":0},{"$f":"HLOOKUP($C$4,'CC dollars FY22'!$B$6:$AR$111,MATCH($C53,'CC dollars FY22'!$B$6:$B$111,0),FALSE)","v":0},0,0,0,null,{"$f":"HLOOKUP($C$4,'rent dollars FY23'!$A$3:$AL$108,MATCH($C53,'rent dollars FY23'!$A$3:$A$108,0),FALSE)","v":0},{"$f":"HLOOKUP($C$4,'Debt Dollars FY23'!$C$5:$AN$110,MATCH($C53,'Debt Dollars FY23'!$A$5:$A$110,0),FALSE)","v":0},{"$f":"HLOOKUP($C$4,'CC dollars FY23'!$B$6:$AR$111,MATCH($C53,'CC dollars FY23'!$B$6:$B$111,0),FALSE)","v":0},0,0,0]
["HIDE",null,"167 - Forensic Investigations Council",{"$f":"HLOOKUP($C$4,'Building RSF'!$A$3:$AK$109,MATCH($C54,'Building RSF'!$A$3:$A$109,0),FALSE)","v":0},null,{"$f":"HLOOKUP($C$4,'rent dollars FY22'!$A$3:$AL$108,MATCH($C54,'rent dollars FY22'!$A$3:$A$108,0),FALSE)","v":0},{"$f":"HLOOKUP($C$4,'Debt Dollars FY22'!$C$5:$AN$110,MATCH($C54,'Debt Dollars FY22'!$A$5:$A$110,0),FALSE)","v":0},{"$f":"HLOOKUP($C$4,'CC dollars FY22'!$B$6:$AR$111,MATCH($C54,'CC dollars FY22'!$B$6:$B$111,0),FALSE)","v":0},0,0,0,null,{"$f":"HLOOKUP($C$4,'rent dollars FY23'!$A$3:$AL$108,MATCH($C54,'rent dollars FY23'!$A$3:$A$108,0),FALSE)","v":0},{"$f":"HLOOKUP($C$4,'Debt Dollars FY23'!$C$5:$AN$110,MATCH($C54,'Debt Dollars FY23'!$A$5:$A$110,0),FALSE)","v":0},{"$f":"HLOOKUP($C$4,'CC dollars FY23'!$B$6:$AR$111,MATCH($C54,'CC dollars FY23'!$B$6:$B$111,0),FALSE)","v":0},0,0,0]
["HIDE",null,"179 - Department of Enterprise Services",{"$f":"HLOOKUP($C$4,'Building RSF'!$A$3:$AK$109,MATCH($C55,'Building RSF'!$A$3:$A$109,0),FALSE)","v":0},null,{"$f":"HLOOKUP($C$4,'rent dollars FY22'!$A$3:$AL$108,MATCH($C55,'rent dollars FY22'!$A$3:$A$108,0),FALSE)","v":0},{"$f":"HLOOKUP($C$4,'Debt Dollars FY22'!$C$5:$AN$110,MATCH($C55,'Debt Dollars FY22'!$A$5:$A$110,0),FALSE)","v":0},{"$f":"HLOOKUP($C$4,'CC dollars FY22'!$B$6:$AR$111,MATCH($C55,'CC dollars FY22'!$B$6:$B$111,0),FALSE)","v":0},0,0,0,null,{"$f":"HLOOKUP($C$4,'rent dollars FY23'!$A$3:$AL$108,MATCH($C55,'rent dollars FY23'!$A$3:$A$108,0),FALSE)","v":0},{"$f":"HLOOKUP($C$4,'Debt Dollars FY23'!$C$5:$AN$110,MATCH($C55,'Debt Dollars FY23'!$A$5:$A$110,0),FALSE)","v":0},{"$f":"HLOOKUP($C$4,'CC dollars FY23'!$B$6:$AR$111,MATCH($C55,'CC dollars FY23'!$B$6:$B$111,0),FALSE)","v":0},0,0,0]
["HIDE",null,"185 - Horse Racing Commission",{"$f":"HLOOKUP($C$4,'Building RSF'!$A$3:$AK$109,MATCH($C56,'Building RSF'!$A$3:$A$109,0),FALSE)","v":0},null,{"$f":"HLOOKUP($C$4,'rent dollars FY22'!$A$3:$AL$108,MATCH($C56,'rent dollars FY22'!$A$3:$A$108,0),FALSE)","v":0},{"$f":"HLOOKUP($C$4,'Debt Dollars FY22'!$C$5:$AN$110,MATCH($C56,'Debt Dollars FY22'!$A$5:$A$110,0),FALSE)","v":0},{"$f":"HLOOKUP($C$4,'CC dollars FY22'!$B$6:$AR$111,MATCH($C56,'CC dollars FY22'!$B$6:$B$111,0),FALSE)","v":0},0,0,0,null,{"$f":"HLOOKUP($C$4,'rent dollars FY23'!$A$3:$AL$108,MATCH($C56,'rent dollars FY23'!$A$3:$A$108,0),FALSE)","v":0},{"$f":"HLOOKUP($C$4,'Debt Dollars FY23'!$C$5:$AN$110,MATCH($C56,'Debt Dollars FY23'!$A$5:$A$110,0),FALSE)","v":0},{"$f":"HLOOKUP($C$4,'CC dollars FY23'!$B$6:$AR$111,MATCH($C56,'CC dollars FY23'!$B$6:$B$111,0),FALSE)","v":0},0,0,0]
["HIDE",null,"190 - Board of Industrial Insurance Appeals",{"$f":"HLOOKUP($C$4,'Building RSF'!$A$3:$AK$109,MATCH($C57,'Building RSF'!$A$3:$A$109,0),FALSE)","v":0},null,{"$f":"HLOOKUP($C$4,'rent dollars FY22'!$A$3:$AL$108,MATCH($C57,'rent dollars FY22'!$A$3:$A$108,0),FALSE)","v":0},{"$f":"HLOOKUP($C$4,'Debt Dollars FY22'!$C$5:$AN$110,MATCH($C57,'Debt Dollars FY22'!$A$5:$A$110,0),FALSE)","v":0},{"$f":"HLOOKUP($C$4,'CC dollars FY22'!$B$6:$AR$111,MATCH($C57,'CC dollars FY22'!$B$6:$B$111,0),FALSE)","v":0},0,0,0,null,{"$f":"HLOOKUP($C$4,'rent dollars FY23'!$A$3:$AL$108,MATCH($C57,'rent dollars FY23'!$A$3:$A$108,0),FALSE)","v":0},{"$f":"HLOOKUP($C$4,'Debt Dollars FY23'!$C$5:$AN$110,MATCH($C57,'Debt Dollars FY23'!$A$5:$A$110,0),FALSE)","v":0},{"$f":"HLOOKUP($C$4,'CC dollars FY23'!$B$6:$AR$111,MATCH($C57,'CC dollars FY23'!$B$6:$B$111,0),FALSE)","v":0},0,0,0]
["HIDE",null,"195 - Liquor Control Board",{"$f":"HLOOKUP($C$4,'Building RSF'!$A$3:$AK$109,MATCH($C58,'Building RSF'!$A$3:$A$109,0),FALSE)","v":0},null,{"$f":"HLOOKUP($C$4,'rent dollars FY22'!$A$3:$AL$108,MATCH($C58,'rent dollars FY22'!$A$3:$A$108,0),FALSE)","v":0},{"$f":"HLOOKUP($C$4,'Debt Dollars FY22'!$C$5:$AN$110,MATCH($C58,'Debt Dollars FY22'!$A$5:$A$110,0),FALSE)","v":0},{"$f":"HLOOKUP($C$4,'CC dollars FY22'!$B$6:$AR$111,MATCH($C58,'CC dollars FY22'!$B$6:$B$111,0),FALSE)","v":0},0,0,0,null,{"$f":"HLOOKUP($C$4,'rent dollars FY23'!$A$3:$AL$108,MATCH($C58,'rent dollars FY23'!$A$3:$A$108,0),FALSE)","v":0},{"$f":"HLOOKUP($C$4,'Debt Dollars FY23'!$C$5:$AN$110,MATCH($C58,'Debt Dollars FY23'!$A$5:$A$110,0),FALSE)","v":0},{"$f":"HLOOKUP($C$4,'CC dollars FY23'!$B$6:$AR$111,MATCH($C58,'CC dollars FY23'!$B$6:$B$111,0),FALSE)","v":0},0,0,0]
["HIDE",null,"205 - Board of Pilotage Commissioners",{"$f":"HLOOKUP($C$4,'Building RSF'!$A$3:$AK$109,MATCH($C59,'Building RSF'!$A$3:$A$109,0),FALSE)","v":0},null,{"$f":"HLOOKUP($C$4,'rent dollars FY22'!$A$3:$AL$108,MATCH($C59,'rent dollars FY22'!$A$3:$A$108,0),FALSE)","v":0},{"$f":"HLOOKUP($C$4,'Debt Dollars FY22'!$C$5:$AN$110,MATCH($C59,'Debt Dollars FY22'!$A$5:$A$110,0),FALSE)","v":0},{"$f":"HLOOKUP($C$4,'CC dollars FY22'!$B$6:$AR$111,MATCH($C59,'CC dollars FY22'!$B$6:$B$111,0),FALSE)","v":0},0,0,0,null,{"$f":"HLOOKUP($C$4,'rent dollars FY23'!$A$3:$AL$108,MATCH($C59,'rent dollars FY23'!$A$3:$A$108,0),FALSE)","v":0},{"$f":"HLOOKUP($C$4,'Debt Dollars FY23'!$C$5:$AN$110,MATCH($C59,'Debt Dollars FY23'!$A$5:$A$110,0),FALSE)","v":0},{"$f":"HLOOKUP($C$4,'CC dollars FY23'!$B$6:$AR$111,MATCH($C59,'CC dollars FY23'!$B$6:$B$111,0),FALSE)","v":0},0,0,0]
["HIDE",null,"215 - Utilities and Transportation Commission",{"$f":"HLOOKUP($C$4,'Building RSF'!$A$3:$AK$109,MATCH($C60,'Building RSF'!$A$3:$A$109,0),FALSE)","v":0},null,{"$f":"HLOOKUP($C$4,'rent dollars FY22'!$A$3:$AL$108,MATCH($C60,'rent dollars FY22'!$A$3:$A$108,0),FALSE)","v":0},{"$f":"HLOOKUP($C$4,'Debt Dollars FY22'!$C$5:$AN$110,MATCH($C60,'Debt Dollars FY22'!$A$5:$A$110,0),FALSE)","v":0},{"$f":"HLOOKUP($C$4,'CC dollars FY22'!$B$6:$AR$111,MATCH($C60,'CC dollars FY22'!$B$6:$B$111,0),FALSE)","v":0},0,0,0,null,{"$f":"HLOOKUP($C$4,'rent dollars FY23'!$A$3:$AL$108,MATCH($C60,'rent dollars FY23'!$A$3:$A$108,0),FALSE)","v":0},{"$f":"HLOOKUP($C$4,'Debt Dollars FY23'!$C$5:$AN$110,MATCH($C60,'Debt Dollars FY23'!$A$5:$A$110,0),FALSE)","v":0},{"$f":"HLOOKUP($C$4,'CC dollars FY23'!$B$6:$AR$111,MATCH($C60,'CC dollars FY23'!$B$6:$B$111,0),FALSE)","v":0},0,0,0]
["HIDE",null,"220 - Board for Volunteer Firefighters and Reserve Officers",{"$f":"HLOOKUP($C$4,'Building RSF'!$A$3:$AK$109,MATCH($C61,'Building RSF'!$A$3:$A$109,0),FALSE)","v":0},null,{"$f":"HLOOKUP($C$4,'rent dollars FY22'!$A$3:$AL$108,MATCH($C61,'rent dollars FY22'!$A$3:$A$108,0),FALSE)","v":0},{"$f":"HLOOKUP($C$4,'Debt Dollars FY22'!$C$5:$AN$110,MATCH($C61,'Debt Dollars FY22'!$A$5:$A$110,0),FALSE)","v":0},{"$f":"HLOOKUP($C$4,'CC dollars FY22'!$B$6:$AR$111,MATCH($C61,'CC dollars FY22'!$B$6:$B$111,0),FALSE)","v":0},0,0,0,null,{"$f":"HLOOKUP($C$4,'rent dollars FY23'!$A$3:$AL$108,MATCH($C61,'rent dollars FY23'!$A$3:$A$108,0),FALSE)","v":0},{"$f":"HLOOKUP($C$4,'Debt Dollars FY23'!$C$5:$AN$110,MATCH($C61,'Debt Dollars FY23'!$A$5:$A$110,0),FALSE)","v":0},{"$f":"HLOOKUP($C$4,'CC dollars FY23'!$B$6:$AR$111,MATCH($C61,'CC dollars FY23'!$B$6:$B$111,0),FALSE)","v":0},0,0,0]
["HIDE",null,"225 - Washington State Patrol",{"$f":"HLOOKUP($C$4,'Building RSF'!$A$3:$AK$109,MATCH($C62,'Building RSF'!$A$3:$A$109,0),FALSE)","v":0},null,{"$f":"HLOOKUP($C$4,'rent dollars FY22'!$A$3:$AL$108,MATCH($C62,'rent dollars FY22'!$A$3:$A$108,0),FALSE)","v":0},{"$f":"HLOOKUP($C$4,'Debt Dollars FY22'!$C$5:$AN$110,MATCH($C62,'Debt Dollars FY22'!$A$5:$A$110,0),FALSE)","v":0},{"$f":"HLOOKUP($C$4,'CC dollars FY22'!$B$6:$AR$111,MATCH($C62,'CC dollars FY22'!$B$6:$B$111,0),FALSE)","v":0},0,0,0,null,{"$f":"HLOOKUP($C$4,'rent dollars FY23'!$A$3:$AL$108,MATCH($C62,'rent dollars FY23'!$A$3:$A$108,0),FALSE)","v":0},{"$f":"HLOOKUP($C$4,'Debt Dollars FY23'!$C$5:$AN$110,MATCH($C62,'Debt Dollars FY23'!$A$5:$A$110,0),FALSE)","v":0},{"$f":"HLOOKUP($C$4,'CC dollars FY23'!$B$6:$AR$111,MATCH($C62,'CC dollars FY23'!$B$6:$B$111,0),FALSE)","v":0},0,0,0]
["HIDE",null,"227 - Criminal Justice Training Commission",{"$f":"HLOOKUP($C$4,'Building RSF'!$A$3:$AK$109,MATCH($C63,'Building RSF'!$A$3:$A$109,0),FALSE)","v":0},null,{"$f":"HLOOKUP($C$4,'rent dollars FY22'!$A$3:$AL$108,MATCH($C63,'rent dollars FY22'!$A$3:$A$108,0),FALSE)","v":0},{"$f":"HLOOKUP($C$4,'Debt Dollars FY22'!$C$5:$AN$110,MATCH($C63,'Debt Dollars FY22'!$A$5:$A$110,0),FALSE)","v":0},{"$f":"HLOOKUP($C$4,'CC dollars FY22'!$B$6:$AR$111,MATCH($C63,'CC dollars FY22'!$B$6:$B$111,0),FALSE)","v":0},0,0,0,null,{"$f":"HLOOKUP($C$4,'rent dollars FY23'!$A$3:$AL$108,MATCH($C63,'rent dollars FY23'!$A$3:$A$108,0),FALSE)","v":0},{"$f":"HLOOKUP($C$4,'Debt Dollars FY23'!$C$5:$AN$110,MATCH($C63,'Debt Dollars FY23'!$A$5:$A$110,0),FALSE)","v":0},{"$f":"HLOOKUP($C$4,'CC dollars FY23'!$B$6:$AR$111,MATCH($C63,'CC dollars FY23'!$B$6:$B$111,0),FALSE)","v":0},0,0,0]
["HIDE",null,"228 - Traffic Safety Commission",{"$f":"HLOOKUP($C$4,'Building RSF'!$A$3:$AK$109,MATCH($C64,'Building RSF'!$A$3:$A$109,0),FALSE)","v":0},null,{"$f":"HLOOKUP($C$4,'rent dollars FY22'!$A$3:$AL$108,MATCH($C64,'rent dollars FY22'!$A$3:$A$108,0),FALSE)","v":0},{"$f":"HLOOKUP($C$4,'Debt Dollars FY22'!$C$5:$AN$110,MATCH($C64,'Debt Dollars FY22'!$A$5:$A$110,0),FALSE)","v":0},{"$f":"HLOOKUP($C$4,'CC dollars FY22'!$B$6:$AR$111,MATCH($C64,'CC dollars FY22'!$B$6:$B$111,0),FALSE)","v":0},0,0,0,null,{"$f":"HLOOKUP($C$4,'rent dollars FY23'!$A$3:$AL$108,MATCH($C64,'rent dollars FY23'!$A$3:$A$108,0),FALSE)","v":0},{"$f":"HLOOKUP($C$4,'Debt Dollars FY23'!$C$5:$AN$110,MATCH($C64,'Debt Dollars FY23'!$A$5:$A$110,0),FALSE)","v":0},{"$f":"HLOOKUP($C$4,'CC dollars FY23'!$B$6:$AR$111,MATCH($C64,'CC dollars FY23'!$B$6:$B$111,0),FALSE)","v":0},0,0,0]
["HIDE",null,"235 - Department of Labor and Industries",{"$f":"HLOOKUP($C$4,'Building RSF'!$A$3:$AK$109,MATCH($C65,'Building RSF'!$A$3:$A$109,0),FALSE)","v":0},null,{"$f":"HLOOKUP($C$4,'rent dollars FY22'!$A$3:$AL$108,MATCH($C65,'rent dollars FY22'!$A$3:$A$108,0),FALSE)","v":0},{"$f":"HLOOKUP($C$4,'Debt Dollars FY22'!$C$5:$AN$110,MATCH($C65,'Debt Dollars FY22'!$A$5:$A$110,0),FALSE)","v":0},{"$f":"HLOOKUP($C$4,'CC dollars FY22'!$B$6:$AR$111,MATCH($C65,'CC dollars FY22'!$B$6:$B$111,0),FALSE)","v":0},0,0,0,null,{"$f":"HLOOKUP($C$4,'rent dollars FY23'!$A$3:$AL$108,MATCH($C65,'rent dollars FY23'!$A$3:$A$108,0),FALSE)","v":0},{"$f":"HLOOKUP($C$4,'Debt Dollars FY23'!$C$5:$AN$110,MATCH($C65,'Debt Dollars FY23'!$A$5:$A$110,0),FALSE)","v":0},{"$f":"HLOOKUP($C$4,'CC dollars FY23'!$B$6:$AR$111,MATCH($C65,'CC dollars FY23'!$B$6:$B$111,0),FALSE)","v":0},0,0,0]
["HIDE",null,"240 - Department of Licensing",{"$f":"HLOOKUP($C$4,'Building RSF'!$A$3:$AK$109,MATCH($C66,'Building RSF'!$A$3:$A$109,0),FALSE)","v":0},null,{"$f":"HLOOKUP($C$4,'rent dollars FY22'!$A$3:$AL$108,MATCH($C66,'rent dollars FY22'!$A$3:$A$108,0),FALSE)","v":0},{"$f":"HLOOKUP($C$4,'Debt Dollars FY22'!$C$5:$AN$110,MATCH($C66,'Debt Dollars FY22'!$A$5:$A$110,0),FALSE)","v":0},{"$f":"HLOOKUP($C$4,'CC dollars FY22'!$B$6:$AR$111,MATCH($C66,'CC dollars FY22'!$B$6:$B$111,0),FALSE)","v":0},0,0,0,null,{"$f":"HLOOKUP($C$4,'rent dollars FY23'!$A$3:$AL$108,MATCH($C66,'rent dollars FY23'!$A$3:$A$108,0),FALSE)","v":0},{"$f":"HLOOKUP($C$4,'Debt Dollars FY23'!$C$5:$AN$110,MATCH($C66,'Debt Dollars FY23'!$A$5:$A$110,0),FALSE)","v":0},{"$f":"HLOOKUP($C$4,'CC dollars FY23'!$B$6:$AR$111,MATCH($C66,'CC dollars FY23'!$B$6:$B$111,0),FALSE)","v":0},0,0,0]
["HIDE",null,"245 - Military Department",{"$f":"HLOOKUP($C$4,'Building RSF'!$A$3:$AK$109,MATCH($C67,'Building RSF'!$A$3:$A$109,0),FALSE)","v":0},null,{"$f":"HLOOKUP($C$4,'rent dollars FY22'!$A$3:$AL$108,MATCH($C67,'rent dollars FY22'!$A$3:$A$108,0),FALSE)","v":0},{"$f":"HLOOKUP($C$4,'Debt Dollars FY22'!$C$5:$AN$110,MATCH($C67,'Debt Dollars FY22'!$A$5:$A$110,0),FALSE)","v":0},{"$f":"HLOOKUP($C$4,'CC dollars FY22'!$B$6:$AR$111,MATCH($C67,'CC dollars FY22'!$B$6:$B$111,0),FALSE)","v":0},0,0,0,null,{"$f":"HLOOKUP($C$4,'rent dollars FY23'!$A$3:$AL$108,MATCH($C67,'rent dollars FY23'!$A$3:$A$108,0),FALSE)","v":0},{"$f":"HLOOKUP($C$4,'Debt Dollars FY23'!$C$5:$AN$110,MATCH($C67,'Debt Dollars FY23'!$A$5:$A$110,0),FALSE)","v":0},{"$f":"HLOOKUP($C$4,'CC dollars FY23'!$B$6:$AR$111,MATCH($C67,'CC dollars FY23'!$B$6:$B$111,0),FALSE)","v":0},0,0,0]
["HIDE",null,"275 - Public Employment Relations Commission",{"$f":"HLOOKUP($C$4,'Building RSF'!$A$3:$AK$109,MATCH($C68,'Building RSF'!$A$3:$A$109,0),FALSE)","v":0},null,{"$f":"HLOOKUP($C$4,'rent dollars FY22'!$A$3:$AL$108,MATCH($C68,'rent dollars FY22'!$A$3:$A$108,0),FALSE)","v":0},{"$f":"HLOOKUP($C$4,'Debt Dollars FY22'!$C$5:$AN$110,MATCH($C68,'Debt Dollars FY22'!$A$5:$A$110,0),FALSE)","v":0},{"$f":"HLOOKUP($C$4,'CC dollars FY22'!$B$6:$AR$111,MATCH($C68,'CC dollars FY22'!$B$6:$B$111,0),FALSE)","v":0},0,0,0,null,{"$f":"HLOOKUP($C$4,'rent dollars FY23'!$A$3:$AL$108,MATCH($C68,'rent dollars FY23'!$A$3:$A$108,0),FALSE)","v":0},{"$f":"HLOOKUP($C$4,'Debt Dollars FY23'!$C$5:$AN$110,MATCH($C68,'Debt Dollars FY23'!$A$5:$A$110,0),FALSE)","v":0},{"$f":"HLOOKUP($C$4,'CC dollars FY23'!$B$6:$AR$111,MATCH($C68,'CC dollars FY23'!$B$6:$B$111,0),FALSE)","v":0},0,0,0]
["HIDE",null,"300 - Department of Social and Health Services",{"$f":"HLOOKUP($C$4,'Building RSF'!$A$3:$AK$109,MATCH($C69,'Building RSF'!$A$3:$A$109,0),FALSE)","v":0},null,{"$f":"HLOOKUP($C$4,'rent dollars FY22'!$A$3:$AL$108,MATCH($C69,'rent dollars FY22'!$A$3:$A$108,0),FALSE)","v":0},{"$f":"HLOOKUP($C$4,'Debt Dollars FY22'!$C$5:$AN$110,MATCH($C69,'Debt Dollars FY22'!$A$5:$A$110,0),FALSE)","v":0},{"$f":"HLOOKUP($C$4,'CC dollars FY22'!$B$6:$AR$111,MATCH($C69,'CC dollars FY22'!$B$6:$B$111,0),FALSE)","v":0},0,0,0,null,{"$f":"HLOOKUP($C$4,'rent dollars FY23'!$A$3:$AL$108,MATCH($C69,'rent dollars FY23'!$A$3:$A$108,0),FALSE)","v":0},{"$f":"HLOOKUP($C$4,'Debt Dollars FY23'!$C$5:$AN$110,MATCH($C69,'Debt Dollars FY23'!$A$5:$A$110,0),FALSE)","v":0},{"$f":"HLOOKUP($C$4,'CC dollars FY23'!$B$6:$AR$111,MATCH($C69,'CC dollars FY23'!$B$6:$B$111,0),FALSE)","v":0},0,0,0]
["HIDE",null,"303 - Department of Health",{"$f":"HLOOKUP($C$4,'Building RSF'!$A$3:$AK$109,MATCH($C70,'Building RSF'!$A$3:$A$109,0),FALSE)","v":0},null,{"$f":"HLOOKUP($C$4,'rent dollars FY22'!$A$3:$AL$108,MATCH($C70,'rent dollars FY22'!$A$3:$A$108,0),FALSE)","v":0},{"$f":"HLOOKUP($C$4,'Debt Dollars FY22'!$C$5:$AN$110,MATCH($C70,'Debt Dollars FY22'!$A$5:$A$110,0),FALSE)","v":0},{"$f":"HLOOKUP($C$4,'CC dollars FY22'!$B$6:$AR$111,MATCH($C70,'CC dollars FY22'!$B$6:$B$111,0),FALSE)","v":0},0,0,0,null,{"$f":"HLOOKUP($C$4,'rent dollars FY23'!$A$3:$AL$108,MATCH($C70,'rent dollars FY23'!$A$3:$A$108,0),FALSE)","v":0},{"$f":"HLOOKUP($C$4,'Debt Dollars FY23'!$C$5:$AN$110,MATCH($C70,'Debt Dollars FY23'!$A$5:$A$110,0),FALSE)","v":0},{"$f":"HLOOKUP($C$4,'CC dollars FY23'!$B$6:$AR$111,MATCH($C70,'CC dollars FY23'!$B$6:$B$111,0),FALSE)","v":0},0,0,0]
["HIDE",null,"305 - Department of Veterans Affairs",{"$f":"HLOOKUP($C$4,'Building RSF'!$A$3:$AK$109,MATCH($C71,'Building RSF'!$A$3:$A$109,0),FALSE)","v":0},null,{"$f":"HLOOKUP($C$4,'rent dollars FY22'!$A$3:$AL$108,MATCH($C71,'rent dollars FY22'!$A$3:$A$108,0),FALSE)","v":0},{"$f":"HLOOKUP($C$4,'Debt Dollars FY22'!$C$5:$AN$110,MATCH($C71,'Debt Dollars FY22'!$A$5:$A$110,0),FALSE)","v":0},{"$f":"HLOOKUP($C$4,'CC dollars FY22'!$B$6:$AR$111,MATCH($C71,'CC dollars FY22'!$B$6:$B$111,0),FALSE)","v":0},0,0,0,null,{"$f":"HLOOKUP($C$4,'rent dollars FY23'!$A$3:$AL$108,MATCH($C71,'rent dollars FY23'!$A$3:$A$108,0),FALSE)","v":0},{"$f":"HLOOKUP($C$4,'Debt Dollars FY23'!$C$5:$AN$110,MATCH($C71,'Debt Dollars FY23'!$A$5:$A$110,0),FALSE)","v":0},{"$f":"HLOOKUP($C$4,'CC dollars FY23'!$B$6:$AR$111,MATCH($C71,'CC dollars FY23'!$B$6:$B$111,0),FALSE)","v":0},0,0,0]
[{"$f":"IF(D72=0,\"HIDE\",\"VIEW\")","v":"HIDE"},null,"307 - DCYF",{"$f":"HLOOKUP($C$4,'Building RSF'!$A$3:$AK$109,MATCH($C72,'Building RSF'!$A$3:$A$109,0),FALSE)","v":0},null,{"$f":"HLOOKUP($C$4,'rent dollars FY22'!$A$3:$AL$108,MATCH($C72,'rent dollars FY22'!$A$3:$A$108,0),FALSE)","v":0},{"$f":"HLOOKUP($C$4,'Debt Dollars FY22'!$C$5:$AN$110,MATCH($C72,'Debt Dollars FY22'!$A$5:$A$110,0),FALSE)","v":0},{"$f":"HLOOKUP($C$4,'CC dollars FY22'!$B$6:$AR$111,MATCH($C72,'CC dollars FY22'!$B$6:$B$111,0),FALSE)","v":0},0,{"$f":"I72/12","v":0},0,null,{"$f":"HLOOKUP($C$4,'rent dollars FY23'!$A$3:$AL$108,MATCH($C72,'rent dollars FY23'!$A$3:$A$108,0),FALSE)","v":0},{"$f":"HLOOKUP($C$4,'Debt Dollars FY23'!$C$5:$AN$110,MATCH($C72,'Debt Dollars FY23'!$A$5:$A$110,0),FALSE)","v":0},{"$f":"HLOOKUP($C$4,'CC dollars FY23'!$B$6:$AR$111,MATCH($C72,'CC dollars FY23'!$B$6:$B$111,0),FALSE)","v":0},0,{"$f":"P72/12","v":0},0]
["HIDE",null,"310 - Department of Corrections",{"$f":"HLOOKUP($C$4,'Building RSF'!$A$3:$AK$109,MATCH($C73,'Building RSF'!$A$3:$A$109,0),FALSE)","v":0},null,{"$f":"HLOOKUP($C$4,'rent dollars FY22'!$A$3:$AL$108,MATCH($C73,'rent dollars FY22'!$A$3:$A$108,0),FALSE)","v":0},{"$f":"HLOOKUP($C$4,'Debt Dollars FY22'!$C$5:$AN$110,MATCH($C73,'Debt Dollars FY22'!$A$5:$A$110,0),FALSE)","v":0},{"$f":"HLOOKUP($C$4,'CC dollars FY22'!$B$6:$AR$111,MATCH($C73,'CC dollars FY22'!$B$6:$B$111,0),FALSE)","v":0},0,0,0,null,{"$f":"HLOOKUP($C$4,'rent dollars FY23'!$A$3:$AL$108,MATCH($C73,'rent dollars FY23'!$A$3:$A$108,0),FALSE)","v":0},{"$f":"HLOOKUP($C$4,'Debt Dollars FY23'!$C$5:$AN$110,MATCH($C73,'Debt Dollars FY23'!$A$5:$A$110,0),FALSE)","v":0},{"$f":"HLOOKUP($C$4,'CC dollars FY23'!$B$6:$AR$111,MATCH($C73,'CC dollars FY23'!$B$6:$B$111,0),FALSE)","v":0},0,0,0]
["VIEW",null,"315 - Department of Services for the Blind",{"$f":"HLOOKUP($C$4,'Building RSF'!$A$3:$AK$109,MATCH($C74,'Building RSF'!$A$3:$A$109,0),FALSE)","v":20708},null,{"$f":"HLOOKUP($C$4,'rent dollars FY22'!$A$3:$AL$108,MATCH($C74,'rent dollars FY22'!$A$3:$A$108,0),FALSE)","v":97327.22813702545},{"$f":"HLOOKUP($C$4,'Debt Dollars FY22'!$C$5:$AN$110,MATCH($C74,'Debt Dollars FY22'!$A$5:$A$110,0),FALSE)","v":0},{"$f":"HLOOKUP($C$4,'CC dollars FY22'!$B$6:$AR$111,MATCH($C74,'CC dollars FY22'!$B$6:$B$111,0),FALSE)","v":3647.626375278016},100974.85451230347,8414.5712093586226,4.8761278014440537,null,{"$f":"HLOOKUP($C$4,'rent dollars FY23'!$A$3:$AL$108,MATCH($C74,'rent dollars FY23'!$A$3:$A$108,0),FALSE)","v":101334.45123406521},{"$f":"HLOOKUP($C$4,'Debt Dollars FY23'!$C$5:$AN$110,MATCH($C74,'Debt Dollars FY23'!$A$5:$A$110,0),FALSE)","v":0},{"$f":"HLOOKUP($C$4,'CC dollars FY23'!$B$6:$AR$111,MATCH($C74,'CC dollars FY23'!$B$6:$B$111,0),FALSE)","v":3697.9597846956171},105032.41101876083,8752.7009182300699,5.0720692977960606]
["HIDE",null,"340 - Student Achievement Council",{"$f":"HLOOKUP($C$4,'Building RSF'!$A$3:$AK$109,MATCH($C75,'Building RSF'!$A$3:$A$109,0),FALSE)","v":0},null,{"$f":"HLOOKUP($C$4,'rent dollars FY22'!$A$3:$AL$108,MATCH($C75,'rent dollars FY22'!$A$3:$A$108,0),FALSE)","v":0},{"$f":"HLOOKUP($C$4,'Debt Dollars FY22'!$C$5:$AN$110,MATCH($C75,'Debt Dollars FY22'!$A$5:$A$110,0),FALSE)","v":0},{"$f":"HLOOKUP($C$4,'CC dollars FY22'!$B$6:$AR$111,MATCH($C75,'CC dollars FY22'!$B$6:$B$111,0),FALSE)","v":0},0,0,0,null,{"$f":"HLOOKUP($C$4,'rent dollars FY23'!$A$3:$AL$108,MATCH($C75,'rent dollars FY23'!$A$3:$A$108,0),FALSE)","v":0},{"$f":"HLOOKUP($C$4,'Debt Dollars FY23'!$C$5:$AN$110,MATCH($C75,'Debt Dollars FY23'!$A$5:$A$110,0),FALSE)","v":0},{"$f":"HLOOKUP($C$4,'CC dollars FY23'!$B$6:$AR$111,MATCH($C75,'CC dollars FY23'!$B$6:$B$111,0),FALSE)","v":0},0,0,0]
["HIDE",null,"341 - Law Enforcement Officers' & Fire Fighters' Plan 2 Retirement Board",{"$f":"HLOOKUP($C$4,'Building RSF'!$A$3:$AK$109,MATCH($C76,'Building RSF'!$A$3:$A$109,0),FALSE)","v":0},null,{"$f":"HLOOKUP($C$4,'rent dollars FY22'!$A$3:$AL$108,MATCH($C76,'rent dollars FY22'!$A$3:$A$108,0),FALSE)","v":0},{"$f":"HLOOKUP($C$4,'Debt Dollars FY22'!$C$5:$AN$110,MATCH($C76,'Debt Dollars FY22'!$A$5:$A$110,0),FALSE)","v":0},{"$f":"HLOOKUP($C$4,'CC dollars FY22'!$B$6:$AR$111,MATCH($C76,'CC dollars FY22'!$B$6:$B$111,0),FALSE)","v":0},0,0,0,null,{"$f":"HLOOKUP($C$4,'rent dollars FY23'!$A$3:$AL$108,MATCH($C76,'rent dollars FY23'!$A$3:$A$108,0),FALSE)","v":0},{"$f":"HLOOKUP($C$4,'Debt Dollars FY23'!$C$5:$AN$110,MATCH($C76,'Debt Dollars FY23'!$A$5:$A$110,0),FALSE)","v":0},{"$f":"HLOOKUP($C$4,'CC dollars FY23'!$B$6:$AR$111,MATCH($C76,'CC dollars FY23'!$B$6:$B$111,0),FALSE)","v":0},0,0,0]
["HIDE",null,"350 - Superintendent of Public Instruction",{"$f":"HLOOKUP($C$4,'Building RSF'!$A$3:$AK$109,MATCH($C77,'Building RSF'!$A$3:$A$109,0),FALSE)","v":0},null,{"$f":"HLOOKUP($C$4,'rent dollars FY22'!$A$3:$AL$108,MATCH($C77,'rent dollars FY22'!$A$3:$A$108,0),FALSE)","v":0},{"$f":"HLOOKUP($C$4,'Debt Dollars FY22'!$C$5:$AN$110,MATCH($C77,'Debt Dollars FY22'!$A$5:$A$110,0),FALSE)","v":0},{"$f":"HLOOKUP($C$4,'CC dollars FY22'!$B$6:$AR$111,MATCH($C77,'CC dollars FY22'!$B$6:$B$111,0),FALSE)","v":0},0,0,0,null,{"$f":"HLOOKUP($C$4,'rent dollars FY23'!$A$3:$AL$108,MATCH($C77,'rent dollars FY23'!$A$3:$A$108,0),FALSE)","v":0},{"$f":"HLOOKUP($C$4,'Debt Dollars FY23'!$C$5:$AN$110,MATCH($C77,'Debt Dollars FY23'!$A$5:$A$110,0),FALSE)","v":0},{"$f":"HLOOKUP($C$4,'CC dollars FY23'!$B$6:$AR$111,MATCH($C77,'CC dollars FY23'!$B$6:$B$111,0),FALSE)","v":0},0,0,0]
["HIDE",null,"351 - State School For The Blind",{"$f":"HLOOKUP($C$4,'Building RSF'!$A$3:$AK$109,MATCH($C78,'Building RSF'!$A$3:$A$109,0),FALSE)","v":0},null,{"$f":"HLOOKUP($C$4,'rent dollars FY22'!$A$3:$AL$108,MATCH($C78,'rent dollars FY22'!$A$3:$A$108,0),FALSE)","v":0},{"$f":"HLOOKUP($C$4,'Debt Dollars FY22'!$C$5:$AN$110,MATCH($C78,'Debt Dollars FY22'!$A$5:$A$110,0),FALSE)","v":0},{"$f":"HLOOKUP($C$4,'CC dollars FY22'!$B$6:$AR$111,MATCH($C78,'CC dollars FY22'!$B$6:$B$111,0),FALSE)","v":0},0,0,0,null,{"$f":"HLOOKUP($C$4,'rent dollars FY23'!$A$3:$AL$108,MATCH($C78,'rent dollars FY23'!$A$3:$A$108,0),FALSE)","v":0},{"$f":"HLOOKUP($C$4,'Debt Dollars FY23'!$C$5:$AN$110,MATCH($C78,'Debt Dollars FY23'!$A$5:$A$110,0),FALSE)","v":0},{"$f":"HLOOKUP($C$4,'CC dollars FY23'!$B$6:$AR$111,MATCH($C78,'CC dollars FY23'!$B$6:$B$111,0),FALSE)","v":0},0,0,0]
["HIDE",null,"353 - State Center for Childhood Deafness and Hearing Loss",{"$f":"HLOOKUP($C$4,'Building RSF'!$A$3:$AK$109,MATCH($C79,'Building RSF'!$A$3:$A$109,0),FALSE)","v":0},null,{"$f":"HLOOKUP($C$4,'rent dollars FY22'!$A$3:$AL$108,MATCH($C79,'rent dollars FY22'!$A$3:$A$108,0),FALSE)","v":0},{"$f":"HLOOKUP($C$4,'Debt Dollars FY22'!$C$5:$AN$110,MATCH($C79,'Debt Dollars FY22'!$A$5:$A$110,0),FALSE)","v":0},{"$f":"HLOOKUP($C$4,'CC dollars FY22'!$B$6:$AR$111,MATCH($C79,'CC dollars FY22'!$B$6:$B$111,0),FALSE)","v":0},0,0,0,null,{"$f":"HLOOKUP($C$4,'rent dollars FY23'!$A$3:$AL$108,MATCH($C79,'rent dollars FY23'!$A$3:$A$108,0),FALSE)","v":0},{"$f":"HLOOKUP($C$4,'Debt Dollars FY23'!$C$5:$AN$110,MATCH($C79,'Debt Dollars FY23'!$A$5:$A$110,0),FALSE)","v":0},{"$f":"HLOOKUP($C$4,'CC dollars FY23'!$B$6:$AR$111,MATCH($C79,'CC dollars FY23'!$B$6:$B$111,0),FALSE)","v":0},0,0,0]
["HIDE",null,"354 - Workforce Training and Education Coordinating Board",{"$f":"HLOOKUP($C$4,'Building RSF'!$A$3:$AK$109,MATCH($C80,'Building RSF'!$A$3:$A$109,0),FALSE)","v":0},null,{"$f":"HLOOKUP($C$4,'rent dollars FY22'!$A$3:$AL$108,MATCH($C80,'rent dollars FY22'!$A$3:$A$108,0),FALSE)","v":0},{"$f":"HLOOKUP($C$4,'Debt Dollars FY22'!$C$5:$AN$110,MATCH($C80,'Debt Dollars FY22'!$A$5:$A$110,0),FALSE)","v":0},{"$f":"HLOOKUP($C$4,'CC dollars FY22'!$B$6:$AR$111,MATCH($C80,'CC dollars FY22'!$B$6:$B$111,0),FALSE)","v":0},0,0,0,null,{"$f":"HLOOKUP($C$4,'rent dollars FY23'!$A$3:$AL$108,MATCH($C80,'rent dollars FY23'!$A$3:$A$108,0),FALSE)","v":0},{"$f":"HLOOKUP($C$4,'Debt Dollars FY23'!$C$5:$AN$110,MATCH($C80,'Debt Dollars FY23'!$A$5:$A$110,0),FALSE)","v":0},{"$f":"HLOOKUP($C$4,'CC dollars FY23'!$B$6:$AR$111,MATCH($C80,'CC dollars FY23'!$B$6:$B$111,0),FALSE)","v":0},0,0,0]
["HIDE",null,"355 - Department of Archaeology and Historic Preservation",{"$f":"HLOOKUP($C$4,'Building RSF'!$A$3:$AK$109,MATCH($C81,'Building RSF'!$A$3:$A$109,0),FALSE)","v":0},null,{"$f":"HLOOKUP($C$4,'rent dollars FY22'!$A$3:$AL$108,MATCH($C81,'rent dollars FY22'!$A$3:$A$108,0),FALSE)","v":0},{"$f":"HLOOKUP($C$4,'Debt Dollars FY22'!$C$5:$AN$110,MATCH($C81,'Debt Dollars FY22'!$A$5:$A$110,0),FALSE)","v":0},{"$f":"HLOOKUP($C$4,'CC dollars FY22'!$B$6:$AR$111,MATCH($C81,'CC dollars FY22'!$B$6:$B$111,0),FALSE)","v":0},0,0,0,null,{"$f":"HLOOKUP($C$4,'rent dollars FY23'!$A$3:$AL$108,MATCH($C81,'rent dollars FY23'!$A$3:$A$108,0),FALSE)","v":0},{"$f":"HLOOKUP($C$4,'Debt Dollars FY23'!$C$5:$AN$110,MATCH($C81,'Debt Dollars FY23'!$A$5:$A$110,0),FALSE)","v":0},{"$f":"HLOOKUP($C$4,'CC dollars FY23'!$B$6:$AR$111,MATCH($C81,'CC dollars FY23'!$B$6:$B$111,0),FALSE)","v":0},0,0,0]
["HIDE",null,"357 - Department of Early Learning",{"$f":"HLOOKUP($C$4,'Building RSF'!$A$3:$AK$109,MATCH($C82,'Building RSF'!$A$3:$A$109,0),FALSE)","v":0},null,{"$f":"HLOOKUP($C$4,'rent dollars FY22'!$A$3:$AL$108,MATCH($C82,'rent dollars FY22'!$A$3:$A$108,0),FALSE)","v":0},{"$f":"HLOOKUP($C$4,'Debt Dollars FY22'!$C$5:$AN$110,MATCH($C82,'Debt Dollars FY22'!$A$5:$A$110,0),FALSE)","v":0},{"$f":"HLOOKUP($C$4,'CC dollars FY22'!$B$6:$AR$111,MATCH($C82,'CC dollars FY22'!$B$6:$B$111,0),FALSE)","v":0},0,0,0,null,{"$f":"HLOOKUP($C$4,'rent dollars FY23'!$A$3:$AL$108,MATCH($C82,'rent dollars FY23'!$A$3:$A$108,0),FALSE)","v":0},{"$f":"HLOOKUP($C$4,'Debt Dollars FY23'!$C$5:$AN$110,MATCH($C82,'Debt Dollars FY23'!$A$5:$A$110,0),FALSE)","v":0},{"$f":"HLOOKUP($C$4,'CC dollars FY23'!$B$6:$AR$111,MATCH($C82,'CC dollars FY23'!$B$6:$B$111,0),FALSE)","v":0},0,0,0]
["HIDE",null,"359 - WA Charter School Commission",{"$f":"HLOOKUP($C$4,'Building RSF'!$A$3:$AK$109,MATCH($C83,'Building RSF'!$A$3:$A$109,0),FALSE)","v":0},null,{"$f":"HLOOKUP($C$4,'rent dollars FY22'!$A$3:$AL$108,MATCH($C83,'rent dollars FY22'!$A$3:$A$108,0),FALSE)","v":0},{"$f":"HLOOKUP($C$4,'Debt Dollars FY22'!$C$5:$AN$110,MATCH($C83,'Debt Dollars FY22'!$A$5:$A$110,0),FALSE)","v":0},{"$f":"HLOOKUP($C$4,'CC dollars FY22'!$B$6:$AR$111,MATCH($C83,'CC dollars FY22'!$B$6:$B$111,0),FALSE)","v":0},0,0,0,null,{"$f":"HLOOKUP($C$4,'rent dollars FY23'!$A$3:$AL$108,MATCH($C83,'rent dollars FY23'!$A$3:$A$108,0),FALSE)","v":0},{"$f":"HLOOKUP($C$4,'Debt Dollars FY23'!$C$5:$AN$110,MATCH($C83,'Debt Dollars FY23'!$A$5:$A$110,0),FALSE)","v":0},{"$f":"HLOOKUP($C$4,'CC dollars FY23'!$B$6:$AR$111,MATCH($C83,'CC dollars FY23'!$B$6:$B$111,0),FALSE)","v":0},0,0,0]
["HIDE",null,"360 - University of Washington",{"$f":"HLOOKUP($C$4,'Building RSF'!$A$3:$AK$109,MATCH($C84,'Building RSF'!$A$3:$A$109,0),FALSE)","v":0},null,{"$f":"HLOOKUP($C$4,'rent dollars FY22'!$A$3:$AL$108,MATCH($C84,'rent dollars FY22'!$A$3:$A$108,0),FALSE)","v":0},{"$f":"HLOOKUP($C$4,'Debt Dollars FY22'!$C$5:$AN$110,MATCH($C84,'Debt Dollars FY22'!$A$5:$A$110,0),FALSE)","v":0},{"$f":"HLOOKUP($C$4,'CC dollars FY22'!$B$6:$AR$111,MATCH($C84,'CC dollars FY22'!$B$6:$B$111,0),FALSE)","v":0},0,0,0,null,{"$f":"HLOOKUP($C$4,'rent dollars FY23'!$A$3:$AL$108,MATCH($C84,'rent dollars FY23'!$A$3:$A$108,0),FALSE)","v":0},{"$f":"HLOOKUP($C$4,'Debt Dollars FY23'!$C$5:$AN$110,MATCH($C84,'Debt Dollars FY23'!$A$5:$A$110,0),FALSE)","v":0},{"$f":"HLOOKUP($C$4,'CC dollars FY23'!$B$6:$AR$111,MATCH($C84,'CC dollars FY23'!$B$6:$B$111,0),FALSE)","v":0},0,0,0]
["HIDE",null,"365 - Washington State University",{"$f":"HLOOKUP($C$4,'Building RSF'!$A$3:$AK$109,MATCH($C85,'Building RSF'!$A$3:$A$109,0),FALSE)","v":0},null,{"$f":"HLOOKUP($C$4,'rent dollars FY22'!$A$3:$AL$108,MATCH($C85,'rent dollars FY22'!$A$3:$A$108,0),FALSE)","v":0},{"$f":"HLOOKUP($C$4,'Debt Dollars FY22'!$C$5:$AN$110,MATCH($C85,'Debt Dollars FY22'!$A$5:$A$110,0),FALSE)","v":0},{"$f":"HLOOKUP($C$4,'CC dollars FY22'!$B$6:$AR$111,MATCH($C85,'CC dollars FY22'!$B$6:$B$111,0),FALSE)","v":0},0,0,0,null,{"$f":"HLOOKUP($C$4,'rent dollars FY23'!$A$3:$AL$108,MATCH($C85,'rent dollars FY23'!$A$3:$A$108,0),FALSE)","v":0},{"$f":"HLOOKUP($C$4,'Debt Dollars FY23'!$C$5:$AN$110,MATCH($C85,'Debt Dollars FY23'!$A$5:$A$110,0),FALSE)","v":0},{"$f":"HLOOKUP($C$4,'CC dollars FY23'!$B$6:$AR$111,MATCH($C85,'CC dollars FY23'!$B$6:$B$111,0),FALSE)","v":0},0,0,0]
["HIDE",null,"370 - Eastern Washington University",{"$f":"HLOOKUP($C$4,'Building RSF'!$A$3:$AK$109,MATCH($C86,'Building RSF'!$A$3:$A$109,0),FALSE)","v":0},null,{"$f":"HLOOKUP($C$4,'rent dollars FY22'!$A$3:$AL$108,MATCH($C86,'rent dollars FY22'!$A$3:$A$108,0),FALSE)","v":0},{"$f":"HLOOKUP($C$4,'Debt Dollars FY22'!$C$5:$AN$110,MATCH($C86,'Debt Dollars FY22'!$A$5:$A$110,0),FALSE)","v":0},{"$f":"HLOOKUP($C$4,'CC dollars FY22'!$B$6:$AR$111,MATCH($C86,'CC dollars FY22'!$B$6:$B$111,0),FALSE)","v":0},0,0,0,null,{"$f":"HLOOKUP($C$4,'rent dollars FY23'!$A$3:$AL$108,MATCH($C86,'rent dollars FY23'!$A$3:$A$108,0),FALSE)","v":0},{"$f":"HLOOKUP($C$4,'Debt Dollars FY23'!$C$5:$AN$110,MATCH($C86,'Debt Dollars FY23'!$A$5:$A$110,0),FALSE)","v":0},{"$f":"HLOOKUP($C$4,'CC dollars FY23'!$B$6:$AR$111,MATCH($C86,'CC dollars FY23'!$B$6:$B$111,0),FALSE)","v":0},0,0,0]
["HIDE",null,"375 - Central Washington University",{"$f":"HLOOKUP($C$4,'Building RSF'!$A$3:$AK$109,MATCH($C87,'Building RSF'!$A$3:$A$109,0),FALSE)","v":0},null,{"$f":"HLOOKUP($C$4,'rent dollars FY22'!$A$3:$AL$108,MATCH($C87,'rent dollars FY22'!$A$3:$A$108,0),FALSE)","v":0},{"$f":"HLOOKUP($C$4,'Debt Dollars FY22'!$C$5:$AN$110,MATCH($C87,'Debt Dollars FY22'!$A$5:$A$110,0),FALSE)","v":0},{"$f":"HLOOKUP($C$4,'CC dollars FY22'!$B$6:$AR$111,MATCH($C87,'CC dollars FY22'!$B$6:$B$111,0),FALSE)","v":0},0,0,0,null,{"$f":"HLOOKUP($C$4,'rent dollars FY23'!$A$3:$AL$108,MATCH($C87,'rent dollars FY23'!$A$3:$A$108,0),FALSE)","v":0},{"$f":"HLOOKUP($C$4,'Debt Dollars FY23'!$C$5:$AN$110,MATCH($C87,'Debt Dollars FY23'!$A$5:$A$110,0),FALSE)","v":0},{"$f":"HLOOKUP($C$4,'CC dollars FY23'!$B$6:$AR$111,MATCH($C87,'CC dollars FY23'!$B$6:$B$111,0),FALSE)","v":0},0,0,0]
["HIDE",null,"376 - The Evergreen State College",{"$f":"HLOOKUP($C$4,'Building RSF'!$A$3:$AK$109,MATCH($C88,'Building RSF'!$A$3:$A$109,0),FALSE)","v":0},null,{"$f":"HLOOKUP($C$4,'rent dollars FY22'!$A$3:$AL$108,MATCH($C88,'rent dollars FY22'!$A$3:$A$108,0),FALSE)","v":0},{"$f":"HLOOKUP($C$4,'Debt Dollars FY22'!$C$5:$AN$110,MATCH($C88,'Debt Dollars FY22'!$A$5:$A$110,0),FALSE)","v":0},{"$f":"HLOOKUP($C$4,'CC dollars FY22'!$B$6:$AR$111,MATCH($C88,'CC dollars FY22'!$B$6:$B$111,0),FALSE)","v":0},0,0,0,null,{"$f":"HLOOKUP($C$4,'rent dollars FY23'!$A$3:$AL$108,MATCH($C88,'rent dollars FY23'!$A$3:$A$108,0),FALSE)","v":0},{"$f":"HLOOKUP($C$4,'Debt Dollars FY23'!$C$5:$AN$110,MATCH($C88,'Debt Dollars FY23'!$A$5:$A$110,0),FALSE)","v":0},{"$f":"HLOOKUP($C$4,'CC dollars FY23'!$B$6:$AR$111,MATCH($C88,'CC dollars FY23'!$B$6:$B$111,0),FALSE)","v":0},0,0,0]
["HIDE",null,"380 - Western Washington University",{"$f":"HLOOKUP($C$4,'Building RSF'!$A$3:$AK$109,MATCH($C89,'Building RSF'!$A$3:$A$109,0),FALSE)","v":0},null,{"$f":"HLOOKUP($C$4,'rent dollars FY22'!$A$3:$AL$108,MATCH($C89,'rent dollars FY22'!$A$3:$A$108,0),FALSE)","v":0},{"$f":"HLOOKUP($C$4,'Debt Dollars FY22'!$C$5:$AN$110,MATCH($C89,'Debt Dollars FY22'!$A$5:$A$110,0),FALSE)","v":0},{"$f":"HLOOKUP($C$4,'CC dollars FY22'!$B$6:$AR$111,MATCH($C89,'CC dollars FY22'!$B$6:$B$111,0),FALSE)","v":0},0,0,0,null,{"$f":"HLOOKUP($C$4,'rent dollars FY23'!$A$3:$AL$108,MATCH($C89,'rent dollars FY23'!$A$3:$A$108,0),FALSE)","v":0},{"$f":"HLOOKUP($C$4,'Debt Dollars FY23'!$C$5:$AN$110,MATCH($C89,'Debt Dollars FY23'!$A$5:$A$110,0),FALSE)","v":0},{"$f":"HLOOKUP($C$4,'CC dollars FY23'!$B$6:$AR$111,MATCH($C89,'CC dollars FY23'!$B$6:$B$111,0),FALSE)","v":0},0,0,0]
["HIDE",null,"387 - Washington State Arts Commission",{"$f":"HLOOKUP($C$4,'Building RSF'!$A$3:$AK$109,MATCH($C90,'Building RSF'!$A$3:$A$109,0),FALSE)","v":0},null,{"$f":"HLOOKUP($C$4,'rent dollars FY22'!$A$3:$AL$108,MATCH($C90,'rent dollars FY22'!$A$3:$A$108,0),FALSE)","v":0},{"$f":"HLOOKUP($C$4,'Debt Dollars FY22'!$C$5:$AN$110,MATCH($C90,'Debt Dollars FY22'!$A$5:$A$110,0),FALSE)","v":0},{"$f":"HLOOKUP($C$4,'CC dollars FY22'!$B$6:$AR$111,MATCH($C90,'CC dollars FY22'!$B$6:$B$111,0),FALSE)","v":0},0,0,0,null,{"$f":"HLOOKUP($C$4,'rent dollars FY23'!$A$3:$AL$108,MATCH($C90,'rent dollars FY23'!$A$3:$A$108,0),FALSE)","v":0},{"$f":"HLOOKUP($C$4,'Debt Dollars FY23'!$C$5:$AN$110,MATCH($C90,'Debt Dollars FY23'!$A$5:$A$110,0),FALSE)","v":0},{"$f":"HLOOKUP($C$4,'CC dollars FY23'!$B$6:$AR$111,MATCH($C90,'CC dollars FY23'!$B$6:$B$111,0),FALSE)","v":0},0,0,0]
["HIDE",null,"390 - Washington State Historical Society",{"$f":"HLOOKUP($C$4,'Building RSF'!$A$3:$AK$109,MATCH($C91,'Building RSF'!$A$3:$A$109,0),FALSE)","v":0},null,{"$f":"HLOOKUP($C$4,'rent dollars FY22'!$A$3:$AL$108,MATCH($C91,'rent dollars FY22'!$A$3:$A$108,0),FALSE)","v":0},{"$f":"HLOOKUP($C$4,'Debt Dollars FY22'!$C$5:$AN$110,MATCH($C91,'Debt Dollars FY22'!$A$5:$A$110,0),FALSE)","v":0},{"$f":"HLOOKUP($C$4,'CC dollars FY22'!$B$6:$AR$111,MATCH($C91,'CC dollars FY22'!$B$6:$B$111,0),FALSE)","v":0},0,0,0,null,{"$f":"HLOOKUP($C$4,'rent dollars FY23'!$A$3:$AL$108,MATCH($C91,'rent dollars FY23'!$A$3:$A$108,0),FALSE)","v":0},{"$f":"HLOOKUP($C$4,'Debt Dollars FY23'!$C$5:$AN$110,MATCH($C91,'Debt Dollars FY23'!$A$5:$A$110,0),FALSE)","v":0},{"$f":"HLOOKUP($C$4,'CC dollars FY23'!$B$6:$AR$111,MATCH($C91,'CC dollars FY23'!$B$6:$B$111,0),FALSE)","v":0},0,0,0]
["HIDE",null,"395 - Eastern Washington State Historical Society",{"$f":"HLOOKUP($C$4,'Building RSF'!$A$3:$AK$109,MATCH($C92,'Building RSF'!$A$3:$A$109,0),FALSE)","v":0},null,{"$f":"HLOOKUP($C$4,'rent dollars FY22'!$A$3:$AL$108,MATCH($C92,'rent dollars FY22'!$A$3:$A$108,0),FALSE)","v":0},{"$f":"HLOOKUP($C$4,'Debt Dollars FY22'!$C$5:$AN$110,MATCH($C92,'Debt Dollars FY22'!$A$5:$A$110,0),FALSE)","v":0},{"$f":"HLOOKUP($C$4,'CC dollars FY22'!$B$6:$AR$111,MATCH($C92,'CC dollars FY22'!$B$6:$B$111,0),FALSE)","v":0},0,0,0,null,{"$f":"HLOOKUP($C$4,'rent dollars FY23'!$A$3:$AL$108,MATCH($C92,'rent dollars FY23'!$A$3:$A$108,0),FALSE)","v":0},{"$f":"HLOOKUP($C$4,'Debt Dollars FY23'!$C$5:$AN$110,MATCH($C92,'Debt Dollars FY23'!$A$5:$A$110,0),FALSE)","v":0},{"$f":"HLOOKUP($C$4,'CC dollars FY23'!$B$6:$AR$111,MATCH($C92,'CC dollars FY23'!$B$6:$B$111,0),FALSE)","v":0},0,0,0]
["HIDE",null,"405 - Department of Transportation",{"$f":"HLOOKUP($C$4,'Building RSF'!$A$3:$AK$109,MATCH($C93,'Building RSF'!$A$3:$A$109,0),FALSE)","v":0},null,{"$f":"HLOOKUP($C$4,'rent dollars FY22'!$A$3:$AL$108,MATCH($C93,'rent dollars FY22'!$A$3:$A$108,0),FALSE)","v":0},{"$f":"HLOOKUP($C$4,'Debt Dollars FY22'!$C$5:$AN$110,MATCH($C93,'Debt Dollars FY22'!$A$5:$A$110,0),FALSE)","v":0},{"$f":"HLOOKUP($C$4,'CC dollars FY22'!$B$6:$AR$111,MATCH($C93,'CC dollars FY22'!$B$6:$B$111,0),FALSE)","v":0},0,0,0,null,{"$f":"HLOOKUP($C$4,'rent dollars FY23'!$A$3:$AL$108,MATCH($C93,'rent dollars FY23'!$A$3:$A$108,0),FALSE)","v":0},{"$f":"HLOOKUP($C$4,'Debt Dollars FY23'!$C$5:$AN$110,MATCH($C93,'Debt Dollars FY23'!$A$5:$A$110,0),FALSE)","v":0},{"$f":"HLOOKUP($C$4,'CC dollars FY23'!$B$6:$AR$111,MATCH($C93,'CC dollars FY23'!$B$6:$B$111,0),FALSE)","v":0},0,0,0]
["HIDE",null,"406 - County Road Administration Board",{"$f":"HLOOKUP($C$4,'Building RSF'!$A$3:$AK$109,MATCH($C94,'Building RSF'!$A$3:$A$109,0),FALSE)","v":0},null,{"$f":"HLOOKUP($C$4,'rent dollars FY22'!$A$3:$AL$108,MATCH($C94,'rent dollars FY22'!$A$3:$A$108,0),FALSE)","v":0},{"$f":"HLOOKUP($C$4,'Debt Dollars FY22'!$C$5:$AN$110,MATCH($C94,'Debt Dollars FY22'!$A$5:$A$110,0),FALSE)","v":0},{"$f":"HLOOKUP($C$4,'CC dollars FY22'!$B$6:$AR$111,MATCH($C94,'CC dollars FY22'!$B$6:$B$111,0),FALSE)","v":0},0,0,0,null,{"$f":"HLOOKUP($C$4,'rent dollars FY23'!$A$3:$AL$108,MATCH($C94,'rent dollars FY23'!$A$3:$A$108,0),FALSE)","v":0},{"$f":"HLOOKUP($C$4,'Debt Dollars FY23'!$C$5:$AN$110,MATCH($C94,'Debt Dollars FY23'!$A$5:$A$110,0),FALSE)","v":0},{"$f":"HLOOKUP($C$4,'CC dollars FY23'!$B$6:$AR$111,MATCH($C94,'CC dollars FY23'!$B$6:$B$111,0),FALSE)","v":0},0,0,0]
["HIDE",null,"407 - Transportation Improvement Board",{"$f":"HLOOKUP($C$4,'Building RSF'!$A$3:$AK$109,MATCH($C95,'Building RSF'!$A$3:$A$109,0),FALSE)","v":0},null,{"$f":"HLOOKUP($C$4,'rent dollars FY22'!$A$3:$AL$108,MATCH($C95,'rent dollars FY22'!$A$3:$A$108,0),FALSE)","v":0},{"$f":"HLOOKUP($C$4,'Debt Dollars FY22'!$C$5:$AN$110,MATCH($C95,'Debt Dollars FY22'!$A$5:$A$110,0),FALSE)","v":0},{"$f":"HLOOKUP($C$4,'CC dollars FY22'!$B$6:$AR$111,MATCH($C95,'CC dollars FY22'!$B$6:$B$111,0),FALSE)","v":0},0,0,0,null,{"$f":"HLOOKUP($C$4,'rent dollars FY23'!$A$3:$AL$108,MATCH($C95,'rent dollars FY23'!$A$3:$A$108,0),FALSE)","v":0},{"$f":"HLOOKUP($C$4,'Debt Dollars FY23'!$C$5:$AN$110,MATCH($C95,'Debt Dollars FY23'!$A$5:$A$110,0),FALSE)","v":0},{"$f":"HLOOKUP($C$4,'CC dollars FY23'!$B$6:$AR$111,MATCH($C95,'CC dollars FY23'!$B$6:$B$111,0),FALSE)","v":0},0,0,0]
["HIDE",null,"410 - Transportation Commission",{"$f":"HLOOKUP($C$4,'Building RSF'!$A$3:$AK$109,MATCH($C96,'Building RSF'!$A$3:$A$109,0),FALSE)","v":0},null,{"$f":"HLOOKUP($C$4,'rent dollars FY22'!$A$3:$AL$108,MATCH($C96,'rent dollars FY22'!$A$3:$A$108,0),FALSE)","v":0},{"$f":"HLOOKUP($C$4,'Debt Dollars FY22'!$C$5:$AN$110,MATCH($C96,'Debt Dollars FY22'!$A$5:$A$110,0),FALSE)","v":0},{"$f":"HLOOKUP($C$4,'CC dollars FY22'!$B$6:$AR$111,MATCH($C96,'CC dollars FY22'!$B$6:$B$111,0),FALSE)","v":0},0,0,0,null,{"$f":"HLOOKUP($C$4,'rent dollars FY23'!$A$3:$AL$108,MATCH($C96,'rent dollars FY23'!$A$3:$A$108,0),FALSE)","v":0},{"$f":"HLOOKUP($C$4,'Debt Dollars FY23'!$C$5:$AN$110,MATCH($C96,'Debt Dollars FY23'!$A$5:$A$110,0),FALSE)","v":0},{"$f":"HLOOKUP($C$4,'CC dollars FY23'!$B$6:$AR$111,MATCH($C96,'CC dollars FY23'!$B$6:$B$111,0),FALSE)","v":0},0,0,0]
["HIDE",null,"411 - Freight Mobility Strategic Investment Board",{"$f":"HLOOKUP($C$4,'Building RSF'!$A$3:$AK$109,MATCH($C97,'Building RSF'!$A$3:$A$109,0),FALSE)","v":0},null,{"$f":"HLOOKUP($C$4,'rent dollars FY22'!$A$3:$AL$108,MATCH($C97,'rent dollars FY22'!$A$3:$A$108,0),FALSE)","v":0},{"$f":"HLOOKUP($C$4,'Debt Dollars FY22'!$C$5:$AN$110,MATCH($C97,'Debt Dollars FY22'!$A$5:$A$110,0),FALSE)","v":0},{"$f":"HLOOKUP($C$4,'CC dollars FY22'!$B$6:$AR$111,MATCH($C97,'CC dollars FY22'!$B$6:$B$111,0),FALSE)","v":0},0,0,0,null,{"$f":"HLOOKUP($C$4,'rent dollars FY23'!$A$3:$AL$108,MATCH($C97,'rent dollars FY23'!$A$3:$A$108,0),FALSE)","v":0},{"$f":"HLOOKUP($C$4,'Debt Dollars FY23'!$C$5:$AN$110,MATCH($C97,'Debt Dollars FY23'!$A$5:$A$110,0),FALSE)","v":0},{"$f":"HLOOKUP($C$4,'CC dollars FY23'!$B$6:$AR$111,MATCH($C97,'CC dollars FY23'!$B$6:$B$111,0),FALSE)","v":0},0,0,0]
["HIDE",null,"460 - Columbia River Gorge Commission",{"$f":"HLOOKUP($C$4,'Building RSF'!$A$3:$AK$109,MATCH($C98,'Building RSF'!$A$3:$A$109,0),FALSE)","v":0},null,{"$f":"HLOOKUP($C$4,'rent dollars FY22'!$A$3:$AL$108,MATCH($C98,'rent dollars FY22'!$A$3:$A$108,0),FALSE)","v":0},{"$f":"HLOOKUP($C$4,'Debt Dollars FY22'!$C$5:$AN$110,MATCH($C98,'Debt Dollars FY22'!$A$5:$A$110,0),FALSE)","v":0},{"$f":"HLOOKUP($C$4,'CC dollars FY22'!$B$6:$AR$111,MATCH($C98,'CC dollars FY22'!$B$6:$B$111,0),FALSE)","v":0},0,0,0,null,{"$f":"HLOOKUP($C$4,'rent dollars FY23'!$A$3:$AL$108,MATCH($C98,'rent dollars FY23'!$A$3:$A$108,0),FALSE)","v":0},{"$f":"HLOOKUP($C$4,'Debt Dollars FY23'!$C$5:$AN$110,MATCH($C98,'Debt Dollars FY23'!$A$5:$A$110,0),FALSE)","v":0},{"$f":"HLOOKUP($C$4,'CC dollars FY23'!$B$6:$AR$111,MATCH($C98,'CC dollars FY23'!$B$6:$B$111,0),FALSE)","v":0},0,0,0]
["HIDE",null,"461 - Department of Ecology",{"$f":"HLOOKUP($C$4,'Building RSF'!$A$3:$AK$109,MATCH($C99,'Building RSF'!$A$3:$A$109,0),FALSE)","v":0},null,{"$f":"HLOOKUP($C$4,'rent dollars FY22'!$A$3:$AL$108,MATCH($C99,'rent dollars FY22'!$A$3:$A$108,0),FALSE)","v":0},{"$f":"HLOOKUP($C$4,'Debt Dollars FY22'!$C$5:$AN$110,MATCH($C99,'Debt Dollars FY22'!$A$5:$A$110,0),FALSE)","v":0},{"$f":"HLOOKUP($C$4,'CC dollars FY22'!$B$6:$AR$111,MATCH($C99,'CC dollars FY22'!$B$6:$B$111,0),FALSE)","v":0},0,0,0,null,{"$f":"HLOOKUP($C$4,'rent dollars FY23'!$A$3:$AL$108,MATCH($C99,'rent dollars FY23'!$A$3:$A$108,0),FALSE)","v":0},{"$f":"HLOOKUP($C$4,'Debt Dollars FY23'!$C$5:$AN$110,MATCH($C99,'Debt Dollars FY23'!$A$5:$A$110,0),FALSE)","v":0},{"$f":"HLOOKUP($C$4,'CC dollars FY23'!$B$6:$AR$111,MATCH($C99,'CC dollars FY23'!$B$6:$B$111,0),FALSE)","v":0},0,0,0]
["HIDE",null,"462 - Pollution Liability Insurance Program",{"$f":"HLOOKUP($C$4,'Building RSF'!$A$3:$AK$109,MATCH($C100,'Building RSF'!$A$3:$A$109,0),FALSE)","v":0},null,{"$f":"HLOOKUP($C$4,'rent dollars FY22'!$A$3:$AL$108,MATCH($C100,'rent dollars FY22'!$A$3:$A$108,0),FALSE)","v":0},{"$f":"HLOOKUP($C$4,'Debt Dollars FY22'!$C$5:$AN$110,MATCH($C100,'Debt Dollars FY22'!$A$5:$A$110,0),FALSE)","v":0},{"$f":"HLOOKUP($C$4,'CC dollars FY22'!$B$6:$AR$111,MATCH($C100,'CC dollars FY22'!$B$6:$B$111,0),FALSE)","v":0},0,0,0,null,{"$f":"HLOOKUP($C$4,'rent dollars FY23'!$A$3:$AL$108,MATCH($C100,'rent dollars FY23'!$A$3:$A$108,0),FALSE)","v":0},{"$f":"HLOOKUP($C$4,'Debt Dollars FY23'!$C$5:$AN$110,MATCH($C100,'Debt Dollars FY23'!$A$5:$A$110,0),FALSE)","v":0},{"$f":"HLOOKUP($C$4,'CC dollars FY23'!$B$6:$AR$111,MATCH($C100,'CC dollars FY23'!$B$6:$B$111,0),FALSE)","v":0},0,0,0]
["HIDE",null,"465 - State Parks and Recreation Commission",{"$f":"HLOOKUP($C$4,'Building RSF'!$A$3:$AK$109,MATCH($C101,'Building RSF'!$A$3:$A$109,0),FALSE)","v":0},null,{"$f":"HLOOKUP($C$4,'rent dollars FY22'!$A$3:$AL$108,MATCH($C101,'rent dollars FY22'!$A$3:$A$108,0),FALSE)","v":0},{"$f":"HLOOKUP($C$4,'Debt Dollars FY22'!$C$5:$AN$110,MATCH($C101,'Debt Dollars FY22'!$A$5:$A$110,0),FALSE)","v":0},{"$f":"HLOOKUP($C$4,'CC dollars FY22'!$B$6:$AR$111,MATCH($C101,'CC dollars FY22'!$B$6:$B$111,0),FALSE)","v":0},0,0,0,null,{"$f":"HLOOKUP($C$4,'rent dollars FY23'!$A$3:$AL$108,MATCH($C101,'rent dollars FY23'!$A$3:$A$108,0),FALSE)","v":0},{"$f":"HLOOKUP($C$4,'Debt Dollars FY23'!$C$5:$AN$110,MATCH($C101,'Debt Dollars FY23'!$A$5:$A$110,0),FALSE)","v":0},{"$f":"HLOOKUP($C$4,'CC dollars FY23'!$B$6:$AR$111,MATCH($C101,'CC dollars FY23'!$B$6:$B$111,0),FALSE)","v":0},0,0,0]
["HIDE",null,"467 - Recreation and Conservation Funding Board",{"$f":"HLOOKUP($C$4,'Building RSF'!$A$3:$AK$109,MATCH($C102,'Building RSF'!$A$3:$A$109,0),FALSE)","v":0},null,{"$f":"HLOOKUP($C$4,'rent dollars FY22'!$A$3:$AL$108,MATCH($C102,'rent dollars FY22'!$A$3:$A$108,0),FALSE)","v":0},{"$f":"HLOOKUP($C$4,'Debt Dollars FY22'!$C$5:$AN$110,MATCH($C102,'Debt Dollars FY22'!$A$5:$A$110,0),FALSE)","v":0},{"$f":"HLOOKUP($C$4,'CC dollars FY22'!$B$6:$AR$111,MATCH($C102,'CC dollars FY22'!$B$6:$B$111,0),FALSE)","v":0},0,0,0,null,{"$f":"HLOOKUP($C$4,'rent dollars FY23'!$A$3:$AL$108,MATCH($C102,'rent dollars FY23'!$A$3:$A$108,0),FALSE)","v":0},{"$f":"HLOOKUP($C$4,'Debt Dollars FY23'!$C$5:$AN$110,MATCH($C102,'Debt Dollars FY23'!$A$5:$A$110,0),FALSE)","v":0},{"$f":"HLOOKUP($C$4,'CC dollars FY23'!$B$6:$AR$111,MATCH($C102,'CC dollars FY23'!$B$6:$B$111,0),FALSE)","v":0},0,0,0]
["HIDE",null,"468 - Environmental and Land Use Hearings Office",{"$f":"HLOOKUP($C$4,'Building RSF'!$A$3:$AK$109,MATCH($C103,'Building RSF'!$A$3:$A$109,0),FALSE)","v":0},null,{"$f":"HLOOKUP($C$4,'rent dollars FY22'!$A$3:$AL$108,MATCH($C103,'rent dollars FY22'!$A$3:$A$108,0),FALSE)","v":0},{"$f":"HLOOKUP($C$4,'Debt Dollars FY22'!$C$5:$AN$110,MATCH($C103,'Debt Dollars FY22'!$A$5:$A$110,0),FALSE)","v":0},{"$f":"HLOOKUP($C$4,'CC dollars FY22'!$B$6:$AR$111,MATCH($C103,'CC dollars FY22'!$B$6:$B$111,0),FALSE)","v":0},{"$f":"SUM(F103:H103)","v":0},0,{"$f":"IFERROR(I103/D103,0)","v":0},null,{"$f":"HLOOKUP($C$4,'rent dollars FY23'!$A$3:$AL$108,MATCH($C103,'rent dollars FY23'!$A$3:$A$108,0),FALSE)","v":0},{"$f":"HLOOKUP($C$4,'Debt Dollars FY23'!$C$5:$AN$110,MATCH($C103,'Debt Dollars FY23'!$A$5:$A$110,0),FALSE)","v":0},{"$f":"HLOOKUP($C$4,'CC dollars FY23'!$B$6:$AR$111,MATCH($C103,'CC dollars FY23'!$B$6:$B$111,0),FALSE)","v":0},{"$f":"SUM(M103:O103)","v":0},0,{"$f":"IFERROR(P103/D103,0)","v":0}]
["HIDE",null,"471 - State Conservation Commission",{"$f":"HLOOKUP($C$4,'Building RSF'!$A$3:$AK$109,MATCH($C104,'Building RSF'!$A$3:$A$109,0),FALSE)","v":0},null,{"$f":"HLOOKUP($C$4,'rent dollars FY22'!$A$3:$AL$108,MATCH($C104,'rent dollars FY22'!$A$3:$A$108,0),FALSE)","v":0},{"$f":"HLOOKUP($C$4,'Debt Dollars FY22'!$C$5:$AN$110,MATCH($C104,'Debt Dollars FY22'!$A$5:$A$110,0),FALSE)","v":0},{"$f":"HLOOKUP($C$4,'CC dollars FY22'!$B$6:$AR$111,MATCH($C104,'CC dollars FY22'!$B$6:$B$111,0),FALSE)","v":0},0,0,0,null,{"$f":"HLOOKUP($C$4,'rent dollars FY23'!$A$3:$AL$108,MATCH($C104,'rent dollars FY23'!$A$3:$A$108,0),FALSE)","v":0},{"$f":"HLOOKUP($C$4,'Debt Dollars FY23'!$C$5:$AN$110,MATCH($C104,'Debt Dollars FY23'!$A$5:$A$110,0),FALSE)","v":0},{"$f":"HLOOKUP($C$4,'CC dollars FY23'!$B$6:$AR$111,MATCH($C104,'CC dollars FY23'!$B$6:$B$111,0),FALSE)","v":0},0,0,0]
["HIDE",null,"477 - Department of Fish and Wildlife",{"$f":"HLOOKUP($C$4,'Building RSF'!$A$3:$AK$109,MATCH($C105,'Building RSF'!$A$3:$A$109,0),FALSE)","v":0},null,{"$f":"HLOOKUP($C$4,'rent dollars FY22'!$A$3:$AL$108,MATCH($C105,'rent dollars FY22'!$A$3:$A$108,0),FALSE)","v":0},{"$f":"HLOOKUP($C$4,'Debt Dollars FY22'!$C$5:$AN$110,MATCH($C105,'Debt Dollars FY22'!$A$5:$A$110,0),FALSE)","v":0},{"$f":"HLOOKUP($C$4,'CC dollars FY22'!$B$6:$AR$111,MATCH($C105,'CC dollars FY22'!$B$6:$B$111,0),FALSE)","v":0},0,0,0,null,{"$f":"HLOOKUP($C$4,'rent dollars FY23'!$A$3:$AL$108,MATCH($C105,'rent dollars FY23'!$A$3:$A$108,0),FALSE)","v":0},{"$f":"HLOOKUP($C$4,'Debt Dollars FY23'!$C$5:$AN$110,MATCH($C105,'Debt Dollars FY23'!$A$5:$A$110,0),FALSE)","v":0},{"$f":"HLOOKUP($C$4,'CC dollars FY23'!$B$6:$AR$111,MATCH($C105,'CC dollars FY23'!$B$6:$B$111,0),FALSE)","v":0},0,0,0]
["HIDE",null,"478 - Puget Sound Partnership",{"$f":"HLOOKUP($C$4,'Building RSF'!$A$3:$AK$109,MATCH($C106,'Building RSF'!$A$3:$A$109,0),FALSE)","v":0},null,{"$f":"HLOOKUP($C$4,'rent dollars FY22'!$A$3:$AL$108,MATCH($C106,'rent dollars FY22'!$A$3:$A$108,0),FALSE)","v":0},{"$f":"HLOOKUP($C$4,'Debt Dollars FY22'!$C$5:$AN$110,MATCH($C106,'Debt Dollars FY22'!$A$5:$A$110,0),FALSE)","v":0},{"$f":"HLOOKUP($C$4,'CC dollars FY22'!$B$6:$AR$111,MATCH($C106,'CC dollars FY22'!$B$6:$B$111,0),FALSE)","v":0},0,0,0,null,{"$f":"HLOOKUP($C$4,'rent dollars FY23'!$A$3:$AL$108,MATCH($C106,'rent dollars FY23'!$A$3:$A$108,0),FALSE)","v":0},{"$f":"HLOOKUP($C$4,'Debt Dollars FY23'!$C$5:$AN$110,MATCH($C106,'Debt Dollars FY23'!$A$5:$A$110,0),FALSE)","v":0},{"$f":"HLOOKUP($C$4,'CC dollars FY23'!$B$6:$AR$111,MATCH($C106,'CC dollars FY23'!$B$6:$B$111,0),FALSE)","v":0},0,0,0]
["HIDE",null,"490 - Department of Natural Resources",{"$f":"HLOOKUP($C$4,'Building RSF'!$A$3:$AK$109,MATCH($C107,'Building RSF'!$A$3:$A$109,0),FALSE)","v":0},null,{"$f":"HLOOKUP($C$4,'rent dollars FY22'!$A$3:$AL$108,MATCH($C107,'rent dollars FY22'!$A$3:$A$108,0),FALSE)","v":0},{"$f":"HLOOKUP($C$4,'Debt Dollars FY22'!$C$5:$AN$110,MATCH($C107,'Debt Dollars FY22'!$A$5:$A$110,0),FALSE)","v":0},{"$f":"HLOOKUP($C$4,'CC dollars FY22'!$B$6:$AR$111,MATCH($C107,'CC dollars FY22'!$B$6:$B$111,0),FALSE)","v":0},0,0,0,null,{"$f":"HLOOKUP($C$4,'rent dollars FY23'!$A$3:$AL$108,MATCH($C107,'rent dollars FY23'!$A$3:$A$108,0),FALSE)","v":0},{"$f":"HLOOKUP($C$4,'Debt Dollars FY23'!$C$5:$AN$110,MATCH($C107,'Debt Dollars FY23'!$A$5:$A$110,0),FALSE)","v":0},{"$f":"HLOOKUP($C$4,'CC dollars FY23'!$B$6:$AR$111,MATCH($C107,'CC dollars FY23'!$B$6:$B$111,0),FALSE)","v":0},0,0,0]
["HIDE",null,"495 - Department of Agriculture",{"$f":"HLOOKUP($C$4,'Building RSF'!$A$3:$AK$109,MATCH($C108,'Building RSF'!$A$3:$A$109,0),FALSE)","v":0},null,{"$f":"HLOOKUP($C$4,'rent dollars FY22'!$A$3:$AL$108,MATCH($C108,'rent dollars FY22'!$A$3:$A$108,0),FALSE)","v":0},{"$f":"HLOOKUP($C$4,'Debt Dollars FY22'!$C$5:$AN$110,MATCH($C108,'Debt Dollars FY22'!$A$5:$A$110,0),FALSE)","v":0},{"$f":"HLOOKUP($C$4,'CC dollars FY22'!$B$6:$AR$111,MATCH($C108,'CC dollars FY22'!$B$6:$B$111,0),FALSE)","v":0},0,0,0,null,{"$f":"HLOOKUP($C$4,'rent dollars FY23'!$A$3:$AL$108,MATCH($C108,'rent dollars FY23'!$A$3:$A$108,0),FALSE)","v":0},{"$f":"HLOOKUP($C$4,'Debt Dollars FY23'!$C$5:$AN$110,MATCH($C108,'Debt Dollars FY23'!$A$5:$A$110,0),FALSE)","v":0},{"$f":"HLOOKUP($C$4,'CC dollars FY23'!$B$6:$AR$111,MATCH($C108,'CC dollars FY23'!$B$6:$B$111,0),FALSE)","v":0},0,0,0]
["HIDE",null,"540 - Employment Security Department",{"$f":"HLOOKUP($C$4,'Building RSF'!$A$3:$AK$109,MATCH($C109,'Building RSF'!$A$3:$A$109,0),FALSE)","v":0},null,{"$f":"HLOOKUP($C$4,'rent dollars FY22'!$A$3:$AL$108,MATCH($C109,'rent dollars FY22'!$A$3:$A$108,0),FALSE)","v":0},{"$f":"HLOOKUP($C$4,'Debt Dollars FY22'!$C$5:$AN$110,MATCH($C109,'Debt Dollars FY22'!$A$5:$A$110,0),FALSE)","v":0},{"$f":"HLOOKUP($C$4,'CC dollars FY22'!$B$6:$AR$111,MATCH($C109,'CC dollars FY22'!$B$6:$B$111,0),FALSE)","v":0},0,0,0,null,{"$f":"HLOOKUP($C$4,'rent dollars FY23'!$A$3:$AL$108,MATCH($C109,'rent dollars FY23'!$A$3:$A$108,0),FALSE)","v":0},{"$f":"HLOOKUP($C$4,'Debt Dollars FY23'!$C$5:$AN$110,MATCH($C109,'Debt Dollars FY23'!$A$5:$A$110,0),FALSE)","v":0},{"$f":"HLOOKUP($C$4,'CC dollars FY23'!$B$6:$AR$111,MATCH($C109,'CC dollars FY23'!$B$6:$B$111,0),FALSE)","v":0},0,0,0]
["HIDE",null,"699 - Community Colleges",{"$f":"HLOOKUP($C$4,'Building RSF'!$A$3:$AK$109,MATCH($C110,'Building RSF'!$A$3:$A$109,0),FALSE)","v":0},null,{"$f":"HLOOKUP($C$4,'rent dollars FY22'!$A$3:$AL$108,MATCH($C110,'rent dollars FY22'!$A$3:$A$108,0),FALSE)","v":0},{"$f":"HLOOKUP($C$4,'Debt Dollars FY22'!$C$5:$AN$110,MATCH($C110,'Debt Dollars FY22'!$A$5:$A$110,0),FALSE)","v":0},{"$f":"HLOOKUP($C$4,'CC dollars FY22'!$B$6:$AR$111,MATCH($C110,'CC dollars FY22'!$B$6:$B$111,0),FALSE)","v":0},0,0,0,null,{"$f":"HLOOKUP($C$4,'rent dollars FY23'!$A$3:$AL$108,MATCH($C110,'rent dollars FY23'!$A$3:$A$108,0),FALSE)","v":0},{"$f":"HLOOKUP($C$4,'Debt Dollars FY23'!$C$5:$AN$110,MATCH($C110,'Debt Dollars FY23'!$A$5:$A$110,0),FALSE)","v":0},{"$f":"HLOOKUP($C$4,'CC dollars FY23'!$B$6:$AR$111,MATCH($C110,'CC dollars FY23'!$B$6:$B$111,0),FALSE)","v":0},0,0,0]
["VIEW",null,"TOTAL",{"$f":"SUM(D7:D110)","v":20708},{"$f":"SUM(E7:E110)","v":0},97327.22813702545,0,3647.626375278016,100974.85451230347,8414.5712093586226,{"$f":"I111/D111","v":4.8761278014440537},null,{"$f":"SUM(M7:M110)","v":101334.45123406521},{"$f":"SUM(N7:N110)","v":0},{"$f":"SUM(O7:O110)","v":3697.9597846956171},{"$f":"SUM(P7:P110)","v":105032.41101876083},{"$f":"SUM(Q7:Q110)","v":8752.7009182300699},{"$f":"P111/D111","v":5.0720692977960606}]
["VIEW"]
["VIEW",null,"Notes:"]
[{"$f":"IF(C4=\"Tacoma Rhodes\",\"VIEW\",\"HIDE\")","v":"HIDE"},null,"o  Tacoma Rhodes:   This building was recently sold to private ownership.  DES will work with OFM to have this building removed from the CSM in the Supplemental 22 Budget."]
["VIEW",null,"o  Campus Contracts (CC) is invoiced in three parts:  "]
["VIEW",null,"1) CC Bldg pays for CC services within the buildings (see rent tab)"]
["VIEW",null,"2) CC Parking pays for CC services within parking garages and lots (see Other Facility Related Costs tab)"]
["VIEW",null,"3) CC PHF pays for CC services in public & historic spaces (see Other Facility Related Costs tab)  Note*  Public and Historic Facilities may not be eligible for Federal Funding or Reimbursement"]
["VIEW",null,"o  Facilities and Services charges for the House (011), Sentate (012), LSS (037), LSC (038) and Statute Law (040) for traditionally \"on-campus\" buildings are funded by an appropriation to DES and will not be invoiced. "]
["VIEW"]
["VIEW"]
["VIEW",null,null,null,null,null,null,null,"Prepared by DES Budget, Finance Division.  For question relating to CSM charges from DES, please contact DES Budget, desbudget@des.wa.gov"]
["VIEW"]
["VIEW"]
["VIEW"]
["VIEW"]
["VIEW"]
["VIEW"]
["VIEW"]
["VIEW"]
["VIEW"]
["VIEW"]
["VIEW"]
["VIEW"]
["VIEW"]
["VIEW"]
["VIEW"]
["VIEW"]
["VIEW"]
["VIEW"]
["VIEW"]
["VIEW"]
["VIEW"]
["VIEW"]
["VIEW"]

{"sheet":"Other Facility Related Costs","index":3,"n_rows":292,"n_cols":27,"rows_kept":292,"cut":false,"hidden":false,"merged":[[4,5,4,15],[4,17,4,26],[3,2,3,4]]}
["VIEW"]
["VIEW",null,"Other Facility related Costs in the Central Service Model",null,null,null,null,null,null,null,null,null,null,null,null,"Department of Enterprise Services"]
["VIEW",null,"Agency",null,null,null,null,null,null,null,null,null,null,null,null,"scroll right for FY23 è"]
["VIEW",null,"011 - House of Representatives",null,null,null,"ç Select Agency Here"]
["VIEW",null,null,null,null,"Fiscal Year 22",null,null,null,null,null,null,null,null,null,null,null,"Fiscal Year 23"]
["VIEW",null,"Building","occupied RSF","Thurston FTEs",null,"Parking Surcharge","Capital Project Surcharge","Campus Contracts\nCSM (Parking)","Campus Contracts\nCSM (PHF)","Public Historic Facilities","Perry St. & Capitol Childcare","Security on Campus","TOTAL\nAnnual Cost","Monthly Charge","Rate/(RSF or Thurston FTE)",null,"Parking Surcharge","Capital Project Surcharge","Campus Contracts\nCSM (Parking)","Campus Contracts\nCSM (PHF)","Public Historic Facilities","Perry St. & Capitol Childcare","Security on Campus","TOTAL RENT\nAnnual Cost","Monthly Charge","Rate/(RSF or Thurston FTE)"]
[{"$f":"IF(D7=0,\"HIDE\",\"VIEW\")","v":"HIDE"},null,"Cherberg",{"$f":"VLOOKUP($C$4,'Building RSF'!$A$3:$AK$109,MATCH($C7,'Building RSF'!$A$3:$AK$3,0),FALSE)","v":0},null,null,{"$f":"VLOOKUP($C$4,'Park Dollars FY22'!$A$3:$AL$113,MATCH($C7,'Park Dollars FY22'!$A$4:$AL$4,0),FALSE)","v":0},{"$f":"VLOOKUP($C$4,'CPS Dollars FY22'!$A$4:$AL$109,MATCH($C7,'Park Dollars FY22'!$A$4:$AL$4,0),FALSE)","v":0},{"$f":"VLOOKUP($C$4,'CC park dollars FY22'!$B$5:$AR$112,MATCH($C7,'CC park dollars FY22'!$B$6:$AR$6,0),FALSE)","v":0},null,null,null,{"$f":"VLOOKUP($C$4,'Security Dollars FY22'!$A$2:$AL$108,MATCH($C7,'Security Dollars FY22'!$A$3:$AL$3,0),FALSE)","v":0},{"$f":"SUM(G7:M7)","v":0},{"$f":"N7/12","v":0},{"$f":"IFERROR(N7/D7,0)","v":0},null,{"$f":"VLOOKUP($C$4,'Park Dollars FY23'!$A$3:$AL$113,MATCH($C7,'Park Dollars FY23'!$A$4:$AL$4,0),FALSE)","v":0},{"$f":"VLOOKUP($C$4,'CPS Dollars FY23'!$A$4:$AL$109,MATCH($C7,'Park Dollars FY23'!$A$4:$AL$4,0),FALSE)","v":0},{"$f":"VLOOKUP($C$4,'CC park dollars FY23'!$B$5:$AR$112,MATCH($C7,'CC park dollars FY23'!$B$6:$AR$6,0),FALSE)","v":0},null,null,null,{"$f":"VLOOKUP($C$4,'Security Dollars FY23'!$A$2:$AL$108,MATCH($C7,'Security Dollars FY23'!$A$3:$AL$3,0),FALSE)","v":0},{"$f":"SUM(R7:X7)","v":0},{"$f":"Y7/12","v":0},{"$f":"IFERROR(Y7/D7,0)","v":0}]
[{"$f":"IF(D8=0,\"HIDE\",\"VIEW\")","v":"VIEW"},null,"O'Brien",{"$f":"VLOOKUP($C$4,'Building RSF'!$A$3:$AK$109,MATCH($C8,'Building RSF'!$A$3:$AK$3,0),FALSE)","v":78594},null,null,{"$f":"VLOOKUP($C$4,'Park Dollars FY22'!$A$3:$AL$113,MATCH($C8,'Park Dollars FY22'!$A$4:$AL$4,0),FALSE)","v":30189.107424870006},{"$f":"VLOOKUP($C$4,'CPS Dollars FY22'!$A$4:$AL$109,MATCH($C8,'Park Dollars FY22'!$A$4:$AL$4,0),FALSE)","v":94055.122897224748},{"$f":"VLOOKUP($C$4,'CC park dollars FY22'!$B$5:$AR$112,MATCH($C8,'CC park dollars FY22'!$B$6:$AR$6,0),FALSE)","v":4796.4966393761106},null,null,null,{"$f":"VLOOKUP($C$4,'Security Dollars FY22'!$A$2:$AL$108,MATCH($C8,'Security Dollars FY22'!$A$3:$AL$3,0),FALSE)","v":157645.6095236594},{"$f":"SUM(G8:M8)","v":286686.33648513025},{"$f":"N8/12","v":23890.528040427522},{"$f":"IFERROR(N8/D8,0)","v":3.6476873105469916},null,{"$f":"VLOOKUP($C$4,'Park Dollars FY23'!$A$3:$AL$113,MATCH($C8,'Park Dollars FY23'!$A$4:$AL$4,0),FALSE)","v":31563.541183784691},{"$f":"VLOOKUP($C$4,'CPS Dollars FY23'!$A$4:$AL$109,MATCH($C8,'Park Dollars FY23'!$A$4:$AL$4,0),FALSE)","v":94077.425548013809},{"$f":"VLOOKUP($C$4,'CC park dollars FY23'!$B$5:$AR$112,MATCH($C8,'CC park dollars FY23'!$B$6:$AR$6,0),FALSE)","v":4862.6832506902874},null,null,null,{"$f":"VLOOKUP($C$4,'Security Dollars FY23'!$A$2:$AL$108,MATCH($C8,'Security Dollars FY23'!$A$3:$AL$3,0),FALSE)","v":127541.9464518707},258045.5964343595,{"$f":"Y8/12","v":21503.799702863293},3.2832734869628659]
["VIEW",null,"Legislative",{"$f":"VLOOKUP($C$4,'Building RSF'!$A$3:$AK$109,MATCH($C9,'Building RSF'!$A$3:$AK$3,0),FALSE)","v":45304},null,null,{"$f":"VLOOKUP($C$4,'Park Dollars FY22'!$A$3:$AL$113,MATCH($C9,'Park Dollars FY22'!$A$4:$AL$4,0),FALSE)","v":17401.930462583794},{"$f":"VLOOKUP($C$4,'CPS Dollars FY22'!$A$4:$AL$109,MATCH($C9,'Park Dollars FY22'!$A$4:$AL$4,0),FALSE)","v":129576.87810378314},{"$f":"VLOOKUP($C$4,'CC park dollars FY22'!$B$5:$AR$112,MATCH($C9,'CC park dollars FY22'!$B$6:$AR$6,0),FALSE)","v":2764.8482549596065},null,null,null,{"$f":"VLOOKUP($C$4,'Security Dollars FY22'!$A$2:$AL$108,MATCH($C9,'Security Dollars FY22'!$A$3:$AL$3,0),FALSE)","v":188040.06235340083},337783.71917472733,28148.643264560611,7.4559358814834749,null,{"$f":"VLOOKUP($C$4,'Park Dollars FY23'!$A$3:$AL$113,MATCH($C9,'Park Dollars FY23'!$A$4:$AL$4,0),FALSE)","v":18194.196373644067},{"$f":"VLOOKUP($C$4,'CPS Dollars FY23'!$A$4:$AL$109,MATCH($C9,'Park Dollars FY23'!$A$4:$AL$4,0),FALSE)","v":129607.60378648565},{"$f":"VLOOKUP($C$4,'CC park dollars FY23'!$B$5:$AR$112,MATCH($C9,'CC park dollars FY23'!$B$6:$AR$6,0),FALSE)","v":2803.0002543358628},null,null,null,{"$f":"VLOOKUP($C$4,'Security Dollars FY23'!$A$2:$AL$108,MATCH($C9,'Security Dollars FY23'!$A$3:$AL$3,0),FALSE)","v":152132.34060847419},302737.14102293982,25228.095085244986,6.6823490425335468]
["HIDE",null,"Pritchard",{"$f":"VLOOKUP($C$4,'Building RSF'!$A$3:$AK$109,MATCH($C10,'Building RSF'!$A$3:$AK$3,0),FALSE)","v":0},null,null,{"$f":"VLOOKUP($C$4,'Park Dollars FY22'!$A$3:$AL$113,MATCH($C10,'Park Dollars FY22'!$A$4:$AL$4,0),FALSE)","v":0},{"$f":"VLOOKUP($C$4,'CPS Dollars FY22'!$A$4:$AL$109,MATCH($C10,'Park Dollars FY22'!$A$4:$AL$4,0),FALSE)","v":0},{"$f":"VLOOKUP($C$4,'CC park dollars FY22'!$B$5:$AR$112,MATCH($C10,'CC park dollars FY22'!$B$6:$AR$6,0),FALSE)","v":0},null,null,null,{"$f":"VLOOKUP($C$4,'Security Dollars FY22'!$A$2:$AL$108,MATCH($C10,'Security Dollars FY22'!$A$3:$AL$3,0),FALSE)","v":0},0,0,0,null,{"$f":"VLOOKUP($C$4,'Park Dollars FY23'!$A$3:$AL$113,MATCH($C10,'Park Dollars FY23'!$A$4:$AL$4,0),FALSE)","v":0},{"$f":"VLOOKUP($C$4,'CPS Dollars FY23'!$A$4:$AL$109,MATCH($C10,'Park Dollars FY23'!$A$4:$AL$4,0),FALSE)","v":0},{"$f":"VLOOKUP($C$4,'CC park dollars FY23'!$B$5:$AR$112,MATCH($C10,'CC park dollars FY23'!$B$6:$AR$6,0),FALSE)","v":0},null,null,null,{"$f":"VLOOKUP($C$4,'Security Dollars FY23'!$A$2:$AL$108,MATCH($C10,'Security Dollars FY23'!$A$3:$AL$3,0),FALSE)","v":0},0,0,0]
["HIDE",null,"HLB",{"$f":"VLOOKUP($C$4,'Building RSF'!$A$3:$AK$109,MATCH($C11,'Building RSF'!$A$3:$AK$3,0),FALSE)","v":0},null,null,{"$f":"VLOOKUP($C$4,'Park Dollars FY22'!$A$3:$AL$113,MATCH($C11,'Park Dollars FY22'!$A$4:$AL$4,0),FALSE)","v":0},{"$f":"VLOOKUP($C$4,'CPS Dollars FY22'!$A$4:$AL$109,MATCH($C11,'Park Dollars FY22'!$A$4:$AL$4,0),FALSE)","v":0},{"$f":"VLOOKUP($C$4,'CC park dollars FY22'!$B$5:$AR$112,MATCH($C11,'CC park dollars FY22'!$B$6:$AR$6,0),FALSE)","v":0},null,null,null,{"$f":"VLOOKUP($C$4,'Security Dollars FY22'!$A$2:$AL$108,MATCH($C11,'Security Dollars FY22'!$A$3:$AL$3,0),FALSE)","v":0},0,0,0,null,{"$f":"VLOOKUP($C$4,'Park Dollars FY23'!$A$3:$AL$113,MATCH($C11,'Park Dollars FY23'!$A$4:$AL$4,0),FALSE)","v":0},{"$f":"VLOOKUP($C$4,'CPS Dollars FY23'!$A$4:$AL$109,MATCH($C11,'Park Dollars FY23'!$A$4:$AL$4,0),FALSE)","v":0},{"$f":"VLOOKUP($C$4,'CC park dollars FY23'!$B$5:$AR$112,MATCH($C11,'CC park dollars FY23'!$B$6:$AR$6,0),FALSE)","v":0},null,null,null,{"$f":"VLOOKUP($C$4,'Security Dollars FY23'!$A$2:$AL$108,MATCH($C11,'Security Dollars FY23'!$A$3:$AL$3,0),FALSE)","v":0},0,0,0]
["HIDE",null,"OB2",{"$f":"VLOOKUP($C$4,'Building RSF'!$A$3:$AK$109,MATCH($C12,'Building RSF'!$A$3:$AK$3,0),FALSE)","v":0},null,null,{"$f":"VLOOKUP($C$4,'Park Dollars FY22'!$A$3:$AL$113,MATCH($C12,'Park Dollars FY22'!$A$4:$AL$4,0),FALSE)","v":0},{"$f":"VLOOKUP($C$4,'CPS Dollars FY22'!$A$4:$AL$109,MATCH($C12,'Park Dollars FY22'!$A$4:$AL$4,0),FALSE)","v":0},{"$f":"VLOOKUP($C$4,'CC park dollars FY22'!$B$5:$AR$112,MATCH($C12,'CC park dollars FY22'!$B$6:$AR$6,0),FALSE)","v":0},null,null,null,{"$f":"VLOOKUP($C$4,'Security Dollars FY22'!$A$2:$AL$108,MATCH($C12,'Security Dollars FY22'!$A$3:$AL$3,0),FALSE)","v":0},0,0,0,null,{"$f":"VLOOKUP($C$4,'Park Dollars FY23'!$A$3:$AL$113,MATCH($C12,'Park Dollars FY23'!$A$4:$AL$4,0),FALSE)","v":0},{"$f":"VLOOKUP($C$4,'CPS Dollars FY23'!$A$4:$AL$109,MATCH($C12,'Park Dollars FY23'!$A$4:$AL$4,0),FALSE)","v":0},{"$f":"VLOOKUP($C$4,'CC park dollars FY23'!$B$5:$AR$112,MATCH($C12,'CC park dollars FY23'!$B$6:$AR$6,0),FALSE)","v":0},null,null,null,{"$f":"VLOOKUP($C$4,'Security Dollars FY23'!$A$2:$AL$108,MATCH($C12,'Security Dollars FY23'!$A$3:$AL$3,0),FALSE)","v":0},0,0,0]
["HIDE",null,"Archives",{"$f":"VLOOKUP($C$4,'Building RSF'!$A$3:$AK$109,MATCH($C13,'Building RSF'!$A$3:$AK$3,0),FALSE)","v":0},null,null,{"$f":"VLOOKUP($C$4,'Park Dollars FY22'!$A$3:$AL$113,MATCH($C13,'Park Dollars FY22'!$A$4:$AL$4,0),FALSE)","v":0},{"$f":"VLOOKUP($C$4,'CPS Dollars FY22'!$A$4:$AL$109,MATCH($C13,'Park Dollars FY22'!$A$4:$AL$4,0),FALSE)","v":0},{"$f":"VLOOKUP($C$4,'CC park dollars FY22'!$B$5:$AR$112,MATCH($C13,'CC park dollars FY22'!$B$6:$AR$6,0),FALSE)","v":0},null,null,null,{"$f":"VLOOKUP($C$4,'Security Dollars FY22'!$A$2:$AL$108,MATCH($C13,'Security Dollars FY22'!$A$3:$AL$3,0),FALSE)","v":0},0,0,0,null,{"$f":"VLOOKUP($C$4,'Park Dollars FY23'!$A$3:$AL$113,MATCH($C13,'Park Dollars FY23'!$A$4:$AL$4,0),FALSE)","v":0},{"$f":"VLOOKUP($C$4,'CPS Dollars FY23'!$A$4:$AL$109,MATCH($C13,'Park Dollars FY23'!$A$4:$AL$4,0),FALSE)","v":0},{"$f":"VLOOKUP($C$4,'CC park dollars FY23'!$B$5:$AR$112,MATCH($C13,'CC park dollars FY23'!$B$6:$AR$6,0),FALSE)","v":0},null,null,null,{"$f":"VLOOKUP($C$4,'Security Dollars FY23'!$A$2:$AL$108,MATCH($C13,'Security Dollars FY23'!$A$3:$AL$3,0),FALSE)","v":0},0,0,0]
["HIDE",null,"NRB",{"$f":"VLOOKUP($C$4,'Building RSF'!$A$3:$AK$109,MATCH($C14,'Building RSF'!$A$3:$AK$3,0),FALSE)","v":0},null,null,{"$f":"VLOOKUP($C$4,'Park Dollars FY22'!$A$3:$AL$113,MATCH($C14,'Park Dollars FY22'!$A$4:$AL$4,0),FALSE)","v":0},{"$f":"VLOOKUP($C$4,'CPS Dollars FY22'!$A$4:$AL$109,MATCH($C14,'Park Dollars FY22'!$A$4:$AL$4,0),FALSE)","v":0},{"$f":"VLOOKUP($C$4,'CC park dollars FY22'!$B$5:$AR$112,MATCH($C14,'CC park dollars FY22'!$B$6:$AR$6,0),FALSE)","v":0},null,null,null,{"$f":"VLOOKUP($C$4,'Security Dollars FY22'!$A$2:$AL$108,MATCH($C14,'Security Dollars FY22'!$A$3:$AL$3,0),FALSE)","v":0},0,0,0,null,{"$f":"VLOOKUP($C$4,'Park Dollars FY23'!$A$3:$AL$113,MATCH($C14,'Park Dollars FY23'!$A$4:$AL$4,0),FALSE)","v":0},{"$f":"VLOOKUP($C$4,'CPS Dollars FY23'!$A$4:$AL$109,MATCH($C14,'Park Dollars FY23'!$A$4:$AL$4,0),FALSE)","v":0},{"$f":"VLOOKUP($C$4,'CC park dollars FY23'!$B$5:$AR$112,MATCH($C14,'CC park dollars FY23'!$B$6:$AR$6,0),FALSE)","v":0},null,null,null,{"$f":"VLOOKUP($C$4,'Security Dollars FY23'!$A$2:$AL$108,MATCH($C14,'Security Dollars FY23'!$A$3:$AL$3,0),FALSE)","v":0},0,0,0]
["HIDE",null,"Emp Sec",{"$f":"VLOOKUP($C$4,'Building RSF'!$A$3:$AK$109,MATCH($C15,'Building RSF'!$A$3:$AK$3,0),FALSE)","v":0},null,null,{"$f":"VLOOKUP($C$4,'Park Dollars FY22'!$A$3:$AL$113,MATCH($C15,'Park Dollars FY22'!$A$4:$AL$4,0),FALSE)","v":0},{"$f":"VLOOKUP($C$4,'CPS Dollars FY22'!$A$4:$AL$109,MATCH($C15,'Park Dollars FY22'!$A$4:$AL$4,0),FALSE)","v":0},{"$f":"VLOOKUP($C$4,'CC park dollars FY22'!$B$5:$AR$112,MATCH($C15,'CC park dollars FY22'!$B$6:$AR$6,0),FALSE)","v":0},null,null,null,{"$f":"VLOOKUP($C$4,'Security Dollars FY22'!$A$2:$AL$108,MATCH($C15,'Security Dollars FY22'!$A$3:$AL$3,0),FALSE)","v":0},0,0,0,null,{"$f":"VLOOKUP($C$4,'Park Dollars FY23'!$A$3:$AL$113,MATCH($C15,'Park Dollars FY23'!$A$4:$AL$4,0),FALSE)","v":0},{"$f":"VLOOKUP($C$4,'CPS Dollars FY23'!$A$4:$AL$109,MATCH($C15,'Park Dollars FY23'!$A$4:$AL$4,0),FALSE)","v":0},{"$f":"VLOOKUP($C$4,'CC park dollars FY23'!$B$5:$AR$112,MATCH($C15,'CC park dollars FY23'!$B$6:$AR$6,0),FALSE)","v":0},null,null,null,{"$f":"VLOOKUP($C$4,'Security Dollars FY23'!$A$2:$AL$108,MATCH($C15,'Security Dollars FY23'!$A$3:$AL$3,0),FALSE)","v":0},0,0,0]
["HIDE",null,"Transportation",{"$f":"VLOOKUP($C$4,'Building RSF'!$A$3:$AK$109,MATCH($C16,'Building RSF'!$A$3:$AK$3,0),FALSE)","v":0},null,null,{"$f":"VLOOKUP($C$4,'Park Dollars FY22'!$A$3:$AL$113,MATCH($C16,'Park Dollars FY22'!$A$4:$AL$4,0),FALSE)","v":0},{"$f":"VLOOKUP($C$4,'CPS Dollars FY22'!$A$4:$AL$109,MATCH($C16,'Park Dollars FY22'!$A$4:$AL$4,0),FALSE)","v":0},{"$f":"VLOOKUP($C$4,'CC park dollars FY22'!$B$5:$AR$112,MATCH($C16,'CC park dollars FY22'!$B$6:$AR$6,0),FALSE)","v":0},null,null,null,{"$f":"VLOOKUP($C$4,'Security Dollars FY22'!$A$2:$AL$108,MATCH($C16,'Security Dollars FY22'!$A$3:$AL$3,0),FALSE)","v":0},0,0,0,null,{"$f":"VLOOKUP($C$4,'Park Dollars FY23'!$A$3:$AL$113,MATCH($C16,'Park Dollars FY23'!$A$4:$AL$4,0),FALSE)","v":0},{"$f":"VLOOKUP($C$4,'CPS Dollars FY23'!$A$4:$AL$109,MATCH($C16,'Park Dollars FY23'!$A$4:$AL$4,0),FALSE)","v":0},{"$f":"VLOOKUP($C$4,'CC park dollars FY23'!$B$5:$AR$112,MATCH($C16,'CC park dollars FY23'!$B$6:$AR$6,0),FALSE)","v":0},null,null,null,{"$f":"VLOOKUP($C$4,'Security Dollars FY23'!$A$2:$AL$108,MATCH($C16,'Security Dollars FY23'!$A$3:$AL$3,0),FALSE)","v":0},0,0,0]
["HIDE",null,"Insurance",{"$f":"VLOOKUP($C$4,'Building RSF'!$A$3:$AK$109,MATCH($C17,'Building RSF'!$A$3:$AK$3,0),FALSE)","v":0},null,null,{"$f":"VLOOKUP($C$4,'Park Dollars FY22'!$A$3:$AL$113,MATCH($C17,'Park Dollars FY22'!$A$4:$AL$4,0),FALSE)","v":0},{"$f":"VLOOKUP($C$4,'CPS Dollars FY22'!$A$4:$AL$109,MATCH($C17,'Park Dollars FY22'!$A$4:$AL$4,0),FALSE)","v":0},{"$f":"VLOOKUP($C$4,'CC park dollars FY22'!$B$5:$AR$112,MATCH($C17,'CC park dollars FY22'!$B$6:$AR$6,0),FALSE)","v":0},null,null,null,{"$f":"VLOOKUP($C$4,'Security Dollars FY22'!$A$2:$AL$108,MATCH($C17,'Security Dollars FY22'!$A$3:$AL$3,0),FALSE)","v":0},0,0,0,null,{"$f":"VLOOKUP($C$4,'Park Dollars FY23'!$A$3:$AL$113,MATCH($C17,'Park Dollars FY23'!$A$4:$AL$4,0),FALSE)","v":0},{"$f":"VLOOKUP($C$4,'CPS Dollars FY23'!$A$4:$AL$109,MATCH($C17,'Park Dollars FY23'!$A$4:$AL$4,0),FALSE)","v":0},{"$f":"VLOOKUP($C$4,'CC park dollars FY23'!$B$5:$AR$112,MATCH($C17,'CC park dollars FY23'!$B$6:$AR$6,0),FALSE)","v":0},null,null,null,{"$f":"VLOOKUP($C$4,'Security Dollars FY23'!$A$2:$AL$108,MATCH($C17,'Security Dollars FY23'!$A$3:$AL$3,0),FALSE)","v":0},0,0,0]
["HIDE",null,"Old Cap",{"$f":"VLOOKUP($C$4,'Building RSF'!$A$3:$AK$109,MATCH($C18,'Building RSF'!$A$3:$AK$3,0),FALSE)","v":0},null,null,{"$f":"VLOOKUP($C$4,'Park Dollars FY22'!$A$3:$AL$113,MATCH($C18,'Park Dollars FY22'!$A$4:$AL$4,0),FALSE)","v":0},{"$f":"VLOOKUP($C$4,'CPS Dollars FY22'!$A$4:$AL$109,MATCH($C18,'Park Dollars FY22'!$A$4:$AL$4,0),FALSE)","v":0},{"$f":"VLOOKUP($C$4,'CC park dollars FY22'!$B$5:$AR$112,MATCH($C18,'CC park dollars FY22'!$B$6:$AR$6,0),FALSE)","v":0},null,null,null,{"$f":"VLOOKUP($C$4,'Security Dollars FY22'!$A$2:$AL$108,MATCH($C18,'Security Dollars FY22'!$A$3:$AL$3,0),FALSE)","v":0},0,0,0,null,{"$f":"VLOOKUP($C$4,'Park Dollars FY23'!$A$3:$AL$113,MATCH($C18,'Park Dollars FY23'!$A$4:$AL$4,0),FALSE)","v":0},{"$f":"VLOOKUP($C$4,'CPS Dollars FY23'!$A$4:$AL$109,MATCH($C18,'Park Dollars FY23'!$A$4:$AL$4,0),FALSE)","v":0},{"$f":"VLOOKUP($C$4,'CC park dollars FY23'!$B$5:$AR$112,MATCH($C18,'CC park dollars FY23'!$B$6:$AR$6,0),FALSE)","v":0},null,null,null,{"$f":"VLOOKUP($C$4,'Security Dollars FY23'!$A$2:$AL$108,MATCH($C18,'Security Dollars FY23'!$A$3:$AL$3,0),FALSE)","v":0},0,0,0]
["HIDE",null,"TOJ",{"$f":"VLOOKUP($C$4,'Building RSF'!$A$3:$AK$109,MATCH($C19,'Building RSF'!$A$3:$AK$3,0),FALSE)","v":0},null,null,{"$f":"VLOOKUP($C$4,'Park Dollars FY22'!$A$3:$AL$113,MATCH($C19,'Park Dollars FY22'!$A$4:$AL$4,0),FALSE)","v":0},{"$f":"VLOOKUP($C$4,'CPS Dollars FY22'!$A$4:$AL$109,MATCH($C19,'Park Dollars FY22'!$A$4:$AL$4,0),FALSE)","v":0},{"$f":"VLOOKUP($C$4,'CC park dollars FY22'!$B$5:$AR$112,MATCH($C19,'CC park dollars FY22'!$B$6:$AR$6,0),FALSE)","v":0},null,null,null,{"$f":"VLOOKUP($C$4,'Security Dollars FY22'!$A$2:$AL$108,MATCH($C19,'Security Dollars FY22'!$A$3:$AL$3,0),FALSE)","v":0},0,0,0,null,{"$f":"VLOOKUP($C$4,'Park Dollars FY23'!$A$3:$AL$113,MATCH($C19,'Park Dollars FY23'!$A$4:$AL$4,0),FALSE)","v":0},{"$f":"VLOOKUP($C$4,'CPS Dollars FY23'!$A$4:$AL$109,MATCH($C19,'Park Dollars FY23'!$A$4:$AL$4,0),FALSE)","v":0},{"$f":"VLOOKUP($C$4,'CC park dollars FY23'!$B$5:$AR$112,MATCH($C19,'CC park dollars FY23'!$B$6:$AR$6,0),FALSE)","v":0},null,null,null,{"$f":"VLOOKUP($C$4,'Security Dollars FY23'!$A$2:$AL$108,MATCH($C19,'Security Dollars FY23'!$A$3:$AL$3,0),FALSE)","v":0},0,0,0]
["HIDE",null,"Newhouse",{"$f":"VLOOKUP($C$4,'Building RSF'!$A$3:$AK$109,MATCH($C20,'Building RSF'!$A$3:$AK$3,0),FALSE)","v":0},null,null,{"$f":"VLOOKUP($C$4,'Park Dollars FY22'!$A$3:$AL$113,MATCH($C20,'Park Dollars FY22'!$A$4:$AL$4,0),FALSE)","v":0},{"$f":"VLOOKUP($C$4,'CPS Dollars FY22'!$A$4:$AL$109,MATCH($C20,'Park Dollars FY22'!$A$4:$AL$4,0),FALSE)","v":0},{"$f":"VLOOKUP($C$4,'CC park dollars FY22'!$B$5:$AR$112,MATCH($C20,'CC park dollars FY22'!$B$6:$AR$6,0),FALSE)","v":0},null,null,null,{"$f":"VLOOKUP($C$4,'Security Dollars FY22'!$A$2:$AL$108,MATCH($C20,'Security Dollars FY22'!$A$3:$AL$3,0),FALSE)","v":0},0,0,0,null,{"$f":"VLOOKUP($C$4,'Park Dollars FY23'!$A$3:$AL$113,MATCH($C20,'Park Dollars FY23'!$A$4:$AL$4,0),FALSE)","v":0},{"$f":"VLOOKUP($C$4,'CPS Dollars FY23'!$A$4:$AL$109,MATCH($C20,'Park Dollars FY23'!$A$4:$AL$4,0),FALSE)","v":0},{"$f":"VLOOKUP($C$4,'CC park dollars FY23'!$B$5:$AR$112,MATCH($C20,'CC park dollars FY23'!$B$6:$AR$6,0),FALSE)","v":0},null,null,null,{"$f":"VLOOKUP($C$4,'Security Dollars FY23'!$A$2:$AL$108,MATCH($C20,'Security Dollars FY23'!$A$3:$AL$3,0),FALSE)","v":0},0,0,0]
["HIDE",null,"Modular Bldg",{"$f":"VLOOKUP($C$4,'Building RSF'!$A$3:$AK$109,MATCH($C21,'Building RSF'!$A$3:$AK$3,0),FALSE)","v":0},null,null,{"$f":"VLOOKUP($C$4,'Park Dollars FY22'!$A$3:$AL$113,MATCH($C21,'Park Dollars FY22'!$A$4:$AL$4,0),FALSE)","v":0},{"$f":"VLOOKUP($C$4,'CPS Dollars FY22'!$A$4:$AL$109,MATCH($C21,'Park Dollars FY22'!$A$4:$AL$4,0),FALSE)","v":0},{"$f":"VLOOKUP($C$4,'CC park dollars FY22'!$B$5:$AR$112,MATCH($C21,'CC park dollars FY22'!$B$6:$AR$6,0),FALSE)","v":0},null,null,null,{"$f":"VLOOKUP($C$4,'Security Dollars FY22'!$A$2:$AL$108,MATCH($C21,'Security Dollars FY22'!$A$3:$AL$3,0),FALSE)","v":0},0,0,0,null,{"$f":"VLOOKUP($C$4,'Park Dollars FY23'!$A$3:$AL$113,MATCH($C21,'Park Dollars FY23'!$A$4:$AL$4,0),FALSE)","v":0},{"$f":"VLOOKUP($C$4,'CPS Dollars FY23'!$A$4:$AL$109,MATCH($C21,'Park Dollars FY23'!$A$4:$AL$4,0),FALSE)","v":0},{"$f":"VLOOKUP($C$4,'CC park dollars FY23'!$B$5:$AR$112,MATCH($C21,'CC park dollars FY23'!$B$6:$AR$6,0),FALSE)","v":0},null,null,null,{"$f":"VLOOKUP($C$4,'Security Dollars FY23'!$A$2:$AL$108,MATCH($C21,'Security Dollars FY23'!$A$3:$AL$3,0),FALSE)","v":0},0,0,0]
["HIDE",null,"Isabella Bush",{"$f":"VLOOKUP($C$4,'Building RSF'!$A$3:$AK$109,MATCH($C22,'Building RSF'!$A$3:$AK$3,0),FALSE)","v":0},null,null,{"$f":"VLOOKUP($C$4,'Park Dollars FY22'!$A$3:$AL$113,MATCH($C22,'Park Dollars FY22'!$A$4:$AL$4,0),FALSE)","v":0},{"$f":"VLOOKUP($C$4,'CPS Dollars FY22'!$A$4:$AL$109,MATCH($C22,'Park Dollars FY22'!$A$4:$AL$4,0),FALSE)","v":0},{"$f":"VLOOKUP($C$4,'CC park dollars FY22'!$B$5:$AR$112,MATCH($C22,'CC park dollars FY22'!$B$6:$AR$6,0),FALSE)","v":0},null,null,null,{"$f":"VLOOKUP($C$4,'Security Dollars FY22'!$A$2:$AL$108,MATCH($C22,'Security Dollars FY22'!$A$3:$AL$3,0),FALSE)","v":0},0,0,0,null,{"$f":"VLOOKUP($C$4,'Park Dollars FY23'!$A$3:$AL$113,MATCH($C22,'Park Dollars FY23'!$A$4:$AL$4,0),FALSE)","v":0},{"$f":"VLOOKUP($C$4,'CPS Dollars FY23'!$A$4:$AL$109,MATCH($C22,'Park Dollars FY23'!$A$4:$AL$4,0),FALSE)","v":0},{"$f":"VLOOKUP($C$4,'CC park dollars FY23'!$B$5:$AR$112,MATCH($C22,'CC park dollars FY23'!$B$6:$AR$6,0),FALSE)","v":0},null,null,null,{"$f":"VLOOKUP($C$4,'Security Dollars FY23'!$A$2:$AL$108,MATCH($C22,'Security Dollars FY23'!$A$3:$AL$3,0),FALSE)","v":0},0,0,0]
["HIDE",null,"1007 Washington",{"$f":"VLOOKUP($C$4,'Building RSF'!$A$3:$AK$109,MATCH($C23,'Building RSF'!$A$3:$AK$3,0),FALSE)","v":0},null,null,{"$f":"VLOOKUP($C$4,'Park Dollars FY22'!$A$3:$AL$113,MATCH($C23,'Park Dollars FY22'!$A$4:$AL$4,0),FALSE)","v":0},{"$f":"VLOOKUP($C$4,'CPS Dollars FY22'!$A$4:$AL$109,MATCH($C23,'Park Dollars FY22'!$A$4:$AL$4,0),FALSE)","v":0},{"$f":"VLOOKUP($C$4,'CC park dollars FY22'!$B$5:$AR$112,MATCH($C23,'CC park dollars FY22'!$B$6:$AR$6,0),FALSE)","v":0},null,null,null,{"$f":"VLOOKUP($C$4,'Security Dollars FY22'!$A$2:$AL$108,MATCH($C23,'Security Dollars FY22'!$A$3:$AL$3,0),FALSE)","v":0},0,0,0,null,{"$f":"VLOOKUP($C$4,'Park Dollars FY23'!$A$3:$AL$113,MATCH($C23,'Park Dollars FY23'!$A$4:$AL$4,0),FALSE)","v":0},{"$f":"VLOOKUP($C$4,'CPS Dollars FY23'!$A$4:$AL$109,MATCH($C23,'Park Dollars FY23'!$A$4:$AL$4,0),FALSE)","v":0},{"$f":"VLOOKUP($C$4,'CC park dollars FY23'!$B$5:$AR$112,MATCH($C23,'CC park dollars FY23'!$B$6:$AR$6,0),FALSE)","v":0},null,null,null,{"$f":"VLOOKUP($C$4,'Security Dollars FY23'!$A$2:$AL$108,MATCH($C23,'Security Dollars FY23'!$A$3:$AL$3,0),FALSE)","v":0},0,0,0]
["HIDE",null,"120 E Union Avenue",{"$f":"VLOOKUP($C$4,'Building RSF'!$A$3:$AK$109,MATCH($C24,'Building RSF'!$A$3:$AK$3,0),FALSE)","v":0},null,null,{"$f":"VLOOKUP($C$4,'Park Dollars FY22'!$A$3:$AL$113,MATCH($C24,'Park Dollars FY22'!$A$4:$AL$4,0),FALSE)","v":0},{"$f":"VLOOKUP($C$4,'CPS Dollars FY22'!$A$4:$AL$109,MATCH($C24,'Park Dollars FY22'!$A$4:$AL$4,0),FALSE)","v":0},{"$f":"VLOOKUP($C$4,'CC park dollars FY22'!$B$5:$AR$112,MATCH($C24,'CC park dollars FY22'!$B$6:$AR$6,0),FALSE)","v":0},null,null,null,{"$f":"VLOOKUP($C$4,'Security Dollars FY22'!$A$2:$AL$108,MATCH($C24,'Security Dollars FY22'!$A$3:$AL$3,0),FALSE)","v":0},0,0,0,null,{"$f":"VLOOKUP($C$4,'Park Dollars FY23'!$A$3:$AL$113,MATCH($C24,'Park Dollars FY23'!$A$4:$AL$4,0),FALSE)","v":0},{"$f":"VLOOKUP($C$4,'CPS Dollars FY23'!$A$4:$AL$109,MATCH($C24,'Park Dollars FY23'!$A$4:$AL$4,0),FALSE)","v":0},{"$f":"VLOOKUP($C$4,'CC park dollars FY23'!$B$5:$AR$112,MATCH($C24,'CC park dollars FY23'!$B$6:$AR$6,0),FALSE)","v":0},null,null,null,{"$f":"VLOOKUP($C$4,'Security Dollars FY23'!$A$2:$AL$108,MATCH($C24,'Security Dollars FY23'!$A$3:$AL$3,0),FALSE)","v":0},0,0,0]
["HIDE",null,"Capital Court",{"$f":"VLOOKUP($C$4,'Building RSF'!$A$3:$AK$109,MATCH($C25,'Building RSF'!$A$3:$AK$3,0),FALSE)","v":0},null,null,{"$f":"VLOOKUP($C$4,'Park Dollars FY22'!$A$3:$AL$113,MATCH($C25,'Park Dollars FY22'!$A$4:$AL$4,0),FALSE)","v":0},{"$f":"VLOOKUP($C$4,'CPS Dollars FY22'!$A$4:$AL$109,MATCH($C25,'Park Dollars FY22'!$A$4:$AL$4,0),FALSE)","v":0},{"$f":"VLOOKUP($C$4,'CC park dollars FY22'!$B$5:$AR$112,MATCH($C25,'CC park dollars FY22'!$B$6:$AR$6,0),FALSE)","v":0},null,null,null,{"$f":"VLOOKUP($C$4,'Security Dollars FY22'!$A$2:$AL$108,MATCH($C25,'Security Dollars FY22'!$A$3:$AL$3,0),FALSE)","v":0},0,0,0,null,{"$f":"VLOOKUP($C$4,'Park Dollars FY23'!$A$3:$AL$113,MATCH($C25,'Park Dollars FY23'!$A$4:$AL$4,0),FALSE)","v":0},{"$f":"VLOOKUP($C$4,'CPS Dollars FY23'!$A$4:$AL$109,MATCH($C25,'Park Dollars FY23'!$A$4:$AL$4,0),FALSE)","v":0},{"$f":"VLOOKUP($C$4,'CC park dollars FY23'!$B$5:$AR$112,MATCH($C25,'CC park dollars FY23'!$B$6:$AR$6,0),FALSE)","v":0},null,null,null,{"$f":"VLOOKUP($C$4,'Security Dollars FY23'!$A$2:$AL$108,MATCH($C25,'Security Dollars FY23'!$A$3:$AL$3,0),FALSE)","v":0},0,0,0]
["HIDE",null,"James Dolliver Building",{"$f":"VLOOKUP($C$4,'Building RSF'!$A$3:$AK$109,MATCH($C26,'Building RSF'!$A$3:$AK$3,0),FALSE)","v":0},null,null,{"$f":"VLOOKUP($C$4,'Park Dollars FY22'!$A$3:$AL$113,MATCH($C26,'Park Dollars FY22'!$A$4:$AL$4,0),FALSE)","v":0},{"$f":"VLOOKUP($C$4,'CPS Dollars FY22'!$A$4:$AL$109,MATCH($C26,'Park Dollars FY22'!$A$4:$AL$4,0),FALSE)","v":0},{"$f":"VLOOKUP($C$4,'CC park dollars FY22'!$B$5:$AR$112,MATCH($C26,'CC park dollars FY22'!$B$6:$AR$6,0),FALSE)","v":0},null,null,null,{"$f":"VLOOKUP($C$4,'Security Dollars FY22'!$A$2:$AL$108,MATCH($C26,'Security Dollars FY22'!$A$3:$AL$3,0),FALSE)","v":0},0,0,0,null,{"$f":"VLOOKUP($C$4,'Park Dollars FY23'!$A$3:$AL$113,MATCH($C26,'Park Dollars FY23'!$A$4:$AL$4,0),FALSE)","v":0},{"$f":"VLOOKUP($C$4,'CPS Dollars FY23'!$A$4:$AL$109,MATCH($C26,'Park Dollars FY23'!$A$4:$AL$4,0),FALSE)","v":0},{"$f":"VLOOKUP($C$4,'CC park dollars FY23'!$B$5:$AR$112,MATCH($C26,'CC park dollars FY23'!$B$6:$AR$6,0),FALSE)","v":0},null,null,null,{"$f":"VLOOKUP($C$4,'Security Dollars FY23'!$A$2:$AL$108,MATCH($C26,'Security Dollars FY23'!$A$3:$AL$3,0),FALSE)","v":0},0,0,0]
["HIDE",null,"Undeveloped Properties",{"$f":"VLOOKUP($C$4,'Building RSF'!$A$3:$AK$109,MATCH($C27,'Building RSF'!$A$3:$AK$3,0),FALSE)","v":0},null,null,{"$f":"VLOOKUP($C$4,'Park Dollars FY22'!$A$3:$AL$113,MATCH($C27,'Park Dollars FY22'!$A$4:$AL$4,0),FALSE)","v":0},{"$f":"VLOOKUP($C$4,'CPS Dollars FY22'!$A$4:$AL$109,MATCH($C27,'Park Dollars FY22'!$A$4:$AL$4,0),FALSE)","v":0},{"$f":"VLOOKUP($C$4,'CC park dollars FY22'!$B$5:$AR$112,MATCH($C27,'CC park dollars FY22'!$B$6:$AR$6,0),FALSE)","v":0},null,null,null,{"$f":"VLOOKUP($C$4,'Security Dollars FY22'!$A$2:$AL$108,MATCH($C27,'Security Dollars FY22'!$A$3:$AL$3,0),FALSE)","v":0},0,0,0,null,{"$f":"VLOOKUP($C$4,'Park Dollars FY23'!$A$3:$AL$113,MATCH($C27,'Park Dollars FY23'!$A$4:$AL$4,0),FALSE)","v":0},{"$f":"VLOOKUP($C$4,'CPS Dollars FY23'!$A$4:$AL$109,MATCH($C27,'Park Dollars FY23'!$A$4:$AL$4,0),FALSE)","v":0},{"$f":"VLOOKUP($C$4,'CC park dollars FY23'!$B$5:$AR$112,MATCH($C27,'CC park dollars FY23'!$B$6:$AR$6,0),FALSE)","v":0},null,null,null,{"$f":"VLOOKUP($C$4,'Security Dollars FY23'!$A$2:$AL$108,MATCH($C27,'Security Dollars FY23'!$A$3:$AL$3,0),FALSE)","v":0},0,0,0]
["HIDE",null,"1068 WA Street SE (ST Farm)",{"$f":"VLOOKUP($C$4,'Building RSF'!$A$3:$AK$109,MATCH($C28,'Building RSF'!$A$3:$AK$3,0),FALSE)","v":0},null,null,{"$f":"VLOOKUP($C$4,'Park Dollars FY22'!$A$3:$AL$113,MATCH($C28,'Park Dollars FY22'!$A$4:$AL$4,0),FALSE)","v":0},{"$f":"VLOOKUP($C$4,'CPS Dollars FY22'!$A$4:$AL$109,MATCH($C28,'Park Dollars FY22'!$A$4:$AL$4,0),FALSE)","v":0},{"$f":"VLOOKUP($C$4,'CC park dollars FY22'!$B$5:$AR$112,MATCH($C28,'CC park dollars FY22'!$B$6:$AR$6,0),FALSE)","v":0},null,null,null,{"$f":"VLOOKUP($C$4,'Security Dollars FY22'!$A$2:$AL$108,MATCH($C28,'Security Dollars FY22'!$A$3:$AL$3,0),FALSE)","v":0},0,0,0,null,{"$f":"VLOOKUP($C$4,'Park Dollars FY23'!$A$3:$AL$113,MATCH($C28,'Park Dollars FY23'!$A$4:$AL$4,0),FALSE)","v":0},{"$f":"VLOOKUP($C$4,'CPS Dollars FY23'!$A$4:$AL$109,MATCH($C28,'Park Dollars FY23'!$A$4:$AL$4,0),FALSE)","v":0},{"$f":"VLOOKUP($C$4,'CC park dollars FY23'!$B$5:$AR$112,MATCH($C28,'CC park dollars FY23'!$B$6:$AR$6,0),FALSE)","v":0},null,null,null,{"$f":"VLOOKUP($C$4,'Security Dollars FY23'!$A$2:$AL$108,MATCH($C28,'Security Dollars FY23'!$A$3:$AL$3,0),FALSE)","v":0},0,0,0]
["HIDE",null,"232 Perry Street",{"$f":"VLOOKUP($C$4,'Building RSF'!$A$3:$AK$109,MATCH($C29,'Building RSF'!$A$3:$AK$3,0),FALSE)","v":0},null,null,{"$f":"VLOOKUP($C$4,'Park Dollars FY22'!$A$3:$AL$113,MATCH($C29,'Park Dollars FY22'!$A$4:$AL$4,0),FALSE)","v":0},{"$f":"VLOOKUP($C$4,'CPS Dollars FY22'!$A$4:$AL$109,MATCH($C29,'Park Dollars FY22'!$A$4:$AL$4,0),FALSE)","v":0},{"$f":"VLOOKUP($C$4,'CC park dollars FY22'!$B$5:$AR$112,MATCH($C29,'CC park dollars FY22'!$B$6:$AR$6,0),FALSE)","v":0},null,null,null,{"$f":"VLOOKUP($C$4,'Security Dollars FY22'!$A$2:$AL$108,MATCH($C29,'Security Dollars FY22'!$A$3:$AL$3,0),FALSE)","v":0},0,0,0,null,{"$f":"VLOOKUP($C$4,'Park Dollars FY23'!$A$3:$AL$113,MATCH($C29,'Park Dollars FY23'!$A$4:$AL$4,0),FALSE)","v":0},{"$f":"VLOOKUP($C$4,'CPS Dollars FY23'!$A$4:$AL$109,MATCH($C29,'Park Dollars FY23'!$A$4:$AL$4,0),FALSE)","v":0},{"$f":"VLOOKUP($C$4,'CC park dollars FY23'!$B$5:$AR$112,MATCH($C29,'CC park dollars FY23'!$B$6:$AR$6,0),FALSE)","v":0},null,null,null,{"$f":"VLOOKUP($C$4,'Security Dollars FY23'!$A$2:$AL$108,MATCH($C29,'Security Dollars FY23'!$A$3:$AL$3,0),FALSE)","v":0},0,0,0]
["HIDE",null,"208 11th Avenue SE (Pro Arts)",{"$f":"VLOOKUP($C$4,'Building RSF'!$A$3:$AK$109,MATCH($C30,'Building RSF'!$A$3:$AK$3,0),FALSE)","v":0},null,null,{"$f":"VLOOKUP($C$4,'Park Dollars FY22'!$A$3:$AL$113,MATCH($C30,'Park Dollars FY22'!$A$4:$AL$4,0),FALSE)","v":0},{"$f":"VLOOKUP($C$4,'CPS Dollars FY22'!$A$4:$AL$109,MATCH($C30,'Park Dollars FY22'!$A$4:$AL$4,0),FALSE)","v":0},{"$f":"VLOOKUP($C$4,'CC park dollars FY22'!$B$5:$AR$112,MATCH($C30,'CC park dollars FY22'!$B$6:$AR$6,0),FALSE)","v":0},null,null,null,{"$f":"VLOOKUP($C$4,'Security Dollars FY22'!$A$2:$AL$108,MATCH($C30,'Security Dollars FY22'!$A$3:$AL$3,0),FALSE)","v":0},0,0,0,null,{"$f":"VLOOKUP($C$4,'Park Dollars FY23'!$A$3:$AL$113,MATCH($C30,'Park Dollars FY23'!$A$4:$AL$4,0),FALSE)","v":0},{"$f":"VLOOKUP($C$4,'CPS Dollars FY23'!$A$4:$AL$109,MATCH($C30,'Park Dollars FY23'!$A$4:$AL$4,0),FALSE)","v":0},{"$f":"VLOOKUP($C$4,'CC park dollars FY23'!$B$5:$AR$112,MATCH($C30,'CC park dollars FY23'!$B$6:$AR$6,0),FALSE)","v":0},null,null,null,{"$f":"VLOOKUP($C$4,'Security Dollars FY23'!$A$2:$AL$108,MATCH($C30,'Security Dollars FY23'!$A$3:$AL$3,0),FALSE)","v":0},0,0,0]
["HIDE",null,"Press Houses Ayer(White); Carlyon(Blue)",{"$f":"VLOOKUP($C$4,'Building RSF'!$A$3:$AK$109,MATCH($C31,'Building RSF'!$A$3:$AK$3,0),FALSE)","v":0},null,null,{"$f":"VLOOKUP($C$4,'Park Dollars FY22'!$A$3:$AL$113,MATCH($C31,'Park Dollars FY22'!$A$4:$AL$4,0),FALSE)","v":0},{"$f":"VLOOKUP($C$4,'CPS Dollars FY22'!$A$4:$AL$109,MATCH($C31,'Park Dollars FY22'!$A$4:$AL$4,0),FALSE)","v":0},{"$f":"VLOOKUP($C$4,'CC park dollars FY22'!$B$5:$AR$112,MATCH($C31,'CC park dollars FY22'!$B$6:$AR$6,0),FALSE)","v":0},null,null,null,{"$f":"VLOOKUP($C$4,'Security Dollars FY22'!$A$2:$AL$108,MATCH($C31,'Security Dollars FY22'!$A$3:$AL$3,0),FALSE)","v":0},0,0,0,null,{"$f":"VLOOKUP($C$4,'Park Dollars FY23'!$A$3:$AL$113,MATCH($C31,'Park Dollars FY23'!$A$4:$AL$4,0),FALSE)","v":0},{"$f":"VLOOKUP($C$4,'CPS Dollars FY23'!$A$4:$AL$109,MATCH($C31,'Park Dollars FY23'!$A$4:$AL$4,0),FALSE)","v":0},{"$f":"VLOOKUP($C$4,'CC park dollars FY23'!$B$5:$AR$112,MATCH($C31,'CC park dollars FY23'!$B$6:$AR$6,0),FALSE)","v":0},null,null,null,{"$f":"VLOOKUP($C$4,'Security Dollars FY23'!$A$2:$AL$108,MATCH($C31,'Security Dollars FY23'!$A$3:$AL$3,0),FALSE)","v":0},0,0,0]
["HIDE",null,"Visitor Center",{"$f":"VLOOKUP($C$4,'Building RSF'!$A$3:$AK$109,MATCH($C32,'Building RSF'!$A$3:$AK$3,0),FALSE)","v":0},null,null,{"$f":"VLOOKUP($C$4,'Park Dollars FY22'!$A$3:$AL$113,MATCH($C32,'Park Dollars FY22'!$A$4:$AL$4,0),FALSE)","v":0},{"$f":"VLOOKUP($C$4,'CPS Dollars FY22'!$A$4:$AL$109,MATCH($C32,'Park Dollars FY22'!$A$4:$AL$4,0),FALSE)","v":0},{"$f":"VLOOKUP($C$4,'CC park dollars FY22'!$B$5:$AR$112,MATCH($C32,'CC park dollars FY22'!$B$6:$AR$6,0),FALSE)","v":0},null,null,null,{"$f":"VLOOKUP($C$4,'Security Dollars FY22'!$A$2:$AL$108,MATCH($C32,'Security Dollars FY22'!$A$3:$AL$3,0),FALSE)","v":0},0,0,0,null,{"$f":"VLOOKUP($C$4,'Park Dollars FY23'!$A$3:$AL$113,MATCH($C32,'Park Dollars FY23'!$A$4:$AL$4,0),FALSE)","v":0},{"$f":"VLOOKUP($C$4,'CPS Dollars FY23'!$A$4:$AL$109,MATCH($C32,'Park Dollars FY23'!$A$4:$AL$4,0),FALSE)","v":0},{"$f":"VLOOKUP($C$4,'CC park dollars FY23'!$B$5:$AR$112,MATCH($C32,'CC park dollars FY23'!$B$6:$AR$6,0),FALSE)","v":0},null,null,null,{"$f":"VLOOKUP($C$4,'Security Dollars FY23'!$A$2:$AL$108,MATCH($C32,'Security Dollars FY23'!$A$3:$AL$3,0),FALSE)","v":0},0,0,0]
["HIDE",null,"Helen Sommers",{"$f":"VLOOKUP($C$4,'Building RSF'!$A$3:$AK$109,MATCH($C33,'Building RSF'!$A$3:$AK$3,0),FALSE)","v":0},null,null,{"$f":"VLOOKUP($C$4,'Park Dollars FY22'!$A$3:$AL$113,MATCH($C33,'Park Dollars FY22'!$A$4:$AL$4,0),FALSE)","v":0},{"$f":"VLOOKUP($C$4,'CPS Dollars FY22'!$A$4:$AL$109,MATCH($C33,'Park Dollars FY22'!$A$4:$AL$4,0),FALSE)","v":0},{"$f":"VLOOKUP($C$4,'CC park dollars FY22'!$B$5:$AR$112,MATCH($C33,'CC park dollars FY22'!$B$6:$AR$6,0),FALSE)","v":0},null,null,null,{"$f":"VLOOKUP($C$4,'Security Dollars FY22'!$A$2:$AL$108,MATCH($C33,'Security Dollars FY22'!$A$3:$AL$3,0),FALSE)","v":0},0,0,0,null,{"$f":"VLOOKUP($C$4,'Park Dollars FY23'!$A$3:$AL$113,MATCH($C33,'Park Dollars FY23'!$A$4:$AL$4,0),FALSE)","v":0},{"$f":"VLOOKUP($C$4,'CPS Dollars FY23'!$A$4:$AL$109,MATCH($C33,'Park Dollars FY23'!$A$4:$AL$4,0),FALSE)","v":0},{"$f":"VLOOKUP($C$4,'CC park dollars FY23'!$B$5:$AR$112,MATCH($C33,'CC park dollars FY23'!$B$6:$AR$6,0),FALSE)","v":0},null,null,null,{"$f":"VLOOKUP($C$4,'Security Dollars FY23'!$A$2:$AL$108,MATCH($C33,'Security Dollars FY23'!$A$3:$AL$3,0),FALSE)","v":0},0,0,0]
["HIDE",null,"Kelso Building",{"$f":"VLOOKUP($C$4,'Building RSF'!$A$3:$AK$109,MATCH($C34,'Building RSF'!$A$3:$AK$3,0),FALSE)","v":0},null,null,{"$f":"VLOOKUP($C$4,'Park Dollars FY22'!$A$3:$AL$113,MATCH($C34,'Park Dollars FY22'!$A$4:$AL$4,0),FALSE)","v":0},{"$f":"VLOOKUP($C$4,'CPS Dollars FY22'!$A$4:$AL$109,MATCH($C34,'Park Dollars FY22'!$A$4:$AL$4,0),FALSE)","v":0},{"$f":"VLOOKUP($C$4,'CC park dollars FY22'!$B$5:$AR$112,MATCH($C34,'CC park dollars FY22'!$B$6:$AR$6,0),FALSE)","v":0},null,null,null,{"$f":"VLOOKUP($C$4,'Security Dollars FY22'!$A$2:$AL$108,MATCH($C34,'Security Dollars FY22'!$A$3:$AL$3,0),FALSE)","v":0},0,0,0,null,{"$f":"VLOOKUP($C$4,'Park Dollars FY23'!$A$3:$AL$113,MATCH($C34,'Park Dollars FY23'!$A$4:$AL$4,0),FALSE)","v":0},{"$f":"VLOOKUP($C$4,'CPS Dollars FY23'!$A$4:$AL$109,MATCH($C34,'Park Dollars FY23'!$A$4:$AL$4,0),FALSE)","v":0},{"$f":"VLOOKUP($C$4,'CC park dollars FY23'!$B$5:$AR$112,MATCH($C34,'CC park dollars FY23'!$B$6:$AR$6,0),FALSE)","v":0},null,null,null,{"$f":"VLOOKUP($C$4,'Security Dollars FY23'!$A$2:$AL$108,MATCH($C34,'Security Dollars FY23'!$A$3:$AL$3,0),FALSE)","v":0},0,0,0]
["HIDE",null,"Yakima Building",{"$f":"VLOOKUP($C$4,'Building RSF'!$A$3:$AK$109,MATCH($C35,'Building RSF'!$A$3:$AK$3,0),FALSE)","v":0},null,null,{"$f":"VLOOKUP($C$4,'Park Dollars FY22'!$A$3:$AL$113,MATCH($C35,'Park Dollars FY22'!$A$4:$AL$4,0),FALSE)","v":0},{"$f":"VLOOKUP($C$4,'CPS Dollars FY22'!$A$4:$AL$109,MATCH($C35,'Park Dollars FY22'!$A$4:$AL$4,0),FALSE)","v":0},{"$f":"VLOOKUP($C$4,'CC park dollars FY22'!$B$5:$AR$112,MATCH($C35,'CC park dollars FY22'!$B$6:$AR$6,0),FALSE)","v":0},null,null,null,{"$f":"VLOOKUP($C$4,'Security Dollars FY22'!$A$2:$AL$108,MATCH($C35,'Security Dollars FY22'!$A$3:$AL$3,0),FALSE)","v":0},0,0,0,null,{"$f":"VLOOKUP($C$4,'Park Dollars FY23'!$A$3:$AL$113,MATCH($C35,'Park Dollars FY23'!$A$4:$AL$4,0),FALSE)","v":0},{"$f":"VLOOKUP($C$4,'CPS Dollars FY23'!$A$4:$AL$109,MATCH($C35,'Park Dollars FY23'!$A$4:$AL$4,0),FALSE)","v":0},{"$f":"VLOOKUP($C$4,'CC park dollars FY23'!$B$5:$AR$112,MATCH($C35,'CC park dollars FY23'!$B$6:$AR$6,0),FALSE)","v":0},null,null,null,{"$f":"VLOOKUP($C$4,'Security Dollars FY23'!$A$2:$AL$108,MATCH($C35,'Security Dollars FY23'!$A$3:$AL$3,0),FALSE)","v":0},0,0,0]
["HIDE",null,"Alaska Street",{"$f":"VLOOKUP($C$4,'Building RSF'!$A$3:$AK$109,MATCH($C36,'Building RSF'!$A$3:$AK$3,0),FALSE)","v":0},null,null,{"$f":"VLOOKUP($C$4,'Park Dollars FY22'!$A$3:$AL$113,MATCH($C36,'Park Dollars FY22'!$A$4:$AL$4,0),FALSE)","v":0},{"$f":"VLOOKUP($C$4,'CPS Dollars FY22'!$A$4:$AL$109,MATCH($C36,'Park Dollars FY22'!$A$4:$AL$4,0),FALSE)","v":0},{"$f":"VLOOKUP($C$4,'CC park dollars FY22'!$B$5:$AR$112,MATCH($C36,'CC park dollars FY22'!$B$6:$AR$6,0),FALSE)","v":0},null,null,null,{"$f":"VLOOKUP($C$4,'Security Dollars FY22'!$A$2:$AL$108,MATCH($C36,'Security Dollars FY22'!$A$3:$AL$3,0),FALSE)","v":0},0,0,0,null,{"$f":"VLOOKUP($C$4,'Park Dollars FY23'!$A$3:$AL$113,MATCH($C36,'Park Dollars FY23'!$A$4:$AL$4,0),FALSE)","v":0},{"$f":"VLOOKUP($C$4,'CPS Dollars FY23'!$A$4:$AL$109,MATCH($C36,'Park Dollars FY23'!$A$4:$AL$4,0),FALSE)","v":0},{"$f":"VLOOKUP($C$4,'CC park dollars FY23'!$B$5:$AR$112,MATCH($C36,'CC park dollars FY23'!$B$6:$AR$6,0),FALSE)","v":0},null,null,null,{"$f":"VLOOKUP($C$4,'Security Dollars FY23'!$A$2:$AL$108,MATCH($C36,'Security Dollars FY23'!$A$3:$AL$3,0),FALSE)","v":0},0,0,0]
["HIDE",null,"Tacoma Rhodes",{"$f":"VLOOKUP($C$4,'Building RSF'!$A$3:$AK$109,MATCH($C37,'Building RSF'!$A$3:$AK$3,0),FALSE)","v":0},null,null,{"$f":"VLOOKUP($C$4,'Park Dollars FY22'!$A$3:$AL$113,MATCH($C37,'Park Dollars FY22'!$A$4:$AL$4,0),FALSE)","v":0},{"$f":"VLOOKUP($C$4,'CPS Dollars FY22'!$A$4:$AL$109,MATCH($C37,'Park Dollars FY22'!$A$4:$AL$4,0),FALSE)","v":0},{"$f":"VLOOKUP($C$4,'CC park dollars FY22'!$B$5:$AR$112,MATCH($C37,'CC park dollars FY22'!$B$6:$AR$6,0),FALSE)","v":0},null,null,null,{"$f":"VLOOKUP($C$4,'Security Dollars FY22'!$A$2:$AL$108,MATCH($C37,'Security Dollars FY22'!$A$3:$AL$3,0),FALSE)","v":0},0,0,0,null,{"$f":"VLOOKUP($C$4,'Park Dollars FY23'!$A$3:$AL$113,MATCH($C37,'Park Dollars FY23'!$A$4:$AL$4,0),FALSE)","v":0},{"$f":"VLOOKUP($C$4,'CPS Dollars FY23'!$A$4:$AL$109,MATCH($C37,'Park Dollars FY23'!$A$4:$AL$4,0),FALSE)","v":0},{"$f":"VLOOKUP($C$4,'CC park dollars FY23'!$B$5:$AR$112,MATCH($C37,'CC park dollars FY23'!$B$6:$AR$6,0),FALSE)","v":0},null,null,null,{"$f":"VLOOKUP($C$4,'Security Dollars FY23'!$A$2:$AL$108,MATCH($C37,'Security Dollars FY23'!$A$3:$AL$3,0),FALSE)","v":0},0,0,0]
["VIEW",null,"PHF Thurston FTEs",null,{"$f":"VLOOKUP($C$4,'CC Allocations'!$B$7:$F$111,MATCH($C38,'CC Allocations'!$B$6:$G$6,0),FALSE)","v":339},null,null,null,null,{"$f":"VLOOKUP($C$4,'CC dollars FY22'!$B$5:$AR$111,MATCH($C38,'CC dollars FY22'!$B$6:$AR$6,0),FALSE)","v":9146.6125734326251},{"$f":"VLOOKUP($C$4,'PHF Allocations'!$B$6:$H$111,6,FALSE)","v":52327.529796681461},{"$f":"VLOOKUP($C$4,Childcare!$B$6:$H$111,6,FALSE)","v":6998.13040430007},null,{"$f":"SUM(G38:M38)","v":68472.272774414159},{"$f":"N38/12","v":5706.0227312011802},{"$f":"IFERROR(N38/E38,0)","v":201.98310552924531},null,null,null,null,{"$f":"VLOOKUP($C$4,'CC dollars FY23'!$B$5:$AR$111,MATCH($C38,'CC dollars FY23'!$B$6:$AR$6,0),FALSE)","v":9272.8262115845519},{"$f":"VLOOKUP($C$4,'PHF Allocations'!$B$6:$H$111,7,FALSE)","v":52908.506660434679},{"$f":"VLOOKUP($C$4,Childcare!$B$6:$H$111,7,FALSE)","v":7024.5384435615797},null,69205.871315580807,{"$f":"Y38/12","v":5767.155942965067},{"$f":"IFERROR(Y38/E38,0)","v":204.14711302531211}]
["VIEW"]
["VIEW",null,"TOTAL",{"$f":"SUM(D7:D38)","v":123898},{"$f":"SUM(E7:E38)","v":339},{"$f":"SUM(F7:F37)","v":0},47591.0378874538,223632.00100100788,7561.3448943357171,{"$f":"SUM(J7:J38)","v":9146.6125734326251},52327.529796681461,6998.13040430007,345685.6718770602,692942.32843427174,57745.194036189314,null,null,{"$f":"SUM(R7:R38)","v":49757.737557428758},{"$f":"SUM(S7:S38)","v":223685.02933449944},7665.6835050261507,9272.8262115845519,52908.506660434679,7024.5384435615797,279674.28706034488,{"$f":"SUM(Y7:Y38)","v":629988.60877288016},{"$f":"SUM(Z7:Z38)","v":52499.050731073345}]
[]
["VIEW"]
["VIEW",null,"Notes:"]
["VIEW",null,"o  Security on Campus is currently allocated to all buildings.  DES will work with OFM to collapse the CSM allocations for this item to On-Campus or near-campus buildings in the Supplemental 22 budget. "]
[{"$f":"IF(D37=0,\"HIDE\",\"VIEW\")","v":"HIDE"},null,"o  Tacoma Rhodes:   This building was recently sold to private ownership.  DES will work with OFM to have this building removed from the CSM in the Supplemental 22 Budget."]
["VIEW",null,"o  Campus Contracts (CC) is invoiced in three parts:  "]
["VIEW",null,"1) CC Bldg pays for CC services within the buildings (see rent tab)"]
["VIEW",null,"2) CC Parking pays for CC services within parking garages and lots (see Other Facility Related Costs tab)"]
["VIEW",null,"3) CC PHF pays for CC services in public & historic spaces (see Other Facility Related Costs tab)  Note*  Public and Historic Facilities may not be eligible for Federal Funding or Reimbursement"]
["VIEW",null,"o  Facilities and Services charges for the House (011), Sentate (012), LSS (037), LSC (038) and Statute Law (040) for traditionally \"on-campus\" buildings are funded by an appropriation to DES and will not be invoiced.  This excludes Security on Campus and Childcare centers."]
["VIEW",null,"o  Public and Historic Facilities:  Note*  Public and Historic Facilities may not be eligible for Federal Funding or Reimbursement"]
["VIEW"]
["VIEW",null,null,null,null,null,null,null,null,null,null,null,"Prepared by DES Budget, Finance Division.  For question relating to CSM charges from DES, please contact DES Budget, desbudget@des.wa.gov"]
["VIEW"]
["VIEW"]
["VIEW"]
["VIEW"]
["VIEW"]
["VIEW"]
["VIEW"]
["VIEW"]
["VIEW"]
["VIEW"]
["VIEW"]
["VIEW"]
["VIEW"]
["VIEW"]
["VIEW"]
["VIEW"]
["VIEW"]
["VIEW"]
["VIEW"]
["VIEW"]
["VIEW"]
["VIEW"]
["VIEW"]
["VIEW"]
["VIEW"]
["VIEW"]
["VIEW"]
["VIEW"]
["VIEW"]
["VIEW"]
["VIEW"]
["VIEW"]
["VIEW"]
["VIEW"]
["VIEW"]
["VIEW"]
["VIEW"]
["VIEW"]
["VIEW"]
["VIEW"]
["VIEW"]
["VIEW"]
["VIEW"]
["VIEW"]
["VIEW"]
["VIEW"]
["VIEW"]
["VIEW"]
["VIEW"]
["VIEW"]
["VIEW"]
["VIEW"]
["VIEW"]
["VIEW"]
["VIEW"]
["VIEW"]
["VIEW"]
["VIEW"]
["VIEW"]
["VIEW"]
["VIEW"]
["VIEW"]
["VIEW"]
["VIEW"]
["VIEW"]
["VIEW"]
["VIEW"]
["VIEW"]
["VIEW"]
["VIEW"]
["VIEW"]
["VIEW"]
["VIEW"]
["VIEW"]
["VIEW"]
["VIEW"]
["VIEW"]
["VIEW"]
["VIEW"]
["VIEW"]
["VIEW"]
["VIEW"]
["VIEW"]
["VIEW"]
["VIEW"]
["VIEW"]
["VIEW"]
["VIEW"]
["VIEW"]
["VIEW"]
["VIEW"]
["VIEW"]
["VIEW"]
["VIEW"]
["VIEW"]
["VIEW"]
["VIEW"]
["VIEW"]
["VIEW"]
["VIEW"]
["VIEW"]
["VIEW"]
["VIEW"]
["VIEW"]
["VIEW"]
["VIEW"]
["VIEW"]
["VIEW"]
["VIEW"]
["VIEW"]
["VIEW"]
["VIEW"]
["VIEW"]
["VIEW"]
["VIEW"]
["VIEW"]
["VIEW"]
["VIEW"]
["VIEW"]
["VIEW"]
["VIEW"]
["VIEW"]
["VIEW"]
["VIEW"]
["VIEW"]
["VIEW"]
["VIEW"]
["VIEW"]
["VIEW"]
["VIEW"]
["VIEW"]
["VIEW"]
["VIEW"]
["VIEW"]
["VIEW"]
["VIEW"]
["VIEW"]
["VIEW"]
["VIEW"]
["VIEW"]
["VIEW"]
["VIEW"]
["VIEW"]
["VIEW"]
["VIEW"]
["VIEW"]
["VIEW"]
["VIEW"]
["VIEW"]
["VIEW"]
["VIEW"]
["VIEW"]
["VIEW"]
["VIEW"]
["VIEW"]
["VIEW"]
["VIEW"]
["VIEW"]
["VIEW"]
["VIEW"]
["VIEW"]
["VIEW"]
["VIEW"]
["VIEW"]
["VIEW"]
["VIEW"]
["VIEW"]
["VIEW"]
["VIEW"]
["VIEW"]
["VIEW"]
["VIEW"]
["VIEW"]
["VIEW"]
["VIEW"]
["VIEW"]
["VIEW"]
["VIEW"]
["VIEW"]
["VIEW"]
["VIEW"]
["VIEW"]
["VIEW"]
["VIEW"]
["VIEW"]
["VIEW"]
["VIEW"]
["VIEW"]
["VIEW"]
["VIEW"]
["VIEW"]
["VIEW"]
["VIEW"]
["VIEW"]
["VIEW"]
["VIEW"]
["VIEW"]
["VIEW"]
["VIEW"]
["VIEW"]
["VIEW"]
["VIEW"]
["VIEW"]
["VIEW"]
["VIEW"]
["VIEW"]
["VIEW"]
["VIEW"]
["VIEW"]
["VIEW"]
["VIEW"]
["VIEW"]
["VIEW"]
["VIEW"]
["VIEW"]
["VIEW"]
["VIEW"]
["VIEW"]
["VIEW"]
["VIEW"]
["VIEW"]
["VIEW"]
["VIEW"]
["VIEW"]
["VIEW"]
["VIEW"]
["VIEW"]
["VIEW"]
["VIEW"]
["VIEW"]
["VIEW"]
["VIEW"]
["VIEW"]
["VIEW"]
["VIEW"]
["VIEW"]
["VIEW"]
["VIEW"]
["VIEW"]

{"sheet":"Building RSF","index":4,"n_rows":110,"n_cols":37,"rows_kept":110,"cut":false,"hidden":true,"merged":[]}
[]
[null,null,null,"F6121","F6122","F6123","F6124","F6125","F6126","F6127","F6129","F612A","F612C","F612E","F612H","F612J","F612K","F6131","F6132","F6133","F6134","F6137","F613D","F613E","F613F","F613G","F613H","F613i","F613K","F613L","F613M","F6141","F6142","F6143","F6144","F614G","F6146"]
[null,"Agency #","Agency","Cherberg","O'Brien","Legislative","Pritchard","HLB","OB2","Archives","NRB","Emp Sec","Transportation","Insurance","Old Cap","TOJ","Newhouse","Modular Bldg","Isabella Bush","1007 Washington","120 E Union Avenue","Conservatory","Capital Court","James Dolliver Building","Undeveloped Properties","1068 WA Street SE (ST Farm)","232 Perry Street","208 11th Avenue SE (Pro Arts)","Press Houses Ayer(White); Carlyon(Blue)","Visitor Center","Helen Sommers","Kelso Building","Yakima Building","Alaska Street","Tacoma Rhodes","Tacoma Rhodes Garage","North Cascades Gateway Center (NCGC)"]
[{"$f":"CONCATENATE(B4,\" - \",C4)","v":"011 - House of Representatives"},"011","House of Representatives",0,78594,45304,0,0,0,0,0,0,0,0,0,0,0,0,0,0,0,0,0,0,0,0,0,0,0,0,0,0,0,0,0,0,0]
[{"$f":"CONCATENATE(B5,\" - \",C5)","v":"012 - Senate"},"012","Senate",77281,0,35304,0,0,0,0,0,0,0,0,0,0,22032,0,0,0,0,0,0,0,0,0,0,0,0,0,0,0,0,0,0,0,0]
["013 - Joint Transportation Committee","013","Joint Transportation Committee",0,0,0,0,0,0,0,0,0,0,0,0,0,0,0,0,0,0,0,0,0,0,0,0,0,0,0,0,0,0,0,0,0,0]
["014 - Joint Legislative Audit and Review Committee","014","Joint Legislative Audit and Review Committee",0,0,0,0,0,0,0,0,0,0,0,0,0,0,0,0,0,0,0,0,0,0,0,0,0,0,0,8887,0,0,0,0,0,0]
["020 - Legislative Evaluation and Accountability Program Committee","020","Legislative Evaluation and Accountability Program Committee",0,0,0,0,0,0,0,0,0,0,0,0,0,0,0,0,0,0,0,0,0,0,0,0,0,0,0,4243,0,0,0,0,0,0]
["035 - Office of the State Actuary","035","Office of the State Actuary",0,0,0,0,0,0,0,0,0,0,0,0,0,0,0,0,0,0,0,0,0,0,0,0,0,0,0,0,0,0,0,0,0,0]
["037 - Office of Legislative Support Services","037","Office of Legislative Support Services",0,0,4979,3864,0,0,0,0,0,0,0,0,0,0,0,0,14308,0,0,0,0,0,0,0,0,0,0,0,0,0,0,0,0,0]
["038 - Joint Legislative Systems Committee","038","Joint Legislative Systems Committee",0,0,1143,7679,0,0,0,0,0,0,0,0,0,0,0,0,0,0,0,0,0,0,0,0,0,0,0,11969,0,0,0,0,0,0]
["040 - Statute Law Committee (Code Revisor)","040","Statute Law Committee (Code Revisor)",0,0,0,12347,0,0,0,0,0,0,0,0,0,0,0,0,0,0,0,0,0,0,0,0,0,0,0,0,0,0,0,0,0,0]
["045 - Supreme Court","045","Supreme Court",0,0,0,0,0,0,0,0,0,0,0,0,33940,0,0,0,0,0,0,0,0,0,0,0,0,0,0,0,0,0,0,0,0,0]
["046 - Law Library","046","Law Library",0,0,0,0,0,0,0,0,0,0,0,0,15418,0,0,0,0,0,0,0,0,0,0,0,0,0,0,0,0,0,0,0,0,0]
["048 - Court of Appeals","048","Court of Appeals",0,0,0,0,0,0,0,0,0,0,0,0,0,0,0,0,0,0,0,0,0,0,0,0,0,0,0,0,0,0,0,27692,0,0]
["050 - Commission on Judicial Conduct","050","Commission on Judicial Conduct",0,0,0,0,0,0,0,0,0,0,0,0,0,0,0,0,0,0,0,5175,0,0,0,0,0,0,0,0,0,0,0,0,0,0]
["055 - Administrative Office of the Courts","055","Administrative Office of the Courts",0,0,0,0,0,0,0,0,0,0,0,0,4251,0,0,0,0,0,0,0,0,0,0,0,0,0,0,0,0,0,0,0,0,0]
["056 - Office of Public Defense","056","Office of Public Defense",0,0,0,0,0,0,0,0,0,0,0,0,0,0,0,0,0,0,0,0,0,0,0,0,0,0,0,0,0,0,0,0,0,0]
["057 - Office of Civil Legal Aid","057","Office of Civil Legal Aid",0,0,0,0,0,0,0,0,0,0,0,0,0,0,0,0,0,0,0,0,0,0,0,0,0,0,0,0,0,0,0,0,0,0]
["075 - Office of the Governor","075","Office of the Governor",0,0,17257,0,0,0,0,0,0,0,0,0,0,0,0,0,0,0,0,0,0,0,0,0,0,0,0,0,0,0,0,0,0,0]
["080 - Office of Lieutenant Governor","080","Office of Lieutenant Governor",0,0,8874,0,0,0,0,0,0,0,0,0,0,0,0,0,0,0,0,0,0,0,0,0,0,0,0,0,0,0,0,0,0,0]
["082 - Public Disclosure Commission","082","Public Disclosure Commission",0,0,0,0,0,0,0,0,0,0,0,0,0,0,0,0,0,0,0,0,0,0,0,0,0,0,0,0,0,0,0,0,0,0]
["085 - Office of the Secretary of State","085","Office of the Secretary of State",0,0,10650,0,0,0,47900,0,0,0,0,0,0,0,6382,47200,0,0,0,0,17000,0,0,0,0,0,0,0,0,0,0,0,0,0]
["086 - Governor's Office of Indian Affairs","086","Governor's Office of Indian Affairs",0,0,0,0,0,0,0,0,0,0,0,0,0,0,0,0,0,0,0,1312,0,0,0,0,0,0,0,0,0,0,0,0,0,0]
["087 - Commission on Asian Pacific American Affairs","087","Commission on Asian Pacific American Affairs",0,0,0,0,0,0,0,0,0,0,0,0,0,0,0,0,0,0,0,863,0,0,0,0,0,0,0,0,0,0,0,0,0,0]
["090 - Office of State Treasurer","090","Office of State Treasurer",0,0,10715,0,0,0,0,0,0,0,0,0,0,0,0,0,0,0,0,0,0,0,0,0,0,0,0,12915,0,0,0,0,0,0]
["095 - Office of State Auditor","095","Office of State Auditor",0,0,0,0,0,0,0,0,0,0,6412,0,0,0,0,0,0,0,0,0,0,0,0,0,0,0,0,0,0,0,0,4422,0,0]
["099 - Citizens' Commission on Salaries for Elected Officials","099","Citizens' Commission on Salaries for Elected Officials",0,0,0,0,0,0,0,0,0,0,0,0,0,0,0,0,0,0,0,666,0,0,0,0,0,0,0,0,0,0,0,0,0,0]
["100 - Office of Attorney General","100","Office of Attorney General",0,0,0,0,72639,0,0,0,0,0,0,0,0,0,0,0,0,0,0,0,0,0,0,0,0,0,0,0,0,0,0,0,0,0]
["101 - Caseload Forecast Council","101","Caseload Forecast Council",0,0,0,0,0,0,0,0,0,0,0,0,0,0,0,0,0,0,0,5158,0,0,0,0,0,0,0,0,0,0,0,0,0,0]
["102 - Department of Financial Institutions","102","Department of Financial Institutions",0,0,0,0,0,0,0,0,0,0,0,0,0,0,0,0,0,0,0,0,0,0,0,0,0,0,0,0,0,0,0,0,0,0]
["103 - Department of Commerce","103","Department of Commerce",0,0,0,0,0,0,0,0,0,0,0,0,0,0,0,0,0,0,0,0,0,0,0,0,0,0,0,0,0,0,0,0,0,0]
["104 - Economic and Revenue Forecast Council","104","Economic and Revenue Forecast Council",0,0,0,0,0,0,0,0,0,0,0,0,0,0,0,0,0,0,0,0,0,0,0,0,0,0,0,0,0,0,0,0,0,0]
["105 - Office of Financial Management","105","Office of Financial Management",0,0,0,0,0,0,0,0,0,0,41707,0,0,0,0,0,0,0,0,699,0,0,0,0,0,0,0,24879,0,0,0,0,0,0]
["107 - Washington State Health Care Authority","107","Washington State Health Care Authority",0,0,0,0,0,0,0,0,0,0,0,0,0,0,0,0,0,0,0,0,0,0,0,0,0,0,0,0,0,0,0,0,0,0]
["110 - Office of Administrative Hearings","110","Office of Administrative Hearings",0,0,0,0,0,0,0,0,0,0,0,0,0,0,0,0,0,0,0,0,0,0,0,0,0,0,0,0,0,0,0,11256,0,0]
["116 - State Lottery","116","State Lottery",0,0,0,0,0,0,0,0,0,0,0,0,0,0,0,0,0,0,0,0,0,0,0,0,0,0,0,0,0,0,0,0,0,0]
["117 - Washington State Gambling Commission","117","Washington State Gambling Commission",0,0,0,0,0,0,0,0,0,0,0,0,0,0,0,0,0,0,0,0,0,0,0,0,0,0,0,0,0,0,0,0,0,0]
["118 - Commission on Hispanic Affairs","118","Commission on Hispanic Affairs",0,0,0,0,0,0,0,0,0,0,0,0,0,0,0,0,0,0,0,863,0,0,0,0,0,0,0,0,0,0,0,0,0,0]
["119 - Commission on African-American Affairs","119","Commission on African-American Affairs",0,0,0,0,0,0,0,0,0,0,0,0,0,0,0,0,0,0,0,863,0,0,0,0,0,0,0,0,0,0,0,0,0,0]
["120 - Human Rights Commission","120","Human Rights Commission",0,0,0,0,0,0,0,0,0,0,0,0,0,0,0,0,0,0,0,0,0,0,0,0,0,0,0,0,0,0,0,0,0,0]
["124 - Department of Retirement Systems","124","Department of Retirement Systems",0,0,0,0,0,0,0,0,0,0,0,0,0,0,0,0,0,0,0,0,0,0,0,0,0,0,0,0,0,0,0,0,0,0]
["126 - State Investment Board","126","State Investment Board",0,0,0,0,0,0,0,0,0,0,0,0,0,0,0,0,0,0,0,0,0,0,0,0,0,0,0,0,0,0,0,0,0,0]
["140 - Department of Revenue","140","Department of Revenue",0,0,0,0,0,0,0,0,0,0,0,0,0,0,0,0,0,0,0,0,0,0,0,0,0,0,0,0,0,0,0,0,0,0]
["142 - Board of Tax Appeals","142","Board of Tax Appeals",0,0,0,0,0,0,0,0,0,0,0,0,0,0,0,0,0,0,0,4670,0,0,0,0,0,0,0,0,0,0,0,0,0,0]
["147 - Office of Minority and Women's Business Enterprises","147","Office of Minority and Women's Business Enterprises",0,0,0,0,0,0,0,0,0,0,0,0,0,0,0,0,0,0,0,4819,0,0,0,0,0,0,0,0,0,0,0,0,0,0]
["160 - Office of Insurance Commissioner","160","Office of Insurance Commissioner",0,0,0,0,0,0,0,0,0,0,6989,0,0,0,0,0,0,0,0,0,0,0,0,0,0,0,0,0,0,0,0,0,0,0]
["163 - Consolidated Technology Services","163","Consolidated Technology Services",0,0,0,0,0,292,0,0,0,0,0,0,0,0,0,0,0,0,0,0,0,0,0,0,0,0,0,0,0,0,0,0,0,0]
["165 - Board of Accountancy","165","Board of Accountancy",0,0,0,0,0,0,0,0,0,0,0,0,0,0,0,0,0,0,0,0,0,0,0,0,0,0,0,0,0,0,0,0,0,0]
["166 - Brd Prof Eng Land Surveyors","166","Brd Prof Eng Land Surveyors",0,0,0,0,0,0,0,0,0,0,0,0,0,0,0,0,0,0,0,0,0,0,0,0,0,0,0,0,0,0,0,0,0,0]
["167 - Forensic Investigations Council","167","Forensic Investigations Council",0,0,0,0,0,0,0,0,0,0,0,0,0,0,0,0,0,0,0,0,0,0,0,0,0,0,0,0,0,0,0,0,0,0]
["179 - Department of Enterprise Services","179","Department of Enterprise Services",0,0,6917,0,0,20286,0,0,0,0,0,0,0,0,89004,0,0,0,0,5378,0,0,0,0,0,0,0,300,0,0,0,0,0,0]
["185 - Horse Racing Commission","185","Horse Racing Commission",0,0,0,0,0,0,0,0,0,0,0,0,0,0,0,0,0,0,0,0,0,0,0,0,0,0,0,0,0,0,0,0,0,0]
["190 - Board of Industrial Insurance Appeals","190","Board of Industrial Insurance Appeals",0,0,0,0,0,0,0,0,0,0,0,0,0,0,0,0,0,0,0,0,0,0,0,0,0,0,0,0,0,0,0,0,0,0]
["195 - Liquor Control Board","195","Liquor Control Board",0,0,0,0,0,0,0,0,0,0,0,0,0,0,0,0,0,0,0,0,0,0,0,0,0,0,0,0,0,0,0,0,0,0]
["205 - Board of Pilotage Commissioners","205","Board of Pilotage Commissioners",0,0,0,0,0,0,0,0,0,0,0,0,0,0,0,0,0,0,0,0,0,0,0,0,0,0,0,0,0,0,0,0,0,0]
["215 - Utilities and Transportation Commission","215","Utilities and Transportation Commission",0,0,0,0,0,0,0,0,0,0,0,0,0,0,0,0,0,0,0,0,0,0,0,0,0,0,0,0,0,0,0,0,0,0]
["220 - Board for Volunteer Firefighters and Reserve Officers","220","Board for Volunteer Firefighters and Reserve Officers",0,0,0,0,0,0,0,0,0,0,0,0,0,0,0,0,0,0,0,0,0,0,0,0,0,0,0,0,0,0,0,0,0,0]
["225 - Washington State Patrol","225","Washington State Patrol",0,0,520,0,0,0,0,0,0,0,0,0,0,0,0,0,0,0,0,0,0,0,0,0,0,0,0,137399,0,0,0,0,0,0]
["227 - Criminal Justice Training Commission","227","Criminal Justice Training Commission",0,0,0,0,0,0,0,0,0,0,0,0,0,0,0,0,0,0,0,0,0,0,0,0,0,0,0,0,0,0,0,0,0,0]
["228 - Traffic Safety Commission","228","Traffic Safety Commission",0,0,0,0,0,0,0,0,0,0,0,0,0,0,0,0,0,0,0,0,0,0,0,0,0,0,0,0,0,0,0,0,0,0]
["235 - Department of Labor and Industries","235","Department of Labor and Industries",0,0,0,0,0,0,0,0,0,0,0,0,0,0,0,0,0,0,0,0,0,0,0,0,0,0,0,0,10323,0,0,29188,0,0]
["240 - Department of Licensing","240","Department of Licensing",0,0,0,0,104161,0,0,0,0,0,0,0,0,0,0,0,0,0,0,0,0,0,0,0,0,0,0,0,0,0,0,0,0,0]
["245 - Military Department","245","Military Department",0,0,0,0,0,0,0,0,0,0,0,0,0,0,0,0,0,0,0,0,0,0,0,0,0,0,0,0,0,0,0,0,0,0]
["275 - Public Employment Relations Commission","275","Public Employment Relations Commission",0,0,0,0,0,0,0,0,0,0,0,0,0,0,0,0,0,0,0,0,0,0,0,0,0,0,0,0,0,0,0,0,0,0]
["300 - Department of Social and Health Services","300","Department of Social and Health Services",0,0,0,0,0,161291,0,0,0,0,0,0,0,0,0,0,0,0,0,0,0,0,0,0,0,0,0,0,29001,69517,0,0,0,0]
["303 - Department of Health","303","Department of Health",0,0,0,0,0,0,0,0,0,0,0,0,0,0,0,0,0,0,0,0,0,0,0,0,0,0,0,0,0,0,0,0,0,0]
["305 - Department of Veterans Affairs","305","Department of Veterans Affairs",0,0,0,0,0,0,0,0,0,0,0,0,0,0,0,0,0,0,0,0,0,0,0,0,0,0,0,0,0,0,0,0,0,0]
[{"$f":"CONCATENATE(B69,\" - \",C69)","v":"307 - DCYF"},"307","DCYF",0,0,0,0,0,66042,0,0,0,0,0,0,0,0,0,0,0,0,0,0,0,0,0,0,0,0,0,0,21257,29483,0,0,0,0]
["310 - Department of Corrections","310","Department of Corrections",0,0,0,0,0,0,0,0,0,0,0,0,0,0,0,0,0,0,0,0,0,0,0,0,0,0,0,0,0,0,0,0,0,0]
["315 - Department of Services for the Blind","315","Department of Services for the Blind",0,0,591,0,868,2570,0,3010,0,1434,0,0,0,0,0,0,0,0,0,0,0,0,0,0,0,0,0,0,0,0,20708,2775,0,0]
["340 - Student Achievement Council","340","Student Achievement Council",0,0,0,0,0,0,0,0,0,0,0,0,0,0,0,0,0,0,0,0,0,0,0,0,0,0,0,0,0,0,0,0,0,0]
["341 - Law Enforcement Officers' & Fire Fighters' Plan 2 Retirement Board","341","Law Enforcement Officers' & Fire Fighters' Plan 2 Retirement Board",0,0,0,0,0,0,0,0,0,0,0,0,0,0,0,0,0,0,0,0,0,0,0,0,0,0,0,0,0,0,0,0,0,0]
["350 - Superintendent of Public Instruction","350","Superintendent of Public Instruction",0,0,0,0,0,0,0,0,0,0,0,97800,0,0,0,0,0,0,0,0,0,0,1539,0,0,0,0,0,0,0,0,0,0,0]
["351 - State School For The Blind","351","State School For The Blind",0,0,0,0,0,0,0,0,0,0,0,0,0,0,0,0,0,0,0,0,0,0,0,0,0,0,0,0,0,0,0,0,0,0]
["353 - State Center for Childhood Deafness and Hearing Loss","353","State Center for Childhood Deafness and Hearing Loss",0,0,0,0,0,0,0,0,0,0,0,0,0,0,0,0,0,0,0,0,0,0,0,0,0,0,0,0,0,0,0,0,0,0]
["354 - Workforce Training and Education Coordinating Board","354","Workforce Training and Education Coordinating Board",0,0,0,0,0,0,0,0,0,0,0,0,0,0,0,0,0,0,0,0,0,0,0,0,0,0,0,0,0,0,0,0,0,0]
["355 - Department of Archaeology and Historic Preservation","355","Department of Archaeology and Historic Preservation",0,0,0,0,0,0,0,0,0,0,0,0,0,0,0,0,0,0,0,9336,0,0,0,0,0,0,0,0,0,0,0,0,0,0]
["357 - Department of Early Learning","357","Department of Early Learning",0,0,0,0,0,0,0,0,0,0,0,0,0,0,0,0,0,0,0,0,0,0,0,0,0,0,0,0,0,0,0,0,0,0]
["359 - WA Charter School Commission","359","WA Charter School Commission",0,0,0,0,0,0,0,0,0,0,0,0,0,0,0,0,0,0,0,0,0,0,0,0,0,0,0,0,0,0,0,0,0,0]
["360 - University of Washington","360","University of Washington",0,0,0,0,0,0,0,0,0,0,0,0,0,0,0,0,0,0,0,0,0,0,0,0,0,0,0,0,0,0,0,0,0,0]
["365 - Washington State University","365","Washington State University",0,0,0,0,0,0,0,0,0,0,0,0,0,0,0,0,0,0,0,0,0,0,0,0,0,0,0,0,0,0,0,0,0,0]
["370 - Eastern Washington University","370","Eastern Washington University",0,0,0,0,0,0,0,0,0,0,0,0,0,0,0,0,0,0,0,0,0,0,0,0,0,0,0,0,0,0,0,0,0,0]
["375 - Central Washington University","375","Central Washington University",0,0,0,0,0,0,0,0,0,0,0,0,0,0,0,0,0,0,0,0,0,0,0,0,0,0,0,0,0,0,0,0,0,0]
["376 - The Evergreen State College","376","The Evergreen State College",0,0,0,0,0,0,0,0,0,0,0,0,0,0,0,0,0,0,0,0,0,0,0,0,0,0,0,0,0,0,0,0,0,0]
["380 - Western Washington University","380","Western Washington University",0,0,0,0,0,0,0,0,0,0,0,0,0,0,0,0,0,0,0,0,0,0,0,0,0,0,0,0,0,0,0,0,0,0]
["387 - Washington State Arts Commission","387","Washington State Arts Commission",0,0,0,0,0,0,0,0,0,0,0,0,0,0,0,0,0,0,0,0,0,0,0,0,0,0,0,0,0,0,0,0,0,0]
["390 - Washington State Historical Society","390","Washington State Historical Society",0,0,0,0,0,0,0,0,0,0,0,0,0,0,0,0,0,0,0,0,0,0,0,0,0,0,0,0,0,0,0,0,0,0]
["395 - Eastern Washington State Historical Society","395","Eastern Washington State Historical Society",0,0,0,0,0,0,0,0,0,0,0,0,0,0,0,0,0,0,0,0,0,0,0,0,0,0,0,0,0,0,0,0,0,0]
["405 - Department of Transportation","405","Department of Transportation",0,0,0,0,0,0,0,0,0,182993,0,0,0,0,0,0,0,0,0,0,0,0,0,0,0,0,0,0,0,0,0,0,0,0]
["406 - County Road Administration Board","406","County Road Administration Board",0,0,0,0,0,0,0,0,0,0,0,0,0,0,0,0,0,0,0,0,0,0,0,0,0,0,0,0,0,0,0,0,0,0]
["407 - Transportation Improvement Board","407","Transportation Improvement Board",0,0,0,0,0,0,0,0,0,0,0,0,0,0,0,0,0,0,0,0,0,0,0,0,0,0,0,0,0,0,0,0,0,0]
["410 - Transportation Commission","410","Transportation Commission",0,0,0,0,0,0,0,0,0,0,0,0,0,0,0,0,0,0,0,0,0,0,0,0,0,0,0,0,0,0,0,0,0,0]
["411 - Freight Mobility Strategic Investment Board","411","Freight Mobility Strategic Investment Board",0,0,0,0,0,0,0,0,0,0,0,0,0,0,0,0,0,0,0,0,0,0,0,0,0,0,0,0,0,0,0,0,0,0]
["460 - Columbia River Gorge Commission","460","Columbia River Gorge Commission",0,0,0,0,0,0,0,0,0,0,0,0,0,0,0,0,0,0,0,0,0,0,0,0,0,0,0,0,0,0,0,0,0,0]
["461 - Department of Ecology","461","Department of Ecology",0,0,0,0,0,0,0,0,0,0,0,0,0,0,0,0,0,0,0,0,0,0,0,0,0,0,0,0,0,0,0,0,0,0]
["462 - Pollution Liability Insurance Program","462","Pollution Liability Insurance Program",0,0,0,0,0,0,0,0,0,0,0,0,0,0,0,0,0,0,0,0,0,0,0,0,0,0,0,0,0,0,0,0,0,0]
["465 - State Parks and Recreation Commission","465","State Parks and Recreation Commission",0,0,0,0,0,0,0,0,0,0,0,0,0,0,0,0,0,0,0,0,0,0,0,0,0,0,0,0,0,0,0,0,0,0]
["467 - Recreation and Conservation Funding Board","467","Recreation and Conservation Funding Board",0,0,0,0,0,0,0,11770,0,0,0,0,0,0,0,0,0,0,0,0,0,0,0,0,0,0,0,0,0,0,0,0,0,0]
["468 - Environmental and Land Use Hearings Office","468","Environmental and Land Use Hearings Office",0,0,0,0,0,0,0,0,0,0,0,0,0,0,0,0,0,0,0,0,0,0,0,0,0,0,0,0,0,0,0,0,0,0]
["471 - State Conservation Commission","471","State Conservation Commission",0,0,0,0,0,0,0,0,0,0,0,0,0,0,0,0,0,0,0,0,0,0,0,0,0,0,0,0,0,0,0,0,0,0]
["477 - Department of Fish and Wildlife","477","Department of Fish and Wildlife",0,0,0,0,0,0,0,140169,0,0,0,0,0,0,0,0,0,0,0,0,0,0,0,0,0,0,0,0,0,0,0,0,0,0]
["478 - Puget Sound Partnership","478","Puget Sound Partnership",0,0,0,0,0,0,0,0,0,0,0,0,0,0,0,0,0,0,0,1382,0,0,0,0,0,0,0,0,0,0,0,0,0,0]
["490 - Department of Natural Resources","490","Department of Natural Resources",0,0,0,0,0,0,0,151800,0,0,0,0,0,0,0,0,0,0,0,0,0,0,0,0,0,0,0,0,0,0,0,0,0,0]
["495 - Department of Agriculture","495","Department of Agriculture",0,0,0,0,0,0,0,47947,0,0,0,0,0,0,0,0,0,0,0,0,0,0,0,0,0,0,0,0,0,0,0,0,0,0]
["540 - Employment Security Department","540","Employment Security Department",0,0,0,0,0,0,0,0,92619,0,0,0,0,0,0,0,0,0,0,0,0,0,0,0,0,0,0,0,0,0,0,0,0,0]
["699 - Community Colleges","699","Community Colleges",0,0,0,0,0,0,0,0,0,0,0,0,0,0,0,0,0,0,0,0,0,0,0,0,0,0,0,0,0,0,0,0,0,0]
["XXX - Private","XXX","Private",0,0,0,0,0,0,0,0,0,0,0,0,0,0,0,0,0,10125,0,157,0,0,0,7138,885,2492,0,0,0,0,0,63022,17600,0]
["TOTAL  - All Agencies",null,"Building Total",{"$f":"SUM(D4:D107)","v":77281},{"$f":"SUM(E4:E107)","v":78594},142254,23890,177668,250481,47900,354696,92619,184427,55108,97800,53609,22032,95386,47200,14308,0,0,41184,17000,0,1539,0,0,0,0,200592,60581,99000,20708,75333,0,{"$f":"SUM(AK4:AK108)","v":0}]
["0 - vacant space",0,"vacant space",{"$f":"SUMIFS('[2]Master 8.5.20'!$R:$R,'[2]Master 8.5.20'!$C:$C,\"Vacant\",'[2]Master 8.5.20'!$A:$A,D$2)","v":{"$error":"#VALUE!"}},{"$f":"SUMIFS('[2]Master 8.5.20'!$R:$R,'[2]Master 8.5.20'!$C:$C,\"Vacant\",'[2]Master 8.5.20'!$A:$A,E$2)","v":{"$error":"#VALUE!"}},{"$f":"SUMIFS('[2]Master 8.5.20'!$R:$R,'[2]Master 8.5.20'!$C:$C,\"Vacant\",'[2]Master 8.5.20'!$A:$A,F$2)","v":{"$error":"#VALUE!"}},{"$f":"SUMIFS('[2]Master 8.5.20'!$R:$R,'[2]Master 8.5.20'!$C:$C,\"Vacant\",'[2]Master 8.5.20'!$A:$A,G$2)","v":{"$error":"#VALUE!"}},{"$f":"SUMIFS('[2]Master 8.5.20'!$R:$R,'[2]Master 8.5.20'!$C:$C,\"Vacant\",'[2]Master 8.5.20'!$A:$A,H$2)","v":{"$error":"#VALUE!"}},{"$f":"SUMIFS('[2]Master 8.5.20'!$R:$R,'[2]Master 8.5.20'!$C:$C,\"Vacant\",'[2]Master 8.5.20'!$A:$A,I$2)","v":{"$error":"#VALUE!"}},{"$f":"SUMIFS('[2]Master 8.5.20'!$R:$R,'[2]Master 8.5.20'!$C:$C,\"Vacant\",'[2]Master 8.5.20'!$A:$A,J$2)","v":{"$error":"#VALUE!"}},{"$f":"SUMIFS('[2]Master 8.5.20'!$R:$R,'[2]Master 8.5.20'!$C:$C,\"Vacant\",'[2]Master 8.5.20'!$A:$A,K$2)","v":{"$error":"#VALUE!"}},{"$f":"SUMIFS('[2]Master 8.5.20'!$R:$R,'[2]Master 8.5.20'!$C:$C,\"Vacant\",'[2]Master 8.5.20'!$A:$A,L$2)","v":{"$error":"#VALUE!"}},{"$f":"SUMIFS('[2]Master 8.5.20'!$R:$R,'[2]Master 8.5.20'!$C:$C,\"Vacant\",'[2]Master 8.5.20'!$A:$A,M$2)","v":{"$error":"#VALUE!"}},{"$f":"SUMIFS('[2]Master 8.5.20'!$R:$R,'[2]Master 8.5.20'!$C:$C,\"Vacant\",'[2]Master 8.5.20'!$A:$A,N$2)","v":{"$error":"#VALUE!"}},{"$f":"SUMIFS('[2]Master 8.5.20'!$R:$R,'[2]Master 8.5.20'!$C:$C,\"Vacant\",'[2]Master 8.5.20'!$A:$A,O$2)","v":{"$error":"#VALUE!"}},{"$f":"SUMIFS('[2]Master 8.5.20'!$R:$R,'[2]Master 8.5.20'!$C:$C,\"Vacant\",'[2]Master 8.5.20'!$A:$A,P$2)","v":{"$error":"#VALUE!"}},{"$f":"SUMIFS('[2]Master 8.5.20'!$R:$R,'[2]Master 8.5.20'!$C:$C,\"Vacant\",'[2]Master 8.5.20'!$A:$A,Q$2)","v":{"$error":"#VALUE!"}},{"$f":"SUMIFS('[2]Master 8.5.20'!$R:$R,'[2]Master 8.5.20'!$C:$C,\"Vacant\",'[2]Master 8.5.20'!$A:$A,R$2)","v":{"$error":"#VALUE!"}},{"$f":"SUMIFS('[2]Master 8.5.20'!$R:$R,'[2]Master 8.5.20'!$C:$C,\"Vacant\",'[2]Master 8.5.20'!$A:$A,S$2)","v":{"$error":"#VALUE!"}},{"$f":"SUMIFS('[2]Master 8.5.20'!$R:$R,'[2]Master 8.5.20'!$C:$C,\"Vacant\",'[2]Master 8.5.20'!$A:$A,T$2)","v":{"$error":"#VALUE!"}},{"$f":"SUMIFS('[2]Master 8.5.20'!$R:$R,'[2]Master 8.5.20'!$C:$C,\"Vacant\",'[2]Master 8.5.20'!$A:$A,U$2)","v":{"$error":"#VALUE!"}},{"$f":"SUMIFS('[2]Master 8.5.20'!$R:$R,'[2]Master 8.5.20'!$C:$C,\"Vacant\",'[2]Master 8.5.20'!$A:$A,V$2)","v":{"$error":"#VALUE!"}},{"$f":"SUMIFS('[2]Master 8.5.20'!$R:$R,'[2]Master 8.5.20'!$C:$C,\"Vacant\",'[2]Master 8.5.20'!$A:$A,W$2)","v":{"$error":"#VALUE!"}},{"$f":"SUMIFS('[2]Master 8.5.20'!$R:$R,'[2]Master 8.5.20'!$C:$C,\"Vacant\",'[2]Master 8.5.20'!$A:$A,X$2)","v":{"$error":"#VALUE!"}},{"$f":"SUMIFS('[2]Master 8.5.20'!$R:$R,'[2]Master 8.5.20'!$C:$C,\"Vacant\",'[2]Master 8.5.20'!$A:$A,Y$2)","v":{"$error":"#VALUE!"}},{"$f":"SUMIFS('[2]Master 8.5.20'!$R:$R,'[2]Master 8.5.20'!$C:$C,\"Vacant\",'[2]Master 8.5.20'!$A:$A,Z$2)","v":{"$error":"#VALUE!"}},{"$f":"SUMIFS('[2]Master 8.5.20'!$R:$R,'[2]Master 8.5.20'!$C:$C,\"Vacant\",'[2]Master 8.5.20'!$A:$A,AA$2)","v":{"$error":"#VALUE!"}},{"$f":"SUMIFS('[2]Master 8.5.20'!$R:$R,'[2]Master 8.5.20'!$C:$C,\"Vacant\",'[2]Master 8.5.20'!$A:$A,AB$2)","v":{"$error":"#VALUE!"}},{"$f":"SUMIFS('[2]Master 8.5.20'!$R:$R,'[2]Master 8.5.20'!$C:$C,\"Vacant\",'[2]Master 8.5.20'!$A:$A,AC$2)","v":{"$error":"#VALUE!"}},{"$f":"SUMIFS('[2]Master 8.5.20'!$R:$R,'[2]Master 8.5.20'!$C:$C,\"Vacant\",'[2]Master 8.5.20'!$A:$A,AD$2)","v":{"$error":"#VALUE!"}},{"$f":"SUMIFS('[2]Master 8.5.20'!$R:$R,'[2]Master 8.5.20'!$C:$C,\"Vacant\",'[2]Master 8.5.20'!$A:$A,AE$2)","v":{"$error":"#VALUE!"}},{"$f":"SUMIFS('[2]Master 8.5.20'!$R:$R,'[2]Master 8.5.20'!$C:$C,\"Vacant\",'[2]Master 8.5.20'!$A:$A,AF$2)","v":{"$error":"#VALUE!"}},{"$f":"SUMIFS('[2]Master 8.5.20'!$R:$R,'[2]Master 8.5.20'!$C:$C,\"Vacant\",'[2]Master 8.5.20'!$A:$A,AG$2)","v":{"$error":"#VALUE!"}},{"$f":"SUMIFS('[2]Master 8.5.20'!$R:$R,'[2]Master 8.5.20'!$C:$C,\"Vacant\",'[2]Master 8.5.20'!$A:$A,AH$2)","v":{"$error":"#VALUE!"}},{"$f":"SUMIFS('[2]Master 8.5.20'!$R:$R,'[2]Master 8.5.20'!$C:$C,\"Vacant\",'[2]Master 8.5.20'!$A:$A,AI$2)","v":{"$error":"#VALUE!"}},{"$f":"SUMIFS('[2]Master 8.5.20'!$R:$R,'[2]Master 8.5.20'!$C:$C,\"Vacant\",'[2]Master 8.5.20'!$A:$A,AJ$2)","v":{"$error":"#VALUE!"}},{"$f":"SUMIFS('[2]Master 8.5.20'!$R:$R,'[2]Master 8.5.20'!$C:$C,\"Vacant\",'[2]Master 8.5.20'!$A:$A,AK$2)","v":{"$error":"#VALUE!"}}]

{"sheet":"rent dollars FY22","index":5,"n_rows":112,"n_cols":38,"rows_kept":112,"cut":false,"hidden":true,"merged":[[1,3,2,3]]}
[null,"BI TOTAL",26401000]
[null,null,null,"Total","F6121","F6122","F6123","F6124","F6125","F6126","F6127","F6129","F612A","F612C","F612E","F612H","F612J","F612K","F6131","F6132","F6133","F6134","F6137","F613D","F613E","F613F","F613G","F613H","F613i","F613K","F613L","F613M","F6141","F6142","F6143","F6144","F614G","F6146"]
[null,"Agency #","Agency",null,"Cherberg","O'Brien","Legislative","Pritchard","HLB","OB2","Archives","NRB","Emp Sec","Transportation","Insurance","Old Cap","TOJ","Newhouse","Modular Bldg","Isabella Bush","1007 Washington","120 E Union Avenue","Conservatory","Capital Court","James Dolliver Building","Undeveloped Properties","1068 WA Street SE (ST Farm)","232 Perry Street","208 11th Avenue SE (Pro Arts)","Press Houses Ayer(White); Carlyon(Blue)","Visitor Center","Helen Sommers","Kelso Building","Yakima Building","Alaska Street","Tacoma Rhodes","Tacoma Rhodes Garage","North Cascades Gateway Center (NCGC)"]
[{"$f":"CONCATENATE(B4,\" - \",C4)","v":"011 - House of Representatives"},"011","House of Representatives",{"$f":"'rent allocations'!D4*$C$1","v":1539549.1604632703},{"$f":"'rent allocations'!E4*$C$1","v":0},{"$f":"'rent allocations'!F4*$C$1","v":702092.06090319366},{"$f":"'rent allocations'!G4*$C$1","v":837457.09956007672},{"$f":"'rent allocations'!H4*$C$1","v":0},{"$f":"'rent allocations'!I4*$C$1","v":0},{"$f":"'rent allocations'!J4*$C$1","v":0},{"$f":"'rent allocations'!K4*$C$1","v":0},{"$f":"'rent allocations'!L4*$C$1","v":0},{"$f":"'rent allocations'!M4*$C$1","v":0},{"$f":"'rent allocations'!N4*$C$1","v":0},{"$f":"'rent allocations'!O4*$C$1","v":0},{"$f":"'rent allocations'!P4*$C$1","v":0},{"$f":"'rent allocations'!Q4*$C$1","v":0},{"$f":"'rent allocations'!R4*$C$1","v":0},{"$f":"'rent allocations'!S4*$C$1","v":0},{"$f":"'rent allocations'!T4*$C$1","v":0},{"$f":"'rent allocations'!U4*$C$1","v":0},{"$f":"'rent allocations'!V4*$C$1","v":0},{"$f":"'rent allocations'!W4*$C$1","v":0},{"$f":"'rent allocations'!X4*$C$1","v":0},{"$f":"'rent allocations'!Y4*$C$1","v":0},{"$f":"'rent allocations'!Z4*$C$1","v":0},{"$f":"'rent allocations'!AA4*$C$1","v":0},{"$f":"'rent allocations'!AB4*$C$1","v":0},{"$f":"'rent allocations'!AC4*$C$1","v":0},{"$f":"'rent allocations'!AD4*$C$1","v":0},{"$f":"'rent allocations'!AE4*$C$1","v":0},{"$f":"'rent allocations'!AF4*$C$1","v":0},{"$f":"'rent allocations'!AG4*$C$1","v":0},{"$f":"'rent allocations'!AH4*$C$1","v":0},{"$f":"'rent allocations'!AI4*$C$1","v":0},{"$f":"'rent allocations'!AJ4*$C$1","v":0},{"$f":"'rent allocations'!AK4*$C$1","v":0},{"$f":"'rent allocations'!AL4*$C$1","v":0}]
[{"$f":"CONCATENATE(B5,\" - \",C5)","v":"012 - Senate"},"012","Senate",{"$f":"'rent allocations'!D5*$C$1","v":2154300.9565573623},{"$f":"'rent allocations'!E5*$C$1","v":1095163.0340587087},{"$f":"'rent allocations'!F5*$C$1","v":0},{"$f":"'rent allocations'!G5*$C$1","v":652604.30520194559},{"$f":"'rent allocations'!H5*$C$1","v":0},{"$f":"'rent allocations'!I5*$C$1","v":0},{"$f":"'rent allocations'!J5*$C$1","v":0},{"$f":"'rent allocations'!K5*$C$1","v":0},{"$f":"'rent allocations'!L5*$C$1","v":0},{"$f":"'rent allocations'!M5*$C$1","v":0},{"$f":"'rent allocations'!N5*$C$1","v":0},{"$f":"'rent allocations'!O5*$C$1","v":0},{"$f":"'rent allocations'!P5*$C$1","v":0},{"$f":"'rent allocations'!Q5*$C$1","v":0},{"$f":"'rent allocations'!R5*$C$1","v":406533.61729670782},{"$f":"'rent allocations'!S5*$C$1","v":0},{"$f":"'rent allocations'!T5*$C$1","v":0},{"$f":"'rent allocations'!U5*$C$1","v":0},{"$f":"'rent allocations'!V5*$C$1","v":0},{"$f":"'rent allocations'!W5*$C$1","v":0},{"$f":"'rent allocations'!X5*$C$1","v":0},{"$f":"'rent allocations'!Y5*$C$1","v":0},{"$f":"'rent allocations'!Z5*$C$1","v":0},{"$f":"'rent allocations'!AA5*$C$1","v":0},{"$f":"'rent allocations'!AB5*$C$1","v":0},{"$f":"'rent allocations'!AC5*$C$1","v":0},{"$f":"'rent allocations'!AD5*$C$1","v":0},{"$f":"'rent allocations'!AE5*$C$1","v":0},{"$f":"'rent allocations'!AF5*$C$1","v":0},{"$f":"'rent allocations'!AG5*$C$1","v":0},{"$f":"'rent allocations'!AH5*$C$1","v":0},{"$f":"'rent allocations'!AI5*$C$1","v":0},{"$f":"'rent allocations'!AJ5*$C$1","v":0},{"$f":"'rent allocations'!AK5*$C$1","v":0},{"$f":"'rent allocations'!AL5*$C$1","v":0}]
["013 - Joint Transportation Committee","013","Joint Transportation Committee",{"$f":"'rent allocations'!D6*$C$1","v":0},{"$f":"'rent allocations'!E6*$C$1","v":0},{"$f":"'rent allocations'!F6*$C$1","v":0},{"$f":"'rent allocations'!G6*$C$1","v":0},{"$f":"'rent allocations'!H6*$C$1","v":0},{"$f":"'rent allocations'!I6*$C$1","v":0},{"$f":"'rent allocations'!J6*$C$1","v":0},{"$f":"'rent allocations'!K6*$C$1","v":0},{"$f":"'rent allocations'!L6*$C$1","v":0},{"$f":"'rent allocations'!M6*$C$1","v":0},{"$f":"'rent allocations'!N6*$C$1","v":0},{"$f":"'rent allocations'!O6*$C$1","v":0},{"$f":"'rent allocations'!P6*$C$1","v":0},{"$f":"'rent allocations'!Q6*$C$1","v":0},{"$f":"'rent allocations'!R6*$C$1","v":0},{"$f":"'rent allocations'!S6*$C$1","v":0},{"$f":"'rent allocations'!T6*$C$1","v":0},{"$f":"'rent allocations'!U6*$C$1","v":0},{"$f":"'rent allocations'!V6*$C$1","v":0},{"$f":"'rent allocations'!W6*$C$1","v":0},{"$f":"'rent allocations'!X6*$C$1","v":0},{"$f":"'rent allocations'!Y6*$C$1","v":0},{"$f":"'rent allocations'!Z6*$C$1","v":0},{"$f":"'rent allocations'!AA6*$C$1","v":0},{"$f":"'rent allocations'!AB6*$C$1","v":0},{"$f":"'rent allocations'!AC6*$C$1","v":0},{"$f":"'rent allocations'!AD6*$C$1","v":0},{"$f":"'rent allocations'!AE6*$C$1","v":0},{"$f":"'rent allocations'!AF6*$C$1","v":0},{"$f":"'rent allocations'!AG6*$C$1","v":0},{"$f":"'rent allocations'!AH6*$C$1","v":0},{"$f":"'rent allocations'!AI6*$C$1","v":0},{"$f":"'rent allocations'!AJ6*$C$1","v":0},{"$f":"'rent allocations'!AK6*$C$1","v":0},{"$f":"'rent allocations'!AL6*$C$1","v":0}]
["014 - Joint Legislative Audit and Review Committee","014","Joint Legislative Audit and Review Committee",{"$f":"'rent allocations'!D7*$C$1","v":72569.641841284334},{"$f":"'rent allocations'!E7*$C$1","v":0},{"$f":"'rent allocations'!F7*$C$1","v":0},{"$f":"'rent allocations'!G7*$C$1","v":0},{"$f":"'rent allocations'!H7*$C$1","v":0},{"$f":"'rent allocations'!I7*$C$1","v":0},{"$f":"'rent allocations'!J7*$C$1","v":0},{"$f":"'rent allocations'!K7*$C$1","v":0},{"$f":"'rent allocations'!L7*$C$1","v":0},{"$f":"'rent allocations'!M7*$C$1","v":0},{"$f":"'rent allocations'!N7*$C$1","v":0},{"$f":"'rent allocations'!O7*$C$1","v":0},{"$f":"'rent allocations'!P7*$C$1","v":0},{"$f":"'rent allocations'!Q7*$C$1","v":0},{"$f":"'rent allocations'!R7*$C$1","v":0},{"$f":"'rent allocations'!S7*$C$1","v":0},{"$f":"'rent allocations'!T7*$C$1","v":0},{"$f":"'rent allocations'!U7*$C$1","v":0},{"$f":"'rent allocations'!V7*$C$1","v":0},{"$f":"'rent allocations'!W7*$C$1","v":0},{"$f":"'rent allocations'!X7*$C$1","v":0},{"$f":"'rent allocations'!Y7*$C$1","v":0},{"$f":"'rent allocations'!Z7*$C$1","v":0},{"$f":"'rent allocations'!AA7*$C$1","v":0},{"$f":"'rent allocations'!AB7*$C$1","v":0},{"$f":"'rent allocations'!AC7*$C$1","v":0},{"$f":"'rent allocations'!AD7*$C$1","v":0},{"$f":"'rent allocations'!AE7*$C$1","v":0},{"$f":"'rent allocations'!AF7*$C$1","v":72569.641841284334},{"$f":"'rent allocations'!AG7*$C$1","v":0},{"$f":"'rent allocations'!AH7*$C$1","v":0},{"$f":"'rent allocations'!AI7*$C$1","v":0},{"$f":"'rent allocations'!AJ7*$C$1","v":0},{"$f":"'rent allocations'!AK7*$C$1","v":0},{"$f":"'rent allocations'!AL7*$C$1","v":0}]
["020 - Legislative Evaluation and Accountability Program Committee","020","Legislative Evaluation and Accountability Program Committee",{"$f":"'rent allocations'!D8*$C$1","v":34647.574021893714},{"$f":"'rent allocations'!E8*$C$1","v":0},{"$f":"'rent allocations'!F8*$C$1","v":0},{"$f":"'rent allocations'!G8*$C$1","v":0},{"$f":"'rent allocations'!H8*$C$1","v":0},{"$f":"'rent allocations'!I8*$C$1","v":0},{"$f":"'rent allocations'!J8*$C$1","v":0},{"$f":"'rent allocations'!K8*$C$1","v":0},{"$f":"'rent allocations'!L8*$C$1","v":0},{"$f":"'rent allocations'!M8*$C$1","v":0},{"$f":"'rent allocations'!N8*$C$1","v":0},{"$f":"'rent allocations'!O8*$C$1","v":0},{"$f":"'rent allocations'!P8*$C$1","v":0},{"$f":"'rent allocations'!Q8*$C$1","v":0},{"$f":"'rent allocations'!R8*$C$1","v":0},{"$f":"'rent allocations'!S8*$C$1","v":0},{"$f":"'rent allocations'!T8*$C$1","v":0},{"$f":"'rent allocations'!U8*$C$1","v":0},{"$f":"'rent allocations'!V8*$C$1","v":0},{"$f":"'rent allocations'!W8*$C$1","v":0},{"$f":"'rent allocations'!X8*$C$1","v":0},{"$f":"'rent allocations'!Y8*$C$1","v":0},{"$f":"'rent allocations'!Z8*$C$1","v":0},{"$f":"'rent allocations'!AA8*$C$1","v":0},{"$f":"'rent allocations'!AB8*$C$1","v":0},{"$f":"'rent allocations'!AC8*$C$1","v":0},{"$f":"'rent allocations'!AD8*$C$1","v":0},{"$f":"'rent allocations'!AE8*$C$1","v":0},{"$f":"'rent allocations'!AF8*$C$1","v":34647.574021893714},{"$f":"'rent allocations'!AG8*$C$1","v":0},{"$f":"'rent allocations'!AH8*$C$1","v":0},{"$f":"'rent allocations'!AI8*$C$1","v":0},{"$f":"'rent allocations'!AJ8*$C$1","v":0},{"$f":"'rent allocations'!AK8*$C$1","v":0},{"$f":"'rent allocations'!AL8*$C$1","v":0}]
["035 - Office of the State Actuary","035","Office of the State Actuary",{"$f":"'rent allocations'!D9*$C$1","v":0},{"$f":"'rent allocations'!E9*$C$1","v":0},{"$f":"'rent allocations'!F9*$C$1","v":0},{"$f":"'rent allocations'!G9*$C$1","v":0},{"$f":"'rent allocations'!H9*$C$1","v":0},{"$f":"'rent allocations'!I9*$C$1","v":0},{"$f":"'rent allocations'!J9*$C$1","v":0},{"$f":"'rent allocations'!K9*$C$1","v":0},{"$f":"'rent allocations'!L9*$C$1","v":0},{"$f":"'rent allocations'!M9*$C$1","v":0},{"$f":"'rent allocations'!N9*$C$1","v":0},{"$f":"'rent allocations'!O9*$C$1","v":0},{"$f":"'rent allocations'!P9*$C$1","v":0},{"$f":"'rent allocations'!Q9*$C$1","v":0},{"$f":"'rent allocations'!R9*$C$1","v":0},{"$f":"'rent allocations'!S9*$C$1","v":0},{"$f":"'rent allocations'!T9*$C$1","v":0},{"$f":"'rent allocations'!U9*$C$1","v":0},{"$f":"'rent allocations'!V9*$C$1","v":0},{"$f":"'rent allocations'!W9*$C$1","v":0},{"$f":"'rent allocations'!X9*$C$1","v":0},{"$f":"'rent allocations'!Y9*$C$1","v":0},{"$f":"'rent allocations'!Z9*$C$1","v":0},{"$f":"'rent allocations'!AA9*$C$1","v":0},{"$f":"'rent allocations'!AB9*$C$1","v":0},{"$f":"'rent allocations'!AC9*$C$1","v":0},{"$f":"'rent allocations'!AD9*$C$1","v":0},{"$f":"'rent allocations'!AE9*$C$1","v":0},{"$f":"'rent allocations'!AF9*$C$1","v":0},{"$f":"'rent allocations'!AG9*$C$1","v":0},{"$f":"'rent allocations'!AH9*$C$1","v":0},{"$f":"'rent allocations'!AI9*$C$1","v":0},{"$f":"'rent allocations'!AJ9*$C$1","v":0},{"$f":"'rent allocations'!AK9*$C$1","v":0},{"$f":"'rent allocations'!AL9*$C$1","v":0}]
["037 - Office of Legislative Support Services","037","Office of Legislative Support Services",{"$f":"'rent allocations'!D10*$C$1","v":258671.64655037102},{"$f":"'rent allocations'!E10*$C$1","v":0},{"$f":"'rent allocations'!F10*$C$1","v":0},{"$f":"'rent allocations'!G10*$C$1","v":92038.206310913418},{"$f":"'rent allocations'!H10*$C$1","v":92839.181737094084},{"$f":"'rent allocations'!I10*$C$1","v":0},{"$f":"'rent allocations'!J10*$C$1","v":0},{"$f":"'rent allocations'!K10*$C$1","v":0},{"$f":"'rent allocations'!L10*$C$1","v":0},{"$f":"'rent allocations'!M10*$C$1","v":0},{"$f":"'rent allocations'!N10*$C$1","v":0},{"$f":"'rent allocations'!O10*$C$1","v":0},{"$f":"'rent allocations'!P10*$C$1","v":0},{"$f":"'rent allocations'!Q10*$C$1","v":0},{"$f":"'rent allocations'!R10*$C$1","v":0},{"$f":"'rent allocations'!S10*$C$1","v":0},{"$f":"'rent allocations'!T10*$C$1","v":0},{"$f":"'rent allocations'!U10*$C$1","v":73794.258502363518},{"$f":"'rent allocations'!V10*$C$1","v":0},{"$f":"'rent allocations'!W10*$C$1","v":0},{"$f":"'rent allocations'!X10*$C$1","v":0},{"$f":"'rent allocations'!Y10*$C$1","v":0},{"$f":"'rent allocations'!Z10*$C$1","v":0},{"$f":"'rent allocations'!AA10*$C$1","v":0},{"$f":"'rent allocations'!AB10*$C$1","v":0},{"$f":"'rent allocations'!AC10*$C$1","v":0},{"$f":"'rent allocations'!AD10*$C$1","v":0},{"$f":"'rent allocations'!AE10*$C$1","v":0},{"$f":"'rent allocations'!AF10*$C$1","v":0},{"$f":"'rent allocations'!AG10*$C$1","v":0},{"$f":"'rent allocations'!AH10*$C$1","v":0},{"$f":"'rent allocations'!AI10*$C$1","v":0},{"$f":"'rent allocations'!AJ10*$C$1","v":0},{"$f":"'rent allocations'!AK10*$C$1","v":0},{"$f":"'rent allocations'!AL10*$C$1","v":0}]
["038 - Joint Legislative Systems Committee","038","Joint Legislative Systems Committee",{"$f":"'rent allocations'!D11*$C$1","v":303366.42831359565},{"$f":"'rent allocations'!E11*$C$1","v":0},{"$f":"'rent allocations'!F11*$C$1","v":0},{"$f":"'rent allocations'!G11*$C$1","v":21128.674395134374},{"$f":"'rent allocations'!H11*$C$1","v":184501.05501013086},{"$f":"'rent allocations'!I11*$C$1","v":0},{"$f":"'rent allocations'!J11*$C$1","v":0},{"$f":"'rent allocations'!K11*$C$1","v":0},{"$f":"'rent allocations'!L11*$C$1","v":0},{"$f":"'rent allocations'!M11*$C$1","v":0},{"$f":"'rent allocations'!N11*$C$1","v":0},{"$f":"'rent allocations'!O11*$C$1","v":0},{"$f":"'rent allocations'!P11*$C$1","v":0},{"$f":"'rent allocations'!Q11*$C$1","v":0},{"$f":"'rent allocations'!R11*$C$1","v":0},{"$f":"'rent allocations'!S11*$C$1","v":0},{"$f":"'rent allocations'!T11*$C$1","v":0},{"$f":"'rent allocations'!U11*$C$1","v":0},{"$f":"'rent allocations'!V11*$C$1","v":0},{"$f":"'rent allocations'!W11*$C$1","v":0},{"$f":"'rent allocations'!X11*$C$1","v":0},{"$f":"'rent allocations'!Y11*$C$1","v":0},{"$f":"'rent allocations'!Z11*$C$1","v":0},{"$f":"'rent allocations'!AA11*$C$1","v":0},{"$f":"'rent allocations'!AB11*$C$1","v":0},{"$f":"'rent allocations'!AC11*$C$1","v":0},{"$f":"'rent allocations'!AD11*$C$1","v":0},{"$f":"'rent allocations'!AE11*$C$1","v":0},{"$f":"'rent allocations'!AF11*$C$1","v":97736.698908330392},{"$f":"'rent allocations'!AG11*$C$1","v":0},{"$f":"'rent allocations'!AH11*$C$1","v":0},{"$f":"'rent allocations'!AI11*$C$1","v":0},{"$f":"'rent allocations'!AJ11*$C$1","v":0},{"$f":"'rent allocations'!AK11*$C$1","v":0},{"$f":"'rent allocations'!AL11*$C$1","v":0}]
["040 - Statute Law Committee (Code Revisor)","040","Statute Law Committee (Code Revisor)",{"$f":"'rent allocations'!D12*$C$1","v":296657.70623910474},{"$f":"'rent allocations'!E12*$C$1","v":0},{"$f":"'rent allocations'!F12*$C$1","v":0},{"$f":"'rent allocations'!G12*$C$1","v":0},{"$f":"'rent allocations'!H12*$C$1","v":296657.70623910474},{"$f":"'rent allocations'!I12*$C$1","v":0},{"$f":"'rent allocations'!J12*$C$1","v":0},{"$f":"'rent allocations'!K12*$C$1","v":0},{"$f":"'rent allocations'!L12*$C$1","v":0},{"$f":"'rent allocations'!M12*$C$1","v":0},{"$f":"'rent allocations'!N12*$C$1","v":0},{"$f":"'rent allocations'!O12*$C$1","v":0},{"$f":"'rent allocations'!P12*$C$1","v":0},{"$f":"'rent allocations'!Q12*$C$1","v":0},{"$f":"'rent allocations'!R12*$C$1","v":0},{"$f":"'rent allocations'!S12*$C$1","v":0},{"$f":"'rent allocations'!T12*$C$1","v":0},{"$f":"'rent allocations'!U12*$C$1","v":0},{"$f":"'rent allocations'!V12*$C$1","v":0},{"$f":"'rent allocations'!W12*$C$1","v":0},{"$f":"'rent allocations'!X12*$C$1","v":0},{"$f":"'rent allocations'!Y12*$C$1","v":0},{"$f":"'rent allocations'!Z12*$C$1","v":0},{"$f":"'rent allocations'!AA12*$C$1","v":0},{"$f":"'rent allocations'!AB12*$C$1","v":0},{"$f":"'rent allocations'!AC12*$C$1","v":0},{"$f":"'rent allocations'!AD12*$C$1","v":0},{"$f":"'rent allocations'!AE12*$C$1","v":0},{"$f":"'rent allocations'!AF12*$C$1","v":0},{"$f":"'rent allocations'!AG12*$C$1","v":0},{"$f":"'rent allocations'!AH12*$C$1","v":0},{"$f":"'rent allocations'!AI12*$C$1","v":0},{"$f":"'rent allocations'!AJ12*$C$1","v":0},{"$f":"'rent allocations'!AK12*$C$1","v":0},{"$f":"'rent allocations'!AL12*$C$1","v":0}]
["045 - Supreme Court","045","Supreme Court",{"$f":"'rent allocations'!D13*$C$1","v":490117.16423169768},{"$f":"'rent allocations'!E13*$C$1","v":0},{"$f":"'rent allocations'!F13*$C$1","v":0},{"$f":"'rent allocations'!G13*$C$1","v":0},{"$f":"'rent allocations'!H13*$C$1","v":0},{"$f":"'rent allocations'!I13*$C$1","v":0},{"$f":"'rent allocations'!J13*$C$1","v":0},{"$f":"'rent allocations'!K13*$C$1","v":0},{"$f":"'rent allocations'!L13*$C$1","v":0},{"$f":"'rent allocations'!M13*$C$1","v":0},{"$f":"'rent allocations'!N13*$C$1","v":0},{"$f":"'rent allocations'!O13*$C$1","v":0},{"$f":"'rent allocations'!P13*$C$1","v":0},{"$f":"'rent allocations'!Q13*$C$1","v":490117.16423169768},{"$f":"'rent allocations'!R13*$C$1","v":0},{"$f":"'rent allocations'!S13*$C$1","v":0},{"$f":"'rent allocations'!T13*$C$1","v":0},{"$f":"'rent allocations'!U13*$C$1","v":0},{"$f":"'rent allocations'!V13*$C$1","v":0},{"$f":"'rent allocations'!W13*$C$1","v":0},{"$f":"'rent allocations'!X13*$C$1","v":0},{"$f":"'rent allocations'!Y13*$C$1","v":0},{"$f":"'rent allocations'!Z13*$C$1","v":0},{"$f":"'rent allocations'!AA13*$C$1","v":0},{"$f":"'rent allocations'!AB13*$C$1","v":0},{"$f":"'rent allocations'!AC13*$C$1","v":0},{"$f":"'rent allocations'!AD13*$C$1","v":0},{"$f":"'rent allocations'!AE13*$C$1","v":0},{"$f":"'rent allocations'!AF13*$C$1","v":0},{"$f":"'rent allocations'!AG13*$C$1","v":0},{"$f":"'rent allocations'!AH13*$C$1","v":0},{"$f":"'rent allocations'!AI13*$C$1","v":0},{"$f":"'rent allocations'!AJ13*$C$1","v":0},{"$f":"'rent allocations'!AK13*$C$1","v":0},{"$f":"'rent allocations'!AL13*$C$1","v":0}]
["046 - Law Library","046","Law Library",{"$f":"'rent allocations'!D14*$C$1","v":222646.62457643828},{"$f":"'rent allocations'!E14*$C$1","v":0},{"$f":"'rent allocations'!F14*$C$1","v":0},{"$f":"'rent allocations'!G14*$C$1","v":0},{"$f":"'rent allocations'!H14*$C$1","v":0},{"$f":"'rent allocations'!I14*$C$1","v":0},{"$f":"'rent allocations'!J14*$C$1","v":0},{"$f":"'rent allocations'!K14*$C$1","v":0},{"$f":"'rent allocations'!L14*$C$1","v":0},{"$f":"'rent allocations'!M14*$C$1","v":0},{"$f":"'rent allocations'!N14*$C$1","v":0},{"$f":"'rent allocations'!O14*$C$1","v":0},{"$f":"'rent allocations'!P14*$C$1","v":0},{"$f":"'rent allocations'!Q14*$C$1","v":222646.62457643828},{"$f":"'rent allocations'!R14*$C$1","v":0},{"$f":"'rent allocations'!S14*$C$1","v":0},{"$f":"'rent allocations'!T14*$C$1","v":0},{"$f":"'rent allocations'!U14*$C$1","v":0},{"$f":"'rent allocations'!V14*$C$1","v":0},{"$f":"'rent allocations'!W14*$C$1","v":0},{"$f":"'rent allocations'!X14*$C$1","v":0},{"$f":"'rent allocations'!Y14*$C$1","v":0},{"$f":"'rent allocations'!Z14*$C$1","v":0},{"$f":"'rent allocations'!AA14*$C$1","v":0},{"$f":"'rent allocations'!AB14*$C$1","v":0},{"$f":"'rent allocations'!AC14*$C$1","v":0},{"$f":"'rent allocations'!AD14*$C$1","v":0},{"$f":"'rent allocations'!AE14*$C$1","v":0},{"$f":"'rent allocations'!AF14*$C$1","v":0},{"$f":"'rent allocations'!AG14*$C$1","v":0},{"$f":"'rent allocations'!AH14*$C$1","v":0},{"$f":"'rent allocations'!AI14*$C$1","v":0},{"$f":"'rent allocations'!AJ14*$C$1","v":0},{"$f":"'rent allocations'!AK14*$C$1","v":0},{"$f":"'rent allocations'!AL14*$C$1","v":0}]
["048 - Court of Appeals","048","Court of Appeals",{"$f":"'rent allocations'!D15*$C$1","v":515365.77903675009},{"$f":"'rent allocations'!E15*$C$1","v":0},{"$f":"'rent allocations'!F15*$C$1","v":0},{"$f":"'rent allocations'!G15*$C$1","v":0},{"$f":"'rent allocations'!H15*$C$1","v":0},{"$f":"'rent allocations'!I15*$C$1","v":0},{"$f":"'rent allocations'!J15*$C$1","v":0},{"$f":"'rent allocations'!K15*$C$1","v":0},{"$f":"'rent allocations'!L15*$C$1","v":0},{"$f":"'rent allocations'!M15*$C$1","v":0},{"$f":"'rent allocations'!N15*$C$1","v":0},{"$f":"'rent allocations'!O15*$C$1","v":0},{"$f":"'rent allocations'!P15*$C$1","v":0},{"$f":"'rent allocations'!Q15*$C$1","v":0},{"$f":"'rent allocations'!R15*$C$1","v":0},{"$f":"'rent allocations'!S15*$C$1","v":0},{"$f":"'rent allocations'!T15*$C$1","v":0},{"$f":"'rent allocations'!U15*$C$1","v":0},{"$f":"'rent allocations'!V15*$C$1","v":0},{"$f":"'rent allocations'!W15*$C$1","v":0},{"$f":"'rent allocations'!X15*$C$1","v":0},{"$f":"'rent allocations'!Y15*$C$1","v":0},{"$f":"'rent allocations'!Z15*$C$1","v":0},{"$f":"'rent allocations'!AA15*$C$1","v":0},{"$f":"'rent allocations'!AB15*$C$1","v":0},{"$f":"'rent allocations'!AC15*$C$1","v":0},{"$f":"'rent allocations'!AD15*$C$1","v":0},{"$f":"'rent allocations'!AE15*$C$1","v":0},{"$f":"'rent allocations'!AF15*$C$1","v":0},{"$f":"'rent allocations'!AG15*$C$1","v":0},{"$f":"'rent allocations'!AH15*$C$1","v":0},{"$f":"'rent allocations'!AI15*$C$1","v":0},{"$f":"'rent allocations'!AJ15*$C$1","v":515365.77903675009},{"$f":"'rent allocations'!AK15*$C$1","v":0},{"$f":"'rent allocations'!AL15*$C$1","v":0}]
["050 - Commission on Judicial Conduct","050","Commission on Judicial Conduct",{"$f":"'rent allocations'!D16*$C$1","v":114073.07230722794},{"$f":"'rent allocations'!E16*$C$1","v":0},{"$f":"'rent allocations'!F16*$C$1","v":0},{"$f":"'rent allocations'!G16*$C$1","v":0},{"$f":"'rent allocations'!H16*$C$1","v":0},{"$f":"'rent allocations'!I16*$C$1","v":0},{"$f":"'rent allocations'!J16*$C$1","v":0},{"$f":"'rent allocations'!K16*$C$1","v":0},{"$f":"'rent allocations'!L16*$C$1","v":0},{"$f":"'rent allocations'!M16*$C$1","v":0},{"$f":"'rent allocations'!N16*$C$1","v":0},{"$f":"'rent allocations'!O16*$C$1","v":0},{"$f":"'rent allocations'!P16*$C$1","v":0},{"$f":"'rent allocations'!Q16*$C$1","v":0},{"$f":"'rent allocations'!R16*$C$1","v":0},{"$f":"'rent allocations'!S16*$C$1","v":0},{"$f":"'rent allocations'!T16*$C$1","v":0},{"$f":"'rent allocations'!U16*$C$1","v":0},{"$f":"'rent allocations'!V16*$C$1","v":0},{"$f":"'rent allocations'!W16*$C$1","v":0},{"$f":"'rent allocations'!X16*$C$1","v":114073.07230722794},{"$f":"'rent allocations'!Y16*$C$1","v":0},{"$f":"'rent allocations'!Z16*$C$1","v":0},{"$f":"'rent allocations'!AA16*$C$1","v":0},{"$f":"'rent allocations'!AB16*$C$1","v":0},{"$f":"'rent allocations'!AC16*$C$1","v":0},{"$f":"'rent allocations'!AD16*$C$1","v":0},{"$f":"'rent allocations'!AE16*$C$1","v":0},{"$f":"'rent allocations'!AF16*$C$1","v":0},{"$f":"'rent allocations'!AG16*$C$1","v":0},{"$f":"'rent allocations'!AH16*$C$1","v":0},{"$f":"'rent allocations'!AI16*$C$1","v":0},{"$f":"'rent allocations'!AJ16*$C$1","v":0},{"$f":"'rent allocations'!AK16*$C$1","v":0},{"$f":"'rent allocations'!AL16*$C$1","v":0}]
["055 - Administrative Office of the Courts","055","Administrative Office of the Courts",{"$f":"'rent allocations'!D17*$C$1","v":61387.391430434494},{"$f":"'rent allocations'!E17*$C$1","v":0},{"$f":"'rent allocations'!F17*$C$1","v":0},{"$f":"'rent allocations'!G17*$C$1","v":0},{"$f":"'rent allocations'!H17*$C$1","v":0},{"$f":"'rent allocations'!I17*$C$1","v":0},{"$f":"'rent allocations'!J17*$C$1","v":0},{"$f":"'rent allocations'!K17*$C$1","v":0},{"$f":"'rent allocations'!L17*$C$1","v":0},{"$f":"'rent allocations'!M17*$C$1","v":0},{"$f":"'rent allocations'!N17*$C$1","v":0},{"$f":"'rent allocations'!O17*$C$1","v":0},{"$f":"'rent allocations'!P17*$C$1","v":0},{"$f":"'rent allocations'!Q17*$C$1","v":61387.391430434494},{"$f":"'rent allocations'!R17*$C$1","v":0},{"$f":"'rent allocations'!S17*$C$1","v":0},{"$f":"'rent allocations'!T17*$C$1","v":0},{"$f":"'rent allocations'!U17*$C$1","v":0},{"$f":"'rent allocations'!V17*$C$1","v":0},{"$f":"'rent allocations'!W17*$C$1","v":0},{"$f":"'rent allocations'!X17*$C$1","v":0},{"$f":"'rent allocations'!Y17*$C$1","v":0},{"$f":"'rent allocations'!Z17*$C$1","v":0},{"$f":"'rent allocations'!AA17*$C$1","v":0},{"$f":"'rent allocations'!AB17*$C$1","v":0},{"$f":"'rent allocations'!AC17*$C$1","v":0},{"$f":"'rent allocations'!AD17*$C$1","v":0},{"$f":"'rent allocations'!AE17*$C$1","v":0},{"$f":"'rent allocations'!AF17*$C$1","v":0},{"$f":"'rent allocations'!AG17*$C$1","v":0},{"$f":"'rent allocations'!AH17*$C$1","v":0},{"$f":"'rent allocations'!AI17*$C$1","v":0},{"$f":"'rent allocations'!AJ17*$C$1","v":0},{"$f":"'rent allocations'!AK17*$C$1","v":0},{"$f":"'rent allocations'!AL17*$C$1","v":0}]
["056 - Office of Public Defense","056","Office of Public Defense",{"$f":"'rent allocations'!D18*$C$1","v":0},{"$f":"'rent allocations'!E18*$C$1","v":0},{"$f":"'rent allocations'!F18*$C$1","v":0},{"$f":"'rent allocations'!G18*$C$1","v":0},{"$f":"'rent allocations'!H18*$C$1","v":0},{"$f":"'rent allocations'!I18*$C$1","v":0},{"$f":"'rent allocations'!J18*$C$1","v":0},{"$f":"'rent allocations'!K18*$C$1","v":0},{"$f":"'rent allocations'!L18*$C$1","v":0},{"$f":"'rent allocations'!M18*$C$1","v":0},{"$f":"'rent allocations'!N18*$C$1","v":0},{"$f":"'rent allocations'!O18*$C$1","v":0},{"$f":"'rent allocations'!P18*$C$1","v":0},{"$f":"'rent allocations'!Q18*$C$1","v":0},{"$f":"'rent allocations'!R18*$C$1","v":0},{"$f":"'rent allocations'!S18*$C$1","v":0},{"$f":"'rent allocations'!T18*$C$1","v":0},{"$f":"'rent allocations'!U18*$C$1","v":0},{"$f":"'rent allocations'!V18*$C$1","v":0},{"$f":"'rent allocations'!W18*$C$1","v":0},{"$f":"'rent allocations'!X18*$C$1","v":0},{"$f":"'rent allocations'!Y18*$C$1","v":0},{"$f":"'rent allocations'!Z18*$C$1","v":0},{"$f":"'rent allocations'!AA18*$C$1","v":0},{"$f":"'rent allocations'!AB18*$C$1","v":0},{"$f":"'rent allocations'!AC18*$C$1","v":0},{"$f":"'rent allocations'!AD18*$C$1","v":0},{"$f":"'rent allocations'!AE18*$C$1","v":0},{"$f":"'rent allocations'!AF18*$C$1","v":0},{"$f":"'rent allocations'!AG18*$C$1","v":0},{"$f":"'rent allocations'!AH18*$C$1","v":0},{"$f":"'rent allocations'!AI18*$C$1","v":0},{"$f":"'rent allocations'!AJ18*$C$1","v":0},{"$f":"'rent allocations'!AK18*$C$1","v":0},{"$f":"'rent allocations'!AL18*$C$1","v":0}]
["057 - Office of Civil Legal Aid","057","Office of Civil Legal Aid",{"$f":"'rent allocations'!D19*$C$1","v":0},{"$f":"'rent allocations'!E19*$C$1","v":0},{"$f":"'rent allocations'!F19*$C$1","v":0},{"$f":"'rent allocations'!G19*$C$1","v":0},{"$f":"'rent allocations'!H19*$C$1","v":0},{"$f":"'rent allocations'!I19*$C$1","v":0},{"$f":"'rent allocations'!J19*$C$1","v":0},{"$f":"'rent allocations'!K19*$C$1","v":0},{"$f":"'rent allocations'!L19*$C$1","v":0},{"$f":"'rent allocations'!M19*$C$1","v":0},{"$f":"'rent allocations'!N19*$C$1","v":0},{"$f":"'rent allocations'!O19*$C$1","v":0},{"$f":"'rent allocations'!P19*$C$1","v":0},{"$f":"'rent allocations'!Q19*$C$1","v":0},{"$f":"'rent allocations'!R19*$C$1","v":0},{"$f":"'rent allocations'!S19*$C$1","v":0},{"$f":"'rent allocations'!T19*$C$1","v":0},{"$f":"'rent allocations'!U19*$C$1","v":0},{"$f":"'rent allocations'!V19*$C$1","v":0},{"$f":"'rent allocations'!W19*$C$1","v":0},{"$f":"'rent allocations'!X19*$C$1","v":0},{"$f":"'rent allocations'!Y19*$C$1","v":0},{"$f":"'rent allocations'!Z19*$C$1","v":0},{"$f":"'rent allocations'!AA19*$C$1","v":0},{"$f":"'rent allocations'!AB19*$C$1","v":0},{"$f":"'rent allocations'!AC19*$C$1","v":0},{"$f":"'rent allocations'!AD19*$C$1","v":0},{"$f":"'rent allocations'!AE19*$C$1","v":0},{"$f":"'rent allocations'!AF19*$C$1","v":0},{"$f":"'rent allocations'!AG19*$C$1","v":0},{"$f":"'rent allocations'!AH19*$C$1","v":0},{"$f":"'rent allocations'!AI19*$C$1","v":0},{"$f":"'rent allocations'!AJ19*$C$1","v":0},{"$f":"'rent allocations'!AK19*$C$1","v":0},{"$f":"'rent allocations'!AL19*$C$1","v":0}]
["075 - Office of the Governor","075","Office of the Governor",{"$f":"'rent allocations'!D20*$C$1","v":319000.46722382668},{"$f":"'rent allocations'!E20*$C$1","v":0},{"$f":"'rent allocations'!F20*$C$1","v":0},{"$f":"'rent allocations'!G20*$C$1","v":319000.46722382668},{"$f":"'rent allocations'!H20*$C$1","v":0},{"$f":"'rent allocations'!I20*$C$1","v":0},{"$f":"'rent allocations'!J20*$C$1","v":0},{"$f":"'rent allocations'!K20*$C$1","v":0},{"$f":"'rent allocations'!L20*$C$1","v":0},{"$f":"'rent allocations'!M20*$C$1","v":0},{"$f":"'rent allocations'!N20*$C$1","v":0},{"$f":"'rent allocations'!O20*$C$1","v":0},{"$f":"'rent allocations'!P20*$C$1","v":0},{"$f":"'rent allocations'!Q20*$C$1","v":0},{"$f":"'rent allocations'!R20*$C$1","v":0},{"$f":"'rent allocations'!S20*$C$1","v":0},{"$f":"'rent allocations'!T20*$C$1","v":0},{"$f":"'rent allocations'!U20*$C$1","v":0},{"$f":"'rent allocations'!V20*$C$1","v":0},{"$f":"'rent allocations'!W20*$C$1","v":0},{"$f":"'rent allocations'!X20*$C$1","v":0},{"$f":"'rent allocations'!Y20*$C$1","v":0},{"$f":"'rent allocations'!Z20*$C$1","v":0},{"$f":"'rent allocations'!AA20*$C$1","v":0},{"$f":"'rent allocations'!AB20*$C$1","v":0},{"$f":"'rent allocations'!AC20*$C$1","v":0},{"$f":"'rent allocations'!AD20*$C$1","v":0},{"$f":"'rent allocations'!AE20*$C$1","v":0},{"$f":"'rent allocations'!AF20*$C$1","v":0},{"$f":"'rent allocations'!AG20*$C$1","v":0},{"$f":"'rent allocations'!AH20*$C$1","v":0},{"$f":"'rent allocations'!AI20*$C$1","v":0},{"$f":"'rent allocations'!AJ20*$C$1","v":0},{"$f":"'rent allocations'!AK20*$C$1","v":0},{"$f":"'rent allocations'!AL20*$C$1","v":0}]
["080 - Office of Lieutenant Governor","080","Office of Lieutenant Governor",{"$f":"'rent allocations'!D21*$C$1","v":164038.36971340547},{"$f":"'rent allocations'!E21*$C$1","v":0},{"$f":"'rent allocations'!F21*$C$1","v":0},{"$f":"'rent allocations'!G21*$C$1","v":164038.36971340547},{"$f":"'rent allocations'!H21*$C$1","v":0},{"$f":"'rent allocations'!I21*$C$1","v":0},{"$f":"'rent allocations'!J21*$C$1","v":0},{"$f":"'rent allocations'!K21*$C$1","v":0},{"$f":"'rent allocations'!L21*$C$1","v":0},{"$f":"'rent allocations'!M21*$C$1","v":0},{"$f":"'rent allocations'!N21*$C$1","v":0},{"$f":"'rent allocations'!O21*$C$1","v":0},{"$f":"'rent allocations'!P21*$C$1","v":0},{"$f":"'rent allocations'!Q21*$C$1","v":0},{"$f":"'rent allocations'!R21*$C$1","v":0},{"$f":"'rent allocations'!S21*$C$1","v":0},{"$f":"'rent allocations'!T21*$C$1","v":0},{"$f":"'rent allocations'!U21*$C$1","v":0},{"$f":"'rent allocations'!V21*$C$1","v":0},{"$f":"'rent allocations'!W21*$C$1","v":0},{"$f":"'rent allocations'!X21*$C$1","v":0},{"$f":"'rent allocations'!Y21*$C$1","v":0},{"$f":"'rent allocations'!Z21*$C$1","v":0},{"$f":"'rent allocations'!AA21*$C$1","v":0},{"$f":"'rent allocations'!AB21*$C$1","v":0},{"$f":"'rent allocations'!AC21*$C$1","v":0},{"$f":"'rent allocations'!AD21*$C$1","v":0},{"$f":"'rent allocations'!AE21*$C$1","v":0},{"$f":"'rent allocations'!AF21*$C$1","v":0},{"$f":"'rent allocations'!AG21*$C$1","v":0},{"$f":"'rent allocations'!AH21*$C$1","v":0},{"$f":"'rent allocations'!AI21*$C$1","v":0},{"$f":"'rent allocations'!AJ21*$C$1","v":0},{"$f":"'rent allocations'!AK21*$C$1","v":0},{"$f":"'rent allocations'!AL21*$C$1","v":0}]
["082 - Public Disclosure Commission","082","Public Disclosure Commission",{"$f":"'rent allocations'!D22*$C$1","v":0},{"$f":"'rent allocations'!E22*$C$1","v":0},{"$f":"'rent allocations'!F22*$C$1","v":0},{"$f":"'rent allocations'!G22*$C$1","v":0},{"$f":"'rent allocations'!H22*$C$1","v":0},{"$f":"'rent allocations'!I22*$C$1","v":0},{"$f":"'rent allocations'!J22*$C$1","v":0},{"$f":"'rent allocations'!K22*$C$1","v":0},{"$f":"'rent allocations'!L22*$C$1","v":0},{"$f":"'rent allocations'!M22*$C$1","v":0},{"$f":"'rent allocations'!N22*$C$1","v":0},{"$f":"'rent allocations'!O22*$C$1","v":0},{"$f":"'rent allocations'!P22*$C$1","v":0},{"$f":"'rent allocations'!Q22*$C$1","v":0},{"$f":"'rent allocations'!R22*$C$1","v":0},{"$f":"'rent allocations'!S22*$C$1","v":0},{"$f":"'rent allocations'!T22*$C$1","v":0},{"$f":"'rent allocations'!U22*$C$1","v":0},{"$f":"'rent allocations'!V22*$C$1","v":0},{"$f":"'rent allocations'!W22*$C$1","v":0},{"$f":"'rent allocations'!X22*$C$1","v":0},{"$f":"'rent allocations'!Y22*$C$1","v":0},{"$f":"'rent allocations'!Z22*$C$1","v":0},{"$f":"'rent allocations'!AA22*$C$1","v":0},{"$f":"'rent allocations'!AB22*$C$1","v":0},{"$f":"'rent allocations'!AC22*$C$1","v":0},{"$f":"'rent allocations'!AD22*$C$1","v":0},{"$f":"'rent allocations'!AE22*$C$1","v":0},{"$f":"'rent allocations'!AF22*$C$1","v":0},{"$f":"'rent allocations'!AG22*$C$1","v":0},{"$f":"'rent allocations'!AH22*$C$1","v":0},{"$f":"'rent allocations'!AI22*$C$1","v":0},{"$f":"'rent allocations'!AJ22*$C$1","v":0},{"$f":"'rent allocations'!AK22*$C$1","v":0},{"$f":"'rent allocations'!AL22*$C$1","v":0}]
["085 - Office of the Secretary of State","085","Office of the Secretary of State",{"$f":"'rent allocations'!D23*$C$1","v":1085044.6731492502},{"$f":"'rent allocations'!E23*$C$1","v":0},{"$f":"'rent allocations'!F23*$C$1","v":0},{"$f":"'rent allocations'!G23*$C$1","v":196868.22599140953},{"$f":"'rent allocations'!H23*$C$1","v":0},{"$f":"'rent allocations'!I23*$C$1","v":0},{"$f":"'rent allocations'!J23*$C$1","v":0},{"$f":"'rent allocations'!K23*$C$1","v":447251.04418528866},{"$f":"'rent allocations'!L23*$C$1","v":0},{"$f":"'rent allocations'!M23*$C$1","v":0},{"$f":"'rent allocations'!N23*$C$1","v":0},{"$f":"'rent allocations'!O23*$C$1","v":0},{"$f":"'rent allocations'!P23*$C$1","v":0},{"$f":"'rent allocations'!Q23*$C$1","v":0},{"$f":"'rent allocations'!R23*$C$1","v":0},{"$f":"'rent allocations'!S23*$C$1","v":34591.998294254612},{"$f":"'rent allocations'!T23*$C$1","v":112443.5355561421},{"$f":"'rent allocations'!U23*$C$1","v":0},{"$f":"'rent allocations'!V23*$C$1","v":0},{"$f":"'rent allocations'!W23*$C$1","v":0},{"$f":"'rent allocations'!X23*$C$1","v":0},{"$f":"'rent allocations'!Y23*$C$1","v":293889.86912215542},{"$f":"'rent allocations'!Z23*$C$1","v":0},{"$f":"'rent allocations'!AA23*$C$1","v":0},{"$f":"'rent allocations'!AB23*$C$1","v":0},{"$f":"'rent allocations'!AC23*$C$1","v":0},{"$f":"'rent allocations'!AD23*$C$1","v":0},{"$f":"'rent allocations'!AE23*$C$1","v":0},{"$f":"'rent allocations'!AF23*$C$1","v":0},{"$f":"'rent allocations'!AG23*$C$1","v":0},{"$f":"'rent allocations'!AH23*$C$1","v":0},{"$f":"'rent allocations'!AI23*$C$1","v":0},{"$f":"'rent allocations'!AJ23*$C$1","v":0},{"$f":"'rent allocations'!AK23*$C$1","v":0},{"$f":"'rent allocations'!AL23*$C$1","v":0}]
["086 - Governor's Office of Indian Affairs","086","Governor's Office of Indian Affairs",{"$f":"'rent allocations'!D24*$C$1","v":28920.554756924259},{"$f":"'rent allocations'!E24*$C$1","v":0},{"$f":"'rent allocations'!F24*$C$1","v":0},{"$f":"'rent allocations'!G24*$C$1","v":0},{"$f":"'rent allocations'!H24*$C$1","v":0},{"$f":"'rent allocations'!I24*$C$1","v":0},{"$f":"'rent allocations'!J24*$C$1","v":0},{"$f":"'rent allocations'!K24*$C$1","v":0},{"$f":"'rent allocations'!L24*$C$1","v":0},{"$f":"'rent allocations'!M24*$C$1","v":0},{"$f":"'rent allocations'!N24*$C$1","v":0},{"$f":"'rent allocations'!O24*$C$1","v":0},{"$f":"'rent allocations'!P24*$C$1","v":0},{"$f":"'rent allocations'!Q24*$C$1","v":0},{"$f":"'rent allocations'!R24*$C$1","v":0},{"$f":"'rent allocations'!S24*$C$1","v":0},{"$f":"'rent allocations'!T24*$C$1","v":0},{"$f":"'rent allocations'!U24*$C$1","v":0},{"$f":"'rent allocations'!V24*$C$1","v":0},{"$f":"'rent allocations'!W24*$C$1","v":0},{"$f":"'rent allocations'!X24*$C$1","v":28920.554756924259},{"$f":"'rent allocations'!Y24*$C$1","v":0},{"$f":"'rent allocations'!Z24*$C$1","v":0},{"$f":"'rent allocations'!AA24*$C$1","v":0},{"$f":"'rent allocations'!AB24*$C$1","v":0},{"$f":"'rent allocations'!AC24*$C$1","v":0},{"$f":"'rent allocations'!AD24*$C$1","v":0},{"$f":"'rent allocations'!AE24*$C$1","v":0},{"$f":"'rent allocations'!AF24*$C$1","v":0},{"$f":"'rent allocations'!AG24*$C$1","v":0},{"$f":"'rent allocations'!AH24*$C$1","v":0},{"$f":"'rent allocations'!AI24*$C$1","v":0},{"$f":"'rent allocations'!AJ24*$C$1","v":0},{"$f":"'rent allocations'!AK24*$C$1","v":0},{"$f":"'rent allocations'!AL24*$C$1","v":0}]
["087 - Commission on Asian Pacific American Affairs","087","Commission on Asian Pacific American Affairs",{"$f":"'rent allocations'!D25*$C$1","v":19023.200270751244},{"$f":"'rent allocations'!E25*$C$1","v":0},{"$f":"'rent allocations'!F25*$C$1","v":0},{"$f":"'rent allocations'!G25*$C$1","v":0},{"$f":"'rent allocations'!H25*$C$1","v":0},{"$f":"'rent allocations'!I25*$C$1","v":0},{"$f":"'rent allocations'!J25*$C$1","v":0},{"$f":"'rent allocations'!K25*$C$1","v":0},{"$f":"'rent allocations'!L25*$C$1","v":0},{"$f":"'rent allocations'!M25*$C$1","v":0},{"$f":"'rent allocations'!N25*$C$1","v":0},{"$f":"'rent allocations'!O25*$C$1","v":0},{"$f":"'rent allocations'!P25*$C$1","v":0},{"$f":"'rent allocations'!Q25*$C$1","v":0},{"$f":"'rent allocations'!R25*$C$1","v":0},{"$f":"'rent allocations'!S25*$C$1","v":0},{"$f":"'rent allocations'!T25*$C$1","v":0},{"$f":"'rent allocations'!U25*$C$1","v":0},{"$f":"'rent allocations'!V25*$C$1","v":0},{"$f":"'rent allocations'!W25*$C$1","v":0},{"$f":"'rent allocations'!X25*$C$1","v":19023.200270751244},{"$f":"'rent allocations'!Y25*$C$1","v":0},{"$f":"'rent allocations'!Z25*$C$1","v":0},{"$f":"'rent allocations'!AA25*$C$1","v":0},{"$f":"'rent allocations'!AB25*$C$1","v":0},{"$f":"'rent allocations'!AC25*$C$1","v":0},{"$f":"'rent allocations'!AD25*$C$1","v":0},{"$f":"'rent allocations'!AE25*$C$1","v":0},{"$f":"'rent allocations'!AF25*$C$1","v":0},{"$f":"'rent allocations'!AG25*$C$1","v":0},{"$f":"'rent allocations'!AH25*$C$1","v":0},{"$f":"'rent allocations'!AI25*$C$1","v":0},{"$f":"'rent allocations'!AJ25*$C$1","v":0},{"$f":"'rent allocations'!AK25*$C$1","v":0},{"$f":"'rent allocations'!AL25*$C$1","v":0}]
["090 - Office of State Treasurer","090","Office of State Treasurer",{"$f":"'rent allocations'!D26*$C$1","v":303531.33372998069},{"$f":"'rent allocations'!E26*$C$1","v":0},{"$f":"'rent allocations'!F26*$C$1","v":0},{"$f":"'rent allocations'!G26*$C$1","v":198069.76915473735},{"$f":"'rent allocations'!H26*$C$1","v":0},{"$f":"'rent allocations'!I26*$C$1","v":0},{"$f":"'rent allocations'!J26*$C$1","v":0},{"$f":"'rent allocations'!K26*$C$1","v":0},{"$f":"'rent allocations'!L26*$C$1","v":0},{"$f":"'rent allocations'!M26*$C$1","v":0},{"$f":"'rent allocations'!N26*$C$1","v":0},{"$f":"'rent allocations'!O26*$C$1","v":0},{"$f":"'rent allocations'!P26*$C$1","v":0},{"$f":"'rent allocations'!Q26*$C$1","v":0},{"$f":"'rent allocations'!R26*$C$1","v":0},{"$f":"'rent allocations'!S26*$C$1","v":0},{"$f":"'rent allocations'!T26*$C$1","v":0},{"$f":"'rent allocations'!U26*$C$1","v":0},{"$f":"'rent allocations'!V26*$C$1","v":0},{"$f":"'rent allocations'!W26*$C$1","v":0},{"$f":"'rent allocations'!X26*$C$1","v":0},{"$f":"'rent allocations'!Y26*$C$1","v":0},{"$f":"'rent allocations'!Z26*$C$1","v":0},{"$f":"'rent allocations'!AA26*$C$1","v":0},{"$f":"'rent allocations'!AB26*$C$1","v":0},{"$f":"'rent allocations'!AC26*$C$1","v":0},{"$f":"'rent allocations'!AD26*$C$1","v":0},{"$f":"'rent allocations'!AE26*$C$1","v":0},{"$f":"'rent allocations'!AF26*$C$1","v":105461.56457524332},{"$f":"'rent allocations'!AG26*$C$1","v":0},{"$f":"'rent allocations'!AH26*$C$1","v":0},{"$f":"'rent allocations'!AI26*$C$1","v":0},{"$f":"'rent allocations'!AJ26*$C$1","v":0},{"$f":"'rent allocations'!AK26*$C$1","v":0},{"$f":"'rent allocations'!AL26*$C$1","v":0}]
["095 - Office of State Auditor","095","Office of State Auditor",{"$f":"'rent allocations'!D27*$C$1","v":171163.28822557154},{"$f":"'rent allocations'!E27*$C$1","v":0},{"$f":"'rent allocations'!F27*$C$1","v":0},{"$f":"'rent allocations'!G27*$C$1","v":0},{"$f":"'rent allocations'!H27*$C$1","v":0},{"$f":"'rent allocations'!I27*$C$1","v":0},{"$f":"'rent allocations'!J27*$C$1","v":0},{"$f":"'rent allocations'!K27*$C$1","v":0},{"$f":"'rent allocations'!L27*$C$1","v":0},{"$f":"'rent allocations'!M27*$C$1","v":0},{"$f":"'rent allocations'!N27*$C$1","v":0},{"$f":"'rent allocations'!O27*$C$1","v":88867.048340387759},{"$f":"'rent allocations'!P27*$C$1","v":0},{"$f":"'rent allocations'!Q27*$C$1","v":0},{"$f":"'rent allocations'!R27*$C$1","v":0},{"$f":"'rent allocations'!S27*$C$1","v":0},{"$f":"'rent allocations'!T27*$C$1","v":0},{"$f":"'rent allocations'!U27*$C$1","v":0},{"$f":"'rent allocations'!V27*$C$1","v":0},{"$f":"'rent allocations'!W27*$C$1","v":0},{"$f":"'rent allocations'!X27*$C$1","v":0},{"$f":"'rent allocations'!Y27*$C$1","v":0},{"$f":"'rent allocations'!Z27*$C$1","v":0},{"$f":"'rent allocations'!AA27*$C$1","v":0},{"$f":"'rent allocations'!AB27*$C$1","v":0},{"$f":"'rent allocations'!AC27*$C$1","v":0},{"$f":"'rent allocations'!AD27*$C$1","v":0},{"$f":"'rent allocations'!AE27*$C$1","v":0},{"$f":"'rent allocations'!AF27*$C$1","v":0},{"$f":"'rent allocations'!AG27*$C$1","v":0},{"$f":"'rent allocations'!AH27*$C$1","v":0},{"$f":"'rent allocations'!AI27*$C$1","v":0},{"$f":"'rent allocations'!AJ27*$C$1","v":82296.239885183764},{"$f":"'rent allocations'!AK27*$C$1","v":0},{"$f":"'rent allocations'!AL27*$C$1","v":0}]
["099 - Citizens' Commission on Salaries for Elected Officials","099","Citizens' Commission on Salaries for Elected Officials",{"$f":"'rent allocations'!D28*$C$1","v":14680.708436060637},{"$f":"'rent allocations'!E28*$C$1","v":0},{"$f":"'rent allocations'!F28*$C$1","v":0},{"$f":"'rent allocations'!G28*$C$1","v":0},{"$f":"'rent allocations'!H28*$C$1","v":0},{"$f":"'rent allocations'!I28*$C$1","v":0},{"$f":"'rent allocations'!J28*$C$1","v":0},{"$f":"'rent allocations'!K28*$C$1","v":0},{"$f":"'rent allocations'!L28*$C$1","v":0},{"$f":"'rent allocations'!M28*$C$1","v":0},{"$f":"'rent allocations'!N28*$C$1","v":0},{"$f":"'rent allocations'!O28*$C$1","v":0},{"$f":"'rent allocations'!P28*$C$1","v":0},{"$f":"'rent allocations'!Q28*$C$1","v":0},{"$f":"'rent allocations'!R28*$C$1","v":0},{"$f":"'rent allocations'!S28*$C$1","v":0},{"$f":"'rent allocations'!T28*$C$1","v":0},{"$f":"'rent allocations'!U28*$C$1","v":0},{"$f":"'rent allocations'!V28*$C$1","v":0},{"$f":"'rent allocations'!W28*$C$1","v":0},{"$f":"'rent allocations'!X28*$C$1","v":14680.708436060637},{"$f":"'rent allocations'!Y28*$C$1","v":0},{"$f":"'rent allocations'!Z28*$C$1","v":0},{"$f":"'rent allocations'!AA28*$C$1","v":0},{"$f":"'rent allocations'!AB28*$C$1","v":0},{"$f":"'rent allocations'!AC28*$C$1","v":0},{"$f":"'rent allocations'!AD28*$C$1","v":0},{"$f":"'rent allocations'!AE28*$C$1","v":0},{"$f":"'rent allocations'!AF28*$C$1","v":0},{"$f":"'rent allocations'!AG28*$C$1","v":0},{"$f":"'rent allocations'!AH28*$C$1","v":0},{"$f":"'rent allocations'!AI28*$C$1","v":0},{"$f":"'rent allocations'!AJ28*$C$1","v":0},{"$f":"'rent allocations'!AK28*$C$1","v":0},{"$f":"'rent allocations'!AL28*$C$1","v":0}]
["100 - Office of Attorney General","100","Office of Attorney General",{"$f":"'rent allocations'!D29*$C$1","v":772412.64010277088},{"$f":"'rent allocations'!E29*$C$1","v":0},{"$f":"'rent allocations'!F29*$C$1","v":0},{"$f":"'rent allocations'!G29*$C$1","v":0},{"$f":"'rent allocations'!H29*$C$1","v":0},{"$f":"'rent allocations'!I29*$C$1","v":772412.64010277088},{"$f":"'rent allocations'!J29*$C$1","v":0},{"$f":"'rent allocations'!K29*$C$1","v":0},{"$f":"'rent allocations'!L29*$C$1","v":0},{"$f":"'rent allocations'!M29*$C$1","v":0},{"$f":"'rent allocations'!N29*$C$1","v":0},{"$f":"'rent allocations'!O29*$C$1","v":0},{"$f":"'rent allocations'!P29*$C$1","v":0},{"$f":"'rent allocations'!Q29*$C$1","v":0},{"$f":"'rent allocations'!R29*$C$1","v":0},{"$f":"'rent allocations'!S29*$C$1","v":0},{"$f":"'rent allocations'!T29*$C$1","v":0},{"$f":"'rent allocations'!U29*$C$1","v":0},{"$f":"'rent allocations'!V29*$C$1","v":0},{"$f":"'rent allocations'!W29*$C$1","v":0},{"$f":"'rent allocations'!X29*$C$1","v":0},{"$f":"'rent allocations'!Y29*$C$1","v":0},{"$f":"'rent allocations'!Z29*$C$1","v":0},{"$f":"'rent allocations'!AA29*$C$1","v":0},{"$f":"'rent allocations'!AB29*$C$1","v":0},{"$f":"'rent allocations'!AC29*$C$1","v":0},{"$f":"'rent allocations'!AD29*$C$1","v":0},{"$f":"'rent allocations'!AE29*$C$1","v":0},{"$f":"'rent allocations'!AF29*$C$1","v":0},{"$f":"'rent allocations'!AG29*$C$1","v":0},{"$f":"'rent allocations'!AH29*$C$1","v":0},{"$f":"'rent allocations'!AI29*$C$1","v":0},{"$f":"'rent allocations'!AJ29*$C$1","v":0},{"$f":"'rent allocations'!AK29*$C$1","v":0},{"$f":"'rent allocations'!AL29*$C$1","v":0}]
["101 - Caseload Forecast Council","101","Caseload Forecast Council",{"$f":"'rent allocations'!D30*$C$1","v":113698.33950931046},{"$f":"'rent allocations'!E30*$C$1","v":0},{"$f":"'rent allocations'!F30*$C$1","v":0},{"$f":"'rent allocations'!G30*$C$1","v":0},{"$f":"'rent allocations'!H30*$C$1","v":0},{"$f":"'rent allocations'!I30*$C$1","v":0},{"$f":"'rent allocations'!J30*$C$1","v":0},{"$f":"'rent allocations'!K30*$C$1","v":0},{"$f":"'rent allocations'!L30*$C$1","v":0},{"$f":"'rent allocations'!M30*$C$1","v":0},{"$f":"'rent allocations'!N30*$C$1","v":0},{"$f":"'rent allocations'!O30*$C$1","v":0},{"$f":"'rent allocations'!P30*$C$1","v":0},{"$f":"'rent allocations'!Q30*$C$1","v":0},{"$f":"'rent allocations'!R30*$C$1","v":0},{"$f":"'rent allocations'!S30*$C$1","v":0},{"$f":"'rent allocations'!T30*$C$1","v":0},{"$f":"'rent allocations'!U30*$C$1","v":0},{"$f":"'rent allocations'!V30*$C$1","v":0},{"$f":"'rent allocations'!W30*$C$1","v":0},{"$f":"'rent allocations'!X30*$C$1","v":113698.33950931046},{"$f":"'rent allocations'!Y30*$C$1","v":0},{"$f":"'rent allocations'!Z30*$C$1","v":0},{"$f":"'rent allocations'!AA30*$C$1","v":0},{"$f":"'rent allocations'!AB30*$C$1","v":0},{"$f":"'rent allocations'!AC30*$C$1","v":0},{"$f":"'rent allocations'!AD30*$C$1","v":0},{"$f":"'rent allocations'!AE30*$C$1","v":0},{"$f":"'rent allocations'!AF30*$C$1","v":0},{"$f":"'rent allocations'!AG30*$C$1","v":0},{"$f":"'rent allocations'!AH30*$C$1","v":0},{"$f":"'rent allocations'!AI30*$C$1","v":0},{"$f":"'rent allocations'!AJ30*$C$1","v":0},{"$f":"'rent allocations'!AK30*$C$1","v":0},{"$f":"'rent allocations'!AL30*$C$1","v":0}]
["102 - Department of Financial Institutions","102","Department of Financial Institutions",{"$f":"'rent allocations'!D31*$C$1","v":0},{"$f":"'rent allocations'!E31*$C$1","v":0},{"$f":"'rent allocations'!F31*$C$1","v":0},{"$f":"'rent allocations'!G31*$C$1","v":0},{"$f":"'rent allocations'!H31*$C$1","v":0},{"$f":"'rent allocations'!I31*$C$1","v":0},{"$f":"'rent allocations'!J31*$C$1","v":0},{"$f":"'rent allocations'!K31*$C$1","v":0},{"$f":"'rent allocations'!L31*$C$1","v":0},{"$f":"'rent allocations'!M31*$C$1","v":0},{"$f":"'rent allocations'!N31*$C$1","v":0},{"$f":"'rent allocations'!O31*$C$1","v":0},{"$f":"'rent allocations'!P31*$C$1","v":0},{"$f":"'rent allocations'!Q31*$C$1","v":0},{"$f":"'rent allocations'!R31*$C$1","v":0},{"$f":"'rent allocations'!S31*$C$1","v":0},{"$f":"'rent allocations'!T31*$C$1","v":0},{"$f":"'rent allocations'!U31*$C$1","v":0},{"$f":"'rent allocations'!V31*$C$1","v":0},{"$f":"'rent allocations'!W31*$C$1","v":0},{"$f":"'rent allocations'!X31*$C$1","v":0},{"$f":"'rent allocations'!Y31*$C$1","v":0},{"$f":"'rent allocations'!Z31*$C$1","v":0},{"$f":"'rent allocations'!AA31*$C$1","v":0},{"$f":"'rent allocations'!AB31*$C$1","v":0},{"$f":"'rent allocations'!AC31*$C$1","v":0},{"$f":"'rent allocations'!AD31*$C$1","v":0},{"$f":"'rent allocations'!AE31*$C$1","v":0},{"$f":"'rent allocations'!AF31*$C$1","v":0},{"$f":"'rent allocations'!AG31*$C$1","v":0},{"$f":"'rent allocations'!AH31*$C$1","v":0},{"$f":"'rent allocations'!AI31*$C$1","v":0},{"$f":"'rent allocations'!AJ31*$C$1","v":0},{"$f":"'rent allocations'!AK31*$C$1","v":0},{"$f":"'rent allocations'!AL31*$C$1","v":0}]
["103 - Department of Commerce","103","Department of Commerce",{"$f":"'rent allocations'!D32*$C$1","v":0},{"$f":"'rent allocations'!E32*$C$1","v":0},{"$f":"'rent allocations'!F32*$C$1","v":0},{"$f":"'rent allocations'!G32*$C$1","v":0},{"$f":"'rent allocations'!H32*$C$1","v":0},{"$f":"'rent allocations'!I32*$C$1","v":0},{"$f":"'rent allocations'!J32*$C$1","v":0},{"$f":"'rent allocations'!K32*$C$1","v":0},{"$f":"'rent allocations'!L32*$C$1","v":0},{"$f":"'rent allocations'!M32*$C$1","v":0},{"$f":"'rent allocations'!N32*$C$1","v":0},{"$f":"'rent allocations'!O32*$C$1","v":0},{"$f":"'rent allocations'!P32*$C$1","v":0},{"$f":"'rent allocations'!Q32*$C$1","v":0},{"$f":"'rent allocations'!R32*$C$1","v":0},{"$f":"'rent allocations'!S32*$C$1","v":0},{"$f":"'rent allocations'!T32*$C$1","v":0},{"$f":"'rent allocations'!U32*$C$1","v":0},{"$f":"'rent allocations'!V32*$C$1","v":0},{"$f":"'rent allocations'!W32*$C$1","v":0},{"$f":"'rent allocations'!X32*$C$1","v":0},{"$f":"'rent allocations'!Y32*$C$1","v":0},{"$f":"'rent allocations'!Z32*$C$1","v":0},{"$f":"'rent allocations'!AA32*$C$1","v":0},{"$f":"'rent allocations'!AB32*$C$1","v":0},{"$f":"'rent allocations'!AC32*$C$1","v":0},{"$f":"'rent allocations'!AD32*$C$1","v":0},{"$f":"'rent allocations'!AE32*$C$1","v":0},{"$f":"'rent allocations'!AF32*$C$1","v":0},{"$f":"'rent allocations'!AG32*$C$1","v":0},{"$f":"'rent allocations'!AH32*$C$1","v":0},{"$f":"'rent allocations'!AI32*$C$1","v":0},{"$f":"'rent allocations'!AJ32*$C$1","v":0},{"$f":"'rent allocations'!AK32*$C$1","v":0},{"$f":"'rent allocations'!AL32*$C$1","v":0}]
["104 - Economic and Revenue Forecast Council","104","Economic and Revenue Forecast Council",{"$f":"'rent allocations'!D33*$C$1","v":0},{"$f":"'rent allocations'!E33*$C$1","v":0},{"$f":"'rent allocations'!F33*$C$1","v":0},{"$f":"'rent allocations'!G33*$C$1","v":0},{"$f":"'rent allocations'!H33*$C$1","v":0},{"$f":"'rent allocations'!I33*$C$1","v":0},{"$f":"'rent allocations'!J33*$C$1","v":0},{"$f":"'rent allocations'!K33*$C$1","v":0},{"$f":"'rent allocations'!L33*$C$1","v":0},{"$f":"'rent allocations'!M33*$C$1","v":0},{"$f":"'rent allocations'!N33*$C$1","v":0},{"$f":"'rent allocations'!O33*$C$1","v":0},{"$f":"'rent allocations'!P33*$C$1","v":0},{"$f":"'rent allocations'!Q33*$C$1","v":0},{"$f":"'rent allocations'!R33*$C$1","v":0},{"$f":"'rent allocations'!S33*$C$1","v":0},{"$f":"'rent allocations'!T33*$C$1","v":0},{"$f":"'rent allocations'!U33*$C$1","v":0},{"$f":"'rent allocations'!V33*$C$1","v":0},{"$f":"'rent allocations'!W33*$C$1","v":0},{"$f":"'rent allocations'!X33*$C$1","v":0},{"$f":"'rent allocations'!Y33*$C$1","v":0},{"$f":"'rent allocations'!Z33*$C$1","v":0},{"$f":"'rent allocations'!AA33*$C$1","v":0},{"$f":"'rent allocations'!AB33*$C$1","v":0},{"$f":"'rent allocations'!AC33*$C$1","v":0},{"$f":"'rent allocations'!AD33*$C$1","v":0},{"$f":"'rent allocations'!AE33*$C$1","v":0},{"$f":"'rent allocations'!AF33*$C$1","v":0},{"$f":"'rent allocations'!AG33*$C$1","v":0},{"$f":"'rent allocations'!AH33*$C$1","v":0},{"$f":"'rent allocations'!AI33*$C$1","v":0},{"$f":"'rent allocations'!AJ33*$C$1","v":0},{"$f":"'rent allocations'!AK33*$C$1","v":0},{"$f":"'rent allocations'!AL33*$C$1","v":0}]
["105 - Office of Financial Management","105","Office of Financial Management",{"$f":"'rent allocations'!D34*$C$1","v":796603.30472554709},{"$f":"'rent allocations'!E34*$C$1","v":0},{"$f":"'rent allocations'!F34*$C$1","v":0},{"$f":"'rent allocations'!G34*$C$1","v":0},{"$f":"'rent allocations'!H34*$C$1","v":0},{"$f":"'rent allocations'!I34*$C$1","v":0},{"$f":"'rent allocations'!J34*$C$1","v":0},{"$f":"'rent allocations'!K34*$C$1","v":0},{"$f":"'rent allocations'!L34*$C$1","v":0},{"$f":"'rent allocations'!M34*$C$1","v":0},{"$f":"'rent allocations'!N34*$C$1","v":0},{"$f":"'rent allocations'!O34*$C$1","v":578037.73941555712},{"$f":"'rent allocations'!P34*$C$1","v":0},{"$f":"'rent allocations'!Q34*$C$1","v":0},{"$f":"'rent allocations'!R34*$C$1","v":0},{"$f":"'rent allocations'!S34*$C$1","v":0},{"$f":"'rent allocations'!T34*$C$1","v":0},{"$f":"'rent allocations'!U34*$C$1","v":0},{"$f":"'rent allocations'!V34*$C$1","v":0},{"$f":"'rent allocations'!W34*$C$1","v":0},{"$f":"'rent allocations'!X34*$C$1","v":15408.130926135715},{"$f":"'rent allocations'!Y34*$C$1","v":0},{"$f":"'rent allocations'!Z34*$C$1","v":0},{"$f":"'rent allocations'!AA34*$C$1","v":0},{"$f":"'rent allocations'!AB34*$C$1","v":0},{"$f":"'rent allocations'!AC34*$C$1","v":0},{"$f":"'rent allocations'!AD34*$C$1","v":0},{"$f":"'rent allocations'!AE34*$C$1","v":0},{"$f":"'rent allocations'!AF34*$C$1","v":203157.43438385427},{"$f":"'rent allocations'!AG34*$C$1","v":0},{"$f":"'rent allocations'!AH34*$C$1","v":0},{"$f":"'rent allocations'!AI34*$C$1","v":0},{"$f":"'rent allocations'!AJ34*$C$1","v":0},{"$f":"'rent allocations'!AK34*$C$1","v":0},{"$f":"'rent allocations'!AL34*$C$1","v":0}]
["107 - Washington State Health Care Authority","107","Washington State Health Care Authority",{"$f":"'rent allocations'!D35*$C$1","v":0},{"$f":"'rent allocations'!E35*$C$1","v":0},{"$f":"'rent allocations'!F35*$C$1","v":0},{"$f":"'rent allocations'!G35*$C$1","v":0},{"$f":"'rent allocations'!H35*$C$1","v":0},{"$f":"'rent allocations'!I35*$C$1","v":0},{"$f":"'rent allocations'!J35*$C$1","v":0},{"$f":"'rent allocations'!K35*$C$1","v":0},{"$f":"'rent allocations'!L35*$C$1","v":0},{"$f":"'rent allocations'!M35*$C$1","v":0},{"$f":"'rent allocations'!N35*$C$1","v":0},{"$f":"'rent allocations'!O35*$C$1","v":0},{"$f":"'rent allocations'!P35*$C$1","v":0},{"$f":"'rent allocations'!Q35*$C$1","v":0},{"$f":"'rent allocations'!R35*$C$1","v":0},{"$f":"'rent allocations'!S35*$C$1","v":0},{"$f":"'rent allocations'!T35*$C$1","v":0},{"$f":"'rent allocations'!U35*$C$1","v":0},{"$f":"'rent allocations'!V35*$C$1","v":0},{"$f":"'rent allocations'!W35*$C$1","v":0},{"$f":"'rent allocations'!X35*$C$1","v":0},{"$f":"'rent allocations'!Y35*$C$1","v":0},{"$f":"'rent allocations'!Z35*$C$1","v":0},{"$f":"'rent allocations'!AA35*$C$1","v":0},{"$f":"'rent allocations'!AB35*$C$1","v":0},{"$f":"'rent allocations'!AC35*$C$1","v":0},{"$f":"'rent allocations'!AD35*$C$1","v":0},{"$f":"'rent allocations'!AE35*$C$1","v":0},{"$f":"'rent allocations'!AF35*$C$1","v":0},{"$f":"'rent allocations'!AG35*$C$1","v":0},{"$f":"'rent allocations'!AH35*$C$1","v":0},{"$f":"'rent allocations'!AI35*$C$1","v":0},{"$f":"'rent allocations'!AJ35*$C$1","v":0},{"$f":"'rent allocations'!AK35*$C$1","v":0},{"$f":"'rent allocations'!AL35*$C$1","v":0}]
["110 - Office of Administrative Hearings","110","Office of Administrative Hearings",{"$f":"'rent allocations'!D36*$C$1","v":209481.33788955866},{"$f":"'rent allocations'!E36*$C$1","v":0},{"$f":"'rent allocations'!F36*$C$1","v":0},{"$f":"'rent allocations'!G36*$C$1","v":0},{"$f":"'rent allocations'!H36*$C$1","v":0},{"$f":"'rent allocations'!I36*$C$1","v":0},{"$f":"'rent allocations'!J36*$C$1","v":0},{"$f":"'rent allocations'!K36*$C$1","v":0},{"$f":"'rent allocations'!L36*$C$1","v":0},{"$f":"'rent allocations'!M36*$C$1","v":0},{"$f":"'rent allocations'!N36*$C$1","v":0},{"$f":"'rent allocations'!O36*$C$1","v":0},{"$f":"'rent allocations'!P36*$C$1","v":0},{"$f":"'rent allocations'!Q36*$C$1","v":0},{"$f":"'rent allocations'!R36*$C$1","v":0},{"$f":"'rent allocations'!S36*$C$1","v":0},{"$f":"'rent allocations'!T36*$C$1","v":0},{"$f":"'rent allocations'!U36*$C$1","v":0},{"$f":"'rent allocations'!V36*$C$1","v":0},{"$f":"'rent allocations'!W36*$C$1","v":0},{"$f":"'rent allocations'!X36*$C$1","v":0},{"$f":"'rent allocations'!Y36*$C$1","v":0},{"$f":"'rent allocations'!Z36*$C$1","v":0},{"$f":"'rent allocations'!AA36*$C$1","v":0},{"$f":"'rent allocations'!AB36*$C$1","v":0},{"$f":"'rent allocations'!AC36*$C$1","v":0},{"$f":"'rent allocations'!AD36*$C$1","v":0},{"$f":"'rent allocations'!AE36*$C$1","v":0},{"$f":"'rent allocations'!AF36*$C$1","v":0},{"$f":"'rent allocations'!AG36*$C$1","v":0},{"$f":"'rent allocations'!AH36*$C$1","v":0},{"$f":"'rent allocations'!AI36*$C$1","v":0},{"$f":"'rent allocations'!AJ36*$C$1","v":209481.33788955866},{"$f":"'rent allocations'!AK36*$C$1","v":0},{"$f":"'rent allocations'!AL36*$C$1","v":0}]
["116 - State Lottery","116","State Lottery",{"$f":"'rent allocations'!D37*$C$1","v":0},{"$f":"'rent allocations'!E37*$C$1","v":0},{"$f":"'rent allocations'!F37*$C$1","v":0},{"$f":"'rent allocations'!G37*$C$1","v":0},{"$f":"'rent allocations'!H37*$C$1","v":0},{"$f":"'rent allocations'!I37*$C$1","v":0},{"$f":"'rent allocations'!J37*$C$1","v":0},{"$f":"'rent allocations'!K37*$C$1","v":0},{"$f":"'rent allocations'!L37*$C$1","v":0},{"$f":"'rent allocations'!M37*$C$1","v":0},{"$f":"'rent allocations'!N37*$C$1","v":0},{"$f":"'rent allocations'!O37*$C$1","v":0},{"$f":"'rent allocations'!P37*$C$1","v":0},{"$f":"'rent allocations'!Q37*$C$1","v":0},{"$f":"'rent allocations'!R37*$C$1","v":0},{"$f":"'rent allocations'!S37*$C$1","v":0},{"$f":"'rent allocations'!T37*$C$1","v":0},{"$f":"'rent allocations'!U37*$C$1","v":0},{"$f":"'rent allocations'!V37*$C$1","v":0},{"$f":"'rent allocations'!W37*$C$1","v":0},{"$f":"'rent allocations'!X37*$C$1","v":0},{"$f":"'rent allocations'!Y37*$C$1","v":0},{"$f":"'rent allocations'!Z37*$C$1","v":0},{"$f":"'rent allocations'!AA37*$C$1","v":0},{"$f":"'rent allocations'!AB37*$C$1","v":0},{"$f":"'rent allocations'!AC37*$C$1","v":0},{"$f":"'rent allocations'!AD37*$C$1","v":0},{"$f":"'rent allocations'!AE37*$C$1","v":0},{"$f":"'rent allocations'!AF37*$C$1","v":0},{"$f":"'rent allocations'!AG37*$C$1","v":0},{"$f":"'rent allocations'!AH37*$C$1","v":0},{"$f":"'rent allocations'!AI37*$C$1","v":0},{"$f":"'rent allocations'!AJ37*$C$1","v":0},{"$f":"'rent allocations'!AK37*$C$1","v":0},{"$f":"'rent allocations'!AL37*$C$1","v":0}]
["117 - Washington State Gambling Commission","117","Washington State Gambling Commission",{"$f":"'rent allocations'!D38*$C$1","v":0},{"$f":"'rent allocations'!E38*$C$1","v":0},{"$f":"'rent allocations'!F38*$C$1","v":0},{"$f":"'rent allocations'!G38*$C$1","v":0},{"$f":"'rent allocations'!H38*$C$1","v":0},{"$f":"'rent allocations'!I38*$C$1","v":0},{"$f":"'rent allocations'!J38*$C$1","v":0},{"$f":"'rent allocations'!K38*$C$1","v":0},{"$f":"'rent allocations'!L38*$C$1","v":0},{"$f":"'rent allocations'!M38*$C$1","v":0},{"$f":"'rent allocations'!N38*$C$1","v":0},{"$f":"'rent allocations'!O38*$C$1","v":0},{"$f":"'rent allocations'!P38*$C$1","v":0},{"$f":"'rent allocations'!Q38*$C$1","v":0},{"$f":"'rent allocations'!R38*$C$1","v":0},{"$f":"'rent allocations'!S38*$C$1","v":0},{"$f":"'rent allocations'!T38*$C$1","v":0},{"$f":"'rent allocations'!U38*$C$1","v":0},{"$f":"'rent allocations'!V38*$C$1","v":0},{"$f":"'rent allocations'!W38*$C$1","v":0},{"$f":"'rent allocations'!X38*$C$1","v":0},{"$f":"'rent allocations'!Y38*$C$1","v":0},{"$f":"'rent allocations'!Z38*$C$1","v":0},{"$f":"'rent allocations'!AA38*$C$1","v":0},{"$f":"'rent allocations'!AB38*$C$1","v":0},{"$f":"'rent allocations'!AC38*$C$1","v":0},{"$f":"'rent allocations'!AD38*$C$1","v":0},{"$f":"'rent allocations'!AE38*$C$1","v":0},{"$f":"'rent allocations'!AF38*$C$1","v":0},{"$f":"'rent allocations'!AG38*$C$1","v":0},{"$f":"'rent allocations'!AH38*$C$1","v":0},{"$f":"'rent allocations'!AI38*$C$1","v":0},{"$f":"'rent allocations'!AJ38*$C$1","v":0},{"$f":"'rent allocations'!AK38*$C$1","v":0},{"$f":"'rent allocations'!AL38*$C$1","v":0}]
["118 - Commission on Hispanic Affairs","118","Commission on Hispanic Affairs",{"$f":"'rent allocations'!D39*$C$1","v":19023.200270751244},{"$f":"'rent allocations'!E39*$C$1","v":0},{"$f":"'rent allocations'!F39*$C$1","v":0},{"$f":"'rent allocations'!G39*$C$1","v":0},{"$f":"'rent allocations'!H39*$C$1","v":0},{"$f":"'rent allocations'!I39*$C$1","v":0},{"$f":"'rent allocations'!J39*$C$1","v":0},{"$f":"'rent allocations'!K39*$C$1","v":0},{"$f":"'rent allocations'!L39*$C$1","v":0},{"$f":"'rent allocations'!M39*$C$1","v":0},{"$f":"'rent allocations'!N39*$C$1","v":0},{"$f":"'rent allocations'!O39*$C$1","v":0},{"$f":"'rent allocations'!P39*$C$1","v":0},{"$f":"'rent allocations'!Q39*$C$1","v":0},{"$f":"'rent allocations'!R39*$C$1","v":0},{"$f":"'rent allocations'!S39*$C$1","v":0},{"$f":"'rent allocations'!T39*$C$1","v":0},{"$f":"'rent allocations'!U39*$C$1","v":0},{"$f":"'rent allocations'!V39*$C$1","v":0},{"$f":"'rent allocations'!W39*$C$1","v":0},{"$f":"'rent allocations'!X39*$C$1","v":19023.200270751244},{"$f":"'rent allocations'!Y39*$C$1","v":0},{"$f":"'rent allocations'!Z39*$C$1","v":0},{"$f":"'rent allocations'!AA39*$C$1","v":0},{"$f":"'rent allocations'!AB39*$C$1","v":0},{"$f":"'rent allocations'!AC39*$C$1","v":0},{"$f":"'rent allocations'!AD39*$C$1","v":0},{"$f":"'rent allocations'!AE39*$C$1","v":0},{"$f":"'rent allocations'!AF39*$C$1","v":0},{"$f":"'rent allocations'!AG39*$C$1","v":0},{"$f":"'rent allocations'!AH39*$C$1","v":0},{"$f":"'rent allocations'!AI39*$C$1","v":0},{"$f":"'rent allocations'!AJ39*$C$1","v":0},{"$f":"'rent allocations'!AK39*$C$1","v":0},{"$f":"'rent allocations'!AL39*$C$1","v":0}]
["119 - Commission on African-American Affairs","119","Commission on African-American Affairs",{"$f":"'rent allocations'!D40*$C$1","v":19023.200270751244},{"$f":"'rent allocations'!E40*$C$1","v":0},{"$f":"'rent allocations'!F40*$C$1","v":0},{"$f":"'rent allocations'!G40*$C$1","v":0},{"$f":"'rent allocations'!H40*$C$1","v":0},{"$f":"'rent allocations'!I40*$C$1","v":0},{"$f":"'rent allocations'!J40*$C$1","v":0},{"$f":"'rent allocations'!K40*$C$1","v":0},{"$f":"'rent allocations'!L40*$C$1","v":0},{"$f":"'rent allocations'!M40*$C$1","v":0},{"$f":"'rent allocations'!N40*$C$1","v":0},{"$f":"'rent allocations'!O40*$C$1","v":0},{"$f":"'rent allocations'!P40*$C$1","v":0},{"$f":"'rent allocations'!Q40*$C$1","v":0},{"$f":"'rent allocations'!R40*$C$1","v":0},{"$f":"'rent allocations'!S40*$C$1","v":0},{"$f":"'rent allocations'!T40*$C$1","v":0},{"$f":"'rent allocations'!U40*$C$1","v":0},{"$f":"'rent allocations'!V40*$C$1","v":0},{"$f":"'rent allocations'!W40*$C$1","v":0},{"$f":"'rent allocations'!X40*$C$1","v":19023.200270751244},{"$f":"'rent allocations'!Y40*$C$1","v":0},{"$f":"'rent allocations'!Z40*$C$1","v":0},{"$f":"'rent allocations'!AA40*$C$1","v":0},{"$f":"'rent allocations'!AB40*$C$1","v":0},{"$f":"'rent allocations'!AC40*$C$1","v":0},{"$f":"'rent allocations'!AD40*$C$1","v":0},{"$f":"'rent allocations'!AE40*$C$1","v":0},{"$f":"'rent allocations'!AF40*$C$1","v":0},{"$f":"'rent allocations'!AG40*$C$1","v":0},{"$f":"'rent allocations'!AH40*$C$1","v":0},{"$f":"'rent allocations'!AI40*$C$1","v":0},{"$f":"'rent allocations'!AJ40*$C$1","v":0},{"$f":"'rent allocations'!AK40*$C$1","v":0},{"$f":"'rent allocations'!AL40*$C$1","v":0}]
["120 - Human Rights Commission","120","Human Rights Commission",{"$f":"'rent allocations'!D41*$C$1","v":0},{"$f":"'rent allocations'!E41*$C$1","v":0},{"$f":"'rent allocations'!F41*$C$1","v":0},{"$f":"'rent allocations'!G41*$C$1","v":0},{"$f":"'rent allocations'!H41*$C$1","v":0},{"$f":"'rent allocations'!I41*$C$1","v":0},{"$f":"'rent allocations'!J41*$C$1","v":0},{"$f":"'rent allocations'!K41*$C$1","v":0},{"$f":"'rent allocations'!L41*$C$1","v":0},{"$f":"'rent allocations'!M41*$C$1","v":0},{"$f":"'rent allocations'!N41*$C$1","v":0},{"$f":"'rent allocations'!O41*$C$1","v":0},{"$f":"'rent allocations'!P41*$C$1","v":0},{"$f":"'rent allocations'!Q41*$C$1","v":0},{"$f":"'rent allocations'!R41*$C$1","v":0},{"$f":"'rent allocations'!S41*$C$1","v":0},{"$f":"'rent allocations'!T41*$C$1","v":0},{"$f":"'rent allocations'!U41*$C$1","v":0},{"$f":"'rent allocations'!V41*$C$1","v":0},{"$f":"'rent allocations'!W41*$C$1","v":0},{"$f":"'rent allocations'!X41*$C$1","v":0},{"$f":"'rent allocations'!Y41*$C$1","v":0},{"$f":"'rent allocations'!Z41*$C$1","v":0},{"$f":"'rent allocations'!AA41*$C$1","v":0},{"$f":"'rent allocations'!AB41*$C$1","v":0},{"$f":"'rent allocations'!AC41*$C$1","v":0},{"$f":"'rent allocations'!AD41*$C$1","v":0},{"$f":"'rent allocations'!AE41*$C$1","v":0},{"$f":"'rent allocations'!AF41*$C$1","v":0},{"$f":"'rent allocations'!AG41*$C$1","v":0},{"$f":"'rent allocations'!AH41*$C$1","v":0},{"$f":"'rent allocations'!AI41*$C$1","v":0},{"$f":"'rent allocations'!AJ41*$C$1","v":0},{"$f":"'rent allocations'!AK41*$C$1","v":0},{"$f":"'rent allocations'!AL41*$C$1","v":0}]
["124 - Department of Retirement Systems","124","Department of Retirement Systems",{"$f":"'rent allocations'!D42*$C$1","v":0},{"$f":"'rent allocations'!E42*$C$1","v":0},{"$f":"'rent allocations'!F42*$C$1","v":0},{"$f":"'rent allocations'!G42*$C$1","v":0},{"$f":"'rent allocations'!H42*$C$1","v":0},{"$f":"'rent allocations'!I42*$C$1","v":0},{"$f":"'rent allocations'!J42*$C$1","v":0},{"$f":"'rent allocations'!K42*$C$1","v":0},{"$f":"'rent allocations'!L42*$C$1","v":0},{"$f":"'rent allocations'!M42*$C$1","v":0},{"$f":"'rent allocations'!N42*$C$1","v":0},{"$f":"'rent allocations'!O42*$C$1","v":0},{"$f":"'rent allocations'!P42*$C$1","v":0},{"$f":"'rent allocations'!Q42*$C$1","v":0},{"$f":"'rent allocations'!R42*$C$1","v":0},{"$f":"'rent allocations'!S42*$C$1","v":0},{"$f":"'rent allocations'!T42*$C$1","v":0},{"$f":"'rent allocations'!U42*$C$1","v":0},{"$f":"'rent allocations'!V42*$C$1","v":0},{"$f":"'rent allocations'!W42*$C$1","v":0},{"$f":"'rent allocations'!X42*$C$1","v":0},{"$f":"'rent allocations'!Y42*$C$1","v":0},{"$f":"'rent allocations'!Z42*$C$1","v":0},{"$f":"'rent allocations'!AA42*$C$1","v":0},{"$f":"'rent allocations'!AB42*$C$1","v":0},{"$f":"'rent allocations'!AC42*$C$1","v":0},{"$f":"'rent allocations'!AD42*$C$1","v":0},{"$f":"'rent allocations'!AE42*$C$1","v":0},{"$f":"'rent allocations'!AF42*$C$1","v":0},{"$f":"'rent allocations'!AG42*$C$1","v":0},{"$f":"'rent allocations'!AH42*$C$1","v":0},{"$f":"'rent allocations'!AI42*$C$1","v":0},{"$f":"'rent allocations'!AJ42*$C$1","v":0},{"$f":"'rent allocations'!AK42*$C$1","v":0},{"$f":"'rent allocations'!AL42*$C$1","v":0}]
["126 - State Investment Board","126","State Investment Board",{"$f":"'rent allocations'!D43*$C$1","v":0},{"$f":"'rent allocations'!E43*$C$1","v":0},{"$f":"'rent allocations'!F43*$C$1","v":0},{"$f":"'rent allocations'!G43*$C$1","v":0},{"$f":"'rent allocations'!H43*$C$1","v":0},{"$f":"'rent allocations'!I43*$C$1","v":0},{"$f":"'rent allocations'!J43*$C$1","v":0},{"$f":"'rent allocations'!K43*$C$1","v":0},{"$f":"'rent allocations'!L43*$C$1","v":0},{"$f":"'rent allocations'!M43*$C$1","v":0},{"$f":"'rent allocations'!N43*$C$1","v":0},{"$f":"'rent allocations'!O43*$C$1","v":0},{"$f":"'rent allocations'!P43*$C$1","v":0},{"$f":"'rent allocations'!Q43*$C$1","v":0},{"$f":"'rent allocations'!R43*$C$1","v":0},{"$f":"'rent allocations'!S43*$C$1","v":0},{"$f":"'rent allocations'!T43*$C$1","v":0},{"$f":"'rent allocations'!U43*$C$1","v":0},{"$f":"'rent allocations'!V43*$C$1","v":0},{"$f":"'rent allocations'!W43*$C$1","v":0},{"$f":"'rent allocations'!X43*$C$1","v":0},{"$f":"'rent allocations'!Y43*$C$1","v":0},{"$f":"'rent allocations'!Z43*$C$1","v":0},{"$f":"'rent allocations'!AA43*$C$1","v":0},{"$f":"'rent allocations'!AB43*$C$1","v":0},{"$f":"'rent allocations'!AC43*$C$1","v":0},{"$f":"'rent allocations'!AD43*$C$1","v":0},{"$f":"'rent allocations'!AE43*$C$1","v":0},{"$f":"'rent allocations'!AF43*$C$1","v":0},{"$f":"'rent allocations'!AG43*$C$1","v":0},{"$f":"'rent allocations'!AH43*$C$1","v":0},{"$f":"'rent allocations'!AI43*$C$1","v":0},{"$f":"'rent allocations'!AJ43*$C$1","v":0},{"$f":"'rent allocations'!AK43*$C$1","v":0},{"$f":"'rent allocations'!AL43*$C$1","v":0}]
["140 - Department of Revenue","140","Department of Revenue",{"$f":"'rent allocations'!D44*$C$1","v":0},{"$f":"'rent allocations'!E44*$C$1","v":0},{"$f":"'rent allocations'!F44*$C$1","v":0},{"$f":"'rent allocations'!G44*$C$1","v":0},{"$f":"'rent allocations'!H44*$C$1","v":0},{"$f":"'rent allocations'!I44*$C$1","v":0},{"$f":"'rent allocations'!J44*$C$1","v":0},{"$f":"'rent allocations'!K44*$C$1","v":0},{"$f":"'rent allocations'!L44*$C$1","v":0},{"$f":"'rent allocations'!M44*$C$1","v":0},{"$f":"'rent allocations'!N44*$C$1","v":0},{"$f":"'rent allocations'!O44*$C$1","v":0},{"$f":"'rent allocations'!P44*$C$1","v":0},{"$f":"'rent allocations'!Q44*$C$1","v":0},{"$f":"'rent allocations'!R44*$C$1","v":0},{"$f":"'rent allocations'!S44*$C$1","v":0},{"$f":"'rent allocations'!T44*$C$1","v":0},{"$f":"'rent allocations'!U44*$C$1","v":0},{"$f":"'rent allocations'!V44*$C$1","v":0},{"$f":"'rent allocations'!W44*$C$1","v":0},{"$f":"'rent allocations'!X44*$C$1","v":0},{"$f":"'rent allocations'!Y44*$C$1","v":0},{"$f":"'rent allocations'!Z44*$C$1","v":0},{"$f":"'rent allocations'!AA44*$C$1","v":0},{"$f":"'rent allocations'!AB44*$C$1","v":0},{"$f":"'rent allocations'!AC44*$C$1","v":0},{"$f":"'rent allocations'!AD44*$C$1","v":0},{"$f":"'rent allocations'!AE44*$C$1","v":0},{"$f":"'rent allocations'!AF44*$C$1","v":0},{"$f":"'rent allocations'!AG44*$C$1","v":0},{"$f":"'rent allocations'!AH44*$C$1","v":0},{"$f":"'rent allocations'!AI44*$C$1","v":0},{"$f":"'rent allocations'!AJ44*$C$1","v":0},{"$f":"'rent allocations'!AK44*$C$1","v":0},{"$f":"'rent allocations'!AL44*$C$1","v":0}]
["142 - Board of Tax Appeals","142","Board of Tax Appeals",{"$f":"'rent allocations'!D45*$C$1","v":102941.30389850326},{"$f":"'rent allocations'!E45*$C$1","v":0},{"$f":"'rent allocations'!F45*$C$1","v":0},{"$f":"'rent allocations'!G45*$C$1","v":0},{"$f":"'rent allocations'!H45*$C$1","v":0},{"$f":"'rent allocations'!I45*$C$1","v":0},{"$f":"'rent allocations'!J45*$C$1","v":0},{"$f":"'rent allocations'!K45*$C$1","v":0},{"$f":"'rent allocations'!L45*$C$1","v":0},{"$f":"'rent allocations'!M45*$C$1","v":0},{"$f":"'rent allocations'!N45*$C$1","v":0},{"$f":"'rent allocations'!O45*$C$1","v":0},{"$f":"'rent allocations'!P45*$C$1","v":0},{"$f":"'rent allocations'!Q45*$C$1","v":0},{"$f":"'rent allocations'!R45*$C$1","v":0},{"$f":"'rent allocations'!S45*$C$1","v":0},{"$f":"'rent allocations'!T45*$C$1","v":0},{"$f":"'rent allocations'!U45*$C$1","v":0},{"$f":"'rent allocations'!V45*$C$1","v":0},{"$f":"'rent allocations'!W45*$C$1","v":0},{"$f":"'rent allocations'!X45*$C$1","v":102941.30389850326},{"$f":"'rent allocations'!Y45*$C$1","v":0},{"$f":"'rent allocations'!Z45*$C$1","v":0},{"$f":"'rent allocations'!AA45*$C$1","v":0},{"$f":"'rent allocations'!AB45*$C$1","v":0},{"$f":"'rent allocations'!AC45*$C$1","v":0},{"$f":"'rent allocations'!AD45*$C$1","v":0},{"$f":"'rent allocations'!AE45*$C$1","v":0},{"$f":"'rent allocations'!AF45*$C$1","v":0},{"$f":"'rent allocations'!AG45*$C$1","v":0},{"$f":"'rent allocations'!AH45*$C$1","v":0},{"$f":"'rent allocations'!AI45*$C$1","v":0},{"$f":"'rent allocations'!AJ45*$C$1","v":0},{"$f":"'rent allocations'!AK45*$C$1","v":0},{"$f":"'rent allocations'!AL45*$C$1","v":0}]
["147 - Office of Minority and Women's Business Enterprises","147","Office of Minority and Women's Business Enterprises",{"$f":"'rent allocations'!D46*$C$1","v":106225.72665672105},{"$f":"'rent allocations'!E46*$C$1","v":0},{"$f":"'rent allocations'!F46*$C$1","v":0},{"$f":"'rent allocations'!G46*$C$1","v":0},{"$f":"'rent allocations'!H46*$C$1","v":0},{"$f":"'rent allocations'!I46*$C$1","v":0},{"$f":"'rent allocations'!J46*$C$1","v":0},{"$f":"'rent allocations'!K46*$C$1","v":0},{"$f":"'rent allocations'!L46*$C$1","v":0},{"$f":"'rent allocations'!M46*$C$1","v":0},{"$f":"'rent allocations'!N46*$C$1","v":0},{"$f":"'rent allocations'!O46*$C$1","v":0},{"$f":"'rent allocations'!P46*$C$1","v":0},{"$f":"'rent allocations'!Q46*$C$1","v":0},{"$f":"'rent allocations'!R46*$C$1","v":0},{"$f":"'rent allocations'!S46*$C$1","v":0},{"$f":"'rent allocations'!T46*$C$1","v":0},{"$f":"'rent allocations'!U46*$C$1","v":0},{"$f":"'rent allocations'!V46*$C$1","v":0},{"$f":"'rent allocations'!W46*$C$1","v":0},{"$f":"'rent allocations'!X46*$C$1","v":106225.72665672105},{"$f":"'rent allocations'!Y46*$C$1","v":0},{"$f":"'rent allocations'!Z46*$C$1","v":0},{"$f":"'rent allocations'!AA46*$C$1","v":0},{"$f":"'rent allocations'!AB46*$C$1","v":0},{"$f":"'rent allocations'!AC46*$C$1","v":0},{"$f":"'rent allocations'!AD46*$C$1","v":0},{"$f":"'rent allocations'!AE46*$C$1","v":0},{"$f":"'rent allocations'!AF46*$C$1","v":0},{"$f":"'rent allocations'!AG46*$C$1","v":0},{"$f":"'rent allocations'!AH46*$C$1","v":0},{"$f":"'rent allocations'!AI46*$C$1","v":0},{"$f":"'rent allocations'!AJ46*$C$1","v":0},{"$f":"'rent allocations'!AK46*$C$1","v":0},{"$f":"'rent allocations'!AL46*$C$1","v":0}]
["160 - Office of Insurance Commissioner","160","Office of Insurance Commissioner",{"$f":"'rent allocations'!D47*$C$1","v":96863.973931841858},{"$f":"'rent allocations'!E47*$C$1","v":0},{"$f":"'rent allocations'!F47*$C$1","v":0},{"$f":"'rent allocations'!G47*$C$1","v":0},{"$f":"'rent allocations'!H47*$C$1","v":0},{"$f":"'rent allocations'!I47*$C$1","v":0},{"$f":"'rent allocations'!J47*$C$1","v":0},{"$f":"'rent allocations'!K47*$C$1","v":0},{"$f":"'rent allocations'!L47*$C$1","v":0},{"$f":"'rent allocations'!M47*$C$1","v":0},{"$f":"'rent allocations'!N47*$C$1","v":0},{"$f":"'rent allocations'!O47*$C$1","v":96863.973931841858},{"$f":"'rent allocations'!P47*$C$1","v":0},{"$f":"'rent allocations'!Q47*$C$1","v":0},{"$f":"'rent allocations'!R47*$C$1","v":0},{"$f":"'rent allocations'!S47*$C$1","v":0},{"$f":"'rent allocations'!T47*$C$1","v":0},{"$f":"'rent allocations'!U47*$C$1","v":0},{"$f":"'rent allocations'!V47*$C$1","v":0},{"$f":"'rent allocations'!W47*$C$1","v":0},{"$f":"'rent allocations'!X47*$C$1","v":0},{"$f":"'rent allocations'!Y47*$C$1","v":0},{"$f":"'rent allocations'!Z47*$C$1","v":0},{"$f":"'rent allocations'!AA47*$C$1","v":0},{"$f":"'rent allocations'!AB47*$C$1","v":0},{"$f":"'rent allocations'!AC47*$C$1","v":0},{"$f":"'rent allocations'!AD47*$C$1","v":0},{"$f":"'rent allocations'!AE47*$C$1","v":0},{"$f":"'rent allocations'!AF47*$C$1","v":0},{"$f":"'rent allocations'!AG47*$C$1","v":0},{"$f":"'rent allocations'!AH47*$C$1","v":0},{"$f":"'rent allocations'!AI47*$C$1","v":0},{"$f":"'rent allocations'!AJ47*$C$1","v":0},{"$f":"'rent allocations'!AK47*$C$1","v":0},{"$f":"'rent allocations'!AL47*$C$1","v":0}]
["163 - Consolidated Technology Services","163","Consolidated Technology Services",{"$f":"'rent allocations'!D48*$C$1","v":3093.1790597346703},{"$f":"'rent allocations'!E48*$C$1","v":0},{"$f":"'rent allocations'!F48*$C$1","v":0},{"$f":"'rent allocations'!G48*$C$1","v":0},{"$f":"'rent allocations'!H48*$C$1","v":0},{"$f":"'rent allocations'!I48*$C$1","v":0},{"$f":"'rent allocations'!J48*$C$1","v":3093.1790597346703},{"$f":"'rent allocations'!K48*$C$1","v":0},{"$f":"'rent allocations'!L48*$C$1","v":0},{"$f":"'rent allocations'!M48*$C$1","v":0},{"$f":"'rent allocations'!N48*$C$1","v":0},{"$f":"'rent allocations'!O48*$C$1","v":0},{"$f":"'rent allocations'!P48*$C$1","v":0},{"$f":"'rent allocations'!Q48*$C$1","v":0},{"$f":"'rent allocations'!R48*$C$1","v":0},{"$f":"'rent allocations'!S48*$C$1","v":0},{"$f":"'rent allocations'!T48*$C$1","v":0},{"$f":"'rent allocations'!U48*$C$1","v":0},{"$f":"'rent allocations'!V48*$C$1","v":0},{"$f":"'rent allocations'!W48*$C$1","v":0},{"$f":"'rent allocations'!X48*$C$1","v":0},{"$f":"'rent allocations'!Y48*$C$1","v":0},{"$f":"'rent allocations'!Z48*$C$1","v":0},{"$f":"'rent allocations'!AA48*$C$1","v":0},{"$f":"'rent allocations'!AB48*$C$1","v":0},{"$f":"'rent allocations'!AC48*$C$1","v":0},{"$f":"'rent allocations'!AD48*$C$1","v":0},{"$f":"'rent allocations'!AE48*$C$1","v":0},{"$f":"'rent allocations'!AF48*$C$1","v":0},{"$f":"'rent allocations'!AG48*$C$1","v":0},{"$f":"'rent allocations'!AH48*$C$1","v":0},{"$f":"'rent allocations'!AI48*$C$1","v":0},{"$f":"'rent allocations'!AJ48*$C$1","v":0},{"$f":"'rent allocations'!AK48*$C$1","v":0},{"$f":"'rent allocations'!AL48*$C$1","v":0}]
["165 - Board of Accountancy","165","Board of Accountancy",{"$f":"'rent allocations'!D49*$C$1","v":0},{"$f":"'rent allocations'!E49*$C$1","v":0},{"$f":"'rent allocations'!F49*$C$1","v":0},{"$f":"'rent allocations'!G49*$C$1","v":0},{"$f":"'rent allocations'!H49*$C$1","v":0},{"$f":"'rent allocations'!I49*$C$1","v":0},{"$f":"'rent allocations'!J49*$C$1","v":0},{"$f":"'rent allocations'!K49*$C$1","v":0},{"$f":"'rent allocations'!L49*$C$1","v":0},{"$f":"'rent allocations'!M49*$C$1","v":0},{"$f":"'rent allocations'!N49*$C$1","v":0},{"$f":"'rent allocations'!O49*$C$1","v":0},{"$f":"'rent allocations'!P49*$C$1","v":0},{"$f":"'rent allocations'!Q49*$C$1","v":0},{"$f":"'rent allocations'!R49*$C$1","v":0},{"$f":"'rent allocations'!S49*$C$1","v":0},{"$f":"'rent allocations'!T49*$C$1","v":0},{"$f":"'rent allocations'!U49*$C$1","v":0},{"$f":"'rent allocations'!V49*$C$1","v":0},{"$f":"'rent allocations'!W49*$C$1","v":0},{"$f":"'rent allocations'!X49*$C$1","v":0},{"$f":"'rent allocations'!Y49*$C$1","v":0},{"$f":"'rent allocations'!Z49*$C$1","v":0},{"$f":"'rent allocations'!AA49*$C$1","v":0},{"$f":"'rent allocations'!AB49*$C$1","v":0},{"$f":"'rent allocations'!AC49*$C$1","v":0},{"$f":"'rent allocations'!AD49*$C$1","v":0},{"$f":"'rent allocations'!AE49*$C$1","v":0},{"$f":"'rent allocations'!AF49*$C$1","v":0},{"$f":"'rent allocations'!AG49*$C$1","v":0},{"$f":"'rent allocations'!AH49*$C$1","v":0},{"$f":"'rent allocations'!AI49*$C$1","v":0},{"$f":"'rent allocations'!AJ49*$C$1","v":0},{"$f":"'rent allocations'!AK49*$C$1","v":0},{"$f":"'rent allocations'!AL49*$C$1","v":0}]
["166 - Brd Prof Eng Land Surveyors","166","Brd Prof Eng Land Surveyors",{"$f":"'rent allocations'!D50*$C$1","v":0},{"$f":"'rent allocations'!E50*$C$1","v":0},{"$f":"'rent allocations'!F50*$C$1","v":0},{"$f":"'rent allocations'!G50*$C$1","v":0},{"$f":"'rent allocations'!H50*$C$1","v":0},{"$f":"'rent allocations'!I50*$C$1","v":0},{"$f":"'rent allocations'!J50*$C$1","v":0},{"$f":"'rent allocations'!K50*$C$1","v":0},{"$f":"'rent allocations'!L50*$C$1","v":0},{"$f":"'rent allocations'!M50*$C$1","v":0},{"$f":"'rent allocations'!N50*$C$1","v":0},{"$f":"'rent allocations'!O50*$C$1","v":0},{"$f":"'rent allocations'!P50*$C$1","v":0},{"$f":"'rent allocations'!Q50*$C$1","v":0},{"$f":"'rent allocations'!R50*$C$1","v":0},{"$f":"'rent allocations'!S50*$C$1","v":0},{"$f":"'rent allocations'!T50*$C$1","v":0},{"$f":"'rent allocations'!U50*$C$1","v":0},{"$f":"'rent allocations'!V50*$C$1","v":0},{"$f":"'rent allocations'!W50*$C$1","v":0},{"$f":"'rent allocations'!X50*$C$1","v":0},{"$f":"'rent allocations'!Y50*$C$1","v":0},{"$f":"'rent allocations'!Z50*$C$1","v":0},{"$f":"'rent allocations'!AA50*$C$1","v":0},{"$f":"'rent allocations'!AB50*$C$1","v":0},{"$f":"'rent allocations'!AC50*$C$1","v":0},{"$f":"'rent allocations'!AD50*$C$1","v":0},{"$f":"'rent allocations'!AE50*$C$1","v":0},{"$f":"'rent allocations'!AF50*$C$1","v":0},{"$f":"'rent allocations'!AG50*$C$1","v":0},{"$f":"'rent allocations'!AH50*$C$1","v":0},{"$f":"'rent allocations'!AI50*$C$1","v":0},{"$f":"'rent allocations'!AJ50*$C$1","v":0},{"$f":"'rent allocations'!AK50*$C$1","v":0},{"$f":"'rent allocations'!AL50*$C$1","v":0}]
["167 - Forensic Investigations Council","167","Forensic Investigations Council",{"$f":"'rent allocations'!D51*$C$1","v":0},{"$f":"'rent allocations'!E51*$C$1","v":0},{"$f":"'rent allocations'!F51*$C$1","v":0},{"$f":"'rent allocations'!G51*$C$1","v":0},{"$f":"'rent allocations'!H51*$C$1","v":0},{"$f":"'rent allocations'!I51*$C$1","v":0},{"$f":"'rent allocations'!J51*$C$1","v":0},{"$f":"'rent allocations'!K51*$C$1","v":0},{"$f":"'rent allocations'!L51*$C$1","v":0},{"$f":"'rent allocations'!M51*$C$1","v":0},{"$f":"'rent allocations'!N51*$C$1","v":0},{"$f":"'rent allocations'!O51*$C$1","v":0},{"$f":"'rent allocations'!P51*$C$1","v":0},{"$f":"'rent allocations'!Q51*$C$1","v":0},{"$f":"'rent allocations'!R51*$C$1","v":0},{"$f":"'rent allocations'!S51*$C$1","v":0},{"$f":"'rent allocations'!T51*$C$1","v":0},{"$f":"'rent allocations'!U51*$C$1","v":0},{"$f":"'rent allocations'!V51*$C$1","v":0},{"$f":"'rent allocations'!W51*$C$1","v":0},{"$f":"'rent allocations'!X51*$C$1","v":0},{"$f":"'rent allocations'!Y51*$C$1","v":0},{"$f":"'rent allocations'!Z51*$C$1","v":0},{"$f":"'rent allocations'!AA51*$C$1","v":0},{"$f":"'rent allocations'!AB51*$C$1","v":0},{"$f":"'rent allocations'!AC51*$C$1","v":0},{"$f":"'rent allocations'!AD51*$C$1","v":0},{"$f":"'rent allocations'!AE51*$C$1","v":0},{"$f":"'rent allocations'!AF51*$C$1","v":0},{"$f":"'rent allocations'!AG51*$C$1","v":0},{"$f":"'rent allocations'!AH51*$C$1","v":0},{"$f":"'rent allocations'!AI51*$C$1","v":0},{"$f":"'rent allocations'!AJ51*$C$1","v":0},{"$f":"'rent allocations'!AK51*$C$1","v":0},{"$f":"'rent allocations'!AL51*$C$1","v":0}]
["179 - Department of Enterprise Services","179","Department of Enterprise Services",{"$f":"'rent allocations'!D52*$C$1","v":946174.85876196122},{"$f":"'rent allocations'!E52*$C$1","v":0},{"$f":"'rent allocations'!F52*$C$1","v":0},{"$f":"'rent allocations'!G52*$C$1","v":127862.67785751921},{"$f":"'rent allocations'!H52*$C$1","v":0},{"$f":"'rent allocations'!I52*$C$1","v":0},{"$f":"'rent allocations'!J52*$C$1","v":214891.20001978605},{"$f":"'rent allocations'!K52*$C$1","v":0},{"$f":"'rent allocations'!L52*$C$1","v":0},{"$f":"'rent allocations'!M52*$C$1","v":0},{"$f":"'rent allocations'!N52*$C$1","v":0},{"$f":"'rent allocations'!O52*$C$1","v":0},{"$f":"'rent allocations'!P52*$C$1","v":0},{"$f":"'rent allocations'!Q52*$C$1","v":0},{"$f":"'rent allocations'!R52*$C$1","v":0},{"$f":"'rent allocations'!S52*$C$1","v":482423.41212501371},{"$f":"'rent allocations'!T52*$C$1","v":0},{"$f":"'rent allocations'!U52*$C$1","v":0},{"$f":"'rent allocations'!V52*$C$1","v":0},{"$f":"'rent allocations'!W52*$C$1","v":0},{"$f":"'rent allocations'!X52*$C$1","v":118547.82277647765},{"$f":"'rent allocations'!Y52*$C$1","v":0},{"$f":"'rent allocations'!Z52*$C$1","v":0},{"$f":"'rent allocations'!AA52*$C$1","v":0},{"$f":"'rent allocations'!AB52*$C$1","v":0},{"$f":"'rent allocations'!AC52*$C$1","v":0},{"$f":"'rent allocations'!AD52*$C$1","v":0},{"$f":"'rent allocations'!AE52*$C$1","v":0},{"$f":"'rent allocations'!AF52*$C$1","v":2449.7459831647689},{"$f":"'rent allocations'!AG52*$C$1","v":0},{"$f":"'rent allocations'!AH52*$C$1","v":0},{"$f":"'rent allocations'!AI52*$C$1","v":0},{"$f":"'rent allocations'!AJ52*$C$1","v":0},{"$f":"'rent allocations'!AK52*$C$1","v":0},{"$f":"'rent allocations'!AL52*$C$1","v":0}]
["185 - Horse Racing Commission","185","Horse Racing Commission",{"$f":"'rent allocations'!D53*$C$1","v":0},{"$f":"'rent allocations'!E53*$C$1","v":0},{"$f":"'rent allocations'!F53*$C$1","v":0},{"$f":"'rent allocations'!G53*$C$1","v":0},{"$f":"'rent allocations'!H53*$C$1","v":0},{"$f":"'rent allocations'!I53*$C$1","v":0},{"$f":"'rent allocations'!J53*$C$1","v":0},{"$f":"'rent allocations'!K53*$C$1","v":0},{"$f":"'rent allocations'!L53*$C$1","v":0},{"$f":"'rent allocations'!M53*$C$1","v":0},{"$f":"'rent allocations'!N53*$C$1","v":0},{"$f":"'rent allocations'!O53*$C$1","v":0},{"$f":"'rent allocations'!P53*$C$1","v":0},{"$f":"'rent allocations'!Q53*$C$1","v":0},{"$f":"'rent allocations'!R53*$C$1","v":0},{"$f":"'rent allocations'!S53*$C$1","v":0},{"$f":"'rent allocations'!T53*$C$1","v":0},{"$f":"'rent allocations'!U53*$C$1","v":0},{"$f":"'rent allocations'!V53*$C$1","v":0},{"$f":"'rent allocations'!W53*$C$1","v":0},{"$f":"'rent allocations'!X53*$C$1","v":0},{"$f":"'rent allocations'!Y53*$C$1","v":0},{"$f":"'rent allocations'!Z53*$C$1","v":0},{"$f":"'rent allocations'!AA53*$C$1","v":0},{"$f":"'rent allocations'!AB53*$C$1","v":0},{"$f":"'rent allocations'!AC53*$C$1","v":0},{"$f":"'rent allocations'!AD53*$C$1","v":0},{"$f":"'rent allocations'!AE53*$C$1","v":0},{"$f":"'rent allocations'!AF53*$C$1","v":0},{"$f":"'rent allocations'!AG53*$C$1","v":0},{"$f":"'rent allocations'!AH53*$C$1","v":0},{"$f":"'rent allocations'!AI53*$C$1","v":0},{"$f":"'rent allocations'!AJ53*$C$1","v":0},{"$f":"'rent allocations'!AK53*$C$1","v":0},{"$f":"'rent allocations'!AL53*$C$1","v":0}]
["190 - Board of Industrial Insurance Appeals","190","Board of Industrial Insurance Appeals",{"$f":"'rent allocations'!D54*$C$1","v":0},{"$f":"'rent allocations'!E54*$C$1","v":0},{"$f":"'rent allocations'!F54*$C$1","v":0},{"$f":"'rent allocations'!G54*$C$1","v":0},{"$f":"'rent allocations'!H54*$C$1","v":0},{"$f":"'rent allocations'!I54*$C$1","v":0},{"$f":"'rent allocations'!J54*$C$1","v":0},{"$f":"'rent allocations'!K54*$C$1","v":0},{"$f":"'rent allocations'!L54*$C$1","v":0},{"$f":"'rent allocations'!M54*$C$1","v":0},{"$f":"'rent allocations'!N54*$C$1","v":0},{"$f":"'rent allocations'!O54*$C$1","v":0},{"$f":"'rent allocations'!P54*$C$1","v":0},{"$f":"'rent allocations'!Q54*$C$1","v":0},{"$f":"'rent allocations'!R54*$C$1","v":0},{"$f":"'rent allocations'!S54*$C$1","v":0},{"$f":"'rent allocations'!T54*$C$1","v":0},{"$f":"'rent allocations'!U54*$C$1","v":0},{"$f":"'rent allocations'!V54*$C$1","v":0},{"$f":"'rent allocations'!W54*$C$1","v":0},{"$f":"'rent allocations'!X54*$C$1","v":0},{"$f":"'rent allocations'!Y54*$C$1","v":0},{"$f":"'rent allocations'!Z54*$C$1","v":0},{"$f":"'rent allocations'!AA54*$C$1","v":0},{"$f":"'rent allocations'!AB54*$C$1","v":0},{"$f":"'rent allocations'!AC54*$C$1","v":0},{"$f":"'rent allocations'!AD54*$C$1","v":0},{"$f":"'rent allocations'!AE54*$C$1","v":0},{"$f":"'rent allocations'!AF54*$C$1","v":0},{"$f":"'rent allocations'!AG54*$C$1","v":0},{"$f":"'rent allocations'!AH54*$C$1","v":0},{"$f":"'rent allocations'!AI54*$C$1","v":0},{"$f":"'rent allocations'!AJ54*$C$1","v":0},{"$f":"'rent allocations'!AK54*$C$1","v":0},{"$f":"'rent allocations'!AL54*$C$1","v":0}]
["195 - Liquor Control Board","195","Liquor Control Board",{"$f":"'rent allocations'!D55*$C$1","v":0},{"$f":"'rent allocations'!E55*$C$1","v":0},{"$f":"'rent allocations'!F55*$C$1","v":0},{"$f":"'rent allocations'!G55*$C$1","v":0},{"$f":"'rent allocations'!H55*$C$1","v":0},{"$f":"'rent allocations'!I55*$C$1","v":0},{"$f":"'rent allocations'!J55*$C$1","v":0},{"$f":"'rent allocations'!K55*$C$1","v":0},{"$f":"'rent allocations'!L55*$C$1","v":0},{"$f":"'rent allocations'!M55*$C$1","v":0},{"$f":"'rent allocations'!N55*$C$1","v":0},{"$f":"'rent allocations'!O55*$C$1","v":0},{"$f":"'rent allocations'!P55*$C$1","v":0},{"$f":"'rent allocations'!Q55*$C$1","v":0},{"$f":"'rent allocations'!R55*$C$1","v":0},{"$f":"'rent allocations'!S55*$C$1","v":0},{"$f":"'rent allocations'!T55*$C$1","v":0},{"$f":"'rent allocations'!U55*$C$1","v":0},{"$f":"'rent allocations'!V55*$C$1","v":0},{"$f":"'rent allocations'!W55*$C$1","v":0},{"$f":"'rent allocations'!X55*$C$1","v":0},{"$f":"'rent allocations'!Y55*$C$1","v":0},{"$f":"'rent allocations'!Z55*$C$1","v":0},{"$f":"'rent allocations'!AA55*$C$1","v":0},{"$f":"'rent allocations'!AB55*$C$1","v":0},{"$f":"'rent allocations'!AC55*$C$1","v":0},{"$f":"'rent allocations'!AD55*$C$1","v":0},{"$f":"'rent allocations'!AE55*$C$1","v":0},{"$f":"'rent allocations'!AF55*$C$1","v":0},{"$f":"'rent allocations'!AG55*$C$1","v":0},{"$f":"'rent allocations'!AH55*$C$1","v":0},{"$f":"'rent allocations'!AI55*$C$1","v":0},{"$f":"'rent allocations'!AJ55*$C$1","v":0},{"$f":"'rent allocations'!AK55*$C$1","v":0},{"$f":"'rent allocations'!AL55*$C$1","v":0}]
["205 - Board of Pilotage Commissioners","205","Board of Pilotage Commissioners",{"$f":"'rent allocations'!D56*$C$1","v":0},{"$f":"'rent allocations'!E56*$C$1","v":0},{"$f":"'rent allocations'!F56*$C$1","v":0},{"$f":"'rent allocations'!G56*$C$1","v":0},{"$f":"'rent allocations'!H56*$C$1","v":0},{"$f":"'rent allocations'!I56*$C$1","v":0},{"$f":"'rent allocations'!J56*$C$1","v":0},{"$f":"'rent allocations'!K56*$C$1","v":0},{"$f":"'rent allocations'!L56*$C$1","v":0},{"$f":"'rent allocations'!M56*$C$1","v":0},{"$f":"'rent allocations'!N56*$C$1","v":0},{"$f":"'rent allocations'!O56*$C$1","v":0},{"$f":"'rent allocations'!P56*$C$1","v":0},{"$f":"'rent allocations'!Q56*$C$1","v":0},{"$f":"'rent allocations'!R56*$C$1","v":0},{"$f":"'rent allocations'!S56*$C$1","v":0},{"$f":"'rent allocations'!T56*$C$1","v":0},{"$f":"'rent allocations'!U56*$C$1","v":0},{"$f":"'rent allocations'!V56*$C$1","v":0},{"$f":"'rent allocations'!W56*$C$1","v":0},{"$f":"'rent allocations'!X56*$C$1","v":0},{"$f":"'rent allocations'!Y56*$C$1","v":0},{"$f":"'rent allocations'!Z56*$C$1","v":0},{"$f":"'rent allocations'!AA56*$C$1","v":0},{"$f":"'rent allocations'!AB56*$C$1","v":0},{"$f":"'rent allocations'!AC56*$C$1","v":0},{"$f":"'rent allocations'!AD56*$C$1","v":0},{"$f":"'rent allocations'!AE56*$C$1","v":0},{"$f":"'rent allocations'!AF56*$C$1","v":0},{"$f":"'rent allocations'!AG56*$C$1","v":0},{"$f":"'rent allocations'!AH56*$C$1","v":0},{"$f":"'rent allocations'!AI56*$C$1","v":0},{"$f":"'rent allocations'!AJ56*$C$1","v":0},{"$f":"'rent allocations'!AK56*$C$1","v":0},{"$f":"'rent allocations'!AL56*$C$1","v":0}]
["215 - Utilities and Transportation Commission","215","Utilities and Transportation Commission",{"$f":"'rent allocations'!D57*$C$1","v":0},{"$f":"'rent allocations'!E57*$C$1","v":0},{"$f":"'rent allocations'!F57*$C$1","v":0},{"$f":"'rent allocations'!G57*$C$1","v":0},{"$f":"'rent allocations'!H57*$C$1","v":0},{"$f":"'rent allocations'!I57*$C$1","v":0},{"$f":"'rent allocations'!J57*$C$1","v":0},{"$f":"'rent allocations'!K57*$C$1","v":0},{"$f":"'rent allocations'!L57*$C$1","v":0},{"$f":"'rent allocations'!M57*$C$1","v":0},{"$f":"'rent allocations'!N57*$C$1","v":0},{"$f":"'rent allocations'!O57*$C$1","v":0},{"$f":"'rent allocations'!P57*$C$1","v":0},{"$f":"'rent allocations'!Q57*$C$1","v":0},{"$f":"'rent allocations'!R57*$C$1","v":0},{"$f":"'rent allocations'!S57*$C$1","v":0},{"$f":"'rent allocations'!T57*$C$1","v":0},{"$f":"'rent allocations'!U57*$C$1","v":0},{"$f":"'rent allocations'!V57*$C$1","v":0},{"$f":"'rent allocations'!W57*$C$1","v":0},{"$f":"'rent allocations'!X57*$C$1","v":0},{"$f":"'rent allocations'!Y57*$C$1","v":0},{"$f":"'rent allocations'!Z57*$C$1","v":0},{"$f":"'rent allocations'!AA57*$C$1","v":0},{"$f":"'rent allocations'!AB57*$C$1","v":0},{"$f":"'rent allocations'!AC57*$C$1","v":0},{"$f":"'rent allocations'!AD57*$C$1","v":0},{"$f":"'rent allocations'!AE57*$C$1","v":0},{"$f":"'rent allocations'!AF57*$C$1","v":0},{"$f":"'rent allocations'!AG57*$C$1","v":0},{"$f":"'rent allocations'!AH57*$C$1","v":0},{"$f":"'rent allocations'!AI57*$C$1","v":0},{"$f":"'rent allocations'!AJ57*$C$1","v":0},{"$f":"'rent allocations'!AK57*$C$1","v":0},{"$f":"'rent allocations'!AL57*$C$1","v":0}]
["220 - Board for Volunteer Firefighters and Reserve Officers","220","Board for Volunteer Firefighters and Reserve Officers",{"$f":"'rent allocations'!D58*$C$1","v":0},{"$f":"'rent allocations'!E58*$C$1","v":0},{"$f":"'rent allocations'!F58*$C$1","v":0},{"$f":"'rent allocations'!G58*$C$1","v":0},{"$f":"'rent allocations'!H58*$C$1","v":0},{"$f":"'rent allocations'!I58*$C$1","v":0},{"$f":"'rent allocations'!J58*$C$1","v":0},{"$f":"'rent allocations'!K58*$C$1","v":0},{"$f":"'rent allocations'!L58*$C$1","v":0},{"$f":"'rent allocations'!M58*$C$1","v":0},{"$f":"'rent allocations'!N58*$C$1","v":0},{"$f":"'rent allocations'!O58*$C$1","v":0},{"$f":"'rent allocations'!P58*$C$1","v":0},{"$f":"'rent allocations'!Q58*$C$1","v":0},{"$f":"'rent allocations'!R58*$C$1","v":0},{"$f":"'rent allocations'!S58*$C$1","v":0},{"$f":"'rent allocations'!T58*$C$1","v":0},{"$f":"'rent allocations'!U58*$C$1","v":0},{"$f":"'rent allocations'!V58*$C$1","v":0},{"$f":"'rent allocations'!W58*$C$1","v":0},{"$f":"'rent allocations'!X58*$C$1","v":0},{"$f":"'rent allocations'!Y58*$C$1","v":0},{"$f":"'rent allocations'!Z58*$C$1","v":0},{"$f":"'rent allocations'!AA58*$C$1","v":0},{"$f":"'rent allocations'!AB58*$C$1","v":0},{"$f":"'rent allocations'!AC58*$C$1","v":0},{"$f":"'rent allocations'!AD58*$C$1","v":0},{"$f":"'rent allocations'!AE58*$C$1","v":0},{"$f":"'rent allocations'!AF58*$C$1","v":0},{"$f":"'rent allocations'!AG58*$C$1","v":0},{"$f":"'rent allocations'!AH58*$C$1","v":0},{"$f":"'rent allocations'!AI58*$C$1","v":0},{"$f":"'rent allocations'!AJ58*$C$1","v":0},{"$f":"'rent allocations'!AK58*$C$1","v":0},{"$f":"'rent allocations'!AL58*$C$1","v":0}]
["225 - Washington State Patrol","225","Washington State Patrol",{"$f":"'rent allocations'!D59*$C$1","v":1131587.839776143},{"$f":"'rent allocations'!E59*$C$1","v":0},{"$f":"'rent allocations'!F59*$C$1","v":0},{"$f":"'rent allocations'!G59*$C$1","v":9612.345306622814},{"$f":"'rent allocations'!H59*$C$1","v":0},{"$f":"'rent allocations'!I59*$C$1","v":0},{"$f":"'rent allocations'!J59*$C$1","v":0},{"$f":"'rent allocations'!K59*$C$1","v":0},{"$f":"'rent allocations'!L59*$C$1","v":0},{"$f":"'rent allocations'!M59*$C$1","v":0},{"$f":"'rent allocations'!N59*$C$1","v":0},{"$f":"'rent allocations'!O59*$C$1","v":0},{"$f":"'rent allocations'!P59*$C$1","v":0},{"$f":"'rent allocations'!Q59*$C$1","v":0},{"$f":"'rent allocations'!R59*$C$1","v":0},{"$f":"'rent allocations'!S59*$C$1","v":0},{"$f":"'rent allocations'!T59*$C$1","v":0},{"$f":"'rent allocations'!U59*$C$1","v":0},{"$f":"'rent allocations'!V59*$C$1","v":0},{"$f":"'rent allocations'!W59*$C$1","v":0},{"$f":"'rent allocations'!X59*$C$1","v":0},{"$f":"'rent allocations'!Y59*$C$1","v":0},{"$f":"'rent allocations'!Z59*$C$1","v":0},{"$f":"'rent allocations'!AA59*$C$1","v":0},{"$f":"'rent allocations'!AB59*$C$1","v":0},{"$f":"'rent allocations'!AC59*$C$1","v":0},{"$f":"'rent allocations'!AD59*$C$1","v":0},{"$f":"'rent allocations'!AE59*$C$1","v":0},{"$f":"'rent allocations'!AF59*$C$1","v":1121975.4944695202},{"$f":"'rent allocations'!AG59*$C$1","v":0},{"$f":"'rent allocations'!AH59*$C$1","v":0},{"$f":"'rent allocations'!AI59*$C$1","v":0},{"$f":"'rent allocations'!AJ59*$C$1","v":0},{"$f":"'rent allocations'!AK59*$C$1","v":0},{"$f":"'rent allocations'!AL59*$C$1","v":0}]
["227 - Criminal Justice Training Commission","227","Criminal Justice Training Commission",{"$f":"'rent allocations'!D60*$C$1","v":0},{"$f":"'rent allocations'!E60*$C$1","v":0},{"$f":"'rent allocations'!F60*$C$1","v":0},{"$f":"'rent allocations'!G60*$C$1","v":0},{"$f":"'rent allocations'!H60*$C$1","v":0},{"$f":"'rent allocations'!I60*$C$1","v":0},{"$f":"'rent allocations'!J60*$C$1","v":0},{"$f":"'rent allocations'!K60*$C$1","v":0},{"$f":"'rent allocations'!L60*$C$1","v":0},{"$f":"'rent allocations'!M60*$C$1","v":0},{"$f":"'rent allocations'!N60*$C$1","v":0},{"$f":"'rent allocations'!O60*$C$1","v":0},{"$f":"'rent allocations'!P60*$C$1","v":0},{"$f":"'rent allocations'!Q60*$C$1","v":0},{"$f":"'rent allocations'!R60*$C$1","v":0},{"$f":"'rent allocations'!S60*$C$1","v":0},{"$f":"'rent allocations'!T60*$C$1","v":0},{"$f":"'rent allocations'!U60*$C$1","v":0},{"$f":"'rent allocations'!V60*$C$1","v":0},{"$f":"'rent allocations'!W60*$C$1","v":0},{"$f":"'rent allocations'!X60*$C$1","v":0},{"$f":"'rent allocations'!Y60*$C$1","v":0},{"$f":"'rent allocations'!Z60*$C$1","v":0},{"$f":"'rent allocations'!AA60*$C$1","v":0},{"$f":"'rent allocations'!AB60*$C$1","v":0},{"$f":"'rent allocations'!AC60*$C$1","v":0},{"$f":"'rent allocations'!AD60*$C$1","v":0},{"$f":"'rent allocations'!AE60*$C$1","v":0},{"$f":"'rent allocations'!AF60*$C$1","v":0},{"$f":"'rent allocations'!AG60*$C$1","v":0},{"$f":"'rent allocations'!AH60*$C$1","v":0},{"$f":"'rent allocations'!AI60*$C$1","v":0},{"$f":"'rent allocations'!AJ60*$C$1","v":0},{"$f":"'rent allocations'!AK60*$C$1","v":0},{"$f":"'rent allocations'!AL60*$C$1","v":0}]
["228 - Traffic Safety Commission","228","Traffic Safety Commission",{"$f":"'rent allocations'!D61*$C$1","v":0},{"$f":"'rent allocations'!E61*$C$1","v":0},{"$f":"'rent allocations'!F61*$C$1","v":0},{"$f":"'rent allocations'!G61*$C$1","v":0},{"$f":"'rent allocations'!H61*$C$1","v":0},{"$f":"'rent allocations'!I61*$C$1","v":0},{"$f":"'rent allocations'!J61*$C$1","v":0},{"$f":"'rent allocations'!K61*$C$1","v":0},{"$f":"'rent allocations'!L61*$C$1","v":0},{"$f":"'rent allocations'!M61*$C$1","v":0},{"$f":"'rent allocations'!N61*$C$1","v":0},{"$f":"'rent allocations'!O61*$C$1","v":0},{"$f":"'rent allocations'!P61*$C$1","v":0},{"$f":"'rent allocations'!Q61*$C$1","v":0},{"$f":"'rent allocations'!R61*$C$1","v":0},{"$f":"'rent allocations'!S61*$C$1","v":0},{"$f":"'rent allocations'!T61*$C$1","v":0},{"$f":"'rent allocations'!U61*$C$1","v":0},{"$f":"'rent allocations'!V61*$C$1","v":0},{"$f":"'rent allocations'!W61*$C$1","v":0},{"$f":"'rent allocations'!X61*$C$1","v":0},{"$f":"'rent allocations'!Y61*$C$1","v":0},{"$f":"'rent allocations'!Z61*$C$1","v":0},{"$f":"'rent allocations'!AA61*$C$1","v":0},{"$f":"'rent allocations'!AB61*$C$1","v":0},{"$f":"'rent allocations'!AC61*$C$1","v":0},{"$f":"'rent allocations'!AD61*$C$1","v":0},{"$f":"'rent allocations'!AE61*$C$1","v":0},{"$f":"'rent allocations'!AF61*$C$1","v":0},{"$f":"'rent allocations'!AG61*$C$1","v":0},{"$f":"'rent allocations'!AH61*$C$1","v":0},{"$f":"'rent allocations'!AI61*$C$1","v":0},{"$f":"'rent allocations'!AJ61*$C$1","v":0},{"$f":"'rent allocations'!AK61*$C$1","v":0},{"$f":"'rent allocations'!AL61*$C$1","v":0}]
["235 - Department of Labor and Industries","235","Department of Labor and Industries",{"$f":"'rent allocations'!D62*$C$1","v":732534.09904783627},{"$f":"'rent allocations'!E62*$C$1","v":0},{"$f":"'rent allocations'!F62*$C$1","v":0},{"$f":"'rent allocations'!G62*$C$1","v":0},{"$f":"'rent allocations'!H62*$C$1","v":0},{"$f":"'rent allocations'!I62*$C$1","v":0},{"$f":"'rent allocations'!J62*$C$1","v":0},{"$f":"'rent allocations'!K62*$C$1","v":0},{"$f":"'rent allocations'!L62*$C$1","v":0},{"$f":"'rent allocations'!M62*$C$1","v":0},{"$f":"'rent allocations'!N62*$C$1","v":0},{"$f":"'rent allocations'!O62*$C$1","v":0},{"$f":"'rent allocations'!P62*$C$1","v":0},{"$f":"'rent allocations'!Q62*$C$1","v":0},{"$f":"'rent allocations'!R62*$C$1","v":0},{"$f":"'rent allocations'!S62*$C$1","v":0},{"$f":"'rent allocations'!T62*$C$1","v":0},{"$f":"'rent allocations'!U62*$C$1","v":0},{"$f":"'rent allocations'!V62*$C$1","v":0},{"$f":"'rent allocations'!W62*$C$1","v":0},{"$f":"'rent allocations'!X62*$C$1","v":0},{"$f":"'rent allocations'!Y62*$C$1","v":0},{"$f":"'rent allocations'!Z62*$C$1","v":0},{"$f":"'rent allocations'!AA62*$C$1","v":0},{"$f":"'rent allocations'!AB62*$C$1","v":0},{"$f":"'rent allocations'!AC62*$C$1","v":0},{"$f":"'rent allocations'!AD62*$C$1","v":0},{"$f":"'rent allocations'!AE62*$C$1","v":0},{"$f":"'rent allocations'!AF62*$C$1","v":0},{"$f":"'rent allocations'!AG62*$C$1","v":189326.80602007874},{"$f":"'rent allocations'!AH62*$C$1","v":0},{"$f":"'rent allocations'!AI62*$C$1","v":0},{"$f":"'rent allocations'!AJ62*$C$1","v":543207.29302775743},{"$f":"'rent allocations'!AK62*$C$1","v":0},{"$f":"'rent allocations'!AL62*$C$1","v":0}]
["240 - Department of Licensing","240","Department of Licensing",{"$f":"'rent allocations'!D63*$C$1","v":1107604.3586192641},{"$f":"'rent allocations'!E63*$C$1","v":0},{"$f":"'rent allocations'!F63*$C$1","v":0},{"$f":"'rent allocations'!G63*$C$1","v":0},{"$f":"'rent allocations'!H63*$C$1","v":0},{"$f":"'rent allocations'!I63*$C$1","v":1107604.3586192641},{"$f":"'rent allocations'!J63*$C$1","v":0},{"$f":"'rent allocations'!K63*$C$1","v":0},{"$f":"'rent allocations'!L63*$C$1","v":0},{"$f":"'rent allocations'!M63*$C$1","v":0},{"$f":"'rent allocations'!N63*$C$1","v":0},{"$f":"'rent allocations'!O63*$C$1","v":0},{"$f":"'rent allocations'!P63*$C$1","v":0},{"$f":"'rent allocations'!Q63*$C$1","v":0},{"$f":"'rent allocations'!R63*$C$1","v":0},{"$f":"'rent allocations'!S63*$C$1","v":0},{"$f":"'rent allocations'!T63*$C$1","v":0},{"$f":"'rent allocations'!U63*$C$1","v":0},{"$f":"'rent allocations'!V63*$C$1","v":0},{"$f":"'rent allocations'!W63*$C$1","v":0},{"$f":"'rent allocations'!X63*$C$1","v":0},{"$f":"'rent allocations'!Y63*$C$1","v":0},{"$f":"'rent allocations'!Z63*$C$1","v":0},{"$f":"'rent allocations'!AA63*$C$1","v":0},{"$f":"'rent allocations'!AB63*$C$1","v":0},{"$f":"'rent allocations'!AC63*$C$1","v":0},{"$f":"'rent allocations'!AD63*$C$1","v":0},{"$f":"'rent allocations'!AE63*$C$1","v":0},{"$f":"'rent allocations'!AF63*$C$1","v":0},{"$f":"'rent allocations'!AG63*$C$1","v":0},{"$f":"'rent allocations'!AH63*$C$1","v":0},{"$f":"'rent allocations'!AI63*$C$1","v":0},{"$f":"'rent allocations'!AJ63*$C$1","v":0},{"$f":"'rent allocations'!AK63*$C$1","v":0},{"$f":"'rent allocations'!AL63*$C$1","v":0}]
["245 - Military Department","245","Military Department",{"$f":"'rent allocations'!D64*$C$1","v":0},{"$f":"'rent allocations'!E64*$C$1","v":0},{"$f":"'rent allocations'!F64*$C$1","v":0},{"$f":"'rent allocations'!G64*$C$1","v":0},{"$f":"'rent allocations'!H64*$C$1","v":0},{"$f":"'rent allocations'!I64*$C$1","v":0},{"$f":"'rent allocations'!J64*$C$1","v":0},{"$f":"'rent allocations'!K64*$C$1","v":0},{"$f":"'rent allocations'!L64*$C$1","v":0},{"$f":"'rent allocations'!M64*$C$1","v":0},{"$f":"'rent allocations'!N64*$C$1","v":0},{"$f":"'rent allocations'!O64*$C$1","v":0},{"$f":"'rent allocations'!P64*$C$1","v":0},{"$f":"'rent allocations'!Q64*$C$1","v":0},{"$f":"'rent allocations'!R64*$C$1","v":0},{"$f":"'rent allocations'!S64*$C$1","v":0},{"$f":"'rent allocations'!T64*$C$1","v":0},{"$f":"'rent allocations'!U64*$C$1","v":0},{"$f":"'rent allocations'!V64*$C$1","v":0},{"$f":"'rent allocations'!W64*$C$1","v":0},{"$f":"'rent allocations'!X64*$C$1","v":0},{"$f":"'rent allocations'!Y64*$C$1","v":0},{"$f":"'rent allocations'!Z64*$C$1","v":0},{"$f":"'rent allocations'!AA64*$C$1","v":0},{"$f":"'rent allocations'!AB64*$C$1","v":0},{"$f":"'rent allocations'!AC64*$C$1","v":0},{"$f":"'rent allocations'!AD64*$C$1","v":0},{"$f":"'rent allocations'!AE64*$C$1","v":0},{"$f":"'rent allocations'!AF64*$C$1","v":0},{"$f":"'rent allocations'!AG64*$C$1","v":0},{"$f":"'rent allocations'!AH64*$C$1","v":0},{"$f":"'rent allocations'!AI64*$C$1","v":0},{"$f":"'rent allocations'!AJ64*$C$1","v":0},{"$f":"'rent allocations'!AK64*$C$1","v":0},{"$f":"'rent allocations'!AL64*$C$1","v":0}]
["275 - Public Employment Relations Commission","275","Public Employment Relations Commission",{"$f":"'rent allocations'!D65*$C$1","v":0},{"$f":"'rent allocations'!E65*$C$1","v":0},{"$f":"'rent allocations'!F65*$C$1","v":0},{"$f":"'rent allocations'!G65*$C$1","v":0},{"$f":"'rent allocations'!H65*$C$1","v":0},{"$f":"'rent allocations'!I65*$C$1","v":0},{"$f":"'rent allocations'!J65*$C$1","v":0},{"$f":"'rent allocations'!K65*$C$1","v":0},{"$f":"'rent allocations'!L65*$C$1","v":0},{"$f":"'rent allocations'!M65*$C$1","v":0},{"$f":"'rent allocations'!N65*$C$1","v":0},{"$f":"'rent allocations'!O65*$C$1","v":0},{"$f":"'rent allocations'!P65*$C$1","v":0},{"$f":"'rent allocations'!Q65*$C$1","v":0},{"$f":"'rent allocations'!R65*$C$1","v":0},{"$f":"'rent allocations'!S65*$C$1","v":0},{"$f":"'rent allocations'!T65*$C$1","v":0},{"$f":"'rent allocations'!U65*$C$1","v":0},{"$f":"'rent allocations'!V65*$C$1","v":0},{"$f":"'rent allocations'!W65*$C$1","v":0},{"$f":"'rent allocations'!X65*$C$1","v":0},{"$f":"'rent allocations'!Y65*$C$1","v":0},{"$f":"'rent allocations'!Z65*$C$1","v":0},{"$f":"'rent allocations'!AA65*$C$1","v":0},{"$f":"'rent allocations'!AB65*$C$1","v":0},{"$f":"'rent allocations'!AC65*$C$1","v":0},{"$f":"'rent allocations'!AD65*$C$1","v":0},{"$f":"'rent allocations'!AE65*$C$1","v":0},{"$f":"'rent allocations'!AF65*$C$1","v":0},{"$f":"'rent allocations'!AG65*$C$1","v":0},{"$f":"'rent allocations'!AH65*$C$1","v":0},{"$f":"'rent allocations'!AI65*$C$1","v":0},{"$f":"'rent allocations'!AJ65*$C$1","v":0},{"$f":"'rent allocations'!AK65*$C$1","v":0},{"$f":"'rent allocations'!AL65*$C$1","v":0}]
["300 - Department of Social and Health Services","300","Department of Social and Health Services",{"$f":"'rent allocations'!D66*$C$1","v":3456753.2834570585},{"$f":"'rent allocations'!E66*$C$1","v":0},{"$f":"'rent allocations'!F66*$C$1","v":0},{"$f":"'rent allocations'!G66*$C$1","v":0},{"$f":"'rent allocations'!H66*$C$1","v":0},{"$f":"'rent allocations'!I66*$C$1","v":0},{"$f":"'rent allocations'!J66*$C$1","v":1708568.3004235097},{"$f":"'rent allocations'!K66*$C$1","v":0},{"$f":"'rent allocations'!L66*$C$1","v":0},{"$f":"'rent allocations'!M66*$C$1","v":0},{"$f":"'rent allocations'!N66*$C$1","v":0},{"$f":"'rent allocations'!O66*$C$1","v":0},{"$f":"'rent allocations'!P66*$C$1","v":0},{"$f":"'rent allocations'!Q66*$C$1","v":0},{"$f":"'rent allocations'!R66*$C$1","v":0},{"$f":"'rent allocations'!S66*$C$1","v":0},{"$f":"'rent allocations'!T66*$C$1","v":0},{"$f":"'rent allocations'!U66*$C$1","v":0},{"$f":"'rent allocations'!V66*$C$1","v":0},{"$f":"'rent allocations'!W66*$C$1","v":0},{"$f":"'rent allocations'!X66*$C$1","v":0},{"$f":"'rent allocations'!Y66*$C$1","v":0},{"$f":"'rent allocations'!Z66*$C$1","v":0},{"$f":"'rent allocations'!AA66*$C$1","v":0},{"$f":"'rent allocations'!AB66*$C$1","v":0},{"$f":"'rent allocations'!AC66*$C$1","v":0},{"$f":"'rent allocations'!AD66*$C$1","v":0},{"$f":"'rent allocations'!AE66*$C$1","v":0},{"$f":"'rent allocations'!AF66*$C$1","v":0},{"$f":"'rent allocations'!AG66*$C$1","v":531886.72879863449},{"$f":"'rent allocations'!AH66*$C$1","v":1216298.2542349144},{"$f":"'rent allocations'!AI66*$C$1","v":0},{"$f":"'rent allocations'!AJ66*$C$1","v":0},{"$f":"'rent allocations'!AK66*$C$1","v":0},{"$f":"'rent allocations'!AL66*$C$1","v":0}]
["303 - Department of Health","303","Department of Health",{"$f":"'rent allocations'!D67*$C$1","v":0},{"$f":"'rent allocations'!E67*$C$1","v":0},{"$f":"'rent allocations'!F67*$C$1","v":0},{"$f":"'rent allocations'!G67*$C$1","v":0},{"$f":"'rent allocations'!H67*$C$1","v":0},{"$f":"'rent allocations'!I67*$C$1","v":0},{"$f":"'rent allocations'!J67*$C$1","v":0},{"$f":"'rent allocations'!K67*$C$1","v":0},{"$f":"'rent allocations'!L67*$C$1","v":0},{"$f":"'rent allocations'!M67*$C$1","v":0},{"$f":"'rent allocations'!N67*$C$1","v":0},{"$f":"'rent allocations'!O67*$C$1","v":0},{"$f":"'rent allocations'!P67*$C$1","v":0},{"$f":"'rent allocations'!Q67*$C$1","v":0},{"$f":"'rent allocations'!R67*$C$1","v":0},{"$f":"'rent allocations'!S67*$C$1","v":0},{"$f":"'rent allocations'!T67*$C$1","v":0},{"$f":"'rent allocations'!U67*$C$1","v":0},{"$f":"'rent allocations'!V67*$C$1","v":0},{"$f":"'rent allocations'!W67*$C$1","v":0},{"$f":"'rent allocations'!X67*$C$1","v":0},{"$f":"'rent allocations'!Y67*$C$1","v":0},{"$f":"'rent allocations'!Z67*$C$1","v":0},{"$f":"'rent allocations'!AA67*$C$1","v":0},{"$f":"'rent allocations'!AB67*$C$1","v":0},{"$f":"'rent allocations'!AC67*$C$1","v":0},{"$f":"'rent allocations'!AD67*$C$1","v":0},{"$f":"'rent allocations'!AE67*$C$1","v":0},{"$f":"'rent allocations'!AF67*$C$1","v":0},{"$f":"'rent allocations'!AG67*$C$1","v":0},{"$f":"'rent allocations'!AH67*$C$1","v":0},{"$f":"'rent allocations'!AI67*$C$1","v":0},{"$f":"'rent allocations'!AJ67*$C$1","v":0},{"$f":"'rent allocations'!AK67*$C$1","v":0},{"$f":"'rent allocations'!AL67*$C$1","v":0}]
["305 - Department of Veterans Affairs","305","Department of Veterans Affairs",{"$f":"'rent allocations'!D68*$C$1","v":0},{"$f":"'rent allocations'!E68*$C$1","v":0},{"$f":"'rent allocations'!F68*$C$1","v":0},{"$f":"'rent allocations'!G68*$C$1","v":0},{"$f":"'rent allocations'!H68*$C$1","v":0},{"$f":"'rent allocations'!I68*$C$1","v":0},{"$f":"'rent allocations'!J68*$C$1","v":0},{"$f":"'rent allocations'!K68*$C$1","v":0},{"$f":"'rent allocations'!L68*$C$1","v":0},{"$f":"'rent allocations'!M68*$C$1","v":0},{"$f":"'rent allocations'!N68*$C$1","v":0},{"$f":"'rent allocations'!O68*$C$1","v":0},{"$f":"'rent allocations'!P68*$C$1","v":0},{"$f":"'rent allocations'!Q68*$C$1","v":0},{"$f":"'rent allocations'!R68*$C$1","v":0},{"$f":"'rent allocations'!S68*$C$1","v":0},{"$f":"'rent allocations'!T68*$C$1","v":0},{"$f":"'rent allocations'!U68*$C$1","v":0},{"$f":"'rent allocations'!V68*$C$1","v":0},{"$f":"'rent allocations'!W68*$C$1","v":0},{"$f":"'rent allocations'!X68*$C$1","v":0},{"$f":"'rent allocations'!Y68*$C$1","v":0},{"$f":"'rent allocations'!Z68*$C$1","v":0},{"$f":"'rent allocations'!AA68*$C$1","v":0},{"$f":"'rent allocations'!AB68*$C$1","v":0},{"$f":"'rent allocations'!AC68*$C$1","v":0},{"$f":"'rent allocations'!AD68*$C$1","v":0},{"$f":"'rent allocations'!AE68*$C$1","v":0},{"$f":"'rent allocations'!AF68*$C$1","v":0},{"$f":"'rent allocations'!AG68*$C$1","v":0},{"$f":"'rent allocations'!AH68*$C$1","v":0},{"$f":"'rent allocations'!AI68*$C$1","v":0},{"$f":"'rent allocations'!AJ68*$C$1","v":0},{"$f":"'rent allocations'!AK68*$C$1","v":0},{"$f":"'rent allocations'!AL68*$C$1","v":0}]
[{"$f":"CONCATENATE(B69,\" - \",C69)","v":"307 - DCYF"},"307","DCYF",{"$f":"'rent allocations'!D69*$C$1","v":1605294.4420842142},{"$f":"'rent allocations'!E69*$C$1","v":0},{"$f":"'rent allocations'!F69*$C$1","v":0},{"$f":"'rent allocations'!G69*$C$1","v":0},{"$f":"'rent allocations'!H69*$C$1","v":0},{"$f":"'rent allocations'!I69*$C$1","v":0},{"$f":"'rent allocations'!J69*$C$1","v":699588.12144862034},{"$f":"'rent allocations'!K69*$C$1","v":0},{"$f":"'rent allocations'!L69*$C$1","v":0},{"$f":"'rent allocations'!M69*$C$1","v":0},{"$f":"'rent allocations'!N69*$C$1","v":0},{"$f":"'rent allocations'!O69*$C$1","v":0},{"$f":"'rent allocations'!P69*$C$1","v":0},{"$f":"'rent allocations'!Q69*$C$1","v":0},{"$f":"'rent allocations'!R69*$C$1","v":0},{"$f":"'rent allocations'!S69*$C$1","v":0},{"$f":"'rent allocations'!T69*$C$1","v":0},{"$f":"'rent allocations'!U69*$C$1","v":0},{"$f":"'rent allocations'!V69*$C$1","v":0},{"$f":"'rent allocations'!W69*$C$1","v":0},{"$f":"'rent allocations'!X69*$C$1","v":0},{"$f":"'rent allocations'!Y69*$C$1","v":0},{"$f":"'rent allocations'!Z69*$C$1","v":0},{"$f":"'rent allocations'!AA69*$C$1","v":0},{"$f":"'rent allocations'!AB69*$C$1","v":0},{"$f":"'rent allocations'!AC69*$C$1","v":0},{"$f":"'rent allocations'!AD69*$C$1","v":0},{"$f":"'rent allocations'!AE69*$C$1","v":0},{"$f":"'rent allocations'!AF69*$C$1","v":0},{"$f":"'rent allocations'!AG69*$C$1","v":389859.52877737227},{"$f":"'rent allocations'!AH69*$C$1","v":515846.79185822152},{"$f":"'rent allocations'!AI69*$C$1","v":0},{"$f":"'rent allocations'!AJ69*$C$1","v":0},{"$f":"'rent allocations'!AK69*$C$1","v":0},{"$f":"'rent allocations'!AL69*$C$1","v":0}]
["310 - Department of Corrections","310","Department of Corrections",{"$f":"'rent allocations'!D70*$C$1","v":0},{"$f":"'rent allocations'!E70*$C$1","v":0},{"$f":"'rent allocations'!F70*$C$1","v":0},{"$f":"'rent allocations'!G70*$C$1","v":0},{"$f":"'rent allocations'!H70*$C$1","v":0},{"$f":"'rent allocations'!I70*$C$1","v":0},{"$f":"'rent allocations'!J70*$C$1","v":0},{"$f":"'rent allocations'!K70*$C$1","v":0},{"$f":"'rent allocations'!L70*$C$1","v":0},{"$f":"'rent allocations'!M70*$C$1","v":0},{"$f":"'rent allocations'!N70*$C$1","v":0},{"$f":"'rent allocations'!O70*$C$1","v":0},{"$f":"'rent allocations'!P70*$C$1","v":0},{"$f":"'rent allocations'!Q70*$C$1","v":0},{"$f":"'rent allocations'!R70*$C$1","v":0},{"$f":"'rent allocations'!S70*$C$1","v":0},{"$f":"'rent allocations'!T70*$C$1","v":0},{"$f":"'rent allocations'!U70*$C$1","v":0},{"$f":"'rent allocations'!V70*$C$1","v":0},{"$f":"'rent allocations'!W70*$C$1","v":0},{"$f":"'rent allocations'!X70*$C$1","v":0},{"$f":"'rent allocations'!Y70*$C$1","v":0},{"$f":"'rent allocations'!Z70*$C$1","v":0},{"$f":"'rent allocations'!AA70*$C$1","v":0},{"$f":"'rent allocations'!AB70*$C$1","v":0},{"$f":"'rent allocations'!AC70*$C$1","v":0},{"$f":"'rent allocations'!AD70*$C$1","v":0},{"$f":"'rent allocations'!AE70*$C$1","v":0},{"$f":"'rent allocations'!AF70*$C$1","v":0},{"$f":"'rent allocations'!AG70*$C$1","v":0},{"$f":"'rent allocations'!AH70*$C$1","v":0},{"$f":"'rent allocations'!AI70*$C$1","v":0},{"$f":"'rent allocations'!AJ70*$C$1","v":0},{"$f":"'rent allocations'!AK70*$C$1","v":0},{"$f":"'rent allocations'!AL70*$C$1","v":0}]
["315 - Department of Services for the Blind","315","Department of Services for the Blind",{"$f":"'rent allocations'!D71*$C$1","v":233494.10932940769},{"$f":"'rent allocations'!E71*$C$1","v":0},{"$f":"'rent allocations'!F71*$C$1","v":0},{"$f":"'rent allocations'!G71*$C$1","v":10924.800146565543},{"$f":"'rent allocations'!H71*$C$1","v":0},{"$f":"'rent allocations'!I71*$C$1","v":9229.9477086579554},{"$f":"'rent allocations'!J71*$C$1","v":27224.212957253781},{"$f":"'rent allocations'!K71*$C$1","v":0},{"$f":"'rent allocations'!L71*$C$1","v":23990.46683256223},{"$f":"'rent allocations'!M71*$C$1","v":0},{"$f":"'rent allocations'!N71*$C$1","v":13152.933945039465},{"$f":"'rent allocations'!O71*$C$1","v":0},{"$f":"'rent allocations'!P71*$C$1","v":0},{"$f":"'rent allocations'!Q71*$C$1","v":0},{"$f":"'rent allocations'!R71*$C$1","v":0},{"$f":"'rent allocations'!S71*$C$1","v":0},{"$f":"'rent allocations'!T71*$C$1","v":0},{"$f":"'rent allocations'!U71*$C$1","v":0},{"$f":"'rent allocations'!V71*$C$1","v":0},{"$f":"'rent allocations'!W71*$C$1","v":0},{"$f":"'rent allocations'!X71*$C$1","v":0},{"$f":"'rent allocations'!Y71*$C$1","v":0},{"$f":"'rent allocations'!Z71*$C$1","v":0},{"$f":"'rent allocations'!AA71*$C$1","v":0},{"$f":"'rent allocations'!AB71*$C$1","v":0},{"$f":"'rent allocations'!AC71*$C$1","v":0},{"$f":"'rent allocations'!AD71*$C$1","v":0},{"$f":"'rent allocations'!AE71*$C$1","v":0},{"$f":"'rent allocations'!AF71*$C$1","v":0},{"$f":"'rent allocations'!AG71*$C$1","v":0},{"$f":"'rent allocations'!AH71*$C$1","v":0},{"$f":"'rent allocations'!AI71*$C$1","v":97327.22813702545},{"$f":"'rent allocations'!AJ71*$C$1","v":51644.519602303248},{"$f":"'rent allocations'!AK71*$C$1","v":0},{"$f":"'rent allocations'!AL71*$C$1","v":0}]
["340 - Student Achievement Council","340","Student Achievement Council",{"$f":"'rent allocations'!D72*$C$1","v":0},{"$f":"'rent allocations'!E72*$C$1","v":0},{"$f":"'rent allocations'!F72*$C$1","v":0},{"$f":"'rent allocations'!G72*$C$1","v":0},{"$f":"'rent allocations'!H72*$C$1","v":0},{"$f":"'rent allocations'!I72*$C$1","v":0},{"$f":"'rent allocations'!J72*$C$1","v":0},{"$f":"'rent allocations'!K72*$C$1","v":0},{"$f":"'rent allocations'!L72*$C$1","v":0},{"$f":"'rent allocations'!M72*$C$1","v":0},{"$f":"'rent allocations'!N72*$C$1","v":0},{"$f":"'rent allocations'!O72*$C$1","v":0},{"$f":"'rent allocations'!P72*$C$1","v":0},{"$f":"'rent allocations'!Q72*$C$1","v":0},{"$f":"'rent allocations'!R72*$C$1","v":0},{"$f":"'rent allocations'!S72*$C$1","v":0},{"$f":"'rent allocations'!T72*$C$1","v":0},{"$f":"'rent allocations'!U72*$C$1","v":0},{"$f":"'rent allocations'!V72*$C$1","v":0},{"$f":"'rent allocations'!W72*$C$1","v":0},{"$f":"'rent allocations'!X72*$C$1","v":0},{"$f":"'rent allocations'!Y72*$C$1","v":0},{"$f":"'rent allocations'!Z72*$C$1","v":0},{"$f":"'rent allocations'!AA72*$C$1","v":0},{"$f":"'rent allocations'!AB72*$C$1","v":0},{"$f":"'rent allocations'!AC72*$C$1","v":0},{"$f":"'rent allocations'!AD72*$C$1","v":0},{"$f":"'rent allocations'!AE72*$C$1","v":0},{"$f":"'rent allocations'!AF72*$C$1","v":0},{"$f":"'rent allocations'!AG72*$C$1","v":0},{"$f":"'rent allocations'!AH72*$C$1","v":0},{"$f":"'rent allocations'!AI72*$C$1","v":0},{"$f":"'rent allocations'!AJ72*$C$1","v":0},{"$f":"'rent allocations'!AK72*$C$1","v":0},{"$f":"'rent allocations'!AL72*$C$1","v":0}]
["341 - Law Enforcement Officers' & Fire Fighters' Plan 2 Retirement Board","341","Law Enforcement Officers' & Fire Fighters' Plan 2 Retirement Board",{"$f":"'rent allocations'!D73*$C$1","v":0},{"$f":"'rent allocations'!E73*$C$1","v":0},{"$f":"'rent allocations'!F73*$C$1","v":0},{"$f":"'rent allocations'!G73*$C$1","v":0},{"$f":"'rent allocations'!H73*$C$1","v":0},{"$f":"'rent allocations'!I73*$C$1","v":0},{"$f":"'rent allocations'!J73*$C$1","v":0},{"$f":"'rent allocations'!K73*$C$1","v":0},{"$f":"'rent allocations'!L73*$C$1","v":0},{"$f":"'rent allocations'!M73*$C$1","v":0},{"$f":"'rent allocations'!N73*$C$1","v":0},{"$f":"'rent allocations'!O73*$C$1","v":0},{"$f":"'rent allocations'!P73*$C$1","v":0},{"$f":"'rent allocations'!Q73*$C$1","v":0},{"$f":"'rent allocations'!R73*$C$1","v":0},{"$f":"'rent allocations'!S73*$C$1","v":0},{"$f":"'rent allocations'!T73*$C$1","v":0},{"$f":"'rent allocations'!U73*$C$1","v":0},{"$f":"'rent allocations'!V73*$C$1","v":0},{"$f":"'rent allocations'!W73*$C$1","v":0},{"$f":"'rent allocations'!X73*$C$1","v":0},{"$f":"'rent allocations'!Y73*$C$1","v":0},{"$f":"'rent allocations'!Z73*$C$1","v":0},{"$f":"'rent allocations'!AA73*$C$1","v":0},{"$f":"'rent allocations'!AB73*$C$1","v":0},{"$f":"'rent allocations'!AC73*$C$1","v":0},{"$f":"'rent allocations'!AD73*$C$1","v":0},{"$f":"'rent allocations'!AE73*$C$1","v":0},{"$f":"'rent allocations'!AF73*$C$1","v":0},{"$f":"'rent allocations'!AG73*$C$1","v":0},{"$f":"'rent allocations'!AH73*$C$1","v":0},{"$f":"'rent allocations'!AI73*$C$1","v":0},{"$f":"'rent allocations'!AJ73*$C$1","v":0},{"$f":"'rent allocations'!AK73*$C$1","v":0},{"$f":"'rent allocations'!AL73*$C$1","v":0}]
["350 - Superintendent of Public Instruction","350","Superintendent of Public Instruction",{"$f":"'rent allocations'!D74*$C$1","v":1052185.1766966819},{"$f":"'rent allocations'!E74*$C$1","v":0},{"$f":"'rent allocations'!F74*$C$1","v":0},{"$f":"'rent allocations'!G74*$C$1","v":0},{"$f":"'rent allocations'!H74*$C$1","v":0},{"$f":"'rent allocations'!I74*$C$1","v":0},{"$f":"'rent allocations'!J74*$C$1","v":0},{"$f":"'rent allocations'!K74*$C$1","v":0},{"$f":"'rent allocations'!L74*$C$1","v":0},{"$f":"'rent allocations'!M74*$C$1","v":0},{"$f":"'rent allocations'!N74*$C$1","v":0},{"$f":"'rent allocations'!O74*$C$1","v":0},{"$f":"'rent allocations'!P74*$C$1","v":1027751.6782440909},{"$f":"'rent allocations'!Q74*$C$1","v":0},{"$f":"'rent allocations'!R74*$C$1","v":0},{"$f":"'rent allocations'!S74*$C$1","v":0},{"$f":"'rent allocations'!T74*$C$1","v":0},{"$f":"'rent allocations'!U74*$C$1","v":0},{"$f":"'rent allocations'!V74*$C$1","v":0},{"$f":"'rent allocations'!W74*$C$1","v":0},{"$f":"'rent allocations'!X74*$C$1","v":0},{"$f":"'rent allocations'!Y74*$C$1","v":0},{"$f":"'rent allocations'!Z74*$C$1","v":0},{"$f":"'rent allocations'!AA74*$C$1","v":24433.498452591026},{"$f":"'rent allocations'!AB74*$C$1","v":0},{"$f":"'rent allocations'!AC74*$C$1","v":0},{"$f":"'rent allocations'!AD74*$C$1","v":0},{"$f":"'rent allocations'!AE74*$C$1","v":0},{"$f":"'rent allocations'!AF74*$C$1","v":0},{"$f":"'rent allocations'!AG74*$C$1","v":0},{"$f":"'rent allocations'!AH74*$C$1","v":0},{"$f":"'rent allocations'!AI74*$C$1","v":0},{"$f":"'rent allocations'!AJ74*$C$1","v":0},{"$f":"'rent allocations'!AK74*$C$1","v":0},{"$f":"'rent allocations'!AL74*$C$1","v":0}]
["351 - State School For The Blind","351","State School For The Blind",{"$f":"'rent allocations'!D75*$C$1","v":0},{"$f":"'rent allocations'!E75*$C$1","v":0},{"$f":"'rent allocations'!F75*$C$1","v":0},{"$f":"'rent allocations'!G75*$C$1","v":0},{"$f":"'rent allocations'!H75*$C$1","v":0},{"$f":"'rent allocations'!I75*$C$1","v":0},{"$f":"'rent allocations'!J75*$C$1","v":0},{"$f":"'rent allocations'!K75*$C$1","v":0},{"$f":"'rent allocations'!L75*$C$1","v":0},{"$f":"'rent allocations'!M75*$C$1","v":0},{"$f":"'rent allocations'!N75*$C$1","v":0},{"$f":"'rent allocations'!O75*$C$1","v":0},{"$f":"'rent allocations'!P75*$C$1","v":0},{"$f":"'rent allocations'!Q75*$C$1","v":0},{"$f":"'rent allocations'!R75*$C$1","v":0},{"$f":"'rent allocations'!S75*$C$1","v":0},{"$f":"'rent allocations'!T75*$C$1","v":0},{"$f":"'rent allocations'!U75*$C$1","v":0},{"$f":"'rent allocations'!V75*$C$1","v":0},{"$f":"'rent allocations'!W75*$C$1","v":0},{"$f":"'rent allocations'!X75*$C$1","v":0},{"$f":"'rent allocations'!Y75*$C$1","v":0},{"$f":"'rent allocations'!Z75*$C$1","v":0},{"$f":"'rent allocations'!AA75*$C$1","v":0},{"$f":"'rent allocations'!AB75*$C$1","v":0},{"$f":"'rent allocations'!AC75*$C$1","v":0},{"$f":"'rent allocations'!AD75*$C$1","v":0},{"$f":"'rent allocations'!AE75*$C$1","v":0},{"$f":"'rent allocations'!AF75*$C$1","v":0},{"$f":"'rent allocations'!AG75*$C$1","v":0},{"$f":"'rent allocations'!AH75*$C$1","v":0},{"$f":"'rent allocations'!AI75*$C$1","v":0},{"$f":"'rent allocations'!AJ75*$C$1","v":0},{"$f":"'rent allocations'!AK75*$C$1","v":0},{"$f":"'rent allocations'!AL75*$C$1","v":0}]
["353 - State Center for Childhood Deafness and Hearing Loss","353","State Center for Childhood Deafness and Hearing Loss",{"$f":"'rent allocations'!D76*$C$1","v":0},{"$f":"'rent allocations'!E76*$C$1","v":0},{"$f":"'rent allocations'!F76*$C$1","v":0},{"$f":"'rent allocations'!G76*$C$1","v":0},{"$f":"'rent allocations'!H76*$C$1","v":0},{"$f":"'rent allocations'!I76*$C$1","v":0},{"$f":"'rent allocations'!J76*$C$1","v":0},{"$f":"'rent allocations'!K76*$C$1","v":0},{"$f":"'rent allocations'!L76*$C$1","v":0},{"$f":"'rent allocations'!M76*$C$1","v":0},{"$f":"'rent allocations'!N76*$C$1","v":0},{"$f":"'rent allocations'!O76*$C$1","v":0},{"$f":"'rent allocations'!P76*$C$1","v":0},{"$f":"'rent allocations'!Q76*$C$1","v":0},{"$f":"'rent allocations'!R76*$C$1","v":0},{"$f":"'rent allocations'!S76*$C$1","v":0},{"$f":"'rent allocations'!T76*$C$1","v":0},{"$f":"'rent allocations'!U76*$C$1","v":0},{"$f":"'rent allocations'!V76*$C$1","v":0},{"$f":"'rent allocations'!W76*$C$1","v":0},{"$f":"'rent allocations'!X76*$C$1","v":0},{"$f":"'rent allocations'!Y76*$C$1","v":0},{"$f":"'rent allocations'!Z76*$C$1","v":0},{"$f":"'rent allocations'!AA76*$C$1","v":0},{"$f":"'rent allocations'!AB76*$C$1","v":0},{"$f":"'rent allocations'!AC76*$C$1","v":0},{"$f":"'rent allocations'!AD76*$C$1","v":0},{"$f":"'rent allocations'!AE76*$C$1","v":0},{"$f":"'rent allocations'!AF76*$C$1","v":0},{"$f":"'rent allocations'!AG76*$C$1","v":0},{"$f":"'rent allocations'!AH76*$C$1","v":0},{"$f":"'rent allocations'!AI76*$C$1","v":0},{"$f":"'rent allocations'!AJ76*$C$1","v":0},{"$f":"'rent allocations'!AK76*$C$1","v":0},{"$f":"'rent allocations'!AL76*$C$1","v":0}]
["354 - Workforce Training and Education Coordinating Board","354","Workforce Training and Education Coordinating Board",{"$f":"'rent allocations'!D77*$C$1","v":0},{"$f":"'rent allocations'!E77*$C$1","v":0},{"$f":"'rent allocations'!F77*$C$1","v":0},{"$f":"'rent allocations'!G77*$C$1","v":0},{"$f":"'rent allocations'!H77*$C$1","v":0},{"$f":"'rent allocations'!I77*$C$1","v":0},{"$f":"'rent allocations'!J77*$C$1","v":0},{"$f":"'rent allocations'!K77*$C$1","v":0},{"$f":"'rent allocations'!L77*$C$1","v":0},{"$f":"'rent allocations'!M77*$C$1","v":0},{"$f":"'rent allocations'!N77*$C$1","v":0},{"$f":"'rent allocations'!O77*$C$1","v":0},{"$f":"'rent allocations'!P77*$C$1","v":0},{"$f":"'rent allocations'!Q77*$C$1","v":0},{"$f":"'rent allocations'!R77*$C$1","v":0},{"$f":"'rent allocations'!S77*$C$1","v":0},{"$f":"'rent allocations'!T77*$C$1","v":0},{"$f":"'rent allocations'!U77*$C$1","v":0},{"$f":"'rent allocations'!V77*$C$1","v":0},{"$f":"'rent allocations'!W77*$C$1","v":0},{"$f":"'rent allocations'!X77*$C$1","v":0},{"$f":"'rent allocations'!Y77*$C$1","v":0},{"$f":"'rent allocations'!Z77*$C$1","v":0},{"$f":"'rent allocations'!AA77*$C$1","v":0},{"$f":"'rent allocations'!AB77*$C$1","v":0},{"$f":"'rent allocations'!AC77*$C$1","v":0},{"$f":"'rent allocations'!AD77*$C$1","v":0},{"$f":"'rent allocations'!AE77*$C$1","v":0},{"$f":"'rent allocations'!AF77*$C$1","v":0},{"$f":"'rent allocations'!AG77*$C$1","v":0},{"$f":"'rent allocations'!AH77*$C$1","v":0},{"$f":"'rent allocations'!AI77*$C$1","v":0},{"$f":"'rent allocations'!AJ77*$C$1","v":0},{"$f":"'rent allocations'!AK77*$C$1","v":0},{"$f":"'rent allocations'!AL77*$C$1","v":0}]
["355 - Department of Archaeology and Historic Preservation","355","Department of Archaeology and Historic Preservation",{"$f":"'rent allocations'!D78*$C$1","v":205794.43537396716},{"$f":"'rent allocations'!E78*$C$1","v":0},{"$f":"'rent allocations'!F78*$C$1","v":0},{"$f":"'rent allocations'!G78*$C$1","v":0},{"$f":"'rent allocations'!H78*$C$1","v":0},{"$f":"'rent allocations'!I78*$C$1","v":0},{"$f":"'rent allocations'!J78*$C$1","v":0},{"$f":"'rent allocations'!K78*$C$1","v":0},{"$f":"'rent allocations'!L78*$C$1","v":0},{"$f":"'rent allocations'!M78*$C$1","v":0},{"$f":"'rent allocations'!N78*$C$1","v":0},{"$f":"'rent allocations'!O78*$C$1","v":0},{"$f":"'rent allocations'!P78*$C$1","v":0},{"$f":"'rent allocations'!Q78*$C$1","v":0},{"$f":"'rent allocations'!R78*$C$1","v":0},{"$f":"'rent allocations'!S78*$C$1","v":0},{"$f":"'rent allocations'!T78*$C$1","v":0},{"$f":"'rent allocations'!U78*$C$1","v":0},{"$f":"'rent allocations'!V78*$C$1","v":0},{"$f":"'rent allocations'!W78*$C$1","v":0},{"$f":"'rent allocations'!X78*$C$1","v":205794.43537396716},{"$f":"'rent allocations'!Y78*$C$1","v":0},{"$f":"'rent allocations'!Z78*$C$1","v":0},{"$f":"'rent allocations'!AA78*$C$1","v":0},{"$f":"'rent allocations'!AB78*$C$1","v":0},{"$f":"'rent allocations'!AC78*$C$1","v":0},{"$f":"'rent allocations'!AD78*$C$1","v":0},{"$f":"'rent allocations'!AE78*$C$1","v":0},{"$f":"'rent allocations'!AF78*$C$1","v":0},{"$f":"'rent allocations'!AG78*$C$1","v":0},{"$f":"'rent allocations'!AH78*$C$1","v":0},{"$f":"'rent allocations'!AI78*$C$1","v":0},{"$f":"'rent allocations'!AJ78*$C$1","v":0},{"$f":"'rent allocations'!AK78*$C$1","v":0},{"$f":"'rent allocations'!AL78*$C$1","v":0}]
["357 - Department of Early Learning","357","Department of Early Learning",{"$f":"'rent allocations'!D79*$C$1","v":0},{"$f":"'rent allocations'!E79*$C$1","v":0},{"$f":"'rent allocations'!F79*$C$1","v":0},{"$f":"'rent allocations'!G79*$C$1","v":0},{"$f":"'rent allocations'!H79*$C$1","v":0},{"$f":"'rent allocations'!I79*$C$1","v":0},{"$f":"'rent allocations'!J79*$C$1","v":0},{"$f":"'rent allocations'!K79*$C$1","v":0},{"$f":"'rent allocations'!L79*$C$1","v":0},{"$f":"'rent allocations'!M79*$C$1","v":0},{"$f":"'rent allocations'!N79*$C$1","v":0},{"$f":"'rent allocations'!O79*$C$1","v":0},{"$f":"'rent allocations'!P79*$C$1","v":0},{"$f":"'rent allocations'!Q79*$C$1","v":0},{"$f":"'rent allocations'!R79*$C$1","v":0},{"$f":"'rent allocations'!S79*$C$1","v":0},{"$f":"'rent allocations'!T79*$C$1","v":0},{"$f":"'rent allocations'!U79*$C$1","v":0},{"$f":"'rent allocations'!V79*$C$1","v":0},{"$f":"'rent allocations'!W79*$C$1","v":0},{"$f":"'rent allocations'!X79*$C$1","v":0},{"$f":"'rent allocations'!Y79*$C$1","v":0},{"$f":"'rent allocations'!Z79*$C$1","v":0},{"$f":"'rent allocations'!AA79*$C$1","v":0},{"$f":"'rent allocations'!AB79*$C$1","v":0},{"$f":"'rent allocations'!AC79*$C$1","v":0},{"$f":"'rent allocations'!AD79*$C$1","v":0},{"$f":"'rent allocations'!AE79*$C$1","v":0},{"$f":"'rent allocations'!AF79*$C$1","v":0},{"$f":"'rent allocations'!AG79*$C$1","v":0},{"$f":"'rent allocations'!AH79*$C$1","v":0},{"$f":"'rent allocations'!AI79*$C$1","v":0},{"$f":"'rent allocations'!AJ79*$C$1","v":0},{"$f":"'rent allocations'!AK79*$C$1","v":0},{"$f":"'rent allocations'!AL79*$C$1","v":0}]
["359 - WA Charter School Commission","359","WA Charter School Commission",{"$f":"'rent allocations'!D80*$C$1","v":0},{"$f":"'rent allocations'!E80*$C$1","v":0},{"$f":"'rent allocations'!F80*$C$1","v":0},{"$f":"'rent allocations'!G80*$C$1","v":0},{"$f":"'rent allocations'!H80*$C$1","v":0},{"$f":"'rent allocations'!I80*$C$1","v":0},{"$f":"'rent allocations'!J80*$C$1","v":0},{"$f":"'rent allocations'!K80*$C$1","v":0},{"$f":"'rent allocations'!L80*$C$1","v":0},{"$f":"'rent allocations'!M80*$C$1","v":0},{"$f":"'rent allocations'!N80*$C$1","v":0},{"$f":"'rent allocations'!O80*$C$1","v":0},{"$f":"'rent allocations'!P80*$C$1","v":0},{"$f":"'rent allocations'!Q80*$C$1","v":0},{"$f":"'rent allocations'!R80*$C$1","v":0},{"$f":"'rent allocations'!S80*$C$1","v":0},{"$f":"'rent allocations'!T80*$C$1","v":0},{"$f":"'rent allocations'!U80*$C$1","v":0},{"$f":"'rent allocations'!V80*$C$1","v":0},{"$f":"'rent allocations'!W80*$C$1","v":0},{"$f":"'rent allocations'!X80*$C$1","v":0},{"$f":"'rent allocations'!Y80*$C$1","v":0},{"$f":"'rent allocations'!Z80*$C$1","v":0},{"$f":"'rent allocations'!AA80*$C$1","v":0},{"$f":"'rent allocations'!AB80*$C$1","v":0},{"$f":"'rent allocations'!AC80*$C$1","v":0},{"$f":"'rent allocations'!AD80*$C$1","v":0},{"$f":"'rent allocations'!AE80*$C$1","v":0},{"$f":"'rent allocations'!AF80*$C$1","v":0},{"$f":"'rent allocations'!AG80*$C$1","v":0},{"$f":"'rent allocations'!AH80*$C$1","v":0},{"$f":"'rent allocations'!AI80*$C$1","v":0},{"$f":"'rent allocations'!AJ80*$C$1","v":0},{"$f":"'rent allocations'!AK80*$C$1","v":0},{"$f":"'rent allocations'!AL80*$C$1","v":0}]
["360 - University of Washington","360","University of Washington",{"$f":"'rent allocations'!D81*$C$1","v":0},{"$f":"'rent allocations'!E81*$C$1","v":0},{"$f":"'rent allocations'!F81*$C$1","v":0},{"$f":"'rent allocations'!G81*$C$1","v":0},{"$f":"'rent allocations'!H81*$C$1","v":0},{"$f":"'rent allocations'!I81*$C$1","v":0},{"$f":"'rent allocations'!J81*$C$1","v":0},{"$f":"'rent allocations'!K81*$C$1","v":0},{"$f":"'rent allocations'!L81*$C$1","v":0},{"$f":"'rent allocations'!M81*$C$1","v":0},{"$f":"'rent allocations'!N81*$C$1","v":0},{"$f":"'rent allocations'!O81*$C$1","v":0},{"$f":"'rent allocations'!P81*$C$1","v":0},{"$f":"'rent allocations'!Q81*$C$1","v":0},{"$f":"'rent allocations'!R81*$C$1","v":0},{"$f":"'rent allocations'!S81*$C$1","v":0},{"$f":"'rent allocations'!T81*$C$1","v":0},{"$f":"'rent allocations'!U81*$C$1","v":0},{"$f":"'rent allocations'!V81*$C$1","v":0},{"$f":"'rent allocations'!W81*$C$1","v":0},{"$f":"'rent allocations'!X81*$C$1","v":0},{"$f":"'rent allocations'!Y81*$C$1","v":0},{"$f":"'rent allocations'!Z81*$C$1","v":0},{"$f":"'rent allocations'!AA81*$C$1","v":0},{"$f":"'rent allocations'!AB81*$C$1","v":0},{"$f":"'rent allocations'!AC81*$C$1","v":0},{"$f":"'rent allocations'!AD81*$C$1","v":0},{"$f":"'rent allocations'!AE81*$C$1","v":0},{"$f":"'rent allocations'!AF81*$C$1","v":0},{"$f":"'rent allocations'!AG81*$C$1","v":0},{"$f":"'rent allocations'!AH81*$C$1","v":0},{"$f":"'rent allocations'!AI81*$C$1","v":0},{"$f":"'rent allocations'!AJ81*$C$1","v":0},{"$f":"'rent allocations'!AK81*$C$1","v":0},{"$f":"'rent allocations'!AL81*$C$1","v":0}]
["365 - Washington State University","365","Washington State University",{"$f":"'rent allocations'!D82*$C$1","v":0},{"$f":"'rent allocations'!E82*$C$1","v":0},{"$f":"'rent allocations'!F82*$C$1","v":0},{"$f":"'rent allocations'!G82*$C$1","v":0},{"$f":"'rent allocations'!H82*$C$1","v":0},{"$f":"'rent allocations'!I82*$C$1","v":0},{"$f":"'rent allocations'!J82*$C$1","v":0},{"$f":"'rent allocations'!K82*$C$1","v":0},{"$f":"'rent allocations'!L82*$C$1","v":0},{"$f":"'rent allocations'!M82*$C$1","v":0},{"$f":"'rent allocations'!N82*$C$1","v":0},{"$f":"'rent allocations'!O82*$C$1","v":0},{"$f":"'rent allocations'!P82*$C$1","v":0},{"$f":"'rent allocations'!Q82*$C$1","v":0},{"$f":"'rent allocations'!R82*$C$1","v":0},{"$f":"'rent allocations'!S82*$C$1","v":0},{"$f":"'rent allocations'!T82*$C$1","v":0},{"$f":"'rent allocations'!U82*$C$1","v":0},{"$f":"'rent allocations'!V82*$C$1","v":0},{"$f":"'rent allocations'!W82*$C$1","v":0},{"$f":"'rent allocations'!X82*$C$1","v":0},{"$f":"'rent allocations'!Y82*$C$1","v":0},{"$f":"'rent allocations'!Z82*$C$1","v":0},{"$f":"'rent allocations'!AA82*$C$1","v":0},{"$f":"'rent allocations'!AB82*$C$1","v":0},{"$f":"'rent allocations'!AC82*$C$1","v":0},{"$f":"'rent allocations'!AD82*$C$1","v":0},{"$f":"'rent allocations'!AE82*$C$1","v":0},{"$f":"'rent allocations'!AF82*$C$1","v":0},{"$f":"'rent allocations'!AG82*$C$1","v":0},{"$f":"'rent allocations'!AH82*$C$1","v":0},{"$f":"'rent allocations'!AI82*$C$1","v":0},{"$f":"'rent allocations'!AJ82*$C$1","v":0},{"$f":"'rent allocations'!AK82*$C$1","v":0},{"$f":"'rent allocations'!AL82*$C$1","v":0}]
["370 - Eastern Washington University","370","Eastern Washington University",{"$f":"'rent allocations'!D83*$C$1","v":0},{"$f":"'rent allocations'!E83*$C$1","v":0},{"$f":"'rent allocations'!F83*$C$1","v":0},{"$f":"'rent allocations'!G83*$C$1","v":0},{"$f":"'rent allocations'!H83*$C$1","v":0},{"$f":"'rent allocations'!I83*$C$1","v":0},{"$f":"'rent allocations'!J83*$C$1","v":0},{"$f":"'rent allocations'!K83*$C$1","v":0},{"$f":"'rent allocations'!L83*$C$1","v":0},{"$f":"'rent allocations'!M83*$C$1","v":0},{"$f":"'rent allocations'!N83*$C$1","v":0},{"$f":"'rent allocations'!O83*$C$1","v":0},{"$f":"'rent allocations'!P83*$C$1","v":0},{"$f":"'rent allocations'!Q83*$C$1","v":0},{"$f":"'rent allocations'!R83*$C$1","v":0},{"$f":"'rent allocations'!S83*$C$1","v":0},{"$f":"'rent allocations'!T83*$C$1","v":0},{"$f":"'rent allocations'!U83*$C$1","v":0},{"$f":"'rent allocations'!V83*$C$1","v":0},{"$f":"'rent allocations'!W83*$C$1","v":0},{"$f":"'rent allocations'!X83*$C$1","v":0},{"$f":"'rent allocations'!Y83*$C$1","v":0},{"$f":"'rent allocations'!Z83*$C$1","v":0},{"$f":"'rent allocations'!AA83*$C$1","v":0},{"$f":"'rent allocations'!AB83*$C$1","v":0},{"$f":"'rent allocations'!AC83*$C$1","v":0},{"$f":"'rent allocations'!AD83*$C$1","v":0},{"$f":"'rent allocations'!AE83*$C$1","v":0},{"$f":"'rent allocations'!AF83*$C$1","v":0},{"$f":"'rent allocations'!AG83*$C$1","v":0},{"$f":"'rent allocations'!AH83*$C$1","v":0},{"$f":"'rent allocations'!AI83*$C$1","v":0},{"$f":"'rent allocations'!AJ83*$C$1","v":0},{"$f":"'rent allocations'!AK83*$C$1","v":0},{"$f":"'rent allocations'!AL83*$C$1","v":0}]
["375 - Central Washington University","375","Central Washington University",{"$f":"'rent allocations'!D84*$C$1","v":0},{"$f":"'rent allocations'!E84*$C$1","v":0},{"$f":"'rent allocations'!F84*$C$1","v":0},{"$f":"'rent allocations'!G84*$C$1","v":0},{"$f":"'rent allocations'!H84*$C$1","v":0},{"$f":"'rent allocations'!I84*$C$1","v":0},{"$f":"'rent allocations'!J84*$C$1","v":0},{"$f":"'rent allocations'!K84*$C$1","v":0},{"$f":"'rent allocations'!L84*$C$1","v":0},{"$f":"'rent allocations'!M84*$C$1","v":0},{"$f":"'rent allocations'!N84*$C$1","v":0},{"$f":"'rent allocations'!O84*$C$1","v":0},{"$f":"'rent allocations'!P84*$C$1","v":0},{"$f":"'rent allocations'!Q84*$C$1","v":0},{"$f":"'rent allocations'!R84*$C$1","v":0},{"$f":"'rent allocations'!S84*$C$1","v":0},{"$f":"'rent allocations'!T84*$C$1","v":0},{"$f":"'rent allocations'!U84*$C$1","v":0},{"$f":"'rent allocations'!V84*$C$1","v":0},{"$f":"'rent allocations'!W84*$C$1","v":0},{"$f":"'rent allocations'!X84*$C$1","v":0},{"$f":"'rent allocations'!Y84*$C$1","v":0},{"$f":"'rent allocations'!Z84*$C$1","v":0},{"$f":"'rent allocations'!AA84*$C$1","v":0},{"$f":"'rent allocations'!AB84*$C$1","v":0},{"$f":"'rent allocations'!AC84*$C$1","v":0},{"$f":"'rent allocations'!AD84*$C$1","v":0},{"$f":"'rent allocations'!AE84*$C$1","v":0},{"$f":"'rent allocations'!AF84*$C$1","v":0},{"$f":"'rent allocations'!AG84*$C$1","v":0},{"$f":"'rent allocations'!AH84*$C$1","v":0},{"$f":"'rent allocations'!AI84*$C$1","v":0},{"$f":"'rent allocations'!AJ84*$C$1","v":0},{"$f":"'rent allocations'!AK84*$C$1","v":0},{"$f":"'rent allocations'!AL84*$C$1","v":0}]
["376 - The Evergreen State College","376","The Evergreen State College",{"$f":"'rent allocations'!D85*$C$1","v":0},{"$f":"'rent allocations'!E85*$C$1","v":0},{"$f":"'rent allocations'!F85*$C$1","v":0},{"$f":"'rent allocations'!G85*$C$1","v":0},{"$f":"'rent allocations'!H85*$C$1","v":0},{"$f":"'rent allocations'!I85*$C$1","v":0},{"$f":"'rent allocations'!J85*$C$1","v":0},{"$f":"'rent allocations'!K85*$C$1","v":0},{"$f":"'rent allocations'!L85*$C$1","v":0},{"$f":"'rent allocations'!M85*$C$1","v":0},{"$f":"'rent allocations'!N85*$C$1","v":0},{"$f":"'rent allocations'!O85*$C$1","v":0},{"$f":"'rent allocations'!P85*$C$1","v":0},{"$f":"'rent allocations'!Q85*$C$1","v":0},{"$f":"'rent allocations'!R85*$C$1","v":0},{"$f":"'rent allocations'!S85*$C$1","v":0},{"$f":"'rent allocations'!T85*$C$1","v":0},{"$f":"'rent allocations'!U85*$C$1","v":0},{"$f":"'rent allocations'!V85*$C$1","v":0},{"$f":"'rent allocations'!W85*$C$1","v":0},{"$f":"'rent allocations'!X85*$C$1","v":0},{"$f":"'rent allocations'!Y85*$C$1","v":0},{"$f":"'rent allocations'!Z85*$C$1","v":0},{"$f":"'rent allocations'!AA85*$C$1","v":0},{"$f":"'rent allocations'!AB85*$C$1","v":0},{"$f":"'rent allocations'!AC85*$C$1","v":0},{"$f":"'rent allocations'!AD85*$C$1","v":0},{"$f":"'rent allocations'!AE85*$C$1","v":0},{"$f":"'rent allocations'!AF85*$C$1","v":0},{"$f":"'rent allocations'!AG85*$C$1","v":0},{"$f":"'rent allocations'!AH85*$C$1","v":0},{"$f":"'rent allocations'!AI85*$C$1","v":0},{"$f":"'rent allocations'!AJ85*$C$1","v":0},{"$f":"'rent allocations'!AK85*$C$1","v":0},{"$f":"'rent allocations'!AL85*$C$1","v":0}]
["380 - Western Washington University","380","Western Washington University",{"$f":"'rent allocations'!D86*$C$1","v":0},{"$f":"'rent allocations'!E86*$C$1","v":0},{"$f":"'rent allocations'!F86*$C$1","v":0},{"$f":"'rent allocations'!G86*$C$1","v":0},{"$f":"'rent allocations'!H86*$C$1","v":0},{"$f":"'rent allocations'!I86*$C$1","v":0},{"$f":"'rent allocations'!J86*$C$1","v":0},{"$f":"'rent allocations'!K86*$C$1","v":0},{"$f":"'rent allocations'!L86*$C$1","v":0},{"$f":"'rent allocations'!M86*$C$1","v":0},{"$f":"'rent allocations'!N86*$C$1","v":0},{"$f":"'rent allocations'!O86*$C$1","v":0},{"$f":"'rent allocations'!P86*$C$1","v":0},{"$f":"'rent allocations'!Q86*$C$1","v":0},{"$f":"'rent allocations'!R86*$C$1","v":0},{"$f":"'rent allocations'!S86*$C$1","v":0},{"$f":"'rent allocations'!T86*$C$1","v":0},{"$f":"'rent allocations'!U86*$C$1","v":0},{"$f":"'rent allocations'!V86*$C$1","v":0},{"$f":"'rent allocations'!W86*$C$1","v":0},{"$f":"'rent allocations'!X86*$C$1","v":0},{"$f":"'rent allocations'!Y86*$C$1","v":0},{"$f":"'rent allocations'!Z86*$C$1","v":0},{"$f":"'rent allocations'!AA86*$C$1","v":0},{"$f":"'rent allocations'!AB86*$C$1","v":0},{"$f":"'rent allocations'!AC86*$C$1","v":0},{"$f":"'rent allocations'!AD86*$C$1","v":0},{"$f":"'rent allocations'!AE86*$C$1","v":0},{"$f":"'rent allocations'!AF86*$C$1","v":0},{"$f":"'rent allocations'!AG86*$C$1","v":0},{"$f":"'rent allocations'!AH86*$C$1","v":0},{"$f":"'rent allocations'!AI86*$C$1","v":0},{"$f":"'rent allocations'!AJ86*$C$1","v":0},{"$f":"'rent allocations'!AK86*$C$1","v":0},{"$f":"'rent allocations'!AL86*$C$1","v":0}]
["387 - Washington State Arts Commission","387","Washington State Arts Commission",{"$f":"'rent allocations'!D87*$C$1","v":0},{"$f":"'rent allocations'!E87*$C$1","v":0},{"$f":"'rent allocations'!F87*$C$1","v":0},{"$f":"'rent allocations'!G87*$C$1","v":0},{"$f":"'rent allocations'!H87*$C$1","v":0},{"$f":"'rent allocations'!I87*$C$1","v":0},{"$f":"'rent allocations'!J87*$C$1","v":0},{"$f":"'rent allocations'!K87*$C$1","v":0},{"$f":"'rent allocations'!L87*$C$1","v":0},{"$f":"'rent allocations'!M87*$C$1","v":0},{"$f":"'rent allocations'!N87*$C$1","v":0},{"$f":"'rent allocations'!O87*$C$1","v":0},{"$f":"'rent allocations'!P87*$C$1","v":0},{"$f":"'rent allocations'!Q87*$C$1","v":0},{"$f":"'rent allocations'!R87*$C$1","v":0},{"$f":"'rent allocations'!S87*$C$1","v":0},{"$f":"'rent allocations'!T87*$C$1","v":0},{"$f":"'rent allocations'!U87*$C$1","v":0},{"$f":"'rent allocations'!V87*$C$1","v":0},{"$f":"'rent allocations'!W87*$C$1","v":0},{"$f":"'rent allocations'!X87*$C$1","v":0},{"$f":"'rent allocations'!Y87*$C$1","v":0},{"$f":"'rent allocations'!Z87*$C$1","v":0},{"$f":"'rent allocations'!AA87*$C$1","v":0},{"$f":"'rent allocations'!AB87*$C$1","v":0},{"$f":"'rent allocations'!AC87*$C$1","v":0},{"$f":"'rent allocations'!AD87*$C$1","v":0},{"$f":"'rent allocations'!AE87*$C$1","v":0},{"$f":"'rent allocations'!AF87*$C$1","v":0},{"$f":"'rent allocations'!AG87*$C$1","v":0},{"$f":"'rent allocations'!AH87*$C$1","v":0},{"$f":"'rent allocations'!AI87*$C$1","v":0},{"$f":"'rent allocations'!AJ87*$C$1","v":0},{"$f":"'rent allocations'!AK87*$C$1","v":0},{"$f":"'rent allocations'!AL87*$C$1","v":0}]
["390 - Washington State Historical Society","390","Washington State Historical Society",{"$f":"'rent allocations'!D88*$C$1","v":0},{"$f":"'rent allocations'!E88*$C$1","v":0},{"$f":"'rent allocations'!F88*$C$1","v":0},{"$f":"'rent allocations'!G88*$C$1","v":0},{"$f":"'rent allocations'!H88*$C$1","v":0},{"$f":"'rent allocations'!I88*$C$1","v":0},{"$f":"'rent allocations'!J88*$C$1","v":0},{"$f":"'rent allocations'!K88*$C$1","v":0},{"$f":"'rent allocations'!L88*$C$1","v":0},{"$f":"'rent allocations'!M88*$C$1","v":0},{"$f":"'rent allocations'!N88*$C$1","v":0},{"$f":"'rent allocations'!O88*$C$1","v":0},{"$f":"'rent allocations'!P88*$C$1","v":0},{"$f":"'rent allocations'!Q88*$C$1","v":0},{"$f":"'rent allocations'!R88*$C$1","v":0},{"$f":"'rent allocations'!S88*$C$1","v":0},{"$f":"'rent allocations'!T88*$C$1","v":0},{"$f":"'rent allocations'!U88*$C$1","v":0},{"$f":"'rent allocations'!V88*$C$1","v":0},{"$f":"'rent allocations'!W88*$C$1","v":0},{"$f":"'rent allocations'!X88*$C$1","v":0},{"$f":"'rent allocations'!Y88*$C$1","v":0},{"$f":"'rent allocations'!Z88*$C$1","v":0},{"$f":"'rent allocations'!AA88*$C$1","v":0},{"$f":"'rent allocations'!AB88*$C$1","v":0},{"$f":"'rent allocations'!AC88*$C$1","v":0},{"$f":"'rent allocations'!AD88*$C$1","v":0},{"$f":"'rent allocations'!AE88*$C$1","v":0},{"$f":"'rent allocations'!AF88*$C$1","v":0},{"$f":"'rent allocations'!AG88*$C$1","v":0},{"$f":"'rent allocations'!AH88*$C$1","v":0},{"$f":"'rent allocations'!AI88*$C$1","v":0},{"$f":"'rent allocations'!AJ88*$C$1","v":0},{"$f":"'rent allocations'!AK88*$C$1","v":0},{"$f":"'rent allocations'!AL88*$C$1","v":0}]
["395 - Eastern Washington State Historical Society","395","Eastern Washington State Historical Society",{"$f":"'rent allocations'!D89*$C$1","v":0},{"$f":"'rent allocations'!E89*$C$1","v":0},{"$f":"'rent allocations'!F89*$C$1","v":0},{"$f":"'rent allocations'!G89*$C$1","v":0},{"$f":"'rent allocations'!H89*$C$1","v":0},{"$f":"'rent allocations'!I89*$C$1","v":0},{"$f":"'rent allocations'!J89*$C$1","v":0},{"$f":"'rent allocations'!K89*$C$1","v":0},{"$f":"'rent allocations'!L89*$C$1","v":0},{"$f":"'rent allocations'!M89*$C$1","v":0},{"$f":"'rent allocations'!N89*$C$1","v":0},{"$f":"'rent allocations'!O89*$C$1","v":0},{"$f":"'rent allocations'!P89*$C$1","v":0},{"$f":"'rent allocations'!Q89*$C$1","v":0},{"$f":"'rent allocations'!R89*$C$1","v":0},{"$f":"'rent allocations'!S89*$C$1","v":0},{"$f":"'rent allocations'!T89*$C$1","v":0},{"$f":"'rent allocations'!U89*$C$1","v":0},{"$f":"'rent allocations'!V89*$C$1","v":0},{"$f":"'rent allocations'!W89*$C$1","v":0},{"$f":"'rent allocations'!X89*$C$1","v":0},{"$f":"'rent allocations'!Y89*$C$1","v":0},{"$f":"'rent allocations'!Z89*$C$1","v":0},{"$f":"'rent allocations'!AA89*$C$1","v":0},{"$f":"'rent allocations'!AB89*$C$1","v":0},{"$f":"'rent allocations'!AC89*$C$1","v":0},{"$f":"'rent allocations'!AD89*$C$1","v":0},{"$f":"'rent allocations'!AE89*$C$1","v":0},{"$f":"'rent allocations'!AF89*$C$1","v":0},{"$f":"'rent allocations'!AG89*$C$1","v":0},{"$f":"'rent allocations'!AH89*$C$1","v":0},{"$f":"'rent allocations'!AI89*$C$1","v":0},{"$f":"'rent allocations'!AJ89*$C$1","v":0},{"$f":"'rent allocations'!AK89*$C$1","v":0},{"$f":"'rent allocations'!AL89*$C$1","v":0}]
["405 - Department of Transportation","405","Department of Transportation",{"$f":"'rent allocations'!D90*$C$1","v":1678448.2854983311},{"$f":"'rent allocations'!E90*$C$1","v":0},{"$f":"'rent allocations'!F90*$C$1","v":0},{"$f":"'rent allocations'!G90*$C$1","v":0},{"$f":"'rent allocations'!H90*$C$1","v":0},{"$f":"'rent allocations'!I90*$C$1","v":0},{"$f":"'rent allocations'!J90*$C$1","v":0},{"$f":"'rent allocations'!K90*$C$1","v":0},{"$f":"'rent allocations'!L90*$C$1","v":0},{"$f":"'rent allocations'!M90*$C$1","v":0},{"$f":"'rent allocations'!N90*$C$1","v":1678448.2854983311},{"$f":"'rent allocations'!O90*$C$1","v":0},{"$f":"'rent allocations'!P90*$C$1","v":0},{"$f":"'rent allocations'!Q90*$C$1","v":0},{"$f":"'rent allocations'!R90*$C$1","v":0},{"$f":"'rent allocations'!S90*$C$1","v":0},{"$f":"'rent allocations'!T90*$C$1","v":0},{"$f":"'rent allocations'!U90*$C$1","v":0},{"$f":"'rent allocations'!V90*$C$1","v":0},{"$f":"'rent allocations'!W90*$C$1","v":0},{"$f":"'rent allocations'!X90*$C$1","v":0},{"$f":"'rent allocations'!Y90*$C$1","v":0},{"$f":"'rent allocations'!Z90*$C$1","v":0},{"$f":"'rent allocations'!AA90*$C$1","v":0},{"$f":"'rent allocations'!AB90*$C$1","v":0},{"$f":"'rent allocations'!AC90*$C$1","v":0},{"$f":"'rent allocations'!AD90*$C$1","v":0},{"$f":"'rent allocations'!AE90*$C$1","v":0},{"$f":"'rent allocations'!AF90*$C$1","v":0},{"$f":"'rent allocations'!AG90*$C$1","v":0},{"$f":"'rent allocations'!AH90*$C$1","v":0},{"$f":"'rent allocations'!AI90*$C$1","v":0},{"$f":"'rent allocations'!AJ90*$C$1","v":0},{"$f":"'rent allocations'!AK90*$C$1","v":0},{"$f":"'rent allocations'!AL90*$C$1","v":0}]
["406 - County Road Administration Board","406","County Road Administration Board",{"$f":"'rent allocations'!D91*$C$1","v":0},{"$f":"'rent allocations'!E91*$C$1","v":0},{"$f":"'rent allocations'!F91*$C$1","v":0},{"$f":"'rent allocations'!G91*$C$1","v":0},{"$f":"'rent allocations'!H91*$C$1","v":0},{"$f":"'rent allocations'!I91*$C$1","v":0},{"$f":"'rent allocations'!J91*$C$1","v":0},{"$f":"'rent allocations'!K91*$C$1","v":0},{"$f":"'rent allocations'!L91*$C$1","v":0},{"$f":"'rent allocations'!M91*$C$1","v":0},{"$f":"'rent allocations'!N91*$C$1","v":0},{"$f":"'rent allocations'!O91*$C$1","v":0},{"$f":"'rent allocations'!P91*$C$1","v":0},{"$f":"'rent allocations'!Q91*$C$1","v":0},{"$f":"'rent allocations'!R91*$C$1","v":0},{"$f":"'rent allocations'!S91*$C$1","v":0},{"$f":"'rent allocations'!T91*$C$1","v":0},{"$f":"'rent allocations'!U91*$C$1","v":0},{"$f":"'rent allocations'!V91*$C$1","v":0},{"$f":"'rent allocations'!W91*$C$1","v":0},{"$f":"'rent allocations'!X91*$C$1","v":0},{"$f":"'rent allocations'!Y91*$C$1","v":0},{"$f":"'rent allocations'!Z91*$C$1","v":0},{"$f":"'rent allocations'!AA91*$C$1","v":0},{"$f":"'rent allocations'!AB91*$C$1","v":0},{"$f":"'rent allocations'!AC91*$C$1","v":0},{"$f":"'rent allocations'!AD91*$C$1","v":0},{"$f":"'rent allocations'!AE91*$C$1","v":0},{"$f":"'rent allocations'!AF91*$C$1","v":0},{"$f":"'rent allocations'!AG91*$C$1","v":0},{"$f":"'rent allocations'!AH91*$C$1","v":0},{"$f":"'rent allocations'!AI91*$C$1","v":0},{"$f":"'rent allocations'!AJ91*$C$1","v":0},{"$f":"'rent allocations'!AK91*$C$1","v":0},{"$f":"'rent allocations'!AL91*$C$1","v":0}]
["407 - Transportation Improvement Board","407","Transportation Improvement Board",{"$f":"'rent allocations'!D92*$C$1","v":0},{"$f":"'rent allocations'!E92*$C$1","v":0},{"$f":"'rent allocations'!F92*$C$1","v":0},{"$f":"'rent allocations'!G92*$C$1","v":0},{"$f":"'rent allocations'!H92*$C$1","v":0},{"$f":"'rent allocations'!I92*$C$1","v":0},{"$f":"'rent allocations'!J92*$C$1","v":0},{"$f":"'rent allocations'!K92*$C$1","v":0},{"$f":"'rent allocations'!L92*$C$1","v":0},{"$f":"'rent allocations'!M92*$C$1","v":0},{"$f":"'rent allocations'!N92*$C$1","v":0},{"$f":"'rent allocations'!O92*$C$1","v":0},{"$f":"'rent allocations'!P92*$C$1","v":0},{"$f":"'rent allocations'!Q92*$C$1","v":0},{"$f":"'rent allocations'!R92*$C$1","v":0},{"$f":"'rent allocations'!S92*$C$1","v":0},{"$f":"'rent allocations'!T92*$C$1","v":0},{"$f":"'rent allocations'!U92*$C$1","v":0},{"$f":"'rent allocations'!V92*$C$1","v":0},{"$f":"'rent allocations'!W92*$C$1","v":0},{"$f":"'rent allocations'!X92*$C$1","v":0},{"$f":"'rent allocations'!Y92*$C$1","v":0},{"$f":"'rent allocations'!Z92*$C$1","v":0},{"$f":"'rent allocations'!AA92*$C$1","v":0},{"$f":"'rent allocations'!AB92*$C$1","v":0},{"$f":"'rent allocations'!AC92*$C$1","v":0},{"$f":"'rent allocations'!AD92*$C$1","v":0},{"$f":"'rent allocations'!AE92*$C$1","v":0},{"$f":"'rent allocations'!AF92*$C$1","v":0},{"$f":"'rent allocations'!AG92*$C$1","v":0},{"$f":"'rent allocations'!AH92*$C$1","v":0},{"$f":"'rent allocations'!AI92*$C$1","v":0},{"$f":"'rent allocations'!AJ92*$C$1","v":0},{"$f":"'rent allocations'!AK92*$C$1","v":0},{"$f":"'rent allocations'!AL92*$C$1","v":0}]
["410 - Transportation Commission","410","Transportation Commission",{"$f":"'rent allocations'!D93*$C$1","v":0},{"$f":"'rent allocations'!E93*$C$1","v":0},{"$f":"'rent allocations'!F93*$C$1","v":0},{"$f":"'rent allocations'!G93*$C$1","v":0},{"$f":"'rent allocations'!H93*$C$1","v":0},{"$f":"'rent allocations'!I93*$C$1","v":0},{"$f":"'rent allocations'!J93*$C$1","v":0},{"$f":"'rent allocations'!K93*$C$1","v":0},{"$f":"'rent allocations'!L93*$C$1","v":0},{"$f":"'rent allocations'!M93*$C$1","v":0},{"$f":"'rent allocations'!N93*$C$1","v":0},{"$f":"'rent allocations'!O93*$C$1","v":0},{"$f":"'rent allocations'!P93*$C$1","v":0},{"$f":"'rent allocations'!Q93*$C$1","v":0},{"$f":"'rent allocations'!R93*$C$1","v":0},{"$f":"'rent allocations'!S93*$C$1","v":0},{"$f":"'rent allocations'!T93*$C$1","v":0},{"$f":"'rent allocations'!U93*$C$1","v":0},{"$f":"'rent allocations'!V93*$C$1","v":0},{"$f":"'rent allocations'!W93*$C$1","v":0},{"$f":"'rent allocations'!X93*$C$1","v":0},{"$f":"'rent allocations'!Y93*$C$1","v":0},{"$f":"'rent allocations'!Z93*$C$1","v":0},{"$f":"'rent allocations'!AA93*$C$1","v":0},{"$f":"'rent allocations'!AB93*$C$1","v":0},{"$f":"'rent allocations'!AC93*$C$1","v":0},{"$f":"'rent allocations'!AD93*$C$1","v":0},{"$f":"'rent allocations'!AE93*$C$1","v":0},{"$f":"'rent allocations'!AF93*$C$1","v":0},{"$f":"'rent allocations'!AG93*$C$1","v":0},{"$f":"'rent allocations'!AH93*$C$1","v":0},{"$f":"'rent allocations'!AI93*$C$1","v":0},{"$f":"'rent allocations'!AJ93*$C$1","v":0},{"$f":"'rent allocations'!AK93*$C$1","v":0},{"$f":"'rent allocations'!AL93*$C$1","v":0}]
["411 - Freight Mobility Strategic Investment Board","411","Freight Mobility Strategic Investment Board",{"$f":"'rent allocations'!D94*$C$1","v":0},{"$f":"'rent allocations'!E94*$C$1","v":0},{"$f":"'rent allocations'!F94*$C$1","v":0},{"$f":"'rent allocations'!G94*$C$1","v":0},{"$f":"'rent allocations'!H94*$C$1","v":0},{"$f":"'rent allocations'!I94*$C$1","v":0},{"$f":"'rent allocations'!J94*$C$1","v":0},{"$f":"'rent allocations'!K94*$C$1","v":0},{"$f":"'rent allocations'!L94*$C$1","v":0},{"$f":"'rent allocations'!M94*$C$1","v":0},{"$f":"'rent allocations'!N94*$C$1","v":0},{"$f":"'rent allocations'!O94*$C$1","v":0},{"$f":"'rent allocations'!P94*$C$1","v":0},{"$f":"'rent allocations'!Q94*$C$1","v":0},{"$f":"'rent allocations'!R94*$C$1","v":0},{"$f":"'rent allocations'!S94*$C$1","v":0},{"$f":"'rent allocations'!T94*$C$1","v":0},{"$f":"'rent allocations'!U94*$C$1","v":0},{"$f":"'rent allocations'!V94*$C$1","v":0},{"$f":"'rent allocations'!W94*$C$1","v":0},{"$f":"'rent allocations'!X94*$C$1","v":0},{"$f":"'rent allocations'!Y94*$C$1","v":0},{"$f":"'rent allocations'!Z94*$C$1","v":0},{"$f":"'rent allocations'!AA94*$C$1","v":0},{"$f":"'rent allocations'!AB94*$C$1","v":0},{"$f":"'rent allocations'!AC94*$C$1","v":0},{"$f":"'rent allocations'!AD94*$C$1","v":0},{"$f":"'rent allocations'!AE94*$C$1","v":0},{"$f":"'rent allocations'!AF94*$C$1","v":0},{"$f":"'rent allocations'!AG94*$C$1","v":0},{"$f":"'rent allocations'!AH94*$C$1","v":0},{"$f":"'rent allocations'!AI94*$C$1","v":0},{"$f":"'rent allocations'!AJ94*$C$1","v":0},{"$f":"'rent allocations'!AK94*$C$1","v":0},{"$f":"'rent allocations'!AL94*$C$1","v":0}]
["460 - Columbia River Gorge Commission","460","Columbia River Gorge Commission",{"$f":"'rent allocations'!D95*$C$1","v":0},{"$f":"'rent allocations'!E95*$C$1","v":0},{"$f":"'rent allocations'!F95*$C$1","v":0},{"$f":"'rent allocations'!G95*$C$1","v":0},{"$f":"'rent allocations'!H95*$C$1","v":0},{"$f":"'rent allocations'!I95*$C$1","v":0},{"$f":"'rent allocations'!J95*$C$1","v":0},{"$f":"'rent allocations'!K95*$C$1","v":0},{"$f":"'rent allocations'!L95*$C$1","v":0},{"$f":"'rent allocations'!M95*$C$1","v":0},{"$f":"'rent allocations'!N95*$C$1","v":0},{"$f":"'rent allocations'!O95*$C$1","v":0},{"$f":"'rent allocations'!P95*$C$1","v":0},{"$f":"'rent allocations'!Q95*$C$1","v":0},{"$f":"'rent allocations'!R95*$C$1","v":0},{"$f":"'rent allocations'!S95*$C$1","v":0},{"$f":"'rent allocations'!T95*$C$1","v":0},{"$f":"'rent allocations'!U95*$C$1","v":0},{"$f":"'rent allocations'!V95*$C$1","v":0},{"$f":"'rent allocations'!W95*$C$1","v":0},{"$f":"'rent allocations'!X95*$C$1","v":0},{"$f":"'rent allocations'!Y95*$C$1","v":0},{"$f":"'rent allocations'!Z95*$C$1","v":0},{"$f":"'rent allocations'!AA95*$C$1","v":0},{"$f":"'rent allocations'!AB95*$C$1","v":0},{"$f":"'rent allocations'!AC95*$C$1","v":0},{"$f":"'rent allocations'!AD95*$C$1","v":0},{"$f":"'rent allocations'!AE95*$C$1","v":0},{"$f":"'rent allocations'!AF95*$C$1","v":0},{"$f":"'rent allocations'!AG95*$C$1","v":0},{"$f":"'rent allocations'!AH95*$C$1","v":0},{"$f":"'rent allocations'!AI95*$C$1","v":0},{"$f":"'rent allocations'!AJ95*$C$1","v":0},{"$f":"'rent allocations'!AK95*$C$1","v":0},{"$f":"'rent allocations'!AL95*$C$1","v":0}]
["461 - Department of Ecology","461","Department of Ecology",{"$f":"'rent allocations'!D96*$C$1","v":0},{"$f":"'rent allocations'!E96*$C$1","v":0},{"$f":"'rent allocations'!F96*$C$1","v":0},{"$f":"'rent allocations'!G96*$C$1","v":0},{"$f":"'rent allocations'!H96*$C$1","v":0},{"$f":"'rent allocations'!I96*$C$1","v":0},{"$f":"'rent allocations'!J96*$C$1","v":0},{"$f":"'rent allocations'!K96*$C$1","v":0},{"$f":"'rent allocations'!L96*$C$1","v":0},{"$f":"'rent allocations'!M96*$C$1","v":0},{"$f":"'rent allocations'!N96*$C$1","v":0},{"$f":"'rent allocations'!O96*$C$1","v":0},{"$f":"'rent allocations'!P96*$C$1","v":0},{"$f":"'rent allocations'!Q96*$C$1","v":0},{"$f":"'rent allocations'!R96*$C$1","v":0},{"$f":"'rent allocations'!S96*$C$1","v":0},{"$f":"'rent allocations'!T96*$C$1","v":0},{"$f":"'rent allocations'!U96*$C$1","v":0},{"$f":"'rent allocations'!V96*$C$1","v":0},{"$f":"'rent allocations'!W96*$C$1","v":0},{"$f":"'rent allocations'!X96*$C$1","v":0},{"$f":"'rent allocations'!Y96*$C$1","v":0},{"$f":"'rent allocations'!Z96*$C$1","v":0},{"$f":"'rent allocations'!AA96*$C$1","v":0},{"$f":"'rent allocations'!AB96*$C$1","v":0},{"$f":"'rent allocations'!AC96*$C$1","v":0},{"$f":"'rent allocations'!AD96*$C$1","v":0},{"$f":"'rent allocations'!AE96*$C$1","v":0},{"$f":"'rent allocations'!AF96*$C$1","v":0},{"$f":"'rent allocations'!AG96*$C$1","v":0},{"$f":"'rent allocations'!AH96*$C$1","v":0},{"$f":"'rent allocations'!AI96*$C$1","v":0},{"$f":"'rent allocations'!AJ96*$C$1","v":0},{"$f":"'rent allocations'!AK96*$C$1","v":0},{"$f":"'rent allocations'!AL96*$C$1","v":0}]
["462 - Pollution Liability Insurance Program","462","Pollution Liability Insurance Program",{"$f":"'rent allocations'!D97*$C$1","v":0},{"$f":"'rent allocations'!E97*$C$1","v":0},{"$f":"'rent allocations'!F97*$C$1","v":0},{"$f":"'rent allocations'!G97*$C$1","v":0},{"$f":"'rent allocations'!H97*$C$1","v":0},{"$f":"'rent allocations'!I97*$C$1","v":0},{"$f":"'rent allocations'!J97*$C$1","v":0},{"$f":"'rent allocations'!K97*$C$1","v":0},{"$f":"'rent allocations'!L97*$C$1","v":0},{"$f":"'rent allocations'!M97*$C$1","v":0},{"$f":"'rent allocations'!N97*$C$1","v":0},{"$f":"'rent allocations'!O97*$C$1","v":0},{"$f":"'rent allocations'!P97*$C$1","v":0},{"$f":"'rent allocations'!Q97*$C$1","v":0},{"$f":"'rent allocations'!R97*$C$1","v":0},{"$f":"'rent allocations'!S97*$C$1","v":0},{"$f":"'rent allocations'!T97*$C$1","v":0},{"$f":"'rent allocations'!U97*$C$1","v":0},{"$f":"'rent allocations'!V97*$C$1","v":0},{"$f":"'rent allocations'!W97*$C$1","v":0},{"$f":"'rent allocations'!X97*$C$1","v":0},{"$f":"'rent allocations'!Y97*$C$1","v":0},{"$f":"'rent allocations'!Z97*$C$1","v":0},{"$f":"'rent allocations'!AA97*$C$1","v":0},{"$f":"'rent allocations'!AB97*$C$1","v":0},{"$f":"'rent allocations'!AC97*$C$1","v":0},{"$f":"'rent allocations'!AD97*$C$1","v":0},{"$f":"'rent allocations'!AE97*$C$1","v":0},{"$f":"'rent allocations'!AF97*$C$1","v":0},{"$f":"'rent allocations'!AG97*$C$1","v":0},{"$f":"'rent allocations'!AH97*$C$1","v":0},{"$f":"'rent allocations'!AI97*$C$1","v":0},{"$f":"'rent allocations'!AJ97*$C$1","v":0},{"$f":"'rent allocations'!AK97*$C$1","v":0},{"$f":"'rent allocations'!AL97*$C$1","v":0}]
["465 - State Parks and Recreation Commission","465","State Parks and Recreation Commission",{"$f":"'rent allocations'!D98*$C$1","v":0},{"$f":"'rent allocations'!E98*$C$1","v":0},{"$f":"'rent allocations'!F98*$C$1","v":0},{"$f":"'rent allocations'!G98*$C$1","v":0},{"$f":"'rent allocations'!H98*$C$1","v":0},{"$f":"'rent allocations'!I98*$C$1","v":0},{"$f":"'rent allocations'!J98*$C$1","v":0},{"$f":"'rent allocations'!K98*$C$1","v":0},{"$f":"'rent allocations'!L98*$C$1","v":0},{"$f":"'rent allocations'!M98*$C$1","v":0},{"$f":"'rent allocations'!N98*$C$1","v":0},{"$f":"'rent allocations'!O98*$C$1","v":0},{"$f":"'rent allocations'!P98*$C$1","v":0},{"$f":"'rent allocations'!Q98*$C$1","v":0},{"$f":"'rent allocations'!R98*$C$1","v":0},{"$f":"'rent allocations'!S98*$C$1","v":0},{"$f":"'rent allocations'!T98*$C$1","v":0},{"$f":"'rent allocations'!U98*$C$1","v":0},{"$f":"'rent allocations'!V98*$C$1","v":0},{"$f":"'rent allocations'!W98*$C$1","v":0},{"$f":"'rent allocations'!X98*$C$1","v":0},{"$f":"'rent allocations'!Y98*$C$1","v":0},{"$f":"'rent allocations'!Z98*$C$1","v":0},{"$f":"'rent allocations'!AA98*$C$1","v":0},{"$f":"'rent allocations'!AB98*$C$1","v":0},{"$f":"'rent allocations'!AC98*$C$1","v":0},{"$f":"'rent allocations'!AD98*$C$1","v":0},{"$f":"'rent allocations'!AE98*$C$1","v":0},{"$f":"'rent allocations'!AF98*$C$1","v":0},{"$f":"'rent allocations'!AG98*$C$1","v":0},{"$f":"'rent allocations'!AH98*$C$1","v":0},{"$f":"'rent allocations'!AI98*$C$1","v":0},{"$f":"'rent allocations'!AJ98*$C$1","v":0},{"$f":"'rent allocations'!AK98*$C$1","v":0},{"$f":"'rent allocations'!AL98*$C$1","v":0}]
["467 - Recreation and Conservation Funding Board","467","Recreation and Conservation Funding Board",{"$f":"'rent allocations'!D99*$C$1","v":93809.898544603799},{"$f":"'rent allocations'!E99*$C$1","v":0},{"$f":"'rent allocations'!F99*$C$1","v":0},{"$f":"'rent allocations'!G99*$C$1","v":0},{"$f":"'rent allocations'!H99*$C$1","v":0},{"$f":"'rent allocations'!I99*$C$1","v":0},{"$f":"'rent allocations'!J99*$C$1","v":0},{"$f":"'rent allocations'!K99*$C$1","v":0},{"$f":"'rent allocations'!L99*$C$1","v":93809.898544603799},{"$f":"'rent allocations'!M99*$C$1","v":0},{"$f":"'rent allocations'!N99*$C$1","v":0},{"$f":"'rent allocations'!O99*$C$1","v":0},{"$f":"'rent allocations'!P99*$C$1","v":0},{"$f":"'rent allocations'!Q99*$C$1","v":0},{"$f":"'rent allocations'!R99*$C$1","v":0},{"$f":"'rent allocations'!S99*$C$1","v":0},{"$f":"'rent allocations'!T99*$C$1","v":0},{"$f":"'rent allocations'!U99*$C$1","v":0},{"$f":"'rent allocations'!V99*$C$1","v":0},{"$f":"'rent allocations'!W99*$C$1","v":0},{"$f":"'rent allocations'!X99*$C$1","v":0},{"$f":"'rent allocations'!Y99*$C$1","v":0},{"$f":"'rent allocations'!Z99*$C$1","v":0},{"$f":"'rent allocations'!AA99*$C$1","v":0},{"$f":"'rent allocations'!AB99*$C$1","v":0},{"$f":"'rent allocations'!AC99*$C$1","v":0},{"$f":"'rent allocations'!AD99*$C$1","v":0},{"$f":"'rent allocations'!AE99*$C$1","v":0},{"$f":"'rent allocations'!AF99*$C$1","v":0},{"$f":"'rent allocations'!AG99*$C$1","v":0},{"$f":"'rent allocations'!AH99*$C$1","v":0},{"$f":"'rent allocations'!AI99*$C$1","v":0},{"$f":"'rent allocations'!AJ99*$C$1","v":0},{"$f":"'rent allocations'!AK99*$C$1","v":0},{"$f":"'rent allocations'!AL99*$C$1","v":0}]
["468 - Environmental and Land Use Hearings Office","468","Environmental and Land Use Hearings Office",{"$f":"'rent allocations'!D100*$C$1","v":0},{"$f":"'rent allocations'!E100*$C$1","v":0},{"$f":"'rent allocations'!F100*$C$1","v":0},{"$f":"'rent allocations'!G100*$C$1","v":0},{"$f":"'rent allocations'!H100*$C$1","v":0},{"$f":"'rent allocations'!I100*$C$1","v":0},{"$f":"'rent allocations'!J100*$C$1","v":0},{"$f":"'rent allocations'!K100*$C$1","v":0},{"$f":"'rent allocations'!L100*$C$1","v":0},{"$f":"'rent allocations'!M100*$C$1","v":0},{"$f":"'rent allocations'!N100*$C$1","v":0},{"$f":"'rent allocations'!O100*$C$1","v":0},{"$f":"'rent allocations'!P100*$C$1","v":0},{"$f":"'rent allocations'!Q100*$C$1","v":0},{"$f":"'rent allocations'!R100*$C$1","v":0},{"$f":"'rent allocations'!S100*$C$1","v":0},{"$f":"'rent allocations'!T100*$C$1","v":0},{"$f":"'rent allocations'!U100*$C$1","v":0},{"$f":"'rent allocations'!V100*$C$1","v":0},{"$f":"'rent allocations'!W100*$C$1","v":0},{"$f":"'rent allocations'!X100*$C$1","v":0},{"$f":"'rent allocations'!Y100*$C$1","v":0},{"$f":"'rent allocations'!Z100*$C$1","v":0},{"$f":"'rent allocations'!AA100*$C$1","v":0},{"$f":"'rent allocations'!AB100*$C$1","v":0},{"$f":"'rent allocations'!AC100*$C$1","v":0},{"$f":"'rent allocations'!AD100*$C$1","v":0},{"$f":"'rent allocations'!AE100*$C$1","v":0},{"$f":"'rent allocations'!AF100*$C$1","v":0},{"$f":"'rent allocations'!AG100*$C$1","v":0},{"$f":"'rent allocations'!AH100*$C$1","v":0},{"$f":"'rent allocations'!AI100*$C$1","v":0},{"$f":"'rent allocations'!AJ100*$C$1","v":0},{"$f":"'rent allocations'!AK100*$C$1","v":0},{"$f":"'rent allocations'!AL100*$C$1","v":0}]
["471 - State Conservation Commission","471","State Conservation Commission",{"$f":"'rent allocations'!D101*$C$1","v":0},{"$f":"'rent allocations'!E101*$C$1","v":0},{"$f":"'rent allocations'!F101*$C$1","v":0},{"$f":"'rent allocations'!G101*$C$1","v":0},{"$f":"'rent allocations'!H101*$C$1","v":0},{"$f":"'rent allocations'!I101*$C$1","v":0},{"$f":"'rent allocations'!J101*$C$1","v":0},{"$f":"'rent allocations'!K101*$C$1","v":0},{"$f":"'rent allocations'!L101*$C$1","v":0},{"$f":"'rent allocations'!M101*$C$1","v":0},{"$f":"'rent allocations'!N101*$C$1","v":0},{"$f":"'rent allocations'!O101*$C$1","v":0},{"$f":"'rent allocations'!P101*$C$1","v":0},{"$f":"'rent allocations'!Q101*$C$1","v":0},{"$f":"'rent allocations'!R101*$C$1","v":0},{"$f":"'rent allocations'!S101*$C$1","v":0},{"$f":"'rent allocations'!T101*$C$1","v":0},{"$f":"'rent allocations'!U101*$C$1","v":0},{"$f":"'rent allocations'!V101*$C$1","v":0},{"$f":"'rent allocations'!W101*$C$1","v":0},{"$f":"'rent allocations'!X101*$C$1","v":0},{"$f":"'rent allocations'!Y101*$C$1","v":0},{"$f":"'rent allocations'!Z101*$C$1","v":0},{"$f":"'rent allocations'!AA101*$C$1","v":0},{"$f":"'rent allocations'!AB101*$C$1","v":0},{"$f":"'rent allocations'!AC101*$C$1","v":0},{"$f":"'rent allocations'!AD101*$C$1","v":0},{"$f":"'rent allocations'!AE101*$C$1","v":0},{"$f":"'rent allocations'!AF101*$C$1","v":0},{"$f":"'rent allocations'!AG101*$C$1","v":0},{"$f":"'rent allocations'!AH101*$C$1","v":0},{"$f":"'rent allocations'!AI101*$C$1","v":0},{"$f":"'rent allocations'!AJ101*$C$1","v":0},{"$f":"'rent allocations'!AK101*$C$1","v":0},{"$f":"'rent allocations'!AL101*$C$1","v":0}]
["477 - Department of Fish and Wildlife","477","Department of Fish and Wildlife",{"$f":"'rent allocations'!D102*$C$1","v":1117182.6396855197},{"$f":"'rent allocations'!E102*$C$1","v":0},{"$f":"'rent allocations'!F102*$C$1","v":0},{"$f":"'rent allocations'!G102*$C$1","v":0},{"$f":"'rent allocations'!H102*$C$1","v":0},{"$f":"'rent allocations'!I102*$C$1","v":0},{"$f":"'rent allocations'!J102*$C$1","v":0},{"$f":"'rent allocations'!K102*$C$1","v":0},{"$f":"'rent allocations'!L102*$C$1","v":1117182.6396855197},{"$f":"'rent allocations'!M102*$C$1","v":0},{"$f":"'rent allocations'!N102*$C$1","v":0},{"$f":"'rent allocations'!O102*$C$1","v":0},{"$f":"'rent allocations'!P102*$C$1","v":0},{"$f":"'rent allocations'!Q102*$C$1","v":0},{"$f":"'rent allocations'!R102*$C$1","v":0},{"$f":"'rent allocations'!S102*$C$1","v":0},{"$f":"'rent allocations'!T102*$C$1","v":0},{"$f":"'rent allocations'!U102*$C$1","v":0},{"$f":"'rent allocations'!V102*$C$1","v":0},{"$f":"'rent allocations'!W102*$C$1","v":0},{"$f":"'rent allocations'!X102*$C$1","v":0},{"$f":"'rent allocations'!Y102*$C$1","v":0},{"$f":"'rent allocations'!Z102*$C$1","v":0},{"$f":"'rent allocations'!AA102*$C$1","v":0},{"$f":"'rent allocations'!AB102*$C$1","v":0},{"$f":"'rent allocations'!AC102*$C$1","v":0},{"$f":"'rent allocations'!AD102*$C$1","v":0},{"$f":"'rent allocations'!AE102*$C$1","v":0},{"$f":"'rent allocations'!AF102*$C$1","v":0},{"$f":"'rent allocations'!AG102*$C$1","v":0},{"$f":"'rent allocations'!AH102*$C$1","v":0},{"$f":"'rent allocations'!AI102*$C$1","v":0},{"$f":"'rent allocations'!AJ102*$C$1","v":0},{"$f":"'rent allocations'!AK102*$C$1","v":0},{"$f":"'rent allocations'!AL102*$C$1","v":0}]
["478 - Puget Sound Partnership","478","Puget Sound Partnership",{"$f":"'rent allocations'!D103*$C$1","v":30463.572160113818},{"$f":"'rent allocations'!E103*$C$1","v":0},{"$f":"'rent allocations'!F103*$C$1","v":0},{"$f":"'rent allocations'!G103*$C$1","v":0},{"$f":"'rent allocations'!H103*$C$1","v":0},{"$f":"'rent allocations'!I103*$C$1","v":0},{"$f":"'rent allocations'!J103*$C$1","v":0},{"$f":"'rent allocations'!K103*$C$1","v":0},{"$f":"'rent allocations'!L103*$C$1","v":0},{"$f":"'rent allocations'!M103*$C$1","v":0},{"$f":"'rent allocations'!N103*$C$1","v":0},{"$f":"'rent allocations'!O103*$C$1","v":0},{"$f":"'rent allocations'!P103*$C$1","v":0},{"$f":"'rent allocations'!Q103*$C$1","v":0},{"$f":"'rent allocations'!R103*$C$1","v":0},{"$f":"'rent allocations'!S103*$C$1","v":0},{"$f":"'rent allocations'!T103*$C$1","v":0},{"$f":"'rent allocations'!U103*$C$1","v":0},{"$f":"'rent allocations'!V103*$C$1","v":0},{"$f":"'rent allocations'!W103*$C$1","v":0},{"$f":"'rent allocations'!X103*$C$1","v":30463.572160113818},{"$f":"'rent allocations'!Y103*$C$1","v":0},{"$f":"'rent allocations'!Z103*$C$1","v":0},{"$f":"'rent allocations'!AA103*$C$1","v":0},{"$f":"'rent allocations'!AB103*$C$1","v":0},{"$f":"'rent allocations'!AC103*$C$1","v":0},{"$f":"'rent allocations'!AD103*$C$1","v":0},{"$f":"'rent allocations'!AE103*$C$1","v":0},{"$f":"'rent allocations'!AF103*$C$1","v":0},{"$f":"'rent allocations'!AG103*$C$1","v":0},{"$f":"'rent allocations'!AH103*$C$1","v":0},{"$f":"'rent allocations'!AI103*$C$1","v":0},{"$f":"'rent allocations'!AJ103*$C$1","v":0},{"$f":"'rent allocations'!AK103*$C$1","v":0},{"$f":"'rent allocations'!AL103*$C$1","v":0}]
["490 - Department of Natural Resources","490","Department of Natural Resources",{"$f":"'rent allocations'!D104*$C$1","v":1209884.6728182544},{"$f":"'rent allocations'!E104*$C$1","v":0},{"$f":"'rent allocations'!F104*$C$1","v":0},{"$f":"'rent allocations'!G104*$C$1","v":0},{"$f":"'rent allocations'!H104*$C$1","v":0},{"$f":"'rent allocations'!I104*$C$1","v":0},{"$f":"'rent allocations'!J104*$C$1","v":0},{"$f":"'rent allocations'!K104*$C$1","v":0},{"$f":"'rent allocations'!L104*$C$1","v":1209884.6728182544},{"$f":"'rent allocations'!M104*$C$1","v":0},{"$f":"'rent allocations'!N104*$C$1","v":0},{"$f":"'rent allocations'!O104*$C$1","v":0},{"$f":"'rent allocations'!P104*$C$1","v":0},{"$f":"'rent allocations'!Q104*$C$1","v":0},{"$f":"'rent allocations'!R104*$C$1","v":0},{"$f":"'rent allocations'!S104*$C$1","v":0},{"$f":"'rent allocations'!T104*$C$1","v":0},{"$f":"'rent allocations'!U104*$C$1","v":0},{"$f":"'rent allocations'!V104*$C$1","v":0},{"$f":"'rent allocations'!W104*$C$1","v":0},{"$f":"'rent allocations'!X104*$C$1","v":0},{"$f":"'rent allocations'!Y104*$C$1","v":0},{"$f":"'rent allocations'!Z104*$C$1","v":0},{"$f":"'rent allocations'!AA104*$C$1","v":0},{"$f":"'rent allocations'!AB104*$C$1","v":0},{"$f":"'rent allocations'!AC104*$C$1","v":0},{"$f":"'rent allocations'!AD104*$C$1","v":0},{"$f":"'rent allocations'!AE104*$C$1","v":0},{"$f":"'rent allocations'!AF104*$C$1","v":0},{"$f":"'rent allocations'!AG104*$C$1","v":0},{"$f":"'rent allocations'!AH104*$C$1","v":0},{"$f":"'rent allocations'!AI104*$C$1","v":0},{"$f":"'rent allocations'!AJ104*$C$1","v":0},{"$f":"'rent allocations'!AK104*$C$1","v":0},{"$f":"'rent allocations'!AL104*$C$1","v":0}]
["495 - Department of Agriculture","495","Department of Agriculture",{"$f":"'rent allocations'!D105*$C$1","v":382149.80505676457},{"$f":"'rent allocations'!E105*$C$1","v":0},{"$f":"'rent allocations'!F105*$C$1","v":0},{"$f":"'rent allocations'!G105*$C$1","v":0},{"$f":"'rent allocations'!H105*$C$1","v":0},{"$f":"'rent allocations'!I105*$C$1","v":0},{"$f":"'rent allocations'!J105*$C$1","v":0},{"$f":"'rent allocations'!K105*$C$1","v":0},{"$f":"'rent allocations'!L105*$C$1","v":382149.80505676457},{"$f":"'rent allocations'!M105*$C$1","v":0},{"$f":"'rent allocations'!N105*$C$1","v":0},{"$f":"'rent allocations'!O105*$C$1","v":0},{"$f":"'rent allocations'!P105*$C$1","v":0},{"$f":"'rent allocations'!Q105*$C$1","v":0},{"$f":"'rent allocations'!R105*$C$1","v":0},{"$f":"'rent allocations'!S105*$C$1","v":0},{"$f":"'rent allocations'!T105*$C$1","v":0},{"$f":"'rent allocations'!U105*$C$1","v":0},{"$f":"'rent allocations'!V105*$C$1","v":0},{"$f":"'rent allocations'!W105*$C$1","v":0},{"$f":"'rent allocations'!X105*$C$1","v":0},{"$f":"'rent allocations'!Y105*$C$1","v":0},{"$f":"'rent allocations'!Z105*$C$1","v":0},{"$f":"'rent allocations'!AA105*$C$1","v":0},{"$f":"'rent allocations'!AB105*$C$1","v":0},{"$f":"'rent allocations'!AC105*$C$1","v":0},{"$f":"'rent allocations'!AD105*$C$1","v":0},{"$f":"'rent allocations'!AE105*$C$1","v":0},{"$f":"'rent allocations'!AF105*$C$1","v":0},{"$f":"'rent allocations'!AG105*$C$1","v":0},{"$f":"'rent allocations'!AH105*$C$1","v":0},{"$f":"'rent allocations'!AI105*$C$1","v":0},{"$f":"'rent allocations'!AJ105*$C$1","v":0},{"$f":"'rent allocations'!AK105*$C$1","v":0},{"$f":"'rent allocations'!AL105*$C$1","v":0}]
["540 - Employment Security Department","540","Employment Security Department",{"$f":"'rent allocations'!D106*$C$1","v":1009516.5756991849},{"$f":"'rent allocations'!E106*$C$1","v":0},{"$f":"'rent allocations'!F106*$C$1","v":0},{"$f":"'rent allocations'!G106*$C$1","v":0},{"$f":"'rent allocations'!H106*$C$1","v":0},{"$f":"'rent allocations'!I106*$C$1","v":0},{"$f":"'rent allocations'!J106*$C$1","v":0},{"$f":"'rent allocations'!K106*$C$1","v":0},{"$f":"'rent allocations'!L106*$C$1","v":0},{"$f":"'rent allocations'!M106*$C$1","v":1009516.5756991849},{"$f":"'rent allocations'!N106*$C$1","v":0},{"$f":"'rent allocations'!O106*$C$1","v":0},{"$f":"'rent allocations'!P106*$C$1","v":0},{"$f":"'rent allocations'!Q106*$C$1","v":0},{"$f":"'rent allocations'!R106*$C$1","v":0},{"$f":"'rent allocations'!S106*$C$1","v":0},{"$f":"'rent allocations'!T106*$C$1","v":0},{"$f":"'rent allocations'!U106*$C$1","v":0},{"$f":"'rent allocations'!V106*$C$1","v":0},{"$f":"'rent allocations'!W106*$C$1","v":0},{"$f":"'rent allocations'!X106*$C$1","v":0},{"$f":"'rent allocations'!Y106*$C$1","v":0},{"$f":"'rent allocations'!Z106*$C$1","v":0},{"$f":"'rent allocations'!AA106*$C$1","v":0},{"$f":"'rent allocations'!AB106*$C$1","v":0},{"$f":"'rent allocations'!AC106*$C$1","v":0},{"$f":"'rent allocations'!AD106*$C$1","v":0},{"$f":"'rent allocations'!AE106*$C$1","v":0},{"$f":"'rent allocations'!AF106*$C$1","v":0},{"$f":"'rent allocations'!AG106*$C$1","v":0},{"$f":"'rent allocations'!AH106*$C$1","v":0},{"$f":"'rent allocations'!AI106*$C$1","v":0},{"$f":"'rent allocations'!AJ106*$C$1","v":0},{"$f":"'rent allocations'!AK106*$C$1","v":0},{"$f":"'rent allocations'!AL106*$C$1","v":0}]
["699 - Community Colleges","699","Community Colleges",{"$f":"'rent allocations'!D107*$C$1","v":0},{"$f":"'rent allocations'!E107*$C$1","v":0},{"$f":"'rent allocations'!F107*$C$1","v":0},{"$f":"'rent allocations'!G107*$C$1","v":0},{"$f":"'rent allocations'!H107*$C$1","v":0},{"$f":"'rent allocations'!I107*$C$1","v":0},{"$f":"'rent allocations'!J107*$C$1","v":0},{"$f":"'rent allocations'!K107*$C$1","v":0},{"$f":"'rent allocations'!L107*$C$1","v":0},{"$f":"'rent allocations'!M107*$C$1","v":0},{"$f":"'rent allocations'!N107*$C$1","v":0},{"$f":"'rent allocations'!O107*$C$1","v":0},{"$f":"'rent allocations'!P107*$C$1","v":0},{"$f":"'rent allocations'!Q107*$C$1","v":0},{"$f":"'rent allocations'!R107*$C$1","v":0},{"$f":"'rent allocations'!S107*$C$1","v":0},{"$f":"'rent allocations'!T107*$C$1","v":0},{"$f":"'rent allocations'!U107*$C$1","v":0},{"$f":"'rent allocations'!V107*$C$1","v":0},{"$f":"'rent allocations'!W107*$C$1","v":0},{"$f":"'rent allocations'!X107*$C$1","v":0},{"$f":"'rent allocations'!Y107*$C$1","v":0},{"$f":"'rent allocations'!Z107*$C$1","v":0},{"$f":"'rent allocations'!AA107*$C$1","v":0},{"$f":"'rent allocations'!AB107*$C$1","v":0},{"$f":"'rent allocations'!AC107*$C$1","v":0},{"$f":"'rent allocations'!AD107*$C$1","v":0},{"$f":"'rent allocations'!AE107*$C$1","v":0},{"$f":"'rent allocations'!AF107*$C$1","v":0},{"$f":"'rent allocations'!AG107*$C$1","v":0},{"$f":"'rent allocations'!AH107*$C$1","v":0},{"$f":"'rent allocations'!AI107*$C$1","v":0},{"$f":"'rent allocations'!AJ107*$C$1","v":0},{"$f":"'rent allocations'!AK107*$C$1","v":0},{"$f":"'rent allocations'!AL107*$C$1","v":0}]
["TOTAL  - All Agencies",null,"Building Total",{"$f":"'rent allocations'!D108*$C$1","v":26401000},{"$f":"'rent allocations'!E108*$C$1","v":1095163.0340587087},{"$f":"'rent allocations'!F108*$C$1","v":702092.06090319366},{"$f":"'rent allocations'!G108*$C$1","v":2629604.9408621569},{"$f":"'rent allocations'!H108*$C$1","v":573997.94298632978},{"$f":"'rent allocations'!I108*$C$1","v":1889246.9464306931},{"$f":"'rent allocations'!J108*$C$1","v":2653365.0139089045},{"$f":"'rent allocations'!K108*$C$1","v":447251.04418528866},{"$f":"'rent allocations'!L108*$C$1","v":2827017.4829377048},{"$f":"'rent allocations'!M108*$C$1","v":1009516.5756991849},{"$f":"'rent allocations'!N108*$C$1","v":1691601.2194433706},{"$f":"'rent allocations'!O108*$C$1","v":763768.76168778667},{"$f":"'rent allocations'!P108*$C$1","v":1027751.6782440909},{"$f":"'rent allocations'!Q108*$C$1","v":774151.18023857044},{"$f":"'rent allocations'!R108*$C$1","v":406533.61729670782},{"$f":"'rent allocations'!S108*$C$1","v":517015.41041926836},{"$f":"'rent allocations'!T108*$C$1","v":112443.5355561421},{"$f":"'rent allocations'!U108*$C$1","v":73794.258502363518},{"$f":"'rent allocations'!V108*$C$1","v":0},{"$f":"'rent allocations'!W108*$C$1","v":0},{"$f":"'rent allocations'!X108*$C$1","v":907823.2676136957},{"$f":"'rent allocations'!Y108*$C$1","v":293889.86912215542},{"$f":"'rent allocations'!Z108*$C$1","v":0},{"$f":"'rent allocations'!AA108*$C$1","v":24433.498452591026},{"$f":"'rent allocations'!AB108*$C$1","v":0},{"$f":"'rent allocations'!AC108*$C$1","v":0},{"$f":"'rent allocations'!AD108*$C$1","v":0},{"$f":"'rent allocations'!AE108*$C$1","v":0},{"$f":"'rent allocations'!AF108*$C$1","v":1637998.1541832911},{"$f":"'rent allocations'!AG108*$C$1","v":1111073.0635960854},{"$f":"'rent allocations'!AH108*$C$1","v":1732145.0460931358},{"$f":"'rent allocations'!AI108*$C$1","v":97327.22813702545},{"$f":"'rent allocations'!AJ108*$C$1","v":1401995.1694415531},{"$f":"'rent allocations'!AK108*$C$1","v":0},{"$f":"'rent allocations'!AL108*$C$1","v":0}]
[]
[null,null,"Building Total RSF",null,77281,78594,142254,23890,177668,250481,47900,354696,92619,184427,55108,97800,53609,22032,95386,47200,14308,10125,0,41341,17000,0,1539,7138,885,2492,872,200592,60581,99000,20708,138355,17600,0]
[null,null,"vacant space",0,0,0,0,0,0,0,0,0,0,0,0,0,0,0,0,0,0,0,0,0,0,0,0,14276,406,872,0,0,0,0,35004,0,0]
[null,null,null,null,{"$f":"E108/E110/2","v":7.0855904689296771},{"$f":"F108/F110/2","v":4.4665754440745706},9.2426397179065507,12.01335167405462,5.3167901547568865,5.2965394858470392,4.6685912754205496,3.9851273808242902,5.44983521577206,4.5860997018966057,6.9297448799429002,5.2543541832519987,7.2203471454286632,9.2259807846928972,2.7101220851029941,1.1911391478404885,2.5787761567781491,0,{"$error":"#DIV/0!"},10.979696519359663,8.6438196800633946,{"$error":"#DIV/0!"},7.9381086590614123,0,0,0,0,4.082909971941282,9.1701446294719915,8.7482073035006866,2.3499910212725865,5.0666588465959057,0]

{"sheet":"rent dollars FY23","index":6,"n_rows":112,"n_cols":38,"rows_kept":112,"cut":false,"hidden":true,"merged":[[1,3,2,3]]}
[null,"BI TOTAL",27488000]
[null,null,null,"Total","F6121","F6122","F6123","F6124","F6125","F6126","F6127","F6129","F612A","F612C","F612E","F612H","F612J","F612K","F6131","F6132","F6133","F6134","F6137","F613D","F613E","F613F","F613G","F613H","F613i","F613K","F613L","F613M","F6141","F6142","F6143","F6144","F614G","F6146"]
[null,"Agency #","Agency",null,"Cherberg","O'Brien","Legislative","Pritchard","HLB","OB2","Archives","NRB","Emp Sec","Transportation","Insurance","Old Cap","TOJ","Newhouse","Modular Bldg","Isabella Bush","1007 Washington","120 E Union Avenue","Conservatory","Capital Court","James Dolliver Building","Undeveloped Properties","1068 WA Street SE (ST Farm)","232 Perry Street","208 11th Avenue SE (Pro Arts)","Press Houses Ayer(White); Carlyon(Blue)","Visitor Center","Helen Sommers","Kelso Building","Yakima Building","Alaska Street","Tacoma Rhodes","Tacoma Rhodes Garage","North Cascades Gateway Center (NCGC)"]
[{"$f":"CONCATENATE(B4,\" - \",C4)","v":"011 - House of Representatives"},"011","House of Representatives",{"$f":"'rent allocations'!D4*$C$1","v":1602936.5297835071},{"$f":"'rent allocations'!E4*$C$1","v":0},{"$f":"'rent allocations'!F4*$C$1","v":730999.07466031541},{"$f":"'rent allocations'!G4*$C$1","v":871937.45512319193},{"$f":"'rent allocations'!H4*$C$1","v":0},{"$f":"'rent allocations'!I4*$C$1","v":0},{"$f":"'rent allocations'!J4*$C$1","v":0},{"$f":"'rent allocations'!K4*$C$1","v":0},{"$f":"'rent allocations'!L4*$C$1","v":0},{"$f":"'rent allocations'!M4*$C$1","v":0},{"$f":"'rent allocations'!N4*$C$1","v":0},{"$f":"'rent allocations'!O4*$C$1","v":0},{"$f":"'rent allocations'!P4*$C$1","v":0},{"$f":"'rent allocations'!Q4*$C$1","v":0},{"$f":"'rent allocations'!R4*$C$1","v":0},{"$f":"'rent allocations'!S4*$C$1","v":0},{"$f":"'rent allocations'!T4*$C$1","v":0},{"$f":"'rent allocations'!U4*$C$1","v":0},{"$f":"'rent allocations'!V4*$C$1","v":0},{"$f":"'rent allocations'!W4*$C$1","v":0},{"$f":"'rent allocations'!X4*$C$1","v":0},{"$f":"'rent allocations'!Y4*$C$1","v":0},{"$f":"'rent allocations'!Z4*$C$1","v":0},{"$f":"'rent allocations'!AA4*$C$1","v":0},{"$f":"'rent allocations'!AB4*$C$1","v":0},{"$f":"'rent allocations'!AC4*$C$1","v":0},{"$f":"'rent allocations'!AD4*$C$1","v":0},{"$f":"'rent allocations'!AE4*$C$1","v":0},{"$f":"'rent allocations'!AF4*$C$1","v":0},{"$f":"'rent allocations'!AG4*$C$1","v":0},{"$f":"'rent allocations'!AH4*$C$1","v":0},{"$f":"'rent allocations'!AI4*$C$1","v":0},{"$f":"'rent allocations'!AJ4*$C$1","v":0},{"$f":"'rent allocations'!AK4*$C$1","v":0},{"$f":"'rent allocations'!AL4*$C$1","v":0}]
[{"$f":"CONCATENATE(B5,\" - \",C5)","v":"012 - Senate"},"012","Senate",{"$f":"'rent allocations'!D5*$C$1","v":2242999.3066114453},{"$f":"'rent allocations'!E5*$C$1","v":1140253.8343322519},{"$f":"'rent allocations'!F5*$C$1","v":0},{"$f":"'rent allocations'!G5*$C$1","v":679473.77528847696},{"$f":"'rent allocations'!H5*$C$1","v":0},{"$f":"'rent allocations'!I5*$C$1","v":0},{"$f":"'rent allocations'!J5*$C$1","v":0},{"$f":"'rent allocations'!K5*$C$1","v":0},{"$f":"'rent allocations'!L5*$C$1","v":0},{"$f":"'rent allocations'!M5*$C$1","v":0},{"$f":"'rent allocations'!N5*$C$1","v":0},{"$f":"'rent allocations'!O5*$C$1","v":0},{"$f":"'rent allocations'!P5*$C$1","v":0},{"$f":"'rent allocations'!Q5*$C$1","v":0},{"$f":"'rent allocations'!R5*$C$1","v":423271.69699071645},{"$f":"'rent allocations'!S5*$C$1","v":0},{"$f":"'rent allocations'!T5*$C$1","v":0},{"$f":"'rent allocations'!U5*$C$1","v":0},{"$f":"'rent allocations'!V5*$C$1","v":0},{"$f":"'rent allocations'!W5*$C$1","v":0},{"$f":"'rent allocations'!X5*$C$1","v":0},{"$f":"'rent allocations'!Y5*$C$1","v":0},{"$f":"'rent allocations'!Z5*$C$1","v":0},{"$f":"'rent allocations'!AA5*$C$1","v":0},{"$f":"'rent allocations'!AB5*$C$1","v":0},{"$f":"'rent allocations'!AC5*$C$1","v":0},{"$f":"'rent allocations'!AD5*$C$1","v":0},{"$f":"'rent allocations'!AE5*$C$1","v":0},{"$f":"'rent allocations'!AF5*$C$1","v":0},{"$f":"'rent allocations'!AG5*$C$1","v":0},{"$f":"'rent allocations'!AH5*$C$1","v":0},{"$f":"'rent allocations'!AI5*$C$1","v":0},{"$f":"'rent allocations'!AJ5*$C$1","v":0},{"$f":"'rent allocations'!AK5*$C$1","v":0},{"$f":"'rent allocations'!AL5*$C$1","v":0}]
["013 - Joint Transportation Committee","013","Joint Transportation Committee",{"$f":"'rent allocations'!D6*$C$1","v":0},{"$f":"'rent allocations'!E6*$C$1","v":0},{"$f":"'rent allocations'!F6*$C$1","v":0},{"$f":"'rent allocations'!G6*$C$1","v":0},{"$f":"'rent allocations'!H6*$C$1","v":0},{"$f":"'rent allocations'!I6*$C$1","v":0},{"$f":"'rent allocations'!J6*$C$1","v":0},{"$f":"'rent allocations'!K6*$C$1","v":0},{"$f":"'rent allocations'!L6*$C$1","v":0},{"$f":"'rent allocations'!M6*$C$1","v":0},{"$f":"'rent allocations'!N6*$C$1","v":0},{"$f":"'rent allocations'!O6*$C$1","v":0},{"$f":"'rent allocations'!P6*$C$1","v":0},{"$f":"'rent allocations'!Q6*$C$1","v":0},{"$f":"'rent allocations'!R6*$C$1","v":0},{"$f":"'rent allocations'!S6*$C$1","v":0},{"$f":"'rent allocations'!T6*$C$1","v":0},{"$f":"'rent allocations'!U6*$C$1","v":0},{"$f":"'rent allocations'!V6*$C$1","v":0},{"$f":"'rent allocations'!W6*$C$1","v":0},{"$f":"'rent allocations'!X6*$C$1","v":0},{"$f":"'rent allocations'!Y6*$C$1","v":0},{"$f":"'rent allocations'!Z6*$C$1","v":0},{"$f":"'rent allocations'!AA6*$C$1","v":0},{"$f":"'rent allocations'!AB6*$C$1","v":0},{"$f":"'rent allocations'!AC6*$C$1","v":0},{"$f":"'rent allocations'!AD6*$C$1","v":0},{"$f":"'rent allocations'!AE6*$C$1","v":0},{"$f":"'rent allocations'!AF6*$C$1","v":0},{"$f":"'rent allocations'!AG6*$C$1","v":0},{"$f":"'rent allocations'!AH6*$C$1","v":0},{"$f":"'rent allocations'!AI6*$C$1","v":0},{"$f":"'rent allocations'!AJ6*$C$1","v":0},{"$f":"'rent allocations'!AK6*$C$1","v":0},{"$f":"'rent allocations'!AL6*$C$1","v":0}]
["014 - Joint Legislative Audit and Review Committee","014","Joint Legislative Audit and Review Committee",{"$f":"'rent allocations'!D7*$C$1","v":75557.52868956569},{"$f":"'rent allocations'!E7*$C$1","v":0},{"$f":"'rent allocations'!F7*$C$1","v":0},{"$f":"'rent allocations'!G7*$C$1","v":0},{"$f":"'rent allocations'!H7*$C$1","v":0},{"$f":"'rent allocations'!I7*$C$1","v":0},{"$f":"'rent allocations'!J7*$C$1","v":0},{"$f":"'rent allocations'!K7*$C$1","v":0},{"$f":"'rent allocations'!L7*$C$1","v":0},{"$f":"'rent allocations'!M7*$C$1","v":0},{"$f":"'rent allocations'!N7*$C$1","v":0},{"$f":"'rent allocations'!O7*$C$1","v":0},{"$f":"'rent allocations'!P7*$C$1","v":0},{"$f":"'rent allocations'!Q7*$C$1","v":0},{"$f":"'rent allocations'!R7*$C$1","v":0},{"$f":"'rent allocations'!S7*$C$1","v":0},{"$f":"'rent allocations'!T7*$C$1","v":0},{"$f":"'rent allocations'!U7*$C$1","v":0},{"$f":"'rent allocations'!V7*$C$1","v":0},{"$f":"'rent allocations'!W7*$C$1","v":0},{"$f":"'rent allocations'!X7*$C$1","v":0},{"$f":"'rent allocations'!Y7*$C$1","v":0},{"$f":"'rent allocations'!Z7*$C$1","v":0},{"$f":"'rent allocations'!AA7*$C$1","v":0},{"$f":"'rent allocations'!AB7*$C$1","v":0},{"$f":"'rent allocations'!AC7*$C$1","v":0},{"$f":"'rent allocations'!AD7*$C$1","v":0},{"$f":"'rent allocations'!AE7*$C$1","v":0},{"$f":"'rent allocations'!AF7*$C$1","v":75557.52868956569},{"$f":"'rent allocations'!AG7*$C$1","v":0},{"$f":"'rent allocations'!AH7*$C$1","v":0},{"$f":"'rent allocations'!AI7*$C$1","v":0},{"$f":"'rent allocations'!AJ7*$C$1","v":0},{"$f":"'rent allocations'!AK7*$C$1","v":0},{"$f":"'rent allocations'!AL7*$C$1","v":0}]
["020 - Legislative Evaluation and Accountability Program Committee","020","Legislative Evaluation and Accountability Program Committee",{"$f":"'rent allocations'!D8*$C$1","v":36074.107598720293},{"$f":"'rent allocations'!E8*$C$1","v":0},{"$f":"'rent allocations'!F8*$C$1","v":0},{"$f":"'rent allocations'!G8*$C$1","v":0},{"$f":"'rent allocations'!H8*$C$1","v":0},{"$f":"'rent allocations'!I8*$C$1","v":0},{"$f":"'rent allocations'!J8*$C$1","v":0},{"$f":"'rent allocations'!K8*$C$1","v":0},{"$f":"'rent allocations'!L8*$C$1","v":0},{"$f":"'rent allocations'!M8*$C$1","v":0},{"$f":"'rent allocations'!N8*$C$1","v":0},{"$f":"'rent allocations'!O8*$C$1","v":0},{"$f":"'rent allocations'!P8*$C$1","v":0},{"$f":"'rent allocations'!Q8*$C$1","v":0},{"$f":"'rent allocations'!R8*$C$1","v":0},{"$f":"'rent allocations'!S8*$C$1","v":0},{"$f":"'rent allocations'!T8*$C$1","v":0},{"$f":"'rent allocations'!U8*$C$1","v":0},{"$f":"'rent allocations'!V8*$C$1","v":0},{"$f":"'rent allocations'!W8*$C$1","v":0},{"$f":"'rent allocations'!X8*$C$1","v":0},{"$f":"'rent allocations'!Y8*$C$1","v":0},{"$f":"'rent allocations'!Z8*$C$1","v":0},{"$f":"'rent allocations'!AA8*$C$1","v":0},{"$f":"'rent allocations'!AB8*$C$1","v":0},{"$f":"'rent allocations'!AC8*$C$1","v":0},{"$f":"'rent allocations'!AD8*$C$1","v":0},{"$f":"'rent allocations'!AE8*$C$1","v":0},{"$f":"'rent allocations'!AF8*$C$1","v":36074.107598720293},{"$f":"'rent allocations'!AG8*$C$1","v":0},{"$f":"'rent allocations'!AH8*$C$1","v":0},{"$f":"'rent allocations'!AI8*$C$1","v":0},{"$f":"'rent allocations'!AJ8*$C$1","v":0},{"$f":"'rent allocations'!AK8*$C$1","v":0},{"$f":"'rent allocations'!AL8*$C$1","v":0}]
["035 - Office of the State Actuary","035","Office of the State Actuary",{"$f":"'rent allocations'!D9*$C$1","v":0},{"$f":"'rent allocations'!E9*$C$1","v":0},{"$f":"'rent allocations'!F9*$C$1","v":0},{"$f":"'rent allocations'!G9*$C$1","v":0},{"$f":"'rent allocations'!H9*$C$1","v":0},{"$f":"'rent allocations'!I9*$C$1","v":0},{"$f":"'rent allocations'!J9*$C$1","v":0},{"$f":"'rent allocations'!K9*$C$1","v":0},{"$f":"'rent allocations'!L9*$C$1","v":0},{"$f":"'rent allocations'!M9*$C$1","v":0},{"$f":"'rent allocations'!N9*$C$1","v":0},{"$f":"'rent allocations'!O9*$C$1","v":0},{"$f":"'rent allocations'!P9*$C$1","v":0},{"$f":"'rent allocations'!Q9*$C$1","v":0},{"$f":"'rent allocations'!R9*$C$1","v":0},{"$f":"'rent allocations'!S9*$C$1","v":0},{"$f":"'rent allocations'!T9*$C$1","v":0},{"$f":"'rent allocations'!U9*$C$1","v":0},{"$f":"'rent allocations'!V9*$C$1","v":0},{"$f":"'rent allocations'!W9*$C$1","v":0},{"$f":"'rent allocations'!X9*$C$1","v":0},{"$f":"'rent allocations'!Y9*$C$1","v":0},{"$f":"'rent allocations'!Z9*$C$1","v":0},{"$f":"'rent allocations'!AA9*$C$1","v":0},{"$f":"'rent allocations'!AB9*$C$1","v":0},{"$f":"'rent allocations'!AC9*$C$1","v":0},{"$f":"'rent allocations'!AD9*$C$1","v":0},{"$f":"'rent allocations'!AE9*$C$1","v":0},{"$f":"'rent allocations'!AF9*$C$1","v":0},{"$f":"'rent allocations'!AG9*$C$1","v":0},{"$f":"'rent allocations'!AH9*$C$1","v":0},{"$f":"'rent allocations'!AI9*$C$1","v":0},{"$f":"'rent allocations'!AJ9*$C$1","v":0},{"$f":"'rent allocations'!AK9*$C$1","v":0},{"$f":"'rent allocations'!AL9*$C$1","v":0}]
["037 - Office of Legislative Support Services","037","Office of Legislative Support Services",{"$f":"'rent allocations'!D10*$C$1","v":269321.85221683263},{"$f":"'rent allocations'!E10*$C$1","v":0},{"$f":"'rent allocations'!F10*$C$1","v":0},{"$f":"'rent allocations'!G10*$C$1","v":95827.666189704483},{"$f":"'rent allocations'!H10*$C$1","v":96661.619923080274},{"$f":"'rent allocations'!I10*$C$1","v":0},{"$f":"'rent allocations'!J10*$C$1","v":0},{"$f":"'rent allocations'!K10*$C$1","v":0},{"$f":"'rent allocations'!L10*$C$1","v":0},{"$f":"'rent allocations'!M10*$C$1","v":0},{"$f":"'rent allocations'!N10*$C$1","v":0},{"$f":"'rent allocations'!O10*$C$1","v":0},{"$f":"'rent allocations'!P10*$C$1","v":0},{"$f":"'rent allocations'!Q10*$C$1","v":0},{"$f":"'rent allocations'!R10*$C$1","v":0},{"$f":"'rent allocations'!S10*$C$1","v":0},{"$f":"'rent allocations'!T10*$C$1","v":0},{"$f":"'rent allocations'!U10*$C$1","v":76832.566104047888},{"$f":"'rent allocations'!V10*$C$1","v":0},{"$f":"'rent allocations'!W10*$C$1","v":0},{"$f":"'rent allocations'!X10*$C$1","v":0},{"$f":"'rent allocations'!Y10*$C$1","v":0},{"$f":"'rent allocations'!Z10*$C$1","v":0},{"$f":"'rent allocations'!AA10*$C$1","v":0},{"$f":"'rent allocations'!AB10*$C$1","v":0},{"$f":"'rent allocations'!AC10*$C$1","v":0},{"$f":"'rent allocations'!AD10*$C$1","v":0},{"$f":"'rent allocations'!AE10*$C$1","v":0},{"$f":"'rent allocations'!AF10*$C$1","v":0},{"$f":"'rent allocations'!AG10*$C$1","v":0},{"$f":"'rent allocations'!AH10*$C$1","v":0},{"$f":"'rent allocations'!AI10*$C$1","v":0},{"$f":"'rent allocations'!AJ10*$C$1","v":0},{"$f":"'rent allocations'!AK10*$C$1","v":0},{"$f":"'rent allocations'!AL10*$C$1","v":0}]
["038 - Joint Legislative Systems Committee","038","Joint Legislative Systems Committee",{"$f":"'rent allocations'!D11*$C$1","v":315856.83805477509},{"$f":"'rent allocations'!E11*$C$1","v":0},{"$f":"'rent allocations'!F11*$C$1","v":0},{"$f":"'rent allocations'!G11*$C$1","v":21998.598605107902},{"$f":"'rent allocations'!H11*$C$1","v":192097.45843409255},{"$f":"'rent allocations'!I11*$C$1","v":0},{"$f":"'rent allocations'!J11*$C$1","v":0},{"$f":"'rent allocations'!K11*$C$1","v":0},{"$f":"'rent allocations'!L11*$C$1","v":0},{"$f":"'rent allocations'!M11*$C$1","v":0},{"$f":"'rent allocations'!N11*$C$1","v":0},{"$f":"'rent allocations'!O11*$C$1","v":0},{"$f":"'rent allocations'!P11*$C$1","v":0},{"$f":"'rent allocations'!Q11*$C$1","v":0},{"$f":"'rent allocations'!R11*$C$1","v":0},{"$f":"'rent allocations'!S11*$C$1","v":0},{"$f":"'rent allocations'!T11*$C$1","v":0},{"$f":"'rent allocations'!U11*$C$1","v":0},{"$f":"'rent allocations'!V11*$C$1","v":0},{"$f":"'rent allocations'!W11*$C$1","v":0},{"$f":"'rent allocations'!X11*$C$1","v":0},{"$f":"'rent allocations'!Y11*$C$1","v":0},{"$f":"'rent allocations'!Z11*$C$1","v":0},{"$f":"'rent allocations'!AA11*$C$1","v":0},{"$f":"'rent allocations'!AB11*$C$1","v":0},{"$f":"'rent allocations'!AC11*$C$1","v":0},{"$f":"'rent allocations'!AD11*$C$1","v":0},{"$f":"'rent allocations'!AE11*$C$1","v":0},{"$f":"'rent allocations'!AF11*$C$1","v":101760.78101557463},{"$f":"'rent allocations'!AG11*$C$1","v":0},{"$f":"'rent allocations'!AH11*$C$1","v":0},{"$f":"'rent allocations'!AI11*$C$1","v":0},{"$f":"'rent allocations'!AJ11*$C$1","v":0},{"$f":"'rent allocations'!AK11*$C$1","v":0},{"$f":"'rent allocations'!AL11*$C$1","v":0}]
["040 - Statute Law Committee (Code Revisor)","040","Statute Law Committee (Code Revisor)",{"$f":"'rent allocations'!D12*$C$1","v":308871.89989396278},{"$f":"'rent allocations'!E12*$C$1","v":0},{"$f":"'rent allocations'!F12*$C$1","v":0},{"$f":"'rent allocations'!G12*$C$1","v":0},{"$f":"'rent allocations'!H12*$C$1","v":308871.89989396278},{"$f":"'rent allocations'!I12*$C$1","v":0},{"$f":"'rent allocations'!J12*$C$1","v":0},{"$f":"'rent allocations'!K12*$C$1","v":0},{"$f":"'rent allocations'!L12*$C$1","v":0},{"$f":"'rent allocations'!M12*$C$1","v":0},{"$f":"'rent allocations'!N12*$C$1","v":0},{"$f":"'rent allocations'!O12*$C$1","v":0},{"$f":"'rent allocations'!P12*$C$1","v":0},{"$f":"'rent allocations'!Q12*$C$1","v":0},{"$f":"'rent allocations'!R12*$C$1","v":0},{"$f":"'rent allocations'!S12*$C$1","v":0},{"$f":"'rent allocations'!T12*$C$1","v":0},{"$f":"'rent allocations'!U12*$C$1","v":0},{"$f":"'rent allocations'!V12*$C$1","v":0},{"$f":"'rent allocations'!W12*$C$1","v":0},{"$f":"'rent allocations'!X12*$C$1","v":0},{"$f":"'rent allocations'!Y12*$C$1","v":0},{"$f":"'rent allocations'!Z12*$C$1","v":0},{"$f":"'rent allocations'!AA12*$C$1","v":0},{"$f":"'rent allocations'!AB12*$C$1","v":0},{"$f":"'rent allocations'!AC12*$C$1","v":0},{"$f":"'rent allocations'!AD12*$C$1","v":0},{"$f":"'rent allocations'!AE12*$C$1","v":0},{"$f":"'rent allocations'!AF12*$C$1","v":0},{"$f":"'rent allocations'!AG12*$C$1","v":0},{"$f":"'rent allocations'!AH12*$C$1","v":0},{"$f":"'rent allocations'!AI12*$C$1","v":0},{"$f":"'rent allocations'!AJ12*$C$1","v":0},{"$f":"'rent allocations'!AK12*$C$1","v":0},{"$f":"'rent allocations'!AL12*$C$1","v":0}]
["045 - Supreme Court","045","Supreme Court",{"$f":"'rent allocations'!D13*$C$1","v":510296.60279538296},{"$f":"'rent allocations'!E13*$C$1","v":0},{"$f":"'rent allocations'!F13*$C$1","v":0},{"$f":"'rent allocations'!G13*$C$1","v":0},{"$f":"'rent allocations'!H13*$C$1","v":0},{"$f":"'rent allocations'!I13*$C$1","v":0},{"$f":"'rent allocations'!J13*$C$1","v":0},{"$f":"'rent allocations'!K13*$C$1","v":0},{"$f":"'rent allocations'!L13*$C$1","v":0},{"$f":"'rent allocations'!M13*$C$1","v":0},{"$f":"'rent allocations'!N13*$C$1","v":0},{"$f":"'rent allocations'!O13*$C$1","v":0},{"$f":"'rent allocations'!P13*$C$1","v":0},{"$f":"'rent allocations'!Q13*$C$1","v":510296.60279538296},{"$f":"'rent allocations'!R13*$C$1","v":0},{"$f":"'rent allocations'!S13*$C$1","v":0},{"$f":"'rent allocations'!T13*$C$1","v":0},{"$f":"'rent allocations'!U13*$C$1","v":0},{"$f":"'rent allocations'!V13*$C$1","v":0},{"$f":"'rent allocations'!W13*$C$1","v":0},{"$f":"'rent allocations'!X13*$C$1","v":0},{"$f":"'rent allocations'!Y13*$C$1","v":0},{"$f":"'rent allocations'!Z13*$C$1","v":0},{"$f":"'rent allocations'!AA13*$C$1","v":0},{"$f":"'rent allocations'!AB13*$C$1","v":0},{"$f":"'rent allocations'!AC13*$C$1","v":0},{"$f":"'rent allocations'!AD13*$C$1","v":0},{"$f":"'rent allocations'!AE13*$C$1","v":0},{"$f":"'rent allocations'!AF13*$C$1","v":0},{"$f":"'rent allocations'!AG13*$C$1","v":0},{"$f":"'rent allocations'!AH13*$C$1","v":0},{"$f":"'rent allocations'!AI13*$C$1","v":0},{"$f":"'rent allocations'!AJ13*$C$1","v":0},{"$f":"'rent allocations'!AK13*$C$1","v":0},{"$f":"'rent allocations'!AL13*$C$1","v":0}]
["046 - Law Library","046","Law Library",{"$f":"'rent allocations'!D14*$C$1","v":231813.58343839762},{"$f":"'rent allocations'!E14*$C$1","v":0},{"$f":"'rent allocations'!F14*$C$1","v":0},{"$f":"'rent allocations'!G14*$C$1","v":0},{"$f":"'rent allocations'!H14*$C$1","v":0},{"$f":"'rent allocations'!I14*$C$1","v":0},{"$f":"'rent allocations'!J14*$C$1","v":0},{"$f":"'rent allocations'!K14*$C$1","v":0},{"$f":"'rent allocations'!L14*$C$1","v":0},{"$f":"'rent allocations'!M14*$C$1","v":0},{"$f":"'rent allocations'!N14*$C$1","v":0},{"$f":"'rent allocations'!O14*$C$1","v":0},{"$f":"'rent allocations'!P14*$C$1","v":0},{"$f":"'rent allocations'!Q14*$C$1","v":231813.58343839762},{"$f":"'rent allocations'!R14*$C$1","v":0},{"$f":"'rent allocations'!S14*$C$1","v":0},{"$f":"'rent allocations'!T14*$C$1","v":0},{"$f":"'rent allocations'!U14*$C$1","v":0},{"$f":"'rent allocations'!V14*$C$1","v":0},{"$f":"'rent allocations'!W14*$C$1","v":0},{"$f":"'rent allocations'!X14*$C$1","v":0},{"$f":"'rent allocations'!Y14*$C$1","v":0},{"$f":"'rent allocations'!Z14*$C$1","v":0},{"$f":"'rent allocations'!AA14*$C$1","v":0},{"$f":"'rent allocations'!AB14*$C$1","v":0},{"$f":"'rent allocations'!AC14*$C$1","v":0},{"$f":"'rent allocations'!AD14*$C$1","v":0},{"$f":"'rent allocations'!AE14*$C$1","v":0},{"$f":"'rent allocations'!AF14*$C$1","v":0},{"$f":"'rent allocations'!AG14*$C$1","v":0},{"$f":"'rent allocations'!AH14*$C$1","v":0},{"$f":"'rent allocations'!AI14*$C$1","v":0},{"$f":"'rent allocations'!AJ14*$C$1","v":0},{"$f":"'rent allocations'!AK14*$C$1","v":0},{"$f":"'rent allocations'!AL14*$C$1","v":0}]
["048 - Court of Appeals","048","Court of Appeals",{"$f":"'rent allocations'!D15*$C$1","v":536584.77081027941},{"$f":"'rent allocations'!E15*$C$1","v":0},{"$f":"'rent allocations'!F15*$C$1","v":0},{"$f":"'rent allocations'!G15*$C$1","v":0},{"$f":"'rent allocations'!H15*$C$1","v":0},{"$f":"'rent allocations'!I15*$C$1","v":0},{"$f":"'rent allocations'!J15*$C$1","v":0},{"$f":"'rent allocations'!K15*$C$1","v":0},{"$f":"'rent allocations'!L15*$C$1","v":0},{"$f":"'rent allocations'!M15*$C$1","v":0},{"$f":"'rent allocations'!N15*$C$1","v":0},{"$f":"'rent allocations'!O15*$C$1","v":0},{"$f":"'rent allocations'!P15*$C$1","v":0},{"$f":"'rent allocations'!Q15*$C$1","v":0},{"$f":"'rent allocations'!R15*$C$1","v":0},{"$f":"'rent allocations'!S15*$C$1","v":0},{"$f":"'rent allocations'!T15*$C$1","v":0},{"$f":"'rent allocations'!U15*$C$1","v":0},{"$f":"'rent allocations'!V15*$C$1","v":0},{"$f":"'rent allocations'!W15*$C$1","v":0},{"$f":"'rent allocations'!X15*$C$1","v":0},{"$f":"'rent allocations'!Y15*$C$1","v":0},{"$f":"'rent allocations'!Z15*$C$1","v":0},{"$f":"'rent allocations'!AA15*$C$1","v":0},{"$f":"'rent allocations'!AB15*$C$1","v":0},{"$f":"'rent allocations'!AC15*$C$1","v":0},{"$f":"'rent allocations'!AD15*$C$1","v":0},{"$f":"'rent allocations'!AE15*$C$1","v":0},{"$f":"'rent allocations'!AF15*$C$1","v":0},{"$f":"'rent allocations'!AG15*$C$1","v":0},{"$f":"'rent allocations'!AH15*$C$1","v":0},{"$f":"'rent allocations'!AI15*$C$1","v":0},{"$f":"'rent allocations'!AJ15*$C$1","v":536584.77081027941},{"$f":"'rent allocations'!AK15*$C$1","v":0},{"$f":"'rent allocations'!AL15*$C$1","v":0}]
["050 - Commission on Judicial Conduct","050","Commission on Judicial Conduct",{"$f":"'rent allocations'!D16*$C$1","v":118769.7667353919},{"$f":"'rent allocations'!E16*$C$1","v":0},{"$f":"'rent allocations'!F16*$C$1","v":0},{"$f":"'rent allocations'!G16*$C$1","v":0},{"$f":"'rent allocations'!H16*$C$1","v":0},{"$f":"'rent allocations'!I16*$C$1","v":0},{"$f":"'rent allocations'!J16*$C$1","v":0},{"$f":"'rent allocations'!K16*$C$1","v":0},{"$f":"'rent allocations'!L16*$C$1","v":0},{"$f":"'rent allocations'!M16*$C$1","v":0},{"$f":"'rent allocations'!N16*$C$1","v":0},{"$f":"'rent allocations'!O16*$C$1","v":0},{"$f":"'rent allocations'!P16*$C$1","v":0},{"$f":"'rent allocations'!Q16*$C$1","v":0},{"$f":"'rent allocations'!R16*$C$1","v":0},{"$f":"'rent allocations'!S16*$C$1","v":0},{"$f":"'rent allocations'!T16*$C$1","v":0},{"$f":"'rent allocations'!U16*$C$1","v":0},{"$f":"'rent allocations'!V16*$C$1","v":0},{"$f":"'rent allocations'!W16*$C$1","v":0},{"$f":"'rent allocations'!X16*$C$1","v":118769.7667353919},{"$f":"'rent allocations'!Y16*$C$1","v":0},{"$f":"'rent allocations'!Z16*$C$1","v":0},{"$f":"'rent allocations'!AA16*$C$1","v":0},{"$f":"'rent allocations'!AB16*$C$1","v":0},{"$f":"'rent allocations'!AC16*$C$1","v":0},{"$f":"'rent allocations'!AD16*$C$1","v":0},{"$f":"'rent allocations'!AE16*$C$1","v":0},{"$f":"'rent allocations'!AF16*$C$1","v":0},{"$f":"'rent allocations'!AG16*$C$1","v":0},{"$f":"'rent allocations'!AH16*$C$1","v":0},{"$f":"'rent allocations'!AI16*$C$1","v":0},{"$f":"'rent allocations'!AJ16*$C$1","v":0},{"$f":"'rent allocations'!AK16*$C$1","v":0},{"$f":"'rent allocations'!AL16*$C$1","v":0}]
["055 - Administrative Office of the Courts","055","Administrative Office of the Courts",{"$f":"'rent allocations'!D17*$C$1","v":63914.875028967974},{"$f":"'rent allocations'!E17*$C$1","v":0},{"$f":"'rent allocations'!F17*$C$1","v":0},{"$f":"'rent allocations'!G17*$C$1","v":0},{"$f":"'rent allocations'!H17*$C$1","v":0},{"$f":"'rent allocations'!I17*$C$1","v":0},{"$f":"'rent allocations'!J17*$C$1","v":0},{"$f":"'rent allocations'!K17*$C$1","v":0},{"$f":"'rent allocations'!L17*$C$1","v":0},{"$f":"'rent allocations'!M17*$C$1","v":0},{"$f":"'rent allocations'!N17*$C$1","v":0},{"$f":"'rent allocations'!O17*$C$1","v":0},{"$f":"'rent allocations'!P17*$C$1","v":0},{"$f":"'rent allocations'!Q17*$C$1","v":63914.875028967974},{"$f":"'rent allocations'!R17*$C$1","v":0},{"$f":"'rent allocations'!S17*$C$1","v":0},{"$f":"'rent allocations'!T17*$C$1","v":0},{"$f":"'rent allocations'!U17*$C$1","v":0},{"$f":"'rent allocations'!V17*$C$1","v":0},{"$f":"'rent allocations'!W17*$C$1","v":0},{"$f":"'rent allocations'!X17*$C$1","v":0},{"$f":"'rent allocations'!Y17*$C$1","v":0},{"$f":"'rent allocations'!Z17*$C$1","v":0},{"$f":"'rent allocations'!AA17*$C$1","v":0},{"$f":"'rent allocations'!AB17*$C$1","v":0},{"$f":"'rent allocations'!AC17*$C$1","v":0},{"$f":"'rent allocations'!AD17*$C$1","v":0},{"$f":"'rent allocations'!AE17*$C$1","v":0},{"$f":"'rent allocations'!AF17*$C$1","v":0},{"$f":"'rent allocations'!AG17*$C$1","v":0},{"$f":"'rent allocations'!AH17*$C$1","v":0},{"$f":"'rent allocations'!AI17*$C$1","v":0},{"$f":"'rent allocations'!AJ17*$C$1","v":0},{"$f":"'rent allocations'!AK17*$C$1","v":0},{"$f":"'rent allocations'!AL17*$C$1","v":0}]
["056 - Office of Public Defense","056","Office of Public Defense",{"$f":"'rent allocations'!D18*$C$1","v":0},{"$f":"'rent allocations'!E18*$C$1","v":0},{"$f":"'rent allocations'!F18*$C$1","v":0},{"$f":"'rent allocations'!G18*$C$1","v":0},{"$f":"'rent allocations'!H18*$C$1","v":0},{"$f":"'rent allocations'!I18*$C$1","v":0},{"$f":"'rent allocations'!J18*$C$1","v":0},{"$f":"'rent allocations'!K18*$C$1","v":0},{"$f":"'rent allocations'!L18*$C$1","v":0},{"$f":"'rent allocations'!M18*$C$1","v":0},{"$f":"'rent allocations'!N18*$C$1","v":0},{"$f":"'rent allocations'!O18*$C$1","v":0},{"$f":"'rent allocations'!P18*$C$1","v":0},{"$f":"'rent allocations'!Q18*$C$1","v":0},{"$f":"'rent allocations'!R18*$C$1","v":0},{"$f":"'rent allocations'!S18*$C$1","v":0},{"$f":"'rent allocations'!T18*$C$1","v":0},{"$f":"'rent allocations'!U18*$C$1","v":0},{"$f":"'rent allocations'!V18*$C$1","v":0},{"$f":"'rent allocations'!W18*$C$1","v":0},{"$f":"'rent allocations'!X18*$C$1","v":0},{"$f":"'rent allocations'!Y18*$C$1","v":0},{"$f":"'rent allocations'!Z18*$C$1","v":0},{"$f":"'rent allocations'!AA18*$C$1","v":0},{"$f":"'rent allocations'!AB18*$C$1","v":0},{"$f":"'rent allocations'!AC18*$C$1","v":0},{"$f":"'rent allocations'!AD18*$C$1","v":0},{"$f":"'rent allocations'!AE18*$C$1","v":0},{"$f":"'rent allocations'!AF18*$C$1","v":0},{"$f":"'rent allocations'!AG18*$C$1","v":0},{"$f":"'rent allocations'!AH18*$C$1","v":0},{"$f":"'rent allocations'!AI18*$C$1","v":0},{"$f":"'rent allocations'!AJ18*$C$1","v":0},{"$f":"'rent allocations'!AK18*$C$1","v":0},{"$f":"'rent allocations'!AL18*$C$1","v":0}]
["057 - Office of Civil Legal Aid","057","Office of Civil Legal Aid",{"$f":"'rent allocations'!D19*$C$1","v":0},{"$f":"'rent allocations'!E19*$C$1","v":0},{"$f":"'rent allocations'!F19*$C$1","v":0},{"$f":"'rent allocations'!G19*$C$1","v":0},{"$f":"'rent allocations'!H19*$C$1","v":0},{"$f":"'rent allocations'!I19*$C$1","v":0},{"$f":"'rent allocations'!J19*$C$1","v":0},{"$f":"'rent allocations'!K19*$C$1","v":0},{"$f":"'rent allocations'!L19*$C$1","v":0},{"$f":"'rent allocations'!M19*$C$1","v":0},{"$f":"'rent allocations'!N19*$C$1","v":0},{"$f":"'rent allocations'!O19*$C$1","v":0},{"$f":"'rent allocations'!P19*$C$1","v":0},{"$f":"'rent allocations'!Q19*$C$1","v":0},{"$f":"'rent allocations'!R19*$C$1","v":0},{"$f":"'rent allocations'!S19*$C$1","v":0},{"$f":"'rent allocations'!T19*$C$1","v":0},{"$f":"'rent allocations'!U19*$C$1","v":0},{"$f":"'rent allocations'!V19*$C$1","v":0},{"$f":"'rent allocations'!W19*$C$1","v":0},{"$f":"'rent allocations'!X19*$C$1","v":0},{"$f":"'rent allocations'!Y19*$C$1","v":0},{"$f":"'rent allocations'!Z19*$C$1","v":0},{"$f":"'rent allocations'!AA19*$C$1","v":0},{"$f":"'rent allocations'!AB19*$C$1","v":0},{"$f":"'rent allocations'!AC19*$C$1","v":0},{"$f":"'rent allocations'!AD19*$C$1","v":0},{"$f":"'rent allocations'!AE19*$C$1","v":0},{"$f":"'rent allocations'!AF19*$C$1","v":0},{"$f":"'rent allocations'!AG19*$C$1","v":0},{"$f":"'rent allocations'!AH19*$C$1","v":0},{"$f":"'rent allocations'!AI19*$C$1","v":0},{"$f":"'rent allocations'!AJ19*$C$1","v":0},{"$f":"'rent allocations'!AK19*$C$1","v":0},{"$f":"'rent allocations'!AL19*$C$1","v":0}]
["075 - Office of the Governor","075","Office of the Governor",{"$f":"'rent allocations'!D20*$C$1","v":332134.57229076728},{"$f":"'rent allocations'!E20*$C$1","v":0},{"$f":"'rent allocations'!F20*$C$1","v":0},{"$f":"'rent allocations'!G20*$C$1","v":332134.57229076728},{"$f":"'rent allocations'!H20*$C$1","v":0},{"$f":"'rent allocations'!I20*$C$1","v":0},{"$f":"'rent allocations'!J20*$C$1","v":0},{"$f":"'rent allocations'!K20*$C$1","v":0},{"$f":"'rent allocations'!L20*$C$1","v":0},{"$f":"'rent allocations'!M20*$C$1","v":0},{"$f":"'rent allocations'!N20*$C$1","v":0},{"$f":"'rent allocations'!O20*$C$1","v":0},{"$f":"'rent allocations'!P20*$C$1","v":0},{"$f":"'rent allocations'!Q20*$C$1","v":0},{"$f":"'rent allocations'!R20*$C$1","v":0},{"$f":"'rent allocations'!S20*$C$1","v":0},{"$f":"'rent allocations'!T20*$C$1","v":0},{"$f":"'rent allocations'!U20*$C$1","v":0},{"$f":"'rent allocations'!V20*$C$1","v":0},{"$f":"'rent allocations'!W20*$C$1","v":0},{"$f":"'rent allocations'!X20*$C$1","v":0},{"$f":"'rent allocations'!Y20*$C$1","v":0},{"$f":"'rent allocations'!Z20*$C$1","v":0},{"$f":"'rent allocations'!AA20*$C$1","v":0},{"$f":"'rent allocations'!AB20*$C$1","v":0},{"$f":"'rent allocations'!AC20*$C$1","v":0},{"$f":"'rent allocations'!AD20*$C$1","v":0},{"$f":"'rent allocations'!AE20*$C$1","v":0},{"$f":"'rent allocations'!AF20*$C$1","v":0},{"$f":"'rent allocations'!AG20*$C$1","v":0},{"$f":"'rent allocations'!AH20*$C$1","v":0},{"$f":"'rent allocations'!AI20*$C$1","v":0},{"$f":"'rent allocations'!AJ20*$C$1","v":0},{"$f":"'rent allocations'!AK20*$C$1","v":0},{"$f":"'rent allocations'!AL20*$C$1","v":0}]
["080 - Office of Lieutenant Governor","080","Office of Lieutenant Governor",{"$f":"'rent allocations'!D21*$C$1","v":170792.2694853259},{"$f":"'rent allocations'!E21*$C$1","v":0},{"$f":"'rent allocations'!F21*$C$1","v":0},{"$f":"'rent allocations'!G21*$C$1","v":170792.2694853259},{"$f":"'rent allocations'!H21*$C$1","v":0},{"$f":"'rent allocations'!I21*$C$1","v":0},{"$f":"'rent allocations'!J21*$C$1","v":0},{"$f":"'rent allocations'!K21*$C$1","v":0},{"$f":"'rent allocations'!L21*$C$1","v":0},{"$f":"'rent allocations'!M21*$C$1","v":0},{"$f":"'rent allocations'!N21*$C$1","v":0},{"$f":"'rent allocations'!O21*$C$1","v":0},{"$f":"'rent allocations'!P21*$C$1","v":0},{"$f":"'rent allocations'!Q21*$C$1","v":0},{"$f":"'rent allocations'!R21*$C$1","v":0},{"$f":"'rent allocations'!S21*$C$1","v":0},{"$f":"'rent allocations'!T21*$C$1","v":0},{"$f":"'rent allocations'!U21*$C$1","v":0},{"$f":"'rent allocations'!V21*$C$1","v":0},{"$f":"'rent allocations'!W21*$C$1","v":0},{"$f":"'rent allocations'!X21*$C$1","v":0},{"$f":"'rent allocations'!Y21*$C$1","v":0},{"$f":"'rent allocations'!Z21*$C$1","v":0},{"$f":"'rent allocations'!AA21*$C$1","v":0},{"$f":"'rent allocations'!AB21*$C$1","v":0},{"$f":"'rent allocations'!AC21*$C$1","v":0},{"$f":"'rent allocations'!AD21*$C$1","v":0},{"$f":"'rent allocations'!AE21*$C$1","v":0},{"$f":"'rent allocations'!AF21*$C$1","v":0},{"$f":"'rent allocations'!AG21*$C$1","v":0},{"$f":"'rent allocations'!AH21*$C$1","v":0},{"$f":"'rent allocations'!AI21*$C$1","v":0},{"$f":"'rent allocations'!AJ21*$C$1","v":0},{"$f":"'rent allocations'!AK21*$C$1","v":0},{"$f":"'rent allocations'!AL21*$C$1","v":0}]
["082 - Public Disclosure Commission","082","Public Disclosure Commission",{"$f":"'rent allocations'!D22*$C$1","v":0},{"$f":"'rent allocations'!E22*$C$1","v":0},{"$f":"'rent allocations'!F22*$C$1","v":0},{"$f":"'rent allocations'!G22*$C$1","v":0},{"$f":"'rent allocations'!H22*$C$1","v":0},{"$f":"'rent allocations'!I22*$C$1","v":0},{"$f":"'rent allocations'!J22*$C$1","v":0},{"$f":"'rent allocations'!K22*$C$1","v":0},{"$f":"'rent allocations'!L22*$C$1","v":0},{"$f":"'rent allocations'!M22*$C$1","v":0},{"$f":"'rent allocations'!N22*$C$1","v":0},{"$f":"'rent allocations'!O22*$C$1","v":0},{"$f":"'rent allocations'!P22*$C$1","v":0},{"$f":"'rent allocations'!Q22*$C$1","v":0},{"$f":"'rent allocations'!R22*$C$1","v":0},{"$f":"'rent allocations'!S22*$C$1","v":0},{"$f":"'rent allocations'!T22*$C$1","v":0},{"$f":"'rent allocations'!U22*$C$1","v":0},{"$f":"'rent allocations'!V22*$C$1","v":0},{"$f":"'rent allocations'!W22*$C$1","v":0},{"$f":"'rent allocations'!X22*$C$1","v":0},{"$f":"'rent allocations'!Y22*$C$1","v":0},{"$f":"'rent allocations'!Z22*$C$1","v":0},{"$f":"'rent allocations'!AA22*$C$1","v":0},{"$f":"'rent allocations'!AB22*$C$1","v":0},{"$f":"'rent allocations'!AC22*$C$1","v":0},{"$f":"'rent allocations'!AD22*$C$1","v":0},{"$f":"'rent allocations'!AE22*$C$1","v":0},{"$f":"'rent allocations'!AF22*$C$1","v":0},{"$f":"'rent allocations'!AG22*$C$1","v":0},{"$f":"'rent allocations'!AH22*$C$1","v":0},{"$f":"'rent allocations'!AI22*$C$1","v":0},{"$f":"'rent allocations'!AJ22*$C$1","v":0},{"$f":"'rent allocations'!AK22*$C$1","v":0},{"$f":"'rent allocations'!AL22*$C$1","v":0}]
["085 - Office of the Secretary of State","085","Office of the Secretary of State",{"$f":"'rent allocations'!D23*$C$1","v":1129718.8733580769},{"$f":"'rent allocations'!E23*$C$1","v":0},{"$f":"'rent allocations'!F23*$C$1","v":0},{"$f":"'rent allocations'!G23*$C$1","v":204973.81902397124},{"$f":"'rent allocations'!H23*$C$1","v":0},{"$f":"'rent allocations'!I23*$C$1","v":0},{"$f":"'rent allocations'!J23*$C$1","v":0},{"$f":"'rent allocations'!K23*$C$1","v":465665.56958316785},{"$f":"'rent allocations'!L23*$C$1","v":0},{"$f":"'rent allocations'!M23*$C$1","v":0},{"$f":"'rent allocations'!N23*$C$1","v":0},{"$f":"'rent allocations'!O23*$C$1","v":0},{"$f":"'rent allocations'!P23*$C$1","v":0},{"$f":"'rent allocations'!Q23*$C$1","v":0},{"$f":"'rent allocations'!R23*$C$1","v":0},{"$f":"'rent allocations'!S23*$C$1","v":36016.243669272786},{"$f":"'rent allocations'!T23*$C$1","v":117073.13758445643},{"$f":"'rent allocations'!U23*$C$1","v":0},{"$f":"'rent allocations'!V23*$C$1","v":0},{"$f":"'rent allocations'!W23*$C$1","v":0},{"$f":"'rent allocations'!X23*$C$1","v":0},{"$f":"'rent allocations'!Y23*$C$1","v":305990.10349720874},{"$f":"'rent allocations'!Z23*$C$1","v":0},{"$f":"'rent allocations'!AA23*$C$1","v":0},{"$f":"'rent allocations'!AB23*$C$1","v":0},{"$f":"'rent allocations'!AC23*$C$1","v":0},{"$f":"'rent allocations'!AD23*$C$1","v":0},{"$f":"'rent allocations'!AE23*$C$1","v":0},{"$f":"'rent allocations'!AF23*$C$1","v":0},{"$f":"'rent allocations'!AG23*$C$1","v":0},{"$f":"'rent allocations'!AH23*$C$1","v":0},{"$f":"'rent allocations'!AI23*$C$1","v":0},{"$f":"'rent allocations'!AJ23*$C$1","v":0},{"$f":"'rent allocations'!AK23*$C$1","v":0},{"$f":"'rent allocations'!AL23*$C$1","v":0}]
["086 - Governor's Office of Indian Affairs","086","Governor's Office of Indian Affairs",{"$f":"'rent allocations'!D24*$C$1","v":30111.291585861673},{"$f":"'rent allocations'!E24*$C$1","v":0},{"$f":"'rent allocations'!F24*$C$1","v":0},{"$f":"'rent allocations'!G24*$C$1","v":0},{"$f":"'rent allocations'!H24*$C$1","v":0},{"$f":"'rent allocations'!I24*$C$1","v":0},{"$f":"'rent allocations'!J24*$C$1","v":0},{"$f":"'rent allocations'!K24*$C$1","v":0},{"$f":"'rent allocations'!L24*$C$1","v":0},{"$f":"'rent allocations'!M24*$C$1","v":0},{"$f":"'rent allocations'!N24*$C$1","v":0},{"$f":"'rent allocations'!O24*$C$1","v":0},{"$f":"'rent allocations'!P24*$C$1","v":0},{"$f":"'rent allocations'!Q24*$C$1","v":0},{"$f":"'rent allocations'!R24*$C$1","v":0},{"$f":"'rent allocations'!S24*$C$1","v":0},{"$f":"'rent allocations'!T24*$C$1","v":0},{"$f":"'rent allocations'!U24*$C$1","v":0},{"$f":"'rent allocations'!V24*$C$1","v":0},{"$f":"'rent allocations'!W24*$C$1","v":0},{"$f":"'rent allocations'!X24*$C$1","v":30111.291585861673},{"$f":"'rent allocations'!Y24*$C$1","v":0},{"$f":"'rent allocations'!Z24*$C$1","v":0},{"$f":"'rent allocations'!AA24*$C$1","v":0},{"$f":"'rent allocations'!AB24*$C$1","v":0},{"$f":"'rent allocations'!AC24*$C$1","v":0},{"$f":"'rent allocations'!AD24*$C$1","v":0},{"$f":"'rent allocations'!AE24*$C$1","v":0},{"$f":"'rent allocations'!AF24*$C$1","v":0},{"$f":"'rent allocations'!AG24*$C$1","v":0},{"$f":"'rent allocations'!AH24*$C$1","v":0},{"$f":"'rent allocations'!AI24*$C$1","v":0},{"$f":"'rent allocations'!AJ24*$C$1","v":0},{"$f":"'rent allocations'!AK24*$C$1","v":0},{"$f":"'rent allocations'!AL24*$C$1","v":0}]
["087 - Commission on Asian Pacific American Affairs","087","Commission on Asian Pacific American Affairs",{"$f":"'rent allocations'!D25*$C$1","v":19806.436462346512},{"$f":"'rent allocations'!E25*$C$1","v":0},{"$f":"'rent allocations'!F25*$C$1","v":0},{"$f":"'rent allocations'!G25*$C$1","v":0},{"$f":"'rent allocations'!H25*$C$1","v":0},{"$f":"'rent allocations'!I25*$C$1","v":0},{"$f":"'rent allocations'!J25*$C$1","v":0},{"$f":"'rent allocations'!K25*$C$1","v":0},{"$f":"'rent allocations'!L25*$C$1","v":0},{"$f":"'rent allocations'!M25*$C$1","v":0},{"$f":"'rent allocations'!N25*$C$1","v":0},{"$f":"'rent allocations'!O25*$C$1","v":0},{"$f":"'rent allocations'!P25*$C$1","v":0},{"$f":"'rent allocations'!Q25*$C$1","v":0},{"$f":"'rent allocations'!R25*$C$1","v":0},{"$f":"'rent allocations'!S25*$C$1","v":0},{"$f":"'rent allocations'!T25*$C$1","v":0},{"$f":"'rent allocations'!U25*$C$1","v":0},{"$f":"'rent allocations'!V25*$C$1","v":0},{"$f":"'rent allocations'!W25*$C$1","v":0},{"$f":"'rent allocations'!X25*$C$1","v":19806.436462346512},{"$f":"'rent allocations'!Y25*$C$1","v":0},{"$f":"'rent allocations'!Z25*$C$1","v":0},{"$f":"'rent allocations'!AA25*$C$1","v":0},{"$f":"'rent allocations'!AB25*$C$1","v":0},{"$f":"'rent allocations'!AC25*$C$1","v":0},{"$f":"'rent allocations'!AD25*$C$1","v":0},{"$f":"'rent allocations'!AE25*$C$1","v":0},{"$f":"'rent allocations'!AF25*$C$1","v":0},{"$f":"'rent allocations'!AG25*$C$1","v":0},{"$f":"'rent allocations'!AH25*$C$1","v":0},{"$f":"'rent allocations'!AI25*$C$1","v":0},{"$f":"'rent allocations'!AJ25*$C$1","v":0},{"$f":"'rent allocations'!AK25*$C$1","v":0},{"$f":"'rent allocations'!AL25*$C$1","v":0}]
["090 - Office of State Treasurer","090","Office of State Treasurer",{"$f":"'rent allocations'!D26*$C$1","v":316028.53306956968},{"$f":"'rent allocations'!E26*$C$1","v":0},{"$f":"'rent allocations'!F26*$C$1","v":0},{"$f":"'rent allocations'!G26*$C$1","v":206224.83294289687},{"$f":"'rent allocations'!H26*$C$1","v":0},{"$f":"'rent allocations'!I26*$C$1","v":0},{"$f":"'rent allocations'!J26*$C$1","v":0},{"$f":"'rent allocations'!K26*$C$1","v":0},{"$f":"'rent allocations'!L26*$C$1","v":0},{"$f":"'rent allocations'!M26*$C$1","v":0},{"$f":"'rent allocations'!N26*$C$1","v":0},{"$f":"'rent allocations'!O26*$C$1","v":0},{"$f":"'rent allocations'!P26*$C$1","v":0},{"$f":"'rent allocations'!Q26*$C$1","v":0},{"$f":"'rent allocations'!R26*$C$1","v":0},{"$f":"'rent allocations'!S26*$C$1","v":0},{"$f":"'rent allocations'!T26*$C$1","v":0},{"$f":"'rent allocations'!U26*$C$1","v":0},{"$f":"'rent allocations'!V26*$C$1","v":0},{"$f":"'rent allocations'!W26*$C$1","v":0},{"$f":"'rent allocations'!X26*$C$1","v":0},{"$f":"'rent allocations'!Y26*$C$1","v":0},{"$f":"'rent allocations'!Z26*$C$1","v":0},{"$f":"'rent allocations'!AA26*$C$1","v":0},{"$f":"'rent allocations'!AB26*$C$1","v":0},{"$f":"'rent allocations'!AC26*$C$1","v":0},{"$f":"'rent allocations'!AD26*$C$1","v":0},{"$f":"'rent allocations'!AE26*$C$1","v":0},{"$f":"'rent allocations'!AF26*$C$1","v":109803.70012667279},{"$f":"'rent allocations'!AG26*$C$1","v":0},{"$f":"'rent allocations'!AH26*$C$1","v":0},{"$f":"'rent allocations'!AI26*$C$1","v":0},{"$f":"'rent allocations'!AJ26*$C$1","v":0},{"$f":"'rent allocations'!AK26*$C$1","v":0},{"$f":"'rent allocations'!AL26*$C$1","v":0}]
["095 - Office of State Auditor","095","Office of State Auditor",{"$f":"'rent allocations'!D27*$C$1","v":178210.54000774631},{"$f":"'rent allocations'!E27*$C$1","v":0},{"$f":"'rent allocations'!F27*$C$1","v":0},{"$f":"'rent allocations'!G27*$C$1","v":0},{"$f":"'rent allocations'!H27*$C$1","v":0},{"$f":"'rent allocations'!I27*$C$1","v":0},{"$f":"'rent allocations'!J27*$C$1","v":0},{"$f":"'rent allocations'!K27*$C$1","v":0},{"$f":"'rent allocations'!L27*$C$1","v":0},{"$f":"'rent allocations'!M27*$C$1","v":0},{"$f":"'rent allocations'!N27*$C$1","v":0},{"$f":"'rent allocations'!O27*$C$1","v":92525.943137781855},{"$f":"'rent allocations'!P27*$C$1","v":0},{"$f":"'rent allocations'!Q27*$C$1","v":0},{"$f":"'rent allocations'!R27*$C$1","v":0},{"$f":"'rent allocations'!S27*$C$1","v":0},{"$f":"'rent allocations'!T27*$C$1","v":0},{"$f":"'rent allocations'!U27*$C$1","v":0},{"$f":"'rent allocations'!V27*$C$1","v":0},{"$f":"'rent allocations'!W27*$C$1","v":0},{"$f":"'rent allocations'!X27*$C$1","v":0},{"$f":"'rent allocations'!Y27*$C$1","v":0},{"$f":"'rent allocations'!Z27*$C$1","v":0},{"$f":"'rent allocations'!AA27*$C$1","v":0},{"$f":"'rent allocations'!AB27*$C$1","v":0},{"$f":"'rent allocations'!AC27*$C$1","v":0},{"$f":"'rent allocations'!AD27*$C$1","v":0},{"$f":"'rent allocations'!AE27*$C$1","v":0},{"$f":"'rent allocations'!AF27*$C$1","v":0},{"$f":"'rent allocations'!AG27*$C$1","v":0},{"$f":"'rent allocations'!AH27*$C$1","v":0},{"$f":"'rent allocations'!AI27*$C$1","v":0},{"$f":"'rent allocations'!AJ27*$C$1","v":85684.596869964444},{"$f":"'rent allocations'!AK27*$C$1","v":0},{"$f":"'rent allocations'!AL27*$C$1","v":0}]
["099 - Citizens' Commission on Salaries for Elected Officials","099","Citizens' Commission on Salaries for Elected Officials",{"$f":"'rent allocations'!D28*$C$1","v":15285.152588554782},{"$f":"'rent allocations'!E28*$C$1","v":0},{"$f":"'rent allocations'!F28*$C$1","v":0},{"$f":"'rent allocations'!G28*$C$1","v":0},{"$f":"'rent allocations'!H28*$C$1","v":0},{"$f":"'rent allocations'!I28*$C$1","v":0},{"$f":"'rent allocations'!J28*$C$1","v":0},{"$f":"'rent allocations'!K28*$C$1","v":0},{"$f":"'rent allocations'!L28*$C$1","v":0},{"$f":"'rent allocations'!M28*$C$1","v":0},{"$f":"'rent allocations'!N28*$C$1","v":0},{"$f":"'rent allocations'!O28*$C$1","v":0},{"$f":"'rent allocations'!P28*$C$1","v":0},{"$f":"'rent allocations'!Q28*$C$1","v":0},{"$f":"'rent allocations'!R28*$C$1","v":0},{"$f":"'rent allocations'!S28*$C$1","v":0},{"$f":"'rent allocations'!T28*$C$1","v":0},{"$f":"'rent allocations'!U28*$C$1","v":0},{"$f":"'rent allocations'!V28*$C$1","v":0},{"$f":"'rent allocations'!W28*$C$1","v":0},{"$f":"'rent allocations'!X28*$C$1","v":15285.152588554782},{"$f":"'rent allocations'!Y28*$C$1","v":0},{"$f":"'rent allocations'!Z28*$C$1","v":0},{"$f":"'rent allocations'!AA28*$C$1","v":0},{"$f":"'rent allocations'!AB28*$C$1","v":0},{"$f":"'rent allocations'!AC28*$C$1","v":0},{"$f":"'rent allocations'!AD28*$C$1","v":0},{"$f":"'rent allocations'!AE28*$C$1","v":0},{"$f":"'rent allocations'!AF28*$C$1","v":0},{"$f":"'rent allocations'!AG28*$C$1","v":0},{"$f":"'rent allocations'!AH28*$C$1","v":0},{"$f":"'rent allocations'!AI28*$C$1","v":0},{"$f":"'rent allocations'!AJ28*$C$1","v":0},{"$f":"'rent allocations'!AK28*$C$1","v":0},{"$f":"'rent allocations'!AL28*$C$1","v":0}]
["100 - Office of Attorney General","100","Office of Attorney General",{"$f":"'rent allocations'!D29*$C$1","v":804214.94076531066},{"$f":"'rent allocations'!E29*$C$1","v":0},{"$f":"'rent allocations'!F29*$C$1","v":0},{"$f":"'rent allocations'!G29*$C$1","v":0},{"$f":"'rent allocations'!H29*$C$1","v":0},{"$f":"'rent allocations'!I29*$C$1","v":804214.94076531066},{"$f":"'rent allocations'!J29*$C$1","v":0},{"$f":"'rent allocations'!K29*$C$1","v":0},{"$f":"'rent allocations'!L29*$C$1","v":0},{"$f":"'rent allocations'!M29*$C$1","v":0},{"$f":"'rent allocations'!N29*$C$1","v":0},{"$f":"'rent allocations'!O29*$C$1","v":0},{"$f":"'rent allocations'!P29*$C$1","v":0},{"$f":"'rent allocations'!Q29*$C$1","v":0},{"$f":"'rent allocations'!R29*$C$1","v":0},{"$f":"'rent allocations'!S29*$C$1","v":0},{"$f":"'rent allocations'!T29*$C$1","v":0},{"$f":"'rent allocations'!U29*$C$1","v":0},{"$f":"'rent allocations'!V29*$C$1","v":0},{"$f":"'rent allocations'!W29*$C$1","v":0},{"$f":"'rent allocations'!X29*$C$1","v":0},{"$f":"'rent allocations'!Y29*$C$1","v":0},{"$f":"'rent allocations'!Z29*$C$1","v":0},{"$f":"'rent allocations'!AA29*$C$1","v":0},{"$f":"'rent allocations'!AB29*$C$1","v":0},{"$f":"'rent allocations'!AC29*$C$1","v":0},{"$f":"'rent allocations'!AD29*$C$1","v":0},{"$f":"'rent allocations'!AE29*$C$1","v":0},{"$f":"'rent allocations'!AF29*$C$1","v":0},{"$f":"'rent allocations'!AG29*$C$1","v":0},{"$f":"'rent allocations'!AH29*$C$1","v":0},{"$f":"'rent allocations'!AI29*$C$1","v":0},{"$f":"'rent allocations'!AJ29*$C$1","v":0},{"$f":"'rent allocations'!AK29*$C$1","v":0},{"$f":"'rent allocations'!AL29*$C$1","v":0}]
["101 - Caseload Forecast Council","101","Caseload Forecast Council",{"$f":"'rent allocations'!D30*$C$1","v":118379.60518283118},{"$f":"'rent allocations'!E30*$C$1","v":0},{"$f":"'rent allocations'!F30*$C$1","v":0},{"$f":"'rent allocations'!G30*$C$1","v":0},{"$f":"'rent allocations'!H30*$C$1","v":0},{"$f":"'rent allocations'!I30*$C$1","v":0},{"$f":"'rent allocations'!J30*$C$1","v":0},{"$f":"'rent allocations'!K30*$C$1","v":0},{"$f":"'rent allocations'!L30*$C$1","v":0},{"$f":"'rent allocations'!M30*$C$1","v":0},{"$f":"'rent allocations'!N30*$C$1","v":0},{"$f":"'rent allocations'!O30*$C$1","v":0},{"$f":"'rent allocations'!P30*$C$1","v":0},{"$f":"'rent allocations'!Q30*$C$1","v":0},{"$f":"'rent allocations'!R30*$C$1","v":0},{"$f":"'rent allocations'!S30*$C$1","v":0},{"$f":"'rent allocations'!T30*$C$1","v":0},{"$f":"'rent allocations'!U30*$C$1","v":0},{"$f":"'rent allocations'!V30*$C$1","v":0},{"$f":"'rent allocations'!W30*$C$1","v":0},{"$f":"'rent allocations'!X30*$C$1","v":118379.60518283118},{"$f":"'rent allocations'!Y30*$C$1","v":0},{"$f":"'rent allocations'!Z30*$C$1","v":0},{"$f":"'rent allocations'!AA30*$C$1","v":0},{"$f":"'rent allocations'!AB30*$C$1","v":0},{"$f":"'rent allocations'!AC30*$C$1","v":0},{"$f":"'rent allocations'!AD30*$C$1","v":0},{"$f":"'rent allocations'!AE30*$C$1","v":0},{"$f":"'rent allocations'!AF30*$C$1","v":0},{"$f":"'rent allocations'!AG30*$C$1","v":0},{"$f":"'rent allocations'!AH30*$C$1","v":0},{"$f":"'rent allocations'!AI30*$C$1","v":0},{"$f":"'rent allocations'!AJ30*$C$1","v":0},{"$f":"'rent allocations'!AK30*$C$1","v":0},{"$f":"'rent allocations'!AL30*$C$1","v":0}]
["102 - Department of Financial Institutions","102","Department of Financial Institutions",{"$f":"'rent allocations'!D31*$C$1","v":0},{"$f":"'rent allocations'!E31*$C$1","v":0},{"$f":"'rent allocations'!F31*$C$1","v":0},{"$f":"'rent allocations'!G31*$C$1","v":0},{"$f":"'rent allocations'!H31*$C$1","v":0},{"$f":"'rent allocations'!I31*$C$1","v":0},{"$f":"'rent allocations'!J31*$C$1","v":0},{"$f":"'rent allocations'!K31*$C$1","v":0},{"$f":"'rent allocations'!L31*$C$1","v":0},{"$f":"'rent allocations'!M31*$C$1","v":0},{"$f":"'rent allocations'!N31*$C$1","v":0},{"$f":"'rent allocations'!O31*$C$1","v":0},{"$f":"'rent allocations'!P31*$C$1","v":0},{"$f":"'rent allocations'!Q31*$C$1","v":0},{"$f":"'rent allocations'!R31*$C$1","v":0},{"$f":"'rent allocations'!S31*$C$1","v":0},{"$f":"'rent allocations'!T31*$C$1","v":0},{"$f":"'rent allocations'!U31*$C$1","v":0},{"$f":"'rent allocations'!V31*$C$1","v":0},{"$f":"'rent allocations'!W31*$C$1","v":0},{"$f":"'rent allocations'!X31*$C$1","v":0},{"$f":"'rent allocations'!Y31*$C$1","v":0},{"$f":"'rent allocations'!Z31*$C$1","v":0},{"$f":"'rent allocations'!AA31*$C$1","v":0},{"$f":"'rent allocations'!AB31*$C$1","v":0},{"$f":"'rent allocations'!AC31*$C$1","v":0},{"$f":"'rent allocations'!AD31*$C$1","v":0},{"$f":"'rent allocations'!AE31*$C$1","v":0},{"$f":"'rent allocations'!AF31*$C$1","v":0},{"$f":"'rent allocations'!AG31*$C$1","v":0},{"$f":"'rent allocations'!AH31*$C$1","v":0},{"$f":"'rent allocations'!AI31*$C$1","v":0},{"$f":"'rent allocations'!AJ31*$C$1","v":0},{"$f":"'rent allocations'!AK31*$C$1","v":0},{"$f":"'rent allocations'!AL31*$C$1","v":0}]
["103 - Department of Commerce","103","Department of Commerce",{"$f":"'rent allocations'!D32*$C$1","v":0},{"$f":"'rent allocations'!E32*$C$1","v":0},{"$f":"'rent allocations'!F32*$C$1","v":0},{"$f":"'rent allocations'!G32*$C$1","v":0},{"$f":"'rent allocations'!H32*$C$1","v":0},{"$f":"'rent allocations'!I32*$C$1","v":0},{"$f":"'rent allocations'!J32*$C$1","v":0},{"$f":"'rent allocations'!K32*$C$1","v":0},{"$f":"'rent allocations'!L32*$C$1","v":0},{"$f":"'rent allocations'!M32*$C$1","v":0},{"$f":"'rent allocations'!N32*$C$1","v":0},{"$f":"'rent allocations'!O32*$C$1","v":0},{"$f":"'rent allocations'!P32*$C$1","v":0},{"$f":"'rent allocations'!Q32*$C$1","v":0},{"$f":"'rent allocations'!R32*$C$1","v":0},{"$f":"'rent allocations'!S32*$C$1","v":0},{"$f":"'rent allocations'!T32*$C$1","v":0},{"$f":"'rent allocations'!U32*$C$1","v":0},{"$f":"'rent allocations'!V32*$C$1","v":0},{"$f":"'rent allocations'!W32*$C$1","v":0},{"$f":"'rent allocations'!X32*$C$1","v":0},{"$f":"'rent allocations'!Y32*$C$1","v":0},{"$f":"'rent allocations'!Z32*$C$1","v":0},{"$f":"'rent allocations'!AA32*$C$1","v":0},{"$f":"'rent allocations'!AB32*$C$1","v":0},{"$f":"'rent allocations'!AC32*$C$1","v":0},{"$f":"'rent allocations'!AD32*$C$1","v":0},{"$f":"'rent allocations'!AE32*$C$1","v":0},{"$f":"'rent allocations'!AF32*$C$1","v":0},{"$f":"'rent allocations'!AG32*$C$1","v":0},{"$f":"'rent allocations'!AH32*$C$1","v":0},{"$f":"'rent allocations'!AI32*$C$1","v":0},{"$f":"'rent allocations'!AJ32*$C$1","v":0},{"$f":"'rent allocations'!AK32*$C$1","v":0},{"$f":"'rent allocations'!AL32*$C$1","v":0}]
["104 - Economic and Revenue Forecast Council","104","Economic and Revenue Forecast Council",{"$f":"'rent allocations'!D33*$C$1","v":0},{"$f":"'rent allocations'!E33*$C$1","v":0},{"$f":"'rent allocations'!F33*$C$1","v":0},{"$f":"'rent allocations'!G33*$C$1","v":0},{"$f":"'rent allocations'!H33*$C$1","v":0},{"$f":"'rent allocations'!I33*$C$1","v":0},{"$f":"'rent allocations'!J33*$C$1","v":0},{"$f":"'rent allocations'!K33*$C$1","v":0},{"$f":"'rent allocations'!L33*$C$1","v":0},{"$f":"'rent allocations'!M33*$C$1","v":0},{"$f":"'rent allocations'!N33*$C$1","v":0},{"$f":"'rent allocations'!O33*$C$1","v":0},{"$f":"'rent allocations'!P33*$C$1","v":0},{"$f":"'rent allocations'!Q33*$C$1","v":0},{"$f":"'rent allocations'!R33*$C$1","v":0},{"$f":"'rent allocations'!S33*$C$1","v":0},{"$f":"'rent allocations'!T33*$C$1","v":0},{"$f":"'rent allocations'!U33*$C$1","v":0},{"$f":"'rent allocations'!V33*$C$1","v":0},{"$f":"'rent allocations'!W33*$C$1","v":0},{"$f":"'rent allocations'!X33*$C$1","v":0},{"$f":"'rent allocations'!Y33*$C$1","v":0},{"$f":"'rent allocations'!Z33*$C$1","v":0},{"$f":"'rent allocations'!AA33*$C$1","v":0},{"$f":"'rent allocations'!AB33*$C$1","v":0},{"$f":"'rent allocations'!AC33*$C$1","v":0},{"$f":"'rent allocations'!AD33*$C$1","v":0},{"$f":"'rent allocations'!AE33*$C$1","v":0},{"$f":"'rent allocations'!AF33*$C$1","v":0},{"$f":"'rent allocations'!AG33*$C$1","v":0},{"$f":"'rent allocations'!AH33*$C$1","v":0},{"$f":"'rent allocations'!AI33*$C$1","v":0},{"$f":"'rent allocations'!AJ33*$C$1","v":0},{"$f":"'rent allocations'!AK33*$C$1","v":0},{"$f":"'rent allocations'!AL33*$C$1","v":0}]
["105 - Office of Financial Management","105","Office of Financial Management",{"$f":"'rent allocations'!D34*$C$1","v":829401.59995060181},{"$f":"'rent allocations'!E34*$C$1","v":0},{"$f":"'rent allocations'!F34*$C$1","v":0},{"$f":"'rent allocations'!G34*$C$1","v":0},{"$f":"'rent allocations'!H34*$C$1","v":0},{"$f":"'rent allocations'!I34*$C$1","v":0},{"$f":"'rent allocations'!J34*$C$1","v":0},{"$f":"'rent allocations'!K34*$C$1","v":0},{"$f":"'rent allocations'!L34*$C$1","v":0},{"$f":"'rent allocations'!M34*$C$1","v":0},{"$f":"'rent allocations'!N34*$C$1","v":0},{"$f":"'rent allocations'!O34*$C$1","v":601837.10393753392},{"$f":"'rent allocations'!P34*$C$1","v":0},{"$f":"'rent allocations'!Q34*$C$1","v":0},{"$f":"'rent allocations'!R34*$C$1","v":0},{"$f":"'rent allocations'!S34*$C$1","v":0},{"$f":"'rent allocations'!T34*$C$1","v":0},{"$f":"'rent allocations'!U34*$C$1","v":0},{"$f":"'rent allocations'!V34*$C$1","v":0},{"$f":"'rent allocations'!W34*$C$1","v":0},{"$f":"'rent allocations'!X34*$C$1","v":16042.525014113804},{"$f":"'rent allocations'!Y34*$C$1","v":0},{"$f":"'rent allocations'!Z34*$C$1","v":0},{"$f":"'rent allocations'!AA34*$C$1","v":0},{"$f":"'rent allocations'!AB34*$C$1","v":0},{"$f":"'rent allocations'!AC34*$C$1","v":0},{"$f":"'rent allocations'!AD34*$C$1","v":0},{"$f":"'rent allocations'!AE34*$C$1","v":0},{"$f":"'rent allocations'!AF34*$C$1","v":211521.97099895406},{"$f":"'rent allocations'!AG34*$C$1","v":0},{"$f":"'rent allocations'!AH34*$C$1","v":0},{"$f":"'rent allocations'!AI34*$C$1","v":0},{"$f":"'rent allocations'!AJ34*$C$1","v":0},{"$f":"'rent allocations'!AK34*$C$1","v":0},{"$f":"'rent allocations'!AL34*$C$1","v":0}]
["107 - Washington State Health Care Authority","107","Washington State Health Care Authority",{"$f":"'rent allocations'!D35*$C$1","v":0},{"$f":"'rent allocations'!E35*$C$1","v":0},{"$f":"'rent allocations'!F35*$C$1","v":0},{"$f":"'rent allocations'!G35*$C$1","v":0},{"$f":"'rent allocations'!H35*$C$1","v":0},{"$f":"'rent allocations'!I35*$C$1","v":0},{"$f":"'rent allocations'!J35*$C$1","v":0},{"$f":"'rent allocations'!K35*$C$1","v":0},{"$f":"'rent allocations'!L35*$C$1","v":0},{"$f":"'rent allocations'!M35*$C$1","v":0},{"$f":"'rent allocations'!N35*$C$1","v":0},{"$f":"'rent allocations'!O35*$C$1","v":0},{"$f":"'rent allocations'!P35*$C$1","v":0},{"$f":"'rent allocations'!Q35*$C$1","v":0},{"$f":"'rent allocations'!R35*$C$1","v":0},{"$f":"'rent allocations'!S35*$C$1","v":0},{"$f":"'rent allocations'!T35*$C$1","v":0},{"$f":"'rent allocations'!U35*$C$1","v":0},{"$f":"'rent allocations'!V35*$C$1","v":0},{"$f":"'rent allocations'!W35*$C$1","v":0},{"$f":"'rent allocations'!X35*$C$1","v":0},{"$f":"'rent allocations'!Y35*$C$1","v":0},{"$f":"'rent allocations'!Z35*$C$1","v":0},{"$f":"'rent allocations'!AA35*$C$1","v":0},{"$f":"'rent allocations'!AB35*$C$1","v":0},{"$f":"'rent allocations'!AC35*$C$1","v":0},{"$f":"'rent allocations'!AD35*$C$1","v":0},{"$f":"'rent allocations'!AE35*$C$1","v":0},{"$f":"'rent allocations'!AF35*$C$1","v":0},{"$f":"'rent allocations'!AG35*$C$1","v":0},{"$f":"'rent allocations'!AH35*$C$1","v":0},{"$f":"'rent allocations'!AI35*$C$1","v":0},{"$f":"'rent allocations'!AJ35*$C$1","v":0},{"$f":"'rent allocations'!AK35*$C$1","v":0},{"$f":"'rent allocations'!AL35*$C$1","v":0}]
["110 - Office of Administrative Hearings","110","Office of Administrative Hearings",{"$f":"'rent allocations'!D36*$C$1","v":218106.24657809132},{"$f":"'rent allocations'!E36*$C$1","v":0},{"$f":"'rent allocations'!F36*$C$1","v":0},{"$f":"'rent allocations'!G36*$C$1","v":0},{"$f":"'rent allocations'!H36*$C$1","v":0},{"$f":"'rent allocations'!I36*$C$1","v":0},{"$f":"'rent allocations'!J36*$C$1","v":0},{"$f":"'rent allocations'!K36*$C$1","v":0},{"$f":"'rent allocations'!L36*$C$1","v":0},{"$f":"'rent allocations'!M36*$C$1","v":0},{"$f":"'rent allocations'!N36*$C$1","v":0},{"$f":"'rent allocations'!O36*$C$1","v":0},{"$f":"'rent allocations'!P36*$C$1","v":0},{"$f":"'rent allocations'!Q36*$C$1","v":0},{"$f":"'rent allocations'!R36*$C$1","v":0},{"$f":"'rent allocations'!S36*$C$1","v":0},{"$f":"'rent allocations'!T36*$C$1","v":0},{"$f":"'rent allocations'!U36*$C$1","v":0},{"$f":"'rent allocations'!V36*$C$1","v":0},{"$f":"'rent allocations'!W36*$C$1","v":0},{"$f":"'rent allocations'!X36*$C$1","v":0},{"$f":"'rent allocations'!Y36*$C$1","v":0},{"$f":"'rent allocations'!Z36*$C$1","v":0},{"$f":"'rent allocations'!AA36*$C$1","v":0},{"$f":"'rent allocations'!AB36*$C$1","v":0},{"$f":"'rent allocations'!AC36*$C$1","v":0},{"$f":"'rent allocations'!AD36*$C$1","v":0},{"$f":"'rent allocations'!AE36*$C$1","v":0},{"$f":"'rent allocations'!AF36*$C$1","v":0},{"$f":"'rent allocations'!AG36*$C$1","v":0},{"$f":"'rent allocations'!AH36*$C$1","v":0},{"$f":"'rent allocations'!AI36*$C$1","v":0},{"$f":"'rent allocations'!AJ36*$C$1","v":218106.24657809132},{"$f":"'rent allocations'!AK36*$C$1","v":0},{"$f":"'rent allocations'!AL36*$C$1","v":0}]
["116 - State Lottery","116","State Lottery",{"$f":"'rent allocations'!D37*$C$1","v":0},{"$f":"'rent allocations'!E37*$C$1","v":0},{"$f":"'rent allocations'!F37*$C$1","v":0},{"$f":"'rent allocations'!G37*$C$1","v":0},{"$f":"'rent allocations'!H37*$C$1","v":0},{"$f":"'rent allocations'!I37*$C$1","v":0},{"$f":"'rent allocations'!J37*$C$1","v":0},{"$f":"'rent allocations'!K37*$C$1","v":0},{"$f":"'rent allocations'!L37*$C$1","v":0},{"$f":"'rent allocations'!M37*$C$1","v":0},{"$f":"'rent allocations'!N37*$C$1","v":0},{"$f":"'rent allocations'!O37*$C$1","v":0},{"$f":"'rent allocations'!P37*$C$1","v":0},{"$f":"'rent allocations'!Q37*$C$1","v":0},{"$f":"'rent allocations'!R37*$C$1","v":0},{"$f":"'rent allocations'!S37*$C$1","v":0},{"$f":"'rent allocations'!T37*$C$1","v":0},{"$f":"'rent allocations'!U37*$C$1","v":0},{"$f":"'rent allocations'!V37*$C$1","v":0},{"$f":"'rent allocations'!W37*$C$1","v":0},{"$f":"'rent allocations'!X37*$C$1","v":0},{"$f":"'rent allocations'!Y37*$C$1","v":0},{"$f":"'rent allocations'!Z37*$C$1","v":0},{"$f":"'rent allocations'!AA37*$C$1","v":0},{"$f":"'rent allocations'!AB37*$C$1","v":0},{"$f":"'rent allocations'!AC37*$C$1","v":0},{"$f":"'rent allocations'!AD37*$C$1","v":0},{"$f":"'rent allocations'!AE37*$C$1","v":0},{"$f":"'rent allocations'!AF37*$C$1","v":0},{"$f":"'rent allocations'!AG37*$C$1","v":0},{"$f":"'rent allocations'!AH37*$C$1","v":0},{"$f":"'rent allocations'!AI37*$C$1","v":0},{"$f":"'rent allocations'!AJ37*$C$1","v":0},{"$f":"'rent allocations'!AK37*$C$1","v":0},{"$f":"'rent allocations'!AL37*$C$1","v":0}]
["117 - Washington State Gambling Commission","117","Washington State Gambling Commission",{"$f":"'rent allocations'!D38*$C$1","v":0},{"$f":"'rent allocations'!E38*$C$1","v":0},{"$f":"'rent allocations'!F38*$C$1","v":0},{"$f":"'rent allocations'!G38*$C$1","v":0},{"$f":"'rent allocations'!H38*$C$1","v":0},{"$f":"'rent allocations'!I38*$C$1","v":0},{"$f":"'rent allocations'!J38*$C$1","v":0},{"$f":"'rent allocations'!K38*$C$1","v":0},{"$f":"'rent allocations'!L38*$C$1","v":0},{"$f":"'rent allocations'!M38*$C$1","v":0},{"$f":"'rent allocations'!N38*$C$1","v":0},{"$f":"'rent allocations'!O38*$C$1","v":0},{"$f":"'rent allocations'!P38*$C$1","v":0},{"$f":"'rent allocations'!Q38*$C$1","v":0},{"$f":"'rent allocations'!R38*$C$1","v":0},{"$f":"'rent allocations'!S38*$C$1","v":0},{"$f":"'rent allocations'!T38*$C$1","v":0},{"$f":"'rent allocations'!U38*$C$1","v":0},{"$f":"'rent allocations'!V38*$C$1","v":0},{"$f":"'rent allocations'!W38*$C$1","v":0},{"$f":"'rent allocations'!X38*$C$1","v":0},{"$f":"'rent allocations'!Y38*$C$1","v":0},{"$f":"'rent allocations'!Z38*$C$1","v":0},{"$f":"'rent allocations'!AA38*$C$1","v":0},{"$f":"'rent allocations'!AB38*$C$1","v":0},{"$f":"'rent allocations'!AC38*$C$1","v":0},{"$f":"'rent allocations'!AD38*$C$1","v":0},{"$f":"'rent allocations'!AE38*$C$1","v":0},{"$f":"'rent allocations'!AF38*$C$1","v":0},{"$f":"'rent allocations'!AG38*$C$1","v":0},{"$f":"'rent allocations'!AH38*$C$1","v":0},{"$f":"'rent allocations'!AI38*$C$1","v":0},{"$f":"'rent allocations'!AJ38*$C$1","v":0},{"$f":"'rent allocations'!AK38*$C$1","v":0},{"$f":"'rent allocations'!AL38*$C$1","v":0}]
["118 - Commission on Hispanic Affairs","118","Commission on Hispanic Affairs",{"$f":"'rent allocations'!D39*$C$1","v":19806.436462346512},{"$f":"'rent allocations'!E39*$C$1","v":0},{"$f":"'rent allocations'!F39*$C$1","v":0},{"$f":"'rent allocations'!G39*$C$1","v":0},{"$f":"'rent allocations'!H39*$C$1","v":0},{"$f":"'rent allocations'!I39*$C$1","v":0},{"$f":"'rent allocations'!J39*$C$1","v":0},{"$f":"'rent allocations'!K39*$C$1","v":0},{"$f":"'rent allocations'!L39*$C$1","v":0},{"$f":"'rent allocations'!M39*$C$1","v":0},{"$f":"'rent allocations'!N39*$C$1","v":0},{"$f":"'rent allocations'!O39*$C$1","v":0},{"$f":"'rent allocations'!P39*$C$1","v":0},{"$f":"'rent allocations'!Q39*$C$1","v":0},{"$f":"'rent allocations'!R39*$C$1","v":0},{"$f":"'rent allocations'!S39*$C$1","v":0},{"$f":"'rent allocations'!T39*$C$1","v":0},{"$f":"'rent allocations'!U39*$C$1","v":0},{"$f":"'rent allocations'!V39*$C$1","v":0},{"$f":"'rent allocations'!W39*$C$1","v":0},{"$f":"'rent allocations'!X39*$C$1","v":19806.436462346512},{"$f":"'rent allocations'!Y39*$C$1","v":0},{"$f":"'rent allocations'!Z39*$C$1","v":0},{"$f":"'rent allocations'!AA39*$C$1","v":0},{"$f":"'rent allocations'!AB39*$C$1","v":0},{"$f":"'rent allocations'!AC39*$C$1","v":0},{"$f":"'rent allocations'!AD39*$C$1","v":0},{"$f":"'rent allocations'!AE39*$C$1","v":0},{"$f":"'rent allocations'!AF39*$C$1","v":0},{"$f":"'rent allocations'!AG39*$C$1","v":0},{"$f":"'rent allocations'!AH39*$C$1","v":0},{"$f":"'rent allocations'!AI39*$C$1","v":0},{"$f":"'rent allocations'!AJ39*$C$1","v":0},{"$f":"'rent allocations'!AK39*$C$1","v":0},{"$f":"'rent allocations'!AL39*$C$1","v":0}]
["119 - Commission on African-American Affairs","119","Commission on African-American Affairs",{"$f":"'rent allocations'!D40*$C$1","v":19806.436462346512},{"$f":"'rent allocations'!E40*$C$1","v":0},{"$f":"'rent allocations'!F40*$C$1","v":0},{"$f":"'rent allocations'!G40*$C$1","v":0},{"$f":"'rent allocations'!H40*$C$1","v":0},{"$f":"'rent allocations'!I40*$C$1","v":0},{"$f":"'rent allocations'!J40*$C$1","v":0},{"$f":"'rent allocations'!K40*$C$1","v":0},{"$f":"'rent allocations'!L40*$C$1","v":0},{"$f":"'rent allocations'!M40*$C$1","v":0},{"$f":"'rent allocations'!N40*$C$1","v":0},{"$f":"'rent allocations'!O40*$C$1","v":0},{"$f":"'rent allocations'!P40*$C$1","v":0},{"$f":"'rent allocations'!Q40*$C$1","v":0},{"$f":"'rent allocations'!R40*$C$1","v":0},{"$f":"'rent allocations'!S40*$C$1","v":0},{"$f":"'rent allocations'!T40*$C$1","v":0},{"$f":"'rent allocations'!U40*$C$1","v":0},{"$f":"'rent allocations'!V40*$C$1","v":0},{"$f":"'rent allocations'!W40*$C$1","v":0},{"$f":"'rent allocations'!X40*$C$1","v":19806.436462346512},{"$f":"'rent allocations'!Y40*$C$1","v":0},{"$f":"'rent allocations'!Z40*$C$1","v":0},{"$f":"'rent allocations'!AA40*$C$1","v":0},{"$f":"'rent allocations'!AB40*$C$1","v":0},{"$f":"'rent allocations'!AC40*$C$1","v":0},{"$f":"'rent allocations'!AD40*$C$1","v":0},{"$f":"'rent allocations'!AE40*$C$1","v":0},{"$f":"'rent allocations'!AF40*$C$1","v":0},{"$f":"'rent allocations'!AG40*$C$1","v":0},{"$f":"'rent allocations'!AH40*$C$1","v":0},{"$f":"'rent allocations'!AI40*$C$1","v":0},{"$f":"'rent allocations'!AJ40*$C$1","v":0},{"$f":"'rent allocations'!AK40*$C$1","v":0},{"$f":"'rent allocations'!AL40*$C$1","v":0}]
["120 - Human Rights Commission","120","Human Rights Commission",{"$f":"'rent allocations'!D41*$C$1","v":0},{"$f":"'rent allocations'!E41*$C$1","v":0},{"$f":"'rent allocations'!F41*$C$1","v":0},{"$f":"'rent allocations'!G41*$C$1","v":0},{"$f":"'rent allocations'!H41*$C$1","v":0},{"$f":"'rent allocations'!I41*$C$1","v":0},{"$f":"'rent allocations'!J41*$C$1","v":0},{"$f":"'rent allocations'!K41*$C$1","v":0},{"$f":"'rent allocations'!L41*$C$1","v":0},{"$f":"'rent allocations'!M41*$C$1","v":0},{"$f":"'rent allocations'!N41*$C$1","v":0},{"$f":"'rent allocations'!O41*$C$1","v":0},{"$f":"'rent allocations'!P41*$C$1","v":0},{"$f":"'rent allocations'!Q41*$C$1","v":0},{"$f":"'rent allocations'!R41*$C$1","v":0},{"$f":"'rent allocations'!S41*$C$1","v":0},{"$f":"'rent allocations'!T41*$C$1","v":0},{"$f":"'rent allocations'!U41*$C$1","v":0},{"$f":"'rent allocations'!V41*$C$1","v":0},{"$f":"'rent allocations'!W41*$C$1","v":0},{"$f":"'rent allocations'!X41*$C$1","v":0},{"$f":"'rent allocations'!Y41*$C$1","v":0},{"$f":"'rent allocations'!Z41*$C$1","v":0},{"$f":"'rent allocations'!AA41*$C$1","v":0},{"$f":"'rent allocations'!AB41*$C$1","v":0},{"$f":"'rent allocations'!AC41*$C$1","v":0},{"$f":"'rent allocations'!AD41*$C$1","v":0},{"$f":"'rent allocations'!AE41*$C$1","v":0},{"$f":"'rent allocations'!AF41*$C$1","v":0},{"$f":"'rent allocations'!AG41*$C$1","v":0},{"$f":"'rent allocations'!AH41*$C$1","v":0},{"$f":"'rent allocations'!AI41*$C$1","v":0},{"$f":"'rent allocations'!AJ41*$C$1","v":0},{"$f":"'rent allocations'!AK41*$C$1","v":0},{"$f":"'rent allocations'!AL41*$C$1","v":0}]
["124 - Department of Retirement Systems","124","Department of Retirement Systems",{"$f":"'rent allocations'!D42*$C$1","v":0},{"$f":"'rent allocations'!E42*$C$1","v":0},{"$f":"'rent allocations'!F42*$C$1","v":0},{"$f":"'rent allocations'!G42*$C$1","v":0},{"$f":"'rent allocations'!H42*$C$1","v":0},{"$f":"'rent allocations'!I42*$C$1","v":0},{"$f":"'rent allocations'!J42*$C$1","v":0},{"$f":"'rent allocations'!K42*$C$1","v":0},{"$f":"'rent allocations'!L42*$C$1","v":0},{"$f":"'rent allocations'!M42*$C$1","v":0},{"$f":"'rent allocations'!N42*$C$1","v":0},{"$f":"'rent allocations'!O42*$C$1","v":0},{"$f":"'rent allocations'!P42*$C$1","v":0},{"$f":"'rent allocations'!Q42*$C$1","v":0},{"$f":"'rent allocations'!R42*$C$1","v":0},{"$f":"'rent allocations'!S42*$C$1","v":0},{"$f":"'rent allocations'!T42*$C$1","v":0},{"$f":"'rent allocations'!U42*$C$1","v":0},{"$f":"'rent allocations'!V42*$C$1","v":0},{"$f":"'rent allocations'!W42*$C$1","v":0},{"$f":"'rent allocations'!X42*$C$1","v":0},{"$f":"'rent allocations'!Y42*$C$1","v":0},{"$f":"'rent allocations'!Z42*$C$1","v":0},{"$f":"'rent allocations'!AA42*$C$1","v":0},{"$f":"'rent allocations'!AB42*$C$1","v":0},{"$f":"'rent allocations'!AC42*$C$1","v":0},{"$f":"'rent allocations'!AD42*$C$1","v":0},{"$f":"'rent allocations'!AE42*$C$1","v":0},{"$f":"'rent allocations'!AF42*$C$1","v":0},{"$f":"'rent allocations'!AG42*$C$1","v":0},{"$f":"'rent allocations'!AH42*$C$1","v":0},{"$f":"'rent allocations'!AI42*$C$1","v":0},{"$f":"'rent allocations'!AJ42*$C$1","v":0},{"$f":"'rent allocations'!AK42*$C$1","v":0},{"$f":"'rent allocations'!AL42*$C$1","v":0}]
["126 - State Investment Board","126","State Investment Board",{"$f":"'rent allocations'!D43*$C$1","v":0},{"$f":"'rent allocations'!E43*$C$1","v":0},{"$f":"'rent allocations'!F43*$C$1","v":0},{"$f":"'rent allocations'!G43*$C$1","v":0},{"$f":"'rent allocations'!H43*$C$1","v":0},{"$f":"'rent allocations'!I43*$C$1","v":0},{"$f":"'rent allocations'!J43*$C$1","v":0},{"$f":"'rent allocations'!K43*$C$1","v":0},{"$f":"'rent allocations'!L43*$C$1","v":0},{"$f":"'rent allocations'!M43*$C$1","v":0},{"$f":"'rent allocations'!N43*$C$1","v":0},{"$f":"'rent allocations'!O43*$C$1","v":0},{"$f":"'rent allocations'!P43*$C$1","v":0},{"$f":"'rent allocations'!Q43*$C$1","v":0},{"$f":"'rent allocations'!R43*$C$1","v":0},{"$f":"'rent allocations'!S43*$C$1","v":0},{"$f":"'rent allocations'!T43*$C$1","v":0},{"$f":"'rent allocations'!U43*$C$1","v":0},{"$f":"'rent allocations'!V43*$C$1","v":0},{"$f":"'rent allocations'!W43*$C$1","v":0},{"$f":"'rent allocations'!X43*$C$1","v":0},{"$f":"'rent allocations'!Y43*$C$1","v":0},{"$f":"'rent allocations'!Z43*$C$1","v":0},{"$f":"'rent allocations'!AA43*$C$1","v":0},{"$f":"'rent allocations'!AB43*$C$1","v":0},{"$f":"'rent allocations'!AC43*$C$1","v":0},{"$f":"'rent allocations'!AD43*$C$1","v":0},{"$f":"'rent allocations'!AE43*$C$1","v":0},{"$f":"'rent allocations'!AF43*$C$1","v":0},{"$f":"'rent allocations'!AG43*$C$1","v":0},{"$f":"'rent allocations'!AH43*$C$1","v":0},{"$f":"'rent allocations'!AI43*$C$1","v":0},{"$f":"'rent allocations'!AJ43*$C$1","v":0},{"$f":"'rent allocations'!AK43*$C$1","v":0},{"$f":"'rent allocations'!AL43*$C$1","v":0}]
["140 - Department of Revenue","140","Department of Revenue",{"$f":"'rent allocations'!D44*$C$1","v":0},{"$f":"'rent allocations'!E44*$C$1","v":0},{"$f":"'rent allocations'!F44*$C$1","v":0},{"$f":"'rent allocations'!G44*$C$1","v":0},{"$f":"'rent allocations'!H44*$C$1","v":0},{"$f":"'rent allocations'!I44*$C$1","v":0},{"$f":"'rent allocations'!J44*$C$1","v":0},{"$f":"'rent allocations'!K44*$C$1","v":0},{"$f":"'rent allocations'!L44*$C$1","v":0},{"$f":"'rent allocations'!M44*$C$1","v":0},{"$f":"'rent allocations'!N44*$C$1","v":0},{"$f":"'rent allocations'!O44*$C$1","v":0},{"$f":"'rent allocations'!P44*$C$1","v":0},{"$f":"'rent allocations'!Q44*$C$1","v":0},{"$f":"'rent allocations'!R44*$C$1","v":0},{"$f":"'rent allocations'!S44*$C$1","v":0},{"$f":"'rent allocations'!T44*$C$1","v":0},{"$f":"'rent allocations'!U44*$C$1","v":0},{"$f":"'rent allocations'!V44*$C$1","v":0},{"$f":"'rent allocations'!W44*$C$1","v":0},{"$f":"'rent allocations'!X44*$C$1","v":0},{"$f":"'rent allocations'!Y44*$C$1","v":0},{"$f":"'rent allocations'!Z44*$C$1","v":0},{"$f":"'rent allocations'!AA44*$C$1","v":0},{"$f":"'rent allocations'!AB44*$C$1","v":0},{"$f":"'rent allocations'!AC44*$C$1","v":0},{"$f":"'rent allocations'!AD44*$C$1","v":0},{"$f":"'rent allocations'!AE44*$C$1","v":0},{"$f":"'rent allocations'!AF44*$C$1","v":0},{"$f":"'rent allocations'!AG44*$C$1","v":0},{"$f":"'rent allocations'!AH44*$C$1","v":0},{"$f":"'rent allocations'!AI44*$C$1","v":0},{"$f":"'rent allocations'!AJ44*$C$1","v":0},{"$f":"'rent allocations'!AK44*$C$1","v":0},{"$f":"'rent allocations'!AL44*$C$1","v":0}]
["142 - Board of Tax Appeals","142","Board of Tax Appeals",{"$f":"'rent allocations'!D45*$C$1","v":107179.67355638262},{"$f":"'rent allocations'!E45*$C$1","v":0},{"$f":"'rent allocations'!F45*$C$1","v":0},{"$f":"'rent allocations'!G45*$C$1","v":0},{"$f":"'rent allocations'!H45*$C$1","v":0},{"$f":"'rent allocations'!I45*$C$1","v":0},{"$f":"'rent allocations'!J45*$C$1","v":0},{"$f":"'rent allocations'!K45*$C$1","v":0},{"$f":"'rent allocations'!L45*$C$1","v":0},{"$f":"'rent allocations'!M45*$C$1","v":0},{"$f":"'rent allocations'!N45*$C$1","v":0},{"$f":"'rent allocations'!O45*$C$1","v":0},{"$f":"'rent allocations'!P45*$C$1","v":0},{"$f":"'rent allocations'!Q45*$C$1","v":0},{"$f":"'rent allocations'!R45*$C$1","v":0},{"$f":"'rent allocations'!S45*$C$1","v":0},{"$f":"'rent allocations'!T45*$C$1","v":0},{"$f":"'rent allocations'!U45*$C$1","v":0},{"$f":"'rent allocations'!V45*$C$1","v":0},{"$f":"'rent allocations'!W45*$C$1","v":0},{"$f":"'rent allocations'!X45*$C$1","v":107179.67355638262},{"$f":"'rent allocations'!Y45*$C$1","v":0},{"$f":"'rent allocations'!Z45*$C$1","v":0},{"$f":"'rent allocations'!AA45*$C$1","v":0},{"$f":"'rent allocations'!AB45*$C$1","v":0},{"$f":"'rent allocations'!AC45*$C$1","v":0},{"$f":"'rent allocations'!AD45*$C$1","v":0},{"$f":"'rent allocations'!AE45*$C$1","v":0},{"$f":"'rent allocations'!AF45*$C$1","v":0},{"$f":"'rent allocations'!AG45*$C$1","v":0},{"$f":"'rent allocations'!AH45*$C$1","v":0},{"$f":"'rent allocations'!AI45*$C$1","v":0},{"$f":"'rent allocations'!AJ45*$C$1","v":0},{"$f":"'rent allocations'!AK45*$C$1","v":0},{"$f":"'rent allocations'!AL45*$C$1","v":0}]
["147 - Office of Minority and Women's Business Enterprises","147","Office of Minority and Women's Business Enterprises",{"$f":"'rent allocations'!D46*$C$1","v":110599.32481117944},{"$f":"'rent allocations'!E46*$C$1","v":0},{"$f":"'rent allocations'!F46*$C$1","v":0},{"$f":"'rent allocations'!G46*$C$1","v":0},{"$f":"'rent allocations'!H46*$C$1","v":0},{"$f":"'rent allocations'!I46*$C$1","v":0},{"$f":"'rent allocations'!J46*$C$1","v":0},{"$f":"'rent allocations'!K46*$C$1","v":0},{"$f":"'rent allocations'!L46*$C$1","v":0},{"$f":"'rent allocations'!M46*$C$1","v":0},{"$f":"'rent allocations'!N46*$C$1","v":0},{"$f":"'rent allocations'!O46*$C$1","v":0},{"$f":"'rent allocations'!P46*$C$1","v":0},{"$f":"'rent allocations'!Q46*$C$1","v":0},{"$f":"'rent allocations'!R46*$C$1","v":0},{"$f":"'rent allocations'!S46*$C$1","v":0},{"$f":"'rent allocations'!T46*$C$1","v":0},{"$f":"'rent allocations'!U46*$C$1","v":0},{"$f":"'rent allocations'!V46*$C$1","v":0},{"$f":"'rent allocations'!W46*$C$1","v":0},{"$f":"'rent allocations'!X46*$C$1","v":110599.32481117944},{"$f":"'rent allocations'!Y46*$C$1","v":0},{"$f":"'rent allocations'!Z46*$C$1","v":0},{"$f":"'rent allocations'!AA46*$C$1","v":0},{"$f":"'rent allocations'!AB46*$C$1","v":0},{"$f":"'rent allocations'!AC46*$C$1","v":0},{"$f":"'rent allocations'!AD46*$C$1","v":0},{"$f":"'rent allocations'!AE46*$C$1","v":0},{"$f":"'rent allocations'!AF46*$C$1","v":0},{"$f":"'rent allocations'!AG46*$C$1","v":0},{"$f":"'rent allocations'!AH46*$C$1","v":0},{"$f":"'rent allocations'!AI46*$C$1","v":0},{"$f":"'rent allocations'!AJ46*$C$1","v":0},{"$f":"'rent allocations'!AK46*$C$1","v":0},{"$f":"'rent allocations'!AL46*$C$1","v":0}]
["160 - Office of Insurance Commissioner","160","Office of Insurance Commissioner",{"$f":"'rent allocations'!D47*$C$1","v":100852.1236104113},{"$f":"'rent allocations'!E47*$C$1","v":0},{"$f":"'rent allocations'!F47*$C$1","v":0},{"$f":"'rent allocations'!G47*$C$1","v":0},{"$f":"'rent allocations'!H47*$C$1","v":0},{"$f":"'rent allocations'!I47*$C$1","v":0},{"$f":"'rent allocations'!J47*$C$1","v":0},{"$f":"'rent allocations'!K47*$C$1","v":0},{"$f":"'rent allocations'!L47*$C$1","v":0},{"$f":"'rent allocations'!M47*$C$1","v":0},{"$f":"'rent allocations'!N47*$C$1","v":0},{"$f":"'rent allocations'!O47*$C$1","v":100852.1236104113},{"$f":"'rent allocations'!P47*$C$1","v":0},{"$f":"'rent allocations'!Q47*$C$1","v":0},{"$f":"'rent allocations'!R47*$C$1","v":0},{"$f":"'rent allocations'!S47*$C$1","v":0},{"$f":"'rent allocations'!T47*$C$1","v":0},{"$f":"'rent allocations'!U47*$C$1","v":0},{"$f":"'rent allocations'!V47*$C$1","v":0},{"$f":"'rent allocations'!W47*$C$1","v":0},{"$f":"'rent allocations'!X47*$C$1","v":0},{"$f":"'rent allocations'!Y47*$C$1","v":0},{"$f":"'rent allocations'!Z47*$C$1","v":0},{"$f":"'rent allocations'!AA47*$C$1","v":0},{"$f":"'rent allocations'!AB47*$C$1","v":0},{"$f":"'rent allocations'!AC47*$C$1","v":0},{"$f":"'rent allocations'!AD47*$C$1","v":0},{"$f":"'rent allocations'!AE47*$C$1","v":0},{"$f":"'rent allocations'!AF47*$C$1","v":0},{"$f":"'rent allocations'!AG47*$C$1","v":0},{"$f":"'rent allocations'!AH47*$C$1","v":0},{"$f":"'rent allocations'!AI47*$C$1","v":0},{"$f":"'rent allocations'!AJ47*$C$1","v":0},{"$f":"'rent allocations'!AK47*$C$1","v":0},{"$f":"'rent allocations'!AL47*$C$1","v":0}]
["163 - Consolidated Technology Services","163","Consolidated Technology Services",{"$f":"'rent allocations'!D48*$C$1","v":3220.5335401684265},{"$f":"'rent allocations'!E48*$C$1","v":0},{"$f":"'rent allocations'!F48*$C$1","v":0},{"$f":"'rent allocations'!G48*$C$1","v":0},{"$f":"'rent allocations'!H48*$C$1","v":0},{"$f":"'rent allocations'!I48*$C$1","v":0},{"$f":"'rent allocations'!J48*$C$1","v":3220.5335401684265},{"$f":"'rent allocations'!K48*$C$1","v":0},{"$f":"'rent allocations'!L48*$C$1","v":0},{"$f":"'rent allocations'!M48*$C$1","v":0},{"$f":"'rent allocations'!N48*$C$1","v":0},{"$f":"'rent allocations'!O48*$C$1","v":0},{"$f":"'rent allocations'!P48*$C$1","v":0},{"$f":"'rent allocations'!Q48*$C$1","v":0},{"$f":"'rent allocations'!R48*$C$1","v":0},{"$f":"'rent allocations'!S48*$C$1","v":0},{"$f":"'rent allocations'!T48*$C$1","v":0},{"$f":"'rent allocations'!U48*$C$1","v":0},{"$f":"'rent allocations'!V48*$C$1","v":0},{"$f":"'rent allocations'!W48*$C$1","v":0},{"$f":"'rent allocations'!X48*$C$1","v":0},{"$f":"'rent allocations'!Y48*$C$1","v":0},{"$f":"'rent allocations'!Z48*$C$1","v":0},{"$f":"'rent allocations'!AA48*$C$1","v":0},{"$f":"'rent allocations'!AB48*$C$1","v":0},{"$f":"'rent allocations'!AC48*$C$1","v":0},{"$f":"'rent allocations'!AD48*$C$1","v":0},{"$f":"'rent allocations'!AE48*$C$1","v":0},{"$f":"'rent allocations'!AF48*$C$1","v":0},{"$f":"'rent allocations'!AG48*$C$1","v":0},{"$f":"'rent allocations'!AH48*$C$1","v":0},{"$f":"'rent allocations'!AI48*$C$1","v":0},{"$f":"'rent allocations'!AJ48*$C$1","v":0},{"$f":"'rent allocations'!AK48*$C$1","v":0},{"$f":"'rent allocations'!AL48*$C$1","v":0}]
["165 - Board of Accountancy","165","Board of Accountancy",{"$f":"'rent allocations'!D49*$C$1","v":0},{"$f":"'rent allocations'!E49*$C$1","v":0},{"$f":"'rent allocations'!F49*$C$1","v":0},{"$f":"'rent allocations'!G49*$C$1","v":0},{"$f":"'rent allocations'!H49*$C$1","v":0},{"$f":"'rent allocations'!I49*$C$1","v":0},{"$f":"'rent allocations'!J49*$C$1","v":0},{"$f":"'rent allocations'!K49*$C$1","v":0},{"$f":"'rent allocations'!L49*$C$1","v":0},{"$f":"'rent allocations'!M49*$C$1","v":0},{"$f":"'rent allocations'!N49*$C$1","v":0},{"$f":"'rent allocations'!O49*$C$1","v":0},{"$f":"'rent allocations'!P49*$C$1","v":0},{"$f":"'rent allocations'!Q49*$C$1","v":0},{"$f":"'rent allocations'!R49*$C$1","v":0},{"$f":"'rent allocations'!S49*$C$1","v":0},{"$f":"'rent allocations'!T49*$C$1","v":0},{"$f":"'rent allocations'!U49*$C$1","v":0},{"$f":"'rent allocations'!V49*$C$1","v":0},{"$f":"'rent allocations'!W49*$C$1","v":0},{"$f":"'rent allocations'!X49*$C$1","v":0},{"$f":"'rent allocations'!Y49*$C$1","v":0},{"$f":"'rent allocations'!Z49*$C$1","v":0},{"$f":"'rent allocations'!AA49*$C$1","v":0},{"$f":"'rent allocations'!AB49*$C$1","v":0},{"$f":"'rent allocations'!AC49*$C$1","v":0},{"$f":"'rent allocations'!AD49*$C$1","v":0},{"$f":"'rent allocations'!AE49*$C$1","v":0},{"$f":"'rent allocations'!AF49*$C$1","v":0},{"$f":"'rent allocations'!AG49*$C$1","v":0},{"$f":"'rent allocations'!AH49*$C$1","v":0},{"$f":"'rent allocations'!AI49*$C$1","v":0},{"$f":"'rent allocations'!AJ49*$C$1","v":0},{"$f":"'rent allocations'!AK49*$C$1","v":0},{"$f":"'rent allocations'!AL49*$C$1","v":0}]
["166 - Brd Prof Eng Land Surveyors","166","Brd Prof Eng Land Surveyors",{"$f":"'rent allocations'!D50*$C$1","v":0},{"$f":"'rent allocations'!E50*$C$1","v":0},{"$f":"'rent allocations'!F50*$C$1","v":0},{"$f":"'rent allocations'!G50*$C$1","v":0},{"$f":"'rent allocations'!H50*$C$1","v":0},{"$f":"'rent allocations'!I50*$C$1","v":0},{"$f":"'rent allocations'!J50*$C$1","v":0},{"$f":"'rent allocations'!K50*$C$1","v":0},{"$f":"'rent allocations'!L50*$C$1","v":0},{"$f":"'rent allocations'!M50*$C$1","v":0},{"$f":"'rent allocations'!N50*$C$1","v":0},{"$f":"'rent allocations'!O50*$C$1","v":0},{"$f":"'rent allocations'!P50*$C$1","v":0},{"$f":"'rent allocations'!Q50*$C$1","v":0},{"$f":"'rent allocations'!R50*$C$1","v":0},{"$f":"'rent allocations'!S50*$C$1","v":0},{"$f":"'rent allocations'!T50*$C$1","v":0},{"$f":"'rent allocations'!U50*$C$1","v":0},{"$f":"'rent allocations'!V50*$C$1","v":0},{"$f":"'rent allocations'!W50*$C$1","v":0},{"$f":"'rent allocations'!X50*$C$1","v":0},{"$f":"'rent allocations'!Y50*$C$1","v":0},{"$f":"'rent allocations'!Z50*$C$1","v":0},{"$f":"'rent allocations'!AA50*$C$1","v":0},{"$f":"'rent allocations'!AB50*$C$1","v":0},{"$f":"'rent allocations'!AC50*$C$1","v":0},{"$f":"'rent allocations'!AD50*$C$1","v":0},{"$f":"'rent allocations'!AE50*$C$1","v":0},{"$f":"'rent allocations'!AF50*$C$1","v":0},{"$f":"'rent allocations'!AG50*$C$1","v":0},{"$f":"'rent allocations'!AH50*$C$1","v":0},{"$f":"'rent allocations'!AI50*$C$1","v":0},{"$f":"'rent allocations'!AJ50*$C$1","v":0},{"$f":"'rent allocations'!AK50*$C$1","v":0},{"$f":"'rent allocations'!AL50*$C$1","v":0}]
["167 - Forensic Investigations Council","167","Forensic Investigations Council",{"$f":"'rent allocations'!D51*$C$1","v":0},{"$f":"'rent allocations'!E51*$C$1","v":0},{"$f":"'rent allocations'!F51*$C$1","v":0},{"$f":"'rent allocations'!G51*$C$1","v":0},{"$f":"'rent allocations'!H51*$C$1","v":0},{"$f":"'rent allocations'!I51*$C$1","v":0},{"$f":"'rent allocations'!J51*$C$1","v":0},{"$f":"'rent allocations'!K51*$C$1","v":0},{"$f":"'rent allocations'!L51*$C$1","v":0},{"$f":"'rent allocations'!M51*$C$1","v":0},{"$f":"'rent allocations'!N51*$C$1","v":0},{"$f":"'rent allocations'!O51*$C$1","v":0},{"$f":"'rent allocations'!P51*$C$1","v":0},{"$f":"'rent allocations'!Q51*$C$1","v":0},{"$f":"'rent allocations'!R51*$C$1","v":0},{"$f":"'rent allocations'!S51*$C$1","v":0},{"$f":"'rent allocations'!T51*$C$1","v":0},{"$f":"'rent allocations'!U51*$C$1","v":0},{"$f":"'rent allocations'!V51*$C$1","v":0},{"$f":"'rent allocations'!W51*$C$1","v":0},{"$f":"'rent allocations'!X51*$C$1","v":0},{"$f":"'rent allocations'!Y51*$C$1","v":0},{"$f":"'rent allocations'!Z51*$C$1","v":0},{"$f":"'rent allocations'!AA51*$C$1","v":0},{"$f":"'rent allocations'!AB51*$C$1","v":0},{"$f":"'rent allocations'!AC51*$C$1","v":0},{"$f":"'rent allocations'!AD51*$C$1","v":0},{"$f":"'rent allocations'!AE51*$C$1","v":0},{"$f":"'rent allocations'!AF51*$C$1","v":0},{"$f":"'rent allocations'!AG51*$C$1","v":0},{"$f":"'rent allocations'!AH51*$C$1","v":0},{"$f":"'rent allocations'!AI51*$C$1","v":0},{"$f":"'rent allocations'!AJ51*$C$1","v":0},{"$f":"'rent allocations'!AK51*$C$1","v":0},{"$f":"'rent allocations'!AL51*$C$1","v":0}]
["179 - Department of Enterprise Services","179","Department of Enterprise Services",{"$f":"'rent allocations'!D52*$C$1","v":985131.41614517593},{"$f":"'rent allocations'!E52*$C$1","v":0},{"$f":"'rent allocations'!F52*$C$1","v":0},{"$f":"'rent allocations'!G52*$C$1","v":133127.1273416722},{"$f":"'rent allocations'!H52*$C$1","v":0},{"$f":"'rent allocations'!I52*$C$1","v":0},{"$f":"'rent allocations'!J52*$C$1","v":223738.8472460846},{"$f":"'rent allocations'!K52*$C$1","v":0},{"$f":"'rent allocations'!L52*$C$1","v":0},{"$f":"'rent allocations'!M52*$C$1","v":0},{"$f":"'rent allocations'!N52*$C$1","v":0},{"$f":"'rent allocations'!O52*$C$1","v":0},{"$f":"'rent allocations'!P52*$C$1","v":0},{"$f":"'rent allocations'!Q52*$C$1","v":0},{"$f":"'rent allocations'!R52*$C$1","v":0},{"$f":"'rent allocations'!S52*$C$1","v":502286.07827326155},{"$f":"'rent allocations'!T52*$C$1","v":0},{"$f":"'rent allocations'!U52*$C$1","v":0},{"$f":"'rent allocations'!V52*$C$1","v":0},{"$f":"'rent allocations'!W52*$C$1","v":0},{"$f":"'rent allocations'!X52*$C$1","v":123428.75468655799},{"$f":"'rent allocations'!Y52*$C$1","v":0},{"$f":"'rent allocations'!Z52*$C$1","v":0},{"$f":"'rent allocations'!AA52*$C$1","v":0},{"$f":"'rent allocations'!AB52*$C$1","v":0},{"$f":"'rent allocations'!AC52*$C$1","v":0},{"$f":"'rent allocations'!AD52*$C$1","v":0},{"$f":"'rent allocations'!AE52*$C$1","v":0},{"$f":"'rent allocations'!AF52*$C$1","v":2550.6085975998321},{"$f":"'rent allocations'!AG52*$C$1","v":0},{"$f":"'rent allocations'!AH52*$C$1","v":0},{"$f":"'rent allocations'!AI52*$C$1","v":0},{"$f":"'rent allocations'!AJ52*$C$1","v":0},{"$f":"'rent allocations'!AK52*$C$1","v":0},{"$f":"'rent allocations'!AL52*$C$1","v":0}]
["185 - Horse Racing Commission","185","Horse Racing Commission",{"$f":"'rent allocations'!D53*$C$1","v":0},{"$f":"'rent allocations'!E53*$C$1","v":0},{"$f":"'rent allocations'!F53*$C$1","v":0},{"$f":"'rent allocations'!G53*$C$1","v":0},{"$f":"'rent allocations'!H53*$C$1","v":0},{"$f":"'rent allocations'!I53*$C$1","v":0},{"$f":"'rent allocations'!J53*$C$1","v":0},{"$f":"'rent allocations'!K53*$C$1","v":0},{"$f":"'rent allocations'!L53*$C$1","v":0},{"$f":"'rent allocations'!M53*$C$1","v":0},{"$f":"'rent allocations'!N53*$C$1","v":0},{"$f":"'rent allocations'!O53*$C$1","v":0},{"$f":"'rent allocations'!P53*$C$1","v":0},{"$f":"'rent allocations'!Q53*$C$1","v":0},{"$f":"'rent allocations'!R53*$C$1","v":0},{"$f":"'rent allocations'!S53*$C$1","v":0},{"$f":"'rent allocations'!T53*$C$1","v":0},{"$f":"'rent allocations'!U53*$C$1","v":0},{"$f":"'rent allocations'!V53*$C$1","v":0},{"$f":"'rent allocations'!W53*$C$1","v":0},{"$f":"'rent allocations'!X53*$C$1","v":0},{"$f":"'rent allocations'!Y53*$C$1","v":0},{"$f":"'rent allocations'!Z53*$C$1","v":0},{"$f":"'rent allocations'!AA53*$C$1","v":0},{"$f":"'rent allocations'!AB53*$C$1","v":0},{"$f":"'rent allocations'!AC53*$C$1","v":0},{"$f":"'rent allocations'!AD53*$C$1","v":0},{"$f":"'rent allocations'!AE53*$C$1","v":0},{"$f":"'rent allocations'!AF53*$C$1","v":0},{"$f":"'rent allocations'!AG53*$C$1","v":0},{"$f":"'rent allocations'!AH53*$C$1","v":0},{"$f":"'rent allocations'!AI53*$C$1","v":0},{"$f":"'rent allocations'!AJ53*$C$1","v":0},{"$f":"'rent allocations'!AK53*$C$1","v":0},{"$f":"'rent allocations'!AL53*$C$1","v":0}]
["190 - Board of Industrial Insurance Appeals","190","Board of Industrial Insurance Appeals",{"$f":"'rent allocations'!D54*$C$1","v":0},{"$f":"'rent allocations'!E54*$C$1","v":0},{"$f":"'rent allocations'!F54*$C$1","v":0},{"$f":"'rent allocations'!G54*$C$1","v":0},{"$f":"'rent allocations'!H54*$C$1","v":0},{"$f":"'rent allocations'!I54*$C$1","v":0},{"$f":"'rent allocations'!J54*$C$1","v":0},{"$f":"'rent allocations'!K54*$C$1","v":0},{"$f":"'rent allocations'!L54*$C$1","v":0},{"$f":"'rent allocations'!M54*$C$1","v":0},{"$f":"'rent allocations'!N54*$C$1","v":0},{"$f":"'rent allocations'!O54*$C$1","v":0},{"$f":"'rent allocations'!P54*$C$1","v":0},{"$f":"'rent allocations'!Q54*$C$1","v":0},{"$f":"'rent allocations'!R54*$C$1","v":0},{"$f":"'rent allocations'!S54*$C$1","v":0},{"$f":"'rent allocations'!T54*$C$1","v":0},{"$f":"'rent allocations'!U54*$C$1","v":0},{"$f":"'rent allocations'!V54*$C$1","v":0},{"$f":"'rent allocations'!W54*$C$1","v":0},{"$f":"'rent allocations'!X54*$C$1","v":0},{"$f":"'rent allocations'!Y54*$C$1","v":0},{"$f":"'rent allocations'!Z54*$C$1","v":0},{"$f":"'rent allocations'!AA54*$C$1","v":0},{"$f":"'rent allocations'!AB54*$C$1","v":0},{"$f":"'rent allocations'!AC54*$C$1","v":0},{"$f":"'rent allocations'!AD54*$C$1","v":0},{"$f":"'rent allocations'!AE54*$C$1","v":0},{"$f":"'rent allocations'!AF54*$C$1","v":0},{"$f":"'rent allocations'!AG54*$C$1","v":0},{"$f":"'rent allocations'!AH54*$C$1","v":0},{"$f":"'rent allocations'!AI54*$C$1","v":0},{"$f":"'rent allocations'!AJ54*$C$1","v":0},{"$f":"'rent allocations'!AK54*$C$1","v":0},{"$f":"'rent allocations'!AL54*$C$1","v":0}]
["195 - Liquor Control Board","195","Liquor Control Board",{"$f":"'rent allocations'!D55*$C$1","v":0},{"$f":"'rent allocations'!E55*$C$1","v":0},{"$f":"'rent allocations'!F55*$C$1","v":0},{"$f":"'rent allocations'!G55*$C$1","v":0},{"$f":"'rent allocations'!H55*$C$1","v":0},{"$f":"'rent allocations'!I55*$C$1","v":0},{"$f":"'rent allocations'!J55*$C$1","v":0},{"$f":"'rent allocations'!K55*$C$1","v":0},{"$f":"'rent allocations'!L55*$C$1","v":0},{"$f":"'rent allocations'!M55*$C$1","v":0},{"$f":"'rent allocations'!N55*$C$1","v":0},{"$f":"'rent allocations'!O55*$C$1","v":0},{"$f":"'rent allocations'!P55*$C$1","v":0},{"$f":"'rent allocations'!Q55*$C$1","v":0},{"$f":"'rent allocations'!R55*$C$1","v":0},{"$f":"'rent allocations'!S55*$C$1","v":0},{"$f":"'rent allocations'!T55*$C$1","v":0},{"$f":"'rent allocations'!U55*$C$1","v":0},{"$f":"'rent allocations'!V55*$C$1","v":0},{"$f":"'rent allocations'!W55*$C$1","v":0},{"$f":"'rent allocations'!X55*$C$1","v":0},{"$f":"'rent allocations'!Y55*$C$1","v":0},{"$f":"'rent allocations'!Z55*$C$1","v":0},{"$f":"'rent allocations'!AA55*$C$1","v":0},{"$f":"'rent allocations'!AB55*$C$1","v":0},{"$f":"'rent allocations'!AC55*$C$1","v":0},{"$f":"'rent allocations'!AD55*$C$1","v":0},{"$f":"'rent allocations'!AE55*$C$1","v":0},{"$f":"'rent allocations'!AF55*$C$1","v":0},{"$f":"'rent allocations'!AG55*$C$1","v":0},{"$f":"'rent allocations'!AH55*$C$1","v":0},{"$f":"'rent allocations'!AI55*$C$1","v":0},{"$f":"'rent allocations'!AJ55*$C$1","v":0},{"$f":"'rent allocations'!AK55*$C$1","v":0},{"$f":"'rent allocations'!AL55*$C$1","v":0}]
["205 - Board of Pilotage Commissioners","205","Board of Pilotage Commissioners",{"$f":"'rent allocations'!D56*$C$1","v":0},{"$f":"'rent allocations'!E56*$C$1","v":0},{"$f":"'rent allocations'!F56*$C$1","v":0},{"$f":"'rent allocations'!G56*$C$1","v":0},{"$f":"'rent allocations'!H56*$C$1","v":0},{"$f":"'rent allocations'!I56*$C$1","v":0},{"$f":"'rent allocations'!J56*$C$1","v":0},{"$f":"'rent allocations'!K56*$C$1","v":0},{"$f":"'rent allocations'!L56*$C$1","v":0},{"$f":"'rent allocations'!M56*$C$1","v":0},{"$f":"'rent allocations'!N56*$C$1","v":0},{"$f":"'rent allocations'!O56*$C$1","v":0},{"$f":"'rent allocations'!P56*$C$1","v":0},{"$f":"'rent allocations'!Q56*$C$1","v":0},{"$f":"'rent allocations'!R56*$C$1","v":0},{"$f":"'rent allocations'!S56*$C$1","v":0},{"$f":"'rent allocations'!T56*$C$1","v":0},{"$f":"'rent allocations'!U56*$C$1","v":0},{"$f":"'rent allocations'!V56*$C$1","v":0},{"$f":"'rent allocations'!W56*$C$1","v":0},{"$f":"'rent allocations'!X56*$C$1","v":0},{"$f":"'rent allocations'!Y56*$C$1","v":0},{"$f":"'rent allocations'!Z56*$C$1","v":0},{"$f":"'rent allocations'!AA56*$C$1","v":0},{"$f":"'rent allocations'!AB56*$C$1","v":0},{"$f":"'rent allocations'!AC56*$C$1","v":0},{"$f":"'rent allocations'!AD56*$C$1","v":0},{"$f":"'rent allocations'!AE56*$C$1","v":0},{"$f":"'rent allocations'!AF56*$C$1","v":0},{"$f":"'rent allocations'!AG56*$C$1","v":0},{"$f":"'rent allocations'!AH56*$C$1","v":0},{"$f":"'rent allocations'!AI56*$C$1","v":0},{"$f":"'rent allocations'!AJ56*$C$1","v":0},{"$f":"'rent allocations'!AK56*$C$1","v":0},{"$f":"'rent allocations'!AL56*$C$1","v":0}]
["215 - Utilities and Transportation Commission","215","Utilities and Transportation Commission",{"$f":"'rent allocations'!D57*$C$1","v":0},{"$f":"'rent allocations'!E57*$C$1","v":0},{"$f":"'rent allocations'!F57*$C$1","v":0},{"$f":"'rent allocations'!G57*$C$1","v":0},{"$f":"'rent allocations'!H57*$C$1","v":0},{"$f":"'rent allocations'!I57*$C$1","v":0},{"$f":"'rent allocations'!J57*$C$1","v":0},{"$f":"'rent allocations'!K57*$C$1","v":0},{"$f":"'rent allocations'!L57*$C$1","v":0},{"$f":"'rent allocations'!M57*$C$1","v":0},{"$f":"'rent allocations'!N57*$C$1","v":0},{"$f":"'rent allocations'!O57*$C$1","v":0},{"$f":"'rent allocations'!P57*$C$1","v":0},{"$f":"'rent allocations'!Q57*$C$1","v":0},{"$f":"'rent allocations'!R57*$C$1","v":0},{"$f":"'rent allocations'!S57*$C$1","v":0},{"$f":"'rent allocations'!T57*$C$1","v":0},{"$f":"'rent allocations'!U57*$C$1","v":0},{"$f":"'rent allocations'!V57*$C$1","v":0},{"$f":"'rent allocations'!W57*$C$1","v":0},{"$f":"'rent allocations'!X57*$C$1","v":0},{"$f":"'rent allocations'!Y57*$C$1","v":0},{"$f":"'rent allocations'!Z57*$C$1","v":0},{"$f":"'rent allocations'!AA57*$C$1","v":0},{"$f":"'rent allocations'!AB57*$C$1","v":0},{"$f":"'rent allocations'!AC57*$C$1","v":0},{"$f":"'rent allocations'!AD57*$C$1","v":0},{"$f":"'rent allocations'!AE57*$C$1","v":0},{"$f":"'rent allocations'!AF57*$C$1","v":0},{"$f":"'rent allocations'!AG57*$C$1","v":0},{"$f":"'rent allocations'!AH57*$C$1","v":0},{"$f":"'rent allocations'!AI57*$C$1","v":0},{"$f":"'rent allocations'!AJ57*$C$1","v":0},{"$f":"'rent allocations'!AK57*$C$1","v":0},{"$f":"'rent allocations'!AL57*$C$1","v":0}]
["220 - Board for Volunteer Firefighters and Reserve Officers","220","Board for Volunteer Firefighters and Reserve Officers",{"$f":"'rent allocations'!D58*$C$1","v":0},{"$f":"'rent allocations'!E58*$C$1","v":0},{"$f":"'rent allocations'!F58*$C$1","v":0},{"$f":"'rent allocations'!G58*$C$1","v":0},{"$f":"'rent allocations'!H58*$C$1","v":0},{"$f":"'rent allocations'!I58*$C$1","v":0},{"$f":"'rent allocations'!J58*$C$1","v":0},{"$f":"'rent allocations'!K58*$C$1","v":0},{"$f":"'rent allocations'!L58*$C$1","v":0},{"$f":"'rent allocations'!M58*$C$1","v":0},{"$f":"'rent allocations'!N58*$C$1","v":0},{"$f":"'rent allocations'!O58*$C$1","v":0},{"$f":"'rent allocations'!P58*$C$1","v":0},{"$f":"'rent allocations'!Q58*$C$1","v":0},{"$f":"'rent allocations'!R58*$C$1","v":0},{"$f":"'rent allocations'!S58*$C$1","v":0},{"$f":"'rent allocations'!T58*$C$1","v":0},{"$f":"'rent allocations'!U58*$C$1","v":0},{"$f":"'rent allocations'!V58*$C$1","v":0},{"$f":"'rent allocations'!W58*$C$1","v":0},{"$f":"'rent allocations'!X58*$C$1","v":0},{"$f":"'rent allocations'!Y58*$C$1","v":0},{"$f":"'rent allocations'!Z58*$C$1","v":0},{"$f":"'rent allocations'!AA58*$C$1","v":0},{"$f":"'rent allocations'!AB58*$C$1","v":0},{"$f":"'rent allocations'!AC58*$C$1","v":0},{"$f":"'rent allocations'!AD58*$C$1","v":0},{"$f":"'rent allocations'!AE58*$C$1","v":0},{"$f":"'rent allocations'!AF58*$C$1","v":0},{"$f":"'rent allocations'!AG58*$C$1","v":0},{"$f":"'rent allocations'!AH58*$C$1","v":0},{"$f":"'rent allocations'!AI58*$C$1","v":0},{"$f":"'rent allocations'!AJ58*$C$1","v":0},{"$f":"'rent allocations'!AK58*$C$1","v":0},{"$f":"'rent allocations'!AL58*$C$1","v":0}]
["225 - Washington State Patrol","225","Washington State Patrol",{"$f":"'rent allocations'!D59*$C$1","v":1178178.3470234696},{"$f":"'rent allocations'!E59*$C$1","v":0},{"$f":"'rent allocations'!F59*$C$1","v":0},{"$f":"'rent allocations'!G59*$C$1","v":10008.11135140517},{"$f":"'rent allocations'!H59*$C$1","v":0},{"$f":"'rent allocations'!I59*$C$1","v":0},{"$f":"'rent allocations'!J59*$C$1","v":0},{"$f":"'rent allocations'!K59*$C$1","v":0},{"$f":"'rent allocations'!L59*$C$1","v":0},{"$f":"'rent allocations'!M59*$C$1","v":0},{"$f":"'rent allocations'!N59*$C$1","v":0},{"$f":"'rent allocations'!O59*$C$1","v":0},{"$f":"'rent allocations'!P59*$C$1","v":0},{"$f":"'rent allocations'!Q59*$C$1","v":0},{"$f":"'rent allocations'!R59*$C$1","v":0},{"$f":"'rent allocations'!S59*$C$1","v":0},{"$f":"'rent allocations'!T59*$C$1","v":0},{"$f":"'rent allocations'!U59*$C$1","v":0},{"$f":"'rent allocations'!V59*$C$1","v":0},{"$f":"'rent allocations'!W59*$C$1","v":0},{"$f":"'rent allocations'!X59*$C$1","v":0},{"$f":"'rent allocations'!Y59*$C$1","v":0},{"$f":"'rent allocations'!Z59*$C$1","v":0},{"$f":"'rent allocations'!AA59*$C$1","v":0},{"$f":"'rent allocations'!AB59*$C$1","v":0},{"$f":"'rent allocations'!AC59*$C$1","v":0},{"$f":"'rent allocations'!AD59*$C$1","v":0},{"$f":"'rent allocations'!AE59*$C$1","v":0},{"$f":"'rent allocations'!AF59*$C$1","v":1168170.2356720644},{"$f":"'rent allocations'!AG59*$C$1","v":0},{"$f":"'rent allocations'!AH59*$C$1","v":0},{"$f":"'rent allocations'!AI59*$C$1","v":0},{"$f":"'rent allocations'!AJ59*$C$1","v":0},{"$f":"'rent allocations'!AK59*$C$1","v":0},{"$f":"'rent allocations'!AL59*$C$1","v":0}]
["227 - Criminal Justice Training Commission","227","Criminal Justice Training Commission",{"$f":"'rent allocations'!D60*$C$1","v":0},{"$f":"'rent allocations'!E60*$C$1","v":0},{"$f":"'rent allocations'!F60*$C$1","v":0},{"$f":"'rent allocations'!G60*$C$1","v":0},{"$f":"'rent allocations'!H60*$C$1","v":0},{"$f":"'rent allocations'!I60*$C$1","v":0},{"$f":"'rent allocations'!J60*$C$1","v":0},{"$f":"'rent allocations'!K60*$C$1","v":0},{"$f":"'rent allocations'!L60*$C$1","v":0},{"$f":"'rent allocations'!M60*$C$1","v":0},{"$f":"'rent allocations'!N60*$C$1","v":0},{"$f":"'rent allocations'!O60*$C$1","v":0},{"$f":"'rent allocations'!P60*$C$1","v":0},{"$f":"'rent allocations'!Q60*$C$1","v":0},{"$f":"'rent allocations'!R60*$C$1","v":0},{"$f":"'rent allocations'!S60*$C$1","v":0},{"$f":"'rent allocations'!T60*$C$1","v":0},{"$f":"'rent allocations'!U60*$C$1","v":0},{"$f":"'rent allocations'!V60*$C$1","v":0},{"$f":"'rent allocations'!W60*$C$1","v":0},{"$f":"'rent allocations'!X60*$C$1","v":0},{"$f":"'rent allocations'!Y60*$C$1","v":0},{"$f":"'rent allocations'!Z60*$C$1","v":0},{"$f":"'rent allocations'!AA60*$C$1","v":0},{"$f":"'rent allocations'!AB60*$C$1","v":0},{"$f":"'rent allocations'!AC60*$C$1","v":0},{"$f":"'rent allocations'!AD60*$C$1","v":0},{"$f":"'rent allocations'!AE60*$C$1","v":0},{"$f":"'rent allocations'!AF60*$C$1","v":0},{"$f":"'rent allocations'!AG60*$C$1","v":0},{"$f":"'rent allocations'!AH60*$C$1","v":0},{"$f":"'rent allocations'!AI60*$C$1","v":0},{"$f":"'rent allocations'!AJ60*$C$1","v":0},{"$f":"'rent allocations'!AK60*$C$1","v":0},{"$f":"'rent allocations'!AL60*$C$1","v":0}]
["228 - Traffic Safety Commission","228","Traffic Safety Commission",{"$f":"'rent allocations'!D61*$C$1","v":0},{"$f":"'rent allocations'!E61*$C$1","v":0},{"$f":"'rent allocations'!F61*$C$1","v":0},{"$f":"'rent allocations'!G61*$C$1","v":0},{"$f":"'rent allocations'!H61*$C$1","v":0},{"$f":"'rent allocations'!I61*$C$1","v":0},{"$f":"'rent allocations'!J61*$C$1","v":0},{"$f":"'rent allocations'!K61*$C$1","v":0},{"$f":"'rent allocations'!L61*$C$1","v":0},{"$f":"'rent allocations'!M61*$C$1","v":0},{"$f":"'rent allocations'!N61*$C$1","v":0},{"$f":"'rent allocations'!O61*$C$1","v":0},{"$f":"'rent allocations'!P61*$C$1","v":0},{"$f":"'rent allocations'!Q61*$C$1","v":0},{"$f":"'rent allocations'!R61*$C$1","v":0},{"$f":"'rent allocations'!S61*$C$1","v":0},{"$f":"'rent allocations'!T61*$C$1","v":0},{"$f":"'rent allocations'!U61*$C$1","v":0},{"$f":"'rent allocations'!V61*$C$1","v":0},{"$f":"'rent allocations'!W61*$C$1","v":0},{"$f":"'rent allocations'!X61*$C$1","v":0},{"$f":"'rent allocations'!Y61*$C$1","v":0},{"$f":"'rent allocations'!Z61*$C$1","v":0},{"$f":"'rent allocations'!AA61*$C$1","v":0},{"$f":"'rent allocations'!AB61*$C$1","v":0},{"$f":"'rent allocations'!AC61*$C$1","v":0},{"$f":"'rent allocations'!AD61*$C$1","v":0},{"$f":"'rent allocations'!AE61*$C$1","v":0},{"$f":"'rent allocations'!AF61*$C$1","v":0},{"$f":"'rent allocations'!AG61*$C$1","v":0},{"$f":"'rent allocations'!AH61*$C$1","v":0},{"$f":"'rent allocations'!AI61*$C$1","v":0},{"$f":"'rent allocations'!AJ61*$C$1","v":0},{"$f":"'rent allocations'!AK61*$C$1","v":0},{"$f":"'rent allocations'!AL61*$C$1","v":0}]
["235 - Department of Labor and Industries","235","Department of Labor and Industries",{"$f":"'rent allocations'!D62*$C$1","v":762694.49318688386},{"$f":"'rent allocations'!E62*$C$1","v":0},{"$f":"'rent allocations'!F62*$C$1","v":0},{"$f":"'rent allocations'!G62*$C$1","v":0},{"$f":"'rent allocations'!H62*$C$1","v":0},{"$f":"'rent allocations'!I62*$C$1","v":0},{"$f":"'rent allocations'!J62*$C$1","v":0},{"$f":"'rent allocations'!K62*$C$1","v":0},{"$f":"'rent allocations'!L62*$C$1","v":0},{"$f":"'rent allocations'!M62*$C$1","v":0},{"$f":"'rent allocations'!N62*$C$1","v":0},{"$f":"'rent allocations'!O62*$C$1","v":0},{"$f":"'rent allocations'!P62*$C$1","v":0},{"$f":"'rent allocations'!Q62*$C$1","v":0},{"$f":"'rent allocations'!R62*$C$1","v":0},{"$f":"'rent allocations'!S62*$C$1","v":0},{"$f":"'rent allocations'!T62*$C$1","v":0},{"$f":"'rent allocations'!U62*$C$1","v":0},{"$f":"'rent allocations'!V62*$C$1","v":0},{"$f":"'rent allocations'!W62*$C$1","v":0},{"$f":"'rent allocations'!X62*$C$1","v":0},{"$f":"'rent allocations'!Y62*$C$1","v":0},{"$f":"'rent allocations'!Z62*$C$1","v":0},{"$f":"'rent allocations'!AA62*$C$1","v":0},{"$f":"'rent allocations'!AB62*$C$1","v":0},{"$f":"'rent allocations'!AC62*$C$1","v":0},{"$f":"'rent allocations'!AD62*$C$1","v":0},{"$f":"'rent allocations'!AE62*$C$1","v":0},{"$f":"'rent allocations'!AF62*$C$1","v":0},{"$f":"'rent allocations'!AG62*$C$1","v":197121.89855990018},{"$f":"'rent allocations'!AH62*$C$1","v":0},{"$f":"'rent allocations'!AI62*$C$1","v":0},{"$f":"'rent allocations'!AJ62*$C$1","v":565572.59462698374},{"$f":"'rent allocations'!AK62*$C$1","v":0},{"$f":"'rent allocations'!AL62*$C$1","v":0}]
["240 - Department of Licensing","240","Department of Licensing",{"$f":"'rent allocations'!D63*$C$1","v":1153207.4016032096},{"$f":"'rent allocations'!E63*$C$1","v":0},{"$f":"'rent allocations'!F63*$C$1","v":0},{"$f":"'rent allocations'!G63*$C$1","v":0},{"$f":"'rent allocations'!H63*$C$1","v":0},{"$f":"'rent allocations'!I63*$C$1","v":1153207.4016032096},{"$f":"'rent allocations'!J63*$C$1","v":0},{"$f":"'rent allocations'!K63*$C$1","v":0},{"$f":"'rent allocations'!L63*$C$1","v":0},{"$f":"'rent allocations'!M63*$C$1","v":0},{"$f":"'rent allocations'!N63*$C$1","v":0},{"$f":"'rent allocations'!O63*$C$1","v":0},{"$f":"'rent allocations'!P63*$C$1","v":0},{"$f":"'rent allocations'!Q63*$C$1","v":0},{"$f":"'rent allocations'!R63*$C$1","v":0},{"$f":"'rent allocations'!S63*$C$1","v":0},{"$f":"'rent allocations'!T63*$C$1","v":0},{"$f":"'rent allocations'!U63*$C$1","v":0},{"$f":"'rent allocations'!V63*$C$1","v":0},{"$f":"'rent allocations'!W63*$C$1","v":0},{"$f":"'rent allocations'!X63*$C$1","v":0},{"$f":"'rent allocations'!Y63*$C$1","v":0},{"$f":"'rent allocations'!Z63*$C$1","v":0},{"$f":"'rent allocations'!AA63*$C$1","v":0},{"$f":"'rent allocations'!AB63*$C$1","v":0},{"$f":"'rent allocations'!AC63*$C$1","v":0},{"$f":"'rent allocations'!AD63*$C$1","v":0},{"$f":"'rent allocations'!AE63*$C$1","v":0},{"$f":"'rent allocations'!AF63*$C$1","v":0},{"$f":"'rent allocations'!AG63*$C$1","v":0},{"$f":"'rent allocations'!AH63*$C$1","v":0},{"$f":"'rent allocations'!AI63*$C$1","v":0},{"$f":"'rent allocations'!AJ63*$C$1","v":0},{"$f":"'rent allocations'!AK63*$C$1","v":0},{"$f":"'rent allocations'!AL63*$C$1","v":0}]
["245 - Military Department","245","Military Department",{"$f":"'rent allocations'!D64*$C$1","v":0},{"$f":"'rent allocations'!E64*$C$1","v":0},{"$f":"'rent allocations'!F64*$C$1","v":0},{"$f":"'rent allocations'!G64*$C$1","v":0},{"$f":"'rent allocations'!H64*$C$1","v":0},{"$f":"'rent allocations'!I64*$C$1","v":0},{"$f":"'rent allocations'!J64*$C$1","v":0},{"$f":"'rent allocations'!K64*$C$1","v":0},{"$f":"'rent allocations'!L64*$C$1","v":0},{"$f":"'rent allocations'!M64*$C$1","v":0},{"$f":"'rent allocations'!N64*$C$1","v":0},{"$f":"'rent allocations'!O64*$C$1","v":0},{"$f":"'rent allocations'!P64*$C$1","v":0},{"$f":"'rent allocations'!Q64*$C$1","v":0},{"$f":"'rent allocations'!R64*$C$1","v":0},{"$f":"'rent allocations'!S64*$C$1","v":0},{"$f":"'rent allocations'!T64*$C$1","v":0},{"$f":"'rent allocations'!U64*$C$1","v":0},{"$f":"'rent allocations'!V64*$C$1","v":0},{"$f":"'rent allocations'!W64*$C$1","v":0},{"$f":"'rent allocations'!X64*$C$1","v":0},{"$f":"'rent allocations'!Y64*$C$1","v":0},{"$f":"'rent allocations'!Z64*$C$1","v":0},{"$f":"'rent allocations'!AA64*$C$1","v":0},{"$f":"'rent allocations'!AB64*$C$1","v":0},{"$f":"'rent allocations'!AC64*$C$1","v":0},{"$f":"'rent allocations'!AD64*$C$1","v":0},{"$f":"'rent allocations'!AE64*$C$1","v":0},{"$f":"'rent allocations'!AF64*$C$1","v":0},{"$f":"'rent allocations'!AG64*$C$1","v":0},{"$f":"'rent allocations'!AH64*$C$1","v":0},{"$f":"'rent allocations'!AI64*$C$1","v":0},{"$f":"'rent allocations'!AJ64*$C$1","v":0},{"$f":"'rent allocations'!AK64*$C$1","v":0},{"$f":"'rent allocations'!AL64*$C$1","v":0}]
["275 - Public Employment Relations Commission","275","Public Employment Relations Commission",{"$f":"'rent allocations'!D65*$C$1","v":0},{"$f":"'rent allocations'!E65*$C$1","v":0},{"$f":"'rent allocations'!F65*$C$1","v":0},{"$f":"'rent allocations'!G65*$C$1","v":0},{"$f":"'rent allocations'!H65*$C$1","v":0},{"$f":"'rent allocations'!I65*$C$1","v":0},{"$f":"'rent allocations'!J65*$C$1","v":0},{"$f":"'rent allocations'!K65*$C$1","v":0},{"$f":"'rent allocations'!L65*$C$1","v":0},{"$f":"'rent allocations'!M65*$C$1","v":0},{"$f":"'rent allocations'!N65*$C$1","v":0},{"$f":"'rent allocations'!O65*$C$1","v":0},{"$f":"'rent allocations'!P65*$C$1","v":0},{"$f":"'rent allocations'!Q65*$C$1","v":0},{"$f":"'rent allocations'!R65*$C$1","v":0},{"$f":"'rent allocations'!S65*$C$1","v":0},{"$f":"'rent allocations'!T65*$C$1","v":0},{"$f":"'rent allocations'!U65*$C$1","v":0},{"$f":"'rent allocations'!V65*$C$1","v":0},{"$f":"'rent allocations'!W65*$C$1","v":0},{"$f":"'rent allocations'!X65*$C$1","v":0},{"$f":"'rent allocations'!Y65*$C$1","v":0},{"$f":"'rent allocations'!Z65*$C$1","v":0},{"$f":"'rent allocations'!AA65*$C$1","v":0},{"$f":"'rent allocations'!AB65*$C$1","v":0},{"$f":"'rent allocations'!AC65*$C$1","v":0},{"$f":"'rent allocations'!AD65*$C$1","v":0},{"$f":"'rent allocations'!AE65*$C$1","v":0},{"$f":"'rent allocations'!AF65*$C$1","v":0},{"$f":"'rent allocations'!AG65*$C$1","v":0},{"$f":"'rent allocations'!AH65*$C$1","v":0},{"$f":"'rent allocations'!AI65*$C$1","v":0},{"$f":"'rent allocations'!AJ65*$C$1","v":0},{"$f":"'rent allocations'!AK65*$C$1","v":0},{"$f":"'rent allocations'!AL65*$C$1","v":0}]
["300 - Department of Social and Health Services","300","Department of Social and Health Services",{"$f":"'rent allocations'!D66*$C$1","v":3599077.0900976337},{"$f":"'rent allocations'!E66*$C$1","v":0},{"$f":"'rent allocations'!F66*$C$1","v":0},{"$f":"'rent allocations'!G66*$C$1","v":0},{"$f":"'rent allocations'!H66*$C$1","v":0},{"$f":"'rent allocations'!I66*$C$1","v":0},{"$f":"'rent allocations'!J66*$C$1","v":1778914.6411894031},{"$f":"'rent allocations'!K66*$C$1","v":0},{"$f":"'rent allocations'!L66*$C$1","v":0},{"$f":"'rent allocations'!M66*$C$1","v":0},{"$f":"'rent allocations'!N66*$C$1","v":0},{"$f":"'rent allocations'!O66*$C$1","v":0},{"$f":"'rent allocations'!P66*$C$1","v":0},{"$f":"'rent allocations'!Q66*$C$1","v":0},{"$f":"'rent allocations'!R66*$C$1","v":0},{"$f":"'rent allocations'!S66*$C$1","v":0},{"$f":"'rent allocations'!T66*$C$1","v":0},{"$f":"'rent allocations'!U66*$C$1","v":0},{"$f":"'rent allocations'!V66*$C$1","v":0},{"$f":"'rent allocations'!W66*$C$1","v":0},{"$f":"'rent allocations'!X66*$C$1","v":0},{"$f":"'rent allocations'!Y66*$C$1","v":0},{"$f":"'rent allocations'!Z66*$C$1","v":0},{"$f":"'rent allocations'!AA66*$C$1","v":0},{"$f":"'rent allocations'!AB66*$C$1","v":0},{"$f":"'rent allocations'!AC66*$C$1","v":0},{"$f":"'rent allocations'!AD66*$C$1","v":0},{"$f":"'rent allocations'!AE66*$C$1","v":0},{"$f":"'rent allocations'!AF66*$C$1","v":0},{"$f":"'rent allocations'!AG66*$C$1","v":553785.93239713891},{"$f":"'rent allocations'!AH66*$C$1","v":1266376.5165110915},{"$f":"'rent allocations'!AI66*$C$1","v":0},{"$f":"'rent allocations'!AJ66*$C$1","v":0},{"$f":"'rent allocations'!AK66*$C$1","v":0},{"$f":"'rent allocations'!AL66*$C$1","v":0}]
["303 - Department of Health","303","Department of Health",{"$f":"'rent allocations'!D67*$C$1","v":0},{"$f":"'rent allocations'!E67*$C$1","v":0},{"$f":"'rent allocations'!F67*$C$1","v":0},{"$f":"'rent allocations'!G67*$C$1","v":0},{"$f":"'rent allocations'!H67*$C$1","v":0},{"$f":"'rent allocations'!I67*$C$1","v":0},{"$f":"'rent allocations'!J67*$C$1","v":0},{"$f":"'rent allocations'!K67*$C$1","v":0},{"$f":"'rent allocations'!L67*$C$1","v":0},{"$f":"'rent allocations'!M67*$C$1","v":0},{"$f":"'rent allocations'!N67*$C$1","v":0},{"$f":"'rent allocations'!O67*$C$1","v":0},{"$f":"'rent allocations'!P67*$C$1","v":0},{"$f":"'rent allocations'!Q67*$C$1","v":0},{"$f":"'rent allocations'!R67*$C$1","v":0},{"$f":"'rent allocations'!S67*$C$1","v":0},{"$f":"'rent allocations'!T67*$C$1","v":0},{"$f":"'rent allocations'!U67*$C$1","v":0},{"$f":"'rent allocations'!V67*$C$1","v":0},{"$f":"'rent allocations'!W67*$C$1","v":0},{"$f":"'rent allocations'!X67*$C$1","v":0},{"$f":"'rent allocations'!Y67*$C$1","v":0},{"$f":"'rent allocations'!Z67*$C$1","v":0},{"$f":"'rent allocations'!AA67*$C$1","v":0},{"$f":"'rent allocations'!AB67*$C$1","v":0},{"$f":"'rent allocations'!AC67*$C$1","v":0},{"$f":"'rent allocations'!AD67*$C$1","v":0},{"$f":"'rent allocations'!AE67*$C$1","v":0},{"$f":"'rent allocations'!AF67*$C$1","v":0},{"$f":"'rent allocations'!AG67*$C$1","v":0},{"$f":"'rent allocations'!AH67*$C$1","v":0},{"$f":"'rent allocations'!AI67*$C$1","v":0},{"$f":"'rent allocations'!AJ67*$C$1","v":0},{"$f":"'rent allocations'!AK67*$C$1","v":0},{"$f":"'rent allocations'!AL67*$C$1","v":0}]
["305 - Department of Veterans Affairs","305","Department of Veterans Affairs",{"$f":"'rent allocations'!D68*$C$1","v":0},{"$f":"'rent allocations'!E68*$C$1","v":0},{"$f":"'rent allocations'!F68*$C$1","v":0},{"$f":"'rent allocations'!G68*$C$1","v":0},{"$f":"'rent allocations'!H68*$C$1","v":0},{"$f":"'rent allocations'!I68*$C$1","v":0},{"$f":"'rent allocations'!J68*$C$1","v":0},{"$f":"'rent allocations'!K68*$C$1","v":0},{"$f":"'rent allocations'!L68*$C$1","v":0},{"$f":"'rent allocations'!M68*$C$1","v":0},{"$f":"'rent allocations'!N68*$C$1","v":0},{"$f":"'rent allocations'!O68*$C$1","v":0},{"$f":"'rent allocations'!P68*$C$1","v":0},{"$f":"'rent allocations'!Q68*$C$1","v":0},{"$f":"'rent allocations'!R68*$C$1","v":0},{"$f":"'rent allocations'!S68*$C$1","v":0},{"$f":"'rent allocations'!T68*$C$1","v":0},{"$f":"'rent allocations'!U68*$C$1","v":0},{"$f":"'rent allocations'!V68*$C$1","v":0},{"$f":"'rent allocations'!W68*$C$1","v":0},{"$f":"'rent allocations'!X68*$C$1","v":0},{"$f":"'rent allocations'!Y68*$C$1","v":0},{"$f":"'rent allocations'!Z68*$C$1","v":0},{"$f":"'rent allocations'!AA68*$C$1","v":0},{"$f":"'rent allocations'!AB68*$C$1","v":0},{"$f":"'rent allocations'!AC68*$C$1","v":0},{"$f":"'rent allocations'!AD68*$C$1","v":0},{"$f":"'rent allocations'!AE68*$C$1","v":0},{"$f":"'rent allocations'!AF68*$C$1","v":0},{"$f":"'rent allocations'!AG68*$C$1","v":0},{"$f":"'rent allocations'!AH68*$C$1","v":0},{"$f":"'rent allocations'!AI68*$C$1","v":0},{"$f":"'rent allocations'!AJ68*$C$1","v":0},{"$f":"'rent allocations'!AK68*$C$1","v":0},{"$f":"'rent allocations'!AL68*$C$1","v":0}]
[{"$f":"CONCATENATE(B69,\" - \",C69)","v":"307 - DCYF"},"307","DCYF",{"$f":"'rent allocations'!D69*$C$1","v":1671388.7210337061},{"$f":"'rent allocations'!E69*$C$1","v":0},{"$f":"'rent allocations'!F69*$C$1","v":0},{"$f":"'rent allocations'!G69*$C$1","v":0},{"$f":"'rent allocations'!H69*$C$1","v":0},{"$f":"'rent allocations'!I69*$C$1","v":0},{"$f":"'rent allocations'!J69*$C$1","v":728392.04130069609},{"$f":"'rent allocations'!K69*$C$1","v":0},{"$f":"'rent allocations'!L69*$C$1","v":0},{"$f":"'rent allocations'!M69*$C$1","v":0},{"$f":"'rent allocations'!N69*$C$1","v":0},{"$f":"'rent allocations'!O69*$C$1","v":0},{"$f":"'rent allocations'!P69*$C$1","v":0},{"$f":"'rent allocations'!Q69*$C$1","v":0},{"$f":"'rent allocations'!R69*$C$1","v":0},{"$f":"'rent allocations'!S69*$C$1","v":0},{"$f":"'rent allocations'!T69*$C$1","v":0},{"$f":"'rent allocations'!U69*$C$1","v":0},{"$f":"'rent allocations'!V69*$C$1","v":0},{"$f":"'rent allocations'!W69*$C$1","v":0},{"$f":"'rent allocations'!X69*$C$1","v":0},{"$f":"'rent allocations'!Y69*$C$1","v":0},{"$f":"'rent allocations'!Z69*$C$1","v":0},{"$f":"'rent allocations'!AA69*$C$1","v":0},{"$f":"'rent allocations'!AB69*$C$1","v":0},{"$f":"'rent allocations'!AC69*$C$1","v":0},{"$f":"'rent allocations'!AD69*$C$1","v":0},{"$f":"'rent allocations'!AE69*$C$1","v":0},{"$f":"'rent allocations'!AF69*$C$1","v":0},{"$f":"'rent allocations'!AG69*$C$1","v":405911.09151291271},{"$f":"'rent allocations'!AH69*$C$1","v":537085.58822009747},{"$f":"'rent allocations'!AI69*$C$1","v":0},{"$f":"'rent allocations'!AJ69*$C$1","v":0},{"$f":"'rent allocations'!AK69*$C$1","v":0},{"$f":"'rent allocations'!AL69*$C$1","v":0}]
["310 - Department of Corrections","310","Department of Corrections",{"$f":"'rent allocations'!D70*$C$1","v":0},{"$f":"'rent allocations'!E70*$C$1","v":0},{"$f":"'rent allocations'!F70*$C$1","v":0},{"$f":"'rent allocations'!G70*$C$1","v":0},{"$f":"'rent allocations'!H70*$C$1","v":0},{"$f":"'rent allocations'!I70*$C$1","v":0},{"$f":"'rent allocations'!J70*$C$1","v":0},{"$f":"'rent allocations'!K70*$C$1","v":0},{"$f":"'rent allocations'!L70*$C$1","v":0},{"$f":"'rent allocations'!M70*$C$1","v":0},{"$f":"'rent allocations'!N70*$C$1","v":0},{"$f":"'rent allocations'!O70*$C$1","v":0},{"$f":"'rent allocations'!P70*$C$1","v":0},{"$f":"'rent allocations'!Q70*$C$1","v":0},{"$f":"'rent allocations'!R70*$C$1","v":0},{"$f":"'rent allocations'!S70*$C$1","v":0},{"$f":"'rent allocations'!T70*$C$1","v":0},{"$f":"'rent allocations'!U70*$C$1","v":0},{"$f":"'rent allocations'!V70*$C$1","v":0},{"$f":"'rent allocations'!W70*$C$1","v":0},{"$f":"'rent allocations'!X70*$C$1","v":0},{"$f":"'rent allocations'!Y70*$C$1","v":0},{"$f":"'rent allocations'!Z70*$C$1","v":0},{"$f":"'rent allocations'!AA70*$C$1","v":0},{"$f":"'rent allocations'!AB70*$C$1","v":0},{"$f":"'rent allocations'!AC70*$C$1","v":0},{"$f":"'rent allocations'!AD70*$C$1","v":0},{"$f":"'rent allocations'!AE70*$C$1","v":0},{"$f":"'rent allocations'!AF70*$C$1","v":0},{"$f":"'rent allocations'!AG70*$C$1","v":0},{"$f":"'rent allocations'!AH70*$C$1","v":0},{"$f":"'rent allocations'!AI70*$C$1","v":0},{"$f":"'rent allocations'!AJ70*$C$1","v":0},{"$f":"'rent allocations'!AK70*$C$1","v":0},{"$f":"'rent allocations'!AL70*$C$1","v":0}]
["315 - Department of Services for the Blind","315","Department of Services for the Blind",{"$f":"'rent allocations'!D71*$C$1","v":243107.68824085293},{"$f":"'rent allocations'!E71*$C$1","v":0},{"$f":"'rent allocations'!F71*$C$1","v":0},{"$f":"'rent allocations'!G71*$C$1","v":11374.603478231644},{"$f":"'rent allocations'!H71*$C$1","v":0},{"$f":"'rent allocations'!I71*$C$1","v":9609.9694184155851},{"$f":"'rent allocations'!J71*$C$1","v":28345.106843263209},{"$f":"'rent allocations'!K71*$C$1","v":0},{"$f":"'rent allocations'!L71*$C$1","v":24978.218714952862},{"$f":"'rent allocations'!M71*$C$1","v":0},{"$f":"'rent allocations'!N71*$C$1","v":13694.475522944011},{"$f":"'rent allocations'!O71*$C$1","v":0},{"$f":"'rent allocations'!P71*$C$1","v":0},{"$f":"'rent allocations'!Q71*$C$1","v":0},{"$f":"'rent allocations'!R71*$C$1","v":0},{"$f":"'rent allocations'!S71*$C$1","v":0},{"$f":"'rent allocations'!T71*$C$1","v":0},{"$f":"'rent allocations'!U71*$C$1","v":0},{"$f":"'rent allocations'!V71*$C$1","v":0},{"$f":"'rent allocations'!W71*$C$1","v":0},{"$f":"'rent allocations'!X71*$C$1","v":0},{"$f":"'rent allocations'!Y71*$C$1","v":0},{"$f":"'rent allocations'!Z71*$C$1","v":0},{"$f":"'rent allocations'!AA71*$C$1","v":0},{"$f":"'rent allocations'!AB71*$C$1","v":0},{"$f":"'rent allocations'!AC71*$C$1","v":0},{"$f":"'rent allocations'!AD71*$C$1","v":0},{"$f":"'rent allocations'!AE71*$C$1","v":0},{"$f":"'rent allocations'!AF71*$C$1","v":0},{"$f":"'rent allocations'!AG71*$C$1","v":0},{"$f":"'rent allocations'!AH71*$C$1","v":0},{"$f":"'rent allocations'!AI71*$C$1","v":101334.45123406521},{"$f":"'rent allocations'!AJ71*$C$1","v":53770.863028980399},{"$f":"'rent allocations'!AK71*$C$1","v":0},{"$f":"'rent allocations'!AL71*$C$1","v":0}]
["340 - Student Achievement Council","340","Student Achievement Council",{"$f":"'rent allocations'!D72*$C$1","v":0},{"$f":"'rent allocations'!E72*$C$1","v":0},{"$f":"'rent allocations'!F72*$C$1","v":0},{"$f":"'rent allocations'!G72*$C$1","v":0},{"$f":"'rent allocations'!H72*$C$1","v":0},{"$f":"'rent allocations'!I72*$C$1","v":0},{"$f":"'rent allocations'!J72*$C$1","v":0},{"$f":"'rent allocations'!K72*$C$1","v":0},{"$f":"'rent allocations'!L72*$C$1","v":0},{"$f":"'rent allocations'!M72*$C$1","v":0},{"$f":"'rent allocations'!N72*$C$1","v":0},{"$f":"'rent allocations'!O72*$C$1","v":0},{"$f":"'rent allocations'!P72*$C$1","v":0},{"$f":"'rent allocations'!Q72*$C$1","v":0},{"$f":"'rent allocations'!R72*$C$1","v":0},{"$f":"'rent allocations'!S72*$C$1","v":0},{"$f":"'rent allocations'!T72*$C$1","v":0},{"$f":"'rent allocations'!U72*$C$1","v":0},{"$f":"'rent allocations'!V72*$C$1","v":0},{"$f":"'rent allocations'!W72*$C$1","v":0},{"$f":"'rent allocations'!X72*$C$1","v":0},{"$f":"'rent allocations'!Y72*$C$1","v":0},{"$f":"'rent allocations'!Z72*$C$1","v":0},{"$f":"'rent allocations'!AA72*$C$1","v":0},{"$f":"'rent allocations'!AB72*$C$1","v":0},{"$f":"'rent allocations'!AC72*$C$1","v":0},{"$f":"'rent allocations'!AD72*$C$1","v":0},{"$f":"'rent allocations'!AE72*$C$1","v":0},{"$f":"'rent allocations'!AF72*$C$1","v":0},{"$f":"'rent allocations'!AG72*$C$1","v":0},{"$f":"'rent allocations'!AH72*$C$1","v":0},{"$f":"'rent allocations'!AI72*$C$1","v":0},{"$f":"'rent allocations'!AJ72*$C$1","v":0},{"$f":"'rent allocations'!AK72*$C$1","v":0},{"$f":"'rent allocations'!AL72*$C$1","v":0}]
["341 - Law Enforcement Officers' & Fire Fighters' Plan 2 Retirement Board","341","Law Enforcement Officers' & Fire Fighters' Plan 2 Retirement Board",{"$f":"'rent allocations'!D73*$C$1","v":0},{"$f":"'rent allocations'!E73*$C$1","v":0},{"$f":"'rent allocations'!F73*$C$1","v":0},{"$f":"'rent allocations'!G73*$C$1","v":0},{"$f":"'rent allocations'!H73*$C$1","v":0},{"$f":"'rent allocations'!I73*$C$1","v":0},{"$f":"'rent allocations'!J73*$C$1","v":0},{"$f":"'rent allocations'!K73*$C$1","v":0},{"$f":"'rent allocations'!L73*$C$1","v":0},{"$f":"'rent allocations'!M73*$C$1","v":0},{"$f":"'rent allocations'!N73*$C$1","v":0},{"$f":"'rent allocations'!O73*$C$1","v":0},{"$f":"'rent allocations'!P73*$C$1","v":0},{"$f":"'rent allocations'!Q73*$C$1","v":0},{"$f":"'rent allocations'!R73*$C$1","v":0},{"$f":"'rent allocations'!S73*$C$1","v":0},{"$f":"'rent allocations'!T73*$C$1","v":0},{"$f":"'rent allocations'!U73*$C$1","v":0},{"$f":"'rent allocations'!V73*$C$1","v":0},{"$f":"'rent allocations'!W73*$C$1","v":0},{"$f":"'rent allocations'!X73*$C$1","v":0},{"$f":"'rent allocations'!Y73*$C$1","v":0},{"$f":"'rent allocations'!Z73*$C$1","v":0},{"$f":"'rent allocations'!AA73*$C$1","v":0},{"$f":"'rent allocations'!AB73*$C$1","v":0},{"$f":"'rent allocations'!AC73*$C$1","v":0},{"$f":"'rent allocations'!AD73*$C$1","v":0},{"$f":"'rent allocations'!AE73*$C$1","v":0},{"$f":"'rent allocations'!AF73*$C$1","v":0},{"$f":"'rent allocations'!AG73*$C$1","v":0},{"$f":"'rent allocations'!AH73*$C$1","v":0},{"$f":"'rent allocations'!AI73*$C$1","v":0},{"$f":"'rent allocations'!AJ73*$C$1","v":0},{"$f":"'rent allocations'!AK73*$C$1","v":0},{"$f":"'rent allocations'!AL73*$C$1","v":0}]
["350 - Superintendent of Public Instruction","350","Superintendent of Public Instruction",{"$f":"'rent allocations'!D74*$C$1","v":1095506.4632793604},{"$f":"'rent allocations'!E74*$C$1","v":0},{"$f":"'rent allocations'!F74*$C$1","v":0},{"$f":"'rent allocations'!G74*$C$1","v":0},{"$f":"'rent allocations'!H74*$C$1","v":0},{"$f":"'rent allocations'!I74*$C$1","v":0},{"$f":"'rent allocations'!J74*$C$1","v":0},{"$f":"'rent allocations'!K74*$C$1","v":0},{"$f":"'rent allocations'!L74*$C$1","v":0},{"$f":"'rent allocations'!M74*$C$1","v":0},{"$f":"'rent allocations'!N74*$C$1","v":0},{"$f":"'rent allocations'!O74*$C$1","v":0},{"$f":"'rent allocations'!P74*$C$1","v":1070066.9721439932},{"$f":"'rent allocations'!Q74*$C$1","v":0},{"$f":"'rent allocations'!R74*$C$1","v":0},{"$f":"'rent allocations'!S74*$C$1","v":0},{"$f":"'rent allocations'!T74*$C$1","v":0},{"$f":"'rent allocations'!U74*$C$1","v":0},{"$f":"'rent allocations'!V74*$C$1","v":0},{"$f":"'rent allocations'!W74*$C$1","v":0},{"$f":"'rent allocations'!X74*$C$1","v":0},{"$f":"'rent allocations'!Y74*$C$1","v":0},{"$f":"'rent allocations'!Z74*$C$1","v":0},{"$f":"'rent allocations'!AA74*$C$1","v":25439.491135366923},{"$f":"'rent allocations'!AB74*$C$1","v":0},{"$f":"'rent allocations'!AC74*$C$1","v":0},{"$f":"'rent allocations'!AD74*$C$1","v":0},{"$f":"'rent allocations'!AE74*$C$1","v":0},{"$f":"'rent allocations'!AF74*$C$1","v":0},{"$f":"'rent allocations'!AG74*$C$1","v":0},{"$f":"'rent allocations'!AH74*$C$1","v":0},{"$f":"'rent allocations'!AI74*$C$1","v":0},{"$f":"'rent allocations'!AJ74*$C$1","v":0},{"$f":"'rent allocations'!AK74*$C$1","v":0},{"$f":"'rent allocations'!AL74*$C$1","v":0}]
["351 - State School For The Blind","351","State School For The Blind",{"$f":"'rent allocations'!D75*$C$1","v":0},{"$f":"'rent allocations'!E75*$C$1","v":0},{"$f":"'rent allocations'!F75*$C$1","v":0},{"$f":"'rent allocations'!G75*$C$1","v":0},{"$f":"'rent allocations'!H75*$C$1","v":0},{"$f":"'rent allocations'!I75*$C$1","v":0},{"$f":"'rent allocations'!J75*$C$1","v":0},{"$f":"'rent allocations'!K75*$C$1","v":0},{"$f":"'rent allocations'!L75*$C$1","v":0},{"$f":"'rent allocations'!M75*$C$1","v":0},{"$f":"'rent allocations'!N75*$C$1","v":0},{"$f":"'rent allocations'!O75*$C$1","v":0},{"$f":"'rent allocations'!P75*$C$1","v":0},{"$f":"'rent allocations'!Q75*$C$1","v":0},{"$f":"'rent allocations'!R75*$C$1","v":0},{"$f":"'rent allocations'!S75*$C$1","v":0},{"$f":"'rent allocations'!T75*$C$1","v":0},{"$f":"'rent allocations'!U75*$C$1","v":0},{"$f":"'rent allocations'!V75*$C$1","v":0},{"$f":"'rent allocations'!W75*$C$1","v":0},{"$f":"'rent allocations'!X75*$C$1","v":0},{"$f":"'rent allocations'!Y75*$C$1","v":0},{"$f":"'rent allocations'!Z75*$C$1","v":0},{"$f":"'rent allocations'!AA75*$C$1","v":0},{"$f":"'rent allocations'!AB75*$C$1","v":0},{"$f":"'rent allocations'!AC75*$C$1","v":0},{"$f":"'rent allocations'!AD75*$C$1","v":0},{"$f":"'rent allocations'!AE75*$C$1","v":0},{"$f":"'rent allocations'!AF75*$C$1","v":0},{"$f":"'rent allocations'!AG75*$C$1","v":0},{"$f":"'rent allocations'!AH75*$C$1","v":0},{"$f":"'rent allocations'!AI75*$C$1","v":0},{"$f":"'rent allocations'!AJ75*$C$1","v":0},{"$f":"'rent allocations'!AK75*$C$1","v":0},{"$f":"'rent allocations'!AL75*$C$1","v":0}]
["353 - State Center for Childhood Deafness and Hearing Loss","353","State Center for Childhood Deafness and Hearing Loss",{"$f":"'rent allocations'!D76*$C$1","v":0},{"$f":"'rent allocations'!E76*$C$1","v":0},{"$f":"'rent allocations'!F76*$C$1","v":0},{"$f":"'rent allocations'!G76*$C$1","v":0},{"$f":"'rent allocations'!H76*$C$1","v":0},{"$f":"'rent allocations'!I76*$C$1","v":0},{"$f":"'rent allocations'!J76*$C$1","v":0},{"$f":"'rent allocations'!K76*$C$1","v":0},{"$f":"'rent allocations'!L76*$C$1","v":0},{"$f":"'rent allocations'!M76*$C$1","v":0},{"$f":"'rent allocations'!N76*$C$1","v":0},{"$f":"'rent allocations'!O76*$C$1","v":0},{"$f":"'rent allocations'!P76*$C$1","v":0},{"$f":"'rent allocations'!Q76*$C$1","v":0},{"$f":"'rent allocations'!R76*$C$1","v":0},{"$f":"'rent allocations'!S76*$C$1","v":0},{"$f":"'rent allocations'!T76*$C$1","v":0},{"$f":"'rent allocations'!U76*$C$1","v":0},{"$f":"'rent allocations'!V76*$C$1","v":0},{"$f":"'rent allocations'!W76*$C$1","v":0},{"$f":"'rent allocations'!X76*$C$1","v":0},{"$f":"'rent allocations'!Y76*$C$1","v":0},{"$f":"'rent allocations'!Z76*$C$1","v":0},{"$f":"'rent allocations'!AA76*$C$1","v":0},{"$f":"'rent allocations'!AB76*$C$1","v":0},{"$f":"'rent allocations'!AC76*$C$1","v":0},{"$f":"'rent allocations'!AD76*$C$1","v":0},{"$f":"'rent allocations'!AE76*$C$1","v":0},{"$f":"'rent allocations'!AF76*$C$1","v":0},{"$f":"'rent allocations'!AG76*$C$1","v":0},{"$f":"'rent allocations'!AH76*$C$1","v":0},{"$f":"'rent allocations'!AI76*$C$1","v":0},{"$f":"'rent allocations'!AJ76*$C$1","v":0},{"$f":"'rent allocations'!AK76*$C$1","v":0},{"$f":"'rent allocations'!AL76*$C$1","v":0}]
["354 - Workforce Training and Education Coordinating Board","354","Workforce Training and Education Coordinating Board",{"$f":"'rent allocations'!D77*$C$1","v":0},{"$f":"'rent allocations'!E77*$C$1","v":0},{"$f":"'rent allocations'!F77*$C$1","v":0},{"$f":"'rent allocations'!G77*$C$1","v":0},{"$f":"'rent allocations'!H77*$C$1","v":0},{"$f":"'rent allocations'!I77*$C$1","v":0},{"$f":"'rent allocations'!J77*$C$1","v":0},{"$f":"'rent allocations'!K77*$C$1","v":0},{"$f":"'rent allocations'!L77*$C$1","v":0},{"$f":"'rent allocations'!M77*$C$1","v":0},{"$f":"'rent allocations'!N77*$C$1","v":0},{"$f":"'rent allocations'!O77*$C$1","v":0},{"$f":"'rent allocations'!P77*$C$1","v":0},{"$f":"'rent allocations'!Q77*$C$1","v":0},{"$f":"'rent allocations'!R77*$C$1","v":0},{"$f":"'rent allocations'!S77*$C$1","v":0},{"$f":"'rent allocations'!T77*$C$1","v":0},{"$f":"'rent allocations'!U77*$C$1","v":0},{"$f":"'rent allocations'!V77*$C$1","v":0},{"$f":"'rent allocations'!W77*$C$1","v":0},{"$f":"'rent allocations'!X77*$C$1","v":0},{"$f":"'rent allocations'!Y77*$C$1","v":0},{"$f":"'rent allocations'!Z77*$C$1","v":0},{"$f":"'rent allocations'!AA77*$C$1","v":0},{"$f":"'rent allocations'!AB77*$C$1","v":0},{"$f":"'rent allocations'!AC77*$C$1","v":0},{"$f":"'rent allocations'!AD77*$C$1","v":0},{"$f":"'rent allocations'!AE77*$C$1","v":0},{"$f":"'rent allocations'!AF77*$C$1","v":0},{"$f":"'rent allocations'!AG77*$C$1","v":0},{"$f":"'rent allocations'!AH77*$C$1","v":0},{"$f":"'rent allocations'!AI77*$C$1","v":0},{"$f":"'rent allocations'!AJ77*$C$1","v":0},{"$f":"'rent allocations'!AK77*$C$1","v":0},{"$f":"'rent allocations'!AL77*$C$1","v":0}]
["355 - Department of Archaeology and Historic Preservation","355","Department of Archaeology and Historic Preservation",{"$f":"'rent allocations'!D78*$C$1","v":214267.54439451572},{"$f":"'rent allocations'!E78*$C$1","v":0},{"$f":"'rent allocations'!F78*$C$1","v":0},{"$f":"'rent allocations'!G78*$C$1","v":0},{"$f":"'rent allocations'!H78*$C$1","v":0},{"$f":"'rent allocations'!I78*$C$1","v":0},{"$f":"'rent allocations'!J78*$C$1","v":0},{"$f":"'rent allocations'!K78*$C$1","v":0},{"$f":"'rent allocations'!L78*$C$1","v":0},{"$f":"'rent allocations'!M78*$C$1","v":0},{"$f":"'rent allocations'!N78*$C$1","v":0},{"$f":"'rent allocations'!O78*$C$1","v":0},{"$f":"'rent allocations'!P78*$C$1","v":0},{"$f":"'rent allocations'!Q78*$C$1","v":0},{"$f":"'rent allocations'!R78*$C$1","v":0},{"$f":"'rent allocations'!S78*$C$1","v":0},{"$f":"'rent allocations'!T78*$C$1","v":0},{"$f":"'rent allocations'!U78*$C$1","v":0},{"$f":"'rent allocations'!V78*$C$1","v":0},{"$f":"'rent allocations'!W78*$C$1","v":0},{"$f":"'rent allocations'!X78*$C$1","v":214267.54439451572},{"$f":"'rent allocations'!Y78*$C$1","v":0},{"$f":"'rent allocations'!Z78*$C$1","v":0},{"$f":"'rent allocations'!AA78*$C$1","v":0},{"$f":"'rent allocations'!AB78*$C$1","v":0},{"$f":"'rent allocations'!AC78*$C$1","v":0},{"$f":"'rent allocations'!AD78*$C$1","v":0},{"$f":"'rent allocations'!AE78*$C$1","v":0},{"$f":"'rent allocations'!AF78*$C$1","v":0},{"$f":"'rent allocations'!AG78*$C$1","v":0},{"$f":"'rent allocations'!AH78*$C$1","v":0},{"$f":"'rent allocations'!AI78*$C$1","v":0},{"$f":"'rent allocations'!AJ78*$C$1","v":0},{"$f":"'rent allocations'!AK78*$C$1","v":0},{"$f":"'rent allocations'!AL78*$C$1","v":0}]
["357 - Department of Early Learning","357","Department of Early Learning",{"$f":"'rent allocations'!D79*$C$1","v":0},{"$f":"'rent allocations'!E79*$C$1","v":0},{"$f":"'rent allocations'!F79*$C$1","v":0},{"$f":"'rent allocations'!G79*$C$1","v":0},{"$f":"'rent allocations'!H79*$C$1","v":0},{"$f":"'rent allocations'!I79*$C$1","v":0},{"$f":"'rent allocations'!J79*$C$1","v":0},{"$f":"'rent allocations'!K79*$C$1","v":0},{"$f":"'rent allocations'!L79*$C$1","v":0},{"$f":"'rent allocations'!M79*$C$1","v":0},{"$f":"'rent allocations'!N79*$C$1","v":0},{"$f":"'rent allocations'!O79*$C$1","v":0},{"$f":"'rent allocations'!P79*$C$1","v":0},{"$f":"'rent allocations'!Q79*$C$1","v":0},{"$f":"'rent allocations'!R79*$C$1","v":0},{"$f":"'rent allocations'!S79*$C$1","v":0},{"$f":"'rent allocations'!T79*$C$1","v":0},{"$f":"'rent allocations'!U79*$C$1","v":0},{"$f":"'rent allocations'!V79*$C$1","v":0},{"$f":"'rent allocations'!W79*$C$1","v":0},{"$f":"'rent allocations'!X79*$C$1","v":0},{"$f":"'rent allocations'!Y79*$C$1","v":0},{"$f":"'rent allocations'!Z79*$C$1","v":0},{"$f":"'rent allocations'!AA79*$C$1","v":0},{"$f":"'rent allocations'!AB79*$C$1","v":0},{"$f":"'rent allocations'!AC79*$C$1","v":0},{"$f":"'rent allocations'!AD79*$C$1","v":0},{"$f":"'rent allocations'!AE79*$C$1","v":0},{"$f":"'rent allocations'!AF79*$C$1","v":0},{"$f":"'rent allocations'!AG79*$C$1","v":0},{"$f":"'rent allocations'!AH79*$C$1","v":0},{"$f":"'rent allocations'!AI79*$C$1","v":0},{"$f":"'rent allocations'!AJ79*$C$1","v":0},{"$f":"'rent allocations'!AK79*$C$1","v":0},{"$f":"'rent allocations'!AL79*$C$1","v":0}]
["359 - WA Charter School Commission","359","WA Charter School Commission",{"$f":"'rent allocations'!D80*$C$1","v":0},{"$f":"'rent allocations'!E80*$C$1","v":0},{"$f":"'rent allocations'!F80*$C$1","v":0},{"$f":"'rent allocations'!G80*$C$1","v":0},{"$f":"'rent allocations'!H80*$C$1","v":0},{"$f":"'rent allocations'!I80*$C$1","v":0},{"$f":"'rent allocations'!J80*$C$1","v":0},{"$f":"'rent allocations'!K80*$C$1","v":0},{"$f":"'rent allocations'!L80*$C$1","v":0},{"$f":"'rent allocations'!M80*$C$1","v":0},{"$f":"'rent allocations'!N80*$C$1","v":0},{"$f":"'rent allocations'!O80*$C$1","v":0},{"$f":"'rent allocations'!P80*$C$1","v":0},{"$f":"'rent allocations'!Q80*$C$1","v":0},{"$f":"'rent allocations'!R80*$C$1","v":0},{"$f":"'rent allocations'!S80*$C$1","v":0},{"$f":"'rent allocations'!T80*$C$1","v":0},{"$f":"'rent allocations'!U80*$C$1","v":0},{"$f":"'rent allocations'!V80*$C$1","v":0},{"$f":"'rent allocations'!W80*$C$1","v":0},{"$f":"'rent allocations'!X80*$C$1","v":0},{"$f":"'rent allocations'!Y80*$C$1","v":0},{"$f":"'rent allocations'!Z80*$C$1","v":0},{"$f":"'rent allocations'!AA80*$C$1","v":0},{"$f":"'rent allocations'!AB80*$C$1","v":0},{"$f":"'rent allocations'!AC80*$C$1","v":0},{"$f":"'rent allocations'!AD80*$C$1","v":0},{"$f":"'rent allocations'!AE80*$C$1","v":0},{"$f":"'rent allocations'!AF80*$C$1","v":0},{"$f":"'rent allocations'!AG80*$C$1","v":0},{"$f":"'rent allocations'!AH80*$C$1","v":0},{"$f":"'rent allocations'!AI80*$C$1","v":0},{"$f":"'rent allocations'!AJ80*$C$1","v":0},{"$f":"'rent allocations'!AK80*$C$1","v":0},{"$f":"'rent allocations'!AL80*$C$1","v":0}]
["360 - University of Washington","360","University of Washington",{"$f":"'rent allocations'!D81*$C$1","v":0},{"$f":"'rent allocations'!E81*$C$1","v":0},{"$f":"'rent allocations'!F81*$C$1","v":0},{"$f":"'rent allocations'!G81*$C$1","v":0},{"$f":"'rent allocations'!H81*$C$1","v":0},{"$f":"'rent allocations'!I81*$C$1","v":0},{"$f":"'rent allocations'!J81*$C$1","v":0},{"$f":"'rent allocations'!K81*$C$1","v":0},{"$f":"'rent allocations'!L81*$C$1","v":0},{"$f":"'rent allocations'!M81*$C$1","v":0},{"$f":"'rent allocations'!N81*$C$1","v":0},{"$f":"'rent allocations'!O81*$C$1","v":0},{"$f":"'rent allocations'!P81*$C$1","v":0},{"$f":"'rent allocations'!Q81*$C$1","v":0},{"$f":"'rent allocations'!R81*$C$1","v":0},{"$f":"'rent allocations'!S81*$C$1","v":0},{"$f":"'rent allocations'!T81*$C$1","v":0},{"$f":"'rent allocations'!U81*$C$1","v":0},{"$f":"'rent allocations'!V81*$C$1","v":0},{"$f":"'rent allocations'!W81*$C$1","v":0},{"$f":"'rent allocations'!X81*$C$1","v":0},{"$f":"'rent allocations'!Y81*$C$1","v":0},{"$f":"'rent allocations'!Z81*$C$1","v":0},{"$f":"'rent allocations'!AA81*$C$1","v":0},{"$f":"'rent allocations'!AB81*$C$1","v":0},{"$f":"'rent allocations'!AC81*$C$1","v":0},{"$f":"'rent allocations'!AD81*$C$1","v":0},{"$f":"'rent allocations'!AE81*$C$1","v":0},{"$f":"'rent allocations'!AF81*$C$1","v":0},{"$f":"'rent allocations'!AG81*$C$1","v":0},{"$f":"'rent allocations'!AH81*$C$1","v":0},{"$f":"'rent allocations'!AI81*$C$1","v":0},{"$f":"'rent allocations'!AJ81*$C$1","v":0},{"$f":"'rent allocations'!AK81*$C$1","v":0},{"$f":"'rent allocations'!AL81*$C$1","v":0}]
["365 - Washington State University","365","Washington State University",{"$f":"'rent allocations'!D82*$C$1","v":0},{"$f":"'rent allocations'!E82*$C$1","v":0},{"$f":"'rent allocations'!F82*$C$1","v":0},{"$f":"'rent allocations'!G82*$C$1","v":0},{"$f":"'rent allocations'!H82*$C$1","v":0},{"$f":"'rent allocations'!I82*$C$1","v":0},{"$f":"'rent allocations'!J82*$C$1","v":0},{"$f":"'rent allocations'!K82*$C$1","v":0},{"$f":"'rent allocations'!L82*$C$1","v":0},{"$f":"'rent allocations'!M82*$C$1","v":0},{"$f":"'rent allocations'!N82*$C$1","v":0},{"$f":"'rent allocations'!O82*$C$1","v":0},{"$f":"'rent allocations'!P82*$C$1","v":0},{"$f":"'rent allocations'!Q82*$C$1","v":0},{"$f":"'rent allocations'!R82*$C$1","v":0},{"$f":"'rent allocations'!S82*$C$1","v":0},{"$f":"'rent allocations'!T82*$C$1","v":0},{"$f":"'rent allocations'!U82*$C$1","v":0},{"$f":"'rent allocations'!V82*$C$1","v":0},{"$f":"'rent allocations'!W82*$C$1","v":0},{"$f":"'rent allocations'!X82*$C$1","v":0},{"$f":"'rent allocations'!Y82*$C$1","v":0},{"$f":"'rent allocations'!Z82*$C$1","v":0},{"$f":"'rent allocations'!AA82*$C$1","v":0},{"$f":"'rent allocations'!AB82*$C$1","v":0},{"$f":"'rent allocations'!AC82*$C$1","v":0},{"$f":"'rent allocations'!AD82*$C$1","v":0},{"$f":"'rent allocations'!AE82*$C$1","v":0},{"$f":"'rent allocations'!AF82*$C$1","v":0},{"$f":"'rent allocations'!AG82*$C$1","v":0},{"$f":"'rent allocations'!AH82*$C$1","v":0},{"$f":"'rent allocations'!AI82*$C$1","v":0},{"$f":"'rent allocations'!AJ82*$C$1","v":0},{"$f":"'rent allocations'!AK82*$C$1","v":0},{"$f":"'rent allocations'!AL82*$C$1","v":0}]
["370 - Eastern Washington University","370","Eastern Washington University",{"$f":"'rent allocations'!D83*$C$1","v":0},{"$f":"'rent allocations'!E83*$C$1","v":0},{"$f":"'rent allocations'!F83*$C$1","v":0},{"$f":"'rent allocations'!G83*$C$1","v":0},{"$f":"'rent allocations'!H83*$C$1","v":0},{"$f":"'rent allocations'!I83*$C$1","v":0},{"$f":"'rent allocations'!J83*$C$1","v":0},{"$f":"'rent allocations'!K83*$C$1","v":0},{"$f":"'rent allocations'!L83*$C$1","v":0},{"$f":"'rent allocations'!M83*$C$1","v":0},{"$f":"'rent allocations'!N83*$C$1","v":0},{"$f":"'rent allocations'!O83*$C$1","v":0},{"$f":"'rent allocations'!P83*$C$1","v":0},{"$f":"'rent allocations'!Q83*$C$1","v":0},{"$f":"'rent allocations'!R83*$C$1","v":0},{"$f":"'rent allocations'!S83*$C$1","v":0},{"$f":"'rent allocations'!T83*$C$1","v":0},{"$f":"'rent allocations'!U83*$C$1","v":0},{"$f":"'rent allocations'!V83*$C$1","v":0},{"$f":"'rent allocations'!W83*$C$1","v":0},{"$f":"'rent allocations'!X83*$C$1","v":0},{"$f":"'rent allocations'!Y83*$C$1","v":0},{"$f":"'rent allocations'!Z83*$C$1","v":0},{"$f":"'rent allocations'!AA83*$C$1","v":0},{"$f":"'rent allocations'!AB83*$C$1","v":0},{"$f":"'rent allocations'!AC83*$C$1","v":0},{"$f":"'rent allocations'!AD83*$C$1","v":0},{"$f":"'rent allocations'!AE83*$C$1","v":0},{"$f":"'rent allocations'!AF83*$C$1","v":0},{"$f":"'rent allocations'!AG83*$C$1","v":0},{"$f":"'rent allocations'!AH83*$C$1","v":0},{"$f":"'rent allocations'!AI83*$C$1","v":0},{"$f":"'rent allocations'!AJ83*$C$1","v":0},{"$f":"'rent allocations'!AK83*$C$1","v":0},{"$f":"'rent allocations'!AL83*$C$1","v":0}]
["375 - Central Washington University","375","Central Washington University",{"$f":"'rent allocations'!D84*$C$1","v":0},{"$f":"'rent allocations'!E84*$C$1","v":0},{"$f":"'rent allocations'!F84*$C$1","v":0},{"$f":"'rent allocations'!G84*$C$1","v":0},{"$f":"'rent allocations'!H84*$C$1","v":0},{"$f":"'rent allocations'!I84*$C$1","v":0},{"$f":"'rent allocations'!J84*$C$1","v":0},{"$f":"'rent allocations'!K84*$C$1","v":0},{"$f":"'rent allocations'!L84*$C$1","v":0},{"$f":"'rent allocations'!M84*$C$1","v":0},{"$f":"'rent allocations'!N84*$C$1","v":0},{"$f":"'rent allocations'!O84*$C$1","v":0},{"$f":"'rent allocations'!P84*$C$1","v":0},{"$f":"'rent allocations'!Q84*$C$1","v":0},{"$f":"'rent allocations'!R84*$C$1","v":0},{"$f":"'rent allocations'!S84*$C$1","v":0},{"$f":"'rent allocations'!T84*$C$1","v":0},{"$f":"'rent allocations'!U84*$C$1","v":0},{"$f":"'rent allocations'!V84*$C$1","v":0},{"$f":"'rent allocations'!W84*$C$1","v":0},{"$f":"'rent allocations'!X84*$C$1","v":0},{"$f":"'rent allocations'!Y84*$C$1","v":0},{"$f":"'rent allocations'!Z84*$C$1","v":0},{"$f":"'rent allocations'!AA84*$C$1","v":0},{"$f":"'rent allocations'!AB84*$C$1","v":0},{"$f":"'rent allocations'!AC84*$C$1","v":0},{"$f":"'rent allocations'!AD84*$C$1","v":0},{"$f":"'rent allocations'!AE84*$C$1","v":0},{"$f":"'rent allocations'!AF84*$C$1","v":0},{"$f":"'rent allocations'!AG84*$C$1","v":0},{"$f":"'rent allocations'!AH84*$C$1","v":0},{"$f":"'rent allocations'!AI84*$C$1","v":0},{"$f":"'rent allocations'!AJ84*$C$1","v":0},{"$f":"'rent allocations'!AK84*$C$1","v":0},{"$f":"'rent allocations'!AL84*$C$1","v":0}]
["376 - The Evergreen State College","376","The Evergreen State College",{"$f":"'rent allocations'!D85*$C$1","v":0},{"$f":"'rent allocations'!E85*$C$1","v":0},{"$f":"'rent allocations'!F85*$C$1","v":0},{"$f":"'rent allocations'!G85*$C$1","v":0},{"$f":"'rent allocations'!H85*$C$1","v":0},{"$f":"'rent allocations'!I85*$C$1","v":0},{"$f":"'rent allocations'!J85*$C$1","v":0},{"$f":"'rent allocations'!K85*$C$1","v":0},{"$f":"'rent allocations'!L85*$C$1","v":0},{"$f":"'rent allocations'!M85*$C$1","v":0},{"$f":"'rent allocations'!N85*$C$1","v":0},{"$f":"'rent allocations'!O85*$C$1","v":0},{"$f":"'rent allocations'!P85*$C$1","v":0},{"$f":"'rent allocations'!Q85*$C$1","v":0},{"$f":"'rent allocations'!R85*$C$1","v":0},{"$f":"'rent allocations'!S85*$C$1","v":0},{"$f":"'rent allocations'!T85*$C$1","v":0},{"$f":"'rent allocations'!U85*$C$1","v":0},{"$f":"'rent allocations'!V85*$C$1","v":0},{"$f":"'rent allocations'!W85*$C$1","v":0},{"$f":"'rent allocations'!X85*$C$1","v":0},{"$f":"'rent allocations'!Y85*$C$1","v":0},{"$f":"'rent allocations'!Z85*$C$1","v":0},{"$f":"'rent allocations'!AA85*$C$1","v":0},{"$f":"'rent allocations'!AB85*$C$1","v":0},{"$f":"'rent allocations'!AC85*$C$1","v":0},{"$f":"'rent allocations'!AD85*$C$1","v":0},{"$f":"'rent allocations'!AE85*$C$1","v":0},{"$f":"'rent allocations'!AF85*$C$1","v":0},{"$f":"'rent allocations'!AG85*$C$1","v":0},{"$f":"'rent allocations'!AH85*$C$1","v":0},{"$f":"'rent allocations'!AI85*$C$1","v":0},{"$f":"'rent allocations'!AJ85*$C$1","v":0},{"$f":"'rent allocations'!AK85*$C$1","v":0},{"$f":"'rent allocations'!AL85*$C$1","v":0}]
["380 - Western Washington University","380","Western Washington University",{"$f":"'rent allocations'!D86*$C$1","v":0},{"$f":"'rent allocations'!E86*$C$1","v":0},{"$f":"'rent allocations'!F86*$C$1","v":0},{"$f":"'rent allocations'!G86*$C$1","v":0},{"$f":"'rent allocations'!H86*$C$1","v":0},{"$f":"'rent allocations'!I86*$C$1","v":0},{"$f":"'rent allocations'!J86*$C$1","v":0},{"$f":"'rent allocations'!K86*$C$1","v":0},{"$f":"'rent allocations'!L86*$C$1","v":0},{"$f":"'rent allocations'!M86*$C$1","v":0},{"$f":"'rent allocations'!N86*$C$1","v":0},{"$f":"'rent allocations'!O86*$C$1","v":0},{"$f":"'rent allocations'!P86*$C$1","v":0},{"$f":"'rent allocations'!Q86*$C$1","v":0},{"$f":"'rent allocations'!R86*$C$1","v":0},{"$f":"'rent allocations'!S86*$C$1","v":0},{"$f":"'rent allocations'!T86*$C$1","v":0},{"$f":"'rent allocations'!U86*$C$1","v":0},{"$f":"'rent allocations'!V86*$C$1","v":0},{"$f":"'rent allocations'!W86*$C$1","v":0},{"$f":"'rent allocations'!X86*$C$1","v":0},{"$f":"'rent allocations'!Y86*$C$1","v":0},{"$f":"'rent allocations'!Z86*$C$1","v":0},{"$f":"'rent allocations'!AA86*$C$1","v":0},{"$f":"'rent allocations'!AB86*$C$1","v":0},{"$f":"'rent allocations'!AC86*$C$1","v":0},{"$f":"'rent allocations'!AD86*$C$1","v":0},{"$f":"'rent allocations'!AE86*$C$1","v":0},{"$f":"'rent allocations'!AF86*$C$1","v":0},{"$f":"'rent allocations'!AG86*$C$1","v":0},{"$f":"'rent allocations'!AH86*$C$1","v":0},{"$f":"'rent allocations'!AI86*$C$1","v":0},{"$f":"'rent allocations'!AJ86*$C$1","v":0},{"$f":"'rent allocations'!AK86*$C$1","v":0},{"$f":"'rent allocations'!AL86*$C$1","v":0}]
["387 - Washington State Arts Commission","387","Washington State Arts Commission",{"$f":"'rent allocations'!D87*$C$1","v":0},{"$f":"'rent allocations'!E87*$C$1","v":0},{"$f":"'rent allocations'!F87*$C$1","v":0},{"$f":"'rent allocations'!G87*$C$1","v":0},{"$f":"'rent allocations'!H87*$C$1","v":0},{"$f":"'rent allocations'!I87*$C$1","v":0},{"$f":"'rent allocations'!J87*$C$1","v":0},{"$f":"'rent allocations'!K87*$C$1","v":0},{"$f":"'rent allocations'!L87*$C$1","v":0},{"$f":"'rent allocations'!M87*$C$1","v":0},{"$f":"'rent allocations'!N87*$C$1","v":0},{"$f":"'rent allocations'!O87*$C$1","v":0},{"$f":"'rent allocations'!P87*$C$1","v":0},{"$f":"'rent allocations'!Q87*$C$1","v":0},{"$f":"'rent allocations'!R87*$C$1","v":0},{"$f":"'rent allocations'!S87*$C$1","v":0},{"$f":"'rent allocations'!T87*$C$1","v":0},{"$f":"'rent allocations'!U87*$C$1","v":0},{"$f":"'rent allocations'!V87*$C$1","v":0},{"$f":"'rent allocations'!W87*$C$1","v":0},{"$f":"'rent allocations'!X87*$C$1","v":0},{"$f":"'rent allocations'!Y87*$C$1","v":0},{"$f":"'rent allocations'!Z87*$C$1","v":0},{"$f":"'rent allocations'!AA87*$C$1","v":0},{"$f":"'rent allocations'!AB87*$C$1","v":0},{"$f":"'rent allocations'!AC87*$C$1","v":0},{"$f":"'rent allocations'!AD87*$C$1","v":0},{"$f":"'rent allocations'!AE87*$C$1","v":0},{"$f":"'rent allocations'!AF87*$C$1","v":0},{"$f":"'rent allocations'!AG87*$C$1","v":0},{"$f":"'rent allocations'!AH87*$C$1","v":0},{"$f":"'rent allocations'!AI87*$C$1","v":0},{"$f":"'rent allocations'!AJ87*$C$1","v":0},{"$f":"'rent allocations'!AK87*$C$1","v":0},{"$f":"'rent allocations'!AL87*$C$1","v":0}]
["390 - Washington State Historical Society","390","Washington State Historical Society",{"$f":"'rent allocations'!D88*$C$1","v":0},{"$f":"'rent allocations'!E88*$C$1","v":0},{"$f":"'rent allocations'!F88*$C$1","v":0},{"$f":"'rent allocations'!G88*$C$1","v":0},{"$f":"'rent allocations'!H88*$C$1","v":0},{"$f":"'rent allocations'!I88*$C$1","v":0},{"$f":"'rent allocations'!J88*$C$1","v":0},{"$f":"'rent allocations'!K88*$C$1","v":0},{"$f":"'rent allocations'!L88*$C$1","v":0},{"$f":"'rent allocations'!M88*$C$1","v":0},{"$f":"'rent allocations'!N88*$C$1","v":0},{"$f":"'rent allocations'!O88*$C$1","v":0},{"$f":"'rent allocations'!P88*$C$1","v":0},{"$f":"'rent allocations'!Q88*$C$1","v":0},{"$f":"'rent allocations'!R88*$C$1","v":0},{"$f":"'rent allocations'!S88*$C$1","v":0},{"$f":"'rent allocations'!T88*$C$1","v":0},{"$f":"'rent allocations'!U88*$C$1","v":0},{"$f":"'rent allocations'!V88*$C$1","v":0},{"$f":"'rent allocations'!W88*$C$1","v":0},{"$f":"'rent allocations'!X88*$C$1","v":0},{"$f":"'rent allocations'!Y88*$C$1","v":0},{"$f":"'rent allocations'!Z88*$C$1","v":0},{"$f":"'rent allocations'!AA88*$C$1","v":0},{"$f":"'rent allocations'!AB88*$C$1","v":0},{"$f":"'rent allocations'!AC88*$C$1","v":0},{"$f":"'rent allocations'!AD88*$C$1","v":0},{"$f":"'rent allocations'!AE88*$C$1","v":0},{"$f":"'rent allocations'!AF88*$C$1","v":0},{"$f":"'rent allocations'!AG88*$C$1","v":0},{"$f":"'rent allocations'!AH88*$C$1","v":0},{"$f":"'rent allocations'!AI88*$C$1","v":0},{"$f":"'rent allocations'!AJ88*$C$1","v":0},{"$f":"'rent allocations'!AK88*$C$1","v":0},{"$f":"'rent allocations'!AL88*$C$1","v":0}]
["395 - Eastern Washington State Historical Society","395","Eastern Washington State Historical Society",{"$f":"'rent allocations'!D89*$C$1","v":0},{"$f":"'rent allocations'!E89*$C$1","v":0},{"$f":"'rent allocations'!F89*$C$1","v":0},{"$f":"'rent allocations'!G89*$C$1","v":0},{"$f":"'rent allocations'!H89*$C$1","v":0},{"$f":"'rent allocations'!I89*$C$1","v":0},{"$f":"'rent allocations'!J89*$C$1","v":0},{"$f":"'rent allocations'!K89*$C$1","v":0},{"$f":"'rent allocations'!L89*$C$1","v":0},{"$f":"'rent allocations'!M89*$C$1","v":0},{"$f":"'rent allocations'!N89*$C$1","v":0},{"$f":"'rent allocations'!O89*$C$1","v":0},{"$f":"'rent allocations'!P89*$C$1","v":0},{"$f":"'rent allocations'!Q89*$C$1","v":0},{"$f":"'rent allocations'!R89*$C$1","v":0},{"$f":"'rent allocations'!S89*$C$1","v":0},{"$f":"'rent allocations'!T89*$C$1","v":0},{"$f":"'rent allocations'!U89*$C$1","v":0},{"$f":"'rent allocations'!V89*$C$1","v":0},{"$f":"'rent allocations'!W89*$C$1","v":0},{"$f":"'rent allocations'!X89*$C$1","v":0},{"$f":"'rent allocations'!Y89*$C$1","v":0},{"$f":"'rent allocations'!Z89*$C$1","v":0},{"$f":"'rent allocations'!AA89*$C$1","v":0},{"$f":"'rent allocations'!AB89*$C$1","v":0},{"$f":"'rent allocations'!AC89*$C$1","v":0},{"$f":"'rent allocations'!AD89*$C$1","v":0},{"$f":"'rent allocations'!AE89*$C$1","v":0},{"$f":"'rent allocations'!AF89*$C$1","v":0},{"$f":"'rent allocations'!AG89*$C$1","v":0},{"$f":"'rent allocations'!AH89*$C$1","v":0},{"$f":"'rent allocations'!AI89*$C$1","v":0},{"$f":"'rent allocations'!AJ89*$C$1","v":0},{"$f":"'rent allocations'!AK89*$C$1","v":0},{"$f":"'rent allocations'!AL89*$C$1","v":0}]
["405 - Department of Transportation","405","Department of Transportation",{"$f":"'rent allocations'!D90*$C$1","v":1747554.5044421849},{"$f":"'rent allocations'!E90*$C$1","v":0},{"$f":"'rent allocations'!F90*$C$1","v":0},{"$f":"'rent allocations'!G90*$C$1","v":0},{"$f":"'rent allocations'!H90*$C$1","v":0},{"$f":"'rent allocations'!I90*$C$1","v":0},{"$f":"'rent allocations'!J90*$C$1","v":0},{"$f":"'rent allocations'!K90*$C$1","v":0},{"$f":"'rent allocations'!L90*$C$1","v":0},{"$f":"'rent allocations'!M90*$C$1","v":0},{"$f":"'rent allocations'!N90*$C$1","v":1747554.5044421849},{"$f":"'rent allocations'!O90*$C$1","v":0},{"$f":"'rent allocations'!P90*$C$1","v":0},{"$f":"'rent allocations'!Q90*$C$1","v":0},{"$f":"'rent allocations'!R90*$C$1","v":0},{"$f":"'rent allocations'!S90*$C$1","v":0},{"$f":"'rent allocations'!T90*$C$1","v":0},{"$f":"'rent allocations'!U90*$C$1","v":0},{"$f":"'rent allocations'!V90*$C$1","v":0},{"$f":"'rent allocations'!W90*$C$1","v":0},{"$f":"'rent allocations'!X90*$C$1","v":0},{"$f":"'rent allocations'!Y90*$C$1","v":0},{"$f":"'rent allocations'!Z90*$C$1","v":0},{"$f":"'rent allocations'!AA90*$C$1","v":0},{"$f":"'rent allocations'!AB90*$C$1","v":0},{"$f":"'rent allocations'!AC90*$C$1","v":0},{"$f":"'rent allocations'!AD90*$C$1","v":0},{"$f":"'rent allocations'!AE90*$C$1","v":0},{"$f":"'rent allocations'!AF90*$C$1","v":0},{"$f":"'rent allocations'!AG90*$C$1","v":0},{"$f":"'rent allocations'!AH90*$C$1","v":0},{"$f":"'rent allocations'!AI90*$C$1","v":0},{"$f":"'rent allocations'!AJ90*$C$1","v":0},{"$f":"'rent allocations'!AK90*$C$1","v":0},{"$f":"'rent allocations'!AL90*$C$1","v":0}]
["406 - County Road Administration Board","406","County Road Administration Board",{"$f":"'rent allocations'!D91*$C$1","v":0},{"$f":"'rent allocations'!E91*$C$1","v":0},{"$f":"'rent allocations'!F91*$C$1","v":0},{"$f":"'rent allocations'!G91*$C$1","v":0},{"$f":"'rent allocations'!H91*$C$1","v":0},{"$f":"'rent allocations'!I91*$C$1","v":0},{"$f":"'rent allocations'!J91*$C$1","v":0},{"$f":"'rent allocations'!K91*$C$1","v":0},{"$f":"'rent allocations'!L91*$C$1","v":0},{"$f":"'rent allocations'!M91*$C$1","v":0},{"$f":"'rent allocations'!N91*$C$1","v":0},{"$f":"'rent allocations'!O91*$C$1","v":0},{"$f":"'rent allocations'!P91*$C$1","v":0},{"$f":"'rent allocations'!Q91*$C$1","v":0},{"$f":"'rent allocations'!R91*$C$1","v":0},{"$f":"'rent allocations'!S91*$C$1","v":0},{"$f":"'rent allocations'!T91*$C$1","v":0},{"$f":"'rent allocations'!U91*$C$1","v":0},{"$f":"'rent allocations'!V91*$C$1","v":0},{"$f":"'rent allocations'!W91*$C$1","v":0},{"$f":"'rent allocations'!X91*$C$1","v":0},{"$f":"'rent allocations'!Y91*$C$1","v":0},{"$f":"'rent allocations'!Z91*$C$1","v":0},{"$f":"'rent allocations'!AA91*$C$1","v":0},{"$f":"'rent allocations'!AB91*$C$1","v":0},{"$f":"'rent allocations'!AC91*$C$1","v":0},{"$f":"'rent allocations'!AD91*$C$1","v":0},{"$f":"'rent allocations'!AE91*$C$1","v":0},{"$f":"'rent allocations'!AF91*$C$1","v":0},{"$f":"'rent allocations'!AG91*$C$1","v":0},{"$f":"'rent allocations'!AH91*$C$1","v":0},{"$f":"'rent allocations'!AI91*$C$1","v":0},{"$f":"'rent allocations'!AJ91*$C$1","v":0},{"$f":"'rent allocations'!AK91*$C$1","v":0},{"$f":"'rent allocations'!AL91*$C$1","v":0}]
["407 - Transportation Improvement Board","407","Transportation Improvement Board",{"$f":"'rent allocations'!D92*$C$1","v":0},{"$f":"'rent allocations'!E92*$C$1","v":0},{"$f":"'rent allocations'!F92*$C$1","v":0},{"$f":"'rent allocations'!G92*$C$1","v":0},{"$f":"'rent allocations'!H92*$C$1","v":0},{"$f":"'rent allocations'!I92*$C$1","v":0},{"$f":"'rent allocations'!J92*$C$1","v":0},{"$f":"'rent allocations'!K92*$C$1","v":0},{"$f":"'rent allocations'!L92*$C$1","v":0},{"$f":"'rent allocations'!M92*$C$1","v":0},{"$f":"'rent allocations'!N92*$C$1","v":0},{"$f":"'rent allocations'!O92*$C$1","v":0},{"$f":"'rent allocations'!P92*$C$1","v":0},{"$f":"'rent allocations'!Q92*$C$1","v":0},{"$f":"'rent allocations'!R92*$C$1","v":0},{"$f":"'rent allocations'!S92*$C$1","v":0},{"$f":"'rent allocations'!T92*$C$1","v":0},{"$f":"'rent allocations'!U92*$C$1","v":0},{"$f":"'rent allocations'!V92*$C$1","v":0},{"$f":"'rent allocations'!W92*$C$1","v":0},{"$f":"'rent allocations'!X92*$C$1","v":0},{"$f":"'rent allocations'!Y92*$C$1","v":0},{"$f":"'rent allocations'!Z92*$C$1","v":0},{"$f":"'rent allocations'!AA92*$C$1","v":0},{"$f":"'rent allocations'!AB92*$C$1","v":0},{"$f":"'rent allocations'!AC92*$C$1","v":0},{"$f":"'rent allocations'!AD92*$C$1","v":0},{"$f":"'rent allocations'!AE92*$C$1","v":0},{"$f":"'rent allocations'!AF92*$C$1","v":0},{"$f":"'rent allocations'!AG92*$C$1","v":0},{"$f":"'rent allocations'!AH92*$C$1","v":0},{"$f":"'rent allocations'!AI92*$C$1","v":0},{"$f":"'rent allocations'!AJ92*$C$1","v":0},{"$f":"'rent allocations'!AK92*$C$1","v":0},{"$f":"'rent allocations'!AL92*$C$1","v":0}]
["410 - Transportation Commission","410","Transportation Commission",{"$f":"'rent allocations'!D93*$C$1","v":0},{"$f":"'rent allocations'!E93*$C$1","v":0},{"$f":"'rent allocations'!F93*$C$1","v":0},{"$f":"'rent allocations'!G93*$C$1","v":0},{"$f":"'rent allocations'!H93*$C$1","v":0},{"$f":"'rent allocations'!I93*$C$1","v":0},{"$f":"'rent allocations'!J93*$C$1","v":0},{"$f":"'rent allocations'!K93*$C$1","v":0},{"$f":"'rent allocations'!L93*$C$1","v":0},{"$f":"'rent allocations'!M93*$C$1","v":0},{"$f":"'rent allocations'!N93*$C$1","v":0},{"$f":"'rent allocations'!O93*$C$1","v":0},{"$f":"'rent allocations'!P93*$C$1","v":0},{"$f":"'rent allocations'!Q93*$C$1","v":0},{"$f":"'rent allocations'!R93*$C$1","v":0},{"$f":"'rent allocations'!S93*$C$1","v":0},{"$f":"'rent allocations'!T93*$C$1","v":0},{"$f":"'rent allocations'!U93*$C$1","v":0},{"$f":"'rent allocations'!V93*$C$1","v":0},{"$f":"'rent allocations'!W93*$C$1","v":0},{"$f":"'rent allocations'!X93*$C$1","v":0},{"$f":"'rent allocations'!Y93*$C$1","v":0},{"$f":"'rent allocations'!Z93*$C$1","v":0},{"$f":"'rent allocations'!AA93*$C$1","v":0},{"$f":"'rent allocations'!AB93*$C$1","v":0},{"$f":"'rent allocations'!AC93*$C$1","v":0},{"$f":"'rent allocations'!AD93*$C$1","v":0},{"$f":"'rent allocations'!AE93*$C$1","v":0},{"$f":"'rent allocations'!AF93*$C$1","v":0},{"$f":"'rent allocations'!AG93*$C$1","v":0},{"$f":"'rent allocations'!AH93*$C$1","v":0},{"$f":"'rent allocations'!AI93*$C$1","v":0},{"$f":"'rent allocations'!AJ93*$C$1","v":0},{"$f":"'rent allocations'!AK93*$C$1","v":0},{"$f":"'rent allocations'!AL93*$C$1","v":0}]
["411 - Freight Mobility Strategic Investment Board","411","Freight Mobility Strategic Investment Board",{"$f":"'rent allocations'!D94*$C$1","v":0},{"$f":"'rent allocations'!E94*$C$1","v":0},{"$f":"'rent allocations'!F94*$C$1","v":0},{"$f":"'rent allocations'!G94*$C$1","v":0},{"$f":"'rent allocations'!H94*$C$1","v":0},{"$f":"'rent allocations'!I94*$C$1","v":0},{"$f":"'rent allocations'!J94*$C$1","v":0},{"$f":"'rent allocations'!K94*$C$1","v":0},{"$f":"'rent allocations'!L94*$C$1","v":0},{"$f":"'rent allocations'!M94*$C$1","v":0},{"$f":"'rent allocations'!N94*$C$1","v":0},{"$f":"'rent allocations'!O94*$C$1","v":0},{"$f":"'rent allocations'!P94*$C$1","v":0},{"$f":"'rent allocations'!Q94*$C$1","v":0},{"$f":"'rent allocations'!R94*$C$1","v":0},{"$f":"'rent allocations'!S94*$C$1","v":0},{"$f":"'rent allocations'!T94*$C$1","v":0},{"$f":"'rent allocations'!U94*$C$1","v":0},{"$f":"'rent allocations'!V94*$C$1","v":0},{"$f":"'rent allocations'!W94*$C$1","v":0},{"$f":"'rent allocations'!X94*$C$1","v":0},{"$f":"'rent allocations'!Y94*$C$1","v":0},{"$f":"'rent allocations'!Z94*$C$1","v":0},{"$f":"'rent allocations'!AA94*$C$1","v":0},{"$f":"'rent allocations'!AB94*$C$1","v":0},{"$f":"'rent allocations'!AC94*$C$1","v":0},{"$f":"'rent allocations'!AD94*$C$1","v":0},{"$f":"'rent allocations'!AE94*$C$1","v":0},{"$f":"'rent allocations'!AF94*$C$1","v":0},{"$f":"'rent allocations'!AG94*$C$1","v":0},{"$f":"'rent allocations'!AH94*$C$1","v":0},{"$f":"'rent allocations'!AI94*$C$1","v":0},{"$f":"'rent allocations'!AJ94*$C$1","v":0},{"$f":"'rent allocations'!AK94*$C$1","v":0},{"$f":"'rent allocations'!AL94*$C$1","v":0}]
["460 - Columbia River Gorge Commission","460","Columbia River Gorge Commission",{"$f":"'rent allocations'!D95*$C$1","v":0},{"$f":"'rent allocations'!E95*$C$1","v":0},{"$f":"'rent allocations'!F95*$C$1","v":0},{"$f":"'rent allocations'!G95*$C$1","v":0},{"$f":"'rent allocations'!H95*$C$1","v":0},{"$f":"'rent allocations'!I95*$C$1","v":0},{"$f":"'rent allocations'!J95*$C$1","v":0},{"$f":"'rent allocations'!K95*$C$1","v":0},{"$f":"'rent allocations'!L95*$C$1","v":0},{"$f":"'rent allocations'!M95*$C$1","v":0},{"$f":"'rent allocations'!N95*$C$1","v":0},{"$f":"'rent allocations'!O95*$C$1","v":0},{"$f":"'rent allocations'!P95*$C$1","v":0},{"$f":"'rent allocations'!Q95*$C$1","v":0},{"$f":"'rent allocations'!R95*$C$1","v":0},{"$f":"'rent allocations'!S95*$C$1","v":0},{"$f":"'rent allocations'!T95*$C$1","v":0},{"$f":"'rent allocations'!U95*$C$1","v":0},{"$f":"'rent allocations'!V95*$C$1","v":0},{"$f":"'rent allocations'!W95*$C$1","v":0},{"$f":"'rent allocations'!X95*$C$1","v":0},{"$f":"'rent allocations'!Y95*$C$1","v":0},{"$f":"'rent allocations'!Z95*$C$1","v":0},{"$f":"'rent allocations'!AA95*$C$1","v":0},{"$f":"'rent allocations'!AB95*$C$1","v":0},{"$f":"'rent allocations'!AC95*$C$1","v":0},{"$f":"'rent allocations'!AD95*$C$1","v":0},{"$f":"'rent allocations'!AE95*$C$1","v":0},{"$f":"'rent allocations'!AF95*$C$1","v":0},{"$f":"'rent allocations'!AG95*$C$1","v":0},{"$f":"'rent allocations'!AH95*$C$1","v":0},{"$f":"'rent allocations'!AI95*$C$1","v":0},{"$f":"'rent allocations'!AJ95*$C$1","v":0},{"$f":"'rent allocations'!AK95*$C$1","v":0},{"$f":"'rent allocations'!AL95*$C$1","v":0}]
["461 - Department of Ecology","461","Department of Ecology",{"$f":"'rent allocations'!D96*$C$1","v":0},{"$f":"'rent allocations'!E96*$C$1","v":0},{"$f":"'rent allocations'!F96*$C$1","v":0},{"$f":"'rent allocations'!G96*$C$1","v":0},{"$f":"'rent allocations'!H96*$C$1","v":0},{"$f":"'rent allocations'!I96*$C$1","v":0},{"$f":"'rent allocations'!J96*$C$1","v":0},{"$f":"'rent allocations'!K96*$C$1","v":0},{"$f":"'rent allocations'!L96*$C$1","v":0},{"$f":"'rent allocations'!M96*$C$1","v":0},{"$f":"'rent allocations'!N96*$C$1","v":0},{"$f":"'rent allocations'!O96*$C$1","v":0},{"$f":"'rent allocations'!P96*$C$1","v":0},{"$f":"'rent allocations'!Q96*$C$1","v":0},{"$f":"'rent allocations'!R96*$C$1","v":0},{"$f":"'rent allocations'!S96*$C$1","v":0},{"$f":"'rent allocations'!T96*$C$1","v":0},{"$f":"'rent allocations'!U96*$C$1","v":0},{"$f":"'rent allocations'!V96*$C$1","v":0},{"$f":"'rent allocations'!W96*$C$1","v":0},{"$f":"'rent allocations'!X96*$C$1","v":0},{"$f":"'rent allocations'!Y96*$C$1","v":0},{"$f":"'rent allocations'!Z96*$C$1","v":0},{"$f":"'rent allocations'!AA96*$C$1","v":0},{"$f":"'rent allocations'!AB96*$C$1","v":0},{"$f":"'rent allocations'!AC96*$C$1","v":0},{"$f":"'rent allocations'!AD96*$C$1","v":0},{"$f":"'rent allocations'!AE96*$C$1","v":0},{"$f":"'rent allocations'!AF96*$C$1","v":0},{"$f":"'rent allocations'!AG96*$C$1","v":0},{"$f":"'rent allocations'!AH96*$C$1","v":0},{"$f":"'rent allocations'!AI96*$C$1","v":0},{"$f":"'rent allocations'!AJ96*$C$1","v":0},{"$f":"'rent allocations'!AK96*$C$1","v":0},{"$f":"'rent allocations'!AL96*$C$1","v":0}]
["462 - Pollution Liability Insurance Program","462","Pollution Liability Insurance Program",{"$f":"'rent allocations'!D97*$C$1","v":0},{"$f":"'rent allocations'!E97*$C$1","v":0},{"$f":"'rent allocations'!F97*$C$1","v":0},{"$f":"'rent allocations'!G97*$C$1","v":0},{"$f":"'rent allocations'!H97*$C$1","v":0},{"$f":"'rent allocations'!I97*$C$1","v":0},{"$f":"'rent allocations'!J97*$C$1","v":0},{"$f":"'rent allocations'!K97*$C$1","v":0},{"$f":"'rent allocations'!L97*$C$1","v":0},{"$f":"'rent allocations'!M97*$C$1","v":0},{"$f":"'rent allocations'!N97*$C$1","v":0},{"$f":"'rent allocations'!O97*$C$1","v":0},{"$f":"'rent allocations'!P97*$C$1","v":0},{"$f":"'rent allocations'!Q97*$C$1","v":0},{"$f":"'rent allocations'!R97*$C$1","v":0},{"$f":"'rent allocations'!S97*$C$1","v":0},{"$f":"'rent allocations'!T97*$C$1","v":0},{"$f":"'rent allocations'!U97*$C$1","v":0},{"$f":"'rent allocations'!V97*$C$1","v":0},{"$f":"'rent allocations'!W97*$C$1","v":0},{"$f":"'rent allocations'!X97*$C$1","v":0},{"$f":"'rent allocations'!Y97*$C$1","v":0},{"$f":"'rent allocations'!Z97*$C$1","v":0},{"$f":"'rent allocations'!AA97*$C$1","v":0},{"$f":"'rent allocations'!AB97*$C$1","v":0},{"$f":"'rent allocations'!AC97*$C$1","v":0},{"$f":"'rent allocations'!AD97*$C$1","v":0},{"$f":"'rent allocations'!AE97*$C$1","v":0},{"$f":"'rent allocations'!AF97*$C$1","v":0},{"$f":"'rent allocations'!AG97*$C$1","v":0},{"$f":"'rent allocations'!AH97*$C$1","v":0},{"$f":"'rent allocations'!AI97*$C$1","v":0},{"$f":"'rent allocations'!AJ97*$C$1","v":0},{"$f":"'rent allocations'!AK97*$C$1","v":0},{"$f":"'rent allocations'!AL97*$C$1","v":0}]
["465 - State Parks and Recreation Commission","465","State Parks and Recreation Commission",{"$f":"'rent allocations'!D98*$C$1","v":0},{"$f":"'rent allocations'!E98*$C$1","v":0},{"$f":"'rent allocations'!F98*$C$1","v":0},{"$f":"'rent allocations'!G98*$C$1","v":0},{"$f":"'rent allocations'!H98*$C$1","v":0},{"$f":"'rent allocations'!I98*$C$1","v":0},{"$f":"'rent allocations'!J98*$C$1","v":0},{"$f":"'rent allocations'!K98*$C$1","v":0},{"$f":"'rent allocations'!L98*$C$1","v":0},{"$f":"'rent allocations'!M98*$C$1","v":0},{"$f":"'rent allocations'!N98*$C$1","v":0},{"$f":"'rent allocations'!O98*$C$1","v":0},{"$f":"'rent allocations'!P98*$C$1","v":0},{"$f":"'rent allocations'!Q98*$C$1","v":0},{"$f":"'rent allocations'!R98*$C$1","v":0},{"$f":"'rent allocations'!S98*$C$1","v":0},{"$f":"'rent allocations'!T98*$C$1","v":0},{"$f":"'rent allocations'!U98*$C$1","v":0},{"$f":"'rent allocations'!V98*$C$1","v":0},{"$f":"'rent allocations'!W98*$C$1","v":0},{"$f":"'rent allocations'!X98*$C$1","v":0},{"$f":"'rent allocations'!Y98*$C$1","v":0},{"$f":"'rent allocations'!Z98*$C$1","v":0},{"$f":"'rent allocations'!AA98*$C$1","v":0},{"$f":"'rent allocations'!AB98*$C$1","v":0},{"$f":"'rent allocations'!AC98*$C$1","v":0},{"$f":"'rent allocations'!AD98*$C$1","v":0},{"$f":"'rent allocations'!AE98*$C$1","v":0},{"$f":"'rent allocations'!AF98*$C$1","v":0},{"$f":"'rent allocations'!AG98*$C$1","v":0},{"$f":"'rent allocations'!AH98*$C$1","v":0},{"$f":"'rent allocations'!AI98*$C$1","v":0},{"$f":"'rent allocations'!AJ98*$C$1","v":0},{"$f":"'rent allocations'!AK98*$C$1","v":0},{"$f":"'rent allocations'!AL98*$C$1","v":0}]
["467 - Recreation and Conservation Funding Board","467","Recreation and Conservation Funding Board",{"$f":"'rent allocations'!D99*$C$1","v":97672.30374584558},{"$f":"'rent allocations'!E99*$C$1","v":0},{"$f":"'rent allocations'!F99*$C$1","v":0},{"$f":"'rent allocations'!G99*$C$1","v":0},{"$f":"'rent allocations'!H99*$C$1","v":0},{"$f":"'rent allocations'!I99*$C$1","v":0},{"$f":"'rent allocations'!J99*$C$1","v":0},{"$f":"'rent allocations'!K99*$C$1","v":0},{"$f":"'rent allocations'!L99*$C$1","v":97672.30374584558},{"$f":"'rent allocations'!M99*$C$1","v":0},{"$f":"'rent allocations'!N99*$C$1","v":0},{"$f":"'rent allocations'!O99*$C$1","v":0},{"$f":"'rent allocations'!P99*$C$1","v":0},{"$f":"'rent allocations'!Q99*$C$1","v":0},{"$f":"'rent allocations'!R99*$C$1","v":0},{"$f":"'rent allocations'!S99*$C$1","v":0},{"$f":"'rent allocations'!T99*$C$1","v":0},{"$f":"'rent allocations'!U99*$C$1","v":0},{"$f":"'rent allocations'!V99*$C$1","v":0},{"$f":"'rent allocations'!W99*$C$1","v":0},{"$f":"'rent allocations'!X99*$C$1","v":0},{"$f":"'rent allocations'!Y99*$C$1","v":0},{"$f":"'rent allocations'!Z99*$C$1","v":0},{"$f":"'rent allocations'!AA99*$C$1","v":0},{"$f":"'rent allocations'!AB99*$C$1","v":0},{"$f":"'rent allocations'!AC99*$C$1","v":0},{"$f":"'rent allocations'!AD99*$C$1","v":0},{"$f":"'rent allocations'!AE99*$C$1","v":0},{"$f":"'rent allocations'!AF99*$C$1","v":0},{"$f":"'rent allocations'!AG99*$C$1","v":0},{"$f":"'rent allocations'!AH99*$C$1","v":0},{"$f":"'rent allocations'!AI99*$C$1","v":0},{"$f":"'rent allocations'!AJ99*$C$1","v":0},{"$f":"'rent allocations'!AK99*$C$1","v":0},{"$f":"'rent allocations'!AL99*$C$1","v":0}]
["468 - Environmental and Land Use Hearings Office","468","Environmental and Land Use Hearings Office",{"$f":"'rent allocations'!D100*$C$1","v":0},{"$f":"'rent allocations'!E100*$C$1","v":0},{"$f":"'rent allocations'!F100*$C$1","v":0},{"$f":"'rent allocations'!G100*$C$1","v":0},{"$f":"'rent allocations'!H100*$C$1","v":0},{"$f":"'rent allocations'!I100*$C$1","v":0},{"$f":"'rent allocations'!J100*$C$1","v":0},{"$f":"'rent allocations'!K100*$C$1","v":0},{"$f":"'rent allocations'!L100*$C$1","v":0},{"$f":"'rent allocations'!M100*$C$1","v":0},{"$f":"'rent allocations'!N100*$C$1","v":0},{"$f":"'rent allocations'!O100*$C$1","v":0},{"$f":"'rent allocations'!P100*$C$1","v":0},{"$f":"'rent allocations'!Q100*$C$1","v":0},{"$f":"'rent allocations'!R100*$C$1","v":0},{"$f":"'rent allocations'!S100*$C$1","v":0},{"$f":"'rent allocations'!T100*$C$1","v":0},{"$f":"'rent allocations'!U100*$C$1","v":0},{"$f":"'rent allocations'!V100*$C$1","v":0},{"$f":"'rent allocations'!W100*$C$1","v":0},{"$f":"'rent allocations'!X100*$C$1","v":0},{"$f":"'rent allocations'!Y100*$C$1","v":0},{"$f":"'rent allocations'!Z100*$C$1","v":0},{"$f":"'rent allocations'!AA100*$C$1","v":0},{"$f":"'rent allocations'!AB100*$C$1","v":0},{"$f":"'rent allocations'!AC100*$C$1","v":0},{"$f":"'rent allocations'!AD100*$C$1","v":0},{"$f":"'rent allocations'!AE100*$C$1","v":0},{"$f":"'rent allocations'!AF100*$C$1","v":0},{"$f":"'rent allocations'!AG100*$C$1","v":0},{"$f":"'rent allocations'!AH100*$C$1","v":0},{"$f":"'rent allocations'!AI100*$C$1","v":0},{"$f":"'rent allocations'!AJ100*$C$1","v":0},{"$f":"'rent allocations'!AK100*$C$1","v":0},{"$f":"'rent allocations'!AL100*$C$1","v":0}]
["471 - State Conservation Commission","471","State Conservation Commission",{"$f":"'rent allocations'!D101*$C$1","v":0},{"$f":"'rent allocations'!E101*$C$1","v":0},{"$f":"'rent allocations'!F101*$C$1","v":0},{"$f":"'rent allocations'!G101*$C$1","v":0},{"$f":"'rent allocations'!H101*$C$1","v":0},{"$f":"'rent allocations'!I101*$C$1","v":0},{"$f":"'rent allocations'!J101*$C$1","v":0},{"$f":"'rent allocations'!K101*$C$1","v":0},{"$f":"'rent allocations'!L101*$C$1","v":0},{"$f":"'rent allocations'!M101*$C$1","v":0},{"$f":"'rent allocations'!N101*$C$1","v":0},{"$f":"'rent allocations'!O101*$C$1","v":0},{"$f":"'rent allocations'!P101*$C$1","v":0},{"$f":"'rent allocations'!Q101*$C$1","v":0},{"$f":"'rent allocations'!R101*$C$1","v":0},{"$f":"'rent allocations'!S101*$C$1","v":0},{"$f":"'rent allocations'!T101*$C$1","v":0},{"$f":"'rent allocations'!U101*$C$1","v":0},{"$f":"'rent allocations'!V101*$C$1","v":0},{"$f":"'rent allocations'!W101*$C$1","v":0},{"$f":"'rent allocations'!X101*$C$1","v":0},{"$f":"'rent allocations'!Y101*$C$1","v":0},{"$f":"'rent allocations'!Z101*$C$1","v":0},{"$f":"'rent allocations'!AA101*$C$1","v":0},{"$f":"'rent allocations'!AB101*$C$1","v":0},{"$f":"'rent allocations'!AC101*$C$1","v":0},{"$f":"'rent allocations'!AD101*$C$1","v":0},{"$f":"'rent allocations'!AE101*$C$1","v":0},{"$f":"'rent allocations'!AF101*$C$1","v":0},{"$f":"'rent allocations'!AG101*$C$1","v":0},{"$f":"'rent allocations'!AH101*$C$1","v":0},{"$f":"'rent allocations'!AI101*$C$1","v":0},{"$f":"'rent allocations'!AJ101*$C$1","v":0},{"$f":"'rent allocations'!AK101*$C$1","v":0},{"$f":"'rent allocations'!AL101*$C$1","v":0}]
["477 - Department of Fish and Wildlife","477","Department of Fish and Wildlife",{"$f":"'rent allocations'!D102*$C$1","v":1163180.0461980822},{"$f":"'rent allocations'!E102*$C$1","v":0},{"$f":"'rent allocations'!F102*$C$1","v":0},{"$f":"'rent allocations'!G102*$C$1","v":0},{"$f":"'rent allocations'!H102*$C$1","v":0},{"$f":"'rent allocations'!I102*$C$1","v":0},{"$f":"'rent allocations'!J102*$C$1","v":0},{"$f":"'rent allocations'!K102*$C$1","v":0},{"$f":"'rent allocations'!L102*$C$1","v":1163180.0461980822},{"$f":"'rent allocations'!M102*$C$1","v":0},{"$f":"'rent allocations'!N102*$C$1","v":0},{"$f":"'rent allocations'!O102*$C$1","v":0},{"$f":"'rent allocations'!P102*$C$1","v":0},{"$f":"'rent allocations'!Q102*$C$1","v":0},{"$f":"'rent allocations'!R102*$C$1","v":0},{"$f":"'rent allocations'!S102*$C$1","v":0},{"$f":"'rent allocations'!T102*$C$1","v":0},{"$f":"'rent allocations'!U102*$C$1","v":0},{"$f":"'rent allocations'!V102*$C$1","v":0},{"$f":"'rent allocations'!W102*$C$1","v":0},{"$f":"'rent allocations'!X102*$C$1","v":0},{"$f":"'rent allocations'!Y102*$C$1","v":0},{"$f":"'rent allocations'!Z102*$C$1","v":0},{"$f":"'rent allocations'!AA102*$C$1","v":0},{"$f":"'rent allocations'!AB102*$C$1","v":0},{"$f":"'rent allocations'!AC102*$C$1","v":0},{"$f":"'rent allocations'!AD102*$C$1","v":0},{"$f":"'rent allocations'!AE102*$C$1","v":0},{"$f":"'rent allocations'!AF102*$C$1","v":0},{"$f":"'rent allocations'!AG102*$C$1","v":0},{"$f":"'rent allocations'!AH102*$C$1","v":0},{"$f":"'rent allocations'!AI102*$C$1","v":0},{"$f":"'rent allocations'!AJ102*$C$1","v":0},{"$f":"'rent allocations'!AK102*$C$1","v":0},{"$f":"'rent allocations'!AL102*$C$1","v":0}]
["478 - Puget Sound Partnership","478","Puget Sound Partnership",{"$f":"'rent allocations'!D103*$C$1","v":31717.839155229296},{"$f":"'rent allocations'!E103*$C$1","v":0},{"$f":"'rent allocations'!F103*$C$1","v":0},{"$f":"'rent allocations'!G103*$C$1","v":0},{"$f":"'rent allocations'!H103*$C$1","v":0},{"$f":"'rent allocations'!I103*$C$1","v":0},{"$f":"'rent allocations'!J103*$C$1","v":0},{"$f":"'rent allocations'!K103*$C$1","v":0},{"$f":"'rent allocations'!L103*$C$1","v":0},{"$f":"'rent allocations'!M103*$C$1","v":0},{"$f":"'rent allocations'!N103*$C$1","v":0},{"$f":"'rent allocations'!O103*$C$1","v":0},{"$f":"'rent allocations'!P103*$C$1","v":0},{"$f":"'rent allocations'!Q103*$C$1","v":0},{"$f":"'rent allocations'!R103*$C$1","v":0},{"$f":"'rent allocations'!S103*$C$1","v":0},{"$f":"'rent allocations'!T103*$C$1","v":0},{"$f":"'rent allocations'!U103*$C$1","v":0},{"$f":"'rent allocations'!V103*$C$1","v":0},{"$f":"'rent allocations'!W103*$C$1","v":0},{"$f":"'rent allocations'!X103*$C$1","v":31717.839155229296},{"$f":"'rent allocations'!Y103*$C$1","v":0},{"$f":"'rent allocations'!Z103*$C$1","v":0},{"$f":"'rent allocations'!AA103*$C$1","v":0},{"$f":"'rent allocations'!AB103*$C$1","v":0},{"$f":"'rent allocations'!AC103*$C$1","v":0},{"$f":"'rent allocations'!AD103*$C$1","v":0},{"$f":"'rent allocations'!AE103*$C$1","v":0},{"$f":"'rent allocations'!AF103*$C$1","v":0},{"$f":"'rent allocations'!AG103*$C$1","v":0},{"$f":"'rent allocations'!AH103*$C$1","v":0},{"$f":"'rent allocations'!AI103*$C$1","v":0},{"$f":"'rent allocations'!AJ103*$C$1","v":0},{"$f":"'rent allocations'!AK103*$C$1","v":0},{"$f":"'rent allocations'!AL103*$C$1","v":0}]
["490 - Department of Natural Resources","490","Department of Natural Resources",{"$f":"'rent allocations'!D104*$C$1","v":1259698.870740812},{"$f":"'rent allocations'!E104*$C$1","v":0},{"$f":"'rent allocations'!F104*$C$1","v":0},{"$f":"'rent allocations'!G104*$C$1","v":0},{"$f":"'rent allocations'!H104*$C$1","v":0},{"$f":"'rent allocations'!I104*$C$1","v":0},{"$f":"'rent allocations'!J104*$C$1","v":0},{"$f":"'rent allocations'!K104*$C$1","v":0},{"$f":"'rent allocations'!L104*$C$1","v":1259698.870740812},{"$f":"'rent allocations'!M104*$C$1","v":0},{"$f":"'rent allocations'!N104*$C$1","v":0},{"$f":"'rent allocations'!O104*$C$1","v":0},{"$f":"'rent allocations'!P104*$C$1","v":0},{"$f":"'rent allocations'!Q104*$C$1","v":0},{"$f":"'rent allocations'!R104*$C$1","v":0},{"$f":"'rent allocations'!S104*$C$1","v":0},{"$f":"'rent allocations'!T104*$C$1","v":0},{"$f":"'rent allocations'!U104*$C$1","v":0},{"$f":"'rent allocations'!V104*$C$1","v":0},{"$f":"'rent allocations'!W104*$C$1","v":0},{"$f":"'rent allocations'!X104*$C$1","v":0},{"$f":"'rent allocations'!Y104*$C$1","v":0},{"$f":"'rent allocations'!Z104*$C$1","v":0},{"$f":"'rent allocations'!AA104*$C$1","v":0},{"$f":"'rent allocations'!AB104*$C$1","v":0},{"$f":"'rent allocations'!AC104*$C$1","v":0},{"$f":"'rent allocations'!AD104*$C$1","v":0},{"$f":"'rent allocations'!AE104*$C$1","v":0},{"$f":"'rent allocations'!AF104*$C$1","v":0},{"$f":"'rent allocations'!AG104*$C$1","v":0},{"$f":"'rent allocations'!AH104*$C$1","v":0},{"$f":"'rent allocations'!AI104*$C$1","v":0},{"$f":"'rent allocations'!AJ104*$C$1","v":0},{"$f":"'rent allocations'!AK104*$C$1","v":0},{"$f":"'rent allocations'!AL104*$C$1","v":0}]
["495 - Department of Agriculture","495","Department of Agriculture",{"$f":"'rent allocations'!D105*$C$1","v":397883.93778267276},{"$f":"'rent allocations'!E105*$C$1","v":0},{"$f":"'rent allocations'!F105*$C$1","v":0},{"$f":"'rent allocations'!G105*$C$1","v":0},{"$f":"'rent allocations'!H105*$C$1","v":0},{"$f":"'rent allocations'!I105*$C$1","v":0},{"$f":"'rent allocations'!J105*$C$1","v":0},{"$f":"'rent allocations'!K105*$C$1","v":0},{"$f":"'rent allocations'!L105*$C$1","v":397883.93778267276},{"$f":"'rent allocations'!M105*$C$1","v":0},{"$f":"'rent allocations'!N105*$C$1","v":0},{"$f":"'rent allocations'!O105*$C$1","v":0},{"$f":"'rent allocations'!P105*$C$1","v":0},{"$f":"'rent allocations'!Q105*$C$1","v":0},{"$f":"'rent allocations'!R105*$C$1","v":0},{"$f":"'rent allocations'!S105*$C$1","v":0},{"$f":"'rent allocations'!T105*$C$1","v":0},{"$f":"'rent allocations'!U105*$C$1","v":0},{"$f":"'rent allocations'!V105*$C$1","v":0},{"$f":"'rent allocations'!W105*$C$1","v":0},{"$f":"'rent allocations'!X105*$C$1","v":0},{"$f":"'rent allocations'!Y105*$C$1","v":0},{"$f":"'rent allocations'!Z105*$C$1","v":0},{"$f":"'rent allocations'!AA105*$C$1","v":0},{"$f":"'rent allocations'!AB105*$C$1","v":0},{"$f":"'rent allocations'!AC105*$C$1","v":0},{"$f":"'rent allocations'!AD105*$C$1","v":0},{"$f":"'rent allocations'!AE105*$C$1","v":0},{"$f":"'rent allocations'!AF105*$C$1","v":0},{"$f":"'rent allocations'!AG105*$C$1","v":0},{"$f":"'rent allocations'!AH105*$C$1","v":0},{"$f":"'rent allocations'!AI105*$C$1","v":0},{"$f":"'rent allocations'!AJ105*$C$1","v":0},{"$f":"'rent allocations'!AK105*$C$1","v":0},{"$f":"'rent allocations'!AL105*$C$1","v":0}]
["540 - Employment Security Department","540","Employment Security Department",{"$f":"'rent allocations'!D106*$C$1","v":1051081.0815052155},{"$f":"'rent allocations'!E106*$C$1","v":0},{"$f":"'rent allocations'!F106*$C$1","v":0},{"$f":"'rent allocations'!G106*$C$1","v":0},{"$f":"'rent allocations'!H106*$C$1","v":0},{"$f":"'rent allocations'!I106*$C$1","v":0},{"$f":"'rent allocations'!J106*$C$1","v":0},{"$f":"'rent allocations'!K106*$C$1","v":0},{"$f":"'rent allocations'!L106*$C$1","v":0},{"$f":"'rent allocations'!M106*$C$1","v":1051081.0815052155},{"$f":"'rent allocations'!N106*$C$1","v":0},{"$f":"'rent allocations'!O106*$C$1","v":0},{"$f":"'rent allocations'!P106*$C$1","v":0},{"$f":"'rent allocations'!Q106*$C$1","v":0},{"$f":"'rent allocations'!R106*$C$1","v":0},{"$f":"'rent allocations'!S106*$C$1","v":0},{"$f":"'rent allocations'!T106*$C$1","v":0},{"$f":"'rent allocations'!U106*$C$1","v":0},{"$f":"'rent allocations'!V106*$C$1","v":0},{"$f":"'rent allocations'!W106*$C$1","v":0},{"$f":"'rent allocations'!X106*$C$1","v":0},{"$f":"'rent allocations'!Y106*$C$1","v":0},{"$f":"'rent allocations'!Z106*$C$1","v":0},{"$f":"'rent allocations'!AA106*$C$1","v":0},{"$f":"'rent allocations'!AB106*$C$1","v":0},{"$f":"'rent allocations'!AC106*$C$1","v":0},{"$f":"'rent allocations'!AD106*$C$1","v":0},{"$f":"'rent allocations'!AE106*$C$1","v":0},{"$f":"'rent allocations'!AF106*$C$1","v":0},{"$f":"'rent allocations'!AG106*$C$1","v":0},{"$f":"'rent allocations'!AH106*$C$1","v":0},{"$f":"'rent allocations'!AI106*$C$1","v":0},{"$f":"'rent allocations'!AJ106*$C$1","v":0},{"$f":"'rent allocations'!AK106*$C$1","v":0},{"$f":"'rent allocations'!AL106*$C$1","v":0}]
["699 - Community Colleges","699","Community Colleges",{"$f":"'rent allocations'!D107*$C$1","v":0},{"$f":"'rent allocations'!E107*$C$1","v":0},{"$f":"'rent allocations'!F107*$C$1","v":0},{"$f":"'rent allocations'!G107*$C$1","v":0},{"$f":"'rent allocations'!H107*$C$1","v":0},{"$f":"'rent allocations'!I107*$C$1","v":0},{"$f":"'rent allocations'!J107*$C$1","v":0},{"$f":"'rent allocations'!K107*$C$1","v":0},{"$f":"'rent allocations'!L107*$C$1","v":0},{"$f":"'rent allocations'!M107*$C$1","v":0},{"$f":"'rent allocations'!N107*$C$1","v":0},{"$f":"'rent allocations'!O107*$C$1","v":0},{"$f":"'rent allocations'!P107*$C$1","v":0},{"$f":"'rent allocations'!Q107*$C$1","v":0},{"$f":"'rent allocations'!R107*$C$1","v":0},{"$f":"'rent allocations'!S107*$C$1","v":0},{"$f":"'rent allocations'!T107*$C$1","v":0},{"$f":"'rent allocations'!U107*$C$1","v":0},{"$f":"'rent allocations'!V107*$C$1","v":0},{"$f":"'rent allocations'!W107*$C$1","v":0},{"$f":"'rent allocations'!X107*$C$1","v":0},{"$f":"'rent allocations'!Y107*$C$1","v":0},{"$f":"'rent allocations'!Z107*$C$1","v":0},{"$f":"'rent allocations'!AA107*$C$1","v":0},{"$f":"'rent allocations'!AB107*$C$1","v":0},{"$f":"'rent allocations'!AC107*$C$1","v":0},{"$f":"'rent allocations'!AD107*$C$1","v":0},{"$f":"'rent allocations'!AE107*$C$1","v":0},{"$f":"'rent allocations'!AF107*$C$1","v":0},{"$f":"'rent allocations'!AG107*$C$1","v":0},{"$f":"'rent allocations'!AH107*$C$1","v":0},{"$f":"'rent allocations'!AI107*$C$1","v":0},{"$f":"'rent allocations'!AJ107*$C$1","v":0},{"$f":"'rent allocations'!AK107*$C$1","v":0},{"$f":"'rent allocations'!AL107*$C$1","v":0}]
["TOTAL  - All Agencies",null,"Building Total",{"$f":"'rent allocations'!D108*$C$1","v":27488000},{"$f":"'rent allocations'!E108*$C$1","v":1140253.8343322519},{"$f":"'rent allocations'!F108*$C$1","v":730999.07466031541},{"$f":"'rent allocations'!G108*$C$1","v":2737872.8311207518},{"$f":"'rent allocations'!H108*$C$1","v":597630.97825113568},{"$f":"'rent allocations'!I108*$C$1","v":1967032.3117869359},{"$f":"'rent allocations'!J108*$C$1","v":2762611.1701196153},{"$f":"'rent allocations'!K108*$C$1","v":465665.56958316785},{"$f":"'rent allocations'!L108*$C$1","v":2943413.3771823654},{"$f":"'rent allocations'!M108*$C$1","v":1051081.0815052155},{"$f":"'rent allocations'!N108*$C$1","v":1761248.9799651289},{"$f":"'rent allocations'!O108*$C$1","v":795215.17068572703},{"$f":"'rent allocations'!P108*$C$1","v":1070066.9721439932},{"$f":"'rent allocations'!Q108*$C$1","v":806025.06126274855},{"$f":"'rent allocations'!R108*$C$1","v":423271.69699071645},{"$f":"'rent allocations'!S108*$C$1","v":538302.3219425343},{"$f":"'rent allocations'!T108*$C$1","v":117073.13758445643},{"$f":"'rent allocations'!U108*$C$1","v":76832.566104047888},{"$f":"'rent allocations'!V108*$C$1","v":0},{"$f":"'rent allocations'!W108*$C$1","v":0},{"$f":"'rent allocations'!X108*$C$1","v":945200.78709765791},{"$f":"'rent allocations'!Y108*$C$1","v":305990.10349720874},{"$f":"'rent allocations'!Z108*$C$1","v":0},{"$f":"'rent allocations'!AA108*$C$1","v":25439.491135366923},{"$f":"'rent allocations'!AB108*$C$1","v":0},{"$f":"'rent allocations'!AC108*$C$1","v":0},{"$f":"'rent allocations'!AD108*$C$1","v":0},{"$f":"'rent allocations'!AE108*$C$1","v":0},{"$f":"'rent allocations'!AF108*$C$1","v":1705438.9326991518},{"$f":"'rent allocations'!AG108*$C$1","v":1156818.9224699517},{"$f":"'rent allocations'!AH108*$C$1","v":1803462.1047311889},{"$f":"'rent allocations'!AI108*$C$1","v":101334.45123406521},{"$f":"'rent allocations'!AJ108*$C$1","v":1459719.0719142992},{"$f":"'rent allocations'!AK108*$C$1","v":0},{"$f":"'rent allocations'!AL108*$C$1","v":0}]
[]
[null,null,"Building Total RSF",null,77281,78594,142254,23890,177668,250481,47900,354696,92619,184427,55108,97800,53609,22032,95386,47200,14308,10125,0,41341,17000,0,1539,7138,885,2492,872,200592,60581,99000,20708,138355,17600,0]
[null,null,"vacant space",0,0,0,0,0,0,0,0,0,0,0,0,0,0,0,0,0,0,0,0,0,0,0,0,14276,406,872,0,0,0,0,35004,0,0]
[null,null,null,null,{"$f":"E108/E110/2","v":7.3773232381326066},{"$f":"F108/F110/2","v":4.6504763382721039},9.6231839917357398,12.507973592531094,5.5356966695942313,5.5146122263157986,4.8608097033733593,4.1492057666034654,5.6742195527117305,4.7749217304546754,7.2150610681364507,5.4706900416359572,7.5176282085354007,9.6058391655482129,2.8217050822056398,1.240181542208225,2.6849512896298533,0,{"$error":"#DIV/0!"},11.431760081972593,8.9997089263884931,{"$error":"#DIV/0!"},8.2649418893329827,0,0,0,0,4.2510143293330538,9.5477040860166689,9.1083944683393376,2.4467464562986581,5.2752667844107517,0]

{"sheet":"rent allocations","index":7,"n_rows":108,"n_cols":38,"rows_kept":108,"cut":false,"hidden":true,"merged":[[1,3,2,3]]}
[]
[null,null,null,"Total","F6121","F6122","F6123","F6124","F6125","F6126","F6127","F6129","F612A","F612C","F612E","F612H","F612J","F612K","F6131","F6132","F6133","F6134","F6137","F613D","F613E","F613F","F613G","F613H","F613i","F613K","F613L","F613M","F6141","F6142","F6143","F6144","F614G","F6146"]
[null,"Agency #","Agency",null,"Cherberg","O'Brien","Legislative","Pritchard","HLB","OB2","Archives","NRB","Emp Sec","Transportation","Insurance","Old Cap","TOJ","Newhouse","Modular Bldg","Isabella Bush","1007 Washington","120 E Union Avenue","Conservatory","Capital Court","James Dolliver Building","Undeveloped Properties","1068 WA Street SE (ST Farm)","232 Perry Street","208 11th Avenue SE (Pro Arts)","Press Houses Ayer(White); Carlyon(Blue)","Visitor Center","Helen Sommers","Kelso Building","Yakima Building","Alaska Street","Tacoma Rhodes","Tacoma Rhodes Garage","North Cascades Gateway Center (NCGC)"]
[null,"011","House of Representatives",5.8314047212729453E-2,0,2.6593388920995175E-2,3.1720658291734281E-2,0,0,0,0,0,0,0,0,0,0,0,0,0,0,0,0,0,0,0,0,0,0,0,0,0,0,0,0,0,0,0]
[null,"012","Senate",8.1599218081033376E-2,4.1481876976580762E-2,0,2.471892372265996E-2,0,0,0,0,0,0,0,0,0,0,1.5398417381792652E-2,0,0,0,0,0,0,0,0,0,0,0,0,0,0,0,0,0,0,0,0]
[null,"013","Joint Transportation Committee",0,0,0,0,0,0,0,0,0,0,0,0,0,0,0,0,0,0,0,0,0,0,0,0,0,0,0,0,0,0,0,0,0,0,0]
[null,"014","Joint Legislative Audit and Review Committee",2.748745950580824E-3,0,0,0,0,0,0,0,0,0,0,0,0,0,0,0,0,0,0,0,0,0,0,0,0,0,0,0,2.748745950580824E-3,0,0,0,0,0,0]
[null,"020","Legislative Evaluation and Accountability Program Committee",1.3123583963445973E-3,0,0,0,0,0,0,0,0,0,0,0,0,0,0,0,0,0,0,0,0,0,0,0,0,0,0,0,1.3123583963445973E-3,0,0,0,0,0,0]
[null,"035","Office of the State Actuary",0,0,0,0,0,0,0,0,0,0,0,0,0,0,0,0,0,0,0,0,0,0,0,0,0,0,0,0,0,0,0,0,0,0,0]
[null,"037","Office of Legislative Support Services",9.7977973012526431E-3,0,0,3.4861636419421015E-3,3.51650247100845E-3,0,0,0,0,0,0,0,0,0,0,0,0,2.7951311883020915E-3,0,0,0,0,0,0,0,0,0,0,0,0,0,0,0,0,0]
[null,"038","Joint Legislative Systems Committee",1.149071733319176E-2,0,0,8.0029826124519427E-4,6.9884116135802005E-3,0,0,0,0,0,0,0,0,0,0,0,0,0,0,0,0,0,0,0,0,0,0,0,3.7020074583663646E-3,0,0,0,0,0,0]
[null,"040","Statute Law Committee (Code Revisor)",1.1236608698121464E-2,0,0,0,1.1236608698121464E-2,0,0,0,0,0,0,0,0,0,0,0,0,0,0,0,0,0,0,0,0,0,0,0,0,0,0,0,0,0,0]
[null,"045","Supreme Court",1.856434090495427E-2,0,0,0,0,0,0,0,0,0,0,0,0,1.856434090495427E-2,0,0,0,0,0,0,0,0,0,0,0,0,0,0,0,0,0,0,0,0,0]
[null,"046","Law Library",8.4332648224096918E-3,0,0,0,0,0,0,0,0,0,0,0,0,8.4332648224096918E-3,0,0,0,0,0,0,0,0,0,0,0,0,0,0,0,0,0,0,0,0,0]
[null,"048","Court of Appeals",1.9520691603982808E-2,0,0,0,0,0,0,0,0,0,0,0,0,0,0,0,0,0,0,0,0,0,0,0,0,0,0,0,0,0,0,0,1.9520691603982808E-2,0,0]
[null,"050","Commission on Judicial Conduct",4.3207860424691463E-3,0,0,0,0,0,0,0,0,0,0,0,0,0,0,0,0,0,0,0,4.3207860424691463E-3,0,0,0,0,0,0,0,0,0,0,0,0,0,0]
[null,"055","Administrative Office of the Courts",2.3251919029746789E-3,0,0,0,0,0,0,0,0,0,0,0,0,2.3251919029746789E-3,0,0,0,0,0,0,0,0,0,0,0,0,0,0,0,0,0,0,0,0,0]
[null,"056","Office of Public Defense",0,0,0,0,0,0,0,0,0,0,0,0,0,0,0,0,0,0,0,0,0,0,0,0,0,0,0,0,0,0,0,0,0,0,0]
[null,"057","Office of Civil Legal Aid",0,0,0,0,0,0,0,0,0,0,0,0,0,0,0,0,0,0,0,0,0,0,0,0,0,0,0,0,0,0,0,0,0,0,0]
[null,"075","Office of the Governor",1.2082893345851546E-2,0,0,1.2082893345851546E-2,0,0,0,0,0,0,0,0,0,0,0,0,0,0,0,0,0,0,0,0,0,0,0,0,0,0,0,0,0,0,0]
[null,"080","Office of Lieutenant Governor",6.2133392565965478E-3,0,0,6.2133392565965478E-3,0,0,0,0,0,0,0,0,0,0,0,0,0,0,0,0,0,0,0,0,0,0,0,0,0,0,0,0,0,0,0]
[null,"082","Public Disclosure Commission",0,0,0,0,0,0,0,0,0,0,0,0,0,0,0,0,0,0,0,0,0,0,0,0,0,0,0,0,0,0,0,0,0,0,0]
[null,"085","Office of the Secretary of State",4.1098620247310716E-2,0,0,7.4568473160641462E-3,0,0,0,1.6940685738619319E-2,0,0,0,0,0,0,0,1.3102533348833231E-3,4.2590635035090378E-3,0,0,0,0,1.1131770354234892E-2,0,0,0,0,0,0,0,0,0,0,0,0,0]
[null,"086","Governor's Office of Indian Affairs",1.0954340652598105E-3,0,0,0,0,0,0,0,0,0,0,0,0,0,0,0,0,0,0,0,1.0954340652598105E-3,0,0,0,0,0,0,0,0,0,0,0,0,0,0]
[null,"087","Commission on Asian Pacific American Affairs",7.2054847432867107E-4,0,0,0,0,0,0,0,0,0,0,0,0,0,0,0,0,0,0,0,7.2054847432867107E-4,0,0,0,0,0,0,0,0,0,0,0,0,0,0]
[null,"090","Office of State Treasurer",1.1496963513881318E-2,0,0,7.5023585907631283E-3,0,0,0,0,0,0,0,0,0,0,0,0,0,0,0,0,0,0,0,0,0,0,0,0,3.9946049231181892E-3,0,0,0,0,0,0]
[null,"095","Office of State Auditor",6.4832123111083495E-3,0,0,0,0,0,0,0,0,0,0,3.3660485716597009E-3,0,0,0,0,0,0,0,0,0,0,0,0,0,0,0,0,0,0,0,0,3.1171637394486482E-3,0,0]
[null,"099","Citizens' Commission on Salaries for Elected Officials",5.5606637763950747E-4,0,0,0,0,0,0,0,0,0,0,0,0,0,0,0,0,0,0,0,5.5606637763950747E-4,0,0,0,0,0,0,0,0,0,0,0,0,0,0]
[null,"100","Office of Attorney General",2.9256946331683305E-2,0,0,0,0,2.9256946331683305E-2,0,0,0,0,0,0,0,0,0,0,0,0,0,0,0,0,0,0,0,0,0,0,0,0,0,0,0,0,0]
[null,"101","Caseload Forecast Council",4.3065921559528224E-3,0,0,0,0,0,0,0,0,0,0,0,0,0,0,0,0,0,0,0,4.3065921559528224E-3,0,0,0,0,0,0,0,0,0,0,0,0,0,0]
[null,"102","Department of Financial Institutions",0,0,0,0,0,0,0,0,0,0,0,0,0,0,0,0,0,0,0,0,0,0,0,0,0,0,0,0,0,0,0,0,0,0,0]
[null,"103","Department of Commerce",0,0,0,0,0,0,0,0,0,0,0,0,0,0,0,0,0,0,0,0,0,0,0,0,0,0,0,0,0,0,0,0,0,0,0]
[null,"104","Economic and Revenue Forecast Council",0,0,0,0,0,0,0,0,0,0,0,0,0,0,0,0,0,0,0,0,0,0,0,0,0,0,0,0,0,0,0,0,0,0,0]
[null,"105","Office of Financial Management",3.0173224678063222E-2,0,0,0,0,0,0,0,0,0,0,2.1894539578635547E-2,0,0,0,0,0,0,0,0,5.8361921617119483E-4,0,0,0,0,0,0,0,7.6950658832564776E-3,0,0,0,0,0,0]
[null,"107","Washington State Health Care Authority",0,0,0,0,0,0,0,0,0,0,0,0,0,0,0,0,0,0,0,0,0,0,0,0,0,0,0,0,0,0,0,0,0,0,0]
[null,"110","Office of Administrative Hearings",7.9345986095056501E-3,0,0,0,0,0,0,0,0,0,0,0,0,0,0,0,0,0,0,0,0,0,0,0,0,0,0,0,0,0,0,0,7.9345986095056501E-3,0,0]
[null,"116","State Lottery",0,0,0,0,0,0,0,0,0,0,0,0,0,0,0,0,0,0,0,0,0,0,0,0,0,0,0,0,0,0,0,0,0,0,0]
[null,"117","Washington State Gambling Commission",0,0,0,0,0,0,0,0,0,0,0,0,0,0,0,0,0,0,0,0,0,0,0,0,0,0,0,0,0,0,0,0,0,0,0]
[null,"118","Commission on Hispanic Affairs",7.2054847432867107E-4,0,0,0,0,0,0,0,0,0,0,0,0,0,0,0,0,0,0,0,7.2054847432867107E-4,0,0,0,0,0,0,0,0,0,0,0,0,0,0]
[null,"119","Commission on African-American Affairs",7.2054847432867107E-4,0,0,0,0,0,0,0,0,0,0,0,0,0,0,0,0,0,0,0,7.2054847432867107E-4,0,0,0,0,0,0,0,0,0,0,0,0,0,0]
[null,"120","Human Rights Commission",0,0,0,0,0,0,0,0,0,0,0,0,0,0,0,0,0,0,0,0,0,0,0,0,0,0,0,0,0,0,0,0,0,0,0]
[null,"124","Department of Retirement Systems",0,0,0,0,0,0,0,0,0,0,0,0,0,0,0,0,0,0,0,0,0,0,0,0,0,0,0,0,0,0,0,0,0,0,0]
[null,"126","State Investment Board",0,0,0,0,0,0,0,0,0,0,0,0,0,0,0,0,0,0,0,0,0,0,0,0,0,0,0,0,0,0,0,0,0,0,0]
[null,"140","Department of Revenue",0,0,0,0,0,0,0,0,0,0,0,0,0,0,0,0,0,0,0,0,0,0,0,0,0,0,0,0,0,0,0,0,0,0,0]
[null,"142","Board of Tax Appeals",3.8991441194842339E-3,0,0,0,0,0,0,0,0,0,0,0,0,0,0,0,0,0,0,0,3.8991441194842339E-3,0,0,0,0,0,0,0,0,0,0,0,0,0,0]
[null,"147","Office of Minority and Women's Business Enterprises",4.0235493601273077E-3,0,0,0,0,0,0,0,0,0,0,0,0,0,0,0,0,0,0,0,4.0235493601273077E-3,0,0,0,0,0,0,0,0,0,0,0,0,0,0]
[null,"160","Office of Insurance Commissioner",3.6689509462460457E-3,0,0,0,0,0,0,0,0,0,0,3.6689509462460457E-3,0,0,0,0,0,0,0,0,0,0,0,0,0,0,0,0,0,0,0,0,0,0,0]
[null,"163","Consolidated Technology Services",1.1716143554163367E-4,0,0,0,0,0,1.1716143554163367E-4,0,0,0,0,0,0,0,0,0,0,0,0,0,0,0,0,0,0,0,0,0,0,0,0,0,0,0,0]
[null,"165","Board of Accountancy",0,0,0,0,0,0,0,0,0,0,0,0,0,0,0,0,0,0,0,0,0,0,0,0,0,0,0,0,0,0,0,0,0,0,0]
[null,"166","Brd Prof Eng Land Surveyors",0,0,0,0,0,0,0,0,0,0,0,0,0,0,0,0,0,0,0,0,0,0,0,0,0,0,0,0,0,0,0,0,0,0,0]
[null,"167","Forensic Investigations Council",0,0,0,0,0,0,0,0,0,0,0,0,0,0,0,0,0,0,0,0,0,0,0,0,0,0,0,0,0,0,0,0,0,0,0]
[null,"179","Department of Enterprise Services",3.5838599248587601E-2,0,0,4.8430998014287038E-3,0,0,8.139509867799934E-3,0,0,0,0,0,0,0,0,1.8272921939510387E-2,0,0,0,0,4.4902777461640715E-3,0,0,0,0,0,0,0,9.2789893684510776E-5,0,0,0,0,0,0]
[null,"185","Horse Racing Commission",0,0,0,0,0,0,0,0,0,0,0,0,0,0,0,0,0,0,0,0,0,0,0,0,0,0,0,0,0,0,0,0,0,0,0]
[null,"190","Board of Industrial Insurance Appeals",0,0,0,0,0,0,0,0,0,0,0,0,0,0,0,0,0,0,0,0,0,0,0,0,0,0,0,0,0,0,0,0,0,0,0]
[null,"195","Liquor Control Board",0,0,0,0,0,0,0,0,0,0,0,0,0,0,0,0,0,0,0,0,0,0,0,0,0,0,0,0,0,0,0,0,0,0,0]
[null,"205","Board of Pilotage Commissioners",0,0,0,0,0,0,0,0,0,0,0,0,0,0,0,0,0,0,0,0,0,0,0,0,0,0,0,0,0,0,0,0,0,0,0]
[null,"215","Utilities and Transportation Commission",0,0,0,0,0,0,0,0,0,0,0,0,0,0,0,0,0,0,0,0,0,0,0,0,0,0,0,0,0,0,0,0,0,0,0]
[null,"220","Board for Volunteer Firefighters and Reserve Officers",0,0,0,0,0,0,0,0,0,0,0,0,0,0,0,0,0,0,0,0,0,0,0,0,0,0,0,0,0,0,0,0,0,0,0]
[null,"225","Washington State Patrol",4.286155220545218E-2,0,0,3.6409019759186444E-4,0,0,0,0,0,0,0,0,0,0,0,0,0,0,0,0,0,0,0,0,0,0,0,0,4.2497462007860316E-2,0,0,0,0,0,0]
[null,"227","Criminal Justice Training Commission",0,0,0,0,0,0,0,0,0,0,0,0,0,0,0,0,0,0,0,0,0,0,0,0,0,0,0,0,0,0,0,0,0,0,0]
[null,"228","Traffic Safety Commission",0,0,0,0,0,0,0,0,0,0,0,0,0,0,0,0,0,0,0,0,0,0,0,0,0,0,0,0,0,0,0,0,0,0,0]
[null,"235","Department of Labor and Industries",2.7746452749813879E-2,0,0,0,0,0,0,0,0,0,0,0,0,0,0,0,0,0,0,0,0,0,0,0,0,0,0,0,0,7.1711982887041684E-3,0,0,2.0575254461109711E-2,0,0]
[null,"240","Department of Licensing",4.1953121420372871E-2,0,0,0,0,4.1953121420372871E-2,0,0,0,0,0,0,0,0,0,0,0,0,0,0,0,0,0,0,0,0,0,0,0,0,0,0,0,0,0]
[null,"245","Military Department",0,0,0,0,0,0,0,0,0,0,0,0,0,0,0,0,0,0,0,0,0,0,0,0,0,0,0,0,0,0,0,0,0,0,0]
[null,"275","Public Employment Relations Commission",0,0,0,0,0,0,0,0,0,0,0,0,0,0,0,0,0,0,0,0,0,0,0,0,0,0,0,0,0,0,0,0,0,0,0]
[null,"300","Department of Social and Health Services",0.13093266480273696,0,0,0,0,0,6.4716044862827532E-2,0,0,0,0,0,0,0,0,0,0,0,0,0,0,0,0,0,0,0,0,0,0,2.0146461452165997E-2,4.6070158487743436E-2,0,0,0,0]
[null,"303","Department of Health",0,0,0,0,0,0,0,0,0,0,0,0,0,0,0,0,0,0,0,0,0,0,0,0,0,0,0,0,0,0,0,0,0,0,0]
[null,"305","Department of Veterans Affairs",0,0,0,0,0,0,0,0,0,0,0,0,0,0,0,0,0,0,0,0,0,0,0,0,0,0,0,0,0,0,0,0,0,0,0]
[null,"307","DCYF",6.0804304461354271E-2,0,0,0,0,0,2.6498546322056754E-2,0,0,0,0,0,0,0,0,0,0,0,0,0,0,0,0,0,0,0,0,0,0,1.4766847042815509E-2,1.9538911096482009E-2,0,0,0,0]
[null,"310","Department of Corrections",0,0,0,0,0,0,0,0,0,0,0,0,0,0,0,0,0,0,0,0,0,0,0,0,0,0,0,0,0,0,0,0,0,0,0]
[null,"315","Department of Services for the Blind",8.8441388329763143E-3,0,0,4.1380251303229206E-4,0,3.4960598873747038E-4,1.0311811278835568E-3,0,9.0869538398402443E-4,0,4.9819832373923208E-4,0,0,0,0,0,0,0,0,0,0,0,0,0,0,0,0,0,0,0,0,3.6864977893650034E-3,1.9561577062347352E-3,0,0]
[null,"340","Student Achievement Council",0,0,0,0,0,0,0,0,0,0,0,0,0,0,0,0,0,0,0,0,0,0,0,0,0,0,0,0,0,0,0,0,0,0,0]
[null,"341","Law Enforcement Officers' & Fire Fighters' Plan 2 Retirement Board",0,0,0,0,0,0,0,0,0,0,0,0,0,0,0,0,0,0,0,0,0,0,0,0,0,0,0,0,0,0,0,0,0,0,0]
[null,"350","Superintendent of Public Instruction",3.9853989496484298E-2,0,0,0,0,0,0,0,0,0,0,0,3.8928513247380434E-2,0,0,0,0,0,0,0,0,0,0,9.2547624910386075E-4,0,0,0,0,0,0,0,0,0,0,0]
[null,"351","State School For The Blind",0,0,0,0,0,0,0,0,0,0,0,0,0,0,0,0,0,0,0,0,0,0,0,0,0,0,0,0,0,0,0,0,0,0,0]
[null,"353","State Center for Childhood Deafness and Hearing Loss",0,0,0,0,0,0,0,0,0,0,0,0,0,0,0,0,0,0,0,0,0,0,0,0,0,0,0,0,0,0,0,0,0,0,0]
[null,"354","Workforce Training and Education Coordinating Board",0,0,0,0,0,0,0,0,0,0,0,0,0,0,0,0,0,0,0,0,0,0,0,0,0,0,0,0,0,0,0,0,0,0,0]
[null,"355","Department of Archaeology and Historic Preservation",7.7949485009646286E-3,0,0,0,0,0,0,0,0,0,0,0,0,0,0,0,0,0,0,0,7.7949485009646286E-3,0,0,0,0,0,0,0,0,0,0,0,0,0,0]
[null,"357","Department of Early Learning",0,0,0,0,0,0,0,0,0,0,0,0,0,0,0,0,0,0,0,0,0,0,0,0,0,0,0,0,0,0,0,0,0,0,0]
[null,"359","WA Charter School Commission",0,0,0,0,0,0,0,0,0,0,0,0,0,0,0,0,0,0,0,0,0,0,0,0,0,0,0,0,0,0,0,0,0,0,0]
[null,"360","University of Washington",0,0,0,0,0,0,0,0,0,0,0,0,0,0,0,0,0,0,0,0,0,0,0,0,0,0,0,0,0,0,0,0,0,0,0]
[null,"365","Washington State University",0,0,0,0,0,0,0,0,0,0,0,0,0,0,0,0,0,0,0,0,0,0,0,0,0,0,0,0,0,0,0,0,0,0,0]
[null,"370","Eastern Washington University",0,0,0,0,0,0,0,0,0,0,0,0,0,0,0,0,0,0,0,0,0,0,0,0,0,0,0,0,0,0,0,0,0,0,0]
[null,"375","Central Washington University",0,0,0,0,0,0,0,0,0,0,0,0,0,0,0,0,0,0,0,0,0,0,0,0,0,0,0,0,0,0,0,0,0,0,0]
[null,"376","The Evergreen State College",0,0,0,0,0,0,0,0,0,0,0,0,0,0,0,0,0,0,0,0,0,0,0,0,0,0,0,0,0,0,0,0,0,0,0]
[null,"380","Western Washington University",0,0,0,0,0,0,0,0,0,0,0,0,0,0,0,0,0,0,0,0,0,0,0,0,0,0,0,0,0,0,0,0,0,0,0]
[null,"387","Washington State Arts Commission",0,0,0,0,0,0,0,0,0,0,0,0,0,0,0,0,0,0,0,0,0,0,0,0,0,0,0,0,0,0,0,0,0,0,0]
[null,"390","Washington State Historical Society",0,0,0,0,0,0,0,0,0,0,0,0,0,0,0,0,0,0,0,0,0,0,0,0,0,0,0,0,0,0,0,0,0,0,0]
[null,"395","Eastern Washington State Historical Society",0,0,0,0,0,0,0,0,0,0,0,0,0,0,0,0,0,0,0,0,0,0,0,0,0,0,0,0,0,0,0,0,0,0,0]
[null,"405","Department of Transportation",6.3575178421208703E-2,0,0,0,0,0,0,0,0,0,6.3575178421208703E-2,0,0,0,0,0,0,0,0,0,0,0,0,0,0,0,0,0,0,0,0,0,0,0,0]
[null,"406","County Road Administration Board",0,0,0,0,0,0,0,0,0,0,0,0,0,0,0,0,0,0,0,0,0,0,0,0,0,0,0,0,0,0,0,0,0,0,0]
[null,"407","Transportation Improvement Board",0,0,0,0,0,0,0,0,0,0,0,0,0,0,0,0,0,0,0,0,0,0,0,0,0,0,0,0,0,0,0,0,0,0,0]
[null,"410","Transportation Commission",0,0,0,0,0,0,0,0,0,0,0,0,0,0,0,0,0,0,0,0,0,0,0,0,0,0,0,0,0,0,0,0,0,0,0]
[null,"411","Freight Mobility Strategic Investment Board",0,0,0,0,0,0,0,0,0,0,0,0,0,0,0,0,0,0,0,0,0,0,0,0,0,0,0,0,0,0,0,0,0,0,0]
[null,"460","Columbia River Gorge Commission",0,0,0,0,0,0,0,0,0,0,0,0,0,0,0,0,0,0,0,0,0,0,0,0,0,0,0,0,0,0,0,0,0,0,0]
[null,"461","Department of Ecology",0,0,0,0,0,0,0,0,0,0,0,0,0,0,0,0,0,0,0,0,0,0,0,0,0,0,0,0,0,0,0,0,0,0,0]
[null,"462","Pollution Liability Insurance Program",0,0,0,0,0,0,0,0,0,0,0,0,0,0,0,0,0,0,0,0,0,0,0,0,0,0,0,0,0,0,0,0,0,0,0]
[null,"465","State Parks and Recreation Commission",0,0,0,0,0,0,0,0,0,0,0,0,0,0,0,0,0,0,0,0,0,0,0,0,0,0,0,0,0,0,0,0,0,0,0]
[null,"467","Recreation and Conservation Funding Board",3.5532706543162681E-3,0,0,0,0,0,0,0,3.5532706543162681E-3,0,0,0,0,0,0,0,0,0,0,0,0,0,0,0,0,0,0,0,0,0,0,0,0,0,0]
[null,"468","Environmental and Land Use Hearings Office",0,0,0,0,0,0,0,0,0,0,0,0,0,0,0,0,0,0,0,0,0,0,0,0,0,0,0,0,0,0,0,0,0,0,0]
[null,"471","State Conservation Commission",0,0,0,0,0,0,0,0,0,0,0,0,0,0,0,0,0,0,0,0,0,0,0,0,0,0,0,0,0,0,0,0,0,0,0]
[null,"477","Department of Fish and Wildlife",4.2315921354703225E-2,0,0,0,0,0,0,0,4.2315921354703225E-2,0,0,0,0,0,0,0,0,0,0,0,0,0,0,0,0,0,0,0,0,0,0,0,0,0,0]
[null,"478","Puget Sound Partnership",1.1538794803270262E-3,0,0,0,0,0,0,0,0,0,0,0,0,0,0,0,0,0,0,0,1.1538794803270262E-3,0,0,0,0,0,0,0,0,0,0,0,0,0,0]
[null,"490","Department of Natural Resources",4.5827228999592989E-2,0,0,0,0,0,0,0,4.5827228999592989E-2,0,0,0,0,0,0,0,0,0,0,0,0,0,0,0,0,0,0,0,0,0,0,0,0,0,0]
[null,"495","Department of Agriculture",1.4474823114910971E-2,0,0,0,0,0,0,0,1.4474823114910971E-2,0,0,0,0,0,0,0,0,0,0,0,0,0,0,0,0,0,0,0,0,0,0,0,0,0,0]
[null,"540","Employment Security Department",3.8237815828915001E-2,0,0,0,0,0,0,0,0,3.8237815828915001E-2,0,0,0,0,0,0,0,0,0,0,0,0,0,0,0,0,0,0,0,0,0,0,0,0,0]
[null,"699","Community Colleges",0,0,0,0,0,0,0,0,0,0,0,0,0,0,0,0,0,0,0,0,0,0,0,0,0,0,0,0,0,0,0,0,0,0,0]
[null,null,"Building Total",1,4.1481876976580762E-2,2.6593388920995175E-2,9.960247493890978E-2,2.1741522782710115E-2,7.1559673740793653E-2,0.10050244361610941,1.6940685738619319E-2,0.10707993950750747,3.8237815828915001E-2,6.4073376744947938E-2,2.8929539096541293E-2,3.8928513247380434E-2,2.932279763033864E-2,1.5398417381792652E-2,1.958317527439371E-2,4.2590635035090378E-3,2.7951311883020915E-3,0,0,3.4385942487545763E-2,1.1131770354234892E-2,0,9.2547624910386075E-4,0,0,0,0,6.2043034513211283E-2,4.2084506783685673E-2,6.5609069584225438E-2,3.6864977893650034E-3,5.3103866120281548E-2,0,0]

{"sheet":"Debt allocations","index":8,"n_rows":110,"n_cols":40,"rows_kept":110,"cut":false,"hidden":true,"merged":[[3,3,4,3]]}
[]
[]
[null,null,null,null,"21-23 Debt Sched:",14218000.235354647,0,0,0,0,510212.5,744250.72,71872.94,1198847.76,0,0,0,0,0,0,0,637708.97000000009,0,0,0,459368.70297670597,252256.55,0,0,0,0,0,0,9553471,154874.14000000001,238071.25,0,397065.70237794082,0,0]
[null,null,null,"Total",null,null,"F6121","F6122","F6123","F6124","F6125","F6126","F6127","F6129","F612A","F612C","F612E","F612H","F612J","F612K","F6131","F6132","F6133","F6134","F6137","F613D","F613E","F613F","F613G","F613H","F613i","F613K","F613L","F613M","F6141","F6142","F6143","F6144","F614G","F6146"]
[null,"Agency #","Agency",null,"RSF Total","$ Total","Cherberg","O'Brien","Legislative","Pritchard","HLB","OB2","Archives","NRB","Emp Sec","Transportation","Insurance","Old Cap","TOJ","Newhouse","Modular Bldg","Isabella Bush","1007 Washington","120 E Union Avenue","Conservatory","Capital Court","James Dolliver Building","Undeveloped Properties","1068 WA Street SE (ST Farm)","232 Perry Street","208 11th Avenue SE (Pro Arts)","Press Houses Ayer(White); Carlyon(Blue)","Visitor Center","Helen Sommers","Kelso Building","Yakima Building","Alaska Street","Tacoma Rhodes","Tacoma Rhodes Garage","North Cascades Gateway Center (NCGC)"]
[null,"011","House of Representatives",9.9999999999999998E-20,1E-8,1.4218000235354647E-12,0,0,0,0,0,0,0,0,0,0,0,0,0,0,0,0,0,0,0,0,0,0,0,0,0,0,0,0,0,0,0,0,0,0]
[null,"012","Senate",9.9999999999999998E-20,1E-8,1.4218000235354647E-12,0,0,0,0,0,0,0,0,0,0,0,0,0,0,0,0,0,0,0,0,0,0,0,0,0,0,0,0,0,0,0,0,0,0]
[null,"013","Joint Transportation Committee",9.9999999999999998E-20,1E-8,1.4218000235354647E-12,0,0,0,0,0,0,0,0,0,0,0,0,0,0,0,0,0,0,0,0,0,0,0,0,0,0,0,0,0,0,0,0,0,0]
[null,"014","Joint Legislative Audit and Review Committee",2.976899987080505E-2,8887,423255.64716937864,0,0,0,0,0,0,0,0,0,0,0,0,0,0,0,0,0,0,0,0,0,0,0,0,0,0,0,2.976899987080505E-2,0,0,0,0,0,0]
[null,"020","Legislative Evaluation and Accountability Program Committee",1.4212880212875641E-2,4243,202078.73421173327,0,0,0,0,0,0,0,0,0,0,0,0,0,0,0,0,0,0,0,0,0,0,0,0,0,0,0,1.4212880212875643E-2,0,0,0,0,0,0]
[null,"035","Office of the State Actuary",9.9999999999999998E-20,1E-8,1.4218000235354647E-12,0,0,0,0,0,0,0,0,0,0,0,0,0,0,0,0,0,0,0,0,0,0,0,0,0,0,0,0,0,0,0,0,0,0]
[null,"037","Office of Legislative Support Services",9.9999999999999998E-20,1E-8,1.4218000235354647E-12,0,0,0,0,0,0,0,0,0,0,0,0,0,0,0,0,0,0,0,0,0,0,0,0,0,0,0,0,0,0,0,0,0,0]
[null,"038","Joint Legislative Systems Committee",4.0092850169198335E-2,11969,570040.15314170055,0,0,0,0,0,0,0,0,0,0,0,0,0,0,0,0,0,0,0,0,0,0,0,0,0,0,0,4.0092850169198342E-2,0,0,0,0,0,0]
[null,"040","Statute Law Committee (Code Revisor)",9.9999999999999998E-20,1E-8,1.4218000235354647E-12,0,0,0,0,0,0,0,0,0,0,0,0,0,0,0,0,0,0,0,0,0,0,0,0,0,0,0,0,0,0,0,0,0,0]
[null,"045","Supreme Court",9.9999999999999998E-20,1E-8,1.4218000235354647E-12,0,0,0,0,0,0,0,0,0,0,0,0,0,0,0,0,0,0,0,0,0,0,0,0,0,0,0,0,0,0,0,0,0,0]
[null,"046","Law Library",9.9999999999999998E-20,1E-8,1.4218000235354647E-12,0,0,0,0,0,0,0,0,0,0,0,0,0,0,0,0,0,0,0,0,0,0,0,0,0,0,0,0,0,0,0,0,0,0]
[null,"048","Court of Appeals",1.026580282251501E-2,27692,145959.18694662282,0,0,0,0,0,0,0,0,0,0,0,0,0,0,0,0,0,0,0,0,0,0,0,0,0,0,0,0,0,0,0,1.026580282251501E-2,0,0]
[null,"050","Commission on Judicial Conduct",4.0598007081426336E-3,5175,57722.24742386493,0,0,0,0,0,0,0,0,0,0,0,0,0,0,0,0,0,0,0,4.0598007081426336E-3,0,0,0,0,0,0,0,0,0,0,0,0,0,0]
[null,"055","Administrative Office of the Courts",9.9999999999999998E-20,1E-8,1.4218000235354647E-12,0,0,0,0,0,0,0,0,0,0,0,0,0,0,0,0,0,0,0,0,0,0,0,0,0,0,0,0,0,0,0,0,0,0]
[null,"056","Office of Public Defense",9.9999999999999998E-20,1E-8,1.4218000235354647E-12,0,0,0,0,0,0,0,0,0,0,0,0,0,0,0,0,0,0,0,0,0,0,0,0,0,0,0,0,0,0,0,0,0,0]
[null,"057","Office of Civil Legal Aid",9.9999999999999998E-20,1E-8,1.4218000235354647E-12,0,0,0,0,0,0,0,0,0,0,0,0,0,0,0,0,0,0,0,0,0,0,0,0,0,0,0,0,0,0,0,0,0,0]
[null,"075","Office of the Governor",9.9999999999999998E-20,1E-8,1.4218000235354647E-12,0,0,0,0,0,0,0,0,0,0,0,0,0,0,0,0,0,0,0,0,0,0,0,0,0,0,0,0,0,0,0,0,0,0]
[null,"080","Office of Lieutenant Governor",9.9999999999999998E-20,1E-8,1.4218000235354647E-12,0,0,0,0,0,0,0,0,0,0,0,0,0,0,0,0,0,0,0,0,0,0,0,0,0,0,0,0,0,0,0,0,0,0]
[null,"082","Public Disclosure Commission",9.9999999999999998E-20,1E-8,1.4218000235354647E-12,0,0,0,0,0,0,0,0,0,0,0,0,0,0,0,0,0,0,0,0,0,0,0,0,0,0,0,0,0,0,0,0,0,0]
[null,"085","Office of the Secretary of State",6.7649348999747602E-2,112100,961838.46000000008,0,0,0,0,0,0,5.0550667330332361E-3,0,0,0,0,0,0,0,0,4.4852226715699821E-2,0,0,0,0,1.7742055551014543E-2,0,0,0,0,0,0,0,0,0,0,0,0,0]
[null,"086","Governor's Office of Indian Affairs",1.0292673486150988E-3,1312,14634.123404852327,0,0,0,0,0,0,0,0,0,0,0,0,0,0,0,0,0,0,0,1.0292673486150988E-3,0,0,0,0,0,0,0,0,0,0,0,0,0,0]
[null,"087","Commission on Asian Pacific American Affairs",6.7702570263325479E-4,863,9625.9515993807618,0,0,0,0,0,0,0,0,0,0,0,0,0,0,0,0,0,0,0,6.7702570263325468E-4,0,0,0,0,0,0,0,0,0,0,0,0,0,0]
[null,"090","Office of State Treasurer",4.3261689358776556E-2,12915,615094.70948492468,0,0,0,0,0,0,0,0,0,0,0,0,0,0,0,0,0,0,0,0,0,0,0,0,0,0,0,4.3261689358776549E-2,0,0,0,0,0,0]
[null,"095","Office of State Auditor",1.6392958284400325E-3,4422,23307.508474576272,0,0,0,0,0,0,0,0,0,0,0,0,0,0,0,0,0,0,0,0,0,0,0,0,0,0,0,0,0,0,0,1.6392958284400325E-3,0,0]
[null,"099","Citizens' Commission on Salaries for Elected Officials",5.2247869983053027E-4,666,7428.6022771582693,0,0,0,0,0,0,0,0,0,0,0,0,0,0,0,0,0,0,0,5.2247869983053038E-4,0,0,0,0,0,0,0,0,0,0,0,0,0,0]
[null,"100","Office of Attorney General",1.474348571835094E-2,72639,209622.88341346153,0,0,0,0,1.474348571835094E-2,0,0,0,0,0,0,0,0,0,0,0,0,0,0,0,0,0,0,0,0,0,0,0,0,0,0,0,0,0]
[null,"101","Caseload Forecast Council",4.0464641647535663E-3,5158,57532.628446820352,0,0,0,0,0,0,0,0,0,0,0,0,0,0,0,0,0,0,0,4.0464641647535663E-3,0,0,0,0,0,0,0,0,0,0,0,0,0,0]
[null,"102","Department of Financial Institutions",9.9999999999999998E-20,1E-8,1.4218000235354647E-12,0,0,0,0,0,0,0,0,0,0,0,0,0,0,0,0,0,0,0,0,0,0,0,0,0,0,0,0,0,0,0,0,0,0]
[null,"103","Department of Commerce",9.9999999999999998E-20,1E-8,1.4218000235354647E-12,0,0,0,0,0,0,0,0,0,0,0,0,0,0,0,0,0,0,0,0,0,0,0,0,0,0,0,0,0,0,0,0,0,0]
[null,"104","Economic and Revenue Forecast Council",9.9999999999999998E-20,1E-8,1.4218000235354647E-12,0,0,0,0,0,0,0,0,0,0,0,0,0,0,0,0,0,0,0,0,0,0,0,0,0,0,0,0,0,0,0,0,0,0]
[null,"105","Office of Financial Management",8.3886158190521865E-2,25578,1192693.4168958371,0,0,0,0,0,0,0,0,0,0,0,0,0,0,0,0,0,0,0,5.4836728405636742E-4,0,0,0,0,0,0,0,8.3337790906465495E-2,0,0,0,0,0,0]
[null,"107","Washington State Health Care Authority",9.9999999999999998E-20,1E-8,1.4218000235354647E-12,0,0,0,0,0,0,0,0,0,0,0,0,0,0,0,0,0,0,0,0,0,0,0,0,0,0,0,0,0,0,0,0,0,0]
[null,"110","Office of Administrative Hearings",4.1727530178473551E-3,11256,59328.203389830509,0,0,0,0,0,0,0,0,0,0,0,0,0,0,0,0,0,0,0,0,0,0,0,0,0,0,0,0,0,0,0,4.1727530178473559E-3,0,0]
[null,"116","State Lottery",9.9999999999999998E-20,1E-8,1.4218000235354647E-12,0,0,0,0,0,0,0,0,0,0,0,0,0,0,0,0,0,0,0,0,0,0,0,0,0,0,0,0,0,0,0,0,0,0]
[null,"117","Washington State Gambling Commission",9.9999999999999998E-20,1E-8,1.4218000235354647E-12,0,0,0,0,0,0,0,0,0,0,0,0,0,0,0,0,0,0,0,0,0,0,0,0,0,0,0,0,0,0,0,0,0,0]
[null,"118","Commission on Hispanic Affairs",6.7702570263325479E-4,863,9625.9515993807618,0,0,0,0,0,0,0,0,0,0,0,0,0,0,0,0,0,0,0,6.7702570263325468E-4,0,0,0,0,0,0,0,0,0,0,0,0,0,0]
[null,"119","Commission on African-American Affairs",6.7702570263325479E-4,863,9625.9515993807618,0,0,0,0,0,0,0,0,0,0,0,0,0,0,0,0,0,0,0,6.7702570263325468E-4,0,0,0,0,0,0,0,0,0,0,0,0,0,0]
[null,"120","Human Rights Commission",9.9999999999999998E-20,1E-8,1.4218000235354647E-12,0,0,0,0,0,0,0,0,0,0,0,0,0,0,0,0,0,0,0,0,0,0,0,0,0,0,0,0,0,0,0,0,0,0]
[null,"124","Department of Retirement Systems",9.9999999999999998E-20,1E-8,1.4218000235354647E-12,0,0,0,0,0,0,0,0,0,0,0,0,0,0,0,0,0,0,0,0,0,0,0,0,0,0,0,0,0,0,0,0,0,0]
[null,"126","State Investment Board",9.9999999999999998E-20,1E-8,1.4218000235354647E-12,0,0,0,0,0,0,0,0,0,0,0,0,0,0,0,0,0,0,0,0,0,0,0,0,0,0,0,0,0,0,0,0,0,0]
[null,"140","Department of Revenue",9.9999999999999998E-20,1E-8,1.4218000235354647E-12,0,0,0,0,0,0,0,0,0,0,0,0,0,0,0,0,0,0,0,0,0,0,0,0,0,0,0,0,0,0,0,0,0,0]
[null,"142","Board of Tax Appeals",3.6636269192320968E-3,4670,52089.448399893576,0,0,0,0,0,0,0,0,0,0,0,0,0,0,0,0,0,0,0,3.6636269192320968E-3,0,0,0,0,0,0,0,0,0,0,0,0,0,0]
[null,"147","Office of Minority and Women's Business Enterprises",3.7805177995245132E-3,4819,53751.402963401961,0,0,0,0,0,0,0,0,0,0,0,0,0,0,0,0,0,0,0,3.7805177995245132E-3,0,0,0,0,0,0,0,0,0,0,0,0,0,0]
[null,"160","Office of Insurance Commissioner",9.9999999999999998E-20,1E-8,1.4218000235354647E-12,0,0,0,0,0,0,0,0,0,0,0,0,0,0,0,0,0,0,0,0,0,0,0,0,0,0,0,0,0,0,0,0,0,0]
[null,"163","Consolidated Technology Services",6.1654928813785083E-5,292,876.60979238517029,0,0,0,0,0,6.1654928813785096E-5,0,0,0,0,0,0,0,0,0,0,0,0,0,0,0,0,0,0,0,0,0,0,0,0,0,0,0,0]
[null,"165","Board of Accountancy",9.9999999999999998E-20,1E-8,1.4218000235354647E-12,0,0,0,0,0,0,0,0,0,0,0,0,0,0,0,0,0,0,0,0,0,0,0,0,0,0,0,0,0,0,0,0,0,0]
[null,"166","Brd Prof Eng Land Surveyors",9.9999999999999998E-20,1E-8,1.4218000235354647E-12,0,0,0,0,0,0,0,0,0,0,0,0,0,0,0,0,0,0,0,0,0,0,0,0,0,0,0,0,0,0,0,0,0,0]
[null,"167","Forensic Investigations Council",9.9999999999999998E-20,1E-8,1.4218000235354647E-12,0,0,0,0,0,0,0,0,0,0,0,0,0,0,0,0,0,0,0,0,0,0,0,0,0,0,0,0,0,0,0,0,0,0]
[null,"179","Department of Enterprise Services",9.507300393249242E-3,25964,135174.79922880506,0,0,0,0,0,4.2833283764261796E-3,0,0,0,0,0,0,0,0,0,0,0,0,0,4.2190547262591473E-3,0,0,0,0,0,0,0,1.0049172905639153E-3,0,0,0,0,0,0]
[null,"185","Horse Racing Commission",9.9999999999999998E-20,1E-8,1.4218000235354647E-12,0,0,0,0,0,0,0,0,0,0,0,0,0,0,0,0,0,0,0,0,0,0,0,0,0,0,0,0,0,0,0,0,0,0]
[null,"190","Board of Industrial Insurance Appeals",9.9999999999999998E-20,1E-8,1.4218000235354647E-12,0,0,0,0,0,0,0,0,0,0,0,0,0,0,0,0,0,0,0,0,0,0,0,0,0,0,0,0,0,0,0,0,0,0]
[null,"195","Liquor Control Board",9.9999999999999998E-20,1E-8,1.4218000235354647E-12,0,0,0,0,0,0,0,0,0,0,0,0,0,0,0,0,0,0,0,0,0,0,0,0,0,0,0,0,0,0,0,0,0,0]
[null,"205","Board of Pilotage Commissioners",9.9999999999999998E-20,1E-8,1.4218000235354647E-12,0,0,0,0,0,0,0,0,0,0,0,0,0,0,0,0,0,0,0,0,0,0,0,0,0,0,0,0,0,0,0,0,0,0]
[null,"215","Utilities and Transportation Commission",9.9999999999999998E-20,1E-8,1.4218000235354647E-12,0,0,0,0,0,0,0,0,0,0,0,0,0,0,0,0,0,0,0,0,0,0,0,0,0,0,0,0,0,0,0,0,0,0]
[null,"220","Board for Volunteer Firefighters and Reserve Officers",9.9999999999999998E-20,1E-8,1.4218000235354647E-12,0,0,0,0,0,0,0,0,0,0,0,0,0,0,0,0,0,0,0,0,0,0,0,0,0,0,0,0,0,0,0,0,0,0]
[null,"225","Washington State Patrol",0.4602487693539713,137399,6543817.1109964503,0,0,0,0,0,0,0,0,0,0,0,0,0,0,0,0,0,0,0,0,0,0,0,0,0,0,0,0.4602487693539713,0,0,0,0,0,0]
[null,"227","Criminal Justice Training Commission",9.9999999999999998E-20,1E-8,1.4218000235354647E-12,0,0,0,0,0,0,0,0,0,0,0,0,0,0,0,0,0,0,0,0,0,0,0,0,0,0,0,0,0,0,0,0,0,0]
[null,"228","Traffic Safety Commission",9.9999999999999998E-20,1E-8,1.4218000235354647E-12,0,0,0,0,0,0,0,0,0,0,0,0,0,0,0,0,0,0,0,0,0,0,0,0,0,0,0,0,0,0,0,0,0,0]
[null,"235","Department of Labor and Industries",1.2676526834204572E-2,39511,180234.86151220009,0,0,0,0,0,0,0,0,0,0,0,0,0,0,0,0,0,0,0,0,0,0,0,0,0,0,0,0,1.8561363682372124E-3,0,0,1.0820390465967359E-2,0,0]
[null,"240","Department of Licensing",2.1141483444281337E-2,104161,300589.61658653844,0,0,0,0,2.114148344428134E-2,0,0,0,0,0,0,0,0,0,0,0,0,0,0,0,0,0,0,0,0,0,0,0,0,0,0,0,0,0]
[null,"245","Military Department",9.9999999999999998E-20,1E-8,1.4218000235354647E-12,0,0,0,0,0,0,0,0,0,0,0,0,0,0,0,0,0,0,0,0,0,0,0,0,0,0,0,0,0,0,0,0,0,0]
[null,"275","Public Employment Relations Commission",9.9999999999999998E-20,1E-8,1.4218000235354647E-12,0,0,0,0,0,0,0,0,0,0,0,0,0,0,0,0,0,0,0,0,0,0,0,0,0,0,0,0,0,0,0,0,0,0]
[null,"300","Department of Social and Health Services",5.1028415620015803E-2,259809,725522.02529515943,0,0,0,0,0,3.4056113435973326E-2,0,0,0,0,0,0,0,0,0,0,0,0,0,0,0,0,0,0,0,0,0,0,5.2145510815894023E-3,1.1757751102453074E-2,0,0,0,0]
[null,"303","Department of Health",9.9999999999999998E-20,1E-8,1.4218000235354647E-12,0,0,0,0,0,0,0,0,0,0,0,0,0,0,0,0,0,0,0,0,0,0,0,0,0,0,0,0,0,0,0,0,0,0]
[null,"305","Department of Veterans Affairs",9.9999999999999998E-20,1E-8,1.4218000235354647E-12,0,0,0,0,0,0,0,0,0,0,0,0,0,0,0,0,0,0,0,0,0,0,0,0,0,0,0,0,0,0,0,0,0,0]
[null,"307","DCYF",2.2753309774425554E-2,116782,323506.56372787972,0,0,0,0,0,1.394457126273971E-2,0,0,0,0,0,0,0,0,0,0,0,0,0,0,0,0,0,0,0,0,0,0,3.8221341450758914E-3,4.986604366609952E-3,0,0,0,0]
[null,"310","Department of Corrections",9.9999999999999998E-20,1E-8,1.4218000235354647E-12,0,0,0,0,0,0,0,0,0,0,0,0,0,0,0,0,0,0,0,0,0,0,0,0,0,0,0,0,0,0,0,0,0,0]
[null,"315","Department of Services for the Blind",1.0287304215108753E-3,2775,14626.489375158109,0,0,0,0,0,0,0,0,0,0,0,0,0,0,0,0,0,0,0,0,0,0,0,0,0,0,0,0,0,0,0,1.0287304215108751E-3,0,0]
[null,"340","Student Achievement Council",9.9999999999999998E-20,1E-8,1.4218000235354647E-12,0,0,0,0,0,0,0,0,0,0,0,0,0,0,0,0,0,0,0,0,0,0,0,0,0,0,0,0,0,0,0,0,0,0]
[null,"341","Law Enforcement Officers' & Fire Fighters' Plan 2 Retirement Board",9.9999999999999998E-20,1E-8,1.4218000235354647E-12,0,0,0,0,0,0,0,0,0,0,0,0,0,0,0,0,0,0,0,0,0,0,0,0,0,0,0,0,0,0,0,0,0,0]
[null,"350","Superintendent of Public Instruction",9.9999999999999998E-20,1E-8,1.4218000235354647E-12,0,0,0,0,0,0,0,0,0,0,0,0,0,0,0,0,0,0,0,0,0,0,0,0,0,0,0,0,0,0,0,0,0,0]
[null,"351","State School For The Blind",9.9999999999999998E-20,1E-8,1.4218000235354647E-12,0,0,0,0,0,0,0,0,0,0,0,0,0,0,0,0,0,0,0,0,0,0,0,0,0,0,0,0,0,0,0,0,0,0]
[null,"353","State Center for Childhood Deafness and Hearing Loss",9.9999999999999998E-20,1E-8,1.4218000235354647E-12,0,0,0,0,0,0,0,0,0,0,0,0,0,0,0,0,0,0,0,0,0,0,0,0,0,0,0,0,0,0,0,0,0,0]
[null,"354","Workforce Training and Education Coordinating Board",9.9999999999999998E-20,1E-8,1.4218000235354647E-12,0,0,0,0,0,0,0,0,0,0,0,0,0,0,0,0,0,0,0,0,0,0,0,0,0,0,0,0,0,0,0,0,0,0]
[null,"355","Department of Archaeology and Historic Preservation",7.3241158282550019E-3,9336,104134.28056989431,0,0,0,0,0,0,0,0,0,0,0,0,0,0,0,0,0,0,0,7.3241158282550019E-3,0,0,0,0,0,0,0,0,0,0,0,0,0,0]
[null,"357","Department of Early Learning",9.9999999999999998E-20,1E-8,1.4218000235354647E-12,0,0,0,0,0,0,0,0,0,0,0,0,0,0,0,0,0,0,0,0,0,0,0,0,0,0,0,0,0,0,0,0,0,0]
[null,"359","WA Charter School Commission",9.9999999999999998E-20,1E-8,1.4218000235354647E-12,0,0,0,0,0,0,0,0,0,0,0,0,0,0,0,0,0,0,0,0,0,0,0,0,0,0,0,0,0,0,0,0,0,0]
[null,"360","University of Washington",9.9999999999999998E-20,1E-8,1.4218000235354647E-12,0,0,0,0,0,0,0,0,0,0,0,0,0,0,0,0,0,0,0,0,0,0,0,0,0,0,0,0,0,0,0,0,0,0]
[null,"365","Washington State University",9.9999999999999998E-20,1E-8,1.4218000235354647E-12,0,0,0,0,0,0,0,0,0,0,0,0,0,0,0,0,0,0,0,0,0,0,0,0,0,0,0,0,0,0,0,0,0,0]
[null,"370","Eastern Washington University",9.9999999999999998E-20,1E-8,1.4218000235354647E-12,0,0,0,0,0,0,0,0,0,0,0,0,0,0,0,0,0,0,0,0,0,0,0,0,0,0,0,0,0,0,0,0,0,0]
[null,"375","Central Washington University",9.9999999999999998E-20,1E-8,1.4218000235354647E-12,0,0,0,0,0,0,0,0,0,0,0,0,0,0,0,0,0,0,0,0,0,0,0,0,0,0,0,0,0,0,0,0,0,0]
[null,"376","The Evergreen State College",9.9999999999999998E-20,1E-8,1.4218000235354647E-12,0,0,0,0,0,0,0,0,0,0,0,0,0,0,0,0,0,0,0,0,0,0,0,0,0,0,0,0,0,0,0,0,0,0]
[null,"380","Western Washington University",9.9999999999999998E-20,1E-8,1.4218000235354647E-12,0,0,0,0,0,0,0,0,0,0,0,0,0,0,0,0,0,0,0,0,0,0,0,0,0,0,0,0,0,0,0,0,0,0]
[null,"387","Washington State Arts Commission",9.9999999999999998E-20,1E-8,1.4218000235354647E-12,0,0,0,0,0,0,0,0,0,0,0,0,0,0,0,0,0,0,0,0,0,0,0,0,0,0,0,0,0,0,0,0,0,0]
[null,"390","Washington State Historical Society",9.9999999999999998E-20,1E-8,1.4218000235354647E-12,0,0,0,0,0,0,0,0,0,0,0,0,0,0,0,0,0,0,0,0,0,0,0,0,0,0,0,0,0,0,0,0,0,0]
[null,"395","Eastern Washington State Historical Society",9.9999999999999998E-20,1E-8,1.4218000235354647E-12,0,0,0,0,0,0,0,0,0,0,0,0,0,0,0,0,0,0,0,0,0,0,0,0,0,0,0,0,0,0,0,0,0,0]
[null,"405","Department of Transportation",9.9999999999999998E-20,1E-8,1.4218000235354647E-12,0,0,0,0,0,0,0,0,0,0,0,0,0,0,0,0,0,0,0,0,0,0,0,0,0,0,0,0,0,0,0,0,0,0]
[null,"406","County Road Administration Board",9.9999999999999998E-20,1E-8,1.4218000235354647E-12,0,0,0,0,0,0,0,0,0,0,0,0,0,0,0,0,0,0,0,0,0,0,0,0,0,0,0,0,0,0,0,0,0,0]
[null,"407","Transportation Improvement Board",9.9999999999999998E-20,1E-8,1.4218000235354647E-12,0,0,0,0,0,0,0,0,0,0,0,0,0,0,0,0,0,0,0,0,0,0,0,0,0,0,0,0,0,0,0,0,0,0]
[null,"410","Transportation Commission",9.9999999999999998E-20,1E-8,1.4218000235354647E-12,0,0,0,0,0,0,0,0,0,0,0,0,0,0,0,0,0,0,0,0,0,0,0,0,0,0,0,0,0,0,0,0,0,0]
[null,"411","Freight Mobility Strategic Investment Board",9.9999999999999998E-20,1E-8,1.4218000235354647E-12,0,0,0,0,0,0,0,0,0,0,0,0,0,0,0,0,0,0,0,0,0,0,0,0,0,0,0,0,0,0,0,0,0,0]
[null,"460","Columbia River Gorge Commission",9.9999999999999998E-20,1E-8,1.4218000235354647E-12,0,0,0,0,0,0,0,0,0,0,0,0,0,0,0,0,0,0,0,0,0,0,0,0,0,0,0,0,0,0,0,0,0,0]
[null,"461","Department of Ecology",9.9999999999999998E-20,1E-8,1.4218000235354647E-12,0,0,0,0,0,0,0,0,0,0,0,0,0,0,0,0,0,0,0,0,0,0,0,0,0,0,0,0,0,0,0,0,0,0]
[null,"462","Pollution Liability Insurance Program",9.9999999999999998E-20,1E-8,1.4218000235354647E-12,0,0,0,0,0,0,0,0,0,0,0,0,0,0,0,0,0,0,0,0,0,0,0,0,0,0,0,0,0,0,0,0,0,0]
[null,"465","State Parks and Recreation Commission",9.9999999999999998E-20,1E-8,1.4218000235354647E-12,0,0,0,0,0,0,0,0,0,0,0,0,0,0,0,0,0,0,0,0,0,0,0,0,0,0,0,0,0,0,0,0,0,0]
[null,"467","Recreation and Conservation Funding Board",2.8219343222009069E-3,11770,40122.262857207854,0,0,0,0,0,0,0,2.8219343222009069E-3,0,0,0,0,0,0,0,0,0,0,0,0,0,0,0,0,0,0,0,0,0,0,0,0,0,0]
[null,"468","Environmental and Land Use Hearings Office",9.9999999999999998E-20,1E-8,1.4218000235354647E-12,0,0,0,0,0,0,0,0,0,0,0,0,0,0,0,0,0,0,0,0,0,0,0,0,0,0,0,0,0,0,0,0,0,0]
[null,"471","State Conservation Commission",9.9999999999999998E-20,1E-8,1.4218000235354647E-12,0,0,0,0,0,0,0,0,0,0,0,0,0,0,0,0,0,0,0,0,0,0,0,0,0,0,0,0,0,0,0,0,0,0]
[null,"477","Department of Fish and Wildlife",3.3606432626047483E-2,140169,477816.26698657323,0,0,0,0,0,0,0,3.360643262604749E-2,0,0,0,0,0,0,0,0,0,0,0,0,0,0,0,0,0,0,0,0,0,0,0,0,0,0]
[null,"478","Puget Sound Partnership",1.0841825272759652E-3,1382,15414.90742797707,0,0,0,0,0,0,0,0,0,0,0,0,0,0,0,0,0,0,0,1.0841825272759652E-3,0,0,0,0,0,0,0,0,0,0,0,0,0,0]
[null,"490","Department of Natural Resources",3.639504079100235E-2,151800,517464.6985322134,0,0,0,0,0,0,0,3.639504079100235E-2,0,0,0,0,0,0,0,0,0,0,0,0,0,0,0,0,0,0,0,0,0,0,0,0,0,0]
[null,"495","Department of Agriculture",1.1495606197669234E-2,47947,163444.5316240055,0,0,0,0,0,0,0,1.1495606197669235E-2,0,0,0,0,0,0,0,0,0,0,0,0,0,0,0,0,0,0,0,0,0,0,0,0,0,0]
[null,"540","Employment Security Department",9.9999999999999998E-20,1E-8,1.4218000235354647E-12,0,0,0,0,0,0,0,0,0,0,0,0,0,0,0,0,0,0,0,0,0,0,0,0,0,0,0,0,0,0,0,0,0,0]
[null,"699","Community Colleges",9.9999999999999998E-20,1E-8,1.4218000235354647E-12,0,0,0,0,0,0,0,0,0,0,0,0,0,0,0,0,0,0,0,0,0,0,0,0,0,0,0,0,0,0,0,0,0,0]
[null,null,"Building Total",0.99999999999999989,1365187,14218000.235354647,9.9999999999999994E-12,9.9999999999999994E-12,9.9999999999999994E-12,9.9999999999999994E-12,176800,247911,47900,351686,9.9999999999999994E-12,9.9999999999999994E-12,9.9999999999999994E-12,9.9999999999999994E-12,9.9999999999999994E-12,9.9999999999999994E-12,9.9999999999999994E-12,47200,9.9999999999999994E-12,9.9999999999999994E-12,9.9999999999999994E-12,41184,17000,9.9999999999999994E-12,9.9999999999999994E-12,9.9999999999999994E-12,9.9999999999999994E-12,9.9999999999999994E-12,9.9999999999999994E-12,200592,60581,99000,9.9999999999999994E-12,75333,9.9999999999999994E-12,9.9999999999999994E-12]

{"sheet":"Debt Dollars FY22","index":9,"n_rows":114,"n_cols":40,"rows_kept":114,"cut":false,"hidden":true,"merged":[[3,3,4,3]]}
[]
[null,"CSM Funding",7109000]
[null,null,null,null,"21-23 Debt Sched:",14218000.235354647,0,0,0,0,510212.5,744250.72,71872.94,1198847.76,0,0,0,0,0,0,0,637708.97000000009,0,0,0,459368.70297670597,252256.55,0,0,0,0,0,0,9553471,154874.14000000001,238071.25,0,397065.70237794082,0,0]
[null,null,null,"Total",null,null,"F6121","F6122","F6123","F6124","F6125","F6126","F6127","F6129","F612A","F612C","F612E","F612H","F612J","F612K","F6131","F6132","F6133","F6134","F6137","F613D","F613E","F613F","F613G","F613H","F613i","F613K","F613L","F613M","F6141","F6142","F6143","F6144","F614G","F6146"]
[null,"Agency #","Agency",null,"RSF Total","$ Total","Cherberg","O'Brien","Legislative","Pritchard","HLB","OB2","Archives","NRB","Emp Sec","Transportation","Insurance","Old Cap","TOJ","Newhouse","Modular Bldg","Isabella Bush","1007 Washington","120 E Union Avenue","Conservatory","Capital Court","James Dolliver Building","Undeveloped Properties","1068 WA Street SE (ST Farm)","232 Perry Street","208 11th Avenue SE (Pro Arts)","Press Houses Ayer(White); Carlyon(Blue)","Visitor Center","Helen Sommers","Kelso Building","Yakima Building","Alaska Street","Tacoma Rhodes","Tacoma Rhodes Garage","North Cascades Gateway Center (NCGC)"]
[{"$f":"CONCATENATE(B6,\" - \",C6)","v":"011 - House of Representatives"},"011","House of Representatives",9.9999999999999998E-20,1E-8,{"$f":"SUM(G6:AN6)","v":0},{"$f":"'Debt allocations'!G6*'Debt Dollars FY22'!$C$2","v":0},{"$f":"'Debt allocations'!H6*'Debt Dollars FY22'!$C$2","v":0},{"$f":"'Debt allocations'!I6*'Debt Dollars FY22'!$C$2","v":0},{"$f":"'Debt allocations'!J6*'Debt Dollars FY22'!$C$2","v":0},{"$f":"'Debt allocations'!K6*'Debt Dollars FY22'!$C$2","v":0},{"$f":"'Debt allocations'!L6*'Debt Dollars FY22'!$C$2","v":0},{"$f":"'Debt allocations'!M6*'Debt Dollars FY22'!$C$2","v":0},{"$f":"'Debt allocations'!N6*'Debt Dollars FY22'!$C$2","v":0},{"$f":"'Debt allocations'!O6*'Debt Dollars FY22'!$C$2","v":0},{"$f":"'Debt allocations'!P6*'Debt Dollars FY22'!$C$2","v":0},{"$f":"'Debt allocations'!Q6*'Debt Dollars FY22'!$C$2","v":0},{"$f":"'Debt allocations'!R6*'Debt Dollars FY22'!$C$2","v":0},{"$f":"'Debt allocations'!S6*'Debt Dollars FY22'!$C$2","v":0},{"$f":"'Debt allocations'!T6*'Debt Dollars FY22'!$C$2","v":0},{"$f":"'Debt allocations'!U6*'Debt Dollars FY22'!$C$2","v":0},{"$f":"'Debt allocations'!V6*'Debt Dollars FY22'!$C$2","v":0},{"$f":"'Debt allocations'!W6*'Debt Dollars FY22'!$C$2","v":0},{"$f":"'Debt allocations'!X6*'Debt Dollars FY22'!$C$2","v":0},{"$f":"'Debt allocations'!Y6*'Debt Dollars FY22'!$C$2","v":0},{"$f":"'Debt allocations'!Z6*'Debt Dollars FY22'!$C$2","v":0},{"$f":"'Debt allocations'!AA6*'Debt Dollars FY22'!$C$2","v":0},{"$f":"'Debt allocations'!AB6*'Debt Dollars FY22'!$C$2","v":0},{"$f":"'Debt allocations'!AC6*'Debt Dollars FY22'!$C$2","v":0},{"$f":"'Debt allocations'!AD6*'Debt Dollars FY22'!$C$2","v":0},{"$f":"'Debt allocations'!AE6*'Debt Dollars FY22'!$C$2","v":0},{"$f":"'Debt allocations'!AF6*'Debt Dollars FY22'!$C$2","v":0},{"$f":"'Debt allocations'!AG6*'Debt Dollars FY22'!$C$2","v":0},{"$f":"'Debt allocations'!AH6*'Debt Dollars FY22'!$C$2","v":0},{"$f":"'Debt allocations'!AI6*'Debt Dollars FY22'!$C$2","v":0},{"$f":"'Debt allocations'!AJ6*'Debt Dollars FY22'!$C$2","v":0},{"$f":"'Debt allocations'!AK6*'Debt Dollars FY22'!$C$2","v":0},{"$f":"'Debt allocations'!AL6*'Debt Dollars FY22'!$C$2","v":0},{"$f":"'Debt allocations'!AM6*'Debt Dollars FY22'!$C$2","v":0},{"$f":"'Debt allocations'!AN6*'Debt Dollars FY22'!$C$2","v":0}]
[{"$f":"CONCATENATE(B7,\" - \",C7)","v":"012 - Senate"},"012","Senate",9.9999999999999998E-20,1E-8,{"$f":"SUM(G7:AN7)","v":0},{"$f":"'Debt allocations'!G7*'Debt Dollars FY22'!$C$2","v":0},{"$f":"'Debt allocations'!H7*'Debt Dollars FY22'!$C$2","v":0},{"$f":"'Debt allocations'!I7*'Debt Dollars FY22'!$C$2","v":0},{"$f":"'Debt allocations'!J7*'Debt Dollars FY22'!$C$2","v":0},{"$f":"'Debt allocations'!K7*'Debt Dollars FY22'!$C$2","v":0},{"$f":"'Debt allocations'!L7*'Debt Dollars FY22'!$C$2","v":0},{"$f":"'Debt allocations'!M7*'Debt Dollars FY22'!$C$2","v":0},{"$f":"'Debt allocations'!N7*'Debt Dollars FY22'!$C$2","v":0},{"$f":"'Debt allocations'!O7*'Debt Dollars FY22'!$C$2","v":0},{"$f":"'Debt allocations'!P7*'Debt Dollars FY22'!$C$2","v":0},{"$f":"'Debt allocations'!Q7*'Debt Dollars FY22'!$C$2","v":0},{"$f":"'Debt allocations'!R7*'Debt Dollars FY22'!$C$2","v":0},{"$f":"'Debt allocations'!S7*'Debt Dollars FY22'!$C$2","v":0},{"$f":"'Debt allocations'!T7*'Debt Dollars FY22'!$C$2","v":0},{"$f":"'Debt allocations'!U7*'Debt Dollars FY22'!$C$2","v":0},{"$f":"'Debt allocations'!V7*'Debt Dollars FY22'!$C$2","v":0},{"$f":"'Debt allocations'!W7*'Debt Dollars FY22'!$C$2","v":0},{"$f":"'Debt allocations'!X7*'Debt Dollars FY22'!$C$2","v":0},{"$f":"'Debt allocations'!Y7*'Debt Dollars FY22'!$C$2","v":0},{"$f":"'Debt allocations'!Z7*'Debt Dollars FY22'!$C$2","v":0},{"$f":"'Debt allocations'!AA7*'Debt Dollars FY22'!$C$2","v":0},{"$f":"'Debt allocations'!AB7*'Debt Dollars FY22'!$C$2","v":0},{"$f":"'Debt allocations'!AC7*'Debt Dollars FY22'!$C$2","v":0},{"$f":"'Debt allocations'!AD7*'Debt Dollars FY22'!$C$2","v":0},{"$f":"'Debt allocations'!AE7*'Debt Dollars FY22'!$C$2","v":0},{"$f":"'Debt allocations'!AF7*'Debt Dollars FY22'!$C$2","v":0},{"$f":"'Debt allocations'!AG7*'Debt Dollars FY22'!$C$2","v":0},{"$f":"'Debt allocations'!AH7*'Debt Dollars FY22'!$C$2","v":0},{"$f":"'Debt allocations'!AI7*'Debt Dollars FY22'!$C$2","v":0},{"$f":"'Debt allocations'!AJ7*'Debt Dollars FY22'!$C$2","v":0},{"$f":"'Debt allocations'!AK7*'Debt Dollars FY22'!$C$2","v":0},{"$f":"'Debt allocations'!AL7*'Debt Dollars FY22'!$C$2","v":0},{"$f":"'Debt allocations'!AM7*'Debt Dollars FY22'!$C$2","v":0},{"$f":"'Debt allocations'!AN7*'Debt Dollars FY22'!$C$2","v":0}]
["013 - Joint Transportation Committee","013","Joint Transportation Committee",9.9999999999999998E-20,1E-8,0,{"$f":"'Debt allocations'!G8*'Debt Dollars FY22'!$C$2","v":0},{"$f":"'Debt allocations'!H8*'Debt Dollars FY22'!$C$2","v":0},{"$f":"'Debt allocations'!I8*'Debt Dollars FY22'!$C$2","v":0},{"$f":"'Debt allocations'!J8*'Debt Dollars FY22'!$C$2","v":0},{"$f":"'Debt allocations'!K8*'Debt Dollars FY22'!$C$2","v":0},{"$f":"'Debt allocations'!L8*'Debt Dollars FY22'!$C$2","v":0},{"$f":"'Debt allocations'!M8*'Debt Dollars FY22'!$C$2","v":0},{"$f":"'Debt allocations'!N8*'Debt Dollars FY22'!$C$2","v":0},{"$f":"'Debt allocations'!O8*'Debt Dollars FY22'!$C$2","v":0},{"$f":"'Debt allocations'!P8*'Debt Dollars FY22'!$C$2","v":0},{"$f":"'Debt allocations'!Q8*'Debt Dollars FY22'!$C$2","v":0},{"$f":"'Debt allocations'!R8*'Debt Dollars FY22'!$C$2","v":0},{"$f":"'Debt allocations'!S8*'Debt Dollars FY22'!$C$2","v":0},{"$f":"'Debt allocations'!T8*'Debt Dollars FY22'!$C$2","v":0},{"$f":"'Debt allocations'!U8*'Debt Dollars FY22'!$C$2","v":0},{"$f":"'Debt allocations'!V8*'Debt Dollars FY22'!$C$2","v":0},{"$f":"'Debt allocations'!W8*'Debt Dollars FY22'!$C$2","v":0},{"$f":"'Debt allocations'!X8*'Debt Dollars FY22'!$C$2","v":0},{"$f":"'Debt allocations'!Y8*'Debt Dollars FY22'!$C$2","v":0},{"$f":"'Debt allocations'!Z8*'Debt Dollars FY22'!$C$2","v":0},{"$f":"'Debt allocations'!AA8*'Debt Dollars FY22'!$C$2","v":0},{"$f":"'Debt allocations'!AB8*'Debt Dollars FY22'!$C$2","v":0},{"$f":"'Debt allocations'!AC8*'Debt Dollars FY22'!$C$2","v":0},{"$f":"'Debt allocations'!AD8*'Debt Dollars FY22'!$C$2","v":0},{"$f":"'Debt allocations'!AE8*'Debt Dollars FY22'!$C$2","v":0},{"$f":"'Debt allocations'!AF8*'Debt Dollars FY22'!$C$2","v":0},{"$f":"'Debt allocations'!AG8*'Debt Dollars FY22'!$C$2","v":0},{"$f":"'Debt allocations'!AH8*'Debt Dollars FY22'!$C$2","v":0},{"$f":"'Debt allocations'!AI8*'Debt Dollars FY22'!$C$2","v":0},{"$f":"'Debt allocations'!AJ8*'Debt Dollars FY22'!$C$2","v":0},{"$f":"'Debt allocations'!AK8*'Debt Dollars FY22'!$C$2","v":0},{"$f":"'Debt allocations'!AL8*'Debt Dollars FY22'!$C$2","v":0},{"$f":"'Debt allocations'!AM8*'Debt Dollars FY22'!$C$2","v":0},{"$f":"'Debt allocations'!AN8*'Debt Dollars FY22'!$C$2","v":0}]
["014 - Joint Legislative Audit and Review Committee","014","Joint Legislative Audit and Review Committee",2.976899987080505E-2,8887,211627.8200815531,{"$f":"'Debt allocations'!G9*'Debt Dollars FY22'!$C$2","v":0},{"$f":"'Debt allocations'!H9*'Debt Dollars FY22'!$C$2","v":0},{"$f":"'Debt allocations'!I9*'Debt Dollars FY22'!$C$2","v":0},{"$f":"'Debt allocations'!J9*'Debt Dollars FY22'!$C$2","v":0},{"$f":"'Debt allocations'!K9*'Debt Dollars FY22'!$C$2","v":0},{"$f":"'Debt allocations'!L9*'Debt Dollars FY22'!$C$2","v":0},{"$f":"'Debt allocations'!M9*'Debt Dollars FY22'!$C$2","v":0},{"$f":"'Debt allocations'!N9*'Debt Dollars FY22'!$C$2","v":0},{"$f":"'Debt allocations'!O9*'Debt Dollars FY22'!$C$2","v":0},{"$f":"'Debt allocations'!P9*'Debt Dollars FY22'!$C$2","v":0},{"$f":"'Debt allocations'!Q9*'Debt Dollars FY22'!$C$2","v":0},{"$f":"'Debt allocations'!R9*'Debt Dollars FY22'!$C$2","v":0},{"$f":"'Debt allocations'!S9*'Debt Dollars FY22'!$C$2","v":0},{"$f":"'Debt allocations'!T9*'Debt Dollars FY22'!$C$2","v":0},{"$f":"'Debt allocations'!U9*'Debt Dollars FY22'!$C$2","v":0},{"$f":"'Debt allocations'!V9*'Debt Dollars FY22'!$C$2","v":0},{"$f":"'Debt allocations'!W9*'Debt Dollars FY22'!$C$2","v":0},{"$f":"'Debt allocations'!X9*'Debt Dollars FY22'!$C$2","v":0},{"$f":"'Debt allocations'!Y9*'Debt Dollars FY22'!$C$2","v":0},{"$f":"'Debt allocations'!Z9*'Debt Dollars FY22'!$C$2","v":0},{"$f":"'Debt allocations'!AA9*'Debt Dollars FY22'!$C$2","v":0},{"$f":"'Debt allocations'!AB9*'Debt Dollars FY22'!$C$2","v":0},{"$f":"'Debt allocations'!AC9*'Debt Dollars FY22'!$C$2","v":0},{"$f":"'Debt allocations'!AD9*'Debt Dollars FY22'!$C$2","v":0},{"$f":"'Debt allocations'!AE9*'Debt Dollars FY22'!$C$2","v":0},{"$f":"'Debt allocations'!AF9*'Debt Dollars FY22'!$C$2","v":0},{"$f":"'Debt allocations'!AG9*'Debt Dollars FY22'!$C$2","v":0},{"$f":"'Debt allocations'!AH9*'Debt Dollars FY22'!$C$2","v":211627.8200815531},{"$f":"'Debt allocations'!AI9*'Debt Dollars FY22'!$C$2","v":0},{"$f":"'Debt allocations'!AJ9*'Debt Dollars FY22'!$C$2","v":0},{"$f":"'Debt allocations'!AK9*'Debt Dollars FY22'!$C$2","v":0},{"$f":"'Debt allocations'!AL9*'Debt Dollars FY22'!$C$2","v":0},{"$f":"'Debt allocations'!AM9*'Debt Dollars FY22'!$C$2","v":0},{"$f":"'Debt allocations'!AN9*'Debt Dollars FY22'!$C$2","v":0}]
["020 - Legislative Evaluation and Accountability Program Committee","020","Legislative Evaluation and Accountability Program Committee",1.4212880212875641E-2,4243,101039.36543333295,{"$f":"'Debt allocations'!G10*'Debt Dollars FY22'!$C$2","v":0},{"$f":"'Debt allocations'!H10*'Debt Dollars FY22'!$C$2","v":0},{"$f":"'Debt allocations'!I10*'Debt Dollars FY22'!$C$2","v":0},{"$f":"'Debt allocations'!J10*'Debt Dollars FY22'!$C$2","v":0},{"$f":"'Debt allocations'!K10*'Debt Dollars FY22'!$C$2","v":0},{"$f":"'Debt allocations'!L10*'Debt Dollars FY22'!$C$2","v":0},{"$f":"'Debt allocations'!M10*'Debt Dollars FY22'!$C$2","v":0},{"$f":"'Debt allocations'!N10*'Debt Dollars FY22'!$C$2","v":0},{"$f":"'Debt allocations'!O10*'Debt Dollars FY22'!$C$2","v":0},{"$f":"'Debt allocations'!P10*'Debt Dollars FY22'!$C$2","v":0},{"$f":"'Debt allocations'!Q10*'Debt Dollars FY22'!$C$2","v":0},{"$f":"'Debt allocations'!R10*'Debt Dollars FY22'!$C$2","v":0},{"$f":"'Debt allocations'!S10*'Debt Dollars FY22'!$C$2","v":0},{"$f":"'Debt allocations'!T10*'Debt Dollars FY22'!$C$2","v":0},{"$f":"'Debt allocations'!U10*'Debt Dollars FY22'!$C$2","v":0},{"$f":"'Debt allocations'!V10*'Debt Dollars FY22'!$C$2","v":0},{"$f":"'Debt allocations'!W10*'Debt Dollars FY22'!$C$2","v":0},{"$f":"'Debt allocations'!X10*'Debt Dollars FY22'!$C$2","v":0},{"$f":"'Debt allocations'!Y10*'Debt Dollars FY22'!$C$2","v":0},{"$f":"'Debt allocations'!Z10*'Debt Dollars FY22'!$C$2","v":0},{"$f":"'Debt allocations'!AA10*'Debt Dollars FY22'!$C$2","v":0},{"$f":"'Debt allocations'!AB10*'Debt Dollars FY22'!$C$2","v":0},{"$f":"'Debt allocations'!AC10*'Debt Dollars FY22'!$C$2","v":0},{"$f":"'Debt allocations'!AD10*'Debt Dollars FY22'!$C$2","v":0},{"$f":"'Debt allocations'!AE10*'Debt Dollars FY22'!$C$2","v":0},{"$f":"'Debt allocations'!AF10*'Debt Dollars FY22'!$C$2","v":0},{"$f":"'Debt allocations'!AG10*'Debt Dollars FY22'!$C$2","v":0},{"$f":"'Debt allocations'!AH10*'Debt Dollars FY22'!$C$2","v":101039.36543333295},{"$f":"'Debt allocations'!AI10*'Debt Dollars FY22'!$C$2","v":0},{"$f":"'Debt allocations'!AJ10*'Debt Dollars FY22'!$C$2","v":0},{"$f":"'Debt allocations'!AK10*'Debt Dollars FY22'!$C$2","v":0},{"$f":"'Debt allocations'!AL10*'Debt Dollars FY22'!$C$2","v":0},{"$f":"'Debt allocations'!AM10*'Debt Dollars FY22'!$C$2","v":0},{"$f":"'Debt allocations'!AN10*'Debt Dollars FY22'!$C$2","v":0}]
["035 - Office of the State Actuary","035","Office of the State Actuary",9.9999999999999998E-20,1E-8,0,{"$f":"'Debt allocations'!G11*'Debt Dollars FY22'!$C$2","v":0},{"$f":"'Debt allocations'!H11*'Debt Dollars FY22'!$C$2","v":0},{"$f":"'Debt allocations'!I11*'Debt Dollars FY22'!$C$2","v":0},{"$f":"'Debt allocations'!J11*'Debt Dollars FY22'!$C$2","v":0},{"$f":"'Debt allocations'!K11*'Debt Dollars FY22'!$C$2","v":0},{"$f":"'Debt allocations'!L11*'Debt Dollars FY22'!$C$2","v":0},{"$f":"'Debt allocations'!M11*'Debt Dollars FY22'!$C$2","v":0},{"$f":"'Debt allocations'!N11*'Debt Dollars FY22'!$C$2","v":0},{"$f":"'Debt allocations'!O11*'Debt Dollars FY22'!$C$2","v":0},{"$f":"'Debt allocations'!P11*'Debt Dollars FY22'!$C$2","v":0},{"$f":"'Debt allocations'!Q11*'Debt Dollars FY22'!$C$2","v":0},{"$f":"'Debt allocations'!R11*'Debt Dollars FY22'!$C$2","v":0},{"$f":"'Debt allocations'!S11*'Debt Dollars FY22'!$C$2","v":0},{"$f":"'Debt allocations'!T11*'Debt Dollars FY22'!$C$2","v":0},{"$f":"'Debt allocations'!U11*'Debt Dollars FY22'!$C$2","v":0},{"$f":"'Debt allocations'!V11*'Debt Dollars FY22'!$C$2","v":0},{"$f":"'Debt allocations'!W11*'Debt Dollars FY22'!$C$2","v":0},{"$f":"'Debt allocations'!X11*'Debt Dollars FY22'!$C$2","v":0},{"$f":"'Debt allocations'!Y11*'Debt Dollars FY22'!$C$2","v":0},{"$f":"'Debt allocations'!Z11*'Debt Dollars FY22'!$C$2","v":0},{"$f":"'Debt allocations'!AA11*'Debt Dollars FY22'!$C$2","v":0},{"$f":"'Debt allocations'!AB11*'Debt Dollars FY22'!$C$2","v":0},{"$f":"'Debt allocations'!AC11*'Debt Dollars FY22'!$C$2","v":0},{"$f":"'Debt allocations'!AD11*'Debt Dollars FY22'!$C$2","v":0},{"$f":"'Debt allocations'!AE11*'Debt Dollars FY22'!$C$2","v":0},{"$f":"'Debt allocations'!AF11*'Debt Dollars FY22'!$C$2","v":0},{"$f":"'Debt allocations'!AG11*'Debt Dollars FY22'!$C$2","v":0},{"$f":"'Debt allocations'!AH11*'Debt Dollars FY22'!$C$2","v":0},{"$f":"'Debt allocations'!AI11*'Debt Dollars FY22'!$C$2","v":0},{"$f":"'Debt allocations'!AJ11*'Debt Dollars FY22'!$C$2","v":0},{"$f":"'Debt allocations'!AK11*'Debt Dollars FY22'!$C$2","v":0},{"$f":"'Debt allocations'!AL11*'Debt Dollars FY22'!$C$2","v":0},{"$f":"'Debt allocations'!AM11*'Debt Dollars FY22'!$C$2","v":0},{"$f":"'Debt allocations'!AN11*'Debt Dollars FY22'!$C$2","v":0}]
["037 - Office of Legislative Support Services","037","Office of Legislative Support Services",9.9999999999999998E-20,1E-8,0,{"$f":"'Debt allocations'!G12*'Debt Dollars FY22'!$C$2","v":0},{"$f":"'Debt allocations'!H12*'Debt Dollars FY22'!$C$2","v":0},{"$f":"'Debt allocations'!I12*'Debt Dollars FY22'!$C$2","v":0},{"$f":"'Debt allocations'!J12*'Debt Dollars FY22'!$C$2","v":0},{"$f":"'Debt allocations'!K12*'Debt Dollars FY22'!$C$2","v":0},{"$f":"'Debt allocations'!L12*'Debt Dollars FY22'!$C$2","v":0},{"$f":"'Debt allocations'!M12*'Debt Dollars FY22'!$C$2","v":0},{"$f":"'Debt allocations'!N12*'Debt Dollars FY22'!$C$2","v":0},{"$f":"'Debt allocations'!O12*'Debt Dollars FY22'!$C$2","v":0},{"$f":"'Debt allocations'!P12*'Debt Dollars FY22'!$C$2","v":0},{"$f":"'Debt allocations'!Q12*'Debt Dollars FY22'!$C$2","v":0},{"$f":"'Debt allocations'!R12*'Debt Dollars FY22'!$C$2","v":0},{"$f":"'Debt allocations'!S12*'Debt Dollars FY22'!$C$2","v":0},{"$f":"'Debt allocations'!T12*'Debt Dollars FY22'!$C$2","v":0},{"$f":"'Debt allocations'!U12*'Debt Dollars FY22'!$C$2","v":0},{"$f":"'Debt allocations'!V12*'Debt Dollars FY22'!$C$2","v":0},{"$f":"'Debt allocations'!W12*'Debt Dollars FY22'!$C$2","v":0},{"$f":"'Debt allocations'!X12*'Debt Dollars FY22'!$C$2","v":0},{"$f":"'Debt allocations'!Y12*'Debt Dollars FY22'!$C$2","v":0},{"$f":"'Debt allocations'!Z12*'Debt Dollars FY22'!$C$2","v":0},{"$f":"'Debt allocations'!AA12*'Debt Dollars FY22'!$C$2","v":0},{"$f":"'Debt allocations'!AB12*'Debt Dollars FY22'!$C$2","v":0},{"$f":"'Debt allocations'!AC12*'Debt Dollars FY22'!$C$2","v":0},{"$f":"'Debt allocations'!AD12*'Debt Dollars FY22'!$C$2","v":0},{"$f":"'Debt allocations'!AE12*'Debt Dollars FY22'!$C$2","v":0},{"$f":"'Debt allocations'!AF12*'Debt Dollars FY22'!$C$2","v":0},{"$f":"'Debt allocations'!AG12*'Debt Dollars FY22'!$C$2","v":0},{"$f":"'Debt allocations'!AH12*'Debt Dollars FY22'!$C$2","v":0},{"$f":"'Debt allocations'!AI12*'Debt Dollars FY22'!$C$2","v":0},{"$f":"'Debt allocations'!AJ12*'Debt Dollars FY22'!$C$2","v":0},{"$f":"'Debt allocations'!AK12*'Debt Dollars FY22'!$C$2","v":0},{"$f":"'Debt allocations'!AL12*'Debt Dollars FY22'!$C$2","v":0},{"$f":"'Debt allocations'!AM12*'Debt Dollars FY22'!$C$2","v":0},{"$f":"'Debt allocations'!AN12*'Debt Dollars FY22'!$C$2","v":0}]
["038 - Joint Legislative Systems Committee","038","Joint Legislative Systems Committee",4.0092850169198335E-2,11969,285020.071852831,{"$f":"'Debt allocations'!G13*'Debt Dollars FY22'!$C$2","v":0},{"$f":"'Debt allocations'!H13*'Debt Dollars FY22'!$C$2","v":0},{"$f":"'Debt allocations'!I13*'Debt Dollars FY22'!$C$2","v":0},{"$f":"'Debt allocations'!J13*'Debt Dollars FY22'!$C$2","v":0},{"$f":"'Debt allocations'!K13*'Debt Dollars FY22'!$C$2","v":0},{"$f":"'Debt allocations'!L13*'Debt Dollars FY22'!$C$2","v":0},{"$f":"'Debt allocations'!M13*'Debt Dollars FY22'!$C$2","v":0},{"$f":"'Debt allocations'!N13*'Debt Dollars FY22'!$C$2","v":0},{"$f":"'Debt allocations'!O13*'Debt Dollars FY22'!$C$2","v":0},{"$f":"'Debt allocations'!P13*'Debt Dollars FY22'!$C$2","v":0},{"$f":"'Debt allocations'!Q13*'Debt Dollars FY22'!$C$2","v":0},{"$f":"'Debt allocations'!R13*'Debt Dollars FY22'!$C$2","v":0},{"$f":"'Debt allocations'!S13*'Debt Dollars FY22'!$C$2","v":0},{"$f":"'Debt allocations'!T13*'Debt Dollars FY22'!$C$2","v":0},{"$f":"'Debt allocations'!U13*'Debt Dollars FY22'!$C$2","v":0},{"$f":"'Debt allocations'!V13*'Debt Dollars FY22'!$C$2","v":0},{"$f":"'Debt allocations'!W13*'Debt Dollars FY22'!$C$2","v":0},{"$f":"'Debt allocations'!X13*'Debt Dollars FY22'!$C$2","v":0},{"$f":"'Debt allocations'!Y13*'Debt Dollars FY22'!$C$2","v":0},{"$f":"'Debt allocations'!Z13*'Debt Dollars FY22'!$C$2","v":0},{"$f":"'Debt allocations'!AA13*'Debt Dollars FY22'!$C$2","v":0},{"$f":"'Debt allocations'!AB13*'Debt Dollars FY22'!$C$2","v":0},{"$f":"'Debt allocations'!AC13*'Debt Dollars FY22'!$C$2","v":0},{"$f":"'Debt allocations'!AD13*'Debt Dollars FY22'!$C$2","v":0},{"$f":"'Debt allocations'!AE13*'Debt Dollars FY22'!$C$2","v":0},{"$f":"'Debt allocations'!AF13*'Debt Dollars FY22'!$C$2","v":0},{"$f":"'Debt allocations'!AG13*'Debt Dollars FY22'!$C$2","v":0},{"$f":"'Debt allocations'!AH13*'Debt Dollars FY22'!$C$2","v":285020.071852831},{"$f":"'Debt allocations'!AI13*'Debt Dollars FY22'!$C$2","v":0},{"$f":"'Debt allocations'!AJ13*'Debt Dollars FY22'!$C$2","v":0},{"$f":"'Debt allocations'!AK13*'Debt Dollars FY22'!$C$2","v":0},{"$f":"'Debt allocations'!AL13*'Debt Dollars FY22'!$C$2","v":0},{"$f":"'Debt allocations'!AM13*'Debt Dollars FY22'!$C$2","v":0},{"$f":"'Debt allocations'!AN13*'Debt Dollars FY22'!$C$2","v":0}]
["040 - Statute Law Committee (Code Revisor)","040","Statute Law Committee (Code Revisor)",9.9999999999999998E-20,1E-8,0,{"$f":"'Debt allocations'!G14*'Debt Dollars FY22'!$C$2","v":0},{"$f":"'Debt allocations'!H14*'Debt Dollars FY22'!$C$2","v":0},{"$f":"'Debt allocations'!I14*'Debt Dollars FY22'!$C$2","v":0},{"$f":"'Debt allocations'!J14*'Debt Dollars FY22'!$C$2","v":0},{"$f":"'Debt allocations'!K14*'Debt Dollars FY22'!$C$2","v":0},{"$f":"'Debt allocations'!L14*'Debt Dollars FY22'!$C$2","v":0},{"$f":"'Debt allocations'!M14*'Debt Dollars FY22'!$C$2","v":0},{"$f":"'Debt allocations'!N14*'Debt Dollars FY22'!$C$2","v":0},{"$f":"'Debt allocations'!O14*'Debt Dollars FY22'!$C$2","v":0},{"$f":"'Debt allocations'!P14*'Debt Dollars FY22'!$C$2","v":0},{"$f":"'Debt allocations'!Q14*'Debt Dollars FY22'!$C$2","v":0},{"$f":"'Debt allocations'!R14*'Debt Dollars FY22'!$C$2","v":0},{"$f":"'Debt allocations'!S14*'Debt Dollars FY22'!$C$2","v":0},{"$f":"'Debt allocations'!T14*'Debt Dollars FY22'!$C$2","v":0},{"$f":"'Debt allocations'!U14*'Debt Dollars FY22'!$C$2","v":0},{"$f":"'Debt allocations'!V14*'Debt Dollars FY22'!$C$2","v":0},{"$f":"'Debt allocations'!W14*'Debt Dollars FY22'!$C$2","v":0},{"$f":"'Debt allocations'!X14*'Debt Dollars FY22'!$C$2","v":0},{"$f":"'Debt allocations'!Y14*'Debt Dollars FY22'!$C$2","v":0},{"$f":"'Debt allocations'!Z14*'Debt Dollars FY22'!$C$2","v":0},{"$f":"'Debt allocations'!AA14*'Debt Dollars FY22'!$C$2","v":0},{"$f":"'Debt allocations'!AB14*'Debt Dollars FY22'!$C$2","v":0},{"$f":"'Debt allocations'!AC14*'Debt Dollars FY22'!$C$2","v":0},{"$f":"'Debt allocations'!AD14*'Debt Dollars FY22'!$C$2","v":0},{"$f":"'Debt allocations'!AE14*'Debt Dollars FY22'!$C$2","v":0},{"$f":"'Debt allocations'!AF14*'Debt Dollars FY22'!$C$2","v":0},{"$f":"'Debt allocations'!AG14*'Debt Dollars FY22'!$C$2","v":0},{"$f":"'Debt allocations'!AH14*'Debt Dollars FY22'!$C$2","v":0},{"$f":"'Debt allocations'!AI14*'Debt Dollars FY22'!$C$2","v":0},{"$f":"'Debt allocations'!AJ14*'Debt Dollars FY22'!$C$2","v":0},{"$f":"'Debt allocations'!AK14*'Debt Dollars FY22'!$C$2","v":0},{"$f":"'Debt allocations'!AL14*'Debt Dollars FY22'!$C$2","v":0},{"$f":"'Debt allocations'!AM14*'Debt Dollars FY22'!$C$2","v":0},{"$f":"'Debt allocations'!AN14*'Debt Dollars FY22'!$C$2","v":0}]
["045 - Supreme Court","045","Supreme Court",9.9999999999999998E-20,1E-8,0,{"$f":"'Debt allocations'!G15*'Debt Dollars FY22'!$C$2","v":0},{"$f":"'Debt allocations'!H15*'Debt Dollars FY22'!$C$2","v":0},{"$f":"'Debt allocations'!I15*'Debt Dollars FY22'!$C$2","v":0},{"$f":"'Debt allocations'!J15*'Debt Dollars FY22'!$C$2","v":0},{"$f":"'Debt allocations'!K15*'Debt Dollars FY22'!$C$2","v":0},{"$f":"'Debt allocations'!L15*'Debt Dollars FY22'!$C$2","v":0},{"$f":"'Debt allocations'!M15*'Debt Dollars FY22'!$C$2","v":0},{"$f":"'Debt allocations'!N15*'Debt Dollars FY22'!$C$2","v":0},{"$f":"'Debt allocations'!O15*'Debt Dollars FY22'!$C$2","v":0},{"$f":"'Debt allocations'!P15*'Debt Dollars FY22'!$C$2","v":0},{"$f":"'Debt allocations'!Q15*'Debt Dollars FY22'!$C$2","v":0},{"$f":"'Debt allocations'!R15*'Debt Dollars FY22'!$C$2","v":0},{"$f":"'Debt allocations'!S15*'Debt Dollars FY22'!$C$2","v":0},{"$f":"'Debt allocations'!T15*'Debt Dollars FY22'!$C$2","v":0},{"$f":"'Debt allocations'!U15*'Debt Dollars FY22'!$C$2","v":0},{"$f":"'Debt allocations'!V15*'Debt Dollars FY22'!$C$2","v":0},{"$f":"'Debt allocations'!W15*'Debt Dollars FY22'!$C$2","v":0},{"$f":"'Debt allocations'!X15*'Debt Dollars FY22'!$C$2","v":0},{"$f":"'Debt allocations'!Y15*'Debt Dollars FY22'!$C$2","v":0},{"$f":"'Debt allocations'!Z15*'Debt Dollars FY22'!$C$2","v":0},{"$f":"'Debt allocations'!AA15*'Debt Dollars FY22'!$C$2","v":0},{"$f":"'Debt allocations'!AB15*'Debt Dollars FY22'!$C$2","v":0},{"$f":"'Debt allocations'!AC15*'Debt Dollars FY22'!$C$2","v":0},{"$f":"'Debt allocations'!AD15*'Debt Dollars FY22'!$C$2","v":0},{"$f":"'Debt allocations'!AE15*'Debt Dollars FY22'!$C$2","v":0},{"$f":"'Debt allocations'!AF15*'Debt Dollars FY22'!$C$2","v":0},{"$f":"'Debt allocations'!AG15*'Debt Dollars FY22'!$C$2","v":0},{"$f":"'Debt allocations'!AH15*'Debt Dollars FY22'!$C$2","v":0},{"$f":"'Debt allocations'!AI15*'Debt Dollars FY22'!$C$2","v":0},{"$f":"'Debt allocations'!AJ15*'Debt Dollars FY22'!$C$2","v":0},{"$f":"'Debt allocations'!AK15*'Debt Dollars FY22'!$C$2","v":0},{"$f":"'Debt allocations'!AL15*'Debt Dollars FY22'!$C$2","v":0},{"$f":"'Debt allocations'!AM15*'Debt Dollars FY22'!$C$2","v":0},{"$f":"'Debt allocations'!AN15*'Debt Dollars FY22'!$C$2","v":0}]
["046 - Law Library","046","Law Library",9.9999999999999998E-20,1E-8,0,{"$f":"'Debt allocations'!G16*'Debt Dollars FY22'!$C$2","v":0},{"$f":"'Debt allocations'!H16*'Debt Dollars FY22'!$C$2","v":0},{"$f":"'Debt allocations'!I16*'Debt Dollars FY22'!$C$2","v":0},{"$f":"'Debt allocations'!J16*'Debt Dollars FY22'!$C$2","v":0},{"$f":"'Debt allocations'!K16*'Debt Dollars FY22'!$C$2","v":0},{"$f":"'Debt allocations'!L16*'Debt Dollars FY22'!$C$2","v":0},{"$f":"'Debt allocations'!M16*'Debt Dollars FY22'!$C$2","v":0},{"$f":"'Debt allocations'!N16*'Debt Dollars FY22'!$C$2","v":0},{"$f":"'Debt allocations'!O16*'Debt Dollars FY22'!$C$2","v":0},{"$f":"'Debt allocations'!P16*'Debt Dollars FY22'!$C$2","v":0},{"$f":"'Debt allocations'!Q16*'Debt Dollars FY22'!$C$2","v":0},{"$f":"'Debt allocations'!R16*'Debt Dollars FY22'!$C$2","v":0},{"$f":"'Debt allocations'!S16*'Debt Dollars FY22'!$C$2","v":0},{"$f":"'Debt allocations'!T16*'Debt Dollars FY22'!$C$2","v":0},{"$f":"'Debt allocations'!U16*'Debt Dollars FY22'!$C$2","v":0},{"$f":"'Debt allocations'!V16*'Debt Dollars FY22'!$C$2","v":0},{"$f":"'Debt allocations'!W16*'Debt Dollars FY22'!$C$2","v":0},{"$f":"'Debt allocations'!X16*'Debt Dollars FY22'!$C$2","v":0},{"$f":"'Debt allocations'!Y16*'Debt Dollars FY22'!$C$2","v":0},{"$f":"'Debt allocations'!Z16*'Debt Dollars FY22'!$C$2","v":0},{"$f":"'Debt allocations'!AA16*'Debt Dollars FY22'!$C$2","v":0},{"$f":"'Debt allocations'!AB16*'Debt Dollars FY22'!$C$2","v":0},{"$f":"'Debt allocations'!AC16*'Debt Dollars FY22'!$C$2","v":0},{"$f":"'Debt allocations'!AD16*'Debt Dollars FY22'!$C$2","v":0},{"$f":"'Debt allocations'!AE16*'Debt Dollars FY22'!$C$2","v":0},{"$f":"'Debt allocations'!AF16*'Debt Dollars FY22'!$C$2","v":0},{"$f":"'Debt allocations'!AG16*'Debt Dollars FY22'!$C$2","v":0},{"$f":"'Debt allocations'!AH16*'Debt Dollars FY22'!$C$2","v":0},{"$f":"'Debt allocations'!AI16*'Debt Dollars FY22'!$C$2","v":0},{"$f":"'Debt allocations'!AJ16*'Debt Dollars FY22'!$C$2","v":0},{"$f":"'Debt allocations'!AK16*'Debt Dollars FY22'!$C$2","v":0},{"$f":"'Debt allocations'!AL16*'Debt Dollars FY22'!$C$2","v":0},{"$f":"'Debt allocations'!AM16*'Debt Dollars FY22'!$C$2","v":0},{"$f":"'Debt allocations'!AN16*'Debt Dollars FY22'!$C$2","v":0}]
["048 - Court of Appeals","048","Court of Appeals",1.026580282251501E-2,27692,72979.592265259213,{"$f":"'Debt allocations'!G17*'Debt Dollars FY22'!$C$2","v":0},{"$f":"'Debt allocations'!H17*'Debt Dollars FY22'!$C$2","v":0},{"$f":"'Debt allocations'!I17*'Debt Dollars FY22'!$C$2","v":0},{"$f":"'Debt allocations'!J17*'Debt Dollars FY22'!$C$2","v":0},{"$f":"'Debt allocations'!K17*'Debt Dollars FY22'!$C$2","v":0},{"$f":"'Debt allocations'!L17*'Debt Dollars FY22'!$C$2","v":0},{"$f":"'Debt allocations'!M17*'Debt Dollars FY22'!$C$2","v":0},{"$f":"'Debt allocations'!N17*'Debt Dollars FY22'!$C$2","v":0},{"$f":"'Debt allocations'!O17*'Debt Dollars FY22'!$C$2","v":0},{"$f":"'Debt allocations'!P17*'Debt Dollars FY22'!$C$2","v":0},{"$f":"'Debt allocations'!Q17*'Debt Dollars FY22'!$C$2","v":0},{"$f":"'Debt allocations'!R17*'Debt Dollars FY22'!$C$2","v":0},{"$f":"'Debt allocations'!S17*'Debt Dollars FY22'!$C$2","v":0},{"$f":"'Debt allocations'!T17*'Debt Dollars FY22'!$C$2","v":0},{"$f":"'Debt allocations'!U17*'Debt Dollars FY22'!$C$2","v":0},{"$f":"'Debt allocations'!V17*'Debt Dollars FY22'!$C$2","v":0},{"$f":"'Debt allocations'!W17*'Debt Dollars FY22'!$C$2","v":0},{"$f":"'Debt allocations'!X17*'Debt Dollars FY22'!$C$2","v":0},{"$f":"'Debt allocations'!Y17*'Debt Dollars FY22'!$C$2","v":0},{"$f":"'Debt allocations'!Z17*'Debt Dollars FY22'!$C$2","v":0},{"$f":"'Debt allocations'!AA17*'Debt Dollars FY22'!$C$2","v":0},{"$f":"'Debt allocations'!AB17*'Debt Dollars FY22'!$C$2","v":0},{"$f":"'Debt allocations'!AC17*'Debt Dollars FY22'!$C$2","v":0},{"$f":"'Debt allocations'!AD17*'Debt Dollars FY22'!$C$2","v":0},{"$f":"'Debt allocations'!AE17*'Debt Dollars FY22'!$C$2","v":0},{"$f":"'Debt allocations'!AF17*'Debt Dollars FY22'!$C$2","v":0},{"$f":"'Debt allocations'!AG17*'Debt Dollars FY22'!$C$2","v":0},{"$f":"'Debt allocations'!AH17*'Debt Dollars FY22'!$C$2","v":0},{"$f":"'Debt allocations'!AI17*'Debt Dollars FY22'!$C$2","v":0},{"$f":"'Debt allocations'!AJ17*'Debt Dollars FY22'!$C$2","v":0},{"$f":"'Debt allocations'!AK17*'Debt Dollars FY22'!$C$2","v":0},{"$f":"'Debt allocations'!AL17*'Debt Dollars FY22'!$C$2","v":72979.592265259213},{"$f":"'Debt allocations'!AM17*'Debt Dollars FY22'!$C$2","v":0},{"$f":"'Debt allocations'!AN17*'Debt Dollars FY22'!$C$2","v":0}]
["050 - Commission on Judicial Conduct","050","Commission on Judicial Conduct",4.0598007081426336E-3,5175,28861.123234185983,{"$f":"'Debt allocations'!G18*'Debt Dollars FY22'!$C$2","v":0},{"$f":"'Debt allocations'!H18*'Debt Dollars FY22'!$C$2","v":0},{"$f":"'Debt allocations'!I18*'Debt Dollars FY22'!$C$2","v":0},{"$f":"'Debt allocations'!J18*'Debt Dollars FY22'!$C$2","v":0},{"$f":"'Debt allocations'!K18*'Debt Dollars FY22'!$C$2","v":0},{"$f":"'Debt allocations'!L18*'Debt Dollars FY22'!$C$2","v":0},{"$f":"'Debt allocations'!M18*'Debt Dollars FY22'!$C$2","v":0},{"$f":"'Debt allocations'!N18*'Debt Dollars FY22'!$C$2","v":0},{"$f":"'Debt allocations'!O18*'Debt Dollars FY22'!$C$2","v":0},{"$f":"'Debt allocations'!P18*'Debt Dollars FY22'!$C$2","v":0},{"$f":"'Debt allocations'!Q18*'Debt Dollars FY22'!$C$2","v":0},{"$f":"'Debt allocations'!R18*'Debt Dollars FY22'!$C$2","v":0},{"$f":"'Debt allocations'!S18*'Debt Dollars FY22'!$C$2","v":0},{"$f":"'Debt allocations'!T18*'Debt Dollars FY22'!$C$2","v":0},{"$f":"'Debt allocations'!U18*'Debt Dollars FY22'!$C$2","v":0},{"$f":"'Debt allocations'!V18*'Debt Dollars FY22'!$C$2","v":0},{"$f":"'Debt allocations'!W18*'Debt Dollars FY22'!$C$2","v":0},{"$f":"'Debt allocations'!X18*'Debt Dollars FY22'!$C$2","v":0},{"$f":"'Debt allocations'!Y18*'Debt Dollars FY22'!$C$2","v":0},{"$f":"'Debt allocations'!Z18*'Debt Dollars FY22'!$C$2","v":28861.123234185983},{"$f":"'Debt allocations'!AA18*'Debt Dollars FY22'!$C$2","v":0},{"$f":"'Debt allocations'!AB18*'Debt Dollars FY22'!$C$2","v":0},{"$f":"'Debt allocations'!AC18*'Debt Dollars FY22'!$C$2","v":0},{"$f":"'Debt allocations'!AD18*'Debt Dollars FY22'!$C$2","v":0},{"$f":"'Debt allocations'!AE18*'Debt Dollars FY22'!$C$2","v":0},{"$f":"'Debt allocations'!AF18*'Debt Dollars FY22'!$C$2","v":0},{"$f":"'Debt allocations'!AG18*'Debt Dollars FY22'!$C$2","v":0},{"$f":"'Debt allocations'!AH18*'Debt Dollars FY22'!$C$2","v":0},{"$f":"'Debt allocations'!AI18*'Debt Dollars FY22'!$C$2","v":0},{"$f":"'Debt allocations'!AJ18*'Debt Dollars FY22'!$C$2","v":0},{"$f":"'Debt allocations'!AK18*'Debt Dollars FY22'!$C$2","v":0},{"$f":"'Debt allocations'!AL18*'Debt Dollars FY22'!$C$2","v":0},{"$f":"'Debt allocations'!AM18*'Debt Dollars FY22'!$C$2","v":0},{"$f":"'Debt allocations'!AN18*'Debt Dollars FY22'!$C$2","v":0}]
["055 - Administrative Office of the Courts","055","Administrative Office of the Courts",9.9999999999999998E-20,1E-8,0,{"$f":"'Debt allocations'!G19*'Debt Dollars FY22'!$C$2","v":0},{"$f":"'Debt allocations'!H19*'Debt Dollars FY22'!$C$2","v":0},{"$f":"'Debt allocations'!I19*'Debt Dollars FY22'!$C$2","v":0},{"$f":"'Debt allocations'!J19*'Debt Dollars FY22'!$C$2","v":0},{"$f":"'Debt allocations'!K19*'Debt Dollars FY22'!$C$2","v":0},{"$f":"'Debt allocations'!L19*'Debt Dollars FY22'!$C$2","v":0},{"$f":"'Debt allocations'!M19*'Debt Dollars FY22'!$C$2","v":0},{"$f":"'Debt allocations'!N19*'Debt Dollars FY22'!$C$2","v":0},{"$f":"'Debt allocations'!O19*'Debt Dollars FY22'!$C$2","v":0},{"$f":"'Debt allocations'!P19*'Debt Dollars FY22'!$C$2","v":0},{"$f":"'Debt allocations'!Q19*'Debt Dollars FY22'!$C$2","v":0},{"$f":"'Debt allocations'!R19*'Debt Dollars FY22'!$C$2","v":0},{"$f":"'Debt allocations'!S19*'Debt Dollars FY22'!$C$2","v":0},{"$f":"'Debt allocations'!T19*'Debt Dollars FY22'!$C$2","v":0},{"$f":"'Debt allocations'!U19*'Debt Dollars FY22'!$C$2","v":0},{"$f":"'Debt allocations'!V19*'Debt Dollars FY22'!$C$2","v":0},{"$f":"'Debt allocations'!W19*'Debt Dollars FY22'!$C$2","v":0},{"$f":"'Debt allocations'!X19*'Debt Dollars FY22'!$C$2","v":0},{"$f":"'Debt allocations'!Y19*'Debt Dollars FY22'!$C$2","v":0},{"$f":"'Debt allocations'!Z19*'Debt Dollars FY22'!$C$2","v":0},{"$f":"'Debt allocations'!AA19*'Debt Dollars FY22'!$C$2","v":0},{"$f":"'Debt allocations'!AB19*'Debt Dollars FY22'!$C$2","v":0},{"$f":"'Debt allocations'!AC19*'Debt Dollars FY22'!$C$2","v":0},{"$f":"'Debt allocations'!AD19*'Debt Dollars FY22'!$C$2","v":0},{"$f":"'Debt allocations'!AE19*'Debt Dollars FY22'!$C$2","v":0},{"$f":"'Debt allocations'!AF19*'Debt Dollars FY22'!$C$2","v":0},{"$f":"'Debt allocations'!AG19*'Debt Dollars FY22'!$C$2","v":0},{"$f":"'Debt allocations'!AH19*'Debt Dollars FY22'!$C$2","v":0},{"$f":"'Debt allocations'!AI19*'Debt Dollars FY22'!$C$2","v":0},{"$f":"'Debt allocations'!AJ19*'Debt Dollars FY22'!$C$2","v":0},{"$f":"'Debt allocations'!AK19*'Debt Dollars FY22'!$C$2","v":0},{"$f":"'Debt allocations'!AL19*'Debt Dollars FY22'!$C$2","v":0},{"$f":"'Debt allocations'!AM19*'Debt Dollars FY22'!$C$2","v":0},{"$f":"'Debt allocations'!AN19*'Debt Dollars FY22'!$C$2","v":0}]
["056 - Office of Public Defense","056","Office of Public Defense",9.9999999999999998E-20,1E-8,0,{"$f":"'Debt allocations'!G20*'Debt Dollars FY22'!$C$2","v":0},{"$f":"'Debt allocations'!H20*'Debt Dollars FY22'!$C$2","v":0},{"$f":"'Debt allocations'!I20*'Debt Dollars FY22'!$C$2","v":0},{"$f":"'Debt allocations'!J20*'Debt Dollars FY22'!$C$2","v":0},{"$f":"'Debt allocations'!K20*'Debt Dollars FY22'!$C$2","v":0},{"$f":"'Debt allocations'!L20*'Debt Dollars FY22'!$C$2","v":0},{"$f":"'Debt allocations'!M20*'Debt Dollars FY22'!$C$2","v":0},{"$f":"'Debt allocations'!N20*'Debt Dollars FY22'!$C$2","v":0},{"$f":"'Debt allocations'!O20*'Debt Dollars FY22'!$C$2","v":0},{"$f":"'Debt allocations'!P20*'Debt Dollars FY22'!$C$2","v":0},{"$f":"'Debt allocations'!Q20*'Debt Dollars FY22'!$C$2","v":0},{"$f":"'Debt allocations'!R20*'Debt Dollars FY22'!$C$2","v":0},{"$f":"'Debt allocations'!S20*'Debt Dollars FY22'!$C$2","v":0},{"$f":"'Debt allocations'!T20*'Debt Dollars FY22'!$C$2","v":0},{"$f":"'Debt allocations'!U20*'Debt Dollars FY22'!$C$2","v":0},{"$f":"'Debt allocations'!V20*'Debt Dollars FY22'!$C$2","v":0},{"$f":"'Debt allocations'!W20*'Debt Dollars FY22'!$C$2","v":0},{"$f":"'Debt allocations'!X20*'Debt Dollars FY22'!$C$2","v":0},{"$f":"'Debt allocations'!Y20*'Debt Dollars FY22'!$C$2","v":0},{"$f":"'Debt allocations'!Z20*'Debt Dollars FY22'!$C$2","v":0},{"$f":"'Debt allocations'!AA20*'Debt Dollars FY22'!$C$2","v":0},{"$f":"'Debt allocations'!AB20*'Debt Dollars FY22'!$C$2","v":0},{"$f":"'Debt allocations'!AC20*'Debt Dollars FY22'!$C$2","v":0},{"$f":"'Debt allocations'!AD20*'Debt Dollars FY22'!$C$2","v":0},{"$f":"'Debt allocations'!AE20*'Debt Dollars FY22'!$C$2","v":0},{"$f":"'Debt allocations'!AF20*'Debt Dollars FY22'!$C$2","v":0},{"$f":"'Debt allocations'!AG20*'Debt Dollars FY22'!$C$2","v":0},{"$f":"'Debt allocations'!AH20*'Debt Dollars FY22'!$C$2","v":0},{"$f":"'Debt allocations'!AI20*'Debt Dollars FY22'!$C$2","v":0},{"$f":"'Debt allocations'!AJ20*'Debt Dollars FY22'!$C$2","v":0},{"$f":"'Debt allocations'!AK20*'Debt Dollars FY22'!$C$2","v":0},{"$f":"'Debt allocations'!AL20*'Debt Dollars FY22'!$C$2","v":0},{"$f":"'Debt allocations'!AM20*'Debt Dollars FY22'!$C$2","v":0},{"$f":"'Debt allocations'!AN20*'Debt Dollars FY22'!$C$2","v":0}]
["057 - Office of Civil Legal Aid","057","Office of Civil Legal Aid",9.9999999999999998E-20,1E-8,0,{"$f":"'Debt allocations'!G21*'Debt Dollars FY22'!$C$2","v":0},{"$f":"'Debt allocations'!H21*'Debt Dollars FY22'!$C$2","v":0},{"$f":"'Debt allocations'!I21*'Debt Dollars FY22'!$C$2","v":0},{"$f":"'Debt allocations'!J21*'Debt Dollars FY22'!$C$2","v":0},{"$f":"'Debt allocations'!K21*'Debt Dollars FY22'!$C$2","v":0},{"$f":"'Debt allocations'!L21*'Debt Dollars FY22'!$C$2","v":0},{"$f":"'Debt allocations'!M21*'Debt Dollars FY22'!$C$2","v":0},{"$f":"'Debt allocations'!N21*'Debt Dollars FY22'!$C$2","v":0},{"$f":"'Debt allocations'!O21*'Debt Dollars FY22'!$C$2","v":0},{"$f":"'Debt allocations'!P21*'Debt Dollars FY22'!$C$2","v":0},{"$f":"'Debt allocations'!Q21*'Debt Dollars FY22'!$C$2","v":0},{"$f":"'Debt allocations'!R21*'Debt Dollars FY22'!$C$2","v":0},{"$f":"'Debt allocations'!S21*'Debt Dollars FY22'!$C$2","v":0},{"$f":"'Debt allocations'!T21*'Debt Dollars FY22'!$C$2","v":0},{"$f":"'Debt allocations'!U21*'Debt Dollars FY22'!$C$2","v":0},{"$f":"'Debt allocations'!V21*'Debt Dollars FY22'!$C$2","v":0},{"$f":"'Debt allocations'!W21*'Debt Dollars FY22'!$C$2","v":0},{"$f":"'Debt allocations'!X21*'Debt Dollars FY22'!$C$2","v":0},{"$f":"'Debt allocations'!Y21*'Debt Dollars FY22'!$C$2","v":0},{"$f":"'Debt allocations'!Z21*'Debt Dollars FY22'!$C$2","v":0},{"$f":"'Debt allocations'!AA21*'Debt Dollars FY22'!$C$2","v":0},{"$f":"'Debt allocations'!AB21*'Debt Dollars FY22'!$C$2","v":0},{"$f":"'Debt allocations'!AC21*'Debt Dollars FY22'!$C$2","v":0},{"$f":"'Debt allocations'!AD21*'Debt Dollars FY22'!$C$2","v":0},{"$f":"'Debt allocations'!AE21*'Debt Dollars FY22'!$C$2","v":0},{"$f":"'Debt allocations'!AF21*'Debt Dollars FY22'!$C$2","v":0},{"$f":"'Debt allocations'!AG21*'Debt Dollars FY22'!$C$2","v":0},{"$f":"'Debt allocations'!AH21*'Debt Dollars FY22'!$C$2","v":0},{"$f":"'Debt allocations'!AI21*'Debt Dollars FY22'!$C$2","v":0},{"$f":"'Debt allocations'!AJ21*'Debt Dollars FY22'!$C$2","v":0},{"$f":"'Debt allocations'!AK21*'Debt Dollars FY22'!$C$2","v":0},{"$f":"'Debt allocations'!AL21*'Debt Dollars FY22'!$C$2","v":0},{"$f":"'Debt allocations'!AM21*'Debt Dollars FY22'!$C$2","v":0},{"$f":"'Debt allocations'!AN21*'Debt Dollars FY22'!$C$2","v":0}]
["075 - Office of the Governor","075","Office of the Governor",9.9999999999999998E-20,1E-8,0,{"$f":"'Debt allocations'!G22*'Debt Dollars FY22'!$C$2","v":0},{"$f":"'Debt allocations'!H22*'Debt Dollars FY22'!$C$2","v":0},{"$f":"'Debt allocations'!I22*'Debt Dollars FY22'!$C$2","v":0},{"$f":"'Debt allocations'!J22*'Debt Dollars FY22'!$C$2","v":0},{"$f":"'Debt allocations'!K22*'Debt Dollars FY22'!$C$2","v":0},{"$f":"'Debt allocations'!L22*'Debt Dollars FY22'!$C$2","v":0},{"$f":"'Debt allocations'!M22*'Debt Dollars FY22'!$C$2","v":0},{"$f":"'Debt allocations'!N22*'Debt Dollars FY22'!$C$2","v":0},{"$f":"'Debt allocations'!O22*'Debt Dollars FY22'!$C$2","v":0},{"$f":"'Debt allocations'!P22*'Debt Dollars FY22'!$C$2","v":0},{"$f":"'Debt allocations'!Q22*'Debt Dollars FY22'!$C$2","v":0},{"$f":"'Debt allocations'!R22*'Debt Dollars FY22'!$C$2","v":0},{"$f":"'Debt allocations'!S22*'Debt Dollars FY22'!$C$2","v":0},{"$f":"'Debt allocations'!T22*'Debt Dollars FY22'!$C$2","v":0},{"$f":"'Debt allocations'!U22*'Debt Dollars FY22'!$C$2","v":0},{"$f":"'Debt allocations'!V22*'Debt Dollars FY22'!$C$2","v":0},{"$f":"'Debt allocations'!W22*'Debt Dollars FY22'!$C$2","v":0},{"$f":"'Debt allocations'!X22*'Debt Dollars FY22'!$C$2","v":0},{"$f":"'Debt allocations'!Y22*'Debt Dollars FY22'!$C$2","v":0},{"$f":"'Debt allocations'!Z22*'Debt Dollars FY22'!$C$2","v":0},{"$f":"'Debt allocations'!AA22*'Debt Dollars FY22'!$C$2","v":0},{"$f":"'Debt allocations'!AB22*'Debt Dollars FY22'!$C$2","v":0},{"$f":"'Debt allocations'!AC22*'Debt Dollars FY22'!$C$2","v":0},{"$f":"'Debt allocations'!AD22*'Debt Dollars FY22'!$C$2","v":0},{"$f":"'Debt allocations'!AE22*'Debt Dollars FY22'!$C$2","v":0},{"$f":"'Debt allocations'!AF22*'Debt Dollars FY22'!$C$2","v":0},{"$f":"'Debt allocations'!AG22*'Debt Dollars FY22'!$C$2","v":0},{"$f":"'Debt allocations'!AH22*'Debt Dollars FY22'!$C$2","v":0},{"$f":"'Debt allocations'!AI22*'Debt Dollars FY22'!$C$2","v":0},{"$f":"'Debt allocations'!AJ22*'Debt Dollars FY22'!$C$2","v":0},{"$f":"'Debt allocations'!AK22*'Debt Dollars FY22'!$C$2","v":0},{"$f":"'Debt allocations'!AL22*'Debt Dollars FY22'!$C$2","v":0},{"$f":"'Debt allocations'!AM22*'Debt Dollars FY22'!$C$2","v":0},{"$f":"'Debt allocations'!AN22*'Debt Dollars FY22'!$C$2","v":0}]
["080 - Office of Lieutenant Governor","080","Office of Lieutenant Governor",9.9999999999999998E-20,1E-8,0,{"$f":"'Debt allocations'!G23*'Debt Dollars FY22'!$C$2","v":0},{"$f":"'Debt allocations'!H23*'Debt Dollars FY22'!$C$2","v":0},{"$f":"'Debt allocations'!I23*'Debt Dollars FY22'!$C$2","v":0},{"$f":"'Debt allocations'!J23*'Debt Dollars FY22'!$C$2","v":0},{"$f":"'Debt allocations'!K23*'Debt Dollars FY22'!$C$2","v":0},{"$f":"'Debt allocations'!L23*'Debt Dollars FY22'!$C$2","v":0},{"$f":"'Debt allocations'!M23*'Debt Dollars FY22'!$C$2","v":0},{"$f":"'Debt allocations'!N23*'Debt Dollars FY22'!$C$2","v":0},{"$f":"'Debt allocations'!O23*'Debt Dollars FY22'!$C$2","v":0},{"$f":"'Debt allocations'!P23*'Debt Dollars FY22'!$C$2","v":0},{"$f":"'Debt allocations'!Q23*'Debt Dollars FY22'!$C$2","v":0},{"$f":"'Debt allocations'!R23*'Debt Dollars FY22'!$C$2","v":0},{"$f":"'Debt allocations'!S23*'Debt Dollars FY22'!$C$2","v":0},{"$f":"'Debt allocations'!T23*'Debt Dollars FY22'!$C$2","v":0},{"$f":"'Debt allocations'!U23*'Debt Dollars FY22'!$C$2","v":0},{"$f":"'Debt allocations'!V23*'Debt Dollars FY22'!$C$2","v":0},{"$f":"'Debt allocations'!W23*'Debt Dollars FY22'!$C$2","v":0},{"$f":"'Debt allocations'!X23*'Debt Dollars FY22'!$C$2","v":0},{"$f":"'Debt allocations'!Y23*'Debt Dollars FY22'!$C$2","v":0},{"$f":"'Debt allocations'!Z23*'Debt Dollars FY22'!$C$2","v":0},{"$f":"'Debt allocations'!AA23*'Debt Dollars FY22'!$C$2","v":0},{"$f":"'Debt allocations'!AB23*'Debt Dollars FY22'!$C$2","v":0},{"$f":"'Debt allocations'!AC23*'Debt Dollars FY22'!$C$2","v":0},{"$f":"'Debt allocations'!AD23*'Debt Dollars FY22'!$C$2","v":0},{"$f":"'Debt allocations'!AE23*'Debt Dollars FY22'!$C$2","v":0},{"$f":"'Debt allocations'!AF23*'Debt Dollars FY22'!$C$2","v":0},{"$f":"'Debt allocations'!AG23*'Debt Dollars FY22'!$C$2","v":0},{"$f":"'Debt allocations'!AH23*'Debt Dollars FY22'!$C$2","v":0},{"$f":"'Debt allocations'!AI23*'Debt Dollars FY22'!$C$2","v":0},{"$f":"'Debt allocations'!AJ23*'Debt Dollars FY22'!$C$2","v":0},{"$f":"'Debt allocations'!AK23*'Debt Dollars FY22'!$C$2","v":0},{"$f":"'Debt allocations'!AL23*'Debt Dollars FY22'!$C$2","v":0},{"$f":"'Debt allocations'!AM23*'Debt Dollars FY22'!$C$2","v":0},{"$f":"'Debt allocations'!AN23*'Debt Dollars FY22'!$C$2","v":0}]
["082 - Public Disclosure Commission","082","Public Disclosure Commission",9.9999999999999998E-20,1E-8,0,{"$f":"'Debt allocations'!G24*'Debt Dollars FY22'!$C$2","v":0},{"$f":"'Debt allocations'!H24*'Debt Dollars FY22'!$C$2","v":0},{"$f":"'Debt allocations'!I24*'Debt Dollars FY22'!$C$2","v":0},{"$f":"'Debt allocations'!J24*'Debt Dollars FY22'!$C$2","v":0},{"$f":"'Debt allocations'!K24*'Debt Dollars FY22'!$C$2","v":0},{"$f":"'Debt allocations'!L24*'Debt Dollars FY22'!$C$2","v":0},{"$f":"'Debt allocations'!M24*'Debt Dollars FY22'!$C$2","v":0},{"$f":"'Debt allocations'!N24*'Debt Dollars FY22'!$C$2","v":0},{"$f":"'Debt allocations'!O24*'Debt Dollars FY22'!$C$2","v":0},{"$f":"'Debt allocations'!P24*'Debt Dollars FY22'!$C$2","v":0},{"$f":"'Debt allocations'!Q24*'Debt Dollars FY22'!$C$2","v":0},{"$f":"'Debt allocations'!R24*'Debt Dollars FY22'!$C$2","v":0},{"$f":"'Debt allocations'!S24*'Debt Dollars FY22'!$C$2","v":0},{"$f":"'Debt allocations'!T24*'Debt Dollars FY22'!$C$2","v":0},{"$f":"'Debt allocations'!U24*'Debt Dollars FY22'!$C$2","v":0},{"$f":"'Debt allocations'!V24*'Debt Dollars FY22'!$C$2","v":0},{"$f":"'Debt allocations'!W24*'Debt Dollars FY22'!$C$2","v":0},{"$f":"'Debt allocations'!X24*'Debt Dollars FY22'!$C$2","v":0},{"$f":"'Debt allocations'!Y24*'Debt Dollars FY22'!$C$2","v":0},{"$f":"'Debt allocations'!Z24*'Debt Dollars FY22'!$C$2","v":0},{"$f":"'Debt allocations'!AA24*'Debt Dollars FY22'!$C$2","v":0},{"$f":"'Debt allocations'!AB24*'Debt Dollars FY22'!$C$2","v":0},{"$f":"'Debt allocations'!AC24*'Debt Dollars FY22'!$C$2","v":0},{"$f":"'Debt allocations'!AD24*'Debt Dollars FY22'!$C$2","v":0},{"$f":"'Debt allocations'!AE24*'Debt Dollars FY22'!$C$2","v":0},{"$f":"'Debt allocations'!AF24*'Debt Dollars FY22'!$C$2","v":0},{"$f":"'Debt allocations'!AG24*'Debt Dollars FY22'!$C$2","v":0},{"$f":"'Debt allocations'!AH24*'Debt Dollars FY22'!$C$2","v":0},{"$f":"'Debt allocations'!AI24*'Debt Dollars FY22'!$C$2","v":0},{"$f":"'Debt allocations'!AJ24*'Debt Dollars FY22'!$C$2","v":0},{"$f":"'Debt allocations'!AK24*'Debt Dollars FY22'!$C$2","v":0},{"$f":"'Debt allocations'!AL24*'Debt Dollars FY22'!$C$2","v":0},{"$f":"'Debt allocations'!AM24*'Debt Dollars FY22'!$C$2","v":0},{"$f":"'Debt allocations'!AN24*'Debt Dollars FY22'!$C$2","v":0}]
["085 - Office of the Secretary of State","085","Office of the Secretary of State",6.7649348999747602E-2,112100,480919.22203920572,{"$f":"'Debt allocations'!G25*'Debt Dollars FY22'!$C$2","v":0},{"$f":"'Debt allocations'!H25*'Debt Dollars FY22'!$C$2","v":0},{"$f":"'Debt allocations'!I25*'Debt Dollars FY22'!$C$2","v":0},{"$f":"'Debt allocations'!J25*'Debt Dollars FY22'!$C$2","v":0},{"$f":"'Debt allocations'!K25*'Debt Dollars FY22'!$C$2","v":0},{"$f":"'Debt allocations'!L25*'Debt Dollars FY22'!$C$2","v":0},{"$f":"'Debt allocations'!M25*'Debt Dollars FY22'!$C$2","v":35936.469405133277},{"$f":"'Debt allocations'!N25*'Debt Dollars FY22'!$C$2","v":0},{"$f":"'Debt allocations'!O25*'Debt Dollars FY22'!$C$2","v":0},{"$f":"'Debt allocations'!P25*'Debt Dollars FY22'!$C$2","v":0},{"$f":"'Debt allocations'!Q25*'Debt Dollars FY22'!$C$2","v":0},{"$f":"'Debt allocations'!R25*'Debt Dollars FY22'!$C$2","v":0},{"$f":"'Debt allocations'!S25*'Debt Dollars FY22'!$C$2","v":0},{"$f":"'Debt allocations'!T25*'Debt Dollars FY22'!$C$2","v":0},{"$f":"'Debt allocations'!U25*'Debt Dollars FY22'!$C$2","v":0},{"$f":"'Debt allocations'!V25*'Debt Dollars FY22'!$C$2","v":318854.47972191003},{"$f":"'Debt allocations'!W25*'Debt Dollars FY22'!$C$2","v":0},{"$f":"'Debt allocations'!X25*'Debt Dollars FY22'!$C$2","v":0},{"$f":"'Debt allocations'!Y25*'Debt Dollars FY22'!$C$2","v":0},{"$f":"'Debt allocations'!Z25*'Debt Dollars FY22'!$C$2","v":0},{"$f":"'Debt allocations'!AA25*'Debt Dollars FY22'!$C$2","v":126128.27291216239},{"$f":"'Debt allocations'!AB25*'Debt Dollars FY22'!$C$2","v":0},{"$f":"'Debt allocations'!AC25*'Debt Dollars FY22'!$C$2","v":0},{"$f":"'Debt allocations'!AD25*'Debt Dollars FY22'!$C$2","v":0},{"$f":"'Debt allocations'!AE25*'Debt Dollars FY22'!$C$2","v":0},{"$f":"'Debt allocations'!AF25*'Debt Dollars FY22'!$C$2","v":0},{"$f":"'Debt allocations'!AG25*'Debt Dollars FY22'!$C$2","v":0},{"$f":"'Debt allocations'!AH25*'Debt Dollars FY22'!$C$2","v":0},{"$f":"'Debt allocations'!AI25*'Debt Dollars FY22'!$C$2","v":0},{"$f":"'Debt allocations'!AJ25*'Debt Dollars FY22'!$C$2","v":0},{"$f":"'Debt allocations'!AK25*'Debt Dollars FY22'!$C$2","v":0},{"$f":"'Debt allocations'!AL25*'Debt Dollars FY22'!$C$2","v":0},{"$f":"'Debt allocations'!AM25*'Debt Dollars FY22'!$C$2","v":0},{"$f":"'Debt allocations'!AN25*'Debt Dollars FY22'!$C$2","v":0}]
["086 - Governor's Office of Indian Affairs","086","Governor's Office of Indian Affairs",1.0292673486150988E-3,1312,7317.061581304737,{"$f":"'Debt allocations'!G26*'Debt Dollars FY22'!$C$2","v":0},{"$f":"'Debt allocations'!H26*'Debt Dollars FY22'!$C$2","v":0},{"$f":"'Debt allocations'!I26*'Debt Dollars FY22'!$C$2","v":0},{"$f":"'Debt allocations'!J26*'Debt Dollars FY22'!$C$2","v":0},{"$f":"'Debt allocations'!K26*'Debt Dollars FY22'!$C$2","v":0},{"$f":"'Debt allocations'!L26*'Debt Dollars FY22'!$C$2","v":0},{"$f":"'Debt allocations'!M26*'Debt Dollars FY22'!$C$2","v":0},{"$f":"'Debt allocations'!N26*'Debt Dollars FY22'!$C$2","v":0},{"$f":"'Debt allocations'!O26*'Debt Dollars FY22'!$C$2","v":0},{"$f":"'Debt allocations'!P26*'Debt Dollars FY22'!$C$2","v":0},{"$f":"'Debt allocations'!Q26*'Debt Dollars FY22'!$C$2","v":0},{"$f":"'Debt allocations'!R26*'Debt Dollars FY22'!$C$2","v":0},{"$f":"'Debt allocations'!S26*'Debt Dollars FY22'!$C$2","v":0},{"$f":"'Debt allocations'!T26*'Debt Dollars FY22'!$C$2","v":0},{"$f":"'Debt allocations'!U26*'Debt Dollars FY22'!$C$2","v":0},{"$f":"'Debt allocations'!V26*'Debt Dollars FY22'!$C$2","v":0},{"$f":"'Debt allocations'!W26*'Debt Dollars FY22'!$C$2","v":0},{"$f":"'Debt allocations'!X26*'Debt Dollars FY22'!$C$2","v":0},{"$f":"'Debt allocations'!Y26*'Debt Dollars FY22'!$C$2","v":0},{"$f":"'Debt allocations'!Z26*'Debt Dollars FY22'!$C$2","v":7317.061581304737},{"$f":"'Debt allocations'!AA26*'Debt Dollars FY22'!$C$2","v":0},{"$f":"'Debt allocations'!AB26*'Debt Dollars FY22'!$C$2","v":0},{"$f":"'Debt allocations'!AC26*'Debt Dollars FY22'!$C$2","v":0},{"$f":"'Debt allocations'!AD26*'Debt Dollars FY22'!$C$2","v":0},{"$f":"'Debt allocations'!AE26*'Debt Dollars FY22'!$C$2","v":0},{"$f":"'Debt allocations'!AF26*'Debt Dollars FY22'!$C$2","v":0},{"$f":"'Debt allocations'!AG26*'Debt Dollars FY22'!$C$2","v":0},{"$f":"'Debt allocations'!AH26*'Debt Dollars FY22'!$C$2","v":0},{"$f":"'Debt allocations'!AI26*'Debt Dollars FY22'!$C$2","v":0},{"$f":"'Debt allocations'!AJ26*'Debt Dollars FY22'!$C$2","v":0},{"$f":"'Debt allocations'!AK26*'Debt Dollars FY22'!$C$2","v":0},{"$f":"'Debt allocations'!AL26*'Debt Dollars FY22'!$C$2","v":0},{"$f":"'Debt allocations'!AM26*'Debt Dollars FY22'!$C$2","v":0},{"$f":"'Debt allocations'!AN26*'Debt Dollars FY22'!$C$2","v":0}]
["087 - Commission on Asian Pacific American Affairs","087","Commission on Asian Pacific American Affairs",6.7702570263325479E-4,863,4812.9757200198073,{"$f":"'Debt allocations'!G27*'Debt Dollars FY22'!$C$2","v":0},{"$f":"'Debt allocations'!H27*'Debt Dollars FY22'!$C$2","v":0},{"$f":"'Debt allocations'!I27*'Debt Dollars FY22'!$C$2","v":0},{"$f":"'Debt allocations'!J27*'Debt Dollars FY22'!$C$2","v":0},{"$f":"'Debt allocations'!K27*'Debt Dollars FY22'!$C$2","v":0},{"$f":"'Debt allocations'!L27*'Debt Dollars FY22'!$C$2","v":0},{"$f":"'Debt allocations'!M27*'Debt Dollars FY22'!$C$2","v":0},{"$f":"'Debt allocations'!N27*'Debt Dollars FY22'!$C$2","v":0},{"$f":"'Debt allocations'!O27*'Debt Dollars FY22'!$C$2","v":0},{"$f":"'Debt allocations'!P27*'Debt Dollars FY22'!$C$2","v":0},{"$f":"'Debt allocations'!Q27*'Debt Dollars FY22'!$C$2","v":0},{"$f":"'Debt allocations'!R27*'Debt Dollars FY22'!$C$2","v":0},{"$f":"'Debt allocations'!S27*'Debt Dollars FY22'!$C$2","v":0},{"$f":"'Debt allocations'!T27*'Debt Dollars FY22'!$C$2","v":0},{"$f":"'Debt allocations'!U27*'Debt Dollars FY22'!$C$2","v":0},{"$f":"'Debt allocations'!V27*'Debt Dollars FY22'!$C$2","v":0},{"$f":"'Debt allocations'!W27*'Debt Dollars FY22'!$C$2","v":0},{"$f":"'Debt allocations'!X27*'Debt Dollars FY22'!$C$2","v":0},{"$f":"'Debt allocations'!Y27*'Debt Dollars FY22'!$C$2","v":0},{"$f":"'Debt allocations'!Z27*'Debt Dollars FY22'!$C$2","v":4812.9757200198073},{"$f":"'Debt allocations'!AA27*'Debt Dollars FY22'!$C$2","v":0},{"$f":"'Debt allocations'!AB27*'Debt Dollars FY22'!$C$2","v":0},{"$f":"'Debt allocations'!AC27*'Debt Dollars FY22'!$C$2","v":0},{"$f":"'Debt allocations'!AD27*'Debt Dollars FY22'!$C$2","v":0},{"$f":"'Debt allocations'!AE27*'Debt Dollars FY22'!$C$2","v":0},{"$f":"'Debt allocations'!AF27*'Debt Dollars FY22'!$C$2","v":0},{"$f":"'Debt allocations'!AG27*'Debt Dollars FY22'!$C$2","v":0},{"$f":"'Debt allocations'!AH27*'Debt Dollars FY22'!$C$2","v":0},{"$f":"'Debt allocations'!AI27*'Debt Dollars FY22'!$C$2","v":0},{"$f":"'Debt allocations'!AJ27*'Debt Dollars FY22'!$C$2","v":0},{"$f":"'Debt allocations'!AK27*'Debt Dollars FY22'!$C$2","v":0},{"$f":"'Debt allocations'!AL27*'Debt Dollars FY22'!$C$2","v":0},{"$f":"'Debt allocations'!AM27*'Debt Dollars FY22'!$C$2","v":0},{"$f":"'Debt allocations'!AN27*'Debt Dollars FY22'!$C$2","v":0}]
["090 - Office of State Treasurer","090","Office of State Treasurer",4.3261689358776556E-2,12915,307547.34965154249,{"$f":"'Debt allocations'!G28*'Debt Dollars FY22'!$C$2","v":0},{"$f":"'Debt allocations'!H28*'Debt Dollars FY22'!$C$2","v":0},{"$f":"'Debt allocations'!I28*'Debt Dollars FY22'!$C$2","v":0},{"$f":"'Debt allocations'!J28*'Debt Dollars FY22'!$C$2","v":0},{"$f":"'Debt allocations'!K28*'Debt Dollars FY22'!$C$2","v":0},{"$f":"'Debt allocations'!L28*'Debt Dollars FY22'!$C$2","v":0},{"$f":"'Debt allocations'!M28*'Debt Dollars FY22'!$C$2","v":0},{"$f":"'Debt allocations'!N28*'Debt Dollars FY22'!$C$2","v":0},{"$f":"'Debt allocations'!O28*'Debt Dollars FY22'!$C$2","v":0},{"$f":"'Debt allocations'!P28*'Debt Dollars FY22'!$C$2","v":0},{"$f":"'Debt allocations'!Q28*'Debt Dollars FY22'!$C$2","v":0},{"$f":"'Debt allocations'!R28*'Debt Dollars FY22'!$C$2","v":0},{"$f":"'Debt allocations'!S28*'Debt Dollars FY22'!$C$2","v":0},{"$f":"'Debt allocations'!T28*'Debt Dollars FY22'!$C$2","v":0},{"$f":"'Debt allocations'!U28*'Debt Dollars FY22'!$C$2","v":0},{"$f":"'Debt allocations'!V28*'Debt Dollars FY22'!$C$2","v":0},{"$f":"'Debt allocations'!W28*'Debt Dollars FY22'!$C$2","v":0},{"$f":"'Debt allocations'!X28*'Debt Dollars FY22'!$C$2","v":0},{"$f":"'Debt allocations'!Y28*'Debt Dollars FY22'!$C$2","v":0},{"$f":"'Debt allocations'!Z28*'Debt Dollars FY22'!$C$2","v":0},{"$f":"'Debt allocations'!AA28*'Debt Dollars FY22'!$C$2","v":0},{"$f":"'Debt allocations'!AB28*'Debt Dollars FY22'!$C$2","v":0},{"$f":"'Debt allocations'!AC28*'Debt Dollars FY22'!$C$2","v":0},{"$f":"'Debt allocations'!AD28*'Debt Dollars FY22'!$C$2","v":0},{"$f":"'Debt allocations'!AE28*'Debt Dollars FY22'!$C$2","v":0},{"$f":"'Debt allocations'!AF28*'Debt Dollars FY22'!$C$2","v":0},{"$f":"'Debt allocations'!AG28*'Debt Dollars FY22'!$C$2","v":0},{"$f":"'Debt allocations'!AH28*'Debt Dollars FY22'!$C$2","v":307547.34965154249},{"$f":"'Debt allocations'!AI28*'Debt Dollars FY22'!$C$2","v":0},{"$f":"'Debt allocations'!AJ28*'Debt Dollars FY22'!$C$2","v":0},{"$f":"'Debt allocations'!AK28*'Debt Dollars FY22'!$C$2","v":0},{"$f":"'Debt allocations'!AL28*'Debt Dollars FY22'!$C$2","v":0},{"$f":"'Debt allocations'!AM28*'Debt Dollars FY22'!$C$2","v":0},{"$f":"'Debt allocations'!AN28*'Debt Dollars FY22'!$C$2","v":0}]
["095 - Office of State Auditor","095","Office of State Auditor",1.6392958284400325E-3,4422,11653.754044380192,{"$f":"'Debt allocations'!G29*'Debt Dollars FY22'!$C$2","v":0},{"$f":"'Debt allocations'!H29*'Debt Dollars FY22'!$C$2","v":0},{"$f":"'Debt allocations'!I29*'Debt Dollars FY22'!$C$2","v":0},{"$f":"'Debt allocations'!J29*'Debt Dollars FY22'!$C$2","v":0},{"$f":"'Debt allocations'!K29*'Debt Dollars FY22'!$C$2","v":0},{"$f":"'Debt allocations'!L29*'Debt Dollars FY22'!$C$2","v":0},{"$f":"'Debt allocations'!M29*'Debt Dollars FY22'!$C$2","v":0},{"$f":"'Debt allocations'!N29*'Debt Dollars FY22'!$C$2","v":0},{"$f":"'Debt allocations'!O29*'Debt Dollars FY22'!$C$2","v":0},{"$f":"'Debt allocations'!P29*'Debt Dollars FY22'!$C$2","v":0},{"$f":"'Debt allocations'!Q29*'Debt Dollars FY22'!$C$2","v":0},{"$f":"'Debt allocations'!R29*'Debt Dollars FY22'!$C$2","v":0},{"$f":"'Debt allocations'!S29*'Debt Dollars FY22'!$C$2","v":0},{"$f":"'Debt allocations'!T29*'Debt Dollars FY22'!$C$2","v":0},{"$f":"'Debt allocations'!U29*'Debt Dollars FY22'!$C$2","v":0},{"$f":"'Debt allocations'!V29*'Debt Dollars FY22'!$C$2","v":0},{"$f":"'Debt allocations'!W29*'Debt Dollars FY22'!$C$2","v":0},{"$f":"'Debt allocations'!X29*'Debt Dollars FY22'!$C$2","v":0},{"$f":"'Debt allocations'!Y29*'Debt Dollars FY22'!$C$2","v":0},{"$f":"'Debt allocations'!Z29*'Debt Dollars FY22'!$C$2","v":0},{"$f":"'Debt allocations'!AA29*'Debt Dollars FY22'!$C$2","v":0},{"$f":"'Debt allocations'!AB29*'Debt Dollars FY22'!$C$2","v":0},{"$f":"'Debt allocations'!AC29*'Debt Dollars FY22'!$C$2","v":0},{"$f":"'Debt allocations'!AD29*'Debt Dollars FY22'!$C$2","v":0},{"$f":"'Debt allocations'!AE29*'Debt Dollars FY22'!$C$2","v":0},{"$f":"'Debt allocations'!AF29*'Debt Dollars FY22'!$C$2","v":0},{"$f":"'Debt allocations'!AG29*'Debt Dollars FY22'!$C$2","v":0},{"$f":"'Debt allocations'!AH29*'Debt Dollars FY22'!$C$2","v":0},{"$f":"'Debt allocations'!AI29*'Debt Dollars FY22'!$C$2","v":0},{"$f":"'Debt allocations'!AJ29*'Debt Dollars FY22'!$C$2","v":0},{"$f":"'Debt allocations'!AK29*'Debt Dollars FY22'!$C$2","v":0},{"$f":"'Debt allocations'!AL29*'Debt Dollars FY22'!$C$2","v":11653.754044380192},{"$f":"'Debt allocations'!AM29*'Debt Dollars FY22'!$C$2","v":0},{"$f":"'Debt allocations'!AN29*'Debt Dollars FY22'!$C$2","v":0}]
["099 - Citizens' Commission on Salaries for Elected Officials","099","Citizens' Commission on Salaries for Elected Officials",5.2247869983053027E-4,666,3714.3010770952405,{"$f":"'Debt allocations'!G30*'Debt Dollars FY22'!$C$2","v":0},{"$f":"'Debt allocations'!H30*'Debt Dollars FY22'!$C$2","v":0},{"$f":"'Debt allocations'!I30*'Debt Dollars FY22'!$C$2","v":0},{"$f":"'Debt allocations'!J30*'Debt Dollars FY22'!$C$2","v":0},{"$f":"'Debt allocations'!K30*'Debt Dollars FY22'!$C$2","v":0},{"$f":"'Debt allocations'!L30*'Debt Dollars FY22'!$C$2","v":0},{"$f":"'Debt allocations'!M30*'Debt Dollars FY22'!$C$2","v":0},{"$f":"'Debt allocations'!N30*'Debt Dollars FY22'!$C$2","v":0},{"$f":"'Debt allocations'!O30*'Debt Dollars FY22'!$C$2","v":0},{"$f":"'Debt allocations'!P30*'Debt Dollars FY22'!$C$2","v":0},{"$f":"'Debt allocations'!Q30*'Debt Dollars FY22'!$C$2","v":0},{"$f":"'Debt allocations'!R30*'Debt Dollars FY22'!$C$2","v":0},{"$f":"'Debt allocations'!S30*'Debt Dollars FY22'!$C$2","v":0},{"$f":"'Debt allocations'!T30*'Debt Dollars FY22'!$C$2","v":0},{"$f":"'Debt allocations'!U30*'Debt Dollars FY22'!$C$2","v":0},{"$f":"'Debt allocations'!V30*'Debt Dollars FY22'!$C$2","v":0},{"$f":"'Debt allocations'!W30*'Debt Dollars FY22'!$C$2","v":0},{"$f":"'Debt allocations'!X30*'Debt Dollars FY22'!$C$2","v":0},{"$f":"'Debt allocations'!Y30*'Debt Dollars FY22'!$C$2","v":0},{"$f":"'Debt allocations'!Z30*'Debt Dollars FY22'!$C$2","v":3714.3010770952405},{"$f":"'Debt allocations'!AA30*'Debt Dollars FY22'!$C$2","v":0},{"$f":"'Debt allocations'!AB30*'Debt Dollars FY22'!$C$2","v":0},{"$f":"'Debt allocations'!AC30*'Debt Dollars FY22'!$C$2","v":0},{"$f":"'Debt allocations'!AD30*'Debt Dollars FY22'!$C$2","v":0},{"$f":"'Debt allocations'!AE30*'Debt Dollars FY22'!$C$2","v":0},{"$f":"'Debt allocations'!AF30*'Debt Dollars FY22'!$C$2","v":0},{"$f":"'Debt allocations'!AG30*'Debt Dollars FY22'!$C$2","v":0},{"$f":"'Debt allocations'!AH30*'Debt Dollars FY22'!$C$2","v":0},{"$f":"'Debt allocations'!AI30*'Debt Dollars FY22'!$C$2","v":0},{"$f":"'Debt allocations'!AJ30*'Debt Dollars FY22'!$C$2","v":0},{"$f":"'Debt allocations'!AK30*'Debt Dollars FY22'!$C$2","v":0},{"$f":"'Debt allocations'!AL30*'Debt Dollars FY22'!$C$2","v":0},{"$f":"'Debt allocations'!AM30*'Debt Dollars FY22'!$C$2","v":0},{"$f":"'Debt allocations'!AN30*'Debt Dollars FY22'!$C$2","v":0}]
["100 - Office of Attorney General","100","Office of Attorney General",1.474348571835094E-2,72639,104811.43997175683,{"$f":"'Debt allocations'!G31*'Debt Dollars FY22'!$C$2","v":0},{"$f":"'Debt allocations'!H31*'Debt Dollars FY22'!$C$2","v":0},{"$f":"'Debt allocations'!I31*'Debt Dollars FY22'!$C$2","v":0},{"$f":"'Debt allocations'!J31*'Debt Dollars FY22'!$C$2","v":0},{"$f":"'Debt allocations'!K31*'Debt Dollars FY22'!$C$2","v":104811.43997175683},{"$f":"'Debt allocations'!L31*'Debt Dollars FY22'!$C$2","v":0},{"$f":"'Debt allocations'!M31*'Debt Dollars FY22'!$C$2","v":0},{"$f":"'Debt allocations'!N31*'Debt Dollars FY22'!$C$2","v":0},{"$f":"'Debt allocations'!O31*'Debt Dollars FY22'!$C$2","v":0},{"$f":"'Debt allocations'!P31*'Debt Dollars FY22'!$C$2","v":0},{"$f":"'Debt allocations'!Q31*'Debt Dollars FY22'!$C$2","v":0},{"$f":"'Debt allocations'!R31*'Debt Dollars FY22'!$C$2","v":0},{"$f":"'Debt allocations'!S31*'Debt Dollars FY22'!$C$2","v":0},{"$f":"'Debt allocations'!T31*'Debt Dollars FY22'!$C$2","v":0},{"$f":"'Debt allocations'!U31*'Debt Dollars FY22'!$C$2","v":0},{"$f":"'Debt allocations'!V31*'Debt Dollars FY22'!$C$2","v":0},{"$f":"'Debt allocations'!W31*'Debt Dollars FY22'!$C$2","v":0},{"$f":"'Debt allocations'!X31*'Debt Dollars FY22'!$C$2","v":0},{"$f":"'Debt allocations'!Y31*'Debt Dollars FY22'!$C$2","v":0},{"$f":"'Debt allocations'!Z31*'Debt Dollars FY22'!$C$2","v":0},{"$f":"'Debt allocations'!AA31*'Debt Dollars FY22'!$C$2","v":0},{"$f":"'Debt allocations'!AB31*'Debt Dollars FY22'!$C$2","v":0},{"$f":"'Debt allocations'!AC31*'Debt Dollars FY22'!$C$2","v":0},{"$f":"'Debt allocations'!AD31*'Debt Dollars FY22'!$C$2","v":0},{"$f":"'Debt allocations'!AE31*'Debt Dollars FY22'!$C$2","v":0},{"$f":"'Debt allocations'!AF31*'Debt Dollars FY22'!$C$2","v":0},{"$f":"'Debt allocations'!AG31*'Debt Dollars FY22'!$C$2","v":0},{"$f":"'Debt allocations'!AH31*'Debt Dollars FY22'!$C$2","v":0},{"$f":"'Debt allocations'!AI31*'Debt Dollars FY22'!$C$2","v":0},{"$f":"'Debt allocations'!AJ31*'Debt Dollars FY22'!$C$2","v":0},{"$f":"'Debt allocations'!AK31*'Debt Dollars FY22'!$C$2","v":0},{"$f":"'Debt allocations'!AL31*'Debt Dollars FY22'!$C$2","v":0},{"$f":"'Debt allocations'!AM31*'Debt Dollars FY22'!$C$2","v":0},{"$f":"'Debt allocations'!AN31*'Debt Dollars FY22'!$C$2","v":0}]
["101 - Caseload Forecast Council","101","Caseload Forecast Council",4.0464641647535663E-3,5158,28766.313747233104,{"$f":"'Debt allocations'!G32*'Debt Dollars FY22'!$C$2","v":0},{"$f":"'Debt allocations'!H32*'Debt Dollars FY22'!$C$2","v":0},{"$f":"'Debt allocations'!I32*'Debt Dollars FY22'!$C$2","v":0},{"$f":"'Debt allocations'!J32*'Debt Dollars FY22'!$C$2","v":0},{"$f":"'Debt allocations'!K32*'Debt Dollars FY22'!$C$2","v":0},{"$f":"'Debt allocations'!L32*'Debt Dollars FY22'!$C$2","v":0},{"$f":"'Debt allocations'!M32*'Debt Dollars FY22'!$C$2","v":0},{"$f":"'Debt allocations'!N32*'Debt Dollars FY22'!$C$2","v":0},{"$f":"'Debt allocations'!O32*'Debt Dollars FY22'!$C$2","v":0},{"$f":"'Debt allocations'!P32*'Debt Dollars FY22'!$C$2","v":0},{"$f":"'Debt allocations'!Q32*'Debt Dollars FY22'!$C$2","v":0},{"$f":"'Debt allocations'!R32*'Debt Dollars FY22'!$C$2","v":0},{"$f":"'Debt allocations'!S32*'Debt Dollars FY22'!$C$2","v":0},{"$f":"'Debt allocations'!T32*'Debt Dollars FY22'!$C$2","v":0},{"$f":"'Debt allocations'!U32*'Debt Dollars FY22'!$C$2","v":0},{"$f":"'Debt allocations'!V32*'Debt Dollars FY22'!$C$2","v":0},{"$f":"'Debt allocations'!W32*'Debt Dollars FY22'!$C$2","v":0},{"$f":"'Debt allocations'!X32*'Debt Dollars FY22'!$C$2","v":0},{"$f":"'Debt allocations'!Y32*'Debt Dollars FY22'!$C$2","v":0},{"$f":"'Debt allocations'!Z32*'Debt Dollars FY22'!$C$2","v":28766.313747233104},{"$f":"'Debt allocations'!AA32*'Debt Dollars FY22'!$C$2","v":0},{"$f":"'Debt allocations'!AB32*'Debt Dollars FY22'!$C$2","v":0},{"$f":"'Debt allocations'!AC32*'Debt Dollars FY22'!$C$2","v":0},{"$f":"'Debt allocations'!AD32*'Debt Dollars FY22'!$C$2","v":0},{"$f":"'Debt allocations'!AE32*'Debt Dollars FY22'!$C$2","v":0},{"$f":"'Debt allocations'!AF32*'Debt Dollars FY22'!$C$2","v":0},{"$f":"'Debt allocations'!AG32*'Debt Dollars FY22'!$C$2","v":0},{"$f":"'Debt allocations'!AH32*'Debt Dollars FY22'!$C$2","v":0},{"$f":"'Debt allocations'!AI32*'Debt Dollars FY22'!$C$2","v":0},{"$f":"'Debt allocations'!AJ32*'Debt Dollars FY22'!$C$2","v":0},{"$f":"'Debt allocations'!AK32*'Debt Dollars FY22'!$C$2","v":0},{"$f":"'Debt allocations'!AL32*'Debt Dollars FY22'!$C$2","v":0},{"$f":"'Debt allocations'!AM32*'Debt Dollars FY22'!$C$2","v":0},{"$f":"'Debt allocations'!AN32*'Debt Dollars FY22'!$C$2","v":0}]
["102 - Department of Financial Institutions","102","Department of Financial Institutions",9.9999999999999998E-20,1E-8,0,{"$f":"'Debt allocations'!G33*'Debt Dollars FY22'!$C$2","v":0},{"$f":"'Debt allocations'!H33*'Debt Dollars FY22'!$C$2","v":0},{"$f":"'Debt allocations'!I33*'Debt Dollars FY22'!$C$2","v":0},{"$f":"'Debt allocations'!J33*'Debt Dollars FY22'!$C$2","v":0},{"$f":"'Debt allocations'!K33*'Debt Dollars FY22'!$C$2","v":0},{"$f":"'Debt allocations'!L33*'Debt Dollars FY22'!$C$2","v":0},{"$f":"'Debt allocations'!M33*'Debt Dollars FY22'!$C$2","v":0},{"$f":"'Debt allocations'!N33*'Debt Dollars FY22'!$C$2","v":0},{"$f":"'Debt allocations'!O33*'Debt Dollars FY22'!$C$2","v":0},{"$f":"'Debt allocations'!P33*'Debt Dollars FY22'!$C$2","v":0},{"$f":"'Debt allocations'!Q33*'Debt Dollars FY22'!$C$2","v":0},{"$f":"'Debt allocations'!R33*'Debt Dollars FY22'!$C$2","v":0},{"$f":"'Debt allocations'!S33*'Debt Dollars FY22'!$C$2","v":0},{"$f":"'Debt allocations'!T33*'Debt Dollars FY22'!$C$2","v":0},{"$f":"'Debt allocations'!U33*'Debt Dollars FY22'!$C$2","v":0},{"$f":"'Debt allocations'!V33*'Debt Dollars FY22'!$C$2","v":0},{"$f":"'Debt allocations'!W33*'Debt Dollars FY22'!$C$2","v":0},{"$f":"'Debt allocations'!X33*'Debt Dollars FY22'!$C$2","v":0},{"$f":"'Debt allocations'!Y33*'Debt Dollars FY22'!$C$2","v":0},{"$f":"'Debt allocations'!Z33*'Debt Dollars FY22'!$C$2","v":0},{"$f":"'Debt allocations'!AA33*'Debt Dollars FY22'!$C$2","v":0},{"$f":"'Debt allocations'!AB33*'Debt Dollars FY22'!$C$2","v":0},{"$f":"'Debt allocations'!AC33*'Debt Dollars FY22'!$C$2","v":0},{"$f":"'Debt allocations'!AD33*'Debt Dollars FY22'!$C$2","v":0},{"$f":"'Debt allocations'!AE33*'Debt Dollars FY22'!$C$2","v":0},{"$f":"'Debt allocations'!AF33*'Debt Dollars FY22'!$C$2","v":0},{"$f":"'Debt allocations'!AG33*'Debt Dollars FY22'!$C$2","v":0},{"$f":"'Debt allocations'!AH33*'Debt Dollars FY22'!$C$2","v":0},{"$f":"'Debt allocations'!AI33*'Debt Dollars FY22'!$C$2","v":0},{"$f":"'Debt allocations'!AJ33*'Debt Dollars FY22'!$C$2","v":0},{"$f":"'Debt allocations'!AK33*'Debt Dollars FY22'!$C$2","v":0},{"$f":"'Debt allocations'!AL33*'Debt Dollars FY22'!$C$2","v":0},{"$f":"'Debt allocations'!AM33*'Debt Dollars FY22'!$C$2","v":0},{"$f":"'Debt allocations'!AN33*'Debt Dollars FY22'!$C$2","v":0}]
["103 - Department of Commerce","103","Department of Commerce",9.9999999999999998E-20,1E-8,0,{"$f":"'Debt allocations'!G34*'Debt Dollars FY22'!$C$2","v":0},{"$f":"'Debt allocations'!H34*'Debt Dollars FY22'!$C$2","v":0},{"$f":"'Debt allocations'!I34*'Debt Dollars FY22'!$C$2","v":0},{"$f":"'Debt allocations'!J34*'Debt Dollars FY22'!$C$2","v":0},{"$f":"'Debt allocations'!K34*'Debt Dollars FY22'!$C$2","v":0},{"$f":"'Debt allocations'!L34*'Debt Dollars FY22'!$C$2","v":0},{"$f":"'Debt allocations'!M34*'Debt Dollars FY22'!$C$2","v":0},{"$f":"'Debt allocations'!N34*'Debt Dollars FY22'!$C$2","v":0},{"$f":"'Debt allocations'!O34*'Debt Dollars FY22'!$C$2","v":0},{"$f":"'Debt allocations'!P34*'Debt Dollars FY22'!$C$2","v":0},{"$f":"'Debt allocations'!Q34*'Debt Dollars FY22'!$C$2","v":0},{"$f":"'Debt allocations'!R34*'Debt Dollars FY22'!$C$2","v":0},{"$f":"'Debt allocations'!S34*'Debt Dollars FY22'!$C$2","v":0},{"$f":"'Debt allocations'!T34*'Debt Dollars FY22'!$C$2","v":0},{"$f":"'Debt allocations'!U34*'Debt Dollars FY22'!$C$2","v":0},{"$f":"'Debt allocations'!V34*'Debt Dollars FY22'!$C$2","v":0},{"$f":"'Debt allocations'!W34*'Debt Dollars FY22'!$C$2","v":0},{"$f":"'Debt allocations'!X34*'Debt Dollars FY22'!$C$2","v":0},{"$f":"'Debt allocations'!Y34*'Debt Dollars FY22'!$C$2","v":0},{"$f":"'Debt allocations'!Z34*'Debt Dollars FY22'!$C$2","v":0},{"$f":"'Debt allocations'!AA34*'Debt Dollars FY22'!$C$2","v":0},{"$f":"'Debt allocations'!AB34*'Debt Dollars FY22'!$C$2","v":0},{"$f":"'Debt allocations'!AC34*'Debt Dollars FY22'!$C$2","v":0},{"$f":"'Debt allocations'!AD34*'Debt Dollars FY22'!$C$2","v":0},{"$f":"'Debt allocations'!AE34*'Debt Dollars FY22'!$C$2","v":0},{"$f":"'Debt allocations'!AF34*'Debt Dollars FY22'!$C$2","v":0},{"$f":"'Debt allocations'!AG34*'Debt Dollars FY22'!$C$2","v":0},{"$f":"'Debt allocations'!AH34*'Debt Dollars FY22'!$C$2","v":0},{"$f":"'Debt allocations'!AI34*'Debt Dollars FY22'!$C$2","v":0},{"$f":"'Debt allocations'!AJ34*'Debt Dollars FY22'!$C$2","v":0},{"$f":"'Debt allocations'!AK34*'Debt Dollars FY22'!$C$2","v":0},{"$f":"'Debt allocations'!AL34*'Debt Dollars FY22'!$C$2","v":0},{"$f":"'Debt allocations'!AM34*'Debt Dollars FY22'!$C$2","v":0},{"$f":"'Debt allocations'!AN34*'Debt Dollars FY22'!$C$2","v":0}]
["104 - Economic and Revenue Forecast Council","104","Economic and Revenue Forecast Council",9.9999999999999998E-20,1E-8,0,{"$f":"'Debt allocations'!G35*'Debt Dollars FY22'!$C$2","v":0},{"$f":"'Debt allocations'!H35*'Debt Dollars FY22'!$C$2","v":0},{"$f":"'Debt allocations'!I35*'Debt Dollars FY22'!$C$2","v":0},{"$f":"'Debt allocations'!J35*'Debt Dollars FY22'!$C$2","v":0},{"$f":"'Debt allocations'!K35*'Debt Dollars FY22'!$C$2","v":0},{"$f":"'Debt allocations'!L35*'Debt Dollars FY22'!$C$2","v":0},{"$f":"'Debt allocations'!M35*'Debt Dollars FY22'!$C$2","v":0},{"$f":"'Debt allocations'!N35*'Debt Dollars FY22'!$C$2","v":0},{"$f":"'Debt allocations'!O35*'Debt Dollars FY22'!$C$2","v":0},{"$f":"'Debt allocations'!P35*'Debt Dollars FY22'!$C$2","v":0},{"$f":"'Debt allocations'!Q35*'Debt Dollars FY22'!$C$2","v":0},{"$f":"'Debt allocations'!R35*'Debt Dollars FY22'!$C$2","v":0},{"$f":"'Debt allocations'!S35*'Debt Dollars FY22'!$C$2","v":0},{"$f":"'Debt allocations'!T35*'Debt Dollars FY22'!$C$2","v":0},{"$f":"'Debt allocations'!U35*'Debt Dollars FY22'!$C$2","v":0},{"$f":"'Debt allocations'!V35*'Debt Dollars FY22'!$C$2","v":0},{"$f":"'Debt allocations'!W35*'Debt Dollars FY22'!$C$2","v":0},{"$f":"'Debt allocations'!X35*'Debt Dollars FY22'!$C$2","v":0},{"$f":"'Debt allocations'!Y35*'Debt Dollars FY22'!$C$2","v":0},{"$f":"'Debt allocations'!Z35*'Debt Dollars FY22'!$C$2","v":0},{"$f":"'Debt allocations'!AA35*'Debt Dollars FY22'!$C$2","v":0},{"$f":"'Debt allocations'!AB35*'Debt Dollars FY22'!$C$2","v":0},{"$f":"'Debt allocations'!AC35*'Debt Dollars FY22'!$C$2","v":0},{"$f":"'Debt allocations'!AD35*'Debt Dollars FY22'!$C$2","v":0},{"$f":"'Debt allocations'!AE35*'Debt Dollars FY22'!$C$2","v":0},{"$f":"'Debt allocations'!AF35*'Debt Dollars FY22'!$C$2","v":0},{"$f":"'Debt allocations'!AG35*'Debt Dollars FY22'!$C$2","v":0},{"$f":"'Debt allocations'!AH35*'Debt Dollars FY22'!$C$2","v":0},{"$f":"'Debt allocations'!AI35*'Debt Dollars FY22'!$C$2","v":0},{"$f":"'Debt allocations'!AJ35*'Debt Dollars FY22'!$C$2","v":0},{"$f":"'Debt allocations'!AK35*'Debt Dollars FY22'!$C$2","v":0},{"$f":"'Debt allocations'!AL35*'Debt Dollars FY22'!$C$2","v":0},{"$f":"'Debt allocations'!AM35*'Debt Dollars FY22'!$C$2","v":0},{"$f":"'Debt allocations'!AN35*'Debt Dollars FY22'!$C$2","v":0}]
["105 - Office of Financial Management","105","Office of Financial Management",8.3886158190521865E-2,25578,596346.69857641996,{"$f":"'Debt allocations'!G36*'Debt Dollars FY22'!$C$2","v":0},{"$f":"'Debt allocations'!H36*'Debt Dollars FY22'!$C$2","v":0},{"$f":"'Debt allocations'!I36*'Debt Dollars FY22'!$C$2","v":0},{"$f":"'Debt allocations'!J36*'Debt Dollars FY22'!$C$2","v":0},{"$f":"'Debt allocations'!K36*'Debt Dollars FY22'!$C$2","v":0},{"$f":"'Debt allocations'!L36*'Debt Dollars FY22'!$C$2","v":0},{"$f":"'Debt allocations'!M36*'Debt Dollars FY22'!$C$2","v":0},{"$f":"'Debt allocations'!N36*'Debt Dollars FY22'!$C$2","v":0},{"$f":"'Debt allocations'!O36*'Debt Dollars FY22'!$C$2","v":0},{"$f":"'Debt allocations'!P36*'Debt Dollars FY22'!$C$2","v":0},{"$f":"'Debt allocations'!Q36*'Debt Dollars FY22'!$C$2","v":0},{"$f":"'Debt allocations'!R36*'Debt Dollars FY22'!$C$2","v":0},{"$f":"'Debt allocations'!S36*'Debt Dollars FY22'!$C$2","v":0},{"$f":"'Debt allocations'!T36*'Debt Dollars FY22'!$C$2","v":0},{"$f":"'Debt allocations'!U36*'Debt Dollars FY22'!$C$2","v":0},{"$f":"'Debt allocations'!V36*'Debt Dollars FY22'!$C$2","v":0},{"$f":"'Debt allocations'!W36*'Debt Dollars FY22'!$C$2","v":0},{"$f":"'Debt allocations'!X36*'Debt Dollars FY22'!$C$2","v":0},{"$f":"'Debt allocations'!Y36*'Debt Dollars FY22'!$C$2","v":0},{"$f":"'Debt allocations'!Z36*'Debt Dollars FY22'!$C$2","v":3898.3430223567161},{"$f":"'Debt allocations'!AA36*'Debt Dollars FY22'!$C$2","v":0},{"$f":"'Debt allocations'!AB36*'Debt Dollars FY22'!$C$2","v":0},{"$f":"'Debt allocations'!AC36*'Debt Dollars FY22'!$C$2","v":0},{"$f":"'Debt allocations'!AD36*'Debt Dollars FY22'!$C$2","v":0},{"$f":"'Debt allocations'!AE36*'Debt Dollars FY22'!$C$2","v":0},{"$f":"'Debt allocations'!AF36*'Debt Dollars FY22'!$C$2","v":0},{"$f":"'Debt allocations'!AG36*'Debt Dollars FY22'!$C$2","v":0},{"$f":"'Debt allocations'!AH36*'Debt Dollars FY22'!$C$2","v":592448.35555406322},{"$f":"'Debt allocations'!AI36*'Debt Dollars FY22'!$C$2","v":0},{"$f":"'Debt allocations'!AJ36*'Debt Dollars FY22'!$C$2","v":0},{"$f":"'Debt allocations'!AK36*'Debt Dollars FY22'!$C$2","v":0},{"$f":"'Debt allocations'!AL36*'Debt Dollars FY22'!$C$2","v":0},{"$f":"'Debt allocations'!AM36*'Debt Dollars FY22'!$C$2","v":0},{"$f":"'Debt allocations'!AN36*'Debt Dollars FY22'!$C$2","v":0}]
["107 - Washington State Health Care Authority","107","Washington State Health Care Authority",9.9999999999999998E-20,1E-8,0,{"$f":"'Debt allocations'!G37*'Debt Dollars FY22'!$C$2","v":0},{"$f":"'Debt allocations'!H37*'Debt Dollars FY22'!$C$2","v":0},{"$f":"'Debt allocations'!I37*'Debt Dollars FY22'!$C$2","v":0},{"$f":"'Debt allocations'!J37*'Debt Dollars FY22'!$C$2","v":0},{"$f":"'Debt allocations'!K37*'Debt Dollars FY22'!$C$2","v":0},{"$f":"'Debt allocations'!L37*'Debt Dollars FY22'!$C$2","v":0},{"$f":"'Debt allocations'!M37*'Debt Dollars FY22'!$C$2","v":0},{"$f":"'Debt allocations'!N37*'Debt Dollars FY22'!$C$2","v":0},{"$f":"'Debt allocations'!O37*'Debt Dollars FY22'!$C$2","v":0},{"$f":"'Debt allocations'!P37*'Debt Dollars FY22'!$C$2","v":0},{"$f":"'Debt allocations'!Q37*'Debt Dollars FY22'!$C$2","v":0},{"$f":"'Debt allocations'!R37*'Debt Dollars FY22'!$C$2","v":0},{"$f":"'Debt allocations'!S37*'Debt Dollars FY22'!$C$2","v":0},{"$f":"'Debt allocations'!T37*'Debt Dollars FY22'!$C$2","v":0},{"$f":"'Debt allocations'!U37*'Debt Dollars FY22'!$C$2","v":0},{"$f":"'Debt allocations'!V37*'Debt Dollars FY22'!$C$2","v":0},{"$f":"'Debt allocations'!W37*'Debt Dollars FY22'!$C$2","v":0},{"$f":"'Debt allocations'!X37*'Debt Dollars FY22'!$C$2","v":0},{"$f":"'Debt allocations'!Y37*'Debt Dollars FY22'!$C$2","v":0},{"$f":"'Debt allocations'!Z37*'Debt Dollars FY22'!$C$2","v":0},{"$f":"'Debt allocations'!AA37*'Debt Dollars FY22'!$C$2","v":0},{"$f":"'Debt allocations'!AB37*'Debt Dollars FY22'!$C$2","v":0},{"$f":"'Debt allocations'!AC37*'Debt Dollars FY22'!$C$2","v":0},{"$f":"'Debt allocations'!AD37*'Debt Dollars FY22'!$C$2","v":0},{"$f":"'Debt allocations'!AE37*'Debt Dollars FY22'!$C$2","v":0},{"$f":"'Debt allocations'!AF37*'Debt Dollars FY22'!$C$2","v":0},{"$f":"'Debt allocations'!AG37*'Debt Dollars FY22'!$C$2","v":0},{"$f":"'Debt allocations'!AH37*'Debt Dollars FY22'!$C$2","v":0},{"$f":"'Debt allocations'!AI37*'Debt Dollars FY22'!$C$2","v":0},{"$f":"'Debt allocations'!AJ37*'Debt Dollars FY22'!$C$2","v":0},{"$f":"'Debt allocations'!AK37*'Debt Dollars FY22'!$C$2","v":0},{"$f":"'Debt allocations'!AL37*'Debt Dollars FY22'!$C$2","v":0},{"$f":"'Debt allocations'!AM37*'Debt Dollars FY22'!$C$2","v":0},{"$f":"'Debt allocations'!AN37*'Debt Dollars FY22'!$C$2","v":0}]
["110 - Office of Administrative Hearings","110","Office of Administrative Hearings",4.1727530178473551E-3,11256,29664.101203876853,{"$f":"'Debt allocations'!G38*'Debt Dollars FY22'!$C$2","v":0},{"$f":"'Debt allocations'!H38*'Debt Dollars FY22'!$C$2","v":0},{"$f":"'Debt allocations'!I38*'Debt Dollars FY22'!$C$2","v":0},{"$f":"'Debt allocations'!J38*'Debt Dollars FY22'!$C$2","v":0},{"$f":"'Debt allocations'!K38*'Debt Dollars FY22'!$C$2","v":0},{"$f":"'Debt allocations'!L38*'Debt Dollars FY22'!$C$2","v":0},{"$f":"'Debt allocations'!M38*'Debt Dollars FY22'!$C$2","v":0},{"$f":"'Debt allocations'!N38*'Debt Dollars FY22'!$C$2","v":0},{"$f":"'Debt allocations'!O38*'Debt Dollars FY22'!$C$2","v":0},{"$f":"'Debt allocations'!P38*'Debt Dollars FY22'!$C$2","v":0},{"$f":"'Debt allocations'!Q38*'Debt Dollars FY22'!$C$2","v":0},{"$f":"'Debt allocations'!R38*'Debt Dollars FY22'!$C$2","v":0},{"$f":"'Debt allocations'!S38*'Debt Dollars FY22'!$C$2","v":0},{"$f":"'Debt allocations'!T38*'Debt Dollars FY22'!$C$2","v":0},{"$f":"'Debt allocations'!U38*'Debt Dollars FY22'!$C$2","v":0},{"$f":"'Debt allocations'!V38*'Debt Dollars FY22'!$C$2","v":0},{"$f":"'Debt allocations'!W38*'Debt Dollars FY22'!$C$2","v":0},{"$f":"'Debt allocations'!X38*'Debt Dollars FY22'!$C$2","v":0},{"$f":"'Debt allocations'!Y38*'Debt Dollars FY22'!$C$2","v":0},{"$f":"'Debt allocations'!Z38*'Debt Dollars FY22'!$C$2","v":0},{"$f":"'Debt allocations'!AA38*'Debt Dollars FY22'!$C$2","v":0},{"$f":"'Debt allocations'!AB38*'Debt Dollars FY22'!$C$2","v":0},{"$f":"'Debt allocations'!AC38*'Debt Dollars FY22'!$C$2","v":0},{"$f":"'Debt allocations'!AD38*'Debt Dollars FY22'!$C$2","v":0},{"$f":"'Debt allocations'!AE38*'Debt Dollars FY22'!$C$2","v":0},{"$f":"'Debt allocations'!AF38*'Debt Dollars FY22'!$C$2","v":0},{"$f":"'Debt allocations'!AG38*'Debt Dollars FY22'!$C$2","v":0},{"$f":"'Debt allocations'!AH38*'Debt Dollars FY22'!$C$2","v":0},{"$f":"'Debt allocations'!AI38*'Debt Dollars FY22'!$C$2","v":0},{"$f":"'Debt allocations'!AJ38*'Debt Dollars FY22'!$C$2","v":0},{"$f":"'Debt allocations'!AK38*'Debt Dollars FY22'!$C$2","v":0},{"$f":"'Debt allocations'!AL38*'Debt Dollars FY22'!$C$2","v":29664.101203876853},{"$f":"'Debt allocations'!AM38*'Debt Dollars FY22'!$C$2","v":0},{"$f":"'Debt allocations'!AN38*'Debt Dollars FY22'!$C$2","v":0}]
["116 - State Lottery","116","State Lottery",9.9999999999999998E-20,1E-8,0,{"$f":"'Debt allocations'!G39*'Debt Dollars FY22'!$C$2","v":0},{"$f":"'Debt allocations'!H39*'Debt Dollars FY22'!$C$2","v":0},{"$f":"'Debt allocations'!I39*'Debt Dollars FY22'!$C$2","v":0},{"$f":"'Debt allocations'!J39*'Debt Dollars FY22'!$C$2","v":0},{"$f":"'Debt allocations'!K39*'Debt Dollars FY22'!$C$2","v":0},{"$f":"'Debt allocations'!L39*'Debt Dollars FY22'!$C$2","v":0},{"$f":"'Debt allocations'!M39*'Debt Dollars FY22'!$C$2","v":0},{"$f":"'Debt allocations'!N39*'Debt Dollars FY22'!$C$2","v":0},{"$f":"'Debt allocations'!O39*'Debt Dollars FY22'!$C$2","v":0},{"$f":"'Debt allocations'!P39*'Debt Dollars FY22'!$C$2","v":0},{"$f":"'Debt allocations'!Q39*'Debt Dollars FY22'!$C$2","v":0},{"$f":"'Debt allocations'!R39*'Debt Dollars FY22'!$C$2","v":0},{"$f":"'Debt allocations'!S39*'Debt Dollars FY22'!$C$2","v":0},{"$f":"'Debt allocations'!T39*'Debt Dollars FY22'!$C$2","v":0},{"$f":"'Debt allocations'!U39*'Debt Dollars FY22'!$C$2","v":0},{"$f":"'Debt allocations'!V39*'Debt Dollars FY22'!$C$2","v":0},{"$f":"'Debt allocations'!W39*'Debt Dollars FY22'!$C$2","v":0},{"$f":"'Debt allocations'!X39*'Debt Dollars FY22'!$C$2","v":0},{"$f":"'Debt allocations'!Y39*'Debt Dollars FY22'!$C$2","v":0},{"$f":"'Debt allocations'!Z39*'Debt Dollars FY22'!$C$2","v":0},{"$f":"'Debt allocations'!AA39*'Debt Dollars FY22'!$C$2","v":0},{"$f":"'Debt allocations'!AB39*'Debt Dollars FY22'!$C$2","v":0},{"$f":"'Debt allocations'!AC39*'Debt Dollars FY22'!$C$2","v":0},{"$f":"'Debt allocations'!AD39*'Debt Dollars FY22'!$C$2","v":0},{"$f":"'Debt allocations'!AE39*'Debt Dollars FY22'!$C$2","v":0},{"$f":"'Debt allocations'!AF39*'Debt Dollars FY22'!$C$2","v":0},{"$f":"'Debt allocations'!AG39*'Debt Dollars FY22'!$C$2","v":0},{"$f":"'Debt allocations'!AH39*'Debt Dollars FY22'!$C$2","v":0},{"$f":"'Debt allocations'!AI39*'Debt Dollars FY22'!$C$2","v":0},{"$f":"'Debt allocations'!AJ39*'Debt Dollars FY22'!$C$2","v":0},{"$f":"'Debt allocations'!AK39*'Debt Dollars FY22'!$C$2","v":0},{"$f":"'Debt allocations'!AL39*'Debt Dollars FY22'!$C$2","v":0},{"$f":"'Debt allocations'!AM39*'Debt Dollars FY22'!$C$2","v":0},{"$f":"'Debt allocations'!AN39*'Debt Dollars FY22'!$C$2","v":0}]
["117 - Washington State Gambling Commission","117","Washington State Gambling Commission",9.9999999999999998E-20,1E-8,0,{"$f":"'Debt allocations'!G40*'Debt Dollars FY22'!$C$2","v":0},{"$f":"'Debt allocations'!H40*'Debt Dollars FY22'!$C$2","v":0},{"$f":"'Debt allocations'!I40*'Debt Dollars FY22'!$C$2","v":0},{"$f":"'Debt allocations'!J40*'Debt Dollars FY22'!$C$2","v":0},{"$f":"'Debt allocations'!K40*'Debt Dollars FY22'!$C$2","v":0},{"$f":"'Debt allocations'!L40*'Debt Dollars FY22'!$C$2","v":0},{"$f":"'Debt allocations'!M40*'Debt Dollars FY22'!$C$2","v":0},{"$f":"'Debt allocations'!N40*'Debt Dollars FY22'!$C$2","v":0},{"$f":"'Debt allocations'!O40*'Debt Dollars FY22'!$C$2","v":0},{"$f":"'Debt allocations'!P40*'Debt Dollars FY22'!$C$2","v":0},{"$f":"'Debt allocations'!Q40*'Debt Dollars FY22'!$C$2","v":0},{"$f":"'Debt allocations'!R40*'Debt Dollars FY22'!$C$2","v":0},{"$f":"'Debt allocations'!S40*'Debt Dollars FY22'!$C$2","v":0},{"$f":"'Debt allocations'!T40*'Debt Dollars FY22'!$C$2","v":0},{"$f":"'Debt allocations'!U40*'Debt Dollars FY22'!$C$2","v":0},{"$f":"'Debt allocations'!V40*'Debt Dollars FY22'!$C$2","v":0},{"$f":"'Debt allocations'!W40*'Debt Dollars FY22'!$C$2","v":0},{"$f":"'Debt allocations'!X40*'Debt Dollars FY22'!$C$2","v":0},{"$f":"'Debt allocations'!Y40*'Debt Dollars FY22'!$C$2","v":0},{"$f":"'Debt allocations'!Z40*'Debt Dollars FY22'!$C$2","v":0},{"$f":"'Debt allocations'!AA40*'Debt Dollars FY22'!$C$2","v":0},{"$f":"'Debt allocations'!AB40*'Debt Dollars FY22'!$C$2","v":0},{"$f":"'Debt allocations'!AC40*'Debt Dollars FY22'!$C$2","v":0},{"$f":"'Debt allocations'!AD40*'Debt Dollars FY22'!$C$2","v":0},{"$f":"'Debt allocations'!AE40*'Debt Dollars FY22'!$C$2","v":0},{"$f":"'Debt allocations'!AF40*'Debt Dollars FY22'!$C$2","v":0},{"$f":"'Debt allocations'!AG40*'Debt Dollars FY22'!$C$2","v":0},{"$f":"'Debt allocations'!AH40*'Debt Dollars FY22'!$C$2","v":0},{"$f":"'Debt allocations'!AI40*'Debt Dollars FY22'!$C$2","v":0},{"$f":"'Debt allocations'!AJ40*'Debt Dollars FY22'!$C$2","v":0},{"$f":"'Debt allocations'!AK40*'Debt Dollars FY22'!$C$2","v":0},{"$f":"'Debt allocations'!AL40*'Debt Dollars FY22'!$C$2","v":0},{"$f":"'Debt allocations'!AM40*'Debt Dollars FY22'!$C$2","v":0},{"$f":"'Debt allocations'!AN40*'Debt Dollars FY22'!$C$2","v":0}]
["118 - Commission on Hispanic Affairs","118","Commission on Hispanic Affairs",6.7702570263325479E-4,863,4812.9757200198073,{"$f":"'Debt allocations'!G41*'Debt Dollars FY22'!$C$2","v":0},{"$f":"'Debt allocations'!H41*'Debt Dollars FY22'!$C$2","v":0},{"$f":"'Debt allocations'!I41*'Debt Dollars FY22'!$C$2","v":0},{"$f":"'Debt allocations'!J41*'Debt Dollars FY22'!$C$2","v":0},{"$f":"'Debt allocations'!K41*'Debt Dollars FY22'!$C$2","v":0},{"$f":"'Debt allocations'!L41*'Debt Dollars FY22'!$C$2","v":0},{"$f":"'Debt allocations'!M41*'Debt Dollars FY22'!$C$2","v":0},{"$f":"'Debt allocations'!N41*'Debt Dollars FY22'!$C$2","v":0},{"$f":"'Debt allocations'!O41*'Debt Dollars FY22'!$C$2","v":0},{"$f":"'Debt allocations'!P41*'Debt Dollars FY22'!$C$2","v":0},{"$f":"'Debt allocations'!Q41*'Debt Dollars FY22'!$C$2","v":0},{"$f":"'Debt allocations'!R41*'Debt Dollars FY22'!$C$2","v":0},{"$f":"'Debt allocations'!S41*'Debt Dollars FY22'!$C$2","v":0},{"$f":"'Debt allocations'!T41*'Debt Dollars FY22'!$C$2","v":0},{"$f":"'Debt allocations'!U41*'Debt Dollars FY22'!$C$2","v":0},{"$f":"'Debt allocations'!V41*'Debt Dollars FY22'!$C$2","v":0},{"$f":"'Debt allocations'!W41*'Debt Dollars FY22'!$C$2","v":0},{"$f":"'Debt allocations'!X41*'Debt Dollars FY22'!$C$2","v":0},{"$f":"'Debt allocations'!Y41*'Debt Dollars FY22'!$C$2","v":0},{"$f":"'Debt allocations'!Z41*'Debt Dollars FY22'!$C$2","v":4812.9757200198073},{"$f":"'Debt allocations'!AA41*'Debt Dollars FY22'!$C$2","v":0},{"$f":"'Debt allocations'!AB41*'Debt Dollars FY22'!$C$2","v":0},{"$f":"'Debt allocations'!AC41*'Debt Dollars FY22'!$C$2","v":0},{"$f":"'Debt allocations'!AD41*'Debt Dollars FY22'!$C$2","v":0},{"$f":"'Debt allocations'!AE41*'Debt Dollars FY22'!$C$2","v":0},{"$f":"'Debt allocations'!AF41*'Debt Dollars FY22'!$C$2","v":0},{"$f":"'Debt allocations'!AG41*'Debt Dollars FY22'!$C$2","v":0},{"$f":"'Debt allocations'!AH41*'Debt Dollars FY22'!$C$2","v":0},{"$f":"'Debt allocations'!AI41*'Debt Dollars FY22'!$C$2","v":0},{"$f":"'Debt allocations'!AJ41*'Debt Dollars FY22'!$C$2","v":0},{"$f":"'Debt allocations'!AK41*'Debt Dollars FY22'!$C$2","v":0},{"$f":"'Debt allocations'!AL41*'Debt Dollars FY22'!$C$2","v":0},{"$f":"'Debt allocations'!AM41*'Debt Dollars FY22'!$C$2","v":0},{"$f":"'Debt allocations'!AN41*'Debt Dollars FY22'!$C$2","v":0}]
["119 - Commission on African-American Affairs","119","Commission on African-American Affairs",6.7702570263325479E-4,863,4812.9757200198073,{"$f":"'Debt allocations'!G42*'Debt Dollars FY22'!$C$2","v":0},{"$f":"'Debt allocations'!H42*'Debt Dollars FY22'!$C$2","v":0},{"$f":"'Debt allocations'!I42*'Debt Dollars FY22'!$C$2","v":0},{"$f":"'Debt allocations'!J42*'Debt Dollars FY22'!$C$2","v":0},{"$f":"'Debt allocations'!K42*'Debt Dollars FY22'!$C$2","v":0},{"$f":"'Debt allocations'!L42*'Debt Dollars FY22'!$C$2","v":0},{"$f":"'Debt allocations'!M42*'Debt Dollars FY22'!$C$2","v":0},{"$f":"'Debt allocations'!N42*'Debt Dollars FY22'!$C$2","v":0},{"$f":"'Debt allocations'!O42*'Debt Dollars FY22'!$C$2","v":0},{"$f":"'Debt allocations'!P42*'Debt Dollars FY22'!$C$2","v":0},{"$f":"'Debt allocations'!Q42*'Debt Dollars FY22'!$C$2","v":0},{"$f":"'Debt allocations'!R42*'Debt Dollars FY22'!$C$2","v":0},{"$f":"'Debt allocations'!S42*'Debt Dollars FY22'!$C$2","v":0},{"$f":"'Debt allocations'!T42*'Debt Dollars FY22'!$C$2","v":0},{"$f":"'Debt allocations'!U42*'Debt Dollars FY22'!$C$2","v":0},{"$f":"'Debt allocations'!V42*'Debt Dollars FY22'!$C$2","v":0},{"$f":"'Debt allocations'!W42*'Debt Dollars FY22'!$C$2","v":0},{"$f":"'Debt allocations'!X42*'Debt Dollars FY22'!$C$2","v":0},{"$f":"'Debt allocations'!Y42*'Debt Dollars FY22'!$C$2","v":0},{"$f":"'Debt allocations'!Z42*'Debt Dollars FY22'!$C$2","v":4812.9757200198073},{"$f":"'Debt allocations'!AA42*'Debt Dollars FY22'!$C$2","v":0},{"$f":"'Debt allocations'!AB42*'Debt Dollars FY22'!$C$2","v":0},{"$f":"'Debt allocations'!AC42*'Debt Dollars FY22'!$C$2","v":0},{"$f":"'Debt allocations'!AD42*'Debt Dollars FY22'!$C$2","v":0},{"$f":"'Debt allocations'!AE42*'Debt Dollars FY22'!$C$2","v":0},{"$f":"'Debt allocations'!AF42*'Debt Dollars FY22'!$C$2","v":0},{"$f":"'Debt allocations'!AG42*'Debt Dollars FY22'!$C$2","v":0},{"$f":"'Debt allocations'!AH42*'Debt Dollars FY22'!$C$2","v":0},{"$f":"'Debt allocations'!AI42*'Debt Dollars FY22'!$C$2","v":0},{"$f":"'Debt allocations'!AJ42*'Debt Dollars FY22'!$C$2","v":0},{"$f":"'Debt allocations'!AK42*'Debt Dollars FY22'!$C$2","v":0},{"$f":"'Debt allocations'!AL42*'Debt Dollars FY22'!$C$2","v":0},{"$f":"'Debt allocations'!AM42*'Debt Dollars FY22'!$C$2","v":0},{"$f":"'Debt allocations'!AN42*'Debt Dollars FY22'!$C$2","v":0}]
["120 - Human Rights Commission","120","Human Rights Commission",9.9999999999999998E-20,1E-8,0,{"$f":"'Debt allocations'!G43*'Debt Dollars FY22'!$C$2","v":0},{"$f":"'Debt allocations'!H43*'Debt Dollars FY22'!$C$2","v":0},{"$f":"'Debt allocations'!I43*'Debt Dollars FY22'!$C$2","v":0},{"$f":"'Debt allocations'!J43*'Debt Dollars FY22'!$C$2","v":0},{"$f":"'Debt allocations'!K43*'Debt Dollars FY22'!$C$2","v":0},{"$f":"'Debt allocations'!L43*'Debt Dollars FY22'!$C$2","v":0},{"$f":"'Debt allocations'!M43*'Debt Dollars FY22'!$C$2","v":0},{"$f":"'Debt allocations'!N43*'Debt Dollars FY22'!$C$2","v":0},{"$f":"'Debt allocations'!O43*'Debt Dollars FY22'!$C$2","v":0},{"$f":"'Debt allocations'!P43*'Debt Dollars FY22'!$C$2","v":0},{"$f":"'Debt allocations'!Q43*'Debt Dollars FY22'!$C$2","v":0},{"$f":"'Debt allocations'!R43*'Debt Dollars FY22'!$C$2","v":0},{"$f":"'Debt allocations'!S43*'Debt Dollars FY22'!$C$2","v":0},{"$f":"'Debt allocations'!T43*'Debt Dollars FY22'!$C$2","v":0},{"$f":"'Debt allocations'!U43*'Debt Dollars FY22'!$C$2","v":0},{"$f":"'Debt allocations'!V43*'Debt Dollars FY22'!$C$2","v":0},{"$f":"'Debt allocations'!W43*'Debt Dollars FY22'!$C$2","v":0},{"$f":"'Debt allocations'!X43*'Debt Dollars FY22'!$C$2","v":0},{"$f":"'Debt allocations'!Y43*'Debt Dollars FY22'!$C$2","v":0},{"$f":"'Debt allocations'!Z43*'Debt Dollars FY22'!$C$2","v":0},{"$f":"'Debt allocations'!AA43*'Debt Dollars FY22'!$C$2","v":0},{"$f":"'Debt allocations'!AB43*'Debt Dollars FY22'!$C$2","v":0},{"$f":"'Debt allocations'!AC43*'Debt Dollars FY22'!$C$2","v":0},{"$f":"'Debt allocations'!AD43*'Debt Dollars FY22'!$C$2","v":0},{"$f":"'Debt allocations'!AE43*'Debt Dollars FY22'!$C$2","v":0},{"$f":"'Debt allocations'!AF43*'Debt Dollars FY22'!$C$2","v":0},{"$f":"'Debt allocations'!AG43*'Debt Dollars FY22'!$C$2","v":0},{"$f":"'Debt allocations'!AH43*'Debt Dollars FY22'!$C$2","v":0},{"$f":"'Debt allocations'!AI43*'Debt Dollars FY22'!$C$2","v":0},{"$f":"'Debt allocations'!AJ43*'Debt Dollars FY22'!$C$2","v":0},{"$f":"'Debt allocations'!AK43*'Debt Dollars FY22'!$C$2","v":0},{"$f":"'Debt allocations'!AL43*'Debt Dollars FY22'!$C$2","v":0},{"$f":"'Debt allocations'!AM43*'Debt Dollars FY22'!$C$2","v":0},{"$f":"'Debt allocations'!AN43*'Debt Dollars FY22'!$C$2","v":0}]
["124 - Department of Retirement Systems","124","Department of Retirement Systems",9.9999999999999998E-20,1E-8,0,{"$f":"'Debt allocations'!G44*'Debt Dollars FY22'!$C$2","v":0},{"$f":"'Debt allocations'!H44*'Debt Dollars FY22'!$C$2","v":0},{"$f":"'Debt allocations'!I44*'Debt Dollars FY22'!$C$2","v":0},{"$f":"'Debt allocations'!J44*'Debt Dollars FY22'!$C$2","v":0},{"$f":"'Debt allocations'!K44*'Debt Dollars FY22'!$C$2","v":0},{"$f":"'Debt allocations'!L44*'Debt Dollars FY22'!$C$2","v":0},{"$f":"'Debt allocations'!M44*'Debt Dollars FY22'!$C$2","v":0},{"$f":"'Debt allocations'!N44*'Debt Dollars FY22'!$C$2","v":0},{"$f":"'Debt allocations'!O44*'Debt Dollars FY22'!$C$2","v":0},{"$f":"'Debt allocations'!P44*'Debt Dollars FY22'!$C$2","v":0},{"$f":"'Debt allocations'!Q44*'Debt Dollars FY22'!$C$2","v":0},{"$f":"'Debt allocations'!R44*'Debt Dollars FY22'!$C$2","v":0},{"$f":"'Debt allocations'!S44*'Debt Dollars FY22'!$C$2","v":0},{"$f":"'Debt allocations'!T44*'Debt Dollars FY22'!$C$2","v":0},{"$f":"'Debt allocations'!U44*'Debt Dollars FY22'!$C$2","v":0},{"$f":"'Debt allocations'!V44*'Debt Dollars FY22'!$C$2","v":0},{"$f":"'Debt allocations'!W44*'Debt Dollars FY22'!$C$2","v":0},{"$f":"'Debt allocations'!X44*'Debt Dollars FY22'!$C$2","v":0},{"$f":"'Debt allocations'!Y44*'Debt Dollars FY22'!$C$2","v":0},{"$f":"'Debt allocations'!Z44*'Debt Dollars FY22'!$C$2","v":0},{"$f":"'Debt allocations'!AA44*'Debt Dollars FY22'!$C$2","v":0},{"$f":"'Debt allocations'!AB44*'Debt Dollars FY22'!$C$2","v":0},{"$f":"'Debt allocations'!AC44*'Debt Dollars FY22'!$C$2","v":0},{"$f":"'Debt allocations'!AD44*'Debt Dollars FY22'!$C$2","v":0},{"$f":"'Debt allocations'!AE44*'Debt Dollars FY22'!$C$2","v":0},{"$f":"'Debt allocations'!AF44*'Debt Dollars FY22'!$C$2","v":0},{"$f":"'Debt allocations'!AG44*'Debt Dollars FY22'!$C$2","v":0},{"$f":"'Debt allocations'!AH44*'Debt Dollars FY22'!$C$2","v":0},{"$f":"'Debt allocations'!AI44*'Debt Dollars FY22'!$C$2","v":0},{"$f":"'Debt allocations'!AJ44*'Debt Dollars FY22'!$C$2","v":0},{"$f":"'Debt allocations'!AK44*'Debt Dollars FY22'!$C$2","v":0},{"$f":"'Debt allocations'!AL44*'Debt Dollars FY22'!$C$2","v":0},{"$f":"'Debt allocations'!AM44*'Debt Dollars FY22'!$C$2","v":0},{"$f":"'Debt allocations'!AN44*'Debt Dollars FY22'!$C$2","v":0}]
["126 - State Investment Board","126","State Investment Board",9.9999999999999998E-20,1E-8,0,{"$f":"'Debt allocations'!G45*'Debt Dollars FY22'!$C$2","v":0},{"$f":"'Debt allocations'!H45*'Debt Dollars FY22'!$C$2","v":0},{"$f":"'Debt allocations'!I45*'Debt Dollars FY22'!$C$2","v":0},{"$f":"'Debt allocations'!J45*'Debt Dollars FY22'!$C$2","v":0},{"$f":"'Debt allocations'!K45*'Debt Dollars FY22'!$C$2","v":0},{"$f":"'Debt allocations'!L45*'Debt Dollars FY22'!$C$2","v":0},{"$f":"'Debt allocations'!M45*'Debt Dollars FY22'!$C$2","v":0},{"$f":"'Debt allocations'!N45*'Debt Dollars FY22'!$C$2","v":0},{"$f":"'Debt allocations'!O45*'Debt Dollars FY22'!$C$2","v":0},{"$f":"'Debt allocations'!P45*'Debt Dollars FY22'!$C$2","v":0},{"$f":"'Debt allocations'!Q45*'Debt Dollars FY22'!$C$2","v":0},{"$f":"'Debt allocations'!R45*'Debt Dollars FY22'!$C$2","v":0},{"$f":"'Debt allocations'!S45*'Debt Dollars FY22'!$C$2","v":0},{"$f":"'Debt allocations'!T45*'Debt Dollars FY22'!$C$2","v":0},{"$f":"'Debt allocations'!U45*'Debt Dollars FY22'!$C$2","v":0},{"$f":"'Debt allocations'!V45*'Debt Dollars FY22'!$C$2","v":0},{"$f":"'Debt allocations'!W45*'Debt Dollars FY22'!$C$2","v":0},{"$f":"'Debt allocations'!X45*'Debt Dollars FY22'!$C$2","v":0},{"$f":"'Debt allocations'!Y45*'Debt Dollars FY22'!$C$2","v":0},{"$f":"'Debt allocations'!Z45*'Debt Dollars FY22'!$C$2","v":0},{"$f":"'Debt allocations'!AA45*'Debt Dollars FY22'!$C$2","v":0},{"$f":"'Debt allocations'!AB45*'Debt Dollars FY22'!$C$2","v":0},{"$f":"'Debt allocations'!AC45*'Debt Dollars FY22'!$C$2","v":0},{"$f":"'Debt allocations'!AD45*'Debt Dollars FY22'!$C$2","v":0},{"$f":"'Debt allocations'!AE45*'Debt Dollars FY22'!$C$2","v":0},{"$f":"'Debt allocations'!AF45*'Debt Dollars FY22'!$C$2","v":0},{"$f":"'Debt allocations'!AG45*'Debt Dollars FY22'!$C$2","v":0},{"$f":"'Debt allocations'!AH45*'Debt Dollars FY22'!$C$2","v":0},{"$f":"'Debt allocations'!AI45*'Debt Dollars FY22'!$C$2","v":0},{"$f":"'Debt allocations'!AJ45*'Debt Dollars FY22'!$C$2","v":0},{"$f":"'Debt allocations'!AK45*'Debt Dollars FY22'!$C$2","v":0},{"$f":"'Debt allocations'!AL45*'Debt Dollars FY22'!$C$2","v":0},{"$f":"'Debt allocations'!AM45*'Debt Dollars FY22'!$C$2","v":0},{"$f":"'Debt allocations'!AN45*'Debt Dollars FY22'!$C$2","v":0}]
["140 - Department of Revenue","140","Department of Revenue",9.9999999999999998E-20,1E-8,0,{"$f":"'Debt allocations'!G46*'Debt Dollars FY22'!$C$2","v":0},{"$f":"'Debt allocations'!H46*'Debt Dollars FY22'!$C$2","v":0},{"$f":"'Debt allocations'!I46*'Debt Dollars FY22'!$C$2","v":0},{"$f":"'Debt allocations'!J46*'Debt Dollars FY22'!$C$2","v":0},{"$f":"'Debt allocations'!K46*'Debt Dollars FY22'!$C$2","v":0},{"$f":"'Debt allocations'!L46*'Debt Dollars FY22'!$C$2","v":0},{"$f":"'Debt allocations'!M46*'Debt Dollars FY22'!$C$2","v":0},{"$f":"'Debt allocations'!N46*'Debt Dollars FY22'!$C$2","v":0},{"$f":"'Debt allocations'!O46*'Debt Dollars FY22'!$C$2","v":0},{"$f":"'Debt allocations'!P46*'Debt Dollars FY22'!$C$2","v":0},{"$f":"'Debt allocations'!Q46*'Debt Dollars FY22'!$C$2","v":0},{"$f":"'Debt allocations'!R46*'Debt Dollars FY22'!$C$2","v":0},{"$f":"'Debt allocations'!S46*'Debt Dollars FY22'!$C$2","v":0},{"$f":"'Debt allocations'!T46*'Debt Dollars FY22'!$C$2","v":0},{"$f":"'Debt allocations'!U46*'Debt Dollars FY22'!$C$2","v":0},{"$f":"'Debt allocations'!V46*'Debt Dollars FY22'!$C$2","v":0},{"$f":"'Debt allocations'!W46*'Debt Dollars FY22'!$C$2","v":0},{"$f":"'Debt allocations'!X46*'Debt Dollars FY22'!$C$2","v":0},{"$f":"'Debt allocations'!Y46*'Debt Dollars FY22'!$C$2","v":0},{"$f":"'Debt allocations'!Z46*'Debt Dollars FY22'!$C$2","v":0},{"$f":"'Debt allocations'!AA46*'Debt Dollars FY22'!$C$2","v":0},{"$f":"'Debt allocations'!AB46*'Debt Dollars FY22'!$C$2","v":0},{"$f":"'Debt allocations'!AC46*'Debt Dollars FY22'!$C$2","v":0},{"$f":"'Debt allocations'!AD46*'Debt Dollars FY22'!$C$2","v":0},{"$f":"'Debt allocations'!AE46*'Debt Dollars FY22'!$C$2","v":0},{"$f":"'Debt allocations'!AF46*'Debt Dollars FY22'!$C$2","v":0},{"$f":"'Debt allocations'!AG46*'Debt Dollars FY22'!$C$2","v":0},{"$f":"'Debt allocations'!AH46*'Debt Dollars FY22'!$C$2","v":0},{"$f":"'Debt allocations'!AI46*'Debt Dollars FY22'!$C$2","v":0},{"$f":"'Debt allocations'!AJ46*'Debt Dollars FY22'!$C$2","v":0},{"$f":"'Debt allocations'!AK46*'Debt Dollars FY22'!$C$2","v":0},{"$f":"'Debt allocations'!AL46*'Debt Dollars FY22'!$C$2","v":0},{"$f":"'Debt allocations'!AM46*'Debt Dollars FY22'!$C$2","v":0},{"$f":"'Debt allocations'!AN46*'Debt Dollars FY22'!$C$2","v":0}]
["142 - Board of Tax Appeals","142","Board of Tax Appeals",3.6636269192320968E-3,4670,26044.723768820975,{"$f":"'Debt allocations'!G47*'Debt Dollars FY22'!$C$2","v":0},{"$f":"'Debt allocations'!H47*'Debt Dollars FY22'!$C$2","v":0},{"$f":"'Debt allocations'!I47*'Debt Dollars FY22'!$C$2","v":0},{"$f":"'Debt allocations'!J47*'Debt Dollars FY22'!$C$2","v":0},{"$f":"'Debt allocations'!K47*'Debt Dollars FY22'!$C$2","v":0},{"$f":"'Debt allocations'!L47*'Debt Dollars FY22'!$C$2","v":0},{"$f":"'Debt allocations'!M47*'Debt Dollars FY22'!$C$2","v":0},{"$f":"'Debt allocations'!N47*'Debt Dollars FY22'!$C$2","v":0},{"$f":"'Debt allocations'!O47*'Debt Dollars FY22'!$C$2","v":0},{"$f":"'Debt allocations'!P47*'Debt Dollars FY22'!$C$2","v":0},{"$f":"'Debt allocations'!Q47*'Debt Dollars FY22'!$C$2","v":0},{"$f":"'Debt allocations'!R47*'Debt Dollars FY22'!$C$2","v":0},{"$f":"'Debt allocations'!S47*'Debt Dollars FY22'!$C$2","v":0},{"$f":"'Debt allocations'!T47*'Debt Dollars FY22'!$C$2","v":0},{"$f":"'Debt allocations'!U47*'Debt Dollars FY22'!$C$2","v":0},{"$f":"'Debt allocations'!V47*'Debt Dollars FY22'!$C$2","v":0},{"$f":"'Debt allocations'!W47*'Debt Dollars FY22'!$C$2","v":0},{"$f":"'Debt allocations'!X47*'Debt Dollars FY22'!$C$2","v":0},{"$f":"'Debt allocations'!Y47*'Debt Dollars FY22'!$C$2","v":0},{"$f":"'Debt allocations'!Z47*'Debt Dollars FY22'!$C$2","v":26044.723768820975},{"$f":"'Debt allocations'!AA47*'Debt Dollars FY22'!$C$2","v":0},{"$f":"'Debt allocations'!AB47*'Debt Dollars FY22'!$C$2","v":0},{"$f":"'Debt allocations'!AC47*'Debt Dollars FY22'!$C$2","v":0},{"$f":"'Debt allocations'!AD47*'Debt Dollars FY22'!$C$2","v":0},{"$f":"'Debt allocations'!AE47*'Debt Dollars FY22'!$C$2","v":0},{"$f":"'Debt allocations'!AF47*'Debt Dollars FY22'!$C$2","v":0},{"$f":"'Debt allocations'!AG47*'Debt Dollars FY22'!$C$2","v":0},{"$f":"'Debt allocations'!AH47*'Debt Dollars FY22'!$C$2","v":0},{"$f":"'Debt allocations'!AI47*'Debt Dollars FY22'!$C$2","v":0},{"$f":"'Debt allocations'!AJ47*'Debt Dollars FY22'!$C$2","v":0},{"$f":"'Debt allocations'!AK47*'Debt Dollars FY22'!$C$2","v":0},{"$f":"'Debt allocations'!AL47*'Debt Dollars FY22'!$C$2","v":0},{"$f":"'Debt allocations'!AM47*'Debt Dollars FY22'!$C$2","v":0},{"$f":"'Debt allocations'!AN47*'Debt Dollars FY22'!$C$2","v":0}]
["147 - Office of Minority and Women's Business Enterprises","147","Office of Minority and Women's Business Enterprises",3.7805177995245132E-3,4819,26875.701036819763,{"$f":"'Debt allocations'!G48*'Debt Dollars FY22'!$C$2","v":0},{"$f":"'Debt allocations'!H48*'Debt Dollars FY22'!$C$2","v":0},{"$f":"'Debt allocations'!I48*'Debt Dollars FY22'!$C$2","v":0},{"$f":"'Debt allocations'!J48*'Debt Dollars FY22'!$C$2","v":0},{"$f":"'Debt allocations'!K48*'Debt Dollars FY22'!$C$2","v":0},{"$f":"'Debt allocations'!L48*'Debt Dollars FY22'!$C$2","v":0},{"$f":"'Debt allocations'!M48*'Debt Dollars FY22'!$C$2","v":0},{"$f":"'Debt allocations'!N48*'Debt Dollars FY22'!$C$2","v":0},{"$f":"'Debt allocations'!O48*'Debt Dollars FY22'!$C$2","v":0},{"$f":"'Debt allocations'!P48*'Debt Dollars FY22'!$C$2","v":0},{"$f":"'Debt allocations'!Q48*'Debt Dollars FY22'!$C$2","v":0},{"$f":"'Debt allocations'!R48*'Debt Dollars FY22'!$C$2","v":0},{"$f":"'Debt allocations'!S48*'Debt Dollars FY22'!$C$2","v":0},{"$f":"'Debt allocations'!T48*'Debt Dollars FY22'!$C$2","v":0},{"$f":"'Debt allocations'!U48*'Debt Dollars FY22'!$C$2","v":0},{"$f":"'Debt allocations'!V48*'Debt Dollars FY22'!$C$2","v":0},{"$f":"'Debt allocations'!W48*'Debt Dollars FY22'!$C$2","v":0},{"$f":"'Debt allocations'!X48*'Debt Dollars FY22'!$C$2","v":0},{"$f":"'Debt allocations'!Y48*'Debt Dollars FY22'!$C$2","v":0},{"$f":"'Debt allocations'!Z48*'Debt Dollars FY22'!$C$2","v":26875.701036819763},{"$f":"'Debt allocations'!AA48*'Debt Dollars FY22'!$C$2","v":0},{"$f":"'Debt allocations'!AB48*'Debt Dollars FY22'!$C$2","v":0},{"$f":"'Debt allocations'!AC48*'Debt Dollars FY22'!$C$2","v":0},{"$f":"'Debt allocations'!AD48*'Debt Dollars FY22'!$C$2","v":0},{"$f":"'Debt allocations'!AE48*'Debt Dollars FY22'!$C$2","v":0},{"$f":"'Debt allocations'!AF48*'Debt Dollars FY22'!$C$2","v":0},{"$f":"'Debt allocations'!AG48*'Debt Dollars FY22'!$C$2","v":0},{"$f":"'Debt allocations'!AH48*'Debt Dollars FY22'!$C$2","v":0},{"$f":"'Debt allocations'!AI48*'Debt Dollars FY22'!$C$2","v":0},{"$f":"'Debt allocations'!AJ48*'Debt Dollars FY22'!$C$2","v":0},{"$f":"'Debt allocations'!AK48*'Debt Dollars FY22'!$C$2","v":0},{"$f":"'Debt allocations'!AL48*'Debt Dollars FY22'!$C$2","v":0},{"$f":"'Debt allocations'!AM48*'Debt Dollars FY22'!$C$2","v":0},{"$f":"'Debt allocations'!AN48*'Debt Dollars FY22'!$C$2","v":0}]
["160 - Office of Insurance Commissioner","160","Office of Insurance Commissioner",9.9999999999999998E-20,1E-8,0,{"$f":"'Debt allocations'!G49*'Debt Dollars FY22'!$C$2","v":0},{"$f":"'Debt allocations'!H49*'Debt Dollars FY22'!$C$2","v":0},{"$f":"'Debt allocations'!I49*'Debt Dollars FY22'!$C$2","v":0},{"$f":"'Debt allocations'!J49*'Debt Dollars FY22'!$C$2","v":0},{"$f":"'Debt allocations'!K49*'Debt Dollars FY22'!$C$2","v":0},{"$f":"'Debt allocations'!L49*'Debt Dollars FY22'!$C$2","v":0},{"$f":"'Debt allocations'!M49*'Debt Dollars FY22'!$C$2","v":0},{"$f":"'Debt allocations'!N49*'Debt Dollars FY22'!$C$2","v":0},{"$f":"'Debt allocations'!O49*'Debt Dollars FY22'!$C$2","v":0},{"$f":"'Debt allocations'!P49*'Debt Dollars FY22'!$C$2","v":0},{"$f":"'Debt allocations'!Q49*'Debt Dollars FY22'!$C$2","v":0},{"$f":"'Debt allocations'!R49*'Debt Dollars FY22'!$C$2","v":0},{"$f":"'Debt allocations'!S49*'Debt Dollars FY22'!$C$2","v":0},{"$f":"'Debt allocations'!T49*'Debt Dollars FY22'!$C$2","v":0},{"$f":"'Debt allocations'!U49*'Debt Dollars FY22'!$C$2","v":0},{"$f":"'Debt allocations'!V49*'Debt Dollars FY22'!$C$2","v":0},{"$f":"'Debt allocations'!W49*'Debt Dollars FY22'!$C$2","v":0},{"$f":"'Debt allocations'!X49*'Debt Dollars FY22'!$C$2","v":0},{"$f":"'Debt allocations'!Y49*'Debt Dollars FY22'!$C$2","v":0},{"$f":"'Debt allocations'!Z49*'Debt Dollars FY22'!$C$2","v":0},{"$f":"'Debt allocations'!AA49*'Debt Dollars FY22'!$C$2","v":0},{"$f":"'Debt allocations'!AB49*'Debt Dollars FY22'!$C$2","v":0},{"$f":"'Debt allocations'!AC49*'Debt Dollars FY22'!$C$2","v":0},{"$f":"'Debt allocations'!AD49*'Debt Dollars FY22'!$C$2","v":0},{"$f":"'Debt allocations'!AE49*'Debt Dollars FY22'!$C$2","v":0},{"$f":"'Debt allocations'!AF49*'Debt Dollars FY22'!$C$2","v":0},{"$f":"'Debt allocations'!AG49*'Debt Dollars FY22'!$C$2","v":0},{"$f":"'Debt allocations'!AH49*'Debt Dollars FY22'!$C$2","v":0},{"$f":"'Debt allocations'!AI49*'Debt Dollars FY22'!$C$2","v":0},{"$f":"'Debt allocations'!AJ49*'Debt Dollars FY22'!$C$2","v":0},{"$f":"'Debt allocations'!AK49*'Debt Dollars FY22'!$C$2","v":0},{"$f":"'Debt allocations'!AL49*'Debt Dollars FY22'!$C$2","v":0},{"$f":"'Debt allocations'!AM49*'Debt Dollars FY22'!$C$2","v":0},{"$f":"'Debt allocations'!AN49*'Debt Dollars FY22'!$C$2","v":0}]
["163 - Consolidated Technology Services","163","Consolidated Technology Services",6.1654928813785083E-5,292,438.30488893719826,{"$f":"'Debt allocations'!G50*'Debt Dollars FY22'!$C$2","v":0},{"$f":"'Debt allocations'!H50*'Debt Dollars FY22'!$C$2","v":0},{"$f":"'Debt allocations'!I50*'Debt Dollars FY22'!$C$2","v":0},{"$f":"'Debt allocations'!J50*'Debt Dollars FY22'!$C$2","v":0},{"$f":"'Debt allocations'!K50*'Debt Dollars FY22'!$C$2","v":0},{"$f":"'Debt allocations'!L50*'Debt Dollars FY22'!$C$2","v":438.30488893719826},{"$f":"'Debt allocations'!M50*'Debt Dollars FY22'!$C$2","v":0},{"$f":"'Debt allocations'!N50*'Debt Dollars FY22'!$C$2","v":0},{"$f":"'Debt allocations'!O50*'Debt Dollars FY22'!$C$2","v":0},{"$f":"'Debt allocations'!P50*'Debt Dollars FY22'!$C$2","v":0},{"$f":"'Debt allocations'!Q50*'Debt Dollars FY22'!$C$2","v":0},{"$f":"'Debt allocations'!R50*'Debt Dollars FY22'!$C$2","v":0},{"$f":"'Debt allocations'!S50*'Debt Dollars FY22'!$C$2","v":0},{"$f":"'Debt allocations'!T50*'Debt Dollars FY22'!$C$2","v":0},{"$f":"'Debt allocations'!U50*'Debt Dollars FY22'!$C$2","v":0},{"$f":"'Debt allocations'!V50*'Debt Dollars FY22'!$C$2","v":0},{"$f":"'Debt allocations'!W50*'Debt Dollars FY22'!$C$2","v":0},{"$f":"'Debt allocations'!X50*'Debt Dollars FY22'!$C$2","v":0},{"$f":"'Debt allocations'!Y50*'Debt Dollars FY22'!$C$2","v":0},{"$f":"'Debt allocations'!Z50*'Debt Dollars FY22'!$C$2","v":0},{"$f":"'Debt allocations'!AA50*'Debt Dollars FY22'!$C$2","v":0},{"$f":"'Debt allocations'!AB50*'Debt Dollars FY22'!$C$2","v":0},{"$f":"'Debt allocations'!AC50*'Debt Dollars FY22'!$C$2","v":0},{"$f":"'Debt allocations'!AD50*'Debt Dollars FY22'!$C$2","v":0},{"$f":"'Debt allocations'!AE50*'Debt Dollars FY22'!$C$2","v":0},{"$f":"'Debt allocations'!AF50*'Debt Dollars FY22'!$C$2","v":0},{"$f":"'Debt allocations'!AG50*'Debt Dollars FY22'!$C$2","v":0},{"$f":"'Debt allocations'!AH50*'Debt Dollars FY22'!$C$2","v":0},{"$f":"'Debt allocations'!AI50*'Debt Dollars FY22'!$C$2","v":0},{"$f":"'Debt allocations'!AJ50*'Debt Dollars FY22'!$C$2","v":0},{"$f":"'Debt allocations'!AK50*'Debt Dollars FY22'!$C$2","v":0},{"$f":"'Debt allocations'!AL50*'Debt Dollars FY22'!$C$2","v":0},{"$f":"'Debt allocations'!AM50*'Debt Dollars FY22'!$C$2","v":0},{"$f":"'Debt allocations'!AN50*'Debt Dollars FY22'!$C$2","v":0}]
["165 - Board of Accountancy","165","Board of Accountancy",9.9999999999999998E-20,1E-8,0,{"$f":"'Debt allocations'!G51*'Debt Dollars FY22'!$C$2","v":0},{"$f":"'Debt allocations'!H51*'Debt Dollars FY22'!$C$2","v":0},{"$f":"'Debt allocations'!I51*'Debt Dollars FY22'!$C$2","v":0},{"$f":"'Debt allocations'!J51*'Debt Dollars FY22'!$C$2","v":0},{"$f":"'Debt allocations'!K51*'Debt Dollars FY22'!$C$2","v":0},{"$f":"'Debt allocations'!L51*'Debt Dollars FY22'!$C$2","v":0},{"$f":"'Debt allocations'!M51*'Debt Dollars FY22'!$C$2","v":0},{"$f":"'Debt allocations'!N51*'Debt Dollars FY22'!$C$2","v":0},{"$f":"'Debt allocations'!O51*'Debt Dollars FY22'!$C$2","v":0},{"$f":"'Debt allocations'!P51*'Debt Dollars FY22'!$C$2","v":0},{"$f":"'Debt allocations'!Q51*'Debt Dollars FY22'!$C$2","v":0},{"$f":"'Debt allocations'!R51*'Debt Dollars FY22'!$C$2","v":0},{"$f":"'Debt allocations'!S51*'Debt Dollars FY22'!$C$2","v":0},{"$f":"'Debt allocations'!T51*'Debt Dollars FY22'!$C$2","v":0},{"$f":"'Debt allocations'!U51*'Debt Dollars FY22'!$C$2","v":0},{"$f":"'Debt allocations'!V51*'Debt Dollars FY22'!$C$2","v":0},{"$f":"'Debt allocations'!W51*'Debt Dollars FY22'!$C$2","v":0},{"$f":"'Debt allocations'!X51*'Debt Dollars FY22'!$C$2","v":0},{"$f":"'Debt allocations'!Y51*'Debt Dollars FY22'!$C$2","v":0},{"$f":"'Debt allocations'!Z51*'Debt Dollars FY22'!$C$2","v":0},{"$f":"'Debt allocations'!AA51*'Debt Dollars FY22'!$C$2","v":0},{"$f":"'Debt allocations'!AB51*'Debt Dollars FY22'!$C$2","v":0},{"$f":"'Debt allocations'!AC51*'Debt Dollars FY22'!$C$2","v":0},{"$f":"'Debt allocations'!AD51*'Debt Dollars FY22'!$C$2","v":0},{"$f":"'Debt allocations'!AE51*'Debt Dollars FY22'!$C$2","v":0},{"$f":"'Debt allocations'!AF51*'Debt Dollars FY22'!$C$2","v":0},{"$f":"'Debt allocations'!AG51*'Debt Dollars FY22'!$C$2","v":0},{"$f":"'Debt allocations'!AH51*'Debt Dollars FY22'!$C$2","v":0},{"$f":"'Debt allocations'!AI51*'Debt Dollars FY22'!$C$2","v":0},{"$f":"'Debt allocations'!AJ51*'Debt Dollars FY22'!$C$2","v":0},{"$f":"'Debt allocations'!AK51*'Debt Dollars FY22'!$C$2","v":0},{"$f":"'Debt allocations'!AL51*'Debt Dollars FY22'!$C$2","v":0},{"$f":"'Debt allocations'!AM51*'Debt Dollars FY22'!$C$2","v":0},{"$f":"'Debt allocations'!AN51*'Debt Dollars FY22'!$C$2","v":0}]
["166 - Brd Prof Eng Land Surveyors","166","Brd Prof Eng Land Surveyors",9.9999999999999998E-20,1E-8,0,{"$f":"'Debt allocations'!G52*'Debt Dollars FY22'!$C$2","v":0},{"$f":"'Debt allocations'!H52*'Debt Dollars FY22'!$C$2","v":0},{"$f":"'Debt allocations'!I52*'Debt Dollars FY22'!$C$2","v":0},{"$f":"'Debt allocations'!J52*'Debt Dollars FY22'!$C$2","v":0},{"$f":"'Debt allocations'!K52*'Debt Dollars FY22'!$C$2","v":0},{"$f":"'Debt allocations'!L52*'Debt Dollars FY22'!$C$2","v":0},{"$f":"'Debt allocations'!M52*'Debt Dollars FY22'!$C$2","v":0},{"$f":"'Debt allocations'!N52*'Debt Dollars FY22'!$C$2","v":0},{"$f":"'Debt allocations'!O52*'Debt Dollars FY22'!$C$2","v":0},{"$f":"'Debt allocations'!P52*'Debt Dollars FY22'!$C$2","v":0},{"$f":"'Debt allocations'!Q52*'Debt Dollars FY22'!$C$2","v":0},{"$f":"'Debt allocations'!R52*'Debt Dollars FY22'!$C$2","v":0},{"$f":"'Debt allocations'!S52*'Debt Dollars FY22'!$C$2","v":0},{"$f":"'Debt allocations'!T52*'Debt Dollars FY22'!$C$2","v":0},{"$f":"'Debt allocations'!U52*'Debt Dollars FY22'!$C$2","v":0},{"$f":"'Debt allocations'!V52*'Debt Dollars FY22'!$C$2","v":0},{"$f":"'Debt allocations'!W52*'Debt Dollars FY22'!$C$2","v":0},{"$f":"'Debt allocations'!X52*'Debt Dollars FY22'!$C$2","v":0},{"$f":"'Debt allocations'!Y52*'Debt Dollars FY22'!$C$2","v":0},{"$f":"'Debt allocations'!Z52*'Debt Dollars FY22'!$C$2","v":0},{"$f":"'Debt allocations'!AA52*'Debt Dollars FY22'!$C$2","v":0},{"$f":"'Debt allocations'!AB52*'Debt Dollars FY22'!$C$2","v":0},{"$f":"'Debt allocations'!AC52*'Debt Dollars FY22'!$C$2","v":0},{"$f":"'Debt allocations'!AD52*'Debt Dollars FY22'!$C$2","v":0},{"$f":"'Debt allocations'!AE52*'Debt Dollars FY22'!$C$2","v":0},{"$f":"'Debt allocations'!AF52*'Debt Dollars FY22'!$C$2","v":0},{"$f":"'Debt allocations'!AG52*'Debt Dollars FY22'!$C$2","v":0},{"$f":"'Debt allocations'!AH52*'Debt Dollars FY22'!$C$2","v":0},{"$f":"'Debt allocations'!AI52*'Debt Dollars FY22'!$C$2","v":0},{"$f":"'Debt allocations'!AJ52*'Debt Dollars FY22'!$C$2","v":0},{"$f":"'Debt allocations'!AK52*'Debt Dollars FY22'!$C$2","v":0},{"$f":"'Debt allocations'!AL52*'Debt Dollars FY22'!$C$2","v":0},{"$f":"'Debt allocations'!AM52*'Debt Dollars FY22'!$C$2","v":0},{"$f":"'Debt allocations'!AN52*'Debt Dollars FY22'!$C$2","v":0}]
["167 - Forensic Investigations Council","167","Forensic Investigations Council",9.9999999999999998E-20,1E-8,0,{"$f":"'Debt allocations'!G53*'Debt Dollars FY22'!$C$2","v":0},{"$f":"'Debt allocations'!H53*'Debt Dollars FY22'!$C$2","v":0},{"$f":"'Debt allocations'!I53*'Debt Dollars FY22'!$C$2","v":0},{"$f":"'Debt allocations'!J53*'Debt Dollars FY22'!$C$2","v":0},{"$f":"'Debt allocations'!K53*'Debt Dollars FY22'!$C$2","v":0},{"$f":"'Debt allocations'!L53*'Debt Dollars FY22'!$C$2","v":0},{"$f":"'Debt allocations'!M53*'Debt Dollars FY22'!$C$2","v":0},{"$f":"'Debt allocations'!N53*'Debt Dollars FY22'!$C$2","v":0},{"$f":"'Debt allocations'!O53*'Debt Dollars FY22'!$C$2","v":0},{"$f":"'Debt allocations'!P53*'Debt Dollars FY22'!$C$2","v":0},{"$f":"'Debt allocations'!Q53*'Debt Dollars FY22'!$C$2","v":0},{"$f":"'Debt allocations'!R53*'Debt Dollars FY22'!$C$2","v":0},{"$f":"'Debt allocations'!S53*'Debt Dollars FY22'!$C$2","v":0},{"$f":"'Debt allocations'!T53*'Debt Dollars FY22'!$C$2","v":0},{"$f":"'Debt allocations'!U53*'Debt Dollars FY22'!$C$2","v":0},{"$f":"'Debt allocations'!V53*'Debt Dollars FY22'!$C$2","v":0},{"$f":"'Debt allocations'!W53*'Debt Dollars FY22'!$C$2","v":0},{"$f":"'Debt allocations'!X53*'Debt Dollars FY22'!$C$2","v":0},{"$f":"'Debt allocations'!Y53*'Debt Dollars FY22'!$C$2","v":0},{"$f":"'Debt allocations'!Z53*'Debt Dollars FY22'!$C$2","v":0},{"$f":"'Debt allocations'!AA53*'Debt Dollars FY22'!$C$2","v":0},{"$f":"'Debt allocations'!AB53*'Debt Dollars FY22'!$C$2","v":0},{"$f":"'Debt allocations'!AC53*'Debt Dollars FY22'!$C$2","v":0},{"$f":"'Debt allocations'!AD53*'Debt Dollars FY22'!$C$2","v":0},{"$f":"'Debt allocations'!AE53*'Debt Dollars FY22'!$C$2","v":0},{"$f":"'Debt allocations'!AF53*'Debt Dollars FY22'!$C$2","v":0},{"$f":"'Debt allocations'!AG53*'Debt Dollars FY22'!$C$2","v":0},{"$f":"'Debt allocations'!AH53*'Debt Dollars FY22'!$C$2","v":0},{"$f":"'Debt allocations'!AI53*'Debt Dollars FY22'!$C$2","v":0},{"$f":"'Debt allocations'!AJ53*'Debt Dollars FY22'!$C$2","v":0},{"$f":"'Debt allocations'!AK53*'Debt Dollars FY22'!$C$2","v":0},{"$f":"'Debt allocations'!AL53*'Debt Dollars FY22'!$C$2","v":0},{"$f":"'Debt allocations'!AM53*'Debt Dollars FY22'!$C$2","v":0},{"$f":"'Debt allocations'!AN53*'Debt Dollars FY22'!$C$2","v":0}]
["179 - Department of Enterprise Services","179","Department of Enterprise Services",9.507300393249242E-3,25964,67587.398495608868,{"$f":"'Debt allocations'!G54*'Debt Dollars FY22'!$C$2","v":0},{"$f":"'Debt allocations'!H54*'Debt Dollars FY22'!$C$2","v":0},{"$f":"'Debt allocations'!I54*'Debt Dollars FY22'!$C$2","v":0},{"$f":"'Debt allocations'!J54*'Debt Dollars FY22'!$C$2","v":0},{"$f":"'Debt allocations'!K54*'Debt Dollars FY22'!$C$2","v":0},{"$f":"'Debt allocations'!L54*'Debt Dollars FY22'!$C$2","v":30450.181428013711},{"$f":"'Debt allocations'!M54*'Debt Dollars FY22'!$C$2","v":0},{"$f":"'Debt allocations'!N54*'Debt Dollars FY22'!$C$2","v":0},{"$f":"'Debt allocations'!O54*'Debt Dollars FY22'!$C$2","v":0},{"$f":"'Debt allocations'!P54*'Debt Dollars FY22'!$C$2","v":0},{"$f":"'Debt allocations'!Q54*'Debt Dollars FY22'!$C$2","v":0},{"$f":"'Debt allocations'!R54*'Debt Dollars FY22'!$C$2","v":0},{"$f":"'Debt allocations'!S54*'Debt Dollars FY22'!$C$2","v":0},{"$f":"'Debt allocations'!T54*'Debt Dollars FY22'!$C$2","v":0},{"$f":"'Debt allocations'!U54*'Debt Dollars FY22'!$C$2","v":0},{"$f":"'Debt allocations'!V54*'Debt Dollars FY22'!$C$2","v":0},{"$f":"'Debt allocations'!W54*'Debt Dollars FY22'!$C$2","v":0},{"$f":"'Debt allocations'!X54*'Debt Dollars FY22'!$C$2","v":0},{"$f":"'Debt allocations'!Y54*'Debt Dollars FY22'!$C$2","v":0},{"$f":"'Debt allocations'!Z54*'Debt Dollars FY22'!$C$2","v":29993.260048976277},{"$f":"'Debt allocations'!AA54*'Debt Dollars FY22'!$C$2","v":0},{"$f":"'Debt allocations'!AB54*'Debt Dollars FY22'!$C$2","v":0},{"$f":"'Debt allocations'!AC54*'Debt Dollars FY22'!$C$2","v":0},{"$f":"'Debt allocations'!AD54*'Debt Dollars FY22'!$C$2","v":0},{"$f":"'Debt allocations'!AE54*'Debt Dollars FY22'!$C$2","v":0},{"$f":"'Debt allocations'!AF54*'Debt Dollars FY22'!$C$2","v":0},{"$f":"'Debt allocations'!AG54*'Debt Dollars FY22'!$C$2","v":0},{"$f":"'Debt allocations'!AH54*'Debt Dollars FY22'!$C$2","v":7143.9570186188739},{"$f":"'Debt allocations'!AI54*'Debt Dollars FY22'!$C$2","v":0},{"$f":"'Debt allocations'!AJ54*'Debt Dollars FY22'!$C$2","v":0},{"$f":"'Debt allocations'!AK54*'Debt Dollars FY22'!$C$2","v":0},{"$f":"'Debt allocations'!AL54*'Debt Dollars FY22'!$C$2","v":0},{"$f":"'Debt allocations'!AM54*'Debt Dollars FY22'!$C$2","v":0},{"$f":"'Debt allocations'!AN54*'Debt Dollars FY22'!$C$2","v":0}]
["185 - Horse Racing Commission","185","Horse Racing Commission",9.9999999999999998E-20,1E-8,0,{"$f":"'Debt allocations'!G55*'Debt Dollars FY22'!$C$2","v":0},{"$f":"'Debt allocations'!H55*'Debt Dollars FY22'!$C$2","v":0},{"$f":"'Debt allocations'!I55*'Debt Dollars FY22'!$C$2","v":0},{"$f":"'Debt allocations'!J55*'Debt Dollars FY22'!$C$2","v":0},{"$f":"'Debt allocations'!K55*'Debt Dollars FY22'!$C$2","v":0},{"$f":"'Debt allocations'!L55*'Debt Dollars FY22'!$C$2","v":0},{"$f":"'Debt allocations'!M55*'Debt Dollars FY22'!$C$2","v":0},{"$f":"'Debt allocations'!N55*'Debt Dollars FY22'!$C$2","v":0},{"$f":"'Debt allocations'!O55*'Debt Dollars FY22'!$C$2","v":0},{"$f":"'Debt allocations'!P55*'Debt Dollars FY22'!$C$2","v":0},{"$f":"'Debt allocations'!Q55*'Debt Dollars FY22'!$C$2","v":0},{"$f":"'Debt allocations'!R55*'Debt Dollars FY22'!$C$2","v":0},{"$f":"'Debt allocations'!S55*'Debt Dollars FY22'!$C$2","v":0},{"$f":"'Debt allocations'!T55*'Debt Dollars FY22'!$C$2","v":0},{"$f":"'Debt allocations'!U55*'Debt Dollars FY22'!$C$2","v":0},{"$f":"'Debt allocations'!V55*'Debt Dollars FY22'!$C$2","v":0},{"$f":"'Debt allocations'!W55*'Debt Dollars FY22'!$C$2","v":0},{"$f":"'Debt allocations'!X55*'Debt Dollars FY22'!$C$2","v":0},{"$f":"'Debt allocations'!Y55*'Debt Dollars FY22'!$C$2","v":0},{"$f":"'Debt allocations'!Z55*'Debt Dollars FY22'!$C$2","v":0},{"$f":"'Debt allocations'!AA55*'Debt Dollars FY22'!$C$2","v":0},{"$f":"'Debt allocations'!AB55*'Debt Dollars FY22'!$C$2","v":0},{"$f":"'Debt allocations'!AC55*'Debt Dollars FY22'!$C$2","v":0},{"$f":"'Debt allocations'!AD55*'Debt Dollars FY22'!$C$2","v":0},{"$f":"'Debt allocations'!AE55*'Debt Dollars FY22'!$C$2","v":0},{"$f":"'Debt allocations'!AF55*'Debt Dollars FY22'!$C$2","v":0},{"$f":"'Debt allocations'!AG55*'Debt Dollars FY22'!$C$2","v":0},{"$f":"'Debt allocations'!AH55*'Debt Dollars FY22'!$C$2","v":0},{"$f":"'Debt allocations'!AI55*'Debt Dollars FY22'!$C$2","v":0},{"$f":"'Debt allocations'!AJ55*'Debt Dollars FY22'!$C$2","v":0},{"$f":"'Debt allocations'!AK55*'Debt Dollars FY22'!$C$2","v":0},{"$f":"'Debt allocations'!AL55*'Debt Dollars FY22'!$C$2","v":0},{"$f":"'Debt allocations'!AM55*'Debt Dollars FY22'!$C$2","v":0},{"$f":"'Debt allocations'!AN55*'Debt Dollars FY22'!$C$2","v":0}]
["190 - Board of Industrial Insurance Appeals","190","Board of Industrial Insurance Appeals",9.9999999999999998E-20,1E-8,0,{"$f":"'Debt allocations'!G56*'Debt Dollars FY22'!$C$2","v":0},{"$f":"'Debt allocations'!H56*'Debt Dollars FY22'!$C$2","v":0},{"$f":"'Debt allocations'!I56*'Debt Dollars FY22'!$C$2","v":0},{"$f":"'Debt allocations'!J56*'Debt Dollars FY22'!$C$2","v":0},{"$f":"'Debt allocations'!K56*'Debt Dollars FY22'!$C$2","v":0},{"$f":"'Debt allocations'!L56*'Debt Dollars FY22'!$C$2","v":0},{"$f":"'Debt allocations'!M56*'Debt Dollars FY22'!$C$2","v":0},{"$f":"'Debt allocations'!N56*'Debt Dollars FY22'!$C$2","v":0},{"$f":"'Debt allocations'!O56*'Debt Dollars FY22'!$C$2","v":0},{"$f":"'Debt allocations'!P56*'Debt Dollars FY22'!$C$2","v":0},{"$f":"'Debt allocations'!Q56*'Debt Dollars FY22'!$C$2","v":0},{"$f":"'Debt allocations'!R56*'Debt Dollars FY22'!$C$2","v":0},{"$f":"'Debt allocations'!S56*'Debt Dollars FY22'!$C$2","v":0},{"$f":"'Debt allocations'!T56*'Debt Dollars FY22'!$C$2","v":0},{"$f":"'Debt allocations'!U56*'Debt Dollars FY22'!$C$2","v":0},{"$f":"'Debt allocations'!V56*'Debt Dollars FY22'!$C$2","v":0},{"$f":"'Debt allocations'!W56*'Debt Dollars FY22'!$C$2","v":0},{"$f":"'Debt allocations'!X56*'Debt Dollars FY22'!$C$2","v":0},{"$f":"'Debt allocations'!Y56*'Debt Dollars FY22'!$C$2","v":0},{"$f":"'Debt allocations'!Z56*'Debt Dollars FY22'!$C$2","v":0},{"$f":"'Debt allocations'!AA56*'Debt Dollars FY22'!$C$2","v":0},{"$f":"'Debt allocations'!AB56*'Debt Dollars FY22'!$C$2","v":0},{"$f":"'Debt allocations'!AC56*'Debt Dollars FY22'!$C$2","v":0},{"$f":"'Debt allocations'!AD56*'Debt Dollars FY22'!$C$2","v":0},{"$f":"'Debt allocations'!AE56*'Debt Dollars FY22'!$C$2","v":0},{"$f":"'Debt allocations'!AF56*'Debt Dollars FY22'!$C$2","v":0},{"$f":"'Debt allocations'!AG56*'Debt Dollars FY22'!$C$2","v":0},{"$f":"'Debt allocations'!AH56*'Debt Dollars FY22'!$C$2","v":0},{"$f":"'Debt allocations'!AI56*'Debt Dollars FY22'!$C$2","v":0},{"$f":"'Debt allocations'!AJ56*'Debt Dollars FY22'!$C$2","v":0},{"$f":"'Debt allocations'!AK56*'Debt Dollars FY22'!$C$2","v":0},{"$f":"'Debt allocations'!AL56*'Debt Dollars FY22'!$C$2","v":0},{"$f":"'Debt allocations'!AM56*'Debt Dollars FY22'!$C$2","v":0},{"$f":"'Debt allocations'!AN56*'Debt Dollars FY22'!$C$2","v":0}]
["195 - Liquor Control Board","195","Liquor Control Board",9.9999999999999998E-20,1E-8,0,{"$f":"'Debt allocations'!G57*'Debt Dollars FY22'!$C$2","v":0},{"$f":"'Debt allocations'!H57*'Debt Dollars FY22'!$C$2","v":0},{"$f":"'Debt allocations'!I57*'Debt Dollars FY22'!$C$2","v":0},{"$f":"'Debt allocations'!J57*'Debt Dollars FY22'!$C$2","v":0},{"$f":"'Debt allocations'!K57*'Debt Dollars FY22'!$C$2","v":0},{"$f":"'Debt allocations'!L57*'Debt Dollars FY22'!$C$2","v":0},{"$f":"'Debt allocations'!M57*'Debt Dollars FY22'!$C$2","v":0},{"$f":"'Debt allocations'!N57*'Debt Dollars FY22'!$C$2","v":0},{"$f":"'Debt allocations'!O57*'Debt Dollars FY22'!$C$2","v":0},{"$f":"'Debt allocations'!P57*'Debt Dollars FY22'!$C$2","v":0},{"$f":"'Debt allocations'!Q57*'Debt Dollars FY22'!$C$2","v":0},{"$f":"'Debt allocations'!R57*'Debt Dollars FY22'!$C$2","v":0},{"$f":"'Debt allocations'!S57*'Debt Dollars FY22'!$C$2","v":0},{"$f":"'Debt allocations'!T57*'Debt Dollars FY22'!$C$2","v":0},{"$f":"'Debt allocations'!U57*'Debt Dollars FY22'!$C$2","v":0},{"$f":"'Debt allocations'!V57*'Debt Dollars FY22'!$C$2","v":0},{"$f":"'Debt allocations'!W57*'Debt Dollars FY22'!$C$2","v":0},{"$f":"'Debt allocations'!X57*'Debt Dollars FY22'!$C$2","v":0},{"$f":"'Debt allocations'!Y57*'Debt Dollars FY22'!$C$2","v":0},{"$f":"'Debt allocations'!Z57*'Debt Dollars FY22'!$C$2","v":0},{"$f":"'Debt allocations'!AA57*'Debt Dollars FY22'!$C$2","v":0},{"$f":"'Debt allocations'!AB57*'Debt Dollars FY22'!$C$2","v":0},{"$f":"'Debt allocations'!AC57*'Debt Dollars FY22'!$C$2","v":0},{"$f":"'Debt allocations'!AD57*'Debt Dollars FY22'!$C$2","v":0},{"$f":"'Debt allocations'!AE57*'Debt Dollars FY22'!$C$2","v":0},{"$f":"'Debt allocations'!AF57*'Debt Dollars FY22'!$C$2","v":0},{"$f":"'Debt allocations'!AG57*'Debt Dollars FY22'!$C$2","v":0},{"$f":"'Debt allocations'!AH57*'Debt Dollars FY22'!$C$2","v":0},{"$f":"'Debt allocations'!AI57*'Debt Dollars FY22'!$C$2","v":0},{"$f":"'Debt allocations'!AJ57*'Debt Dollars FY22'!$C$2","v":0},{"$f":"'Debt allocations'!AK57*'Debt Dollars FY22'!$C$2","v":0},{"$f":"'Debt allocations'!AL57*'Debt Dollars FY22'!$C$2","v":0},{"$f":"'Debt allocations'!AM57*'Debt Dollars FY22'!$C$2","v":0},{"$f":"'Debt allocations'!AN57*'Debt Dollars FY22'!$C$2","v":0}]
["205 - Board of Pilotage Commissioners","205","Board of Pilotage Commissioners",9.9999999999999998E-20,1E-8,0,{"$f":"'Debt allocations'!G58*'Debt Dollars FY22'!$C$2","v":0},{"$f":"'Debt allocations'!H58*'Debt Dollars FY22'!$C$2","v":0},{"$f":"'Debt allocations'!I58*'Debt Dollars FY22'!$C$2","v":0},{"$f":"'Debt allocations'!J58*'Debt Dollars FY22'!$C$2","v":0},{"$f":"'Debt allocations'!K58*'Debt Dollars FY22'!$C$2","v":0},{"$f":"'Debt allocations'!L58*'Debt Dollars FY22'!$C$2","v":0},{"$f":"'Debt allocations'!M58*'Debt Dollars FY22'!$C$2","v":0},{"$f":"'Debt allocations'!N58*'Debt Dollars FY22'!$C$2","v":0},{"$f":"'Debt allocations'!O58*'Debt Dollars FY22'!$C$2","v":0},{"$f":"'Debt allocations'!P58*'Debt Dollars FY22'!$C$2","v":0},{"$f":"'Debt allocations'!Q58*'Debt Dollars FY22'!$C$2","v":0},{"$f":"'Debt allocations'!R58*'Debt Dollars FY22'!$C$2","v":0},{"$f":"'Debt allocations'!S58*'Debt Dollars FY22'!$C$2","v":0},{"$f":"'Debt allocations'!T58*'Debt Dollars FY22'!$C$2","v":0},{"$f":"'Debt allocations'!U58*'Debt Dollars FY22'!$C$2","v":0},{"$f":"'Debt allocations'!V58*'Debt Dollars FY22'!$C$2","v":0},{"$f":"'Debt allocations'!W58*'Debt Dollars FY22'!$C$2","v":0},{"$f":"'Debt allocations'!X58*'Debt Dollars FY22'!$C$2","v":0},{"$f":"'Debt allocations'!Y58*'Debt Dollars FY22'!$C$2","v":0},{"$f":"'Debt allocations'!Z58*'Debt Dollars FY22'!$C$2","v":0},{"$f":"'Debt allocations'!AA58*'Debt Dollars FY22'!$C$2","v":0},{"$f":"'Debt allocations'!AB58*'Debt Dollars FY22'!$C$2","v":0},{"$f":"'Debt allocations'!AC58*'Debt Dollars FY22'!$C$2","v":0},{"$f":"'Debt allocations'!AD58*'Debt Dollars FY22'!$C$2","v":0},{"$f":"'Debt allocations'!AE58*'Debt Dollars FY22'!$C$2","v":0},{"$f":"'Debt allocations'!AF58*'Debt Dollars FY22'!$C$2","v":0},{"$f":"'Debt allocations'!AG58*'Debt Dollars FY22'!$C$2","v":0},{"$f":"'Debt allocations'!AH58*'Debt Dollars FY22'!$C$2","v":0},{"$f":"'Debt allocations'!AI58*'Debt Dollars FY22'!$C$2","v":0},{"$f":"'Debt allocations'!AJ58*'Debt Dollars FY22'!$C$2","v":0},{"$f":"'Debt allocations'!AK58*'Debt Dollars FY22'!$C$2","v":0},{"$f":"'Debt allocations'!AL58*'Debt Dollars FY22'!$C$2","v":0},{"$f":"'Debt allocations'!AM58*'Debt Dollars FY22'!$C$2","v":0},{"$f":"'Debt allocations'!AN58*'Debt Dollars FY22'!$C$2","v":0}]
["215 - Utilities and Transportation Commission","215","Utilities and Transportation Commission",9.9999999999999998E-20,1E-8,0,{"$f":"'Debt allocations'!G59*'Debt Dollars FY22'!$C$2","v":0},{"$f":"'Debt allocations'!H59*'Debt Dollars FY22'!$C$2","v":0},{"$f":"'Debt allocations'!I59*'Debt Dollars FY22'!$C$2","v":0},{"$f":"'Debt allocations'!J59*'Debt Dollars FY22'!$C$2","v":0},{"$f":"'Debt allocations'!K59*'Debt Dollars FY22'!$C$2","v":0},{"$f":"'Debt allocations'!L59*'Debt Dollars FY22'!$C$2","v":0},{"$f":"'Debt allocations'!M59*'Debt Dollars FY22'!$C$2","v":0},{"$f":"'Debt allocations'!N59*'Debt Dollars FY22'!$C$2","v":0},{"$f":"'Debt allocations'!O59*'Debt Dollars FY22'!$C$2","v":0},{"$f":"'Debt allocations'!P59*'Debt Dollars FY22'!$C$2","v":0},{"$f":"'Debt allocations'!Q59*'Debt Dollars FY22'!$C$2","v":0},{"$f":"'Debt allocations'!R59*'Debt Dollars FY22'!$C$2","v":0},{"$f":"'Debt allocations'!S59*'Debt Dollars FY22'!$C$2","v":0},{"$f":"'Debt allocations'!T59*'Debt Dollars FY22'!$C$2","v":0},{"$f":"'Debt allocations'!U59*'Debt Dollars FY22'!$C$2","v":0},{"$f":"'Debt allocations'!V59*'Debt Dollars FY22'!$C$2","v":0},{"$f":"'Debt allocations'!W59*'Debt Dollars FY22'!$C$2","v":0},{"$f":"'Debt allocations'!X59*'Debt Dollars FY22'!$C$2","v":0},{"$f":"'Debt allocations'!Y59*'Debt Dollars FY22'!$C$2","v":0},{"$f":"'Debt allocations'!Z59*'Debt Dollars FY22'!$C$2","v":0},{"$f":"'Debt allocations'!AA59*'Debt Dollars FY22'!$C$2","v":0},{"$f":"'Debt allocations'!AB59*'Debt Dollars FY22'!$C$2","v":0},{"$f":"'Debt allocations'!AC59*'Debt Dollars FY22'!$C$2","v":0},{"$f":"'Debt allocations'!AD59*'Debt Dollars FY22'!$C$2","v":0},{"$f":"'Debt allocations'!AE59*'Debt Dollars FY22'!$C$2","v":0},{"$f":"'Debt allocations'!AF59*'Debt Dollars FY22'!$C$2","v":0},{"$f":"'Debt allocations'!AG59*'Debt Dollars FY22'!$C$2","v":0},{"$f":"'Debt allocations'!AH59*'Debt Dollars FY22'!$C$2","v":0},{"$f":"'Debt allocations'!AI59*'Debt Dollars FY22'!$C$2","v":0},{"$f":"'Debt allocations'!AJ59*'Debt Dollars FY22'!$C$2","v":0},{"$f":"'Debt allocations'!AK59*'Debt Dollars FY22'!$C$2","v":0},{"$f":"'Debt allocations'!AL59*'Debt Dollars FY22'!$C$2","v":0},{"$f":"'Debt allocations'!AM59*'Debt Dollars FY22'!$C$2","v":0},{"$f":"'Debt allocations'!AN59*'Debt Dollars FY22'!$C$2","v":0}]
["220 - Board for Volunteer Firefighters and Reserve Officers","220","Board for Volunteer Firefighters and Reserve Officers",9.9999999999999998E-20,1E-8,0,{"$f":"'Debt allocations'!G60*'Debt Dollars FY22'!$C$2","v":0},{"$f":"'Debt allocations'!H60*'Debt Dollars FY22'!$C$2","v":0},{"$f":"'Debt allocations'!I60*'Debt Dollars FY22'!$C$2","v":0},{"$f":"'Debt allocations'!J60*'Debt Dollars FY22'!$C$2","v":0},{"$f":"'Debt allocations'!K60*'Debt Dollars FY22'!$C$2","v":0},{"$f":"'Debt allocations'!L60*'Debt Dollars FY22'!$C$2","v":0},{"$f":"'Debt allocations'!M60*'Debt Dollars FY22'!$C$2","v":0},{"$f":"'Debt allocations'!N60*'Debt Dollars FY22'!$C$2","v":0},{"$f":"'Debt allocations'!O60*'Debt Dollars FY22'!$C$2","v":0},{"$f":"'Debt allocations'!P60*'Debt Dollars FY22'!$C$2","v":0},{"$f":"'Debt allocations'!Q60*'Debt Dollars FY22'!$C$2","v":0},{"$f":"'Debt allocations'!R60*'Debt Dollars FY22'!$C$2","v":0},{"$f":"'Debt allocations'!S60*'Debt Dollars FY22'!$C$2","v":0},{"$f":"'Debt allocations'!T60*'Debt Dollars FY22'!$C$2","v":0},{"$f":"'Debt allocations'!U60*'Debt Dollars FY22'!$C$2","v":0},{"$f":"'Debt allocations'!V60*'Debt Dollars FY22'!$C$2","v":0},{"$f":"'Debt allocations'!W60*'Debt Dollars FY22'!$C$2","v":0},{"$f":"'Debt allocations'!X60*'Debt Dollars FY22'!$C$2","v":0},{"$f":"'Debt allocations'!Y60*'Debt Dollars FY22'!$C$2","v":0},{"$f":"'Debt allocations'!Z60*'Debt Dollars FY22'!$C$2","v":0},{"$f":"'Debt allocations'!AA60*'Debt Dollars FY22'!$C$2","v":0},{"$f":"'Debt allocations'!AB60*'Debt Dollars FY22'!$C$2","v":0},{"$f":"'Debt allocations'!AC60*'Debt Dollars FY22'!$C$2","v":0},{"$f":"'Debt allocations'!AD60*'Debt Dollars FY22'!$C$2","v":0},{"$f":"'Debt allocations'!AE60*'Debt Dollars FY22'!$C$2","v":0},{"$f":"'Debt allocations'!AF60*'Debt Dollars FY22'!$C$2","v":0},{"$f":"'Debt allocations'!AG60*'Debt Dollars FY22'!$C$2","v":0},{"$f":"'Debt allocations'!AH60*'Debt Dollars FY22'!$C$2","v":0},{"$f":"'Debt allocations'!AI60*'Debt Dollars FY22'!$C$2","v":0},{"$f":"'Debt allocations'!AJ60*'Debt Dollars FY22'!$C$2","v":0},{"$f":"'Debt allocations'!AK60*'Debt Dollars FY22'!$C$2","v":0},{"$f":"'Debt allocations'!AL60*'Debt Dollars FY22'!$C$2","v":0},{"$f":"'Debt allocations'!AM60*'Debt Dollars FY22'!$C$2","v":0},{"$f":"'Debt allocations'!AN60*'Debt Dollars FY22'!$C$2","v":0}]
["225 - Washington State Patrol","225","Washington State Patrol",0.4602487693539713,137399,3271908.501337382,{"$f":"'Debt allocations'!G61*'Debt Dollars FY22'!$C$2","v":0},{"$f":"'Debt allocations'!H61*'Debt Dollars FY22'!$C$2","v":0},{"$f":"'Debt allocations'!I61*'Debt Dollars FY22'!$C$2","v":0},{"$f":"'Debt allocations'!J61*'Debt Dollars FY22'!$C$2","v":0},{"$f":"'Debt allocations'!K61*'Debt Dollars FY22'!$C$2","v":0},{"$f":"'Debt allocations'!L61*'Debt Dollars FY22'!$C$2","v":0},{"$f":"'Debt allocations'!M61*'Debt Dollars FY22'!$C$2","v":0},{"$f":"'Debt allocations'!N61*'Debt Dollars FY22'!$C$2","v":0},{"$f":"'Debt allocations'!O61*'Debt Dollars FY22'!$C$2","v":0},{"$f":"'Debt allocations'!P61*'Debt Dollars FY22'!$C$2","v":0},{"$f":"'Debt allocations'!Q61*'Debt Dollars FY22'!$C$2","v":0},{"$f":"'Debt allocations'!R61*'Debt Dollars FY22'!$C$2","v":0},{"$f":"'Debt allocations'!S61*'Debt Dollars FY22'!$C$2","v":0},{"$f":"'Debt allocations'!T61*'Debt Dollars FY22'!$C$2","v":0},{"$f":"'Debt allocations'!U61*'Debt Dollars FY22'!$C$2","v":0},{"$f":"'Debt allocations'!V61*'Debt Dollars FY22'!$C$2","v":0},{"$f":"'Debt allocations'!W61*'Debt Dollars FY22'!$C$2","v":0},{"$f":"'Debt allocations'!X61*'Debt Dollars FY22'!$C$2","v":0},{"$f":"'Debt allocations'!Y61*'Debt Dollars FY22'!$C$2","v":0},{"$f":"'Debt allocations'!Z61*'Debt Dollars FY22'!$C$2","v":0},{"$f":"'Debt allocations'!AA61*'Debt Dollars FY22'!$C$2","v":0},{"$f":"'Debt allocations'!AB61*'Debt Dollars FY22'!$C$2","v":0},{"$f":"'Debt allocations'!AC61*'Debt Dollars FY22'!$C$2","v":0},{"$f":"'Debt allocations'!AD61*'Debt Dollars FY22'!$C$2","v":0},{"$f":"'Debt allocations'!AE61*'Debt Dollars FY22'!$C$2","v":0},{"$f":"'Debt allocations'!AF61*'Debt Dollars FY22'!$C$2","v":0},{"$f":"'Debt allocations'!AG61*'Debt Dollars FY22'!$C$2","v":0},{"$f":"'Debt allocations'!AH61*'Debt Dollars FY22'!$C$2","v":3271908.501337382},{"$f":"'Debt allocations'!AI61*'Debt Dollars FY22'!$C$2","v":0},{"$f":"'Debt allocations'!AJ61*'Debt Dollars FY22'!$C$2","v":0},{"$f":"'Debt allocations'!AK61*'Debt Dollars FY22'!$C$2","v":0},{"$f":"'Debt allocations'!AL61*'Debt Dollars FY22'!$C$2","v":0},{"$f":"'Debt allocations'!AM61*'Debt Dollars FY22'!$C$2","v":0},{"$f":"'Debt allocations'!AN61*'Debt Dollars FY22'!$C$2","v":0}]
["227 - Criminal Justice Training Commission","227","Criminal Justice Training Commission",9.9999999999999998E-20,1E-8,0,{"$f":"'Debt allocations'!G62*'Debt Dollars FY22'!$C$2","v":0},{"$f":"'Debt allocations'!H62*'Debt Dollars FY22'!$C$2","v":0},{"$f":"'Debt allocations'!I62*'Debt Dollars FY22'!$C$2","v":0},{"$f":"'Debt allocations'!J62*'Debt Dollars FY22'!$C$2","v":0},{"$f":"'Debt allocations'!K62*'Debt Dollars FY22'!$C$2","v":0},{"$f":"'Debt allocations'!L62*'Debt Dollars FY22'!$C$2","v":0},{"$f":"'Debt allocations'!M62*'Debt Dollars FY22'!$C$2","v":0},{"$f":"'Debt allocations'!N62*'Debt Dollars FY22'!$C$2","v":0},{"$f":"'Debt allocations'!O62*'Debt Dollars FY22'!$C$2","v":0},{"$f":"'Debt allocations'!P62*'Debt Dollars FY22'!$C$2","v":0},{"$f":"'Debt allocations'!Q62*'Debt Dollars FY22'!$C$2","v":0},{"$f":"'Debt allocations'!R62*'Debt Dollars FY22'!$C$2","v":0},{"$f":"'Debt allocations'!S62*'Debt Dollars FY22'!$C$2","v":0},{"$f":"'Debt allocations'!T62*'Debt Dollars FY22'!$C$2","v":0},{"$f":"'Debt allocations'!U62*'Debt Dollars FY22'!$C$2","v":0},{"$f":"'Debt allocations'!V62*'Debt Dollars FY22'!$C$2","v":0},{"$f":"'Debt allocations'!W62*'Debt Dollars FY22'!$C$2","v":0},{"$f":"'Debt allocations'!X62*'Debt Dollars FY22'!$C$2","v":0},{"$f":"'Debt allocations'!Y62*'Debt Dollars FY22'!$C$2","v":0},{"$f":"'Debt allocations'!Z62*'Debt Dollars FY22'!$C$2","v":0},{"$f":"'Debt allocations'!AA62*'Debt Dollars FY22'!$C$2","v":0},{"$f":"'Debt allocations'!AB62*'Debt Dollars FY22'!$C$2","v":0},{"$f":"'Debt allocations'!AC62*'Debt Dollars FY22'!$C$2","v":0},{"$f":"'Debt allocations'!AD62*'Debt Dollars FY22'!$C$2","v":0},{"$f":"'Debt allocations'!AE62*'Debt Dollars FY22'!$C$2","v":0},{"$f":"'Debt allocations'!AF62*'Debt Dollars FY22'!$C$2","v":0},{"$f":"'Debt allocations'!AG62*'Debt Dollars FY22'!$C$2","v":0},{"$f":"'Debt allocations'!AH62*'Debt Dollars FY22'!$C$2","v":0},{"$f":"'Debt allocations'!AI62*'Debt Dollars FY22'!$C$2","v":0},{"$f":"'Debt allocations'!AJ62*'Debt Dollars FY22'!$C$2","v":0},{"$f":"'Debt allocations'!AK62*'Debt Dollars FY22'!$C$2","v":0},{"$f":"'Debt allocations'!AL62*'Debt Dollars FY22'!$C$2","v":0},{"$f":"'Debt allocations'!AM62*'Debt Dollars FY22'!$C$2","v":0},{"$f":"'Debt allocations'!AN62*'Debt Dollars FY22'!$C$2","v":0}]
["228 - Traffic Safety Commission","228","Traffic Safety Commission",9.9999999999999998E-20,1E-8,0,{"$f":"'Debt allocations'!G63*'Debt Dollars FY22'!$C$2","v":0},{"$f":"'Debt allocations'!H63*'Debt Dollars FY22'!$C$2","v":0},{"$f":"'Debt allocations'!I63*'Debt Dollars FY22'!$C$2","v":0},{"$f":"'Debt allocations'!J63*'Debt Dollars FY22'!$C$2","v":0},{"$f":"'Debt allocations'!K63*'Debt Dollars FY22'!$C$2","v":0},{"$f":"'Debt allocations'!L63*'Debt Dollars FY22'!$C$2","v":0},{"$f":"'Debt allocations'!M63*'Debt Dollars FY22'!$C$2","v":0},{"$f":"'Debt allocations'!N63*'Debt Dollars FY22'!$C$2","v":0},{"$f":"'Debt allocations'!O63*'Debt Dollars FY22'!$C$2","v":0},{"$f":"'Debt allocations'!P63*'Debt Dollars FY22'!$C$2","v":0},{"$f":"'Debt allocations'!Q63*'Debt Dollars FY22'!$C$2","v":0},{"$f":"'Debt allocations'!R63*'Debt Dollars FY22'!$C$2","v":0},{"$f":"'Debt allocations'!S63*'Debt Dollars FY22'!$C$2","v":0},{"$f":"'Debt allocations'!T63*'Debt Dollars FY22'!$C$2","v":0},{"$f":"'Debt allocations'!U63*'Debt Dollars FY22'!$C$2","v":0},{"$f":"'Debt allocations'!V63*'Debt Dollars FY22'!$C$2","v":0},{"$f":"'Debt allocations'!W63*'Debt Dollars FY22'!$C$2","v":0},{"$f":"'Debt allocations'!X63*'Debt Dollars FY22'!$C$2","v":0},{"$f":"'Debt allocations'!Y63*'Debt Dollars FY22'!$C$2","v":0},{"$f":"'Debt allocations'!Z63*'Debt Dollars FY22'!$C$2","v":0},{"$f":"'Debt allocations'!AA63*'Debt Dollars FY22'!$C$2","v":0},{"$f":"'Debt allocations'!AB63*'Debt Dollars FY22'!$C$2","v":0},{"$f":"'Debt allocations'!AC63*'Debt Dollars FY22'!$C$2","v":0},{"$f":"'Debt allocations'!AD63*'Debt Dollars FY22'!$C$2","v":0},{"$f":"'Debt allocations'!AE63*'Debt Dollars FY22'!$C$2","v":0},{"$f":"'Debt allocations'!AF63*'Debt Dollars FY22'!$C$2","v":0},{"$f":"'Debt allocations'!AG63*'Debt Dollars FY22'!$C$2","v":0},{"$f":"'Debt allocations'!AH63*'Debt Dollars FY22'!$C$2","v":0},{"$f":"'Debt allocations'!AI63*'Debt Dollars FY22'!$C$2","v":0},{"$f":"'Debt allocations'!AJ63*'Debt Dollars FY22'!$C$2","v":0},{"$f":"'Debt allocations'!AK63*'Debt Dollars FY22'!$C$2","v":0},{"$f":"'Debt allocations'!AL63*'Debt Dollars FY22'!$C$2","v":0},{"$f":"'Debt allocations'!AM63*'Debt Dollars FY22'!$C$2","v":0},{"$f":"'Debt allocations'!AN63*'Debt Dollars FY22'!$C$2","v":0}]
["235 - Department of Labor and Industries","235","Department of Labor and Industries",1.2676526834204572E-2,39511,90117.429264360297,{"$f":"'Debt allocations'!G64*'Debt Dollars FY22'!$C$2","v":0},{"$f":"'Debt allocations'!H64*'Debt Dollars FY22'!$C$2","v":0},{"$f":"'Debt allocations'!I64*'Debt Dollars FY22'!$C$2","v":0},{"$f":"'Debt allocations'!J64*'Debt Dollars FY22'!$C$2","v":0},{"$f":"'Debt allocations'!K64*'Debt Dollars FY22'!$C$2","v":0},{"$f":"'Debt allocations'!L64*'Debt Dollars FY22'!$C$2","v":0},{"$f":"'Debt allocations'!M64*'Debt Dollars FY22'!$C$2","v":0},{"$f":"'Debt allocations'!N64*'Debt Dollars FY22'!$C$2","v":0},{"$f":"'Debt allocations'!O64*'Debt Dollars FY22'!$C$2","v":0},{"$f":"'Debt allocations'!P64*'Debt Dollars FY22'!$C$2","v":0},{"$f":"'Debt allocations'!Q64*'Debt Dollars FY22'!$C$2","v":0},{"$f":"'Debt allocations'!R64*'Debt Dollars FY22'!$C$2","v":0},{"$f":"'Debt allocations'!S64*'Debt Dollars FY22'!$C$2","v":0},{"$f":"'Debt allocations'!T64*'Debt Dollars FY22'!$C$2","v":0},{"$f":"'Debt allocations'!U64*'Debt Dollars FY22'!$C$2","v":0},{"$f":"'Debt allocations'!V64*'Debt Dollars FY22'!$C$2","v":0},{"$f":"'Debt allocations'!W64*'Debt Dollars FY22'!$C$2","v":0},{"$f":"'Debt allocations'!X64*'Debt Dollars FY22'!$C$2","v":0},{"$f":"'Debt allocations'!Y64*'Debt Dollars FY22'!$C$2","v":0},{"$f":"'Debt allocations'!Z64*'Debt Dollars FY22'!$C$2","v":0},{"$f":"'Debt allocations'!AA64*'Debt Dollars FY22'!$C$2","v":0},{"$f":"'Debt allocations'!AB64*'Debt Dollars FY22'!$C$2","v":0},{"$f":"'Debt allocations'!AC64*'Debt Dollars FY22'!$C$2","v":0},{"$f":"'Debt allocations'!AD64*'Debt Dollars FY22'!$C$2","v":0},{"$f":"'Debt allocations'!AE64*'Debt Dollars FY22'!$C$2","v":0},{"$f":"'Debt allocations'!AF64*'Debt Dollars FY22'!$C$2","v":0},{"$f":"'Debt allocations'!AG64*'Debt Dollars FY22'!$C$2","v":0},{"$f":"'Debt allocations'!AH64*'Debt Dollars FY22'!$C$2","v":0},{"$f":"'Debt allocations'!AI64*'Debt Dollars FY22'!$C$2","v":13195.273441798343},{"$f":"'Debt allocations'!AJ64*'Debt Dollars FY22'!$C$2","v":0},{"$f":"'Debt allocations'!AK64*'Debt Dollars FY22'!$C$2","v":0},{"$f":"'Debt allocations'!AL64*'Debt Dollars FY22'!$C$2","v":76922.155822561952},{"$f":"'Debt allocations'!AM64*'Debt Dollars FY22'!$C$2","v":0},{"$f":"'Debt allocations'!AN64*'Debt Dollars FY22'!$C$2","v":0}]
["240 - Department of Licensing","240","Department of Licensing",2.1141483444281337E-2,104161,150294.80580539606,{"$f":"'Debt allocations'!G65*'Debt Dollars FY22'!$C$2","v":0},{"$f":"'Debt allocations'!H65*'Debt Dollars FY22'!$C$2","v":0},{"$f":"'Debt allocations'!I65*'Debt Dollars FY22'!$C$2","v":0},{"$f":"'Debt allocations'!J65*'Debt Dollars FY22'!$C$2","v":0},{"$f":"'Debt allocations'!K65*'Debt Dollars FY22'!$C$2","v":150294.80580539606},{"$f":"'Debt allocations'!L65*'Debt Dollars FY22'!$C$2","v":0},{"$f":"'Debt allocations'!M65*'Debt Dollars FY22'!$C$2","v":0},{"$f":"'Debt allocations'!N65*'Debt Dollars FY22'!$C$2","v":0},{"$f":"'Debt allocations'!O65*'Debt Dollars FY22'!$C$2","v":0},{"$f":"'Debt allocations'!P65*'Debt Dollars FY22'!$C$2","v":0},{"$f":"'Debt allocations'!Q65*'Debt Dollars FY22'!$C$2","v":0},{"$f":"'Debt allocations'!R65*'Debt Dollars FY22'!$C$2","v":0},{"$f":"'Debt allocations'!S65*'Debt Dollars FY22'!$C$2","v":0},{"$f":"'Debt allocations'!T65*'Debt Dollars FY22'!$C$2","v":0},{"$f":"'Debt allocations'!U65*'Debt Dollars FY22'!$C$2","v":0},{"$f":"'Debt allocations'!V65*'Debt Dollars FY22'!$C$2","v":0},{"$f":"'Debt allocations'!W65*'Debt Dollars FY22'!$C$2","v":0},{"$f":"'Debt allocations'!X65*'Debt Dollars FY22'!$C$2","v":0},{"$f":"'Debt allocations'!Y65*'Debt Dollars FY22'!$C$2","v":0},{"$f":"'Debt allocations'!Z65*'Debt Dollars FY22'!$C$2","v":0},{"$f":"'Debt allocations'!AA65*'Debt Dollars FY22'!$C$2","v":0},{"$f":"'Debt allocations'!AB65*'Debt Dollars FY22'!$C$2","v":0},{"$f":"'Debt allocations'!AC65*'Debt Dollars FY22'!$C$2","v":0},{"$f":"'Debt allocations'!AD65*'Debt Dollars FY22'!$C$2","v":0},{"$f":"'Debt allocations'!AE65*'Debt Dollars FY22'!$C$2","v":0},{"$f":"'Debt allocations'!AF65*'Debt Dollars FY22'!$C$2","v":0},{"$f":"'Debt allocations'!AG65*'Debt Dollars FY22'!$C$2","v":0},{"$f":"'Debt allocations'!AH65*'Debt Dollars FY22'!$C$2","v":0},{"$f":"'Debt allocations'!AI65*'Debt Dollars FY22'!$C$2","v":0},{"$f":"'Debt allocations'!AJ65*'Debt Dollars FY22'!$C$2","v":0},{"$f":"'Debt allocations'!AK65*'Debt Dollars FY22'!$C$2","v":0},{"$f":"'Debt allocations'!AL65*'Debt Dollars FY22'!$C$2","v":0},{"$f":"'Debt allocations'!AM65*'Debt Dollars FY22'!$C$2","v":0},{"$f":"'Debt allocations'!AN65*'Debt Dollars FY22'!$C$2","v":0}]
["245 - Military Department","245","Military Department",9.9999999999999998E-20,1E-8,0,{"$f":"'Debt allocations'!G66*'Debt Dollars FY22'!$C$2","v":0},{"$f":"'Debt allocations'!H66*'Debt Dollars FY22'!$C$2","v":0},{"$f":"'Debt allocations'!I66*'Debt Dollars FY22'!$C$2","v":0},{"$f":"'Debt allocations'!J66*'Debt Dollars FY22'!$C$2","v":0},{"$f":"'Debt allocations'!K66*'Debt Dollars FY22'!$C$2","v":0},{"$f":"'Debt allocations'!L66*'Debt Dollars FY22'!$C$2","v":0},{"$f":"'Debt allocations'!M66*'Debt Dollars FY22'!$C$2","v":0},{"$f":"'Debt allocations'!N66*'Debt Dollars FY22'!$C$2","v":0},{"$f":"'Debt allocations'!O66*'Debt Dollars FY22'!$C$2","v":0},{"$f":"'Debt allocations'!P66*'Debt Dollars FY22'!$C$2","v":0},{"$f":"'Debt allocations'!Q66*'Debt Dollars FY22'!$C$2","v":0},{"$f":"'Debt allocations'!R66*'Debt Dollars FY22'!$C$2","v":0},{"$f":"'Debt allocations'!S66*'Debt Dollars FY22'!$C$2","v":0},{"$f":"'Debt allocations'!T66*'Debt Dollars FY22'!$C$2","v":0},{"$f":"'Debt allocations'!U66*'Debt Dollars FY22'!$C$2","v":0},{"$f":"'Debt allocations'!V66*'Debt Dollars FY22'!$C$2","v":0},{"$f":"'Debt allocations'!W66*'Debt Dollars FY22'!$C$2","v":0},{"$f":"'Debt allocations'!X66*'Debt Dollars FY22'!$C$2","v":0},{"$f":"'Debt allocations'!Y66*'Debt Dollars FY22'!$C$2","v":0},{"$f":"'Debt allocations'!Z66*'Debt Dollars FY22'!$C$2","v":0},{"$f":"'Debt allocations'!AA66*'Debt Dollars FY22'!$C$2","v":0},{"$f":"'Debt allocations'!AB66*'Debt Dollars FY22'!$C$2","v":0},{"$f":"'Debt allocations'!AC66*'Debt Dollars FY22'!$C$2","v":0},{"$f":"'Debt allocations'!AD66*'Debt Dollars FY22'!$C$2","v":0},{"$f":"'Debt allocations'!AE66*'Debt Dollars FY22'!$C$2","v":0},{"$f":"'Debt allocations'!AF66*'Debt Dollars FY22'!$C$2","v":0},{"$f":"'Debt allocations'!AG66*'Debt Dollars FY22'!$C$2","v":0},{"$f":"'Debt allocations'!AH66*'Debt Dollars FY22'!$C$2","v":0},{"$f":"'Debt allocations'!AI66*'Debt Dollars FY22'!$C$2","v":0},{"$f":"'Debt allocations'!AJ66*'Debt Dollars FY22'!$C$2","v":0},{"$f":"'Debt allocations'!AK66*'Debt Dollars FY22'!$C$2","v":0},{"$f":"'Debt allocations'!AL66*'Debt Dollars FY22'!$C$2","v":0},{"$f":"'Debt allocations'!AM66*'Debt Dollars FY22'!$C$2","v":0},{"$f":"'Debt allocations'!AN66*'Debt Dollars FY22'!$C$2","v":0}]
["275 - Public Employment Relations Commission","275","Public Employment Relations Commission",9.9999999999999998E-20,1E-8,0,{"$f":"'Debt allocations'!G67*'Debt Dollars FY22'!$C$2","v":0},{"$f":"'Debt allocations'!H67*'Debt Dollars FY22'!$C$2","v":0},{"$f":"'Debt allocations'!I67*'Debt Dollars FY22'!$C$2","v":0},{"$f":"'Debt allocations'!J67*'Debt Dollars FY22'!$C$2","v":0},{"$f":"'Debt allocations'!K67*'Debt Dollars FY22'!$C$2","v":0},{"$f":"'Debt allocations'!L67*'Debt Dollars FY22'!$C$2","v":0},{"$f":"'Debt allocations'!M67*'Debt Dollars FY22'!$C$2","v":0},{"$f":"'Debt allocations'!N67*'Debt Dollars FY22'!$C$2","v":0},{"$f":"'Debt allocations'!O67*'Debt Dollars FY22'!$C$2","v":0},{"$f":"'Debt allocations'!P67*'Debt Dollars FY22'!$C$2","v":0},{"$f":"'Debt allocations'!Q67*'Debt Dollars FY22'!$C$2","v":0},{"$f":"'Debt allocations'!R67*'Debt Dollars FY22'!$C$2","v":0},{"$f":"'Debt allocations'!S67*'Debt Dollars FY22'!$C$2","v":0},{"$f":"'Debt allocations'!T67*'Debt Dollars FY22'!$C$2","v":0},{"$f":"'Debt allocations'!U67*'Debt Dollars FY22'!$C$2","v":0},{"$f":"'Debt allocations'!V67*'Debt Dollars FY22'!$C$2","v":0},{"$f":"'Debt allocations'!W67*'Debt Dollars FY22'!$C$2","v":0},{"$f":"'Debt allocations'!X67*'Debt Dollars FY22'!$C$2","v":0},{"$f":"'Debt allocations'!Y67*'Debt Dollars FY22'!$C$2","v":0},{"$f":"'Debt allocations'!Z67*'Debt Dollars FY22'!$C$2","v":0},{"$f":"'Debt allocations'!AA67*'Debt Dollars FY22'!$C$2","v":0},{"$f":"'Debt allocations'!AB67*'Debt Dollars FY22'!$C$2","v":0},{"$f":"'Debt allocations'!AC67*'Debt Dollars FY22'!$C$2","v":0},{"$f":"'Debt allocations'!AD67*'Debt Dollars FY22'!$C$2","v":0},{"$f":"'Debt allocations'!AE67*'Debt Dollars FY22'!$C$2","v":0},{"$f":"'Debt allocations'!AF67*'Debt Dollars FY22'!$C$2","v":0},{"$f":"'Debt allocations'!AG67*'Debt Dollars FY22'!$C$2","v":0},{"$f":"'Debt allocations'!AH67*'Debt Dollars FY22'!$C$2","v":0},{"$f":"'Debt allocations'!AI67*'Debt Dollars FY22'!$C$2","v":0},{"$f":"'Debt allocations'!AJ67*'Debt Dollars FY22'!$C$2","v":0},{"$f":"'Debt allocations'!AK67*'Debt Dollars FY22'!$C$2","v":0},{"$f":"'Debt allocations'!AL67*'Debt Dollars FY22'!$C$2","v":0},{"$f":"'Debt allocations'!AM67*'Debt Dollars FY22'!$C$2","v":0},{"$f":"'Debt allocations'!AN67*'Debt Dollars FY22'!$C$2","v":0}]
["300 - Department of Social and Health Services","300","Department of Social and Health Services",5.1028415620015803E-2,259809,362761.00664269231,{"$f":"'Debt allocations'!G68*'Debt Dollars FY22'!$C$2","v":0},{"$f":"'Debt allocations'!H68*'Debt Dollars FY22'!$C$2","v":0},{"$f":"'Debt allocations'!I68*'Debt Dollars FY22'!$C$2","v":0},{"$f":"'Debt allocations'!J68*'Debt Dollars FY22'!$C$2","v":0},{"$f":"'Debt allocations'!K68*'Debt Dollars FY22'!$C$2","v":0},{"$f":"'Debt allocations'!L68*'Debt Dollars FY22'!$C$2","v":242104.91041633437},{"$f":"'Debt allocations'!M68*'Debt Dollars FY22'!$C$2","v":0},{"$f":"'Debt allocations'!N68*'Debt Dollars FY22'!$C$2","v":0},{"$f":"'Debt allocations'!O68*'Debt Dollars FY22'!$C$2","v":0},{"$f":"'Debt allocations'!P68*'Debt Dollars FY22'!$C$2","v":0},{"$f":"'Debt allocations'!Q68*'Debt Dollars FY22'!$C$2","v":0},{"$f":"'Debt allocations'!R68*'Debt Dollars FY22'!$C$2","v":0},{"$f":"'Debt allocations'!S68*'Debt Dollars FY22'!$C$2","v":0},{"$f":"'Debt allocations'!T68*'Debt Dollars FY22'!$C$2","v":0},{"$f":"'Debt allocations'!U68*'Debt Dollars FY22'!$C$2","v":0},{"$f":"'Debt allocations'!V68*'Debt Dollars FY22'!$C$2","v":0},{"$f":"'Debt allocations'!W68*'Debt Dollars FY22'!$C$2","v":0},{"$f":"'Debt allocations'!X68*'Debt Dollars FY22'!$C$2","v":0},{"$f":"'Debt allocations'!Y68*'Debt Dollars FY22'!$C$2","v":0},{"$f":"'Debt allocations'!Z68*'Debt Dollars FY22'!$C$2","v":0},{"$f":"'Debt allocations'!AA68*'Debt Dollars FY22'!$C$2","v":0},{"$f":"'Debt allocations'!AB68*'Debt Dollars FY22'!$C$2","v":0},{"$f":"'Debt allocations'!AC68*'Debt Dollars FY22'!$C$2","v":0},{"$f":"'Debt allocations'!AD68*'Debt Dollars FY22'!$C$2","v":0},{"$f":"'Debt allocations'!AE68*'Debt Dollars FY22'!$C$2","v":0},{"$f":"'Debt allocations'!AF68*'Debt Dollars FY22'!$C$2","v":0},{"$f":"'Debt allocations'!AG68*'Debt Dollars FY22'!$C$2","v":0},{"$f":"'Debt allocations'!AH68*'Debt Dollars FY22'!$C$2","v":0},{"$f":"'Debt allocations'!AI68*'Debt Dollars FY22'!$C$2","v":37070.243639019063},{"$f":"'Debt allocations'!AJ68*'Debt Dollars FY22'!$C$2","v":83585.852587338901},{"$f":"'Debt allocations'!AK68*'Debt Dollars FY22'!$C$2","v":0},{"$f":"'Debt allocations'!AL68*'Debt Dollars FY22'!$C$2","v":0},{"$f":"'Debt allocations'!AM68*'Debt Dollars FY22'!$C$2","v":0},{"$f":"'Debt allocations'!AN68*'Debt Dollars FY22'!$C$2","v":0}]
["303 - Department of Health","303","Department of Health",9.9999999999999998E-20,1E-8,0,{"$f":"'Debt allocations'!G69*'Debt Dollars FY22'!$C$2","v":0},{"$f":"'Debt allocations'!H69*'Debt Dollars FY22'!$C$2","v":0},{"$f":"'Debt allocations'!I69*'Debt Dollars FY22'!$C$2","v":0},{"$f":"'Debt allocations'!J69*'Debt Dollars FY22'!$C$2","v":0},{"$f":"'Debt allocations'!K69*'Debt Dollars FY22'!$C$2","v":0},{"$f":"'Debt allocations'!L69*'Debt Dollars FY22'!$C$2","v":0},{"$f":"'Debt allocations'!M69*'Debt Dollars FY22'!$C$2","v":0},{"$f":"'Debt allocations'!N69*'Debt Dollars FY22'!$C$2","v":0},{"$f":"'Debt allocations'!O69*'Debt Dollars FY22'!$C$2","v":0},{"$f":"'Debt allocations'!P69*'Debt Dollars FY22'!$C$2","v":0},{"$f":"'Debt allocations'!Q69*'Debt Dollars FY22'!$C$2","v":0},{"$f":"'Debt allocations'!R69*'Debt Dollars FY22'!$C$2","v":0},{"$f":"'Debt allocations'!S69*'Debt Dollars FY22'!$C$2","v":0},{"$f":"'Debt allocations'!T69*'Debt Dollars FY22'!$C$2","v":0},{"$f":"'Debt allocations'!U69*'Debt Dollars FY22'!$C$2","v":0},{"$f":"'Debt allocations'!V69*'Debt Dollars FY22'!$C$2","v":0},{"$f":"'Debt allocations'!W69*'Debt Dollars FY22'!$C$2","v":0},{"$f":"'Debt allocations'!X69*'Debt Dollars FY22'!$C$2","v":0},{"$f":"'Debt allocations'!Y69*'Debt Dollars FY22'!$C$2","v":0},{"$f":"'Debt allocations'!Z69*'Debt Dollars FY22'!$C$2","v":0},{"$f":"'Debt allocations'!AA69*'Debt Dollars FY22'!$C$2","v":0},{"$f":"'Debt allocations'!AB69*'Debt Dollars FY22'!$C$2","v":0},{"$f":"'Debt allocations'!AC69*'Debt Dollars FY22'!$C$2","v":0},{"$f":"'Debt allocations'!AD69*'Debt Dollars FY22'!$C$2","v":0},{"$f":"'Debt allocations'!AE69*'Debt Dollars FY22'!$C$2","v":0},{"$f":"'Debt allocations'!AF69*'Debt Dollars FY22'!$C$2","v":0},{"$f":"'Debt allocations'!AG69*'Debt Dollars FY22'!$C$2","v":0},{"$f":"'Debt allocations'!AH69*'Debt Dollars FY22'!$C$2","v":0},{"$f":"'Debt allocations'!AI69*'Debt Dollars FY22'!$C$2","v":0},{"$f":"'Debt allocations'!AJ69*'Debt Dollars FY22'!$C$2","v":0},{"$f":"'Debt allocations'!AK69*'Debt Dollars FY22'!$C$2","v":0},{"$f":"'Debt allocations'!AL69*'Debt Dollars FY22'!$C$2","v":0},{"$f":"'Debt allocations'!AM69*'Debt Dollars FY22'!$C$2","v":0},{"$f":"'Debt allocations'!AN69*'Debt Dollars FY22'!$C$2","v":0}]
["305 - Department of Veterans Affairs","305","Department of Veterans Affairs",9.9999999999999998E-20,1E-8,0,{"$f":"'Debt allocations'!G70*'Debt Dollars FY22'!$C$2","v":0},{"$f":"'Debt allocations'!H70*'Debt Dollars FY22'!$C$2","v":0},{"$f":"'Debt allocations'!I70*'Debt Dollars FY22'!$C$2","v":0},{"$f":"'Debt allocations'!J70*'Debt Dollars FY22'!$C$2","v":0},{"$f":"'Debt allocations'!K70*'Debt Dollars FY22'!$C$2","v":0},{"$f":"'Debt allocations'!L70*'Debt Dollars FY22'!$C$2","v":0},{"$f":"'Debt allocations'!M70*'Debt Dollars FY22'!$C$2","v":0},{"$f":"'Debt allocations'!N70*'Debt Dollars FY22'!$C$2","v":0},{"$f":"'Debt allocations'!O70*'Debt Dollars FY22'!$C$2","v":0},{"$f":"'Debt allocations'!P70*'Debt Dollars FY22'!$C$2","v":0},{"$f":"'Debt allocations'!Q70*'Debt Dollars FY22'!$C$2","v":0},{"$f":"'Debt allocations'!R70*'Debt Dollars FY22'!$C$2","v":0},{"$f":"'Debt allocations'!S70*'Debt Dollars FY22'!$C$2","v":0},{"$f":"'Debt allocations'!T70*'Debt Dollars FY22'!$C$2","v":0},{"$f":"'Debt allocations'!U70*'Debt Dollars FY22'!$C$2","v":0},{"$f":"'Debt allocations'!V70*'Debt Dollars FY22'!$C$2","v":0},{"$f":"'Debt allocations'!W70*'Debt Dollars FY22'!$C$2","v":0},{"$f":"'Debt allocations'!X70*'Debt Dollars FY22'!$C$2","v":0},{"$f":"'Debt allocations'!Y70*'Debt Dollars FY22'!$C$2","v":0},{"$f":"'Debt allocations'!Z70*'Debt Dollars FY22'!$C$2","v":0},{"$f":"'Debt allocations'!AA70*'Debt Dollars FY22'!$C$2","v":0},{"$f":"'Debt allocations'!AB70*'Debt Dollars FY22'!$C$2","v":0},{"$f":"'Debt allocations'!AC70*'Debt Dollars FY22'!$C$2","v":0},{"$f":"'Debt allocations'!AD70*'Debt Dollars FY22'!$C$2","v":0},{"$f":"'Debt allocations'!AE70*'Debt Dollars FY22'!$C$2","v":0},{"$f":"'Debt allocations'!AF70*'Debt Dollars FY22'!$C$2","v":0},{"$f":"'Debt allocations'!AG70*'Debt Dollars FY22'!$C$2","v":0},{"$f":"'Debt allocations'!AH70*'Debt Dollars FY22'!$C$2","v":0},{"$f":"'Debt allocations'!AI70*'Debt Dollars FY22'!$C$2","v":0},{"$f":"'Debt allocations'!AJ70*'Debt Dollars FY22'!$C$2","v":0},{"$f":"'Debt allocations'!AK70*'Debt Dollars FY22'!$C$2","v":0},{"$f":"'Debt allocations'!AL70*'Debt Dollars FY22'!$C$2","v":0},{"$f":"'Debt allocations'!AM70*'Debt Dollars FY22'!$C$2","v":0},{"$f":"'Debt allocations'!AN70*'Debt Dollars FY22'!$C$2","v":0}]
[{"$f":"CONCATENATE(B71,\" - \",C71)","v":"307 - DCYF"},"307","DCYF",2.2753309774425554E-2,116782,{"$f":"SUM(G71:AN71)","v":161753.27918639127},{"$f":"'Debt allocations'!G71*'Debt Dollars FY22'!$C$2","v":0},{"$f":"'Debt allocations'!H71*'Debt Dollars FY22'!$C$2","v":0},{"$f":"'Debt allocations'!I71*'Debt Dollars FY22'!$C$2","v":0},{"$f":"'Debt allocations'!J71*'Debt Dollars FY22'!$C$2","v":0},{"$f":"'Debt allocations'!K71*'Debt Dollars FY22'!$C$2","v":0},{"$f":"'Debt allocations'!L71*'Debt Dollars FY22'!$C$2","v":99131.957106816597},{"$f":"'Debt allocations'!M71*'Debt Dollars FY22'!$C$2","v":0},{"$f":"'Debt allocations'!N71*'Debt Dollars FY22'!$C$2","v":0},{"$f":"'Debt allocations'!O71*'Debt Dollars FY22'!$C$2","v":0},{"$f":"'Debt allocations'!P71*'Debt Dollars FY22'!$C$2","v":0},{"$f":"'Debt allocations'!Q71*'Debt Dollars FY22'!$C$2","v":0},{"$f":"'Debt allocations'!R71*'Debt Dollars FY22'!$C$2","v":0},{"$f":"'Debt allocations'!S71*'Debt Dollars FY22'!$C$2","v":0},{"$f":"'Debt allocations'!T71*'Debt Dollars FY22'!$C$2","v":0},{"$f":"'Debt allocations'!U71*'Debt Dollars FY22'!$C$2","v":0},{"$f":"'Debt allocations'!V71*'Debt Dollars FY22'!$C$2","v":0},{"$f":"'Debt allocations'!W71*'Debt Dollars FY22'!$C$2","v":0},{"$f":"'Debt allocations'!X71*'Debt Dollars FY22'!$C$2","v":0},{"$f":"'Debt allocations'!Y71*'Debt Dollars FY22'!$C$2","v":0},{"$f":"'Debt allocations'!Z71*'Debt Dollars FY22'!$C$2","v":0},{"$f":"'Debt allocations'!AA71*'Debt Dollars FY22'!$C$2","v":0},{"$f":"'Debt allocations'!AB71*'Debt Dollars FY22'!$C$2","v":0},{"$f":"'Debt allocations'!AC71*'Debt Dollars FY22'!$C$2","v":0},{"$f":"'Debt allocations'!AD71*'Debt Dollars FY22'!$C$2","v":0},{"$f":"'Debt allocations'!AE71*'Debt Dollars FY22'!$C$2","v":0},{"$f":"'Debt allocations'!AF71*'Debt Dollars FY22'!$C$2","v":0},{"$f":"'Debt allocations'!AG71*'Debt Dollars FY22'!$C$2","v":0},{"$f":"'Debt allocations'!AH71*'Debt Dollars FY22'!$C$2","v":0},{"$f":"'Debt allocations'!AI71*'Debt Dollars FY22'!$C$2","v":27171.551637344513},{"$f":"'Debt allocations'!AJ71*'Debt Dollars FY22'!$C$2","v":35449.770442230147},{"$f":"'Debt allocations'!AK71*'Debt Dollars FY22'!$C$2","v":0},{"$f":"'Debt allocations'!AL71*'Debt Dollars FY22'!$C$2","v":0},{"$f":"'Debt allocations'!AM71*'Debt Dollars FY22'!$C$2","v":0},{"$f":"'Debt allocations'!AN71*'Debt Dollars FY22'!$C$2","v":0}]
["310 - Department of Corrections","310","Department of Corrections",9.9999999999999998E-20,1E-8,0,{"$f":"'Debt allocations'!G72*'Debt Dollars FY22'!$C$2","v":0},{"$f":"'Debt allocations'!H72*'Debt Dollars FY22'!$C$2","v":0},{"$f":"'Debt allocations'!I72*'Debt Dollars FY22'!$C$2","v":0},{"$f":"'Debt allocations'!J72*'Debt Dollars FY22'!$C$2","v":0},{"$f":"'Debt allocations'!K72*'Debt Dollars FY22'!$C$2","v":0},{"$f":"'Debt allocations'!L72*'Debt Dollars FY22'!$C$2","v":0},{"$f":"'Debt allocations'!M72*'Debt Dollars FY22'!$C$2","v":0},{"$f":"'Debt allocations'!N72*'Debt Dollars FY22'!$C$2","v":0},{"$f":"'Debt allocations'!O72*'Debt Dollars FY22'!$C$2","v":0},{"$f":"'Debt allocations'!P72*'Debt Dollars FY22'!$C$2","v":0},{"$f":"'Debt allocations'!Q72*'Debt Dollars FY22'!$C$2","v":0},{"$f":"'Debt allocations'!R72*'Debt Dollars FY22'!$C$2","v":0},{"$f":"'Debt allocations'!S72*'Debt Dollars FY22'!$C$2","v":0},{"$f":"'Debt allocations'!T72*'Debt Dollars FY22'!$C$2","v":0},{"$f":"'Debt allocations'!U72*'Debt Dollars FY22'!$C$2","v":0},{"$f":"'Debt allocations'!V72*'Debt Dollars FY22'!$C$2","v":0},{"$f":"'Debt allocations'!W72*'Debt Dollars FY22'!$C$2","v":0},{"$f":"'Debt allocations'!X72*'Debt Dollars FY22'!$C$2","v":0},{"$f":"'Debt allocations'!Y72*'Debt Dollars FY22'!$C$2","v":0},{"$f":"'Debt allocations'!Z72*'Debt Dollars FY22'!$C$2","v":0},{"$f":"'Debt allocations'!AA72*'Debt Dollars FY22'!$C$2","v":0},{"$f":"'Debt allocations'!AB72*'Debt Dollars FY22'!$C$2","v":0},{"$f":"'Debt allocations'!AC72*'Debt Dollars FY22'!$C$2","v":0},{"$f":"'Debt allocations'!AD72*'Debt Dollars FY22'!$C$2","v":0},{"$f":"'Debt allocations'!AE72*'Debt Dollars FY22'!$C$2","v":0},{"$f":"'Debt allocations'!AF72*'Debt Dollars FY22'!$C$2","v":0},{"$f":"'Debt allocations'!AG72*'Debt Dollars FY22'!$C$2","v":0},{"$f":"'Debt allocations'!AH72*'Debt Dollars FY22'!$C$2","v":0},{"$f":"'Debt allocations'!AI72*'Debt Dollars FY22'!$C$2","v":0},{"$f":"'Debt allocations'!AJ72*'Debt Dollars FY22'!$C$2","v":0},{"$f":"'Debt allocations'!AK72*'Debt Dollars FY22'!$C$2","v":0},{"$f":"'Debt allocations'!AL72*'Debt Dollars FY22'!$C$2","v":0},{"$f":"'Debt allocations'!AM72*'Debt Dollars FY22'!$C$2","v":0},{"$f":"'Debt allocations'!AN72*'Debt Dollars FY22'!$C$2","v":0}]
["315 - Department of Services for the Blind","315","Department of Services for the Blind",1.0287304215108753E-3,2775,7313.2445665208106,{"$f":"'Debt allocations'!G73*'Debt Dollars FY22'!$C$2","v":0},{"$f":"'Debt allocations'!H73*'Debt Dollars FY22'!$C$2","v":0},{"$f":"'Debt allocations'!I73*'Debt Dollars FY22'!$C$2","v":0},{"$f":"'Debt allocations'!J73*'Debt Dollars FY22'!$C$2","v":0},{"$f":"'Debt allocations'!K73*'Debt Dollars FY22'!$C$2","v":0},{"$f":"'Debt allocations'!L73*'Debt Dollars FY22'!$C$2","v":0},{"$f":"'Debt allocations'!M73*'Debt Dollars FY22'!$C$2","v":0},{"$f":"'Debt allocations'!N73*'Debt Dollars FY22'!$C$2","v":0},{"$f":"'Debt allocations'!O73*'Debt Dollars FY22'!$C$2","v":0},{"$f":"'Debt allocations'!P73*'Debt Dollars FY22'!$C$2","v":0},{"$f":"'Debt allocations'!Q73*'Debt Dollars FY22'!$C$2","v":0},{"$f":"'Debt allocations'!R73*'Debt Dollars FY22'!$C$2","v":0},{"$f":"'Debt allocations'!S73*'Debt Dollars FY22'!$C$2","v":0},{"$f":"'Debt allocations'!T73*'Debt Dollars FY22'!$C$2","v":0},{"$f":"'Debt allocations'!U73*'Debt Dollars FY22'!$C$2","v":0},{"$f":"'Debt allocations'!V73*'Debt Dollars FY22'!$C$2","v":0},{"$f":"'Debt allocations'!W73*'Debt Dollars FY22'!$C$2","v":0},{"$f":"'Debt allocations'!X73*'Debt Dollars FY22'!$C$2","v":0},{"$f":"'Debt allocations'!Y73*'Debt Dollars FY22'!$C$2","v":0},{"$f":"'Debt allocations'!Z73*'Debt Dollars FY22'!$C$2","v":0},{"$f":"'Debt allocations'!AA73*'Debt Dollars FY22'!$C$2","v":0},{"$f":"'Debt allocations'!AB73*'Debt Dollars FY22'!$C$2","v":0},{"$f":"'Debt allocations'!AC73*'Debt Dollars FY22'!$C$2","v":0},{"$f":"'Debt allocations'!AD73*'Debt Dollars FY22'!$C$2","v":0},{"$f":"'Debt allocations'!AE73*'Debt Dollars FY22'!$C$2","v":0},{"$f":"'Debt allocations'!AF73*'Debt Dollars FY22'!$C$2","v":0},{"$f":"'Debt allocations'!AG73*'Debt Dollars FY22'!$C$2","v":0},{"$f":"'Debt allocations'!AH73*'Debt Dollars FY22'!$C$2","v":0},{"$f":"'Debt allocations'!AI73*'Debt Dollars FY22'!$C$2","v":0},{"$f":"'Debt allocations'!AJ73*'Debt Dollars FY22'!$C$2","v":0},{"$f":"'Debt allocations'!AK73*'Debt Dollars FY22'!$C$2","v":0},{"$f":"'Debt allocations'!AL73*'Debt Dollars FY22'!$C$2","v":7313.2445665208106},{"$f":"'Debt allocations'!AM73*'Debt Dollars FY22'!$C$2","v":0},{"$f":"'Debt allocations'!AN73*'Debt Dollars FY22'!$C$2","v":0}]
["340 - Student Achievement Council","340","Student Achievement Council",9.9999999999999998E-20,1E-8,0,{"$f":"'Debt allocations'!G74*'Debt Dollars FY22'!$C$2","v":0},{"$f":"'Debt allocations'!H74*'Debt Dollars FY22'!$C$2","v":0},{"$f":"'Debt allocations'!I74*'Debt Dollars FY22'!$C$2","v":0},{"$f":"'Debt allocations'!J74*'Debt Dollars FY22'!$C$2","v":0},{"$f":"'Debt allocations'!K74*'Debt Dollars FY22'!$C$2","v":0},{"$f":"'Debt allocations'!L74*'Debt Dollars FY22'!$C$2","v":0},{"$f":"'Debt allocations'!M74*'Debt Dollars FY22'!$C$2","v":0},{"$f":"'Debt allocations'!N74*'Debt Dollars FY22'!$C$2","v":0},{"$f":"'Debt allocations'!O74*'Debt Dollars FY22'!$C$2","v":0},{"$f":"'Debt allocations'!P74*'Debt Dollars FY22'!$C$2","v":0},{"$f":"'Debt allocations'!Q74*'Debt Dollars FY22'!$C$2","v":0},{"$f":"'Debt allocations'!R74*'Debt Dollars FY22'!$C$2","v":0},{"$f":"'Debt allocations'!S74*'Debt Dollars FY22'!$C$2","v":0},{"$f":"'Debt allocations'!T74*'Debt Dollars FY22'!$C$2","v":0},{"$f":"'Debt allocations'!U74*'Debt Dollars FY22'!$C$2","v":0},{"$f":"'Debt allocations'!V74*'Debt Dollars FY22'!$C$2","v":0},{"$f":"'Debt allocations'!W74*'Debt Dollars FY22'!$C$2","v":0},{"$f":"'Debt allocations'!X74*'Debt Dollars FY22'!$C$2","v":0},{"$f":"'Debt allocations'!Y74*'Debt Dollars FY22'!$C$2","v":0},{"$f":"'Debt allocations'!Z74*'Debt Dollars FY22'!$C$2","v":0},{"$f":"'Debt allocations'!AA74*'Debt Dollars FY22'!$C$2","v":0},{"$f":"'Debt allocations'!AB74*'Debt Dollars FY22'!$C$2","v":0},{"$f":"'Debt allocations'!AC74*'Debt Dollars FY22'!$C$2","v":0},{"$f":"'Debt allocations'!AD74*'Debt Dollars FY22'!$C$2","v":0},{"$f":"'Debt allocations'!AE74*'Debt Dollars FY22'!$C$2","v":0},{"$f":"'Debt allocations'!AF74*'Debt Dollars FY22'!$C$2","v":0},{"$f":"'Debt allocations'!AG74*'Debt Dollars FY22'!$C$2","v":0},{"$f":"'Debt allocations'!AH74*'Debt Dollars FY22'!$C$2","v":0},{"$f":"'Debt allocations'!AI74*'Debt Dollars FY22'!$C$2","v":0},{"$f":"'Debt allocations'!AJ74*'Debt Dollars FY22'!$C$2","v":0},{"$f":"'Debt allocations'!AK74*'Debt Dollars FY22'!$C$2","v":0},{"$f":"'Debt allocations'!AL74*'Debt Dollars FY22'!$C$2","v":0},{"$f":"'Debt allocations'!AM74*'Debt Dollars FY22'!$C$2","v":0},{"$f":"'Debt allocations'!AN74*'Debt Dollars FY22'!$C$2","v":0}]
["341 - Law Enforcement Officers' & Fire Fighters' Plan 2 Retirement Board","341","Law Enforcement Officers' & Fire Fighters' Plan 2 Retirement Board",9.9999999999999998E-20,1E-8,0,{"$f":"'Debt allocations'!G75*'Debt Dollars FY22'!$C$2","v":0},{"$f":"'Debt allocations'!H75*'Debt Dollars FY22'!$C$2","v":0},{"$f":"'Debt allocations'!I75*'Debt Dollars FY22'!$C$2","v":0},{"$f":"'Debt allocations'!J75*'Debt Dollars FY22'!$C$2","v":0},{"$f":"'Debt allocations'!K75*'Debt Dollars FY22'!$C$2","v":0},{"$f":"'Debt allocations'!L75*'Debt Dollars FY22'!$C$2","v":0},{"$f":"'Debt allocations'!M75*'Debt Dollars FY22'!$C$2","v":0},{"$f":"'Debt allocations'!N75*'Debt Dollars FY22'!$C$2","v":0},{"$f":"'Debt allocations'!O75*'Debt Dollars FY22'!$C$2","v":0},{"$f":"'Debt allocations'!P75*'Debt Dollars FY22'!$C$2","v":0},{"$f":"'Debt allocations'!Q75*'Debt Dollars FY22'!$C$2","v":0},{"$f":"'Debt allocations'!R75*'Debt Dollars FY22'!$C$2","v":0},{"$f":"'Debt allocations'!S75*'Debt Dollars FY22'!$C$2","v":0},{"$f":"'Debt allocations'!T75*'Debt Dollars FY22'!$C$2","v":0},{"$f":"'Debt allocations'!U75*'Debt Dollars FY22'!$C$2","v":0},{"$f":"'Debt allocations'!V75*'Debt Dollars FY22'!$C$2","v":0},{"$f":"'Debt allocations'!W75*'Debt Dollars FY22'!$C$2","v":0},{"$f":"'Debt allocations'!X75*'Debt Dollars FY22'!$C$2","v":0},{"$f":"'Debt allocations'!Y75*'Debt Dollars FY22'!$C$2","v":0},{"$f":"'Debt allocations'!Z75*'Debt Dollars FY22'!$C$2","v":0},{"$f":"'Debt allocations'!AA75*'Debt Dollars FY22'!$C$2","v":0},{"$f":"'Debt allocations'!AB75*'Debt Dollars FY22'!$C$2","v":0},{"$f":"'Debt allocations'!AC75*'Debt Dollars FY22'!$C$2","v":0},{"$f":"'Debt allocations'!AD75*'Debt Dollars FY22'!$C$2","v":0},{"$f":"'Debt allocations'!AE75*'Debt Dollars FY22'!$C$2","v":0},{"$f":"'Debt allocations'!AF75*'Debt Dollars FY22'!$C$2","v":0},{"$f":"'Debt allocations'!AG75*'Debt Dollars FY22'!$C$2","v":0},{"$f":"'Debt allocations'!AH75*'Debt Dollars FY22'!$C$2","v":0},{"$f":"'Debt allocations'!AI75*'Debt Dollars FY22'!$C$2","v":0},{"$f":"'Debt allocations'!AJ75*'Debt Dollars FY22'!$C$2","v":0},{"$f":"'Debt allocations'!AK75*'Debt Dollars FY22'!$C$2","v":0},{"$f":"'Debt allocations'!AL75*'Debt Dollars FY22'!$C$2","v":0},{"$f":"'Debt allocations'!AM75*'Debt Dollars FY22'!$C$2","v":0},{"$f":"'Debt allocations'!AN75*'Debt Dollars FY22'!$C$2","v":0}]
["350 - Superintendent of Public Instruction","350","Superintendent of Public Instruction",9.9999999999999998E-20,1E-8,0,{"$f":"'Debt allocations'!G76*'Debt Dollars FY22'!$C$2","v":0},{"$f":"'Debt allocations'!H76*'Debt Dollars FY22'!$C$2","v":0},{"$f":"'Debt allocations'!I76*'Debt Dollars FY22'!$C$2","v":0},{"$f":"'Debt allocations'!J76*'Debt Dollars FY22'!$C$2","v":0},{"$f":"'Debt allocations'!K76*'Debt Dollars FY22'!$C$2","v":0},{"$f":"'Debt allocations'!L76*'Debt Dollars FY22'!$C$2","v":0},{"$f":"'Debt allocations'!M76*'Debt Dollars FY22'!$C$2","v":0},{"$f":"'Debt allocations'!N76*'Debt Dollars FY22'!$C$2","v":0},{"$f":"'Debt allocations'!O76*'Debt Dollars FY22'!$C$2","v":0},{"$f":"'Debt allocations'!P76*'Debt Dollars FY22'!$C$2","v":0},{"$f":"'Debt allocations'!Q76*'Debt Dollars FY22'!$C$2","v":0},{"$f":"'Debt allocations'!R76*'Debt Dollars FY22'!$C$2","v":0},{"$f":"'Debt allocations'!S76*'Debt Dollars FY22'!$C$2","v":0},{"$f":"'Debt allocations'!T76*'Debt Dollars FY22'!$C$2","v":0},{"$f":"'Debt allocations'!U76*'Debt Dollars FY22'!$C$2","v":0},{"$f":"'Debt allocations'!V76*'Debt Dollars FY22'!$C$2","v":0},{"$f":"'Debt allocations'!W76*'Debt Dollars FY22'!$C$2","v":0},{"$f":"'Debt allocations'!X76*'Debt Dollars FY22'!$C$2","v":0},{"$f":"'Debt allocations'!Y76*'Debt Dollars FY22'!$C$2","v":0},{"$f":"'Debt allocations'!Z76*'Debt Dollars FY22'!$C$2","v":0},{"$f":"'Debt allocations'!AA76*'Debt Dollars FY22'!$C$2","v":0},{"$f":"'Debt allocations'!AB76*'Debt Dollars FY22'!$C$2","v":0},{"$f":"'Debt allocations'!AC76*'Debt Dollars FY22'!$C$2","v":0},{"$f":"'Debt allocations'!AD76*'Debt Dollars FY22'!$C$2","v":0},{"$f":"'Debt allocations'!AE76*'Debt Dollars FY22'!$C$2","v":0},{"$f":"'Debt allocations'!AF76*'Debt Dollars FY22'!$C$2","v":0},{"$f":"'Debt allocations'!AG76*'Debt Dollars FY22'!$C$2","v":0},{"$f":"'Debt allocations'!AH76*'Debt Dollars FY22'!$C$2","v":0},{"$f":"'Debt allocations'!AI76*'Debt Dollars FY22'!$C$2","v":0},{"$f":"'Debt allocations'!AJ76*'Debt Dollars FY22'!$C$2","v":0},{"$f":"'Debt allocations'!AK76*'Debt Dollars FY22'!$C$2","v":0},{"$f":"'Debt allocations'!AL76*'Debt Dollars FY22'!$C$2","v":0},{"$f":"'Debt allocations'!AM76*'Debt Dollars FY22'!$C$2","v":0},{"$f":"'Debt allocations'!AN76*'Debt Dollars FY22'!$C$2","v":0}]
["351 - State School For The Blind","351","State School For The Blind",9.9999999999999998E-20,1E-8,0,{"$f":"'Debt allocations'!G77*'Debt Dollars FY22'!$C$2","v":0},{"$f":"'Debt allocations'!H77*'Debt Dollars FY22'!$C$2","v":0},{"$f":"'Debt allocations'!I77*'Debt Dollars FY22'!$C$2","v":0},{"$f":"'Debt allocations'!J77*'Debt Dollars FY22'!$C$2","v":0},{"$f":"'Debt allocations'!K77*'Debt Dollars FY22'!$C$2","v":0},{"$f":"'Debt allocations'!L77*'Debt Dollars FY22'!$C$2","v":0},{"$f":"'Debt allocations'!M77*'Debt Dollars FY22'!$C$2","v":0},{"$f":"'Debt allocations'!N77*'Debt Dollars FY22'!$C$2","v":0},{"$f":"'Debt allocations'!O77*'Debt Dollars FY22'!$C$2","v":0},{"$f":"'Debt allocations'!P77*'Debt Dollars FY22'!$C$2","v":0},{"$f":"'Debt allocations'!Q77*'Debt Dollars FY22'!$C$2","v":0},{"$f":"'Debt allocations'!R77*'Debt Dollars FY22'!$C$2","v":0},{"$f":"'Debt allocations'!S77*'Debt Dollars FY22'!$C$2","v":0},{"$f":"'Debt allocations'!T77*'Debt Dollars FY22'!$C$2","v":0},{"$f":"'Debt allocations'!U77*'Debt Dollars FY22'!$C$2","v":0},{"$f":"'Debt allocations'!V77*'Debt Dollars FY22'!$C$2","v":0},{"$f":"'Debt allocations'!W77*'Debt Dollars FY22'!$C$2","v":0},{"$f":"'Debt allocations'!X77*'Debt Dollars FY22'!$C$2","v":0},{"$f":"'Debt allocations'!Y77*'Debt Dollars FY22'!$C$2","v":0},{"$f":"'Debt allocations'!Z77*'Debt Dollars FY22'!$C$2","v":0},{"$f":"'Debt allocations'!AA77*'Debt Dollars FY22'!$C$2","v":0},{"$f":"'Debt allocations'!AB77*'Debt Dollars FY22'!$C$2","v":0},{"$f":"'Debt allocations'!AC77*'Debt Dollars FY22'!$C$2","v":0},{"$f":"'Debt allocations'!AD77*'Debt Dollars FY22'!$C$2","v":0},{"$f":"'Debt allocations'!AE77*'Debt Dollars FY22'!$C$2","v":0},{"$f":"'Debt allocations'!AF77*'Debt Dollars FY22'!$C$2","v":0},{"$f":"'Debt allocations'!AG77*'Debt Dollars FY22'!$C$2","v":0},{"$f":"'Debt allocations'!AH77*'Debt Dollars FY22'!$C$2","v":0},{"$f":"'Debt allocations'!AI77*'Debt Dollars FY22'!$C$2","v":0},{"$f":"'Debt allocations'!AJ77*'Debt Dollars FY22'!$C$2","v":0},{"$f":"'Debt allocations'!AK77*'Debt Dollars FY22'!$C$2","v":0},{"$f":"'Debt allocations'!AL77*'Debt Dollars FY22'!$C$2","v":0},{"$f":"'Debt allocations'!AM77*'Debt Dollars FY22'!$C$2","v":0},{"$f":"'Debt allocations'!AN77*'Debt Dollars FY22'!$C$2","v":0}]
["353 - State Center for Childhood Deafness and Hearing Loss","353","State Center for Childhood Deafness and Hearing Loss",9.9999999999999998E-20,1E-8,0,{"$f":"'Debt allocations'!G78*'Debt Dollars FY22'!$C$2","v":0},{"$f":"'Debt allocations'!H78*'Debt Dollars FY22'!$C$2","v":0},{"$f":"'Debt allocations'!I78*'Debt Dollars FY22'!$C$2","v":0},{"$f":"'Debt allocations'!J78*'Debt Dollars FY22'!$C$2","v":0},{"$f":"'Debt allocations'!K78*'Debt Dollars FY22'!$C$2","v":0},{"$f":"'Debt allocations'!L78*'Debt Dollars FY22'!$C$2","v":0},{"$f":"'Debt allocations'!M78*'Debt Dollars FY22'!$C$2","v":0},{"$f":"'Debt allocations'!N78*'Debt Dollars FY22'!$C$2","v":0},{"$f":"'Debt allocations'!O78*'Debt Dollars FY22'!$C$2","v":0},{"$f":"'Debt allocations'!P78*'Debt Dollars FY22'!$C$2","v":0},{"$f":"'Debt allocations'!Q78*'Debt Dollars FY22'!$C$2","v":0},{"$f":"'Debt allocations'!R78*'Debt Dollars FY22'!$C$2","v":0},{"$f":"'Debt allocations'!S78*'Debt Dollars FY22'!$C$2","v":0},{"$f":"'Debt allocations'!T78*'Debt Dollars FY22'!$C$2","v":0},{"$f":"'Debt allocations'!U78*'Debt Dollars FY22'!$C$2","v":0},{"$f":"'Debt allocations'!V78*'Debt Dollars FY22'!$C$2","v":0},{"$f":"'Debt allocations'!W78*'Debt Dollars FY22'!$C$2","v":0},{"$f":"'Debt allocations'!X78*'Debt Dollars FY22'!$C$2","v":0},{"$f":"'Debt allocations'!Y78*'Debt Dollars FY22'!$C$2","v":0},{"$f":"'Debt allocations'!Z78*'Debt Dollars FY22'!$C$2","v":0},{"$f":"'Debt allocations'!AA78*'Debt Dollars FY22'!$C$2","v":0},{"$f":"'Debt allocations'!AB78*'Debt Dollars FY22'!$C$2","v":0},{"$f":"'Debt allocations'!AC78*'Debt Dollars FY22'!$C$2","v":0},{"$f":"'Debt allocations'!AD78*'Debt Dollars FY22'!$C$2","v":0},{"$f":"'Debt allocations'!AE78*'Debt Dollars FY22'!$C$2","v":0},{"$f":"'Debt allocations'!AF78*'Debt Dollars FY22'!$C$2","v":0},{"$f":"'Debt allocations'!AG78*'Debt Dollars FY22'!$C$2","v":0},{"$f":"'Debt allocations'!AH78*'Debt Dollars FY22'!$C$2","v":0},{"$f":"'Debt allocations'!AI78*'Debt Dollars FY22'!$C$2","v":0},{"$f":"'Debt allocations'!AJ78*'Debt Dollars FY22'!$C$2","v":0},{"$f":"'Debt allocations'!AK78*'Debt Dollars FY22'!$C$2","v":0},{"$f":"'Debt allocations'!AL78*'Debt Dollars FY22'!$C$2","v":0},{"$f":"'Debt allocations'!AM78*'Debt Dollars FY22'!$C$2","v":0},{"$f":"'Debt allocations'!AN78*'Debt Dollars FY22'!$C$2","v":0}]
["354 - Workforce Training and Education Coordinating Board","354","Workforce Training and Education Coordinating Board",9.9999999999999998E-20,1E-8,0,{"$f":"'Debt allocations'!G79*'Debt Dollars FY22'!$C$2","v":0},{"$f":"'Debt allocations'!H79*'Debt Dollars FY22'!$C$2","v":0},{"$f":"'Debt allocations'!I79*'Debt Dollars FY22'!$C$2","v":0},{"$f":"'Debt allocations'!J79*'Debt Dollars FY22'!$C$2","v":0},{"$f":"'Debt allocations'!K79*'Debt Dollars FY22'!$C$2","v":0},{"$f":"'Debt allocations'!L79*'Debt Dollars FY22'!$C$2","v":0},{"$f":"'Debt allocations'!M79*'Debt Dollars FY22'!$C$2","v":0},{"$f":"'Debt allocations'!N79*'Debt Dollars FY22'!$C$2","v":0},{"$f":"'Debt allocations'!O79*'Debt Dollars FY22'!$C$2","v":0},{"$f":"'Debt allocations'!P79*'Debt Dollars FY22'!$C$2","v":0},{"$f":"'Debt allocations'!Q79*'Debt Dollars FY22'!$C$2","v":0},{"$f":"'Debt allocations'!R79*'Debt Dollars FY22'!$C$2","v":0},{"$f":"'Debt allocations'!S79*'Debt Dollars FY22'!$C$2","v":0},{"$f":"'Debt allocations'!T79*'Debt Dollars FY22'!$C$2","v":0},{"$f":"'Debt allocations'!U79*'Debt Dollars FY22'!$C$2","v":0},{"$f":"'Debt allocations'!V79*'Debt Dollars FY22'!$C$2","v":0},{"$f":"'Debt allocations'!W79*'Debt Dollars FY22'!$C$2","v":0},{"$f":"'Debt allocations'!X79*'Debt Dollars FY22'!$C$2","v":0},{"$f":"'Debt allocations'!Y79*'Debt Dollars FY22'!$C$2","v":0},{"$f":"'Debt allocations'!Z79*'Debt Dollars FY22'!$C$2","v":0},{"$f":"'Debt allocations'!AA79*'Debt Dollars FY22'!$C$2","v":0},{"$f":"'Debt allocations'!AB79*'Debt Dollars FY22'!$C$2","v":0},{"$f":"'Debt allocations'!AC79*'Debt Dollars FY22'!$C$2","v":0},{"$f":"'Debt allocations'!AD79*'Debt Dollars FY22'!$C$2","v":0},{"$f":"'Debt allocations'!AE79*'Debt Dollars FY22'!$C$2","v":0},{"$f":"'Debt allocations'!AF79*'Debt Dollars FY22'!$C$2","v":0},{"$f":"'Debt allocations'!AG79*'Debt Dollars FY22'!$C$2","v":0},{"$f":"'Debt allocations'!AH79*'Debt Dollars FY22'!$C$2","v":0},{"$f":"'Debt allocations'!AI79*'Debt Dollars FY22'!$C$2","v":0},{"$f":"'Debt allocations'!AJ79*'Debt Dollars FY22'!$C$2","v":0},{"$f":"'Debt allocations'!AK79*'Debt Dollars FY22'!$C$2","v":0},{"$f":"'Debt allocations'!AL79*'Debt Dollars FY22'!$C$2","v":0},{"$f":"'Debt allocations'!AM79*'Debt Dollars FY22'!$C$2","v":0},{"$f":"'Debt allocations'!AN79*'Debt Dollars FY22'!$C$2","v":0}]
["355 - Department of Archaeology and Historic Preservation","355","Department of Archaeology and Historic Preservation",7.3241158282550019E-3,9336,52067.139423064807,{"$f":"'Debt allocations'!G80*'Debt Dollars FY22'!$C$2","v":0},{"$f":"'Debt allocations'!H80*'Debt Dollars FY22'!$C$2","v":0},{"$f":"'Debt allocations'!I80*'Debt Dollars FY22'!$C$2","v":0},{"$f":"'Debt allocations'!J80*'Debt Dollars FY22'!$C$2","v":0},{"$f":"'Debt allocations'!K80*'Debt Dollars FY22'!$C$2","v":0},{"$f":"'Debt allocations'!L80*'Debt Dollars FY22'!$C$2","v":0},{"$f":"'Debt allocations'!M80*'Debt Dollars FY22'!$C$2","v":0},{"$f":"'Debt allocations'!N80*'Debt Dollars FY22'!$C$2","v":0},{"$f":"'Debt allocations'!O80*'Debt Dollars FY22'!$C$2","v":0},{"$f":"'Debt allocations'!P80*'Debt Dollars FY22'!$C$2","v":0},{"$f":"'Debt allocations'!Q80*'Debt Dollars FY22'!$C$2","v":0},{"$f":"'Debt allocations'!R80*'Debt Dollars FY22'!$C$2","v":0},{"$f":"'Debt allocations'!S80*'Debt Dollars FY22'!$C$2","v":0},{"$f":"'Debt allocations'!T80*'Debt Dollars FY22'!$C$2","v":0},{"$f":"'Debt allocations'!U80*'Debt Dollars FY22'!$C$2","v":0},{"$f":"'Debt allocations'!V80*'Debt Dollars FY22'!$C$2","v":0},{"$f":"'Debt allocations'!W80*'Debt Dollars FY22'!$C$2","v":0},{"$f":"'Debt allocations'!X80*'Debt Dollars FY22'!$C$2","v":0},{"$f":"'Debt allocations'!Y80*'Debt Dollars FY22'!$C$2","v":0},{"$f":"'Debt allocations'!Z80*'Debt Dollars FY22'!$C$2","v":52067.139423064807},{"$f":"'Debt allocations'!AA80*'Debt Dollars FY22'!$C$2","v":0},{"$f":"'Debt allocations'!AB80*'Debt Dollars FY22'!$C$2","v":0},{"$f":"'Debt allocations'!AC80*'Debt Dollars FY22'!$C$2","v":0},{"$f":"'Debt allocations'!AD80*'Debt Dollars FY22'!$C$2","v":0},{"$f":"'Debt allocations'!AE80*'Debt Dollars FY22'!$C$2","v":0},{"$f":"'Debt allocations'!AF80*'Debt Dollars FY22'!$C$2","v":0},{"$f":"'Debt allocations'!AG80*'Debt Dollars FY22'!$C$2","v":0},{"$f":"'Debt allocations'!AH80*'Debt Dollars FY22'!$C$2","v":0},{"$f":"'Debt allocations'!AI80*'Debt Dollars FY22'!$C$2","v":0},{"$f":"'Debt allocations'!AJ80*'Debt Dollars FY22'!$C$2","v":0},{"$f":"'Debt allocations'!AK80*'Debt Dollars FY22'!$C$2","v":0},{"$f":"'Debt allocations'!AL80*'Debt Dollars FY22'!$C$2","v":0},{"$f":"'Debt allocations'!AM80*'Debt Dollars FY22'!$C$2","v":0},{"$f":"'Debt allocations'!AN80*'Debt Dollars FY22'!$C$2","v":0}]
["357 - Department of Early Learning","357","Department of Early Learning",9.9999999999999998E-20,1E-8,0,{"$f":"'Debt allocations'!G81*'Debt Dollars FY22'!$C$2","v":0},{"$f":"'Debt allocations'!H81*'Debt Dollars FY22'!$C$2","v":0},{"$f":"'Debt allocations'!I81*'Debt Dollars FY22'!$C$2","v":0},{"$f":"'Debt allocations'!J81*'Debt Dollars FY22'!$C$2","v":0},{"$f":"'Debt allocations'!K81*'Debt Dollars FY22'!$C$2","v":0},{"$f":"'Debt allocations'!L81*'Debt Dollars FY22'!$C$2","v":0},{"$f":"'Debt allocations'!M81*'Debt Dollars FY22'!$C$2","v":0},{"$f":"'Debt allocations'!N81*'Debt Dollars FY22'!$C$2","v":0},{"$f":"'Debt allocations'!O81*'Debt Dollars FY22'!$C$2","v":0},{"$f":"'Debt allocations'!P81*'Debt Dollars FY22'!$C$2","v":0},{"$f":"'Debt allocations'!Q81*'Debt Dollars FY22'!$C$2","v":0},{"$f":"'Debt allocations'!R81*'Debt Dollars FY22'!$C$2","v":0},{"$f":"'Debt allocations'!S81*'Debt Dollars FY22'!$C$2","v":0},{"$f":"'Debt allocations'!T81*'Debt Dollars FY22'!$C$2","v":0},{"$f":"'Debt allocations'!U81*'Debt Dollars FY22'!$C$2","v":0},{"$f":"'Debt allocations'!V81*'Debt Dollars FY22'!$C$2","v":0},{"$f":"'Debt allocations'!W81*'Debt Dollars FY22'!$C$2","v":0},{"$f":"'Debt allocations'!X81*'Debt Dollars FY22'!$C$2","v":0},{"$f":"'Debt allocations'!Y81*'Debt Dollars FY22'!$C$2","v":0},{"$f":"'Debt allocations'!Z81*'Debt Dollars FY22'!$C$2","v":0},{"$f":"'Debt allocations'!AA81*'Debt Dollars FY22'!$C$2","v":0},{"$f":"'Debt allocations'!AB81*'Debt Dollars FY22'!$C$2","v":0},{"$f":"'Debt allocations'!AC81*'Debt Dollars FY22'!$C$2","v":0},{"$f":"'Debt allocations'!AD81*'Debt Dollars FY22'!$C$2","v":0},{"$f":"'Debt allocations'!AE81*'Debt Dollars FY22'!$C$2","v":0},{"$f":"'Debt allocations'!AF81*'Debt Dollars FY22'!$C$2","v":0},{"$f":"'Debt allocations'!AG81*'Debt Dollars FY22'!$C$2","v":0},{"$f":"'Debt allocations'!AH81*'Debt Dollars FY22'!$C$2","v":0},{"$f":"'Debt allocations'!AI81*'Debt Dollars FY22'!$C$2","v":0},{"$f":"'Debt allocations'!AJ81*'Debt Dollars FY22'!$C$2","v":0},{"$f":"'Debt allocations'!AK81*'Debt Dollars FY22'!$C$2","v":0},{"$f":"'Debt allocations'!AL81*'Debt Dollars FY22'!$C$2","v":0},{"$f":"'Debt allocations'!AM81*'Debt Dollars FY22'!$C$2","v":0},{"$f":"'Debt allocations'!AN81*'Debt Dollars FY22'!$C$2","v":0}]
["359 - WA Charter School Commission","359","WA Charter School Commission",9.9999999999999998E-20,1E-8,0,{"$f":"'Debt allocations'!G82*'Debt Dollars FY22'!$C$2","v":0},{"$f":"'Debt allocations'!H82*'Debt Dollars FY22'!$C$2","v":0},{"$f":"'Debt allocations'!I82*'Debt Dollars FY22'!$C$2","v":0},{"$f":"'Debt allocations'!J82*'Debt Dollars FY22'!$C$2","v":0},{"$f":"'Debt allocations'!K82*'Debt Dollars FY22'!$C$2","v":0},{"$f":"'Debt allocations'!L82*'Debt Dollars FY22'!$C$2","v":0},{"$f":"'Debt allocations'!M82*'Debt Dollars FY22'!$C$2","v":0},{"$f":"'Debt allocations'!N82*'Debt Dollars FY22'!$C$2","v":0},{"$f":"'Debt allocations'!O82*'Debt Dollars FY22'!$C$2","v":0},{"$f":"'Debt allocations'!P82*'Debt Dollars FY22'!$C$2","v":0},{"$f":"'Debt allocations'!Q82*'Debt Dollars FY22'!$C$2","v":0},{"$f":"'Debt allocations'!R82*'Debt Dollars FY22'!$C$2","v":0},{"$f":"'Debt allocations'!S82*'Debt Dollars FY22'!$C$2","v":0},{"$f":"'Debt allocations'!T82*'Debt Dollars FY22'!$C$2","v":0},{"$f":"'Debt allocations'!U82*'Debt Dollars FY22'!$C$2","v":0},{"$f":"'Debt allocations'!V82*'Debt Dollars FY22'!$C$2","v":0},{"$f":"'Debt allocations'!W82*'Debt Dollars FY22'!$C$2","v":0},{"$f":"'Debt allocations'!X82*'Debt Dollars FY22'!$C$2","v":0},{"$f":"'Debt allocations'!Y82*'Debt Dollars FY22'!$C$2","v":0},{"$f":"'Debt allocations'!Z82*'Debt Dollars FY22'!$C$2","v":0},{"$f":"'Debt allocations'!AA82*'Debt Dollars FY22'!$C$2","v":0},{"$f":"'Debt allocations'!AB82*'Debt Dollars FY22'!$C$2","v":0},{"$f":"'Debt allocations'!AC82*'Debt Dollars FY22'!$C$2","v":0},{"$f":"'Debt allocations'!AD82*'Debt Dollars FY22'!$C$2","v":0},{"$f":"'Debt allocations'!AE82*'Debt Dollars FY22'!$C$2","v":0},{"$f":"'Debt allocations'!AF82*'Debt Dollars FY22'!$C$2","v":0},{"$f":"'Debt allocations'!AG82*'Debt Dollars FY22'!$C$2","v":0},{"$f":"'Debt allocations'!AH82*'Debt Dollars FY22'!$C$2","v":0},{"$f":"'Debt allocations'!AI82*'Debt Dollars FY22'!$C$2","v":0},{"$f":"'Debt allocations'!AJ82*'Debt Dollars FY22'!$C$2","v":0},{"$f":"'Debt allocations'!AK82*'Debt Dollars FY22'!$C$2","v":0},{"$f":"'Debt allocations'!AL82*'Debt Dollars FY22'!$C$2","v":0},{"$f":"'Debt allocations'!AM82*'Debt Dollars FY22'!$C$2","v":0},{"$f":"'Debt allocations'!AN82*'Debt Dollars FY22'!$C$2","v":0}]
["360 - University of Washington","360","University of Washington",9.9999999999999998E-20,1E-8,0,{"$f":"'Debt allocations'!G83*'Debt Dollars FY22'!$C$2","v":0},{"$f":"'Debt allocations'!H83*'Debt Dollars FY22'!$C$2","v":0},{"$f":"'Debt allocations'!I83*'Debt Dollars FY22'!$C$2","v":0},{"$f":"'Debt allocations'!J83*'Debt Dollars FY22'!$C$2","v":0},{"$f":"'Debt allocations'!K83*'Debt Dollars FY22'!$C$2","v":0},{"$f":"'Debt allocations'!L83*'Debt Dollars FY22'!$C$2","v":0},{"$f":"'Debt allocations'!M83*'Debt Dollars FY22'!$C$2","v":0},{"$f":"'Debt allocations'!N83*'Debt Dollars FY22'!$C$2","v":0},{"$f":"'Debt allocations'!O83*'Debt Dollars FY22'!$C$2","v":0},{"$f":"'Debt allocations'!P83*'Debt Dollars FY22'!$C$2","v":0},{"$f":"'Debt allocations'!Q83*'Debt Dollars FY22'!$C$2","v":0},{"$f":"'Debt allocations'!R83*'Debt Dollars FY22'!$C$2","v":0},{"$f":"'Debt allocations'!S83*'Debt Dollars FY22'!$C$2","v":0},{"$f":"'Debt allocations'!T83*'Debt Dollars FY22'!$C$2","v":0},{"$f":"'Debt allocations'!U83*'Debt Dollars FY22'!$C$2","v":0},{"$f":"'Debt allocations'!V83*'Debt Dollars FY22'!$C$2","v":0},{"$f":"'Debt allocations'!W83*'Debt Dollars FY22'!$C$2","v":0},{"$f":"'Debt allocations'!X83*'Debt Dollars FY22'!$C$2","v":0},{"$f":"'Debt allocations'!Y83*'Debt Dollars FY22'!$C$2","v":0},{"$f":"'Debt allocations'!Z83*'Debt Dollars FY22'!$C$2","v":0},{"$f":"'Debt allocations'!AA83*'Debt Dollars FY22'!$C$2","v":0},{"$f":"'Debt allocations'!AB83*'Debt Dollars FY22'!$C$2","v":0},{"$f":"'Debt allocations'!AC83*'Debt Dollars FY22'!$C$2","v":0},{"$f":"'Debt allocations'!AD83*'Debt Dollars FY22'!$C$2","v":0},{"$f":"'Debt allocations'!AE83*'Debt Dollars FY22'!$C$2","v":0},{"$f":"'Debt allocations'!AF83*'Debt Dollars FY22'!$C$2","v":0},{"$f":"'Debt allocations'!AG83*'Debt Dollars FY22'!$C$2","v":0},{"$f":"'Debt allocations'!AH83*'Debt Dollars FY22'!$C$2","v":0},{"$f":"'Debt allocations'!AI83*'Debt Dollars FY22'!$C$2","v":0},{"$f":"'Debt allocations'!AJ83*'Debt Dollars FY22'!$C$2","v":0},{"$f":"'Debt allocations'!AK83*'Debt Dollars FY22'!$C$2","v":0},{"$f":"'Debt allocations'!AL83*'Debt Dollars FY22'!$C$2","v":0},{"$f":"'Debt allocations'!AM83*'Debt Dollars FY22'!$C$2","v":0},{"$f":"'Debt allocations'!AN83*'Debt Dollars FY22'!$C$2","v":0}]
["365 - Washington State University","365","Washington State University",9.9999999999999998E-20,1E-8,0,{"$f":"'Debt allocations'!G84*'Debt Dollars FY22'!$C$2","v":0},{"$f":"'Debt allocations'!H84*'Debt Dollars FY22'!$C$2","v":0},{"$f":"'Debt allocations'!I84*'Debt Dollars FY22'!$C$2","v":0},{"$f":"'Debt allocations'!J84*'Debt Dollars FY22'!$C$2","v":0},{"$f":"'Debt allocations'!K84*'Debt Dollars FY22'!$C$2","v":0},{"$f":"'Debt allocations'!L84*'Debt Dollars FY22'!$C$2","v":0},{"$f":"'Debt allocations'!M84*'Debt Dollars FY22'!$C$2","v":0},{"$f":"'Debt allocations'!N84*'Debt Dollars FY22'!$C$2","v":0},{"$f":"'Debt allocations'!O84*'Debt Dollars FY22'!$C$2","v":0},{"$f":"'Debt allocations'!P84*'Debt Dollars FY22'!$C$2","v":0},{"$f":"'Debt allocations'!Q84*'Debt Dollars FY22'!$C$2","v":0},{"$f":"'Debt allocations'!R84*'Debt Dollars FY22'!$C$2","v":0},{"$f":"'Debt allocations'!S84*'Debt Dollars FY22'!$C$2","v":0},{"$f":"'Debt allocations'!T84*'Debt Dollars FY22'!$C$2","v":0},{"$f":"'Debt allocations'!U84*'Debt Dollars FY22'!$C$2","v":0},{"$f":"'Debt allocations'!V84*'Debt Dollars FY22'!$C$2","v":0},{"$f":"'Debt allocations'!W84*'Debt Dollars FY22'!$C$2","v":0},{"$f":"'Debt allocations'!X84*'Debt Dollars FY22'!$C$2","v":0},{"$f":"'Debt allocations'!Y84*'Debt Dollars FY22'!$C$2","v":0},{"$f":"'Debt allocations'!Z84*'Debt Dollars FY22'!$C$2","v":0},{"$f":"'Debt allocations'!AA84*'Debt Dollars FY22'!$C$2","v":0},{"$f":"'Debt allocations'!AB84*'Debt Dollars FY22'!$C$2","v":0},{"$f":"'Debt allocations'!AC84*'Debt Dollars FY22'!$C$2","v":0},{"$f":"'Debt allocations'!AD84*'Debt Dollars FY22'!$C$2","v":0},{"$f":"'Debt allocations'!AE84*'Debt Dollars FY22'!$C$2","v":0},{"$f":"'Debt allocations'!AF84*'Debt Dollars FY22'!$C$2","v":0},{"$f":"'Debt allocations'!AG84*'Debt Dollars FY22'!$C$2","v":0},{"$f":"'Debt allocations'!AH84*'Debt Dollars FY22'!$C$2","v":0},{"$f":"'Debt allocations'!AI84*'Debt Dollars FY22'!$C$2","v":0},{"$f":"'Debt allocations'!AJ84*'Debt Dollars FY22'!$C$2","v":0},{"$f":"'Debt allocations'!AK84*'Debt Dollars FY22'!$C$2","v":0},{"$f":"'Debt allocations'!AL84*'Debt Dollars FY22'!$C$2","v":0},{"$f":"'Debt allocations'!AM84*'Debt Dollars FY22'!$C$2","v":0},{"$f":"'Debt allocations'!AN84*'Debt Dollars FY22'!$C$2","v":0}]
["370 - Eastern Washington University","370","Eastern Washington University",9.9999999999999998E-20,1E-8,0,{"$f":"'Debt allocations'!G85*'Debt Dollars FY22'!$C$2","v":0},{"$f":"'Debt allocations'!H85*'Debt Dollars FY22'!$C$2","v":0},{"$f":"'Debt allocations'!I85*'Debt Dollars FY22'!$C$2","v":0},{"$f":"'Debt allocations'!J85*'Debt Dollars FY22'!$C$2","v":0},{"$f":"'Debt allocations'!K85*'Debt Dollars FY22'!$C$2","v":0},{"$f":"'Debt allocations'!L85*'Debt Dollars FY22'!$C$2","v":0},{"$f":"'Debt allocations'!M85*'Debt Dollars FY22'!$C$2","v":0},{"$f":"'Debt allocations'!N85*'Debt Dollars FY22'!$C$2","v":0},{"$f":"'Debt allocations'!O85*'Debt Dollars FY22'!$C$2","v":0},{"$f":"'Debt allocations'!P85*'Debt Dollars FY22'!$C$2","v":0},{"$f":"'Debt allocations'!Q85*'Debt Dollars FY22'!$C$2","v":0},{"$f":"'Debt allocations'!R85*'Debt Dollars FY22'!$C$2","v":0},{"$f":"'Debt allocations'!S85*'Debt Dollars FY22'!$C$2","v":0},{"$f":"'Debt allocations'!T85*'Debt Dollars FY22'!$C$2","v":0},{"$f":"'Debt allocations'!U85*'Debt Dollars FY22'!$C$2","v":0},{"$f":"'Debt allocations'!V85*'Debt Dollars FY22'!$C$2","v":0},{"$f":"'Debt allocations'!W85*'Debt Dollars FY22'!$C$2","v":0},{"$f":"'Debt allocations'!X85*'Debt Dollars FY22'!$C$2","v":0},{"$f":"'Debt allocations'!Y85*'Debt Dollars FY22'!$C$2","v":0},{"$f":"'Debt allocations'!Z85*'Debt Dollars FY22'!$C$2","v":0},{"$f":"'Debt allocations'!AA85*'Debt Dollars FY22'!$C$2","v":0},{"$f":"'Debt allocations'!AB85*'Debt Dollars FY22'!$C$2","v":0},{"$f":"'Debt allocations'!AC85*'Debt Dollars FY22'!$C$2","v":0},{"$f":"'Debt allocations'!AD85*'Debt Dollars FY22'!$C$2","v":0},{"$f":"'Debt allocations'!AE85*'Debt Dollars FY22'!$C$2","v":0},{"$f":"'Debt allocations'!AF85*'Debt Dollars FY22'!$C$2","v":0},{"$f":"'Debt allocations'!AG85*'Debt Dollars FY22'!$C$2","v":0},{"$f":"'Debt allocations'!AH85*'Debt Dollars FY22'!$C$2","v":0},{"$f":"'Debt allocations'!AI85*'Debt Dollars FY22'!$C$2","v":0},{"$f":"'Debt allocations'!AJ85*'Debt Dollars FY22'!$C$2","v":0},{"$f":"'Debt allocations'!AK85*'Debt Dollars FY22'!$C$2","v":0},{"$f":"'Debt allocations'!AL85*'Debt Dollars FY22'!$C$2","v":0},{"$f":"'Debt allocations'!AM85*'Debt Dollars FY22'!$C$2","v":0},{"$f":"'Debt allocations'!AN85*'Debt Dollars FY22'!$C$2","v":0}]
["375 - Central Washington University","375","Central Washington University",9.9999999999999998E-20,1E-8,0,{"$f":"'Debt allocations'!G86*'Debt Dollars FY22'!$C$2","v":0},{"$f":"'Debt allocations'!H86*'Debt Dollars FY22'!$C$2","v":0},{"$f":"'Debt allocations'!I86*'Debt Dollars FY22'!$C$2","v":0},{"$f":"'Debt allocations'!J86*'Debt Dollars FY22'!$C$2","v":0},{"$f":"'Debt allocations'!K86*'Debt Dollars FY22'!$C$2","v":0},{"$f":"'Debt allocations'!L86*'Debt Dollars FY22'!$C$2","v":0},{"$f":"'Debt allocations'!M86*'Debt Dollars FY22'!$C$2","v":0},{"$f":"'Debt allocations'!N86*'Debt Dollars FY22'!$C$2","v":0},{"$f":"'Debt allocations'!O86*'Debt Dollars FY22'!$C$2","v":0},{"$f":"'Debt allocations'!P86*'Debt Dollars FY22'!$C$2","v":0},{"$f":"'Debt allocations'!Q86*'Debt Dollars FY22'!$C$2","v":0},{"$f":"'Debt allocations'!R86*'Debt Dollars FY22'!$C$2","v":0},{"$f":"'Debt allocations'!S86*'Debt Dollars FY22'!$C$2","v":0},{"$f":"'Debt allocations'!T86*'Debt Dollars FY22'!$C$2","v":0},{"$f":"'Debt allocations'!U86*'Debt Dollars FY22'!$C$2","v":0},{"$f":"'Debt allocations'!V86*'Debt Dollars FY22'!$C$2","v":0},{"$f":"'Debt allocations'!W86*'Debt Dollars FY22'!$C$2","v":0},{"$f":"'Debt allocations'!X86*'Debt Dollars FY22'!$C$2","v":0},{"$f":"'Debt allocations'!Y86*'Debt Dollars FY22'!$C$2","v":0},{"$f":"'Debt allocations'!Z86*'Debt Dollars FY22'!$C$2","v":0},{"$f":"'Debt allocations'!AA86*'Debt Dollars FY22'!$C$2","v":0},{"$f":"'Debt allocations'!AB86*'Debt Dollars FY22'!$C$2","v":0},{"$f":"'Debt allocations'!AC86*'Debt Dollars FY22'!$C$2","v":0},{"$f":"'Debt allocations'!AD86*'Debt Dollars FY22'!$C$2","v":0},{"$f":"'Debt allocations'!AE86*'Debt Dollars FY22'!$C$2","v":0},{"$f":"'Debt allocations'!AF86*'Debt Dollars FY22'!$C$2","v":0},{"$f":"'Debt allocations'!AG86*'Debt Dollars FY22'!$C$2","v":0},{"$f":"'Debt allocations'!AH86*'Debt Dollars FY22'!$C$2","v":0},{"$f":"'Debt allocations'!AI86*'Debt Dollars FY22'!$C$2","v":0},{"$f":"'Debt allocations'!AJ86*'Debt Dollars FY22'!$C$2","v":0},{"$f":"'Debt allocations'!AK86*'Debt Dollars FY22'!$C$2","v":0},{"$f":"'Debt allocations'!AL86*'Debt Dollars FY22'!$C$2","v":0},{"$f":"'Debt allocations'!AM86*'Debt Dollars FY22'!$C$2","v":0},{"$f":"'Debt allocations'!AN86*'Debt Dollars FY22'!$C$2","v":0}]
["376 - The Evergreen State College","376","The Evergreen State College",9.9999999999999998E-20,1E-8,0,{"$f":"'Debt allocations'!G87*'Debt Dollars FY22'!$C$2","v":0},{"$f":"'Debt allocations'!H87*'Debt Dollars FY22'!$C$2","v":0},{"$f":"'Debt allocations'!I87*'Debt Dollars FY22'!$C$2","v":0},{"$f":"'Debt allocations'!J87*'Debt Dollars FY22'!$C$2","v":0},{"$f":"'Debt allocations'!K87*'Debt Dollars FY22'!$C$2","v":0},{"$f":"'Debt allocations'!L87*'Debt Dollars FY22'!$C$2","v":0},{"$f":"'Debt allocations'!M87*'Debt Dollars FY22'!$C$2","v":0},{"$f":"'Debt allocations'!N87*'Debt Dollars FY22'!$C$2","v":0},{"$f":"'Debt allocations'!O87*'Debt Dollars FY22'!$C$2","v":0},{"$f":"'Debt allocations'!P87*'Debt Dollars FY22'!$C$2","v":0},{"$f":"'Debt allocations'!Q87*'Debt Dollars FY22'!$C$2","v":0},{"$f":"'Debt allocations'!R87*'Debt Dollars FY22'!$C$2","v":0},{"$f":"'Debt allocations'!S87*'Debt Dollars FY22'!$C$2","v":0},{"$f":"'Debt allocations'!T87*'Debt Dollars FY22'!$C$2","v":0},{"$f":"'Debt allocations'!U87*'Debt Dollars FY22'!$C$2","v":0},{"$f":"'Debt allocations'!V87*'Debt Dollars FY22'!$C$2","v":0},{"$f":"'Debt allocations'!W87*'Debt Dollars FY22'!$C$2","v":0},{"$f":"'Debt allocations'!X87*'Debt Dollars FY22'!$C$2","v":0},{"$f":"'Debt allocations'!Y87*'Debt Dollars FY22'!$C$2","v":0},{"$f":"'Debt allocations'!Z87*'Debt Dollars FY22'!$C$2","v":0},{"$f":"'Debt allocations'!AA87*'Debt Dollars FY22'!$C$2","v":0},{"$f":"'Debt allocations'!AB87*'Debt Dollars FY22'!$C$2","v":0},{"$f":"'Debt allocations'!AC87*'Debt Dollars FY22'!$C$2","v":0},{"$f":"'Debt allocations'!AD87*'Debt Dollars FY22'!$C$2","v":0},{"$f":"'Debt allocations'!AE87*'Debt Dollars FY22'!$C$2","v":0},{"$f":"'Debt allocations'!AF87*'Debt Dollars FY22'!$C$2","v":0},{"$f":"'Debt allocations'!AG87*'Debt Dollars FY22'!$C$2","v":0},{"$f":"'Debt allocations'!AH87*'Debt Dollars FY22'!$C$2","v":0},{"$f":"'Debt allocations'!AI87*'Debt Dollars FY22'!$C$2","v":0},{"$f":"'Debt allocations'!AJ87*'Debt Dollars FY22'!$C$2","v":0},{"$f":"'Debt allocations'!AK87*'Debt Dollars FY22'!$C$2","v":0},{"$f":"'Debt allocations'!AL87*'Debt Dollars FY22'!$C$2","v":0},{"$f":"'Debt allocations'!AM87*'Debt Dollars FY22'!$C$2","v":0},{"$f":"'Debt allocations'!AN87*'Debt Dollars FY22'!$C$2","v":0}]
["380 - Western Washington University","380","Western Washington University",9.9999999999999998E-20,1E-8,0,{"$f":"'Debt allocations'!G88*'Debt Dollars FY22'!$C$2","v":0},{"$f":"'Debt allocations'!H88*'Debt Dollars FY22'!$C$2","v":0},{"$f":"'Debt allocations'!I88*'Debt Dollars FY22'!$C$2","v":0},{"$f":"'Debt allocations'!J88*'Debt Dollars FY22'!$C$2","v":0},{"$f":"'Debt allocations'!K88*'Debt Dollars FY22'!$C$2","v":0},{"$f":"'Debt allocations'!L88*'Debt Dollars FY22'!$C$2","v":0},{"$f":"'Debt allocations'!M88*'Debt Dollars FY22'!$C$2","v":0},{"$f":"'Debt allocations'!N88*'Debt Dollars FY22'!$C$2","v":0},{"$f":"'Debt allocations'!O88*'Debt Dollars FY22'!$C$2","v":0},{"$f":"'Debt allocations'!P88*'Debt Dollars FY22'!$C$2","v":0},{"$f":"'Debt allocations'!Q88*'Debt Dollars FY22'!$C$2","v":0},{"$f":"'Debt allocations'!R88*'Debt Dollars FY22'!$C$2","v":0},{"$f":"'Debt allocations'!S88*'Debt Dollars FY22'!$C$2","v":0},{"$f":"'Debt allocations'!T88*'Debt Dollars FY22'!$C$2","v":0},{"$f":"'Debt allocations'!U88*'Debt Dollars FY22'!$C$2","v":0},{"$f":"'Debt allocations'!V88*'Debt Dollars FY22'!$C$2","v":0},{"$f":"'Debt allocations'!W88*'Debt Dollars FY22'!$C$2","v":0},{"$f":"'Debt allocations'!X88*'Debt Dollars FY22'!$C$2","v":0},{"$f":"'Debt allocations'!Y88*'Debt Dollars FY22'!$C$2","v":0},{"$f":"'Debt allocations'!Z88*'Debt Dollars FY22'!$C$2","v":0},{"$f":"'Debt allocations'!AA88*'Debt Dollars FY22'!$C$2","v":0},{"$f":"'Debt allocations'!AB88*'Debt Dollars FY22'!$C$2","v":0},{"$f":"'Debt allocations'!AC88*'Debt Dollars FY22'!$C$2","v":0},{"$f":"'Debt allocations'!AD88*'Debt Dollars FY22'!$C$2","v":0},{"$f":"'Debt allocations'!AE88*'Debt Dollars FY22'!$C$2","v":0},{"$f":"'Debt allocations'!AF88*'Debt Dollars FY22'!$C$2","v":0},{"$f":"'Debt allocations'!AG88*'Debt Dollars FY22'!$C$2","v":0},{"$f":"'Debt allocations'!AH88*'Debt Dollars FY22'!$C$2","v":0},{"$f":"'Debt allocations'!AI88*'Debt Dollars FY22'!$C$2","v":0},{"$f":"'Debt allocations'!AJ88*'Debt Dollars FY22'!$C$2","v":0},{"$f":"'Debt allocations'!AK88*'Debt Dollars FY22'!$C$2","v":0},{"$f":"'Debt allocations'!AL88*'Debt Dollars FY22'!$C$2","v":0},{"$f":"'Debt allocations'!AM88*'Debt Dollars FY22'!$C$2","v":0},{"$f":"'Debt allocations'!AN88*'Debt Dollars FY22'!$C$2","v":0}]
["387 - Washington State Arts Commission","387","Washington State Arts Commission",9.9999999999999998E-20,1E-8,0,{"$f":"'Debt allocations'!G89*'Debt Dollars FY22'!$C$2","v":0},{"$f":"'Debt allocations'!H89*'Debt Dollars FY22'!$C$2","v":0},{"$f":"'Debt allocations'!I89*'Debt Dollars FY22'!$C$2","v":0},{"$f":"'Debt allocations'!J89*'Debt Dollars FY22'!$C$2","v":0},{"$f":"'Debt allocations'!K89*'Debt Dollars FY22'!$C$2","v":0},{"$f":"'Debt allocations'!L89*'Debt Dollars FY22'!$C$2","v":0},{"$f":"'Debt allocations'!M89*'Debt Dollars FY22'!$C$2","v":0},{"$f":"'Debt allocations'!N89*'Debt Dollars FY22'!$C$2","v":0},{"$f":"'Debt allocations'!O89*'Debt Dollars FY22'!$C$2","v":0},{"$f":"'Debt allocations'!P89*'Debt Dollars FY22'!$C$2","v":0},{"$f":"'Debt allocations'!Q89*'Debt Dollars FY22'!$C$2","v":0},{"$f":"'Debt allocations'!R89*'Debt Dollars FY22'!$C$2","v":0},{"$f":"'Debt allocations'!S89*'Debt Dollars FY22'!$C$2","v":0},{"$f":"'Debt allocations'!T89*'Debt Dollars FY22'!$C$2","v":0},{"$f":"'Debt allocations'!U89*'Debt Dollars FY22'!$C$2","v":0},{"$f":"'Debt allocations'!V89*'Debt Dollars FY22'!$C$2","v":0},{"$f":"'Debt allocations'!W89*'Debt Dollars FY22'!$C$2","v":0},{"$f":"'Debt allocations'!X89*'Debt Dollars FY22'!$C$2","v":0},{"$f":"'Debt allocations'!Y89*'Debt Dollars FY22'!$C$2","v":0},{"$f":"'Debt allocations'!Z89*'Debt Dollars FY22'!$C$2","v":0},{"$f":"'Debt allocations'!AA89*'Debt Dollars FY22'!$C$2","v":0},{"$f":"'Debt allocations'!AB89*'Debt Dollars FY22'!$C$2","v":0},{"$f":"'Debt allocations'!AC89*'Debt Dollars FY22'!$C$2","v":0},{"$f":"'Debt allocations'!AD89*'Debt Dollars FY22'!$C$2","v":0},{"$f":"'Debt allocations'!AE89*'Debt Dollars FY22'!$C$2","v":0},{"$f":"'Debt allocations'!AF89*'Debt Dollars FY22'!$C$2","v":0},{"$f":"'Debt allocations'!AG89*'Debt Dollars FY22'!$C$2","v":0},{"$f":"'Debt allocations'!AH89*'Debt Dollars FY22'!$C$2","v":0},{"$f":"'Debt allocations'!AI89*'Debt Dollars FY22'!$C$2","v":0},{"$f":"'Debt allocations'!AJ89*'Debt Dollars FY22'!$C$2","v":0},{"$f":"'Debt allocations'!AK89*'Debt Dollars FY22'!$C$2","v":0},{"$f":"'Debt allocations'!AL89*'Debt Dollars FY22'!$C$2","v":0},{"$f":"'Debt allocations'!AM89*'Debt Dollars FY22'!$C$2","v":0},{"$f":"'Debt allocations'!AN89*'Debt Dollars FY22'!$C$2","v":0}]
["390 - Washington State Historical Society","390","Washington State Historical Society",9.9999999999999998E-20,1E-8,0,{"$f":"'Debt allocations'!G90*'Debt Dollars FY22'!$C$2","v":0},{"$f":"'Debt allocations'!H90*'Debt Dollars FY22'!$C$2","v":0},{"$f":"'Debt allocations'!I90*'Debt Dollars FY22'!$C$2","v":0},{"$f":"'Debt allocations'!J90*'Debt Dollars FY22'!$C$2","v":0},{"$f":"'Debt allocations'!K90*'Debt Dollars FY22'!$C$2","v":0},{"$f":"'Debt allocations'!L90*'Debt Dollars FY22'!$C$2","v":0},{"$f":"'Debt allocations'!M90*'Debt Dollars FY22'!$C$2","v":0},{"$f":"'Debt allocations'!N90*'Debt Dollars FY22'!$C$2","v":0},{"$f":"'Debt allocations'!O90*'Debt Dollars FY22'!$C$2","v":0},{"$f":"'Debt allocations'!P90*'Debt Dollars FY22'!$C$2","v":0},{"$f":"'Debt allocations'!Q90*'Debt Dollars FY22'!$C$2","v":0},{"$f":"'Debt allocations'!R90*'Debt Dollars FY22'!$C$2","v":0},{"$f":"'Debt allocations'!S90*'Debt Dollars FY22'!$C$2","v":0},{"$f":"'Debt allocations'!T90*'Debt Dollars FY22'!$C$2","v":0},{"$f":"'Debt allocations'!U90*'Debt Dollars FY22'!$C$2","v":0},{"$f":"'Debt allocations'!V90*'Debt Dollars FY22'!$C$2","v":0},{"$f":"'Debt allocations'!W90*'Debt Dollars FY22'!$C$2","v":0},{"$f":"'Debt allocations'!X90*'Debt Dollars FY22'!$C$2","v":0},{"$f":"'Debt allocations'!Y90*'Debt Dollars FY22'!$C$2","v":0},{"$f":"'Debt allocations'!Z90*'Debt Dollars FY22'!$C$2","v":0},{"$f":"'Debt allocations'!AA90*'Debt Dollars FY22'!$C$2","v":0},{"$f":"'Debt allocations'!AB90*'Debt Dollars FY22'!$C$2","v":0},{"$f":"'Debt allocations'!AC90*'Debt Dollars FY22'!$C$2","v":0},{"$f":"'Debt allocations'!AD90*'Debt Dollars FY22'!$C$2","v":0},{"$f":"'Debt allocations'!AE90*'Debt Dollars FY22'!$C$2","v":0},{"$f":"'Debt allocations'!AF90*'Debt Dollars FY22'!$C$2","v":0},{"$f":"'Debt allocations'!AG90*'Debt Dollars FY22'!$C$2","v":0},{"$f":"'Debt allocations'!AH90*'Debt Dollars FY22'!$C$2","v":0},{"$f":"'Debt allocations'!AI90*'Debt Dollars FY22'!$C$2","v":0},{"$f":"'Debt allocations'!AJ90*'Debt Dollars FY22'!$C$2","v":0},{"$f":"'Debt allocations'!AK90*'Debt Dollars FY22'!$C$2","v":0},{"$f":"'Debt allocations'!AL90*'Debt Dollars FY22'!$C$2","v":0},{"$f":"'Debt allocations'!AM90*'Debt Dollars FY22'!$C$2","v":0},{"$f":"'Debt allocations'!AN90*'Debt Dollars FY22'!$C$2","v":0}]
["395 - Eastern Washington State Historical Society","395","Eastern Washington State Historical Society",9.9999999999999998E-20,1E-8,0,{"$f":"'Debt allocations'!G91*'Debt Dollars FY22'!$C$2","v":0},{"$f":"'Debt allocations'!H91*'Debt Dollars FY22'!$C$2","v":0},{"$f":"'Debt allocations'!I91*'Debt Dollars FY22'!$C$2","v":0},{"$f":"'Debt allocations'!J91*'Debt Dollars FY22'!$C$2","v":0},{"$f":"'Debt allocations'!K91*'Debt Dollars FY22'!$C$2","v":0},{"$f":"'Debt allocations'!L91*'Debt Dollars FY22'!$C$2","v":0},{"$f":"'Debt allocations'!M91*'Debt Dollars FY22'!$C$2","v":0},{"$f":"'Debt allocations'!N91*'Debt Dollars FY22'!$C$2","v":0},{"$f":"'Debt allocations'!O91*'Debt Dollars FY22'!$C$2","v":0},{"$f":"'Debt allocations'!P91*'Debt Dollars FY22'!$C$2","v":0},{"$f":"'Debt allocations'!Q91*'Debt Dollars FY22'!$C$2","v":0},{"$f":"'Debt allocations'!R91*'Debt Dollars FY22'!$C$2","v":0},{"$f":"'Debt allocations'!S91*'Debt Dollars FY22'!$C$2","v":0},{"$f":"'Debt allocations'!T91*'Debt Dollars FY22'!$C$2","v":0},{"$f":"'Debt allocations'!U91*'Debt Dollars FY22'!$C$2","v":0},{"$f":"'Debt allocations'!V91*'Debt Dollars FY22'!$C$2","v":0},{"$f":"'Debt allocations'!W91*'Debt Dollars FY22'!$C$2","v":0},{"$f":"'Debt allocations'!X91*'Debt Dollars FY22'!$C$2","v":0},{"$f":"'Debt allocations'!Y91*'Debt Dollars FY22'!$C$2","v":0},{"$f":"'Debt allocations'!Z91*'Debt Dollars FY22'!$C$2","v":0},{"$f":"'Debt allocations'!AA91*'Debt Dollars FY22'!$C$2","v":0},{"$f":"'Debt allocations'!AB91*'Debt Dollars FY22'!$C$2","v":0},{"$f":"'Debt allocations'!AC91*'Debt Dollars FY22'!$C$2","v":0},{"$f":"'Debt allocations'!AD91*'Debt Dollars FY22'!$C$2","v":0},{"$f":"'Debt allocations'!AE91*'Debt Dollars FY22'!$C$2","v":0},{"$f":"'Debt allocations'!AF91*'Debt Dollars FY22'!$C$2","v":0},{"$f":"'Debt allocations'!AG91*'Debt Dollars FY22'!$C$2","v":0},{"$f":"'Debt allocations'!AH91*'Debt Dollars FY22'!$C$2","v":0},{"$f":"'Debt allocations'!AI91*'Debt Dollars FY22'!$C$2","v":0},{"$f":"'Debt allocations'!AJ91*'Debt Dollars FY22'!$C$2","v":0},{"$f":"'Debt allocations'!AK91*'Debt Dollars FY22'!$C$2","v":0},{"$f":"'Debt allocations'!AL91*'Debt Dollars FY22'!$C$2","v":0},{"$f":"'Debt allocations'!AM91*'Debt Dollars FY22'!$C$2","v":0},{"$f":"'Debt allocations'!AN91*'Debt Dollars FY22'!$C$2","v":0}]
["405 - Department of Transportation","405","Department of Transportation",9.9999999999999998E-20,1E-8,0,{"$f":"'Debt allocations'!G92*'Debt Dollars FY22'!$C$2","v":0},{"$f":"'Debt allocations'!H92*'Debt Dollars FY22'!$C$2","v":0},{"$f":"'Debt allocations'!I92*'Debt Dollars FY22'!$C$2","v":0},{"$f":"'Debt allocations'!J92*'Debt Dollars FY22'!$C$2","v":0},{"$f":"'Debt allocations'!K92*'Debt Dollars FY22'!$C$2","v":0},{"$f":"'Debt allocations'!L92*'Debt Dollars FY22'!$C$2","v":0},{"$f":"'Debt allocations'!M92*'Debt Dollars FY22'!$C$2","v":0},{"$f":"'Debt allocations'!N92*'Debt Dollars FY22'!$C$2","v":0},{"$f":"'Debt allocations'!O92*'Debt Dollars FY22'!$C$2","v":0},{"$f":"'Debt allocations'!P92*'Debt Dollars FY22'!$C$2","v":0},{"$f":"'Debt allocations'!Q92*'Debt Dollars FY22'!$C$2","v":0},{"$f":"'Debt allocations'!R92*'Debt Dollars FY22'!$C$2","v":0},{"$f":"'Debt allocations'!S92*'Debt Dollars FY22'!$C$2","v":0},{"$f":"'Debt allocations'!T92*'Debt Dollars FY22'!$C$2","v":0},{"$f":"'Debt allocations'!U92*'Debt Dollars FY22'!$C$2","v":0},{"$f":"'Debt allocations'!V92*'Debt Dollars FY22'!$C$2","v":0},{"$f":"'Debt allocations'!W92*'Debt Dollars FY22'!$C$2","v":0},{"$f":"'Debt allocations'!X92*'Debt Dollars FY22'!$C$2","v":0},{"$f":"'Debt allocations'!Y92*'Debt Dollars FY22'!$C$2","v":0},{"$f":"'Debt allocations'!Z92*'Debt Dollars FY22'!$C$2","v":0},{"$f":"'Debt allocations'!AA92*'Debt Dollars FY22'!$C$2","v":0},{"$f":"'Debt allocations'!AB92*'Debt Dollars FY22'!$C$2","v":0},{"$f":"'Debt allocations'!AC92*'Debt Dollars FY22'!$C$2","v":0},{"$f":"'Debt allocations'!AD92*'Debt Dollars FY22'!$C$2","v":0},{"$f":"'Debt allocations'!AE92*'Debt Dollars FY22'!$C$2","v":0},{"$f":"'Debt allocations'!AF92*'Debt Dollars FY22'!$C$2","v":0},{"$f":"'Debt allocations'!AG92*'Debt Dollars FY22'!$C$2","v":0},{"$f":"'Debt allocations'!AH92*'Debt Dollars FY22'!$C$2","v":0},{"$f":"'Debt allocations'!AI92*'Debt Dollars FY22'!$C$2","v":0},{"$f":"'Debt allocations'!AJ92*'Debt Dollars FY22'!$C$2","v":0},{"$f":"'Debt allocations'!AK92*'Debt Dollars FY22'!$C$2","v":0},{"$f":"'Debt allocations'!AL92*'Debt Dollars FY22'!$C$2","v":0},{"$f":"'Debt allocations'!AM92*'Debt Dollars FY22'!$C$2","v":0},{"$f":"'Debt allocations'!AN92*'Debt Dollars FY22'!$C$2","v":0}]
["406 - County Road Administration Board","406","County Road Administration Board",9.9999999999999998E-20,1E-8,0,{"$f":"'Debt allocations'!G93*'Debt Dollars FY22'!$C$2","v":0},{"$f":"'Debt allocations'!H93*'Debt Dollars FY22'!$C$2","v":0},{"$f":"'Debt allocations'!I93*'Debt Dollars FY22'!$C$2","v":0},{"$f":"'Debt allocations'!J93*'Debt Dollars FY22'!$C$2","v":0},{"$f":"'Debt allocations'!K93*'Debt Dollars FY22'!$C$2","v":0},{"$f":"'Debt allocations'!L93*'Debt Dollars FY22'!$C$2","v":0},{"$f":"'Debt allocations'!M93*'Debt Dollars FY22'!$C$2","v":0},{"$f":"'Debt allocations'!N93*'Debt Dollars FY22'!$C$2","v":0},{"$f":"'Debt allocations'!O93*'Debt Dollars FY22'!$C$2","v":0},{"$f":"'Debt allocations'!P93*'Debt Dollars FY22'!$C$2","v":0},{"$f":"'Debt allocations'!Q93*'Debt Dollars FY22'!$C$2","v":0},{"$f":"'Debt allocations'!R93*'Debt Dollars FY22'!$C$2","v":0},{"$f":"'Debt allocations'!S93*'Debt Dollars FY22'!$C$2","v":0},{"$f":"'Debt allocations'!T93*'Debt Dollars FY22'!$C$2","v":0},{"$f":"'Debt allocations'!U93*'Debt Dollars FY22'!$C$2","v":0},{"$f":"'Debt allocations'!V93*'Debt Dollars FY22'!$C$2","v":0},{"$f":"'Debt allocations'!W93*'Debt Dollars FY22'!$C$2","v":0},{"$f":"'Debt allocations'!X93*'Debt Dollars FY22'!$C$2","v":0},{"$f":"'Debt allocations'!Y93*'Debt Dollars FY22'!$C$2","v":0},{"$f":"'Debt allocations'!Z93*'Debt Dollars FY22'!$C$2","v":0},{"$f":"'Debt allocations'!AA93*'Debt Dollars FY22'!$C$2","v":0},{"$f":"'Debt allocations'!AB93*'Debt Dollars FY22'!$C$2","v":0},{"$f":"'Debt allocations'!AC93*'Debt Dollars FY22'!$C$2","v":0},{"$f":"'Debt allocations'!AD93*'Debt Dollars FY22'!$C$2","v":0},{"$f":"'Debt allocations'!AE93*'Debt Dollars FY22'!$C$2","v":0},{"$f":"'Debt allocations'!AF93*'Debt Dollars FY22'!$C$2","v":0},{"$f":"'Debt allocations'!AG93*'Debt Dollars FY22'!$C$2","v":0},{"$f":"'Debt allocations'!AH93*'Debt Dollars FY22'!$C$2","v":0},{"$f":"'Debt allocations'!AI93*'Debt Dollars FY22'!$C$2","v":0},{"$f":"'Debt allocations'!AJ93*'Debt Dollars FY22'!$C$2","v":0},{"$f":"'Debt allocations'!AK93*'Debt Dollars FY22'!$C$2","v":0},{"$f":"'Debt allocations'!AL93*'Debt Dollars FY22'!$C$2","v":0},{"$f":"'Debt allocations'!AM93*'Debt Dollars FY22'!$C$2","v":0},{"$f":"'Debt allocations'!AN93*'Debt Dollars FY22'!$C$2","v":0}]
["407 - Transportation Improvement Board","407","Transportation Improvement Board",9.9999999999999998E-20,1E-8,0,{"$f":"'Debt allocations'!G94*'Debt Dollars FY22'!$C$2","v":0},{"$f":"'Debt allocations'!H94*'Debt Dollars FY22'!$C$2","v":0},{"$f":"'Debt allocations'!I94*'Debt Dollars FY22'!$C$2","v":0},{"$f":"'Debt allocations'!J94*'Debt Dollars FY22'!$C$2","v":0},{"$f":"'Debt allocations'!K94*'Debt Dollars FY22'!$C$2","v":0},{"$f":"'Debt allocations'!L94*'Debt Dollars FY22'!$C$2","v":0},{"$f":"'Debt allocations'!M94*'Debt Dollars FY22'!$C$2","v":0},{"$f":"'Debt allocations'!N94*'Debt Dollars FY22'!$C$2","v":0},{"$f":"'Debt allocations'!O94*'Debt Dollars FY22'!$C$2","v":0},{"$f":"'Debt allocations'!P94*'Debt Dollars FY22'!$C$2","v":0},{"$f":"'Debt allocations'!Q94*'Debt Dollars FY22'!$C$2","v":0},{"$f":"'Debt allocations'!R94*'Debt Dollars FY22'!$C$2","v":0},{"$f":"'Debt allocations'!S94*'Debt Dollars FY22'!$C$2","v":0},{"$f":"'Debt allocations'!T94*'Debt Dollars FY22'!$C$2","v":0},{"$f":"'Debt allocations'!U94*'Debt Dollars FY22'!$C$2","v":0},{"$f":"'Debt allocations'!V94*'Debt Dollars FY22'!$C$2","v":0},{"$f":"'Debt allocations'!W94*'Debt Dollars FY22'!$C$2","v":0},{"$f":"'Debt allocations'!X94*'Debt Dollars FY22'!$C$2","v":0},{"$f":"'Debt allocations'!Y94*'Debt Dollars FY22'!$C$2","v":0},{"$f":"'Debt allocations'!Z94*'Debt Dollars FY22'!$C$2","v":0},{"$f":"'Debt allocations'!AA94*'Debt Dollars FY22'!$C$2","v":0},{"$f":"'Debt allocations'!AB94*'Debt Dollars FY22'!$C$2","v":0},{"$f":"'Debt allocations'!AC94*'Debt Dollars FY22'!$C$2","v":0},{"$f":"'Debt allocations'!AD94*'Debt Dollars FY22'!$C$2","v":0},{"$f":"'Debt allocations'!AE94*'Debt Dollars FY22'!$C$2","v":0},{"$f":"'Debt allocations'!AF94*'Debt Dollars FY22'!$C$2","v":0},{"$f":"'Debt allocations'!AG94*'Debt Dollars FY22'!$C$2","v":0},{"$f":"'Debt allocations'!AH94*'Debt Dollars FY22'!$C$2","v":0},{"$f":"'Debt allocations'!AI94*'Debt Dollars FY22'!$C$2","v":0},{"$f":"'Debt allocations'!AJ94*'Debt Dollars FY22'!$C$2","v":0},{"$f":"'Debt allocations'!AK94*'Debt Dollars FY22'!$C$2","v":0},{"$f":"'Debt allocations'!AL94*'Debt Dollars FY22'!$C$2","v":0},{"$f":"'Debt allocations'!AM94*'Debt Dollars FY22'!$C$2","v":0},{"$f":"'Debt allocations'!AN94*'Debt Dollars FY22'!$C$2","v":0}]
["410 - Transportation Commission","410","Transportation Commission",9.9999999999999998E-20,1E-8,0,{"$f":"'Debt allocations'!G95*'Debt Dollars FY22'!$C$2","v":0},{"$f":"'Debt allocations'!H95*'Debt Dollars FY22'!$C$2","v":0},{"$f":"'Debt allocations'!I95*'Debt Dollars FY22'!$C$2","v":0},{"$f":"'Debt allocations'!J95*'Debt Dollars FY22'!$C$2","v":0},{"$f":"'Debt allocations'!K95*'Debt Dollars FY22'!$C$2","v":0},{"$f":"'Debt allocations'!L95*'Debt Dollars FY22'!$C$2","v":0},{"$f":"'Debt allocations'!M95*'Debt Dollars FY22'!$C$2","v":0},{"$f":"'Debt allocations'!N95*'Debt Dollars FY22'!$C$2","v":0},{"$f":"'Debt allocations'!O95*'Debt Dollars FY22'!$C$2","v":0},{"$f":"'Debt allocations'!P95*'Debt Dollars FY22'!$C$2","v":0},{"$f":"'Debt allocations'!Q95*'Debt Dollars FY22'!$C$2","v":0},{"$f":"'Debt allocations'!R95*'Debt Dollars FY22'!$C$2","v":0},{"$f":"'Debt allocations'!S95*'Debt Dollars FY22'!$C$2","v":0},{"$f":"'Debt allocations'!T95*'Debt Dollars FY22'!$C$2","v":0},{"$f":"'Debt allocations'!U95*'Debt Dollars FY22'!$C$2","v":0},{"$f":"'Debt allocations'!V95*'Debt Dollars FY22'!$C$2","v":0},{"$f":"'Debt allocations'!W95*'Debt Dollars FY22'!$C$2","v":0},{"$f":"'Debt allocations'!X95*'Debt Dollars FY22'!$C$2","v":0},{"$f":"'Debt allocations'!Y95*'Debt Dollars FY22'!$C$2","v":0},{"$f":"'Debt allocations'!Z95*'Debt Dollars FY22'!$C$2","v":0},{"$f":"'Debt allocations'!AA95*'Debt Dollars FY22'!$C$2","v":0},{"$f":"'Debt allocations'!AB95*'Debt Dollars FY22'!$C$2","v":0},{"$f":"'Debt allocations'!AC95*'Debt Dollars FY22'!$C$2","v":0},{"$f":"'Debt allocations'!AD95*'Debt Dollars FY22'!$C$2","v":0},{"$f":"'Debt allocations'!AE95*'Debt Dollars FY22'!$C$2","v":0},{"$f":"'Debt allocations'!AF95*'Debt Dollars FY22'!$C$2","v":0},{"$f":"'Debt allocations'!AG95*'Debt Dollars FY22'!$C$2","v":0},{"$f":"'Debt allocations'!AH95*'Debt Dollars FY22'!$C$2","v":0},{"$f":"'Debt allocations'!AI95*'Debt Dollars FY22'!$C$2","v":0},{"$f":"'Debt allocations'!AJ95*'Debt Dollars FY22'!$C$2","v":0},{"$f":"'Debt allocations'!AK95*'Debt Dollars FY22'!$C$2","v":0},{"$f":"'Debt allocations'!AL95*'Debt Dollars FY22'!$C$2","v":0},{"$f":"'Debt allocations'!AM95*'Debt Dollars FY22'!$C$2","v":0},{"$f":"'Debt allocations'!AN95*'Debt Dollars FY22'!$C$2","v":0}]
["411 - Freight Mobility Strategic Investment Board","411","Freight Mobility Strategic Investment Board",9.9999999999999998E-20,1E-8,0,{"$f":"'Debt allocations'!G96*'Debt Dollars FY22'!$C$2","v":0},{"$f":"'Debt allocations'!H96*'Debt Dollars FY22'!$C$2","v":0},{"$f":"'Debt allocations'!I96*'Debt Dollars FY22'!$C$2","v":0},{"$f":"'Debt allocations'!J96*'Debt Dollars FY22'!$C$2","v":0},{"$f":"'Debt allocations'!K96*'Debt Dollars FY22'!$C$2","v":0},{"$f":"'Debt allocations'!L96*'Debt Dollars FY22'!$C$2","v":0},{"$f":"'Debt allocations'!M96*'Debt Dollars FY22'!$C$2","v":0},{"$f":"'Debt allocations'!N96*'Debt Dollars FY22'!$C$2","v":0},{"$f":"'Debt allocations'!O96*'Debt Dollars FY22'!$C$2","v":0},{"$f":"'Debt allocations'!P96*'Debt Dollars FY22'!$C$2","v":0},{"$f":"'Debt allocations'!Q96*'Debt Dollars FY22'!$C$2","v":0},{"$f":"'Debt allocations'!R96*'Debt Dollars FY22'!$C$2","v":0},{"$f":"'Debt allocations'!S96*'Debt Dollars FY22'!$C$2","v":0},{"$f":"'Debt allocations'!T96*'Debt Dollars FY22'!$C$2","v":0},{"$f":"'Debt allocations'!U96*'Debt Dollars FY22'!$C$2","v":0},{"$f":"'Debt allocations'!V96*'Debt Dollars FY22'!$C$2","v":0},{"$f":"'Debt allocations'!W96*'Debt Dollars FY22'!$C$2","v":0},{"$f":"'Debt allocations'!X96*'Debt Dollars FY22'!$C$2","v":0},{"$f":"'Debt allocations'!Y96*'Debt Dollars FY22'!$C$2","v":0},{"$f":"'Debt allocations'!Z96*'Debt Dollars FY22'!$C$2","v":0},{"$f":"'Debt allocations'!AA96*'Debt Dollars FY22'!$C$2","v":0},{"$f":"'Debt allocations'!AB96*'Debt Dollars FY22'!$C$2","v":0},{"$f":"'Debt allocations'!AC96*'Debt Dollars FY22'!$C$2","v":0},{"$f":"'Debt allocations'!AD96*'Debt Dollars FY22'!$C$2","v":0},{"$f":"'Debt allocations'!AE96*'Debt Dollars FY22'!$C$2","v":0},{"$f":"'Debt allocations'!AF96*'Debt Dollars FY22'!$C$2","v":0},{"$f":"'Debt allocations'!AG96*'Debt Dollars FY22'!$C$2","v":0},{"$f":"'Debt allocations'!AH96*'Debt Dollars FY22'!$C$2","v":0},{"$f":"'Debt allocations'!AI96*'Debt Dollars FY22'!$C$2","v":0},{"$f":"'Debt allocations'!AJ96*'Debt Dollars FY22'!$C$2","v":0},{"$f":"'Debt allocations'!AK96*'Debt Dollars FY22'!$C$2","v":0},{"$f":"'Debt allocations'!AL96*'Debt Dollars FY22'!$C$2","v":0},{"$f":"'Debt allocations'!AM96*'Debt Dollars FY22'!$C$2","v":0},{"$f":"'Debt allocations'!AN96*'Debt Dollars FY22'!$C$2","v":0}]
["460 - Columbia River Gorge Commission","460","Columbia River Gorge Commission",9.9999999999999998E-20,1E-8,0,{"$f":"'Debt allocations'!G97*'Debt Dollars FY22'!$C$2","v":0},{"$f":"'Debt allocations'!H97*'Debt Dollars FY22'!$C$2","v":0},{"$f":"'Debt allocations'!I97*'Debt Dollars FY22'!$C$2","v":0},{"$f":"'Debt allocations'!J97*'Debt Dollars FY22'!$C$2","v":0},{"$f":"'Debt allocations'!K97*'Debt Dollars FY22'!$C$2","v":0},{"$f":"'Debt allocations'!L97*'Debt Dollars FY22'!$C$2","v":0},{"$f":"'Debt allocations'!M97*'Debt Dollars FY22'!$C$2","v":0},{"$f":"'Debt allocations'!N97*'Debt Dollars FY22'!$C$2","v":0},{"$f":"'Debt allocations'!O97*'Debt Dollars FY22'!$C$2","v":0},{"$f":"'Debt allocations'!P97*'Debt Dollars FY22'!$C$2","v":0},{"$f":"'Debt allocations'!Q97*'Debt Dollars FY22'!$C$2","v":0},{"$f":"'Debt allocations'!R97*'Debt Dollars FY22'!$C$2","v":0},{"$f":"'Debt allocations'!S97*'Debt Dollars FY22'!$C$2","v":0},{"$f":"'Debt allocations'!T97*'Debt Dollars FY22'!$C$2","v":0},{"$f":"'Debt allocations'!U97*'Debt Dollars FY22'!$C$2","v":0},{"$f":"'Debt allocations'!V97*'Debt Dollars FY22'!$C$2","v":0},{"$f":"'Debt allocations'!W97*'Debt Dollars FY22'!$C$2","v":0},{"$f":"'Debt allocations'!X97*'Debt Dollars FY22'!$C$2","v":0},{"$f":"'Debt allocations'!Y97*'Debt Dollars FY22'!$C$2","v":0},{"$f":"'Debt allocations'!Z97*'Debt Dollars FY22'!$C$2","v":0},{"$f":"'Debt allocations'!AA97*'Debt Dollars FY22'!$C$2","v":0},{"$f":"'Debt allocations'!AB97*'Debt Dollars FY22'!$C$2","v":0},{"$f":"'Debt allocations'!AC97*'Debt Dollars FY22'!$C$2","v":0},{"$f":"'Debt allocations'!AD97*'Debt Dollars FY22'!$C$2","v":0},{"$f":"'Debt allocations'!AE97*'Debt Dollars FY22'!$C$2","v":0},{"$f":"'Debt allocations'!AF97*'Debt Dollars FY22'!$C$2","v":0},{"$f":"'Debt allocations'!AG97*'Debt Dollars FY22'!$C$2","v":0},{"$f":"'Debt allocations'!AH97*'Debt Dollars FY22'!$C$2","v":0},{"$f":"'Debt allocations'!AI97*'Debt Dollars FY22'!$C$2","v":0},{"$f":"'Debt allocations'!AJ97*'Debt Dollars FY22'!$C$2","v":0},{"$f":"'Debt allocations'!AK97*'Debt Dollars FY22'!$C$2","v":0},{"$f":"'Debt allocations'!AL97*'Debt Dollars FY22'!$C$2","v":0},{"$f":"'Debt allocations'!AM97*'Debt Dollars FY22'!$C$2","v":0},{"$f":"'Debt allocations'!AN97*'Debt Dollars FY22'!$C$2","v":0}]
["461 - Department of Ecology","461","Department of Ecology",9.9999999999999998E-20,1E-8,0,{"$f":"'Debt allocations'!G98*'Debt Dollars FY22'!$C$2","v":0},{"$f":"'Debt allocations'!H98*'Debt Dollars FY22'!$C$2","v":0},{"$f":"'Debt allocations'!I98*'Debt Dollars FY22'!$C$2","v":0},{"$f":"'Debt allocations'!J98*'Debt Dollars FY22'!$C$2","v":0},{"$f":"'Debt allocations'!K98*'Debt Dollars FY22'!$C$2","v":0},{"$f":"'Debt allocations'!L98*'Debt Dollars FY22'!$C$2","v":0},{"$f":"'Debt allocations'!M98*'Debt Dollars FY22'!$C$2","v":0},{"$f":"'Debt allocations'!N98*'Debt Dollars FY22'!$C$2","v":0},{"$f":"'Debt allocations'!O98*'Debt Dollars FY22'!$C$2","v":0},{"$f":"'Debt allocations'!P98*'Debt Dollars FY22'!$C$2","v":0},{"$f":"'Debt allocations'!Q98*'Debt Dollars FY22'!$C$2","v":0},{"$f":"'Debt allocations'!R98*'Debt Dollars FY22'!$C$2","v":0},{"$f":"'Debt allocations'!S98*'Debt Dollars FY22'!$C$2","v":0},{"$f":"'Debt allocations'!T98*'Debt Dollars FY22'!$C$2","v":0},{"$f":"'Debt allocations'!U98*'Debt Dollars FY22'!$C$2","v":0},{"$f":"'Debt allocations'!V98*'Debt Dollars FY22'!$C$2","v":0},{"$f":"'Debt allocations'!W98*'Debt Dollars FY22'!$C$2","v":0},{"$f":"'Debt allocations'!X98*'Debt Dollars FY22'!$C$2","v":0},{"$f":"'Debt allocations'!Y98*'Debt Dollars FY22'!$C$2","v":0},{"$f":"'Debt allocations'!Z98*'Debt Dollars FY22'!$C$2","v":0},{"$f":"'Debt allocations'!AA98*'Debt Dollars FY22'!$C$2","v":0},{"$f":"'Debt allocations'!AB98*'Debt Dollars FY22'!$C$2","v":0},{"$f":"'Debt allocations'!AC98*'Debt Dollars FY22'!$C$2","v":0},{"$f":"'Debt allocations'!AD98*'Debt Dollars FY22'!$C$2","v":0},{"$f":"'Debt allocations'!AE98*'Debt Dollars FY22'!$C$2","v":0},{"$f":"'Debt allocations'!AF98*'Debt Dollars FY22'!$C$2","v":0},{"$f":"'Debt allocations'!AG98*'Debt Dollars FY22'!$C$2","v":0},{"$f":"'Debt allocations'!AH98*'Debt Dollars FY22'!$C$2","v":0},{"$f":"'Debt allocations'!AI98*'Debt Dollars FY22'!$C$2","v":0},{"$f":"'Debt allocations'!AJ98*'Debt Dollars FY22'!$C$2","v":0},{"$f":"'Debt allocations'!AK98*'Debt Dollars FY22'!$C$2","v":0},{"$f":"'Debt allocations'!AL98*'Debt Dollars FY22'!$C$2","v":0},{"$f":"'Debt allocations'!AM98*'Debt Dollars FY22'!$C$2","v":0},{"$f":"'Debt allocations'!AN98*'Debt Dollars FY22'!$C$2","v":0}]
["462 - Pollution Liability Insurance Program","462","Pollution Liability Insurance Program",9.9999999999999998E-20,1E-8,0,{"$f":"'Debt allocations'!G99*'Debt Dollars FY22'!$C$2","v":0},{"$f":"'Debt allocations'!H99*'Debt Dollars FY22'!$C$2","v":0},{"$f":"'Debt allocations'!I99*'Debt Dollars FY22'!$C$2","v":0},{"$f":"'Debt allocations'!J99*'Debt Dollars FY22'!$C$2","v":0},{"$f":"'Debt allocations'!K99*'Debt Dollars FY22'!$C$2","v":0},{"$f":"'Debt allocations'!L99*'Debt Dollars FY22'!$C$2","v":0},{"$f":"'Debt allocations'!M99*'Debt Dollars FY22'!$C$2","v":0},{"$f":"'Debt allocations'!N99*'Debt Dollars FY22'!$C$2","v":0},{"$f":"'Debt allocations'!O99*'Debt Dollars FY22'!$C$2","v":0},{"$f":"'Debt allocations'!P99*'Debt Dollars FY22'!$C$2","v":0},{"$f":"'Debt allocations'!Q99*'Debt Dollars FY22'!$C$2","v":0},{"$f":"'Debt allocations'!R99*'Debt Dollars FY22'!$C$2","v":0},{"$f":"'Debt allocations'!S99*'Debt Dollars FY22'!$C$2","v":0},{"$f":"'Debt allocations'!T99*'Debt Dollars FY22'!$C$2","v":0},{"$f":"'Debt allocations'!U99*'Debt Dollars FY22'!$C$2","v":0},{"$f":"'Debt allocations'!V99*'Debt Dollars FY22'!$C$2","v":0},{"$f":"'Debt allocations'!W99*'Debt Dollars FY22'!$C$2","v":0},{"$f":"'Debt allocations'!X99*'Debt Dollars FY22'!$C$2","v":0},{"$f":"'Debt allocations'!Y99*'Debt Dollars FY22'!$C$2","v":0},{"$f":"'Debt allocations'!Z99*'Debt Dollars FY22'!$C$2","v":0},{"$f":"'Debt allocations'!AA99*'Debt Dollars FY22'!$C$2","v":0},{"$f":"'Debt allocations'!AB99*'Debt Dollars FY22'!$C$2","v":0},{"$f":"'Debt allocations'!AC99*'Debt Dollars FY22'!$C$2","v":0},{"$f":"'Debt allocations'!AD99*'Debt Dollars FY22'!$C$2","v":0},{"$f":"'Debt allocations'!AE99*'Debt Dollars FY22'!$C$2","v":0},{"$f":"'Debt allocations'!AF99*'Debt Dollars FY22'!$C$2","v":0},{"$f":"'Debt allocations'!AG99*'Debt Dollars FY22'!$C$2","v":0},{"$f":"'Debt allocations'!AH99*'Debt Dollars FY22'!$C$2","v":0},{"$f":"'Debt allocations'!AI99*'Debt Dollars FY22'!$C$2","v":0},{"$f":"'Debt allocations'!AJ99*'Debt Dollars FY22'!$C$2","v":0},{"$f":"'Debt allocations'!AK99*'Debt Dollars FY22'!$C$2","v":0},{"$f":"'Debt allocations'!AL99*'Debt Dollars FY22'!$C$2","v":0},{"$f":"'Debt allocations'!AM99*'Debt Dollars FY22'!$C$2","v":0},{"$f":"'Debt allocations'!AN99*'Debt Dollars FY22'!$C$2","v":0}]
["465 - State Parks and Recreation Commission","465","State Parks and Recreation Commission",9.9999999999999998E-20,1E-8,0,{"$f":"'Debt allocations'!G100*'Debt Dollars FY22'!$C$2","v":0},{"$f":"'Debt allocations'!H100*'Debt Dollars FY22'!$C$2","v":0},{"$f":"'Debt allocations'!I100*'Debt Dollars FY22'!$C$2","v":0},{"$f":"'Debt allocations'!J100*'Debt Dollars FY22'!$C$2","v":0},{"$f":"'Debt allocations'!K100*'Debt Dollars FY22'!$C$2","v":0},{"$f":"'Debt allocations'!L100*'Debt Dollars FY22'!$C$2","v":0},{"$f":"'Debt allocations'!M100*'Debt Dollars FY22'!$C$2","v":0},{"$f":"'Debt allocations'!N100*'Debt Dollars FY22'!$C$2","v":0},{"$f":"'Debt allocations'!O100*'Debt Dollars FY22'!$C$2","v":0},{"$f":"'Debt allocations'!P100*'Debt Dollars FY22'!$C$2","v":0},{"$f":"'Debt allocations'!Q100*'Debt Dollars FY22'!$C$2","v":0},{"$f":"'Debt allocations'!R100*'Debt Dollars FY22'!$C$2","v":0},{"$f":"'Debt allocations'!S100*'Debt Dollars FY22'!$C$2","v":0},{"$f":"'Debt allocations'!T100*'Debt Dollars FY22'!$C$2","v":0},{"$f":"'Debt allocations'!U100*'Debt Dollars FY22'!$C$2","v":0},{"$f":"'Debt allocations'!V100*'Debt Dollars FY22'!$C$2","v":0},{"$f":"'Debt allocations'!W100*'Debt Dollars FY22'!$C$2","v":0},{"$f":"'Debt allocations'!X100*'Debt Dollars FY22'!$C$2","v":0},{"$f":"'Debt allocations'!Y100*'Debt Dollars FY22'!$C$2","v":0},{"$f":"'Debt allocations'!Z100*'Debt Dollars FY22'!$C$2","v":0},{"$f":"'Debt allocations'!AA100*'Debt Dollars FY22'!$C$2","v":0},{"$f":"'Debt allocations'!AB100*'Debt Dollars FY22'!$C$2","v":0},{"$f":"'Debt allocations'!AC100*'Debt Dollars FY22'!$C$2","v":0},{"$f":"'Debt allocations'!AD100*'Debt Dollars FY22'!$C$2","v":0},{"$f":"'Debt allocations'!AE100*'Debt Dollars FY22'!$C$2","v":0},{"$f":"'Debt allocations'!AF100*'Debt Dollars FY22'!$C$2","v":0},{"$f":"'Debt allocations'!AG100*'Debt Dollars FY22'!$C$2","v":0},{"$f":"'Debt allocations'!AH100*'Debt Dollars FY22'!$C$2","v":0},{"$f":"'Debt allocations'!AI100*'Debt Dollars FY22'!$C$2","v":0},{"$f":"'Debt allocations'!AJ100*'Debt Dollars FY22'!$C$2","v":0},{"$f":"'Debt allocations'!AK100*'Debt Dollars FY22'!$C$2","v":0},{"$f":"'Debt allocations'!AL100*'Debt Dollars FY22'!$C$2","v":0},{"$f":"'Debt allocations'!AM100*'Debt Dollars FY22'!$C$2","v":0},{"$f":"'Debt allocations'!AN100*'Debt Dollars FY22'!$C$2","v":0}]
["467 - Recreation and Conservation Funding Board","467","Recreation and Conservation Funding Board",2.8219343222009069E-3,11770,20061.131096526246,{"$f":"'Debt allocations'!G101*'Debt Dollars FY22'!$C$2","v":0},{"$f":"'Debt allocations'!H101*'Debt Dollars FY22'!$C$2","v":0},{"$f":"'Debt allocations'!I101*'Debt Dollars FY22'!$C$2","v":0},{"$f":"'Debt allocations'!J101*'Debt Dollars FY22'!$C$2","v":0},{"$f":"'Debt allocations'!K101*'Debt Dollars FY22'!$C$2","v":0},{"$f":"'Debt allocations'!L101*'Debt Dollars FY22'!$C$2","v":0},{"$f":"'Debt allocations'!M101*'Debt Dollars FY22'!$C$2","v":0},{"$f":"'Debt allocations'!N101*'Debt Dollars FY22'!$C$2","v":20061.131096526246},{"$f":"'Debt allocations'!O101*'Debt Dollars FY22'!$C$2","v":0},{"$f":"'Debt allocations'!P101*'Debt Dollars FY22'!$C$2","v":0},{"$f":"'Debt allocations'!Q101*'Debt Dollars FY22'!$C$2","v":0},{"$f":"'Debt allocations'!R101*'Debt Dollars FY22'!$C$2","v":0},{"$f":"'Debt allocations'!S101*'Debt Dollars FY22'!$C$2","v":0},{"$f":"'Debt allocations'!T101*'Debt Dollars FY22'!$C$2","v":0},{"$f":"'Debt allocations'!U101*'Debt Dollars FY22'!$C$2","v":0},{"$f":"'Debt allocations'!V101*'Debt Dollars FY22'!$C$2","v":0},{"$f":"'Debt allocations'!W101*'Debt Dollars FY22'!$C$2","v":0},{"$f":"'Debt allocations'!X101*'Debt Dollars FY22'!$C$2","v":0},{"$f":"'Debt allocations'!Y101*'Debt Dollars FY22'!$C$2","v":0},{"$f":"'Debt allocations'!Z101*'Debt Dollars FY22'!$C$2","v":0},{"$f":"'Debt allocations'!AA101*'Debt Dollars FY22'!$C$2","v":0},{"$f":"'Debt allocations'!AB101*'Debt Dollars FY22'!$C$2","v":0},{"$f":"'Debt allocations'!AC101*'Debt Dollars FY22'!$C$2","v":0},{"$f":"'Debt allocations'!AD101*'Debt Dollars FY22'!$C$2","v":0},{"$f":"'Debt allocations'!AE101*'Debt Dollars FY22'!$C$2","v":0},{"$f":"'Debt allocations'!AF101*'Debt Dollars FY22'!$C$2","v":0},{"$f":"'Debt allocations'!AG101*'Debt Dollars FY22'!$C$2","v":0},{"$f":"'Debt allocations'!AH101*'Debt Dollars FY22'!$C$2","v":0},{"$f":"'Debt allocations'!AI101*'Debt Dollars FY22'!$C$2","v":0},{"$f":"'Debt allocations'!AJ101*'Debt Dollars FY22'!$C$2","v":0},{"$f":"'Debt allocations'!AK101*'Debt Dollars FY22'!$C$2","v":0},{"$f":"'Debt allocations'!AL101*'Debt Dollars FY22'!$C$2","v":0},{"$f":"'Debt allocations'!AM101*'Debt Dollars FY22'!$C$2","v":0},{"$f":"'Debt allocations'!AN101*'Debt Dollars FY22'!$C$2","v":0}]
["468 - Environmental and Land Use Hearings Office","468","Environmental and Land Use Hearings Office",9.9999999999999998E-20,1E-8,0,{"$f":"'Debt allocations'!G102*'Debt Dollars FY22'!$C$2","v":0},{"$f":"'Debt allocations'!H102*'Debt Dollars FY22'!$C$2","v":0},{"$f":"'Debt allocations'!I102*'Debt Dollars FY22'!$C$2","v":0},{"$f":"'Debt allocations'!J102*'Debt Dollars FY22'!$C$2","v":0},{"$f":"'Debt allocations'!K102*'Debt Dollars FY22'!$C$2","v":0},{"$f":"'Debt allocations'!L102*'Debt Dollars FY22'!$C$2","v":0},{"$f":"'Debt allocations'!M102*'Debt Dollars FY22'!$C$2","v":0},{"$f":"'Debt allocations'!N102*'Debt Dollars FY22'!$C$2","v":0},{"$f":"'Debt allocations'!O102*'Debt Dollars FY22'!$C$2","v":0},{"$f":"'Debt allocations'!P102*'Debt Dollars FY22'!$C$2","v":0},{"$f":"'Debt allocations'!Q102*'Debt Dollars FY22'!$C$2","v":0},{"$f":"'Debt allocations'!R102*'Debt Dollars FY22'!$C$2","v":0},{"$f":"'Debt allocations'!S102*'Debt Dollars FY22'!$C$2","v":0},{"$f":"'Debt allocations'!T102*'Debt Dollars FY22'!$C$2","v":0},{"$f":"'Debt allocations'!U102*'Debt Dollars FY22'!$C$2","v":0},{"$f":"'Debt allocations'!V102*'Debt Dollars FY22'!$C$2","v":0},{"$f":"'Debt allocations'!W102*'Debt Dollars FY22'!$C$2","v":0},{"$f":"'Debt allocations'!X102*'Debt Dollars FY22'!$C$2","v":0},{"$f":"'Debt allocations'!Y102*'Debt Dollars FY22'!$C$2","v":0},{"$f":"'Debt allocations'!Z102*'Debt Dollars FY22'!$C$2","v":0},{"$f":"'Debt allocations'!AA102*'Debt Dollars FY22'!$C$2","v":0},{"$f":"'Debt allocations'!AB102*'Debt Dollars FY22'!$C$2","v":0},{"$f":"'Debt allocations'!AC102*'Debt Dollars FY22'!$C$2","v":0},{"$f":"'Debt allocations'!AD102*'Debt Dollars FY22'!$C$2","v":0},{"$f":"'Debt allocations'!AE102*'Debt Dollars FY22'!$C$2","v":0},{"$f":"'Debt allocations'!AF102*'Debt Dollars FY22'!$C$2","v":0},{"$f":"'Debt allocations'!AG102*'Debt Dollars FY22'!$C$2","v":0},{"$f":"'Debt allocations'!AH102*'Debt Dollars FY22'!$C$2","v":0},{"$f":"'Debt allocations'!AI102*'Debt Dollars FY22'!$C$2","v":0},{"$f":"'Debt allocations'!AJ102*'Debt Dollars FY22'!$C$2","v":0},{"$f":"'Debt allocations'!AK102*'Debt Dollars FY22'!$C$2","v":0},{"$f":"'Debt allocations'!AL102*'Debt Dollars FY22'!$C$2","v":0},{"$f":"'Debt allocations'!AM102*'Debt Dollars FY22'!$C$2","v":0},{"$f":"'Debt allocations'!AN102*'Debt Dollars FY22'!$C$2","v":0}]
["471 - State Conservation Commission","471","State Conservation Commission",9.9999999999999998E-20,1E-8,0,{"$f":"'Debt allocations'!G103*'Debt Dollars FY22'!$C$2","v":0},{"$f":"'Debt allocations'!H103*'Debt Dollars FY22'!$C$2","v":0},{"$f":"'Debt allocations'!I103*'Debt Dollars FY22'!$C$2","v":0},{"$f":"'Debt allocations'!J103*'Debt Dollars FY22'!$C$2","v":0},{"$f":"'Debt allocations'!K103*'Debt Dollars FY22'!$C$2","v":0},{"$f":"'Debt allocations'!L103*'Debt Dollars FY22'!$C$2","v":0},{"$f":"'Debt allocations'!M103*'Debt Dollars FY22'!$C$2","v":0},{"$f":"'Debt allocations'!N103*'Debt Dollars FY22'!$C$2","v":0},{"$f":"'Debt allocations'!O103*'Debt Dollars FY22'!$C$2","v":0},{"$f":"'Debt allocations'!P103*'Debt Dollars FY22'!$C$2","v":0},{"$f":"'Debt allocations'!Q103*'Debt Dollars FY22'!$C$2","v":0},{"$f":"'Debt allocations'!R103*'Debt Dollars FY22'!$C$2","v":0},{"$f":"'Debt allocations'!S103*'Debt Dollars FY22'!$C$2","v":0},{"$f":"'Debt allocations'!T103*'Debt Dollars FY22'!$C$2","v":0},{"$f":"'Debt allocations'!U103*'Debt Dollars FY22'!$C$2","v":0},{"$f":"'Debt allocations'!V103*'Debt Dollars FY22'!$C$2","v":0},{"$f":"'Debt allocations'!W103*'Debt Dollars FY22'!$C$2","v":0},{"$f":"'Debt allocations'!X103*'Debt Dollars FY22'!$C$2","v":0},{"$f":"'Debt allocations'!Y103*'Debt Dollars FY22'!$C$2","v":0},{"$f":"'Debt allocations'!Z103*'Debt Dollars FY22'!$C$2","v":0},{"$f":"'Debt allocations'!AA103*'Debt Dollars FY22'!$C$2","v":0},{"$f":"'Debt allocations'!AB103*'Debt Dollars FY22'!$C$2","v":0},{"$f":"'Debt allocations'!AC103*'Debt Dollars FY22'!$C$2","v":0},{"$f":"'Debt allocations'!AD103*'Debt Dollars FY22'!$C$2","v":0},{"$f":"'Debt allocations'!AE103*'Debt Dollars FY22'!$C$2","v":0},{"$f":"'Debt allocations'!AF103*'Debt Dollars FY22'!$C$2","v":0},{"$f":"'Debt allocations'!AG103*'Debt Dollars FY22'!$C$2","v":0},{"$f":"'Debt allocations'!AH103*'Debt Dollars FY22'!$C$2","v":0},{"$f":"'Debt allocations'!AI103*'Debt Dollars FY22'!$C$2","v":0},{"$f":"'Debt allocations'!AJ103*'Debt Dollars FY22'!$C$2","v":0},{"$f":"'Debt allocations'!AK103*'Debt Dollars FY22'!$C$2","v":0},{"$f":"'Debt allocations'!AL103*'Debt Dollars FY22'!$C$2","v":0},{"$f":"'Debt allocations'!AM103*'Debt Dollars FY22'!$C$2","v":0},{"$f":"'Debt allocations'!AN103*'Debt Dollars FY22'!$C$2","v":0}]
["477 - Department of Fish and Wildlife","477","Department of Fish and Wildlife",3.3606432626047483E-2,140169,238908.12953857161,{"$f":"'Debt allocations'!G104*'Debt Dollars FY22'!$C$2","v":0},{"$f":"'Debt allocations'!H104*'Debt Dollars FY22'!$C$2","v":0},{"$f":"'Debt allocations'!I104*'Debt Dollars FY22'!$C$2","v":0},{"$f":"'Debt allocations'!J104*'Debt Dollars FY22'!$C$2","v":0},{"$f":"'Debt allocations'!K104*'Debt Dollars FY22'!$C$2","v":0},{"$f":"'Debt allocations'!L104*'Debt Dollars FY22'!$C$2","v":0},{"$f":"'Debt allocations'!M104*'Debt Dollars FY22'!$C$2","v":0},{"$f":"'Debt allocations'!N104*'Debt Dollars FY22'!$C$2","v":238908.12953857161},{"$f":"'Debt allocations'!O104*'Debt Dollars FY22'!$C$2","v":0},{"$f":"'Debt allocations'!P104*'Debt Dollars FY22'!$C$2","v":0},{"$f":"'Debt allocations'!Q104*'Debt Dollars FY22'!$C$2","v":0},{"$f":"'Debt allocations'!R104*'Debt Dollars FY22'!$C$2","v":0},{"$f":"'Debt allocations'!S104*'Debt Dollars FY22'!$C$2","v":0},{"$f":"'Debt allocations'!T104*'Debt Dollars FY22'!$C$2","v":0},{"$f":"'Debt allocations'!U104*'Debt Dollars FY22'!$C$2","v":0},{"$f":"'Debt allocations'!V104*'Debt Dollars FY22'!$C$2","v":0},{"$f":"'Debt allocations'!W104*'Debt Dollars FY22'!$C$2","v":0},{"$f":"'Debt allocations'!X104*'Debt Dollars FY22'!$C$2","v":0},{"$f":"'Debt allocations'!Y104*'Debt Dollars FY22'!$C$2","v":0},{"$f":"'Debt allocations'!Z104*'Debt Dollars FY22'!$C$2","v":0},{"$f":"'Debt allocations'!AA104*'Debt Dollars FY22'!$C$2","v":0},{"$f":"'Debt allocations'!AB104*'Debt Dollars FY22'!$C$2","v":0},{"$f":"'Debt allocations'!AC104*'Debt Dollars FY22'!$C$2","v":0},{"$f":"'Debt allocations'!AD104*'Debt Dollars FY22'!$C$2","v":0},{"$f":"'Debt allocations'!AE104*'Debt Dollars FY22'!$C$2","v":0},{"$f":"'Debt allocations'!AF104*'Debt Dollars FY22'!$C$2","v":0},{"$f":"'Debt allocations'!AG104*'Debt Dollars FY22'!$C$2","v":0},{"$f":"'Debt allocations'!AH104*'Debt Dollars FY22'!$C$2","v":0},{"$f":"'Debt allocations'!AI104*'Debt Dollars FY22'!$C$2","v":0},{"$f":"'Debt allocations'!AJ104*'Debt Dollars FY22'!$C$2","v":0},{"$f":"'Debt allocations'!AK104*'Debt Dollars FY22'!$C$2","v":0},{"$f":"'Debt allocations'!AL104*'Debt Dollars FY22'!$C$2","v":0},{"$f":"'Debt allocations'!AM104*'Debt Dollars FY22'!$C$2","v":0},{"$f":"'Debt allocations'!AN104*'Debt Dollars FY22'!$C$2","v":0}]
["478 - Puget Sound Partnership","478","Puget Sound Partnership",1.0841825272759652E-3,1382,7707.4535864048366,{"$f":"'Debt allocations'!G105*'Debt Dollars FY22'!$C$2","v":0},{"$f":"'Debt allocations'!H105*'Debt Dollars FY22'!$C$2","v":0},{"$f":"'Debt allocations'!I105*'Debt Dollars FY22'!$C$2","v":0},{"$f":"'Debt allocations'!J105*'Debt Dollars FY22'!$C$2","v":0},{"$f":"'Debt allocations'!K105*'Debt Dollars FY22'!$C$2","v":0},{"$f":"'Debt allocations'!L105*'Debt Dollars FY22'!$C$2","v":0},{"$f":"'Debt allocations'!M105*'Debt Dollars FY22'!$C$2","v":0},{"$f":"'Debt allocations'!N105*'Debt Dollars FY22'!$C$2","v":0},{"$f":"'Debt allocations'!O105*'Debt Dollars FY22'!$C$2","v":0},{"$f":"'Debt allocations'!P105*'Debt Dollars FY22'!$C$2","v":0},{"$f":"'Debt allocations'!Q105*'Debt Dollars FY22'!$C$2","v":0},{"$f":"'Debt allocations'!R105*'Debt Dollars FY22'!$C$2","v":0},{"$f":"'Debt allocations'!S105*'Debt Dollars FY22'!$C$2","v":0},{"$f":"'Debt allocations'!T105*'Debt Dollars FY22'!$C$2","v":0},{"$f":"'Debt allocations'!U105*'Debt Dollars FY22'!$C$2","v":0},{"$f":"'Debt allocations'!V105*'Debt Dollars FY22'!$C$2","v":0},{"$f":"'Debt allocations'!W105*'Debt Dollars FY22'!$C$2","v":0},{"$f":"'Debt allocations'!X105*'Debt Dollars FY22'!$C$2","v":0},{"$f":"'Debt allocations'!Y105*'Debt Dollars FY22'!$C$2","v":0},{"$f":"'Debt allocations'!Z105*'Debt Dollars FY22'!$C$2","v":7707.4535864048366},{"$f":"'Debt allocations'!AA105*'Debt Dollars FY22'!$C$2","v":0},{"$f":"'Debt allocations'!AB105*'Debt Dollars FY22'!$C$2","v":0},{"$f":"'Debt allocations'!AC105*'Debt Dollars FY22'!$C$2","v":0},{"$f":"'Debt allocations'!AD105*'Debt Dollars FY22'!$C$2","v":0},{"$f":"'Debt allocations'!AE105*'Debt Dollars FY22'!$C$2","v":0},{"$f":"'Debt allocations'!AF105*'Debt Dollars FY22'!$C$2","v":0},{"$f":"'Debt allocations'!AG105*'Debt Dollars FY22'!$C$2","v":0},{"$f":"'Debt allocations'!AH105*'Debt Dollars FY22'!$C$2","v":0},{"$f":"'Debt allocations'!AI105*'Debt Dollars FY22'!$C$2","v":0},{"$f":"'Debt allocations'!AJ105*'Debt Dollars FY22'!$C$2","v":0},{"$f":"'Debt allocations'!AK105*'Debt Dollars FY22'!$C$2","v":0},{"$f":"'Debt allocations'!AL105*'Debt Dollars FY22'!$C$2","v":0},{"$f":"'Debt allocations'!AM105*'Debt Dollars FY22'!$C$2","v":0},{"$f":"'Debt allocations'!AN105*'Debt Dollars FY22'!$C$2","v":0}]
["490 - Department of Natural Resources","490","Department of Natural Resources",3.639504079100235E-2,151800,258732.3449832357,{"$f":"'Debt allocations'!G106*'Debt Dollars FY22'!$C$2","v":0},{"$f":"'Debt allocations'!H106*'Debt Dollars FY22'!$C$2","v":0},{"$f":"'Debt allocations'!I106*'Debt Dollars FY22'!$C$2","v":0},{"$f":"'Debt allocations'!J106*'Debt Dollars FY22'!$C$2","v":0},{"$f":"'Debt allocations'!K106*'Debt Dollars FY22'!$C$2","v":0},{"$f":"'Debt allocations'!L106*'Debt Dollars FY22'!$C$2","v":0},{"$f":"'Debt allocations'!M106*'Debt Dollars FY22'!$C$2","v":0},{"$f":"'Debt allocations'!N106*'Debt Dollars FY22'!$C$2","v":258732.3449832357},{"$f":"'Debt allocations'!O106*'Debt Dollars FY22'!$C$2","v":0},{"$f":"'Debt allocations'!P106*'Debt Dollars FY22'!$C$2","v":0},{"$f":"'Debt allocations'!Q106*'Debt Dollars FY22'!$C$2","v":0},{"$f":"'Debt allocations'!R106*'Debt Dollars FY22'!$C$2","v":0},{"$f":"'Debt allocations'!S106*'Debt Dollars FY22'!$C$2","v":0},{"$f":"'Debt allocations'!T106*'Debt Dollars FY22'!$C$2","v":0},{"$f":"'Debt allocations'!U106*'Debt Dollars FY22'!$C$2","v":0},{"$f":"'Debt allocations'!V106*'Debt Dollars FY22'!$C$2","v":0},{"$f":"'Debt allocations'!W106*'Debt Dollars FY22'!$C$2","v":0},{"$f":"'Debt allocations'!X106*'Debt Dollars FY22'!$C$2","v":0},{"$f":"'Debt allocations'!Y106*'Debt Dollars FY22'!$C$2","v":0},{"$f":"'Debt allocations'!Z106*'Debt Dollars FY22'!$C$2","v":0},{"$f":"'Debt allocations'!AA106*'Debt Dollars FY22'!$C$2","v":0},{"$f":"'Debt allocations'!AB106*'Debt Dollars FY22'!$C$2","v":0},{"$f":"'Debt allocations'!AC106*'Debt Dollars FY22'!$C$2","v":0},{"$f":"'Debt allocations'!AD106*'Debt Dollars FY22'!$C$2","v":0},{"$f":"'Debt allocations'!AE106*'Debt Dollars FY22'!$C$2","v":0},{"$f":"'Debt allocations'!AF106*'Debt Dollars FY22'!$C$2","v":0},{"$f":"'Debt allocations'!AG106*'Debt Dollars FY22'!$C$2","v":0},{"$f":"'Debt allocations'!AH106*'Debt Dollars FY22'!$C$2","v":0},{"$f":"'Debt allocations'!AI106*'Debt Dollars FY22'!$C$2","v":0},{"$f":"'Debt allocations'!AJ106*'Debt Dollars FY22'!$C$2","v":0},{"$f":"'Debt allocations'!AK106*'Debt Dollars FY22'!$C$2","v":0},{"$f":"'Debt allocations'!AL106*'Debt Dollars FY22'!$C$2","v":0},{"$f":"'Debt allocations'!AM106*'Debt Dollars FY22'!$C$2","v":0},{"$f":"'Debt allocations'!AN106*'Debt Dollars FY22'!$C$2","v":0}]
["495 - Department of Agriculture","495","Department of Agriculture",1.1495606197669234E-2,47947,81722.264459230588,{"$f":"'Debt allocations'!G107*'Debt Dollars FY22'!$C$2","v":0},{"$f":"'Debt allocations'!H107*'Debt Dollars FY22'!$C$2","v":0},{"$f":"'Debt allocations'!I107*'Debt Dollars FY22'!$C$2","v":0},{"$f":"'Debt allocations'!J107*'Debt Dollars FY22'!$C$2","v":0},{"$f":"'Debt allocations'!K107*'Debt Dollars FY22'!$C$2","v":0},{"$f":"'Debt allocations'!L107*'Debt Dollars FY22'!$C$2","v":0},{"$f":"'Debt allocations'!M107*'Debt Dollars FY22'!$C$2","v":0},{"$f":"'Debt allocations'!N107*'Debt Dollars FY22'!$C$2","v":81722.264459230588},{"$f":"'Debt allocations'!O107*'Debt Dollars FY22'!$C$2","v":0},{"$f":"'Debt allocations'!P107*'Debt Dollars FY22'!$C$2","v":0},{"$f":"'Debt allocations'!Q107*'Debt Dollars FY22'!$C$2","v":0},{"$f":"'Debt allocations'!R107*'Debt Dollars FY22'!$C$2","v":0},{"$f":"'Debt allocations'!S107*'Debt Dollars FY22'!$C$2","v":0},{"$f":"'Debt allocations'!T107*'Debt Dollars FY22'!$C$2","v":0},{"$f":"'Debt allocations'!U107*'Debt Dollars FY22'!$C$2","v":0},{"$f":"'Debt allocations'!V107*'Debt Dollars FY22'!$C$2","v":0},{"$f":"'Debt allocations'!W107*'Debt Dollars FY22'!$C$2","v":0},{"$f":"'Debt allocations'!X107*'Debt Dollars FY22'!$C$2","v":0},{"$f":"'Debt allocations'!Y107*'Debt Dollars FY22'!$C$2","v":0},{"$f":"'Debt allocations'!Z107*'Debt Dollars FY22'!$C$2","v":0},{"$f":"'Debt allocations'!AA107*'Debt Dollars FY22'!$C$2","v":0},{"$f":"'Debt allocations'!AB107*'Debt Dollars FY22'!$C$2","v":0},{"$f":"'Debt allocations'!AC107*'Debt Dollars FY22'!$C$2","v":0},{"$f":"'Debt allocations'!AD107*'Debt Dollars FY22'!$C$2","v":0},{"$f":"'Debt allocations'!AE107*'Debt Dollars FY22'!$C$2","v":0},{"$f":"'Debt allocations'!AF107*'Debt Dollars FY22'!$C$2","v":0},{"$f":"'Debt allocations'!AG107*'Debt Dollars FY22'!$C$2","v":0},{"$f":"'Debt allocations'!AH107*'Debt Dollars FY22'!$C$2","v":0},{"$f":"'Debt allocations'!AI107*'Debt Dollars FY22'!$C$2","v":0},{"$f":"'Debt allocations'!AJ107*'Debt Dollars FY22'!$C$2","v":0},{"$f":"'Debt allocations'!AK107*'Debt Dollars FY22'!$C$2","v":0},{"$f":"'Debt allocations'!AL107*'Debt Dollars FY22'!$C$2","v":0},{"$f":"'Debt allocations'!AM107*'Debt Dollars FY22'!$C$2","v":0},{"$f":"'Debt allocations'!AN107*'Debt Dollars FY22'!$C$2","v":0}]
["540 - Employment Security Department","540","Employment Security Department",9.9999999999999998E-20,1E-8,0,{"$f":"'Debt allocations'!G108*'Debt Dollars FY22'!$C$2","v":0},{"$f":"'Debt allocations'!H108*'Debt Dollars FY22'!$C$2","v":0},{"$f":"'Debt allocations'!I108*'Debt Dollars FY22'!$C$2","v":0},{"$f":"'Debt allocations'!J108*'Debt Dollars FY22'!$C$2","v":0},{"$f":"'Debt allocations'!K108*'Debt Dollars FY22'!$C$2","v":0},{"$f":"'Debt allocations'!L108*'Debt Dollars FY22'!$C$2","v":0},{"$f":"'Debt allocations'!M108*'Debt Dollars FY22'!$C$2","v":0},{"$f":"'Debt allocations'!N108*'Debt Dollars FY22'!$C$2","v":0},{"$f":"'Debt allocations'!O108*'Debt Dollars FY22'!$C$2","v":0},{"$f":"'Debt allocations'!P108*'Debt Dollars FY22'!$C$2","v":0},{"$f":"'Debt allocations'!Q108*'Debt Dollars FY22'!$C$2","v":0},{"$f":"'Debt allocations'!R108*'Debt Dollars FY22'!$C$2","v":0},{"$f":"'Debt allocations'!S108*'Debt Dollars FY22'!$C$2","v":0},{"$f":"'Debt allocations'!T108*'Debt Dollars FY22'!$C$2","v":0},{"$f":"'Debt allocations'!U108*'Debt Dollars FY22'!$C$2","v":0},{"$f":"'Debt allocations'!V108*'Debt Dollars FY22'!$C$2","v":0},{"$f":"'Debt allocations'!W108*'Debt Dollars FY22'!$C$2","v":0},{"$f":"'Debt allocations'!X108*'Debt Dollars FY22'!$C$2","v":0},{"$f":"'Debt allocations'!Y108*'Debt Dollars FY22'!$C$2","v":0},{"$f":"'Debt allocations'!Z108*'Debt Dollars FY22'!$C$2","v":0},{"$f":"'Debt allocations'!AA108*'Debt Dollars FY22'!$C$2","v":0},{"$f":"'Debt allocations'!AB108*'Debt Dollars FY22'!$C$2","v":0},{"$f":"'Debt allocations'!AC108*'Debt Dollars FY22'!$C$2","v":0},{"$f":"'Debt allocations'!AD108*'Debt Dollars FY22'!$C$2","v":0},{"$f":"'Debt allocations'!AE108*'Debt Dollars FY22'!$C$2","v":0},{"$f":"'Debt allocations'!AF108*'Debt Dollars FY22'!$C$2","v":0},{"$f":"'Debt allocations'!AG108*'Debt Dollars FY22'!$C$2","v":0},{"$f":"'Debt allocations'!AH108*'Debt Dollars FY22'!$C$2","v":0},{"$f":"'Debt allocations'!AI108*'Debt Dollars FY22'!$C$2","v":0},{"$f":"'Debt allocations'!AJ108*'Debt Dollars FY22'!$C$2","v":0},{"$f":"'Debt allocations'!AK108*'Debt Dollars FY22'!$C$2","v":0},{"$f":"'Debt allocations'!AL108*'Debt Dollars FY22'!$C$2","v":0},{"$f":"'Debt allocations'!AM108*'Debt Dollars FY22'!$C$2","v":0},{"$f":"'Debt allocations'!AN108*'Debt Dollars FY22'!$C$2","v":0}]
["699 - Community Colleges","699","Community Colleges",9.9999999999999998E-20,1E-8,0,{"$f":"'Debt allocations'!G109*'Debt Dollars FY22'!$C$2","v":0},{"$f":"'Debt allocations'!H109*'Debt Dollars FY22'!$C$2","v":0},{"$f":"'Debt allocations'!I109*'Debt Dollars FY22'!$C$2","v":0},{"$f":"'Debt allocations'!J109*'Debt Dollars FY22'!$C$2","v":0},{"$f":"'Debt allocations'!K109*'Debt Dollars FY22'!$C$2","v":0},{"$f":"'Debt allocations'!L109*'Debt Dollars FY22'!$C$2","v":0},{"$f":"'Debt allocations'!M109*'Debt Dollars FY22'!$C$2","v":0},{"$f":"'Debt allocations'!N109*'Debt Dollars FY22'!$C$2","v":0},{"$f":"'Debt allocations'!O109*'Debt Dollars FY22'!$C$2","v":0},{"$f":"'Debt allocations'!P109*'Debt Dollars FY22'!$C$2","v":0},{"$f":"'Debt allocations'!Q109*'Debt Dollars FY22'!$C$2","v":0},{"$f":"'Debt allocations'!R109*'Debt Dollars FY22'!$C$2","v":0},{"$f":"'Debt allocations'!S109*'Debt Dollars FY22'!$C$2","v":0},{"$f":"'Debt allocations'!T109*'Debt Dollars FY22'!$C$2","v":0},{"$f":"'Debt allocations'!U109*'Debt Dollars FY22'!$C$2","v":0},{"$f":"'Debt allocations'!V109*'Debt Dollars FY22'!$C$2","v":0},{"$f":"'Debt allocations'!W109*'Debt Dollars FY22'!$C$2","v":0},{"$f":"'Debt allocations'!X109*'Debt Dollars FY22'!$C$2","v":0},{"$f":"'Debt allocations'!Y109*'Debt Dollars FY22'!$C$2","v":0},{"$f":"'Debt allocations'!Z109*'Debt Dollars FY22'!$C$2","v":0},{"$f":"'Debt allocations'!AA109*'Debt Dollars FY22'!$C$2","v":0},{"$f":"'Debt allocations'!AB109*'Debt Dollars FY22'!$C$2","v":0},{"$f":"'Debt allocations'!AC109*'Debt Dollars FY22'!$C$2","v":0},{"$f":"'Debt allocations'!AD109*'Debt Dollars FY22'!$C$2","v":0},{"$f":"'Debt allocations'!AE109*'Debt Dollars FY22'!$C$2","v":0},{"$f":"'Debt allocations'!AF109*'Debt Dollars FY22'!$C$2","v":0},{"$f":"'Debt allocations'!AG109*'Debt Dollars FY22'!$C$2","v":0},{"$f":"'Debt allocations'!AH109*'Debt Dollars FY22'!$C$2","v":0},{"$f":"'Debt allocations'!AI109*'Debt Dollars FY22'!$C$2","v":0},{"$f":"'Debt allocations'!AJ109*'Debt Dollars FY22'!$C$2","v":0},{"$f":"'Debt allocations'!AK109*'Debt Dollars FY22'!$C$2","v":0},{"$f":"'Debt allocations'!AL109*'Debt Dollars FY22'!$C$2","v":0},{"$f":"'Debt allocations'!AM109*'Debt Dollars FY22'!$C$2","v":0},{"$f":"'Debt allocations'!AN109*'Debt Dollars FY22'!$C$2","v":0}]
["TOTAL  - All Agencies",null,"Building Total",0.99999999999999989,1365187,14218000.235354647,{"$f":"SUM(G6:G109)","v":0},{"$f":"SUM(H6:H109)","v":0},0,0,255106.24577715289,372125.35384010186,35936.469405133277,599423.87007756415,0,0,0,0,0,0,0,318854.47972191003,0,0,0,229684.34768632182,126128.27291216239,0,0,0,0,0,0,4776735.4209293239,77437.068718161929,119035.62302956905,0,198532.84790259902,0,0]
[]
[null,null,null,null,"Building Total RSF",null,77281,78594,142254,23890,177668,250481,47900,354696,92619,184427,55108,97800,53609,22032,95386,47200,14308,10125,0,41341,17000,0,1539,7138,885,2492,872,200592,60581,99000,20708,138355,17600,0]
[null,null,null,null,"vacant space",0,0,0,0,0,0,0,0,0,0,0,0,0,0,0,0,0,0,0,0,0,0,0,0,14276,406,872,0,0,0,0,35004,0,0]
[null,null,null,null,null,null,{"$f":"G110/G112/2","v":0},{"$f":"H110/H112/2","v":0},0,0,0.71792963779958374,0.7428215190774986,0.37511972239178787,0.84498256264176108,0,0,0,0,0,0,0,3.377695759765996,0,0,{"$error":"#DIV/0!"},2.777924429577439,3.7096550856518347,{"$error":"#DIV/0!"},0,0,0,0,0,11.906595031031456,0.63912009308332585,0.60119001530085381,0,0.71747623108163427,0]

{"sheet":"Debt Dollars FY23","index":10,"n_rows":114,"n_cols":40,"rows_kept":114,"cut":false,"hidden":true,"merged":[[3,3,4,3]]}
[]
[null,"CSM Funding",7110001]
[null,null,null,null,"21-23 Debt Sched:",14218000.235354647,0,0,0,0,510212.5,744250.72,71872.94,1198847.76,0,0,0,0,0,0,0,637708.97000000009,0,0,0,459368.70297670597,252256.55,0,0,0,0,0,0,9553471,154874.14000000001,238071.25,0,397065.70237794082,0,0]
[null,null,null,"Total",null,null,"F6121","F6122","F6123","F6124","F6125","F6126","F6127","F6129","F612A","F612C","F612E","F612H","F612J","F612K","F6131","F6132","F6133","F6134","F6137","F613D","F613E","F613F","F613G","F613H","F613i","F613K","F613L","F613M","F6141","F6142","F6143","F6144","F614G","F6146"]
[null,"Agency #","Agency",null,"RSF Total","$ Total","Cherberg","O'Brien","Legislative","Pritchard","HLB","OB2","Archives","NRB","Emp Sec","Transportation","Insurance","Old Cap","TOJ","Newhouse","Modular Bldg","Isabella Bush","1007 Washington","120 E Union Avenue","Conservatory","Capital Court","James Dolliver Building","Undeveloped Properties","1068 WA Street SE (ST Farm)","232 Perry Street","208 11th Avenue SE (Pro Arts)","Press Houses Ayer(White); Carlyon(Blue)","Visitor Center","Helen Sommers","Kelso Building","Yakima Building","Alaska Street","Tacoma Rhodes","Tacoma Rhodes Garage","North Cascades Gateway Center (NCGC)"]
[{"$f":"CONCATENATE(B6,\" - \",C6)","v":"011 - House of Representatives"},"011","House of Representatives",9.9999999999999998E-20,1E-8,{"$f":"SUM(G6:AN6)","v":0},{"$f":"'Debt allocations'!G6*'Debt Dollars FY23'!$C$2","v":0},{"$f":"'Debt allocations'!H6*'Debt Dollars FY23'!$C$2","v":0},{"$f":"'Debt allocations'!I6*'Debt Dollars FY23'!$C$2","v":0},{"$f":"'Debt allocations'!J6*'Debt Dollars FY23'!$C$2","v":0},{"$f":"'Debt allocations'!K6*'Debt Dollars FY23'!$C$2","v":0},{"$f":"'Debt allocations'!L6*'Debt Dollars FY23'!$C$2","v":0},{"$f":"'Debt allocations'!M6*'Debt Dollars FY23'!$C$2","v":0},{"$f":"'Debt allocations'!N6*'Debt Dollars FY23'!$C$2","v":0},{"$f":"'Debt allocations'!O6*'Debt Dollars FY23'!$C$2","v":0},{"$f":"'Debt allocations'!P6*'Debt Dollars FY23'!$C$2","v":0},{"$f":"'Debt allocations'!Q6*'Debt Dollars FY23'!$C$2","v":0},{"$f":"'Debt allocations'!R6*'Debt Dollars FY23'!$C$2","v":0},{"$f":"'Debt allocations'!S6*'Debt Dollars FY23'!$C$2","v":0},{"$f":"'Debt allocations'!T6*'Debt Dollars FY23'!$C$2","v":0},{"$f":"'Debt allocations'!U6*'Debt Dollars FY23'!$C$2","v":0},{"$f":"'Debt allocations'!V6*'Debt Dollars FY23'!$C$2","v":0},{"$f":"'Debt allocations'!W6*'Debt Dollars FY23'!$C$2","v":0},{"$f":"'Debt allocations'!X6*'Debt Dollars FY23'!$C$2","v":0},{"$f":"'Debt allocations'!Y6*'Debt Dollars FY23'!$C$2","v":0},{"$f":"'Debt allocations'!Z6*'Debt Dollars FY23'!$C$2","v":0},{"$f":"'Debt allocations'!AA6*'Debt Dollars FY23'!$C$2","v":0},{"$f":"'Debt allocations'!AB6*'Debt Dollars FY23'!$C$2","v":0},{"$f":"'Debt allocations'!AC6*'Debt Dollars FY23'!$C$2","v":0},{"$f":"'Debt allocations'!AD6*'Debt Dollars FY23'!$C$2","v":0},{"$f":"'Debt allocations'!AE6*'Debt Dollars FY23'!$C$2","v":0},{"$f":"'Debt allocations'!AF6*'Debt Dollars FY23'!$C$2","v":0},{"$f":"'Debt allocations'!AG6*'Debt Dollars FY23'!$C$2","v":0},{"$f":"'Debt allocations'!AH6*'Debt Dollars FY23'!$C$2","v":0},{"$f":"'Debt allocations'!AI6*'Debt Dollars FY23'!$C$2","v":0},{"$f":"'Debt allocations'!AJ6*'Debt Dollars FY23'!$C$2","v":0},{"$f":"'Debt allocations'!AK6*'Debt Dollars FY23'!$C$2","v":0},{"$f":"'Debt allocations'!AL6*'Debt Dollars FY23'!$C$2","v":0},{"$f":"'Debt allocations'!AM6*'Debt Dollars FY23'!$C$2","v":0},{"$f":"'Debt allocations'!AN6*'Debt Dollars FY23'!$C$2","v":0}]
[{"$f":"CONCATENATE(B7,\" - \",C7)","v":"012 - Senate"},"012","Senate",9.9999999999999998E-20,1E-8,{"$f":"SUM(G7:AN7)","v":0},{"$f":"'Debt allocations'!G7*'Debt Dollars FY23'!$C$2","v":0},{"$f":"'Debt allocations'!H7*'Debt Dollars FY23'!$C$2","v":0},{"$f":"'Debt allocations'!I7*'Debt Dollars FY23'!$C$2","v":0},{"$f":"'Debt allocations'!J7*'Debt Dollars FY23'!$C$2","v":0},{"$f":"'Debt allocations'!K7*'Debt Dollars FY23'!$C$2","v":0},{"$f":"'Debt allocations'!L7*'Debt Dollars FY23'!$C$2","v":0},{"$f":"'Debt allocations'!M7*'Debt Dollars FY23'!$C$2","v":0},{"$f":"'Debt allocations'!N7*'Debt Dollars FY23'!$C$2","v":0},{"$f":"'Debt allocations'!O7*'Debt Dollars FY23'!$C$2","v":0},{"$f":"'Debt allocations'!P7*'Debt Dollars FY23'!$C$2","v":0},{"$f":"'Debt allocations'!Q7*'Debt Dollars FY23'!$C$2","v":0},{"$f":"'Debt allocations'!R7*'Debt Dollars FY23'!$C$2","v":0},{"$f":"'Debt allocations'!S7*'Debt Dollars FY23'!$C$2","v":0},{"$f":"'Debt allocations'!T7*'Debt Dollars FY23'!$C$2","v":0},{"$f":"'Debt allocations'!U7*'Debt Dollars FY23'!$C$2","v":0},{"$f":"'Debt allocations'!V7*'Debt Dollars FY23'!$C$2","v":0},{"$f":"'Debt allocations'!W7*'Debt Dollars FY23'!$C$2","v":0},{"$f":"'Debt allocations'!X7*'Debt Dollars FY23'!$C$2","v":0},{"$f":"'Debt allocations'!Y7*'Debt Dollars FY23'!$C$2","v":0},{"$f":"'Debt allocations'!Z7*'Debt Dollars FY23'!$C$2","v":0},{"$f":"'Debt allocations'!AA7*'Debt Dollars FY23'!$C$2","v":0},{"$f":"'Debt allocations'!AB7*'Debt Dollars FY23'!$C$2","v":0},{"$f":"'Debt allocations'!AC7*'Debt Dollars FY23'!$C$2","v":0},{"$f":"'Debt allocations'!AD7*'Debt Dollars FY23'!$C$2","v":0},{"$f":"'Debt allocations'!AE7*'Debt Dollars FY23'!$C$2","v":0},{"$f":"'Debt allocations'!AF7*'Debt Dollars FY23'!$C$2","v":0},{"$f":"'Debt allocations'!AG7*'Debt Dollars FY23'!$C$2","v":0},{"$f":"'Debt allocations'!AH7*'Debt Dollars FY23'!$C$2","v":0},{"$f":"'Debt allocations'!AI7*'Debt Dollars FY23'!$C$2","v":0},{"$f":"'Debt allocations'!AJ7*'Debt Dollars FY23'!$C$2","v":0},{"$f":"'Debt allocations'!AK7*'Debt Dollars FY23'!$C$2","v":0},{"$f":"'Debt allocations'!AL7*'Debt Dollars FY23'!$C$2","v":0},{"$f":"'Debt allocations'!AM7*'Debt Dollars FY23'!$C$2","v":0},{"$f":"'Debt allocations'!AN7*'Debt Dollars FY23'!$C$2","v":0}]
["013 - Joint Transportation Committee","013","Joint Transportation Committee",9.9999999999999998E-20,1E-8,0,{"$f":"'Debt allocations'!G8*'Debt Dollars FY23'!$C$2","v":0},{"$f":"'Debt allocations'!H8*'Debt Dollars FY23'!$C$2","v":0},{"$f":"'Debt allocations'!I8*'Debt Dollars FY23'!$C$2","v":0},{"$f":"'Debt allocations'!J8*'Debt Dollars FY23'!$C$2","v":0},{"$f":"'Debt allocations'!K8*'Debt Dollars FY23'!$C$2","v":0},{"$f":"'Debt allocations'!L8*'Debt Dollars FY23'!$C$2","v":0},{"$f":"'Debt allocations'!M8*'Debt Dollars FY23'!$C$2","v":0},{"$f":"'Debt allocations'!N8*'Debt Dollars FY23'!$C$2","v":0},{"$f":"'Debt allocations'!O8*'Debt Dollars FY23'!$C$2","v":0},{"$f":"'Debt allocations'!P8*'Debt Dollars FY23'!$C$2","v":0},{"$f":"'Debt allocations'!Q8*'Debt Dollars FY23'!$C$2","v":0},{"$f":"'Debt allocations'!R8*'Debt Dollars FY23'!$C$2","v":0},{"$f":"'Debt allocations'!S8*'Debt Dollars FY23'!$C$2","v":0},{"$f":"'Debt allocations'!T8*'Debt Dollars FY23'!$C$2","v":0},{"$f":"'Debt allocations'!U8*'Debt Dollars FY23'!$C$2","v":0},{"$f":"'Debt allocations'!V8*'Debt Dollars FY23'!$C$2","v":0},{"$f":"'Debt allocations'!W8*'Debt Dollars FY23'!$C$2","v":0},{"$f":"'Debt allocations'!X8*'Debt Dollars FY23'!$C$2","v":0},{"$f":"'Debt allocations'!Y8*'Debt Dollars FY23'!$C$2","v":0},{"$f":"'Debt allocations'!Z8*'Debt Dollars FY23'!$C$2","v":0},{"$f":"'Debt allocations'!AA8*'Debt Dollars FY23'!$C$2","v":0},{"$f":"'Debt allocations'!AB8*'Debt Dollars FY23'!$C$2","v":0},{"$f":"'Debt allocations'!AC8*'Debt Dollars FY23'!$C$2","v":0},{"$f":"'Debt allocations'!AD8*'Debt Dollars FY23'!$C$2","v":0},{"$f":"'Debt allocations'!AE8*'Debt Dollars FY23'!$C$2","v":0},{"$f":"'Debt allocations'!AF8*'Debt Dollars FY23'!$C$2","v":0},{"$f":"'Debt allocations'!AG8*'Debt Dollars FY23'!$C$2","v":0},{"$f":"'Debt allocations'!AH8*'Debt Dollars FY23'!$C$2","v":0},{"$f":"'Debt allocations'!AI8*'Debt Dollars FY23'!$C$2","v":0},{"$f":"'Debt allocations'!AJ8*'Debt Dollars FY23'!$C$2","v":0},{"$f":"'Debt allocations'!AK8*'Debt Dollars FY23'!$C$2","v":0},{"$f":"'Debt allocations'!AL8*'Debt Dollars FY23'!$C$2","v":0},{"$f":"'Debt allocations'!AM8*'Debt Dollars FY23'!$C$2","v":0},{"$f":"'Debt allocations'!AN8*'Debt Dollars FY23'!$C$2","v":0}]
["014 - Joint Legislative Audit and Review Committee","014","Joint Legislative Audit and Review Committee",2.976899987080505E-2,8887,211657.61885042378,{"$f":"'Debt allocations'!G9*'Debt Dollars FY23'!$C$2","v":0},{"$f":"'Debt allocations'!H9*'Debt Dollars FY23'!$C$2","v":0},{"$f":"'Debt allocations'!I9*'Debt Dollars FY23'!$C$2","v":0},{"$f":"'Debt allocations'!J9*'Debt Dollars FY23'!$C$2","v":0},{"$f":"'Debt allocations'!K9*'Debt Dollars FY23'!$C$2","v":0},{"$f":"'Debt allocations'!L9*'Debt Dollars FY23'!$C$2","v":0},{"$f":"'Debt allocations'!M9*'Debt Dollars FY23'!$C$2","v":0},{"$f":"'Debt allocations'!N9*'Debt Dollars FY23'!$C$2","v":0},{"$f":"'Debt allocations'!O9*'Debt Dollars FY23'!$C$2","v":0},{"$f":"'Debt allocations'!P9*'Debt Dollars FY23'!$C$2","v":0},{"$f":"'Debt allocations'!Q9*'Debt Dollars FY23'!$C$2","v":0},{"$f":"'Debt allocations'!R9*'Debt Dollars FY23'!$C$2","v":0},{"$f":"'Debt allocations'!S9*'Debt Dollars FY23'!$C$2","v":0},{"$f":"'Debt allocations'!T9*'Debt Dollars FY23'!$C$2","v":0},{"$f":"'Debt allocations'!U9*'Debt Dollars FY23'!$C$2","v":0},{"$f":"'Debt allocations'!V9*'Debt Dollars FY23'!$C$2","v":0},{"$f":"'Debt allocations'!W9*'Debt Dollars FY23'!$C$2","v":0},{"$f":"'Debt allocations'!X9*'Debt Dollars FY23'!$C$2","v":0},{"$f":"'Debt allocations'!Y9*'Debt Dollars FY23'!$C$2","v":0},{"$f":"'Debt allocations'!Z9*'Debt Dollars FY23'!$C$2","v":0},{"$f":"'Debt allocations'!AA9*'Debt Dollars FY23'!$C$2","v":0},{"$f":"'Debt allocations'!AB9*'Debt Dollars FY23'!$C$2","v":0},{"$f":"'Debt allocations'!AC9*'Debt Dollars FY23'!$C$2","v":0},{"$f":"'Debt allocations'!AD9*'Debt Dollars FY23'!$C$2","v":0},{"$f":"'Debt allocations'!AE9*'Debt Dollars FY23'!$C$2","v":0},{"$f":"'Debt allocations'!AF9*'Debt Dollars FY23'!$C$2","v":0},{"$f":"'Debt allocations'!AG9*'Debt Dollars FY23'!$C$2","v":0},{"$f":"'Debt allocations'!AH9*'Debt Dollars FY23'!$C$2","v":211657.61885042378},{"$f":"'Debt allocations'!AI9*'Debt Dollars FY23'!$C$2","v":0},{"$f":"'Debt allocations'!AJ9*'Debt Dollars FY23'!$C$2","v":0},{"$f":"'Debt allocations'!AK9*'Debt Dollars FY23'!$C$2","v":0},{"$f":"'Debt allocations'!AL9*'Debt Dollars FY23'!$C$2","v":0},{"$f":"'Debt allocations'!AM9*'Debt Dollars FY23'!$C$2","v":0},{"$f":"'Debt allocations'!AN9*'Debt Dollars FY23'!$C$2","v":0}]
["020 - Legislative Evaluation and Accountability Program Committee","020","Legislative Evaluation and Accountability Program Committee",1.4212880212875641E-2,4243,101053.59252642603,{"$f":"'Debt allocations'!G10*'Debt Dollars FY23'!$C$2","v":0},{"$f":"'Debt allocations'!H10*'Debt Dollars FY23'!$C$2","v":0},{"$f":"'Debt allocations'!I10*'Debt Dollars FY23'!$C$2","v":0},{"$f":"'Debt allocations'!J10*'Debt Dollars FY23'!$C$2","v":0},{"$f":"'Debt allocations'!K10*'Debt Dollars FY23'!$C$2","v":0},{"$f":"'Debt allocations'!L10*'Debt Dollars FY23'!$C$2","v":0},{"$f":"'Debt allocations'!M10*'Debt Dollars FY23'!$C$2","v":0},{"$f":"'Debt allocations'!N10*'Debt Dollars FY23'!$C$2","v":0},{"$f":"'Debt allocations'!O10*'Debt Dollars FY23'!$C$2","v":0},{"$f":"'Debt allocations'!P10*'Debt Dollars FY23'!$C$2","v":0},{"$f":"'Debt allocations'!Q10*'Debt Dollars FY23'!$C$2","v":0},{"$f":"'Debt allocations'!R10*'Debt Dollars FY23'!$C$2","v":0},{"$f":"'Debt allocations'!S10*'Debt Dollars FY23'!$C$2","v":0},{"$f":"'Debt allocations'!T10*'Debt Dollars FY23'!$C$2","v":0},{"$f":"'Debt allocations'!U10*'Debt Dollars FY23'!$C$2","v":0},{"$f":"'Debt allocations'!V10*'Debt Dollars FY23'!$C$2","v":0},{"$f":"'Debt allocations'!W10*'Debt Dollars FY23'!$C$2","v":0},{"$f":"'Debt allocations'!X10*'Debt Dollars FY23'!$C$2","v":0},{"$f":"'Debt allocations'!Y10*'Debt Dollars FY23'!$C$2","v":0},{"$f":"'Debt allocations'!Z10*'Debt Dollars FY23'!$C$2","v":0},{"$f":"'Debt allocations'!AA10*'Debt Dollars FY23'!$C$2","v":0},{"$f":"'Debt allocations'!AB10*'Debt Dollars FY23'!$C$2","v":0},{"$f":"'Debt allocations'!AC10*'Debt Dollars FY23'!$C$2","v":0},{"$f":"'Debt allocations'!AD10*'Debt Dollars FY23'!$C$2","v":0},{"$f":"'Debt allocations'!AE10*'Debt Dollars FY23'!$C$2","v":0},{"$f":"'Debt allocations'!AF10*'Debt Dollars FY23'!$C$2","v":0},{"$f":"'Debt allocations'!AG10*'Debt Dollars FY23'!$C$2","v":0},{"$f":"'Debt allocations'!AH10*'Debt Dollars FY23'!$C$2","v":101053.59252642603},{"$f":"'Debt allocations'!AI10*'Debt Dollars FY23'!$C$2","v":0},{"$f":"'Debt allocations'!AJ10*'Debt Dollars FY23'!$C$2","v":0},{"$f":"'Debt allocations'!AK10*'Debt Dollars FY23'!$C$2","v":0},{"$f":"'Debt allocations'!AL10*'Debt Dollars FY23'!$C$2","v":0},{"$f":"'Debt allocations'!AM10*'Debt Dollars FY23'!$C$2","v":0},{"$f":"'Debt allocations'!AN10*'Debt Dollars FY23'!$C$2","v":0}]
["035 - Office of the State Actuary","035","Office of the State Actuary",9.9999999999999998E-20,1E-8,0,{"$f":"'Debt allocations'!G11*'Debt Dollars FY23'!$C$2","v":0},{"$f":"'Debt allocations'!H11*'Debt Dollars FY23'!$C$2","v":0},{"$f":"'Debt allocations'!I11*'Debt Dollars FY23'!$C$2","v":0},{"$f":"'Debt allocations'!J11*'Debt Dollars FY23'!$C$2","v":0},{"$f":"'Debt allocations'!K11*'Debt Dollars FY23'!$C$2","v":0},{"$f":"'Debt allocations'!L11*'Debt Dollars FY23'!$C$2","v":0},{"$f":"'Debt allocations'!M11*'Debt Dollars FY23'!$C$2","v":0},{"$f":"'Debt allocations'!N11*'Debt Dollars FY23'!$C$2","v":0},{"$f":"'Debt allocations'!O11*'Debt Dollars FY23'!$C$2","v":0},{"$f":"'Debt allocations'!P11*'Debt Dollars FY23'!$C$2","v":0},{"$f":"'Debt allocations'!Q11*'Debt Dollars FY23'!$C$2","v":0},{"$f":"'Debt allocations'!R11*'Debt Dollars FY23'!$C$2","v":0},{"$f":"'Debt allocations'!S11*'Debt Dollars FY23'!$C$2","v":0},{"$f":"'Debt allocations'!T11*'Debt Dollars FY23'!$C$2","v":0},{"$f":"'Debt allocations'!U11*'Debt Dollars FY23'!$C$2","v":0},{"$f":"'Debt allocations'!V11*'Debt Dollars FY23'!$C$2","v":0},{"$f":"'Debt allocations'!W11*'Debt Dollars FY23'!$C$2","v":0},{"$f":"'Debt allocations'!X11*'Debt Dollars FY23'!$C$2","v":0},{"$f":"'Debt allocations'!Y11*'Debt Dollars FY23'!$C$2","v":0},{"$f":"'Debt allocations'!Z11*'Debt Dollars FY23'!$C$2","v":0},{"$f":"'Debt allocations'!AA11*'Debt Dollars FY23'!$C$2","v":0},{"$f":"'Debt allocations'!AB11*'Debt Dollars FY23'!$C$2","v":0},{"$f":"'Debt allocations'!AC11*'Debt Dollars FY23'!$C$2","v":0},{"$f":"'Debt allocations'!AD11*'Debt Dollars FY23'!$C$2","v":0},{"$f":"'Debt allocations'!AE11*'Debt Dollars FY23'!$C$2","v":0},{"$f":"'Debt allocations'!AF11*'Debt Dollars FY23'!$C$2","v":0},{"$f":"'Debt allocations'!AG11*'Debt Dollars FY23'!$C$2","v":0},{"$f":"'Debt allocations'!AH11*'Debt Dollars FY23'!$C$2","v":0},{"$f":"'Debt allocations'!AI11*'Debt Dollars FY23'!$C$2","v":0},{"$f":"'Debt allocations'!AJ11*'Debt Dollars FY23'!$C$2","v":0},{"$f":"'Debt allocations'!AK11*'Debt Dollars FY23'!$C$2","v":0},{"$f":"'Debt allocations'!AL11*'Debt Dollars FY23'!$C$2","v":0},{"$f":"'Debt allocations'!AM11*'Debt Dollars FY23'!$C$2","v":0},{"$f":"'Debt allocations'!AN11*'Debt Dollars FY23'!$C$2","v":0}]
["037 - Office of Legislative Support Services","037","Office of Legislative Support Services",9.9999999999999998E-20,1E-8,0,{"$f":"'Debt allocations'!G12*'Debt Dollars FY23'!$C$2","v":0},{"$f":"'Debt allocations'!H12*'Debt Dollars FY23'!$C$2","v":0},{"$f":"'Debt allocations'!I12*'Debt Dollars FY23'!$C$2","v":0},{"$f":"'Debt allocations'!J12*'Debt Dollars FY23'!$C$2","v":0},{"$f":"'Debt allocations'!K12*'Debt Dollars FY23'!$C$2","v":0},{"$f":"'Debt allocations'!L12*'Debt Dollars FY23'!$C$2","v":0},{"$f":"'Debt allocations'!M12*'Debt Dollars FY23'!$C$2","v":0},{"$f":"'Debt allocations'!N12*'Debt Dollars FY23'!$C$2","v":0},{"$f":"'Debt allocations'!O12*'Debt Dollars FY23'!$C$2","v":0},{"$f":"'Debt allocations'!P12*'Debt Dollars FY23'!$C$2","v":0},{"$f":"'Debt allocations'!Q12*'Debt Dollars FY23'!$C$2","v":0},{"$f":"'Debt allocations'!R12*'Debt Dollars FY23'!$C$2","v":0},{"$f":"'Debt allocations'!S12*'Debt Dollars FY23'!$C$2","v":0},{"$f":"'Debt allocations'!T12*'Debt Dollars FY23'!$C$2","v":0},{"$f":"'Debt allocations'!U12*'Debt Dollars FY23'!$C$2","v":0},{"$f":"'Debt allocations'!V12*'Debt Dollars FY23'!$C$2","v":0},{"$f":"'Debt allocations'!W12*'Debt Dollars FY23'!$C$2","v":0},{"$f":"'Debt allocations'!X12*'Debt Dollars FY23'!$C$2","v":0},{"$f":"'Debt allocations'!Y12*'Debt Dollars FY23'!$C$2","v":0},{"$f":"'Debt allocations'!Z12*'Debt Dollars FY23'!$C$2","v":0},{"$f":"'Debt allocations'!AA12*'Debt Dollars FY23'!$C$2","v":0},{"$f":"'Debt allocations'!AB12*'Debt Dollars FY23'!$C$2","v":0},{"$f":"'Debt allocations'!AC12*'Debt Dollars FY23'!$C$2","v":0},{"$f":"'Debt allocations'!AD12*'Debt Dollars FY23'!$C$2","v":0},{"$f":"'Debt allocations'!AE12*'Debt Dollars FY23'!$C$2","v":0},{"$f":"'Debt allocations'!AF12*'Debt Dollars FY23'!$C$2","v":0},{"$f":"'Debt allocations'!AG12*'Debt Dollars FY23'!$C$2","v":0},{"$f":"'Debt allocations'!AH12*'Debt Dollars FY23'!$C$2","v":0},{"$f":"'Debt allocations'!AI12*'Debt Dollars FY23'!$C$2","v":0},{"$f":"'Debt allocations'!AJ12*'Debt Dollars FY23'!$C$2","v":0},{"$f":"'Debt allocations'!AK12*'Debt Dollars FY23'!$C$2","v":0},{"$f":"'Debt allocations'!AL12*'Debt Dollars FY23'!$C$2","v":0},{"$f":"'Debt allocations'!AM12*'Debt Dollars FY23'!$C$2","v":0},{"$f":"'Debt allocations'!AN12*'Debt Dollars FY23'!$C$2","v":0}]
["038 - Joint Legislative Systems Committee","038","Joint Legislative Systems Committee",4.0092850169198335E-2,11969,285060.20479585038,{"$f":"'Debt allocations'!G13*'Debt Dollars FY23'!$C$2","v":0},{"$f":"'Debt allocations'!H13*'Debt Dollars FY23'!$C$2","v":0},{"$f":"'Debt allocations'!I13*'Debt Dollars FY23'!$C$2","v":0},{"$f":"'Debt allocations'!J13*'Debt Dollars FY23'!$C$2","v":0},{"$f":"'Debt allocations'!K13*'Debt Dollars FY23'!$C$2","v":0},{"$f":"'Debt allocations'!L13*'Debt Dollars FY23'!$C$2","v":0},{"$f":"'Debt allocations'!M13*'Debt Dollars FY23'!$C$2","v":0},{"$f":"'Debt allocations'!N13*'Debt Dollars FY23'!$C$2","v":0},{"$f":"'Debt allocations'!O13*'Debt Dollars FY23'!$C$2","v":0},{"$f":"'Debt allocations'!P13*'Debt Dollars FY23'!$C$2","v":0},{"$f":"'Debt allocations'!Q13*'Debt Dollars FY23'!$C$2","v":0},{"$f":"'Debt allocations'!R13*'Debt Dollars FY23'!$C$2","v":0},{"$f":"'Debt allocations'!S13*'Debt Dollars FY23'!$C$2","v":0},{"$f":"'Debt allocations'!T13*'Debt Dollars FY23'!$C$2","v":0},{"$f":"'Debt allocations'!U13*'Debt Dollars FY23'!$C$2","v":0},{"$f":"'Debt allocations'!V13*'Debt Dollars FY23'!$C$2","v":0},{"$f":"'Debt allocations'!W13*'Debt Dollars FY23'!$C$2","v":0},{"$f":"'Debt allocations'!X13*'Debt Dollars FY23'!$C$2","v":0},{"$f":"'Debt allocations'!Y13*'Debt Dollars FY23'!$C$2","v":0},{"$f":"'Debt allocations'!Z13*'Debt Dollars FY23'!$C$2","v":0},{"$f":"'Debt allocations'!AA13*'Debt Dollars FY23'!$C$2","v":0},{"$f":"'Debt allocations'!AB13*'Debt Dollars FY23'!$C$2","v":0},{"$f":"'Debt allocations'!AC13*'Debt Dollars FY23'!$C$2","v":0},{"$f":"'Debt allocations'!AD13*'Debt Dollars FY23'!$C$2","v":0},{"$f":"'Debt allocations'!AE13*'Debt Dollars FY23'!$C$2","v":0},{"$f":"'Debt allocations'!AF13*'Debt Dollars FY23'!$C$2","v":0},{"$f":"'Debt allocations'!AG13*'Debt Dollars FY23'!$C$2","v":0},{"$f":"'Debt allocations'!AH13*'Debt Dollars FY23'!$C$2","v":285060.20479585038},{"$f":"'Debt allocations'!AI13*'Debt Dollars FY23'!$C$2","v":0},{"$f":"'Debt allocations'!AJ13*'Debt Dollars FY23'!$C$2","v":0},{"$f":"'Debt allocations'!AK13*'Debt Dollars FY23'!$C$2","v":0},{"$f":"'Debt allocations'!AL13*'Debt Dollars FY23'!$C$2","v":0},{"$f":"'Debt allocations'!AM13*'Debt Dollars FY23'!$C$2","v":0},{"$f":"'Debt allocations'!AN13*'Debt Dollars FY23'!$C$2","v":0}]
["040 - Statute Law Committee (Code Revisor)","040","Statute Law Committee (Code Revisor)",9.9999999999999998E-20,1E-8,0,{"$f":"'Debt allocations'!G14*'Debt Dollars FY23'!$C$2","v":0},{"$f":"'Debt allocations'!H14*'Debt Dollars FY23'!$C$2","v":0},{"$f":"'Debt allocations'!I14*'Debt Dollars FY23'!$C$2","v":0},{"$f":"'Debt allocations'!J14*'Debt Dollars FY23'!$C$2","v":0},{"$f":"'Debt allocations'!K14*'Debt Dollars FY23'!$C$2","v":0},{"$f":"'Debt allocations'!L14*'Debt Dollars FY23'!$C$2","v":0},{"$f":"'Debt allocations'!M14*'Debt Dollars FY23'!$C$2","v":0},{"$f":"'Debt allocations'!N14*'Debt Dollars FY23'!$C$2","v":0},{"$f":"'Debt allocations'!O14*'Debt Dollars FY23'!$C$2","v":0},{"$f":"'Debt allocations'!P14*'Debt Dollars FY23'!$C$2","v":0},{"$f":"'Debt allocations'!Q14*'Debt Dollars FY23'!$C$2","v":0},{"$f":"'Debt allocations'!R14*'Debt Dollars FY23'!$C$2","v":0},{"$f":"'Debt allocations'!S14*'Debt Dollars FY23'!$C$2","v":0},{"$f":"'Debt allocations'!T14*'Debt Dollars FY23'!$C$2","v":0},{"$f":"'Debt allocations'!U14*'Debt Dollars FY23'!$C$2","v":0},{"$f":"'Debt allocations'!V14*'Debt Dollars FY23'!$C$2","v":0},{"$f":"'Debt allocations'!W14*'Debt Dollars FY23'!$C$2","v":0},{"$f":"'Debt allocations'!X14*'Debt Dollars FY23'!$C$2","v":0},{"$f":"'Debt allocations'!Y14*'Debt Dollars FY23'!$C$2","v":0},{"$f":"'Debt allocations'!Z14*'Debt Dollars FY23'!$C$2","v":0},{"$f":"'Debt allocations'!AA14*'Debt Dollars FY23'!$C$2","v":0},{"$f":"'Debt allocations'!AB14*'Debt Dollars FY23'!$C$2","v":0},{"$f":"'Debt allocations'!AC14*'Debt Dollars FY23'!$C$2","v":0},{"$f":"'Debt allocations'!AD14*'Debt Dollars FY23'!$C$2","v":0},{"$f":"'Debt allocations'!AE14*'Debt Dollars FY23'!$C$2","v":0},{"$f":"'Debt allocations'!AF14*'Debt Dollars FY23'!$C$2","v":0},{"$f":"'Debt allocations'!AG14*'Debt Dollars FY23'!$C$2","v":0},{"$f":"'Debt allocations'!AH14*'Debt Dollars FY23'!$C$2","v":0},{"$f":"'Debt allocations'!AI14*'Debt Dollars FY23'!$C$2","v":0},{"$f":"'Debt allocations'!AJ14*'Debt Dollars FY23'!$C$2","v":0},{"$f":"'Debt allocations'!AK14*'Debt Dollars FY23'!$C$2","v":0},{"$f":"'Debt allocations'!AL14*'Debt Dollars FY23'!$C$2","v":0},{"$f":"'Debt allocations'!AM14*'Debt Dollars FY23'!$C$2","v":0},{"$f":"'Debt allocations'!AN14*'Debt Dollars FY23'!$C$2","v":0}]
["045 - Supreme Court","045","Supreme Court",9.9999999999999998E-20,1E-8,0,{"$f":"'Debt allocations'!G15*'Debt Dollars FY23'!$C$2","v":0},{"$f":"'Debt allocations'!H15*'Debt Dollars FY23'!$C$2","v":0},{"$f":"'Debt allocations'!I15*'Debt Dollars FY23'!$C$2","v":0},{"$f":"'Debt allocations'!J15*'Debt Dollars FY23'!$C$2","v":0},{"$f":"'Debt allocations'!K15*'Debt Dollars FY23'!$C$2","v":0},{"$f":"'Debt allocations'!L15*'Debt Dollars FY23'!$C$2","v":0},{"$f":"'Debt allocations'!M15*'Debt Dollars FY23'!$C$2","v":0},{"$f":"'Debt allocations'!N15*'Debt Dollars FY23'!$C$2","v":0},{"$f":"'Debt allocations'!O15*'Debt Dollars FY23'!$C$2","v":0},{"$f":"'Debt allocations'!P15*'Debt Dollars FY23'!$C$2","v":0},{"$f":"'Debt allocations'!Q15*'Debt Dollars FY23'!$C$2","v":0},{"$f":"'Debt allocations'!R15*'Debt Dollars FY23'!$C$2","v":0},{"$f":"'Debt allocations'!S15*'Debt Dollars FY23'!$C$2","v":0},{"$f":"'Debt allocations'!T15*'Debt Dollars FY23'!$C$2","v":0},{"$f":"'Debt allocations'!U15*'Debt Dollars FY23'!$C$2","v":0},{"$f":"'Debt allocations'!V15*'Debt Dollars FY23'!$C$2","v":0},{"$f":"'Debt allocations'!W15*'Debt Dollars FY23'!$C$2","v":0},{"$f":"'Debt allocations'!X15*'Debt Dollars FY23'!$C$2","v":0},{"$f":"'Debt allocations'!Y15*'Debt Dollars FY23'!$C$2","v":0},{"$f":"'Debt allocations'!Z15*'Debt Dollars FY23'!$C$2","v":0},{"$f":"'Debt allocations'!AA15*'Debt Dollars FY23'!$C$2","v":0},{"$f":"'Debt allocations'!AB15*'Debt Dollars FY23'!$C$2","v":0},{"$f":"'Debt allocations'!AC15*'Debt Dollars FY23'!$C$2","v":0},{"$f":"'Debt allocations'!AD15*'Debt Dollars FY23'!$C$2","v":0},{"$f":"'Debt allocations'!AE15*'Debt Dollars FY23'!$C$2","v":0},{"$f":"'Debt allocations'!AF15*'Debt Dollars FY23'!$C$2","v":0},{"$f":"'Debt allocations'!AG15*'Debt Dollars FY23'!$C$2","v":0},{"$f":"'Debt allocations'!AH15*'Debt Dollars FY23'!$C$2","v":0},{"$f":"'Debt allocations'!AI15*'Debt Dollars FY23'!$C$2","v":0},{"$f":"'Debt allocations'!AJ15*'Debt Dollars FY23'!$C$2","v":0},{"$f":"'Debt allocations'!AK15*'Debt Dollars FY23'!$C$2","v":0},{"$f":"'Debt allocations'!AL15*'Debt Dollars FY23'!$C$2","v":0},{"$f":"'Debt allocations'!AM15*'Debt Dollars FY23'!$C$2","v":0},{"$f":"'Debt allocations'!AN15*'Debt Dollars FY23'!$C$2","v":0}]
["046 - Law Library","046","Law Library",9.9999999999999998E-20,1E-8,0,{"$f":"'Debt allocations'!G16*'Debt Dollars FY23'!$C$2","v":0},{"$f":"'Debt allocations'!H16*'Debt Dollars FY23'!$C$2","v":0},{"$f":"'Debt allocations'!I16*'Debt Dollars FY23'!$C$2","v":0},{"$f":"'Debt allocations'!J16*'Debt Dollars FY23'!$C$2","v":0},{"$f":"'Debt allocations'!K16*'Debt Dollars FY23'!$C$2","v":0},{"$f":"'Debt allocations'!L16*'Debt Dollars FY23'!$C$2","v":0},{"$f":"'Debt allocations'!M16*'Debt Dollars FY23'!$C$2","v":0},{"$f":"'Debt allocations'!N16*'Debt Dollars FY23'!$C$2","v":0},{"$f":"'Debt allocations'!O16*'Debt Dollars FY23'!$C$2","v":0},{"$f":"'Debt allocations'!P16*'Debt Dollars FY23'!$C$2","v":0},{"$f":"'Debt allocations'!Q16*'Debt Dollars FY23'!$C$2","v":0},{"$f":"'Debt allocations'!R16*'Debt Dollars FY23'!$C$2","v":0},{"$f":"'Debt allocations'!S16*'Debt Dollars FY23'!$C$2","v":0},{"$f":"'Debt allocations'!T16*'Debt Dollars FY23'!$C$2","v":0},{"$f":"'Debt allocations'!U16*'Debt Dollars FY23'!$C$2","v":0},{"$f":"'Debt allocations'!V16*'Debt Dollars FY23'!$C$2","v":0},{"$f":"'Debt allocations'!W16*'Debt Dollars FY23'!$C$2","v":0},{"$f":"'Debt allocations'!X16*'Debt Dollars FY23'!$C$2","v":0},{"$f":"'Debt allocations'!Y16*'Debt Dollars FY23'!$C$2","v":0},{"$f":"'Debt allocations'!Z16*'Debt Dollars FY23'!$C$2","v":0},{"$f":"'Debt allocations'!AA16*'Debt Dollars FY23'!$C$2","v":0},{"$f":"'Debt allocations'!AB16*'Debt Dollars FY23'!$C$2","v":0},{"$f":"'Debt allocations'!AC16*'Debt Dollars FY23'!$C$2","v":0},{"$f":"'Debt allocations'!AD16*'Debt Dollars FY23'!$C$2","v":0},{"$f":"'Debt allocations'!AE16*'Debt Dollars FY23'!$C$2","v":0},{"$f":"'Debt allocations'!AF16*'Debt Dollars FY23'!$C$2","v":0},{"$f":"'Debt allocations'!AG16*'Debt Dollars FY23'!$C$2","v":0},{"$f":"'Debt allocations'!AH16*'Debt Dollars FY23'!$C$2","v":0},{"$f":"'Debt allocations'!AI16*'Debt Dollars FY23'!$C$2","v":0},{"$f":"'Debt allocations'!AJ16*'Debt Dollars FY23'!$C$2","v":0},{"$f":"'Debt allocations'!AK16*'Debt Dollars FY23'!$C$2","v":0},{"$f":"'Debt allocations'!AL16*'Debt Dollars FY23'!$C$2","v":0},{"$f":"'Debt allocations'!AM16*'Debt Dollars FY23'!$C$2","v":0},{"$f":"'Debt allocations'!AN16*'Debt Dollars FY23'!$C$2","v":0}]
["048 - Court of Appeals","048","Court of Appeals",1.026580282251501E-2,27692,72989.868333884544,{"$f":"'Debt allocations'!G17*'Debt Dollars FY23'!$C$2","v":0},{"$f":"'Debt allocations'!H17*'Debt Dollars FY23'!$C$2","v":0},{"$f":"'Debt allocations'!I17*'Debt Dollars FY23'!$C$2","v":0},{"$f":"'Debt allocations'!J17*'Debt Dollars FY23'!$C$2","v":0},{"$f":"'Debt allocations'!K17*'Debt Dollars FY23'!$C$2","v":0},{"$f":"'Debt allocations'!L17*'Debt Dollars FY23'!$C$2","v":0},{"$f":"'Debt allocations'!M17*'Debt Dollars FY23'!$C$2","v":0},{"$f":"'Debt allocations'!N17*'Debt Dollars FY23'!$C$2","v":0},{"$f":"'Debt allocations'!O17*'Debt Dollars FY23'!$C$2","v":0},{"$f":"'Debt allocations'!P17*'Debt Dollars FY23'!$C$2","v":0},{"$f":"'Debt allocations'!Q17*'Debt Dollars FY23'!$C$2","v":0},{"$f":"'Debt allocations'!R17*'Debt Dollars FY23'!$C$2","v":0},{"$f":"'Debt allocations'!S17*'Debt Dollars FY23'!$C$2","v":0},{"$f":"'Debt allocations'!T17*'Debt Dollars FY23'!$C$2","v":0},{"$f":"'Debt allocations'!U17*'Debt Dollars FY23'!$C$2","v":0},{"$f":"'Debt allocations'!V17*'Debt Dollars FY23'!$C$2","v":0},{"$f":"'Debt allocations'!W17*'Debt Dollars FY23'!$C$2","v":0},{"$f":"'Debt allocations'!X17*'Debt Dollars FY23'!$C$2","v":0},{"$f":"'Debt allocations'!Y17*'Debt Dollars FY23'!$C$2","v":0},{"$f":"'Debt allocations'!Z17*'Debt Dollars FY23'!$C$2","v":0},{"$f":"'Debt allocations'!AA17*'Debt Dollars FY23'!$C$2","v":0},{"$f":"'Debt allocations'!AB17*'Debt Dollars FY23'!$C$2","v":0},{"$f":"'Debt allocations'!AC17*'Debt Dollars FY23'!$C$2","v":0},{"$f":"'Debt allocations'!AD17*'Debt Dollars FY23'!$C$2","v":0},{"$f":"'Debt allocations'!AE17*'Debt Dollars FY23'!$C$2","v":0},{"$f":"'Debt allocations'!AF17*'Debt Dollars FY23'!$C$2","v":0},{"$f":"'Debt allocations'!AG17*'Debt Dollars FY23'!$C$2","v":0},{"$f":"'Debt allocations'!AH17*'Debt Dollars FY23'!$C$2","v":0},{"$f":"'Debt allocations'!AI17*'Debt Dollars FY23'!$C$2","v":0},{"$f":"'Debt allocations'!AJ17*'Debt Dollars FY23'!$C$2","v":0},{"$f":"'Debt allocations'!AK17*'Debt Dollars FY23'!$C$2","v":0},{"$f":"'Debt allocations'!AL17*'Debt Dollars FY23'!$C$2","v":72989.868333884544},{"$f":"'Debt allocations'!AM17*'Debt Dollars FY23'!$C$2","v":0},{"$f":"'Debt allocations'!AN17*'Debt Dollars FY23'!$C$2","v":0}]
["050 - Commission on Judicial Conduct","050","Commission on Judicial Conduct",4.0598007081426336E-3,5175,28865.187094694833,{"$f":"'Debt allocations'!G18*'Debt Dollars FY23'!$C$2","v":0},{"$f":"'Debt allocations'!H18*'Debt Dollars FY23'!$C$2","v":0},{"$f":"'Debt allocations'!I18*'Debt Dollars FY23'!$C$2","v":0},{"$f":"'Debt allocations'!J18*'Debt Dollars FY23'!$C$2","v":0},{"$f":"'Debt allocations'!K18*'Debt Dollars FY23'!$C$2","v":0},{"$f":"'Debt allocations'!L18*'Debt Dollars FY23'!$C$2","v":0},{"$f":"'Debt allocations'!M18*'Debt Dollars FY23'!$C$2","v":0},{"$f":"'Debt allocations'!N18*'Debt Dollars FY23'!$C$2","v":0},{"$f":"'Debt allocations'!O18*'Debt Dollars FY23'!$C$2","v":0},{"$f":"'Debt allocations'!P18*'Debt Dollars FY23'!$C$2","v":0},{"$f":"'Debt allocations'!Q18*'Debt Dollars FY23'!$C$2","v":0},{"$f":"'Debt allocations'!R18*'Debt Dollars FY23'!$C$2","v":0},{"$f":"'Debt allocations'!S18*'Debt Dollars FY23'!$C$2","v":0},{"$f":"'Debt allocations'!T18*'Debt Dollars FY23'!$C$2","v":0},{"$f":"'Debt allocations'!U18*'Debt Dollars FY23'!$C$2","v":0},{"$f":"'Debt allocations'!V18*'Debt Dollars FY23'!$C$2","v":0},{"$f":"'Debt allocations'!W18*'Debt Dollars FY23'!$C$2","v":0},{"$f":"'Debt allocations'!X18*'Debt Dollars FY23'!$C$2","v":0},{"$f":"'Debt allocations'!Y18*'Debt Dollars FY23'!$C$2","v":0},{"$f":"'Debt allocations'!Z18*'Debt Dollars FY23'!$C$2","v":28865.187094694833},{"$f":"'Debt allocations'!AA18*'Debt Dollars FY23'!$C$2","v":0},{"$f":"'Debt allocations'!AB18*'Debt Dollars FY23'!$C$2","v":0},{"$f":"'Debt allocations'!AC18*'Debt Dollars FY23'!$C$2","v":0},{"$f":"'Debt allocations'!AD18*'Debt Dollars FY23'!$C$2","v":0},{"$f":"'Debt allocations'!AE18*'Debt Dollars FY23'!$C$2","v":0},{"$f":"'Debt allocations'!AF18*'Debt Dollars FY23'!$C$2","v":0},{"$f":"'Debt allocations'!AG18*'Debt Dollars FY23'!$C$2","v":0},{"$f":"'Debt allocations'!AH18*'Debt Dollars FY23'!$C$2","v":0},{"$f":"'Debt allocations'!AI18*'Debt Dollars FY23'!$C$2","v":0},{"$f":"'Debt allocations'!AJ18*'Debt Dollars FY23'!$C$2","v":0},{"$f":"'Debt allocations'!AK18*'Debt Dollars FY23'!$C$2","v":0},{"$f":"'Debt allocations'!AL18*'Debt Dollars FY23'!$C$2","v":0},{"$f":"'Debt allocations'!AM18*'Debt Dollars FY23'!$C$2","v":0},{"$f":"'Debt allocations'!AN18*'Debt Dollars FY23'!$C$2","v":0}]
["055 - Administrative Office of the Courts","055","Administrative Office of the Courts",9.9999999999999998E-20,1E-8,0,{"$f":"'Debt allocations'!G19*'Debt Dollars FY23'!$C$2","v":0},{"$f":"'Debt allocations'!H19*'Debt Dollars FY23'!$C$2","v":0},{"$f":"'Debt allocations'!I19*'Debt Dollars FY23'!$C$2","v":0},{"$f":"'Debt allocations'!J19*'Debt Dollars FY23'!$C$2","v":0},{"$f":"'Debt allocations'!K19*'Debt Dollars FY23'!$C$2","v":0},{"$f":"'Debt allocations'!L19*'Debt Dollars FY23'!$C$2","v":0},{"$f":"'Debt allocations'!M19*'Debt Dollars FY23'!$C$2","v":0},{"$f":"'Debt allocations'!N19*'Debt Dollars FY23'!$C$2","v":0},{"$f":"'Debt allocations'!O19*'Debt Dollars FY23'!$C$2","v":0},{"$f":"'Debt allocations'!P19*'Debt Dollars FY23'!$C$2","v":0},{"$f":"'Debt allocations'!Q19*'Debt Dollars FY23'!$C$2","v":0},{"$f":"'Debt allocations'!R19*'Debt Dollars FY23'!$C$2","v":0},{"$f":"'Debt allocations'!S19*'Debt Dollars FY23'!$C$2","v":0},{"$f":"'Debt allocations'!T19*'Debt Dollars FY23'!$C$2","v":0},{"$f":"'Debt allocations'!U19*'Debt Dollars FY23'!$C$2","v":0},{"$f":"'Debt allocations'!V19*'Debt Dollars FY23'!$C$2","v":0},{"$f":"'Debt allocations'!W19*'Debt Dollars FY23'!$C$2","v":0},{"$f":"'Debt allocations'!X19*'Debt Dollars FY23'!$C$2","v":0},{"$f":"'Debt allocations'!Y19*'Debt Dollars FY23'!$C$2","v":0},{"$f":"'Debt allocations'!Z19*'Debt Dollars FY23'!$C$2","v":0},{"$f":"'Debt allocations'!AA19*'Debt Dollars FY23'!$C$2","v":0},{"$f":"'Debt allocations'!AB19*'Debt Dollars FY23'!$C$2","v":0},{"$f":"'Debt allocations'!AC19*'Debt Dollars FY23'!$C$2","v":0},{"$f":"'Debt allocations'!AD19*'Debt Dollars FY23'!$C$2","v":0},{"$f":"'Debt allocations'!AE19*'Debt Dollars FY23'!$C$2","v":0},{"$f":"'Debt allocations'!AF19*'Debt Dollars FY23'!$C$2","v":0},{"$f":"'Debt allocations'!AG19*'Debt Dollars FY23'!$C$2","v":0},{"$f":"'Debt allocations'!AH19*'Debt Dollars FY23'!$C$2","v":0},{"$f":"'Debt allocations'!AI19*'Debt Dollars FY23'!$C$2","v":0},{"$f":"'Debt allocations'!AJ19*'Debt Dollars FY23'!$C$2","v":0},{"$f":"'Debt allocations'!AK19*'Debt Dollars FY23'!$C$2","v":0},{"$f":"'Debt allocations'!AL19*'Debt Dollars FY23'!$C$2","v":0},{"$f":"'Debt allocations'!AM19*'Debt Dollars FY23'!$C$2","v":0},{"$f":"'Debt allocations'!AN19*'Debt Dollars FY23'!$C$2","v":0}]
["056 - Office of Public Defense","056","Office of Public Defense",9.9999999999999998E-20,1E-8,0,{"$f":"'Debt allocations'!G20*'Debt Dollars FY23'!$C$2","v":0},{"$f":"'Debt allocations'!H20*'Debt Dollars FY23'!$C$2","v":0},{"$f":"'Debt allocations'!I20*'Debt Dollars FY23'!$C$2","v":0},{"$f":"'Debt allocations'!J20*'Debt Dollars FY23'!$C$2","v":0},{"$f":"'Debt allocations'!K20*'Debt Dollars FY23'!$C$2","v":0},{"$f":"'Debt allocations'!L20*'Debt Dollars FY23'!$C$2","v":0},{"$f":"'Debt allocations'!M20*'Debt Dollars FY23'!$C$2","v":0},{"$f":"'Debt allocations'!N20*'Debt Dollars FY23'!$C$2","v":0},{"$f":"'Debt allocations'!O20*'Debt Dollars FY23'!$C$2","v":0},{"$f":"'Debt allocations'!P20*'Debt Dollars FY23'!$C$2","v":0},{"$f":"'Debt allocations'!Q20*'Debt Dollars FY23'!$C$2","v":0},{"$f":"'Debt allocations'!R20*'Debt Dollars FY23'!$C$2","v":0},{"$f":"'Debt allocations'!S20*'Debt Dollars FY23'!$C$2","v":0},{"$f":"'Debt allocations'!T20*'Debt Dollars FY23'!$C$2","v":0},{"$f":"'Debt allocations'!U20*'Debt Dollars FY23'!$C$2","v":0},{"$f":"'Debt allocations'!V20*'Debt Dollars FY23'!$C$2","v":0},{"$f":"'Debt allocations'!W20*'Debt Dollars FY23'!$C$2","v":0},{"$f":"'Debt allocations'!X20*'Debt Dollars FY23'!$C$2","v":0},{"$f":"'Debt allocations'!Y20*'Debt Dollars FY23'!$C$2","v":0},{"$f":"'Debt allocations'!Z20*'Debt Dollars FY23'!$C$2","v":0},{"$f":"'Debt allocations'!AA20*'Debt Dollars FY23'!$C$2","v":0},{"$f":"'Debt allocations'!AB20*'Debt Dollars FY23'!$C$2","v":0},{"$f":"'Debt allocations'!AC20*'Debt Dollars FY23'!$C$2","v":0},{"$f":"'Debt allocations'!AD20*'Debt Dollars FY23'!$C$2","v":0},{"$f":"'Debt allocations'!AE20*'Debt Dollars FY23'!$C$2","v":0},{"$f":"'Debt allocations'!AF20*'Debt Dollars FY23'!$C$2","v":0},{"$f":"'Debt allocations'!AG20*'Debt Dollars FY23'!$C$2","v":0},{"$f":"'Debt allocations'!AH20*'Debt Dollars FY23'!$C$2","v":0},{"$f":"'Debt allocations'!AI20*'Debt Dollars FY23'!$C$2","v":0},{"$f":"'Debt allocations'!AJ20*'Debt Dollars FY23'!$C$2","v":0},{"$f":"'Debt allocations'!AK20*'Debt Dollars FY23'!$C$2","v":0},{"$f":"'Debt allocations'!AL20*'Debt Dollars FY23'!$C$2","v":0},{"$f":"'Debt allocations'!AM20*'Debt Dollars FY23'!$C$2","v":0},{"$f":"'Debt allocations'!AN20*'Debt Dollars FY23'!$C$2","v":0}]
["057 - Office of Civil Legal Aid","057","Office of Civil Legal Aid",9.9999999999999998E-20,1E-8,0,{"$f":"'Debt allocations'!G21*'Debt Dollars FY23'!$C$2","v":0},{"$f":"'Debt allocations'!H21*'Debt Dollars FY23'!$C$2","v":0},{"$f":"'Debt allocations'!I21*'Debt Dollars FY23'!$C$2","v":0},{"$f":"'Debt allocations'!J21*'Debt Dollars FY23'!$C$2","v":0},{"$f":"'Debt allocations'!K21*'Debt Dollars FY23'!$C$2","v":0},{"$f":"'Debt allocations'!L21*'Debt Dollars FY23'!$C$2","v":0},{"$f":"'Debt allocations'!M21*'Debt Dollars FY23'!$C$2","v":0},{"$f":"'Debt allocations'!N21*'Debt Dollars FY23'!$C$2","v":0},{"$f":"'Debt allocations'!O21*'Debt Dollars FY23'!$C$2","v":0},{"$f":"'Debt allocations'!P21*'Debt Dollars FY23'!$C$2","v":0},{"$f":"'Debt allocations'!Q21*'Debt Dollars FY23'!$C$2","v":0},{"$f":"'Debt allocations'!R21*'Debt Dollars FY23'!$C$2","v":0},{"$f":"'Debt allocations'!S21*'Debt Dollars FY23'!$C$2","v":0},{"$f":"'Debt allocations'!T21*'Debt Dollars FY23'!$C$2","v":0},{"$f":"'Debt allocations'!U21*'Debt Dollars FY23'!$C$2","v":0},{"$f":"'Debt allocations'!V21*'Debt Dollars FY23'!$C$2","v":0},{"$f":"'Debt allocations'!W21*'Debt Dollars FY23'!$C$2","v":0},{"$f":"'Debt allocations'!X21*'Debt Dollars FY23'!$C$2","v":0},{"$f":"'Debt allocations'!Y21*'Debt Dollars FY23'!$C$2","v":0},{"$f":"'Debt allocations'!Z21*'Debt Dollars FY23'!$C$2","v":0},{"$f":"'Debt allocations'!AA21*'Debt Dollars FY23'!$C$2","v":0},{"$f":"'Debt allocations'!AB21*'Debt Dollars FY23'!$C$2","v":0},{"$f":"'Debt allocations'!AC21*'Debt Dollars FY23'!$C$2","v":0},{"$f":"'Debt allocations'!AD21*'Debt Dollars FY23'!$C$2","v":0},{"$f":"'Debt allocations'!AE21*'Debt Dollars FY23'!$C$2","v":0},{"$f":"'Debt allocations'!AF21*'Debt Dollars FY23'!$C$2","v":0},{"$f":"'Debt allocations'!AG21*'Debt Dollars FY23'!$C$2","v":0},{"$f":"'Debt allocations'!AH21*'Debt Dollars FY23'!$C$2","v":0},{"$f":"'Debt allocations'!AI21*'Debt Dollars FY23'!$C$2","v":0},{"$f":"'Debt allocations'!AJ21*'Debt Dollars FY23'!$C$2","v":0},{"$f":"'Debt allocations'!AK21*'Debt Dollars FY23'!$C$2","v":0},{"$f":"'Debt allocations'!AL21*'Debt Dollars FY23'!$C$2","v":0},{"$f":"'Debt allocations'!AM21*'Debt Dollars FY23'!$C$2","v":0},{"$f":"'Debt allocations'!AN21*'Debt Dollars FY23'!$C$2","v":0}]
["075 - Office of the Governor","075","Office of the Governor",9.9999999999999998E-20,1E-8,0,{"$f":"'Debt allocations'!G22*'Debt Dollars FY23'!$C$2","v":0},{"$f":"'Debt allocations'!H22*'Debt Dollars FY23'!$C$2","v":0},{"$f":"'Debt allocations'!I22*'Debt Dollars FY23'!$C$2","v":0},{"$f":"'Debt allocations'!J22*'Debt Dollars FY23'!$C$2","v":0},{"$f":"'Debt allocations'!K22*'Debt Dollars FY23'!$C$2","v":0},{"$f":"'Debt allocations'!L22*'Debt Dollars FY23'!$C$2","v":0},{"$f":"'Debt allocations'!M22*'Debt Dollars FY23'!$C$2","v":0},{"$f":"'Debt allocations'!N22*'Debt Dollars FY23'!$C$2","v":0},{"$f":"'Debt allocations'!O22*'Debt Dollars FY23'!$C$2","v":0},{"$f":"'Debt allocations'!P22*'Debt Dollars FY23'!$C$2","v":0},{"$f":"'Debt allocations'!Q22*'Debt Dollars FY23'!$C$2","v":0},{"$f":"'Debt allocations'!R22*'Debt Dollars FY23'!$C$2","v":0},{"$f":"'Debt allocations'!S22*'Debt Dollars FY23'!$C$2","v":0},{"$f":"'Debt allocations'!T22*'Debt Dollars FY23'!$C$2","v":0},{"$f":"'Debt allocations'!U22*'Debt Dollars FY23'!$C$2","v":0},{"$f":"'Debt allocations'!V22*'Debt Dollars FY23'!$C$2","v":0},{"$f":"'Debt allocations'!W22*'Debt Dollars FY23'!$C$2","v":0},{"$f":"'Debt allocations'!X22*'Debt Dollars FY23'!$C$2","v":0},{"$f":"'Debt allocations'!Y22*'Debt Dollars FY23'!$C$2","v":0},{"$f":"'Debt allocations'!Z22*'Debt Dollars FY23'!$C$2","v":0},{"$f":"'Debt allocations'!AA22*'Debt Dollars FY23'!$C$2","v":0},{"$f":"'Debt allocations'!AB22*'Debt Dollars FY23'!$C$2","v":0},{"$f":"'Debt allocations'!AC22*'Debt Dollars FY23'!$C$2","v":0},{"$f":"'Debt allocations'!AD22*'Debt Dollars FY23'!$C$2","v":0},{"$f":"'Debt allocations'!AE22*'Debt Dollars FY23'!$C$2","v":0},{"$f":"'Debt allocations'!AF22*'Debt Dollars FY23'!$C$2","v":0},{"$f":"'Debt allocations'!AG22*'Debt Dollars FY23'!$C$2","v":0},{"$f":"'Debt allocations'!AH22*'Debt Dollars FY23'!$C$2","v":0},{"$f":"'Debt allocations'!AI22*'Debt Dollars FY23'!$C$2","v":0},{"$f":"'Debt allocations'!AJ22*'Debt Dollars FY23'!$C$2","v":0},{"$f":"'Debt allocations'!AK22*'Debt Dollars FY23'!$C$2","v":0},{"$f":"'Debt allocations'!AL22*'Debt Dollars FY23'!$C$2","v":0},{"$f":"'Debt allocations'!AM22*'Debt Dollars FY23'!$C$2","v":0},{"$f":"'Debt allocations'!AN22*'Debt Dollars FY23'!$C$2","v":0}]
["080 - Office of Lieutenant Governor","080","Office of Lieutenant Governor",9.9999999999999998E-20,1E-8,0,{"$f":"'Debt allocations'!G23*'Debt Dollars FY23'!$C$2","v":0},{"$f":"'Debt allocations'!H23*'Debt Dollars FY23'!$C$2","v":0},{"$f":"'Debt allocations'!I23*'Debt Dollars FY23'!$C$2","v":0},{"$f":"'Debt allocations'!J23*'Debt Dollars FY23'!$C$2","v":0},{"$f":"'Debt allocations'!K23*'Debt Dollars FY23'!$C$2","v":0},{"$f":"'Debt allocations'!L23*'Debt Dollars FY23'!$C$2","v":0},{"$f":"'Debt allocations'!M23*'Debt Dollars FY23'!$C$2","v":0},{"$f":"'Debt allocations'!N23*'Debt Dollars FY23'!$C$2","v":0},{"$f":"'Debt allocations'!O23*'Debt Dollars FY23'!$C$2","v":0},{"$f":"'Debt allocations'!P23*'Debt Dollars FY23'!$C$2","v":0},{"$f":"'Debt allocations'!Q23*'Debt Dollars FY23'!$C$2","v":0},{"$f":"'Debt allocations'!R23*'Debt Dollars FY23'!$C$2","v":0},{"$f":"'Debt allocations'!S23*'Debt Dollars FY23'!$C$2","v":0},{"$f":"'Debt allocations'!T23*'Debt Dollars FY23'!$C$2","v":0},{"$f":"'Debt allocations'!U23*'Debt Dollars FY23'!$C$2","v":0},{"$f":"'Debt allocations'!V23*'Debt Dollars FY23'!$C$2","v":0},{"$f":"'Debt allocations'!W23*'Debt Dollars FY23'!$C$2","v":0},{"$f":"'Debt allocations'!X23*'Debt Dollars FY23'!$C$2","v":0},{"$f":"'Debt allocations'!Y23*'Debt Dollars FY23'!$C$2","v":0},{"$f":"'Debt allocations'!Z23*'Debt Dollars FY23'!$C$2","v":0},{"$f":"'Debt allocations'!AA23*'Debt Dollars FY23'!$C$2","v":0},{"$f":"'Debt allocations'!AB23*'Debt Dollars FY23'!$C$2","v":0},{"$f":"'Debt allocations'!AC23*'Debt Dollars FY23'!$C$2","v":0},{"$f":"'Debt allocations'!AD23*'Debt Dollars FY23'!$C$2","v":0},{"$f":"'Debt allocations'!AE23*'Debt Dollars FY23'!$C$2","v":0},{"$f":"'Debt allocations'!AF23*'Debt Dollars FY23'!$C$2","v":0},{"$f":"'Debt allocations'!AG23*'Debt Dollars FY23'!$C$2","v":0},{"$f":"'Debt allocations'!AH23*'Debt Dollars FY23'!$C$2","v":0},{"$f":"'Debt allocations'!AI23*'Debt Dollars FY23'!$C$2","v":0},{"$f":"'Debt allocations'!AJ23*'Debt Dollars FY23'!$C$2","v":0},{"$f":"'Debt allocations'!AK23*'Debt Dollars FY23'!$C$2","v":0},{"$f":"'Debt allocations'!AL23*'Debt Dollars FY23'!$C$2","v":0},{"$f":"'Debt allocations'!AM23*'Debt Dollars FY23'!$C$2","v":0},{"$f":"'Debt allocations'!AN23*'Debt Dollars FY23'!$C$2","v":0}]
["082 - Public Disclosure Commission","082","Public Disclosure Commission",9.9999999999999998E-20,1E-8,0,{"$f":"'Debt allocations'!G24*'Debt Dollars FY23'!$C$2","v":0},{"$f":"'Debt allocations'!H24*'Debt Dollars FY23'!$C$2","v":0},{"$f":"'Debt allocations'!I24*'Debt Dollars FY23'!$C$2","v":0},{"$f":"'Debt allocations'!J24*'Debt Dollars FY23'!$C$2","v":0},{"$f":"'Debt allocations'!K24*'Debt Dollars FY23'!$C$2","v":0},{"$f":"'Debt allocations'!L24*'Debt Dollars FY23'!$C$2","v":0},{"$f":"'Debt allocations'!M24*'Debt Dollars FY23'!$C$2","v":0},{"$f":"'Debt allocations'!N24*'Debt Dollars FY23'!$C$2","v":0},{"$f":"'Debt allocations'!O24*'Debt Dollars FY23'!$C$2","v":0},{"$f":"'Debt allocations'!P24*'Debt Dollars FY23'!$C$2","v":0},{"$f":"'Debt allocations'!Q24*'Debt Dollars FY23'!$C$2","v":0},{"$f":"'Debt allocations'!R24*'Debt Dollars FY23'!$C$2","v":0},{"$f":"'Debt allocations'!S24*'Debt Dollars FY23'!$C$2","v":0},{"$f":"'Debt allocations'!T24*'Debt Dollars FY23'!$C$2","v":0},{"$f":"'Debt allocations'!U24*'Debt Dollars FY23'!$C$2","v":0},{"$f":"'Debt allocations'!V24*'Debt Dollars FY23'!$C$2","v":0},{"$f":"'Debt allocations'!W24*'Debt Dollars FY23'!$C$2","v":0},{"$f":"'Debt allocations'!X24*'Debt Dollars FY23'!$C$2","v":0},{"$f":"'Debt allocations'!Y24*'Debt Dollars FY23'!$C$2","v":0},{"$f":"'Debt allocations'!Z24*'Debt Dollars FY23'!$C$2","v":0},{"$f":"'Debt allocations'!AA24*'Debt Dollars FY23'!$C$2","v":0},{"$f":"'Debt allocations'!AB24*'Debt Dollars FY23'!$C$2","v":0},{"$f":"'Debt allocations'!AC24*'Debt Dollars FY23'!$C$2","v":0},{"$f":"'Debt allocations'!AD24*'Debt Dollars FY23'!$C$2","v":0},{"$f":"'Debt allocations'!AE24*'Debt Dollars FY23'!$C$2","v":0},{"$f":"'Debt allocations'!AF24*'Debt Dollars FY23'!$C$2","v":0},{"$f":"'Debt allocations'!AG24*'Debt Dollars FY23'!$C$2","v":0},{"$f":"'Debt allocations'!AH24*'Debt Dollars FY23'!$C$2","v":0},{"$f":"'Debt allocations'!AI24*'Debt Dollars FY23'!$C$2","v":0},{"$f":"'Debt allocations'!AJ24*'Debt Dollars FY23'!$C$2","v":0},{"$f":"'Debt allocations'!AK24*'Debt Dollars FY23'!$C$2","v":0},{"$f":"'Debt allocations'!AL24*'Debt Dollars FY23'!$C$2","v":0},{"$f":"'Debt allocations'!AM24*'Debt Dollars FY23'!$C$2","v":0},{"$f":"'Debt allocations'!AN24*'Debt Dollars FY23'!$C$2","v":0}]
["085 - Office of the Secretary of State","085","Office of the Secretary of State",6.7649348999747602E-2,112100,480986.93903755443,{"$f":"'Debt allocations'!G25*'Debt Dollars FY23'!$C$2","v":0},{"$f":"'Debt allocations'!H25*'Debt Dollars FY23'!$C$2","v":0},{"$f":"'Debt allocations'!I25*'Debt Dollars FY23'!$C$2","v":0},{"$f":"'Debt allocations'!J25*'Debt Dollars FY23'!$C$2","v":0},{"$f":"'Debt allocations'!K25*'Debt Dollars FY23'!$C$2","v":0},{"$f":"'Debt allocations'!L25*'Debt Dollars FY23'!$C$2","v":0},{"$f":"'Debt allocations'!M25*'Debt Dollars FY23'!$C$2","v":35941.529526933038},{"$f":"'Debt allocations'!N25*'Debt Dollars FY23'!$C$2","v":0},{"$f":"'Debt allocations'!O25*'Debt Dollars FY23'!$C$2","v":0},{"$f":"'Debt allocations'!P25*'Debt Dollars FY23'!$C$2","v":0},{"$f":"'Debt allocations'!Q25*'Debt Dollars FY23'!$C$2","v":0},{"$f":"'Debt allocations'!R25*'Debt Dollars FY23'!$C$2","v":0},{"$f":"'Debt allocations'!S25*'Debt Dollars FY23'!$C$2","v":0},{"$f":"'Debt allocations'!T25*'Debt Dollars FY23'!$C$2","v":0},{"$f":"'Debt allocations'!U25*'Debt Dollars FY23'!$C$2","v":0},{"$f":"'Debt allocations'!V25*'Debt Dollars FY23'!$C$2","v":318899.37680085242},{"$f":"'Debt allocations'!W25*'Debt Dollars FY23'!$C$2","v":0},{"$f":"'Debt allocations'!X25*'Debt Dollars FY23'!$C$2","v":0},{"$f":"'Debt allocations'!Y25*'Debt Dollars FY23'!$C$2","v":0},{"$f":"'Debt allocations'!Z25*'Debt Dollars FY23'!$C$2","v":0},{"$f":"'Debt allocations'!AA25*'Debt Dollars FY23'!$C$2","v":126146.03270976894},{"$f":"'Debt allocations'!AB25*'Debt Dollars FY23'!$C$2","v":0},{"$f":"'Debt allocations'!AC25*'Debt Dollars FY23'!$C$2","v":0},{"$f":"'Debt allocations'!AD25*'Debt Dollars FY23'!$C$2","v":0},{"$f":"'Debt allocations'!AE25*'Debt Dollars FY23'!$C$2","v":0},{"$f":"'Debt allocations'!AF25*'Debt Dollars FY23'!$C$2","v":0},{"$f":"'Debt allocations'!AG25*'Debt Dollars FY23'!$C$2","v":0},{"$f":"'Debt allocations'!AH25*'Debt Dollars FY23'!$C$2","v":0},{"$f":"'Debt allocations'!AI25*'Debt Dollars FY23'!$C$2","v":0},{"$f":"'Debt allocations'!AJ25*'Debt Dollars FY23'!$C$2","v":0},{"$f":"'Debt allocations'!AK25*'Debt Dollars FY23'!$C$2","v":0},{"$f":"'Debt allocations'!AL25*'Debt Dollars FY23'!$C$2","v":0},{"$f":"'Debt allocations'!AM25*'Debt Dollars FY23'!$C$2","v":0},{"$f":"'Debt allocations'!AN25*'Debt Dollars FY23'!$C$2","v":0}]
["086 - Governor's Office of Indian Affairs","086","Governor's Office of Indian Affairs",1.0292673486150988E-3,1312,7318.0918779207004,{"$f":"'Debt allocations'!G26*'Debt Dollars FY23'!$C$2","v":0},{"$f":"'Debt allocations'!H26*'Debt Dollars FY23'!$C$2","v":0},{"$f":"'Debt allocations'!I26*'Debt Dollars FY23'!$C$2","v":0},{"$f":"'Debt allocations'!J26*'Debt Dollars FY23'!$C$2","v":0},{"$f":"'Debt allocations'!K26*'Debt Dollars FY23'!$C$2","v":0},{"$f":"'Debt allocations'!L26*'Debt Dollars FY23'!$C$2","v":0},{"$f":"'Debt allocations'!M26*'Debt Dollars FY23'!$C$2","v":0},{"$f":"'Debt allocations'!N26*'Debt Dollars FY23'!$C$2","v":0},{"$f":"'Debt allocations'!O26*'Debt Dollars FY23'!$C$2","v":0},{"$f":"'Debt allocations'!P26*'Debt Dollars FY23'!$C$2","v":0},{"$f":"'Debt allocations'!Q26*'Debt Dollars FY23'!$C$2","v":0},{"$f":"'Debt allocations'!R26*'Debt Dollars FY23'!$C$2","v":0},{"$f":"'Debt allocations'!S26*'Debt Dollars FY23'!$C$2","v":0},{"$f":"'Debt allocations'!T26*'Debt Dollars FY23'!$C$2","v":0},{"$f":"'Debt allocations'!U26*'Debt Dollars FY23'!$C$2","v":0},{"$f":"'Debt allocations'!V26*'Debt Dollars FY23'!$C$2","v":0},{"$f":"'Debt allocations'!W26*'Debt Dollars FY23'!$C$2","v":0},{"$f":"'Debt allocations'!X26*'Debt Dollars FY23'!$C$2","v":0},{"$f":"'Debt allocations'!Y26*'Debt Dollars FY23'!$C$2","v":0},{"$f":"'Debt allocations'!Z26*'Debt Dollars FY23'!$C$2","v":7318.0918779207004},{"$f":"'Debt allocations'!AA26*'Debt Dollars FY23'!$C$2","v":0},{"$f":"'Debt allocations'!AB26*'Debt Dollars FY23'!$C$2","v":0},{"$f":"'Debt allocations'!AC26*'Debt Dollars FY23'!$C$2","v":0},{"$f":"'Debt allocations'!AD26*'Debt Dollars FY23'!$C$2","v":0},{"$f":"'Debt allocations'!AE26*'Debt Dollars FY23'!$C$2","v":0},{"$f":"'Debt allocations'!AF26*'Debt Dollars FY23'!$C$2","v":0},{"$f":"'Debt allocations'!AG26*'Debt Dollars FY23'!$C$2","v":0},{"$f":"'Debt allocations'!AH26*'Debt Dollars FY23'!$C$2","v":0},{"$f":"'Debt allocations'!AI26*'Debt Dollars FY23'!$C$2","v":0},{"$f":"'Debt allocations'!AJ26*'Debt Dollars FY23'!$C$2","v":0},{"$f":"'Debt allocations'!AK26*'Debt Dollars FY23'!$C$2","v":0},{"$f":"'Debt allocations'!AL26*'Debt Dollars FY23'!$C$2","v":0},{"$f":"'Debt allocations'!AM26*'Debt Dollars FY23'!$C$2","v":0},{"$f":"'Debt allocations'!AN26*'Debt Dollars FY23'!$C$2","v":0}]
["087 - Commission on Asian Pacific American Affairs","087","Commission on Asian Pacific American Affairs",6.7702570263325479E-4,863,4813.6534227481434,{"$f":"'Debt allocations'!G27*'Debt Dollars FY23'!$C$2","v":0},{"$f":"'Debt allocations'!H27*'Debt Dollars FY23'!$C$2","v":0},{"$f":"'Debt allocations'!I27*'Debt Dollars FY23'!$C$2","v":0},{"$f":"'Debt allocations'!J27*'Debt Dollars FY23'!$C$2","v":0},{"$f":"'Debt allocations'!K27*'Debt Dollars FY23'!$C$2","v":0},{"$f":"'Debt allocations'!L27*'Debt Dollars FY23'!$C$2","v":0},{"$f":"'Debt allocations'!M27*'Debt Dollars FY23'!$C$2","v":0},{"$f":"'Debt allocations'!N27*'Debt Dollars FY23'!$C$2","v":0},{"$f":"'Debt allocations'!O27*'Debt Dollars FY23'!$C$2","v":0},{"$f":"'Debt allocations'!P27*'Debt Dollars FY23'!$C$2","v":0},{"$f":"'Debt allocations'!Q27*'Debt Dollars FY23'!$C$2","v":0},{"$f":"'Debt allocations'!R27*'Debt Dollars FY23'!$C$2","v":0},{"$f":"'Debt allocations'!S27*'Debt Dollars FY23'!$C$2","v":0},{"$f":"'Debt allocations'!T27*'Debt Dollars FY23'!$C$2","v":0},{"$f":"'Debt allocations'!U27*'Debt Dollars FY23'!$C$2","v":0},{"$f":"'Debt allocations'!V27*'Debt Dollars FY23'!$C$2","v":0},{"$f":"'Debt allocations'!W27*'Debt Dollars FY23'!$C$2","v":0},{"$f":"'Debt allocations'!X27*'Debt Dollars FY23'!$C$2","v":0},{"$f":"'Debt allocations'!Y27*'Debt Dollars FY23'!$C$2","v":0},{"$f":"'Debt allocations'!Z27*'Debt Dollars FY23'!$C$2","v":4813.6534227481434},{"$f":"'Debt allocations'!AA27*'Debt Dollars FY23'!$C$2","v":0},{"$f":"'Debt allocations'!AB27*'Debt Dollars FY23'!$C$2","v":0},{"$f":"'Debt allocations'!AC27*'Debt Dollars FY23'!$C$2","v":0},{"$f":"'Debt allocations'!AD27*'Debt Dollars FY23'!$C$2","v":0},{"$f":"'Debt allocations'!AE27*'Debt Dollars FY23'!$C$2","v":0},{"$f":"'Debt allocations'!AF27*'Debt Dollars FY23'!$C$2","v":0},{"$f":"'Debt allocations'!AG27*'Debt Dollars FY23'!$C$2","v":0},{"$f":"'Debt allocations'!AH27*'Debt Dollars FY23'!$C$2","v":0},{"$f":"'Debt allocations'!AI27*'Debt Dollars FY23'!$C$2","v":0},{"$f":"'Debt allocations'!AJ27*'Debt Dollars FY23'!$C$2","v":0},{"$f":"'Debt allocations'!AK27*'Debt Dollars FY23'!$C$2","v":0},{"$f":"'Debt allocations'!AL27*'Debt Dollars FY23'!$C$2","v":0},{"$f":"'Debt allocations'!AM27*'Debt Dollars FY23'!$C$2","v":0},{"$f":"'Debt allocations'!AN27*'Debt Dollars FY23'!$C$2","v":0}]
["090 - Office of State Treasurer","090","Office of State Treasurer",4.3261689358776556E-2,12915,307590.6546025906,{"$f":"'Debt allocations'!G28*'Debt Dollars FY23'!$C$2","v":0},{"$f":"'Debt allocations'!H28*'Debt Dollars FY23'!$C$2","v":0},{"$f":"'Debt allocations'!I28*'Debt Dollars FY23'!$C$2","v":0},{"$f":"'Debt allocations'!J28*'Debt Dollars FY23'!$C$2","v":0},{"$f":"'Debt allocations'!K28*'Debt Dollars FY23'!$C$2","v":0},{"$f":"'Debt allocations'!L28*'Debt Dollars FY23'!$C$2","v":0},{"$f":"'Debt allocations'!M28*'Debt Dollars FY23'!$C$2","v":0},{"$f":"'Debt allocations'!N28*'Debt Dollars FY23'!$C$2","v":0},{"$f":"'Debt allocations'!O28*'Debt Dollars FY23'!$C$2","v":0},{"$f":"'Debt allocations'!P28*'Debt Dollars FY23'!$C$2","v":0},{"$f":"'Debt allocations'!Q28*'Debt Dollars FY23'!$C$2","v":0},{"$f":"'Debt allocations'!R28*'Debt Dollars FY23'!$C$2","v":0},{"$f":"'Debt allocations'!S28*'Debt Dollars FY23'!$C$2","v":0},{"$f":"'Debt allocations'!T28*'Debt Dollars FY23'!$C$2","v":0},{"$f":"'Debt allocations'!U28*'Debt Dollars FY23'!$C$2","v":0},{"$f":"'Debt allocations'!V28*'Debt Dollars FY23'!$C$2","v":0},{"$f":"'Debt allocations'!W28*'Debt Dollars FY23'!$C$2","v":0},{"$f":"'Debt allocations'!X28*'Debt Dollars FY23'!$C$2","v":0},{"$f":"'Debt allocations'!Y28*'Debt Dollars FY23'!$C$2","v":0},{"$f":"'Debt allocations'!Z28*'Debt Dollars FY23'!$C$2","v":0},{"$f":"'Debt allocations'!AA28*'Debt Dollars FY23'!$C$2","v":0},{"$f":"'Debt allocations'!AB28*'Debt Dollars FY23'!$C$2","v":0},{"$f":"'Debt allocations'!AC28*'Debt Dollars FY23'!$C$2","v":0},{"$f":"'Debt allocations'!AD28*'Debt Dollars FY23'!$C$2","v":0},{"$f":"'Debt allocations'!AE28*'Debt Dollars FY23'!$C$2","v":0},{"$f":"'Debt allocations'!AF28*'Debt Dollars FY23'!$C$2","v":0},{"$f":"'Debt allocations'!AG28*'Debt Dollars FY23'!$C$2","v":0},{"$f":"'Debt allocations'!AH28*'Debt Dollars FY23'!$C$2","v":307590.6546025906},{"$f":"'Debt allocations'!AI28*'Debt Dollars FY23'!$C$2","v":0},{"$f":"'Debt allocations'!AJ28*'Debt Dollars FY23'!$C$2","v":0},{"$f":"'Debt allocations'!AK28*'Debt Dollars FY23'!$C$2","v":0},{"$f":"'Debt allocations'!AL28*'Debt Dollars FY23'!$C$2","v":0},{"$f":"'Debt allocations'!AM28*'Debt Dollars FY23'!$C$2","v":0},{"$f":"'Debt allocations'!AN28*'Debt Dollars FY23'!$C$2","v":0}]
["095 - Office of State Auditor","095","Office of State Auditor",1.6392958284400325E-3,4422,11655.394979504459,{"$f":"'Debt allocations'!G29*'Debt Dollars FY23'!$C$2","v":0},{"$f":"'Debt allocations'!H29*'Debt Dollars FY23'!$C$2","v":0},{"$f":"'Debt allocations'!I29*'Debt Dollars FY23'!$C$2","v":0},{"$f":"'Debt allocations'!J29*'Debt Dollars FY23'!$C$2","v":0},{"$f":"'Debt allocations'!K29*'Debt Dollars FY23'!$C$2","v":0},{"$f":"'Debt allocations'!L29*'Debt Dollars FY23'!$C$2","v":0},{"$f":"'Debt allocations'!M29*'Debt Dollars FY23'!$C$2","v":0},{"$f":"'Debt allocations'!N29*'Debt Dollars FY23'!$C$2","v":0},{"$f":"'Debt allocations'!O29*'Debt Dollars FY23'!$C$2","v":0},{"$f":"'Debt allocations'!P29*'Debt Dollars FY23'!$C$2","v":0},{"$f":"'Debt allocations'!Q29*'Debt Dollars FY23'!$C$2","v":0},{"$f":"'Debt allocations'!R29*'Debt Dollars FY23'!$C$2","v":0},{"$f":"'Debt allocations'!S29*'Debt Dollars FY23'!$C$2","v":0},{"$f":"'Debt allocations'!T29*'Debt Dollars FY23'!$C$2","v":0},{"$f":"'Debt allocations'!U29*'Debt Dollars FY23'!$C$2","v":0},{"$f":"'Debt allocations'!V29*'Debt Dollars FY23'!$C$2","v":0},{"$f":"'Debt allocations'!W29*'Debt Dollars FY23'!$C$2","v":0},{"$f":"'Debt allocations'!X29*'Debt Dollars FY23'!$C$2","v":0},{"$f":"'Debt allocations'!Y29*'Debt Dollars FY23'!$C$2","v":0},{"$f":"'Debt allocations'!Z29*'Debt Dollars FY23'!$C$2","v":0},{"$f":"'Debt allocations'!AA29*'Debt Dollars FY23'!$C$2","v":0},{"$f":"'Debt allocations'!AB29*'Debt Dollars FY23'!$C$2","v":0},{"$f":"'Debt allocations'!AC29*'Debt Dollars FY23'!$C$2","v":0},{"$f":"'Debt allocations'!AD29*'Debt Dollars FY23'!$C$2","v":0},{"$f":"'Debt allocations'!AE29*'Debt Dollars FY23'!$C$2","v":0},{"$f":"'Debt allocations'!AF29*'Debt Dollars FY23'!$C$2","v":0},{"$f":"'Debt allocations'!AG29*'Debt Dollars FY23'!$C$2","v":0},{"$f":"'Debt allocations'!AH29*'Debt Dollars FY23'!$C$2","v":0},{"$f":"'Debt allocations'!AI29*'Debt Dollars FY23'!$C$2","v":0},{"$f":"'Debt allocations'!AJ29*'Debt Dollars FY23'!$C$2","v":0},{"$f":"'Debt allocations'!AK29*'Debt Dollars FY23'!$C$2","v":0},{"$f":"'Debt allocations'!AL29*'Debt Dollars FY23'!$C$2","v":11655.394979504459},{"$f":"'Debt allocations'!AM29*'Debt Dollars FY23'!$C$2","v":0},{"$f":"'Debt allocations'!AN29*'Debt Dollars FY23'!$C$2","v":0}]
["099 - Citizens' Commission on Salaries for Elected Officials","099","Citizens' Commission on Salaries for Elected Officials",5.2247869983053027E-4,666,3714.8240782737707,{"$f":"'Debt allocations'!G30*'Debt Dollars FY23'!$C$2","v":0},{"$f":"'Debt allocations'!H30*'Debt Dollars FY23'!$C$2","v":0},{"$f":"'Debt allocations'!I30*'Debt Dollars FY23'!$C$2","v":0},{"$f":"'Debt allocations'!J30*'Debt Dollars FY23'!$C$2","v":0},{"$f":"'Debt allocations'!K30*'Debt Dollars FY23'!$C$2","v":0},{"$f":"'Debt allocations'!L30*'Debt Dollars FY23'!$C$2","v":0},{"$f":"'Debt allocations'!M30*'Debt Dollars FY23'!$C$2","v":0},{"$f":"'Debt allocations'!N30*'Debt Dollars FY23'!$C$2","v":0},{"$f":"'Debt allocations'!O30*'Debt Dollars FY23'!$C$2","v":0},{"$f":"'Debt allocations'!P30*'Debt Dollars FY23'!$C$2","v":0},{"$f":"'Debt allocations'!Q30*'Debt Dollars FY23'!$C$2","v":0},{"$f":"'Debt allocations'!R30*'Debt Dollars FY23'!$C$2","v":0},{"$f":"'Debt allocations'!S30*'Debt Dollars FY23'!$C$2","v":0},{"$f":"'Debt allocations'!T30*'Debt Dollars FY23'!$C$2","v":0},{"$f":"'Debt allocations'!U30*'Debt Dollars FY23'!$C$2","v":0},{"$f":"'Debt allocations'!V30*'Debt Dollars FY23'!$C$2","v":0},{"$f":"'Debt allocations'!W30*'Debt Dollars FY23'!$C$2","v":0},{"$f":"'Debt allocations'!X30*'Debt Dollars FY23'!$C$2","v":0},{"$f":"'Debt allocations'!Y30*'Debt Dollars FY23'!$C$2","v":0},{"$f":"'Debt allocations'!Z30*'Debt Dollars FY23'!$C$2","v":3714.8240782737707},{"$f":"'Debt allocations'!AA30*'Debt Dollars FY23'!$C$2","v":0},{"$f":"'Debt allocations'!AB30*'Debt Dollars FY23'!$C$2","v":0},{"$f":"'Debt allocations'!AC30*'Debt Dollars FY23'!$C$2","v":0},{"$f":"'Debt allocations'!AD30*'Debt Dollars FY23'!$C$2","v":0},{"$f":"'Debt allocations'!AE30*'Debt Dollars FY23'!$C$2","v":0},{"$f":"'Debt allocations'!AF30*'Debt Dollars FY23'!$C$2","v":0},{"$f":"'Debt allocations'!AG30*'Debt Dollars FY23'!$C$2","v":0},{"$f":"'Debt allocations'!AH30*'Debt Dollars FY23'!$C$2","v":0},{"$f":"'Debt allocations'!AI30*'Debt Dollars FY23'!$C$2","v":0},{"$f":"'Debt allocations'!AJ30*'Debt Dollars FY23'!$C$2","v":0},{"$f":"'Debt allocations'!AK30*'Debt Dollars FY23'!$C$2","v":0},{"$f":"'Debt allocations'!AL30*'Debt Dollars FY23'!$C$2","v":0},{"$f":"'Debt allocations'!AM30*'Debt Dollars FY23'!$C$2","v":0},{"$f":"'Debt allocations'!AN30*'Debt Dollars FY23'!$C$2","v":0}]
["100 - Office of Attorney General","100","Office of Attorney General",1.474348571835094E-2,72639,104826.19820096091,{"$f":"'Debt allocations'!G31*'Debt Dollars FY23'!$C$2","v":0},{"$f":"'Debt allocations'!H31*'Debt Dollars FY23'!$C$2","v":0},{"$f":"'Debt allocations'!I31*'Debt Dollars FY23'!$C$2","v":0},{"$f":"'Debt allocations'!J31*'Debt Dollars FY23'!$C$2","v":0},{"$f":"'Debt allocations'!K31*'Debt Dollars FY23'!$C$2","v":104826.19820096091},{"$f":"'Debt allocations'!L31*'Debt Dollars FY23'!$C$2","v":0},{"$f":"'Debt allocations'!M31*'Debt Dollars FY23'!$C$2","v":0},{"$f":"'Debt allocations'!N31*'Debt Dollars FY23'!$C$2","v":0},{"$f":"'Debt allocations'!O31*'Debt Dollars FY23'!$C$2","v":0},{"$f":"'Debt allocations'!P31*'Debt Dollars FY23'!$C$2","v":0},{"$f":"'Debt allocations'!Q31*'Debt Dollars FY23'!$C$2","v":0},{"$f":"'Debt allocations'!R31*'Debt Dollars FY23'!$C$2","v":0},{"$f":"'Debt allocations'!S31*'Debt Dollars FY23'!$C$2","v":0},{"$f":"'Debt allocations'!T31*'Debt Dollars FY23'!$C$2","v":0},{"$f":"'Debt allocations'!U31*'Debt Dollars FY23'!$C$2","v":0},{"$f":"'Debt allocations'!V31*'Debt Dollars FY23'!$C$2","v":0},{"$f":"'Debt allocations'!W31*'Debt Dollars FY23'!$C$2","v":0},{"$f":"'Debt allocations'!X31*'Debt Dollars FY23'!$C$2","v":0},{"$f":"'Debt allocations'!Y31*'Debt Dollars FY23'!$C$2","v":0},{"$f":"'Debt allocations'!Z31*'Debt Dollars FY23'!$C$2","v":0},{"$f":"'Debt allocations'!AA31*'Debt Dollars FY23'!$C$2","v":0},{"$f":"'Debt allocations'!AB31*'Debt Dollars FY23'!$C$2","v":0},{"$f":"'Debt allocations'!AC31*'Debt Dollars FY23'!$C$2","v":0},{"$f":"'Debt allocations'!AD31*'Debt Dollars FY23'!$C$2","v":0},{"$f":"'Debt allocations'!AE31*'Debt Dollars FY23'!$C$2","v":0},{"$f":"'Debt allocations'!AF31*'Debt Dollars FY23'!$C$2","v":0},{"$f":"'Debt allocations'!AG31*'Debt Dollars FY23'!$C$2","v":0},{"$f":"'Debt allocations'!AH31*'Debt Dollars FY23'!$C$2","v":0},{"$f":"'Debt allocations'!AI31*'Debt Dollars FY23'!$C$2","v":0},{"$f":"'Debt allocations'!AJ31*'Debt Dollars FY23'!$C$2","v":0},{"$f":"'Debt allocations'!AK31*'Debt Dollars FY23'!$C$2","v":0},{"$f":"'Debt allocations'!AL31*'Debt Dollars FY23'!$C$2","v":0},{"$f":"'Debt allocations'!AM31*'Debt Dollars FY23'!$C$2","v":0},{"$f":"'Debt allocations'!AN31*'Debt Dollars FY23'!$C$2","v":0}]
["101 - Caseload Forecast Council","101","Caseload Forecast Council",4.0464641647535663E-3,5158,28770.36425786202,{"$f":"'Debt allocations'!G32*'Debt Dollars FY23'!$C$2","v":0},{"$f":"'Debt allocations'!H32*'Debt Dollars FY23'!$C$2","v":0},{"$f":"'Debt allocations'!I32*'Debt Dollars FY23'!$C$2","v":0},{"$f":"'Debt allocations'!J32*'Debt Dollars FY23'!$C$2","v":0},{"$f":"'Debt allocations'!K32*'Debt Dollars FY23'!$C$2","v":0},{"$f":"'Debt allocations'!L32*'Debt Dollars FY23'!$C$2","v":0},{"$f":"'Debt allocations'!M32*'Debt Dollars FY23'!$C$2","v":0},{"$f":"'Debt allocations'!N32*'Debt Dollars FY23'!$C$2","v":0},{"$f":"'Debt allocations'!O32*'Debt Dollars FY23'!$C$2","v":0},{"$f":"'Debt allocations'!P32*'Debt Dollars FY23'!$C$2","v":0},{"$f":"'Debt allocations'!Q32*'Debt Dollars FY23'!$C$2","v":0},{"$f":"'Debt allocations'!R32*'Debt Dollars FY23'!$C$2","v":0},{"$f":"'Debt allocations'!S32*'Debt Dollars FY23'!$C$2","v":0},{"$f":"'Debt allocations'!T32*'Debt Dollars FY23'!$C$2","v":0},{"$f":"'Debt allocations'!U32*'Debt Dollars FY23'!$C$2","v":0},{"$f":"'Debt allocations'!V32*'Debt Dollars FY23'!$C$2","v":0},{"$f":"'Debt allocations'!W32*'Debt Dollars FY23'!$C$2","v":0},{"$f":"'Debt allocations'!X32*'Debt Dollars FY23'!$C$2","v":0},{"$f":"'Debt allocations'!Y32*'Debt Dollars FY23'!$C$2","v":0},{"$f":"'Debt allocations'!Z32*'Debt Dollars FY23'!$C$2","v":28770.36425786202},{"$f":"'Debt allocations'!AA32*'Debt Dollars FY23'!$C$2","v":0},{"$f":"'Debt allocations'!AB32*'Debt Dollars FY23'!$C$2","v":0},{"$f":"'Debt allocations'!AC32*'Debt Dollars FY23'!$C$2","v":0},{"$f":"'Debt allocations'!AD32*'Debt Dollars FY23'!$C$2","v":0},{"$f":"'Debt allocations'!AE32*'Debt Dollars FY23'!$C$2","v":0},{"$f":"'Debt allocations'!AF32*'Debt Dollars FY23'!$C$2","v":0},{"$f":"'Debt allocations'!AG32*'Debt Dollars FY23'!$C$2","v":0},{"$f":"'Debt allocations'!AH32*'Debt Dollars FY23'!$C$2","v":0},{"$f":"'Debt allocations'!AI32*'Debt Dollars FY23'!$C$2","v":0},{"$f":"'Debt allocations'!AJ32*'Debt Dollars FY23'!$C$2","v":0},{"$f":"'Debt allocations'!AK32*'Debt Dollars FY23'!$C$2","v":0},{"$f":"'Debt allocations'!AL32*'Debt Dollars FY23'!$C$2","v":0},{"$f":"'Debt allocations'!AM32*'Debt Dollars FY23'!$C$2","v":0},{"$f":"'Debt allocations'!AN32*'Debt Dollars FY23'!$C$2","v":0}]
["102 - Department of Financial Institutions","102","Department of Financial Institutions",9.9999999999999998E-20,1E-8,0,{"$f":"'Debt allocations'!G33*'Debt Dollars FY23'!$C$2","v":0},{"$f":"'Debt allocations'!H33*'Debt Dollars FY23'!$C$2","v":0},{"$f":"'Debt allocations'!I33*'Debt Dollars FY23'!$C$2","v":0},{"$f":"'Debt allocations'!J33*'Debt Dollars FY23'!$C$2","v":0},{"$f":"'Debt allocations'!K33*'Debt Dollars FY23'!$C$2","v":0},{"$f":"'Debt allocations'!L33*'Debt Dollars FY23'!$C$2","v":0},{"$f":"'Debt allocations'!M33*'Debt Dollars FY23'!$C$2","v":0},{"$f":"'Debt allocations'!N33*'Debt Dollars FY23'!$C$2","v":0},{"$f":"'Debt allocations'!O33*'Debt Dollars FY23'!$C$2","v":0},{"$f":"'Debt allocations'!P33*'Debt Dollars FY23'!$C$2","v":0},{"$f":"'Debt allocations'!Q33*'Debt Dollars FY23'!$C$2","v":0},{"$f":"'Debt allocations'!R33*'Debt Dollars FY23'!$C$2","v":0},{"$f":"'Debt allocations'!S33*'Debt Dollars FY23'!$C$2","v":0},{"$f":"'Debt allocations'!T33*'Debt Dollars FY23'!$C$2","v":0},{"$f":"'Debt allocations'!U33*'Debt Dollars FY23'!$C$2","v":0},{"$f":"'Debt allocations'!V33*'Debt Dollars FY23'!$C$2","v":0},{"$f":"'Debt allocations'!W33*'Debt Dollars FY23'!$C$2","v":0},{"$f":"'Debt allocations'!X33*'Debt Dollars FY23'!$C$2","v":0},{"$f":"'Debt allocations'!Y33*'Debt Dollars FY23'!$C$2","v":0},{"$f":"'Debt allocations'!Z33*'Debt Dollars FY23'!$C$2","v":0},{"$f":"'Debt allocations'!AA33*'Debt Dollars FY23'!$C$2","v":0},{"$f":"'Debt allocations'!AB33*'Debt Dollars FY23'!$C$2","v":0},{"$f":"'Debt allocations'!AC33*'Debt Dollars FY23'!$C$2","v":0},{"$f":"'Debt allocations'!AD33*'Debt Dollars FY23'!$C$2","v":0},{"$f":"'Debt allocations'!AE33*'Debt Dollars FY23'!$C$2","v":0},{"$f":"'Debt allocations'!AF33*'Debt Dollars FY23'!$C$2","v":0},{"$f":"'Debt allocations'!AG33*'Debt Dollars FY23'!$C$2","v":0},{"$f":"'Debt allocations'!AH33*'Debt Dollars FY23'!$C$2","v":0},{"$f":"'Debt allocations'!AI33*'Debt Dollars FY23'!$C$2","v":0},{"$f":"'Debt allocations'!AJ33*'Debt Dollars FY23'!$C$2","v":0},{"$f":"'Debt allocations'!AK33*'Debt Dollars FY23'!$C$2","v":0},{"$f":"'Debt allocations'!AL33*'Debt Dollars FY23'!$C$2","v":0},{"$f":"'Debt allocations'!AM33*'Debt Dollars FY23'!$C$2","v":0},{"$f":"'Debt allocations'!AN33*'Debt Dollars FY23'!$C$2","v":0}]
["103 - Department of Commerce","103","Department of Commerce",9.9999999999999998E-20,1E-8,0,{"$f":"'Debt allocations'!G34*'Debt Dollars FY23'!$C$2","v":0},{"$f":"'Debt allocations'!H34*'Debt Dollars FY23'!$C$2","v":0},{"$f":"'Debt allocations'!I34*'Debt Dollars FY23'!$C$2","v":0},{"$f":"'Debt allocations'!J34*'Debt Dollars FY23'!$C$2","v":0},{"$f":"'Debt allocations'!K34*'Debt Dollars FY23'!$C$2","v":0},{"$f":"'Debt allocations'!L34*'Debt Dollars FY23'!$C$2","v":0},{"$f":"'Debt allocations'!M34*'Debt Dollars FY23'!$C$2","v":0},{"$f":"'Debt allocations'!N34*'Debt Dollars FY23'!$C$2","v":0},{"$f":"'Debt allocations'!O34*'Debt Dollars FY23'!$C$2","v":0},{"$f":"'Debt allocations'!P34*'Debt Dollars FY23'!$C$2","v":0},{"$f":"'Debt allocations'!Q34*'Debt Dollars FY23'!$C$2","v":0},{"$f":"'Debt allocations'!R34*'Debt Dollars FY23'!$C$2","v":0},{"$f":"'Debt allocations'!S34*'Debt Dollars FY23'!$C$2","v":0},{"$f":"'Debt allocations'!T34*'Debt Dollars FY23'!$C$2","v":0},{"$f":"'Debt allocations'!U34*'Debt Dollars FY23'!$C$2","v":0},{"$f":"'Debt allocations'!V34*'Debt Dollars FY23'!$C$2","v":0},{"$f":"'Debt allocations'!W34*'Debt Dollars FY23'!$C$2","v":0},{"$f":"'Debt allocations'!X34*'Debt Dollars FY23'!$C$2","v":0},{"$f":"'Debt allocations'!Y34*'Debt Dollars FY23'!$C$2","v":0},{"$f":"'Debt allocations'!Z34*'Debt Dollars FY23'!$C$2","v":0},{"$f":"'Debt allocations'!AA34*'Debt Dollars FY23'!$C$2","v":0},{"$f":"'Debt allocations'!AB34*'Debt Dollars FY23'!$C$2","v":0},{"$f":"'Debt allocations'!AC34*'Debt Dollars FY23'!$C$2","v":0},{"$f":"'Debt allocations'!AD34*'Debt Dollars FY23'!$C$2","v":0},{"$f":"'Debt allocations'!AE34*'Debt Dollars FY23'!$C$2","v":0},{"$f":"'Debt allocations'!AF34*'Debt Dollars FY23'!$C$2","v":0},{"$f":"'Debt allocations'!AG34*'Debt Dollars FY23'!$C$2","v":0},{"$f":"'Debt allocations'!AH34*'Debt Dollars FY23'!$C$2","v":0},{"$f":"'Debt allocations'!AI34*'Debt Dollars FY23'!$C$2","v":0},{"$f":"'Debt allocations'!AJ34*'Debt Dollars FY23'!$C$2","v":0},{"$f":"'Debt allocations'!AK34*'Debt Dollars FY23'!$C$2","v":0},{"$f":"'Debt allocations'!AL34*'Debt Dollars FY23'!$C$2","v":0},{"$f":"'Debt allocations'!AM34*'Debt Dollars FY23'!$C$2","v":0},{"$f":"'Debt allocations'!AN34*'Debt Dollars FY23'!$C$2","v":0}]
["104 - Economic and Revenue Forecast Council","104","Economic and Revenue Forecast Council",9.9999999999999998E-20,1E-8,0,{"$f":"'Debt allocations'!G35*'Debt Dollars FY23'!$C$2","v":0},{"$f":"'Debt allocations'!H35*'Debt Dollars FY23'!$C$2","v":0},{"$f":"'Debt allocations'!I35*'Debt Dollars FY23'!$C$2","v":0},{"$f":"'Debt allocations'!J35*'Debt Dollars FY23'!$C$2","v":0},{"$f":"'Debt allocations'!K35*'Debt Dollars FY23'!$C$2","v":0},{"$f":"'Debt allocations'!L35*'Debt Dollars FY23'!$C$2","v":0},{"$f":"'Debt allocations'!M35*'Debt Dollars FY23'!$C$2","v":0},{"$f":"'Debt allocations'!N35*'Debt Dollars FY23'!$C$2","v":0},{"$f":"'Debt allocations'!O35*'Debt Dollars FY23'!$C$2","v":0},{"$f":"'Debt allocations'!P35*'Debt Dollars FY23'!$C$2","v":0},{"$f":"'Debt allocations'!Q35*'Debt Dollars FY23'!$C$2","v":0},{"$f":"'Debt allocations'!R35*'Debt Dollars FY23'!$C$2","v":0},{"$f":"'Debt allocations'!S35*'Debt Dollars FY23'!$C$2","v":0},{"$f":"'Debt allocations'!T35*'Debt Dollars FY23'!$C$2","v":0},{"$f":"'Debt allocations'!U35*'Debt Dollars FY23'!$C$2","v":0},{"$f":"'Debt allocations'!V35*'Debt Dollars FY23'!$C$2","v":0},{"$f":"'Debt allocations'!W35*'Debt Dollars FY23'!$C$2","v":0},{"$f":"'Debt allocations'!X35*'Debt Dollars FY23'!$C$2","v":0},{"$f":"'Debt allocations'!Y35*'Debt Dollars FY23'!$C$2","v":0},{"$f":"'Debt allocations'!Z35*'Debt Dollars FY23'!$C$2","v":0},{"$f":"'Debt allocations'!AA35*'Debt Dollars FY23'!$C$2","v":0},{"$f":"'Debt allocations'!AB35*'Debt Dollars FY23'!$C$2","v":0},{"$f":"'Debt allocations'!AC35*'Debt Dollars FY23'!$C$2","v":0},{"$f":"'Debt allocations'!AD35*'Debt Dollars FY23'!$C$2","v":0},{"$f":"'Debt allocations'!AE35*'Debt Dollars FY23'!$C$2","v":0},{"$f":"'Debt allocations'!AF35*'Debt Dollars FY23'!$C$2","v":0},{"$f":"'Debt allocations'!AG35*'Debt Dollars FY23'!$C$2","v":0},{"$f":"'Debt allocations'!AH35*'Debt Dollars FY23'!$C$2","v":0},{"$f":"'Debt allocations'!AI35*'Debt Dollars FY23'!$C$2","v":0},{"$f":"'Debt allocations'!AJ35*'Debt Dollars FY23'!$C$2","v":0},{"$f":"'Debt allocations'!AK35*'Debt Dollars FY23'!$C$2","v":0},{"$f":"'Debt allocations'!AL35*'Debt Dollars FY23'!$C$2","v":0},{"$f":"'Debt allocations'!AM35*'Debt Dollars FY23'!$C$2","v":0},{"$f":"'Debt allocations'!AN35*'Debt Dollars FY23'!$C$2","v":0}]
["105 - Office of Financial Management","105","Office of Financial Management",8.3886158190521865E-2,25578,596430.66862076859,{"$f":"'Debt allocations'!G36*'Debt Dollars FY23'!$C$2","v":0},{"$f":"'Debt allocations'!H36*'Debt Dollars FY23'!$C$2","v":0},{"$f":"'Debt allocations'!I36*'Debt Dollars FY23'!$C$2","v":0},{"$f":"'Debt allocations'!J36*'Debt Dollars FY23'!$C$2","v":0},{"$f":"'Debt allocations'!K36*'Debt Dollars FY23'!$C$2","v":0},{"$f":"'Debt allocations'!L36*'Debt Dollars FY23'!$C$2","v":0},{"$f":"'Debt allocations'!M36*'Debt Dollars FY23'!$C$2","v":0},{"$f":"'Debt allocations'!N36*'Debt Dollars FY23'!$C$2","v":0},{"$f":"'Debt allocations'!O36*'Debt Dollars FY23'!$C$2","v":0},{"$f":"'Debt allocations'!P36*'Debt Dollars FY23'!$C$2","v":0},{"$f":"'Debt allocations'!Q36*'Debt Dollars FY23'!$C$2","v":0},{"$f":"'Debt allocations'!R36*'Debt Dollars FY23'!$C$2","v":0},{"$f":"'Debt allocations'!S36*'Debt Dollars FY23'!$C$2","v":0},{"$f":"'Debt allocations'!T36*'Debt Dollars FY23'!$C$2","v":0},{"$f":"'Debt allocations'!U36*'Debt Dollars FY23'!$C$2","v":0},{"$f":"'Debt allocations'!V36*'Debt Dollars FY23'!$C$2","v":0},{"$f":"'Debt allocations'!W36*'Debt Dollars FY23'!$C$2","v":0},{"$f":"'Debt allocations'!X36*'Debt Dollars FY23'!$C$2","v":0},{"$f":"'Debt allocations'!Y36*'Debt Dollars FY23'!$C$2","v":0},{"$f":"'Debt allocations'!Z36*'Debt Dollars FY23'!$C$2","v":3898.8919380080565},{"$f":"'Debt allocations'!AA36*'Debt Dollars FY23'!$C$2","v":0},{"$f":"'Debt allocations'!AB36*'Debt Dollars FY23'!$C$2","v":0},{"$f":"'Debt allocations'!AC36*'Debt Dollars FY23'!$C$2","v":0},{"$f":"'Debt allocations'!AD36*'Debt Dollars FY23'!$C$2","v":0},{"$f":"'Debt allocations'!AE36*'Debt Dollars FY23'!$C$2","v":0},{"$f":"'Debt allocations'!AF36*'Debt Dollars FY23'!$C$2","v":0},{"$f":"'Debt allocations'!AG36*'Debt Dollars FY23'!$C$2","v":0},{"$f":"'Debt allocations'!AH36*'Debt Dollars FY23'!$C$2","v":592531.77668276057},{"$f":"'Debt allocations'!AI36*'Debt Dollars FY23'!$C$2","v":0},{"$f":"'Debt allocations'!AJ36*'Debt Dollars FY23'!$C$2","v":0},{"$f":"'Debt allocations'!AK36*'Debt Dollars FY23'!$C$2","v":0},{"$f":"'Debt allocations'!AL36*'Debt Dollars FY23'!$C$2","v":0},{"$f":"'Debt allocations'!AM36*'Debt Dollars FY23'!$C$2","v":0},{"$f":"'Debt allocations'!AN36*'Debt Dollars FY23'!$C$2","v":0}]
["107 - Washington State Health Care Authority","107","Washington State Health Care Authority",9.9999999999999998E-20,1E-8,0,{"$f":"'Debt allocations'!G37*'Debt Dollars FY23'!$C$2","v":0},{"$f":"'Debt allocations'!H37*'Debt Dollars FY23'!$C$2","v":0},{"$f":"'Debt allocations'!I37*'Debt Dollars FY23'!$C$2","v":0},{"$f":"'Debt allocations'!J37*'Debt Dollars FY23'!$C$2","v":0},{"$f":"'Debt allocations'!K37*'Debt Dollars FY23'!$C$2","v":0},{"$f":"'Debt allocations'!L37*'Debt Dollars FY23'!$C$2","v":0},{"$f":"'Debt allocations'!M37*'Debt Dollars FY23'!$C$2","v":0},{"$f":"'Debt allocations'!N37*'Debt Dollars FY23'!$C$2","v":0},{"$f":"'Debt allocations'!O37*'Debt Dollars FY23'!$C$2","v":0},{"$f":"'Debt allocations'!P37*'Debt Dollars FY23'!$C$2","v":0},{"$f":"'Debt allocations'!Q37*'Debt Dollars FY23'!$C$2","v":0},{"$f":"'Debt allocations'!R37*'Debt Dollars FY23'!$C$2","v":0},{"$f":"'Debt allocations'!S37*'Debt Dollars FY23'!$C$2","v":0},{"$f":"'Debt allocations'!T37*'Debt Dollars FY23'!$C$2","v":0},{"$f":"'Debt allocations'!U37*'Debt Dollars FY23'!$C$2","v":0},{"$f":"'Debt allocations'!V37*'Debt Dollars FY23'!$C$2","v":0},{"$f":"'Debt allocations'!W37*'Debt Dollars FY23'!$C$2","v":0},{"$f":"'Debt allocations'!X37*'Debt Dollars FY23'!$C$2","v":0},{"$f":"'Debt allocations'!Y37*'Debt Dollars FY23'!$C$2","v":0},{"$f":"'Debt allocations'!Z37*'Debt Dollars FY23'!$C$2","v":0},{"$f":"'Debt allocations'!AA37*'Debt Dollars FY23'!$C$2","v":0},{"$f":"'Debt allocations'!AB37*'Debt Dollars FY23'!$C$2","v":0},{"$f":"'Debt allocations'!AC37*'Debt Dollars FY23'!$C$2","v":0},{"$f":"'Debt allocations'!AD37*'Debt Dollars FY23'!$C$2","v":0},{"$f":"'Debt allocations'!AE37*'Debt Dollars FY23'!$C$2","v":0},{"$f":"'Debt allocations'!AF37*'Debt Dollars FY23'!$C$2","v":0},{"$f":"'Debt allocations'!AG37*'Debt Dollars FY23'!$C$2","v":0},{"$f":"'Debt allocations'!AH37*'Debt Dollars FY23'!$C$2","v":0},{"$f":"'Debt allocations'!AI37*'Debt Dollars FY23'!$C$2","v":0},{"$f":"'Debt allocations'!AJ37*'Debt Dollars FY23'!$C$2","v":0},{"$f":"'Debt allocations'!AK37*'Debt Dollars FY23'!$C$2","v":0},{"$f":"'Debt allocations'!AL37*'Debt Dollars FY23'!$C$2","v":0},{"$f":"'Debt allocations'!AM37*'Debt Dollars FY23'!$C$2","v":0},{"$f":"'Debt allocations'!AN37*'Debt Dollars FY23'!$C$2","v":0}]
["110 - Office of Administrative Hearings","110","Office of Administrative Hearings",4.1727530178473551E-3,11256,29668.278129647719,{"$f":"'Debt allocations'!G38*'Debt Dollars FY23'!$C$2","v":0},{"$f":"'Debt allocations'!H38*'Debt Dollars FY23'!$C$2","v":0},{"$f":"'Debt allocations'!I38*'Debt Dollars FY23'!$C$2","v":0},{"$f":"'Debt allocations'!J38*'Debt Dollars FY23'!$C$2","v":0},{"$f":"'Debt allocations'!K38*'Debt Dollars FY23'!$C$2","v":0},{"$f":"'Debt allocations'!L38*'Debt Dollars FY23'!$C$2","v":0},{"$f":"'Debt allocations'!M38*'Debt Dollars FY23'!$C$2","v":0},{"$f":"'Debt allocations'!N38*'Debt Dollars FY23'!$C$2","v":0},{"$f":"'Debt allocations'!O38*'Debt Dollars FY23'!$C$2","v":0},{"$f":"'Debt allocations'!P38*'Debt Dollars FY23'!$C$2","v":0},{"$f":"'Debt allocations'!Q38*'Debt Dollars FY23'!$C$2","v":0},{"$f":"'Debt allocations'!R38*'Debt Dollars FY23'!$C$2","v":0},{"$f":"'Debt allocations'!S38*'Debt Dollars FY23'!$C$2","v":0},{"$f":"'Debt allocations'!T38*'Debt Dollars FY23'!$C$2","v":0},{"$f":"'Debt allocations'!U38*'Debt Dollars FY23'!$C$2","v":0},{"$f":"'Debt allocations'!V38*'Debt Dollars FY23'!$C$2","v":0},{"$f":"'Debt allocations'!W38*'Debt Dollars FY23'!$C$2","v":0},{"$f":"'Debt allocations'!X38*'Debt Dollars FY23'!$C$2","v":0},{"$f":"'Debt allocations'!Y38*'Debt Dollars FY23'!$C$2","v":0},{"$f":"'Debt allocations'!Z38*'Debt Dollars FY23'!$C$2","v":0},{"$f":"'Debt allocations'!AA38*'Debt Dollars FY23'!$C$2","v":0},{"$f":"'Debt allocations'!AB38*'Debt Dollars FY23'!$C$2","v":0},{"$f":"'Debt allocations'!AC38*'Debt Dollars FY23'!$C$2","v":0},{"$f":"'Debt allocations'!AD38*'Debt Dollars FY23'!$C$2","v":0},{"$f":"'Debt allocations'!AE38*'Debt Dollars FY23'!$C$2","v":0},{"$f":"'Debt allocations'!AF38*'Debt Dollars FY23'!$C$2","v":0},{"$f":"'Debt allocations'!AG38*'Debt Dollars FY23'!$C$2","v":0},{"$f":"'Debt allocations'!AH38*'Debt Dollars FY23'!$C$2","v":0},{"$f":"'Debt allocations'!AI38*'Debt Dollars FY23'!$C$2","v":0},{"$f":"'Debt allocations'!AJ38*'Debt Dollars FY23'!$C$2","v":0},{"$f":"'Debt allocations'!AK38*'Debt Dollars FY23'!$C$2","v":0},{"$f":"'Debt allocations'!AL38*'Debt Dollars FY23'!$C$2","v":29668.278129647719},{"$f":"'Debt allocations'!AM38*'Debt Dollars FY23'!$C$2","v":0},{"$f":"'Debt allocations'!AN38*'Debt Dollars FY23'!$C$2","v":0}]
["116 - State Lottery","116","State Lottery",9.9999999999999998E-20,1E-8,0,{"$f":"'Debt allocations'!G39*'Debt Dollars FY23'!$C$2","v":0},{"$f":"'Debt allocations'!H39*'Debt Dollars FY23'!$C$2","v":0},{"$f":"'Debt allocations'!I39*'Debt Dollars FY23'!$C$2","v":0},{"$f":"'Debt allocations'!J39*'Debt Dollars FY23'!$C$2","v":0},{"$f":"'Debt allocations'!K39*'Debt Dollars FY23'!$C$2","v":0},{"$f":"'Debt allocations'!L39*'Debt Dollars FY23'!$C$2","v":0},{"$f":"'Debt allocations'!M39*'Debt Dollars FY23'!$C$2","v":0},{"$f":"'Debt allocations'!N39*'Debt Dollars FY23'!$C$2","v":0},{"$f":"'Debt allocations'!O39*'Debt Dollars FY23'!$C$2","v":0},{"$f":"'Debt allocations'!P39*'Debt Dollars FY23'!$C$2","v":0},{"$f":"'Debt allocations'!Q39*'Debt Dollars FY23'!$C$2","v":0},{"$f":"'Debt allocations'!R39*'Debt Dollars FY23'!$C$2","v":0},{"$f":"'Debt allocations'!S39*'Debt Dollars FY23'!$C$2","v":0},{"$f":"'Debt allocations'!T39*'Debt Dollars FY23'!$C$2","v":0},{"$f":"'Debt allocations'!U39*'Debt Dollars FY23'!$C$2","v":0},{"$f":"'Debt allocations'!V39*'Debt Dollars FY23'!$C$2","v":0},{"$f":"'Debt allocations'!W39*'Debt Dollars FY23'!$C$2","v":0},{"$f":"'Debt allocations'!X39*'Debt Dollars FY23'!$C$2","v":0},{"$f":"'Debt allocations'!Y39*'Debt Dollars FY23'!$C$2","v":0},{"$f":"'Debt allocations'!Z39*'Debt Dollars FY23'!$C$2","v":0},{"$f":"'Debt allocations'!AA39*'Debt Dollars FY23'!$C$2","v":0},{"$f":"'Debt allocations'!AB39*'Debt Dollars FY23'!$C$2","v":0},{"$f":"'Debt allocations'!AC39*'Debt Dollars FY23'!$C$2","v":0},{"$f":"'Debt allocations'!AD39*'Debt Dollars FY23'!$C$2","v":0},{"$f":"'Debt allocations'!AE39*'Debt Dollars FY23'!$C$2","v":0},{"$f":"'Debt allocations'!AF39*'Debt Dollars FY23'!$C$2","v":0},{"$f":"'Debt allocations'!AG39*'Debt Dollars FY23'!$C$2","v":0},{"$f":"'Debt allocations'!AH39*'Debt Dollars FY23'!$C$2","v":0},{"$f":"'Debt allocations'!AI39*'Debt Dollars FY23'!$C$2","v":0},{"$f":"'Debt allocations'!AJ39*'Debt Dollars FY23'!$C$2","v":0},{"$f":"'Debt allocations'!AK39*'Debt Dollars FY23'!$C$2","v":0},{"$f":"'Debt allocations'!AL39*'Debt Dollars FY23'!$C$2","v":0},{"$f":"'Debt allocations'!AM39*'Debt Dollars FY23'!$C$2","v":0},{"$f":"'Debt allocations'!AN39*'Debt Dollars FY23'!$C$2","v":0}]
["117 - Washington State Gambling Commission","117","Washington State Gambling Commission",9.9999999999999998E-20,1E-8,0,{"$f":"'Debt allocations'!G40*'Debt Dollars FY23'!$C$2","v":0},{"$f":"'Debt allocations'!H40*'Debt Dollars FY23'!$C$2","v":0},{"$f":"'Debt allocations'!I40*'Debt Dollars FY23'!$C$2","v":0},{"$f":"'Debt allocations'!J40*'Debt Dollars FY23'!$C$2","v":0},{"$f":"'Debt allocations'!K40*'Debt Dollars FY23'!$C$2","v":0},{"$f":"'Debt allocations'!L40*'Debt Dollars FY23'!$C$2","v":0},{"$f":"'Debt allocations'!M40*'Debt Dollars FY23'!$C$2","v":0},{"$f":"'Debt allocations'!N40*'Debt Dollars FY23'!$C$2","v":0},{"$f":"'Debt allocations'!O40*'Debt Dollars FY23'!$C$2","v":0},{"$f":"'Debt allocations'!P40*'Debt Dollars FY23'!$C$2","v":0},{"$f":"'Debt allocations'!Q40*'Debt Dollars FY23'!$C$2","v":0},{"$f":"'Debt allocations'!R40*'Debt Dollars FY23'!$C$2","v":0},{"$f":"'Debt allocations'!S40*'Debt Dollars FY23'!$C$2","v":0},{"$f":"'Debt allocations'!T40*'Debt Dollars FY23'!$C$2","v":0},{"$f":"'Debt allocations'!U40*'Debt Dollars FY23'!$C$2","v":0},{"$f":"'Debt allocations'!V40*'Debt Dollars FY23'!$C$2","v":0},{"$f":"'Debt allocations'!W40*'Debt Dollars FY23'!$C$2","v":0},{"$f":"'Debt allocations'!X40*'Debt Dollars FY23'!$C$2","v":0},{"$f":"'Debt allocations'!Y40*'Debt Dollars FY23'!$C$2","v":0},{"$f":"'Debt allocations'!Z40*'Debt Dollars FY23'!$C$2","v":0},{"$f":"'Debt allocations'!AA40*'Debt Dollars FY23'!$C$2","v":0},{"$f":"'Debt allocations'!AB40*'Debt Dollars FY23'!$C$2","v":0},{"$f":"'Debt allocations'!AC40*'Debt Dollars FY23'!$C$2","v":0},{"$f":"'Debt allocations'!AD40*'Debt Dollars FY23'!$C$2","v":0},{"$f":"'Debt allocations'!AE40*'Debt Dollars FY23'!$C$2","v":0},{"$f":"'Debt allocations'!AF40*'Debt Dollars FY23'!$C$2","v":0},{"$f":"'Debt allocations'!AG40*'Debt Dollars FY23'!$C$2","v":0},{"$f":"'Debt allocations'!AH40*'Debt Dollars FY23'!$C$2","v":0},{"$f":"'Debt allocations'!AI40*'Debt Dollars FY23'!$C$2","v":0},{"$f":"'Debt allocations'!AJ40*'Debt Dollars FY23'!$C$2","v":0},{"$f":"'Debt allocations'!AK40*'Debt Dollars FY23'!$C$2","v":0},{"$f":"'Debt allocations'!AL40*'Debt Dollars FY23'!$C$2","v":0},{"$f":"'Debt allocations'!AM40*'Debt Dollars FY23'!$C$2","v":0},{"$f":"'Debt allocations'!AN40*'Debt Dollars FY23'!$C$2","v":0}]
["118 - Commission on Hispanic Affairs","118","Commission on Hispanic Affairs",6.7702570263325479E-4,863,4813.6534227481434,{"$f":"'Debt allocations'!G41*'Debt Dollars FY23'!$C$2","v":0},{"$f":"'Debt allocations'!H41*'Debt Dollars FY23'!$C$2","v":0},{"$f":"'Debt allocations'!I41*'Debt Dollars FY23'!$C$2","v":0},{"$f":"'Debt allocations'!J41*'Debt Dollars FY23'!$C$2","v":0},{"$f":"'Debt allocations'!K41*'Debt Dollars FY23'!$C$2","v":0},{"$f":"'Debt allocations'!L41*'Debt Dollars FY23'!$C$2","v":0},{"$f":"'Debt allocations'!M41*'Debt Dollars FY23'!$C$2","v":0},{"$f":"'Debt allocations'!N41*'Debt Dollars FY23'!$C$2","v":0},{"$f":"'Debt allocations'!O41*'Debt Dollars FY23'!$C$2","v":0},{"$f":"'Debt allocations'!P41*'Debt Dollars FY23'!$C$2","v":0},{"$f":"'Debt allocations'!Q41*'Debt Dollars FY23'!$C$2","v":0},{"$f":"'Debt allocations'!R41*'Debt Dollars FY23'!$C$2","v":0},{"$f":"'Debt allocations'!S41*'Debt Dollars FY23'!$C$2","v":0},{"$f":"'Debt allocations'!T41*'Debt Dollars FY23'!$C$2","v":0},{"$f":"'Debt allocations'!U41*'Debt Dollars FY23'!$C$2","v":0},{"$f":"'Debt allocations'!V41*'Debt Dollars FY23'!$C$2","v":0},{"$f":"'Debt allocations'!W41*'Debt Dollars FY23'!$C$2","v":0},{"$f":"'Debt allocations'!X41*'Debt Dollars FY23'!$C$2","v":0},{"$f":"'Debt allocations'!Y41*'Debt Dollars FY23'!$C$2","v":0},{"$f":"'Debt allocations'!Z41*'Debt Dollars FY23'!$C$2","v":4813.6534227481434},{"$f":"'Debt allocations'!AA41*'Debt Dollars FY23'!$C$2","v":0},{"$f":"'Debt allocations'!AB41*'Debt Dollars FY23'!$C$2","v":0},{"$f":"'Debt allocations'!AC41*'Debt Dollars FY23'!$C$2","v":0},{"$f":"'Debt allocations'!AD41*'Debt Dollars FY23'!$C$2","v":0},{"$f":"'Debt allocations'!AE41*'Debt Dollars FY23'!$C$2","v":0},{"$f":"'Debt allocations'!AF41*'Debt Dollars FY23'!$C$2","v":0},{"$f":"'Debt allocations'!AG41*'Debt Dollars FY23'!$C$2","v":0},{"$f":"'Debt allocations'!AH41*'Debt Dollars FY23'!$C$2","v":0},{"$f":"'Debt allocations'!AI41*'Debt Dollars FY23'!$C$2","v":0},{"$f":"'Debt allocations'!AJ41*'Debt Dollars FY23'!$C$2","v":0},{"$f":"'Debt allocations'!AK41*'Debt Dollars FY23'!$C$2","v":0},{"$f":"'Debt allocations'!AL41*'Debt Dollars FY23'!$C$2","v":0},{"$f":"'Debt allocations'!AM41*'Debt Dollars FY23'!$C$2","v":0},{"$f":"'Debt allocations'!AN41*'Debt Dollars FY23'!$C$2","v":0}]
["119 - Commission on African-American Affairs","119","Commission on African-American Affairs",6.7702570263325479E-4,863,4813.6534227481434,{"$f":"'Debt allocations'!G42*'Debt Dollars FY23'!$C$2","v":0},{"$f":"'Debt allocations'!H42*'Debt Dollars FY23'!$C$2","v":0},{"$f":"'Debt allocations'!I42*'Debt Dollars FY23'!$C$2","v":0},{"$f":"'Debt allocations'!J42*'Debt Dollars FY23'!$C$2","v":0},{"$f":"'Debt allocations'!K42*'Debt Dollars FY23'!$C$2","v":0},{"$f":"'Debt allocations'!L42*'Debt Dollars FY23'!$C$2","v":0},{"$f":"'Debt allocations'!M42*'Debt Dollars FY23'!$C$2","v":0},{"$f":"'Debt allocations'!N42*'Debt Dollars FY23'!$C$2","v":0},{"$f":"'Debt allocations'!O42*'Debt Dollars FY23'!$C$2","v":0},{"$f":"'Debt allocations'!P42*'Debt Dollars FY23'!$C$2","v":0},{"$f":"'Debt allocations'!Q42*'Debt Dollars FY23'!$C$2","v":0},{"$f":"'Debt allocations'!R42*'Debt Dollars FY23'!$C$2","v":0},{"$f":"'Debt allocations'!S42*'Debt Dollars FY23'!$C$2","v":0},{"$f":"'Debt allocations'!T42*'Debt Dollars FY23'!$C$2","v":0},{"$f":"'Debt allocations'!U42*'Debt Dollars FY23'!$C$2","v":0},{"$f":"'Debt allocations'!V42*'Debt Dollars FY23'!$C$2","v":0},{"$f":"'Debt allocations'!W42*'Debt Dollars FY23'!$C$2","v":0},{"$f":"'Debt allocations'!X42*'Debt Dollars FY23'!$C$2","v":0},{"$f":"'Debt allocations'!Y42*'Debt Dollars FY23'!$C$2","v":0},{"$f":"'Debt allocations'!Z42*'Debt Dollars FY23'!$C$2","v":4813.6534227481434},{"$f":"'Debt allocations'!AA42*'Debt Dollars FY23'!$C$2","v":0},{"$f":"'Debt allocations'!AB42*'Debt Dollars FY23'!$C$2","v":0},{"$f":"'Debt allocations'!AC42*'Debt Dollars FY23'!$C$2","v":0},{"$f":"'Debt allocations'!AD42*'Debt Dollars FY23'!$C$2","v":0},{"$f":"'Debt allocations'!AE42*'Debt Dollars FY23'!$C$2","v":0},{"$f":"'Debt allocations'!AF42*'Debt Dollars FY23'!$C$2","v":0},{"$f":"'Debt allocations'!AG42*'Debt Dollars FY23'!$C$2","v":0},{"$f":"'Debt allocations'!AH42*'Debt Dollars FY23'!$C$2","v":0},{"$f":"'Debt allocations'!AI42*'Debt Dollars FY23'!$C$2","v":0},{"$f":"'Debt allocations'!AJ42*'Debt Dollars FY23'!$C$2","v":0},{"$f":"'Debt allocations'!AK42*'Debt Dollars FY23'!$C$2","v":0},{"$f":"'Debt allocations'!AL42*'Debt Dollars FY23'!$C$2","v":0},{"$f":"'Debt allocations'!AM42*'Debt Dollars FY23'!$C$2","v":0},{"$f":"'Debt allocations'!AN42*'Debt Dollars FY23'!$C$2","v":0}]
["120 - Human Rights Commission","120","Human Rights Commission",9.9999999999999998E-20,1E-8,0,{"$f":"'Debt allocations'!G43*'Debt Dollars FY23'!$C$2","v":0},{"$f":"'Debt allocations'!H43*'Debt Dollars FY23'!$C$2","v":0},{"$f":"'Debt allocations'!I43*'Debt Dollars FY23'!$C$2","v":0},{"$f":"'Debt allocations'!J43*'Debt Dollars FY23'!$C$2","v":0},{"$f":"'Debt allocations'!K43*'Debt Dollars FY23'!$C$2","v":0},{"$f":"'Debt allocations'!L43*'Debt Dollars FY23'!$C$2","v":0},{"$f":"'Debt allocations'!M43*'Debt Dollars FY23'!$C$2","v":0},{"$f":"'Debt allocations'!N43*'Debt Dollars FY23'!$C$2","v":0},{"$f":"'Debt allocations'!O43*'Debt Dollars FY23'!$C$2","v":0},{"$f":"'Debt allocations'!P43*'Debt Dollars FY23'!$C$2","v":0},{"$f":"'Debt allocations'!Q43*'Debt Dollars FY23'!$C$2","v":0},{"$f":"'Debt allocations'!R43*'Debt Dollars FY23'!$C$2","v":0},{"$f":"'Debt allocations'!S43*'Debt Dollars FY23'!$C$2","v":0},{"$f":"'Debt allocations'!T43*'Debt Dollars FY23'!$C$2","v":0},{"$f":"'Debt allocations'!U43*'Debt Dollars FY23'!$C$2","v":0},{"$f":"'Debt allocations'!V43*'Debt Dollars FY23'!$C$2","v":0},{"$f":"'Debt allocations'!W43*'Debt Dollars FY23'!$C$2","v":0},{"$f":"'Debt allocations'!X43*'Debt Dollars FY23'!$C$2","v":0},{"$f":"'Debt allocations'!Y43*'Debt Dollars FY23'!$C$2","v":0},{"$f":"'Debt allocations'!Z43*'Debt Dollars FY23'!$C$2","v":0},{"$f":"'Debt allocations'!AA43*'Debt Dollars FY23'!$C$2","v":0},{"$f":"'Debt allocations'!AB43*'Debt Dollars FY23'!$C$2","v":0},{"$f":"'Debt allocations'!AC43*'Debt Dollars FY23'!$C$2","v":0},{"$f":"'Debt allocations'!AD43*'Debt Dollars FY23'!$C$2","v":0},{"$f":"'Debt allocations'!AE43*'Debt Dollars FY23'!$C$2","v":0},{"$f":"'Debt allocations'!AF43*'Debt Dollars FY23'!$C$2","v":0},{"$f":"'Debt allocations'!AG43*'Debt Dollars FY23'!$C$2","v":0},{"$f":"'Debt allocations'!AH43*'Debt Dollars FY23'!$C$2","v":0},{"$f":"'Debt allocations'!AI43*'Debt Dollars FY23'!$C$2","v":0},{"$f":"'Debt allocations'!AJ43*'Debt Dollars FY23'!$C$2","v":0},{"$f":"'Debt allocations'!AK43*'Debt Dollars FY23'!$C$2","v":0},{"$f":"'Debt allocations'!AL43*'Debt Dollars FY23'!$C$2","v":0},{"$f":"'Debt allocations'!AM43*'Debt Dollars FY23'!$C$2","v":0},{"$f":"'Debt allocations'!AN43*'Debt Dollars FY23'!$C$2","v":0}]
["124 - Department of Retirement Systems","124","Department of Retirement Systems",9.9999999999999998E-20,1E-8,0,{"$f":"'Debt allocations'!G44*'Debt Dollars FY23'!$C$2","v":0},{"$f":"'Debt allocations'!H44*'Debt Dollars FY23'!$C$2","v":0},{"$f":"'Debt allocations'!I44*'Debt Dollars FY23'!$C$2","v":0},{"$f":"'Debt allocations'!J44*'Debt Dollars FY23'!$C$2","v":0},{"$f":"'Debt allocations'!K44*'Debt Dollars FY23'!$C$2","v":0},{"$f":"'Debt allocations'!L44*'Debt Dollars FY23'!$C$2","v":0},{"$f":"'Debt allocations'!M44*'Debt Dollars FY23'!$C$2","v":0},{"$f":"'Debt allocations'!N44*'Debt Dollars FY23'!$C$2","v":0},{"$f":"'Debt allocations'!O44*'Debt Dollars FY23'!$C$2","v":0},{"$f":"'Debt allocations'!P44*'Debt Dollars FY23'!$C$2","v":0},{"$f":"'Debt allocations'!Q44*'Debt Dollars FY23'!$C$2","v":0},{"$f":"'Debt allocations'!R44*'Debt Dollars FY23'!$C$2","v":0},{"$f":"'Debt allocations'!S44*'Debt Dollars FY23'!$C$2","v":0},{"$f":"'Debt allocations'!T44*'Debt Dollars FY23'!$C$2","v":0},{"$f":"'Debt allocations'!U44*'Debt Dollars FY23'!$C$2","v":0},{"$f":"'Debt allocations'!V44*'Debt Dollars FY23'!$C$2","v":0},{"$f":"'Debt allocations'!W44*'Debt Dollars FY23'!$C$2","v":0},{"$f":"'Debt allocations'!X44*'Debt Dollars FY23'!$C$2","v":0},{"$f":"'Debt allocations'!Y44*'Debt Dollars FY23'!$C$2","v":0},{"$f":"'Debt allocations'!Z44*'Debt Dollars FY23'!$C$2","v":0},{"$f":"'Debt allocations'!AA44*'Debt Dollars FY23'!$C$2","v":0},{"$f":"'Debt allocations'!AB44*'Debt Dollars FY23'!$C$2","v":0},{"$f":"'Debt allocations'!AC44*'Debt Dollars FY23'!$C$2","v":0},{"$f":"'Debt allocations'!AD44*'Debt Dollars FY23'!$C$2","v":0},{"$f":"'Debt allocations'!AE44*'Debt Dollars FY23'!$C$2","v":0},{"$f":"'Debt allocations'!AF44*'Debt Dollars FY23'!$C$2","v":0},{"$f":"'Debt allocations'!AG44*'Debt Dollars FY23'!$C$2","v":0},{"$f":"'Debt allocations'!AH44*'Debt Dollars FY23'!$C$2","v":0},{"$f":"'Debt allocations'!AI44*'Debt Dollars FY23'!$C$2","v":0},{"$f":"'Debt allocations'!AJ44*'Debt Dollars FY23'!$C$2","v":0},{"$f":"'Debt allocations'!AK44*'Debt Dollars FY23'!$C$2","v":0},{"$f":"'Debt allocations'!AL44*'Debt Dollars FY23'!$C$2","v":0},{"$f":"'Debt allocations'!AM44*'Debt Dollars FY23'!$C$2","v":0},{"$f":"'Debt allocations'!AN44*'Debt Dollars FY23'!$C$2","v":0}]
["126 - State Investment Board","126","State Investment Board",9.9999999999999998E-20,1E-8,0,{"$f":"'Debt allocations'!G45*'Debt Dollars FY23'!$C$2","v":0},{"$f":"'Debt allocations'!H45*'Debt Dollars FY23'!$C$2","v":0},{"$f":"'Debt allocations'!I45*'Debt Dollars FY23'!$C$2","v":0},{"$f":"'Debt allocations'!J45*'Debt Dollars FY23'!$C$2","v":0},{"$f":"'Debt allocations'!K45*'Debt Dollars FY23'!$C$2","v":0},{"$f":"'Debt allocations'!L45*'Debt Dollars FY23'!$C$2","v":0},{"$f":"'Debt allocations'!M45*'Debt Dollars FY23'!$C$2","v":0},{"$f":"'Debt allocations'!N45*'Debt Dollars FY23'!$C$2","v":0},{"$f":"'Debt allocations'!O45*'Debt Dollars FY23'!$C$2","v":0},{"$f":"'Debt allocations'!P45*'Debt Dollars FY23'!$C$2","v":0},{"$f":"'Debt allocations'!Q45*'Debt Dollars FY23'!$C$2","v":0},{"$f":"'Debt allocations'!R45*'Debt Dollars FY23'!$C$2","v":0},{"$f":"'Debt allocations'!S45*'Debt Dollars FY23'!$C$2","v":0},{"$f":"'Debt allocations'!T45*'Debt Dollars FY23'!$C$2","v":0},{"$f":"'Debt allocations'!U45*'Debt Dollars FY23'!$C$2","v":0},{"$f":"'Debt allocations'!V45*'Debt Dollars FY23'!$C$2","v":0},{"$f":"'Debt allocations'!W45*'Debt Dollars FY23'!$C$2","v":0},{"$f":"'Debt allocations'!X45*'Debt Dollars FY23'!$C$2","v":0},{"$f":"'Debt allocations'!Y45*'Debt Dollars FY23'!$C$2","v":0},{"$f":"'Debt allocations'!Z45*'Debt Dollars FY23'!$C$2","v":0},{"$f":"'Debt allocations'!AA45*'Debt Dollars FY23'!$C$2","v":0},{"$f":"'Debt allocations'!AB45*'Debt Dollars FY23'!$C$2","v":0},{"$f":"'Debt allocations'!AC45*'Debt Dollars FY23'!$C$2","v":0},{"$f":"'Debt allocations'!AD45*'Debt Dollars FY23'!$C$2","v":0},{"$f":"'Debt allocations'!AE45*'Debt Dollars FY23'!$C$2","v":0},{"$f":"'Debt allocations'!AF45*'Debt Dollars FY23'!$C$2","v":0},{"$f":"'Debt allocations'!AG45*'Debt Dollars FY23'!$C$2","v":0},{"$f":"'Debt allocations'!AH45*'Debt Dollars FY23'!$C$2","v":0},{"$f":"'Debt allocations'!AI45*'Debt Dollars FY23'!$C$2","v":0},{"$f":"'Debt allocations'!AJ45*'Debt Dollars FY23'!$C$2","v":0},{"$f":"'Debt allocations'!AK45*'Debt Dollars FY23'!$C$2","v":0},{"$f":"'Debt allocations'!AL45*'Debt Dollars FY23'!$C$2","v":0},{"$f":"'Debt allocations'!AM45*'Debt Dollars FY23'!$C$2","v":0},{"$f":"'Debt allocations'!AN45*'Debt Dollars FY23'!$C$2","v":0}]
["140 - Department of Revenue","140","Department of Revenue",9.9999999999999998E-20,1E-8,0,{"$f":"'Debt allocations'!G46*'Debt Dollars FY23'!$C$2","v":0},{"$f":"'Debt allocations'!H46*'Debt Dollars FY23'!$C$2","v":0},{"$f":"'Debt allocations'!I46*'Debt Dollars FY23'!$C$2","v":0},{"$f":"'Debt allocations'!J46*'Debt Dollars FY23'!$C$2","v":0},{"$f":"'Debt allocations'!K46*'Debt Dollars FY23'!$C$2","v":0},{"$f":"'Debt allocations'!L46*'Debt Dollars FY23'!$C$2","v":0},{"$f":"'Debt allocations'!M46*'Debt Dollars FY23'!$C$2","v":0},{"$f":"'Debt allocations'!N46*'Debt Dollars FY23'!$C$2","v":0},{"$f":"'Debt allocations'!O46*'Debt Dollars FY23'!$C$2","v":0},{"$f":"'Debt allocations'!P46*'Debt Dollars FY23'!$C$2","v":0},{"$f":"'Debt allocations'!Q46*'Debt Dollars FY23'!$C$2","v":0},{"$f":"'Debt allocations'!R46*'Debt Dollars FY23'!$C$2","v":0},{"$f":"'Debt allocations'!S46*'Debt Dollars FY23'!$C$2","v":0},{"$f":"'Debt allocations'!T46*'Debt Dollars FY23'!$C$2","v":0},{"$f":"'Debt allocations'!U46*'Debt Dollars FY23'!$C$2","v":0},{"$f":"'Debt allocations'!V46*'Debt Dollars FY23'!$C$2","v":0},{"$f":"'Debt allocations'!W46*'Debt Dollars FY23'!$C$2","v":0},{"$f":"'Debt allocations'!X46*'Debt Dollars FY23'!$C$2","v":0},{"$f":"'Debt allocations'!Y46*'Debt Dollars FY23'!$C$2","v":0},{"$f":"'Debt allocations'!Z46*'Debt Dollars FY23'!$C$2","v":0},{"$f":"'Debt allocations'!AA46*'Debt Dollars FY23'!$C$2","v":0},{"$f":"'Debt allocations'!AB46*'Debt Dollars FY23'!$C$2","v":0},{"$f":"'Debt allocations'!AC46*'Debt Dollars FY23'!$C$2","v":0},{"$f":"'Debt allocations'!AD46*'Debt Dollars FY23'!$C$2","v":0},{"$f":"'Debt allocations'!AE46*'Debt Dollars FY23'!$C$2","v":0},{"$f":"'Debt allocations'!AF46*'Debt Dollars FY23'!$C$2","v":0},{"$f":"'Debt allocations'!AG46*'Debt Dollars FY23'!$C$2","v":0},{"$f":"'Debt allocations'!AH46*'Debt Dollars FY23'!$C$2","v":0},{"$f":"'Debt allocations'!AI46*'Debt Dollars FY23'!$C$2","v":0},{"$f":"'Debt allocations'!AJ46*'Debt Dollars FY23'!$C$2","v":0},{"$f":"'Debt allocations'!AK46*'Debt Dollars FY23'!$C$2","v":0},{"$f":"'Debt allocations'!AL46*'Debt Dollars FY23'!$C$2","v":0},{"$f":"'Debt allocations'!AM46*'Debt Dollars FY23'!$C$2","v":0},{"$f":"'Debt allocations'!AN46*'Debt Dollars FY23'!$C$2","v":0}]
["142 - Board of Tax Appeals","142","Board of Tax Appeals",3.6636269192320968E-3,4670,26048.391059367128,{"$f":"'Debt allocations'!G47*'Debt Dollars FY23'!$C$2","v":0},{"$f":"'Debt allocations'!H47*'Debt Dollars FY23'!$C$2","v":0},{"$f":"'Debt allocations'!I47*'Debt Dollars FY23'!$C$2","v":0},{"$f":"'Debt allocations'!J47*'Debt Dollars FY23'!$C$2","v":0},{"$f":"'Debt allocations'!K47*'Debt Dollars FY23'!$C$2","v":0},{"$f":"'Debt allocations'!L47*'Debt Dollars FY23'!$C$2","v":0},{"$f":"'Debt allocations'!M47*'Debt Dollars FY23'!$C$2","v":0},{"$f":"'Debt allocations'!N47*'Debt Dollars FY23'!$C$2","v":0},{"$f":"'Debt allocations'!O47*'Debt Dollars FY23'!$C$2","v":0},{"$f":"'Debt allocations'!P47*'Debt Dollars FY23'!$C$2","v":0},{"$f":"'Debt allocations'!Q47*'Debt Dollars FY23'!$C$2","v":0},{"$f":"'Debt allocations'!R47*'Debt Dollars FY23'!$C$2","v":0},{"$f":"'Debt allocations'!S47*'Debt Dollars FY23'!$C$2","v":0},{"$f":"'Debt allocations'!T47*'Debt Dollars FY23'!$C$2","v":0},{"$f":"'Debt allocations'!U47*'Debt Dollars FY23'!$C$2","v":0},{"$f":"'Debt allocations'!V47*'Debt Dollars FY23'!$C$2","v":0},{"$f":"'Debt allocations'!W47*'Debt Dollars FY23'!$C$2","v":0},{"$f":"'Debt allocations'!X47*'Debt Dollars FY23'!$C$2","v":0},{"$f":"'Debt allocations'!Y47*'Debt Dollars FY23'!$C$2","v":0},{"$f":"'Debt allocations'!Z47*'Debt Dollars FY23'!$C$2","v":26048.391059367128},{"$f":"'Debt allocations'!AA47*'Debt Dollars FY23'!$C$2","v":0},{"$f":"'Debt allocations'!AB47*'Debt Dollars FY23'!$C$2","v":0},{"$f":"'Debt allocations'!AC47*'Debt Dollars FY23'!$C$2","v":0},{"$f":"'Debt allocations'!AD47*'Debt Dollars FY23'!$C$2","v":0},{"$f":"'Debt allocations'!AE47*'Debt Dollars FY23'!$C$2","v":0},{"$f":"'Debt allocations'!AF47*'Debt Dollars FY23'!$C$2","v":0},{"$f":"'Debt allocations'!AG47*'Debt Dollars FY23'!$C$2","v":0},{"$f":"'Debt allocations'!AH47*'Debt Dollars FY23'!$C$2","v":0},{"$f":"'Debt allocations'!AI47*'Debt Dollars FY23'!$C$2","v":0},{"$f":"'Debt allocations'!AJ47*'Debt Dollars FY23'!$C$2","v":0},{"$f":"'Debt allocations'!AK47*'Debt Dollars FY23'!$C$2","v":0},{"$f":"'Debt allocations'!AL47*'Debt Dollars FY23'!$C$2","v":0},{"$f":"'Debt allocations'!AM47*'Debt Dollars FY23'!$C$2","v":0},{"$f":"'Debt allocations'!AN47*'Debt Dollars FY23'!$C$2","v":0}]
["147 - Office of Minority and Women's Business Enterprises","147","Office of Minority and Women's Business Enterprises",3.7805177995245132E-3,4819,26879.485335137088,{"$f":"'Debt allocations'!G48*'Debt Dollars FY23'!$C$2","v":0},{"$f":"'Debt allocations'!H48*'Debt Dollars FY23'!$C$2","v":0},{"$f":"'Debt allocations'!I48*'Debt Dollars FY23'!$C$2","v":0},{"$f":"'Debt allocations'!J48*'Debt Dollars FY23'!$C$2","v":0},{"$f":"'Debt allocations'!K48*'Debt Dollars FY23'!$C$2","v":0},{"$f":"'Debt allocations'!L48*'Debt Dollars FY23'!$C$2","v":0},{"$f":"'Debt allocations'!M48*'Debt Dollars FY23'!$C$2","v":0},{"$f":"'Debt allocations'!N48*'Debt Dollars FY23'!$C$2","v":0},{"$f":"'Debt allocations'!O48*'Debt Dollars FY23'!$C$2","v":0},{"$f":"'Debt allocations'!P48*'Debt Dollars FY23'!$C$2","v":0},{"$f":"'Debt allocations'!Q48*'Debt Dollars FY23'!$C$2","v":0},{"$f":"'Debt allocations'!R48*'Debt Dollars FY23'!$C$2","v":0},{"$f":"'Debt allocations'!S48*'Debt Dollars FY23'!$C$2","v":0},{"$f":"'Debt allocations'!T48*'Debt Dollars FY23'!$C$2","v":0},{"$f":"'Debt allocations'!U48*'Debt Dollars FY23'!$C$2","v":0},{"$f":"'Debt allocations'!V48*'Debt Dollars FY23'!$C$2","v":0},{"$f":"'Debt allocations'!W48*'Debt Dollars FY23'!$C$2","v":0},{"$f":"'Debt allocations'!X48*'Debt Dollars FY23'!$C$2","v":0},{"$f":"'Debt allocations'!Y48*'Debt Dollars FY23'!$C$2","v":0},{"$f":"'Debt allocations'!Z48*'Debt Dollars FY23'!$C$2","v":26879.485335137088},{"$f":"'Debt allocations'!AA48*'Debt Dollars FY23'!$C$2","v":0},{"$f":"'Debt allocations'!AB48*'Debt Dollars FY23'!$C$2","v":0},{"$f":"'Debt allocations'!AC48*'Debt Dollars FY23'!$C$2","v":0},{"$f":"'Debt allocations'!AD48*'Debt Dollars FY23'!$C$2","v":0},{"$f":"'Debt allocations'!AE48*'Debt Dollars FY23'!$C$2","v":0},{"$f":"'Debt allocations'!AF48*'Debt Dollars FY23'!$C$2","v":0},{"$f":"'Debt allocations'!AG48*'Debt Dollars FY23'!$C$2","v":0},{"$f":"'Debt allocations'!AH48*'Debt Dollars FY23'!$C$2","v":0},{"$f":"'Debt allocations'!AI48*'Debt Dollars FY23'!$C$2","v":0},{"$f":"'Debt allocations'!AJ48*'Debt Dollars FY23'!$C$2","v":0},{"$f":"'Debt allocations'!AK48*'Debt Dollars FY23'!$C$2","v":0},{"$f":"'Debt allocations'!AL48*'Debt Dollars FY23'!$C$2","v":0},{"$f":"'Debt allocations'!AM48*'Debt Dollars FY23'!$C$2","v":0},{"$f":"'Debt allocations'!AN48*'Debt Dollars FY23'!$C$2","v":0}]
["160 - Office of Insurance Commissioner","160","Office of Insurance Commissioner",9.9999999999999998E-20,1E-8,0,{"$f":"'Debt allocations'!G49*'Debt Dollars FY23'!$C$2","v":0},{"$f":"'Debt allocations'!H49*'Debt Dollars FY23'!$C$2","v":0},{"$f":"'Debt allocations'!I49*'Debt Dollars FY23'!$C$2","v":0},{"$f":"'Debt allocations'!J49*'Debt Dollars FY23'!$C$2","v":0},{"$f":"'Debt allocations'!K49*'Debt Dollars FY23'!$C$2","v":0},{"$f":"'Debt allocations'!L49*'Debt Dollars FY23'!$C$2","v":0},{"$f":"'Debt allocations'!M49*'Debt Dollars FY23'!$C$2","v":0},{"$f":"'Debt allocations'!N49*'Debt Dollars FY23'!$C$2","v":0},{"$f":"'Debt allocations'!O49*'Debt Dollars FY23'!$C$2","v":0},{"$f":"'Debt allocations'!P49*'Debt Dollars FY23'!$C$2","v":0},{"$f":"'Debt allocations'!Q49*'Debt Dollars FY23'!$C$2","v":0},{"$f":"'Debt allocations'!R49*'Debt Dollars FY23'!$C$2","v":0},{"$f":"'Debt allocations'!S49*'Debt Dollars FY23'!$C$2","v":0},{"$f":"'Debt allocations'!T49*'Debt Dollars FY23'!$C$2","v":0},{"$f":"'Debt allocations'!U49*'Debt Dollars FY23'!$C$2","v":0},{"$f":"'Debt allocations'!V49*'Debt Dollars FY23'!$C$2","v":0},{"$f":"'Debt allocations'!W49*'Debt Dollars FY23'!$C$2","v":0},{"$f":"'Debt allocations'!X49*'Debt Dollars FY23'!$C$2","v":0},{"$f":"'Debt allocations'!Y49*'Debt Dollars FY23'!$C$2","v":0},{"$f":"'Debt allocations'!Z49*'Debt Dollars FY23'!$C$2","v":0},{"$f":"'Debt allocations'!AA49*'Debt Dollars FY23'!$C$2","v":0},{"$f":"'Debt allocations'!AB49*'Debt Dollars FY23'!$C$2","v":0},{"$f":"'Debt allocations'!AC49*'Debt Dollars FY23'!$C$2","v":0},{"$f":"'Debt allocations'!AD49*'Debt Dollars FY23'!$C$2","v":0},{"$f":"'Debt allocations'!AE49*'Debt Dollars FY23'!$C$2","v":0},{"$f":"'Debt allocations'!AF49*'Debt Dollars FY23'!$C$2","v":0},{"$f":"'Debt allocations'!AG49*'Debt Dollars FY23'!$C$2","v":0},{"$f":"'Debt allocations'!AH49*'Debt Dollars FY23'!$C$2","v":0},{"$f":"'Debt allocations'!AI49*'Debt Dollars FY23'!$C$2","v":0},{"$f":"'Debt allocations'!AJ49*'Debt Dollars FY23'!$C$2","v":0},{"$f":"'Debt allocations'!AK49*'Debt Dollars FY23'!$C$2","v":0},{"$f":"'Debt allocations'!AL49*'Debt Dollars FY23'!$C$2","v":0},{"$f":"'Debt allocations'!AM49*'Debt Dollars FY23'!$C$2","v":0},{"$f":"'Debt allocations'!AN49*'Debt Dollars FY23'!$C$2","v":0}]
["163 - Consolidated Technology Services","163","Consolidated Technology Services",6.1654928813785083E-5,292,438.36660552094082,{"$f":"'Debt allocations'!G50*'Debt Dollars FY23'!$C$2","v":0},{"$f":"'Debt allocations'!H50*'Debt Dollars FY23'!$C$2","v":0},{"$f":"'Debt allocations'!I50*'Debt Dollars FY23'!$C$2","v":0},{"$f":"'Debt allocations'!J50*'Debt Dollars FY23'!$C$2","v":0},{"$f":"'Debt allocations'!K50*'Debt Dollars FY23'!$C$2","v":0},{"$f":"'Debt allocations'!L50*'Debt Dollars FY23'!$C$2","v":438.36660552094082},{"$f":"'Debt allocations'!M50*'Debt Dollars FY23'!$C$2","v":0},{"$f":"'Debt allocations'!N50*'Debt Dollars FY23'!$C$2","v":0},{"$f":"'Debt allocations'!O50*'Debt Dollars FY23'!$C$2","v":0},{"$f":"'Debt allocations'!P50*'Debt Dollars FY23'!$C$2","v":0},{"$f":"'Debt allocations'!Q50*'Debt Dollars FY23'!$C$2","v":0},{"$f":"'Debt allocations'!R50*'Debt Dollars FY23'!$C$2","v":0},{"$f":"'Debt allocations'!S50*'Debt Dollars FY23'!$C$2","v":0},{"$f":"'Debt allocations'!T50*'Debt Dollars FY23'!$C$2","v":0},{"$f":"'Debt allocations'!U50*'Debt Dollars FY23'!$C$2","v":0},{"$f":"'Debt allocations'!V50*'Debt Dollars FY23'!$C$2","v":0},{"$f":"'Debt allocations'!W50*'Debt Dollars FY23'!$C$2","v":0},{"$f":"'Debt allocations'!X50*'Debt Dollars FY23'!$C$2","v":0},{"$f":"'Debt allocations'!Y50*'Debt Dollars FY23'!$C$2","v":0},{"$f":"'Debt allocations'!Z50*'Debt Dollars FY23'!$C$2","v":0},{"$f":"'Debt allocations'!AA50*'Debt Dollars FY23'!$C$2","v":0},{"$f":"'Debt allocations'!AB50*'Debt Dollars FY23'!$C$2","v":0},{"$f":"'Debt allocations'!AC50*'Debt Dollars FY23'!$C$2","v":0},{"$f":"'Debt allocations'!AD50*'Debt Dollars FY23'!$C$2","v":0},{"$f":"'Debt allocations'!AE50*'Debt Dollars FY23'!$C$2","v":0},{"$f":"'Debt allocations'!AF50*'Debt Dollars FY23'!$C$2","v":0},{"$f":"'Debt allocations'!AG50*'Debt Dollars FY23'!$C$2","v":0},{"$f":"'Debt allocations'!AH50*'Debt Dollars FY23'!$C$2","v":0},{"$f":"'Debt allocations'!AI50*'Debt Dollars FY23'!$C$2","v":0},{"$f":"'Debt allocations'!AJ50*'Debt Dollars FY23'!$C$2","v":0},{"$f":"'Debt allocations'!AK50*'Debt Dollars FY23'!$C$2","v":0},{"$f":"'Debt allocations'!AL50*'Debt Dollars FY23'!$C$2","v":0},{"$f":"'Debt allocations'!AM50*'Debt Dollars FY23'!$C$2","v":0},{"$f":"'Debt allocations'!AN50*'Debt Dollars FY23'!$C$2","v":0}]
["165 - Board of Accountancy","165","Board of Accountancy",9.9999999999999998E-20,1E-8,0,{"$f":"'Debt allocations'!G51*'Debt Dollars FY23'!$C$2","v":0},{"$f":"'Debt allocations'!H51*'Debt Dollars FY23'!$C$2","v":0},{"$f":"'Debt allocations'!I51*'Debt Dollars FY23'!$C$2","v":0},{"$f":"'Debt allocations'!J51*'Debt Dollars FY23'!$C$2","v":0},{"$f":"'Debt allocations'!K51*'Debt Dollars FY23'!$C$2","v":0},{"$f":"'Debt allocations'!L51*'Debt Dollars FY23'!$C$2","v":0},{"$f":"'Debt allocations'!M51*'Debt Dollars FY23'!$C$2","v":0},{"$f":"'Debt allocations'!N51*'Debt Dollars FY23'!$C$2","v":0},{"$f":"'Debt allocations'!O51*'Debt Dollars FY23'!$C$2","v":0},{"$f":"'Debt allocations'!P51*'Debt Dollars FY23'!$C$2","v":0},{"$f":"'Debt allocations'!Q51*'Debt Dollars FY23'!$C$2","v":0},{"$f":"'Debt allocations'!R51*'Debt Dollars FY23'!$C$2","v":0},{"$f":"'Debt allocations'!S51*'Debt Dollars FY23'!$C$2","v":0},{"$f":"'Debt allocations'!T51*'Debt Dollars FY23'!$C$2","v":0},{"$f":"'Debt allocations'!U51*'Debt Dollars FY23'!$C$2","v":0},{"$f":"'Debt allocations'!V51*'Debt Dollars FY23'!$C$2","v":0},{"$f":"'Debt allocations'!W51*'Debt Dollars FY23'!$C$2","v":0},{"$f":"'Debt allocations'!X51*'Debt Dollars FY23'!$C$2","v":0},{"$f":"'Debt allocations'!Y51*'Debt Dollars FY23'!$C$2","v":0},{"$f":"'Debt allocations'!Z51*'Debt Dollars FY23'!$C$2","v":0},{"$f":"'Debt allocations'!AA51*'Debt Dollars FY23'!$C$2","v":0},{"$f":"'Debt allocations'!AB51*'Debt Dollars FY23'!$C$2","v":0},{"$f":"'Debt allocations'!AC51*'Debt Dollars FY23'!$C$2","v":0},{"$f":"'Debt allocations'!AD51*'Debt Dollars FY23'!$C$2","v":0},{"$f":"'Debt allocations'!AE51*'Debt Dollars FY23'!$C$2","v":0},{"$f":"'Debt allocations'!AF51*'Debt Dollars FY23'!$C$2","v":0},{"$f":"'Debt allocations'!AG51*'Debt Dollars FY23'!$C$2","v":0},{"$f":"'Debt allocations'!AH51*'Debt Dollars FY23'!$C$2","v":0},{"$f":"'Debt allocations'!AI51*'Debt Dollars FY23'!$C$2","v":0},{"$f":"'Debt allocations'!AJ51*'Debt Dollars FY23'!$C$2","v":0},{"$f":"'Debt allocations'!AK51*'Debt Dollars FY23'!$C$2","v":0},{"$f":"'Debt allocations'!AL51*'Debt Dollars FY23'!$C$2","v":0},{"$f":"'Debt allocations'!AM51*'Debt Dollars FY23'!$C$2","v":0},{"$f":"'Debt allocations'!AN51*'Debt Dollars FY23'!$C$2","v":0}]
["166 - Brd Prof Eng Land Surveyors","166","Brd Prof Eng Land Surveyors",9.9999999999999998E-20,1E-8,0,{"$f":"'Debt allocations'!G52*'Debt Dollars FY23'!$C$2","v":0},{"$f":"'Debt allocations'!H52*'Debt Dollars FY23'!$C$2","v":0},{"$f":"'Debt allocations'!I52*'Debt Dollars FY23'!$C$2","v":0},{"$f":"'Debt allocations'!J52*'Debt Dollars FY23'!$C$2","v":0},{"$f":"'Debt allocations'!K52*'Debt Dollars FY23'!$C$2","v":0},{"$f":"'Debt allocations'!L52*'Debt Dollars FY23'!$C$2","v":0},{"$f":"'Debt allocations'!M52*'Debt Dollars FY23'!$C$2","v":0},{"$f":"'Debt allocations'!N52*'Debt Dollars FY23'!$C$2","v":0},{"$f":"'Debt allocations'!O52*'Debt Dollars FY23'!$C$2","v":0},{"$f":"'Debt allocations'!P52*'Debt Dollars FY23'!$C$2","v":0},{"$f":"'Debt allocations'!Q52*'Debt Dollars FY23'!$C$2","v":0},{"$f":"'Debt allocations'!R52*'Debt Dollars FY23'!$C$2","v":0},{"$f":"'Debt allocations'!S52*'Debt Dollars FY23'!$C$2","v":0},{"$f":"'Debt allocations'!T52*'Debt Dollars FY23'!$C$2","v":0},{"$f":"'Debt allocations'!U52*'Debt Dollars FY23'!$C$2","v":0},{"$f":"'Debt allocations'!V52*'Debt Dollars FY23'!$C$2","v":0},{"$f":"'Debt allocations'!W52*'Debt Dollars FY23'!$C$2","v":0},{"$f":"'Debt allocations'!X52*'Debt Dollars FY23'!$C$2","v":0},{"$f":"'Debt allocations'!Y52*'Debt Dollars FY23'!$C$2","v":0},{"$f":"'Debt allocations'!Z52*'Debt Dollars FY23'!$C$2","v":0},{"$f":"'Debt allocations'!AA52*'Debt Dollars FY23'!$C$2","v":0},{"$f":"'Debt allocations'!AB52*'Debt Dollars FY23'!$C$2","v":0},{"$f":"'Debt allocations'!AC52*'Debt Dollars FY23'!$C$2","v":0},{"$f":"'Debt allocations'!AD52*'Debt Dollars FY23'!$C$2","v":0},{"$f":"'Debt allocations'!AE52*'Debt Dollars FY23'!$C$2","v":0},{"$f":"'Debt allocations'!AF52*'Debt Dollars FY23'!$C$2","v":0},{"$f":"'Debt allocations'!AG52*'Debt Dollars FY23'!$C$2","v":0},{"$f":"'Debt allocations'!AH52*'Debt Dollars FY23'!$C$2","v":0},{"$f":"'Debt allocations'!AI52*'Debt Dollars FY23'!$C$2","v":0},{"$f":"'Debt allocations'!AJ52*'Debt Dollars FY23'!$C$2","v":0},{"$f":"'Debt allocations'!AK52*'Debt Dollars FY23'!$C$2","v":0},{"$f":"'Debt allocations'!AL52*'Debt Dollars FY23'!$C$2","v":0},{"$f":"'Debt allocations'!AM52*'Debt Dollars FY23'!$C$2","v":0},{"$f":"'Debt allocations'!AN52*'Debt Dollars FY23'!$C$2","v":0}]
["167 - Forensic Investigations Council","167","Forensic Investigations Council",9.9999999999999998E-20,1E-8,0,{"$f":"'Debt allocations'!G53*'Debt Dollars FY23'!$C$2","v":0},{"$f":"'Debt allocations'!H53*'Debt Dollars FY23'!$C$2","v":0},{"$f":"'Debt allocations'!I53*'Debt Dollars FY23'!$C$2","v":0},{"$f":"'Debt allocations'!J53*'Debt Dollars FY23'!$C$2","v":0},{"$f":"'Debt allocations'!K53*'Debt Dollars FY23'!$C$2","v":0},{"$f":"'Debt allocations'!L53*'Debt Dollars FY23'!$C$2","v":0},{"$f":"'Debt allocations'!M53*'Debt Dollars FY23'!$C$2","v":0},{"$f":"'Debt allocations'!N53*'Debt Dollars FY23'!$C$2","v":0},{"$f":"'Debt allocations'!O53*'Debt Dollars FY23'!$C$2","v":0},{"$f":"'Debt allocations'!P53*'Debt Dollars FY23'!$C$2","v":0},{"$f":"'Debt allocations'!Q53*'Debt Dollars FY23'!$C$2","v":0},{"$f":"'Debt allocations'!R53*'Debt Dollars FY23'!$C$2","v":0},{"$f":"'Debt allocations'!S53*'Debt Dollars FY23'!$C$2","v":0},{"$f":"'Debt allocations'!T53*'Debt Dollars FY23'!$C$2","v":0},{"$f":"'Debt allocations'!U53*'Debt Dollars FY23'!$C$2","v":0},{"$f":"'Debt allocations'!V53*'Debt Dollars FY23'!$C$2","v":0},{"$f":"'Debt allocations'!W53*'Debt Dollars FY23'!$C$2","v":0},{"$f":"'Debt allocations'!X53*'Debt Dollars FY23'!$C$2","v":0},{"$f":"'Debt allocations'!Y53*'Debt Dollars FY23'!$C$2","v":0},{"$f":"'Debt allocations'!Z53*'Debt Dollars FY23'!$C$2","v":0},{"$f":"'Debt allocations'!AA53*'Debt Dollars FY23'!$C$2","v":0},{"$f":"'Debt allocations'!AB53*'Debt Dollars FY23'!$C$2","v":0},{"$f":"'Debt allocations'!AC53*'Debt Dollars FY23'!$C$2","v":0},{"$f":"'Debt allocations'!AD53*'Debt Dollars FY23'!$C$2","v":0},{"$f":"'Debt allocations'!AE53*'Debt Dollars FY23'!$C$2","v":0},{"$f":"'Debt allocations'!AF53*'Debt Dollars FY23'!$C$2","v":0},{"$f":"'Debt allocations'!AG53*'Debt Dollars FY23'!$C$2","v":0},{"$f":"'Debt allocations'!AH53*'Debt Dollars FY23'!$C$2","v":0},{"$f":"'Debt allocations'!AI53*'Debt Dollars FY23'!$C$2","v":0},{"$f":"'Debt allocations'!AJ53*'Debt Dollars FY23'!$C$2","v":0},{"$f":"'Debt allocations'!AK53*'Debt Dollars FY23'!$C$2","v":0},{"$f":"'Debt allocations'!AL53*'Debt Dollars FY23'!$C$2","v":0},{"$f":"'Debt allocations'!AM53*'Debt Dollars FY23'!$C$2","v":0},{"$f":"'Debt allocations'!AN53*'Debt Dollars FY23'!$C$2","v":0}]
["179 - Department of Enterprise Services","179","Department of Enterprise Services",9.507300393249242E-3,25964,67596.915303302507,{"$f":"'Debt allocations'!G54*'Debt Dollars FY23'!$C$2","v":0},{"$f":"'Debt allocations'!H54*'Debt Dollars FY23'!$C$2","v":0},{"$f":"'Debt allocations'!I54*'Debt Dollars FY23'!$C$2","v":0},{"$f":"'Debt allocations'!J54*'Debt Dollars FY23'!$C$2","v":0},{"$f":"'Debt allocations'!K54*'Debt Dollars FY23'!$C$2","v":0},{"$f":"'Debt allocations'!L54*'Debt Dollars FY23'!$C$2","v":30454.469039718515},{"$f":"'Debt allocations'!M54*'Debt Dollars FY23'!$C$2","v":0},{"$f":"'Debt allocations'!N54*'Debt Dollars FY23'!$C$2","v":0},{"$f":"'Debt allocations'!O54*'Debt Dollars FY23'!$C$2","v":0},{"$f":"'Debt allocations'!P54*'Debt Dollars FY23'!$C$2","v":0},{"$f":"'Debt allocations'!Q54*'Debt Dollars FY23'!$C$2","v":0},{"$f":"'Debt allocations'!R54*'Debt Dollars FY23'!$C$2","v":0},{"$f":"'Debt allocations'!S54*'Debt Dollars FY23'!$C$2","v":0},{"$f":"'Debt allocations'!T54*'Debt Dollars FY23'!$C$2","v":0},{"$f":"'Debt allocations'!U54*'Debt Dollars FY23'!$C$2","v":0},{"$f":"'Debt allocations'!V54*'Debt Dollars FY23'!$C$2","v":0},{"$f":"'Debt allocations'!W54*'Debt Dollars FY23'!$C$2","v":0},{"$f":"'Debt allocations'!X54*'Debt Dollars FY23'!$C$2","v":0},{"$f":"'Debt allocations'!Y54*'Debt Dollars FY23'!$C$2","v":0},{"$f":"'Debt allocations'!Z54*'Debt Dollars FY23'!$C$2","v":29997.483322757264},{"$f":"'Debt allocations'!AA54*'Debt Dollars FY23'!$C$2","v":0},{"$f":"'Debt allocations'!AB54*'Debt Dollars FY23'!$C$2","v":0},{"$f":"'Debt allocations'!AC54*'Debt Dollars FY23'!$C$2","v":0},{"$f":"'Debt allocations'!AD54*'Debt Dollars FY23'!$C$2","v":0},{"$f":"'Debt allocations'!AE54*'Debt Dollars FY23'!$C$2","v":0},{"$f":"'Debt allocations'!AF54*'Debt Dollars FY23'!$C$2","v":0},{"$f":"'Debt allocations'!AG54*'Debt Dollars FY23'!$C$2","v":0},{"$f":"'Debt allocations'!AH54*'Debt Dollars FY23'!$C$2","v":7144.9629408267283},{"$f":"'Debt allocations'!AI54*'Debt Dollars FY23'!$C$2","v":0},{"$f":"'Debt allocations'!AJ54*'Debt Dollars FY23'!$C$2","v":0},{"$f":"'Debt allocations'!AK54*'Debt Dollars FY23'!$C$2","v":0},{"$f":"'Debt allocations'!AL54*'Debt Dollars FY23'!$C$2","v":0},{"$f":"'Debt allocations'!AM54*'Debt Dollars FY23'!$C$2","v":0},{"$f":"'Debt allocations'!AN54*'Debt Dollars FY23'!$C$2","v":0}]
["185 - Horse Racing Commission","185","Horse Racing Commission",9.9999999999999998E-20,1E-8,0,{"$f":"'Debt allocations'!G55*'Debt Dollars FY23'!$C$2","v":0},{"$f":"'Debt allocations'!H55*'Debt Dollars FY23'!$C$2","v":0},{"$f":"'Debt allocations'!I55*'Debt Dollars FY23'!$C$2","v":0},{"$f":"'Debt allocations'!J55*'Debt Dollars FY23'!$C$2","v":0},{"$f":"'Debt allocations'!K55*'Debt Dollars FY23'!$C$2","v":0},{"$f":"'Debt allocations'!L55*'Debt Dollars FY23'!$C$2","v":0},{"$f":"'Debt allocations'!M55*'Debt Dollars FY23'!$C$2","v":0},{"$f":"'Debt allocations'!N55*'Debt Dollars FY23'!$C$2","v":0},{"$f":"'Debt allocations'!O55*'Debt Dollars FY23'!$C$2","v":0},{"$f":"'Debt allocations'!P55*'Debt Dollars FY23'!$C$2","v":0},{"$f":"'Debt allocations'!Q55*'Debt Dollars FY23'!$C$2","v":0},{"$f":"'Debt allocations'!R55*'Debt Dollars FY23'!$C$2","v":0},{"$f":"'Debt allocations'!S55*'Debt Dollars FY23'!$C$2","v":0},{"$f":"'Debt allocations'!T55*'Debt Dollars FY23'!$C$2","v":0},{"$f":"'Debt allocations'!U55*'Debt Dollars FY23'!$C$2","v":0},{"$f":"'Debt allocations'!V55*'Debt Dollars FY23'!$C$2","v":0},{"$f":"'Debt allocations'!W55*'Debt Dollars FY23'!$C$2","v":0},{"$f":"'Debt allocations'!X55*'Debt Dollars FY23'!$C$2","v":0},{"$f":"'Debt allocations'!Y55*'Debt Dollars FY23'!$C$2","v":0},{"$f":"'Debt allocations'!Z55*'Debt Dollars FY23'!$C$2","v":0},{"$f":"'Debt allocations'!AA55*'Debt Dollars FY23'!$C$2","v":0},{"$f":"'Debt allocations'!AB55*'Debt Dollars FY23'!$C$2","v":0},{"$f":"'Debt allocations'!AC55*'Debt Dollars FY23'!$C$2","v":0},{"$f":"'Debt allocations'!AD55*'Debt Dollars FY23'!$C$2","v":0},{"$f":"'Debt allocations'!AE55*'Debt Dollars FY23'!$C$2","v":0},{"$f":"'Debt allocations'!AF55*'Debt Dollars FY23'!$C$2","v":0},{"$f":"'Debt allocations'!AG55*'Debt Dollars FY23'!$C$2","v":0},{"$f":"'Debt allocations'!AH55*'Debt Dollars FY23'!$C$2","v":0},{"$f":"'Debt allocations'!AI55*'Debt Dollars FY23'!$C$2","v":0},{"$f":"'Debt allocations'!AJ55*'Debt Dollars FY23'!$C$2","v":0},{"$f":"'Debt allocations'!AK55*'Debt Dollars FY23'!$C$2","v":0},{"$f":"'Debt allocations'!AL55*'Debt Dollars FY23'!$C$2","v":0},{"$f":"'Debt allocations'!AM55*'Debt Dollars FY23'!$C$2","v":0},{"$f":"'Debt allocations'!AN55*'Debt Dollars FY23'!$C$2","v":0}]
["190 - Board of Industrial Insurance Appeals","190","Board of Industrial Insurance Appeals",9.9999999999999998E-20,1E-8,0,{"$f":"'Debt allocations'!G56*'Debt Dollars FY23'!$C$2","v":0},{"$f":"'Debt allocations'!H56*'Debt Dollars FY23'!$C$2","v":0},{"$f":"'Debt allocations'!I56*'Debt Dollars FY23'!$C$2","v":0},{"$f":"'Debt allocations'!J56*'Debt Dollars FY23'!$C$2","v":0},{"$f":"'Debt allocations'!K56*'Debt Dollars FY23'!$C$2","v":0},{"$f":"'Debt allocations'!L56*'Debt Dollars FY23'!$C$2","v":0},{"$f":"'Debt allocations'!M56*'Debt Dollars FY23'!$C$2","v":0},{"$f":"'Debt allocations'!N56*'Debt Dollars FY23'!$C$2","v":0},{"$f":"'Debt allocations'!O56*'Debt Dollars FY23'!$C$2","v":0},{"$f":"'Debt allocations'!P56*'Debt Dollars FY23'!$C$2","v":0},{"$f":"'Debt allocations'!Q56*'Debt Dollars FY23'!$C$2","v":0},{"$f":"'Debt allocations'!R56*'Debt Dollars FY23'!$C$2","v":0},{"$f":"'Debt allocations'!S56*'Debt Dollars FY23'!$C$2","v":0},{"$f":"'Debt allocations'!T56*'Debt Dollars FY23'!$C$2","v":0},{"$f":"'Debt allocations'!U56*'Debt Dollars FY23'!$C$2","v":0},{"$f":"'Debt allocations'!V56*'Debt Dollars FY23'!$C$2","v":0},{"$f":"'Debt allocations'!W56*'Debt Dollars FY23'!$C$2","v":0},{"$f":"'Debt allocations'!X56*'Debt Dollars FY23'!$C$2","v":0},{"$f":"'Debt allocations'!Y56*'Debt Dollars FY23'!$C$2","v":0},{"$f":"'Debt allocations'!Z56*'Debt Dollars FY23'!$C$2","v":0},{"$f":"'Debt allocations'!AA56*'Debt Dollars FY23'!$C$2","v":0},{"$f":"'Debt allocations'!AB56*'Debt Dollars FY23'!$C$2","v":0},{"$f":"'Debt allocations'!AC56*'Debt Dollars FY23'!$C$2","v":0},{"$f":"'Debt allocations'!AD56*'Debt Dollars FY23'!$C$2","v":0},{"$f":"'Debt allocations'!AE56*'Debt Dollars FY23'!$C$2","v":0},{"$f":"'Debt allocations'!AF56*'Debt Dollars FY23'!$C$2","v":0},{"$f":"'Debt allocations'!AG56*'Debt Dollars FY23'!$C$2","v":0},{"$f":"'Debt allocations'!AH56*'Debt Dollars FY23'!$C$2","v":0},{"$f":"'Debt allocations'!AI56*'Debt Dollars FY23'!$C$2","v":0},{"$f":"'Debt allocations'!AJ56*'Debt Dollars FY23'!$C$2","v":0},{"$f":"'Debt allocations'!AK56*'Debt Dollars FY23'!$C$2","v":0},{"$f":"'Debt allocations'!AL56*'Debt Dollars FY23'!$C$2","v":0},{"$f":"'Debt allocations'!AM56*'Debt Dollars FY23'!$C$2","v":0},{"$f":"'Debt allocations'!AN56*'Debt Dollars FY23'!$C$2","v":0}]
["195 - Liquor Control Board","195","Liquor Control Board",9.9999999999999998E-20,1E-8,0,{"$f":"'Debt allocations'!G57*'Debt Dollars FY23'!$C$2","v":0},{"$f":"'Debt allocations'!H57*'Debt Dollars FY23'!$C$2","v":0},{"$f":"'Debt allocations'!I57*'Debt Dollars FY23'!$C$2","v":0},{"$f":"'Debt allocations'!J57*'Debt Dollars FY23'!$C$2","v":0},{"$f":"'Debt allocations'!K57*'Debt Dollars FY23'!$C$2","v":0},{"$f":"'Debt allocations'!L57*'Debt Dollars FY23'!$C$2","v":0},{"$f":"'Debt allocations'!M57*'Debt Dollars FY23'!$C$2","v":0},{"$f":"'Debt allocations'!N57*'Debt Dollars FY23'!$C$2","v":0},{"$f":"'Debt allocations'!O57*'Debt Dollars FY23'!$C$2","v":0},{"$f":"'Debt allocations'!P57*'Debt Dollars FY23'!$C$2","v":0},{"$f":"'Debt allocations'!Q57*'Debt Dollars FY23'!$C$2","v":0},{"$f":"'Debt allocations'!R57*'Debt Dollars FY23'!$C$2","v":0},{"$f":"'Debt allocations'!S57*'Debt Dollars FY23'!$C$2","v":0},{"$f":"'Debt allocations'!T57*'Debt Dollars FY23'!$C$2","v":0},{"$f":"'Debt allocations'!U57*'Debt Dollars FY23'!$C$2","v":0},{"$f":"'Debt allocations'!V57*'Debt Dollars FY23'!$C$2","v":0},{"$f":"'Debt allocations'!W57*'Debt Dollars FY23'!$C$2","v":0},{"$f":"'Debt allocations'!X57*'Debt Dollars FY23'!$C$2","v":0},{"$f":"'Debt allocations'!Y57*'Debt Dollars FY23'!$C$2","v":0},{"$f":"'Debt allocations'!Z57*'Debt Dollars FY23'!$C$2","v":0},{"$f":"'Debt allocations'!AA57*'Debt Dollars FY23'!$C$2","v":0},{"$f":"'Debt allocations'!AB57*'Debt Dollars FY23'!$C$2","v":0},{"$f":"'Debt allocations'!AC57*'Debt Dollars FY23'!$C$2","v":0},{"$f":"'Debt allocations'!AD57*'Debt Dollars FY23'!$C$2","v":0},{"$f":"'Debt allocations'!AE57*'Debt Dollars FY23'!$C$2","v":0},{"$f":"'Debt allocations'!AF57*'Debt Dollars FY23'!$C$2","v":0},{"$f":"'Debt allocations'!AG57*'Debt Dollars FY23'!$C$2","v":0},{"$f":"'Debt allocations'!AH57*'Debt Dollars FY23'!$C$2","v":0},{"$f":"'Debt allocations'!AI57*'Debt Dollars FY23'!$C$2","v":0},{"$f":"'Debt allocations'!AJ57*'Debt Dollars FY23'!$C$2","v":0},{"$f":"'Debt allocations'!AK57*'Debt Dollars FY23'!$C$2","v":0},{"$f":"'Debt allocations'!AL57*'Debt Dollars FY23'!$C$2","v":0},{"$f":"'Debt allocations'!AM57*'Debt Dollars FY23'!$C$2","v":0},{"$f":"'Debt allocations'!AN57*'Debt Dollars FY23'!$C$2","v":0}]
["205 - Board of Pilotage Commissioners","205","Board of Pilotage Commissioners",9.9999999999999998E-20,1E-8,0,{"$f":"'Debt allocations'!G58*'Debt Dollars FY23'!$C$2","v":0},{"$f":"'Debt allocations'!H58*'Debt Dollars FY23'!$C$2","v":0},{"$f":"'Debt allocations'!I58*'Debt Dollars FY23'!$C$2","v":0},{"$f":"'Debt allocations'!J58*'Debt Dollars FY23'!$C$2","v":0},{"$f":"'Debt allocations'!K58*'Debt Dollars FY23'!$C$2","v":0},{"$f":"'Debt allocations'!L58*'Debt Dollars FY23'!$C$2","v":0},{"$f":"'Debt allocations'!M58*'Debt Dollars FY23'!$C$2","v":0},{"$f":"'Debt allocations'!N58*'Debt Dollars FY23'!$C$2","v":0},{"$f":"'Debt allocations'!O58*'Debt Dollars FY23'!$C$2","v":0},{"$f":"'Debt allocations'!P58*'Debt Dollars FY23'!$C$2","v":0},{"$f":"'Debt allocations'!Q58*'Debt Dollars FY23'!$C$2","v":0},{"$f":"'Debt allocations'!R58*'Debt Dollars FY23'!$C$2","v":0},{"$f":"'Debt allocations'!S58*'Debt Dollars FY23'!$C$2","v":0},{"$f":"'Debt allocations'!T58*'Debt Dollars FY23'!$C$2","v":0},{"$f":"'Debt allocations'!U58*'Debt Dollars FY23'!$C$2","v":0},{"$f":"'Debt allocations'!V58*'Debt Dollars FY23'!$C$2","v":0},{"$f":"'Debt allocations'!W58*'Debt Dollars FY23'!$C$2","v":0},{"$f":"'Debt allocations'!X58*'Debt Dollars FY23'!$C$2","v":0},{"$f":"'Debt allocations'!Y58*'Debt Dollars FY23'!$C$2","v":0},{"$f":"'Debt allocations'!Z58*'Debt Dollars FY23'!$C$2","v":0},{"$f":"'Debt allocations'!AA58*'Debt Dollars FY23'!$C$2","v":0},{"$f":"'Debt allocations'!AB58*'Debt Dollars FY23'!$C$2","v":0},{"$f":"'Debt allocations'!AC58*'Debt Dollars FY23'!$C$2","v":0},{"$f":"'Debt allocations'!AD58*'Debt Dollars FY23'!$C$2","v":0},{"$f":"'Debt allocations'!AE58*'Debt Dollars FY23'!$C$2","v":0},{"$f":"'Debt allocations'!AF58*'Debt Dollars FY23'!$C$2","v":0},{"$f":"'Debt allocations'!AG58*'Debt Dollars FY23'!$C$2","v":0},{"$f":"'Debt allocations'!AH58*'Debt Dollars FY23'!$C$2","v":0},{"$f":"'Debt allocations'!AI58*'Debt Dollars FY23'!$C$2","v":0},{"$f":"'Debt allocations'!AJ58*'Debt Dollars FY23'!$C$2","v":0},{"$f":"'Debt allocations'!AK58*'Debt Dollars FY23'!$C$2","v":0},{"$f":"'Debt allocations'!AL58*'Debt Dollars FY23'!$C$2","v":0},{"$f":"'Debt allocations'!AM58*'Debt Dollars FY23'!$C$2","v":0},{"$f":"'Debt allocations'!AN58*'Debt Dollars FY23'!$C$2","v":0}]
["215 - Utilities and Transportation Commission","215","Utilities and Transportation Commission",9.9999999999999998E-20,1E-8,0,{"$f":"'Debt allocations'!G59*'Debt Dollars FY23'!$C$2","v":0},{"$f":"'Debt allocations'!H59*'Debt Dollars FY23'!$C$2","v":0},{"$f":"'Debt allocations'!I59*'Debt Dollars FY23'!$C$2","v":0},{"$f":"'Debt allocations'!J59*'Debt Dollars FY23'!$C$2","v":0},{"$f":"'Debt allocations'!K59*'Debt Dollars FY23'!$C$2","v":0},{"$f":"'Debt allocations'!L59*'Debt Dollars FY23'!$C$2","v":0},{"$f":"'Debt allocations'!M59*'Debt Dollars FY23'!$C$2","v":0},{"$f":"'Debt allocations'!N59*'Debt Dollars FY23'!$C$2","v":0},{"$f":"'Debt allocations'!O59*'Debt Dollars FY23'!$C$2","v":0},{"$f":"'Debt allocations'!P59*'Debt Dollars FY23'!$C$2","v":0},{"$f":"'Debt allocations'!Q59*'Debt Dollars FY23'!$C$2","v":0},{"$f":"'Debt allocations'!R59*'Debt Dollars FY23'!$C$2","v":0},{"$f":"'Debt allocations'!S59*'Debt Dollars FY23'!$C$2","v":0},{"$f":"'Debt allocations'!T59*'Debt Dollars FY23'!$C$2","v":0},{"$f":"'Debt allocations'!U59*'Debt Dollars FY23'!$C$2","v":0},{"$f":"'Debt allocations'!V59*'Debt Dollars FY23'!$C$2","v":0},{"$f":"'Debt allocations'!W59*'Debt Dollars FY23'!$C$2","v":0},{"$f":"'Debt allocations'!X59*'Debt Dollars FY23'!$C$2","v":0},{"$f":"'Debt allocations'!Y59*'Debt Dollars FY23'!$C$2","v":0},{"$f":"'Debt allocations'!Z59*'Debt Dollars FY23'!$C$2","v":0},{"$f":"'Debt allocations'!AA59*'Debt Dollars FY23'!$C$2","v":0},{"$f":"'Debt allocations'!AB59*'Debt Dollars FY23'!$C$2","v":0},{"$f":"'Debt allocations'!AC59*'Debt Dollars FY23'!$C$2","v":0},{"$f":"'Debt allocations'!AD59*'Debt Dollars FY23'!$C$2","v":0},{"$f":"'Debt allocations'!AE59*'Debt Dollars FY23'!$C$2","v":0},{"$f":"'Debt allocations'!AF59*'Debt Dollars FY23'!$C$2","v":0},{"$f":"'Debt allocations'!AG59*'Debt Dollars FY23'!$C$2","v":0},{"$f":"'Debt allocations'!AH59*'Debt Dollars FY23'!$C$2","v":0},{"$f":"'Debt allocations'!AI59*'Debt Dollars FY23'!$C$2","v":0},{"$f":"'Debt allocations'!AJ59*'Debt Dollars FY23'!$C$2","v":0},{"$f":"'Debt allocations'!AK59*'Debt Dollars FY23'!$C$2","v":0},{"$f":"'Debt allocations'!AL59*'Debt Dollars FY23'!$C$2","v":0},{"$f":"'Debt allocations'!AM59*'Debt Dollars FY23'!$C$2","v":0},{"$f":"'Debt allocations'!AN59*'Debt Dollars FY23'!$C$2","v":0}]
["220 - Board for Volunteer Firefighters and Reserve Officers","220","Board for Volunteer Firefighters and Reserve Officers",9.9999999999999998E-20,1E-8,0,{"$f":"'Debt allocations'!G60*'Debt Dollars FY23'!$C$2","v":0},{"$f":"'Debt allocations'!H60*'Debt Dollars FY23'!$C$2","v":0},{"$f":"'Debt allocations'!I60*'Debt Dollars FY23'!$C$2","v":0},{"$f":"'Debt allocations'!J60*'Debt Dollars FY23'!$C$2","v":0},{"$f":"'Debt allocations'!K60*'Debt Dollars FY23'!$C$2","v":0},{"$f":"'Debt allocations'!L60*'Debt Dollars FY23'!$C$2","v":0},{"$f":"'Debt allocations'!M60*'Debt Dollars FY23'!$C$2","v":0},{"$f":"'Debt allocations'!N60*'Debt Dollars FY23'!$C$2","v":0},{"$f":"'Debt allocations'!O60*'Debt Dollars FY23'!$C$2","v":0},{"$f":"'Debt allocations'!P60*'Debt Dollars FY23'!$C$2","v":0},{"$f":"'Debt allocations'!Q60*'Debt Dollars FY23'!$C$2","v":0},{"$f":"'Debt allocations'!R60*'Debt Dollars FY23'!$C$2","v":0},{"$f":"'Debt allocations'!S60*'Debt Dollars FY23'!$C$2","v":0},{"$f":"'Debt allocations'!T60*'Debt Dollars FY23'!$C$2","v":0},{"$f":"'Debt allocations'!U60*'Debt Dollars FY23'!$C$2","v":0},{"$f":"'Debt allocations'!V60*'Debt Dollars FY23'!$C$2","v":0},{"$f":"'Debt allocations'!W60*'Debt Dollars FY23'!$C$2","v":0},{"$f":"'Debt allocations'!X60*'Debt Dollars FY23'!$C$2","v":0},{"$f":"'Debt allocations'!Y60*'Debt Dollars FY23'!$C$2","v":0},{"$f":"'Debt allocations'!Z60*'Debt Dollars FY23'!$C$2","v":0},{"$f":"'Debt allocations'!AA60*'Debt Dollars FY23'!$C$2","v":0},{"$f":"'Debt allocations'!AB60*'Debt Dollars FY23'!$C$2","v":0},{"$f":"'Debt allocations'!AC60*'Debt Dollars FY23'!$C$2","v":0},{"$f":"'Debt allocations'!AD60*'Debt Dollars FY23'!$C$2","v":0},{"$f":"'Debt allocations'!AE60*'Debt Dollars FY23'!$C$2","v":0},{"$f":"'Debt allocations'!AF60*'Debt Dollars FY23'!$C$2","v":0},{"$f":"'Debt allocations'!AG60*'Debt Dollars FY23'!$C$2","v":0},{"$f":"'Debt allocations'!AH60*'Debt Dollars FY23'!$C$2","v":0},{"$f":"'Debt allocations'!AI60*'Debt Dollars FY23'!$C$2","v":0},{"$f":"'Debt allocations'!AJ60*'Debt Dollars FY23'!$C$2","v":0},{"$f":"'Debt allocations'!AK60*'Debt Dollars FY23'!$C$2","v":0},{"$f":"'Debt allocations'!AL60*'Debt Dollars FY23'!$C$2","v":0},{"$f":"'Debt allocations'!AM60*'Debt Dollars FY23'!$C$2","v":0},{"$f":"'Debt allocations'!AN60*'Debt Dollars FY23'!$C$2","v":0}]
["225 - Washington State Patrol","225","Washington State Patrol",0.4602487693539713,137399,3272369.2103555053,{"$f":"'Debt allocations'!G61*'Debt Dollars FY23'!$C$2","v":0},{"$f":"'Debt allocations'!H61*'Debt Dollars FY23'!$C$2","v":0},{"$f":"'Debt allocations'!I61*'Debt Dollars FY23'!$C$2","v":0},{"$f":"'Debt allocations'!J61*'Debt Dollars FY23'!$C$2","v":0},{"$f":"'Debt allocations'!K61*'Debt Dollars FY23'!$C$2","v":0},{"$f":"'Debt allocations'!L61*'Debt Dollars FY23'!$C$2","v":0},{"$f":"'Debt allocations'!M61*'Debt Dollars FY23'!$C$2","v":0},{"$f":"'Debt allocations'!N61*'Debt Dollars FY23'!$C$2","v":0},{"$f":"'Debt allocations'!O61*'Debt Dollars FY23'!$C$2","v":0},{"$f":"'Debt allocations'!P61*'Debt Dollars FY23'!$C$2","v":0},{"$f":"'Debt allocations'!Q61*'Debt Dollars FY23'!$C$2","v":0},{"$f":"'Debt allocations'!R61*'Debt Dollars FY23'!$C$2","v":0},{"$f":"'Debt allocations'!S61*'Debt Dollars FY23'!$C$2","v":0},{"$f":"'Debt allocations'!T61*'Debt Dollars FY23'!$C$2","v":0},{"$f":"'Debt allocations'!U61*'Debt Dollars FY23'!$C$2","v":0},{"$f":"'Debt allocations'!V61*'Debt Dollars FY23'!$C$2","v":0},{"$f":"'Debt allocations'!W61*'Debt Dollars FY23'!$C$2","v":0},{"$f":"'Debt allocations'!X61*'Debt Dollars FY23'!$C$2","v":0},{"$f":"'Debt allocations'!Y61*'Debt Dollars FY23'!$C$2","v":0},{"$f":"'Debt allocations'!Z61*'Debt Dollars FY23'!$C$2","v":0},{"$f":"'Debt allocations'!AA61*'Debt Dollars FY23'!$C$2","v":0},{"$f":"'Debt allocations'!AB61*'Debt Dollars FY23'!$C$2","v":0},{"$f":"'Debt allocations'!AC61*'Debt Dollars FY23'!$C$2","v":0},{"$f":"'Debt allocations'!AD61*'Debt Dollars FY23'!$C$2","v":0},{"$f":"'Debt allocations'!AE61*'Debt Dollars FY23'!$C$2","v":0},{"$f":"'Debt allocations'!AF61*'Debt Dollars FY23'!$C$2","v":0},{"$f":"'Debt allocations'!AG61*'Debt Dollars FY23'!$C$2","v":0},{"$f":"'Debt allocations'!AH61*'Debt Dollars FY23'!$C$2","v":3272369.2103555053},{"$f":"'Debt allocations'!AI61*'Debt Dollars FY23'!$C$2","v":0},{"$f":"'Debt allocations'!AJ61*'Debt Dollars FY23'!$C$2","v":0},{"$f":"'Debt allocations'!AK61*'Debt Dollars FY23'!$C$2","v":0},{"$f":"'Debt allocations'!AL61*'Debt Dollars FY23'!$C$2","v":0},{"$f":"'Debt allocations'!AM61*'Debt Dollars FY23'!$C$2","v":0},{"$f":"'Debt allocations'!AN61*'Debt Dollars FY23'!$C$2","v":0}]
["227 - Criminal Justice Training Commission","227","Criminal Justice Training Commission",9.9999999999999998E-20,1E-8,0,{"$f":"'Debt allocations'!G62*'Debt Dollars FY23'!$C$2","v":0},{"$f":"'Debt allocations'!H62*'Debt Dollars FY23'!$C$2","v":0},{"$f":"'Debt allocations'!I62*'Debt Dollars FY23'!$C$2","v":0},{"$f":"'Debt allocations'!J62*'Debt Dollars FY23'!$C$2","v":0},{"$f":"'Debt allocations'!K62*'Debt Dollars FY23'!$C$2","v":0},{"$f":"'Debt allocations'!L62*'Debt Dollars FY23'!$C$2","v":0},{"$f":"'Debt allocations'!M62*'Debt Dollars FY23'!$C$2","v":0},{"$f":"'Debt allocations'!N62*'Debt Dollars FY23'!$C$2","v":0},{"$f":"'Debt allocations'!O62*'Debt Dollars FY23'!$C$2","v":0},{"$f":"'Debt allocations'!P62*'Debt Dollars FY23'!$C$2","v":0},{"$f":"'Debt allocations'!Q62*'Debt Dollars FY23'!$C$2","v":0},{"$f":"'Debt allocations'!R62*'Debt Dollars FY23'!$C$2","v":0},{"$f":"'Debt allocations'!S62*'Debt Dollars FY23'!$C$2","v":0},{"$f":"'Debt allocations'!T62*'Debt Dollars FY23'!$C$2","v":0},{"$f":"'Debt allocations'!U62*'Debt Dollars FY23'!$C$2","v":0},{"$f":"'Debt allocations'!V62*'Debt Dollars FY23'!$C$2","v":0},{"$f":"'Debt allocations'!W62*'Debt Dollars FY23'!$C$2","v":0},{"$f":"'Debt allocations'!X62*'Debt Dollars FY23'!$C$2","v":0},{"$f":"'Debt allocations'!Y62*'Debt Dollars FY23'!$C$2","v":0},{"$f":"'Debt allocations'!Z62*'Debt Dollars FY23'!$C$2","v":0},{"$f":"'Debt allocations'!AA62*'Debt Dollars FY23'!$C$2","v":0},{"$f":"'Debt allocations'!AB62*'Debt Dollars FY23'!$C$2","v":0},{"$f":"'Debt allocations'!AC62*'Debt Dollars FY23'!$C$2","v":0},{"$f":"'Debt allocations'!AD62*'Debt Dollars FY23'!$C$2","v":0},{"$f":"'Debt allocations'!AE62*'Debt Dollars FY23'!$C$2","v":0},{"$f":"'Debt allocations'!AF62*'Debt Dollars FY23'!$C$2","v":0},{"$f":"'Debt allocations'!AG62*'Debt Dollars FY23'!$C$2","v":0},{"$f":"'Debt allocations'!AH62*'Debt Dollars FY23'!$C$2","v":0},{"$f":"'Debt allocations'!AI62*'Debt Dollars FY23'!$C$2","v":0},{"$f":"'Debt allocations'!AJ62*'Debt Dollars FY23'!$C$2","v":0},{"$f":"'Debt allocations'!AK62*'Debt Dollars FY23'!$C$2","v":0},{"$f":"'Debt allocations'!AL62*'Debt Dollars FY23'!$C$2","v":0},{"$f":"'Debt allocations'!AM62*'Debt Dollars FY23'!$C$2","v":0},{"$f":"'Debt allocations'!AN62*'Debt Dollars FY23'!$C$2","v":0}]
["228 - Traffic Safety Commission","228","Traffic Safety Commission",9.9999999999999998E-20,1E-8,0,{"$f":"'Debt allocations'!G63*'Debt Dollars FY23'!$C$2","v":0},{"$f":"'Debt allocations'!H63*'Debt Dollars FY23'!$C$2","v":0},{"$f":"'Debt allocations'!I63*'Debt Dollars FY23'!$C$2","v":0},{"$f":"'Debt allocations'!J63*'Debt Dollars FY23'!$C$2","v":0},{"$f":"'Debt allocations'!K63*'Debt Dollars FY23'!$C$2","v":0},{"$f":"'Debt allocations'!L63*'Debt Dollars FY23'!$C$2","v":0},{"$f":"'Debt allocations'!M63*'Debt Dollars FY23'!$C$2","v":0},{"$f":"'Debt allocations'!N63*'Debt Dollars FY23'!$C$2","v":0},{"$f":"'Debt allocations'!O63*'Debt Dollars FY23'!$C$2","v":0},{"$f":"'Debt allocations'!P63*'Debt Dollars FY23'!$C$2","v":0},{"$f":"'Debt allocations'!Q63*'Debt Dollars FY23'!$C$2","v":0},{"$f":"'Debt allocations'!R63*'Debt Dollars FY23'!$C$2","v":0},{"$f":"'Debt allocations'!S63*'Debt Dollars FY23'!$C$2","v":0},{"$f":"'Debt allocations'!T63*'Debt Dollars FY23'!$C$2","v":0},{"$f":"'Debt allocations'!U63*'Debt Dollars FY23'!$C$2","v":0},{"$f":"'Debt allocations'!V63*'Debt Dollars FY23'!$C$2","v":0},{"$f":"'Debt allocations'!W63*'Debt Dollars FY23'!$C$2","v":0},{"$f":"'Debt allocations'!X63*'Debt Dollars FY23'!$C$2","v":0},{"$f":"'Debt allocations'!Y63*'Debt Dollars FY23'!$C$2","v":0},{"$f":"'Debt allocations'!Z63*'Debt Dollars FY23'!$C$2","v":0},{"$f":"'Debt allocations'!AA63*'Debt Dollars FY23'!$C$2","v":0},{"$f":"'Debt allocations'!AB63*'Debt Dollars FY23'!$C$2","v":0},{"$f":"'Debt allocations'!AC63*'Debt Dollars FY23'!$C$2","v":0},{"$f":"'Debt allocations'!AD63*'Debt Dollars FY23'!$C$2","v":0},{"$f":"'Debt allocations'!AE63*'Debt Dollars FY23'!$C$2","v":0},{"$f":"'Debt allocations'!AF63*'Debt Dollars FY23'!$C$2","v":0},{"$f":"'Debt allocations'!AG63*'Debt Dollars FY23'!$C$2","v":0},{"$f":"'Debt allocations'!AH63*'Debt Dollars FY23'!$C$2","v":0},{"$f":"'Debt allocations'!AI63*'Debt Dollars FY23'!$C$2","v":0},{"$f":"'Debt allocations'!AJ63*'Debt Dollars FY23'!$C$2","v":0},{"$f":"'Debt allocations'!AK63*'Debt Dollars FY23'!$C$2","v":0},{"$f":"'Debt allocations'!AL63*'Debt Dollars FY23'!$C$2","v":0},{"$f":"'Debt allocations'!AM63*'Debt Dollars FY23'!$C$2","v":0},{"$f":"'Debt allocations'!AN63*'Debt Dollars FY23'!$C$2","v":0}]
["235 - Department of Labor and Industries","235","Department of Labor and Industries",1.2676526834204572E-2,39511,90130.118467721346,{"$f":"'Debt allocations'!G64*'Debt Dollars FY23'!$C$2","v":0},{"$f":"'Debt allocations'!H64*'Debt Dollars FY23'!$C$2","v":0},{"$f":"'Debt allocations'!I64*'Debt Dollars FY23'!$C$2","v":0},{"$f":"'Debt allocations'!J64*'Debt Dollars FY23'!$C$2","v":0},{"$f":"'Debt allocations'!K64*'Debt Dollars FY23'!$C$2","v":0},{"$f":"'Debt allocations'!L64*'Debt Dollars FY23'!$C$2","v":0},{"$f":"'Debt allocations'!M64*'Debt Dollars FY23'!$C$2","v":0},{"$f":"'Debt allocations'!N64*'Debt Dollars FY23'!$C$2","v":0},{"$f":"'Debt allocations'!O64*'Debt Dollars FY23'!$C$2","v":0},{"$f":"'Debt allocations'!P64*'Debt Dollars FY23'!$C$2","v":0},{"$f":"'Debt allocations'!Q64*'Debt Dollars FY23'!$C$2","v":0},{"$f":"'Debt allocations'!R64*'Debt Dollars FY23'!$C$2","v":0},{"$f":"'Debt allocations'!S64*'Debt Dollars FY23'!$C$2","v":0},{"$f":"'Debt allocations'!T64*'Debt Dollars FY23'!$C$2","v":0},{"$f":"'Debt allocations'!U64*'Debt Dollars FY23'!$C$2","v":0},{"$f":"'Debt allocations'!V64*'Debt Dollars FY23'!$C$2","v":0},{"$f":"'Debt allocations'!W64*'Debt Dollars FY23'!$C$2","v":0},{"$f":"'Debt allocations'!X64*'Debt Dollars FY23'!$C$2","v":0},{"$f":"'Debt allocations'!Y64*'Debt Dollars FY23'!$C$2","v":0},{"$f":"'Debt allocations'!Z64*'Debt Dollars FY23'!$C$2","v":0},{"$f":"'Debt allocations'!AA64*'Debt Dollars FY23'!$C$2","v":0},{"$f":"'Debt allocations'!AB64*'Debt Dollars FY23'!$C$2","v":0},{"$f":"'Debt allocations'!AC64*'Debt Dollars FY23'!$C$2","v":0},{"$f":"'Debt allocations'!AD64*'Debt Dollars FY23'!$C$2","v":0},{"$f":"'Debt allocations'!AE64*'Debt Dollars FY23'!$C$2","v":0},{"$f":"'Debt allocations'!AF64*'Debt Dollars FY23'!$C$2","v":0},{"$f":"'Debt allocations'!AG64*'Debt Dollars FY23'!$C$2","v":0},{"$f":"'Debt allocations'!AH64*'Debt Dollars FY23'!$C$2","v":0},{"$f":"'Debt allocations'!AI64*'Debt Dollars FY23'!$C$2","v":13197.131434302948},{"$f":"'Debt allocations'!AJ64*'Debt Dollars FY23'!$C$2","v":0},{"$f":"'Debt allocations'!AK64*'Debt Dollars FY23'!$C$2","v":0},{"$f":"'Debt allocations'!AL64*'Debt Dollars FY23'!$C$2","v":76932.987033418394},{"$f":"'Debt allocations'!AM64*'Debt Dollars FY23'!$C$2","v":0},{"$f":"'Debt allocations'!AN64*'Debt Dollars FY23'!$C$2","v":0}]
["240 - Department of Licensing","240","Department of Licensing",2.1141483444281337E-2,104161,150315.96843032376,{"$f":"'Debt allocations'!G65*'Debt Dollars FY23'!$C$2","v":0},{"$f":"'Debt allocations'!H65*'Debt Dollars FY23'!$C$2","v":0},{"$f":"'Debt allocations'!I65*'Debt Dollars FY23'!$C$2","v":0},{"$f":"'Debt allocations'!J65*'Debt Dollars FY23'!$C$2","v":0},{"$f":"'Debt allocations'!K65*'Debt Dollars FY23'!$C$2","v":150315.96843032376},{"$f":"'Debt allocations'!L65*'Debt Dollars FY23'!$C$2","v":0},{"$f":"'Debt allocations'!M65*'Debt Dollars FY23'!$C$2","v":0},{"$f":"'Debt allocations'!N65*'Debt Dollars FY23'!$C$2","v":0},{"$f":"'Debt allocations'!O65*'Debt Dollars FY23'!$C$2","v":0},{"$f":"'Debt allocations'!P65*'Debt Dollars FY23'!$C$2","v":0},{"$f":"'Debt allocations'!Q65*'Debt Dollars FY23'!$C$2","v":0},{"$f":"'Debt allocations'!R65*'Debt Dollars FY23'!$C$2","v":0},{"$f":"'Debt allocations'!S65*'Debt Dollars FY23'!$C$2","v":0},{"$f":"'Debt allocations'!T65*'Debt Dollars FY23'!$C$2","v":0},{"$f":"'Debt allocations'!U65*'Debt Dollars FY23'!$C$2","v":0},{"$f":"'Debt allocations'!V65*'Debt Dollars FY23'!$C$2","v":0},{"$f":"'Debt allocations'!W65*'Debt Dollars FY23'!$C$2","v":0},{"$f":"'Debt allocations'!X65*'Debt Dollars FY23'!$C$2","v":0},{"$f":"'Debt allocations'!Y65*'Debt Dollars FY23'!$C$2","v":0},{"$f":"'Debt allocations'!Z65*'Debt Dollars FY23'!$C$2","v":0},{"$f":"'Debt allocations'!AA65*'Debt Dollars FY23'!$C$2","v":0},{"$f":"'Debt allocations'!AB65*'Debt Dollars FY23'!$C$2","v":0},{"$f":"'Debt allocations'!AC65*'Debt Dollars FY23'!$C$2","v":0},{"$f":"'Debt allocations'!AD65*'Debt Dollars FY23'!$C$2","v":0},{"$f":"'Debt allocations'!AE65*'Debt Dollars FY23'!$C$2","v":0},{"$f":"'Debt allocations'!AF65*'Debt Dollars FY23'!$C$2","v":0},{"$f":"'Debt allocations'!AG65*'Debt Dollars FY23'!$C$2","v":0},{"$f":"'Debt allocations'!AH65*'Debt Dollars FY23'!$C$2","v":0},{"$f":"'Debt allocations'!AI65*'Debt Dollars FY23'!$C$2","v":0},{"$f":"'Debt allocations'!AJ65*'Debt Dollars FY23'!$C$2","v":0},{"$f":"'Debt allocations'!AK65*'Debt Dollars FY23'!$C$2","v":0},{"$f":"'Debt allocations'!AL65*'Debt Dollars FY23'!$C$2","v":0},{"$f":"'Debt allocations'!AM65*'Debt Dollars FY23'!$C$2","v":0},{"$f":"'Debt allocations'!AN65*'Debt Dollars FY23'!$C$2","v":0}]
["245 - Military Department","245","Military Department",9.9999999999999998E-20,1E-8,0,{"$f":"'Debt allocations'!G66*'Debt Dollars FY23'!$C$2","v":0},{"$f":"'Debt allocations'!H66*'Debt Dollars FY23'!$C$2","v":0},{"$f":"'Debt allocations'!I66*'Debt Dollars FY23'!$C$2","v":0},{"$f":"'Debt allocations'!J66*'Debt Dollars FY23'!$C$2","v":0},{"$f":"'Debt allocations'!K66*'Debt Dollars FY23'!$C$2","v":0},{"$f":"'Debt allocations'!L66*'Debt Dollars FY23'!$C$2","v":0},{"$f":"'Debt allocations'!M66*'Debt Dollars FY23'!$C$2","v":0},{"$f":"'Debt allocations'!N66*'Debt Dollars FY23'!$C$2","v":0},{"$f":"'Debt allocations'!O66*'Debt Dollars FY23'!$C$2","v":0},{"$f":"'Debt allocations'!P66*'Debt Dollars FY23'!$C$2","v":0},{"$f":"'Debt allocations'!Q66*'Debt Dollars FY23'!$C$2","v":0},{"$f":"'Debt allocations'!R66*'Debt Dollars FY23'!$C$2","v":0},{"$f":"'Debt allocations'!S66*'Debt Dollars FY23'!$C$2","v":0},{"$f":"'Debt allocations'!T66*'Debt Dollars FY23'!$C$2","v":0},{"$f":"'Debt allocations'!U66*'Debt Dollars FY23'!$C$2","v":0},{"$f":"'Debt allocations'!V66*'Debt Dollars FY23'!$C$2","v":0},{"$f":"'Debt allocations'!W66*'Debt Dollars FY23'!$C$2","v":0},{"$f":"'Debt allocations'!X66*'Debt Dollars FY23'!$C$2","v":0},{"$f":"'Debt allocations'!Y66*'Debt Dollars FY23'!$C$2","v":0},{"$f":"'Debt allocations'!Z66*'Debt Dollars FY23'!$C$2","v":0},{"$f":"'Debt allocations'!AA66*'Debt Dollars FY23'!$C$2","v":0},{"$f":"'Debt allocations'!AB66*'Debt Dollars FY23'!$C$2","v":0},{"$f":"'Debt allocations'!AC66*'Debt Dollars FY23'!$C$2","v":0},{"$f":"'Debt allocations'!AD66*'Debt Dollars FY23'!$C$2","v":0},{"$f":"'Debt allocations'!AE66*'Debt Dollars FY23'!$C$2","v":0},{"$f":"'Debt allocations'!AF66*'Debt Dollars FY23'!$C$2","v":0},{"$f":"'Debt allocations'!AG66*'Debt Dollars FY23'!$C$2","v":0},{"$f":"'Debt allocations'!AH66*'Debt Dollars FY23'!$C$2","v":0},{"$f":"'Debt allocations'!AI66*'Debt Dollars FY23'!$C$2","v":0},{"$f":"'Debt allocations'!AJ66*'Debt Dollars FY23'!$C$2","v":0},{"$f":"'Debt allocations'!AK66*'Debt Dollars FY23'!$C$2","v":0},{"$f":"'Debt allocations'!AL66*'Debt Dollars FY23'!$C$2","v":0},{"$f":"'Debt allocations'!AM66*'Debt Dollars FY23'!$C$2","v":0},{"$f":"'Debt allocations'!AN66*'Debt Dollars FY23'!$C$2","v":0}]
["275 - Public Employment Relations Commission","275","Public Employment Relations Commission",9.9999999999999998E-20,1E-8,0,{"$f":"'Debt allocations'!G67*'Debt Dollars FY23'!$C$2","v":0},{"$f":"'Debt allocations'!H67*'Debt Dollars FY23'!$C$2","v":0},{"$f":"'Debt allocations'!I67*'Debt Dollars FY23'!$C$2","v":0},{"$f":"'Debt allocations'!J67*'Debt Dollars FY23'!$C$2","v":0},{"$f":"'Debt allocations'!K67*'Debt Dollars FY23'!$C$2","v":0},{"$f":"'Debt allocations'!L67*'Debt Dollars FY23'!$C$2","v":0},{"$f":"'Debt allocations'!M67*'Debt Dollars FY23'!$C$2","v":0},{"$f":"'Debt allocations'!N67*'Debt Dollars FY23'!$C$2","v":0},{"$f":"'Debt allocations'!O67*'Debt Dollars FY23'!$C$2","v":0},{"$f":"'Debt allocations'!P67*'Debt Dollars FY23'!$C$2","v":0},{"$f":"'Debt allocations'!Q67*'Debt Dollars FY23'!$C$2","v":0},{"$f":"'Debt allocations'!R67*'Debt Dollars FY23'!$C$2","v":0},{"$f":"'Debt allocations'!S67*'Debt Dollars FY23'!$C$2","v":0},{"$f":"'Debt allocations'!T67*'Debt Dollars FY23'!$C$2","v":0},{"$f":"'Debt allocations'!U67*'Debt Dollars FY23'!$C$2","v":0},{"$f":"'Debt allocations'!V67*'Debt Dollars FY23'!$C$2","v":0},{"$f":"'Debt allocations'!W67*'Debt Dollars FY23'!$C$2","v":0},{"$f":"'Debt allocations'!X67*'Debt Dollars FY23'!$C$2","v":0},{"$f":"'Debt allocations'!Y67*'Debt Dollars FY23'!$C$2","v":0},{"$f":"'Debt allocations'!Z67*'Debt Dollars FY23'!$C$2","v":0},{"$f":"'Debt allocations'!AA67*'Debt Dollars FY23'!$C$2","v":0},{"$f":"'Debt allocations'!AB67*'Debt Dollars FY23'!$C$2","v":0},{"$f":"'Debt allocations'!AC67*'Debt Dollars FY23'!$C$2","v":0},{"$f":"'Debt allocations'!AD67*'Debt Dollars FY23'!$C$2","v":0},{"$f":"'Debt allocations'!AE67*'Debt Dollars FY23'!$C$2","v":0},{"$f":"'Debt allocations'!AF67*'Debt Dollars FY23'!$C$2","v":0},{"$f":"'Debt allocations'!AG67*'Debt Dollars FY23'!$C$2","v":0},{"$f":"'Debt allocations'!AH67*'Debt Dollars FY23'!$C$2","v":0},{"$f":"'Debt allocations'!AI67*'Debt Dollars FY23'!$C$2","v":0},{"$f":"'Debt allocations'!AJ67*'Debt Dollars FY23'!$C$2","v":0},{"$f":"'Debt allocations'!AK67*'Debt Dollars FY23'!$C$2","v":0},{"$f":"'Debt allocations'!AL67*'Debt Dollars FY23'!$C$2","v":0},{"$f":"'Debt allocations'!AM67*'Debt Dollars FY23'!$C$2","v":0},{"$f":"'Debt allocations'!AN67*'Debt Dollars FY23'!$C$2","v":0}]
["300 - Department of Social and Health Services","300","Department of Social and Health Services",5.1028415620015803E-2,259809,362812.08608672791,{"$f":"'Debt allocations'!G68*'Debt Dollars FY23'!$C$2","v":0},{"$f":"'Debt allocations'!H68*'Debt Dollars FY23'!$C$2","v":0},{"$f":"'Debt allocations'!I68*'Debt Dollars FY23'!$C$2","v":0},{"$f":"'Debt allocations'!J68*'Debt Dollars FY23'!$C$2","v":0},{"$f":"'Debt allocations'!K68*'Debt Dollars FY23'!$C$2","v":0},{"$f":"'Debt allocations'!L68*'Debt Dollars FY23'!$C$2","v":242139.00058588377},{"$f":"'Debt allocations'!M68*'Debt Dollars FY23'!$C$2","v":0},{"$f":"'Debt allocations'!N68*'Debt Dollars FY23'!$C$2","v":0},{"$f":"'Debt allocations'!O68*'Debt Dollars FY23'!$C$2","v":0},{"$f":"'Debt allocations'!P68*'Debt Dollars FY23'!$C$2","v":0},{"$f":"'Debt allocations'!Q68*'Debt Dollars FY23'!$C$2","v":0},{"$f":"'Debt allocations'!R68*'Debt Dollars FY23'!$C$2","v":0},{"$f":"'Debt allocations'!S68*'Debt Dollars FY23'!$C$2","v":0},{"$f":"'Debt allocations'!T68*'Debt Dollars FY23'!$C$2","v":0},{"$f":"'Debt allocations'!U68*'Debt Dollars FY23'!$C$2","v":0},{"$f":"'Debt allocations'!V68*'Debt Dollars FY23'!$C$2","v":0},{"$f":"'Debt allocations'!W68*'Debt Dollars FY23'!$C$2","v":0},{"$f":"'Debt allocations'!X68*'Debt Dollars FY23'!$C$2","v":0},{"$f":"'Debt allocations'!Y68*'Debt Dollars FY23'!$C$2","v":0},{"$f":"'Debt allocations'!Z68*'Debt Dollars FY23'!$C$2","v":0},{"$f":"'Debt allocations'!AA68*'Debt Dollars FY23'!$C$2","v":0},{"$f":"'Debt allocations'!AB68*'Debt Dollars FY23'!$C$2","v":0},{"$f":"'Debt allocations'!AC68*'Debt Dollars FY23'!$C$2","v":0},{"$f":"'Debt allocations'!AD68*'Debt Dollars FY23'!$C$2","v":0},{"$f":"'Debt allocations'!AE68*'Debt Dollars FY23'!$C$2","v":0},{"$f":"'Debt allocations'!AF68*'Debt Dollars FY23'!$C$2","v":0},{"$f":"'Debt allocations'!AG68*'Debt Dollars FY23'!$C$2","v":0},{"$f":"'Debt allocations'!AH68*'Debt Dollars FY23'!$C$2","v":0},{"$f":"'Debt allocations'!AI68*'Debt Dollars FY23'!$C$2","v":37075.463404651731},{"$f":"'Debt allocations'!AJ68*'Debt Dollars FY23'!$C$2","v":83597.622096192456},{"$f":"'Debt allocations'!AK68*'Debt Dollars FY23'!$C$2","v":0},{"$f":"'Debt allocations'!AL68*'Debt Dollars FY23'!$C$2","v":0},{"$f":"'Debt allocations'!AM68*'Debt Dollars FY23'!$C$2","v":0},{"$f":"'Debt allocations'!AN68*'Debt Dollars FY23'!$C$2","v":0}]
["303 - Department of Health","303","Department of Health",9.9999999999999998E-20,1E-8,0,{"$f":"'Debt allocations'!G69*'Debt Dollars FY23'!$C$2","v":0},{"$f":"'Debt allocations'!H69*'Debt Dollars FY23'!$C$2","v":0},{"$f":"'Debt allocations'!I69*'Debt Dollars FY23'!$C$2","v":0},{"$f":"'Debt allocations'!J69*'Debt Dollars FY23'!$C$2","v":0},{"$f":"'Debt allocations'!K69*'Debt Dollars FY23'!$C$2","v":0},{"$f":"'Debt allocations'!L69*'Debt Dollars FY23'!$C$2","v":0},{"$f":"'Debt allocations'!M69*'Debt Dollars FY23'!$C$2","v":0},{"$f":"'Debt allocations'!N69*'Debt Dollars FY23'!$C$2","v":0},{"$f":"'Debt allocations'!O69*'Debt Dollars FY23'!$C$2","v":0},{"$f":"'Debt allocations'!P69*'Debt Dollars FY23'!$C$2","v":0},{"$f":"'Debt allocations'!Q69*'Debt Dollars FY23'!$C$2","v":0},{"$f":"'Debt allocations'!R69*'Debt Dollars FY23'!$C$2","v":0},{"$f":"'Debt allocations'!S69*'Debt Dollars FY23'!$C$2","v":0},{"$f":"'Debt allocations'!T69*'Debt Dollars FY23'!$C$2","v":0},{"$f":"'Debt allocations'!U69*'Debt Dollars FY23'!$C$2","v":0},{"$f":"'Debt allocations'!V69*'Debt Dollars FY23'!$C$2","v":0},{"$f":"'Debt allocations'!W69*'Debt Dollars FY23'!$C$2","v":0},{"$f":"'Debt allocations'!X69*'Debt Dollars FY23'!$C$2","v":0},{"$f":"'Debt allocations'!Y69*'Debt Dollars FY23'!$C$2","v":0},{"$f":"'Debt allocations'!Z69*'Debt Dollars FY23'!$C$2","v":0},{"$f":"'Debt allocations'!AA69*'Debt Dollars FY23'!$C$2","v":0},{"$f":"'Debt allocations'!AB69*'Debt Dollars FY23'!$C$2","v":0},{"$f":"'Debt allocations'!AC69*'Debt Dollars FY23'!$C$2","v":0},{"$f":"'Debt allocations'!AD69*'Debt Dollars FY23'!$C$2","v":0},{"$f":"'Debt allocations'!AE69*'Debt Dollars FY23'!$C$2","v":0},{"$f":"'Debt allocations'!AF69*'Debt Dollars FY23'!$C$2","v":0},{"$f":"'Debt allocations'!AG69*'Debt Dollars FY23'!$C$2","v":0},{"$f":"'Debt allocations'!AH69*'Debt Dollars FY23'!$C$2","v":0},{"$f":"'Debt allocations'!AI69*'Debt Dollars FY23'!$C$2","v":0},{"$f":"'Debt allocations'!AJ69*'Debt Dollars FY23'!$C$2","v":0},{"$f":"'Debt allocations'!AK69*'Debt Dollars FY23'!$C$2","v":0},{"$f":"'Debt allocations'!AL69*'Debt Dollars FY23'!$C$2","v":0},{"$f":"'Debt allocations'!AM69*'Debt Dollars FY23'!$C$2","v":0},{"$f":"'Debt allocations'!AN69*'Debt Dollars FY23'!$C$2","v":0}]
["305 - Department of Veterans Affairs","305","Department of Veterans Affairs",9.9999999999999998E-20,1E-8,0,{"$f":"'Debt allocations'!G70*'Debt Dollars FY23'!$C$2","v":0},{"$f":"'Debt allocations'!H70*'Debt Dollars FY23'!$C$2","v":0},{"$f":"'Debt allocations'!I70*'Debt Dollars FY23'!$C$2","v":0},{"$f":"'Debt allocations'!J70*'Debt Dollars FY23'!$C$2","v":0},{"$f":"'Debt allocations'!K70*'Debt Dollars FY23'!$C$2","v":0},{"$f":"'Debt allocations'!L70*'Debt Dollars FY23'!$C$2","v":0},{"$f":"'Debt allocations'!M70*'Debt Dollars FY23'!$C$2","v":0},{"$f":"'Debt allocations'!N70*'Debt Dollars FY23'!$C$2","v":0},{"$f":"'Debt allocations'!O70*'Debt Dollars FY23'!$C$2","v":0},{"$f":"'Debt allocations'!P70*'Debt Dollars FY23'!$C$2","v":0},{"$f":"'Debt allocations'!Q70*'Debt Dollars FY23'!$C$2","v":0},{"$f":"'Debt allocations'!R70*'Debt Dollars FY23'!$C$2","v":0},{"$f":"'Debt allocations'!S70*'Debt Dollars FY23'!$C$2","v":0},{"$f":"'Debt allocations'!T70*'Debt Dollars FY23'!$C$2","v":0},{"$f":"'Debt allocations'!U70*'Debt Dollars FY23'!$C$2","v":0},{"$f":"'Debt allocations'!V70*'Debt Dollars FY23'!$C$2","v":0},{"$f":"'Debt allocations'!W70*'Debt Dollars FY23'!$C$2","v":0},{"$f":"'Debt allocations'!X70*'Debt Dollars FY23'!$C$2","v":0},{"$f":"'Debt allocations'!Y70*'Debt Dollars FY23'!$C$2","v":0},{"$f":"'Debt allocations'!Z70*'Debt Dollars FY23'!$C$2","v":0},{"$f":"'Debt allocations'!AA70*'Debt Dollars FY23'!$C$2","v":0},{"$f":"'Debt allocations'!AB70*'Debt Dollars FY23'!$C$2","v":0},{"$f":"'Debt allocations'!AC70*'Debt Dollars FY23'!$C$2","v":0},{"$f":"'Debt allocations'!AD70*'Debt Dollars FY23'!$C$2","v":0},{"$f":"'Debt allocations'!AE70*'Debt Dollars FY23'!$C$2","v":0},{"$f":"'Debt allocations'!AF70*'Debt Dollars FY23'!$C$2","v":0},{"$f":"'Debt allocations'!AG70*'Debt Dollars FY23'!$C$2","v":0},{"$f":"'Debt allocations'!AH70*'Debt Dollars FY23'!$C$2","v":0},{"$f":"'Debt allocations'!AI70*'Debt Dollars FY23'!$C$2","v":0},{"$f":"'Debt allocations'!AJ70*'Debt Dollars FY23'!$C$2","v":0},{"$f":"'Debt allocations'!AK70*'Debt Dollars FY23'!$C$2","v":0},{"$f":"'Debt allocations'!AL70*'Debt Dollars FY23'!$C$2","v":0},{"$f":"'Debt allocations'!AM70*'Debt Dollars FY23'!$C$2","v":0},{"$f":"'Debt allocations'!AN70*'Debt Dollars FY23'!$C$2","v":0}]
[{"$f":"CONCATENATE(B71,\" - \",C71)","v":"307 - DCYF"},"307","DCYF",2.2753309774425554E-2,116782,{"$f":"SUM(G71:AN71)","v":161776.05524947547},{"$f":"'Debt allocations'!G71*'Debt Dollars FY23'!$C$2","v":0},{"$f":"'Debt allocations'!H71*'Debt Dollars FY23'!$C$2","v":0},{"$f":"'Debt allocations'!I71*'Debt Dollars FY23'!$C$2","v":0},{"$f":"'Debt allocations'!J71*'Debt Dollars FY23'!$C$2","v":0},{"$f":"'Debt allocations'!K71*'Debt Dollars FY23'!$C$2","v":0},{"$f":"'Debt allocations'!L71*'Debt Dollars FY23'!$C$2","v":99145.915622650602},{"$f":"'Debt allocations'!M71*'Debt Dollars FY23'!$C$2","v":0},{"$f":"'Debt allocations'!N71*'Debt Dollars FY23'!$C$2","v":0},{"$f":"'Debt allocations'!O71*'Debt Dollars FY23'!$C$2","v":0},{"$f":"'Debt allocations'!P71*'Debt Dollars FY23'!$C$2","v":0},{"$f":"'Debt allocations'!Q71*'Debt Dollars FY23'!$C$2","v":0},{"$f":"'Debt allocations'!R71*'Debt Dollars FY23'!$C$2","v":0},{"$f":"'Debt allocations'!S71*'Debt Dollars FY23'!$C$2","v":0},{"$f":"'Debt allocations'!T71*'Debt Dollars FY23'!$C$2","v":0},{"$f":"'Debt allocations'!U71*'Debt Dollars FY23'!$C$2","v":0},{"$f":"'Debt allocations'!V71*'Debt Dollars FY23'!$C$2","v":0},{"$f":"'Debt allocations'!W71*'Debt Dollars FY23'!$C$2","v":0},{"$f":"'Debt allocations'!X71*'Debt Dollars FY23'!$C$2","v":0},{"$f":"'Debt allocations'!Y71*'Debt Dollars FY23'!$C$2","v":0},{"$f":"'Debt allocations'!Z71*'Debt Dollars FY23'!$C$2","v":0},{"$f":"'Debt allocations'!AA71*'Debt Dollars FY23'!$C$2","v":0},{"$f":"'Debt allocations'!AB71*'Debt Dollars FY23'!$C$2","v":0},{"$f":"'Debt allocations'!AC71*'Debt Dollars FY23'!$C$2","v":0},{"$f":"'Debt allocations'!AD71*'Debt Dollars FY23'!$C$2","v":0},{"$f":"'Debt allocations'!AE71*'Debt Dollars FY23'!$C$2","v":0},{"$f":"'Debt allocations'!AF71*'Debt Dollars FY23'!$C$2","v":0},{"$f":"'Debt allocations'!AG71*'Debt Dollars FY23'!$C$2","v":0},{"$f":"'Debt allocations'!AH71*'Debt Dollars FY23'!$C$2","v":0},{"$f":"'Debt allocations'!AI71*'Debt Dollars FY23'!$C$2","v":27175.377593623733},{"$f":"'Debt allocations'!AJ71*'Debt Dollars FY23'!$C$2","v":35454.762033201128},{"$f":"'Debt allocations'!AK71*'Debt Dollars FY23'!$C$2","v":0},{"$f":"'Debt allocations'!AL71*'Debt Dollars FY23'!$C$2","v":0},{"$f":"'Debt allocations'!AM71*'Debt Dollars FY23'!$C$2","v":0},{"$f":"'Debt allocations'!AN71*'Debt Dollars FY23'!$C$2","v":0}]
["310 - Department of Corrections","310","Department of Corrections",9.9999999999999998E-20,1E-8,0,{"$f":"'Debt allocations'!G72*'Debt Dollars FY23'!$C$2","v":0},{"$f":"'Debt allocations'!H72*'Debt Dollars FY23'!$C$2","v":0},{"$f":"'Debt allocations'!I72*'Debt Dollars FY23'!$C$2","v":0},{"$f":"'Debt allocations'!J72*'Debt Dollars FY23'!$C$2","v":0},{"$f":"'Debt allocations'!K72*'Debt Dollars FY23'!$C$2","v":0},{"$f":"'Debt allocations'!L72*'Debt Dollars FY23'!$C$2","v":0},{"$f":"'Debt allocations'!M72*'Debt Dollars FY23'!$C$2","v":0},{"$f":"'Debt allocations'!N72*'Debt Dollars FY23'!$C$2","v":0},{"$f":"'Debt allocations'!O72*'Debt Dollars FY23'!$C$2","v":0},{"$f":"'Debt allocations'!P72*'Debt Dollars FY23'!$C$2","v":0},{"$f":"'Debt allocations'!Q72*'Debt Dollars FY23'!$C$2","v":0},{"$f":"'Debt allocations'!R72*'Debt Dollars FY23'!$C$2","v":0},{"$f":"'Debt allocations'!S72*'Debt Dollars FY23'!$C$2","v":0},{"$f":"'Debt allocations'!T72*'Debt Dollars FY23'!$C$2","v":0},{"$f":"'Debt allocations'!U72*'Debt Dollars FY23'!$C$2","v":0},{"$f":"'Debt allocations'!V72*'Debt Dollars FY23'!$C$2","v":0},{"$f":"'Debt allocations'!W72*'Debt Dollars FY23'!$C$2","v":0},{"$f":"'Debt allocations'!X72*'Debt Dollars FY23'!$C$2","v":0},{"$f":"'Debt allocations'!Y72*'Debt Dollars FY23'!$C$2","v":0},{"$f":"'Debt allocations'!Z72*'Debt Dollars FY23'!$C$2","v":0},{"$f":"'Debt allocations'!AA72*'Debt Dollars FY23'!$C$2","v":0},{"$f":"'Debt allocations'!AB72*'Debt Dollars FY23'!$C$2","v":0},{"$f":"'Debt allocations'!AC72*'Debt Dollars FY23'!$C$2","v":0},{"$f":"'Debt allocations'!AD72*'Debt Dollars FY23'!$C$2","v":0},{"$f":"'Debt allocations'!AE72*'Debt Dollars FY23'!$C$2","v":0},{"$f":"'Debt allocations'!AF72*'Debt Dollars FY23'!$C$2","v":0},{"$f":"'Debt allocations'!AG72*'Debt Dollars FY23'!$C$2","v":0},{"$f":"'Debt allocations'!AH72*'Debt Dollars FY23'!$C$2","v":0},{"$f":"'Debt allocations'!AI72*'Debt Dollars FY23'!$C$2","v":0},{"$f":"'Debt allocations'!AJ72*'Debt Dollars FY23'!$C$2","v":0},{"$f":"'Debt allocations'!AK72*'Debt Dollars FY23'!$C$2","v":0},{"$f":"'Debt allocations'!AL72*'Debt Dollars FY23'!$C$2","v":0},{"$f":"'Debt allocations'!AM72*'Debt Dollars FY23'!$C$2","v":0},{"$f":"'Debt allocations'!AN72*'Debt Dollars FY23'!$C$2","v":0}]
["315 - Department of Services for the Blind","315","Department of Services for the Blind",1.0287304215108753E-3,2775,7314.2743256727435,{"$f":"'Debt allocations'!G73*'Debt Dollars FY23'!$C$2","v":0},{"$f":"'Debt allocations'!H73*'Debt Dollars FY23'!$C$2","v":0},{"$f":"'Debt allocations'!I73*'Debt Dollars FY23'!$C$2","v":0},{"$f":"'Debt allocations'!J73*'Debt Dollars FY23'!$C$2","v":0},{"$f":"'Debt allocations'!K73*'Debt Dollars FY23'!$C$2","v":0},{"$f":"'Debt allocations'!L73*'Debt Dollars FY23'!$C$2","v":0},{"$f":"'Debt allocations'!M73*'Debt Dollars FY23'!$C$2","v":0},{"$f":"'Debt allocations'!N73*'Debt Dollars FY23'!$C$2","v":0},{"$f":"'Debt allocations'!O73*'Debt Dollars FY23'!$C$2","v":0},{"$f":"'Debt allocations'!P73*'Debt Dollars FY23'!$C$2","v":0},{"$f":"'Debt allocations'!Q73*'Debt Dollars FY23'!$C$2","v":0},{"$f":"'Debt allocations'!R73*'Debt Dollars FY23'!$C$2","v":0},{"$f":"'Debt allocations'!S73*'Debt Dollars FY23'!$C$2","v":0},{"$f":"'Debt allocations'!T73*'Debt Dollars FY23'!$C$2","v":0},{"$f":"'Debt allocations'!U73*'Debt Dollars FY23'!$C$2","v":0},{"$f":"'Debt allocations'!V73*'Debt Dollars FY23'!$C$2","v":0},{"$f":"'Debt allocations'!W73*'Debt Dollars FY23'!$C$2","v":0},{"$f":"'Debt allocations'!X73*'Debt Dollars FY23'!$C$2","v":0},{"$f":"'Debt allocations'!Y73*'Debt Dollars FY23'!$C$2","v":0},{"$f":"'Debt allocations'!Z73*'Debt Dollars FY23'!$C$2","v":0},{"$f":"'Debt allocations'!AA73*'Debt Dollars FY23'!$C$2","v":0},{"$f":"'Debt allocations'!AB73*'Debt Dollars FY23'!$C$2","v":0},{"$f":"'Debt allocations'!AC73*'Debt Dollars FY23'!$C$2","v":0},{"$f":"'Debt allocations'!AD73*'Debt Dollars FY23'!$C$2","v":0},{"$f":"'Debt allocations'!AE73*'Debt Dollars FY23'!$C$2","v":0},{"$f":"'Debt allocations'!AF73*'Debt Dollars FY23'!$C$2","v":0},{"$f":"'Debt allocations'!AG73*'Debt Dollars FY23'!$C$2","v":0},{"$f":"'Debt allocations'!AH73*'Debt Dollars FY23'!$C$2","v":0},{"$f":"'Debt allocations'!AI73*'Debt Dollars FY23'!$C$2","v":0},{"$f":"'Debt allocations'!AJ73*'Debt Dollars FY23'!$C$2","v":0},{"$f":"'Debt allocations'!AK73*'Debt Dollars FY23'!$C$2","v":0},{"$f":"'Debt allocations'!AL73*'Debt Dollars FY23'!$C$2","v":7314.2743256727435},{"$f":"'Debt allocations'!AM73*'Debt Dollars FY23'!$C$2","v":0},{"$f":"'Debt allocations'!AN73*'Debt Dollars FY23'!$C$2","v":0}]
["340 - Student Achievement Council","340","Student Achievement Council",9.9999999999999998E-20,1E-8,0,{"$f":"'Debt allocations'!G74*'Debt Dollars FY23'!$C$2","v":0},{"$f":"'Debt allocations'!H74*'Debt Dollars FY23'!$C$2","v":0},{"$f":"'Debt allocations'!I74*'Debt Dollars FY23'!$C$2","v":0},{"$f":"'Debt allocations'!J74*'Debt Dollars FY23'!$C$2","v":0},{"$f":"'Debt allocations'!K74*'Debt Dollars FY23'!$C$2","v":0},{"$f":"'Debt allocations'!L74*'Debt Dollars FY23'!$C$2","v":0},{"$f":"'Debt allocations'!M74*'Debt Dollars FY23'!$C$2","v":0},{"$f":"'Debt allocations'!N74*'Debt Dollars FY23'!$C$2","v":0},{"$f":"'Debt allocations'!O74*'Debt Dollars FY23'!$C$2","v":0},{"$f":"'Debt allocations'!P74*'Debt Dollars FY23'!$C$2","v":0},{"$f":"'Debt allocations'!Q74*'Debt Dollars FY23'!$C$2","v":0},{"$f":"'Debt allocations'!R74*'Debt Dollars FY23'!$C$2","v":0},{"$f":"'Debt allocations'!S74*'Debt Dollars FY23'!$C$2","v":0},{"$f":"'Debt allocations'!T74*'Debt Dollars FY23'!$C$2","v":0},{"$f":"'Debt allocations'!U74*'Debt Dollars FY23'!$C$2","v":0},{"$f":"'Debt allocations'!V74*'Debt Dollars FY23'!$C$2","v":0},{"$f":"'Debt allocations'!W74*'Debt Dollars FY23'!$C$2","v":0},{"$f":"'Debt allocations'!X74*'Debt Dollars FY23'!$C$2","v":0},{"$f":"'Debt allocations'!Y74*'Debt Dollars FY23'!$C$2","v":0},{"$f":"'Debt allocations'!Z74*'Debt Dollars FY23'!$C$2","v":0},{"$f":"'Debt allocations'!AA74*'Debt Dollars FY23'!$C$2","v":0},{"$f":"'Debt allocations'!AB74*'Debt Dollars FY23'!$C$2","v":0},{"$f":"'Debt allocations'!AC74*'Debt Dollars FY23'!$C$2","v":0},{"$f":"'Debt allocations'!AD74*'Debt Dollars FY23'!$C$2","v":0},{"$f":"'Debt allocations'!AE74*'Debt Dollars FY23'!$C$2","v":0},{"$f":"'Debt allocations'!AF74*'Debt Dollars FY23'!$C$2","v":0},{"$f":"'Debt allocations'!AG74*'Debt Dollars FY23'!$C$2","v":0},{"$f":"'Debt allocations'!AH74*'Debt Dollars FY23'!$C$2","v":0},{"$f":"'Debt allocations'!AI74*'Debt Dollars FY23'!$C$2","v":0},{"$f":"'Debt allocations'!AJ74*'Debt Dollars FY23'!$C$2","v":0},{"$f":"'Debt allocations'!AK74*'Debt Dollars FY23'!$C$2","v":0},{"$f":"'Debt allocations'!AL74*'Debt Dollars FY23'!$C$2","v":0},{"$f":"'Debt allocations'!AM74*'Debt Dollars FY23'!$C$2","v":0},{"$f":"'Debt allocations'!AN74*'Debt Dollars FY23'!$C$2","v":0}]
["341 - Law Enforcement Officers' & Fire Fighters' Plan 2 Retirement Board","341","Law Enforcement Officers' & Fire Fighters' Plan 2 Retirement Board",9.9999999999999998E-20,1E-8,0,{"$f":"'Debt allocations'!G75*'Debt Dollars FY23'!$C$2","v":0},{"$f":"'Debt allocations'!H75*'Debt Dollars FY23'!$C$2","v":0},{"$f":"'Debt allocations'!I75*'Debt Dollars FY23'!$C$2","v":0},{"$f":"'Debt allocations'!J75*'Debt Dollars FY23'!$C$2","v":0},{"$f":"'Debt allocations'!K75*'Debt Dollars FY23'!$C$2","v":0},{"$f":"'Debt allocations'!L75*'Debt Dollars FY23'!$C$2","v":0},{"$f":"'Debt allocations'!M75*'Debt Dollars FY23'!$C$2","v":0},{"$f":"'Debt allocations'!N75*'Debt Dollars FY23'!$C$2","v":0},{"$f":"'Debt allocations'!O75*'Debt Dollars FY23'!$C$2","v":0},{"$f":"'Debt allocations'!P75*'Debt Dollars FY23'!$C$2","v":0},{"$f":"'Debt allocations'!Q75*'Debt Dollars FY23'!$C$2","v":0},{"$f":"'Debt allocations'!R75*'Debt Dollars FY23'!$C$2","v":0},{"$f":"'Debt allocations'!S75*'Debt Dollars FY23'!$C$2","v":0},{"$f":"'Debt allocations'!T75*'Debt Dollars FY23'!$C$2","v":0},{"$f":"'Debt allocations'!U75*'Debt Dollars FY23'!$C$2","v":0},{"$f":"'Debt allocations'!V75*'Debt Dollars FY23'!$C$2","v":0},{"$f":"'Debt allocations'!W75*'Debt Dollars FY23'!$C$2","v":0},{"$f":"'Debt allocations'!X75*'Debt Dollars FY23'!$C$2","v":0},{"$f":"'Debt allocations'!Y75*'Debt Dollars FY23'!$C$2","v":0},{"$f":"'Debt allocations'!Z75*'Debt Dollars FY23'!$C$2","v":0},{"$f":"'Debt allocations'!AA75*'Debt Dollars FY23'!$C$2","v":0},{"$f":"'Debt allocations'!AB75*'Debt Dollars FY23'!$C$2","v":0},{"$f":"'Debt allocations'!AC75*'Debt Dollars FY23'!$C$2","v":0},{"$f":"'Debt allocations'!AD75*'Debt Dollars FY23'!$C$2","v":0},{"$f":"'Debt allocations'!AE75*'Debt Dollars FY23'!$C$2","v":0},{"$f":"'Debt allocations'!AF75*'Debt Dollars FY23'!$C$2","v":0},{"$f":"'Debt allocations'!AG75*'Debt Dollars FY23'!$C$2","v":0},{"$f":"'Debt allocations'!AH75*'Debt Dollars FY23'!$C$2","v":0},{"$f":"'Debt allocations'!AI75*'Debt Dollars FY23'!$C$2","v":0},{"$f":"'Debt allocations'!AJ75*'Debt Dollars FY23'!$C$2","v":0},{"$f":"'Debt allocations'!AK75*'Debt Dollars FY23'!$C$2","v":0},{"$f":"'Debt allocations'!AL75*'Debt Dollars FY23'!$C$2","v":0},{"$f":"'Debt allocations'!AM75*'Debt Dollars FY23'!$C$2","v":0},{"$f":"'Debt allocations'!AN75*'Debt Dollars FY23'!$C$2","v":0}]
["350 - Superintendent of Public Instruction","350","Superintendent of Public Instruction",9.9999999999999998E-20,1E-8,0,{"$f":"'Debt allocations'!G76*'Debt Dollars FY23'!$C$2","v":0},{"$f":"'Debt allocations'!H76*'Debt Dollars FY23'!$C$2","v":0},{"$f":"'Debt allocations'!I76*'Debt Dollars FY23'!$C$2","v":0},{"$f":"'Debt allocations'!J76*'Debt Dollars FY23'!$C$2","v":0},{"$f":"'Debt allocations'!K76*'Debt Dollars FY23'!$C$2","v":0},{"$f":"'Debt allocations'!L76*'Debt Dollars FY23'!$C$2","v":0},{"$f":"'Debt allocations'!M76*'Debt Dollars FY23'!$C$2","v":0},{"$f":"'Debt allocations'!N76*'Debt Dollars FY23'!$C$2","v":0},{"$f":"'Debt allocations'!O76*'Debt Dollars FY23'!$C$2","v":0},{"$f":"'Debt allocations'!P76*'Debt Dollars FY23'!$C$2","v":0},{"$f":"'Debt allocations'!Q76*'Debt Dollars FY23'!$C$2","v":0},{"$f":"'Debt allocations'!R76*'Debt Dollars FY23'!$C$2","v":0},{"$f":"'Debt allocations'!S76*'Debt Dollars FY23'!$C$2","v":0},{"$f":"'Debt allocations'!T76*'Debt Dollars FY23'!$C$2","v":0},{"$f":"'Debt allocations'!U76*'Debt Dollars FY23'!$C$2","v":0},{"$f":"'Debt allocations'!V76*'Debt Dollars FY23'!$C$2","v":0},{"$f":"'Debt allocations'!W76*'Debt Dollars FY23'!$C$2","v":0},{"$f":"'Debt allocations'!X76*'Debt Dollars FY23'!$C$2","v":0},{"$f":"'Debt allocations'!Y76*'Debt Dollars FY23'!$C$2","v":0},{"$f":"'Debt allocations'!Z76*'Debt Dollars FY23'!$C$2","v":0},{"$f":"'Debt allocations'!AA76*'Debt Dollars FY23'!$C$2","v":0},{"$f":"'Debt allocations'!AB76*'Debt Dollars FY23'!$C$2","v":0},{"$f":"'Debt allocations'!AC76*'Debt Dollars FY23'!$C$2","v":0},{"$f":"'Debt allocations'!AD76*'Debt Dollars FY23'!$C$2","v":0},{"$f":"'Debt allocations'!AE76*'Debt Dollars FY23'!$C$2","v":0},{"$f":"'Debt allocations'!AF76*'Debt Dollars FY23'!$C$2","v":0},{"$f":"'Debt allocations'!AG76*'Debt Dollars FY23'!$C$2","v":0},{"$f":"'Debt allocations'!AH76*'Debt Dollars FY23'!$C$2","v":0},{"$f":"'Debt allocations'!AI76*'Debt Dollars FY23'!$C$2","v":0},{"$f":"'Debt allocations'!AJ76*'Debt Dollars FY23'!$C$2","v":0},{"$f":"'Debt allocations'!AK76*'Debt Dollars FY23'!$C$2","v":0},{"$f":"'Debt allocations'!AL76*'Debt Dollars FY23'!$C$2","v":0},{"$f":"'Debt allocations'!AM76*'Debt Dollars FY23'!$C$2","v":0},{"$f":"'Debt allocations'!AN76*'Debt Dollars FY23'!$C$2","v":0}]
["351 - State School For The Blind","351","State School For The Blind",9.9999999999999998E-20,1E-8,0,{"$f":"'Debt allocations'!G77*'Debt Dollars FY23'!$C$2","v":0},{"$f":"'Debt allocations'!H77*'Debt Dollars FY23'!$C$2","v":0},{"$f":"'Debt allocations'!I77*'Debt Dollars FY23'!$C$2","v":0},{"$f":"'Debt allocations'!J77*'Debt Dollars FY23'!$C$2","v":0},{"$f":"'Debt allocations'!K77*'Debt Dollars FY23'!$C$2","v":0},{"$f":"'Debt allocations'!L77*'Debt Dollars FY23'!$C$2","v":0},{"$f":"'Debt allocations'!M77*'Debt Dollars FY23'!$C$2","v":0},{"$f":"'Debt allocations'!N77*'Debt Dollars FY23'!$C$2","v":0},{"$f":"'Debt allocations'!O77*'Debt Dollars FY23'!$C$2","v":0},{"$f":"'Debt allocations'!P77*'Debt Dollars FY23'!$C$2","v":0},{"$f":"'Debt allocations'!Q77*'Debt Dollars FY23'!$C$2","v":0},{"$f":"'Debt allocations'!R77*'Debt Dollars FY23'!$C$2","v":0},{"$f":"'Debt allocations'!S77*'Debt Dollars FY23'!$C$2","v":0},{"$f":"'Debt allocations'!T77*'Debt Dollars FY23'!$C$2","v":0},{"$f":"'Debt allocations'!U77*'Debt Dollars FY23'!$C$2","v":0},{"$f":"'Debt allocations'!V77*'Debt Dollars FY23'!$C$2","v":0},{"$f":"'Debt allocations'!W77*'Debt Dollars FY23'!$C$2","v":0},{"$f":"'Debt allocations'!X77*'Debt Dollars FY23'!$C$2","v":0},{"$f":"'Debt allocations'!Y77*'Debt Dollars FY23'!$C$2","v":0},{"$f":"'Debt allocations'!Z77*'Debt Dollars FY23'!$C$2","v":0},{"$f":"'Debt allocations'!AA77*'Debt Dollars FY23'!$C$2","v":0},{"$f":"'Debt allocations'!AB77*'Debt Dollars FY23'!$C$2","v":0},{"$f":"'Debt allocations'!AC77*'Debt Dollars FY23'!$C$2","v":0},{"$f":"'Debt allocations'!AD77*'Debt Dollars FY23'!$C$2","v":0},{"$f":"'Debt allocations'!AE77*'Debt Dollars FY23'!$C$2","v":0},{"$f":"'Debt allocations'!AF77*'Debt Dollars FY23'!$C$2","v":0},{"$f":"'Debt allocations'!AG77*'Debt Dollars FY23'!$C$2","v":0},{"$f":"'Debt allocations'!AH77*'Debt Dollars FY23'!$C$2","v":0},{"$f":"'Debt allocations'!AI77*'Debt Dollars FY23'!$C$2","v":0},{"$f":"'Debt allocations'!AJ77*'Debt Dollars FY23'!$C$2","v":0},{"$f":"'Debt allocations'!AK77*'Debt Dollars FY23'!$C$2","v":0},{"$f":"'Debt allocations'!AL77*'Debt Dollars FY23'!$C$2","v":0},{"$f":"'Debt allocations'!AM77*'Debt Dollars FY23'!$C$2","v":0},{"$f":"'Debt allocations'!AN77*'Debt Dollars FY23'!$C$2","v":0}]
["353 - State Center for Childhood Deafness and Hearing Loss","353","State Center for Childhood Deafness and Hearing Loss",9.9999999999999998E-20,1E-8,0,{"$f":"'Debt allocations'!G78*'Debt Dollars FY23'!$C$2","v":0},{"$f":"'Debt allocations'!H78*'Debt Dollars FY23'!$C$2","v":0},{"$f":"'Debt allocations'!I78*'Debt Dollars FY23'!$C$2","v":0},{"$f":"'Debt allocations'!J78*'Debt Dollars FY23'!$C$2","v":0},{"$f":"'Debt allocations'!K78*'Debt Dollars FY23'!$C$2","v":0},{"$f":"'Debt allocations'!L78*'Debt Dollars FY23'!$C$2","v":0},{"$f":"'Debt allocations'!M78*'Debt Dollars FY23'!$C$2","v":0},{"$f":"'Debt allocations'!N78*'Debt Dollars FY23'!$C$2","v":0},{"$f":"'Debt allocations'!O78*'Debt Dollars FY23'!$C$2","v":0},{"$f":"'Debt allocations'!P78*'Debt Dollars FY23'!$C$2","v":0},{"$f":"'Debt allocations'!Q78*'Debt Dollars FY23'!$C$2","v":0},{"$f":"'Debt allocations'!R78*'Debt Dollars FY23'!$C$2","v":0},{"$f":"'Debt allocations'!S78*'Debt Dollars FY23'!$C$2","v":0},{"$f":"'Debt allocations'!T78*'Debt Dollars FY23'!$C$2","v":0},{"$f":"'Debt allocations'!U78*'Debt Dollars FY23'!$C$2","v":0},{"$f":"'Debt allocations'!V78*'Debt Dollars FY23'!$C$2","v":0},{"$f":"'Debt allocations'!W78*'Debt Dollars FY23'!$C$2","v":0},{"$f":"'Debt allocations'!X78*'Debt Dollars FY23'!$C$2","v":0},{"$f":"'Debt allocations'!Y78*'Debt Dollars FY23'!$C$2","v":0},{"$f":"'Debt allocations'!Z78*'Debt Dollars FY23'!$C$2","v":0},{"$f":"'Debt allocations'!AA78*'Debt Dollars FY23'!$C$2","v":0},{"$f":"'Debt allocations'!AB78*'Debt Dollars FY23'!$C$2","v":0},{"$f":"'Debt allocations'!AC78*'Debt Dollars FY23'!$C$2","v":0},{"$f":"'Debt allocations'!AD78*'Debt Dollars FY23'!$C$2","v":0},{"$f":"'Debt allocations'!AE78*'Debt Dollars FY23'!$C$2","v":0},{"$f":"'Debt allocations'!AF78*'Debt Dollars FY23'!$C$2","v":0},{"$f":"'Debt allocations'!AG78*'Debt Dollars FY23'!$C$2","v":0},{"$f":"'Debt allocations'!AH78*'Debt Dollars FY23'!$C$2","v":0},{"$f":"'Debt allocations'!AI78*'Debt Dollars FY23'!$C$2","v":0},{"$f":"'Debt allocations'!AJ78*'Debt Dollars FY23'!$C$2","v":0},{"$f":"'Debt allocations'!AK78*'Debt Dollars FY23'!$C$2","v":0},{"$f":"'Debt allocations'!AL78*'Debt Dollars FY23'!$C$2","v":0},{"$f":"'Debt allocations'!AM78*'Debt Dollars FY23'!$C$2","v":0},{"$f":"'Debt allocations'!AN78*'Debt Dollars FY23'!$C$2","v":0}]
["354 - Workforce Training and Education Coordinating Board","354","Workforce Training and Education Coordinating Board",9.9999999999999998E-20,1E-8,0,{"$f":"'Debt allocations'!G79*'Debt Dollars FY23'!$C$2","v":0},{"$f":"'Debt allocations'!H79*'Debt Dollars FY23'!$C$2","v":0},{"$f":"'Debt allocations'!I79*'Debt Dollars FY23'!$C$2","v":0},{"$f":"'Debt allocations'!J79*'Debt Dollars FY23'!$C$2","v":0},{"$f":"'Debt allocations'!K79*'Debt Dollars FY23'!$C$2","v":0},{"$f":"'Debt allocations'!L79*'Debt Dollars FY23'!$C$2","v":0},{"$f":"'Debt allocations'!M79*'Debt Dollars FY23'!$C$2","v":0},{"$f":"'Debt allocations'!N79*'Debt Dollars FY23'!$C$2","v":0},{"$f":"'Debt allocations'!O79*'Debt Dollars FY23'!$C$2","v":0},{"$f":"'Debt allocations'!P79*'Debt Dollars FY23'!$C$2","v":0},{"$f":"'Debt allocations'!Q79*'Debt Dollars FY23'!$C$2","v":0},{"$f":"'Debt allocations'!R79*'Debt Dollars FY23'!$C$2","v":0},{"$f":"'Debt allocations'!S79*'Debt Dollars FY23'!$C$2","v":0},{"$f":"'Debt allocations'!T79*'Debt Dollars FY23'!$C$2","v":0},{"$f":"'Debt allocations'!U79*'Debt Dollars FY23'!$C$2","v":0},{"$f":"'Debt allocations'!V79*'Debt Dollars FY23'!$C$2","v":0},{"$f":"'Debt allocations'!W79*'Debt Dollars FY23'!$C$2","v":0},{"$f":"'Debt allocations'!X79*'Debt Dollars FY23'!$C$2","v":0},{"$f":"'Debt allocations'!Y79*'Debt Dollars FY23'!$C$2","v":0},{"$f":"'Debt allocations'!Z79*'Debt Dollars FY23'!$C$2","v":0},{"$f":"'Debt allocations'!AA79*'Debt Dollars FY23'!$C$2","v":0},{"$f":"'Debt allocations'!AB79*'Debt Dollars FY23'!$C$2","v":0},{"$f":"'Debt allocations'!AC79*'Debt Dollars FY23'!$C$2","v":0},{"$f":"'Debt allocations'!AD79*'Debt Dollars FY23'!$C$2","v":0},{"$f":"'Debt allocations'!AE79*'Debt Dollars FY23'!$C$2","v":0},{"$f":"'Debt allocations'!AF79*'Debt Dollars FY23'!$C$2","v":0},{"$f":"'Debt allocations'!AG79*'Debt Dollars FY23'!$C$2","v":0},{"$f":"'Debt allocations'!AH79*'Debt Dollars FY23'!$C$2","v":0},{"$f":"'Debt allocations'!AI79*'Debt Dollars FY23'!$C$2","v":0},{"$f":"'Debt allocations'!AJ79*'Debt Dollars FY23'!$C$2","v":0},{"$f":"'Debt allocations'!AK79*'Debt Dollars FY23'!$C$2","v":0},{"$f":"'Debt allocations'!AL79*'Debt Dollars FY23'!$C$2","v":0},{"$f":"'Debt allocations'!AM79*'Debt Dollars FY23'!$C$2","v":0},{"$f":"'Debt allocations'!AN79*'Debt Dollars FY23'!$C$2","v":0}]
["355 - Department of Archaeology and Historic Preservation","355","Department of Archaeology and Historic Preservation",7.3241158282550019E-3,9336,52074.470863008894,{"$f":"'Debt allocations'!G80*'Debt Dollars FY23'!$C$2","v":0},{"$f":"'Debt allocations'!H80*'Debt Dollars FY23'!$C$2","v":0},{"$f":"'Debt allocations'!I80*'Debt Dollars FY23'!$C$2","v":0},{"$f":"'Debt allocations'!J80*'Debt Dollars FY23'!$C$2","v":0},{"$f":"'Debt allocations'!K80*'Debt Dollars FY23'!$C$2","v":0},{"$f":"'Debt allocations'!L80*'Debt Dollars FY23'!$C$2","v":0},{"$f":"'Debt allocations'!M80*'Debt Dollars FY23'!$C$2","v":0},{"$f":"'Debt allocations'!N80*'Debt Dollars FY23'!$C$2","v":0},{"$f":"'Debt allocations'!O80*'Debt Dollars FY23'!$C$2","v":0},{"$f":"'Debt allocations'!P80*'Debt Dollars FY23'!$C$2","v":0},{"$f":"'Debt allocations'!Q80*'Debt Dollars FY23'!$C$2","v":0},{"$f":"'Debt allocations'!R80*'Debt Dollars FY23'!$C$2","v":0},{"$f":"'Debt allocations'!S80*'Debt Dollars FY23'!$C$2","v":0},{"$f":"'Debt allocations'!T80*'Debt Dollars FY23'!$C$2","v":0},{"$f":"'Debt allocations'!U80*'Debt Dollars FY23'!$C$2","v":0},{"$f":"'Debt allocations'!V80*'Debt Dollars FY23'!$C$2","v":0},{"$f":"'Debt allocations'!W80*'Debt Dollars FY23'!$C$2","v":0},{"$f":"'Debt allocations'!X80*'Debt Dollars FY23'!$C$2","v":0},{"$f":"'Debt allocations'!Y80*'Debt Dollars FY23'!$C$2","v":0},{"$f":"'Debt allocations'!Z80*'Debt Dollars FY23'!$C$2","v":52074.470863008894},{"$f":"'Debt allocations'!AA80*'Debt Dollars FY23'!$C$2","v":0},{"$f":"'Debt allocations'!AB80*'Debt Dollars FY23'!$C$2","v":0},{"$f":"'Debt allocations'!AC80*'Debt Dollars FY23'!$C$2","v":0},{"$f":"'Debt allocations'!AD80*'Debt Dollars FY23'!$C$2","v":0},{"$f":"'Debt allocations'!AE80*'Debt Dollars FY23'!$C$2","v":0},{"$f":"'Debt allocations'!AF80*'Debt Dollars FY23'!$C$2","v":0},{"$f":"'Debt allocations'!AG80*'Debt Dollars FY23'!$C$2","v":0},{"$f":"'Debt allocations'!AH80*'Debt Dollars FY23'!$C$2","v":0},{"$f":"'Debt allocations'!AI80*'Debt Dollars FY23'!$C$2","v":0},{"$f":"'Debt allocations'!AJ80*'Debt Dollars FY23'!$C$2","v":0},{"$f":"'Debt allocations'!AK80*'Debt Dollars FY23'!$C$2","v":0},{"$f":"'Debt allocations'!AL80*'Debt Dollars FY23'!$C$2","v":0},{"$f":"'Debt allocations'!AM80*'Debt Dollars FY23'!$C$2","v":0},{"$f":"'Debt allocations'!AN80*'Debt Dollars FY23'!$C$2","v":0}]
["357 - Department of Early Learning","357","Department of Early Learning",9.9999999999999998E-20,1E-8,0,{"$f":"'Debt allocations'!G81*'Debt Dollars FY23'!$C$2","v":0},{"$f":"'Debt allocations'!H81*'Debt Dollars FY23'!$C$2","v":0},{"$f":"'Debt allocations'!I81*'Debt Dollars FY23'!$C$2","v":0},{"$f":"'Debt allocations'!J81*'Debt Dollars FY23'!$C$2","v":0},{"$f":"'Debt allocations'!K81*'Debt Dollars FY23'!$C$2","v":0},{"$f":"'Debt allocations'!L81*'Debt Dollars FY23'!$C$2","v":0},{"$f":"'Debt allocations'!M81*'Debt Dollars FY23'!$C$2","v":0},{"$f":"'Debt allocations'!N81*'Debt Dollars FY23'!$C$2","v":0},{"$f":"'Debt allocations'!O81*'Debt Dollars FY23'!$C$2","v":0},{"$f":"'Debt allocations'!P81*'Debt Dollars FY23'!$C$2","v":0},{"$f":"'Debt allocations'!Q81*'Debt Dollars FY23'!$C$2","v":0},{"$f":"'Debt allocations'!R81*'Debt Dollars FY23'!$C$2","v":0},{"$f":"'Debt allocations'!S81*'Debt Dollars FY23'!$C$2","v":0},{"$f":"'Debt allocations'!T81*'Debt Dollars FY23'!$C$2","v":0},{"$f":"'Debt allocations'!U81*'Debt Dollars FY23'!$C$2","v":0},{"$f":"'Debt allocations'!V81*'Debt Dollars FY23'!$C$2","v":0},{"$f":"'Debt allocations'!W81*'Debt Dollars FY23'!$C$2","v":0},{"$f":"'Debt allocations'!X81*'Debt Dollars FY23'!$C$2","v":0},{"$f":"'Debt allocations'!Y81*'Debt Dollars FY23'!$C$2","v":0},{"$f":"'Debt allocations'!Z81*'Debt Dollars FY23'!$C$2","v":0},{"$f":"'Debt allocations'!AA81*'Debt Dollars FY23'!$C$2","v":0},{"$f":"'Debt allocations'!AB81*'Debt Dollars FY23'!$C$2","v":0},{"$f":"'Debt allocations'!AC81*'Debt Dollars FY23'!$C$2","v":0},{"$f":"'Debt allocations'!AD81*'Debt Dollars FY23'!$C$2","v":0},{"$f":"'Debt allocations'!AE81*'Debt Dollars FY23'!$C$2","v":0},{"$f":"'Debt allocations'!AF81*'Debt Dollars FY23'!$C$2","v":0},{"$f":"'Debt allocations'!AG81*'Debt Dollars FY23'!$C$2","v":0},{"$f":"'Debt allocations'!AH81*'Debt Dollars FY23'!$C$2","v":0},{"$f":"'Debt allocations'!AI81*'Debt Dollars FY23'!$C$2","v":0},{"$f":"'Debt allocations'!AJ81*'Debt Dollars FY23'!$C$2","v":0},{"$f":"'Debt allocations'!AK81*'Debt Dollars FY23'!$C$2","v":0},{"$f":"'Debt allocations'!AL81*'Debt Dollars FY23'!$C$2","v":0},{"$f":"'Debt allocations'!AM81*'Debt Dollars FY23'!$C$2","v":0},{"$f":"'Debt allocations'!AN81*'Debt Dollars FY23'!$C$2","v":0}]
["359 - WA Charter School Commission","359","WA Charter School Commission",9.9999999999999998E-20,1E-8,0,{"$f":"'Debt allocations'!G82*'Debt Dollars FY23'!$C$2","v":0},{"$f":"'Debt allocations'!H82*'Debt Dollars FY23'!$C$2","v":0},{"$f":"'Debt allocations'!I82*'Debt Dollars FY23'!$C$2","v":0},{"$f":"'Debt allocations'!J82*'Debt Dollars FY23'!$C$2","v":0},{"$f":"'Debt allocations'!K82*'Debt Dollars FY23'!$C$2","v":0},{"$f":"'Debt allocations'!L82*'Debt Dollars FY23'!$C$2","v":0},{"$f":"'Debt allocations'!M82*'Debt Dollars FY23'!$C$2","v":0},{"$f":"'Debt allocations'!N82*'Debt Dollars FY23'!$C$2","v":0},{"$f":"'Debt allocations'!O82*'Debt Dollars FY23'!$C$2","v":0},{"$f":"'Debt allocations'!P82*'Debt Dollars FY23'!$C$2","v":0},{"$f":"'Debt allocations'!Q82*'Debt Dollars FY23'!$C$2","v":0},{"$f":"'Debt allocations'!R82*'Debt Dollars FY23'!$C$2","v":0},{"$f":"'Debt allocations'!S82*'Debt Dollars FY23'!$C$2","v":0},{"$f":"'Debt allocations'!T82*'Debt Dollars FY23'!$C$2","v":0},{"$f":"'Debt allocations'!U82*'Debt Dollars FY23'!$C$2","v":0},{"$f":"'Debt allocations'!V82*'Debt Dollars FY23'!$C$2","v":0},{"$f":"'Debt allocations'!W82*'Debt Dollars FY23'!$C$2","v":0},{"$f":"'Debt allocations'!X82*'Debt Dollars FY23'!$C$2","v":0},{"$f":"'Debt allocations'!Y82*'Debt Dollars FY23'!$C$2","v":0},{"$f":"'Debt allocations'!Z82*'Debt Dollars FY23'!$C$2","v":0},{"$f":"'Debt allocations'!AA82*'Debt Dollars FY23'!$C$2","v":0},{"$f":"'Debt allocations'!AB82*'Debt Dollars FY23'!$C$2","v":0},{"$f":"'Debt allocations'!AC82*'Debt Dollars FY23'!$C$2","v":0},{"$f":"'Debt allocations'!AD82*'Debt Dollars FY23'!$C$2","v":0},{"$f":"'Debt allocations'!AE82*'Debt Dollars FY23'!$C$2","v":0},{"$f":"'Debt allocations'!AF82*'Debt Dollars FY23'!$C$2","v":0},{"$f":"'Debt allocations'!AG82*'Debt Dollars FY23'!$C$2","v":0},{"$f":"'Debt allocations'!AH82*'Debt Dollars FY23'!$C$2","v":0},{"$f":"'Debt allocations'!AI82*'Debt Dollars FY23'!$C$2","v":0},{"$f":"'Debt allocations'!AJ82*'Debt Dollars FY23'!$C$2","v":0},{"$f":"'Debt allocations'!AK82*'Debt Dollars FY23'!$C$2","v":0},{"$f":"'Debt allocations'!AL82*'Debt Dollars FY23'!$C$2","v":0},{"$f":"'Debt allocations'!AM82*'Debt Dollars FY23'!$C$2","v":0},{"$f":"'Debt allocations'!AN82*'Debt Dollars FY23'!$C$2","v":0}]
["360 - University of Washington","360","University of Washington",9.9999999999999998E-20,1E-8,0,{"$f":"'Debt allocations'!G83*'Debt Dollars FY23'!$C$2","v":0},{"$f":"'Debt allocations'!H83*'Debt Dollars FY23'!$C$2","v":0},{"$f":"'Debt allocations'!I83*'Debt Dollars FY23'!$C$2","v":0},{"$f":"'Debt allocations'!J83*'Debt Dollars FY23'!$C$2","v":0},{"$f":"'Debt allocations'!K83*'Debt Dollars FY23'!$C$2","v":0},{"$f":"'Debt allocations'!L83*'Debt Dollars FY23'!$C$2","v":0},{"$f":"'Debt allocations'!M83*'Debt Dollars FY23'!$C$2","v":0},{"$f":"'Debt allocations'!N83*'Debt Dollars FY23'!$C$2","v":0},{"$f":"'Debt allocations'!O83*'Debt Dollars FY23'!$C$2","v":0},{"$f":"'Debt allocations'!P83*'Debt Dollars FY23'!$C$2","v":0},{"$f":"'Debt allocations'!Q83*'Debt Dollars FY23'!$C$2","v":0},{"$f":"'Debt allocations'!R83*'Debt Dollars FY23'!$C$2","v":0},{"$f":"'Debt allocations'!S83*'Debt Dollars FY23'!$C$2","v":0},{"$f":"'Debt allocations'!T83*'Debt Dollars FY23'!$C$2","v":0},{"$f":"'Debt allocations'!U83*'Debt Dollars FY23'!$C$2","v":0},{"$f":"'Debt allocations'!V83*'Debt Dollars FY23'!$C$2","v":0},{"$f":"'Debt allocations'!W83*'Debt Dollars FY23'!$C$2","v":0},{"$f":"'Debt allocations'!X83*'Debt Dollars FY23'!$C$2","v":0},{"$f":"'Debt allocations'!Y83*'Debt Dollars FY23'!$C$2","v":0},{"$f":"'Debt allocations'!Z83*'Debt Dollars FY23'!$C$2","v":0},{"$f":"'Debt allocations'!AA83*'Debt Dollars FY23'!$C$2","v":0},{"$f":"'Debt allocations'!AB83*'Debt Dollars FY23'!$C$2","v":0},{"$f":"'Debt allocations'!AC83*'Debt Dollars FY23'!$C$2","v":0},{"$f":"'Debt allocations'!AD83*'Debt Dollars FY23'!$C$2","v":0},{"$f":"'Debt allocations'!AE83*'Debt Dollars FY23'!$C$2","v":0},{"$f":"'Debt allocations'!AF83*'Debt Dollars FY23'!$C$2","v":0},{"$f":"'Debt allocations'!AG83*'Debt Dollars FY23'!$C$2","v":0},{"$f":"'Debt allocations'!AH83*'Debt Dollars FY23'!$C$2","v":0},{"$f":"'Debt allocations'!AI83*'Debt Dollars FY23'!$C$2","v":0},{"$f":"'Debt allocations'!AJ83*'Debt Dollars FY23'!$C$2","v":0},{"$f":"'Debt allocations'!AK83*'Debt Dollars FY23'!$C$2","v":0},{"$f":"'Debt allocations'!AL83*'Debt Dollars FY23'!$C$2","v":0},{"$f":"'Debt allocations'!AM83*'Debt Dollars FY23'!$C$2","v":0},{"$f":"'Debt allocations'!AN83*'Debt Dollars FY23'!$C$2","v":0}]
["365 - Washington State University","365","Washington State University",9.9999999999999998E-20,1E-8,0,{"$f":"'Debt allocations'!G84*'Debt Dollars FY23'!$C$2","v":0},{"$f":"'Debt allocations'!H84*'Debt Dollars FY23'!$C$2","v":0},{"$f":"'Debt allocations'!I84*'Debt Dollars FY23'!$C$2","v":0},{"$f":"'Debt allocations'!J84*'Debt Dollars FY23'!$C$2","v":0},{"$f":"'Debt allocations'!K84*'Debt Dollars FY23'!$C$2","v":0},{"$f":"'Debt allocations'!L84*'Debt Dollars FY23'!$C$2","v":0},{"$f":"'Debt allocations'!M84*'Debt Dollars FY23'!$C$2","v":0},{"$f":"'Debt allocations'!N84*'Debt Dollars FY23'!$C$2","v":0},{"$f":"'Debt allocations'!O84*'Debt Dollars FY23'!$C$2","v":0},{"$f":"'Debt allocations'!P84*'Debt Dollars FY23'!$C$2","v":0},{"$f":"'Debt allocations'!Q84*'Debt Dollars FY23'!$C$2","v":0},{"$f":"'Debt allocations'!R84*'Debt Dollars FY23'!$C$2","v":0},{"$f":"'Debt allocations'!S84*'Debt Dollars FY23'!$C$2","v":0},{"$f":"'Debt allocations'!T84*'Debt Dollars FY23'!$C$2","v":0},{"$f":"'Debt allocations'!U84*'Debt Dollars FY23'!$C$2","v":0},{"$f":"'Debt allocations'!V84*'Debt Dollars FY23'!$C$2","v":0},{"$f":"'Debt allocations'!W84*'Debt Dollars FY23'!$C$2","v":0},{"$f":"'Debt allocations'!X84*'Debt Dollars FY23'!$C$2","v":0},{"$f":"'Debt allocations'!Y84*'Debt Dollars FY23'!$C$2","v":0},{"$f":"'Debt allocations'!Z84*'Debt Dollars FY23'!$C$2","v":0},{"$f":"'Debt allocations'!AA84*'Debt Dollars FY23'!$C$2","v":0},{"$f":"'Debt allocations'!AB84*'Debt Dollars FY23'!$C$2","v":0},{"$f":"'Debt allocations'!AC84*'Debt Dollars FY23'!$C$2","v":0},{"$f":"'Debt allocations'!AD84*'Debt Dollars FY23'!$C$2","v":0},{"$f":"'Debt allocations'!AE84*'Debt Dollars FY23'!$C$2","v":0},{"$f":"'Debt allocations'!AF84*'Debt Dollars FY23'!$C$2","v":0},{"$f":"'Debt allocations'!AG84*'Debt Dollars FY23'!$C$2","v":0},{"$f":"'Debt allocations'!AH84*'Debt Dollars FY23'!$C$2","v":0},{"$f":"'Debt allocations'!AI84*'Debt Dollars FY23'!$C$2","v":0},{"$f":"'Debt allocations'!AJ84*'Debt Dollars FY23'!$C$2","v":0},{"$f":"'Debt allocations'!AK84*'Debt Dollars FY23'!$C$2","v":0},{"$f":"'Debt allocations'!AL84*'Debt Dollars FY23'!$C$2","v":0},{"$f":"'Debt allocations'!AM84*'Debt Dollars FY23'!$C$2","v":0},{"$f":"'Debt allocations'!AN84*'Debt Dollars FY23'!$C$2","v":0}]
["370 - Eastern Washington University","370","Eastern Washington University",9.9999999999999998E-20,1E-8,0,{"$f":"'Debt allocations'!G85*'Debt Dollars FY23'!$C$2","v":0},{"$f":"'Debt allocations'!H85*'Debt Dollars FY23'!$C$2","v":0},{"$f":"'Debt allocations'!I85*'Debt Dollars FY23'!$C$2","v":0},{"$f":"'Debt allocations'!J85*'Debt Dollars FY23'!$C$2","v":0},{"$f":"'Debt allocations'!K85*'Debt Dollars FY23'!$C$2","v":0},{"$f":"'Debt allocations'!L85*'Debt Dollars FY23'!$C$2","v":0},{"$f":"'Debt allocations'!M85*'Debt Dollars FY23'!$C$2","v":0},{"$f":"'Debt allocations'!N85*'Debt Dollars FY23'!$C$2","v":0},{"$f":"'Debt allocations'!O85*'Debt Dollars FY23'!$C$2","v":0},{"$f":"'Debt allocations'!P85*'Debt Dollars FY23'!$C$2","v":0},{"$f":"'Debt allocations'!Q85*'Debt Dollars FY23'!$C$2","v":0},{"$f":"'Debt allocations'!R85*'Debt Dollars FY23'!$C$2","v":0},{"$f":"'Debt allocations'!S85*'Debt Dollars FY23'!$C$2","v":0},{"$f":"'Debt allocations'!T85*'Debt Dollars FY23'!$C$2","v":0},{"$f":"'Debt allocations'!U85*'Debt Dollars FY23'!$C$2","v":0},{"$f":"'Debt allocations'!V85*'Debt Dollars FY23'!$C$2","v":0},{"$f":"'Debt allocations'!W85*'Debt Dollars FY23'!$C$2","v":0},{"$f":"'Debt allocations'!X85*'Debt Dollars FY23'!$C$2","v":0},{"$f":"'Debt allocations'!Y85*'Debt Dollars FY23'!$C$2","v":0},{"$f":"'Debt allocations'!Z85*'Debt Dollars FY23'!$C$2","v":0},{"$f":"'Debt allocations'!AA85*'Debt Dollars FY23'!$C$2","v":0},{"$f":"'Debt allocations'!AB85*'Debt Dollars FY23'!$C$2","v":0},{"$f":"'Debt allocations'!AC85*'Debt Dollars FY23'!$C$2","v":0},{"$f":"'Debt allocations'!AD85*'Debt Dollars FY23'!$C$2","v":0},{"$f":"'Debt allocations'!AE85*'Debt Dollars FY23'!$C$2","v":0},{"$f":"'Debt allocations'!AF85*'Debt Dollars FY23'!$C$2","v":0},{"$f":"'Debt allocations'!AG85*'Debt Dollars FY23'!$C$2","v":0},{"$f":"'Debt allocations'!AH85*'Debt Dollars FY23'!$C$2","v":0},{"$f":"'Debt allocations'!AI85*'Debt Dollars FY23'!$C$2","v":0},{"$f":"'Debt allocations'!AJ85*'Debt Dollars FY23'!$C$2","v":0},{"$f":"'Debt allocations'!AK85*'Debt Dollars FY23'!$C$2","v":0},{"$f":"'Debt allocations'!AL85*'Debt Dollars FY23'!$C$2","v":0},{"$f":"'Debt allocations'!AM85*'Debt Dollars FY23'!$C$2","v":0},{"$f":"'Debt allocations'!AN85*'Debt Dollars FY23'!$C$2","v":0}]
["375 - Central Washington University","375","Central Washington University",9.9999999999999998E-20,1E-8,0,{"$f":"'Debt allocations'!G86*'Debt Dollars FY23'!$C$2","v":0},{"$f":"'Debt allocations'!H86*'Debt Dollars FY23'!$C$2","v":0},{"$f":"'Debt allocations'!I86*'Debt Dollars FY23'!$C$2","v":0},{"$f":"'Debt allocations'!J86*'Debt Dollars FY23'!$C$2","v":0},{"$f":"'Debt allocations'!K86*'Debt Dollars FY23'!$C$2","v":0},{"$f":"'Debt allocations'!L86*'Debt Dollars FY23'!$C$2","v":0},{"$f":"'Debt allocations'!M86*'Debt Dollars FY23'!$C$2","v":0},{"$f":"'Debt allocations'!N86*'Debt Dollars FY23'!$C$2","v":0},{"$f":"'Debt allocations'!O86*'Debt Dollars FY23'!$C$2","v":0},{"$f":"'Debt allocations'!P86*'Debt Dollars FY23'!$C$2","v":0},{"$f":"'Debt allocations'!Q86*'Debt Dollars FY23'!$C$2","v":0},{"$f":"'Debt allocations'!R86*'Debt Dollars FY23'!$C$2","v":0},{"$f":"'Debt allocations'!S86*'Debt Dollars FY23'!$C$2","v":0},{"$f":"'Debt allocations'!T86*'Debt Dollars FY23'!$C$2","v":0},{"$f":"'Debt allocations'!U86*'Debt Dollars FY23'!$C$2","v":0},{"$f":"'Debt allocations'!V86*'Debt Dollars FY23'!$C$2","v":0},{"$f":"'Debt allocations'!W86*'Debt Dollars FY23'!$C$2","v":0},{"$f":"'Debt allocations'!X86*'Debt Dollars FY23'!$C$2","v":0},{"$f":"'Debt allocations'!Y86*'Debt Dollars FY23'!$C$2","v":0},{"$f":"'Debt allocations'!Z86*'Debt Dollars FY23'!$C$2","v":0},{"$f":"'Debt allocations'!AA86*'Debt Dollars FY23'!$C$2","v":0},{"$f":"'Debt allocations'!AB86*'Debt Dollars FY23'!$C$2","v":0},{"$f":"'Debt allocations'!AC86*'Debt Dollars FY23'!$C$2","v":0},{"$f":"'Debt allocations'!AD86*'Debt Dollars FY23'!$C$2","v":0},{"$f":"'Debt allocations'!AE86*'Debt Dollars FY23'!$C$2","v":0},{"$f":"'Debt allocations'!AF86*'Debt Dollars FY23'!$C$2","v":0},{"$f":"'Debt allocations'!AG86*'Debt Dollars FY23'!$C$2","v":0},{"$f":"'Debt allocations'!AH86*'Debt Dollars FY23'!$C$2","v":0},{"$f":"'Debt allocations'!AI86*'Debt Dollars FY23'!$C$2","v":0},{"$f":"'Debt allocations'!AJ86*'Debt Dollars FY23'!$C$2","v":0},{"$f":"'Debt allocations'!AK86*'Debt Dollars FY23'!$C$2","v":0},{"$f":"'Debt allocations'!AL86*'Debt Dollars FY23'!$C$2","v":0},{"$f":"'Debt allocations'!AM86*'Debt Dollars FY23'!$C$2","v":0},{"$f":"'Debt allocations'!AN86*'Debt Dollars FY23'!$C$2","v":0}]
["376 - The Evergreen State College","376","The Evergreen State College",9.9999999999999998E-20,1E-8,0,{"$f":"'Debt allocations'!G87*'Debt Dollars FY23'!$C$2","v":0},{"$f":"'Debt allocations'!H87*'Debt Dollars FY23'!$C$2","v":0},{"$f":"'Debt allocations'!I87*'Debt Dollars FY23'!$C$2","v":0},{"$f":"'Debt allocations'!J87*'Debt Dollars FY23'!$C$2","v":0},{"$f":"'Debt allocations'!K87*'Debt Dollars FY23'!$C$2","v":0},{"$f":"'Debt allocations'!L87*'Debt Dollars FY23'!$C$2","v":0},{"$f":"'Debt allocations'!M87*'Debt Dollars FY23'!$C$2","v":0},{"$f":"'Debt allocations'!N87*'Debt Dollars FY23'!$C$2","v":0},{"$f":"'Debt allocations'!O87*'Debt Dollars FY23'!$C$2","v":0},{"$f":"'Debt allocations'!P87*'Debt Dollars FY23'!$C$2","v":0},{"$f":"'Debt allocations'!Q87*'Debt Dollars FY23'!$C$2","v":0},{"$f":"'Debt allocations'!R87*'Debt Dollars FY23'!$C$2","v":0},{"$f":"'Debt allocations'!S87*'Debt Dollars FY23'!$C$2","v":0},{"$f":"'Debt allocations'!T87*'Debt Dollars FY23'!$C$2","v":0},{"$f":"'Debt allocations'!U87*'Debt Dollars FY23'!$C$2","v":0},{"$f":"'Debt allocations'!V87*'Debt Dollars FY23'!$C$2","v":0},{"$f":"'Debt allocations'!W87*'Debt Dollars FY23'!$C$2","v":0},{"$f":"'Debt allocations'!X87*'Debt Dollars FY23'!$C$2","v":0},{"$f":"'Debt allocations'!Y87*'Debt Dollars FY23'!$C$2","v":0},{"$f":"'Debt allocations'!Z87*'Debt Dollars FY23'!$C$2","v":0},{"$f":"'Debt allocations'!AA87*'Debt Dollars FY23'!$C$2","v":0},{"$f":"'Debt allocations'!AB87*'Debt Dollars FY23'!$C$2","v":0},{"$f":"'Debt allocations'!AC87*'Debt Dollars FY23'!$C$2","v":0},{"$f":"'Debt allocations'!AD87*'Debt Dollars FY23'!$C$2","v":0},{"$f":"'Debt allocations'!AE87*'Debt Dollars FY23'!$C$2","v":0},{"$f":"'Debt allocations'!AF87*'Debt Dollars FY23'!$C$2","v":0},{"$f":"'Debt allocations'!AG87*'Debt Dollars FY23'!$C$2","v":0},{"$f":"'Debt allocations'!AH87*'Debt Dollars FY23'!$C$2","v":0},{"$f":"'Debt allocations'!AI87*'Debt Dollars FY23'!$C$2","v":0},{"$f":"'Debt allocations'!AJ87*'Debt Dollars FY23'!$C$2","v":0},{"$f":"'Debt allocations'!AK87*'Debt Dollars FY23'!$C$2","v":0},{"$f":"'Debt allocations'!AL87*'Debt Dollars FY23'!$C$2","v":0},{"$f":"'Debt allocations'!AM87*'Debt Dollars FY23'!$C$2","v":0},{"$f":"'Debt allocations'!AN87*'Debt Dollars FY23'!$C$2","v":0}]
["380 - Western Washington University","380","Western Washington University",9.9999999999999998E-20,1E-8,0,{"$f":"'Debt allocations'!G88*'Debt Dollars FY23'!$C$2","v":0},{"$f":"'Debt allocations'!H88*'Debt Dollars FY23'!$C$2","v":0},{"$f":"'Debt allocations'!I88*'Debt Dollars FY23'!$C$2","v":0},{"$f":"'Debt allocations'!J88*'Debt Dollars FY23'!$C$2","v":0},{"$f":"'Debt allocations'!K88*'Debt Dollars FY23'!$C$2","v":0},{"$f":"'Debt allocations'!L88*'Debt Dollars FY23'!$C$2","v":0},{"$f":"'Debt allocations'!M88*'Debt Dollars FY23'!$C$2","v":0},{"$f":"'Debt allocations'!N88*'Debt Dollars FY23'!$C$2","v":0},{"$f":"'Debt allocations'!O88*'Debt Dollars FY23'!$C$2","v":0},{"$f":"'Debt allocations'!P88*'Debt Dollars FY23'!$C$2","v":0},{"$f":"'Debt allocations'!Q88*'Debt Dollars FY23'!$C$2","v":0},{"$f":"'Debt allocations'!R88*'Debt Dollars FY23'!$C$2","v":0},{"$f":"'Debt allocations'!S88*'Debt Dollars FY23'!$C$2","v":0},{"$f":"'Debt allocations'!T88*'Debt Dollars FY23'!$C$2","v":0},{"$f":"'Debt allocations'!U88*'Debt Dollars FY23'!$C$2","v":0},{"$f":"'Debt allocations'!V88*'Debt Dollars FY23'!$C$2","v":0},{"$f":"'Debt allocations'!W88*'Debt Dollars FY23'!$C$2","v":0},{"$f":"'Debt allocations'!X88*'Debt Dollars FY23'!$C$2","v":0},{"$f":"'Debt allocations'!Y88*'Debt Dollars FY23'!$C$2","v":0},{"$f":"'Debt allocations'!Z88*'Debt Dollars FY23'!$C$2","v":0},{"$f":"'Debt allocations'!AA88*'Debt Dollars FY23'!$C$2","v":0},{"$f":"'Debt allocations'!AB88*'Debt Dollars FY23'!$C$2","v":0},{"$f":"'Debt allocations'!AC88*'Debt Dollars FY23'!$C$2","v":0},{"$f":"'Debt allocations'!AD88*'Debt Dollars FY23'!$C$2","v":0},{"$f":"'Debt allocations'!AE88*'Debt Dollars FY23'!$C$2","v":0},{"$f":"'Debt allocations'!AF88*'Debt Dollars FY23'!$C$2","v":0},{"$f":"'Debt allocations'!AG88*'Debt Dollars FY23'!$C$2","v":0},{"$f":"'Debt allocations'!AH88*'Debt Dollars FY23'!$C$2","v":0},{"$f":"'Debt allocations'!AI88*'Debt Dollars FY23'!$C$2","v":0},{"$f":"'Debt allocations'!AJ88*'Debt Dollars FY23'!$C$2","v":0},{"$f":"'Debt allocations'!AK88*'Debt Dollars FY23'!$C$2","v":0},{"$f":"'Debt allocations'!AL88*'Debt Dollars FY23'!$C$2","v":0},{"$f":"'Debt allocations'!AM88*'Debt Dollars FY23'!$C$2","v":0},{"$f":"'Debt allocations'!AN88*'Debt Dollars FY23'!$C$2","v":0}]
["387 - Washington State Arts Commission","387","Washington State Arts Commission",9.9999999999999998E-20,1E-8,0,{"$f":"'Debt allocations'!G89*'Debt Dollars FY23'!$C$2","v":0},{"$f":"'Debt allocations'!H89*'Debt Dollars FY23'!$C$2","v":0},{"$f":"'Debt allocations'!I89*'Debt Dollars FY23'!$C$2","v":0},{"$f":"'Debt allocations'!J89*'Debt Dollars FY23'!$C$2","v":0},{"$f":"'Debt allocations'!K89*'Debt Dollars FY23'!$C$2","v":0},{"$f":"'Debt allocations'!L89*'Debt Dollars FY23'!$C$2","v":0},{"$f":"'Debt allocations'!M89*'Debt Dollars FY23'!$C$2","v":0},{"$f":"'Debt allocations'!N89*'Debt Dollars FY23'!$C$2","v":0},{"$f":"'Debt allocations'!O89*'Debt Dollars FY23'!$C$2","v":0},{"$f":"'Debt allocations'!P89*'Debt Dollars FY23'!$C$2","v":0},{"$f":"'Debt allocations'!Q89*'Debt Dollars FY23'!$C$2","v":0},{"$f":"'Debt allocations'!R89*'Debt Dollars FY23'!$C$2","v":0},{"$f":"'Debt allocations'!S89*'Debt Dollars FY23'!$C$2","v":0},{"$f":"'Debt allocations'!T89*'Debt Dollars FY23'!$C$2","v":0},{"$f":"'Debt allocations'!U89*'Debt Dollars FY23'!$C$2","v":0},{"$f":"'Debt allocations'!V89*'Debt Dollars FY23'!$C$2","v":0},{"$f":"'Debt allocations'!W89*'Debt Dollars FY23'!$C$2","v":0},{"$f":"'Debt allocations'!X89*'Debt Dollars FY23'!$C$2","v":0},{"$f":"'Debt allocations'!Y89*'Debt Dollars FY23'!$C$2","v":0},{"$f":"'Debt allocations'!Z89*'Debt Dollars FY23'!$C$2","v":0},{"$f":"'Debt allocations'!AA89*'Debt Dollars FY23'!$C$2","v":0},{"$f":"'Debt allocations'!AB89*'Debt Dollars FY23'!$C$2","v":0},{"$f":"'Debt allocations'!AC89*'Debt Dollars FY23'!$C$2","v":0},{"$f":"'Debt allocations'!AD89*'Debt Dollars FY23'!$C$2","v":0},{"$f":"'Debt allocations'!AE89*'Debt Dollars FY23'!$C$2","v":0},{"$f":"'Debt allocations'!AF89*'Debt Dollars FY23'!$C$2","v":0},{"$f":"'Debt allocations'!AG89*'Debt Dollars FY23'!$C$2","v":0},{"$f":"'Debt allocations'!AH89*'Debt Dollars FY23'!$C$2","v":0},{"$f":"'Debt allocations'!AI89*'Debt Dollars FY23'!$C$2","v":0},{"$f":"'Debt allocations'!AJ89*'Debt Dollars FY23'!$C$2","v":0},{"$f":"'Debt allocations'!AK89*'Debt Dollars FY23'!$C$2","v":0},{"$f":"'Debt allocations'!AL89*'Debt Dollars FY23'!$C$2","v":0},{"$f":"'Debt allocations'!AM89*'Debt Dollars FY23'!$C$2","v":0},{"$f":"'Debt allocations'!AN89*'Debt Dollars FY23'!$C$2","v":0}]
["390 - Washington State Historical Society","390","Washington State Historical Society",9.9999999999999998E-20,1E-8,0,{"$f":"'Debt allocations'!G90*'Debt Dollars FY23'!$C$2","v":0},{"$f":"'Debt allocations'!H90*'Debt Dollars FY23'!$C$2","v":0},{"$f":"'Debt allocations'!I90*'Debt Dollars FY23'!$C$2","v":0},{"$f":"'Debt allocations'!J90*'Debt Dollars FY23'!$C$2","v":0},{"$f":"'Debt allocations'!K90*'Debt Dollars FY23'!$C$2","v":0},{"$f":"'Debt allocations'!L90*'Debt Dollars FY23'!$C$2","v":0},{"$f":"'Debt allocations'!M90*'Debt Dollars FY23'!$C$2","v":0},{"$f":"'Debt allocations'!N90*'Debt Dollars FY23'!$C$2","v":0},{"$f":"'Debt allocations'!O90*'Debt Dollars FY23'!$C$2","v":0},{"$f":"'Debt allocations'!P90*'Debt Dollars FY23'!$C$2","v":0},{"$f":"'Debt allocations'!Q90*'Debt Dollars FY23'!$C$2","v":0},{"$f":"'Debt allocations'!R90*'Debt Dollars FY23'!$C$2","v":0},{"$f":"'Debt allocations'!S90*'Debt Dollars FY23'!$C$2","v":0},{"$f":"'Debt allocations'!T90*'Debt Dollars FY23'!$C$2","v":0},{"$f":"'Debt allocations'!U90*'Debt Dollars FY23'!$C$2","v":0},{"$f":"'Debt allocations'!V90*'Debt Dollars FY23'!$C$2","v":0},{"$f":"'Debt allocations'!W90*'Debt Dollars FY23'!$C$2","v":0},{"$f":"'Debt allocations'!X90*'Debt Dollars FY23'!$C$2","v":0},{"$f":"'Debt allocations'!Y90*'Debt Dollars FY23'!$C$2","v":0},{"$f":"'Debt allocations'!Z90*'Debt Dollars FY23'!$C$2","v":0},{"$f":"'Debt allocations'!AA90*'Debt Dollars FY23'!$C$2","v":0},{"$f":"'Debt allocations'!AB90*'Debt Dollars FY23'!$C$2","v":0},{"$f":"'Debt allocations'!AC90*'Debt Dollars FY23'!$C$2","v":0},{"$f":"'Debt allocations'!AD90*'Debt Dollars FY23'!$C$2","v":0},{"$f":"'Debt allocations'!AE90*'Debt Dollars FY23'!$C$2","v":0},{"$f":"'Debt allocations'!AF90*'Debt Dollars FY23'!$C$2","v":0},{"$f":"'Debt allocations'!AG90*'Debt Dollars FY23'!$C$2","v":0},{"$f":"'Debt allocations'!AH90*'Debt Dollars FY23'!$C$2","v":0},{"$f":"'Debt allocations'!AI90*'Debt Dollars FY23'!$C$2","v":0},{"$f":"'Debt allocations'!AJ90*'Debt Dollars FY23'!$C$2","v":0},{"$f":"'Debt allocations'!AK90*'Debt Dollars FY23'!$C$2","v":0},{"$f":"'Debt allocations'!AL90*'Debt Dollars FY23'!$C$2","v":0},{"$f":"'Debt allocations'!AM90*'Debt Dollars FY23'!$C$2","v":0},{"$f":"'Debt allocations'!AN90*'Debt Dollars FY23'!$C$2","v":0}]
["395 - Eastern Washington State Historical Society","395","Eastern Washington State Historical Society",9.9999999999999998E-20,1E-8,0,{"$f":"'Debt allocations'!G91*'Debt Dollars FY23'!$C$2","v":0},{"$f":"'Debt allocations'!H91*'Debt Dollars FY23'!$C$2","v":0},{"$f":"'Debt allocations'!I91*'Debt Dollars FY23'!$C$2","v":0},{"$f":"'Debt allocations'!J91*'Debt Dollars FY23'!$C$2","v":0},{"$f":"'Debt allocations'!K91*'Debt Dollars FY23'!$C$2","v":0},{"$f":"'Debt allocations'!L91*'Debt Dollars FY23'!$C$2","v":0},{"$f":"'Debt allocations'!M91*'Debt Dollars FY23'!$C$2","v":0},{"$f":"'Debt allocations'!N91*'Debt Dollars FY23'!$C$2","v":0},{"$f":"'Debt allocations'!O91*'Debt Dollars FY23'!$C$2","v":0},{"$f":"'Debt allocations'!P91*'Debt Dollars FY23'!$C$2","v":0},{"$f":"'Debt allocations'!Q91*'Debt Dollars FY23'!$C$2","v":0},{"$f":"'Debt allocations'!R91*'Debt Dollars FY23'!$C$2","v":0},{"$f":"'Debt allocations'!S91*'Debt Dollars FY23'!$C$2","v":0},{"$f":"'Debt allocations'!T91*'Debt Dollars FY23'!$C$2","v":0},{"$f":"'Debt allocations'!U91*'Debt Dollars FY23'!$C$2","v":0},{"$f":"'Debt allocations'!V91*'Debt Dollars FY23'!$C$2","v":0},{"$f":"'Debt allocations'!W91*'Debt Dollars FY23'!$C$2","v":0},{"$f":"'Debt allocations'!X91*'Debt Dollars FY23'!$C$2","v":0},{"$f":"'Debt allocations'!Y91*'Debt Dollars FY23'!$C$2","v":0},{"$f":"'Debt allocations'!Z91*'Debt Dollars FY23'!$C$2","v":0},{"$f":"'Debt allocations'!AA91*'Debt Dollars FY23'!$C$2","v":0},{"$f":"'Debt allocations'!AB91*'Debt Dollars FY23'!$C$2","v":0},{"$f":"'Debt allocations'!AC91*'Debt Dollars FY23'!$C$2","v":0},{"$f":"'Debt allocations'!AD91*'Debt Dollars FY23'!$C$2","v":0},{"$f":"'Debt allocations'!AE91*'Debt Dollars FY23'!$C$2","v":0},{"$f":"'Debt allocations'!AF91*'Debt Dollars FY23'!$C$2","v":0},{"$f":"'Debt allocations'!AG91*'Debt Dollars FY23'!$C$2","v":0},{"$f":"'Debt allocations'!AH91*'Debt Dollars FY23'!$C$2","v":0},{"$f":"'Debt allocations'!AI91*'Debt Dollars FY23'!$C$2","v":0},{"$f":"'Debt allocations'!AJ91*'Debt Dollars FY23'!$C$2","v":0},{"$f":"'Debt allocations'!AK91*'Debt Dollars FY23'!$C$2","v":0},{"$f":"'Debt allocations'!AL91*'Debt Dollars FY23'!$C$2","v":0},{"$f":"'Debt allocations'!AM91*'Debt Dollars FY23'!$C$2","v":0},{"$f":"'Debt allocations'!AN91*'Debt Dollars FY23'!$C$2","v":0}]
["405 - Department of Transportation","405","Department of Transportation",9.9999999999999998E-20,1E-8,0,{"$f":"'Debt allocations'!G92*'Debt Dollars FY23'!$C$2","v":0},{"$f":"'Debt allocations'!H92*'Debt Dollars FY23'!$C$2","v":0},{"$f":"'Debt allocations'!I92*'Debt Dollars FY23'!$C$2","v":0},{"$f":"'Debt allocations'!J92*'Debt Dollars FY23'!$C$2","v":0},{"$f":"'Debt allocations'!K92*'Debt Dollars FY23'!$C$2","v":0},{"$f":"'Debt allocations'!L92*'Debt Dollars FY23'!$C$2","v":0},{"$f":"'Debt allocations'!M92*'Debt Dollars FY23'!$C$2","v":0},{"$f":"'Debt allocations'!N92*'Debt Dollars FY23'!$C$2","v":0},{"$f":"'Debt allocations'!O92*'Debt Dollars FY23'!$C$2","v":0},{"$f":"'Debt allocations'!P92*'Debt Dollars FY23'!$C$2","v":0},{"$f":"'Debt allocations'!Q92*'Debt Dollars FY23'!$C$2","v":0},{"$f":"'Debt allocations'!R92*'Debt Dollars FY23'!$C$2","v":0},{"$f":"'Debt allocations'!S92*'Debt Dollars FY23'!$C$2","v":0},{"$f":"'Debt allocations'!T92*'Debt Dollars FY23'!$C$2","v":0},{"$f":"'Debt allocations'!U92*'Debt Dollars FY23'!$C$2","v":0},{"$f":"'Debt allocations'!V92*'Debt Dollars FY23'!$C$2","v":0},{"$f":"'Debt allocations'!W92*'Debt Dollars FY23'!$C$2","v":0},{"$f":"'Debt allocations'!X92*'Debt Dollars FY23'!$C$2","v":0},{"$f":"'Debt allocations'!Y92*'Debt Dollars FY23'!$C$2","v":0},{"$f":"'Debt allocations'!Z92*'Debt Dollars FY23'!$C$2","v":0},{"$f":"'Debt allocations'!AA92*'Debt Dollars FY23'!$C$2","v":0},{"$f":"'Debt allocations'!AB92*'Debt Dollars FY23'!$C$2","v":0},{"$f":"'Debt allocations'!AC92*'Debt Dollars FY23'!$C$2","v":0},{"$f":"'Debt allocations'!AD92*'Debt Dollars FY23'!$C$2","v":0},{"$f":"'Debt allocations'!AE92*'Debt Dollars FY23'!$C$2","v":0},{"$f":"'Debt allocations'!AF92*'Debt Dollars FY23'!$C$2","v":0},{"$f":"'Debt allocations'!AG92*'Debt Dollars FY23'!$C$2","v":0},{"$f":"'Debt allocations'!AH92*'Debt Dollars FY23'!$C$2","v":0},{"$f":"'Debt allocations'!AI92*'Debt Dollars FY23'!$C$2","v":0},{"$f":"'Debt allocations'!AJ92*'Debt Dollars FY23'!$C$2","v":0},{"$f":"'Debt allocations'!AK92*'Debt Dollars FY23'!$C$2","v":0},{"$f":"'Debt allocations'!AL92*'Debt Dollars FY23'!$C$2","v":0},{"$f":"'Debt allocations'!AM92*'Debt Dollars FY23'!$C$2","v":0},{"$f":"'Debt allocations'!AN92*'Debt Dollars FY23'!$C$2","v":0}]
["406 - County Road Administration Board","406","County Road Administration Board",9.9999999999999998E-20,1E-8,0,{"$f":"'Debt allocations'!G93*'Debt Dollars FY23'!$C$2","v":0},{"$f":"'Debt allocations'!H93*'Debt Dollars FY23'!$C$2","v":0},{"$f":"'Debt allocations'!I93*'Debt Dollars FY23'!$C$2","v":0},{"$f":"'Debt allocations'!J93*'Debt Dollars FY23'!$C$2","v":0},{"$f":"'Debt allocations'!K93*'Debt Dollars FY23'!$C$2","v":0},{"$f":"'Debt allocations'!L93*'Debt Dollars FY23'!$C$2","v":0},{"$f":"'Debt allocations'!M93*'Debt Dollars FY23'!$C$2","v":0},{"$f":"'Debt allocations'!N93*'Debt Dollars FY23'!$C$2","v":0},{"$f":"'Debt allocations'!O93*'Debt Dollars FY23'!$C$2","v":0},{"$f":"'Debt allocations'!P93*'Debt Dollars FY23'!$C$2","v":0},{"$f":"'Debt allocations'!Q93*'Debt Dollars FY23'!$C$2","v":0},{"$f":"'Debt allocations'!R93*'Debt Dollars FY23'!$C$2","v":0},{"$f":"'Debt allocations'!S93*'Debt Dollars FY23'!$C$2","v":0},{"$f":"'Debt allocations'!T93*'Debt Dollars FY23'!$C$2","v":0},{"$f":"'Debt allocations'!U93*'Debt Dollars FY23'!$C$2","v":0},{"$f":"'Debt allocations'!V93*'Debt Dollars FY23'!$C$2","v":0},{"$f":"'Debt allocations'!W93*'Debt Dollars FY23'!$C$2","v":0},{"$f":"'Debt allocations'!X93*'Debt Dollars FY23'!$C$2","v":0},{"$f":"'Debt allocations'!Y93*'Debt Dollars FY23'!$C$2","v":0},{"$f":"'Debt allocations'!Z93*'Debt Dollars FY23'!$C$2","v":0},{"$f":"'Debt allocations'!AA93*'Debt Dollars FY23'!$C$2","v":0},{"$f":"'Debt allocations'!AB93*'Debt Dollars FY23'!$C$2","v":0},{"$f":"'Debt allocations'!AC93*'Debt Dollars FY23'!$C$2","v":0},{"$f":"'Debt allocations'!AD93*'Debt Dollars FY23'!$C$2","v":0},{"$f":"'Debt allocations'!AE93*'Debt Dollars FY23'!$C$2","v":0},{"$f":"'Debt allocations'!AF93*'Debt Dollars FY23'!$C$2","v":0},{"$f":"'Debt allocations'!AG93*'Debt Dollars FY23'!$C$2","v":0},{"$f":"'Debt allocations'!AH93*'Debt Dollars FY23'!$C$2","v":0},{"$f":"'Debt allocations'!AI93*'Debt Dollars FY23'!$C$2","v":0},{"$f":"'Debt allocations'!AJ93*'Debt Dollars FY23'!$C$2","v":0},{"$f":"'Debt allocations'!AK93*'Debt Dollars FY23'!$C$2","v":0},{"$f":"'Debt allocations'!AL93*'Debt Dollars FY23'!$C$2","v":0},{"$f":"'Debt allocations'!AM93*'Debt Dollars FY23'!$C$2","v":0},{"$f":"'Debt allocations'!AN93*'Debt Dollars FY23'!$C$2","v":0}]
["407 - Transportation Improvement Board","407","Transportation Improvement Board",9.9999999999999998E-20,1E-8,0,{"$f":"'Debt allocations'!G94*'Debt Dollars FY23'!$C$2","v":0},{"$f":"'Debt allocations'!H94*'Debt Dollars FY23'!$C$2","v":0},{"$f":"'Debt allocations'!I94*'Debt Dollars FY23'!$C$2","v":0},{"$f":"'Debt allocations'!J94*'Debt Dollars FY23'!$C$2","v":0},{"$f":"'Debt allocations'!K94*'Debt Dollars FY23'!$C$2","v":0},{"$f":"'Debt allocations'!L94*'Debt Dollars FY23'!$C$2","v":0},{"$f":"'Debt allocations'!M94*'Debt Dollars FY23'!$C$2","v":0},{"$f":"'Debt allocations'!N94*'Debt Dollars FY23'!$C$2","v":0},{"$f":"'Debt allocations'!O94*'Debt Dollars FY23'!$C$2","v":0},{"$f":"'Debt allocations'!P94*'Debt Dollars FY23'!$C$2","v":0},{"$f":"'Debt allocations'!Q94*'Debt Dollars FY23'!$C$2","v":0},{"$f":"'Debt allocations'!R94*'Debt Dollars FY23'!$C$2","v":0},{"$f":"'Debt allocations'!S94*'Debt Dollars FY23'!$C$2","v":0},{"$f":"'Debt allocations'!T94*'Debt Dollars FY23'!$C$2","v":0},{"$f":"'Debt allocations'!U94*'Debt Dollars FY23'!$C$2","v":0},{"$f":"'Debt allocations'!V94*'Debt Dollars FY23'!$C$2","v":0},{"$f":"'Debt allocations'!W94*'Debt Dollars FY23'!$C$2","v":0},{"$f":"'Debt allocations'!X94*'Debt Dollars FY23'!$C$2","v":0},{"$f":"'Debt allocations'!Y94*'Debt Dollars FY23'!$C$2","v":0},{"$f":"'Debt allocations'!Z94*'Debt Dollars FY23'!$C$2","v":0},{"$f":"'Debt allocations'!AA94*'Debt Dollars FY23'!$C$2","v":0},{"$f":"'Debt allocations'!AB94*'Debt Dollars FY23'!$C$2","v":0},{"$f":"'Debt allocations'!AC94*'Debt Dollars FY23'!$C$2","v":0},{"$f":"'Debt allocations'!AD94*'Debt Dollars FY23'!$C$2","v":0},{"$f":"'Debt allocations'!AE94*'Debt Dollars FY23'!$C$2","v":0},{"$f":"'Debt allocations'!AF94*'Debt Dollars FY23'!$C$2","v":0},{"$f":"'Debt allocations'!AG94*'Debt Dollars FY23'!$C$2","v":0},{"$f":"'Debt allocations'!AH94*'Debt Dollars FY23'!$C$2","v":0},{"$f":"'Debt allocations'!AI94*'Debt Dollars FY23'!$C$2","v":0},{"$f":"'Debt allocations'!AJ94*'Debt Dollars FY23'!$C$2","v":0},{"$f":"'Debt allocations'!AK94*'Debt Dollars FY23'!$C$2","v":0},{"$f":"'Debt allocations'!AL94*'Debt Dollars FY23'!$C$2","v":0},{"$f":"'Debt allocations'!AM94*'Debt Dollars FY23'!$C$2","v":0},{"$f":"'Debt allocations'!AN94*'Debt Dollars FY23'!$C$2","v":0}]
["410 - Transportation Commission","410","Transportation Commission",9.9999999999999998E-20,1E-8,0,{"$f":"'Debt allocations'!G95*'Debt Dollars FY23'!$C$2","v":0},{"$f":"'Debt allocations'!H95*'Debt Dollars FY23'!$C$2","v":0},{"$f":"'Debt allocations'!I95*'Debt Dollars FY23'!$C$2","v":0},{"$f":"'Debt allocations'!J95*'Debt Dollars FY23'!$C$2","v":0},{"$f":"'Debt allocations'!K95*'Debt Dollars FY23'!$C$2","v":0},{"$f":"'Debt allocations'!L95*'Debt Dollars FY23'!$C$2","v":0},{"$f":"'Debt allocations'!M95*'Debt Dollars FY23'!$C$2","v":0},{"$f":"'Debt allocations'!N95*'Debt Dollars FY23'!$C$2","v":0},{"$f":"'Debt allocations'!O95*'Debt Dollars FY23'!$C$2","v":0},{"$f":"'Debt allocations'!P95*'Debt Dollars FY23'!$C$2","v":0},{"$f":"'Debt allocations'!Q95*'Debt Dollars FY23'!$C$2","v":0},{"$f":"'Debt allocations'!R95*'Debt Dollars FY23'!$C$2","v":0},{"$f":"'Debt allocations'!S95*'Debt Dollars FY23'!$C$2","v":0},{"$f":"'Debt allocations'!T95*'Debt Dollars FY23'!$C$2","v":0},{"$f":"'Debt allocations'!U95*'Debt Dollars FY23'!$C$2","v":0},{"$f":"'Debt allocations'!V95*'Debt Dollars FY23'!$C$2","v":0},{"$f":"'Debt allocations'!W95*'Debt Dollars FY23'!$C$2","v":0},{"$f":"'Debt allocations'!X95*'Debt Dollars FY23'!$C$2","v":0},{"$f":"'Debt allocations'!Y95*'Debt Dollars FY23'!$C$2","v":0},{"$f":"'Debt allocations'!Z95*'Debt Dollars FY23'!$C$2","v":0},{"$f":"'Debt allocations'!AA95*'Debt Dollars FY23'!$C$2","v":0},{"$f":"'Debt allocations'!AB95*'Debt Dollars FY23'!$C$2","v":0},{"$f":"'Debt allocations'!AC95*'Debt Dollars FY23'!$C$2","v":0},{"$f":"'Debt allocations'!AD95*'Debt Dollars FY23'!$C$2","v":0},{"$f":"'Debt allocations'!AE95*'Debt Dollars FY23'!$C$2","v":0},{"$f":"'Debt allocations'!AF95*'Debt Dollars FY23'!$C$2","v":0},{"$f":"'Debt allocations'!AG95*'Debt Dollars FY23'!$C$2","v":0},{"$f":"'Debt allocations'!AH95*'Debt Dollars FY23'!$C$2","v":0},{"$f":"'Debt allocations'!AI95*'Debt Dollars FY23'!$C$2","v":0},{"$f":"'Debt allocations'!AJ95*'Debt Dollars FY23'!$C$2","v":0},{"$f":"'Debt allocations'!AK95*'Debt Dollars FY23'!$C$2","v":0},{"$f":"'Debt allocations'!AL95*'Debt Dollars FY23'!$C$2","v":0},{"$f":"'Debt allocations'!AM95*'Debt Dollars FY23'!$C$2","v":0},{"$f":"'Debt allocations'!AN95*'Debt Dollars FY23'!$C$2","v":0}]
["411 - Freight Mobility Strategic Investment Board","411","Freight Mobility Strategic Investment Board",9.9999999999999998E-20,1E-8,0,{"$f":"'Debt allocations'!G96*'Debt Dollars FY23'!$C$2","v":0},{"$f":"'Debt allocations'!H96*'Debt Dollars FY23'!$C$2","v":0},{"$f":"'Debt allocations'!I96*'Debt Dollars FY23'!$C$2","v":0},{"$f":"'Debt allocations'!J96*'Debt Dollars FY23'!$C$2","v":0},{"$f":"'Debt allocations'!K96*'Debt Dollars FY23'!$C$2","v":0},{"$f":"'Debt allocations'!L96*'Debt Dollars FY23'!$C$2","v":0},{"$f":"'Debt allocations'!M96*'Debt Dollars FY23'!$C$2","v":0},{"$f":"'Debt allocations'!N96*'Debt Dollars FY23'!$C$2","v":0},{"$f":"'Debt allocations'!O96*'Debt Dollars FY23'!$C$2","v":0},{"$f":"'Debt allocations'!P96*'Debt Dollars FY23'!$C$2","v":0},{"$f":"'Debt allocations'!Q96*'Debt Dollars FY23'!$C$2","v":0},{"$f":"'Debt allocations'!R96*'Debt Dollars FY23'!$C$2","v":0},{"$f":"'Debt allocations'!S96*'Debt Dollars FY23'!$C$2","v":0},{"$f":"'Debt allocations'!T96*'Debt Dollars FY23'!$C$2","v":0},{"$f":"'Debt allocations'!U96*'Debt Dollars FY23'!$C$2","v":0},{"$f":"'Debt allocations'!V96*'Debt Dollars FY23'!$C$2","v":0},{"$f":"'Debt allocations'!W96*'Debt Dollars FY23'!$C$2","v":0},{"$f":"'Debt allocations'!X96*'Debt Dollars FY23'!$C$2","v":0},{"$f":"'Debt allocations'!Y96*'Debt Dollars FY23'!$C$2","v":0},{"$f":"'Debt allocations'!Z96*'Debt Dollars FY23'!$C$2","v":0},{"$f":"'Debt allocations'!AA96*'Debt Dollars FY23'!$C$2","v":0},{"$f":"'Debt allocations'!AB96*'Debt Dollars FY23'!$C$2","v":0},{"$f":"'Debt allocations'!AC96*'Debt Dollars FY23'!$C$2","v":0},{"$f":"'Debt allocations'!AD96*'Debt Dollars FY23'!$C$2","v":0},{"$f":"'Debt allocations'!AE96*'Debt Dollars FY23'!$C$2","v":0},{"$f":"'Debt allocations'!AF96*'Debt Dollars FY23'!$C$2","v":0},{"$f":"'Debt allocations'!AG96*'Debt Dollars FY23'!$C$2","v":0},{"$f":"'Debt allocations'!AH96*'Debt Dollars FY23'!$C$2","v":0},{"$f":"'Debt allocations'!AI96*'Debt Dollars FY23'!$C$2","v":0},{"$f":"'Debt allocations'!AJ96*'Debt Dollars FY23'!$C$2","v":0},{"$f":"'Debt allocations'!AK96*'Debt Dollars FY23'!$C$2","v":0},{"$f":"'Debt allocations'!AL96*'Debt Dollars FY23'!$C$2","v":0},{"$f":"'Debt allocations'!AM96*'Debt Dollars FY23'!$C$2","v":0},{"$f":"'Debt allocations'!AN96*'Debt Dollars FY23'!$C$2","v":0}]
["460 - Columbia River Gorge Commission","460","Columbia River Gorge Commission",9.9999999999999998E-20,1E-8,0,{"$f":"'Debt allocations'!G97*'Debt Dollars FY23'!$C$2","v":0},{"$f":"'Debt allocations'!H97*'Debt Dollars FY23'!$C$2","v":0},{"$f":"'Debt allocations'!I97*'Debt Dollars FY23'!$C$2","v":0},{"$f":"'Debt allocations'!J97*'Debt Dollars FY23'!$C$2","v":0},{"$f":"'Debt allocations'!K97*'Debt Dollars FY23'!$C$2","v":0},{"$f":"'Debt allocations'!L97*'Debt Dollars FY23'!$C$2","v":0},{"$f":"'Debt allocations'!M97*'Debt Dollars FY23'!$C$2","v":0},{"$f":"'Debt allocations'!N97*'Debt Dollars FY23'!$C$2","v":0},{"$f":"'Debt allocations'!O97*'Debt Dollars FY23'!$C$2","v":0},{"$f":"'Debt allocations'!P97*'Debt Dollars FY23'!$C$2","v":0},{"$f":"'Debt allocations'!Q97*'Debt Dollars FY23'!$C$2","v":0},{"$f":"'Debt allocations'!R97*'Debt Dollars FY23'!$C$2","v":0},{"$f":"'Debt allocations'!S97*'Debt Dollars FY23'!$C$2","v":0},{"$f":"'Debt allocations'!T97*'Debt Dollars FY23'!$C$2","v":0},{"$f":"'Debt allocations'!U97*'Debt Dollars FY23'!$C$2","v":0},{"$f":"'Debt allocations'!V97*'Debt Dollars FY23'!$C$2","v":0},{"$f":"'Debt allocations'!W97*'Debt Dollars FY23'!$C$2","v":0},{"$f":"'Debt allocations'!X97*'Debt Dollars FY23'!$C$2","v":0},{"$f":"'Debt allocations'!Y97*'Debt Dollars FY23'!$C$2","v":0},{"$f":"'Debt allocations'!Z97*'Debt Dollars FY23'!$C$2","v":0},{"$f":"'Debt allocations'!AA97*'Debt Dollars FY23'!$C$2","v":0},{"$f":"'Debt allocations'!AB97*'Debt Dollars FY23'!$C$2","v":0},{"$f":"'Debt allocations'!AC97*'Debt Dollars FY23'!$C$2","v":0},{"$f":"'Debt allocations'!AD97*'Debt Dollars FY23'!$C$2","v":0},{"$f":"'Debt allocations'!AE97*'Debt Dollars FY23'!$C$2","v":0},{"$f":"'Debt allocations'!AF97*'Debt Dollars FY23'!$C$2","v":0},{"$f":"'Debt allocations'!AG97*'Debt Dollars FY23'!$C$2","v":0},{"$f":"'Debt allocations'!AH97*'Debt Dollars FY23'!$C$2","v":0},{"$f":"'Debt allocations'!AI97*'Debt Dollars FY23'!$C$2","v":0},{"$f":"'Debt allocations'!AJ97*'Debt Dollars FY23'!$C$2","v":0},{"$f":"'Debt allocations'!AK97*'Debt Dollars FY23'!$C$2","v":0},{"$f":"'Debt allocations'!AL97*'Debt Dollars FY23'!$C$2","v":0},{"$f":"'Debt allocations'!AM97*'Debt Dollars FY23'!$C$2","v":0},{"$f":"'Debt allocations'!AN97*'Debt Dollars FY23'!$C$2","v":0}]
["461 - Department of Ecology","461","Department of Ecology",9.9999999999999998E-20,1E-8,0,{"$f":"'Debt allocations'!G98*'Debt Dollars FY23'!$C$2","v":0},{"$f":"'Debt allocations'!H98*'Debt Dollars FY23'!$C$2","v":0},{"$f":"'Debt allocations'!I98*'Debt Dollars FY23'!$C$2","v":0},{"$f":"'Debt allocations'!J98*'Debt Dollars FY23'!$C$2","v":0},{"$f":"'Debt allocations'!K98*'Debt Dollars FY23'!$C$2","v":0},{"$f":"'Debt allocations'!L98*'Debt Dollars FY23'!$C$2","v":0},{"$f":"'Debt allocations'!M98*'Debt Dollars FY23'!$C$2","v":0},{"$f":"'Debt allocations'!N98*'Debt Dollars FY23'!$C$2","v":0},{"$f":"'Debt allocations'!O98*'Debt Dollars FY23'!$C$2","v":0},{"$f":"'Debt allocations'!P98*'Debt Dollars FY23'!$C$2","v":0},{"$f":"'Debt allocations'!Q98*'Debt Dollars FY23'!$C$2","v":0},{"$f":"'Debt allocations'!R98*'Debt Dollars FY23'!$C$2","v":0},{"$f":"'Debt allocations'!S98*'Debt Dollars FY23'!$C$2","v":0},{"$f":"'Debt allocations'!T98*'Debt Dollars FY23'!$C$2","v":0},{"$f":"'Debt allocations'!U98*'Debt Dollars FY23'!$C$2","v":0},{"$f":"'Debt allocations'!V98*'Debt Dollars FY23'!$C$2","v":0},{"$f":"'Debt allocations'!W98*'Debt Dollars FY23'!$C$2","v":0},{"$f":"'Debt allocations'!X98*'Debt Dollars FY23'!$C$2","v":0},{"$f":"'Debt allocations'!Y98*'Debt Dollars FY23'!$C$2","v":0},{"$f":"'Debt allocations'!Z98*'Debt Dollars FY23'!$C$2","v":0},{"$f":"'Debt allocations'!AA98*'Debt Dollars FY23'!$C$2","v":0},{"$f":"'Debt allocations'!AB98*'Debt Dollars FY23'!$C$2","v":0},{"$f":"'Debt allocations'!AC98*'Debt Dollars FY23'!$C$2","v":0},{"$f":"'Debt allocations'!AD98*'Debt Dollars FY23'!$C$2","v":0},{"$f":"'Debt allocations'!AE98*'Debt Dollars FY23'!$C$2","v":0},{"$f":"'Debt allocations'!AF98*'Debt Dollars FY23'!$C$2","v":0},{"$f":"'Debt allocations'!AG98*'Debt Dollars FY23'!$C$2","v":0},{"$f":"'Debt allocations'!AH98*'Debt Dollars FY23'!$C$2","v":0},{"$f":"'Debt allocations'!AI98*'Debt Dollars FY23'!$C$2","v":0},{"$f":"'Debt allocations'!AJ98*'Debt Dollars FY23'!$C$2","v":0},{"$f":"'Debt allocations'!AK98*'Debt Dollars FY23'!$C$2","v":0},{"$f":"'Debt allocations'!AL98*'Debt Dollars FY23'!$C$2","v":0},{"$f":"'Debt allocations'!AM98*'Debt Dollars FY23'!$C$2","v":0},{"$f":"'Debt allocations'!AN98*'Debt Dollars FY23'!$C$2","v":0}]
["462 - Pollution Liability Insurance Program","462","Pollution Liability Insurance Program",9.9999999999999998E-20,1E-8,0,{"$f":"'Debt allocations'!G99*'Debt Dollars FY23'!$C$2","v":0},{"$f":"'Debt allocations'!H99*'Debt Dollars FY23'!$C$2","v":0},{"$f":"'Debt allocations'!I99*'Debt Dollars FY23'!$C$2","v":0},{"$f":"'Debt allocations'!J99*'Debt Dollars FY23'!$C$2","v":0},{"$f":"'Debt allocations'!K99*'Debt Dollars FY23'!$C$2","v":0},{"$f":"'Debt allocations'!L99*'Debt Dollars FY23'!$C$2","v":0},{"$f":"'Debt allocations'!M99*'Debt Dollars FY23'!$C$2","v":0},{"$f":"'Debt allocations'!N99*'Debt Dollars FY23'!$C$2","v":0},{"$f":"'Debt allocations'!O99*'Debt Dollars FY23'!$C$2","v":0},{"$f":"'Debt allocations'!P99*'Debt Dollars FY23'!$C$2","v":0},{"$f":"'Debt allocations'!Q99*'Debt Dollars FY23'!$C$2","v":0},{"$f":"'Debt allocations'!R99*'Debt Dollars FY23'!$C$2","v":0},{"$f":"'Debt allocations'!S99*'Debt Dollars FY23'!$C$2","v":0},{"$f":"'Debt allocations'!T99*'Debt Dollars FY23'!$C$2","v":0},{"$f":"'Debt allocations'!U99*'Debt Dollars FY23'!$C$2","v":0},{"$f":"'Debt allocations'!V99*'Debt Dollars FY23'!$C$2","v":0},{"$f":"'Debt allocations'!W99*'Debt Dollars FY23'!$C$2","v":0},{"$f":"'Debt allocations'!X99*'Debt Dollars FY23'!$C$2","v":0},{"$f":"'Debt allocations'!Y99*'Debt Dollars FY23'!$C$2","v":0},{"$f":"'Debt allocations'!Z99*'Debt Dollars FY23'!$C$2","v":0},{"$f":"'Debt allocations'!AA99*'Debt Dollars FY23'!$C$2","v":0},{"$f":"'Debt allocations'!AB99*'Debt Dollars FY23'!$C$2","v":0},{"$f":"'Debt allocations'!AC99*'Debt Dollars FY23'!$C$2","v":0},{"$f":"'Debt allocations'!AD99*'Debt Dollars FY23'!$C$2","v":0},{"$f":"'Debt allocations'!AE99*'Debt Dollars FY23'!$C$2","v":0},{"$f":"'Debt allocations'!AF99*'Debt Dollars FY23'!$C$2","v":0},{"$f":"'Debt allocations'!AG99*'Debt Dollars FY23'!$C$2","v":0},{"$f":"'Debt allocations'!AH99*'Debt Dollars FY23'!$C$2","v":0},{"$f":"'Debt allocations'!AI99*'Debt Dollars FY23'!$C$2","v":0},{"$f":"'Debt allocations'!AJ99*'Debt Dollars FY23'!$C$2","v":0},{"$f":"'Debt allocations'!AK99*'Debt Dollars FY23'!$C$2","v":0},{"$f":"'Debt allocations'!AL99*'Debt Dollars FY23'!$C$2","v":0},{"$f":"'Debt allocations'!AM99*'Debt Dollars FY23'!$C$2","v":0},{"$f":"'Debt allocations'!AN99*'Debt Dollars FY23'!$C$2","v":0}]
["465 - State Parks and Recreation Commission","465","State Parks and Recreation Commission",9.9999999999999998E-20,1E-8,0,{"$f":"'Debt allocations'!G100*'Debt Dollars FY23'!$C$2","v":0},{"$f":"'Debt allocations'!H100*'Debt Dollars FY23'!$C$2","v":0},{"$f":"'Debt allocations'!I100*'Debt Dollars FY23'!$C$2","v":0},{"$f":"'Debt allocations'!J100*'Debt Dollars FY23'!$C$2","v":0},{"$f":"'Debt allocations'!K100*'Debt Dollars FY23'!$C$2","v":0},{"$f":"'Debt allocations'!L100*'Debt Dollars FY23'!$C$2","v":0},{"$f":"'Debt allocations'!M100*'Debt Dollars FY23'!$C$2","v":0},{"$f":"'Debt allocations'!N100*'Debt Dollars FY23'!$C$2","v":0},{"$f":"'Debt allocations'!O100*'Debt Dollars FY23'!$C$2","v":0},{"$f":"'Debt allocations'!P100*'Debt Dollars FY23'!$C$2","v":0},{"$f":"'Debt allocations'!Q100*'Debt Dollars FY23'!$C$2","v":0},{"$f":"'Debt allocations'!R100*'Debt Dollars FY23'!$C$2","v":0},{"$f":"'Debt allocations'!S100*'Debt Dollars FY23'!$C$2","v":0},{"$f":"'Debt allocations'!T100*'Debt Dollars FY23'!$C$2","v":0},{"$f":"'Debt allocations'!U100*'Debt Dollars FY23'!$C$2","v":0},{"$f":"'Debt allocations'!V100*'Debt Dollars FY23'!$C$2","v":0},{"$f":"'Debt allocations'!W100*'Debt Dollars FY23'!$C$2","v":0},{"$f":"'Debt allocations'!X100*'Debt Dollars FY23'!$C$2","v":0},{"$f":"'Debt allocations'!Y100*'Debt Dollars FY23'!$C$2","v":0},{"$f":"'Debt allocations'!Z100*'Debt Dollars FY23'!$C$2","v":0},{"$f":"'Debt allocations'!AA100*'Debt Dollars FY23'!$C$2","v":0},{"$f":"'Debt allocations'!AB100*'Debt Dollars FY23'!$C$2","v":0},{"$f":"'Debt allocations'!AC100*'Debt Dollars FY23'!$C$2","v":0},{"$f":"'Debt allocations'!AD100*'Debt Dollars FY23'!$C$2","v":0},{"$f":"'Debt allocations'!AE100*'Debt Dollars FY23'!$C$2","v":0},{"$f":"'Debt allocations'!AF100*'Debt Dollars FY23'!$C$2","v":0},{"$f":"'Debt allocations'!AG100*'Debt Dollars FY23'!$C$2","v":0},{"$f":"'Debt allocations'!AH100*'Debt Dollars FY23'!$C$2","v":0},{"$f":"'Debt allocations'!AI100*'Debt Dollars FY23'!$C$2","v":0},{"$f":"'Debt allocations'!AJ100*'Debt Dollars FY23'!$C$2","v":0},{"$f":"'Debt allocations'!AK100*'Debt Dollars FY23'!$C$2","v":0},{"$f":"'Debt allocations'!AL100*'Debt Dollars FY23'!$C$2","v":0},{"$f":"'Debt allocations'!AM100*'Debt Dollars FY23'!$C$2","v":0},{"$f":"'Debt allocations'!AN100*'Debt Dollars FY23'!$C$2","v":0}]
["467 - Recreation and Conservation Funding Board","467","Recreation and Conservation Funding Board",2.8219343222009069E-3,11770,20063.955852782772,{"$f":"'Debt allocations'!G101*'Debt Dollars FY23'!$C$2","v":0},{"$f":"'Debt allocations'!H101*'Debt Dollars FY23'!$C$2","v":0},{"$f":"'Debt allocations'!I101*'Debt Dollars FY23'!$C$2","v":0},{"$f":"'Debt allocations'!J101*'Debt Dollars FY23'!$C$2","v":0},{"$f":"'Debt allocations'!K101*'Debt Dollars FY23'!$C$2","v":0},{"$f":"'Debt allocations'!L101*'Debt Dollars FY23'!$C$2","v":0},{"$f":"'Debt allocations'!M101*'Debt Dollars FY23'!$C$2","v":0},{"$f":"'Debt allocations'!N101*'Debt Dollars FY23'!$C$2","v":20063.955852782772},{"$f":"'Debt allocations'!O101*'Debt Dollars FY23'!$C$2","v":0},{"$f":"'Debt allocations'!P101*'Debt Dollars FY23'!$C$2","v":0},{"$f":"'Debt allocations'!Q101*'Debt Dollars FY23'!$C$2","v":0},{"$f":"'Debt allocations'!R101*'Debt Dollars FY23'!$C$2","v":0},{"$f":"'Debt allocations'!S101*'Debt Dollars FY23'!$C$2","v":0},{"$f":"'Debt allocations'!T101*'Debt Dollars FY23'!$C$2","v":0},{"$f":"'Debt allocations'!U101*'Debt Dollars FY23'!$C$2","v":0},{"$f":"'Debt allocations'!V101*'Debt Dollars FY23'!$C$2","v":0},{"$f":"'Debt allocations'!W101*'Debt Dollars FY23'!$C$2","v":0},{"$f":"'Debt allocations'!X101*'Debt Dollars FY23'!$C$2","v":0},{"$f":"'Debt allocations'!Y101*'Debt Dollars FY23'!$C$2","v":0},{"$f":"'Debt allocations'!Z101*'Debt Dollars FY23'!$C$2","v":0},{"$f":"'Debt allocations'!AA101*'Debt Dollars FY23'!$C$2","v":0},{"$f":"'Debt allocations'!AB101*'Debt Dollars FY23'!$C$2","v":0},{"$f":"'Debt allocations'!AC101*'Debt Dollars FY23'!$C$2","v":0},{"$f":"'Debt allocations'!AD101*'Debt Dollars FY23'!$C$2","v":0},{"$f":"'Debt allocations'!AE101*'Debt Dollars FY23'!$C$2","v":0},{"$f":"'Debt allocations'!AF101*'Debt Dollars FY23'!$C$2","v":0},{"$f":"'Debt allocations'!AG101*'Debt Dollars FY23'!$C$2","v":0},{"$f":"'Debt allocations'!AH101*'Debt Dollars FY23'!$C$2","v":0},{"$f":"'Debt allocations'!AI101*'Debt Dollars FY23'!$C$2","v":0},{"$f":"'Debt allocations'!AJ101*'Debt Dollars FY23'!$C$2","v":0},{"$f":"'Debt allocations'!AK101*'Debt Dollars FY23'!$C$2","v":0},{"$f":"'Debt allocations'!AL101*'Debt Dollars FY23'!$C$2","v":0},{"$f":"'Debt allocations'!AM101*'Debt Dollars FY23'!$C$2","v":0},{"$f":"'Debt allocations'!AN101*'Debt Dollars FY23'!$C$2","v":0}]
["468 - Environmental and Land Use Hearings Office","468","Environmental and Land Use Hearings Office",9.9999999999999998E-20,1E-8,0,{"$f":"'Debt allocations'!G102*'Debt Dollars FY23'!$C$2","v":0},{"$f":"'Debt allocations'!H102*'Debt Dollars FY23'!$C$2","v":0},{"$f":"'Debt allocations'!I102*'Debt Dollars FY23'!$C$2","v":0},{"$f":"'Debt allocations'!J102*'Debt Dollars FY23'!$C$2","v":0},{"$f":"'Debt allocations'!K102*'Debt Dollars FY23'!$C$2","v":0},{"$f":"'Debt allocations'!L102*'Debt Dollars FY23'!$C$2","v":0},{"$f":"'Debt allocations'!M102*'Debt Dollars FY23'!$C$2","v":0},{"$f":"'Debt allocations'!N102*'Debt Dollars FY23'!$C$2","v":0},{"$f":"'Debt allocations'!O102*'Debt Dollars FY23'!$C$2","v":0},{"$f":"'Debt allocations'!P102*'Debt Dollars FY23'!$C$2","v":0},{"$f":"'Debt allocations'!Q102*'Debt Dollars FY23'!$C$2","v":0},{"$f":"'Debt allocations'!R102*'Debt Dollars FY23'!$C$2","v":0},{"$f":"'Debt allocations'!S102*'Debt Dollars FY23'!$C$2","v":0},{"$f":"'Debt allocations'!T102*'Debt Dollars FY23'!$C$2","v":0},{"$f":"'Debt allocations'!U102*'Debt Dollars FY23'!$C$2","v":0},{"$f":"'Debt allocations'!V102*'Debt Dollars FY23'!$C$2","v":0},{"$f":"'Debt allocations'!W102*'Debt Dollars FY23'!$C$2","v":0},{"$f":"'Debt allocations'!X102*'Debt Dollars FY23'!$C$2","v":0},{"$f":"'Debt allocations'!Y102*'Debt Dollars FY23'!$C$2","v":0},{"$f":"'Debt allocations'!Z102*'Debt Dollars FY23'!$C$2","v":0},{"$f":"'Debt allocations'!AA102*'Debt Dollars FY23'!$C$2","v":0},{"$f":"'Debt allocations'!AB102*'Debt Dollars FY23'!$C$2","v":0},{"$f":"'Debt allocations'!AC102*'Debt Dollars FY23'!$C$2","v":0},{"$f":"'Debt allocations'!AD102*'Debt Dollars FY23'!$C$2","v":0},{"$f":"'Debt allocations'!AE102*'Debt Dollars FY23'!$C$2","v":0},{"$f":"'Debt allocations'!AF102*'Debt Dollars FY23'!$C$2","v":0},{"$f":"'Debt allocations'!AG102*'Debt Dollars FY23'!$C$2","v":0},{"$f":"'Debt allocations'!AH102*'Debt Dollars FY23'!$C$2","v":0},{"$f":"'Debt allocations'!AI102*'Debt Dollars FY23'!$C$2","v":0},{"$f":"'Debt allocations'!AJ102*'Debt Dollars FY23'!$C$2","v":0},{"$f":"'Debt allocations'!AK102*'Debt Dollars FY23'!$C$2","v":0},{"$f":"'Debt allocations'!AL102*'Debt Dollars FY23'!$C$2","v":0},{"$f":"'Debt allocations'!AM102*'Debt Dollars FY23'!$C$2","v":0},{"$f":"'Debt allocations'!AN102*'Debt Dollars FY23'!$C$2","v":0}]
["471 - State Conservation Commission","471","State Conservation Commission",9.9999999999999998E-20,1E-8,0,{"$f":"'Debt allocations'!G103*'Debt Dollars FY23'!$C$2","v":0},{"$f":"'Debt allocations'!H103*'Debt Dollars FY23'!$C$2","v":0},{"$f":"'Debt allocations'!I103*'Debt Dollars FY23'!$C$2","v":0},{"$f":"'Debt allocations'!J103*'Debt Dollars FY23'!$C$2","v":0},{"$f":"'Debt allocations'!K103*'Debt Dollars FY23'!$C$2","v":0},{"$f":"'Debt allocations'!L103*'Debt Dollars FY23'!$C$2","v":0},{"$f":"'Debt allocations'!M103*'Debt Dollars FY23'!$C$2","v":0},{"$f":"'Debt allocations'!N103*'Debt Dollars FY23'!$C$2","v":0},{"$f":"'Debt allocations'!O103*'Debt Dollars FY23'!$C$2","v":0},{"$f":"'Debt allocations'!P103*'Debt Dollars FY23'!$C$2","v":0},{"$f":"'Debt allocations'!Q103*'Debt Dollars FY23'!$C$2","v":0},{"$f":"'Debt allocations'!R103*'Debt Dollars FY23'!$C$2","v":0},{"$f":"'Debt allocations'!S103*'Debt Dollars FY23'!$C$2","v":0},{"$f":"'Debt allocations'!T103*'Debt Dollars FY23'!$C$2","v":0},{"$f":"'Debt allocations'!U103*'Debt Dollars FY23'!$C$2","v":0},{"$f":"'Debt allocations'!V103*'Debt Dollars FY23'!$C$2","v":0},{"$f":"'Debt allocations'!W103*'Debt Dollars FY23'!$C$2","v":0},{"$f":"'Debt allocations'!X103*'Debt Dollars FY23'!$C$2","v":0},{"$f":"'Debt allocations'!Y103*'Debt Dollars FY23'!$C$2","v":0},{"$f":"'Debt allocations'!Z103*'Debt Dollars FY23'!$C$2","v":0},{"$f":"'Debt allocations'!AA103*'Debt Dollars FY23'!$C$2","v":0},{"$f":"'Debt allocations'!AB103*'Debt Dollars FY23'!$C$2","v":0},{"$f":"'Debt allocations'!AC103*'Debt Dollars FY23'!$C$2","v":0},{"$f":"'Debt allocations'!AD103*'Debt Dollars FY23'!$C$2","v":0},{"$f":"'Debt allocations'!AE103*'Debt Dollars FY23'!$C$2","v":0},{"$f":"'Debt allocations'!AF103*'Debt Dollars FY23'!$C$2","v":0},{"$f":"'Debt allocations'!AG103*'Debt Dollars FY23'!$C$2","v":0},{"$f":"'Debt allocations'!AH103*'Debt Dollars FY23'!$C$2","v":0},{"$f":"'Debt allocations'!AI103*'Debt Dollars FY23'!$C$2","v":0},{"$f":"'Debt allocations'!AJ103*'Debt Dollars FY23'!$C$2","v":0},{"$f":"'Debt allocations'!AK103*'Debt Dollars FY23'!$C$2","v":0},{"$f":"'Debt allocations'!AL103*'Debt Dollars FY23'!$C$2","v":0},{"$f":"'Debt allocations'!AM103*'Debt Dollars FY23'!$C$2","v":0},{"$f":"'Debt allocations'!AN103*'Debt Dollars FY23'!$C$2","v":0}]
["477 - Department of Fish and Wildlife","477","Department of Fish and Wildlife",3.3606432626047483E-2,140169,238941.76957763027,{"$f":"'Debt allocations'!G104*'Debt Dollars FY23'!$C$2","v":0},{"$f":"'Debt allocations'!H104*'Debt Dollars FY23'!$C$2","v":0},{"$f":"'Debt allocations'!I104*'Debt Dollars FY23'!$C$2","v":0},{"$f":"'Debt allocations'!J104*'Debt Dollars FY23'!$C$2","v":0},{"$f":"'Debt allocations'!K104*'Debt Dollars FY23'!$C$2","v":0},{"$f":"'Debt allocations'!L104*'Debt Dollars FY23'!$C$2","v":0},{"$f":"'Debt allocations'!M104*'Debt Dollars FY23'!$C$2","v":0},{"$f":"'Debt allocations'!N104*'Debt Dollars FY23'!$C$2","v":238941.76957763027},{"$f":"'Debt allocations'!O104*'Debt Dollars FY23'!$C$2","v":0},{"$f":"'Debt allocations'!P104*'Debt Dollars FY23'!$C$2","v":0},{"$f":"'Debt allocations'!Q104*'Debt Dollars FY23'!$C$2","v":0},{"$f":"'Debt allocations'!R104*'Debt Dollars FY23'!$C$2","v":0},{"$f":"'Debt allocations'!S104*'Debt Dollars FY23'!$C$2","v":0},{"$f":"'Debt allocations'!T104*'Debt Dollars FY23'!$C$2","v":0},{"$f":"'Debt allocations'!U104*'Debt Dollars FY23'!$C$2","v":0},{"$f":"'Debt allocations'!V104*'Debt Dollars FY23'!$C$2","v":0},{"$f":"'Debt allocations'!W104*'Debt Dollars FY23'!$C$2","v":0},{"$f":"'Debt allocations'!X104*'Debt Dollars FY23'!$C$2","v":0},{"$f":"'Debt allocations'!Y104*'Debt Dollars FY23'!$C$2","v":0},{"$f":"'Debt allocations'!Z104*'Debt Dollars FY23'!$C$2","v":0},{"$f":"'Debt allocations'!AA104*'Debt Dollars FY23'!$C$2","v":0},{"$f":"'Debt allocations'!AB104*'Debt Dollars FY23'!$C$2","v":0},{"$f":"'Debt allocations'!AC104*'Debt Dollars FY23'!$C$2","v":0},{"$f":"'Debt allocations'!AD104*'Debt Dollars FY23'!$C$2","v":0},{"$f":"'Debt allocations'!AE104*'Debt Dollars FY23'!$C$2","v":0},{"$f":"'Debt allocations'!AF104*'Debt Dollars FY23'!$C$2","v":0},{"$f":"'Debt allocations'!AG104*'Debt Dollars FY23'!$C$2","v":0},{"$f":"'Debt allocations'!AH104*'Debt Dollars FY23'!$C$2","v":0},{"$f":"'Debt allocations'!AI104*'Debt Dollars FY23'!$C$2","v":0},{"$f":"'Debt allocations'!AJ104*'Debt Dollars FY23'!$C$2","v":0},{"$f":"'Debt allocations'!AK104*'Debt Dollars FY23'!$C$2","v":0},{"$f":"'Debt allocations'!AL104*'Debt Dollars FY23'!$C$2","v":0},{"$f":"'Debt allocations'!AM104*'Debt Dollars FY23'!$C$2","v":0},{"$f":"'Debt allocations'!AN104*'Debt Dollars FY23'!$C$2","v":0}]
["478 - Puget Sound Partnership","478","Puget Sound Partnership",1.0841825272759652E-3,1382,7708.53885311464,{"$f":"'Debt allocations'!G105*'Debt Dollars FY23'!$C$2","v":0},{"$f":"'Debt allocations'!H105*'Debt Dollars FY23'!$C$2","v":0},{"$f":"'Debt allocations'!I105*'Debt Dollars FY23'!$C$2","v":0},{"$f":"'Debt allocations'!J105*'Debt Dollars FY23'!$C$2","v":0},{"$f":"'Debt allocations'!K105*'Debt Dollars FY23'!$C$2","v":0},{"$f":"'Debt allocations'!L105*'Debt Dollars FY23'!$C$2","v":0},{"$f":"'Debt allocations'!M105*'Debt Dollars FY23'!$C$2","v":0},{"$f":"'Debt allocations'!N105*'Debt Dollars FY23'!$C$2","v":0},{"$f":"'Debt allocations'!O105*'Debt Dollars FY23'!$C$2","v":0},{"$f":"'Debt allocations'!P105*'Debt Dollars FY23'!$C$2","v":0},{"$f":"'Debt allocations'!Q105*'Debt Dollars FY23'!$C$2","v":0},{"$f":"'Debt allocations'!R105*'Debt Dollars FY23'!$C$2","v":0},{"$f":"'Debt allocations'!S105*'Debt Dollars FY23'!$C$2","v":0},{"$f":"'Debt allocations'!T105*'Debt Dollars FY23'!$C$2","v":0},{"$f":"'Debt allocations'!U105*'Debt Dollars FY23'!$C$2","v":0},{"$f":"'Debt allocations'!V105*'Debt Dollars FY23'!$C$2","v":0},{"$f":"'Debt allocations'!W105*'Debt Dollars FY23'!$C$2","v":0},{"$f":"'Debt allocations'!X105*'Debt Dollars FY23'!$C$2","v":0},{"$f":"'Debt allocations'!Y105*'Debt Dollars FY23'!$C$2","v":0},{"$f":"'Debt allocations'!Z105*'Debt Dollars FY23'!$C$2","v":7708.53885311464},{"$f":"'Debt allocations'!AA105*'Debt Dollars FY23'!$C$2","v":0},{"$f":"'Debt allocations'!AB105*'Debt Dollars FY23'!$C$2","v":0},{"$f":"'Debt allocations'!AC105*'Debt Dollars FY23'!$C$2","v":0},{"$f":"'Debt allocations'!AD105*'Debt Dollars FY23'!$C$2","v":0},{"$f":"'Debt allocations'!AE105*'Debt Dollars FY23'!$C$2","v":0},{"$f":"'Debt allocations'!AF105*'Debt Dollars FY23'!$C$2","v":0},{"$f":"'Debt allocations'!AG105*'Debt Dollars FY23'!$C$2","v":0},{"$f":"'Debt allocations'!AH105*'Debt Dollars FY23'!$C$2","v":0},{"$f":"'Debt allocations'!AI105*'Debt Dollars FY23'!$C$2","v":0},{"$f":"'Debt allocations'!AJ105*'Debt Dollars FY23'!$C$2","v":0},{"$f":"'Debt allocations'!AK105*'Debt Dollars FY23'!$C$2","v":0},{"$f":"'Debt allocations'!AL105*'Debt Dollars FY23'!$C$2","v":0},{"$f":"'Debt allocations'!AM105*'Debt Dollars FY23'!$C$2","v":0},{"$f":"'Debt allocations'!AN105*'Debt Dollars FY23'!$C$2","v":0}]
["490 - Department of Natural Resources","490","Department of Natural Resources",3.639504079100235E-2,151800,258768.77641906749,{"$f":"'Debt allocations'!G106*'Debt Dollars FY23'!$C$2","v":0},{"$f":"'Debt allocations'!H106*'Debt Dollars FY23'!$C$2","v":0},{"$f":"'Debt allocations'!I106*'Debt Dollars FY23'!$C$2","v":0},{"$f":"'Debt allocations'!J106*'Debt Dollars FY23'!$C$2","v":0},{"$f":"'Debt allocations'!K106*'Debt Dollars FY23'!$C$2","v":0},{"$f":"'Debt allocations'!L106*'Debt Dollars FY23'!$C$2","v":0},{"$f":"'Debt allocations'!M106*'Debt Dollars FY23'!$C$2","v":0},{"$f":"'Debt allocations'!N106*'Debt Dollars FY23'!$C$2","v":258768.77641906749},{"$f":"'Debt allocations'!O106*'Debt Dollars FY23'!$C$2","v":0},{"$f":"'Debt allocations'!P106*'Debt Dollars FY23'!$C$2","v":0},{"$f":"'Debt allocations'!Q106*'Debt Dollars FY23'!$C$2","v":0},{"$f":"'Debt allocations'!R106*'Debt Dollars FY23'!$C$2","v":0},{"$f":"'Debt allocations'!S106*'Debt Dollars FY23'!$C$2","v":0},{"$f":"'Debt allocations'!T106*'Debt Dollars FY23'!$C$2","v":0},{"$f":"'Debt allocations'!U106*'Debt Dollars FY23'!$C$2","v":0},{"$f":"'Debt allocations'!V106*'Debt Dollars FY23'!$C$2","v":0},{"$f":"'Debt allocations'!W106*'Debt Dollars FY23'!$C$2","v":0},{"$f":"'Debt allocations'!X106*'Debt Dollars FY23'!$C$2","v":0},{"$f":"'Debt allocations'!Y106*'Debt Dollars FY23'!$C$2","v":0},{"$f":"'Debt allocations'!Z106*'Debt Dollars FY23'!$C$2","v":0},{"$f":"'Debt allocations'!AA106*'Debt Dollars FY23'!$C$2","v":0},{"$f":"'Debt allocations'!AB106*'Debt Dollars FY23'!$C$2","v":0},{"$f":"'Debt allocations'!AC106*'Debt Dollars FY23'!$C$2","v":0},{"$f":"'Debt allocations'!AD106*'Debt Dollars FY23'!$C$2","v":0},{"$f":"'Debt allocations'!AE106*'Debt Dollars FY23'!$C$2","v":0},{"$f":"'Debt allocations'!AF106*'Debt Dollars FY23'!$C$2","v":0},{"$f":"'Debt allocations'!AG106*'Debt Dollars FY23'!$C$2","v":0},{"$f":"'Debt allocations'!AH106*'Debt Dollars FY23'!$C$2","v":0},{"$f":"'Debt allocations'!AI106*'Debt Dollars FY23'!$C$2","v":0},{"$f":"'Debt allocations'!AJ106*'Debt Dollars FY23'!$C$2","v":0},{"$f":"'Debt allocations'!AK106*'Debt Dollars FY23'!$C$2","v":0},{"$f":"'Debt allocations'!AL106*'Debt Dollars FY23'!$C$2","v":0},{"$f":"'Debt allocations'!AM106*'Debt Dollars FY23'!$C$2","v":0},{"$f":"'Debt allocations'!AN106*'Debt Dollars FY23'!$C$2","v":0}]
["495 - Department of Agriculture","495","Department of Agriculture",1.1495606197669234E-2,47947,81733.77156103446,{"$f":"'Debt allocations'!G107*'Debt Dollars FY23'!$C$2","v":0},{"$f":"'Debt allocations'!H107*'Debt Dollars FY23'!$C$2","v":0},{"$f":"'Debt allocations'!I107*'Debt Dollars FY23'!$C$2","v":0},{"$f":"'Debt allocations'!J107*'Debt Dollars FY23'!$C$2","v":0},{"$f":"'Debt allocations'!K107*'Debt Dollars FY23'!$C$2","v":0},{"$f":"'Debt allocations'!L107*'Debt Dollars FY23'!$C$2","v":0},{"$f":"'Debt allocations'!M107*'Debt Dollars FY23'!$C$2","v":0},{"$f":"'Debt allocations'!N107*'Debt Dollars FY23'!$C$2","v":81733.77156103446},{"$f":"'Debt allocations'!O107*'Debt Dollars FY23'!$C$2","v":0},{"$f":"'Debt allocations'!P107*'Debt Dollars FY23'!$C$2","v":0},{"$f":"'Debt allocations'!Q107*'Debt Dollars FY23'!$C$2","v":0},{"$f":"'Debt allocations'!R107*'Debt Dollars FY23'!$C$2","v":0},{"$f":"'Debt allocations'!S107*'Debt Dollars FY23'!$C$2","v":0},{"$f":"'Debt allocations'!T107*'Debt Dollars FY23'!$C$2","v":0},{"$f":"'Debt allocations'!U107*'Debt Dollars FY23'!$C$2","v":0},{"$f":"'Debt allocations'!V107*'Debt Dollars FY23'!$C$2","v":0},{"$f":"'Debt allocations'!W107*'Debt Dollars FY23'!$C$2","v":0},{"$f":"'Debt allocations'!X107*'Debt Dollars FY23'!$C$2","v":0},{"$f":"'Debt allocations'!Y107*'Debt Dollars FY23'!$C$2","v":0},{"$f":"'Debt allocations'!Z107*'Debt Dollars FY23'!$C$2","v":0},{"$f":"'Debt allocations'!AA107*'Debt Dollars FY23'!$C$2","v":0},{"$f":"'Debt allocations'!AB107*'Debt Dollars FY23'!$C$2","v":0},{"$f":"'Debt allocations'!AC107*'Debt Dollars FY23'!$C$2","v":0},{"$f":"'Debt allocations'!AD107*'Debt Dollars FY23'!$C$2","v":0},{"$f":"'Debt allocations'!AE107*'Debt Dollars FY23'!$C$2","v":0},{"$f":"'Debt allocations'!AF107*'Debt Dollars FY23'!$C$2","v":0},{"$f":"'Debt allocations'!AG107*'Debt Dollars FY23'!$C$2","v":0},{"$f":"'Debt allocations'!AH107*'Debt Dollars FY23'!$C$2","v":0},{"$f":"'Debt allocations'!AI107*'Debt Dollars FY23'!$C$2","v":0},{"$f":"'Debt allocations'!AJ107*'Debt Dollars FY23'!$C$2","v":0},{"$f":"'Debt allocations'!AK107*'Debt Dollars FY23'!$C$2","v":0},{"$f":"'Debt allocations'!AL107*'Debt Dollars FY23'!$C$2","v":0},{"$f":"'Debt allocations'!AM107*'Debt Dollars FY23'!$C$2","v":0},{"$f":"'Debt allocations'!AN107*'Debt Dollars FY23'!$C$2","v":0}]
["540 - Employment Security Department","540","Employment Security Department",9.9999999999999998E-20,1E-8,0,{"$f":"'Debt allocations'!G108*'Debt Dollars FY23'!$C$2","v":0},{"$f":"'Debt allocations'!H108*'Debt Dollars FY23'!$C$2","v":0},{"$f":"'Debt allocations'!I108*'Debt Dollars FY23'!$C$2","v":0},{"$f":"'Debt allocations'!J108*'Debt Dollars FY23'!$C$2","v":0},{"$f":"'Debt allocations'!K108*'Debt Dollars FY23'!$C$2","v":0},{"$f":"'Debt allocations'!L108*'Debt Dollars FY23'!$C$2","v":0},{"$f":"'Debt allocations'!M108*'Debt Dollars FY23'!$C$2","v":0},{"$f":"'Debt allocations'!N108*'Debt Dollars FY23'!$C$2","v":0},{"$f":"'Debt allocations'!O108*'Debt Dollars FY23'!$C$2","v":0},{"$f":"'Debt allocations'!P108*'Debt Dollars FY23'!$C$2","v":0},{"$f":"'Debt allocations'!Q108*'Debt Dollars FY23'!$C$2","v":0},{"$f":"'Debt allocations'!R108*'Debt Dollars FY23'!$C$2","v":0},{"$f":"'Debt allocations'!S108*'Debt Dollars FY23'!$C$2","v":0},{"$f":"'Debt allocations'!T108*'Debt Dollars FY23'!$C$2","v":0},{"$f":"'Debt allocations'!U108*'Debt Dollars FY23'!$C$2","v":0},{"$f":"'Debt allocations'!V108*'Debt Dollars FY23'!$C$2","v":0},{"$f":"'Debt allocations'!W108*'Debt Dollars FY23'!$C$2","v":0},{"$f":"'Debt allocations'!X108*'Debt Dollars FY23'!$C$2","v":0},{"$f":"'Debt allocations'!Y108*'Debt Dollars FY23'!$C$2","v":0},{"$f":"'Debt allocations'!Z108*'Debt Dollars FY23'!$C$2","v":0},{"$f":"'Debt allocations'!AA108*'Debt Dollars FY23'!$C$2","v":0},{"$f":"'Debt allocations'!AB108*'Debt Dollars FY23'!$C$2","v":0},{"$f":"'Debt allocations'!AC108*'Debt Dollars FY23'!$C$2","v":0},{"$f":"'Debt allocations'!AD108*'Debt Dollars FY23'!$C$2","v":0},{"$f":"'Debt allocations'!AE108*'Debt Dollars FY23'!$C$2","v":0},{"$f":"'Debt allocations'!AF108*'Debt Dollars FY23'!$C$2","v":0},{"$f":"'Debt allocations'!AG108*'Debt Dollars FY23'!$C$2","v":0},{"$f":"'Debt allocations'!AH108*'Debt Dollars FY23'!$C$2","v":0},{"$f":"'Debt allocations'!AI108*'Debt Dollars FY23'!$C$2","v":0},{"$f":"'Debt allocations'!AJ108*'Debt Dollars FY23'!$C$2","v":0},{"$f":"'Debt allocations'!AK108*'Debt Dollars FY23'!$C$2","v":0},{"$f":"'Debt allocations'!AL108*'Debt Dollars FY23'!$C$2","v":0},{"$f":"'Debt allocations'!AM108*'Debt Dollars FY23'!$C$2","v":0},{"$f":"'Debt allocations'!AN108*'Debt Dollars FY23'!$C$2","v":0}]
["699 - Community Colleges","699","Community Colleges",9.9999999999999998E-20,1E-8,0,{"$f":"'Debt allocations'!G109*'Debt Dollars FY23'!$C$2","v":0},{"$f":"'Debt allocations'!H109*'Debt Dollars FY23'!$C$2","v":0},{"$f":"'Debt allocations'!I109*'Debt Dollars FY23'!$C$2","v":0},{"$f":"'Debt allocations'!J109*'Debt Dollars FY23'!$C$2","v":0},{"$f":"'Debt allocations'!K109*'Debt Dollars FY23'!$C$2","v":0},{"$f":"'Debt allocations'!L109*'Debt Dollars FY23'!$C$2","v":0},{"$f":"'Debt allocations'!M109*'Debt Dollars FY23'!$C$2","v":0},{"$f":"'Debt allocations'!N109*'Debt Dollars FY23'!$C$2","v":0},{"$f":"'Debt allocations'!O109*'Debt Dollars FY23'!$C$2","v":0},{"$f":"'Debt allocations'!P109*'Debt Dollars FY23'!$C$2","v":0},{"$f":"'Debt allocations'!Q109*'Debt Dollars FY23'!$C$2","v":0},{"$f":"'Debt allocations'!R109*'Debt Dollars FY23'!$C$2","v":0},{"$f":"'Debt allocations'!S109*'Debt Dollars FY23'!$C$2","v":0},{"$f":"'Debt allocations'!T109*'Debt Dollars FY23'!$C$2","v":0},{"$f":"'Debt allocations'!U109*'Debt Dollars FY23'!$C$2","v":0},{"$f":"'Debt allocations'!V109*'Debt Dollars FY23'!$C$2","v":0},{"$f":"'Debt allocations'!W109*'Debt Dollars FY23'!$C$2","v":0},{"$f":"'Debt allocations'!X109*'Debt Dollars FY23'!$C$2","v":0},{"$f":"'Debt allocations'!Y109*'Debt Dollars FY23'!$C$2","v":0},{"$f":"'Debt allocations'!Z109*'Debt Dollars FY23'!$C$2","v":0},{"$f":"'Debt allocations'!AA109*'Debt Dollars FY23'!$C$2","v":0},{"$f":"'Debt allocations'!AB109*'Debt Dollars FY23'!$C$2","v":0},{"$f":"'Debt allocations'!AC109*'Debt Dollars FY23'!$C$2","v":0},{"$f":"'Debt allocations'!AD109*'Debt Dollars FY23'!$C$2","v":0},{"$f":"'Debt allocations'!AE109*'Debt Dollars FY23'!$C$2","v":0},{"$f":"'Debt allocations'!AF109*'Debt Dollars FY23'!$C$2","v":0},{"$f":"'Debt allocations'!AG109*'Debt Dollars FY23'!$C$2","v":0},{"$f":"'Debt allocations'!AH109*'Debt Dollars FY23'!$C$2","v":0},{"$f":"'Debt allocations'!AI109*'Debt Dollars FY23'!$C$2","v":0},{"$f":"'Debt allocations'!AJ109*'Debt Dollars FY23'!$C$2","v":0},{"$f":"'Debt allocations'!AK109*'Debt Dollars FY23'!$C$2","v":0},{"$f":"'Debt allocations'!AL109*'Debt Dollars FY23'!$C$2","v":0},{"$f":"'Debt allocations'!AM109*'Debt Dollars FY23'!$C$2","v":0},{"$f":"'Debt allocations'!AN109*'Debt Dollars FY23'!$C$2","v":0}]
["TOTAL  - All Agencies",null,"Building Total",0.99999999999999989,1365187,14218000.235354647,{"$f":"SUM(G6:G109)","v":0},{"$f":"SUM(H6:H109)","v":0},0,0,255142.16663128466,372177.75185377384,35941.529526933038,599508.27341051504,0,0,0,0,0,0,0,318899.37680085242,0,0,0,229716.68894838885,126146.03270976894,0,0,0,0,0,0,4777408.0207543839,77447.972432578419,119052.38412939358,0,198560.80280212787,0,0]
[]
[null,null,null,null,"Building Total RSF",null,77281,78594,142254,23890,177668,250481,47900,354696,92619,184427,55108,97800,53609,22032,95386,47200,14308,10125,0,41341,17000,0,1539,7138,885,2492,872,200592,60581,99000,20708,138355,17600,0]
[null,null,null,null,"vacant space",0,0,0,0,0,0,0,0,0,0,0,0,0,0,0,0,0,0,0,0,0,0,0,0,14276,406,872,0,0,0,0,35004,0,0]
[null,null,null,null,null,null,{"$f":"G110/G112/2","v":0},{"$f":"H110/H112/2","v":0},0,0,0.71803072762479647,0.74292611386447238,0.37517254203479161,0.84510154246243974,0,0,0,0,0,0,0,3.3781713644158096,0,0,{"$error":"#DIV/0!"},2.7783155819693386,3.710177432640263,{"$error":"#DIV/0!"},0,0,0,0,0,11.908271568044547,0.63921008593930784,0.60127466732016965,0,0.71757725706381359,0]

{"sheet":"Security dollars","index":11,"n_rows":112,"n_cols":38,"rows_kept":112,"cut":false,"hidden":true,"merged":[[1,3,2,3]]}
[null,"BI TOTAL",10724000]
[null,null,null,"Total","F6121","F6122","F6123","F6124","F6125","F6126","F6127","F6129","F612A","F612C","F612E","F612H","F612J","F612K","F6131","F6132","F6133","F6134","F6137","F613D","F613E","F613F","F613G","F613H","F613i","F613K","F613L","F613M","F6141","F6142","F6143","F6144","F614G","F6146"]
[null,"Agency #","Agency",null,"Cherberg","O'Brien","Legislative","Pritchard","HLB","OB2","Archives","NRB","Emp Sec","Transportation","Insurance","Old Cap","TOJ","Newhouse","Modular Bldg","Isabella Bush","1007 Washington","120 E Union Avenue","Conservatory","Capital Court","James Dolliver Building","Undeveloped Properties","1068 WA Street SE (ST Farm)","232 Perry Street","208 11th Avenue SE (Pro Arts)","Press Houses Ayer(White); Carlyon(Blue)","Visitor Center","Helen Sommers","Kelso Building","Yakima Building","Alaska Street","Tacoma Rhodes","Tacoma Rhodes Garage","North Cascades Gateway Center (NCGC)"]
[null,"011","House of Representatives",{"$f":"'rent allocations'!D4*$C$1","v":625359.84230931068},{"$f":"'rent allocations'!E4*$C$1","v":0},{"$f":"'rent allocations'!F4*$C$1","v":285187.50278875226},{"$f":"'rent allocations'!G4*$C$1","v":340172.33952055842},{"$f":"'rent allocations'!H4*$C$1","v":0},{"$f":"'rent allocations'!I4*$C$1","v":0},{"$f":"'rent allocations'!J4*$C$1","v":0},{"$f":"'rent allocations'!K4*$C$1","v":0},{"$f":"'rent allocations'!L4*$C$1","v":0},{"$f":"'rent allocations'!M4*$C$1","v":0},{"$f":"'rent allocations'!N4*$C$1","v":0},{"$f":"'rent allocations'!O4*$C$1","v":0},{"$f":"'rent allocations'!P4*$C$1","v":0},{"$f":"'rent allocations'!Q4*$C$1","v":0},{"$f":"'rent allocations'!R4*$C$1","v":0},{"$f":"'rent allocations'!S4*$C$1","v":0},{"$f":"'rent allocations'!T4*$C$1","v":0},{"$f":"'rent allocations'!U4*$C$1","v":0},{"$f":"'rent allocations'!V4*$C$1","v":0},{"$f":"'rent allocations'!W4*$C$1","v":0},{"$f":"'rent allocations'!X4*$C$1","v":0},{"$f":"'rent allocations'!Y4*$C$1","v":0},{"$f":"'rent allocations'!Z4*$C$1","v":0},{"$f":"'rent allocations'!AA4*$C$1","v":0},{"$f":"'rent allocations'!AB4*$C$1","v":0},{"$f":"'rent allocations'!AC4*$C$1","v":0},{"$f":"'rent allocations'!AD4*$C$1","v":0},{"$f":"'rent allocations'!AE4*$C$1","v":0},{"$f":"'rent allocations'!AF4*$C$1","v":0},{"$f":"'rent allocations'!AG4*$C$1","v":0},{"$f":"'rent allocations'!AH4*$C$1","v":0},{"$f":"'rent allocations'!AI4*$C$1","v":0},{"$f":"'rent allocations'!AJ4*$C$1","v":0},{"$f":"'rent allocations'!AK4*$C$1","v":0},{"$f":"'rent allocations'!AL4*$C$1","v":0}]
[null,"012","Senate",{"$f":"'rent allocations'!D5*$C$1","v":875070.01470100193},{"$f":"'rent allocations'!E5*$C$1","v":444851.64869685209},{"$f":"'rent allocations'!F5*$C$1","v":0},{"$f":"'rent allocations'!G5*$C$1","v":265085.73800180544},{"$f":"'rent allocations'!H5*$C$1","v":0},{"$f":"'rent allocations'!I5*$C$1","v":0},{"$f":"'rent allocations'!J5*$C$1","v":0},{"$f":"'rent allocations'!K5*$C$1","v":0},{"$f":"'rent allocations'!L5*$C$1","v":0},{"$f":"'rent allocations'!M5*$C$1","v":0},{"$f":"'rent allocations'!N5*$C$1","v":0},{"$f":"'rent allocations'!O5*$C$1","v":0},{"$f":"'rent allocations'!P5*$C$1","v":0},{"$f":"'rent allocations'!Q5*$C$1","v":0},{"$f":"'rent allocations'!R5*$C$1","v":165132.6280023444},{"$f":"'rent allocations'!S5*$C$1","v":0},{"$f":"'rent allocations'!T5*$C$1","v":0},{"$f":"'rent allocations'!U5*$C$1","v":0},{"$f":"'rent allocations'!V5*$C$1","v":0},{"$f":"'rent allocations'!W5*$C$1","v":0},{"$f":"'rent allocations'!X5*$C$1","v":0},{"$f":"'rent allocations'!Y5*$C$1","v":0},{"$f":"'rent allocations'!Z5*$C$1","v":0},{"$f":"'rent allocations'!AA5*$C$1","v":0},{"$f":"'rent allocations'!AB5*$C$1","v":0},{"$f":"'rent allocations'!AC5*$C$1","v":0},{"$f":"'rent allocations'!AD5*$C$1","v":0},{"$f":"'rent allocations'!AE5*$C$1","v":0},{"$f":"'rent allocations'!AF5*$C$1","v":0},{"$f":"'rent allocations'!AG5*$C$1","v":0},{"$f":"'rent allocations'!AH5*$C$1","v":0},{"$f":"'rent allocations'!AI5*$C$1","v":0},{"$f":"'rent allocations'!AJ5*$C$1","v":0},{"$f":"'rent allocations'!AK5*$C$1","v":0},{"$f":"'rent allocations'!AL5*$C$1","v":0}]
[null,"013","Joint Transportation Committee",{"$f":"'rent allocations'!D6*$C$1","v":0},{"$f":"'rent allocations'!E6*$C$1","v":0},{"$f":"'rent allocations'!F6*$C$1","v":0},{"$f":"'rent allocations'!G6*$C$1","v":0},{"$f":"'rent allocations'!H6*$C$1","v":0},{"$f":"'rent allocations'!I6*$C$1","v":0},{"$f":"'rent allocations'!J6*$C$1","v":0},{"$f":"'rent allocations'!K6*$C$1","v":0},{"$f":"'rent allocations'!L6*$C$1","v":0},{"$f":"'rent allocations'!M6*$C$1","v":0},{"$f":"'rent allocations'!N6*$C$1","v":0},{"$f":"'rent allocations'!O6*$C$1","v":0},{"$f":"'rent allocations'!P6*$C$1","v":0},{"$f":"'rent allocations'!Q6*$C$1","v":0},{"$f":"'rent allocations'!R6*$C$1","v":0},{"$f":"'rent allocations'!S6*$C$1","v":0},{"$f":"'rent allocations'!T6*$C$1","v":0},{"$f":"'rent allocations'!U6*$C$1","v":0},{"$f":"'rent allocations'!V6*$C$1","v":0},{"$f":"'rent allocations'!W6*$C$1","v":0},{"$f":"'rent allocations'!X6*$C$1","v":0},{"$f":"'rent allocations'!Y6*$C$1","v":0},{"$f":"'rent allocations'!Z6*$C$1","v":0},{"$f":"'rent allocations'!AA6*$C$1","v":0},{"$f":"'rent allocations'!AB6*$C$1","v":0},{"$f":"'rent allocations'!AC6*$C$1","v":0},{"$f":"'rent allocations'!AD6*$C$1","v":0},{"$f":"'rent allocations'!AE6*$C$1","v":0},{"$f":"'rent allocations'!AF6*$C$1","v":0},{"$f":"'rent allocations'!AG6*$C$1","v":0},{"$f":"'rent allocations'!AH6*$C$1","v":0},{"$f":"'rent allocations'!AI6*$C$1","v":0},{"$f":"'rent allocations'!AJ6*$C$1","v":0},{"$f":"'rent allocations'!AK6*$C$1","v":0},{"$f":"'rent allocations'!AL6*$C$1","v":0}]
[null,"014","Joint Legislative Audit and Review Committee",{"$f":"'rent allocations'!D7*$C$1","v":29477.551574028756},{"$f":"'rent allocations'!E7*$C$1","v":0},{"$f":"'rent allocations'!F7*$C$1","v":0},{"$f":"'rent allocations'!G7*$C$1","v":0},{"$f":"'rent allocations'!H7*$C$1","v":0},{"$f":"'rent allocations'!I7*$C$1","v":0},{"$f":"'rent allocations'!J7*$C$1","v":0},{"$f":"'rent allocations'!K7*$C$1","v":0},{"$f":"'rent allocations'!L7*$C$1","v":0},{"$f":"'rent allocations'!M7*$C$1","v":0},{"$f":"'rent allocations'!N7*$C$1","v":0},{"$f":"'rent allocations'!O7*$C$1","v":0},{"$f":"'rent allocations'!P7*$C$1","v":0},{"$f":"'rent allocations'!Q7*$C$1","v":0},{"$f":"'rent allocations'!R7*$C$1","v":0},{"$f":"'rent allocations'!S7*$C$1","v":0},{"$f":"'rent allocations'!T7*$C$1","v":0},{"$f":"'rent allocations'!U7*$C$1","v":0},{"$f":"'rent allocations'!V7*$C$1","v":0},{"$f":"'rent allocations'!W7*$C$1","v":0},{"$f":"'rent allocations'!X7*$C$1","v":0},{"$f":"'rent allocations'!Y7*$C$1","v":0},{"$f":"'rent allocations'!Z7*$C$1","v":0},{"$f":"'rent allocations'!AA7*$C$1","v":0},{"$f":"'rent allocations'!AB7*$C$1","v":0},{"$f":"'rent allocations'!AC7*$C$1","v":0},{"$f":"'rent allocations'!AD7*$C$1","v":0},{"$f":"'rent allocations'!AE7*$C$1","v":0},{"$f":"'rent allocations'!AF7*$C$1","v":29477.551574028756},{"$f":"'rent allocations'!AG7*$C$1","v":0},{"$f":"'rent allocations'!AH7*$C$1","v":0},{"$f":"'rent allocations'!AI7*$C$1","v":0},{"$f":"'rent allocations'!AJ7*$C$1","v":0},{"$f":"'rent allocations'!AK7*$C$1","v":0},{"$f":"'rent allocations'!AL7*$C$1","v":0}]
[null,"020","Legislative Evaluation and Accountability Program Committee",{"$f":"'rent allocations'!D8*$C$1","v":14073.731442399461},{"$f":"'rent allocations'!E8*$C$1","v":0},{"$f":"'rent allocations'!F8*$C$1","v":0},{"$f":"'rent allocations'!G8*$C$1","v":0},{"$f":"'rent allocations'!H8*$C$1","v":0},{"$f":"'rent allocations'!I8*$C$1","v":0},{"$f":"'rent allocations'!J8*$C$1","v":0},{"$f":"'rent allocations'!K8*$C$1","v":0},{"$f":"'rent allocations'!L8*$C$1","v":0},{"$f":"'rent allocations'!M8*$C$1","v":0},{"$f":"'rent allocations'!N8*$C$1","v":0},{"$f":"'rent allocations'!O8*$C$1","v":0},{"$f":"'rent allocations'!P8*$C$1","v":0},{"$f":"'rent allocations'!Q8*$C$1","v":0},{"$f":"'rent allocations'!R8*$C$1","v":0},{"$f":"'rent allocations'!S8*$C$1","v":0},{"$f":"'rent allocations'!T8*$C$1","v":0},{"$f":"'rent allocations'!U8*$C$1","v":0},{"$f":"'rent allocations'!V8*$C$1","v":0},{"$f":"'rent allocations'!W8*$C$1","v":0},{"$f":"'rent allocations'!X8*$C$1","v":0},{"$f":"'rent allocations'!Y8*$C$1","v":0},{"$f":"'rent allocations'!Z8*$C$1","v":0},{"$f":"'rent allocations'!AA8*$C$1","v":0},{"$f":"'rent allocations'!AB8*$C$1","v":0},{"$f":"'rent allocations'!AC8*$C$1","v":0},{"$f":"'rent allocations'!AD8*$C$1","v":0},{"$f":"'rent allocations'!AE8*$C$1","v":0},{"$f":"'rent allocations'!AF8*$C$1","v":14073.731442399461},{"$f":"'rent allocations'!AG8*$C$1","v":0},{"$f":"'rent allocations'!AH8*$C$1","v":0},{"$f":"'rent allocations'!AI8*$C$1","v":0},{"$f":"'rent allocations'!AJ8*$C$1","v":0},{"$f":"'rent allocations'!AK8*$C$1","v":0},{"$f":"'rent allocations'!AL8*$C$1","v":0}]
[null,"035","Office of the State Actuary",{"$f":"'rent allocations'!D9*$C$1","v":0},{"$f":"'rent allocations'!E9*$C$1","v":0},{"$f":"'rent allocations'!F9*$C$1","v":0},{"$f":"'rent allocations'!G9*$C$1","v":0},{"$f":"'rent allocations'!H9*$C$1","v":0},{"$f":"'rent allocations'!I9*$C$1","v":0},{"$f":"'rent allocations'!J9*$C$1","v":0},{"$f":"'rent allocations'!K9*$C$1","v":0},{"$f":"'rent allocations'!L9*$C$1","v":0},{"$f":"'rent allocations'!M9*$C$1","v":0},{"$f":"'rent allocations'!N9*$C$1","v":0},{"$f":"'rent allocations'!O9*$C$1","v":0},{"$f":"'rent allocations'!P9*$C$1","v":0},{"$f":"'rent allocations'!Q9*$C$1","v":0},{"$f":"'rent allocations'!R9*$C$1","v":0},{"$f":"'rent allocations'!S9*$C$1","v":0},{"$f":"'rent allocations'!T9*$C$1","v":0},{"$f":"'rent allocations'!U9*$C$1","v":0},{"$f":"'rent allocations'!V9*$C$1","v":0},{"$f":"'rent allocations'!W9*$C$1","v":0},{"$f":"'rent allocations'!X9*$C$1","v":0},{"$f":"'rent allocations'!Y9*$C$1","v":0},{"$f":"'rent allocations'!Z9*$C$1","v":0},{"$f":"'rent allocations'!AA9*$C$1","v":0},{"$f":"'rent allocations'!AB9*$C$1","v":0},{"$f":"'rent allocations'!AC9*$C$1","v":0},{"$f":"'rent allocations'!AD9*$C$1","v":0},{"$f":"'rent allocations'!AE9*$C$1","v":0},{"$f":"'rent allocations'!AF9*$C$1","v":0},{"$f":"'rent allocations'!AG9*$C$1","v":0},{"$f":"'rent allocations'!AH9*$C$1","v":0},{"$f":"'rent allocations'!AI9*$C$1","v":0},{"$f":"'rent allocations'!AJ9*$C$1","v":0},{"$f":"'rent allocations'!AK9*$C$1","v":0},{"$f":"'rent allocations'!AL9*$C$1","v":0}]
[null,"037","Office of Legislative Support Services",{"$f":"'rent allocations'!D10*$C$1","v":105071.57825863334},{"$f":"'rent allocations'!E10*$C$1","v":0},{"$f":"'rent allocations'!F10*$C$1","v":0},{"$f":"'rent allocations'!G10*$C$1","v":37385.618896187094},{"$f":"'rent allocations'!H10*$C$1","v":37710.97249909462},{"$f":"'rent allocations'!I10*$C$1","v":0},{"$f":"'rent allocations'!J10*$C$1","v":0},{"$f":"'rent allocations'!K10*$C$1","v":0},{"$f":"'rent allocations'!L10*$C$1","v":0},{"$f":"'rent allocations'!M10*$C$1","v":0},{"$f":"'rent allocations'!N10*$C$1","v":0},{"$f":"'rent allocations'!O10*$C$1","v":0},{"$f":"'rent allocations'!P10*$C$1","v":0},{"$f":"'rent allocations'!Q10*$C$1","v":0},{"$f":"'rent allocations'!R10*$C$1","v":0},{"$f":"'rent allocations'!S10*$C$1","v":0},{"$f":"'rent allocations'!T10*$C$1","v":0},{"$f":"'rent allocations'!U10*$C$1","v":29974.986863351631},{"$f":"'rent allocations'!V10*$C$1","v":0},{"$f":"'rent allocations'!W10*$C$1","v":0},{"$f":"'rent allocations'!X10*$C$1","v":0},{"$f":"'rent allocations'!Y10*$C$1","v":0},{"$f":"'rent allocations'!Z10*$C$1","v":0},{"$f":"'rent allocations'!AA10*$C$1","v":0},{"$f":"'rent allocations'!AB10*$C$1","v":0},{"$f":"'rent allocations'!AC10*$C$1","v":0},{"$f":"'rent allocations'!AD10*$C$1","v":0},{"$f":"'rent allocations'!AE10*$C$1","v":0},{"$f":"'rent allocations'!AF10*$C$1","v":0},{"$f":"'rent allocations'!AG10*$C$1","v":0},{"$f":"'rent allocations'!AH10*$C$1","v":0},{"$f":"'rent allocations'!AI10*$C$1","v":0},{"$f":"'rent allocations'!AJ10*$C$1","v":0},{"$f":"'rent allocations'!AK10*$C$1","v":0},{"$f":"'rent allocations'!AL10*$C$1","v":0}]
[null,"038","Joint Legislative Systems Committee",{"$f":"'rent allocations'!D11*$C$1","v":123226.45268114844},{"$f":"'rent allocations'!E11*$C$1","v":0},{"$f":"'rent allocations'!F11*$C$1","v":0},{"$f":"'rent allocations'!G11*$C$1","v":8582.3985535934626},{"$f":"'rent allocations'!H11*$C$1","v":74943.726144034066},{"$f":"'rent allocations'!I11*$C$1","v":0},{"$f":"'rent allocations'!J11*$C$1","v":0},{"$f":"'rent allocations'!K11*$C$1","v":0},{"$f":"'rent allocations'!L11*$C$1","v":0},{"$f":"'rent allocations'!M11*$C$1","v":0},{"$f":"'rent allocations'!N11*$C$1","v":0},{"$f":"'rent allocations'!O11*$C$1","v":0},{"$f":"'rent allocations'!P11*$C$1","v":0},{"$f":"'rent allocations'!Q11*$C$1","v":0},{"$f":"'rent allocations'!R11*$C$1","v":0},{"$f":"'rent allocations'!S11*$C$1","v":0},{"$f":"'rent allocations'!T11*$C$1","v":0},{"$f":"'rent allocations'!U11*$C$1","v":0},{"$f":"'rent allocations'!V11*$C$1","v":0},{"$f":"'rent allocations'!W11*$C$1","v":0},{"$f":"'rent allocations'!X11*$C$1","v":0},{"$f":"'rent allocations'!Y11*$C$1","v":0},{"$f":"'rent allocations'!Z11*$C$1","v":0},{"$f":"'rent allocations'!AA11*$C$1","v":0},{"$f":"'rent allocations'!AB11*$C$1","v":0},{"$f":"'rent allocations'!AC11*$C$1","v":0},{"$f":"'rent allocations'!AD11*$C$1","v":0},{"$f":"'rent allocations'!AE11*$C$1","v":0},{"$f":"'rent allocations'!AF11*$C$1","v":39700.327983520896},{"$f":"'rent allocations'!AG11*$C$1","v":0},{"$f":"'rent allocations'!AH11*$C$1","v":0},{"$f":"'rent allocations'!AI11*$C$1","v":0},{"$f":"'rent allocations'!AJ11*$C$1","v":0},{"$f":"'rent allocations'!AK11*$C$1","v":0},{"$f":"'rent allocations'!AL11*$C$1","v":0}]
[null,"040","Statute Law Committee (Code Revisor)",{"$f":"'rent allocations'!D12*$C$1","v":120501.39167865457},{"$f":"'rent allocations'!E12*$C$1","v":0},{"$f":"'rent allocations'!F12*$C$1","v":0},{"$f":"'rent allocations'!G12*$C$1","v":0},{"$f":"'rent allocations'!H12*$C$1","v":120501.39167865457},{"$f":"'rent allocations'!I12*$C$1","v":0},{"$f":"'rent allocations'!J12*$C$1","v":0},{"$f":"'rent allocations'!K12*$C$1","v":0},{"$f":"'rent allocations'!L12*$C$1","v":0},{"$f":"'rent allocations'!M12*$C$1","v":0},{"$f":"'rent allocations'!N12*$C$1","v":0},{"$f":"'rent allocations'!O12*$C$1","v":0},{"$f":"'rent allocations'!P12*$C$1","v":0},{"$f":"'rent allocations'!Q12*$C$1","v":0},{"$f":"'rent allocations'!R12*$C$1","v":0},{"$f":"'rent allocations'!S12*$C$1","v":0},{"$f":"'rent allocations'!T12*$C$1","v":0},{"$f":"'rent allocations'!U12*$C$1","v":0},{"$f":"'rent allocations'!V12*$C$1","v":0},{"$f":"'rent allocations'!W12*$C$1","v":0},{"$f":"'rent allocations'!X12*$C$1","v":0},{"$f":"'rent allocations'!Y12*$C$1","v":0},{"$f":"'rent allocations'!Z12*$C$1","v":0},{"$f":"'rent allocations'!AA12*$C$1","v":0},{"$f":"'rent allocations'!AB12*$C$1","v":0},{"$f":"'rent allocations'!AC12*$C$1","v":0},{"$f":"'rent allocations'!AD12*$C$1","v":0},{"$f":"'rent allocations'!AE12*$C$1","v":0},{"$f":"'rent allocations'!AF12*$C$1","v":0},{"$f":"'rent allocations'!AG12*$C$1","v":0},{"$f":"'rent allocations'!AH12*$C$1","v":0},{"$f":"'rent allocations'!AI12*$C$1","v":0},{"$f":"'rent allocations'!AJ12*$C$1","v":0},{"$f":"'rent allocations'!AK12*$C$1","v":0},{"$f":"'rent allocations'!AL12*$C$1","v":0}]
[null,"045","Supreme Court",{"$f":"'rent allocations'!D13*$C$1","v":199083.99186472959},{"$f":"'rent allocations'!E13*$C$1","v":0},{"$f":"'rent allocations'!F13*$C$1","v":0},{"$f":"'rent allocations'!G13*$C$1","v":0},{"$f":"'rent allocations'!H13*$C$1","v":0},{"$f":"'rent allocations'!I13*$C$1","v":0},{"$f":"'rent allocations'!J13*$C$1","v":0},{"$f":"'rent allocations'!K13*$C$1","v":0},{"$f":"'rent allocations'!L13*$C$1","v":0},{"$f":"'rent allocations'!M13*$C$1","v":0},{"$f":"'rent allocations'!N13*$C$1","v":0},{"$f":"'rent allocations'!O13*$C$1","v":0},{"$f":"'rent allocations'!P13*$C$1","v":0},{"$f":"'rent allocations'!Q13*$C$1","v":199083.99186472959},{"$f":"'rent allocations'!R13*$C$1","v":0},{"$f":"'rent allocations'!S13*$C$1","v":0},{"$f":"'rent allocations'!T13*$C$1","v":0},{"$f":"'rent allocations'!U13*$C$1","v":0},{"$f":"'rent allocations'!V13*$C$1","v":0},{"$f":"'rent allocations'!W13*$C$1","v":0},{"$f":"'rent allocations'!X13*$C$1","v":0},{"$f":"'rent allocations'!Y13*$C$1","v":0},{"$f":"'rent allocations'!Z13*$C$1","v":0},{"$f":"'rent allocations'!AA13*$C$1","v":0},{"$f":"'rent allocations'!AB13*$C$1","v":0},{"$f":"'rent allocations'!AC13*$C$1","v":0},{"$f":"'rent allocations'!AD13*$C$1","v":0},{"$f":"'rent allocations'!AE13*$C$1","v":0},{"$f":"'rent allocations'!AF13*$C$1","v":0},{"$f":"'rent allocations'!AG13*$C$1","v":0},{"$f":"'rent allocations'!AH13*$C$1","v":0},{"$f":"'rent allocations'!AI13*$C$1","v":0},{"$f":"'rent allocations'!AJ13*$C$1","v":0},{"$f":"'rent allocations'!AK13*$C$1","v":0},{"$f":"'rent allocations'!AL13*$C$1","v":0}]
[null,"046","Law Library",{"$f":"'rent allocations'!D14*$C$1","v":90438.331955521528},{"$f":"'rent allocations'!E14*$C$1","v":0},{"$f":"'rent allocations'!F14*$C$1","v":0},{"$f":"'rent allocations'!G14*$C$1","v":0},{"$f":"'rent allocations'!H14*$C$1","v":0},{"$f":"'rent allocations'!I14*$C$1","v":0},{"$f":"'rent allocations'!J14*$C$1","v":0},{"$f":"'rent allocations'!K14*$C$1","v":0},{"$f":"'rent allocations'!L14*$C$1","v":0},{"$f":"'rent allocations'!M14*$C$1","v":0},{"$f":"'rent allocations'!N14*$C$1","v":0},{"$f":"'rent allocations'!O14*$C$1","v":0},{"$f":"'rent allocations'!P14*$C$1","v":0},{"$f":"'rent allocations'!Q14*$C$1","v":90438.331955521528},{"$f":"'rent allocations'!R14*$C$1","v":0},{"$f":"'rent allocations'!S14*$C$1","v":0},{"$f":"'rent allocations'!T14*$C$1","v":0},{"$f":"'rent allocations'!U14*$C$1","v":0},{"$f":"'rent allocations'!V14*$C$1","v":0},{"$f":"'rent allocations'!W14*$C$1","v":0},{"$f":"'rent allocations'!X14*$C$1","v":0},{"$f":"'rent allocations'!Y14*$C$1","v":0},{"$f":"'rent allocations'!Z14*$C$1","v":0},{"$f":"'rent allocations'!AA14*$C$1","v":0},{"$f":"'rent allocations'!AB14*$C$1","v":0},{"$f":"'rent allocations'!AC14*$C$1","v":0},{"$f":"'rent allocations'!AD14*$C$1","v":0},{"$f":"'rent allocations'!AE14*$C$1","v":0},{"$f":"'rent allocations'!AF14*$C$1","v":0},{"$f":"'rent allocations'!AG14*$C$1","v":0},{"$f":"'rent allocations'!AH14*$C$1","v":0},{"$f":"'rent allocations'!AI14*$C$1","v":0},{"$f":"'rent allocations'!AJ14*$C$1","v":0},{"$f":"'rent allocations'!AK14*$C$1","v":0},{"$f":"'rent allocations'!AL14*$C$1","v":0}]
[null,"048","Court of Appeals",{"$f":"'rent allocations'!D15*$C$1","v":209339.89676111162},{"$f":"'rent allocations'!E15*$C$1","v":0},{"$f":"'rent allocations'!F15*$C$1","v":0},{"$f":"'rent allocations'!G15*$C$1","v":0},{"$f":"'rent allocations'!H15*$C$1","v":0},{"$f":"'rent allocations'!I15*$C$1","v":0},{"$f":"'rent allocations'!J15*$C$1","v":0},{"$f":"'rent allocations'!K15*$C$1","v":0},{"$f":"'rent allocations'!L15*$C$1","v":0},{"$f":"'rent allocations'!M15*$C$1","v":0},{"$f":"'rent allocations'!N15*$C$1","v":0},{"$f":"'rent allocations'!O15*$C$1","v":0},{"$f":"'rent allocations'!P15*$C$1","v":0},{"$f":"'rent allocations'!Q15*$C$1","v":0},{"$f":"'rent allocations'!R15*$C$1","v":0},{"$f":"'rent allocations'!S15*$C$1","v":0},{"$f":"'rent allocations'!T15*$C$1","v":0},{"$f":"'rent allocations'!U15*$C$1","v":0},{"$f":"'rent allocations'!V15*$C$1","v":0},{"$f":"'rent allocations'!W15*$C$1","v":0},{"$f":"'rent allocations'!X15*$C$1","v":0},{"$f":"'rent allocations'!Y15*$C$1","v":0},{"$f":"'rent allocations'!Z15*$C$1","v":0},{"$f":"'rent allocations'!AA15*$C$1","v":0},{"$f":"'rent allocations'!AB15*$C$1","v":0},{"$f":"'rent allocations'!AC15*$C$1","v":0},{"$f":"'rent allocations'!AD15*$C$1","v":0},{"$f":"'rent allocations'!AE15*$C$1","v":0},{"$f":"'rent allocations'!AF15*$C$1","v":0},{"$f":"'rent allocations'!AG15*$C$1","v":0},{"$f":"'rent allocations'!AH15*$C$1","v":0},{"$f":"'rent allocations'!AI15*$C$1","v":0},{"$f":"'rent allocations'!AJ15*$C$1","v":209339.89676111162},{"$f":"'rent allocations'!AK15*$C$1","v":0},{"$f":"'rent allocations'!AL15*$C$1","v":0}]
[null,"050","Commission on Judicial Conduct",{"$f":"'rent allocations'!D16*$C$1","v":46336.109519439124},{"$f":"'rent allocations'!E16*$C$1","v":0},{"$f":"'rent allocations'!F16*$C$1","v":0},{"$f":"'rent allocations'!G16*$C$1","v":0},{"$f":"'rent allocations'!H16*$C$1","v":0},{"$f":"'rent allocations'!I16*$C$1","v":0},{"$f":"'rent allocations'!J16*$C$1","v":0},{"$f":"'rent allocations'!K16*$C$1","v":0},{"$f":"'rent allocations'!L16*$C$1","v":0},{"$f":"'rent allocations'!M16*$C$1","v":0},{"$f":"'rent allocations'!N16*$C$1","v":0},{"$f":"'rent allocations'!O16*$C$1","v":0},{"$f":"'rent allocations'!P16*$C$1","v":0},{"$f":"'rent allocations'!Q16*$C$1","v":0},{"$f":"'rent allocations'!R16*$C$1","v":0},{"$f":"'rent allocations'!S16*$C$1","v":0},{"$f":"'rent allocations'!T16*$C$1","v":0},{"$f":"'rent allocations'!U16*$C$1","v":0},{"$f":"'rent allocations'!V16*$C$1","v":0},{"$f":"'rent allocations'!W16*$C$1","v":0},{"$f":"'rent allocations'!X16*$C$1","v":46336.109519439124},{"$f":"'rent allocations'!Y16*$C$1","v":0},{"$f":"'rent allocations'!Z16*$C$1","v":0},{"$f":"'rent allocations'!AA16*$C$1","v":0},{"$f":"'rent allocations'!AB16*$C$1","v":0},{"$f":"'rent allocations'!AC16*$C$1","v":0},{"$f":"'rent allocations'!AD16*$C$1","v":0},{"$f":"'rent allocations'!AE16*$C$1","v":0},{"$f":"'rent allocations'!AF16*$C$1","v":0},{"$f":"'rent allocations'!AG16*$C$1","v":0},{"$f":"'rent allocations'!AH16*$C$1","v":0},{"$f":"'rent allocations'!AI16*$C$1","v":0},{"$f":"'rent allocations'!AJ16*$C$1","v":0},{"$f":"'rent allocations'!AK16*$C$1","v":0},{"$f":"'rent allocations'!AL16*$C$1","v":0}]
[null,"055","Administrative Office of the Courts",{"$f":"'rent allocations'!D17*$C$1","v":24935.357967500455},{"$f":"'rent allocations'!E17*$C$1","v":0},{"$f":"'rent allocations'!F17*$C$1","v":0},{"$f":"'rent allocations'!G17*$C$1","v":0},{"$f":"'rent allocations'!H17*$C$1","v":0},{"$f":"'rent allocations'!I17*$C$1","v":0},{"$f":"'rent allocations'!J17*$C$1","v":0},{"$f":"'rent allocations'!K17*$C$1","v":0},{"$f":"'rent allocations'!L17*$C$1","v":0},{"$f":"'rent allocations'!M17*$C$1","v":0},{"$f":"'rent allocations'!N17*$C$1","v":0},{"$f":"'rent allocations'!O17*$C$1","v":0},{"$f":"'rent allocations'!P17*$C$1","v":0},{"$f":"'rent allocations'!Q17*$C$1","v":24935.357967500455},{"$f":"'rent allocations'!R17*$C$1","v":0},{"$f":"'rent allocations'!S17*$C$1","v":0},{"$f":"'rent allocations'!T17*$C$1","v":0},{"$f":"'rent allocations'!U17*$C$1","v":0},{"$f":"'rent allocations'!V17*$C$1","v":0},{"$f":"'rent allocations'!W17*$C$1","v":0},{"$f":"'rent allocations'!X17*$C$1","v":0},{"$f":"'rent allocations'!Y17*$C$1","v":0},{"$f":"'rent allocations'!Z17*$C$1","v":0},{"$f":"'rent allocations'!AA17*$C$1","v":0},{"$f":"'rent allocations'!AB17*$C$1","v":0},{"$f":"'rent allocations'!AC17*$C$1","v":0},{"$f":"'rent allocations'!AD17*$C$1","v":0},{"$f":"'rent allocations'!AE17*$C$1","v":0},{"$f":"'rent allocations'!AF17*$C$1","v":0},{"$f":"'rent allocations'!AG17*$C$1","v":0},{"$f":"'rent allocations'!AH17*$C$1","v":0},{"$f":"'rent allocations'!AI17*$C$1","v":0},{"$f":"'rent allocations'!AJ17*$C$1","v":0},{"$f":"'rent allocations'!AK17*$C$1","v":0},{"$f":"'rent allocations'!AL17*$C$1","v":0}]
[null,"056","Office of Public Defense",{"$f":"'rent allocations'!D18*$C$1","v":0},{"$f":"'rent allocations'!E18*$C$1","v":0},{"$f":"'rent allocations'!F18*$C$1","v":0},{"$f":"'rent allocations'!G18*$C$1","v":0},{"$f":"'rent allocations'!H18*$C$1","v":0},{"$f":"'rent allocations'!I18*$C$1","v":0},{"$f":"'rent allocations'!J18*$C$1","v":0},{"$f":"'rent allocations'!K18*$C$1","v":0},{"$f":"'rent allocations'!L18*$C$1","v":0},{"$f":"'rent allocations'!M18*$C$1","v":0},{"$f":"'rent allocations'!N18*$C$1","v":0},{"$f":"'rent allocations'!O18*$C$1","v":0},{"$f":"'rent allocations'!P18*$C$1","v":0},{"$f":"'rent allocations'!Q18*$C$1","v":0},{"$f":"'rent allocations'!R18*$C$1","v":0},{"$f":"'rent allocations'!S18*$C$1","v":0},{"$f":"'rent allocations'!T18*$C$1","v":0},{"$f":"'rent allocations'!U18*$C$1","v":0},{"$f":"'rent allocations'!V18*$C$1","v":0},{"$f":"'rent allocations'!W18*$C$1","v":0},{"$f":"'rent allocations'!X18*$C$1","v":0},{"$f":"'rent allocations'!Y18*$C$1","v":0},{"$f":"'rent allocations'!Z18*$C$1","v":0},{"$f":"'rent allocations'!AA18*$C$1","v":0},{"$f":"'rent allocations'!AB18*$C$1","v":0},{"$f":"'rent allocations'!AC18*$C$1","v":0},{"$f":"'rent allocations'!AD18*$C$1","v":0},{"$f":"'rent allocations'!AE18*$C$1","v":0},{"$f":"'rent allocations'!AF18*$C$1","v":0},{"$f":"'rent allocations'!AG18*$C$1","v":0},{"$f":"'rent allocations'!AH18*$C$1","v":0},{"$f":"'rent allocations'!AI18*$C$1","v":0},{"$f":"'rent allocations'!AJ18*$C$1","v":0},{"$f":"'rent allocations'!AK18*$C$1","v":0},{"$f":"'rent allocations'!AL18*$C$1","v":0}]
[null,"057","Office of Civil Legal Aid",{"$f":"'rent allocations'!D19*$C$1","v":0},{"$f":"'rent allocations'!E19*$C$1","v":0},{"$f":"'rent allocations'!F19*$C$1","v":0},{"$f":"'rent allocations'!G19*$C$1","v":0},{"$f":"'rent allocations'!H19*$C$1","v":0},{"$f":"'rent allocations'!I19*$C$1","v":0},{"$f":"'rent allocations'!J19*$C$1","v":0},{"$f":"'rent allocations'!K19*$C$1","v":0},{"$f":"'rent allocations'!L19*$C$1","v":0},{"$f":"'rent allocations'!M19*$C$1","v":0},{"$f":"'rent allocations'!N19*$C$1","v":0},{"$f":"'rent allocations'!O19*$C$1","v":0},{"$f":"'rent allocations'!P19*$C$1","v":0},{"$f":"'rent allocations'!Q19*$C$1","v":0},{"$f":"'rent allocations'!R19*$C$1","v":0},{"$f":"'rent allocations'!S19*$C$1","v":0},{"$f":"'rent allocations'!T19*$C$1","v":0},{"$f":"'rent allocations'!U19*$C$1","v":0},{"$f":"'rent allocations'!V19*$C$1","v":0},{"$f":"'rent allocations'!W19*$C$1","v":0},{"$f":"'rent allocations'!X19*$C$1","v":0},{"$f":"'rent allocations'!Y19*$C$1","v":0},{"$f":"'rent allocations'!Z19*$C$1","v":0},{"$f":"'rent allocations'!AA19*$C$1","v":0},{"$f":"'rent allocations'!AB19*$C$1","v":0},{"$f":"'rent allocations'!AC19*$C$1","v":0},{"$f":"'rent allocations'!AD19*$C$1","v":0},{"$f":"'rent allocations'!AE19*$C$1","v":0},{"$f":"'rent allocations'!AF19*$C$1","v":0},{"$f":"'rent allocations'!AG19*$C$1","v":0},{"$f":"'rent allocations'!AH19*$C$1","v":0},{"$f":"'rent allocations'!AI19*$C$1","v":0},{"$f":"'rent allocations'!AJ19*$C$1","v":0},{"$f":"'rent allocations'!AK19*$C$1","v":0},{"$f":"'rent allocations'!AL19*$C$1","v":0}]
[null,"075","Office of the Governor",{"$f":"'rent allocations'!D20*$C$1","v":129576.94824091198},{"$f":"'rent allocations'!E20*$C$1","v":0},{"$f":"'rent allocations'!F20*$C$1","v":0},{"$f":"'rent allocations'!G20*$C$1","v":129576.94824091198},{"$f":"'rent allocations'!H20*$C$1","v":0},{"$f":"'rent allocations'!I20*$C$1","v":0},{"$f":"'rent allocations'!J20*$C$1","v":0},{"$f":"'rent allocations'!K20*$C$1","v":0},{"$f":"'rent allocations'!L20*$C$1","v":0},{"$f":"'rent allocations'!M20*$C$1","v":0},{"$f":"'rent allocations'!N20*$C$1","v":0},{"$f":"'rent allocations'!O20*$C$1","v":0},{"$f":"'rent allocations'!P20*$C$1","v":0},{"$f":"'rent allocations'!Q20*$C$1","v":0},{"$f":"'rent allocations'!R20*$C$1","v":0},{"$f":"'rent allocations'!S20*$C$1","v":0},{"$f":"'rent allocations'!T20*$C$1","v":0},{"$f":"'rent allocations'!U20*$C$1","v":0},{"$f":"'rent allocations'!V20*$C$1","v":0},{"$f":"'rent allocations'!W20*$C$1","v":0},{"$f":"'rent allocations'!X20*$C$1","v":0},{"$f":"'rent allocations'!Y20*$C$1","v":0},{"$f":"'rent allocations'!Z20*$C$1","v":0},{"$f":"'rent allocations'!AA20*$C$1","v":0},{"$f":"'rent allocations'!AB20*$C$1","v":0},{"$f":"'rent allocations'!AC20*$C$1","v":0},{"$f":"'rent allocations'!AD20*$C$1","v":0},{"$f":"'rent allocations'!AE20*$C$1","v":0},{"$f":"'rent allocations'!AF20*$C$1","v":0},{"$f":"'rent allocations'!AG20*$C$1","v":0},{"$f":"'rent allocations'!AH20*$C$1","v":0},{"$f":"'rent allocations'!AI20*$C$1","v":0},{"$f":"'rent allocations'!AJ20*$C$1","v":0},{"$f":"'rent allocations'!AK20*$C$1","v":0},{"$f":"'rent allocations'!AL20*$C$1","v":0}]
[null,"080","Office of Lieutenant Governor",{"$f":"'rent allocations'!D21*$C$1","v":66631.85018774138},{"$f":"'rent allocations'!E21*$C$1","v":0},{"$f":"'rent allocations'!F21*$C$1","v":0},{"$f":"'rent allocations'!G21*$C$1","v":66631.85018774138},{"$f":"'rent allocations'!H21*$C$1","v":0},{"$f":"'rent allocations'!I21*$C$1","v":0},{"$f":"'rent allocations'!J21*$C$1","v":0},{"$f":"'rent allocations'!K21*$C$1","v":0},{"$f":"'rent allocations'!L21*$C$1","v":0},{"$f":"'rent allocations'!M21*$C$1","v":0},{"$f":"'rent allocations'!N21*$C$1","v":0},{"$f":"'rent allocations'!O21*$C$1","v":0},{"$f":"'rent allocations'!P21*$C$1","v":0},{"$f":"'rent allocations'!Q21*$C$1","v":0},{"$f":"'rent allocations'!R21*$C$1","v":0},{"$f":"'rent allocations'!S21*$C$1","v":0},{"$f":"'rent allocations'!T21*$C$1","v":0},{"$f":"'rent allocations'!U21*$C$1","v":0},{"$f":"'rent allocations'!V21*$C$1","v":0},{"$f":"'rent allocations'!W21*$C$1","v":0},{"$f":"'rent allocations'!X21*$C$1","v":0},{"$f":"'rent allocations'!Y21*$C$1","v":0},{"$f":"'rent allocations'!Z21*$C$1","v":0},{"$f":"'rent allocations'!AA21*$C$1","v":0},{"$f":"'rent allocations'!AB21*$C$1","v":0},{"$f":"'rent allocations'!AC21*$C$1","v":0},{"$f":"'rent allocations'!AD21*$C$1","v":0},{"$f":"'rent allocations'!AE21*$C$1","v":0},{"$f":"'rent allocations'!AF21*$C$1","v":0},{"$f":"'rent allocations'!AG21*$C$1","v":0},{"$f":"'rent allocations'!AH21*$C$1","v":0},{"$f":"'rent allocations'!AI21*$C$1","v":0},{"$f":"'rent allocations'!AJ21*$C$1","v":0},{"$f":"'rent allocations'!AK21*$C$1","v":0},{"$f":"'rent allocations'!AL21*$C$1","v":0}]
[null,"082","Public Disclosure Commission",{"$f":"'rent allocations'!D22*$C$1","v":0},{"$f":"'rent allocations'!E22*$C$1","v":0},{"$f":"'rent allocations'!F22*$C$1","v":0},{"$f":"'rent allocations'!G22*$C$1","v":0},{"$f":"'rent allocations'!H22*$C$1","v":0},{"$f":"'rent allocations'!I22*$C$1","v":0},{"$f":"'rent allocations'!J22*$C$1","v":0},{"$f":"'rent allocations'!K22*$C$1","v":0},{"$f":"'rent allocations'!L22*$C$1","v":0},{"$f":"'rent allocations'!M22*$C$1","v":0},{"$f":"'rent allocations'!N22*$C$1","v":0},{"$f":"'rent allocations'!O22*$C$1","v":0},{"$f":"'rent allocations'!P22*$C$1","v":0},{"$f":"'rent allocations'!Q22*$C$1","v":0},{"$f":"'rent allocations'!R22*$C$1","v":0},{"$f":"'rent allocations'!S22*$C$1","v":0},{"$f":"'rent allocations'!T22*$C$1","v":0},{"$f":"'rent allocations'!U22*$C$1","v":0},{"$f":"'rent allocations'!V22*$C$1","v":0},{"$f":"'rent allocations'!W22*$C$1","v":0},{"$f":"'rent allocations'!X22*$C$1","v":0},{"$f":"'rent allocations'!Y22*$C$1","v":0},{"$f":"'rent allocations'!Z22*$C$1","v":0},{"$f":"'rent allocations'!AA22*$C$1","v":0},{"$f":"'rent allocations'!AB22*$C$1","v":0},{"$f":"'rent allocations'!AC22*$C$1","v":0},{"$f":"'rent allocations'!AD22*$C$1","v":0},{"$f":"'rent allocations'!AE22*$C$1","v":0},{"$f":"'rent allocations'!AF22*$C$1","v":0},{"$f":"'rent allocations'!AG22*$C$1","v":0},{"$f":"'rent allocations'!AH22*$C$1","v":0},{"$f":"'rent allocations'!AI22*$C$1","v":0},{"$f":"'rent allocations'!AJ22*$C$1","v":0},{"$f":"'rent allocations'!AK22*$C$1","v":0},{"$f":"'rent allocations'!AL22*$C$1","v":0}]
[null,"085","Office of the Secretary of State",{"$f":"'rent allocations'!D23*$C$1","v":440741.60353216011},{"$f":"'rent allocations'!E23*$C$1","v":0},{"$f":"'rent allocations'!F23*$C$1","v":0},{"$f":"'rent allocations'!G23*$C$1","v":79967.230617471898},{"$f":"'rent allocations'!H23*$C$1","v":0},{"$f":"'rent allocations'!I23*$C$1","v":0},{"$f":"'rent allocations'!J23*$C$1","v":0},{"$f":"'rent allocations'!K23*$C$1","v":181671.91386095359},{"$f":"'rent allocations'!L23*$C$1","v":0},{"$f":"'rent allocations'!M23*$C$1","v":0},{"$f":"'rent allocations'!N23*$C$1","v":0},{"$f":"'rent allocations'!O23*$C$1","v":0},{"$f":"'rent allocations'!P23*$C$1","v":0},{"$f":"'rent allocations'!Q23*$C$1","v":0},{"$f":"'rent allocations'!R23*$C$1","v":0},{"$f":"'rent allocations'!S23*$C$1","v":14051.156763288756},{"$f":"'rent allocations'!T23*$C$1","v":45674.197011630924},{"$f":"'rent allocations'!U23*$C$1","v":0},{"$f":"'rent allocations'!V23*$C$1","v":0},{"$f":"'rent allocations'!W23*$C$1","v":0},{"$f":"'rent allocations'!X23*$C$1","v":0},{"$f":"'rent allocations'!Y23*$C$1","v":119377.10527881498},{"$f":"'rent allocations'!Z23*$C$1","v":0},{"$f":"'rent allocations'!AA23*$C$1","v":0},{"$f":"'rent allocations'!AB23*$C$1","v":0},{"$f":"'rent allocations'!AC23*$C$1","v":0},{"$f":"'rent allocations'!AD23*$C$1","v":0},{"$f":"'rent allocations'!AE23*$C$1","v":0},{"$f":"'rent allocations'!AF23*$C$1","v":0},{"$f":"'rent allocations'!AG23*$C$1","v":0},{"$f":"'rent allocations'!AH23*$C$1","v":0},{"$f":"'rent allocations'!AI23*$C$1","v":0},{"$f":"'rent allocations'!AJ23*$C$1","v":0},{"$f":"'rent allocations'!AK23*$C$1","v":0},{"$f":"'rent allocations'!AL23*$C$1","v":0}]
[null,"086","Governor's Office of Indian Affairs",{"$f":"'rent allocations'!D24*$C$1","v":11747.434915846208},{"$f":"'rent allocations'!E24*$C$1","v":0},{"$f":"'rent allocations'!F24*$C$1","v":0},{"$f":"'rent allocations'!G24*$C$1","v":0},{"$f":"'rent allocations'!H24*$C$1","v":0},{"$f":"'rent allocations'!I24*$C$1","v":0},{"$f":"'rent allocations'!J24*$C$1","v":0},{"$f":"'rent allocations'!K24*$C$1","v":0},{"$f":"'rent allocations'!L24*$C$1","v":0},{"$f":"'rent allocations'!M24*$C$1","v":0},{"$f":"'rent allocations'!N24*$C$1","v":0},{"$f":"'rent allocations'!O24*$C$1","v":0},{"$f":"'rent allocations'!P24*$C$1","v":0},{"$f":"'rent allocations'!Q24*$C$1","v":0},{"$f":"'rent allocations'!R24*$C$1","v":0},{"$f":"'rent allocations'!S24*$C$1","v":0},{"$f":"'rent allocations'!T24*$C$1","v":0},{"$f":"'rent allocations'!U24*$C$1","v":0},{"$f":"'rent allocations'!V24*$C$1","v":0},{"$f":"'rent allocations'!W24*$C$1","v":0},{"$f":"'rent allocations'!X24*$C$1","v":11747.434915846208},{"$f":"'rent allocations'!Y24*$C$1","v":0},{"$f":"'rent allocations'!Z24*$C$1","v":0},{"$f":"'rent allocations'!AA24*$C$1","v":0},{"$f":"'rent allocations'!AB24*$C$1","v":0},{"$f":"'rent allocations'!AC24*$C$1","v":0},{"$f":"'rent allocations'!AD24*$C$1","v":0},{"$f":"'rent allocations'!AE24*$C$1","v":0},{"$f":"'rent allocations'!AF24*$C$1","v":0},{"$f":"'rent allocations'!AG24*$C$1","v":0},{"$f":"'rent allocations'!AH24*$C$1","v":0},{"$f":"'rent allocations'!AI24*$C$1","v":0},{"$f":"'rent allocations'!AJ24*$C$1","v":0},{"$f":"'rent allocations'!AK24*$C$1","v":0},{"$f":"'rent allocations'!AL24*$C$1","v":0}]
[null,"087","Commission on Asian Pacific American Affairs",{"$f":"'rent allocations'!D25*$C$1","v":7727.1618387006683},{"$f":"'rent allocations'!E25*$C$1","v":0},{"$f":"'rent allocations'!F25*$C$1","v":0},{"$f":"'rent allocations'!G25*$C$1","v":0},{"$f":"'rent allocations'!H25*$C$1","v":0},{"$f":"'rent allocations'!I25*$C$1","v":0},{"$f":"'rent allocations'!J25*$C$1","v":0},{"$f":"'rent allocations'!K25*$C$1","v":0},{"$f":"'rent allocations'!L25*$C$1","v":0},{"$f":"'rent allocations'!M25*$C$1","v":0},{"$f":"'rent allocations'!N25*$C$1","v":0},{"$f":"'rent allocations'!O25*$C$1","v":0},{"$f":"'rent allocations'!P25*$C$1","v":0},{"$f":"'rent allocations'!Q25*$C$1","v":0},{"$f":"'rent allocations'!R25*$C$1","v":0},{"$f":"'rent allocations'!S25*$C$1","v":0},{"$f":"'rent allocations'!T25*$C$1","v":0},{"$f":"'rent allocations'!U25*$C$1","v":0},{"$f":"'rent allocations'!V25*$C$1","v":0},{"$f":"'rent allocations'!W25*$C$1","v":0},{"$f":"'rent allocations'!X25*$C$1","v":7727.1618387006683},{"$f":"'rent allocations'!Y25*$C$1","v":0},{"$f":"'rent allocations'!Z25*$C$1","v":0},{"$f":"'rent allocations'!AA25*$C$1","v":0},{"$f":"'rent allocations'!AB25*$C$1","v":0},{"$f":"'rent allocations'!AC25*$C$1","v":0},{"$f":"'rent allocations'!AD25*$C$1","v":0},{"$f":"'rent allocations'!AE25*$C$1","v":0},{"$f":"'rent allocations'!AF25*$C$1","v":0},{"$f":"'rent allocations'!AG25*$C$1","v":0},{"$f":"'rent allocations'!AH25*$C$1","v":0},{"$f":"'rent allocations'!AI25*$C$1","v":0},{"$f":"'rent allocations'!AJ25*$C$1","v":0},{"$f":"'rent allocations'!AK25*$C$1","v":0},{"$f":"'rent allocations'!AL25*$C$1","v":0}]
[null,"090","Office of State Treasurer",{"$f":"'rent allocations'!D26*$C$1","v":123293.43672286326},{"$f":"'rent allocations'!E26*$C$1","v":0},{"$f":"'rent allocations'!F26*$C$1","v":0},{"$f":"'rent allocations'!G26*$C$1","v":80455.293527343791},{"$f":"'rent allocations'!H26*$C$1","v":0},{"$f":"'rent allocations'!I26*$C$1","v":0},{"$f":"'rent allocations'!J26*$C$1","v":0},{"$f":"'rent allocations'!K26*$C$1","v":0},{"$f":"'rent allocations'!L26*$C$1","v":0},{"$f":"'rent allocations'!M26*$C$1","v":0},{"$f":"'rent allocations'!N26*$C$1","v":0},{"$f":"'rent allocations'!O26*$C$1","v":0},{"$f":"'rent allocations'!P26*$C$1","v":0},{"$f":"'rent allocations'!Q26*$C$1","v":0},{"$f":"'rent allocations'!R26*$C$1","v":0},{"$f":"'rent allocations'!S26*$C$1","v":0},{"$f":"'rent allocations'!T26*$C$1","v":0},{"$f":"'rent allocations'!U26*$C$1","v":0},{"$f":"'rent allocations'!V26*$C$1","v":0},{"$f":"'rent allocations'!W26*$C$1","v":0},{"$f":"'rent allocations'!X26*$C$1","v":0},{"$f":"'rent allocations'!Y26*$C$1","v":0},{"$f":"'rent allocations'!Z26*$C$1","v":0},{"$f":"'rent allocations'!AA26*$C$1","v":0},{"$f":"'rent allocations'!AB26*$C$1","v":0},{"$f":"'rent allocations'!AC26*$C$1","v":0},{"$f":"'rent allocations'!AD26*$C$1","v":0},{"$f":"'rent allocations'!AE26*$C$1","v":0},{"$f":"'rent allocations'!AF26*$C$1","v":42838.143195519464},{"$f":"'rent allocations'!AG26*$C$1","v":0},{"$f":"'rent allocations'!AH26*$C$1","v":0},{"$f":"'rent allocations'!AI26*$C$1","v":0},{"$f":"'rent allocations'!AJ26*$C$1","v":0},{"$f":"'rent allocations'!AK26*$C$1","v":0},{"$f":"'rent allocations'!AL26*$C$1","v":0}]
[null,"095","Office of State Auditor",{"$f":"'rent allocations'!D27*$C$1","v":69525.968824325944},{"$f":"'rent allocations'!E27*$C$1","v":0},{"$f":"'rent allocations'!F27*$C$1","v":0},{"$f":"'rent allocations'!G27*$C$1","v":0},{"$f":"'rent allocations'!H27*$C$1","v":0},{"$f":"'rent allocations'!I27*$C$1","v":0},{"$f":"'rent allocations'!J27*$C$1","v":0},{"$f":"'rent allocations'!K27*$C$1","v":0},{"$f":"'rent allocations'!L27*$C$1","v":0},{"$f":"'rent allocations'!M27*$C$1","v":0},{"$f":"'rent allocations'!N27*$C$1","v":0},{"$f":"'rent allocations'!O27*$C$1","v":36097.504882478635},{"$f":"'rent allocations'!P27*$C$1","v":0},{"$f":"'rent allocations'!Q27*$C$1","v":0},{"$f":"'rent allocations'!R27*$C$1","v":0},{"$f":"'rent allocations'!S27*$C$1","v":0},{"$f":"'rent allocations'!T27*$C$1","v":0},{"$f":"'rent allocations'!U27*$C$1","v":0},{"$f":"'rent allocations'!V27*$C$1","v":0},{"$f":"'rent allocations'!W27*$C$1","v":0},{"$f":"'rent allocations'!X27*$C$1","v":0},{"$f":"'rent allocations'!Y27*$C$1","v":0},{"$f":"'rent allocations'!Z27*$C$1","v":0},{"$f":"'rent allocations'!AA27*$C$1","v":0},{"$f":"'rent allocations'!AB27*$C$1","v":0},{"$f":"'rent allocations'!AC27*$C$1","v":0},{"$f":"'rent allocations'!AD27*$C$1","v":0},{"$f":"'rent allocations'!AE27*$C$1","v":0},{"$f":"'rent allocations'!AF27*$C$1","v":0},{"$f":"'rent allocations'!AG27*$C$1","v":0},{"$f":"'rent allocations'!AH27*$C$1","v":0},{"$f":"'rent allocations'!AI27*$C$1","v":0},{"$f":"'rent allocations'!AJ27*$C$1","v":33428.463941847302},{"$f":"'rent allocations'!AK27*$C$1","v":0},{"$f":"'rent allocations'!AL27*$C$1","v":0}]
[null,"099","Citizens' Commission on Salaries for Elected Officials",{"$f":"'rent allocations'!D28*$C$1","v":5963.255833806078},{"$f":"'rent allocations'!E28*$C$1","v":0},{"$f":"'rent allocations'!F28*$C$1","v":0},{"$f":"'rent allocations'!G28*$C$1","v":0},{"$f":"'rent allocations'!H28*$C$1","v":0},{"$f":"'rent allocations'!I28*$C$1","v":0},{"$f":"'rent allocations'!J28*$C$1","v":0},{"$f":"'rent allocations'!K28*$C$1","v":0},{"$f":"'rent allocations'!L28*$C$1","v":0},{"$f":"'rent allocations'!M28*$C$1","v":0},{"$f":"'rent allocations'!N28*$C$1","v":0},{"$f":"'rent allocations'!O28*$C$1","v":0},{"$f":"'rent allocations'!P28*$C$1","v":0},{"$f":"'rent allocations'!Q28*$C$1","v":0},{"$f":"'rent allocations'!R28*$C$1","v":0},{"$f":"'rent allocations'!S28*$C$1","v":0},{"$f":"'rent allocations'!T28*$C$1","v":0},{"$f":"'rent allocations'!U28*$C$1","v":0},{"$f":"'rent allocations'!V28*$C$1","v":0},{"$f":"'rent allocations'!W28*$C$1","v":0},{"$f":"'rent allocations'!X28*$C$1","v":5963.255833806078},{"$f":"'rent allocations'!Y28*$C$1","v":0},{"$f":"'rent allocations'!Z28*$C$1","v":0},{"$f":"'rent allocations'!AA28*$C$1","v":0},{"$f":"'rent allocations'!AB28*$C$1","v":0},{"$f":"'rent allocations'!AC28*$C$1","v":0},{"$f":"'rent allocations'!AD28*$C$1","v":0},{"$f":"'rent allocations'!AE28*$C$1","v":0},{"$f":"'rent allocations'!AF28*$C$1","v":0},{"$f":"'rent allocations'!AG28*$C$1","v":0},{"$f":"'rent allocations'!AH28*$C$1","v":0},{"$f":"'rent allocations'!AI28*$C$1","v":0},{"$f":"'rent allocations'!AJ28*$C$1","v":0},{"$f":"'rent allocations'!AK28*$C$1","v":0},{"$f":"'rent allocations'!AL28*$C$1","v":0}]
[null,"100","Office of Attorney General",{"$f":"'rent allocations'!D29*$C$1","v":313751.49246097176},{"$f":"'rent allocations'!E29*$C$1","v":0},{"$f":"'rent allocations'!F29*$C$1","v":0},{"$f":"'rent allocations'!G29*$C$1","v":0},{"$f":"'rent allocations'!H29*$C$1","v":0},{"$f":"'rent allocations'!I29*$C$1","v":313751.49246097176},{"$f":"'rent allocations'!J29*$C$1","v":0},{"$f":"'rent allocations'!K29*$C$1","v":0},{"$f":"'rent allocations'!L29*$C$1","v":0},{"$f":"'rent allocations'!M29*$C$1","v":0},{"$f":"'rent allocations'!N29*$C$1","v":0},{"$f":"'rent allocations'!O29*$C$1","v":0},{"$f":"'rent allocations'!P29*$C$1","v":0},{"$f":"'rent allocations'!Q29*$C$1","v":0},{"$f":"'rent allocations'!R29*$C$1","v":0},{"$f":"'rent allocations'!S29*$C$1","v":0},{"$f":"'rent allocations'!T29*$C$1","v":0},{"$f":"'rent allocations'!U29*$C$1","v":0},{"$f":"'rent allocations'!V29*$C$1","v":0},{"$f":"'rent allocations'!W29*$C$1","v":0},{"$f":"'rent allocations'!X29*$C$1","v":0},{"$f":"'rent allocations'!Y29*$C$1","v":0},{"$f":"'rent allocations'!Z29*$C$1","v":0},{"$f":"'rent allocations'!AA29*$C$1","v":0},{"$f":"'rent allocations'!AB29*$C$1","v":0},{"$f":"'rent allocations'!AC29*$C$1","v":0},{"$f":"'rent allocations'!AD29*$C$1","v":0},{"$f":"'rent allocations'!AE29*$C$1","v":0},{"$f":"'rent allocations'!AF29*$C$1","v":0},{"$f":"'rent allocations'!AG29*$C$1","v":0},{"$f":"'rent allocations'!AH29*$C$1","v":0},{"$f":"'rent allocations'!AI29*$C$1","v":0},{"$f":"'rent allocations'!AJ29*$C$1","v":0},{"$f":"'rent allocations'!AK29*$C$1","v":0},{"$f":"'rent allocations'!AL29*$C$1","v":0}]
[null,"101","Caseload Forecast Council",{"$f":"'rent allocations'!D30*$C$1","v":46183.894280438064},{"$f":"'rent allocations'!E30*$C$1","v":0},{"$f":"'rent allocations'!F30*$C$1","v":0},{"$f":"'rent allocations'!G30*$C$1","v":0},{"$f":"'rent allocations'!H30*$C$1","v":0},{"$f":"'rent allocations'!I30*$C$1","v":0},{"$f":"'rent allocations'!J30*$C$1","v":0},{"$f":"'rent allocations'!K30*$C$1","v":0},{"$f":"'rent allocations'!L30*$C$1","v":0},{"$f":"'rent allocations'!M30*$C$1","v":0},{"$f":"'rent allocations'!N30*$C$1","v":0},{"$f":"'rent allocations'!O30*$C$1","v":0},{"$f":"'rent allocations'!P30*$C$1","v":0},{"$f":"'rent allocations'!Q30*$C$1","v":0},{"$f":"'rent allocations'!R30*$C$1","v":0},{"$f":"'rent allocations'!S30*$C$1","v":0},{"$f":"'rent allocations'!T30*$C$1","v":0},{"$f":"'rent allocations'!U30*$C$1","v":0},{"$f":"'rent allocations'!V30*$C$1","v":0},{"$f":"'rent allocations'!W30*$C$1","v":0},{"$f":"'rent allocations'!X30*$C$1","v":46183.894280438064},{"$f":"'rent allocations'!Y30*$C$1","v":0},{"$f":"'rent allocations'!Z30*$C$1","v":0},{"$f":"'rent allocations'!AA30*$C$1","v":0},{"$f":"'rent allocations'!AB30*$C$1","v":0},{"$f":"'rent allocations'!AC30*$C$1","v":0},{"$f":"'rent allocations'!AD30*$C$1","v":0},{"$f":"'rent allocations'!AE30*$C$1","v":0},{"$f":"'rent allocations'!AF30*$C$1","v":0},{"$f":"'rent allocations'!AG30*$C$1","v":0},{"$f":"'rent allocations'!AH30*$C$1","v":0},{"$f":"'rent allocations'!AI30*$C$1","v":0},{"$f":"'rent allocations'!AJ30*$C$1","v":0},{"$f":"'rent allocations'!AK30*$C$1","v":0},{"$f":"'rent allocations'!AL30*$C$1","v":0}]
[null,"102","Department of Financial Institutions",{"$f":"'rent allocations'!D31*$C$1","v":0},{"$f":"'rent allocations'!E31*$C$1","v":0},{"$f":"'rent allocations'!F31*$C$1","v":0},{"$f":"'rent allocations'!G31*$C$1","v":0},{"$f":"'rent allocations'!H31*$C$1","v":0},{"$f":"'rent allocations'!I31*$C$1","v":0},{"$f":"'rent allocations'!J31*$C$1","v":0},{"$f":"'rent allocations'!K31*$C$1","v":0},{"$f":"'rent allocations'!L31*$C$1","v":0},{"$f":"'rent allocations'!M31*$C$1","v":0},{"$f":"'rent allocations'!N31*$C$1","v":0},{"$f":"'rent allocations'!O31*$C$1","v":0},{"$f":"'rent allocations'!P31*$C$1","v":0},{"$f":"'rent allocations'!Q31*$C$1","v":0},{"$f":"'rent allocations'!R31*$C$1","v":0},{"$f":"'rent allocations'!S31*$C$1","v":0},{"$f":"'rent allocations'!T31*$C$1","v":0},{"$f":"'rent allocations'!U31*$C$1","v":0},{"$f":"'rent allocations'!V31*$C$1","v":0},{"$f":"'rent allocations'!W31*$C$1","v":0},{"$f":"'rent allocations'!X31*$C$1","v":0},{"$f":"'rent allocations'!Y31*$C$1","v":0},{"$f":"'rent allocations'!Z31*$C$1","v":0},{"$f":"'rent allocations'!AA31*$C$1","v":0},{"$f":"'rent allocations'!AB31*$C$1","v":0},{"$f":"'rent allocations'!AC31*$C$1","v":0},{"$f":"'rent allocations'!AD31*$C$1","v":0},{"$f":"'rent allocations'!AE31*$C$1","v":0},{"$f":"'rent allocations'!AF31*$C$1","v":0},{"$f":"'rent allocations'!AG31*$C$1","v":0},{"$f":"'rent allocations'!AH31*$C$1","v":0},{"$f":"'rent allocations'!AI31*$C$1","v":0},{"$f":"'rent allocations'!AJ31*$C$1","v":0},{"$f":"'rent allocations'!AK31*$C$1","v":0},{"$f":"'rent allocations'!AL31*$C$1","v":0}]
[null,"103","Department of Commerce",{"$f":"'rent allocations'!D32*$C$1","v":0},{"$f":"'rent allocations'!E32*$C$1","v":0},{"$f":"'rent allocations'!F32*$C$1","v":0},{"$f":"'rent allocations'!G32*$C$1","v":0},{"$f":"'rent allocations'!H32*$C$1","v":0},{"$f":"'rent allocations'!I32*$C$1","v":0},{"$f":"'rent allocations'!J32*$C$1","v":0},{"$f":"'rent allocations'!K32*$C$1","v":0},{"$f":"'rent allocations'!L32*$C$1","v":0},{"$f":"'rent allocations'!M32*$C$1","v":0},{"$f":"'rent allocations'!N32*$C$1","v":0},{"$f":"'rent allocations'!O32*$C$1","v":0},{"$f":"'rent allocations'!P32*$C$1","v":0},{"$f":"'rent allocations'!Q32*$C$1","v":0},{"$f":"'rent allocations'!R32*$C$1","v":0},{"$f":"'rent allocations'!S32*$C$1","v":0},{"$f":"'rent allocations'!T32*$C$1","v":0},{"$f":"'rent allocations'!U32*$C$1","v":0},{"$f":"'rent allocations'!V32*$C$1","v":0},{"$f":"'rent allocations'!W32*$C$1","v":0},{"$f":"'rent allocations'!X32*$C$1","v":0},{"$f":"'rent allocations'!Y32*$C$1","v":0},{"$f":"'rent allocations'!Z32*$C$1","v":0},{"$f":"'rent allocations'!AA32*$C$1","v":0},{"$f":"'rent allocations'!AB32*$C$1","v":0},{"$f":"'rent allocations'!AC32*$C$1","v":0},{"$f":"'rent allocations'!AD32*$C$1","v":0},{"$f":"'rent allocations'!AE32*$C$1","v":0},{"$f":"'rent allocations'!AF32*$C$1","v":0},{"$f":"'rent allocations'!AG32*$C$1","v":0},{"$f":"'rent allocations'!AH32*$C$1","v":0},{"$f":"'rent allocations'!AI32*$C$1","v":0},{"$f":"'rent allocations'!AJ32*$C$1","v":0},{"$f":"'rent allocations'!AK32*$C$1","v":0},{"$f":"'rent allocations'!AL32*$C$1","v":0}]
[null,"104","Economic and Revenue Forecast Council",{"$f":"'rent allocations'!D33*$C$1","v":0},{"$f":"'rent allocations'!E33*$C$1","v":0},{"$f":"'rent allocations'!F33*$C$1","v":0},{"$f":"'rent allocations'!G33*$C$1","v":0},{"$f":"'rent allocations'!H33*$C$1","v":0},{"$f":"'rent allocations'!I33*$C$1","v":0},{"$f":"'rent allocations'!J33*$C$1","v":0},{"$f":"'rent allocations'!K33*$C$1","v":0},{"$f":"'rent allocations'!L33*$C$1","v":0},{"$f":"'rent allocations'!M33*$C$1","v":0},{"$f":"'rent allocations'!N33*$C$1","v":0},{"$f":"'rent allocations'!O33*$C$1","v":0},{"$f":"'rent allocations'!P33*$C$1","v":0},{"$f":"'rent allocations'!Q33*$C$1","v":0},{"$f":"'rent allocations'!R33*$C$1","v":0},{"$f":"'rent allocations'!S33*$C$1","v":0},{"$f":"'rent allocations'!T33*$C$1","v":0},{"$f":"'rent allocations'!U33*$C$1","v":0},{"$f":"'rent allocations'!V33*$C$1","v":0},{"$f":"'rent allocations'!W33*$C$1","v":0},{"$f":"'rent allocations'!X33*$C$1","v":0},{"$f":"'rent allocations'!Y33*$C$1","v":0},{"$f":"'rent allocations'!Z33*$C$1","v":0},{"$f":"'rent allocations'!AA33*$C$1","v":0},{"$f":"'rent allocations'!AB33*$C$1","v":0},{"$f":"'rent allocations'!AC33*$C$1","v":0},{"$f":"'rent allocations'!AD33*$C$1","v":0},{"$f":"'rent allocations'!AE33*$C$1","v":0},{"$f":"'rent allocations'!AF33*$C$1","v":0},{"$f":"'rent allocations'!AG33*$C$1","v":0},{"$f":"'rent allocations'!AH33*$C$1","v":0},{"$f":"'rent allocations'!AI33*$C$1","v":0},{"$f":"'rent allocations'!AJ33*$C$1","v":0},{"$f":"'rent allocations'!AK33*$C$1","v":0},{"$f":"'rent allocations'!AL33*$C$1","v":0}]
[null,"105","Office of Financial Management",{"$f":"'rent allocations'!D34*$C$1","v":323577.66144755},{"$f":"'rent allocations'!E34*$C$1","v":0},{"$f":"'rent allocations'!F34*$C$1","v":0},{"$f":"'rent allocations'!G34*$C$1","v":0},{"$f":"'rent allocations'!H34*$C$1","v":0},{"$f":"'rent allocations'!I34*$C$1","v":0},{"$f":"'rent allocations'!J34*$C$1","v":0},{"$f":"'rent allocations'!K34*$C$1","v":0},{"$f":"'rent allocations'!L34*$C$1","v":0},{"$f":"'rent allocations'!M34*$C$1","v":0},{"$f":"'rent allocations'!N34*$C$1","v":0},{"$f":"'rent allocations'!O34*$C$1","v":234797.0424412876},{"$f":"'rent allocations'!P34*$C$1","v":0},{"$f":"'rent allocations'!Q34*$C$1","v":0},{"$f":"'rent allocations'!R34*$C$1","v":0},{"$f":"'rent allocations'!S34*$C$1","v":0},{"$f":"'rent allocations'!T34*$C$1","v":0},{"$f":"'rent allocations'!U34*$C$1","v":0},{"$f":"'rent allocations'!V34*$C$1","v":0},{"$f":"'rent allocations'!W34*$C$1","v":0},{"$f":"'rent allocations'!X34*$C$1","v":6258.7324742198934},{"$f":"'rent allocations'!Y34*$C$1","v":0},{"$f":"'rent allocations'!Z34*$C$1","v":0},{"$f":"'rent allocations'!AA34*$C$1","v":0},{"$f":"'rent allocations'!AB34*$C$1","v":0},{"$f":"'rent allocations'!AC34*$C$1","v":0},{"$f":"'rent allocations'!AD34*$C$1","v":0},{"$f":"'rent allocations'!AE34*$C$1","v":0},{"$f":"'rent allocations'!AF34*$C$1","v":82521.886532042467},{"$f":"'rent allocations'!AG34*$C$1","v":0},{"$f":"'rent allocations'!AH34*$C$1","v":0},{"$f":"'rent allocations'!AI34*$C$1","v":0},{"$f":"'rent allocations'!AJ34*$C$1","v":0},{"$f":"'rent allocations'!AK34*$C$1","v":0},{"$f":"'rent allocations'!AL34*$C$1","v":0}]
[null,"107","Washington State Health Care Authority",{"$f":"'rent allocations'!D35*$C$1","v":0},{"$f":"'rent allocations'!E35*$C$1","v":0},{"$f":"'rent allocations'!F35*$C$1","v":0},{"$f":"'rent allocations'!G35*$C$1","v":0},{"$f":"'rent allocations'!H35*$C$1","v":0},{"$f":"'rent allocations'!I35*$C$1","v":0},{"$f":"'rent allocations'!J35*$C$1","v":0},{"$f":"'rent allocations'!K35*$C$1","v":0},{"$f":"'rent allocations'!L35*$C$1","v":0},{"$f":"'rent allocations'!M35*$C$1","v":0},{"$f":"'rent allocations'!N35*$C$1","v":0},{"$f":"'rent allocations'!O35*$C$1","v":0},{"$f":"'rent allocations'!P35*$C$1","v":0},{"$f":"'rent allocations'!Q35*$C$1","v":0},{"$f":"'rent allocations'!R35*$C$1","v":0},{"$f":"'rent allocations'!S35*$C$1","v":0},{"$f":"'rent allocations'!T35*$C$1","v":0},{"$f":"'rent allocations'!U35*$C$1","v":0},{"$f":"'rent allocations'!V35*$C$1","v":0},{"$f":"'rent allocations'!W35*$C$1","v":0},{"$f":"'rent allocations'!X35*$C$1","v":0},{"$f":"'rent allocations'!Y35*$C$1","v":0},{"$f":"'rent allocations'!Z35*$C$1","v":0},{"$f":"'rent allocations'!AA35*$C$1","v":0},{"$f":"'rent allocations'!AB35*$C$1","v":0},{"$f":"'rent allocations'!AC35*$C$1","v":0},{"$f":"'rent allocations'!AD35*$C$1","v":0},{"$f":"'rent allocations'!AE35*$C$1","v":0},{"$f":"'rent allocations'!AF35*$C$1","v":0},{"$f":"'rent allocations'!AG35*$C$1","v":0},{"$f":"'rent allocations'!AH35*$C$1","v":0},{"$f":"'rent allocations'!AI35*$C$1","v":0},{"$f":"'rent allocations'!AJ35*$C$1","v":0},{"$f":"'rent allocations'!AK35*$C$1","v":0},{"$f":"'rent allocations'!AL35*$C$1","v":0}]
[null,"110","Office of Administrative Hearings",{"$f":"'rent allocations'!D36*$C$1","v":85090.635488338594},{"$f":"'rent allocations'!E36*$C$1","v":0},{"$f":"'rent allocations'!F36*$C$1","v":0},{"$f":"'rent allocations'!G36*$C$1","v":0},{"$f":"'rent allocations'!H36*$C$1","v":0},{"$f":"'rent allocations'!I36*$C$1","v":0},{"$f":"'rent allocations'!J36*$C$1","v":0},{"$f":"'rent allocations'!K36*$C$1","v":0},{"$f":"'rent allocations'!L36*$C$1","v":0},{"$f":"'rent allocations'!M36*$C$1","v":0},{"$f":"'rent allocations'!N36*$C$1","v":0},{"$f":"'rent allocations'!O36*$C$1","v":0},{"$f":"'rent allocations'!P36*$C$1","v":0},{"$f":"'rent allocations'!Q36*$C$1","v":0},{"$f":"'rent allocations'!R36*$C$1","v":0},{"$f":"'rent allocations'!S36*$C$1","v":0},{"$f":"'rent allocations'!T36*$C$1","v":0},{"$f":"'rent allocations'!U36*$C$1","v":0},{"$f":"'rent allocations'!V36*$C$1","v":0},{"$f":"'rent allocations'!W36*$C$1","v":0},{"$f":"'rent allocations'!X36*$C$1","v":0},{"$f":"'rent allocations'!Y36*$C$1","v":0},{"$f":"'rent allocations'!Z36*$C$1","v":0},{"$f":"'rent allocations'!AA36*$C$1","v":0},{"$f":"'rent allocations'!AB36*$C$1","v":0},{"$f":"'rent allocations'!AC36*$C$1","v":0},{"$f":"'rent allocations'!AD36*$C$1","v":0},{"$f":"'rent allocations'!AE36*$C$1","v":0},{"$f":"'rent allocations'!AF36*$C$1","v":0},{"$f":"'rent allocations'!AG36*$C$1","v":0},{"$f":"'rent allocations'!AH36*$C$1","v":0},{"$f":"'rent allocations'!AI36*$C$1","v":0},{"$f":"'rent allocations'!AJ36*$C$1","v":85090.635488338594},{"$f":"'rent allocations'!AK36*$C$1","v":0},{"$f":"'rent allocations'!AL36*$C$1","v":0}]
[null,"116","State Lottery",{"$f":"'rent allocations'!D37*$C$1","v":0},{"$f":"'rent allocations'!E37*$C$1","v":0},{"$f":"'rent allocations'!F37*$C$1","v":0},{"$f":"'rent allocations'!G37*$C$1","v":0},{"$f":"'rent allocations'!H37*$C$1","v":0},{"$f":"'rent allocations'!I37*$C$1","v":0},{"$f":"'rent allocations'!J37*$C$1","v":0},{"$f":"'rent allocations'!K37*$C$1","v":0},{"$f":"'rent allocations'!L37*$C$1","v":0},{"$f":"'rent allocations'!M37*$C$1","v":0},{"$f":"'rent allocations'!N37*$C$1","v":0},{"$f":"'rent allocations'!O37*$C$1","v":0},{"$f":"'rent allocations'!P37*$C$1","v":0},{"$f":"'rent allocations'!Q37*$C$1","v":0},{"$f":"'rent allocations'!R37*$C$1","v":0},{"$f":"'rent allocations'!S37*$C$1","v":0},{"$f":"'rent allocations'!T37*$C$1","v":0},{"$f":"'rent allocations'!U37*$C$1","v":0},{"$f":"'rent allocations'!V37*$C$1","v":0},{"$f":"'rent allocations'!W37*$C$1","v":0},{"$f":"'rent allocations'!X37*$C$1","v":0},{"$f":"'rent allocations'!Y37*$C$1","v":0},{"$f":"'rent allocations'!Z37*$C$1","v":0},{"$f":"'rent allocations'!AA37*$C$1","v":0},{"$f":"'rent allocations'!AB37*$C$1","v":0},{"$f":"'rent allocations'!AC37*$C$1","v":0},{"$f":"'rent allocations'!AD37*$C$1","v":0},{"$f":"'rent allocations'!AE37*$C$1","v":0},{"$f":"'rent allocations'!AF37*$C$1","v":0},{"$f":"'rent allocations'!AG37*$C$1","v":0},{"$f":"'rent allocations'!AH37*$C$1","v":0},{"$f":"'rent allocations'!AI37*$C$1","v":0},{"$f":"'rent allocations'!AJ37*$C$1","v":0},{"$f":"'rent allocations'!AK37*$C$1","v":0},{"$f":"'rent allocations'!AL37*$C$1","v":0}]
[null,"117","Washington State Gambling Commission",{"$f":"'rent allocations'!D38*$C$1","v":0},{"$f":"'rent allocations'!E38*$C$1","v":0},{"$f":"'rent allocations'!F38*$C$1","v":0},{"$f":"'rent allocations'!G38*$C$1","v":0},{"$f":"'rent allocations'!H38*$C$1","v":0},{"$f":"'rent allocations'!I38*$C$1","v":0},{"$f":"'rent allocations'!J38*$C$1","v":0},{"$f":"'rent allocations'!K38*$C$1","v":0},{"$f":"'rent allocations'!L38*$C$1","v":0},{"$f":"'rent allocations'!M38*$C$1","v":0},{"$f":"'rent allocations'!N38*$C$1","v":0},{"$f":"'rent allocations'!O38*$C$1","v":0},{"$f":"'rent allocations'!P38*$C$1","v":0},{"$f":"'rent allocations'!Q38*$C$1","v":0},{"$f":"'rent allocations'!R38*$C$1","v":0},{"$f":"'rent allocations'!S38*$C$1","v":0},{"$f":"'rent allocations'!T38*$C$1","v":0},{"$f":"'rent allocations'!U38*$C$1","v":0},{"$f":"'rent allocations'!V38*$C$1","v":0},{"$f":"'rent allocations'!W38*$C$1","v":0},{"$f":"'rent allocations'!X38*$C$1","v":0},{"$f":"'rent allocations'!Y38*$C$1","v":0},{"$f":"'rent allocations'!Z38*$C$1","v":0},{"$f":"'rent allocations'!AA38*$C$1","v":0},{"$f":"'rent allocations'!AB38*$C$1","v":0},{"$f":"'rent allocations'!AC38*$C$1","v":0},{"$f":"'rent allocations'!AD38*$C$1","v":0},{"$f":"'rent allocations'!AE38*$C$1","v":0},{"$f":"'rent allocations'!AF38*$C$1","v":0},{"$f":"'rent allocations'!AG38*$C$1","v":0},{"$f":"'rent allocations'!AH38*$C$1","v":0},{"$f":"'rent allocations'!AI38*$C$1","v":0},{"$f":"'rent allocations'!AJ38*$C$1","v":0},{"$f":"'rent allocations'!AK38*$C$1","v":0},{"$f":"'rent allocations'!AL38*$C$1","v":0}]
[null,"118","Commission on Hispanic Affairs",{"$f":"'rent allocations'!D39*$C$1","v":7727.1618387006683},{"$f":"'rent allocations'!E39*$C$1","v":0},{"$f":"'rent allocations'!F39*$C$1","v":0},{"$f":"'rent allocations'!G39*$C$1","v":0},{"$f":"'rent allocations'!H39*$C$1","v":0},{"$f":"'rent allocations'!I39*$C$1","v":0},{"$f":"'rent allocations'!J39*$C$1","v":0},{"$f":"'rent allocations'!K39*$C$1","v":0},{"$f":"'rent allocations'!L39*$C$1","v":0},{"$f":"'rent allocations'!M39*$C$1","v":0},{"$f":"'rent allocations'!N39*$C$1","v":0},{"$f":"'rent allocations'!O39*$C$1","v":0},{"$f":"'rent allocations'!P39*$C$1","v":0},{"$f":"'rent allocations'!Q39*$C$1","v":0},{"$f":"'rent allocations'!R39*$C$1","v":0},{"$f":"'rent allocations'!S39*$C$1","v":0},{"$f":"'rent allocations'!T39*$C$1","v":0},{"$f":"'rent allocations'!U39*$C$1","v":0},{"$f":"'rent allocations'!V39*$C$1","v":0},{"$f":"'rent allocations'!W39*$C$1","v":0},{"$f":"'rent allocations'!X39*$C$1","v":7727.1618387006683},{"$f":"'rent allocations'!Y39*$C$1","v":0},{"$f":"'rent allocations'!Z39*$C$1","v":0},{"$f":"'rent allocations'!AA39*$C$1","v":0},{"$f":"'rent allocations'!AB39*$C$1","v":0},{"$f":"'rent allocations'!AC39*$C$1","v":0},{"$f":"'rent allocations'!AD39*$C$1","v":0},{"$f":"'rent allocations'!AE39*$C$1","v":0},{"$f":"'rent allocations'!AF39*$C$1","v":0},{"$f":"'rent allocations'!AG39*$C$1","v":0},{"$f":"'rent allocations'!AH39*$C$1","v":0},{"$f":"'rent allocations'!AI39*$C$1","v":0},{"$f":"'rent allocations'!AJ39*$C$1","v":0},{"$f":"'rent allocations'!AK39*$C$1","v":0},{"$f":"'rent allocations'!AL39*$C$1","v":0}]
[null,"119","Commission on African-American Affairs",{"$f":"'rent allocations'!D40*$C$1","v":7727.1618387006683},{"$f":"'rent allocations'!E40*$C$1","v":0},{"$f":"'rent allocations'!F40*$C$1","v":0},{"$f":"'rent allocations'!G40*$C$1","v":0},{"$f":"'rent allocations'!H40*$C$1","v":0},{"$f":"'rent allocations'!I40*$C$1","v":0},{"$f":"'rent allocations'!J40*$C$1","v":0},{"$f":"'rent allocations'!K40*$C$1","v":0},{"$f":"'rent allocations'!L40*$C$1","v":0},{"$f":"'rent allocations'!M40*$C$1","v":0},{"$f":"'rent allocations'!N40*$C$1","v":0},{"$f":"'rent allocations'!O40*$C$1","v":0},{"$f":"'rent allocations'!P40*$C$1","v":0},{"$f":"'rent allocations'!Q40*$C$1","v":0},{"$f":"'rent allocations'!R40*$C$1","v":0},{"$f":"'rent allocations'!S40*$C$1","v":0},{"$f":"'rent allocations'!T40*$C$1","v":0},{"$f":"'rent allocations'!U40*$C$1","v":0},{"$f":"'rent allocations'!V40*$C$1","v":0},{"$f":"'rent allocations'!W40*$C$1","v":0},{"$f":"'rent allocations'!X40*$C$1","v":7727.1618387006683},{"$f":"'rent allocations'!Y40*$C$1","v":0},{"$f":"'rent allocations'!Z40*$C$1","v":0},{"$f":"'rent allocations'!AA40*$C$1","v":0},{"$f":"'rent allocations'!AB40*$C$1","v":0},{"$f":"'rent allocations'!AC40*$C$1","v":0},{"$f":"'rent allocations'!AD40*$C$1","v":0},{"$f":"'rent allocations'!AE40*$C$1","v":0},{"$f":"'rent allocations'!AF40*$C$1","v":0},{"$f":"'rent allocations'!AG40*$C$1","v":0},{"$f":"'rent allocations'!AH40*$C$1","v":0},{"$f":"'rent allocations'!AI40*$C$1","v":0},{"$f":"'rent allocations'!AJ40*$C$1","v":0},{"$f":"'rent allocations'!AK40*$C$1","v":0},{"$f":"'rent allocations'!AL40*$C$1","v":0}]
[null,"120","Human Rights Commission",{"$f":"'rent allocations'!D41*$C$1","v":0},{"$f":"'rent allocations'!E41*$C$1","v":0},{"$f":"'rent allocations'!F41*$C$1","v":0},{"$f":"'rent allocations'!G41*$C$1","v":0},{"$f":"'rent allocations'!H41*$C$1","v":0},{"$f":"'rent allocations'!I41*$C$1","v":0},{"$f":"'rent allocations'!J41*$C$1","v":0},{"$f":"'rent allocations'!K41*$C$1","v":0},{"$f":"'rent allocations'!L41*$C$1","v":0},{"$f":"'rent allocations'!M41*$C$1","v":0},{"$f":"'rent allocations'!N41*$C$1","v":0},{"$f":"'rent allocations'!O41*$C$1","v":0},{"$f":"'rent allocations'!P41*$C$1","v":0},{"$f":"'rent allocations'!Q41*$C$1","v":0},{"$f":"'rent allocations'!R41*$C$1","v":0},{"$f":"'rent allocations'!S41*$C$1","v":0},{"$f":"'rent allocations'!T41*$C$1","v":0},{"$f":"'rent allocations'!U41*$C$1","v":0},{"$f":"'rent allocations'!V41*$C$1","v":0},{"$f":"'rent allocations'!W41*$C$1","v":0},{"$f":"'rent allocations'!X41*$C$1","v":0},{"$f":"'rent allocations'!Y41*$C$1","v":0},{"$f":"'rent allocations'!Z41*$C$1","v":0},{"$f":"'rent allocations'!AA41*$C$1","v":0},{"$f":"'rent allocations'!AB41*$C$1","v":0},{"$f":"'rent allocations'!AC41*$C$1","v":0},{"$f":"'rent allocations'!AD41*$C$1","v":0},{"$f":"'rent allocations'!AE41*$C$1","v":0},{"$f":"'rent allocations'!AF41*$C$1","v":0},{"$f":"'rent allocations'!AG41*$C$1","v":0},{"$f":"'rent allocations'!AH41*$C$1","v":0},{"$f":"'rent allocations'!AI41*$C$1","v":0},{"$f":"'rent allocations'!AJ41*$C$1","v":0},{"$f":"'rent allocations'!AK41*$C$1","v":0},{"$f":"'rent allocations'!AL41*$C$1","v":0}]
[null,"124","Department of Retirement Systems",{"$f":"'rent allocations'!D42*$C$1","v":0},{"$f":"'rent allocations'!E42*$C$1","v":0},{"$f":"'rent allocations'!F42*$C$1","v":0},{"$f":"'rent allocations'!G42*$C$1","v":0},{"$f":"'rent allocations'!H42*$C$1","v":0},{"$f":"'rent allocations'!I42*$C$1","v":0},{"$f":"'rent allocations'!J42*$C$1","v":0},{"$f":"'rent allocations'!K42*$C$1","v":0},{"$f":"'rent allocations'!L42*$C$1","v":0},{"$f":"'rent allocations'!M42*$C$1","v":0},{"$f":"'rent allocations'!N42*$C$1","v":0},{"$f":"'rent allocations'!O42*$C$1","v":0},{"$f":"'rent allocations'!P42*$C$1","v":0},{"$f":"'rent allocations'!Q42*$C$1","v":0},{"$f":"'rent allocations'!R42*$C$1","v":0},{"$f":"'rent allocations'!S42*$C$1","v":0},{"$f":"'rent allocations'!T42*$C$1","v":0},{"$f":"'rent allocations'!U42*$C$1","v":0},{"$f":"'rent allocations'!V42*$C$1","v":0},{"$f":"'rent allocations'!W42*$C$1","v":0},{"$f":"'rent allocations'!X42*$C$1","v":0},{"$f":"'rent allocations'!Y42*$C$1","v":0},{"$f":"'rent allocations'!Z42*$C$1","v":0},{"$f":"'rent allocations'!AA42*$C$1","v":0},{"$f":"'rent allocations'!AB42*$C$1","v":0},{"$f":"'rent allocations'!AC42*$C$1","v":0},{"$f":"'rent allocations'!AD42*$C$1","v":0},{"$f":"'rent allocations'!AE42*$C$1","v":0},{"$f":"'rent allocations'!AF42*$C$1","v":0},{"$f":"'rent allocations'!AG42*$C$1","v":0},{"$f":"'rent allocations'!AH42*$C$1","v":0},{"$f":"'rent allocations'!AI42*$C$1","v":0},{"$f":"'rent allocations'!AJ42*$C$1","v":0},{"$f":"'rent allocations'!AK42*$C$1","v":0},{"$f":"'rent allocations'!AL42*$C$1","v":0}]
[null,"126","State Investment Board",{"$f":"'rent allocations'!D43*$C$1","v":0},{"$f":"'rent allocations'!E43*$C$1","v":0},{"$f":"'rent allocations'!F43*$C$1","v":0},{"$f":"'rent allocations'!G43*$C$1","v":0},{"$f":"'rent allocations'!H43*$C$1","v":0},{"$f":"'rent allocations'!I43*$C$1","v":0},{"$f":"'rent allocations'!J43*$C$1","v":0},{"$f":"'rent allocations'!K43*$C$1","v":0},{"$f":"'rent allocations'!L43*$C$1","v":0},{"$f":"'rent allocations'!M43*$C$1","v":0},{"$f":"'rent allocations'!N43*$C$1","v":0},{"$f":"'rent allocations'!O43*$C$1","v":0},{"$f":"'rent allocations'!P43*$C$1","v":0},{"$f":"'rent allocations'!Q43*$C$1","v":0},{"$f":"'rent allocations'!R43*$C$1","v":0},{"$f":"'rent allocations'!S43*$C$1","v":0},{"$f":"'rent allocations'!T43*$C$1","v":0},{"$f":"'rent allocations'!U43*$C$1","v":0},{"$f":"'rent allocations'!V43*$C$1","v":0},{"$f":"'rent allocations'!W43*$C$1","v":0},{"$f":"'rent allocations'!X43*$C$1","v":0},{"$f":"'rent allocations'!Y43*$C$1","v":0},{"$f":"'rent allocations'!Z43*$C$1","v":0},{"$f":"'rent allocations'!AA43*$C$1","v":0},{"$f":"'rent allocations'!AB43*$C$1","v":0},{"$f":"'rent allocations'!AC43*$C$1","v":0},{"$f":"'rent allocations'!AD43*$C$1","v":0},{"$f":"'rent allocations'!AE43*$C$1","v":0},{"$f":"'rent allocations'!AF43*$C$1","v":0},{"$f":"'rent allocations'!AG43*$C$1","v":0},{"$f":"'rent allocations'!AH43*$C$1","v":0},{"$f":"'rent allocations'!AI43*$C$1","v":0},{"$f":"'rent allocations'!AJ43*$C$1","v":0},{"$f":"'rent allocations'!AK43*$C$1","v":0},{"$f":"'rent allocations'!AL43*$C$1","v":0}]
[null,"140","Department of Revenue",{"$f":"'rent allocations'!D44*$C$1","v":0},{"$f":"'rent allocations'!E44*$C$1","v":0},{"$f":"'rent allocations'!F44*$C$1","v":0},{"$f":"'rent allocations'!G44*$C$1","v":0},{"$f":"'rent allocations'!H44*$C$1","v":0},{"$f":"'rent allocations'!I44*$C$1","v":0},{"$f":"'rent allocations'!J44*$C$1","v":0},{"$f":"'rent allocations'!K44*$C$1","v":0},{"$f":"'rent allocations'!L44*$C$1","v":0},{"$f":"'rent allocations'!M44*$C$1","v":0},{"$f":"'rent allocations'!N44*$C$1","v":0},{"$f":"'rent allocations'!O44*$C$1","v":0},{"$f":"'rent allocations'!P44*$C$1","v":0},{"$f":"'rent allocations'!Q44*$C$1","v":0},{"$f":"'rent allocations'!R44*$C$1","v":0},{"$f":"'rent allocations'!S44*$C$1","v":0},{"$f":"'rent allocations'!T44*$C$1","v":0},{"$f":"'rent allocations'!U44*$C$1","v":0},{"$f":"'rent allocations'!V44*$C$1","v":0},{"$f":"'rent allocations'!W44*$C$1","v":0},{"$f":"'rent allocations'!X44*$C$1","v":0},{"$f":"'rent allocations'!Y44*$C$1","v":0},{"$f":"'rent allocations'!Z44*$C$1","v":0},{"$f":"'rent allocations'!AA44*$C$1","v":0},{"$f":"'rent allocations'!AB44*$C$1","v":0},{"$f":"'rent allocations'!AC44*$C$1","v":0},{"$f":"'rent allocations'!AD44*$C$1","v":0},{"$f":"'rent allocations'!AE44*$C$1","v":0},{"$f":"'rent allocations'!AF44*$C$1","v":0},{"$f":"'rent allocations'!AG44*$C$1","v":0},{"$f":"'rent allocations'!AH44*$C$1","v":0},{"$f":"'rent allocations'!AI44*$C$1","v":0},{"$f":"'rent allocations'!AJ44*$C$1","v":0},{"$f":"'rent allocations'!AK44*$C$1","v":0},{"$f":"'rent allocations'!AL44*$C$1","v":0}]
[null,"142","Board of Tax Appeals",{"$f":"'rent allocations'!D45*$C$1","v":41814.421537348928},{"$f":"'rent allocations'!E45*$C$1","v":0},{"$f":"'rent allocations'!F45*$C$1","v":0},{"$f":"'rent allocations'!G45*$C$1","v":0},{"$f":"'rent allocations'!H45*$C$1","v":0},{"$f":"'rent allocations'!I45*$C$1","v":0},{"$f":"'rent allocations'!J45*$C$1","v":0},{"$f":"'rent allocations'!K45*$C$1","v":0},{"$f":"'rent allocations'!L45*$C$1","v":0},{"$f":"'rent allocations'!M45*$C$1","v":0},{"$f":"'rent allocations'!N45*$C$1","v":0},{"$f":"'rent allocations'!O45*$C$1","v":0},{"$f":"'rent allocations'!P45*$C$1","v":0},{"$f":"'rent allocations'!Q45*$C$1","v":0},{"$f":"'rent allocations'!R45*$C$1","v":0},{"$f":"'rent allocations'!S45*$C$1","v":0},{"$f":"'rent allocations'!T45*$C$1","v":0},{"$f":"'rent allocations'!U45*$C$1","v":0},{"$f":"'rent allocations'!V45*$C$1","v":0},{"$f":"'rent allocations'!W45*$C$1","v":0},{"$f":"'rent allocations'!X45*$C$1","v":41814.421537348928},{"$f":"'rent allocations'!Y45*$C$1","v":0},{"$f":"'rent allocations'!Z45*$C$1","v":0},{"$f":"'rent allocations'!AA45*$C$1","v":0},{"$f":"'rent allocations'!AB45*$C$1","v":0},{"$f":"'rent allocations'!AC45*$C$1","v":0},{"$f":"'rent allocations'!AD45*$C$1","v":0},{"$f":"'rent allocations'!AE45*$C$1","v":0},{"$f":"'rent allocations'!AF45*$C$1","v":0},{"$f":"'rent allocations'!AG45*$C$1","v":0},{"$f":"'rent allocations'!AH45*$C$1","v":0},{"$f":"'rent allocations'!AI45*$C$1","v":0},{"$f":"'rent allocations'!AJ45*$C$1","v":0},{"$f":"'rent allocations'!AK45*$C$1","v":0},{"$f":"'rent allocations'!AL45*$C$1","v":0}]
[null,"147","Office of Minority and Women's Business Enterprises",{"$f":"'rent allocations'!D46*$C$1","v":43148.543338005249},{"$f":"'rent allocations'!E46*$C$1","v":0},{"$f":"'rent allocations'!F46*$C$1","v":0},{"$f":"'rent allocations'!G46*$C$1","v":0},{"$f":"'rent allocations'!H46*$C$1","v":0},{"$f":"'rent allocations'!I46*$C$1","v":0},{"$f":"'rent allocations'!J46*$C$1","v":0},{"$f":"'rent allocations'!K46*$C$1","v":0},{"$f":"'rent allocations'!L46*$C$1","v":0},{"$f":"'rent allocations'!M46*$C$1","v":0},{"$f":"'rent allocations'!N46*$C$1","v":0},{"$f":"'rent allocations'!O46*$C$1","v":0},{"$f":"'rent allocations'!P46*$C$1","v":0},{"$f":"'rent allocations'!Q46*$C$1","v":0},{"$f":"'rent allocations'!R46*$C$1","v":0},{"$f":"'rent allocations'!S46*$C$1","v":0},{"$f":"'rent allocations'!T46*$C$1","v":0},{"$f":"'rent allocations'!U46*$C$1","v":0},{"$f":"'rent allocations'!V46*$C$1","v":0},{"$f":"'rent allocations'!W46*$C$1","v":0},{"$f":"'rent allocations'!X46*$C$1","v":43148.543338005249},{"$f":"'rent allocations'!Y46*$C$1","v":0},{"$f":"'rent allocations'!Z46*$C$1","v":0},{"$f":"'rent allocations'!AA46*$C$1","v":0},{"$f":"'rent allocations'!AB46*$C$1","v":0},{"$f":"'rent allocations'!AC46*$C$1","v":0},{"$f":"'rent allocations'!AD46*$C$1","v":0},{"$f":"'rent allocations'!AE46*$C$1","v":0},{"$f":"'rent allocations'!AF46*$C$1","v":0},{"$f":"'rent allocations'!AG46*$C$1","v":0},{"$f":"'rent allocations'!AH46*$C$1","v":0},{"$f":"'rent allocations'!AI46*$C$1","v":0},{"$f":"'rent allocations'!AJ46*$C$1","v":0},{"$f":"'rent allocations'!AK46*$C$1","v":0},{"$f":"'rent allocations'!AL46*$C$1","v":0}]
[null,"160","Office of Insurance Commissioner",{"$f":"'rent allocations'!D47*$C$1","v":39345.829947542596},{"$f":"'rent allocations'!E47*$C$1","v":0},{"$f":"'rent allocations'!F47*$C$1","v":0},{"$f":"'rent allocations'!G47*$C$1","v":0},{"$f":"'rent allocations'!H47*$C$1","v":0},{"$f":"'rent allocations'!I47*$C$1","v":0},{"$f":"'rent allocations'!J47*$C$1","v":0},{"$f":"'rent allocations'!K47*$C$1","v":0},{"$f":"'rent allocations'!L47*$C$1","v":0},{"$f":"'rent allocations'!M47*$C$1","v":0},{"$f":"'rent allocations'!N47*$C$1","v":0},{"$f":"'rent allocations'!O47*$C$1","v":39345.829947542596},{"$f":"'rent allocations'!P47*$C$1","v":0},{"$f":"'rent allocations'!Q47*$C$1","v":0},{"$f":"'rent allocations'!R47*$C$1","v":0},{"$f":"'rent allocations'!S47*$C$1","v":0},{"$f":"'rent allocations'!T47*$C$1","v":0},{"$f":"'rent allocations'!U47*$C$1","v":0},{"$f":"'rent allocations'!V47*$C$1","v":0},{"$f":"'rent allocations'!W47*$C$1","v":0},{"$f":"'rent allocations'!X47*$C$1","v":0},{"$f":"'rent allocations'!Y47*$C$1","v":0},{"$f":"'rent allocations'!Z47*$C$1","v":0},{"$f":"'rent allocations'!AA47*$C$1","v":0},{"$f":"'rent allocations'!AB47*$C$1","v":0},{"$f":"'rent allocations'!AC47*$C$1","v":0},{"$f":"'rent allocations'!AD47*$C$1","v":0},{"$f":"'rent allocations'!AE47*$C$1","v":0},{"$f":"'rent allocations'!AF47*$C$1","v":0},{"$f":"'rent allocations'!AG47*$C$1","v":0},{"$f":"'rent allocations'!AH47*$C$1","v":0},{"$f":"'rent allocations'!AI47*$C$1","v":0},{"$f":"'rent allocations'!AJ47*$C$1","v":0},{"$f":"'rent allocations'!AK47*$C$1","v":0},{"$f":"'rent allocations'!AL47*$C$1","v":0}]
[null,"163","Consolidated Technology Services",{"$f":"'rent allocations'!D48*$C$1","v":1256.4392347484795},{"$f":"'rent allocations'!E48*$C$1","v":0},{"$f":"'rent allocations'!F48*$C$1","v":0},{"$f":"'rent allocations'!G48*$C$1","v":0},{"$f":"'rent allocations'!H48*$C$1","v":0},{"$f":"'rent allocations'!I48*$C$1","v":0},{"$f":"'rent allocations'!J48*$C$1","v":1256.4392347484795},{"$f":"'rent allocations'!K48*$C$1","v":0},{"$f":"'rent allocations'!L48*$C$1","v":0},{"$f":"'rent allocations'!M48*$C$1","v":0},{"$f":"'rent allocations'!N48*$C$1","v":0},{"$f":"'rent allocations'!O48*$C$1","v":0},{"$f":"'rent allocations'!P48*$C$1","v":0},{"$f":"'rent allocations'!Q48*$C$1","v":0},{"$f":"'rent allocations'!R48*$C$1","v":0},{"$f":"'rent allocations'!S48*$C$1","v":0},{"$f":"'rent allocations'!T48*$C$1","v":0},{"$f":"'rent allocations'!U48*$C$1","v":0},{"$f":"'rent allocations'!V48*$C$1","v":0},{"$f":"'rent allocations'!W48*$C$1","v":0},{"$f":"'rent allocations'!X48*$C$1","v":0},{"$f":"'rent allocations'!Y48*$C$1","v":0},{"$f":"'rent allocations'!Z48*$C$1","v":0},{"$f":"'rent allocations'!AA48*$C$1","v":0},{"$f":"'rent allocations'!AB48*$C$1","v":0},{"$f":"'rent allocations'!AC48*$C$1","v":0},{"$f":"'rent allocations'!AD48*$C$1","v":0},{"$f":"'rent allocations'!AE48*$C$1","v":0},{"$f":"'rent allocations'!AF48*$C$1","v":0},{"$f":"'rent allocations'!AG48*$C$1","v":0},{"$f":"'rent allocations'!AH48*$C$1","v":0},{"$f":"'rent allocations'!AI48*$C$1","v":0},{"$f":"'rent allocations'!AJ48*$C$1","v":0},{"$f":"'rent allocations'!AK48*$C$1","v":0},{"$f":"'rent allocations'!AL48*$C$1","v":0}]
[null,"165","Board of Accountancy",{"$f":"'rent allocations'!D49*$C$1","v":0},{"$f":"'rent allocations'!E49*$C$1","v":0},{"$f":"'rent allocations'!F49*$C$1","v":0},{"$f":"'rent allocations'!G49*$C$1","v":0},{"$f":"'rent allocations'!H49*$C$1","v":0},{"$f":"'rent allocations'!I49*$C$1","v":0},{"$f":"'rent allocations'!J49*$C$1","v":0},{"$f":"'rent allocations'!K49*$C$1","v":0},{"$f":"'rent allocations'!L49*$C$1","v":0},{"$f":"'rent allocations'!M49*$C$1","v":0},{"$f":"'rent allocations'!N49*$C$1","v":0},{"$f":"'rent allocations'!O49*$C$1","v":0},{"$f":"'rent allocations'!P49*$C$1","v":0},{"$f":"'rent allocations'!Q49*$C$1","v":0},{"$f":"'rent allocations'!R49*$C$1","v":0},{"$f":"'rent allocations'!S49*$C$1","v":0},{"$f":"'rent allocations'!T49*$C$1","v":0},{"$f":"'rent allocations'!U49*$C$1","v":0},{"$f":"'rent allocations'!V49*$C$1","v":0},{"$f":"'rent allocations'!W49*$C$1","v":0},{"$f":"'rent allocations'!X49*$C$1","v":0},{"$f":"'rent allocations'!Y49*$C$1","v":0},{"$f":"'rent allocations'!Z49*$C$1","v":0},{"$f":"'rent allocations'!AA49*$C$1","v":0},{"$f":"'rent allocations'!AB49*$C$1","v":0},{"$f":"'rent allocations'!AC49*$C$1","v":0},{"$f":"'rent allocations'!AD49*$C$1","v":0},{"$f":"'rent allocations'!AE49*$C$1","v":0},{"$f":"'rent allocations'!AF49*$C$1","v":0},{"$f":"'rent allocations'!AG49*$C$1","v":0},{"$f":"'rent allocations'!AH49*$C$1","v":0},{"$f":"'rent allocations'!AI49*$C$1","v":0},{"$f":"'rent allocations'!AJ49*$C$1","v":0},{"$f":"'rent allocations'!AK49*$C$1","v":0},{"$f":"'rent allocations'!AL49*$C$1","v":0}]
[null,"166","Brd Prof Eng Land Surveyors",{"$f":"'rent allocations'!D50*$C$1","v":0},{"$f":"'rent allocations'!E50*$C$1","v":0},{"$f":"'rent allocations'!F50*$C$1","v":0},{"$f":"'rent allocations'!G50*$C$1","v":0},{"$f":"'rent allocations'!H50*$C$1","v":0},{"$f":"'rent allocations'!I50*$C$1","v":0},{"$f":"'rent allocations'!J50*$C$1","v":0},{"$f":"'rent allocations'!K50*$C$1","v":0},{"$f":"'rent allocations'!L50*$C$1","v":0},{"$f":"'rent allocations'!M50*$C$1","v":0},{"$f":"'rent allocations'!N50*$C$1","v":0},{"$f":"'rent allocations'!O50*$C$1","v":0},{"$f":"'rent allocations'!P50*$C$1","v":0},{"$f":"'rent allocations'!Q50*$C$1","v":0},{"$f":"'rent allocations'!R50*$C$1","v":0},{"$f":"'rent allocations'!S50*$C$1","v":0},{"$f":"'rent allocations'!T50*$C$1","v":0},{"$f":"'rent allocations'!U50*$C$1","v":0},{"$f":"'rent allocations'!V50*$C$1","v":0},{"$f":"'rent allocations'!W50*$C$1","v":0},{"$f":"'rent allocations'!X50*$C$1","v":0},{"$f":"'rent allocations'!Y50*$C$1","v":0},{"$f":"'rent allocations'!Z50*$C$1","v":0},{"$f":"'rent allocations'!AA50*$C$1","v":0},{"$f":"'rent allocations'!AB50*$C$1","v":0},{"$f":"'rent allocations'!AC50*$C$1","v":0},{"$f":"'rent allocations'!AD50*$C$1","v":0},{"$f":"'rent allocations'!AE50*$C$1","v":0},{"$f":"'rent allocations'!AF50*$C$1","v":0},{"$f":"'rent allocations'!AG50*$C$1","v":0},{"$f":"'rent allocations'!AH50*$C$1","v":0},{"$f":"'rent allocations'!AI50*$C$1","v":0},{"$f":"'rent allocations'!AJ50*$C$1","v":0},{"$f":"'rent allocations'!AK50*$C$1","v":0},{"$f":"'rent allocations'!AL50*$C$1","v":0}]
[null,"167","Forensic Investigations Council",{"$f":"'rent allocations'!D51*$C$1","v":0},{"$f":"'rent allocations'!E51*$C$1","v":0},{"$f":"'rent allocations'!F51*$C$1","v":0},{"$f":"'rent allocations'!G51*$C$1","v":0},{"$f":"'rent allocations'!H51*$C$1","v":0},{"$f":"'rent allocations'!I51*$C$1","v":0},{"$f":"'rent allocations'!J51*$C$1","v":0},{"$f":"'rent allocations'!K51*$C$1","v":0},{"$f":"'rent allocations'!L51*$C$1","v":0},{"$f":"'rent allocations'!M51*$C$1","v":0},{"$f":"'rent allocations'!N51*$C$1","v":0},{"$f":"'rent allocations'!O51*$C$1","v":0},{"$f":"'rent allocations'!P51*$C$1","v":0},{"$f":"'rent allocations'!Q51*$C$1","v":0},{"$f":"'rent allocations'!R51*$C$1","v":0},{"$f":"'rent allocations'!S51*$C$1","v":0},{"$f":"'rent allocations'!T51*$C$1","v":0},{"$f":"'rent allocations'!U51*$C$1","v":0},{"$f":"'rent allocations'!V51*$C$1","v":0},{"$f":"'rent allocations'!W51*$C$1","v":0},{"$f":"'rent allocations'!X51*$C$1","v":0},{"$f":"'rent allocations'!Y51*$C$1","v":0},{"$f":"'rent allocations'!Z51*$C$1","v":0},{"$f":"'rent allocations'!AA51*$C$1","v":0},{"$f":"'rent allocations'!AB51*$C$1","v":0},{"$f":"'rent allocations'!AC51*$C$1","v":0},{"$f":"'rent allocations'!AD51*$C$1","v":0},{"$f":"'rent allocations'!AE51*$C$1","v":0},{"$f":"'rent allocations'!AF51*$C$1","v":0},{"$f":"'rent allocations'!AG51*$C$1","v":0},{"$f":"'rent allocations'!AH51*$C$1","v":0},{"$f":"'rent allocations'!AI51*$C$1","v":0},{"$f":"'rent allocations'!AJ51*$C$1","v":0},{"$f":"'rent allocations'!AK51*$C$1","v":0},{"$f":"'rent allocations'!AL51*$C$1","v":0}]
[null,"179","Department of Enterprise Services",{"$f":"'rent allocations'!D52*$C$1","v":384333.13834185345},{"$f":"'rent allocations'!E52*$C$1","v":0},{"$f":"'rent allocations'!F52*$C$1","v":0},{"$f":"'rent allocations'!G52*$C$1","v":51937.402270521423},{"$f":"'rent allocations'!H52*$C$1","v":0},{"$f":"'rent allocations'!I52*$C$1","v":0},{"$f":"'rent allocations'!J52*$C$1","v":87288.103822286488},{"$f":"'rent allocations'!K52*$C$1","v":0},{"$f":"'rent allocations'!L52*$C$1","v":0},{"$f":"'rent allocations'!M52*$C$1","v":0},{"$f":"'rent allocations'!N52*$C$1","v":0},{"$f":"'rent allocations'!O52*$C$1","v":0},{"$f":"'rent allocations'!P52*$C$1","v":0},{"$f":"'rent allocations'!Q52*$C$1","v":0},{"$f":"'rent allocations'!R52*$C$1","v":0},{"$f":"'rent allocations'!S52*$C$1","v":195958.81487930939},{"$f":"'rent allocations'!T52*$C$1","v":0},{"$f":"'rent allocations'!U52*$C$1","v":0},{"$f":"'rent allocations'!V52*$C$1","v":0},{"$f":"'rent allocations'!W52*$C$1","v":0},{"$f":"'rent allocations'!X52*$C$1","v":48153.738549863505},{"$f":"'rent allocations'!Y52*$C$1","v":0},{"$f":"'rent allocations'!Z52*$C$1","v":0},{"$f":"'rent allocations'!AA52*$C$1","v":0},{"$f":"'rent allocations'!AB52*$C$1","v":0},{"$f":"'rent allocations'!AC52*$C$1","v":0},{"$f":"'rent allocations'!AD52*$C$1","v":0},{"$f":"'rent allocations'!AE52*$C$1","v":0},{"$f":"'rent allocations'!AF52*$C$1","v":995.07881987269354},{"$f":"'rent allocations'!AG52*$C$1","v":0},{"$f":"'rent allocations'!AH52*$C$1","v":0},{"$f":"'rent allocations'!AI52*$C$1","v":0},{"$f":"'rent allocations'!AJ52*$C$1","v":0},{"$f":"'rent allocations'!AK52*$C$1","v":0},{"$f":"'rent allocations'!AL52*$C$1","v":0}]
[null,"185","Horse Racing Commission",{"$f":"'rent allocations'!D53*$C$1","v":0},{"$f":"'rent allocations'!E53*$C$1","v":0},{"$f":"'rent allocations'!F53*$C$1","v":0},{"$f":"'rent allocations'!G53*$C$1","v":0},{"$f":"'rent allocations'!H53*$C$1","v":0},{"$f":"'rent allocations'!I53*$C$1","v":0},{"$f":"'rent allocations'!J53*$C$1","v":0},{"$f":"'rent allocations'!K53*$C$1","v":0},{"$f":"'rent allocations'!L53*$C$1","v":0},{"$f":"'rent allocations'!M53*$C$1","v":0},{"$f":"'rent allocations'!N53*$C$1","v":0},{"$f":"'rent allocations'!O53*$C$1","v":0},{"$f":"'rent allocations'!P53*$C$1","v":0},{"$f":"'rent allocations'!Q53*$C$1","v":0},{"$f":"'rent allocations'!R53*$C$1","v":0},{"$f":"'rent allocations'!S53*$C$1","v":0},{"$f":"'rent allocations'!T53*$C$1","v":0},{"$f":"'rent allocations'!U53*$C$1","v":0},{"$f":"'rent allocations'!V53*$C$1","v":0},{"$f":"'rent allocations'!W53*$C$1","v":0},{"$f":"'rent allocations'!X53*$C$1","v":0},{"$f":"'rent allocations'!Y53*$C$1","v":0},{"$f":"'rent allocations'!Z53*$C$1","v":0},{"$f":"'rent allocations'!AA53*$C$1","v":0},{"$f":"'rent allocations'!AB53*$C$1","v":0},{"$f":"'rent allocations'!AC53*$C$1","v":0},{"$f":"'rent allocations'!AD53*$C$1","v":0},{"$f":"'rent allocations'!AE53*$C$1","v":0},{"$f":"'rent allocations'!AF53*$C$1","v":0},{"$f":"'rent allocations'!AG53*$C$1","v":0},{"$f":"'rent allocations'!AH53*$C$1","v":0},{"$f":"'rent allocations'!AI53*$C$1","v":0},{"$f":"'rent allocations'!AJ53*$C$1","v":0},{"$f":"'rent allocations'!AK53*$C$1","v":0},{"$f":"'rent allocations'!AL53*$C$1","v":0}]
[null,"190","Board of Industrial Insurance Appeals",{"$f":"'rent allocations'!D54*$C$1","v":0},{"$f":"'rent allocations'!E54*$C$1","v":0},{"$f":"'rent allocations'!F54*$C$1","v":0},{"$f":"'rent allocations'!G54*$C$1","v":0},{"$f":"'rent allocations'!H54*$C$1","v":0},{"$f":"'rent allocations'!I54*$C$1","v":0},{"$f":"'rent allocations'!J54*$C$1","v":0},{"$f":"'rent allocations'!K54*$C$1","v":0},{"$f":"'rent allocations'!L54*$C$1","v":0},{"$f":"'rent allocations'!M54*$C$1","v":0},{"$f":"'rent allocations'!N54*$C$1","v":0},{"$f":"'rent allocations'!O54*$C$1","v":0},{"$f":"'rent allocations'!P54*$C$1","v":0},{"$f":"'rent allocations'!Q54*$C$1","v":0},{"$f":"'rent allocations'!R54*$C$1","v":0},{"$f":"'rent allocations'!S54*$C$1","v":0},{"$f":"'rent allocations'!T54*$C$1","v":0},{"$f":"'rent allocations'!U54*$C$1","v":0},{"$f":"'rent allocations'!V54*$C$1","v":0},{"$f":"'rent allocations'!W54*$C$1","v":0},{"$f":"'rent allocations'!X54*$C$1","v":0},{"$f":"'rent allocations'!Y54*$C$1","v":0},{"$f":"'rent allocations'!Z54*$C$1","v":0},{"$f":"'rent allocations'!AA54*$C$1","v":0},{"$f":"'rent allocations'!AB54*$C$1","v":0},{"$f":"'rent allocations'!AC54*$C$1","v":0},{"$f":"'rent allocations'!AD54*$C$1","v":0},{"$f":"'rent allocations'!AE54*$C$1","v":0},{"$f":"'rent allocations'!AF54*$C$1","v":0},{"$f":"'rent allocations'!AG54*$C$1","v":0},{"$f":"'rent allocations'!AH54*$C$1","v":0},{"$f":"'rent allocations'!AI54*$C$1","v":0},{"$f":"'rent allocations'!AJ54*$C$1","v":0},{"$f":"'rent allocations'!AK54*$C$1","v":0},{"$f":"'rent allocations'!AL54*$C$1","v":0}]
[null,"195","Liquor Control Board",{"$f":"'rent allocations'!D55*$C$1","v":0},{"$f":"'rent allocations'!E55*$C$1","v":0},{"$f":"'rent allocations'!F55*$C$1","v":0},{"$f":"'rent allocations'!G55*$C$1","v":0},{"$f":"'rent allocations'!H55*$C$1","v":0},{"$f":"'rent allocations'!I55*$C$1","v":0},{"$f":"'rent allocations'!J55*$C$1","v":0},{"$f":"'rent allocations'!K55*$C$1","v":0},{"$f":"'rent allocations'!L55*$C$1","v":0},{"$f":"'rent allocations'!M55*$C$1","v":0},{"$f":"'rent allocations'!N55*$C$1","v":0},{"$f":"'rent allocations'!O55*$C$1","v":0},{"$f":"'rent allocations'!P55*$C$1","v":0},{"$f":"'rent allocations'!Q55*$C$1","v":0},{"$f":"'rent allocations'!R55*$C$1","v":0},{"$f":"'rent allocations'!S55*$C$1","v":0},{"$f":"'rent allocations'!T55*$C$1","v":0},{"$f":"'rent allocations'!U55*$C$1","v":0},{"$f":"'rent allocations'!V55*$C$1","v":0},{"$f":"'rent allocations'!W55*$C$1","v":0},{"$f":"'rent allocations'!X55*$C$1","v":0},{"$f":"'rent allocations'!Y55*$C$1","v":0},{"$f":"'rent allocations'!Z55*$C$1","v":0},{"$f":"'rent allocations'!AA55*$C$1","v":0},{"$f":"'rent allocations'!AB55*$C$1","v":0},{"$f":"'rent allocations'!AC55*$C$1","v":0},{"$f":"'rent allocations'!AD55*$C$1","v":0},{"$f":"'rent allocations'!AE55*$C$1","v":0},{"$f":"'rent allocations'!AF55*$C$1","v":0},{"$f":"'rent allocations'!AG55*$C$1","v":0},{"$f":"'rent allocations'!AH55*$C$1","v":0},{"$f":"'rent allocations'!AI55*$C$1","v":0},{"$f":"'rent allocations'!AJ55*$C$1","v":0},{"$f":"'rent allocations'!AK55*$C$1","v":0},{"$f":"'rent allocations'!AL55*$C$1","v":0}]
[null,"205","Board of Pilotage Commissioners",{"$f":"'rent allocations'!D56*$C$1","v":0},{"$f":"'rent allocations'!E56*$C$1","v":0},{"$f":"'rent allocations'!F56*$C$1","v":0},{"$f":"'rent allocations'!G56*$C$1","v":0},{"$f":"'rent allocations'!H56*$C$1","v":0},{"$f":"'rent allocations'!I56*$C$1","v":0},{"$f":"'rent allocations'!J56*$C$1","v":0},{"$f":"'rent allocations'!K56*$C$1","v":0},{"$f":"'rent allocations'!L56*$C$1","v":0},{"$f":"'rent allocations'!M56*$C$1","v":0},{"$f":"'rent allocations'!N56*$C$1","v":0},{"$f":"'rent allocations'!O56*$C$1","v":0},{"$f":"'rent allocations'!P56*$C$1","v":0},{"$f":"'rent allocations'!Q56*$C$1","v":0},{"$f":"'rent allocations'!R56*$C$1","v":0},{"$f":"'rent allocations'!S56*$C$1","v":0},{"$f":"'rent allocations'!T56*$C$1","v":0},{"$f":"'rent allocations'!U56*$C$1","v":0},{"$f":"'rent allocations'!V56*$C$1","v":0},{"$f":"'rent allocations'!W56*$C$1","v":0},{"$f":"'rent allocations'!X56*$C$1","v":0},{"$f":"'rent allocations'!Y56*$C$1","v":0},{"$f":"'rent allocations'!Z56*$C$1","v":0},{"$f":"'rent allocations'!AA56*$C$1","v":0},{"$f":"'rent allocations'!AB56*$C$1","v":0},{"$f":"'rent allocations'!AC56*$C$1","v":0},{"$f":"'rent allocations'!AD56*$C$1","v":0},{"$f":"'rent allocations'!AE56*$C$1","v":0},{"$f":"'rent allocations'!AF56*$C$1","v":0},{"$f":"'rent allocations'!AG56*$C$1","v":0},{"$f":"'rent allocations'!AH56*$C$1","v":0},{"$f":"'rent allocations'!AI56*$C$1","v":0},{"$f":"'rent allocations'!AJ56*$C$1","v":0},{"$f":"'rent allocations'!AK56*$C$1","v":0},{"$f":"'rent allocations'!AL56*$C$1","v":0}]
[null,"215","Utilities and Transportation Commission",{"$f":"'rent allocations'!D57*$C$1","v":0},{"$f":"'rent allocations'!E57*$C$1","v":0},{"$f":"'rent allocations'!F57*$C$1","v":0},{"$f":"'rent allocations'!G57*$C$1","v":0},{"$f":"'rent allocations'!H57*$C$1","v":0},{"$f":"'rent allocations'!I57*$C$1","v":0},{"$f":"'rent allocations'!J57*$C$1","v":0},{"$f":"'rent allocations'!K57*$C$1","v":0},{"$f":"'rent allocations'!L57*$C$1","v":0},{"$f":"'rent allocations'!M57*$C$1","v":0},{"$f":"'rent allocations'!N57*$C$1","v":0},{"$f":"'rent allocations'!O57*$C$1","v":0},{"$f":"'rent allocations'!P57*$C$1","v":0},{"$f":"'rent allocations'!Q57*$C$1","v":0},{"$f":"'rent allocations'!R57*$C$1","v":0},{"$f":"'rent allocations'!S57*$C$1","v":0},{"$f":"'rent allocations'!T57*$C$1","v":0},{"$f":"'rent allocations'!U57*$C$1","v":0},{"$f":"'rent allocations'!V57*$C$1","v":0},{"$f":"'rent allocations'!W57*$C$1","v":0},{"$f":"'rent allocations'!X57*$C$1","v":0},{"$f":"'rent allocations'!Y57*$C$1","v":0},{"$f":"'rent allocations'!Z57*$C$1","v":0},{"$f":"'rent allocations'!AA57*$C$1","v":0},{"$f":"'rent allocations'!AB57*$C$1","v":0},{"$f":"'rent allocations'!AC57*$C$1","v":0},{"$f":"'rent allocations'!AD57*$C$1","v":0},{"$f":"'rent allocations'!AE57*$C$1","v":0},{"$f":"'rent allocations'!AF57*$C$1","v":0},{"$f":"'rent allocations'!AG57*$C$1","v":0},{"$f":"'rent allocations'!AH57*$C$1","v":0},{"$f":"'rent allocations'!AI57*$C$1","v":0},{"$f":"'rent allocations'!AJ57*$C$1","v":0},{"$f":"'rent allocations'!AK57*$C$1","v":0},{"$f":"'rent allocations'!AL57*$C$1","v":0}]
[null,"220","Board for Volunteer Firefighters and Reserve Officers",{"$f":"'rent allocations'!D58*$C$1","v":0},{"$f":"'rent allocations'!E58*$C$1","v":0},{"$f":"'rent allocations'!F58*$C$1","v":0},{"$f":"'rent allocations'!G58*$C$1","v":0},{"$f":"'rent allocations'!H58*$C$1","v":0},{"$f":"'rent allocations'!I58*$C$1","v":0},{"$f":"'rent allocations'!J58*$C$1","v":0},{"$f":"'rent allocations'!K58*$C$1","v":0},{"$f":"'rent allocations'!L58*$C$1","v":0},{"$f":"'rent allocations'!M58*$C$1","v":0},{"$f":"'rent allocations'!N58*$C$1","v":0},{"$f":"'rent allocations'!O58*$C$1","v":0},{"$f":"'rent allocations'!P58*$C$1","v":0},{"$f":"'rent allocations'!Q58*$C$1","v":0},{"$f":"'rent allocations'!R58*$C$1","v":0},{"$f":"'rent allocations'!S58*$C$1","v":0},{"$f":"'rent allocations'!T58*$C$1","v":0},{"$f":"'rent allocations'!U58*$C$1","v":0},{"$f":"'rent allocations'!V58*$C$1","v":0},{"$f":"'rent allocations'!W58*$C$1","v":0},{"$f":"'rent allocations'!X58*$C$1","v":0},{"$f":"'rent allocations'!Y58*$C$1","v":0},{"$f":"'rent allocations'!Z58*$C$1","v":0},{"$f":"'rent allocations'!AA58*$C$1","v":0},{"$f":"'rent allocations'!AB58*$C$1","v":0},{"$f":"'rent allocations'!AC58*$C$1","v":0},{"$f":"'rent allocations'!AD58*$C$1","v":0},{"$f":"'rent allocations'!AE58*$C$1","v":0},{"$f":"'rent allocations'!AF58*$C$1","v":0},{"$f":"'rent allocations'!AG58*$C$1","v":0},{"$f":"'rent allocations'!AH58*$C$1","v":0},{"$f":"'rent allocations'!AI58*$C$1","v":0},{"$f":"'rent allocations'!AJ58*$C$1","v":0},{"$f":"'rent allocations'!AK58*$C$1","v":0},{"$f":"'rent allocations'!AL58*$C$1","v":0}]
[null,"225","Washington State Patrol",{"$f":"'rent allocations'!D59*$C$1","v":459647.2858512692},{"$f":"'rent allocations'!E59*$C$1","v":0},{"$f":"'rent allocations'!F59*$C$1","v":0},{"$f":"'rent allocations'!G59*$C$1","v":3904.5032789751544},{"$f":"'rent allocations'!H59*$C$1","v":0},{"$f":"'rent allocations'!I59*$C$1","v":0},{"$f":"'rent allocations'!J59*$C$1","v":0},{"$f":"'rent allocations'!K59*$C$1","v":0},{"$f":"'rent allocations'!L59*$C$1","v":0},{"$f":"'rent allocations'!M59*$C$1","v":0},{"$f":"'rent allocations'!N59*$C$1","v":0},{"$f":"'rent allocations'!O59*$C$1","v":0},{"$f":"'rent allocations'!P59*$C$1","v":0},{"$f":"'rent allocations'!Q59*$C$1","v":0},{"$f":"'rent allocations'!R59*$C$1","v":0},{"$f":"'rent allocations'!S59*$C$1","v":0},{"$f":"'rent allocations'!T59*$C$1","v":0},{"$f":"'rent allocations'!U59*$C$1","v":0},{"$f":"'rent allocations'!V59*$C$1","v":0},{"$f":"'rent allocations'!W59*$C$1","v":0},{"$f":"'rent allocations'!X59*$C$1","v":0},{"$f":"'rent allocations'!Y59*$C$1","v":0},{"$f":"'rent allocations'!Z59*$C$1","v":0},{"$f":"'rent allocations'!AA59*$C$1","v":0},{"$f":"'rent allocations'!AB59*$C$1","v":0},{"$f":"'rent allocations'!AC59*$C$1","v":0},{"$f":"'rent allocations'!AD59*$C$1","v":0},{"$f":"'rent allocations'!AE59*$C$1","v":0},{"$f":"'rent allocations'!AF59*$C$1","v":455742.782572294},{"$f":"'rent allocations'!AG59*$C$1","v":0},{"$f":"'rent allocations'!AH59*$C$1","v":0},{"$f":"'rent allocations'!AI59*$C$1","v":0},{"$f":"'rent allocations'!AJ59*$C$1","v":0},{"$f":"'rent allocations'!AK59*$C$1","v":0},{"$f":"'rent allocations'!AL59*$C$1","v":0}]
[null,"227","Criminal Justice Training Commission",{"$f":"'rent allocations'!D60*$C$1","v":0},{"$f":"'rent allocations'!E60*$C$1","v":0},{"$f":"'rent allocations'!F60*$C$1","v":0},{"$f":"'rent allocations'!G60*$C$1","v":0},{"$f":"'rent allocations'!H60*$C$1","v":0},{"$f":"'rent allocations'!I60*$C$1","v":0},{"$f":"'rent allocations'!J60*$C$1","v":0},{"$f":"'rent allocations'!K60*$C$1","v":0},{"$f":"'rent allocations'!L60*$C$1","v":0},{"$f":"'rent allocations'!M60*$C$1","v":0},{"$f":"'rent allocations'!N60*$C$1","v":0},{"$f":"'rent allocations'!O60*$C$1","v":0},{"$f":"'rent allocations'!P60*$C$1","v":0},{"$f":"'rent allocations'!Q60*$C$1","v":0},{"$f":"'rent allocations'!R60*$C$1","v":0},{"$f":"'rent allocations'!S60*$C$1","v":0},{"$f":"'rent allocations'!T60*$C$1","v":0},{"$f":"'rent allocations'!U60*$C$1","v":0},{"$f":"'rent allocations'!V60*$C$1","v":0},{"$f":"'rent allocations'!W60*$C$1","v":0},{"$f":"'rent allocations'!X60*$C$1","v":0},{"$f":"'rent allocations'!Y60*$C$1","v":0},{"$f":"'rent allocations'!Z60*$C$1","v":0},{"$f":"'rent allocations'!AA60*$C$1","v":0},{"$f":"'rent allocations'!AB60*$C$1","v":0},{"$f":"'rent allocations'!AC60*$C$1","v":0},{"$f":"'rent allocations'!AD60*$C$1","v":0},{"$f":"'rent allocations'!AE60*$C$1","v":0},{"$f":"'rent allocations'!AF60*$C$1","v":0},{"$f":"'rent allocations'!AG60*$C$1","v":0},{"$f":"'rent allocations'!AH60*$C$1","v":0},{"$f":"'rent allocations'!AI60*$C$1","v":0},{"$f":"'rent allocations'!AJ60*$C$1","v":0},{"$f":"'rent allocations'!AK60*$C$1","v":0},{"$f":"'rent allocations'!AL60*$C$1","v":0}]
[null,"228","Traffic Safety Commission",{"$f":"'rent allocations'!D61*$C$1","v":0},{"$f":"'rent allocations'!E61*$C$1","v":0},{"$f":"'rent allocations'!F61*$C$1","v":0},{"$f":"'rent allocations'!G61*$C$1","v":0},{"$f":"'rent allocations'!H61*$C$1","v":0},{"$f":"'rent allocations'!I61*$C$1","v":0},{"$f":"'rent allocations'!J61*$C$1","v":0},{"$f":"'rent allocations'!K61*$C$1","v":0},{"$f":"'rent allocations'!L61*$C$1","v":0},{"$f":"'rent allocations'!M61*$C$1","v":0},{"$f":"'rent allocations'!N61*$C$1","v":0},{"$f":"'rent allocations'!O61*$C$1","v":0},{"$f":"'rent allocations'!P61*$C$1","v":0},{"$f":"'rent allocations'!Q61*$C$1","v":0},{"$f":"'rent allocations'!R61*$C$1","v":0},{"$f":"'rent allocations'!S61*$C$1","v":0},{"$f":"'rent allocations'!T61*$C$1","v":0},{"$f":"'rent allocations'!U61*$C$1","v":0},{"$f":"'rent allocations'!V61*$C$1","v":0},{"$f":"'rent allocations'!W61*$C$1","v":0},{"$f":"'rent allocations'!X61*$C$1","v":0},{"$f":"'rent allocations'!Y61*$C$1","v":0},{"$f":"'rent allocations'!Z61*$C$1","v":0},{"$f":"'rent allocations'!AA61*$C$1","v":0},{"$f":"'rent allocations'!AB61*$C$1","v":0},{"$f":"'rent allocations'!AC61*$C$1","v":0},{"$f":"'rent allocations'!AD61*$C$1","v":0},{"$f":"'rent allocations'!AE61*$C$1","v":0},{"$f":"'rent allocations'!AF61*$C$1","v":0},{"$f":"'rent allocations'!AG61*$C$1","v":0},{"$f":"'rent allocations'!AH61*$C$1","v":0},{"$f":"'rent allocations'!AI61*$C$1","v":0},{"$f":"'rent allocations'!AJ61*$C$1","v":0},{"$f":"'rent allocations'!AK61*$C$1","v":0},{"$f":"'rent allocations'!AL61*$C$1","v":0}]
[null,"235","Department of Labor and Industries",{"$f":"'rent allocations'!D62*$C$1","v":297552.95928900404},{"$f":"'rent allocations'!E62*$C$1","v":0},{"$f":"'rent allocations'!F62*$C$1","v":0},{"$f":"'rent allocations'!G62*$C$1","v":0},{"$f":"'rent allocations'!H62*$C$1","v":0},{"$f":"'rent allocations'!I62*$C$1","v":0},{"$f":"'rent allocations'!J62*$C$1","v":0},{"$f":"'rent allocations'!K62*$C$1","v":0},{"$f":"'rent allocations'!L62*$C$1","v":0},{"$f":"'rent allocations'!M62*$C$1","v":0},{"$f":"'rent allocations'!N62*$C$1","v":0},{"$f":"'rent allocations'!O62*$C$1","v":0},{"$f":"'rent allocations'!P62*$C$1","v":0},{"$f":"'rent allocations'!Q62*$C$1","v":0},{"$f":"'rent allocations'!R62*$C$1","v":0},{"$f":"'rent allocations'!S62*$C$1","v":0},{"$f":"'rent allocations'!T62*$C$1","v":0},{"$f":"'rent allocations'!U62*$C$1","v":0},{"$f":"'rent allocations'!V62*$C$1","v":0},{"$f":"'rent allocations'!W62*$C$1","v":0},{"$f":"'rent allocations'!X62*$C$1","v":0},{"$f":"'rent allocations'!Y62*$C$1","v":0},{"$f":"'rent allocations'!Z62*$C$1","v":0},{"$f":"'rent allocations'!AA62*$C$1","v":0},{"$f":"'rent allocations'!AB62*$C$1","v":0},{"$f":"'rent allocations'!AC62*$C$1","v":0},{"$f":"'rent allocations'!AD62*$C$1","v":0},{"$f":"'rent allocations'!AE62*$C$1","v":0},{"$f":"'rent allocations'!AF62*$C$1","v":0},{"$f":"'rent allocations'!AG62*$C$1","v":76903.930448063504},{"$f":"'rent allocations'!AH62*$C$1","v":0},{"$f":"'rent allocations'!AI62*$C$1","v":0},{"$f":"'rent allocations'!AJ62*$C$1","v":220649.02884094053},{"$f":"'rent allocations'!AK62*$C$1","v":0},{"$f":"'rent allocations'!AL62*$C$1","v":0}]
[null,"240","Department of Licensing",{"$f":"'rent allocations'!D63*$C$1","v":449905.27411207865},{"$f":"'rent allocations'!E63*$C$1","v":0},{"$f":"'rent allocations'!F63*$C$1","v":0},{"$f":"'rent allocations'!G63*$C$1","v":0},{"$f":"'rent allocations'!H63*$C$1","v":0},{"$f":"'rent allocations'!I63*$C$1","v":449905.27411207865},{"$f":"'rent allocations'!J63*$C$1","v":0},{"$f":"'rent allocations'!K63*$C$1","v":0},{"$f":"'rent allocations'!L63*$C$1","v":0},{"$f":"'rent allocations'!M63*$C$1","v":0},{"$f":"'rent allocations'!N63*$C$1","v":0},{"$f":"'rent allocations'!O63*$C$1","v":0},{"$f":"'rent allocations'!P63*$C$1","v":0},{"$f":"'rent allocations'!Q63*$C$1","v":0},{"$f":"'rent allocations'!R63*$C$1","v":0},{"$f":"'rent allocations'!S63*$C$1","v":0},{"$f":"'rent allocations'!T63*$C$1","v":0},{"$f":"'rent allocations'!U63*$C$1","v":0},{"$f":"'rent allocations'!V63*$C$1","v":0},{"$f":"'rent allocations'!W63*$C$1","v":0},{"$f":"'rent allocations'!X63*$C$1","v":0},{"$f":"'rent allocations'!Y63*$C$1","v":0},{"$f":"'rent allocations'!Z63*$C$1","v":0},{"$f":"'rent allocations'!AA63*$C$1","v":0},{"$f":"'rent allocations'!AB63*$C$1","v":0},{"$f":"'rent allocations'!AC63*$C$1","v":0},{"$f":"'rent allocations'!AD63*$C$1","v":0},{"$f":"'rent allocations'!AE63*$C$1","v":0},{"$f":"'rent allocations'!AF63*$C$1","v":0},{"$f":"'rent allocations'!AG63*$C$1","v":0},{"$f":"'rent allocations'!AH63*$C$1","v":0},{"$f":"'rent allocations'!AI63*$C$1","v":0},{"$f":"'rent allocations'!AJ63*$C$1","v":0},{"$f":"'rent allocations'!AK63*$C$1","v":0},{"$f":"'rent allocations'!AL63*$C$1","v":0}]
[null,"245","Military Department",{"$f":"'rent allocations'!D64*$C$1","v":0},{"$f":"'rent allocations'!E64*$C$1","v":0},{"$f":"'rent allocations'!F64*$C$1","v":0},{"$f":"'rent allocations'!G64*$C$1","v":0},{"$f":"'rent allocations'!H64*$C$1","v":0},{"$f":"'rent allocations'!I64*$C$1","v":0},{"$f":"'rent allocations'!J64*$C$1","v":0},{"$f":"'rent allocations'!K64*$C$1","v":0},{"$f":"'rent allocations'!L64*$C$1","v":0},{"$f":"'rent allocations'!M64*$C$1","v":0},{"$f":"'rent allocations'!N64*$C$1","v":0},{"$f":"'rent allocations'!O64*$C$1","v":0},{"$f":"'rent allocations'!P64*$C$1","v":0},{"$f":"'rent allocations'!Q64*$C$1","v":0},{"$f":"'rent allocations'!R64*$C$1","v":0},{"$f":"'rent allocations'!S64*$C$1","v":0},{"$f":"'rent allocations'!T64*$C$1","v":0},{"$f":"'rent allocations'!U64*$C$1","v":0},{"$f":"'rent allocations'!V64*$C$1","v":0},{"$f":"'rent allocations'!W64*$C$1","v":0},{"$f":"'rent allocations'!X64*$C$1","v":0},{"$f":"'rent allocations'!Y64*$C$1","v":0},{"$f":"'rent allocations'!Z64*$C$1","v":0},{"$f":"'rent allocations'!AA64*$C$1","v":0},{"$f":"'rent allocations'!AB64*$C$1","v":0},{"$f":"'rent allocations'!AC64*$C$1","v":0},{"$f":"'rent allocations'!AD64*$C$1","v":0},{"$f":"'rent allocations'!AE64*$C$1","v":0},{"$f":"'rent allocations'!AF64*$C$1","v":0},{"$f":"'rent allocations'!AG64*$C$1","v":0},{"$f":"'rent allocations'!AH64*$C$1","v":0},{"$f":"'rent allocations'!AI64*$C$1","v":0},{"$f":"'rent allocations'!AJ64*$C$1","v":0},{"$f":"'rent allocations'!AK64*$C$1","v":0},{"$f":"'rent allocations'!AL64*$C$1","v":0}]
[null,"275","Public Employment Relations Commission",{"$f":"'rent allocations'!D65*$C$1","v":0},{"$f":"'rent allocations'!E65*$C$1","v":0},{"$f":"'rent allocations'!F65*$C$1","v":0},{"$f":"'rent allocations'!G65*$C$1","v":0},{"$f":"'rent allocations'!H65*$C$1","v":0},{"$f":"'rent allocations'!I65*$C$1","v":0},{"$f":"'rent allocations'!J65*$C$1","v":0},{"$f":"'rent allocations'!K65*$C$1","v":0},{"$f":"'rent allocations'!L65*$C$1","v":0},{"$f":"'rent allocations'!M65*$C$1","v":0},{"$f":"'rent allocations'!N65*$C$1","v":0},{"$f":"'rent allocations'!O65*$C$1","v":0},{"$f":"'rent allocations'!P65*$C$1","v":0},{"$f":"'rent allocations'!Q65*$C$1","v":0},{"$f":"'rent allocations'!R65*$C$1","v":0},{"$f":"'rent allocations'!S65*$C$1","v":0},{"$f":"'rent allocations'!T65*$C$1","v":0},{"$f":"'rent allocations'!U65*$C$1","v":0},{"$f":"'rent allocations'!V65*$C$1","v":0},{"$f":"'rent allocations'!W65*$C$1","v":0},{"$f":"'rent allocations'!X65*$C$1","v":0},{"$f":"'rent allocations'!Y65*$C$1","v":0},{"$f":"'rent allocations'!Z65*$C$1","v":0},{"$f":"'rent allocations'!AA65*$C$1","v":0},{"$f":"'rent allocations'!AB65*$C$1","v":0},{"$f":"'rent allocations'!AC65*$C$1","v":0},{"$f":"'rent allocations'!AD65*$C$1","v":0},{"$f":"'rent allocations'!AE65*$C$1","v":0},{"$f":"'rent allocations'!AF65*$C$1","v":0},{"$f":"'rent allocations'!AG65*$C$1","v":0},{"$f":"'rent allocations'!AH65*$C$1","v":0},{"$f":"'rent allocations'!AI65*$C$1","v":0},{"$f":"'rent allocations'!AJ65*$C$1","v":0},{"$f":"'rent allocations'!AK65*$C$1","v":0},{"$f":"'rent allocations'!AL65*$C$1","v":0}]
[null,"300","Department of Social and Health Services",{"$f":"'rent allocations'!D66*$C$1","v":1404121.8973445513},{"$f":"'rent allocations'!E66*$C$1","v":0},{"$f":"'rent allocations'!F66*$C$1","v":0},{"$f":"'rent allocations'!G66*$C$1","v":0},{"$f":"'rent allocations'!H66*$C$1","v":0},{"$f":"'rent allocations'!I66*$C$1","v":0},{"$f":"'rent allocations'!J66*$C$1","v":694014.8651089624},{"$f":"'rent allocations'!K66*$C$1","v":0},{"$f":"'rent allocations'!L66*$C$1","v":0},{"$f":"'rent allocations'!M66*$C$1","v":0},{"$f":"'rent allocations'!N66*$C$1","v":0},{"$f":"'rent allocations'!O66*$C$1","v":0},{"$f":"'rent allocations'!P66*$C$1","v":0},{"$f":"'rent allocations'!Q66*$C$1","v":0},{"$f":"'rent allocations'!R66*$C$1","v":0},{"$f":"'rent allocations'!S66*$C$1","v":0},{"$f":"'rent allocations'!T66*$C$1","v":0},{"$f":"'rent allocations'!U66*$C$1","v":0},{"$f":"'rent allocations'!V66*$C$1","v":0},{"$f":"'rent allocations'!W66*$C$1","v":0},{"$f":"'rent allocations'!X66*$C$1","v":0},{"$f":"'rent allocations'!Y66*$C$1","v":0},{"$f":"'rent allocations'!Z66*$C$1","v":0},{"$f":"'rent allocations'!AA66*$C$1","v":0},{"$f":"'rent allocations'!AB66*$C$1","v":0},{"$f":"'rent allocations'!AC66*$C$1","v":0},{"$f":"'rent allocations'!AD66*$C$1","v":0},{"$f":"'rent allocations'!AE66*$C$1","v":0},{"$f":"'rent allocations'!AF66*$C$1","v":0},{"$f":"'rent allocations'!AG66*$C$1","v":216050.65261302816},{"$f":"'rent allocations'!AH66*$C$1","v":494056.37962256063},{"$f":"'rent allocations'!AI66*$C$1","v":0},{"$f":"'rent allocations'!AJ66*$C$1","v":0},{"$f":"'rent allocations'!AK66*$C$1","v":0},{"$f":"'rent allocations'!AL66*$C$1","v":0}]
[null,"303","Department of Health",{"$f":"'rent allocations'!D67*$C$1","v":0},{"$f":"'rent allocations'!E67*$C$1","v":0},{"$f":"'rent allocations'!F67*$C$1","v":0},{"$f":"'rent allocations'!G67*$C$1","v":0},{"$f":"'rent allocations'!H67*$C$1","v":0},{"$f":"'rent allocations'!I67*$C$1","v":0},{"$f":"'rent allocations'!J67*$C$1","v":0},{"$f":"'rent allocations'!K67*$C$1","v":0},{"$f":"'rent allocations'!L67*$C$1","v":0},{"$f":"'rent allocations'!M67*$C$1","v":0},{"$f":"'rent allocations'!N67*$C$1","v":0},{"$f":"'rent allocations'!O67*$C$1","v":0},{"$f":"'rent allocations'!P67*$C$1","v":0},{"$f":"'rent allocations'!Q67*$C$1","v":0},{"$f":"'rent allocations'!R67*$C$1","v":0},{"$f":"'rent allocations'!S67*$C$1","v":0},{"$f":"'rent allocations'!T67*$C$1","v":0},{"$f":"'rent allocations'!U67*$C$1","v":0},{"$f":"'rent allocations'!V67*$C$1","v":0},{"$f":"'rent allocations'!W67*$C$1","v":0},{"$f":"'rent allocations'!X67*$C$1","v":0},{"$f":"'rent allocations'!Y67*$C$1","v":0},{"$f":"'rent allocations'!Z67*$C$1","v":0},{"$f":"'rent allocations'!AA67*$C$1","v":0},{"$f":"'rent allocations'!AB67*$C$1","v":0},{"$f":"'rent allocations'!AC67*$C$1","v":0},{"$f":"'rent allocations'!AD67*$C$1","v":0},{"$f":"'rent allocations'!AE67*$C$1","v":0},{"$f":"'rent allocations'!AF67*$C$1","v":0},{"$f":"'rent allocations'!AG67*$C$1","v":0},{"$f":"'rent allocations'!AH67*$C$1","v":0},{"$f":"'rent allocations'!AI67*$C$1","v":0},{"$f":"'rent allocations'!AJ67*$C$1","v":0},{"$f":"'rent allocations'!AK67*$C$1","v":0},{"$f":"'rent allocations'!AL67*$C$1","v":0}]
[null,"305","Department of Veterans Affairs",{"$f":"'rent allocations'!D68*$C$1","v":0},{"$f":"'rent allocations'!E68*$C$1","v":0},{"$f":"'rent allocations'!F68*$C$1","v":0},{"$f":"'rent allocations'!G68*$C$1","v":0},{"$f":"'rent allocations'!H68*$C$1","v":0},{"$f":"'rent allocations'!I68*$C$1","v":0},{"$f":"'rent allocations'!J68*$C$1","v":0},{"$f":"'rent allocations'!K68*$C$1","v":0},{"$f":"'rent allocations'!L68*$C$1","v":0},{"$f":"'rent allocations'!M68*$C$1","v":0},{"$f":"'rent allocations'!N68*$C$1","v":0},{"$f":"'rent allocations'!O68*$C$1","v":0},{"$f":"'rent allocations'!P68*$C$1","v":0},{"$f":"'rent allocations'!Q68*$C$1","v":0},{"$f":"'rent allocations'!R68*$C$1","v":0},{"$f":"'rent allocations'!S68*$C$1","v":0},{"$f":"'rent allocations'!T68*$C$1","v":0},{"$f":"'rent allocations'!U68*$C$1","v":0},{"$f":"'rent allocations'!V68*$C$1","v":0},{"$f":"'rent allocations'!W68*$C$1","v":0},{"$f":"'rent allocations'!X68*$C$1","v":0},{"$f":"'rent allocations'!Y68*$C$1","v":0},{"$f":"'rent allocations'!Z68*$C$1","v":0},{"$f":"'rent allocations'!AA68*$C$1","v":0},{"$f":"'rent allocations'!AB68*$C$1","v":0},{"$f":"'rent allocations'!AC68*$C$1","v":0},{"$f":"'rent allocations'!AD68*$C$1","v":0},{"$f":"'rent allocations'!AE68*$C$1","v":0},{"$f":"'rent allocations'!AF68*$C$1","v":0},{"$f":"'rent allocations'!AG68*$C$1","v":0},{"$f":"'rent allocations'!AH68*$C$1","v":0},{"$f":"'rent allocations'!AI68*$C$1","v":0},{"$f":"'rent allocations'!AJ68*$C$1","v":0},{"$f":"'rent allocations'!AK68*$C$1","v":0},{"$f":"'rent allocations'!AL68*$C$1","v":0}]
[null,"307","DCYF",{"$f":"'rent allocations'!D69*$C$1","v":652065.36104356323},{"$f":"'rent allocations'!E69*$C$1","v":0},{"$f":"'rent allocations'!F69*$C$1","v":0},{"$f":"'rent allocations'!G69*$C$1","v":0},{"$f":"'rent allocations'!H69*$C$1","v":0},{"$f":"'rent allocations'!I69*$C$1","v":0},{"$f":"'rent allocations'!J69*$C$1","v":284170.41075773665},{"$f":"'rent allocations'!K69*$C$1","v":0},{"$f":"'rent allocations'!L69*$C$1","v":0},{"$f":"'rent allocations'!M69*$C$1","v":0},{"$f":"'rent allocations'!N69*$C$1","v":0},{"$f":"'rent allocations'!O69*$C$1","v":0},{"$f":"'rent allocations'!P69*$C$1","v":0},{"$f":"'rent allocations'!Q69*$C$1","v":0},{"$f":"'rent allocations'!R69*$C$1","v":0},{"$f":"'rent allocations'!S69*$C$1","v":0},{"$f":"'rent allocations'!T69*$C$1","v":0},{"$f":"'rent allocations'!U69*$C$1","v":0},{"$f":"'rent allocations'!V69*$C$1","v":0},{"$f":"'rent allocations'!W69*$C$1","v":0},{"$f":"'rent allocations'!X69*$C$1","v":0},{"$f":"'rent allocations'!Y69*$C$1","v":0},{"$f":"'rent allocations'!Z69*$C$1","v":0},{"$f":"'rent allocations'!AA69*$C$1","v":0},{"$f":"'rent allocations'!AB69*$C$1","v":0},{"$f":"'rent allocations'!AC69*$C$1","v":0},{"$f":"'rent allocations'!AD69*$C$1","v":0},{"$f":"'rent allocations'!AE69*$C$1","v":0},{"$f":"'rent allocations'!AF69*$C$1","v":0},{"$f":"'rent allocations'!AG69*$C$1","v":158359.66768715353},{"$f":"'rent allocations'!AH69*$C$1","v":209535.28259867307},{"$f":"'rent allocations'!AI69*$C$1","v":0},{"$f":"'rent allocations'!AJ69*$C$1","v":0},{"$f":"'rent allocations'!AK69*$C$1","v":0},{"$f":"'rent allocations'!AL69*$C$1","v":0}]
[null,"310","Department of Corrections",{"$f":"'rent allocations'!D70*$C$1","v":0},{"$f":"'rent allocations'!E70*$C$1","v":0},{"$f":"'rent allocations'!F70*$C$1","v":0},{"$f":"'rent allocations'!G70*$C$1","v":0},{"$f":"'rent allocations'!H70*$C$1","v":0},{"$f":"'rent allocations'!I70*$C$1","v":0},{"$f":"'rent allocations'!J70*$C$1","v":0},{"$f":"'rent allocations'!K70*$C$1","v":0},{"$f":"'rent allocations'!L70*$C$1","v":0},{"$f":"'rent allocations'!M70*$C$1","v":0},{"$f":"'rent allocations'!N70*$C$1","v":0},{"$f":"'rent allocations'!O70*$C$1","v":0},{"$f":"'rent allocations'!P70*$C$1","v":0},{"$f":"'rent allocations'!Q70*$C$1","v":0},{"$f":"'rent allocations'!R70*$C$1","v":0},{"$f":"'rent allocations'!S70*$C$1","v":0},{"$f":"'rent allocations'!T70*$C$1","v":0},{"$f":"'rent allocations'!U70*$C$1","v":0},{"$f":"'rent allocations'!V70*$C$1","v":0},{"$f":"'rent allocations'!W70*$C$1","v":0},{"$f":"'rent allocations'!X70*$C$1","v":0},{"$f":"'rent allocations'!Y70*$C$1","v":0},{"$f":"'rent allocations'!Z70*$C$1","v":0},{"$f":"'rent allocations'!AA70*$C$1","v":0},{"$f":"'rent allocations'!AB70*$C$1","v":0},{"$f":"'rent allocations'!AC70*$C$1","v":0},{"$f":"'rent allocations'!AD70*$C$1","v":0},{"$f":"'rent allocations'!AE70*$C$1","v":0},{"$f":"'rent allocations'!AF70*$C$1","v":0},{"$f":"'rent allocations'!AG70*$C$1","v":0},{"$f":"'rent allocations'!AH70*$C$1","v":0},{"$f":"'rent allocations'!AI70*$C$1","v":0},{"$f":"'rent allocations'!AJ70*$C$1","v":0},{"$f":"'rent allocations'!AK70*$C$1","v":0},{"$f":"'rent allocations'!AL70*$C$1","v":0}]
[null,"315","Department of Services for the Blind",{"$f":"'rent allocations'!D71*$C$1","v":94844.54484483799},{"$f":"'rent allocations'!E71*$C$1","v":0},{"$f":"'rent allocations'!F71*$C$1","v":0},{"$f":"'rent allocations'!G71*$C$1","v":4437.6181497583002},{"$f":"'rent allocations'!H71*$C$1","v":0},{"$f":"'rent allocations'!I71*$C$1","v":3749.1746232206324},{"$f":"'rent allocations'!J71*$C$1","v":11058.386415423263},{"$f":"'rent allocations'!K71*$C$1","v":0},{"$f":"'rent allocations'!L71*$C$1","v":9744.8492978446775},{"$f":"'rent allocations'!M71*$C$1","v":0},{"$f":"'rent allocations'!N71*$C$1","v":5342.6788237795245},{"$f":"'rent allocations'!O71*$C$1","v":0},{"$f":"'rent allocations'!P71*$C$1","v":0},{"$f":"'rent allocations'!Q71*$C$1","v":0},{"$f":"'rent allocations'!R71*$C$1","v":0},{"$f":"'rent allocations'!S71*$C$1","v":0},{"$f":"'rent allocations'!T71*$C$1","v":0},{"$f":"'rent allocations'!U71*$C$1","v":0},{"$f":"'rent allocations'!V71*$C$1","v":0},{"$f":"'rent allocations'!W71*$C$1","v":0},{"$f":"'rent allocations'!X71*$C$1","v":0},{"$f":"'rent allocations'!Y71*$C$1","v":0},{"$f":"'rent allocations'!Z71*$C$1","v":0},{"$f":"'rent allocations'!AA71*$C$1","v":0},{"$f":"'rent allocations'!AB71*$C$1","v":0},{"$f":"'rent allocations'!AC71*$C$1","v":0},{"$f":"'rent allocations'!AD71*$C$1","v":0},{"$f":"'rent allocations'!AE71*$C$1","v":0},{"$f":"'rent allocations'!AF71*$C$1","v":0},{"$f":"'rent allocations'!AG71*$C$1","v":0},{"$f":"'rent allocations'!AH71*$C$1","v":0},{"$f":"'rent allocations'!AI71*$C$1","v":39534.002293150297},{"$f":"'rent allocations'!AJ71*$C$1","v":20977.835241661302},{"$f":"'rent allocations'!AK71*$C$1","v":0},{"$f":"'rent allocations'!AL71*$C$1","v":0}]
[null,"340","Student Achievement Council",{"$f":"'rent allocations'!D72*$C$1","v":0},{"$f":"'rent allocations'!E72*$C$1","v":0},{"$f":"'rent allocations'!F72*$C$1","v":0},{"$f":"'rent allocations'!G72*$C$1","v":0},{"$f":"'rent allocations'!H72*$C$1","v":0},{"$f":"'rent allocations'!I72*$C$1","v":0},{"$f":"'rent allocations'!J72*$C$1","v":0},{"$f":"'rent allocations'!K72*$C$1","v":0},{"$f":"'rent allocations'!L72*$C$1","v":0},{"$f":"'rent allocations'!M72*$C$1","v":0},{"$f":"'rent allocations'!N72*$C$1","v":0},{"$f":"'rent allocations'!O72*$C$1","v":0},{"$f":"'rent allocations'!P72*$C$1","v":0},{"$f":"'rent allocations'!Q72*$C$1","v":0},{"$f":"'rent allocations'!R72*$C$1","v":0},{"$f":"'rent allocations'!S72*$C$1","v":0},{"$f":"'rent allocations'!T72*$C$1","v":0},{"$f":"'rent allocations'!U72*$C$1","v":0},{"$f":"'rent allocations'!V72*$C$1","v":0},{"$f":"'rent allocations'!W72*$C$1","v":0},{"$f":"'rent allocations'!X72*$C$1","v":0},{"$f":"'rent allocations'!Y72*$C$1","v":0},{"$f":"'rent allocations'!Z72*$C$1","v":0},{"$f":"'rent allocations'!AA72*$C$1","v":0},{"$f":"'rent allocations'!AB72*$C$1","v":0},{"$f":"'rent allocations'!AC72*$C$1","v":0},{"$f":"'rent allocations'!AD72*$C$1","v":0},{"$f":"'rent allocations'!AE72*$C$1","v":0},{"$f":"'rent allocations'!AF72*$C$1","v":0},{"$f":"'rent allocations'!AG72*$C$1","v":0},{"$f":"'rent allocations'!AH72*$C$1","v":0},{"$f":"'rent allocations'!AI72*$C$1","v":0},{"$f":"'rent allocations'!AJ72*$C$1","v":0},{"$f":"'rent allocations'!AK72*$C$1","v":0},{"$f":"'rent allocations'!AL72*$C$1","v":0}]
[null,"341","Law Enforcement Officers' & Fire Fighters' Plan 2 Retirement Board",{"$f":"'rent allocations'!D73*$C$1","v":0},{"$f":"'rent allocations'!E73*$C$1","v":0},{"$f":"'rent allocations'!F73*$C$1","v":0},{"$f":"'rent allocations'!G73*$C$1","v":0},{"$f":"'rent allocations'!H73*$C$1","v":0},{"$f":"'rent allocations'!I73*$C$1","v":0},{"$f":"'rent allocations'!J73*$C$1","v":0},{"$f":"'rent allocations'!K73*$C$1","v":0},{"$f":"'rent allocations'!L73*$C$1","v":0},{"$f":"'rent allocations'!M73*$C$1","v":0},{"$f":"'rent allocations'!N73*$C$1","v":0},{"$f":"'rent allocations'!O73*$C$1","v":0},{"$f":"'rent allocations'!P73*$C$1","v":0},{"$f":"'rent allocations'!Q73*$C$1","v":0},{"$f":"'rent allocations'!R73*$C$1","v":0},{"$f":"'rent allocations'!S73*$C$1","v":0},{"$f":"'rent allocations'!T73*$C$1","v":0},{"$f":"'rent allocations'!U73*$C$1","v":0},{"$f":"'rent allocations'!V73*$C$1","v":0},{"$f":"'rent allocations'!W73*$C$1","v":0},{"$f":"'rent allocations'!X73*$C$1","v":0},{"$f":"'rent allocations'!Y73*$C$1","v":0},{"$f":"'rent allocations'!Z73*$C$1","v":0},{"$f":"'rent allocations'!AA73*$C$1","v":0},{"$f":"'rent allocations'!AB73*$C$1","v":0},{"$f":"'rent allocations'!AC73*$C$1","v":0},{"$f":"'rent allocations'!AD73*$C$1","v":0},{"$f":"'rent allocations'!AE73*$C$1","v":0},{"$f":"'rent allocations'!AF73*$C$1","v":0},{"$f":"'rent allocations'!AG73*$C$1","v":0},{"$f":"'rent allocations'!AH73*$C$1","v":0},{"$f":"'rent allocations'!AI73*$C$1","v":0},{"$f":"'rent allocations'!AJ73*$C$1","v":0},{"$f":"'rent allocations'!AK73*$C$1","v":0},{"$f":"'rent allocations'!AL73*$C$1","v":0}]
[null,"350","Superintendent of Public Instruction",{"$f":"'rent allocations'!D74*$C$1","v":427394.18336029758},{"$f":"'rent allocations'!E74*$C$1","v":0},{"$f":"'rent allocations'!F74*$C$1","v":0},{"$f":"'rent allocations'!G74*$C$1","v":0},{"$f":"'rent allocations'!H74*$C$1","v":0},{"$f":"'rent allocations'!I74*$C$1","v":0},{"$f":"'rent allocations'!J74*$C$1","v":0},{"$f":"'rent allocations'!K74*$C$1","v":0},{"$f":"'rent allocations'!L74*$C$1","v":0},{"$f":"'rent allocations'!M74*$C$1","v":0},{"$f":"'rent allocations'!N74*$C$1","v":0},{"$f":"'rent allocations'!O74*$C$1","v":0},{"$f":"'rent allocations'!P74*$C$1","v":417469.37606490776},{"$f":"'rent allocations'!Q74*$C$1","v":0},{"$f":"'rent allocations'!R74*$C$1","v":0},{"$f":"'rent allocations'!S74*$C$1","v":0},{"$f":"'rent allocations'!T74*$C$1","v":0},{"$f":"'rent allocations'!U74*$C$1","v":0},{"$f":"'rent allocations'!V74*$C$1","v":0},{"$f":"'rent allocations'!W74*$C$1","v":0},{"$f":"'rent allocations'!X74*$C$1","v":0},{"$f":"'rent allocations'!Y74*$C$1","v":0},{"$f":"'rent allocations'!Z74*$C$1","v":0},{"$f":"'rent allocations'!AA74*$C$1","v":9924.8072953898027},{"$f":"'rent allocations'!AB74*$C$1","v":0},{"$f":"'rent allocations'!AC74*$C$1","v":0},{"$f":"'rent allocations'!AD74*$C$1","v":0},{"$f":"'rent allocations'!AE74*$C$1","v":0},{"$f":"'rent allocations'!AF74*$C$1","v":0},{"$f":"'rent allocations'!AG74*$C$1","v":0},{"$f":"'rent allocations'!AH74*$C$1","v":0},{"$f":"'rent allocations'!AI74*$C$1","v":0},{"$f":"'rent allocations'!AJ74*$C$1","v":0},{"$f":"'rent allocations'!AK74*$C$1","v":0},{"$f":"'rent allocations'!AL74*$C$1","v":0}]
[null,"351","State School For The Blind",{"$f":"'rent allocations'!D75*$C$1","v":0},{"$f":"'rent allocations'!E75*$C$1","v":0},{"$f":"'rent allocations'!F75*$C$1","v":0},{"$f":"'rent allocations'!G75*$C$1","v":0},{"$f":"'rent allocations'!H75*$C$1","v":0},{"$f":"'rent allocations'!I75*$C$1","v":0},{"$f":"'rent allocations'!J75*$C$1","v":0},{"$f":"'rent allocations'!K75*$C$1","v":0},{"$f":"'rent allocations'!L75*$C$1","v":0},{"$f":"'rent allocations'!M75*$C$1","v":0},{"$f":"'rent allocations'!N75*$C$1","v":0},{"$f":"'rent allocations'!O75*$C$1","v":0},{"$f":"'rent allocations'!P75*$C$1","v":0},{"$f":"'rent allocations'!Q75*$C$1","v":0},{"$f":"'rent allocations'!R75*$C$1","v":0},{"$f":"'rent allocations'!S75*$C$1","v":0},{"$f":"'rent allocations'!T75*$C$1","v":0},{"$f":"'rent allocations'!U75*$C$1","v":0},{"$f":"'rent allocations'!V75*$C$1","v":0},{"$f":"'rent allocations'!W75*$C$1","v":0},{"$f":"'rent allocations'!X75*$C$1","v":0},{"$f":"'rent allocations'!Y75*$C$1","v":0},{"$f":"'rent allocations'!Z75*$C$1","v":0},{"$f":"'rent allocations'!AA75*$C$1","v":0},{"$f":"'rent allocations'!AB75*$C$1","v":0},{"$f":"'rent allocations'!AC75*$C$1","v":0},{"$f":"'rent allocations'!AD75*$C$1","v":0},{"$f":"'rent allocations'!AE75*$C$1","v":0},{"$f":"'rent allocations'!AF75*$C$1","v":0},{"$f":"'rent allocations'!AG75*$C$1","v":0},{"$f":"'rent allocations'!AH75*$C$1","v":0},{"$f":"'rent allocations'!AI75*$C$1","v":0},{"$f":"'rent allocations'!AJ75*$C$1","v":0},{"$f":"'rent allocations'!AK75*$C$1","v":0},{"$f":"'rent allocations'!AL75*$C$1","v":0}]
[null,"353","State Center for Childhood Deafness and Hearing Loss",{"$f":"'rent allocations'!D76*$C$1","v":0},{"$f":"'rent allocations'!E76*$C$1","v":0},{"$f":"'rent allocations'!F76*$C$1","v":0},{"$f":"'rent allocations'!G76*$C$1","v":0},{"$f":"'rent allocations'!H76*$C$1","v":0},{"$f":"'rent allocations'!I76*$C$1","v":0},{"$f":"'rent allocations'!J76*$C$1","v":0},{"$f":"'rent allocations'!K76*$C$1","v":0},{"$f":"'rent allocations'!L76*$C$1","v":0},{"$f":"'rent allocations'!M76*$C$1","v":0},{"$f":"'rent allocations'!N76*$C$1","v":0},{"$f":"'rent allocations'!O76*$C$1","v":0},{"$f":"'rent allocations'!P76*$C$1","v":0},{"$f":"'rent allocations'!Q76*$C$1","v":0},{"$f":"'rent allocations'!R76*$C$1","v":0},{"$f":"'rent allocations'!S76*$C$1","v":0},{"$f":"'rent allocations'!T76*$C$1","v":0},{"$f":"'rent allocations'!U76*$C$1","v":0},{"$f":"'rent allocations'!V76*$C$1","v":0},{"$f":"'rent allocations'!W76*$C$1","v":0},{"$f":"'rent allocations'!X76*$C$1","v":0},{"$f":"'rent allocations'!Y76*$C$1","v":0},{"$f":"'rent allocations'!Z76*$C$1","v":0},{"$f":"'rent allocations'!AA76*$C$1","v":0},{"$f":"'rent allocations'!AB76*$C$1","v":0},{"$f":"'rent allocations'!AC76*$C$1","v":0},{"$f":"'rent allocations'!AD76*$C$1","v":0},{"$f":"'rent allocations'!AE76*$C$1","v":0},{"$f":"'rent allocations'!AF76*$C$1","v":0},{"$f":"'rent allocations'!AG76*$C$1","v":0},{"$f":"'rent allocations'!AH76*$C$1","v":0},{"$f":"'rent allocations'!AI76*$C$1","v":0},{"$f":"'rent allocations'!AJ76*$C$1","v":0},{"$f":"'rent allocations'!AK76*$C$1","v":0},{"$f":"'rent allocations'!AL76*$C$1","v":0}]
[null,"354","Workforce Training and Education Coordinating Board",{"$f":"'rent allocations'!D77*$C$1","v":0},{"$f":"'rent allocations'!E77*$C$1","v":0},{"$f":"'rent allocations'!F77*$C$1","v":0},{"$f":"'rent allocations'!G77*$C$1","v":0},{"$f":"'rent allocations'!H77*$C$1","v":0},{"$f":"'rent allocations'!I77*$C$1","v":0},{"$f":"'rent allocations'!J77*$C$1","v":0},{"$f":"'rent allocations'!K77*$C$1","v":0},{"$f":"'rent allocations'!L77*$C$1","v":0},{"$f":"'rent allocations'!M77*$C$1","v":0},{"$f":"'rent allocations'!N77*$C$1","v":0},{"$f":"'rent allocations'!O77*$C$1","v":0},{"$f":"'rent allocations'!P77*$C$1","v":0},{"$f":"'rent allocations'!Q77*$C$1","v":0},{"$f":"'rent allocations'!R77*$C$1","v":0},{"$f":"'rent allocations'!S77*$C$1","v":0},{"$f":"'rent allocations'!T77*$C$1","v":0},{"$f":"'rent allocations'!U77*$C$1","v":0},{"$f":"'rent allocations'!V77*$C$1","v":0},{"$f":"'rent allocations'!W77*$C$1","v":0},{"$f":"'rent allocations'!X77*$C$1","v":0},{"$f":"'rent allocations'!Y77*$C$1","v":0},{"$f":"'rent allocations'!Z77*$C$1","v":0},{"$f":"'rent allocations'!AA77*$C$1","v":0},{"$f":"'rent allocations'!AB77*$C$1","v":0},{"$f":"'rent allocations'!AC77*$C$1","v":0},{"$f":"'rent allocations'!AD77*$C$1","v":0},{"$f":"'rent allocations'!AE77*$C$1","v":0},{"$f":"'rent allocations'!AF77*$C$1","v":0},{"$f":"'rent allocations'!AG77*$C$1","v":0},{"$f":"'rent allocations'!AH77*$C$1","v":0},{"$f":"'rent allocations'!AI77*$C$1","v":0},{"$f":"'rent allocations'!AJ77*$C$1","v":0},{"$f":"'rent allocations'!AK77*$C$1","v":0},{"$f":"'rent allocations'!AL77*$C$1","v":0}]
[null,"355","Department of Archaeology and Historic Preservation",{"$f":"'rent allocations'!D78*$C$1","v":83593.027724344676},{"$f":"'rent allocations'!E78*$C$1","v":0},{"$f":"'rent allocations'!F78*$C$1","v":0},{"$f":"'rent allocations'!G78*$C$1","v":0},{"$f":"'rent allocations'!H78*$C$1","v":0},{"$f":"'rent allocations'!I78*$C$1","v":0},{"$f":"'rent allocations'!J78*$C$1","v":0},{"$f":"'rent allocations'!K78*$C$1","v":0},{"$f":"'rent allocations'!L78*$C$1","v":0},{"$f":"'rent allocations'!M78*$C$1","v":0},{"$f":"'rent allocations'!N78*$C$1","v":0},{"$f":"'rent allocations'!O78*$C$1","v":0},{"$f":"'rent allocations'!P78*$C$1","v":0},{"$f":"'rent allocations'!Q78*$C$1","v":0},{"$f":"'rent allocations'!R78*$C$1","v":0},{"$f":"'rent allocations'!S78*$C$1","v":0},{"$f":"'rent allocations'!T78*$C$1","v":0},{"$f":"'rent allocations'!U78*$C$1","v":0},{"$f":"'rent allocations'!V78*$C$1","v":0},{"$f":"'rent allocations'!W78*$C$1","v":0},{"$f":"'rent allocations'!X78*$C$1","v":83593.027724344676},{"$f":"'rent allocations'!Y78*$C$1","v":0},{"$f":"'rent allocations'!Z78*$C$1","v":0},{"$f":"'rent allocations'!AA78*$C$1","v":0},{"$f":"'rent allocations'!AB78*$C$1","v":0},{"$f":"'rent allocations'!AC78*$C$1","v":0},{"$f":"'rent allocations'!AD78*$C$1","v":0},{"$f":"'rent allocations'!AE78*$C$1","v":0},{"$f":"'rent allocations'!AF78*$C$1","v":0},{"$f":"'rent allocations'!AG78*$C$1","v":0},{"$f":"'rent allocations'!AH78*$C$1","v":0},{"$f":"'rent allocations'!AI78*$C$1","v":0},{"$f":"'rent allocations'!AJ78*$C$1","v":0},{"$f":"'rent allocations'!AK78*$C$1","v":0},{"$f":"'rent allocations'!AL78*$C$1","v":0}]
[null,"357","Department of Early Learning",{"$f":"'rent allocations'!D79*$C$1","v":0},{"$f":"'rent allocations'!E79*$C$1","v":0},{"$f":"'rent allocations'!F79*$C$1","v":0},{"$f":"'rent allocations'!G79*$C$1","v":0},{"$f":"'rent allocations'!H79*$C$1","v":0},{"$f":"'rent allocations'!I79*$C$1","v":0},{"$f":"'rent allocations'!J79*$C$1","v":0},{"$f":"'rent allocations'!K79*$C$1","v":0},{"$f":"'rent allocations'!L79*$C$1","v":0},{"$f":"'rent allocations'!M79*$C$1","v":0},{"$f":"'rent allocations'!N79*$C$1","v":0},{"$f":"'rent allocations'!O79*$C$1","v":0},{"$f":"'rent allocations'!P79*$C$1","v":0},{"$f":"'rent allocations'!Q79*$C$1","v":0},{"$f":"'rent allocations'!R79*$C$1","v":0},{"$f":"'rent allocations'!S79*$C$1","v":0},{"$f":"'rent allocations'!T79*$C$1","v":0},{"$f":"'rent allocations'!U79*$C$1","v":0},{"$f":"'rent allocations'!V79*$C$1","v":0},{"$f":"'rent allocations'!W79*$C$1","v":0},{"$f":"'rent allocations'!X79*$C$1","v":0},{"$f":"'rent allocations'!Y79*$C$1","v":0},{"$f":"'rent allocations'!Z79*$C$1","v":0},{"$f":"'rent allocations'!AA79*$C$1","v":0},{"$f":"'rent allocations'!AB79*$C$1","v":0},{"$f":"'rent allocations'!AC79*$C$1","v":0},{"$f":"'rent allocations'!AD79*$C$1","v":0},{"$f":"'rent allocations'!AE79*$C$1","v":0},{"$f":"'rent allocations'!AF79*$C$1","v":0},{"$f":"'rent allocations'!AG79*$C$1","v":0},{"$f":"'rent allocations'!AH79*$C$1","v":0},{"$f":"'rent allocations'!AI79*$C$1","v":0},{"$f":"'rent allocations'!AJ79*$C$1","v":0},{"$f":"'rent allocations'!AK79*$C$1","v":0},{"$f":"'rent allocations'!AL79*$C$1","v":0}]
[null,"359","WA Charter School Commission",{"$f":"'rent allocations'!D80*$C$1","v":0},{"$f":"'rent allocations'!E80*$C$1","v":0},{"$f":"'rent allocations'!F80*$C$1","v":0},{"$f":"'rent allocations'!G80*$C$1","v":0},{"$f":"'rent allocations'!H80*$C$1","v":0},{"$f":"'rent allocations'!I80*$C$1","v":0},{"$f":"'rent allocations'!J80*$C$1","v":0},{"$f":"'rent allocations'!K80*$C$1","v":0},{"$f":"'rent allocations'!L80*$C$1","v":0},{"$f":"'rent allocations'!M80*$C$1","v":0},{"$f":"'rent allocations'!N80*$C$1","v":0},{"$f":"'rent allocations'!O80*$C$1","v":0},{"$f":"'rent allocations'!P80*$C$1","v":0},{"$f":"'rent allocations'!Q80*$C$1","v":0},{"$f":"'rent allocations'!R80*$C$1","v":0},{"$f":"'rent allocations'!S80*$C$1","v":0},{"$f":"'rent allocations'!T80*$C$1","v":0},{"$f":"'rent allocations'!U80*$C$1","v":0},{"$f":"'rent allocations'!V80*$C$1","v":0},{"$f":"'rent allocations'!W80*$C$1","v":0},{"$f":"'rent allocations'!X80*$C$1","v":0},{"$f":"'rent allocations'!Y80*$C$1","v":0},{"$f":"'rent allocations'!Z80*$C$1","v":0},{"$f":"'rent allocations'!AA80*$C$1","v":0},{"$f":"'rent allocations'!AB80*$C$1","v":0},{"$f":"'rent allocations'!AC80*$C$1","v":0},{"$f":"'rent allocations'!AD80*$C$1","v":0},{"$f":"'rent allocations'!AE80*$C$1","v":0},{"$f":"'rent allocations'!AF80*$C$1","v":0},{"$f":"'rent allocations'!AG80*$C$1","v":0},{"$f":"'rent allocations'!AH80*$C$1","v":0},{"$f":"'rent allocations'!AI80*$C$1","v":0},{"$f":"'rent allocations'!AJ80*$C$1","v":0},{"$f":"'rent allocations'!AK80*$C$1","v":0},{"$f":"'rent allocations'!AL80*$C$1","v":0}]
[null,"360","University of Washington",{"$f":"'rent allocations'!D81*$C$1","v":0},{"$f":"'rent allocations'!E81*$C$1","v":0},{"$f":"'rent allocations'!F81*$C$1","v":0},{"$f":"'rent allocations'!G81*$C$1","v":0},{"$f":"'rent allocations'!H81*$C$1","v":0},{"$f":"'rent allocations'!I81*$C$1","v":0},{"$f":"'rent allocations'!J81*$C$1","v":0},{"$f":"'rent allocations'!K81*$C$1","v":0},{"$f":"'rent allocations'!L81*$C$1","v":0},{"$f":"'rent allocations'!M81*$C$1","v":0},{"$f":"'rent allocations'!N81*$C$1","v":0},{"$f":"'rent allocations'!O81*$C$1","v":0},{"$f":"'rent allocations'!P81*$C$1","v":0},{"$f":"'rent allocations'!Q81*$C$1","v":0},{"$f":"'rent allocations'!R81*$C$1","v":0},{"$f":"'rent allocations'!S81*$C$1","v":0},{"$f":"'rent allocations'!T81*$C$1","v":0},{"$f":"'rent allocations'!U81*$C$1","v":0},{"$f":"'rent allocations'!V81*$C$1","v":0},{"$f":"'rent allocations'!W81*$C$1","v":0},{"$f":"'rent allocations'!X81*$C$1","v":0},{"$f":"'rent allocations'!Y81*$C$1","v":0},{"$f":"'rent allocations'!Z81*$C$1","v":0},{"$f":"'rent allocations'!AA81*$C$1","v":0},{"$f":"'rent allocations'!AB81*$C$1","v":0},{"$f":"'rent allocations'!AC81*$C$1","v":0},{"$f":"'rent allocations'!AD81*$C$1","v":0},{"$f":"'rent allocations'!AE81*$C$1","v":0},{"$f":"'rent allocations'!AF81*$C$1","v":0},{"$f":"'rent allocations'!AG81*$C$1","v":0},{"$f":"'rent allocations'!AH81*$C$1","v":0},{"$f":"'rent allocations'!AI81*$C$1","v":0},{"$f":"'rent allocations'!AJ81*$C$1","v":0},{"$f":"'rent allocations'!AK81*$C$1","v":0},{"$f":"'rent allocations'!AL81*$C$1","v":0}]
[null,"365","Washington State University",{"$f":"'rent allocations'!D82*$C$1","v":0},{"$f":"'rent allocations'!E82*$C$1","v":0},{"$f":"'rent allocations'!F82*$C$1","v":0},{"$f":"'rent allocations'!G82*$C$1","v":0},{"$f":"'rent allocations'!H82*$C$1","v":0},{"$f":"'rent allocations'!I82*$C$1","v":0},{"$f":"'rent allocations'!J82*$C$1","v":0},{"$f":"'rent allocations'!K82*$C$1","v":0},{"$f":"'rent allocations'!L82*$C$1","v":0},{"$f":"'rent allocations'!M82*$C$1","v":0},{"$f":"'rent allocations'!N82*$C$1","v":0},{"$f":"'rent allocations'!O82*$C$1","v":0},{"$f":"'rent allocations'!P82*$C$1","v":0},{"$f":"'rent allocations'!Q82*$C$1","v":0},{"$f":"'rent allocations'!R82*$C$1","v":0},{"$f":"'rent allocations'!S82*$C$1","v":0},{"$f":"'rent allocations'!T82*$C$1","v":0},{"$f":"'rent allocations'!U82*$C$1","v":0},{"$f":"'rent allocations'!V82*$C$1","v":0},{"$f":"'rent allocations'!W82*$C$1","v":0},{"$f":"'rent allocations'!X82*$C$1","v":0},{"$f":"'rent allocations'!Y82*$C$1","v":0},{"$f":"'rent allocations'!Z82*$C$1","v":0},{"$f":"'rent allocations'!AA82*$C$1","v":0},{"$f":"'rent allocations'!AB82*$C$1","v":0},{"$f":"'rent allocations'!AC82*$C$1","v":0},{"$f":"'rent allocations'!AD82*$C$1","v":0},{"$f":"'rent allocations'!AE82*$C$1","v":0},{"$f":"'rent allocations'!AF82*$C$1","v":0},{"$f":"'rent allocations'!AG82*$C$1","v":0},{"$f":"'rent allocations'!AH82*$C$1","v":0},{"$f":"'rent allocations'!AI82*$C$1","v":0},{"$f":"'rent allocations'!AJ82*$C$1","v":0},{"$f":"'rent allocations'!AK82*$C$1","v":0},{"$f":"'rent allocations'!AL82*$C$1","v":0}]
[null,"370","Eastern Washington University",{"$f":"'rent allocations'!D83*$C$1","v":0},{"$f":"'rent allocations'!E83*$C$1","v":0},{"$f":"'rent allocations'!F83*$C$1","v":0},{"$f":"'rent allocations'!G83*$C$1","v":0},{"$f":"'rent allocations'!H83*$C$1","v":0},{"$f":"'rent allocations'!I83*$C$1","v":0},{"$f":"'rent allocations'!J83*$C$1","v":0},{"$f":"'rent allocations'!K83*$C$1","v":0},{"$f":"'rent allocations'!L83*$C$1","v":0},{"$f":"'rent allocations'!M83*$C$1","v":0},{"$f":"'rent allocations'!N83*$C$1","v":0},{"$f":"'rent allocations'!O83*$C$1","v":0},{"$f":"'rent allocations'!P83*$C$1","v":0},{"$f":"'rent allocations'!Q83*$C$1","v":0},{"$f":"'rent allocations'!R83*$C$1","v":0},{"$f":"'rent allocations'!S83*$C$1","v":0},{"$f":"'rent allocations'!T83*$C$1","v":0},{"$f":"'rent allocations'!U83*$C$1","v":0},{"$f":"'rent allocations'!V83*$C$1","v":0},{"$f":"'rent allocations'!W83*$C$1","v":0},{"$f":"'rent allocations'!X83*$C$1","v":0},{"$f":"'rent allocations'!Y83*$C$1","v":0},{"$f":"'rent allocations'!Z83*$C$1","v":0},{"$f":"'rent allocations'!AA83*$C$1","v":0},{"$f":"'rent allocations'!AB83*$C$1","v":0},{"$f":"'rent allocations'!AC83*$C$1","v":0},{"$f":"'rent allocations'!AD83*$C$1","v":0},{"$f":"'rent allocations'!AE83*$C$1","v":0},{"$f":"'rent allocations'!AF83*$C$1","v":0},{"$f":"'rent allocations'!AG83*$C$1","v":0},{"$f":"'rent allocations'!AH83*$C$1","v":0},{"$f":"'rent allocations'!AI83*$C$1","v":0},{"$f":"'rent allocations'!AJ83*$C$1","v":0},{"$f":"'rent allocations'!AK83*$C$1","v":0},{"$f":"'rent allocations'!AL83*$C$1","v":0}]
[null,"375","Central Washington University",{"$f":"'rent allocations'!D84*$C$1","v":0},{"$f":"'rent allocations'!E84*$C$1","v":0},{"$f":"'rent allocations'!F84*$C$1","v":0},{"$f":"'rent allocations'!G84*$C$1","v":0},{"$f":"'rent allocations'!H84*$C$1","v":0},{"$f":"'rent allocations'!I84*$C$1","v":0},{"$f":"'rent allocations'!J84*$C$1","v":0},{"$f":"'rent allocations'!K84*$C$1","v":0},{"$f":"'rent allocations'!L84*$C$1","v":0},{"$f":"'rent allocations'!M84*$C$1","v":0},{"$f":"'rent allocations'!N84*$C$1","v":0},{"$f":"'rent allocations'!O84*$C$1","v":0},{"$f":"'rent allocations'!P84*$C$1","v":0},{"$f":"'rent allocations'!Q84*$C$1","v":0},{"$f":"'rent allocations'!R84*$C$1","v":0},{"$f":"'rent allocations'!S84*$C$1","v":0},{"$f":"'rent allocations'!T84*$C$1","v":0},{"$f":"'rent allocations'!U84*$C$1","v":0},{"$f":"'rent allocations'!V84*$C$1","v":0},{"$f":"'rent allocations'!W84*$C$1","v":0},{"$f":"'rent allocations'!X84*$C$1","v":0},{"$f":"'rent allocations'!Y84*$C$1","v":0},{"$f":"'rent allocations'!Z84*$C$1","v":0},{"$f":"'rent allocations'!AA84*$C$1","v":0},{"$f":"'rent allocations'!AB84*$C$1","v":0},{"$f":"'rent allocations'!AC84*$C$1","v":0},{"$f":"'rent allocations'!AD84*$C$1","v":0},{"$f":"'rent allocations'!AE84*$C$1","v":0},{"$f":"'rent allocations'!AF84*$C$1","v":0},{"$f":"'rent allocations'!AG84*$C$1","v":0},{"$f":"'rent allocations'!AH84*$C$1","v":0},{"$f":"'rent allocations'!AI84*$C$1","v":0},{"$f":"'rent allocations'!AJ84*$C$1","v":0},{"$f":"'rent allocations'!AK84*$C$1","v":0},{"$f":"'rent allocations'!AL84*$C$1","v":0}]
[null,"376","The Evergreen State College",{"$f":"'rent allocations'!D85*$C$1","v":0},{"$f":"'rent allocations'!E85*$C$1","v":0},{"$f":"'rent allocations'!F85*$C$1","v":0},{"$f":"'rent allocations'!G85*$C$1","v":0},{"$f":"'rent allocations'!H85*$C$1","v":0},{"$f":"'rent allocations'!I85*$C$1","v":0},{"$f":"'rent allocations'!J85*$C$1","v":0},{"$f":"'rent allocations'!K85*$C$1","v":0},{"$f":"'rent allocations'!L85*$C$1","v":0},{"$f":"'rent allocations'!M85*$C$1","v":0},{"$f":"'rent allocations'!N85*$C$1","v":0},{"$f":"'rent allocations'!O85*$C$1","v":0},{"$f":"'rent allocations'!P85*$C$1","v":0},{"$f":"'rent allocations'!Q85*$C$1","v":0},{"$f":"'rent allocations'!R85*$C$1","v":0},{"$f":"'rent allocations'!S85*$C$1","v":0},{"$f":"'rent allocations'!T85*$C$1","v":0},{"$f":"'rent allocations'!U85*$C$1","v":0},{"$f":"'rent allocations'!V85*$C$1","v":0},{"$f":"'rent allocations'!W85*$C$1","v":0},{"$f":"'rent allocations'!X85*$C$1","v":0},{"$f":"'rent allocations'!Y85*$C$1","v":0},{"$f":"'rent allocations'!Z85*$C$1","v":0},{"$f":"'rent allocations'!AA85*$C$1","v":0},{"$f":"'rent allocations'!AB85*$C$1","v":0},{"$f":"'rent allocations'!AC85*$C$1","v":0},{"$f":"'rent allocations'!AD85*$C$1","v":0},{"$f":"'rent allocations'!AE85*$C$1","v":0},{"$f":"'rent allocations'!AF85*$C$1","v":0},{"$f":"'rent allocations'!AG85*$C$1","v":0},{"$f":"'rent allocations'!AH85*$C$1","v":0},{"$f":"'rent allocations'!AI85*$C$1","v":0},{"$f":"'rent allocations'!AJ85*$C$1","v":0},{"$f":"'rent allocations'!AK85*$C$1","v":0},{"$f":"'rent allocations'!AL85*$C$1","v":0}]
[null,"380","Western Washington University",{"$f":"'rent allocations'!D86*$C$1","v":0},{"$f":"'rent allocations'!E86*$C$1","v":0},{"$f":"'rent allocations'!F86*$C$1","v":0},{"$f":"'rent allocations'!G86*$C$1","v":0},{"$f":"'rent allocations'!H86*$C$1","v":0},{"$f":"'rent allocations'!I86*$C$1","v":0},{"$f":"'rent allocations'!J86*$C$1","v":0},{"$f":"'rent allocations'!K86*$C$1","v":0},{"$f":"'rent allocations'!L86*$C$1","v":0},{"$f":"'rent allocations'!M86*$C$1","v":0},{"$f":"'rent allocations'!N86*$C$1","v":0},{"$f":"'rent allocations'!O86*$C$1","v":0},{"$f":"'rent allocations'!P86*$C$1","v":0},{"$f":"'rent allocations'!Q86*$C$1","v":0},{"$f":"'rent allocations'!R86*$C$1","v":0},{"$f":"'rent allocations'!S86*$C$1","v":0},{"$f":"'rent allocations'!T86*$C$1","v":0},{"$f":"'rent allocations'!U86*$C$1","v":0},{"$f":"'rent allocations'!V86*$C$1","v":0},{"$f":"'rent allocations'!W86*$C$1","v":0},{"$f":"'rent allocations'!X86*$C$1","v":0},{"$f":"'rent allocations'!Y86*$C$1","v":0},{"$f":"'rent allocations'!Z86*$C$1","v":0},{"$f":"'rent allocations'!AA86*$C$1","v":0},{"$f":"'rent allocations'!AB86*$C$1","v":0},{"$f":"'rent allocations'!AC86*$C$1","v":0},{"$f":"'rent allocations'!AD86*$C$1","v":0},{"$f":"'rent allocations'!AE86*$C$1","v":0},{"$f":"'rent allocations'!AF86*$C$1","v":0},{"$f":"'rent allocations'!AG86*$C$1","v":0},{"$f":"'rent allocations'!AH86*$C$1","v":0},{"$f":"'rent allocations'!AI86*$C$1","v":0},{"$f":"'rent allocations'!AJ86*$C$1","v":0},{"$f":"'rent allocations'!AK86*$C$1","v":0},{"$f":"'rent allocations'!AL86*$C$1","v":0}]
[null,"387","Washington State Arts Commission",{"$f":"'rent allocations'!D87*$C$1","v":0},{"$f":"'rent allocations'!E87*$C$1","v":0},{"$f":"'rent allocations'!F87*$C$1","v":0},{"$f":"'rent allocations'!G87*$C$1","v":0},{"$f":"'rent allocations'!H87*$C$1","v":0},{"$f":"'rent allocations'!I87*$C$1","v":0},{"$f":"'rent allocations'!J87*$C$1","v":0},{"$f":"'rent allocations'!K87*$C$1","v":0},{"$f":"'rent allocations'!L87*$C$1","v":0},{"$f":"'rent allocations'!M87*$C$1","v":0},{"$f":"'rent allocations'!N87*$C$1","v":0},{"$f":"'rent allocations'!O87*$C$1","v":0},{"$f":"'rent allocations'!P87*$C$1","v":0},{"$f":"'rent allocations'!Q87*$C$1","v":0},{"$f":"'rent allocations'!R87*$C$1","v":0},{"$f":"'rent allocations'!S87*$C$1","v":0},{"$f":"'rent allocations'!T87*$C$1","v":0},{"$f":"'rent allocations'!U87*$C$1","v":0},{"$f":"'rent allocations'!V87*$C$1","v":0},{"$f":"'rent allocations'!W87*$C$1","v":0},{"$f":"'rent allocations'!X87*$C$1","v":0},{"$f":"'rent allocations'!Y87*$C$1","v":0},{"$f":"'rent allocations'!Z87*$C$1","v":0},{"$f":"'rent allocations'!AA87*$C$1","v":0},{"$f":"'rent allocations'!AB87*$C$1","v":0},{"$f":"'rent allocations'!AC87*$C$1","v":0},{"$f":"'rent allocations'!AD87*$C$1","v":0},{"$f":"'rent allocations'!AE87*$C$1","v":0},{"$f":"'rent allocations'!AF87*$C$1","v":0},{"$f":"'rent allocations'!AG87*$C$1","v":0},{"$f":"'rent allocations'!AH87*$C$1","v":0},{"$f":"'rent allocations'!AI87*$C$1","v":0},{"$f":"'rent allocations'!AJ87*$C$1","v":0},{"$f":"'rent allocations'!AK87*$C$1","v":0},{"$f":"'rent allocations'!AL87*$C$1","v":0}]
[null,"390","Washington State Historical Society",{"$f":"'rent allocations'!D88*$C$1","v":0},{"$f":"'rent allocations'!E88*$C$1","v":0},{"$f":"'rent allocations'!F88*$C$1","v":0},{"$f":"'rent allocations'!G88*$C$1","v":0},{"$f":"'rent allocations'!H88*$C$1","v":0},{"$f":"'rent allocations'!I88*$C$1","v":0},{"$f":"'rent allocations'!J88*$C$1","v":0},{"$f":"'rent allocations'!K88*$C$1","v":0},{"$f":"'rent allocations'!L88*$C$1","v":0},{"$f":"'rent allocations'!M88*$C$1","v":0},{"$f":"'rent allocations'!N88*$C$1","v":0},{"$f":"'rent allocations'!O88*$C$1","v":0},{"$f":"'rent allocations'!P88*$C$1","v":0},{"$f":"'rent allocations'!Q88*$C$1","v":0},{"$f":"'rent allocations'!R88*$C$1","v":0},{"$f":"'rent allocations'!S88*$C$1","v":0},{"$f":"'rent allocations'!T88*$C$1","v":0},{"$f":"'rent allocations'!U88*$C$1","v":0},{"$f":"'rent allocations'!V88*$C$1","v":0},{"$f":"'rent allocations'!W88*$C$1","v":0},{"$f":"'rent allocations'!X88*$C$1","v":0},{"$f":"'rent allocations'!Y88*$C$1","v":0},{"$f":"'rent allocations'!Z88*$C$1","v":0},{"$f":"'rent allocations'!AA88*$C$1","v":0},{"$f":"'rent allocations'!AB88*$C$1","v":0},{"$f":"'rent allocations'!AC88*$C$1","v":0},{"$f":"'rent allocations'!AD88*$C$1","v":0},{"$f":"'rent allocations'!AE88*$C$1","v":0},{"$f":"'rent allocations'!AF88*$C$1","v":0},{"$f":"'rent allocations'!AG88*$C$1","v":0},{"$f":"'rent allocations'!AH88*$C$1","v":0},{"$f":"'rent allocations'!AI88*$C$1","v":0},{"$f":"'rent allocations'!AJ88*$C$1","v":0},{"$f":"'rent allocations'!AK88*$C$1","v":0},{"$f":"'rent allocations'!AL88*$C$1","v":0}]
[null,"395","Eastern Washington State Historical Society",{"$f":"'rent allocations'!D89*$C$1","v":0},{"$f":"'rent allocations'!E89*$C$1","v":0},{"$f":"'rent allocations'!F89*$C$1","v":0},{"$f":"'rent allocations'!G89*$C$1","v":0},{"$f":"'rent allocations'!H89*$C$1","v":0},{"$f":"'rent allocations'!I89*$C$1","v":0},{"$f":"'rent allocations'!J89*$C$1","v":0},{"$f":"'rent allocations'!K89*$C$1","v":0},{"$f":"'rent allocations'!L89*$C$1","v":0},{"$f":"'rent allocations'!M89*$C$1","v":0},{"$f":"'rent allocations'!N89*$C$1","v":0},{"$f":"'rent allocations'!O89*$C$1","v":0},{"$f":"'rent allocations'!P89*$C$1","v":0},{"$f":"'rent allocations'!Q89*$C$1","v":0},{"$f":"'rent allocations'!R89*$C$1","v":0},{"$f":"'rent allocations'!S89*$C$1","v":0},{"$f":"'rent allocations'!T89*$C$1","v":0},{"$f":"'rent allocations'!U89*$C$1","v":0},{"$f":"'rent allocations'!V89*$C$1","v":0},{"$f":"'rent allocations'!W89*$C$1","v":0},{"$f":"'rent allocations'!X89*$C$1","v":0},{"$f":"'rent allocations'!Y89*$C$1","v":0},{"$f":"'rent allocations'!Z89*$C$1","v":0},{"$f":"'rent allocations'!AA89*$C$1","v":0},{"$f":"'rent allocations'!AB89*$C$1","v":0},{"$f":"'rent allocations'!AC89*$C$1","v":0},{"$f":"'rent allocations'!AD89*$C$1","v":0},{"$f":"'rent allocations'!AE89*$C$1","v":0},{"$f":"'rent allocations'!AF89*$C$1","v":0},{"$f":"'rent allocations'!AG89*$C$1","v":0},{"$f":"'rent allocations'!AH89*$C$1","v":0},{"$f":"'rent allocations'!AI89*$C$1","v":0},{"$f":"'rent allocations'!AJ89*$C$1","v":0},{"$f":"'rent allocations'!AK89*$C$1","v":0},{"$f":"'rent allocations'!AL89*$C$1","v":0}]
[null,"405","Department of Transportation",{"$f":"'rent allocations'!D90*$C$1","v":681780.21338904218},{"$f":"'rent allocations'!E90*$C$1","v":0},{"$f":"'rent allocations'!F90*$C$1","v":0},{"$f":"'rent allocations'!G90*$C$1","v":0},{"$f":"'rent allocations'!H90*$C$1","v":0},{"$f":"'rent allocations'!I90*$C$1","v":0},{"$f":"'rent allocations'!J90*$C$1","v":0},{"$f":"'rent allocations'!K90*$C$1","v":0},{"$f":"'rent allocations'!L90*$C$1","v":0},{"$f":"'rent allocations'!M90*$C$1","v":0},{"$f":"'rent allocations'!N90*$C$1","v":681780.21338904218},{"$f":"'rent allocations'!O90*$C$1","v":0},{"$f":"'rent allocations'!P90*$C$1","v":0},{"$f":"'rent allocations'!Q90*$C$1","v":0},{"$f":"'rent allocations'!R90*$C$1","v":0},{"$f":"'rent allocations'!S90*$C$1","v":0},{"$f":"'rent allocations'!T90*$C$1","v":0},{"$f":"'rent allocations'!U90*$C$1","v":0},{"$f":"'rent allocations'!V90*$C$1","v":0},{"$f":"'rent allocations'!W90*$C$1","v":0},{"$f":"'rent allocations'!X90*$C$1","v":0},{"$f":"'rent allocations'!Y90*$C$1","v":0},{"$f":"'rent allocations'!Z90*$C$1","v":0},{"$f":"'rent allocations'!AA90*$C$1","v":0},{"$f":"'rent allocations'!AB90*$C$1","v":0},{"$f":"'rent allocations'!AC90*$C$1","v":0},{"$f":"'rent allocations'!AD90*$C$1","v":0},{"$f":"'rent allocations'!AE90*$C$1","v":0},{"$f":"'rent allocations'!AF90*$C$1","v":0},{"$f":"'rent allocations'!AG90*$C$1","v":0},{"$f":"'rent allocations'!AH90*$C$1","v":0},{"$f":"'rent allocations'!AI90*$C$1","v":0},{"$f":"'rent allocations'!AJ90*$C$1","v":0},{"$f":"'rent allocations'!AK90*$C$1","v":0},{"$f":"'rent allocations'!AL90*$C$1","v":0}]
[null,"406","County Road Administration Board",{"$f":"'rent allocations'!D91*$C$1","v":0},{"$f":"'rent allocations'!E91*$C$1","v":0},{"$f":"'rent allocations'!F91*$C$1","v":0},{"$f":"'rent allocations'!G91*$C$1","v":0},{"$f":"'rent allocations'!H91*$C$1","v":0},{"$f":"'rent allocations'!I91*$C$1","v":0},{"$f":"'rent allocations'!J91*$C$1","v":0},{"$f":"'rent allocations'!K91*$C$1","v":0},{"$f":"'rent allocations'!L91*$C$1","v":0},{"$f":"'rent allocations'!M91*$C$1","v":0},{"$f":"'rent allocations'!N91*$C$1","v":0},{"$f":"'rent allocations'!O91*$C$1","v":0},{"$f":"'rent allocations'!P91*$C$1","v":0},{"$f":"'rent allocations'!Q91*$C$1","v":0},{"$f":"'rent allocations'!R91*$C$1","v":0},{"$f":"'rent allocations'!S91*$C$1","v":0},{"$f":"'rent allocations'!T91*$C$1","v":0},{"$f":"'rent allocations'!U91*$C$1","v":0},{"$f":"'rent allocations'!V91*$C$1","v":0},{"$f":"'rent allocations'!W91*$C$1","v":0},{"$f":"'rent allocations'!X91*$C$1","v":0},{"$f":"'rent allocations'!Y91*$C$1","v":0},{"$f":"'rent allocations'!Z91*$C$1","v":0},{"$f":"'rent allocations'!AA91*$C$1","v":0},{"$f":"'rent allocations'!AB91*$C$1","v":0},{"$f":"'rent allocations'!AC91*$C$1","v":0},{"$f":"'rent allocations'!AD91*$C$1","v":0},{"$f":"'rent allocations'!AE91*$C$1","v":0},{"$f":"'rent allocations'!AF91*$C$1","v":0},{"$f":"'rent allocations'!AG91*$C$1","v":0},{"$f":"'rent allocations'!AH91*$C$1","v":0},{"$f":"'rent allocations'!AI91*$C$1","v":0},{"$f":"'rent allocations'!AJ91*$C$1","v":0},{"$f":"'rent allocations'!AK91*$C$1","v":0},{"$f":"'rent allocations'!AL91*$C$1","v":0}]
[null,"407","Transportation Improvement Board",{"$f":"'rent allocations'!D92*$C$1","v":0},{"$f":"'rent allocations'!E92*$C$1","v":0},{"$f":"'rent allocations'!F92*$C$1","v":0},{"$f":"'rent allocations'!G92*$C$1","v":0},{"$f":"'rent allocations'!H92*$C$1","v":0},{"$f":"'rent allocations'!I92*$C$1","v":0},{"$f":"'rent allocations'!J92*$C$1","v":0},{"$f":"'rent allocations'!K92*$C$1","v":0},{"$f":"'rent allocations'!L92*$C$1","v":0},{"$f":"'rent allocations'!M92*$C$1","v":0},{"$f":"'rent allocations'!N92*$C$1","v":0},{"$f":"'rent allocations'!O92*$C$1","v":0},{"$f":"'rent allocations'!P92*$C$1","v":0},{"$f":"'rent allocations'!Q92*$C$1","v":0},{"$f":"'rent allocations'!R92*$C$1","v":0},{"$f":"'rent allocations'!S92*$C$1","v":0},{"$f":"'rent allocations'!T92*$C$1","v":0},{"$f":"'rent allocations'!U92*$C$1","v":0},{"$f":"'rent allocations'!V92*$C$1","v":0},{"$f":"'rent allocations'!W92*$C$1","v":0},{"$f":"'rent allocations'!X92*$C$1","v":0},{"$f":"'rent allocations'!Y92*$C$1","v":0},{"$f":"'rent allocations'!Z92*$C$1","v":0},{"$f":"'rent allocations'!AA92*$C$1","v":0},{"$f":"'rent allocations'!AB92*$C$1","v":0},{"$f":"'rent allocations'!AC92*$C$1","v":0},{"$f":"'rent allocations'!AD92*$C$1","v":0},{"$f":"'rent allocations'!AE92*$C$1","v":0},{"$f":"'rent allocations'!AF92*$C$1","v":0},{"$f":"'rent allocations'!AG92*$C$1","v":0},{"$f":"'rent allocations'!AH92*$C$1","v":0},{"$f":"'rent allocations'!AI92*$C$1","v":0},{"$f":"'rent allocations'!AJ92*$C$1","v":0},{"$f":"'rent allocations'!AK92*$C$1","v":0},{"$f":"'rent allocations'!AL92*$C$1","v":0}]
[null,"410","Transportation Commission",{"$f":"'rent allocations'!D93*$C$1","v":0},{"$f":"'rent allocations'!E93*$C$1","v":0},{"$f":"'rent allocations'!F93*$C$1","v":0},{"$f":"'rent allocations'!G93*$C$1","v":0},{"$f":"'rent allocations'!H93*$C$1","v":0},{"$f":"'rent allocations'!I93*$C$1","v":0},{"$f":"'rent allocations'!J93*$C$1","v":0},{"$f":"'rent allocations'!K93*$C$1","v":0},{"$f":"'rent allocations'!L93*$C$1","v":0},{"$f":"'rent allocations'!M93*$C$1","v":0},{"$f":"'rent allocations'!N93*$C$1","v":0},{"$f":"'rent allocations'!O93*$C$1","v":0},{"$f":"'rent allocations'!P93*$C$1","v":0},{"$f":"'rent allocations'!Q93*$C$1","v":0},{"$f":"'rent allocations'!R93*$C$1","v":0},{"$f":"'rent allocations'!S93*$C$1","v":0},{"$f":"'rent allocations'!T93*$C$1","v":0},{"$f":"'rent allocations'!U93*$C$1","v":0},{"$f":"'rent allocations'!V93*$C$1","v":0},{"$f":"'rent allocations'!W93*$C$1","v":0},{"$f":"'rent allocations'!X93*$C$1","v":0},{"$f":"'rent allocations'!Y93*$C$1","v":0},{"$f":"'rent allocations'!Z93*$C$1","v":0},{"$f":"'rent allocations'!AA93*$C$1","v":0},{"$f":"'rent allocations'!AB93*$C$1","v":0},{"$f":"'rent allocations'!AC93*$C$1","v":0},{"$f":"'rent allocations'!AD93*$C$1","v":0},{"$f":"'rent allocations'!AE93*$C$1","v":0},{"$f":"'rent allocations'!AF93*$C$1","v":0},{"$f":"'rent allocations'!AG93*$C$1","v":0},{"$f":"'rent allocations'!AH93*$C$1","v":0},{"$f":"'rent allocations'!AI93*$C$1","v":0},{"$f":"'rent allocations'!AJ93*$C$1","v":0},{"$f":"'rent allocations'!AK93*$C$1","v":0},{"$f":"'rent allocations'!AL93*$C$1","v":0}]
[null,"411","Freight Mobility Strategic Investment Board",{"$f":"'rent allocations'!D94*$C$1","v":0},{"$f":"'rent allocations'!E94*$C$1","v":0},{"$f":"'rent allocations'!F94*$C$1","v":0},{"$f":"'rent allocations'!G94*$C$1","v":0},{"$f":"'rent allocations'!H94*$C$1","v":0},{"$f":"'rent allocations'!I94*$C$1","v":0},{"$f":"'rent allocations'!J94*$C$1","v":0},{"$f":"'rent allocations'!K94*$C$1","v":0},{"$f":"'rent allocations'!L94*$C$1","v":0},{"$f":"'rent allocations'!M94*$C$1","v":0},{"$f":"'rent allocations'!N94*$C$1","v":0},{"$f":"'rent allocations'!O94*$C$1","v":0},{"$f":"'rent allocations'!P94*$C$1","v":0},{"$f":"'rent allocations'!Q94*$C$1","v":0},{"$f":"'rent allocations'!R94*$C$1","v":0},{"$f":"'rent allocations'!S94*$C$1","v":0},{"$f":"'rent allocations'!T94*$C$1","v":0},{"$f":"'rent allocations'!U94*$C$1","v":0},{"$f":"'rent allocations'!V94*$C$1","v":0},{"$f":"'rent allocations'!W94*$C$1","v":0},{"$f":"'rent allocations'!X94*$C$1","v":0},{"$f":"'rent allocations'!Y94*$C$1","v":0},{"$f":"'rent allocations'!Z94*$C$1","v":0},{"$f":"'rent allocations'!AA94*$C$1","v":0},{"$f":"'rent allocations'!AB94*$C$1","v":0},{"$f":"'rent allocations'!AC94*$C$1","v":0},{"$f":"'rent allocations'!AD94*$C$1","v":0},{"$f":"'rent allocations'!AE94*$C$1","v":0},{"$f":"'rent allocations'!AF94*$C$1","v":0},{"$f":"'rent allocations'!AG94*$C$1","v":0},{"$f":"'rent allocations'!AH94*$C$1","v":0},{"$f":"'rent allocations'!AI94*$C$1","v":0},{"$f":"'rent allocations'!AJ94*$C$1","v":0},{"$f":"'rent allocations'!AK94*$C$1","v":0},{"$f":"'rent allocations'!AL94*$C$1","v":0}]
[null,"460","Columbia River Gorge Commission",{"$f":"'rent allocations'!D95*$C$1","v":0},{"$f":"'rent allocations'!E95*$C$1","v":0},{"$f":"'rent allocations'!F95*$C$1","v":0},{"$f":"'rent allocations'!G95*$C$1","v":0},{"$f":"'rent allocations'!H95*$C$1","v":0},{"$f":"'rent allocations'!I95*$C$1","v":0},{"$f":"'rent allocations'!J95*$C$1","v":0},{"$f":"'rent allocations'!K95*$C$1","v":0},{"$f":"'rent allocations'!L95*$C$1","v":0},{"$f":"'rent allocations'!M95*$C$1","v":0},{"$f":"'rent allocations'!N95*$C$1","v":0},{"$f":"'rent allocations'!O95*$C$1","v":0},{"$f":"'rent allocations'!P95*$C$1","v":0},{"$f":"'rent allocations'!Q95*$C$1","v":0},{"$f":"'rent allocations'!R95*$C$1","v":0},{"$f":"'rent allocations'!S95*$C$1","v":0},{"$f":"'rent allocations'!T95*$C$1","v":0},{"$f":"'rent allocations'!U95*$C$1","v":0},{"$f":"'rent allocations'!V95*$C$1","v":0},{"$f":"'rent allocations'!W95*$C$1","v":0},{"$f":"'rent allocations'!X95*$C$1","v":0},{"$f":"'rent allocations'!Y95*$C$1","v":0},{"$f":"'rent allocations'!Z95*$C$1","v":0},{"$f":"'rent allocations'!AA95*$C$1","v":0},{"$f":"'rent allocations'!AB95*$C$1","v":0},{"$f":"'rent allocations'!AC95*$C$1","v":0},{"$f":"'rent allocations'!AD95*$C$1","v":0},{"$f":"'rent allocations'!AE95*$C$1","v":0},{"$f":"'rent allocations'!AF95*$C$1","v":0},{"$f":"'rent allocations'!AG95*$C$1","v":0},{"$f":"'rent allocations'!AH95*$C$1","v":0},{"$f":"'rent allocations'!AI95*$C$1","v":0},{"$f":"'rent allocations'!AJ95*$C$1","v":0},{"$f":"'rent allocations'!AK95*$C$1","v":0},{"$f":"'rent allocations'!AL95*$C$1","v":0}]
[null,"461","Department of Ecology",{"$f":"'rent allocations'!D96*$C$1","v":0},{"$f":"'rent allocations'!E96*$C$1","v":0},{"$f":"'rent allocations'!F96*$C$1","v":0},{"$f":"'rent allocations'!G96*$C$1","v":0},{"$f":"'rent allocations'!H96*$C$1","v":0},{"$f":"'rent allocations'!I96*$C$1","v":0},{"$f":"'rent allocations'!J96*$C$1","v":0},{"$f":"'rent allocations'!K96*$C$1","v":0},{"$f":"'rent allocations'!L96*$C$1","v":0},{"$f":"'rent allocations'!M96*$C$1","v":0},{"$f":"'rent allocations'!N96*$C$1","v":0},{"$f":"'rent allocations'!O96*$C$1","v":0},{"$f":"'rent allocations'!P96*$C$1","v":0},{"$f":"'rent allocations'!Q96*$C$1","v":0},{"$f":"'rent allocations'!R96*$C$1","v":0},{"$f":"'rent allocations'!S96*$C$1","v":0},{"$f":"'rent allocations'!T96*$C$1","v":0},{"$f":"'rent allocations'!U96*$C$1","v":0},{"$f":"'rent allocations'!V96*$C$1","v":0},{"$f":"'rent allocations'!W96*$C$1","v":0},{"$f":"'rent allocations'!X96*$C$1","v":0},{"$f":"'rent allocations'!Y96*$C$1","v":0},{"$f":"'rent allocations'!Z96*$C$1","v":0},{"$f":"'rent allocations'!AA96*$C$1","v":0},{"$f":"'rent allocations'!AB96*$C$1","v":0},{"$f":"'rent allocations'!AC96*$C$1","v":0},{"$f":"'rent allocations'!AD96*$C$1","v":0},{"$f":"'rent allocations'!AE96*$C$1","v":0},{"$f":"'rent allocations'!AF96*$C$1","v":0},{"$f":"'rent allocations'!AG96*$C$1","v":0},{"$f":"'rent allocations'!AH96*$C$1","v":0},{"$f":"'rent allocations'!AI96*$C$1","v":0},{"$f":"'rent allocations'!AJ96*$C$1","v":0},{"$f":"'rent allocations'!AK96*$C$1","v":0},{"$f":"'rent allocations'!AL96*$C$1","v":0}]
[null,"462","Pollution Liability Insurance Program",{"$f":"'rent allocations'!D97*$C$1","v":0},{"$f":"'rent allocations'!E97*$C$1","v":0},{"$f":"'rent allocations'!F97*$C$1","v":0},{"$f":"'rent allocations'!G97*$C$1","v":0},{"$f":"'rent allocations'!H97*$C$1","v":0},{"$f":"'rent allocations'!I97*$C$1","v":0},{"$f":"'rent allocations'!J97*$C$1","v":0},{"$f":"'rent allocations'!K97*$C$1","v":0},{"$f":"'rent allocations'!L97*$C$1","v":0},{"$f":"'rent allocations'!M97*$C$1","v":0},{"$f":"'rent allocations'!N97*$C$1","v":0},{"$f":"'rent allocations'!O97*$C$1","v":0},{"$f":"'rent allocations'!P97*$C$1","v":0},{"$f":"'rent allocations'!Q97*$C$1","v":0},{"$f":"'rent allocations'!R97*$C$1","v":0},{"$f":"'rent allocations'!S97*$C$1","v":0},{"$f":"'rent allocations'!T97*$C$1","v":0},{"$f":"'rent allocations'!U97*$C$1","v":0},{"$f":"'rent allocations'!V97*$C$1","v":0},{"$f":"'rent allocations'!W97*$C$1","v":0},{"$f":"'rent allocations'!X97*$C$1","v":0},{"$f":"'rent allocations'!Y97*$C$1","v":0},{"$f":"'rent allocations'!Z97*$C$1","v":0},{"$f":"'rent allocations'!AA97*$C$1","v":0},{"$f":"'rent allocations'!AB97*$C$1","v":0},{"$f":"'rent allocations'!AC97*$C$1","v":0},{"$f":"'rent allocations'!AD97*$C$1","v":0},{"$f":"'rent allocations'!AE97*$C$1","v":0},{"$f":"'rent allocations'!AF97*$C$1","v":0},{"$f":"'rent allocations'!AG97*$C$1","v":0},{"$f":"'rent allocations'!AH97*$C$1","v":0},{"$f":"'rent allocations'!AI97*$C$1","v":0},{"$f":"'rent allocations'!AJ97*$C$1","v":0},{"$f":"'rent allocations'!AK97*$C$1","v":0},{"$f":"'rent allocations'!AL97*$C$1","v":0}]
[null,"465","State Parks and Recreation Commission",{"$f":"'rent allocations'!D98*$C$1","v":0},{"$f":"'rent allocations'!E98*$C$1","v":0},{"$f":"'rent allocations'!F98*$C$1","v":0},{"$f":"'rent allocations'!G98*$C$1","v":0},{"$f":"'rent allocations'!H98*$C$1","v":0},{"$f":"'rent allocations'!I98*$C$1","v":0},{"$f":"'rent allocations'!J98*$C$1","v":0},{"$f":"'rent allocations'!K98*$C$1","v":0},{"$f":"'rent allocations'!L98*$C$1","v":0},{"$f":"'rent allocations'!M98*$C$1","v":0},{"$f":"'rent allocations'!N98*$C$1","v":0},{"$f":"'rent allocations'!O98*$C$1","v":0},{"$f":"'rent allocations'!P98*$C$1","v":0},{"$f":"'rent allocations'!Q98*$C$1","v":0},{"$f":"'rent allocations'!R98*$C$1","v":0},{"$f":"'rent allocations'!S98*$C$1","v":0},{"$f":"'rent allocations'!T98*$C$1","v":0},{"$f":"'rent allocations'!U98*$C$1","v":0},{"$f":"'rent allocations'!V98*$C$1","v":0},{"$f":"'rent allocations'!W98*$C$1","v":0},{"$f":"'rent allocations'!X98*$C$1","v":0},{"$f":"'rent allocations'!Y98*$C$1","v":0},{"$f":"'rent allocations'!Z98*$C$1","v":0},{"$f":"'rent allocations'!AA98*$C$1","v":0},{"$f":"'rent allocations'!AB98*$C$1","v":0},{"$f":"'rent allocations'!AC98*$C$1","v":0},{"$f":"'rent allocations'!AD98*$C$1","v":0},{"$f":"'rent allocations'!AE98*$C$1","v":0},{"$f":"'rent allocations'!AF98*$C$1","v":0},{"$f":"'rent allocations'!AG98*$C$1","v":0},{"$f":"'rent allocations'!AH98*$C$1","v":0},{"$f":"'rent allocations'!AI98*$C$1","v":0},{"$f":"'rent allocations'!AJ98*$C$1","v":0},{"$f":"'rent allocations'!AK98*$C$1","v":0},{"$f":"'rent allocations'!AL98*$C$1","v":0}]
[null,"467","Recreation and Conservation Funding Board",{"$f":"'rent allocations'!D99*$C$1","v":38105.274496887658},{"$f":"'rent allocations'!E99*$C$1","v":0},{"$f":"'rent allocations'!F99*$C$1","v":0},{"$f":"'rent allocations'!G99*$C$1","v":0},{"$f":"'rent allocations'!H99*$C$1","v":0},{"$f":"'rent allocations'!I99*$C$1","v":0},{"$f":"'rent allocations'!J99*$C$1","v":0},{"$f":"'rent allocations'!K99*$C$1","v":0},{"$f":"'rent allocations'!L99*$C$1","v":38105.274496887658},{"$f":"'rent allocations'!M99*$C$1","v":0},{"$f":"'rent allocations'!N99*$C$1","v":0},{"$f":"'rent allocations'!O99*$C$1","v":0},{"$f":"'rent allocations'!P99*$C$1","v":0},{"$f":"'rent allocations'!Q99*$C$1","v":0},{"$f":"'rent allocations'!R99*$C$1","v":0},{"$f":"'rent allocations'!S99*$C$1","v":0},{"$f":"'rent allocations'!T99*$C$1","v":0},{"$f":"'rent allocations'!U99*$C$1","v":0},{"$f":"'rent allocations'!V99*$C$1","v":0},{"$f":"'rent allocations'!W99*$C$1","v":0},{"$f":"'rent allocations'!X99*$C$1","v":0},{"$f":"'rent allocations'!Y99*$C$1","v":0},{"$f":"'rent allocations'!Z99*$C$1","v":0},{"$f":"'rent allocations'!AA99*$C$1","v":0},{"$f":"'rent allocations'!AB99*$C$1","v":0},{"$f":"'rent allocations'!AC99*$C$1","v":0},{"$f":"'rent allocations'!AD99*$C$1","v":0},{"$f":"'rent allocations'!AE99*$C$1","v":0},{"$f":"'rent allocations'!AF99*$C$1","v":0},{"$f":"'rent allocations'!AG99*$C$1","v":0},{"$f":"'rent allocations'!AH99*$C$1","v":0},{"$f":"'rent allocations'!AI99*$C$1","v":0},{"$f":"'rent allocations'!AJ99*$C$1","v":0},{"$f":"'rent allocations'!AK99*$C$1","v":0},{"$f":"'rent allocations'!AL99*$C$1","v":0}]
[null,"468","Environmental and Land Use Hearings Office",{"$f":"'rent allocations'!D100*$C$1","v":0},{"$f":"'rent allocations'!E100*$C$1","v":0},{"$f":"'rent allocations'!F100*$C$1","v":0},{"$f":"'rent allocations'!G100*$C$1","v":0},{"$f":"'rent allocations'!H100*$C$1","v":0},{"$f":"'rent allocations'!I100*$C$1","v":0},{"$f":"'rent allocations'!J100*$C$1","v":0},{"$f":"'rent allocations'!K100*$C$1","v":0},{"$f":"'rent allocations'!L100*$C$1","v":0},{"$f":"'rent allocations'!M100*$C$1","v":0},{"$f":"'rent allocations'!N100*$C$1","v":0},{"$f":"'rent allocations'!O100*$C$1","v":0},{"$f":"'rent allocations'!P100*$C$1","v":0},{"$f":"'rent allocations'!Q100*$C$1","v":0},{"$f":"'rent allocations'!R100*$C$1","v":0},{"$f":"'rent allocations'!S100*$C$1","v":0},{"$f":"'rent allocations'!T100*$C$1","v":0},{"$f":"'rent allocations'!U100*$C$1","v":0},{"$f":"'rent allocations'!V100*$C$1","v":0},{"$f":"'rent allocations'!W100*$C$1","v":0},{"$f":"'rent allocations'!X100*$C$1","v":0},{"$f":"'rent allocations'!Y100*$C$1","v":0},{"$f":"'rent allocations'!Z100*$C$1","v":0},{"$f":"'rent allocations'!AA100*$C$1","v":0},{"$f":"'rent allocations'!AB100*$C$1","v":0},{"$f":"'rent allocations'!AC100*$C$1","v":0},{"$f":"'rent allocations'!AD100*$C$1","v":0},{"$f":"'rent allocations'!AE100*$C$1","v":0},{"$f":"'rent allocations'!AF100*$C$1","v":0},{"$f":"'rent allocations'!AG100*$C$1","v":0},{"$f":"'rent allocations'!AH100*$C$1","v":0},{"$f":"'rent allocations'!AI100*$C$1","v":0},{"$f":"'rent allocations'!AJ100*$C$1","v":0},{"$f":"'rent allocations'!AK100*$C$1","v":0},{"$f":"'rent allocations'!AL100*$C$1","v":0}]
[null,"471","State Conservation Commission",{"$f":"'rent allocations'!D101*$C$1","v":0},{"$f":"'rent allocations'!E101*$C$1","v":0},{"$f":"'rent allocations'!F101*$C$1","v":0},{"$f":"'rent allocations'!G101*$C$1","v":0},{"$f":"'rent allocations'!H101*$C$1","v":0},{"$f":"'rent allocations'!I101*$C$1","v":0},{"$f":"'rent allocations'!J101*$C$1","v":0},{"$f":"'rent allocations'!K101*$C$1","v":0},{"$f":"'rent allocations'!L101*$C$1","v":0},{"$f":"'rent allocations'!M101*$C$1","v":0},{"$f":"'rent allocations'!N101*$C$1","v":0},{"$f":"'rent allocations'!O101*$C$1","v":0},{"$f":"'rent allocations'!P101*$C$1","v":0},{"$f":"'rent allocations'!Q101*$C$1","v":0},{"$f":"'rent allocations'!R101*$C$1","v":0},{"$f":"'rent allocations'!S101*$C$1","v":0},{"$f":"'rent allocations'!T101*$C$1","v":0},{"$f":"'rent allocations'!U101*$C$1","v":0},{"$f":"'rent allocations'!V101*$C$1","v":0},{"$f":"'rent allocations'!W101*$C$1","v":0},{"$f":"'rent allocations'!X101*$C$1","v":0},{"$f":"'rent allocations'!Y101*$C$1","v":0},{"$f":"'rent allocations'!Z101*$C$1","v":0},{"$f":"'rent allocations'!AA101*$C$1","v":0},{"$f":"'rent allocations'!AB101*$C$1","v":0},{"$f":"'rent allocations'!AC101*$C$1","v":0},{"$f":"'rent allocations'!AD101*$C$1","v":0},{"$f":"'rent allocations'!AE101*$C$1","v":0},{"$f":"'rent allocations'!AF101*$C$1","v":0},{"$f":"'rent allocations'!AG101*$C$1","v":0},{"$f":"'rent allocations'!AH101*$C$1","v":0},{"$f":"'rent allocations'!AI101*$C$1","v":0},{"$f":"'rent allocations'!AJ101*$C$1","v":0},{"$f":"'rent allocations'!AK101*$C$1","v":0},{"$f":"'rent allocations'!AL101*$C$1","v":0}]
[null,"477","Department of Fish and Wildlife",{"$f":"'rent allocations'!D102*$C$1","v":453795.9406078374},{"$f":"'rent allocations'!E102*$C$1","v":0},{"$f":"'rent allocations'!F102*$C$1","v":0},{"$f":"'rent allocations'!G102*$C$1","v":0},{"$f":"'rent allocations'!H102*$C$1","v":0},{"$f":"'rent allocations'!I102*$C$1","v":0},{"$f":"'rent allocations'!J102*$C$1","v":0},{"$f":"'rent allocations'!K102*$C$1","v":0},{"$f":"'rent allocations'!L102*$C$1","v":453795.9406078374},{"$f":"'rent allocations'!M102*$C$1","v":0},{"$f":"'rent allocations'!N102*$C$1","v":0},{"$f":"'rent allocations'!O102*$C$1","v":0},{"$f":"'rent allocations'!P102*$C$1","v":0},{"$f":"'rent allocations'!Q102*$C$1","v":0},{"$f":"'rent allocations'!R102*$C$1","v":0},{"$f":"'rent allocations'!S102*$C$1","v":0},{"$f":"'rent allocations'!T102*$C$1","v":0},{"$f":"'rent allocations'!U102*$C$1","v":0},{"$f":"'rent allocations'!V102*$C$1","v":0},{"$f":"'rent allocations'!W102*$C$1","v":0},{"$f":"'rent allocations'!X102*$C$1","v":0},{"$f":"'rent allocations'!Y102*$C$1","v":0},{"$f":"'rent allocations'!Z102*$C$1","v":0},{"$f":"'rent allocations'!AA102*$C$1","v":0},{"$f":"'rent allocations'!AB102*$C$1","v":0},{"$f":"'rent allocations'!AC102*$C$1","v":0},{"$f":"'rent allocations'!AD102*$C$1","v":0},{"$f":"'rent allocations'!AE102*$C$1","v":0},{"$f":"'rent allocations'!AF102*$C$1","v":0},{"$f":"'rent allocations'!AG102*$C$1","v":0},{"$f":"'rent allocations'!AH102*$C$1","v":0},{"$f":"'rent allocations'!AI102*$C$1","v":0},{"$f":"'rent allocations'!AJ102*$C$1","v":0},{"$f":"'rent allocations'!AK102*$C$1","v":0},{"$f":"'rent allocations'!AL102*$C$1","v":0}]
[null,"478","Puget Sound Partnership",{"$f":"'rent allocations'!D103*$C$1","v":12374.203547027029},{"$f":"'rent allocations'!E103*$C$1","v":0},{"$f":"'rent allocations'!F103*$C$1","v":0},{"$f":"'rent allocations'!G103*$C$1","v":0},{"$f":"'rent allocations'!H103*$C$1","v":0},{"$f":"'rent allocations'!I103*$C$1","v":0},{"$f":"'rent allocations'!J103*$C$1","v":0},{"$f":"'rent allocations'!K103*$C$1","v":0},{"$f":"'rent allocations'!L103*$C$1","v":0},{"$f":"'rent allocations'!M103*$C$1","v":0},{"$f":"'rent allocations'!N103*$C$1","v":0},{"$f":"'rent allocations'!O103*$C$1","v":0},{"$f":"'rent allocations'!P103*$C$1","v":0},{"$f":"'rent allocations'!Q103*$C$1","v":0},{"$f":"'rent allocations'!R103*$C$1","v":0},{"$f":"'rent allocations'!S103*$C$1","v":0},{"$f":"'rent allocations'!T103*$C$1","v":0},{"$f":"'rent allocations'!U103*$C$1","v":0},{"$f":"'rent allocations'!V103*$C$1","v":0},{"$f":"'rent allocations'!W103*$C$1","v":0},{"$f":"'rent allocations'!X103*$C$1","v":12374.203547027029},{"$f":"'rent allocations'!Y103*$C$1","v":0},{"$f":"'rent allocations'!Z103*$C$1","v":0},{"$f":"'rent allocations'!AA103*$C$1","v":0},{"$f":"'rent allocations'!AB103*$C$1","v":0},{"$f":"'rent allocations'!AC103*$C$1","v":0},{"$f":"'rent allocations'!AD103*$C$1","v":0},{"$f":"'rent allocations'!AE103*$C$1","v":0},{"$f":"'rent allocations'!AF103*$C$1","v":0},{"$f":"'rent allocations'!AG103*$C$1","v":0},{"$f":"'rent allocations'!AH103*$C$1","v":0},{"$f":"'rent allocations'!AI103*$C$1","v":0},{"$f":"'rent allocations'!AJ103*$C$1","v":0},{"$f":"'rent allocations'!AK103*$C$1","v":0},{"$f":"'rent allocations'!AL103*$C$1","v":0}]
[null,"490","Department of Natural Resources",{"$f":"'rent allocations'!D104*$C$1","v":491451.20379163523},{"$f":"'rent allocations'!E104*$C$1","v":0},{"$f":"'rent allocations'!F104*$C$1","v":0},{"$f":"'rent allocations'!G104*$C$1","v":0},{"$f":"'rent allocations'!H104*$C$1","v":0},{"$f":"'rent allocations'!I104*$C$1","v":0},{"$f":"'rent allocations'!J104*$C$1","v":0},{"$f":"'rent allocations'!K104*$C$1","v":0},{"$f":"'rent allocations'!L104*$C$1","v":491451.20379163523},{"$f":"'rent allocations'!M104*$C$1","v":0},{"$f":"'rent allocations'!N104*$C$1","v":0},{"$f":"'rent allocations'!O104*$C$1","v":0},{"$f":"'rent allocations'!P104*$C$1","v":0},{"$f":"'rent allocations'!Q104*$C$1","v":0},{"$f":"'rent allocations'!R104*$C$1","v":0},{"$f":"'rent allocations'!S104*$C$1","v":0},{"$f":"'rent allocations'!T104*$C$1","v":0},{"$f":"'rent allocations'!U104*$C$1","v":0},{"$f":"'rent allocations'!V104*$C$1","v":0},{"$f":"'rent allocations'!W104*$C$1","v":0},{"$f":"'rent allocations'!X104*$C$1","v":0},{"$f":"'rent allocations'!Y104*$C$1","v":0},{"$f":"'rent allocations'!Z104*$C$1","v":0},{"$f":"'rent allocations'!AA104*$C$1","v":0},{"$f":"'rent allocations'!AB104*$C$1","v":0},{"$f":"'rent allocations'!AC104*$C$1","v":0},{"$f":"'rent allocations'!AD104*$C$1","v":0},{"$f":"'rent allocations'!AE104*$C$1","v":0},{"$f":"'rent allocations'!AF104*$C$1","v":0},{"$f":"'rent allocations'!AG104*$C$1","v":0},{"$f":"'rent allocations'!AH104*$C$1","v":0},{"$f":"'rent allocations'!AI104*$C$1","v":0},{"$f":"'rent allocations'!AJ104*$C$1","v":0},{"$f":"'rent allocations'!AK104*$C$1","v":0},{"$f":"'rent allocations'!AL104*$C$1","v":0}]
[null,"495","Department of Agriculture",{"$f":"'rent allocations'!D105*$C$1","v":155228.00308430524},{"$f":"'rent allocations'!E105*$C$1","v":0},{"$f":"'rent allocations'!F105*$C$1","v":0},{"$f":"'rent allocations'!G105*$C$1","v":0},{"$f":"'rent allocations'!H105*$C$1","v":0},{"$f":"'rent allocations'!I105*$C$1","v":0},{"$f":"'rent allocations'!J105*$C$1","v":0},{"$f":"'rent allocations'!K105*$C$1","v":0},{"$f":"'rent allocations'!L105*$C$1","v":155228.00308430524},{"$f":"'rent allocations'!M105*$C$1","v":0},{"$f":"'rent allocations'!N105*$C$1","v":0},{"$f":"'rent allocations'!O105*$C$1","v":0},{"$f":"'rent allocations'!P105*$C$1","v":0},{"$f":"'rent allocations'!Q105*$C$1","v":0},{"$f":"'rent allocations'!R105*$C$1","v":0},{"$f":"'rent allocations'!S105*$C$1","v":0},{"$f":"'rent allocations'!T105*$C$1","v":0},{"$f":"'rent allocations'!U105*$C$1","v":0},{"$f":"'rent allocations'!V105*$C$1","v":0},{"$f":"'rent allocations'!W105*$C$1","v":0},{"$f":"'rent allocations'!X105*$C$1","v":0},{"$f":"'rent allocations'!Y105*$C$1","v":0},{"$f":"'rent allocations'!Z105*$C$1","v":0},{"$f":"'rent allocations'!AA105*$C$1","v":0},{"$f":"'rent allocations'!AB105*$C$1","v":0},{"$f":"'rent allocations'!AC105*$C$1","v":0},{"$f":"'rent allocations'!AD105*$C$1","v":0},{"$f":"'rent allocations'!AE105*$C$1","v":0},{"$f":"'rent allocations'!AF105*$C$1","v":0},{"$f":"'rent allocations'!AG105*$C$1","v":0},{"$f":"'rent allocations'!AH105*$C$1","v":0},{"$f":"'rent allocations'!AI105*$C$1","v":0},{"$f":"'rent allocations'!AJ105*$C$1","v":0},{"$f":"'rent allocations'!AK105*$C$1","v":0},{"$f":"'rent allocations'!AL105*$C$1","v":0}]
[null,"540","Employment Security Department",{"$f":"'rent allocations'!D106*$C$1","v":410062.33694928448},{"$f":"'rent allocations'!E106*$C$1","v":0},{"$f":"'rent allocations'!F106*$C$1","v":0},{"$f":"'rent allocations'!G106*$C$1","v":0},{"$f":"'rent allocations'!H106*$C$1","v":0},{"$f":"'rent allocations'!I106*$C$1","v":0},{"$f":"'rent allocations'!J106*$C$1","v":0},{"$f":"'rent allocations'!K106*$C$1","v":0},{"$f":"'rent allocations'!L106*$C$1","v":0},{"$f":"'rent allocations'!M106*$C$1","v":410062.33694928448},{"$f":"'rent allocations'!N106*$C$1","v":0},{"$f":"'rent allocations'!O106*$C$1","v":0},{"$f":"'rent allocations'!P106*$C$1","v":0},{"$f":"'rent allocations'!Q106*$C$1","v":0},{"$f":"'rent allocations'!R106*$C$1","v":0},{"$f":"'rent allocations'!S106*$C$1","v":0},{"$f":"'rent allocations'!T106*$C$1","v":0},{"$f":"'rent allocations'!U106*$C$1","v":0},{"$f":"'rent allocations'!V106*$C$1","v":0},{"$f":"'rent allocations'!W106*$C$1","v":0},{"$f":"'rent allocations'!X106*$C$1","v":0},{"$f":"'rent allocations'!Y106*$C$1","v":0},{"$f":"'rent allocations'!Z106*$C$1","v":0},{"$f":"'rent allocations'!AA106*$C$1","v":0},{"$f":"'rent allocations'!AB106*$C$1","v":0},{"$f":"'rent allocations'!AC106*$C$1","v":0},{"$f":"'rent allocations'!AD106*$C$1","v":0},{"$f":"'rent allocations'!AE106*$C$1","v":0},{"$f":"'rent allocations'!AF106*$C$1","v":0},{"$f":"'rent allocations'!AG106*$C$1","v":0},{"$f":"'rent allocations'!AH106*$C$1","v":0},{"$f":"'rent allocations'!AI106*$C$1","v":0},{"$f":"'rent allocations'!AJ106*$C$1","v":0},{"$f":"'rent allocations'!AK106*$C$1","v":0},{"$f":"'rent allocations'!AL106*$C$1","v":0}]
[null,"699","Community Colleges",{"$f":"'rent allocations'!D107*$C$1","v":0},{"$f":"'rent allocations'!E107*$C$1","v":0},{"$f":"'rent allocations'!F107*$C$1","v":0},{"$f":"'rent allocations'!G107*$C$1","v":0},{"$f":"'rent allocations'!H107*$C$1","v":0},{"$f":"'rent allocations'!I107*$C$1","v":0},{"$f":"'rent allocations'!J107*$C$1","v":0},{"$f":"'rent allocations'!K107*$C$1","v":0},{"$f":"'rent allocations'!L107*$C$1","v":0},{"$f":"'rent allocations'!M107*$C$1","v":0},{"$f":"'rent allocations'!N107*$C$1","v":0},{"$f":"'rent allocations'!O107*$C$1","v":0},{"$f":"'rent allocations'!P107*$C$1","v":0},{"$f":"'rent allocations'!Q107*$C$1","v":0},{"$f":"'rent allocations'!R107*$C$1","v":0},{"$f":"'rent allocations'!S107*$C$1","v":0},{"$f":"'rent allocations'!T107*$C$1","v":0},{"$f":"'rent allocations'!U107*$C$1","v":0},{"$f":"'rent allocations'!V107*$C$1","v":0},{"$f":"'rent allocations'!W107*$C$1","v":0},{"$f":"'rent allocations'!X107*$C$1","v":0},{"$f":"'rent allocations'!Y107*$C$1","v":0},{"$f":"'rent allocations'!Z107*$C$1","v":0},{"$f":"'rent allocations'!AA107*$C$1","v":0},{"$f":"'rent allocations'!AB107*$C$1","v":0},{"$f":"'rent allocations'!AC107*$C$1","v":0},{"$f":"'rent allocations'!AD107*$C$1","v":0},{"$f":"'rent allocations'!AE107*$C$1","v":0},{"$f":"'rent allocations'!AF107*$C$1","v":0},{"$f":"'rent allocations'!AG107*$C$1","v":0},{"$f":"'rent allocations'!AH107*$C$1","v":0},{"$f":"'rent allocations'!AI107*$C$1","v":0},{"$f":"'rent allocations'!AJ107*$C$1","v":0},{"$f":"'rent allocations'!AK107*$C$1","v":0},{"$f":"'rent allocations'!AL107*$C$1","v":0}]
[null,null,"Building Total",{"$f":"'rent allocations'!D108*$C$1","v":10724000},{"$f":"'rent allocations'!E108*$C$1","v":444851.64869685209},{"$f":"'rent allocations'!F108*$C$1","v":285187.50278875226},{"$f":"'rent allocations'!G108*$C$1","v":1068136.9412448686},{"$f":"'rent allocations'!H108*$C$1","v":233156.09032178327},{"$f":"'rent allocations'!I108*$C$1","v":767405.9411962711},{"$f":"'rent allocations'!J108*$C$1","v":1077788.2053391573},{"$f":"'rent allocations'!K108*$C$1","v":181671.91386095359},{"$f":"'rent allocations'!L108*$C$1","v":1148325.2712785101},{"$f":"'rent allocations'!M108*$C$1","v":410062.33694928448},{"$f":"'rent allocations'!N108*$C$1","v":687122.89221282164},{"$f":"'rent allocations'!O108*$C$1","v":310240.37727130885},{"$f":"'rent allocations'!P108*$C$1","v":417469.37606490776},{"$f":"'rent allocations'!Q108*$C$1","v":314457.68178775156},{"$f":"'rent allocations'!R108*$C$1","v":165132.6280023444},{"$f":"'rent allocations'!S108*$C$1","v":210009.97164259816},{"$f":"'rent allocations'!T108*$C$1","v":45674.197011630924},{"$f":"'rent allocations'!U108*$C$1","v":29974.986863351631},{"$f":"'rent allocations'!V108*$C$1","v":0},{"$f":"'rent allocations'!W108*$C$1","v":0},{"$f":"'rent allocations'!X108*$C$1","v":368754.84723644075},{"$f":"'rent allocations'!Y108*$C$1","v":119377.10527881498},{"$f":"'rent allocations'!Z108*$C$1","v":0},{"$f":"'rent allocations'!AA108*$C$1","v":9924.8072953898027},{"$f":"'rent allocations'!AB108*$C$1","v":0},{"$f":"'rent allocations'!AC108*$C$1","v":0},{"$f":"'rent allocations'!AD108*$C$1","v":0},{"$f":"'rent allocations'!AE108*$C$1","v":0},{"$f":"'rent allocations'!AF108*$C$1","v":665349.50211967784},{"$f":"'rent allocations'!AG108*$C$1","v":451314.25074824516},{"$f":"'rent allocations'!AH108*$C$1","v":703591.66222123359},{"$f":"'rent allocations'!AI108*$C$1","v":39534.002293150297},{"$f":"'rent allocations'!AJ108*$C$1","v":569485.86027389928},{"$f":"'rent allocations'!AK108*$C$1","v":0},{"$f":"'rent allocations'!AL108*$C$1","v":0}]
[]
[null,null,"Building Total RSF",null,77281,78594,142254,23890,177668,250481,47900,354696,92619,184427,55108,97800,53609,22032,95386,47200,14308,10125,0,41341,17000,0,1539,7138,885,2492,872,200592,60581,99000,20708,138355,17600,0]
[null,null,"vacant space",0,0,0,0,0,0,0,0,0,0,0,0,0,0,0,0,0,0,0,0,0,0,0,0,14276,406,872,0,0,0,0,35004,0,0]
[null,null,null,null,{"$f":"E108/E110/2","v":2.878143713829092},{"$f":"F108/F110/2","v":1.814308361889917},3.7543300759376486,4.8797842260733209,2.1596628013943735,2.151437045802191,1.8963665329953401,1.6187457305389827,2.213705270782909,1.862858725167198,2.8148397444228501,2.1343015136242727,2.9328814358386799,3.7475632716581426,1.1008427423447789,0.48383683275032757,1.0474904551073396,0,{"$error":"#DIV/0!"},4.4599168771490865,3.5110913317298524,{"$error":"#DIV/0!"},3.224433819164978,0,0,0,0,1.6584646997878227,3.7248828077140121,3.5534932435415838,0.95455868005481692,2.0580602807050679,0]

{"sheet":"CC Allocations","index":12,"n_rows":111,"n_cols":43,"rows_kept":111,"cut":false,"hidden":true,"merged":[[3,5,3,6],[4,4,5,4],[4,5,4,6]]}
[]
[]
[null,null,null,null,null,null,null,"CC By Building:",3295036.3899590364,3.6363967548430423E-2,3.2046375280960625E-2,8.5304128642872998E-2,1.4408637096514859E-2,9.8770366058120895E-2,0.16702302326358134,2.2384156106772846E-2,0.18510358778290584,5.894043038700976E-2,9.5756498465786266E-2,2.7365590558327428E-2,4.8185997937795683E-2,3.1955937672198675E-2,1.3887625606650295E-2,0,5.0099382732906065E-3,7.9443801169379862E-3,0,0,1.8191920041967968E-2,9.7165173208690683E-3,0,3.0974663905166782E-4,0,0,0,0,0,0,1.0019876546581213E-2,5.0099382732906065E-3,2.6301360380082614E-2,0,0]
[null,null,7259000,null,"Total","PHF Percentage",null,"Parking Percentage","Building Percentage",119820.59635536773,105593.97271704901,281080.20809201349,47476.983562730173,325451.95041108323,550346.93961447524,73756.608930340313,609923.0576566516,194210.86296504454,315521.14701982238,90170.616722408304,158774.61669152786,105295.9775051575,45760.231744039658,0,16507.928921941089,26177.021580977689,0,0,59943.038541509573,32016.278155930864,0,1020.6264473427523,0,0,0,0,0,0,33015.857843882179,16507.928921941089,86663.939557799051,0,0]
[null,null,null,null,"Total",0.45513419931527221,null,6.6496479256132238E-2,0.47836932142859556,"F6121","F6122","F6123","F6124","F6125","F6126","F6127","F6129","F612A","F612C","F612E","F612H","F612J","F612K","F6131","F6132","F6133","F6134","F6137","F613D","F613E","F613F","F613G","F613H","F613i","F613K","F613L","F613M","F6141","F6142","F6143","F6144","F614G","F6146"]
[null,null,"Agency #","Agency",null,"PHF Thurston FTEs","allocation","allocation","allocation","Cherberg","O'Brien","Legislative","Pritchard","HLB","OB2","Archives","NRB","Emp Sec","Transportation","Insurance","Old Cap","TOJ","Newhouse","Modular Bldg","Isabella Bush","1007 Washington","120 E Union Avenue","Conservatory","Capital Court","James Dolliver Building","Undeveloped Properties","1068 WA Street SE (ST Farm)","232 Perry Street","208 11th Avenue SE (Pro Arts)","Press Houses Ayer(White); Carlyon(Blue)","Visitor Center","Helen Sommers","Kelso Building","Yakima Building","Alaska Street","Tacoma Rhodes","Tacoma Rhodes Garage","North Cascades Gateway Center (NCGC)"]
[null,{"$f":"CONCATENATE(C7,\" - \",D7)","v":"011 - House of Representatives"},"011","House of Representatives",3.9303508046223901E-2,339,6.0096009023867447E-3,4.9680321250563193E-3,2.8325875018780835E-2,{"$f":"$I$5*'[2]21-23 Campus Contract Alloctns'!I5/SUM('[2]21-23 Campus Contract Alloctns'!$I$5:$AP$108)","v":0},{"$f":"$I$5*'[2]21-23 Campus Contract Alloctns'!J5/SUM('[2]21-23 Campus Contract Alloctns'!$I$5:$AP$108)","v":1.5330002797399255E-2},{"$f":"$I$5*'[2]21-23 Campus Contract Alloctns'!K5/SUM('[2]21-23 Campus Contract Alloctns'!$I$5:$AP$108)","v":1.2995872221381584E-2},{"$f":"$I$5*'[2]21-23 Campus Contract Alloctns'!L5/SUM('[2]21-23 Campus Contract Alloctns'!$I$5:$AP$108)","v":0},{"$f":"$I$5*'[2]21-23 Campus Contract Alloctns'!M5/SUM('[2]21-23 Campus Contract Alloctns'!$I$5:$AP$108)","v":0},{"$f":"$I$5*'[2]21-23 Campus Contract Alloctns'!N5/SUM('[2]21-23 Campus Contract Alloctns'!$I$5:$AP$108)","v":0},{"$f":"$I$5*'[2]21-23 Campus Contract Alloctns'!O5/SUM('[2]21-23 Campus Contract Alloctns'!$I$5:$AP$108)","v":0},{"$f":"$I$5*'[2]21-23 Campus Contract Alloctns'!P5/SUM('[2]21-23 Campus Contract Alloctns'!$I$5:$AP$108)","v":0},{"$f":"$I$5*'[2]21-23 Campus Contract Alloctns'!Q5/SUM('[2]21-23 Campus Contract Alloctns'!$I$5:$AP$108)","v":0},{"$f":"$I$5*'[2]21-23 Campus Contract Alloctns'!R5/SUM('[2]21-23 Campus Contract Alloctns'!$I$5:$AP$108)","v":0},{"$f":"$I$5*'[2]21-23 Campus Contract Alloctns'!S5/SUM('[2]21-23 Campus Contract Alloctns'!$I$5:$AP$108)","v":0},{"$f":"$I$5*'[2]21-23 Campus Contract Alloctns'!T5/SUM('[2]21-23 Campus Contract Alloctns'!$I$5:$AP$108)","v":0},{"$f":"$I$5*'[2]21-23 Campus Contract Alloctns'!U5/SUM('[2]21-23 Campus Contract Alloctns'!$I$5:$AP$108)","v":0},{"$f":"$I$5*'[2]21-23 Campus Contract Alloctns'!V5/SUM('[2]21-23 Campus Contract Alloctns'!$I$5:$AP$108)","v":0},{"$f":"$I$5*'[2]21-23 Campus Contract Alloctns'!W5/SUM('[2]21-23 Campus Contract Alloctns'!$I$5:$AP$108)","v":0},{"$f":"$I$5*'[2]21-23 Campus Contract Alloctns'!X5/SUM('[2]21-23 Campus Contract Alloctns'!$I$5:$AP$108)","v":0},{"$f":"$I$5*'[2]21-23 Campus Contract Alloctns'!Y5/SUM('[2]21-23 Campus Contract Alloctns'!$I$5:$AP$108)","v":0},{"$f":"$I$5*'[2]21-23 Campus Contract Alloctns'!Z5/SUM('[2]21-23 Campus Contract Alloctns'!$I$5:$AP$108)","v":0},{"$f":"$I$5*'[2]21-23 Campus Contract Alloctns'!AA5/SUM('[2]21-23 Campus Contract Alloctns'!$I$5:$AP$108)","v":0},{"$f":"$I$5*'[2]21-23 Campus Contract Alloctns'!AB5/SUM('[2]21-23 Campus Contract Alloctns'!$I$5:$AP$108)","v":0},{"$f":"$I$5*'[2]21-23 Campus Contract Alloctns'!AC5/SUM('[2]21-23 Campus Contract Alloctns'!$I$5:$AP$108)","v":0},{"$f":"$I$5*'[2]21-23 Campus Contract Alloctns'!AD5/SUM('[2]21-23 Campus Contract Alloctns'!$I$5:$AP$108)","v":0},{"$f":"$I$5*'[2]21-23 Campus Contract Alloctns'!AE5/SUM('[2]21-23 Campus Contract Alloctns'!$I$5:$AP$108)","v":0},{"$f":"$I$5*'[2]21-23 Campus Contract Alloctns'!AF5/SUM('[2]21-23 Campus Contract Alloctns'!$I$5:$AP$108)","v":0},{"$f":"$I$5*'[2]21-23 Campus Contract Alloctns'!AG5/SUM('[2]21-23 Campus Contract Alloctns'!$I$5:$AP$108)","v":0},{"$f":"$I$5*'[2]21-23 Campus Contract Alloctns'!AH5/SUM('[2]21-23 Campus Contract Alloctns'!$I$5:$AP$108)","v":0},{"$f":"$I$5*'[2]21-23 Campus Contract Alloctns'!AI5/SUM('[2]21-23 Campus Contract Alloctns'!$I$5:$AP$108)","v":0},{"$f":"$I$5*'[2]21-23 Campus Contract Alloctns'!AJ5/SUM('[2]21-23 Campus Contract Alloctns'!$I$5:$AP$108)","v":0},{"$f":"$I$5*'[2]21-23 Campus Contract Alloctns'!AK5/SUM('[2]21-23 Campus Contract Alloctns'!$I$5:$AP$108)","v":0},{"$f":"$I$5*'[2]21-23 Campus Contract Alloctns'!AL5/SUM('[2]21-23 Campus Contract Alloctns'!$I$5:$AP$108)","v":0},{"$f":"$I$5*'[2]21-23 Campus Contract Alloctns'!AM5/SUM('[2]21-23 Campus Contract Alloctns'!$I$5:$AP$108)","v":0},{"$f":"$I$5*'[2]21-23 Campus Contract Alloctns'!AN5/SUM('[2]21-23 Campus Contract Alloctns'!$I$5:$AP$108)","v":0},{"$f":"$I$5*'[2]21-23 Campus Contract Alloctns'!AO5/SUM('[2]21-23 Campus Contract Alloctns'!$I$5:$AP$108)","v":0},{"$f":"$I$5*'[2]21-23 Campus Contract Alloctns'!AP5/SUM('[2]21-23 Campus Contract Alloctns'!$I$5:$AP$108)","v":0}]
[null,{"$f":"CONCATENATE(C8,\" - \",D8)","v":"012 - Senate"},"012","Senate",4.3499430930582617E-2,222,3.9354908564302573E-3,5.3978400020880599E-3,3.4166100072064297E-2,{"$f":"$I$5*'[2]21-23 Campus Contract Alloctns'!I6/SUM('[2]21-23 Campus Contract Alloctns'!$I$5:$AP$108)","v":1.7395406480594136E-2},{"$f":"$I$5*'[2]21-23 Campus Contract Alloctns'!J6/SUM('[2]21-23 Campus Contract Alloctns'!$I$5:$AP$108)","v":0},{"$f":"$I$5*'[2]21-23 Campus Contract Alloctns'!K6/SUM('[2]21-23 Campus Contract Alloctns'!$I$5:$AP$108)","v":1.012727955376248E-2},{"$f":"$I$5*'[2]21-23 Campus Contract Alloctns'!L6/SUM('[2]21-23 Campus Contract Alloctns'!$I$5:$AP$108)","v":0},{"$f":"$I$5*'[2]21-23 Campus Contract Alloctns'!M6/SUM('[2]21-23 Campus Contract Alloctns'!$I$5:$AP$108)","v":0},{"$f":"$I$5*'[2]21-23 Campus Contract Alloctns'!N6/SUM('[2]21-23 Campus Contract Alloctns'!$I$5:$AP$108)","v":0},{"$f":"$I$5*'[2]21-23 Campus Contract Alloctns'!O6/SUM('[2]21-23 Campus Contract Alloctns'!$I$5:$AP$108)","v":0},{"$f":"$I$5*'[2]21-23 Campus Contract Alloctns'!P6/SUM('[2]21-23 Campus Contract Alloctns'!$I$5:$AP$108)","v":0},{"$f":"$I$5*'[2]21-23 Campus Contract Alloctns'!Q6/SUM('[2]21-23 Campus Contract Alloctns'!$I$5:$AP$108)","v":0},{"$f":"$I$5*'[2]21-23 Campus Contract Alloctns'!R6/SUM('[2]21-23 Campus Contract Alloctns'!$I$5:$AP$108)","v":0},{"$f":"$I$5*'[2]21-23 Campus Contract Alloctns'!S6/SUM('[2]21-23 Campus Contract Alloctns'!$I$5:$AP$108)","v":0},{"$f":"$I$5*'[2]21-23 Campus Contract Alloctns'!T6/SUM('[2]21-23 Campus Contract Alloctns'!$I$5:$AP$108)","v":0},{"$f":"$I$5*'[2]21-23 Campus Contract Alloctns'!U6/SUM('[2]21-23 Campus Contract Alloctns'!$I$5:$AP$108)","v":0},{"$f":"$I$5*'[2]21-23 Campus Contract Alloctns'!V6/SUM('[2]21-23 Campus Contract Alloctns'!$I$5:$AP$108)","v":6.6434140377076905E-3},{"$f":"$I$5*'[2]21-23 Campus Contract Alloctns'!W6/SUM('[2]21-23 Campus Contract Alloctns'!$I$5:$AP$108)","v":0},{"$f":"$I$5*'[2]21-23 Campus Contract Alloctns'!X6/SUM('[2]21-23 Campus Contract Alloctns'!$I$5:$AP$108)","v":0},{"$f":"$I$5*'[2]21-23 Campus Contract Alloctns'!Y6/SUM('[2]21-23 Campus Contract Alloctns'!$I$5:$AP$108)","v":0},{"$f":"$I$5*'[2]21-23 Campus Contract Alloctns'!Z6/SUM('[2]21-23 Campus Contract Alloctns'!$I$5:$AP$108)","v":0},{"$f":"$I$5*'[2]21-23 Campus Contract Alloctns'!AA6/SUM('[2]21-23 Campus Contract Alloctns'!$I$5:$AP$108)","v":0},{"$f":"$I$5*'[2]21-23 Campus Contract Alloctns'!AB6/SUM('[2]21-23 Campus Contract Alloctns'!$I$5:$AP$108)","v":0},{"$f":"$I$5*'[2]21-23 Campus Contract Alloctns'!AC6/SUM('[2]21-23 Campus Contract Alloctns'!$I$5:$AP$108)","v":0},{"$f":"$I$5*'[2]21-23 Campus Contract Alloctns'!AD6/SUM('[2]21-23 Campus Contract Alloctns'!$I$5:$AP$108)","v":0},{"$f":"$I$5*'[2]21-23 Campus Contract Alloctns'!AE6/SUM('[2]21-23 Campus Contract Alloctns'!$I$5:$AP$108)","v":0},{"$f":"$I$5*'[2]21-23 Campus Contract Alloctns'!AF6/SUM('[2]21-23 Campus Contract Alloctns'!$I$5:$AP$108)","v":0},{"$f":"$I$5*'[2]21-23 Campus Contract Alloctns'!AG6/SUM('[2]21-23 Campus Contract Alloctns'!$I$5:$AP$108)","v":0},{"$f":"$I$5*'[2]21-23 Campus Contract Alloctns'!AH6/SUM('[2]21-23 Campus Contract Alloctns'!$I$5:$AP$108)","v":0},{"$f":"$I$5*'[2]21-23 Campus Contract Alloctns'!AI6/SUM('[2]21-23 Campus Contract Alloctns'!$I$5:$AP$108)","v":0},{"$f":"$I$5*'[2]21-23 Campus Contract Alloctns'!AJ6/SUM('[2]21-23 Campus Contract Alloctns'!$I$5:$AP$108)","v":0},{"$f":"$I$5*'[2]21-23 Campus Contract Alloctns'!AK6/SUM('[2]21-23 Campus Contract Alloctns'!$I$5:$AP$108)","v":0},{"$f":"$I$5*'[2]21-23 Campus Contract Alloctns'!AL6/SUM('[2]21-23 Campus Contract Alloctns'!$I$5:$AP$108)","v":0},{"$f":"$I$5*'[2]21-23 Campus Contract Alloctns'!AM6/SUM('[2]21-23 Campus Contract Alloctns'!$I$5:$AP$108)","v":0},{"$f":"$I$5*'[2]21-23 Campus Contract Alloctns'!AN6/SUM('[2]21-23 Campus Contract Alloctns'!$I$5:$AP$108)","v":0},{"$f":"$I$5*'[2]21-23 Campus Contract Alloctns'!AO6/SUM('[2]21-23 Campus Contract Alloctns'!$I$5:$AP$108)","v":0},{"$f":"$I$5*'[2]21-23 Campus Contract Alloctns'!AP6/SUM('[2]21-23 Campus Contract Alloctns'!$I$5:$AP$108)","v":0}]
[null,"013 - Joint Transportation Committee","013","Joint Transportation Committee",7.0909745160905536E-5,4,7.0909745160905536E-5,0,0,{"$f":"$I$5*'[2]21-23 Campus Contract Alloctns'!I7/SUM('[2]21-23 Campus Contract Alloctns'!$I$5:$AP$108)","v":0},{"$f":"$I$5*'[2]21-23 Campus Contract Alloctns'!J7/SUM('[2]21-23 Campus Contract Alloctns'!$I$5:$AP$108)","v":0},{"$f":"$I$5*'[2]21-23 Campus Contract Alloctns'!K7/SUM('[2]21-23 Campus Contract Alloctns'!$I$5:$AP$108)","v":0},{"$f":"$I$5*'[2]21-23 Campus Contract Alloctns'!L7/SUM('[2]21-23 Campus Contract Alloctns'!$I$5:$AP$108)","v":0},{"$f":"$I$5*'[2]21-23 Campus Contract Alloctns'!M7/SUM('[2]21-23 Campus Contract Alloctns'!$I$5:$AP$108)","v":0},{"$f":"$I$5*'[2]21-23 Campus Contract Alloctns'!N7/SUM('[2]21-23 Campus Contract Alloctns'!$I$5:$AP$108)","v":0},{"$f":"$I$5*'[2]21-23 Campus Contract Alloctns'!O7/SUM('[2]21-23 Campus Contract Alloctns'!$I$5:$AP$108)","v":0},{"$f":"$I$5*'[2]21-23 Campus Contract Alloctns'!P7/SUM('[2]21-23 Campus Contract Alloctns'!$I$5:$AP$108)","v":0},{"$f":"$I$5*'[2]21-23 Campus Contract Alloctns'!Q7/SUM('[2]21-23 Campus Contract Alloctns'!$I$5:$AP$108)","v":0},{"$f":"$I$5*'[2]21-23 Campus Contract Alloctns'!R7/SUM('[2]21-23 Campus Contract Alloctns'!$I$5:$AP$108)","v":0},{"$f":"$I$5*'[2]21-23 Campus Contract Alloctns'!S7/SUM('[2]21-23 Campus Contract Alloctns'!$I$5:$AP$108)","v":0},{"$f":"$I$5*'[2]21-23 Campus Contract Alloctns'!T7/SUM('[2]21-23 Campus Contract Alloctns'!$I$5:$AP$108)","v":0},{"$f":"$I$5*'[2]21-23 Campus Contract Alloctns'!U7/SUM('[2]21-23 Campus Contract Alloctns'!$I$5:$AP$108)","v":0},{"$f":"$I$5*'[2]21-23 Campus Contract Alloctns'!V7/SUM('[2]21-23 Campus Contract Alloctns'!$I$5:$AP$108)","v":0},{"$f":"$I$5*'[2]21-23 Campus Contract Alloctns'!W7/SUM('[2]21-23 Campus Contract Alloctns'!$I$5:$AP$108)","v":0},{"$f":"$I$5*'[2]21-23 Campus Contract Alloctns'!X7/SUM('[2]21-23 Campus Contract Alloctns'!$I$5:$AP$108)","v":0},{"$f":"$I$5*'[2]21-23 Campus Contract Alloctns'!Y7/SUM('[2]21-23 Campus Contract Alloctns'!$I$5:$AP$108)","v":0},{"$f":"$I$5*'[2]21-23 Campus Contract Alloctns'!Z7/SUM('[2]21-23 Campus Contract Alloctns'!$I$5:$AP$108)","v":0},{"$f":"$I$5*'[2]21-23 Campus Contract Alloctns'!AA7/SUM('[2]21-23 Campus Contract Alloctns'!$I$5:$AP$108)","v":0},{"$f":"$I$5*'[2]21-23 Campus Contract Alloctns'!AB7/SUM('[2]21-23 Campus Contract Alloctns'!$I$5:$AP$108)","v":0},{"$f":"$I$5*'[2]21-23 Campus Contract Alloctns'!AC7/SUM('[2]21-23 Campus Contract Alloctns'!$I$5:$AP$108)","v":0},{"$f":"$I$5*'[2]21-23 Campus Contract Alloctns'!AD7/SUM('[2]21-23 Campus Contract Alloctns'!$I$5:$AP$108)","v":0},{"$f":"$I$5*'[2]21-23 Campus Contract Alloctns'!AE7/SUM('[2]21-23 Campus Contract Alloctns'!$I$5:$AP$108)","v":0},{"$f":"$I$5*'[2]21-23 Campus Contract Alloctns'!AF7/SUM('[2]21-23 Campus Contract Alloctns'!$I$5:$AP$108)","v":0},{"$f":"$I$5*'[2]21-23 Campus Contract Alloctns'!AG7/SUM('[2]21-23 Campus Contract Alloctns'!$I$5:$AP$108)","v":0},{"$f":"$I$5*'[2]21-23 Campus Contract Alloctns'!AH7/SUM('[2]21-23 Campus Contract Alloctns'!$I$5:$AP$108)","v":0},{"$f":"$I$5*'[2]21-23 Campus Contract Alloctns'!AI7/SUM('[2]21-23 Campus Contract Alloctns'!$I$5:$AP$108)","v":0},{"$f":"$I$5*'[2]21-23 Campus Contract Alloctns'!AJ7/SUM('[2]21-23 Campus Contract Alloctns'!$I$5:$AP$108)","v":0},{"$f":"$I$5*'[2]21-23 Campus Contract Alloctns'!AK7/SUM('[2]21-23 Campus Contract Alloctns'!$I$5:$AP$108)","v":0},{"$f":"$I$5*'[2]21-23 Campus Contract Alloctns'!AL7/SUM('[2]21-23 Campus Contract Alloctns'!$I$5:$AP$108)","v":0},{"$f":"$I$5*'[2]21-23 Campus Contract Alloctns'!AM7/SUM('[2]21-23 Campus Contract Alloctns'!$I$5:$AP$108)","v":0},{"$f":"$I$5*'[2]21-23 Campus Contract Alloctns'!AN7/SUM('[2]21-23 Campus Contract Alloctns'!$I$5:$AP$108)","v":0},{"$f":"$I$5*'[2]21-23 Campus Contract Alloctns'!AO7/SUM('[2]21-23 Campus Contract Alloctns'!$I$5:$AP$108)","v":0},{"$f":"$I$5*'[2]21-23 Campus Contract Alloctns'!AP7/SUM('[2]21-23 Campus Contract Alloctns'!$I$5:$AP$108)","v":0}]
[null,"014 - Joint Legislative Audit and Review Committee","014","Joint Legislative Audit and Review Committee",4.2545847096543324E-4,24,4.2545847096543324E-4,0,0,{"$f":"$I$5*'[2]21-23 Campus Contract Alloctns'!I8/SUM('[2]21-23 Campus Contract Alloctns'!$I$5:$AP$108)","v":0},{"$f":"$I$5*'[2]21-23 Campus Contract Alloctns'!J8/SUM('[2]21-23 Campus Contract Alloctns'!$I$5:$AP$108)","v":0},{"$f":"$I$5*'[2]21-23 Campus Contract Alloctns'!K8/SUM('[2]21-23 Campus Contract Alloctns'!$I$5:$AP$108)","v":0},{"$f":"$I$5*'[2]21-23 Campus Contract Alloctns'!L8/SUM('[2]21-23 Campus Contract Alloctns'!$I$5:$AP$108)","v":0},{"$f":"$I$5*'[2]21-23 Campus Contract Alloctns'!M8/SUM('[2]21-23 Campus Contract Alloctns'!$I$5:$AP$108)","v":0},{"$f":"$I$5*'[2]21-23 Campus Contract Alloctns'!N8/SUM('[2]21-23 Campus Contract Alloctns'!$I$5:$AP$108)","v":0},{"$f":"$I$5*'[2]21-23 Campus Contract Alloctns'!O8/SUM('[2]21-23 Campus Contract Alloctns'!$I$5:$AP$108)","v":0},{"$f":"$I$5*'[2]21-23 Campus Contract Alloctns'!P8/SUM('[2]21-23 Campus Contract Alloctns'!$I$5:$AP$108)","v":0},{"$f":"$I$5*'[2]21-23 Campus Contract Alloctns'!Q8/SUM('[2]21-23 Campus Contract Alloctns'!$I$5:$AP$108)","v":0},{"$f":"$I$5*'[2]21-23 Campus Contract Alloctns'!R8/SUM('[2]21-23 Campus Contract Alloctns'!$I$5:$AP$108)","v":0},{"$f":"$I$5*'[2]21-23 Campus Contract Alloctns'!S8/SUM('[2]21-23 Campus Contract Alloctns'!$I$5:$AP$108)","v":0},{"$f":"$I$5*'[2]21-23 Campus Contract Alloctns'!T8/SUM('[2]21-23 Campus Contract Alloctns'!$I$5:$AP$108)","v":0},{"$f":"$I$5*'[2]21-23 Campus Contract Alloctns'!U8/SUM('[2]21-23 Campus Contract Alloctns'!$I$5:$AP$108)","v":0},{"$f":"$I$5*'[2]21-23 Campus Contract Alloctns'!V8/SUM('[2]21-23 Campus Contract Alloctns'!$I$5:$AP$108)","v":0},{"$f":"$I$5*'[2]21-23 Campus Contract Alloctns'!W8/SUM('[2]21-23 Campus Contract Alloctns'!$I$5:$AP$108)","v":0},{"$f":"$I$5*'[2]21-23 Campus Contract Alloctns'!X8/SUM('[2]21-23 Campus Contract Alloctns'!$I$5:$AP$108)","v":0},{"$f":"$I$5*'[2]21-23 Campus Contract Alloctns'!Y8/SUM('[2]21-23 Campus Contract Alloctns'!$I$5:$AP$108)","v":0},{"$f":"$I$5*'[2]21-23 Campus Contract Alloctns'!Z8/SUM('[2]21-23 Campus Contract Alloctns'!$I$5:$AP$108)","v":0},{"$f":"$I$5*'[2]21-23 Campus Contract Alloctns'!AA8/SUM('[2]21-23 Campus Contract Alloctns'!$I$5:$AP$108)","v":0},{"$f":"$I$5*'[2]21-23 Campus Contract Alloctns'!AB8/SUM('[2]21-23 Campus Contract Alloctns'!$I$5:$AP$108)","v":0},{"$f":"$I$5*'[2]21-23 Campus Contract Alloctns'!AC8/SUM('[2]21-23 Campus Contract Alloctns'!$I$5:$AP$108)","v":0},{"$f":"$I$5*'[2]21-23 Campus Contract Alloctns'!AD8/SUM('[2]21-23 Campus Contract Alloctns'!$I$5:$AP$108)","v":0},{"$f":"$I$5*'[2]21-23 Campus Contract Alloctns'!AE8/SUM('[2]21-23 Campus Contract Alloctns'!$I$5:$AP$108)","v":0},{"$f":"$I$5*'[2]21-23 Campus Contract Alloctns'!AF8/SUM('[2]21-23 Campus Contract Alloctns'!$I$5:$AP$108)","v":0},{"$f":"$I$5*'[2]21-23 Campus Contract Alloctns'!AG8/SUM('[2]21-23 Campus Contract Alloctns'!$I$5:$AP$108)","v":0},{"$f":"$I$5*'[2]21-23 Campus Contract Alloctns'!AH8/SUM('[2]21-23 Campus Contract Alloctns'!$I$5:$AP$108)","v":0},{"$f":"$I$5*'[2]21-23 Campus Contract Alloctns'!AI8/SUM('[2]21-23 Campus Contract Alloctns'!$I$5:$AP$108)","v":0},{"$f":"$I$5*'[2]21-23 Campus Contract Alloctns'!AJ8/SUM('[2]21-23 Campus Contract Alloctns'!$I$5:$AP$108)","v":0},{"$f":"$I$5*'[2]21-23 Campus Contract Alloctns'!AK8/SUM('[2]21-23 Campus Contract Alloctns'!$I$5:$AP$108)","v":0},{"$f":"$I$5*'[2]21-23 Campus Contract Alloctns'!AL8/SUM('[2]21-23 Campus Contract Alloctns'!$I$5:$AP$108)","v":0},{"$f":"$I$5*'[2]21-23 Campus Contract Alloctns'!AM8/SUM('[2]21-23 Campus Contract Alloctns'!$I$5:$AP$108)","v":0},{"$f":"$I$5*'[2]21-23 Campus Contract Alloctns'!AN8/SUM('[2]21-23 Campus Contract Alloctns'!$I$5:$AP$108)","v":0},{"$f":"$I$5*'[2]21-23 Campus Contract Alloctns'!AO8/SUM('[2]21-23 Campus Contract Alloctns'!$I$5:$AP$108)","v":0},{"$f":"$I$5*'[2]21-23 Campus Contract Alloctns'!AP8/SUM('[2]21-23 Campus Contract Alloctns'!$I$5:$AP$108)","v":0}]
[null,"020 - Legislative Evaluation and Accountability Program Committee","020","Legislative Evaluation and Accountability Program Committee",1.7727436290226387E-4,10,1.7727436290226387E-4,0,0,{"$f":"$I$5*'[2]21-23 Campus Contract Alloctns'!I9/SUM('[2]21-23 Campus Contract Alloctns'!$I$5:$AP$108)","v":0},{"$f":"$I$5*'[2]21-23 Campus Contract Alloctns'!J9/SUM('[2]21-23 Campus Contract Alloctns'!$I$5:$AP$108)","v":0},{"$f":"$I$5*'[2]21-23 Campus Contract Alloctns'!K9/SUM('[2]21-23 Campus Contract Alloctns'!$I$5:$AP$108)","v":0},{"$f":"$I$5*'[2]21-23 Campus Contract Alloctns'!L9/SUM('[2]21-23 Campus Contract Alloctns'!$I$5:$AP$108)","v":0},{"$f":"$I$5*'[2]21-23 Campus Contract Alloctns'!M9/SUM('[2]21-23 Campus Contract Alloctns'!$I$5:$AP$108)","v":0},{"$f":"$I$5*'[2]21-23 Campus Contract Alloctns'!N9/SUM('[2]21-23 Campus Contract Alloctns'!$I$5:$AP$108)","v":0},{"$f":"$I$5*'[2]21-23 Campus Contract Alloctns'!O9/SUM('[2]21-23 Campus Contract Alloctns'!$I$5:$AP$108)","v":0},{"$f":"$I$5*'[2]21-23 Campus Contract Alloctns'!P9/SUM('[2]21-23 Campus Contract Alloctns'!$I$5:$AP$108)","v":0},{"$f":"$I$5*'[2]21-23 Campus Contract Alloctns'!Q9/SUM('[2]21-23 Campus Contract Alloctns'!$I$5:$AP$108)","v":0},{"$f":"$I$5*'[2]21-23 Campus Contract Alloctns'!R9/SUM('[2]21-23 Campus Contract Alloctns'!$I$5:$AP$108)","v":0},{"$f":"$I$5*'[2]21-23 Campus Contract Alloctns'!S9/SUM('[2]21-23 Campus Contract Alloctns'!$I$5:$AP$108)","v":0},{"$f":"$I$5*'[2]21-23 Campus Contract Alloctns'!T9/SUM('[2]21-23 Campus Contract Alloctns'!$I$5:$AP$108)","v":0},{"$f":"$I$5*'[2]21-23 Campus Contract Alloctns'!U9/SUM('[2]21-23 Campus Contract Alloctns'!$I$5:$AP$108)","v":0},{"$f":"$I$5*'[2]21-23 Campus Contract Alloctns'!V9/SUM('[2]21-23 Campus Contract Alloctns'!$I$5:$AP$108)","v":0},{"$f":"$I$5*'[2]21-23 Campus Contract Alloctns'!W9/SUM('[2]21-23 Campus Contract Alloctns'!$I$5:$AP$108)","v":0},{"$f":"$I$5*'[2]21-23 Campus Contract Alloctns'!X9/SUM('[2]21-23 Campus Contract Alloctns'!$I$5:$AP$108)","v":0},{"$f":"$I$5*'[2]21-23 Campus Contract Alloctns'!Y9/SUM('[2]21-23 Campus Contract Alloctns'!$I$5:$AP$108)","v":0},{"$f":"$I$5*'[2]21-23 Campus Contract Alloctns'!Z9/SUM('[2]21-23 Campus Contract Alloctns'!$I$5:$AP$108)","v":0},{"$f":"$I$5*'[2]21-23 Campus Contract Alloctns'!AA9/SUM('[2]21-23 Campus Contract Alloctns'!$I$5:$AP$108)","v":0},{"$f":"$I$5*'[2]21-23 Campus Contract Alloctns'!AB9/SUM('[2]21-23 Campus Contract Alloctns'!$I$5:$AP$108)","v":0},{"$f":"$I$5*'[2]21-23 Campus Contract Alloctns'!AC9/SUM('[2]21-23 Campus Contract Alloctns'!$I$5:$AP$108)","v":0},{"$f":"$I$5*'[2]21-23 Campus Contract Alloctns'!AD9/SUM('[2]21-23 Campus Contract Alloctns'!$I$5:$AP$108)","v":0},{"$f":"$I$5*'[2]21-23 Campus Contract Alloctns'!AE9/SUM('[2]21-23 Campus Contract Alloctns'!$I$5:$AP$108)","v":0},{"$f":"$I$5*'[2]21-23 Campus Contract Alloctns'!AF9/SUM('[2]21-23 Campus Contract Alloctns'!$I$5:$AP$108)","v":0},{"$f":"$I$5*'[2]21-23 Campus Contract Alloctns'!AG9/SUM('[2]21-23 Campus Contract Alloctns'!$I$5:$AP$108)","v":0},{"$f":"$I$5*'[2]21-23 Campus Contract Alloctns'!AH9/SUM('[2]21-23 Campus Contract Alloctns'!$I$5:$AP$108)","v":0},{"$f":"$I$5*'[2]21-23 Campus Contract Alloctns'!AI9/SUM('[2]21-23 Campus Contract Alloctns'!$I$5:$AP$108)","v":0},{"$f":"$I$5*'[2]21-23 Campus Contract Alloctns'!AJ9/SUM('[2]21-23 Campus Contract Alloctns'!$I$5:$AP$108)","v":0},{"$f":"$I$5*'[2]21-23 Campus Contract Alloctns'!AK9/SUM('[2]21-23 Campus Contract Alloctns'!$I$5:$AP$108)","v":0},{"$f":"$I$5*'[2]21-23 Campus Contract Alloctns'!AL9/SUM('[2]21-23 Campus Contract Alloctns'!$I$5:$AP$108)","v":0},{"$f":"$I$5*'[2]21-23 Campus Contract Alloctns'!AM9/SUM('[2]21-23 Campus Contract Alloctns'!$I$5:$AP$108)","v":0},{"$f":"$I$5*'[2]21-23 Campus Contract Alloctns'!AN9/SUM('[2]21-23 Campus Contract Alloctns'!$I$5:$AP$108)","v":0},{"$f":"$I$5*'[2]21-23 Campus Contract Alloctns'!AO9/SUM('[2]21-23 Campus Contract Alloctns'!$I$5:$AP$108)","v":0},{"$f":"$I$5*'[2]21-23 Campus Contract Alloctns'!AP9/SUM('[2]21-23 Campus Contract Alloctns'!$I$5:$AP$108)","v":0}]
[null,"035 - Office of the State Actuary","035","Office of the State Actuary",3.0136641693384852E-4,17,3.0136641693384852E-4,0,0,{"$f":"$I$5*'[2]21-23 Campus Contract Alloctns'!I10/SUM('[2]21-23 Campus Contract Alloctns'!$I$5:$AP$108)","v":0},{"$f":"$I$5*'[2]21-23 Campus Contract Alloctns'!J10/SUM('[2]21-23 Campus Contract Alloctns'!$I$5:$AP$108)","v":0},{"$f":"$I$5*'[2]21-23 Campus Contract Alloctns'!K10/SUM('[2]21-23 Campus Contract Alloctns'!$I$5:$AP$108)","v":0},{"$f":"$I$5*'[2]21-23 Campus Contract Alloctns'!L10/SUM('[2]21-23 Campus Contract Alloctns'!$I$5:$AP$108)","v":0},{"$f":"$I$5*'[2]21-23 Campus Contract Alloctns'!M10/SUM('[2]21-23 Campus Contract Alloctns'!$I$5:$AP$108)","v":0},{"$f":"$I$5*'[2]21-23 Campus Contract Alloctns'!N10/SUM('[2]21-23 Campus Contract Alloctns'!$I$5:$AP$108)","v":0},{"$f":"$I$5*'[2]21-23 Campus Contract Alloctns'!O10/SUM('[2]21-23 Campus Contract Alloctns'!$I$5:$AP$108)","v":0},{"$f":"$I$5*'[2]21-23 Campus Contract Alloctns'!P10/SUM('[2]21-23 Campus Contract Alloctns'!$I$5:$AP$108)","v":0},{"$f":"$I$5*'[2]21-23 Campus Contract Alloctns'!Q10/SUM('[2]21-23 Campus Contract Alloctns'!$I$5:$AP$108)","v":0},{"$f":"$I$5*'[2]21-23 Campus Contract Alloctns'!R10/SUM('[2]21-23 Campus Contract Alloctns'!$I$5:$AP$108)","v":0},{"$f":"$I$5*'[2]21-23 Campus Contract Alloctns'!S10/SUM('[2]21-23 Campus Contract Alloctns'!$I$5:$AP$108)","v":0},{"$f":"$I$5*'[2]21-23 Campus Contract Alloctns'!T10/SUM('[2]21-23 Campus Contract Alloctns'!$I$5:$AP$108)","v":0},{"$f":"$I$5*'[2]21-23 Campus Contract Alloctns'!U10/SUM('[2]21-23 Campus Contract Alloctns'!$I$5:$AP$108)","v":0},{"$f":"$I$5*'[2]21-23 Campus Contract Alloctns'!V10/SUM('[2]21-23 Campus Contract Alloctns'!$I$5:$AP$108)","v":0},{"$f":"$I$5*'[2]21-23 Campus Contract Alloctns'!W10/SUM('[2]21-23 Campus Contract Alloctns'!$I$5:$AP$108)","v":0},{"$f":"$I$5*'[2]21-23 Campus Contract Alloctns'!X10/SUM('[2]21-23 Campus Contract Alloctns'!$I$5:$AP$108)","v":0},{"$f":"$I$5*'[2]21-23 Campus Contract Alloctns'!Y10/SUM('[2]21-23 Campus Contract Alloctns'!$I$5:$AP$108)","v":0},{"$f":"$I$5*'[2]21-23 Campus Contract Alloctns'!Z10/SUM('[2]21-23 Campus Contract Alloctns'!$I$5:$AP$108)","v":0},{"$f":"$I$5*'[2]21-23 Campus Contract Alloctns'!AA10/SUM('[2]21-23 Campus Contract Alloctns'!$I$5:$AP$108)","v":0},{"$f":"$I$5*'[2]21-23 Campus Contract Alloctns'!AB10/SUM('[2]21-23 Campus Contract Alloctns'!$I$5:$AP$108)","v":0},{"$f":"$I$5*'[2]21-23 Campus Contract Alloctns'!AC10/SUM('[2]21-23 Campus Contract Alloctns'!$I$5:$AP$108)","v":0},{"$f":"$I$5*'[2]21-23 Campus Contract Alloctns'!AD10/SUM('[2]21-23 Campus Contract Alloctns'!$I$5:$AP$108)","v":0},{"$f":"$I$5*'[2]21-23 Campus Contract Alloctns'!AE10/SUM('[2]21-23 Campus Contract Alloctns'!$I$5:$AP$108)","v":0},{"$f":"$I$5*'[2]21-23 Campus Contract Alloctns'!AF10/SUM('[2]21-23 Campus Contract Alloctns'!$I$5:$AP$108)","v":0},{"$f":"$I$5*'[2]21-23 Campus Contract Alloctns'!AG10/SUM('[2]21-23 Campus Contract Alloctns'!$I$5:$AP$108)","v":0},{"$f":"$I$5*'[2]21-23 Campus Contract Alloctns'!AH10/SUM('[2]21-23 Campus Contract Alloctns'!$I$5:$AP$108)","v":0},{"$f":"$I$5*'[2]21-23 Campus Contract Alloctns'!AI10/SUM('[2]21-23 Campus Contract Alloctns'!$I$5:$AP$108)","v":0},{"$f":"$I$5*'[2]21-23 Campus Contract Alloctns'!AJ10/SUM('[2]21-23 Campus Contract Alloctns'!$I$5:$AP$108)","v":0},{"$f":"$I$5*'[2]21-23 Campus Contract Alloctns'!AK10/SUM('[2]21-23 Campus Contract Alloctns'!$I$5:$AP$108)","v":0},{"$f":"$I$5*'[2]21-23 Campus Contract Alloctns'!AL10/SUM('[2]21-23 Campus Contract Alloctns'!$I$5:$AP$108)","v":0},{"$f":"$I$5*'[2]21-23 Campus Contract Alloctns'!AM10/SUM('[2]21-23 Campus Contract Alloctns'!$I$5:$AP$108)","v":0},{"$f":"$I$5*'[2]21-23 Campus Contract Alloctns'!AN10/SUM('[2]21-23 Campus Contract Alloctns'!$I$5:$AP$108)","v":0},{"$f":"$I$5*'[2]21-23 Campus Contract Alloctns'!AO10/SUM('[2]21-23 Campus Contract Alloctns'!$I$5:$AP$108)","v":0},{"$f":"$I$5*'[2]21-23 Campus Contract Alloctns'!AP10/SUM('[2]21-23 Campus Contract Alloctns'!$I$5:$AP$108)","v":0}]
[null,"037 - Office of Legislative Support Services","037","Office of Legislative Support Services",7.2298538474794508E-3,30,5.3182308870679154E-4,3.5458448144338913E-4,6.3434462773292698E-3,{"$f":"$I$5*'[2]21-23 Campus Contract Alloctns'!I11/SUM('[2]21-23 Campus Contract Alloctns'!$I$5:$AP$108)","v":0},{"$f":"$I$5*'[2]21-23 Campus Contract Alloctns'!J11/SUM('[2]21-23 Campus Contract Alloctns'!$I$5:$AP$108)","v":0},{"$f":"$I$5*'[2]21-23 Campus Contract Alloctns'!K11/SUM('[2]21-23 Campus Contract Alloctns'!$I$5:$AP$108)","v":1.4282722892075513E-3},{"$f":"$I$5*'[2]21-23 Campus Contract Alloctns'!L11/SUM('[2]21-23 Campus Contract Alloctns'!$I$5:$AP$108)","v":1.1148262624112682E-3},{"$f":"$I$5*'[2]21-23 Campus Contract Alloctns'!M11/SUM('[2]21-23 Campus Contract Alloctns'!$I$5:$AP$108)","v":0},{"$f":"$I$5*'[2]21-23 Campus Contract Alloctns'!N11/SUM('[2]21-23 Campus Contract Alloctns'!$I$5:$AP$108)","v":0},{"$f":"$I$5*'[2]21-23 Campus Contract Alloctns'!O11/SUM('[2]21-23 Campus Contract Alloctns'!$I$5:$AP$108)","v":0},{"$f":"$I$5*'[2]21-23 Campus Contract Alloctns'!P11/SUM('[2]21-23 Campus Contract Alloctns'!$I$5:$AP$108)","v":0},{"$f":"$I$5*'[2]21-23 Campus Contract Alloctns'!Q11/SUM('[2]21-23 Campus Contract Alloctns'!$I$5:$AP$108)","v":0},{"$f":"$I$5*'[2]21-23 Campus Contract Alloctns'!R11/SUM('[2]21-23 Campus Contract Alloctns'!$I$5:$AP$108)","v":0},{"$f":"$I$5*'[2]21-23 Campus Contract Alloctns'!S11/SUM('[2]21-23 Campus Contract Alloctns'!$I$5:$AP$108)","v":0},{"$f":"$I$5*'[2]21-23 Campus Contract Alloctns'!T11/SUM('[2]21-23 Campus Contract Alloctns'!$I$5:$AP$108)","v":0},{"$f":"$I$5*'[2]21-23 Campus Contract Alloctns'!U11/SUM('[2]21-23 Campus Contract Alloctns'!$I$5:$AP$108)","v":0},{"$f":"$I$5*'[2]21-23 Campus Contract Alloctns'!V11/SUM('[2]21-23 Campus Contract Alloctns'!$I$5:$AP$108)","v":0},{"$f":"$I$5*'[2]21-23 Campus Contract Alloctns'!W11/SUM('[2]21-23 Campus Contract Alloctns'!$I$5:$AP$108)","v":0},{"$f":"$I$5*'[2]21-23 Campus Contract Alloctns'!X11/SUM('[2]21-23 Campus Contract Alloctns'!$I$5:$AP$108)","v":0},{"$f":"$I$5*'[2]21-23 Campus Contract Alloctns'!Y11/SUM('[2]21-23 Campus Contract Alloctns'!$I$5:$AP$108)","v":3.8003477257104517E-3},{"$f":"$I$5*'[2]21-23 Campus Contract Alloctns'!Z11/SUM('[2]21-23 Campus Contract Alloctns'!$I$5:$AP$108)","v":0},{"$f":"$I$5*'[2]21-23 Campus Contract Alloctns'!AA11/SUM('[2]21-23 Campus Contract Alloctns'!$I$5:$AP$108)","v":0},{"$f":"$I$5*'[2]21-23 Campus Contract Alloctns'!AB11/SUM('[2]21-23 Campus Contract Alloctns'!$I$5:$AP$108)","v":0},{"$f":"$I$5*'[2]21-23 Campus Contract Alloctns'!AC11/SUM('[2]21-23 Campus Contract Alloctns'!$I$5:$AP$108)","v":0},{"$f":"$I$5*'[2]21-23 Campus Contract Alloctns'!AD11/SUM('[2]21-23 Campus Contract Alloctns'!$I$5:$AP$108)","v":0},{"$f":"$I$5*'[2]21-23 Campus Contract Alloctns'!AE11/SUM('[2]21-23 Campus Contract Alloctns'!$I$5:$AP$108)","v":0},{"$f":"$I$5*'[2]21-23 Campus Contract Alloctns'!AF11/SUM('[2]21-23 Campus Contract Alloctns'!$I$5:$AP$108)","v":0},{"$f":"$I$5*'[2]21-23 Campus Contract Alloctns'!AG11/SUM('[2]21-23 Campus Contract Alloctns'!$I$5:$AP$108)","v":0},{"$f":"$I$5*'[2]21-23 Campus Contract Alloctns'!AH11/SUM('[2]21-23 Campus Contract Alloctns'!$I$5:$AP$108)","v":0},{"$f":"$I$5*'[2]21-23 Campus Contract Alloctns'!AI11/SUM('[2]21-23 Campus Contract Alloctns'!$I$5:$AP$108)","v":0},{"$f":"$I$5*'[2]21-23 Campus Contract Alloctns'!AJ11/SUM('[2]21-23 Campus Contract Alloctns'!$I$5:$AP$108)","v":0},{"$f":"$I$5*'[2]21-23 Campus Contract Alloctns'!AK11/SUM('[2]21-23 Campus Contract Alloctns'!$I$5:$AP$108)","v":0},{"$f":"$I$5*'[2]21-23 Campus Contract Alloctns'!AL11/SUM('[2]21-23 Campus Contract Alloctns'!$I$5:$AP$108)","v":0},{"$f":"$I$5*'[2]21-23 Campus Contract Alloctns'!AM11/SUM('[2]21-23 Campus Contract Alloctns'!$I$5:$AP$108)","v":0},{"$f":"$I$5*'[2]21-23 Campus Contract Alloctns'!AN11/SUM('[2]21-23 Campus Contract Alloctns'!$I$5:$AP$108)","v":0},{"$f":"$I$5*'[2]21-23 Campus Contract Alloctns'!AO11/SUM('[2]21-23 Campus Contract Alloctns'!$I$5:$AP$108)","v":0},{"$f":"$I$5*'[2]21-23 Campus Contract Alloctns'!AP11/SUM('[2]21-23 Campus Contract Alloctns'!$I$5:$AP$108)","v":0}]
[null,"038 - Joint Legislative Systems Committee","038","Joint Legislative Systems Committee",3.9430565468028924E-3,59,1.0459187411233568E-3,3.5374242850769866E-4,2.5433953771718367E-3,{"$f":"$I$5*'[2]21-23 Campus Contract Alloctns'!I12/SUM('[2]21-23 Campus Contract Alloctns'!$I$5:$AP$108)","v":0},{"$f":"$I$5*'[2]21-23 Campus Contract Alloctns'!J12/SUM('[2]21-23 Campus Contract Alloctns'!$I$5:$AP$108)","v":0},{"$f":"$I$5*'[2]21-23 Campus Contract Alloctns'!K12/SUM('[2]21-23 Campus Contract Alloctns'!$I$5:$AP$108)","v":3.2788014190886347E-4},{"$f":"$I$5*'[2]21-23 Campus Contract Alloctns'!L12/SUM('[2]21-23 Campus Contract Alloctns'!$I$5:$AP$108)","v":2.2155152352629735E-3},{"$f":"$I$5*'[2]21-23 Campus Contract Alloctns'!M12/SUM('[2]21-23 Campus Contract Alloctns'!$I$5:$AP$108)","v":0},{"$f":"$I$5*'[2]21-23 Campus Contract Alloctns'!N12/SUM('[2]21-23 Campus Contract Alloctns'!$I$5:$AP$108)","v":0},{"$f":"$I$5*'[2]21-23 Campus Contract Alloctns'!O12/SUM('[2]21-23 Campus Contract Alloctns'!$I$5:$AP$108)","v":0},{"$f":"$I$5*'[2]21-23 Campus Contract Alloctns'!P12/SUM('[2]21-23 Campus Contract Alloctns'!$I$5:$AP$108)","v":0},{"$f":"$I$5*'[2]21-23 Campus Contract Alloctns'!Q12/SUM('[2]21-23 Campus Contract Alloctns'!$I$5:$AP$108)","v":0},{"$f":"$I$5*'[2]21-23 Campus Contract Alloctns'!R12/SUM('[2]21-23 Campus Contract Alloctns'!$I$5:$AP$108)","v":0},{"$f":"$I$5*'[2]21-23 Campus Contract Alloctns'!S12/SUM('[2]21-23 Campus Contract Alloctns'!$I$5:$AP$108)","v":0},{"$f":"$I$5*'[2]21-23 Campus Contract Alloctns'!T12/SUM('[2]21-23 Campus Contract Alloctns'!$I$5:$AP$108)","v":0},{"$f":"$I$5*'[2]21-23 Campus Contract Alloctns'!U12/SUM('[2]21-23 Campus Contract Alloctns'!$I$5:$AP$108)","v":0},{"$f":"$I$5*'[2]21-23 Campus Contract Alloctns'!V12/SUM('[2]21-23 Campus Contract Alloctns'!$I$5:$AP$108)","v":0},{"$f":"$I$5*'[2]21-23 Campus Contract Alloctns'!W12/SUM('[2]21-23 Campus Contract Alloctns'!$I$5:$AP$108)","v":0},{"$f":"$I$5*'[2]21-23 Campus Contract Alloctns'!X12/SUM('[2]21-23 Campus Contract Alloctns'!$I$5:$AP$108)","v":0},{"$f":"$I$5*'[2]21-23 Campus Contract Alloctns'!Y12/SUM('[2]21-23 Campus Contract Alloctns'!$I$5:$AP$108)","v":0},{"$f":"$I$5*'[2]21-23 Campus Contract Alloctns'!Z12/SUM('[2]21-23 Campus Contract Alloctns'!$I$5:$AP$108)","v":0},{"$f":"$I$5*'[2]21-23 Campus Contract Alloctns'!AA12/SUM('[2]21-23 Campus Contract Alloctns'!$I$5:$AP$108)","v":0},{"$f":"$I$5*'[2]21-23 Campus Contract Alloctns'!AB12/SUM('[2]21-23 Campus Contract Alloctns'!$I$5:$AP$108)","v":0},{"$f":"$I$5*'[2]21-23 Campus Contract Alloctns'!AC12/SUM('[2]21-23 Campus Contract Alloctns'!$I$5:$AP$108)","v":0},{"$f":"$I$5*'[2]21-23 Campus Contract Alloctns'!AD12/SUM('[2]21-23 Campus Contract Alloctns'!$I$5:$AP$108)","v":0},{"$f":"$I$5*'[2]21-23 Campus Contract Alloctns'!AE12/SUM('[2]21-23 Campus Contract Alloctns'!$I$5:$AP$108)","v":0},{"$f":"$I$5*'[2]21-23 Campus Contract Alloctns'!AF12/SUM('[2]21-23 Campus Contract Alloctns'!$I$5:$AP$108)","v":0},{"$f":"$I$5*'[2]21-23 Campus Contract Alloctns'!AG12/SUM('[2]21-23 Campus Contract Alloctns'!$I$5:$AP$108)","v":0},{"$f":"$I$5*'[2]21-23 Campus Contract Alloctns'!AH12/SUM('[2]21-23 Campus Contract Alloctns'!$I$5:$AP$108)","v":0},{"$f":"$I$5*'[2]21-23 Campus Contract Alloctns'!AI12/SUM('[2]21-23 Campus Contract Alloctns'!$I$5:$AP$108)","v":0},{"$f":"$I$5*'[2]21-23 Campus Contract Alloctns'!AJ12/SUM('[2]21-23 Campus Contract Alloctns'!$I$5:$AP$108)","v":0},{"$f":"$I$5*'[2]21-23 Campus Contract Alloctns'!AK12/SUM('[2]21-23 Campus Contract Alloctns'!$I$5:$AP$108)","v":0},{"$f":"$I$5*'[2]21-23 Campus Contract Alloctns'!AL12/SUM('[2]21-23 Campus Contract Alloctns'!$I$5:$AP$108)","v":0},{"$f":"$I$5*'[2]21-23 Campus Contract Alloctns'!AM12/SUM('[2]21-23 Campus Contract Alloctns'!$I$5:$AP$108)","v":0},{"$f":"$I$5*'[2]21-23 Campus Contract Alloctns'!AN12/SUM('[2]21-23 Campus Contract Alloctns'!$I$5:$AP$108)","v":0},{"$f":"$I$5*'[2]21-23 Campus Contract Alloctns'!AO12/SUM('[2]21-23 Campus Contract Alloctns'!$I$5:$AP$108)","v":0},{"$f":"$I$5*'[2]21-23 Campus Contract Alloctns'!AP12/SUM('[2]21-23 Campus Contract Alloctns'!$I$5:$AP$108)","v":0}]
[null,"040 - Statute Law Committee (Code Revisor)","040","Statute Law Committee (Code Revisor)",4.7133106240620139E-3,37,6.5591514273837621E-4,4.9508702842717691E-4,3.5623084528964614E-3,{"$f":"$I$5*'[2]21-23 Campus Contract Alloctns'!I13/SUM('[2]21-23 Campus Contract Alloctns'!$I$5:$AP$108)","v":0},{"$f":"$I$5*'[2]21-23 Campus Contract Alloctns'!J13/SUM('[2]21-23 Campus Contract Alloctns'!$I$5:$AP$108)","v":0},{"$f":"$I$5*'[2]21-23 Campus Contract Alloctns'!K13/SUM('[2]21-23 Campus Contract Alloctns'!$I$5:$AP$108)","v":0},{"$f":"$I$5*'[2]21-23 Campus Contract Alloctns'!L13/SUM('[2]21-23 Campus Contract Alloctns'!$I$5:$AP$108)","v":3.5623084528964618E-3},{"$f":"$I$5*'[2]21-23 Campus Contract Alloctns'!M13/SUM('[2]21-23 Campus Contract Alloctns'!$I$5:$AP$108)","v":0},{"$f":"$I$5*'[2]21-23 Campus Contract Alloctns'!N13/SUM('[2]21-23 Campus Contract Alloctns'!$I$5:$AP$108)","v":0},{"$f":"$I$5*'[2]21-23 Campus Contract Alloctns'!O13/SUM('[2]21-23 Campus Contract Alloctns'!$I$5:$AP$108)","v":0},{"$f":"$I$5*'[2]21-23 Campus Contract Alloctns'!P13/SUM('[2]21-23 Campus Contract Alloctns'!$I$5:$AP$108)","v":0},{"$f":"$I$5*'[2]21-23 Campus Contract Alloctns'!Q13/SUM('[2]21-23 Campus Contract Alloctns'!$I$5:$AP$108)","v":0},{"$f":"$I$5*'[2]21-23 Campus Contract Alloctns'!R13/SUM('[2]21-23 Campus Contract Alloctns'!$I$5:$AP$108)","v":0},{"$f":"$I$5*'[2]21-23 Campus Contract Alloctns'!S13/SUM('[2]21-23 Campus Contract Alloctns'!$I$5:$AP$108)","v":0},{"$f":"$I$5*'[2]21-23 Campus Contract Alloctns'!T13/SUM('[2]21-23 Campus Contract Alloctns'!$I$5:$AP$108)","v":0},{"$f":"$I$5*'[2]21-23 Campus Contract Alloctns'!U13/SUM('[2]21-23 Campus Contract Alloctns'!$I$5:$AP$108)","v":0},{"$f":"$I$5*'[2]21-23 Campus Contract Alloctns'!V13/SUM('[2]21-23 Campus Contract Alloctns'!$I$5:$AP$108)","v":0},{"$f":"$I$5*'[2]21-23 Campus Contract Alloctns'!W13/SUM('[2]21-23 Campus Contract Alloctns'!$I$5:$AP$108)","v":0},{"$f":"$I$5*'[2]21-23 Campus Contract Alloctns'!X13/SUM('[2]21-23 Campus Contract Alloctns'!$I$5:$AP$108)","v":0},{"$f":"$I$5*'[2]21-23 Campus Contract Alloctns'!Y13/SUM('[2]21-23 Campus Contract Alloctns'!$I$5:$AP$108)","v":0},{"$f":"$I$5*'[2]21-23 Campus Contract Alloctns'!Z13/SUM('[2]21-23 Campus Contract Alloctns'!$I$5:$AP$108)","v":0},{"$f":"$I$5*'[2]21-23 Campus Contract Alloctns'!AA13/SUM('[2]21-23 Campus Contract Alloctns'!$I$5:$AP$108)","v":0},{"$f":"$I$5*'[2]21-23 Campus Contract Alloctns'!AB13/SUM('[2]21-23 Campus Contract Alloctns'!$I$5:$AP$108)","v":0},{"$f":"$I$5*'[2]21-23 Campus Contract Alloctns'!AC13/SUM('[2]21-23 Campus Contract Alloctns'!$I$5:$AP$108)","v":0},{"$f":"$I$5*'[2]21-23 Campus Contract Alloctns'!AD13/SUM('[2]21-23 Campus Contract Alloctns'!$I$5:$AP$108)","v":0},{"$f":"$I$5*'[2]21-23 Campus Contract Alloctns'!AE13/SUM('[2]21-23 Campus Contract Alloctns'!$I$5:$AP$108)","v":0},{"$f":"$I$5*'[2]21-23 Campus Contract Alloctns'!AF13/SUM('[2]21-23 Campus Contract Alloctns'!$I$5:$AP$108)","v":0},{"$f":"$I$5*'[2]21-23 Campus Contract Alloctns'!AG13/SUM('[2]21-23 Campus Contract Alloctns'!$I$5:$AP$108)","v":0},{"$f":"$I$5*'[2]21-23 Campus Contract Alloctns'!AH13/SUM('[2]21-23 Campus Contract Alloctns'!$I$5:$AP$108)","v":0},{"$f":"$I$5*'[2]21-23 Campus Contract Alloctns'!AI13/SUM('[2]21-23 Campus Contract Alloctns'!$I$5:$AP$108)","v":0},{"$f":"$I$5*'[2]21-23 Campus Contract Alloctns'!AJ13/SUM('[2]21-23 Campus Contract Alloctns'!$I$5:$AP$108)","v":0},{"$f":"$I$5*'[2]21-23 Campus Contract Alloctns'!AK13/SUM('[2]21-23 Campus Contract Alloctns'!$I$5:$AP$108)","v":0},{"$f":"$I$5*'[2]21-23 Campus Contract Alloctns'!AL13/SUM('[2]21-23 Campus Contract Alloctns'!$I$5:$AP$108)","v":0},{"$f":"$I$5*'[2]21-23 Campus Contract Alloctns'!AM13/SUM('[2]21-23 Campus Contract Alloctns'!$I$5:$AP$108)","v":0},{"$f":"$I$5*'[2]21-23 Campus Contract Alloctns'!AN13/SUM('[2]21-23 Campus Contract Alloctns'!$I$5:$AP$108)","v":0},{"$f":"$I$5*'[2]21-23 Campus Contract Alloctns'!AO13/SUM('[2]21-23 Campus Contract Alloctns'!$I$5:$AP$108)","v":0},{"$f":"$I$5*'[2]21-23 Campus Contract Alloctns'!AP13/SUM('[2]21-23 Campus Contract Alloctns'!$I$5:$AP$108)","v":0}]
[null,"045 - Supreme Court","045","Supreme Court",1.2120367302180895E-2,61,1.0813736137038096E-3,1.3609179351112323E-3,9.6780757533658536E-3,{"$f":"$I$5*'[2]21-23 Campus Contract Alloctns'!I14/SUM('[2]21-23 Campus Contract Alloctns'!$I$5:$AP$108)","v":0},{"$f":"$I$5*'[2]21-23 Campus Contract Alloctns'!J14/SUM('[2]21-23 Campus Contract Alloctns'!$I$5:$AP$108)","v":0},{"$f":"$I$5*'[2]21-23 Campus Contract Alloctns'!K14/SUM('[2]21-23 Campus Contract Alloctns'!$I$5:$AP$108)","v":0},{"$f":"$I$5*'[2]21-23 Campus Contract Alloctns'!L14/SUM('[2]21-23 Campus Contract Alloctns'!$I$5:$AP$108)","v":0},{"$f":"$I$5*'[2]21-23 Campus Contract Alloctns'!M14/SUM('[2]21-23 Campus Contract Alloctns'!$I$5:$AP$108)","v":0},{"$f":"$I$5*'[2]21-23 Campus Contract Alloctns'!N14/SUM('[2]21-23 Campus Contract Alloctns'!$I$5:$AP$108)","v":0},{"$f":"$I$5*'[2]21-23 Campus Contract Alloctns'!O14/SUM('[2]21-23 Campus Contract Alloctns'!$I$5:$AP$108)","v":0},{"$f":"$I$5*'[2]21-23 Campus Contract Alloctns'!P14/SUM('[2]21-23 Campus Contract Alloctns'!$I$5:$AP$108)","v":0},{"$f":"$I$5*'[2]21-23 Campus Contract Alloctns'!Q14/SUM('[2]21-23 Campus Contract Alloctns'!$I$5:$AP$108)","v":0},{"$f":"$I$5*'[2]21-23 Campus Contract Alloctns'!R14/SUM('[2]21-23 Campus Contract Alloctns'!$I$5:$AP$108)","v":0},{"$f":"$I$5*'[2]21-23 Campus Contract Alloctns'!S14/SUM('[2]21-23 Campus Contract Alloctns'!$I$5:$AP$108)","v":0},{"$f":"$I$5*'[2]21-23 Campus Contract Alloctns'!T14/SUM('[2]21-23 Campus Contract Alloctns'!$I$5:$AP$108)","v":0},{"$f":"$I$5*'[2]21-23 Campus Contract Alloctns'!U14/SUM('[2]21-23 Campus Contract Alloctns'!$I$5:$AP$108)","v":9.6780757533658553E-3},{"$f":"$I$5*'[2]21-23 Campus Contract Alloctns'!V14/SUM('[2]21-23 Campus Contract Alloctns'!$I$5:$AP$108)","v":0},{"$f":"$I$5*'[2]21-23 Campus Contract Alloctns'!W14/SUM('[2]21-23 Campus Contract Alloctns'!$I$5:$AP$108)","v":0},{"$f":"$I$5*'[2]21-23 Campus Contract Alloctns'!X14/SUM('[2]21-23 Campus Contract Alloctns'!$I$5:$AP$108)","v":0},{"$f":"$I$5*'[2]21-23 Campus Contract Alloctns'!Y14/SUM('[2]21-23 Campus Contract Alloctns'!$I$5:$AP$108)","v":0},{"$f":"$I$5*'[2]21-23 Campus Contract Alloctns'!Z14/SUM('[2]21-23 Campus Contract Alloctns'!$I$5:$AP$108)","v":0},{"$f":"$I$5*'[2]21-23 Campus Contract Alloctns'!AA14/SUM('[2]21-23 Campus Contract Alloctns'!$I$5:$AP$108)","v":0},{"$f":"$I$5*'[2]21-23 Campus Contract Alloctns'!AB14/SUM('[2]21-23 Campus Contract Alloctns'!$I$5:$AP$108)","v":0},{"$f":"$I$5*'[2]21-23 Campus Contract Alloctns'!AC14/SUM('[2]21-23 Campus Contract Alloctns'!$I$5:$AP$108)","v":0},{"$f":"$I$5*'[2]21-23 Campus Contract Alloctns'!AD14/SUM('[2]21-23 Campus Contract Alloctns'!$I$5:$AP$108)","v":0},{"$f":"$I$5*'[2]21-23 Campus Contract Alloctns'!AE14/SUM('[2]21-23 Campus Contract Alloctns'!$I$5:$AP$108)","v":0},{"$f":"$I$5*'[2]21-23 Campus Contract Alloctns'!AF14/SUM('[2]21-23 Campus Contract Alloctns'!$I$5:$AP$108)","v":0},{"$f":"$I$5*'[2]21-23 Campus Contract Alloctns'!AG14/SUM('[2]21-23 Campus Contract Alloctns'!$I$5:$AP$108)","v":0},{"$f":"$I$5*'[2]21-23 Campus Contract Alloctns'!AH14/SUM('[2]21-23 Campus Contract Alloctns'!$I$5:$AP$108)","v":0},{"$f":"$I$5*'[2]21-23 Campus Contract Alloctns'!AI14/SUM('[2]21-23 Campus Contract Alloctns'!$I$5:$AP$108)","v":0},{"$f":"$I$5*'[2]21-23 Campus Contract Alloctns'!AJ14/SUM('[2]21-23 Campus Contract Alloctns'!$I$5:$AP$108)","v":0},{"$f":"$I$5*'[2]21-23 Campus Contract Alloctns'!AK14/SUM('[2]21-23 Campus Contract Alloctns'!$I$5:$AP$108)","v":0},{"$f":"$I$5*'[2]21-23 Campus Contract Alloctns'!AL14/SUM('[2]21-23 Campus Contract Alloctns'!$I$5:$AP$108)","v":0},{"$f":"$I$5*'[2]21-23 Campus Contract Alloctns'!AM14/SUM('[2]21-23 Campus Contract Alloctns'!$I$5:$AP$108)","v":0},{"$f":"$I$5*'[2]21-23 Campus Contract Alloctns'!AN14/SUM('[2]21-23 Campus Contract Alloctns'!$I$5:$AP$108)","v":0},{"$f":"$I$5*'[2]21-23 Campus Contract Alloctns'!AO14/SUM('[2]21-23 Campus Contract Alloctns'!$I$5:$AP$108)","v":0},{"$f":"$I$5*'[2]21-23 Campus Contract Alloctns'!AP14/SUM('[2]21-23 Campus Contract Alloctns'!$I$5:$AP$108)","v":0}]
[null,"046 - Law Library","046","Law Library",5.1565279372558035E-3,8,1.4181949032181107E-4,6.1822724583220328E-4,4.3964812011017896E-3,{"$f":"$I$5*'[2]21-23 Campus Contract Alloctns'!I15/SUM('[2]21-23 Campus Contract Alloctns'!$I$5:$AP$108)","v":0},{"$f":"$I$5*'[2]21-23 Campus Contract Alloctns'!J15/SUM('[2]21-23 Campus Contract Alloctns'!$I$5:$AP$108)","v":0},{"$f":"$I$5*'[2]21-23 Campus Contract Alloctns'!K15/SUM('[2]21-23 Campus Contract Alloctns'!$I$5:$AP$108)","v":0},{"$f":"$I$5*'[2]21-23 Campus Contract Alloctns'!L15/SUM('[2]21-23 Campus Contract Alloctns'!$I$5:$AP$108)","v":0},{"$f":"$I$5*'[2]21-23 Campus Contract Alloctns'!M15/SUM('[2]21-23 Campus Contract Alloctns'!$I$5:$AP$108)","v":0},{"$f":"$I$5*'[2]21-23 Campus Contract Alloctns'!N15/SUM('[2]21-23 Campus Contract Alloctns'!$I$5:$AP$108)","v":0},{"$f":"$I$5*'[2]21-23 Campus Contract Alloctns'!O15/SUM('[2]21-23 Campus Contract Alloctns'!$I$5:$AP$108)","v":0},{"$f":"$I$5*'[2]21-23 Campus Contract Alloctns'!P15/SUM('[2]21-23 Campus Contract Alloctns'!$I$5:$AP$108)","v":0},{"$f":"$I$5*'[2]21-23 Campus Contract Alloctns'!Q15/SUM('[2]21-23 Campus Contract Alloctns'!$I$5:$AP$108)","v":0},{"$f":"$I$5*'[2]21-23 Campus Contract Alloctns'!R15/SUM('[2]21-23 Campus Contract Alloctns'!$I$5:$AP$108)","v":0},{"$f":"$I$5*'[2]21-23 Campus Contract Alloctns'!S15/SUM('[2]21-23 Campus Contract Alloctns'!$I$5:$AP$108)","v":0},{"$f":"$I$5*'[2]21-23 Campus Contract Alloctns'!T15/SUM('[2]21-23 Campus Contract Alloctns'!$I$5:$AP$108)","v":0},{"$f":"$I$5*'[2]21-23 Campus Contract Alloctns'!U15/SUM('[2]21-23 Campus Contract Alloctns'!$I$5:$AP$108)","v":4.3964812011017904E-3},{"$f":"$I$5*'[2]21-23 Campus Contract Alloctns'!V15/SUM('[2]21-23 Campus Contract Alloctns'!$I$5:$AP$108)","v":0},{"$f":"$I$5*'[2]21-23 Campus Contract Alloctns'!W15/SUM('[2]21-23 Campus Contract Alloctns'!$I$5:$AP$108)","v":0},{"$f":"$I$5*'[2]21-23 Campus Contract Alloctns'!X15/SUM('[2]21-23 Campus Contract Alloctns'!$I$5:$AP$108)","v":0},{"$f":"$I$5*'[2]21-23 Campus Contract Alloctns'!Y15/SUM('[2]21-23 Campus Contract Alloctns'!$I$5:$AP$108)","v":0},{"$f":"$I$5*'[2]21-23 Campus Contract Alloctns'!Z15/SUM('[2]21-23 Campus Contract Alloctns'!$I$5:$AP$108)","v":0},{"$f":"$I$5*'[2]21-23 Campus Contract Alloctns'!AA15/SUM('[2]21-23 Campus Contract Alloctns'!$I$5:$AP$108)","v":0},{"$f":"$I$5*'[2]21-23 Campus Contract Alloctns'!AB15/SUM('[2]21-23 Campus Contract Alloctns'!$I$5:$AP$108)","v":0},{"$f":"$I$5*'[2]21-23 Campus Contract Alloctns'!AC15/SUM('[2]21-23 Campus Contract Alloctns'!$I$5:$AP$108)","v":0},{"$f":"$I$5*'[2]21-23 Campus Contract Alloctns'!AD15/SUM('[2]21-23 Campus Contract Alloctns'!$I$5:$AP$108)","v":0},{"$f":"$I$5*'[2]21-23 Campus Contract Alloctns'!AE15/SUM('[2]21-23 Campus Contract Alloctns'!$I$5:$AP$108)","v":0},{"$f":"$I$5*'[2]21-23 Campus Contract Alloctns'!AF15/SUM('[2]21-23 Campus Contract Alloctns'!$I$5:$AP$108)","v":0},{"$f":"$I$5*'[2]21-23 Campus Contract Alloctns'!AG15/SUM('[2]21-23 Campus Contract Alloctns'!$I$5:$AP$108)","v":0},{"$f":"$I$5*'[2]21-23 Campus Contract Alloctns'!AH15/SUM('[2]21-23 Campus Contract Alloctns'!$I$5:$AP$108)","v":0},{"$f":"$I$5*'[2]21-23 Campus Contract Alloctns'!AI15/SUM('[2]21-23 Campus Contract Alloctns'!$I$5:$AP$108)","v":0},{"$f":"$I$5*'[2]21-23 Campus Contract Alloctns'!AJ15/SUM('[2]21-23 Campus Contract Alloctns'!$I$5:$AP$108)","v":0},{"$f":"$I$5*'[2]21-23 Campus Contract Alloctns'!AK15/SUM('[2]21-23 Campus Contract Alloctns'!$I$5:$AP$108)","v":0},{"$f":"$I$5*'[2]21-23 Campus Contract Alloctns'!AL15/SUM('[2]21-23 Campus Contract Alloctns'!$I$5:$AP$108)","v":0},{"$f":"$I$5*'[2]21-23 Campus Contract Alloctns'!AM15/SUM('[2]21-23 Campus Contract Alloctns'!$I$5:$AP$108)","v":0},{"$f":"$I$5*'[2]21-23 Campus Contract Alloctns'!AN15/SUM('[2]21-23 Campus Contract Alloctns'!$I$5:$AP$108)","v":0},{"$f":"$I$5*'[2]21-23 Campus Contract Alloctns'!AO15/SUM('[2]21-23 Campus Contract Alloctns'!$I$5:$AP$108)","v":0},{"$f":"$I$5*'[2]21-23 Campus Contract Alloctns'!AP15/SUM('[2]21-23 Campus Contract Alloctns'!$I$5:$AP$108)","v":0}]
[null,"048 - Court of Appeals","048","Court of Appeals",4.6427152425383752E-3,1,1.7727436290226384E-5,0,4.6249878062481486E-3,{"$f":"$I$5*'[2]21-23 Campus Contract Alloctns'!I16/SUM('[2]21-23 Campus Contract Alloctns'!$I$5:$AP$108)","v":0},{"$f":"$I$5*'[2]21-23 Campus Contract Alloctns'!J16/SUM('[2]21-23 Campus Contract Alloctns'!$I$5:$AP$108)","v":0},{"$f":"$I$5*'[2]21-23 Campus Contract Alloctns'!K16/SUM('[2]21-23 Campus Contract Alloctns'!$I$5:$AP$108)","v":0},{"$f":"$I$5*'[2]21-23 Campus Contract Alloctns'!L16/SUM('[2]21-23 Campus Contract Alloctns'!$I$5:$AP$108)","v":0},{"$f":"$I$5*'[2]21-23 Campus Contract Alloctns'!M16/SUM('[2]21-23 Campus Contract Alloctns'!$I$5:$AP$108)","v":0},{"$f":"$I$5*'[2]21-23 Campus Contract Alloctns'!N16/SUM('[2]21-23 Campus Contract Alloctns'!$I$5:$AP$108)","v":0},{"$f":"$I$5*'[2]21-23 Campus Contract Alloctns'!O16/SUM('[2]21-23 Campus Contract Alloctns'!$I$5:$AP$108)","v":0},{"$f":"$I$5*'[2]21-23 Campus Contract Alloctns'!P16/SUM('[2]21-23 Campus Contract Alloctns'!$I$5:$AP$108)","v":0},{"$f":"$I$5*'[2]21-23 Campus Contract Alloctns'!Q16/SUM('[2]21-23 Campus Contract Alloctns'!$I$5:$AP$108)","v":0},{"$f":"$I$5*'[2]21-23 Campus Contract Alloctns'!R16/SUM('[2]21-23 Campus Contract Alloctns'!$I$5:$AP$108)","v":0},{"$f":"$I$5*'[2]21-23 Campus Contract Alloctns'!S16/SUM('[2]21-23 Campus Contract Alloctns'!$I$5:$AP$108)","v":0},{"$f":"$I$5*'[2]21-23 Campus Contract Alloctns'!T16/SUM('[2]21-23 Campus Contract Alloctns'!$I$5:$AP$108)","v":0},{"$f":"$I$5*'[2]21-23 Campus Contract Alloctns'!U16/SUM('[2]21-23 Campus Contract Alloctns'!$I$5:$AP$108)","v":0},{"$f":"$I$5*'[2]21-23 Campus Contract Alloctns'!V16/SUM('[2]21-23 Campus Contract Alloctns'!$I$5:$AP$108)","v":0},{"$f":"$I$5*'[2]21-23 Campus Contract Alloctns'!W16/SUM('[2]21-23 Campus Contract Alloctns'!$I$5:$AP$108)","v":0},{"$f":"$I$5*'[2]21-23 Campus Contract Alloctns'!X16/SUM('[2]21-23 Campus Contract Alloctns'!$I$5:$AP$108)","v":0},{"$f":"$I$5*'[2]21-23 Campus Contract Alloctns'!Y16/SUM('[2]21-23 Campus Contract Alloctns'!$I$5:$AP$108)","v":0},{"$f":"$I$5*'[2]21-23 Campus Contract Alloctns'!Z16/SUM('[2]21-23 Campus Contract Alloctns'!$I$5:$AP$108)","v":0},{"$f":"$I$5*'[2]21-23 Campus Contract Alloctns'!AA16/SUM('[2]21-23 Campus Contract Alloctns'!$I$5:$AP$108)","v":0},{"$f":"$I$5*'[2]21-23 Campus Contract Alloctns'!AB16/SUM('[2]21-23 Campus Contract Alloctns'!$I$5:$AP$108)","v":0},{"$f":"$I$5*'[2]21-23 Campus Contract Alloctns'!AC16/SUM('[2]21-23 Campus Contract Alloctns'!$I$5:$AP$108)","v":0},{"$f":"$I$5*'[2]21-23 Campus Contract Alloctns'!AD16/SUM('[2]21-23 Campus Contract Alloctns'!$I$5:$AP$108)","v":0},{"$f":"$I$5*'[2]21-23 Campus Contract Alloctns'!AE16/SUM('[2]21-23 Campus Contract Alloctns'!$I$5:$AP$108)","v":0},{"$f":"$I$5*'[2]21-23 Campus Contract Alloctns'!AF16/SUM('[2]21-23 Campus Contract Alloctns'!$I$5:$AP$108)","v":0},{"$f":"$I$5*'[2]21-23 Campus Contract Alloctns'!AG16/SUM('[2]21-23 Campus Contract Alloctns'!$I$5:$AP$108)","v":0},{"$f":"$I$5*'[2]21-23 Campus Contract Alloctns'!AH16/SUM('[2]21-23 Campus Contract Alloctns'!$I$5:$AP$108)","v":0},{"$f":"$I$5*'[2]21-23 Campus Contract Alloctns'!AI16/SUM('[2]21-23 Campus Contract Alloctns'!$I$5:$AP$108)","v":0},{"$f":"$I$5*'[2]21-23 Campus Contract Alloctns'!AJ16/SUM('[2]21-23 Campus Contract Alloctns'!$I$5:$AP$108)","v":0},{"$f":"$I$5*'[2]21-23 Campus Contract Alloctns'!AK16/SUM('[2]21-23 Campus Contract Alloctns'!$I$5:$AP$108)","v":0},{"$f":"$I$5*'[2]21-23 Campus Contract Alloctns'!AL16/SUM('[2]21-23 Campus Contract Alloctns'!$I$5:$AP$108)","v":0},{"$f":"$I$5*'[2]21-23 Campus Contract Alloctns'!AM16/SUM('[2]21-23 Campus Contract Alloctns'!$I$5:$AP$108)","v":0},{"$f":"$I$5*'[2]21-23 Campus Contract Alloctns'!AN16/SUM('[2]21-23 Campus Contract Alloctns'!$I$5:$AP$108)","v":4.6249878062481495E-3},{"$f":"$I$5*'[2]21-23 Campus Contract Alloctns'!AO16/SUM('[2]21-23 Campus Contract Alloctns'!$I$5:$AP$108)","v":0},{"$f":"$I$5*'[2]21-23 Campus Contract Alloctns'!AP16/SUM('[2]21-23 Campus Contract Alloctns'!$I$5:$AP$108)","v":0}]
[null,"050 - Commission on Judicial Conduct","050","Commission on Judicial Conduct",1.2353318278276466E-3,8,1.4181949032181107E-4,0,1.0935123375058356E-3,{"$f":"$I$5*'[2]21-23 Campus Contract Alloctns'!I17/SUM('[2]21-23 Campus Contract Alloctns'!$I$5:$AP$108)","v":0},{"$f":"$I$5*'[2]21-23 Campus Contract Alloctns'!J17/SUM('[2]21-23 Campus Contract Alloctns'!$I$5:$AP$108)","v":0},{"$f":"$I$5*'[2]21-23 Campus Contract Alloctns'!K17/SUM('[2]21-23 Campus Contract Alloctns'!$I$5:$AP$108)","v":0},{"$f":"$I$5*'[2]21-23 Campus Contract Alloctns'!L17/SUM('[2]21-23 Campus Contract Alloctns'!$I$5:$AP$108)","v":0},{"$f":"$I$5*'[2]21-23 Campus Contract Alloctns'!M17/SUM('[2]21-23 Campus Contract Alloctns'!$I$5:$AP$108)","v":0},{"$f":"$I$5*'[2]21-23 Campus Contract Alloctns'!N17/SUM('[2]21-23 Campus Contract Alloctns'!$I$5:$AP$108)","v":0},{"$f":"$I$5*'[2]21-23 Campus Contract Alloctns'!O17/SUM('[2]21-23 Campus Contract Alloctns'!$I$5:$AP$108)","v":0},{"$f":"$I$5*'[2]21-23 Campus Contract Alloctns'!P17/SUM('[2]21-23 Campus Contract Alloctns'!$I$5:$AP$108)","v":0},{"$f":"$I$5*'[2]21-23 Campus Contract Alloctns'!Q17/SUM('[2]21-23 Campus Contract Alloctns'!$I$5:$AP$108)","v":0},{"$f":"$I$5*'[2]21-23 Campus Contract Alloctns'!R17/SUM('[2]21-23 Campus Contract Alloctns'!$I$5:$AP$108)","v":0},{"$f":"$I$5*'[2]21-23 Campus Contract Alloctns'!S17/SUM('[2]21-23 Campus Contract Alloctns'!$I$5:$AP$108)","v":0},{"$f":"$I$5*'[2]21-23 Campus Contract Alloctns'!T17/SUM('[2]21-23 Campus Contract Alloctns'!$I$5:$AP$108)","v":0},{"$f":"$I$5*'[2]21-23 Campus Contract Alloctns'!U17/SUM('[2]21-23 Campus Contract Alloctns'!$I$5:$AP$108)","v":0},{"$f":"$I$5*'[2]21-23 Campus Contract Alloctns'!V17/SUM('[2]21-23 Campus Contract Alloctns'!$I$5:$AP$108)","v":0},{"$f":"$I$5*'[2]21-23 Campus Contract Alloctns'!W17/SUM('[2]21-23 Campus Contract Alloctns'!$I$5:$AP$108)","v":0},{"$f":"$I$5*'[2]21-23 Campus Contract Alloctns'!X17/SUM('[2]21-23 Campus Contract Alloctns'!$I$5:$AP$108)","v":0},{"$f":"$I$5*'[2]21-23 Campus Contract Alloctns'!Y17/SUM('[2]21-23 Campus Contract Alloctns'!$I$5:$AP$108)","v":0},{"$f":"$I$5*'[2]21-23 Campus Contract Alloctns'!Z17/SUM('[2]21-23 Campus Contract Alloctns'!$I$5:$AP$108)","v":0},{"$f":"$I$5*'[2]21-23 Campus Contract Alloctns'!AA17/SUM('[2]21-23 Campus Contract Alloctns'!$I$5:$AP$108)","v":0},{"$f":"$I$5*'[2]21-23 Campus Contract Alloctns'!AB17/SUM('[2]21-23 Campus Contract Alloctns'!$I$5:$AP$108)","v":1.0935123375058358E-3},{"$f":"$I$5*'[2]21-23 Campus Contract Alloctns'!AC17/SUM('[2]21-23 Campus Contract Alloctns'!$I$5:$AP$108)","v":0},{"$f":"$I$5*'[2]21-23 Campus Contract Alloctns'!AD17/SUM('[2]21-23 Campus Contract Alloctns'!$I$5:$AP$108)","v":0},{"$f":"$I$5*'[2]21-23 Campus Contract Alloctns'!AE17/SUM('[2]21-23 Campus Contract Alloctns'!$I$5:$AP$108)","v":0},{"$f":"$I$5*'[2]21-23 Campus Contract Alloctns'!AF17/SUM('[2]21-23 Campus Contract Alloctns'!$I$5:$AP$108)","v":0},{"$f":"$I$5*'[2]21-23 Campus Contract Alloctns'!AG17/SUM('[2]21-23 Campus Contract Alloctns'!$I$5:$AP$108)","v":0},{"$f":"$I$5*'[2]21-23 Campus Contract Alloctns'!AH17/SUM('[2]21-23 Campus Contract Alloctns'!$I$5:$AP$108)","v":0},{"$f":"$I$5*'[2]21-23 Campus Contract Alloctns'!AI17/SUM('[2]21-23 Campus Contract Alloctns'!$I$5:$AP$108)","v":0},{"$f":"$I$5*'[2]21-23 Campus Contract Alloctns'!AJ17/SUM('[2]21-23 Campus Contract Alloctns'!$I$5:$AP$108)","v":0},{"$f":"$I$5*'[2]21-23 Campus Contract Alloctns'!AK17/SUM('[2]21-23 Campus Contract Alloctns'!$I$5:$AP$108)","v":0},{"$f":"$I$5*'[2]21-23 Campus Contract Alloctns'!AL17/SUM('[2]21-23 Campus Contract Alloctns'!$I$5:$AP$108)","v":0},{"$f":"$I$5*'[2]21-23 Campus Contract Alloctns'!AM17/SUM('[2]21-23 Campus Contract Alloctns'!$I$5:$AP$108)","v":0},{"$f":"$I$5*'[2]21-23 Campus Contract Alloctns'!AN17/SUM('[2]21-23 Campus Contract Alloctns'!$I$5:$AP$108)","v":0},{"$f":"$I$5*'[2]21-23 Campus Contract Alloctns'!AO17/SUM('[2]21-23 Campus Contract Alloctns'!$I$5:$AP$108)","v":0},{"$f":"$I$5*'[2]21-23 Campus Contract Alloctns'!AP17/SUM('[2]21-23 Campus Contract Alloctns'!$I$5:$AP$108)","v":0}]
[null,"055 - Administrative Office of the Courts","055","Administrative Office of the Courts",5.8322253470824174E-3,251,4.4495865088468225E-3,1.7045557283906448E-4,1.2121832653965304E-3,{"$f":"$I$5*'[2]21-23 Campus Contract Alloctns'!I18/SUM('[2]21-23 Campus Contract Alloctns'!$I$5:$AP$108)","v":0},{"$f":"$I$5*'[2]21-23 Campus Contract Alloctns'!J18/SUM('[2]21-23 Campus Contract Alloctns'!$I$5:$AP$108)","v":0},{"$f":"$I$5*'[2]21-23 Campus Contract Alloctns'!K18/SUM('[2]21-23 Campus Contract Alloctns'!$I$5:$AP$108)","v":0},{"$f":"$I$5*'[2]21-23 Campus Contract Alloctns'!L18/SUM('[2]21-23 Campus Contract Alloctns'!$I$5:$AP$108)","v":0},{"$f":"$I$5*'[2]21-23 Campus Contract Alloctns'!M18/SUM('[2]21-23 Campus Contract Alloctns'!$I$5:$AP$108)","v":0},{"$f":"$I$5*'[2]21-23 Campus Contract Alloctns'!N18/SUM('[2]21-23 Campus Contract Alloctns'!$I$5:$AP$108)","v":0},{"$f":"$I$5*'[2]21-23 Campus Contract Alloctns'!O18/SUM('[2]21-23 Campus Contract Alloctns'!$I$5:$AP$108)","v":0},{"$f":"$I$5*'[2]21-23 Campus Contract Alloctns'!P18/SUM('[2]21-23 Campus Contract Alloctns'!$I$5:$AP$108)","v":0},{"$f":"$I$5*'[2]21-23 Campus Contract Alloctns'!Q18/SUM('[2]21-23 Campus Contract Alloctns'!$I$5:$AP$108)","v":0},{"$f":"$I$5*'[2]21-23 Campus Contract Alloctns'!R18/SUM('[2]21-23 Campus Contract Alloctns'!$I$5:$AP$108)","v":0},{"$f":"$I$5*'[2]21-23 Campus Contract Alloctns'!S18/SUM('[2]21-23 Campus Contract Alloctns'!$I$5:$AP$108)","v":0},{"$f":"$I$5*'[2]21-23 Campus Contract Alloctns'!T18/SUM('[2]21-23 Campus Contract Alloctns'!$I$5:$AP$108)","v":0},{"$f":"$I$5*'[2]21-23 Campus Contract Alloctns'!U18/SUM('[2]21-23 Campus Contract Alloctns'!$I$5:$AP$108)","v":1.2121832653965306E-3},{"$f":"$I$5*'[2]21-23 Campus Contract Alloctns'!V18/SUM('[2]21-23 Campus Contract Alloctns'!$I$5:$AP$108)","v":0},{"$f":"$I$5*'[2]21-23 Campus Contract Alloctns'!W18/SUM('[2]21-23 Campus Contract Alloctns'!$I$5:$AP$108)","v":0},{"$f":"$I$5*'[2]21-23 Campus Contract Alloctns'!X18/SUM('[2]21-23 Campus Contract Alloctns'!$I$5:$AP$108)","v":0},{"$f":"$I$5*'[2]21-23 Campus Contract Alloctns'!Y18/SUM('[2]21-23 Campus Contract Alloctns'!$I$5:$AP$108)","v":0},{"$f":"$I$5*'[2]21-23 Campus Contract Alloctns'!Z18/SUM('[2]21-23 Campus Contract Alloctns'!$I$5:$AP$108)","v":0},{"$f":"$I$5*'[2]21-23 Campus Contract Alloctns'!AA18/SUM('[2]21-23 Campus Contract Alloctns'!$I$5:$AP$108)","v":0},{"$f":"$I$5*'[2]21-23 Campus Contract Alloctns'!AB18/SUM('[2]21-23 Campus Contract Alloctns'!$I$5:$AP$108)","v":0},{"$f":"$I$5*'[2]21-23 Campus Contract Alloctns'!AC18/SUM('[2]21-23 Campus Contract Alloctns'!$I$5:$AP$108)","v":0},{"$f":"$I$5*'[2]21-23 Campus Contract Alloctns'!AD18/SUM('[2]21-23 Campus Contract Alloctns'!$I$5:$AP$108)","v":0},{"$f":"$I$5*'[2]21-23 Campus Contract Alloctns'!AE18/SUM('[2]21-23 Campus Contract Alloctns'!$I$5:$AP$108)","v":0},{"$f":"$I$5*'[2]21-23 Campus Contract Alloctns'!AF18/SUM('[2]21-23 Campus Contract Alloctns'!$I$5:$AP$108)","v":0},{"$f":"$I$5*'[2]21-23 Campus Contract Alloctns'!AG18/SUM('[2]21-23 Campus Contract Alloctns'!$I$5:$AP$108)","v":0},{"$f":"$I$5*'[2]21-23 Campus Contract Alloctns'!AH18/SUM('[2]21-23 Campus Contract Alloctns'!$I$5:$AP$108)","v":0},{"$f":"$I$5*'[2]21-23 Campus Contract Alloctns'!AI18/SUM('[2]21-23 Campus Contract Alloctns'!$I$5:$AP$108)","v":0},{"$f":"$I$5*'[2]21-23 Campus Contract Alloctns'!AJ18/SUM('[2]21-23 Campus Contract Alloctns'!$I$5:$AP$108)","v":0},{"$f":"$I$5*'[2]21-23 Campus Contract Alloctns'!AK18/SUM('[2]21-23 Campus Contract Alloctns'!$I$5:$AP$108)","v":0},{"$f":"$I$5*'[2]21-23 Campus Contract Alloctns'!AL18/SUM('[2]21-23 Campus Contract Alloctns'!$I$5:$AP$108)","v":0},{"$f":"$I$5*'[2]21-23 Campus Contract Alloctns'!AM18/SUM('[2]21-23 Campus Contract Alloctns'!$I$5:$AP$108)","v":0},{"$f":"$I$5*'[2]21-23 Campus Contract Alloctns'!AN18/SUM('[2]21-23 Campus Contract Alloctns'!$I$5:$AP$108)","v":0},{"$f":"$I$5*'[2]21-23 Campus Contract Alloctns'!AO18/SUM('[2]21-23 Campus Contract Alloctns'!$I$5:$AP$108)","v":0},{"$f":"$I$5*'[2]21-23 Campus Contract Alloctns'!AP18/SUM('[2]21-23 Campus Contract Alloctns'!$I$5:$AP$108)","v":0}]
[null,"056 - Office of Public Defense","056","Office of Public Defense",3.3682128951430132E-4,19,3.3682128951430132E-4,0,0,{"$f":"$I$5*'[2]21-23 Campus Contract Alloctns'!I19/SUM('[2]21-23 Campus Contract Alloctns'!$I$5:$AP$108)","v":0},{"$f":"$I$5*'[2]21-23 Campus Contract Alloctns'!J19/SUM('[2]21-23 Campus Contract Alloctns'!$I$5:$AP$108)","v":0},{"$f":"$I$5*'[2]21-23 Campus Contract Alloctns'!K19/SUM('[2]21-23 Campus Contract Alloctns'!$I$5:$AP$108)","v":0},{"$f":"$I$5*'[2]21-23 Campus Contract Alloctns'!L19/SUM('[2]21-23 Campus Contract Alloctns'!$I$5:$AP$108)","v":0},{"$f":"$I$5*'[2]21-23 Campus Contract Alloctns'!M19/SUM('[2]21-23 Campus Contract Alloctns'!$I$5:$AP$108)","v":0},{"$f":"$I$5*'[2]21-23 Campus Contract Alloctns'!N19/SUM('[2]21-23 Campus Contract Alloctns'!$I$5:$AP$108)","v":0},{"$f":"$I$5*'[2]21-23 Campus Contract Alloctns'!O19/SUM('[2]21-23 Campus Contract Alloctns'!$I$5:$AP$108)","v":0},{"$f":"$I$5*'[2]21-23 Campus Contract Alloctns'!P19/SUM('[2]21-23 Campus Contract Alloctns'!$I$5:$AP$108)","v":0},{"$f":"$I$5*'[2]21-23 Campus Contract Alloctns'!Q19/SUM('[2]21-23 Campus Contract Alloctns'!$I$5:$AP$108)","v":0},{"$f":"$I$5*'[2]21-23 Campus Contract Alloctns'!R19/SUM('[2]21-23 Campus Contract Alloctns'!$I$5:$AP$108)","v":0},{"$f":"$I$5*'[2]21-23 Campus Contract Alloctns'!S19/SUM('[2]21-23 Campus Contract Alloctns'!$I$5:$AP$108)","v":0},{"$f":"$I$5*'[2]21-23 Campus Contract Alloctns'!T19/SUM('[2]21-23 Campus Contract Alloctns'!$I$5:$AP$108)","v":0},{"$f":"$I$5*'[2]21-23 Campus Contract Alloctns'!U19/SUM('[2]21-23 Campus Contract Alloctns'!$I$5:$AP$108)","v":0},{"$f":"$I$5*'[2]21-23 Campus Contract Alloctns'!V19/SUM('[2]21-23 Campus Contract Alloctns'!$I$5:$AP$108)","v":0},{"$f":"$I$5*'[2]21-23 Campus Contract Alloctns'!W19/SUM('[2]21-23 Campus Contract Alloctns'!$I$5:$AP$108)","v":0},{"$f":"$I$5*'[2]21-23 Campus Contract Alloctns'!X19/SUM('[2]21-23 Campus Contract Alloctns'!$I$5:$AP$108)","v":0},{"$f":"$I$5*'[2]21-23 Campus Contract Alloctns'!Y19/SUM('[2]21-23 Campus Contract Alloctns'!$I$5:$AP$108)","v":0},{"$f":"$I$5*'[2]21-23 Campus Contract Alloctns'!Z19/SUM('[2]21-23 Campus Contract Alloctns'!$I$5:$AP$108)","v":0},{"$f":"$I$5*'[2]21-23 Campus Contract Alloctns'!AA19/SUM('[2]21-23 Campus Contract Alloctns'!$I$5:$AP$108)","v":0},{"$f":"$I$5*'[2]21-23 Campus Contract Alloctns'!AB19/SUM('[2]21-23 Campus Contract Alloctns'!$I$5:$AP$108)","v":0},{"$f":"$I$5*'[2]21-23 Campus Contract Alloctns'!AC19/SUM('[2]21-23 Campus Contract Alloctns'!$I$5:$AP$108)","v":0},{"$f":"$I$5*'[2]21-23 Campus Contract Alloctns'!AD19/SUM('[2]21-23 Campus Contract Alloctns'!$I$5:$AP$108)","v":0},{"$f":"$I$5*'[2]21-23 Campus Contract Alloctns'!AE19/SUM('[2]21-23 Campus Contract Alloctns'!$I$5:$AP$108)","v":0},{"$f":"$I$5*'[2]21-23 Campus Contract Alloctns'!AF19/SUM('[2]21-23 Campus Contract Alloctns'!$I$5:$AP$108)","v":0},{"$f":"$I$5*'[2]21-23 Campus Contract Alloctns'!AG19/SUM('[2]21-23 Campus Contract Alloctns'!$I$5:$AP$108)","v":0},{"$f":"$I$5*'[2]21-23 Campus Contract Alloctns'!AH19/SUM('[2]21-23 Campus Contract Alloctns'!$I$5:$AP$108)","v":0},{"$f":"$I$5*'[2]21-23 Campus Contract Alloctns'!AI19/SUM('[2]21-23 Campus Contract Alloctns'!$I$5:$AP$108)","v":0},{"$f":"$I$5*'[2]21-23 Campus Contract Alloctns'!AJ19/SUM('[2]21-23 Campus Contract Alloctns'!$I$5:$AP$108)","v":0},{"$f":"$I$5*'[2]21-23 Campus Contract Alloctns'!AK19/SUM('[2]21-23 Campus Contract Alloctns'!$I$5:$AP$108)","v":0},{"$f":"$I$5*'[2]21-23 Campus Contract Alloctns'!AL19/SUM('[2]21-23 Campus Contract Alloctns'!$I$5:$AP$108)","v":0},{"$f":"$I$5*'[2]21-23 Campus Contract Alloctns'!AM19/SUM('[2]21-23 Campus Contract Alloctns'!$I$5:$AP$108)","v":0},{"$f":"$I$5*'[2]21-23 Campus Contract Alloctns'!AN19/SUM('[2]21-23 Campus Contract Alloctns'!$I$5:$AP$108)","v":0},{"$f":"$I$5*'[2]21-23 Campus Contract Alloctns'!AO19/SUM('[2]21-23 Campus Contract Alloctns'!$I$5:$AP$108)","v":0},{"$f":"$I$5*'[2]21-23 Campus Contract Alloctns'!AP19/SUM('[2]21-23 Campus Contract Alloctns'!$I$5:$AP$108)","v":0}]
[null,"057 - Office of Civil Legal Aid","057","Office of Civil Legal Aid",5.3182308870679155E-5,3,5.3182308870679155E-5,0,0,{"$f":"$I$5*'[2]21-23 Campus Contract Alloctns'!I20/SUM('[2]21-23 Campus Contract Alloctns'!$I$5:$AP$108)","v":0},{"$f":"$I$5*'[2]21-23 Campus Contract Alloctns'!J20/SUM('[2]21-23 Campus Contract Alloctns'!$I$5:$AP$108)","v":0},{"$f":"$I$5*'[2]21-23 Campus Contract Alloctns'!K20/SUM('[2]21-23 Campus Contract Alloctns'!$I$5:$AP$108)","v":0},{"$f":"$I$5*'[2]21-23 Campus Contract Alloctns'!L20/SUM('[2]21-23 Campus Contract Alloctns'!$I$5:$AP$108)","v":0},{"$f":"$I$5*'[2]21-23 Campus Contract Alloctns'!M20/SUM('[2]21-23 Campus Contract Alloctns'!$I$5:$AP$108)","v":0},{"$f":"$I$5*'[2]21-23 Campus Contract Alloctns'!N20/SUM('[2]21-23 Campus Contract Alloctns'!$I$5:$AP$108)","v":0},{"$f":"$I$5*'[2]21-23 Campus Contract Alloctns'!O20/SUM('[2]21-23 Campus Contract Alloctns'!$I$5:$AP$108)","v":0},{"$f":"$I$5*'[2]21-23 Campus Contract Alloctns'!P20/SUM('[2]21-23 Campus Contract Alloctns'!$I$5:$AP$108)","v":0},{"$f":"$I$5*'[2]21-23 Campus Contract Alloctns'!Q20/SUM('[2]21-23 Campus Contract Alloctns'!$I$5:$AP$108)","v":0},{"$f":"$I$5*'[2]21-23 Campus Contract Alloctns'!R20/SUM('[2]21-23 Campus Contract Alloctns'!$I$5:$AP$108)","v":0},{"$f":"$I$5*'[2]21-23 Campus Contract Alloctns'!S20/SUM('[2]21-23 Campus Contract Alloctns'!$I$5:$AP$108)","v":0},{"$f":"$I$5*'[2]21-23 Campus Contract Alloctns'!T20/SUM('[2]21-23 Campus Contract Alloctns'!$I$5:$AP$108)","v":0},{"$f":"$I$5*'[2]21-23 Campus Contract Alloctns'!U20/SUM('[2]21-23 Campus Contract Alloctns'!$I$5:$AP$108)","v":0},{"$f":"$I$5*'[2]21-23 Campus Contract Alloctns'!V20/SUM('[2]21-23 Campus Contract Alloctns'!$I$5:$AP$108)","v":0},{"$f":"$I$5*'[2]21-23 Campus Contract Alloctns'!W20/SUM('[2]21-23 Campus Contract Alloctns'!$I$5:$AP$108)","v":0},{"$f":"$I$5*'[2]21-23 Campus Contract Alloctns'!X20/SUM('[2]21-23 Campus Contract Alloctns'!$I$5:$AP$108)","v":0},{"$f":"$I$5*'[2]21-23 Campus Contract Alloctns'!Y20/SUM('[2]21-23 Campus Contract Alloctns'!$I$5:$AP$108)","v":0},{"$f":"$I$5*'[2]21-23 Campus Contract Alloctns'!Z20/SUM('[2]21-23 Campus Contract Alloctns'!$I$5:$AP$108)","v":0},{"$f":"$I$5*'[2]21-23 Campus Contract Alloctns'!AA20/SUM('[2]21-23 Campus Contract Alloctns'!$I$5:$AP$108)","v":0},{"$f":"$I$5*'[2]21-23 Campus Contract Alloctns'!AB20/SUM('[2]21-23 Campus Contract Alloctns'!$I$5:$AP$108)","v":0},{"$f":"$I$5*'[2]21-23 Campus Contract Alloctns'!AC20/SUM('[2]21-23 Campus Contract Alloctns'!$I$5:$AP$108)","v":0},{"$f":"$I$5*'[2]21-23 Campus Contract Alloctns'!AD20/SUM('[2]21-23 Campus Contract Alloctns'!$I$5:$AP$108)","v":0},{"$f":"$I$5*'[2]21-23 Campus Contract Alloctns'!AE20/SUM('[2]21-23 Campus Contract Alloctns'!$I$5:$AP$108)","v":0},{"$f":"$I$5*'[2]21-23 Campus Contract Alloctns'!AF20/SUM('[2]21-23 Campus Contract Alloctns'!$I$5:$AP$108)","v":0},{"$f":"$I$5*'[2]21-23 Campus Contract Alloctns'!AG20/SUM('[2]21-23 Campus Contract Alloctns'!$I$5:$AP$108)","v":0},{"$f":"$I$5*'[2]21-23 Campus Contract Alloctns'!AH20/SUM('[2]21-23 Campus Contract Alloctns'!$I$5:$AP$108)","v":0},{"$f":"$I$5*'[2]21-23 Campus Contract Alloctns'!AI20/SUM('[2]21-23 Campus Contract Alloctns'!$I$5:$AP$108)","v":0},{"$f":"$I$5*'[2]21-23 Campus Contract Alloctns'!AJ20/SUM('[2]21-23 Campus Contract Alloctns'!$I$5:$AP$108)","v":0},{"$f":"$I$5*'[2]21-23 Campus Contract Alloctns'!AK20/SUM('[2]21-23 Campus Contract Alloctns'!$I$5:$AP$108)","v":0},{"$f":"$I$5*'[2]21-23 Campus Contract Alloctns'!AL20/SUM('[2]21-23 Campus Contract Alloctns'!$I$5:$AP$108)","v":0},{"$f":"$I$5*'[2]21-23 Campus Contract Alloctns'!AM20/SUM('[2]21-23 Campus Contract Alloctns'!$I$5:$AP$108)","v":0},{"$f":"$I$5*'[2]21-23 Campus Contract Alloctns'!AN20/SUM('[2]21-23 Campus Contract Alloctns'!$I$5:$AP$108)","v":0},{"$f":"$I$5*'[2]21-23 Campus Contract Alloctns'!AO20/SUM('[2]21-23 Campus Contract Alloctns'!$I$5:$AP$108)","v":0},{"$f":"$I$5*'[2]21-23 Campus Contract Alloctns'!AP20/SUM('[2]21-23 Campus Contract Alloctns'!$I$5:$AP$108)","v":0}]
[null,"075 - Office of the Governor","075","Office of the Governor",6.794580749718386E-3,65,1.1522833588647151E-3,6.919670243433865E-4,4.950330366510285E-3,{"$f":"$I$5*'[2]21-23 Campus Contract Alloctns'!I21/SUM('[2]21-23 Campus Contract Alloctns'!$I$5:$AP$108)","v":0},{"$f":"$I$5*'[2]21-23 Campus Contract Alloctns'!J21/SUM('[2]21-23 Campus Contract Alloctns'!$I$5:$AP$108)","v":0},{"$f":"$I$5*'[2]21-23 Campus Contract Alloctns'!K21/SUM('[2]21-23 Campus Contract Alloctns'!$I$5:$AP$108)","v":4.9503303665102858E-3},{"$f":"$I$5*'[2]21-23 Campus Contract Alloctns'!L21/SUM('[2]21-23 Campus Contract Alloctns'!$I$5:$AP$108)","v":0},{"$f":"$I$5*'[2]21-23 Campus Contract Alloctns'!M21/SUM('[2]21-23 Campus Contract Alloctns'!$I$5:$AP$108)","v":0},{"$f":"$I$5*'[2]21-23 Campus Contract Alloctns'!N21/SUM('[2]21-23 Campus Contract Alloctns'!$I$5:$AP$108)","v":0},{"$f":"$I$5*'[2]21-23 Campus Contract Alloctns'!O21/SUM('[2]21-23 Campus Contract Alloctns'!$I$5:$AP$108)","v":0},{"$f":"$I$5*'[2]21-23 Campus Contract Alloctns'!P21/SUM('[2]21-23 Campus Contract Alloctns'!$I$5:$AP$108)","v":0},{"$f":"$I$5*'[2]21-23 Campus Contract Alloctns'!Q21/SUM('[2]21-23 Campus Contract Alloctns'!$I$5:$AP$108)","v":0},{"$f":"$I$5*'[2]21-23 Campus Contract Alloctns'!R21/SUM('[2]21-23 Campus Contract Alloctns'!$I$5:$AP$108)","v":0},{"$f":"$I$5*'[2]21-23 Campus Contract Alloctns'!S21/SUM('[2]21-23 Campus Contract Alloctns'!$I$5:$AP$108)","v":0},{"$f":"$I$5*'[2]21-23 Campus Contract Alloctns'!T21/SUM('[2]21-23 Campus Contract Alloctns'!$I$5:$AP$108)","v":0},{"$f":"$I$5*'[2]21-23 Campus Contract Alloctns'!U21/SUM('[2]21-23 Campus Contract Alloctns'!$I$5:$AP$108)","v":0},{"$f":"$I$5*'[2]21-23 Campus Contract Alloctns'!V21/SUM('[2]21-23 Campus Contract Alloctns'!$I$5:$AP$108)","v":0},{"$f":"$I$5*'[2]21-23 Campus Contract Alloctns'!W21/SUM('[2]21-23 Campus Contract Alloctns'!$I$5:$AP$108)","v":0},{"$f":"$I$5*'[2]21-23 Campus Contract Alloctns'!X21/SUM('[2]21-23 Campus Contract Alloctns'!$I$5:$AP$108)","v":0},{"$f":"$I$5*'[2]21-23 Campus Contract Alloctns'!Y21/SUM('[2]21-23 Campus Contract Alloctns'!$I$5:$AP$108)","v":0},{"$f":"$I$5*'[2]21-23 Campus Contract Alloctns'!Z21/SUM('[2]21-23 Campus Contract Alloctns'!$I$5:$AP$108)","v":0},{"$f":"$I$5*'[2]21-23 Campus Contract Alloctns'!AA21/SUM('[2]21-23 Campus Contract Alloctns'!$I$5:$AP$108)","v":0},{"$f":"$I$5*'[2]21-23 Campus Contract Alloctns'!AB21/SUM('[2]21-23 Campus Contract Alloctns'!$I$5:$AP$108)","v":0},{"$f":"$I$5*'[2]21-23 Campus Contract Alloctns'!AC21/SUM('[2]21-23 Campus Contract Alloctns'!$I$5:$AP$108)","v":0},{"$f":"$I$5*'[2]21-23 Campus Contract Alloctns'!AD21/SUM('[2]21-23 Campus Contract Alloctns'!$I$5:$AP$108)","v":0},{"$f":"$I$5*'[2]21-23 Campus Contract Alloctns'!AE21/SUM('[2]21-23 Campus Contract Alloctns'!$I$5:$AP$108)","v":0},{"$f":"$I$5*'[2]21-23 Campus Contract Alloctns'!AF21/SUM('[2]21-23 Campus Contract Alloctns'!$I$5:$AP$108)","v":0},{"$f":"$I$5*'[2]21-23 Campus Contract Alloctns'!AG21/SUM('[2]21-23 Campus Contract Alloctns'!$I$5:$AP$108)","v":0},{"$f":"$I$5*'[2]21-23 Campus Contract Alloctns'!AH21/SUM('[2]21-23 Campus Contract Alloctns'!$I$5:$AP$108)","v":0},{"$f":"$I$5*'[2]21-23 Campus Contract Alloctns'!AI21/SUM('[2]21-23 Campus Contract Alloctns'!$I$5:$AP$108)","v":0},{"$f":"$I$5*'[2]21-23 Campus Contract Alloctns'!AJ21/SUM('[2]21-23 Campus Contract Alloctns'!$I$5:$AP$108)","v":0},{"$f":"$I$5*'[2]21-23 Campus Contract Alloctns'!AK21/SUM('[2]21-23 Campus Contract Alloctns'!$I$5:$AP$108)","v":0},{"$f":"$I$5*'[2]21-23 Campus Contract Alloctns'!AL21/SUM('[2]21-23 Campus Contract Alloctns'!$I$5:$AP$108)","v":0},{"$f":"$I$5*'[2]21-23 Campus Contract Alloctns'!AM21/SUM('[2]21-23 Campus Contract Alloctns'!$I$5:$AP$108)","v":0},{"$f":"$I$5*'[2]21-23 Campus Contract Alloctns'!AN21/SUM('[2]21-23 Campus Contract Alloctns'!$I$5:$AP$108)","v":0},{"$f":"$I$5*'[2]21-23 Campus Contract Alloctns'!AO21/SUM('[2]21-23 Campus Contract Alloctns'!$I$5:$AP$108)","v":0},{"$f":"$I$5*'[2]21-23 Campus Contract Alloctns'!AP21/SUM('[2]21-23 Campus Contract Alloctns'!$I$5:$AP$108)","v":0}]
[null,"080 - Office of Lieutenant Governor","080","Office of Lieutenant Governor",3.0077812629540532E-3,6,1.0636461774135831E-4,3.5582751196750368E-4,2.5455891332451914E-3,{"$f":"$I$5*'[2]21-23 Campus Contract Alloctns'!I22/SUM('[2]21-23 Campus Contract Alloctns'!$I$5:$AP$108)","v":0},{"$f":"$I$5*'[2]21-23 Campus Contract Alloctns'!J22/SUM('[2]21-23 Campus Contract Alloctns'!$I$5:$AP$108)","v":0},{"$f":"$I$5*'[2]21-23 Campus Contract Alloctns'!K22/SUM('[2]21-23 Campus Contract Alloctns'!$I$5:$AP$108)","v":2.5455891332451918E-3},{"$f":"$I$5*'[2]21-23 Campus Contract Alloctns'!L22/SUM('[2]21-23 Campus Contract Alloctns'!$I$5:$AP$108)","v":0},{"$f":"$I$5*'[2]21-23 Campus Contract Alloctns'!M22/SUM('[2]21-23 Campus Contract Alloctns'!$I$5:$AP$108)","v":0},{"$f":"$I$5*'[2]21-23 Campus Contract Alloctns'!N22/SUM('[2]21-23 Campus Contract Alloctns'!$I$5:$AP$108)","v":0},{"$f":"$I$5*'[2]21-23 Campus Contract Alloctns'!O22/SUM('[2]21-23 Campus Contract Alloctns'!$I$5:$AP$108)","v":0},{"$f":"$I$5*'[2]21-23 Campus Contract Alloctns'!P22/SUM('[2]21-23 Campus Contract Alloctns'!$I$5:$AP$108)","v":0},{"$f":"$I$5*'[2]21-23 Campus Contract Alloctns'!Q22/SUM('[2]21-23 Campus Contract Alloctns'!$I$5:$AP$108)","v":0},{"$f":"$I$5*'[2]21-23 Campus Contract Alloctns'!R22/SUM('[2]21-23 Campus Contract Alloctns'!$I$5:$AP$108)","v":0},{"$f":"$I$5*'[2]21-23 Campus Contract Alloctns'!S22/SUM('[2]21-23 Campus Contract Alloctns'!$I$5:$AP$108)","v":0},{"$f":"$I$5*'[2]21-23 Campus Contract Alloctns'!T22/SUM('[2]21-23 Campus Contract Alloctns'!$I$5:$AP$108)","v":0},{"$f":"$I$5*'[2]21-23 Campus Contract Alloctns'!U22/SUM('[2]21-23 Campus Contract Alloctns'!$I$5:$AP$108)","v":0},{"$f":"$I$5*'[2]21-23 Campus Contract Alloctns'!V22/SUM('[2]21-23 Campus Contract Alloctns'!$I$5:$AP$108)","v":0},{"$f":"$I$5*'[2]21-23 Campus Contract Alloctns'!W22/SUM('[2]21-23 Campus Contract Alloctns'!$I$5:$AP$108)","v":0},{"$f":"$I$5*'[2]21-23 Campus Contract Alloctns'!X22/SUM('[2]21-23 Campus Contract Alloctns'!$I$5:$AP$108)","v":0},{"$f":"$I$5*'[2]21-23 Campus Contract Alloctns'!Y22/SUM('[2]21-23 Campus Contract Alloctns'!$I$5:$AP$108)","v":0},{"$f":"$I$5*'[2]21-23 Campus Contract Alloctns'!Z22/SUM('[2]21-23 Campus Contract Alloctns'!$I$5:$AP$108)","v":0},{"$f":"$I$5*'[2]21-23 Campus Contract Alloctns'!AA22/SUM('[2]21-23 Campus Contract Alloctns'!$I$5:$AP$108)","v":0},{"$f":"$I$5*'[2]21-23 Campus Contract Alloctns'!AB22/SUM('[2]21-23 Campus Contract Alloctns'!$I$5:$AP$108)","v":0},{"$f":"$I$5*'[2]21-23 Campus Contract Alloctns'!AC22/SUM('[2]21-23 Campus Contract Alloctns'!$I$5:$AP$108)","v":0},{"$f":"$I$5*'[2]21-23 Campus Contract Alloctns'!AD22/SUM('[2]21-23 Campus Contract Alloctns'!$I$5:$AP$108)","v":0},{"$f":"$I$5*'[2]21-23 Campus Contract Alloctns'!AE22/SUM('[2]21-23 Campus Contract Alloctns'!$I$5:$AP$108)","v":0},{"$f":"$I$5*'[2]21-23 Campus Contract Alloctns'!AF22/SUM('[2]21-23 Campus Contract Alloctns'!$I$5:$AP$108)","v":0},{"$f":"$I$5*'[2]21-23 Campus Contract Alloctns'!AG22/SUM('[2]21-23 Campus Contract Alloctns'!$I$5:$AP$108)","v":0},{"$f":"$I$5*'[2]21-23 Campus Contract Alloctns'!AH22/SUM('[2]21-23 Campus Contract Alloctns'!$I$5:$AP$108)","v":0},{"$f":"$I$5*'[2]21-23 Campus Contract Alloctns'!AI22/SUM('[2]21-23 Campus Contract Alloctns'!$I$5:$AP$108)","v":0},{"$f":"$I$5*'[2]21-23 Campus Contract Alloctns'!AJ22/SUM('[2]21-23 Campus Contract Alloctns'!$I$5:$AP$108)","v":0},{"$f":"$I$5*'[2]21-23 Campus Contract Alloctns'!AK22/SUM('[2]21-23 Campus Contract Alloctns'!$I$5:$AP$108)","v":0},{"$f":"$I$5*'[2]21-23 Campus Contract Alloctns'!AL22/SUM('[2]21-23 Campus Contract Alloctns'!$I$5:$AP$108)","v":0},{"$f":"$I$5*'[2]21-23 Campus Contract Alloctns'!AM22/SUM('[2]21-23 Campus Contract Alloctns'!$I$5:$AP$108)","v":0},{"$f":"$I$5*'[2]21-23 Campus Contract Alloctns'!AN22/SUM('[2]21-23 Campus Contract Alloctns'!$I$5:$AP$108)","v":0},{"$f":"$I$5*'[2]21-23 Campus Contract Alloctns'!AO22/SUM('[2]21-23 Campus Contract Alloctns'!$I$5:$AP$108)","v":0},{"$f":"$I$5*'[2]21-23 Campus Contract Alloctns'!AP22/SUM('[2]21-23 Campus Contract Alloctns'!$I$5:$AP$108)","v":0}]
[null,"082 - Public Disclosure Commission","082","Public Disclosure Commission",5.4955052499701786E-4,31,5.4955052499701786E-4,0,0,{"$f":"$I$5*'[2]21-23 Campus Contract Alloctns'!I23/SUM('[2]21-23 Campus Contract Alloctns'!$I$5:$AP$108)","v":0},{"$f":"$I$5*'[2]21-23 Campus Contract Alloctns'!J23/SUM('[2]21-23 Campus Contract Alloctns'!$I$5:$AP$108)","v":0},{"$f":"$I$5*'[2]21-23 Campus Contract Alloctns'!K23/SUM('[2]21-23 Campus Contract Alloctns'!$I$5:$AP$108)","v":0},{"$f":"$I$5*'[2]21-23 Campus Contract Alloctns'!L23/SUM('[2]21-23 Campus Contract Alloctns'!$I$5:$AP$108)","v":0},{"$f":"$I$5*'[2]21-23 Campus Contract Alloctns'!M23/SUM('[2]21-23 Campus Contract Alloctns'!$I$5:$AP$108)","v":0},{"$f":"$I$5*'[2]21-23 Campus Contract Alloctns'!N23/SUM('[2]21-23 Campus Contract Alloctns'!$I$5:$AP$108)","v":0},{"$f":"$I$5*'[2]21-23 Campus Contract Alloctns'!O23/SUM('[2]21-23 Campus Contract Alloctns'!$I$5:$AP$108)","v":0},{"$f":"$I$5*'[2]21-23 Campus Contract Alloctns'!P23/SUM('[2]21-23 Campus Contract Alloctns'!$I$5:$AP$108)","v":0},{"$f":"$I$5*'[2]21-23 Campus Contract Alloctns'!Q23/SUM('[2]21-23 Campus Contract Alloctns'!$I$5:$AP$108)","v":0},{"$f":"$I$5*'[2]21-23 Campus Contract Alloctns'!R23/SUM('[2]21-23 Campus Contract Alloctns'!$I$5:$AP$108)","v":0},{"$f":"$I$5*'[2]21-23 Campus Contract Alloctns'!S23/SUM('[2]21-23 Campus Contract Alloctns'!$I$5:$AP$108)","v":0},{"$f":"$I$5*'[2]21-23 Campus Contract Alloctns'!T23/SUM('[2]21-23 Campus Contract Alloctns'!$I$5:$AP$108)","v":0},{"$f":"$I$5*'[2]21-23 Campus Contract Alloctns'!U23/SUM('[2]21-23 Campus Contract Alloctns'!$I$5:$AP$108)","v":0},{"$f":"$I$5*'[2]21-23 Campus Contract Alloctns'!V23/SUM('[2]21-23 Campus Contract Alloctns'!$I$5:$AP$108)","v":0},{"$f":"$I$5*'[2]21-23 Campus Contract Alloctns'!W23/SUM('[2]21-23 Campus Contract Alloctns'!$I$5:$AP$108)","v":0},{"$f":"$I$5*'[2]21-23 Campus Contract Alloctns'!X23/SUM('[2]21-23 Campus Contract Alloctns'!$I$5:$AP$108)","v":0},{"$f":"$I$5*'[2]21-23 Campus Contract Alloctns'!Y23/SUM('[2]21-23 Campus Contract Alloctns'!$I$5:$AP$108)","v":0},{"$f":"$I$5*'[2]21-23 Campus Contract Alloctns'!Z23/SUM('[2]21-23 Campus Contract Alloctns'!$I$5:$AP$108)","v":0},{"$f":"$I$5*'[2]21-23 Campus Contract Alloctns'!AA23/SUM('[2]21-23 Campus Contract Alloctns'!$I$5:$AP$108)","v":0},{"$f":"$I$5*'[2]21-23 Campus Contract Alloctns'!AB23/SUM('[2]21-23 Campus Contract Alloctns'!$I$5:$AP$108)","v":0},{"$f":"$I$5*'[2]21-23 Campus Contract Alloctns'!AC23/SUM('[2]21-23 Campus Contract Alloctns'!$I$5:$AP$108)","v":0},{"$f":"$I$5*'[2]21-23 Campus Contract Alloctns'!AD23/SUM('[2]21-23 Campus Contract Alloctns'!$I$5:$AP$108)","v":0},{"$f":"$I$5*'[2]21-23 Campus Contract Alloctns'!AE23/SUM('[2]21-23 Campus Contract Alloctns'!$I$5:$AP$108)","v":0},{"$f":"$I$5*'[2]21-23 Campus Contract Alloctns'!AF23/SUM('[2]21-23 Campus Contract Alloctns'!$I$5:$AP$108)","v":0},{"$f":"$I$5*'[2]21-23 Campus Contract Alloctns'!AG23/SUM('[2]21-23 Campus Contract Alloctns'!$I$5:$AP$108)","v":0},{"$f":"$I$5*'[2]21-23 Campus Contract Alloctns'!AH23/SUM('[2]21-23 Campus Contract Alloctns'!$I$5:$AP$108)","v":0},{"$f":"$I$5*'[2]21-23 Campus Contract Alloctns'!AI23/SUM('[2]21-23 Campus Contract Alloctns'!$I$5:$AP$108)","v":0},{"$f":"$I$5*'[2]21-23 Campus Contract Alloctns'!AJ23/SUM('[2]21-23 Campus Contract Alloctns'!$I$5:$AP$108)","v":0},{"$f":"$I$5*'[2]21-23 Campus Contract Alloctns'!AK23/SUM('[2]21-23 Campus Contract Alloctns'!$I$5:$AP$108)","v":0},{"$f":"$I$5*'[2]21-23 Campus Contract Alloctns'!AL23/SUM('[2]21-23 Campus Contract Alloctns'!$I$5:$AP$108)","v":0},{"$f":"$I$5*'[2]21-23 Campus Contract Alloctns'!AM23/SUM('[2]21-23 Campus Contract Alloctns'!$I$5:$AP$108)","v":0},{"$f":"$I$5*'[2]21-23 Campus Contract Alloctns'!AN23/SUM('[2]21-23 Campus Contract Alloctns'!$I$5:$AP$108)","v":0},{"$f":"$I$5*'[2]21-23 Campus Contract Alloctns'!AO23/SUM('[2]21-23 Campus Contract Alloctns'!$I$5:$AP$108)","v":0},{"$f":"$I$5*'[2]21-23 Campus Contract Alloctns'!AP23/SUM('[2]21-23 Campus Contract Alloctns'!$I$5:$AP$108)","v":0}]
[null,"085 - Office of the Secretary of State","085","Office of the Secretary of State",2.730357320032533E-2,234,4.1482200919129748E-3,2.3477237802228242E-3,2.0807629328189532E-2,{"$f":"$I$5*'[2]21-23 Campus Contract Alloctns'!I24/SUM('[2]21-23 Campus Contract Alloctns'!$I$5:$AP$108)","v":0},{"$f":"$I$5*'[2]21-23 Campus Contract Alloctns'!J24/SUM('[2]21-23 Campus Contract Alloctns'!$I$5:$AP$108)","v":0},{"$f":"$I$5*'[2]21-23 Campus Contract Alloctns'!K24/SUM('[2]21-23 Campus Contract Alloctns'!$I$5:$AP$108)","v":3.0550511910143446E-3},{"$f":"$I$5*'[2]21-23 Campus Contract Alloctns'!L24/SUM('[2]21-23 Campus Contract Alloctns'!$I$5:$AP$108)","v":0},{"$f":"$I$5*'[2]21-23 Campus Contract Alloctns'!M24/SUM('[2]21-23 Campus Contract Alloctns'!$I$5:$AP$108)","v":0},{"$f":"$I$5*'[2]21-23 Campus Contract Alloctns'!N24/SUM('[2]21-23 Campus Contract Alloctns'!$I$5:$AP$108)","v":0},{"$f":"$I$5*'[2]21-23 Campus Contract Alloctns'!O24/SUM('[2]21-23 Campus Contract Alloctns'!$I$5:$AP$108)","v":1.0707893567548681E-2},{"$f":"$I$5*'[2]21-23 Campus Contract Alloctns'!P24/SUM('[2]21-23 Campus Contract Alloctns'!$I$5:$AP$108)","v":0},{"$f":"$I$5*'[2]21-23 Campus Contract Alloctns'!Q24/SUM('[2]21-23 Campus Contract Alloctns'!$I$5:$AP$108)","v":0},{"$f":"$I$5*'[2]21-23 Campus Contract Alloctns'!R24/SUM('[2]21-23 Campus Contract Alloctns'!$I$5:$AP$108)","v":0},{"$f":"$I$5*'[2]21-23 Campus Contract Alloctns'!S24/SUM('[2]21-23 Campus Contract Alloctns'!$I$5:$AP$108)","v":0},{"$f":"$I$5*'[2]21-23 Campus Contract Alloctns'!T24/SUM('[2]21-23 Campus Contract Alloctns'!$I$5:$AP$108)","v":0},{"$f":"$I$5*'[2]21-23 Campus Contract Alloctns'!U24/SUM('[2]21-23 Campus Contract Alloctns'!$I$5:$AP$108)","v":0},{"$f":"$I$5*'[2]21-23 Campus Contract Alloctns'!V24/SUM('[2]21-23 Campus Contract Alloctns'!$I$5:$AP$108)","v":0},{"$f":"$I$5*'[2]21-23 Campus Contract Alloctns'!W24/SUM('[2]21-23 Campus Contract Alloctns'!$I$5:$AP$108)","v":0},{"$f":"$I$5*'[2]21-23 Campus Contract Alloctns'!X24/SUM('[2]21-23 Campus Contract Alloctns'!$I$5:$AP$108)","v":2.3966007721931775E-3},{"$f":"$I$5*'[2]21-23 Campus Contract Alloctns'!Y24/SUM('[2]21-23 Campus Contract Alloctns'!$I$5:$AP$108)","v":0},{"$f":"$I$5*'[2]21-23 Campus Contract Alloctns'!Z24/SUM('[2]21-23 Campus Contract Alloctns'!$I$5:$AP$108)","v":0},{"$f":"$I$5*'[2]21-23 Campus Contract Alloctns'!AA24/SUM('[2]21-23 Campus Contract Alloctns'!$I$5:$AP$108)","v":0},{"$f":"$I$5*'[2]21-23 Campus Contract Alloctns'!AB24/SUM('[2]21-23 Campus Contract Alloctns'!$I$5:$AP$108)","v":0},{"$f":"$I$5*'[2]21-23 Campus Contract Alloctns'!AC24/SUM('[2]21-23 Campus Contract Alloctns'!$I$5:$AP$108)","v":4.6480837974333328E-3},{"$f":"$I$5*'[2]21-23 Campus Contract Alloctns'!AD24/SUM('[2]21-23 Campus Contract Alloctns'!$I$5:$AP$108)","v":0},{"$f":"$I$5*'[2]21-23 Campus Contract Alloctns'!AE24/SUM('[2]21-23 Campus Contract Alloctns'!$I$5:$AP$108)","v":0},{"$f":"$I$5*'[2]21-23 Campus Contract Alloctns'!AF24/SUM('[2]21-23 Campus Contract Alloctns'!$I$5:$AP$108)","v":0},{"$f":"$I$5*'[2]21-23 Campus Contract Alloctns'!AG24/SUM('[2]21-23 Campus Contract Alloctns'!$I$5:$AP$108)","v":0},{"$f":"$I$5*'[2]21-23 Campus Contract Alloctns'!AH24/SUM('[2]21-23 Campus Contract Alloctns'!$I$5:$AP$108)","v":0},{"$f":"$I$5*'[2]21-23 Campus Contract Alloctns'!AI24/SUM('[2]21-23 Campus Contract Alloctns'!$I$5:$AP$108)","v":0},{"$f":"$I$5*'[2]21-23 Campus Contract Alloctns'!AJ24/SUM('[2]21-23 Campus Contract Alloctns'!$I$5:$AP$108)","v":0},{"$f":"$I$5*'[2]21-23 Campus Contract Alloctns'!AK24/SUM('[2]21-23 Campus Contract Alloctns'!$I$5:$AP$108)","v":0},{"$f":"$I$5*'[2]21-23 Campus Contract Alloctns'!AL24/SUM('[2]21-23 Campus Contract Alloctns'!$I$5:$AP$108)","v":0},{"$f":"$I$5*'[2]21-23 Campus Contract Alloctns'!AM24/SUM('[2]21-23 Campus Contract Alloctns'!$I$5:$AP$108)","v":0},{"$f":"$I$5*'[2]21-23 Campus Contract Alloctns'!AN24/SUM('[2]21-23 Campus Contract Alloctns'!$I$5:$AP$108)","v":0},{"$f":"$I$5*'[2]21-23 Campus Contract Alloctns'!AO24/SUM('[2]21-23 Campus Contract Alloctns'!$I$5:$AP$108)","v":0},{"$f":"$I$5*'[2]21-23 Campus Contract Alloctns'!AP24/SUM('[2]21-23 Campus Contract Alloctns'!$I$5:$AP$108)","v":0}]
[null,"086 - Governor's Office of Indian Affairs","086","Governor's Office of Indian Affairs",2.9496186852358985E-4,1,1.7727436290226384E-5,0,2.7723443223336348E-4,{"$f":"$I$5*'[2]21-23 Campus Contract Alloctns'!I25/SUM('[2]21-23 Campus Contract Alloctns'!$I$5:$AP$108)","v":0},{"$f":"$I$5*'[2]21-23 Campus Contract Alloctns'!J25/SUM('[2]21-23 Campus Contract Alloctns'!$I$5:$AP$108)","v":0},{"$f":"$I$5*'[2]21-23 Campus Contract Alloctns'!K25/SUM('[2]21-23 Campus Contract Alloctns'!$I$5:$AP$108)","v":0},{"$f":"$I$5*'[2]21-23 Campus Contract Alloctns'!L25/SUM('[2]21-23 Campus Contract Alloctns'!$I$5:$AP$108)","v":0},{"$f":"$I$5*'[2]21-23 Campus Contract Alloctns'!M25/SUM('[2]21-23 Campus Contract Alloctns'!$I$5:$AP$108)","v":0},{"$f":"$I$5*'[2]21-23 Campus Contract Alloctns'!N25/SUM('[2]21-23 Campus Contract Alloctns'!$I$5:$AP$108)","v":0},{"$f":"$I$5*'[2]21-23 Campus Contract Alloctns'!O25/SUM('[2]21-23 Campus Contract Alloctns'!$I$5:$AP$108)","v":0},{"$f":"$I$5*'[2]21-23 Campus Contract Alloctns'!P25/SUM('[2]21-23 Campus Contract Alloctns'!$I$5:$AP$108)","v":0},{"$f":"$I$5*'[2]21-23 Campus Contract Alloctns'!Q25/SUM('[2]21-23 Campus Contract Alloctns'!$I$5:$AP$108)","v":0},{"$f":"$I$5*'[2]21-23 Campus Contract Alloctns'!R25/SUM('[2]21-23 Campus Contract Alloctns'!$I$5:$AP$108)","v":0},{"$f":"$I$5*'[2]21-23 Campus Contract Alloctns'!S25/SUM('[2]21-23 Campus Contract Alloctns'!$I$5:$AP$108)","v":0},{"$f":"$I$5*'[2]21-23 Campus Contract Alloctns'!T25/SUM('[2]21-23 Campus Contract Alloctns'!$I$5:$AP$108)","v":0},{"$f":"$I$5*'[2]21-23 Campus Contract Alloctns'!U25/SUM('[2]21-23 Campus Contract Alloctns'!$I$5:$AP$108)","v":0},{"$f":"$I$5*'[2]21-23 Campus Contract Alloctns'!V25/SUM('[2]21-23 Campus Contract Alloctns'!$I$5:$AP$108)","v":0},{"$f":"$I$5*'[2]21-23 Campus Contract Alloctns'!W25/SUM('[2]21-23 Campus Contract Alloctns'!$I$5:$AP$108)","v":0},{"$f":"$I$5*'[2]21-23 Campus Contract Alloctns'!X25/SUM('[2]21-23 Campus Contract Alloctns'!$I$5:$AP$108)","v":0},{"$f":"$I$5*'[2]21-23 Campus Contract Alloctns'!Y25/SUM('[2]21-23 Campus Contract Alloctns'!$I$5:$AP$108)","v":0},{"$f":"$I$5*'[2]21-23 Campus Contract Alloctns'!Z25/SUM('[2]21-23 Campus Contract Alloctns'!$I$5:$AP$108)","v":0},{"$f":"$I$5*'[2]21-23 Campus Contract Alloctns'!AA25/SUM('[2]21-23 Campus Contract Alloctns'!$I$5:$AP$108)","v":0},{"$f":"$I$5*'[2]21-23 Campus Contract Alloctns'!AB25/SUM('[2]21-23 Campus Contract Alloctns'!$I$5:$AP$108)","v":2.7723443223336353E-4},{"$f":"$I$5*'[2]21-23 Campus Contract Alloctns'!AC25/SUM('[2]21-23 Campus Contract Alloctns'!$I$5:$AP$108)","v":0},{"$f":"$I$5*'[2]21-23 Campus Contract Alloctns'!AD25/SUM('[2]21-23 Campus Contract Alloctns'!$I$5:$AP$108)","v":0},{"$f":"$I$5*'[2]21-23 Campus Contract Alloctns'!AE25/SUM('[2]21-23 Campus Contract Alloctns'!$I$5:$AP$108)","v":0},{"$f":"$I$5*'[2]21-23 Campus Contract Alloctns'!AF25/SUM('[2]21-23 Campus Contract Alloctns'!$I$5:$AP$108)","v":0},{"$f":"$I$5*'[2]21-23 Campus Contract Alloctns'!AG25/SUM('[2]21-23 Campus Contract Alloctns'!$I$5:$AP$108)","v":0},{"$f":"$I$5*'[2]21-23 Campus Contract Alloctns'!AH25/SUM('[2]21-23 Campus Contract Alloctns'!$I$5:$AP$108)","v":0},{"$f":"$I$5*'[2]21-23 Campus Contract Alloctns'!AI25/SUM('[2]21-23 Campus Contract Alloctns'!$I$5:$AP$108)","v":0},{"$f":"$I$5*'[2]21-23 Campus Contract Alloctns'!AJ25/SUM('[2]21-23 Campus Contract Alloctns'!$I$5:$AP$108)","v":0},{"$f":"$I$5*'[2]21-23 Campus Contract Alloctns'!AK25/SUM('[2]21-23 Campus Contract Alloctns'!$I$5:$AP$108)","v":0},{"$f":"$I$5*'[2]21-23 Campus Contract Alloctns'!AL25/SUM('[2]21-23 Campus Contract Alloctns'!$I$5:$AP$108)","v":0},{"$f":"$I$5*'[2]21-23 Campus Contract Alloctns'!AM25/SUM('[2]21-23 Campus Contract Alloctns'!$I$5:$AP$108)","v":0},{"$f":"$I$5*'[2]21-23 Campus Contract Alloctns'!AN25/SUM('[2]21-23 Campus Contract Alloctns'!$I$5:$AP$108)","v":0},{"$f":"$I$5*'[2]21-23 Campus Contract Alloctns'!AO25/SUM('[2]21-23 Campus Contract Alloctns'!$I$5:$AP$108)","v":0},{"$f":"$I$5*'[2]21-23 Campus Contract Alloctns'!AP25/SUM('[2]21-23 Campus Contract Alloctns'!$I$5:$AP$108)","v":0}]
[null,"087 - Commission on Asian Pacific American Affairs","087","Commission on Asian Pacific American Affairs",2.3554001848759433E-4,3,5.3182308870679155E-5,0,1.8235770961691519E-4,{"$f":"$I$5*'[2]21-23 Campus Contract Alloctns'!I26/SUM('[2]21-23 Campus Contract Alloctns'!$I$5:$AP$108)","v":0},{"$f":"$I$5*'[2]21-23 Campus Contract Alloctns'!J26/SUM('[2]21-23 Campus Contract Alloctns'!$I$5:$AP$108)","v":0},{"$f":"$I$5*'[2]21-23 Campus Contract Alloctns'!K26/SUM('[2]21-23 Campus Contract Alloctns'!$I$5:$AP$108)","v":0},{"$f":"$I$5*'[2]21-23 Campus Contract Alloctns'!L26/SUM('[2]21-23 Campus Contract Alloctns'!$I$5:$AP$108)","v":0},{"$f":"$I$5*'[2]21-23 Campus Contract Alloctns'!M26/SUM('[2]21-23 Campus Contract Alloctns'!$I$5:$AP$108)","v":0},{"$f":"$I$5*'[2]21-23 Campus Contract Alloctns'!N26/SUM('[2]21-23 Campus Contract Alloctns'!$I$5:$AP$108)","v":0},{"$f":"$I$5*'[2]21-23 Campus Contract Alloctns'!O26/SUM('[2]21-23 Campus Contract Alloctns'!$I$5:$AP$108)","v":0},{"$f":"$I$5*'[2]21-23 Campus Contract Alloctns'!P26/SUM('[2]21-23 Campus Contract Alloctns'!$I$5:$AP$108)","v":0},{"$f":"$I$5*'[2]21-23 Campus Contract Alloctns'!Q26/SUM('[2]21-23 Campus Contract Alloctns'!$I$5:$AP$108)","v":0},{"$f":"$I$5*'[2]21-23 Campus Contract Alloctns'!R26/SUM('[2]21-23 Campus Contract Alloctns'!$I$5:$AP$108)","v":0},{"$f":"$I$5*'[2]21-23 Campus Contract Alloctns'!S26/SUM('[2]21-23 Campus Contract Alloctns'!$I$5:$AP$108)","v":0},{"$f":"$I$5*'[2]21-23 Campus Contract Alloctns'!T26/SUM('[2]21-23 Campus Contract Alloctns'!$I$5:$AP$108)","v":0},{"$f":"$I$5*'[2]21-23 Campus Contract Alloctns'!U26/SUM('[2]21-23 Campus Contract Alloctns'!$I$5:$AP$108)","v":0},{"$f":"$I$5*'[2]21-23 Campus Contract Alloctns'!V26/SUM('[2]21-23 Campus Contract Alloctns'!$I$5:$AP$108)","v":0},{"$f":"$I$5*'[2]21-23 Campus Contract Alloctns'!W26/SUM('[2]21-23 Campus Contract Alloctns'!$I$5:$AP$108)","v":0},{"$f":"$I$5*'[2]21-23 Campus Contract Alloctns'!X26/SUM('[2]21-23 Campus Contract Alloctns'!$I$5:$AP$108)","v":0},{"$f":"$I$5*'[2]21-23 Campus Contract Alloctns'!Y26/SUM('[2]21-23 Campus Contract Alloctns'!$I$5:$AP$108)","v":0},{"$f":"$I$5*'[2]21-23 Campus Contract Alloctns'!Z26/SUM('[2]21-23 Campus Contract Alloctns'!$I$5:$AP$108)","v":0},{"$f":"$I$5*'[2]21-23 Campus Contract Alloctns'!AA26/SUM('[2]21-23 Campus Contract Alloctns'!$I$5:$AP$108)","v":0},{"$f":"$I$5*'[2]21-23 Campus Contract Alloctns'!AB26/SUM('[2]21-23 Campus Contract Alloctns'!$I$5:$AP$108)","v":1.8235770961691521E-4},{"$f":"$I$5*'[2]21-23 Campus Contract Alloctns'!AC26/SUM('[2]21-23 Campus Contract Alloctns'!$I$5:$AP$108)","v":0},{"$f":"$I$5*'[2]21-23 Campus Contract Alloctns'!AD26/SUM('[2]21-23 Campus Contract Alloctns'!$I$5:$AP$108)","v":0},{"$f":"$I$5*'[2]21-23 Campus Contract Alloctns'!AE26/SUM('[2]21-23 Campus Contract Alloctns'!$I$5:$AP$108)","v":0},{"$f":"$I$5*'[2]21-23 Campus Contract Alloctns'!AF26/SUM('[2]21-23 Campus Contract Alloctns'!$I$5:$AP$108)","v":0},{"$f":"$I$5*'[2]21-23 Campus Contract Alloctns'!AG26/SUM('[2]21-23 Campus Contract Alloctns'!$I$5:$AP$108)","v":0},{"$f":"$I$5*'[2]21-23 Campus Contract Alloctns'!AH26/SUM('[2]21-23 Campus Contract Alloctns'!$I$5:$AP$108)","v":0},{"$f":"$I$5*'[2]21-23 Campus Contract Alloctns'!AI26/SUM('[2]21-23 Campus Contract Alloctns'!$I$5:$AP$108)","v":0},{"$f":"$I$5*'[2]21-23 Campus Contract Alloctns'!AJ26/SUM('[2]21-23 Campus Contract Alloctns'!$I$5:$AP$108)","v":0},{"$f":"$I$5*'[2]21-23 Campus Contract Alloctns'!AK26/SUM('[2]21-23 Campus Contract Alloctns'!$I$5:$AP$108)","v":0},{"$f":"$I$5*'[2]21-23 Campus Contract Alloctns'!AL26/SUM('[2]21-23 Campus Contract Alloctns'!$I$5:$AP$108)","v":0},{"$f":"$I$5*'[2]21-23 Campus Contract Alloctns'!AM26/SUM('[2]21-23 Campus Contract Alloctns'!$I$5:$AP$108)","v":0},{"$f":"$I$5*'[2]21-23 Campus Contract Alloctns'!AN26/SUM('[2]21-23 Campus Contract Alloctns'!$I$5:$AP$108)","v":0},{"$f":"$I$5*'[2]21-23 Campus Contract Alloctns'!AO26/SUM('[2]21-23 Campus Contract Alloctns'!$I$5:$AP$108)","v":0},{"$f":"$I$5*'[2]21-23 Campus Contract Alloctns'!AP26/SUM('[2]21-23 Campus Contract Alloctns'!$I$5:$AP$108)","v":0}]
[null,"090 - Office of State Treasurer","090","Office of State Treasurer",4.5669907067638228E-3,60,1.0636461774135831E-3,4.2964748599637163E-4,3.0736970433538685E-3,{"$f":"$I$5*'[2]21-23 Campus Contract Alloctns'!I27/SUM('[2]21-23 Campus Contract Alloctns'!$I$5:$AP$108)","v":0},{"$f":"$I$5*'[2]21-23 Campus Contract Alloctns'!J27/SUM('[2]21-23 Campus Contract Alloctns'!$I$5:$AP$108)","v":0},{"$f":"$I$5*'[2]21-23 Campus Contract Alloctns'!K27/SUM('[2]21-23 Campus Contract Alloctns'!$I$5:$AP$108)","v":3.0736970433538689E-3},{"$f":"$I$5*'[2]21-23 Campus Contract Alloctns'!L27/SUM('[2]21-23 Campus Contract Alloctns'!$I$5:$AP$108)","v":0},{"$f":"$I$5*'[2]21-23 Campus Contract Alloctns'!M27/SUM('[2]21-23 Campus Contract Alloctns'!$I$5:$AP$108)","v":0},{"$f":"$I$5*'[2]21-23 Campus Contract Alloctns'!N27/SUM('[2]21-23 Campus Contract Alloctns'!$I$5:$AP$108)","v":0},{"$f":"$I$5*'[2]21-23 Campus Contract Alloctns'!O27/SUM('[2]21-23 Campus Contract Alloctns'!$I$5:$AP$108)","v":0},{"$f":"$I$5*'[2]21-23 Campus Contract Alloctns'!P27/SUM('[2]21-23 Campus Contract Alloctns'!$I$5:$AP$108)","v":0},{"$f":"$I$5*'[2]21-23 Campus Contract Alloctns'!Q27/SUM('[2]21-23 Campus Contract Alloctns'!$I$5:$AP$108)","v":0},{"$f":"$I$5*'[2]21-23 Campus Contract Alloctns'!R27/SUM('[2]21-23 Campus Contract Alloctns'!$I$5:$AP$108)","v":0},{"$f":"$I$5*'[2]21-23 Campus Contract Alloctns'!S27/SUM('[2]21-23 Campus Contract Alloctns'!$I$5:$AP$108)","v":0},{"$f":"$I$5*'[2]21-23 Campus Contract Alloctns'!T27/SUM('[2]21-23 Campus Contract Alloctns'!$I$5:$AP$108)","v":0},{"$f":"$I$5*'[2]21-23 Campus Contract Alloctns'!U27/SUM('[2]21-23 Campus Contract Alloctns'!$I$5:$AP$108)","v":0},{"$f":"$I$5*'[2]21-23 Campus Contract Alloctns'!V27/SUM('[2]21-23 Campus Contract Alloctns'!$I$5:$AP$108)","v":0},{"$f":"$I$5*'[2]21-23 Campus Contract Alloctns'!W27/SUM('[2]21-23 Campus Contract Alloctns'!$I$5:$AP$108)","v":0},{"$f":"$I$5*'[2]21-23 Campus Contract Alloctns'!X27/SUM('[2]21-23 Campus Contract Alloctns'!$I$5:$AP$108)","v":0},{"$f":"$I$5*'[2]21-23 Campus Contract Alloctns'!Y27/SUM('[2]21-23 Campus Contract Alloctns'!$I$5:$AP$108)","v":0},{"$f":"$I$5*'[2]21-23 Campus Contract Alloctns'!Z27/SUM('[2]21-23 Campus Contract Alloctns'!$I$5:$AP$108)","v":0},{"$f":"$I$5*'[2]21-23 Campus Contract Alloctns'!AA27/SUM('[2]21-23 Campus Contract Alloctns'!$I$5:$AP$108)","v":0},{"$f":"$I$5*'[2]21-23 Campus Contract Alloctns'!AB27/SUM('[2]21-23 Campus Contract Alloctns'!$I$5:$AP$108)","v":0},{"$f":"$I$5*'[2]21-23 Campus Contract Alloctns'!AC27/SUM('[2]21-23 Campus Contract Alloctns'!$I$5:$AP$108)","v":0},{"$f":"$I$5*'[2]21-23 Campus Contract Alloctns'!AD27/SUM('[2]21-23 Campus Contract Alloctns'!$I$5:$AP$108)","v":0},{"$f":"$I$5*'[2]21-23 Campus Contract Alloctns'!AE27/SUM('[2]21-23 Campus Contract Alloctns'!$I$5:$AP$108)","v":0},{"$f":"$I$5*'[2]21-23 Campus Contract Alloctns'!AF27/SUM('[2]21-23 Campus Contract Alloctns'!$I$5:$AP$108)","v":0},{"$f":"$I$5*'[2]21-23 Campus Contract Alloctns'!AG27/SUM('[2]21-23 Campus Contract Alloctns'!$I$5:$AP$108)","v":0},{"$f":"$I$5*'[2]21-23 Campus Contract Alloctns'!AH27/SUM('[2]21-23 Campus Contract Alloctns'!$I$5:$AP$108)","v":0},{"$f":"$I$5*'[2]21-23 Campus Contract Alloctns'!AI27/SUM('[2]21-23 Campus Contract Alloctns'!$I$5:$AP$108)","v":0},{"$f":"$I$5*'[2]21-23 Campus Contract Alloctns'!AJ27/SUM('[2]21-23 Campus Contract Alloctns'!$I$5:$AP$108)","v":0},{"$f":"$I$5*'[2]21-23 Campus Contract Alloctns'!AK27/SUM('[2]21-23 Campus Contract Alloctns'!$I$5:$AP$108)","v":0},{"$f":"$I$5*'[2]21-23 Campus Contract Alloctns'!AL27/SUM('[2]21-23 Campus Contract Alloctns'!$I$5:$AP$108)","v":0},{"$f":"$I$5*'[2]21-23 Campus Contract Alloctns'!AM27/SUM('[2]21-23 Campus Contract Alloctns'!$I$5:$AP$108)","v":0},{"$f":"$I$5*'[2]21-23 Campus Contract Alloctns'!AN27/SUM('[2]21-23 Campus Contract Alloctns'!$I$5:$AP$108)","v":0},{"$f":"$I$5*'[2]21-23 Campus Contract Alloctns'!AO27/SUM('[2]21-23 Campus Contract Alloctns'!$I$5:$AP$108)","v":0},{"$f":"$I$5*'[2]21-23 Campus Contract Alloctns'!AP27/SUM('[2]21-23 Campus Contract Alloctns'!$I$5:$AP$108)","v":0}]
[null,"095 - Office of State Auditor","095","Office of State Auditor",5.4261132564029551E-3,164,2.9072995515971273E-3,2.5710682969750211E-4,2.2617068751083257E-3,{"$f":"$I$5*'[2]21-23 Campus Contract Alloctns'!I28/SUM('[2]21-23 Campus Contract Alloctns'!$I$5:$AP$108)","v":0},{"$f":"$I$5*'[2]21-23 Campus Contract Alloctns'!J28/SUM('[2]21-23 Campus Contract Alloctns'!$I$5:$AP$108)","v":0},{"$f":"$I$5*'[2]21-23 Campus Contract Alloctns'!K28/SUM('[2]21-23 Campus Contract Alloctns'!$I$5:$AP$108)","v":0},{"$f":"$I$5*'[2]21-23 Campus Contract Alloctns'!L28/SUM('[2]21-23 Campus Contract Alloctns'!$I$5:$AP$108)","v":0},{"$f":"$I$5*'[2]21-23 Campus Contract Alloctns'!M28/SUM('[2]21-23 Campus Contract Alloctns'!$I$5:$AP$108)","v":0},{"$f":"$I$5*'[2]21-23 Campus Contract Alloctns'!N28/SUM('[2]21-23 Campus Contract Alloctns'!$I$5:$AP$108)","v":0},{"$f":"$I$5*'[2]21-23 Campus Contract Alloctns'!O28/SUM('[2]21-23 Campus Contract Alloctns'!$I$5:$AP$108)","v":0},{"$f":"$I$5*'[2]21-23 Campus Contract Alloctns'!P28/SUM('[2]21-23 Campus Contract Alloctns'!$I$5:$AP$108)","v":0},{"$f":"$I$5*'[2]21-23 Campus Contract Alloctns'!Q28/SUM('[2]21-23 Campus Contract Alloctns'!$I$5:$AP$108)","v":0},{"$f":"$I$5*'[2]21-23 Campus Contract Alloctns'!R28/SUM('[2]21-23 Campus Contract Alloctns'!$I$5:$AP$108)","v":0},{"$f":"$I$5*'[2]21-23 Campus Contract Alloctns'!S28/SUM('[2]21-23 Campus Contract Alloctns'!$I$5:$AP$108)","v":1.5231651995619832E-3},{"$f":"$I$5*'[2]21-23 Campus Contract Alloctns'!T28/SUM('[2]21-23 Campus Contract Alloctns'!$I$5:$AP$108)","v":0},{"$f":"$I$5*'[2]21-23 Campus Contract Alloctns'!U28/SUM('[2]21-23 Campus Contract Alloctns'!$I$5:$AP$108)","v":0},{"$f":"$I$5*'[2]21-23 Campus Contract Alloctns'!V28/SUM('[2]21-23 Campus Contract Alloctns'!$I$5:$AP$108)","v":0},{"$f":"$I$5*'[2]21-23 Campus Contract Alloctns'!W28/SUM('[2]21-23 Campus Contract Alloctns'!$I$5:$AP$108)","v":0},{"$f":"$I$5*'[2]21-23 Campus Contract Alloctns'!X28/SUM('[2]21-23 Campus Contract Alloctns'!$I$5:$AP$108)","v":0},{"$f":"$I$5*'[2]21-23 Campus Contract Alloctns'!Y28/SUM('[2]21-23 Campus Contract Alloctns'!$I$5:$AP$108)","v":0},{"$f":"$I$5*'[2]21-23 Campus Contract Alloctns'!Z28/SUM('[2]21-23 Campus Contract Alloctns'!$I$5:$AP$108)","v":0},{"$f":"$I$5*'[2]21-23 Campus Contract Alloctns'!AA28/SUM('[2]21-23 Campus Contract Alloctns'!$I$5:$AP$108)","v":0},{"$f":"$I$5*'[2]21-23 Campus Contract Alloctns'!AB28/SUM('[2]21-23 Campus Contract Alloctns'!$I$5:$AP$108)","v":0},{"$f":"$I$5*'[2]21-23 Campus Contract Alloctns'!AC28/SUM('[2]21-23 Campus Contract Alloctns'!$I$5:$AP$108)","v":0},{"$f":"$I$5*'[2]21-23 Campus Contract Alloctns'!AD28/SUM('[2]21-23 Campus Contract Alloctns'!$I$5:$AP$108)","v":0},{"$f":"$I$5*'[2]21-23 Campus Contract Alloctns'!AE28/SUM('[2]21-23 Campus Contract Alloctns'!$I$5:$AP$108)","v":0},{"$f":"$I$5*'[2]21-23 Campus Contract Alloctns'!AF28/SUM('[2]21-23 Campus Contract Alloctns'!$I$5:$AP$108)","v":0},{"$f":"$I$5*'[2]21-23 Campus Contract Alloctns'!AG28/SUM('[2]21-23 Campus Contract Alloctns'!$I$5:$AP$108)","v":0},{"$f":"$I$5*'[2]21-23 Campus Contract Alloctns'!AH28/SUM('[2]21-23 Campus Contract Alloctns'!$I$5:$AP$108)","v":0},{"$f":"$I$5*'[2]21-23 Campus Contract Alloctns'!AI28/SUM('[2]21-23 Campus Contract Alloctns'!$I$5:$AP$108)","v":0},{"$f":"$I$5*'[2]21-23 Campus Contract Alloctns'!AJ28/SUM('[2]21-23 Campus Contract Alloctns'!$I$5:$AP$108)","v":0},{"$f":"$I$5*'[2]21-23 Campus Contract Alloctns'!AK28/SUM('[2]21-23 Campus Contract Alloctns'!$I$5:$AP$108)","v":0},{"$f":"$I$5*'[2]21-23 Campus Contract Alloctns'!AL28/SUM('[2]21-23 Campus Contract Alloctns'!$I$5:$AP$108)","v":0},{"$f":"$I$5*'[2]21-23 Campus Contract Alloctns'!AM28/SUM('[2]21-23 Campus Contract Alloctns'!$I$5:$AP$108)","v":0},{"$f":"$I$5*'[2]21-23 Campus Contract Alloctns'!AN28/SUM('[2]21-23 Campus Contract Alloctns'!$I$5:$AP$108)","v":7.3854167554634261E-4},{"$f":"$I$5*'[2]21-23 Campus Contract Alloctns'!AO28/SUM('[2]21-23 Campus Contract Alloctns'!$I$5:$AP$108)","v":0},{"$f":"$I$5*'[2]21-23 Campus Contract Alloctns'!AP28/SUM('[2]21-23 Campus Contract Alloctns'!$I$5:$AP$108)","v":0}]
[null,"099 - Citizens' Commission on Salaries for Elected Officials","099","Citizens' Commission on Salaries for Elected Officials",1.9391259230621275E-4,3,5.3182308870679155E-5,0,1.407302834355336E-4,{"$f":"$I$5*'[2]21-23 Campus Contract Alloctns'!I29/SUM('[2]21-23 Campus Contract Alloctns'!$I$5:$AP$108)","v":0},{"$f":"$I$5*'[2]21-23 Campus Contract Alloctns'!J29/SUM('[2]21-23 Campus Contract Alloctns'!$I$5:$AP$108)","v":0},{"$f":"$I$5*'[2]21-23 Campus Contract Alloctns'!K29/SUM('[2]21-23 Campus Contract Alloctns'!$I$5:$AP$108)","v":0},{"$f":"$I$5*'[2]21-23 Campus Contract Alloctns'!L29/SUM('[2]21-23 Campus Contract Alloctns'!$I$5:$AP$108)","v":0},{"$f":"$I$5*'[2]21-23 Campus Contract Alloctns'!M29/SUM('[2]21-23 Campus Contract Alloctns'!$I$5:$AP$108)","v":0},{"$f":"$I$5*'[2]21-23 Campus Contract Alloctns'!N29/SUM('[2]21-23 Campus Contract Alloctns'!$I$5:$AP$108)","v":0},{"$f":"$I$5*'[2]21-23 Campus Contract Alloctns'!O29/SUM('[2]21-23 Campus Contract Alloctns'!$I$5:$AP$108)","v":0},{"$f":"$I$5*'[2]21-23 Campus Contract Alloctns'!P29/SUM('[2]21-23 Campus Contract Alloctns'!$I$5:$AP$108)","v":0},{"$f":"$I$5*'[2]21-23 Campus Contract Alloctns'!Q29/SUM('[2]21-23 Campus Contract Alloctns'!$I$5:$AP$108)","v":0},{"$f":"$I$5*'[2]21-23 Campus Contract Alloctns'!R29/SUM('[2]21-23 Campus Contract Alloctns'!$I$5:$AP$108)","v":0},{"$f":"$I$5*'[2]21-23 Campus Contract Alloctns'!S29/SUM('[2]21-23 Campus Contract Alloctns'!$I$5:$AP$108)","v":0},{"$f":"$I$5*'[2]21-23 Campus Contract Alloctns'!T29/SUM('[2]21-23 Campus Contract Alloctns'!$I$5:$AP$108)","v":0},{"$f":"$I$5*'[2]21-23 Campus Contract Alloctns'!U29/SUM('[2]21-23 Campus Contract Alloctns'!$I$5:$AP$108)","v":0},{"$f":"$I$5*'[2]21-23 Campus Contract Alloctns'!V29/SUM('[2]21-23 Campus Contract Alloctns'!$I$5:$AP$108)","v":0},{"$f":"$I$5*'[2]21-23 Campus Contract Alloctns'!W29/SUM('[2]21-23 Campus Contract Alloctns'!$I$5:$AP$108)","v":0},{"$f":"$I$5*'[2]21-23 Campus Contract Alloctns'!X29/SUM('[2]21-23 Campus Contract Alloctns'!$I$5:$AP$108)","v":0},{"$f":"$I$5*'[2]21-23 Campus Contract Alloctns'!Y29/SUM('[2]21-23 Campus Contract Alloctns'!$I$5:$AP$108)","v":0},{"$f":"$I$5*'[2]21-23 Campus Contract Alloctns'!Z29/SUM('[2]21-23 Campus Contract Alloctns'!$I$5:$AP$108)","v":0},{"$f":"$I$5*'[2]21-23 Campus Contract Alloctns'!AA29/SUM('[2]21-23 Campus Contract Alloctns'!$I$5:$AP$108)","v":0},{"$f":"$I$5*'[2]21-23 Campus Contract Alloctns'!AB29/SUM('[2]21-23 Campus Contract Alloctns'!$I$5:$AP$108)","v":1.4073028343553363E-4},{"$f":"$I$5*'[2]21-23 Campus Contract Alloctns'!AC29/SUM('[2]21-23 Campus Contract Alloctns'!$I$5:$AP$108)","v":0},{"$f":"$I$5*'[2]21-23 Campus Contract Alloctns'!AD29/SUM('[2]21-23 Campus Contract Alloctns'!$I$5:$AP$108)","v":0},{"$f":"$I$5*'[2]21-23 Campus Contract Alloctns'!AE29/SUM('[2]21-23 Campus Contract Alloctns'!$I$5:$AP$108)","v":0},{"$f":"$I$5*'[2]21-23 Campus Contract Alloctns'!AF29/SUM('[2]21-23 Campus Contract Alloctns'!$I$5:$AP$108)","v":0},{"$f":"$I$5*'[2]21-23 Campus Contract Alloctns'!AG29/SUM('[2]21-23 Campus Contract Alloctns'!$I$5:$AP$108)","v":0},{"$f":"$I$5*'[2]21-23 Campus Contract Alloctns'!AH29/SUM('[2]21-23 Campus Contract Alloctns'!$I$5:$AP$108)","v":0},{"$f":"$I$5*'[2]21-23 Campus Contract Alloctns'!AI29/SUM('[2]21-23 Campus Contract Alloctns'!$I$5:$AP$108)","v":0},{"$f":"$I$5*'[2]21-23 Campus Contract Alloctns'!AJ29/SUM('[2]21-23 Campus Contract Alloctns'!$I$5:$AP$108)","v":0},{"$f":"$I$5*'[2]21-23 Campus Contract Alloctns'!AK29/SUM('[2]21-23 Campus Contract Alloctns'!$I$5:$AP$108)","v":0},{"$f":"$I$5*'[2]21-23 Campus Contract Alloctns'!AL29/SUM('[2]21-23 Campus Contract Alloctns'!$I$5:$AP$108)","v":0},{"$f":"$I$5*'[2]21-23 Campus Contract Alloctns'!AM29/SUM('[2]21-23 Campus Contract Alloctns'!$I$5:$AP$108)","v":0},{"$f":"$I$5*'[2]21-23 Campus Contract Alloctns'!AN29/SUM('[2]21-23 Campus Contract Alloctns'!$I$5:$AP$108)","v":0},{"$f":"$I$5*'[2]21-23 Campus Contract Alloctns'!AO29/SUM('[2]21-23 Campus Contract Alloctns'!$I$5:$AP$108)","v":0},{"$f":"$I$5*'[2]21-23 Campus Contract Alloctns'!AP29/SUM('[2]21-23 Campus Contract Alloctns'!$I$5:$AP$108)","v":0}]
[null,"100 - Office of Attorney General","100","Office of Attorney General",3.4373441864601326E-2,685,1.2143293858805075E-2,2.9126611045534709E-3,1.9317486901242777E-2,{"$f":"$I$5*'[2]21-23 Campus Contract Alloctns'!I30/SUM('[2]21-23 Campus Contract Alloctns'!$I$5:$AP$108)","v":0},{"$f":"$I$5*'[2]21-23 Campus Contract Alloctns'!J30/SUM('[2]21-23 Campus Contract Alloctns'!$I$5:$AP$108)","v":0},{"$f":"$I$5*'[2]21-23 Campus Contract Alloctns'!K30/SUM('[2]21-23 Campus Contract Alloctns'!$I$5:$AP$108)","v":0},{"$f":"$I$5*'[2]21-23 Campus Contract Alloctns'!L30/SUM('[2]21-23 Campus Contract Alloctns'!$I$5:$AP$108)","v":0},{"$f":"$I$5*'[2]21-23 Campus Contract Alloctns'!M30/SUM('[2]21-23 Campus Contract Alloctns'!$I$5:$AP$108)","v":1.931748690124278E-2},{"$f":"$I$5*'[2]21-23 Campus Contract Alloctns'!N30/SUM('[2]21-23 Campus Contract Alloctns'!$I$5:$AP$108)","v":0},{"$f":"$I$5*'[2]21-23 Campus Contract Alloctns'!O30/SUM('[2]21-23 Campus Contract Alloctns'!$I$5:$AP$108)","v":0},{"$f":"$I$5*'[2]21-23 Campus Contract Alloctns'!P30/SUM('[2]21-23 Campus Contract Alloctns'!$I$5:$AP$108)","v":0},{"$f":"$I$5*'[2]21-23 Campus Contract Alloctns'!Q30/SUM('[2]21-23 Campus Contract Alloctns'!$I$5:$AP$108)","v":0},{"$f":"$I$5*'[2]21-23 Campus Contract Alloctns'!R30/SUM('[2]21-23 Campus Contract Alloctns'!$I$5:$AP$108)","v":0},{"$f":"$I$5*'[2]21-23 Campus Contract Alloctns'!S30/SUM('[2]21-23 Campus Contract Alloctns'!$I$5:$AP$108)","v":0},{"$f":"$I$5*'[2]21-23 Campus Contract Alloctns'!T30/SUM('[2]21-23 Campus Contract Alloctns'!$I$5:$AP$108)","v":0},{"$f":"$I$5*'[2]21-23 Campus Contract Alloctns'!U30/SUM('[2]21-23 Campus Contract Alloctns'!$I$5:$AP$108)","v":0},{"$f":"$I$5*'[2]21-23 Campus Contract Alloctns'!V30/SUM('[2]21-23 Campus Contract Alloctns'!$I$5:$AP$108)","v":0},{"$f":"$I$5*'[2]21-23 Campus Contract Alloctns'!W30/SUM('[2]21-23 Campus Contract Alloctns'!$I$5:$AP$108)","v":0},{"$f":"$I$5*'[2]21-23 Campus Contract Alloctns'!X30/SUM('[2]21-23 Campus Contract Alloctns'!$I$5:$AP$108)","v":0},{"$f":"$I$5*'[2]21-23 Campus Contract Alloctns'!Y30/SUM('[2]21-23 Campus Contract Alloctns'!$I$5:$AP$108)","v":0},{"$f":"$I$5*'[2]21-23 Campus Contract Alloctns'!Z30/SUM('[2]21-23 Campus Contract Alloctns'!$I$5:$AP$108)","v":0},{"$f":"$I$5*'[2]21-23 Campus Contract Alloctns'!AA30/SUM('[2]21-23 Campus Contract Alloctns'!$I$5:$AP$108)","v":0},{"$f":"$I$5*'[2]21-23 Campus Contract Alloctns'!AB30/SUM('[2]21-23 Campus Contract Alloctns'!$I$5:$AP$108)","v":0},{"$f":"$I$5*'[2]21-23 Campus Contract Alloctns'!AC30/SUM('[2]21-23 Campus Contract Alloctns'!$I$5:$AP$108)","v":0},{"$f":"$I$5*'[2]21-23 Campus Contract Alloctns'!AD30/SUM('[2]21-23 Campus Contract Alloctns'!$I$5:$AP$108)","v":0},{"$f":"$I$5*'[2]21-23 Campus Contract Alloctns'!AE30/SUM('[2]21-23 Campus Contract Alloctns'!$I$5:$AP$108)","v":0},{"$f":"$I$5*'[2]21-23 Campus Contract Alloctns'!AF30/SUM('[2]21-23 Campus Contract Alloctns'!$I$5:$AP$108)","v":0},{"$f":"$I$5*'[2]21-23 Campus Contract Alloctns'!AG30/SUM('[2]21-23 Campus Contract Alloctns'!$I$5:$AP$108)","v":0},{"$f":"$I$5*'[2]21-23 Campus Contract Alloctns'!AH30/SUM('[2]21-23 Campus Contract Alloctns'!$I$5:$AP$108)","v":0},{"$f":"$I$5*'[2]21-23 Campus Contract Alloctns'!AI30/SUM('[2]21-23 Campus Contract Alloctns'!$I$5:$AP$108)","v":0},{"$f":"$I$5*'[2]21-23 Campus Contract Alloctns'!AJ30/SUM('[2]21-23 Campus Contract Alloctns'!$I$5:$AP$108)","v":0},{"$f":"$I$5*'[2]21-23 Campus Contract Alloctns'!AK30/SUM('[2]21-23 Campus Contract Alloctns'!$I$5:$AP$108)","v":0},{"$f":"$I$5*'[2]21-23 Campus Contract Alloctns'!AL30/SUM('[2]21-23 Campus Contract Alloctns'!$I$5:$AP$108)","v":0},{"$f":"$I$5*'[2]21-23 Campus Contract Alloctns'!AM30/SUM('[2]21-23 Campus Contract Alloctns'!$I$5:$AP$108)","v":0},{"$f":"$I$5*'[2]21-23 Campus Contract Alloctns'!AN30/SUM('[2]21-23 Campus Contract Alloctns'!$I$5:$AP$108)","v":0},{"$f":"$I$5*'[2]21-23 Campus Contract Alloctns'!AO30/SUM('[2]21-23 Campus Contract Alloctns'!$I$5:$AP$108)","v":0},{"$f":"$I$5*'[2]21-23 Campus Contract Alloctns'!AP30/SUM('[2]21-23 Campus Contract Alloctns'!$I$5:$AP$108)","v":0}]
[null,"101 - Caseload Forecast Council","101","Caseload Forecast Council",1.2671944859660512E-3,10,1.7727436290226387E-4,0,1.0899201230637873E-3,{"$f":"$I$5*'[2]21-23 Campus Contract Alloctns'!I31/SUM('[2]21-23 Campus Contract Alloctns'!$I$5:$AP$108)","v":0},{"$f":"$I$5*'[2]21-23 Campus Contract Alloctns'!J31/SUM('[2]21-23 Campus Contract Alloctns'!$I$5:$AP$108)","v":0},{"$f":"$I$5*'[2]21-23 Campus Contract Alloctns'!K31/SUM('[2]21-23 Campus Contract Alloctns'!$I$5:$AP$108)","v":0},{"$f":"$I$5*'[2]21-23 Campus Contract Alloctns'!L31/SUM('[2]21-23 Campus Contract Alloctns'!$I$5:$AP$108)","v":0},{"$f":"$I$5*'[2]21-23 Campus Contract Alloctns'!M31/SUM('[2]21-23 Campus Contract Alloctns'!$I$5:$AP$108)","v":0},{"$f":"$I$5*'[2]21-23 Campus Contract Alloctns'!N31/SUM('[2]21-23 Campus Contract Alloctns'!$I$5:$AP$108)","v":0},{"$f":"$I$5*'[2]21-23 Campus Contract Alloctns'!O31/SUM('[2]21-23 Campus Contract Alloctns'!$I$5:$AP$108)","v":0},{"$f":"$I$5*'[2]21-23 Campus Contract Alloctns'!P31/SUM('[2]21-23 Campus Contract Alloctns'!$I$5:$AP$108)","v":0},{"$f":"$I$5*'[2]21-23 Campus Contract Alloctns'!Q31/SUM('[2]21-23 Campus Contract Alloctns'!$I$5:$AP$108)","v":0},{"$f":"$I$5*'[2]21-23 Campus Contract Alloctns'!R31/SUM('[2]21-23 Campus Contract Alloctns'!$I$5:$AP$108)","v":0},{"$f":"$I$5*'[2]21-23 Campus Contract Alloctns'!S31/SUM('[2]21-23 Campus Contract Alloctns'!$I$5:$AP$108)","v":0},{"$f":"$I$5*'[2]21-23 Campus Contract Alloctns'!T31/SUM('[2]21-23 Campus Contract Alloctns'!$I$5:$AP$108)","v":0},{"$f":"$I$5*'[2]21-23 Campus Contract Alloctns'!U31/SUM('[2]21-23 Campus Contract Alloctns'!$I$5:$AP$108)","v":0},{"$f":"$I$5*'[2]21-23 Campus Contract Alloctns'!V31/SUM('[2]21-23 Campus Contract Alloctns'!$I$5:$AP$108)","v":0},{"$f":"$I$5*'[2]21-23 Campus Contract Alloctns'!W31/SUM('[2]21-23 Campus Contract Alloctns'!$I$5:$AP$108)","v":0},{"$f":"$I$5*'[2]21-23 Campus Contract Alloctns'!X31/SUM('[2]21-23 Campus Contract Alloctns'!$I$5:$AP$108)","v":0},{"$f":"$I$5*'[2]21-23 Campus Contract Alloctns'!Y31/SUM('[2]21-23 Campus Contract Alloctns'!$I$5:$AP$108)","v":0},{"$f":"$I$5*'[2]21-23 Campus Contract Alloctns'!Z31/SUM('[2]21-23 Campus Contract Alloctns'!$I$5:$AP$108)","v":0},{"$f":"$I$5*'[2]21-23 Campus Contract Alloctns'!AA31/SUM('[2]21-23 Campus Contract Alloctns'!$I$5:$AP$108)","v":0},{"$f":"$I$5*'[2]21-23 Campus Contract Alloctns'!AB31/SUM('[2]21-23 Campus Contract Alloctns'!$I$5:$AP$108)","v":1.0899201230637875E-3},{"$f":"$I$5*'[2]21-23 Campus Contract Alloctns'!AC31/SUM('[2]21-23 Campus Contract Alloctns'!$I$5:$AP$108)","v":0},{"$f":"$I$5*'[2]21-23 Campus Contract Alloctns'!AD31/SUM('[2]21-23 Campus Contract Alloctns'!$I$5:$AP$108)","v":0},{"$f":"$I$5*'[2]21-23 Campus Contract Alloctns'!AE31/SUM('[2]21-23 Campus Contract Alloctns'!$I$5:$AP$108)","v":0},{"$f":"$I$5*'[2]21-23 Campus Contract Alloctns'!AF31/SUM('[2]21-23 Campus Contract Alloctns'!$I$5:$AP$108)","v":0},{"$f":"$I$5*'[2]21-23 Campus Contract Alloctns'!AG31/SUM('[2]21-23 Campus Contract Alloctns'!$I$5:$AP$108)","v":0},{"$f":"$I$5*'[2]21-23 Campus Contract Alloctns'!AH31/SUM('[2]21-23 Campus Contract Alloctns'!$I$5:$AP$108)","v":0},{"$f":"$I$5*'[2]21-23 Campus Contract Alloctns'!AI31/SUM('[2]21-23 Campus Contract Alloctns'!$I$5:$AP$108)","v":0},{"$f":"$I$5*'[2]21-23 Campus Contract Alloctns'!AJ31/SUM('[2]21-23 Campus Contract Alloctns'!$I$5:$AP$108)","v":0},{"$f":"$I$5*'[2]21-23 Campus Contract Alloctns'!AK31/SUM('[2]21-23 Campus Contract Alloctns'!$I$5:$AP$108)","v":0},{"$f":"$I$5*'[2]21-23 Campus Contract Alloctns'!AL31/SUM('[2]21-23 Campus Contract Alloctns'!$I$5:$AP$108)","v":0},{"$f":"$I$5*'[2]21-23 Campus Contract Alloctns'!AM31/SUM('[2]21-23 Campus Contract Alloctns'!$I$5:$AP$108)","v":0},{"$f":"$I$5*'[2]21-23 Campus Contract Alloctns'!AN31/SUM('[2]21-23 Campus Contract Alloctns'!$I$5:$AP$108)","v":0},{"$f":"$I$5*'[2]21-23 Campus Contract Alloctns'!AO31/SUM('[2]21-23 Campus Contract Alloctns'!$I$5:$AP$108)","v":0},{"$f":"$I$5*'[2]21-23 Campus Contract Alloctns'!AP31/SUM('[2]21-23 Campus Contract Alloctns'!$I$5:$AP$108)","v":0}]
[null,"102 - Department of Financial Institutions","102","Department of Financial Institutions",2.8541172427264481E-3,161,2.8541172427264481E-3,0,0,{"$f":"$I$5*'[2]21-23 Campus Contract Alloctns'!I32/SUM('[2]21-23 Campus Contract Alloctns'!$I$5:$AP$108)","v":0},{"$f":"$I$5*'[2]21-23 Campus Contract Alloctns'!J32/SUM('[2]21-23 Campus Contract Alloctns'!$I$5:$AP$108)","v":0},{"$f":"$I$5*'[2]21-23 Campus Contract Alloctns'!K32/SUM('[2]21-23 Campus Contract Alloctns'!$I$5:$AP$108)","v":0},{"$f":"$I$5*'[2]21-23 Campus Contract Alloctns'!L32/SUM('[2]21-23 Campus Contract Alloctns'!$I$5:$AP$108)","v":0},{"$f":"$I$5*'[2]21-23 Campus Contract Alloctns'!M32/SUM('[2]21-23 Campus Contract Alloctns'!$I$5:$AP$108)","v":0},{"$f":"$I$5*'[2]21-23 Campus Contract Alloctns'!N32/SUM('[2]21-23 Campus Contract Alloctns'!$I$5:$AP$108)","v":0},{"$f":"$I$5*'[2]21-23 Campus Contract Alloctns'!O32/SUM('[2]21-23 Campus Contract Alloctns'!$I$5:$AP$108)","v":0},{"$f":"$I$5*'[2]21-23 Campus Contract Alloctns'!P32/SUM('[2]21-23 Campus Contract Alloctns'!$I$5:$AP$108)","v":0},{"$f":"$I$5*'[2]21-23 Campus Contract Alloctns'!Q32/SUM('[2]21-23 Campus Contract Alloctns'!$I$5:$AP$108)","v":0},{"$f":"$I$5*'[2]21-23 Campus Contract Alloctns'!R32/SUM('[2]21-23 Campus Contract Alloctns'!$I$5:$AP$108)","v":0},{"$f":"$I$5*'[2]21-23 Campus Contract Alloctns'!S32/SUM('[2]21-23 Campus Contract Alloctns'!$I$5:$AP$108)","v":0},{"$f":"$I$5*'[2]21-23 Campus Contract Alloctns'!T32/SUM('[2]21-23 Campus Contract Alloctns'!$I$5:$AP$108)","v":0},{"$f":"$I$5*'[2]21-23 Campus Contract Alloctns'!U32/SUM('[2]21-23 Campus Contract Alloctns'!$I$5:$AP$108)","v":0},{"$f":"$I$5*'[2]21-23 Campus Contract Alloctns'!V32/SUM('[2]21-23 Campus Contract Alloctns'!$I$5:$AP$108)","v":0},{"$f":"$I$5*'[2]21-23 Campus Contract Alloctns'!W32/SUM('[2]21-23 Campus Contract Alloctns'!$I$5:$AP$108)","v":0},{"$f":"$I$5*'[2]21-23 Campus Contract Alloctns'!X32/SUM('[2]21-23 Campus Contract Alloctns'!$I$5:$AP$108)","v":0},{"$f":"$I$5*'[2]21-23 Campus Contract Alloctns'!Y32/SUM('[2]21-23 Campus Contract Alloctns'!$I$5:$AP$108)","v":0},{"$f":"$I$5*'[2]21-23 Campus Contract Alloctns'!Z32/SUM('[2]21-23 Campus Contract Alloctns'!$I$5:$AP$108)","v":0},{"$f":"$I$5*'[2]21-23 Campus Contract Alloctns'!AA32/SUM('[2]21-23 Campus Contract Alloctns'!$I$5:$AP$108)","v":0},{"$f":"$I$5*'[2]21-23 Campus Contract Alloctns'!AB32/SUM('[2]21-23 Campus Contract Alloctns'!$I$5:$AP$108)","v":0},{"$f":"$I$5*'[2]21-23 Campus Contract Alloctns'!AC32/SUM('[2]21-23 Campus Contract Alloctns'!$I$5:$AP$108)","v":0},{"$f":"$I$5*'[2]21-23 Campus Contract Alloctns'!AD32/SUM('[2]21-23 Campus Contract Alloctns'!$I$5:$AP$108)","v":0},{"$f":"$I$5*'[2]21-23 Campus Contract Alloctns'!AE32/SUM('[2]21-23 Campus Contract Alloctns'!$I$5:$AP$108)","v":0},{"$f":"$I$5*'[2]21-23 Campus Contract Alloctns'!AF32/SUM('[2]21-23 Campus Contract Alloctns'!$I$5:$AP$108)","v":0},{"$f":"$I$5*'[2]21-23 Campus Contract Alloctns'!AG32/SUM('[2]21-23 Campus Contract Alloctns'!$I$5:$AP$108)","v":0},{"$f":"$I$5*'[2]21-23 Campus Contract Alloctns'!AH32/SUM('[2]21-23 Campus Contract Alloctns'!$I$5:$AP$108)","v":0},{"$f":"$I$5*'[2]21-23 Campus Contract Alloctns'!AI32/SUM('[2]21-23 Campus Contract Alloctns'!$I$5:$AP$108)","v":0},{"$f":"$I$5*'[2]21-23 Campus Contract Alloctns'!AJ32/SUM('[2]21-23 Campus Contract Alloctns'!$I$5:$AP$108)","v":0},{"$f":"$I$5*'[2]21-23 Campus Contract Alloctns'!AK32/SUM('[2]21-23 Campus Contract Alloctns'!$I$5:$AP$108)","v":0},{"$f":"$I$5*'[2]21-23 Campus Contract Alloctns'!AL32/SUM('[2]21-23 Campus Contract Alloctns'!$I$5:$AP$108)","v":0},{"$f":"$I$5*'[2]21-23 Campus Contract Alloctns'!AM32/SUM('[2]21-23 Campus Contract Alloctns'!$I$5:$AP$108)","v":0},{"$f":"$I$5*'[2]21-23 Campus Contract Alloctns'!AN32/SUM('[2]21-23 Campus Contract Alloctns'!$I$5:$AP$108)","v":0},{"$f":"$I$5*'[2]21-23 Campus Contract Alloctns'!AO32/SUM('[2]21-23 Campus Contract Alloctns'!$I$5:$AP$108)","v":0},{"$f":"$I$5*'[2]21-23 Campus Contract Alloctns'!AP32/SUM('[2]21-23 Campus Contract Alloctns'!$I$5:$AP$108)","v":0}]
[null,"103 - Department of Commerce","103","Department of Commerce",5.4423229410994999E-3,307,5.4423229410994999E-3,0,0,{"$f":"$I$5*'[2]21-23 Campus Contract Alloctns'!I33/SUM('[2]21-23 Campus Contract Alloctns'!$I$5:$AP$108)","v":0},{"$f":"$I$5*'[2]21-23 Campus Contract Alloctns'!J33/SUM('[2]21-23 Campus Contract Alloctns'!$I$5:$AP$108)","v":0},{"$f":"$I$5*'[2]21-23 Campus Contract Alloctns'!K33/SUM('[2]21-23 Campus Contract Alloctns'!$I$5:$AP$108)","v":0},{"$f":"$I$5*'[2]21-23 Campus Contract Alloctns'!L33/SUM('[2]21-23 Campus Contract Alloctns'!$I$5:$AP$108)","v":0},{"$f":"$I$5*'[2]21-23 Campus Contract Alloctns'!M33/SUM('[2]21-23 Campus Contract Alloctns'!$I$5:$AP$108)","v":0},{"$f":"$I$5*'[2]21-23 Campus Contract Alloctns'!N33/SUM('[2]21-23 Campus Contract Alloctns'!$I$5:$AP$108)","v":0},{"$f":"$I$5*'[2]21-23 Campus Contract Alloctns'!O33/SUM('[2]21-23 Campus Contract Alloctns'!$I$5:$AP$108)","v":0},{"$f":"$I$5*'[2]21-23 Campus Contract Alloctns'!P33/SUM('[2]21-23 Campus Contract Alloctns'!$I$5:$AP$108)","v":0},{"$f":"$I$5*'[2]21-23 Campus Contract Alloctns'!Q33/SUM('[2]21-23 Campus Contract Alloctns'!$I$5:$AP$108)","v":0},{"$f":"$I$5*'[2]21-23 Campus Contract Alloctns'!R33/SUM('[2]21-23 Campus Contract Alloctns'!$I$5:$AP$108)","v":0},{"$f":"$I$5*'[2]21-23 Campus Contract Alloctns'!S33/SUM('[2]21-23 Campus Contract Alloctns'!$I$5:$AP$108)","v":0},{"$f":"$I$5*'[2]21-23 Campus Contract Alloctns'!T33/SUM('[2]21-23 Campus Contract Alloctns'!$I$5:$AP$108)","v":0},{"$f":"$I$5*'[2]21-23 Campus Contract Alloctns'!U33/SUM('[2]21-23 Campus Contract Alloctns'!$I$5:$AP$108)","v":0},{"$f":"$I$5*'[2]21-23 Campus Contract Alloctns'!V33/SUM('[2]21-23 Campus Contract Alloctns'!$I$5:$AP$108)","v":0},{"$f":"$I$5*'[2]21-23 Campus Contract Alloctns'!W33/SUM('[2]21-23 Campus Contract Alloctns'!$I$5:$AP$108)","v":0},{"$f":"$I$5*'[2]21-23 Campus Contract Alloctns'!X33/SUM('[2]21-23 Campus Contract Alloctns'!$I$5:$AP$108)","v":0},{"$f":"$I$5*'[2]21-23 Campus Contract Alloctns'!Y33/SUM('[2]21-23 Campus Contract Alloctns'!$I$5:$AP$108)","v":0},{"$f":"$I$5*'[2]21-23 Campus Contract Alloctns'!Z33/SUM('[2]21-23 Campus Contract Alloctns'!$I$5:$AP$108)","v":0},{"$f":"$I$5*'[2]21-23 Campus Contract Alloctns'!AA33/SUM('[2]21-23 Campus Contract Alloctns'!$I$5:$AP$108)","v":0},{"$f":"$I$5*'[2]21-23 Campus Contract Alloctns'!AB33/SUM('[2]21-23 Campus Contract Alloctns'!$I$5:$AP$108)","v":0},{"$f":"$I$5*'[2]21-23 Campus Contract Alloctns'!AC33/SUM('[2]21-23 Campus Contract Alloctns'!$I$5:$AP$108)","v":0},{"$f":"$I$5*'[2]21-23 Campus Contract Alloctns'!AD33/SUM('[2]21-23 Campus Contract Alloctns'!$I$5:$AP$108)","v":0},{"$f":"$I$5*'[2]21-23 Campus Contract Alloctns'!AE33/SUM('[2]21-23 Campus Contract Alloctns'!$I$5:$AP$108)","v":0},{"$f":"$I$5*'[2]21-23 Campus Contract Alloctns'!AF33/SUM('[2]21-23 Campus Contract Alloctns'!$I$5:$AP$108)","v":0},{"$f":"$I$5*'[2]21-23 Campus Contract Alloctns'!AG33/SUM('[2]21-23 Campus Contract Alloctns'!$I$5:$AP$108)","v":0},{"$f":"$I$5*'[2]21-23 Campus Contract Alloctns'!AH33/SUM('[2]21-23 Campus Contract Alloctns'!$I$5:$AP$108)","v":0},{"$f":"$I$5*'[2]21-23 Campus Contract Alloctns'!AI33/SUM('[2]21-23 Campus Contract Alloctns'!$I$5:$AP$108)","v":0},{"$f":"$I$5*'[2]21-23 Campus Contract Alloctns'!AJ33/SUM('[2]21-23 Campus Contract Alloctns'!$I$5:$AP$108)","v":0},{"$f":"$I$5*'[2]21-23 Campus Contract Alloctns'!AK33/SUM('[2]21-23 Campus Contract Alloctns'!$I$5:$AP$108)","v":0},{"$f":"$I$5*'[2]21-23 Campus Contract Alloctns'!AL33/SUM('[2]21-23 Campus Contract Alloctns'!$I$5:$AP$108)","v":0},{"$f":"$I$5*'[2]21-23 Campus Contract Alloctns'!AM33/SUM('[2]21-23 Campus Contract Alloctns'!$I$5:$AP$108)","v":0},{"$f":"$I$5*'[2]21-23 Campus Contract Alloctns'!AN33/SUM('[2]21-23 Campus Contract Alloctns'!$I$5:$AP$108)","v":0},{"$f":"$I$5*'[2]21-23 Campus Contract Alloctns'!AO33/SUM('[2]21-23 Campus Contract Alloctns'!$I$5:$AP$108)","v":0},{"$f":"$I$5*'[2]21-23 Campus Contract Alloctns'!AP33/SUM('[2]21-23 Campus Contract Alloctns'!$I$5:$AP$108)","v":0}]
[null,"104 - Economic and Revenue Forecast Council","104","Economic and Revenue Forecast Council",8.8637181451131937E-5,5,8.8637181451131937E-5,0,0,{"$f":"$I$5*'[2]21-23 Campus Contract Alloctns'!I34/SUM('[2]21-23 Campus Contract Alloctns'!$I$5:$AP$108)","v":0},{"$f":"$I$5*'[2]21-23 Campus Contract Alloctns'!J34/SUM('[2]21-23 Campus Contract Alloctns'!$I$5:$AP$108)","v":0},{"$f":"$I$5*'[2]21-23 Campus Contract Alloctns'!K34/SUM('[2]21-23 Campus Contract Alloctns'!$I$5:$AP$108)","v":0},{"$f":"$I$5*'[2]21-23 Campus Contract Alloctns'!L34/SUM('[2]21-23 Campus Contract Alloctns'!$I$5:$AP$108)","v":0},{"$f":"$I$5*'[2]21-23 Campus Contract Alloctns'!M34/SUM('[2]21-23 Campus Contract Alloctns'!$I$5:$AP$108)","v":0},{"$f":"$I$5*'[2]21-23 Campus Contract Alloctns'!N34/SUM('[2]21-23 Campus Contract Alloctns'!$I$5:$AP$108)","v":0},{"$f":"$I$5*'[2]21-23 Campus Contract Alloctns'!O34/SUM('[2]21-23 Campus Contract Alloctns'!$I$5:$AP$108)","v":0},{"$f":"$I$5*'[2]21-23 Campus Contract Alloctns'!P34/SUM('[2]21-23 Campus Contract Alloctns'!$I$5:$AP$108)","v":0},{"$f":"$I$5*'[2]21-23 Campus Contract Alloctns'!Q34/SUM('[2]21-23 Campus Contract Alloctns'!$I$5:$AP$108)","v":0},{"$f":"$I$5*'[2]21-23 Campus Contract Alloctns'!R34/SUM('[2]21-23 Campus Contract Alloctns'!$I$5:$AP$108)","v":0},{"$f":"$I$5*'[2]21-23 Campus Contract Alloctns'!S34/SUM('[2]21-23 Campus Contract Alloctns'!$I$5:$AP$108)","v":0},{"$f":"$I$5*'[2]21-23 Campus Contract Alloctns'!T34/SUM('[2]21-23 Campus Contract Alloctns'!$I$5:$AP$108)","v":0},{"$f":"$I$5*'[2]21-23 Campus Contract Alloctns'!U34/SUM('[2]21-23 Campus Contract Alloctns'!$I$5:$AP$108)","v":0},{"$f":"$I$5*'[2]21-23 Campus Contract Alloctns'!V34/SUM('[2]21-23 Campus Contract Alloctns'!$I$5:$AP$108)","v":0},{"$f":"$I$5*'[2]21-23 Campus Contract Alloctns'!W34/SUM('[2]21-23 Campus Contract Alloctns'!$I$5:$AP$108)","v":0},{"$f":"$I$5*'[2]21-23 Campus Contract Alloctns'!X34/SUM('[2]21-23 Campus Contract Alloctns'!$I$5:$AP$108)","v":0},{"$f":"$I$5*'[2]21-23 Campus Contract Alloctns'!Y34/SUM('[2]21-23 Campus Contract Alloctns'!$I$5:$AP$108)","v":0},{"$f":"$I$5*'[2]21-23 Campus Contract Alloctns'!Z34/SUM('[2]21-23 Campus Contract Alloctns'!$I$5:$AP$108)","v":0},{"$f":"$I$5*'[2]21-23 Campus Contract Alloctns'!AA34/SUM('[2]21-23 Campus Contract Alloctns'!$I$5:$AP$108)","v":0},{"$f":"$I$5*'[2]21-23 Campus Contract Alloctns'!AB34/SUM('[2]21-23 Campus Contract Alloctns'!$I$5:$AP$108)","v":0},{"$f":"$I$5*'[2]21-23 Campus Contract Alloctns'!AC34/SUM('[2]21-23 Campus Contract Alloctns'!$I$5:$AP$108)","v":0},{"$f":"$I$5*'[2]21-23 Campus Contract Alloctns'!AD34/SUM('[2]21-23 Campus Contract Alloctns'!$I$5:$AP$108)","v":0},{"$f":"$I$5*'[2]21-23 Campus Contract Alloctns'!AE34/SUM('[2]21-23 Campus Contract Alloctns'!$I$5:$AP$108)","v":0},{"$f":"$I$5*'[2]21-23 Campus Contract Alloctns'!AF34/SUM('[2]21-23 Campus Contract Alloctns'!$I$5:$AP$108)","v":0},{"$f":"$I$5*'[2]21-23 Campus Contract Alloctns'!AG34/SUM('[2]21-23 Campus Contract Alloctns'!$I$5:$AP$108)","v":0},{"$f":"$I$5*'[2]21-23 Campus Contract Alloctns'!AH34/SUM('[2]21-23 Campus Contract Alloctns'!$I$5:$AP$108)","v":0},{"$f":"$I$5*'[2]21-23 Campus Contract Alloctns'!AI34/SUM('[2]21-23 Campus Contract Alloctns'!$I$5:$AP$108)","v":0},{"$f":"$I$5*'[2]21-23 Campus Contract Alloctns'!AJ34/SUM('[2]21-23 Campus Contract Alloctns'!$I$5:$AP$108)","v":0},{"$f":"$I$5*'[2]21-23 Campus Contract Alloctns'!AK34/SUM('[2]21-23 Campus Contract Alloctns'!$I$5:$AP$108)","v":0},{"$f":"$I$5*'[2]21-23 Campus Contract Alloctns'!AL34/SUM('[2]21-23 Campus Contract Alloctns'!$I$5:$AP$108)","v":0},{"$f":"$I$5*'[2]21-23 Campus Contract Alloctns'!AM34/SUM('[2]21-23 Campus Contract Alloctns'!$I$5:$AP$108)","v":0},{"$f":"$I$5*'[2]21-23 Campus Contract Alloctns'!AN34/SUM('[2]21-23 Campus Contract Alloctns'!$I$5:$AP$108)","v":0},{"$f":"$I$5*'[2]21-23 Campus Contract Alloctns'!AO34/SUM('[2]21-23 Campus Contract Alloctns'!$I$5:$AP$108)","v":0},{"$f":"$I$5*'[2]21-23 Campus Contract Alloctns'!AP34/SUM('[2]21-23 Campus Contract Alloctns'!$I$5:$AP$108)","v":0}]
[null,"105 - Office of Financial Management","105","Office of Financial Management",1.9438958142604365E-2,435,7.7114347862484774E-3,1.6723572280401935E-3,1.0055166128315696E-2,{"$f":"$I$5*'[2]21-23 Campus Contract Alloctns'!I35/SUM('[2]21-23 Campus Contract Alloctns'!$I$5:$AP$108)","v":0},{"$f":"$I$5*'[2]21-23 Campus Contract Alloctns'!J35/SUM('[2]21-23 Campus Contract Alloctns'!$I$5:$AP$108)","v":0},{"$f":"$I$5*'[2]21-23 Campus Contract Alloctns'!K35/SUM('[2]21-23 Campus Contract Alloctns'!$I$5:$AP$108)","v":0},{"$f":"$I$5*'[2]21-23 Campus Contract Alloctns'!L35/SUM('[2]21-23 Campus Contract Alloctns'!$I$5:$AP$108)","v":0},{"$f":"$I$5*'[2]21-23 Campus Contract Alloctns'!M35/SUM('[2]21-23 Campus Contract Alloctns'!$I$5:$AP$108)","v":0},{"$f":"$I$5*'[2]21-23 Campus Contract Alloctns'!N35/SUM('[2]21-23 Campus Contract Alloctns'!$I$5:$AP$108)","v":0},{"$f":"$I$5*'[2]21-23 Campus Contract Alloctns'!O35/SUM('[2]21-23 Campus Contract Alloctns'!$I$5:$AP$108)","v":0},{"$f":"$I$5*'[2]21-23 Campus Contract Alloctns'!P35/SUM('[2]21-23 Campus Contract Alloctns'!$I$5:$AP$108)","v":0},{"$f":"$I$5*'[2]21-23 Campus Contract Alloctns'!Q35/SUM('[2]21-23 Campus Contract Alloctns'!$I$5:$AP$108)","v":0},{"$f":"$I$5*'[2]21-23 Campus Contract Alloctns'!R35/SUM('[2]21-23 Campus Contract Alloctns'!$I$5:$AP$108)","v":0},{"$f":"$I$5*'[2]21-23 Campus Contract Alloctns'!S35/SUM('[2]21-23 Campus Contract Alloctns'!$I$5:$AP$108)","v":9.9074627227279527E-3},{"$f":"$I$5*'[2]21-23 Campus Contract Alloctns'!T35/SUM('[2]21-23 Campus Contract Alloctns'!$I$5:$AP$108)","v":0},{"$f":"$I$5*'[2]21-23 Campus Contract Alloctns'!U35/SUM('[2]21-23 Campus Contract Alloctns'!$I$5:$AP$108)","v":0},{"$f":"$I$5*'[2]21-23 Campus Contract Alloctns'!V35/SUM('[2]21-23 Campus Contract Alloctns'!$I$5:$AP$108)","v":0},{"$f":"$I$5*'[2]21-23 Campus Contract Alloctns'!W35/SUM('[2]21-23 Campus Contract Alloctns'!$I$5:$AP$108)","v":0},{"$f":"$I$5*'[2]21-23 Campus Contract Alloctns'!X35/SUM('[2]21-23 Campus Contract Alloctns'!$I$5:$AP$108)","v":0},{"$f":"$I$5*'[2]21-23 Campus Contract Alloctns'!Y35/SUM('[2]21-23 Campus Contract Alloctns'!$I$5:$AP$108)","v":0},{"$f":"$I$5*'[2]21-23 Campus Contract Alloctns'!Z35/SUM('[2]21-23 Campus Contract Alloctns'!$I$5:$AP$108)","v":0},{"$f":"$I$5*'[2]21-23 Campus Contract Alloctns'!AA35/SUM('[2]21-23 Campus Contract Alloctns'!$I$5:$AP$108)","v":0},{"$f":"$I$5*'[2]21-23 Campus Contract Alloctns'!AB35/SUM('[2]21-23 Campus Contract Alloctns'!$I$5:$AP$108)","v":1.4770340558774476E-4},{"$f":"$I$5*'[2]21-23 Campus Contract Alloctns'!AC35/SUM('[2]21-23 Campus Contract Alloctns'!$I$5:$AP$108)","v":0},{"$f":"$I$5*'[2]21-23 Campus Contract Alloctns'!AD35/SUM('[2]21-23 Campus Contract Alloctns'!$I$5:$AP$108)","v":0},{"$f":"$I$5*'[2]21-23 Campus Contract Alloctns'!AE35/SUM('[2]21-23 Campus Contract Alloctns'!$I$5:$AP$108)","v":0},{"$f":"$I$5*'[2]21-23 Campus Contract Alloctns'!AF35/SUM('[2]21-23 Campus Contract Alloctns'!$I$5:$AP$108)","v":0},{"$f":"$I$5*'[2]21-23 Campus Contract Alloctns'!AG35/SUM('[2]21-23 Campus Contract Alloctns'!$I$5:$AP$108)","v":0},{"$f":"$I$5*'[2]21-23 Campus Contract Alloctns'!AH35/SUM('[2]21-23 Campus Contract Alloctns'!$I$5:$AP$108)","v":0},{"$f":"$I$5*'[2]21-23 Campus Contract Alloctns'!AI35/SUM('[2]21-23 Campus Contract Alloctns'!$I$5:$AP$108)","v":0},{"$f":"$I$5*'[2]21-23 Campus Contract Alloctns'!AJ35/SUM('[2]21-23 Campus Contract Alloctns'!$I$5:$AP$108)","v":0},{"$f":"$I$5*'[2]21-23 Campus Contract Alloctns'!AK35/SUM('[2]21-23 Campus Contract Alloctns'!$I$5:$AP$108)","v":0},{"$f":"$I$5*'[2]21-23 Campus Contract Alloctns'!AL35/SUM('[2]21-23 Campus Contract Alloctns'!$I$5:$AP$108)","v":0},{"$f":"$I$5*'[2]21-23 Campus Contract Alloctns'!AM35/SUM('[2]21-23 Campus Contract Alloctns'!$I$5:$AP$108)","v":0},{"$f":"$I$5*'[2]21-23 Campus Contract Alloctns'!AN35/SUM('[2]21-23 Campus Contract Alloctns'!$I$5:$AP$108)","v":0},{"$f":"$I$5*'[2]21-23 Campus Contract Alloctns'!AO35/SUM('[2]21-23 Campus Contract Alloctns'!$I$5:$AP$108)","v":0},{"$f":"$I$5*'[2]21-23 Campus Contract Alloctns'!AP35/SUM('[2]21-23 Campus Contract Alloctns'!$I$5:$AP$108)","v":0}]
[null,"107 - Washington State Health Care Authority","107","Washington State Health Care Authority",2.3790219501483807E-2,1342,2.3790219501483807E-2,0,0,{"$f":"$I$5*'[2]21-23 Campus Contract Alloctns'!I36/SUM('[2]21-23 Campus Contract Alloctns'!$I$5:$AP$108)","v":0},{"$f":"$I$5*'[2]21-23 Campus Contract Alloctns'!J36/SUM('[2]21-23 Campus Contract Alloctns'!$I$5:$AP$108)","v":0},{"$f":"$I$5*'[2]21-23 Campus Contract Alloctns'!K36/SUM('[2]21-23 Campus Contract Alloctns'!$I$5:$AP$108)","v":0},{"$f":"$I$5*'[2]21-23 Campus Contract Alloctns'!L36/SUM('[2]21-23 Campus Contract Alloctns'!$I$5:$AP$108)","v":0},{"$f":"$I$5*'[2]21-23 Campus Contract Alloctns'!M36/SUM('[2]21-23 Campus Contract Alloctns'!$I$5:$AP$108)","v":0},{"$f":"$I$5*'[2]21-23 Campus Contract Alloctns'!N36/SUM('[2]21-23 Campus Contract Alloctns'!$I$5:$AP$108)","v":0},{"$f":"$I$5*'[2]21-23 Campus Contract Alloctns'!O36/SUM('[2]21-23 Campus Contract Alloctns'!$I$5:$AP$108)","v":0},{"$f":"$I$5*'[2]21-23 Campus Contract Alloctns'!P36/SUM('[2]21-23 Campus Contract Alloctns'!$I$5:$AP$108)","v":0},{"$f":"$I$5*'[2]21-23 Campus Contract Alloctns'!Q36/SUM('[2]21-23 Campus Contract Alloctns'!$I$5:$AP$108)","v":0},{"$f":"$I$5*'[2]21-23 Campus Contract Alloctns'!R36/SUM('[2]21-23 Campus Contract Alloctns'!$I$5:$AP$108)","v":0},{"$f":"$I$5*'[2]21-23 Campus Contract Alloctns'!S36/SUM('[2]21-23 Campus Contract Alloctns'!$I$5:$AP$108)","v":0},{"$f":"$I$5*'[2]21-23 Campus Contract Alloctns'!T36/SUM('[2]21-23 Campus Contract Alloctns'!$I$5:$AP$108)","v":0},{"$f":"$I$5*'[2]21-23 Campus Contract Alloctns'!U36/SUM('[2]21-23 Campus Contract Alloctns'!$I$5:$AP$108)","v":0},{"$f":"$I$5*'[2]21-23 Campus Contract Alloctns'!V36/SUM('[2]21-23 Campus Contract Alloctns'!$I$5:$AP$108)","v":0},{"$f":"$I$5*'[2]21-23 Campus Contract Alloctns'!W36/SUM('[2]21-23 Campus Contract Alloctns'!$I$5:$AP$108)","v":0},{"$f":"$I$5*'[2]21-23 Campus Contract Alloctns'!X36/SUM('[2]21-23 Campus Contract Alloctns'!$I$5:$AP$108)","v":0},{"$f":"$I$5*'[2]21-23 Campus Contract Alloctns'!Y36/SUM('[2]21-23 Campus Contract Alloctns'!$I$5:$AP$108)","v":0},{"$f":"$I$5*'[2]21-23 Campus Contract Alloctns'!Z36/SUM('[2]21-23 Campus Contract Alloctns'!$I$5:$AP$108)","v":0},{"$f":"$I$5*'[2]21-23 Campus Contract Alloctns'!AA36/SUM('[2]21-23 Campus Contract Alloctns'!$I$5:$AP$108)","v":0},{"$f":"$I$5*'[2]21-23 Campus Contract Alloctns'!AB36/SUM('[2]21-23 Campus Contract Alloctns'!$I$5:$AP$108)","v":0},{"$f":"$I$5*'[2]21-23 Campus Contract Alloctns'!AC36/SUM('[2]21-23 Campus Contract Alloctns'!$I$5:$AP$108)","v":0},{"$f":"$I$5*'[2]21-23 Campus Contract Alloctns'!AD36/SUM('[2]21-23 Campus Contract Alloctns'!$I$5:$AP$108)","v":0},{"$f":"$I$5*'[2]21-23 Campus Contract Alloctns'!AE36/SUM('[2]21-23 Campus Contract Alloctns'!$I$5:$AP$108)","v":0},{"$f":"$I$5*'[2]21-23 Campus Contract Alloctns'!AF36/SUM('[2]21-23 Campus Contract Alloctns'!$I$5:$AP$108)","v":0},{"$f":"$I$5*'[2]21-23 Campus Contract Alloctns'!AG36/SUM('[2]21-23 Campus Contract Alloctns'!$I$5:$AP$108)","v":0},{"$f":"$I$5*'[2]21-23 Campus Contract Alloctns'!AH36/SUM('[2]21-23 Campus Contract Alloctns'!$I$5:$AP$108)","v":0},{"$f":"$I$5*'[2]21-23 Campus Contract Alloctns'!AI36/SUM('[2]21-23 Campus Contract Alloctns'!$I$5:$AP$108)","v":0},{"$f":"$I$5*'[2]21-23 Campus Contract Alloctns'!AJ36/SUM('[2]21-23 Campus Contract Alloctns'!$I$5:$AP$108)","v":0},{"$f":"$I$5*'[2]21-23 Campus Contract Alloctns'!AK36/SUM('[2]21-23 Campus Contract Alloctns'!$I$5:$AP$108)","v":0},{"$f":"$I$5*'[2]21-23 Campus Contract Alloctns'!AL36/SUM('[2]21-23 Campus Contract Alloctns'!$I$5:$AP$108)","v":0},{"$f":"$I$5*'[2]21-23 Campus Contract Alloctns'!AM36/SUM('[2]21-23 Campus Contract Alloctns'!$I$5:$AP$108)","v":0},{"$f":"$I$5*'[2]21-23 Campus Contract Alloctns'!AN36/SUM('[2]21-23 Campus Contract Alloctns'!$I$5:$AP$108)","v":0},{"$f":"$I$5*'[2]21-23 Campus Contract Alloctns'!AO36/SUM('[2]21-23 Campus Contract Alloctns'!$I$5:$AP$108)","v":0},{"$f":"$I$5*'[2]21-23 Campus Contract Alloctns'!AP36/SUM('[2]21-23 Campus Contract Alloctns'!$I$5:$AP$108)","v":0}]
[null,"110 - Office of Administrative Hearings","110","Office of Administrative Hearings",3.049935060181995E-3,66,1.1700107951549414E-3,0,1.8799242650270537E-3,{"$f":"$I$5*'[2]21-23 Campus Contract Alloctns'!I37/SUM('[2]21-23 Campus Contract Alloctns'!$I$5:$AP$108)","v":0},{"$f":"$I$5*'[2]21-23 Campus Contract Alloctns'!J37/SUM('[2]21-23 Campus Contract Alloctns'!$I$5:$AP$108)","v":0},{"$f":"$I$5*'[2]21-23 Campus Contract Alloctns'!K37/SUM('[2]21-23 Campus Contract Alloctns'!$I$5:$AP$108)","v":0},{"$f":"$I$5*'[2]21-23 Campus Contract Alloctns'!L37/SUM('[2]21-23 Campus Contract Alloctns'!$I$5:$AP$108)","v":0},{"$f":"$I$5*'[2]21-23 Campus Contract Alloctns'!M37/SUM('[2]21-23 Campus Contract Alloctns'!$I$5:$AP$108)","v":0},{"$f":"$I$5*'[2]21-23 Campus Contract Alloctns'!N37/SUM('[2]21-23 Campus Contract Alloctns'!$I$5:$AP$108)","v":0},{"$f":"$I$5*'[2]21-23 Campus Contract Alloctns'!O37/SUM('[2]21-23 Campus Contract Alloctns'!$I$5:$AP$108)","v":0},{"$f":"$I$5*'[2]21-23 Campus Contract Alloctns'!P37/SUM('[2]21-23 Campus Contract Alloctns'!$I$5:$AP$108)","v":0},{"$f":"$I$5*'[2]21-23 Campus Contract Alloctns'!Q37/SUM('[2]21-23 Campus Contract Alloctns'!$I$5:$AP$108)","v":0},{"$f":"$I$5*'[2]21-23 Campus Contract Alloctns'!R37/SUM('[2]21-23 Campus Contract Alloctns'!$I$5:$AP$108)","v":0},{"$f":"$I$5*'[2]21-23 Campus Contract Alloctns'!S37/SUM('[2]21-23 Campus Contract Alloctns'!$I$5:$AP$108)","v":0},{"$f":"$I$5*'[2]21-23 Campus Contract Alloctns'!T37/SUM('[2]21-23 Campus Contract Alloctns'!$I$5:$AP$108)","v":0},{"$f":"$I$5*'[2]21-23 Campus Contract Alloctns'!U37/SUM('[2]21-23 Campus Contract Alloctns'!$I$5:$AP$108)","v":0},{"$f":"$I$5*'[2]21-23 Campus Contract Alloctns'!V37/SUM('[2]21-23 Campus Contract Alloctns'!$I$5:$AP$108)","v":0},{"$f":"$I$5*'[2]21-23 Campus Contract Alloctns'!W37/SUM('[2]21-23 Campus Contract Alloctns'!$I$5:$AP$108)","v":0},{"$f":"$I$5*'[2]21-23 Campus Contract Alloctns'!X37/SUM('[2]21-23 Campus Contract Alloctns'!$I$5:$AP$108)","v":0},{"$f":"$I$5*'[2]21-23 Campus Contract Alloctns'!Y37/SUM('[2]21-23 Campus Contract Alloctns'!$I$5:$AP$108)","v":0},{"$f":"$I$5*'[2]21-23 Campus Contract Alloctns'!Z37/SUM('[2]21-23 Campus Contract Alloctns'!$I$5:$AP$108)","v":0},{"$f":"$I$5*'[2]21-23 Campus Contract Alloctns'!AA37/SUM('[2]21-23 Campus Contract Alloctns'!$I$5:$AP$108)","v":0},{"$f":"$I$5*'[2]21-23 Campus Contract Alloctns'!AB37/SUM('[2]21-23 Campus Contract Alloctns'!$I$5:$AP$108)","v":0},{"$f":"$I$5*'[2]21-23 Campus Contract Alloctns'!AC37/SUM('[2]21-23 Campus Contract Alloctns'!$I$5:$AP$108)","v":0},{"$f":"$I$5*'[2]21-23 Campus Contract Alloctns'!AD37/SUM('[2]21-23 Campus Contract Alloctns'!$I$5:$AP$108)","v":0},{"$f":"$I$5*'[2]21-23 Campus Contract Alloctns'!AE37/SUM('[2]21-23 Campus Contract Alloctns'!$I$5:$AP$108)","v":0},{"$f":"$I$5*'[2]21-23 Campus Contract Alloctns'!AF37/SUM('[2]21-23 Campus Contract Alloctns'!$I$5:$AP$108)","v":0},{"$f":"$I$5*'[2]21-23 Campus Contract Alloctns'!AG37/SUM('[2]21-23 Campus Contract Alloctns'!$I$5:$AP$108)","v":0},{"$f":"$I$5*'[2]21-23 Campus Contract Alloctns'!AH37/SUM('[2]21-23 Campus Contract Alloctns'!$I$5:$AP$108)","v":0},{"$f":"$I$5*'[2]21-23 Campus Contract Alloctns'!AI37/SUM('[2]21-23 Campus Contract Alloctns'!$I$5:$AP$108)","v":0},{"$f":"$I$5*'[2]21-23 Campus Contract Alloctns'!AJ37/SUM('[2]21-23 Campus Contract Alloctns'!$I$5:$AP$108)","v":0},{"$f":"$I$5*'[2]21-23 Campus Contract Alloctns'!AK37/SUM('[2]21-23 Campus Contract Alloctns'!$I$5:$AP$108)","v":0},{"$f":"$I$5*'[2]21-23 Campus Contract Alloctns'!AL37/SUM('[2]21-23 Campus Contract Alloctns'!$I$5:$AP$108)","v":0},{"$f":"$I$5*'[2]21-23 Campus Contract Alloctns'!AM37/SUM('[2]21-23 Campus Contract Alloctns'!$I$5:$AP$108)","v":0},{"$f":"$I$5*'[2]21-23 Campus Contract Alloctns'!AN37/SUM('[2]21-23 Campus Contract Alloctns'!$I$5:$AP$108)","v":1.879924265027054E-3},{"$f":"$I$5*'[2]21-23 Campus Contract Alloctns'!AO37/SUM('[2]21-23 Campus Contract Alloctns'!$I$5:$AP$108)","v":0},{"$f":"$I$5*'[2]21-23 Campus Contract Alloctns'!AP37/SUM('[2]21-23 Campus Contract Alloctns'!$I$5:$AP$108)","v":0}]
[null,"116 - State Lottery","116","State Lottery",1.2409205403158469E-3,70,1.2409205403158469E-3,0,0,{"$f":"$I$5*'[2]21-23 Campus Contract Alloctns'!I38/SUM('[2]21-23 Campus Contract Alloctns'!$I$5:$AP$108)","v":0},{"$f":"$I$5*'[2]21-23 Campus Contract Alloctns'!J38/SUM('[2]21-23 Campus Contract Alloctns'!$I$5:$AP$108)","v":0},{"$f":"$I$5*'[2]21-23 Campus Contract Alloctns'!K38/SUM('[2]21-23 Campus Contract Alloctns'!$I$5:$AP$108)","v":0},{"$f":"$I$5*'[2]21-23 Campus Contract Alloctns'!L38/SUM('[2]21-23 Campus Contract Alloctns'!$I$5:$AP$108)","v":0},{"$f":"$I$5*'[2]21-23 Campus Contract Alloctns'!M38/SUM('[2]21-23 Campus Contract Alloctns'!$I$5:$AP$108)","v":0},{"$f":"$I$5*'[2]21-23 Campus Contract Alloctns'!N38/SUM('[2]21-23 Campus Contract Alloctns'!$I$5:$AP$108)","v":0},{"$f":"$I$5*'[2]21-23 Campus Contract Alloctns'!O38/SUM('[2]21-23 Campus Contract Alloctns'!$I$5:$AP$108)","v":0},{"$f":"$I$5*'[2]21-23 Campus Contract Alloctns'!P38/SUM('[2]21-23 Campus Contract Alloctns'!$I$5:$AP$108)","v":0},{"$f":"$I$5*'[2]21-23 Campus Contract Alloctns'!Q38/SUM('[2]21-23 Campus Contract Alloctns'!$I$5:$AP$108)","v":0},{"$f":"$I$5*'[2]21-23 Campus Contract Alloctns'!R38/SUM('[2]21-23 Campus Contract Alloctns'!$I$5:$AP$108)","v":0},{"$f":"$I$5*'[2]21-23 Campus Contract Alloctns'!S38/SUM('[2]21-23 Campus Contract Alloctns'!$I$5:$AP$108)","v":0},{"$f":"$I$5*'[2]21-23 Campus Contract Alloctns'!T38/SUM('[2]21-23 Campus Contract Alloctns'!$I$5:$AP$108)","v":0},{"$f":"$I$5*'[2]21-23 Campus Contract Alloctns'!U38/SUM('[2]21-23 Campus Contract Alloctns'!$I$5:$AP$108)","v":0},{"$f":"$I$5*'[2]21-23 Campus Contract Alloctns'!V38/SUM('[2]21-23 Campus Contract Alloctns'!$I$5:$AP$108)","v":0},{"$f":"$I$5*'[2]21-23 Campus Contract Alloctns'!W38/SUM('[2]21-23 Campus Contract Alloctns'!$I$5:$AP$108)","v":0},{"$f":"$I$5*'[2]21-23 Campus Contract Alloctns'!X38/SUM('[2]21-23 Campus Contract Alloctns'!$I$5:$AP$108)","v":0},{"$f":"$I$5*'[2]21-23 Campus Contract Alloctns'!Y38/SUM('[2]21-23 Campus Contract Alloctns'!$I$5:$AP$108)","v":0},{"$f":"$I$5*'[2]21-23 Campus Contract Alloctns'!Z38/SUM('[2]21-23 Campus Contract Alloctns'!$I$5:$AP$108)","v":0},{"$f":"$I$5*'[2]21-23 Campus Contract Alloctns'!AA38/SUM('[2]21-23 Campus Contract Alloctns'!$I$5:$AP$108)","v":0},{"$f":"$I$5*'[2]21-23 Campus Contract Alloctns'!AB38/SUM('[2]21-23 Campus Contract Alloctns'!$I$5:$AP$108)","v":0},{"$f":"$I$5*'[2]21-23 Campus Contract Alloctns'!AC38/SUM('[2]21-23 Campus Contract Alloctns'!$I$5:$AP$108)","v":0},{"$f":"$I$5*'[2]21-23 Campus Contract Alloctns'!AD38/SUM('[2]21-23 Campus Contract Alloctns'!$I$5:$AP$108)","v":0},{"$f":"$I$5*'[2]21-23 Campus Contract Alloctns'!AE38/SUM('[2]21-23 Campus Contract Alloctns'!$I$5:$AP$108)","v":0},{"$f":"$I$5*'[2]21-23 Campus Contract Alloctns'!AF38/SUM('[2]21-23 Campus Contract Alloctns'!$I$5:$AP$108)","v":0},{"$f":"$I$5*'[2]21-23 Campus Contract Alloctns'!AG38/SUM('[2]21-23 Campus Contract Alloctns'!$I$5:$AP$108)","v":0},{"$f":"$I$5*'[2]21-23 Campus Contract Alloctns'!AH38/SUM('[2]21-23 Campus Contract Alloctns'!$I$5:$AP$108)","v":0},{"$f":"$I$5*'[2]21-23 Campus Contract Alloctns'!AI38/SUM('[2]21-23 Campus Contract Alloctns'!$I$5:$AP$108)","v":0},{"$f":"$I$5*'[2]21-23 Campus Contract Alloctns'!AJ38/SUM('[2]21-23 Campus Contract Alloctns'!$I$5:$AP$108)","v":0},{"$f":"$I$5*'[2]21-23 Campus Contract Alloctns'!AK38/SUM('[2]21-23 Campus Contract Alloctns'!$I$5:$AP$108)","v":0},{"$f":"$I$5*'[2]21-23 Campus Contract Alloctns'!AL38/SUM('[2]21-23 Campus Contract Alloctns'!$I$5:$AP$108)","v":0},{"$f":"$I$5*'[2]21-23 Campus Contract Alloctns'!AM38/SUM('[2]21-23 Campus Contract Alloctns'!$I$5:$AP$108)","v":0},{"$f":"$I$5*'[2]21-23 Campus Contract Alloctns'!AN38/SUM('[2]21-23 Campus Contract Alloctns'!$I$5:$AP$108)","v":0},{"$f":"$I$5*'[2]21-23 Campus Contract Alloctns'!AO38/SUM('[2]21-23 Campus Contract Alloctns'!$I$5:$AP$108)","v":0},{"$f":"$I$5*'[2]21-23 Campus Contract Alloctns'!AP38/SUM('[2]21-23 Campus Contract Alloctns'!$I$5:$AP$108)","v":0}]
[null,"117 - Washington State Gambling Commission","117","Washington State Gambling Commission",1.0104638685429039E-3,57,1.0104638685429039E-3,0,0,{"$f":"$I$5*'[2]21-23 Campus Contract Alloctns'!I39/SUM('[2]21-23 Campus Contract Alloctns'!$I$5:$AP$108)","v":0},{"$f":"$I$5*'[2]21-23 Campus Contract Alloctns'!J39/SUM('[2]21-23 Campus Contract Alloctns'!$I$5:$AP$108)","v":0},{"$f":"$I$5*'[2]21-23 Campus Contract Alloctns'!K39/SUM('[2]21-23 Campus Contract Alloctns'!$I$5:$AP$108)","v":0},{"$f":"$I$5*'[2]21-23 Campus Contract Alloctns'!L39/SUM('[2]21-23 Campus Contract Alloctns'!$I$5:$AP$108)","v":0},{"$f":"$I$5*'[2]21-23 Campus Contract Alloctns'!M39/SUM('[2]21-23 Campus Contract Alloctns'!$I$5:$AP$108)","v":0},{"$f":"$I$5*'[2]21-23 Campus Contract Alloctns'!N39/SUM('[2]21-23 Campus Contract Alloctns'!$I$5:$AP$108)","v":0},{"$f":"$I$5*'[2]21-23 Campus Contract Alloctns'!O39/SUM('[2]21-23 Campus Contract Alloctns'!$I$5:$AP$108)","v":0},{"$f":"$I$5*'[2]21-23 Campus Contract Alloctns'!P39/SUM('[2]21-23 Campus Contract Alloctns'!$I$5:$AP$108)","v":0},{"$f":"$I$5*'[2]21-23 Campus Contract Alloctns'!Q39/SUM('[2]21-23 Campus Contract Alloctns'!$I$5:$AP$108)","v":0},{"$f":"$I$5*'[2]21-23 Campus Contract Alloctns'!R39/SUM('[2]21-23 Campus Contract Alloctns'!$I$5:$AP$108)","v":0},{"$f":"$I$5*'[2]21-23 Campus Contract Alloctns'!S39/SUM('[2]21-23 Campus Contract Alloctns'!$I$5:$AP$108)","v":0},{"$f":"$I$5*'[2]21-23 Campus Contract Alloctns'!T39/SUM('[2]21-23 Campus Contract Alloctns'!$I$5:$AP$108)","v":0},{"$f":"$I$5*'[2]21-23 Campus Contract Alloctns'!U39/SUM('[2]21-23 Campus Contract Alloctns'!$I$5:$AP$108)","v":0},{"$f":"$I$5*'[2]21-23 Campus Contract Alloctns'!V39/SUM('[2]21-23 Campus Contract Alloctns'!$I$5:$AP$108)","v":0},{"$f":"$I$5*'[2]21-23 Campus Contract Alloctns'!W39/SUM('[2]21-23 Campus Contract Alloctns'!$I$5:$AP$108)","v":0},{"$f":"$I$5*'[2]21-23 Campus Contract Alloctns'!X39/SUM('[2]21-23 Campus Contract Alloctns'!$I$5:$AP$108)","v":0},{"$f":"$I$5*'[2]21-23 Campus Contract Alloctns'!Y39/SUM('[2]21-23 Campus Contract Alloctns'!$I$5:$AP$108)","v":0},{"$f":"$I$5*'[2]21-23 Campus Contract Alloctns'!Z39/SUM('[2]21-23 Campus Contract Alloctns'!$I$5:$AP$108)","v":0},{"$f":"$I$5*'[2]21-23 Campus Contract Alloctns'!AA39/SUM('[2]21-23 Campus Contract Alloctns'!$I$5:$AP$108)","v":0},{"$f":"$I$5*'[2]21-23 Campus Contract Alloctns'!AB39/SUM('[2]21-23 Campus Contract Alloctns'!$I$5:$AP$108)","v":0},{"$f":"$I$5*'[2]21-23 Campus Contract Alloctns'!AC39/SUM('[2]21-23 Campus Contract Alloctns'!$I$5:$AP$108)","v":0},{"$f":"$I$5*'[2]21-23 Campus Contract Alloctns'!AD39/SUM('[2]21-23 Campus Contract Alloctns'!$I$5:$AP$108)","v":0},{"$f":"$I$5*'[2]21-23 Campus Contract Alloctns'!AE39/SUM('[2]21-23 Campus Contract Alloctns'!$I$5:$AP$108)","v":0},{"$f":"$I$5*'[2]21-23 Campus Contract Alloctns'!AF39/SUM('[2]21-23 Campus Contract Alloctns'!$I$5:$AP$108)","v":0},{"$f":"$I$5*'[2]21-23 Campus Contract Alloctns'!AG39/SUM('[2]21-23 Campus Contract Alloctns'!$I$5:$AP$108)","v":0},{"$f":"$I$5*'[2]21-23 Campus Contract Alloctns'!AH39/SUM('[2]21-23 Campus Contract Alloctns'!$I$5:$AP$108)","v":0},{"$f":"$I$5*'[2]21-23 Campus Contract Alloctns'!AI39/SUM('[2]21-23 Campus Contract Alloctns'!$I$5:$AP$108)","v":0},{"$f":"$I$5*'[2]21-23 Campus Contract Alloctns'!AJ39/SUM('[2]21-23 Campus Contract Alloctns'!$I$5:$AP$108)","v":0},{"$f":"$I$5*'[2]21-23 Campus Contract Alloctns'!AK39/SUM('[2]21-23 Campus Contract Alloctns'!$I$5:$AP$108)","v":0},{"$f":"$I$5*'[2]21-23 Campus Contract Alloctns'!AL39/SUM('[2]21-23 Campus Contract Alloctns'!$I$5:$AP$108)","v":0},{"$f":"$I$5*'[2]21-23 Campus Contract Alloctns'!AM39/SUM('[2]21-23 Campus Contract Alloctns'!$I$5:$AP$108)","v":0},{"$f":"$I$5*'[2]21-23 Campus Contract Alloctns'!AN39/SUM('[2]21-23 Campus Contract Alloctns'!$I$5:$AP$108)","v":0},{"$f":"$I$5*'[2]21-23 Campus Contract Alloctns'!AO39/SUM('[2]21-23 Campus Contract Alloctns'!$I$5:$AP$108)","v":0},{"$f":"$I$5*'[2]21-23 Campus Contract Alloctns'!AP39/SUM('[2]21-23 Campus Contract Alloctns'!$I$5:$AP$108)","v":0}]
[null,"118 - Commission on Hispanic Affairs","118","Commission on Hispanic Affairs",2.3554001848759433E-4,3,5.3182308870679155E-5,0,1.8235770961691519E-4,{"$f":"$I$5*'[2]21-23 Campus Contract Alloctns'!I40/SUM('[2]21-23 Campus Contract Alloctns'!$I$5:$AP$108)","v":0},{"$f":"$I$5*'[2]21-23 Campus Contract Alloctns'!J40/SUM('[2]21-23 Campus Contract Alloctns'!$I$5:$AP$108)","v":0},{"$f":"$I$5*'[2]21-23 Campus Contract Alloctns'!K40/SUM('[2]21-23 Campus Contract Alloctns'!$I$5:$AP$108)","v":0},{"$f":"$I$5*'[2]21-23 Campus Contract Alloctns'!L40/SUM('[2]21-23 Campus Contract Alloctns'!$I$5:$AP$108)","v":0},{"$f":"$I$5*'[2]21-23 Campus Contract Alloctns'!M40/SUM('[2]21-23 Campus Contract Alloctns'!$I$5:$AP$108)","v":0},{"$f":"$I$5*'[2]21-23 Campus Contract Alloctns'!N40/SUM('[2]21-23 Campus Contract Alloctns'!$I$5:$AP$108)","v":0},{"$f":"$I$5*'[2]21-23 Campus Contract Alloctns'!O40/SUM('[2]21-23 Campus Contract Alloctns'!$I$5:$AP$108)","v":0},{"$f":"$I$5*'[2]21-23 Campus Contract Alloctns'!P40/SUM('[2]21-23 Campus Contract Alloctns'!$I$5:$AP$108)","v":0},{"$f":"$I$5*'[2]21-23 Campus Contract Alloctns'!Q40/SUM('[2]21-23 Campus Contract Alloctns'!$I$5:$AP$108)","v":0},{"$f":"$I$5*'[2]21-23 Campus Contract Alloctns'!R40/SUM('[2]21-23 Campus Contract Alloctns'!$I$5:$AP$108)","v":0},{"$f":"$I$5*'[2]21-23 Campus Contract Alloctns'!S40/SUM('[2]21-23 Campus Contract Alloctns'!$I$5:$AP$108)","v":0},{"$f":"$I$5*'[2]21-23 Campus Contract Alloctns'!T40/SUM('[2]21-23 Campus Contract Alloctns'!$I$5:$AP$108)","v":0},{"$f":"$I$5*'[2]21-23 Campus Contract Alloctns'!U40/SUM('[2]21-23 Campus Contract Alloctns'!$I$5:$AP$108)","v":0},{"$f":"$I$5*'[2]21-23 Campus Contract Alloctns'!V40/SUM('[2]21-23 Campus Contract Alloctns'!$I$5:$AP$108)","v":0},{"$f":"$I$5*'[2]21-23 Campus Contract Alloctns'!W40/SUM('[2]21-23 Campus Contract Alloctns'!$I$5:$AP$108)","v":0},{"$f":"$I$5*'[2]21-23 Campus Contract Alloctns'!X40/SUM('[2]21-23 Campus Contract Alloctns'!$I$5:$AP$108)","v":0},{"$f":"$I$5*'[2]21-23 Campus Contract Alloctns'!Y40/SUM('[2]21-23 Campus Contract Alloctns'!$I$5:$AP$108)","v":0},{"$f":"$I$5*'[2]21-23 Campus Contract Alloctns'!Z40/SUM('[2]21-23 Campus Contract Alloctns'!$I$5:$AP$108)","v":0},{"$f":"$I$5*'[2]21-23 Campus Contract Alloctns'!AA40/SUM('[2]21-23 Campus Contract Alloctns'!$I$5:$AP$108)","v":0},{"$f":"$I$5*'[2]21-23 Campus Contract Alloctns'!AB40/SUM('[2]21-23 Campus Contract Alloctns'!$I$5:$AP$108)","v":1.8235770961691521E-4},{"$f":"$I$5*'[2]21-23 Campus Contract Alloctns'!AC40/SUM('[2]21-23 Campus Contract Alloctns'!$I$5:$AP$108)","v":0},{"$f":"$I$5*'[2]21-23 Campus Contract Alloctns'!AD40/SUM('[2]21-23 Campus Contract Alloctns'!$I$5:$AP$108)","v":0},{"$f":"$I$5*'[2]21-23 Campus Contract Alloctns'!AE40/SUM('[2]21-23 Campus Contract Alloctns'!$I$5:$AP$108)","v":0},{"$f":"$I$5*'[2]21-23 Campus Contract Alloctns'!AF40/SUM('[2]21-23 Campus Contract Alloctns'!$I$5:$AP$108)","v":0},{"$f":"$I$5*'[2]21-23 Campus Contract Alloctns'!AG40/SUM('[2]21-23 Campus Contract Alloctns'!$I$5:$AP$108)","v":0},{"$f":"$I$5*'[2]21-23 Campus Contract Alloctns'!AH40/SUM('[2]21-23 Campus Contract Alloctns'!$I$5:$AP$108)","v":0},{"$f":"$I$5*'[2]21-23 Campus Contract Alloctns'!AI40/SUM('[2]21-23 Campus Contract Alloctns'!$I$5:$AP$108)","v":0},{"$f":"$I$5*'[2]21-23 Campus Contract Alloctns'!AJ40/SUM('[2]21-23 Campus Contract Alloctns'!$I$5:$AP$108)","v":0},{"$f":"$I$5*'[2]21-23 Campus Contract Alloctns'!AK40/SUM('[2]21-23 Campus Contract Alloctns'!$I$5:$AP$108)","v":0},{"$f":"$I$5*'[2]21-23 Campus Contract Alloctns'!AL40/SUM('[2]21-23 Campus Contract Alloctns'!$I$5:$AP$108)","v":0},{"$f":"$I$5*'[2]21-23 Campus Contract Alloctns'!AM40/SUM('[2]21-23 Campus Contract Alloctns'!$I$5:$AP$108)","v":0},{"$f":"$I$5*'[2]21-23 Campus Contract Alloctns'!AN40/SUM('[2]21-23 Campus Contract Alloctns'!$I$5:$AP$108)","v":0},{"$f":"$I$5*'[2]21-23 Campus Contract Alloctns'!AO40/SUM('[2]21-23 Campus Contract Alloctns'!$I$5:$AP$108)","v":0},{"$f":"$I$5*'[2]21-23 Campus Contract Alloctns'!AP40/SUM('[2]21-23 Campus Contract Alloctns'!$I$5:$AP$108)","v":0}]
[null,"119 - Commission on African-American Affairs","119","Commission on African-American Affairs",2.1781258219736796E-4,2,3.5454872580452768E-5,0,1.8235770961691519E-4,{"$f":"$I$5*'[2]21-23 Campus Contract Alloctns'!I41/SUM('[2]21-23 Campus Contract Alloctns'!$I$5:$AP$108)","v":0},{"$f":"$I$5*'[2]21-23 Campus Contract Alloctns'!J41/SUM('[2]21-23 Campus Contract Alloctns'!$I$5:$AP$108)","v":0},{"$f":"$I$5*'[2]21-23 Campus Contract Alloctns'!K41/SUM('[2]21-23 Campus Contract Alloctns'!$I$5:$AP$108)","v":0},{"$f":"$I$5*'[2]21-23 Campus Contract Alloctns'!L41/SUM('[2]21-23 Campus Contract Alloctns'!$I$5:$AP$108)","v":0},{"$f":"$I$5*'[2]21-23 Campus Contract Alloctns'!M41/SUM('[2]21-23 Campus Contract Alloctns'!$I$5:$AP$108)","v":0},{"$f":"$I$5*'[2]21-23 Campus Contract Alloctns'!N41/SUM('[2]21-23 Campus Contract Alloctns'!$I$5:$AP$108)","v":0},{"$f":"$I$5*'[2]21-23 Campus Contract Alloctns'!O41/SUM('[2]21-23 Campus Contract Alloctns'!$I$5:$AP$108)","v":0},{"$f":"$I$5*'[2]21-23 Campus Contract Alloctns'!P41/SUM('[2]21-23 Campus Contract Alloctns'!$I$5:$AP$108)","v":0},{"$f":"$I$5*'[2]21-23 Campus Contract Alloctns'!Q41/SUM('[2]21-23 Campus Contract Alloctns'!$I$5:$AP$108)","v":0},{"$f":"$I$5*'[2]21-23 Campus Contract Alloctns'!R41/SUM('[2]21-23 Campus Contract Alloctns'!$I$5:$AP$108)","v":0},{"$f":"$I$5*'[2]21-23 Campus Contract Alloctns'!S41/SUM('[2]21-23 Campus Contract Alloctns'!$I$5:$AP$108)","v":0},{"$f":"$I$5*'[2]21-23 Campus Contract Alloctns'!T41/SUM('[2]21-23 Campus Contract Alloctns'!$I$5:$AP$108)","v":0},{"$f":"$I$5*'[2]21-23 Campus Contract Alloctns'!U41/SUM('[2]21-23 Campus Contract Alloctns'!$I$5:$AP$108)","v":0},{"$f":"$I$5*'[2]21-23 Campus Contract Alloctns'!V41/SUM('[2]21-23 Campus Contract Alloctns'!$I$5:$AP$108)","v":0},{"$f":"$I$5*'[2]21-23 Campus Contract Alloctns'!W41/SUM('[2]21-23 Campus Contract Alloctns'!$I$5:$AP$108)","v":0},{"$f":"$I$5*'[2]21-23 Campus Contract Alloctns'!X41/SUM('[2]21-23 Campus Contract Alloctns'!$I$5:$AP$108)","v":0},{"$f":"$I$5*'[2]21-23 Campus Contract Alloctns'!Y41/SUM('[2]21-23 Campus Contract Alloctns'!$I$5:$AP$108)","v":0},{"$f":"$I$5*'[2]21-23 Campus Contract Alloctns'!Z41/SUM('[2]21-23 Campus Contract Alloctns'!$I$5:$AP$108)","v":0},{"$f":"$I$5*'[2]21-23 Campus Contract Alloctns'!AA41/SUM('[2]21-23 Campus Contract Alloctns'!$I$5:$AP$108)","v":0},{"$f":"$I$5*'[2]21-23 Campus Contract Alloctns'!AB41/SUM('[2]21-23 Campus Contract Alloctns'!$I$5:$AP$108)","v":1.8235770961691521E-4},{"$f":"$I$5*'[2]21-23 Campus Contract Alloctns'!AC41/SUM('[2]21-23 Campus Contract Alloctns'!$I$5:$AP$108)","v":0},{"$f":"$I$5*'[2]21-23 Campus Contract Alloctns'!AD41/SUM('[2]21-23 Campus Contract Alloctns'!$I$5:$AP$108)","v":0},{"$f":"$I$5*'[2]21-23 Campus Contract Alloctns'!AE41/SUM('[2]21-23 Campus Contract Alloctns'!$I$5:$AP$108)","v":0},{"$f":"$I$5*'[2]21-23 Campus Contract Alloctns'!AF41/SUM('[2]21-23 Campus Contract Alloctns'!$I$5:$AP$108)","v":0},{"$f":"$I$5*'[2]21-23 Campus Contract Alloctns'!AG41/SUM('[2]21-23 Campus Contract Alloctns'!$I$5:$AP$108)","v":0},{"$f":"$I$5*'[2]21-23 Campus Contract Alloctns'!AH41/SUM('[2]21-23 Campus Contract Alloctns'!$I$5:$AP$108)","v":0},{"$f":"$I$5*'[2]21-23 Campus Contract Alloctns'!AI41/SUM('[2]21-23 Campus Contract Alloctns'!$I$5:$AP$108)","v":0},{"$f":"$I$5*'[2]21-23 Campus Contract Alloctns'!AJ41/SUM('[2]21-23 Campus Contract Alloctns'!$I$5:$AP$108)","v":0},{"$f":"$I$5*'[2]21-23 Campus Contract Alloctns'!AK41/SUM('[2]21-23 Campus Contract Alloctns'!$I$5:$AP$108)","v":0},{"$f":"$I$5*'[2]21-23 Campus Contract Alloctns'!AL41/SUM('[2]21-23 Campus Contract Alloctns'!$I$5:$AP$108)","v":0},{"$f":"$I$5*'[2]21-23 Campus Contract Alloctns'!AM41/SUM('[2]21-23 Campus Contract Alloctns'!$I$5:$AP$108)","v":0},{"$f":"$I$5*'[2]21-23 Campus Contract Alloctns'!AN41/SUM('[2]21-23 Campus Contract Alloctns'!$I$5:$AP$108)","v":0},{"$f":"$I$5*'[2]21-23 Campus Contract Alloctns'!AO41/SUM('[2]21-23 Campus Contract Alloctns'!$I$5:$AP$108)","v":0},{"$f":"$I$5*'[2]21-23 Campus Contract Alloctns'!AP41/SUM('[2]21-23 Campus Contract Alloctns'!$I$5:$AP$108)","v":0}]
[null,"120 - Human Rights Commission","120","Human Rights Commission",2.30456671772943E-4,13,2.30456671772943E-4,0,0,{"$f":"$I$5*'[2]21-23 Campus Contract Alloctns'!I42/SUM('[2]21-23 Campus Contract Alloctns'!$I$5:$AP$108)","v":0},{"$f":"$I$5*'[2]21-23 Campus Contract Alloctns'!J42/SUM('[2]21-23 Campus Contract Alloctns'!$I$5:$AP$108)","v":0},{"$f":"$I$5*'[2]21-23 Campus Contract Alloctns'!K42/SUM('[2]21-23 Campus Contract Alloctns'!$I$5:$AP$108)","v":0},{"$f":"$I$5*'[2]21-23 Campus Contract Alloctns'!L42/SUM('[2]21-23 Campus Contract Alloctns'!$I$5:$AP$108)","v":0},{"$f":"$I$5*'[2]21-23 Campus Contract Alloctns'!M42/SUM('[2]21-23 Campus Contract Alloctns'!$I$5:$AP$108)","v":0},{"$f":"$I$5*'[2]21-23 Campus Contract Alloctns'!N42/SUM('[2]21-23 Campus Contract Alloctns'!$I$5:$AP$108)","v":0},{"$f":"$I$5*'[2]21-23 Campus Contract Alloctns'!O42/SUM('[2]21-23 Campus Contract Alloctns'!$I$5:$AP$108)","v":0},{"$f":"$I$5*'[2]21-23 Campus Contract Alloctns'!P42/SUM('[2]21-23 Campus Contract Alloctns'!$I$5:$AP$108)","v":0},{"$f":"$I$5*'[2]21-23 Campus Contract Alloctns'!Q42/SUM('[2]21-23 Campus Contract Alloctns'!$I$5:$AP$108)","v":0},{"$f":"$I$5*'[2]21-23 Campus Contract Alloctns'!R42/SUM('[2]21-23 Campus Contract Alloctns'!$I$5:$AP$108)","v":0},{"$f":"$I$5*'[2]21-23 Campus Contract Alloctns'!S42/SUM('[2]21-23 Campus Contract Alloctns'!$I$5:$AP$108)","v":0},{"$f":"$I$5*'[2]21-23 Campus Contract Alloctns'!T42/SUM('[2]21-23 Campus Contract Alloctns'!$I$5:$AP$108)","v":0},{"$f":"$I$5*'[2]21-23 Campus Contract Alloctns'!U42/SUM('[2]21-23 Campus Contract Alloctns'!$I$5:$AP$108)","v":0},{"$f":"$I$5*'[2]21-23 Campus Contract Alloctns'!V42/SUM('[2]21-23 Campus Contract Alloctns'!$I$5:$AP$108)","v":0},{"$f":"$I$5*'[2]21-23 Campus Contract Alloctns'!W42/SUM('[2]21-23 Campus Contract Alloctns'!$I$5:$AP$108)","v":0},{"$f":"$I$5*'[2]21-23 Campus Contract Alloctns'!X42/SUM('[2]21-23 Campus Contract Alloctns'!$I$5:$AP$108)","v":0},{"$f":"$I$5*'[2]21-23 Campus Contract Alloctns'!Y42/SUM('[2]21-23 Campus Contract Alloctns'!$I$5:$AP$108)","v":0},{"$f":"$I$5*'[2]21-23 Campus Contract Alloctns'!Z42/SUM('[2]21-23 Campus Contract Alloctns'!$I$5:$AP$108)","v":0},{"$f":"$I$5*'[2]21-23 Campus Contract Alloctns'!AA42/SUM('[2]21-23 Campus Contract Alloctns'!$I$5:$AP$108)","v":0},{"$f":"$I$5*'[2]21-23 Campus Contract Alloctns'!AB42/SUM('[2]21-23 Campus Contract Alloctns'!$I$5:$AP$108)","v":0},{"$f":"$I$5*'[2]21-23 Campus Contract Alloctns'!AC42/SUM('[2]21-23 Campus Contract Alloctns'!$I$5:$AP$108)","v":0},{"$f":"$I$5*'[2]21-23 Campus Contract Alloctns'!AD42/SUM('[2]21-23 Campus Contract Alloctns'!$I$5:$AP$108)","v":0},{"$f":"$I$5*'[2]21-23 Campus Contract Alloctns'!AE42/SUM('[2]21-23 Campus Contract Alloctns'!$I$5:$AP$108)","v":0},{"$f":"$I$5*'[2]21-23 Campus Contract Alloctns'!AF42/SUM('[2]21-23 Campus Contract Alloctns'!$I$5:$AP$108)","v":0},{"$f":"$I$5*'[2]21-23 Campus Contract Alloctns'!AG42/SUM('[2]21-23 Campus Contract Alloctns'!$I$5:$AP$108)","v":0},{"$f":"$I$5*'[2]21-23 Campus Contract Alloctns'!AH42/SUM('[2]21-23 Campus Contract Alloctns'!$I$5:$AP$108)","v":0},{"$f":"$I$5*'[2]21-23 Campus Contract Alloctns'!AI42/SUM('[2]21-23 Campus Contract Alloctns'!$I$5:$AP$108)","v":0},{"$f":"$I$5*'[2]21-23 Campus Contract Alloctns'!AJ42/SUM('[2]21-23 Campus Contract Alloctns'!$I$5:$AP$108)","v":0},{"$f":"$I$5*'[2]21-23 Campus Contract Alloctns'!AK42/SUM('[2]21-23 Campus Contract Alloctns'!$I$5:$AP$108)","v":0},{"$f":"$I$5*'[2]21-23 Campus Contract Alloctns'!AL42/SUM('[2]21-23 Campus Contract Alloctns'!$I$5:$AP$108)","v":0},{"$f":"$I$5*'[2]21-23 Campus Contract Alloctns'!AM42/SUM('[2]21-23 Campus Contract Alloctns'!$I$5:$AP$108)","v":0},{"$f":"$I$5*'[2]21-23 Campus Contract Alloctns'!AN42/SUM('[2]21-23 Campus Contract Alloctns'!$I$5:$AP$108)","v":0},{"$f":"$I$5*'[2]21-23 Campus Contract Alloctns'!AO42/SUM('[2]21-23 Campus Contract Alloctns'!$I$5:$AP$108)","v":0},{"$f":"$I$5*'[2]21-23 Campus Contract Alloctns'!AP42/SUM('[2]21-23 Campus Contract Alloctns'!$I$5:$AP$108)","v":0}]
[null,"124 - Department of Retirement Systems","124","Department of Retirement Systems",4.750952925780671E-3,268,4.750952925780671E-3,0,0,{"$f":"$I$5*'[2]21-23 Campus Contract Alloctns'!I43/SUM('[2]21-23 Campus Contract Alloctns'!$I$5:$AP$108)","v":0},{"$f":"$I$5*'[2]21-23 Campus Contract Alloctns'!J43/SUM('[2]21-23 Campus Contract Alloctns'!$I$5:$AP$108)","v":0},{"$f":"$I$5*'[2]21-23 Campus Contract Alloctns'!K43/SUM('[2]21-23 Campus Contract Alloctns'!$I$5:$AP$108)","v":0},{"$f":"$I$5*'[2]21-23 Campus Contract Alloctns'!L43/SUM('[2]21-23 Campus Contract Alloctns'!$I$5:$AP$108)","v":0},{"$f":"$I$5*'[2]21-23 Campus Contract Alloctns'!M43/SUM('[2]21-23 Campus Contract Alloctns'!$I$5:$AP$108)","v":0},{"$f":"$I$5*'[2]21-23 Campus Contract Alloctns'!N43/SUM('[2]21-23 Campus Contract Alloctns'!$I$5:$AP$108)","v":0},{"$f":"$I$5*'[2]21-23 Campus Contract Alloctns'!O43/SUM('[2]21-23 Campus Contract Alloctns'!$I$5:$AP$108)","v":0},{"$f":"$I$5*'[2]21-23 Campus Contract Alloctns'!P43/SUM('[2]21-23 Campus Contract Alloctns'!$I$5:$AP$108)","v":0},{"$f":"$I$5*'[2]21-23 Campus Contract Alloctns'!Q43/SUM('[2]21-23 Campus Contract Alloctns'!$I$5:$AP$108)","v":0},{"$f":"$I$5*'[2]21-23 Campus Contract Alloctns'!R43/SUM('[2]21-23 Campus Contract Alloctns'!$I$5:$AP$108)","v":0},{"$f":"$I$5*'[2]21-23 Campus Contract Alloctns'!S43/SUM('[2]21-23 Campus Contract Alloctns'!$I$5:$AP$108)","v":0},{"$f":"$I$5*'[2]21-23 Campus Contract Alloctns'!T43/SUM('[2]21-23 Campus Contract Alloctns'!$I$5:$AP$108)","v":0},{"$f":"$I$5*'[2]21-23 Campus Contract Alloctns'!U43/SUM('[2]21-23 Campus Contract Alloctns'!$I$5:$AP$108)","v":0},{"$f":"$I$5*'[2]21-23 Campus Contract Alloctns'!V43/SUM('[2]21-23 Campus Contract Alloctns'!$I$5:$AP$108)","v":0},{"$f":"$I$5*'[2]21-23 Campus Contract Alloctns'!W43/SUM('[2]21-23 Campus Contract Alloctns'!$I$5:$AP$108)","v":0},{"$f":"$I$5*'[2]21-23 Campus Contract Alloctns'!X43/SUM('[2]21-23 Campus Contract Alloctns'!$I$5:$AP$108)","v":0},{"$f":"$I$5*'[2]21-23 Campus Contract Alloctns'!Y43/SUM('[2]21-23 Campus Contract Alloctns'!$I$5:$AP$108)","v":0},{"$f":"$I$5*'[2]21-23 Campus Contract Alloctns'!Z43/SUM('[2]21-23 Campus Contract Alloctns'!$I$5:$AP$108)","v":0},{"$f":"$I$5*'[2]21-23 Campus Contract Alloctns'!AA43/SUM('[2]21-23 Campus Contract Alloctns'!$I$5:$AP$108)","v":0},{"$f":"$I$5*'[2]21-23 Campus Contract Alloctns'!AB43/SUM('[2]21-23 Campus Contract Alloctns'!$I$5:$AP$108)","v":0},{"$f":"$I$5*'[2]21-23 Campus Contract Alloctns'!AC43/SUM('[2]21-23 Campus Contract Alloctns'!$I$5:$AP$108)","v":0},{"$f":"$I$5*'[2]21-23 Campus Contract Alloctns'!AD43/SUM('[2]21-23 Campus Contract Alloctns'!$I$5:$AP$108)","v":0},{"$f":"$I$5*'[2]21-23 Campus Contract Alloctns'!AE43/SUM('[2]21-23 Campus Contract Alloctns'!$I$5:$AP$108)","v":0},{"$f":"$I$5*'[2]21-23 Campus Contract Alloctns'!AF43/SUM('[2]21-23 Campus Contract Alloctns'!$I$5:$AP$108)","v":0},{"$f":"$I$5*'[2]21-23 Campus Contract Alloctns'!AG43/SUM('[2]21-23 Campus Contract Alloctns'!$I$5:$AP$108)","v":0},{"$f":"$I$5*'[2]21-23 Campus Contract Alloctns'!AH43/SUM('[2]21-23 Campus Contract Alloctns'!$I$5:$AP$108)","v":0},{"$f":"$I$5*'[2]21-23 Campus Contract Alloctns'!AI43/SUM('[2]21-23 Campus Contract Alloctns'!$I$5:$AP$108)","v":0},{"$f":"$I$5*'[2]21-23 Campus Contract Alloctns'!AJ43/SUM('[2]21-23 Campus Contract Alloctns'!$I$5:$AP$108)","v":0},{"$f":"$I$5*'[2]21-23 Campus Contract Alloctns'!AK43/SUM('[2]21-23 Campus Contract Alloctns'!$I$5:$AP$108)","v":0},{"$f":"$I$5*'[2]21-23 Campus Contract Alloctns'!AL43/SUM('[2]21-23 Campus Contract Alloctns'!$I$5:$AP$108)","v":0},{"$f":"$I$5*'[2]21-23 Campus Contract Alloctns'!AM43/SUM('[2]21-23 Campus Contract Alloctns'!$I$5:$AP$108)","v":0},{"$f":"$I$5*'[2]21-23 Campus Contract Alloctns'!AN43/SUM('[2]21-23 Campus Contract Alloctns'!$I$5:$AP$108)","v":0},{"$f":"$I$5*'[2]21-23 Campus Contract Alloctns'!AO43/SUM('[2]21-23 Campus Contract Alloctns'!$I$5:$AP$108)","v":0},{"$f":"$I$5*'[2]21-23 Campus Contract Alloctns'!AP43/SUM('[2]21-23 Campus Contract Alloctns'!$I$5:$AP$108)","v":0}]
[null,"126 - State Investment Board","126","State Investment Board",1.5777418298301483E-3,89,1.5777418298301483E-3,0,0,{"$f":"$I$5*'[2]21-23 Campus Contract Alloctns'!I44/SUM('[2]21-23 Campus Contract Alloctns'!$I$5:$AP$108)","v":0},{"$f":"$I$5*'[2]21-23 Campus Contract Alloctns'!J44/SUM('[2]21-23 Campus Contract Alloctns'!$I$5:$AP$108)","v":0},{"$f":"$I$5*'[2]21-23 Campus Contract Alloctns'!K44/SUM('[2]21-23 Campus Contract Alloctns'!$I$5:$AP$108)","v":0},{"$f":"$I$5*'[2]21-23 Campus Contract Alloctns'!L44/SUM('[2]21-23 Campus Contract Alloctns'!$I$5:$AP$108)","v":0},{"$f":"$I$5*'[2]21-23 Campus Contract Alloctns'!M44/SUM('[2]21-23 Campus Contract Alloctns'!$I$5:$AP$108)","v":0},{"$f":"$I$5*'[2]21-23 Campus Contract Alloctns'!N44/SUM('[2]21-23 Campus Contract Alloctns'!$I$5:$AP$108)","v":0},{"$f":"$I$5*'[2]21-23 Campus Contract Alloctns'!O44/SUM('[2]21-23 Campus Contract Alloctns'!$I$5:$AP$108)","v":0},{"$f":"$I$5*'[2]21-23 Campus Contract Alloctns'!P44/SUM('[2]21-23 Campus Contract Alloctns'!$I$5:$AP$108)","v":0},{"$f":"$I$5*'[2]21-23 Campus Contract Alloctns'!Q44/SUM('[2]21-23 Campus Contract Alloctns'!$I$5:$AP$108)","v":0},{"$f":"$I$5*'[2]21-23 Campus Contract Alloctns'!R44/SUM('[2]21-23 Campus Contract Alloctns'!$I$5:$AP$108)","v":0},{"$f":"$I$5*'[2]21-23 Campus Contract Alloctns'!S44/SUM('[2]21-23 Campus Contract Alloctns'!$I$5:$AP$108)","v":0},{"$f":"$I$5*'[2]21-23 Campus Contract Alloctns'!T44/SUM('[2]21-23 Campus Contract Alloctns'!$I$5:$AP$108)","v":0},{"$f":"$I$5*'[2]21-23 Campus Contract Alloctns'!U44/SUM('[2]21-23 Campus Contract Alloctns'!$I$5:$AP$108)","v":0},{"$f":"$I$5*'[2]21-23 Campus Contract Alloctns'!V44/SUM('[2]21-23 Campus Contract Alloctns'!$I$5:$AP$108)","v":0},{"$f":"$I$5*'[2]21-23 Campus Contract Alloctns'!W44/SUM('[2]21-23 Campus Contract Alloctns'!$I$5:$AP$108)","v":0},{"$f":"$I$5*'[2]21-23 Campus Contract Alloctns'!X44/SUM('[2]21-23 Campus Contract Alloctns'!$I$5:$AP$108)","v":0},{"$f":"$I$5*'[2]21-23 Campus Contract Alloctns'!Y44/SUM('[2]21-23 Campus Contract Alloctns'!$I$5:$AP$108)","v":0},{"$f":"$I$5*'[2]21-23 Campus Contract Alloctns'!Z44/SUM('[2]21-23 Campus Contract Alloctns'!$I$5:$AP$108)","v":0},{"$f":"$I$5*'[2]21-23 Campus Contract Alloctns'!AA44/SUM('[2]21-23 Campus Contract Alloctns'!$I$5:$AP$108)","v":0},{"$f":"$I$5*'[2]21-23 Campus Contract Alloctns'!AB44/SUM('[2]21-23 Campus Contract Alloctns'!$I$5:$AP$108)","v":0},{"$f":"$I$5*'[2]21-23 Campus Contract Alloctns'!AC44/SUM('[2]21-23 Campus Contract Alloctns'!$I$5:$AP$108)","v":0},{"$f":"$I$5*'[2]21-23 Campus Contract Alloctns'!AD44/SUM('[2]21-23 Campus Contract Alloctns'!$I$5:$AP$108)","v":0},{"$f":"$I$5*'[2]21-23 Campus Contract Alloctns'!AE44/SUM('[2]21-23 Campus Contract Alloctns'!$I$5:$AP$108)","v":0},{"$f":"$I$5*'[2]21-23 Campus Contract Alloctns'!AF44/SUM('[2]21-23 Campus Contract Alloctns'!$I$5:$AP$108)","v":0},{"$f":"$I$5*'[2]21-23 Campus Contract Alloctns'!AG44/SUM('[2]21-23 Campus Contract Alloctns'!$I$5:$AP$108)","v":0},{"$f":"$I$5*'[2]21-23 Campus Contract Alloctns'!AH44/SUM('[2]21-23 Campus Contract Alloctns'!$I$5:$AP$108)","v":0},{"$f":"$I$5*'[2]21-23 Campus Contract Alloctns'!AI44/SUM('[2]21-23 Campus Contract Alloctns'!$I$5:$AP$108)","v":0},{"$f":"$I$5*'[2]21-23 Campus Contract Alloctns'!AJ44/SUM('[2]21-23 Campus Contract Alloctns'!$I$5:$AP$108)","v":0},{"$f":"$I$5*'[2]21-23 Campus Contract Alloctns'!AK44/SUM('[2]21-23 Campus Contract Alloctns'!$I$5:$AP$108)","v":0},{"$f":"$I$5*'[2]21-23 Campus Contract Alloctns'!AL44/SUM('[2]21-23 Campus Contract Alloctns'!$I$5:$AP$108)","v":0},{"$f":"$I$5*'[2]21-23 Campus Contract Alloctns'!AM44/SUM('[2]21-23 Campus Contract Alloctns'!$I$5:$AP$108)","v":0},{"$f":"$I$5*'[2]21-23 Campus Contract Alloctns'!AN44/SUM('[2]21-23 Campus Contract Alloctns'!$I$5:$AP$108)","v":0},{"$f":"$I$5*'[2]21-23 Campus Contract Alloctns'!AO44/SUM('[2]21-23 Campus Contract Alloctns'!$I$5:$AP$108)","v":0},{"$f":"$I$5*'[2]21-23 Campus Contract Alloctns'!AP44/SUM('[2]21-23 Campus Contract Alloctns'!$I$5:$AP$108)","v":0}]
[null,"140 - Department of Revenue","140","Department of Revenue",1.3136030291057751E-2,741,1.3136030291057751E-2,0,0,{"$f":"$I$5*'[2]21-23 Campus Contract Alloctns'!I45/SUM('[2]21-23 Campus Contract Alloctns'!$I$5:$AP$108)","v":0},{"$f":"$I$5*'[2]21-23 Campus Contract Alloctns'!J45/SUM('[2]21-23 Campus Contract Alloctns'!$I$5:$AP$108)","v":0},{"$f":"$I$5*'[2]21-23 Campus Contract Alloctns'!K45/SUM('[2]21-23 Campus Contract Alloctns'!$I$5:$AP$108)","v":0},{"$f":"$I$5*'[2]21-23 Campus Contract Alloctns'!L45/SUM('[2]21-23 Campus Contract Alloctns'!$I$5:$AP$108)","v":0},{"$f":"$I$5*'[2]21-23 Campus Contract Alloctns'!M45/SUM('[2]21-23 Campus Contract Alloctns'!$I$5:$AP$108)","v":0},{"$f":"$I$5*'[2]21-23 Campus Contract Alloctns'!N45/SUM('[2]21-23 Campus Contract Alloctns'!$I$5:$AP$108)","v":0},{"$f":"$I$5*'[2]21-23 Campus Contract Alloctns'!O45/SUM('[2]21-23 Campus Contract Alloctns'!$I$5:$AP$108)","v":0},{"$f":"$I$5*'[2]21-23 Campus Contract Alloctns'!P45/SUM('[2]21-23 Campus Contract Alloctns'!$I$5:$AP$108)","v":0},{"$f":"$I$5*'[2]21-23 Campus Contract Alloctns'!Q45/SUM('[2]21-23 Campus Contract Alloctns'!$I$5:$AP$108)","v":0},{"$f":"$I$5*'[2]21-23 Campus Contract Alloctns'!R45/SUM('[2]21-23 Campus Contract Alloctns'!$I$5:$AP$108)","v":0},{"$f":"$I$5*'[2]21-23 Campus Contract Alloctns'!S45/SUM('[2]21-23 Campus Contract Alloctns'!$I$5:$AP$108)","v":0},{"$f":"$I$5*'[2]21-23 Campus Contract Alloctns'!T45/SUM('[2]21-23 Campus Contract Alloctns'!$I$5:$AP$108)","v":0},{"$f":"$I$5*'[2]21-23 Campus Contract Alloctns'!U45/SUM('[2]21-23 Campus Contract Alloctns'!$I$5:$AP$108)","v":0},{"$f":"$I$5*'[2]21-23 Campus Contract Alloctns'!V45/SUM('[2]21-23 Campus Contract Alloctns'!$I$5:$AP$108)","v":0},{"$f":"$I$5*'[2]21-23 Campus Contract Alloctns'!W45/SUM('[2]21-23 Campus Contract Alloctns'!$I$5:$AP$108)","v":0},{"$f":"$I$5*'[2]21-23 Campus Contract Alloctns'!X45/SUM('[2]21-23 Campus Contract Alloctns'!$I$5:$AP$108)","v":0},{"$f":"$I$5*'[2]21-23 Campus Contract Alloctns'!Y45/SUM('[2]21-23 Campus Contract Alloctns'!$I$5:$AP$108)","v":0},{"$f":"$I$5*'[2]21-23 Campus Contract Alloctns'!Z45/SUM('[2]21-23 Campus Contract Alloctns'!$I$5:$AP$108)","v":0},{"$f":"$I$5*'[2]21-23 Campus Contract Alloctns'!AA45/SUM('[2]21-23 Campus Contract Alloctns'!$I$5:$AP$108)","v":0},{"$f":"$I$5*'[2]21-23 Campus Contract Alloctns'!AB45/SUM('[2]21-23 Campus Contract Alloctns'!$I$5:$AP$108)","v":0},{"$f":"$I$5*'[2]21-23 Campus Contract Alloctns'!AC45/SUM('[2]21-23 Campus Contract Alloctns'!$I$5:$AP$108)","v":0},{"$f":"$I$5*'[2]21-23 Campus Contract Alloctns'!AD45/SUM('[2]21-23 Campus Contract Alloctns'!$I$5:$AP$108)","v":0},{"$f":"$I$5*'[2]21-23 Campus Contract Alloctns'!AE45/SUM('[2]21-23 Campus Contract Alloctns'!$I$5:$AP$108)","v":0},{"$f":"$I$5*'[2]21-23 Campus Contract Alloctns'!AF45/SUM('[2]21-23 Campus Contract Alloctns'!$I$5:$AP$108)","v":0},{"$f":"$I$5*'[2]21-23 Campus Contract Alloctns'!AG45/SUM('[2]21-23 Campus Contract Alloctns'!$I$5:$AP$108)","v":0},{"$f":"$I$5*'[2]21-23 Campus Contract Alloctns'!AH45/SUM('[2]21-23 Campus Contract Alloctns'!$I$5:$AP$108)","v":0},{"$f":"$I$5*'[2]21-23 Campus Contract Alloctns'!AI45/SUM('[2]21-23 Campus Contract Alloctns'!$I$5:$AP$108)","v":0},{"$f":"$I$5*'[2]21-23 Campus Contract Alloctns'!AJ45/SUM('[2]21-23 Campus Contract Alloctns'!$I$5:$AP$108)","v":0},{"$f":"$I$5*'[2]21-23 Campus Contract Alloctns'!AK45/SUM('[2]21-23 Campus Contract Alloctns'!$I$5:$AP$108)","v":0},{"$f":"$I$5*'[2]21-23 Campus Contract Alloctns'!AL45/SUM('[2]21-23 Campus Contract Alloctns'!$I$5:$AP$108)","v":0},{"$f":"$I$5*'[2]21-23 Campus Contract Alloctns'!AM45/SUM('[2]21-23 Campus Contract Alloctns'!$I$5:$AP$108)","v":0},{"$f":"$I$5*'[2]21-23 Campus Contract Alloctns'!AN45/SUM('[2]21-23 Campus Contract Alloctns'!$I$5:$AP$108)","v":0},{"$f":"$I$5*'[2]21-23 Campus Contract Alloctns'!AO45/SUM('[2]21-23 Campus Contract Alloctns'!$I$5:$AP$108)","v":0},{"$f":"$I$5*'[2]21-23 Campus Contract Alloctns'!AP45/SUM('[2]21-23 Campus Contract Alloctns'!$I$5:$AP$108)","v":0}]
[null,"142 - Board of Tax Appeals","142","Board of Tax Appeals",1.2527139822572126E-3,15,2.6591154435339577E-4,0,9.8680243790381667E-4,{"$f":"$I$5*'[2]21-23 Campus Contract Alloctns'!I46/SUM('[2]21-23 Campus Contract Alloctns'!$I$5:$AP$108)","v":0},{"$f":"$I$5*'[2]21-23 Campus Contract Alloctns'!J46/SUM('[2]21-23 Campus Contract Alloctns'!$I$5:$AP$108)","v":0},{"$f":"$I$5*'[2]21-23 Campus Contract Alloctns'!K46/SUM('[2]21-23 Campus Contract Alloctns'!$I$5:$AP$108)","v":0},{"$f":"$I$5*'[2]21-23 Campus Contract Alloctns'!L46/SUM('[2]21-23 Campus Contract Alloctns'!$I$5:$AP$108)","v":0},{"$f":"$I$5*'[2]21-23 Campus Contract Alloctns'!M46/SUM('[2]21-23 Campus Contract Alloctns'!$I$5:$AP$108)","v":0},{"$f":"$I$5*'[2]21-23 Campus Contract Alloctns'!N46/SUM('[2]21-23 Campus Contract Alloctns'!$I$5:$AP$108)","v":0},{"$f":"$I$5*'[2]21-23 Campus Contract Alloctns'!O46/SUM('[2]21-23 Campus Contract Alloctns'!$I$5:$AP$108)","v":0},{"$f":"$I$5*'[2]21-23 Campus Contract Alloctns'!P46/SUM('[2]21-23 Campus Contract Alloctns'!$I$5:$AP$108)","v":0},{"$f":"$I$5*'[2]21-23 Campus Contract Alloctns'!Q46/SUM('[2]21-23 Campus Contract Alloctns'!$I$5:$AP$108)","v":0},{"$f":"$I$5*'[2]21-23 Campus Contract Alloctns'!R46/SUM('[2]21-23 Campus Contract Alloctns'!$I$5:$AP$108)","v":0},{"$f":"$I$5*'[2]21-23 Campus Contract Alloctns'!S46/SUM('[2]21-23 Campus Contract Alloctns'!$I$5:$AP$108)","v":0},{"$f":"$I$5*'[2]21-23 Campus Contract Alloctns'!T46/SUM('[2]21-23 Campus Contract Alloctns'!$I$5:$AP$108)","v":0},{"$f":"$I$5*'[2]21-23 Campus Contract Alloctns'!U46/SUM('[2]21-23 Campus Contract Alloctns'!$I$5:$AP$108)","v":0},{"$f":"$I$5*'[2]21-23 Campus Contract Alloctns'!V46/SUM('[2]21-23 Campus Contract Alloctns'!$I$5:$AP$108)","v":0},{"$f":"$I$5*'[2]21-23 Campus Contract Alloctns'!W46/SUM('[2]21-23 Campus Contract Alloctns'!$I$5:$AP$108)","v":0},{"$f":"$I$5*'[2]21-23 Campus Contract Alloctns'!X46/SUM('[2]21-23 Campus Contract Alloctns'!$I$5:$AP$108)","v":0},{"$f":"$I$5*'[2]21-23 Campus Contract Alloctns'!Y46/SUM('[2]21-23 Campus Contract Alloctns'!$I$5:$AP$108)","v":0},{"$f":"$I$5*'[2]21-23 Campus Contract Alloctns'!Z46/SUM('[2]21-23 Campus Contract Alloctns'!$I$5:$AP$108)","v":0},{"$f":"$I$5*'[2]21-23 Campus Contract Alloctns'!AA46/SUM('[2]21-23 Campus Contract Alloctns'!$I$5:$AP$108)","v":0},{"$f":"$I$5*'[2]21-23 Campus Contract Alloctns'!AB46/SUM('[2]21-23 Campus Contract Alloctns'!$I$5:$AP$108)","v":9.8680243790381689E-4},{"$f":"$I$5*'[2]21-23 Campus Contract Alloctns'!AC46/SUM('[2]21-23 Campus Contract Alloctns'!$I$5:$AP$108)","v":0},{"$f":"$I$5*'[2]21-23 Campus Contract Alloctns'!AD46/SUM('[2]21-23 Campus Contract Alloctns'!$I$5:$AP$108)","v":0},{"$f":"$I$5*'[2]21-23 Campus Contract Alloctns'!AE46/SUM('[2]21-23 Campus Contract Alloctns'!$I$5:$AP$108)","v":0},{"$f":"$I$5*'[2]21-23 Campus Contract Alloctns'!AF46/SUM('[2]21-23 Campus Contract Alloctns'!$I$5:$AP$108)","v":0},{"$f":"$I$5*'[2]21-23 Campus Contract Alloctns'!AG46/SUM('[2]21-23 Campus Contract Alloctns'!$I$5:$AP$108)","v":0},{"$f":"$I$5*'[2]21-23 Campus Contract Alloctns'!AH46/SUM('[2]21-23 Campus Contract Alloctns'!$I$5:$AP$108)","v":0},{"$f":"$I$5*'[2]21-23 Campus Contract Alloctns'!AI46/SUM('[2]21-23 Campus Contract Alloctns'!$I$5:$AP$108)","v":0},{"$f":"$I$5*'[2]21-23 Campus Contract Alloctns'!AJ46/SUM('[2]21-23 Campus Contract Alloctns'!$I$5:$AP$108)","v":0},{"$f":"$I$5*'[2]21-23 Campus Contract Alloctns'!AK46/SUM('[2]21-23 Campus Contract Alloctns'!$I$5:$AP$108)","v":0},{"$f":"$I$5*'[2]21-23 Campus Contract Alloctns'!AL46/SUM('[2]21-23 Campus Contract Alloctns'!$I$5:$AP$108)","v":0},{"$f":"$I$5*'[2]21-23 Campus Contract Alloctns'!AM46/SUM('[2]21-23 Campus Contract Alloctns'!$I$5:$AP$108)","v":0},{"$f":"$I$5*'[2]21-23 Campus Contract Alloctns'!AN46/SUM('[2]21-23 Campus Contract Alloctns'!$I$5:$AP$108)","v":0},{"$f":"$I$5*'[2]21-23 Campus Contract Alloctns'!AO46/SUM('[2]21-23 Campus Contract Alloctns'!$I$5:$AP$108)","v":0},{"$f":"$I$5*'[2]21-23 Campus Contract Alloctns'!AP46/SUM('[2]21-23 Campus Contract Alloctns'!$I$5:$AP$108)","v":0}]
[null,"147 - Office of Minority and Women's Business Enterprises","147","Office of Minority and Women's Business Enterprises",1.4437456119201428E-3,24,4.2545847096543324E-4,0,1.0182871409547096E-3,{"$f":"$I$5*'[2]21-23 Campus Contract Alloctns'!I47/SUM('[2]21-23 Campus Contract Alloctns'!$I$5:$AP$108)","v":0},{"$f":"$I$5*'[2]21-23 Campus Contract Alloctns'!J47/SUM('[2]21-23 Campus Contract Alloctns'!$I$5:$AP$108)","v":0},{"$f":"$I$5*'[2]21-23 Campus Contract Alloctns'!K47/SUM('[2]21-23 Campus Contract Alloctns'!$I$5:$AP$108)","v":0},{"$f":"$I$5*'[2]21-23 Campus Contract Alloctns'!L47/SUM('[2]21-23 Campus Contract Alloctns'!$I$5:$AP$108)","v":0},{"$f":"$I$5*'[2]21-23 Campus Contract Alloctns'!M47/SUM('[2]21-23 Campus Contract Alloctns'!$I$5:$AP$108)","v":0},{"$f":"$I$5*'[2]21-23 Campus Contract Alloctns'!N47/SUM('[2]21-23 Campus Contract Alloctns'!$I$5:$AP$108)","v":0},{"$f":"$I$5*'[2]21-23 Campus Contract Alloctns'!O47/SUM('[2]21-23 Campus Contract Alloctns'!$I$5:$AP$108)","v":0},{"$f":"$I$5*'[2]21-23 Campus Contract Alloctns'!P47/SUM('[2]21-23 Campus Contract Alloctns'!$I$5:$AP$108)","v":0},{"$f":"$I$5*'[2]21-23 Campus Contract Alloctns'!Q47/SUM('[2]21-23 Campus Contract Alloctns'!$I$5:$AP$108)","v":0},{"$f":"$I$5*'[2]21-23 Campus Contract Alloctns'!R47/SUM('[2]21-23 Campus Contract Alloctns'!$I$5:$AP$108)","v":0},{"$f":"$I$5*'[2]21-23 Campus Contract Alloctns'!S47/SUM('[2]21-23 Campus Contract Alloctns'!$I$5:$AP$108)","v":0},{"$f":"$I$5*'[2]21-23 Campus Contract Alloctns'!T47/SUM('[2]21-23 Campus Contract Alloctns'!$I$5:$AP$108)","v":0},{"$f":"$I$5*'[2]21-23 Campus Contract Alloctns'!U47/SUM('[2]21-23 Campus Contract Alloctns'!$I$5:$AP$108)","v":0},{"$f":"$I$5*'[2]21-23 Campus Contract Alloctns'!V47/SUM('[2]21-23 Campus Contract Alloctns'!$I$5:$AP$108)","v":0},{"$f":"$I$5*'[2]21-23 Campus Contract Alloctns'!W47/SUM('[2]21-23 Campus Contract Alloctns'!$I$5:$AP$108)","v":0},{"$f":"$I$5*'[2]21-23 Campus Contract Alloctns'!X47/SUM('[2]21-23 Campus Contract Alloctns'!$I$5:$AP$108)","v":0},{"$f":"$I$5*'[2]21-23 Campus Contract Alloctns'!Y47/SUM('[2]21-23 Campus Contract Alloctns'!$I$5:$AP$108)","v":0},{"$f":"$I$5*'[2]21-23 Campus Contract Alloctns'!Z47/SUM('[2]21-23 Campus Contract Alloctns'!$I$5:$AP$108)","v":0},{"$f":"$I$5*'[2]21-23 Campus Contract Alloctns'!AA47/SUM('[2]21-23 Campus Contract Alloctns'!$I$5:$AP$108)","v":0},{"$f":"$I$5*'[2]21-23 Campus Contract Alloctns'!AB47/SUM('[2]21-23 Campus Contract Alloctns'!$I$5:$AP$108)","v":1.0182871409547098E-3},{"$f":"$I$5*'[2]21-23 Campus Contract Alloctns'!AC47/SUM('[2]21-23 Campus Contract Alloctns'!$I$5:$AP$108)","v":0},{"$f":"$I$5*'[2]21-23 Campus Contract Alloctns'!AD47/SUM('[2]21-23 Campus Contract Alloctns'!$I$5:$AP$108)","v":0},{"$f":"$I$5*'[2]21-23 Campus Contract Alloctns'!AE47/SUM('[2]21-23 Campus Contract Alloctns'!$I$5:$AP$108)","v":0},{"$f":"$I$5*'[2]21-23 Campus Contract Alloctns'!AF47/SUM('[2]21-23 Campus Contract Alloctns'!$I$5:$AP$108)","v":0},{"$f":"$I$5*'[2]21-23 Campus Contract Alloctns'!AG47/SUM('[2]21-23 Campus Contract Alloctns'!$I$5:$AP$108)","v":0},{"$f":"$I$5*'[2]21-23 Campus Contract Alloctns'!AH47/SUM('[2]21-23 Campus Contract Alloctns'!$I$5:$AP$108)","v":0},{"$f":"$I$5*'[2]21-23 Campus Contract Alloctns'!AI47/SUM('[2]21-23 Campus Contract Alloctns'!$I$5:$AP$108)","v":0},{"$f":"$I$5*'[2]21-23 Campus Contract Alloctns'!AJ47/SUM('[2]21-23 Campus Contract Alloctns'!$I$5:$AP$108)","v":0},{"$f":"$I$5*'[2]21-23 Campus Contract Alloctns'!AK47/SUM('[2]21-23 Campus Contract Alloctns'!$I$5:$AP$108)","v":0},{"$f":"$I$5*'[2]21-23 Campus Contract Alloctns'!AL47/SUM('[2]21-23 Campus Contract Alloctns'!$I$5:$AP$108)","v":0},{"$f":"$I$5*'[2]21-23 Campus Contract Alloctns'!AM47/SUM('[2]21-23 Campus Contract Alloctns'!$I$5:$AP$108)","v":0},{"$f":"$I$5*'[2]21-23 Campus Contract Alloctns'!AN47/SUM('[2]21-23 Campus Contract Alloctns'!$I$5:$AP$108)","v":0},{"$f":"$I$5*'[2]21-23 Campus Contract Alloctns'!AO47/SUM('[2]21-23 Campus Contract Alloctns'!$I$5:$AP$108)","v":0},{"$f":"$I$5*'[2]21-23 Campus Contract Alloctns'!AP47/SUM('[2]21-23 Campus Contract Alloctns'!$I$5:$AP$108)","v":0}]
[null,"160 - Office of Insurance Commissioner","160","Office of Insurance Commissioner",5.6277810485065981E-3,208,3.6873067483670879E-3,2.8024323654956987E-4,1.6602310635899405E-3,{"$f":"$I$5*'[2]21-23 Campus Contract Alloctns'!I48/SUM('[2]21-23 Campus Contract Alloctns'!$I$5:$AP$108)","v":0},{"$f":"$I$5*'[2]21-23 Campus Contract Alloctns'!J48/SUM('[2]21-23 Campus Contract Alloctns'!$I$5:$AP$108)","v":0},{"$f":"$I$5*'[2]21-23 Campus Contract Alloctns'!K48/SUM('[2]21-23 Campus Contract Alloctns'!$I$5:$AP$108)","v":0},{"$f":"$I$5*'[2]21-23 Campus Contract Alloctns'!L48/SUM('[2]21-23 Campus Contract Alloctns'!$I$5:$AP$108)","v":0},{"$f":"$I$5*'[2]21-23 Campus Contract Alloctns'!M48/SUM('[2]21-23 Campus Contract Alloctns'!$I$5:$AP$108)","v":0},{"$f":"$I$5*'[2]21-23 Campus Contract Alloctns'!N48/SUM('[2]21-23 Campus Contract Alloctns'!$I$5:$AP$108)","v":0},{"$f":"$I$5*'[2]21-23 Campus Contract Alloctns'!O48/SUM('[2]21-23 Campus Contract Alloctns'!$I$5:$AP$108)","v":0},{"$f":"$I$5*'[2]21-23 Campus Contract Alloctns'!P48/SUM('[2]21-23 Campus Contract Alloctns'!$I$5:$AP$108)","v":0},{"$f":"$I$5*'[2]21-23 Campus Contract Alloctns'!Q48/SUM('[2]21-23 Campus Contract Alloctns'!$I$5:$AP$108)","v":0},{"$f":"$I$5*'[2]21-23 Campus Contract Alloctns'!R48/SUM('[2]21-23 Campus Contract Alloctns'!$I$5:$AP$108)","v":0},{"$f":"$I$5*'[2]21-23 Campus Contract Alloctns'!S48/SUM('[2]21-23 Campus Contract Alloctns'!$I$5:$AP$108)","v":1.6602310635899407E-3},{"$f":"$I$5*'[2]21-23 Campus Contract Alloctns'!T48/SUM('[2]21-23 Campus Contract Alloctns'!$I$5:$AP$108)","v":0},{"$f":"$I$5*'[2]21-23 Campus Contract Alloctns'!U48/SUM('[2]21-23 Campus Contract Alloctns'!$I$5:$AP$108)","v":0},{"$f":"$I$5*'[2]21-23 Campus Contract Alloctns'!V48/SUM('[2]21-23 Campus Contract Alloctns'!$I$5:$AP$108)","v":0},{"$f":"$I$5*'[2]21-23 Campus Contract Alloctns'!W48/SUM('[2]21-23 Campus Contract Alloctns'!$I$5:$AP$108)","v":0},{"$f":"$I$5*'[2]21-23 Campus Contract Alloctns'!X48/SUM('[2]21-23 Campus Contract Alloctns'!$I$5:$AP$108)","v":0},{"$f":"$I$5*'[2]21-23 Campus Contract Alloctns'!Y48/SUM('[2]21-23 Campus Contract Alloctns'!$I$5:$AP$108)","v":0},{"$f":"$I$5*'[2]21-23 Campus Contract Alloctns'!Z48/SUM('[2]21-23 Campus Contract Alloctns'!$I$5:$AP$108)","v":0},{"$f":"$I$5*'[2]21-23 Campus Contract Alloctns'!AA48/SUM('[2]21-23 Campus Contract Alloctns'!$I$5:$AP$108)","v":0},{"$f":"$I$5*'[2]21-23 Campus Contract Alloctns'!AB48/SUM('[2]21-23 Campus Contract Alloctns'!$I$5:$AP$108)","v":0},{"$f":"$I$5*'[2]21-23 Campus Contract Alloctns'!AC48/SUM('[2]21-23 Campus Contract Alloctns'!$I$5:$AP$108)","v":0},{"$f":"$I$5*'[2]21-23 Campus Contract Alloctns'!AD48/SUM('[2]21-23 Campus Contract Alloctns'!$I$5:$AP$108)","v":0},{"$f":"$I$5*'[2]21-23 Campus Contract Alloctns'!AE48/SUM('[2]21-23 Campus Contract Alloctns'!$I$5:$AP$108)","v":0},{"$f":"$I$5*'[2]21-23 Campus Contract Alloctns'!AF48/SUM('[2]21-23 Campus Contract Alloctns'!$I$5:$AP$108)","v":0},{"$f":"$I$5*'[2]21-23 Campus Contract Alloctns'!AG48/SUM('[2]21-23 Campus Contract Alloctns'!$I$5:$AP$108)","v":0},{"$f":"$I$5*'[2]21-23 Campus Contract Alloctns'!AH48/SUM('[2]21-23 Campus Contract Alloctns'!$I$5:$AP$108)","v":0},{"$f":"$I$5*'[2]21-23 Campus Contract Alloctns'!AI48/SUM('[2]21-23 Campus Contract Alloctns'!$I$5:$AP$108)","v":0},{"$f":"$I$5*'[2]21-23 Campus Contract Alloctns'!AJ48/SUM('[2]21-23 Campus Contract Alloctns'!$I$5:$AP$108)","v":0},{"$f":"$I$5*'[2]21-23 Campus Contract Alloctns'!AK48/SUM('[2]21-23 Campus Contract Alloctns'!$I$5:$AP$108)","v":0},{"$f":"$I$5*'[2]21-23 Campus Contract Alloctns'!AL48/SUM('[2]21-23 Campus Contract Alloctns'!$I$5:$AP$108)","v":0},{"$f":"$I$5*'[2]21-23 Campus Contract Alloctns'!AM48/SUM('[2]21-23 Campus Contract Alloctns'!$I$5:$AP$108)","v":0},{"$f":"$I$5*'[2]21-23 Campus Contract Alloctns'!AN48/SUM('[2]21-23 Campus Contract Alloctns'!$I$5:$AP$108)","v":0},{"$f":"$I$5*'[2]21-23 Campus Contract Alloctns'!AO48/SUM('[2]21-23 Campus Contract Alloctns'!$I$5:$AP$108)","v":0},{"$f":"$I$5*'[2]21-23 Campus Contract Alloctns'!AP48/SUM('[2]21-23 Campus Contract Alloctns'!$I$5:$AP$108)","v":0}]
[null,"163 - Consolidated Technology Services","163","Consolidated Technology Services",5.2280800976285558E-3,289,5.1232290878754257E-3,1.1708545581982318E-5,9.314246417114737E-5,{"$f":"$I$5*'[2]21-23 Campus Contract Alloctns'!I49/SUM('[2]21-23 Campus Contract Alloctns'!$I$5:$AP$108)","v":0},{"$f":"$I$5*'[2]21-23 Campus Contract Alloctns'!J49/SUM('[2]21-23 Campus Contract Alloctns'!$I$5:$AP$108)","v":0},{"$f":"$I$5*'[2]21-23 Campus Contract Alloctns'!K49/SUM('[2]21-23 Campus Contract Alloctns'!$I$5:$AP$108)","v":0},{"$f":"$I$5*'[2]21-23 Campus Contract Alloctns'!L49/SUM('[2]21-23 Campus Contract Alloctns'!$I$5:$AP$108)","v":0},{"$f":"$I$5*'[2]21-23 Campus Contract Alloctns'!M49/SUM('[2]21-23 Campus Contract Alloctns'!$I$5:$AP$108)","v":0},{"$f":"$I$5*'[2]21-23 Campus Contract Alloctns'!N49/SUM('[2]21-23 Campus Contract Alloctns'!$I$5:$AP$108)","v":9.3142464171147384E-5},{"$f":"$I$5*'[2]21-23 Campus Contract Alloctns'!O49/SUM('[2]21-23 Campus Contract Alloctns'!$I$5:$AP$108)","v":0},{"$f":"$I$5*'[2]21-23 Campus Contract Alloctns'!P49/SUM('[2]21-23 Campus Contract Alloctns'!$I$5:$AP$108)","v":0},{"$f":"$I$5*'[2]21-23 Campus Contract Alloctns'!Q49/SUM('[2]21-23 Campus Contract Alloctns'!$I$5:$AP$108)","v":0},{"$f":"$I$5*'[2]21-23 Campus Contract Alloctns'!R49/SUM('[2]21-23 Campus Contract Alloctns'!$I$5:$AP$108)","v":0},{"$f":"$I$5*'[2]21-23 Campus Contract Alloctns'!S49/SUM('[2]21-23 Campus Contract Alloctns'!$I$5:$AP$108)","v":0},{"$f":"$I$5*'[2]21-23 Campus Contract Alloctns'!T49/SUM('[2]21-23 Campus Contract Alloctns'!$I$5:$AP$108)","v":0},{"$f":"$I$5*'[2]21-23 Campus Contract Alloctns'!U49/SUM('[2]21-23 Campus Contract Alloctns'!$I$5:$AP$108)","v":0},{"$f":"$I$5*'[2]21-23 Campus Contract Alloctns'!V49/SUM('[2]21-23 Campus Contract Alloctns'!$I$5:$AP$108)","v":0},{"$f":"$I$5*'[2]21-23 Campus Contract Alloctns'!W49/SUM('[2]21-23 Campus Contract Alloctns'!$I$5:$AP$108)","v":0},{"$f":"$I$5*'[2]21-23 Campus Contract Alloctns'!X49/SUM('[2]21-23 Campus Contract Alloctns'!$I$5:$AP$108)","v":0},{"$f":"$I$5*'[2]21-23 Campus Contract Alloctns'!Y49/SUM('[2]21-23 Campus Contract Alloctns'!$I$5:$AP$108)","v":0},{"$f":"$I$5*'[2]21-23 Campus Contract Alloctns'!Z49/SUM('[2]21-23 Campus Contract Alloctns'!$I$5:$AP$108)","v":0},{"$f":"$I$5*'[2]21-23 Campus Contract Alloctns'!AA49/SUM('[2]21-23 Campus Contract Alloctns'!$I$5:$AP$108)","v":0},{"$f":"$I$5*'[2]21-23 Campus Contract Alloctns'!AB49/SUM('[2]21-23 Campus Contract Alloctns'!$I$5:$AP$108)","v":0},{"$f":"$I$5*'[2]21-23 Campus Contract Alloctns'!AC49/SUM('[2]21-23 Campus Contract Alloctns'!$I$5:$AP$108)","v":0},{"$f":"$I$5*'[2]21-23 Campus Contract Alloctns'!AD49/SUM('[2]21-23 Campus Contract Alloctns'!$I$5:$AP$108)","v":0},{"$f":"$I$5*'[2]21-23 Campus Contract Alloctns'!AE49/SUM('[2]21-23 Campus Contract Alloctns'!$I$5:$AP$108)","v":0},{"$f":"$I$5*'[2]21-23 Campus Contract Alloctns'!AF49/SUM('[2]21-23 Campus Contract Alloctns'!$I$5:$AP$108)","v":0},{"$f":"$I$5*'[2]21-23 Campus Contract Alloctns'!AG49/SUM('[2]21-23 Campus Contract Alloctns'!$I$5:$AP$108)","v":0},{"$f":"$I$5*'[2]21-23 Campus Contract Alloctns'!AH49/SUM('[2]21-23 Campus Contract Alloctns'!$I$5:$AP$108)","v":0},{"$f":"$I$5*'[2]21-23 Campus Contract Alloctns'!AI49/SUM('[2]21-23 Campus Contract Alloctns'!$I$5:$AP$108)","v":0},{"$f":"$I$5*'[2]21-23 Campus Contract Alloctns'!AJ49/SUM('[2]21-23 Campus Contract Alloctns'!$I$5:$AP$108)","v":0},{"$f":"$I$5*'[2]21-23 Campus Contract Alloctns'!AK49/SUM('[2]21-23 Campus Contract Alloctns'!$I$5:$AP$108)","v":0},{"$f":"$I$5*'[2]21-23 Campus Contract Alloctns'!AL49/SUM('[2]21-23 Campus Contract Alloctns'!$I$5:$AP$108)","v":0},{"$f":"$I$5*'[2]21-23 Campus Contract Alloctns'!AM49/SUM('[2]21-23 Campus Contract Alloctns'!$I$5:$AP$108)","v":0},{"$f":"$I$5*'[2]21-23 Campus Contract Alloctns'!AN49/SUM('[2]21-23 Campus Contract Alloctns'!$I$5:$AP$108)","v":0},{"$f":"$I$5*'[2]21-23 Campus Contract Alloctns'!AO49/SUM('[2]21-23 Campus Contract Alloctns'!$I$5:$AP$108)","v":0},{"$f":"$I$5*'[2]21-23 Campus Contract Alloctns'!AP49/SUM('[2]21-23 Campus Contract Alloctns'!$I$5:$AP$108)","v":0}]
[null,"165 - Board of Accountancy","165","Board of Accountancy",1.7727436290226387E-4,10,1.7727436290226387E-4,0,0,{"$f":"$I$5*'[2]21-23 Campus Contract Alloctns'!I50/SUM('[2]21-23 Campus Contract Alloctns'!$I$5:$AP$108)","v":0},{"$f":"$I$5*'[2]21-23 Campus Contract Alloctns'!J50/SUM('[2]21-23 Campus Contract Alloctns'!$I$5:$AP$108)","v":0},{"$f":"$I$5*'[2]21-23 Campus Contract Alloctns'!K50/SUM('[2]21-23 Campus Contract Alloctns'!$I$5:$AP$108)","v":0},{"$f":"$I$5*'[2]21-23 Campus Contract Alloctns'!L50/SUM('[2]21-23 Campus Contract Alloctns'!$I$5:$AP$108)","v":0},{"$f":"$I$5*'[2]21-23 Campus Contract Alloctns'!M50/SUM('[2]21-23 Campus Contract Alloctns'!$I$5:$AP$108)","v":0},{"$f":"$I$5*'[2]21-23 Campus Contract Alloctns'!N50/SUM('[2]21-23 Campus Contract Alloctns'!$I$5:$AP$108)","v":0},{"$f":"$I$5*'[2]21-23 Campus Contract Alloctns'!O50/SUM('[2]21-23 Campus Contract Alloctns'!$I$5:$AP$108)","v":0},{"$f":"$I$5*'[2]21-23 Campus Contract Alloctns'!P50/SUM('[2]21-23 Campus Contract Alloctns'!$I$5:$AP$108)","v":0},{"$f":"$I$5*'[2]21-23 Campus Contract Alloctns'!Q50/SUM('[2]21-23 Campus Contract Alloctns'!$I$5:$AP$108)","v":0},{"$f":"$I$5*'[2]21-23 Campus Contract Alloctns'!R50/SUM('[2]21-23 Campus Contract Alloctns'!$I$5:$AP$108)","v":0},{"$f":"$I$5*'[2]21-23 Campus Contract Alloctns'!S50/SUM('[2]21-23 Campus Contract Alloctns'!$I$5:$AP$108)","v":0},{"$f":"$I$5*'[2]21-23 Campus Contract Alloctns'!T50/SUM('[2]21-23 Campus Contract Alloctns'!$I$5:$AP$108)","v":0},{"$f":"$I$5*'[2]21-23 Campus Contract Alloctns'!U50/SUM('[2]21-23 Campus Contract Alloctns'!$I$5:$AP$108)","v":0},{"$f":"$I$5*'[2]21-23 Campus Contract Alloctns'!V50/SUM('[2]21-23 Campus Contract Alloctns'!$I$5:$AP$108)","v":0},{"$f":"$I$5*'[2]21-23 Campus Contract Alloctns'!W50/SUM('[2]21-23 Campus Contract Alloctns'!$I$5:$AP$108)","v":0},{"$f":"$I$5*'[2]21-23 Campus Contract Alloctns'!X50/SUM('[2]21-23 Campus Contract Alloctns'!$I$5:$AP$108)","v":0},{"$f":"$I$5*'[2]21-23 Campus Contract Alloctns'!Y50/SUM('[2]21-23 Campus Contract Alloctns'!$I$5:$AP$108)","v":0},{"$f":"$I$5*'[2]21-23 Campus Contract Alloctns'!Z50/SUM('[2]21-23 Campus Contract Alloctns'!$I$5:$AP$108)","v":0},{"$f":"$I$5*'[2]21-23 Campus Contract Alloctns'!AA50/SUM('[2]21-23 Campus Contract Alloctns'!$I$5:$AP$108)","v":0},{"$f":"$I$5*'[2]21-23 Campus Contract Alloctns'!AB50/SUM('[2]21-23 Campus Contract Alloctns'!$I$5:$AP$108)","v":0},{"$f":"$I$5*'[2]21-23 Campus Contract Alloctns'!AC50/SUM('[2]21-23 Campus Contract Alloctns'!$I$5:$AP$108)","v":0},{"$f":"$I$5*'[2]21-23 Campus Contract Alloctns'!AD50/SUM('[2]21-23 Campus Contract Alloctns'!$I$5:$AP$108)","v":0},{"$f":"$I$5*'[2]21-23 Campus Contract Alloctns'!AE50/SUM('[2]21-23 Campus Contract Alloctns'!$I$5:$AP$108)","v":0},{"$f":"$I$5*'[2]21-23 Campus Contract Alloctns'!AF50/SUM('[2]21-23 Campus Contract Alloctns'!$I$5:$AP$108)","v":0},{"$f":"$I$5*'[2]21-23 Campus Contract Alloctns'!AG50/SUM('[2]21-23 Campus Contract Alloctns'!$I$5:$AP$108)","v":0},{"$f":"$I$5*'[2]21-23 Campus Contract Alloctns'!AH50/SUM('[2]21-23 Campus Contract Alloctns'!$I$5:$AP$108)","v":0},{"$f":"$I$5*'[2]21-23 Campus Contract Alloctns'!AI50/SUM('[2]21-23 Campus Contract Alloctns'!$I$5:$AP$108)","v":0},{"$f":"$I$5*'[2]21-23 Campus Contract Alloctns'!AJ50/SUM('[2]21-23 Campus Contract Alloctns'!$I$5:$AP$108)","v":0},{"$f":"$I$5*'[2]21-23 Campus Contract Alloctns'!AK50/SUM('[2]21-23 Campus Contract Alloctns'!$I$5:$AP$108)","v":0},{"$f":"$I$5*'[2]21-23 Campus Contract Alloctns'!AL50/SUM('[2]21-23 Campus Contract Alloctns'!$I$5:$AP$108)","v":0},{"$f":"$I$5*'[2]21-23 Campus Contract Alloctns'!AM50/SUM('[2]21-23 Campus Contract Alloctns'!$I$5:$AP$108)","v":0},{"$f":"$I$5*'[2]21-23 Campus Contract Alloctns'!AN50/SUM('[2]21-23 Campus Contract Alloctns'!$I$5:$AP$108)","v":0},{"$f":"$I$5*'[2]21-23 Campus Contract Alloctns'!AO50/SUM('[2]21-23 Campus Contract Alloctns'!$I$5:$AP$108)","v":0},{"$f":"$I$5*'[2]21-23 Campus Contract Alloctns'!AP50/SUM('[2]21-23 Campus Contract Alloctns'!$I$5:$AP$108)","v":0}]
[null,"166 - Brd Prof Eng Land Surveyors","166","Brd Prof Eng Land Surveyors",1.4181949032181107E-4,8,1.4181949032181107E-4,0,0,{"$f":"$I$5*'[2]21-23 Campus Contract Alloctns'!I51/SUM('[2]21-23 Campus Contract Alloctns'!$I$5:$AP$108)","v":0},{"$f":"$I$5*'[2]21-23 Campus Contract Alloctns'!J51/SUM('[2]21-23 Campus Contract Alloctns'!$I$5:$AP$108)","v":0},{"$f":"$I$5*'[2]21-23 Campus Contract Alloctns'!K51/SUM('[2]21-23 Campus Contract Alloctns'!$I$5:$AP$108)","v":0},{"$f":"$I$5*'[2]21-23 Campus Contract Alloctns'!L51/SUM('[2]21-23 Campus Contract Alloctns'!$I$5:$AP$108)","v":0},{"$f":"$I$5*'[2]21-23 Campus Contract Alloctns'!M51/SUM('[2]21-23 Campus Contract Alloctns'!$I$5:$AP$108)","v":0},{"$f":"$I$5*'[2]21-23 Campus Contract Alloctns'!N51/SUM('[2]21-23 Campus Contract Alloctns'!$I$5:$AP$108)","v":0},{"$f":"$I$5*'[2]21-23 Campus Contract Alloctns'!O51/SUM('[2]21-23 Campus Contract Alloctns'!$I$5:$AP$108)","v":0},{"$f":"$I$5*'[2]21-23 Campus Contract Alloctns'!P51/SUM('[2]21-23 Campus Contract Alloctns'!$I$5:$AP$108)","v":0},{"$f":"$I$5*'[2]21-23 Campus Contract Alloctns'!Q51/SUM('[2]21-23 Campus Contract Alloctns'!$I$5:$AP$108)","v":0},{"$f":"$I$5*'[2]21-23 Campus Contract Alloctns'!R51/SUM('[2]21-23 Campus Contract Alloctns'!$I$5:$AP$108)","v":0},{"$f":"$I$5*'[2]21-23 Campus Contract Alloctns'!S51/SUM('[2]21-23 Campus Contract Alloctns'!$I$5:$AP$108)","v":0},{"$f":"$I$5*'[2]21-23 Campus Contract Alloctns'!T51/SUM('[2]21-23 Campus Contract Alloctns'!$I$5:$AP$108)","v":0},{"$f":"$I$5*'[2]21-23 Campus Contract Alloctns'!U51/SUM('[2]21-23 Campus Contract Alloctns'!$I$5:$AP$108)","v":0},{"$f":"$I$5*'[2]21-23 Campus Contract Alloctns'!V51/SUM('[2]21-23 Campus Contract Alloctns'!$I$5:$AP$108)","v":0},{"$f":"$I$5*'[2]21-23 Campus Contract Alloctns'!W51/SUM('[2]21-23 Campus Contract Alloctns'!$I$5:$AP$108)","v":0},{"$f":"$I$5*'[2]21-23 Campus Contract Alloctns'!X51/SUM('[2]21-23 Campus Contract Alloctns'!$I$5:$AP$108)","v":0},{"$f":"$I$5*'[2]21-23 Campus Contract Alloctns'!Y51/SUM('[2]21-23 Campus Contract Alloctns'!$I$5:$AP$108)","v":0},{"$f":"$I$5*'[2]21-23 Campus Contract Alloctns'!Z51/SUM('[2]21-23 Campus Contract Alloctns'!$I$5:$AP$108)","v":0},{"$f":"$I$5*'[2]21-23 Campus Contract Alloctns'!AA51/SUM('[2]21-23 Campus Contract Alloctns'!$I$5:$AP$108)","v":0},{"$f":"$I$5*'[2]21-23 Campus Contract Alloctns'!AB51/SUM('[2]21-23 Campus Contract Alloctns'!$I$5:$AP$108)","v":0},{"$f":"$I$5*'[2]21-23 Campus Contract Alloctns'!AC51/SUM('[2]21-23 Campus Contract Alloctns'!$I$5:$AP$108)","v":0},{"$f":"$I$5*'[2]21-23 Campus Contract Alloctns'!AD51/SUM('[2]21-23 Campus Contract Alloctns'!$I$5:$AP$108)","v":0},{"$f":"$I$5*'[2]21-23 Campus Contract Alloctns'!AE51/SUM('[2]21-23 Campus Contract Alloctns'!$I$5:$AP$108)","v":0},{"$f":"$I$5*'[2]21-23 Campus Contract Alloctns'!AF51/SUM('[2]21-23 Campus Contract Alloctns'!$I$5:$AP$108)","v":0},{"$f":"$I$5*'[2]21-23 Campus Contract Alloctns'!AG51/SUM('[2]21-23 Campus Contract Alloctns'!$I$5:$AP$108)","v":0},{"$f":"$I$5*'[2]21-23 Campus Contract Alloctns'!AH51/SUM('[2]21-23 Campus Contract Alloctns'!$I$5:$AP$108)","v":0},{"$f":"$I$5*'[2]21-23 Campus Contract Alloctns'!AI51/SUM('[2]21-23 Campus Contract Alloctns'!$I$5:$AP$108)","v":0},{"$f":"$I$5*'[2]21-23 Campus Contract Alloctns'!AJ51/SUM('[2]21-23 Campus Contract Alloctns'!$I$5:$AP$108)","v":0},{"$f":"$I$5*'[2]21-23 Campus Contract Alloctns'!AK51/SUM('[2]21-23 Campus Contract Alloctns'!$I$5:$AP$108)","v":0},{"$f":"$I$5*'[2]21-23 Campus Contract Alloctns'!AL51/SUM('[2]21-23 Campus Contract Alloctns'!$I$5:$AP$108)","v":0},{"$f":"$I$5*'[2]21-23 Campus Contract Alloctns'!AM51/SUM('[2]21-23 Campus Contract Alloctns'!$I$5:$AP$108)","v":0},{"$f":"$I$5*'[2]21-23 Campus Contract Alloctns'!AN51/SUM('[2]21-23 Campus Contract Alloctns'!$I$5:$AP$108)","v":0},{"$f":"$I$5*'[2]21-23 Campus Contract Alloctns'!AO51/SUM('[2]21-23 Campus Contract Alloctns'!$I$5:$AP$108)","v":0},{"$f":"$I$5*'[2]21-23 Campus Contract Alloctns'!AP51/SUM('[2]21-23 Campus Contract Alloctns'!$I$5:$AP$108)","v":0}]
[null,"167 - Forensic Investigations Council","167","Forensic Investigations Council",0,0,0,0,0,{"$f":"$I$5*'[2]21-23 Campus Contract Alloctns'!I52/SUM('[2]21-23 Campus Contract Alloctns'!$I$5:$AP$108)","v":0},{"$f":"$I$5*'[2]21-23 Campus Contract Alloctns'!J52/SUM('[2]21-23 Campus Contract Alloctns'!$I$5:$AP$108)","v":0},{"$f":"$I$5*'[2]21-23 Campus Contract Alloctns'!K52/SUM('[2]21-23 Campus Contract Alloctns'!$I$5:$AP$108)","v":0},{"$f":"$I$5*'[2]21-23 Campus Contract Alloctns'!L52/SUM('[2]21-23 Campus Contract Alloctns'!$I$5:$AP$108)","v":0},{"$f":"$I$5*'[2]21-23 Campus Contract Alloctns'!M52/SUM('[2]21-23 Campus Contract Alloctns'!$I$5:$AP$108)","v":0},{"$f":"$I$5*'[2]21-23 Campus Contract Alloctns'!N52/SUM('[2]21-23 Campus Contract Alloctns'!$I$5:$AP$108)","v":0},{"$f":"$I$5*'[2]21-23 Campus Contract Alloctns'!O52/SUM('[2]21-23 Campus Contract Alloctns'!$I$5:$AP$108)","v":0},{"$f":"$I$5*'[2]21-23 Campus Contract Alloctns'!P52/SUM('[2]21-23 Campus Contract Alloctns'!$I$5:$AP$108)","v":0},{"$f":"$I$5*'[2]21-23 Campus Contract Alloctns'!Q52/SUM('[2]21-23 Campus Contract Alloctns'!$I$5:$AP$108)","v":0},{"$f":"$I$5*'[2]21-23 Campus Contract Alloctns'!R52/SUM('[2]21-23 Campus Contract Alloctns'!$I$5:$AP$108)","v":0},{"$f":"$I$5*'[2]21-23 Campus Contract Alloctns'!S52/SUM('[2]21-23 Campus Contract Alloctns'!$I$5:$AP$108)","v":0},{"$f":"$I$5*'[2]21-23 Campus Contract Alloctns'!T52/SUM('[2]21-23 Campus Contract Alloctns'!$I$5:$AP$108)","v":0},{"$f":"$I$5*'[2]21-23 Campus Contract Alloctns'!U52/SUM('[2]21-23 Campus Contract Alloctns'!$I$5:$AP$108)","v":0},{"$f":"$I$5*'[2]21-23 Campus Contract Alloctns'!V52/SUM('[2]21-23 Campus Contract Alloctns'!$I$5:$AP$108)","v":0},{"$f":"$I$5*'[2]21-23 Campus Contract Alloctns'!W52/SUM('[2]21-23 Campus Contract Alloctns'!$I$5:$AP$108)","v":0},{"$f":"$I$5*'[2]21-23 Campus Contract Alloctns'!X52/SUM('[2]21-23 Campus Contract Alloctns'!$I$5:$AP$108)","v":0},{"$f":"$I$5*'[2]21-23 Campus Contract Alloctns'!Y52/SUM('[2]21-23 Campus Contract Alloctns'!$I$5:$AP$108)","v":0},{"$f":"$I$5*'[2]21-23 Campus Contract Alloctns'!Z52/SUM('[2]21-23 Campus Contract Alloctns'!$I$5:$AP$108)","v":0},{"$f":"$I$5*'[2]21-23 Campus Contract Alloctns'!AA52/SUM('[2]21-23 Campus Contract Alloctns'!$I$5:$AP$108)","v":0},{"$f":"$I$5*'[2]21-23 Campus Contract Alloctns'!AB52/SUM('[2]21-23 Campus Contract Alloctns'!$I$5:$AP$108)","v":0},{"$f":"$I$5*'[2]21-23 Campus Contract Alloctns'!AC52/SUM('[2]21-23 Campus Contract Alloctns'!$I$5:$AP$108)","v":0},{"$f":"$I$5*'[2]21-23 Campus Contract Alloctns'!AD52/SUM('[2]21-23 Campus Contract Alloctns'!$I$5:$AP$108)","v":0},{"$f":"$I$5*'[2]21-23 Campus Contract Alloctns'!AE52/SUM('[2]21-23 Campus Contract Alloctns'!$I$5:$AP$108)","v":0},{"$f":"$I$5*'[2]21-23 Campus Contract Alloctns'!AF52/SUM('[2]21-23 Campus Contract Alloctns'!$I$5:$AP$108)","v":0},{"$f":"$I$5*'[2]21-23 Campus Contract Alloctns'!AG52/SUM('[2]21-23 Campus Contract Alloctns'!$I$5:$AP$108)","v":0},{"$f":"$I$5*'[2]21-23 Campus Contract Alloctns'!AH52/SUM('[2]21-23 Campus Contract Alloctns'!$I$5:$AP$108)","v":0},{"$f":"$I$5*'[2]21-23 Campus Contract Alloctns'!AI52/SUM('[2]21-23 Campus Contract Alloctns'!$I$5:$AP$108)","v":0},{"$f":"$I$5*'[2]21-23 Campus Contract Alloctns'!AJ52/SUM('[2]21-23 Campus Contract Alloctns'!$I$5:$AP$108)","v":0},{"$f":"$I$5*'[2]21-23 Campus Contract Alloctns'!AK52/SUM('[2]21-23 Campus Contract Alloctns'!$I$5:$AP$108)","v":0},{"$f":"$I$5*'[2]21-23 Campus Contract Alloctns'!AL52/SUM('[2]21-23 Campus Contract Alloctns'!$I$5:$AP$108)","v":0},{"$f":"$I$5*'[2]21-23 Campus Contract Alloctns'!AM52/SUM('[2]21-23 Campus Contract Alloctns'!$I$5:$AP$108)","v":0},{"$f":"$I$5*'[2]21-23 Campus Contract Alloctns'!AN52/SUM('[2]21-23 Campus Contract Alloctns'!$I$5:$AP$108)","v":0},{"$f":"$I$5*'[2]21-23 Campus Contract Alloctns'!AO52/SUM('[2]21-23 Campus Contract Alloctns'!$I$5:$AP$108)","v":0},{"$f":"$I$5*'[2]21-23 Campus Contract Alloctns'!AP52/SUM('[2]21-23 Campus Contract Alloctns'!$I$5:$AP$108)","v":0}]
[null,"179 - Department of Enterprise Services","179","Department of Enterprise Services",2.4172820914484177E-2,761,1.3490579016862278E-2,1.0907793337899484E-3,9.5914625638319501E-3,{"$f":"$I$5*'[2]21-23 Campus Contract Alloctns'!I53/SUM('[2]21-23 Campus Contract Alloctns'!$I$5:$AP$108)","v":0},{"$f":"$I$5*'[2]21-23 Campus Contract Alloctns'!J53/SUM('[2]21-23 Campus Contract Alloctns'!$I$5:$AP$108)","v":0},{"$f":"$I$5*'[2]21-23 Campus Contract Alloctns'!K53/SUM('[2]21-23 Campus Contract Alloctns'!$I$5:$AP$108)","v":1.9842055481921338E-3},{"$f":"$I$5*'[2]21-23 Campus Contract Alloctns'!L53/SUM('[2]21-23 Campus Contract Alloctns'!$I$5:$AP$108)","v":0},{"$f":"$I$5*'[2]21-23 Campus Contract Alloctns'!M53/SUM('[2]21-23 Campus Contract Alloctns'!$I$5:$AP$108)","v":0},{"$f":"$I$5*'[2]21-23 Campus Contract Alloctns'!N53/SUM('[2]21-23 Campus Contract Alloctns'!$I$5:$AP$108)","v":6.4708494115612875E-3},{"$f":"$I$5*'[2]21-23 Campus Contract Alloctns'!O53/SUM('[2]21-23 Campus Contract Alloctns'!$I$5:$AP$108)","v":0},{"$f":"$I$5*'[2]21-23 Campus Contract Alloctns'!P53/SUM('[2]21-23 Campus Contract Alloctns'!$I$5:$AP$108)","v":0},{"$f":"$I$5*'[2]21-23 Campus Contract Alloctns'!Q53/SUM('[2]21-23 Campus Contract Alloctns'!$I$5:$AP$108)","v":0},{"$f":"$I$5*'[2]21-23 Campus Contract Alloctns'!R53/SUM('[2]21-23 Campus Contract Alloctns'!$I$5:$AP$108)","v":0},{"$f":"$I$5*'[2]21-23 Campus Contract Alloctns'!S53/SUM('[2]21-23 Campus Contract Alloctns'!$I$5:$AP$108)","v":0},{"$f":"$I$5*'[2]21-23 Campus Contract Alloctns'!T53/SUM('[2]21-23 Campus Contract Alloctns'!$I$5:$AP$108)","v":0},{"$f":"$I$5*'[2]21-23 Campus Contract Alloctns'!U53/SUM('[2]21-23 Campus Contract Alloctns'!$I$5:$AP$108)","v":0},{"$f":"$I$5*'[2]21-23 Campus Contract Alloctns'!V53/SUM('[2]21-23 Campus Contract Alloctns'!$I$5:$AP$108)","v":0},{"$f":"$I$5*'[2]21-23 Campus Contract Alloctns'!W53/SUM('[2]21-23 Campus Contract Alloctns'!$I$5:$AP$108)","v":0},{"$f":"$I$5*'[2]21-23 Campus Contract Alloctns'!X53/SUM('[2]21-23 Campus Contract Alloctns'!$I$5:$AP$108)","v":0},{"$f":"$I$5*'[2]21-23 Campus Contract Alloctns'!Y53/SUM('[2]21-23 Campus Contract Alloctns'!$I$5:$AP$108)","v":0},{"$f":"$I$5*'[2]21-23 Campus Contract Alloctns'!Z53/SUM('[2]21-23 Campus Contract Alloctns'!$I$5:$AP$108)","v":0},{"$f":"$I$5*'[2]21-23 Campus Contract Alloctns'!AA53/SUM('[2]21-23 Campus Contract Alloctns'!$I$5:$AP$108)","v":0},{"$f":"$I$5*'[2]21-23 Campus Contract Alloctns'!AB53/SUM('[2]21-23 Campus Contract Alloctns'!$I$5:$AP$108)","v":1.1364076040785284E-3},{"$f":"$I$5*'[2]21-23 Campus Contract Alloctns'!AC53/SUM('[2]21-23 Campus Contract Alloctns'!$I$5:$AP$108)","v":0},{"$f":"$I$5*'[2]21-23 Campus Contract Alloctns'!AD53/SUM('[2]21-23 Campus Contract Alloctns'!$I$5:$AP$108)","v":0},{"$f":"$I$5*'[2]21-23 Campus Contract Alloctns'!AE53/SUM('[2]21-23 Campus Contract Alloctns'!$I$5:$AP$108)","v":0},{"$f":"$I$5*'[2]21-23 Campus Contract Alloctns'!AF53/SUM('[2]21-23 Campus Contract Alloctns'!$I$5:$AP$108)","v":0},{"$f":"$I$5*'[2]21-23 Campus Contract Alloctns'!AG53/SUM('[2]21-23 Campus Contract Alloctns'!$I$5:$AP$108)","v":0},{"$f":"$I$5*'[2]21-23 Campus Contract Alloctns'!AH53/SUM('[2]21-23 Campus Contract Alloctns'!$I$5:$AP$108)","v":0},{"$f":"$I$5*'[2]21-23 Campus Contract Alloctns'!AI53/SUM('[2]21-23 Campus Contract Alloctns'!$I$5:$AP$108)","v":0},{"$f":"$I$5*'[2]21-23 Campus Contract Alloctns'!AJ53/SUM('[2]21-23 Campus Contract Alloctns'!$I$5:$AP$108)","v":0},{"$f":"$I$5*'[2]21-23 Campus Contract Alloctns'!AK53/SUM('[2]21-23 Campus Contract Alloctns'!$I$5:$AP$108)","v":0},{"$f":"$I$5*'[2]21-23 Campus Contract Alloctns'!AL53/SUM('[2]21-23 Campus Contract Alloctns'!$I$5:$AP$108)","v":0},{"$f":"$I$5*'[2]21-23 Campus Contract Alloctns'!AM53/SUM('[2]21-23 Campus Contract Alloctns'!$I$5:$AP$108)","v":0},{"$f":"$I$5*'[2]21-23 Campus Contract Alloctns'!AN53/SUM('[2]21-23 Campus Contract Alloctns'!$I$5:$AP$108)","v":0},{"$f":"$I$5*'[2]21-23 Campus Contract Alloctns'!AO53/SUM('[2]21-23 Campus Contract Alloctns'!$I$5:$AP$108)","v":0},{"$f":"$I$5*'[2]21-23 Campus Contract Alloctns'!AP53/SUM('[2]21-23 Campus Contract Alloctns'!$I$5:$AP$108)","v":0}]
[null,"185 - Horse Racing Commission","185","Horse Racing Commission",5.3182308870679155E-5,3,5.3182308870679155E-5,0,0,{"$f":"$I$5*'[2]21-23 Campus Contract Alloctns'!I54/SUM('[2]21-23 Campus Contract Alloctns'!$I$5:$AP$108)","v":0},{"$f":"$I$5*'[2]21-23 Campus Contract Alloctns'!J54/SUM('[2]21-23 Campus Contract Alloctns'!$I$5:$AP$108)","v":0},{"$f":"$I$5*'[2]21-23 Campus Contract Alloctns'!K54/SUM('[2]21-23 Campus Contract Alloctns'!$I$5:$AP$108)","v":0},{"$f":"$I$5*'[2]21-23 Campus Contract Alloctns'!L54/SUM('[2]21-23 Campus Contract Alloctns'!$I$5:$AP$108)","v":0},{"$f":"$I$5*'[2]21-23 Campus Contract Alloctns'!M54/SUM('[2]21-23 Campus Contract Alloctns'!$I$5:$AP$108)","v":0},{"$f":"$I$5*'[2]21-23 Campus Contract Alloctns'!N54/SUM('[2]21-23 Campus Contract Alloctns'!$I$5:$AP$108)","v":0},{"$f":"$I$5*'[2]21-23 Campus Contract Alloctns'!O54/SUM('[2]21-23 Campus Contract Alloctns'!$I$5:$AP$108)","v":0},{"$f":"$I$5*'[2]21-23 Campus Contract Alloctns'!P54/SUM('[2]21-23 Campus Contract Alloctns'!$I$5:$AP$108)","v":0},{"$f":"$I$5*'[2]21-23 Campus Contract Alloctns'!Q54/SUM('[2]21-23 Campus Contract Alloctns'!$I$5:$AP$108)","v":0},{"$f":"$I$5*'[2]21-23 Campus Contract Alloctns'!R54/SUM('[2]21-23 Campus Contract Alloctns'!$I$5:$AP$108)","v":0},{"$f":"$I$5*'[2]21-23 Campus Contract Alloctns'!S54/SUM('[2]21-23 Campus Contract Alloctns'!$I$5:$AP$108)","v":0},{"$f":"$I$5*'[2]21-23 Campus Contract Alloctns'!T54/SUM('[2]21-23 Campus Contract Alloctns'!$I$5:$AP$108)","v":0},{"$f":"$I$5*'[2]21-23 Campus Contract Alloctns'!U54/SUM('[2]21-23 Campus Contract Alloctns'!$I$5:$AP$108)","v":0},{"$f":"$I$5*'[2]21-23 Campus Contract Alloctns'!V54/SUM('[2]21-23 Campus Contract Alloctns'!$I$5:$AP$108)","v":0},{"$f":"$I$5*'[2]21-23 Campus Contract Alloctns'!W54/SUM('[2]21-23 Campus Contract Alloctns'!$I$5:$AP$108)","v":0},{"$f":"$I$5*'[2]21-23 Campus Contract Alloctns'!X54/SUM('[2]21-23 Campus Contract Alloctns'!$I$5:$AP$108)","v":0},{"$f":"$I$5*'[2]21-23 Campus Contract Alloctns'!Y54/SUM('[2]21-23 Campus Contract Alloctns'!$I$5:$AP$108)","v":0},{"$f":"$I$5*'[2]21-23 Campus Contract Alloctns'!Z54/SUM('[2]21-23 Campus Contract Alloctns'!$I$5:$AP$108)","v":0},{"$f":"$I$5*'[2]21-23 Campus Contract Alloctns'!AA54/SUM('[2]21-23 Campus Contract Alloctns'!$I$5:$AP$108)","v":0},{"$f":"$I$5*'[2]21-23 Campus Contract Alloctns'!AB54/SUM('[2]21-23 Campus Contract Alloctns'!$I$5:$AP$108)","v":0},{"$f":"$I$5*'[2]21-23 Campus Contract Alloctns'!AC54/SUM('[2]21-23 Campus Contract Alloctns'!$I$5:$AP$108)","v":0},{"$f":"$I$5*'[2]21-23 Campus Contract Alloctns'!AD54/SUM('[2]21-23 Campus Contract Alloctns'!$I$5:$AP$108)","v":0},{"$f":"$I$5*'[2]21-23 Campus Contract Alloctns'!AE54/SUM('[2]21-23 Campus Contract Alloctns'!$I$5:$AP$108)","v":0},{"$f":"$I$5*'[2]21-23 Campus Contract Alloctns'!AF54/SUM('[2]21-23 Campus Contract Alloctns'!$I$5:$AP$108)","v":0},{"$f":"$I$5*'[2]21-23 Campus Contract Alloctns'!AG54/SUM('[2]21-23 Campus Contract Alloctns'!$I$5:$AP$108)","v":0},{"$f":"$I$5*'[2]21-23 Campus Contract Alloctns'!AH54/SUM('[2]21-23 Campus Contract Alloctns'!$I$5:$AP$108)","v":0},{"$f":"$I$5*'[2]21-23 Campus Contract Alloctns'!AI54/SUM('[2]21-23 Campus Contract Alloctns'!$I$5:$AP$108)","v":0},{"$f":"$I$5*'[2]21-23 Campus Contract Alloctns'!AJ54/SUM('[2]21-23 Campus Contract Alloctns'!$I$5:$AP$108)","v":0},{"$f":"$I$5*'[2]21-23 Campus Contract Alloctns'!AK54/SUM('[2]21-23 Campus Contract Alloctns'!$I$5:$AP$108)","v":0},{"$f":"$I$5*'[2]21-23 Campus Contract Alloctns'!AL54/SUM('[2]21-23 Campus Contract Alloctns'!$I$5:$AP$108)","v":0},{"$f":"$I$5*'[2]21-23 Campus Contract Alloctns'!AM54/SUM('[2]21-23 Campus Contract Alloctns'!$I$5:$AP$108)","v":0},{"$f":"$I$5*'[2]21-23 Campus Contract Alloctns'!AN54/SUM('[2]21-23 Campus Contract Alloctns'!$I$5:$AP$108)","v":0},{"$f":"$I$5*'[2]21-23 Campus Contract Alloctns'!AO54/SUM('[2]21-23 Campus Contract Alloctns'!$I$5:$AP$108)","v":0},{"$f":"$I$5*'[2]21-23 Campus Contract Alloctns'!AP54/SUM('[2]21-23 Campus Contract Alloctns'!$I$5:$AP$108)","v":0}]
[null,"190 - Board of Industrial Insurance Appeals","190","Board of Industrial Insurance Appeals",1.790471065312865E-3,101,1.790471065312865E-3,0,0,{"$f":"$I$5*'[2]21-23 Campus Contract Alloctns'!I55/SUM('[2]21-23 Campus Contract Alloctns'!$I$5:$AP$108)","v":0},{"$f":"$I$5*'[2]21-23 Campus Contract Alloctns'!J55/SUM('[2]21-23 Campus Contract Alloctns'!$I$5:$AP$108)","v":0},{"$f":"$I$5*'[2]21-23 Campus Contract Alloctns'!K55/SUM('[2]21-23 Campus Contract Alloctns'!$I$5:$AP$108)","v":0},{"$f":"$I$5*'[2]21-23 Campus Contract Alloctns'!L55/SUM('[2]21-23 Campus Contract Alloctns'!$I$5:$AP$108)","v":0},{"$f":"$I$5*'[2]21-23 Campus Contract Alloctns'!M55/SUM('[2]21-23 Campus Contract Alloctns'!$I$5:$AP$108)","v":0},{"$f":"$I$5*'[2]21-23 Campus Contract Alloctns'!N55/SUM('[2]21-23 Campus Contract Alloctns'!$I$5:$AP$108)","v":0},{"$f":"$I$5*'[2]21-23 Campus Contract Alloctns'!O55/SUM('[2]21-23 Campus Contract Alloctns'!$I$5:$AP$108)","v":0},{"$f":"$I$5*'[2]21-23 Campus Contract Alloctns'!P55/SUM('[2]21-23 Campus Contract Alloctns'!$I$5:$AP$108)","v":0},{"$f":"$I$5*'[2]21-23 Campus Contract Alloctns'!Q55/SUM('[2]21-23 Campus Contract Alloctns'!$I$5:$AP$108)","v":0},{"$f":"$I$5*'[2]21-23 Campus Contract Alloctns'!R55/SUM('[2]21-23 Campus Contract Alloctns'!$I$5:$AP$108)","v":0},{"$f":"$I$5*'[2]21-23 Campus Contract Alloctns'!S55/SUM('[2]21-23 Campus Contract Alloctns'!$I$5:$AP$108)","v":0},{"$f":"$I$5*'[2]21-23 Campus Contract Alloctns'!T55/SUM('[2]21-23 Campus Contract Alloctns'!$I$5:$AP$108)","v":0},{"$f":"$I$5*'[2]21-23 Campus Contract Alloctns'!U55/SUM('[2]21-23 Campus Contract Alloctns'!$I$5:$AP$108)","v":0},{"$f":"$I$5*'[2]21-23 Campus Contract Alloctns'!V55/SUM('[2]21-23 Campus Contract Alloctns'!$I$5:$AP$108)","v":0},{"$f":"$I$5*'[2]21-23 Campus Contract Alloctns'!W55/SUM('[2]21-23 Campus Contract Alloctns'!$I$5:$AP$108)","v":0},{"$f":"$I$5*'[2]21-23 Campus Contract Alloctns'!X55/SUM('[2]21-23 Campus Contract Alloctns'!$I$5:$AP$108)","v":0},{"$f":"$I$5*'[2]21-23 Campus Contract Alloctns'!Y55/SUM('[2]21-23 Campus Contract Alloctns'!$I$5:$AP$108)","v":0},{"$f":"$I$5*'[2]21-23 Campus Contract Alloctns'!Z55/SUM('[2]21-23 Campus Contract Alloctns'!$I$5:$AP$108)","v":0},{"$f":"$I$5*'[2]21-23 Campus Contract Alloctns'!AA55/SUM('[2]21-23 Campus Contract Alloctns'!$I$5:$AP$108)","v":0},{"$f":"$I$5*'[2]21-23 Campus Contract Alloctns'!AB55/SUM('[2]21-23 Campus Contract Alloctns'!$I$5:$AP$108)","v":0},{"$f":"$I$5*'[2]21-23 Campus Contract Alloctns'!AC55/SUM('[2]21-23 Campus Contract Alloctns'!$I$5:$AP$108)","v":0},{"$f":"$I$5*'[2]21-23 Campus Contract Alloctns'!AD55/SUM('[2]21-23 Campus Contract Alloctns'!$I$5:$AP$108)","v":0},{"$f":"$I$5*'[2]21-23 Campus Contract Alloctns'!AE55/SUM('[2]21-23 Campus Contract Alloctns'!$I$5:$AP$108)","v":0},{"$f":"$I$5*'[2]21-23 Campus Contract Alloctns'!AF55/SUM('[2]21-23 Campus Contract Alloctns'!$I$5:$AP$108)","v":0},{"$f":"$I$5*'[2]21-23 Campus Contract Alloctns'!AG55/SUM('[2]21-23 Campus Contract Alloctns'!$I$5:$AP$108)","v":0},{"$f":"$I$5*'[2]21-23 Campus Contract Alloctns'!AH55/SUM('[2]21-23 Campus Contract Alloctns'!$I$5:$AP$108)","v":0},{"$f":"$I$5*'[2]21-23 Campus Contract Alloctns'!AI55/SUM('[2]21-23 Campus Contract Alloctns'!$I$5:$AP$108)","v":0},{"$f":"$I$5*'[2]21-23 Campus Contract Alloctns'!AJ55/SUM('[2]21-23 Campus Contract Alloctns'!$I$5:$AP$108)","v":0},{"$f":"$I$5*'[2]21-23 Campus Contract Alloctns'!AK55/SUM('[2]21-23 Campus Contract Alloctns'!$I$5:$AP$108)","v":0},{"$f":"$I$5*'[2]21-23 Campus Contract Alloctns'!AL55/SUM('[2]21-23 Campus Contract Alloctns'!$I$5:$AP$108)","v":0},{"$f":"$I$5*'[2]21-23 Campus Contract Alloctns'!AM55/SUM('[2]21-23 Campus Contract Alloctns'!$I$5:$AP$108)","v":0},{"$f":"$I$5*'[2]21-23 Campus Contract Alloctns'!AN55/SUM('[2]21-23 Campus Contract Alloctns'!$I$5:$AP$108)","v":0},{"$f":"$I$5*'[2]21-23 Campus Contract Alloctns'!AO55/SUM('[2]21-23 Campus Contract Alloctns'!$I$5:$AP$108)","v":0},{"$f":"$I$5*'[2]21-23 Campus Contract Alloctns'!AP55/SUM('[2]21-23 Campus Contract Alloctns'!$I$5:$AP$108)","v":0}]
[null,"195 - Liquor Control Board","195","Liquor Control Board",3.9886731653009369E-3,225,3.9886731653009369E-3,0,0,{"$f":"$I$5*'[2]21-23 Campus Contract Alloctns'!I56/SUM('[2]21-23 Campus Contract Alloctns'!$I$5:$AP$108)","v":0},{"$f":"$I$5*'[2]21-23 Campus Contract Alloctns'!J56/SUM('[2]21-23 Campus Contract Alloctns'!$I$5:$AP$108)","v":0},{"$f":"$I$5*'[2]21-23 Campus Contract Alloctns'!K56/SUM('[2]21-23 Campus Contract Alloctns'!$I$5:$AP$108)","v":0},{"$f":"$I$5*'[2]21-23 Campus Contract Alloctns'!L56/SUM('[2]21-23 Campus Contract Alloctns'!$I$5:$AP$108)","v":0},{"$f":"$I$5*'[2]21-23 Campus Contract Alloctns'!M56/SUM('[2]21-23 Campus Contract Alloctns'!$I$5:$AP$108)","v":0},{"$f":"$I$5*'[2]21-23 Campus Contract Alloctns'!N56/SUM('[2]21-23 Campus Contract Alloctns'!$I$5:$AP$108)","v":0},{"$f":"$I$5*'[2]21-23 Campus Contract Alloctns'!O56/SUM('[2]21-23 Campus Contract Alloctns'!$I$5:$AP$108)","v":0},{"$f":"$I$5*'[2]21-23 Campus Contract Alloctns'!P56/SUM('[2]21-23 Campus Contract Alloctns'!$I$5:$AP$108)","v":0},{"$f":"$I$5*'[2]21-23 Campus Contract Alloctns'!Q56/SUM('[2]21-23 Campus Contract Alloctns'!$I$5:$AP$108)","v":0},{"$f":"$I$5*'[2]21-23 Campus Contract Alloctns'!R56/SUM('[2]21-23 Campus Contract Alloctns'!$I$5:$AP$108)","v":0},{"$f":"$I$5*'[2]21-23 Campus Contract Alloctns'!S56/SUM('[2]21-23 Campus Contract Alloctns'!$I$5:$AP$108)","v":0},{"$f":"$I$5*'[2]21-23 Campus Contract Alloctns'!T56/SUM('[2]21-23 Campus Contract Alloctns'!$I$5:$AP$108)","v":0},{"$f":"$I$5*'[2]21-23 Campus Contract Alloctns'!U56/SUM('[2]21-23 Campus Contract Alloctns'!$I$5:$AP$108)","v":0},{"$f":"$I$5*'[2]21-23 Campus Contract Alloctns'!V56/SUM('[2]21-23 Campus Contract Alloctns'!$I$5:$AP$108)","v":0},{"$f":"$I$5*'[2]21-23 Campus Contract Alloctns'!W56/SUM('[2]21-23 Campus Contract Alloctns'!$I$5:$AP$108)","v":0},{"$f":"$I$5*'[2]21-23 Campus Contract Alloctns'!X56/SUM('[2]21-23 Campus Contract Alloctns'!$I$5:$AP$108)","v":0},{"$f":"$I$5*'[2]21-23 Campus Contract Alloctns'!Y56/SUM('[2]21-23 Campus Contract Alloctns'!$I$5:$AP$108)","v":0},{"$f":"$I$5*'[2]21-23 Campus Contract Alloctns'!Z56/SUM('[2]21-23 Campus Contract Alloctns'!$I$5:$AP$108)","v":0},{"$f":"$I$5*'[2]21-23 Campus Contract Alloctns'!AA56/SUM('[2]21-23 Campus Contract Alloctns'!$I$5:$AP$108)","v":0},{"$f":"$I$5*'[2]21-23 Campus Contract Alloctns'!AB56/SUM('[2]21-23 Campus Contract Alloctns'!$I$5:$AP$108)","v":0},{"$f":"$I$5*'[2]21-23 Campus Contract Alloctns'!AC56/SUM('[2]21-23 Campus Contract Alloctns'!$I$5:$AP$108)","v":0},{"$f":"$I$5*'[2]21-23 Campus Contract Alloctns'!AD56/SUM('[2]21-23 Campus Contract Alloctns'!$I$5:$AP$108)","v":0},{"$f":"$I$5*'[2]21-23 Campus Contract Alloctns'!AE56/SUM('[2]21-23 Campus Contract Alloctns'!$I$5:$AP$108)","v":0},{"$f":"$I$5*'[2]21-23 Campus Contract Alloctns'!AF56/SUM('[2]21-23 Campus Contract Alloctns'!$I$5:$AP$108)","v":0},{"$f":"$I$5*'[2]21-23 Campus Contract Alloctns'!AG56/SUM('[2]21-23 Campus Contract Alloctns'!$I$5:$AP$108)","v":0},{"$f":"$I$5*'[2]21-23 Campus Contract Alloctns'!AH56/SUM('[2]21-23 Campus Contract Alloctns'!$I$5:$AP$108)","v":0},{"$f":"$I$5*'[2]21-23 Campus Contract Alloctns'!AI56/SUM('[2]21-23 Campus Contract Alloctns'!$I$5:$AP$108)","v":0},{"$f":"$I$5*'[2]21-23 Campus Contract Alloctns'!AJ56/SUM('[2]21-23 Campus Contract Alloctns'!$I$5:$AP$108)","v":0},{"$f":"$I$5*'[2]21-23 Campus Contract Alloctns'!AK56/SUM('[2]21-23 Campus Contract Alloctns'!$I$5:$AP$108)","v":0},{"$f":"$I$5*'[2]21-23 Campus Contract Alloctns'!AL56/SUM('[2]21-23 Campus Contract Alloctns'!$I$5:$AP$108)","v":0},{"$f":"$I$5*'[2]21-23 Campus Contract Alloctns'!AM56/SUM('[2]21-23 Campus Contract Alloctns'!$I$5:$AP$108)","v":0},{"$f":"$I$5*'[2]21-23 Campus Contract Alloctns'!AN56/SUM('[2]21-23 Campus Contract Alloctns'!$I$5:$AP$108)","v":0},{"$f":"$I$5*'[2]21-23 Campus Contract Alloctns'!AO56/SUM('[2]21-23 Campus Contract Alloctns'!$I$5:$AP$108)","v":0},{"$f":"$I$5*'[2]21-23 Campus Contract Alloctns'!AP56/SUM('[2]21-23 Campus Contract Alloctns'!$I$5:$AP$108)","v":0}]
[null,"205 - Board of Pilotage Commissioners","205","Board of Pilotage Commissioners",0,0,0,0,0,{"$f":"$I$5*'[2]21-23 Campus Contract Alloctns'!I57/SUM('[2]21-23 Campus Contract Alloctns'!$I$5:$AP$108)","v":0},{"$f":"$I$5*'[2]21-23 Campus Contract Alloctns'!J57/SUM('[2]21-23 Campus Contract Alloctns'!$I$5:$AP$108)","v":0},{"$f":"$I$5*'[2]21-23 Campus Contract Alloctns'!K57/SUM('[2]21-23 Campus Contract Alloctns'!$I$5:$AP$108)","v":0},{"$f":"$I$5*'[2]21-23 Campus Contract Alloctns'!L57/SUM('[2]21-23 Campus Contract Alloctns'!$I$5:$AP$108)","v":0},{"$f":"$I$5*'[2]21-23 Campus Contract Alloctns'!M57/SUM('[2]21-23 Campus Contract Alloctns'!$I$5:$AP$108)","v":0},{"$f":"$I$5*'[2]21-23 Campus Contract Alloctns'!N57/SUM('[2]21-23 Campus Contract Alloctns'!$I$5:$AP$108)","v":0},{"$f":"$I$5*'[2]21-23 Campus Contract Alloctns'!O57/SUM('[2]21-23 Campus Contract Alloctns'!$I$5:$AP$108)","v":0},{"$f":"$I$5*'[2]21-23 Campus Contract Alloctns'!P57/SUM('[2]21-23 Campus Contract Alloctns'!$I$5:$AP$108)","v":0},{"$f":"$I$5*'[2]21-23 Campus Contract Alloctns'!Q57/SUM('[2]21-23 Campus Contract Alloctns'!$I$5:$AP$108)","v":0},{"$f":"$I$5*'[2]21-23 Campus Contract Alloctns'!R57/SUM('[2]21-23 Campus Contract Alloctns'!$I$5:$AP$108)","v":0},{"$f":"$I$5*'[2]21-23 Campus Contract Alloctns'!S57/SUM('[2]21-23 Campus Contract Alloctns'!$I$5:$AP$108)","v":0},{"$f":"$I$5*'[2]21-23 Campus Contract Alloctns'!T57/SUM('[2]21-23 Campus Contract Alloctns'!$I$5:$AP$108)","v":0},{"$f":"$I$5*'[2]21-23 Campus Contract Alloctns'!U57/SUM('[2]21-23 Campus Contract Alloctns'!$I$5:$AP$108)","v":0},{"$f":"$I$5*'[2]21-23 Campus Contract Alloctns'!V57/SUM('[2]21-23 Campus Contract Alloctns'!$I$5:$AP$108)","v":0},{"$f":"$I$5*'[2]21-23 Campus Contract Alloctns'!W57/SUM('[2]21-23 Campus Contract Alloctns'!$I$5:$AP$108)","v":0},{"$f":"$I$5*'[2]21-23 Campus Contract Alloctns'!X57/SUM('[2]21-23 Campus Contract Alloctns'!$I$5:$AP$108)","v":0},{"$f":"$I$5*'[2]21-23 Campus Contract Alloctns'!Y57/SUM('[2]21-23 Campus Contract Alloctns'!$I$5:$AP$108)","v":0},{"$f":"$I$5*'[2]21-23 Campus Contract Alloctns'!Z57/SUM('[2]21-23 Campus Contract Alloctns'!$I$5:$AP$108)","v":0},{"$f":"$I$5*'[2]21-23 Campus Contract Alloctns'!AA57/SUM('[2]21-23 Campus Contract Alloctns'!$I$5:$AP$108)","v":0},{"$f":"$I$5*'[2]21-23 Campus Contract Alloctns'!AB57/SUM('[2]21-23 Campus Contract Alloctns'!$I$5:$AP$108)","v":0},{"$f":"$I$5*'[2]21-23 Campus Contract Alloctns'!AC57/SUM('[2]21-23 Campus Contract Alloctns'!$I$5:$AP$108)","v":0},{"$f":"$I$5*'[2]21-23 Campus Contract Alloctns'!AD57/SUM('[2]21-23 Campus Contract Alloctns'!$I$5:$AP$108)","v":0},{"$f":"$I$5*'[2]21-23 Campus Contract Alloctns'!AE57/SUM('[2]21-23 Campus Contract Alloctns'!$I$5:$AP$108)","v":0},{"$f":"$I$5*'[2]21-23 Campus Contract Alloctns'!AF57/SUM('[2]21-23 Campus Contract Alloctns'!$I$5:$AP$108)","v":0},{"$f":"$I$5*'[2]21-23 Campus Contract Alloctns'!AG57/SUM('[2]21-23 Campus Contract Alloctns'!$I$5:$AP$108)","v":0},{"$f":"$I$5*'[2]21-23 Campus Contract Alloctns'!AH57/SUM('[2]21-23 Campus Contract Alloctns'!$I$5:$AP$108)","v":0},{"$f":"$I$5*'[2]21-23 Campus Contract Alloctns'!AI57/SUM('[2]21-23 Campus Contract Alloctns'!$I$5:$AP$108)","v":0},{"$f":"$I$5*'[2]21-23 Campus Contract Alloctns'!AJ57/SUM('[2]21-23 Campus Contract Alloctns'!$I$5:$AP$108)","v":0},{"$f":"$I$5*'[2]21-23 Campus Contract Alloctns'!AK57/SUM('[2]21-23 Campus Contract Alloctns'!$I$5:$AP$108)","v":0},{"$f":"$I$5*'[2]21-23 Campus Contract Alloctns'!AL57/SUM('[2]21-23 Campus Contract Alloctns'!$I$5:$AP$108)","v":0},{"$f":"$I$5*'[2]21-23 Campus Contract Alloctns'!AM57/SUM('[2]21-23 Campus Contract Alloctns'!$I$5:$AP$108)","v":0},{"$f":"$I$5*'[2]21-23 Campus Contract Alloctns'!AN57/SUM('[2]21-23 Campus Contract Alloctns'!$I$5:$AP$108)","v":0},{"$f":"$I$5*'[2]21-23 Campus Contract Alloctns'!AO57/SUM('[2]21-23 Campus Contract Alloctns'!$I$5:$AP$108)","v":0},{"$f":"$I$5*'[2]21-23 Campus Contract Alloctns'!AP57/SUM('[2]21-23 Campus Contract Alloctns'!$I$5:$AP$108)","v":0}]
[null,"215 - Utilities and Transportation Commission","215","Utilities and Transportation Commission",2.6413880072437314E-3,149,2.6413880072437314E-3,0,0,{"$f":"$I$5*'[2]21-23 Campus Contract Alloctns'!I58/SUM('[2]21-23 Campus Contract Alloctns'!$I$5:$AP$108)","v":0},{"$f":"$I$5*'[2]21-23 Campus Contract Alloctns'!J58/SUM('[2]21-23 Campus Contract Alloctns'!$I$5:$AP$108)","v":0},{"$f":"$I$5*'[2]21-23 Campus Contract Alloctns'!K58/SUM('[2]21-23 Campus Contract Alloctns'!$I$5:$AP$108)","v":0},{"$f":"$I$5*'[2]21-23 Campus Contract Alloctns'!L58/SUM('[2]21-23 Campus Contract Alloctns'!$I$5:$AP$108)","v":0},{"$f":"$I$5*'[2]21-23 Campus Contract Alloctns'!M58/SUM('[2]21-23 Campus Contract Alloctns'!$I$5:$AP$108)","v":0},{"$f":"$I$5*'[2]21-23 Campus Contract Alloctns'!N58/SUM('[2]21-23 Campus Contract Alloctns'!$I$5:$AP$108)","v":0},{"$f":"$I$5*'[2]21-23 Campus Contract Alloctns'!O58/SUM('[2]21-23 Campus Contract Alloctns'!$I$5:$AP$108)","v":0},{"$f":"$I$5*'[2]21-23 Campus Contract Alloctns'!P58/SUM('[2]21-23 Campus Contract Alloctns'!$I$5:$AP$108)","v":0},{"$f":"$I$5*'[2]21-23 Campus Contract Alloctns'!Q58/SUM('[2]21-23 Campus Contract Alloctns'!$I$5:$AP$108)","v":0},{"$f":"$I$5*'[2]21-23 Campus Contract Alloctns'!R58/SUM('[2]21-23 Campus Contract Alloctns'!$I$5:$AP$108)","v":0},{"$f":"$I$5*'[2]21-23 Campus Contract Alloctns'!S58/SUM('[2]21-23 Campus Contract Alloctns'!$I$5:$AP$108)","v":0},{"$f":"$I$5*'[2]21-23 Campus Contract Alloctns'!T58/SUM('[2]21-23 Campus Contract Alloctns'!$I$5:$AP$108)","v":0},{"$f":"$I$5*'[2]21-23 Campus Contract Alloctns'!U58/SUM('[2]21-23 Campus Contract Alloctns'!$I$5:$AP$108)","v":0},{"$f":"$I$5*'[2]21-23 Campus Contract Alloctns'!V58/SUM('[2]21-23 Campus Contract Alloctns'!$I$5:$AP$108)","v":0},{"$f":"$I$5*'[2]21-23 Campus Contract Alloctns'!W58/SUM('[2]21-23 Campus Contract Alloctns'!$I$5:$AP$108)","v":0},{"$f":"$I$5*'[2]21-23 Campus Contract Alloctns'!X58/SUM('[2]21-23 Campus Contract Alloctns'!$I$5:$AP$108)","v":0},{"$f":"$I$5*'[2]21-23 Campus Contract Alloctns'!Y58/SUM('[2]21-23 Campus Contract Alloctns'!$I$5:$AP$108)","v":0},{"$f":"$I$5*'[2]21-23 Campus Contract Alloctns'!Z58/SUM('[2]21-23 Campus Contract Alloctns'!$I$5:$AP$108)","v":0},{"$f":"$I$5*'[2]21-23 Campus Contract Alloctns'!AA58/SUM('[2]21-23 Campus Contract Alloctns'!$I$5:$AP$108)","v":0},{"$f":"$I$5*'[2]21-23 Campus Contract Alloctns'!AB58/SUM('[2]21-23 Campus Contract Alloctns'!$I$5:$AP$108)","v":0},{"$f":"$I$5*'[2]21-23 Campus Contract Alloctns'!AC58/SUM('[2]21-23 Campus Contract Alloctns'!$I$5:$AP$108)","v":0},{"$f":"$I$5*'[2]21-23 Campus Contract Alloctns'!AD58/SUM('[2]21-23 Campus Contract Alloctns'!$I$5:$AP$108)","v":0},{"$f":"$I$5*'[2]21-23 Campus Contract Alloctns'!AE58/SUM('[2]21-23 Campus Contract Alloctns'!$I$5:$AP$108)","v":0},{"$f":"$I$5*'[2]21-23 Campus Contract Alloctns'!AF58/SUM('[2]21-23 Campus Contract Alloctns'!$I$5:$AP$108)","v":0},{"$f":"$I$5*'[2]21-23 Campus Contract Alloctns'!AG58/SUM('[2]21-23 Campus Contract Alloctns'!$I$5:$AP$108)","v":0},{"$f":"$I$5*'[2]21-23 Campus Contract Alloctns'!AH58/SUM('[2]21-23 Campus Contract Alloctns'!$I$5:$AP$108)","v":0},{"$f":"$I$5*'[2]21-23 Campus Contract Alloctns'!AI58/SUM('[2]21-23 Campus Contract Alloctns'!$I$5:$AP$108)","v":0},{"$f":"$I$5*'[2]21-23 Campus Contract Alloctns'!AJ58/SUM('[2]21-23 Campus Contract Alloctns'!$I$5:$AP$108)","v":0},{"$f":"$I$5*'[2]21-23 Campus Contract Alloctns'!AK58/SUM('[2]21-23 Campus Contract Alloctns'!$I$5:$AP$108)","v":0},{"$f":"$I$5*'[2]21-23 Campus Contract Alloctns'!AL58/SUM('[2]21-23 Campus Contract Alloctns'!$I$5:$AP$108)","v":0},{"$f":"$I$5*'[2]21-23 Campus Contract Alloctns'!AM58/SUM('[2]21-23 Campus Contract Alloctns'!$I$5:$AP$108)","v":0},{"$f":"$I$5*'[2]21-23 Campus Contract Alloctns'!AN58/SUM('[2]21-23 Campus Contract Alloctns'!$I$5:$AP$108)","v":0},{"$f":"$I$5*'[2]21-23 Campus Contract Alloctns'!AO58/SUM('[2]21-23 Campus Contract Alloctns'!$I$5:$AP$108)","v":0},{"$f":"$I$5*'[2]21-23 Campus Contract Alloctns'!AP58/SUM('[2]21-23 Campus Contract Alloctns'!$I$5:$AP$108)","v":0}]
[null,"220 - Board for Volunteer Firefighters and Reserve Officers","220","Board for Volunteer Firefighters and Reserve Officers",5.3182308870679155E-5,3,5.3182308870679155E-5,0,0,{"$f":"$I$5*'[2]21-23 Campus Contract Alloctns'!I59/SUM('[2]21-23 Campus Contract Alloctns'!$I$5:$AP$108)","v":0},{"$f":"$I$5*'[2]21-23 Campus Contract Alloctns'!J59/SUM('[2]21-23 Campus Contract Alloctns'!$I$5:$AP$108)","v":0},{"$f":"$I$5*'[2]21-23 Campus Contract Alloctns'!K59/SUM('[2]21-23 Campus Contract Alloctns'!$I$5:$AP$108)","v":0},{"$f":"$I$5*'[2]21-23 Campus Contract Alloctns'!L59/SUM('[2]21-23 Campus Contract Alloctns'!$I$5:$AP$108)","v":0},{"$f":"$I$5*'[2]21-23 Campus Contract Alloctns'!M59/SUM('[2]21-23 Campus Contract Alloctns'!$I$5:$AP$108)","v":0},{"$f":"$I$5*'[2]21-23 Campus Contract Alloctns'!N59/SUM('[2]21-23 Campus Contract Alloctns'!$I$5:$AP$108)","v":0},{"$f":"$I$5*'[2]21-23 Campus Contract Alloctns'!O59/SUM('[2]21-23 Campus Contract Alloctns'!$I$5:$AP$108)","v":0},{"$f":"$I$5*'[2]21-23 Campus Contract Alloctns'!P59/SUM('[2]21-23 Campus Contract Alloctns'!$I$5:$AP$108)","v":0},{"$f":"$I$5*'[2]21-23 Campus Contract Alloctns'!Q59/SUM('[2]21-23 Campus Contract Alloctns'!$I$5:$AP$108)","v":0},{"$f":"$I$5*'[2]21-23 Campus Contract Alloctns'!R59/SUM('[2]21-23 Campus Contract Alloctns'!$I$5:$AP$108)","v":0},{"$f":"$I$5*'[2]21-23 Campus Contract Alloctns'!S59/SUM('[2]21-23 Campus Contract Alloctns'!$I$5:$AP$108)","v":0},{"$f":"$I$5*'[2]21-23 Campus Contract Alloctns'!T59/SUM('[2]21-23 Campus Contract Alloctns'!$I$5:$AP$108)","v":0},{"$f":"$I$5*'[2]21-23 Campus Contract Alloctns'!U59/SUM('[2]21-23 Campus Contract Alloctns'!$I$5:$AP$108)","v":0},{"$f":"$I$5*'[2]21-23 Campus Contract Alloctns'!V59/SUM('[2]21-23 Campus Contract Alloctns'!$I$5:$AP$108)","v":0},{"$f":"$I$5*'[2]21-23 Campus Contract Alloctns'!W59/SUM('[2]21-23 Campus Contract Alloctns'!$I$5:$AP$108)","v":0},{"$f":"$I$5*'[2]21-23 Campus Contract Alloctns'!X59/SUM('[2]21-23 Campus Contract Alloctns'!$I$5:$AP$108)","v":0},{"$f":"$I$5*'[2]21-23 Campus Contract Alloctns'!Y59/SUM('[2]21-23 Campus Contract Alloctns'!$I$5:$AP$108)","v":0},{"$f":"$I$5*'[2]21-23 Campus Contract Alloctns'!Z59/SUM('[2]21-23 Campus Contract Alloctns'!$I$5:$AP$108)","v":0},{"$f":"$I$5*'[2]21-23 Campus Contract Alloctns'!AA59/SUM('[2]21-23 Campus Contract Alloctns'!$I$5:$AP$108)","v":0},{"$f":"$I$5*'[2]21-23 Campus Contract Alloctns'!AB59/SUM('[2]21-23 Campus Contract Alloctns'!$I$5:$AP$108)","v":0},{"$f":"$I$5*'[2]21-23 Campus Contract Alloctns'!AC59/SUM('[2]21-23 Campus Contract Alloctns'!$I$5:$AP$108)","v":0},{"$f":"$I$5*'[2]21-23 Campus Contract Alloctns'!AD59/SUM('[2]21-23 Campus Contract Alloctns'!$I$5:$AP$108)","v":0},{"$f":"$I$5*'[2]21-23 Campus Contract Alloctns'!AE59/SUM('[2]21-23 Campus Contract Alloctns'!$I$5:$AP$108)","v":0},{"$f":"$I$5*'[2]21-23 Campus Contract Alloctns'!AF59/SUM('[2]21-23 Campus Contract Alloctns'!$I$5:$AP$108)","v":0},{"$f":"$I$5*'[2]21-23 Campus Contract Alloctns'!AG59/SUM('[2]21-23 Campus Contract Alloctns'!$I$5:$AP$108)","v":0},{"$f":"$I$5*'[2]21-23 Campus Contract Alloctns'!AH59/SUM('[2]21-23 Campus Contract Alloctns'!$I$5:$AP$108)","v":0},{"$f":"$I$5*'[2]21-23 Campus Contract Alloctns'!AI59/SUM('[2]21-23 Campus Contract Alloctns'!$I$5:$AP$108)","v":0},{"$f":"$I$5*'[2]21-23 Campus Contract Alloctns'!AJ59/SUM('[2]21-23 Campus Contract Alloctns'!$I$5:$AP$108)","v":0},{"$f":"$I$5*'[2]21-23 Campus Contract Alloctns'!AK59/SUM('[2]21-23 Campus Contract Alloctns'!$I$5:$AP$108)","v":0},{"$f":"$I$5*'[2]21-23 Campus Contract Alloctns'!AL59/SUM('[2]21-23 Campus Contract Alloctns'!$I$5:$AP$108)","v":0},{"$f":"$I$5*'[2]21-23 Campus Contract Alloctns'!AM59/SUM('[2]21-23 Campus Contract Alloctns'!$I$5:$AP$108)","v":0},{"$f":"$I$5*'[2]21-23 Campus Contract Alloctns'!AN59/SUM('[2]21-23 Campus Contract Alloctns'!$I$5:$AP$108)","v":0},{"$f":"$I$5*'[2]21-23 Campus Contract Alloctns'!AO59/SUM('[2]21-23 Campus Contract Alloctns'!$I$5:$AP$108)","v":0},{"$f":"$I$5*'[2]21-23 Campus Contract Alloctns'!AP59/SUM('[2]21-23 Campus Contract Alloctns'!$I$5:$AP$108)","v":0}]
[null,"225 - Washington State Patrol","225","Washington State Patrol",1.0203746593582377E-2,566,1.0033728940268133E-2,2.0850834598050702E-5,1.4916681871619334E-4,{"$f":"$I$5*'[2]21-23 Campus Contract Alloctns'!I60/SUM('[2]21-23 Campus Contract Alloctns'!$I$5:$AP$108)","v":0},{"$f":"$I$5*'[2]21-23 Campus Contract Alloctns'!J60/SUM('[2]21-23 Campus Contract Alloctns'!$I$5:$AP$108)","v":0},{"$f":"$I$5*'[2]21-23 Campus Contract Alloctns'!K60/SUM('[2]21-23 Campus Contract Alloctns'!$I$5:$AP$108)","v":1.4916681871619337E-4},{"$f":"$I$5*'[2]21-23 Campus Contract Alloctns'!L60/SUM('[2]21-23 Campus Contract Alloctns'!$I$5:$AP$108)","v":0},{"$f":"$I$5*'[2]21-23 Campus Contract Alloctns'!M60/SUM('[2]21-23 Campus Contract Alloctns'!$I$5:$AP$108)","v":0},{"$f":"$I$5*'[2]21-23 Campus Contract Alloctns'!N60/SUM('[2]21-23 Campus Contract Alloctns'!$I$5:$AP$108)","v":0},{"$f":"$I$5*'[2]21-23 Campus Contract Alloctns'!O60/SUM('[2]21-23 Campus Contract Alloctns'!$I$5:$AP$108)","v":0},{"$f":"$I$5*'[2]21-23 Campus Contract Alloctns'!P60/SUM('[2]21-23 Campus Contract Alloctns'!$I$5:$AP$108)","v":0},{"$f":"$I$5*'[2]21-23 Campus Contract Alloctns'!Q60/SUM('[2]21-23 Campus Contract Alloctns'!$I$5:$AP$108)","v":0},{"$f":"$I$5*'[2]21-23 Campus Contract Alloctns'!R60/SUM('[2]21-23 Campus Contract Alloctns'!$I$5:$AP$108)","v":0},{"$f":"$I$5*'[2]21-23 Campus Contract Alloctns'!S60/SUM('[2]21-23 Campus Contract Alloctns'!$I$5:$AP$108)","v":0},{"$f":"$I$5*'[2]21-23 Campus Contract Alloctns'!T60/SUM('[2]21-23 Campus Contract Alloctns'!$I$5:$AP$108)","v":0},{"$f":"$I$5*'[2]21-23 Campus Contract Alloctns'!U60/SUM('[2]21-23 Campus Contract Alloctns'!$I$5:$AP$108)","v":0},{"$f":"$I$5*'[2]21-23 Campus Contract Alloctns'!V60/SUM('[2]21-23 Campus Contract Alloctns'!$I$5:$AP$108)","v":0},{"$f":"$I$5*'[2]21-23 Campus Contract Alloctns'!W60/SUM('[2]21-23 Campus Contract Alloctns'!$I$5:$AP$108)","v":0},{"$f":"$I$5*'[2]21-23 Campus Contract Alloctns'!X60/SUM('[2]21-23 Campus Contract Alloctns'!$I$5:$AP$108)","v":0},{"$f":"$I$5*'[2]21-23 Campus Contract Alloctns'!Y60/SUM('[2]21-23 Campus Contract Alloctns'!$I$5:$AP$108)","v":0},{"$f":"$I$5*'[2]21-23 Campus Contract Alloctns'!Z60/SUM('[2]21-23 Campus Contract Alloctns'!$I$5:$AP$108)","v":0},{"$f":"$I$5*'[2]21-23 Campus Contract Alloctns'!AA60/SUM('[2]21-23 Campus Contract Alloctns'!$I$5:$AP$108)","v":0},{"$f":"$I$5*'[2]21-23 Campus Contract Alloctns'!AB60/SUM('[2]21-23 Campus Contract Alloctns'!$I$5:$AP$108)","v":0},{"$f":"$I$5*'[2]21-23 Campus Contract Alloctns'!AC60/SUM('[2]21-23 Campus Contract Alloctns'!$I$5:$AP$108)","v":0},{"$f":"$I$5*'[2]21-23 Campus Contract Alloctns'!AD60/SUM('[2]21-23 Campus Contract Alloctns'!$I$5:$AP$108)","v":0},{"$f":"$I$5*'[2]21-23 Campus Contract Alloctns'!AE60/SUM('[2]21-23 Campus Contract Alloctns'!$I$5:$AP$108)","v":0},{"$f":"$I$5*'[2]21-23 Campus Contract Alloctns'!AF60/SUM('[2]21-23 Campus Contract Alloctns'!$I$5:$AP$108)","v":0},{"$f":"$I$5*'[2]21-23 Campus Contract Alloctns'!AG60/SUM('[2]21-23 Campus Contract Alloctns'!$I$5:$AP$108)","v":0},{"$f":"$I$5*'[2]21-23 Campus Contract Alloctns'!AH60/SUM('[2]21-23 Campus Contract Alloctns'!$I$5:$AP$108)","v":0},{"$f":"$I$5*'[2]21-23 Campus Contract Alloctns'!AI60/SUM('[2]21-23 Campus Contract Alloctns'!$I$5:$AP$108)","v":0},{"$f":"$I$5*'[2]21-23 Campus Contract Alloctns'!AJ60/SUM('[2]21-23 Campus Contract Alloctns'!$I$5:$AP$108)","v":0},{"$f":"$I$5*'[2]21-23 Campus Contract Alloctns'!AK60/SUM('[2]21-23 Campus Contract Alloctns'!$I$5:$AP$108)","v":0},{"$f":"$I$5*'[2]21-23 Campus Contract Alloctns'!AL60/SUM('[2]21-23 Campus Contract Alloctns'!$I$5:$AP$108)","v":0},{"$f":"$I$5*'[2]21-23 Campus Contract Alloctns'!AM60/SUM('[2]21-23 Campus Contract Alloctns'!$I$5:$AP$108)","v":0},{"$f":"$I$5*'[2]21-23 Campus Contract Alloctns'!AN60/SUM('[2]21-23 Campus Contract Alloctns'!$I$5:$AP$108)","v":0},{"$f":"$I$5*'[2]21-23 Campus Contract Alloctns'!AO60/SUM('[2]21-23 Campus Contract Alloctns'!$I$5:$AP$108)","v":0},{"$f":"$I$5*'[2]21-23 Campus Contract Alloctns'!AP60/SUM('[2]21-23 Campus Contract Alloctns'!$I$5:$AP$108)","v":0}]
[null,"227 - Criminal Justice Training Commission","227","Criminal Justice Training Commission",1.7727436290226384E-5,1,1.7727436290226384E-5,0,0,{"$f":"$I$5*'[2]21-23 Campus Contract Alloctns'!I61/SUM('[2]21-23 Campus Contract Alloctns'!$I$5:$AP$108)","v":0},{"$f":"$I$5*'[2]21-23 Campus Contract Alloctns'!J61/SUM('[2]21-23 Campus Contract Alloctns'!$I$5:$AP$108)","v":0},{"$f":"$I$5*'[2]21-23 Campus Contract Alloctns'!K61/SUM('[2]21-23 Campus Contract Alloctns'!$I$5:$AP$108)","v":0},{"$f":"$I$5*'[2]21-23 Campus Contract Alloctns'!L61/SUM('[2]21-23 Campus Contract Alloctns'!$I$5:$AP$108)","v":0},{"$f":"$I$5*'[2]21-23 Campus Contract Alloctns'!M61/SUM('[2]21-23 Campus Contract Alloctns'!$I$5:$AP$108)","v":0},{"$f":"$I$5*'[2]21-23 Campus Contract Alloctns'!N61/SUM('[2]21-23 Campus Contract Alloctns'!$I$5:$AP$108)","v":0},{"$f":"$I$5*'[2]21-23 Campus Contract Alloctns'!O61/SUM('[2]21-23 Campus Contract Alloctns'!$I$5:$AP$108)","v":0},{"$f":"$I$5*'[2]21-23 Campus Contract Alloctns'!P61/SUM('[2]21-23 Campus Contract Alloctns'!$I$5:$AP$108)","v":0},{"$f":"$I$5*'[2]21-23 Campus Contract Alloctns'!Q61/SUM('[2]21-23 Campus Contract Alloctns'!$I$5:$AP$108)","v":0},{"$f":"$I$5*'[2]21-23 Campus Contract Alloctns'!R61/SUM('[2]21-23 Campus Contract Alloctns'!$I$5:$AP$108)","v":0},{"$f":"$I$5*'[2]21-23 Campus Contract Alloctns'!S61/SUM('[2]21-23 Campus Contract Alloctns'!$I$5:$AP$108)","v":0},{"$f":"$I$5*'[2]21-23 Campus Contract Alloctns'!T61/SUM('[2]21-23 Campus Contract Alloctns'!$I$5:$AP$108)","v":0},{"$f":"$I$5*'[2]21-23 Campus Contract Alloctns'!U61/SUM('[2]21-23 Campus Contract Alloctns'!$I$5:$AP$108)","v":0},{"$f":"$I$5*'[2]21-23 Campus Contract Alloctns'!V61/SUM('[2]21-23 Campus Contract Alloctns'!$I$5:$AP$108)","v":0},{"$f":"$I$5*'[2]21-23 Campus Contract Alloctns'!W61/SUM('[2]21-23 Campus Contract Alloctns'!$I$5:$AP$108)","v":0},{"$f":"$I$5*'[2]21-23 Campus Contract Alloctns'!X61/SUM('[2]21-23 Campus Contract Alloctns'!$I$5:$AP$108)","v":0},{"$f":"$I$5*'[2]21-23 Campus Contract Alloctns'!Y61/SUM('[2]21-23 Campus Contract Alloctns'!$I$5:$AP$108)","v":0},{"$f":"$I$5*'[2]21-23 Campus Contract Alloctns'!Z61/SUM('[2]21-23 Campus Contract Alloctns'!$I$5:$AP$108)","v":0},{"$f":"$I$5*'[2]21-23 Campus Contract Alloctns'!AA61/SUM('[2]21-23 Campus Contract Alloctns'!$I$5:$AP$108)","v":0},{"$f":"$I$5*'[2]21-23 Campus Contract Alloctns'!AB61/SUM('[2]21-23 Campus Contract Alloctns'!$I$5:$AP$108)","v":0},{"$f":"$I$5*'[2]21-23 Campus Contract Alloctns'!AC61/SUM('[2]21-23 Campus Contract Alloctns'!$I$5:$AP$108)","v":0},{"$f":"$I$5*'[2]21-23 Campus Contract Alloctns'!AD61/SUM('[2]21-23 Campus Contract Alloctns'!$I$5:$AP$108)","v":0},{"$f":"$I$5*'[2]21-23 Campus Contract Alloctns'!AE61/SUM('[2]21-23 Campus Contract Alloctns'!$I$5:$AP$108)","v":0},{"$f":"$I$5*'[2]21-23 Campus Contract Alloctns'!AF61/SUM('[2]21-23 Campus Contract Alloctns'!$I$5:$AP$108)","v":0},{"$f":"$I$5*'[2]21-23 Campus Contract Alloctns'!AG61/SUM('[2]21-23 Campus Contract Alloctns'!$I$5:$AP$108)","v":0},{"$f":"$I$5*'[2]21-23 Campus Contract Alloctns'!AH61/SUM('[2]21-23 Campus Contract Alloctns'!$I$5:$AP$108)","v":0},{"$f":"$I$5*'[2]21-23 Campus Contract Alloctns'!AI61/SUM('[2]21-23 Campus Contract Alloctns'!$I$5:$AP$108)","v":0},{"$f":"$I$5*'[2]21-23 Campus Contract Alloctns'!AJ61/SUM('[2]21-23 Campus Contract Alloctns'!$I$5:$AP$108)","v":0},{"$f":"$I$5*'[2]21-23 Campus Contract Alloctns'!AK61/SUM('[2]21-23 Campus Contract Alloctns'!$I$5:$AP$108)","v":0},{"$f":"$I$5*'[2]21-23 Campus Contract Alloctns'!AL61/SUM('[2]21-23 Campus Contract Alloctns'!$I$5:$AP$108)","v":0},{"$f":"$I$5*'[2]21-23 Campus Contract Alloctns'!AM61/SUM('[2]21-23 Campus Contract Alloctns'!$I$5:$AP$108)","v":0},{"$f":"$I$5*'[2]21-23 Campus Contract Alloctns'!AN61/SUM('[2]21-23 Campus Contract Alloctns'!$I$5:$AP$108)","v":0},{"$f":"$I$5*'[2]21-23 Campus Contract Alloctns'!AO61/SUM('[2]21-23 Campus Contract Alloctns'!$I$5:$AP$108)","v":0},{"$f":"$I$5*'[2]21-23 Campus Contract Alloctns'!AP61/SUM('[2]21-23 Campus Contract Alloctns'!$I$5:$AP$108)","v":0}]
[null,"228 - Traffic Safety Commission","228","Traffic Safety Commission",3.7227616209475412E-4,21,3.7227616209475412E-4,0,0,{"$f":"$I$5*'[2]21-23 Campus Contract Alloctns'!I62/SUM('[2]21-23 Campus Contract Alloctns'!$I$5:$AP$108)","v":0},{"$f":"$I$5*'[2]21-23 Campus Contract Alloctns'!J62/SUM('[2]21-23 Campus Contract Alloctns'!$I$5:$AP$108)","v":0},{"$f":"$I$5*'[2]21-23 Campus Contract Alloctns'!K62/SUM('[2]21-23 Campus Contract Alloctns'!$I$5:$AP$108)","v":0},{"$f":"$I$5*'[2]21-23 Campus Contract Alloctns'!L62/SUM('[2]21-23 Campus Contract Alloctns'!$I$5:$AP$108)","v":0},{"$f":"$I$5*'[2]21-23 Campus Contract Alloctns'!M62/SUM('[2]21-23 Campus Contract Alloctns'!$I$5:$AP$108)","v":0},{"$f":"$I$5*'[2]21-23 Campus Contract Alloctns'!N62/SUM('[2]21-23 Campus Contract Alloctns'!$I$5:$AP$108)","v":0},{"$f":"$I$5*'[2]21-23 Campus Contract Alloctns'!O62/SUM('[2]21-23 Campus Contract Alloctns'!$I$5:$AP$108)","v":0},{"$f":"$I$5*'[2]21-23 Campus Contract Alloctns'!P62/SUM('[2]21-23 Campus Contract Alloctns'!$I$5:$AP$108)","v":0},{"$f":"$I$5*'[2]21-23 Campus Contract Alloctns'!Q62/SUM('[2]21-23 Campus Contract Alloctns'!$I$5:$AP$108)","v":0},{"$f":"$I$5*'[2]21-23 Campus Contract Alloctns'!R62/SUM('[2]21-23 Campus Contract Alloctns'!$I$5:$AP$108)","v":0},{"$f":"$I$5*'[2]21-23 Campus Contract Alloctns'!S62/SUM('[2]21-23 Campus Contract Alloctns'!$I$5:$AP$108)","v":0},{"$f":"$I$5*'[2]21-23 Campus Contract Alloctns'!T62/SUM('[2]21-23 Campus Contract Alloctns'!$I$5:$AP$108)","v":0},{"$f":"$I$5*'[2]21-23 Campus Contract Alloctns'!U62/SUM('[2]21-23 Campus Contract Alloctns'!$I$5:$AP$108)","v":0},{"$f":"$I$5*'[2]21-23 Campus Contract Alloctns'!V62/SUM('[2]21-23 Campus Contract Alloctns'!$I$5:$AP$108)","v":0},{"$f":"$I$5*'[2]21-23 Campus Contract Alloctns'!W62/SUM('[2]21-23 Campus Contract Alloctns'!$I$5:$AP$108)","v":0},{"$f":"$I$5*'[2]21-23 Campus Contract Alloctns'!X62/SUM('[2]21-23 Campus Contract Alloctns'!$I$5:$AP$108)","v":0},{"$f":"$I$5*'[2]21-23 Campus Contract Alloctns'!Y62/SUM('[2]21-23 Campus Contract Alloctns'!$I$5:$AP$108)","v":0},{"$f":"$I$5*'[2]21-23 Campus Contract Alloctns'!Z62/SUM('[2]21-23 Campus Contract Alloctns'!$I$5:$AP$108)","v":0},{"$f":"$I$5*'[2]21-23 Campus Contract Alloctns'!AA62/SUM('[2]21-23 Campus Contract Alloctns'!$I$5:$AP$108)","v":0},{"$f":"$I$5*'[2]21-23 Campus Contract Alloctns'!AB62/SUM('[2]21-23 Campus Contract Alloctns'!$I$5:$AP$108)","v":0},{"$f":"$I$5*'[2]21-23 Campus Contract Alloctns'!AC62/SUM('[2]21-23 Campus Contract Alloctns'!$I$5:$AP$108)","v":0},{"$f":"$I$5*'[2]21-23 Campus Contract Alloctns'!AD62/SUM('[2]21-23 Campus Contract Alloctns'!$I$5:$AP$108)","v":0},{"$f":"$I$5*'[2]21-23 Campus Contract Alloctns'!AE62/SUM('[2]21-23 Campus Contract Alloctns'!$I$5:$AP$108)","v":0},{"$f":"$I$5*'[2]21-23 Campus Contract Alloctns'!AF62/SUM('[2]21-23 Campus Contract Alloctns'!$I$5:$AP$108)","v":0},{"$f":"$I$5*'[2]21-23 Campus Contract Alloctns'!AG62/SUM('[2]21-23 Campus Contract Alloctns'!$I$5:$AP$108)","v":0},{"$f":"$I$5*'[2]21-23 Campus Contract Alloctns'!AH62/SUM('[2]21-23 Campus Contract Alloctns'!$I$5:$AP$108)","v":0},{"$f":"$I$5*'[2]21-23 Campus Contract Alloctns'!AI62/SUM('[2]21-23 Campus Contract Alloctns'!$I$5:$AP$108)","v":0},{"$f":"$I$5*'[2]21-23 Campus Contract Alloctns'!AJ62/SUM('[2]21-23 Campus Contract Alloctns'!$I$5:$AP$108)","v":0},{"$f":"$I$5*'[2]21-23 Campus Contract Alloctns'!AK62/SUM('[2]21-23 Campus Contract Alloctns'!$I$5:$AP$108)","v":0},{"$f":"$I$5*'[2]21-23 Campus Contract Alloctns'!AL62/SUM('[2]21-23 Campus Contract Alloctns'!$I$5:$AP$108)","v":0},{"$f":"$I$5*'[2]21-23 Campus Contract Alloctns'!AM62/SUM('[2]21-23 Campus Contract Alloctns'!$I$5:$AP$108)","v":0},{"$f":"$I$5*'[2]21-23 Campus Contract Alloctns'!AN62/SUM('[2]21-23 Campus Contract Alloctns'!$I$5:$AP$108)","v":0},{"$f":"$I$5*'[2]21-23 Campus Contract Alloctns'!AO62/SUM('[2]21-23 Campus Contract Alloctns'!$I$5:$AP$108)","v":0},{"$f":"$I$5*'[2]21-23 Campus Contract Alloctns'!AP62/SUM('[2]21-23 Campus Contract Alloctns'!$I$5:$AP$108)","v":0}]
[null,"235 - Department of Labor and Industries","235","Department of Labor and Industries",4.3786565358504767E-2,2195,3.8911722657046913E-2,0,4.874842701457857E-3,{"$f":"$I$5*'[2]21-23 Campus Contract Alloctns'!I63/SUM('[2]21-23 Campus Contract Alloctns'!$I$5:$AP$108)","v":0},{"$f":"$I$5*'[2]21-23 Campus Contract Alloctns'!J63/SUM('[2]21-23 Campus Contract Alloctns'!$I$5:$AP$108)","v":0},{"$f":"$I$5*'[2]21-23 Campus Contract Alloctns'!K63/SUM('[2]21-23 Campus Contract Alloctns'!$I$5:$AP$108)","v":0},{"$f":"$I$5*'[2]21-23 Campus Contract Alloctns'!L63/SUM('[2]21-23 Campus Contract Alloctns'!$I$5:$AP$108)","v":0},{"$f":"$I$5*'[2]21-23 Campus Contract Alloctns'!M63/SUM('[2]21-23 Campus Contract Alloctns'!$I$5:$AP$108)","v":0},{"$f":"$I$5*'[2]21-23 Campus Contract Alloctns'!N63/SUM('[2]21-23 Campus Contract Alloctns'!$I$5:$AP$108)","v":0},{"$f":"$I$5*'[2]21-23 Campus Contract Alloctns'!O63/SUM('[2]21-23 Campus Contract Alloctns'!$I$5:$AP$108)","v":0},{"$f":"$I$5*'[2]21-23 Campus Contract Alloctns'!P63/SUM('[2]21-23 Campus Contract Alloctns'!$I$5:$AP$108)","v":0},{"$f":"$I$5*'[2]21-23 Campus Contract Alloctns'!Q63/SUM('[2]21-23 Campus Contract Alloctns'!$I$5:$AP$108)","v":0},{"$f":"$I$5*'[2]21-23 Campus Contract Alloctns'!R63/SUM('[2]21-23 Campus Contract Alloctns'!$I$5:$AP$108)","v":0},{"$f":"$I$5*'[2]21-23 Campus Contract Alloctns'!S63/SUM('[2]21-23 Campus Contract Alloctns'!$I$5:$AP$108)","v":0},{"$f":"$I$5*'[2]21-23 Campus Contract Alloctns'!T63/SUM('[2]21-23 Campus Contract Alloctns'!$I$5:$AP$108)","v":0},{"$f":"$I$5*'[2]21-23 Campus Contract Alloctns'!U63/SUM('[2]21-23 Campus Contract Alloctns'!$I$5:$AP$108)","v":0},{"$f":"$I$5*'[2]21-23 Campus Contract Alloctns'!V63/SUM('[2]21-23 Campus Contract Alloctns'!$I$5:$AP$108)","v":0},{"$f":"$I$5*'[2]21-23 Campus Contract Alloctns'!W63/SUM('[2]21-23 Campus Contract Alloctns'!$I$5:$AP$108)","v":0},{"$f":"$I$5*'[2]21-23 Campus Contract Alloctns'!X63/SUM('[2]21-23 Campus Contract Alloctns'!$I$5:$AP$108)","v":0},{"$f":"$I$5*'[2]21-23 Campus Contract Alloctns'!Y63/SUM('[2]21-23 Campus Contract Alloctns'!$I$5:$AP$108)","v":0},{"$f":"$I$5*'[2]21-23 Campus Contract Alloctns'!Z63/SUM('[2]21-23 Campus Contract Alloctns'!$I$5:$AP$108)","v":0},{"$f":"$I$5*'[2]21-23 Campus Contract Alloctns'!AA63/SUM('[2]21-23 Campus Contract Alloctns'!$I$5:$AP$108)","v":0},{"$f":"$I$5*'[2]21-23 Campus Contract Alloctns'!AB63/SUM('[2]21-23 Campus Contract Alloctns'!$I$5:$AP$108)","v":0},{"$f":"$I$5*'[2]21-23 Campus Contract Alloctns'!AC63/SUM('[2]21-23 Campus Contract Alloctns'!$I$5:$AP$108)","v":0},{"$f":"$I$5*'[2]21-23 Campus Contract Alloctns'!AD63/SUM('[2]21-23 Campus Contract Alloctns'!$I$5:$AP$108)","v":0},{"$f":"$I$5*'[2]21-23 Campus Contract Alloctns'!AE63/SUM('[2]21-23 Campus Contract Alloctns'!$I$5:$AP$108)","v":0},{"$f":"$I$5*'[2]21-23 Campus Contract Alloctns'!AF63/SUM('[2]21-23 Campus Contract Alloctns'!$I$5:$AP$108)","v":0},{"$f":"$I$5*'[2]21-23 Campus Contract Alloctns'!AG63/SUM('[2]21-23 Campus Contract Alloctns'!$I$5:$AP$108)","v":0},{"$f":"$I$5*'[2]21-23 Campus Contract Alloctns'!AH63/SUM('[2]21-23 Campus Contract Alloctns'!$I$5:$AP$108)","v":0},{"$f":"$I$5*'[2]21-23 Campus Contract Alloctns'!AI63/SUM('[2]21-23 Campus Contract Alloctns'!$I$5:$AP$108)","v":0},{"$f":"$I$5*'[2]21-23 Campus Contract Alloctns'!AJ63/SUM('[2]21-23 Campus Contract Alloctns'!$I$5:$AP$108)","v":0},{"$f":"$I$5*'[2]21-23 Campus Contract Alloctns'!AK63/SUM('[2]21-23 Campus Contract Alloctns'!$I$5:$AP$108)","v":0},{"$f":"$I$5*'[2]21-23 Campus Contract Alloctns'!AL63/SUM('[2]21-23 Campus Contract Alloctns'!$I$5:$AP$108)","v":0},{"$f":"$I$5*'[2]21-23 Campus Contract Alloctns'!AM63/SUM('[2]21-23 Campus Contract Alloctns'!$I$5:$AP$108)","v":0},{"$f":"$I$5*'[2]21-23 Campus Contract Alloctns'!AN63/SUM('[2]21-23 Campus Contract Alloctns'!$I$5:$AP$108)","v":4.8748427014578578E-3},{"$f":"$I$5*'[2]21-23 Campus Contract Alloctns'!AO63/SUM('[2]21-23 Campus Contract Alloctns'!$I$5:$AP$108)","v":0},{"$f":"$I$5*'[2]21-23 Campus Contract Alloctns'!AP63/SUM('[2]21-23 Campus Contract Alloctns'!$I$5:$AP$108)","v":0}]
[null,"240 - Department of Licensing","240","Department of Licensing",4.7725342408083904E-2,894,1.5848328043462388E-2,4.1766226587837676E-3,2.7700391705837751E-2,{"$f":"$I$5*'[2]21-23 Campus Contract Alloctns'!I64/SUM('[2]21-23 Campus Contract Alloctns'!$I$5:$AP$108)","v":0},{"$f":"$I$5*'[2]21-23 Campus Contract Alloctns'!J64/SUM('[2]21-23 Campus Contract Alloctns'!$I$5:$AP$108)","v":0},{"$f":"$I$5*'[2]21-23 Campus Contract Alloctns'!K64/SUM('[2]21-23 Campus Contract Alloctns'!$I$5:$AP$108)","v":0},{"$f":"$I$5*'[2]21-23 Campus Contract Alloctns'!L64/SUM('[2]21-23 Campus Contract Alloctns'!$I$5:$AP$108)","v":0},{"$f":"$I$5*'[2]21-23 Campus Contract Alloctns'!M64/SUM('[2]21-23 Campus Contract Alloctns'!$I$5:$AP$108)","v":2.7700391705837754E-2},{"$f":"$I$5*'[2]21-23 Campus Contract Alloctns'!N64/SUM('[2]21-23 Campus Contract Alloctns'!$I$5:$AP$108)","v":0},{"$f":"$I$5*'[2]21-23 Campus Contract Alloctns'!O64/SUM('[2]21-23 Campus Contract Alloctns'!$I$5:$AP$108)","v":0},{"$f":"$I$5*'[2]21-23 Campus Contract Alloctns'!P64/SUM('[2]21-23 Campus Contract Alloctns'!$I$5:$AP$108)","v":0},{"$f":"$I$5*'[2]21-23 Campus Contract Alloctns'!Q64/SUM('[2]21-23 Campus Contract Alloctns'!$I$5:$AP$108)","v":0},{"$f":"$I$5*'[2]21-23 Campus Contract Alloctns'!R64/SUM('[2]21-23 Campus Contract Alloctns'!$I$5:$AP$108)","v":0},{"$f":"$I$5*'[2]21-23 Campus Contract Alloctns'!S64/SUM('[2]21-23 Campus Contract Alloctns'!$I$5:$AP$108)","v":0},{"$f":"$I$5*'[2]21-23 Campus Contract Alloctns'!T64/SUM('[2]21-23 Campus Contract Alloctns'!$I$5:$AP$108)","v":0},{"$f":"$I$5*'[2]21-23 Campus Contract Alloctns'!U64/SUM('[2]21-23 Campus Contract Alloctns'!$I$5:$AP$108)","v":0},{"$f":"$I$5*'[2]21-23 Campus Contract Alloctns'!V64/SUM('[2]21-23 Campus Contract Alloctns'!$I$5:$AP$108)","v":0},{"$f":"$I$5*'[2]21-23 Campus Contract Alloctns'!W64/SUM('[2]21-23 Campus Contract Alloctns'!$I$5:$AP$108)","v":0},{"$f":"$I$5*'[2]21-23 Campus Contract Alloctns'!X64/SUM('[2]21-23 Campus Contract Alloctns'!$I$5:$AP$108)","v":0},{"$f":"$I$5*'[2]21-23 Campus Contract Alloctns'!Y64/SUM('[2]21-23 Campus Contract Alloctns'!$I$5:$AP$108)","v":0},{"$f":"$I$5*'[2]21-23 Campus Contract Alloctns'!Z64/SUM('[2]21-23 Campus Contract Alloctns'!$I$5:$AP$108)","v":0},{"$f":"$I$5*'[2]21-23 Campus Contract Alloctns'!AA64/SUM('[2]21-23 Campus Contract Alloctns'!$I$5:$AP$108)","v":0},{"$f":"$I$5*'[2]21-23 Campus Contract Alloctns'!AB64/SUM('[2]21-23 Campus Contract Alloctns'!$I$5:$AP$108)","v":0},{"$f":"$I$5*'[2]21-23 Campus Contract Alloctns'!AC64/SUM('[2]21-23 Campus Contract Alloctns'!$I$5:$AP$108)","v":0},{"$f":"$I$5*'[2]21-23 Campus Contract Alloctns'!AD64/SUM('[2]21-23 Campus Contract Alloctns'!$I$5:$AP$108)","v":0},{"$f":"$I$5*'[2]21-23 Campus Contract Alloctns'!AE64/SUM('[2]21-23 Campus Contract Alloctns'!$I$5:$AP$108)","v":0},{"$f":"$I$5*'[2]21-23 Campus Contract Alloctns'!AF64/SUM('[2]21-23 Campus Contract Alloctns'!$I$5:$AP$108)","v":0},{"$f":"$I$5*'[2]21-23 Campus Contract Alloctns'!AG64/SUM('[2]21-23 Campus Contract Alloctns'!$I$5:$AP$108)","v":0},{"$f":"$I$5*'[2]21-23 Campus Contract Alloctns'!AH64/SUM('[2]21-23 Campus Contract Alloctns'!$I$5:$AP$108)","v":0},{"$f":"$I$5*'[2]21-23 Campus Contract Alloctns'!AI64/SUM('[2]21-23 Campus Contract Alloctns'!$I$5:$AP$108)","v":0},{"$f":"$I$5*'[2]21-23 Campus Contract Alloctns'!AJ64/SUM('[2]21-23 Campus Contract Alloctns'!$I$5:$AP$108)","v":0},{"$f":"$I$5*'[2]21-23 Campus Contract Alloctns'!AK64/SUM('[2]21-23 Campus Contract Alloctns'!$I$5:$AP$108)","v":0},{"$f":"$I$5*'[2]21-23 Campus Contract Alloctns'!AL64/SUM('[2]21-23 Campus Contract Alloctns'!$I$5:$AP$108)","v":0},{"$f":"$I$5*'[2]21-23 Campus Contract Alloctns'!AM64/SUM('[2]21-23 Campus Contract Alloctns'!$I$5:$AP$108)","v":0},{"$f":"$I$5*'[2]21-23 Campus Contract Alloctns'!AN64/SUM('[2]21-23 Campus Contract Alloctns'!$I$5:$AP$108)","v":0},{"$f":"$I$5*'[2]21-23 Campus Contract Alloctns'!AO64/SUM('[2]21-23 Campus Contract Alloctns'!$I$5:$AP$108)","v":0},{"$f":"$I$5*'[2]21-23 Campus Contract Alloctns'!AP64/SUM('[2]21-23 Campus Contract Alloctns'!$I$5:$AP$108)","v":0}]
[null,"245 - Military Department","245","Military Department",0,0,0,0,0,{"$f":"$I$5*'[2]21-23 Campus Contract Alloctns'!I65/SUM('[2]21-23 Campus Contract Alloctns'!$I$5:$AP$108)","v":0},{"$f":"$I$5*'[2]21-23 Campus Contract Alloctns'!J65/SUM('[2]21-23 Campus Contract Alloctns'!$I$5:$AP$108)","v":0},{"$f":"$I$5*'[2]21-23 Campus Contract Alloctns'!K65/SUM('[2]21-23 Campus Contract Alloctns'!$I$5:$AP$108)","v":0},{"$f":"$I$5*'[2]21-23 Campus Contract Alloctns'!L65/SUM('[2]21-23 Campus Contract Alloctns'!$I$5:$AP$108)","v":0},{"$f":"$I$5*'[2]21-23 Campus Contract Alloctns'!M65/SUM('[2]21-23 Campus Contract Alloctns'!$I$5:$AP$108)","v":0},{"$f":"$I$5*'[2]21-23 Campus Contract Alloctns'!N65/SUM('[2]21-23 Campus Contract Alloctns'!$I$5:$AP$108)","v":0},{"$f":"$I$5*'[2]21-23 Campus Contract Alloctns'!O65/SUM('[2]21-23 Campus Contract Alloctns'!$I$5:$AP$108)","v":0},{"$f":"$I$5*'[2]21-23 Campus Contract Alloctns'!P65/SUM('[2]21-23 Campus Contract Alloctns'!$I$5:$AP$108)","v":0},{"$f":"$I$5*'[2]21-23 Campus Contract Alloctns'!Q65/SUM('[2]21-23 Campus Contract Alloctns'!$I$5:$AP$108)","v":0},{"$f":"$I$5*'[2]21-23 Campus Contract Alloctns'!R65/SUM('[2]21-23 Campus Contract Alloctns'!$I$5:$AP$108)","v":0},{"$f":"$I$5*'[2]21-23 Campus Contract Alloctns'!S65/SUM('[2]21-23 Campus Contract Alloctns'!$I$5:$AP$108)","v":0},{"$f":"$I$5*'[2]21-23 Campus Contract Alloctns'!T65/SUM('[2]21-23 Campus Contract Alloctns'!$I$5:$AP$108)","v":0},{"$f":"$I$5*'[2]21-23 Campus Contract Alloctns'!U65/SUM('[2]21-23 Campus Contract Alloctns'!$I$5:$AP$108)","v":0},{"$f":"$I$5*'[2]21-23 Campus Contract Alloctns'!V65/SUM('[2]21-23 Campus Contract Alloctns'!$I$5:$AP$108)","v":0},{"$f":"$I$5*'[2]21-23 Campus Contract Alloctns'!W65/SUM('[2]21-23 Campus Contract Alloctns'!$I$5:$AP$108)","v":0},{"$f":"$I$5*'[2]21-23 Campus Contract Alloctns'!X65/SUM('[2]21-23 Campus Contract Alloctns'!$I$5:$AP$108)","v":0},{"$f":"$I$5*'[2]21-23 Campus Contract Alloctns'!Y65/SUM('[2]21-23 Campus Contract Alloctns'!$I$5:$AP$108)","v":0},{"$f":"$I$5*'[2]21-23 Campus Contract Alloctns'!Z65/SUM('[2]21-23 Campus Contract Alloctns'!$I$5:$AP$108)","v":0},{"$f":"$I$5*'[2]21-23 Campus Contract Alloctns'!AA65/SUM('[2]21-23 Campus Contract Alloctns'!$I$5:$AP$108)","v":0},{"$f":"$I$5*'[2]21-23 Campus Contract Alloctns'!AB65/SUM('[2]21-23 Campus Contract Alloctns'!$I$5:$AP$108)","v":0},{"$f":"$I$5*'[2]21-23 Campus Contract Alloctns'!AC65/SUM('[2]21-23 Campus Contract Alloctns'!$I$5:$AP$108)","v":0},{"$f":"$I$5*'[2]21-23 Campus Contract Alloctns'!AD65/SUM('[2]21-23 Campus Contract Alloctns'!$I$5:$AP$108)","v":0},{"$f":"$I$5*'[2]21-23 Campus Contract Alloctns'!AE65/SUM('[2]21-23 Campus Contract Alloctns'!$I$5:$AP$108)","v":0},{"$f":"$I$5*'[2]21-23 Campus Contract Alloctns'!AF65/SUM('[2]21-23 Campus Contract Alloctns'!$I$5:$AP$108)","v":0},{"$f":"$I$5*'[2]21-23 Campus Contract Alloctns'!AG65/SUM('[2]21-23 Campus Contract Alloctns'!$I$5:$AP$108)","v":0},{"$f":"$I$5*'[2]21-23 Campus Contract Alloctns'!AH65/SUM('[2]21-23 Campus Contract Alloctns'!$I$5:$AP$108)","v":0},{"$f":"$I$5*'[2]21-23 Campus Contract Alloctns'!AI65/SUM('[2]21-23 Campus Contract Alloctns'!$I$5:$AP$108)","v":0},{"$f":"$I$5*'[2]21-23 Campus Contract Alloctns'!AJ65/SUM('[2]21-23 Campus Contract Alloctns'!$I$5:$AP$108)","v":0},{"$f":"$I$5*'[2]21-23 Campus Contract Alloctns'!AK65/SUM('[2]21-23 Campus Contract Alloctns'!$I$5:$AP$108)","v":0},{"$f":"$I$5*'[2]21-23 Campus Contract Alloctns'!AL65/SUM('[2]21-23 Campus Contract Alloctns'!$I$5:$AP$108)","v":0},{"$f":"$I$5*'[2]21-23 Campus Contract Alloctns'!AM65/SUM('[2]21-23 Campus Contract Alloctns'!$I$5:$AP$108)","v":0},{"$f":"$I$5*'[2]21-23 Campus Contract Alloctns'!AN65/SUM('[2]21-23 Campus Contract Alloctns'!$I$5:$AP$108)","v":0},{"$f":"$I$5*'[2]21-23 Campus Contract Alloctns'!AO65/SUM('[2]21-23 Campus Contract Alloctns'!$I$5:$AP$108)","v":0},{"$f":"$I$5*'[2]21-23 Campus Contract Alloctns'!AP65/SUM('[2]21-23 Campus Contract Alloctns'!$I$5:$AP$108)","v":0}]
[null,"275 - Public Employment Relations Commission","275","Public Employment Relations Commission",3.7227616209475412E-4,21,3.7227616209475412E-4,0,0,{"$f":"$I$5*'[2]21-23 Campus Contract Alloctns'!I66/SUM('[2]21-23 Campus Contract Alloctns'!$I$5:$AP$108)","v":0},{"$f":"$I$5*'[2]21-23 Campus Contract Alloctns'!J66/SUM('[2]21-23 Campus Contract Alloctns'!$I$5:$AP$108)","v":0},{"$f":"$I$5*'[2]21-23 Campus Contract Alloctns'!K66/SUM('[2]21-23 Campus Contract Alloctns'!$I$5:$AP$108)","v":0},{"$f":"$I$5*'[2]21-23 Campus Contract Alloctns'!L66/SUM('[2]21-23 Campus Contract Alloctns'!$I$5:$AP$108)","v":0},{"$f":"$I$5*'[2]21-23 Campus Contract Alloctns'!M66/SUM('[2]21-23 Campus Contract Alloctns'!$I$5:$AP$108)","v":0},{"$f":"$I$5*'[2]21-23 Campus Contract Alloctns'!N66/SUM('[2]21-23 Campus Contract Alloctns'!$I$5:$AP$108)","v":0},{"$f":"$I$5*'[2]21-23 Campus Contract Alloctns'!O66/SUM('[2]21-23 Campus Contract Alloctns'!$I$5:$AP$108)","v":0},{"$f":"$I$5*'[2]21-23 Campus Contract Alloctns'!P66/SUM('[2]21-23 Campus Contract Alloctns'!$I$5:$AP$108)","v":0},{"$f":"$I$5*'[2]21-23 Campus Contract Alloctns'!Q66/SUM('[2]21-23 Campus Contract Alloctns'!$I$5:$AP$108)","v":0},{"$f":"$I$5*'[2]21-23 Campus Contract Alloctns'!R66/SUM('[2]21-23 Campus Contract Alloctns'!$I$5:$AP$108)","v":0},{"$f":"$I$5*'[2]21-23 Campus Contract Alloctns'!S66/SUM('[2]21-23 Campus Contract Alloctns'!$I$5:$AP$108)","v":0},{"$f":"$I$5*'[2]21-23 Campus Contract Alloctns'!T66/SUM('[2]21-23 Campus Contract Alloctns'!$I$5:$AP$108)","v":0},{"$f":"$I$5*'[2]21-23 Campus Contract Alloctns'!U66/SUM('[2]21-23 Campus Contract Alloctns'!$I$5:$AP$108)","v":0},{"$f":"$I$5*'[2]21-23 Campus Contract Alloctns'!V66/SUM('[2]21-23 Campus Contract Alloctns'!$I$5:$AP$108)","v":0},{"$f":"$I$5*'[2]21-23 Campus Contract Alloctns'!W66/SUM('[2]21-23 Campus Contract Alloctns'!$I$5:$AP$108)","v":0},{"$f":"$I$5*'[2]21-23 Campus Contract Alloctns'!X66/SUM('[2]21-23 Campus Contract Alloctns'!$I$5:$AP$108)","v":0},{"$f":"$I$5*'[2]21-23 Campus Contract Alloctns'!Y66/SUM('[2]21-23 Campus Contract Alloctns'!$I$5:$AP$108)","v":0},{"$f":"$I$5*'[2]21-23 Campus Contract Alloctns'!Z66/SUM('[2]21-23 Campus Contract Alloctns'!$I$5:$AP$108)","v":0},{"$f":"$I$5*'[2]21-23 Campus Contract Alloctns'!AA66/SUM('[2]21-23 Campus Contract Alloctns'!$I$5:$AP$108)","v":0},{"$f":"$I$5*'[2]21-23 Campus Contract Alloctns'!AB66/SUM('[2]21-23 Campus Contract Alloctns'!$I$5:$AP$108)","v":0},{"$f":"$I$5*'[2]21-23 Campus Contract Alloctns'!AC66/SUM('[2]21-23 Campus Contract Alloctns'!$I$5:$AP$108)","v":0},{"$f":"$I$5*'[2]21-23 Campus Contract Alloctns'!AD66/SUM('[2]21-23 Campus Contract Alloctns'!$I$5:$AP$108)","v":0},{"$f":"$I$5*'[2]21-23 Campus Contract Alloctns'!AE66/SUM('[2]21-23 Campus Contract Alloctns'!$I$5:$AP$108)","v":0},{"$f":"$I$5*'[2]21-23 Campus Contract Alloctns'!AF66/SUM('[2]21-23 Campus Contract Alloctns'!$I$5:$AP$108)","v":0},{"$f":"$I$5*'[2]21-23 Campus Contract Alloctns'!AG66/SUM('[2]21-23 Campus Contract Alloctns'!$I$5:$AP$108)","v":0},{"$f":"$I$5*'[2]21-23 Campus Contract Alloctns'!AH66/SUM('[2]21-23 Campus Contract Alloctns'!$I$5:$AP$108)","v":0},{"$f":"$I$5*'[2]21-23 Campus Contract Alloctns'!AI66/SUM('[2]21-23 Campus Contract Alloctns'!$I$5:$AP$108)","v":0},{"$f":"$I$5*'[2]21-23 Campus Contract Alloctns'!AJ66/SUM('[2]21-23 Campus Contract Alloctns'!$I$5:$AP$108)","v":0},{"$f":"$I$5*'[2]21-23 Campus Contract Alloctns'!AK66/SUM('[2]21-23 Campus Contract Alloctns'!$I$5:$AP$108)","v":0},{"$f":"$I$5*'[2]21-23 Campus Contract Alloctns'!AL66/SUM('[2]21-23 Campus Contract Alloctns'!$I$5:$AP$108)","v":0},{"$f":"$I$5*'[2]21-23 Campus Contract Alloctns'!AM66/SUM('[2]21-23 Campus Contract Alloctns'!$I$5:$AP$108)","v":0},{"$f":"$I$5*'[2]21-23 Campus Contract Alloctns'!AN66/SUM('[2]21-23 Campus Contract Alloctns'!$I$5:$AP$108)","v":0},{"$f":"$I$5*'[2]21-23 Campus Contract Alloctns'!AO66/SUM('[2]21-23 Campus Contract Alloctns'!$I$5:$AP$108)","v":0},{"$f":"$I$5*'[2]21-23 Campus Contract Alloctns'!AP66/SUM('[2]21-23 Campus Contract Alloctns'!$I$5:$AP$108)","v":0}]
[null,"300 - Department of Social and Health Services","300","Department of Social and Health Services",0.10854327135665358,2666,4.7261345149743547E-2,6.4674076214503761E-3,5.4814518585459653E-2,{"$f":"$I$5*'[2]21-23 Campus Contract Alloctns'!I67/SUM('[2]21-23 Campus Contract Alloctns'!$I$5:$AP$108)","v":0},{"$f":"$I$5*'[2]21-23 Campus Contract Alloctns'!J67/SUM('[2]21-23 Campus Contract Alloctns'!$I$5:$AP$108)","v":0},{"$f":"$I$5*'[2]21-23 Campus Contract Alloctns'!K67/SUM('[2]21-23 Campus Contract Alloctns'!$I$5:$AP$108)","v":0},{"$f":"$I$5*'[2]21-23 Campus Contract Alloctns'!L67/SUM('[2]21-23 Campus Contract Alloctns'!$I$5:$AP$108)","v":0},{"$f":"$I$5*'[2]21-23 Campus Contract Alloctns'!M67/SUM('[2]21-23 Campus Contract Alloctns'!$I$5:$AP$108)","v":0},{"$f":"$I$5*'[2]21-23 Campus Contract Alloctns'!N67/SUM('[2]21-23 Campus Contract Alloctns'!$I$5:$AP$108)","v":5.1448771193933332E-2},{"$f":"$I$5*'[2]21-23 Campus Contract Alloctns'!O67/SUM('[2]21-23 Campus Contract Alloctns'!$I$5:$AP$108)","v":0},{"$f":"$I$5*'[2]21-23 Campus Contract Alloctns'!P67/SUM('[2]21-23 Campus Contract Alloctns'!$I$5:$AP$108)","v":0},{"$f":"$I$5*'[2]21-23 Campus Contract Alloctns'!Q67/SUM('[2]21-23 Campus Contract Alloctns'!$I$5:$AP$108)","v":0},{"$f":"$I$5*'[2]21-23 Campus Contract Alloctns'!R67/SUM('[2]21-23 Campus Contract Alloctns'!$I$5:$AP$108)","v":0},{"$f":"$I$5*'[2]21-23 Campus Contract Alloctns'!S67/SUM('[2]21-23 Campus Contract Alloctns'!$I$5:$AP$108)","v":0},{"$f":"$I$5*'[2]21-23 Campus Contract Alloctns'!T67/SUM('[2]21-23 Campus Contract Alloctns'!$I$5:$AP$108)","v":0},{"$f":"$I$5*'[2]21-23 Campus Contract Alloctns'!U67/SUM('[2]21-23 Campus Contract Alloctns'!$I$5:$AP$108)","v":0},{"$f":"$I$5*'[2]21-23 Campus Contract Alloctns'!V67/SUM('[2]21-23 Campus Contract Alloctns'!$I$5:$AP$108)","v":0},{"$f":"$I$5*'[2]21-23 Campus Contract Alloctns'!W67/SUM('[2]21-23 Campus Contract Alloctns'!$I$5:$AP$108)","v":0},{"$f":"$I$5*'[2]21-23 Campus Contract Alloctns'!X67/SUM('[2]21-23 Campus Contract Alloctns'!$I$5:$AP$108)","v":0},{"$f":"$I$5*'[2]21-23 Campus Contract Alloctns'!Y67/SUM('[2]21-23 Campus Contract Alloctns'!$I$5:$AP$108)","v":0},{"$f":"$I$5*'[2]21-23 Campus Contract Alloctns'!Z67/SUM('[2]21-23 Campus Contract Alloctns'!$I$5:$AP$108)","v":0},{"$f":"$I$5*'[2]21-23 Campus Contract Alloctns'!AA67/SUM('[2]21-23 Campus Contract Alloctns'!$I$5:$AP$108)","v":0},{"$f":"$I$5*'[2]21-23 Campus Contract Alloctns'!AB67/SUM('[2]21-23 Campus Contract Alloctns'!$I$5:$AP$108)","v":0},{"$f":"$I$5*'[2]21-23 Campus Contract Alloctns'!AC67/SUM('[2]21-23 Campus Contract Alloctns'!$I$5:$AP$108)","v":0},{"$f":"$I$5*'[2]21-23 Campus Contract Alloctns'!AD67/SUM('[2]21-23 Campus Contract Alloctns'!$I$5:$AP$108)","v":0},{"$f":"$I$5*'[2]21-23 Campus Contract Alloctns'!AE67/SUM('[2]21-23 Campus Contract Alloctns'!$I$5:$AP$108)","v":0},{"$f":"$I$5*'[2]21-23 Campus Contract Alloctns'!AF67/SUM('[2]21-23 Campus Contract Alloctns'!$I$5:$AP$108)","v":0},{"$f":"$I$5*'[2]21-23 Campus Contract Alloctns'!AG67/SUM('[2]21-23 Campus Contract Alloctns'!$I$5:$AP$108)","v":0},{"$f":"$I$5*'[2]21-23 Campus Contract Alloctns'!AH67/SUM('[2]21-23 Campus Contract Alloctns'!$I$5:$AP$108)","v":0},{"$f":"$I$5*'[2]21-23 Campus Contract Alloctns'!AI67/SUM('[2]21-23 Campus Contract Alloctns'!$I$5:$AP$108)","v":0},{"$f":"$I$5*'[2]21-23 Campus Contract Alloctns'!AJ67/SUM('[2]21-23 Campus Contract Alloctns'!$I$5:$AP$108)","v":0},{"$f":"$I$5*'[2]21-23 Campus Contract Alloctns'!AK67/SUM('[2]21-23 Campus Contract Alloctns'!$I$5:$AP$108)","v":0},{"$f":"$I$5*'[2]21-23 Campus Contract Alloctns'!AL67/SUM('[2]21-23 Campus Contract Alloctns'!$I$5:$AP$108)","v":3.3657473915263253E-3},{"$f":"$I$5*'[2]21-23 Campus Contract Alloctns'!AM67/SUM('[2]21-23 Campus Contract Alloctns'!$I$5:$AP$108)","v":0},{"$f":"$I$5*'[2]21-23 Campus Contract Alloctns'!AN67/SUM('[2]21-23 Campus Contract Alloctns'!$I$5:$AP$108)","v":0},{"$f":"$I$5*'[2]21-23 Campus Contract Alloctns'!AO67/SUM('[2]21-23 Campus Contract Alloctns'!$I$5:$AP$108)","v":0},{"$f":"$I$5*'[2]21-23 Campus Contract Alloctns'!AP67/SUM('[2]21-23 Campus Contract Alloctns'!$I$5:$AP$108)","v":0}]
[null,"303 - Department of Health","303","Department of Health",2.7973894465977235E-2,1578,2.7973894465977235E-2,0,0,{"$f":"$I$5*'[2]21-23 Campus Contract Alloctns'!I68/SUM('[2]21-23 Campus Contract Alloctns'!$I$5:$AP$108)","v":0},{"$f":"$I$5*'[2]21-23 Campus Contract Alloctns'!J68/SUM('[2]21-23 Campus Contract Alloctns'!$I$5:$AP$108)","v":0},{"$f":"$I$5*'[2]21-23 Campus Contract Alloctns'!K68/SUM('[2]21-23 Campus Contract Alloctns'!$I$5:$AP$108)","v":0},{"$f":"$I$5*'[2]21-23 Campus Contract Alloctns'!L68/SUM('[2]21-23 Campus Contract Alloctns'!$I$5:$AP$108)","v":0},{"$f":"$I$5*'[2]21-23 Campus Contract Alloctns'!M68/SUM('[2]21-23 Campus Contract Alloctns'!$I$5:$AP$108)","v":0},{"$f":"$I$5*'[2]21-23 Campus Contract Alloctns'!N68/SUM('[2]21-23 Campus Contract Alloctns'!$I$5:$AP$108)","v":0},{"$f":"$I$5*'[2]21-23 Campus Contract Alloctns'!O68/SUM('[2]21-23 Campus Contract Alloctns'!$I$5:$AP$108)","v":0},{"$f":"$I$5*'[2]21-23 Campus Contract Alloctns'!P68/SUM('[2]21-23 Campus Contract Alloctns'!$I$5:$AP$108)","v":0},{"$f":"$I$5*'[2]21-23 Campus Contract Alloctns'!Q68/SUM('[2]21-23 Campus Contract Alloctns'!$I$5:$AP$108)","v":0},{"$f":"$I$5*'[2]21-23 Campus Contract Alloctns'!R68/SUM('[2]21-23 Campus Contract Alloctns'!$I$5:$AP$108)","v":0},{"$f":"$I$5*'[2]21-23 Campus Contract Alloctns'!S68/SUM('[2]21-23 Campus Contract Alloctns'!$I$5:$AP$108)","v":0},{"$f":"$I$5*'[2]21-23 Campus Contract Alloctns'!T68/SUM('[2]21-23 Campus Contract Alloctns'!$I$5:$AP$108)","v":0},{"$f":"$I$5*'[2]21-23 Campus Contract Alloctns'!U68/SUM('[2]21-23 Campus Contract Alloctns'!$I$5:$AP$108)","v":0},{"$f":"$I$5*'[2]21-23 Campus Contract Alloctns'!V68/SUM('[2]21-23 Campus Contract Alloctns'!$I$5:$AP$108)","v":0},{"$f":"$I$5*'[2]21-23 Campus Contract Alloctns'!W68/SUM('[2]21-23 Campus Contract Alloctns'!$I$5:$AP$108)","v":0},{"$f":"$I$5*'[2]21-23 Campus Contract Alloctns'!X68/SUM('[2]21-23 Campus Contract Alloctns'!$I$5:$AP$108)","v":0},{"$f":"$I$5*'[2]21-23 Campus Contract Alloctns'!Y68/SUM('[2]21-23 Campus Contract Alloctns'!$I$5:$AP$108)","v":0},{"$f":"$I$5*'[2]21-23 Campus Contract Alloctns'!Z68/SUM('[2]21-23 Campus Contract Alloctns'!$I$5:$AP$108)","v":0},{"$f":"$I$5*'[2]21-23 Campus Contract Alloctns'!AA68/SUM('[2]21-23 Campus Contract Alloctns'!$I$5:$AP$108)","v":0},{"$f":"$I$5*'[2]21-23 Campus Contract Alloctns'!AB68/SUM('[2]21-23 Campus Contract Alloctns'!$I$5:$AP$108)","v":0},{"$f":"$I$5*'[2]21-23 Campus Contract Alloctns'!AC68/SUM('[2]21-23 Campus Contract Alloctns'!$I$5:$AP$108)","v":0},{"$f":"$I$5*'[2]21-23 Campus Contract Alloctns'!AD68/SUM('[2]21-23 Campus Contract Alloctns'!$I$5:$AP$108)","v":0},{"$f":"$I$5*'[2]21-23 Campus Contract Alloctns'!AE68/SUM('[2]21-23 Campus Contract Alloctns'!$I$5:$AP$108)","v":0},{"$f":"$I$5*'[2]21-23 Campus Contract Alloctns'!AF68/SUM('[2]21-23 Campus Contract Alloctns'!$I$5:$AP$108)","v":0},{"$f":"$I$5*'[2]21-23 Campus Contract Alloctns'!AG68/SUM('[2]21-23 Campus Contract Alloctns'!$I$5:$AP$108)","v":0},{"$f":"$I$5*'[2]21-23 Campus Contract Alloctns'!AH68/SUM('[2]21-23 Campus Contract Alloctns'!$I$5:$AP$108)","v":0},{"$f":"$I$5*'[2]21-23 Campus Contract Alloctns'!AI68/SUM('[2]21-23 Campus Contract Alloctns'!$I$5:$AP$108)","v":0},{"$f":"$I$5*'[2]21-23 Campus Contract Alloctns'!AJ68/SUM('[2]21-23 Campus Contract Alloctns'!$I$5:$AP$108)","v":0},{"$f":"$I$5*'[2]21-23 Campus Contract Alloctns'!AK68/SUM('[2]21-23 Campus Contract Alloctns'!$I$5:$AP$108)","v":0},{"$f":"$I$5*'[2]21-23 Campus Contract Alloctns'!AL68/SUM('[2]21-23 Campus Contract Alloctns'!$I$5:$AP$108)","v":0},{"$f":"$I$5*'[2]21-23 Campus Contract Alloctns'!AM68/SUM('[2]21-23 Campus Contract Alloctns'!$I$5:$AP$108)","v":0},{"$f":"$I$5*'[2]21-23 Campus Contract Alloctns'!AN68/SUM('[2]21-23 Campus Contract Alloctns'!$I$5:$AP$108)","v":0},{"$f":"$I$5*'[2]21-23 Campus Contract Alloctns'!AO68/SUM('[2]21-23 Campus Contract Alloctns'!$I$5:$AP$108)","v":0},{"$f":"$I$5*'[2]21-23 Campus Contract Alloctns'!AP68/SUM('[2]21-23 Campus Contract Alloctns'!$I$5:$AP$108)","v":0}]
[null,"305 - Department of Veterans Affairs","305","Department of Veterans Affairs",1.4536497757985636E-3,82,1.4536497757985636E-3,0,0,{"$f":"$I$5*'[2]21-23 Campus Contract Alloctns'!I69/SUM('[2]21-23 Campus Contract Alloctns'!$I$5:$AP$108)","v":0},{"$f":"$I$5*'[2]21-23 Campus Contract Alloctns'!J69/SUM('[2]21-23 Campus Contract Alloctns'!$I$5:$AP$108)","v":0},{"$f":"$I$5*'[2]21-23 Campus Contract Alloctns'!K69/SUM('[2]21-23 Campus Contract Alloctns'!$I$5:$AP$108)","v":0},{"$f":"$I$5*'[2]21-23 Campus Contract Alloctns'!L69/SUM('[2]21-23 Campus Contract Alloctns'!$I$5:$AP$108)","v":0},{"$f":"$I$5*'[2]21-23 Campus Contract Alloctns'!M69/SUM('[2]21-23 Campus Contract Alloctns'!$I$5:$AP$108)","v":0},{"$f":"$I$5*'[2]21-23 Campus Contract Alloctns'!N69/SUM('[2]21-23 Campus Contract Alloctns'!$I$5:$AP$108)","v":0},{"$f":"$I$5*'[2]21-23 Campus Contract Alloctns'!O69/SUM('[2]21-23 Campus Contract Alloctns'!$I$5:$AP$108)","v":0},{"$f":"$I$5*'[2]21-23 Campus Contract Alloctns'!P69/SUM('[2]21-23 Campus Contract Alloctns'!$I$5:$AP$108)","v":0},{"$f":"$I$5*'[2]21-23 Campus Contract Alloctns'!Q69/SUM('[2]21-23 Campus Contract Alloctns'!$I$5:$AP$108)","v":0},{"$f":"$I$5*'[2]21-23 Campus Contract Alloctns'!R69/SUM('[2]21-23 Campus Contract Alloctns'!$I$5:$AP$108)","v":0},{"$f":"$I$5*'[2]21-23 Campus Contract Alloctns'!S69/SUM('[2]21-23 Campus Contract Alloctns'!$I$5:$AP$108)","v":0},{"$f":"$I$5*'[2]21-23 Campus Contract Alloctns'!T69/SUM('[2]21-23 Campus Contract Alloctns'!$I$5:$AP$108)","v":0},{"$f":"$I$5*'[2]21-23 Campus Contract Alloctns'!U69/SUM('[2]21-23 Campus Contract Alloctns'!$I$5:$AP$108)","v":0},{"$f":"$I$5*'[2]21-23 Campus Contract Alloctns'!V69/SUM('[2]21-23 Campus Contract Alloctns'!$I$5:$AP$108)","v":0},{"$f":"$I$5*'[2]21-23 Campus Contract Alloctns'!W69/SUM('[2]21-23 Campus Contract Alloctns'!$I$5:$AP$108)","v":0},{"$f":"$I$5*'[2]21-23 Campus Contract Alloctns'!X69/SUM('[2]21-23 Campus Contract Alloctns'!$I$5:$AP$108)","v":0},{"$f":"$I$5*'[2]21-23 Campus Contract Alloctns'!Y69/SUM('[2]21-23 Campus Contract Alloctns'!$I$5:$AP$108)","v":0},{"$f":"$I$5*'[2]21-23 Campus Contract Alloctns'!Z69/SUM('[2]21-23 Campus Contract Alloctns'!$I$5:$AP$108)","v":0},{"$f":"$I$5*'[2]21-23 Campus Contract Alloctns'!AA69/SUM('[2]21-23 Campus Contract Alloctns'!$I$5:$AP$108)","v":0},{"$f":"$I$5*'[2]21-23 Campus Contract Alloctns'!AB69/SUM('[2]21-23 Campus Contract Alloctns'!$I$5:$AP$108)","v":0},{"$f":"$I$5*'[2]21-23 Campus Contract Alloctns'!AC69/SUM('[2]21-23 Campus Contract Alloctns'!$I$5:$AP$108)","v":0},{"$f":"$I$5*'[2]21-23 Campus Contract Alloctns'!AD69/SUM('[2]21-23 Campus Contract Alloctns'!$I$5:$AP$108)","v":0},{"$f":"$I$5*'[2]21-23 Campus Contract Alloctns'!AE69/SUM('[2]21-23 Campus Contract Alloctns'!$I$5:$AP$108)","v":0},{"$f":"$I$5*'[2]21-23 Campus Contract Alloctns'!AF69/SUM('[2]21-23 Campus Contract Alloctns'!$I$5:$AP$108)","v":0},{"$f":"$I$5*'[2]21-23 Campus Contract Alloctns'!AG69/SUM('[2]21-23 Campus Contract Alloctns'!$I$5:$AP$108)","v":0},{"$f":"$I$5*'[2]21-23 Campus Contract Alloctns'!AH69/SUM('[2]21-23 Campus Contract Alloctns'!$I$5:$AP$108)","v":0},{"$f":"$I$5*'[2]21-23 Campus Contract Alloctns'!AI69/SUM('[2]21-23 Campus Contract Alloctns'!$I$5:$AP$108)","v":0},{"$f":"$I$5*'[2]21-23 Campus Contract Alloctns'!AJ69/SUM('[2]21-23 Campus Contract Alloctns'!$I$5:$AP$108)","v":0},{"$f":"$I$5*'[2]21-23 Campus Contract Alloctns'!AK69/SUM('[2]21-23 Campus Contract Alloctns'!$I$5:$AP$108)","v":0},{"$f":"$I$5*'[2]21-23 Campus Contract Alloctns'!AL69/SUM('[2]21-23 Campus Contract Alloctns'!$I$5:$AP$108)","v":0},{"$f":"$I$5*'[2]21-23 Campus Contract Alloctns'!AM69/SUM('[2]21-23 Campus Contract Alloctns'!$I$5:$AP$108)","v":0},{"$f":"$I$5*'[2]21-23 Campus Contract Alloctns'!AN69/SUM('[2]21-23 Campus Contract Alloctns'!$I$5:$AP$108)","v":0},{"$f":"$I$5*'[2]21-23 Campus Contract Alloctns'!AO69/SUM('[2]21-23 Campus Contract Alloctns'!$I$5:$AP$108)","v":0},{"$f":"$I$5*'[2]21-23 Campus Contract Alloctns'!AP69/SUM('[2]21-23 Campus Contract Alloctns'!$I$5:$AP$108)","v":0}]
[null,{"$f":"CONCATENATE(C72,\" - \",D72)","v":"307 - DCYF"},"307","DCYF",4.0068237653464178E-2,842,1.4926501356370617E-2,2.6481361894701242E-3,2.249360010762344E-2,{"$f":"$I$5*'[2]21-23 Campus Contract Alloctns'!I70/SUM('[2]21-23 Campus Contract Alloctns'!$I$5:$AP$108)","v":0},{"$f":"$I$5*'[2]21-23 Campus Contract Alloctns'!J70/SUM('[2]21-23 Campus Contract Alloctns'!$I$5:$AP$108)","v":0},{"$f":"$I$5*'[2]21-23 Campus Contract Alloctns'!K70/SUM('[2]21-23 Campus Contract Alloctns'!$I$5:$AP$108)","v":0},{"$f":"$I$5*'[2]21-23 Campus Contract Alloctns'!L70/SUM('[2]21-23 Campus Contract Alloctns'!$I$5:$AP$108)","v":0},{"$f":"$I$5*'[2]21-23 Campus Contract Alloctns'!M70/SUM('[2]21-23 Campus Contract Alloctns'!$I$5:$AP$108)","v":0},{"$f":"$I$5*'[2]21-23 Campus Contract Alloctns'!N70/SUM('[2]21-23 Campus Contract Alloctns'!$I$5:$AP$108)","v":2.1066145954763412E-2},{"$f":"$I$5*'[2]21-23 Campus Contract Alloctns'!O70/SUM('[2]21-23 Campus Contract Alloctns'!$I$5:$AP$108)","v":0},{"$f":"$I$5*'[2]21-23 Campus Contract Alloctns'!P70/SUM('[2]21-23 Campus Contract Alloctns'!$I$5:$AP$108)","v":0},{"$f":"$I$5*'[2]21-23 Campus Contract Alloctns'!Q70/SUM('[2]21-23 Campus Contract Alloctns'!$I$5:$AP$108)","v":0},{"$f":"$I$5*'[2]21-23 Campus Contract Alloctns'!R70/SUM('[2]21-23 Campus Contract Alloctns'!$I$5:$AP$108)","v":0},{"$f":"$I$5*'[2]21-23 Campus Contract Alloctns'!S70/SUM('[2]21-23 Campus Contract Alloctns'!$I$5:$AP$108)","v":0},{"$f":"$I$5*'[2]21-23 Campus Contract Alloctns'!T70/SUM('[2]21-23 Campus Contract Alloctns'!$I$5:$AP$108)","v":0},{"$f":"$I$5*'[2]21-23 Campus Contract Alloctns'!U70/SUM('[2]21-23 Campus Contract Alloctns'!$I$5:$AP$108)","v":0},{"$f":"$I$5*'[2]21-23 Campus Contract Alloctns'!V70/SUM('[2]21-23 Campus Contract Alloctns'!$I$5:$AP$108)","v":0},{"$f":"$I$5*'[2]21-23 Campus Contract Alloctns'!W70/SUM('[2]21-23 Campus Contract Alloctns'!$I$5:$AP$108)","v":0},{"$f":"$I$5*'[2]21-23 Campus Contract Alloctns'!X70/SUM('[2]21-23 Campus Contract Alloctns'!$I$5:$AP$108)","v":0},{"$f":"$I$5*'[2]21-23 Campus Contract Alloctns'!Y70/SUM('[2]21-23 Campus Contract Alloctns'!$I$5:$AP$108)","v":0},{"$f":"$I$5*'[2]21-23 Campus Contract Alloctns'!Z70/SUM('[2]21-23 Campus Contract Alloctns'!$I$5:$AP$108)","v":0},{"$f":"$I$5*'[2]21-23 Campus Contract Alloctns'!AA70/SUM('[2]21-23 Campus Contract Alloctns'!$I$5:$AP$108)","v":0},{"$f":"$I$5*'[2]21-23 Campus Contract Alloctns'!AB70/SUM('[2]21-23 Campus Contract Alloctns'!$I$5:$AP$108)","v":0},{"$f":"$I$5*'[2]21-23 Campus Contract Alloctns'!AC70/SUM('[2]21-23 Campus Contract Alloctns'!$I$5:$AP$108)","v":0},{"$f":"$I$5*'[2]21-23 Campus Contract Alloctns'!AD70/SUM('[2]21-23 Campus Contract Alloctns'!$I$5:$AP$108)","v":0},{"$f":"$I$5*'[2]21-23 Campus Contract Alloctns'!AE70/SUM('[2]21-23 Campus Contract Alloctns'!$I$5:$AP$108)","v":0},{"$f":"$I$5*'[2]21-23 Campus Contract Alloctns'!AF70/SUM('[2]21-23 Campus Contract Alloctns'!$I$5:$AP$108)","v":0},{"$f":"$I$5*'[2]21-23 Campus Contract Alloctns'!AG70/SUM('[2]21-23 Campus Contract Alloctns'!$I$5:$AP$108)","v":0},{"$f":"$I$5*'[2]21-23 Campus Contract Alloctns'!AH70/SUM('[2]21-23 Campus Contract Alloctns'!$I$5:$AP$108)","v":0},{"$f":"$I$5*'[2]21-23 Campus Contract Alloctns'!AI70/SUM('[2]21-23 Campus Contract Alloctns'!$I$5:$AP$108)","v":0},{"$f":"$I$5*'[2]21-23 Campus Contract Alloctns'!AJ70/SUM('[2]21-23 Campus Contract Alloctns'!$I$5:$AP$108)","v":0},{"$f":"$I$5*'[2]21-23 Campus Contract Alloctns'!AK70/SUM('[2]21-23 Campus Contract Alloctns'!$I$5:$AP$108)","v":0},{"$f":"$I$5*'[2]21-23 Campus Contract Alloctns'!AL70/SUM('[2]21-23 Campus Contract Alloctns'!$I$5:$AP$108)","v":1.4274541528600294E-3},{"$f":"$I$5*'[2]21-23 Campus Contract Alloctns'!AM70/SUM('[2]21-23 Campus Contract Alloctns'!$I$5:$AP$108)","v":0},{"$f":"$I$5*'[2]21-23 Campus Contract Alloctns'!AN70/SUM('[2]21-23 Campus Contract Alloctns'!$I$5:$AP$108)","v":0},{"$f":"$I$5*'[2]21-23 Campus Contract Alloctns'!AO70/SUM('[2]21-23 Campus Contract Alloctns'!$I$5:$AP$108)","v":0},{"$f":"$I$5*'[2]21-23 Campus Contract Alloctns'!AP70/SUM('[2]21-23 Campus Contract Alloctns'!$I$5:$AP$108)","v":0}]
[null,"310 - Department of Corrections","310","Department of Corrections",1.9411542737797893E-2,1095,1.9411542737797893E-2,0,0,{"$f":"$I$5*'[2]21-23 Campus Contract Alloctns'!I71/SUM('[2]21-23 Campus Contract Alloctns'!$I$5:$AP$108)","v":0},{"$f":"$I$5*'[2]21-23 Campus Contract Alloctns'!J71/SUM('[2]21-23 Campus Contract Alloctns'!$I$5:$AP$108)","v":0},{"$f":"$I$5*'[2]21-23 Campus Contract Alloctns'!K71/SUM('[2]21-23 Campus Contract Alloctns'!$I$5:$AP$108)","v":0},{"$f":"$I$5*'[2]21-23 Campus Contract Alloctns'!L71/SUM('[2]21-23 Campus Contract Alloctns'!$I$5:$AP$108)","v":0},{"$f":"$I$5*'[2]21-23 Campus Contract Alloctns'!M71/SUM('[2]21-23 Campus Contract Alloctns'!$I$5:$AP$108)","v":0},{"$f":"$I$5*'[2]21-23 Campus Contract Alloctns'!N71/SUM('[2]21-23 Campus Contract Alloctns'!$I$5:$AP$108)","v":0},{"$f":"$I$5*'[2]21-23 Campus Contract Alloctns'!O71/SUM('[2]21-23 Campus Contract Alloctns'!$I$5:$AP$108)","v":0},{"$f":"$I$5*'[2]21-23 Campus Contract Alloctns'!P71/SUM('[2]21-23 Campus Contract Alloctns'!$I$5:$AP$108)","v":0},{"$f":"$I$5*'[2]21-23 Campus Contract Alloctns'!Q71/SUM('[2]21-23 Campus Contract Alloctns'!$I$5:$AP$108)","v":0},{"$f":"$I$5*'[2]21-23 Campus Contract Alloctns'!R71/SUM('[2]21-23 Campus Contract Alloctns'!$I$5:$AP$108)","v":0},{"$f":"$I$5*'[2]21-23 Campus Contract Alloctns'!S71/SUM('[2]21-23 Campus Contract Alloctns'!$I$5:$AP$108)","v":0},{"$f":"$I$5*'[2]21-23 Campus Contract Alloctns'!T71/SUM('[2]21-23 Campus Contract Alloctns'!$I$5:$AP$108)","v":0},{"$f":"$I$5*'[2]21-23 Campus Contract Alloctns'!U71/SUM('[2]21-23 Campus Contract Alloctns'!$I$5:$AP$108)","v":0},{"$f":"$I$5*'[2]21-23 Campus Contract Alloctns'!V71/SUM('[2]21-23 Campus Contract Alloctns'!$I$5:$AP$108)","v":0},{"$f":"$I$5*'[2]21-23 Campus Contract Alloctns'!W71/SUM('[2]21-23 Campus Contract Alloctns'!$I$5:$AP$108)","v":0},{"$f":"$I$5*'[2]21-23 Campus Contract Alloctns'!X71/SUM('[2]21-23 Campus Contract Alloctns'!$I$5:$AP$108)","v":0},{"$f":"$I$5*'[2]21-23 Campus Contract Alloctns'!Y71/SUM('[2]21-23 Campus Contract Alloctns'!$I$5:$AP$108)","v":0},{"$f":"$I$5*'[2]21-23 Campus Contract Alloctns'!Z71/SUM('[2]21-23 Campus Contract Alloctns'!$I$5:$AP$108)","v":0},{"$f":"$I$5*'[2]21-23 Campus Contract Alloctns'!AA71/SUM('[2]21-23 Campus Contract Alloctns'!$I$5:$AP$108)","v":0},{"$f":"$I$5*'[2]21-23 Campus Contract Alloctns'!AB71/SUM('[2]21-23 Campus Contract Alloctns'!$I$5:$AP$108)","v":0},{"$f":"$I$5*'[2]21-23 Campus Contract Alloctns'!AC71/SUM('[2]21-23 Campus Contract Alloctns'!$I$5:$AP$108)","v":0},{"$f":"$I$5*'[2]21-23 Campus Contract Alloctns'!AD71/SUM('[2]21-23 Campus Contract Alloctns'!$I$5:$AP$108)","v":0},{"$f":"$I$5*'[2]21-23 Campus Contract Alloctns'!AE71/SUM('[2]21-23 Campus Contract Alloctns'!$I$5:$AP$108)","v":0},{"$f":"$I$5*'[2]21-23 Campus Contract Alloctns'!AF71/SUM('[2]21-23 Campus Contract Alloctns'!$I$5:$AP$108)","v":0},{"$f":"$I$5*'[2]21-23 Campus Contract Alloctns'!AG71/SUM('[2]21-23 Campus Contract Alloctns'!$I$5:$AP$108)","v":0},{"$f":"$I$5*'[2]21-23 Campus Contract Alloctns'!AH71/SUM('[2]21-23 Campus Contract Alloctns'!$I$5:$AP$108)","v":0},{"$f":"$I$5*'[2]21-23 Campus Contract Alloctns'!AI71/SUM('[2]21-23 Campus Contract Alloctns'!$I$5:$AP$108)","v":0},{"$f":"$I$5*'[2]21-23 Campus Contract Alloctns'!AJ71/SUM('[2]21-23 Campus Contract Alloctns'!$I$5:$AP$108)","v":0},{"$f":"$I$5*'[2]21-23 Campus Contract Alloctns'!AK71/SUM('[2]21-23 Campus Contract Alloctns'!$I$5:$AP$108)","v":0},{"$f":"$I$5*'[2]21-23 Campus Contract Alloctns'!AL71/SUM('[2]21-23 Campus Contract Alloctns'!$I$5:$AP$108)","v":0},{"$f":"$I$5*'[2]21-23 Campus Contract Alloctns'!AM71/SUM('[2]21-23 Campus Contract Alloctns'!$I$5:$AP$108)","v":0},{"$f":"$I$5*'[2]21-23 Campus Contract Alloctns'!AN71/SUM('[2]21-23 Campus Contract Alloctns'!$I$5:$AP$108)","v":0},{"$f":"$I$5*'[2]21-23 Campus Contract Alloctns'!AO71/SUM('[2]21-23 Campus Contract Alloctns'!$I$5:$AP$108)","v":0},{"$f":"$I$5*'[2]21-23 Campus Contract Alloctns'!AP71/SUM('[2]21-23 Campus Contract Alloctns'!$I$5:$AP$108)","v":0}]
[null,"315 - Department of Services for the Blind","315","Department of Services for the Blind",5.8821135611743167E-3,20,3.5454872580452775E-4,3.3974831067169921E-4,5.1878165246980901E-3,{"$f":"$I$5*'[2]21-23 Campus Contract Alloctns'!I72/SUM('[2]21-23 Campus Contract Alloctns'!$I$5:$AP$108)","v":0},{"$f":"$I$5*'[2]21-23 Campus Contract Alloctns'!J72/SUM('[2]21-23 Campus Contract Alloctns'!$I$5:$AP$108)","v":0},{"$f":"$I$5*'[2]21-23 Campus Contract Alloctns'!K72/SUM('[2]21-23 Campus Contract Alloctns'!$I$5:$AP$108)","v":1.6953382665628897E-4},{"$f":"$I$5*'[2]21-23 Campus Contract Alloctns'!L72/SUM('[2]21-23 Campus Contract Alloctns'!$I$5:$AP$108)","v":0},{"$f":"$I$5*'[2]21-23 Campus Contract Alloctns'!M72/SUM('[2]21-23 Campus Contract Alloctns'!$I$5:$AP$108)","v":2.3083438139675282E-4},{"$f":"$I$5*'[2]21-23 Campus Contract Alloctns'!N72/SUM('[2]21-23 Campus Contract Alloctns'!$I$5:$AP$108)","v":8.1978127712276983E-4},{"$f":"$I$5*'[2]21-23 Campus Contract Alloctns'!O72/SUM('[2]21-23 Campus Contract Alloctns'!$I$5:$AP$108)","v":0},{"$f":"$I$5*'[2]21-23 Campus Contract Alloctns'!P72/SUM('[2]21-23 Campus Contract Alloctns'!$I$5:$AP$108)","v":7.5142970831906341E-4},{"$f":"$I$5*'[2]21-23 Campus Contract Alloctns'!Q72/SUM('[2]21-23 Campus Contract Alloctns'!$I$5:$AP$108)","v":0},{"$f":"$I$5*'[2]21-23 Campus Contract Alloctns'!R72/SUM('[2]21-23 Campus Contract Alloctns'!$I$5:$AP$108)","v":3.5616908962037377E-4},{"$f":"$I$5*'[2]21-23 Campus Contract Alloctns'!S72/SUM('[2]21-23 Campus Contract Alloctns'!$I$5:$AP$108)","v":0},{"$f":"$I$5*'[2]21-23 Campus Contract Alloctns'!T72/SUM('[2]21-23 Campus Contract Alloctns'!$I$5:$AP$108)","v":0},{"$f":"$I$5*'[2]21-23 Campus Contract Alloctns'!U72/SUM('[2]21-23 Campus Contract Alloctns'!$I$5:$AP$108)","v":0},{"$f":"$I$5*'[2]21-23 Campus Contract Alloctns'!V72/SUM('[2]21-23 Campus Contract Alloctns'!$I$5:$AP$108)","v":0},{"$f":"$I$5*'[2]21-23 Campus Contract Alloctns'!W72/SUM('[2]21-23 Campus Contract Alloctns'!$I$5:$AP$108)","v":0},{"$f":"$I$5*'[2]21-23 Campus Contract Alloctns'!X72/SUM('[2]21-23 Campus Contract Alloctns'!$I$5:$AP$108)","v":0},{"$f":"$I$5*'[2]21-23 Campus Contract Alloctns'!Y72/SUM('[2]21-23 Campus Contract Alloctns'!$I$5:$AP$108)","v":0},{"$f":"$I$5*'[2]21-23 Campus Contract Alloctns'!Z72/SUM('[2]21-23 Campus Contract Alloctns'!$I$5:$AP$108)","v":0},{"$f":"$I$5*'[2]21-23 Campus Contract Alloctns'!AA72/SUM('[2]21-23 Campus Contract Alloctns'!$I$5:$AP$108)","v":0},{"$f":"$I$5*'[2]21-23 Campus Contract Alloctns'!AB72/SUM('[2]21-23 Campus Contract Alloctns'!$I$5:$AP$108)","v":0},{"$f":"$I$5*'[2]21-23 Campus Contract Alloctns'!AC72/SUM('[2]21-23 Campus Contract Alloctns'!$I$5:$AP$108)","v":0},{"$f":"$I$5*'[2]21-23 Campus Contract Alloctns'!AD72/SUM('[2]21-23 Campus Contract Alloctns'!$I$5:$AP$108)","v":0},{"$f":"$I$5*'[2]21-23 Campus Contract Alloctns'!AE72/SUM('[2]21-23 Campus Contract Alloctns'!$I$5:$AP$108)","v":0},{"$f":"$I$5*'[2]21-23 Campus Contract Alloctns'!AF72/SUM('[2]21-23 Campus Contract Alloctns'!$I$5:$AP$108)","v":0},{"$f":"$I$5*'[2]21-23 Campus Contract Alloctns'!AG72/SUM('[2]21-23 Campus Contract Alloctns'!$I$5:$AP$108)","v":0},{"$f":"$I$5*'[2]21-23 Campus Contract Alloctns'!AH72/SUM('[2]21-23 Campus Contract Alloctns'!$I$5:$AP$108)","v":0},{"$f":"$I$5*'[2]21-23 Campus Contract Alloctns'!AI72/SUM('[2]21-23 Campus Contract Alloctns'!$I$5:$AP$108)","v":0},{"$f":"$I$5*'[2]21-23 Campus Contract Alloctns'!AJ72/SUM('[2]21-23 Campus Contract Alloctns'!$I$5:$AP$108)","v":0},{"$f":"$I$5*'[2]21-23 Campus Contract Alloctns'!AK72/SUM('[2]21-23 Campus Contract Alloctns'!$I$5:$AP$108)","v":0},{"$f":"$I$5*'[2]21-23 Campus Contract Alloctns'!AL72/SUM('[2]21-23 Campus Contract Alloctns'!$I$5:$AP$108)","v":0},{"$f":"$I$5*'[2]21-23 Campus Contract Alloctns'!AM72/SUM('[2]21-23 Campus Contract Alloctns'!$I$5:$AP$108)","v":2.3966007721931775E-3},{"$f":"$I$5*'[2]21-23 Campus Contract Alloctns'!AN72/SUM('[2]21-23 Campus Contract Alloctns'!$I$5:$AP$108)","v":4.634674693896655E-4},{"$f":"$I$5*'[2]21-23 Campus Contract Alloctns'!AO72/SUM('[2]21-23 Campus Contract Alloctns'!$I$5:$AP$108)","v":0},{"$f":"$I$5*'[2]21-23 Campus Contract Alloctns'!AP72/SUM('[2]21-23 Campus Contract Alloctns'!$I$5:$AP$108)","v":0}]
[null,"340 - Student Achievement Council","340","Student Achievement Council",2.0032003007955817E-3,113,2.0032003007955817E-3,0,0,{"$f":"$I$5*'[2]21-23 Campus Contract Alloctns'!I73/SUM('[2]21-23 Campus Contract Alloctns'!$I$5:$AP$108)","v":0},{"$f":"$I$5*'[2]21-23 Campus Contract Alloctns'!J73/SUM('[2]21-23 Campus Contract Alloctns'!$I$5:$AP$108)","v":0},{"$f":"$I$5*'[2]21-23 Campus Contract Alloctns'!K73/SUM('[2]21-23 Campus Contract Alloctns'!$I$5:$AP$108)","v":0},{"$f":"$I$5*'[2]21-23 Campus Contract Alloctns'!L73/SUM('[2]21-23 Campus Contract Alloctns'!$I$5:$AP$108)","v":0},{"$f":"$I$5*'[2]21-23 Campus Contract Alloctns'!M73/SUM('[2]21-23 Campus Contract Alloctns'!$I$5:$AP$108)","v":0},{"$f":"$I$5*'[2]21-23 Campus Contract Alloctns'!N73/SUM('[2]21-23 Campus Contract Alloctns'!$I$5:$AP$108)","v":0},{"$f":"$I$5*'[2]21-23 Campus Contract Alloctns'!O73/SUM('[2]21-23 Campus Contract Alloctns'!$I$5:$AP$108)","v":0},{"$f":"$I$5*'[2]21-23 Campus Contract Alloctns'!P73/SUM('[2]21-23 Campus Contract Alloctns'!$I$5:$AP$108)","v":0},{"$f":"$I$5*'[2]21-23 Campus Contract Alloctns'!Q73/SUM('[2]21-23 Campus Contract Alloctns'!$I$5:$AP$108)","v":0},{"$f":"$I$5*'[2]21-23 Campus Contract Alloctns'!R73/SUM('[2]21-23 Campus Contract Alloctns'!$I$5:$AP$108)","v":0},{"$f":"$I$5*'[2]21-23 Campus Contract Alloctns'!S73/SUM('[2]21-23 Campus Contract Alloctns'!$I$5:$AP$108)","v":0},{"$f":"$I$5*'[2]21-23 Campus Contract Alloctns'!T73/SUM('[2]21-23 Campus Contract Alloctns'!$I$5:$AP$108)","v":0},{"$f":"$I$5*'[2]21-23 Campus Contract Alloctns'!U73/SUM('[2]21-23 Campus Contract Alloctns'!$I$5:$AP$108)","v":0},{"$f":"$I$5*'[2]21-23 Campus Contract Alloctns'!V73/SUM('[2]21-23 Campus Contract Alloctns'!$I$5:$AP$108)","v":0},{"$f":"$I$5*'[2]21-23 Campus Contract Alloctns'!W73/SUM('[2]21-23 Campus Contract Alloctns'!$I$5:$AP$108)","v":0},{"$f":"$I$5*'[2]21-23 Campus Contract Alloctns'!X73/SUM('[2]21-23 Campus Contract Alloctns'!$I$5:$AP$108)","v":0},{"$f":"$I$5*'[2]21-23 Campus Contract Alloctns'!Y73/SUM('[2]21-23 Campus Contract Alloctns'!$I$5:$AP$108)","v":0},{"$f":"$I$5*'[2]21-23 Campus Contract Alloctns'!Z73/SUM('[2]21-23 Campus Contract Alloctns'!$I$5:$AP$108)","v":0},{"$f":"$I$5*'[2]21-23 Campus Contract Alloctns'!AA73/SUM('[2]21-23 Campus Contract Alloctns'!$I$5:$AP$108)","v":0},{"$f":"$I$5*'[2]21-23 Campus Contract Alloctns'!AB73/SUM('[2]21-23 Campus Contract Alloctns'!$I$5:$AP$108)","v":0},{"$f":"$I$5*'[2]21-23 Campus Contract Alloctns'!AC73/SUM('[2]21-23 Campus Contract Alloctns'!$I$5:$AP$108)","v":0},{"$f":"$I$5*'[2]21-23 Campus Contract Alloctns'!AD73/SUM('[2]21-23 Campus Contract Alloctns'!$I$5:$AP$108)","v":0},{"$f":"$I$5*'[2]21-23 Campus Contract Alloctns'!AE73/SUM('[2]21-23 Campus Contract Alloctns'!$I$5:$AP$108)","v":0},{"$f":"$I$5*'[2]21-23 Campus Contract Alloctns'!AF73/SUM('[2]21-23 Campus Contract Alloctns'!$I$5:$AP$108)","v":0},{"$f":"$I$5*'[2]21-23 Campus Contract Alloctns'!AG73/SUM('[2]21-23 Campus Contract Alloctns'!$I$5:$AP$108)","v":0},{"$f":"$I$5*'[2]21-23 Campus Contract Alloctns'!AH73/SUM('[2]21-23 Campus Contract Alloctns'!$I$5:$AP$108)","v":0},{"$f":"$I$5*'[2]21-23 Campus Contract Alloctns'!AI73/SUM('[2]21-23 Campus Contract Alloctns'!$I$5:$AP$108)","v":0},{"$f":"$I$5*'[2]21-23 Campus Contract Alloctns'!AJ73/SUM('[2]21-23 Campus Contract Alloctns'!$I$5:$AP$108)","v":0},{"$f":"$I$5*'[2]21-23 Campus Contract Alloctns'!AK73/SUM('[2]21-23 Campus Contract Alloctns'!$I$5:$AP$108)","v":0},{"$f":"$I$5*'[2]21-23 Campus Contract Alloctns'!AL73/SUM('[2]21-23 Campus Contract Alloctns'!$I$5:$AP$108)","v":0},{"$f":"$I$5*'[2]21-23 Campus Contract Alloctns'!AM73/SUM('[2]21-23 Campus Contract Alloctns'!$I$5:$AP$108)","v":0},{"$f":"$I$5*'[2]21-23 Campus Contract Alloctns'!AN73/SUM('[2]21-23 Campus Contract Alloctns'!$I$5:$AP$108)","v":0},{"$f":"$I$5*'[2]21-23 Campus Contract Alloctns'!AO73/SUM('[2]21-23 Campus Contract Alloctns'!$I$5:$AP$108)","v":0},{"$f":"$I$5*'[2]21-23 Campus Contract Alloctns'!AP73/SUM('[2]21-23 Campus Contract Alloctns'!$I$5:$AP$108)","v":0}]
[null,"341 - Law Enforcement Officers' & Fire Fighters' Plan 2 Retirement Board","341","Law Enforcement Officers' & Fire Fighters' Plan 2 Retirement Board",1.4181949032181107E-4,8,1.4181949032181107E-4,0,0,{"$f":"$I$5*'[2]21-23 Campus Contract Alloctns'!I74/SUM('[2]21-23 Campus Contract Alloctns'!$I$5:$AP$108)","v":0},{"$f":"$I$5*'[2]21-23 Campus Contract Alloctns'!J74/SUM('[2]21-23 Campus Contract Alloctns'!$I$5:$AP$108)","v":0},{"$f":"$I$5*'[2]21-23 Campus Contract Alloctns'!K74/SUM('[2]21-23 Campus Contract Alloctns'!$I$5:$AP$108)","v":0},{"$f":"$I$5*'[2]21-23 Campus Contract Alloctns'!L74/SUM('[2]21-23 Campus Contract Alloctns'!$I$5:$AP$108)","v":0},{"$f":"$I$5*'[2]21-23 Campus Contract Alloctns'!M74/SUM('[2]21-23 Campus Contract Alloctns'!$I$5:$AP$108)","v":0},{"$f":"$I$5*'[2]21-23 Campus Contract Alloctns'!N74/SUM('[2]21-23 Campus Contract Alloctns'!$I$5:$AP$108)","v":0},{"$f":"$I$5*'[2]21-23 Campus Contract Alloctns'!O74/SUM('[2]21-23 Campus Contract Alloctns'!$I$5:$AP$108)","v":0},{"$f":"$I$5*'[2]21-23 Campus Contract Alloctns'!P74/SUM('[2]21-23 Campus Contract Alloctns'!$I$5:$AP$108)","v":0},{"$f":"$I$5*'[2]21-23 Campus Contract Alloctns'!Q74/SUM('[2]21-23 Campus Contract Alloctns'!$I$5:$AP$108)","v":0},{"$f":"$I$5*'[2]21-23 Campus Contract Alloctns'!R74/SUM('[2]21-23 Campus Contract Alloctns'!$I$5:$AP$108)","v":0},{"$f":"$I$5*'[2]21-23 Campus Contract Alloctns'!S74/SUM('[2]21-23 Campus Contract Alloctns'!$I$5:$AP$108)","v":0},{"$f":"$I$5*'[2]21-23 Campus Contract Alloctns'!T74/SUM('[2]21-23 Campus Contract Alloctns'!$I$5:$AP$108)","v":0},{"$f":"$I$5*'[2]21-23 Campus Contract Alloctns'!U74/SUM('[2]21-23 Campus Contract Alloctns'!$I$5:$AP$108)","v":0},{"$f":"$I$5*'[2]21-23 Campus Contract Alloctns'!V74/SUM('[2]21-23 Campus Contract Alloctns'!$I$5:$AP$108)","v":0},{"$f":"$I$5*'[2]21-23 Campus Contract Alloctns'!W74/SUM('[2]21-23 Campus Contract Alloctns'!$I$5:$AP$108)","v":0},{"$f":"$I$5*'[2]21-23 Campus Contract Alloctns'!X74/SUM('[2]21-23 Campus Contract Alloctns'!$I$5:$AP$108)","v":0},{"$f":"$I$5*'[2]21-23 Campus Contract Alloctns'!Y74/SUM('[2]21-23 Campus Contract Alloctns'!$I$5:$AP$108)","v":0},{"$f":"$I$5*'[2]21-23 Campus Contract Alloctns'!Z74/SUM('[2]21-23 Campus Contract Alloctns'!$I$5:$AP$108)","v":0},{"$f":"$I$5*'[2]21-23 Campus Contract Alloctns'!AA74/SUM('[2]21-23 Campus Contract Alloctns'!$I$5:$AP$108)","v":0},{"$f":"$I$5*'[2]21-23 Campus Contract Alloctns'!AB74/SUM('[2]21-23 Campus Contract Alloctns'!$I$5:$AP$108)","v":0},{"$f":"$I$5*'[2]21-23 Campus Contract Alloctns'!AC74/SUM('[2]21-23 Campus Contract Alloctns'!$I$5:$AP$108)","v":0},{"$f":"$I$5*'[2]21-23 Campus Contract Alloctns'!AD74/SUM('[2]21-23 Campus Contract Alloctns'!$I$5:$AP$108)","v":0},{"$f":"$I$5*'[2]21-23 Campus Contract Alloctns'!AE74/SUM('[2]21-23 Campus Contract Alloctns'!$I$5:$AP$108)","v":0},{"$f":"$I$5*'[2]21-23 Campus Contract Alloctns'!AF74/SUM('[2]21-23 Campus Contract Alloctns'!$I$5:$AP$108)","v":0},{"$f":"$I$5*'[2]21-23 Campus Contract Alloctns'!AG74/SUM('[2]21-23 Campus Contract Alloctns'!$I$5:$AP$108)","v":0},{"$f":"$I$5*'[2]21-23 Campus Contract Alloctns'!AH74/SUM('[2]21-23 Campus Contract Alloctns'!$I$5:$AP$108)","v":0},{"$f":"$I$5*'[2]21-23 Campus Contract Alloctns'!AI74/SUM('[2]21-23 Campus Contract Alloctns'!$I$5:$AP$108)","v":0},{"$f":"$I$5*'[2]21-23 Campus Contract Alloctns'!AJ74/SUM('[2]21-23 Campus Contract Alloctns'!$I$5:$AP$108)","v":0},{"$f":"$I$5*'[2]21-23 Campus Contract Alloctns'!AK74/SUM('[2]21-23 Campus Contract Alloctns'!$I$5:$AP$108)","v":0},{"$f":"$I$5*'[2]21-23 Campus Contract Alloctns'!AL74/SUM('[2]21-23 Campus Contract Alloctns'!$I$5:$AP$108)","v":0},{"$f":"$I$5*'[2]21-23 Campus Contract Alloctns'!AM74/SUM('[2]21-23 Campus Contract Alloctns'!$I$5:$AP$108)","v":0},{"$f":"$I$5*'[2]21-23 Campus Contract Alloctns'!AN74/SUM('[2]21-23 Campus Contract Alloctns'!$I$5:$AP$108)","v":0},{"$f":"$I$5*'[2]21-23 Campus Contract Alloctns'!AO74/SUM('[2]21-23 Campus Contract Alloctns'!$I$5:$AP$108)","v":0},{"$f":"$I$5*'[2]21-23 Campus Contract Alloctns'!AP74/SUM('[2]21-23 Campus Contract Alloctns'!$I$5:$AP$108)","v":0}]
[null,"350 - Superintendent of Public Instruction","350","Superintendent of Public Instruction",3.5221875624821646E-2,457,8.1014383846334578E-3,3.9215608147872283E-3,2.3198876425400958E-2,{"$f":"$I$5*'[2]21-23 Campus Contract Alloctns'!I75/SUM('[2]21-23 Campus Contract Alloctns'!$I$5:$AP$108)","v":0},{"$f":"$I$5*'[2]21-23 Campus Contract Alloctns'!J75/SUM('[2]21-23 Campus Contract Alloctns'!$I$5:$AP$108)","v":0},{"$f":"$I$5*'[2]21-23 Campus Contract Alloctns'!K75/SUM('[2]21-23 Campus Contract Alloctns'!$I$5:$AP$108)","v":0},{"$f":"$I$5*'[2]21-23 Campus Contract Alloctns'!L75/SUM('[2]21-23 Campus Contract Alloctns'!$I$5:$AP$108)","v":0},{"$f":"$I$5*'[2]21-23 Campus Contract Alloctns'!M75/SUM('[2]21-23 Campus Contract Alloctns'!$I$5:$AP$108)","v":0},{"$f":"$I$5*'[2]21-23 Campus Contract Alloctns'!N75/SUM('[2]21-23 Campus Contract Alloctns'!$I$5:$AP$108)","v":0},{"$f":"$I$5*'[2]21-23 Campus Contract Alloctns'!O75/SUM('[2]21-23 Campus Contract Alloctns'!$I$5:$AP$108)","v":0},{"$f":"$I$5*'[2]21-23 Campus Contract Alloctns'!P75/SUM('[2]21-23 Campus Contract Alloctns'!$I$5:$AP$108)","v":0},{"$f":"$I$5*'[2]21-23 Campus Contract Alloctns'!Q75/SUM('[2]21-23 Campus Contract Alloctns'!$I$5:$AP$108)","v":0},{"$f":"$I$5*'[2]21-23 Campus Contract Alloctns'!R75/SUM('[2]21-23 Campus Contract Alloctns'!$I$5:$AP$108)","v":0},{"$f":"$I$5*'[2]21-23 Campus Contract Alloctns'!S75/SUM('[2]21-23 Campus Contract Alloctns'!$I$5:$AP$108)","v":0},{"$f":"$I$5*'[2]21-23 Campus Contract Alloctns'!T75/SUM('[2]21-23 Campus Contract Alloctns'!$I$5:$AP$108)","v":2.3050703135863028E-2},{"$f":"$I$5*'[2]21-23 Campus Contract Alloctns'!U75/SUM('[2]21-23 Campus Contract Alloctns'!$I$5:$AP$108)","v":0},{"$f":"$I$5*'[2]21-23 Campus Contract Alloctns'!V75/SUM('[2]21-23 Campus Contract Alloctns'!$I$5:$AP$108)","v":0},{"$f":"$I$5*'[2]21-23 Campus Contract Alloctns'!W75/SUM('[2]21-23 Campus Contract Alloctns'!$I$5:$AP$108)","v":0},{"$f":"$I$5*'[2]21-23 Campus Contract Alloctns'!X75/SUM('[2]21-23 Campus Contract Alloctns'!$I$5:$AP$108)","v":0},{"$f":"$I$5*'[2]21-23 Campus Contract Alloctns'!Y75/SUM('[2]21-23 Campus Contract Alloctns'!$I$5:$AP$108)","v":0},{"$f":"$I$5*'[2]21-23 Campus Contract Alloctns'!Z75/SUM('[2]21-23 Campus Contract Alloctns'!$I$5:$AP$108)","v":0},{"$f":"$I$5*'[2]21-23 Campus Contract Alloctns'!AA75/SUM('[2]21-23 Campus Contract Alloctns'!$I$5:$AP$108)","v":0},{"$f":"$I$5*'[2]21-23 Campus Contract Alloctns'!AB75/SUM('[2]21-23 Campus Contract Alloctns'!$I$5:$AP$108)","v":0},{"$f":"$I$5*'[2]21-23 Campus Contract Alloctns'!AC75/SUM('[2]21-23 Campus Contract Alloctns'!$I$5:$AP$108)","v":0},{"$f":"$I$5*'[2]21-23 Campus Contract Alloctns'!AD75/SUM('[2]21-23 Campus Contract Alloctns'!$I$5:$AP$108)","v":0},{"$f":"$I$5*'[2]21-23 Campus Contract Alloctns'!AE75/SUM('[2]21-23 Campus Contract Alloctns'!$I$5:$AP$108)","v":1.4817328953793449E-4},{"$f":"$I$5*'[2]21-23 Campus Contract Alloctns'!AF75/SUM('[2]21-23 Campus Contract Alloctns'!$I$5:$AP$108)","v":0},{"$f":"$I$5*'[2]21-23 Campus Contract Alloctns'!AG75/SUM('[2]21-23 Campus Contract Alloctns'!$I$5:$AP$108)","v":0},{"$f":"$I$5*'[2]21-23 Campus Contract Alloctns'!AH75/SUM('[2]21-23 Campus Contract Alloctns'!$I$5:$AP$108)","v":0},{"$f":"$I$5*'[2]21-23 Campus Contract Alloctns'!AI75/SUM('[2]21-23 Campus Contract Alloctns'!$I$5:$AP$108)","v":0},{"$f":"$I$5*'[2]21-23 Campus Contract Alloctns'!AJ75/SUM('[2]21-23 Campus Contract Alloctns'!$I$5:$AP$108)","v":0},{"$f":"$I$5*'[2]21-23 Campus Contract Alloctns'!AK75/SUM('[2]21-23 Campus Contract Alloctns'!$I$5:$AP$108)","v":0},{"$f":"$I$5*'[2]21-23 Campus Contract Alloctns'!AL75/SUM('[2]21-23 Campus Contract Alloctns'!$I$5:$AP$108)","v":0},{"$f":"$I$5*'[2]21-23 Campus Contract Alloctns'!AM75/SUM('[2]21-23 Campus Contract Alloctns'!$I$5:$AP$108)","v":0},{"$f":"$I$5*'[2]21-23 Campus Contract Alloctns'!AN75/SUM('[2]21-23 Campus Contract Alloctns'!$I$5:$AP$108)","v":0},{"$f":"$I$5*'[2]21-23 Campus Contract Alloctns'!AO75/SUM('[2]21-23 Campus Contract Alloctns'!$I$5:$AP$108)","v":0},{"$f":"$I$5*'[2]21-23 Campus Contract Alloctns'!AP75/SUM('[2]21-23 Campus Contract Alloctns'!$I$5:$AP$108)","v":0}]
[null,"351 - State School For The Blind","351","State School For The Blind",3.5454872580452768E-5,2,3.5454872580452768E-5,0,0,{"$f":"$I$5*'[2]21-23 Campus Contract Alloctns'!I76/SUM('[2]21-23 Campus Contract Alloctns'!$I$5:$AP$108)","v":0},{"$f":"$I$5*'[2]21-23 Campus Contract Alloctns'!J76/SUM('[2]21-23 Campus Contract Alloctns'!$I$5:$AP$108)","v":0},{"$f":"$I$5*'[2]21-23 Campus Contract Alloctns'!K76/SUM('[2]21-23 Campus Contract Alloctns'!$I$5:$AP$108)","v":0},{"$f":"$I$5*'[2]21-23 Campus Contract Alloctns'!L76/SUM('[2]21-23 Campus Contract Alloctns'!$I$5:$AP$108)","v":0},{"$f":"$I$5*'[2]21-23 Campus Contract Alloctns'!M76/SUM('[2]21-23 Campus Contract Alloctns'!$I$5:$AP$108)","v":0},{"$f":"$I$5*'[2]21-23 Campus Contract Alloctns'!N76/SUM('[2]21-23 Campus Contract Alloctns'!$I$5:$AP$108)","v":0},{"$f":"$I$5*'[2]21-23 Campus Contract Alloctns'!O76/SUM('[2]21-23 Campus Contract Alloctns'!$I$5:$AP$108)","v":0},{"$f":"$I$5*'[2]21-23 Campus Contract Alloctns'!P76/SUM('[2]21-23 Campus Contract Alloctns'!$I$5:$AP$108)","v":0},{"$f":"$I$5*'[2]21-23 Campus Contract Alloctns'!Q76/SUM('[2]21-23 Campus Contract Alloctns'!$I$5:$AP$108)","v":0},{"$f":"$I$5*'[2]21-23 Campus Contract Alloctns'!R76/SUM('[2]21-23 Campus Contract Alloctns'!$I$5:$AP$108)","v":0},{"$f":"$I$5*'[2]21-23 Campus Contract Alloctns'!S76/SUM('[2]21-23 Campus Contract Alloctns'!$I$5:$AP$108)","v":0},{"$f":"$I$5*'[2]21-23 Campus Contract Alloctns'!T76/SUM('[2]21-23 Campus Contract Alloctns'!$I$5:$AP$108)","v":0},{"$f":"$I$5*'[2]21-23 Campus Contract Alloctns'!U76/SUM('[2]21-23 Campus Contract Alloctns'!$I$5:$AP$108)","v":0},{"$f":"$I$5*'[2]21-23 Campus Contract Alloctns'!V76/SUM('[2]21-23 Campus Contract Alloctns'!$I$5:$AP$108)","v":0},{"$f":"$I$5*'[2]21-23 Campus Contract Alloctns'!W76/SUM('[2]21-23 Campus Contract Alloctns'!$I$5:$AP$108)","v":0},{"$f":"$I$5*'[2]21-23 Campus Contract Alloctns'!X76/SUM('[2]21-23 Campus Contract Alloctns'!$I$5:$AP$108)","v":0},{"$f":"$I$5*'[2]21-23 Campus Contract Alloctns'!Y76/SUM('[2]21-23 Campus Contract Alloctns'!$I$5:$AP$108)","v":0},{"$f":"$I$5*'[2]21-23 Campus Contract Alloctns'!Z76/SUM('[2]21-23 Campus Contract Alloctns'!$I$5:$AP$108)","v":0},{"$f":"$I$5*'[2]21-23 Campus Contract Alloctns'!AA76/SUM('[2]21-23 Campus Contract Alloctns'!$I$5:$AP$108)","v":0},{"$f":"$I$5*'[2]21-23 Campus Contract Alloctns'!AB76/SUM('[2]21-23 Campus Contract Alloctns'!$I$5:$AP$108)","v":0},{"$f":"$I$5*'[2]21-23 Campus Contract Alloctns'!AC76/SUM('[2]21-23 Campus Contract Alloctns'!$I$5:$AP$108)","v":0},{"$f":"$I$5*'[2]21-23 Campus Contract Alloctns'!AD76/SUM('[2]21-23 Campus Contract Alloctns'!$I$5:$AP$108)","v":0},{"$f":"$I$5*'[2]21-23 Campus Contract Alloctns'!AE76/SUM('[2]21-23 Campus Contract Alloctns'!$I$5:$AP$108)","v":0},{"$f":"$I$5*'[2]21-23 Campus Contract Alloctns'!AF76/SUM('[2]21-23 Campus Contract Alloctns'!$I$5:$AP$108)","v":0},{"$f":"$I$5*'[2]21-23 Campus Contract Alloctns'!AG76/SUM('[2]21-23 Campus Contract Alloctns'!$I$5:$AP$108)","v":0},{"$f":"$I$5*'[2]21-23 Campus Contract Alloctns'!AH76/SUM('[2]21-23 Campus Contract Alloctns'!$I$5:$AP$108)","v":0},{"$f":"$I$5*'[2]21-23 Campus Contract Alloctns'!AI76/SUM('[2]21-23 Campus Contract Alloctns'!$I$5:$AP$108)","v":0},{"$f":"$I$5*'[2]21-23 Campus Contract Alloctns'!AJ76/SUM('[2]21-23 Campus Contract Alloctns'!$I$5:$AP$108)","v":0},{"$f":"$I$5*'[2]21-23 Campus Contract Alloctns'!AK76/SUM('[2]21-23 Campus Contract Alloctns'!$I$5:$AP$108)","v":0},{"$f":"$I$5*'[2]21-23 Campus Contract Alloctns'!AL76/SUM('[2]21-23 Campus Contract Alloctns'!$I$5:$AP$108)","v":0},{"$f":"$I$5*'[2]21-23 Campus Contract Alloctns'!AM76/SUM('[2]21-23 Campus Contract Alloctns'!$I$5:$AP$108)","v":0},{"$f":"$I$5*'[2]21-23 Campus Contract Alloctns'!AN76/SUM('[2]21-23 Campus Contract Alloctns'!$I$5:$AP$108)","v":0},{"$f":"$I$5*'[2]21-23 Campus Contract Alloctns'!AO76/SUM('[2]21-23 Campus Contract Alloctns'!$I$5:$AP$108)","v":0},{"$f":"$I$5*'[2]21-23 Campus Contract Alloctns'!AP76/SUM('[2]21-23 Campus Contract Alloctns'!$I$5:$AP$108)","v":0}]
[null,"353 - State Center for Childhood Deafness and Hearing Loss","353","State Center for Childhood Deafness and Hearing Loss",0,0,0,0,0,{"$f":"$I$5*'[2]21-23 Campus Contract Alloctns'!I77/SUM('[2]21-23 Campus Contract Alloctns'!$I$5:$AP$108)","v":0},{"$f":"$I$5*'[2]21-23 Campus Contract Alloctns'!J77/SUM('[2]21-23 Campus Contract Alloctns'!$I$5:$AP$108)","v":0},{"$f":"$I$5*'[2]21-23 Campus Contract Alloctns'!K77/SUM('[2]21-23 Campus Contract Alloctns'!$I$5:$AP$108)","v":0},{"$f":"$I$5*'[2]21-23 Campus Contract Alloctns'!L77/SUM('[2]21-23 Campus Contract Alloctns'!$I$5:$AP$108)","v":0},{"$f":"$I$5*'[2]21-23 Campus Contract Alloctns'!M77/SUM('[2]21-23 Campus Contract Alloctns'!$I$5:$AP$108)","v":0},{"$f":"$I$5*'[2]21-23 Campus Contract Alloctns'!N77/SUM('[2]21-23 Campus Contract Alloctns'!$I$5:$AP$108)","v":0},{"$f":"$I$5*'[2]21-23 Campus Contract Alloctns'!O77/SUM('[2]21-23 Campus Contract Alloctns'!$I$5:$AP$108)","v":0},{"$f":"$I$5*'[2]21-23 Campus Contract Alloctns'!P77/SUM('[2]21-23 Campus Contract Alloctns'!$I$5:$AP$108)","v":0},{"$f":"$I$5*'[2]21-23 Campus Contract Alloctns'!Q77/SUM('[2]21-23 Campus Contract Alloctns'!$I$5:$AP$108)","v":0},{"$f":"$I$5*'[2]21-23 Campus Contract Alloctns'!R77/SUM('[2]21-23 Campus Contract Alloctns'!$I$5:$AP$108)","v":0},{"$f":"$I$5*'[2]21-23 Campus Contract Alloctns'!S77/SUM('[2]21-23 Campus Contract Alloctns'!$I$5:$AP$108)","v":0},{"$f":"$I$5*'[2]21-23 Campus Contract Alloctns'!T77/SUM('[2]21-23 Campus Contract Alloctns'!$I$5:$AP$108)","v":0},{"$f":"$I$5*'[2]21-23 Campus Contract Alloctns'!U77/SUM('[2]21-23 Campus Contract Alloctns'!$I$5:$AP$108)","v":0},{"$f":"$I$5*'[2]21-23 Campus Contract Alloctns'!V77/SUM('[2]21-23 Campus Contract Alloctns'!$I$5:$AP$108)","v":0},{"$f":"$I$5*'[2]21-23 Campus Contract Alloctns'!W77/SUM('[2]21-23 Campus Contract Alloctns'!$I$5:$AP$108)","v":0},{"$f":"$I$5*'[2]21-23 Campus Contract Alloctns'!X77/SUM('[2]21-23 Campus Contract Alloctns'!$I$5:$AP$108)","v":0},{"$f":"$I$5*'[2]21-23 Campus Contract Alloctns'!Y77/SUM('[2]21-23 Campus Contract Alloctns'!$I$5:$AP$108)","v":0},{"$f":"$I$5*'[2]21-23 Campus Contract Alloctns'!Z77/SUM('[2]21-23 Campus Contract Alloctns'!$I$5:$AP$108)","v":0},{"$f":"$I$5*'[2]21-23 Campus Contract Alloctns'!AA77/SUM('[2]21-23 Campus Contract Alloctns'!$I$5:$AP$108)","v":0},{"$f":"$I$5*'[2]21-23 Campus Contract Alloctns'!AB77/SUM('[2]21-23 Campus Contract Alloctns'!$I$5:$AP$108)","v":0},{"$f":"$I$5*'[2]21-23 Campus Contract Alloctns'!AC77/SUM('[2]21-23 Campus Contract Alloctns'!$I$5:$AP$108)","v":0},{"$f":"$I$5*'[2]21-23 Campus Contract Alloctns'!AD77/SUM('[2]21-23 Campus Contract Alloctns'!$I$5:$AP$108)","v":0},{"$f":"$I$5*'[2]21-23 Campus Contract Alloctns'!AE77/SUM('[2]21-23 Campus Contract Alloctns'!$I$5:$AP$108)","v":0},{"$f":"$I$5*'[2]21-23 Campus Contract Alloctns'!AF77/SUM('[2]21-23 Campus Contract Alloctns'!$I$5:$AP$108)","v":0},{"$f":"$I$5*'[2]21-23 Campus Contract Alloctns'!AG77/SUM('[2]21-23 Campus Contract Alloctns'!$I$5:$AP$108)","v":0},{"$f":"$I$5*'[2]21-23 Campus Contract Alloctns'!AH77/SUM('[2]21-23 Campus Contract Alloctns'!$I$5:$AP$108)","v":0},{"$f":"$I$5*'[2]21-23 Campus Contract Alloctns'!AI77/SUM('[2]21-23 Campus Contract Alloctns'!$I$5:$AP$108)","v":0},{"$f":"$I$5*'[2]21-23 Campus Contract Alloctns'!AJ77/SUM('[2]21-23 Campus Contract Alloctns'!$I$5:$AP$108)","v":0},{"$f":"$I$5*'[2]21-23 Campus Contract Alloctns'!AK77/SUM('[2]21-23 Campus Contract Alloctns'!$I$5:$AP$108)","v":0},{"$f":"$I$5*'[2]21-23 Campus Contract Alloctns'!AL77/SUM('[2]21-23 Campus Contract Alloctns'!$I$5:$AP$108)","v":0},{"$f":"$I$5*'[2]21-23 Campus Contract Alloctns'!AM77/SUM('[2]21-23 Campus Contract Alloctns'!$I$5:$AP$108)","v":0},{"$f":"$I$5*'[2]21-23 Campus Contract Alloctns'!AN77/SUM('[2]21-23 Campus Contract Alloctns'!$I$5:$AP$108)","v":0},{"$f":"$I$5*'[2]21-23 Campus Contract Alloctns'!AO77/SUM('[2]21-23 Campus Contract Alloctns'!$I$5:$AP$108)","v":0},{"$f":"$I$5*'[2]21-23 Campus Contract Alloctns'!AP77/SUM('[2]21-23 Campus Contract Alloctns'!$I$5:$AP$108)","v":0}]
[null,"354 - Workforce Training and Education Coordinating Board","354","Workforce Training and Education Coordinating Board",4.9636821612633879E-4,28,4.9636821612633879E-4,0,0,{"$f":"$I$5*'[2]21-23 Campus Contract Alloctns'!I78/SUM('[2]21-23 Campus Contract Alloctns'!$I$5:$AP$108)","v":0},{"$f":"$I$5*'[2]21-23 Campus Contract Alloctns'!J78/SUM('[2]21-23 Campus Contract Alloctns'!$I$5:$AP$108)","v":0},{"$f":"$I$5*'[2]21-23 Campus Contract Alloctns'!K78/SUM('[2]21-23 Campus Contract Alloctns'!$I$5:$AP$108)","v":0},{"$f":"$I$5*'[2]21-23 Campus Contract Alloctns'!L78/SUM('[2]21-23 Campus Contract Alloctns'!$I$5:$AP$108)","v":0},{"$f":"$I$5*'[2]21-23 Campus Contract Alloctns'!M78/SUM('[2]21-23 Campus Contract Alloctns'!$I$5:$AP$108)","v":0},{"$f":"$I$5*'[2]21-23 Campus Contract Alloctns'!N78/SUM('[2]21-23 Campus Contract Alloctns'!$I$5:$AP$108)","v":0},{"$f":"$I$5*'[2]21-23 Campus Contract Alloctns'!O78/SUM('[2]21-23 Campus Contract Alloctns'!$I$5:$AP$108)","v":0},{"$f":"$I$5*'[2]21-23 Campus Contract Alloctns'!P78/SUM('[2]21-23 Campus Contract Alloctns'!$I$5:$AP$108)","v":0},{"$f":"$I$5*'[2]21-23 Campus Contract Alloctns'!Q78/SUM('[2]21-23 Campus Contract Alloctns'!$I$5:$AP$108)","v":0},{"$f":"$I$5*'[2]21-23 Campus Contract Alloctns'!R78/SUM('[2]21-23 Campus Contract Alloctns'!$I$5:$AP$108)","v":0},{"$f":"$I$5*'[2]21-23 Campus Contract Alloctns'!S78/SUM('[2]21-23 Campus Contract Alloctns'!$I$5:$AP$108)","v":0},{"$f":"$I$5*'[2]21-23 Campus Contract Alloctns'!T78/SUM('[2]21-23 Campus Contract Alloctns'!$I$5:$AP$108)","v":0},{"$f":"$I$5*'[2]21-23 Campus Contract Alloctns'!U78/SUM('[2]21-23 Campus Contract Alloctns'!$I$5:$AP$108)","v":0},{"$f":"$I$5*'[2]21-23 Campus Contract Alloctns'!V78/SUM('[2]21-23 Campus Contract Alloctns'!$I$5:$AP$108)","v":0},{"$f":"$I$5*'[2]21-23 Campus Contract Alloctns'!W78/SUM('[2]21-23 Campus Contract Alloctns'!$I$5:$AP$108)","v":0},{"$f":"$I$5*'[2]21-23 Campus Contract Alloctns'!X78/SUM('[2]21-23 Campus Contract Alloctns'!$I$5:$AP$108)","v":0},{"$f":"$I$5*'[2]21-23 Campus Contract Alloctns'!Y78/SUM('[2]21-23 Campus Contract Alloctns'!$I$5:$AP$108)","v":0},{"$f":"$I$5*'[2]21-23 Campus Contract Alloctns'!Z78/SUM('[2]21-23 Campus Contract Alloctns'!$I$5:$AP$108)","v":0},{"$f":"$I$5*'[2]21-23 Campus Contract Alloctns'!AA78/SUM('[2]21-23 Campus Contract Alloctns'!$I$5:$AP$108)","v":0},{"$f":"$I$5*'[2]21-23 Campus Contract Alloctns'!AB78/SUM('[2]21-23 Campus Contract Alloctns'!$I$5:$AP$108)","v":0},{"$f":"$I$5*'[2]21-23 Campus Contract Alloctns'!AC78/SUM('[2]21-23 Campus Contract Alloctns'!$I$5:$AP$108)","v":0},{"$f":"$I$5*'[2]21-23 Campus Contract Alloctns'!AD78/SUM('[2]21-23 Campus Contract Alloctns'!$I$5:$AP$108)","v":0},{"$f":"$I$5*'[2]21-23 Campus Contract Alloctns'!AE78/SUM('[2]21-23 Campus Contract Alloctns'!$I$5:$AP$108)","v":0},{"$f":"$I$5*'[2]21-23 Campus Contract Alloctns'!AF78/SUM('[2]21-23 Campus Contract Alloctns'!$I$5:$AP$108)","v":0},{"$f":"$I$5*'[2]21-23 Campus Contract Alloctns'!AG78/SUM('[2]21-23 Campus Contract Alloctns'!$I$5:$AP$108)","v":0},{"$f":"$I$5*'[2]21-23 Campus Contract Alloctns'!AH78/SUM('[2]21-23 Campus Contract Alloctns'!$I$5:$AP$108)","v":0},{"$f":"$I$5*'[2]21-23 Campus Contract Alloctns'!AI78/SUM('[2]21-23 Campus Contract Alloctns'!$I$5:$AP$108)","v":0},{"$f":"$I$5*'[2]21-23 Campus Contract Alloctns'!AJ78/SUM('[2]21-23 Campus Contract Alloctns'!$I$5:$AP$108)","v":0},{"$f":"$I$5*'[2]21-23 Campus Contract Alloctns'!AK78/SUM('[2]21-23 Campus Contract Alloctns'!$I$5:$AP$108)","v":0},{"$f":"$I$5*'[2]21-23 Campus Contract Alloctns'!AL78/SUM('[2]21-23 Campus Contract Alloctns'!$I$5:$AP$108)","v":0},{"$f":"$I$5*'[2]21-23 Campus Contract Alloctns'!AM78/SUM('[2]21-23 Campus Contract Alloctns'!$I$5:$AP$108)","v":0},{"$f":"$I$5*'[2]21-23 Campus Contract Alloctns'!AN78/SUM('[2]21-23 Campus Contract Alloctns'!$I$5:$AP$108)","v":0},{"$f":"$I$5*'[2]21-23 Campus Contract Alloctns'!AO78/SUM('[2]21-23 Campus Contract Alloctns'!$I$5:$AP$108)","v":0},{"$f":"$I$5*'[2]21-23 Campus Contract Alloctns'!AP78/SUM('[2]21-23 Campus Contract Alloctns'!$I$5:$AP$108)","v":0}]
[null,"355 - Department of Archaeology and Historic Preservation","355","Department of Archaeology and Historic Preservation",2.3273083746846207E-3,20,3.5454872580452775E-4,0,1.972759648880093E-3,{"$f":"$I$5*'[2]21-23 Campus Contract Alloctns'!I79/SUM('[2]21-23 Campus Contract Alloctns'!$I$5:$AP$108)","v":0},{"$f":"$I$5*'[2]21-23 Campus Contract Alloctns'!J79/SUM('[2]21-23 Campus Contract Alloctns'!$I$5:$AP$108)","v":0},{"$f":"$I$5*'[2]21-23 Campus Contract Alloctns'!K79/SUM('[2]21-23 Campus Contract Alloctns'!$I$5:$AP$108)","v":0},{"$f":"$I$5*'[2]21-23 Campus Contract Alloctns'!L79/SUM('[2]21-23 Campus Contract Alloctns'!$I$5:$AP$108)","v":0},{"$f":"$I$5*'[2]21-23 Campus Contract Alloctns'!M79/SUM('[2]21-23 Campus Contract Alloctns'!$I$5:$AP$108)","v":0},{"$f":"$I$5*'[2]21-23 Campus Contract Alloctns'!N79/SUM('[2]21-23 Campus Contract Alloctns'!$I$5:$AP$108)","v":0},{"$f":"$I$5*'[2]21-23 Campus Contract Alloctns'!O79/SUM('[2]21-23 Campus Contract Alloctns'!$I$5:$AP$108)","v":0},{"$f":"$I$5*'[2]21-23 Campus Contract Alloctns'!P79/SUM('[2]21-23 Campus Contract Alloctns'!$I$5:$AP$108)","v":0},{"$f":"$I$5*'[2]21-23 Campus Contract Alloctns'!Q79/SUM('[2]21-23 Campus Contract Alloctns'!$I$5:$AP$108)","v":0},{"$f":"$I$5*'[2]21-23 Campus Contract Alloctns'!R79/SUM('[2]21-23 Campus Contract Alloctns'!$I$5:$AP$108)","v":0},{"$f":"$I$5*'[2]21-23 Campus Contract Alloctns'!S79/SUM('[2]21-23 Campus Contract Alloctns'!$I$5:$AP$108)","v":0},{"$f":"$I$5*'[2]21-23 Campus Contract Alloctns'!T79/SUM('[2]21-23 Campus Contract Alloctns'!$I$5:$AP$108)","v":0},{"$f":"$I$5*'[2]21-23 Campus Contract Alloctns'!U79/SUM('[2]21-23 Campus Contract Alloctns'!$I$5:$AP$108)","v":0},{"$f":"$I$5*'[2]21-23 Campus Contract Alloctns'!V79/SUM('[2]21-23 Campus Contract Alloctns'!$I$5:$AP$108)","v":0},{"$f":"$I$5*'[2]21-23 Campus Contract Alloctns'!W79/SUM('[2]21-23 Campus Contract Alloctns'!$I$5:$AP$108)","v":0},{"$f":"$I$5*'[2]21-23 Campus Contract Alloctns'!X79/SUM('[2]21-23 Campus Contract Alloctns'!$I$5:$AP$108)","v":0},{"$f":"$I$5*'[2]21-23 Campus Contract Alloctns'!Y79/SUM('[2]21-23 Campus Contract Alloctns'!$I$5:$AP$108)","v":0},{"$f":"$I$5*'[2]21-23 Campus Contract Alloctns'!Z79/SUM('[2]21-23 Campus Contract Alloctns'!$I$5:$AP$108)","v":0},{"$f":"$I$5*'[2]21-23 Campus Contract Alloctns'!AA79/SUM('[2]21-23 Campus Contract Alloctns'!$I$5:$AP$108)","v":0},{"$f":"$I$5*'[2]21-23 Campus Contract Alloctns'!AB79/SUM('[2]21-23 Campus Contract Alloctns'!$I$5:$AP$108)","v":1.9727596488800935E-3},{"$f":"$I$5*'[2]21-23 Campus Contract Alloctns'!AC79/SUM('[2]21-23 Campus Contract Alloctns'!$I$5:$AP$108)","v":0},{"$f":"$I$5*'[2]21-23 Campus Contract Alloctns'!AD79/SUM('[2]21-23 Campus Contract Alloctns'!$I$5:$AP$108)","v":0},{"$f":"$I$5*'[2]21-23 Campus Contract Alloctns'!AE79/SUM('[2]21-23 Campus Contract Alloctns'!$I$5:$AP$108)","v":0},{"$f":"$I$5*'[2]21-23 Campus Contract Alloctns'!AF79/SUM('[2]21-23 Campus Contract Alloctns'!$I$5:$AP$108)","v":0},{"$f":"$I$5*'[2]21-23 Campus Contract Alloctns'!AG79/SUM('[2]21-23 Campus Contract Alloctns'!$I$5:$AP$108)","v":0},{"$f":"$I$5*'[2]21-23 Campus Contract Alloctns'!AH79/SUM('[2]21-23 Campus Contract Alloctns'!$I$5:$AP$108)","v":0},{"$f":"$I$5*'[2]21-23 Campus Contract Alloctns'!AI79/SUM('[2]21-23 Campus Contract Alloctns'!$I$5:$AP$108)","v":0},{"$f":"$I$5*'[2]21-23 Campus Contract Alloctns'!AJ79/SUM('[2]21-23 Campus Contract Alloctns'!$I$5:$AP$108)","v":0},{"$f":"$I$5*'[2]21-23 Campus Contract Alloctns'!AK79/SUM('[2]21-23 Campus Contract Alloctns'!$I$5:$AP$108)","v":0},{"$f":"$I$5*'[2]21-23 Campus Contract Alloctns'!AL79/SUM('[2]21-23 Campus Contract Alloctns'!$I$5:$AP$108)","v":0},{"$f":"$I$5*'[2]21-23 Campus Contract Alloctns'!AM79/SUM('[2]21-23 Campus Contract Alloctns'!$I$5:$AP$108)","v":0},{"$f":"$I$5*'[2]21-23 Campus Contract Alloctns'!AN79/SUM('[2]21-23 Campus Contract Alloctns'!$I$5:$AP$108)","v":0},{"$f":"$I$5*'[2]21-23 Campus Contract Alloctns'!AO79/SUM('[2]21-23 Campus Contract Alloctns'!$I$5:$AP$108)","v":0},{"$f":"$I$5*'[2]21-23 Campus Contract Alloctns'!AP79/SUM('[2]21-23 Campus Contract Alloctns'!$I$5:$AP$108)","v":0}]
[null,"357 - Department of Early Learning","357","Department of Early Learning",0,0,0,0,0,{"$f":"$I$5*'[2]21-23 Campus Contract Alloctns'!I80/SUM('[2]21-23 Campus Contract Alloctns'!$I$5:$AP$108)","v":0},{"$f":"$I$5*'[2]21-23 Campus Contract Alloctns'!J80/SUM('[2]21-23 Campus Contract Alloctns'!$I$5:$AP$108)","v":0},{"$f":"$I$5*'[2]21-23 Campus Contract Alloctns'!K80/SUM('[2]21-23 Campus Contract Alloctns'!$I$5:$AP$108)","v":0},{"$f":"$I$5*'[2]21-23 Campus Contract Alloctns'!L80/SUM('[2]21-23 Campus Contract Alloctns'!$I$5:$AP$108)","v":0},{"$f":"$I$5*'[2]21-23 Campus Contract Alloctns'!M80/SUM('[2]21-23 Campus Contract Alloctns'!$I$5:$AP$108)","v":0},{"$f":"$I$5*'[2]21-23 Campus Contract Alloctns'!N80/SUM('[2]21-23 Campus Contract Alloctns'!$I$5:$AP$108)","v":0},{"$f":"$I$5*'[2]21-23 Campus Contract Alloctns'!O80/SUM('[2]21-23 Campus Contract Alloctns'!$I$5:$AP$108)","v":0},{"$f":"$I$5*'[2]21-23 Campus Contract Alloctns'!P80/SUM('[2]21-23 Campus Contract Alloctns'!$I$5:$AP$108)","v":0},{"$f":"$I$5*'[2]21-23 Campus Contract Alloctns'!Q80/SUM('[2]21-23 Campus Contract Alloctns'!$I$5:$AP$108)","v":0},{"$f":"$I$5*'[2]21-23 Campus Contract Alloctns'!R80/SUM('[2]21-23 Campus Contract Alloctns'!$I$5:$AP$108)","v":0},{"$f":"$I$5*'[2]21-23 Campus Contract Alloctns'!S80/SUM('[2]21-23 Campus Contract Alloctns'!$I$5:$AP$108)","v":0},{"$f":"$I$5*'[2]21-23 Campus Contract Alloctns'!T80/SUM('[2]21-23 Campus Contract Alloctns'!$I$5:$AP$108)","v":0},{"$f":"$I$5*'[2]21-23 Campus Contract Alloctns'!U80/SUM('[2]21-23 Campus Contract Alloctns'!$I$5:$AP$108)","v":0},{"$f":"$I$5*'[2]21-23 Campus Contract Alloctns'!V80/SUM('[2]21-23 Campus Contract Alloctns'!$I$5:$AP$108)","v":0},{"$f":"$I$5*'[2]21-23 Campus Contract Alloctns'!W80/SUM('[2]21-23 Campus Contract Alloctns'!$I$5:$AP$108)","v":0},{"$f":"$I$5*'[2]21-23 Campus Contract Alloctns'!X80/SUM('[2]21-23 Campus Contract Alloctns'!$I$5:$AP$108)","v":0},{"$f":"$I$5*'[2]21-23 Campus Contract Alloctns'!Y80/SUM('[2]21-23 Campus Contract Alloctns'!$I$5:$AP$108)","v":0},{"$f":"$I$5*'[2]21-23 Campus Contract Alloctns'!Z80/SUM('[2]21-23 Campus Contract Alloctns'!$I$5:$AP$108)","v":0},{"$f":"$I$5*'[2]21-23 Campus Contract Alloctns'!AA80/SUM('[2]21-23 Campus Contract Alloctns'!$I$5:$AP$108)","v":0},{"$f":"$I$5*'[2]21-23 Campus Contract Alloctns'!AB80/SUM('[2]21-23 Campus Contract Alloctns'!$I$5:$AP$108)","v":0},{"$f":"$I$5*'[2]21-23 Campus Contract Alloctns'!AC80/SUM('[2]21-23 Campus Contract Alloctns'!$I$5:$AP$108)","v":0},{"$f":"$I$5*'[2]21-23 Campus Contract Alloctns'!AD80/SUM('[2]21-23 Campus Contract Alloctns'!$I$5:$AP$108)","v":0},{"$f":"$I$5*'[2]21-23 Campus Contract Alloctns'!AE80/SUM('[2]21-23 Campus Contract Alloctns'!$I$5:$AP$108)","v":0},{"$f":"$I$5*'[2]21-23 Campus Contract Alloctns'!AF80/SUM('[2]21-23 Campus Contract Alloctns'!$I$5:$AP$108)","v":0},{"$f":"$I$5*'[2]21-23 Campus Contract Alloctns'!AG80/SUM('[2]21-23 Campus Contract Alloctns'!$I$5:$AP$108)","v":0},{"$f":"$I$5*'[2]21-23 Campus Contract Alloctns'!AH80/SUM('[2]21-23 Campus Contract Alloctns'!$I$5:$AP$108)","v":0},{"$f":"$I$5*'[2]21-23 Campus Contract Alloctns'!AI80/SUM('[2]21-23 Campus Contract Alloctns'!$I$5:$AP$108)","v":0},{"$f":"$I$5*'[2]21-23 Campus Contract Alloctns'!AJ80/SUM('[2]21-23 Campus Contract Alloctns'!$I$5:$AP$108)","v":0},{"$f":"$I$5*'[2]21-23 Campus Contract Alloctns'!AK80/SUM('[2]21-23 Campus Contract Alloctns'!$I$5:$AP$108)","v":0},{"$f":"$I$5*'[2]21-23 Campus Contract Alloctns'!AL80/SUM('[2]21-23 Campus Contract Alloctns'!$I$5:$AP$108)","v":0},{"$f":"$I$5*'[2]21-23 Campus Contract Alloctns'!AM80/SUM('[2]21-23 Campus Contract Alloctns'!$I$5:$AP$108)","v":0},{"$f":"$I$5*'[2]21-23 Campus Contract Alloctns'!AN80/SUM('[2]21-23 Campus Contract Alloctns'!$I$5:$AP$108)","v":0},{"$f":"$I$5*'[2]21-23 Campus Contract Alloctns'!AO80/SUM('[2]21-23 Campus Contract Alloctns'!$I$5:$AP$108)","v":0},{"$f":"$I$5*'[2]21-23 Campus Contract Alloctns'!AP80/SUM('[2]21-23 Campus Contract Alloctns'!$I$5:$AP$108)","v":0}]
[null,"359 - WA Charter School Commission","359","WA Charter School Commission",0,0,0,0,0,{"$f":"$I$5*'[2]21-23 Campus Contract Alloctns'!I81/SUM('[2]21-23 Campus Contract Alloctns'!$I$5:$AP$108)","v":0},{"$f":"$I$5*'[2]21-23 Campus Contract Alloctns'!J81/SUM('[2]21-23 Campus Contract Alloctns'!$I$5:$AP$108)","v":0},{"$f":"$I$5*'[2]21-23 Campus Contract Alloctns'!K81/SUM('[2]21-23 Campus Contract Alloctns'!$I$5:$AP$108)","v":0},{"$f":"$I$5*'[2]21-23 Campus Contract Alloctns'!L81/SUM('[2]21-23 Campus Contract Alloctns'!$I$5:$AP$108)","v":0},{"$f":"$I$5*'[2]21-23 Campus Contract Alloctns'!M81/SUM('[2]21-23 Campus Contract Alloctns'!$I$5:$AP$108)","v":0},{"$f":"$I$5*'[2]21-23 Campus Contract Alloctns'!N81/SUM('[2]21-23 Campus Contract Alloctns'!$I$5:$AP$108)","v":0},{"$f":"$I$5*'[2]21-23 Campus Contract Alloctns'!O81/SUM('[2]21-23 Campus Contract Alloctns'!$I$5:$AP$108)","v":0},{"$f":"$I$5*'[2]21-23 Campus Contract Alloctns'!P81/SUM('[2]21-23 Campus Contract Alloctns'!$I$5:$AP$108)","v":0},{"$f":"$I$5*'[2]21-23 Campus Contract Alloctns'!Q81/SUM('[2]21-23 Campus Contract Alloctns'!$I$5:$AP$108)","v":0},{"$f":"$I$5*'[2]21-23 Campus Contract Alloctns'!R81/SUM('[2]21-23 Campus Contract Alloctns'!$I$5:$AP$108)","v":0},{"$f":"$I$5*'[2]21-23 Campus Contract Alloctns'!S81/SUM('[2]21-23 Campus Contract Alloctns'!$I$5:$AP$108)","v":0},{"$f":"$I$5*'[2]21-23 Campus Contract Alloctns'!T81/SUM('[2]21-23 Campus Contract Alloctns'!$I$5:$AP$108)","v":0},{"$f":"$I$5*'[2]21-23 Campus Contract Alloctns'!U81/SUM('[2]21-23 Campus Contract Alloctns'!$I$5:$AP$108)","v":0},{"$f":"$I$5*'[2]21-23 Campus Contract Alloctns'!V81/SUM('[2]21-23 Campus Contract Alloctns'!$I$5:$AP$108)","v":0},{"$f":"$I$5*'[2]21-23 Campus Contract Alloctns'!W81/SUM('[2]21-23 Campus Contract Alloctns'!$I$5:$AP$108)","v":0},{"$f":"$I$5*'[2]21-23 Campus Contract Alloctns'!X81/SUM('[2]21-23 Campus Contract Alloctns'!$I$5:$AP$108)","v":0},{"$f":"$I$5*'[2]21-23 Campus Contract Alloctns'!Y81/SUM('[2]21-23 Campus Contract Alloctns'!$I$5:$AP$108)","v":0},{"$f":"$I$5*'[2]21-23 Campus Contract Alloctns'!Z81/SUM('[2]21-23 Campus Contract Alloctns'!$I$5:$AP$108)","v":0},{"$f":"$I$5*'[2]21-23 Campus Contract Alloctns'!AA81/SUM('[2]21-23 Campus Contract Alloctns'!$I$5:$AP$108)","v":0},{"$f":"$I$5*'[2]21-23 Campus Contract Alloctns'!AB81/SUM('[2]21-23 Campus Contract Alloctns'!$I$5:$AP$108)","v":0},{"$f":"$I$5*'[2]21-23 Campus Contract Alloctns'!AC81/SUM('[2]21-23 Campus Contract Alloctns'!$I$5:$AP$108)","v":0},{"$f":"$I$5*'[2]21-23 Campus Contract Alloctns'!AD81/SUM('[2]21-23 Campus Contract Alloctns'!$I$5:$AP$108)","v":0},{"$f":"$I$5*'[2]21-23 Campus Contract Alloctns'!AE81/SUM('[2]21-23 Campus Contract Alloctns'!$I$5:$AP$108)","v":0},{"$f":"$I$5*'[2]21-23 Campus Contract Alloctns'!AF81/SUM('[2]21-23 Campus Contract Alloctns'!$I$5:$AP$108)","v":0},{"$f":"$I$5*'[2]21-23 Campus Contract Alloctns'!AG81/SUM('[2]21-23 Campus Contract Alloctns'!$I$5:$AP$108)","v":0},{"$f":"$I$5*'[2]21-23 Campus Contract Alloctns'!AH81/SUM('[2]21-23 Campus Contract Alloctns'!$I$5:$AP$108)","v":0},{"$f":"$I$5*'[2]21-23 Campus Contract Alloctns'!AI81/SUM('[2]21-23 Campus Contract Alloctns'!$I$5:$AP$108)","v":0},{"$f":"$I$5*'[2]21-23 Campus Contract Alloctns'!AJ81/SUM('[2]21-23 Campus Contract Alloctns'!$I$5:$AP$108)","v":0},{"$f":"$I$5*'[2]21-23 Campus Contract Alloctns'!AK81/SUM('[2]21-23 Campus Contract Alloctns'!$I$5:$AP$108)","v":0},{"$f":"$I$5*'[2]21-23 Campus Contract Alloctns'!AL81/SUM('[2]21-23 Campus Contract Alloctns'!$I$5:$AP$108)","v":0},{"$f":"$I$5*'[2]21-23 Campus Contract Alloctns'!AM81/SUM('[2]21-23 Campus Contract Alloctns'!$I$5:$AP$108)","v":0},{"$f":"$I$5*'[2]21-23 Campus Contract Alloctns'!AN81/SUM('[2]21-23 Campus Contract Alloctns'!$I$5:$AP$108)","v":0},{"$f":"$I$5*'[2]21-23 Campus Contract Alloctns'!AO81/SUM('[2]21-23 Campus Contract Alloctns'!$I$5:$AP$108)","v":0},{"$f":"$I$5*'[2]21-23 Campus Contract Alloctns'!AP81/SUM('[2]21-23 Campus Contract Alloctns'!$I$5:$AP$108)","v":0}]
[null,"360 - University of Washington","360","University of Washington",3.9000359838498049E-4,22,3.9000359838498049E-4,0,0,{"$f":"$I$5*'[2]21-23 Campus Contract Alloctns'!I82/SUM('[2]21-23 Campus Contract Alloctns'!$I$5:$AP$108)","v":0},{"$f":"$I$5*'[2]21-23 Campus Contract Alloctns'!J82/SUM('[2]21-23 Campus Contract Alloctns'!$I$5:$AP$108)","v":0},{"$f":"$I$5*'[2]21-23 Campus Contract Alloctns'!K82/SUM('[2]21-23 Campus Contract Alloctns'!$I$5:$AP$108)","v":0},{"$f":"$I$5*'[2]21-23 Campus Contract Alloctns'!L82/SUM('[2]21-23 Campus Contract Alloctns'!$I$5:$AP$108)","v":0},{"$f":"$I$5*'[2]21-23 Campus Contract Alloctns'!M82/SUM('[2]21-23 Campus Contract Alloctns'!$I$5:$AP$108)","v":0},{"$f":"$I$5*'[2]21-23 Campus Contract Alloctns'!N82/SUM('[2]21-23 Campus Contract Alloctns'!$I$5:$AP$108)","v":0},{"$f":"$I$5*'[2]21-23 Campus Contract Alloctns'!O82/SUM('[2]21-23 Campus Contract Alloctns'!$I$5:$AP$108)","v":0},{"$f":"$I$5*'[2]21-23 Campus Contract Alloctns'!P82/SUM('[2]21-23 Campus Contract Alloctns'!$I$5:$AP$108)","v":0},{"$f":"$I$5*'[2]21-23 Campus Contract Alloctns'!Q82/SUM('[2]21-23 Campus Contract Alloctns'!$I$5:$AP$108)","v":0},{"$f":"$I$5*'[2]21-23 Campus Contract Alloctns'!R82/SUM('[2]21-23 Campus Contract Alloctns'!$I$5:$AP$108)","v":0},{"$f":"$I$5*'[2]21-23 Campus Contract Alloctns'!S82/SUM('[2]21-23 Campus Contract Alloctns'!$I$5:$AP$108)","v":0},{"$f":"$I$5*'[2]21-23 Campus Contract Alloctns'!T82/SUM('[2]21-23 Campus Contract Alloctns'!$I$5:$AP$108)","v":0},{"$f":"$I$5*'[2]21-23 Campus Contract Alloctns'!U82/SUM('[2]21-23 Campus Contract Alloctns'!$I$5:$AP$108)","v":0},{"$f":"$I$5*'[2]21-23 Campus Contract Alloctns'!V82/SUM('[2]21-23 Campus Contract Alloctns'!$I$5:$AP$108)","v":0},{"$f":"$I$5*'[2]21-23 Campus Contract Alloctns'!W82/SUM('[2]21-23 Campus Contract Alloctns'!$I$5:$AP$108)","v":0},{"$f":"$I$5*'[2]21-23 Campus Contract Alloctns'!X82/SUM('[2]21-23 Campus Contract Alloctns'!$I$5:$AP$108)","v":0},{"$f":"$I$5*'[2]21-23 Campus Contract Alloctns'!Y82/SUM('[2]21-23 Campus Contract Alloctns'!$I$5:$AP$108)","v":0},{"$f":"$I$5*'[2]21-23 Campus Contract Alloctns'!Z82/SUM('[2]21-23 Campus Contract Alloctns'!$I$5:$AP$108)","v":0},{"$f":"$I$5*'[2]21-23 Campus Contract Alloctns'!AA82/SUM('[2]21-23 Campus Contract Alloctns'!$I$5:$AP$108)","v":0},{"$f":"$I$5*'[2]21-23 Campus Contract Alloctns'!AB82/SUM('[2]21-23 Campus Contract Alloctns'!$I$5:$AP$108)","v":0},{"$f":"$I$5*'[2]21-23 Campus Contract Alloctns'!AC82/SUM('[2]21-23 Campus Contract Alloctns'!$I$5:$AP$108)","v":0},{"$f":"$I$5*'[2]21-23 Campus Contract Alloctns'!AD82/SUM('[2]21-23 Campus Contract Alloctns'!$I$5:$AP$108)","v":0},{"$f":"$I$5*'[2]21-23 Campus Contract Alloctns'!AE82/SUM('[2]21-23 Campus Contract Alloctns'!$I$5:$AP$108)","v":0},{"$f":"$I$5*'[2]21-23 Campus Contract Alloctns'!AF82/SUM('[2]21-23 Campus Contract Alloctns'!$I$5:$AP$108)","v":0},{"$f":"$I$5*'[2]21-23 Campus Contract Alloctns'!AG82/SUM('[2]21-23 Campus Contract Alloctns'!$I$5:$AP$108)","v":0},{"$f":"$I$5*'[2]21-23 Campus Contract Alloctns'!AH82/SUM('[2]21-23 Campus Contract Alloctns'!$I$5:$AP$108)","v":0},{"$f":"$I$5*'[2]21-23 Campus Contract Alloctns'!AI82/SUM('[2]21-23 Campus Contract Alloctns'!$I$5:$AP$108)","v":0},{"$f":"$I$5*'[2]21-23 Campus Contract Alloctns'!AJ82/SUM('[2]21-23 Campus Contract Alloctns'!$I$5:$AP$108)","v":0},{"$f":"$I$5*'[2]21-23 Campus Contract Alloctns'!AK82/SUM('[2]21-23 Campus Contract Alloctns'!$I$5:$AP$108)","v":0},{"$f":"$I$5*'[2]21-23 Campus Contract Alloctns'!AL82/SUM('[2]21-23 Campus Contract Alloctns'!$I$5:$AP$108)","v":0},{"$f":"$I$5*'[2]21-23 Campus Contract Alloctns'!AM82/SUM('[2]21-23 Campus Contract Alloctns'!$I$5:$AP$108)","v":0},{"$f":"$I$5*'[2]21-23 Campus Contract Alloctns'!AN82/SUM('[2]21-23 Campus Contract Alloctns'!$I$5:$AP$108)","v":0},{"$f":"$I$5*'[2]21-23 Campus Contract Alloctns'!AO82/SUM('[2]21-23 Campus Contract Alloctns'!$I$5:$AP$108)","v":0},{"$f":"$I$5*'[2]21-23 Campus Contract Alloctns'!AP82/SUM('[2]21-23 Campus Contract Alloctns'!$I$5:$AP$108)","v":0}]
[null,"365 - Washington State University","365","Washington State University",1.0813736137038096E-3,61,1.0813736137038096E-3,0,0,{"$f":"$I$5*'[2]21-23 Campus Contract Alloctns'!I83/SUM('[2]21-23 Campus Contract Alloctns'!$I$5:$AP$108)","v":0},{"$f":"$I$5*'[2]21-23 Campus Contract Alloctns'!J83/SUM('[2]21-23 Campus Contract Alloctns'!$I$5:$AP$108)","v":0},{"$f":"$I$5*'[2]21-23 Campus Contract Alloctns'!K83/SUM('[2]21-23 Campus Contract Alloctns'!$I$5:$AP$108)","v":0},{"$f":"$I$5*'[2]21-23 Campus Contract Alloctns'!L83/SUM('[2]21-23 Campus Contract Alloctns'!$I$5:$AP$108)","v":0},{"$f":"$I$5*'[2]21-23 Campus Contract Alloctns'!M83/SUM('[2]21-23 Campus Contract Alloctns'!$I$5:$AP$108)","v":0},{"$f":"$I$5*'[2]21-23 Campus Contract Alloctns'!N83/SUM('[2]21-23 Campus Contract Alloctns'!$I$5:$AP$108)","v":0},{"$f":"$I$5*'[2]21-23 Campus Contract Alloctns'!O83/SUM('[2]21-23 Campus Contract Alloctns'!$I$5:$AP$108)","v":0},{"$f":"$I$5*'[2]21-23 Campus Contract Alloctns'!P83/SUM('[2]21-23 Campus Contract Alloctns'!$I$5:$AP$108)","v":0},{"$f":"$I$5*'[2]21-23 Campus Contract Alloctns'!Q83/SUM('[2]21-23 Campus Contract Alloctns'!$I$5:$AP$108)","v":0},{"$f":"$I$5*'[2]21-23 Campus Contract Alloctns'!R83/SUM('[2]21-23 Campus Contract Alloctns'!$I$5:$AP$108)","v":0},{"$f":"$I$5*'[2]21-23 Campus Contract Alloctns'!S83/SUM('[2]21-23 Campus Contract Alloctns'!$I$5:$AP$108)","v":0},{"$f":"$I$5*'[2]21-23 Campus Contract Alloctns'!T83/SUM('[2]21-23 Campus Contract Alloctns'!$I$5:$AP$108)","v":0},{"$f":"$I$5*'[2]21-23 Campus Contract Alloctns'!U83/SUM('[2]21-23 Campus Contract Alloctns'!$I$5:$AP$108)","v":0},{"$f":"$I$5*'[2]21-23 Campus Contract Alloctns'!V83/SUM('[2]21-23 Campus Contract Alloctns'!$I$5:$AP$108)","v":0},{"$f":"$I$5*'[2]21-23 Campus Contract Alloctns'!W83/SUM('[2]21-23 Campus Contract Alloctns'!$I$5:$AP$108)","v":0},{"$f":"$I$5*'[2]21-23 Campus Contract Alloctns'!X83/SUM('[2]21-23 Campus Contract Alloctns'!$I$5:$AP$108)","v":0},{"$f":"$I$5*'[2]21-23 Campus Contract Alloctns'!Y83/SUM('[2]21-23 Campus Contract Alloctns'!$I$5:$AP$108)","v":0},{"$f":"$I$5*'[2]21-23 Campus Contract Alloctns'!Z83/SUM('[2]21-23 Campus Contract Alloctns'!$I$5:$AP$108)","v":0},{"$f":"$I$5*'[2]21-23 Campus Contract Alloctns'!AA83/SUM('[2]21-23 Campus Contract Alloctns'!$I$5:$AP$108)","v":0},{"$f":"$I$5*'[2]21-23 Campus Contract Alloctns'!AB83/SUM('[2]21-23 Campus Contract Alloctns'!$I$5:$AP$108)","v":0},{"$f":"$I$5*'[2]21-23 Campus Contract Alloctns'!AC83/SUM('[2]21-23 Campus Contract Alloctns'!$I$5:$AP$108)","v":0},{"$f":"$I$5*'[2]21-23 Campus Contract Alloctns'!AD83/SUM('[2]21-23 Campus Contract Alloctns'!$I$5:$AP$108)","v":0},{"$f":"$I$5*'[2]21-23 Campus Contract Alloctns'!AE83/SUM('[2]21-23 Campus Contract Alloctns'!$I$5:$AP$108)","v":0},{"$f":"$I$5*'[2]21-23 Campus Contract Alloctns'!AF83/SUM('[2]21-23 Campus Contract Alloctns'!$I$5:$AP$108)","v":0},{"$f":"$I$5*'[2]21-23 Campus Contract Alloctns'!AG83/SUM('[2]21-23 Campus Contract Alloctns'!$I$5:$AP$108)","v":0},{"$f":"$I$5*'[2]21-23 Campus Contract Alloctns'!AH83/SUM('[2]21-23 Campus Contract Alloctns'!$I$5:$AP$108)","v":0},{"$f":"$I$5*'[2]21-23 Campus Contract Alloctns'!AI83/SUM('[2]21-23 Campus Contract Alloctns'!$I$5:$AP$108)","v":0},{"$f":"$I$5*'[2]21-23 Campus Contract Alloctns'!AJ83/SUM('[2]21-23 Campus Contract Alloctns'!$I$5:$AP$108)","v":0},{"$f":"$I$5*'[2]21-23 Campus Contract Alloctns'!AK83/SUM('[2]21-23 Campus Contract Alloctns'!$I$5:$AP$108)","v":0},{"$f":"$I$5*'[2]21-23 Campus Contract Alloctns'!AL83/SUM('[2]21-23 Campus Contract Alloctns'!$I$5:$AP$108)","v":0},{"$f":"$I$5*'[2]21-23 Campus Contract Alloctns'!AM83/SUM('[2]21-23 Campus Contract Alloctns'!$I$5:$AP$108)","v":0},{"$f":"$I$5*'[2]21-23 Campus Contract Alloctns'!AN83/SUM('[2]21-23 Campus Contract Alloctns'!$I$5:$AP$108)","v":0},{"$f":"$I$5*'[2]21-23 Campus Contract Alloctns'!AO83/SUM('[2]21-23 Campus Contract Alloctns'!$I$5:$AP$108)","v":0},{"$f":"$I$5*'[2]21-23 Campus Contract Alloctns'!AP83/SUM('[2]21-23 Campus Contract Alloctns'!$I$5:$AP$108)","v":0}]
[null,"370 - Eastern Washington University","370","Eastern Washington University",0,0,0,0,0,{"$f":"$I$5*'[2]21-23 Campus Contract Alloctns'!I84/SUM('[2]21-23 Campus Contract Alloctns'!$I$5:$AP$108)","v":0},{"$f":"$I$5*'[2]21-23 Campus Contract Alloctns'!J84/SUM('[2]21-23 Campus Contract Alloctns'!$I$5:$AP$108)","v":0},{"$f":"$I$5*'[2]21-23 Campus Contract Alloctns'!K84/SUM('[2]21-23 Campus Contract Alloctns'!$I$5:$AP$108)","v":0},{"$f":"$I$5*'[2]21-23 Campus Contract Alloctns'!L84/SUM('[2]21-23 Campus Contract Alloctns'!$I$5:$AP$108)","v":0},{"$f":"$I$5*'[2]21-23 Campus Contract Alloctns'!M84/SUM('[2]21-23 Campus Contract Alloctns'!$I$5:$AP$108)","v":0},{"$f":"$I$5*'[2]21-23 Campus Contract Alloctns'!N84/SUM('[2]21-23 Campus Contract Alloctns'!$I$5:$AP$108)","v":0},{"$f":"$I$5*'[2]21-23 Campus Contract Alloctns'!O84/SUM('[2]21-23 Campus Contract Alloctns'!$I$5:$AP$108)","v":0},{"$f":"$I$5*'[2]21-23 Campus Contract Alloctns'!P84/SUM('[2]21-23 Campus Contract Alloctns'!$I$5:$AP$108)","v":0},{"$f":"$I$5*'[2]21-23 Campus Contract Alloctns'!Q84/SUM('[2]21-23 Campus Contract Alloctns'!$I$5:$AP$108)","v":0},{"$f":"$I$5*'[2]21-23 Campus Contract Alloctns'!R84/SUM('[2]21-23 Campus Contract Alloctns'!$I$5:$AP$108)","v":0},{"$f":"$I$5*'[2]21-23 Campus Contract Alloctns'!S84/SUM('[2]21-23 Campus Contract Alloctns'!$I$5:$AP$108)","v":0},{"$f":"$I$5*'[2]21-23 Campus Contract Alloctns'!T84/SUM('[2]21-23 Campus Contract Alloctns'!$I$5:$AP$108)","v":0},{"$f":"$I$5*'[2]21-23 Campus Contract Alloctns'!U84/SUM('[2]21-23 Campus Contract Alloctns'!$I$5:$AP$108)","v":0},{"$f":"$I$5*'[2]21-23 Campus Contract Alloctns'!V84/SUM('[2]21-23 Campus Contract Alloctns'!$I$5:$AP$108)","v":0},{"$f":"$I$5*'[2]21-23 Campus Contract Alloctns'!W84/SUM('[2]21-23 Campus Contract Alloctns'!$I$5:$AP$108)","v":0},{"$f":"$I$5*'[2]21-23 Campus Contract Alloctns'!X84/SUM('[2]21-23 Campus Contract Alloctns'!$I$5:$AP$108)","v":0},{"$f":"$I$5*'[2]21-23 Campus Contract Alloctns'!Y84/SUM('[2]21-23 Campus Contract Alloctns'!$I$5:$AP$108)","v":0},{"$f":"$I$5*'[2]21-23 Campus Contract Alloctns'!Z84/SUM('[2]21-23 Campus Contract Alloctns'!$I$5:$AP$108)","v":0},{"$f":"$I$5*'[2]21-23 Campus Contract Alloctns'!AA84/SUM('[2]21-23 Campus Contract Alloctns'!$I$5:$AP$108)","v":0},{"$f":"$I$5*'[2]21-23 Campus Contract Alloctns'!AB84/SUM('[2]21-23 Campus Contract Alloctns'!$I$5:$AP$108)","v":0},{"$f":"$I$5*'[2]21-23 Campus Contract Alloctns'!AC84/SUM('[2]21-23 Campus Contract Alloctns'!$I$5:$AP$108)","v":0},{"$f":"$I$5*'[2]21-23 Campus Contract Alloctns'!AD84/SUM('[2]21-23 Campus Contract Alloctns'!$I$5:$AP$108)","v":0},{"$f":"$I$5*'[2]21-23 Campus Contract Alloctns'!AE84/SUM('[2]21-23 Campus Contract Alloctns'!$I$5:$AP$108)","v":0},{"$f":"$I$5*'[2]21-23 Campus Contract Alloctns'!AF84/SUM('[2]21-23 Campus Contract Alloctns'!$I$5:$AP$108)","v":0},{"$f":"$I$5*'[2]21-23 Campus Contract Alloctns'!AG84/SUM('[2]21-23 Campus Contract Alloctns'!$I$5:$AP$108)","v":0},{"$f":"$I$5*'[2]21-23 Campus Contract Alloctns'!AH84/SUM('[2]21-23 Campus Contract Alloctns'!$I$5:$AP$108)","v":0},{"$f":"$I$5*'[2]21-23 Campus Contract Alloctns'!AI84/SUM('[2]21-23 Campus Contract Alloctns'!$I$5:$AP$108)","v":0},{"$f":"$I$5*'[2]21-23 Campus Contract Alloctns'!AJ84/SUM('[2]21-23 Campus Contract Alloctns'!$I$5:$AP$108)","v":0},{"$f":"$I$5*'[2]21-23 Campus Contract Alloctns'!AK84/SUM('[2]21-23 Campus Contract Alloctns'!$I$5:$AP$108)","v":0},{"$f":"$I$5*'[2]21-23 Campus Contract Alloctns'!AL84/SUM('[2]21-23 Campus Contract Alloctns'!$I$5:$AP$108)","v":0},{"$f":"$I$5*'[2]21-23 Campus Contract Alloctns'!AM84/SUM('[2]21-23 Campus Contract Alloctns'!$I$5:$AP$108)","v":0},{"$f":"$I$5*'[2]21-23 Campus Contract Alloctns'!AN84/SUM('[2]21-23 Campus Contract Alloctns'!$I$5:$AP$108)","v":0},{"$f":"$I$5*'[2]21-23 Campus Contract Alloctns'!AO84/SUM('[2]21-23 Campus Contract Alloctns'!$I$5:$AP$108)","v":0},{"$f":"$I$5*'[2]21-23 Campus Contract Alloctns'!AP84/SUM('[2]21-23 Campus Contract Alloctns'!$I$5:$AP$108)","v":0}]
[null,"375 - Central Washington University","375","Central Washington University",0,0,0,0,0,{"$f":"$I$5*'[2]21-23 Campus Contract Alloctns'!I85/SUM('[2]21-23 Campus Contract Alloctns'!$I$5:$AP$108)","v":0},{"$f":"$I$5*'[2]21-23 Campus Contract Alloctns'!J85/SUM('[2]21-23 Campus Contract Alloctns'!$I$5:$AP$108)","v":0},{"$f":"$I$5*'[2]21-23 Campus Contract Alloctns'!K85/SUM('[2]21-23 Campus Contract Alloctns'!$I$5:$AP$108)","v":0},{"$f":"$I$5*'[2]21-23 Campus Contract Alloctns'!L85/SUM('[2]21-23 Campus Contract Alloctns'!$I$5:$AP$108)","v":0},{"$f":"$I$5*'[2]21-23 Campus Contract Alloctns'!M85/SUM('[2]21-23 Campus Contract Alloctns'!$I$5:$AP$108)","v":0},{"$f":"$I$5*'[2]21-23 Campus Contract Alloctns'!N85/SUM('[2]21-23 Campus Contract Alloctns'!$I$5:$AP$108)","v":0},{"$f":"$I$5*'[2]21-23 Campus Contract Alloctns'!O85/SUM('[2]21-23 Campus Contract Alloctns'!$I$5:$AP$108)","v":0},{"$f":"$I$5*'[2]21-23 Campus Contract Alloctns'!P85/SUM('[2]21-23 Campus Contract Alloctns'!$I$5:$AP$108)","v":0},{"$f":"$I$5*'[2]21-23 Campus Contract Alloctns'!Q85/SUM('[2]21-23 Campus Contract Alloctns'!$I$5:$AP$108)","v":0},{"$f":"$I$5*'[2]21-23 Campus Contract Alloctns'!R85/SUM('[2]21-23 Campus Contract Alloctns'!$I$5:$AP$108)","v":0},{"$f":"$I$5*'[2]21-23 Campus Contract Alloctns'!S85/SUM('[2]21-23 Campus Contract Alloctns'!$I$5:$AP$108)","v":0},{"$f":"$I$5*'[2]21-23 Campus Contract Alloctns'!T85/SUM('[2]21-23 Campus Contract Alloctns'!$I$5:$AP$108)","v":0},{"$f":"$I$5*'[2]21-23 Campus Contract Alloctns'!U85/SUM('[2]21-23 Campus Contract Alloctns'!$I$5:$AP$108)","v":0},{"$f":"$I$5*'[2]21-23 Campus Contract Alloctns'!V85/SUM('[2]21-23 Campus Contract Alloctns'!$I$5:$AP$108)","v":0},{"$f":"$I$5*'[2]21-23 Campus Contract Alloctns'!W85/SUM('[2]21-23 Campus Contract Alloctns'!$I$5:$AP$108)","v":0},{"$f":"$I$5*'[2]21-23 Campus Contract Alloctns'!X85/SUM('[2]21-23 Campus Contract Alloctns'!$I$5:$AP$108)","v":0},{"$f":"$I$5*'[2]21-23 Campus Contract Alloctns'!Y85/SUM('[2]21-23 Campus Contract Alloctns'!$I$5:$AP$108)","v":0},{"$f":"$I$5*'[2]21-23 Campus Contract Alloctns'!Z85/SUM('[2]21-23 Campus Contract Alloctns'!$I$5:$AP$108)","v":0},{"$f":"$I$5*'[2]21-23 Campus Contract Alloctns'!AA85/SUM('[2]21-23 Campus Contract Alloctns'!$I$5:$AP$108)","v":0},{"$f":"$I$5*'[2]21-23 Campus Contract Alloctns'!AB85/SUM('[2]21-23 Campus Contract Alloctns'!$I$5:$AP$108)","v":0},{"$f":"$I$5*'[2]21-23 Campus Contract Alloctns'!AC85/SUM('[2]21-23 Campus Contract Alloctns'!$I$5:$AP$108)","v":0},{"$f":"$I$5*'[2]21-23 Campus Contract Alloctns'!AD85/SUM('[2]21-23 Campus Contract Alloctns'!$I$5:$AP$108)","v":0},{"$f":"$I$5*'[2]21-23 Campus Contract Alloctns'!AE85/SUM('[2]21-23 Campus Contract Alloctns'!$I$5:$AP$108)","v":0},{"$f":"$I$5*'[2]21-23 Campus Contract Alloctns'!AF85/SUM('[2]21-23 Campus Contract Alloctns'!$I$5:$AP$108)","v":0},{"$f":"$I$5*'[2]21-23 Campus Contract Alloctns'!AG85/SUM('[2]21-23 Campus Contract Alloctns'!$I$5:$AP$108)","v":0},{"$f":"$I$5*'[2]21-23 Campus Contract Alloctns'!AH85/SUM('[2]21-23 Campus Contract Alloctns'!$I$5:$AP$108)","v":0},{"$f":"$I$5*'[2]21-23 Campus Contract Alloctns'!AI85/SUM('[2]21-23 Campus Contract Alloctns'!$I$5:$AP$108)","v":0},{"$f":"$I$5*'[2]21-23 Campus Contract Alloctns'!AJ85/SUM('[2]21-23 Campus Contract Alloctns'!$I$5:$AP$108)","v":0},{"$f":"$I$5*'[2]21-23 Campus Contract Alloctns'!AK85/SUM('[2]21-23 Campus Contract Alloctns'!$I$5:$AP$108)","v":0},{"$f":"$I$5*'[2]21-23 Campus Contract Alloctns'!AL85/SUM('[2]21-23 Campus Contract Alloctns'!$I$5:$AP$108)","v":0},{"$f":"$I$5*'[2]21-23 Campus Contract Alloctns'!AM85/SUM('[2]21-23 Campus Contract Alloctns'!$I$5:$AP$108)","v":0},{"$f":"$I$5*'[2]21-23 Campus Contract Alloctns'!AN85/SUM('[2]21-23 Campus Contract Alloctns'!$I$5:$AP$108)","v":0},{"$f":"$I$5*'[2]21-23 Campus Contract Alloctns'!AO85/SUM('[2]21-23 Campus Contract Alloctns'!$I$5:$AP$108)","v":0},{"$f":"$I$5*'[2]21-23 Campus Contract Alloctns'!AP85/SUM('[2]21-23 Campus Contract Alloctns'!$I$5:$AP$108)","v":0}]
[null,"376 - The Evergreen State College","376","The Evergreen State College",9.5905430330124747E-3,541,9.5905430330124747E-3,0,0,{"$f":"$I$5*'[2]21-23 Campus Contract Alloctns'!I86/SUM('[2]21-23 Campus Contract Alloctns'!$I$5:$AP$108)","v":0},{"$f":"$I$5*'[2]21-23 Campus Contract Alloctns'!J86/SUM('[2]21-23 Campus Contract Alloctns'!$I$5:$AP$108)","v":0},{"$f":"$I$5*'[2]21-23 Campus Contract Alloctns'!K86/SUM('[2]21-23 Campus Contract Alloctns'!$I$5:$AP$108)","v":0},{"$f":"$I$5*'[2]21-23 Campus Contract Alloctns'!L86/SUM('[2]21-23 Campus Contract Alloctns'!$I$5:$AP$108)","v":0},{"$f":"$I$5*'[2]21-23 Campus Contract Alloctns'!M86/SUM('[2]21-23 Campus Contract Alloctns'!$I$5:$AP$108)","v":0},{"$f":"$I$5*'[2]21-23 Campus Contract Alloctns'!N86/SUM('[2]21-23 Campus Contract Alloctns'!$I$5:$AP$108)","v":0},{"$f":"$I$5*'[2]21-23 Campus Contract Alloctns'!O86/SUM('[2]21-23 Campus Contract Alloctns'!$I$5:$AP$108)","v":0},{"$f":"$I$5*'[2]21-23 Campus Contract Alloctns'!P86/SUM('[2]21-23 Campus Contract Alloctns'!$I$5:$AP$108)","v":0},{"$f":"$I$5*'[2]21-23 Campus Contract Alloctns'!Q86/SUM('[2]21-23 Campus Contract Alloctns'!$I$5:$AP$108)","v":0},{"$f":"$I$5*'[2]21-23 Campus Contract Alloctns'!R86/SUM('[2]21-23 Campus Contract Alloctns'!$I$5:$AP$108)","v":0},{"$f":"$I$5*'[2]21-23 Campus Contract Alloctns'!S86/SUM('[2]21-23 Campus Contract Alloctns'!$I$5:$AP$108)","v":0},{"$f":"$I$5*'[2]21-23 Campus Contract Alloctns'!T86/SUM('[2]21-23 Campus Contract Alloctns'!$I$5:$AP$108)","v":0},{"$f":"$I$5*'[2]21-23 Campus Contract Alloctns'!U86/SUM('[2]21-23 Campus Contract Alloctns'!$I$5:$AP$108)","v":0},{"$f":"$I$5*'[2]21-23 Campus Contract Alloctns'!V86/SUM('[2]21-23 Campus Contract Alloctns'!$I$5:$AP$108)","v":0},{"$f":"$I$5*'[2]21-23 Campus Contract Alloctns'!W86/SUM('[2]21-23 Campus Contract Alloctns'!$I$5:$AP$108)","v":0},{"$f":"$I$5*'[2]21-23 Campus Contract Alloctns'!X86/SUM('[2]21-23 Campus Contract Alloctns'!$I$5:$AP$108)","v":0},{"$f":"$I$5*'[2]21-23 Campus Contract Alloctns'!Y86/SUM('[2]21-23 Campus Contract Alloctns'!$I$5:$AP$108)","v":0},{"$f":"$I$5*'[2]21-23 Campus Contract Alloctns'!Z86/SUM('[2]21-23 Campus Contract Alloctns'!$I$5:$AP$108)","v":0},{"$f":"$I$5*'[2]21-23 Campus Contract Alloctns'!AA86/SUM('[2]21-23 Campus Contract Alloctns'!$I$5:$AP$108)","v":0},{"$f":"$I$5*'[2]21-23 Campus Contract Alloctns'!AB86/SUM('[2]21-23 Campus Contract Alloctns'!$I$5:$AP$108)","v":0},{"$f":"$I$5*'[2]21-23 Campus Contract Alloctns'!AC86/SUM('[2]21-23 Campus Contract Alloctns'!$I$5:$AP$108)","v":0},{"$f":"$I$5*'[2]21-23 Campus Contract Alloctns'!AD86/SUM('[2]21-23 Campus Contract Alloctns'!$I$5:$AP$108)","v":0},{"$f":"$I$5*'[2]21-23 Campus Contract Alloctns'!AE86/SUM('[2]21-23 Campus Contract Alloctns'!$I$5:$AP$108)","v":0},{"$f":"$I$5*'[2]21-23 Campus Contract Alloctns'!AF86/SUM('[2]21-23 Campus Contract Alloctns'!$I$5:$AP$108)","v":0},{"$f":"$I$5*'[2]21-23 Campus Contract Alloctns'!AG86/SUM('[2]21-23 Campus Contract Alloctns'!$I$5:$AP$108)","v":0},{"$f":"$I$5*'[2]21-23 Campus Contract Alloctns'!AH86/SUM('[2]21-23 Campus Contract Alloctns'!$I$5:$AP$108)","v":0},{"$f":"$I$5*'[2]21-23 Campus Contract Alloctns'!AI86/SUM('[2]21-23 Campus Contract Alloctns'!$I$5:$AP$108)","v":0},{"$f":"$I$5*'[2]21-23 Campus Contract Alloctns'!AJ86/SUM('[2]21-23 Campus Contract Alloctns'!$I$5:$AP$108)","v":0},{"$f":"$I$5*'[2]21-23 Campus Contract Alloctns'!AK86/SUM('[2]21-23 Campus Contract Alloctns'!$I$5:$AP$108)","v":0},{"$f":"$I$5*'[2]21-23 Campus Contract Alloctns'!AL86/SUM('[2]21-23 Campus Contract Alloctns'!$I$5:$AP$108)","v":0},{"$f":"$I$5*'[2]21-23 Campus Contract Alloctns'!AM86/SUM('[2]21-23 Campus Contract Alloctns'!$I$5:$AP$108)","v":0},{"$f":"$I$5*'[2]21-23 Campus Contract Alloctns'!AN86/SUM('[2]21-23 Campus Contract Alloctns'!$I$5:$AP$108)","v":0},{"$f":"$I$5*'[2]21-23 Campus Contract Alloctns'!AO86/SUM('[2]21-23 Campus Contract Alloctns'!$I$5:$AP$108)","v":0},{"$f":"$I$5*'[2]21-23 Campus Contract Alloctns'!AP86/SUM('[2]21-23 Campus Contract Alloctns'!$I$5:$AP$108)","v":0}]
[null,"380 - Western Washington University","380","Western Washington University",0,0,0,0,0,{"$f":"$I$5*'[2]21-23 Campus Contract Alloctns'!I87/SUM('[2]21-23 Campus Contract Alloctns'!$I$5:$AP$108)","v":0},{"$f":"$I$5*'[2]21-23 Campus Contract Alloctns'!J87/SUM('[2]21-23 Campus Contract Alloctns'!$I$5:$AP$108)","v":0},{"$f":"$I$5*'[2]21-23 Campus Contract Alloctns'!K87/SUM('[2]21-23 Campus Contract Alloctns'!$I$5:$AP$108)","v":0},{"$f":"$I$5*'[2]21-23 Campus Contract Alloctns'!L87/SUM('[2]21-23 Campus Contract Alloctns'!$I$5:$AP$108)","v":0},{"$f":"$I$5*'[2]21-23 Campus Contract Alloctns'!M87/SUM('[2]21-23 Campus Contract Alloctns'!$I$5:$AP$108)","v":0},{"$f":"$I$5*'[2]21-23 Campus Contract Alloctns'!N87/SUM('[2]21-23 Campus Contract Alloctns'!$I$5:$AP$108)","v":0},{"$f":"$I$5*'[2]21-23 Campus Contract Alloctns'!O87/SUM('[2]21-23 Campus Contract Alloctns'!$I$5:$AP$108)","v":0},{"$f":"$I$5*'[2]21-23 Campus Contract Alloctns'!P87/SUM('[2]21-23 Campus Contract Alloctns'!$I$5:$AP$108)","v":0},{"$f":"$I$5*'[2]21-23 Campus Contract Alloctns'!Q87/SUM('[2]21-23 Campus Contract Alloctns'!$I$5:$AP$108)","v":0},{"$f":"$I$5*'[2]21-23 Campus Contract Alloctns'!R87/SUM('[2]21-23 Campus Contract Alloctns'!$I$5:$AP$108)","v":0},{"$f":"$I$5*'[2]21-23 Campus Contract Alloctns'!S87/SUM('[2]21-23 Campus Contract Alloctns'!$I$5:$AP$108)","v":0},{"$f":"$I$5*'[2]21-23 Campus Contract Alloctns'!T87/SUM('[2]21-23 Campus Contract Alloctns'!$I$5:$AP$108)","v":0},{"$f":"$I$5*'[2]21-23 Campus Contract Alloctns'!U87/SUM('[2]21-23 Campus Contract Alloctns'!$I$5:$AP$108)","v":0},{"$f":"$I$5*'[2]21-23 Campus Contract Alloctns'!V87/SUM('[2]21-23 Campus Contract Alloctns'!$I$5:$AP$108)","v":0},{"$f":"$I$5*'[2]21-23 Campus Contract Alloctns'!W87/SUM('[2]21-23 Campus Contract Alloctns'!$I$5:$AP$108)","v":0},{"$f":"$I$5*'[2]21-23 Campus Contract Alloctns'!X87/SUM('[2]21-23 Campus Contract Alloctns'!$I$5:$AP$108)","v":0},{"$f":"$I$5*'[2]21-23 Campus Contract Alloctns'!Y87/SUM('[2]21-23 Campus Contract Alloctns'!$I$5:$AP$108)","v":0},{"$f":"$I$5*'[2]21-23 Campus Contract Alloctns'!Z87/SUM('[2]21-23 Campus Contract Alloctns'!$I$5:$AP$108)","v":0},{"$f":"$I$5*'[2]21-23 Campus Contract Alloctns'!AA87/SUM('[2]21-23 Campus Contract Alloctns'!$I$5:$AP$108)","v":0},{"$f":"$I$5*'[2]21-23 Campus Contract Alloctns'!AB87/SUM('[2]21-23 Campus Contract Alloctns'!$I$5:$AP$108)","v":0},{"$f":"$I$5*'[2]21-23 Campus Contract Alloctns'!AC87/SUM('[2]21-23 Campus Contract Alloctns'!$I$5:$AP$108)","v":0},{"$f":"$I$5*'[2]21-23 Campus Contract Alloctns'!AD87/SUM('[2]21-23 Campus Contract Alloctns'!$I$5:$AP$108)","v":0},{"$f":"$I$5*'[2]21-23 Campus Contract Alloctns'!AE87/SUM('[2]21-23 Campus Contract Alloctns'!$I$5:$AP$108)","v":0},{"$f":"$I$5*'[2]21-23 Campus Contract Alloctns'!AF87/SUM('[2]21-23 Campus Contract Alloctns'!$I$5:$AP$108)","v":0},{"$f":"$I$5*'[2]21-23 Campus Contract Alloctns'!AG87/SUM('[2]21-23 Campus Contract Alloctns'!$I$5:$AP$108)","v":0},{"$f":"$I$5*'[2]21-23 Campus Contract Alloctns'!AH87/SUM('[2]21-23 Campus Contract Alloctns'!$I$5:$AP$108)","v":0},{"$f":"$I$5*'[2]21-23 Campus Contract Alloctns'!AI87/SUM('[2]21-23 Campus Contract Alloctns'!$I$5:$AP$108)","v":0},{"$f":"$I$5*'[2]21-23 Campus Contract Alloctns'!AJ87/SUM('[2]21-23 Campus Contract Alloctns'!$I$5:$AP$108)","v":0},{"$f":"$I$5*'[2]21-23 Campus Contract Alloctns'!AK87/SUM('[2]21-23 Campus Contract Alloctns'!$I$5:$AP$108)","v":0},{"$f":"$I$5*'[2]21-23 Campus Contract Alloctns'!AL87/SUM('[2]21-23 Campus Contract Alloctns'!$I$5:$AP$108)","v":0},{"$f":"$I$5*'[2]21-23 Campus Contract Alloctns'!AM87/SUM('[2]21-23 Campus Contract Alloctns'!$I$5:$AP$108)","v":0},{"$f":"$I$5*'[2]21-23 Campus Contract Alloctns'!AN87/SUM('[2]21-23 Campus Contract Alloctns'!$I$5:$AP$108)","v":0},{"$f":"$I$5*'[2]21-23 Campus Contract Alloctns'!AO87/SUM('[2]21-23 Campus Contract Alloctns'!$I$5:$AP$108)","v":0},{"$f":"$I$5*'[2]21-23 Campus Contract Alloctns'!AP87/SUM('[2]21-23 Campus Contract Alloctns'!$I$5:$AP$108)","v":0}]
[null,"387 - Washington State Arts Commission","387","Washington State Arts Commission",3.5454872580452775E-4,20,3.5454872580452775E-4,0,0,{"$f":"$I$5*'[2]21-23 Campus Contract Alloctns'!I88/SUM('[2]21-23 Campus Contract Alloctns'!$I$5:$AP$108)","v":0},{"$f":"$I$5*'[2]21-23 Campus Contract Alloctns'!J88/SUM('[2]21-23 Campus Contract Alloctns'!$I$5:$AP$108)","v":0},{"$f":"$I$5*'[2]21-23 Campus Contract Alloctns'!K88/SUM('[2]21-23 Campus Contract Alloctns'!$I$5:$AP$108)","v":0},{"$f":"$I$5*'[2]21-23 Campus Contract Alloctns'!L88/SUM('[2]21-23 Campus Contract Alloctns'!$I$5:$AP$108)","v":0},{"$f":"$I$5*'[2]21-23 Campus Contract Alloctns'!M88/SUM('[2]21-23 Campus Contract Alloctns'!$I$5:$AP$108)","v":0},{"$f":"$I$5*'[2]21-23 Campus Contract Alloctns'!N88/SUM('[2]21-23 Campus Contract Alloctns'!$I$5:$AP$108)","v":0},{"$f":"$I$5*'[2]21-23 Campus Contract Alloctns'!O88/SUM('[2]21-23 Campus Contract Alloctns'!$I$5:$AP$108)","v":0},{"$f":"$I$5*'[2]21-23 Campus Contract Alloctns'!P88/SUM('[2]21-23 Campus Contract Alloctns'!$I$5:$AP$108)","v":0},{"$f":"$I$5*'[2]21-23 Campus Contract Alloctns'!Q88/SUM('[2]21-23 Campus Contract Alloctns'!$I$5:$AP$108)","v":0},{"$f":"$I$5*'[2]21-23 Campus Contract Alloctns'!R88/SUM('[2]21-23 Campus Contract Alloctns'!$I$5:$AP$108)","v":0},{"$f":"$I$5*'[2]21-23 Campus Contract Alloctns'!S88/SUM('[2]21-23 Campus Contract Alloctns'!$I$5:$AP$108)","v":0},{"$f":"$I$5*'[2]21-23 Campus Contract Alloctns'!T88/SUM('[2]21-23 Campus Contract Alloctns'!$I$5:$AP$108)","v":0},{"$f":"$I$5*'[2]21-23 Campus Contract Alloctns'!U88/SUM('[2]21-23 Campus Contract Alloctns'!$I$5:$AP$108)","v":0},{"$f":"$I$5*'[2]21-23 Campus Contract Alloctns'!V88/SUM('[2]21-23 Campus Contract Alloctns'!$I$5:$AP$108)","v":0},{"$f":"$I$5*'[2]21-23 Campus Contract Alloctns'!W88/SUM('[2]21-23 Campus Contract Alloctns'!$I$5:$AP$108)","v":0},{"$f":"$I$5*'[2]21-23 Campus Contract Alloctns'!X88/SUM('[2]21-23 Campus Contract Alloctns'!$I$5:$AP$108)","v":0},{"$f":"$I$5*'[2]21-23 Campus Contract Alloctns'!Y88/SUM('[2]21-23 Campus Contract Alloctns'!$I$5:$AP$108)","v":0},{"$f":"$I$5*'[2]21-23 Campus Contract Alloctns'!Z88/SUM('[2]21-23 Campus Contract Alloctns'!$I$5:$AP$108)","v":0},{"$f":"$I$5*'[2]21-23 Campus Contract Alloctns'!AA88/SUM('[2]21-23 Campus Contract Alloctns'!$I$5:$AP$108)","v":0},{"$f":"$I$5*'[2]21-23 Campus Contract Alloctns'!AB88/SUM('[2]21-23 Campus Contract Alloctns'!$I$5:$AP$108)","v":0},{"$f":"$I$5*'[2]21-23 Campus Contract Alloctns'!AC88/SUM('[2]21-23 Campus Contract Alloctns'!$I$5:$AP$108)","v":0},{"$f":"$I$5*'[2]21-23 Campus Contract Alloctns'!AD88/SUM('[2]21-23 Campus Contract Alloctns'!$I$5:$AP$108)","v":0},{"$f":"$I$5*'[2]21-23 Campus Contract Alloctns'!AE88/SUM('[2]21-23 Campus Contract Alloctns'!$I$5:$AP$108)","v":0},{"$f":"$I$5*'[2]21-23 Campus Contract Alloctns'!AF88/SUM('[2]21-23 Campus Contract Alloctns'!$I$5:$AP$108)","v":0},{"$f":"$I$5*'[2]21-23 Campus Contract Alloctns'!AG88/SUM('[2]21-23 Campus Contract Alloctns'!$I$5:$AP$108)","v":0},{"$f":"$I$5*'[2]21-23 Campus Contract Alloctns'!AH88/SUM('[2]21-23 Campus Contract Alloctns'!$I$5:$AP$108)","v":0},{"$f":"$I$5*'[2]21-23 Campus Contract Alloctns'!AI88/SUM('[2]21-23 Campus Contract Alloctns'!$I$5:$AP$108)","v":0},{"$f":"$I$5*'[2]21-23 Campus Contract Alloctns'!AJ88/SUM('[2]21-23 Campus Contract Alloctns'!$I$5:$AP$108)","v":0},{"$f":"$I$5*'[2]21-23 Campus Contract Alloctns'!AK88/SUM('[2]21-23 Campus Contract Alloctns'!$I$5:$AP$108)","v":0},{"$f":"$I$5*'[2]21-23 Campus Contract Alloctns'!AL88/SUM('[2]21-23 Campus Contract Alloctns'!$I$5:$AP$108)","v":0},{"$f":"$I$5*'[2]21-23 Campus Contract Alloctns'!AM88/SUM('[2]21-23 Campus Contract Alloctns'!$I$5:$AP$108)","v":0},{"$f":"$I$5*'[2]21-23 Campus Contract Alloctns'!AN88/SUM('[2]21-23 Campus Contract Alloctns'!$I$5:$AP$108)","v":0},{"$f":"$I$5*'[2]21-23 Campus Contract Alloctns'!AO88/SUM('[2]21-23 Campus Contract Alloctns'!$I$5:$AP$108)","v":0},{"$f":"$I$5*'[2]21-23 Campus Contract Alloctns'!AP88/SUM('[2]21-23 Campus Contract Alloctns'!$I$5:$AP$108)","v":0}]
[null,"390 - Washington State Historical Society","390","Washington State Historical Society",1.7727436290226384E-5,1,1.7727436290226384E-5,0,0,{"$f":"$I$5*'[2]21-23 Campus Contract Alloctns'!I89/SUM('[2]21-23 Campus Contract Alloctns'!$I$5:$AP$108)","v":0},{"$f":"$I$5*'[2]21-23 Campus Contract Alloctns'!J89/SUM('[2]21-23 Campus Contract Alloctns'!$I$5:$AP$108)","v":0},{"$f":"$I$5*'[2]21-23 Campus Contract Alloctns'!K89/SUM('[2]21-23 Campus Contract Alloctns'!$I$5:$AP$108)","v":0},{"$f":"$I$5*'[2]21-23 Campus Contract Alloctns'!L89/SUM('[2]21-23 Campus Contract Alloctns'!$I$5:$AP$108)","v":0},{"$f":"$I$5*'[2]21-23 Campus Contract Alloctns'!M89/SUM('[2]21-23 Campus Contract Alloctns'!$I$5:$AP$108)","v":0},{"$f":"$I$5*'[2]21-23 Campus Contract Alloctns'!N89/SUM('[2]21-23 Campus Contract Alloctns'!$I$5:$AP$108)","v":0},{"$f":"$I$5*'[2]21-23 Campus Contract Alloctns'!O89/SUM('[2]21-23 Campus Contract Alloctns'!$I$5:$AP$108)","v":0},{"$f":"$I$5*'[2]21-23 Campus Contract Alloctns'!P89/SUM('[2]21-23 Campus Contract Alloctns'!$I$5:$AP$108)","v":0},{"$f":"$I$5*'[2]21-23 Campus Contract Alloctns'!Q89/SUM('[2]21-23 Campus Contract Alloctns'!$I$5:$AP$108)","v":0},{"$f":"$I$5*'[2]21-23 Campus Contract Alloctns'!R89/SUM('[2]21-23 Campus Contract Alloctns'!$I$5:$AP$108)","v":0},{"$f":"$I$5*'[2]21-23 Campus Contract Alloctns'!S89/SUM('[2]21-23 Campus Contract Alloctns'!$I$5:$AP$108)","v":0},{"$f":"$I$5*'[2]21-23 Campus Contract Alloctns'!T89/SUM('[2]21-23 Campus Contract Alloctns'!$I$5:$AP$108)","v":0},{"$f":"$I$5*'[2]21-23 Campus Contract Alloctns'!U89/SUM('[2]21-23 Campus Contract Alloctns'!$I$5:$AP$108)","v":0},{"$f":"$I$5*'[2]21-23 Campus Contract Alloctns'!V89/SUM('[2]21-23 Campus Contract Alloctns'!$I$5:$AP$108)","v":0},{"$f":"$I$5*'[2]21-23 Campus Contract Alloctns'!W89/SUM('[2]21-23 Campus Contract Alloctns'!$I$5:$AP$108)","v":0},{"$f":"$I$5*'[2]21-23 Campus Contract Alloctns'!X89/SUM('[2]21-23 Campus Contract Alloctns'!$I$5:$AP$108)","v":0},{"$f":"$I$5*'[2]21-23 Campus Contract Alloctns'!Y89/SUM('[2]21-23 Campus Contract Alloctns'!$I$5:$AP$108)","v":0},{"$f":"$I$5*'[2]21-23 Campus Contract Alloctns'!Z89/SUM('[2]21-23 Campus Contract Alloctns'!$I$5:$AP$108)","v":0},{"$f":"$I$5*'[2]21-23 Campus Contract Alloctns'!AA89/SUM('[2]21-23 Campus Contract Alloctns'!$I$5:$AP$108)","v":0},{"$f":"$I$5*'[2]21-23 Campus Contract Alloctns'!AB89/SUM('[2]21-23 Campus Contract Alloctns'!$I$5:$AP$108)","v":0},{"$f":"$I$5*'[2]21-23 Campus Contract Alloctns'!AC89/SUM('[2]21-23 Campus Contract Alloctns'!$I$5:$AP$108)","v":0},{"$f":"$I$5*'[2]21-23 Campus Contract Alloctns'!AD89/SUM('[2]21-23 Campus Contract Alloctns'!$I$5:$AP$108)","v":0},{"$f":"$I$5*'[2]21-23 Campus Contract Alloctns'!AE89/SUM('[2]21-23 Campus Contract Alloctns'!$I$5:$AP$108)","v":0},{"$f":"$I$5*'[2]21-23 Campus Contract Alloctns'!AF89/SUM('[2]21-23 Campus Contract Alloctns'!$I$5:$AP$108)","v":0},{"$f":"$I$5*'[2]21-23 Campus Contract Alloctns'!AG89/SUM('[2]21-23 Campus Contract Alloctns'!$I$5:$AP$108)","v":0},{"$f":"$I$5*'[2]21-23 Campus Contract Alloctns'!AH89/SUM('[2]21-23 Campus Contract Alloctns'!$I$5:$AP$108)","v":0},{"$f":"$I$5*'[2]21-23 Campus Contract Alloctns'!AI89/SUM('[2]21-23 Campus Contract Alloctns'!$I$5:$AP$108)","v":0},{"$f":"$I$5*'[2]21-23 Campus Contract Alloctns'!AJ89/SUM('[2]21-23 Campus Contract Alloctns'!$I$5:$AP$108)","v":0},{"$f":"$I$5*'[2]21-23 Campus Contract Alloctns'!AK89/SUM('[2]21-23 Campus Contract Alloctns'!$I$5:$AP$108)","v":0},{"$f":"$I$5*'[2]21-23 Campus Contract Alloctns'!AL89/SUM('[2]21-23 Campus Contract Alloctns'!$I$5:$AP$108)","v":0},{"$f":"$I$5*'[2]21-23 Campus Contract Alloctns'!AM89/SUM('[2]21-23 Campus Contract Alloctns'!$I$5:$AP$108)","v":0},{"$f":"$I$5*'[2]21-23 Campus Contract Alloctns'!AN89/SUM('[2]21-23 Campus Contract Alloctns'!$I$5:$AP$108)","v":0},{"$f":"$I$5*'[2]21-23 Campus Contract Alloctns'!AO89/SUM('[2]21-23 Campus Contract Alloctns'!$I$5:$AP$108)","v":0},{"$f":"$I$5*'[2]21-23 Campus Contract Alloctns'!AP89/SUM('[2]21-23 Campus Contract Alloctns'!$I$5:$AP$108)","v":0}]
[null,"395 - Eastern Washington State Historical Society","395","Eastern Washington State Historical Society",0,0,0,0,0,{"$f":"$I$5*'[2]21-23 Campus Contract Alloctns'!I90/SUM('[2]21-23 Campus Contract Alloctns'!$I$5:$AP$108)","v":0},{"$f":"$I$5*'[2]21-23 Campus Contract Alloctns'!J90/SUM('[2]21-23 Campus Contract Alloctns'!$I$5:$AP$108)","v":0},{"$f":"$I$5*'[2]21-23 Campus Contract Alloctns'!K90/SUM('[2]21-23 Campus Contract Alloctns'!$I$5:$AP$108)","v":0},{"$f":"$I$5*'[2]21-23 Campus Contract Alloctns'!L90/SUM('[2]21-23 Campus Contract Alloctns'!$I$5:$AP$108)","v":0},{"$f":"$I$5*'[2]21-23 Campus Contract Alloctns'!M90/SUM('[2]21-23 Campus Contract Alloctns'!$I$5:$AP$108)","v":0},{"$f":"$I$5*'[2]21-23 Campus Contract Alloctns'!N90/SUM('[2]21-23 Campus Contract Alloctns'!$I$5:$AP$108)","v":0},{"$f":"$I$5*'[2]21-23 Campus Contract Alloctns'!O90/SUM('[2]21-23 Campus Contract Alloctns'!$I$5:$AP$108)","v":0},{"$f":"$I$5*'[2]21-23 Campus Contract Alloctns'!P90/SUM('[2]21-23 Campus Contract Alloctns'!$I$5:$AP$108)","v":0},{"$f":"$I$5*'[2]21-23 Campus Contract Alloctns'!Q90/SUM('[2]21-23 Campus Contract Alloctns'!$I$5:$AP$108)","v":0},{"$f":"$I$5*'[2]21-23 Campus Contract Alloctns'!R90/SUM('[2]21-23 Campus Contract Alloctns'!$I$5:$AP$108)","v":0},{"$f":"$I$5*'[2]21-23 Campus Contract Alloctns'!S90/SUM('[2]21-23 Campus Contract Alloctns'!$I$5:$AP$108)","v":0},{"$f":"$I$5*'[2]21-23 Campus Contract Alloctns'!T90/SUM('[2]21-23 Campus Contract Alloctns'!$I$5:$AP$108)","v":0},{"$f":"$I$5*'[2]21-23 Campus Contract Alloctns'!U90/SUM('[2]21-23 Campus Contract Alloctns'!$I$5:$AP$108)","v":0},{"$f":"$I$5*'[2]21-23 Campus Contract Alloctns'!V90/SUM('[2]21-23 Campus Contract Alloctns'!$I$5:$AP$108)","v":0},{"$f":"$I$5*'[2]21-23 Campus Contract Alloctns'!W90/SUM('[2]21-23 Campus Contract Alloctns'!$I$5:$AP$108)","v":0},{"$f":"$I$5*'[2]21-23 Campus Contract Alloctns'!X90/SUM('[2]21-23 Campus Contract Alloctns'!$I$5:$AP$108)","v":0},{"$f":"$I$5*'[2]21-23 Campus Contract Alloctns'!Y90/SUM('[2]21-23 Campus Contract Alloctns'!$I$5:$AP$108)","v":0},{"$f":"$I$5*'[2]21-23 Campus Contract Alloctns'!Z90/SUM('[2]21-23 Campus Contract Alloctns'!$I$5:$AP$108)","v":0},{"$f":"$I$5*'[2]21-23 Campus Contract Alloctns'!AA90/SUM('[2]21-23 Campus Contract Alloctns'!$I$5:$AP$108)","v":0},{"$f":"$I$5*'[2]21-23 Campus Contract Alloctns'!AB90/SUM('[2]21-23 Campus Contract Alloctns'!$I$5:$AP$108)","v":0},{"$f":"$I$5*'[2]21-23 Campus Contract Alloctns'!AC90/SUM('[2]21-23 Campus Contract Alloctns'!$I$5:$AP$108)","v":0},{"$f":"$I$5*'[2]21-23 Campus Contract Alloctns'!AD90/SUM('[2]21-23 Campus Contract Alloctns'!$I$5:$AP$108)","v":0},{"$f":"$I$5*'[2]21-23 Campus Contract Alloctns'!AE90/SUM('[2]21-23 Campus Contract Alloctns'!$I$5:$AP$108)","v":0},{"$f":"$I$5*'[2]21-23 Campus Contract Alloctns'!AF90/SUM('[2]21-23 Campus Contract Alloctns'!$I$5:$AP$108)","v":0},{"$f":"$I$5*'[2]21-23 Campus Contract Alloctns'!AG90/SUM('[2]21-23 Campus Contract Alloctns'!$I$5:$AP$108)","v":0},{"$f":"$I$5*'[2]21-23 Campus Contract Alloctns'!AH90/SUM('[2]21-23 Campus Contract Alloctns'!$I$5:$AP$108)","v":0},{"$f":"$I$5*'[2]21-23 Campus Contract Alloctns'!AI90/SUM('[2]21-23 Campus Contract Alloctns'!$I$5:$AP$108)","v":0},{"$f":"$I$5*'[2]21-23 Campus Contract Alloctns'!AJ90/SUM('[2]21-23 Campus Contract Alloctns'!$I$5:$AP$108)","v":0},{"$f":"$I$5*'[2]21-23 Campus Contract Alloctns'!AK90/SUM('[2]21-23 Campus Contract Alloctns'!$I$5:$AP$108)","v":0},{"$f":"$I$5*'[2]21-23 Campus Contract Alloctns'!AL90/SUM('[2]21-23 Campus Contract Alloctns'!$I$5:$AP$108)","v":0},{"$f":"$I$5*'[2]21-23 Campus Contract Alloctns'!AM90/SUM('[2]21-23 Campus Contract Alloctns'!$I$5:$AP$108)","v":0},{"$f":"$I$5*'[2]21-23 Campus Contract Alloctns'!AN90/SUM('[2]21-23 Campus Contract Alloctns'!$I$5:$AP$108)","v":0},{"$f":"$I$5*'[2]21-23 Campus Contract Alloctns'!AO90/SUM('[2]21-23 Campus Contract Alloctns'!$I$5:$AP$108)","v":0},{"$f":"$I$5*'[2]21-23 Campus Contract Alloctns'!AP90/SUM('[2]21-23 Campus Contract Alloctns'!$I$5:$AP$108)","v":0}]
[null,"405 - Department of Transportation","405","Department of Transportation",8.00000259931819E-2,1535,2.7211614705497499E-2,7.3376091838482536E-3,4.5450802103836153E-2,{"$f":"$I$5*'[2]21-23 Campus Contract Alloctns'!I91/SUM('[2]21-23 Campus Contract Alloctns'!$I$5:$AP$108)","v":0},{"$f":"$I$5*'[2]21-23 Campus Contract Alloctns'!J91/SUM('[2]21-23 Campus Contract Alloctns'!$I$5:$AP$108)","v":0},{"$f":"$I$5*'[2]21-23 Campus Contract Alloctns'!K91/SUM('[2]21-23 Campus Contract Alloctns'!$I$5:$AP$108)","v":0},{"$f":"$I$5*'[2]21-23 Campus Contract Alloctns'!L91/SUM('[2]21-23 Campus Contract Alloctns'!$I$5:$AP$108)","v":0},{"$f":"$I$5*'[2]21-23 Campus Contract Alloctns'!M91/SUM('[2]21-23 Campus Contract Alloctns'!$I$5:$AP$108)","v":0},{"$f":"$I$5*'[2]21-23 Campus Contract Alloctns'!N91/SUM('[2]21-23 Campus Contract Alloctns'!$I$5:$AP$108)","v":0},{"$f":"$I$5*'[2]21-23 Campus Contract Alloctns'!O91/SUM('[2]21-23 Campus Contract Alloctns'!$I$5:$AP$108)","v":0},{"$f":"$I$5*'[2]21-23 Campus Contract Alloctns'!P91/SUM('[2]21-23 Campus Contract Alloctns'!$I$5:$AP$108)","v":0},{"$f":"$I$5*'[2]21-23 Campus Contract Alloctns'!Q91/SUM('[2]21-23 Campus Contract Alloctns'!$I$5:$AP$108)","v":0},{"$f":"$I$5*'[2]21-23 Campus Contract Alloctns'!R91/SUM('[2]21-23 Campus Contract Alloctns'!$I$5:$AP$108)","v":4.545080210383616E-2},{"$f":"$I$5*'[2]21-23 Campus Contract Alloctns'!S91/SUM('[2]21-23 Campus Contract Alloctns'!$I$5:$AP$108)","v":0},{"$f":"$I$5*'[2]21-23 Campus Contract Alloctns'!T91/SUM('[2]21-23 Campus Contract Alloctns'!$I$5:$AP$108)","v":0},{"$f":"$I$5*'[2]21-23 Campus Contract Alloctns'!U91/SUM('[2]21-23 Campus Contract Alloctns'!$I$5:$AP$108)","v":0},{"$f":"$I$5*'[2]21-23 Campus Contract Alloctns'!V91/SUM('[2]21-23 Campus Contract Alloctns'!$I$5:$AP$108)","v":0},{"$f":"$I$5*'[2]21-23 Campus Contract Alloctns'!W91/SUM('[2]21-23 Campus Contract Alloctns'!$I$5:$AP$108)","v":0},{"$f":"$I$5*'[2]21-23 Campus Contract Alloctns'!X91/SUM('[2]21-23 Campus Contract Alloctns'!$I$5:$AP$108)","v":0},{"$f":"$I$5*'[2]21-23 Campus Contract Alloctns'!Y91/SUM('[2]21-23 Campus Contract Alloctns'!$I$5:$AP$108)","v":0},{"$f":"$I$5*'[2]21-23 Campus Contract Alloctns'!Z91/SUM('[2]21-23 Campus Contract Alloctns'!$I$5:$AP$108)","v":0},{"$f":"$I$5*'[2]21-23 Campus Contract Alloctns'!AA91/SUM('[2]21-23 Campus Contract Alloctns'!$I$5:$AP$108)","v":0},{"$f":"$I$5*'[2]21-23 Campus Contract Alloctns'!AB91/SUM('[2]21-23 Campus Contract Alloctns'!$I$5:$AP$108)","v":0},{"$f":"$I$5*'[2]21-23 Campus Contract Alloctns'!AC91/SUM('[2]21-23 Campus Contract Alloctns'!$I$5:$AP$108)","v":0},{"$f":"$I$5*'[2]21-23 Campus Contract Alloctns'!AD91/SUM('[2]21-23 Campus Contract Alloctns'!$I$5:$AP$108)","v":0},{"$f":"$I$5*'[2]21-23 Campus Contract Alloctns'!AE91/SUM('[2]21-23 Campus Contract Alloctns'!$I$5:$AP$108)","v":0},{"$f":"$I$5*'[2]21-23 Campus Contract Alloctns'!AF91/SUM('[2]21-23 Campus Contract Alloctns'!$I$5:$AP$108)","v":0},{"$f":"$I$5*'[2]21-23 Campus Contract Alloctns'!AG91/SUM('[2]21-23 Campus Contract Alloctns'!$I$5:$AP$108)","v":0},{"$f":"$I$5*'[2]21-23 Campus Contract Alloctns'!AH91/SUM('[2]21-23 Campus Contract Alloctns'!$I$5:$AP$108)","v":0},{"$f":"$I$5*'[2]21-23 Campus Contract Alloctns'!AI91/SUM('[2]21-23 Campus Contract Alloctns'!$I$5:$AP$108)","v":0},{"$f":"$I$5*'[2]21-23 Campus Contract Alloctns'!AJ91/SUM('[2]21-23 Campus Contract Alloctns'!$I$5:$AP$108)","v":0},{"$f":"$I$5*'[2]21-23 Campus Contract Alloctns'!AK91/SUM('[2]21-23 Campus Contract Alloctns'!$I$5:$AP$108)","v":0},{"$f":"$I$5*'[2]21-23 Campus Contract Alloctns'!AL91/SUM('[2]21-23 Campus Contract Alloctns'!$I$5:$AP$108)","v":0},{"$f":"$I$5*'[2]21-23 Campus Contract Alloctns'!AM91/SUM('[2]21-23 Campus Contract Alloctns'!$I$5:$AP$108)","v":0},{"$f":"$I$5*'[2]21-23 Campus Contract Alloctns'!AN91/SUM('[2]21-23 Campus Contract Alloctns'!$I$5:$AP$108)","v":0},{"$f":"$I$5*'[2]21-23 Campus Contract Alloctns'!AO91/SUM('[2]21-23 Campus Contract Alloctns'!$I$5:$AP$108)","v":0},{"$f":"$I$5*'[2]21-23 Campus Contract Alloctns'!AP91/SUM('[2]21-23 Campus Contract Alloctns'!$I$5:$AP$108)","v":0}]
[null,"406 - County Road Administration Board","406","County Road Administration Board",2.8363898064362214E-4,16,2.8363898064362214E-4,0,0,{"$f":"$I$5*'[2]21-23 Campus Contract Alloctns'!I92/SUM('[2]21-23 Campus Contract Alloctns'!$I$5:$AP$108)","v":0},{"$f":"$I$5*'[2]21-23 Campus Contract Alloctns'!J92/SUM('[2]21-23 Campus Contract Alloctns'!$I$5:$AP$108)","v":0},{"$f":"$I$5*'[2]21-23 Campus Contract Alloctns'!K92/SUM('[2]21-23 Campus Contract Alloctns'!$I$5:$AP$108)","v":0},{"$f":"$I$5*'[2]21-23 Campus Contract Alloctns'!L92/SUM('[2]21-23 Campus Contract Alloctns'!$I$5:$AP$108)","v":0},{"$f":"$I$5*'[2]21-23 Campus Contract Alloctns'!M92/SUM('[2]21-23 Campus Contract Alloctns'!$I$5:$AP$108)","v":0},{"$f":"$I$5*'[2]21-23 Campus Contract Alloctns'!N92/SUM('[2]21-23 Campus Contract Alloctns'!$I$5:$AP$108)","v":0},{"$f":"$I$5*'[2]21-23 Campus Contract Alloctns'!O92/SUM('[2]21-23 Campus Contract Alloctns'!$I$5:$AP$108)","v":0},{"$f":"$I$5*'[2]21-23 Campus Contract Alloctns'!P92/SUM('[2]21-23 Campus Contract Alloctns'!$I$5:$AP$108)","v":0},{"$f":"$I$5*'[2]21-23 Campus Contract Alloctns'!Q92/SUM('[2]21-23 Campus Contract Alloctns'!$I$5:$AP$108)","v":0},{"$f":"$I$5*'[2]21-23 Campus Contract Alloctns'!R92/SUM('[2]21-23 Campus Contract Alloctns'!$I$5:$AP$108)","v":0},{"$f":"$I$5*'[2]21-23 Campus Contract Alloctns'!S92/SUM('[2]21-23 Campus Contract Alloctns'!$I$5:$AP$108)","v":0},{"$f":"$I$5*'[2]21-23 Campus Contract Alloctns'!T92/SUM('[2]21-23 Campus Contract Alloctns'!$I$5:$AP$108)","v":0},{"$f":"$I$5*'[2]21-23 Campus Contract Alloctns'!U92/SUM('[2]21-23 Campus Contract Alloctns'!$I$5:$AP$108)","v":0},{"$f":"$I$5*'[2]21-23 Campus Contract Alloctns'!V92/SUM('[2]21-23 Campus Contract Alloctns'!$I$5:$AP$108)","v":0},{"$f":"$I$5*'[2]21-23 Campus Contract Alloctns'!W92/SUM('[2]21-23 Campus Contract Alloctns'!$I$5:$AP$108)","v":0},{"$f":"$I$5*'[2]21-23 Campus Contract Alloctns'!X92/SUM('[2]21-23 Campus Contract Alloctns'!$I$5:$AP$108)","v":0},{"$f":"$I$5*'[2]21-23 Campus Contract Alloctns'!Y92/SUM('[2]21-23 Campus Contract Alloctns'!$I$5:$AP$108)","v":0},{"$f":"$I$5*'[2]21-23 Campus Contract Alloctns'!Z92/SUM('[2]21-23 Campus Contract Alloctns'!$I$5:$AP$108)","v":0},{"$f":"$I$5*'[2]21-23 Campus Contract Alloctns'!AA92/SUM('[2]21-23 Campus Contract Alloctns'!$I$5:$AP$108)","v":0},{"$f":"$I$5*'[2]21-23 Campus Contract Alloctns'!AB92/SUM('[2]21-23 Campus Contract Alloctns'!$I$5:$AP$108)","v":0},{"$f":"$I$5*'[2]21-23 Campus Contract Alloctns'!AC92/SUM('[2]21-23 Campus Contract Alloctns'!$I$5:$AP$108)","v":0},{"$f":"$I$5*'[2]21-23 Campus Contract Alloctns'!AD92/SUM('[2]21-23 Campus Contract Alloctns'!$I$5:$AP$108)","v":0},{"$f":"$I$5*'[2]21-23 Campus Contract Alloctns'!AE92/SUM('[2]21-23 Campus Contract Alloctns'!$I$5:$AP$108)","v":0},{"$f":"$I$5*'[2]21-23 Campus Contract Alloctns'!AF92/SUM('[2]21-23 Campus Contract Alloctns'!$I$5:$AP$108)","v":0},{"$f":"$I$5*'[2]21-23 Campus Contract Alloctns'!AG92/SUM('[2]21-23 Campus Contract Alloctns'!$I$5:$AP$108)","v":0},{"$f":"$I$5*'[2]21-23 Campus Contract Alloctns'!AH92/SUM('[2]21-23 Campus Contract Alloctns'!$I$5:$AP$108)","v":0},{"$f":"$I$5*'[2]21-23 Campus Contract Alloctns'!AI92/SUM('[2]21-23 Campus Contract Alloctns'!$I$5:$AP$108)","v":0},{"$f":"$I$5*'[2]21-23 Campus Contract Alloctns'!AJ92/SUM('[2]21-23 Campus Contract Alloctns'!$I$5:$AP$108)","v":0},{"$f":"$I$5*'[2]21-23 Campus Contract Alloctns'!AK92/SUM('[2]21-23 Campus Contract Alloctns'!$I$5:$AP$108)","v":0},{"$f":"$I$5*'[2]21-23 Campus Contract Alloctns'!AL92/SUM('[2]21-23 Campus Contract Alloctns'!$I$5:$AP$108)","v":0},{"$f":"$I$5*'[2]21-23 Campus Contract Alloctns'!AM92/SUM('[2]21-23 Campus Contract Alloctns'!$I$5:$AP$108)","v":0},{"$f":"$I$5*'[2]21-23 Campus Contract Alloctns'!AN92/SUM('[2]21-23 Campus Contract Alloctns'!$I$5:$AP$108)","v":0},{"$f":"$I$5*'[2]21-23 Campus Contract Alloctns'!AO92/SUM('[2]21-23 Campus Contract Alloctns'!$I$5:$AP$108)","v":0},{"$f":"$I$5*'[2]21-23 Campus Contract Alloctns'!AP92/SUM('[2]21-23 Campus Contract Alloctns'!$I$5:$AP$108)","v":0}]
[null,"407 - Transportation Improvement Board","407","Transportation Improvement Board",1.9500179919249025E-4,11,1.9500179919249025E-4,0,0,{"$f":"$I$5*'[2]21-23 Campus Contract Alloctns'!I93/SUM('[2]21-23 Campus Contract Alloctns'!$I$5:$AP$108)","v":0},{"$f":"$I$5*'[2]21-23 Campus Contract Alloctns'!J93/SUM('[2]21-23 Campus Contract Alloctns'!$I$5:$AP$108)","v":0},{"$f":"$I$5*'[2]21-23 Campus Contract Alloctns'!K93/SUM('[2]21-23 Campus Contract Alloctns'!$I$5:$AP$108)","v":0},{"$f":"$I$5*'[2]21-23 Campus Contract Alloctns'!L93/SUM('[2]21-23 Campus Contract Alloctns'!$I$5:$AP$108)","v":0},{"$f":"$I$5*'[2]21-23 Campus Contract Alloctns'!M93/SUM('[2]21-23 Campus Contract Alloctns'!$I$5:$AP$108)","v":0},{"$f":"$I$5*'[2]21-23 Campus Contract Alloctns'!N93/SUM('[2]21-23 Campus Contract Alloctns'!$I$5:$AP$108)","v":0},{"$f":"$I$5*'[2]21-23 Campus Contract Alloctns'!O93/SUM('[2]21-23 Campus Contract Alloctns'!$I$5:$AP$108)","v":0},{"$f":"$I$5*'[2]21-23 Campus Contract Alloctns'!P93/SUM('[2]21-23 Campus Contract Alloctns'!$I$5:$AP$108)","v":0},{"$f":"$I$5*'[2]21-23 Campus Contract Alloctns'!Q93/SUM('[2]21-23 Campus Contract Alloctns'!$I$5:$AP$108)","v":0},{"$f":"$I$5*'[2]21-23 Campus Contract Alloctns'!R93/SUM('[2]21-23 Campus Contract Alloctns'!$I$5:$AP$108)","v":0},{"$f":"$I$5*'[2]21-23 Campus Contract Alloctns'!S93/SUM('[2]21-23 Campus Contract Alloctns'!$I$5:$AP$108)","v":0},{"$f":"$I$5*'[2]21-23 Campus Contract Alloctns'!T93/SUM('[2]21-23 Campus Contract Alloctns'!$I$5:$AP$108)","v":0},{"$f":"$I$5*'[2]21-23 Campus Contract Alloctns'!U93/SUM('[2]21-23 Campus Contract Alloctns'!$I$5:$AP$108)","v":0},{"$f":"$I$5*'[2]21-23 Campus Contract Alloctns'!V93/SUM('[2]21-23 Campus Contract Alloctns'!$I$5:$AP$108)","v":0},{"$f":"$I$5*'[2]21-23 Campus Contract Alloctns'!W93/SUM('[2]21-23 Campus Contract Alloctns'!$I$5:$AP$108)","v":0},{"$f":"$I$5*'[2]21-23 Campus Contract Alloctns'!X93/SUM('[2]21-23 Campus Contract Alloctns'!$I$5:$AP$108)","v":0},{"$f":"$I$5*'[2]21-23 Campus Contract Alloctns'!Y93/SUM('[2]21-23 Campus Contract Alloctns'!$I$5:$AP$108)","v":0},{"$f":"$I$5*'[2]21-23 Campus Contract Alloctns'!Z93/SUM('[2]21-23 Campus Contract Alloctns'!$I$5:$AP$108)","v":0},{"$f":"$I$5*'[2]21-23 Campus Contract Alloctns'!AA93/SUM('[2]21-23 Campus Contract Alloctns'!$I$5:$AP$108)","v":0},{"$f":"$I$5*'[2]21-23 Campus Contract Alloctns'!AB93/SUM('[2]21-23 Campus Contract Alloctns'!$I$5:$AP$108)","v":0},{"$f":"$I$5*'[2]21-23 Campus Contract Alloctns'!AC93/SUM('[2]21-23 Campus Contract Alloctns'!$I$5:$AP$108)","v":0},{"$f":"$I$5*'[2]21-23 Campus Contract Alloctns'!AD93/SUM('[2]21-23 Campus Contract Alloctns'!$I$5:$AP$108)","v":0},{"$f":"$I$5*'[2]21-23 Campus Contract Alloctns'!AE93/SUM('[2]21-23 Campus Contract Alloctns'!$I$5:$AP$108)","v":0},{"$f":"$I$5*'[2]21-23 Campus Contract Alloctns'!AF93/SUM('[2]21-23 Campus Contract Alloctns'!$I$5:$AP$108)","v":0},{"$f":"$I$5*'[2]21-23 Campus Contract Alloctns'!AG93/SUM('[2]21-23 Campus Contract Alloctns'!$I$5:$AP$108)","v":0},{"$f":"$I$5*'[2]21-23 Campus Contract Alloctns'!AH93/SUM('[2]21-23 Campus Contract Alloctns'!$I$5:$AP$108)","v":0},{"$f":"$I$5*'[2]21-23 Campus Contract Alloctns'!AI93/SUM('[2]21-23 Campus Contract Alloctns'!$I$5:$AP$108)","v":0},{"$f":"$I$5*'[2]21-23 Campus Contract Alloctns'!AJ93/SUM('[2]21-23 Campus Contract Alloctns'!$I$5:$AP$108)","v":0},{"$f":"$I$5*'[2]21-23 Campus Contract Alloctns'!AK93/SUM('[2]21-23 Campus Contract Alloctns'!$I$5:$AP$108)","v":0},{"$f":"$I$5*'[2]21-23 Campus Contract Alloctns'!AL93/SUM('[2]21-23 Campus Contract Alloctns'!$I$5:$AP$108)","v":0},{"$f":"$I$5*'[2]21-23 Campus Contract Alloctns'!AM93/SUM('[2]21-23 Campus Contract Alloctns'!$I$5:$AP$108)","v":0},{"$f":"$I$5*'[2]21-23 Campus Contract Alloctns'!AN93/SUM('[2]21-23 Campus Contract Alloctns'!$I$5:$AP$108)","v":0},{"$f":"$I$5*'[2]21-23 Campus Contract Alloctns'!AO93/SUM('[2]21-23 Campus Contract Alloctns'!$I$5:$AP$108)","v":0},{"$f":"$I$5*'[2]21-23 Campus Contract Alloctns'!AP93/SUM('[2]21-23 Campus Contract Alloctns'!$I$5:$AP$108)","v":0}]
[null,"410 - Transportation Commission","410","Transportation Commission",1.0636461774135831E-4,6,1.0636461774135831E-4,0,0,{"$f":"$I$5*'[2]21-23 Campus Contract Alloctns'!I94/SUM('[2]21-23 Campus Contract Alloctns'!$I$5:$AP$108)","v":0},{"$f":"$I$5*'[2]21-23 Campus Contract Alloctns'!J94/SUM('[2]21-23 Campus Contract Alloctns'!$I$5:$AP$108)","v":0},{"$f":"$I$5*'[2]21-23 Campus Contract Alloctns'!K94/SUM('[2]21-23 Campus Contract Alloctns'!$I$5:$AP$108)","v":0},{"$f":"$I$5*'[2]21-23 Campus Contract Alloctns'!L94/SUM('[2]21-23 Campus Contract Alloctns'!$I$5:$AP$108)","v":0},{"$f":"$I$5*'[2]21-23 Campus Contract Alloctns'!M94/SUM('[2]21-23 Campus Contract Alloctns'!$I$5:$AP$108)","v":0},{"$f":"$I$5*'[2]21-23 Campus Contract Alloctns'!N94/SUM('[2]21-23 Campus Contract Alloctns'!$I$5:$AP$108)","v":0},{"$f":"$I$5*'[2]21-23 Campus Contract Alloctns'!O94/SUM('[2]21-23 Campus Contract Alloctns'!$I$5:$AP$108)","v":0},{"$f":"$I$5*'[2]21-23 Campus Contract Alloctns'!P94/SUM('[2]21-23 Campus Contract Alloctns'!$I$5:$AP$108)","v":0},{"$f":"$I$5*'[2]21-23 Campus Contract Alloctns'!Q94/SUM('[2]21-23 Campus Contract Alloctns'!$I$5:$AP$108)","v":0},{"$f":"$I$5*'[2]21-23 Campus Contract Alloctns'!R94/SUM('[2]21-23 Campus Contract Alloctns'!$I$5:$AP$108)","v":0},{"$f":"$I$5*'[2]21-23 Campus Contract Alloctns'!S94/SUM('[2]21-23 Campus Contract Alloctns'!$I$5:$AP$108)","v":0},{"$f":"$I$5*'[2]21-23 Campus Contract Alloctns'!T94/SUM('[2]21-23 Campus Contract Alloctns'!$I$5:$AP$108)","v":0},{"$f":"$I$5*'[2]21-23 Campus Contract Alloctns'!U94/SUM('[2]21-23 Campus Contract Alloctns'!$I$5:$AP$108)","v":0},{"$f":"$I$5*'[2]21-23 Campus Contract Alloctns'!V94/SUM('[2]21-23 Campus Contract Alloctns'!$I$5:$AP$108)","v":0},{"$f":"$I$5*'[2]21-23 Campus Contract Alloctns'!W94/SUM('[2]21-23 Campus Contract Alloctns'!$I$5:$AP$108)","v":0},{"$f":"$I$5*'[2]21-23 Campus Contract Alloctns'!X94/SUM('[2]21-23 Campus Contract Alloctns'!$I$5:$AP$108)","v":0},{"$f":"$I$5*'[2]21-23 Campus Contract Alloctns'!Y94/SUM('[2]21-23 Campus Contract Alloctns'!$I$5:$AP$108)","v":0},{"$f":"$I$5*'[2]21-23 Campus Contract Alloctns'!Z94/SUM('[2]21-23 Campus Contract Alloctns'!$I$5:$AP$108)","v":0},{"$f":"$I$5*'[2]21-23 Campus Contract Alloctns'!AA94/SUM('[2]21-23 Campus Contract Alloctns'!$I$5:$AP$108)","v":0},{"$f":"$I$5*'[2]21-23 Campus Contract Alloctns'!AB94/SUM('[2]21-23 Campus Contract Alloctns'!$I$5:$AP$108)","v":0},{"$f":"$I$5*'[2]21-23 Campus Contract Alloctns'!AC94/SUM('[2]21-23 Campus Contract Alloctns'!$I$5:$AP$108)","v":0},{"$f":"$I$5*'[2]21-23 Campus Contract Alloctns'!AD94/SUM('[2]21-23 Campus Contract Alloctns'!$I$5:$AP$108)","v":0},{"$f":"$I$5*'[2]21-23 Campus Contract Alloctns'!AE94/SUM('[2]21-23 Campus Contract Alloctns'!$I$5:$AP$108)","v":0},{"$f":"$I$5*'[2]21-23 Campus Contract Alloctns'!AF94/SUM('[2]21-23 Campus Contract Alloctns'!$I$5:$AP$108)","v":0},{"$f":"$I$5*'[2]21-23 Campus Contract Alloctns'!AG94/SUM('[2]21-23 Campus Contract Alloctns'!$I$5:$AP$108)","v":0},{"$f":"$I$5*'[2]21-23 Campus Contract Alloctns'!AH94/SUM('[2]21-23 Campus Contract Alloctns'!$I$5:$AP$108)","v":0},{"$f":"$I$5*'[2]21-23 Campus Contract Alloctns'!AI94/SUM('[2]21-23 Campus Contract Alloctns'!$I$5:$AP$108)","v":0},{"$f":"$I$5*'[2]21-23 Campus Contract Alloctns'!AJ94/SUM('[2]21-23 Campus Contract Alloctns'!$I$5:$AP$108)","v":0},{"$f":"$I$5*'[2]21-23 Campus Contract Alloctns'!AK94/SUM('[2]21-23 Campus Contract Alloctns'!$I$5:$AP$108)","v":0},{"$f":"$I$5*'[2]21-23 Campus Contract Alloctns'!AL94/SUM('[2]21-23 Campus Contract Alloctns'!$I$5:$AP$108)","v":0},{"$f":"$I$5*'[2]21-23 Campus Contract Alloctns'!AM94/SUM('[2]21-23 Campus Contract Alloctns'!$I$5:$AP$108)","v":0},{"$f":"$I$5*'[2]21-23 Campus Contract Alloctns'!AN94/SUM('[2]21-23 Campus Contract Alloctns'!$I$5:$AP$108)","v":0},{"$f":"$I$5*'[2]21-23 Campus Contract Alloctns'!AO94/SUM('[2]21-23 Campus Contract Alloctns'!$I$5:$AP$108)","v":0},{"$f":"$I$5*'[2]21-23 Campus Contract Alloctns'!AP94/SUM('[2]21-23 Campus Contract Alloctns'!$I$5:$AP$108)","v":0}]
[null,"411 - Freight Mobility Strategic Investment Board","411","Freight Mobility Strategic Investment Board",3.5454872580452768E-5,2,3.5454872580452768E-5,0,0,{"$f":"$I$5*'[2]21-23 Campus Contract Alloctns'!I95/SUM('[2]21-23 Campus Contract Alloctns'!$I$5:$AP$108)","v":0},{"$f":"$I$5*'[2]21-23 Campus Contract Alloctns'!J95/SUM('[2]21-23 Campus Contract Alloctns'!$I$5:$AP$108)","v":0},{"$f":"$I$5*'[2]21-23 Campus Contract Alloctns'!K95/SUM('[2]21-23 Campus Contract Alloctns'!$I$5:$AP$108)","v":0},{"$f":"$I$5*'[2]21-23 Campus Contract Alloctns'!L95/SUM('[2]21-23 Campus Contract Alloctns'!$I$5:$AP$108)","v":0},{"$f":"$I$5*'[2]21-23 Campus Contract Alloctns'!M95/SUM('[2]21-23 Campus Contract Alloctns'!$I$5:$AP$108)","v":0},{"$f":"$I$5*'[2]21-23 Campus Contract Alloctns'!N95/SUM('[2]21-23 Campus Contract Alloctns'!$I$5:$AP$108)","v":0},{"$f":"$I$5*'[2]21-23 Campus Contract Alloctns'!O95/SUM('[2]21-23 Campus Contract Alloctns'!$I$5:$AP$108)","v":0},{"$f":"$I$5*'[2]21-23 Campus Contract Alloctns'!P95/SUM('[2]21-23 Campus Contract Alloctns'!$I$5:$AP$108)","v":0},{"$f":"$I$5*'[2]21-23 Campus Contract Alloctns'!Q95/SUM('[2]21-23 Campus Contract Alloctns'!$I$5:$AP$108)","v":0},{"$f":"$I$5*'[2]21-23 Campus Contract Alloctns'!R95/SUM('[2]21-23 Campus Contract Alloctns'!$I$5:$AP$108)","v":0},{"$f":"$I$5*'[2]21-23 Campus Contract Alloctns'!S95/SUM('[2]21-23 Campus Contract Alloctns'!$I$5:$AP$108)","v":0},{"$f":"$I$5*'[2]21-23 Campus Contract Alloctns'!T95/SUM('[2]21-23 Campus Contract Alloctns'!$I$5:$AP$108)","v":0},{"$f":"$I$5*'[2]21-23 Campus Contract Alloctns'!U95/SUM('[2]21-23 Campus Contract Alloctns'!$I$5:$AP$108)","v":0},{"$f":"$I$5*'[2]21-23 Campus Contract Alloctns'!V95/SUM('[2]21-23 Campus Contract Alloctns'!$I$5:$AP$108)","v":0},{"$f":"$I$5*'[2]21-23 Campus Contract Alloctns'!W95/SUM('[2]21-23 Campus Contract Alloctns'!$I$5:$AP$108)","v":0},{"$f":"$I$5*'[2]21-23 Campus Contract Alloctns'!X95/SUM('[2]21-23 Campus Contract Alloctns'!$I$5:$AP$108)","v":0},{"$f":"$I$5*'[2]21-23 Campus Contract Alloctns'!Y95/SUM('[2]21-23 Campus Contract Alloctns'!$I$5:$AP$108)","v":0},{"$f":"$I$5*'[2]21-23 Campus Contract Alloctns'!Z95/SUM('[2]21-23 Campus Contract Alloctns'!$I$5:$AP$108)","v":0},{"$f":"$I$5*'[2]21-23 Campus Contract Alloctns'!AA95/SUM('[2]21-23 Campus Contract Alloctns'!$I$5:$AP$108)","v":0},{"$f":"$I$5*'[2]21-23 Campus Contract Alloctns'!AB95/SUM('[2]21-23 Campus Contract Alloctns'!$I$5:$AP$108)","v":0},{"$f":"$I$5*'[2]21-23 Campus Contract Alloctns'!AC95/SUM('[2]21-23 Campus Contract Alloctns'!$I$5:$AP$108)","v":0},{"$f":"$I$5*'[2]21-23 Campus Contract Alloctns'!AD95/SUM('[2]21-23 Campus Contract Alloctns'!$I$5:$AP$108)","v":0},{"$f":"$I$5*'[2]21-23 Campus Contract Alloctns'!AE95/SUM('[2]21-23 Campus Contract Alloctns'!$I$5:$AP$108)","v":0},{"$f":"$I$5*'[2]21-23 Campus Contract Alloctns'!AF95/SUM('[2]21-23 Campus Contract Alloctns'!$I$5:$AP$108)","v":0},{"$f":"$I$5*'[2]21-23 Campus Contract Alloctns'!AG95/SUM('[2]21-23 Campus Contract Alloctns'!$I$5:$AP$108)","v":0},{"$f":"$I$5*'[2]21-23 Campus Contract Alloctns'!AH95/SUM('[2]21-23 Campus Contract Alloctns'!$I$5:$AP$108)","v":0},{"$f":"$I$5*'[2]21-23 Campus Contract Alloctns'!AI95/SUM('[2]21-23 Campus Contract Alloctns'!$I$5:$AP$108)","v":0},{"$f":"$I$5*'[2]21-23 Campus Contract Alloctns'!AJ95/SUM('[2]21-23 Campus Contract Alloctns'!$I$5:$AP$108)","v":0},{"$f":"$I$5*'[2]21-23 Campus Contract Alloctns'!AK95/SUM('[2]21-23 Campus Contract Alloctns'!$I$5:$AP$108)","v":0},{"$f":"$I$5*'[2]21-23 Campus Contract Alloctns'!AL95/SUM('[2]21-23 Campus Contract Alloctns'!$I$5:$AP$108)","v":0},{"$f":"$I$5*'[2]21-23 Campus Contract Alloctns'!AM95/SUM('[2]21-23 Campus Contract Alloctns'!$I$5:$AP$108)","v":0},{"$f":"$I$5*'[2]21-23 Campus Contract Alloctns'!AN95/SUM('[2]21-23 Campus Contract Alloctns'!$I$5:$AP$108)","v":0},{"$f":"$I$5*'[2]21-23 Campus Contract Alloctns'!AO95/SUM('[2]21-23 Campus Contract Alloctns'!$I$5:$AP$108)","v":0},{"$f":"$I$5*'[2]21-23 Campus Contract Alloctns'!AP95/SUM('[2]21-23 Campus Contract Alloctns'!$I$5:$AP$108)","v":0}]
[null,"460 - Columbia River Gorge Commission","460","Columbia River Gorge Commission",0,0,0,0,0,{"$f":"$I$5*'[2]21-23 Campus Contract Alloctns'!I96/SUM('[2]21-23 Campus Contract Alloctns'!$I$5:$AP$108)","v":0},{"$f":"$I$5*'[2]21-23 Campus Contract Alloctns'!J96/SUM('[2]21-23 Campus Contract Alloctns'!$I$5:$AP$108)","v":0},{"$f":"$I$5*'[2]21-23 Campus Contract Alloctns'!K96/SUM('[2]21-23 Campus Contract Alloctns'!$I$5:$AP$108)","v":0},{"$f":"$I$5*'[2]21-23 Campus Contract Alloctns'!L96/SUM('[2]21-23 Campus Contract Alloctns'!$I$5:$AP$108)","v":0},{"$f":"$I$5*'[2]21-23 Campus Contract Alloctns'!M96/SUM('[2]21-23 Campus Contract Alloctns'!$I$5:$AP$108)","v":0},{"$f":"$I$5*'[2]21-23 Campus Contract Alloctns'!N96/SUM('[2]21-23 Campus Contract Alloctns'!$I$5:$AP$108)","v":0},{"$f":"$I$5*'[2]21-23 Campus Contract Alloctns'!O96/SUM('[2]21-23 Campus Contract Alloctns'!$I$5:$AP$108)","v":0},{"$f":"$I$5*'[2]21-23 Campus Contract Alloctns'!P96/SUM('[2]21-23 Campus Contract Alloctns'!$I$5:$AP$108)","v":0},{"$f":"$I$5*'[2]21-23 Campus Contract Alloctns'!Q96/SUM('[2]21-23 Campus Contract Alloctns'!$I$5:$AP$108)","v":0},{"$f":"$I$5*'[2]21-23 Campus Contract Alloctns'!R96/SUM('[2]21-23 Campus Contract Alloctns'!$I$5:$AP$108)","v":0},{"$f":"$I$5*'[2]21-23 Campus Contract Alloctns'!S96/SUM('[2]21-23 Campus Contract Alloctns'!$I$5:$AP$108)","v":0},{"$f":"$I$5*'[2]21-23 Campus Contract Alloctns'!T96/SUM('[2]21-23 Campus Contract Alloctns'!$I$5:$AP$108)","v":0},{"$f":"$I$5*'[2]21-23 Campus Contract Alloctns'!U96/SUM('[2]21-23 Campus Contract Alloctns'!$I$5:$AP$108)","v":0},{"$f":"$I$5*'[2]21-23 Campus Contract Alloctns'!V96/SUM('[2]21-23 Campus Contract Alloctns'!$I$5:$AP$108)","v":0},{"$f":"$I$5*'[2]21-23 Campus Contract Alloctns'!W96/SUM('[2]21-23 Campus Contract Alloctns'!$I$5:$AP$108)","v":0},{"$f":"$I$5*'[2]21-23 Campus Contract Alloctns'!X96/SUM('[2]21-23 Campus Contract Alloctns'!$I$5:$AP$108)","v":0},{"$f":"$I$5*'[2]21-23 Campus Contract Alloctns'!Y96/SUM('[2]21-23 Campus Contract Alloctns'!$I$5:$AP$108)","v":0},{"$f":"$I$5*'[2]21-23 Campus Contract Alloctns'!Z96/SUM('[2]21-23 Campus Contract Alloctns'!$I$5:$AP$108)","v":0},{"$f":"$I$5*'[2]21-23 Campus Contract Alloctns'!AA96/SUM('[2]21-23 Campus Contract Alloctns'!$I$5:$AP$108)","v":0},{"$f":"$I$5*'[2]21-23 Campus Contract Alloctns'!AB96/SUM('[2]21-23 Campus Contract Alloctns'!$I$5:$AP$108)","v":0},{"$f":"$I$5*'[2]21-23 Campus Contract Alloctns'!AC96/SUM('[2]21-23 Campus Contract Alloctns'!$I$5:$AP$108)","v":0},{"$f":"$I$5*'[2]21-23 Campus Contract Alloctns'!AD96/SUM('[2]21-23 Campus Contract Alloctns'!$I$5:$AP$108)","v":0},{"$f":"$I$5*'[2]21-23 Campus Contract Alloctns'!AE96/SUM('[2]21-23 Campus Contract Alloctns'!$I$5:$AP$108)","v":0},{"$f":"$I$5*'[2]21-23 Campus Contract Alloctns'!AF96/SUM('[2]21-23 Campus Contract Alloctns'!$I$5:$AP$108)","v":0},{"$f":"$I$5*'[2]21-23 Campus Contract Alloctns'!AG96/SUM('[2]21-23 Campus Contract Alloctns'!$I$5:$AP$108)","v":0},{"$f":"$I$5*'[2]21-23 Campus Contract Alloctns'!AH96/SUM('[2]21-23 Campus Contract Alloctns'!$I$5:$AP$108)","v":0},{"$f":"$I$5*'[2]21-23 Campus Contract Alloctns'!AI96/SUM('[2]21-23 Campus Contract Alloctns'!$I$5:$AP$108)","v":0},{"$f":"$I$5*'[2]21-23 Campus Contract Alloctns'!AJ96/SUM('[2]21-23 Campus Contract Alloctns'!$I$5:$AP$108)","v":0},{"$f":"$I$5*'[2]21-23 Campus Contract Alloctns'!AK96/SUM('[2]21-23 Campus Contract Alloctns'!$I$5:$AP$108)","v":0},{"$f":"$I$5*'[2]21-23 Campus Contract Alloctns'!AL96/SUM('[2]21-23 Campus Contract Alloctns'!$I$5:$AP$108)","v":0},{"$f":"$I$5*'[2]21-23 Campus Contract Alloctns'!AM96/SUM('[2]21-23 Campus Contract Alloctns'!$I$5:$AP$108)","v":0},{"$f":"$I$5*'[2]21-23 Campus Contract Alloctns'!AN96/SUM('[2]21-23 Campus Contract Alloctns'!$I$5:$AP$108)","v":0},{"$f":"$I$5*'[2]21-23 Campus Contract Alloctns'!AO96/SUM('[2]21-23 Campus Contract Alloctns'!$I$5:$AP$108)","v":0},{"$f":"$I$5*'[2]21-23 Campus Contract Alloctns'!AP96/SUM('[2]21-23 Campus Contract Alloctns'!$I$5:$AP$108)","v":0}]
[null,"461 - Department of Ecology","461","Department of Ecology",1.7248795510390273E-2,973,1.7248795510390273E-2,0,0,{"$f":"$I$5*'[2]21-23 Campus Contract Alloctns'!I97/SUM('[2]21-23 Campus Contract Alloctns'!$I$5:$AP$108)","v":0},{"$f":"$I$5*'[2]21-23 Campus Contract Alloctns'!J97/SUM('[2]21-23 Campus Contract Alloctns'!$I$5:$AP$108)","v":0},{"$f":"$I$5*'[2]21-23 Campus Contract Alloctns'!K97/SUM('[2]21-23 Campus Contract Alloctns'!$I$5:$AP$108)","v":0},{"$f":"$I$5*'[2]21-23 Campus Contract Alloctns'!L97/SUM('[2]21-23 Campus Contract Alloctns'!$I$5:$AP$108)","v":0},{"$f":"$I$5*'[2]21-23 Campus Contract Alloctns'!M97/SUM('[2]21-23 Campus Contract Alloctns'!$I$5:$AP$108)","v":0},{"$f":"$I$5*'[2]21-23 Campus Contract Alloctns'!N97/SUM('[2]21-23 Campus Contract Alloctns'!$I$5:$AP$108)","v":0},{"$f":"$I$5*'[2]21-23 Campus Contract Alloctns'!O97/SUM('[2]21-23 Campus Contract Alloctns'!$I$5:$AP$108)","v":0},{"$f":"$I$5*'[2]21-23 Campus Contract Alloctns'!P97/SUM('[2]21-23 Campus Contract Alloctns'!$I$5:$AP$108)","v":0},{"$f":"$I$5*'[2]21-23 Campus Contract Alloctns'!Q97/SUM('[2]21-23 Campus Contract Alloctns'!$I$5:$AP$108)","v":0},{"$f":"$I$5*'[2]21-23 Campus Contract Alloctns'!R97/SUM('[2]21-23 Campus Contract Alloctns'!$I$5:$AP$108)","v":0},{"$f":"$I$5*'[2]21-23 Campus Contract Alloctns'!S97/SUM('[2]21-23 Campus Contract Alloctns'!$I$5:$AP$108)","v":0},{"$f":"$I$5*'[2]21-23 Campus Contract Alloctns'!T97/SUM('[2]21-23 Campus Contract Alloctns'!$I$5:$AP$108)","v":0},{"$f":"$I$5*'[2]21-23 Campus Contract Alloctns'!U97/SUM('[2]21-23 Campus Contract Alloctns'!$I$5:$AP$108)","v":0},{"$f":"$I$5*'[2]21-23 Campus Contract Alloctns'!V97/SUM('[2]21-23 Campus Contract Alloctns'!$I$5:$AP$108)","v":0},{"$f":"$I$5*'[2]21-23 Campus Contract Alloctns'!W97/SUM('[2]21-23 Campus Contract Alloctns'!$I$5:$AP$108)","v":0},{"$f":"$I$5*'[2]21-23 Campus Contract Alloctns'!X97/SUM('[2]21-23 Campus Contract Alloctns'!$I$5:$AP$108)","v":0},{"$f":"$I$5*'[2]21-23 Campus Contract Alloctns'!Y97/SUM('[2]21-23 Campus Contract Alloctns'!$I$5:$AP$108)","v":0},{"$f":"$I$5*'[2]21-23 Campus Contract Alloctns'!Z97/SUM('[2]21-23 Campus Contract Alloctns'!$I$5:$AP$108)","v":0},{"$f":"$I$5*'[2]21-23 Campus Contract Alloctns'!AA97/SUM('[2]21-23 Campus Contract Alloctns'!$I$5:$AP$108)","v":0},{"$f":"$I$5*'[2]21-23 Campus Contract Alloctns'!AB97/SUM('[2]21-23 Campus Contract Alloctns'!$I$5:$AP$108)","v":0},{"$f":"$I$5*'[2]21-23 Campus Contract Alloctns'!AC97/SUM('[2]21-23 Campus Contract Alloctns'!$I$5:$AP$108)","v":0},{"$f":"$I$5*'[2]21-23 Campus Contract Alloctns'!AD97/SUM('[2]21-23 Campus Contract Alloctns'!$I$5:$AP$108)","v":0},{"$f":"$I$5*'[2]21-23 Campus Contract Alloctns'!AE97/SUM('[2]21-23 Campus Contract Alloctns'!$I$5:$AP$108)","v":0},{"$f":"$I$5*'[2]21-23 Campus Contract Alloctns'!AF97/SUM('[2]21-23 Campus Contract Alloctns'!$I$5:$AP$108)","v":0},{"$f":"$I$5*'[2]21-23 Campus Contract Alloctns'!AG97/SUM('[2]21-23 Campus Contract Alloctns'!$I$5:$AP$108)","v":0},{"$f":"$I$5*'[2]21-23 Campus Contract Alloctns'!AH97/SUM('[2]21-23 Campus Contract Alloctns'!$I$5:$AP$108)","v":0},{"$f":"$I$5*'[2]21-23 Campus Contract Alloctns'!AI97/SUM('[2]21-23 Campus Contract Alloctns'!$I$5:$AP$108)","v":0},{"$f":"$I$5*'[2]21-23 Campus Contract Alloctns'!AJ97/SUM('[2]21-23 Campus Contract Alloctns'!$I$5:$AP$108)","v":0},{"$f":"$I$5*'[2]21-23 Campus Contract Alloctns'!AK97/SUM('[2]21-23 Campus Contract Alloctns'!$I$5:$AP$108)","v":0},{"$f":"$I$5*'[2]21-23 Campus Contract Alloctns'!AL97/SUM('[2]21-23 Campus Contract Alloctns'!$I$5:$AP$108)","v":0},{"$f":"$I$5*'[2]21-23 Campus Contract Alloctns'!AM97/SUM('[2]21-23 Campus Contract Alloctns'!$I$5:$AP$108)","v":0},{"$f":"$I$5*'[2]21-23 Campus Contract Alloctns'!AN97/SUM('[2]21-23 Campus Contract Alloctns'!$I$5:$AP$108)","v":0},{"$f":"$I$5*'[2]21-23 Campus Contract Alloctns'!AO97/SUM('[2]21-23 Campus Contract Alloctns'!$I$5:$AP$108)","v":0},{"$f":"$I$5*'[2]21-23 Campus Contract Alloctns'!AP97/SUM('[2]21-23 Campus Contract Alloctns'!$I$5:$AP$108)","v":0}]
[null,"462 - Pollution Liability Insurance Program","462","Pollution Liability Insurance Program",3.1909385322407489E-4,18,3.1909385322407489E-4,0,0,{"$f":"$I$5*'[2]21-23 Campus Contract Alloctns'!I98/SUM('[2]21-23 Campus Contract Alloctns'!$I$5:$AP$108)","v":0},{"$f":"$I$5*'[2]21-23 Campus Contract Alloctns'!J98/SUM('[2]21-23 Campus Contract Alloctns'!$I$5:$AP$108)","v":0},{"$f":"$I$5*'[2]21-23 Campus Contract Alloctns'!K98/SUM('[2]21-23 Campus Contract Alloctns'!$I$5:$AP$108)","v":0},{"$f":"$I$5*'[2]21-23 Campus Contract Alloctns'!L98/SUM('[2]21-23 Campus Contract Alloctns'!$I$5:$AP$108)","v":0},{"$f":"$I$5*'[2]21-23 Campus Contract Alloctns'!M98/SUM('[2]21-23 Campus Contract Alloctns'!$I$5:$AP$108)","v":0},{"$f":"$I$5*'[2]21-23 Campus Contract Alloctns'!N98/SUM('[2]21-23 Campus Contract Alloctns'!$I$5:$AP$108)","v":0},{"$f":"$I$5*'[2]21-23 Campus Contract Alloctns'!O98/SUM('[2]21-23 Campus Contract Alloctns'!$I$5:$AP$108)","v":0},{"$f":"$I$5*'[2]21-23 Campus Contract Alloctns'!P98/SUM('[2]21-23 Campus Contract Alloctns'!$I$5:$AP$108)","v":0},{"$f":"$I$5*'[2]21-23 Campus Contract Alloctns'!Q98/SUM('[2]21-23 Campus Contract Alloctns'!$I$5:$AP$108)","v":0},{"$f":"$I$5*'[2]21-23 Campus Contract Alloctns'!R98/SUM('[2]21-23 Campus Contract Alloctns'!$I$5:$AP$108)","v":0},{"$f":"$I$5*'[2]21-23 Campus Contract Alloctns'!S98/SUM('[2]21-23 Campus Contract Alloctns'!$I$5:$AP$108)","v":0},{"$f":"$I$5*'[2]21-23 Campus Contract Alloctns'!T98/SUM('[2]21-23 Campus Contract Alloctns'!$I$5:$AP$108)","v":0},{"$f":"$I$5*'[2]21-23 Campus Contract Alloctns'!U98/SUM('[2]21-23 Campus Contract Alloctns'!$I$5:$AP$108)","v":0},{"$f":"$I$5*'[2]21-23 Campus Contract Alloctns'!V98/SUM('[2]21-23 Campus Contract Alloctns'!$I$5:$AP$108)","v":0},{"$f":"$I$5*'[2]21-23 Campus Contract Alloctns'!W98/SUM('[2]21-23 Campus Contract Alloctns'!$I$5:$AP$108)","v":0},{"$f":"$I$5*'[2]21-23 Campus Contract Alloctns'!X98/SUM('[2]21-23 Campus Contract Alloctns'!$I$5:$AP$108)","v":0},{"$f":"$I$5*'[2]21-23 Campus Contract Alloctns'!Y98/SUM('[2]21-23 Campus Contract Alloctns'!$I$5:$AP$108)","v":0},{"$f":"$I$5*'[2]21-23 Campus Contract Alloctns'!Z98/SUM('[2]21-23 Campus Contract Alloctns'!$I$5:$AP$108)","v":0},{"$f":"$I$5*'[2]21-23 Campus Contract Alloctns'!AA98/SUM('[2]21-23 Campus Contract Alloctns'!$I$5:$AP$108)","v":0},{"$f":"$I$5*'[2]21-23 Campus Contract Alloctns'!AB98/SUM('[2]21-23 Campus Contract Alloctns'!$I$5:$AP$108)","v":0},{"$f":"$I$5*'[2]21-23 Campus Contract Alloctns'!AC98/SUM('[2]21-23 Campus Contract Alloctns'!$I$5:$AP$108)","v":0},{"$f":"$I$5*'[2]21-23 Campus Contract Alloctns'!AD98/SUM('[2]21-23 Campus Contract Alloctns'!$I$5:$AP$108)","v":0},{"$f":"$I$5*'[2]21-23 Campus Contract Alloctns'!AE98/SUM('[2]21-23 Campus Contract Alloctns'!$I$5:$AP$108)","v":0},{"$f":"$I$5*'[2]21-23 Campus Contract Alloctns'!AF98/SUM('[2]21-23 Campus Contract Alloctns'!$I$5:$AP$108)","v":0},{"$f":"$I$5*'[2]21-23 Campus Contract Alloctns'!AG98/SUM('[2]21-23 Campus Contract Alloctns'!$I$5:$AP$108)","v":0},{"$f":"$I$5*'[2]21-23 Campus Contract Alloctns'!AH98/SUM('[2]21-23 Campus Contract Alloctns'!$I$5:$AP$108)","v":0},{"$f":"$I$5*'[2]21-23 Campus Contract Alloctns'!AI98/SUM('[2]21-23 Campus Contract Alloctns'!$I$5:$AP$108)","v":0},{"$f":"$I$5*'[2]21-23 Campus Contract Alloctns'!AJ98/SUM('[2]21-23 Campus Contract Alloctns'!$I$5:$AP$108)","v":0},{"$f":"$I$5*'[2]21-23 Campus Contract Alloctns'!AK98/SUM('[2]21-23 Campus Contract Alloctns'!$I$5:$AP$108)","v":0},{"$f":"$I$5*'[2]21-23 Campus Contract Alloctns'!AL98/SUM('[2]21-23 Campus Contract Alloctns'!$I$5:$AP$108)","v":0},{"$f":"$I$5*'[2]21-23 Campus Contract Alloctns'!AM98/SUM('[2]21-23 Campus Contract Alloctns'!$I$5:$AP$108)","v":0},{"$f":"$I$5*'[2]21-23 Campus Contract Alloctns'!AN98/SUM('[2]21-23 Campus Contract Alloctns'!$I$5:$AP$108)","v":0},{"$f":"$I$5*'[2]21-23 Campus Contract Alloctns'!AO98/SUM('[2]21-23 Campus Contract Alloctns'!$I$5:$AP$108)","v":0},{"$f":"$I$5*'[2]21-23 Campus Contract Alloctns'!AP98/SUM('[2]21-23 Campus Contract Alloctns'!$I$5:$AP$108)","v":0}]
[null,"465 - State Parks and Recreation Commission","465","State Parks and Recreation Commission",3.2973031499821076E-3,186,3.2973031499821076E-3,0,0,{"$f":"$I$5*'[2]21-23 Campus Contract Alloctns'!I99/SUM('[2]21-23 Campus Contract Alloctns'!$I$5:$AP$108)","v":0},{"$f":"$I$5*'[2]21-23 Campus Contract Alloctns'!J99/SUM('[2]21-23 Campus Contract Alloctns'!$I$5:$AP$108)","v":0},{"$f":"$I$5*'[2]21-23 Campus Contract Alloctns'!K99/SUM('[2]21-23 Campus Contract Alloctns'!$I$5:$AP$108)","v":0},{"$f":"$I$5*'[2]21-23 Campus Contract Alloctns'!L99/SUM('[2]21-23 Campus Contract Alloctns'!$I$5:$AP$108)","v":0},{"$f":"$I$5*'[2]21-23 Campus Contract Alloctns'!M99/SUM('[2]21-23 Campus Contract Alloctns'!$I$5:$AP$108)","v":0},{"$f":"$I$5*'[2]21-23 Campus Contract Alloctns'!N99/SUM('[2]21-23 Campus Contract Alloctns'!$I$5:$AP$108)","v":0},{"$f":"$I$5*'[2]21-23 Campus Contract Alloctns'!O99/SUM('[2]21-23 Campus Contract Alloctns'!$I$5:$AP$108)","v":0},{"$f":"$I$5*'[2]21-23 Campus Contract Alloctns'!P99/SUM('[2]21-23 Campus Contract Alloctns'!$I$5:$AP$108)","v":0},{"$f":"$I$5*'[2]21-23 Campus Contract Alloctns'!Q99/SUM('[2]21-23 Campus Contract Alloctns'!$I$5:$AP$108)","v":0},{"$f":"$I$5*'[2]21-23 Campus Contract Alloctns'!R99/SUM('[2]21-23 Campus Contract Alloctns'!$I$5:$AP$108)","v":0},{"$f":"$I$5*'[2]21-23 Campus Contract Alloctns'!S99/SUM('[2]21-23 Campus Contract Alloctns'!$I$5:$AP$108)","v":0},{"$f":"$I$5*'[2]21-23 Campus Contract Alloctns'!T99/SUM('[2]21-23 Campus Contract Alloctns'!$I$5:$AP$108)","v":0},{"$f":"$I$5*'[2]21-23 Campus Contract Alloctns'!U99/SUM('[2]21-23 Campus Contract Alloctns'!$I$5:$AP$108)","v":0},{"$f":"$I$5*'[2]21-23 Campus Contract Alloctns'!V99/SUM('[2]21-23 Campus Contract Alloctns'!$I$5:$AP$108)","v":0},{"$f":"$I$5*'[2]21-23 Campus Contract Alloctns'!W99/SUM('[2]21-23 Campus Contract Alloctns'!$I$5:$AP$108)","v":0},{"$f":"$I$5*'[2]21-23 Campus Contract Alloctns'!X99/SUM('[2]21-23 Campus Contract Alloctns'!$I$5:$AP$108)","v":0},{"$f":"$I$5*'[2]21-23 Campus Contract Alloctns'!Y99/SUM('[2]21-23 Campus Contract Alloctns'!$I$5:$AP$108)","v":0},{"$f":"$I$5*'[2]21-23 Campus Contract Alloctns'!Z99/SUM('[2]21-23 Campus Contract Alloctns'!$I$5:$AP$108)","v":0},{"$f":"$I$5*'[2]21-23 Campus Contract Alloctns'!AA99/SUM('[2]21-23 Campus Contract Alloctns'!$I$5:$AP$108)","v":0},{"$f":"$I$5*'[2]21-23 Campus Contract Alloctns'!AB99/SUM('[2]21-23 Campus Contract Alloctns'!$I$5:$AP$108)","v":0},{"$f":"$I$5*'[2]21-23 Campus Contract Alloctns'!AC99/SUM('[2]21-23 Campus Contract Alloctns'!$I$5:$AP$108)","v":0},{"$f":"$I$5*'[2]21-23 Campus Contract Alloctns'!AD99/SUM('[2]21-23 Campus Contract Alloctns'!$I$5:$AP$108)","v":0},{"$f":"$I$5*'[2]21-23 Campus Contract Alloctns'!AE99/SUM('[2]21-23 Campus Contract Alloctns'!$I$5:$AP$108)","v":0},{"$f":"$I$5*'[2]21-23 Campus Contract Alloctns'!AF99/SUM('[2]21-23 Campus Contract Alloctns'!$I$5:$AP$108)","v":0},{"$f":"$I$5*'[2]21-23 Campus Contract Alloctns'!AG99/SUM('[2]21-23 Campus Contract Alloctns'!$I$5:$AP$108)","v":0},{"$f":"$I$5*'[2]21-23 Campus Contract Alloctns'!AH99/SUM('[2]21-23 Campus Contract Alloctns'!$I$5:$AP$108)","v":0},{"$f":"$I$5*'[2]21-23 Campus Contract Alloctns'!AI99/SUM('[2]21-23 Campus Contract Alloctns'!$I$5:$AP$108)","v":0},{"$f":"$I$5*'[2]21-23 Campus Contract Alloctns'!AJ99/SUM('[2]21-23 Campus Contract Alloctns'!$I$5:$AP$108)","v":0},{"$f":"$I$5*'[2]21-23 Campus Contract Alloctns'!AK99/SUM('[2]21-23 Campus Contract Alloctns'!$I$5:$AP$108)","v":0},{"$f":"$I$5*'[2]21-23 Campus Contract Alloctns'!AL99/SUM('[2]21-23 Campus Contract Alloctns'!$I$5:$AP$108)","v":0},{"$f":"$I$5*'[2]21-23 Campus Contract Alloctns'!AM99/SUM('[2]21-23 Campus Contract Alloctns'!$I$5:$AP$108)","v":0},{"$f":"$I$5*'[2]21-23 Campus Contract Alloctns'!AN99/SUM('[2]21-23 Campus Contract Alloctns'!$I$5:$AP$108)","v":0},{"$f":"$I$5*'[2]21-23 Campus Contract Alloctns'!AO99/SUM('[2]21-23 Campus Contract Alloctns'!$I$5:$AP$108)","v":0},{"$f":"$I$5*'[2]21-23 Campus Contract Alloctns'!AP99/SUM('[2]21-23 Campus Contract Alloctns'!$I$5:$AP$108)","v":0}]
[null,"467 - Recreation and Conservation Funding Board","467","Recreation and Conservation Funding Board",4.4916390747856876E-3,61,1.0813736137038096E-3,4.7195062157510915E-4,2.9383148395067688E-3,{"$f":"$I$5*'[2]21-23 Campus Contract Alloctns'!I100/SUM('[2]21-23 Campus Contract Alloctns'!$I$5:$AP$108)","v":0},{"$f":"$I$5*'[2]21-23 Campus Contract Alloctns'!J100/SUM('[2]21-23 Campus Contract Alloctns'!$I$5:$AP$108)","v":0},{"$f":"$I$5*'[2]21-23 Campus Contract Alloctns'!K100/SUM('[2]21-23 Campus Contract Alloctns'!$I$5:$AP$108)","v":0},{"$f":"$I$5*'[2]21-23 Campus Contract Alloctns'!L100/SUM('[2]21-23 Campus Contract Alloctns'!$I$5:$AP$108)","v":0},{"$f":"$I$5*'[2]21-23 Campus Contract Alloctns'!M100/SUM('[2]21-23 Campus Contract Alloctns'!$I$5:$AP$108)","v":0},{"$f":"$I$5*'[2]21-23 Campus Contract Alloctns'!N100/SUM('[2]21-23 Campus Contract Alloctns'!$I$5:$AP$108)","v":0},{"$f":"$I$5*'[2]21-23 Campus Contract Alloctns'!O100/SUM('[2]21-23 Campus Contract Alloctns'!$I$5:$AP$108)","v":0},{"$f":"$I$5*'[2]21-23 Campus Contract Alloctns'!P100/SUM('[2]21-23 Campus Contract Alloctns'!$I$5:$AP$108)","v":2.9383148395067693E-3},{"$f":"$I$5*'[2]21-23 Campus Contract Alloctns'!Q100/SUM('[2]21-23 Campus Contract Alloctns'!$I$5:$AP$108)","v":0},{"$f":"$I$5*'[2]21-23 Campus Contract Alloctns'!R100/SUM('[2]21-23 Campus Contract Alloctns'!$I$5:$AP$108)","v":0},{"$f":"$I$5*'[2]21-23 Campus Contract Alloctns'!S100/SUM('[2]21-23 Campus Contract Alloctns'!$I$5:$AP$108)","v":0},{"$f":"$I$5*'[2]21-23 Campus Contract Alloctns'!T100/SUM('[2]21-23 Campus Contract Alloctns'!$I$5:$AP$108)","v":0},{"$f":"$I$5*'[2]21-23 Campus Contract Alloctns'!U100/SUM('[2]21-23 Campus Contract Alloctns'!$I$5:$AP$108)","v":0},{"$f":"$I$5*'[2]21-23 Campus Contract Alloctns'!V100/SUM('[2]21-23 Campus Contract Alloctns'!$I$5:$AP$108)","v":0},{"$f":"$I$5*'[2]21-23 Campus Contract Alloctns'!W100/SUM('[2]21-23 Campus Contract Alloctns'!$I$5:$AP$108)","v":0},{"$f":"$I$5*'[2]21-23 Campus Contract Alloctns'!X100/SUM('[2]21-23 Campus Contract Alloctns'!$I$5:$AP$108)","v":0},{"$f":"$I$5*'[2]21-23 Campus Contract Alloctns'!Y100/SUM('[2]21-23 Campus Contract Alloctns'!$I$5:$AP$108)","v":0},{"$f":"$I$5*'[2]21-23 Campus Contract Alloctns'!Z100/SUM('[2]21-23 Campus Contract Alloctns'!$I$5:$AP$108)","v":0},{"$f":"$I$5*'[2]21-23 Campus Contract Alloctns'!AA100/SUM('[2]21-23 Campus Contract Alloctns'!$I$5:$AP$108)","v":0},{"$f":"$I$5*'[2]21-23 Campus Contract Alloctns'!AB100/SUM('[2]21-23 Campus Contract Alloctns'!$I$5:$AP$108)","v":0},{"$f":"$I$5*'[2]21-23 Campus Contract Alloctns'!AC100/SUM('[2]21-23 Campus Contract Alloctns'!$I$5:$AP$108)","v":0},{"$f":"$I$5*'[2]21-23 Campus Contract Alloctns'!AD100/SUM('[2]21-23 Campus Contract Alloctns'!$I$5:$AP$108)","v":0},{"$f":"$I$5*'[2]21-23 Campus Contract Alloctns'!AE100/SUM('[2]21-23 Campus Contract Alloctns'!$I$5:$AP$108)","v":0},{"$f":"$I$5*'[2]21-23 Campus Contract Alloctns'!AF100/SUM('[2]21-23 Campus Contract Alloctns'!$I$5:$AP$108)","v":0},{"$f":"$I$5*'[2]21-23 Campus Contract Alloctns'!AG100/SUM('[2]21-23 Campus Contract Alloctns'!$I$5:$AP$108)","v":0},{"$f":"$I$5*'[2]21-23 Campus Contract Alloctns'!AH100/SUM('[2]21-23 Campus Contract Alloctns'!$I$5:$AP$108)","v":0},{"$f":"$I$5*'[2]21-23 Campus Contract Alloctns'!AI100/SUM('[2]21-23 Campus Contract Alloctns'!$I$5:$AP$108)","v":0},{"$f":"$I$5*'[2]21-23 Campus Contract Alloctns'!AJ100/SUM('[2]21-23 Campus Contract Alloctns'!$I$5:$AP$108)","v":0},{"$f":"$I$5*'[2]21-23 Campus Contract Alloctns'!AK100/SUM('[2]21-23 Campus Contract Alloctns'!$I$5:$AP$108)","v":0},{"$f":"$I$5*'[2]21-23 Campus Contract Alloctns'!AL100/SUM('[2]21-23 Campus Contract Alloctns'!$I$5:$AP$108)","v":0},{"$f":"$I$5*'[2]21-23 Campus Contract Alloctns'!AM100/SUM('[2]21-23 Campus Contract Alloctns'!$I$5:$AP$108)","v":0},{"$f":"$I$5*'[2]21-23 Campus Contract Alloctns'!AN100/SUM('[2]21-23 Campus Contract Alloctns'!$I$5:$AP$108)","v":0},{"$f":"$I$5*'[2]21-23 Campus Contract Alloctns'!AO100/SUM('[2]21-23 Campus Contract Alloctns'!$I$5:$AP$108)","v":0},{"$f":"$I$5*'[2]21-23 Campus Contract Alloctns'!AP100/SUM('[2]21-23 Campus Contract Alloctns'!$I$5:$AP$108)","v":0}]
[null,"468 - Environmental and Land Use Hearings Office","468","Environmental and Land Use Hearings Office",1.7727436290226387E-4,10,1.7727436290226387E-4,0,0,{"$f":"$I$5*'[2]21-23 Campus Contract Alloctns'!I101/SUM('[2]21-23 Campus Contract Alloctns'!$I$5:$AP$108)","v":0},{"$f":"$I$5*'[2]21-23 Campus Contract Alloctns'!J101/SUM('[2]21-23 Campus Contract Alloctns'!$I$5:$AP$108)","v":0},{"$f":"$I$5*'[2]21-23 Campus Contract Alloctns'!K101/SUM('[2]21-23 Campus Contract Alloctns'!$I$5:$AP$108)","v":0},{"$f":"$I$5*'[2]21-23 Campus Contract Alloctns'!L101/SUM('[2]21-23 Campus Contract Alloctns'!$I$5:$AP$108)","v":0},{"$f":"$I$5*'[2]21-23 Campus Contract Alloctns'!M101/SUM('[2]21-23 Campus Contract Alloctns'!$I$5:$AP$108)","v":0},{"$f":"$I$5*'[2]21-23 Campus Contract Alloctns'!N101/SUM('[2]21-23 Campus Contract Alloctns'!$I$5:$AP$108)","v":0},{"$f":"$I$5*'[2]21-23 Campus Contract Alloctns'!O101/SUM('[2]21-23 Campus Contract Alloctns'!$I$5:$AP$108)","v":0},{"$f":"$I$5*'[2]21-23 Campus Contract Alloctns'!P101/SUM('[2]21-23 Campus Contract Alloctns'!$I$5:$AP$108)","v":0},{"$f":"$I$5*'[2]21-23 Campus Contract Alloctns'!Q101/SUM('[2]21-23 Campus Contract Alloctns'!$I$5:$AP$108)","v":0},{"$f":"$I$5*'[2]21-23 Campus Contract Alloctns'!R101/SUM('[2]21-23 Campus Contract Alloctns'!$I$5:$AP$108)","v":0},{"$f":"$I$5*'[2]21-23 Campus Contract Alloctns'!S101/SUM('[2]21-23 Campus Contract Alloctns'!$I$5:$AP$108)","v":0},{"$f":"$I$5*'[2]21-23 Campus Contract Alloctns'!T101/SUM('[2]21-23 Campus Contract Alloctns'!$I$5:$AP$108)","v":0},{"$f":"$I$5*'[2]21-23 Campus Contract Alloctns'!U101/SUM('[2]21-23 Campus Contract Alloctns'!$I$5:$AP$108)","v":0},{"$f":"$I$5*'[2]21-23 Campus Contract Alloctns'!V101/SUM('[2]21-23 Campus Contract Alloctns'!$I$5:$AP$108)","v":0},{"$f":"$I$5*'[2]21-23 Campus Contract Alloctns'!W101/SUM('[2]21-23 Campus Contract Alloctns'!$I$5:$AP$108)","v":0},{"$f":"$I$5*'[2]21-23 Campus Contract Alloctns'!X101/SUM('[2]21-23 Campus Contract Alloctns'!$I$5:$AP$108)","v":0},{"$f":"$I$5*'[2]21-23 Campus Contract Alloctns'!Y101/SUM('[2]21-23 Campus Contract Alloctns'!$I$5:$AP$108)","v":0},{"$f":"$I$5*'[2]21-23 Campus Contract Alloctns'!Z101/SUM('[2]21-23 Campus Contract Alloctns'!$I$5:$AP$108)","v":0},{"$f":"$I$5*'[2]21-23 Campus Contract Alloctns'!AA101/SUM('[2]21-23 Campus Contract Alloctns'!$I$5:$AP$108)","v":0},{"$f":"$I$5*'[2]21-23 Campus Contract Alloctns'!AB101/SUM('[2]21-23 Campus Contract Alloctns'!$I$5:$AP$108)","v":0},{"$f":"$I$5*'[2]21-23 Campus Contract Alloctns'!AC101/SUM('[2]21-23 Campus Contract Alloctns'!$I$5:$AP$108)","v":0},{"$f":"$I$5*'[2]21-23 Campus Contract Alloctns'!AD101/SUM('[2]21-23 Campus Contract Alloctns'!$I$5:$AP$108)","v":0},{"$f":"$I$5*'[2]21-23 Campus Contract Alloctns'!AE101/SUM('[2]21-23 Campus Contract Alloctns'!$I$5:$AP$108)","v":0},{"$f":"$I$5*'[2]21-23 Campus Contract Alloctns'!AF101/SUM('[2]21-23 Campus Contract Alloctns'!$I$5:$AP$108)","v":0},{"$f":"$I$5*'[2]21-23 Campus Contract Alloctns'!AG101/SUM('[2]21-23 Campus Contract Alloctns'!$I$5:$AP$108)","v":0},{"$f":"$I$5*'[2]21-23 Campus Contract Alloctns'!AH101/SUM('[2]21-23 Campus Contract Alloctns'!$I$5:$AP$108)","v":0},{"$f":"$I$5*'[2]21-23 Campus Contract Alloctns'!AI101/SUM('[2]21-23 Campus Contract Alloctns'!$I$5:$AP$108)","v":0},{"$f":"$I$5*'[2]21-23 Campus Contract Alloctns'!AJ101/SUM('[2]21-23 Campus Contract Alloctns'!$I$5:$AP$108)","v":0},{"$f":"$I$5*'[2]21-23 Campus Contract Alloctns'!AK101/SUM('[2]21-23 Campus Contract Alloctns'!$I$5:$AP$108)","v":0},{"$f":"$I$5*'[2]21-23 Campus Contract Alloctns'!AL101/SUM('[2]21-23 Campus Contract Alloctns'!$I$5:$AP$108)","v":0},{"$f":"$I$5*'[2]21-23 Campus Contract Alloctns'!AM101/SUM('[2]21-23 Campus Contract Alloctns'!$I$5:$AP$108)","v":0},{"$f":"$I$5*'[2]21-23 Campus Contract Alloctns'!AN101/SUM('[2]21-23 Campus Contract Alloctns'!$I$5:$AP$108)","v":0},{"$f":"$I$5*'[2]21-23 Campus Contract Alloctns'!AO101/SUM('[2]21-23 Campus Contract Alloctns'!$I$5:$AP$108)","v":0},{"$f":"$I$5*'[2]21-23 Campus Contract Alloctns'!AP101/SUM('[2]21-23 Campus Contract Alloctns'!$I$5:$AP$108)","v":0}]
[null,"471 - State Conservation Commission","471","State Conservation Commission",2.8363898064362214E-4,16,2.8363898064362214E-4,0,0,{"$f":"$I$5*'[2]21-23 Campus Contract Alloctns'!I102/SUM('[2]21-23 Campus Contract Alloctns'!$I$5:$AP$108)","v":0},{"$f":"$I$5*'[2]21-23 Campus Contract Alloctns'!J102/SUM('[2]21-23 Campus Contract Alloctns'!$I$5:$AP$108)","v":0},{"$f":"$I$5*'[2]21-23 Campus Contract Alloctns'!K102/SUM('[2]21-23 Campus Contract Alloctns'!$I$5:$AP$108)","v":0},{"$f":"$I$5*'[2]21-23 Campus Contract Alloctns'!L102/SUM('[2]21-23 Campus Contract Alloctns'!$I$5:$AP$108)","v":0},{"$f":"$I$5*'[2]21-23 Campus Contract Alloctns'!M102/SUM('[2]21-23 Campus Contract Alloctns'!$I$5:$AP$108)","v":0},{"$f":"$I$5*'[2]21-23 Campus Contract Alloctns'!N102/SUM('[2]21-23 Campus Contract Alloctns'!$I$5:$AP$108)","v":0},{"$f":"$I$5*'[2]21-23 Campus Contract Alloctns'!O102/SUM('[2]21-23 Campus Contract Alloctns'!$I$5:$AP$108)","v":0},{"$f":"$I$5*'[2]21-23 Campus Contract Alloctns'!P102/SUM('[2]21-23 Campus Contract Alloctns'!$I$5:$AP$108)","v":0},{"$f":"$I$5*'[2]21-23 Campus Contract Alloctns'!Q102/SUM('[2]21-23 Campus Contract Alloctns'!$I$5:$AP$108)","v":0},{"$f":"$I$5*'[2]21-23 Campus Contract Alloctns'!R102/SUM('[2]21-23 Campus Contract Alloctns'!$I$5:$AP$108)","v":0},{"$f":"$I$5*'[2]21-23 Campus Contract Alloctns'!S102/SUM('[2]21-23 Campus Contract Alloctns'!$I$5:$AP$108)","v":0},{"$f":"$I$5*'[2]21-23 Campus Contract Alloctns'!T102/SUM('[2]21-23 Campus Contract Alloctns'!$I$5:$AP$108)","v":0},{"$f":"$I$5*'[2]21-23 Campus Contract Alloctns'!U102/SUM('[2]21-23 Campus Contract Alloctns'!$I$5:$AP$108)","v":0},{"$f":"$I$5*'[2]21-23 Campus Contract Alloctns'!V102/SUM('[2]21-23 Campus Contract Alloctns'!$I$5:$AP$108)","v":0},{"$f":"$I$5*'[2]21-23 Campus Contract Alloctns'!W102/SUM('[2]21-23 Campus Contract Alloctns'!$I$5:$AP$108)","v":0},{"$f":"$I$5*'[2]21-23 Campus Contract Alloctns'!X102/SUM('[2]21-23 Campus Contract Alloctns'!$I$5:$AP$108)","v":0},{"$f":"$I$5*'[2]21-23 Campus Contract Alloctns'!Y102/SUM('[2]21-23 Campus Contract Alloctns'!$I$5:$AP$108)","v":0},{"$f":"$I$5*'[2]21-23 Campus Contract Alloctns'!Z102/SUM('[2]21-23 Campus Contract Alloctns'!$I$5:$AP$108)","v":0},{"$f":"$I$5*'[2]21-23 Campus Contract Alloctns'!AA102/SUM('[2]21-23 Campus Contract Alloctns'!$I$5:$AP$108)","v":0},{"$f":"$I$5*'[2]21-23 Campus Contract Alloctns'!AB102/SUM('[2]21-23 Campus Contract Alloctns'!$I$5:$AP$108)","v":0},{"$f":"$I$5*'[2]21-23 Campus Contract Alloctns'!AC102/SUM('[2]21-23 Campus Contract Alloctns'!$I$5:$AP$108)","v":0},{"$f":"$I$5*'[2]21-23 Campus Contract Alloctns'!AD102/SUM('[2]21-23 Campus Contract Alloctns'!$I$5:$AP$108)","v":0},{"$f":"$I$5*'[2]21-23 Campus Contract Alloctns'!AE102/SUM('[2]21-23 Campus Contract Alloctns'!$I$5:$AP$108)","v":0},{"$f":"$I$5*'[2]21-23 Campus Contract Alloctns'!AF102/SUM('[2]21-23 Campus Contract Alloctns'!$I$5:$AP$108)","v":0},{"$f":"$I$5*'[2]21-23 Campus Contract Alloctns'!AG102/SUM('[2]21-23 Campus Contract Alloctns'!$I$5:$AP$108)","v":0},{"$f":"$I$5*'[2]21-23 Campus Contract Alloctns'!AH102/SUM('[2]21-23 Campus Contract Alloctns'!$I$5:$AP$108)","v":0},{"$f":"$I$5*'[2]21-23 Campus Contract Alloctns'!AI102/SUM('[2]21-23 Campus Contract Alloctns'!$I$5:$AP$108)","v":0},{"$f":"$I$5*'[2]21-23 Campus Contract Alloctns'!AJ102/SUM('[2]21-23 Campus Contract Alloctns'!$I$5:$AP$108)","v":0},{"$f":"$I$5*'[2]21-23 Campus Contract Alloctns'!AK102/SUM('[2]21-23 Campus Contract Alloctns'!$I$5:$AP$108)","v":0},{"$f":"$I$5*'[2]21-23 Campus Contract Alloctns'!AL102/SUM('[2]21-23 Campus Contract Alloctns'!$I$5:$AP$108)","v":0},{"$f":"$I$5*'[2]21-23 Campus Contract Alloctns'!AM102/SUM('[2]21-23 Campus Contract Alloctns'!$I$5:$AP$108)","v":0},{"$f":"$I$5*'[2]21-23 Campus Contract Alloctns'!AN102/SUM('[2]21-23 Campus Contract Alloctns'!$I$5:$AP$108)","v":0},{"$f":"$I$5*'[2]21-23 Campus Contract Alloctns'!AO102/SUM('[2]21-23 Campus Contract Alloctns'!$I$5:$AP$108)","v":0},{"$f":"$I$5*'[2]21-23 Campus Contract Alloctns'!AP102/SUM('[2]21-23 Campus Contract Alloctns'!$I$5:$AP$108)","v":0}]
[null,"477 - Department of Fish and Wildlife","477","Department of Fish and Wildlife",5.3997086057097632E-2,755,1.3384214399120922E-2,5.6204627591810935E-3,3.4992408898795617E-2,{"$f":"$I$5*'[2]21-23 Campus Contract Alloctns'!I103/SUM('[2]21-23 Campus Contract Alloctns'!$I$5:$AP$108)","v":0},{"$f":"$I$5*'[2]21-23 Campus Contract Alloctns'!J103/SUM('[2]21-23 Campus Contract Alloctns'!$I$5:$AP$108)","v":0},{"$f":"$I$5*'[2]21-23 Campus Contract Alloctns'!K103/SUM('[2]21-23 Campus Contract Alloctns'!$I$5:$AP$108)","v":0},{"$f":"$I$5*'[2]21-23 Campus Contract Alloctns'!L103/SUM('[2]21-23 Campus Contract Alloctns'!$I$5:$AP$108)","v":0},{"$f":"$I$5*'[2]21-23 Campus Contract Alloctns'!M103/SUM('[2]21-23 Campus Contract Alloctns'!$I$5:$AP$108)","v":0},{"$f":"$I$5*'[2]21-23 Campus Contract Alloctns'!N103/SUM('[2]21-23 Campus Contract Alloctns'!$I$5:$AP$108)","v":0},{"$f":"$I$5*'[2]21-23 Campus Contract Alloctns'!O103/SUM('[2]21-23 Campus Contract Alloctns'!$I$5:$AP$108)","v":0},{"$f":"$I$5*'[2]21-23 Campus Contract Alloctns'!P103/SUM('[2]21-23 Campus Contract Alloctns'!$I$5:$AP$108)","v":3.4992408898795624E-2},{"$f":"$I$5*'[2]21-23 Campus Contract Alloctns'!Q103/SUM('[2]21-23 Campus Contract Alloctns'!$I$5:$AP$108)","v":0},{"$f":"$I$5*'[2]21-23 Campus Contract Alloctns'!R103/SUM('[2]21-23 Campus Contract Alloctns'!$I$5:$AP$108)","v":0},{"$f":"$I$5*'[2]21-23 Campus Contract Alloctns'!S103/SUM('[2]21-23 Campus Contract Alloctns'!$I$5:$AP$108)","v":0},{"$f":"$I$5*'[2]21-23 Campus Contract Alloctns'!T103/SUM('[2]21-23 Campus Contract Alloctns'!$I$5:$AP$108)","v":0},{"$f":"$I$5*'[2]21-23 Campus Contract Alloctns'!U103/SUM('[2]21-23 Campus Contract Alloctns'!$I$5:$AP$108)","v":0},{"$f":"$I$5*'[2]21-23 Campus Contract Alloctns'!V103/SUM('[2]21-23 Campus Contract Alloctns'!$I$5:$AP$108)","v":0},{"$f":"$I$5*'[2]21-23 Campus Contract Alloctns'!W103/SUM('[2]21-23 Campus Contract Alloctns'!$I$5:$AP$108)","v":0},{"$f":"$I$5*'[2]21-23 Campus Contract Alloctns'!X103/SUM('[2]21-23 Campus Contract Alloctns'!$I$5:$AP$108)","v":0},{"$f":"$I$5*'[2]21-23 Campus Contract Alloctns'!Y103/SUM('[2]21-23 Campus Contract Alloctns'!$I$5:$AP$108)","v":0},{"$f":"$I$5*'[2]21-23 Campus Contract Alloctns'!Z103/SUM('[2]21-23 Campus Contract Alloctns'!$I$5:$AP$108)","v":0},{"$f":"$I$5*'[2]21-23 Campus Contract Alloctns'!AA103/SUM('[2]21-23 Campus Contract Alloctns'!$I$5:$AP$108)","v":0},{"$f":"$I$5*'[2]21-23 Campus Contract Alloctns'!AB103/SUM('[2]21-23 Campus Contract Alloctns'!$I$5:$AP$108)","v":0},{"$f":"$I$5*'[2]21-23 Campus Contract Alloctns'!AC103/SUM('[2]21-23 Campus Contract Alloctns'!$I$5:$AP$108)","v":0},{"$f":"$I$5*'[2]21-23 Campus Contract Alloctns'!AD103/SUM('[2]21-23 Campus Contract Alloctns'!$I$5:$AP$108)","v":0},{"$f":"$I$5*'[2]21-23 Campus Contract Alloctns'!AE103/SUM('[2]21-23 Campus Contract Alloctns'!$I$5:$AP$108)","v":0},{"$f":"$I$5*'[2]21-23 Campus Contract Alloctns'!AF103/SUM('[2]21-23 Campus Contract Alloctns'!$I$5:$AP$108)","v":0},{"$f":"$I$5*'[2]21-23 Campus Contract Alloctns'!AG103/SUM('[2]21-23 Campus Contract Alloctns'!$I$5:$AP$108)","v":0},{"$f":"$I$5*'[2]21-23 Campus Contract Alloctns'!AH103/SUM('[2]21-23 Campus Contract Alloctns'!$I$5:$AP$108)","v":0},{"$f":"$I$5*'[2]21-23 Campus Contract Alloctns'!AI103/SUM('[2]21-23 Campus Contract Alloctns'!$I$5:$AP$108)","v":0},{"$f":"$I$5*'[2]21-23 Campus Contract Alloctns'!AJ103/SUM('[2]21-23 Campus Contract Alloctns'!$I$5:$AP$108)","v":0},{"$f":"$I$5*'[2]21-23 Campus Contract Alloctns'!AK103/SUM('[2]21-23 Campus Contract Alloctns'!$I$5:$AP$108)","v":0},{"$f":"$I$5*'[2]21-23 Campus Contract Alloctns'!AL103/SUM('[2]21-23 Campus Contract Alloctns'!$I$5:$AP$108)","v":0},{"$f":"$I$5*'[2]21-23 Campus Contract Alloctns'!AM103/SUM('[2]21-23 Campus Contract Alloctns'!$I$5:$AP$108)","v":0},{"$f":"$I$5*'[2]21-23 Campus Contract Alloctns'!AN103/SUM('[2]21-23 Campus Contract Alloctns'!$I$5:$AP$108)","v":0},{"$f":"$I$5*'[2]21-23 Campus Contract Alloctns'!AO103/SUM('[2]21-23 Campus Contract Alloctns'!$I$5:$AP$108)","v":0},{"$f":"$I$5*'[2]21-23 Campus Contract Alloctns'!AP103/SUM('[2]21-23 Campus Contract Alloctns'!$I$5:$AP$108)","v":0}]
[null,"478 - Puget Sound Partnership","478","Puget Sound Partnership",3.2748077604577924E-4,2,3.5454872580452768E-5,0,2.9202590346532649E-4,{"$f":"$I$5*'[2]21-23 Campus Contract Alloctns'!I104/SUM('[2]21-23 Campus Contract Alloctns'!$I$5:$AP$108)","v":0},{"$f":"$I$5*'[2]21-23 Campus Contract Alloctns'!J104/SUM('[2]21-23 Campus Contract Alloctns'!$I$5:$AP$108)","v":0},{"$f":"$I$5*'[2]21-23 Campus Contract Alloctns'!K104/SUM('[2]21-23 Campus Contract Alloctns'!$I$5:$AP$108)","v":0},{"$f":"$I$5*'[2]21-23 Campus Contract Alloctns'!L104/SUM('[2]21-23 Campus Contract Alloctns'!$I$5:$AP$108)","v":0},{"$f":"$I$5*'[2]21-23 Campus Contract Alloctns'!M104/SUM('[2]21-23 Campus Contract Alloctns'!$I$5:$AP$108)","v":0},{"$f":"$I$5*'[2]21-23 Campus Contract Alloctns'!N104/SUM('[2]21-23 Campus Contract Alloctns'!$I$5:$AP$108)","v":0},{"$f":"$I$5*'[2]21-23 Campus Contract Alloctns'!O104/SUM('[2]21-23 Campus Contract Alloctns'!$I$5:$AP$108)","v":0},{"$f":"$I$5*'[2]21-23 Campus Contract Alloctns'!P104/SUM('[2]21-23 Campus Contract Alloctns'!$I$5:$AP$108)","v":0},{"$f":"$I$5*'[2]21-23 Campus Contract Alloctns'!Q104/SUM('[2]21-23 Campus Contract Alloctns'!$I$5:$AP$108)","v":0},{"$f":"$I$5*'[2]21-23 Campus Contract Alloctns'!R104/SUM('[2]21-23 Campus Contract Alloctns'!$I$5:$AP$108)","v":0},{"$f":"$I$5*'[2]21-23 Campus Contract Alloctns'!S104/SUM('[2]21-23 Campus Contract Alloctns'!$I$5:$AP$108)","v":0},{"$f":"$I$5*'[2]21-23 Campus Contract Alloctns'!T104/SUM('[2]21-23 Campus Contract Alloctns'!$I$5:$AP$108)","v":0},{"$f":"$I$5*'[2]21-23 Campus Contract Alloctns'!U104/SUM('[2]21-23 Campus Contract Alloctns'!$I$5:$AP$108)","v":0},{"$f":"$I$5*'[2]21-23 Campus Contract Alloctns'!V104/SUM('[2]21-23 Campus Contract Alloctns'!$I$5:$AP$108)","v":0},{"$f":"$I$5*'[2]21-23 Campus Contract Alloctns'!W104/SUM('[2]21-23 Campus Contract Alloctns'!$I$5:$AP$108)","v":0},{"$f":"$I$5*'[2]21-23 Campus Contract Alloctns'!X104/SUM('[2]21-23 Campus Contract Alloctns'!$I$5:$AP$108)","v":0},{"$f":"$I$5*'[2]21-23 Campus Contract Alloctns'!Y104/SUM('[2]21-23 Campus Contract Alloctns'!$I$5:$AP$108)","v":0},{"$f":"$I$5*'[2]21-23 Campus Contract Alloctns'!Z104/SUM('[2]21-23 Campus Contract Alloctns'!$I$5:$AP$108)","v":0},{"$f":"$I$5*'[2]21-23 Campus Contract Alloctns'!AA104/SUM('[2]21-23 Campus Contract Alloctns'!$I$5:$AP$108)","v":0},{"$f":"$I$5*'[2]21-23 Campus Contract Alloctns'!AB104/SUM('[2]21-23 Campus Contract Alloctns'!$I$5:$AP$108)","v":2.9202590346532654E-4},{"$f":"$I$5*'[2]21-23 Campus Contract Alloctns'!AC104/SUM('[2]21-23 Campus Contract Alloctns'!$I$5:$AP$108)","v":0},{"$f":"$I$5*'[2]21-23 Campus Contract Alloctns'!AD104/SUM('[2]21-23 Campus Contract Alloctns'!$I$5:$AP$108)","v":0},{"$f":"$I$5*'[2]21-23 Campus Contract Alloctns'!AE104/SUM('[2]21-23 Campus Contract Alloctns'!$I$5:$AP$108)","v":0},{"$f":"$I$5*'[2]21-23 Campus Contract Alloctns'!AF104/SUM('[2]21-23 Campus Contract Alloctns'!$I$5:$AP$108)","v":0},{"$f":"$I$5*'[2]21-23 Campus Contract Alloctns'!AG104/SUM('[2]21-23 Campus Contract Alloctns'!$I$5:$AP$108)","v":0},{"$f":"$I$5*'[2]21-23 Campus Contract Alloctns'!AH104/SUM('[2]21-23 Campus Contract Alloctns'!$I$5:$AP$108)","v":0},{"$f":"$I$5*'[2]21-23 Campus Contract Alloctns'!AI104/SUM('[2]21-23 Campus Contract Alloctns'!$I$5:$AP$108)","v":0},{"$f":"$I$5*'[2]21-23 Campus Contract Alloctns'!AJ104/SUM('[2]21-23 Campus Contract Alloctns'!$I$5:$AP$108)","v":0},{"$f":"$I$5*'[2]21-23 Campus Contract Alloctns'!AK104/SUM('[2]21-23 Campus Contract Alloctns'!$I$5:$AP$108)","v":0},{"$f":"$I$5*'[2]21-23 Campus Contract Alloctns'!AL104/SUM('[2]21-23 Campus Contract Alloctns'!$I$5:$AP$108)","v":0},{"$f":"$I$5*'[2]21-23 Campus Contract Alloctns'!AM104/SUM('[2]21-23 Campus Contract Alloctns'!$I$5:$AP$108)","v":0},{"$f":"$I$5*'[2]21-23 Campus Contract Alloctns'!AN104/SUM('[2]21-23 Campus Contract Alloctns'!$I$5:$AP$108)","v":0},{"$f":"$I$5*'[2]21-23 Campus Contract Alloctns'!AO104/SUM('[2]21-23 Campus Contract Alloctns'!$I$5:$AP$108)","v":0},{"$f":"$I$5*'[2]21-23 Campus Contract Alloctns'!AP104/SUM('[2]21-23 Campus Contract Alloctns'!$I$5:$AP$108)","v":0}]
[null,"490 - Department of Natural Resources","490","Department of Natural Resources",5.6551615285779781E-2,709,1.2568752329770507E-2,6.0868397922771086E-3,3.7896023163732168E-2,{"$f":"$I$5*'[2]21-23 Campus Contract Alloctns'!I105/SUM('[2]21-23 Campus Contract Alloctns'!$I$5:$AP$108)","v":0},{"$f":"$I$5*'[2]21-23 Campus Contract Alloctns'!J105/SUM('[2]21-23 Campus Contract Alloctns'!$I$5:$AP$108)","v":0},{"$f":"$I$5*'[2]21-23 Campus Contract Alloctns'!K105/SUM('[2]21-23 Campus Contract Alloctns'!$I$5:$AP$108)","v":0},{"$f":"$I$5*'[2]21-23 Campus Contract Alloctns'!L105/SUM('[2]21-23 Campus Contract Alloctns'!$I$5:$AP$108)","v":0},{"$f":"$I$5*'[2]21-23 Campus Contract Alloctns'!M105/SUM('[2]21-23 Campus Contract Alloctns'!$I$5:$AP$108)","v":0},{"$f":"$I$5*'[2]21-23 Campus Contract Alloctns'!N105/SUM('[2]21-23 Campus Contract Alloctns'!$I$5:$AP$108)","v":0},{"$f":"$I$5*'[2]21-23 Campus Contract Alloctns'!O105/SUM('[2]21-23 Campus Contract Alloctns'!$I$5:$AP$108)","v":0},{"$f":"$I$5*'[2]21-23 Campus Contract Alloctns'!P105/SUM('[2]21-23 Campus Contract Alloctns'!$I$5:$AP$108)","v":3.7896023163732175E-2},{"$f":"$I$5*'[2]21-23 Campus Contract Alloctns'!Q105/SUM('[2]21-23 Campus Contract Alloctns'!$I$5:$AP$108)","v":0},{"$f":"$I$5*'[2]21-23 Campus Contract Alloctns'!R105/SUM('[2]21-23 Campus Contract Alloctns'!$I$5:$AP$108)","v":0},{"$f":"$I$5*'[2]21-23 Campus Contract Alloctns'!S105/SUM('[2]21-23 Campus Contract Alloctns'!$I$5:$AP$108)","v":0},{"$f":"$I$5*'[2]21-23 Campus Contract Alloctns'!T105/SUM('[2]21-23 Campus Contract Alloctns'!$I$5:$AP$108)","v":0},{"$f":"$I$5*'[2]21-23 Campus Contract Alloctns'!U105/SUM('[2]21-23 Campus Contract Alloctns'!$I$5:$AP$108)","v":0},{"$f":"$I$5*'[2]21-23 Campus Contract Alloctns'!V105/SUM('[2]21-23 Campus Contract Alloctns'!$I$5:$AP$108)","v":0},{"$f":"$I$5*'[2]21-23 Campus Contract Alloctns'!W105/SUM('[2]21-23 Campus Contract Alloctns'!$I$5:$AP$108)","v":0},{"$f":"$I$5*'[2]21-23 Campus Contract Alloctns'!X105/SUM('[2]21-23 Campus Contract Alloctns'!$I$5:$AP$108)","v":0},{"$f":"$I$5*'[2]21-23 Campus Contract Alloctns'!Y105/SUM('[2]21-23 Campus Contract Alloctns'!$I$5:$AP$108)","v":0},{"$f":"$I$5*'[2]21-23 Campus Contract Alloctns'!Z105/SUM('[2]21-23 Campus Contract Alloctns'!$I$5:$AP$108)","v":0},{"$f":"$I$5*'[2]21-23 Campus Contract Alloctns'!AA105/SUM('[2]21-23 Campus Contract Alloctns'!$I$5:$AP$108)","v":0},{"$f":"$I$5*'[2]21-23 Campus Contract Alloctns'!AB105/SUM('[2]21-23 Campus Contract Alloctns'!$I$5:$AP$108)","v":0},{"$f":"$I$5*'[2]21-23 Campus Contract Alloctns'!AC105/SUM('[2]21-23 Campus Contract Alloctns'!$I$5:$AP$108)","v":0},{"$f":"$I$5*'[2]21-23 Campus Contract Alloctns'!AD105/SUM('[2]21-23 Campus Contract Alloctns'!$I$5:$AP$108)","v":0},{"$f":"$I$5*'[2]21-23 Campus Contract Alloctns'!AE105/SUM('[2]21-23 Campus Contract Alloctns'!$I$5:$AP$108)","v":0},{"$f":"$I$5*'[2]21-23 Campus Contract Alloctns'!AF105/SUM('[2]21-23 Campus Contract Alloctns'!$I$5:$AP$108)","v":0},{"$f":"$I$5*'[2]21-23 Campus Contract Alloctns'!AG105/SUM('[2]21-23 Campus Contract Alloctns'!$I$5:$AP$108)","v":0},{"$f":"$I$5*'[2]21-23 Campus Contract Alloctns'!AH105/SUM('[2]21-23 Campus Contract Alloctns'!$I$5:$AP$108)","v":0},{"$f":"$I$5*'[2]21-23 Campus Contract Alloctns'!AI105/SUM('[2]21-23 Campus Contract Alloctns'!$I$5:$AP$108)","v":0},{"$f":"$I$5*'[2]21-23 Campus Contract Alloctns'!AJ105/SUM('[2]21-23 Campus Contract Alloctns'!$I$5:$AP$108)","v":0},{"$f":"$I$5*'[2]21-23 Campus Contract Alloctns'!AK105/SUM('[2]21-23 Campus Contract Alloctns'!$I$5:$AP$108)","v":0},{"$f":"$I$5*'[2]21-23 Campus Contract Alloctns'!AL105/SUM('[2]21-23 Campus Contract Alloctns'!$I$5:$AP$108)","v":0},{"$f":"$I$5*'[2]21-23 Campus Contract Alloctns'!AM105/SUM('[2]21-23 Campus Contract Alloctns'!$I$5:$AP$108)","v":0},{"$f":"$I$5*'[2]21-23 Campus Contract Alloctns'!AN105/SUM('[2]21-23 Campus Contract Alloctns'!$I$5:$AP$108)","v":0},{"$f":"$I$5*'[2]21-23 Campus Contract Alloctns'!AO105/SUM('[2]21-23 Campus Contract Alloctns'!$I$5:$AP$108)","v":0},{"$f":"$I$5*'[2]21-23 Campus Contract Alloctns'!AP105/SUM('[2]21-23 Campus Contract Alloctns'!$I$5:$AP$108)","v":0}]
[null,"495 - Department of Agriculture","495","Department of Agriculture",1.8341854823417155E-2,251,4.4495865088468225E-3,1.922567243216802E-3,1.1969701071353532E-2,{"$f":"$I$5*'[2]21-23 Campus Contract Alloctns'!I106/SUM('[2]21-23 Campus Contract Alloctns'!$I$5:$AP$108)","v":0},{"$f":"$I$5*'[2]21-23 Campus Contract Alloctns'!J106/SUM('[2]21-23 Campus Contract Alloctns'!$I$5:$AP$108)","v":0},{"$f":"$I$5*'[2]21-23 Campus Contract Alloctns'!K106/SUM('[2]21-23 Campus Contract Alloctns'!$I$5:$AP$108)","v":0},{"$f":"$I$5*'[2]21-23 Campus Contract Alloctns'!L106/SUM('[2]21-23 Campus Contract Alloctns'!$I$5:$AP$108)","v":0},{"$f":"$I$5*'[2]21-23 Campus Contract Alloctns'!M106/SUM('[2]21-23 Campus Contract Alloctns'!$I$5:$AP$108)","v":0},{"$f":"$I$5*'[2]21-23 Campus Contract Alloctns'!N106/SUM('[2]21-23 Campus Contract Alloctns'!$I$5:$AP$108)","v":0},{"$f":"$I$5*'[2]21-23 Campus Contract Alloctns'!O106/SUM('[2]21-23 Campus Contract Alloctns'!$I$5:$AP$108)","v":0},{"$f":"$I$5*'[2]21-23 Campus Contract Alloctns'!P106/SUM('[2]21-23 Campus Contract Alloctns'!$I$5:$AP$108)","v":1.1969701071353533E-2},{"$f":"$I$5*'[2]21-23 Campus Contract Alloctns'!Q106/SUM('[2]21-23 Campus Contract Alloctns'!$I$5:$AP$108)","v":0},{"$f":"$I$5*'[2]21-23 Campus Contract Alloctns'!R106/SUM('[2]21-23 Campus Contract Alloctns'!$I$5:$AP$108)","v":0},{"$f":"$I$5*'[2]21-23 Campus Contract Alloctns'!S106/SUM('[2]21-23 Campus Contract Alloctns'!$I$5:$AP$108)","v":0},{"$f":"$I$5*'[2]21-23 Campus Contract Alloctns'!T106/SUM('[2]21-23 Campus Contract Alloctns'!$I$5:$AP$108)","v":0},{"$f":"$I$5*'[2]21-23 Campus Contract Alloctns'!U106/SUM('[2]21-23 Campus Contract Alloctns'!$I$5:$AP$108)","v":0},{"$f":"$I$5*'[2]21-23 Campus Contract Alloctns'!V106/SUM('[2]21-23 Campus Contract Alloctns'!$I$5:$AP$108)","v":0},{"$f":"$I$5*'[2]21-23 Campus Contract Alloctns'!W106/SUM('[2]21-23 Campus Contract Alloctns'!$I$5:$AP$108)","v":0},{"$f":"$I$5*'[2]21-23 Campus Contract Alloctns'!X106/SUM('[2]21-23 Campus Contract Alloctns'!$I$5:$AP$108)","v":0},{"$f":"$I$5*'[2]21-23 Campus Contract Alloctns'!Y106/SUM('[2]21-23 Campus Contract Alloctns'!$I$5:$AP$108)","v":0},{"$f":"$I$5*'[2]21-23 Campus Contract Alloctns'!Z106/SUM('[2]21-23 Campus Contract Alloctns'!$I$5:$AP$108)","v":0},{"$f":"$I$5*'[2]21-23 Campus Contract Alloctns'!AA106/SUM('[2]21-23 Campus Contract Alloctns'!$I$5:$AP$108)","v":0},{"$f":"$I$5*'[2]21-23 Campus Contract Alloctns'!AB106/SUM('[2]21-23 Campus Contract Alloctns'!$I$5:$AP$108)","v":0},{"$f":"$I$5*'[2]21-23 Campus Contract Alloctns'!AC106/SUM('[2]21-23 Campus Contract Alloctns'!$I$5:$AP$108)","v":0},{"$f":"$I$5*'[2]21-23 Campus Contract Alloctns'!AD106/SUM('[2]21-23 Campus Contract Alloctns'!$I$5:$AP$108)","v":0},{"$f":"$I$5*'[2]21-23 Campus Contract Alloctns'!AE106/SUM('[2]21-23 Campus Contract Alloctns'!$I$5:$AP$108)","v":0},{"$f":"$I$5*'[2]21-23 Campus Contract Alloctns'!AF106/SUM('[2]21-23 Campus Contract Alloctns'!$I$5:$AP$108)","v":0},{"$f":"$I$5*'[2]21-23 Campus Contract Alloctns'!AG106/SUM('[2]21-23 Campus Contract Alloctns'!$I$5:$AP$108)","v":0},{"$f":"$I$5*'[2]21-23 Campus Contract Alloctns'!AH106/SUM('[2]21-23 Campus Contract Alloctns'!$I$5:$AP$108)","v":0},{"$f":"$I$5*'[2]21-23 Campus Contract Alloctns'!AI106/SUM('[2]21-23 Campus Contract Alloctns'!$I$5:$AP$108)","v":0},{"$f":"$I$5*'[2]21-23 Campus Contract Alloctns'!AJ106/SUM('[2]21-23 Campus Contract Alloctns'!$I$5:$AP$108)","v":0},{"$f":"$I$5*'[2]21-23 Campus Contract Alloctns'!AK106/SUM('[2]21-23 Campus Contract Alloctns'!$I$5:$AP$108)","v":0},{"$f":"$I$5*'[2]21-23 Campus Contract Alloctns'!AL106/SUM('[2]21-23 Campus Contract Alloctns'!$I$5:$AP$108)","v":0},{"$f":"$I$5*'[2]21-23 Campus Contract Alloctns'!AM106/SUM('[2]21-23 Campus Contract Alloctns'!$I$5:$AP$108)","v":0},{"$f":"$I$5*'[2]21-23 Campus Contract Alloctns'!AN106/SUM('[2]21-23 Campus Contract Alloctns'!$I$5:$AP$108)","v":0},{"$f":"$I$5*'[2]21-23 Campus Contract Alloctns'!AO106/SUM('[2]21-23 Campus Contract Alloctns'!$I$5:$AP$108)","v":0},{"$f":"$I$5*'[2]21-23 Campus Contract Alloctns'!AP106/SUM('[2]21-23 Campus Contract Alloctns'!$I$5:$AP$108)","v":0}]
[null,"540 - Employment Security Department","540","Employment Security Department",6.0574372496464024E-2,1617,2.8665264481296065E-2,3.7138143262247267E-3,2.8195293688943232E-2,{"$f":"$I$5*'[2]21-23 Campus Contract Alloctns'!I107/SUM('[2]21-23 Campus Contract Alloctns'!$I$5:$AP$108)","v":0},{"$f":"$I$5*'[2]21-23 Campus Contract Alloctns'!J107/SUM('[2]21-23 Campus Contract Alloctns'!$I$5:$AP$108)","v":0},{"$f":"$I$5*'[2]21-23 Campus Contract Alloctns'!K107/SUM('[2]21-23 Campus Contract Alloctns'!$I$5:$AP$108)","v":0},{"$f":"$I$5*'[2]21-23 Campus Contract Alloctns'!L107/SUM('[2]21-23 Campus Contract Alloctns'!$I$5:$AP$108)","v":0},{"$f":"$I$5*'[2]21-23 Campus Contract Alloctns'!M107/SUM('[2]21-23 Campus Contract Alloctns'!$I$5:$AP$108)","v":0},{"$f":"$I$5*'[2]21-23 Campus Contract Alloctns'!N107/SUM('[2]21-23 Campus Contract Alloctns'!$I$5:$AP$108)","v":0},{"$f":"$I$5*'[2]21-23 Campus Contract Alloctns'!O107/SUM('[2]21-23 Campus Contract Alloctns'!$I$5:$AP$108)","v":0},{"$f":"$I$5*'[2]21-23 Campus Contract Alloctns'!P107/SUM('[2]21-23 Campus Contract Alloctns'!$I$5:$AP$108)","v":0},{"$f":"$I$5*'[2]21-23 Campus Contract Alloctns'!Q107/SUM('[2]21-23 Campus Contract Alloctns'!$I$5:$AP$108)","v":2.8195293688943236E-2},{"$f":"$I$5*'[2]21-23 Campus Contract Alloctns'!R107/SUM('[2]21-23 Campus Contract Alloctns'!$I$5:$AP$108)","v":0},{"$f":"$I$5*'[2]21-23 Campus Contract Alloctns'!S107/SUM('[2]21-23 Campus Contract Alloctns'!$I$5:$AP$108)","v":0},{"$f":"$I$5*'[2]21-23 Campus Contract Alloctns'!T107/SUM('[2]21-23 Campus Contract Alloctns'!$I$5:$AP$108)","v":0},{"$f":"$I$5*'[2]21-23 Campus Contract Alloctns'!U107/SUM('[2]21-23 Campus Contract Alloctns'!$I$5:$AP$108)","v":0},{"$f":"$I$5*'[2]21-23 Campus Contract Alloctns'!V107/SUM('[2]21-23 Campus Contract Alloctns'!$I$5:$AP$108)","v":0},{"$f":"$I$5*'[2]21-23 Campus Contract Alloctns'!W107/SUM('[2]21-23 Campus Contract Alloctns'!$I$5:$AP$108)","v":0},{"$f":"$I$5*'[2]21-23 Campus Contract Alloctns'!X107/SUM('[2]21-23 Campus Contract Alloctns'!$I$5:$AP$108)","v":0},{"$f":"$I$5*'[2]21-23 Campus Contract Alloctns'!Y107/SUM('[2]21-23 Campus Contract Alloctns'!$I$5:$AP$108)","v":0},{"$f":"$I$5*'[2]21-23 Campus Contract Alloctns'!Z107/SUM('[2]21-23 Campus Contract Alloctns'!$I$5:$AP$108)","v":0},{"$f":"$I$5*'[2]21-23 Campus Contract Alloctns'!AA107/SUM('[2]21-23 Campus Contract Alloctns'!$I$5:$AP$108)","v":0},{"$f":"$I$5*'[2]21-23 Campus Contract Alloctns'!AB107/SUM('[2]21-23 Campus Contract Alloctns'!$I$5:$AP$108)","v":0},{"$f":"$I$5*'[2]21-23 Campus Contract Alloctns'!AC107/SUM('[2]21-23 Campus Contract Alloctns'!$I$5:$AP$108)","v":0},{"$f":"$I$5*'[2]21-23 Campus Contract Alloctns'!AD107/SUM('[2]21-23 Campus Contract Alloctns'!$I$5:$AP$108)","v":0},{"$f":"$I$5*'[2]21-23 Campus Contract Alloctns'!AE107/SUM('[2]21-23 Campus Contract Alloctns'!$I$5:$AP$108)","v":0},{"$f":"$I$5*'[2]21-23 Campus Contract Alloctns'!AF107/SUM('[2]21-23 Campus Contract Alloctns'!$I$5:$AP$108)","v":0},{"$f":"$I$5*'[2]21-23 Campus Contract Alloctns'!AG107/SUM('[2]21-23 Campus Contract Alloctns'!$I$5:$AP$108)","v":0},{"$f":"$I$5*'[2]21-23 Campus Contract Alloctns'!AH107/SUM('[2]21-23 Campus Contract Alloctns'!$I$5:$AP$108)","v":0},{"$f":"$I$5*'[2]21-23 Campus Contract Alloctns'!AI107/SUM('[2]21-23 Campus Contract Alloctns'!$I$5:$AP$108)","v":0},{"$f":"$I$5*'[2]21-23 Campus Contract Alloctns'!AJ107/SUM('[2]21-23 Campus Contract Alloctns'!$I$5:$AP$108)","v":0},{"$f":"$I$5*'[2]21-23 Campus Contract Alloctns'!AK107/SUM('[2]21-23 Campus Contract Alloctns'!$I$5:$AP$108)","v":0},{"$f":"$I$5*'[2]21-23 Campus Contract Alloctns'!AL107/SUM('[2]21-23 Campus Contract Alloctns'!$I$5:$AP$108)","v":0},{"$f":"$I$5*'[2]21-23 Campus Contract Alloctns'!AM107/SUM('[2]21-23 Campus Contract Alloctns'!$I$5:$AP$108)","v":0},{"$f":"$I$5*'[2]21-23 Campus Contract Alloctns'!AN107/SUM('[2]21-23 Campus Contract Alloctns'!$I$5:$AP$108)","v":0},{"$f":"$I$5*'[2]21-23 Campus Contract Alloctns'!AO107/SUM('[2]21-23 Campus Contract Alloctns'!$I$5:$AP$108)","v":0},{"$f":"$I$5*'[2]21-23 Campus Contract Alloctns'!AP107/SUM('[2]21-23 Campus Contract Alloctns'!$I$5:$AP$108)","v":0}]
[null,"699 - Community Colleges","699","Community Colleges",9.6082704693027012E-3,542,9.6082704693027012E-3,0,0,{"$f":"$I$5*'[2]21-23 Campus Contract Alloctns'!I108/SUM('[2]21-23 Campus Contract Alloctns'!$I$5:$AP$108)","v":0},{"$f":"$I$5*'[2]21-23 Campus Contract Alloctns'!J108/SUM('[2]21-23 Campus Contract Alloctns'!$I$5:$AP$108)","v":0},{"$f":"$I$5*'[2]21-23 Campus Contract Alloctns'!K108/SUM('[2]21-23 Campus Contract Alloctns'!$I$5:$AP$108)","v":0},{"$f":"$I$5*'[2]21-23 Campus Contract Alloctns'!L108/SUM('[2]21-23 Campus Contract Alloctns'!$I$5:$AP$108)","v":0},{"$f":"$I$5*'[2]21-23 Campus Contract Alloctns'!M108/SUM('[2]21-23 Campus Contract Alloctns'!$I$5:$AP$108)","v":0},{"$f":"$I$5*'[2]21-23 Campus Contract Alloctns'!N108/SUM('[2]21-23 Campus Contract Alloctns'!$I$5:$AP$108)","v":0},{"$f":"$I$5*'[2]21-23 Campus Contract Alloctns'!O108/SUM('[2]21-23 Campus Contract Alloctns'!$I$5:$AP$108)","v":0},{"$f":"$I$5*'[2]21-23 Campus Contract Alloctns'!P108/SUM('[2]21-23 Campus Contract Alloctns'!$I$5:$AP$108)","v":0},{"$f":"$I$5*'[2]21-23 Campus Contract Alloctns'!Q108/SUM('[2]21-23 Campus Contract Alloctns'!$I$5:$AP$108)","v":0},{"$f":"$I$5*'[2]21-23 Campus Contract Alloctns'!R108/SUM('[2]21-23 Campus Contract Alloctns'!$I$5:$AP$108)","v":0},{"$f":"$I$5*'[2]21-23 Campus Contract Alloctns'!S108/SUM('[2]21-23 Campus Contract Alloctns'!$I$5:$AP$108)","v":0},{"$f":"$I$5*'[2]21-23 Campus Contract Alloctns'!T108/SUM('[2]21-23 Campus Contract Alloctns'!$I$5:$AP$108)","v":0},{"$f":"$I$5*'[2]21-23 Campus Contract Alloctns'!U108/SUM('[2]21-23 Campus Contract Alloctns'!$I$5:$AP$108)","v":0},{"$f":"$I$5*'[2]21-23 Campus Contract Alloctns'!V108/SUM('[2]21-23 Campus Contract Alloctns'!$I$5:$AP$108)","v":0},{"$f":"$I$5*'[2]21-23 Campus Contract Alloctns'!W108/SUM('[2]21-23 Campus Contract Alloctns'!$I$5:$AP$108)","v":0},{"$f":"$I$5*'[2]21-23 Campus Contract Alloctns'!X108/SUM('[2]21-23 Campus Contract Alloctns'!$I$5:$AP$108)","v":0},{"$f":"$I$5*'[2]21-23 Campus Contract Alloctns'!Y108/SUM('[2]21-23 Campus Contract Alloctns'!$I$5:$AP$108)","v":0},{"$f":"$I$5*'[2]21-23 Campus Contract Alloctns'!Z108/SUM('[2]21-23 Campus Contract Alloctns'!$I$5:$AP$108)","v":0},{"$f":"$I$5*'[2]21-23 Campus Contract Alloctns'!AA108/SUM('[2]21-23 Campus Contract Alloctns'!$I$5:$AP$108)","v":0},{"$f":"$I$5*'[2]21-23 Campus Contract Alloctns'!AB108/SUM('[2]21-23 Campus Contract Alloctns'!$I$5:$AP$108)","v":0},{"$f":"$I$5*'[2]21-23 Campus Contract Alloctns'!AC108/SUM('[2]21-23 Campus Contract Alloctns'!$I$5:$AP$108)","v":0},{"$f":"$I$5*'[2]21-23 Campus Contract Alloctns'!AD108/SUM('[2]21-23 Campus Contract Alloctns'!$I$5:$AP$108)","v":0},{"$f":"$I$5*'[2]21-23 Campus Contract Alloctns'!AE108/SUM('[2]21-23 Campus Contract Alloctns'!$I$5:$AP$108)","v":0},{"$f":"$I$5*'[2]21-23 Campus Contract Alloctns'!AF108/SUM('[2]21-23 Campus Contract Alloctns'!$I$5:$AP$108)","v":0},{"$f":"$I$5*'[2]21-23 Campus Contract Alloctns'!AG108/SUM('[2]21-23 Campus Contract Alloctns'!$I$5:$AP$108)","v":0},{"$f":"$I$5*'[2]21-23 Campus Contract Alloctns'!AH108/SUM('[2]21-23 Campus Contract Alloctns'!$I$5:$AP$108)","v":0},{"$f":"$I$5*'[2]21-23 Campus Contract Alloctns'!AI108/SUM('[2]21-23 Campus Contract Alloctns'!$I$5:$AP$108)","v":0},{"$f":"$I$5*'[2]21-23 Campus Contract Alloctns'!AJ108/SUM('[2]21-23 Campus Contract Alloctns'!$I$5:$AP$108)","v":0},{"$f":"$I$5*'[2]21-23 Campus Contract Alloctns'!AK108/SUM('[2]21-23 Campus Contract Alloctns'!$I$5:$AP$108)","v":0},{"$f":"$I$5*'[2]21-23 Campus Contract Alloctns'!AL108/SUM('[2]21-23 Campus Contract Alloctns'!$I$5:$AP$108)","v":0},{"$f":"$I$5*'[2]21-23 Campus Contract Alloctns'!AM108/SUM('[2]21-23 Campus Contract Alloctns'!$I$5:$AP$108)","v":0},{"$f":"$I$5*'[2]21-23 Campus Contract Alloctns'!AN108/SUM('[2]21-23 Campus Contract Alloctns'!$I$5:$AP$108)","v":0},{"$f":"$I$5*'[2]21-23 Campus Contract Alloctns'!AO108/SUM('[2]21-23 Campus Contract Alloctns'!$I$5:$AP$108)","v":0},{"$f":"$I$5*'[2]21-23 Campus Contract Alloctns'!AP108/SUM('[2]21-23 Campus Contract Alloctns'!$I$5:$AP$108)","v":0}]
[null,"TOTAL  - All Agencies",null,"Building Total",1,25674,0.45513419931527233,6.6496479256132238E-2,0.47836932142859545,{"$f":"SUM(J7:J110)","v":1.7395406480594136E-2},{"$f":"SUM(K7:K110)","v":1.5330002797399255E-2},4.0806878133948787E-2,6.8926499505707036E-3,4.7248712988477291E-2,7.9898690301551958E-2,1.0707893567548681E-2,8.854787768170716E-2,2.8195293688943236E-2,4.5806971193456537E-2,1.3090858985879876E-2,2.3050703135863028E-2,1.5286740219864176E-2,6.6434140377076905E-3,0,2.3966007721931775E-3,3.8003477257104517E-3,0,0,8.7024564459594871E-3,4.6480837974333328E-3,0,1.4817328953793449E-4,0,0,0,0,0,0,4.793201544386355E-3,2.3966007721931775E-3,1.2581763917669068E-2,0,0]

{"sheet":"CC dollars FY22","index":13,"n_rows":115,"n_cols":44,"rows_kept":115,"cut":false,"hidden":true,"merged":[[4,4,5,4],[4,6,4,7],[3,5,3,7]]}
[]
[]
[null,null,null,null,null,null,null,null,"CC By Building:",3295036.3899590364,3.6363967548430423E-2,3.2046375280960625E-2,8.5304128642872998E-2,1.4408637096514859E-2,9.8770366058120895E-2,0.16702302326358134,2.2384156106772846E-2,0.18510358778290584,5.894043038700976E-2,9.5756498465786266E-2,2.7365590558327428E-2,4.8185997937795683E-2,3.1955937672198675E-2,1.3887625606650295E-2,0,5.0099382732906065E-3,7.9443801169379862E-3,0,0,1.8191920041967968E-2,9.7165173208690683E-3,0,3.0974663905166782E-4,0,0,0,0,0,0,1.0019876546581213E-2,5.0099382732906065E-3,2.6301360380082614E-2,0,0]
[null,null,"CSM Amount",1522000,"Total","PHF Percentage",null,null,"Parking Percentage","Building Percentage",119820.59635536773,105593.97271704901,281080.20809201349,47476.983562730173,325451.95041108323,550346.93961447524,73756.608930340313,609923.0576566516,194210.86296504454,315521.14701982238,90170.616722408304,158774.61669152786,105295.9775051575,45760.231744039658,0,16507.928921941089,26177.021580977689,0,0,59943.038541509573,32016.278155930864,0,1020.6264473427523,0,0,0,0,0,0,33015.857843882179,16507.928921941089,86663.939557799051,0,0]
[null,null,null,null,"Total",null,0.45513419931527221,null,6.6496479256132238E-2,0.47836932142859556,"F6121","F6122","F6123","F6124","F6125","F6126","F6127","F6129","F612A","F612C","F612E","F612H","F612J","F612K","F6131","F6132","F6133","F6134","F6137","F613D","F613E","F613F","F613G","F613H","F613i","F613K","F613L","F613M","F6141","F6142","F6143","F6144","F614G","F6146"]
[null,null,"Agency #","Agency",null,"PHF Thurston FTEs","Thurston FTEs","allocation","allocation","allocation","Cherberg","O'Brien","Legislative","Pritchard","HLB","OB2","Archives","NRB","Emp Sec","Transportation","Insurance","Old Cap","TOJ","Newhouse","Modular Bldg","Isabella Bush","1007 Washington","120 E Union Avenue","Conservatory","Capital Court","James Dolliver Building","Undeveloped Properties","1068 WA Street SE (ST Farm)","232 Perry Street","208 11th Avenue SE (Pro Arts)","Press Houses Ayer(White); Carlyon(Blue)","Visitor Center","Helen Sommers","Kelso Building","Yakima Building","Alaska Street","Tacoma Rhodes","Tacoma Rhodes Garage","North Cascades Gateway Center (NCGC)"]
[null,{"$f":"CONCATENATE(C7,\" - \",D7)","v":"011 - House of Representatives"},"011","House of Representatives",{"$f":"F7+SUM(K7:AR7)","v":52258.594352017062},{"$f":"H7*$D$4","v":9146.6125734326251},339,6.0096009023867447E-3,4.9680321250563193E-3,2.8325875018780835E-2,{"$f":"$D$4*'CC Allocations'!J7","v":0},{"$f":"$D$4*'CC Allocations'!K7","v":23332.264257641666},{"$f":"$D$4*'CC Allocations'!L7","v":19779.71752094277},{"$f":"$D$4*'CC Allocations'!M7","v":0},{"$f":"$D$4*'CC Allocations'!N7","v":0},{"$f":"$D$4*'CC Allocations'!O7","v":0},{"$f":"$D$4*'CC Allocations'!P7","v":0},{"$f":"$D$4*'CC Allocations'!Q7","v":0},{"$f":"$D$4*'CC Allocations'!R7","v":0},{"$f":"$D$4*'CC Allocations'!S7","v":0},{"$f":"$D$4*'CC Allocations'!T7","v":0},{"$f":"$D$4*'CC Allocations'!U7","v":0},{"$f":"$D$4*'CC Allocations'!V7","v":0},{"$f":"$D$4*'CC Allocations'!W7","v":0},{"$f":"$D$4*'CC Allocations'!X7","v":0},{"$f":"$D$4*'CC Allocations'!Y7","v":0},{"$f":"$D$4*'CC Allocations'!Z7","v":0},{"$f":"$D$4*'CC Allocations'!AA7","v":0},{"$f":"$D$4*'CC Allocations'!AB7","v":0},{"$f":"$D$4*'CC Allocations'!AC7","v":0},{"$f":"$D$4*'CC Allocations'!AD7","v":0},{"$f":"$D$4*'CC Allocations'!AE7","v":0},{"$f":"$D$4*'CC Allocations'!AF7","v":0},{"$f":"$D$4*'CC Allocations'!AG7","v":0},{"$f":"$D$4*'CC Allocations'!AH7","v":0},{"$f":"$D$4*'CC Allocations'!AI7","v":0},{"$f":"$D$4*'CC Allocations'!AJ7","v":0},{"$f":"$D$4*'CC Allocations'!AK7","v":0},{"$f":"$D$4*'CC Allocations'!AL7","v":0},{"$f":"$D$4*'CC Allocations'!AM7","v":0},{"$f":"$D$4*'CC Allocations'!AN7","v":0},{"$f":"$D$4*'CC Allocations'!AO7","v":0},{"$f":"$D$4*'CC Allocations'!AP7","v":0},{"$f":"$D$4*'CC Allocations'!AQ7","v":0}]
[null,{"$f":"CONCATENATE(C8,\" - \",D8)","v":"012 - Senate"},"012","Senate",{"$f":"F8+SUM(K8:AR8)","v":57990.621393168731},{"$f":"H8*$D$4","v":5989.8170834868515},222,3.9354908564302573E-3,5.3978400020880599E-3,3.4166100072064297E-2,{"$f":"$D$4*'CC Allocations'!J8","v":26475.808663464275},{"$f":"$D$4*'CC Allocations'!K8","v":0},{"$f":"$D$4*'CC Allocations'!L8","v":15413.719480826494},{"$f":"$D$4*'CC Allocations'!M8","v":0},{"$f":"$D$4*'CC Allocations'!N8","v":0},{"$f":"$D$4*'CC Allocations'!O8","v":0},{"$f":"$D$4*'CC Allocations'!P8","v":0},{"$f":"$D$4*'CC Allocations'!Q8","v":0},{"$f":"$D$4*'CC Allocations'!R8","v":0},{"$f":"$D$4*'CC Allocations'!S8","v":0},{"$f":"$D$4*'CC Allocations'!T8","v":0},{"$f":"$D$4*'CC Allocations'!U8","v":0},{"$f":"$D$4*'CC Allocations'!V8","v":0},{"$f":"$D$4*'CC Allocations'!W8","v":10111.276165391106},{"$f":"$D$4*'CC Allocations'!X8","v":0},{"$f":"$D$4*'CC Allocations'!Y8","v":0},{"$f":"$D$4*'CC Allocations'!Z8","v":0},{"$f":"$D$4*'CC Allocations'!AA8","v":0},{"$f":"$D$4*'CC Allocations'!AB8","v":0},{"$f":"$D$4*'CC Allocations'!AC8","v":0},{"$f":"$D$4*'CC Allocations'!AD8","v":0},{"$f":"$D$4*'CC Allocations'!AE8","v":0},{"$f":"$D$4*'CC Allocations'!AF8","v":0},{"$f":"$D$4*'CC Allocations'!AG8","v":0},{"$f":"$D$4*'CC Allocations'!AH8","v":0},{"$f":"$D$4*'CC Allocations'!AI8","v":0},{"$f":"$D$4*'CC Allocations'!AJ8","v":0},{"$f":"$D$4*'CC Allocations'!AK8","v":0},{"$f":"$D$4*'CC Allocations'!AL8","v":0},{"$f":"$D$4*'CC Allocations'!AM8","v":0},{"$f":"$D$4*'CC Allocations'!AN8","v":0},{"$f":"$D$4*'CC Allocations'!AO8","v":0},{"$f":"$D$4*'CC Allocations'!AP8","v":0},{"$f":"$D$4*'CC Allocations'!AQ8","v":0}]
[null,"013 - Joint Transportation Committee","013","Joint Transportation Committee",107.92463213489823,107.92463213489823,4,7.0909745160905536E-5,0,0,{"$f":"$D$4*'CC Allocations'!J9","v":0},{"$f":"$D$4*'CC Allocations'!K9","v":0},{"$f":"$D$4*'CC Allocations'!L9","v":0},{"$f":"$D$4*'CC Allocations'!M9","v":0},{"$f":"$D$4*'CC Allocations'!N9","v":0},{"$f":"$D$4*'CC Allocations'!O9","v":0},{"$f":"$D$4*'CC Allocations'!P9","v":0},{"$f":"$D$4*'CC Allocations'!Q9","v":0},{"$f":"$D$4*'CC Allocations'!R9","v":0},{"$f":"$D$4*'CC Allocations'!S9","v":0},{"$f":"$D$4*'CC Allocations'!T9","v":0},{"$f":"$D$4*'CC Allocations'!U9","v":0},{"$f":"$D$4*'CC Allocations'!V9","v":0},{"$f":"$D$4*'CC Allocations'!W9","v":0},{"$f":"$D$4*'CC Allocations'!X9","v":0},{"$f":"$D$4*'CC Allocations'!Y9","v":0},{"$f":"$D$4*'CC Allocations'!Z9","v":0},{"$f":"$D$4*'CC Allocations'!AA9","v":0},{"$f":"$D$4*'CC Allocations'!AB9","v":0},{"$f":"$D$4*'CC Allocations'!AC9","v":0},{"$f":"$D$4*'CC Allocations'!AD9","v":0},{"$f":"$D$4*'CC Allocations'!AE9","v":0},{"$f":"$D$4*'CC Allocations'!AF9","v":0},{"$f":"$D$4*'CC Allocations'!AG9","v":0},{"$f":"$D$4*'CC Allocations'!AH9","v":0},{"$f":"$D$4*'CC Allocations'!AI9","v":0},{"$f":"$D$4*'CC Allocations'!AJ9","v":0},{"$f":"$D$4*'CC Allocations'!AK9","v":0},{"$f":"$D$4*'CC Allocations'!AL9","v":0},{"$f":"$D$4*'CC Allocations'!AM9","v":0},{"$f":"$D$4*'CC Allocations'!AN9","v":0},{"$f":"$D$4*'CC Allocations'!AO9","v":0},{"$f":"$D$4*'CC Allocations'!AP9","v":0},{"$f":"$D$4*'CC Allocations'!AQ9","v":0}]
[null,"014 - Joint Legislative Audit and Review Committee","014","Joint Legislative Audit and Review Committee",647.54779280938942,647.54779280938942,24,4.2545847096543324E-4,0,0,{"$f":"$D$4*'CC Allocations'!J10","v":0},{"$f":"$D$4*'CC Allocations'!K10","v":0},{"$f":"$D$4*'CC Allocations'!L10","v":0},{"$f":"$D$4*'CC Allocations'!M10","v":0},{"$f":"$D$4*'CC Allocations'!N10","v":0},{"$f":"$D$4*'CC Allocations'!O10","v":0},{"$f":"$D$4*'CC Allocations'!P10","v":0},{"$f":"$D$4*'CC Allocations'!Q10","v":0},{"$f":"$D$4*'CC Allocations'!R10","v":0},{"$f":"$D$4*'CC Allocations'!S10","v":0},{"$f":"$D$4*'CC Allocations'!T10","v":0},{"$f":"$D$4*'CC Allocations'!U10","v":0},{"$f":"$D$4*'CC Allocations'!V10","v":0},{"$f":"$D$4*'CC Allocations'!W10","v":0},{"$f":"$D$4*'CC Allocations'!X10","v":0},{"$f":"$D$4*'CC Allocations'!Y10","v":0},{"$f":"$D$4*'CC Allocations'!Z10","v":0},{"$f":"$D$4*'CC Allocations'!AA10","v":0},{"$f":"$D$4*'CC Allocations'!AB10","v":0},{"$f":"$D$4*'CC Allocations'!AC10","v":0},{"$f":"$D$4*'CC Allocations'!AD10","v":0},{"$f":"$D$4*'CC Allocations'!AE10","v":0},{"$f":"$D$4*'CC Allocations'!AF10","v":0},{"$f":"$D$4*'CC Allocations'!AG10","v":0},{"$f":"$D$4*'CC Allocations'!AH10","v":0},{"$f":"$D$4*'CC Allocations'!AI10","v":0},{"$f":"$D$4*'CC Allocations'!AJ10","v":0},{"$f":"$D$4*'CC Allocations'!AK10","v":0},{"$f":"$D$4*'CC Allocations'!AL10","v":0},{"$f":"$D$4*'CC Allocations'!AM10","v":0},{"$f":"$D$4*'CC Allocations'!AN10","v":0},{"$f":"$D$4*'CC Allocations'!AO10","v":0},{"$f":"$D$4*'CC Allocations'!AP10","v":0},{"$f":"$D$4*'CC Allocations'!AQ10","v":0}]
[null,"020 - Legislative Evaluation and Accountability Program Committee","020","Legislative Evaluation and Accountability Program Committee",269.81158033724563,269.81158033724563,10,1.7727436290226387E-4,0,0,{"$f":"$D$4*'CC Allocations'!J11","v":0},{"$f":"$D$4*'CC Allocations'!K11","v":0},{"$f":"$D$4*'CC Allocations'!L11","v":0},{"$f":"$D$4*'CC Allocations'!M11","v":0},{"$f":"$D$4*'CC Allocations'!N11","v":0},{"$f":"$D$4*'CC Allocations'!O11","v":0},{"$f":"$D$4*'CC Allocations'!P11","v":0},{"$f":"$D$4*'CC Allocations'!Q11","v":0},{"$f":"$D$4*'CC Allocations'!R11","v":0},{"$f":"$D$4*'CC Allocations'!S11","v":0},{"$f":"$D$4*'CC Allocations'!T11","v":0},{"$f":"$D$4*'CC Allocations'!U11","v":0},{"$f":"$D$4*'CC Allocations'!V11","v":0},{"$f":"$D$4*'CC Allocations'!W11","v":0},{"$f":"$D$4*'CC Allocations'!X11","v":0},{"$f":"$D$4*'CC Allocations'!Y11","v":0},{"$f":"$D$4*'CC Allocations'!Z11","v":0},{"$f":"$D$4*'CC Allocations'!AA11","v":0},{"$f":"$D$4*'CC Allocations'!AB11","v":0},{"$f":"$D$4*'CC Allocations'!AC11","v":0},{"$f":"$D$4*'CC Allocations'!AD11","v":0},{"$f":"$D$4*'CC Allocations'!AE11","v":0},{"$f":"$D$4*'CC Allocations'!AF11","v":0},{"$f":"$D$4*'CC Allocations'!AG11","v":0},{"$f":"$D$4*'CC Allocations'!AH11","v":0},{"$f":"$D$4*'CC Allocations'!AI11","v":0},{"$f":"$D$4*'CC Allocations'!AJ11","v":0},{"$f":"$D$4*'CC Allocations'!AK11","v":0},{"$f":"$D$4*'CC Allocations'!AL11","v":0},{"$f":"$D$4*'CC Allocations'!AM11","v":0},{"$f":"$D$4*'CC Allocations'!AN11","v":0},{"$f":"$D$4*'CC Allocations'!AO11","v":0},{"$f":"$D$4*'CC Allocations'!AP11","v":0},{"$f":"$D$4*'CC Allocations'!AQ11","v":0}]
[null,"035 - Office of the State Actuary","035","Office of the State Actuary",458.67968657331744,458.67968657331744,17,3.0136641693384852E-4,0,0,{"$f":"$D$4*'CC Allocations'!J12","v":0},{"$f":"$D$4*'CC Allocations'!K12","v":0},{"$f":"$D$4*'CC Allocations'!L12","v":0},{"$f":"$D$4*'CC Allocations'!M12","v":0},{"$f":"$D$4*'CC Allocations'!N12","v":0},{"$f":"$D$4*'CC Allocations'!O12","v":0},{"$f":"$D$4*'CC Allocations'!P12","v":0},{"$f":"$D$4*'CC Allocations'!Q12","v":0},{"$f":"$D$4*'CC Allocations'!R12","v":0},{"$f":"$D$4*'CC Allocations'!S12","v":0},{"$f":"$D$4*'CC Allocations'!T12","v":0},{"$f":"$D$4*'CC Allocations'!U12","v":0},{"$f":"$D$4*'CC Allocations'!V12","v":0},{"$f":"$D$4*'CC Allocations'!W12","v":0},{"$f":"$D$4*'CC Allocations'!X12","v":0},{"$f":"$D$4*'CC Allocations'!Y12","v":0},{"$f":"$D$4*'CC Allocations'!Z12","v":0},{"$f":"$D$4*'CC Allocations'!AA12","v":0},{"$f":"$D$4*'CC Allocations'!AB12","v":0},{"$f":"$D$4*'CC Allocations'!AC12","v":0},{"$f":"$D$4*'CC Allocations'!AD12","v":0},{"$f":"$D$4*'CC Allocations'!AE12","v":0},{"$f":"$D$4*'CC Allocations'!AF12","v":0},{"$f":"$D$4*'CC Allocations'!AG12","v":0},{"$f":"$D$4*'CC Allocations'!AH12","v":0},{"$f":"$D$4*'CC Allocations'!AI12","v":0},{"$f":"$D$4*'CC Allocations'!AJ12","v":0},{"$f":"$D$4*'CC Allocations'!AK12","v":0},{"$f":"$D$4*'CC Allocations'!AL12","v":0},{"$f":"$D$4*'CC Allocations'!AM12","v":0},{"$f":"$D$4*'CC Allocations'!AN12","v":0},{"$f":"$D$4*'CC Allocations'!AO12","v":0},{"$f":"$D$4*'CC Allocations'!AP12","v":0},{"$f":"$D$4*'CC Allocations'!AQ12","v":0}]
[null,"037 - Office of Legislative Support Services","037","Office of Legislative Support Services",10464.159975106888,809.43474101173672,30,5.3182308870679154E-4,3.5458448144338913E-4,6.3434462773292698E-3,{"$f":"$D$4*'CC Allocations'!J13","v":0},{"$f":"$D$4*'CC Allocations'!K13","v":0},{"$f":"$D$4*'CC Allocations'!L13","v":2173.8304241738929},{"$f":"$D$4*'CC Allocations'!M13","v":1696.7655713899503},{"$f":"$D$4*'CC Allocations'!N13","v":0},{"$f":"$D$4*'CC Allocations'!O13","v":0},{"$f":"$D$4*'CC Allocations'!P13","v":0},{"$f":"$D$4*'CC Allocations'!Q13","v":0},{"$f":"$D$4*'CC Allocations'!R13","v":0},{"$f":"$D$4*'CC Allocations'!S13","v":0},{"$f":"$D$4*'CC Allocations'!T13","v":0},{"$f":"$D$4*'CC Allocations'!U13","v":0},{"$f":"$D$4*'CC Allocations'!V13","v":0},{"$f":"$D$4*'CC Allocations'!W13","v":0},{"$f":"$D$4*'CC Allocations'!X13","v":0},{"$f":"$D$4*'CC Allocations'!Y13","v":0},{"$f":"$D$4*'CC Allocations'!Z13","v":5784.1292385313072},{"$f":"$D$4*'CC Allocations'!AA13","v":0},{"$f":"$D$4*'CC Allocations'!AB13","v":0},{"$f":"$D$4*'CC Allocations'!AC13","v":0},{"$f":"$D$4*'CC Allocations'!AD13","v":0},{"$f":"$D$4*'CC Allocations'!AE13","v":0},{"$f":"$D$4*'CC Allocations'!AF13","v":0},{"$f":"$D$4*'CC Allocations'!AG13","v":0},{"$f":"$D$4*'CC Allocations'!AH13","v":0},{"$f":"$D$4*'CC Allocations'!AI13","v":0},{"$f":"$D$4*'CC Allocations'!AJ13","v":0},{"$f":"$D$4*'CC Allocations'!AK13","v":0},{"$f":"$D$4*'CC Allocations'!AL13","v":0},{"$f":"$D$4*'CC Allocations'!AM13","v":0},{"$f":"$D$4*'CC Allocations'!AN13","v":0},{"$f":"$D$4*'CC Allocations'!AO13","v":0},{"$f":"$D$4*'CC Allocations'!AP13","v":0},{"$f":"$D$4*'CC Allocations'!AQ13","v":0}]
[null,"038 - Joint Legislative Systems Committee","038","Joint Legislative Systems Committee",5462.936088045285,1591.8883239897491,59,1.0459187411233568E-3,3.5374242850769866E-4,2.5433953771718367E-3,{"$f":"$D$4*'CC Allocations'!J14","v":0},{"$f":"$D$4*'CC Allocations'!K14","v":0},{"$f":"$D$4*'CC Allocations'!L14","v":499.03357598529021},{"$f":"$D$4*'CC Allocations'!M14","v":3372.0141880702458},{"$f":"$D$4*'CC Allocations'!N14","v":0},{"$f":"$D$4*'CC Allocations'!O14","v":0},{"$f":"$D$4*'CC Allocations'!P14","v":0},{"$f":"$D$4*'CC Allocations'!Q14","v":0},{"$f":"$D$4*'CC Allocations'!R14","v":0},{"$f":"$D$4*'CC Allocations'!S14","v":0},{"$f":"$D$4*'CC Allocations'!T14","v":0},{"$f":"$D$4*'CC Allocations'!U14","v":0},{"$f":"$D$4*'CC Allocations'!V14","v":0},{"$f":"$D$4*'CC Allocations'!W14","v":0},{"$f":"$D$4*'CC Allocations'!X14","v":0},{"$f":"$D$4*'CC Allocations'!Y14","v":0},{"$f":"$D$4*'CC Allocations'!Z14","v":0},{"$f":"$D$4*'CC Allocations'!AA14","v":0},{"$f":"$D$4*'CC Allocations'!AB14","v":0},{"$f":"$D$4*'CC Allocations'!AC14","v":0},{"$f":"$D$4*'CC Allocations'!AD14","v":0},{"$f":"$D$4*'CC Allocations'!AE14","v":0},{"$f":"$D$4*'CC Allocations'!AF14","v":0},{"$f":"$D$4*'CC Allocations'!AG14","v":0},{"$f":"$D$4*'CC Allocations'!AH14","v":0},{"$f":"$D$4*'CC Allocations'!AI14","v":0},{"$f":"$D$4*'CC Allocations'!AJ14","v":0},{"$f":"$D$4*'CC Allocations'!AK14","v":0},{"$f":"$D$4*'CC Allocations'!AL14","v":0},{"$f":"$D$4*'CC Allocations'!AM14","v":0},{"$f":"$D$4*'CC Allocations'!AN14","v":0},{"$f":"$D$4*'CC Allocations'!AO14","v":0},{"$f":"$D$4*'CC Allocations'!AP14","v":0},{"$f":"$D$4*'CC Allocations'!AQ14","v":0}]
[null,"040 - Statute Law Committee (Code Revisor)","040","Statute Law Committee (Code Revisor)",6420.1363125562239,998.30284724780859,37,6.5591514273837621E-4,4.9508702842717691E-4,3.5623084528964614E-3,{"$f":"$D$4*'CC Allocations'!J15","v":0},{"$f":"$D$4*'CC Allocations'!K15","v":0},{"$f":"$D$4*'CC Allocations'!L15","v":0},{"$f":"$D$4*'CC Allocations'!M15","v":5421.8334653084148},{"$f":"$D$4*'CC Allocations'!N15","v":0},{"$f":"$D$4*'CC Allocations'!O15","v":0},{"$f":"$D$4*'CC Allocations'!P15","v":0},{"$f":"$D$4*'CC Allocations'!Q15","v":0},{"$f":"$D$4*'CC Allocations'!R15","v":0},{"$f":"$D$4*'CC Allocations'!S15","v":0},{"$f":"$D$4*'CC Allocations'!T15","v":0},{"$f":"$D$4*'CC Allocations'!U15","v":0},{"$f":"$D$4*'CC Allocations'!V15","v":0},{"$f":"$D$4*'CC Allocations'!W15","v":0},{"$f":"$D$4*'CC Allocations'!X15","v":0},{"$f":"$D$4*'CC Allocations'!Y15","v":0},{"$f":"$D$4*'CC Allocations'!Z15","v":0},{"$f":"$D$4*'CC Allocations'!AA15","v":0},{"$f":"$D$4*'CC Allocations'!AB15","v":0},{"$f":"$D$4*'CC Allocations'!AC15","v":0},{"$f":"$D$4*'CC Allocations'!AD15","v":0},{"$f":"$D$4*'CC Allocations'!AE15","v":0},{"$f":"$D$4*'CC Allocations'!AF15","v":0},{"$f":"$D$4*'CC Allocations'!AG15","v":0},{"$f":"$D$4*'CC Allocations'!AH15","v":0},{"$f":"$D$4*'CC Allocations'!AI15","v":0},{"$f":"$D$4*'CC Allocations'!AJ15","v":0},{"$f":"$D$4*'CC Allocations'!AK15","v":0},{"$f":"$D$4*'CC Allocations'!AL15","v":0},{"$f":"$D$4*'CC Allocations'!AM15","v":0},{"$f":"$D$4*'CC Allocations'!AN15","v":0},{"$f":"$D$4*'CC Allocations'!AO15","v":0},{"$f":"$D$4*'CC Allocations'!AP15","v":0},{"$f":"$D$4*'CC Allocations'!AQ15","v":0}]
[null,"045 - Supreme Court","045","Supreme Court",16375.881936680031,1645.8506400571982,61,1.0813736137038096E-3,1.3609179351112323E-3,9.6780757533658536E-3,{"$f":"$D$4*'CC Allocations'!J16","v":0},{"$f":"$D$4*'CC Allocations'!K16","v":0},{"$f":"$D$4*'CC Allocations'!L16","v":0},{"$f":"$D$4*'CC Allocations'!M16","v":0},{"$f":"$D$4*'CC Allocations'!N16","v":0},{"$f":"$D$4*'CC Allocations'!O16","v":0},{"$f":"$D$4*'CC Allocations'!P16","v":0},{"$f":"$D$4*'CC Allocations'!Q16","v":0},{"$f":"$D$4*'CC Allocations'!R16","v":0},{"$f":"$D$4*'CC Allocations'!S16","v":0},{"$f":"$D$4*'CC Allocations'!T16","v":0},{"$f":"$D$4*'CC Allocations'!U16","v":0},{"$f":"$D$4*'CC Allocations'!V16","v":14730.031296622832},{"$f":"$D$4*'CC Allocations'!W16","v":0},{"$f":"$D$4*'CC Allocations'!X16","v":0},{"$f":"$D$4*'CC Allocations'!Y16","v":0},{"$f":"$D$4*'CC Allocations'!Z16","v":0},{"$f":"$D$4*'CC Allocations'!AA16","v":0},{"$f":"$D$4*'CC Allocations'!AB16","v":0},{"$f":"$D$4*'CC Allocations'!AC16","v":0},{"$f":"$D$4*'CC Allocations'!AD16","v":0},{"$f":"$D$4*'CC Allocations'!AE16","v":0},{"$f":"$D$4*'CC Allocations'!AF16","v":0},{"$f":"$D$4*'CC Allocations'!AG16","v":0},{"$f":"$D$4*'CC Allocations'!AH16","v":0},{"$f":"$D$4*'CC Allocations'!AI16","v":0},{"$f":"$D$4*'CC Allocations'!AJ16","v":0},{"$f":"$D$4*'CC Allocations'!AK16","v":0},{"$f":"$D$4*'CC Allocations'!AL16","v":0},{"$f":"$D$4*'CC Allocations'!AM16","v":0},{"$f":"$D$4*'CC Allocations'!AN16","v":0},{"$f":"$D$4*'CC Allocations'!AO16","v":0},{"$f":"$D$4*'CC Allocations'!AP16","v":0},{"$f":"$D$4*'CC Allocations'!AQ16","v":0}]
[null,"046 - Law Library","046","Law Library",6907.2936523467215,215.84926426979646,8,1.4181949032181107E-4,6.1822724583220328E-4,4.3964812011017896E-3,{"$f":"$D$4*'CC Allocations'!J17","v":0},{"$f":"$D$4*'CC Allocations'!K17","v":0},{"$f":"$D$4*'CC Allocations'!L17","v":0},{"$f":"$D$4*'CC Allocations'!M17","v":0},{"$f":"$D$4*'CC Allocations'!N17","v":0},{"$f":"$D$4*'CC Allocations'!O17","v":0},{"$f":"$D$4*'CC Allocations'!P17","v":0},{"$f":"$D$4*'CC Allocations'!Q17","v":0},{"$f":"$D$4*'CC Allocations'!R17","v":0},{"$f":"$D$4*'CC Allocations'!S17","v":0},{"$f":"$D$4*'CC Allocations'!T17","v":0},{"$f":"$D$4*'CC Allocations'!U17","v":0},{"$f":"$D$4*'CC Allocations'!V17","v":6691.444388076925},{"$f":"$D$4*'CC Allocations'!W17","v":0},{"$f":"$D$4*'CC Allocations'!X17","v":0},{"$f":"$D$4*'CC Allocations'!Y17","v":0},{"$f":"$D$4*'CC Allocations'!Z17","v":0},{"$f":"$D$4*'CC Allocations'!AA17","v":0},{"$f":"$D$4*'CC Allocations'!AB17","v":0},{"$f":"$D$4*'CC Allocations'!AC17","v":0},{"$f":"$D$4*'CC Allocations'!AD17","v":0},{"$f":"$D$4*'CC Allocations'!AE17","v":0},{"$f":"$D$4*'CC Allocations'!AF17","v":0},{"$f":"$D$4*'CC Allocations'!AG17","v":0},{"$f":"$D$4*'CC Allocations'!AH17","v":0},{"$f":"$D$4*'CC Allocations'!AI17","v":0},{"$f":"$D$4*'CC Allocations'!AJ17","v":0},{"$f":"$D$4*'CC Allocations'!AK17","v":0},{"$f":"$D$4*'CC Allocations'!AL17","v":0},{"$f":"$D$4*'CC Allocations'!AM17","v":0},{"$f":"$D$4*'CC Allocations'!AN17","v":0},{"$f":"$D$4*'CC Allocations'!AO17","v":0},{"$f":"$D$4*'CC Allocations'!AP17","v":0},{"$f":"$D$4*'CC Allocations'!AQ17","v":0}]
[null,"048 - Court of Appeals","048","Court of Appeals",7066.2125991434077,26.981158033724558,1,1.7727436290226384E-5,0,4.6249878062481486E-3,{"$f":"$D$4*'CC Allocations'!J18","v":0},{"$f":"$D$4*'CC Allocations'!K18","v":0},{"$f":"$D$4*'CC Allocations'!L18","v":0},{"$f":"$D$4*'CC Allocations'!M18","v":0},{"$f":"$D$4*'CC Allocations'!N18","v":0},{"$f":"$D$4*'CC Allocations'!O18","v":0},{"$f":"$D$4*'CC Allocations'!P18","v":0},{"$f":"$D$4*'CC Allocations'!Q18","v":0},{"$f":"$D$4*'CC Allocations'!R18","v":0},{"$f":"$D$4*'CC Allocations'!S18","v":0},{"$f":"$D$4*'CC Allocations'!T18","v":0},{"$f":"$D$4*'CC Allocations'!U18","v":0},{"$f":"$D$4*'CC Allocations'!V18","v":0},{"$f":"$D$4*'CC Allocations'!W18","v":0},{"$f":"$D$4*'CC Allocations'!X18","v":0},{"$f":"$D$4*'CC Allocations'!Y18","v":0},{"$f":"$D$4*'CC Allocations'!Z18","v":0},{"$f":"$D$4*'CC Allocations'!AA18","v":0},{"$f":"$D$4*'CC Allocations'!AB18","v":0},{"$f":"$D$4*'CC Allocations'!AC18","v":0},{"$f":"$D$4*'CC Allocations'!AD18","v":0},{"$f":"$D$4*'CC Allocations'!AE18","v":0},{"$f":"$D$4*'CC Allocations'!AF18","v":0},{"$f":"$D$4*'CC Allocations'!AG18","v":0},{"$f":"$D$4*'CC Allocations'!AH18","v":0},{"$f":"$D$4*'CC Allocations'!AI18","v":0},{"$f":"$D$4*'CC Allocations'!AJ18","v":0},{"$f":"$D$4*'CC Allocations'!AK18","v":0},{"$f":"$D$4*'CC Allocations'!AL18","v":0},{"$f":"$D$4*'CC Allocations'!AM18","v":0},{"$f":"$D$4*'CC Allocations'!AN18","v":0},{"$f":"$D$4*'CC Allocations'!AO18","v":7039.2314411096831},{"$f":"$D$4*'CC Allocations'!AP18","v":0},{"$f":"$D$4*'CC Allocations'!AQ18","v":0}]
[null,"050 - Commission on Judicial Conduct","050","Commission on Judicial Conduct",1880.1750419536786,215.84926426979646,8,1.4181949032181107E-4,0,1.0935123375058356E-3,{"$f":"$D$4*'CC Allocations'!J19","v":0},{"$f":"$D$4*'CC Allocations'!K19","v":0},{"$f":"$D$4*'CC Allocations'!L19","v":0},{"$f":"$D$4*'CC Allocations'!M19","v":0},{"$f":"$D$4*'CC Allocations'!N19","v":0},{"$f":"$D$4*'CC Allocations'!O19","v":0},{"$f":"$D$4*'CC Allocations'!P19","v":0},{"$f":"$D$4*'CC Allocations'!Q19","v":0},{"$f":"$D$4*'CC Allocations'!R19","v":0},{"$f":"$D$4*'CC Allocations'!S19","v":0},{"$f":"$D$4*'CC Allocations'!T19","v":0},{"$f":"$D$4*'CC Allocations'!U19","v":0},{"$f":"$D$4*'CC Allocations'!V19","v":0},{"$f":"$D$4*'CC Allocations'!W19","v":0},{"$f":"$D$4*'CC Allocations'!X19","v":0},{"$f":"$D$4*'CC Allocations'!Y19","v":0},{"$f":"$D$4*'CC Allocations'!Z19","v":0},{"$f":"$D$4*'CC Allocations'!AA19","v":0},{"$f":"$D$4*'CC Allocations'!AB19","v":0},{"$f":"$D$4*'CC Allocations'!AC19","v":1664.3257776838821},{"$f":"$D$4*'CC Allocations'!AD19","v":0},{"$f":"$D$4*'CC Allocations'!AE19","v":0},{"$f":"$D$4*'CC Allocations'!AF19","v":0},{"$f":"$D$4*'CC Allocations'!AG19","v":0},{"$f":"$D$4*'CC Allocations'!AH19","v":0},{"$f":"$D$4*'CC Allocations'!AI19","v":0},{"$f":"$D$4*'CC Allocations'!AJ19","v":0},{"$f":"$D$4*'CC Allocations'!AK19","v":0},{"$f":"$D$4*'CC Allocations'!AL19","v":0},{"$f":"$D$4*'CC Allocations'!AM19","v":0},{"$f":"$D$4*'CC Allocations'!AN19","v":0},{"$f":"$D$4*'CC Allocations'!AO19","v":0},{"$f":"$D$4*'CC Allocations'!AP19","v":0},{"$f":"$D$4*'CC Allocations'!AQ19","v":0}]
[null,"055 - Administrative Office of the Courts","055","Administrative Office of the Courts",8617.2135963983837,6772.270666464864,251,4.4495865088468225E-3,1.7045557283906448E-4,1.2121832653965304E-3,{"$f":"$D$4*'CC Allocations'!J20","v":0},{"$f":"$D$4*'CC Allocations'!K20","v":0},{"$f":"$D$4*'CC Allocations'!L20","v":0},{"$f":"$D$4*'CC Allocations'!M20","v":0},{"$f":"$D$4*'CC Allocations'!N20","v":0},{"$f":"$D$4*'CC Allocations'!O20","v":0},{"$f":"$D$4*'CC Allocations'!P20","v":0},{"$f":"$D$4*'CC Allocations'!Q20","v":0},{"$f":"$D$4*'CC Allocations'!R20","v":0},{"$f":"$D$4*'CC Allocations'!S20","v":0},{"$f":"$D$4*'CC Allocations'!T20","v":0},{"$f":"$D$4*'CC Allocations'!U20","v":0},{"$f":"$D$4*'CC Allocations'!V20","v":1844.9429299335195},{"$f":"$D$4*'CC Allocations'!W20","v":0},{"$f":"$D$4*'CC Allocations'!X20","v":0},{"$f":"$D$4*'CC Allocations'!Y20","v":0},{"$f":"$D$4*'CC Allocations'!Z20","v":0},{"$f":"$D$4*'CC Allocations'!AA20","v":0},{"$f":"$D$4*'CC Allocations'!AB20","v":0},{"$f":"$D$4*'CC Allocations'!AC20","v":0},{"$f":"$D$4*'CC Allocations'!AD20","v":0},{"$f":"$D$4*'CC Allocations'!AE20","v":0},{"$f":"$D$4*'CC Allocations'!AF20","v":0},{"$f":"$D$4*'CC Allocations'!AG20","v":0},{"$f":"$D$4*'CC Allocations'!AH20","v":0},{"$f":"$D$4*'CC Allocations'!AI20","v":0},{"$f":"$D$4*'CC Allocations'!AJ20","v":0},{"$f":"$D$4*'CC Allocations'!AK20","v":0},{"$f":"$D$4*'CC Allocations'!AL20","v":0},{"$f":"$D$4*'CC Allocations'!AM20","v":0},{"$f":"$D$4*'CC Allocations'!AN20","v":0},{"$f":"$D$4*'CC Allocations'!AO20","v":0},{"$f":"$D$4*'CC Allocations'!AP20","v":0},{"$f":"$D$4*'CC Allocations'!AQ20","v":0}]
[null,"056 - Office of Public Defense","056","Office of Public Defense",512.64200264076658,512.64200264076658,19,3.3682128951430132E-4,0,0,{"$f":"$D$4*'CC Allocations'!J21","v":0},{"$f":"$D$4*'CC Allocations'!K21","v":0},{"$f":"$D$4*'CC Allocations'!L21","v":0},{"$f":"$D$4*'CC Allocations'!M21","v":0},{"$f":"$D$4*'CC Allocations'!N21","v":0},{"$f":"$D$4*'CC Allocations'!O21","v":0},{"$f":"$D$4*'CC Allocations'!P21","v":0},{"$f":"$D$4*'CC Allocations'!Q21","v":0},{"$f":"$D$4*'CC Allocations'!R21","v":0},{"$f":"$D$4*'CC Allocations'!S21","v":0},{"$f":"$D$4*'CC Allocations'!T21","v":0},{"$f":"$D$4*'CC Allocations'!U21","v":0},{"$f":"$D$4*'CC Allocations'!V21","v":0},{"$f":"$D$4*'CC Allocations'!W21","v":0},{"$f":"$D$4*'CC Allocations'!X21","v":0},{"$f":"$D$4*'CC Allocations'!Y21","v":0},{"$f":"$D$4*'CC Allocations'!Z21","v":0},{"$f":"$D$4*'CC Allocations'!AA21","v":0},{"$f":"$D$4*'CC Allocations'!AB21","v":0},{"$f":"$D$4*'CC Allocations'!AC21","v":0},{"$f":"$D$4*'CC Allocations'!AD21","v":0},{"$f":"$D$4*'CC Allocations'!AE21","v":0},{"$f":"$D$4*'CC Allocations'!AF21","v":0},{"$f":"$D$4*'CC Allocations'!AG21","v":0},{"$f":"$D$4*'CC Allocations'!AH21","v":0},{"$f":"$D$4*'CC Allocations'!AI21","v":0},{"$f":"$D$4*'CC Allocations'!AJ21","v":0},{"$f":"$D$4*'CC Allocations'!AK21","v":0},{"$f":"$D$4*'CC Allocations'!AL21","v":0},{"$f":"$D$4*'CC Allocations'!AM21","v":0},{"$f":"$D$4*'CC Allocations'!AN21","v":0},{"$f":"$D$4*'CC Allocations'!AO21","v":0},{"$f":"$D$4*'CC Allocations'!AP21","v":0},{"$f":"$D$4*'CC Allocations'!AQ21","v":0}]
[null,"057 - Office of Civil Legal Aid","057","Office of Civil Legal Aid",80.943474101173678,80.943474101173678,3,5.3182308870679155E-5,0,0,{"$f":"$D$4*'CC Allocations'!J22","v":0},{"$f":"$D$4*'CC Allocations'!K22","v":0},{"$f":"$D$4*'CC Allocations'!L22","v":0},{"$f":"$D$4*'CC Allocations'!M22","v":0},{"$f":"$D$4*'CC Allocations'!N22","v":0},{"$f":"$D$4*'CC Allocations'!O22","v":0},{"$f":"$D$4*'CC Allocations'!P22","v":0},{"$f":"$D$4*'CC Allocations'!Q22","v":0},{"$f":"$D$4*'CC Allocations'!R22","v":0},{"$f":"$D$4*'CC Allocations'!S22","v":0},{"$f":"$D$4*'CC Allocations'!T22","v":0},{"$f":"$D$4*'CC Allocations'!U22","v":0},{"$f":"$D$4*'CC Allocations'!V22","v":0},{"$f":"$D$4*'CC Allocations'!W22","v":0},{"$f":"$D$4*'CC Allocations'!X22","v":0},{"$f":"$D$4*'CC Allocations'!Y22","v":0},{"$f":"$D$4*'CC Allocations'!Z22","v":0},{"$f":"$D$4*'CC Allocations'!AA22","v":0},{"$f":"$D$4*'CC Allocations'!AB22","v":0},{"$f":"$D$4*'CC Allocations'!AC22","v":0},{"$f":"$D$4*'CC Allocations'!AD22","v":0},{"$f":"$D$4*'CC Allocations'!AE22","v":0},{"$f":"$D$4*'CC Allocations'!AF22","v":0},{"$f":"$D$4*'CC Allocations'!AG22","v":0},{"$f":"$D$4*'CC Allocations'!AH22","v":0},{"$f":"$D$4*'CC Allocations'!AI22","v":0},{"$f":"$D$4*'CC Allocations'!AJ22","v":0},{"$f":"$D$4*'CC Allocations'!AK22","v":0},{"$f":"$D$4*'CC Allocations'!AL22","v":0},{"$f":"$D$4*'CC Allocations'!AM22","v":0},{"$f":"$D$4*'CC Allocations'!AN22","v":0},{"$f":"$D$4*'CC Allocations'!AO22","v":0},{"$f":"$D$4*'CC Allocations'!AP22","v":0},{"$f":"$D$4*'CC Allocations'!AQ22","v":0}]
[null,"075 - Office of the Governor","075","Office of the Governor",9288.1780900207523,1753.7752721920965,65,1.1522833588647151E-3,6.919670243433865E-4,4.950330366510285E-3,{"$f":"$D$4*'CC Allocations'!J23","v":0},{"$f":"$D$4*'CC Allocations'!K23","v":0},{"$f":"$D$4*'CC Allocations'!L23","v":7534.4028178286553},{"$f":"$D$4*'CC Allocations'!M23","v":0},{"$f":"$D$4*'CC Allocations'!N23","v":0},{"$f":"$D$4*'CC Allocations'!O23","v":0},{"$f":"$D$4*'CC Allocations'!P23","v":0},{"$f":"$D$4*'CC Allocations'!Q23","v":0},{"$f":"$D$4*'CC Allocations'!R23","v":0},{"$f":"$D$4*'CC Allocations'!S23","v":0},{"$f":"$D$4*'CC Allocations'!T23","v":0},{"$f":"$D$4*'CC Allocations'!U23","v":0},{"$f":"$D$4*'CC Allocations'!V23","v":0},{"$f":"$D$4*'CC Allocations'!W23","v":0},{"$f":"$D$4*'CC Allocations'!X23","v":0},{"$f":"$D$4*'CC Allocations'!Y23","v":0},{"$f":"$D$4*'CC Allocations'!Z23","v":0},{"$f":"$D$4*'CC Allocations'!AA23","v":0},{"$f":"$D$4*'CC Allocations'!AB23","v":0},{"$f":"$D$4*'CC Allocations'!AC23","v":0},{"$f":"$D$4*'CC Allocations'!AD23","v":0},{"$f":"$D$4*'CC Allocations'!AE23","v":0},{"$f":"$D$4*'CC Allocations'!AF23","v":0},{"$f":"$D$4*'CC Allocations'!AG23","v":0},{"$f":"$D$4*'CC Allocations'!AH23","v":0},{"$f":"$D$4*'CC Allocations'!AI23","v":0},{"$f":"$D$4*'CC Allocations'!AJ23","v":0},{"$f":"$D$4*'CC Allocations'!AK23","v":0},{"$f":"$D$4*'CC Allocations'!AL23","v":0},{"$f":"$D$4*'CC Allocations'!AM23","v":0},{"$f":"$D$4*'CC Allocations'!AN23","v":0},{"$f":"$D$4*'CC Allocations'!AO23","v":0},{"$f":"$D$4*'CC Allocations'!AP23","v":0},{"$f":"$D$4*'CC Allocations'!AQ23","v":0}]
[null,"080 - Office of Lieutenant Governor","080","Office of Lieutenant Governor",4036.2736090015292,161.88694820234736,6,1.0636461774135831E-4,3.5582751196750368E-4,2.5455891332451914E-3,{"$f":"$D$4*'CC Allocations'!J24","v":0},{"$f":"$D$4*'CC Allocations'!K24","v":0},{"$f":"$D$4*'CC Allocations'!L24","v":3874.3866607991818},{"$f":"$D$4*'CC Allocations'!M24","v":0},{"$f":"$D$4*'CC Allocations'!N24","v":0},{"$f":"$D$4*'CC Allocations'!O24","v":0},{"$f":"$D$4*'CC Allocations'!P24","v":0},{"$f":"$D$4*'CC Allocations'!Q24","v":0},{"$f":"$D$4*'CC Allocations'!R24","v":0},{"$f":"$D$4*'CC Allocations'!S24","v":0},{"$f":"$D$4*'CC Allocations'!T24","v":0},{"$f":"$D$4*'CC Allocations'!U24","v":0},{"$f":"$D$4*'CC Allocations'!V24","v":0},{"$f":"$D$4*'CC Allocations'!W24","v":0},{"$f":"$D$4*'CC Allocations'!X24","v":0},{"$f":"$D$4*'CC Allocations'!Y24","v":0},{"$f":"$D$4*'CC Allocations'!Z24","v":0},{"$f":"$D$4*'CC Allocations'!AA24","v":0},{"$f":"$D$4*'CC Allocations'!AB24","v":0},{"$f":"$D$4*'CC Allocations'!AC24","v":0},{"$f":"$D$4*'CC Allocations'!AD24","v":0},{"$f":"$D$4*'CC Allocations'!AE24","v":0},{"$f":"$D$4*'CC Allocations'!AF24","v":0},{"$f":"$D$4*'CC Allocations'!AG24","v":0},{"$f":"$D$4*'CC Allocations'!AH24","v":0},{"$f":"$D$4*'CC Allocations'!AI24","v":0},{"$f":"$D$4*'CC Allocations'!AJ24","v":0},{"$f":"$D$4*'CC Allocations'!AK24","v":0},{"$f":"$D$4*'CC Allocations'!AL24","v":0},{"$f":"$D$4*'CC Allocations'!AM24","v":0},{"$f":"$D$4*'CC Allocations'!AN24","v":0},{"$f":"$D$4*'CC Allocations'!AO24","v":0},{"$f":"$D$4*'CC Allocations'!AP24","v":0},{"$f":"$D$4*'CC Allocations'!AQ24","v":0}]
[null,"082 - Public Disclosure Commission","082","Public Disclosure Commission",836.41589904546117,836.41589904546117,31,5.4955052499701786E-4,0,0,{"$f":"$D$4*'CC Allocations'!J25","v":0},{"$f":"$D$4*'CC Allocations'!K25","v":0},{"$f":"$D$4*'CC Allocations'!L25","v":0},{"$f":"$D$4*'CC Allocations'!M25","v":0},{"$f":"$D$4*'CC Allocations'!N25","v":0},{"$f":"$D$4*'CC Allocations'!O25","v":0},{"$f":"$D$4*'CC Allocations'!P25","v":0},{"$f":"$D$4*'CC Allocations'!Q25","v":0},{"$f":"$D$4*'CC Allocations'!R25","v":0},{"$f":"$D$4*'CC Allocations'!S25","v":0},{"$f":"$D$4*'CC Allocations'!T25","v":0},{"$f":"$D$4*'CC Allocations'!U25","v":0},{"$f":"$D$4*'CC Allocations'!V25","v":0},{"$f":"$D$4*'CC Allocations'!W25","v":0},{"$f":"$D$4*'CC Allocations'!X25","v":0},{"$f":"$D$4*'CC Allocations'!Y25","v":0},{"$f":"$D$4*'CC Allocations'!Z25","v":0},{"$f":"$D$4*'CC Allocations'!AA25","v":0},{"$f":"$D$4*'CC Allocations'!AB25","v":0},{"$f":"$D$4*'CC Allocations'!AC25","v":0},{"$f":"$D$4*'CC Allocations'!AD25","v":0},{"$f":"$D$4*'CC Allocations'!AE25","v":0},{"$f":"$D$4*'CC Allocations'!AF25","v":0},{"$f":"$D$4*'CC Allocations'!AG25","v":0},{"$f":"$D$4*'CC Allocations'!AH25","v":0},{"$f":"$D$4*'CC Allocations'!AI25","v":0},{"$f":"$D$4*'CC Allocations'!AJ25","v":0},{"$f":"$D$4*'CC Allocations'!AK25","v":0},{"$f":"$D$4*'CC Allocations'!AL25","v":0},{"$f":"$D$4*'CC Allocations'!AM25","v":0},{"$f":"$D$4*'CC Allocations'!AN25","v":0},{"$f":"$D$4*'CC Allocations'!AO25","v":0},{"$f":"$D$4*'CC Allocations'!AP25","v":0},{"$f":"$D$4*'CC Allocations'!AQ25","v":0}]
[null,"085 - Office of the Secretary of State","085","Office of the Secretary of State",37982.802817396019,6313.5909798915472,234,4.1482200919129748E-3,2.3477237802228242E-3,2.0807629328189532E-2,{"$f":"$D$4*'CC Allocations'!J26","v":0},{"$f":"$D$4*'CC Allocations'!K26","v":0},{"$f":"$D$4*'CC Allocations'!L26","v":4649.7879127238321},{"$f":"$D$4*'CC Allocations'!M26","v":0},{"$f":"$D$4*'CC Allocations'!N26","v":0},{"$f":"$D$4*'CC Allocations'!O26","v":0},{"$f":"$D$4*'CC Allocations'!P26","v":16297.414009809092},{"$f":"$D$4*'CC Allocations'!Q26","v":0},{"$f":"$D$4*'CC Allocations'!R26","v":0},{"$f":"$D$4*'CC Allocations'!S26","v":0},{"$f":"$D$4*'CC Allocations'!T26","v":0},{"$f":"$D$4*'CC Allocations'!U26","v":0},{"$f":"$D$4*'CC Allocations'!V26","v":0},{"$f":"$D$4*'CC Allocations'!W26","v":0},{"$f":"$D$4*'CC Allocations'!X26","v":0},{"$f":"$D$4*'CC Allocations'!Y26","v":3647.626375278016},{"$f":"$D$4*'CC Allocations'!Z26","v":0},{"$f":"$D$4*'CC Allocations'!AA26","v":0},{"$f":"$D$4*'CC Allocations'!AB26","v":0},{"$f":"$D$4*'CC Allocations'!AC26","v":0},{"$f":"$D$4*'CC Allocations'!AD26","v":7074.3835396935328},{"$f":"$D$4*'CC Allocations'!AE26","v":0},{"$f":"$D$4*'CC Allocations'!AF26","v":0},{"$f":"$D$4*'CC Allocations'!AG26","v":0},{"$f":"$D$4*'CC Allocations'!AH26","v":0},{"$f":"$D$4*'CC Allocations'!AI26","v":0},{"$f":"$D$4*'CC Allocations'!AJ26","v":0},{"$f":"$D$4*'CC Allocations'!AK26","v":0},{"$f":"$D$4*'CC Allocations'!AL26","v":0},{"$f":"$D$4*'CC Allocations'!AM26","v":0},{"$f":"$D$4*'CC Allocations'!AN26","v":0},{"$f":"$D$4*'CC Allocations'!AO26","v":0},{"$f":"$D$4*'CC Allocations'!AP26","v":0},{"$f":"$D$4*'CC Allocations'!AQ26","v":0}]
[null,"086 - Governor's Office of Indian Affairs","086","Governor's Office of Indian Affairs",448.93196389290387,26.981158033724558,1,1.7727436290226384E-5,0,2.7723443223336348E-4,{"$f":"$D$4*'CC Allocations'!J27","v":0},{"$f":"$D$4*'CC Allocations'!K27","v":0},{"$f":"$D$4*'CC Allocations'!L27","v":0},{"$f":"$D$4*'CC Allocations'!M27","v":0},{"$f":"$D$4*'CC Allocations'!N27","v":0},{"$f":"$D$4*'CC Allocations'!O27","v":0},{"$f":"$D$4*'CC Allocations'!P27","v":0},{"$f":"$D$4*'CC Allocations'!Q27","v":0},{"$f":"$D$4*'CC Allocations'!R27","v":0},{"$f":"$D$4*'CC Allocations'!S27","v":0},{"$f":"$D$4*'CC Allocations'!T27","v":0},{"$f":"$D$4*'CC Allocations'!U27","v":0},{"$f":"$D$4*'CC Allocations'!V27","v":0},{"$f":"$D$4*'CC Allocations'!W27","v":0},{"$f":"$D$4*'CC Allocations'!X27","v":0},{"$f":"$D$4*'CC Allocations'!Y27","v":0},{"$f":"$D$4*'CC Allocations'!Z27","v":0},{"$f":"$D$4*'CC Allocations'!AA27","v":0},{"$f":"$D$4*'CC Allocations'!AB27","v":0},{"$f":"$D$4*'CC Allocations'!AC27","v":421.9508058591793},{"$f":"$D$4*'CC Allocations'!AD27","v":0},{"$f":"$D$4*'CC Allocations'!AE27","v":0},{"$f":"$D$4*'CC Allocations'!AF27","v":0},{"$f":"$D$4*'CC Allocations'!AG27","v":0},{"$f":"$D$4*'CC Allocations'!AH27","v":0},{"$f":"$D$4*'CC Allocations'!AI27","v":0},{"$f":"$D$4*'CC Allocations'!AJ27","v":0},{"$f":"$D$4*'CC Allocations'!AK27","v":0},{"$f":"$D$4*'CC Allocations'!AL27","v":0},{"$f":"$D$4*'CC Allocations'!AM27","v":0},{"$f":"$D$4*'CC Allocations'!AN27","v":0},{"$f":"$D$4*'CC Allocations'!AO27","v":0},{"$f":"$D$4*'CC Allocations'!AP27","v":0},{"$f":"$D$4*'CC Allocations'!AQ27","v":0}]
[null,"087 - Commission on Asian Pacific American Affairs","087","Commission on Asian Pacific American Affairs",358.49190813811867,80.943474101173678,3,5.3182308870679155E-5,0,1.8235770961691519E-4,{"$f":"$D$4*'CC Allocations'!J28","v":0},{"$f":"$D$4*'CC Allocations'!K28","v":0},{"$f":"$D$4*'CC Allocations'!L28","v":0},{"$f":"$D$4*'CC Allocations'!M28","v":0},{"$f":"$D$4*'CC Allocations'!N28","v":0},{"$f":"$D$4*'CC Allocations'!O28","v":0},{"$f":"$D$4*'CC Allocations'!P28","v":0},{"$f":"$D$4*'CC Allocations'!Q28","v":0},{"$f":"$D$4*'CC Allocations'!R28","v":0},{"$f":"$D$4*'CC Allocations'!S28","v":0},{"$f":"$D$4*'CC Allocations'!T28","v":0},{"$f":"$D$4*'CC Allocations'!U28","v":0},{"$f":"$D$4*'CC Allocations'!V28","v":0},{"$f":"$D$4*'CC Allocations'!W28","v":0},{"$f":"$D$4*'CC Allocations'!X28","v":0},{"$f":"$D$4*'CC Allocations'!Y28","v":0},{"$f":"$D$4*'CC Allocations'!Z28","v":0},{"$f":"$D$4*'CC Allocations'!AA28","v":0},{"$f":"$D$4*'CC Allocations'!AB28","v":0},{"$f":"$D$4*'CC Allocations'!AC28","v":277.54843403694497},{"$f":"$D$4*'CC Allocations'!AD28","v":0},{"$f":"$D$4*'CC Allocations'!AE28","v":0},{"$f":"$D$4*'CC Allocations'!AF28","v":0},{"$f":"$D$4*'CC Allocations'!AG28","v":0},{"$f":"$D$4*'CC Allocations'!AH28","v":0},{"$f":"$D$4*'CC Allocations'!AI28","v":0},{"$f":"$D$4*'CC Allocations'!AJ28","v":0},{"$f":"$D$4*'CC Allocations'!AK28","v":0},{"$f":"$D$4*'CC Allocations'!AL28","v":0},{"$f":"$D$4*'CC Allocations'!AM28","v":0},{"$f":"$D$4*'CC Allocations'!AN28","v":0},{"$f":"$D$4*'CC Allocations'!AO28","v":0},{"$f":"$D$4*'CC Allocations'!AP28","v":0},{"$f":"$D$4*'CC Allocations'!AQ28","v":0}]
[null,"090 - Office of State Treasurer","090","Office of State Treasurer",6297.036382008062,1618.8694820234734,60,1.0636461774135831E-3,4.2964748599637163E-4,3.0736970433538685E-3,{"$f":"$D$4*'CC Allocations'!J29","v":0},{"$f":"$D$4*'CC Allocations'!K29","v":0},{"$f":"$D$4*'CC Allocations'!L29","v":4678.1668999845888},{"$f":"$D$4*'CC Allocations'!M29","v":0},{"$f":"$D$4*'CC Allocations'!N29","v":0},{"$f":"$D$4*'CC Allocations'!O29","v":0},{"$f":"$D$4*'CC Allocations'!P29","v":0},{"$f":"$D$4*'CC Allocations'!Q29","v":0},{"$f":"$D$4*'CC Allocations'!R29","v":0},{"$f":"$D$4*'CC Allocations'!S29","v":0},{"$f":"$D$4*'CC Allocations'!T29","v":0},{"$f":"$D$4*'CC Allocations'!U29","v":0},{"$f":"$D$4*'CC Allocations'!V29","v":0},{"$f":"$D$4*'CC Allocations'!W29","v":0},{"$f":"$D$4*'CC Allocations'!X29","v":0},{"$f":"$D$4*'CC Allocations'!Y29","v":0},{"$f":"$D$4*'CC Allocations'!Z29","v":0},{"$f":"$D$4*'CC Allocations'!AA29","v":0},{"$f":"$D$4*'CC Allocations'!AB29","v":0},{"$f":"$D$4*'CC Allocations'!AC29","v":0},{"$f":"$D$4*'CC Allocations'!AD29","v":0},{"$f":"$D$4*'CC Allocations'!AE29","v":0},{"$f":"$D$4*'CC Allocations'!AF29","v":0},{"$f":"$D$4*'CC Allocations'!AG29","v":0},{"$f":"$D$4*'CC Allocations'!AH29","v":0},{"$f":"$D$4*'CC Allocations'!AI29","v":0},{"$f":"$D$4*'CC Allocations'!AJ29","v":0},{"$f":"$D$4*'CC Allocations'!AK29","v":0},{"$f":"$D$4*'CC Allocations'!AL29","v":0},{"$f":"$D$4*'CC Allocations'!AM29","v":0},{"$f":"$D$4*'CC Allocations'!AN29","v":0},{"$f":"$D$4*'CC Allocations'!AO29","v":0},{"$f":"$D$4*'CC Allocations'!AP29","v":0},{"$f":"$D$4*'CC Allocations'!AQ29","v":0}]
[null,"095 - Office of State Auditor","095","Office of State Auditor",7867.2277814456993,4424.9099175308274,164,2.9072995515971273E-3,2.5710682969750211E-4,2.2617068751083257E-3,{"$f":"$D$4*'CC Allocations'!J30","v":0},{"$f":"$D$4*'CC Allocations'!K30","v":0},{"$f":"$D$4*'CC Allocations'!L30","v":0},{"$f":"$D$4*'CC Allocations'!M30","v":0},{"$f":"$D$4*'CC Allocations'!N30","v":0},{"$f":"$D$4*'CC Allocations'!O30","v":0},{"$f":"$D$4*'CC Allocations'!P30","v":0},{"$f":"$D$4*'CC Allocations'!Q30","v":0},{"$f":"$D$4*'CC Allocations'!R30","v":0},{"$f":"$D$4*'CC Allocations'!S30","v":0},{"$f":"$D$4*'CC Allocations'!T30","v":2318.2574337333385},{"$f":"$D$4*'CC Allocations'!U30","v":0},{"$f":"$D$4*'CC Allocations'!V30","v":0},{"$f":"$D$4*'CC Allocations'!W30","v":0},{"$f":"$D$4*'CC Allocations'!X30","v":0},{"$f":"$D$4*'CC Allocations'!Y30","v":0},{"$f":"$D$4*'CC Allocations'!Z30","v":0},{"$f":"$D$4*'CC Allocations'!AA30","v":0},{"$f":"$D$4*'CC Allocations'!AB30","v":0},{"$f":"$D$4*'CC Allocations'!AC30","v":0},{"$f":"$D$4*'CC Allocations'!AD30","v":0},{"$f":"$D$4*'CC Allocations'!AE30","v":0},{"$f":"$D$4*'CC Allocations'!AF30","v":0},{"$f":"$D$4*'CC Allocations'!AG30","v":0},{"$f":"$D$4*'CC Allocations'!AH30","v":0},{"$f":"$D$4*'CC Allocations'!AI30","v":0},{"$f":"$D$4*'CC Allocations'!AJ30","v":0},{"$f":"$D$4*'CC Allocations'!AK30","v":0},{"$f":"$D$4*'CC Allocations'!AL30","v":0},{"$f":"$D$4*'CC Allocations'!AM30","v":0},{"$f":"$D$4*'CC Allocations'!AN30","v":0},{"$f":"$D$4*'CC Allocations'!AO30","v":1124.0604301815335},{"$f":"$D$4*'CC Allocations'!AP30","v":0},{"$f":"$D$4*'CC Allocations'!AQ30","v":0}]
[null,"099 - Citizens' Commission on Salaries for Elected Officials","099","Citizens' Commission on Salaries for Elected Officials",295.13496549005583,80.943474101173678,3,5.3182308870679155E-5,0,1.407302834355336E-4,{"$f":"$D$4*'CC Allocations'!J31","v":0},{"$f":"$D$4*'CC Allocations'!K31","v":0},{"$f":"$D$4*'CC Allocations'!L31","v":0},{"$f":"$D$4*'CC Allocations'!M31","v":0},{"$f":"$D$4*'CC Allocations'!N31","v":0},{"$f":"$D$4*'CC Allocations'!O31","v":0},{"$f":"$D$4*'CC Allocations'!P31","v":0},{"$f":"$D$4*'CC Allocations'!Q31","v":0},{"$f":"$D$4*'CC Allocations'!R31","v":0},{"$f":"$D$4*'CC Allocations'!S31","v":0},{"$f":"$D$4*'CC Allocations'!T31","v":0},{"$f":"$D$4*'CC Allocations'!U31","v":0},{"$f":"$D$4*'CC Allocations'!V31","v":0},{"$f":"$D$4*'CC Allocations'!W31","v":0},{"$f":"$D$4*'CC Allocations'!X31","v":0},{"$f":"$D$4*'CC Allocations'!Y31","v":0},{"$f":"$D$4*'CC Allocations'!Z31","v":0},{"$f":"$D$4*'CC Allocations'!AA31","v":0},{"$f":"$D$4*'CC Allocations'!AB31","v":0},{"$f":"$D$4*'CC Allocations'!AC31","v":214.19149138888218},{"$f":"$D$4*'CC Allocations'!AD31","v":0},{"$f":"$D$4*'CC Allocations'!AE31","v":0},{"$f":"$D$4*'CC Allocations'!AF31","v":0},{"$f":"$D$4*'CC Allocations'!AG31","v":0},{"$f":"$D$4*'CC Allocations'!AH31","v":0},{"$f":"$D$4*'CC Allocations'!AI31","v":0},{"$f":"$D$4*'CC Allocations'!AJ31","v":0},{"$f":"$D$4*'CC Allocations'!AK31","v":0},{"$f":"$D$4*'CC Allocations'!AL31","v":0},{"$f":"$D$4*'CC Allocations'!AM31","v":0},{"$f":"$D$4*'CC Allocations'!AN31","v":0},{"$f":"$D$4*'CC Allocations'!AO31","v":0},{"$f":"$D$4*'CC Allocations'!AP31","v":0},{"$f":"$D$4*'CC Allocations'!AQ31","v":0}]
[null,"100 - Office of Attorney General","100","Office of Attorney General",47883.308316792834,18482.093253101324,685,1.2143293858805075E-2,2.9126611045534709E-3,1.9317486901242777E-2,{"$f":"$D$4*'CC Allocations'!J32","v":0},{"$f":"$D$4*'CC Allocations'!K32","v":0},{"$f":"$D$4*'CC Allocations'!L32","v":0},{"$f":"$D$4*'CC Allocations'!M32","v":0},{"$f":"$D$4*'CC Allocations'!N32","v":29401.21506369151},{"$f":"$D$4*'CC Allocations'!O32","v":0},{"$f":"$D$4*'CC Allocations'!P32","v":0},{"$f":"$D$4*'CC Allocations'!Q32","v":0},{"$f":"$D$4*'CC Allocations'!R32","v":0},{"$f":"$D$4*'CC Allocations'!S32","v":0},{"$f":"$D$4*'CC Allocations'!T32","v":0},{"$f":"$D$4*'CC Allocations'!U32","v":0},{"$f":"$D$4*'CC Allocations'!V32","v":0},{"$f":"$D$4*'CC Allocations'!W32","v":0},{"$f":"$D$4*'CC Allocations'!X32","v":0},{"$f":"$D$4*'CC Allocations'!Y32","v":0},{"$f":"$D$4*'CC Allocations'!Z32","v":0},{"$f":"$D$4*'CC Allocations'!AA32","v":0},{"$f":"$D$4*'CC Allocations'!AB32","v":0},{"$f":"$D$4*'CC Allocations'!AC32","v":0},{"$f":"$D$4*'CC Allocations'!AD32","v":0},{"$f":"$D$4*'CC Allocations'!AE32","v":0},{"$f":"$D$4*'CC Allocations'!AF32","v":0},{"$f":"$D$4*'CC Allocations'!AG32","v":0},{"$f":"$D$4*'CC Allocations'!AH32","v":0},{"$f":"$D$4*'CC Allocations'!AI32","v":0},{"$f":"$D$4*'CC Allocations'!AJ32","v":0},{"$f":"$D$4*'CC Allocations'!AK32","v":0},{"$f":"$D$4*'CC Allocations'!AL32","v":0},{"$f":"$D$4*'CC Allocations'!AM32","v":0},{"$f":"$D$4*'CC Allocations'!AN32","v":0},{"$f":"$D$4*'CC Allocations'!AO32","v":0},{"$f":"$D$4*'CC Allocations'!AP32","v":0},{"$f":"$D$4*'CC Allocations'!AQ32","v":0}]
[null,"101 - Caseload Forecast Council","101","Caseload Forecast Council",1928.6700076403304,269.81158033724563,10,1.7727436290226387E-4,0,1.0899201230637873E-3,{"$f":"$D$4*'CC Allocations'!J33","v":0},{"$f":"$D$4*'CC Allocations'!K33","v":0},{"$f":"$D$4*'CC Allocations'!L33","v":0},{"$f":"$D$4*'CC Allocations'!M33","v":0},{"$f":"$D$4*'CC Allocations'!N33","v":0},{"$f":"$D$4*'CC Allocations'!O33","v":0},{"$f":"$D$4*'CC Allocations'!P33","v":0},{"$f":"$D$4*'CC Allocations'!Q33","v":0},{"$f":"$D$4*'CC Allocations'!R33","v":0},{"$f":"$D$4*'CC Allocations'!S33","v":0},{"$f":"$D$4*'CC Allocations'!T33","v":0},{"$f":"$D$4*'CC Allocations'!U33","v":0},{"$f":"$D$4*'CC Allocations'!V33","v":0},{"$f":"$D$4*'CC Allocations'!W33","v":0},{"$f":"$D$4*'CC Allocations'!X33","v":0},{"$f":"$D$4*'CC Allocations'!Y33","v":0},{"$f":"$D$4*'CC Allocations'!Z33","v":0},{"$f":"$D$4*'CC Allocations'!AA33","v":0},{"$f":"$D$4*'CC Allocations'!AB33","v":0},{"$f":"$D$4*'CC Allocations'!AC33","v":1658.8584273030847},{"$f":"$D$4*'CC Allocations'!AD33","v":0},{"$f":"$D$4*'CC Allocations'!AE33","v":0},{"$f":"$D$4*'CC Allocations'!AF33","v":0},{"$f":"$D$4*'CC Allocations'!AG33","v":0},{"$f":"$D$4*'CC Allocations'!AH33","v":0},{"$f":"$D$4*'CC Allocations'!AI33","v":0},{"$f":"$D$4*'CC Allocations'!AJ33","v":0},{"$f":"$D$4*'CC Allocations'!AK33","v":0},{"$f":"$D$4*'CC Allocations'!AL33","v":0},{"$f":"$D$4*'CC Allocations'!AM33","v":0},{"$f":"$D$4*'CC Allocations'!AN33","v":0},{"$f":"$D$4*'CC Allocations'!AO33","v":0},{"$f":"$D$4*'CC Allocations'!AP33","v":0},{"$f":"$D$4*'CC Allocations'!AQ33","v":0}]
[null,"102 - Department of Financial Institutions","102","Department of Financial Institutions",4343.9664434296537,4343.9664434296537,161,2.8541172427264481E-3,0,0,{"$f":"$D$4*'CC Allocations'!J34","v":0},{"$f":"$D$4*'CC Allocations'!K34","v":0},{"$f":"$D$4*'CC Allocations'!L34","v":0},{"$f":"$D$4*'CC Allocations'!M34","v":0},{"$f":"$D$4*'CC Allocations'!N34","v":0},{"$f":"$D$4*'CC Allocations'!O34","v":0},{"$f":"$D$4*'CC Allocations'!P34","v":0},{"$f":"$D$4*'CC Allocations'!Q34","v":0},{"$f":"$D$4*'CC Allocations'!R34","v":0},{"$f":"$D$4*'CC Allocations'!S34","v":0},{"$f":"$D$4*'CC Allocations'!T34","v":0},{"$f":"$D$4*'CC Allocations'!U34","v":0},{"$f":"$D$4*'CC Allocations'!V34","v":0},{"$f":"$D$4*'CC Allocations'!W34","v":0},{"$f":"$D$4*'CC Allocations'!X34","v":0},{"$f":"$D$4*'CC Allocations'!Y34","v":0},{"$f":"$D$4*'CC Allocations'!Z34","v":0},{"$f":"$D$4*'CC Allocations'!AA34","v":0},{"$f":"$D$4*'CC Allocations'!AB34","v":0},{"$f":"$D$4*'CC Allocations'!AC34","v":0},{"$f":"$D$4*'CC Allocations'!AD34","v":0},{"$f":"$D$4*'CC Allocations'!AE34","v":0},{"$f":"$D$4*'CC Allocations'!AF34","v":0},{"$f":"$D$4*'CC Allocations'!AG34","v":0},{"$f":"$D$4*'CC Allocations'!AH34","v":0},{"$f":"$D$4*'CC Allocations'!AI34","v":0},{"$f":"$D$4*'CC Allocations'!AJ34","v":0},{"$f":"$D$4*'CC Allocations'!AK34","v":0},{"$f":"$D$4*'CC Allocations'!AL34","v":0},{"$f":"$D$4*'CC Allocations'!AM34","v":0},{"$f":"$D$4*'CC Allocations'!AN34","v":0},{"$f":"$D$4*'CC Allocations'!AO34","v":0},{"$f":"$D$4*'CC Allocations'!AP34","v":0},{"$f":"$D$4*'CC Allocations'!AQ34","v":0}]
[null,"103 - Department of Commerce","103","Department of Commerce",8283.2155163534389,8283.2155163534389,307,5.4423229410994999E-3,0,0,{"$f":"$D$4*'CC Allocations'!J35","v":0},{"$f":"$D$4*'CC Allocations'!K35","v":0},{"$f":"$D$4*'CC Allocations'!L35","v":0},{"$f":"$D$4*'CC Allocations'!M35","v":0},{"$f":"$D$4*'CC Allocations'!N35","v":0},{"$f":"$D$4*'CC Allocations'!O35","v":0},{"$f":"$D$4*'CC Allocations'!P35","v":0},{"$f":"$D$4*'CC Allocations'!Q35","v":0},{"$f":"$D$4*'CC Allocations'!R35","v":0},{"$f":"$D$4*'CC Allocations'!S35","v":0},{"$f":"$D$4*'CC Allocations'!T35","v":0},{"$f":"$D$4*'CC Allocations'!U35","v":0},{"$f":"$D$4*'CC Allocations'!V35","v":0},{"$f":"$D$4*'CC Allocations'!W35","v":0},{"$f":"$D$4*'CC Allocations'!X35","v":0},{"$f":"$D$4*'CC Allocations'!Y35","v":0},{"$f":"$D$4*'CC Allocations'!Z35","v":0},{"$f":"$D$4*'CC Allocations'!AA35","v":0},{"$f":"$D$4*'CC Allocations'!AB35","v":0},{"$f":"$D$4*'CC Allocations'!AC35","v":0},{"$f":"$D$4*'CC Allocations'!AD35","v":0},{"$f":"$D$4*'CC Allocations'!AE35","v":0},{"$f":"$D$4*'CC Allocations'!AF35","v":0},{"$f":"$D$4*'CC Allocations'!AG35","v":0},{"$f":"$D$4*'CC Allocations'!AH35","v":0},{"$f":"$D$4*'CC Allocations'!AI35","v":0},{"$f":"$D$4*'CC Allocations'!AJ35","v":0},{"$f":"$D$4*'CC Allocations'!AK35","v":0},{"$f":"$D$4*'CC Allocations'!AL35","v":0},{"$f":"$D$4*'CC Allocations'!AM35","v":0},{"$f":"$D$4*'CC Allocations'!AN35","v":0},{"$f":"$D$4*'CC Allocations'!AO35","v":0},{"$f":"$D$4*'CC Allocations'!AP35","v":0},{"$f":"$D$4*'CC Allocations'!AQ35","v":0}]
[null,"104 - Economic and Revenue Forecast Council","104","Economic and Revenue Forecast Council",134.90579016862281,134.90579016862281,5,8.8637181451131937E-5,0,0,{"$f":"$D$4*'CC Allocations'!J36","v":0},{"$f":"$D$4*'CC Allocations'!K36","v":0},{"$f":"$D$4*'CC Allocations'!L36","v":0},{"$f":"$D$4*'CC Allocations'!M36","v":0},{"$f":"$D$4*'CC Allocations'!N36","v":0},{"$f":"$D$4*'CC Allocations'!O36","v":0},{"$f":"$D$4*'CC Allocations'!P36","v":0},{"$f":"$D$4*'CC Allocations'!Q36","v":0},{"$f":"$D$4*'CC Allocations'!R36","v":0},{"$f":"$D$4*'CC Allocations'!S36","v":0},{"$f":"$D$4*'CC Allocations'!T36","v":0},{"$f":"$D$4*'CC Allocations'!U36","v":0},{"$f":"$D$4*'CC Allocations'!V36","v":0},{"$f":"$D$4*'CC Allocations'!W36","v":0},{"$f":"$D$4*'CC Allocations'!X36","v":0},{"$f":"$D$4*'CC Allocations'!Y36","v":0},{"$f":"$D$4*'CC Allocations'!Z36","v":0},{"$f":"$D$4*'CC Allocations'!AA36","v":0},{"$f":"$D$4*'CC Allocations'!AB36","v":0},{"$f":"$D$4*'CC Allocations'!AC36","v":0},{"$f":"$D$4*'CC Allocations'!AD36","v":0},{"$f":"$D$4*'CC Allocations'!AE36","v":0},{"$f":"$D$4*'CC Allocations'!AF36","v":0},{"$f":"$D$4*'CC Allocations'!AG36","v":0},{"$f":"$D$4*'CC Allocations'!AH36","v":0},{"$f":"$D$4*'CC Allocations'!AI36","v":0},{"$f":"$D$4*'CC Allocations'!AJ36","v":0},{"$f":"$D$4*'CC Allocations'!AK36","v":0},{"$f":"$D$4*'CC Allocations'!AL36","v":0},{"$f":"$D$4*'CC Allocations'!AM36","v":0},{"$f":"$D$4*'CC Allocations'!AN36","v":0},{"$f":"$D$4*'CC Allocations'!AO36","v":0},{"$f":"$D$4*'CC Allocations'!AP36","v":0},{"$f":"$D$4*'CC Allocations'!AQ36","v":0}]
[null,"105 - Office of Financial Management","105","Office of Financial Management",27040.766591966672,11736.803744670182,435,7.7114347862484774E-3,1.6723572280401935E-3,1.0055166128315696E-2,{"$f":"$D$4*'CC Allocations'!J37","v":0},{"$f":"$D$4*'CC Allocations'!K37","v":0},{"$f":"$D$4*'CC Allocations'!L37","v":0},{"$f":"$D$4*'CC Allocations'!M37","v":0},{"$f":"$D$4*'CC Allocations'!N37","v":0},{"$f":"$D$4*'CC Allocations'!O37","v":0},{"$f":"$D$4*'CC Allocations'!P37","v":0},{"$f":"$D$4*'CC Allocations'!Q37","v":0},{"$f":"$D$4*'CC Allocations'!R37","v":0},{"$f":"$D$4*'CC Allocations'!S37","v":0},{"$f":"$D$4*'CC Allocations'!T37","v":15079.158263991943},{"$f":"$D$4*'CC Allocations'!U37","v":0},{"$f":"$D$4*'CC Allocations'!V37","v":0},{"$f":"$D$4*'CC Allocations'!W37","v":0},{"$f":"$D$4*'CC Allocations'!X37","v":0},{"$f":"$D$4*'CC Allocations'!Y37","v":0},{"$f":"$D$4*'CC Allocations'!Z37","v":0},{"$f":"$D$4*'CC Allocations'!AA37","v":0},{"$f":"$D$4*'CC Allocations'!AB37","v":0},{"$f":"$D$4*'CC Allocations'!AC37","v":224.80458330454752},{"$f":"$D$4*'CC Allocations'!AD37","v":0},{"$f":"$D$4*'CC Allocations'!AE37","v":0},{"$f":"$D$4*'CC Allocations'!AF37","v":0},{"$f":"$D$4*'CC Allocations'!AG37","v":0},{"$f":"$D$4*'CC Allocations'!AH37","v":0},{"$f":"$D$4*'CC Allocations'!AI37","v":0},{"$f":"$D$4*'CC Allocations'!AJ37","v":0},{"$f":"$D$4*'CC Allocations'!AK37","v":0},{"$f":"$D$4*'CC Allocations'!AL37","v":0},{"$f":"$D$4*'CC Allocations'!AM37","v":0},{"$f":"$D$4*'CC Allocations'!AN37","v":0},{"$f":"$D$4*'CC Allocations'!AO37","v":0},{"$f":"$D$4*'CC Allocations'!AP37","v":0},{"$f":"$D$4*'CC Allocations'!AQ37","v":0}]
[null,"107 - Washington State Health Care Authority","107","Washington State Health Care Authority",36208.714081258353,36208.714081258353,1342,2.3790219501483807E-2,0,0,{"$f":"$D$4*'CC Allocations'!J38","v":0},{"$f":"$D$4*'CC Allocations'!K38","v":0},{"$f":"$D$4*'CC Allocations'!L38","v":0},{"$f":"$D$4*'CC Allocations'!M38","v":0},{"$f":"$D$4*'CC Allocations'!N38","v":0},{"$f":"$D$4*'CC Allocations'!O38","v":0},{"$f":"$D$4*'CC Allocations'!P38","v":0},{"$f":"$D$4*'CC Allocations'!Q38","v":0},{"$f":"$D$4*'CC Allocations'!R38","v":0},{"$f":"$D$4*'CC Allocations'!S38","v":0},{"$f":"$D$4*'CC Allocations'!T38","v":0},{"$f":"$D$4*'CC Allocations'!U38","v":0},{"$f":"$D$4*'CC Allocations'!V38","v":0},{"$f":"$D$4*'CC Allocations'!W38","v":0},{"$f":"$D$4*'CC Allocations'!X38","v":0},{"$f":"$D$4*'CC Allocations'!Y38","v":0},{"$f":"$D$4*'CC Allocations'!Z38","v":0},{"$f":"$D$4*'CC Allocations'!AA38","v":0},{"$f":"$D$4*'CC Allocations'!AB38","v":0},{"$f":"$D$4*'CC Allocations'!AC38","v":0},{"$f":"$D$4*'CC Allocations'!AD38","v":0},{"$f":"$D$4*'CC Allocations'!AE38","v":0},{"$f":"$D$4*'CC Allocations'!AF38","v":0},{"$f":"$D$4*'CC Allocations'!AG38","v":0},{"$f":"$D$4*'CC Allocations'!AH38","v":0},{"$f":"$D$4*'CC Allocations'!AI38","v":0},{"$f":"$D$4*'CC Allocations'!AJ38","v":0},{"$f":"$D$4*'CC Allocations'!AK38","v":0},{"$f":"$D$4*'CC Allocations'!AL38","v":0},{"$f":"$D$4*'CC Allocations'!AM38","v":0},{"$f":"$D$4*'CC Allocations'!AN38","v":0},{"$f":"$D$4*'CC Allocations'!AO38","v":0},{"$f":"$D$4*'CC Allocations'!AP38","v":0},{"$f":"$D$4*'CC Allocations'!AQ38","v":0}]
[null,"110 - Office of Administrative Hearings","110","Office of Administrative Hearings",4642.001161596997,1780.7564302258208,66,1.1700107951549414E-3,0,1.8799242650270537E-3,{"$f":"$D$4*'CC Allocations'!J39","v":0},{"$f":"$D$4*'CC Allocations'!K39","v":0},{"$f":"$D$4*'CC Allocations'!L39","v":0},{"$f":"$D$4*'CC Allocations'!M39","v":0},{"$f":"$D$4*'CC Allocations'!N39","v":0},{"$f":"$D$4*'CC Allocations'!O39","v":0},{"$f":"$D$4*'CC Allocations'!P39","v":0},{"$f":"$D$4*'CC Allocations'!Q39","v":0},{"$f":"$D$4*'CC Allocations'!R39","v":0},{"$f":"$D$4*'CC Allocations'!S39","v":0},{"$f":"$D$4*'CC Allocations'!T39","v":0},{"$f":"$D$4*'CC Allocations'!U39","v":0},{"$f":"$D$4*'CC Allocations'!V39","v":0},{"$f":"$D$4*'CC Allocations'!W39","v":0},{"$f":"$D$4*'CC Allocations'!X39","v":0},{"$f":"$D$4*'CC Allocations'!Y39","v":0},{"$f":"$D$4*'CC Allocations'!Z39","v":0},{"$f":"$D$4*'CC Allocations'!AA39","v":0},{"$f":"$D$4*'CC Allocations'!AB39","v":0},{"$f":"$D$4*'CC Allocations'!AC39","v":0},{"$f":"$D$4*'CC Allocations'!AD39","v":0},{"$f":"$D$4*'CC Allocations'!AE39","v":0},{"$f":"$D$4*'CC Allocations'!AF39","v":0},{"$f":"$D$4*'CC Allocations'!AG39","v":0},{"$f":"$D$4*'CC Allocations'!AH39","v":0},{"$f":"$D$4*'CC Allocations'!AI39","v":0},{"$f":"$D$4*'CC Allocations'!AJ39","v":0},{"$f":"$D$4*'CC Allocations'!AK39","v":0},{"$f":"$D$4*'CC Allocations'!AL39","v":0},{"$f":"$D$4*'CC Allocations'!AM39","v":0},{"$f":"$D$4*'CC Allocations'!AN39","v":0},{"$f":"$D$4*'CC Allocations'!AO39","v":2861.2447313711759},{"$f":"$D$4*'CC Allocations'!AP39","v":0},{"$f":"$D$4*'CC Allocations'!AQ39","v":0}]
[null,"116 - State Lottery","116","State Lottery",1888.6810623607191,1888.6810623607191,70,1.2409205403158469E-3,0,0,{"$f":"$D$4*'CC Allocations'!J40","v":0},{"$f":"$D$4*'CC Allocations'!K40","v":0},{"$f":"$D$4*'CC Allocations'!L40","v":0},{"$f":"$D$4*'CC Allocations'!M40","v":0},{"$f":"$D$4*'CC Allocations'!N40","v":0},{"$f":"$D$4*'CC Allocations'!O40","v":0},{"$f":"$D$4*'CC Allocations'!P40","v":0},{"$f":"$D$4*'CC Allocations'!Q40","v":0},{"$f":"$D$4*'CC Allocations'!R40","v":0},{"$f":"$D$4*'CC Allocations'!S40","v":0},{"$f":"$D$4*'CC Allocations'!T40","v":0},{"$f":"$D$4*'CC Allocations'!U40","v":0},{"$f":"$D$4*'CC Allocations'!V40","v":0},{"$f":"$D$4*'CC Allocations'!W40","v":0},{"$f":"$D$4*'CC Allocations'!X40","v":0},{"$f":"$D$4*'CC Allocations'!Y40","v":0},{"$f":"$D$4*'CC Allocations'!Z40","v":0},{"$f":"$D$4*'CC Allocations'!AA40","v":0},{"$f":"$D$4*'CC Allocations'!AB40","v":0},{"$f":"$D$4*'CC Allocations'!AC40","v":0},{"$f":"$D$4*'CC Allocations'!AD40","v":0},{"$f":"$D$4*'CC Allocations'!AE40","v":0},{"$f":"$D$4*'CC Allocations'!AF40","v":0},{"$f":"$D$4*'CC Allocations'!AG40","v":0},{"$f":"$D$4*'CC Allocations'!AH40","v":0},{"$f":"$D$4*'CC Allocations'!AI40","v":0},{"$f":"$D$4*'CC Allocations'!AJ40","v":0},{"$f":"$D$4*'CC Allocations'!AK40","v":0},{"$f":"$D$4*'CC Allocations'!AL40","v":0},{"$f":"$D$4*'CC Allocations'!AM40","v":0},{"$f":"$D$4*'CC Allocations'!AN40","v":0},{"$f":"$D$4*'CC Allocations'!AO40","v":0},{"$f":"$D$4*'CC Allocations'!AP40","v":0},{"$f":"$D$4*'CC Allocations'!AQ40","v":0}]
[null,"117 - Washington State Gambling Commission","117","Washington State Gambling Commission",1537.9260079222997,1537.9260079222997,57,1.0104638685429039E-3,0,0,{"$f":"$D$4*'CC Allocations'!J41","v":0},{"$f":"$D$4*'CC Allocations'!K41","v":0},{"$f":"$D$4*'CC Allocations'!L41","v":0},{"$f":"$D$4*'CC Allocations'!M41","v":0},{"$f":"$D$4*'CC Allocations'!N41","v":0},{"$f":"$D$4*'CC Allocations'!O41","v":0},{"$f":"$D$4*'CC Allocations'!P41","v":0},{"$f":"$D$4*'CC Allocations'!Q41","v":0},{"$f":"$D$4*'CC Allocations'!R41","v":0},{"$f":"$D$4*'CC Allocations'!S41","v":0},{"$f":"$D$4*'CC Allocations'!T41","v":0},{"$f":"$D$4*'CC Allocations'!U41","v":0},{"$f":"$D$4*'CC Allocations'!V41","v":0},{"$f":"$D$4*'CC Allocations'!W41","v":0},{"$f":"$D$4*'CC Allocations'!X41","v":0},{"$f":"$D$4*'CC Allocations'!Y41","v":0},{"$f":"$D$4*'CC Allocations'!Z41","v":0},{"$f":"$D$4*'CC Allocations'!AA41","v":0},{"$f":"$D$4*'CC Allocations'!AB41","v":0},{"$f":"$D$4*'CC Allocations'!AC41","v":0},{"$f":"$D$4*'CC Allocations'!AD41","v":0},{"$f":"$D$4*'CC Allocations'!AE41","v":0},{"$f":"$D$4*'CC Allocations'!AF41","v":0},{"$f":"$D$4*'CC Allocations'!AG41","v":0},{"$f":"$D$4*'CC Allocations'!AH41","v":0},{"$f":"$D$4*'CC Allocations'!AI41","v":0},{"$f":"$D$4*'CC Allocations'!AJ41","v":0},{"$f":"$D$4*'CC Allocations'!AK41","v":0},{"$f":"$D$4*'CC Allocations'!AL41","v":0},{"$f":"$D$4*'CC Allocations'!AM41","v":0},{"$f":"$D$4*'CC Allocations'!AN41","v":0},{"$f":"$D$4*'CC Allocations'!AO41","v":0},{"$f":"$D$4*'CC Allocations'!AP41","v":0},{"$f":"$D$4*'CC Allocations'!AQ41","v":0}]
[null,"118 - Commission on Hispanic Affairs","118","Commission on Hispanic Affairs",358.49190813811867,80.943474101173678,3,5.3182308870679155E-5,0,1.8235770961691519E-4,{"$f":"$D$4*'CC Allocations'!J42","v":0},{"$f":"$D$4*'CC Allocations'!K42","v":0},{"$f":"$D$4*'CC Allocations'!L42","v":0},{"$f":"$D$4*'CC Allocations'!M42","v":0},{"$f":"$D$4*'CC Allocations'!N42","v":0},{"$f":"$D$4*'CC Allocations'!O42","v":0},{"$f":"$D$4*'CC Allocations'!P42","v":0},{"$f":"$D$4*'CC Allocations'!Q42","v":0},{"$f":"$D$4*'CC Allocations'!R42","v":0},{"$f":"$D$4*'CC Allocations'!S42","v":0},{"$f":"$D$4*'CC Allocations'!T42","v":0},{"$f":"$D$4*'CC Allocations'!U42","v":0},{"$f":"$D$4*'CC Allocations'!V42","v":0},{"$f":"$D$4*'CC Allocations'!W42","v":0},{"$f":"$D$4*'CC Allocations'!X42","v":0},{"$f":"$D$4*'CC Allocations'!Y42","v":0},{"$f":"$D$4*'CC Allocations'!Z42","v":0},{"$f":"$D$4*'CC Allocations'!AA42","v":0},{"$f":"$D$4*'CC Allocations'!AB42","v":0},{"$f":"$D$4*'CC Allocations'!AC42","v":277.54843403694497},{"$f":"$D$4*'CC Allocations'!AD42","v":0},{"$f":"$D$4*'CC Allocations'!AE42","v":0},{"$f":"$D$4*'CC Allocations'!AF42","v":0},{"$f":"$D$4*'CC Allocations'!AG42","v":0},{"$f":"$D$4*'CC Allocations'!AH42","v":0},{"$f":"$D$4*'CC Allocations'!AI42","v":0},{"$f":"$D$4*'CC Allocations'!AJ42","v":0},{"$f":"$D$4*'CC Allocations'!AK42","v":0},{"$f":"$D$4*'CC Allocations'!AL42","v":0},{"$f":"$D$4*'CC Allocations'!AM42","v":0},{"$f":"$D$4*'CC Allocations'!AN42","v":0},{"$f":"$D$4*'CC Allocations'!AO42","v":0},{"$f":"$D$4*'CC Allocations'!AP42","v":0},{"$f":"$D$4*'CC Allocations'!AQ42","v":0}]
[null,"119 - Commission on African-American Affairs","119","Commission on African-American Affairs",331.51075010439411,53.962316067449116,2,3.5454872580452768E-5,0,1.8235770961691519E-4,{"$f":"$D$4*'CC Allocations'!J43","v":0},{"$f":"$D$4*'CC Allocations'!K43","v":0},{"$f":"$D$4*'CC Allocations'!L43","v":0},{"$f":"$D$4*'CC Allocations'!M43","v":0},{"$f":"$D$4*'CC Allocations'!N43","v":0},{"$f":"$D$4*'CC Allocations'!O43","v":0},{"$f":"$D$4*'CC Allocations'!P43","v":0},{"$f":"$D$4*'CC Allocations'!Q43","v":0},{"$f":"$D$4*'CC Allocations'!R43","v":0},{"$f":"$D$4*'CC Allocations'!S43","v":0},{"$f":"$D$4*'CC Allocations'!T43","v":0},{"$f":"$D$4*'CC Allocations'!U43","v":0},{"$f":"$D$4*'CC Allocations'!V43","v":0},{"$f":"$D$4*'CC Allocations'!W43","v":0},{"$f":"$D$4*'CC Allocations'!X43","v":0},{"$f":"$D$4*'CC Allocations'!Y43","v":0},{"$f":"$D$4*'CC Allocations'!Z43","v":0},{"$f":"$D$4*'CC Allocations'!AA43","v":0},{"$f":"$D$4*'CC Allocations'!AB43","v":0},{"$f":"$D$4*'CC Allocations'!AC43","v":277.54843403694497},{"$f":"$D$4*'CC Allocations'!AD43","v":0},{"$f":"$D$4*'CC Allocations'!AE43","v":0},{"$f":"$D$4*'CC Allocations'!AF43","v":0},{"$f":"$D$4*'CC Allocations'!AG43","v":0},{"$f":"$D$4*'CC Allocations'!AH43","v":0},{"$f":"$D$4*'CC Allocations'!AI43","v":0},{"$f":"$D$4*'CC Allocations'!AJ43","v":0},{"$f":"$D$4*'CC Allocations'!AK43","v":0},{"$f":"$D$4*'CC Allocations'!AL43","v":0},{"$f":"$D$4*'CC Allocations'!AM43","v":0},{"$f":"$D$4*'CC Allocations'!AN43","v":0},{"$f":"$D$4*'CC Allocations'!AO43","v":0},{"$f":"$D$4*'CC Allocations'!AP43","v":0},{"$f":"$D$4*'CC Allocations'!AQ43","v":0}]
[null,"120 - Human Rights Commission","120","Human Rights Commission",350.75505443841922,350.75505443841922,13,2.30456671772943E-4,0,0,{"$f":"$D$4*'CC Allocations'!J44","v":0},{"$f":"$D$4*'CC Allocations'!K44","v":0},{"$f":"$D$4*'CC Allocations'!L44","v":0},{"$f":"$D$4*'CC Allocations'!M44","v":0},{"$f":"$D$4*'CC Allocations'!N44","v":0},{"$f":"$D$4*'CC Allocations'!O44","v":0},{"$f":"$D$4*'CC Allocations'!P44","v":0},{"$f":"$D$4*'CC Allocations'!Q44","v":0},{"$f":"$D$4*'CC Allocations'!R44","v":0},{"$f":"$D$4*'CC Allocations'!S44","v":0},{"$f":"$D$4*'CC Allocations'!T44","v":0},{"$f":"$D$4*'CC Allocations'!U44","v":0},{"$f":"$D$4*'CC Allocations'!V44","v":0},{"$f":"$D$4*'CC Allocations'!W44","v":0},{"$f":"$D$4*'CC Allocations'!X44","v":0},{"$f":"$D$4*'CC Allocations'!Y44","v":0},{"$f":"$D$4*'CC Allocations'!Z44","v":0},{"$f":"$D$4*'CC Allocations'!AA44","v":0},{"$f":"$D$4*'CC Allocations'!AB44","v":0},{"$f":"$D$4*'CC Allocations'!AC44","v":0},{"$f":"$D$4*'CC Allocations'!AD44","v":0},{"$f":"$D$4*'CC Allocations'!AE44","v":0},{"$f":"$D$4*'CC Allocations'!AF44","v":0},{"$f":"$D$4*'CC Allocations'!AG44","v":0},{"$f":"$D$4*'CC Allocations'!AH44","v":0},{"$f":"$D$4*'CC Allocations'!AI44","v":0},{"$f":"$D$4*'CC Allocations'!AJ44","v":0},{"$f":"$D$4*'CC Allocations'!AK44","v":0},{"$f":"$D$4*'CC Allocations'!AL44","v":0},{"$f":"$D$4*'CC Allocations'!AM44","v":0},{"$f":"$D$4*'CC Allocations'!AN44","v":0},{"$f":"$D$4*'CC Allocations'!AO44","v":0},{"$f":"$D$4*'CC Allocations'!AP44","v":0},{"$f":"$D$4*'CC Allocations'!AQ44","v":0}]
[null,"124 - Department of Retirement Systems","124","Department of Retirement Systems",7230.9503530381817,7230.9503530381817,268,4.750952925780671E-3,0,0,{"$f":"$D$4*'CC Allocations'!J45","v":0},{"$f":"$D$4*'CC Allocations'!K45","v":0},{"$f":"$D$4*'CC Allocations'!L45","v":0},{"$f":"$D$4*'CC Allocations'!M45","v":0},{"$f":"$D$4*'CC Allocations'!N45","v":0},{"$f":"$D$4*'CC Allocations'!O45","v":0},{"$f":"$D$4*'CC Allocations'!P45","v":0},{"$f":"$D$4*'CC Allocations'!Q45","v":0},{"$f":"$D$4*'CC Allocations'!R45","v":0},{"$f":"$D$4*'CC Allocations'!S45","v":0},{"$f":"$D$4*'CC Allocations'!T45","v":0},{"$f":"$D$4*'CC Allocations'!U45","v":0},{"$f":"$D$4*'CC Allocations'!V45","v":0},{"$f":"$D$4*'CC Allocations'!W45","v":0},{"$f":"$D$4*'CC Allocations'!X45","v":0},{"$f":"$D$4*'CC Allocations'!Y45","v":0},{"$f":"$D$4*'CC Allocations'!Z45","v":0},{"$f":"$D$4*'CC Allocations'!AA45","v":0},{"$f":"$D$4*'CC Allocations'!AB45","v":0},{"$f":"$D$4*'CC Allocations'!AC45","v":0},{"$f":"$D$4*'CC Allocations'!AD45","v":0},{"$f":"$D$4*'CC Allocations'!AE45","v":0},{"$f":"$D$4*'CC Allocations'!AF45","v":0},{"$f":"$D$4*'CC Allocations'!AG45","v":0},{"$f":"$D$4*'CC Allocations'!AH45","v":0},{"$f":"$D$4*'CC Allocations'!AI45","v":0},{"$f":"$D$4*'CC Allocations'!AJ45","v":0},{"$f":"$D$4*'CC Allocations'!AK45","v":0},{"$f":"$D$4*'CC Allocations'!AL45","v":0},{"$f":"$D$4*'CC Allocations'!AM45","v":0},{"$f":"$D$4*'CC Allocations'!AN45","v":0},{"$f":"$D$4*'CC Allocations'!AO45","v":0},{"$f":"$D$4*'CC Allocations'!AP45","v":0},{"$f":"$D$4*'CC Allocations'!AQ45","v":0}]
[null,"126 - State Investment Board","126","State Investment Board",2401.3230650014857,2401.3230650014857,89,1.5777418298301483E-3,0,0,{"$f":"$D$4*'CC Allocations'!J46","v":0},{"$f":"$D$4*'CC Allocations'!K46","v":0},{"$f":"$D$4*'CC Allocations'!L46","v":0},{"$f":"$D$4*'CC Allocations'!M46","v":0},{"$f":"$D$4*'CC Allocations'!N46","v":0},{"$f":"$D$4*'CC Allocations'!O46","v":0},{"$f":"$D$4*'CC Allocations'!P46","v":0},{"$f":"$D$4*'CC Allocations'!Q46","v":0},{"$f":"$D$4*'CC Allocations'!R46","v":0},{"$f":"$D$4*'CC Allocations'!S46","v":0},{"$f":"$D$4*'CC Allocations'!T46","v":0},{"$f":"$D$4*'CC Allocations'!U46","v":0},{"$f":"$D$4*'CC Allocations'!V46","v":0},{"$f":"$D$4*'CC Allocations'!W46","v":0},{"$f":"$D$4*'CC Allocations'!X46","v":0},{"$f":"$D$4*'CC Allocations'!Y46","v":0},{"$f":"$D$4*'CC Allocations'!Z46","v":0},{"$f":"$D$4*'CC Allocations'!AA46","v":0},{"$f":"$D$4*'CC Allocations'!AB46","v":0},{"$f":"$D$4*'CC Allocations'!AC46","v":0},{"$f":"$D$4*'CC Allocations'!AD46","v":0},{"$f":"$D$4*'CC Allocations'!AE46","v":0},{"$f":"$D$4*'CC Allocations'!AF46","v":0},{"$f":"$D$4*'CC Allocations'!AG46","v":0},{"$f":"$D$4*'CC Allocations'!AH46","v":0},{"$f":"$D$4*'CC Allocations'!AI46","v":0},{"$f":"$D$4*'CC Allocations'!AJ46","v":0},{"$f":"$D$4*'CC Allocations'!AK46","v":0},{"$f":"$D$4*'CC Allocations'!AL46","v":0},{"$f":"$D$4*'CC Allocations'!AM46","v":0},{"$f":"$D$4*'CC Allocations'!AN46","v":0},{"$f":"$D$4*'CC Allocations'!AO46","v":0},{"$f":"$D$4*'CC Allocations'!AP46","v":0},{"$f":"$D$4*'CC Allocations'!AQ46","v":0}]
[null,"140 - Department of Revenue","140","Department of Revenue",19993.038102989896,19993.038102989896,741,1.3136030291057751E-2,0,0,{"$f":"$D$4*'CC Allocations'!J47","v":0},{"$f":"$D$4*'CC Allocations'!K47","v":0},{"$f":"$D$4*'CC Allocations'!L47","v":0},{"$f":"$D$4*'CC Allocations'!M47","v":0},{"$f":"$D$4*'CC Allocations'!N47","v":0},{"$f":"$D$4*'CC Allocations'!O47","v":0},{"$f":"$D$4*'CC Allocations'!P47","v":0},{"$f":"$D$4*'CC Allocations'!Q47","v":0},{"$f":"$D$4*'CC Allocations'!R47","v":0},{"$f":"$D$4*'CC Allocations'!S47","v":0},{"$f":"$D$4*'CC Allocations'!T47","v":0},{"$f":"$D$4*'CC Allocations'!U47","v":0},{"$f":"$D$4*'CC Allocations'!V47","v":0},{"$f":"$D$4*'CC Allocations'!W47","v":0},{"$f":"$D$4*'CC Allocations'!X47","v":0},{"$f":"$D$4*'CC Allocations'!Y47","v":0},{"$f":"$D$4*'CC Allocations'!Z47","v":0},{"$f":"$D$4*'CC Allocations'!AA47","v":0},{"$f":"$D$4*'CC Allocations'!AB47","v":0},{"$f":"$D$4*'CC Allocations'!AC47","v":0},{"$f":"$D$4*'CC Allocations'!AD47","v":0},{"$f":"$D$4*'CC Allocations'!AE47","v":0},{"$f":"$D$4*'CC Allocations'!AF47","v":0},{"$f":"$D$4*'CC Allocations'!AG47","v":0},{"$f":"$D$4*'CC Allocations'!AH47","v":0},{"$f":"$D$4*'CC Allocations'!AI47","v":0},{"$f":"$D$4*'CC Allocations'!AJ47","v":0},{"$f":"$D$4*'CC Allocations'!AK47","v":0},{"$f":"$D$4*'CC Allocations'!AL47","v":0},{"$f":"$D$4*'CC Allocations'!AM47","v":0},{"$f":"$D$4*'CC Allocations'!AN47","v":0},{"$f":"$D$4*'CC Allocations'!AO47","v":0},{"$f":"$D$4*'CC Allocations'!AP47","v":0},{"$f":"$D$4*'CC Allocations'!AQ47","v":0}]
[null,"142 - Board of Tax Appeals","142","Board of Tax Appeals",1906.6306809954776,404.71737050586836,15,2.6591154435339577E-4,0,9.8680243790381667E-4,{"$f":"$D$4*'CC Allocations'!J48","v":0},{"$f":"$D$4*'CC Allocations'!K48","v":0},{"$f":"$D$4*'CC Allocations'!L48","v":0},{"$f":"$D$4*'CC Allocations'!M48","v":0},{"$f":"$D$4*'CC Allocations'!N48","v":0},{"$f":"$D$4*'CC Allocations'!O48","v":0},{"$f":"$D$4*'CC Allocations'!P48","v":0},{"$f":"$D$4*'CC Allocations'!Q48","v":0},{"$f":"$D$4*'CC Allocations'!R48","v":0},{"$f":"$D$4*'CC Allocations'!S48","v":0},{"$f":"$D$4*'CC Allocations'!T48","v":0},{"$f":"$D$4*'CC Allocations'!U48","v":0},{"$f":"$D$4*'CC Allocations'!V48","v":0},{"$f":"$D$4*'CC Allocations'!W48","v":0},{"$f":"$D$4*'CC Allocations'!X48","v":0},{"$f":"$D$4*'CC Allocations'!Y48","v":0},{"$f":"$D$4*'CC Allocations'!Z48","v":0},{"$f":"$D$4*'CC Allocations'!AA48","v":0},{"$f":"$D$4*'CC Allocations'!AB48","v":0},{"$f":"$D$4*'CC Allocations'!AC48","v":1501.9133104896093},{"$f":"$D$4*'CC Allocations'!AD48","v":0},{"$f":"$D$4*'CC Allocations'!AE48","v":0},{"$f":"$D$4*'CC Allocations'!AF48","v":0},{"$f":"$D$4*'CC Allocations'!AG48","v":0},{"$f":"$D$4*'CC Allocations'!AH48","v":0},{"$f":"$D$4*'CC Allocations'!AI48","v":0},{"$f":"$D$4*'CC Allocations'!AJ48","v":0},{"$f":"$D$4*'CC Allocations'!AK48","v":0},{"$f":"$D$4*'CC Allocations'!AL48","v":0},{"$f":"$D$4*'CC Allocations'!AM48","v":0},{"$f":"$D$4*'CC Allocations'!AN48","v":0},{"$f":"$D$4*'CC Allocations'!AO48","v":0},{"$f":"$D$4*'CC Allocations'!AP48","v":0},{"$f":"$D$4*'CC Allocations'!AQ48","v":0}]
[null,"147 - Office of Minority and Women's Business Enterprises","147","Office of Minority and Women's Business Enterprises",2197.3808213424577,647.54779280938942,24,4.2545847096543324E-4,0,1.0182871409547096E-3,{"$f":"$D$4*'CC Allocations'!J49","v":0},{"$f":"$D$4*'CC Allocations'!K49","v":0},{"$f":"$D$4*'CC Allocations'!L49","v":0},{"$f":"$D$4*'CC Allocations'!M49","v":0},{"$f":"$D$4*'CC Allocations'!N49","v":0},{"$f":"$D$4*'CC Allocations'!O49","v":0},{"$f":"$D$4*'CC Allocations'!P49","v":0},{"$f":"$D$4*'CC Allocations'!Q49","v":0},{"$f":"$D$4*'CC Allocations'!R49","v":0},{"$f":"$D$4*'CC Allocations'!S49","v":0},{"$f":"$D$4*'CC Allocations'!T49","v":0},{"$f":"$D$4*'CC Allocations'!U49","v":0},{"$f":"$D$4*'CC Allocations'!V49","v":0},{"$f":"$D$4*'CC Allocations'!W49","v":0},{"$f":"$D$4*'CC Allocations'!X49","v":0},{"$f":"$D$4*'CC Allocations'!Y49","v":0},{"$f":"$D$4*'CC Allocations'!Z49","v":0},{"$f":"$D$4*'CC Allocations'!AA49","v":0},{"$f":"$D$4*'CC Allocations'!AB49","v":0},{"$f":"$D$4*'CC Allocations'!AC49","v":1549.8330285330683},{"$f":"$D$4*'CC Allocations'!AD49","v":0},{"$f":"$D$4*'CC Allocations'!AE49","v":0},{"$f":"$D$4*'CC Allocations'!AF49","v":0},{"$f":"$D$4*'CC Allocations'!AG49","v":0},{"$f":"$D$4*'CC Allocations'!AH49","v":0},{"$f":"$D$4*'CC Allocations'!AI49","v":0},{"$f":"$D$4*'CC Allocations'!AJ49","v":0},{"$f":"$D$4*'CC Allocations'!AK49","v":0},{"$f":"$D$4*'CC Allocations'!AL49","v":0},{"$f":"$D$4*'CC Allocations'!AM49","v":0},{"$f":"$D$4*'CC Allocations'!AN49","v":0},{"$f":"$D$4*'CC Allocations'!AO49","v":0},{"$f":"$D$4*'CC Allocations'!AP49","v":0},{"$f":"$D$4*'CC Allocations'!AQ49","v":0}]
[null,"160 - Office of Insurance Commissioner","160","Office of Insurance Commissioner",8138.9525497985978,5612.0808710147076,208,3.6873067483670879E-3,2.8024323654956987E-4,1.6602310635899405E-3,{"$f":"$D$4*'CC Allocations'!J50","v":0},{"$f":"$D$4*'CC Allocations'!K50","v":0},{"$f":"$D$4*'CC Allocations'!L50","v":0},{"$f":"$D$4*'CC Allocations'!M50","v":0},{"$f":"$D$4*'CC Allocations'!N50","v":0},{"$f":"$D$4*'CC Allocations'!O50","v":0},{"$f":"$D$4*'CC Allocations'!P50","v":0},{"$f":"$D$4*'CC Allocations'!Q50","v":0},{"$f":"$D$4*'CC Allocations'!R50","v":0},{"$f":"$D$4*'CC Allocations'!S50","v":0},{"$f":"$D$4*'CC Allocations'!T50","v":2526.8716787838898},{"$f":"$D$4*'CC Allocations'!U50","v":0},{"$f":"$D$4*'CC Allocations'!V50","v":0},{"$f":"$D$4*'CC Allocations'!W50","v":0},{"$f":"$D$4*'CC Allocations'!X50","v":0},{"$f":"$D$4*'CC Allocations'!Y50","v":0},{"$f":"$D$4*'CC Allocations'!Z50","v":0},{"$f":"$D$4*'CC Allocations'!AA50","v":0},{"$f":"$D$4*'CC Allocations'!AB50","v":0},{"$f":"$D$4*'CC Allocations'!AC50","v":0},{"$f":"$D$4*'CC Allocations'!AD50","v":0},{"$f":"$D$4*'CC Allocations'!AE50","v":0},{"$f":"$D$4*'CC Allocations'!AF50","v":0},{"$f":"$D$4*'CC Allocations'!AG50","v":0},{"$f":"$D$4*'CC Allocations'!AH50","v":0},{"$f":"$D$4*'CC Allocations'!AI50","v":0},{"$f":"$D$4*'CC Allocations'!AJ50","v":0},{"$f":"$D$4*'CC Allocations'!AK50","v":0},{"$f":"$D$4*'CC Allocations'!AL50","v":0},{"$f":"$D$4*'CC Allocations'!AM50","v":0},{"$f":"$D$4*'CC Allocations'!AN50","v":0},{"$f":"$D$4*'CC Allocations'!AO50","v":0},{"$f":"$D$4*'CC Allocations'!AP50","v":0},{"$f":"$D$4*'CC Allocations'!AQ50","v":0}]
[null,"163 - Consolidated Technology Services","163","Consolidated Technology Services",7939.3175022148844,7797.5546717463976,289,5.1232290878754257E-3,1.1708545581982318E-5,9.314246417114737E-5,{"$f":"$D$4*'CC Allocations'!J51","v":0},{"$f":"$D$4*'CC Allocations'!K51","v":0},{"$f":"$D$4*'CC Allocations'!L51","v":0},{"$f":"$D$4*'CC Allocations'!M51","v":0},{"$f":"$D$4*'CC Allocations'!N51","v":0},{"$f":"$D$4*'CC Allocations'!O51","v":141.76283046848633},{"$f":"$D$4*'CC Allocations'!P51","v":0},{"$f":"$D$4*'CC Allocations'!Q51","v":0},{"$f":"$D$4*'CC Allocations'!R51","v":0},{"$f":"$D$4*'CC Allocations'!S51","v":0},{"$f":"$D$4*'CC Allocations'!T51","v":0},{"$f":"$D$4*'CC Allocations'!U51","v":0},{"$f":"$D$4*'CC Allocations'!V51","v":0},{"$f":"$D$4*'CC Allocations'!W51","v":0},{"$f":"$D$4*'CC Allocations'!X51","v":0},{"$f":"$D$4*'CC Allocations'!Y51","v":0},{"$f":"$D$4*'CC Allocations'!Z51","v":0},{"$f":"$D$4*'CC Allocations'!AA51","v":0},{"$f":"$D$4*'CC Allocations'!AB51","v":0},{"$f":"$D$4*'CC Allocations'!AC51","v":0},{"$f":"$D$4*'CC Allocations'!AD51","v":0},{"$f":"$D$4*'CC Allocations'!AE51","v":0},{"$f":"$D$4*'CC Allocations'!AF51","v":0},{"$f":"$D$4*'CC Allocations'!AG51","v":0},{"$f":"$D$4*'CC Allocations'!AH51","v":0},{"$f":"$D$4*'CC Allocations'!AI51","v":0},{"$f":"$D$4*'CC Allocations'!AJ51","v":0},{"$f":"$D$4*'CC Allocations'!AK51","v":0},{"$f":"$D$4*'CC Allocations'!AL51","v":0},{"$f":"$D$4*'CC Allocations'!AM51","v":0},{"$f":"$D$4*'CC Allocations'!AN51","v":0},{"$f":"$D$4*'CC Allocations'!AO51","v":0},{"$f":"$D$4*'CC Allocations'!AP51","v":0},{"$f":"$D$4*'CC Allocations'!AQ51","v":0}]
[null,"165 - Board of Accountancy","165","Board of Accountancy",269.81158033724563,269.81158033724563,10,1.7727436290226387E-4,0,0,{"$f":"$D$4*'CC Allocations'!J52","v":0},{"$f":"$D$4*'CC Allocations'!K52","v":0},{"$f":"$D$4*'CC Allocations'!L52","v":0},{"$f":"$D$4*'CC Allocations'!M52","v":0},{"$f":"$D$4*'CC Allocations'!N52","v":0},{"$f":"$D$4*'CC Allocations'!O52","v":0},{"$f":"$D$4*'CC Allocations'!P52","v":0},{"$f":"$D$4*'CC Allocations'!Q52","v":0},{"$f":"$D$4*'CC Allocations'!R52","v":0},{"$f":"$D$4*'CC Allocations'!S52","v":0},{"$f":"$D$4*'CC Allocations'!T52","v":0},{"$f":"$D$4*'CC Allocations'!U52","v":0},{"$f":"$D$4*'CC Allocations'!V52","v":0},{"$f":"$D$4*'CC Allocations'!W52","v":0},{"$f":"$D$4*'CC Allocations'!X52","v":0},{"$f":"$D$4*'CC Allocations'!Y52","v":0},{"$f":"$D$4*'CC Allocations'!Z52","v":0},{"$f":"$D$4*'CC Allocations'!AA52","v":0},{"$f":"$D$4*'CC Allocations'!AB52","v":0},{"$f":"$D$4*'CC Allocations'!AC52","v":0},{"$f":"$D$4*'CC Allocations'!AD52","v":0},{"$f":"$D$4*'CC Allocations'!AE52","v":0},{"$f":"$D$4*'CC Allocations'!AF52","v":0},{"$f":"$D$4*'CC Allocations'!AG52","v":0},{"$f":"$D$4*'CC Allocations'!AH52","v":0},{"$f":"$D$4*'CC Allocations'!AI52","v":0},{"$f":"$D$4*'CC Allocations'!AJ52","v":0},{"$f":"$D$4*'CC Allocations'!AK52","v":0},{"$f":"$D$4*'CC Allocations'!AL52","v":0},{"$f":"$D$4*'CC Allocations'!AM52","v":0},{"$f":"$D$4*'CC Allocations'!AN52","v":0},{"$f":"$D$4*'CC Allocations'!AO52","v":0},{"$f":"$D$4*'CC Allocations'!AP52","v":0},{"$f":"$D$4*'CC Allocations'!AQ52","v":0}]
[null,"166 - Brd Prof Eng Land Surveyors","166","Brd Prof Eng Land Surveyors",215.84926426979646,215.84926426979646,8,1.4181949032181107E-4,0,0,{"$f":"$D$4*'CC Allocations'!J53","v":0},{"$f":"$D$4*'CC Allocations'!K53","v":0},{"$f":"$D$4*'CC Allocations'!L53","v":0},{"$f":"$D$4*'CC Allocations'!M53","v":0},{"$f":"$D$4*'CC Allocations'!N53","v":0},{"$f":"$D$4*'CC Allocations'!O53","v":0},{"$f":"$D$4*'CC Allocations'!P53","v":0},{"$f":"$D$4*'CC Allocations'!Q53","v":0},{"$f":"$D$4*'CC Allocations'!R53","v":0},{"$f":"$D$4*'CC Allocations'!S53","v":0},{"$f":"$D$4*'CC Allocations'!T53","v":0},{"$f":"$D$4*'CC Allocations'!U53","v":0},{"$f":"$D$4*'CC Allocations'!V53","v":0},{"$f":"$D$4*'CC Allocations'!W53","v":0},{"$f":"$D$4*'CC Allocations'!X53","v":0},{"$f":"$D$4*'CC Allocations'!Y53","v":0},{"$f":"$D$4*'CC Allocations'!Z53","v":0},{"$f":"$D$4*'CC Allocations'!AA53","v":0},{"$f":"$D$4*'CC Allocations'!AB53","v":0},{"$f":"$D$4*'CC Allocations'!AC53","v":0},{"$f":"$D$4*'CC Allocations'!AD53","v":0},{"$f":"$D$4*'CC Allocations'!AE53","v":0},{"$f":"$D$4*'CC Allocations'!AF53","v":0},{"$f":"$D$4*'CC Allocations'!AG53","v":0},{"$f":"$D$4*'CC Allocations'!AH53","v":0},{"$f":"$D$4*'CC Allocations'!AI53","v":0},{"$f":"$D$4*'CC Allocations'!AJ53","v":0},{"$f":"$D$4*'CC Allocations'!AK53","v":0},{"$f":"$D$4*'CC Allocations'!AL53","v":0},{"$f":"$D$4*'CC Allocations'!AM53","v":0},{"$f":"$D$4*'CC Allocations'!AN53","v":0},{"$f":"$D$4*'CC Allocations'!AO53","v":0},{"$f":"$D$4*'CC Allocations'!AP53","v":0},{"$f":"$D$4*'CC Allocations'!AQ53","v":0}]
[null,"167 - Forensic Investigations Council","167","Forensic Investigations Council",0,0,0,0,0,0,{"$f":"$D$4*'CC Allocations'!J54","v":0},{"$f":"$D$4*'CC Allocations'!K54","v":0},{"$f":"$D$4*'CC Allocations'!L54","v":0},{"$f":"$D$4*'CC Allocations'!M54","v":0},{"$f":"$D$4*'CC Allocations'!N54","v":0},{"$f":"$D$4*'CC Allocations'!O54","v":0},{"$f":"$D$4*'CC Allocations'!P54","v":0},{"$f":"$D$4*'CC Allocations'!Q54","v":0},{"$f":"$D$4*'CC Allocations'!R54","v":0},{"$f":"$D$4*'CC Allocations'!S54","v":0},{"$f":"$D$4*'CC Allocations'!T54","v":0},{"$f":"$D$4*'CC Allocations'!U54","v":0},{"$f":"$D$4*'CC Allocations'!V54","v":0},{"$f":"$D$4*'CC Allocations'!W54","v":0},{"$f":"$D$4*'CC Allocations'!X54","v":0},{"$f":"$D$4*'CC Allocations'!Y54","v":0},{"$f":"$D$4*'CC Allocations'!Z54","v":0},{"$f":"$D$4*'CC Allocations'!AA54","v":0},{"$f":"$D$4*'CC Allocations'!AB54","v":0},{"$f":"$D$4*'CC Allocations'!AC54","v":0},{"$f":"$D$4*'CC Allocations'!AD54","v":0},{"$f":"$D$4*'CC Allocations'!AE54","v":0},{"$f":"$D$4*'CC Allocations'!AF54","v":0},{"$f":"$D$4*'CC Allocations'!AG54","v":0},{"$f":"$D$4*'CC Allocations'!AH54","v":0},{"$f":"$D$4*'CC Allocations'!AI54","v":0},{"$f":"$D$4*'CC Allocations'!AJ54","v":0},{"$f":"$D$4*'CC Allocations'!AK54","v":0},{"$f":"$D$4*'CC Allocations'!AL54","v":0},{"$f":"$D$4*'CC Allocations'!AM54","v":0},{"$f":"$D$4*'CC Allocations'!AN54","v":0},{"$f":"$D$4*'CC Allocations'!AO54","v":0},{"$f":"$D$4*'CC Allocations'!AP54","v":0},{"$f":"$D$4*'CC Allocations'!AQ54","v":0}]
[null,"179 - Department of Enterprise Services","179","Department of Enterprise Services",35130.867285816617,20532.661263664388,761,1.3490579016862278E-2,1.0907793337899484E-3,9.5914625638319501E-3,{"$f":"$D$4*'CC Allocations'!J55","v":0},{"$f":"$D$4*'CC Allocations'!K55","v":0},{"$f":"$D$4*'CC Allocations'!L55","v":3019.9608443484276},{"$f":"$D$4*'CC Allocations'!M55","v":0},{"$f":"$D$4*'CC Allocations'!N55","v":0},{"$f":"$D$4*'CC Allocations'!O55","v":9848.6328043962803},{"$f":"$D$4*'CC Allocations'!P55","v":0},{"$f":"$D$4*'CC Allocations'!Q55","v":0},{"$f":"$D$4*'CC Allocations'!R55","v":0},{"$f":"$D$4*'CC Allocations'!S55","v":0},{"$f":"$D$4*'CC Allocations'!T55","v":0},{"$f":"$D$4*'CC Allocations'!U55","v":0},{"$f":"$D$4*'CC Allocations'!V55","v":0},{"$f":"$D$4*'CC Allocations'!W55","v":0},{"$f":"$D$4*'CC Allocations'!X55","v":0},{"$f":"$D$4*'CC Allocations'!Y55","v":0},{"$f":"$D$4*'CC Allocations'!Z55","v":0},{"$f":"$D$4*'CC Allocations'!AA55","v":0},{"$f":"$D$4*'CC Allocations'!AB55","v":0},{"$f":"$D$4*'CC Allocations'!AC55","v":1729.6123734075202},{"$f":"$D$4*'CC Allocations'!AD55","v":0},{"$f":"$D$4*'CC Allocations'!AE55","v":0},{"$f":"$D$4*'CC Allocations'!AF55","v":0},{"$f":"$D$4*'CC Allocations'!AG55","v":0},{"$f":"$D$4*'CC Allocations'!AH55","v":0},{"$f":"$D$4*'CC Allocations'!AI55","v":0},{"$f":"$D$4*'CC Allocations'!AJ55","v":0},{"$f":"$D$4*'CC Allocations'!AK55","v":0},{"$f":"$D$4*'CC Allocations'!AL55","v":0},{"$f":"$D$4*'CC Allocations'!AM55","v":0},{"$f":"$D$4*'CC Allocations'!AN55","v":0},{"$f":"$D$4*'CC Allocations'!AO55","v":0},{"$f":"$D$4*'CC Allocations'!AP55","v":0},{"$f":"$D$4*'CC Allocations'!AQ55","v":0}]
[null,"185 - Horse Racing Commission","185","Horse Racing Commission",80.943474101173678,80.943474101173678,3,5.3182308870679155E-5,0,0,{"$f":"$D$4*'CC Allocations'!J56","v":0},{"$f":"$D$4*'CC Allocations'!K56","v":0},{"$f":"$D$4*'CC Allocations'!L56","v":0},{"$f":"$D$4*'CC Allocations'!M56","v":0},{"$f":"$D$4*'CC Allocations'!N56","v":0},{"$f":"$D$4*'CC Allocations'!O56","v":0},{"$f":"$D$4*'CC Allocations'!P56","v":0},{"$f":"$D$4*'CC Allocations'!Q56","v":0},{"$f":"$D$4*'CC Allocations'!R56","v":0},{"$f":"$D$4*'CC Allocations'!S56","v":0},{"$f":"$D$4*'CC Allocations'!T56","v":0},{"$f":"$D$4*'CC Allocations'!U56","v":0},{"$f":"$D$4*'CC Allocations'!V56","v":0},{"$f":"$D$4*'CC Allocations'!W56","v":0},{"$f":"$D$4*'CC Allocations'!X56","v":0},{"$f":"$D$4*'CC Allocations'!Y56","v":0},{"$f":"$D$4*'CC Allocations'!Z56","v":0},{"$f":"$D$4*'CC Allocations'!AA56","v":0},{"$f":"$D$4*'CC Allocations'!AB56","v":0},{"$f":"$D$4*'CC Allocations'!AC56","v":0},{"$f":"$D$4*'CC Allocations'!AD56","v":0},{"$f":"$D$4*'CC Allocations'!AE56","v":0},{"$f":"$D$4*'CC Allocations'!AF56","v":0},{"$f":"$D$4*'CC Allocations'!AG56","v":0},{"$f":"$D$4*'CC Allocations'!AH56","v":0},{"$f":"$D$4*'CC Allocations'!AI56","v":0},{"$f":"$D$4*'CC Allocations'!AJ56","v":0},{"$f":"$D$4*'CC Allocations'!AK56","v":0},{"$f":"$D$4*'CC Allocations'!AL56","v":0},{"$f":"$D$4*'CC Allocations'!AM56","v":0},{"$f":"$D$4*'CC Allocations'!AN56","v":0},{"$f":"$D$4*'CC Allocations'!AO56","v":0},{"$f":"$D$4*'CC Allocations'!AP56","v":0},{"$f":"$D$4*'CC Allocations'!AQ56","v":0}]
[null,"190 - Board of Industrial Insurance Appeals","190","Board of Industrial Insurance Appeals",2725.0969614061805,2725.0969614061805,101,1.790471065312865E-3,0,0,{"$f":"$D$4*'CC Allocations'!J57","v":0},{"$f":"$D$4*'CC Allocations'!K57","v":0},{"$f":"$D$4*'CC Allocations'!L57","v":0},{"$f":"$D$4*'CC Allocations'!M57","v":0},{"$f":"$D$4*'CC Allocations'!N57","v":0},{"$f":"$D$4*'CC Allocations'!O57","v":0},{"$f":"$D$4*'CC Allocations'!P57","v":0},{"$f":"$D$4*'CC Allocations'!Q57","v":0},{"$f":"$D$4*'CC Allocations'!R57","v":0},{"$f":"$D$4*'CC Allocations'!S57","v":0},{"$f":"$D$4*'CC Allocations'!T57","v":0},{"$f":"$D$4*'CC Allocations'!U57","v":0},{"$f":"$D$4*'CC Allocations'!V57","v":0},{"$f":"$D$4*'CC Allocations'!W57","v":0},{"$f":"$D$4*'CC Allocations'!X57","v":0},{"$f":"$D$4*'CC Allocations'!Y57","v":0},{"$f":"$D$4*'CC Allocations'!Z57","v":0},{"$f":"$D$4*'CC Allocations'!AA57","v":0},{"$f":"$D$4*'CC Allocations'!AB57","v":0},{"$f":"$D$4*'CC Allocations'!AC57","v":0},{"$f":"$D$4*'CC Allocations'!AD57","v":0},{"$f":"$D$4*'CC Allocations'!AE57","v":0},{"$f":"$D$4*'CC Allocations'!AF57","v":0},{"$f":"$D$4*'CC Allocations'!AG57","v":0},{"$f":"$D$4*'CC Allocations'!AH57","v":0},{"$f":"$D$4*'CC Allocations'!AI57","v":0},{"$f":"$D$4*'CC Allocations'!AJ57","v":0},{"$f":"$D$4*'CC Allocations'!AK57","v":0},{"$f":"$D$4*'CC Allocations'!AL57","v":0},{"$f":"$D$4*'CC Allocations'!AM57","v":0},{"$f":"$D$4*'CC Allocations'!AN57","v":0},{"$f":"$D$4*'CC Allocations'!AO57","v":0},{"$f":"$D$4*'CC Allocations'!AP57","v":0},{"$f":"$D$4*'CC Allocations'!AQ57","v":0}]
[null,"195 - Liquor Control Board","195","Liquor Control Board",6070.7605575880261,6070.7605575880261,225,3.9886731653009369E-3,0,0,{"$f":"$D$4*'CC Allocations'!J58","v":0},{"$f":"$D$4*'CC Allocations'!K58","v":0},{"$f":"$D$4*'CC Allocations'!L58","v":0},{"$f":"$D$4*'CC Allocations'!M58","v":0},{"$f":"$D$4*'CC Allocations'!N58","v":0},{"$f":"$D$4*'CC Allocations'!O58","v":0},{"$f":"$D$4*'CC Allocations'!P58","v":0},{"$f":"$D$4*'CC Allocations'!Q58","v":0},{"$f":"$D$4*'CC Allocations'!R58","v":0},{"$f":"$D$4*'CC Allocations'!S58","v":0},{"$f":"$D$4*'CC Allocations'!T58","v":0},{"$f":"$D$4*'CC Allocations'!U58","v":0},{"$f":"$D$4*'CC Allocations'!V58","v":0},{"$f":"$D$4*'CC Allocations'!W58","v":0},{"$f":"$D$4*'CC Allocations'!X58","v":0},{"$f":"$D$4*'CC Allocations'!Y58","v":0},{"$f":"$D$4*'CC Allocations'!Z58","v":0},{"$f":"$D$4*'CC Allocations'!AA58","v":0},{"$f":"$D$4*'CC Allocations'!AB58","v":0},{"$f":"$D$4*'CC Allocations'!AC58","v":0},{"$f":"$D$4*'CC Allocations'!AD58","v":0},{"$f":"$D$4*'CC Allocations'!AE58","v":0},{"$f":"$D$4*'CC Allocations'!AF58","v":0},{"$f":"$D$4*'CC Allocations'!AG58","v":0},{"$f":"$D$4*'CC Allocations'!AH58","v":0},{"$f":"$D$4*'CC Allocations'!AI58","v":0},{"$f":"$D$4*'CC Allocations'!AJ58","v":0},{"$f":"$D$4*'CC Allocations'!AK58","v":0},{"$f":"$D$4*'CC Allocations'!AL58","v":0},{"$f":"$D$4*'CC Allocations'!AM58","v":0},{"$f":"$D$4*'CC Allocations'!AN58","v":0},{"$f":"$D$4*'CC Allocations'!AO58","v":0},{"$f":"$D$4*'CC Allocations'!AP58","v":0},{"$f":"$D$4*'CC Allocations'!AQ58","v":0}]
[null,"205 - Board of Pilotage Commissioners","205","Board of Pilotage Commissioners",0,0,0,0,0,0,{"$f":"$D$4*'CC Allocations'!J59","v":0},{"$f":"$D$4*'CC Allocations'!K59","v":0},{"$f":"$D$4*'CC Allocations'!L59","v":0},{"$f":"$D$4*'CC Allocations'!M59","v":0},{"$f":"$D$4*'CC Allocations'!N59","v":0},{"$f":"$D$4*'CC Allocations'!O59","v":0},{"$f":"$D$4*'CC Allocations'!P59","v":0},{"$f":"$D$4*'CC Allocations'!Q59","v":0},{"$f":"$D$4*'CC Allocations'!R59","v":0},{"$f":"$D$4*'CC Allocations'!S59","v":0},{"$f":"$D$4*'CC Allocations'!T59","v":0},{"$f":"$D$4*'CC Allocations'!U59","v":0},{"$f":"$D$4*'CC Allocations'!V59","v":0},{"$f":"$D$4*'CC Allocations'!W59","v":0},{"$f":"$D$4*'CC Allocations'!X59","v":0},{"$f":"$D$4*'CC Allocations'!Y59","v":0},{"$f":"$D$4*'CC Allocations'!Z59","v":0},{"$f":"$D$4*'CC Allocations'!AA59","v":0},{"$f":"$D$4*'CC Allocations'!AB59","v":0},{"$f":"$D$4*'CC Allocations'!AC59","v":0},{"$f":"$D$4*'CC Allocations'!AD59","v":0},{"$f":"$D$4*'CC Allocations'!AE59","v":0},{"$f":"$D$4*'CC Allocations'!AF59","v":0},{"$f":"$D$4*'CC Allocations'!AG59","v":0},{"$f":"$D$4*'CC Allocations'!AH59","v":0},{"$f":"$D$4*'CC Allocations'!AI59","v":0},{"$f":"$D$4*'CC Allocations'!AJ59","v":0},{"$f":"$D$4*'CC Allocations'!AK59","v":0},{"$f":"$D$4*'CC Allocations'!AL59","v":0},{"$f":"$D$4*'CC Allocations'!AM59","v":0},{"$f":"$D$4*'CC Allocations'!AN59","v":0},{"$f":"$D$4*'CC Allocations'!AO59","v":0},{"$f":"$D$4*'CC Allocations'!AP59","v":0},{"$f":"$D$4*'CC Allocations'!AQ59","v":0}]
[null,"215 - Utilities and Transportation Commission","215","Utilities and Transportation Commission",4020.1925470249594,4020.1925470249594,149,2.6413880072437314E-3,0,0,{"$f":"$D$4*'CC Allocations'!J60","v":0},{"$f":"$D$4*'CC Allocations'!K60","v":0},{"$f":"$D$4*'CC Allocations'!L60","v":0},{"$f":"$D$4*'CC Allocations'!M60","v":0},{"$f":"$D$4*'CC Allocations'!N60","v":0},{"$f":"$D$4*'CC Allocations'!O60","v":0},{"$f":"$D$4*'CC Allocations'!P60","v":0},{"$f":"$D$4*'CC Allocations'!Q60","v":0},{"$f":"$D$4*'CC Allocations'!R60","v":0},{"$f":"$D$4*'CC Allocations'!S60","v":0},{"$f":"$D$4*'CC Allocations'!T60","v":0},{"$f":"$D$4*'CC Allocations'!U60","v":0},{"$f":"$D$4*'CC Allocations'!V60","v":0},{"$f":"$D$4*'CC Allocations'!W60","v":0},{"$f":"$D$4*'CC Allocations'!X60","v":0},{"$f":"$D$4*'CC Allocations'!Y60","v":0},{"$f":"$D$4*'CC Allocations'!Z60","v":0},{"$f":"$D$4*'CC Allocations'!AA60","v":0},{"$f":"$D$4*'CC Allocations'!AB60","v":0},{"$f":"$D$4*'CC Allocations'!AC60","v":0},{"$f":"$D$4*'CC Allocations'!AD60","v":0},{"$f":"$D$4*'CC Allocations'!AE60","v":0},{"$f":"$D$4*'CC Allocations'!AF60","v":0},{"$f":"$D$4*'CC Allocations'!AG60","v":0},{"$f":"$D$4*'CC Allocations'!AH60","v":0},{"$f":"$D$4*'CC Allocations'!AI60","v":0},{"$f":"$D$4*'CC Allocations'!AJ60","v":0},{"$f":"$D$4*'CC Allocations'!AK60","v":0},{"$f":"$D$4*'CC Allocations'!AL60","v":0},{"$f":"$D$4*'CC Allocations'!AM60","v":0},{"$f":"$D$4*'CC Allocations'!AN60","v":0},{"$f":"$D$4*'CC Allocations'!AO60","v":0},{"$f":"$D$4*'CC Allocations'!AP60","v":0},{"$f":"$D$4*'CC Allocations'!AQ60","v":0}]
[null,"220 - Board for Volunteer Firefighters and Reserve Officers","220","Board for Volunteer Firefighters and Reserve Officers",80.943474101173678,80.943474101173678,3,5.3182308870679155E-5,0,0,{"$f":"$D$4*'CC Allocations'!J61","v":0},{"$f":"$D$4*'CC Allocations'!K61","v":0},{"$f":"$D$4*'CC Allocations'!L61","v":0},{"$f":"$D$4*'CC Allocations'!M61","v":0},{"$f":"$D$4*'CC Allocations'!N61","v":0},{"$f":"$D$4*'CC Allocations'!O61","v":0},{"$f":"$D$4*'CC Allocations'!P61","v":0},{"$f":"$D$4*'CC Allocations'!Q61","v":0},{"$f":"$D$4*'CC Allocations'!R61","v":0},{"$f":"$D$4*'CC Allocations'!S61","v":0},{"$f":"$D$4*'CC Allocations'!T61","v":0},{"$f":"$D$4*'CC Allocations'!U61","v":0},{"$f":"$D$4*'CC Allocations'!V61","v":0},{"$f":"$D$4*'CC Allocations'!W61","v":0},{"$f":"$D$4*'CC Allocations'!X61","v":0},{"$f":"$D$4*'CC Allocations'!Y61","v":0},{"$f":"$D$4*'CC Allocations'!Z61","v":0},{"$f":"$D$4*'CC Allocations'!AA61","v":0},{"$f":"$D$4*'CC Allocations'!AB61","v":0},{"$f":"$D$4*'CC Allocations'!AC61","v":0},{"$f":"$D$4*'CC Allocations'!AD61","v":0},{"$f":"$D$4*'CC Allocations'!AE61","v":0},{"$f":"$D$4*'CC Allocations'!AF61","v":0},{"$f":"$D$4*'CC Allocations'!AG61","v":0},{"$f":"$D$4*'CC Allocations'!AH61","v":0},{"$f":"$D$4*'CC Allocations'!AI61","v":0},{"$f":"$D$4*'CC Allocations'!AJ61","v":0},{"$f":"$D$4*'CC Allocations'!AK61","v":0},{"$f":"$D$4*'CC Allocations'!AL61","v":0},{"$f":"$D$4*'CC Allocations'!AM61","v":0},{"$f":"$D$4*'CC Allocations'!AN61","v":0},{"$f":"$D$4*'CC Allocations'!AO61","v":0},{"$f":"$D$4*'CC Allocations'!AP61","v":0},{"$f":"$D$4*'CC Allocations'!AQ61","v":0}]
[null,"225 - Washington State Patrol","225","Washington State Patrol",15498.367345174145,15271.335447088099,566,1.0033728940268133E-2,2.0850834598050702E-5,1.4916681871619334E-4,{"$f":"$D$4*'CC Allocations'!J62","v":0},{"$f":"$D$4*'CC Allocations'!K62","v":0},{"$f":"$D$4*'CC Allocations'!L62","v":227.03189808604631},{"$f":"$D$4*'CC Allocations'!M62","v":0},{"$f":"$D$4*'CC Allocations'!N62","v":0},{"$f":"$D$4*'CC Allocations'!O62","v":0},{"$f":"$D$4*'CC Allocations'!P62","v":0},{"$f":"$D$4*'CC Allocations'!Q62","v":0},{"$f":"$D$4*'CC Allocations'!R62","v":0},{"$f":"$D$4*'CC Allocations'!S62","v":0},{"$f":"$D$4*'CC Allocations'!T62","v":0},{"$f":"$D$4*'CC Allocations'!U62","v":0},{"$f":"$D$4*'CC Allocations'!V62","v":0},{"$f":"$D$4*'CC Allocations'!W62","v":0},{"$f":"$D$4*'CC Allocations'!X62","v":0},{"$f":"$D$4*'CC Allocations'!Y62","v":0},{"$f":"$D$4*'CC Allocations'!Z62","v":0},{"$f":"$D$4*'CC Allocations'!AA62","v":0},{"$f":"$D$4*'CC Allocations'!AB62","v":0},{"$f":"$D$4*'CC Allocations'!AC62","v":0},{"$f":"$D$4*'CC Allocations'!AD62","v":0},{"$f":"$D$4*'CC Allocations'!AE62","v":0},{"$f":"$D$4*'CC Allocations'!AF62","v":0},{"$f":"$D$4*'CC Allocations'!AG62","v":0},{"$f":"$D$4*'CC Allocations'!AH62","v":0},{"$f":"$D$4*'CC Allocations'!AI62","v":0},{"$f":"$D$4*'CC Allocations'!AJ62","v":0},{"$f":"$D$4*'CC Allocations'!AK62","v":0},{"$f":"$D$4*'CC Allocations'!AL62","v":0},{"$f":"$D$4*'CC Allocations'!AM62","v":0},{"$f":"$D$4*'CC Allocations'!AN62","v":0},{"$f":"$D$4*'CC Allocations'!AO62","v":0},{"$f":"$D$4*'CC Allocations'!AP62","v":0},{"$f":"$D$4*'CC Allocations'!AQ62","v":0}]
[null,"227 - Criminal Justice Training Commission","227","Criminal Justice Training Commission",26.981158033724558,26.981158033724558,1,1.7727436290226384E-5,0,0,{"$f":"$D$4*'CC Allocations'!J63","v":0},{"$f":"$D$4*'CC Allocations'!K63","v":0},{"$f":"$D$4*'CC Allocations'!L63","v":0},{"$f":"$D$4*'CC Allocations'!M63","v":0},{"$f":"$D$4*'CC Allocations'!N63","v":0},{"$f":"$D$4*'CC Allocations'!O63","v":0},{"$f":"$D$4*'CC Allocations'!P63","v":0},{"$f":"$D$4*'CC Allocations'!Q63","v":0},{"$f":"$D$4*'CC Allocations'!R63","v":0},{"$f":"$D$4*'CC Allocations'!S63","v":0},{"$f":"$D$4*'CC Allocations'!T63","v":0},{"$f":"$D$4*'CC Allocations'!U63","v":0},{"$f":"$D$4*'CC Allocations'!V63","v":0},{"$f":"$D$4*'CC Allocations'!W63","v":0},{"$f":"$D$4*'CC Allocations'!X63","v":0},{"$f":"$D$4*'CC Allocations'!Y63","v":0},{"$f":"$D$4*'CC Allocations'!Z63","v":0},{"$f":"$D$4*'CC Allocations'!AA63","v":0},{"$f":"$D$4*'CC Allocations'!AB63","v":0},{"$f":"$D$4*'CC Allocations'!AC63","v":0},{"$f":"$D$4*'CC Allocations'!AD63","v":0},{"$f":"$D$4*'CC Allocations'!AE63","v":0},{"$f":"$D$4*'CC Allocations'!AF63","v":0},{"$f":"$D$4*'CC Allocations'!AG63","v":0},{"$f":"$D$4*'CC Allocations'!AH63","v":0},{"$f":"$D$4*'CC Allocations'!AI63","v":0},{"$f":"$D$4*'CC Allocations'!AJ63","v":0},{"$f":"$D$4*'CC Allocations'!AK63","v":0},{"$f":"$D$4*'CC Allocations'!AL63","v":0},{"$f":"$D$4*'CC Allocations'!AM63","v":0},{"$f":"$D$4*'CC Allocations'!AN63","v":0},{"$f":"$D$4*'CC Allocations'!AO63","v":0},{"$f":"$D$4*'CC Allocations'!AP63","v":0},{"$f":"$D$4*'CC Allocations'!AQ63","v":0}]
[null,"228 - Traffic Safety Commission","228","Traffic Safety Commission",566.60431870821583,566.60431870821583,21,3.7227616209475412E-4,0,0,{"$f":"$D$4*'CC Allocations'!J64","v":0},{"$f":"$D$4*'CC Allocations'!K64","v":0},{"$f":"$D$4*'CC Allocations'!L64","v":0},{"$f":"$D$4*'CC Allocations'!M64","v":0},{"$f":"$D$4*'CC Allocations'!N64","v":0},{"$f":"$D$4*'CC Allocations'!O64","v":0},{"$f":"$D$4*'CC Allocations'!P64","v":0},{"$f":"$D$4*'CC Allocations'!Q64","v":0},{"$f":"$D$4*'CC Allocations'!R64","v":0},{"$f":"$D$4*'CC Allocations'!S64","v":0},{"$f":"$D$4*'CC Allocations'!T64","v":0},{"$f":"$D$4*'CC Allocations'!U64","v":0},{"$f":"$D$4*'CC Allocations'!V64","v":0},{"$f":"$D$4*'CC Allocations'!W64","v":0},{"$f":"$D$4*'CC Allocations'!X64","v":0},{"$f":"$D$4*'CC Allocations'!Y64","v":0},{"$f":"$D$4*'CC Allocations'!Z64","v":0},{"$f":"$D$4*'CC Allocations'!AA64","v":0},{"$f":"$D$4*'CC Allocations'!AB64","v":0},{"$f":"$D$4*'CC Allocations'!AC64","v":0},{"$f":"$D$4*'CC Allocations'!AD64","v":0},{"$f":"$D$4*'CC Allocations'!AE64","v":0},{"$f":"$D$4*'CC Allocations'!AF64","v":0},{"$f":"$D$4*'CC Allocations'!AG64","v":0},{"$f":"$D$4*'CC Allocations'!AH64","v":0},{"$f":"$D$4*'CC Allocations'!AI64","v":0},{"$f":"$D$4*'CC Allocations'!AJ64","v":0},{"$f":"$D$4*'CC Allocations'!AK64","v":0},{"$f":"$D$4*'CC Allocations'!AL64","v":0},{"$f":"$D$4*'CC Allocations'!AM64","v":0},{"$f":"$D$4*'CC Allocations'!AN64","v":0},{"$f":"$D$4*'CC Allocations'!AO64","v":0},{"$f":"$D$4*'CC Allocations'!AP64","v":0},{"$f":"$D$4*'CC Allocations'!AQ64","v":0}]
[null,"235 - Department of Labor and Industries","235","Department of Labor and Industries",66643.152475644267,59223.641884025405,2195,3.8911722657046913E-2,0,4.874842701457857E-3,{"$f":"$D$4*'CC Allocations'!J65","v":0},{"$f":"$D$4*'CC Allocations'!K65","v":0},{"$f":"$D$4*'CC Allocations'!L65","v":0},{"$f":"$D$4*'CC Allocations'!M65","v":0},{"$f":"$D$4*'CC Allocations'!N65","v":0},{"$f":"$D$4*'CC Allocations'!O65","v":0},{"$f":"$D$4*'CC Allocations'!P65","v":0},{"$f":"$D$4*'CC Allocations'!Q65","v":0},{"$f":"$D$4*'CC Allocations'!R65","v":0},{"$f":"$D$4*'CC Allocations'!S65","v":0},{"$f":"$D$4*'CC Allocations'!T65","v":0},{"$f":"$D$4*'CC Allocations'!U65","v":0},{"$f":"$D$4*'CC Allocations'!V65","v":0},{"$f":"$D$4*'CC Allocations'!W65","v":0},{"$f":"$D$4*'CC Allocations'!X65","v":0},{"$f":"$D$4*'CC Allocations'!Y65","v":0},{"$f":"$D$4*'CC Allocations'!Z65","v":0},{"$f":"$D$4*'CC Allocations'!AA65","v":0},{"$f":"$D$4*'CC Allocations'!AB65","v":0},{"$f":"$D$4*'CC Allocations'!AC65","v":0},{"$f":"$D$4*'CC Allocations'!AD65","v":0},{"$f":"$D$4*'CC Allocations'!AE65","v":0},{"$f":"$D$4*'CC Allocations'!AF65","v":0},{"$f":"$D$4*'CC Allocations'!AG65","v":0},{"$f":"$D$4*'CC Allocations'!AH65","v":0},{"$f":"$D$4*'CC Allocations'!AI65","v":0},{"$f":"$D$4*'CC Allocations'!AJ65","v":0},{"$f":"$D$4*'CC Allocations'!AK65","v":0},{"$f":"$D$4*'CC Allocations'!AL65","v":0},{"$f":"$D$4*'CC Allocations'!AM65","v":0},{"$f":"$D$4*'CC Allocations'!AN65","v":0},{"$f":"$D$4*'CC Allocations'!AO65","v":7419.5105916188595},{"$f":"$D$4*'CC Allocations'!AP65","v":0},{"$f":"$D$4*'CC Allocations'!AQ65","v":0}]
[null,"240 - Department of Licensing","240","Department of Licensing",66281.151458434819,24121.155282149753,894,1.5848328043462388E-2,4.1766226587837676E-3,2.7700391705837751E-2,{"$f":"$D$4*'CC Allocations'!J66","v":0},{"$f":"$D$4*'CC Allocations'!K66","v":0},{"$f":"$D$4*'CC Allocations'!L66","v":0},{"$f":"$D$4*'CC Allocations'!M66","v":0},{"$f":"$D$4*'CC Allocations'!N66","v":42159.996176285065},{"$f":"$D$4*'CC Allocations'!O66","v":0},{"$f":"$D$4*'CC Allocations'!P66","v":0},{"$f":"$D$4*'CC Allocations'!Q66","v":0},{"$f":"$D$4*'CC Allocations'!R66","v":0},{"$f":"$D$4*'CC Allocations'!S66","v":0},{"$f":"$D$4*'CC Allocations'!T66","v":0},{"$f":"$D$4*'CC Allocations'!U66","v":0},{"$f":"$D$4*'CC Allocations'!V66","v":0},{"$f":"$D$4*'CC Allocations'!W66","v":0},{"$f":"$D$4*'CC Allocations'!X66","v":0},{"$f":"$D$4*'CC Allocations'!Y66","v":0},{"$f":"$D$4*'CC Allocations'!Z66","v":0},{"$f":"$D$4*'CC Allocations'!AA66","v":0},{"$f":"$D$4*'CC Allocations'!AB66","v":0},{"$f":"$D$4*'CC Allocations'!AC66","v":0},{"$f":"$D$4*'CC Allocations'!AD66","v":0},{"$f":"$D$4*'CC Allocations'!AE66","v":0},{"$f":"$D$4*'CC Allocations'!AF66","v":0},{"$f":"$D$4*'CC Allocations'!AG66","v":0},{"$f":"$D$4*'CC Allocations'!AH66","v":0},{"$f":"$D$4*'CC Allocations'!AI66","v":0},{"$f":"$D$4*'CC Allocations'!AJ66","v":0},{"$f":"$D$4*'CC Allocations'!AK66","v":0},{"$f":"$D$4*'CC Allocations'!AL66","v":0},{"$f":"$D$4*'CC Allocations'!AM66","v":0},{"$f":"$D$4*'CC Allocations'!AN66","v":0},{"$f":"$D$4*'CC Allocations'!AO66","v":0},{"$f":"$D$4*'CC Allocations'!AP66","v":0},{"$f":"$D$4*'CC Allocations'!AQ66","v":0}]
[null,"245 - Military Department","245","Military Department",0,0,0,0,0,0,{"$f":"$D$4*'CC Allocations'!J67","v":0},{"$f":"$D$4*'CC Allocations'!K67","v":0},{"$f":"$D$4*'CC Allocations'!L67","v":0},{"$f":"$D$4*'CC Allocations'!M67","v":0},{"$f":"$D$4*'CC Allocations'!N67","v":0},{"$f":"$D$4*'CC Allocations'!O67","v":0},{"$f":"$D$4*'CC Allocations'!P67","v":0},{"$f":"$D$4*'CC Allocations'!Q67","v":0},{"$f":"$D$4*'CC Allocations'!R67","v":0},{"$f":"$D$4*'CC Allocations'!S67","v":0},{"$f":"$D$4*'CC Allocations'!T67","v":0},{"$f":"$D$4*'CC Allocations'!U67","v":0},{"$f":"$D$4*'CC Allocations'!V67","v":0},{"$f":"$D$4*'CC Allocations'!W67","v":0},{"$f":"$D$4*'CC Allocations'!X67","v":0},{"$f":"$D$4*'CC Allocations'!Y67","v":0},{"$f":"$D$4*'CC Allocations'!Z67","v":0},{"$f":"$D$4*'CC Allocations'!AA67","v":0},{"$f":"$D$4*'CC Allocations'!AB67","v":0},{"$f":"$D$4*'CC Allocations'!AC67","v":0},{"$f":"$D$4*'CC Allocations'!AD67","v":0},{"$f":"$D$4*'CC Allocations'!AE67","v":0},{"$f":"$D$4*'CC Allocations'!AF67","v":0},{"$f":"$D$4*'CC Allocations'!AG67","v":0},{"$f":"$D$4*'CC Allocations'!AH67","v":0},{"$f":"$D$4*'CC Allocations'!AI67","v":0},{"$f":"$D$4*'CC Allocations'!AJ67","v":0},{"$f":"$D$4*'CC Allocations'!AK67","v":0},{"$f":"$D$4*'CC Allocations'!AL67","v":0},{"$f":"$D$4*'CC Allocations'!AM67","v":0},{"$f":"$D$4*'CC Allocations'!AN67","v":0},{"$f":"$D$4*'CC Allocations'!AO67","v":0},{"$f":"$D$4*'CC Allocations'!AP67","v":0},{"$f":"$D$4*'CC Allocations'!AQ67","v":0}]
[null,"275 - Public Employment Relations Commission","275","Public Employment Relations Commission",566.60431870821583,566.60431870821583,21,3.7227616209475412E-4,0,0,{"$f":"$D$4*'CC Allocations'!J68","v":0},{"$f":"$D$4*'CC Allocations'!K68","v":0},{"$f":"$D$4*'CC Allocations'!L68","v":0},{"$f":"$D$4*'CC Allocations'!M68","v":0},{"$f":"$D$4*'CC Allocations'!N68","v":0},{"$f":"$D$4*'CC Allocations'!O68","v":0},{"$f":"$D$4*'CC Allocations'!P68","v":0},{"$f":"$D$4*'CC Allocations'!Q68","v":0},{"$f":"$D$4*'CC Allocations'!R68","v":0},{"$f":"$D$4*'CC Allocations'!S68","v":0},{"$f":"$D$4*'CC Allocations'!T68","v":0},{"$f":"$D$4*'CC Allocations'!U68","v":0},{"$f":"$D$4*'CC Allocations'!V68","v":0},{"$f":"$D$4*'CC Allocations'!W68","v":0},{"$f":"$D$4*'CC Allocations'!X68","v":0},{"$f":"$D$4*'CC Allocations'!Y68","v":0},{"$f":"$D$4*'CC Allocations'!Z68","v":0},{"$f":"$D$4*'CC Allocations'!AA68","v":0},{"$f":"$D$4*'CC Allocations'!AB68","v":0},{"$f":"$D$4*'CC Allocations'!AC68","v":0},{"$f":"$D$4*'CC Allocations'!AD68","v":0},{"$f":"$D$4*'CC Allocations'!AE68","v":0},{"$f":"$D$4*'CC Allocations'!AF68","v":0},{"$f":"$D$4*'CC Allocations'!AG68","v":0},{"$f":"$D$4*'CC Allocations'!AH68","v":0},{"$f":"$D$4*'CC Allocations'!AI68","v":0},{"$f":"$D$4*'CC Allocations'!AJ68","v":0},{"$f":"$D$4*'CC Allocations'!AK68","v":0},{"$f":"$D$4*'CC Allocations'!AL68","v":0},{"$f":"$D$4*'CC Allocations'!AM68","v":0},{"$f":"$D$4*'CC Allocations'!AN68","v":0},{"$f":"$D$4*'CC Allocations'!AO68","v":0},{"$f":"$D$4*'CC Allocations'!AP68","v":0},{"$f":"$D$4*'CC Allocations'!AQ68","v":0}]
[null,"300 - Department of Social and Health Services","300","Department of Social and Health Services",155359.46460497926,71931.767317909675,2666,4.7261345149743547E-2,6.4674076214503761E-3,5.4814518585459653E-2,{"$f":"$D$4*'CC Allocations'!J69","v":0},{"$f":"$D$4*'CC Allocations'!K69","v":0},{"$f":"$D$4*'CC Allocations'!L69","v":0},{"$f":"$D$4*'CC Allocations'!M69","v":0},{"$f":"$D$4*'CC Allocations'!N69","v":0},{"$f":"$D$4*'CC Allocations'!O69","v":78305.029757166529},{"$f":"$D$4*'CC Allocations'!P69","v":0},{"$f":"$D$4*'CC Allocations'!Q69","v":0},{"$f":"$D$4*'CC Allocations'!R69","v":0},{"$f":"$D$4*'CC Allocations'!S69","v":0},{"$f":"$D$4*'CC Allocations'!T69","v":0},{"$f":"$D$4*'CC Allocations'!U69","v":0},{"$f":"$D$4*'CC Allocations'!V69","v":0},{"$f":"$D$4*'CC Allocations'!W69","v":0},{"$f":"$D$4*'CC Allocations'!X69","v":0},{"$f":"$D$4*'CC Allocations'!Y69","v":0},{"$f":"$D$4*'CC Allocations'!Z69","v":0},{"$f":"$D$4*'CC Allocations'!AA69","v":0},{"$f":"$D$4*'CC Allocations'!AB69","v":0},{"$f":"$D$4*'CC Allocations'!AC69","v":0},{"$f":"$D$4*'CC Allocations'!AD69","v":0},{"$f":"$D$4*'CC Allocations'!AE69","v":0},{"$f":"$D$4*'CC Allocations'!AF69","v":0},{"$f":"$D$4*'CC Allocations'!AG69","v":0},{"$f":"$D$4*'CC Allocations'!AH69","v":0},{"$f":"$D$4*'CC Allocations'!AI69","v":0},{"$f":"$D$4*'CC Allocations'!AJ69","v":0},{"$f":"$D$4*'CC Allocations'!AK69","v":0},{"$f":"$D$4*'CC Allocations'!AL69","v":0},{"$f":"$D$4*'CC Allocations'!AM69","v":5122.6675299030676},{"$f":"$D$4*'CC Allocations'!AN69","v":0},{"$f":"$D$4*'CC Allocations'!AO69","v":0},{"$f":"$D$4*'CC Allocations'!AP69","v":0},{"$f":"$D$4*'CC Allocations'!AQ69","v":0}]
[null,"303 - Department of Health","303","Department of Health",42576.267377217351,42576.267377217351,1578,2.7973894465977235E-2,0,0,{"$f":"$D$4*'CC Allocations'!J70","v":0},{"$f":"$D$4*'CC Allocations'!K70","v":0},{"$f":"$D$4*'CC Allocations'!L70","v":0},{"$f":"$D$4*'CC Allocations'!M70","v":0},{"$f":"$D$4*'CC Allocations'!N70","v":0},{"$f":"$D$4*'CC Allocations'!O70","v":0},{"$f":"$D$4*'CC Allocations'!P70","v":0},{"$f":"$D$4*'CC Allocations'!Q70","v":0},{"$f":"$D$4*'CC Allocations'!R70","v":0},{"$f":"$D$4*'CC Allocations'!S70","v":0},{"$f":"$D$4*'CC Allocations'!T70","v":0},{"$f":"$D$4*'CC Allocations'!U70","v":0},{"$f":"$D$4*'CC Allocations'!V70","v":0},{"$f":"$D$4*'CC Allocations'!W70","v":0},{"$f":"$D$4*'CC Allocations'!X70","v":0},{"$f":"$D$4*'CC Allocations'!Y70","v":0},{"$f":"$D$4*'CC Allocations'!Z70","v":0},{"$f":"$D$4*'CC Allocations'!AA70","v":0},{"$f":"$D$4*'CC Allocations'!AB70","v":0},{"$f":"$D$4*'CC Allocations'!AC70","v":0},{"$f":"$D$4*'CC Allocations'!AD70","v":0},{"$f":"$D$4*'CC Allocations'!AE70","v":0},{"$f":"$D$4*'CC Allocations'!AF70","v":0},{"$f":"$D$4*'CC Allocations'!AG70","v":0},{"$f":"$D$4*'CC Allocations'!AH70","v":0},{"$f":"$D$4*'CC Allocations'!AI70","v":0},{"$f":"$D$4*'CC Allocations'!AJ70","v":0},{"$f":"$D$4*'CC Allocations'!AK70","v":0},{"$f":"$D$4*'CC Allocations'!AL70","v":0},{"$f":"$D$4*'CC Allocations'!AM70","v":0},{"$f":"$D$4*'CC Allocations'!AN70","v":0},{"$f":"$D$4*'CC Allocations'!AO70","v":0},{"$f":"$D$4*'CC Allocations'!AP70","v":0},{"$f":"$D$4*'CC Allocations'!AQ70","v":0}]
[null,"305 - Department of Veterans Affairs","305","Department of Veterans Affairs",2212.4549587654137,2212.4549587654137,82,1.4536497757985636E-3,0,0,{"$f":"$D$4*'CC Allocations'!J71","v":0},{"$f":"$D$4*'CC Allocations'!K71","v":0},{"$f":"$D$4*'CC Allocations'!L71","v":0},{"$f":"$D$4*'CC Allocations'!M71","v":0},{"$f":"$D$4*'CC Allocations'!N71","v":0},{"$f":"$D$4*'CC Allocations'!O71","v":0},{"$f":"$D$4*'CC Allocations'!P71","v":0},{"$f":"$D$4*'CC Allocations'!Q71","v":0},{"$f":"$D$4*'CC Allocations'!R71","v":0},{"$f":"$D$4*'CC Allocations'!S71","v":0},{"$f":"$D$4*'CC Allocations'!T71","v":0},{"$f":"$D$4*'CC Allocations'!U71","v":0},{"$f":"$D$4*'CC Allocations'!V71","v":0},{"$f":"$D$4*'CC Allocations'!W71","v":0},{"$f":"$D$4*'CC Allocations'!X71","v":0},{"$f":"$D$4*'CC Allocations'!Y71","v":0},{"$f":"$D$4*'CC Allocations'!Z71","v":0},{"$f":"$D$4*'CC Allocations'!AA71","v":0},{"$f":"$D$4*'CC Allocations'!AB71","v":0},{"$f":"$D$4*'CC Allocations'!AC71","v":0},{"$f":"$D$4*'CC Allocations'!AD71","v":0},{"$f":"$D$4*'CC Allocations'!AE71","v":0},{"$f":"$D$4*'CC Allocations'!AF71","v":0},{"$f":"$D$4*'CC Allocations'!AG71","v":0},{"$f":"$D$4*'CC Allocations'!AH71","v":0},{"$f":"$D$4*'CC Allocations'!AI71","v":0},{"$f":"$D$4*'CC Allocations'!AJ71","v":0},{"$f":"$D$4*'CC Allocations'!AK71","v":0},{"$f":"$D$4*'CC Allocations'!AL71","v":0},{"$f":"$D$4*'CC Allocations'!AM71","v":0},{"$f":"$D$4*'CC Allocations'!AN71","v":0},{"$f":"$D$4*'CC Allocations'!AO71","v":0},{"$f":"$D$4*'CC Allocations'!AP71","v":0},{"$f":"$D$4*'CC Allocations'!AQ71","v":0}]
[null,{"$f":"CONCATENATE(C72,\" - \",D72)","v":"307 - DCYF"},"307","DCYF",{"$f":"F72+SUM(K72:AR72)","v":56953.394428198953},{"$f":"H72*$D$4","v":22718.13506439608},842,1.4926501356370617E-2,2.6481361894701242E-3,2.249360010762344E-2,{"$f":"$D$4*'CC Allocations'!J72","v":0},{"$f":"$D$4*'CC Allocations'!K72","v":0},{"$f":"$D$4*'CC Allocations'!L72","v":0},{"$f":"$D$4*'CC Allocations'!M72","v":0},{"$f":"$D$4*'CC Allocations'!N72","v":0},{"$f":"$D$4*'CC Allocations'!O72","v":32062.674143149914},{"$f":"$D$4*'CC Allocations'!P72","v":0},{"$f":"$D$4*'CC Allocations'!Q72","v":0},{"$f":"$D$4*'CC Allocations'!R72","v":0},{"$f":"$D$4*'CC Allocations'!S72","v":0},{"$f":"$D$4*'CC Allocations'!T72","v":0},{"$f":"$D$4*'CC Allocations'!U72","v":0},{"$f":"$D$4*'CC Allocations'!V72","v":0},{"$f":"$D$4*'CC Allocations'!W72","v":0},{"$f":"$D$4*'CC Allocations'!X72","v":0},{"$f":"$D$4*'CC Allocations'!Y72","v":0},{"$f":"$D$4*'CC Allocations'!Z72","v":0},{"$f":"$D$4*'CC Allocations'!AA72","v":0},{"$f":"$D$4*'CC Allocations'!AB72","v":0},{"$f":"$D$4*'CC Allocations'!AC72","v":0},{"$f":"$D$4*'CC Allocations'!AD72","v":0},{"$f":"$D$4*'CC Allocations'!AE72","v":0},{"$f":"$D$4*'CC Allocations'!AF72","v":0},{"$f":"$D$4*'CC Allocations'!AG72","v":0},{"$f":"$D$4*'CC Allocations'!AH72","v":0},{"$f":"$D$4*'CC Allocations'!AI72","v":0},{"$f":"$D$4*'CC Allocations'!AJ72","v":0},{"$f":"$D$4*'CC Allocations'!AK72","v":0},{"$f":"$D$4*'CC Allocations'!AL72","v":0},{"$f":"$D$4*'CC Allocations'!AM72","v":2172.5852206529648},{"$f":"$D$4*'CC Allocations'!AN72","v":0},{"$f":"$D$4*'CC Allocations'!AO72","v":0},{"$f":"$D$4*'CC Allocations'!AP72","v":0},{"$f":"$D$4*'CC Allocations'!AQ72","v":0}]
[null,"310 - Department of Corrections","310","Department of Corrections",29544.368046928394,29544.368046928394,1095,1.9411542737797893E-2,0,0,{"$f":"$D$4*'CC Allocations'!J73","v":0},{"$f":"$D$4*'CC Allocations'!K73","v":0},{"$f":"$D$4*'CC Allocations'!L73","v":0},{"$f":"$D$4*'CC Allocations'!M73","v":0},{"$f":"$D$4*'CC Allocations'!N73","v":0},{"$f":"$D$4*'CC Allocations'!O73","v":0},{"$f":"$D$4*'CC Allocations'!P73","v":0},{"$f":"$D$4*'CC Allocations'!Q73","v":0},{"$f":"$D$4*'CC Allocations'!R73","v":0},{"$f":"$D$4*'CC Allocations'!S73","v":0},{"$f":"$D$4*'CC Allocations'!T73","v":0},{"$f":"$D$4*'CC Allocations'!U73","v":0},{"$f":"$D$4*'CC Allocations'!V73","v":0},{"$f":"$D$4*'CC Allocations'!W73","v":0},{"$f":"$D$4*'CC Allocations'!X73","v":0},{"$f":"$D$4*'CC Allocations'!Y73","v":0},{"$f":"$D$4*'CC Allocations'!Z73","v":0},{"$f":"$D$4*'CC Allocations'!AA73","v":0},{"$f":"$D$4*'CC Allocations'!AB73","v":0},{"$f":"$D$4*'CC Allocations'!AC73","v":0},{"$f":"$D$4*'CC Allocations'!AD73","v":0},{"$f":"$D$4*'CC Allocations'!AE73","v":0},{"$f":"$D$4*'CC Allocations'!AF73","v":0},{"$f":"$D$4*'CC Allocations'!AG73","v":0},{"$f":"$D$4*'CC Allocations'!AH73","v":0},{"$f":"$D$4*'CC Allocations'!AI73","v":0},{"$f":"$D$4*'CC Allocations'!AJ73","v":0},{"$f":"$D$4*'CC Allocations'!AK73","v":0},{"$f":"$D$4*'CC Allocations'!AL73","v":0},{"$f":"$D$4*'CC Allocations'!AM73","v":0},{"$f":"$D$4*'CC Allocations'!AN73","v":0},{"$f":"$D$4*'CC Allocations'!AO73","v":0},{"$f":"$D$4*'CC Allocations'!AP73","v":0},{"$f":"$D$4*'CC Allocations'!AQ73","v":0}]
[null,"315 - Department of Services for the Blind","315","Department of Services for the Blind",8435.4799112649871,539.62316067449126,20,3.5454872580452775E-4,3.3974831067169921E-4,5.1878165246980901E-3,{"$f":"$D$4*'CC Allocations'!J74","v":0},{"$f":"$D$4*'CC Allocations'!K74","v":0},{"$f":"$D$4*'CC Allocations'!L74","v":258.03048417087183},{"$f":"$D$4*'CC Allocations'!M74","v":0},{"$f":"$D$4*'CC Allocations'!N74","v":351.32992848585781},{"$f":"$D$4*'CC Allocations'!O74","v":1247.7071037808557},{"$f":"$D$4*'CC Allocations'!P74","v":0},{"$f":"$D$4*'CC Allocations'!Q74","v":1143.6760160616145},{"$f":"$D$4*'CC Allocations'!R74","v":0},{"$f":"$D$4*'CC Allocations'!S74","v":542.08935440220887},{"$f":"$D$4*'CC Allocations'!T74","v":0},{"$f":"$D$4*'CC Allocations'!U74","v":0},{"$f":"$D$4*'CC Allocations'!V74","v":0},{"$f":"$D$4*'CC Allocations'!W74","v":0},{"$f":"$D$4*'CC Allocations'!X74","v":0},{"$f":"$D$4*'CC Allocations'!Y74","v":0},{"$f":"$D$4*'CC Allocations'!Z74","v":0},{"$f":"$D$4*'CC Allocations'!AA74","v":0},{"$f":"$D$4*'CC Allocations'!AB74","v":0},{"$f":"$D$4*'CC Allocations'!AC74","v":0},{"$f":"$D$4*'CC Allocations'!AD74","v":0},{"$f":"$D$4*'CC Allocations'!AE74","v":0},{"$f":"$D$4*'CC Allocations'!AF74","v":0},{"$f":"$D$4*'CC Allocations'!AG74","v":0},{"$f":"$D$4*'CC Allocations'!AH74","v":0},{"$f":"$D$4*'CC Allocations'!AI74","v":0},{"$f":"$D$4*'CC Allocations'!AJ74","v":0},{"$f":"$D$4*'CC Allocations'!AK74","v":0},{"$f":"$D$4*'CC Allocations'!AL74","v":0},{"$f":"$D$4*'CC Allocations'!AM74","v":0},{"$f":"$D$4*'CC Allocations'!AN74","v":3647.626375278016},{"$f":"$D$4*'CC Allocations'!AO74","v":705.39748841107087},{"$f":"$D$4*'CC Allocations'!AP74","v":0},{"$f":"$D$4*'CC Allocations'!AQ74","v":0}]
[null,"340 - Student Achievement Council","340","Student Achievement Council",3048.8708578108753,3048.8708578108753,113,2.0032003007955817E-3,0,0,{"$f":"$D$4*'CC Allocations'!J75","v":0},{"$f":"$D$4*'CC Allocations'!K75","v":0},{"$f":"$D$4*'CC Allocations'!L75","v":0},{"$f":"$D$4*'CC Allocations'!M75","v":0},{"$f":"$D$4*'CC Allocations'!N75","v":0},{"$f":"$D$4*'CC Allocations'!O75","v":0},{"$f":"$D$4*'CC Allocations'!P75","v":0},{"$f":"$D$4*'CC Allocations'!Q75","v":0},{"$f":"$D$4*'CC Allocations'!R75","v":0},{"$f":"$D$4*'CC Allocations'!S75","v":0},{"$f":"$D$4*'CC Allocations'!T75","v":0},{"$f":"$D$4*'CC Allocations'!U75","v":0},{"$f":"$D$4*'CC Allocations'!V75","v":0},{"$f":"$D$4*'CC Allocations'!W75","v":0},{"$f":"$D$4*'CC Allocations'!X75","v":0},{"$f":"$D$4*'CC Allocations'!Y75","v":0},{"$f":"$D$4*'CC Allocations'!Z75","v":0},{"$f":"$D$4*'CC Allocations'!AA75","v":0},{"$f":"$D$4*'CC Allocations'!AB75","v":0},{"$f":"$D$4*'CC Allocations'!AC75","v":0},{"$f":"$D$4*'CC Allocations'!AD75","v":0},{"$f":"$D$4*'CC Allocations'!AE75","v":0},{"$f":"$D$4*'CC Allocations'!AF75","v":0},{"$f":"$D$4*'CC Allocations'!AG75","v":0},{"$f":"$D$4*'CC Allocations'!AH75","v":0},{"$f":"$D$4*'CC Allocations'!AI75","v":0},{"$f":"$D$4*'CC Allocations'!AJ75","v":0},{"$f":"$D$4*'CC Allocations'!AK75","v":0},{"$f":"$D$4*'CC Allocations'!AL75","v":0},{"$f":"$D$4*'CC Allocations'!AM75","v":0},{"$f":"$D$4*'CC Allocations'!AN75","v":0},{"$f":"$D$4*'CC Allocations'!AO75","v":0},{"$f":"$D$4*'CC Allocations'!AP75","v":0},{"$f":"$D$4*'CC Allocations'!AQ75","v":0}]
[null,"341 - Law Enforcement Officers' & Fire Fighters' Plan 2 Retirement Board","341","Law Enforcement Officers' & Fire Fighters' Plan 2 Retirement Board",215.84926426979646,215.84926426979646,8,1.4181949032181107E-4,0,0,{"$f":"$D$4*'CC Allocations'!J76","v":0},{"$f":"$D$4*'CC Allocations'!K76","v":0},{"$f":"$D$4*'CC Allocations'!L76","v":0},{"$f":"$D$4*'CC Allocations'!M76","v":0},{"$f":"$D$4*'CC Allocations'!N76","v":0},{"$f":"$D$4*'CC Allocations'!O76","v":0},{"$f":"$D$4*'CC Allocations'!P76","v":0},{"$f":"$D$4*'CC Allocations'!Q76","v":0},{"$f":"$D$4*'CC Allocations'!R76","v":0},{"$f":"$D$4*'CC Allocations'!S76","v":0},{"$f":"$D$4*'CC Allocations'!T76","v":0},{"$f":"$D$4*'CC Allocations'!U76","v":0},{"$f":"$D$4*'CC Allocations'!V76","v":0},{"$f":"$D$4*'CC Allocations'!W76","v":0},{"$f":"$D$4*'CC Allocations'!X76","v":0},{"$f":"$D$4*'CC Allocations'!Y76","v":0},{"$f":"$D$4*'CC Allocations'!Z76","v":0},{"$f":"$D$4*'CC Allocations'!AA76","v":0},{"$f":"$D$4*'CC Allocations'!AB76","v":0},{"$f":"$D$4*'CC Allocations'!AC76","v":0},{"$f":"$D$4*'CC Allocations'!AD76","v":0},{"$f":"$D$4*'CC Allocations'!AE76","v":0},{"$f":"$D$4*'CC Allocations'!AF76","v":0},{"$f":"$D$4*'CC Allocations'!AG76","v":0},{"$f":"$D$4*'CC Allocations'!AH76","v":0},{"$f":"$D$4*'CC Allocations'!AI76","v":0},{"$f":"$D$4*'CC Allocations'!AJ76","v":0},{"$f":"$D$4*'CC Allocations'!AK76","v":0},{"$f":"$D$4*'CC Allocations'!AL76","v":0},{"$f":"$D$4*'CC Allocations'!AM76","v":0},{"$f":"$D$4*'CC Allocations'!AN76","v":0},{"$f":"$D$4*'CC Allocations'!AO76","v":0},{"$f":"$D$4*'CC Allocations'!AP76","v":0},{"$f":"$D$4*'CC Allocations'!AQ76","v":0}]
[null,"350 - Superintendent of Public Instruction","350","Superintendent of Public Instruction",47639.079140872389,12330.389221412122,457,8.1014383846334578E-3,3.9215608147872283E-3,2.3198876425400958E-2,{"$f":"$D$4*'CC Allocations'!J77","v":0},{"$f":"$D$4*'CC Allocations'!K77","v":0},{"$f":"$D$4*'CC Allocations'!L77","v":0},{"$f":"$D$4*'CC Allocations'!M77","v":0},{"$f":"$D$4*'CC Allocations'!N77","v":0},{"$f":"$D$4*'CC Allocations'!O77","v":0},{"$f":"$D$4*'CC Allocations'!P77","v":0},{"$f":"$D$4*'CC Allocations'!Q77","v":0},{"$f":"$D$4*'CC Allocations'!R77","v":0},{"$f":"$D$4*'CC Allocations'!S77","v":0},{"$f":"$D$4*'CC Allocations'!T77","v":0},{"$f":"$D$4*'CC Allocations'!U77","v":35083.170172783532},{"$f":"$D$4*'CC Allocations'!V77","v":0},{"$f":"$D$4*'CC Allocations'!W77","v":0},{"$f":"$D$4*'CC Allocations'!X77","v":0},{"$f":"$D$4*'CC Allocations'!Y77","v":0},{"$f":"$D$4*'CC Allocations'!Z77","v":0},{"$f":"$D$4*'CC Allocations'!AA77","v":0},{"$f":"$D$4*'CC Allocations'!AB77","v":0},{"$f":"$D$4*'CC Allocations'!AC77","v":0},{"$f":"$D$4*'CC Allocations'!AD77","v":0},{"$f":"$D$4*'CC Allocations'!AE77","v":0},{"$f":"$D$4*'CC Allocations'!AF77","v":225.51974667673628},{"$f":"$D$4*'CC Allocations'!AG77","v":0},{"$f":"$D$4*'CC Allocations'!AH77","v":0},{"$f":"$D$4*'CC Allocations'!AI77","v":0},{"$f":"$D$4*'CC Allocations'!AJ77","v":0},{"$f":"$D$4*'CC Allocations'!AK77","v":0},{"$f":"$D$4*'CC Allocations'!AL77","v":0},{"$f":"$D$4*'CC Allocations'!AM77","v":0},{"$f":"$D$4*'CC Allocations'!AN77","v":0},{"$f":"$D$4*'CC Allocations'!AO77","v":0},{"$f":"$D$4*'CC Allocations'!AP77","v":0},{"$f":"$D$4*'CC Allocations'!AQ77","v":0}]
[null,"351 - State School For The Blind","351","State School For The Blind",53.962316067449116,53.962316067449116,2,3.5454872580452768E-5,0,0,{"$f":"$D$4*'CC Allocations'!J78","v":0},{"$f":"$D$4*'CC Allocations'!K78","v":0},{"$f":"$D$4*'CC Allocations'!L78","v":0},{"$f":"$D$4*'CC Allocations'!M78","v":0},{"$f":"$D$4*'CC Allocations'!N78","v":0},{"$f":"$D$4*'CC Allocations'!O78","v":0},{"$f":"$D$4*'CC Allocations'!P78","v":0},{"$f":"$D$4*'CC Allocations'!Q78","v":0},{"$f":"$D$4*'CC Allocations'!R78","v":0},{"$f":"$D$4*'CC Allocations'!S78","v":0},{"$f":"$D$4*'CC Allocations'!T78","v":0},{"$f":"$D$4*'CC Allocations'!U78","v":0},{"$f":"$D$4*'CC Allocations'!V78","v":0},{"$f":"$D$4*'CC Allocations'!W78","v":0},{"$f":"$D$4*'CC Allocations'!X78","v":0},{"$f":"$D$4*'CC Allocations'!Y78","v":0},{"$f":"$D$4*'CC Allocations'!Z78","v":0},{"$f":"$D$4*'CC Allocations'!AA78","v":0},{"$f":"$D$4*'CC Allocations'!AB78","v":0},{"$f":"$D$4*'CC Allocations'!AC78","v":0},{"$f":"$D$4*'CC Allocations'!AD78","v":0},{"$f":"$D$4*'CC Allocations'!AE78","v":0},{"$f":"$D$4*'CC Allocations'!AF78","v":0},{"$f":"$D$4*'CC Allocations'!AG78","v":0},{"$f":"$D$4*'CC Allocations'!AH78","v":0},{"$f":"$D$4*'CC Allocations'!AI78","v":0},{"$f":"$D$4*'CC Allocations'!AJ78","v":0},{"$f":"$D$4*'CC Allocations'!AK78","v":0},{"$f":"$D$4*'CC Allocations'!AL78","v":0},{"$f":"$D$4*'CC Allocations'!AM78","v":0},{"$f":"$D$4*'CC Allocations'!AN78","v":0},{"$f":"$D$4*'CC Allocations'!AO78","v":0},{"$f":"$D$4*'CC Allocations'!AP78","v":0},{"$f":"$D$4*'CC Allocations'!AQ78","v":0}]
[null,"353 - State Center for Childhood Deafness and Hearing Loss","353","State Center for Childhood Deafness and Hearing Loss",0,0,0,0,0,0,{"$f":"$D$4*'CC Allocations'!J79","v":0},{"$f":"$D$4*'CC Allocations'!K79","v":0},{"$f":"$D$4*'CC Allocations'!L79","v":0},{"$f":"$D$4*'CC Allocations'!M79","v":0},{"$f":"$D$4*'CC Allocations'!N79","v":0},{"$f":"$D$4*'CC Allocations'!O79","v":0},{"$f":"$D$4*'CC Allocations'!P79","v":0},{"$f":"$D$4*'CC Allocations'!Q79","v":0},{"$f":"$D$4*'CC Allocations'!R79","v":0},{"$f":"$D$4*'CC Allocations'!S79","v":0},{"$f":"$D$4*'CC Allocations'!T79","v":0},{"$f":"$D$4*'CC Allocations'!U79","v":0},{"$f":"$D$4*'CC Allocations'!V79","v":0},{"$f":"$D$4*'CC Allocations'!W79","v":0},{"$f":"$D$4*'CC Allocations'!X79","v":0},{"$f":"$D$4*'CC Allocations'!Y79","v":0},{"$f":"$D$4*'CC Allocations'!Z79","v":0},{"$f":"$D$4*'CC Allocations'!AA79","v":0},{"$f":"$D$4*'CC Allocations'!AB79","v":0},{"$f":"$D$4*'CC Allocations'!AC79","v":0},{"$f":"$D$4*'CC Allocations'!AD79","v":0},{"$f":"$D$4*'CC Allocations'!AE79","v":0},{"$f":"$D$4*'CC Allocations'!AF79","v":0},{"$f":"$D$4*'CC Allocations'!AG79","v":0},{"$f":"$D$4*'CC Allocations'!AH79","v":0},{"$f":"$D$4*'CC Allocations'!AI79","v":0},{"$f":"$D$4*'CC Allocations'!AJ79","v":0},{"$f":"$D$4*'CC Allocations'!AK79","v":0},{"$f":"$D$4*'CC Allocations'!AL79","v":0},{"$f":"$D$4*'CC Allocations'!AM79","v":0},{"$f":"$D$4*'CC Allocations'!AN79","v":0},{"$f":"$D$4*'CC Allocations'!AO79","v":0},{"$f":"$D$4*'CC Allocations'!AP79","v":0},{"$f":"$D$4*'CC Allocations'!AQ79","v":0}]
[null,"354 - Workforce Training and Education Coordinating Board","354","Workforce Training and Education Coordinating Board",755.4724249442877,755.4724249442877,28,4.9636821612633879E-4,0,0,{"$f":"$D$4*'CC Allocations'!J80","v":0},{"$f":"$D$4*'CC Allocations'!K80","v":0},{"$f":"$D$4*'CC Allocations'!L80","v":0},{"$f":"$D$4*'CC Allocations'!M80","v":0},{"$f":"$D$4*'CC Allocations'!N80","v":0},{"$f":"$D$4*'CC Allocations'!O80","v":0},{"$f":"$D$4*'CC Allocations'!P80","v":0},{"$f":"$D$4*'CC Allocations'!Q80","v":0},{"$f":"$D$4*'CC Allocations'!R80","v":0},{"$f":"$D$4*'CC Allocations'!S80","v":0},{"$f":"$D$4*'CC Allocations'!T80","v":0},{"$f":"$D$4*'CC Allocations'!U80","v":0},{"$f":"$D$4*'CC Allocations'!V80","v":0},{"$f":"$D$4*'CC Allocations'!W80","v":0},{"$f":"$D$4*'CC Allocations'!X80","v":0},{"$f":"$D$4*'CC Allocations'!Y80","v":0},{"$f":"$D$4*'CC Allocations'!Z80","v":0},{"$f":"$D$4*'CC Allocations'!AA80","v":0},{"$f":"$D$4*'CC Allocations'!AB80","v":0},{"$f":"$D$4*'CC Allocations'!AC80","v":0},{"$f":"$D$4*'CC Allocations'!AD80","v":0},{"$f":"$D$4*'CC Allocations'!AE80","v":0},{"$f":"$D$4*'CC Allocations'!AF80","v":0},{"$f":"$D$4*'CC Allocations'!AG80","v":0},{"$f":"$D$4*'CC Allocations'!AH80","v":0},{"$f":"$D$4*'CC Allocations'!AI80","v":0},{"$f":"$D$4*'CC Allocations'!AJ80","v":0},{"$f":"$D$4*'CC Allocations'!AK80","v":0},{"$f":"$D$4*'CC Allocations'!AL80","v":0},{"$f":"$D$4*'CC Allocations'!AM80","v":0},{"$f":"$D$4*'CC Allocations'!AN80","v":0},{"$f":"$D$4*'CC Allocations'!AO80","v":0},{"$f":"$D$4*'CC Allocations'!AP80","v":0},{"$f":"$D$4*'CC Allocations'!AQ80","v":0}]
[null,"355 - Department of Archaeology and Historic Preservation","355","Department of Archaeology and Historic Preservation",3542.1633462699938,539.62316067449126,20,3.5454872580452775E-4,0,1.972759648880093E-3,{"$f":"$D$4*'CC Allocations'!J81","v":0},{"$f":"$D$4*'CC Allocations'!K81","v":0},{"$f":"$D$4*'CC Allocations'!L81","v":0},{"$f":"$D$4*'CC Allocations'!M81","v":0},{"$f":"$D$4*'CC Allocations'!N81","v":0},{"$f":"$D$4*'CC Allocations'!O81","v":0},{"$f":"$D$4*'CC Allocations'!P81","v":0},{"$f":"$D$4*'CC Allocations'!Q81","v":0},{"$f":"$D$4*'CC Allocations'!R81","v":0},{"$f":"$D$4*'CC Allocations'!S81","v":0},{"$f":"$D$4*'CC Allocations'!T81","v":0},{"$f":"$D$4*'CC Allocations'!U81","v":0},{"$f":"$D$4*'CC Allocations'!V81","v":0},{"$f":"$D$4*'CC Allocations'!W81","v":0},{"$f":"$D$4*'CC Allocations'!X81","v":0},{"$f":"$D$4*'CC Allocations'!Y81","v":0},{"$f":"$D$4*'CC Allocations'!Z81","v":0},{"$f":"$D$4*'CC Allocations'!AA81","v":0},{"$f":"$D$4*'CC Allocations'!AB81","v":0},{"$f":"$D$4*'CC Allocations'!AC81","v":3002.5401855955024},{"$f":"$D$4*'CC Allocations'!AD81","v":0},{"$f":"$D$4*'CC Allocations'!AE81","v":0},{"$f":"$D$4*'CC Allocations'!AF81","v":0},{"$f":"$D$4*'CC Allocations'!AG81","v":0},{"$f":"$D$4*'CC Allocations'!AH81","v":0},{"$f":"$D$4*'CC Allocations'!AI81","v":0},{"$f":"$D$4*'CC Allocations'!AJ81","v":0},{"$f":"$D$4*'CC Allocations'!AK81","v":0},{"$f":"$D$4*'CC Allocations'!AL81","v":0},{"$f":"$D$4*'CC Allocations'!AM81","v":0},{"$f":"$D$4*'CC Allocations'!AN81","v":0},{"$f":"$D$4*'CC Allocations'!AO81","v":0},{"$f":"$D$4*'CC Allocations'!AP81","v":0},{"$f":"$D$4*'CC Allocations'!AQ81","v":0}]
[null,"357 - Department of Early Learning","357","Department of Early Learning",0,0,0,0,0,0,{"$f":"$D$4*'CC Allocations'!J82","v":0},{"$f":"$D$4*'CC Allocations'!K82","v":0},{"$f":"$D$4*'CC Allocations'!L82","v":0},{"$f":"$D$4*'CC Allocations'!M82","v":0},{"$f":"$D$4*'CC Allocations'!N82","v":0},{"$f":"$D$4*'CC Allocations'!O82","v":0},{"$f":"$D$4*'CC Allocations'!P82","v":0},{"$f":"$D$4*'CC Allocations'!Q82","v":0},{"$f":"$D$4*'CC Allocations'!R82","v":0},{"$f":"$D$4*'CC Allocations'!S82","v":0},{"$f":"$D$4*'CC Allocations'!T82","v":0},{"$f":"$D$4*'CC Allocations'!U82","v":0},{"$f":"$D$4*'CC Allocations'!V82","v":0},{"$f":"$D$4*'CC Allocations'!W82","v":0},{"$f":"$D$4*'CC Allocations'!X82","v":0},{"$f":"$D$4*'CC Allocations'!Y82","v":0},{"$f":"$D$4*'CC Allocations'!Z82","v":0},{"$f":"$D$4*'CC Allocations'!AA82","v":0},{"$f":"$D$4*'CC Allocations'!AB82","v":0},{"$f":"$D$4*'CC Allocations'!AC82","v":0},{"$f":"$D$4*'CC Allocations'!AD82","v":0},{"$f":"$D$4*'CC Allocations'!AE82","v":0},{"$f":"$D$4*'CC Allocations'!AF82","v":0},{"$f":"$D$4*'CC Allocations'!AG82","v":0},{"$f":"$D$4*'CC Allocations'!AH82","v":0},{"$f":"$D$4*'CC Allocations'!AI82","v":0},{"$f":"$D$4*'CC Allocations'!AJ82","v":0},{"$f":"$D$4*'CC Allocations'!AK82","v":0},{"$f":"$D$4*'CC Allocations'!AL82","v":0},{"$f":"$D$4*'CC Allocations'!AM82","v":0},{"$f":"$D$4*'CC Allocations'!AN82","v":0},{"$f":"$D$4*'CC Allocations'!AO82","v":0},{"$f":"$D$4*'CC Allocations'!AP82","v":0},{"$f":"$D$4*'CC Allocations'!AQ82","v":0}]
[null,"359 - WA Charter School Commission","359","WA Charter School Commission",0,0,0,0,0,0,{"$f":"$D$4*'CC Allocations'!J83","v":0},{"$f":"$D$4*'CC Allocations'!K83","v":0},{"$f":"$D$4*'CC Allocations'!L83","v":0},{"$f":"$D$4*'CC Allocations'!M83","v":0},{"$f":"$D$4*'CC Allocations'!N83","v":0},{"$f":"$D$4*'CC Allocations'!O83","v":0},{"$f":"$D$4*'CC Allocations'!P83","v":0},{"$f":"$D$4*'CC Allocations'!Q83","v":0},{"$f":"$D$4*'CC Allocations'!R83","v":0},{"$f":"$D$4*'CC Allocations'!S83","v":0},{"$f":"$D$4*'CC Allocations'!T83","v":0},{"$f":"$D$4*'CC Allocations'!U83","v":0},{"$f":"$D$4*'CC Allocations'!V83","v":0},{"$f":"$D$4*'CC Allocations'!W83","v":0},{"$f":"$D$4*'CC Allocations'!X83","v":0},{"$f":"$D$4*'CC Allocations'!Y83","v":0},{"$f":"$D$4*'CC Allocations'!Z83","v":0},{"$f":"$D$4*'CC Allocations'!AA83","v":0},{"$f":"$D$4*'CC Allocations'!AB83","v":0},{"$f":"$D$4*'CC Allocations'!AC83","v":0},{"$f":"$D$4*'CC Allocations'!AD83","v":0},{"$f":"$D$4*'CC Allocations'!AE83","v":0},{"$f":"$D$4*'CC Allocations'!AF83","v":0},{"$f":"$D$4*'CC Allocations'!AG83","v":0},{"$f":"$D$4*'CC Allocations'!AH83","v":0},{"$f":"$D$4*'CC Allocations'!AI83","v":0},{"$f":"$D$4*'CC Allocations'!AJ83","v":0},{"$f":"$D$4*'CC Allocations'!AK83","v":0},{"$f":"$D$4*'CC Allocations'!AL83","v":0},{"$f":"$D$4*'CC Allocations'!AM83","v":0},{"$f":"$D$4*'CC Allocations'!AN83","v":0},{"$f":"$D$4*'CC Allocations'!AO83","v":0},{"$f":"$D$4*'CC Allocations'!AP83","v":0},{"$f":"$D$4*'CC Allocations'!AQ83","v":0}]
[null,"360 - University of Washington","360","University of Washington",593.58547674194028,593.58547674194028,22,3.9000359838498049E-4,0,0,{"$f":"$D$4*'CC Allocations'!J84","v":0},{"$f":"$D$4*'CC Allocations'!K84","v":0},{"$f":"$D$4*'CC Allocations'!L84","v":0},{"$f":"$D$4*'CC Allocations'!M84","v":0},{"$f":"$D$4*'CC Allocations'!N84","v":0},{"$f":"$D$4*'CC Allocations'!O84","v":0},{"$f":"$D$4*'CC Allocations'!P84","v":0},{"$f":"$D$4*'CC Allocations'!Q84","v":0},{"$f":"$D$4*'CC Allocations'!R84","v":0},{"$f":"$D$4*'CC Allocations'!S84","v":0},{"$f":"$D$4*'CC Allocations'!T84","v":0},{"$f":"$D$4*'CC Allocations'!U84","v":0},{"$f":"$D$4*'CC Allocations'!V84","v":0},{"$f":"$D$4*'CC Allocations'!W84","v":0},{"$f":"$D$4*'CC Allocations'!X84","v":0},{"$f":"$D$4*'CC Allocations'!Y84","v":0},{"$f":"$D$4*'CC Allocations'!Z84","v":0},{"$f":"$D$4*'CC Allocations'!AA84","v":0},{"$f":"$D$4*'CC Allocations'!AB84","v":0},{"$f":"$D$4*'CC Allocations'!AC84","v":0},{"$f":"$D$4*'CC Allocations'!AD84","v":0},{"$f":"$D$4*'CC Allocations'!AE84","v":0},{"$f":"$D$4*'CC Allocations'!AF84","v":0},{"$f":"$D$4*'CC Allocations'!AG84","v":0},{"$f":"$D$4*'CC Allocations'!AH84","v":0},{"$f":"$D$4*'CC Allocations'!AI84","v":0},{"$f":"$D$4*'CC Allocations'!AJ84","v":0},{"$f":"$D$4*'CC Allocations'!AK84","v":0},{"$f":"$D$4*'CC Allocations'!AL84","v":0},{"$f":"$D$4*'CC Allocations'!AM84","v":0},{"$f":"$D$4*'CC Allocations'!AN84","v":0},{"$f":"$D$4*'CC Allocations'!AO84","v":0},{"$f":"$D$4*'CC Allocations'!AP84","v":0},{"$f":"$D$4*'CC Allocations'!AQ84","v":0}]
[null,"365 - Washington State University","365","Washington State University",1645.8506400571982,1645.8506400571982,61,1.0813736137038096E-3,0,0,{"$f":"$D$4*'CC Allocations'!J85","v":0},{"$f":"$D$4*'CC Allocations'!K85","v":0},{"$f":"$D$4*'CC Allocations'!L85","v":0},{"$f":"$D$4*'CC Allocations'!M85","v":0},{"$f":"$D$4*'CC Allocations'!N85","v":0},{"$f":"$D$4*'CC Allocations'!O85","v":0},{"$f":"$D$4*'CC Allocations'!P85","v":0},{"$f":"$D$4*'CC Allocations'!Q85","v":0},{"$f":"$D$4*'CC Allocations'!R85","v":0},{"$f":"$D$4*'CC Allocations'!S85","v":0},{"$f":"$D$4*'CC Allocations'!T85","v":0},{"$f":"$D$4*'CC Allocations'!U85","v":0},{"$f":"$D$4*'CC Allocations'!V85","v":0},{"$f":"$D$4*'CC Allocations'!W85","v":0},{"$f":"$D$4*'CC Allocations'!X85","v":0},{"$f":"$D$4*'CC Allocations'!Y85","v":0},{"$f":"$D$4*'CC Allocations'!Z85","v":0},{"$f":"$D$4*'CC Allocations'!AA85","v":0},{"$f":"$D$4*'CC Allocations'!AB85","v":0},{"$f":"$D$4*'CC Allocations'!AC85","v":0},{"$f":"$D$4*'CC Allocations'!AD85","v":0},{"$f":"$D$4*'CC Allocations'!AE85","v":0},{"$f":"$D$4*'CC Allocations'!AF85","v":0},{"$f":"$D$4*'CC Allocations'!AG85","v":0},{"$f":"$D$4*'CC Allocations'!AH85","v":0},{"$f":"$D$4*'CC Allocations'!AI85","v":0},{"$f":"$D$4*'CC Allocations'!AJ85","v":0},{"$f":"$D$4*'CC Allocations'!AK85","v":0},{"$f":"$D$4*'CC Allocations'!AL85","v":0},{"$f":"$D$4*'CC Allocations'!AM85","v":0},{"$f":"$D$4*'CC Allocations'!AN85","v":0},{"$f":"$D$4*'CC Allocations'!AO85","v":0},{"$f":"$D$4*'CC Allocations'!AP85","v":0},{"$f":"$D$4*'CC Allocations'!AQ85","v":0}]
[null,"370 - Eastern Washington University","370","Eastern Washington University",0,0,0,0,0,0,{"$f":"$D$4*'CC Allocations'!J86","v":0},{"$f":"$D$4*'CC Allocations'!K86","v":0},{"$f":"$D$4*'CC Allocations'!L86","v":0},{"$f":"$D$4*'CC Allocations'!M86","v":0},{"$f":"$D$4*'CC Allocations'!N86","v":0},{"$f":"$D$4*'CC Allocations'!O86","v":0},{"$f":"$D$4*'CC Allocations'!P86","v":0},{"$f":"$D$4*'CC Allocations'!Q86","v":0},{"$f":"$D$4*'CC Allocations'!R86","v":0},{"$f":"$D$4*'CC Allocations'!S86","v":0},{"$f":"$D$4*'CC Allocations'!T86","v":0},{"$f":"$D$4*'CC Allocations'!U86","v":0},{"$f":"$D$4*'CC Allocations'!V86","v":0},{"$f":"$D$4*'CC Allocations'!W86","v":0},{"$f":"$D$4*'CC Allocations'!X86","v":0},{"$f":"$D$4*'CC Allocations'!Y86","v":0},{"$f":"$D$4*'CC Allocations'!Z86","v":0},{"$f":"$D$4*'CC Allocations'!AA86","v":0},{"$f":"$D$4*'CC Allocations'!AB86","v":0},{"$f":"$D$4*'CC Allocations'!AC86","v":0},{"$f":"$D$4*'CC Allocations'!AD86","v":0},{"$f":"$D$4*'CC Allocations'!AE86","v":0},{"$f":"$D$4*'CC Allocations'!AF86","v":0},{"$f":"$D$4*'CC Allocations'!AG86","v":0},{"$f":"$D$4*'CC Allocations'!AH86","v":0},{"$f":"$D$4*'CC Allocations'!AI86","v":0},{"$f":"$D$4*'CC Allocations'!AJ86","v":0},{"$f":"$D$4*'CC Allocations'!AK86","v":0},{"$f":"$D$4*'CC Allocations'!AL86","v":0},{"$f":"$D$4*'CC Allocations'!AM86","v":0},{"$f":"$D$4*'CC Allocations'!AN86","v":0},{"$f":"$D$4*'CC Allocations'!AO86","v":0},{"$f":"$D$4*'CC Allocations'!AP86","v":0},{"$f":"$D$4*'CC Allocations'!AQ86","v":0}]
[null,"375 - Central Washington University","375","Central Washington University",0,0,0,0,0,0,{"$f":"$D$4*'CC Allocations'!J87","v":0},{"$f":"$D$4*'CC Allocations'!K87","v":0},{"$f":"$D$4*'CC Allocations'!L87","v":0},{"$f":"$D$4*'CC Allocations'!M87","v":0},{"$f":"$D$4*'CC Allocations'!N87","v":0},{"$f":"$D$4*'CC Allocations'!O87","v":0},{"$f":"$D$4*'CC Allocations'!P87","v":0},{"$f":"$D$4*'CC Allocations'!Q87","v":0},{"$f":"$D$4*'CC Allocations'!R87","v":0},{"$f":"$D$4*'CC Allocations'!S87","v":0},{"$f":"$D$4*'CC Allocations'!T87","v":0},{"$f":"$D$4*'CC Allocations'!U87","v":0},{"$f":"$D$4*'CC Allocations'!V87","v":0},{"$f":"$D$4*'CC Allocations'!W87","v":0},{"$f":"$D$4*'CC Allocations'!X87","v":0},{"$f":"$D$4*'CC Allocations'!Y87","v":0},{"$f":"$D$4*'CC Allocations'!Z87","v":0},{"$f":"$D$4*'CC Allocations'!AA87","v":0},{"$f":"$D$4*'CC Allocations'!AB87","v":0},{"$f":"$D$4*'CC Allocations'!AC87","v":0},{"$f":"$D$4*'CC Allocations'!AD87","v":0},{"$f":"$D$4*'CC Allocations'!AE87","v":0},{"$f":"$D$4*'CC Allocations'!AF87","v":0},{"$f":"$D$4*'CC Allocations'!AG87","v":0},{"$f":"$D$4*'CC Allocations'!AH87","v":0},{"$f":"$D$4*'CC Allocations'!AI87","v":0},{"$f":"$D$4*'CC Allocations'!AJ87","v":0},{"$f":"$D$4*'CC Allocations'!AK87","v":0},{"$f":"$D$4*'CC Allocations'!AL87","v":0},{"$f":"$D$4*'CC Allocations'!AM87","v":0},{"$f":"$D$4*'CC Allocations'!AN87","v":0},{"$f":"$D$4*'CC Allocations'!AO87","v":0},{"$f":"$D$4*'CC Allocations'!AP87","v":0},{"$f":"$D$4*'CC Allocations'!AQ87","v":0}]
[null,"376 - The Evergreen State College","376","The Evergreen State College",14596.806496244986,14596.806496244986,541,9.5905430330124747E-3,0,0,{"$f":"$D$4*'CC Allocations'!J88","v":0},{"$f":"$D$4*'CC Allocations'!K88","v":0},{"$f":"$D$4*'CC Allocations'!L88","v":0},{"$f":"$D$4*'CC Allocations'!M88","v":0},{"$f":"$D$4*'CC Allocations'!N88","v":0},{"$f":"$D$4*'CC Allocations'!O88","v":0},{"$f":"$D$4*'CC Allocations'!P88","v":0},{"$f":"$D$4*'CC Allocations'!Q88","v":0},{"$f":"$D$4*'CC Allocations'!R88","v":0},{"$f":"$D$4*'CC Allocations'!S88","v":0},{"$f":"$D$4*'CC Allocations'!T88","v":0},{"$f":"$D$4*'CC Allocations'!U88","v":0},{"$f":"$D$4*'CC Allocations'!V88","v":0},{"$f":"$D$4*'CC Allocations'!W88","v":0},{"$f":"$D$4*'CC Allocations'!X88","v":0},{"$f":"$D$4*'CC Allocations'!Y88","v":0},{"$f":"$D$4*'CC Allocations'!Z88","v":0},{"$f":"$D$4*'CC Allocations'!AA88","v":0},{"$f":"$D$4*'CC Allocations'!AB88","v":0},{"$f":"$D$4*'CC Allocations'!AC88","v":0},{"$f":"$D$4*'CC Allocations'!AD88","v":0},{"$f":"$D$4*'CC Allocations'!AE88","v":0},{"$f":"$D$4*'CC Allocations'!AF88","v":0},{"$f":"$D$4*'CC Allocations'!AG88","v":0},{"$f":"$D$4*'CC Allocations'!AH88","v":0},{"$f":"$D$4*'CC Allocations'!AI88","v":0},{"$f":"$D$4*'CC Allocations'!AJ88","v":0},{"$f":"$D$4*'CC Allocations'!AK88","v":0},{"$f":"$D$4*'CC Allocations'!AL88","v":0},{"$f":"$D$4*'CC Allocations'!AM88","v":0},{"$f":"$D$4*'CC Allocations'!AN88","v":0},{"$f":"$D$4*'CC Allocations'!AO88","v":0},{"$f":"$D$4*'CC Allocations'!AP88","v":0},{"$f":"$D$4*'CC Allocations'!AQ88","v":0}]
[null,"380 - Western Washington University","380","Western Washington University",0,0,0,0,0,0,{"$f":"$D$4*'CC Allocations'!J89","v":0},{"$f":"$D$4*'CC Allocations'!K89","v":0},{"$f":"$D$4*'CC Allocations'!L89","v":0},{"$f":"$D$4*'CC Allocations'!M89","v":0},{"$f":"$D$4*'CC Allocations'!N89","v":0},{"$f":"$D$4*'CC Allocations'!O89","v":0},{"$f":"$D$4*'CC Allocations'!P89","v":0},{"$f":"$D$4*'CC Allocations'!Q89","v":0},{"$f":"$D$4*'CC Allocations'!R89","v":0},{"$f":"$D$4*'CC Allocations'!S89","v":0},{"$f":"$D$4*'CC Allocations'!T89","v":0},{"$f":"$D$4*'CC Allocations'!U89","v":0},{"$f":"$D$4*'CC Allocations'!V89","v":0},{"$f":"$D$4*'CC Allocations'!W89","v":0},{"$f":"$D$4*'CC Allocations'!X89","v":0},{"$f":"$D$4*'CC Allocations'!Y89","v":0},{"$f":"$D$4*'CC Allocations'!Z89","v":0},{"$f":"$D$4*'CC Allocations'!AA89","v":0},{"$f":"$D$4*'CC Allocations'!AB89","v":0},{"$f":"$D$4*'CC Allocations'!AC89","v":0},{"$f":"$D$4*'CC Allocations'!AD89","v":0},{"$f":"$D$4*'CC Allocations'!AE89","v":0},{"$f":"$D$4*'CC Allocations'!AF89","v":0},{"$f":"$D$4*'CC Allocations'!AG89","v":0},{"$f":"$D$4*'CC Allocations'!AH89","v":0},{"$f":"$D$4*'CC Allocations'!AI89","v":0},{"$f":"$D$4*'CC Allocations'!AJ89","v":0},{"$f":"$D$4*'CC Allocations'!AK89","v":0},{"$f":"$D$4*'CC Allocations'!AL89","v":0},{"$f":"$D$4*'CC Allocations'!AM89","v":0},{"$f":"$D$4*'CC Allocations'!AN89","v":0},{"$f":"$D$4*'CC Allocations'!AO89","v":0},{"$f":"$D$4*'CC Allocations'!AP89","v":0},{"$f":"$D$4*'CC Allocations'!AQ89","v":0}]
[null,"387 - Washington State Arts Commission","387","Washington State Arts Commission",539.62316067449126,539.62316067449126,20,3.5454872580452775E-4,0,0,{"$f":"$D$4*'CC Allocations'!J90","v":0},{"$f":"$D$4*'CC Allocations'!K90","v":0},{"$f":"$D$4*'CC Allocations'!L90","v":0},{"$f":"$D$4*'CC Allocations'!M90","v":0},{"$f":"$D$4*'CC Allocations'!N90","v":0},{"$f":"$D$4*'CC Allocations'!O90","v":0},{"$f":"$D$4*'CC Allocations'!P90","v":0},{"$f":"$D$4*'CC Allocations'!Q90","v":0},{"$f":"$D$4*'CC Allocations'!R90","v":0},{"$f":"$D$4*'CC Allocations'!S90","v":0},{"$f":"$D$4*'CC Allocations'!T90","v":0},{"$f":"$D$4*'CC Allocations'!U90","v":0},{"$f":"$D$4*'CC Allocations'!V90","v":0},{"$f":"$D$4*'CC Allocations'!W90","v":0},{"$f":"$D$4*'CC Allocations'!X90","v":0},{"$f":"$D$4*'CC Allocations'!Y90","v":0},{"$f":"$D$4*'CC Allocations'!Z90","v":0},{"$f":"$D$4*'CC Allocations'!AA90","v":0},{"$f":"$D$4*'CC Allocations'!AB90","v":0},{"$f":"$D$4*'CC Allocations'!AC90","v":0},{"$f":"$D$4*'CC Allocations'!AD90","v":0},{"$f":"$D$4*'CC Allocations'!AE90","v":0},{"$f":"$D$4*'CC Allocations'!AF90","v":0},{"$f":"$D$4*'CC Allocations'!AG90","v":0},{"$f":"$D$4*'CC Allocations'!AH90","v":0},{"$f":"$D$4*'CC Allocations'!AI90","v":0},{"$f":"$D$4*'CC Allocations'!AJ90","v":0},{"$f":"$D$4*'CC Allocations'!AK90","v":0},{"$f":"$D$4*'CC Allocations'!AL90","v":0},{"$f":"$D$4*'CC Allocations'!AM90","v":0},{"$f":"$D$4*'CC Allocations'!AN90","v":0},{"$f":"$D$4*'CC Allocations'!AO90","v":0},{"$f":"$D$4*'CC Allocations'!AP90","v":0},{"$f":"$D$4*'CC Allocations'!AQ90","v":0}]
[null,"390 - Washington State Historical Society","390","Washington State Historical Society",26.981158033724558,26.981158033724558,1,1.7727436290226384E-5,0,0,{"$f":"$D$4*'CC Allocations'!J91","v":0},{"$f":"$D$4*'CC Allocations'!K91","v":0},{"$f":"$D$4*'CC Allocations'!L91","v":0},{"$f":"$D$4*'CC Allocations'!M91","v":0},{"$f":"$D$4*'CC Allocations'!N91","v":0},{"$f":"$D$4*'CC Allocations'!O91","v":0},{"$f":"$D$4*'CC Allocations'!P91","v":0},{"$f":"$D$4*'CC Allocations'!Q91","v":0},{"$f":"$D$4*'CC Allocations'!R91","v":0},{"$f":"$D$4*'CC Allocations'!S91","v":0},{"$f":"$D$4*'CC Allocations'!T91","v":0},{"$f":"$D$4*'CC Allocations'!U91","v":0},{"$f":"$D$4*'CC Allocations'!V91","v":0},{"$f":"$D$4*'CC Allocations'!W91","v":0},{"$f":"$D$4*'CC Allocations'!X91","v":0},{"$f":"$D$4*'CC Allocations'!Y91","v":0},{"$f":"$D$4*'CC Allocations'!Z91","v":0},{"$f":"$D$4*'CC Allocations'!AA91","v":0},{"$f":"$D$4*'CC Allocations'!AB91","v":0},{"$f":"$D$4*'CC Allocations'!AC91","v":0},{"$f":"$D$4*'CC Allocations'!AD91","v":0},{"$f":"$D$4*'CC Allocations'!AE91","v":0},{"$f":"$D$4*'CC Allocations'!AF91","v":0},{"$f":"$D$4*'CC Allocations'!AG91","v":0},{"$f":"$D$4*'CC Allocations'!AH91","v":0},{"$f":"$D$4*'CC Allocations'!AI91","v":0},{"$f":"$D$4*'CC Allocations'!AJ91","v":0},{"$f":"$D$4*'CC Allocations'!AK91","v":0},{"$f":"$D$4*'CC Allocations'!AL91","v":0},{"$f":"$D$4*'CC Allocations'!AM91","v":0},{"$f":"$D$4*'CC Allocations'!AN91","v":0},{"$f":"$D$4*'CC Allocations'!AO91","v":0},{"$f":"$D$4*'CC Allocations'!AP91","v":0},{"$f":"$D$4*'CC Allocations'!AQ91","v":0}]
[null,"395 - Eastern Washington State Historical Society","395","Eastern Washington State Historical Society",0,0,0,0,0,0,{"$f":"$D$4*'CC Allocations'!J92","v":0},{"$f":"$D$4*'CC Allocations'!K92","v":0},{"$f":"$D$4*'CC Allocations'!L92","v":0},{"$f":"$D$4*'CC Allocations'!M92","v":0},{"$f":"$D$4*'CC Allocations'!N92","v":0},{"$f":"$D$4*'CC Allocations'!O92","v":0},{"$f":"$D$4*'CC Allocations'!P92","v":0},{"$f":"$D$4*'CC Allocations'!Q92","v":0},{"$f":"$D$4*'CC Allocations'!R92","v":0},{"$f":"$D$4*'CC Allocations'!S92","v":0},{"$f":"$D$4*'CC Allocations'!T92","v":0},{"$f":"$D$4*'CC Allocations'!U92","v":0},{"$f":"$D$4*'CC Allocations'!V92","v":0},{"$f":"$D$4*'CC Allocations'!W92","v":0},{"$f":"$D$4*'CC Allocations'!X92","v":0},{"$f":"$D$4*'CC Allocations'!Y92","v":0},{"$f":"$D$4*'CC Allocations'!Z92","v":0},{"$f":"$D$4*'CC Allocations'!AA92","v":0},{"$f":"$D$4*'CC Allocations'!AB92","v":0},{"$f":"$D$4*'CC Allocations'!AC92","v":0},{"$f":"$D$4*'CC Allocations'!AD92","v":0},{"$f":"$D$4*'CC Allocations'!AE92","v":0},{"$f":"$D$4*'CC Allocations'!AF92","v":0},{"$f":"$D$4*'CC Allocations'!AG92","v":0},{"$f":"$D$4*'CC Allocations'!AH92","v":0},{"$f":"$D$4*'CC Allocations'!AI92","v":0},{"$f":"$D$4*'CC Allocations'!AJ92","v":0},{"$f":"$D$4*'CC Allocations'!AK92","v":0},{"$f":"$D$4*'CC Allocations'!AL92","v":0},{"$f":"$D$4*'CC Allocations'!AM92","v":0},{"$f":"$D$4*'CC Allocations'!AN92","v":0},{"$f":"$D$4*'CC Allocations'!AO92","v":0},{"$f":"$D$4*'CC Allocations'!AP92","v":0},{"$f":"$D$4*'CC Allocations'!AQ92","v":0}]
[null,"405 - Department of Transportation","405","Department of Transportation",110592.19838380584,41416.077581767197,1535,2.7211614705497499E-2,7.3376091838482536E-3,4.5450802103836153E-2,{"$f":"$D$4*'CC Allocations'!J93","v":0},{"$f":"$D$4*'CC Allocations'!K93","v":0},{"$f":"$D$4*'CC Allocations'!L93","v":0},{"$f":"$D$4*'CC Allocations'!M93","v":0},{"$f":"$D$4*'CC Allocations'!N93","v":0},{"$f":"$D$4*'CC Allocations'!O93","v":0},{"$f":"$D$4*'CC Allocations'!P93","v":0},{"$f":"$D$4*'CC Allocations'!Q93","v":0},{"$f":"$D$4*'CC Allocations'!R93","v":0},{"$f":"$D$4*'CC Allocations'!S93","v":69176.12080203864},{"$f":"$D$4*'CC Allocations'!T93","v":0},{"$f":"$D$4*'CC Allocations'!U93","v":0},{"$f":"$D$4*'CC Allocations'!V93","v":0},{"$f":"$D$4*'CC Allocations'!W93","v":0},{"$f":"$D$4*'CC Allocations'!X93","v":0},{"$f":"$D$4*'CC Allocations'!Y93","v":0},{"$f":"$D$4*'CC Allocations'!Z93","v":0},{"$f":"$D$4*'CC Allocations'!AA93","v":0},{"$f":"$D$4*'CC Allocations'!AB93","v":0},{"$f":"$D$4*'CC Allocations'!AC93","v":0},{"$f":"$D$4*'CC Allocations'!AD93","v":0},{"$f":"$D$4*'CC Allocations'!AE93","v":0},{"$f":"$D$4*'CC Allocations'!AF93","v":0},{"$f":"$D$4*'CC Allocations'!AG93","v":0},{"$f":"$D$4*'CC Allocations'!AH93","v":0},{"$f":"$D$4*'CC Allocations'!AI93","v":0},{"$f":"$D$4*'CC Allocations'!AJ93","v":0},{"$f":"$D$4*'CC Allocations'!AK93","v":0},{"$f":"$D$4*'CC Allocations'!AL93","v":0},{"$f":"$D$4*'CC Allocations'!AM93","v":0},{"$f":"$D$4*'CC Allocations'!AN93","v":0},{"$f":"$D$4*'CC Allocations'!AO93","v":0},{"$f":"$D$4*'CC Allocations'!AP93","v":0},{"$f":"$D$4*'CC Allocations'!AQ93","v":0}]
[null,"406 - County Road Administration Board","406","County Road Administration Board",431.69852853959293,431.69852853959293,16,2.8363898064362214E-4,0,0,{"$f":"$D$4*'CC Allocations'!J94","v":0},{"$f":"$D$4*'CC Allocations'!K94","v":0},{"$f":"$D$4*'CC Allocations'!L94","v":0},{"$f":"$D$4*'CC Allocations'!M94","v":0},{"$f":"$D$4*'CC Allocations'!N94","v":0},{"$f":"$D$4*'CC Allocations'!O94","v":0},{"$f":"$D$4*'CC Allocations'!P94","v":0},{"$f":"$D$4*'CC Allocations'!Q94","v":0},{"$f":"$D$4*'CC Allocations'!R94","v":0},{"$f":"$D$4*'CC Allocations'!S94","v":0},{"$f":"$D$4*'CC Allocations'!T94","v":0},{"$f":"$D$4*'CC Allocations'!U94","v":0},{"$f":"$D$4*'CC Allocations'!V94","v":0},{"$f":"$D$4*'CC Allocations'!W94","v":0},{"$f":"$D$4*'CC Allocations'!X94","v":0},{"$f":"$D$4*'CC Allocations'!Y94","v":0},{"$f":"$D$4*'CC Allocations'!Z94","v":0},{"$f":"$D$4*'CC Allocations'!AA94","v":0},{"$f":"$D$4*'CC Allocations'!AB94","v":0},{"$f":"$D$4*'CC Allocations'!AC94","v":0},{"$f":"$D$4*'CC Allocations'!AD94","v":0},{"$f":"$D$4*'CC Allocations'!AE94","v":0},{"$f":"$D$4*'CC Allocations'!AF94","v":0},{"$f":"$D$4*'CC Allocations'!AG94","v":0},{"$f":"$D$4*'CC Allocations'!AH94","v":0},{"$f":"$D$4*'CC Allocations'!AI94","v":0},{"$f":"$D$4*'CC Allocations'!AJ94","v":0},{"$f":"$D$4*'CC Allocations'!AK94","v":0},{"$f":"$D$4*'CC Allocations'!AL94","v":0},{"$f":"$D$4*'CC Allocations'!AM94","v":0},{"$f":"$D$4*'CC Allocations'!AN94","v":0},{"$f":"$D$4*'CC Allocations'!AO94","v":0},{"$f":"$D$4*'CC Allocations'!AP94","v":0},{"$f":"$D$4*'CC Allocations'!AQ94","v":0}]
[null,"407 - Transportation Improvement Board","407","Transportation Improvement Board",296.79273837097014,296.79273837097014,11,1.9500179919249025E-4,0,0,{"$f":"$D$4*'CC Allocations'!J95","v":0},{"$f":"$D$4*'CC Allocations'!K95","v":0},{"$f":"$D$4*'CC Allocations'!L95","v":0},{"$f":"$D$4*'CC Allocations'!M95","v":0},{"$f":"$D$4*'CC Allocations'!N95","v":0},{"$f":"$D$4*'CC Allocations'!O95","v":0},{"$f":"$D$4*'CC Allocations'!P95","v":0},{"$f":"$D$4*'CC Allocations'!Q95","v":0},{"$f":"$D$4*'CC Allocations'!R95","v":0},{"$f":"$D$4*'CC Allocations'!S95","v":0},{"$f":"$D$4*'CC Allocations'!T95","v":0},{"$f":"$D$4*'CC Allocations'!U95","v":0},{"$f":"$D$4*'CC Allocations'!V95","v":0},{"$f":"$D$4*'CC Allocations'!W95","v":0},{"$f":"$D$4*'CC Allocations'!X95","v":0},{"$f":"$D$4*'CC Allocations'!Y95","v":0},{"$f":"$D$4*'CC Allocations'!Z95","v":0},{"$f":"$D$4*'CC Allocations'!AA95","v":0},{"$f":"$D$4*'CC Allocations'!AB95","v":0},{"$f":"$D$4*'CC Allocations'!AC95","v":0},{"$f":"$D$4*'CC Allocations'!AD95","v":0},{"$f":"$D$4*'CC Allocations'!AE95","v":0},{"$f":"$D$4*'CC Allocations'!AF95","v":0},{"$f":"$D$4*'CC Allocations'!AG95","v":0},{"$f":"$D$4*'CC Allocations'!AH95","v":0},{"$f":"$D$4*'CC Allocations'!AI95","v":0},{"$f":"$D$4*'CC Allocations'!AJ95","v":0},{"$f":"$D$4*'CC Allocations'!AK95","v":0},{"$f":"$D$4*'CC Allocations'!AL95","v":0},{"$f":"$D$4*'CC Allocations'!AM95","v":0},{"$f":"$D$4*'CC Allocations'!AN95","v":0},{"$f":"$D$4*'CC Allocations'!AO95","v":0},{"$f":"$D$4*'CC Allocations'!AP95","v":0},{"$f":"$D$4*'CC Allocations'!AQ95","v":0}]
[null,"410 - Transportation Commission","410","Transportation Commission",161.88694820234736,161.88694820234736,6,1.0636461774135831E-4,0,0,{"$f":"$D$4*'CC Allocations'!J96","v":0},{"$f":"$D$4*'CC Allocations'!K96","v":0},{"$f":"$D$4*'CC Allocations'!L96","v":0},{"$f":"$D$4*'CC Allocations'!M96","v":0},{"$f":"$D$4*'CC Allocations'!N96","v":0},{"$f":"$D$4*'CC Allocations'!O96","v":0},{"$f":"$D$4*'CC Allocations'!P96","v":0},{"$f":"$D$4*'CC Allocations'!Q96","v":0},{"$f":"$D$4*'CC Allocations'!R96","v":0},{"$f":"$D$4*'CC Allocations'!S96","v":0},{"$f":"$D$4*'CC Allocations'!T96","v":0},{"$f":"$D$4*'CC Allocations'!U96","v":0},{"$f":"$D$4*'CC Allocations'!V96","v":0},{"$f":"$D$4*'CC Allocations'!W96","v":0},{"$f":"$D$4*'CC Allocations'!X96","v":0},{"$f":"$D$4*'CC Allocations'!Y96","v":0},{"$f":"$D$4*'CC Allocations'!Z96","v":0},{"$f":"$D$4*'CC Allocations'!AA96","v":0},{"$f":"$D$4*'CC Allocations'!AB96","v":0},{"$f":"$D$4*'CC Allocations'!AC96","v":0},{"$f":"$D$4*'CC Allocations'!AD96","v":0},{"$f":"$D$4*'CC Allocations'!AE96","v":0},{"$f":"$D$4*'CC Allocations'!AF96","v":0},{"$f":"$D$4*'CC Allocations'!AG96","v":0},{"$f":"$D$4*'CC Allocations'!AH96","v":0},{"$f":"$D$4*'CC Allocations'!AI96","v":0},{"$f":"$D$4*'CC Allocations'!AJ96","v":0},{"$f":"$D$4*'CC Allocations'!AK96","v":0},{"$f":"$D$4*'CC Allocations'!AL96","v":0},{"$f":"$D$4*'CC Allocations'!AM96","v":0},{"$f":"$D$4*'CC Allocations'!AN96","v":0},{"$f":"$D$4*'CC Allocations'!AO96","v":0},{"$f":"$D$4*'CC Allocations'!AP96","v":0},{"$f":"$D$4*'CC Allocations'!AQ96","v":0}]
[null,"411 - Freight Mobility Strategic Investment Board","411","Freight Mobility Strategic Investment Board",53.962316067449116,53.962316067449116,2,3.5454872580452768E-5,0,0,{"$f":"$D$4*'CC Allocations'!J97","v":0},{"$f":"$D$4*'CC Allocations'!K97","v":0},{"$f":"$D$4*'CC Allocations'!L97","v":0},{"$f":"$D$4*'CC Allocations'!M97","v":0},{"$f":"$D$4*'CC Allocations'!N97","v":0},{"$f":"$D$4*'CC Allocations'!O97","v":0},{"$f":"$D$4*'CC Allocations'!P97","v":0},{"$f":"$D$4*'CC Allocations'!Q97","v":0},{"$f":"$D$4*'CC Allocations'!R97","v":0},{"$f":"$D$4*'CC Allocations'!S97","v":0},{"$f":"$D$4*'CC Allocations'!T97","v":0},{"$f":"$D$4*'CC Allocations'!U97","v":0},{"$f":"$D$4*'CC Allocations'!V97","v":0},{"$f":"$D$4*'CC Allocations'!W97","v":0},{"$f":"$D$4*'CC Allocations'!X97","v":0},{"$f":"$D$4*'CC Allocations'!Y97","v":0},{"$f":"$D$4*'CC Allocations'!Z97","v":0},{"$f":"$D$4*'CC Allocations'!AA97","v":0},{"$f":"$D$4*'CC Allocations'!AB97","v":0},{"$f":"$D$4*'CC Allocations'!AC97","v":0},{"$f":"$D$4*'CC Allocations'!AD97","v":0},{"$f":"$D$4*'CC Allocations'!AE97","v":0},{"$f":"$D$4*'CC Allocations'!AF97","v":0},{"$f":"$D$4*'CC Allocations'!AG97","v":0},{"$f":"$D$4*'CC Allocations'!AH97","v":0},{"$f":"$D$4*'CC Allocations'!AI97","v":0},{"$f":"$D$4*'CC Allocations'!AJ97","v":0},{"$f":"$D$4*'CC Allocations'!AK97","v":0},{"$f":"$D$4*'CC Allocations'!AL97","v":0},{"$f":"$D$4*'CC Allocations'!AM97","v":0},{"$f":"$D$4*'CC Allocations'!AN97","v":0},{"$f":"$D$4*'CC Allocations'!AO97","v":0},{"$f":"$D$4*'CC Allocations'!AP97","v":0},{"$f":"$D$4*'CC Allocations'!AQ97","v":0}]
[null,"460 - Columbia River Gorge Commission","460","Columbia River Gorge Commission",0,0,0,0,0,0,{"$f":"$D$4*'CC Allocations'!J98","v":0},{"$f":"$D$4*'CC Allocations'!K98","v":0},{"$f":"$D$4*'CC Allocations'!L98","v":0},{"$f":"$D$4*'CC Allocations'!M98","v":0},{"$f":"$D$4*'CC Allocations'!N98","v":0},{"$f":"$D$4*'CC Allocations'!O98","v":0},{"$f":"$D$4*'CC Allocations'!P98","v":0},{"$f":"$D$4*'CC Allocations'!Q98","v":0},{"$f":"$D$4*'CC Allocations'!R98","v":0},{"$f":"$D$4*'CC Allocations'!S98","v":0},{"$f":"$D$4*'CC Allocations'!T98","v":0},{"$f":"$D$4*'CC Allocations'!U98","v":0},{"$f":"$D$4*'CC Allocations'!V98","v":0},{"$f":"$D$4*'CC Allocations'!W98","v":0},{"$f":"$D$4*'CC Allocations'!X98","v":0},{"$f":"$D$4*'CC Allocations'!Y98","v":0},{"$f":"$D$4*'CC Allocations'!Z98","v":0},{"$f":"$D$4*'CC Allocations'!AA98","v":0},{"$f":"$D$4*'CC Allocations'!AB98","v":0},{"$f":"$D$4*'CC Allocations'!AC98","v":0},{"$f":"$D$4*'CC Allocations'!AD98","v":0},{"$f":"$D$4*'CC Allocations'!AE98","v":0},{"$f":"$D$4*'CC Allocations'!AF98","v":0},{"$f":"$D$4*'CC Allocations'!AG98","v":0},{"$f":"$D$4*'CC Allocations'!AH98","v":0},{"$f":"$D$4*'CC Allocations'!AI98","v":0},{"$f":"$D$4*'CC Allocations'!AJ98","v":0},{"$f":"$D$4*'CC Allocations'!AK98","v":0},{"$f":"$D$4*'CC Allocations'!AL98","v":0},{"$f":"$D$4*'CC Allocations'!AM98","v":0},{"$f":"$D$4*'CC Allocations'!AN98","v":0},{"$f":"$D$4*'CC Allocations'!AO98","v":0},{"$f":"$D$4*'CC Allocations'!AP98","v":0},{"$f":"$D$4*'CC Allocations'!AQ98","v":0}]
[null,"461 - Department of Ecology","461","Department of Ecology",26252.666766813996,26252.666766813996,973,1.7248795510390273E-2,0,0,{"$f":"$D$4*'CC Allocations'!J99","v":0},{"$f":"$D$4*'CC Allocations'!K99","v":0},{"$f":"$D$4*'CC Allocations'!L99","v":0},{"$f":"$D$4*'CC Allocations'!M99","v":0},{"$f":"$D$4*'CC Allocations'!N99","v":0},{"$f":"$D$4*'CC Allocations'!O99","v":0},{"$f":"$D$4*'CC Allocations'!P99","v":0},{"$f":"$D$4*'CC Allocations'!Q99","v":0},{"$f":"$D$4*'CC Allocations'!R99","v":0},{"$f":"$D$4*'CC Allocations'!S99","v":0},{"$f":"$D$4*'CC Allocations'!T99","v":0},{"$f":"$D$4*'CC Allocations'!U99","v":0},{"$f":"$D$4*'CC Allocations'!V99","v":0},{"$f":"$D$4*'CC Allocations'!W99","v":0},{"$f":"$D$4*'CC Allocations'!X99","v":0},{"$f":"$D$4*'CC Allocations'!Y99","v":0},{"$f":"$D$4*'CC Allocations'!Z99","v":0},{"$f":"$D$4*'CC Allocations'!AA99","v":0},{"$f":"$D$4*'CC Allocations'!AB99","v":0},{"$f":"$D$4*'CC Allocations'!AC99","v":0},{"$f":"$D$4*'CC Allocations'!AD99","v":0},{"$f":"$D$4*'CC Allocations'!AE99","v":0},{"$f":"$D$4*'CC Allocations'!AF99","v":0},{"$f":"$D$4*'CC Allocations'!AG99","v":0},{"$f":"$D$4*'CC Allocations'!AH99","v":0},{"$f":"$D$4*'CC Allocations'!AI99","v":0},{"$f":"$D$4*'CC Allocations'!AJ99","v":0},{"$f":"$D$4*'CC Allocations'!AK99","v":0},{"$f":"$D$4*'CC Allocations'!AL99","v":0},{"$f":"$D$4*'CC Allocations'!AM99","v":0},{"$f":"$D$4*'CC Allocations'!AN99","v":0},{"$f":"$D$4*'CC Allocations'!AO99","v":0},{"$f":"$D$4*'CC Allocations'!AP99","v":0},{"$f":"$D$4*'CC Allocations'!AQ99","v":0}]
[null,"462 - Pollution Liability Insurance Program","462","Pollution Liability Insurance Program",485.66084460704201,485.66084460704201,18,3.1909385322407489E-4,0,0,{"$f":"$D$4*'CC Allocations'!J100","v":0},{"$f":"$D$4*'CC Allocations'!K100","v":0},{"$f":"$D$4*'CC Allocations'!L100","v":0},{"$f":"$D$4*'CC Allocations'!M100","v":0},{"$f":"$D$4*'CC Allocations'!N100","v":0},{"$f":"$D$4*'CC Allocations'!O100","v":0},{"$f":"$D$4*'CC Allocations'!P100","v":0},{"$f":"$D$4*'CC Allocations'!Q100","v":0},{"$f":"$D$4*'CC Allocations'!R100","v":0},{"$f":"$D$4*'CC Allocations'!S100","v":0},{"$f":"$D$4*'CC Allocations'!T100","v":0},{"$f":"$D$4*'CC Allocations'!U100","v":0},{"$f":"$D$4*'CC Allocations'!V100","v":0},{"$f":"$D$4*'CC Allocations'!W100","v":0},{"$f":"$D$4*'CC Allocations'!X100","v":0},{"$f":"$D$4*'CC Allocations'!Y100","v":0},{"$f":"$D$4*'CC Allocations'!Z100","v":0},{"$f":"$D$4*'CC Allocations'!AA100","v":0},{"$f":"$D$4*'CC Allocations'!AB100","v":0},{"$f":"$D$4*'CC Allocations'!AC100","v":0},{"$f":"$D$4*'CC Allocations'!AD100","v":0},{"$f":"$D$4*'CC Allocations'!AE100","v":0},{"$f":"$D$4*'CC Allocations'!AF100","v":0},{"$f":"$D$4*'CC Allocations'!AG100","v":0},{"$f":"$D$4*'CC Allocations'!AH100","v":0},{"$f":"$D$4*'CC Allocations'!AI100","v":0},{"$f":"$D$4*'CC Allocations'!AJ100","v":0},{"$f":"$D$4*'CC Allocations'!AK100","v":0},{"$f":"$D$4*'CC Allocations'!AL100","v":0},{"$f":"$D$4*'CC Allocations'!AM100","v":0},{"$f":"$D$4*'CC Allocations'!AN100","v":0},{"$f":"$D$4*'CC Allocations'!AO100","v":0},{"$f":"$D$4*'CC Allocations'!AP100","v":0},{"$f":"$D$4*'CC Allocations'!AQ100","v":0}]
[null,"465 - State Parks and Recreation Commission","465","State Parks and Recreation Commission",5018.495394272768,5018.495394272768,186,3.2973031499821076E-3,0,0,{"$f":"$D$4*'CC Allocations'!J101","v":0},{"$f":"$D$4*'CC Allocations'!K101","v":0},{"$f":"$D$4*'CC Allocations'!L101","v":0},{"$f":"$D$4*'CC Allocations'!M101","v":0},{"$f":"$D$4*'CC Allocations'!N101","v":0},{"$f":"$D$4*'CC Allocations'!O101","v":0},{"$f":"$D$4*'CC Allocations'!P101","v":0},{"$f":"$D$4*'CC Allocations'!Q101","v":0},{"$f":"$D$4*'CC Allocations'!R101","v":0},{"$f":"$D$4*'CC Allocations'!S101","v":0},{"$f":"$D$4*'CC Allocations'!T101","v":0},{"$f":"$D$4*'CC Allocations'!U101","v":0},{"$f":"$D$4*'CC Allocations'!V101","v":0},{"$f":"$D$4*'CC Allocations'!W101","v":0},{"$f":"$D$4*'CC Allocations'!X101","v":0},{"$f":"$D$4*'CC Allocations'!Y101","v":0},{"$f":"$D$4*'CC Allocations'!Z101","v":0},{"$f":"$D$4*'CC Allocations'!AA101","v":0},{"$f":"$D$4*'CC Allocations'!AB101","v":0},{"$f":"$D$4*'CC Allocations'!AC101","v":0},{"$f":"$D$4*'CC Allocations'!AD101","v":0},{"$f":"$D$4*'CC Allocations'!AE101","v":0},{"$f":"$D$4*'CC Allocations'!AF101","v":0},{"$f":"$D$4*'CC Allocations'!AG101","v":0},{"$f":"$D$4*'CC Allocations'!AH101","v":0},{"$f":"$D$4*'CC Allocations'!AI101","v":0},{"$f":"$D$4*'CC Allocations'!AJ101","v":0},{"$f":"$D$4*'CC Allocations'!AK101","v":0},{"$f":"$D$4*'CC Allocations'!AL101","v":0},{"$f":"$D$4*'CC Allocations'!AM101","v":0},{"$f":"$D$4*'CC Allocations'!AN101","v":0},{"$f":"$D$4*'CC Allocations'!AO101","v":0},{"$f":"$D$4*'CC Allocations'!AP101","v":0},{"$f":"$D$4*'CC Allocations'!AQ101","v":0}]
[null,"467 - Recreation and Conservation Funding Board","467","Recreation and Conservation Funding Board",6117.9658257865012,1645.8506400571982,61,1.0813736137038096E-3,4.7195062157510915E-4,2.9383148395067688E-3,{"$f":"$D$4*'CC Allocations'!J102","v":0},{"$f":"$D$4*'CC Allocations'!K102","v":0},{"$f":"$D$4*'CC Allocations'!L102","v":0},{"$f":"$D$4*'CC Allocations'!M102","v":0},{"$f":"$D$4*'CC Allocations'!N102","v":0},{"$f":"$D$4*'CC Allocations'!O102","v":0},{"$f":"$D$4*'CC Allocations'!P102","v":0},{"$f":"$D$4*'CC Allocations'!Q102","v":4472.1151857293025},{"$f":"$D$4*'CC Allocations'!R102","v":0},{"$f":"$D$4*'CC Allocations'!S102","v":0},{"$f":"$D$4*'CC Allocations'!T102","v":0},{"$f":"$D$4*'CC Allocations'!U102","v":0},{"$f":"$D$4*'CC Allocations'!V102","v":0},{"$f":"$D$4*'CC Allocations'!W102","v":0},{"$f":"$D$4*'CC Allocations'!X102","v":0},{"$f":"$D$4*'CC Allocations'!Y102","v":0},{"$f":"$D$4*'CC Allocations'!Z102","v":0},{"$f":"$D$4*'CC Allocations'!AA102","v":0},{"$f":"$D$4*'CC Allocations'!AB102","v":0},{"$f":"$D$4*'CC Allocations'!AC102","v":0},{"$f":"$D$4*'CC Allocations'!AD102","v":0},{"$f":"$D$4*'CC Allocations'!AE102","v":0},{"$f":"$D$4*'CC Allocations'!AF102","v":0},{"$f":"$D$4*'CC Allocations'!AG102","v":0},{"$f":"$D$4*'CC Allocations'!AH102","v":0},{"$f":"$D$4*'CC Allocations'!AI102","v":0},{"$f":"$D$4*'CC Allocations'!AJ102","v":0},{"$f":"$D$4*'CC Allocations'!AK102","v":0},{"$f":"$D$4*'CC Allocations'!AL102","v":0},{"$f":"$D$4*'CC Allocations'!AM102","v":0},{"$f":"$D$4*'CC Allocations'!AN102","v":0},{"$f":"$D$4*'CC Allocations'!AO102","v":0},{"$f":"$D$4*'CC Allocations'!AP102","v":0},{"$f":"$D$4*'CC Allocations'!AQ102","v":0}]
[null,"468 - Environmental and Land Use Hearings Office","468","Environmental and Land Use Hearings Office",269.81158033724563,269.81158033724563,10,1.7727436290226387E-4,0,0,{"$f":"$D$4*'CC Allocations'!J103","v":0},{"$f":"$D$4*'CC Allocations'!K103","v":0},{"$f":"$D$4*'CC Allocations'!L103","v":0},{"$f":"$D$4*'CC Allocations'!M103","v":0},{"$f":"$D$4*'CC Allocations'!N103","v":0},{"$f":"$D$4*'CC Allocations'!O103","v":0},{"$f":"$D$4*'CC Allocations'!P103","v":0},{"$f":"$D$4*'CC Allocations'!Q103","v":0},{"$f":"$D$4*'CC Allocations'!R103","v":0},{"$f":"$D$4*'CC Allocations'!S103","v":0},{"$f":"$D$4*'CC Allocations'!T103","v":0},{"$f":"$D$4*'CC Allocations'!U103","v":0},{"$f":"$D$4*'CC Allocations'!V103","v":0},{"$f":"$D$4*'CC Allocations'!W103","v":0},{"$f":"$D$4*'CC Allocations'!X103","v":0},{"$f":"$D$4*'CC Allocations'!Y103","v":0},{"$f":"$D$4*'CC Allocations'!Z103","v":0},{"$f":"$D$4*'CC Allocations'!AA103","v":0},{"$f":"$D$4*'CC Allocations'!AB103","v":0},{"$f":"$D$4*'CC Allocations'!AC103","v":0},{"$f":"$D$4*'CC Allocations'!AD103","v":0},{"$f":"$D$4*'CC Allocations'!AE103","v":0},{"$f":"$D$4*'CC Allocations'!AF103","v":0},{"$f":"$D$4*'CC Allocations'!AG103","v":0},{"$f":"$D$4*'CC Allocations'!AH103","v":0},{"$f":"$D$4*'CC Allocations'!AI103","v":0},{"$f":"$D$4*'CC Allocations'!AJ103","v":0},{"$f":"$D$4*'CC Allocations'!AK103","v":0},{"$f":"$D$4*'CC Allocations'!AL103","v":0},{"$f":"$D$4*'CC Allocations'!AM103","v":0},{"$f":"$D$4*'CC Allocations'!AN103","v":0},{"$f":"$D$4*'CC Allocations'!AO103","v":0},{"$f":"$D$4*'CC Allocations'!AP103","v":0},{"$f":"$D$4*'CC Allocations'!AQ103","v":0}]
[null,"471 - State Conservation Commission","471","State Conservation Commission",431.69852853959293,431.69852853959293,16,2.8363898064362214E-4,0,0,{"$f":"$D$4*'CC Allocations'!J104","v":0},{"$f":"$D$4*'CC Allocations'!K104","v":0},{"$f":"$D$4*'CC Allocations'!L104","v":0},{"$f":"$D$4*'CC Allocations'!M104","v":0},{"$f":"$D$4*'CC Allocations'!N104","v":0},{"$f":"$D$4*'CC Allocations'!O104","v":0},{"$f":"$D$4*'CC Allocations'!P104","v":0},{"$f":"$D$4*'CC Allocations'!Q104","v":0},{"$f":"$D$4*'CC Allocations'!R104","v":0},{"$f":"$D$4*'CC Allocations'!S104","v":0},{"$f":"$D$4*'CC Allocations'!T104","v":0},{"$f":"$D$4*'CC Allocations'!U104","v":0},{"$f":"$D$4*'CC Allocations'!V104","v":0},{"$f":"$D$4*'CC Allocations'!W104","v":0},{"$f":"$D$4*'CC Allocations'!X104","v":0},{"$f":"$D$4*'CC Allocations'!Y104","v":0},{"$f":"$D$4*'CC Allocations'!Z104","v":0},{"$f":"$D$4*'CC Allocations'!AA104","v":0},{"$f":"$D$4*'CC Allocations'!AB104","v":0},{"$f":"$D$4*'CC Allocations'!AC104","v":0},{"$f":"$D$4*'CC Allocations'!AD104","v":0},{"$f":"$D$4*'CC Allocations'!AE104","v":0},{"$f":"$D$4*'CC Allocations'!AF104","v":0},{"$f":"$D$4*'CC Allocations'!AG104","v":0},{"$f":"$D$4*'CC Allocations'!AH104","v":0},{"$f":"$D$4*'CC Allocations'!AI104","v":0},{"$f":"$D$4*'CC Allocations'!AJ104","v":0},{"$f":"$D$4*'CC Allocations'!AK104","v":0},{"$f":"$D$4*'CC Allocations'!AL104","v":0},{"$f":"$D$4*'CC Allocations'!AM104","v":0},{"$f":"$D$4*'CC Allocations'!AN104","v":0},{"$f":"$D$4*'CC Allocations'!AO104","v":0},{"$f":"$D$4*'CC Allocations'!AP104","v":0},{"$f":"$D$4*'CC Allocations'!AQ104","v":0}]
[null,"477 - Department of Fish and Wildlife","477","Department of Fish and Wildlife",73629.220659428989,20370.774315462044,755,1.3384214399120922E-2,5.6204627591810935E-3,3.4992408898795617E-2,{"$f":"$D$4*'CC Allocations'!J105","v":0},{"$f":"$D$4*'CC Allocations'!K105","v":0},{"$f":"$D$4*'CC Allocations'!L105","v":0},{"$f":"$D$4*'CC Allocations'!M105","v":0},{"$f":"$D$4*'CC Allocations'!N105","v":0},{"$f":"$D$4*'CC Allocations'!O105","v":0},{"$f":"$D$4*'CC Allocations'!P105","v":0},{"$f":"$D$4*'CC Allocations'!Q105","v":53258.446343966942},{"$f":"$D$4*'CC Allocations'!R105","v":0},{"$f":"$D$4*'CC Allocations'!S105","v":0},{"$f":"$D$4*'CC Allocations'!T105","v":0},{"$f":"$D$4*'CC Allocations'!U105","v":0},{"$f":"$D$4*'CC Allocations'!V105","v":0},{"$f":"$D$4*'CC Allocations'!W105","v":0},{"$f":"$D$4*'CC Allocations'!X105","v":0},{"$f":"$D$4*'CC Allocations'!Y105","v":0},{"$f":"$D$4*'CC Allocations'!Z105","v":0},{"$f":"$D$4*'CC Allocations'!AA105","v":0},{"$f":"$D$4*'CC Allocations'!AB105","v":0},{"$f":"$D$4*'CC Allocations'!AC105","v":0},{"$f":"$D$4*'CC Allocations'!AD105","v":0},{"$f":"$D$4*'CC Allocations'!AE105","v":0},{"$f":"$D$4*'CC Allocations'!AF105","v":0},{"$f":"$D$4*'CC Allocations'!AG105","v":0},{"$f":"$D$4*'CC Allocations'!AH105","v":0},{"$f":"$D$4*'CC Allocations'!AI105","v":0},{"$f":"$D$4*'CC Allocations'!AJ105","v":0},{"$f":"$D$4*'CC Allocations'!AK105","v":0},{"$f":"$D$4*'CC Allocations'!AL105","v":0},{"$f":"$D$4*'CC Allocations'!AM105","v":0},{"$f":"$D$4*'CC Allocations'!AN105","v":0},{"$f":"$D$4*'CC Allocations'!AO105","v":0},{"$f":"$D$4*'CC Allocations'!AP105","v":0},{"$f":"$D$4*'CC Allocations'!AQ105","v":0}]
[null,"478 - Puget Sound Partnership","478","Puget Sound Partnership",498.42574114167616,53.962316067449116,2,3.5454872580452768E-5,0,2.9202590346532649E-4,{"$f":"$D$4*'CC Allocations'!J106","v":0},{"$f":"$D$4*'CC Allocations'!K106","v":0},{"$f":"$D$4*'CC Allocations'!L106","v":0},{"$f":"$D$4*'CC Allocations'!M106","v":0},{"$f":"$D$4*'CC Allocations'!N106","v":0},{"$f":"$D$4*'CC Allocations'!O106","v":0},{"$f":"$D$4*'CC Allocations'!P106","v":0},{"$f":"$D$4*'CC Allocations'!Q106","v":0},{"$f":"$D$4*'CC Allocations'!R106","v":0},{"$f":"$D$4*'CC Allocations'!S106","v":0},{"$f":"$D$4*'CC Allocations'!T106","v":0},{"$f":"$D$4*'CC Allocations'!U106","v":0},{"$f":"$D$4*'CC Allocations'!V106","v":0},{"$f":"$D$4*'CC Allocations'!W106","v":0},{"$f":"$D$4*'CC Allocations'!X106","v":0},{"$f":"$D$4*'CC Allocations'!Y106","v":0},{"$f":"$D$4*'CC Allocations'!Z106","v":0},{"$f":"$D$4*'CC Allocations'!AA106","v":0},{"$f":"$D$4*'CC Allocations'!AB106","v":0},{"$f":"$D$4*'CC Allocations'!AC106","v":444.46342507422702},{"$f":"$D$4*'CC Allocations'!AD106","v":0},{"$f":"$D$4*'CC Allocations'!AE106","v":0},{"$f":"$D$4*'CC Allocations'!AF106","v":0},{"$f":"$D$4*'CC Allocations'!AG106","v":0},{"$f":"$D$4*'CC Allocations'!AH106","v":0},{"$f":"$D$4*'CC Allocations'!AI106","v":0},{"$f":"$D$4*'CC Allocations'!AJ106","v":0},{"$f":"$D$4*'CC Allocations'!AK106","v":0},{"$f":"$D$4*'CC Allocations'!AL106","v":0},{"$f":"$D$4*'CC Allocations'!AM106","v":0},{"$f":"$D$4*'CC Allocations'!AN106","v":0},{"$f":"$D$4*'CC Allocations'!AO106","v":0},{"$f":"$D$4*'CC Allocations'!AP106","v":0},{"$f":"$D$4*'CC Allocations'!AQ106","v":0}]
[null,"490 - Department of Natural Resources","490","Department of Natural Resources",76807.388301111074,19129.64104591071,709,1.2568752329770507E-2,6.0868397922771086E-3,3.7896023163732168E-2,{"$f":"$D$4*'CC Allocations'!J107","v":0},{"$f":"$D$4*'CC Allocations'!K107","v":0},{"$f":"$D$4*'CC Allocations'!L107","v":0},{"$f":"$D$4*'CC Allocations'!M107","v":0},{"$f":"$D$4*'CC Allocations'!N107","v":0},{"$f":"$D$4*'CC Allocations'!O107","v":0},{"$f":"$D$4*'CC Allocations'!P107","v":0},{"$f":"$D$4*'CC Allocations'!Q107","v":57677.747255200367},{"$f":"$D$4*'CC Allocations'!R107","v":0},{"$f":"$D$4*'CC Allocations'!S107","v":0},{"$f":"$D$4*'CC Allocations'!T107","v":0},{"$f":"$D$4*'CC Allocations'!U107","v":0},{"$f":"$D$4*'CC Allocations'!V107","v":0},{"$f":"$D$4*'CC Allocations'!W107","v":0},{"$f":"$D$4*'CC Allocations'!X107","v":0},{"$f":"$D$4*'CC Allocations'!Y107","v":0},{"$f":"$D$4*'CC Allocations'!Z107","v":0},{"$f":"$D$4*'CC Allocations'!AA107","v":0},{"$f":"$D$4*'CC Allocations'!AB107","v":0},{"$f":"$D$4*'CC Allocations'!AC107","v":0},{"$f":"$D$4*'CC Allocations'!AD107","v":0},{"$f":"$D$4*'CC Allocations'!AE107","v":0},{"$f":"$D$4*'CC Allocations'!AF107","v":0},{"$f":"$D$4*'CC Allocations'!AG107","v":0},{"$f":"$D$4*'CC Allocations'!AH107","v":0},{"$f":"$D$4*'CC Allocations'!AI107","v":0},{"$f":"$D$4*'CC Allocations'!AJ107","v":0},{"$f":"$D$4*'CC Allocations'!AK107","v":0},{"$f":"$D$4*'CC Allocations'!AL107","v":0},{"$f":"$D$4*'CC Allocations'!AM107","v":0},{"$f":"$D$4*'CC Allocations'!AN107","v":0},{"$f":"$D$4*'CC Allocations'!AO107","v":0},{"$f":"$D$4*'CC Allocations'!AP107","v":0},{"$f":"$D$4*'CC Allocations'!AQ107","v":0}]
[null,"495 - Department of Agriculture","495","Department of Agriculture",24990.155697064944,6772.270666464864,251,4.4495865088468225E-3,1.922567243216802E-3,1.1969701071353532E-2,{"$f":"$D$4*'CC Allocations'!J108","v":0},{"$f":"$D$4*'CC Allocations'!K108","v":0},{"$f":"$D$4*'CC Allocations'!L108","v":0},{"$f":"$D$4*'CC Allocations'!M108","v":0},{"$f":"$D$4*'CC Allocations'!N108","v":0},{"$f":"$D$4*'CC Allocations'!O108","v":0},{"$f":"$D$4*'CC Allocations'!P108","v":0},{"$f":"$D$4*'CC Allocations'!Q108","v":18217.885030600079},{"$f":"$D$4*'CC Allocations'!R108","v":0},{"$f":"$D$4*'CC Allocations'!S108","v":0},{"$f":"$D$4*'CC Allocations'!T108","v":0},{"$f":"$D$4*'CC Allocations'!U108","v":0},{"$f":"$D$4*'CC Allocations'!V108","v":0},{"$f":"$D$4*'CC Allocations'!W108","v":0},{"$f":"$D$4*'CC Allocations'!X108","v":0},{"$f":"$D$4*'CC Allocations'!Y108","v":0},{"$f":"$D$4*'CC Allocations'!Z108","v":0},{"$f":"$D$4*'CC Allocations'!AA108","v":0},{"$f":"$D$4*'CC Allocations'!AB108","v":0},{"$f":"$D$4*'CC Allocations'!AC108","v":0},{"$f":"$D$4*'CC Allocations'!AD108","v":0},{"$f":"$D$4*'CC Allocations'!AE108","v":0},{"$f":"$D$4*'CC Allocations'!AF108","v":0},{"$f":"$D$4*'CC Allocations'!AG108","v":0},{"$f":"$D$4*'CC Allocations'!AH108","v":0},{"$f":"$D$4*'CC Allocations'!AI108","v":0},{"$f":"$D$4*'CC Allocations'!AJ108","v":0},{"$f":"$D$4*'CC Allocations'!AK108","v":0},{"$f":"$D$4*'CC Allocations'!AL108","v":0},{"$f":"$D$4*'CC Allocations'!AM108","v":0},{"$f":"$D$4*'CC Allocations'!AN108","v":0},{"$f":"$D$4*'CC Allocations'!AO108","v":0},{"$f":"$D$4*'CC Allocations'!AP108","v":0},{"$f":"$D$4*'CC Allocations'!AQ108","v":0}]
[null,"540 - Employment Security Department","540","Employment Security Department",86541.76953510422,43628.532540532608,1617,2.8665264481296065E-2,3.7138143262247267E-3,2.8195293688943232E-2,{"$f":"$D$4*'CC Allocations'!J109","v":0},{"$f":"$D$4*'CC Allocations'!K109","v":0},{"$f":"$D$4*'CC Allocations'!L109","v":0},{"$f":"$D$4*'CC Allocations'!M109","v":0},{"$f":"$D$4*'CC Allocations'!N109","v":0},{"$f":"$D$4*'CC Allocations'!O109","v":0},{"$f":"$D$4*'CC Allocations'!P109","v":0},{"$f":"$D$4*'CC Allocations'!Q109","v":0},{"$f":"$D$4*'CC Allocations'!R109","v":42913.236994571605},{"$f":"$D$4*'CC Allocations'!S109","v":0},{"$f":"$D$4*'CC Allocations'!T109","v":0},{"$f":"$D$4*'CC Allocations'!U109","v":0},{"$f":"$D$4*'CC Allocations'!V109","v":0},{"$f":"$D$4*'CC Allocations'!W109","v":0},{"$f":"$D$4*'CC Allocations'!X109","v":0},{"$f":"$D$4*'CC Allocations'!Y109","v":0},{"$f":"$D$4*'CC Allocations'!Z109","v":0},{"$f":"$D$4*'CC Allocations'!AA109","v":0},{"$f":"$D$4*'CC Allocations'!AB109","v":0},{"$f":"$D$4*'CC Allocations'!AC109","v":0},{"$f":"$D$4*'CC Allocations'!AD109","v":0},{"$f":"$D$4*'CC Allocations'!AE109","v":0},{"$f":"$D$4*'CC Allocations'!AF109","v":0},{"$f":"$D$4*'CC Allocations'!AG109","v":0},{"$f":"$D$4*'CC Allocations'!AH109","v":0},{"$f":"$D$4*'CC Allocations'!AI109","v":0},{"$f":"$D$4*'CC Allocations'!AJ109","v":0},{"$f":"$D$4*'CC Allocations'!AK109","v":0},{"$f":"$D$4*'CC Allocations'!AL109","v":0},{"$f":"$D$4*'CC Allocations'!AM109","v":0},{"$f":"$D$4*'CC Allocations'!AN109","v":0},{"$f":"$D$4*'CC Allocations'!AO109","v":0},{"$f":"$D$4*'CC Allocations'!AP109","v":0},{"$f":"$D$4*'CC Allocations'!AQ109","v":0}]
[null,"699 - Community Colleges","699","Community Colleges",14623.787654278711,14623.787654278711,542,9.6082704693027012E-3,0,0,{"$f":"$D$4*'CC Allocations'!J110","v":0},{"$f":"$D$4*'CC Allocations'!K110","v":0},{"$f":"$D$4*'CC Allocations'!L110","v":0},{"$f":"$D$4*'CC Allocations'!M110","v":0},{"$f":"$D$4*'CC Allocations'!N110","v":0},{"$f":"$D$4*'CC Allocations'!O110","v":0},{"$f":"$D$4*'CC Allocations'!P110","v":0},{"$f":"$D$4*'CC Allocations'!Q110","v":0},{"$f":"$D$4*'CC Allocations'!R110","v":0},{"$f":"$D$4*'CC Allocations'!S110","v":0},{"$f":"$D$4*'CC Allocations'!T110","v":0},{"$f":"$D$4*'CC Allocations'!U110","v":0},{"$f":"$D$4*'CC Allocations'!V110","v":0},{"$f":"$D$4*'CC Allocations'!W110","v":0},{"$f":"$D$4*'CC Allocations'!X110","v":0},{"$f":"$D$4*'CC Allocations'!Y110","v":0},{"$f":"$D$4*'CC Allocations'!Z110","v":0},{"$f":"$D$4*'CC Allocations'!AA110","v":0},{"$f":"$D$4*'CC Allocations'!AB110","v":0},{"$f":"$D$4*'CC Allocations'!AC110","v":0},{"$f":"$D$4*'CC Allocations'!AD110","v":0},{"$f":"$D$4*'CC Allocations'!AE110","v":0},{"$f":"$D$4*'CC Allocations'!AF110","v":0},{"$f":"$D$4*'CC Allocations'!AG110","v":0},{"$f":"$D$4*'CC Allocations'!AH110","v":0},{"$f":"$D$4*'CC Allocations'!AI110","v":0},{"$f":"$D$4*'CC Allocations'!AJ110","v":0},{"$f":"$D$4*'CC Allocations'!AK110","v":0},{"$f":"$D$4*'CC Allocations'!AL110","v":0},{"$f":"$D$4*'CC Allocations'!AM110","v":0},{"$f":"$D$4*'CC Allocations'!AN110","v":0},{"$f":"$D$4*'CC Allocations'!AO110","v":0},{"$f":"$D$4*'CC Allocations'!AP110","v":0},{"$f":"$D$4*'CC Allocations'!AQ110","v":0}]
[null,"TOTAL  - All Agencies",null,"Building Total",{"$f":"SUM(E7:E110)","v":1420792.3585721666},{"$f":"SUM(F7:F110)","v":692714.2513578441},25674,0.45513419931527233,6.6496479256132238E-2,0.47836932142859545,{"$f":"SUM(K7:K110)","v":26475.808663464275},{"$f":"SUM(L7:L110)","v":23332.264257641666},62108.068519870045,10490.613224768611,71912.541168462427,121605.80663896205,16297.414009809092,134769.86983155829,42913.236994571605,69718.210156440851,19924.287376509172,35083.170172783532,23266.418614633276,10111.276165391106,0,3647.626375278016,5784.1292385313072,0,0,13245.138710750338,7074.3835396935328,0,225.51974667673628,0,0,0,0,0,0,7295.252750556032,3647.626375278016,19149.444682692323,0,0]
[]
[null,null,null,null,null,null,null,null,"Building Total RSF",null,77281,78594,142254,23890,177668,250481,47900,354696,92619,184427,55108,97800,53609,22032,95386,47200,14308,10125,0,41341,17000,0,1539,7138,885,2492,872,200592,60581,99000,20708,138355,17600,0]
[null,null,null,null,null,null,null,null,"vacant space",0,0,0,0,0,0,0,0,0,0,0,0,0,0,0,0,0,0,0,0,0,0,0,0,14276,406,872,0,0,0,0,35004,0,0]
[null,null,null,null,null,null,null,null,null,null,{"$f":"K111/K113/2","v":0.171295717339736},{"$f":"L111/L113/2","v":0.14843540383261869},0.2182999020058137,0.21956076234342006,0.20237899106328217,0.24274457272001079,0.17011914415249574,0.18997940466139776,0.23166540879609801,0.18901302454749264,0.18077490905593718,0.17936181069930232,0.21700105033327682,0.22946795945422807,0,3.86401099076061E-2,0.20212920179379743,0,{"$error":"#DIV/0!"},0.16019373879139762,0.20807010410863333,{"$error":"#DIV/0!"},7.3268273774118348E-2,0,0,0,0,0,0,3.6844710861394098E-2,8.8072879449440214E-2,6.9204021114857878E-2,0]

{"sheet":"CC dollars FY23","index":14,"n_rows":115,"n_cols":44,"rows_kept":115,"cut":false,"hidden":true,"merged":[[3,5,3,7],[4,4,5,4],[4,6,4,7]]}
[]
[]
[null,null,null,null,null,null,null,null,"CC By Building:",3295036.3899590364,3.6363967548430423E-2,3.2046375280960625E-2,8.5304128642872998E-2,1.4408637096514859E-2,9.8770366058120895E-2,0.16702302326358134,2.2384156106772846E-2,0.18510358778290584,5.894043038700976E-2,9.5756498465786266E-2,2.7365590558327428E-2,4.8185997937795683E-2,3.1955937672198675E-2,1.3887625606650295E-2,0,5.0099382732906065E-3,7.9443801169379862E-3,0,0,1.8191920041967968E-2,9.7165173208690683E-3,0,3.0974663905166782E-4,0,0,0,0,0,0,1.0019876546581213E-2,5.0099382732906065E-3,2.6301360380082614E-2,0,0]
[null,null,"CSM Amount",1543002,"Total","PHF Percentage",null,null,"Parking Percentage","Building Percentage",119820.59635536773,105593.97271704901,281080.20809201349,47476.983562730173,325451.95041108323,550346.93961447524,73756.608930340313,609923.0576566516,194210.86296504454,315521.14701982238,90170.616722408304,158774.61669152786,105295.9775051575,45760.231744039658,0,16507.928921941089,26177.021580977689,0,0,59943.038541509573,32016.278155930864,0,1020.6264473427523,0,0,0,0,0,0,33015.857843882179,16507.928921941089,86663.939557799051,0,0]
[null,null,null,null,"Total",null,0.45513419931527221,null,6.6496479256132238E-2,0.47836932142859556,"F6121","F6122","F6123","F6124","F6125","F6126","F6127","F6129","F612A","F612C","F612E","F612H","F612J","F612K","F6131","F6132","F6133","F6134","F6137","F613D","F613E","F613F","F613G","F613H","F613i","F613K","F613L","F613M","F6141","F6142","F6143","F6144","F614G","F6146"]
[null,null,"Agency #","Agency",null,"PHF Thurston FTEs","Thurston FTEs","allocation","allocation","allocation","Cherberg","O'Brien","Legislative","Pritchard","HLB","OB2","Archives","NRB","Emp Sec","Transportation","Insurance","Old Cap","TOJ","Newhouse","Modular Bldg","Isabella Bush","1007 Washington","120 E Union Avenue","Conservatory","Capital Court","James Dolliver Building","Undeveloped Properties","1068 WA Street SE (ST Farm)","232 Perry Street","208 11th Avenue SE (Pro Arts)","Press Houses Ayer(White); Carlyon(Blue)","Visitor Center","Helen Sommers","Kelso Building","Yakima Building","Alaska Street","Tacoma Rhodes","Tacoma Rhodes Garage","North Cascades Gateway Center (NCGC)"]
[null,{"$f":"CONCATENATE(C7,\" - \",D7)","v":"011 - House of Representatives"},"011","House of Representatives",{"$f":"F7+SUM(K7:AR7)","v":52979.708017313424},{"$f":"H7*$D$4","v":9272.8262115845519},339,6.0096009023867447E-3,4.9680321250563193E-3,2.8325875018780835E-2,{"$f":"$D$4*'CC Allocations'!J7","v":0},{"$f":"$D$4*'CC Allocations'!K7","v":23654.224976392645},{"$f":"$D$4*'CC Allocations'!L7","v":20052.656829336225},{"$f":"$D$4*'CC Allocations'!M7","v":0},{"$f":"$D$4*'CC Allocations'!N7","v":0},{"$f":"$D$4*'CC Allocations'!O7","v":0},{"$f":"$D$4*'CC Allocations'!P7","v":0},{"$f":"$D$4*'CC Allocations'!Q7","v":0},{"$f":"$D$4*'CC Allocations'!R7","v":0},{"$f":"$D$4*'CC Allocations'!S7","v":0},{"$f":"$D$4*'CC Allocations'!T7","v":0},{"$f":"$D$4*'CC Allocations'!U7","v":0},{"$f":"$D$4*'CC Allocations'!V7","v":0},{"$f":"$D$4*'CC Allocations'!W7","v":0},{"$f":"$D$4*'CC Allocations'!X7","v":0},{"$f":"$D$4*'CC Allocations'!Y7","v":0},{"$f":"$D$4*'CC Allocations'!Z7","v":0},{"$f":"$D$4*'CC Allocations'!AA7","v":0},{"$f":"$D$4*'CC Allocations'!AB7","v":0},{"$f":"$D$4*'CC Allocations'!AC7","v":0},{"$f":"$D$4*'CC Allocations'!AD7","v":0},{"$f":"$D$4*'CC Allocations'!AE7","v":0},{"$f":"$D$4*'CC Allocations'!AF7","v":0},{"$f":"$D$4*'CC Allocations'!AG7","v":0},{"$f":"$D$4*'CC Allocations'!AH7","v":0},{"$f":"$D$4*'CC Allocations'!AI7","v":0},{"$f":"$D$4*'CC Allocations'!AJ7","v":0},{"$f":"$D$4*'CC Allocations'!AK7","v":0},{"$f":"$D$4*'CC Allocations'!AL7","v":0},{"$f":"$D$4*'CC Allocations'!AM7","v":0},{"$f":"$D$4*'CC Allocations'!AN7","v":0},{"$f":"$D$4*'CC Allocations'!AO7","v":0},{"$f":"$D$4*'CC Allocations'!AP7","v":0},{"$f":"$D$4*'CC Allocations'!AQ7","v":0}]
[null,{"$f":"CONCATENATE(C8,\" - \",D8)","v":"012 - Senate"},"012","Senate",{"$f":"F8+SUM(K8:AR8)","v":58790.831005848973},{"$f":"H8*$D$4","v":6072.4702624535994},222,3.9354908564302573E-3,5.3978400020880599E-3,3.4166100072064297E-2,{"$f":"$D$4*'CC Allocations'!J8","v":26841.146990369714},{"$f":"$D$4*'CC Allocations'!K8","v":0},{"$f":"$D$4*'CC Allocations'!L8","v":15626.412606014614},{"$f":"$D$4*'CC Allocations'!M8","v":0},{"$f":"$D$4*'CC Allocations'!N8","v":0},{"$f":"$D$4*'CC Allocations'!O8","v":0},{"$f":"$D$4*'CC Allocations'!P8","v":0},{"$f":"$D$4*'CC Allocations'!Q8","v":0},{"$f":"$D$4*'CC Allocations'!R8","v":0},{"$f":"$D$4*'CC Allocations'!S8","v":0},{"$f":"$D$4*'CC Allocations'!T8","v":0},{"$f":"$D$4*'CC Allocations'!U8","v":0},{"$f":"$D$4*'CC Allocations'!V8","v":0},{"$f":"$D$4*'CC Allocations'!W8","v":10250.801147011041},{"$f":"$D$4*'CC Allocations'!X8","v":0},{"$f":"$D$4*'CC Allocations'!Y8","v":0},{"$f":"$D$4*'CC Allocations'!Z8","v":0},{"$f":"$D$4*'CC Allocations'!AA8","v":0},{"$f":"$D$4*'CC Allocations'!AB8","v":0},{"$f":"$D$4*'CC Allocations'!AC8","v":0},{"$f":"$D$4*'CC Allocations'!AD8","v":0},{"$f":"$D$4*'CC Allocations'!AE8","v":0},{"$f":"$D$4*'CC Allocations'!AF8","v":0},{"$f":"$D$4*'CC Allocations'!AG8","v":0},{"$f":"$D$4*'CC Allocations'!AH8","v":0},{"$f":"$D$4*'CC Allocations'!AI8","v":0},{"$f":"$D$4*'CC Allocations'!AJ8","v":0},{"$f":"$D$4*'CC Allocations'!AK8","v":0},{"$f":"$D$4*'CC Allocations'!AL8","v":0},{"$f":"$D$4*'CC Allocations'!AM8","v":0},{"$f":"$D$4*'CC Allocations'!AN8","v":0},{"$f":"$D$4*'CC Allocations'!AO8","v":0},{"$f":"$D$4*'CC Allocations'!AP8","v":0},{"$f":"$D$4*'CC Allocations'!AQ8","v":0}]
[null,"013 - Joint Transportation Committee","013","Joint Transportation Committee",109.41387860276757,109.41387860276757,4,7.0909745160905536E-5,0,0,{"$f":"$D$4*'CC Allocations'!J9","v":0},{"$f":"$D$4*'CC Allocations'!K9","v":0},{"$f":"$D$4*'CC Allocations'!L9","v":0},{"$f":"$D$4*'CC Allocations'!M9","v":0},{"$f":"$D$4*'CC Allocations'!N9","v":0},{"$f":"$D$4*'CC Allocations'!O9","v":0},{"$f":"$D$4*'CC Allocations'!P9","v":0},{"$f":"$D$4*'CC Allocations'!Q9","v":0},{"$f":"$D$4*'CC Allocations'!R9","v":0},{"$f":"$D$4*'CC Allocations'!S9","v":0},{"$f":"$D$4*'CC Allocations'!T9","v":0},{"$f":"$D$4*'CC Allocations'!U9","v":0},{"$f":"$D$4*'CC Allocations'!V9","v":0},{"$f":"$D$4*'CC Allocations'!W9","v":0},{"$f":"$D$4*'CC Allocations'!X9","v":0},{"$f":"$D$4*'CC Allocations'!Y9","v":0},{"$f":"$D$4*'CC Allocations'!Z9","v":0},{"$f":"$D$4*'CC Allocations'!AA9","v":0},{"$f":"$D$4*'CC Allocations'!AB9","v":0},{"$f":"$D$4*'CC Allocations'!AC9","v":0},{"$f":"$D$4*'CC Allocations'!AD9","v":0},{"$f":"$D$4*'CC Allocations'!AE9","v":0},{"$f":"$D$4*'CC Allocations'!AF9","v":0},{"$f":"$D$4*'CC Allocations'!AG9","v":0},{"$f":"$D$4*'CC Allocations'!AH9","v":0},{"$f":"$D$4*'CC Allocations'!AI9","v":0},{"$f":"$D$4*'CC Allocations'!AJ9","v":0},{"$f":"$D$4*'CC Allocations'!AK9","v":0},{"$f":"$D$4*'CC Allocations'!AL9","v":0},{"$f":"$D$4*'CC Allocations'!AM9","v":0},{"$f":"$D$4*'CC Allocations'!AN9","v":0},{"$f":"$D$4*'CC Allocations'!AO9","v":0},{"$f":"$D$4*'CC Allocations'!AP9","v":0},{"$f":"$D$4*'CC Allocations'!AQ9","v":0}]
[null,"014 - Joint Legislative Audit and Review Committee","014","Joint Legislative Audit and Review Committee",656.48327161660541,656.48327161660541,24,4.2545847096543324E-4,0,0,{"$f":"$D$4*'CC Allocations'!J10","v":0},{"$f":"$D$4*'CC Allocations'!K10","v":0},{"$f":"$D$4*'CC Allocations'!L10","v":0},{"$f":"$D$4*'CC Allocations'!M10","v":0},{"$f":"$D$4*'CC Allocations'!N10","v":0},{"$f":"$D$4*'CC Allocations'!O10","v":0},{"$f":"$D$4*'CC Allocations'!P10","v":0},{"$f":"$D$4*'CC Allocations'!Q10","v":0},{"$f":"$D$4*'CC Allocations'!R10","v":0},{"$f":"$D$4*'CC Allocations'!S10","v":0},{"$f":"$D$4*'CC Allocations'!T10","v":0},{"$f":"$D$4*'CC Allocations'!U10","v":0},{"$f":"$D$4*'CC Allocations'!V10","v":0},{"$f":"$D$4*'CC Allocations'!W10","v":0},{"$f":"$D$4*'CC Allocations'!X10","v":0},{"$f":"$D$4*'CC Allocations'!Y10","v":0},{"$f":"$D$4*'CC Allocations'!Z10","v":0},{"$f":"$D$4*'CC Allocations'!AA10","v":0},{"$f":"$D$4*'CC Allocations'!AB10","v":0},{"$f":"$D$4*'CC Allocations'!AC10","v":0},{"$f":"$D$4*'CC Allocations'!AD10","v":0},{"$f":"$D$4*'CC Allocations'!AE10","v":0},{"$f":"$D$4*'CC Allocations'!AF10","v":0},{"$f":"$D$4*'CC Allocations'!AG10","v":0},{"$f":"$D$4*'CC Allocations'!AH10","v":0},{"$f":"$D$4*'CC Allocations'!AI10","v":0},{"$f":"$D$4*'CC Allocations'!AJ10","v":0},{"$f":"$D$4*'CC Allocations'!AK10","v":0},{"$f":"$D$4*'CC Allocations'!AL10","v":0},{"$f":"$D$4*'CC Allocations'!AM10","v":0},{"$f":"$D$4*'CC Allocations'!AN10","v":0},{"$f":"$D$4*'CC Allocations'!AO10","v":0},{"$f":"$D$4*'CC Allocations'!AP10","v":0},{"$f":"$D$4*'CC Allocations'!AQ10","v":0}]
[null,"020 - Legislative Evaluation and Accountability Program Committee","020","Legislative Evaluation and Accountability Program Committee",273.53469650691898,273.53469650691898,10,1.7727436290226387E-4,0,0,{"$f":"$D$4*'CC Allocations'!J11","v":0},{"$f":"$D$4*'CC Allocations'!K11","v":0},{"$f":"$D$4*'CC Allocations'!L11","v":0},{"$f":"$D$4*'CC Allocations'!M11","v":0},{"$f":"$D$4*'CC Allocations'!N11","v":0},{"$f":"$D$4*'CC Allocations'!O11","v":0},{"$f":"$D$4*'CC Allocations'!P11","v":0},{"$f":"$D$4*'CC Allocations'!Q11","v":0},{"$f":"$D$4*'CC Allocations'!R11","v":0},{"$f":"$D$4*'CC Allocations'!S11","v":0},{"$f":"$D$4*'CC Allocations'!T11","v":0},{"$f":"$D$4*'CC Allocations'!U11","v":0},{"$f":"$D$4*'CC Allocations'!V11","v":0},{"$f":"$D$4*'CC Allocations'!W11","v":0},{"$f":"$D$4*'CC Allocations'!X11","v":0},{"$f":"$D$4*'CC Allocations'!Y11","v":0},{"$f":"$D$4*'CC Allocations'!Z11","v":0},{"$f":"$D$4*'CC Allocations'!AA11","v":0},{"$f":"$D$4*'CC Allocations'!AB11","v":0},{"$f":"$D$4*'CC Allocations'!AC11","v":0},{"$f":"$D$4*'CC Allocations'!AD11","v":0},{"$f":"$D$4*'CC Allocations'!AE11","v":0},{"$f":"$D$4*'CC Allocations'!AF11","v":0},{"$f":"$D$4*'CC Allocations'!AG11","v":0},{"$f":"$D$4*'CC Allocations'!AH11","v":0},{"$f":"$D$4*'CC Allocations'!AI11","v":0},{"$f":"$D$4*'CC Allocations'!AJ11","v":0},{"$f":"$D$4*'CC Allocations'!AK11","v":0},{"$f":"$D$4*'CC Allocations'!AL11","v":0},{"$f":"$D$4*'CC Allocations'!AM11","v":0},{"$f":"$D$4*'CC Allocations'!AN11","v":0},{"$f":"$D$4*'CC Allocations'!AO11","v":0},{"$f":"$D$4*'CC Allocations'!AP11","v":0},{"$f":"$D$4*'CC Allocations'!AQ11","v":0}]
[null,"035 - Office of the State Actuary","035","Office of the State Actuary",465.00898406176213,465.00898406176213,17,3.0136641693384852E-4,0,0,{"$f":"$D$4*'CC Allocations'!J12","v":0},{"$f":"$D$4*'CC Allocations'!K12","v":0},{"$f":"$D$4*'CC Allocations'!L12","v":0},{"$f":"$D$4*'CC Allocations'!M12","v":0},{"$f":"$D$4*'CC Allocations'!N12","v":0},{"$f":"$D$4*'CC Allocations'!O12","v":0},{"$f":"$D$4*'CC Allocations'!P12","v":0},{"$f":"$D$4*'CC Allocations'!Q12","v":0},{"$f":"$D$4*'CC Allocations'!R12","v":0},{"$f":"$D$4*'CC Allocations'!S12","v":0},{"$f":"$D$4*'CC Allocations'!T12","v":0},{"$f":"$D$4*'CC Allocations'!U12","v":0},{"$f":"$D$4*'CC Allocations'!V12","v":0},{"$f":"$D$4*'CC Allocations'!W12","v":0},{"$f":"$D$4*'CC Allocations'!X12","v":0},{"$f":"$D$4*'CC Allocations'!Y12","v":0},{"$f":"$D$4*'CC Allocations'!Z12","v":0},{"$f":"$D$4*'CC Allocations'!AA12","v":0},{"$f":"$D$4*'CC Allocations'!AB12","v":0},{"$f":"$D$4*'CC Allocations'!AC12","v":0},{"$f":"$D$4*'CC Allocations'!AD12","v":0},{"$f":"$D$4*'CC Allocations'!AE12","v":0},{"$f":"$D$4*'CC Allocations'!AF12","v":0},{"$f":"$D$4*'CC Allocations'!AG12","v":0},{"$f":"$D$4*'CC Allocations'!AH12","v":0},{"$f":"$D$4*'CC Allocations'!AI12","v":0},{"$f":"$D$4*'CC Allocations'!AJ12","v":0},{"$f":"$D$4*'CC Allocations'!AK12","v":0},{"$f":"$D$4*'CC Allocations'!AL12","v":0},{"$f":"$D$4*'CC Allocations'!AM12","v":0},{"$f":"$D$4*'CC Allocations'!AN12","v":0},{"$f":"$D$4*'CC Allocations'!AO12","v":0},{"$f":"$D$4*'CC Allocations'!AP12","v":0},{"$f":"$D$4*'CC Allocations'!AQ12","v":0}]
[null,"037 - Office of Legislative Support Services","037","Office of Legislative Support Services",10608.554382332377,820.60408952075682,30,5.3182308870679154E-4,3.5458448144338913E-4,6.3434462773292698E-3,{"$f":"$D$4*'CC Allocations'!J13","v":0},{"$f":"$D$4*'CC Allocations'!K13","v":0},{"$f":"$D$4*'CC Allocations'!L13","v":2203.8269987918302},{"$f":"$D$4*'CC Allocations'!M13","v":1720.1791525531116},{"$f":"$D$4*'CC Allocations'!N13","v":0},{"$f":"$D$4*'CC Allocations'!O13","v":0},{"$f":"$D$4*'CC Allocations'!P13","v":0},{"$f":"$D$4*'CC Allocations'!Q13","v":0},{"$f":"$D$4*'CC Allocations'!R13","v":0},{"$f":"$D$4*'CC Allocations'!S13","v":0},{"$f":"$D$4*'CC Allocations'!T13","v":0},{"$f":"$D$4*'CC Allocations'!U13","v":0},{"$f":"$D$4*'CC Allocations'!V13","v":0},{"$f":"$D$4*'CC Allocations'!W13","v":0},{"$f":"$D$4*'CC Allocations'!X13","v":0},{"$f":"$D$4*'CC Allocations'!Y13","v":0},{"$f":"$D$4*'CC Allocations'!Z13","v":5863.944141466678},{"$f":"$D$4*'CC Allocations'!AA13","v":0},{"$f":"$D$4*'CC Allocations'!AB13","v":0},{"$f":"$D$4*'CC Allocations'!AC13","v":0},{"$f":"$D$4*'CC Allocations'!AD13","v":0},{"$f":"$D$4*'CC Allocations'!AE13","v":0},{"$f":"$D$4*'CC Allocations'!AF13","v":0},{"$f":"$D$4*'CC Allocations'!AG13","v":0},{"$f":"$D$4*'CC Allocations'!AH13","v":0},{"$f":"$D$4*'CC Allocations'!AI13","v":0},{"$f":"$D$4*'CC Allocations'!AJ13","v":0},{"$f":"$D$4*'CC Allocations'!AK13","v":0},{"$f":"$D$4*'CC Allocations'!AL13","v":0},{"$f":"$D$4*'CC Allocations'!AM13","v":0},{"$f":"$D$4*'CC Allocations'!AN13","v":0},{"$f":"$D$4*'CC Allocations'!AO13","v":0},{"$f":"$D$4*'CC Allocations'!AP13","v":0},{"$f":"$D$4*'CC Allocations'!AQ13","v":0}]
[null,"038 - Joint Legislative Systems Committee","038","Joint Legislative Systems Committee",5538.3188631577204,1613.8547093908217,59,1.0459187411233568E-3,3.5374242850769866E-4,2.5433953771718367E-3,{"$f":"$D$4*'CC Allocations'!J14","v":0},{"$f":"$D$4*'CC Allocations'!K14","v":0},{"$f":"$D$4*'CC Allocations'!L14","v":505.91971472566013},{"$f":"$D$4*'CC Allocations'!M14","v":3418.5444390412385},{"$f":"$D$4*'CC Allocations'!N14","v":0},{"$f":"$D$4*'CC Allocations'!O14","v":0},{"$f":"$D$4*'CC Allocations'!P14","v":0},{"$f":"$D$4*'CC Allocations'!Q14","v":0},{"$f":"$D$4*'CC Allocations'!R14","v":0},{"$f":"$D$4*'CC Allocations'!S14","v":0},{"$f":"$D$4*'CC Allocations'!T14","v":0},{"$f":"$D$4*'CC Allocations'!U14","v":0},{"$f":"$D$4*'CC Allocations'!V14","v":0},{"$f":"$D$4*'CC Allocations'!W14","v":0},{"$f":"$D$4*'CC Allocations'!X14","v":0},{"$f":"$D$4*'CC Allocations'!Y14","v":0},{"$f":"$D$4*'CC Allocations'!Z14","v":0},{"$f":"$D$4*'CC Allocations'!AA14","v":0},{"$f":"$D$4*'CC Allocations'!AB14","v":0},{"$f":"$D$4*'CC Allocations'!AC14","v":0},{"$f":"$D$4*'CC Allocations'!AD14","v":0},{"$f":"$D$4*'CC Allocations'!AE14","v":0},{"$f":"$D$4*'CC Allocations'!AF14","v":0},{"$f":"$D$4*'CC Allocations'!AG14","v":0},{"$f":"$D$4*'CC Allocations'!AH14","v":0},{"$f":"$D$4*'CC Allocations'!AI14","v":0},{"$f":"$D$4*'CC Allocations'!AJ14","v":0},{"$f":"$D$4*'CC Allocations'!AK14","v":0},{"$f":"$D$4*'CC Allocations'!AL14","v":0},{"$f":"$D$4*'CC Allocations'!AM14","v":0},{"$f":"$D$4*'CC Allocations'!AN14","v":0},{"$f":"$D$4*'CC Allocations'!AO14","v":0},{"$f":"$D$4*'CC Allocations'!AP14","v":0},{"$f":"$D$4*'CC Allocations'!AQ14","v":0}]
[null,"040 - Statute Law Committee (Code Revisor)","040","Statute Law Committee (Code Revisor)",6508.7274445117464,1012.0783770756,37,6.5591514273837621E-4,4.9508702842717691E-4,3.5623084528964614E-3,{"$f":"$D$4*'CC Allocations'!J15","v":0},{"$f":"$D$4*'CC Allocations'!K15","v":0},{"$f":"$D$4*'CC Allocations'!L15","v":0},{"$f":"$D$4*'CC Allocations'!M15","v":5496.6490674361467},{"$f":"$D$4*'CC Allocations'!N15","v":0},{"$f":"$D$4*'CC Allocations'!O15","v":0},{"$f":"$D$4*'CC Allocations'!P15","v":0},{"$f":"$D$4*'CC Allocations'!Q15","v":0},{"$f":"$D$4*'CC Allocations'!R15","v":0},{"$f":"$D$4*'CC Allocations'!S15","v":0},{"$f":"$D$4*'CC Allocations'!T15","v":0},{"$f":"$D$4*'CC Allocations'!U15","v":0},{"$f":"$D$4*'CC Allocations'!V15","v":0},{"$f":"$D$4*'CC Allocations'!W15","v":0},{"$f":"$D$4*'CC Allocations'!X15","v":0},{"$f":"$D$4*'CC Allocations'!Y15","v":0},{"$f":"$D$4*'CC Allocations'!Z15","v":0},{"$f":"$D$4*'CC Allocations'!AA15","v":0},{"$f":"$D$4*'CC Allocations'!AB15","v":0},{"$f":"$D$4*'CC Allocations'!AC15","v":0},{"$f":"$D$4*'CC Allocations'!AD15","v":0},{"$f":"$D$4*'CC Allocations'!AE15","v":0},{"$f":"$D$4*'CC Allocations'!AF15","v":0},{"$f":"$D$4*'CC Allocations'!AG15","v":0},{"$f":"$D$4*'CC Allocations'!AH15","v":0},{"$f":"$D$4*'CC Allocations'!AI15","v":0},{"$f":"$D$4*'CC Allocations'!AJ15","v":0},{"$f":"$D$4*'CC Allocations'!AK15","v":0},{"$f":"$D$4*'CC Allocations'!AL15","v":0},{"$f":"$D$4*'CC Allocations'!AM15","v":0},{"$f":"$D$4*'CC Allocations'!AN15","v":0},{"$f":"$D$4*'CC Allocations'!AO15","v":0},{"$f":"$D$4*'CC Allocations'!AP15","v":0},{"$f":"$D$4*'CC Allocations'!AQ15","v":0}]
[null,"045 - Supreme Court","045","Supreme Court",16601.851892287228,1668.5616486922056,61,1.0813736137038096E-3,1.3609179351112323E-3,9.6780757533658536E-3,{"$f":"$D$4*'CC Allocations'!J16","v":0},{"$f":"$D$4*'CC Allocations'!K16","v":0},{"$f":"$D$4*'CC Allocations'!L16","v":0},{"$f":"$D$4*'CC Allocations'!M16","v":0},{"$f":"$D$4*'CC Allocations'!N16","v":0},{"$f":"$D$4*'CC Allocations'!O16","v":0},{"$f":"$D$4*'CC Allocations'!P16","v":0},{"$f":"$D$4*'CC Allocations'!Q16","v":0},{"$f":"$D$4*'CC Allocations'!R16","v":0},{"$f":"$D$4*'CC Allocations'!S16","v":0},{"$f":"$D$4*'CC Allocations'!T16","v":0},{"$f":"$D$4*'CC Allocations'!U16","v":0},{"$f":"$D$4*'CC Allocations'!V16","v":14933.290243595022},{"$f":"$D$4*'CC Allocations'!W16","v":0},{"$f":"$D$4*'CC Allocations'!X16","v":0},{"$f":"$D$4*'CC Allocations'!Y16","v":0},{"$f":"$D$4*'CC Allocations'!Z16","v":0},{"$f":"$D$4*'CC Allocations'!AA16","v":0},{"$f":"$D$4*'CC Allocations'!AB16","v":0},{"$f":"$D$4*'CC Allocations'!AC16","v":0},{"$f":"$D$4*'CC Allocations'!AD16","v":0},{"$f":"$D$4*'CC Allocations'!AE16","v":0},{"$f":"$D$4*'CC Allocations'!AF16","v":0},{"$f":"$D$4*'CC Allocations'!AG16","v":0},{"$f":"$D$4*'CC Allocations'!AH16","v":0},{"$f":"$D$4*'CC Allocations'!AI16","v":0},{"$f":"$D$4*'CC Allocations'!AJ16","v":0},{"$f":"$D$4*'CC Allocations'!AK16","v":0},{"$f":"$D$4*'CC Allocations'!AL16","v":0},{"$f":"$D$4*'CC Allocations'!AM16","v":0},{"$f":"$D$4*'CC Allocations'!AN16","v":0},{"$f":"$D$4*'CC Allocations'!AO16","v":0},{"$f":"$D$4*'CC Allocations'!AP16","v":0},{"$f":"$D$4*'CC Allocations'!AQ16","v":0}]
[null,"046 - Law Library","046","Law Library",7002.6070434679996,218.82775720553514,8,1.4181949032181107E-4,6.1822724583220328E-4,4.3964812011017896E-3,{"$f":"$D$4*'CC Allocations'!J17","v":0},{"$f":"$D$4*'CC Allocations'!K17","v":0},{"$f":"$D$4*'CC Allocations'!L17","v":0},{"$f":"$D$4*'CC Allocations'!M17","v":0},{"$f":"$D$4*'CC Allocations'!N17","v":0},{"$f":"$D$4*'CC Allocations'!O17","v":0},{"$f":"$D$4*'CC Allocations'!P17","v":0},{"$f":"$D$4*'CC Allocations'!Q17","v":0},{"$f":"$D$4*'CC Allocations'!R17","v":0},{"$f":"$D$4*'CC Allocations'!S17","v":0},{"$f":"$D$4*'CC Allocations'!T17","v":0},{"$f":"$D$4*'CC Allocations'!U17","v":0},{"$f":"$D$4*'CC Allocations'!V17","v":6783.7792862624647},{"$f":"$D$4*'CC Allocations'!W17","v":0},{"$f":"$D$4*'CC Allocations'!X17","v":0},{"$f":"$D$4*'CC Allocations'!Y17","v":0},{"$f":"$D$4*'CC Allocations'!Z17","v":0},{"$f":"$D$4*'CC Allocations'!AA17","v":0},{"$f":"$D$4*'CC Allocations'!AB17","v":0},{"$f":"$D$4*'CC Allocations'!AC17","v":0},{"$f":"$D$4*'CC Allocations'!AD17","v":0},{"$f":"$D$4*'CC Allocations'!AE17","v":0},{"$f":"$D$4*'CC Allocations'!AF17","v":0},{"$f":"$D$4*'CC Allocations'!AG17","v":0},{"$f":"$D$4*'CC Allocations'!AH17","v":0},{"$f":"$D$4*'CC Allocations'!AI17","v":0},{"$f":"$D$4*'CC Allocations'!AJ17","v":0},{"$f":"$D$4*'CC Allocations'!AK17","v":0},{"$f":"$D$4*'CC Allocations'!AL17","v":0},{"$f":"$D$4*'CC Allocations'!AM17","v":0},{"$f":"$D$4*'CC Allocations'!AN17","v":0},{"$f":"$D$4*'CC Allocations'!AO17","v":0},{"$f":"$D$4*'CC Allocations'!AP17","v":0},{"$f":"$D$4*'CC Allocations'!AQ17","v":0}]
[null,"048 - Court of Appeals","048","Court of Appeals",7163.7189046671992,27.353469650691892,1,1.7727436290226384E-5,0,4.6249878062481486E-3,{"$f":"$D$4*'CC Allocations'!J18","v":0},{"$f":"$D$4*'CC Allocations'!K18","v":0},{"$f":"$D$4*'CC Allocations'!L18","v":0},{"$f":"$D$4*'CC Allocations'!M18","v":0},{"$f":"$D$4*'CC Allocations'!N18","v":0},{"$f":"$D$4*'CC Allocations'!O18","v":0},{"$f":"$D$4*'CC Allocations'!P18","v":0},{"$f":"$D$4*'CC Allocations'!Q18","v":0},{"$f":"$D$4*'CC Allocations'!R18","v":0},{"$f":"$D$4*'CC Allocations'!S18","v":0},{"$f":"$D$4*'CC Allocations'!T18","v":0},{"$f":"$D$4*'CC Allocations'!U18","v":0},{"$f":"$D$4*'CC Allocations'!V18","v":0},{"$f":"$D$4*'CC Allocations'!W18","v":0},{"$f":"$D$4*'CC Allocations'!X18","v":0},{"$f":"$D$4*'CC Allocations'!Y18","v":0},{"$f":"$D$4*'CC Allocations'!Z18","v":0},{"$f":"$D$4*'CC Allocations'!AA18","v":0},{"$f":"$D$4*'CC Allocations'!AB18","v":0},{"$f":"$D$4*'CC Allocations'!AC18","v":0},{"$f":"$D$4*'CC Allocations'!AD18","v":0},{"$f":"$D$4*'CC Allocations'!AE18","v":0},{"$f":"$D$4*'CC Allocations'!AF18","v":0},{"$f":"$D$4*'CC Allocations'!AG18","v":0},{"$f":"$D$4*'CC Allocations'!AH18","v":0},{"$f":"$D$4*'CC Allocations'!AI18","v":0},{"$f":"$D$4*'CC Allocations'!AJ18","v":0},{"$f":"$D$4*'CC Allocations'!AK18","v":0},{"$f":"$D$4*'CC Allocations'!AL18","v":0},{"$f":"$D$4*'CC Allocations'!AM18","v":0},{"$f":"$D$4*'CC Allocations'!AN18","v":0},{"$f":"$D$4*'CC Allocations'!AO18","v":7136.365435016507},{"$f":"$D$4*'CC Allocations'!AP18","v":0},{"$f":"$D$4*'CC Allocations'!AQ18","v":0}]
[null,"050 - Commission on Judicial Conduct","050","Commission on Judicial Conduct",1906.1194810017148,218.82775720553514,8,1.4181949032181107E-4,0,1.0935123375058356E-3,{"$f":"$D$4*'CC Allocations'!J19","v":0},{"$f":"$D$4*'CC Allocations'!K19","v":0},{"$f":"$D$4*'CC Allocations'!L19","v":0},{"$f":"$D$4*'CC Allocations'!M19","v":0},{"$f":"$D$4*'CC Allocations'!N19","v":0},{"$f":"$D$4*'CC Allocations'!O19","v":0},{"$f":"$D$4*'CC Allocations'!P19","v":0},{"$f":"$D$4*'CC Allocations'!Q19","v":0},{"$f":"$D$4*'CC Allocations'!R19","v":0},{"$f":"$D$4*'CC Allocations'!S19","v":0},{"$f":"$D$4*'CC Allocations'!T19","v":0},{"$f":"$D$4*'CC Allocations'!U19","v":0},{"$f":"$D$4*'CC Allocations'!V19","v":0},{"$f":"$D$4*'CC Allocations'!W19","v":0},{"$f":"$D$4*'CC Allocations'!X19","v":0},{"$f":"$D$4*'CC Allocations'!Y19","v":0},{"$f":"$D$4*'CC Allocations'!Z19","v":0},{"$f":"$D$4*'CC Allocations'!AA19","v":0},{"$f":"$D$4*'CC Allocations'!AB19","v":0},{"$f":"$D$4*'CC Allocations'!AC19","v":1687.2917237961797},{"$f":"$D$4*'CC Allocations'!AD19","v":0},{"$f":"$D$4*'CC Allocations'!AE19","v":0},{"$f":"$D$4*'CC Allocations'!AF19","v":0},{"$f":"$D$4*'CC Allocations'!AG19","v":0},{"$f":"$D$4*'CC Allocations'!AH19","v":0},{"$f":"$D$4*'CC Allocations'!AI19","v":0},{"$f":"$D$4*'CC Allocations'!AJ19","v":0},{"$f":"$D$4*'CC Allocations'!AK19","v":0},{"$f":"$D$4*'CC Allocations'!AL19","v":0},{"$f":"$D$4*'CC Allocations'!AM19","v":0},{"$f":"$D$4*'CC Allocations'!AN19","v":0},{"$f":"$D$4*'CC Allocations'!AO19","v":0},{"$f":"$D$4*'CC Allocations'!AP19","v":0},{"$f":"$D$4*'CC Allocations'!AQ19","v":0}]
[null,"055 - Administrative Office of the Courts","055","Administrative Office of the Courts",8736.1220851970429,6865.7208823236651,251,4.4495865088468225E-3,1.7045557283906448E-4,1.2121832653965304E-3,{"$f":"$D$4*'CC Allocations'!J20","v":0},{"$f":"$D$4*'CC Allocations'!K20","v":0},{"$f":"$D$4*'CC Allocations'!L20","v":0},{"$f":"$D$4*'CC Allocations'!M20","v":0},{"$f":"$D$4*'CC Allocations'!N20","v":0},{"$f":"$D$4*'CC Allocations'!O20","v":0},{"$f":"$D$4*'CC Allocations'!P20","v":0},{"$f":"$D$4*'CC Allocations'!Q20","v":0},{"$f":"$D$4*'CC Allocations'!R20","v":0},{"$f":"$D$4*'CC Allocations'!S20","v":0},{"$f":"$D$4*'CC Allocations'!T20","v":0},{"$f":"$D$4*'CC Allocations'!U20","v":0},{"$f":"$D$4*'CC Allocations'!V20","v":1870.4012028733775},{"$f":"$D$4*'CC Allocations'!W20","v":0},{"$f":"$D$4*'CC Allocations'!X20","v":0},{"$f":"$D$4*'CC Allocations'!Y20","v":0},{"$f":"$D$4*'CC Allocations'!Z20","v":0},{"$f":"$D$4*'CC Allocations'!AA20","v":0},{"$f":"$D$4*'CC Allocations'!AB20","v":0},{"$f":"$D$4*'CC Allocations'!AC20","v":0},{"$f":"$D$4*'CC Allocations'!AD20","v":0},{"$f":"$D$4*'CC Allocations'!AE20","v":0},{"$f":"$D$4*'CC Allocations'!AF20","v":0},{"$f":"$D$4*'CC Allocations'!AG20","v":0},{"$f":"$D$4*'CC Allocations'!AH20","v":0},{"$f":"$D$4*'CC Allocations'!AI20","v":0},{"$f":"$D$4*'CC Allocations'!AJ20","v":0},{"$f":"$D$4*'CC Allocations'!AK20","v":0},{"$f":"$D$4*'CC Allocations'!AL20","v":0},{"$f":"$D$4*'CC Allocations'!AM20","v":0},{"$f":"$D$4*'CC Allocations'!AN20","v":0},{"$f":"$D$4*'CC Allocations'!AO20","v":0},{"$f":"$D$4*'CC Allocations'!AP20","v":0},{"$f":"$D$4*'CC Allocations'!AQ20","v":0}]
[null,"056 - Office of Public Defense","056","Office of Public Defense",519.71592336314598,519.71592336314598,19,3.3682128951430132E-4,0,0,{"$f":"$D$4*'CC Allocations'!J21","v":0},{"$f":"$D$4*'CC Allocations'!K21","v":0},{"$f":"$D$4*'CC Allocations'!L21","v":0},{"$f":"$D$4*'CC Allocations'!M21","v":0},{"$f":"$D$4*'CC Allocations'!N21","v":0},{"$f":"$D$4*'CC Allocations'!O21","v":0},{"$f":"$D$4*'CC Allocations'!P21","v":0},{"$f":"$D$4*'CC Allocations'!Q21","v":0},{"$f":"$D$4*'CC Allocations'!R21","v":0},{"$f":"$D$4*'CC Allocations'!S21","v":0},{"$f":"$D$4*'CC Allocations'!T21","v":0},{"$f":"$D$4*'CC Allocations'!U21","v":0},{"$f":"$D$4*'CC Allocations'!V21","v":0},{"$f":"$D$4*'CC Allocations'!W21","v":0},{"$f":"$D$4*'CC Allocations'!X21","v":0},{"$f":"$D$4*'CC Allocations'!Y21","v":0},{"$f":"$D$4*'CC Allocations'!Z21","v":0},{"$f":"$D$4*'CC Allocations'!AA21","v":0},{"$f":"$D$4*'CC Allocations'!AB21","v":0},{"$f":"$D$4*'CC Allocations'!AC21","v":0},{"$f":"$D$4*'CC Allocations'!AD21","v":0},{"$f":"$D$4*'CC Allocations'!AE21","v":0},{"$f":"$D$4*'CC Allocations'!AF21","v":0},{"$f":"$D$4*'CC Allocations'!AG21","v":0},{"$f":"$D$4*'CC Allocations'!AH21","v":0},{"$f":"$D$4*'CC Allocations'!AI21","v":0},{"$f":"$D$4*'CC Allocations'!AJ21","v":0},{"$f":"$D$4*'CC Allocations'!AK21","v":0},{"$f":"$D$4*'CC Allocations'!AL21","v":0},{"$f":"$D$4*'CC Allocations'!AM21","v":0},{"$f":"$D$4*'CC Allocations'!AN21","v":0},{"$f":"$D$4*'CC Allocations'!AO21","v":0},{"$f":"$D$4*'CC Allocations'!AP21","v":0},{"$f":"$D$4*'CC Allocations'!AQ21","v":0}]
[null,"057 - Office of Civil Legal Aid","057","Office of Civil Legal Aid",82.060408952075676,82.060408952075676,3,5.3182308870679155E-5,0,0,{"$f":"$D$4*'CC Allocations'!J22","v":0},{"$f":"$D$4*'CC Allocations'!K22","v":0},{"$f":"$D$4*'CC Allocations'!L22","v":0},{"$f":"$D$4*'CC Allocations'!M22","v":0},{"$f":"$D$4*'CC Allocations'!N22","v":0},{"$f":"$D$4*'CC Allocations'!O22","v":0},{"$f":"$D$4*'CC Allocations'!P22","v":0},{"$f":"$D$4*'CC Allocations'!Q22","v":0},{"$f":"$D$4*'CC Allocations'!R22","v":0},{"$f":"$D$4*'CC Allocations'!S22","v":0},{"$f":"$D$4*'CC Allocations'!T22","v":0},{"$f":"$D$4*'CC Allocations'!U22","v":0},{"$f":"$D$4*'CC Allocations'!V22","v":0},{"$f":"$D$4*'CC Allocations'!W22","v":0},{"$f":"$D$4*'CC Allocations'!X22","v":0},{"$f":"$D$4*'CC Allocations'!Y22","v":0},{"$f":"$D$4*'CC Allocations'!Z22","v":0},{"$f":"$D$4*'CC Allocations'!AA22","v":0},{"$f":"$D$4*'CC Allocations'!AB22","v":0},{"$f":"$D$4*'CC Allocations'!AC22","v":0},{"$f":"$D$4*'CC Allocations'!AD22","v":0},{"$f":"$D$4*'CC Allocations'!AE22","v":0},{"$f":"$D$4*'CC Allocations'!AF22","v":0},{"$f":"$D$4*'CC Allocations'!AG22","v":0},{"$f":"$D$4*'CC Allocations'!AH22","v":0},{"$f":"$D$4*'CC Allocations'!AI22","v":0},{"$f":"$D$4*'CC Allocations'!AJ22","v":0},{"$f":"$D$4*'CC Allocations'!AK22","v":0},{"$f":"$D$4*'CC Allocations'!AL22","v":0},{"$f":"$D$4*'CC Allocations'!AM22","v":0},{"$f":"$D$4*'CC Allocations'!AN22","v":0},{"$f":"$D$4*'CC Allocations'!AO22","v":0},{"$f":"$D$4*'CC Allocations'!AP22","v":0},{"$f":"$D$4*'CC Allocations'!AQ22","v":0}]
[null,"075 - Office of the Governor","075","Office of the Governor",9416.3451834810767,1777.9755272949731,65,1.1522833588647151E-3,6.919670243433865E-4,4.950330366510285E-3,{"$f":"$D$4*'CC Allocations'!J23","v":0},{"$f":"$D$4*'CC Allocations'!K23","v":0},{"$f":"$D$4*'CC Allocations'!L23","v":7638.3696561861043},{"$f":"$D$4*'CC Allocations'!M23","v":0},{"$f":"$D$4*'CC Allocations'!N23","v":0},{"$f":"$D$4*'CC Allocations'!O23","v":0},{"$f":"$D$4*'CC Allocations'!P23","v":0},{"$f":"$D$4*'CC Allocations'!Q23","v":0},{"$f":"$D$4*'CC Allocations'!R23","v":0},{"$f":"$D$4*'CC Allocations'!S23","v":0},{"$f":"$D$4*'CC Allocations'!T23","v":0},{"$f":"$D$4*'CC Allocations'!U23","v":0},{"$f":"$D$4*'CC Allocations'!V23","v":0},{"$f":"$D$4*'CC Allocations'!W23","v":0},{"$f":"$D$4*'CC Allocations'!X23","v":0},{"$f":"$D$4*'CC Allocations'!Y23","v":0},{"$f":"$D$4*'CC Allocations'!Z23","v":0},{"$f":"$D$4*'CC Allocations'!AA23","v":0},{"$f":"$D$4*'CC Allocations'!AB23","v":0},{"$f":"$D$4*'CC Allocations'!AC23","v":0},{"$f":"$D$4*'CC Allocations'!AD23","v":0},{"$f":"$D$4*'CC Allocations'!AE23","v":0},{"$f":"$D$4*'CC Allocations'!AF23","v":0},{"$f":"$D$4*'CC Allocations'!AG23","v":0},{"$f":"$D$4*'CC Allocations'!AH23","v":0},{"$f":"$D$4*'CC Allocations'!AI23","v":0},{"$f":"$D$4*'CC Allocations'!AJ23","v":0},{"$f":"$D$4*'CC Allocations'!AK23","v":0},{"$f":"$D$4*'CC Allocations'!AL23","v":0},{"$f":"$D$4*'CC Allocations'!AM23","v":0},{"$f":"$D$4*'CC Allocations'!AN23","v":0},{"$f":"$D$4*'CC Allocations'!AO23","v":0},{"$f":"$D$4*'CC Allocations'!AP23","v":0},{"$f":"$D$4*'CC Allocations'!AQ23","v":0}]
[null,"080 - Office of Lieutenant Governor","080","Office of Lieutenant Governor",4091.9699416797489,164.12081790415135,6,1.0636461774135831E-4,3.5582751196750368E-4,2.5455891332451914E-3,{"$f":"$D$4*'CC Allocations'!J24","v":0},{"$f":"$D$4*'CC Allocations'!K24","v":0},{"$f":"$D$4*'CC Allocations'!L24","v":3927.8491237755975},{"$f":"$D$4*'CC Allocations'!M24","v":0},{"$f":"$D$4*'CC Allocations'!N24","v":0},{"$f":"$D$4*'CC Allocations'!O24","v":0},{"$f":"$D$4*'CC Allocations'!P24","v":0},{"$f":"$D$4*'CC Allocations'!Q24","v":0},{"$f":"$D$4*'CC Allocations'!R24","v":0},{"$f":"$D$4*'CC Allocations'!S24","v":0},{"$f":"$D$4*'CC Allocations'!T24","v":0},{"$f":"$D$4*'CC Allocations'!U24","v":0},{"$f":"$D$4*'CC Allocations'!V24","v":0},{"$f":"$D$4*'CC Allocations'!W24","v":0},{"$f":"$D$4*'CC Allocations'!X24","v":0},{"$f":"$D$4*'CC Allocations'!Y24","v":0},{"$f":"$D$4*'CC Allocations'!Z24","v":0},{"$f":"$D$4*'CC Allocations'!AA24","v":0},{"$f":"$D$4*'CC Allocations'!AB24","v":0},{"$f":"$D$4*'CC Allocations'!AC24","v":0},{"$f":"$D$4*'CC Allocations'!AD24","v":0},{"$f":"$D$4*'CC Allocations'!AE24","v":0},{"$f":"$D$4*'CC Allocations'!AF24","v":0},{"$f":"$D$4*'CC Allocations'!AG24","v":0},{"$f":"$D$4*'CC Allocations'!AH24","v":0},{"$f":"$D$4*'CC Allocations'!AI24","v":0},{"$f":"$D$4*'CC Allocations'!AJ24","v":0},{"$f":"$D$4*'CC Allocations'!AK24","v":0},{"$f":"$D$4*'CC Allocations'!AL24","v":0},{"$f":"$D$4*'CC Allocations'!AM24","v":0},{"$f":"$D$4*'CC Allocations'!AN24","v":0},{"$f":"$D$4*'CC Allocations'!AO24","v":0},{"$f":"$D$4*'CC Allocations'!AP24","v":0},{"$f":"$D$4*'CC Allocations'!AQ24","v":0}]
[null,"082 - Public Disclosure Commission","082","Public Disclosure Commission",847.95755917144857,847.95755917144857,31,5.4955052499701786E-4,0,0,{"$f":"$D$4*'CC Allocations'!J25","v":0},{"$f":"$D$4*'CC Allocations'!K25","v":0},{"$f":"$D$4*'CC Allocations'!L25","v":0},{"$f":"$D$4*'CC Allocations'!M25","v":0},{"$f":"$D$4*'CC Allocations'!N25","v":0},{"$f":"$D$4*'CC Allocations'!O25","v":0},{"$f":"$D$4*'CC Allocations'!P25","v":0},{"$f":"$D$4*'CC Allocations'!Q25","v":0},{"$f":"$D$4*'CC Allocations'!R25","v":0},{"$f":"$D$4*'CC Allocations'!S25","v":0},{"$f":"$D$4*'CC Allocations'!T25","v":0},{"$f":"$D$4*'CC Allocations'!U25","v":0},{"$f":"$D$4*'CC Allocations'!V25","v":0},{"$f":"$D$4*'CC Allocations'!W25","v":0},{"$f":"$D$4*'CC Allocations'!X25","v":0},{"$f":"$D$4*'CC Allocations'!Y25","v":0},{"$f":"$D$4*'CC Allocations'!Z25","v":0},{"$f":"$D$4*'CC Allocations'!AA25","v":0},{"$f":"$D$4*'CC Allocations'!AB25","v":0},{"$f":"$D$4*'CC Allocations'!AC25","v":0},{"$f":"$D$4*'CC Allocations'!AD25","v":0},{"$f":"$D$4*'CC Allocations'!AE25","v":0},{"$f":"$D$4*'CC Allocations'!AF25","v":0},{"$f":"$D$4*'CC Allocations'!AG25","v":0},{"$f":"$D$4*'CC Allocations'!AH25","v":0},{"$f":"$D$4*'CC Allocations'!AI25","v":0},{"$f":"$D$4*'CC Allocations'!AJ25","v":0},{"$f":"$D$4*'CC Allocations'!AK25","v":0},{"$f":"$D$4*'CC Allocations'!AL25","v":0},{"$f":"$D$4*'CC Allocations'!AM25","v":0},{"$f":"$D$4*'CC Allocations'!AN25","v":0},{"$f":"$D$4*'CC Allocations'!AO25","v":0},{"$f":"$D$4*'CC Allocations'!AP25","v":0},{"$f":"$D$4*'CC Allocations'!AQ25","v":0}]
[null,"085 - Office of the Secretary of State","085","Office of the Secretary of State",38506.925566917016,6400.711898261904,234,4.1482200919129748E-3,2.3477237802228242E-3,2.0807629328189532E-2,{"$f":"$D$4*'CC Allocations'!J26","v":0},{"$f":"$D$4*'CC Allocations'!K26","v":0},{"$f":"$D$4*'CC Allocations'!L26","v":4713.9500978375154},{"$f":"$D$4*'CC Allocations'!M26","v":0},{"$f":"$D$4*'CC Allocations'!N26","v":0},{"$f":"$D$4*'CC Allocations'!O26","v":0},{"$f":"$D$4*'CC Allocations'!P26","v":16522.30119051475},{"$f":"$D$4*'CC Allocations'!Q26","v":0},{"$f":"$D$4*'CC Allocations'!R26","v":0},{"$f":"$D$4*'CC Allocations'!S26","v":0},{"$f":"$D$4*'CC Allocations'!T26","v":0},{"$f":"$D$4*'CC Allocations'!U26","v":0},{"$f":"$D$4*'CC Allocations'!V26","v":0},{"$f":"$D$4*'CC Allocations'!W26","v":0},{"$f":"$D$4*'CC Allocations'!X26","v":0},{"$f":"$D$4*'CC Allocations'!Y26","v":3697.9597846956171},{"$f":"$D$4*'CC Allocations'!Z26","v":0},{"$f":"$D$4*'CC Allocations'!AA26","v":0},{"$f":"$D$4*'CC Allocations'!AB26","v":0},{"$f":"$D$4*'CC Allocations'!AC26","v":0},{"$f":"$D$4*'CC Allocations'!AD26","v":7172.0025956072277},{"$f":"$D$4*'CC Allocations'!AE26","v":0},{"$f":"$D$4*'CC Allocations'!AF26","v":0},{"$f":"$D$4*'CC Allocations'!AG26","v":0},{"$f":"$D$4*'CC Allocations'!AH26","v":0},{"$f":"$D$4*'CC Allocations'!AI26","v":0},{"$f":"$D$4*'CC Allocations'!AJ26","v":0},{"$f":"$D$4*'CC Allocations'!AK26","v":0},{"$f":"$D$4*'CC Allocations'!AL26","v":0},{"$f":"$D$4*'CC Allocations'!AM26","v":0},{"$f":"$D$4*'CC Allocations'!AN26","v":0},{"$f":"$D$4*'CC Allocations'!AO26","v":0},{"$f":"$D$4*'CC Allocations'!AP26","v":0},{"$f":"$D$4*'CC Allocations'!AQ26","v":0}]
[null,"086 - Governor's Office of Indian Affairs","086","Governor's Office of Indian Affairs",455.1267530556363,27.353469650691892,1,1.7727436290226384E-5,0,2.7723443223336348E-4,{"$f":"$D$4*'CC Allocations'!J27","v":0},{"$f":"$D$4*'CC Allocations'!K27","v":0},{"$f":"$D$4*'CC Allocations'!L27","v":0},{"$f":"$D$4*'CC Allocations'!M27","v":0},{"$f":"$D$4*'CC Allocations'!N27","v":0},{"$f":"$D$4*'CC Allocations'!O27","v":0},{"$f":"$D$4*'CC Allocations'!P27","v":0},{"$f":"$D$4*'CC Allocations'!Q27","v":0},{"$f":"$D$4*'CC Allocations'!R27","v":0},{"$f":"$D$4*'CC Allocations'!S27","v":0},{"$f":"$D$4*'CC Allocations'!T27","v":0},{"$f":"$D$4*'CC Allocations'!U27","v":0},{"$f":"$D$4*'CC Allocations'!V27","v":0},{"$f":"$D$4*'CC Allocations'!W27","v":0},{"$f":"$D$4*'CC Allocations'!X27","v":0},{"$f":"$D$4*'CC Allocations'!Y27","v":0},{"$f":"$D$4*'CC Allocations'!Z27","v":0},{"$f":"$D$4*'CC Allocations'!AA27","v":0},{"$f":"$D$4*'CC Allocations'!AB27","v":0},{"$f":"$D$4*'CC Allocations'!AC27","v":427.77328340494438},{"$f":"$D$4*'CC Allocations'!AD27","v":0},{"$f":"$D$4*'CC Allocations'!AE27","v":0},{"$f":"$D$4*'CC Allocations'!AF27","v":0},{"$f":"$D$4*'CC Allocations'!AG27","v":0},{"$f":"$D$4*'CC Allocations'!AH27","v":0},{"$f":"$D$4*'CC Allocations'!AI27","v":0},{"$f":"$D$4*'CC Allocations'!AJ27","v":0},{"$f":"$D$4*'CC Allocations'!AK27","v":0},{"$f":"$D$4*'CC Allocations'!AL27","v":0},{"$f":"$D$4*'CC Allocations'!AM27","v":0},{"$f":"$D$4*'CC Allocations'!AN27","v":0},{"$f":"$D$4*'CC Allocations'!AO27","v":0},{"$f":"$D$4*'CC Allocations'!AP27","v":0},{"$f":"$D$4*'CC Allocations'!AQ27","v":0}]
[null,"087 - Commission on Asian Pacific American Affairs","087","Commission on Asian Pacific American Affairs",363.43871960639513,82.060408952075676,3,5.3182308870679155E-5,0,1.8235770961691519E-4,{"$f":"$D$4*'CC Allocations'!J28","v":0},{"$f":"$D$4*'CC Allocations'!K28","v":0},{"$f":"$D$4*'CC Allocations'!L28","v":0},{"$f":"$D$4*'CC Allocations'!M28","v":0},{"$f":"$D$4*'CC Allocations'!N28","v":0},{"$f":"$D$4*'CC Allocations'!O28","v":0},{"$f":"$D$4*'CC Allocations'!P28","v":0},{"$f":"$D$4*'CC Allocations'!Q28","v":0},{"$f":"$D$4*'CC Allocations'!R28","v":0},{"$f":"$D$4*'CC Allocations'!S28","v":0},{"$f":"$D$4*'CC Allocations'!T28","v":0},{"$f":"$D$4*'CC Allocations'!U28","v":0},{"$f":"$D$4*'CC Allocations'!V28","v":0},{"$f":"$D$4*'CC Allocations'!W28","v":0},{"$f":"$D$4*'CC Allocations'!X28","v":0},{"$f":"$D$4*'CC Allocations'!Y28","v":0},{"$f":"$D$4*'CC Allocations'!Z28","v":0},{"$f":"$D$4*'CC Allocations'!AA28","v":0},{"$f":"$D$4*'CC Allocations'!AB28","v":0},{"$f":"$D$4*'CC Allocations'!AC28","v":281.37831065431942},{"$f":"$D$4*'CC Allocations'!AD28","v":0},{"$f":"$D$4*'CC Allocations'!AE28","v":0},{"$f":"$D$4*'CC Allocations'!AF28","v":0},{"$f":"$D$4*'CC Allocations'!AG28","v":0},{"$f":"$D$4*'CC Allocations'!AH28","v":0},{"$f":"$D$4*'CC Allocations'!AI28","v":0},{"$f":"$D$4*'CC Allocations'!AJ28","v":0},{"$f":"$D$4*'CC Allocations'!AK28","v":0},{"$f":"$D$4*'CC Allocations'!AL28","v":0},{"$f":"$D$4*'CC Allocations'!AM28","v":0},{"$f":"$D$4*'CC Allocations'!AN28","v":0},{"$f":"$D$4*'CC Allocations'!AO28","v":0},{"$f":"$D$4*'CC Allocations'!AP28","v":0},{"$f":"$D$4*'CC Allocations'!AQ28","v":0}]
[null,"090 - Office of State Treasurer","090","Office of State Treasurer",6383.9288643306209,1641.2081790415136,60,1.0636461774135831E-3,4.2964748599637163E-4,3.0736970433538685E-3,{"$f":"$D$4*'CC Allocations'!J29","v":0},{"$f":"$D$4*'CC Allocations'!K29","v":0},{"$f":"$D$4*'CC Allocations'!L29","v":4742.7206852891068},{"$f":"$D$4*'CC Allocations'!M29","v":0},{"$f":"$D$4*'CC Allocations'!N29","v":0},{"$f":"$D$4*'CC Allocations'!O29","v":0},{"$f":"$D$4*'CC Allocations'!P29","v":0},{"$f":"$D$4*'CC Allocations'!Q29","v":0},{"$f":"$D$4*'CC Allocations'!R29","v":0},{"$f":"$D$4*'CC Allocations'!S29","v":0},{"$f":"$D$4*'CC Allocations'!T29","v":0},{"$f":"$D$4*'CC Allocations'!U29","v":0},{"$f":"$D$4*'CC Allocations'!V29","v":0},{"$f":"$D$4*'CC Allocations'!W29","v":0},{"$f":"$D$4*'CC Allocations'!X29","v":0},{"$f":"$D$4*'CC Allocations'!Y29","v":0},{"$f":"$D$4*'CC Allocations'!Z29","v":0},{"$f":"$D$4*'CC Allocations'!AA29","v":0},{"$f":"$D$4*'CC Allocations'!AB29","v":0},{"$f":"$D$4*'CC Allocations'!AC29","v":0},{"$f":"$D$4*'CC Allocations'!AD29","v":0},{"$f":"$D$4*'CC Allocations'!AE29","v":0},{"$f":"$D$4*'CC Allocations'!AF29","v":0},{"$f":"$D$4*'CC Allocations'!AG29","v":0},{"$f":"$D$4*'CC Allocations'!AH29","v":0},{"$f":"$D$4*'CC Allocations'!AI29","v":0},{"$f":"$D$4*'CC Allocations'!AJ29","v":0},{"$f":"$D$4*'CC Allocations'!AK29","v":0},{"$f":"$D$4*'CC Allocations'!AL29","v":0},{"$f":"$D$4*'CC Allocations'!AM29","v":0},{"$f":"$D$4*'CC Allocations'!AN29","v":0},{"$f":"$D$4*'CC Allocations'!AO29","v":0},{"$f":"$D$4*'CC Allocations'!AP29","v":0},{"$f":"$D$4*'CC Allocations'!AQ29","v":0}]
[null,"095 - Office of State Auditor","095","Office of State Auditor",7975.7872544193679,4485.9690227134706,164,2.9072995515971273E-3,2.5710682969750211E-4,2.2617068751083257E-3,{"$f":"$D$4*'CC Allocations'!J30","v":0},{"$f":"$D$4*'CC Allocations'!K30","v":0},{"$f":"$D$4*'CC Allocations'!L30","v":0},{"$f":"$D$4*'CC Allocations'!M30","v":0},{"$f":"$D$4*'CC Allocations'!N30","v":0},{"$f":"$D$4*'CC Allocations'!O30","v":0},{"$f":"$D$4*'CC Allocations'!P30","v":0},{"$f":"$D$4*'CC Allocations'!Q30","v":0},{"$f":"$D$4*'CC Allocations'!R30","v":0},{"$f":"$D$4*'CC Allocations'!S30","v":0},{"$f":"$D$4*'CC Allocations'!T30","v":2350.2469492545392},{"$f":"$D$4*'CC Allocations'!U30","v":0},{"$f":"$D$4*'CC Allocations'!V30","v":0},{"$f":"$D$4*'CC Allocations'!W30","v":0},{"$f":"$D$4*'CC Allocations'!X30","v":0},{"$f":"$D$4*'CC Allocations'!Y30","v":0},{"$f":"$D$4*'CC Allocations'!Z30","v":0},{"$f":"$D$4*'CC Allocations'!AA30","v":0},{"$f":"$D$4*'CC Allocations'!AB30","v":0},{"$f":"$D$4*'CC Allocations'!AC30","v":0},{"$f":"$D$4*'CC Allocations'!AD30","v":0},{"$f":"$D$4*'CC Allocations'!AE30","v":0},{"$f":"$D$4*'CC Allocations'!AF30","v":0},{"$f":"$D$4*'CC Allocations'!AG30","v":0},{"$f":"$D$4*'CC Allocations'!AH30","v":0},{"$f":"$D$4*'CC Allocations'!AI30","v":0},{"$f":"$D$4*'CC Allocations'!AJ30","v":0},{"$f":"$D$4*'CC Allocations'!AK30","v":0},{"$f":"$D$4*'CC Allocations'!AL30","v":0},{"$f":"$D$4*'CC Allocations'!AM30","v":0},{"$f":"$D$4*'CC Allocations'!AN30","v":0},{"$f":"$D$4*'CC Allocations'!AO30","v":1139.5712824513578},{"$f":"$D$4*'CC Allocations'!AP30","v":0},{"$f":"$D$4*'CC Allocations'!AQ30","v":0}]
[null,"099 - Citizens' Commission on Salaries for Elected Officials","099","Citizens' Commission on Salaries for Elected Officials",299.20751775367091,82.060408952075676,3,5.3182308870679155E-5,0,1.407302834355336E-4,{"$f":"$D$4*'CC Allocations'!J31","v":0},{"$f":"$D$4*'CC Allocations'!K31","v":0},{"$f":"$D$4*'CC Allocations'!L31","v":0},{"$f":"$D$4*'CC Allocations'!M31","v":0},{"$f":"$D$4*'CC Allocations'!N31","v":0},{"$f":"$D$4*'CC Allocations'!O31","v":0},{"$f":"$D$4*'CC Allocations'!P31","v":0},{"$f":"$D$4*'CC Allocations'!Q31","v":0},{"$f":"$D$4*'CC Allocations'!R31","v":0},{"$f":"$D$4*'CC Allocations'!S31","v":0},{"$f":"$D$4*'CC Allocations'!T31","v":0},{"$f":"$D$4*'CC Allocations'!U31","v":0},{"$f":"$D$4*'CC Allocations'!V31","v":0},{"$f":"$D$4*'CC Allocations'!W31","v":0},{"$f":"$D$4*'CC Allocations'!X31","v":0},{"$f":"$D$4*'CC Allocations'!Y31","v":0},{"$f":"$D$4*'CC Allocations'!Z31","v":0},{"$f":"$D$4*'CC Allocations'!AA31","v":0},{"$f":"$D$4*'CC Allocations'!AB31","v":0},{"$f":"$D$4*'CC Allocations'!AC31","v":217.14710880159527},{"$f":"$D$4*'CC Allocations'!AD31","v":0},{"$f":"$D$4*'CC Allocations'!AE31","v":0},{"$f":"$D$4*'CC Allocations'!AF31","v":0},{"$f":"$D$4*'CC Allocations'!AG31","v":0},{"$f":"$D$4*'CC Allocations'!AH31","v":0},{"$f":"$D$4*'CC Allocations'!AI31","v":0},{"$f":"$D$4*'CC Allocations'!AJ31","v":0},{"$f":"$D$4*'CC Allocations'!AK31","v":0},{"$f":"$D$4*'CC Allocations'!AL31","v":0},{"$f":"$D$4*'CC Allocations'!AM31","v":0},{"$f":"$D$4*'CC Allocations'!AN31","v":0},{"$f":"$D$4*'CC Allocations'!AO31","v":0},{"$f":"$D$4*'CC Allocations'!AP31","v":0},{"$f":"$D$4*'CC Allocations'!AQ31","v":0}]
[null,"100 - Office of Attorney General","100","Office of Attorney General",48544.047634315357,18737.126710723947,685,1.2143293858805075E-2,2.9126611045534709E-3,1.9317486901242777E-2,{"$f":"$D$4*'CC Allocations'!J32","v":0},{"$f":"$D$4*'CC Allocations'!K32","v":0},{"$f":"$D$4*'CC Allocations'!L32","v":0},{"$f":"$D$4*'CC Allocations'!M32","v":0},{"$f":"$D$4*'CC Allocations'!N32","v":29806.920923591413},{"$f":"$D$4*'CC Allocations'!O32","v":0},{"$f":"$D$4*'CC Allocations'!P32","v":0},{"$f":"$D$4*'CC Allocations'!Q32","v":0},{"$f":"$D$4*'CC Allocations'!R32","v":0},{"$f":"$D$4*'CC Allocations'!S32","v":0},{"$f":"$D$4*'CC Allocations'!T32","v":0},{"$f":"$D$4*'CC Allocations'!U32","v":0},{"$f":"$D$4*'CC Allocations'!V32","v":0},{"$f":"$D$4*'CC Allocations'!W32","v":0},{"$f":"$D$4*'CC Allocations'!X32","v":0},{"$f":"$D$4*'CC Allocations'!Y32","v":0},{"$f":"$D$4*'CC Allocations'!Z32","v":0},{"$f":"$D$4*'CC Allocations'!AA32","v":0},{"$f":"$D$4*'CC Allocations'!AB32","v":0},{"$f":"$D$4*'CC Allocations'!AC32","v":0},{"$f":"$D$4*'CC Allocations'!AD32","v":0},{"$f":"$D$4*'CC Allocations'!AE32","v":0},{"$f":"$D$4*'CC Allocations'!AF32","v":0},{"$f":"$D$4*'CC Allocations'!AG32","v":0},{"$f":"$D$4*'CC Allocations'!AH32","v":0},{"$f":"$D$4*'CC Allocations'!AI32","v":0},{"$f":"$D$4*'CC Allocations'!AJ32","v":0},{"$f":"$D$4*'CC Allocations'!AK32","v":0},{"$f":"$D$4*'CC Allocations'!AL32","v":0},{"$f":"$D$4*'CC Allocations'!AM32","v":0},{"$f":"$D$4*'CC Allocations'!AN32","v":0},{"$f":"$D$4*'CC Allocations'!AO32","v":0},{"$f":"$D$4*'CC Allocations'!AP32","v":0},{"$f":"$D$4*'CC Allocations'!AQ32","v":0}]
[null,"101 - Caseload Forecast Council","101","Caseload Forecast Council",1955.2836262345891,273.53469650691898,10,1.7727436290226387E-4,0,1.0899201230637873E-3,{"$f":"$D$4*'CC Allocations'!J33","v":0},{"$f":"$D$4*'CC Allocations'!K33","v":0},{"$f":"$D$4*'CC Allocations'!L33","v":0},{"$f":"$D$4*'CC Allocations'!M33","v":0},{"$f":"$D$4*'CC Allocations'!N33","v":0},{"$f":"$D$4*'CC Allocations'!O33","v":0},{"$f":"$D$4*'CC Allocations'!P33","v":0},{"$f":"$D$4*'CC Allocations'!Q33","v":0},{"$f":"$D$4*'CC Allocations'!R33","v":0},{"$f":"$D$4*'CC Allocations'!S33","v":0},{"$f":"$D$4*'CC Allocations'!T33","v":0},{"$f":"$D$4*'CC Allocations'!U33","v":0},{"$f":"$D$4*'CC Allocations'!V33","v":0},{"$f":"$D$4*'CC Allocations'!W33","v":0},{"$f":"$D$4*'CC Allocations'!X33","v":0},{"$f":"$D$4*'CC Allocations'!Y33","v":0},{"$f":"$D$4*'CC Allocations'!Z33","v":0},{"$f":"$D$4*'CC Allocations'!AA33","v":0},{"$f":"$D$4*'CC Allocations'!AB33","v":0},{"$f":"$D$4*'CC Allocations'!AC33","v":1681.7489297276702},{"$f":"$D$4*'CC Allocations'!AD33","v":0},{"$f":"$D$4*'CC Allocations'!AE33","v":0},{"$f":"$D$4*'CC Allocations'!AF33","v":0},{"$f":"$D$4*'CC Allocations'!AG33","v":0},{"$f":"$D$4*'CC Allocations'!AH33","v":0},{"$f":"$D$4*'CC Allocations'!AI33","v":0},{"$f":"$D$4*'CC Allocations'!AJ33","v":0},{"$f":"$D$4*'CC Allocations'!AK33","v":0},{"$f":"$D$4*'CC Allocations'!AL33","v":0},{"$f":"$D$4*'CC Allocations'!AM33","v":0},{"$f":"$D$4*'CC Allocations'!AN33","v":0},{"$f":"$D$4*'CC Allocations'!AO33","v":0},{"$f":"$D$4*'CC Allocations'!AP33","v":0},{"$f":"$D$4*'CC Allocations'!AQ33","v":0}]
[null,"102 - Department of Financial Institutions","102","Department of Financial Institutions",4403.9086137613949,4403.9086137613949,161,2.8541172427264481E-3,0,0,{"$f":"$D$4*'CC Allocations'!J34","v":0},{"$f":"$D$4*'CC Allocations'!K34","v":0},{"$f":"$D$4*'CC Allocations'!L34","v":0},{"$f":"$D$4*'CC Allocations'!M34","v":0},{"$f":"$D$4*'CC Allocations'!N34","v":0},{"$f":"$D$4*'CC Allocations'!O34","v":0},{"$f":"$D$4*'CC Allocations'!P34","v":0},{"$f":"$D$4*'CC Allocations'!Q34","v":0},{"$f":"$D$4*'CC Allocations'!R34","v":0},{"$f":"$D$4*'CC Allocations'!S34","v":0},{"$f":"$D$4*'CC Allocations'!T34","v":0},{"$f":"$D$4*'CC Allocations'!U34","v":0},{"$f":"$D$4*'CC Allocations'!V34","v":0},{"$f":"$D$4*'CC Allocations'!W34","v":0},{"$f":"$D$4*'CC Allocations'!X34","v":0},{"$f":"$D$4*'CC Allocations'!Y34","v":0},{"$f":"$D$4*'CC Allocations'!Z34","v":0},{"$f":"$D$4*'CC Allocations'!AA34","v":0},{"$f":"$D$4*'CC Allocations'!AB34","v":0},{"$f":"$D$4*'CC Allocations'!AC34","v":0},{"$f":"$D$4*'CC Allocations'!AD34","v":0},{"$f":"$D$4*'CC Allocations'!AE34","v":0},{"$f":"$D$4*'CC Allocations'!AF34","v":0},{"$f":"$D$4*'CC Allocations'!AG34","v":0},{"$f":"$D$4*'CC Allocations'!AH34","v":0},{"$f":"$D$4*'CC Allocations'!AI34","v":0},{"$f":"$D$4*'CC Allocations'!AJ34","v":0},{"$f":"$D$4*'CC Allocations'!AK34","v":0},{"$f":"$D$4*'CC Allocations'!AL34","v":0},{"$f":"$D$4*'CC Allocations'!AM34","v":0},{"$f":"$D$4*'CC Allocations'!AN34","v":0},{"$f":"$D$4*'CC Allocations'!AO34","v":0},{"$f":"$D$4*'CC Allocations'!AP34","v":0},{"$f":"$D$4*'CC Allocations'!AQ34","v":0}]
[null,"103 - Department of Commerce","103","Department of Commerce",8397.5151827624104,8397.5151827624104,307,5.4423229410994999E-3,0,0,{"$f":"$D$4*'CC Allocations'!J35","v":0},{"$f":"$D$4*'CC Allocations'!K35","v":0},{"$f":"$D$4*'CC Allocations'!L35","v":0},{"$f":"$D$4*'CC Allocations'!M35","v":0},{"$f":"$D$4*'CC Allocations'!N35","v":0},{"$f":"$D$4*'CC Allocations'!O35","v":0},{"$f":"$D$4*'CC Allocations'!P35","v":0},{"$f":"$D$4*'CC Allocations'!Q35","v":0},{"$f":"$D$4*'CC Allocations'!R35","v":0},{"$f":"$D$4*'CC Allocations'!S35","v":0},{"$f":"$D$4*'CC Allocations'!T35","v":0},{"$f":"$D$4*'CC Allocations'!U35","v":0},{"$f":"$D$4*'CC Allocations'!V35","v":0},{"$f":"$D$4*'CC Allocations'!W35","v":0},{"$f":"$D$4*'CC Allocations'!X35","v":0},{"$f":"$D$4*'CC Allocations'!Y35","v":0},{"$f":"$D$4*'CC Allocations'!Z35","v":0},{"$f":"$D$4*'CC Allocations'!AA35","v":0},{"$f":"$D$4*'CC Allocations'!AB35","v":0},{"$f":"$D$4*'CC Allocations'!AC35","v":0},{"$f":"$D$4*'CC Allocations'!AD35","v":0},{"$f":"$D$4*'CC Allocations'!AE35","v":0},{"$f":"$D$4*'CC Allocations'!AF35","v":0},{"$f":"$D$4*'CC Allocations'!AG35","v":0},{"$f":"$D$4*'CC Allocations'!AH35","v":0},{"$f":"$D$4*'CC Allocations'!AI35","v":0},{"$f":"$D$4*'CC Allocations'!AJ35","v":0},{"$f":"$D$4*'CC Allocations'!AK35","v":0},{"$f":"$D$4*'CC Allocations'!AL35","v":0},{"$f":"$D$4*'CC Allocations'!AM35","v":0},{"$f":"$D$4*'CC Allocations'!AN35","v":0},{"$f":"$D$4*'CC Allocations'!AO35","v":0},{"$f":"$D$4*'CC Allocations'!AP35","v":0},{"$f":"$D$4*'CC Allocations'!AQ35","v":0}]
[null,"104 - Economic and Revenue Forecast Council","104","Economic and Revenue Forecast Council",136.76734825345949,136.76734825345949,5,8.8637181451131937E-5,0,0,{"$f":"$D$4*'CC Allocations'!J36","v":0},{"$f":"$D$4*'CC Allocations'!K36","v":0},{"$f":"$D$4*'CC Allocations'!L36","v":0},{"$f":"$D$4*'CC Allocations'!M36","v":0},{"$f":"$D$4*'CC Allocations'!N36","v":0},{"$f":"$D$4*'CC Allocations'!O36","v":0},{"$f":"$D$4*'CC Allocations'!P36","v":0},{"$f":"$D$4*'CC Allocations'!Q36","v":0},{"$f":"$D$4*'CC Allocations'!R36","v":0},{"$f":"$D$4*'CC Allocations'!S36","v":0},{"$f":"$D$4*'CC Allocations'!T36","v":0},{"$f":"$D$4*'CC Allocations'!U36","v":0},{"$f":"$D$4*'CC Allocations'!V36","v":0},{"$f":"$D$4*'CC Allocations'!W36","v":0},{"$f":"$D$4*'CC Allocations'!X36","v":0},{"$f":"$D$4*'CC Allocations'!Y36","v":0},{"$f":"$D$4*'CC Allocations'!Z36","v":0},{"$f":"$D$4*'CC Allocations'!AA36","v":0},{"$f":"$D$4*'CC Allocations'!AB36","v":0},{"$f":"$D$4*'CC Allocations'!AC36","v":0},{"$f":"$D$4*'CC Allocations'!AD36","v":0},{"$f":"$D$4*'CC Allocations'!AE36","v":0},{"$f":"$D$4*'CC Allocations'!AF36","v":0},{"$f":"$D$4*'CC Allocations'!AG36","v":0},{"$f":"$D$4*'CC Allocations'!AH36","v":0},{"$f":"$D$4*'CC Allocations'!AI36","v":0},{"$f":"$D$4*'CC Allocations'!AJ36","v":0},{"$f":"$D$4*'CC Allocations'!AK36","v":0},{"$f":"$D$4*'CC Allocations'!AL36","v":0},{"$f":"$D$4*'CC Allocations'!AM36","v":0},{"$f":"$D$4*'CC Allocations'!AN36","v":0},{"$f":"$D$4*'CC Allocations'!AO36","v":0},{"$f":"$D$4*'CC Allocations'!AP36","v":0},{"$f":"$D$4*'CC Allocations'!AQ36","v":0}]
[null,"105 - Office of Financial Management","105","Office of Financial Management",27413.90074437435,11898.759298050973,435,7.7114347862484774E-3,1.6723572280401935E-3,1.0055166128315696E-2,{"$f":"$D$4*'CC Allocations'!J37","v":0},{"$f":"$D$4*'CC Allocations'!K37","v":0},{"$f":"$D$4*'CC Allocations'!L37","v":0},{"$f":"$D$4*'CC Allocations'!M37","v":0},{"$f":"$D$4*'CC Allocations'!N37","v":0},{"$f":"$D$4*'CC Allocations'!O37","v":0},{"$f":"$D$4*'CC Allocations'!P37","v":0},{"$f":"$D$4*'CC Allocations'!Q37","v":0},{"$f":"$D$4*'CC Allocations'!R37","v":0},{"$f":"$D$4*'CC Allocations'!S37","v":0},{"$f":"$D$4*'CC Allocations'!T37","v":15287.234796094677},{"$f":"$D$4*'CC Allocations'!U37","v":0},{"$f":"$D$4*'CC Allocations'!V37","v":0},{"$f":"$D$4*'CC Allocations'!W37","v":0},{"$f":"$D$4*'CC Allocations'!X37","v":0},{"$f":"$D$4*'CC Allocations'!Y37","v":0},{"$f":"$D$4*'CC Allocations'!Z37","v":0},{"$f":"$D$4*'CC Allocations'!AA37","v":0},{"$f":"$D$4*'CC Allocations'!AB37","v":0},{"$f":"$D$4*'CC Allocations'!AC37","v":227.90665022870135},{"$f":"$D$4*'CC Allocations'!AD37","v":0},{"$f":"$D$4*'CC Allocations'!AE37","v":0},{"$f":"$D$4*'CC Allocations'!AF37","v":0},{"$f":"$D$4*'CC Allocations'!AG37","v":0},{"$f":"$D$4*'CC Allocations'!AH37","v":0},{"$f":"$D$4*'CC Allocations'!AI37","v":0},{"$f":"$D$4*'CC Allocations'!AJ37","v":0},{"$f":"$D$4*'CC Allocations'!AK37","v":0},{"$f":"$D$4*'CC Allocations'!AL37","v":0},{"$f":"$D$4*'CC Allocations'!AM37","v":0},{"$f":"$D$4*'CC Allocations'!AN37","v":0},{"$f":"$D$4*'CC Allocations'!AO37","v":0},{"$f":"$D$4*'CC Allocations'!AP37","v":0},{"$f":"$D$4*'CC Allocations'!AQ37","v":0}]
[null,"107 - Washington State Health Care Authority","107","Washington State Health Care Authority",36708.35627122852,36708.35627122852,1342,2.3790219501483807E-2,0,0,{"$f":"$D$4*'CC Allocations'!J38","v":0},{"$f":"$D$4*'CC Allocations'!K38","v":0},{"$f":"$D$4*'CC Allocations'!L38","v":0},{"$f":"$D$4*'CC Allocations'!M38","v":0},{"$f":"$D$4*'CC Allocations'!N38","v":0},{"$f":"$D$4*'CC Allocations'!O38","v":0},{"$f":"$D$4*'CC Allocations'!P38","v":0},{"$f":"$D$4*'CC Allocations'!Q38","v":0},{"$f":"$D$4*'CC Allocations'!R38","v":0},{"$f":"$D$4*'CC Allocations'!S38","v":0},{"$f":"$D$4*'CC Allocations'!T38","v":0},{"$f":"$D$4*'CC Allocations'!U38","v":0},{"$f":"$D$4*'CC Allocations'!V38","v":0},{"$f":"$D$4*'CC Allocations'!W38","v":0},{"$f":"$D$4*'CC Allocations'!X38","v":0},{"$f":"$D$4*'CC Allocations'!Y38","v":0},{"$f":"$D$4*'CC Allocations'!Z38","v":0},{"$f":"$D$4*'CC Allocations'!AA38","v":0},{"$f":"$D$4*'CC Allocations'!AB38","v":0},{"$f":"$D$4*'CC Allocations'!AC38","v":0},{"$f":"$D$4*'CC Allocations'!AD38","v":0},{"$f":"$D$4*'CC Allocations'!AE38","v":0},{"$f":"$D$4*'CC Allocations'!AF38","v":0},{"$f":"$D$4*'CC Allocations'!AG38","v":0},{"$f":"$D$4*'CC Allocations'!AH38","v":0},{"$f":"$D$4*'CC Allocations'!AI38","v":0},{"$f":"$D$4*'CC Allocations'!AJ38","v":0},{"$f":"$D$4*'CC Allocations'!AK38","v":0},{"$f":"$D$4*'CC Allocations'!AL38","v":0},{"$f":"$D$4*'CC Allocations'!AM38","v":0},{"$f":"$D$4*'CC Allocations'!AN38","v":0},{"$f":"$D$4*'CC Allocations'!AO38","v":0},{"$f":"$D$4*'CC Allocations'!AP38","v":0},{"$f":"$D$4*'CC Allocations'!AQ38","v":0}]
[null,"110 - Office of Administrative Hearings","110","Office of Administrative Hearings",4706.0558977309393,1805.328996945665,66,1.1700107951549414E-3,0,1.8799242650270537E-3,{"$f":"$D$4*'CC Allocations'!J39","v":0},{"$f":"$D$4*'CC Allocations'!K39","v":0},{"$f":"$D$4*'CC Allocations'!L39","v":0},{"$f":"$D$4*'CC Allocations'!M39","v":0},{"$f":"$D$4*'CC Allocations'!N39","v":0},{"$f":"$D$4*'CC Allocations'!O39","v":0},{"$f":"$D$4*'CC Allocations'!P39","v":0},{"$f":"$D$4*'CC Allocations'!Q39","v":0},{"$f":"$D$4*'CC Allocations'!R39","v":0},{"$f":"$D$4*'CC Allocations'!S39","v":0},{"$f":"$D$4*'CC Allocations'!T39","v":0},{"$f":"$D$4*'CC Allocations'!U39","v":0},{"$f":"$D$4*'CC Allocations'!V39","v":0},{"$f":"$D$4*'CC Allocations'!W39","v":0},{"$f":"$D$4*'CC Allocations'!X39","v":0},{"$f":"$D$4*'CC Allocations'!Y39","v":0},{"$f":"$D$4*'CC Allocations'!Z39","v":0},{"$f":"$D$4*'CC Allocations'!AA39","v":0},{"$f":"$D$4*'CC Allocations'!AB39","v":0},{"$f":"$D$4*'CC Allocations'!AC39","v":0},{"$f":"$D$4*'CC Allocations'!AD39","v":0},{"$f":"$D$4*'CC Allocations'!AE39","v":0},{"$f":"$D$4*'CC Allocations'!AF39","v":0},{"$f":"$D$4*'CC Allocations'!AG39","v":0},{"$f":"$D$4*'CC Allocations'!AH39","v":0},{"$f":"$D$4*'CC Allocations'!AI39","v":0},{"$f":"$D$4*'CC Allocations'!AJ39","v":0},{"$f":"$D$4*'CC Allocations'!AK39","v":0},{"$f":"$D$4*'CC Allocations'!AL39","v":0},{"$f":"$D$4*'CC Allocations'!AM39","v":0},{"$f":"$D$4*'CC Allocations'!AN39","v":0},{"$f":"$D$4*'CC Allocations'!AO39","v":2900.7269007852742},{"$f":"$D$4*'CC Allocations'!AP39","v":0},{"$f":"$D$4*'CC Allocations'!AQ39","v":0}]
[null,"116 - State Lottery","116","State Lottery",1914.7428755484325,1914.7428755484325,70,1.2409205403158469E-3,0,0,{"$f":"$D$4*'CC Allocations'!J40","v":0},{"$f":"$D$4*'CC Allocations'!K40","v":0},{"$f":"$D$4*'CC Allocations'!L40","v":0},{"$f":"$D$4*'CC Allocations'!M40","v":0},{"$f":"$D$4*'CC Allocations'!N40","v":0},{"$f":"$D$4*'CC Allocations'!O40","v":0},{"$f":"$D$4*'CC Allocations'!P40","v":0},{"$f":"$D$4*'CC Allocations'!Q40","v":0},{"$f":"$D$4*'CC Allocations'!R40","v":0},{"$f":"$D$4*'CC Allocations'!S40","v":0},{"$f":"$D$4*'CC Allocations'!T40","v":0},{"$f":"$D$4*'CC Allocations'!U40","v":0},{"$f":"$D$4*'CC Allocations'!V40","v":0},{"$f":"$D$4*'CC Allocations'!W40","v":0},{"$f":"$D$4*'CC Allocations'!X40","v":0},{"$f":"$D$4*'CC Allocations'!Y40","v":0},{"$f":"$D$4*'CC Allocations'!Z40","v":0},{"$f":"$D$4*'CC Allocations'!AA40","v":0},{"$f":"$D$4*'CC Allocations'!AB40","v":0},{"$f":"$D$4*'CC Allocations'!AC40","v":0},{"$f":"$D$4*'CC Allocations'!AD40","v":0},{"$f":"$D$4*'CC Allocations'!AE40","v":0},{"$f":"$D$4*'CC Allocations'!AF40","v":0},{"$f":"$D$4*'CC Allocations'!AG40","v":0},{"$f":"$D$4*'CC Allocations'!AH40","v":0},{"$f":"$D$4*'CC Allocations'!AI40","v":0},{"$f":"$D$4*'CC Allocations'!AJ40","v":0},{"$f":"$D$4*'CC Allocations'!AK40","v":0},{"$f":"$D$4*'CC Allocations'!AL40","v":0},{"$f":"$D$4*'CC Allocations'!AM40","v":0},{"$f":"$D$4*'CC Allocations'!AN40","v":0},{"$f":"$D$4*'CC Allocations'!AO40","v":0},{"$f":"$D$4*'CC Allocations'!AP40","v":0},{"$f":"$D$4*'CC Allocations'!AQ40","v":0}]
[null,"117 - Washington State Gambling Commission","117","Washington State Gambling Commission",1559.1477700894377,1559.1477700894377,57,1.0104638685429039E-3,0,0,{"$f":"$D$4*'CC Allocations'!J41","v":0},{"$f":"$D$4*'CC Allocations'!K41","v":0},{"$f":"$D$4*'CC Allocations'!L41","v":0},{"$f":"$D$4*'CC Allocations'!M41","v":0},{"$f":"$D$4*'CC Allocations'!N41","v":0},{"$f":"$D$4*'CC Allocations'!O41","v":0},{"$f":"$D$4*'CC Allocations'!P41","v":0},{"$f":"$D$4*'CC Allocations'!Q41","v":0},{"$f":"$D$4*'CC Allocations'!R41","v":0},{"$f":"$D$4*'CC Allocations'!S41","v":0},{"$f":"$D$4*'CC Allocations'!T41","v":0},{"$f":"$D$4*'CC Allocations'!U41","v":0},{"$f":"$D$4*'CC Allocations'!V41","v":0},{"$f":"$D$4*'CC Allocations'!W41","v":0},{"$f":"$D$4*'CC Allocations'!X41","v":0},{"$f":"$D$4*'CC Allocations'!Y41","v":0},{"$f":"$D$4*'CC Allocations'!Z41","v":0},{"$f":"$D$4*'CC Allocations'!AA41","v":0},{"$f":"$D$4*'CC Allocations'!AB41","v":0},{"$f":"$D$4*'CC Allocations'!AC41","v":0},{"$f":"$D$4*'CC Allocations'!AD41","v":0},{"$f":"$D$4*'CC Allocations'!AE41","v":0},{"$f":"$D$4*'CC Allocations'!AF41","v":0},{"$f":"$D$4*'CC Allocations'!AG41","v":0},{"$f":"$D$4*'CC Allocations'!AH41","v":0},{"$f":"$D$4*'CC Allocations'!AI41","v":0},{"$f":"$D$4*'CC Allocations'!AJ41","v":0},{"$f":"$D$4*'CC Allocations'!AK41","v":0},{"$f":"$D$4*'CC Allocations'!AL41","v":0},{"$f":"$D$4*'CC Allocations'!AM41","v":0},{"$f":"$D$4*'CC Allocations'!AN41","v":0},{"$f":"$D$4*'CC Allocations'!AO41","v":0},{"$f":"$D$4*'CC Allocations'!AP41","v":0},{"$f":"$D$4*'CC Allocations'!AQ41","v":0}]
[null,"118 - Commission on Hispanic Affairs","118","Commission on Hispanic Affairs",363.43871960639513,82.060408952075676,3,5.3182308870679155E-5,0,1.8235770961691519E-4,{"$f":"$D$4*'CC Allocations'!J42","v":0},{"$f":"$D$4*'CC Allocations'!K42","v":0},{"$f":"$D$4*'CC Allocations'!L42","v":0},{"$f":"$D$4*'CC Allocations'!M42","v":0},{"$f":"$D$4*'CC Allocations'!N42","v":0},{"$f":"$D$4*'CC Allocations'!O42","v":0},{"$f":"$D$4*'CC Allocations'!P42","v":0},{"$f":"$D$4*'CC Allocations'!Q42","v":0},{"$f":"$D$4*'CC Allocations'!R42","v":0},{"$f":"$D$4*'CC Allocations'!S42","v":0},{"$f":"$D$4*'CC Allocations'!T42","v":0},{"$f":"$D$4*'CC Allocations'!U42","v":0},{"$f":"$D$4*'CC Allocations'!V42","v":0},{"$f":"$D$4*'CC Allocations'!W42","v":0},{"$f":"$D$4*'CC Allocations'!X42","v":0},{"$f":"$D$4*'CC Allocations'!Y42","v":0},{"$f":"$D$4*'CC Allocations'!Z42","v":0},{"$f":"$D$4*'CC Allocations'!AA42","v":0},{"$f":"$D$4*'CC Allocations'!AB42","v":0},{"$f":"$D$4*'CC Allocations'!AC42","v":281.37831065431942},{"$f":"$D$4*'CC Allocations'!AD42","v":0},{"$f":"$D$4*'CC Allocations'!AE42","v":0},{"$f":"$D$4*'CC Allocations'!AF42","v":0},{"$f":"$D$4*'CC Allocations'!AG42","v":0},{"$f":"$D$4*'CC Allocations'!AH42","v":0},{"$f":"$D$4*'CC Allocations'!AI42","v":0},{"$f":"$D$4*'CC Allocations'!AJ42","v":0},{"$f":"$D$4*'CC Allocations'!AK42","v":0},{"$f":"$D$4*'CC Allocations'!AL42","v":0},{"$f":"$D$4*'CC Allocations'!AM42","v":0},{"$f":"$D$4*'CC Allocations'!AN42","v":0},{"$f":"$D$4*'CC Allocations'!AO42","v":0},{"$f":"$D$4*'CC Allocations'!AP42","v":0},{"$f":"$D$4*'CC Allocations'!AQ42","v":0}]
[null,"119 - Commission on African-American Affairs","119","Commission on African-American Affairs",336.0852499557032,54.706939301383784,2,3.5454872580452768E-5,0,1.8235770961691519E-4,{"$f":"$D$4*'CC Allocations'!J43","v":0},{"$f":"$D$4*'CC Allocations'!K43","v":0},{"$f":"$D$4*'CC Allocations'!L43","v":0},{"$f":"$D$4*'CC Allocations'!M43","v":0},{"$f":"$D$4*'CC Allocations'!N43","v":0},{"$f":"$D$4*'CC Allocations'!O43","v":0},{"$f":"$D$4*'CC Allocations'!P43","v":0},{"$f":"$D$4*'CC Allocations'!Q43","v":0},{"$f":"$D$4*'CC Allocations'!R43","v":0},{"$f":"$D$4*'CC Allocations'!S43","v":0},{"$f":"$D$4*'CC Allocations'!T43","v":0},{"$f":"$D$4*'CC Allocations'!U43","v":0},{"$f":"$D$4*'CC Allocations'!V43","v":0},{"$f":"$D$4*'CC Allocations'!W43","v":0},{"$f":"$D$4*'CC Allocations'!X43","v":0},{"$f":"$D$4*'CC Allocations'!Y43","v":0},{"$f":"$D$4*'CC Allocations'!Z43","v":0},{"$f":"$D$4*'CC Allocations'!AA43","v":0},{"$f":"$D$4*'CC Allocations'!AB43","v":0},{"$f":"$D$4*'CC Allocations'!AC43","v":281.37831065431942},{"$f":"$D$4*'CC Allocations'!AD43","v":0},{"$f":"$D$4*'CC Allocations'!AE43","v":0},{"$f":"$D$4*'CC Allocations'!AF43","v":0},{"$f":"$D$4*'CC Allocations'!AG43","v":0},{"$f":"$D$4*'CC Allocations'!AH43","v":0},{"$f":"$D$4*'CC Allocations'!AI43","v":0},{"$f":"$D$4*'CC Allocations'!AJ43","v":0},{"$f":"$D$4*'CC Allocations'!AK43","v":0},{"$f":"$D$4*'CC Allocations'!AL43","v":0},{"$f":"$D$4*'CC Allocations'!AM43","v":0},{"$f":"$D$4*'CC Allocations'!AN43","v":0},{"$f":"$D$4*'CC Allocations'!AO43","v":0},{"$f":"$D$4*'CC Allocations'!AP43","v":0},{"$f":"$D$4*'CC Allocations'!AQ43","v":0}]
[null,"120 - Human Rights Commission","120","Human Rights Commission",355.59510545899457,355.59510545899457,13,2.30456671772943E-4,0,0,{"$f":"$D$4*'CC Allocations'!J44","v":0},{"$f":"$D$4*'CC Allocations'!K44","v":0},{"$f":"$D$4*'CC Allocations'!L44","v":0},{"$f":"$D$4*'CC Allocations'!M44","v":0},{"$f":"$D$4*'CC Allocations'!N44","v":0},{"$f":"$D$4*'CC Allocations'!O44","v":0},{"$f":"$D$4*'CC Allocations'!P44","v":0},{"$f":"$D$4*'CC Allocations'!Q44","v":0},{"$f":"$D$4*'CC Allocations'!R44","v":0},{"$f":"$D$4*'CC Allocations'!S44","v":0},{"$f":"$D$4*'CC Allocations'!T44","v":0},{"$f":"$D$4*'CC Allocations'!U44","v":0},{"$f":"$D$4*'CC Allocations'!V44","v":0},{"$f":"$D$4*'CC Allocations'!W44","v":0},{"$f":"$D$4*'CC Allocations'!X44","v":0},{"$f":"$D$4*'CC Allocations'!Y44","v":0},{"$f":"$D$4*'CC Allocations'!Z44","v":0},{"$f":"$D$4*'CC Allocations'!AA44","v":0},{"$f":"$D$4*'CC Allocations'!AB44","v":0},{"$f":"$D$4*'CC Allocations'!AC44","v":0},{"$f":"$D$4*'CC Allocations'!AD44","v":0},{"$f":"$D$4*'CC Allocations'!AE44","v":0},{"$f":"$D$4*'CC Allocations'!AF44","v":0},{"$f":"$D$4*'CC Allocations'!AG44","v":0},{"$f":"$D$4*'CC Allocations'!AH44","v":0},{"$f":"$D$4*'CC Allocations'!AI44","v":0},{"$f":"$D$4*'CC Allocations'!AJ44","v":0},{"$f":"$D$4*'CC Allocations'!AK44","v":0},{"$f":"$D$4*'CC Allocations'!AL44","v":0},{"$f":"$D$4*'CC Allocations'!AM44","v":0},{"$f":"$D$4*'CC Allocations'!AN44","v":0},{"$f":"$D$4*'CC Allocations'!AO44","v":0},{"$f":"$D$4*'CC Allocations'!AP44","v":0},{"$f":"$D$4*'CC Allocations'!AQ44","v":0}]
[null,"124 - Department of Retirement Systems","124","Department of Retirement Systems",7330.7298663854272,7330.7298663854272,268,4.750952925780671E-3,0,0,{"$f":"$D$4*'CC Allocations'!J45","v":0},{"$f":"$D$4*'CC Allocations'!K45","v":0},{"$f":"$D$4*'CC Allocations'!L45","v":0},{"$f":"$D$4*'CC Allocations'!M45","v":0},{"$f":"$D$4*'CC Allocations'!N45","v":0},{"$f":"$D$4*'CC Allocations'!O45","v":0},{"$f":"$D$4*'CC Allocations'!P45","v":0},{"$f":"$D$4*'CC Allocations'!Q45","v":0},{"$f":"$D$4*'CC Allocations'!R45","v":0},{"$f":"$D$4*'CC Allocations'!S45","v":0},{"$f":"$D$4*'CC Allocations'!T45","v":0},{"$f":"$D$4*'CC Allocations'!U45","v":0},{"$f":"$D$4*'CC Allocations'!V45","v":0},{"$f":"$D$4*'CC Allocations'!W45","v":0},{"$f":"$D$4*'CC Allocations'!X45","v":0},{"$f":"$D$4*'CC Allocations'!Y45","v":0},{"$f":"$D$4*'CC Allocations'!Z45","v":0},{"$f":"$D$4*'CC Allocations'!AA45","v":0},{"$f":"$D$4*'CC Allocations'!AB45","v":0},{"$f":"$D$4*'CC Allocations'!AC45","v":0},{"$f":"$D$4*'CC Allocations'!AD45","v":0},{"$f":"$D$4*'CC Allocations'!AE45","v":0},{"$f":"$D$4*'CC Allocations'!AF45","v":0},{"$f":"$D$4*'CC Allocations'!AG45","v":0},{"$f":"$D$4*'CC Allocations'!AH45","v":0},{"$f":"$D$4*'CC Allocations'!AI45","v":0},{"$f":"$D$4*'CC Allocations'!AJ45","v":0},{"$f":"$D$4*'CC Allocations'!AK45","v":0},{"$f":"$D$4*'CC Allocations'!AL45","v":0},{"$f":"$D$4*'CC Allocations'!AM45","v":0},{"$f":"$D$4*'CC Allocations'!AN45","v":0},{"$f":"$D$4*'CC Allocations'!AO45","v":0},{"$f":"$D$4*'CC Allocations'!AP45","v":0},{"$f":"$D$4*'CC Allocations'!AQ45","v":0}]
[null,"126 - State Investment Board","126","State Investment Board",2434.4587989115785,2434.4587989115785,89,1.5777418298301483E-3,0,0,{"$f":"$D$4*'CC Allocations'!J46","v":0},{"$f":"$D$4*'CC Allocations'!K46","v":0},{"$f":"$D$4*'CC Allocations'!L46","v":0},{"$f":"$D$4*'CC Allocations'!M46","v":0},{"$f":"$D$4*'CC Allocations'!N46","v":0},{"$f":"$D$4*'CC Allocations'!O46","v":0},{"$f":"$D$4*'CC Allocations'!P46","v":0},{"$f":"$D$4*'CC Allocations'!Q46","v":0},{"$f":"$D$4*'CC Allocations'!R46","v":0},{"$f":"$D$4*'CC Allocations'!S46","v":0},{"$f":"$D$4*'CC Allocations'!T46","v":0},{"$f":"$D$4*'CC Allocations'!U46","v":0},{"$f":"$D$4*'CC Allocations'!V46","v":0},{"$f":"$D$4*'CC Allocations'!W46","v":0},{"$f":"$D$4*'CC Allocations'!X46","v":0},{"$f":"$D$4*'CC Allocations'!Y46","v":0},{"$f":"$D$4*'CC Allocations'!Z46","v":0},{"$f":"$D$4*'CC Allocations'!AA46","v":0},{"$f":"$D$4*'CC Allocations'!AB46","v":0},{"$f":"$D$4*'CC Allocations'!AC46","v":0},{"$f":"$D$4*'CC Allocations'!AD46","v":0},{"$f":"$D$4*'CC Allocations'!AE46","v":0},{"$f":"$D$4*'CC Allocations'!AF46","v":0},{"$f":"$D$4*'CC Allocations'!AG46","v":0},{"$f":"$D$4*'CC Allocations'!AH46","v":0},{"$f":"$D$4*'CC Allocations'!AI46","v":0},{"$f":"$D$4*'CC Allocations'!AJ46","v":0},{"$f":"$D$4*'CC Allocations'!AK46","v":0},{"$f":"$D$4*'CC Allocations'!AL46","v":0},{"$f":"$D$4*'CC Allocations'!AM46","v":0},{"$f":"$D$4*'CC Allocations'!AN46","v":0},{"$f":"$D$4*'CC Allocations'!AO46","v":0},{"$f":"$D$4*'CC Allocations'!AP46","v":0},{"$f":"$D$4*'CC Allocations'!AQ46","v":0}]
[null,"140 - Department of Revenue","140","Department of Revenue",20268.921011162693,20268.921011162693,741,1.3136030291057751E-2,0,0,{"$f":"$D$4*'CC Allocations'!J47","v":0},{"$f":"$D$4*'CC Allocations'!K47","v":0},{"$f":"$D$4*'CC Allocations'!L47","v":0},{"$f":"$D$4*'CC Allocations'!M47","v":0},{"$f":"$D$4*'CC Allocations'!N47","v":0},{"$f":"$D$4*'CC Allocations'!O47","v":0},{"$f":"$D$4*'CC Allocations'!P47","v":0},{"$f":"$D$4*'CC Allocations'!Q47","v":0},{"$f":"$D$4*'CC Allocations'!R47","v":0},{"$f":"$D$4*'CC Allocations'!S47","v":0},{"$f":"$D$4*'CC Allocations'!T47","v":0},{"$f":"$D$4*'CC Allocations'!U47","v":0},{"$f":"$D$4*'CC Allocations'!V47","v":0},{"$f":"$D$4*'CC Allocations'!W47","v":0},{"$f":"$D$4*'CC Allocations'!X47","v":0},{"$f":"$D$4*'CC Allocations'!Y47","v":0},{"$f":"$D$4*'CC Allocations'!Z47","v":0},{"$f":"$D$4*'CC Allocations'!AA47","v":0},{"$f":"$D$4*'CC Allocations'!AB47","v":0},{"$f":"$D$4*'CC Allocations'!AC47","v":0},{"$f":"$D$4*'CC Allocations'!AD47","v":0},{"$f":"$D$4*'CC Allocations'!AE47","v":0},{"$f":"$D$4*'CC Allocations'!AF47","v":0},{"$f":"$D$4*'CC Allocations'!AG47","v":0},{"$f":"$D$4*'CC Allocations'!AH47","v":0},{"$f":"$D$4*'CC Allocations'!AI47","v":0},{"$f":"$D$4*'CC Allocations'!AJ47","v":0},{"$f":"$D$4*'CC Allocations'!AK47","v":0},{"$f":"$D$4*'CC Allocations'!AL47","v":0},{"$f":"$D$4*'CC Allocations'!AM47","v":0},{"$f":"$D$4*'CC Allocations'!AN47","v":0},{"$f":"$D$4*'CC Allocations'!AO47","v":0},{"$f":"$D$4*'CC Allocations'!AP47","v":0},{"$f":"$D$4*'CC Allocations'!AQ47","v":0}]
[null,"142 - Board of Tax Appeals","142","Board of Tax Appeals",1932.9401800508435,410.30204476037841,15,2.6591154435339577E-4,0,9.8680243790381667E-4,{"$f":"$D$4*'CC Allocations'!J48","v":0},{"$f":"$D$4*'CC Allocations'!K48","v":0},{"$f":"$D$4*'CC Allocations'!L48","v":0},{"$f":"$D$4*'CC Allocations'!M48","v":0},{"$f":"$D$4*'CC Allocations'!N48","v":0},{"$f":"$D$4*'CC Allocations'!O48","v":0},{"$f":"$D$4*'CC Allocations'!P48","v":0},{"$f":"$D$4*'CC Allocations'!Q48","v":0},{"$f":"$D$4*'CC Allocations'!R48","v":0},{"$f":"$D$4*'CC Allocations'!S48","v":0},{"$f":"$D$4*'CC Allocations'!T48","v":0},{"$f":"$D$4*'CC Allocations'!U48","v":0},{"$f":"$D$4*'CC Allocations'!V48","v":0},{"$f":"$D$4*'CC Allocations'!W48","v":0},{"$f":"$D$4*'CC Allocations'!X48","v":0},{"$f":"$D$4*'CC Allocations'!Y48","v":0},{"$f":"$D$4*'CC Allocations'!Z48","v":0},{"$f":"$D$4*'CC Allocations'!AA48","v":0},{"$f":"$D$4*'CC Allocations'!AB48","v":0},{"$f":"$D$4*'CC Allocations'!AC48","v":1522.6381352904652},{"$f":"$D$4*'CC Allocations'!AD48","v":0},{"$f":"$D$4*'CC Allocations'!AE48","v":0},{"$f":"$D$4*'CC Allocations'!AF48","v":0},{"$f":"$D$4*'CC Allocations'!AG48","v":0},{"$f":"$D$4*'CC Allocations'!AH48","v":0},{"$f":"$D$4*'CC Allocations'!AI48","v":0},{"$f":"$D$4*'CC Allocations'!AJ48","v":0},{"$f":"$D$4*'CC Allocations'!AK48","v":0},{"$f":"$D$4*'CC Allocations'!AL48","v":0},{"$f":"$D$4*'CC Allocations'!AM48","v":0},{"$f":"$D$4*'CC Allocations'!AN48","v":0},{"$f":"$D$4*'CC Allocations'!AO48","v":0},{"$f":"$D$4*'CC Allocations'!AP48","v":0},{"$f":"$D$4*'CC Allocations'!AQ48","v":0}]
[null,"147 - Office of Minority and Women's Business Enterprises","147","Office of Minority and Women's Business Enterprises",2227.7023666840046,656.48327161660541,24,4.2545847096543324E-4,0,1.0182871409547096E-3,{"$f":"$D$4*'CC Allocations'!J49","v":0},{"$f":"$D$4*'CC Allocations'!K49","v":0},{"$f":"$D$4*'CC Allocations'!L49","v":0},{"$f":"$D$4*'CC Allocations'!M49","v":0},{"$f":"$D$4*'CC Allocations'!N49","v":0},{"$f":"$D$4*'CC Allocations'!O49","v":0},{"$f":"$D$4*'CC Allocations'!P49","v":0},{"$f":"$D$4*'CC Allocations'!Q49","v":0},{"$f":"$D$4*'CC Allocations'!R49","v":0},{"$f":"$D$4*'CC Allocations'!S49","v":0},{"$f":"$D$4*'CC Allocations'!T49","v":0},{"$f":"$D$4*'CC Allocations'!U49","v":0},{"$f":"$D$4*'CC Allocations'!V49","v":0},{"$f":"$D$4*'CC Allocations'!W49","v":0},{"$f":"$D$4*'CC Allocations'!X49","v":0},{"$f":"$D$4*'CC Allocations'!Y49","v":0},{"$f":"$D$4*'CC Allocations'!Z49","v":0},{"$f":"$D$4*'CC Allocations'!AA49","v":0},{"$f":"$D$4*'CC Allocations'!AB49","v":0},{"$f":"$D$4*'CC Allocations'!AC49","v":1571.2190950673992},{"$f":"$D$4*'CC Allocations'!AD49","v":0},{"$f":"$D$4*'CC Allocations'!AE49","v":0},{"$f":"$D$4*'CC Allocations'!AF49","v":0},{"$f":"$D$4*'CC Allocations'!AG49","v":0},{"$f":"$D$4*'CC Allocations'!AH49","v":0},{"$f":"$D$4*'CC Allocations'!AI49","v":0},{"$f":"$D$4*'CC Allocations'!AJ49","v":0},{"$f":"$D$4*'CC Allocations'!AK49","v":0},{"$f":"$D$4*'CC Allocations'!AL49","v":0},{"$f":"$D$4*'CC Allocations'!AM49","v":0},{"$f":"$D$4*'CC Allocations'!AN49","v":0},{"$f":"$D$4*'CC Allocations'!AO49","v":0},{"$f":"$D$4*'CC Allocations'!AP49","v":0},{"$f":"$D$4*'CC Allocations'!AQ49","v":0}]
[null,"160 - Office of Insurance Commissioner","160","Office of Insurance Commissioner",8251.2615389253187,5689.5216873439131,208,3.6873067483670879E-3,2.8024323654956987E-4,1.6602310635899405E-3,{"$f":"$D$4*'CC Allocations'!J50","v":0},{"$f":"$D$4*'CC Allocations'!K50","v":0},{"$f":"$D$4*'CC Allocations'!L50","v":0},{"$f":"$D$4*'CC Allocations'!M50","v":0},{"$f":"$D$4*'CC Allocations'!N50","v":0},{"$f":"$D$4*'CC Allocations'!O50","v":0},{"$f":"$D$4*'CC Allocations'!P50","v":0},{"$f":"$D$4*'CC Allocations'!Q50","v":0},{"$f":"$D$4*'CC Allocations'!R50","v":0},{"$f":"$D$4*'CC Allocations'!S50","v":0},{"$f":"$D$4*'CC Allocations'!T50","v":2561.7398515814057},{"$f":"$D$4*'CC Allocations'!U50","v":0},{"$f":"$D$4*'CC Allocations'!V50","v":0},{"$f":"$D$4*'CC Allocations'!W50","v":0},{"$f":"$D$4*'CC Allocations'!X50","v":0},{"$f":"$D$4*'CC Allocations'!Y50","v":0},{"$f":"$D$4*'CC Allocations'!Z50","v":0},{"$f":"$D$4*'CC Allocations'!AA50","v":0},{"$f":"$D$4*'CC Allocations'!AB50","v":0},{"$f":"$D$4*'CC Allocations'!AC50","v":0},{"$f":"$D$4*'CC Allocations'!AD50","v":0},{"$f":"$D$4*'CC Allocations'!AE50","v":0},{"$f":"$D$4*'CC Allocations'!AF50","v":0},{"$f":"$D$4*'CC Allocations'!AG50","v":0},{"$f":"$D$4*'CC Allocations'!AH50","v":0},{"$f":"$D$4*'CC Allocations'!AI50","v":0},{"$f":"$D$4*'CC Allocations'!AJ50","v":0},{"$f":"$D$4*'CC Allocations'!AK50","v":0},{"$f":"$D$4*'CC Allocations'!AL50","v":0},{"$f":"$D$4*'CC Allocations'!AM50","v":0},{"$f":"$D$4*'CC Allocations'!AN50","v":0},{"$f":"$D$4*'CC Allocations'!AO50","v":0},{"$f":"$D$4*'CC Allocations'!AP50","v":0},{"$f":"$D$4*'CC Allocations'!AQ50","v":0}]
[null,"163 - Consolidated Technology Services","163","Consolidated Technology Services",8048.8717375509668,7905.152729049958,289,5.1232290878754257E-3,1.1708545581982318E-5,9.314246417114737E-5,{"$f":"$D$4*'CC Allocations'!J51","v":0},{"$f":"$D$4*'CC Allocations'!K51","v":0},{"$f":"$D$4*'CC Allocations'!L51","v":0},{"$f":"$D$4*'CC Allocations'!M51","v":0},{"$f":"$D$4*'CC Allocations'!N51","v":0},{"$f":"$D$4*'CC Allocations'!O51","v":143.71900850100874},{"$f":"$D$4*'CC Allocations'!P51","v":0},{"$f":"$D$4*'CC Allocations'!Q51","v":0},{"$f":"$D$4*'CC Allocations'!R51","v":0},{"$f":"$D$4*'CC Allocations'!S51","v":0},{"$f":"$D$4*'CC Allocations'!T51","v":0},{"$f":"$D$4*'CC Allocations'!U51","v":0},{"$f":"$D$4*'CC Allocations'!V51","v":0},{"$f":"$D$4*'CC Allocations'!W51","v":0},{"$f":"$D$4*'CC Allocations'!X51","v":0},{"$f":"$D$4*'CC Allocations'!Y51","v":0},{"$f":"$D$4*'CC Allocations'!Z51","v":0},{"$f":"$D$4*'CC Allocations'!AA51","v":0},{"$f":"$D$4*'CC Allocations'!AB51","v":0},{"$f":"$D$4*'CC Allocations'!AC51","v":0},{"$f":"$D$4*'CC Allocations'!AD51","v":0},{"$f":"$D$4*'CC Allocations'!AE51","v":0},{"$f":"$D$4*'CC Allocations'!AF51","v":0},{"$f":"$D$4*'CC Allocations'!AG51","v":0},{"$f":"$D$4*'CC Allocations'!AH51","v":0},{"$f":"$D$4*'CC Allocations'!AI51","v":0},{"$f":"$D$4*'CC Allocations'!AJ51","v":0},{"$f":"$D$4*'CC Allocations'!AK51","v":0},{"$f":"$D$4*'CC Allocations'!AL51","v":0},{"$f":"$D$4*'CC Allocations'!AM51","v":0},{"$f":"$D$4*'CC Allocations'!AN51","v":0},{"$f":"$D$4*'CC Allocations'!AO51","v":0},{"$f":"$D$4*'CC Allocations'!AP51","v":0},{"$f":"$D$4*'CC Allocations'!AQ51","v":0}]
[null,"165 - Board of Accountancy","165","Board of Accountancy",273.53469650691898,273.53469650691898,10,1.7727436290226387E-4,0,0,{"$f":"$D$4*'CC Allocations'!J52","v":0},{"$f":"$D$4*'CC Allocations'!K52","v":0},{"$f":"$D$4*'CC Allocations'!L52","v":0},{"$f":"$D$4*'CC Allocations'!M52","v":0},{"$f":"$D$4*'CC Allocations'!N52","v":0},{"$f":"$D$4*'CC Allocations'!O52","v":0},{"$f":"$D$4*'CC Allocations'!P52","v":0},{"$f":"$D$4*'CC Allocations'!Q52","v":0},{"$f":"$D$4*'CC Allocations'!R52","v":0},{"$f":"$D$4*'CC Allocations'!S52","v":0},{"$f":"$D$4*'CC Allocations'!T52","v":0},{"$f":"$D$4*'CC Allocations'!U52","v":0},{"$f":"$D$4*'CC Allocations'!V52","v":0},{"$f":"$D$4*'CC Allocations'!W52","v":0},{"$f":"$D$4*'CC Allocations'!X52","v":0},{"$f":"$D$4*'CC Allocations'!Y52","v":0},{"$f":"$D$4*'CC Allocations'!Z52","v":0},{"$f":"$D$4*'CC Allocations'!AA52","v":0},{"$f":"$D$4*'CC Allocations'!AB52","v":0},{"$f":"$D$4*'CC Allocations'!AC52","v":0},{"$f":"$D$4*'CC Allocations'!AD52","v":0},{"$f":"$D$4*'CC Allocations'!AE52","v":0},{"$f":"$D$4*'CC Allocations'!AF52","v":0},{"$f":"$D$4*'CC Allocations'!AG52","v":0},{"$f":"$D$4*'CC Allocations'!AH52","v":0},{"$f":"$D$4*'CC Allocations'!AI52","v":0},{"$f":"$D$4*'CC Allocations'!AJ52","v":0},{"$f":"$D$4*'CC Allocations'!AK52","v":0},{"$f":"$D$4*'CC Allocations'!AL52","v":0},{"$f":"$D$4*'CC Allocations'!AM52","v":0},{"$f":"$D$4*'CC Allocations'!AN52","v":0},{"$f":"$D$4*'CC Allocations'!AO52","v":0},{"$f":"$D$4*'CC Allocations'!AP52","v":0},{"$f":"$D$4*'CC Allocations'!AQ52","v":0}]
[null,"166 - Brd Prof Eng Land Surveyors","166","Brd Prof Eng Land Surveyors",218.82775720553514,218.82775720553514,8,1.4181949032181107E-4,0,0,{"$f":"$D$4*'CC Allocations'!J53","v":0},{"$f":"$D$4*'CC Allocations'!K53","v":0},{"$f":"$D$4*'CC Allocations'!L53","v":0},{"$f":"$D$4*'CC Allocations'!M53","v":0},{"$f":"$D$4*'CC Allocations'!N53","v":0},{"$f":"$D$4*'CC Allocations'!O53","v":0},{"$f":"$D$4*'CC Allocations'!P53","v":0},{"$f":"$D$4*'CC Allocations'!Q53","v":0},{"$f":"$D$4*'CC Allocations'!R53","v":0},{"$f":"$D$4*'CC Allocations'!S53","v":0},{"$f":"$D$4*'CC Allocations'!T53","v":0},{"$f":"$D$4*'CC Allocations'!U53","v":0},{"$f":"$D$4*'CC Allocations'!V53","v":0},{"$f":"$D$4*'CC Allocations'!W53","v":0},{"$f":"$D$4*'CC Allocations'!X53","v":0},{"$f":"$D$4*'CC Allocations'!Y53","v":0},{"$f":"$D$4*'CC Allocations'!Z53","v":0},{"$f":"$D$4*'CC Allocations'!AA53","v":0},{"$f":"$D$4*'CC Allocations'!AB53","v":0},{"$f":"$D$4*'CC Allocations'!AC53","v":0},{"$f":"$D$4*'CC Allocations'!AD53","v":0},{"$f":"$D$4*'CC Allocations'!AE53","v":0},{"$f":"$D$4*'CC Allocations'!AF53","v":0},{"$f":"$D$4*'CC Allocations'!AG53","v":0},{"$f":"$D$4*'CC Allocations'!AH53","v":0},{"$f":"$D$4*'CC Allocations'!AI53","v":0},{"$f":"$D$4*'CC Allocations'!AJ53","v":0},{"$f":"$D$4*'CC Allocations'!AK53","v":0},{"$f":"$D$4*'CC Allocations'!AL53","v":0},{"$f":"$D$4*'CC Allocations'!AM53","v":0},{"$f":"$D$4*'CC Allocations'!AN53","v":0},{"$f":"$D$4*'CC Allocations'!AO53","v":0},{"$f":"$D$4*'CC Allocations'!AP53","v":0},{"$f":"$D$4*'CC Allocations'!AQ53","v":0}]
[null,"167 - Forensic Investigations Council","167","Forensic Investigations Council",0,0,0,0,0,0,{"$f":"$D$4*'CC Allocations'!J54","v":0},{"$f":"$D$4*'CC Allocations'!K54","v":0},{"$f":"$D$4*'CC Allocations'!L54","v":0},{"$f":"$D$4*'CC Allocations'!M54","v":0},{"$f":"$D$4*'CC Allocations'!N54","v":0},{"$f":"$D$4*'CC Allocations'!O54","v":0},{"$f":"$D$4*'CC Allocations'!P54","v":0},{"$f":"$D$4*'CC Allocations'!Q54","v":0},{"$f":"$D$4*'CC Allocations'!R54","v":0},{"$f":"$D$4*'CC Allocations'!S54","v":0},{"$f":"$D$4*'CC Allocations'!T54","v":0},{"$f":"$D$4*'CC Allocations'!U54","v":0},{"$f":"$D$4*'CC Allocations'!V54","v":0},{"$f":"$D$4*'CC Allocations'!W54","v":0},{"$f":"$D$4*'CC Allocations'!X54","v":0},{"$f":"$D$4*'CC Allocations'!Y54","v":0},{"$f":"$D$4*'CC Allocations'!Z54","v":0},{"$f":"$D$4*'CC Allocations'!AA54","v":0},{"$f":"$D$4*'CC Allocations'!AB54","v":0},{"$f":"$D$4*'CC Allocations'!AC54","v":0},{"$f":"$D$4*'CC Allocations'!AD54","v":0},{"$f":"$D$4*'CC Allocations'!AE54","v":0},{"$f":"$D$4*'CC Allocations'!AF54","v":0},{"$f":"$D$4*'CC Allocations'!AG54","v":0},{"$f":"$D$4*'CC Allocations'!AH54","v":0},{"$f":"$D$4*'CC Allocations'!AI54","v":0},{"$f":"$D$4*'CC Allocations'!AJ54","v":0},{"$f":"$D$4*'CC Allocations'!AK54","v":0},{"$f":"$D$4*'CC Allocations'!AL54","v":0},{"$f":"$D$4*'CC Allocations'!AM54","v":0},{"$f":"$D$4*'CC Allocations'!AN54","v":0},{"$f":"$D$4*'CC Allocations'!AO54","v":0},{"$f":"$D$4*'CC Allocations'!AP54","v":0},{"$f":"$D$4*'CC Allocations'!AQ54","v":0}]
[null,"179 - Department of Enterprise Services","179","Department of Enterprise Services",35615.636323094353,20815.990404176529,761,1.3490579016862278E-2,1.0907793337899484E-3,9.5914625638319501E-3,{"$f":"$D$4*'CC Allocations'!J55","v":0},{"$f":"$D$4*'CC Allocations'!K55","v":0},{"$f":"$D$4*'CC Allocations'!L55","v":3061.633129271559},{"$f":"$D$4*'CC Allocations'!M55","v":0},{"$f":"$D$4*'CC Allocations'!N55","v":0},{"$f":"$D$4*'CC Allocations'!O55","v":9984.5335837378898},{"$f":"$D$4*'CC Allocations'!P55","v":0},{"$f":"$D$4*'CC Allocations'!Q55","v":0},{"$f":"$D$4*'CC Allocations'!R55","v":0},{"$f":"$D$4*'CC Allocations'!S55","v":0},{"$f":"$D$4*'CC Allocations'!T55","v":0},{"$f":"$D$4*'CC Allocations'!U55","v":0},{"$f":"$D$4*'CC Allocations'!V55","v":0},{"$f":"$D$4*'CC Allocations'!W55","v":0},{"$f":"$D$4*'CC Allocations'!X55","v":0},{"$f":"$D$4*'CC Allocations'!Y55","v":0},{"$f":"$D$4*'CC Allocations'!Z55","v":0},{"$f":"$D$4*'CC Allocations'!AA55","v":0},{"$f":"$D$4*'CC Allocations'!AB55","v":0},{"$f":"$D$4*'CC Allocations'!AC55","v":1753.4792059083775},{"$f":"$D$4*'CC Allocations'!AD55","v":0},{"$f":"$D$4*'CC Allocations'!AE55","v":0},{"$f":"$D$4*'CC Allocations'!AF55","v":0},{"$f":"$D$4*'CC Allocations'!AG55","v":0},{"$f":"$D$4*'CC Allocations'!AH55","v":0},{"$f":"$D$4*'CC Allocations'!AI55","v":0},{"$f":"$D$4*'CC Allocations'!AJ55","v":0},{"$f":"$D$4*'CC Allocations'!AK55","v":0},{"$f":"$D$4*'CC Allocations'!AL55","v":0},{"$f":"$D$4*'CC Allocations'!AM55","v":0},{"$f":"$D$4*'CC Allocations'!AN55","v":0},{"$f":"$D$4*'CC Allocations'!AO55","v":0},{"$f":"$D$4*'CC Allocations'!AP55","v":0},{"$f":"$D$4*'CC Allocations'!AQ55","v":0}]
[null,"185 - Horse Racing Commission","185","Horse Racing Commission",82.060408952075676,82.060408952075676,3,5.3182308870679155E-5,0,0,{"$f":"$D$4*'CC Allocations'!J56","v":0},{"$f":"$D$4*'CC Allocations'!K56","v":0},{"$f":"$D$4*'CC Allocations'!L56","v":0},{"$f":"$D$4*'CC Allocations'!M56","v":0},{"$f":"$D$4*'CC Allocations'!N56","v":0},{"$f":"$D$4*'CC Allocations'!O56","v":0},{"$f":"$D$4*'CC Allocations'!P56","v":0},{"$f":"$D$4*'CC Allocations'!Q56","v":0},{"$f":"$D$4*'CC Allocations'!R56","v":0},{"$f":"$D$4*'CC Allocations'!S56","v":0},{"$f":"$D$4*'CC Allocations'!T56","v":0},{"$f":"$D$4*'CC Allocations'!U56","v":0},{"$f":"$D$4*'CC Allocations'!V56","v":0},{"$f":"$D$4*'CC Allocations'!W56","v":0},{"$f":"$D$4*'CC Allocations'!X56","v":0},{"$f":"$D$4*'CC Allocations'!Y56","v":0},{"$f":"$D$4*'CC Allocations'!Z56","v":0},{"$f":"$D$4*'CC Allocations'!AA56","v":0},{"$f":"$D$4*'CC Allocations'!AB56","v":0},{"$f":"$D$4*'CC Allocations'!AC56","v":0},{"$f":"$D$4*'CC Allocations'!AD56","v":0},{"$f":"$D$4*'CC Allocations'!AE56","v":0},{"$f":"$D$4*'CC Allocations'!AF56","v":0},{"$f":"$D$4*'CC Allocations'!AG56","v":0},{"$f":"$D$4*'CC Allocations'!AH56","v":0},{"$f":"$D$4*'CC Allocations'!AI56","v":0},{"$f":"$D$4*'CC Allocations'!AJ56","v":0},{"$f":"$D$4*'CC Allocations'!AK56","v":0},{"$f":"$D$4*'CC Allocations'!AL56","v":0},{"$f":"$D$4*'CC Allocations'!AM56","v":0},{"$f":"$D$4*'CC Allocations'!AN56","v":0},{"$f":"$D$4*'CC Allocations'!AO56","v":0},{"$f":"$D$4*'CC Allocations'!AP56","v":0},{"$f":"$D$4*'CC Allocations'!AQ56","v":0}]
[null,"190 - Board of Industrial Insurance Appeals","190","Board of Industrial Insurance Appeals",2762.7004347198813,2762.7004347198813,101,1.790471065312865E-3,0,0,{"$f":"$D$4*'CC Allocations'!J57","v":0},{"$f":"$D$4*'CC Allocations'!K57","v":0},{"$f":"$D$4*'CC Allocations'!L57","v":0},{"$f":"$D$4*'CC Allocations'!M57","v":0},{"$f":"$D$4*'CC Allocations'!N57","v":0},{"$f":"$D$4*'CC Allocations'!O57","v":0},{"$f":"$D$4*'CC Allocations'!P57","v":0},{"$f":"$D$4*'CC Allocations'!Q57","v":0},{"$f":"$D$4*'CC Allocations'!R57","v":0},{"$f":"$D$4*'CC Allocations'!S57","v":0},{"$f":"$D$4*'CC Allocations'!T57","v":0},{"$f":"$D$4*'CC Allocations'!U57","v":0},{"$f":"$D$4*'CC Allocations'!V57","v":0},{"$f":"$D$4*'CC Allocations'!W57","v":0},{"$f":"$D$4*'CC Allocations'!X57","v":0},{"$f":"$D$4*'CC Allocations'!Y57","v":0},{"$f":"$D$4*'CC Allocations'!Z57","v":0},{"$f":"$D$4*'CC Allocations'!AA57","v":0},{"$f":"$D$4*'CC Allocations'!AB57","v":0},{"$f":"$D$4*'CC Allocations'!AC57","v":0},{"$f":"$D$4*'CC Allocations'!AD57","v":0},{"$f":"$D$4*'CC Allocations'!AE57","v":0},{"$f":"$D$4*'CC Allocations'!AF57","v":0},{"$f":"$D$4*'CC Allocations'!AG57","v":0},{"$f":"$D$4*'CC Allocations'!AH57","v":0},{"$f":"$D$4*'CC Allocations'!AI57","v":0},{"$f":"$D$4*'CC Allocations'!AJ57","v":0},{"$f":"$D$4*'CC Allocations'!AK57","v":0},{"$f":"$D$4*'CC Allocations'!AL57","v":0},{"$f":"$D$4*'CC Allocations'!AM57","v":0},{"$f":"$D$4*'CC Allocations'!AN57","v":0},{"$f":"$D$4*'CC Allocations'!AO57","v":0},{"$f":"$D$4*'CC Allocations'!AP57","v":0},{"$f":"$D$4*'CC Allocations'!AQ57","v":0}]
[null,"195 - Liquor Control Board","195","Liquor Control Board",6154.530671405676,6154.530671405676,225,3.9886731653009369E-3,0,0,{"$f":"$D$4*'CC Allocations'!J58","v":0},{"$f":"$D$4*'CC Allocations'!K58","v":0},{"$f":"$D$4*'CC Allocations'!L58","v":0},{"$f":"$D$4*'CC Allocations'!M58","v":0},{"$f":"$D$4*'CC Allocations'!N58","v":0},{"$f":"$D$4*'CC Allocations'!O58","v":0},{"$f":"$D$4*'CC Allocations'!P58","v":0},{"$f":"$D$4*'CC Allocations'!Q58","v":0},{"$f":"$D$4*'CC Allocations'!R58","v":0},{"$f":"$D$4*'CC Allocations'!S58","v":0},{"$f":"$D$4*'CC Allocations'!T58","v":0},{"$f":"$D$4*'CC Allocations'!U58","v":0},{"$f":"$D$4*'CC Allocations'!V58","v":0},{"$f":"$D$4*'CC Allocations'!W58","v":0},{"$f":"$D$4*'CC Allocations'!X58","v":0},{"$f":"$D$4*'CC Allocations'!Y58","v":0},{"$f":"$D$4*'CC Allocations'!Z58","v":0},{"$f":"$D$4*'CC Allocations'!AA58","v":0},{"$f":"$D$4*'CC Allocations'!AB58","v":0},{"$f":"$D$4*'CC Allocations'!AC58","v":0},{"$f":"$D$4*'CC Allocations'!AD58","v":0},{"$f":"$D$4*'CC Allocations'!AE58","v":0},{"$f":"$D$4*'CC Allocations'!AF58","v":0},{"$f":"$D$4*'CC Allocations'!AG58","v":0},{"$f":"$D$4*'CC Allocations'!AH58","v":0},{"$f":"$D$4*'CC Allocations'!AI58","v":0},{"$f":"$D$4*'CC Allocations'!AJ58","v":0},{"$f":"$D$4*'CC Allocations'!AK58","v":0},{"$f":"$D$4*'CC Allocations'!AL58","v":0},{"$f":"$D$4*'CC Allocations'!AM58","v":0},{"$f":"$D$4*'CC Allocations'!AN58","v":0},{"$f":"$D$4*'CC Allocations'!AO58","v":0},{"$f":"$D$4*'CC Allocations'!AP58","v":0},{"$f":"$D$4*'CC Allocations'!AQ58","v":0}]
[null,"205 - Board of Pilotage Commissioners","205","Board of Pilotage Commissioners",0,0,0,0,0,0,{"$f":"$D$4*'CC Allocations'!J59","v":0},{"$f":"$D$4*'CC Allocations'!K59","v":0},{"$f":"$D$4*'CC Allocations'!L59","v":0},{"$f":"$D$4*'CC Allocations'!M59","v":0},{"$f":"$D$4*'CC Allocations'!N59","v":0},{"$f":"$D$4*'CC Allocations'!O59","v":0},{"$f":"$D$4*'CC Allocations'!P59","v":0},{"$f":"$D$4*'CC Allocations'!Q59","v":0},{"$f":"$D$4*'CC Allocations'!R59","v":0},{"$f":"$D$4*'CC Allocations'!S59","v":0},{"$f":"$D$4*'CC Allocations'!T59","v":0},{"$f":"$D$4*'CC Allocations'!U59","v":0},{"$f":"$D$4*'CC Allocations'!V59","v":0},{"$f":"$D$4*'CC Allocations'!W59","v":0},{"$f":"$D$4*'CC Allocations'!X59","v":0},{"$f":"$D$4*'CC Allocations'!Y59","v":0},{"$f":"$D$4*'CC Allocations'!Z59","v":0},{"$f":"$D$4*'CC Allocations'!AA59","v":0},{"$f":"$D$4*'CC Allocations'!AB59","v":0},{"$f":"$D$4*'CC Allocations'!AC59","v":0},{"$f":"$D$4*'CC Allocations'!AD59","v":0},{"$f":"$D$4*'CC Allocations'!AE59","v":0},{"$f":"$D$4*'CC Allocations'!AF59","v":0},{"$f":"$D$4*'CC Allocations'!AG59","v":0},{"$f":"$D$4*'CC Allocations'!AH59","v":0},{"$f":"$D$4*'CC Allocations'!AI59","v":0},{"$f":"$D$4*'CC Allocations'!AJ59","v":0},{"$f":"$D$4*'CC Allocations'!AK59","v":0},{"$f":"$D$4*'CC Allocations'!AL59","v":0},{"$f":"$D$4*'CC Allocations'!AM59","v":0},{"$f":"$D$4*'CC Allocations'!AN59","v":0},{"$f":"$D$4*'CC Allocations'!AO59","v":0},{"$f":"$D$4*'CC Allocations'!AP59","v":0},{"$f":"$D$4*'CC Allocations'!AQ59","v":0}]
[null,"215 - Utilities and Transportation Commission","215","Utilities and Transportation Commission",4075.6669779530921,4075.6669779530921,149,2.6413880072437314E-3,0,0,{"$f":"$D$4*'CC Allocations'!J60","v":0},{"$f":"$D$4*'CC Allocations'!K60","v":0},{"$f":"$D$4*'CC Allocations'!L60","v":0},{"$f":"$D$4*'CC Allocations'!M60","v":0},{"$f":"$D$4*'CC Allocations'!N60","v":0},{"$f":"$D$4*'CC Allocations'!O60","v":0},{"$f":"$D$4*'CC Allocations'!P60","v":0},{"$f":"$D$4*'CC Allocations'!Q60","v":0},{"$f":"$D$4*'CC Allocations'!R60","v":0},{"$f":"$D$4*'CC Allocations'!S60","v":0},{"$f":"$D$4*'CC Allocations'!T60","v":0},{"$f":"$D$4*'CC Allocations'!U60","v":0},{"$f":"$D$4*'CC Allocations'!V60","v":0},{"$f":"$D$4*'CC Allocations'!W60","v":0},{"$f":"$D$4*'CC Allocations'!X60","v":0},{"$f":"$D$4*'CC Allocations'!Y60","v":0},{"$f":"$D$4*'CC Allocations'!Z60","v":0},{"$f":"$D$4*'CC Allocations'!AA60","v":0},{"$f":"$D$4*'CC Allocations'!AB60","v":0},{"$f":"$D$4*'CC Allocations'!AC60","v":0},{"$f":"$D$4*'CC Allocations'!AD60","v":0},{"$f":"$D$4*'CC Allocations'!AE60","v":0},{"$f":"$D$4*'CC Allocations'!AF60","v":0},{"$f":"$D$4*'CC Allocations'!AG60","v":0},{"$f":"$D$4*'CC Allocations'!AH60","v":0},{"$f":"$D$4*'CC Allocations'!AI60","v":0},{"$f":"$D$4*'CC Allocations'!AJ60","v":0},{"$f":"$D$4*'CC Allocations'!AK60","v":0},{"$f":"$D$4*'CC Allocations'!AL60","v":0},{"$f":"$D$4*'CC Allocations'!AM60","v":0},{"$f":"$D$4*'CC Allocations'!AN60","v":0},{"$f":"$D$4*'CC Allocations'!AO60","v":0},{"$f":"$D$4*'CC Allocations'!AP60","v":0},{"$f":"$D$4*'CC Allocations'!AQ60","v":0}]
[null,"220 - Board for Volunteer Firefighters and Reserve Officers","220","Board for Volunteer Firefighters and Reserve Officers",82.060408952075676,82.060408952075676,3,5.3182308870679155E-5,0,0,{"$f":"$D$4*'CC Allocations'!J61","v":0},{"$f":"$D$4*'CC Allocations'!K61","v":0},{"$f":"$D$4*'CC Allocations'!L61","v":0},{"$f":"$D$4*'CC Allocations'!M61","v":0},{"$f":"$D$4*'CC Allocations'!N61","v":0},{"$f":"$D$4*'CC Allocations'!O61","v":0},{"$f":"$D$4*'CC Allocations'!P61","v":0},{"$f":"$D$4*'CC Allocations'!Q61","v":0},{"$f":"$D$4*'CC Allocations'!R61","v":0},{"$f":"$D$4*'CC Allocations'!S61","v":0},{"$f":"$D$4*'CC Allocations'!T61","v":0},{"$f":"$D$4*'CC Allocations'!U61","v":0},{"$f":"$D$4*'CC Allocations'!V61","v":0},{"$f":"$D$4*'CC Allocations'!W61","v":0},{"$f":"$D$4*'CC Allocations'!X61","v":0},{"$f":"$D$4*'CC Allocations'!Y61","v":0},{"$f":"$D$4*'CC Allocations'!Z61","v":0},{"$f":"$D$4*'CC Allocations'!AA61","v":0},{"$f":"$D$4*'CC Allocations'!AB61","v":0},{"$f":"$D$4*'CC Allocations'!AC61","v":0},{"$f":"$D$4*'CC Allocations'!AD61","v":0},{"$f":"$D$4*'CC Allocations'!AE61","v":0},{"$f":"$D$4*'CC Allocations'!AF61","v":0},{"$f":"$D$4*'CC Allocations'!AG61","v":0},{"$f":"$D$4*'CC Allocations'!AH61","v":0},{"$f":"$D$4*'CC Allocations'!AI61","v":0},{"$f":"$D$4*'CC Allocations'!AJ61","v":0},{"$f":"$D$4*'CC Allocations'!AK61","v":0},{"$f":"$D$4*'CC Allocations'!AL61","v":0},{"$f":"$D$4*'CC Allocations'!AM61","v":0},{"$f":"$D$4*'CC Allocations'!AN61","v":0},{"$f":"$D$4*'CC Allocations'!AO61","v":0},{"$f":"$D$4*'CC Allocations'!AP61","v":0},{"$f":"$D$4*'CC Allocations'!AQ61","v":0}]
[null,"225 - Washington State Patrol","225","Washington State Patrol",15712.228521904333,15482.06382229161,566,1.0033728940268133E-2,2.0850834598050702E-5,1.4916681871619334E-4,{"$f":"$D$4*'CC Allocations'!J62","v":0},{"$f":"$D$4*'CC Allocations'!K62","v":0},{"$f":"$D$4*'CC Allocations'!L62","v":230.16469961272381},{"$f":"$D$4*'CC Allocations'!M62","v":0},{"$f":"$D$4*'CC Allocations'!N62","v":0},{"$f":"$D$4*'CC Allocations'!O62","v":0},{"$f":"$D$4*'CC Allocations'!P62","v":0},{"$f":"$D$4*'CC Allocations'!Q62","v":0},{"$f":"$D$4*'CC Allocations'!R62","v":0},{"$f":"$D$4*'CC Allocations'!S62","v":0},{"$f":"$D$4*'CC Allocations'!T62","v":0},{"$f":"$D$4*'CC Allocations'!U62","v":0},{"$f":"$D$4*'CC Allocations'!V62","v":0},{"$f":"$D$4*'CC Allocations'!W62","v":0},{"$f":"$D$4*'CC Allocations'!X62","v":0},{"$f":"$D$4*'CC Allocations'!Y62","v":0},{"$f":"$D$4*'CC Allocations'!Z62","v":0},{"$f":"$D$4*'CC Allocations'!AA62","v":0},{"$f":"$D$4*'CC Allocations'!AB62","v":0},{"$f":"$D$4*'CC Allocations'!AC62","v":0},{"$f":"$D$4*'CC Allocations'!AD62","v":0},{"$f":"$D$4*'CC Allocations'!AE62","v":0},{"$f":"$D$4*'CC Allocations'!AF62","v":0},{"$f":"$D$4*'CC Allocations'!AG62","v":0},{"$f":"$D$4*'CC Allocations'!AH62","v":0},{"$f":"$D$4*'CC Allocations'!AI62","v":0},{"$f":"$D$4*'CC Allocations'!AJ62","v":0},{"$f":"$D$4*'CC Allocations'!AK62","v":0},{"$f":"$D$4*'CC Allocations'!AL62","v":0},{"$f":"$D$4*'CC Allocations'!AM62","v":0},{"$f":"$D$4*'CC Allocations'!AN62","v":0},{"$f":"$D$4*'CC Allocations'!AO62","v":0},{"$f":"$D$4*'CC Allocations'!AP62","v":0},{"$f":"$D$4*'CC Allocations'!AQ62","v":0}]
[null,"227 - Criminal Justice Training Commission","227","Criminal Justice Training Commission",27.353469650691892,27.353469650691892,1,1.7727436290226384E-5,0,0,{"$f":"$D$4*'CC Allocations'!J63","v":0},{"$f":"$D$4*'CC Allocations'!K63","v":0},{"$f":"$D$4*'CC Allocations'!L63","v":0},{"$f":"$D$4*'CC Allocations'!M63","v":0},{"$f":"$D$4*'CC Allocations'!N63","v":0},{"$f":"$D$4*'CC Allocations'!O63","v":0},{"$f":"$D$4*'CC Allocations'!P63","v":0},{"$f":"$D$4*'CC Allocations'!Q63","v":0},{"$f":"$D$4*'CC Allocations'!R63","v":0},{"$f":"$D$4*'CC Allocations'!S63","v":0},{"$f":"$D$4*'CC Allocations'!T63","v":0},{"$f":"$D$4*'CC Allocations'!U63","v":0},{"$f":"$D$4*'CC Allocations'!V63","v":0},{"$f":"$D$4*'CC Allocations'!W63","v":0},{"$f":"$D$4*'CC Allocations'!X63","v":0},{"$f":"$D$4*'CC Allocations'!Y63","v":0},{"$f":"$D$4*'CC Allocations'!Z63","v":0},{"$f":"$D$4*'CC Allocations'!AA63","v":0},{"$f":"$D$4*'CC Allocations'!AB63","v":0},{"$f":"$D$4*'CC Allocations'!AC63","v":0},{"$f":"$D$4*'CC Allocations'!AD63","v":0},{"$f":"$D$4*'CC Allocations'!AE63","v":0},{"$f":"$D$4*'CC Allocations'!AF63","v":0},{"$f":"$D$4*'CC Allocations'!AG63","v":0},{"$f":"$D$4*'CC Allocations'!AH63","v":0},{"$f":"$D$4*'CC Allocations'!AI63","v":0},{"$f":"$D$4*'CC Allocations'!AJ63","v":0},{"$f":"$D$4*'CC Allocations'!AK63","v":0},{"$f":"$D$4*'CC Allocations'!AL63","v":0},{"$f":"$D$4*'CC Allocations'!AM63","v":0},{"$f":"$D$4*'CC Allocations'!AN63","v":0},{"$f":"$D$4*'CC Allocations'!AO63","v":0},{"$f":"$D$4*'CC Allocations'!AP63","v":0},{"$f":"$D$4*'CC Allocations'!AQ63","v":0}]
[null,"228 - Traffic Safety Commission","228","Traffic Safety Commission",574.42286266452982,574.42286266452982,21,3.7227616209475412E-4,0,0,{"$f":"$D$4*'CC Allocations'!J64","v":0},{"$f":"$D$4*'CC Allocations'!K64","v":0},{"$f":"$D$4*'CC Allocations'!L64","v":0},{"$f":"$D$4*'CC Allocations'!M64","v":0},{"$f":"$D$4*'CC Allocations'!N64","v":0},{"$f":"$D$4*'CC Allocations'!O64","v":0},{"$f":"$D$4*'CC Allocations'!P64","v":0},{"$f":"$D$4*'CC Allocations'!Q64","v":0},{"$f":"$D$4*'CC Allocations'!R64","v":0},{"$f":"$D$4*'CC Allocations'!S64","v":0},{"$f":"$D$4*'CC Allocations'!T64","v":0},{"$f":"$D$4*'CC Allocations'!U64","v":0},{"$f":"$D$4*'CC Allocations'!V64","v":0},{"$f":"$D$4*'CC Allocations'!W64","v":0},{"$f":"$D$4*'CC Allocations'!X64","v":0},{"$f":"$D$4*'CC Allocations'!Y64","v":0},{"$f":"$D$4*'CC Allocations'!Z64","v":0},{"$f":"$D$4*'CC Allocations'!AA64","v":0},{"$f":"$D$4*'CC Allocations'!AB64","v":0},{"$f":"$D$4*'CC Allocations'!AC64","v":0},{"$f":"$D$4*'CC Allocations'!AD64","v":0},{"$f":"$D$4*'CC Allocations'!AE64","v":0},{"$f":"$D$4*'CC Allocations'!AF64","v":0},{"$f":"$D$4*'CC Allocations'!AG64","v":0},{"$f":"$D$4*'CC Allocations'!AH64","v":0},{"$f":"$D$4*'CC Allocations'!AI64","v":0},{"$f":"$D$4*'CC Allocations'!AJ64","v":0},{"$f":"$D$4*'CC Allocations'!AK64","v":0},{"$f":"$D$4*'CC Allocations'!AL64","v":0},{"$f":"$D$4*'CC Allocations'!AM64","v":0},{"$f":"$D$4*'CC Allocations'!AN64","v":0},{"$f":"$D$4*'CC Allocations'!AO64","v":0},{"$f":"$D$4*'CC Allocations'!AP64","v":0},{"$f":"$D$4*'CC Allocations'!AQ64","v":0}]
[null,"235 - Department of Labor and Industries","235","Department of Labor and Industries",67562.757921303579,60040.8658832687,2195,3.8911722657046913E-2,0,4.874842701457857E-3,{"$f":"$D$4*'CC Allocations'!J65","v":0},{"$f":"$D$4*'CC Allocations'!K65","v":0},{"$f":"$D$4*'CC Allocations'!L65","v":0},{"$f":"$D$4*'CC Allocations'!M65","v":0},{"$f":"$D$4*'CC Allocations'!N65","v":0},{"$f":"$D$4*'CC Allocations'!O65","v":0},{"$f":"$D$4*'CC Allocations'!P65","v":0},{"$f":"$D$4*'CC Allocations'!Q65","v":0},{"$f":"$D$4*'CC Allocations'!R65","v":0},{"$f":"$D$4*'CC Allocations'!S65","v":0},{"$f":"$D$4*'CC Allocations'!T65","v":0},{"$f":"$D$4*'CC Allocations'!U65","v":0},{"$f":"$D$4*'CC Allocations'!V65","v":0},{"$f":"$D$4*'CC Allocations'!W65","v":0},{"$f":"$D$4*'CC Allocations'!X65","v":0},{"$f":"$D$4*'CC Allocations'!Y65","v":0},{"$f":"$D$4*'CC Allocations'!Z65","v":0},{"$f":"$D$4*'CC Allocations'!AA65","v":0},{"$f":"$D$4*'CC Allocations'!AB65","v":0},{"$f":"$D$4*'CC Allocations'!AC65","v":0},{"$f":"$D$4*'CC Allocations'!AD65","v":0},{"$f":"$D$4*'CC Allocations'!AE65","v":0},{"$f":"$D$4*'CC Allocations'!AF65","v":0},{"$f":"$D$4*'CC Allocations'!AG65","v":0},{"$f":"$D$4*'CC Allocations'!AH65","v":0},{"$f":"$D$4*'CC Allocations'!AI65","v":0},{"$f":"$D$4*'CC Allocations'!AJ65","v":0},{"$f":"$D$4*'CC Allocations'!AK65","v":0},{"$f":"$D$4*'CC Allocations'!AL65","v":0},{"$f":"$D$4*'CC Allocations'!AM65","v":0},{"$f":"$D$4*'CC Allocations'!AN65","v":0},{"$f":"$D$4*'CC Allocations'!AO65","v":7521.8920380348773},{"$f":"$D$4*'CC Allocations'!AP65","v":0},{"$f":"$D$4*'CC Allocations'!AQ65","v":0}]
[null,"240 - Department of Licensing","240","Department of Licensing",67195.761670609616,24454.001867718551,894,1.5848328043462388E-2,4.1766226587837676E-3,2.7700391705837751E-2,{"$f":"$D$4*'CC Allocations'!J66","v":0},{"$f":"$D$4*'CC Allocations'!K66","v":0},{"$f":"$D$4*'CC Allocations'!L66","v":0},{"$f":"$D$4*'CC Allocations'!M66","v":0},{"$f":"$D$4*'CC Allocations'!N66","v":42741.759802891065},{"$f":"$D$4*'CC Allocations'!O66","v":0},{"$f":"$D$4*'CC Allocations'!P66","v":0},{"$f":"$D$4*'CC Allocations'!Q66","v":0},{"$f":"$D$4*'CC Allocations'!R66","v":0},{"$f":"$D$4*'CC Allocations'!S66","v":0},{"$f":"$D$4*'CC Allocations'!T66","v":0},{"$f":"$D$4*'CC Allocations'!U66","v":0},{"$f":"$D$4*'CC Allocations'!V66","v":0},{"$f":"$D$4*'CC Allocations'!W66","v":0},{"$f":"$D$4*'CC Allocations'!X66","v":0},{"$f":"$D$4*'CC Allocations'!Y66","v":0},{"$f":"$D$4*'CC Allocations'!Z66","v":0},{"$f":"$D$4*'CC Allocations'!AA66","v":0},{"$f":"$D$4*'CC Allocations'!AB66","v":0},{"$f":"$D$4*'CC Allocations'!AC66","v":0},{"$f":"$D$4*'CC Allocations'!AD66","v":0},{"$f":"$D$4*'CC Allocations'!AE66","v":0},{"$f":"$D$4*'CC Allocations'!AF66","v":0},{"$f":"$D$4*'CC Allocations'!AG66","v":0},{"$f":"$D$4*'CC Allocations'!AH66","v":0},{"$f":"$D$4*'CC Allocations'!AI66","v":0},{"$f":"$D$4*'CC Allocations'!AJ66","v":0},{"$f":"$D$4*'CC Allocations'!AK66","v":0},{"$f":"$D$4*'CC Allocations'!AL66","v":0},{"$f":"$D$4*'CC Allocations'!AM66","v":0},{"$f":"$D$4*'CC Allocations'!AN66","v":0},{"$f":"$D$4*'CC Allocations'!AO66","v":0},{"$f":"$D$4*'CC Allocations'!AP66","v":0},{"$f":"$D$4*'CC Allocations'!AQ66","v":0}]
[null,"245 - Military Department","245","Military Department",0,0,0,0,0,0,{"$f":"$D$4*'CC Allocations'!J67","v":0},{"$f":"$D$4*'CC Allocations'!K67","v":0},{"$f":"$D$4*'CC Allocations'!L67","v":0},{"$f":"$D$4*'CC Allocations'!M67","v":0},{"$f":"$D$4*'CC Allocations'!N67","v":0},{"$f":"$D$4*'CC Allocations'!O67","v":0},{"$f":"$D$4*'CC Allocations'!P67","v":0},{"$f":"$D$4*'CC Allocations'!Q67","v":0},{"$f":"$D$4*'CC Allocations'!R67","v":0},{"$f":"$D$4*'CC Allocations'!S67","v":0},{"$f":"$D$4*'CC Allocations'!T67","v":0},{"$f":"$D$4*'CC Allocations'!U67","v":0},{"$f":"$D$4*'CC Allocations'!V67","v":0},{"$f":"$D$4*'CC Allocations'!W67","v":0},{"$f":"$D$4*'CC Allocations'!X67","v":0},{"$f":"$D$4*'CC Allocations'!Y67","v":0},{"$f":"$D$4*'CC Allocations'!Z67","v":0},{"$f":"$D$4*'CC Allocations'!AA67","v":0},{"$f":"$D$4*'CC Allocations'!AB67","v":0},{"$f":"$D$4*'CC Allocations'!AC67","v":0},{"$f":"$D$4*'CC Allocations'!AD67","v":0},{"$f":"$D$4*'CC Allocations'!AE67","v":0},{"$f":"$D$4*'CC Allocations'!AF67","v":0},{"$f":"$D$4*'CC Allocations'!AG67","v":0},{"$f":"$D$4*'CC Allocations'!AH67","v":0},{"$f":"$D$4*'CC Allocations'!AI67","v":0},{"$f":"$D$4*'CC Allocations'!AJ67","v":0},{"$f":"$D$4*'CC Allocations'!AK67","v":0},{"$f":"$D$4*'CC Allocations'!AL67","v":0},{"$f":"$D$4*'CC Allocations'!AM67","v":0},{"$f":"$D$4*'CC Allocations'!AN67","v":0},{"$f":"$D$4*'CC Allocations'!AO67","v":0},{"$f":"$D$4*'CC Allocations'!AP67","v":0},{"$f":"$D$4*'CC Allocations'!AQ67","v":0}]
[null,"275 - Public Employment Relations Commission","275","Public Employment Relations Commission",574.42286266452982,574.42286266452982,21,3.7227616209475412E-4,0,0,{"$f":"$D$4*'CC Allocations'!J68","v":0},{"$f":"$D$4*'CC Allocations'!K68","v":0},{"$f":"$D$4*'CC Allocations'!L68","v":0},{"$f":"$D$4*'CC Allocations'!M68","v":0},{"$f":"$D$4*'CC Allocations'!N68","v":0},{"$f":"$D$4*'CC Allocations'!O68","v":0},{"$f":"$D$4*'CC Allocations'!P68","v":0},{"$f":"$D$4*'CC Allocations'!Q68","v":0},{"$f":"$D$4*'CC Allocations'!R68","v":0},{"$f":"$D$4*'CC Allocations'!S68","v":0},{"$f":"$D$4*'CC Allocations'!T68","v":0},{"$f":"$D$4*'CC Allocations'!U68","v":0},{"$f":"$D$4*'CC Allocations'!V68","v":0},{"$f":"$D$4*'CC Allocations'!W68","v":0},{"$f":"$D$4*'CC Allocations'!X68","v":0},{"$f":"$D$4*'CC Allocations'!Y68","v":0},{"$f":"$D$4*'CC Allocations'!Z68","v":0},{"$f":"$D$4*'CC Allocations'!AA68","v":0},{"$f":"$D$4*'CC Allocations'!AB68","v":0},{"$f":"$D$4*'CC Allocations'!AC68","v":0},{"$f":"$D$4*'CC Allocations'!AD68","v":0},{"$f":"$D$4*'CC Allocations'!AE68","v":0},{"$f":"$D$4*'CC Allocations'!AF68","v":0},{"$f":"$D$4*'CC Allocations'!AG68","v":0},{"$f":"$D$4*'CC Allocations'!AH68","v":0},{"$f":"$D$4*'CC Allocations'!AI68","v":0},{"$f":"$D$4*'CC Allocations'!AJ68","v":0},{"$f":"$D$4*'CC Allocations'!AK68","v":0},{"$f":"$D$4*'CC Allocations'!AL68","v":0},{"$f":"$D$4*'CC Allocations'!AM68","v":0},{"$f":"$D$4*'CC Allocations'!AN68","v":0},{"$f":"$D$4*'CC Allocations'!AO68","v":0},{"$f":"$D$4*'CC Allocations'!AP68","v":0},{"$f":"$D$4*'CC Allocations'!AQ68","v":0}]
[null,"300 - Department of Social and Health Services","300","Department of Social and Health Services",157503.26189514605,72924.350088744599,2666,4.7261345149743547E-2,6.4674076214503761E-3,5.4814518585459653E-2,{"$f":"$D$4*'CC Allocations'!J69","v":0},{"$f":"$D$4*'CC Allocations'!K69","v":0},{"$f":"$D$4*'CC Allocations'!L69","v":0},{"$f":"$D$4*'CC Allocations'!M69","v":0},{"$f":"$D$4*'CC Allocations'!N69","v":0},{"$f":"$D$4*'CC Allocations'!O69","v":79385.556849781526},{"$f":"$D$4*'CC Allocations'!P69","v":0},{"$f":"$D$4*'CC Allocations'!Q69","v":0},{"$f":"$D$4*'CC Allocations'!R69","v":0},{"$f":"$D$4*'CC Allocations'!S69","v":0},{"$f":"$D$4*'CC Allocations'!T69","v":0},{"$f":"$D$4*'CC Allocations'!U69","v":0},{"$f":"$D$4*'CC Allocations'!V69","v":0},{"$f":"$D$4*'CC Allocations'!W69","v":0},{"$f":"$D$4*'CC Allocations'!X69","v":0},{"$f":"$D$4*'CC Allocations'!Y69","v":0},{"$f":"$D$4*'CC Allocations'!Z69","v":0},{"$f":"$D$4*'CC Allocations'!AA69","v":0},{"$f":"$D$4*'CC Allocations'!AB69","v":0},{"$f":"$D$4*'CC Allocations'!AC69","v":0},{"$f":"$D$4*'CC Allocations'!AD69","v":0},{"$f":"$D$4*'CC Allocations'!AE69","v":0},{"$f":"$D$4*'CC Allocations'!AF69","v":0},{"$f":"$D$4*'CC Allocations'!AG69","v":0},{"$f":"$D$4*'CC Allocations'!AH69","v":0},{"$f":"$D$4*'CC Allocations'!AI69","v":0},{"$f":"$D$4*'CC Allocations'!AJ69","v":0},{"$f":"$D$4*'CC Allocations'!AK69","v":0},{"$f":"$D$4*'CC Allocations'!AL69","v":0},{"$f":"$D$4*'CC Allocations'!AM69","v":5193.3549566199026},{"$f":"$D$4*'CC Allocations'!AN69","v":0},{"$f":"$D$4*'CC Allocations'!AO69","v":0},{"$f":"$D$4*'CC Allocations'!AP69","v":0},{"$f":"$D$4*'CC Allocations'!AQ69","v":0}]
[null,"303 - Department of Health","303","Department of Health",43163.775108791808,43163.775108791808,1578,2.7973894465977235E-2,0,0,{"$f":"$D$4*'CC Allocations'!J70","v":0},{"$f":"$D$4*'CC Allocations'!K70","v":0},{"$f":"$D$4*'CC Allocations'!L70","v":0},{"$f":"$D$4*'CC Allocations'!M70","v":0},{"$f":"$D$4*'CC Allocations'!N70","v":0},{"$f":"$D$4*'CC Allocations'!O70","v":0},{"$f":"$D$4*'CC Allocations'!P70","v":0},{"$f":"$D$4*'CC Allocations'!Q70","v":0},{"$f":"$D$4*'CC Allocations'!R70","v":0},{"$f":"$D$4*'CC Allocations'!S70","v":0},{"$f":"$D$4*'CC Allocations'!T70","v":0},{"$f":"$D$4*'CC Allocations'!U70","v":0},{"$f":"$D$4*'CC Allocations'!V70","v":0},{"$f":"$D$4*'CC Allocations'!W70","v":0},{"$f":"$D$4*'CC Allocations'!X70","v":0},{"$f":"$D$4*'CC Allocations'!Y70","v":0},{"$f":"$D$4*'CC Allocations'!Z70","v":0},{"$f":"$D$4*'CC Allocations'!AA70","v":0},{"$f":"$D$4*'CC Allocations'!AB70","v":0},{"$f":"$D$4*'CC Allocations'!AC70","v":0},{"$f":"$D$4*'CC Allocations'!AD70","v":0},{"$f":"$D$4*'CC Allocations'!AE70","v":0},{"$f":"$D$4*'CC Allocations'!AF70","v":0},{"$f":"$D$4*'CC Allocations'!AG70","v":0},{"$f":"$D$4*'CC Allocations'!AH70","v":0},{"$f":"$D$4*'CC Allocations'!AI70","v":0},{"$f":"$D$4*'CC Allocations'!AJ70","v":0},{"$f":"$D$4*'CC Allocations'!AK70","v":0},{"$f":"$D$4*'CC Allocations'!AL70","v":0},{"$f":"$D$4*'CC Allocations'!AM70","v":0},{"$f":"$D$4*'CC Allocations'!AN70","v":0},{"$f":"$D$4*'CC Allocations'!AO70","v":0},{"$f":"$D$4*'CC Allocations'!AP70","v":0},{"$f":"$D$4*'CC Allocations'!AQ70","v":0}]
[null,"305 - Department of Veterans Affairs","305","Department of Veterans Affairs",2242.9845113567353,2242.9845113567353,82,1.4536497757985636E-3,0,0,{"$f":"$D$4*'CC Allocations'!J71","v":0},{"$f":"$D$4*'CC Allocations'!K71","v":0},{"$f":"$D$4*'CC Allocations'!L71","v":0},{"$f":"$D$4*'CC Allocations'!M71","v":0},{"$f":"$D$4*'CC Allocations'!N71","v":0},{"$f":"$D$4*'CC Allocations'!O71","v":0},{"$f":"$D$4*'CC Allocations'!P71","v":0},{"$f":"$D$4*'CC Allocations'!Q71","v":0},{"$f":"$D$4*'CC Allocations'!R71","v":0},{"$f":"$D$4*'CC Allocations'!S71","v":0},{"$f":"$D$4*'CC Allocations'!T71","v":0},{"$f":"$D$4*'CC Allocations'!U71","v":0},{"$f":"$D$4*'CC Allocations'!V71","v":0},{"$f":"$D$4*'CC Allocations'!W71","v":0},{"$f":"$D$4*'CC Allocations'!X71","v":0},{"$f":"$D$4*'CC Allocations'!Y71","v":0},{"$f":"$D$4*'CC Allocations'!Z71","v":0},{"$f":"$D$4*'CC Allocations'!AA71","v":0},{"$f":"$D$4*'CC Allocations'!AB71","v":0},{"$f":"$D$4*'CC Allocations'!AC71","v":0},{"$f":"$D$4*'CC Allocations'!AD71","v":0},{"$f":"$D$4*'CC Allocations'!AE71","v":0},{"$f":"$D$4*'CC Allocations'!AF71","v":0},{"$f":"$D$4*'CC Allocations'!AG71","v":0},{"$f":"$D$4*'CC Allocations'!AH71","v":0},{"$f":"$D$4*'CC Allocations'!AI71","v":0},{"$f":"$D$4*'CC Allocations'!AJ71","v":0},{"$f":"$D$4*'CC Allocations'!AK71","v":0},{"$f":"$D$4*'CC Allocations'!AL71","v":0},{"$f":"$D$4*'CC Allocations'!AM71","v":0},{"$f":"$D$4*'CC Allocations'!AN71","v":0},{"$f":"$D$4*'CC Allocations'!AO71","v":0},{"$f":"$D$4*'CC Allocations'!AP71","v":0},{"$f":"$D$4*'CC Allocations'!AQ71","v":0}]
[null,{"$f":"CONCATENATE(C72,\" - \",D72)","v":"307 - DCYF"},"307","DCYF",{"$f":"F72+SUM(K72:AR72)","v":57739.291399145761},{"$f":"H72*$D$4","v":23031.621445882574},842,1.4926501356370617E-2,2.6481361894701242E-3,2.249360010762344E-2,{"$f":"$D$4*'CC Allocations'!J72","v":0},{"$f":"$D$4*'CC Allocations'!K72","v":0},{"$f":"$D$4*'CC Allocations'!L72","v":0},{"$f":"$D$4*'CC Allocations'!M72","v":0},{"$f":"$D$4*'CC Allocations'!N72","v":0},{"$f":"$D$4*'CC Allocations'!O72","v":32505.105340491853},{"$f":"$D$4*'CC Allocations'!P72","v":0},{"$f":"$D$4*'CC Allocations'!Q72","v":0},{"$f":"$D$4*'CC Allocations'!R72","v":0},{"$f":"$D$4*'CC Allocations'!S72","v":0},{"$f":"$D$4*'CC Allocations'!T72","v":0},{"$f":"$D$4*'CC Allocations'!U72","v":0},{"$f":"$D$4*'CC Allocations'!V72","v":0},{"$f":"$D$4*'CC Allocations'!W72","v":0},{"$f":"$D$4*'CC Allocations'!X72","v":0},{"$f":"$D$4*'CC Allocations'!Y72","v":0},{"$f":"$D$4*'CC Allocations'!Z72","v":0},{"$f":"$D$4*'CC Allocations'!AA72","v":0},{"$f":"$D$4*'CC Allocations'!AB72","v":0},{"$f":"$D$4*'CC Allocations'!AC72","v":0},{"$f":"$D$4*'CC Allocations'!AD72","v":0},{"$f":"$D$4*'CC Allocations'!AE72","v":0},{"$f":"$D$4*'CC Allocations'!AF72","v":0},{"$f":"$D$4*'CC Allocations'!AG72","v":0},{"$f":"$D$4*'CC Allocations'!AH72","v":0},{"$f":"$D$4*'CC Allocations'!AI72","v":0},{"$f":"$D$4*'CC Allocations'!AJ72","v":0},{"$f":"$D$4*'CC Allocations'!AK72","v":0},{"$f":"$D$4*'CC Allocations'!AL72","v":0},{"$f":"$D$4*'CC Allocations'!AM72","v":2202.5646127713312},{"$f":"$D$4*'CC Allocations'!AN72","v":0},{"$f":"$D$4*'CC Allocations'!AO72","v":0},{"$f":"$D$4*'CC Allocations'!AP72","v":0},{"$f":"$D$4*'CC Allocations'!AQ72","v":0}]
[null,"310 - Department of Corrections","310","Department of Corrections",29952.049267507624,29952.049267507624,1095,1.9411542737797893E-2,0,0,{"$f":"$D$4*'CC Allocations'!J73","v":0},{"$f":"$D$4*'CC Allocations'!K73","v":0},{"$f":"$D$4*'CC Allocations'!L73","v":0},{"$f":"$D$4*'CC Allocations'!M73","v":0},{"$f":"$D$4*'CC Allocations'!N73","v":0},{"$f":"$D$4*'CC Allocations'!O73","v":0},{"$f":"$D$4*'CC Allocations'!P73","v":0},{"$f":"$D$4*'CC Allocations'!Q73","v":0},{"$f":"$D$4*'CC Allocations'!R73","v":0},{"$f":"$D$4*'CC Allocations'!S73","v":0},{"$f":"$D$4*'CC Allocations'!T73","v":0},{"$f":"$D$4*'CC Allocations'!U73","v":0},{"$f":"$D$4*'CC Allocations'!V73","v":0},{"$f":"$D$4*'CC Allocations'!W73","v":0},{"$f":"$D$4*'CC Allocations'!X73","v":0},{"$f":"$D$4*'CC Allocations'!Y73","v":0},{"$f":"$D$4*'CC Allocations'!Z73","v":0},{"$f":"$D$4*'CC Allocations'!AA73","v":0},{"$f":"$D$4*'CC Allocations'!AB73","v":0},{"$f":"$D$4*'CC Allocations'!AC73","v":0},{"$f":"$D$4*'CC Allocations'!AD73","v":0},{"$f":"$D$4*'CC Allocations'!AE73","v":0},{"$f":"$D$4*'CC Allocations'!AF73","v":0},{"$f":"$D$4*'CC Allocations'!AG73","v":0},{"$f":"$D$4*'CC Allocations'!AH73","v":0},{"$f":"$D$4*'CC Allocations'!AI73","v":0},{"$f":"$D$4*'CC Allocations'!AJ73","v":0},{"$f":"$D$4*'CC Allocations'!AK73","v":0},{"$f":"$D$4*'CC Allocations'!AL73","v":0},{"$f":"$D$4*'CC Allocations'!AM73","v":0},{"$f":"$D$4*'CC Allocations'!AN73","v":0},{"$f":"$D$4*'CC Allocations'!AO73","v":0},{"$f":"$D$4*'CC Allocations'!AP73","v":0},{"$f":"$D$4*'CC Allocations'!AQ73","v":0}]
[null,"315 - Department of Services for the Blind","315","Department of Services for the Blind",8551.8806662560437,547.06939301383795,20,3.5454872580452775E-4,3.3974831067169921E-4,5.1878165246980901E-3,{"$f":"$D$4*'CC Allocations'!J74","v":0},{"$f":"$D$4*'CC Allocations'!K74","v":0},{"$f":"$D$4*'CC Allocations'!L74","v":261.59103359830721},{"$f":"$D$4*'CC Allocations'!M74","v":0},{"$f":"$D$4*'CC Allocations'!N74","v":356.17791216395239},{"$f":"$D$4*'CC Allocations'!O74","v":1264.9241501629881},{"$f":"$D$4*'CC Allocations'!P74","v":0},{"$f":"$D$4*'CC Allocations'!Q74","v":1159.4575427957316},{"$f":"$D$4*'CC Allocations'!R74","v":0},{"$f":"$D$4*'CC Allocations'!S74","v":549.56961762241599},{"$f":"$D$4*'CC Allocations'!T74","v":0},{"$f":"$D$4*'CC Allocations'!U74","v":0},{"$f":"$D$4*'CC Allocations'!V74","v":0},{"$f":"$D$4*'CC Allocations'!W74","v":0},{"$f":"$D$4*'CC Allocations'!X74","v":0},{"$f":"$D$4*'CC Allocations'!Y74","v":0},{"$f":"$D$4*'CC Allocations'!Z74","v":0},{"$f":"$D$4*'CC Allocations'!AA74","v":0},{"$f":"$D$4*'CC Allocations'!AB74","v":0},{"$f":"$D$4*'CC Allocations'!AC74","v":0},{"$f":"$D$4*'CC Allocations'!AD74","v":0},{"$f":"$D$4*'CC Allocations'!AE74","v":0},{"$f":"$D$4*'CC Allocations'!AF74","v":0},{"$f":"$D$4*'CC Allocations'!AG74","v":0},{"$f":"$D$4*'CC Allocations'!AH74","v":0},{"$f":"$D$4*'CC Allocations'!AI74","v":0},{"$f":"$D$4*'CC Allocations'!AJ74","v":0},{"$f":"$D$4*'CC Allocations'!AK74","v":0},{"$f":"$D$4*'CC Allocations'!AL74","v":0},{"$f":"$D$4*'CC Allocations'!AM74","v":0},{"$f":"$D$4*'CC Allocations'!AN74","v":3697.9597846956171},{"$f":"$D$4*'CC Allocations'!AO74","v":715.13123220319267},{"$f":"$D$4*'CC Allocations'!AP74","v":0},{"$f":"$D$4*'CC Allocations'!AQ74","v":0}]
[null,"340 - Student Achievement Council","340","Student Achievement Council",3090.9420705281841,3090.9420705281841,113,2.0032003007955817E-3,0,0,{"$f":"$D$4*'CC Allocations'!J75","v":0},{"$f":"$D$4*'CC Allocations'!K75","v":0},{"$f":"$D$4*'CC Allocations'!L75","v":0},{"$f":"$D$4*'CC Allocations'!M75","v":0},{"$f":"$D$4*'CC Allocations'!N75","v":0},{"$f":"$D$4*'CC Allocations'!O75","v":0},{"$f":"$D$4*'CC Allocations'!P75","v":0},{"$f":"$D$4*'CC Allocations'!Q75","v":0},{"$f":"$D$4*'CC Allocations'!R75","v":0},{"$f":"$D$4*'CC Allocations'!S75","v":0},{"$f":"$D$4*'CC Allocations'!T75","v":0},{"$f":"$D$4*'CC Allocations'!U75","v":0},{"$f":"$D$4*'CC Allocations'!V75","v":0},{"$f":"$D$4*'CC Allocations'!W75","v":0},{"$f":"$D$4*'CC Allocations'!X75","v":0},{"$f":"$D$4*'CC Allocations'!Y75","v":0},{"$f":"$D$4*'CC Allocations'!Z75","v":0},{"$f":"$D$4*'CC Allocations'!AA75","v":0},{"$f":"$D$4*'CC Allocations'!AB75","v":0},{"$f":"$D$4*'CC Allocations'!AC75","v":0},{"$f":"$D$4*'CC Allocations'!AD75","v":0},{"$f":"$D$4*'CC Allocations'!AE75","v":0},{"$f":"$D$4*'CC Allocations'!AF75","v":0},{"$f":"$D$4*'CC Allocations'!AG75","v":0},{"$f":"$D$4*'CC Allocations'!AH75","v":0},{"$f":"$D$4*'CC Allocations'!AI75","v":0},{"$f":"$D$4*'CC Allocations'!AJ75","v":0},{"$f":"$D$4*'CC Allocations'!AK75","v":0},{"$f":"$D$4*'CC Allocations'!AL75","v":0},{"$f":"$D$4*'CC Allocations'!AM75","v":0},{"$f":"$D$4*'CC Allocations'!AN75","v":0},{"$f":"$D$4*'CC Allocations'!AO75","v":0},{"$f":"$D$4*'CC Allocations'!AP75","v":0},{"$f":"$D$4*'CC Allocations'!AQ75","v":0}]
[null,"341 - Law Enforcement Officers' & Fire Fighters' Plan 2 Retirement Board","341","Law Enforcement Officers' & Fire Fighters' Plan 2 Retirement Board",218.82775720553514,218.82775720553514,8,1.4181949032181107E-4,0,0,{"$f":"$D$4*'CC Allocations'!J76","v":0},{"$f":"$D$4*'CC Allocations'!K76","v":0},{"$f":"$D$4*'CC Allocations'!L76","v":0},{"$f":"$D$4*'CC Allocations'!M76","v":0},{"$f":"$D$4*'CC Allocations'!N76","v":0},{"$f":"$D$4*'CC Allocations'!O76","v":0},{"$f":"$D$4*'CC Allocations'!P76","v":0},{"$f":"$D$4*'CC Allocations'!Q76","v":0},{"$f":"$D$4*'CC Allocations'!R76","v":0},{"$f":"$D$4*'CC Allocations'!S76","v":0},{"$f":"$D$4*'CC Allocations'!T76","v":0},{"$f":"$D$4*'CC Allocations'!U76","v":0},{"$f":"$D$4*'CC Allocations'!V76","v":0},{"$f":"$D$4*'CC Allocations'!W76","v":0},{"$f":"$D$4*'CC Allocations'!X76","v":0},{"$f":"$D$4*'CC Allocations'!Y76","v":0},{"$f":"$D$4*'CC Allocations'!Z76","v":0},{"$f":"$D$4*'CC Allocations'!AA76","v":0},{"$f":"$D$4*'CC Allocations'!AB76","v":0},{"$f":"$D$4*'CC Allocations'!AC76","v":0},{"$f":"$D$4*'CC Allocations'!AD76","v":0},{"$f":"$D$4*'CC Allocations'!AE76","v":0},{"$f":"$D$4*'CC Allocations'!AF76","v":0},{"$f":"$D$4*'CC Allocations'!AG76","v":0},{"$f":"$D$4*'CC Allocations'!AH76","v":0},{"$f":"$D$4*'CC Allocations'!AI76","v":0},{"$f":"$D$4*'CC Allocations'!AJ76","v":0},{"$f":"$D$4*'CC Allocations'!AK76","v":0},{"$f":"$D$4*'CC Allocations'!AL76","v":0},{"$f":"$D$4*'CC Allocations'!AM76","v":0},{"$f":"$D$4*'CC Allocations'!AN76","v":0},{"$f":"$D$4*'CC Allocations'!AO76","v":0},{"$f":"$D$4*'CC Allocations'!AP76","v":0},{"$f":"$D$4*'CC Allocations'!AQ76","v":0}]
[null,"350 - Superintendent of Public Instruction","350","Superintendent of Public Instruction",48296.448352512729,12500.535630366194,457,8.1014383846334578E-3,3.9215608147872283E-3,2.3198876425400958E-2,{"$f":"$D$4*'CC Allocations'!J77","v":0},{"$f":"$D$4*'CC Allocations'!K77","v":0},{"$f":"$D$4*'CC Allocations'!L77","v":0},{"$f":"$D$4*'CC Allocations'!M77","v":0},{"$f":"$D$4*'CC Allocations'!N77","v":0},{"$f":"$D$4*'CC Allocations'!O77","v":0},{"$f":"$D$4*'CC Allocations'!P77","v":0},{"$f":"$D$4*'CC Allocations'!Q77","v":0},{"$f":"$D$4*'CC Allocations'!R77","v":0},{"$f":"$D$4*'CC Allocations'!S77","v":0},{"$f":"$D$4*'CC Allocations'!T77","v":0},{"$f":"$D$4*'CC Allocations'!U77","v":35567.281040042923},{"$f":"$D$4*'CC Allocations'!V77","v":0},{"$f":"$D$4*'CC Allocations'!W77","v":0},{"$f":"$D$4*'CC Allocations'!X77","v":0},{"$f":"$D$4*'CC Allocations'!Y77","v":0},{"$f":"$D$4*'CC Allocations'!Z77","v":0},{"$f":"$D$4*'CC Allocations'!AA77","v":0},{"$f":"$D$4*'CC Allocations'!AB77","v":0},{"$f":"$D$4*'CC Allocations'!AC77","v":0},{"$f":"$D$4*'CC Allocations'!AD77","v":0},{"$f":"$D$4*'CC Allocations'!AE77","v":0},{"$f":"$D$4*'CC Allocations'!AF77","v":228.63168210361198},{"$f":"$D$4*'CC Allocations'!AG77","v":0},{"$f":"$D$4*'CC Allocations'!AH77","v":0},{"$f":"$D$4*'CC Allocations'!AI77","v":0},{"$f":"$D$4*'CC Allocations'!AJ77","v":0},{"$f":"$D$4*'CC Allocations'!AK77","v":0},{"$f":"$D$4*'CC Allocations'!AL77","v":0},{"$f":"$D$4*'CC Allocations'!AM77","v":0},{"$f":"$D$4*'CC Allocations'!AN77","v":0},{"$f":"$D$4*'CC Allocations'!AO77","v":0},{"$f":"$D$4*'CC Allocations'!AP77","v":0},{"$f":"$D$4*'CC Allocations'!AQ77","v":0}]
[null,"351 - State School For The Blind","351","State School For The Blind",54.706939301383784,54.706939301383784,2,3.5454872580452768E-5,0,0,{"$f":"$D$4*'CC Allocations'!J78","v":0},{"$f":"$D$4*'CC Allocations'!K78","v":0},{"$f":"$D$4*'CC Allocations'!L78","v":0},{"$f":"$D$4*'CC Allocations'!M78","v":0},{"$f":"$D$4*'CC Allocations'!N78","v":0},{"$f":"$D$4*'CC Allocations'!O78","v":0},{"$f":"$D$4*'CC Allocations'!P78","v":0},{"$f":"$D$4*'CC Allocations'!Q78","v":0},{"$f":"$D$4*'CC Allocations'!R78","v":0},{"$f":"$D$4*'CC Allocations'!S78","v":0},{"$f":"$D$4*'CC Allocations'!T78","v":0},{"$f":"$D$4*'CC Allocations'!U78","v":0},{"$f":"$D$4*'CC Allocations'!V78","v":0},{"$f":"$D$4*'CC Allocations'!W78","v":0},{"$f":"$D$4*'CC Allocations'!X78","v":0},{"$f":"$D$4*'CC Allocations'!Y78","v":0},{"$f":"$D$4*'CC Allocations'!Z78","v":0},{"$f":"$D$4*'CC Allocations'!AA78","v":0},{"$f":"$D$4*'CC Allocations'!AB78","v":0},{"$f":"$D$4*'CC Allocations'!AC78","v":0},{"$f":"$D$4*'CC Allocations'!AD78","v":0},{"$f":"$D$4*'CC Allocations'!AE78","v":0},{"$f":"$D$4*'CC Allocations'!AF78","v":0},{"$f":"$D$4*'CC Allocations'!AG78","v":0},{"$f":"$D$4*'CC Allocations'!AH78","v":0},{"$f":"$D$4*'CC Allocations'!AI78","v":0},{"$f":"$D$4*'CC Allocations'!AJ78","v":0},{"$f":"$D$4*'CC Allocations'!AK78","v":0},{"$f":"$D$4*'CC Allocations'!AL78","v":0},{"$f":"$D$4*'CC Allocations'!AM78","v":0},{"$f":"$D$4*'CC Allocations'!AN78","v":0},{"$f":"$D$4*'CC Allocations'!AO78","v":0},{"$f":"$D$4*'CC Allocations'!AP78","v":0},{"$f":"$D$4*'CC Allocations'!AQ78","v":0}]
[null,"353 - State Center for Childhood Deafness and Hearing Loss","353","State Center for Childhood Deafness and Hearing Loss",0,0,0,0,0,0,{"$f":"$D$4*'CC Allocations'!J79","v":0},{"$f":"$D$4*'CC Allocations'!K79","v":0},{"$f":"$D$4*'CC Allocations'!L79","v":0},{"$f":"$D$4*'CC Allocations'!M79","v":0},{"$f":"$D$4*'CC Allocations'!N79","v":0},{"$f":"$D$4*'CC Allocations'!O79","v":0},{"$f":"$D$4*'CC Allocations'!P79","v":0},{"$f":"$D$4*'CC Allocations'!Q79","v":0},{"$f":"$D$4*'CC Allocations'!R79","v":0},{"$f":"$D$4*'CC Allocations'!S79","v":0},{"$f":"$D$4*'CC Allocations'!T79","v":0},{"$f":"$D$4*'CC Allocations'!U79","v":0},{"$f":"$D$4*'CC Allocations'!V79","v":0},{"$f":"$D$4*'CC Allocations'!W79","v":0},{"$f":"$D$4*'CC Allocations'!X79","v":0},{"$f":"$D$4*'CC Allocations'!Y79","v":0},{"$f":"$D$4*'CC Allocations'!Z79","v":0},{"$f":"$D$4*'CC Allocations'!AA79","v":0},{"$f":"$D$4*'CC Allocations'!AB79","v":0},{"$f":"$D$4*'CC Allocations'!AC79","v":0},{"$f":"$D$4*'CC Allocations'!AD79","v":0},{"$f":"$D$4*'CC Allocations'!AE79","v":0},{"$f":"$D$4*'CC Allocations'!AF79","v":0},{"$f":"$D$4*'CC Allocations'!AG79","v":0},{"$f":"$D$4*'CC Allocations'!AH79","v":0},{"$f":"$D$4*'CC Allocations'!AI79","v":0},{"$f":"$D$4*'CC Allocations'!AJ79","v":0},{"$f":"$D$4*'CC Allocations'!AK79","v":0},{"$f":"$D$4*'CC Allocations'!AL79","v":0},{"$f":"$D$4*'CC Allocations'!AM79","v":0},{"$f":"$D$4*'CC Allocations'!AN79","v":0},{"$f":"$D$4*'CC Allocations'!AO79","v":0},{"$f":"$D$4*'CC Allocations'!AP79","v":0},{"$f":"$D$4*'CC Allocations'!AQ79","v":0}]
[null,"354 - Workforce Training and Education Coordinating Board","354","Workforce Training and Education Coordinating Board",765.89715021937297,765.89715021937297,28,4.9636821612633879E-4,0,0,{"$f":"$D$4*'CC Allocations'!J80","v":0},{"$f":"$D$4*'CC Allocations'!K80","v":0},{"$f":"$D$4*'CC Allocations'!L80","v":0},{"$f":"$D$4*'CC Allocations'!M80","v":0},{"$f":"$D$4*'CC Allocations'!N80","v":0},{"$f":"$D$4*'CC Allocations'!O80","v":0},{"$f":"$D$4*'CC Allocations'!P80","v":0},{"$f":"$D$4*'CC Allocations'!Q80","v":0},{"$f":"$D$4*'CC Allocations'!R80","v":0},{"$f":"$D$4*'CC Allocations'!S80","v":0},{"$f":"$D$4*'CC Allocations'!T80","v":0},{"$f":"$D$4*'CC Allocations'!U80","v":0},{"$f":"$D$4*'CC Allocations'!V80","v":0},{"$f":"$D$4*'CC Allocations'!W80","v":0},{"$f":"$D$4*'CC Allocations'!X80","v":0},{"$f":"$D$4*'CC Allocations'!Y80","v":0},{"$f":"$D$4*'CC Allocations'!Z80","v":0},{"$f":"$D$4*'CC Allocations'!AA80","v":0},{"$f":"$D$4*'CC Allocations'!AB80","v":0},{"$f":"$D$4*'CC Allocations'!AC80","v":0},{"$f":"$D$4*'CC Allocations'!AD80","v":0},{"$f":"$D$4*'CC Allocations'!AE80","v":0},{"$f":"$D$4*'CC Allocations'!AF80","v":0},{"$f":"$D$4*'CC Allocations'!AG80","v":0},{"$f":"$D$4*'CC Allocations'!AH80","v":0},{"$f":"$D$4*'CC Allocations'!AI80","v":0},{"$f":"$D$4*'CC Allocations'!AJ80","v":0},{"$f":"$D$4*'CC Allocations'!AK80","v":0},{"$f":"$D$4*'CC Allocations'!AL80","v":0},{"$f":"$D$4*'CC Allocations'!AM80","v":0},{"$f":"$D$4*'CC Allocations'!AN80","v":0},{"$f":"$D$4*'CC Allocations'!AO80","v":0},{"$f":"$D$4*'CC Allocations'!AP80","v":0},{"$f":"$D$4*'CC Allocations'!AQ80","v":0}]
[null,"355 - Department of Archaeology and Historic Preservation","355","Department of Archaeology and Historic Preservation",3591.0414767551201,547.06939301383795,20,3.5454872580452775E-4,0,1.972759648880093E-3,{"$f":"$D$4*'CC Allocations'!J81","v":0},{"$f":"$D$4*'CC Allocations'!K81","v":0},{"$f":"$D$4*'CC Allocations'!L81","v":0},{"$f":"$D$4*'CC Allocations'!M81","v":0},{"$f":"$D$4*'CC Allocations'!N81","v":0},{"$f":"$D$4*'CC Allocations'!O81","v":0},{"$f":"$D$4*'CC Allocations'!P81","v":0},{"$f":"$D$4*'CC Allocations'!Q81","v":0},{"$f":"$D$4*'CC Allocations'!R81","v":0},{"$f":"$D$4*'CC Allocations'!S81","v":0},{"$f":"$D$4*'CC Allocations'!T81","v":0},{"$f":"$D$4*'CC Allocations'!U81","v":0},{"$f":"$D$4*'CC Allocations'!V81","v":0},{"$f":"$D$4*'CC Allocations'!W81","v":0},{"$f":"$D$4*'CC Allocations'!X81","v":0},{"$f":"$D$4*'CC Allocations'!Y81","v":0},{"$f":"$D$4*'CC Allocations'!Z81","v":0},{"$f":"$D$4*'CC Allocations'!AA81","v":0},{"$f":"$D$4*'CC Allocations'!AB81","v":0},{"$f":"$D$4*'CC Allocations'!AC81","v":3043.9720837412819},{"$f":"$D$4*'CC Allocations'!AD81","v":0},{"$f":"$D$4*'CC Allocations'!AE81","v":0},{"$f":"$D$4*'CC Allocations'!AF81","v":0},{"$f":"$D$4*'CC Allocations'!AG81","v":0},{"$f":"$D$4*'CC Allocations'!AH81","v":0},{"$f":"$D$4*'CC Allocations'!AI81","v":0},{"$f":"$D$4*'CC Allocations'!AJ81","v":0},{"$f":"$D$4*'CC Allocations'!AK81","v":0},{"$f":"$D$4*'CC Allocations'!AL81","v":0},{"$f":"$D$4*'CC Allocations'!AM81","v":0},{"$f":"$D$4*'CC Allocations'!AN81","v":0},{"$f":"$D$4*'CC Allocations'!AO81","v":0},{"$f":"$D$4*'CC Allocations'!AP81","v":0},{"$f":"$D$4*'CC Allocations'!AQ81","v":0}]
[null,"357 - Department of Early Learning","357","Department of Early Learning",0,0,0,0,0,0,{"$f":"$D$4*'CC Allocations'!J82","v":0},{"$f":"$D$4*'CC Allocations'!K82","v":0},{"$f":"$D$4*'CC Allocations'!L82","v":0},{"$f":"$D$4*'CC Allocations'!M82","v":0},{"$f":"$D$4*'CC Allocations'!N82","v":0},{"$f":"$D$4*'CC Allocations'!O82","v":0},{"$f":"$D$4*'CC Allocations'!P82","v":0},{"$f":"$D$4*'CC Allocations'!Q82","v":0},{"$f":"$D$4*'CC Allocations'!R82","v":0},{"$f":"$D$4*'CC Allocations'!S82","v":0},{"$f":"$D$4*'CC Allocations'!T82","v":0},{"$f":"$D$4*'CC Allocations'!U82","v":0},{"$f":"$D$4*'CC Allocations'!V82","v":0},{"$f":"$D$4*'CC Allocations'!W82","v":0},{"$f":"$D$4*'CC Allocations'!X82","v":0},{"$f":"$D$4*'CC Allocations'!Y82","v":0},{"$f":"$D$4*'CC Allocations'!Z82","v":0},{"$f":"$D$4*'CC Allocations'!AA82","v":0},{"$f":"$D$4*'CC Allocations'!AB82","v":0},{"$f":"$D$4*'CC Allocations'!AC82","v":0},{"$f":"$D$4*'CC Allocations'!AD82","v":0},{"$f":"$D$4*'CC Allocations'!AE82","v":0},{"$f":"$D$4*'CC Allocations'!AF82","v":0},{"$f":"$D$4*'CC Allocations'!AG82","v":0},{"$f":"$D$4*'CC Allocations'!AH82","v":0},{"$f":"$D$4*'CC Allocations'!AI82","v":0},{"$f":"$D$4*'CC Allocations'!AJ82","v":0},{"$f":"$D$4*'CC Allocations'!AK82","v":0},{"$f":"$D$4*'CC Allocations'!AL82","v":0},{"$f":"$D$4*'CC Allocations'!AM82","v":0},{"$f":"$D$4*'CC Allocations'!AN82","v":0},{"$f":"$D$4*'CC Allocations'!AO82","v":0},{"$f":"$D$4*'CC Allocations'!AP82","v":0},{"$f":"$D$4*'CC Allocations'!AQ82","v":0}]
[null,"359 - WA Charter School Commission","359","WA Charter School Commission",0,0,0,0,0,0,{"$f":"$D$4*'CC Allocations'!J83","v":0},{"$f":"$D$4*'CC Allocations'!K83","v":0},{"$f":"$D$4*'CC Allocations'!L83","v":0},{"$f":"$D$4*'CC Allocations'!M83","v":0},{"$f":"$D$4*'CC Allocations'!N83","v":0},{"$f":"$D$4*'CC Allocations'!O83","v":0},{"$f":"$D$4*'CC Allocations'!P83","v":0},{"$f":"$D$4*'CC Allocations'!Q83","v":0},{"$f":"$D$4*'CC Allocations'!R83","v":0},{"$f":"$D$4*'CC Allocations'!S83","v":0},{"$f":"$D$4*'CC Allocations'!T83","v":0},{"$f":"$D$4*'CC Allocations'!U83","v":0},{"$f":"$D$4*'CC Allocations'!V83","v":0},{"$f":"$D$4*'CC Allocations'!W83","v":0},{"$f":"$D$4*'CC Allocations'!X83","v":0},{"$f":"$D$4*'CC Allocations'!Y83","v":0},{"$f":"$D$4*'CC Allocations'!Z83","v":0},{"$f":"$D$4*'CC Allocations'!AA83","v":0},{"$f":"$D$4*'CC Allocations'!AB83","v":0},{"$f":"$D$4*'CC Allocations'!AC83","v":0},{"$f":"$D$4*'CC Allocations'!AD83","v":0},{"$f":"$D$4*'CC Allocations'!AE83","v":0},{"$f":"$D$4*'CC Allocations'!AF83","v":0},{"$f":"$D$4*'CC Allocations'!AG83","v":0},{"$f":"$D$4*'CC Allocations'!AH83","v":0},{"$f":"$D$4*'CC Allocations'!AI83","v":0},{"$f":"$D$4*'CC Allocations'!AJ83","v":0},{"$f":"$D$4*'CC Allocations'!AK83","v":0},{"$f":"$D$4*'CC Allocations'!AL83","v":0},{"$f":"$D$4*'CC Allocations'!AM83","v":0},{"$f":"$D$4*'CC Allocations'!AN83","v":0},{"$f":"$D$4*'CC Allocations'!AO83","v":0},{"$f":"$D$4*'CC Allocations'!AP83","v":0},{"$f":"$D$4*'CC Allocations'!AQ83","v":0}]
[null,"360 - University of Washington","360","University of Washington",601.77633231522168,601.77633231522168,22,3.9000359838498049E-4,0,0,{"$f":"$D$4*'CC Allocations'!J84","v":0},{"$f":"$D$4*'CC Allocations'!K84","v":0},{"$f":"$D$4*'CC Allocations'!L84","v":0},{"$f":"$D$4*'CC Allocations'!M84","v":0},{"$f":"$D$4*'CC Allocations'!N84","v":0},{"$f":"$D$4*'CC Allocations'!O84","v":0},{"$f":"$D$4*'CC Allocations'!P84","v":0},{"$f":"$D$4*'CC Allocations'!Q84","v":0},{"$f":"$D$4*'CC Allocations'!R84","v":0},{"$f":"$D$4*'CC Allocations'!S84","v":0},{"$f":"$D$4*'CC Allocations'!T84","v":0},{"$f":"$D$4*'CC Allocations'!U84","v":0},{"$f":"$D$4*'CC Allocations'!V84","v":0},{"$f":"$D$4*'CC Allocations'!W84","v":0},{"$f":"$D$4*'CC Allocations'!X84","v":0},{"$f":"$D$4*'CC Allocations'!Y84","v":0},{"$f":"$D$4*'CC Allocations'!Z84","v":0},{"$f":"$D$4*'CC Allocations'!AA84","v":0},{"$f":"$D$4*'CC Allocations'!AB84","v":0},{"$f":"$D$4*'CC Allocations'!AC84","v":0},{"$f":"$D$4*'CC Allocations'!AD84","v":0},{"$f":"$D$4*'CC Allocations'!AE84","v":0},{"$f":"$D$4*'CC Allocations'!AF84","v":0},{"$f":"$D$4*'CC Allocations'!AG84","v":0},{"$f":"$D$4*'CC Allocations'!AH84","v":0},{"$f":"$D$4*'CC Allocations'!AI84","v":0},{"$f":"$D$4*'CC Allocations'!AJ84","v":0},{"$f":"$D$4*'CC Allocations'!AK84","v":0},{"$f":"$D$4*'CC Allocations'!AL84","v":0},{"$f":"$D$4*'CC Allocations'!AM84","v":0},{"$f":"$D$4*'CC Allocations'!AN84","v":0},{"$f":"$D$4*'CC Allocations'!AO84","v":0},{"$f":"$D$4*'CC Allocations'!AP84","v":0},{"$f":"$D$4*'CC Allocations'!AQ84","v":0}]
[null,"365 - Washington State University","365","Washington State University",1668.5616486922056,1668.5616486922056,61,1.0813736137038096E-3,0,0,{"$f":"$D$4*'CC Allocations'!J85","v":0},{"$f":"$D$4*'CC Allocations'!K85","v":0},{"$f":"$D$4*'CC Allocations'!L85","v":0},{"$f":"$D$4*'CC Allocations'!M85","v":0},{"$f":"$D$4*'CC Allocations'!N85","v":0},{"$f":"$D$4*'CC Allocations'!O85","v":0},{"$f":"$D$4*'CC Allocations'!P85","v":0},{"$f":"$D$4*'CC Allocations'!Q85","v":0},{"$f":"$D$4*'CC Allocations'!R85","v":0},{"$f":"$D$4*'CC Allocations'!S85","v":0},{"$f":"$D$4*'CC Allocations'!T85","v":0},{"$f":"$D$4*'CC Allocations'!U85","v":0},{"$f":"$D$4*'CC Allocations'!V85","v":0},{"$f":"$D$4*'CC Allocations'!W85","v":0},{"$f":"$D$4*'CC Allocations'!X85","v":0},{"$f":"$D$4*'CC Allocations'!Y85","v":0},{"$f":"$D$4*'CC Allocations'!Z85","v":0},{"$f":"$D$4*'CC Allocations'!AA85","v":0},{"$f":"$D$4*'CC Allocations'!AB85","v":0},{"$f":"$D$4*'CC Allocations'!AC85","v":0},{"$f":"$D$4*'CC Allocations'!AD85","v":0},{"$f":"$D$4*'CC Allocations'!AE85","v":0},{"$f":"$D$4*'CC Allocations'!AF85","v":0},{"$f":"$D$4*'CC Allocations'!AG85","v":0},{"$f":"$D$4*'CC Allocations'!AH85","v":0},{"$f":"$D$4*'CC Allocations'!AI85","v":0},{"$f":"$D$4*'CC Allocations'!AJ85","v":0},{"$f":"$D$4*'CC Allocations'!AK85","v":0},{"$f":"$D$4*'CC Allocations'!AL85","v":0},{"$f":"$D$4*'CC Allocations'!AM85","v":0},{"$f":"$D$4*'CC Allocations'!AN85","v":0},{"$f":"$D$4*'CC Allocations'!AO85","v":0},{"$f":"$D$4*'CC Allocations'!AP85","v":0},{"$f":"$D$4*'CC Allocations'!AQ85","v":0}]
[null,"370 - Eastern Washington University","370","Eastern Washington University",0,0,0,0,0,0,{"$f":"$D$4*'CC Allocations'!J86","v":0},{"$f":"$D$4*'CC Allocations'!K86","v":0},{"$f":"$D$4*'CC Allocations'!L86","v":0},{"$f":"$D$4*'CC Allocations'!M86","v":0},{"$f":"$D$4*'CC Allocations'!N86","v":0},{"$f":"$D$4*'CC Allocations'!O86","v":0},{"$f":"$D$4*'CC Allocations'!P86","v":0},{"$f":"$D$4*'CC Allocations'!Q86","v":0},{"$f":"$D$4*'CC Allocations'!R86","v":0},{"$f":"$D$4*'CC Allocations'!S86","v":0},{"$f":"$D$4*'CC Allocations'!T86","v":0},{"$f":"$D$4*'CC Allocations'!U86","v":0},{"$f":"$D$4*'CC Allocations'!V86","v":0},{"$f":"$D$4*'CC Allocations'!W86","v":0},{"$f":"$D$4*'CC Allocations'!X86","v":0},{"$f":"$D$4*'CC Allocations'!Y86","v":0},{"$f":"$D$4*'CC Allocations'!Z86","v":0},{"$f":"$D$4*'CC Allocations'!AA86","v":0},{"$f":"$D$4*'CC Allocations'!AB86","v":0},{"$f":"$D$4*'CC Allocations'!AC86","v":0},{"$f":"$D$4*'CC Allocations'!AD86","v":0},{"$f":"$D$4*'CC Allocations'!AE86","v":0},{"$f":"$D$4*'CC Allocations'!AF86","v":0},{"$f":"$D$4*'CC Allocations'!AG86","v":0},{"$f":"$D$4*'CC Allocations'!AH86","v":0},{"$f":"$D$4*'CC Allocations'!AI86","v":0},{"$f":"$D$4*'CC Allocations'!AJ86","v":0},{"$f":"$D$4*'CC Allocations'!AK86","v":0},{"$f":"$D$4*'CC Allocations'!AL86","v":0},{"$f":"$D$4*'CC Allocations'!AM86","v":0},{"$f":"$D$4*'CC Allocations'!AN86","v":0},{"$f":"$D$4*'CC Allocations'!AO86","v":0},{"$f":"$D$4*'CC Allocations'!AP86","v":0},{"$f":"$D$4*'CC Allocations'!AQ86","v":0}]
[null,"375 - Central Washington University","375","Central Washington University",0,0,0,0,0,0,{"$f":"$D$4*'CC Allocations'!J87","v":0},{"$f":"$D$4*'CC Allocations'!K87","v":0},{"$f":"$D$4*'CC Allocations'!L87","v":0},{"$f":"$D$4*'CC Allocations'!M87","v":0},{"$f":"$D$4*'CC Allocations'!N87","v":0},{"$f":"$D$4*'CC Allocations'!O87","v":0},{"$f":"$D$4*'CC Allocations'!P87","v":0},{"$f":"$D$4*'CC Allocations'!Q87","v":0},{"$f":"$D$4*'CC Allocations'!R87","v":0},{"$f":"$D$4*'CC Allocations'!S87","v":0},{"$f":"$D$4*'CC Allocations'!T87","v":0},{"$f":"$D$4*'CC Allocations'!U87","v":0},{"$f":"$D$4*'CC Allocations'!V87","v":0},{"$f":"$D$4*'CC Allocations'!W87","v":0},{"$f":"$D$4*'CC Allocations'!X87","v":0},{"$f":"$D$4*'CC Allocations'!Y87","v":0},{"$f":"$D$4*'CC Allocations'!Z87","v":0},{"$f":"$D$4*'CC Allocations'!AA87","v":0},{"$f":"$D$4*'CC Allocations'!AB87","v":0},{"$f":"$D$4*'CC Allocations'!AC87","v":0},{"$f":"$D$4*'CC Allocations'!AD87","v":0},{"$f":"$D$4*'CC Allocations'!AE87","v":0},{"$f":"$D$4*'CC Allocations'!AF87","v":0},{"$f":"$D$4*'CC Allocations'!AG87","v":0},{"$f":"$D$4*'CC Allocations'!AH87","v":0},{"$f":"$D$4*'CC Allocations'!AI87","v":0},{"$f":"$D$4*'CC Allocations'!AJ87","v":0},{"$f":"$D$4*'CC Allocations'!AK87","v":0},{"$f":"$D$4*'CC Allocations'!AL87","v":0},{"$f":"$D$4*'CC Allocations'!AM87","v":0},{"$f":"$D$4*'CC Allocations'!AN87","v":0},{"$f":"$D$4*'CC Allocations'!AO87","v":0},{"$f":"$D$4*'CC Allocations'!AP87","v":0},{"$f":"$D$4*'CC Allocations'!AQ87","v":0}]
[null,"376 - The Evergreen State College","376","The Evergreen State College",14798.227081024315,14798.227081024315,541,9.5905430330124747E-3,0,0,{"$f":"$D$4*'CC Allocations'!J88","v":0},{"$f":"$D$4*'CC Allocations'!K88","v":0},{"$f":"$D$4*'CC Allocations'!L88","v":0},{"$f":"$D$4*'CC Allocations'!M88","v":0},{"$f":"$D$4*'CC Allocations'!N88","v":0},{"$f":"$D$4*'CC Allocations'!O88","v":0},{"$f":"$D$4*'CC Allocations'!P88","v":0},{"$f":"$D$4*'CC Allocations'!Q88","v":0},{"$f":"$D$4*'CC Allocations'!R88","v":0},{"$f":"$D$4*'CC Allocations'!S88","v":0},{"$f":"$D$4*'CC Allocations'!T88","v":0},{"$f":"$D$4*'CC Allocations'!U88","v":0},{"$f":"$D$4*'CC Allocations'!V88","v":0},{"$f":"$D$4*'CC Allocations'!W88","v":0},{"$f":"$D$4*'CC Allocations'!X88","v":0},{"$f":"$D$4*'CC Allocations'!Y88","v":0},{"$f":"$D$4*'CC Allocations'!Z88","v":0},{"$f":"$D$4*'CC Allocations'!AA88","v":0},{"$f":"$D$4*'CC Allocations'!AB88","v":0},{"$f":"$D$4*'CC Allocations'!AC88","v":0},{"$f":"$D$4*'CC Allocations'!AD88","v":0},{"$f":"$D$4*'CC Allocations'!AE88","v":0},{"$f":"$D$4*'CC Allocations'!AF88","v":0},{"$f":"$D$4*'CC Allocations'!AG88","v":0},{"$f":"$D$4*'CC Allocations'!AH88","v":0},{"$f":"$D$4*'CC Allocations'!AI88","v":0},{"$f":"$D$4*'CC Allocations'!AJ88","v":0},{"$f":"$D$4*'CC Allocations'!AK88","v":0},{"$f":"$D$4*'CC Allocations'!AL88","v":0},{"$f":"$D$4*'CC Allocations'!AM88","v":0},{"$f":"$D$4*'CC Allocations'!AN88","v":0},{"$f":"$D$4*'CC Allocations'!AO88","v":0},{"$f":"$D$4*'CC Allocations'!AP88","v":0},{"$f":"$D$4*'CC Allocations'!AQ88","v":0}]
[null,"380 - Western Washington University","380","Western Washington University",0,0,0,0,0,0,{"$f":"$D$4*'CC Allocations'!J89","v":0},{"$f":"$D$4*'CC Allocations'!K89","v":0},{"$f":"$D$4*'CC Allocations'!L89","v":0},{"$f":"$D$4*'CC Allocations'!M89","v":0},{"$f":"$D$4*'CC Allocations'!N89","v":0},{"$f":"$D$4*'CC Allocations'!O89","v":0},{"$f":"$D$4*'CC Allocations'!P89","v":0},{"$f":"$D$4*'CC Allocations'!Q89","v":0},{"$f":"$D$4*'CC Allocations'!R89","v":0},{"$f":"$D$4*'CC Allocations'!S89","v":0},{"$f":"$D$4*'CC Allocations'!T89","v":0},{"$f":"$D$4*'CC Allocations'!U89","v":0},{"$f":"$D$4*'CC Allocations'!V89","v":0},{"$f":"$D$4*'CC Allocations'!W89","v":0},{"$f":"$D$4*'CC Allocations'!X89","v":0},{"$f":"$D$4*'CC Allocations'!Y89","v":0},{"$f":"$D$4*'CC Allocations'!Z89","v":0},{"$f":"$D$4*'CC Allocations'!AA89","v":0},{"$f":"$D$4*'CC Allocations'!AB89","v":0},{"$f":"$D$4*'CC Allocations'!AC89","v":0},{"$f":"$D$4*'CC Allocations'!AD89","v":0},{"$f":"$D$4*'CC Allocations'!AE89","v":0},{"$f":"$D$4*'CC Allocations'!AF89","v":0},{"$f":"$D$4*'CC Allocations'!AG89","v":0},{"$f":"$D$4*'CC Allocations'!AH89","v":0},{"$f":"$D$4*'CC Allocations'!AI89","v":0},{"$f":"$D$4*'CC Allocations'!AJ89","v":0},{"$f":"$D$4*'CC Allocations'!AK89","v":0},{"$f":"$D$4*'CC Allocations'!AL89","v":0},{"$f":"$D$4*'CC Allocations'!AM89","v":0},{"$f":"$D$4*'CC Allocations'!AN89","v":0},{"$f":"$D$4*'CC Allocations'!AO89","v":0},{"$f":"$D$4*'CC Allocations'!AP89","v":0},{"$f":"$D$4*'CC Allocations'!AQ89","v":0}]
[null,"387 - Washington State Arts Commission","387","Washington State Arts Commission",547.06939301383795,547.06939301383795,20,3.5454872580452775E-4,0,0,{"$f":"$D$4*'CC Allocations'!J90","v":0},{"$f":"$D$4*'CC Allocations'!K90","v":0},{"$f":"$D$4*'CC Allocations'!L90","v":0},{"$f":"$D$4*'CC Allocations'!M90","v":0},{"$f":"$D$4*'CC Allocations'!N90","v":0},{"$f":"$D$4*'CC Allocations'!O90","v":0},{"$f":"$D$4*'CC Allocations'!P90","v":0},{"$f":"$D$4*'CC Allocations'!Q90","v":0},{"$f":"$D$4*'CC Allocations'!R90","v":0},{"$f":"$D$4*'CC Allocations'!S90","v":0},{"$f":"$D$4*'CC Allocations'!T90","v":0},{"$f":"$D$4*'CC Allocations'!U90","v":0},{"$f":"$D$4*'CC Allocations'!V90","v":0},{"$f":"$D$4*'CC Allocations'!W90","v":0},{"$f":"$D$4*'CC Allocations'!X90","v":0},{"$f":"$D$4*'CC Allocations'!Y90","v":0},{"$f":"$D$4*'CC Allocations'!Z90","v":0},{"$f":"$D$4*'CC Allocations'!AA90","v":0},{"$f":"$D$4*'CC Allocations'!AB90","v":0},{"$f":"$D$4*'CC Allocations'!AC90","v":0},{"$f":"$D$4*'CC Allocations'!AD90","v":0},{"$f":"$D$4*'CC Allocations'!AE90","v":0},{"$f":"$D$4*'CC Allocations'!AF90","v":0},{"$f":"$D$4*'CC Allocations'!AG90","v":0},{"$f":"$D$4*'CC Allocations'!AH90","v":0},{"$f":"$D$4*'CC Allocations'!AI90","v":0},{"$f":"$D$4*'CC Allocations'!AJ90","v":0},{"$f":"$D$4*'CC Allocations'!AK90","v":0},{"$f":"$D$4*'CC Allocations'!AL90","v":0},{"$f":"$D$4*'CC Allocations'!AM90","v":0},{"$f":"$D$4*'CC Allocations'!AN90","v":0},{"$f":"$D$4*'CC Allocations'!AO90","v":0},{"$f":"$D$4*'CC Allocations'!AP90","v":0},{"$f":"$D$4*'CC Allocations'!AQ90","v":0}]
[null,"390 - Washington State Historical Society","390","Washington State Historical Society",27.353469650691892,27.353469650691892,1,1.7727436290226384E-5,0,0,{"$f":"$D$4*'CC Allocations'!J91","v":0},{"$f":"$D$4*'CC Allocations'!K91","v":0},{"$f":"$D$4*'CC Allocations'!L91","v":0},{"$f":"$D$4*'CC Allocations'!M91","v":0},{"$f":"$D$4*'CC Allocations'!N91","v":0},{"$f":"$D$4*'CC Allocations'!O91","v":0},{"$f":"$D$4*'CC Allocations'!P91","v":0},{"$f":"$D$4*'CC Allocations'!Q91","v":0},{"$f":"$D$4*'CC Allocations'!R91","v":0},{"$f":"$D$4*'CC Allocations'!S91","v":0},{"$f":"$D$4*'CC Allocations'!T91","v":0},{"$f":"$D$4*'CC Allocations'!U91","v":0},{"$f":"$D$4*'CC Allocations'!V91","v":0},{"$f":"$D$4*'CC Allocations'!W91","v":0},{"$f":"$D$4*'CC Allocations'!X91","v":0},{"$f":"$D$4*'CC Allocations'!Y91","v":0},{"$f":"$D$4*'CC Allocations'!Z91","v":0},{"$f":"$D$4*'CC Allocations'!AA91","v":0},{"$f":"$D$4*'CC Allocations'!AB91","v":0},{"$f":"$D$4*'CC Allocations'!AC91","v":0},{"$f":"$D$4*'CC Allocations'!AD91","v":0},{"$f":"$D$4*'CC Allocations'!AE91","v":0},{"$f":"$D$4*'CC Allocations'!AF91","v":0},{"$f":"$D$4*'CC Allocations'!AG91","v":0},{"$f":"$D$4*'CC Allocations'!AH91","v":0},{"$f":"$D$4*'CC Allocations'!AI91","v":0},{"$f":"$D$4*'CC Allocations'!AJ91","v":0},{"$f":"$D$4*'CC Allocations'!AK91","v":0},{"$f":"$D$4*'CC Allocations'!AL91","v":0},{"$f":"$D$4*'CC Allocations'!AM91","v":0},{"$f":"$D$4*'CC Allocations'!AN91","v":0},{"$f":"$D$4*'CC Allocations'!AO91","v":0},{"$f":"$D$4*'CC Allocations'!AP91","v":0},{"$f":"$D$4*'CC Allocations'!AQ91","v":0}]
[null,"395 - Eastern Washington State Historical Society","395","Eastern Washington State Historical Society",0,0,0,0,0,0,{"$f":"$D$4*'CC Allocations'!J92","v":0},{"$f":"$D$4*'CC Allocations'!K92","v":0},{"$f":"$D$4*'CC Allocations'!L92","v":0},{"$f":"$D$4*'CC Allocations'!M92","v":0},{"$f":"$D$4*'CC Allocations'!N92","v":0},{"$f":"$D$4*'CC Allocations'!O92","v":0},{"$f":"$D$4*'CC Allocations'!P92","v":0},{"$f":"$D$4*'CC Allocations'!Q92","v":0},{"$f":"$D$4*'CC Allocations'!R92","v":0},{"$f":"$D$4*'CC Allocations'!S92","v":0},{"$f":"$D$4*'CC Allocations'!T92","v":0},{"$f":"$D$4*'CC Allocations'!U92","v":0},{"$f":"$D$4*'CC Allocations'!V92","v":0},{"$f":"$D$4*'CC Allocations'!W92","v":0},{"$f":"$D$4*'CC Allocations'!X92","v":0},{"$f":"$D$4*'CC Allocations'!Y92","v":0},{"$f":"$D$4*'CC Allocations'!Z92","v":0},{"$f":"$D$4*'CC Allocations'!AA92","v":0},{"$f":"$D$4*'CC Allocations'!AB92","v":0},{"$f":"$D$4*'CC Allocations'!AC92","v":0},{"$f":"$D$4*'CC Allocations'!AD92","v":0},{"$f":"$D$4*'CC Allocations'!AE92","v":0},{"$f":"$D$4*'CC Allocations'!AF92","v":0},{"$f":"$D$4*'CC Allocations'!AG92","v":0},{"$f":"$D$4*'CC Allocations'!AH92","v":0},{"$f":"$D$4*'CC Allocations'!AI92","v":0},{"$f":"$D$4*'CC Allocations'!AJ92","v":0},{"$f":"$D$4*'CC Allocations'!AK92","v":0},{"$f":"$D$4*'CC Allocations'!AL92","v":0},{"$f":"$D$4*'CC Allocations'!AM92","v":0},{"$f":"$D$4*'CC Allocations'!AN92","v":0},{"$f":"$D$4*'CC Allocations'!AO92","v":0},{"$f":"$D$4*'CC Allocations'!AP92","v":0},{"$f":"$D$4*'CC Allocations'!AQ92","v":0}]
[null,"405 - Department of Transportation","405","Department of Transportation",112118.25446163546,41987.575913812056,1535,2.7211614705497499E-2,7.3376091838482536E-3,4.5450802103836153E-2,{"$f":"$D$4*'CC Allocations'!J93","v":0},{"$f":"$D$4*'CC Allocations'!K93","v":0},{"$f":"$D$4*'CC Allocations'!L93","v":0},{"$f":"$D$4*'CC Allocations'!M93","v":0},{"$f":"$D$4*'CC Allocations'!N93","v":0},{"$f":"$D$4*'CC Allocations'!O93","v":0},{"$f":"$D$4*'CC Allocations'!P93","v":0},{"$f":"$D$4*'CC Allocations'!Q93","v":0},{"$f":"$D$4*'CC Allocations'!R93","v":0},{"$f":"$D$4*'CC Allocations'!S93","v":70130.678547823409},{"$f":"$D$4*'CC Allocations'!T93","v":0},{"$f":"$D$4*'CC Allocations'!U93","v":0},{"$f":"$D$4*'CC Allocations'!V93","v":0},{"$f":"$D$4*'CC Allocations'!W93","v":0},{"$f":"$D$4*'CC Allocations'!X93","v":0},{"$f":"$D$4*'CC Allocations'!Y93","v":0},{"$f":"$D$4*'CC Allocations'!Z93","v":0},{"$f":"$D$4*'CC Allocations'!AA93","v":0},{"$f":"$D$4*'CC Allocations'!AB93","v":0},{"$f":"$D$4*'CC Allocations'!AC93","v":0},{"$f":"$D$4*'CC Allocations'!AD93","v":0},{"$f":"$D$4*'CC Allocations'!AE93","v":0},{"$f":"$D$4*'CC Allocations'!AF93","v":0},{"$f":"$D$4*'CC Allocations'!AG93","v":0},{"$f":"$D$4*'CC Allocations'!AH93","v":0},{"$f":"$D$4*'CC Allocations'!AI93","v":0},{"$f":"$D$4*'CC Allocations'!AJ93","v":0},{"$f":"$D$4*'CC Allocations'!AK93","v":0},{"$f":"$D$4*'CC Allocations'!AL93","v":0},{"$f":"$D$4*'CC Allocations'!AM93","v":0},{"$f":"$D$4*'CC Allocations'!AN93","v":0},{"$f":"$D$4*'CC Allocations'!AO93","v":0},{"$f":"$D$4*'CC Allocations'!AP93","v":0},{"$f":"$D$4*'CC Allocations'!AQ93","v":0}]
[null,"406 - County Road Administration Board","406","County Road Administration Board",437.65551441107027,437.65551441107027,16,2.8363898064362214E-4,0,0,{"$f":"$D$4*'CC Allocations'!J94","v":0},{"$f":"$D$4*'CC Allocations'!K94","v":0},{"$f":"$D$4*'CC Allocations'!L94","v":0},{"$f":"$D$4*'CC Allocations'!M94","v":0},{"$f":"$D$4*'CC Allocations'!N94","v":0},{"$f":"$D$4*'CC Allocations'!O94","v":0},{"$f":"$D$4*'CC Allocations'!P94","v":0},{"$f":"$D$4*'CC Allocations'!Q94","v":0},{"$f":"$D$4*'CC Allocations'!R94","v":0},{"$f":"$D$4*'CC Allocations'!S94","v":0},{"$f":"$D$4*'CC Allocations'!T94","v":0},{"$f":"$D$4*'CC Allocations'!U94","v":0},{"$f":"$D$4*'CC Allocations'!V94","v":0},{"$f":"$D$4*'CC Allocations'!W94","v":0},{"$f":"$D$4*'CC Allocations'!X94","v":0},{"$f":"$D$4*'CC Allocations'!Y94","v":0},{"$f":"$D$4*'CC Allocations'!Z94","v":0},{"$f":"$D$4*'CC Allocations'!AA94","v":0},{"$f":"$D$4*'CC Allocations'!AB94","v":0},{"$f":"$D$4*'CC Allocations'!AC94","v":0},{"$f":"$D$4*'CC Allocations'!AD94","v":0},{"$f":"$D$4*'CC Allocations'!AE94","v":0},{"$f":"$D$4*'CC Allocations'!AF94","v":0},{"$f":"$D$4*'CC Allocations'!AG94","v":0},{"$f":"$D$4*'CC Allocations'!AH94","v":0},{"$f":"$D$4*'CC Allocations'!AI94","v":0},{"$f":"$D$4*'CC Allocations'!AJ94","v":0},{"$f":"$D$4*'CC Allocations'!AK94","v":0},{"$f":"$D$4*'CC Allocations'!AL94","v":0},{"$f":"$D$4*'CC Allocations'!AM94","v":0},{"$f":"$D$4*'CC Allocations'!AN94","v":0},{"$f":"$D$4*'CC Allocations'!AO94","v":0},{"$f":"$D$4*'CC Allocations'!AP94","v":0},{"$f":"$D$4*'CC Allocations'!AQ94","v":0}]
[null,"407 - Transportation Improvement Board","407","Transportation Improvement Board",300.88816615761084,300.88816615761084,11,1.9500179919249025E-4,0,0,{"$f":"$D$4*'CC Allocations'!J95","v":0},{"$f":"$D$4*'CC Allocations'!K95","v":0},{"$f":"$D$4*'CC Allocations'!L95","v":0},{"$f":"$D$4*'CC Allocations'!M95","v":0},{"$f":"$D$4*'CC Allocations'!N95","v":0},{"$f":"$D$4*'CC Allocations'!O95","v":0},{"$f":"$D$4*'CC Allocations'!P95","v":0},{"$f":"$D$4*'CC Allocations'!Q95","v":0},{"$f":"$D$4*'CC Allocations'!R95","v":0},{"$f":"$D$4*'CC Allocations'!S95","v":0},{"$f":"$D$4*'CC Allocations'!T95","v":0},{"$f":"$D$4*'CC Allocations'!U95","v":0},{"$f":"$D$4*'CC Allocations'!V95","v":0},{"$f":"$D$4*'CC Allocations'!W95","v":0},{"$f":"$D$4*'CC Allocations'!X95","v":0},{"$f":"$D$4*'CC Allocations'!Y95","v":0},{"$f":"$D$4*'CC Allocations'!Z95","v":0},{"$f":"$D$4*'CC Allocations'!AA95","v":0},{"$f":"$D$4*'CC Allocations'!AB95","v":0},{"$f":"$D$4*'CC Allocations'!AC95","v":0},{"$f":"$D$4*'CC Allocations'!AD95","v":0},{"$f":"$D$4*'CC Allocations'!AE95","v":0},{"$f":"$D$4*'CC Allocations'!AF95","v":0},{"$f":"$D$4*'CC Allocations'!AG95","v":0},{"$f":"$D$4*'CC Allocations'!AH95","v":0},{"$f":"$D$4*'CC Allocations'!AI95","v":0},{"$f":"$D$4*'CC Allocations'!AJ95","v":0},{"$f":"$D$4*'CC Allocations'!AK95","v":0},{"$f":"$D$4*'CC Allocations'!AL95","v":0},{"$f":"$D$4*'CC Allocations'!AM95","v":0},{"$f":"$D$4*'CC Allocations'!AN95","v":0},{"$f":"$D$4*'CC Allocations'!AO95","v":0},{"$f":"$D$4*'CC Allocations'!AP95","v":0},{"$f":"$D$4*'CC Allocations'!AQ95","v":0}]
[null,"410 - Transportation Commission","410","Transportation Commission",164.12081790415135,164.12081790415135,6,1.0636461774135831E-4,0,0,{"$f":"$D$4*'CC Allocations'!J96","v":0},{"$f":"$D$4*'CC Allocations'!K96","v":0},{"$f":"$D$4*'CC Allocations'!L96","v":0},{"$f":"$D$4*'CC Allocations'!M96","v":0},{"$f":"$D$4*'CC Allocations'!N96","v":0},{"$f":"$D$4*'CC Allocations'!O96","v":0},{"$f":"$D$4*'CC Allocations'!P96","v":0},{"$f":"$D$4*'CC Allocations'!Q96","v":0},{"$f":"$D$4*'CC Allocations'!R96","v":0},{"$f":"$D$4*'CC Allocations'!S96","v":0},{"$f":"$D$4*'CC Allocations'!T96","v":0},{"$f":"$D$4*'CC Allocations'!U96","v":0},{"$f":"$D$4*'CC Allocations'!V96","v":0},{"$f":"$D$4*'CC Allocations'!W96","v":0},{"$f":"$D$4*'CC Allocations'!X96","v":0},{"$f":"$D$4*'CC Allocations'!Y96","v":0},{"$f":"$D$4*'CC Allocations'!Z96","v":0},{"$f":"$D$4*'CC Allocations'!AA96","v":0},{"$f":"$D$4*'CC Allocations'!AB96","v":0},{"$f":"$D$4*'CC Allocations'!AC96","v":0},{"$f":"$D$4*'CC Allocations'!AD96","v":0},{"$f":"$D$4*'CC Allocations'!AE96","v":0},{"$f":"$D$4*'CC Allocations'!AF96","v":0},{"$f":"$D$4*'CC Allocations'!AG96","v":0},{"$f":"$D$4*'CC Allocations'!AH96","v":0},{"$f":"$D$4*'CC Allocations'!AI96","v":0},{"$f":"$D$4*'CC Allocations'!AJ96","v":0},{"$f":"$D$4*'CC Allocations'!AK96","v":0},{"$f":"$D$4*'CC Allocations'!AL96","v":0},{"$f":"$D$4*'CC Allocations'!AM96","v":0},{"$f":"$D$4*'CC Allocations'!AN96","v":0},{"$f":"$D$4*'CC Allocations'!AO96","v":0},{"$f":"$D$4*'CC Allocations'!AP96","v":0},{"$f":"$D$4*'CC Allocations'!AQ96","v":0}]
[null,"411 - Freight Mobility Strategic Investment Board","411","Freight Mobility Strategic Investment Board",54.706939301383784,54.706939301383784,2,3.5454872580452768E-5,0,0,{"$f":"$D$4*'CC Allocations'!J97","v":0},{"$f":"$D$4*'CC Allocations'!K97","v":0},{"$f":"$D$4*'CC Allocations'!L97","v":0},{"$f":"$D$4*'CC Allocations'!M97","v":0},{"$f":"$D$4*'CC Allocations'!N97","v":0},{"$f":"$D$4*'CC Allocations'!O97","v":0},{"$f":"$D$4*'CC Allocations'!P97","v":0},{"$f":"$D$4*'CC Allocations'!Q97","v":0},{"$f":"$D$4*'CC Allocations'!R97","v":0},{"$f":"$D$4*'CC Allocations'!S97","v":0},{"$f":"$D$4*'CC Allocations'!T97","v":0},{"$f":"$D$4*'CC Allocations'!U97","v":0},{"$f":"$D$4*'CC Allocations'!V97","v":0},{"$f":"$D$4*'CC Allocations'!W97","v":0},{"$f":"$D$4*'CC Allocations'!X97","v":0},{"$f":"$D$4*'CC Allocations'!Y97","v":0},{"$f":"$D$4*'CC Allocations'!Z97","v":0},{"$f":"$D$4*'CC Allocations'!AA97","v":0},{"$f":"$D$4*'CC Allocations'!AB97","v":0},{"$f":"$D$4*'CC Allocations'!AC97","v":0},{"$f":"$D$4*'CC Allocations'!AD97","v":0},{"$f":"$D$4*'CC Allocations'!AE97","v":0},{"$f":"$D$4*'CC Allocations'!AF97","v":0},{"$f":"$D$4*'CC Allocations'!AG97","v":0},{"$f":"$D$4*'CC Allocations'!AH97","v":0},{"$f":"$D$4*'CC Allocations'!AI97","v":0},{"$f":"$D$4*'CC Allocations'!AJ97","v":0},{"$f":"$D$4*'CC Allocations'!AK97","v":0},{"$f":"$D$4*'CC Allocations'!AL97","v":0},{"$f":"$D$4*'CC Allocations'!AM97","v":0},{"$f":"$D$4*'CC Allocations'!AN97","v":0},{"$f":"$D$4*'CC Allocations'!AO97","v":0},{"$f":"$D$4*'CC Allocations'!AP97","v":0},{"$f":"$D$4*'CC Allocations'!AQ97","v":0}]
[null,"460 - Columbia River Gorge Commission","460","Columbia River Gorge Commission",0,0,0,0,0,0,{"$f":"$D$4*'CC Allocations'!J98","v":0},{"$f":"$D$4*'CC Allocations'!K98","v":0},{"$f":"$D$4*'CC Allocations'!L98","v":0},{"$f":"$D$4*'CC Allocations'!M98","v":0},{"$f":"$D$4*'CC Allocations'!N98","v":0},{"$f":"$D$4*'CC Allocations'!O98","v":0},{"$f":"$D$4*'CC Allocations'!P98","v":0},{"$f":"$D$4*'CC Allocations'!Q98","v":0},{"$f":"$D$4*'CC Allocations'!R98","v":0},{"$f":"$D$4*'CC Allocations'!S98","v":0},{"$f":"$D$4*'CC Allocations'!T98","v":0},{"$f":"$D$4*'CC Allocations'!U98","v":0},{"$f":"$D$4*'CC Allocations'!V98","v":0},{"$f":"$D$4*'CC Allocations'!W98","v":0},{"$f":"$D$4*'CC Allocations'!X98","v":0},{"$f":"$D$4*'CC Allocations'!Y98","v":0},{"$f":"$D$4*'CC Allocations'!Z98","v":0},{"$f":"$D$4*'CC Allocations'!AA98","v":0},{"$f":"$D$4*'CC Allocations'!AB98","v":0},{"$f":"$D$4*'CC Allocations'!AC98","v":0},{"$f":"$D$4*'CC Allocations'!AD98","v":0},{"$f":"$D$4*'CC Allocations'!AE98","v":0},{"$f":"$D$4*'CC Allocations'!AF98","v":0},{"$f":"$D$4*'CC Allocations'!AG98","v":0},{"$f":"$D$4*'CC Allocations'!AH98","v":0},{"$f":"$D$4*'CC Allocations'!AI98","v":0},{"$f":"$D$4*'CC Allocations'!AJ98","v":0},{"$f":"$D$4*'CC Allocations'!AK98","v":0},{"$f":"$D$4*'CC Allocations'!AL98","v":0},{"$f":"$D$4*'CC Allocations'!AM98","v":0},{"$f":"$D$4*'CC Allocations'!AN98","v":0},{"$f":"$D$4*'CC Allocations'!AO98","v":0},{"$f":"$D$4*'CC Allocations'!AP98","v":0},{"$f":"$D$4*'CC Allocations'!AQ98","v":0}]
[null,"461 - Department of Ecology","461","Department of Ecology",26614.925970123211,26614.925970123211,973,1.7248795510390273E-2,0,0,{"$f":"$D$4*'CC Allocations'!J99","v":0},{"$f":"$D$4*'CC Allocations'!K99","v":0},{"$f":"$D$4*'CC Allocations'!L99","v":0},{"$f":"$D$4*'CC Allocations'!M99","v":0},{"$f":"$D$4*'CC Allocations'!N99","v":0},{"$f":"$D$4*'CC Allocations'!O99","v":0},{"$f":"$D$4*'CC Allocations'!P99","v":0},{"$f":"$D$4*'CC Allocations'!Q99","v":0},{"$f":"$D$4*'CC Allocations'!R99","v":0},{"$f":"$D$4*'CC Allocations'!S99","v":0},{"$f":"$D$4*'CC Allocations'!T99","v":0},{"$f":"$D$4*'CC Allocations'!U99","v":0},{"$f":"$D$4*'CC Allocations'!V99","v":0},{"$f":"$D$4*'CC Allocations'!W99","v":0},{"$f":"$D$4*'CC Allocations'!X99","v":0},{"$f":"$D$4*'CC Allocations'!Y99","v":0},{"$f":"$D$4*'CC Allocations'!Z99","v":0},{"$f":"$D$4*'CC Allocations'!AA99","v":0},{"$f":"$D$4*'CC Allocations'!AB99","v":0},{"$f":"$D$4*'CC Allocations'!AC99","v":0},{"$f":"$D$4*'CC Allocations'!AD99","v":0},{"$f":"$D$4*'CC Allocations'!AE99","v":0},{"$f":"$D$4*'CC Allocations'!AF99","v":0},{"$f":"$D$4*'CC Allocations'!AG99","v":0},{"$f":"$D$4*'CC Allocations'!AH99","v":0},{"$f":"$D$4*'CC Allocations'!AI99","v":0},{"$f":"$D$4*'CC Allocations'!AJ99","v":0},{"$f":"$D$4*'CC Allocations'!AK99","v":0},{"$f":"$D$4*'CC Allocations'!AL99","v":0},{"$f":"$D$4*'CC Allocations'!AM99","v":0},{"$f":"$D$4*'CC Allocations'!AN99","v":0},{"$f":"$D$4*'CC Allocations'!AO99","v":0},{"$f":"$D$4*'CC Allocations'!AP99","v":0},{"$f":"$D$4*'CC Allocations'!AQ99","v":0}]
[null,"462 - Pollution Liability Insurance Program","462","Pollution Liability Insurance Program",492.362453712454,492.362453712454,18,3.1909385322407489E-4,0,0,{"$f":"$D$4*'CC Allocations'!J100","v":0},{"$f":"$D$4*'CC Allocations'!K100","v":0},{"$f":"$D$4*'CC Allocations'!L100","v":0},{"$f":"$D$4*'CC Allocations'!M100","v":0},{"$f":"$D$4*'CC Allocations'!N100","v":0},{"$f":"$D$4*'CC Allocations'!O100","v":0},{"$f":"$D$4*'CC Allocations'!P100","v":0},{"$f":"$D$4*'CC Allocations'!Q100","v":0},{"$f":"$D$4*'CC Allocations'!R100","v":0},{"$f":"$D$4*'CC Allocations'!S100","v":0},{"$f":"$D$4*'CC Allocations'!T100","v":0},{"$f":"$D$4*'CC Allocations'!U100","v":0},{"$f":"$D$4*'CC Allocations'!V100","v":0},{"$f":"$D$4*'CC Allocations'!W100","v":0},{"$f":"$D$4*'CC Allocations'!X100","v":0},{"$f":"$D$4*'CC Allocations'!Y100","v":0},{"$f":"$D$4*'CC Allocations'!Z100","v":0},{"$f":"$D$4*'CC Allocations'!AA100","v":0},{"$f":"$D$4*'CC Allocations'!AB100","v":0},{"$f":"$D$4*'CC Allocations'!AC100","v":0},{"$f":"$D$4*'CC Allocations'!AD100","v":0},{"$f":"$D$4*'CC Allocations'!AE100","v":0},{"$f":"$D$4*'CC Allocations'!AF100","v":0},{"$f":"$D$4*'CC Allocations'!AG100","v":0},{"$f":"$D$4*'CC Allocations'!AH100","v":0},{"$f":"$D$4*'CC Allocations'!AI100","v":0},{"$f":"$D$4*'CC Allocations'!AJ100","v":0},{"$f":"$D$4*'CC Allocations'!AK100","v":0},{"$f":"$D$4*'CC Allocations'!AL100","v":0},{"$f":"$D$4*'CC Allocations'!AM100","v":0},{"$f":"$D$4*'CC Allocations'!AN100","v":0},{"$f":"$D$4*'CC Allocations'!AO100","v":0},{"$f":"$D$4*'CC Allocations'!AP100","v":0},{"$f":"$D$4*'CC Allocations'!AQ100","v":0}]
[null,"465 - State Parks and Recreation Commission","465","State Parks and Recreation Commission",5087.7453550286918,5087.7453550286918,186,3.2973031499821076E-3,0,0,{"$f":"$D$4*'CC Allocations'!J101","v":0},{"$f":"$D$4*'CC Allocations'!K101","v":0},{"$f":"$D$4*'CC Allocations'!L101","v":0},{"$f":"$D$4*'CC Allocations'!M101","v":0},{"$f":"$D$4*'CC Allocations'!N101","v":0},{"$f":"$D$4*'CC Allocations'!O101","v":0},{"$f":"$D$4*'CC Allocations'!P101","v":0},{"$f":"$D$4*'CC Allocations'!Q101","v":0},{"$f":"$D$4*'CC Allocations'!R101","v":0},{"$f":"$D$4*'CC Allocations'!S101","v":0},{"$f":"$D$4*'CC Allocations'!T101","v":0},{"$f":"$D$4*'CC Allocations'!U101","v":0},{"$f":"$D$4*'CC Allocations'!V101","v":0},{"$f":"$D$4*'CC Allocations'!W101","v":0},{"$f":"$D$4*'CC Allocations'!X101","v":0},{"$f":"$D$4*'CC Allocations'!Y101","v":0},{"$f":"$D$4*'CC Allocations'!Z101","v":0},{"$f":"$D$4*'CC Allocations'!AA101","v":0},{"$f":"$D$4*'CC Allocations'!AB101","v":0},{"$f":"$D$4*'CC Allocations'!AC101","v":0},{"$f":"$D$4*'CC Allocations'!AD101","v":0},{"$f":"$D$4*'CC Allocations'!AE101","v":0},{"$f":"$D$4*'CC Allocations'!AF101","v":0},{"$f":"$D$4*'CC Allocations'!AG101","v":0},{"$f":"$D$4*'CC Allocations'!AH101","v":0},{"$f":"$D$4*'CC Allocations'!AI101","v":0},{"$f":"$D$4*'CC Allocations'!AJ101","v":0},{"$f":"$D$4*'CC Allocations'!AK101","v":0},{"$f":"$D$4*'CC Allocations'!AL101","v":0},{"$f":"$D$4*'CC Allocations'!AM101","v":0},{"$f":"$D$4*'CC Allocations'!AN101","v":0},{"$f":"$D$4*'CC Allocations'!AO101","v":0},{"$f":"$D$4*'CC Allocations'!AP101","v":0},{"$f":"$D$4*'CC Allocations'!AQ101","v":0}]
[null,"467 - Recreation and Conservation Funding Board","467","Recreation and Conservation Funding Board",6202.3873226808291,1668.5616486922056,61,1.0813736137038096E-3,4.7195062157510915E-4,2.9383148395067688E-3,{"$f":"$D$4*'CC Allocations'!J102","v":0},{"$f":"$D$4*'CC Allocations'!K102","v":0},{"$f":"$D$4*'CC Allocations'!L102","v":0},{"$f":"$D$4*'CC Allocations'!M102","v":0},{"$f":"$D$4*'CC Allocations'!N102","v":0},{"$f":"$D$4*'CC Allocations'!O102","v":0},{"$f":"$D$4*'CC Allocations'!P102","v":0},{"$f":"$D$4*'CC Allocations'!Q102","v":4533.8256739886237},{"$f":"$D$4*'CC Allocations'!R102","v":0},{"$f":"$D$4*'CC Allocations'!S102","v":0},{"$f":"$D$4*'CC Allocations'!T102","v":0},{"$f":"$D$4*'CC Allocations'!U102","v":0},{"$f":"$D$4*'CC Allocations'!V102","v":0},{"$f":"$D$4*'CC Allocations'!W102","v":0},{"$f":"$D$4*'CC Allocations'!X102","v":0},{"$f":"$D$4*'CC Allocations'!Y102","v":0},{"$f":"$D$4*'CC Allocations'!Z102","v":0},{"$f":"$D$4*'CC Allocations'!AA102","v":0},{"$f":"$D$4*'CC Allocations'!AB102","v":0},{"$f":"$D$4*'CC Allocations'!AC102","v":0},{"$f":"$D$4*'CC Allocations'!AD102","v":0},{"$f":"$D$4*'CC Allocations'!AE102","v":0},{"$f":"$D$4*'CC Allocations'!AF102","v":0},{"$f":"$D$4*'CC Allocations'!AG102","v":0},{"$f":"$D$4*'CC Allocations'!AH102","v":0},{"$f":"$D$4*'CC Allocations'!AI102","v":0},{"$f":"$D$4*'CC Allocations'!AJ102","v":0},{"$f":"$D$4*'CC Allocations'!AK102","v":0},{"$f":"$D$4*'CC Allocations'!AL102","v":0},{"$f":"$D$4*'CC Allocations'!AM102","v":0},{"$f":"$D$4*'CC Allocations'!AN102","v":0},{"$f":"$D$4*'CC Allocations'!AO102","v":0},{"$f":"$D$4*'CC Allocations'!AP102","v":0},{"$f":"$D$4*'CC Allocations'!AQ102","v":0}]
[null,"468 - Environmental and Land Use Hearings Office","468","Environmental and Land Use Hearings Office",273.53469650691898,273.53469650691898,10,1.7727436290226387E-4,0,0,{"$f":"$D$4*'CC Allocations'!J103","v":0},{"$f":"$D$4*'CC Allocations'!K103","v":0},{"$f":"$D$4*'CC Allocations'!L103","v":0},{"$f":"$D$4*'CC Allocations'!M103","v":0},{"$f":"$D$4*'CC Allocations'!N103","v":0},{"$f":"$D$4*'CC Allocations'!O103","v":0},{"$f":"$D$4*'CC Allocations'!P103","v":0},{"$f":"$D$4*'CC Allocations'!Q103","v":0},{"$f":"$D$4*'CC Allocations'!R103","v":0},{"$f":"$D$4*'CC Allocations'!S103","v":0},{"$f":"$D$4*'CC Allocations'!T103","v":0},{"$f":"$D$4*'CC Allocations'!U103","v":0},{"$f":"$D$4*'CC Allocations'!V103","v":0},{"$f":"$D$4*'CC Allocations'!W103","v":0},{"$f":"$D$4*'CC Allocations'!X103","v":0},{"$f":"$D$4*'CC Allocations'!Y103","v":0},{"$f":"$D$4*'CC Allocations'!Z103","v":0},{"$f":"$D$4*'CC Allocations'!AA103","v":0},{"$f":"$D$4*'CC Allocations'!AB103","v":0},{"$f":"$D$4*'CC Allocations'!AC103","v":0},{"$f":"$D$4*'CC Allocations'!AD103","v":0},{"$f":"$D$4*'CC Allocations'!AE103","v":0},{"$f":"$D$4*'CC Allocations'!AF103","v":0},{"$f":"$D$4*'CC Allocations'!AG103","v":0},{"$f":"$D$4*'CC Allocations'!AH103","v":0},{"$f":"$D$4*'CC Allocations'!AI103","v":0},{"$f":"$D$4*'CC Allocations'!AJ103","v":0},{"$f":"$D$4*'CC Allocations'!AK103","v":0},{"$f":"$D$4*'CC Allocations'!AL103","v":0},{"$f":"$D$4*'CC Allocations'!AM103","v":0},{"$f":"$D$4*'CC Allocations'!AN103","v":0},{"$f":"$D$4*'CC Allocations'!AO103","v":0},{"$f":"$D$4*'CC Allocations'!AP103","v":0},{"$f":"$D$4*'CC Allocations'!AQ103","v":0}]
[null,"471 - State Conservation Commission","471","State Conservation Commission",437.65551441107027,437.65551441107027,16,2.8363898064362214E-4,0,0,{"$f":"$D$4*'CC Allocations'!J104","v":0},{"$f":"$D$4*'CC Allocations'!K104","v":0},{"$f":"$D$4*'CC Allocations'!L104","v":0},{"$f":"$D$4*'CC Allocations'!M104","v":0},{"$f":"$D$4*'CC Allocations'!N104","v":0},{"$f":"$D$4*'CC Allocations'!O104","v":0},{"$f":"$D$4*'CC Allocations'!P104","v":0},{"$f":"$D$4*'CC Allocations'!Q104","v":0},{"$f":"$D$4*'CC Allocations'!R104","v":0},{"$f":"$D$4*'CC Allocations'!S104","v":0},{"$f":"$D$4*'CC Allocations'!T104","v":0},{"$f":"$D$4*'CC Allocations'!U104","v":0},{"$f":"$D$4*'CC Allocations'!V104","v":0},{"$f":"$D$4*'CC Allocations'!W104","v":0},{"$f":"$D$4*'CC Allocations'!X104","v":0},{"$f":"$D$4*'CC Allocations'!Y104","v":0},{"$f":"$D$4*'CC Allocations'!Z104","v":0},{"$f":"$D$4*'CC Allocations'!AA104","v":0},{"$f":"$D$4*'CC Allocations'!AB104","v":0},{"$f":"$D$4*'CC Allocations'!AC104","v":0},{"$f":"$D$4*'CC Allocations'!AD104","v":0},{"$f":"$D$4*'CC Allocations'!AE104","v":0},{"$f":"$D$4*'CC Allocations'!AF104","v":0},{"$f":"$D$4*'CC Allocations'!AG104","v":0},{"$f":"$D$4*'CC Allocations'!AH104","v":0},{"$f":"$D$4*'CC Allocations'!AI104","v":0},{"$f":"$D$4*'CC Allocations'!AJ104","v":0},{"$f":"$D$4*'CC Allocations'!AK104","v":0},{"$f":"$D$4*'CC Allocations'!AL104","v":0},{"$f":"$D$4*'CC Allocations'!AM104","v":0},{"$f":"$D$4*'CC Allocations'!AN104","v":0},{"$f":"$D$4*'CC Allocations'!AO104","v":0},{"$f":"$D$4*'CC Allocations'!AP104","v":0},{"$f":"$D$4*'CC Allocations'!AQ104","v":0}]
[null,"477 - Department of Fish and Wildlife","477","Department of Fish and Wildlife",74645.226501931829,20651.86958627238,755,1.3384214399120922E-2,5.6204627591810935E-3,3.4992408898795617E-2,{"$f":"$D$4*'CC Allocations'!J105","v":0},{"$f":"$D$4*'CC Allocations'!K105","v":0},{"$f":"$D$4*'CC Allocations'!L105","v":0},{"$f":"$D$4*'CC Allocations'!M105","v":0},{"$f":"$D$4*'CC Allocations'!N105","v":0},{"$f":"$D$4*'CC Allocations'!O105","v":0},{"$f":"$D$4*'CC Allocations'!P105","v":0},{"$f":"$D$4*'CC Allocations'!Q105","v":53993.356915659446},{"$f":"$D$4*'CC Allocations'!R105","v":0},{"$f":"$D$4*'CC Allocations'!S105","v":0},{"$f":"$D$4*'CC Allocations'!T105","v":0},{"$f":"$D$4*'CC Allocations'!U105","v":0},{"$f":"$D$4*'CC Allocations'!V105","v":0},{"$f":"$D$4*'CC Allocations'!W105","v":0},{"$f":"$D$4*'CC Allocations'!X105","v":0},{"$f":"$D$4*'CC Allocations'!Y105","v":0},{"$f":"$D$4*'CC Allocations'!Z105","v":0},{"$f":"$D$4*'CC Allocations'!AA105","v":0},{"$f":"$D$4*'CC Allocations'!AB105","v":0},{"$f":"$D$4*'CC Allocations'!AC105","v":0},{"$f":"$D$4*'CC Allocations'!AD105","v":0},{"$f":"$D$4*'CC Allocations'!AE105","v":0},{"$f":"$D$4*'CC Allocations'!AF105","v":0},{"$f":"$D$4*'CC Allocations'!AG105","v":0},{"$f":"$D$4*'CC Allocations'!AH105","v":0},{"$f":"$D$4*'CC Allocations'!AI105","v":0},{"$f":"$D$4*'CC Allocations'!AJ105","v":0},{"$f":"$D$4*'CC Allocations'!AK105","v":0},{"$f":"$D$4*'CC Allocations'!AL105","v":0},{"$f":"$D$4*'CC Allocations'!AM105","v":0},{"$f":"$D$4*'CC Allocations'!AN105","v":0},{"$f":"$D$4*'CC Allocations'!AO105","v":0},{"$f":"$D$4*'CC Allocations'!AP105","v":0},{"$f":"$D$4*'CC Allocations'!AQ105","v":0}]
[null,"478 - Puget Sound Partnership","478","Puget Sound Partnership",505.30349240018955,54.706939301383784,2,3.5454872580452768E-5,0,2.9202590346532649E-4,{"$f":"$D$4*'CC Allocations'!J106","v":0},{"$f":"$D$4*'CC Allocations'!K106","v":0},{"$f":"$D$4*'CC Allocations'!L106","v":0},{"$f":"$D$4*'CC Allocations'!M106","v":0},{"$f":"$D$4*'CC Allocations'!N106","v":0},{"$f":"$D$4*'CC Allocations'!O106","v":0},{"$f":"$D$4*'CC Allocations'!P106","v":0},{"$f":"$D$4*'CC Allocations'!Q106","v":0},{"$f":"$D$4*'CC Allocations'!R106","v":0},{"$f":"$D$4*'CC Allocations'!S106","v":0},{"$f":"$D$4*'CC Allocations'!T106","v":0},{"$f":"$D$4*'CC Allocations'!U106","v":0},{"$f":"$D$4*'CC Allocations'!V106","v":0},{"$f":"$D$4*'CC Allocations'!W106","v":0},{"$f":"$D$4*'CC Allocations'!X106","v":0},{"$f":"$D$4*'CC Allocations'!Y106","v":0},{"$f":"$D$4*'CC Allocations'!Z106","v":0},{"$f":"$D$4*'CC Allocations'!AA106","v":0},{"$f":"$D$4*'CC Allocations'!AB106","v":0},{"$f":"$D$4*'CC Allocations'!AC106","v":450.59655309880577},{"$f":"$D$4*'CC Allocations'!AD106","v":0},{"$f":"$D$4*'CC Allocations'!AE106","v":0},{"$f":"$D$4*'CC Allocations'!AF106","v":0},{"$f":"$D$4*'CC Allocations'!AG106","v":0},{"$f":"$D$4*'CC Allocations'!AH106","v":0},{"$f":"$D$4*'CC Allocations'!AI106","v":0},{"$f":"$D$4*'CC Allocations'!AJ106","v":0},{"$f":"$D$4*'CC Allocations'!AK106","v":0},{"$f":"$D$4*'CC Allocations'!AL106","v":0},{"$f":"$D$4*'CC Allocations'!AM106","v":0},{"$f":"$D$4*'CC Allocations'!AN106","v":0},{"$f":"$D$4*'CC Allocations'!AO106","v":0},{"$f":"$D$4*'CC Allocations'!AP106","v":0},{"$f":"$D$4*'CC Allocations'!AQ106","v":0}]
[null,"490 - Department of Natural Resources","490","Department of Natural Resources",77867.249516025622,19393.609982340553,709,1.2568752329770507E-2,6.0868397922771086E-3,3.7896023163732168E-2,{"$f":"$D$4*'CC Allocations'!J107","v":0},{"$f":"$D$4*'CC Allocations'!K107","v":0},{"$f":"$D$4*'CC Allocations'!L107","v":0},{"$f":"$D$4*'CC Allocations'!M107","v":0},{"$f":"$D$4*'CC Allocations'!N107","v":0},{"$f":"$D$4*'CC Allocations'!O107","v":0},{"$f":"$D$4*'CC Allocations'!P107","v":0},{"$f":"$D$4*'CC Allocations'!Q107","v":58473.639533685069},{"$f":"$D$4*'CC Allocations'!R107","v":0},{"$f":"$D$4*'CC Allocations'!S107","v":0},{"$f":"$D$4*'CC Allocations'!T107","v":0},{"$f":"$D$4*'CC Allocations'!U107","v":0},{"$f":"$D$4*'CC Allocations'!V107","v":0},{"$f":"$D$4*'CC Allocations'!W107","v":0},{"$f":"$D$4*'CC Allocations'!X107","v":0},{"$f":"$D$4*'CC Allocations'!Y107","v":0},{"$f":"$D$4*'CC Allocations'!Z107","v":0},{"$f":"$D$4*'CC Allocations'!AA107","v":0},{"$f":"$D$4*'CC Allocations'!AB107","v":0},{"$f":"$D$4*'CC Allocations'!AC107","v":0},{"$f":"$D$4*'CC Allocations'!AD107","v":0},{"$f":"$D$4*'CC Allocations'!AE107","v":0},{"$f":"$D$4*'CC Allocations'!AF107","v":0},{"$f":"$D$4*'CC Allocations'!AG107","v":0},{"$f":"$D$4*'CC Allocations'!AH107","v":0},{"$f":"$D$4*'CC Allocations'!AI107","v":0},{"$f":"$D$4*'CC Allocations'!AJ107","v":0},{"$f":"$D$4*'CC Allocations'!AK107","v":0},{"$f":"$D$4*'CC Allocations'!AL107","v":0},{"$f":"$D$4*'CC Allocations'!AM107","v":0},{"$f":"$D$4*'CC Allocations'!AN107","v":0},{"$f":"$D$4*'CC Allocations'!AO107","v":0},{"$f":"$D$4*'CC Allocations'!AP107","v":0},{"$f":"$D$4*'CC Allocations'!AQ107","v":0}]
[null,"495 - Department of Agriculture","495","Department of Agriculture",25334.993574824312,6865.7208823236651,251,4.4495865088468225E-3,1.922567243216802E-3,1.1969701071353532E-2,{"$f":"$D$4*'CC Allocations'!J108","v":0},{"$f":"$D$4*'CC Allocations'!K108","v":0},{"$f":"$D$4*'CC Allocations'!L108","v":0},{"$f":"$D$4*'CC Allocations'!M108","v":0},{"$f":"$D$4*'CC Allocations'!N108","v":0},{"$f":"$D$4*'CC Allocations'!O108","v":0},{"$f":"$D$4*'CC Allocations'!P108","v":0},{"$f":"$D$4*'CC Allocations'!Q108","v":18469.272692500646},{"$f":"$D$4*'CC Allocations'!R108","v":0},{"$f":"$D$4*'CC Allocations'!S108","v":0},{"$f":"$D$4*'CC Allocations'!T108","v":0},{"$f":"$D$4*'CC Allocations'!U108","v":0},{"$f":"$D$4*'CC Allocations'!V108","v":0},{"$f":"$D$4*'CC Allocations'!W108","v":0},{"$f":"$D$4*'CC Allocations'!X108","v":0},{"$f":"$D$4*'CC Allocations'!Y108","v":0},{"$f":"$D$4*'CC Allocations'!Z108","v":0},{"$f":"$D$4*'CC Allocations'!AA108","v":0},{"$f":"$D$4*'CC Allocations'!AB108","v":0},{"$f":"$D$4*'CC Allocations'!AC108","v":0},{"$f":"$D$4*'CC Allocations'!AD108","v":0},{"$f":"$D$4*'CC Allocations'!AE108","v":0},{"$f":"$D$4*'CC Allocations'!AF108","v":0},{"$f":"$D$4*'CC Allocations'!AG108","v":0},{"$f":"$D$4*'CC Allocations'!AH108","v":0},{"$f":"$D$4*'CC Allocations'!AI108","v":0},{"$f":"$D$4*'CC Allocations'!AJ108","v":0},{"$f":"$D$4*'CC Allocations'!AK108","v":0},{"$f":"$D$4*'CC Allocations'!AL108","v":0},{"$f":"$D$4*'CC Allocations'!AM108","v":0},{"$f":"$D$4*'CC Allocations'!AN108","v":0},{"$f":"$D$4*'CC Allocations'!AO108","v":0},{"$f":"$D$4*'CC Allocations'!AP108","v":0},{"$f":"$D$4*'CC Allocations'!AQ108","v":0}]
[null,"540 - Employment Security Department","540","Employment Security Department",87735.954977795584,44230.560425168791,1617,2.8665264481296065E-2,3.7138143262247267E-3,2.8195293688943232E-2,{"$f":"$D$4*'CC Allocations'!J109","v":0},{"$f":"$D$4*'CC Allocations'!K109","v":0},{"$f":"$D$4*'CC Allocations'!L109","v":0},{"$f":"$D$4*'CC Allocations'!M109","v":0},{"$f":"$D$4*'CC Allocations'!N109","v":0},{"$f":"$D$4*'CC Allocations'!O109","v":0},{"$f":"$D$4*'CC Allocations'!P109","v":0},{"$f":"$D$4*'CC Allocations'!Q109","v":0},{"$f":"$D$4*'CC Allocations'!R109","v":43505.394552626793},{"$f":"$D$4*'CC Allocations'!S109","v":0},{"$f":"$D$4*'CC Allocations'!T109","v":0},{"$f":"$D$4*'CC Allocations'!U109","v":0},{"$f":"$D$4*'CC Allocations'!V109","v":0},{"$f":"$D$4*'CC Allocations'!W109","v":0},{"$f":"$D$4*'CC Allocations'!X109","v":0},{"$f":"$D$4*'CC Allocations'!Y109","v":0},{"$f":"$D$4*'CC Allocations'!Z109","v":0},{"$f":"$D$4*'CC Allocations'!AA109","v":0},{"$f":"$D$4*'CC Allocations'!AB109","v":0},{"$f":"$D$4*'CC Allocations'!AC109","v":0},{"$f":"$D$4*'CC Allocations'!AD109","v":0},{"$f":"$D$4*'CC Allocations'!AE109","v":0},{"$f":"$D$4*'CC Allocations'!AF109","v":0},{"$f":"$D$4*'CC Allocations'!AG109","v":0},{"$f":"$D$4*'CC Allocations'!AH109","v":0},{"$f":"$D$4*'CC Allocations'!AI109","v":0},{"$f":"$D$4*'CC Allocations'!AJ109","v":0},{"$f":"$D$4*'CC Allocations'!AK109","v":0},{"$f":"$D$4*'CC Allocations'!AL109","v":0},{"$f":"$D$4*'CC Allocations'!AM109","v":0},{"$f":"$D$4*'CC Allocations'!AN109","v":0},{"$f":"$D$4*'CC Allocations'!AO109","v":0},{"$f":"$D$4*'CC Allocations'!AP109","v":0},{"$f":"$D$4*'CC Allocations'!AQ109","v":0}]
[null,"699 - Community Colleges","699","Community Colleges",14825.580550675006,14825.580550675006,542,9.6082704693027012E-3,0,0,{"$f":"$D$4*'CC Allocations'!J110","v":0},{"$f":"$D$4*'CC Allocations'!K110","v":0},{"$f":"$D$4*'CC Allocations'!L110","v":0},{"$f":"$D$4*'CC Allocations'!M110","v":0},{"$f":"$D$4*'CC Allocations'!N110","v":0},{"$f":"$D$4*'CC Allocations'!O110","v":0},{"$f":"$D$4*'CC Allocations'!P110","v":0},{"$f":"$D$4*'CC Allocations'!Q110","v":0},{"$f":"$D$4*'CC Allocations'!R110","v":0},{"$f":"$D$4*'CC Allocations'!S110","v":0},{"$f":"$D$4*'CC Allocations'!T110","v":0},{"$f":"$D$4*'CC Allocations'!U110","v":0},{"$f":"$D$4*'CC Allocations'!V110","v":0},{"$f":"$D$4*'CC Allocations'!W110","v":0},{"$f":"$D$4*'CC Allocations'!X110","v":0},{"$f":"$D$4*'CC Allocations'!Y110","v":0},{"$f":"$D$4*'CC Allocations'!Z110","v":0},{"$f":"$D$4*'CC Allocations'!AA110","v":0},{"$f":"$D$4*'CC Allocations'!AB110","v":0},{"$f":"$D$4*'CC Allocations'!AC110","v":0},{"$f":"$D$4*'CC Allocations'!AD110","v":0},{"$f":"$D$4*'CC Allocations'!AE110","v":0},{"$f":"$D$4*'CC Allocations'!AF110","v":0},{"$f":"$D$4*'CC Allocations'!AG110","v":0},{"$f":"$D$4*'CC Allocations'!AH110","v":0},{"$f":"$D$4*'CC Allocations'!AI110","v":0},{"$f":"$D$4*'CC Allocations'!AJ110","v":0},{"$f":"$D$4*'CC Allocations'!AK110","v":0},{"$f":"$D$4*'CC Allocations'!AL110","v":0},{"$f":"$D$4*'CC Allocations'!AM110","v":0},{"$f":"$D$4*'CC Allocations'!AN110","v":0},{"$f":"$D$4*'CC Allocations'!AO110","v":0},{"$f":"$D$4*'CC Allocations'!AP110","v":0},{"$f":"$D$4*'CC Allocations'!AQ110","v":0}]
[null,"TOTAL  - All Agencies",null,"Building Total",{"$f":"SUM(E7:E110)","v":1440397.7995148294},{"$f":"SUM(F7:F110)","v":702272.97981186362},25674,0.45513419931527233,6.6496479256132238E-2,0.47836932142859545,{"$f":"SUM(K7:K110)","v":26841.146990369714},{"$f":"SUM(L7:L110)","v":23654.224976392645},62965.094574439252,10635.372659030498,72904.85863864643,123283.83893267527,16522.30119051475,136629.55235862953,43505.394552626793,70680.248165445824,20199.221596930623,35567.281040042923,23587.470732730864,10250.801147011041,0,3697.9597846956171,5863.944141466678,0,0,13427.90770102838,7172.0025956072277,0,228.63168210361198,0,0,0,0,0,0,7395.9195693912334,3697.9597846956171,19413.686888491207,0,0]
[]
[null,null,null,null,null,null,null,null,"Building Total RSF",null,77281,78594,142254,23890,177668,250481,47900,354696,92619,184427,55108,97800,53609,22032,95386,47200,14308,10125,0,41341,17000,0,1539,7138,885,2492,872,200592,60581,99000,20708,138355,17600,0]
[null,null,null,null,null,null,null,null,"vacant space",0,0,0,0,0,0,0,0,0,0,0,0,0,0,0,0,0,0,0,0,0,0,0,0,14276,406,872,0,0,0,0,35004,0,0]
[null,null,null,null,null,null,null,null,null,null,{"$f":"K111/K113/2","v":0.17365941816468286},{"$f":"L111/L113/2","v":0.15048365636303435},0.22131221116608057,0.22259047005086852,0.20517160838937351,0.24609419263871365,0.17246660950432935,0.192600920730188,0.23486214789960372,0.19162120558661644,0.18326941276158293,0.18183681513314379,0.21999543670587834,0.23263437606688092,0,3.9173302803978995E-2,0.20491837229056045,0,{"$error":"#DIV/0!"},0.16240424398331416,0.21094125281197729,{"$error":"#DIV/0!"},7.427929892904872E-2,0,0,0,0,0,0,3.7353129138339561E-2,8.9288192599372637E-2,7.0158963855629392E-2,0]

{"sheet":"CC park dollars FY22","index":15,"n_rows":115,"n_cols":44,"rows_kept":115,"cut":false,"hidden":true,"merged":[[3,5,3,7],[4,4,5,4],[4,6,4,7]]}
[]
[]
[null,null,null,null,null,null,null,null,"CC By Building:",3295036.3899590364,3.6363967548430423E-2,3.2046375280960625E-2,8.5304128642872998E-2,1.4408637096514859E-2,9.8770366058120895E-2,0.16702302326358134,2.2384156106772846E-2,0.18510358778290584,5.894043038700976E-2,9.5756498465786266E-2,2.7365590558327428E-2,4.8185997937795683E-2,3.1955937672198675E-2,1.3887625606650295E-2,0,5.0099382732906065E-3,7.9443801169379862E-3,0,0,1.8191920041967968E-2,9.7165173208690683E-3,0,3.0974663905166782E-4,0,0,0,0,0,0,1.0019876546581213E-2,5.0099382732906065E-3,2.6301360380082614E-2,0,0]
[null,null,"CSM Amount",1522000,"Total","PHF Percentage",null,null,"Parking Percentage","Building Percentage",119820.59635536773,105593.97271704901,281080.20809201349,47476.983562730173,325451.95041108323,550346.93961447524,73756.608930340313,609923.0576566516,194210.86296504454,315521.14701982238,90170.616722408304,158774.61669152786,105295.9775051575,45760.231744039658,0,16507.928921941089,26177.021580977689,0,0,59943.038541509573,32016.278155930864,0,1020.6264473427523,0,0,0,0,0,0,33015.857843882179,16507.928921941089,86663.939557799051,0,0]
[null,null,null,null,"Total",null,0.45513419931527221,null,6.6496479256132238E-2,0.47836932142859556,"F6121","F6122","F6123","F6124","F6125","F6126","F6127","F6129","F612A","F612C","F612E","F612H","F612J","F612K","F6131","F6132","F6133","F6134","F6137","F613D","F613E","F613F","F613G","F613H","F613i","F613K","F613L","F613M","F6141","F6142","F6143","F6144","F614G","F6146"]
[null,null,"Agency #","Agency",null,"PHF Thurston FTEs","Thurston FTEs","allocation","allocation","allocation","Cherberg","O'Brien","Legislative","Pritchard","HLB","OB2","Archives","NRB","Emp Sec","Transportation","Insurance","Old Cap","TOJ","Newhouse","Modular Bldg","Isabella Bush","1007 Washington","120 E Union Avenue","Conservatory","Capital Court","James Dolliver Building","Undeveloped Properties","1068 WA Street SE (ST Farm)","232 Perry Street","208 11th Avenue SE (Pro Arts)","Press Houses Ayer(White); Carlyon(Blue)","Visitor Center","Helen Sommers","Kelso Building","Yakima Building","Alaska Street","Tacoma Rhodes","Tacoma Rhodes Garage","North Cascades Gateway Center (NCGC)"]
[null,{"$f":"CONCATENATE(C7,\" - \",D7)","v":"011 - House of Representatives"},"011","House of Representatives",{"$f":"F7+SUM(K7:AR7)","v":16707.957467768341},{"$f":"H7*$D$4","v":9146.6125734326251},339,6.0096009023867447E-3,4.9680321250563193E-3,2.8325875018780835E-2,{"$f":"$D$4*$I$5*'Park Allocations'!E5","v":0},{"$f":"$D$4*$I$5*'Park Allocations'!F5","v":4796.4966393761106},{"$f":"$D$4*$I$5*'Park Allocations'!G5","v":2764.8482549596065},{"$f":"$D$4*$I$5*'Park Allocations'!H5","v":0},{"$f":"$D$4*$I$5*'Park Allocations'!I5","v":0},{"$f":"$D$4*$I$5*'Park Allocations'!J5","v":0},{"$f":"$D$4*$I$5*'Park Allocations'!K5","v":0},{"$f":"$D$4*$I$5*'Park Allocations'!L5","v":0},{"$f":"$D$4*$I$5*'Park Allocations'!M5","v":0},{"$f":"$D$4*$I$5*'Park Allocations'!N5","v":0},{"$f":"$D$4*$I$5*'Park Allocations'!O5","v":0},{"$f":"$D$4*$I$5*'Park Allocations'!P5","v":0},{"$f":"$D$4*$I$5*'Park Allocations'!Q5","v":0},{"$f":"$D$4*$I$5*'Park Allocations'!R5","v":0},{"$f":"$D$4*$I$5*'Park Allocations'!S5","v":0},{"$f":"$D$4*$I$5*'Park Allocations'!T5","v":0},{"$f":"$D$4*$I$5*'Park Allocations'!U5","v":0},{"$f":"$D$4*$I$5*'Park Allocations'!V5","v":0},{"$f":"$D$4*$I$5*'Park Allocations'!W5","v":0},{"$f":"$D$4*$I$5*'Park Allocations'!X5","v":0},{"$f":"$D$4*$I$5*'Park Allocations'!Y5","v":0},{"$f":"$D$4*$I$5*'Park Allocations'!Z5","v":0},{"$f":"$D$4*$I$5*'Park Allocations'!AA5","v":0},{"$f":"$D$4*$I$5*'Park Allocations'!AB5","v":0},{"$f":"$D$4*$I$5*'Park Allocations'!AC5","v":0},{"$f":"$D$4*$I$5*'Park Allocations'!AD5","v":0},{"$f":"$D$4*$I$5*'Park Allocations'!AE5","v":0},{"$f":"$D$4*$I$5*'Park Allocations'!AF5","v":0},{"$f":"$D$4*$I$5*'Park Allocations'!AG5","v":0},{"$f":"$D$4*$I$5*'Park Allocations'!AH5","v":0},{"$f":"$D$4*$I$5*'Park Allocations'!AI5","v":0},{"$f":"$D$4*$I$5*'Park Allocations'!AJ5","v":0},{"$f":"$D$4*$I$5*'Park Allocations'!AK5","v":0},{"$f":"$D$4*$I$5*'Park Allocations'!AL5","v":0}]
[null,{"$f":"CONCATENATE(C8,\" - \",D8)","v":"012 - Senate"},"012","Senate",{"$f":"F8+SUM(K8:AR8)","v":14205.329566664881},{"$f":"H8*$D$4","v":5989.8170834868515},222,3.9354908564302573E-3,5.3978400020880599E-3,3.4166100072064297E-2,{"$f":"$D$4*$I$5*'Park Allocations'!E6","v":4716.3658394740723},{"$f":"$D$4*$I$5*'Park Allocations'!F6","v":0},{"$f":"$D$4*$I$5*'Park Allocations'!G6","v":2154.5603653781995},{"$f":"$D$4*$I$5*'Park Allocations'!H6","v":0},{"$f":"$D$4*$I$5*'Park Allocations'!I6","v":0},{"$f":"$D$4*$I$5*'Park Allocations'!J6","v":0},{"$f":"$D$4*$I$5*'Park Allocations'!K6","v":0},{"$f":"$D$4*$I$5*'Park Allocations'!L6","v":0},{"$f":"$D$4*$I$5*'Park Allocations'!M6","v":0},{"$f":"$D$4*$I$5*'Park Allocations'!N6","v":0},{"$f":"$D$4*$I$5*'Park Allocations'!O6","v":0},{"$f":"$D$4*$I$5*'Park Allocations'!P6","v":0},{"$f":"$D$4*$I$5*'Park Allocations'!Q6","v":0},{"$f":"$D$4*$I$5*'Park Allocations'!R6","v":1344.586278325756},{"$f":"$D$4*$I$5*'Park Allocations'!S6","v":0},{"$f":"$D$4*$I$5*'Park Allocations'!T6","v":0},{"$f":"$D$4*$I$5*'Park Allocations'!U6","v":0},{"$f":"$D$4*$I$5*'Park Allocations'!V6","v":0},{"$f":"$D$4*$I$5*'Park Allocations'!W6","v":0},{"$f":"$D$4*$I$5*'Park Allocations'!X6","v":0},{"$f":"$D$4*$I$5*'Park Allocations'!Y6","v":0},{"$f":"$D$4*$I$5*'Park Allocations'!Z6","v":0},{"$f":"$D$4*$I$5*'Park Allocations'!AA6","v":0},{"$f":"$D$4*$I$5*'Park Allocations'!AB6","v":0},{"$f":"$D$4*$I$5*'Park Allocations'!AC6","v":0},{"$f":"$D$4*$I$5*'Park Allocations'!AD6","v":0},{"$f":"$D$4*$I$5*'Park Allocations'!AE6","v":0},{"$f":"$D$4*$I$5*'Park Allocations'!AF6","v":0},{"$f":"$D$4*$I$5*'Park Allocations'!AG6","v":0},{"$f":"$D$4*$I$5*'Park Allocations'!AH6","v":0},{"$f":"$D$4*$I$5*'Park Allocations'!AI6","v":0},{"$f":"$D$4*$I$5*'Park Allocations'!AJ6","v":0},{"$f":"$D$4*$I$5*'Park Allocations'!AK6","v":0},{"$f":"$D$4*$I$5*'Park Allocations'!AL6","v":0}]
[null,"013 - Joint Transportation Committee","013","Joint Transportation Committee",107.92463213489823,107.92463213489823,4,7.0909745160905536E-5,0,0,{"$f":"$D$4*$I$5*'Park Allocations'!E7","v":0},{"$f":"$D$4*$I$5*'Park Allocations'!F7","v":0},{"$f":"$D$4*$I$5*'Park Allocations'!G7","v":0},{"$f":"$D$4*$I$5*'Park Allocations'!H7","v":0},{"$f":"$D$4*$I$5*'Park Allocations'!I7","v":0},{"$f":"$D$4*$I$5*'Park Allocations'!J7","v":0},{"$f":"$D$4*$I$5*'Park Allocations'!K7","v":0},{"$f":"$D$4*$I$5*'Park Allocations'!L7","v":0},{"$f":"$D$4*$I$5*'Park Allocations'!M7","v":0},{"$f":"$D$4*$I$5*'Park Allocations'!N7","v":0},{"$f":"$D$4*$I$5*'Park Allocations'!O7","v":0},{"$f":"$D$4*$I$5*'Park Allocations'!P7","v":0},{"$f":"$D$4*$I$5*'Park Allocations'!Q7","v":0},{"$f":"$D$4*$I$5*'Park Allocations'!R7","v":0},{"$f":"$D$4*$I$5*'Park Allocations'!S7","v":0},{"$f":"$D$4*$I$5*'Park Allocations'!T7","v":0},{"$f":"$D$4*$I$5*'Park Allocations'!U7","v":0},{"$f":"$D$4*$I$5*'Park Allocations'!V7","v":0},{"$f":"$D$4*$I$5*'Park Allocations'!W7","v":0},{"$f":"$D$4*$I$5*'Park Allocations'!X7","v":0},{"$f":"$D$4*$I$5*'Park Allocations'!Y7","v":0},{"$f":"$D$4*$I$5*'Park Allocations'!Z7","v":0},{"$f":"$D$4*$I$5*'Park Allocations'!AA7","v":0},{"$f":"$D$4*$I$5*'Park Allocations'!AB7","v":0},{"$f":"$D$4*$I$5*'Park Allocations'!AC7","v":0},{"$f":"$D$4*$I$5*'Park Allocations'!AD7","v":0},{"$f":"$D$4*$I$5*'Park Allocations'!AE7","v":0},{"$f":"$D$4*$I$5*'Park Allocations'!AF7","v":0},{"$f":"$D$4*$I$5*'Park Allocations'!AG7","v":0},{"$f":"$D$4*$I$5*'Park Allocations'!AH7","v":0},{"$f":"$D$4*$I$5*'Park Allocations'!AI7","v":0},{"$f":"$D$4*$I$5*'Park Allocations'!AJ7","v":0},{"$f":"$D$4*$I$5*'Park Allocations'!AK7","v":0},{"$f":"$D$4*$I$5*'Park Allocations'!AL7","v":0}]
[null,"014 - Joint Legislative Audit and Review Committee","014","Joint Legislative Audit and Review Committee",647.54779280938942,647.54779280938942,24,4.2545847096543324E-4,0,0,{"$f":"$D$4*$I$5*'Park Allocations'!E8","v":0},{"$f":"$D$4*$I$5*'Park Allocations'!F8","v":0},{"$f":"$D$4*$I$5*'Park Allocations'!G8","v":0},{"$f":"$D$4*$I$5*'Park Allocations'!H8","v":0},{"$f":"$D$4*$I$5*'Park Allocations'!I8","v":0},{"$f":"$D$4*$I$5*'Park Allocations'!J8","v":0},{"$f":"$D$4*$I$5*'Park Allocations'!K8","v":0},{"$f":"$D$4*$I$5*'Park Allocations'!L8","v":0},{"$f":"$D$4*$I$5*'Park Allocations'!M8","v":0},{"$f":"$D$4*$I$5*'Park Allocations'!N8","v":0},{"$f":"$D$4*$I$5*'Park Allocations'!O8","v":0},{"$f":"$D$4*$I$5*'Park Allocations'!P8","v":0},{"$f":"$D$4*$I$5*'Park Allocations'!Q8","v":0},{"$f":"$D$4*$I$5*'Park Allocations'!R8","v":0},{"$f":"$D$4*$I$5*'Park Allocations'!S8","v":0},{"$f":"$D$4*$I$5*'Park Allocations'!T8","v":0},{"$f":"$D$4*$I$5*'Park Allocations'!U8","v":0},{"$f":"$D$4*$I$5*'Park Allocations'!V8","v":0},{"$f":"$D$4*$I$5*'Park Allocations'!W8","v":0},{"$f":"$D$4*$I$5*'Park Allocations'!X8","v":0},{"$f":"$D$4*$I$5*'Park Allocations'!Y8","v":0},{"$f":"$D$4*$I$5*'Park Allocations'!Z8","v":0},{"$f":"$D$4*$I$5*'Park Allocations'!AA8","v":0},{"$f":"$D$4*$I$5*'Park Allocations'!AB8","v":0},{"$f":"$D$4*$I$5*'Park Allocations'!AC8","v":0},{"$f":"$D$4*$I$5*'Park Allocations'!AD8","v":0},{"$f":"$D$4*$I$5*'Park Allocations'!AE8","v":0},{"$f":"$D$4*$I$5*'Park Allocations'!AF8","v":0},{"$f":"$D$4*$I$5*'Park Allocations'!AG8","v":0},{"$f":"$D$4*$I$5*'Park Allocations'!AH8","v":0},{"$f":"$D$4*$I$5*'Park Allocations'!AI8","v":0},{"$f":"$D$4*$I$5*'Park Allocations'!AJ8","v":0},{"$f":"$D$4*$I$5*'Park Allocations'!AK8","v":0},{"$f":"$D$4*$I$5*'Park Allocations'!AL8","v":0}]
[null,"020 - Legislative Evaluation and Accountability Program Committee","020","Legislative Evaluation and Accountability Program Committee",269.81158033724563,269.81158033724563,10,1.7727436290226387E-4,0,0,{"$f":"$D$4*$I$5*'Park Allocations'!E9","v":0},{"$f":"$D$4*$I$5*'Park Allocations'!F9","v":0},{"$f":"$D$4*$I$5*'Park Allocations'!G9","v":0},{"$f":"$D$4*$I$5*'Park Allocations'!H9","v":0},{"$f":"$D$4*$I$5*'Park Allocations'!I9","v":0},{"$f":"$D$4*$I$5*'Park Allocations'!J9","v":0},{"$f":"$D$4*$I$5*'Park Allocations'!K9","v":0},{"$f":"$D$4*$I$5*'Park Allocations'!L9","v":0},{"$f":"$D$4*$I$5*'Park Allocations'!M9","v":0},{"$f":"$D$4*$I$5*'Park Allocations'!N9","v":0},{"$f":"$D$4*$I$5*'Park Allocations'!O9","v":0},{"$f":"$D$4*$I$5*'Park Allocations'!P9","v":0},{"$f":"$D$4*$I$5*'Park Allocations'!Q9","v":0},{"$f":"$D$4*$I$5*'Park Allocations'!R9","v":0},{"$f":"$D$4*$I$5*'Park Allocations'!S9","v":0},{"$f":"$D$4*$I$5*'Park Allocations'!T9","v":0},{"$f":"$D$4*$I$5*'Park Allocations'!U9","v":0},{"$f":"$D$4*$I$5*'Park Allocations'!V9","v":0},{"$f":"$D$4*$I$5*'Park Allocations'!W9","v":0},{"$f":"$D$4*$I$5*'Park Allocations'!X9","v":0},{"$f":"$D$4*$I$5*'Park Allocations'!Y9","v":0},{"$f":"$D$4*$I$5*'Park Allocations'!Z9","v":0},{"$f":"$D$4*$I$5*'Park Allocations'!AA9","v":0},{"$f":"$D$4*$I$5*'Park Allocations'!AB9","v":0},{"$f":"$D$4*$I$5*'Park Allocations'!AC9","v":0},{"$f":"$D$4*$I$5*'Park Allocations'!AD9","v":0},{"$f":"$D$4*$I$5*'Park Allocations'!AE9","v":0},{"$f":"$D$4*$I$5*'Park Allocations'!AF9","v":0},{"$f":"$D$4*$I$5*'Park Allocations'!AG9","v":0},{"$f":"$D$4*$I$5*'Park Allocations'!AH9","v":0},{"$f":"$D$4*$I$5*'Park Allocations'!AI9","v":0},{"$f":"$D$4*$I$5*'Park Allocations'!AJ9","v":0},{"$f":"$D$4*$I$5*'Park Allocations'!AK9","v":0},{"$f":"$D$4*$I$5*'Park Allocations'!AL9","v":0}]
[null,"035 - Office of the State Actuary","035","Office of the State Actuary",458.67968657331744,458.67968657331744,17,3.0136641693384852E-4,0,0,{"$f":"$D$4*$I$5*'Park Allocations'!E10","v":0},{"$f":"$D$4*$I$5*'Park Allocations'!F10","v":0},{"$f":"$D$4*$I$5*'Park Allocations'!G10","v":0},{"$f":"$D$4*$I$5*'Park Allocations'!H10","v":0},{"$f":"$D$4*$I$5*'Park Allocations'!I10","v":0},{"$f":"$D$4*$I$5*'Park Allocations'!J10","v":0},{"$f":"$D$4*$I$5*'Park Allocations'!K10","v":0},{"$f":"$D$4*$I$5*'Park Allocations'!L10","v":0},{"$f":"$D$4*$I$5*'Park Allocations'!M10","v":0},{"$f":"$D$4*$I$5*'Park Allocations'!N10","v":0},{"$f":"$D$4*$I$5*'Park Allocations'!O10","v":0},{"$f":"$D$4*$I$5*'Park Allocations'!P10","v":0},{"$f":"$D$4*$I$5*'Park Allocations'!Q10","v":0},{"$f":"$D$4*$I$5*'Park Allocations'!R10","v":0},{"$f":"$D$4*$I$5*'Park Allocations'!S10","v":0},{"$f":"$D$4*$I$5*'Park Allocations'!T10","v":0},{"$f":"$D$4*$I$5*'Park Allocations'!U10","v":0},{"$f":"$D$4*$I$5*'Park Allocations'!V10","v":0},{"$f":"$D$4*$I$5*'Park Allocations'!W10","v":0},{"$f":"$D$4*$I$5*'Park Allocations'!X10","v":0},{"$f":"$D$4*$I$5*'Park Allocations'!Y10","v":0},{"$f":"$D$4*$I$5*'Park Allocations'!Z10","v":0},{"$f":"$D$4*$I$5*'Park Allocations'!AA10","v":0},{"$f":"$D$4*$I$5*'Park Allocations'!AB10","v":0},{"$f":"$D$4*$I$5*'Park Allocations'!AC10","v":0},{"$f":"$D$4*$I$5*'Park Allocations'!AD10","v":0},{"$f":"$D$4*$I$5*'Park Allocations'!AE10","v":0},{"$f":"$D$4*$I$5*'Park Allocations'!AF10","v":0},{"$f":"$D$4*$I$5*'Park Allocations'!AG10","v":0},{"$f":"$D$4*$I$5*'Park Allocations'!AH10","v":0},{"$f":"$D$4*$I$5*'Park Allocations'!AI10","v":0},{"$f":"$D$4*$I$5*'Park Allocations'!AJ10","v":0},{"$f":"$D$4*$I$5*'Park Allocations'!AK10","v":0},{"$f":"$D$4*$I$5*'Park Allocations'!AL10","v":0}]
[null,"037 - Office of Legislative Support Services","037","Office of Legislative Support Services",1349.1123217685749,809.43474101173672,30,5.3182308870679154E-4,3.5458448144338913E-4,6.3434462773292698E-3,{"$f":"$D$4*$I$5*'Park Allocations'!E11","v":0},{"$f":"$D$4*$I$5*'Park Allocations'!F11","v":0},{"$f":"$D$4*$I$5*'Park Allocations'!G11","v":303.86234022258259},{"$f":"$D$4*$I$5*'Park Allocations'!H11","v":235.81524053425571},{"$f":"$D$4*$I$5*'Park Allocations'!I11","v":0},{"$f":"$D$4*$I$5*'Park Allocations'!J11","v":0},{"$f":"$D$4*$I$5*'Park Allocations'!K11","v":0},{"$f":"$D$4*$I$5*'Park Allocations'!L11","v":0},{"$f":"$D$4*$I$5*'Park Allocations'!M11","v":0},{"$f":"$D$4*$I$5*'Park Allocations'!N11","v":0},{"$f":"$D$4*$I$5*'Park Allocations'!O11","v":0},{"$f":"$D$4*$I$5*'Park Allocations'!P11","v":0},{"$f":"$D$4*$I$5*'Park Allocations'!Q11","v":0},{"$f":"$D$4*$I$5*'Park Allocations'!R11","v":0},{"$f":"$D$4*$I$5*'Park Allocations'!S11","v":0},{"$f":"$D$4*$I$5*'Park Allocations'!T11","v":0},{"$f":"$D$4*$I$5*'Park Allocations'!U11","v":0},{"$f":"$D$4*$I$5*'Park Allocations'!V11","v":0},{"$f":"$D$4*$I$5*'Park Allocations'!W11","v":0},{"$f":"$D$4*$I$5*'Park Allocations'!X11","v":0},{"$f":"$D$4*$I$5*'Park Allocations'!Y11","v":0},{"$f":"$D$4*$I$5*'Park Allocations'!Z11","v":0},{"$f":"$D$4*$I$5*'Park Allocations'!AA11","v":0},{"$f":"$D$4*$I$5*'Park Allocations'!AB11","v":0},{"$f":"$D$4*$I$5*'Park Allocations'!AC11","v":0},{"$f":"$D$4*$I$5*'Park Allocations'!AD11","v":0},{"$f":"$D$4*$I$5*'Park Allocations'!AE11","v":0},{"$f":"$D$4*$I$5*'Park Allocations'!AF11","v":0},{"$f":"$D$4*$I$5*'Park Allocations'!AG11","v":0},{"$f":"$D$4*$I$5*'Park Allocations'!AH11","v":0},{"$f":"$D$4*$I$5*'Park Allocations'!AI11","v":0},{"$f":"$D$4*$I$5*'Park Allocations'!AJ11","v":0},{"$f":"$D$4*$I$5*'Park Allocations'!AK11","v":0},{"$f":"$D$4*$I$5*'Park Allocations'!AL11","v":0}]
[null,"038 - Joint Legislative Systems Committee","038","Joint Legislative Systems Committee",2130.2843001784663,1591.8883239897491,59,1.0459187411233568E-3,3.5374242850769866E-4,2.5433953771718367E-3,{"$f":"$D$4*$I$5*'Park Allocations'!E12","v":0},{"$f":"$D$4*$I$5*'Park Allocations'!F12","v":0},{"$f":"$D$4*$I$5*'Park Allocations'!G12","v":69.75590577915483},{"$f":"$D$4*$I$5*'Park Allocations'!H12","v":468.6400704095625},{"$f":"$D$4*$I$5*'Park Allocations'!I12","v":0},{"$f":"$D$4*$I$5*'Park Allocations'!J12","v":0},{"$f":"$D$4*$I$5*'Park Allocations'!K12","v":0},{"$f":"$D$4*$I$5*'Park Allocations'!L12","v":0},{"$f":"$D$4*$I$5*'Park Allocations'!M12","v":0},{"$f":"$D$4*$I$5*'Park Allocations'!N12","v":0},{"$f":"$D$4*$I$5*'Park Allocations'!O12","v":0},{"$f":"$D$4*$I$5*'Park Allocations'!P12","v":0},{"$f":"$D$4*$I$5*'Park Allocations'!Q12","v":0},{"$f":"$D$4*$I$5*'Park Allocations'!R12","v":0},{"$f":"$D$4*$I$5*'Park Allocations'!S12","v":0},{"$f":"$D$4*$I$5*'Park Allocations'!T12","v":0},{"$f":"$D$4*$I$5*'Park Allocations'!U12","v":0},{"$f":"$D$4*$I$5*'Park Allocations'!V12","v":0},{"$f":"$D$4*$I$5*'Park Allocations'!W12","v":0},{"$f":"$D$4*$I$5*'Park Allocations'!X12","v":0},{"$f":"$D$4*$I$5*'Park Allocations'!Y12","v":0},{"$f":"$D$4*$I$5*'Park Allocations'!Z12","v":0},{"$f":"$D$4*$I$5*'Park Allocations'!AA12","v":0},{"$f":"$D$4*$I$5*'Park Allocations'!AB12","v":0},{"$f":"$D$4*$I$5*'Park Allocations'!AC12","v":0},{"$f":"$D$4*$I$5*'Park Allocations'!AD12","v":0},{"$f":"$D$4*$I$5*'Park Allocations'!AE12","v":0},{"$f":"$D$4*$I$5*'Park Allocations'!AF12","v":0},{"$f":"$D$4*$I$5*'Park Allocations'!AG12","v":0},{"$f":"$D$4*$I$5*'Park Allocations'!AH12","v":0},{"$f":"$D$4*$I$5*'Park Allocations'!AI12","v":0},{"$f":"$D$4*$I$5*'Park Allocations'!AJ12","v":0},{"$f":"$D$4*$I$5*'Park Allocations'!AK12","v":0},{"$f":"$D$4*$I$5*'Park Allocations'!AL12","v":0}]
[null,"040 - Statute Law Committee (Code Revisor)","040","Statute Law Committee (Code Revisor)",1751.8253045139718,998.30284724780859,37,6.5591514273837621E-4,4.9508702842717691E-4,3.5623084528964614E-3,{"$f":"$D$4*$I$5*'Park Allocations'!E13","v":0},{"$f":"$D$4*$I$5*'Park Allocations'!F13","v":0},{"$f":"$D$4*$I$5*'Park Allocations'!G13","v":0},{"$f":"$D$4*$I$5*'Park Allocations'!H13","v":753.52245726616331},{"$f":"$D$4*$I$5*'Park Allocations'!I13","v":0},{"$f":"$D$4*$I$5*'Park Allocations'!J13","v":0},{"$f":"$D$4*$I$5*'Park Allocations'!K13","v":0},{"$f":"$D$4*$I$5*'Park Allocations'!L13","v":0},{"$f":"$D$4*$I$5*'Park Allocations'!M13","v":0},{"$f":"$D$4*$I$5*'Park Allocations'!N13","v":0},{"$f":"$D$4*$I$5*'Park Allocations'!O13","v":0},{"$f":"$D$4*$I$5*'Park Allocations'!P13","v":0},{"$f":"$D$4*$I$5*'Park Allocations'!Q13","v":0},{"$f":"$D$4*$I$5*'Park Allocations'!R13","v":0},{"$f":"$D$4*$I$5*'Park Allocations'!S13","v":0},{"$f":"$D$4*$I$5*'Park Allocations'!T13","v":0},{"$f":"$D$4*$I$5*'Park Allocations'!U13","v":0},{"$f":"$D$4*$I$5*'Park Allocations'!V13","v":0},{"$f":"$D$4*$I$5*'Park Allocations'!W13","v":0},{"$f":"$D$4*$I$5*'Park Allocations'!X13","v":0},{"$f":"$D$4*$I$5*'Park Allocations'!Y13","v":0},{"$f":"$D$4*$I$5*'Park Allocations'!Z13","v":0},{"$f":"$D$4*$I$5*'Park Allocations'!AA13","v":0},{"$f":"$D$4*$I$5*'Park Allocations'!AB13","v":0},{"$f":"$D$4*$I$5*'Park Allocations'!AC13","v":0},{"$f":"$D$4*$I$5*'Park Allocations'!AD13","v":0},{"$f":"$D$4*$I$5*'Park Allocations'!AE13","v":0},{"$f":"$D$4*$I$5*'Park Allocations'!AF13","v":0},{"$f":"$D$4*$I$5*'Park Allocations'!AG13","v":0},{"$f":"$D$4*$I$5*'Park Allocations'!AH13","v":0},{"$f":"$D$4*$I$5*'Park Allocations'!AI13","v":0},{"$f":"$D$4*$I$5*'Park Allocations'!AJ13","v":0},{"$f":"$D$4*$I$5*'Park Allocations'!AK13","v":0},{"$f":"$D$4*$I$5*'Park Allocations'!AL13","v":0}]
[null,"045 - Supreme Court","045","Supreme Court",3717.1677372964937,1645.8506400571982,61,1.0813736137038096E-3,1.3609179351112323E-3,9.6780757533658536E-3,{"$f":"$D$4*$I$5*'Park Allocations'!E14","v":0},{"$f":"$D$4*$I$5*'Park Allocations'!F14","v":0},{"$f":"$D$4*$I$5*'Park Allocations'!G14","v":0},{"$f":"$D$4*$I$5*'Park Allocations'!H14","v":0},{"$f":"$D$4*$I$5*'Park Allocations'!I14","v":0},{"$f":"$D$4*$I$5*'Park Allocations'!J14","v":0},{"$f":"$D$4*$I$5*'Park Allocations'!K14","v":0},{"$f":"$D$4*$I$5*'Park Allocations'!L14","v":0},{"$f":"$D$4*$I$5*'Park Allocations'!M14","v":0},{"$f":"$D$4*$I$5*'Park Allocations'!N14","v":0},{"$f":"$D$4*$I$5*'Park Allocations'!O14","v":0},{"$f":"$D$4*$I$5*'Park Allocations'!P14","v":0},{"$f":"$D$4*$I$5*'Park Allocations'!Q14","v":2071.3170972392954},{"$f":"$D$4*$I$5*'Park Allocations'!R14","v":0},{"$f":"$D$4*$I$5*'Park Allocations'!S14","v":0},{"$f":"$D$4*$I$5*'Park Allocations'!T14","v":0},{"$f":"$D$4*$I$5*'Park Allocations'!U14","v":0},{"$f":"$D$4*$I$5*'Park Allocations'!V14","v":0},{"$f":"$D$4*$I$5*'Park Allocations'!W14","v":0},{"$f":"$D$4*$I$5*'Park Allocations'!X14","v":0},{"$f":"$D$4*$I$5*'Park Allocations'!Y14","v":0},{"$f":"$D$4*$I$5*'Park Allocations'!Z14","v":0},{"$f":"$D$4*$I$5*'Park Allocations'!AA14","v":0},{"$f":"$D$4*$I$5*'Park Allocations'!AB14","v":0},{"$f":"$D$4*$I$5*'Park Allocations'!AC14","v":0},{"$f":"$D$4*$I$5*'Park Allocations'!AD14","v":0},{"$f":"$D$4*$I$5*'Park Allocations'!AE14","v":0},{"$f":"$D$4*$I$5*'Park Allocations'!AF14","v":0},{"$f":"$D$4*$I$5*'Park Allocations'!AG14","v":0},{"$f":"$D$4*$I$5*'Park Allocations'!AH14","v":0},{"$f":"$D$4*$I$5*'Park Allocations'!AI14","v":0},{"$f":"$D$4*$I$5*'Park Allocations'!AJ14","v":0},{"$f":"$D$4*$I$5*'Park Allocations'!AK14","v":0},{"$f":"$D$4*$I$5*'Park Allocations'!AL14","v":0}]
[null,"046 - Law Library","046","Law Library",1156.7911324264101,215.84926426979646,8,1.4181949032181107E-4,6.1822724583220328E-4,4.3964812011017896E-3,{"$f":"$D$4*$I$5*'Park Allocations'!E15","v":0},{"$f":"$D$4*$I$5*'Park Allocations'!F15","v":0},{"$f":"$D$4*$I$5*'Park Allocations'!G15","v":0},{"$f":"$D$4*$I$5*'Park Allocations'!H15","v":0},{"$f":"$D$4*$I$5*'Park Allocations'!I15","v":0},{"$f":"$D$4*$I$5*'Park Allocations'!J15","v":0},{"$f":"$D$4*$I$5*'Park Allocations'!K15","v":0},{"$f":"$D$4*$I$5*'Park Allocations'!L15","v":0},{"$f":"$D$4*$I$5*'Park Allocations'!M15","v":0},{"$f":"$D$4*$I$5*'Park Allocations'!N15","v":0},{"$f":"$D$4*$I$5*'Park Allocations'!O15","v":0},{"$f":"$D$4*$I$5*'Park Allocations'!P15","v":0},{"$f":"$D$4*$I$5*'Park Allocations'!Q15","v":940.94186815661351},{"$f":"$D$4*$I$5*'Park Allocations'!R15","v":0},{"$f":"$D$4*$I$5*'Park Allocations'!S15","v":0},{"$f":"$D$4*$I$5*'Park Allocations'!T15","v":0},{"$f":"$D$4*$I$5*'Park Allocations'!U15","v":0},{"$f":"$D$4*$I$5*'Park Allocations'!V15","v":0},{"$f":"$D$4*$I$5*'Park Allocations'!W15","v":0},{"$f":"$D$4*$I$5*'Park Allocations'!X15","v":0},{"$f":"$D$4*$I$5*'Park Allocations'!Y15","v":0},{"$f":"$D$4*$I$5*'Park Allocations'!Z15","v":0},{"$f":"$D$4*$I$5*'Park Allocations'!AA15","v":0},{"$f":"$D$4*$I$5*'Park Allocations'!AB15","v":0},{"$f":"$D$4*$I$5*'Park Allocations'!AC15","v":0},{"$f":"$D$4*$I$5*'Park Allocations'!AD15","v":0},{"$f":"$D$4*$I$5*'Park Allocations'!AE15","v":0},{"$f":"$D$4*$I$5*'Park Allocations'!AF15","v":0},{"$f":"$D$4*$I$5*'Park Allocations'!AG15","v":0},{"$f":"$D$4*$I$5*'Park Allocations'!AH15","v":0},{"$f":"$D$4*$I$5*'Park Allocations'!AI15","v":0},{"$f":"$D$4*$I$5*'Park Allocations'!AJ15","v":0},{"$f":"$D$4*$I$5*'Park Allocations'!AK15","v":0},{"$f":"$D$4*$I$5*'Park Allocations'!AL15","v":0}]
[null,"048 - Court of Appeals","048","Court of Appeals",26.981158033724558,26.981158033724558,1,1.7727436290226384E-5,0,4.6249878062481486E-3,{"$f":"$D$4*$I$5*'Park Allocations'!E16","v":0},{"$f":"$D$4*$I$5*'Park Allocations'!F16","v":0},{"$f":"$D$4*$I$5*'Park Allocations'!G16","v":0},{"$f":"$D$4*$I$5*'Park Allocations'!H16","v":0},{"$f":"$D$4*$I$5*'Park Allocations'!I16","v":0},{"$f":"$D$4*$I$5*'Park Allocations'!J16","v":0},{"$f":"$D$4*$I$5*'Park Allocations'!K16","v":0},{"$f":"$D$4*$I$5*'Park Allocations'!L16","v":0},{"$f":"$D$4*$I$5*'Park Allocations'!M16","v":0},{"$f":"$D$4*$I$5*'Park Allocations'!N16","v":0},{"$f":"$D$4*$I$5*'Park Allocations'!O16","v":0},{"$f":"$D$4*$I$5*'Park Allocations'!P16","v":0},{"$f":"$D$4*$I$5*'Park Allocations'!Q16","v":0},{"$f":"$D$4*$I$5*'Park Allocations'!R16","v":0},{"$f":"$D$4*$I$5*'Park Allocations'!S16","v":0},{"$f":"$D$4*$I$5*'Park Allocations'!T16","v":0},{"$f":"$D$4*$I$5*'Park Allocations'!U16","v":0},{"$f":"$D$4*$I$5*'Park Allocations'!V16","v":0},{"$f":"$D$4*$I$5*'Park Allocations'!W16","v":0},{"$f":"$D$4*$I$5*'Park Allocations'!X16","v":0},{"$f":"$D$4*$I$5*'Park Allocations'!Y16","v":0},{"$f":"$D$4*$I$5*'Park Allocations'!Z16","v":0},{"$f":"$D$4*$I$5*'Park Allocations'!AA16","v":0},{"$f":"$D$4*$I$5*'Park Allocations'!AB16","v":0},{"$f":"$D$4*$I$5*'Park Allocations'!AC16","v":0},{"$f":"$D$4*$I$5*'Park Allocations'!AD16","v":0},{"$f":"$D$4*$I$5*'Park Allocations'!AE16","v":0},{"$f":"$D$4*$I$5*'Park Allocations'!AF16","v":0},{"$f":"$D$4*$I$5*'Park Allocations'!AG16","v":0},{"$f":"$D$4*$I$5*'Park Allocations'!AH16","v":0},{"$f":"$D$4*$I$5*'Park Allocations'!AI16","v":0},{"$f":"$D$4*$I$5*'Park Allocations'!AJ16","v":0},{"$f":"$D$4*$I$5*'Park Allocations'!AK16","v":0},{"$f":"$D$4*$I$5*'Park Allocations'!AL16","v":0}]
[null,"050 - Commission on Judicial Conduct","050","Commission on Judicial Conduct",215.84926426979646,215.84926426979646,8,1.4181949032181107E-4,0,1.0935123375058356E-3,{"$f":"$D$4*$I$5*'Park Allocations'!E17","v":0},{"$f":"$D$4*$I$5*'Park Allocations'!F17","v":0},{"$f":"$D$4*$I$5*'Park Allocations'!G17","v":0},{"$f":"$D$4*$I$5*'Park Allocations'!H17","v":0},{"$f":"$D$4*$I$5*'Park Allocations'!I17","v":0},{"$f":"$D$4*$I$5*'Park Allocations'!J17","v":0},{"$f":"$D$4*$I$5*'Park Allocations'!K17","v":0},{"$f":"$D$4*$I$5*'Park Allocations'!L17","v":0},{"$f":"$D$4*$I$5*'Park Allocations'!M17","v":0},{"$f":"$D$4*$I$5*'Park Allocations'!N17","v":0},{"$f":"$D$4*$I$5*'Park Allocations'!O17","v":0},{"$f":"$D$4*$I$5*'Park Allocations'!P17","v":0},{"$f":"$D$4*$I$5*'Park Allocations'!Q17","v":0},{"$f":"$D$4*$I$5*'Park Allocations'!R17","v":0},{"$f":"$D$4*$I$5*'Park Allocations'!S17","v":0},{"$f":"$D$4*$I$5*'Park Allocations'!T17","v":0},{"$f":"$D$4*$I$5*'Park Allocations'!U17","v":0},{"$f":"$D$4*$I$5*'Park Allocations'!V17","v":0},{"$f":"$D$4*$I$5*'Park Allocations'!W17","v":0},{"$f":"$D$4*$I$5*'Park Allocations'!X17","v":0},{"$f":"$D$4*$I$5*'Park Allocations'!Y17","v":0},{"$f":"$D$4*$I$5*'Park Allocations'!Z17","v":0},{"$f":"$D$4*$I$5*'Park Allocations'!AA17","v":0},{"$f":"$D$4*$I$5*'Park Allocations'!AB17","v":0},{"$f":"$D$4*$I$5*'Park Allocations'!AC17","v":0},{"$f":"$D$4*$I$5*'Park Allocations'!AD17","v":0},{"$f":"$D$4*$I$5*'Park Allocations'!AE17","v":0},{"$f":"$D$4*$I$5*'Park Allocations'!AF17","v":0},{"$f":"$D$4*$I$5*'Park Allocations'!AG17","v":0},{"$f":"$D$4*$I$5*'Park Allocations'!AH17","v":0},{"$f":"$D$4*$I$5*'Park Allocations'!AI17","v":0},{"$f":"$D$4*$I$5*'Park Allocations'!AJ17","v":0},{"$f":"$D$4*$I$5*'Park Allocations'!AK17","v":0},{"$f":"$D$4*$I$5*'Park Allocations'!AL17","v":0}]
[null,"055 - Administrative Office of the Courts","055","Administrative Office of the Courts",7031.7040483259198,6772.270666464864,251,4.4495865088468225E-3,1.7045557283906448E-4,1.2121832653965304E-3,{"$f":"$D$4*$I$5*'Park Allocations'!E18","v":0},{"$f":"$D$4*$I$5*'Park Allocations'!F18","v":0},{"$f":"$D$4*$I$5*'Park Allocations'!G18","v":0},{"$f":"$D$4*$I$5*'Park Allocations'!H18","v":0},{"$f":"$D$4*$I$5*'Park Allocations'!I18","v":0},{"$f":"$D$4*$I$5*'Park Allocations'!J18","v":0},{"$f":"$D$4*$I$5*'Park Allocations'!K18","v":0},{"$f":"$D$4*$I$5*'Park Allocations'!L18","v":0},{"$f":"$D$4*$I$5*'Park Allocations'!M18","v":0},{"$f":"$D$4*$I$5*'Park Allocations'!N18","v":0},{"$f":"$D$4*$I$5*'Park Allocations'!O18","v":0},{"$f":"$D$4*$I$5*'Park Allocations'!P18","v":0},{"$f":"$D$4*$I$5*'Park Allocations'!Q18","v":259.43338186105615},{"$f":"$D$4*$I$5*'Park Allocations'!R18","v":0},{"$f":"$D$4*$I$5*'Park Allocations'!S18","v":0},{"$f":"$D$4*$I$5*'Park Allocations'!T18","v":0},{"$f":"$D$4*$I$5*'Park Allocations'!U18","v":0},{"$f":"$D$4*$I$5*'Park Allocations'!V18","v":0},{"$f":"$D$4*$I$5*'Park Allocations'!W18","v":0},{"$f":"$D$4*$I$5*'Park Allocations'!X18","v":0},{"$f":"$D$4*$I$5*'Park Allocations'!Y18","v":0},{"$f":"$D$4*$I$5*'Park Allocations'!Z18","v":0},{"$f":"$D$4*$I$5*'Park Allocations'!AA18","v":0},{"$f":"$D$4*$I$5*'Park Allocations'!AB18","v":0},{"$f":"$D$4*$I$5*'Park Allocations'!AC18","v":0},{"$f":"$D$4*$I$5*'Park Allocations'!AD18","v":0},{"$f":"$D$4*$I$5*'Park Allocations'!AE18","v":0},{"$f":"$D$4*$I$5*'Park Allocations'!AF18","v":0},{"$f":"$D$4*$I$5*'Park Allocations'!AG18","v":0},{"$f":"$D$4*$I$5*'Park Allocations'!AH18","v":0},{"$f":"$D$4*$I$5*'Park Allocations'!AI18","v":0},{"$f":"$D$4*$I$5*'Park Allocations'!AJ18","v":0},{"$f":"$D$4*$I$5*'Park Allocations'!AK18","v":0},{"$f":"$D$4*$I$5*'Park Allocations'!AL18","v":0}]
[null,"056 - Office of Public Defense","056","Office of Public Defense",512.64200264076658,512.64200264076658,19,3.3682128951430132E-4,0,0,{"$f":"$D$4*$I$5*'Park Allocations'!E19","v":0},{"$f":"$D$4*$I$5*'Park Allocations'!F19","v":0},{"$f":"$D$4*$I$5*'Park Allocations'!G19","v":0},{"$f":"$D$4*$I$5*'Park Allocations'!H19","v":0},{"$f":"$D$4*$I$5*'Park Allocations'!I19","v":0},{"$f":"$D$4*$I$5*'Park Allocations'!J19","v":0},{"$f":"$D$4*$I$5*'Park Allocations'!K19","v":0},{"$f":"$D$4*$I$5*'Park Allocations'!L19","v":0},{"$f":"$D$4*$I$5*'Park Allocations'!M19","v":0},{"$f":"$D$4*$I$5*'Park Allocations'!N19","v":0},{"$f":"$D$4*$I$5*'Park Allocations'!O19","v":0},{"$f":"$D$4*$I$5*'Park Allocations'!P19","v":0},{"$f":"$D$4*$I$5*'Park Allocations'!Q19","v":0},{"$f":"$D$4*$I$5*'Park Allocations'!R19","v":0},{"$f":"$D$4*$I$5*'Park Allocations'!S19","v":0},{"$f":"$D$4*$I$5*'Park Allocations'!T19","v":0},{"$f":"$D$4*$I$5*'Park Allocations'!U19","v":0},{"$f":"$D$4*$I$5*'Park Allocations'!V19","v":0},{"$f":"$D$4*$I$5*'Park Allocations'!W19","v":0},{"$f":"$D$4*$I$5*'Park Allocations'!X19","v":0},{"$f":"$D$4*$I$5*'Park Allocations'!Y19","v":0},{"$f":"$D$4*$I$5*'Park Allocations'!Z19","v":0},{"$f":"$D$4*$I$5*'Park Allocations'!AA19","v":0},{"$f":"$D$4*$I$5*'Park Allocations'!AB19","v":0},{"$f":"$D$4*$I$5*'Park Allocations'!AC19","v":0},{"$f":"$D$4*$I$5*'Park Allocations'!AD19","v":0},{"$f":"$D$4*$I$5*'Park Allocations'!AE19","v":0},{"$f":"$D$4*$I$5*'Park Allocations'!AF19","v":0},{"$f":"$D$4*$I$5*'Park Allocations'!AG19","v":0},{"$f":"$D$4*$I$5*'Park Allocations'!AH19","v":0},{"$f":"$D$4*$I$5*'Park Allocations'!AI19","v":0},{"$f":"$D$4*$I$5*'Park Allocations'!AJ19","v":0},{"$f":"$D$4*$I$5*'Park Allocations'!AK19","v":0},{"$f":"$D$4*$I$5*'Park Allocations'!AL19","v":0}]
[null,"057 - Office of Civil Legal Aid","057","Office of Civil Legal Aid",80.943474101173678,80.943474101173678,3,5.3182308870679155E-5,0,0,{"$f":"$D$4*$I$5*'Park Allocations'!E20","v":0},{"$f":"$D$4*$I$5*'Park Allocations'!F20","v":0},{"$f":"$D$4*$I$5*'Park Allocations'!G20","v":0},{"$f":"$D$4*$I$5*'Park Allocations'!H20","v":0},{"$f":"$D$4*$I$5*'Park Allocations'!I20","v":0},{"$f":"$D$4*$I$5*'Park Allocations'!J20","v":0},{"$f":"$D$4*$I$5*'Park Allocations'!K20","v":0},{"$f":"$D$4*$I$5*'Park Allocations'!L20","v":0},{"$f":"$D$4*$I$5*'Park Allocations'!M20","v":0},{"$f":"$D$4*$I$5*'Park Allocations'!N20","v":0},{"$f":"$D$4*$I$5*'Park Allocations'!O20","v":0},{"$f":"$D$4*$I$5*'Park Allocations'!P20","v":0},{"$f":"$D$4*$I$5*'Park Allocations'!Q20","v":0},{"$f":"$D$4*$I$5*'Park Allocations'!R20","v":0},{"$f":"$D$4*$I$5*'Park Allocations'!S20","v":0},{"$f":"$D$4*$I$5*'Park Allocations'!T20","v":0},{"$f":"$D$4*$I$5*'Park Allocations'!U20","v":0},{"$f":"$D$4*$I$5*'Park Allocations'!V20","v":0},{"$f":"$D$4*$I$5*'Park Allocations'!W20","v":0},{"$f":"$D$4*$I$5*'Park Allocations'!X20","v":0},{"$f":"$D$4*$I$5*'Park Allocations'!Y20","v":0},{"$f":"$D$4*$I$5*'Park Allocations'!Z20","v":0},{"$f":"$D$4*$I$5*'Park Allocations'!AA20","v":0},{"$f":"$D$4*$I$5*'Park Allocations'!AB20","v":0},{"$f":"$D$4*$I$5*'Park Allocations'!AC20","v":0},{"$f":"$D$4*$I$5*'Park Allocations'!AD20","v":0},{"$f":"$D$4*$I$5*'Park Allocations'!AE20","v":0},{"$f":"$D$4*$I$5*'Park Allocations'!AF20","v":0},{"$f":"$D$4*$I$5*'Park Allocations'!AG20","v":0},{"$f":"$D$4*$I$5*'Park Allocations'!AH20","v":0},{"$f":"$D$4*$I$5*'Park Allocations'!AI20","v":0},{"$f":"$D$4*$I$5*'Park Allocations'!AJ20","v":0},{"$f":"$D$4*$I$5*'Park Allocations'!AK20","v":0},{"$f":"$D$4*$I$5*'Park Allocations'!AL20","v":0}]
[null,"075 - Office of the Governor","075","Office of the Governor",2806.9490832427309,1753.7752721920965,65,1.1522833588647151E-3,6.919670243433865E-4,4.950330366510285E-3,{"$f":"$D$4*$I$5*'Park Allocations'!E21","v":0},{"$f":"$D$4*$I$5*'Park Allocations'!F21","v":0},{"$f":"$D$4*$I$5*'Park Allocations'!G21","v":1053.1738110506342},{"$f":"$D$4*$I$5*'Park Allocations'!H21","v":0},{"$f":"$D$4*$I$5*'Park Allocations'!I21","v":0},{"$f":"$D$4*$I$5*'Park Allocations'!J21","v":0},{"$f":"$D$4*$I$5*'Park Allocations'!K21","v":0},{"$f":"$D$4*$I$5*'Park Allocations'!L21","v":0},{"$f":"$D$4*$I$5*'Park Allocations'!M21","v":0},{"$f":"$D$4*$I$5*'Park Allocations'!N21","v":0},{"$f":"$D$4*$I$5*'Park Allocations'!O21","v":0},{"$f":"$D$4*$I$5*'Park Allocations'!P21","v":0},{"$f":"$D$4*$I$5*'Park Allocations'!Q21","v":0},{"$f":"$D$4*$I$5*'Park Allocations'!R21","v":0},{"$f":"$D$4*$I$5*'Park Allocations'!S21","v":0},{"$f":"$D$4*$I$5*'Park Allocations'!T21","v":0},{"$f":"$D$4*$I$5*'Park Allocations'!U21","v":0},{"$f":"$D$4*$I$5*'Park Allocations'!V21","v":0},{"$f":"$D$4*$I$5*'Park Allocations'!W21","v":0},{"$f":"$D$4*$I$5*'Park Allocations'!X21","v":0},{"$f":"$D$4*$I$5*'Park Allocations'!Y21","v":0},{"$f":"$D$4*$I$5*'Park Allocations'!Z21","v":0},{"$f":"$D$4*$I$5*'Park Allocations'!AA21","v":0},{"$f":"$D$4*$I$5*'Park Allocations'!AB21","v":0},{"$f":"$D$4*$I$5*'Park Allocations'!AC21","v":0},{"$f":"$D$4*$I$5*'Park Allocations'!AD21","v":0},{"$f":"$D$4*$I$5*'Park Allocations'!AE21","v":0},{"$f":"$D$4*$I$5*'Park Allocations'!AF21","v":0},{"$f":"$D$4*$I$5*'Park Allocations'!AG21","v":0},{"$f":"$D$4*$I$5*'Park Allocations'!AH21","v":0},{"$f":"$D$4*$I$5*'Park Allocations'!AI21","v":0},{"$f":"$D$4*$I$5*'Park Allocations'!AJ21","v":0},{"$f":"$D$4*$I$5*'Park Allocations'!AK21","v":0},{"$f":"$D$4*$I$5*'Park Allocations'!AL21","v":0}]
[null,"080 - Office of Lieutenant Governor","080","Office of Lieutenant Governor",703.45642141688791,161.88694820234736,6,1.0636461774135831E-4,3.5582751196750368E-4,2.5455891332451914E-3,{"$f":"$D$4*$I$5*'Park Allocations'!E22","v":0},{"$f":"$D$4*$I$5*'Park Allocations'!F22","v":0},{"$f":"$D$4*$I$5*'Park Allocations'!G22","v":541.56947321454061},{"$f":"$D$4*$I$5*'Park Allocations'!H22","v":0},{"$f":"$D$4*$I$5*'Park Allocations'!I22","v":0},{"$f":"$D$4*$I$5*'Park Allocations'!J22","v":0},{"$f":"$D$4*$I$5*'Park Allocations'!K22","v":0},{"$f":"$D$4*$I$5*'Park Allocations'!L22","v":0},{"$f":"$D$4*$I$5*'Park Allocations'!M22","v":0},{"$f":"$D$4*$I$5*'Park Allocations'!N22","v":0},{"$f":"$D$4*$I$5*'Park Allocations'!O22","v":0},{"$f":"$D$4*$I$5*'Park Allocations'!P22","v":0},{"$f":"$D$4*$I$5*'Park Allocations'!Q22","v":0},{"$f":"$D$4*$I$5*'Park Allocations'!R22","v":0},{"$f":"$D$4*$I$5*'Park Allocations'!S22","v":0},{"$f":"$D$4*$I$5*'Park Allocations'!T22","v":0},{"$f":"$D$4*$I$5*'Park Allocations'!U22","v":0},{"$f":"$D$4*$I$5*'Park Allocations'!V22","v":0},{"$f":"$D$4*$I$5*'Park Allocations'!W22","v":0},{"$f":"$D$4*$I$5*'Park Allocations'!X22","v":0},{"$f":"$D$4*$I$5*'Park Allocations'!Y22","v":0},{"$f":"$D$4*$I$5*'Park Allocations'!Z22","v":0},{"$f":"$D$4*$I$5*'Park Allocations'!AA22","v":0},{"$f":"$D$4*$I$5*'Park Allocations'!AB22","v":0},{"$f":"$D$4*$I$5*'Park Allocations'!AC22","v":0},{"$f":"$D$4*$I$5*'Park Allocations'!AD22","v":0},{"$f":"$D$4*$I$5*'Park Allocations'!AE22","v":0},{"$f":"$D$4*$I$5*'Park Allocations'!AF22","v":0},{"$f":"$D$4*$I$5*'Park Allocations'!AG22","v":0},{"$f":"$D$4*$I$5*'Park Allocations'!AH22","v":0},{"$f":"$D$4*$I$5*'Park Allocations'!AI22","v":0},{"$f":"$D$4*$I$5*'Park Allocations'!AJ22","v":0},{"$f":"$D$4*$I$5*'Park Allocations'!AK22","v":0},{"$f":"$D$4*$I$5*'Park Allocations'!AL22","v":0}]
[null,"082 - Public Disclosure Commission","082","Public Disclosure Commission",836.41589904546117,836.41589904546117,31,5.4955052499701786E-4,0,0,{"$f":"$D$4*$I$5*'Park Allocations'!E23","v":0},{"$f":"$D$4*$I$5*'Park Allocations'!F23","v":0},{"$f":"$D$4*$I$5*'Park Allocations'!G23","v":0},{"$f":"$D$4*$I$5*'Park Allocations'!H23","v":0},{"$f":"$D$4*$I$5*'Park Allocations'!I23","v":0},{"$f":"$D$4*$I$5*'Park Allocations'!J23","v":0},{"$f":"$D$4*$I$5*'Park Allocations'!K23","v":0},{"$f":"$D$4*$I$5*'Park Allocations'!L23","v":0},{"$f":"$D$4*$I$5*'Park Allocations'!M23","v":0},{"$f":"$D$4*$I$5*'Park Allocations'!N23","v":0},{"$f":"$D$4*$I$5*'Park Allocations'!O23","v":0},{"$f":"$D$4*$I$5*'Park Allocations'!P23","v":0},{"$f":"$D$4*$I$5*'Park Allocations'!Q23","v":0},{"$f":"$D$4*$I$5*'Park Allocations'!R23","v":0},{"$f":"$D$4*$I$5*'Park Allocations'!S23","v":0},{"$f":"$D$4*$I$5*'Park Allocations'!T23","v":0},{"$f":"$D$4*$I$5*'Park Allocations'!U23","v":0},{"$f":"$D$4*$I$5*'Park Allocations'!V23","v":0},{"$f":"$D$4*$I$5*'Park Allocations'!W23","v":0},{"$f":"$D$4*$I$5*'Park Allocations'!X23","v":0},{"$f":"$D$4*$I$5*'Park Allocations'!Y23","v":0},{"$f":"$D$4*$I$5*'Park Allocations'!Z23","v":0},{"$f":"$D$4*$I$5*'Park Allocations'!AA23","v":0},{"$f":"$D$4*$I$5*'Park Allocations'!AB23","v":0},{"$f":"$D$4*$I$5*'Park Allocations'!AC23","v":0},{"$f":"$D$4*$I$5*'Park Allocations'!AD23","v":0},{"$f":"$D$4*$I$5*'Park Allocations'!AE23","v":0},{"$f":"$D$4*$I$5*'Park Allocations'!AF23","v":0},{"$f":"$D$4*$I$5*'Park Allocations'!AG23","v":0},{"$f":"$D$4*$I$5*'Park Allocations'!AH23","v":0},{"$f":"$D$4*$I$5*'Park Allocations'!AI23","v":0},{"$f":"$D$4*$I$5*'Park Allocations'!AJ23","v":0},{"$f":"$D$4*$I$5*'Park Allocations'!AK23","v":0},{"$f":"$D$4*$I$5*'Park Allocations'!AL23","v":0}]
[null,"085 - Office of the Secretary of State","085","Office of the Secretary of State",9886.8265733906846,6313.5909798915472,234,4.1482200919129748E-3,2.3477237802228242E-3,2.0807629328189532E-2,{"$f":"$D$4*$I$5*'Park Allocations'!E24","v":0},{"$f":"$D$4*$I$5*'Park Allocations'!F24","v":0},{"$f":"$D$4*$I$5*'Park Allocations'!G24","v":649.95660240419852},{"$f":"$D$4*$I$5*'Park Allocations'!H24","v":0},{"$f":"$D$4*$I$5*'Park Allocations'!I24","v":0},{"$f":"$D$4*$I$5*'Park Allocations'!J24","v":0},{"$f":"$D$4*$I$5*'Park Allocations'!K24","v":2923.27899109494},{"$f":"$D$4*$I$5*'Park Allocations'!L24","v":0},{"$f":"$D$4*$I$5*'Park Allocations'!M24","v":0},{"$f":"$D$4*$I$5*'Park Allocations'!N24","v":0},{"$f":"$D$4*$I$5*'Park Allocations'!O24","v":0},{"$f":"$D$4*$I$5*'Park Allocations'!P24","v":0},{"$f":"$D$4*$I$5*'Park Allocations'!Q24","v":0},{"$f":"$D$4*$I$5*'Park Allocations'!R24","v":0},{"$f":"$D$4*$I$5*'Park Allocations'!S24","v":0},{"$f":"$D$4*$I$5*'Park Allocations'!T24","v":0},{"$f":"$D$4*$I$5*'Park Allocations'!U24","v":0},{"$f":"$D$4*$I$5*'Park Allocations'!V24","v":0},{"$f":"$D$4*$I$5*'Park Allocations'!W24","v":0},{"$f":"$D$4*$I$5*'Park Allocations'!X24","v":0},{"$f":"$D$4*$I$5*'Park Allocations'!Y24","v":0},{"$f":"$D$4*$I$5*'Park Allocations'!Z24","v":0},{"$f":"$D$4*$I$5*'Park Allocations'!AA24","v":0},{"$f":"$D$4*$I$5*'Park Allocations'!AB24","v":0},{"$f":"$D$4*$I$5*'Park Allocations'!AC24","v":0},{"$f":"$D$4*$I$5*'Park Allocations'!AD24","v":0},{"$f":"$D$4*$I$5*'Park Allocations'!AE24","v":0},{"$f":"$D$4*$I$5*'Park Allocations'!AF24","v":0},{"$f":"$D$4*$I$5*'Park Allocations'!AG24","v":0},{"$f":"$D$4*$I$5*'Park Allocations'!AH24","v":0},{"$f":"$D$4*$I$5*'Park Allocations'!AI24","v":0},{"$f":"$D$4*$I$5*'Park Allocations'!AJ24","v":0},{"$f":"$D$4*$I$5*'Park Allocations'!AK24","v":0},{"$f":"$D$4*$I$5*'Park Allocations'!AL24","v":0}]
[null,"086 - Governor's Office of Indian Affairs","086","Governor's Office of Indian Affairs",26.981158033724558,26.981158033724558,1,1.7727436290226384E-5,0,2.7723443223336348E-4,{"$f":"$D$4*$I$5*'Park Allocations'!E25","v":0},{"$f":"$D$4*$I$5*'Park Allocations'!F25","v":0},{"$f":"$D$4*$I$5*'Park Allocations'!G25","v":0},{"$f":"$D$4*$I$5*'Park Allocations'!H25","v":0},{"$f":"$D$4*$I$5*'Park Allocations'!I25","v":0},{"$f":"$D$4*$I$5*'Park Allocations'!J25","v":0},{"$f":"$D$4*$I$5*'Park Allocations'!K25","v":0},{"$f":"$D$4*$I$5*'Park Allocations'!L25","v":0},{"$f":"$D$4*$I$5*'Park Allocations'!M25","v":0},{"$f":"$D$4*$I$5*'Park Allocations'!N25","v":0},{"$f":"$D$4*$I$5*'Park Allocations'!O25","v":0},{"$f":"$D$4*$I$5*'Park Allocations'!P25","v":0},{"$f":"$D$4*$I$5*'Park Allocations'!Q25","v":0},{"$f":"$D$4*$I$5*'Park Allocations'!R25","v":0},{"$f":"$D$4*$I$5*'Park Allocations'!S25","v":0},{"$f":"$D$4*$I$5*'Park Allocations'!T25","v":0},{"$f":"$D$4*$I$5*'Park Allocations'!U25","v":0},{"$f":"$D$4*$I$5*'Park Allocations'!V25","v":0},{"$f":"$D$4*$I$5*'Park Allocations'!W25","v":0},{"$f":"$D$4*$I$5*'Park Allocations'!X25","v":0},{"$f":"$D$4*$I$5*'Park Allocations'!Y25","v":0},{"$f":"$D$4*$I$5*'Park Allocations'!Z25","v":0},{"$f":"$D$4*$I$5*'Park Allocations'!AA25","v":0},{"$f":"$D$4*$I$5*'Park Allocations'!AB25","v":0},{"$f":"$D$4*$I$5*'Park Allocations'!AC25","v":0},{"$f":"$D$4*$I$5*'Park Allocations'!AD25","v":0},{"$f":"$D$4*$I$5*'Park Allocations'!AE25","v":0},{"$f":"$D$4*$I$5*'Park Allocations'!AF25","v":0},{"$f":"$D$4*$I$5*'Park Allocations'!AG25","v":0},{"$f":"$D$4*$I$5*'Park Allocations'!AH25","v":0},{"$f":"$D$4*$I$5*'Park Allocations'!AI25","v":0},{"$f":"$D$4*$I$5*'Park Allocations'!AJ25","v":0},{"$f":"$D$4*$I$5*'Park Allocations'!AK25","v":0},{"$f":"$D$4*$I$5*'Park Allocations'!AL25","v":0}]
[null,"087 - Commission on Asian Pacific American Affairs","087","Commission on Asian Pacific American Affairs",80.943474101173678,80.943474101173678,3,5.3182308870679155E-5,0,1.8235770961691519E-4,{"$f":"$D$4*$I$5*'Park Allocations'!E26","v":0},{"$f":"$D$4*$I$5*'Park Allocations'!F26","v":0},{"$f":"$D$4*$I$5*'Park Allocations'!G26","v":0},{"$f":"$D$4*$I$5*'Park Allocations'!H26","v":0},{"$f":"$D$4*$I$5*'Park Allocations'!I26","v":0},{"$f":"$D$4*$I$5*'Park Allocations'!J26","v":0},{"$f":"$D$4*$I$5*'Park Allocations'!K26","v":0},{"$f":"$D$4*$I$5*'Park Allocations'!L26","v":0},{"$f":"$D$4*$I$5*'Park Allocations'!M26","v":0},{"$f":"$D$4*$I$5*'Park Allocations'!N26","v":0},{"$f":"$D$4*$I$5*'Park Allocations'!O26","v":0},{"$f":"$D$4*$I$5*'Park Allocations'!P26","v":0},{"$f":"$D$4*$I$5*'Park Allocations'!Q26","v":0},{"$f":"$D$4*$I$5*'Park Allocations'!R26","v":0},{"$f":"$D$4*$I$5*'Park Allocations'!S26","v":0},{"$f":"$D$4*$I$5*'Park Allocations'!T26","v":0},{"$f":"$D$4*$I$5*'Park Allocations'!U26","v":0},{"$f":"$D$4*$I$5*'Park Allocations'!V26","v":0},{"$f":"$D$4*$I$5*'Park Allocations'!W26","v":0},{"$f":"$D$4*$I$5*'Park Allocations'!X26","v":0},{"$f":"$D$4*$I$5*'Park Allocations'!Y26","v":0},{"$f":"$D$4*$I$5*'Park Allocations'!Z26","v":0},{"$f":"$D$4*$I$5*'Park Allocations'!AA26","v":0},{"$f":"$D$4*$I$5*'Park Allocations'!AB26","v":0},{"$f":"$D$4*$I$5*'Park Allocations'!AC26","v":0},{"$f":"$D$4*$I$5*'Park Allocations'!AD26","v":0},{"$f":"$D$4*$I$5*'Park Allocations'!AE26","v":0},{"$f":"$D$4*$I$5*'Park Allocations'!AF26","v":0},{"$f":"$D$4*$I$5*'Park Allocations'!AG26","v":0},{"$f":"$D$4*$I$5*'Park Allocations'!AH26","v":0},{"$f":"$D$4*$I$5*'Park Allocations'!AI26","v":0},{"$f":"$D$4*$I$5*'Park Allocations'!AJ26","v":0},{"$f":"$D$4*$I$5*'Park Allocations'!AK26","v":0},{"$f":"$D$4*$I$5*'Park Allocations'!AL26","v":0}]
[null,"090 - Office of State Treasurer","090","Office of State Treasurer",2272.792955709951,1618.8694820234734,60,1.0636461774135831E-3,4.2964748599637163E-4,3.0736970433538685E-3,{"$f":"$D$4*$I$5*'Park Allocations'!E27","v":0},{"$f":"$D$4*$I$5*'Park Allocations'!F27","v":0},{"$f":"$D$4*$I$5*'Park Allocations'!G27","v":653.92347368647768},{"$f":"$D$4*$I$5*'Park Allocations'!H27","v":0},{"$f":"$D$4*$I$5*'Park Allocations'!I27","v":0},{"$f":"$D$4*$I$5*'Park Allocations'!J27","v":0},{"$f":"$D$4*$I$5*'Park Allocations'!K27","v":0},{"$f":"$D$4*$I$5*'Park Allocations'!L27","v":0},{"$f":"$D$4*$I$5*'Park Allocations'!M27","v":0},{"$f":"$D$4*$I$5*'Park Allocations'!N27","v":0},{"$f":"$D$4*$I$5*'Park Allocations'!O27","v":0},{"$f":"$D$4*$I$5*'Park Allocations'!P27","v":0},{"$f":"$D$4*$I$5*'Park Allocations'!Q27","v":0},{"$f":"$D$4*$I$5*'Park Allocations'!R27","v":0},{"$f":"$D$4*$I$5*'Park Allocations'!S27","v":0},{"$f":"$D$4*$I$5*'Park Allocations'!T27","v":0},{"$f":"$D$4*$I$5*'Park Allocations'!U27","v":0},{"$f":"$D$4*$I$5*'Park Allocations'!V27","v":0},{"$f":"$D$4*$I$5*'Park Allocations'!W27","v":0},{"$f":"$D$4*$I$5*'Park Allocations'!X27","v":0},{"$f":"$D$4*$I$5*'Park Allocations'!Y27","v":0},{"$f":"$D$4*$I$5*'Park Allocations'!Z27","v":0},{"$f":"$D$4*$I$5*'Park Allocations'!AA27","v":0},{"$f":"$D$4*$I$5*'Park Allocations'!AB27","v":0},{"$f":"$D$4*$I$5*'Park Allocations'!AC27","v":0},{"$f":"$D$4*$I$5*'Park Allocations'!AD27","v":0},{"$f":"$D$4*$I$5*'Park Allocations'!AE27","v":0},{"$f":"$D$4*$I$5*'Park Allocations'!AF27","v":0},{"$f":"$D$4*$I$5*'Park Allocations'!AG27","v":0},{"$f":"$D$4*$I$5*'Park Allocations'!AH27","v":0},{"$f":"$D$4*$I$5*'Park Allocations'!AI27","v":0},{"$f":"$D$4*$I$5*'Park Allocations'!AJ27","v":0},{"$f":"$D$4*$I$5*'Park Allocations'!AK27","v":0},{"$f":"$D$4*$I$5*'Park Allocations'!AL27","v":0}]
[null,"095 - Office of State Auditor","095","Office of State Auditor",4816.226512330426,4424.9099175308274,164,2.9072995515971273E-3,2.5710682969750211E-4,2.2617068751083257E-3,{"$f":"$D$4*$I$5*'Park Allocations'!E28","v":0},{"$f":"$D$4*$I$5*'Park Allocations'!F28","v":0},{"$f":"$D$4*$I$5*'Park Allocations'!G28","v":0},{"$f":"$D$4*$I$5*'Park Allocations'!H28","v":0},{"$f":"$D$4*$I$5*'Park Allocations'!I28","v":0},{"$f":"$D$4*$I$5*'Park Allocations'!J28","v":0},{"$f":"$D$4*$I$5*'Park Allocations'!K28","v":0},{"$f":"$D$4*$I$5*'Park Allocations'!L28","v":0},{"$f":"$D$4*$I$5*'Park Allocations'!M28","v":0},{"$f":"$D$4*$I$5*'Park Allocations'!N28","v":0},{"$f":"$D$4*$I$5*'Park Allocations'!O28","v":391.31659479959825},{"$f":"$D$4*$I$5*'Park Allocations'!P28","v":0},{"$f":"$D$4*$I$5*'Park Allocations'!Q28","v":0},{"$f":"$D$4*$I$5*'Park Allocations'!R28","v":0},{"$f":"$D$4*$I$5*'Park Allocations'!S28","v":0},{"$f":"$D$4*$I$5*'Park Allocations'!T28","v":0},{"$f":"$D$4*$I$5*'Park Allocations'!U28","v":0},{"$f":"$D$4*$I$5*'Park Allocations'!V28","v":0},{"$f":"$D$4*$I$5*'Park Allocations'!W28","v":0},{"$f":"$D$4*$I$5*'Park Allocations'!X28","v":0},{"$f":"$D$4*$I$5*'Park Allocations'!Y28","v":0},{"$f":"$D$4*$I$5*'Park Allocations'!Z28","v":0},{"$f":"$D$4*$I$5*'Park Allocations'!AA28","v":0},{"$f":"$D$4*$I$5*'Park Allocations'!AB28","v":0},{"$f":"$D$4*$I$5*'Park Allocations'!AC28","v":0},{"$f":"$D$4*$I$5*'Park Allocations'!AD28","v":0},{"$f":"$D$4*$I$5*'Park Allocations'!AE28","v":0},{"$f":"$D$4*$I$5*'Park Allocations'!AF28","v":0},{"$f":"$D$4*$I$5*'Park Allocations'!AG28","v":0},{"$f":"$D$4*$I$5*'Park Allocations'!AH28","v":0},{"$f":"$D$4*$I$5*'Park Allocations'!AI28","v":0},{"$f":"$D$4*$I$5*'Park Allocations'!AJ28","v":0},{"$f":"$D$4*$I$5*'Park Allocations'!AK28","v":0},{"$f":"$D$4*$I$5*'Park Allocations'!AL28","v":0}]
[null,"099 - Citizens' Commission on Salaries for Elected Officials","099","Citizens' Commission on Salaries for Elected Officials",80.943474101173678,80.943474101173678,3,5.3182308870679155E-5,0,1.407302834355336E-4,{"$f":"$D$4*$I$5*'Park Allocations'!E29","v":0},{"$f":"$D$4*$I$5*'Park Allocations'!F29","v":0},{"$f":"$D$4*$I$5*'Park Allocations'!G29","v":0},{"$f":"$D$4*$I$5*'Park Allocations'!H29","v":0},{"$f":"$D$4*$I$5*'Park Allocations'!I29","v":0},{"$f":"$D$4*$I$5*'Park Allocations'!J29","v":0},{"$f":"$D$4*$I$5*'Park Allocations'!K29","v":0},{"$f":"$D$4*$I$5*'Park Allocations'!L29","v":0},{"$f":"$D$4*$I$5*'Park Allocations'!M29","v":0},{"$f":"$D$4*$I$5*'Park Allocations'!N29","v":0},{"$f":"$D$4*$I$5*'Park Allocations'!O29","v":0},{"$f":"$D$4*$I$5*'Park Allocations'!P29","v":0},{"$f":"$D$4*$I$5*'Park Allocations'!Q29","v":0},{"$f":"$D$4*$I$5*'Park Allocations'!R29","v":0},{"$f":"$D$4*$I$5*'Park Allocations'!S29","v":0},{"$f":"$D$4*$I$5*'Park Allocations'!T29","v":0},{"$f":"$D$4*$I$5*'Park Allocations'!U29","v":0},{"$f":"$D$4*$I$5*'Park Allocations'!V29","v":0},{"$f":"$D$4*$I$5*'Park Allocations'!W29","v":0},{"$f":"$D$4*$I$5*'Park Allocations'!X29","v":0},{"$f":"$D$4*$I$5*'Park Allocations'!Y29","v":0},{"$f":"$D$4*$I$5*'Park Allocations'!Z29","v":0},{"$f":"$D$4*$I$5*'Park Allocations'!AA29","v":0},{"$f":"$D$4*$I$5*'Park Allocations'!AB29","v":0},{"$f":"$D$4*$I$5*'Park Allocations'!AC29","v":0},{"$f":"$D$4*$I$5*'Park Allocations'!AD29","v":0},{"$f":"$D$4*$I$5*'Park Allocations'!AE29","v":0},{"$f":"$D$4*$I$5*'Park Allocations'!AF29","v":0},{"$f":"$D$4*$I$5*'Park Allocations'!AG29","v":0},{"$f":"$D$4*$I$5*'Park Allocations'!AH29","v":0},{"$f":"$D$4*$I$5*'Park Allocations'!AI29","v":0},{"$f":"$D$4*$I$5*'Park Allocations'!AJ29","v":0},{"$f":"$D$4*$I$5*'Park Allocations'!AK29","v":0},{"$f":"$D$4*$I$5*'Park Allocations'!AL29","v":0}]
[null,"100 - Office of Attorney General","100","Office of Attorney General",22915.163454231708,18482.093253101324,685,1.2143293858805075E-2,2.9126611045534709E-3,1.9317486901242777E-2,{"$f":"$D$4*$I$5*'Park Allocations'!E30","v":0},{"$f":"$D$4*$I$5*'Park Allocations'!F30","v":0},{"$f":"$D$4*$I$5*'Park Allocations'!G30","v":0},{"$f":"$D$4*$I$5*'Park Allocations'!H30","v":0},{"$f":"$D$4*$I$5*'Park Allocations'!I30","v":4433.0702011303829},{"$f":"$D$4*$I$5*'Park Allocations'!J30","v":0},{"$f":"$D$4*$I$5*'Park Allocations'!K30","v":0},{"$f":"$D$4*$I$5*'Park Allocations'!L30","v":0},{"$f":"$D$4*$I$5*'Park Allocations'!M30","v":0},{"$f":"$D$4*$I$5*'Park Allocations'!N30","v":0},{"$f":"$D$4*$I$5*'Park Allocations'!O30","v":0},{"$f":"$D$4*$I$5*'Park Allocations'!P30","v":0},{"$f":"$D$4*$I$5*'Park Allocations'!Q30","v":0},{"$f":"$D$4*$I$5*'Park Allocations'!R30","v":0},{"$f":"$D$4*$I$5*'Park Allocations'!S30","v":0},{"$f":"$D$4*$I$5*'Park Allocations'!T30","v":0},{"$f":"$D$4*$I$5*'Park Allocations'!U30","v":0},{"$f":"$D$4*$I$5*'Park Allocations'!V30","v":0},{"$f":"$D$4*$I$5*'Park Allocations'!W30","v":0},{"$f":"$D$4*$I$5*'Park Allocations'!X30","v":0},{"$f":"$D$4*$I$5*'Park Allocations'!Y30","v":0},{"$f":"$D$4*$I$5*'Park Allocations'!Z30","v":0},{"$f":"$D$4*$I$5*'Park Allocations'!AA30","v":0},{"$f":"$D$4*$I$5*'Park Allocations'!AB30","v":0},{"$f":"$D$4*$I$5*'Park Allocations'!AC30","v":0},{"$f":"$D$4*$I$5*'Park Allocations'!AD30","v":0},{"$f":"$D$4*$I$5*'Park Allocations'!AE30","v":0},{"$f":"$D$4*$I$5*'Park Allocations'!AF30","v":0},{"$f":"$D$4*$I$5*'Park Allocations'!AG30","v":0},{"$f":"$D$4*$I$5*'Park Allocations'!AH30","v":0},{"$f":"$D$4*$I$5*'Park Allocations'!AI30","v":0},{"$f":"$D$4*$I$5*'Park Allocations'!AJ30","v":0},{"$f":"$D$4*$I$5*'Park Allocations'!AK30","v":0},{"$f":"$D$4*$I$5*'Park Allocations'!AL30","v":0}]
[null,"101 - Caseload Forecast Council","101","Caseload Forecast Council",269.81158033724563,269.81158033724563,10,1.7727436290226387E-4,0,1.0899201230637873E-3,{"$f":"$D$4*$I$5*'Park Allocations'!E31","v":0},{"$f":"$D$4*$I$5*'Park Allocations'!F31","v":0},{"$f":"$D$4*$I$5*'Park Allocations'!G31","v":0},{"$f":"$D$4*$I$5*'Park Allocations'!H31","v":0},{"$f":"$D$4*$I$5*'Park Allocations'!I31","v":0},{"$f":"$D$4*$I$5*'Park Allocations'!J31","v":0},{"$f":"$D$4*$I$5*'Park Allocations'!K31","v":0},{"$f":"$D$4*$I$5*'Park Allocations'!L31","v":0},{"$f":"$D$4*$I$5*'Park Allocations'!M31","v":0},{"$f":"$D$4*$I$5*'Park Allocations'!N31","v":0},{"$f":"$D$4*$I$5*'Park Allocations'!O31","v":0},{"$f":"$D$4*$I$5*'Park Allocations'!P31","v":0},{"$f":"$D$4*$I$5*'Park Allocations'!Q31","v":0},{"$f":"$D$4*$I$5*'Park Allocations'!R31","v":0},{"$f":"$D$4*$I$5*'Park Allocations'!S31","v":0},{"$f":"$D$4*$I$5*'Park Allocations'!T31","v":0},{"$f":"$D$4*$I$5*'Park Allocations'!U31","v":0},{"$f":"$D$4*$I$5*'Park Allocations'!V31","v":0},{"$f":"$D$4*$I$5*'Park Allocations'!W31","v":0},{"$f":"$D$4*$I$5*'Park Allocations'!X31","v":0},{"$f":"$D$4*$I$5*'Park Allocations'!Y31","v":0},{"$f":"$D$4*$I$5*'Park Allocations'!Z31","v":0},{"$f":"$D$4*$I$5*'Park Allocations'!AA31","v":0},{"$f":"$D$4*$I$5*'Park Allocations'!AB31","v":0},{"$f":"$D$4*$I$5*'Park Allocations'!AC31","v":0},{"$f":"$D$4*$I$5*'Park Allocations'!AD31","v":0},{"$f":"$D$4*$I$5*'Park Allocations'!AE31","v":0},{"$f":"$D$4*$I$5*'Park Allocations'!AF31","v":0},{"$f":"$D$4*$I$5*'Park Allocations'!AG31","v":0},{"$f":"$D$4*$I$5*'Park Allocations'!AH31","v":0},{"$f":"$D$4*$I$5*'Park Allocations'!AI31","v":0},{"$f":"$D$4*$I$5*'Park Allocations'!AJ31","v":0},{"$f":"$D$4*$I$5*'Park Allocations'!AK31","v":0},{"$f":"$D$4*$I$5*'Park Allocations'!AL31","v":0}]
[null,"102 - Department of Financial Institutions","102","Department of Financial Institutions",4343.9664434296537,4343.9664434296537,161,2.8541172427264481E-3,0,0,{"$f":"$D$4*$I$5*'Park Allocations'!E32","v":0},{"$f":"$D$4*$I$5*'Park Allocations'!F32","v":0},{"$f":"$D$4*$I$5*'Park Allocations'!G32","v":0},{"$f":"$D$4*$I$5*'Park Allocations'!H32","v":0},{"$f":"$D$4*$I$5*'Park Allocations'!I32","v":0},{"$f":"$D$4*$I$5*'Park Allocations'!J32","v":0},{"$f":"$D$4*$I$5*'Park Allocations'!K32","v":0},{"$f":"$D$4*$I$5*'Park Allocations'!L32","v":0},{"$f":"$D$4*$I$5*'Park Allocations'!M32","v":0},{"$f":"$D$4*$I$5*'Park Allocations'!N32","v":0},{"$f":"$D$4*$I$5*'Park Allocations'!O32","v":0},{"$f":"$D$4*$I$5*'Park Allocations'!P32","v":0},{"$f":"$D$4*$I$5*'Park Allocations'!Q32","v":0},{"$f":"$D$4*$I$5*'Park Allocations'!R32","v":0},{"$f":"$D$4*$I$5*'Park Allocations'!S32","v":0},{"$f":"$D$4*$I$5*'Park Allocations'!T32","v":0},{"$f":"$D$4*$I$5*'Park Allocations'!U32","v":0},{"$f":"$D$4*$I$5*'Park Allocations'!V32","v":0},{"$f":"$D$4*$I$5*'Park Allocations'!W32","v":0},{"$f":"$D$4*$I$5*'Park Allocations'!X32","v":0},{"$f":"$D$4*$I$5*'Park Allocations'!Y32","v":0},{"$f":"$D$4*$I$5*'Park Allocations'!Z32","v":0},{"$f":"$D$4*$I$5*'Park Allocations'!AA32","v":0},{"$f":"$D$4*$I$5*'Park Allocations'!AB32","v":0},{"$f":"$D$4*$I$5*'Park Allocations'!AC32","v":0},{"$f":"$D$4*$I$5*'Park Allocations'!AD32","v":0},{"$f":"$D$4*$I$5*'Park Allocations'!AE32","v":0},{"$f":"$D$4*$I$5*'Park Allocations'!AF32","v":0},{"$f":"$D$4*$I$5*'Park Allocations'!AG32","v":0},{"$f":"$D$4*$I$5*'Park Allocations'!AH32","v":0},{"$f":"$D$4*$I$5*'Park Allocations'!AI32","v":0},{"$f":"$D$4*$I$5*'Park Allocations'!AJ32","v":0},{"$f":"$D$4*$I$5*'Park Allocations'!AK32","v":0},{"$f":"$D$4*$I$5*'Park Allocations'!AL32","v":0}]
[null,"103 - Department of Commerce","103","Department of Commerce",8283.2155163534389,8283.2155163534389,307,5.4423229410994999E-3,0,0,{"$f":"$D$4*$I$5*'Park Allocations'!E33","v":0},{"$f":"$D$4*$I$5*'Park Allocations'!F33","v":0},{"$f":"$D$4*$I$5*'Park Allocations'!G33","v":0},{"$f":"$D$4*$I$5*'Park Allocations'!H33","v":0},{"$f":"$D$4*$I$5*'Park Allocations'!I33","v":0},{"$f":"$D$4*$I$5*'Park Allocations'!J33","v":0},{"$f":"$D$4*$I$5*'Park Allocations'!K33","v":0},{"$f":"$D$4*$I$5*'Park Allocations'!L33","v":0},{"$f":"$D$4*$I$5*'Park Allocations'!M33","v":0},{"$f":"$D$4*$I$5*'Park Allocations'!N33","v":0},{"$f":"$D$4*$I$5*'Park Allocations'!O33","v":0},{"$f":"$D$4*$I$5*'Park Allocations'!P33","v":0},{"$f":"$D$4*$I$5*'Park Allocations'!Q33","v":0},{"$f":"$D$4*$I$5*'Park Allocations'!R33","v":0},{"$f":"$D$4*$I$5*'Park Allocations'!S33","v":0},{"$f":"$D$4*$I$5*'Park Allocations'!T33","v":0},{"$f":"$D$4*$I$5*'Park Allocations'!U33","v":0},{"$f":"$D$4*$I$5*'Park Allocations'!V33","v":0},{"$f":"$D$4*$I$5*'Park Allocations'!W33","v":0},{"$f":"$D$4*$I$5*'Park Allocations'!X33","v":0},{"$f":"$D$4*$I$5*'Park Allocations'!Y33","v":0},{"$f":"$D$4*$I$5*'Park Allocations'!Z33","v":0},{"$f":"$D$4*$I$5*'Park Allocations'!AA33","v":0},{"$f":"$D$4*$I$5*'Park Allocations'!AB33","v":0},{"$f":"$D$4*$I$5*'Park Allocations'!AC33","v":0},{"$f":"$D$4*$I$5*'Park Allocations'!AD33","v":0},{"$f":"$D$4*$I$5*'Park Allocations'!AE33","v":0},{"$f":"$D$4*$I$5*'Park Allocations'!AF33","v":0},{"$f":"$D$4*$I$5*'Park Allocations'!AG33","v":0},{"$f":"$D$4*$I$5*'Park Allocations'!AH33","v":0},{"$f":"$D$4*$I$5*'Park Allocations'!AI33","v":0},{"$f":"$D$4*$I$5*'Park Allocations'!AJ33","v":0},{"$f":"$D$4*$I$5*'Park Allocations'!AK33","v":0},{"$f":"$D$4*$I$5*'Park Allocations'!AL33","v":0}]
[null,"104 - Economic and Revenue Forecast Council","104","Economic and Revenue Forecast Council",134.90579016862281,134.90579016862281,5,8.8637181451131937E-5,0,0,{"$f":"$D$4*$I$5*'Park Allocations'!E34","v":0},{"$f":"$D$4*$I$5*'Park Allocations'!F34","v":0},{"$f":"$D$4*$I$5*'Park Allocations'!G34","v":0},{"$f":"$D$4*$I$5*'Park Allocations'!H34","v":0},{"$f":"$D$4*$I$5*'Park Allocations'!I34","v":0},{"$f":"$D$4*$I$5*'Park Allocations'!J34","v":0},{"$f":"$D$4*$I$5*'Park Allocations'!K34","v":0},{"$f":"$D$4*$I$5*'Park Allocations'!L34","v":0},{"$f":"$D$4*$I$5*'Park Allocations'!M34","v":0},{"$f":"$D$4*$I$5*'Park Allocations'!N34","v":0},{"$f":"$D$4*$I$5*'Park Allocations'!O34","v":0},{"$f":"$D$4*$I$5*'Park Allocations'!P34","v":0},{"$f":"$D$4*$I$5*'Park Allocations'!Q34","v":0},{"$f":"$D$4*$I$5*'Park Allocations'!R34","v":0},{"$f":"$D$4*$I$5*'Park Allocations'!S34","v":0},{"$f":"$D$4*$I$5*'Park Allocations'!T34","v":0},{"$f":"$D$4*$I$5*'Park Allocations'!U34","v":0},{"$f":"$D$4*$I$5*'Park Allocations'!V34","v":0},{"$f":"$D$4*$I$5*'Park Allocations'!W34","v":0},{"$f":"$D$4*$I$5*'Park Allocations'!X34","v":0},{"$f":"$D$4*$I$5*'Park Allocations'!Y34","v":0},{"$f":"$D$4*$I$5*'Park Allocations'!Z34","v":0},{"$f":"$D$4*$I$5*'Park Allocations'!AA34","v":0},{"$f":"$D$4*$I$5*'Park Allocations'!AB34","v":0},{"$f":"$D$4*$I$5*'Park Allocations'!AC34","v":0},{"$f":"$D$4*$I$5*'Park Allocations'!AD34","v":0},{"$f":"$D$4*$I$5*'Park Allocations'!AE34","v":0},{"$f":"$D$4*$I$5*'Park Allocations'!AF34","v":0},{"$f":"$D$4*$I$5*'Park Allocations'!AG34","v":0},{"$f":"$D$4*$I$5*'Park Allocations'!AH34","v":0},{"$f":"$D$4*$I$5*'Park Allocations'!AI34","v":0},{"$f":"$D$4*$I$5*'Park Allocations'!AJ34","v":0},{"$f":"$D$4*$I$5*'Park Allocations'!AK34","v":0},{"$f":"$D$4*$I$5*'Park Allocations'!AL34","v":0}]
[null,"105 - Office of Financial Management","105","Office of Financial Management",14282.131445747356,11736.803744670182,435,7.7114347862484774E-3,1.6723572280401935E-3,1.0055166128315696E-2,{"$f":"$D$4*$I$5*'Park Allocations'!E35","v":0},{"$f":"$D$4*$I$5*'Park Allocations'!F35","v":0},{"$f":"$D$4*$I$5*'Park Allocations'!G35","v":0},{"$f":"$D$4*$I$5*'Park Allocations'!H35","v":0},{"$f":"$D$4*$I$5*'Park Allocations'!I35","v":0},{"$f":"$D$4*$I$5*'Park Allocations'!J35","v":0},{"$f":"$D$4*$I$5*'Park Allocations'!K35","v":0},{"$f":"$D$4*$I$5*'Park Allocations'!L35","v":0},{"$f":"$D$4*$I$5*'Park Allocations'!M35","v":0},{"$f":"$D$4*$I$5*'Park Allocations'!N35","v":0},{"$f":"$D$4*$I$5*'Park Allocations'!O35","v":2545.3277010771744},{"$f":"$D$4*$I$5*'Park Allocations'!P35","v":0},{"$f":"$D$4*$I$5*'Park Allocations'!Q35","v":0},{"$f":"$D$4*$I$5*'Park Allocations'!R35","v":0},{"$f":"$D$4*$I$5*'Park Allocations'!S35","v":0},{"$f":"$D$4*$I$5*'Park Allocations'!T35","v":0},{"$f":"$D$4*$I$5*'Park Allocations'!U35","v":0},{"$f":"$D$4*$I$5*'Park Allocations'!V35","v":0},{"$f":"$D$4*$I$5*'Park Allocations'!W35","v":0},{"$f":"$D$4*$I$5*'Park Allocations'!X35","v":0},{"$f":"$D$4*$I$5*'Park Allocations'!Y35","v":0},{"$f":"$D$4*$I$5*'Park Allocations'!Z35","v":0},{"$f":"$D$4*$I$5*'Park Allocations'!AA35","v":0},{"$f":"$D$4*$I$5*'Park Allocations'!AB35","v":0},{"$f":"$D$4*$I$5*'Park Allocations'!AC35","v":0},{"$f":"$D$4*$I$5*'Park Allocations'!AD35","v":0},{"$f":"$D$4*$I$5*'Park Allocations'!AE35","v":0},{"$f":"$D$4*$I$5*'Park Allocations'!AF35","v":0},{"$f":"$D$4*$I$5*'Park Allocations'!AG35","v":0},{"$f":"$D$4*$I$5*'Park Allocations'!AH35","v":0},{"$f":"$D$4*$I$5*'Park Allocations'!AI35","v":0},{"$f":"$D$4*$I$5*'Park Allocations'!AJ35","v":0},{"$f":"$D$4*$I$5*'Park Allocations'!AK35","v":0},{"$f":"$D$4*$I$5*'Park Allocations'!AL35","v":0}]
[null,"107 - Washington State Health Care Authority","107","Washington State Health Care Authority",36208.714081258353,36208.714081258353,1342,2.3790219501483807E-2,0,0,{"$f":"$D$4*$I$5*'Park Allocations'!E36","v":0},{"$f":"$D$4*$I$5*'Park Allocations'!F36","v":0},{"$f":"$D$4*$I$5*'Park Allocations'!G36","v":0},{"$f":"$D$4*$I$5*'Park Allocations'!H36","v":0},{"$f":"$D$4*$I$5*'Park Allocations'!I36","v":0},{"$f":"$D$4*$I$5*'Park Allocations'!J36","v":0},{"$f":"$D$4*$I$5*'Park Allocations'!K36","v":0},{"$f":"$D$4*$I$5*'Park Allocations'!L36","v":0},{"$f":"$D$4*$I$5*'Park Allocations'!M36","v":0},{"$f":"$D$4*$I$5*'Park Allocations'!N36","v":0},{"$f":"$D$4*$I$5*'Park Allocations'!O36","v":0},{"$f":"$D$4*$I$5*'Park Allocations'!P36","v":0},{"$f":"$D$4*$I$5*'Park Allocations'!Q36","v":0},{"$f":"$D$4*$I$5*'Park Allocations'!R36","v":0},{"$f":"$D$4*$I$5*'Park Allocations'!S36","v":0},{"$f":"$D$4*$I$5*'Park Allocations'!T36","v":0},{"$f":"$D$4*$I$5*'Park Allocations'!U36","v":0},{"$f":"$D$4*$I$5*'Park Allocations'!V36","v":0},{"$f":"$D$4*$I$5*'Park Allocations'!W36","v":0},{"$f":"$D$4*$I$5*'Park Allocations'!X36","v":0},{"$f":"$D$4*$I$5*'Park Allocations'!Y36","v":0},{"$f":"$D$4*$I$5*'Park Allocations'!Z36","v":0},{"$f":"$D$4*$I$5*'Park Allocations'!AA36","v":0},{"$f":"$D$4*$I$5*'Park Allocations'!AB36","v":0},{"$f":"$D$4*$I$5*'Park Allocations'!AC36","v":0},{"$f":"$D$4*$I$5*'Park Allocations'!AD36","v":0},{"$f":"$D$4*$I$5*'Park Allocations'!AE36","v":0},{"$f":"$D$4*$I$5*'Park Allocations'!AF36","v":0},{"$f":"$D$4*$I$5*'Park Allocations'!AG36","v":0},{"$f":"$D$4*$I$5*'Park Allocations'!AH36","v":0},{"$f":"$D$4*$I$5*'Park Allocations'!AI36","v":0},{"$f":"$D$4*$I$5*'Park Allocations'!AJ36","v":0},{"$f":"$D$4*$I$5*'Park Allocations'!AK36","v":0},{"$f":"$D$4*$I$5*'Park Allocations'!AL36","v":0}]
[null,"110 - Office of Administrative Hearings","110","Office of Administrative Hearings",1780.7564302258208,1780.7564302258208,66,1.1700107951549414E-3,0,1.8799242650270537E-3,{"$f":"$D$4*$I$5*'Park Allocations'!E37","v":0},{"$f":"$D$4*$I$5*'Park Allocations'!F37","v":0},{"$f":"$D$4*$I$5*'Park Allocations'!G37","v":0},{"$f":"$D$4*$I$5*'Park Allocations'!H37","v":0},{"$f":"$D$4*$I$5*'Park Allocations'!I37","v":0},{"$f":"$D$4*$I$5*'Park Allocations'!J37","v":0},{"$f":"$D$4*$I$5*'Park Allocations'!K37","v":0},{"$f":"$D$4*$I$5*'Park Allocations'!L37","v":0},{"$f":"$D$4*$I$5*'Park Allocations'!M37","v":0},{"$f":"$D$4*$I$5*'Park Allocations'!N37","v":0},{"$f":"$D$4*$I$5*'Park Allocations'!O37","v":0},{"$f":"$D$4*$I$5*'Park Allocations'!P37","v":0},{"$f":"$D$4*$I$5*'Park Allocations'!Q37","v":0},{"$f":"$D$4*$I$5*'Park Allocations'!R37","v":0},{"$f":"$D$4*$I$5*'Park Allocations'!S37","v":0},{"$f":"$D$4*$I$5*'Park Allocations'!T37","v":0},{"$f":"$D$4*$I$5*'Park Allocations'!U37","v":0},{"$f":"$D$4*$I$5*'Park Allocations'!V37","v":0},{"$f":"$D$4*$I$5*'Park Allocations'!W37","v":0},{"$f":"$D$4*$I$5*'Park Allocations'!X37","v":0},{"$f":"$D$4*$I$5*'Park Allocations'!Y37","v":0},{"$f":"$D$4*$I$5*'Park Allocations'!Z37","v":0},{"$f":"$D$4*$I$5*'Park Allocations'!AA37","v":0},{"$f":"$D$4*$I$5*'Park Allocations'!AB37","v":0},{"$f":"$D$4*$I$5*'Park Allocations'!AC37","v":0},{"$f":"$D$4*$I$5*'Park Allocations'!AD37","v":0},{"$f":"$D$4*$I$5*'Park Allocations'!AE37","v":0},{"$f":"$D$4*$I$5*'Park Allocations'!AF37","v":0},{"$f":"$D$4*$I$5*'Park Allocations'!AG37","v":0},{"$f":"$D$4*$I$5*'Park Allocations'!AH37","v":0},{"$f":"$D$4*$I$5*'Park Allocations'!AI37","v":0},{"$f":"$D$4*$I$5*'Park Allocations'!AJ37","v":0},{"$f":"$D$4*$I$5*'Park Allocations'!AK37","v":0},{"$f":"$D$4*$I$5*'Park Allocations'!AL37","v":0}]
[null,"116 - State Lottery","116","State Lottery",1888.6810623607191,1888.6810623607191,70,1.2409205403158469E-3,0,0,{"$f":"$D$4*$I$5*'Park Allocations'!E38","v":0},{"$f":"$D$4*$I$5*'Park Allocations'!F38","v":0},{"$f":"$D$4*$I$5*'Park Allocations'!G38","v":0},{"$f":"$D$4*$I$5*'Park Allocations'!H38","v":0},{"$f":"$D$4*$I$5*'Park Allocations'!I38","v":0},{"$f":"$D$4*$I$5*'Park Allocations'!J38","v":0},{"$f":"$D$4*$I$5*'Park Allocations'!K38","v":0},{"$f":"$D$4*$I$5*'Park Allocations'!L38","v":0},{"$f":"$D$4*$I$5*'Park Allocations'!M38","v":0},{"$f":"$D$4*$I$5*'Park Allocations'!N38","v":0},{"$f":"$D$4*$I$5*'Park Allocations'!O38","v":0},{"$f":"$D$4*$I$5*'Park Allocations'!P38","v":0},{"$f":"$D$4*$I$5*'Park Allocations'!Q38","v":0},{"$f":"$D$4*$I$5*'Park Allocations'!R38","v":0},{"$f":"$D$4*$I$5*'Park Allocations'!S38","v":0},{"$f":"$D$4*$I$5*'Park Allocations'!T38","v":0},{"$f":"$D$4*$I$5*'Park Allocations'!U38","v":0},{"$f":"$D$4*$I$5*'Park Allocations'!V38","v":0},{"$f":"$D$4*$I$5*'Park Allocations'!W38","v":0},{"$f":"$D$4*$I$5*'Park Allocations'!X38","v":0},{"$f":"$D$4*$I$5*'Park Allocations'!Y38","v":0},{"$f":"$D$4*$I$5*'Park Allocations'!Z38","v":0},{"$f":"$D$4*$I$5*'Park Allocations'!AA38","v":0},{"$f":"$D$4*$I$5*'Park Allocations'!AB38","v":0},{"$f":"$D$4*$I$5*'Park Allocations'!AC38","v":0},{"$f":"$D$4*$I$5*'Park Allocations'!AD38","v":0},{"$f":"$D$4*$I$5*'Park Allocations'!AE38","v":0},{"$f":"$D$4*$I$5*'Park Allocations'!AF38","v":0},{"$f":"$D$4*$I$5*'Park Allocations'!AG38","v":0},{"$f":"$D$4*$I$5*'Park Allocations'!AH38","v":0},{"$f":"$D$4*$I$5*'Park Allocations'!AI38","v":0},{"$f":"$D$4*$I$5*'Park Allocations'!AJ38","v":0},{"$f":"$D$4*$I$5*'Park Allocations'!AK38","v":0},{"$f":"$D$4*$I$5*'Park Allocations'!AL38","v":0}]
[null,"117 - Washington State Gambling Commission","117","Washington State Gambling Commission",1537.9260079222997,1537.9260079222997,57,1.0104638685429039E-3,0,0,{"$f":"$D$4*$I$5*'Park Allocations'!E39","v":0},{"$f":"$D$4*$I$5*'Park Allocations'!F39","v":0},{"$f":"$D$4*$I$5*'Park Allocations'!G39","v":0},{"$f":"$D$4*$I$5*'Park Allocations'!H39","v":0},{"$f":"$D$4*$I$5*'Park Allocations'!I39","v":0},{"$f":"$D$4*$I$5*'Park Allocations'!J39","v":0},{"$f":"$D$4*$I$5*'Park Allocations'!K39","v":0},{"$f":"$D$4*$I$5*'Park Allocations'!L39","v":0},{"$f":"$D$4*$I$5*'Park Allocations'!M39","v":0},{"$f":"$D$4*$I$5*'Park Allocations'!N39","v":0},{"$f":"$D$4*$I$5*'Park Allocations'!O39","v":0},{"$f":"$D$4*$I$5*'Park Allocations'!P39","v":0},{"$f":"$D$4*$I$5*'Park Allocations'!Q39","v":0},{"$f":"$D$4*$I$5*'Park Allocations'!R39","v":0},{"$f":"$D$4*$I$5*'Park Allocations'!S39","v":0},{"$f":"$D$4*$I$5*'Park Allocations'!T39","v":0},{"$f":"$D$4*$I$5*'Park Allocations'!U39","v":0},{"$f":"$D$4*$I$5*'Park Allocations'!V39","v":0},{"$f":"$D$4*$I$5*'Park Allocations'!W39","v":0},{"$f":"$D$4*$I$5*'Park Allocations'!X39","v":0},{"$f":"$D$4*$I$5*'Park Allocations'!Y39","v":0},{"$f":"$D$4*$I$5*'Park Allocations'!Z39","v":0},{"$f":"$D$4*$I$5*'Park Allocations'!AA39","v":0},{"$f":"$D$4*$I$5*'Park Allocations'!AB39","v":0},{"$f":"$D$4*$I$5*'Park Allocations'!AC39","v":0},{"$f":"$D$4*$I$5*'Park Allocations'!AD39","v":0},{"$f":"$D$4*$I$5*'Park Allocations'!AE39","v":0},{"$f":"$D$4*$I$5*'Park Allocations'!AF39","v":0},{"$f":"$D$4*$I$5*'Park Allocations'!AG39","v":0},{"$f":"$D$4*$I$5*'Park Allocations'!AH39","v":0},{"$f":"$D$4*$I$5*'Park Allocations'!AI39","v":0},{"$f":"$D$4*$I$5*'Park Allocations'!AJ39","v":0},{"$f":"$D$4*$I$5*'Park Allocations'!AK39","v":0},{"$f":"$D$4*$I$5*'Park Allocations'!AL39","v":0}]
[null,"118 - Commission on Hispanic Affairs","118","Commission on Hispanic Affairs",80.943474101173678,80.943474101173678,3,5.3182308870679155E-5,0,1.8235770961691519E-4,{"$f":"$D$4*$I$5*'Park Allocations'!E40","v":0},{"$f":"$D$4*$I$5*'Park Allocations'!F40","v":0},{"$f":"$D$4*$I$5*'Park Allocations'!G40","v":0},{"$f":"$D$4*$I$5*'Park Allocations'!H40","v":0},{"$f":"$D$4*$I$5*'Park Allocations'!I40","v":0},{"$f":"$D$4*$I$5*'Park Allocations'!J40","v":0},{"$f":"$D$4*$I$5*'Park Allocations'!K40","v":0},{"$f":"$D$4*$I$5*'Park Allocations'!L40","v":0},{"$f":"$D$4*$I$5*'Park Allocations'!M40","v":0},{"$f":"$D$4*$I$5*'Park Allocations'!N40","v":0},{"$f":"$D$4*$I$5*'Park Allocations'!O40","v":0},{"$f":"$D$4*$I$5*'Park Allocations'!P40","v":0},{"$f":"$D$4*$I$5*'Park Allocations'!Q40","v":0},{"$f":"$D$4*$I$5*'Park Allocations'!R40","v":0},{"$f":"$D$4*$I$5*'Park Allocations'!S40","v":0},{"$f":"$D$4*$I$5*'Park Allocations'!T40","v":0},{"$f":"$D$4*$I$5*'Park Allocations'!U40","v":0},{"$f":"$D$4*$I$5*'Park Allocations'!V40","v":0},{"$f":"$D$4*$I$5*'Park Allocations'!W40","v":0},{"$f":"$D$4*$I$5*'Park Allocations'!X40","v":0},{"$f":"$D$4*$I$5*'Park Allocations'!Y40","v":0},{"$f":"$D$4*$I$5*'Park Allocations'!Z40","v":0},{"$f":"$D$4*$I$5*'Park Allocations'!AA40","v":0},{"$f":"$D$4*$I$5*'Park Allocations'!AB40","v":0},{"$f":"$D$4*$I$5*'Park Allocations'!AC40","v":0},{"$f":"$D$4*$I$5*'Park Allocations'!AD40","v":0},{"$f":"$D$4*$I$5*'Park Allocations'!AE40","v":0},{"$f":"$D$4*$I$5*'Park Allocations'!AF40","v":0},{"$f":"$D$4*$I$5*'Park Allocations'!AG40","v":0},{"$f":"$D$4*$I$5*'Park Allocations'!AH40","v":0},{"$f":"$D$4*$I$5*'Park Allocations'!AI40","v":0},{"$f":"$D$4*$I$5*'Park Allocations'!AJ40","v":0},{"$f":"$D$4*$I$5*'Park Allocations'!AK40","v":0},{"$f":"$D$4*$I$5*'Park Allocations'!AL40","v":0}]
[null,"119 - Commission on African-American Affairs","119","Commission on African-American Affairs",53.962316067449116,53.962316067449116,2,3.5454872580452768E-5,0,1.8235770961691519E-4,{"$f":"$D$4*$I$5*'Park Allocations'!E41","v":0},{"$f":"$D$4*$I$5*'Park Allocations'!F41","v":0},{"$f":"$D$4*$I$5*'Park Allocations'!G41","v":0},{"$f":"$D$4*$I$5*'Park Allocations'!H41","v":0},{"$f":"$D$4*$I$5*'Park Allocations'!I41","v":0},{"$f":"$D$4*$I$5*'Park Allocations'!J41","v":0},{"$f":"$D$4*$I$5*'Park Allocations'!K41","v":0},{"$f":"$D$4*$I$5*'Park Allocations'!L41","v":0},{"$f":"$D$4*$I$5*'Park Allocations'!M41","v":0},{"$f":"$D$4*$I$5*'Park Allocations'!N41","v":0},{"$f":"$D$4*$I$5*'Park Allocations'!O41","v":0},{"$f":"$D$4*$I$5*'Park Allocations'!P41","v":0},{"$f":"$D$4*$I$5*'Park Allocations'!Q41","v":0},{"$f":"$D$4*$I$5*'Park Allocations'!R41","v":0},{"$f":"$D$4*$I$5*'Park Allocations'!S41","v":0},{"$f":"$D$4*$I$5*'Park Allocations'!T41","v":0},{"$f":"$D$4*$I$5*'Park Allocations'!U41","v":0},{"$f":"$D$4*$I$5*'Park Allocations'!V41","v":0},{"$f":"$D$4*$I$5*'Park Allocations'!W41","v":0},{"$f":"$D$4*$I$5*'Park Allocations'!X41","v":0},{"$f":"$D$4*$I$5*'Park Allocations'!Y41","v":0},{"$f":"$D$4*$I$5*'Park Allocations'!Z41","v":0},{"$f":"$D$4*$I$5*'Park Allocations'!AA41","v":0},{"$f":"$D$4*$I$5*'Park Allocations'!AB41","v":0},{"$f":"$D$4*$I$5*'Park Allocations'!AC41","v":0},{"$f":"$D$4*$I$5*'Park Allocations'!AD41","v":0},{"$f":"$D$4*$I$5*'Park Allocations'!AE41","v":0},{"$f":"$D$4*$I$5*'Park Allocations'!AF41","v":0},{"$f":"$D$4*$I$5*'Park Allocations'!AG41","v":0},{"$f":"$D$4*$I$5*'Park Allocations'!AH41","v":0},{"$f":"$D$4*$I$5*'Park Allocations'!AI41","v":0},{"$f":"$D$4*$I$5*'Park Allocations'!AJ41","v":0},{"$f":"$D$4*$I$5*'Park Allocations'!AK41","v":0},{"$f":"$D$4*$I$5*'Park Allocations'!AL41","v":0}]
[null,"120 - Human Rights Commission","120","Human Rights Commission",350.75505443841922,350.75505443841922,13,2.30456671772943E-4,0,0,{"$f":"$D$4*$I$5*'Park Allocations'!E42","v":0},{"$f":"$D$4*$I$5*'Park Allocations'!F42","v":0},{"$f":"$D$4*$I$5*'Park Allocations'!G42","v":0},{"$f":"$D$4*$I$5*'Park Allocations'!H42","v":0},{"$f":"$D$4*$I$5*'Park Allocations'!I42","v":0},{"$f":"$D$4*$I$5*'Park Allocations'!J42","v":0},{"$f":"$D$4*$I$5*'Park Allocations'!K42","v":0},{"$f":"$D$4*$I$5*'Park Allocations'!L42","v":0},{"$f":"$D$4*$I$5*'Park Allocations'!M42","v":0},{"$f":"$D$4*$I$5*'Park Allocations'!N42","v":0},{"$f":"$D$4*$I$5*'Park Allocations'!O42","v":0},{"$f":"$D$4*$I$5*'Park Allocations'!P42","v":0},{"$f":"$D$4*$I$5*'Park Allocations'!Q42","v":0},{"$f":"$D$4*$I$5*'Park Allocations'!R42","v":0},{"$f":"$D$4*$I$5*'Park Allocations'!S42","v":0},{"$f":"$D$4*$I$5*'Park Allocations'!T42","v":0},{"$f":"$D$4*$I$5*'Park Allocations'!U42","v":0},{"$f":"$D$4*$I$5*'Park Allocations'!V42","v":0},{"$f":"$D$4*$I$5*'Park Allocations'!W42","v":0},{"$f":"$D$4*$I$5*'Park Allocations'!X42","v":0},{"$f":"$D$4*$I$5*'Park Allocations'!Y42","v":0},{"$f":"$D$4*$I$5*'Park Allocations'!Z42","v":0},{"$f":"$D$4*$I$5*'Park Allocations'!AA42","v":0},{"$f":"$D$4*$I$5*'Park Allocations'!AB42","v":0},{"$f":"$D$4*$I$5*'Park Allocations'!AC42","v":0},{"$f":"$D$4*$I$5*'Park Allocations'!AD42","v":0},{"$f":"$D$4*$I$5*'Park Allocations'!AE42","v":0},{"$f":"$D$4*$I$5*'Park Allocations'!AF42","v":0},{"$f":"$D$4*$I$5*'Park Allocations'!AG42","v":0},{"$f":"$D$4*$I$5*'Park Allocations'!AH42","v":0},{"$f":"$D$4*$I$5*'Park Allocations'!AI42","v":0},{"$f":"$D$4*$I$5*'Park Allocations'!AJ42","v":0},{"$f":"$D$4*$I$5*'Park Allocations'!AK42","v":0},{"$f":"$D$4*$I$5*'Park Allocations'!AL42","v":0}]
[null,"124 - Department of Retirement Systems","124","Department of Retirement Systems",7230.9503530381817,7230.9503530381817,268,4.750952925780671E-3,0,0,{"$f":"$D$4*$I$5*'Park Allocations'!E43","v":0},{"$f":"$D$4*$I$5*'Park Allocations'!F43","v":0},{"$f":"$D$4*$I$5*'Park Allocations'!G43","v":0},{"$f":"$D$4*$I$5*'Park Allocations'!H43","v":0},{"$f":"$D$4*$I$5*'Park Allocations'!I43","v":0},{"$f":"$D$4*$I$5*'Park Allocations'!J43","v":0},{"$f":"$D$4*$I$5*'Park Allocations'!K43","v":0},{"$f":"$D$4*$I$5*'Park Allocations'!L43","v":0},{"$f":"$D$4*$I$5*'Park Allocations'!M43","v":0},{"$f":"$D$4*$I$5*'Park Allocations'!N43","v":0},{"$f":"$D$4*$I$5*'Park Allocations'!O43","v":0},{"$f":"$D$4*$I$5*'Park Allocations'!P43","v":0},{"$f":"$D$4*$I$5*'Park Allocations'!Q43","v":0},{"$f":"$D$4*$I$5*'Park Allocations'!R43","v":0},{"$f":"$D$4*$I$5*'Park Allocations'!S43","v":0},{"$f":"$D$4*$I$5*'Park Allocations'!T43","v":0},{"$f":"$D$4*$I$5*'Park Allocations'!U43","v":0},{"$f":"$D$4*$I$5*'Park Allocations'!V43","v":0},{"$f":"$D$4*$I$5*'Park Allocations'!W43","v":0},{"$f":"$D$4*$I$5*'Park Allocations'!X43","v":0},{"$f":"$D$4*$I$5*'Park Allocations'!Y43","v":0},{"$f":"$D$4*$I$5*'Park Allocations'!Z43","v":0},{"$f":"$D$4*$I$5*'Park Allocations'!AA43","v":0},{"$f":"$D$4*$I$5*'Park Allocations'!AB43","v":0},{"$f":"$D$4*$I$5*'Park Allocations'!AC43","v":0},{"$f":"$D$4*$I$5*'Park Allocations'!AD43","v":0},{"$f":"$D$4*$I$5*'Park Allocations'!AE43","v":0},{"$f":"$D$4*$I$5*'Park Allocations'!AF43","v":0},{"$f":"$D$4*$I$5*'Park Allocations'!AG43","v":0},{"$f":"$D$4*$I$5*'Park Allocations'!AH43","v":0},{"$f":"$D$4*$I$5*'Park Allocations'!AI43","v":0},{"$f":"$D$4*$I$5*'Park Allocations'!AJ43","v":0},{"$f":"$D$4*$I$5*'Park Allocations'!AK43","v":0},{"$f":"$D$4*$I$5*'Park Allocations'!AL43","v":0}]
[null,"126 - State Investment Board","126","State Investment Board",2401.3230650014857,2401.3230650014857,89,1.5777418298301483E-3,0,0,{"$f":"$D$4*$I$5*'Park Allocations'!E44","v":0},{"$f":"$D$4*$I$5*'Park Allocations'!F44","v":0},{"$f":"$D$4*$I$5*'Park Allocations'!G44","v":0},{"$f":"$D$4*$I$5*'Park Allocations'!H44","v":0},{"$f":"$D$4*$I$5*'Park Allocations'!I44","v":0},{"$f":"$D$4*$I$5*'Park Allocations'!J44","v":0},{"$f":"$D$4*$I$5*'Park Allocations'!K44","v":0},{"$f":"$D$4*$I$5*'Park Allocations'!L44","v":0},{"$f":"$D$4*$I$5*'Park Allocations'!M44","v":0},{"$f":"$D$4*$I$5*'Park Allocations'!N44","v":0},{"$f":"$D$4*$I$5*'Park Allocations'!O44","v":0},{"$f":"$D$4*$I$5*'Park Allocations'!P44","v":0},{"$f":"$D$4*$I$5*'Park Allocations'!Q44","v":0},{"$f":"$D$4*$I$5*'Park Allocations'!R44","v":0},{"$f":"$D$4*$I$5*'Park Allocations'!S44","v":0},{"$f":"$D$4*$I$5*'Park Allocations'!T44","v":0},{"$f":"$D$4*$I$5*'Park Allocations'!U44","v":0},{"$f":"$D$4*$I$5*'Park Allocations'!V44","v":0},{"$f":"$D$4*$I$5*'Park Allocations'!W44","v":0},{"$f":"$D$4*$I$5*'Park Allocations'!X44","v":0},{"$f":"$D$4*$I$5*'Park Allocations'!Y44","v":0},{"$f":"$D$4*$I$5*'Park Allocations'!Z44","v":0},{"$f":"$D$4*$I$5*'Park Allocations'!AA44","v":0},{"$f":"$D$4*$I$5*'Park Allocations'!AB44","v":0},{"$f":"$D$4*$I$5*'Park Allocations'!AC44","v":0},{"$f":"$D$4*$I$5*'Park Allocations'!AD44","v":0},{"$f":"$D$4*$I$5*'Park Allocations'!AE44","v":0},{"$f":"$D$4*$I$5*'Park Allocations'!AF44","v":0},{"$f":"$D$4*$I$5*'Park Allocations'!AG44","v":0},{"$f":"$D$4*$I$5*'Park Allocations'!AH44","v":0},{"$f":"$D$4*$I$5*'Park Allocations'!AI44","v":0},{"$f":"$D$4*$I$5*'Park Allocations'!AJ44","v":0},{"$f":"$D$4*$I$5*'Park Allocations'!AK44","v":0},{"$f":"$D$4*$I$5*'Park Allocations'!AL44","v":0}]
[null,"140 - Department of Revenue","140","Department of Revenue",19993.038102989896,19993.038102989896,741,1.3136030291057751E-2,0,0,{"$f":"$D$4*$I$5*'Park Allocations'!E45","v":0},{"$f":"$D$4*$I$5*'Park Allocations'!F45","v":0},{"$f":"$D$4*$I$5*'Park Allocations'!G45","v":0},{"$f":"$D$4*$I$5*'Park Allocations'!H45","v":0},{"$f":"$D$4*$I$5*'Park Allocations'!I45","v":0},{"$f":"$D$4*$I$5*'Park Allocations'!J45","v":0},{"$f":"$D$4*$I$5*'Park Allocations'!K45","v":0},{"$f":"$D$4*$I$5*'Park Allocations'!L45","v":0},{"$f":"$D$4*$I$5*'Park Allocations'!M45","v":0},{"$f":"$D$4*$I$5*'Park Allocations'!N45","v":0},{"$f":"$D$4*$I$5*'Park Allocations'!O45","v":0},{"$f":"$D$4*$I$5*'Park Allocations'!P45","v":0},{"$f":"$D$4*$I$5*'Park Allocations'!Q45","v":0},{"$f":"$D$4*$I$5*'Park Allocations'!R45","v":0},{"$f":"$D$4*$I$5*'Park Allocations'!S45","v":0},{"$f":"$D$4*$I$5*'Park Allocations'!T45","v":0},{"$f":"$D$4*$I$5*'Park Allocations'!U45","v":0},{"$f":"$D$4*$I$5*'Park Allocations'!V45","v":0},{"$f":"$D$4*$I$5*'Park Allocations'!W45","v":0},{"$f":"$D$4*$I$5*'Park Allocations'!X45","v":0},{"$f":"$D$4*$I$5*'Park Allocations'!Y45","v":0},{"$f":"$D$4*$I$5*'Park Allocations'!Z45","v":0},{"$f":"$D$4*$I$5*'Park Allocations'!AA45","v":0},{"$f":"$D$4*$I$5*'Park Allocations'!AB45","v":0},{"$f":"$D$4*$I$5*'Park Allocations'!AC45","v":0},{"$f":"$D$4*$I$5*'Park Allocations'!AD45","v":0},{"$f":"$D$4*$I$5*'Park Allocations'!AE45","v":0},{"$f":"$D$4*$I$5*'Park Allocations'!AF45","v":0},{"$f":"$D$4*$I$5*'Park Allocations'!AG45","v":0},{"$f":"$D$4*$I$5*'Park Allocations'!AH45","v":0},{"$f":"$D$4*$I$5*'Park Allocations'!AI45","v":0},{"$f":"$D$4*$I$5*'Park Allocations'!AJ45","v":0},{"$f":"$D$4*$I$5*'Park Allocations'!AK45","v":0},{"$f":"$D$4*$I$5*'Park Allocations'!AL45","v":0}]
[null,"142 - Board of Tax Appeals","142","Board of Tax Appeals",404.71737050586836,404.71737050586836,15,2.6591154435339577E-4,0,9.8680243790381667E-4,{"$f":"$D$4*$I$5*'Park Allocations'!E46","v":0},{"$f":"$D$4*$I$5*'Park Allocations'!F46","v":0},{"$f":"$D$4*$I$5*'Park Allocations'!G46","v":0},{"$f":"$D$4*$I$5*'Park Allocations'!H46","v":0},{"$f":"$D$4*$I$5*'Park Allocations'!I46","v":0},{"$f":"$D$4*$I$5*'Park Allocations'!J46","v":0},{"$f":"$D$4*$I$5*'Park Allocations'!K46","v":0},{"$f":"$D$4*$I$5*'Park Allocations'!L46","v":0},{"$f":"$D$4*$I$5*'Park Allocations'!M46","v":0},{"$f":"$D$4*$I$5*'Park Allocations'!N46","v":0},{"$f":"$D$4*$I$5*'Park Allocations'!O46","v":0},{"$f":"$D$4*$I$5*'Park Allocations'!P46","v":0},{"$f":"$D$4*$I$5*'Park Allocations'!Q46","v":0},{"$f":"$D$4*$I$5*'Park Allocations'!R46","v":0},{"$f":"$D$4*$I$5*'Park Allocations'!S46","v":0},{"$f":"$D$4*$I$5*'Park Allocations'!T46","v":0},{"$f":"$D$4*$I$5*'Park Allocations'!U46","v":0},{"$f":"$D$4*$I$5*'Park Allocations'!V46","v":0},{"$f":"$D$4*$I$5*'Park Allocations'!W46","v":0},{"$f":"$D$4*$I$5*'Park Allocations'!X46","v":0},{"$f":"$D$4*$I$5*'Park Allocations'!Y46","v":0},{"$f":"$D$4*$I$5*'Park Allocations'!Z46","v":0},{"$f":"$D$4*$I$5*'Park Allocations'!AA46","v":0},{"$f":"$D$4*$I$5*'Park Allocations'!AB46","v":0},{"$f":"$D$4*$I$5*'Park Allocations'!AC46","v":0},{"$f":"$D$4*$I$5*'Park Allocations'!AD46","v":0},{"$f":"$D$4*$I$5*'Park Allocations'!AE46","v":0},{"$f":"$D$4*$I$5*'Park Allocations'!AF46","v":0},{"$f":"$D$4*$I$5*'Park Allocations'!AG46","v":0},{"$f":"$D$4*$I$5*'Park Allocations'!AH46","v":0},{"$f":"$D$4*$I$5*'Park Allocations'!AI46","v":0},{"$f":"$D$4*$I$5*'Park Allocations'!AJ46","v":0},{"$f":"$D$4*$I$5*'Park Allocations'!AK46","v":0},{"$f":"$D$4*$I$5*'Park Allocations'!AL46","v":0}]
[null,"147 - Office of Minority and Women's Business Enterprises","147","Office of Minority and Women's Business Enterprises",647.54779280938942,647.54779280938942,24,4.2545847096543324E-4,0,1.0182871409547096E-3,{"$f":"$D$4*$I$5*'Park Allocations'!E47","v":0},{"$f":"$D$4*$I$5*'Park Allocations'!F47","v":0},{"$f":"$D$4*$I$5*'Park Allocations'!G47","v":0},{"$f":"$D$4*$I$5*'Park Allocations'!H47","v":0},{"$f":"$D$4*$I$5*'Park Allocations'!I47","v":0},{"$f":"$D$4*$I$5*'Park Allocations'!J47","v":0},{"$f":"$D$4*$I$5*'Park Allocations'!K47","v":0},{"$f":"$D$4*$I$5*'Park Allocations'!L47","v":0},{"$f":"$D$4*$I$5*'Park Allocations'!M47","v":0},{"$f":"$D$4*$I$5*'Park Allocations'!N47","v":0},{"$f":"$D$4*$I$5*'Park Allocations'!O47","v":0},{"$f":"$D$4*$I$5*'Park Allocations'!P47","v":0},{"$f":"$D$4*$I$5*'Park Allocations'!Q47","v":0},{"$f":"$D$4*$I$5*'Park Allocations'!R47","v":0},{"$f":"$D$4*$I$5*'Park Allocations'!S47","v":0},{"$f":"$D$4*$I$5*'Park Allocations'!T47","v":0},{"$f":"$D$4*$I$5*'Park Allocations'!U47","v":0},{"$f":"$D$4*$I$5*'Park Allocations'!V47","v":0},{"$f":"$D$4*$I$5*'Park Allocations'!W47","v":0},{"$f":"$D$4*$I$5*'Park Allocations'!X47","v":0},{"$f":"$D$4*$I$5*'Park Allocations'!Y47","v":0},{"$f":"$D$4*$I$5*'Park Allocations'!Z47","v":0},{"$f":"$D$4*$I$5*'Park Allocations'!AA47","v":0},{"$f":"$D$4*$I$5*'Park Allocations'!AB47","v":0},{"$f":"$D$4*$I$5*'Park Allocations'!AC47","v":0},{"$f":"$D$4*$I$5*'Park Allocations'!AD47","v":0},{"$f":"$D$4*$I$5*'Park Allocations'!AE47","v":0},{"$f":"$D$4*$I$5*'Park Allocations'!AF47","v":0},{"$f":"$D$4*$I$5*'Park Allocations'!AG47","v":0},{"$f":"$D$4*$I$5*'Park Allocations'!AH47","v":0},{"$f":"$D$4*$I$5*'Park Allocations'!AI47","v":0},{"$f":"$D$4*$I$5*'Park Allocations'!AJ47","v":0},{"$f":"$D$4*$I$5*'Park Allocations'!AK47","v":0},{"$f":"$D$4*$I$5*'Park Allocations'!AL47","v":0}]
[null,"160 - Office of Insurance Commissioner","160","Office of Insurance Commissioner",6038.6110770431533,5612.0808710147076,208,3.6873067483670879E-3,2.8024323654956987E-4,1.6602310635899405E-3,{"$f":"$D$4*$I$5*'Park Allocations'!E48","v":0},{"$f":"$D$4*$I$5*'Park Allocations'!F48","v":0},{"$f":"$D$4*$I$5*'Park Allocations'!G48","v":0},{"$f":"$D$4*$I$5*'Park Allocations'!H48","v":0},{"$f":"$D$4*$I$5*'Park Allocations'!I48","v":0},{"$f":"$D$4*$I$5*'Park Allocations'!J48","v":0},{"$f":"$D$4*$I$5*'Park Allocations'!K48","v":0},{"$f":"$D$4*$I$5*'Park Allocations'!L48","v":0},{"$f":"$D$4*$I$5*'Park Allocations'!M48","v":0},{"$f":"$D$4*$I$5*'Park Allocations'!N48","v":0},{"$f":"$D$4*$I$5*'Park Allocations'!O48","v":426.53020602844538},{"$f":"$D$4*$I$5*'Park Allocations'!P48","v":0},{"$f":"$D$4*$I$5*'Park Allocations'!Q48","v":0},{"$f":"$D$4*$I$5*'Park Allocations'!R48","v":0},{"$f":"$D$4*$I$5*'Park Allocations'!S48","v":0},{"$f":"$D$4*$I$5*'Park Allocations'!T48","v":0},{"$f":"$D$4*$I$5*'Park Allocations'!U48","v":0},{"$f":"$D$4*$I$5*'Park Allocations'!V48","v":0},{"$f":"$D$4*$I$5*'Park Allocations'!W48","v":0},{"$f":"$D$4*$I$5*'Park Allocations'!X48","v":0},{"$f":"$D$4*$I$5*'Park Allocations'!Y48","v":0},{"$f":"$D$4*$I$5*'Park Allocations'!Z48","v":0},{"$f":"$D$4*$I$5*'Park Allocations'!AA48","v":0},{"$f":"$D$4*$I$5*'Park Allocations'!AB48","v":0},{"$f":"$D$4*$I$5*'Park Allocations'!AC48","v":0},{"$f":"$D$4*$I$5*'Park Allocations'!AD48","v":0},{"$f":"$D$4*$I$5*'Park Allocations'!AE48","v":0},{"$f":"$D$4*$I$5*'Park Allocations'!AF48","v":0},{"$f":"$D$4*$I$5*'Park Allocations'!AG48","v":0},{"$f":"$D$4*$I$5*'Park Allocations'!AH48","v":0},{"$f":"$D$4*$I$5*'Park Allocations'!AI48","v":0},{"$f":"$D$4*$I$5*'Park Allocations'!AJ48","v":0},{"$f":"$D$4*$I$5*'Park Allocations'!AK48","v":0},{"$f":"$D$4*$I$5*'Park Allocations'!AL48","v":0}]
[null,"163 - Consolidated Technology Services","163","Consolidated Technology Services",7815.3750781221743,7797.5546717463976,289,5.1232290878754257E-3,1.1708545581982318E-5,9.314246417114737E-5,{"$f":"$D$4*$I$5*'Park Allocations'!E49","v":0},{"$f":"$D$4*$I$5*'Park Allocations'!F49","v":0},{"$f":"$D$4*$I$5*'Park Allocations'!G49","v":0},{"$f":"$D$4*$I$5*'Park Allocations'!H49","v":0},{"$f":"$D$4*$I$5*'Park Allocations'!I49","v":0},{"$f":"$D$4*$I$5*'Park Allocations'!J49","v":17.820406375777086},{"$f":"$D$4*$I$5*'Park Allocations'!K49","v":0},{"$f":"$D$4*$I$5*'Park Allocations'!L49","v":0},{"$f":"$D$4*$I$5*'Park Allocations'!M49","v":0},{"$f":"$D$4*$I$5*'Park Allocations'!N49","v":0},{"$f":"$D$4*$I$5*'Park Allocations'!O49","v":0},{"$f":"$D$4*$I$5*'Park Allocations'!P49","v":0},{"$f":"$D$4*$I$5*'Park Allocations'!Q49","v":0},{"$f":"$D$4*$I$5*'Park Allocations'!R49","v":0},{"$f":"$D$4*$I$5*'Park Allocations'!S49","v":0},{"$f":"$D$4*$I$5*'Park Allocations'!T49","v":0},{"$f":"$D$4*$I$5*'Park Allocations'!U49","v":0},{"$f":"$D$4*$I$5*'Park Allocations'!V49","v":0},{"$f":"$D$4*$I$5*'Park Allocations'!W49","v":0},{"$f":"$D$4*$I$5*'Park Allocations'!X49","v":0},{"$f":"$D$4*$I$5*'Park Allocations'!Y49","v":0},{"$f":"$D$4*$I$5*'Park Allocations'!Z49","v":0},{"$f":"$D$4*$I$5*'Park Allocations'!AA49","v":0},{"$f":"$D$4*$I$5*'Park Allocations'!AB49","v":0},{"$f":"$D$4*$I$5*'Park Allocations'!AC49","v":0},{"$f":"$D$4*$I$5*'Park Allocations'!AD49","v":0},{"$f":"$D$4*$I$5*'Park Allocations'!AE49","v":0},{"$f":"$D$4*$I$5*'Park Allocations'!AF49","v":0},{"$f":"$D$4*$I$5*'Park Allocations'!AG49","v":0},{"$f":"$D$4*$I$5*'Park Allocations'!AH49","v":0},{"$f":"$D$4*$I$5*'Park Allocations'!AI49","v":0},{"$f":"$D$4*$I$5*'Park Allocations'!AJ49","v":0},{"$f":"$D$4*$I$5*'Park Allocations'!AK49","v":0},{"$f":"$D$4*$I$5*'Park Allocations'!AL49","v":0}]
[null,"165 - Board of Accountancy","165","Board of Accountancy",269.81158033724563,269.81158033724563,10,1.7727436290226387E-4,0,0,{"$f":"$D$4*$I$5*'Park Allocations'!E50","v":0},{"$f":"$D$4*$I$5*'Park Allocations'!F50","v":0},{"$f":"$D$4*$I$5*'Park Allocations'!G50","v":0},{"$f":"$D$4*$I$5*'Park Allocations'!H50","v":0},{"$f":"$D$4*$I$5*'Park Allocations'!I50","v":0},{"$f":"$D$4*$I$5*'Park Allocations'!J50","v":0},{"$f":"$D$4*$I$5*'Park Allocations'!K50","v":0},{"$f":"$D$4*$I$5*'Park Allocations'!L50","v":0},{"$f":"$D$4*$I$5*'Park Allocations'!M50","v":0},{"$f":"$D$4*$I$5*'Park Allocations'!N50","v":0},{"$f":"$D$4*$I$5*'Park Allocations'!O50","v":0},{"$f":"$D$4*$I$5*'Park Allocations'!P50","v":0},{"$f":"$D$4*$I$5*'Park Allocations'!Q50","v":0},{"$f":"$D$4*$I$5*'Park Allocations'!R50","v":0},{"$f":"$D$4*$I$5*'Park Allocations'!S50","v":0},{"$f":"$D$4*$I$5*'Park Allocations'!T50","v":0},{"$f":"$D$4*$I$5*'Park Allocations'!U50","v":0},{"$f":"$D$4*$I$5*'Park Allocations'!V50","v":0},{"$f":"$D$4*$I$5*'Park Allocations'!W50","v":0},{"$f":"$D$4*$I$5*'Park Allocations'!X50","v":0},{"$f":"$D$4*$I$5*'Park Allocations'!Y50","v":0},{"$f":"$D$4*$I$5*'Park Allocations'!Z50","v":0},{"$f":"$D$4*$I$5*'Park Allocations'!AA50","v":0},{"$f":"$D$4*$I$5*'Park Allocations'!AB50","v":0},{"$f":"$D$4*$I$5*'Park Allocations'!AC50","v":0},{"$f":"$D$4*$I$5*'Park Allocations'!AD50","v":0},{"$f":"$D$4*$I$5*'Park Allocations'!AE50","v":0},{"$f":"$D$4*$I$5*'Park Allocations'!AF50","v":0},{"$f":"$D$4*$I$5*'Park Allocations'!AG50","v":0},{"$f":"$D$4*$I$5*'Park Allocations'!AH50","v":0},{"$f":"$D$4*$I$5*'Park Allocations'!AI50","v":0},{"$f":"$D$4*$I$5*'Park Allocations'!AJ50","v":0},{"$f":"$D$4*$I$5*'Park Allocations'!AK50","v":0},{"$f":"$D$4*$I$5*'Park Allocations'!AL50","v":0}]
[null,"166 - Brd Prof Eng Land Surveyors","166","Brd Prof Eng Land Surveyors",215.84926426979646,215.84926426979646,8,1.4181949032181107E-4,0,0,{"$f":"$D$4*$I$5*'Park Allocations'!E51","v":0},{"$f":"$D$4*$I$5*'Park Allocations'!F51","v":0},{"$f":"$D$4*$I$5*'Park Allocations'!G51","v":0},{"$f":"$D$4*$I$5*'Park Allocations'!H51","v":0},{"$f":"$D$4*$I$5*'Park Allocations'!I51","v":0},{"$f":"$D$4*$I$5*'Park Allocations'!J51","v":0},{"$f":"$D$4*$I$5*'Park Allocations'!K51","v":0},{"$f":"$D$4*$I$5*'Park Allocations'!L51","v":0},{"$f":"$D$4*$I$5*'Park Allocations'!M51","v":0},{"$f":"$D$4*$I$5*'Park Allocations'!N51","v":0},{"$f":"$D$4*$I$5*'Park Allocations'!O51","v":0},{"$f":"$D$4*$I$5*'Park Allocations'!P51","v":0},{"$f":"$D$4*$I$5*'Park Allocations'!Q51","v":0},{"$f":"$D$4*$I$5*'Park Allocations'!R51","v":0},{"$f":"$D$4*$I$5*'Park Allocations'!S51","v":0},{"$f":"$D$4*$I$5*'Park Allocations'!T51","v":0},{"$f":"$D$4*$I$5*'Park Allocations'!U51","v":0},{"$f":"$D$4*$I$5*'Park Allocations'!V51","v":0},{"$f":"$D$4*$I$5*'Park Allocations'!W51","v":0},{"$f":"$D$4*$I$5*'Park Allocations'!X51","v":0},{"$f":"$D$4*$I$5*'Park Allocations'!Y51","v":0},{"$f":"$D$4*$I$5*'Park Allocations'!Z51","v":0},{"$f":"$D$4*$I$5*'Park Allocations'!AA51","v":0},{"$f":"$D$4*$I$5*'Park Allocations'!AB51","v":0},{"$f":"$D$4*$I$5*'Park Allocations'!AC51","v":0},{"$f":"$D$4*$I$5*'Park Allocations'!AD51","v":0},{"$f":"$D$4*$I$5*'Park Allocations'!AE51","v":0},{"$f":"$D$4*$I$5*'Park Allocations'!AF51","v":0},{"$f":"$D$4*$I$5*'Park Allocations'!AG51","v":0},{"$f":"$D$4*$I$5*'Park Allocations'!AH51","v":0},{"$f":"$D$4*$I$5*'Park Allocations'!AI51","v":0},{"$f":"$D$4*$I$5*'Park Allocations'!AJ51","v":0},{"$f":"$D$4*$I$5*'Park Allocations'!AK51","v":0},{"$f":"$D$4*$I$5*'Park Allocations'!AL51","v":0}]
[null,"167 - Forensic Investigations Council","167","Forensic Investigations Council",0,0,0,0,0,0,{"$f":"$D$4*$I$5*'Park Allocations'!E52","v":0},{"$f":"$D$4*$I$5*'Park Allocations'!F52","v":0},{"$f":"$D$4*$I$5*'Park Allocations'!G52","v":0},{"$f":"$D$4*$I$5*'Park Allocations'!H52","v":0},{"$f":"$D$4*$I$5*'Park Allocations'!I52","v":0},{"$f":"$D$4*$I$5*'Park Allocations'!J52","v":0},{"$f":"$D$4*$I$5*'Park Allocations'!K52","v":0},{"$f":"$D$4*$I$5*'Park Allocations'!L52","v":0},{"$f":"$D$4*$I$5*'Park Allocations'!M52","v":0},{"$f":"$D$4*$I$5*'Park Allocations'!N52","v":0},{"$f":"$D$4*$I$5*'Park Allocations'!O52","v":0},{"$f":"$D$4*$I$5*'Park Allocations'!P52","v":0},{"$f":"$D$4*$I$5*'Park Allocations'!Q52","v":0},{"$f":"$D$4*$I$5*'Park Allocations'!R52","v":0},{"$f":"$D$4*$I$5*'Park Allocations'!S52","v":0},{"$f":"$D$4*$I$5*'Park Allocations'!T52","v":0},{"$f":"$D$4*$I$5*'Park Allocations'!U52","v":0},{"$f":"$D$4*$I$5*'Park Allocations'!V52","v":0},{"$f":"$D$4*$I$5*'Park Allocations'!W52","v":0},{"$f":"$D$4*$I$5*'Park Allocations'!X52","v":0},{"$f":"$D$4*$I$5*'Park Allocations'!Y52","v":0},{"$f":"$D$4*$I$5*'Park Allocations'!Z52","v":0},{"$f":"$D$4*$I$5*'Park Allocations'!AA52","v":0},{"$f":"$D$4*$I$5*'Park Allocations'!AB52","v":0},{"$f":"$D$4*$I$5*'Park Allocations'!AC52","v":0},{"$f":"$D$4*$I$5*'Park Allocations'!AD52","v":0},{"$f":"$D$4*$I$5*'Park Allocations'!AE52","v":0},{"$f":"$D$4*$I$5*'Park Allocations'!AF52","v":0},{"$f":"$D$4*$I$5*'Park Allocations'!AG52","v":0},{"$f":"$D$4*$I$5*'Park Allocations'!AH52","v":0},{"$f":"$D$4*$I$5*'Park Allocations'!AI52","v":0},{"$f":"$D$4*$I$5*'Park Allocations'!AJ52","v":0},{"$f":"$D$4*$I$5*'Park Allocations'!AK52","v":0},{"$f":"$D$4*$I$5*'Park Allocations'!AL52","v":0}]
[null,"179 - Department of Enterprise Services","179","Department of Enterprise Services",22192.827409692691,20532.661263664388,761,1.3490579016862278E-2,1.0907793337899484E-3,9.5914625638319501E-3,{"$f":"$D$4*$I$5*'Park Allocations'!E53","v":0},{"$f":"$D$4*$I$5*'Park Allocations'!F53","v":0},{"$f":"$D$4*$I$5*'Park Allocations'!G53","v":422.13613322345924},{"$f":"$D$4*$I$5*'Park Allocations'!H53","v":0},{"$f":"$D$4*$I$5*'Park Allocations'!I53","v":0},{"$f":"$D$4*$I$5*'Park Allocations'!J53","v":1238.0300128048423},{"$f":"$D$4*$I$5*'Park Allocations'!K53","v":0},{"$f":"$D$4*$I$5*'Park Allocations'!L53","v":0},{"$f":"$D$4*$I$5*'Park Allocations'!M53","v":0},{"$f":"$D$4*$I$5*'Park Allocations'!N53","v":0},{"$f":"$D$4*$I$5*'Park Allocations'!O53","v":0},{"$f":"$D$4*$I$5*'Park Allocations'!P53","v":0},{"$f":"$D$4*$I$5*'Park Allocations'!Q53","v":0},{"$f":"$D$4*$I$5*'Park Allocations'!R53","v":0},{"$f":"$D$4*$I$5*'Park Allocations'!S53","v":0},{"$f":"$D$4*$I$5*'Park Allocations'!T53","v":0},{"$f":"$D$4*$I$5*'Park Allocations'!U53","v":0},{"$f":"$D$4*$I$5*'Park Allocations'!V53","v":0},{"$f":"$D$4*$I$5*'Park Allocations'!W53","v":0},{"$f":"$D$4*$I$5*'Park Allocations'!X53","v":0},{"$f":"$D$4*$I$5*'Park Allocations'!Y53","v":0},{"$f":"$D$4*$I$5*'Park Allocations'!Z53","v":0},{"$f":"$D$4*$I$5*'Park Allocations'!AA53","v":0},{"$f":"$D$4*$I$5*'Park Allocations'!AB53","v":0},{"$f":"$D$4*$I$5*'Park Allocations'!AC53","v":0},{"$f":"$D$4*$I$5*'Park Allocations'!AD53","v":0},{"$f":"$D$4*$I$5*'Park Allocations'!AE53","v":0},{"$f":"$D$4*$I$5*'Park Allocations'!AF53","v":0},{"$f":"$D$4*$I$5*'Park Allocations'!AG53","v":0},{"$f":"$D$4*$I$5*'Park Allocations'!AH53","v":0},{"$f":"$D$4*$I$5*'Park Allocations'!AI53","v":0},{"$f":"$D$4*$I$5*'Park Allocations'!AJ53","v":0},{"$f":"$D$4*$I$5*'Park Allocations'!AK53","v":0},{"$f":"$D$4*$I$5*'Park Allocations'!AL53","v":0}]
[null,"185 - Horse Racing Commission","185","Horse Racing Commission",80.943474101173678,80.943474101173678,3,5.3182308870679155E-5,0,0,{"$f":"$D$4*$I$5*'Park Allocations'!E54","v":0},{"$f":"$D$4*$I$5*'Park Allocations'!F54","v":0},{"$f":"$D$4*$I$5*'Park Allocations'!G54","v":0},{"$f":"$D$4*$I$5*'Park Allocations'!H54","v":0},{"$f":"$D$4*$I$5*'Park Allocations'!I54","v":0},{"$f":"$D$4*$I$5*'Park Allocations'!J54","v":0},{"$f":"$D$4*$I$5*'Park Allocations'!K54","v":0},{"$f":"$D$4*$I$5*'Park Allocations'!L54","v":0},{"$f":"$D$4*$I$5*'Park Allocations'!M54","v":0},{"$f":"$D$4*$I$5*'Park Allocations'!N54","v":0},{"$f":"$D$4*$I$5*'Park Allocations'!O54","v":0},{"$f":"$D$4*$I$5*'Park Allocations'!P54","v":0},{"$f":"$D$4*$I$5*'Park Allocations'!Q54","v":0},{"$f":"$D$4*$I$5*'Park Allocations'!R54","v":0},{"$f":"$D$4*$I$5*'Park Allocations'!S54","v":0},{"$f":"$D$4*$I$5*'Park Allocations'!T54","v":0},{"$f":"$D$4*$I$5*'Park Allocations'!U54","v":0},{"$f":"$D$4*$I$5*'Park Allocations'!V54","v":0},{"$f":"$D$4*$I$5*'Park Allocations'!W54","v":0},{"$f":"$D$4*$I$5*'Park Allocations'!X54","v":0},{"$f":"$D$4*$I$5*'Park Allocations'!Y54","v":0},{"$f":"$D$4*$I$5*'Park Allocations'!Z54","v":0},{"$f":"$D$4*$I$5*'Park Allocations'!AA54","v":0},{"$f":"$D$4*$I$5*'Park Allocations'!AB54","v":0},{"$f":"$D$4*$I$5*'Park Allocations'!AC54","v":0},{"$f":"$D$4*$I$5*'Park Allocations'!AD54","v":0},{"$f":"$D$4*$I$5*'Park Allocations'!AE54","v":0},{"$f":"$D$4*$I$5*'Park Allocations'!AF54","v":0},{"$f":"$D$4*$I$5*'Park Allocations'!AG54","v":0},{"$f":"$D$4*$I$5*'Park Allocations'!AH54","v":0},{"$f":"$D$4*$I$5*'Park Allocations'!AI54","v":0},{"$f":"$D$4*$I$5*'Park Allocations'!AJ54","v":0},{"$f":"$D$4*$I$5*'Park Allocations'!AK54","v":0},{"$f":"$D$4*$I$5*'Park Allocations'!AL54","v":0}]
[null,"190 - Board of Industrial Insurance Appeals","190","Board of Industrial Insurance Appeals",2725.0969614061805,2725.0969614061805,101,1.790471065312865E-3,0,0,{"$f":"$D$4*$I$5*'Park Allocations'!E55","v":0},{"$f":"$D$4*$I$5*'Park Allocations'!F55","v":0},{"$f":"$D$4*$I$5*'Park Allocations'!G55","v":0},{"$f":"$D$4*$I$5*'Park Allocations'!H55","v":0},{"$f":"$D$4*$I$5*'Park Allocations'!I55","v":0},{"$f":"$D$4*$I$5*'Park Allocations'!J55","v":0},{"$f":"$D$4*$I$5*'Park Allocations'!K55","v":0},{"$f":"$D$4*$I$5*'Park Allocations'!L55","v":0},{"$f":"$D$4*$I$5*'Park Allocations'!M55","v":0},{"$f":"$D$4*$I$5*'Park Allocations'!N55","v":0},{"$f":"$D$4*$I$5*'Park Allocations'!O55","v":0},{"$f":"$D$4*$I$5*'Park Allocations'!P55","v":0},{"$f":"$D$4*$I$5*'Park Allocations'!Q55","v":0},{"$f":"$D$4*$I$5*'Park Allocations'!R55","v":0},{"$f":"$D$4*$I$5*'Park Allocations'!S55","v":0},{"$f":"$D$4*$I$5*'Park Allocations'!T55","v":0},{"$f":"$D$4*$I$5*'Park Allocations'!U55","v":0},{"$f":"$D$4*$I$5*'Park Allocations'!V55","v":0},{"$f":"$D$4*$I$5*'Park Allocations'!W55","v":0},{"$f":"$D$4*$I$5*'Park Allocations'!X55","v":0},{"$f":"$D$4*$I$5*'Park Allocations'!Y55","v":0},{"$f":"$D$4*$I$5*'Park Allocations'!Z55","v":0},{"$f":"$D$4*$I$5*'Park Allocations'!AA55","v":0},{"$f":"$D$4*$I$5*'Park Allocations'!AB55","v":0},{"$f":"$D$4*$I$5*'Park Allocations'!AC55","v":0},{"$f":"$D$4*$I$5*'Park Allocations'!AD55","v":0},{"$f":"$D$4*$I$5*'Park Allocations'!AE55","v":0},{"$f":"$D$4*$I$5*'Park Allocations'!AF55","v":0},{"$f":"$D$4*$I$5*'Park Allocations'!AG55","v":0},{"$f":"$D$4*$I$5*'Park Allocations'!AH55","v":0},{"$f":"$D$4*$I$5*'Park Allocations'!AI55","v":0},{"$f":"$D$4*$I$5*'Park Allocations'!AJ55","v":0},{"$f":"$D$4*$I$5*'Park Allocations'!AK55","v":0},{"$f":"$D$4*$I$5*'Park Allocations'!AL55","v":0}]
[null,"195 - Liquor Control Board","195","Liquor Control Board",6070.7605575880261,6070.7605575880261,225,3.9886731653009369E-3,0,0,{"$f":"$D$4*$I$5*'Park Allocations'!E56","v":0},{"$f":"$D$4*$I$5*'Park Allocations'!F56","v":0},{"$f":"$D$4*$I$5*'Park Allocations'!G56","v":0},{"$f":"$D$4*$I$5*'Park Allocations'!H56","v":0},{"$f":"$D$4*$I$5*'Park Allocations'!I56","v":0},{"$f":"$D$4*$I$5*'Park Allocations'!J56","v":0},{"$f":"$D$4*$I$5*'Park Allocations'!K56","v":0},{"$f":"$D$4*$I$5*'Park Allocations'!L56","v":0},{"$f":"$D$4*$I$5*'Park Allocations'!M56","v":0},{"$f":"$D$4*$I$5*'Park Allocations'!N56","v":0},{"$f":"$D$4*$I$5*'Park Allocations'!O56","v":0},{"$f":"$D$4*$I$5*'Park Allocations'!P56","v":0},{"$f":"$D$4*$I$5*'Park Allocations'!Q56","v":0},{"$f":"$D$4*$I$5*'Park Allocations'!R56","v":0},{"$f":"$D$4*$I$5*'Park Allocations'!S56","v":0},{"$f":"$D$4*$I$5*'Park Allocations'!T56","v":0},{"$f":"$D$4*$I$5*'Park Allocations'!U56","v":0},{"$f":"$D$4*$I$5*'Park Allocations'!V56","v":0},{"$f":"$D$4*$I$5*'Park Allocations'!W56","v":0},{"$f":"$D$4*$I$5*'Park Allocations'!X56","v":0},{"$f":"$D$4*$I$5*'Park Allocations'!Y56","v":0},{"$f":"$D$4*$I$5*'Park Allocations'!Z56","v":0},{"$f":"$D$4*$I$5*'Park Allocations'!AA56","v":0},{"$f":"$D$4*$I$5*'Park Allocations'!AB56","v":0},{"$f":"$D$4*$I$5*'Park Allocations'!AC56","v":0},{"$f":"$D$4*$I$5*'Park Allocations'!AD56","v":0},{"$f":"$D$4*$I$5*'Park Allocations'!AE56","v":0},{"$f":"$D$4*$I$5*'Park Allocations'!AF56","v":0},{"$f":"$D$4*$I$5*'Park Allocations'!AG56","v":0},{"$f":"$D$4*$I$5*'Park Allocations'!AH56","v":0},{"$f":"$D$4*$I$5*'Park Allocations'!AI56","v":0},{"$f":"$D$4*$I$5*'Park Allocations'!AJ56","v":0},{"$f":"$D$4*$I$5*'Park Allocations'!AK56","v":0},{"$f":"$D$4*$I$5*'Park Allocations'!AL56","v":0}]
[null,"205 - Board of Pilotage Commissioners","205","Board of Pilotage Commissioners",0,0,0,0,0,0,{"$f":"$D$4*$I$5*'Park Allocations'!E57","v":0},{"$f":"$D$4*$I$5*'Park Allocations'!F57","v":0},{"$f":"$D$4*$I$5*'Park Allocations'!G57","v":0},{"$f":"$D$4*$I$5*'Park Allocations'!H57","v":0},{"$f":"$D$4*$I$5*'Park Allocations'!I57","v":0},{"$f":"$D$4*$I$5*'Park Allocations'!J57","v":0},{"$f":"$D$4*$I$5*'Park Allocations'!K57","v":0},{"$f":"$D$4*$I$5*'Park Allocations'!L57","v":0},{"$f":"$D$4*$I$5*'Park Allocations'!M57","v":0},{"$f":"$D$4*$I$5*'Park Allocations'!N57","v":0},{"$f":"$D$4*$I$5*'Park Allocations'!O57","v":0},{"$f":"$D$4*$I$5*'Park Allocations'!P57","v":0},{"$f":"$D$4*$I$5*'Park Allocations'!Q57","v":0},{"$f":"$D$4*$I$5*'Park Allocations'!R57","v":0},{"$f":"$D$4*$I$5*'Park Allocations'!S57","v":0},{"$f":"$D$4*$I$5*'Park Allocations'!T57","v":0},{"$f":"$D$4*$I$5*'Park Allocations'!U57","v":0},{"$f":"$D$4*$I$5*'Park Allocations'!V57","v":0},{"$f":"$D$4*$I$5*'Park Allocations'!W57","v":0},{"$f":"$D$4*$I$5*'Park Allocations'!X57","v":0},{"$f":"$D$4*$I$5*'Park Allocations'!Y57","v":0},{"$f":"$D$4*$I$5*'Park Allocations'!Z57","v":0},{"$f":"$D$4*$I$5*'Park Allocations'!AA57","v":0},{"$f":"$D$4*$I$5*'Park Allocations'!AB57","v":0},{"$f":"$D$4*$I$5*'Park Allocations'!AC57","v":0},{"$f":"$D$4*$I$5*'Park Allocations'!AD57","v":0},{"$f":"$D$4*$I$5*'Park Allocations'!AE57","v":0},{"$f":"$D$4*$I$5*'Park Allocations'!AF57","v":0},{"$f":"$D$4*$I$5*'Park Allocations'!AG57","v":0},{"$f":"$D$4*$I$5*'Park Allocations'!AH57","v":0},{"$f":"$D$4*$I$5*'Park Allocations'!AI57","v":0},{"$f":"$D$4*$I$5*'Park Allocations'!AJ57","v":0},{"$f":"$D$4*$I$5*'Park Allocations'!AK57","v":0},{"$f":"$D$4*$I$5*'Park Allocations'!AL57","v":0}]
[null,"215 - Utilities and Transportation Commission","215","Utilities and Transportation Commission",4020.1925470249594,4020.1925470249594,149,2.6413880072437314E-3,0,0,{"$f":"$D$4*$I$5*'Park Allocations'!E58","v":0},{"$f":"$D$4*$I$5*'Park Allocations'!F58","v":0},{"$f":"$D$4*$I$5*'Park Allocations'!G58","v":0},{"$f":"$D$4*$I$5*'Park Allocations'!H58","v":0},{"$f":"$D$4*$I$5*'Park Allocations'!I58","v":0},{"$f":"$D$4*$I$5*'Park Allocations'!J58","v":0},{"$f":"$D$4*$I$5*'Park Allocations'!K58","v":0},{"$f":"$D$4*$I$5*'Park Allocations'!L58","v":0},{"$f":"$D$4*$I$5*'Park Allocations'!M58","v":0},{"$f":"$D$4*$I$5*'Park Allocations'!N58","v":0},{"$f":"$D$4*$I$5*'Park Allocations'!O58","v":0},{"$f":"$D$4*$I$5*'Park Allocations'!P58","v":0},{"$f":"$D$4*$I$5*'Park Allocations'!Q58","v":0},{"$f":"$D$4*$I$5*'Park Allocations'!R58","v":0},{"$f":"$D$4*$I$5*'Park Allocations'!S58","v":0},{"$f":"$D$4*$I$5*'Park Allocations'!T58","v":0},{"$f":"$D$4*$I$5*'Park Allocations'!U58","v":0},{"$f":"$D$4*$I$5*'Park Allocations'!V58","v":0},{"$f":"$D$4*$I$5*'Park Allocations'!W58","v":0},{"$f":"$D$4*$I$5*'Park Allocations'!X58","v":0},{"$f":"$D$4*$I$5*'Park Allocations'!Y58","v":0},{"$f":"$D$4*$I$5*'Park Allocations'!Z58","v":0},{"$f":"$D$4*$I$5*'Park Allocations'!AA58","v":0},{"$f":"$D$4*$I$5*'Park Allocations'!AB58","v":0},{"$f":"$D$4*$I$5*'Park Allocations'!AC58","v":0},{"$f":"$D$4*$I$5*'Park Allocations'!AD58","v":0},{"$f":"$D$4*$I$5*'Park Allocations'!AE58","v":0},{"$f":"$D$4*$I$5*'Park Allocations'!AF58","v":0},{"$f":"$D$4*$I$5*'Park Allocations'!AG58","v":0},{"$f":"$D$4*$I$5*'Park Allocations'!AH58","v":0},{"$f":"$D$4*$I$5*'Park Allocations'!AI58","v":0},{"$f":"$D$4*$I$5*'Park Allocations'!AJ58","v":0},{"$f":"$D$4*$I$5*'Park Allocations'!AK58","v":0},{"$f":"$D$4*$I$5*'Park Allocations'!AL58","v":0}]
[null,"220 - Board for Volunteer Firefighters and Reserve Officers","220","Board for Volunteer Firefighters and Reserve Officers",80.943474101173678,80.943474101173678,3,5.3182308870679155E-5,0,0,{"$f":"$D$4*$I$5*'Park Allocations'!E59","v":0},{"$f":"$D$4*$I$5*'Park Allocations'!F59","v":0},{"$f":"$D$4*$I$5*'Park Allocations'!G59","v":0},{"$f":"$D$4*$I$5*'Park Allocations'!H59","v":0},{"$f":"$D$4*$I$5*'Park Allocations'!I59","v":0},{"$f":"$D$4*$I$5*'Park Allocations'!J59","v":0},{"$f":"$D$4*$I$5*'Park Allocations'!K59","v":0},{"$f":"$D$4*$I$5*'Park Allocations'!L59","v":0},{"$f":"$D$4*$I$5*'Park Allocations'!M59","v":0},{"$f":"$D$4*$I$5*'Park Allocations'!N59","v":0},{"$f":"$D$4*$I$5*'Park Allocations'!O59","v":0},{"$f":"$D$4*$I$5*'Park Allocations'!P59","v":0},{"$f":"$D$4*$I$5*'Park Allocations'!Q59","v":0},{"$f":"$D$4*$I$5*'Park Allocations'!R59","v":0},{"$f":"$D$4*$I$5*'Park Allocations'!S59","v":0},{"$f":"$D$4*$I$5*'Park Allocations'!T59","v":0},{"$f":"$D$4*$I$5*'Park Allocations'!U59","v":0},{"$f":"$D$4*$I$5*'Park Allocations'!V59","v":0},{"$f":"$D$4*$I$5*'Park Allocations'!W59","v":0},{"$f":"$D$4*$I$5*'Park Allocations'!X59","v":0},{"$f":"$D$4*$I$5*'Park Allocations'!Y59","v":0},{"$f":"$D$4*$I$5*'Park Allocations'!Z59","v":0},{"$f":"$D$4*$I$5*'Park Allocations'!AA59","v":0},{"$f":"$D$4*$I$5*'Park Allocations'!AB59","v":0},{"$f":"$D$4*$I$5*'Park Allocations'!AC59","v":0},{"$f":"$D$4*$I$5*'Park Allocations'!AD59","v":0},{"$f":"$D$4*$I$5*'Park Allocations'!AE59","v":0},{"$f":"$D$4*$I$5*'Park Allocations'!AF59","v":0},{"$f":"$D$4*$I$5*'Park Allocations'!AG59","v":0},{"$f":"$D$4*$I$5*'Park Allocations'!AH59","v":0},{"$f":"$D$4*$I$5*'Park Allocations'!AI59","v":0},{"$f":"$D$4*$I$5*'Park Allocations'!AJ59","v":0},{"$f":"$D$4*$I$5*'Park Allocations'!AK59","v":0},{"$f":"$D$4*$I$5*'Park Allocations'!AL59","v":0}]
[null,"225 - Washington State Patrol","225","Washington State Patrol",15303.070417346331,15271.335447088099,566,1.0033728940268133E-2,2.0850834598050702E-5,1.4916681871619334E-4,{"$f":"$D$4*$I$5*'Park Allocations'!E60","v":0},{"$f":"$D$4*$I$5*'Park Allocations'!F60","v":0},{"$f":"$D$4*$I$5*'Park Allocations'!G60","v":31.734970258233172},{"$f":"$D$4*$I$5*'Park Allocations'!H60","v":0},{"$f":"$D$4*$I$5*'Park Allocations'!I60","v":0},{"$f":"$D$4*$I$5*'Park Allocations'!J60","v":0},{"$f":"$D$4*$I$5*'Park Allocations'!K60","v":0},{"$f":"$D$4*$I$5*'Park Allocations'!L60","v":0},{"$f":"$D$4*$I$5*'Park Allocations'!M60","v":0},{"$f":"$D$4*$I$5*'Park Allocations'!N60","v":0},{"$f":"$D$4*$I$5*'Park Allocations'!O60","v":0},{"$f":"$D$4*$I$5*'Park Allocations'!P60","v":0},{"$f":"$D$4*$I$5*'Park Allocations'!Q60","v":0},{"$f":"$D$4*$I$5*'Park Allocations'!R60","v":0},{"$f":"$D$4*$I$5*'Park Allocations'!S60","v":0},{"$f":"$D$4*$I$5*'Park Allocations'!T60","v":0},{"$f":"$D$4*$I$5*'Park Allocations'!U60","v":0},{"$f":"$D$4*$I$5*'Park Allocations'!V60","v":0},{"$f":"$D$4*$I$5*'Park Allocations'!W60","v":0},{"$f":"$D$4*$I$5*'Park Allocations'!X60","v":0},{"$f":"$D$4*$I$5*'Park Allocations'!Y60","v":0},{"$f":"$D$4*$I$5*'Park Allocations'!Z60","v":0},{"$f":"$D$4*$I$5*'Park Allocations'!AA60","v":0},{"$f":"$D$4*$I$5*'Park Allocations'!AB60","v":0},{"$f":"$D$4*$I$5*'Park Allocations'!AC60","v":0},{"$f":"$D$4*$I$5*'Park Allocations'!AD60","v":0},{"$f":"$D$4*$I$5*'Park Allocations'!AE60","v":0},{"$f":"$D$4*$I$5*'Park Allocations'!AF60","v":0},{"$f":"$D$4*$I$5*'Park Allocations'!AG60","v":0},{"$f":"$D$4*$I$5*'Park Allocations'!AH60","v":0},{"$f":"$D$4*$I$5*'Park Allocations'!AI60","v":0},{"$f":"$D$4*$I$5*'Park Allocations'!AJ60","v":0},{"$f":"$D$4*$I$5*'Park Allocations'!AK60","v":0},{"$f":"$D$4*$I$5*'Park Allocations'!AL60","v":0}]
[null,"227 - Criminal Justice Training Commission","227","Criminal Justice Training Commission",26.981158033724558,26.981158033724558,1,1.7727436290226384E-5,0,0,{"$f":"$D$4*$I$5*'Park Allocations'!E61","v":0},{"$f":"$D$4*$I$5*'Park Allocations'!F61","v":0},{"$f":"$D$4*$I$5*'Park Allocations'!G61","v":0},{"$f":"$D$4*$I$5*'Park Allocations'!H61","v":0},{"$f":"$D$4*$I$5*'Park Allocations'!I61","v":0},{"$f":"$D$4*$I$5*'Park Allocations'!J61","v":0},{"$f":"$D$4*$I$5*'Park Allocations'!K61","v":0},{"$f":"$D$4*$I$5*'Park Allocations'!L61","v":0},{"$f":"$D$4*$I$5*'Park Allocations'!M61","v":0},{"$f":"$D$4*$I$5*'Park Allocations'!N61","v":0},{"$f":"$D$4*$I$5*'Park Allocations'!O61","v":0},{"$f":"$D$4*$I$5*'Park Allocations'!P61","v":0},{"$f":"$D$4*$I$5*'Park Allocations'!Q61","v":0},{"$f":"$D$4*$I$5*'Park Allocations'!R61","v":0},{"$f":"$D$4*$I$5*'Park Allocations'!S61","v":0},{"$f":"$D$4*$I$5*'Park Allocations'!T61","v":0},{"$f":"$D$4*$I$5*'Park Allocations'!U61","v":0},{"$f":"$D$4*$I$5*'Park Allocations'!V61","v":0},{"$f":"$D$4*$I$5*'Park Allocations'!W61","v":0},{"$f":"$D$4*$I$5*'Park Allocations'!X61","v":0},{"$f":"$D$4*$I$5*'Park Allocations'!Y61","v":0},{"$f":"$D$4*$I$5*'Park Allocations'!Z61","v":0},{"$f":"$D$4*$I$5*'Park Allocations'!AA61","v":0},{"$f":"$D$4*$I$5*'Park Allocations'!AB61","v":0},{"$f":"$D$4*$I$5*'Park Allocations'!AC61","v":0},{"$f":"$D$4*$I$5*'Park Allocations'!AD61","v":0},{"$f":"$D$4*$I$5*'Park Allocations'!AE61","v":0},{"$f":"$D$4*$I$5*'Park Allocations'!AF61","v":0},{"$f":"$D$4*$I$5*'Park Allocations'!AG61","v":0},{"$f":"$D$4*$I$5*'Park Allocations'!AH61","v":0},{"$f":"$D$4*$I$5*'Park Allocations'!AI61","v":0},{"$f":"$D$4*$I$5*'Park Allocations'!AJ61","v":0},{"$f":"$D$4*$I$5*'Park Allocations'!AK61","v":0},{"$f":"$D$4*$I$5*'Park Allocations'!AL61","v":0}]
[null,"228 - Traffic Safety Commission","228","Traffic Safety Commission",566.60431870821583,566.60431870821583,21,3.7227616209475412E-4,0,0,{"$f":"$D$4*$I$5*'Park Allocations'!E62","v":0},{"$f":"$D$4*$I$5*'Park Allocations'!F62","v":0},{"$f":"$D$4*$I$5*'Park Allocations'!G62","v":0},{"$f":"$D$4*$I$5*'Park Allocations'!H62","v":0},{"$f":"$D$4*$I$5*'Park Allocations'!I62","v":0},{"$f":"$D$4*$I$5*'Park Allocations'!J62","v":0},{"$f":"$D$4*$I$5*'Park Allocations'!K62","v":0},{"$f":"$D$4*$I$5*'Park Allocations'!L62","v":0},{"$f":"$D$4*$I$5*'Park Allocations'!M62","v":0},{"$f":"$D$4*$I$5*'Park Allocations'!N62","v":0},{"$f":"$D$4*$I$5*'Park Allocations'!O62","v":0},{"$f":"$D$4*$I$5*'Park Allocations'!P62","v":0},{"$f":"$D$4*$I$5*'Park Allocations'!Q62","v":0},{"$f":"$D$4*$I$5*'Park Allocations'!R62","v":0},{"$f":"$D$4*$I$5*'Park Allocations'!S62","v":0},{"$f":"$D$4*$I$5*'Park Allocations'!T62","v":0},{"$f":"$D$4*$I$5*'Park Allocations'!U62","v":0},{"$f":"$D$4*$I$5*'Park Allocations'!V62","v":0},{"$f":"$D$4*$I$5*'Park Allocations'!W62","v":0},{"$f":"$D$4*$I$5*'Park Allocations'!X62","v":0},{"$f":"$D$4*$I$5*'Park Allocations'!Y62","v":0},{"$f":"$D$4*$I$5*'Park Allocations'!Z62","v":0},{"$f":"$D$4*$I$5*'Park Allocations'!AA62","v":0},{"$f":"$D$4*$I$5*'Park Allocations'!AB62","v":0},{"$f":"$D$4*$I$5*'Park Allocations'!AC62","v":0},{"$f":"$D$4*$I$5*'Park Allocations'!AD62","v":0},{"$f":"$D$4*$I$5*'Park Allocations'!AE62","v":0},{"$f":"$D$4*$I$5*'Park Allocations'!AF62","v":0},{"$f":"$D$4*$I$5*'Park Allocations'!AG62","v":0},{"$f":"$D$4*$I$5*'Park Allocations'!AH62","v":0},{"$f":"$D$4*$I$5*'Park Allocations'!AI62","v":0},{"$f":"$D$4*$I$5*'Park Allocations'!AJ62","v":0},{"$f":"$D$4*$I$5*'Park Allocations'!AK62","v":0},{"$f":"$D$4*$I$5*'Park Allocations'!AL62","v":0}]
[null,"235 - Department of Labor and Industries","235","Department of Labor and Industries",59223.641884025405,59223.641884025405,2195,3.8911722657046913E-2,0,4.874842701457857E-3,{"$f":"$D$4*$I$5*'Park Allocations'!E63","v":0},{"$f":"$D$4*$I$5*'Park Allocations'!F63","v":0},{"$f":"$D$4*$I$5*'Park Allocations'!G63","v":0},{"$f":"$D$4*$I$5*'Park Allocations'!H63","v":0},{"$f":"$D$4*$I$5*'Park Allocations'!I63","v":0},{"$f":"$D$4*$I$5*'Park Allocations'!J63","v":0},{"$f":"$D$4*$I$5*'Park Allocations'!K63","v":0},{"$f":"$D$4*$I$5*'Park Allocations'!L63","v":0},{"$f":"$D$4*$I$5*'Park Allocations'!M63","v":0},{"$f":"$D$4*$I$5*'Park Allocations'!N63","v":0},{"$f":"$D$4*$I$5*'Park Allocations'!O63","v":0},{"$f":"$D$4*$I$5*'Park Allocations'!P63","v":0},{"$f":"$D$4*$I$5*'Park Allocations'!Q63","v":0},{"$f":"$D$4*$I$5*'Park Allocations'!R63","v":0},{"$f":"$D$4*$I$5*'Park Allocations'!S63","v":0},{"$f":"$D$4*$I$5*'Park Allocations'!T63","v":0},{"$f":"$D$4*$I$5*'Park Allocations'!U63","v":0},{"$f":"$D$4*$I$5*'Park Allocations'!V63","v":0},{"$f":"$D$4*$I$5*'Park Allocations'!W63","v":0},{"$f":"$D$4*$I$5*'Park Allocations'!X63","v":0},{"$f":"$D$4*$I$5*'Park Allocations'!Y63","v":0},{"$f":"$D$4*$I$5*'Park Allocations'!Z63","v":0},{"$f":"$D$4*$I$5*'Park Allocations'!AA63","v":0},{"$f":"$D$4*$I$5*'Park Allocations'!AB63","v":0},{"$f":"$D$4*$I$5*'Park Allocations'!AC63","v":0},{"$f":"$D$4*$I$5*'Park Allocations'!AD63","v":0},{"$f":"$D$4*$I$5*'Park Allocations'!AE63","v":0},{"$f":"$D$4*$I$5*'Park Allocations'!AF63","v":0},{"$f":"$D$4*$I$5*'Park Allocations'!AG63","v":0},{"$f":"$D$4*$I$5*'Park Allocations'!AH63","v":0},{"$f":"$D$4*$I$5*'Park Allocations'!AI63","v":0},{"$f":"$D$4*$I$5*'Park Allocations'!AJ63","v":0},{"$f":"$D$4*$I$5*'Park Allocations'!AK63","v":0},{"$f":"$D$4*$I$5*'Park Allocations'!AL63","v":0}]
[null,"240 - Department of Licensing","240","Department of Licensing",30477.974968818649,24121.155282149753,894,1.5848328043462388E-2,4.1766226587837676E-3,2.7700391705837751E-2,{"$f":"$D$4*$I$5*'Park Allocations'!E64","v":0},{"$f":"$D$4*$I$5*'Park Allocations'!F64","v":0},{"$f":"$D$4*$I$5*'Park Allocations'!G64","v":0},{"$f":"$D$4*$I$5*'Park Allocations'!H64","v":0},{"$f":"$D$4*$I$5*'Park Allocations'!I64","v":6356.8196866688941},{"$f":"$D$4*$I$5*'Park Allocations'!J64","v":0},{"$f":"$D$4*$I$5*'Park Allocations'!K64","v":0},{"$f":"$D$4*$I$5*'Park Allocations'!L64","v":0},{"$f":"$D$4*$I$5*'Park Allocations'!M64","v":0},{"$f":"$D$4*$I$5*'Park Allocations'!N64","v":0},{"$f":"$D$4*$I$5*'Park Allocations'!O64","v":0},{"$f":"$D$4*$I$5*'Park Allocations'!P64","v":0},{"$f":"$D$4*$I$5*'Park Allocations'!Q64","v":0},{"$f":"$D$4*$I$5*'Park Allocations'!R64","v":0},{"$f":"$D$4*$I$5*'Park Allocations'!S64","v":0},{"$f":"$D$4*$I$5*'Park Allocations'!T64","v":0},{"$f":"$D$4*$I$5*'Park Allocations'!U64","v":0},{"$f":"$D$4*$I$5*'Park Allocations'!V64","v":0},{"$f":"$D$4*$I$5*'Park Allocations'!W64","v":0},{"$f":"$D$4*$I$5*'Park Allocations'!X64","v":0},{"$f":"$D$4*$I$5*'Park Allocations'!Y64","v":0},{"$f":"$D$4*$I$5*'Park Allocations'!Z64","v":0},{"$f":"$D$4*$I$5*'Park Allocations'!AA64","v":0},{"$f":"$D$4*$I$5*'Park Allocations'!AB64","v":0},{"$f":"$D$4*$I$5*'Park Allocations'!AC64","v":0},{"$f":"$D$4*$I$5*'Park Allocations'!AD64","v":0},{"$f":"$D$4*$I$5*'Park Allocations'!AE64","v":0},{"$f":"$D$4*$I$5*'Park Allocations'!AF64","v":0},{"$f":"$D$4*$I$5*'Park Allocations'!AG64","v":0},{"$f":"$D$4*$I$5*'Park Allocations'!AH64","v":0},{"$f":"$D$4*$I$5*'Park Allocations'!AI64","v":0},{"$f":"$D$4*$I$5*'Park Allocations'!AJ64","v":0},{"$f":"$D$4*$I$5*'Park Allocations'!AK64","v":0},{"$f":"$D$4*$I$5*'Park Allocations'!AL64","v":0}]
[null,"245 - Military Department","245","Military Department",0,0,0,0,0,0,{"$f":"$D$4*$I$5*'Park Allocations'!E65","v":0},{"$f":"$D$4*$I$5*'Park Allocations'!F65","v":0},{"$f":"$D$4*$I$5*'Park Allocations'!G65","v":0},{"$f":"$D$4*$I$5*'Park Allocations'!H65","v":0},{"$f":"$D$4*$I$5*'Park Allocations'!I65","v":0},{"$f":"$D$4*$I$5*'Park Allocations'!J65","v":0},{"$f":"$D$4*$I$5*'Park Allocations'!K65","v":0},{"$f":"$D$4*$I$5*'Park Allocations'!L65","v":0},{"$f":"$D$4*$I$5*'Park Allocations'!M65","v":0},{"$f":"$D$4*$I$5*'Park Allocations'!N65","v":0},{"$f":"$D$4*$I$5*'Park Allocations'!O65","v":0},{"$f":"$D$4*$I$5*'Park Allocations'!P65","v":0},{"$f":"$D$4*$I$5*'Park Allocations'!Q65","v":0},{"$f":"$D$4*$I$5*'Park Allocations'!R65","v":0},{"$f":"$D$4*$I$5*'Park Allocations'!S65","v":0},{"$f":"$D$4*$I$5*'Park Allocations'!T65","v":0},{"$f":"$D$4*$I$5*'Park Allocations'!U65","v":0},{"$f":"$D$4*$I$5*'Park Allocations'!V65","v":0},{"$f":"$D$4*$I$5*'Park Allocations'!W65","v":0},{"$f":"$D$4*$I$5*'Park Allocations'!X65","v":0},{"$f":"$D$4*$I$5*'Park Allocations'!Y65","v":0},{"$f":"$D$4*$I$5*'Park Allocations'!Z65","v":0},{"$f":"$D$4*$I$5*'Park Allocations'!AA65","v":0},{"$f":"$D$4*$I$5*'Park Allocations'!AB65","v":0},{"$f":"$D$4*$I$5*'Park Allocations'!AC65","v":0},{"$f":"$D$4*$I$5*'Park Allocations'!AD65","v":0},{"$f":"$D$4*$I$5*'Park Allocations'!AE65","v":0},{"$f":"$D$4*$I$5*'Park Allocations'!AF65","v":0},{"$f":"$D$4*$I$5*'Park Allocations'!AG65","v":0},{"$f":"$D$4*$I$5*'Park Allocations'!AH65","v":0},{"$f":"$D$4*$I$5*'Park Allocations'!AI65","v":0},{"$f":"$D$4*$I$5*'Park Allocations'!AJ65","v":0},{"$f":"$D$4*$I$5*'Park Allocations'!AK65","v":0},{"$f":"$D$4*$I$5*'Park Allocations'!AL65","v":0}]
[null,"275 - Public Employment Relations Commission","275","Public Employment Relations Commission",566.60431870821583,566.60431870821583,21,3.7227616209475412E-4,0,0,{"$f":"$D$4*$I$5*'Park Allocations'!E66","v":0},{"$f":"$D$4*$I$5*'Park Allocations'!F66","v":0},{"$f":"$D$4*$I$5*'Park Allocations'!G66","v":0},{"$f":"$D$4*$I$5*'Park Allocations'!H66","v":0},{"$f":"$D$4*$I$5*'Park Allocations'!I66","v":0},{"$f":"$D$4*$I$5*'Park Allocations'!J66","v":0},{"$f":"$D$4*$I$5*'Park Allocations'!K66","v":0},{"$f":"$D$4*$I$5*'Park Allocations'!L66","v":0},{"$f":"$D$4*$I$5*'Park Allocations'!M66","v":0},{"$f":"$D$4*$I$5*'Park Allocations'!N66","v":0},{"$f":"$D$4*$I$5*'Park Allocations'!O66","v":0},{"$f":"$D$4*$I$5*'Park Allocations'!P66","v":0},{"$f":"$D$4*$I$5*'Park Allocations'!Q66","v":0},{"$f":"$D$4*$I$5*'Park Allocations'!R66","v":0},{"$f":"$D$4*$I$5*'Park Allocations'!S66","v":0},{"$f":"$D$4*$I$5*'Park Allocations'!T66","v":0},{"$f":"$D$4*$I$5*'Park Allocations'!U66","v":0},{"$f":"$D$4*$I$5*'Park Allocations'!V66","v":0},{"$f":"$D$4*$I$5*'Park Allocations'!W66","v":0},{"$f":"$D$4*$I$5*'Park Allocations'!X66","v":0},{"$f":"$D$4*$I$5*'Park Allocations'!Y66","v":0},{"$f":"$D$4*$I$5*'Park Allocations'!Z66","v":0},{"$f":"$D$4*$I$5*'Park Allocations'!AA66","v":0},{"$f":"$D$4*$I$5*'Park Allocations'!AB66","v":0},{"$f":"$D$4*$I$5*'Park Allocations'!AC66","v":0},{"$f":"$D$4*$I$5*'Park Allocations'!AD66","v":0},{"$f":"$D$4*$I$5*'Park Allocations'!AE66","v":0},{"$f":"$D$4*$I$5*'Park Allocations'!AF66","v":0},{"$f":"$D$4*$I$5*'Park Allocations'!AG66","v":0},{"$f":"$D$4*$I$5*'Park Allocations'!AH66","v":0},{"$f":"$D$4*$I$5*'Park Allocations'!AI66","v":0},{"$f":"$D$4*$I$5*'Park Allocations'!AJ66","v":0},{"$f":"$D$4*$I$5*'Park Allocations'!AK66","v":0},{"$f":"$D$4*$I$5*'Park Allocations'!AL66","v":0}]
[null,"300 - Department of Social and Health Services","300","Department of Social and Health Services",81775.161717757146,71931.767317909675,2666,4.7261345149743547E-2,6.4674076214503761E-3,5.4814518585459653E-2,{"$f":"$D$4*$I$5*'Park Allocations'!E67","v":0},{"$f":"$D$4*$I$5*'Park Allocations'!F67","v":0},{"$f":"$D$4*$I$5*'Park Allocations'!G67","v":0},{"$f":"$D$4*$I$5*'Park Allocations'!H67","v":0},{"$f":"$D$4*$I$5*'Park Allocations'!I67","v":0},{"$f":"$D$4*$I$5*'Park Allocations'!J67","v":9843.3943998474733},{"$f":"$D$4*$I$5*'Park Allocations'!K67","v":0},{"$f":"$D$4*$I$5*'Park Allocations'!L67","v":0},{"$f":"$D$4*$I$5*'Park Allocations'!M67","v":0},{"$f":"$D$4*$I$5*'Park Allocations'!N67","v":0},{"$f":"$D$4*$I$5*'Park Allocations'!O67","v":0},{"$f":"$D$4*$I$5*'Park Allocations'!P67","v":0},{"$f":"$D$4*$I$5*'Park Allocations'!Q67","v":0},{"$f":"$D$4*$I$5*'Park Allocations'!R67","v":0},{"$f":"$D$4*$I$5*'Park Allocations'!S67","v":0},{"$f":"$D$4*$I$5*'Park Allocations'!T67","v":0},{"$f":"$D$4*$I$5*'Park Allocations'!U67","v":0},{"$f":"$D$4*$I$5*'Park Allocations'!V67","v":0},{"$f":"$D$4*$I$5*'Park Allocations'!W67","v":0},{"$f":"$D$4*$I$5*'Park Allocations'!X67","v":0},{"$f":"$D$4*$I$5*'Park Allocations'!Y67","v":0},{"$f":"$D$4*$I$5*'Park Allocations'!Z67","v":0},{"$f":"$D$4*$I$5*'Park Allocations'!AA67","v":0},{"$f":"$D$4*$I$5*'Park Allocations'!AB67","v":0},{"$f":"$D$4*$I$5*'Park Allocations'!AC67","v":0},{"$f":"$D$4*$I$5*'Park Allocations'!AD67","v":0},{"$f":"$D$4*$I$5*'Park Allocations'!AE67","v":0},{"$f":"$D$4*$I$5*'Park Allocations'!AF67","v":0},{"$f":"$D$4*$I$5*'Park Allocations'!AG67","v":0},{"$f":"$D$4*$I$5*'Park Allocations'!AH67","v":0},{"$f":"$D$4*$I$5*'Park Allocations'!AI67","v":0},{"$f":"$D$4*$I$5*'Park Allocations'!AJ67","v":0},{"$f":"$D$4*$I$5*'Park Allocations'!AK67","v":0},{"$f":"$D$4*$I$5*'Park Allocations'!AL67","v":0}]
[null,"303 - Department of Health","303","Department of Health",42576.267377217351,42576.267377217351,1578,2.7973894465977235E-2,0,0,{"$f":"$D$4*$I$5*'Park Allocations'!E68","v":0},{"$f":"$D$4*$I$5*'Park Allocations'!F68","v":0},{"$f":"$D$4*$I$5*'Park Allocations'!G68","v":0},{"$f":"$D$4*$I$5*'Park Allocations'!H68","v":0},{"$f":"$D$4*$I$5*'Park Allocations'!I68","v":0},{"$f":"$D$4*$I$5*'Park Allocations'!J68","v":0},{"$f":"$D$4*$I$5*'Park Allocations'!K68","v":0},{"$f":"$D$4*$I$5*'Park Allocations'!L68","v":0},{"$f":"$D$4*$I$5*'Park Allocations'!M68","v":0},{"$f":"$D$4*$I$5*'Park Allocations'!N68","v":0},{"$f":"$D$4*$I$5*'Park Allocations'!O68","v":0},{"$f":"$D$4*$I$5*'Park Allocations'!P68","v":0},{"$f":"$D$4*$I$5*'Park Allocations'!Q68","v":0},{"$f":"$D$4*$I$5*'Park Allocations'!R68","v":0},{"$f":"$D$4*$I$5*'Park Allocations'!S68","v":0},{"$f":"$D$4*$I$5*'Park Allocations'!T68","v":0},{"$f":"$D$4*$I$5*'Park Allocations'!U68","v":0},{"$f":"$D$4*$I$5*'Park Allocations'!V68","v":0},{"$f":"$D$4*$I$5*'Park Allocations'!W68","v":0},{"$f":"$D$4*$I$5*'Park Allocations'!X68","v":0},{"$f":"$D$4*$I$5*'Park Allocations'!Y68","v":0},{"$f":"$D$4*$I$5*'Park Allocations'!Z68","v":0},{"$f":"$D$4*$I$5*'Park Allocations'!AA68","v":0},{"$f":"$D$4*$I$5*'Park Allocations'!AB68","v":0},{"$f":"$D$4*$I$5*'Park Allocations'!AC68","v":0},{"$f":"$D$4*$I$5*'Park Allocations'!AD68","v":0},{"$f":"$D$4*$I$5*'Park Allocations'!AE68","v":0},{"$f":"$D$4*$I$5*'Park Allocations'!AF68","v":0},{"$f":"$D$4*$I$5*'Park Allocations'!AG68","v":0},{"$f":"$D$4*$I$5*'Park Allocations'!AH68","v":0},{"$f":"$D$4*$I$5*'Park Allocations'!AI68","v":0},{"$f":"$D$4*$I$5*'Park Allocations'!AJ68","v":0},{"$f":"$D$4*$I$5*'Park Allocations'!AK68","v":0},{"$f":"$D$4*$I$5*'Park Allocations'!AL68","v":0}]
[null,"305 - Department of Veterans Affairs","305","Department of Veterans Affairs",2212.4549587654137,2212.4549587654137,82,1.4536497757985636E-3,0,0,{"$f":"$D$4*$I$5*'Park Allocations'!E69","v":0},{"$f":"$D$4*$I$5*'Park Allocations'!F69","v":0},{"$f":"$D$4*$I$5*'Park Allocations'!G69","v":0},{"$f":"$D$4*$I$5*'Park Allocations'!H69","v":0},{"$f":"$D$4*$I$5*'Park Allocations'!I69","v":0},{"$f":"$D$4*$I$5*'Park Allocations'!J69","v":0},{"$f":"$D$4*$I$5*'Park Allocations'!K69","v":0},{"$f":"$D$4*$I$5*'Park Allocations'!L69","v":0},{"$f":"$D$4*$I$5*'Park Allocations'!M69","v":0},{"$f":"$D$4*$I$5*'Park Allocations'!N69","v":0},{"$f":"$D$4*$I$5*'Park Allocations'!O69","v":0},{"$f":"$D$4*$I$5*'Park Allocations'!P69","v":0},{"$f":"$D$4*$I$5*'Park Allocations'!Q69","v":0},{"$f":"$D$4*$I$5*'Park Allocations'!R69","v":0},{"$f":"$D$4*$I$5*'Park Allocations'!S69","v":0},{"$f":"$D$4*$I$5*'Park Allocations'!T69","v":0},{"$f":"$D$4*$I$5*'Park Allocations'!U69","v":0},{"$f":"$D$4*$I$5*'Park Allocations'!V69","v":0},{"$f":"$D$4*$I$5*'Park Allocations'!W69","v":0},{"$f":"$D$4*$I$5*'Park Allocations'!X69","v":0},{"$f":"$D$4*$I$5*'Park Allocations'!Y69","v":0},{"$f":"$D$4*$I$5*'Park Allocations'!Z69","v":0},{"$f":"$D$4*$I$5*'Park Allocations'!AA69","v":0},{"$f":"$D$4*$I$5*'Park Allocations'!AB69","v":0},{"$f":"$D$4*$I$5*'Park Allocations'!AC69","v":0},{"$f":"$D$4*$I$5*'Park Allocations'!AD69","v":0},{"$f":"$D$4*$I$5*'Park Allocations'!AE69","v":0},{"$f":"$D$4*$I$5*'Park Allocations'!AF69","v":0},{"$f":"$D$4*$I$5*'Park Allocations'!AG69","v":0},{"$f":"$D$4*$I$5*'Park Allocations'!AH69","v":0},{"$f":"$D$4*$I$5*'Park Allocations'!AI69","v":0},{"$f":"$D$4*$I$5*'Park Allocations'!AJ69","v":0},{"$f":"$D$4*$I$5*'Park Allocations'!AK69","v":0},{"$f":"$D$4*$I$5*'Park Allocations'!AL69","v":0}]
[null,{"$f":"CONCATENATE(C72,\" - \",D72)","v":"307 - DCYF"},"307","DCYF",{"$f":"F72+SUM(K72:AR72)","v":26748.598344769609},{"$f":"H72*$D$4","v":22718.13506439608},842,1.4926501356370617E-2,2.6481361894701242E-3,2.249360010762344E-2,{"$f":"$D$4*$I$5*'Park Allocations'!E70","v":0},{"$f":"$D$4*$I$5*'Park Allocations'!F70","v":0},{"$f":"$D$4*$I$5*'Park Allocations'!G70","v":0},{"$f":"$D$4*$I$5*'Park Allocations'!H70","v":0},{"$f":"$D$4*$I$5*'Park Allocations'!I70","v":0},{"$f":"$D$4*$I$5*'Park Allocations'!J70","v":4030.463280373529},{"$f":"$D$4*$I$5*'Park Allocations'!K70","v":0},{"$f":"$D$4*$I$5*'Park Allocations'!L70","v":0},{"$f":"$D$4*$I$5*'Park Allocations'!M70","v":0},{"$f":"$D$4*$I$5*'Park Allocations'!N70","v":0},{"$f":"$D$4*$I$5*'Park Allocations'!O70","v":0},{"$f":"$D$4*$I$5*'Park Allocations'!P70","v":0},{"$f":"$D$4*$I$5*'Park Allocations'!Q70","v":0},{"$f":"$D$4*$I$5*'Park Allocations'!R70","v":0},{"$f":"$D$4*$I$5*'Park Allocations'!S70","v":0},{"$f":"$D$4*$I$5*'Park Allocations'!T70","v":0},{"$f":"$D$4*$I$5*'Park Allocations'!U70","v":0},{"$f":"$D$4*$I$5*'Park Allocations'!V70","v":0},{"$f":"$D$4*$I$5*'Park Allocations'!W70","v":0},{"$f":"$D$4*$I$5*'Park Allocations'!X70","v":0},{"$f":"$D$4*$I$5*'Park Allocations'!Y70","v":0},{"$f":"$D$4*$I$5*'Park Allocations'!Z70","v":0},{"$f":"$D$4*$I$5*'Park Allocations'!AA70","v":0},{"$f":"$D$4*$I$5*'Park Allocations'!AB70","v":0},{"$f":"$D$4*$I$5*'Park Allocations'!AC70","v":0},{"$f":"$D$4*$I$5*'Park Allocations'!AD70","v":0},{"$f":"$D$4*$I$5*'Park Allocations'!AE70","v":0},{"$f":"$D$4*$I$5*'Park Allocations'!AF70","v":0},{"$f":"$D$4*$I$5*'Park Allocations'!AG70","v":0},{"$f":"$D$4*$I$5*'Park Allocations'!AH70","v":0},{"$f":"$D$4*$I$5*'Park Allocations'!AI70","v":0},{"$f":"$D$4*$I$5*'Park Allocations'!AJ70","v":0},{"$f":"$D$4*$I$5*'Park Allocations'!AK70","v":0},{"$f":"$D$4*$I$5*'Park Allocations'!AL70","v":0}]
[null,"310 - Department of Corrections","310","Department of Corrections",29544.368046928394,29544.368046928394,1095,1.9411542737797893E-2,0,0,{"$f":"$D$4*$I$5*'Park Allocations'!E71","v":0},{"$f":"$D$4*$I$5*'Park Allocations'!F71","v":0},{"$f":"$D$4*$I$5*'Park Allocations'!G71","v":0},{"$f":"$D$4*$I$5*'Park Allocations'!H71","v":0},{"$f":"$D$4*$I$5*'Park Allocations'!I71","v":0},{"$f":"$D$4*$I$5*'Park Allocations'!J71","v":0},{"$f":"$D$4*$I$5*'Park Allocations'!K71","v":0},{"$f":"$D$4*$I$5*'Park Allocations'!L71","v":0},{"$f":"$D$4*$I$5*'Park Allocations'!M71","v":0},{"$f":"$D$4*$I$5*'Park Allocations'!N71","v":0},{"$f":"$D$4*$I$5*'Park Allocations'!O71","v":0},{"$f":"$D$4*$I$5*'Park Allocations'!P71","v":0},{"$f":"$D$4*$I$5*'Park Allocations'!Q71","v":0},{"$f":"$D$4*$I$5*'Park Allocations'!R71","v":0},{"$f":"$D$4*$I$5*'Park Allocations'!S71","v":0},{"$f":"$D$4*$I$5*'Park Allocations'!T71","v":0},{"$f":"$D$4*$I$5*'Park Allocations'!U71","v":0},{"$f":"$D$4*$I$5*'Park Allocations'!V71","v":0},{"$f":"$D$4*$I$5*'Park Allocations'!W71","v":0},{"$f":"$D$4*$I$5*'Park Allocations'!X71","v":0},{"$f":"$D$4*$I$5*'Park Allocations'!Y71","v":0},{"$f":"$D$4*$I$5*'Park Allocations'!Z71","v":0},{"$f":"$D$4*$I$5*'Park Allocations'!AA71","v":0},{"$f":"$D$4*$I$5*'Park Allocations'!AB71","v":0},{"$f":"$D$4*$I$5*'Park Allocations'!AC71","v":0},{"$f":"$D$4*$I$5*'Park Allocations'!AD71","v":0},{"$f":"$D$4*$I$5*'Park Allocations'!AE71","v":0},{"$f":"$D$4*$I$5*'Park Allocations'!AF71","v":0},{"$f":"$D$4*$I$5*'Park Allocations'!AG71","v":0},{"$f":"$D$4*$I$5*'Park Allocations'!AH71","v":0},{"$f":"$D$4*$I$5*'Park Allocations'!AI71","v":0},{"$f":"$D$4*$I$5*'Park Allocations'!AJ71","v":0},{"$f":"$D$4*$I$5*'Park Allocations'!AK71","v":0},{"$f":"$D$4*$I$5*'Park Allocations'!AL71","v":0}]
[null,"315 - Department of Services for the Blind","315","Department of Services for the Blind",1056.7200895168176,539.62316067449126,20,3.5454872580452775E-4,3.3974831067169921E-4,5.1878165246980901E-3,{"$f":"$D$4*$I$5*'Park Allocations'!E72","v":0},{"$f":"$D$4*$I$5*'Park Allocations'!F72","v":0},{"$f":"$D$4*$I$5*'Park Allocations'!G72","v":36.068014274261159},{"$f":"$D$4*$I$5*'Park Allocations'!H72","v":0},{"$f":"$D$4*$I$5*'Park Allocations'!I72","v":52.972988815666142},{"$f":"$D$4*$I$5*'Park Allocations'!J72","v":156.84398762242162},{"$f":"$D$4*$I$5*'Park Allocations'!K72","v":0},{"$f":"$D$4*$I$5*'Park Allocations'!L72","v":183.69665476400351},{"$f":"$D$4*$I$5*'Park Allocations'!M72","v":0},{"$f":"$D$4*$I$5*'Park Allocations'!N72","v":87.515283365973772},{"$f":"$D$4*$I$5*'Park Allocations'!O72","v":0},{"$f":"$D$4*$I$5*'Park Allocations'!P72","v":0},{"$f":"$D$4*$I$5*'Park Allocations'!Q72","v":0},{"$f":"$D$4*$I$5*'Park Allocations'!R72","v":0},{"$f":"$D$4*$I$5*'Park Allocations'!S72","v":0},{"$f":"$D$4*$I$5*'Park Allocations'!T72","v":0},{"$f":"$D$4*$I$5*'Park Allocations'!U72","v":0},{"$f":"$D$4*$I$5*'Park Allocations'!V72","v":0},{"$f":"$D$4*$I$5*'Park Allocations'!W72","v":0},{"$f":"$D$4*$I$5*'Park Allocations'!X72","v":0},{"$f":"$D$4*$I$5*'Park Allocations'!Y72","v":0},{"$f":"$D$4*$I$5*'Park Allocations'!Z72","v":0},{"$f":"$D$4*$I$5*'Park Allocations'!AA72","v":0},{"$f":"$D$4*$I$5*'Park Allocations'!AB72","v":0},{"$f":"$D$4*$I$5*'Park Allocations'!AC72","v":0},{"$f":"$D$4*$I$5*'Park Allocations'!AD72","v":0},{"$f":"$D$4*$I$5*'Park Allocations'!AE72","v":0},{"$f":"$D$4*$I$5*'Park Allocations'!AF72","v":0},{"$f":"$D$4*$I$5*'Park Allocations'!AG72","v":0},{"$f":"$D$4*$I$5*'Park Allocations'!AH72","v":0},{"$f":"$D$4*$I$5*'Park Allocations'!AI72","v":0},{"$f":"$D$4*$I$5*'Park Allocations'!AJ72","v":0},{"$f":"$D$4*$I$5*'Park Allocations'!AK72","v":0},{"$f":"$D$4*$I$5*'Park Allocations'!AL72","v":0}]
[null,"340 - Student Achievement Council","340","Student Achievement Council",3048.8708578108753,3048.8708578108753,113,2.0032003007955817E-3,0,0,{"$f":"$D$4*$I$5*'Park Allocations'!E73","v":0},{"$f":"$D$4*$I$5*'Park Allocations'!F73","v":0},{"$f":"$D$4*$I$5*'Park Allocations'!G73","v":0},{"$f":"$D$4*$I$5*'Park Allocations'!H73","v":0},{"$f":"$D$4*$I$5*'Park Allocations'!I73","v":0},{"$f":"$D$4*$I$5*'Park Allocations'!J73","v":0},{"$f":"$D$4*$I$5*'Park Allocations'!K73","v":0},{"$f":"$D$4*$I$5*'Park Allocations'!L73","v":0},{"$f":"$D$4*$I$5*'Park Allocations'!M73","v":0},{"$f":"$D$4*$I$5*'Park Allocations'!N73","v":0},{"$f":"$D$4*$I$5*'Park Allocations'!O73","v":0},{"$f":"$D$4*$I$5*'Park Allocations'!P73","v":0},{"$f":"$D$4*$I$5*'Park Allocations'!Q73","v":0},{"$f":"$D$4*$I$5*'Park Allocations'!R73","v":0},{"$f":"$D$4*$I$5*'Park Allocations'!S73","v":0},{"$f":"$D$4*$I$5*'Park Allocations'!T73","v":0},{"$f":"$D$4*$I$5*'Park Allocations'!U73","v":0},{"$f":"$D$4*$I$5*'Park Allocations'!V73","v":0},{"$f":"$D$4*$I$5*'Park Allocations'!W73","v":0},{"$f":"$D$4*$I$5*'Park Allocations'!X73","v":0},{"$f":"$D$4*$I$5*'Park Allocations'!Y73","v":0},{"$f":"$D$4*$I$5*'Park Allocations'!Z73","v":0},{"$f":"$D$4*$I$5*'Park Allocations'!AA73","v":0},{"$f":"$D$4*$I$5*'Park Allocations'!AB73","v":0},{"$f":"$D$4*$I$5*'Park Allocations'!AC73","v":0},{"$f":"$D$4*$I$5*'Park Allocations'!AD73","v":0},{"$f":"$D$4*$I$5*'Park Allocations'!AE73","v":0},{"$f":"$D$4*$I$5*'Park Allocations'!AF73","v":0},{"$f":"$D$4*$I$5*'Park Allocations'!AG73","v":0},{"$f":"$D$4*$I$5*'Park Allocations'!AH73","v":0},{"$f":"$D$4*$I$5*'Park Allocations'!AI73","v":0},{"$f":"$D$4*$I$5*'Park Allocations'!AJ73","v":0},{"$f":"$D$4*$I$5*'Park Allocations'!AK73","v":0},{"$f":"$D$4*$I$5*'Park Allocations'!AL73","v":0}]
[null,"341 - Law Enforcement Officers' & Fire Fighters' Plan 2 Retirement Board","341","Law Enforcement Officers' & Fire Fighters' Plan 2 Retirement Board",215.84926426979646,215.84926426979646,8,1.4181949032181107E-4,0,0,{"$f":"$D$4*$I$5*'Park Allocations'!E74","v":0},{"$f":"$D$4*$I$5*'Park Allocations'!F74","v":0},{"$f":"$D$4*$I$5*'Park Allocations'!G74","v":0},{"$f":"$D$4*$I$5*'Park Allocations'!H74","v":0},{"$f":"$D$4*$I$5*'Park Allocations'!I74","v":0},{"$f":"$D$4*$I$5*'Park Allocations'!J74","v":0},{"$f":"$D$4*$I$5*'Park Allocations'!K74","v":0},{"$f":"$D$4*$I$5*'Park Allocations'!L74","v":0},{"$f":"$D$4*$I$5*'Park Allocations'!M74","v":0},{"$f":"$D$4*$I$5*'Park Allocations'!N74","v":0},{"$f":"$D$4*$I$5*'Park Allocations'!O74","v":0},{"$f":"$D$4*$I$5*'Park Allocations'!P74","v":0},{"$f":"$D$4*$I$5*'Park Allocations'!Q74","v":0},{"$f":"$D$4*$I$5*'Park Allocations'!R74","v":0},{"$f":"$D$4*$I$5*'Park Allocations'!S74","v":0},{"$f":"$D$4*$I$5*'Park Allocations'!T74","v":0},{"$f":"$D$4*$I$5*'Park Allocations'!U74","v":0},{"$f":"$D$4*$I$5*'Park Allocations'!V74","v":0},{"$f":"$D$4*$I$5*'Park Allocations'!W74","v":0},{"$f":"$D$4*$I$5*'Park Allocations'!X74","v":0},{"$f":"$D$4*$I$5*'Park Allocations'!Y74","v":0},{"$f":"$D$4*$I$5*'Park Allocations'!Z74","v":0},{"$f":"$D$4*$I$5*'Park Allocations'!AA74","v":0},{"$f":"$D$4*$I$5*'Park Allocations'!AB74","v":0},{"$f":"$D$4*$I$5*'Park Allocations'!AC74","v":0},{"$f":"$D$4*$I$5*'Park Allocations'!AD74","v":0},{"$f":"$D$4*$I$5*'Park Allocations'!AE74","v":0},{"$f":"$D$4*$I$5*'Park Allocations'!AF74","v":0},{"$f":"$D$4*$I$5*'Park Allocations'!AG74","v":0},{"$f":"$D$4*$I$5*'Park Allocations'!AH74","v":0},{"$f":"$D$4*$I$5*'Park Allocations'!AI74","v":0},{"$f":"$D$4*$I$5*'Park Allocations'!AJ74","v":0},{"$f":"$D$4*$I$5*'Park Allocations'!AK74","v":0},{"$f":"$D$4*$I$5*'Park Allocations'!AL74","v":0}]
[null,"350 - Superintendent of Public Instruction","350","Superintendent of Public Instruction",18299.004781518284,12330.389221412122,457,8.1014383846334578E-3,3.9215608147872283E-3,2.3198876425400958E-2,{"$f":"$D$4*$I$5*'Park Allocations'!E75","v":0},{"$f":"$D$4*$I$5*'Park Allocations'!F75","v":0},{"$f":"$D$4*$I$5*'Park Allocations'!G75","v":0},{"$f":"$D$4*$I$5*'Park Allocations'!H75","v":0},{"$f":"$D$4*$I$5*'Park Allocations'!I75","v":0},{"$f":"$D$4*$I$5*'Park Allocations'!J75","v":0},{"$f":"$D$4*$I$5*'Park Allocations'!K75","v":0},{"$f":"$D$4*$I$5*'Park Allocations'!L75","v":0},{"$f":"$D$4*$I$5*'Park Allocations'!M75","v":0},{"$f":"$D$4*$I$5*'Park Allocations'!N75","v":0},{"$f":"$D$4*$I$5*'Park Allocations'!O75","v":0},{"$f":"$D$4*$I$5*'Park Allocations'!P75","v":5968.615560106161},{"$f":"$D$4*$I$5*'Park Allocations'!Q75","v":0},{"$f":"$D$4*$I$5*'Park Allocations'!R75","v":0},{"$f":"$D$4*$I$5*'Park Allocations'!S75","v":0},{"$f":"$D$4*$I$5*'Park Allocations'!T75","v":0},{"$f":"$D$4*$I$5*'Park Allocations'!U75","v":0},{"$f":"$D$4*$I$5*'Park Allocations'!V75","v":0},{"$f":"$D$4*$I$5*'Park Allocations'!W75","v":0},{"$f":"$D$4*$I$5*'Park Allocations'!X75","v":0},{"$f":"$D$4*$I$5*'Park Allocations'!Y75","v":0},{"$f":"$D$4*$I$5*'Park Allocations'!Z75","v":0},{"$f":"$D$4*$I$5*'Park Allocations'!AA75","v":0},{"$f":"$D$4*$I$5*'Park Allocations'!AB75","v":0},{"$f":"$D$4*$I$5*'Park Allocations'!AC75","v":0},{"$f":"$D$4*$I$5*'Park Allocations'!AD75","v":0},{"$f":"$D$4*$I$5*'Park Allocations'!AE75","v":0},{"$f":"$D$4*$I$5*'Park Allocations'!AF75","v":0},{"$f":"$D$4*$I$5*'Park Allocations'!AG75","v":0},{"$f":"$D$4*$I$5*'Park Allocations'!AH75","v":0},{"$f":"$D$4*$I$5*'Park Allocations'!AI75","v":0},{"$f":"$D$4*$I$5*'Park Allocations'!AJ75","v":0},{"$f":"$D$4*$I$5*'Park Allocations'!AK75","v":0},{"$f":"$D$4*$I$5*'Park Allocations'!AL75","v":0}]
[null,"351 - State School For The Blind","351","State School For The Blind",53.962316067449116,53.962316067449116,2,3.5454872580452768E-5,0,0,{"$f":"$D$4*$I$5*'Park Allocations'!E76","v":0},{"$f":"$D$4*$I$5*'Park Allocations'!F76","v":0},{"$f":"$D$4*$I$5*'Park Allocations'!G76","v":0},{"$f":"$D$4*$I$5*'Park Allocations'!H76","v":0},{"$f":"$D$4*$I$5*'Park Allocations'!I76","v":0},{"$f":"$D$4*$I$5*'Park Allocations'!J76","v":0},{"$f":"$D$4*$I$5*'Park Allocations'!K76","v":0},{"$f":"$D$4*$I$5*'Park Allocations'!L76","v":0},{"$f":"$D$4*$I$5*'Park Allocations'!M76","v":0},{"$f":"$D$4*$I$5*'Park Allocations'!N76","v":0},{"$f":"$D$4*$I$5*'Park Allocations'!O76","v":0},{"$f":"$D$4*$I$5*'Park Allocations'!P76","v":0},{"$f":"$D$4*$I$5*'Park Allocations'!Q76","v":0},{"$f":"$D$4*$I$5*'Park Allocations'!R76","v":0},{"$f":"$D$4*$I$5*'Park Allocations'!S76","v":0},{"$f":"$D$4*$I$5*'Park Allocations'!T76","v":0},{"$f":"$D$4*$I$5*'Park Allocations'!U76","v":0},{"$f":"$D$4*$I$5*'Park Allocations'!V76","v":0},{"$f":"$D$4*$I$5*'Park Allocations'!W76","v":0},{"$f":"$D$4*$I$5*'Park Allocations'!X76","v":0},{"$f":"$D$4*$I$5*'Park Allocations'!Y76","v":0},{"$f":"$D$4*$I$5*'Park Allocations'!Z76","v":0},{"$f":"$D$4*$I$5*'Park Allocations'!AA76","v":0},{"$f":"$D$4*$I$5*'Park Allocations'!AB76","v":0},{"$f":"$D$4*$I$5*'Park Allocations'!AC76","v":0},{"$f":"$D$4*$I$5*'Park Allocations'!AD76","v":0},{"$f":"$D$4*$I$5*'Park Allocations'!AE76","v":0},{"$f":"$D$4*$I$5*'Park Allocations'!AF76","v":0},{"$f":"$D$4*$I$5*'Park Allocations'!AG76","v":0},{"$f":"$D$4*$I$5*'Park Allocations'!AH76","v":0},{"$f":"$D$4*$I$5*'Park Allocations'!AI76","v":0},{"$f":"$D$4*$I$5*'Park Allocations'!AJ76","v":0},{"$f":"$D$4*$I$5*'Park Allocations'!AK76","v":0},{"$f":"$D$4*$I$5*'Park Allocations'!AL76","v":0}]
[null,"353 - State Center for Childhood Deafness and Hearing Loss","353","State Center for Childhood Deafness and Hearing Loss",0,0,0,0,0,0,{"$f":"$D$4*$I$5*'Park Allocations'!E77","v":0},{"$f":"$D$4*$I$5*'Park Allocations'!F77","v":0},{"$f":"$D$4*$I$5*'Park Allocations'!G77","v":0},{"$f":"$D$4*$I$5*'Park Allocations'!H77","v":0},{"$f":"$D$4*$I$5*'Park Allocations'!I77","v":0},{"$f":"$D$4*$I$5*'Park Allocations'!J77","v":0},{"$f":"$D$4*$I$5*'Park Allocations'!K77","v":0},{"$f":"$D$4*$I$5*'Park Allocations'!L77","v":0},{"$f":"$D$4*$I$5*'Park Allocations'!M77","v":0},{"$f":"$D$4*$I$5*'Park Allocations'!N77","v":0},{"$f":"$D$4*$I$5*'Park Allocations'!O77","v":0},{"$f":"$D$4*$I$5*'Park Allocations'!P77","v":0},{"$f":"$D$4*$I$5*'Park Allocations'!Q77","v":0},{"$f":"$D$4*$I$5*'Park Allocations'!R77","v":0},{"$f":"$D$4*$I$5*'Park Allocations'!S77","v":0},{"$f":"$D$4*$I$5*'Park Allocations'!T77","v":0},{"$f":"$D$4*$I$5*'Park Allocations'!U77","v":0},{"$f":"$D$4*$I$5*'Park Allocations'!V77","v":0},{"$f":"$D$4*$I$5*'Park Allocations'!W77","v":0},{"$f":"$D$4*$I$5*'Park Allocations'!X77","v":0},{"$f":"$D$4*$I$5*'Park Allocations'!Y77","v":0},{"$f":"$D$4*$I$5*'Park Allocations'!Z77","v":0},{"$f":"$D$4*$I$5*'Park Allocations'!AA77","v":0},{"$f":"$D$4*$I$5*'Park Allocations'!AB77","v":0},{"$f":"$D$4*$I$5*'Park Allocations'!AC77","v":0},{"$f":"$D$4*$I$5*'Park Allocations'!AD77","v":0},{"$f":"$D$4*$I$5*'Park Allocations'!AE77","v":0},{"$f":"$D$4*$I$5*'Park Allocations'!AF77","v":0},{"$f":"$D$4*$I$5*'Park Allocations'!AG77","v":0},{"$f":"$D$4*$I$5*'Park Allocations'!AH77","v":0},{"$f":"$D$4*$I$5*'Park Allocations'!AI77","v":0},{"$f":"$D$4*$I$5*'Park Allocations'!AJ77","v":0},{"$f":"$D$4*$I$5*'Park Allocations'!AK77","v":0},{"$f":"$D$4*$I$5*'Park Allocations'!AL77","v":0}]
[null,"354 - Workforce Training and Education Coordinating Board","354","Workforce Training and Education Coordinating Board",755.4724249442877,755.4724249442877,28,4.9636821612633879E-4,0,0,{"$f":"$D$4*$I$5*'Park Allocations'!E78","v":0},{"$f":"$D$4*$I$5*'Park Allocations'!F78","v":0},{"$f":"$D$4*$I$5*'Park Allocations'!G78","v":0},{"$f":"$D$4*$I$5*'Park Allocations'!H78","v":0},{"$f":"$D$4*$I$5*'Park Allocations'!I78","v":0},{"$f":"$D$4*$I$5*'Park Allocations'!J78","v":0},{"$f":"$D$4*$I$5*'Park Allocations'!K78","v":0},{"$f":"$D$4*$I$5*'Park Allocations'!L78","v":0},{"$f":"$D$4*$I$5*'Park Allocations'!M78","v":0},{"$f":"$D$4*$I$5*'Park Allocations'!N78","v":0},{"$f":"$D$4*$I$5*'Park Allocations'!O78","v":0},{"$f":"$D$4*$I$5*'Park Allocations'!P78","v":0},{"$f":"$D$4*$I$5*'Park Allocations'!Q78","v":0},{"$f":"$D$4*$I$5*'Park Allocations'!R78","v":0},{"$f":"$D$4*$I$5*'Park Allocations'!S78","v":0},{"$f":"$D$4*$I$5*'Park Allocations'!T78","v":0},{"$f":"$D$4*$I$5*'Park Allocations'!U78","v":0},{"$f":"$D$4*$I$5*'Park Allocations'!V78","v":0},{"$f":"$D$4*$I$5*'Park Allocations'!W78","v":0},{"$f":"$D$4*$I$5*'Park Allocations'!X78","v":0},{"$f":"$D$4*$I$5*'Park Allocations'!Y78","v":0},{"$f":"$D$4*$I$5*'Park Allocations'!Z78","v":0},{"$f":"$D$4*$I$5*'Park Allocations'!AA78","v":0},{"$f":"$D$4*$I$5*'Park Allocations'!AB78","v":0},{"$f":"$D$4*$I$5*'Park Allocations'!AC78","v":0},{"$f":"$D$4*$I$5*'Park Allocations'!AD78","v":0},{"$f":"$D$4*$I$5*'Park Allocations'!AE78","v":0},{"$f":"$D$4*$I$5*'Park Allocations'!AF78","v":0},{"$f":"$D$4*$I$5*'Park Allocations'!AG78","v":0},{"$f":"$D$4*$I$5*'Park Allocations'!AH78","v":0},{"$f":"$D$4*$I$5*'Park Allocations'!AI78","v":0},{"$f":"$D$4*$I$5*'Park Allocations'!AJ78","v":0},{"$f":"$D$4*$I$5*'Park Allocations'!AK78","v":0},{"$f":"$D$4*$I$5*'Park Allocations'!AL78","v":0}]
[null,"355 - Department of Archaeology and Historic Preservation","355","Department of Archaeology and Historic Preservation",539.62316067449126,539.62316067449126,20,3.5454872580452775E-4,0,1.972759648880093E-3,{"$f":"$D$4*$I$5*'Park Allocations'!E79","v":0},{"$f":"$D$4*$I$5*'Park Allocations'!F79","v":0},{"$f":"$D$4*$I$5*'Park Allocations'!G79","v":0},{"$f":"$D$4*$I$5*'Park Allocations'!H79","v":0},{"$f":"$D$4*$I$5*'Park Allocations'!I79","v":0},{"$f":"$D$4*$I$5*'Park Allocations'!J79","v":0},{"$f":"$D$4*$I$5*'Park Allocations'!K79","v":0},{"$f":"$D$4*$I$5*'Park Allocations'!L79","v":0},{"$f":"$D$4*$I$5*'Park Allocations'!M79","v":0},{"$f":"$D$4*$I$5*'Park Allocations'!N79","v":0},{"$f":"$D$4*$I$5*'Park Allocations'!O79","v":0},{"$f":"$D$4*$I$5*'Park Allocations'!P79","v":0},{"$f":"$D$4*$I$5*'Park Allocations'!Q79","v":0},{"$f":"$D$4*$I$5*'Park Allocations'!R79","v":0},{"$f":"$D$4*$I$5*'Park Allocations'!S79","v":0},{"$f":"$D$4*$I$5*'Park Allocations'!T79","v":0},{"$f":"$D$4*$I$5*'Park Allocations'!U79","v":0},{"$f":"$D$4*$I$5*'Park Allocations'!V79","v":0},{"$f":"$D$4*$I$5*'Park Allocations'!W79","v":0},{"$f":"$D$4*$I$5*'Park Allocations'!X79","v":0},{"$f":"$D$4*$I$5*'Park Allocations'!Y79","v":0},{"$f":"$D$4*$I$5*'Park Allocations'!Z79","v":0},{"$f":"$D$4*$I$5*'Park Allocations'!AA79","v":0},{"$f":"$D$4*$I$5*'Park Allocations'!AB79","v":0},{"$f":"$D$4*$I$5*'Park Allocations'!AC79","v":0},{"$f":"$D$4*$I$5*'Park Allocations'!AD79","v":0},{"$f":"$D$4*$I$5*'Park Allocations'!AE79","v":0},{"$f":"$D$4*$I$5*'Park Allocations'!AF79","v":0},{"$f":"$D$4*$I$5*'Park Allocations'!AG79","v":0},{"$f":"$D$4*$I$5*'Park Allocations'!AH79","v":0},{"$f":"$D$4*$I$5*'Park Allocations'!AI79","v":0},{"$f":"$D$4*$I$5*'Park Allocations'!AJ79","v":0},{"$f":"$D$4*$I$5*'Park Allocations'!AK79","v":0},{"$f":"$D$4*$I$5*'Park Allocations'!AL79","v":0}]
[null,"357 - Department of Early Learning","357","Department of Early Learning",0,0,0,0,0,0,{"$f":"$D$4*$I$5*'Park Allocations'!E80","v":0},{"$f":"$D$4*$I$5*'Park Allocations'!F80","v":0},{"$f":"$D$4*$I$5*'Park Allocations'!G80","v":0},{"$f":"$D$4*$I$5*'Park Allocations'!H80","v":0},{"$f":"$D$4*$I$5*'Park Allocations'!I80","v":0},{"$f":"$D$4*$I$5*'Park Allocations'!J80","v":0},{"$f":"$D$4*$I$5*'Park Allocations'!K80","v":0},{"$f":"$D$4*$I$5*'Park Allocations'!L80","v":0},{"$f":"$D$4*$I$5*'Park Allocations'!M80","v":0},{"$f":"$D$4*$I$5*'Park Allocations'!N80","v":0},{"$f":"$D$4*$I$5*'Park Allocations'!O80","v":0},{"$f":"$D$4*$I$5*'Park Allocations'!P80","v":0},{"$f":"$D$4*$I$5*'Park Allocations'!Q80","v":0},{"$f":"$D$4*$I$5*'Park Allocations'!R80","v":0},{"$f":"$D$4*$I$5*'Park Allocations'!S80","v":0},{"$f":"$D$4*$I$5*'Park Allocations'!T80","v":0},{"$f":"$D$4*$I$5*'Park Allocations'!U80","v":0},{"$f":"$D$4*$I$5*'Park Allocations'!V80","v":0},{"$f":"$D$4*$I$5*'Park Allocations'!W80","v":0},{"$f":"$D$4*$I$5*'Park Allocations'!X80","v":0},{"$f":"$D$4*$I$5*'Park Allocations'!Y80","v":0},{"$f":"$D$4*$I$5*'Park Allocations'!Z80","v":0},{"$f":"$D$4*$I$5*'Park Allocations'!AA80","v":0},{"$f":"$D$4*$I$5*'Park Allocations'!AB80","v":0},{"$f":"$D$4*$I$5*'Park Allocations'!AC80","v":0},{"$f":"$D$4*$I$5*'Park Allocations'!AD80","v":0},{"$f":"$D$4*$I$5*'Park Allocations'!AE80","v":0},{"$f":"$D$4*$I$5*'Park Allocations'!AF80","v":0},{"$f":"$D$4*$I$5*'Park Allocations'!AG80","v":0},{"$f":"$D$4*$I$5*'Park Allocations'!AH80","v":0},{"$f":"$D$4*$I$5*'Park Allocations'!AI80","v":0},{"$f":"$D$4*$I$5*'Park Allocations'!AJ80","v":0},{"$f":"$D$4*$I$5*'Park Allocations'!AK80","v":0},{"$f":"$D$4*$I$5*'Park Allocations'!AL80","v":0}]
[null,"359 - WA Charter School Commission","359","WA Charter School Commission",0,0,0,0,0,0,{"$f":"$D$4*$I$5*'Park Allocations'!E81","v":0},{"$f":"$D$4*$I$5*'Park Allocations'!F81","v":0},{"$f":"$D$4*$I$5*'Park Allocations'!G81","v":0},{"$f":"$D$4*$I$5*'Park Allocations'!H81","v":0},{"$f":"$D$4*$I$5*'Park Allocations'!I81","v":0},{"$f":"$D$4*$I$5*'Park Allocations'!J81","v":0},{"$f":"$D$4*$I$5*'Park Allocations'!K81","v":0},{"$f":"$D$4*$I$5*'Park Allocations'!L81","v":0},{"$f":"$D$4*$I$5*'Park Allocations'!M81","v":0},{"$f":"$D$4*$I$5*'Park Allocations'!N81","v":0},{"$f":"$D$4*$I$5*'Park Allocations'!O81","v":0},{"$f":"$D$4*$I$5*'Park Allocations'!P81","v":0},{"$f":"$D$4*$I$5*'Park Allocations'!Q81","v":0},{"$f":"$D$4*$I$5*'Park Allocations'!R81","v":0},{"$f":"$D$4*$I$5*'Park Allocations'!S81","v":0},{"$f":"$D$4*$I$5*'Park Allocations'!T81","v":0},{"$f":"$D$4*$I$5*'Park Allocations'!U81","v":0},{"$f":"$D$4*$I$5*'Park Allocations'!V81","v":0},{"$f":"$D$4*$I$5*'Park Allocations'!W81","v":0},{"$f":"$D$4*$I$5*'Park Allocations'!X81","v":0},{"$f":"$D$4*$I$5*'Park Allocations'!Y81","v":0},{"$f":"$D$4*$I$5*'Park Allocations'!Z81","v":0},{"$f":"$D$4*$I$5*'Park Allocations'!AA81","v":0},{"$f":"$D$4*$I$5*'Park Allocations'!AB81","v":0},{"$f":"$D$4*$I$5*'Park Allocations'!AC81","v":0},{"$f":"$D$4*$I$5*'Park Allocations'!AD81","v":0},{"$f":"$D$4*$I$5*'Park Allocations'!AE81","v":0},{"$f":"$D$4*$I$5*'Park Allocations'!AF81","v":0},{"$f":"$D$4*$I$5*'Park Allocations'!AG81","v":0},{"$f":"$D$4*$I$5*'Park Allocations'!AH81","v":0},{"$f":"$D$4*$I$5*'Park Allocations'!AI81","v":0},{"$f":"$D$4*$I$5*'Park Allocations'!AJ81","v":0},{"$f":"$D$4*$I$5*'Park Allocations'!AK81","v":0},{"$f":"$D$4*$I$5*'Park Allocations'!AL81","v":0}]
[null,"360 - University of Washington","360","University of Washington",593.58547674194028,593.58547674194028,22,3.9000359838498049E-4,0,0,{"$f":"$D$4*$I$5*'Park Allocations'!E82","v":0},{"$f":"$D$4*$I$5*'Park Allocations'!F82","v":0},{"$f":"$D$4*$I$5*'Park Allocations'!G82","v":0},{"$f":"$D$4*$I$5*'Park Allocations'!H82","v":0},{"$f":"$D$4*$I$5*'Park Allocations'!I82","v":0},{"$f":"$D$4*$I$5*'Park Allocations'!J82","v":0},{"$f":"$D$4*$I$5*'Park Allocations'!K82","v":0},{"$f":"$D$4*$I$5*'Park Allocations'!L82","v":0},{"$f":"$D$4*$I$5*'Park Allocations'!M82","v":0},{"$f":"$D$4*$I$5*'Park Allocations'!N82","v":0},{"$f":"$D$4*$I$5*'Park Allocations'!O82","v":0},{"$f":"$D$4*$I$5*'Park Allocations'!P82","v":0},{"$f":"$D$4*$I$5*'Park Allocations'!Q82","v":0},{"$f":"$D$4*$I$5*'Park Allocations'!R82","v":0},{"$f":"$D$4*$I$5*'Park Allocations'!S82","v":0},{"$f":"$D$4*$I$5*'Park Allocations'!T82","v":0},{"$f":"$D$4*$I$5*'Park Allocations'!U82","v":0},{"$f":"$D$4*$I$5*'Park Allocations'!V82","v":0},{"$f":"$D$4*$I$5*'Park Allocations'!W82","v":0},{"$f":"$D$4*$I$5*'Park Allocations'!X82","v":0},{"$f":"$D$4*$I$5*'Park Allocations'!Y82","v":0},{"$f":"$D$4*$I$5*'Park Allocations'!Z82","v":0},{"$f":"$D$4*$I$5*'Park Allocations'!AA82","v":0},{"$f":"$D$4*$I$5*'Park Allocations'!AB82","v":0},{"$f":"$D$4*$I$5*'Park Allocations'!AC82","v":0},{"$f":"$D$4*$I$5*'Park Allocations'!AD82","v":0},{"$f":"$D$4*$I$5*'Park Allocations'!AE82","v":0},{"$f":"$D$4*$I$5*'Park Allocations'!AF82","v":0},{"$f":"$D$4*$I$5*'Park Allocations'!AG82","v":0},{"$f":"$D$4*$I$5*'Park Allocations'!AH82","v":0},{"$f":"$D$4*$I$5*'Park Allocations'!AI82","v":0},{"$f":"$D$4*$I$5*'Park Allocations'!AJ82","v":0},{"$f":"$D$4*$I$5*'Park Allocations'!AK82","v":0},{"$f":"$D$4*$I$5*'Park Allocations'!AL82","v":0}]
[null,"365 - Washington State University","365","Washington State University",1645.8506400571982,1645.8506400571982,61,1.0813736137038096E-3,0,0,{"$f":"$D$4*$I$5*'Park Allocations'!E83","v":0},{"$f":"$D$4*$I$5*'Park Allocations'!F83","v":0},{"$f":"$D$4*$I$5*'Park Allocations'!G83","v":0},{"$f":"$D$4*$I$5*'Park Allocations'!H83","v":0},{"$f":"$D$4*$I$5*'Park Allocations'!I83","v":0},{"$f":"$D$4*$I$5*'Park Allocations'!J83","v":0},{"$f":"$D$4*$I$5*'Park Allocations'!K83","v":0},{"$f":"$D$4*$I$5*'Park Allocations'!L83","v":0},{"$f":"$D$4*$I$5*'Park Allocations'!M83","v":0},{"$f":"$D$4*$I$5*'Park Allocations'!N83","v":0},{"$f":"$D$4*$I$5*'Park Allocations'!O83","v":0},{"$f":"$D$4*$I$5*'Park Allocations'!P83","v":0},{"$f":"$D$4*$I$5*'Park Allocations'!Q83","v":0},{"$f":"$D$4*$I$5*'Park Allocations'!R83","v":0},{"$f":"$D$4*$I$5*'Park Allocations'!S83","v":0},{"$f":"$D$4*$I$5*'Park Allocations'!T83","v":0},{"$f":"$D$4*$I$5*'Park Allocations'!U83","v":0},{"$f":"$D$4*$I$5*'Park Allocations'!V83","v":0},{"$f":"$D$4*$I$5*'Park Allocations'!W83","v":0},{"$f":"$D$4*$I$5*'Park Allocations'!X83","v":0},{"$f":"$D$4*$I$5*'Park Allocations'!Y83","v":0},{"$f":"$D$4*$I$5*'Park Allocations'!Z83","v":0},{"$f":"$D$4*$I$5*'Park Allocations'!AA83","v":0},{"$f":"$D$4*$I$5*'Park Allocations'!AB83","v":0},{"$f":"$D$4*$I$5*'Park Allocations'!AC83","v":0},{"$f":"$D$4*$I$5*'Park Allocations'!AD83","v":0},{"$f":"$D$4*$I$5*'Park Allocations'!AE83","v":0},{"$f":"$D$4*$I$5*'Park Allocations'!AF83","v":0},{"$f":"$D$4*$I$5*'Park Allocations'!AG83","v":0},{"$f":"$D$4*$I$5*'Park Allocations'!AH83","v":0},{"$f":"$D$4*$I$5*'Park Allocations'!AI83","v":0},{"$f":"$D$4*$I$5*'Park Allocations'!AJ83","v":0},{"$f":"$D$4*$I$5*'Park Allocations'!AK83","v":0},{"$f":"$D$4*$I$5*'Park Allocations'!AL83","v":0}]
[null,"370 - Eastern Washington University","370","Eastern Washington University",0,0,0,0,0,0,{"$f":"$D$4*$I$5*'Park Allocations'!E84","v":0},{"$f":"$D$4*$I$5*'Park Allocations'!F84","v":0},{"$f":"$D$4*$I$5*'Park Allocations'!G84","v":0},{"$f":"$D$4*$I$5*'Park Allocations'!H84","v":0},{"$f":"$D$4*$I$5*'Park Allocations'!I84","v":0},{"$f":"$D$4*$I$5*'Park Allocations'!J84","v":0},{"$f":"$D$4*$I$5*'Park Allocations'!K84","v":0},{"$f":"$D$4*$I$5*'Park Allocations'!L84","v":0},{"$f":"$D$4*$I$5*'Park Allocations'!M84","v":0},{"$f":"$D$4*$I$5*'Park Allocations'!N84","v":0},{"$f":"$D$4*$I$5*'Park Allocations'!O84","v":0},{"$f":"$D$4*$I$5*'Park Allocations'!P84","v":0},{"$f":"$D$4*$I$5*'Park Allocations'!Q84","v":0},{"$f":"$D$4*$I$5*'Park Allocations'!R84","v":0},{"$f":"$D$4*$I$5*'Park Allocations'!S84","v":0},{"$f":"$D$4*$I$5*'Park Allocations'!T84","v":0},{"$f":"$D$4*$I$5*'Park Allocations'!U84","v":0},{"$f":"$D$4*$I$5*'Park Allocations'!V84","v":0},{"$f":"$D$4*$I$5*'Park Allocations'!W84","v":0},{"$f":"$D$4*$I$5*'Park Allocations'!X84","v":0},{"$f":"$D$4*$I$5*'Park Allocations'!Y84","v":0},{"$f":"$D$4*$I$5*'Park Allocations'!Z84","v":0},{"$f":"$D$4*$I$5*'Park Allocations'!AA84","v":0},{"$f":"$D$4*$I$5*'Park Allocations'!AB84","v":0},{"$f":"$D$4*$I$5*'Park Allocations'!AC84","v":0},{"$f":"$D$4*$I$5*'Park Allocations'!AD84","v":0},{"$f":"$D$4*$I$5*'Park Allocations'!AE84","v":0},{"$f":"$D$4*$I$5*'Park Allocations'!AF84","v":0},{"$f":"$D$4*$I$5*'Park Allocations'!AG84","v":0},{"$f":"$D$4*$I$5*'Park Allocations'!AH84","v":0},{"$f":"$D$4*$I$5*'Park Allocations'!AI84","v":0},{"$f":"$D$4*$I$5*'Park Allocations'!AJ84","v":0},{"$f":"$D$4*$I$5*'Park Allocations'!AK84","v":0},{"$f":"$D$4*$I$5*'Park Allocations'!AL84","v":0}]
[null,"375 - Central Washington University","375","Central Washington University",0,0,0,0,0,0,{"$f":"$D$4*$I$5*'Park Allocations'!E85","v":0},{"$f":"$D$4*$I$5*'Park Allocations'!F85","v":0},{"$f":"$D$4*$I$5*'Park Allocations'!G85","v":0},{"$f":"$D$4*$I$5*'Park Allocations'!H85","v":0},{"$f":"$D$4*$I$5*'Park Allocations'!I85","v":0},{"$f":"$D$4*$I$5*'Park Allocations'!J85","v":0},{"$f":"$D$4*$I$5*'Park Allocations'!K85","v":0},{"$f":"$D$4*$I$5*'Park Allocations'!L85","v":0},{"$f":"$D$4*$I$5*'Park Allocations'!M85","v":0},{"$f":"$D$4*$I$5*'Park Allocations'!N85","v":0},{"$f":"$D$4*$I$5*'Park Allocations'!O85","v":0},{"$f":"$D$4*$I$5*'Park Allocations'!P85","v":0},{"$f":"$D$4*$I$5*'Park Allocations'!Q85","v":0},{"$f":"$D$4*$I$5*'Park Allocations'!R85","v":0},{"$f":"$D$4*$I$5*'Park Allocations'!S85","v":0},{"$f":"$D$4*$I$5*'Park Allocations'!T85","v":0},{"$f":"$D$4*$I$5*'Park Allocations'!U85","v":0},{"$f":"$D$4*$I$5*'Park Allocations'!V85","v":0},{"$f":"$D$4*$I$5*'Park Allocations'!W85","v":0},{"$f":"$D$4*$I$5*'Park Allocations'!X85","v":0},{"$f":"$D$4*$I$5*'Park Allocations'!Y85","v":0},{"$f":"$D$4*$I$5*'Park Allocations'!Z85","v":0},{"$f":"$D$4*$I$5*'Park Allocations'!AA85","v":0},{"$f":"$D$4*$I$5*'Park Allocations'!AB85","v":0},{"$f":"$D$4*$I$5*'Park Allocations'!AC85","v":0},{"$f":"$D$4*$I$5*'Park Allocations'!AD85","v":0},{"$f":"$D$4*$I$5*'Park Allocations'!AE85","v":0},{"$f":"$D$4*$I$5*'Park Allocations'!AF85","v":0},{"$f":"$D$4*$I$5*'Park Allocations'!AG85","v":0},{"$f":"$D$4*$I$5*'Park Allocations'!AH85","v":0},{"$f":"$D$4*$I$5*'Park Allocations'!AI85","v":0},{"$f":"$D$4*$I$5*'Park Allocations'!AJ85","v":0},{"$f":"$D$4*$I$5*'Park Allocations'!AK85","v":0},{"$f":"$D$4*$I$5*'Park Allocations'!AL85","v":0}]
[null,"376 - The Evergreen State College","376","The Evergreen State College",14596.806496244986,14596.806496244986,541,9.5905430330124747E-3,0,0,{"$f":"$D$4*$I$5*'Park Allocations'!E86","v":0},{"$f":"$D$4*$I$5*'Park Allocations'!F86","v":0},{"$f":"$D$4*$I$5*'Park Allocations'!G86","v":0},{"$f":"$D$4*$I$5*'Park Allocations'!H86","v":0},{"$f":"$D$4*$I$5*'Park Allocations'!I86","v":0},{"$f":"$D$4*$I$5*'Park Allocations'!J86","v":0},{"$f":"$D$4*$I$5*'Park Allocations'!K86","v":0},{"$f":"$D$4*$I$5*'Park Allocations'!L86","v":0},{"$f":"$D$4*$I$5*'Park Allocations'!M86","v":0},{"$f":"$D$4*$I$5*'Park Allocations'!N86","v":0},{"$f":"$D$4*$I$5*'Park Allocations'!O86","v":0},{"$f":"$D$4*$I$5*'Park Allocations'!P86","v":0},{"$f":"$D$4*$I$5*'Park Allocations'!Q86","v":0},{"$f":"$D$4*$I$5*'Park Allocations'!R86","v":0},{"$f":"$D$4*$I$5*'Park Allocations'!S86","v":0},{"$f":"$D$4*$I$5*'Park Allocations'!T86","v":0},{"$f":"$D$4*$I$5*'Park Allocations'!U86","v":0},{"$f":"$D$4*$I$5*'Park Allocations'!V86","v":0},{"$f":"$D$4*$I$5*'Park Allocations'!W86","v":0},{"$f":"$D$4*$I$5*'Park Allocations'!X86","v":0},{"$f":"$D$4*$I$5*'Park Allocations'!Y86","v":0},{"$f":"$D$4*$I$5*'Park Allocations'!Z86","v":0},{"$f":"$D$4*$I$5*'Park Allocations'!AA86","v":0},{"$f":"$D$4*$I$5*'Park Allocations'!AB86","v":0},{"$f":"$D$4*$I$5*'Park Allocations'!AC86","v":0},{"$f":"$D$4*$I$5*'Park Allocations'!AD86","v":0},{"$f":"$D$4*$I$5*'Park Allocations'!AE86","v":0},{"$f":"$D$4*$I$5*'Park Allocations'!AF86","v":0},{"$f":"$D$4*$I$5*'Park Allocations'!AG86","v":0},{"$f":"$D$4*$I$5*'Park Allocations'!AH86","v":0},{"$f":"$D$4*$I$5*'Park Allocations'!AI86","v":0},{"$f":"$D$4*$I$5*'Park Allocations'!AJ86","v":0},{"$f":"$D$4*$I$5*'Park Allocations'!AK86","v":0},{"$f":"$D$4*$I$5*'Park Allocations'!AL86","v":0}]
[null,"380 - Western Washington University","380","Western Washington University",0,0,0,0,0,0,{"$f":"$D$4*$I$5*'Park Allocations'!E87","v":0},{"$f":"$D$4*$I$5*'Park Allocations'!F87","v":0},{"$f":"$D$4*$I$5*'Park Allocations'!G87","v":0},{"$f":"$D$4*$I$5*'Park Allocations'!H87","v":0},{"$f":"$D$4*$I$5*'Park Allocations'!I87","v":0},{"$f":"$D$4*$I$5*'Park Allocations'!J87","v":0},{"$f":"$D$4*$I$5*'Park Allocations'!K87","v":0},{"$f":"$D$4*$I$5*'Park Allocations'!L87","v":0},{"$f":"$D$4*$I$5*'Park Allocations'!M87","v":0},{"$f":"$D$4*$I$5*'Park Allocations'!N87","v":0},{"$f":"$D$4*$I$5*'Park Allocations'!O87","v":0},{"$f":"$D$4*$I$5*'Park Allocations'!P87","v":0},{"$f":"$D$4*$I$5*'Park Allocations'!Q87","v":0},{"$f":"$D$4*$I$5*'Park Allocations'!R87","v":0},{"$f":"$D$4*$I$5*'Park Allocations'!S87","v":0},{"$f":"$D$4*$I$5*'Park Allocations'!T87","v":0},{"$f":"$D$4*$I$5*'Park Allocations'!U87","v":0},{"$f":"$D$4*$I$5*'Park Allocations'!V87","v":0},{"$f":"$D$4*$I$5*'Park Allocations'!W87","v":0},{"$f":"$D$4*$I$5*'Park Allocations'!X87","v":0},{"$f":"$D$4*$I$5*'Park Allocations'!Y87","v":0},{"$f":"$D$4*$I$5*'Park Allocations'!Z87","v":0},{"$f":"$D$4*$I$5*'Park Allocations'!AA87","v":0},{"$f":"$D$4*$I$5*'Park Allocations'!AB87","v":0},{"$f":"$D$4*$I$5*'Park Allocations'!AC87","v":0},{"$f":"$D$4*$I$5*'Park Allocations'!AD87","v":0},{"$f":"$D$4*$I$5*'Park Allocations'!AE87","v":0},{"$f":"$D$4*$I$5*'Park Allocations'!AF87","v":0},{"$f":"$D$4*$I$5*'Park Allocations'!AG87","v":0},{"$f":"$D$4*$I$5*'Park Allocations'!AH87","v":0},{"$f":"$D$4*$I$5*'Park Allocations'!AI87","v":0},{"$f":"$D$4*$I$5*'Park Allocations'!AJ87","v":0},{"$f":"$D$4*$I$5*'Park Allocations'!AK87","v":0},{"$f":"$D$4*$I$5*'Park Allocations'!AL87","v":0}]
[null,"387 - Washington State Arts Commission","387","Washington State Arts Commission",539.62316067449126,539.62316067449126,20,3.5454872580452775E-4,0,0,{"$f":"$D$4*$I$5*'Park Allocations'!E88","v":0},{"$f":"$D$4*$I$5*'Park Allocations'!F88","v":0},{"$f":"$D$4*$I$5*'Park Allocations'!G88","v":0},{"$f":"$D$4*$I$5*'Park Allocations'!H88","v":0},{"$f":"$D$4*$I$5*'Park Allocations'!I88","v":0},{"$f":"$D$4*$I$5*'Park Allocations'!J88","v":0},{"$f":"$D$4*$I$5*'Park Allocations'!K88","v":0},{"$f":"$D$4*$I$5*'Park Allocations'!L88","v":0},{"$f":"$D$4*$I$5*'Park Allocations'!M88","v":0},{"$f":"$D$4*$I$5*'Park Allocations'!N88","v":0},{"$f":"$D$4*$I$5*'Park Allocations'!O88","v":0},{"$f":"$D$4*$I$5*'Park Allocations'!P88","v":0},{"$f":"$D$4*$I$5*'Park Allocations'!Q88","v":0},{"$f":"$D$4*$I$5*'Park Allocations'!R88","v":0},{"$f":"$D$4*$I$5*'Park Allocations'!S88","v":0},{"$f":"$D$4*$I$5*'Park Allocations'!T88","v":0},{"$f":"$D$4*$I$5*'Park Allocations'!U88","v":0},{"$f":"$D$4*$I$5*'Park Allocations'!V88","v":0},{"$f":"$D$4*$I$5*'Park Allocations'!W88","v":0},{"$f":"$D$4*$I$5*'Park Allocations'!X88","v":0},{"$f":"$D$4*$I$5*'Park Allocations'!Y88","v":0},{"$f":"$D$4*$I$5*'Park Allocations'!Z88","v":0},{"$f":"$D$4*$I$5*'Park Allocations'!AA88","v":0},{"$f":"$D$4*$I$5*'Park Allocations'!AB88","v":0},{"$f":"$D$4*$I$5*'Park Allocations'!AC88","v":0},{"$f":"$D$4*$I$5*'Park Allocations'!AD88","v":0},{"$f":"$D$4*$I$5*'Park Allocations'!AE88","v":0},{"$f":"$D$4*$I$5*'Park Allocations'!AF88","v":0},{"$f":"$D$4*$I$5*'Park Allocations'!AG88","v":0},{"$f":"$D$4*$I$5*'Park Allocations'!AH88","v":0},{"$f":"$D$4*$I$5*'Park Allocations'!AI88","v":0},{"$f":"$D$4*$I$5*'Park Allocations'!AJ88","v":0},{"$f":"$D$4*$I$5*'Park Allocations'!AK88","v":0},{"$f":"$D$4*$I$5*'Park Allocations'!AL88","v":0}]
[null,"390 - Washington State Historical Society","390","Washington State Historical Society",26.981158033724558,26.981158033724558,1,1.7727436290226384E-5,0,0,{"$f":"$D$4*$I$5*'Park Allocations'!E89","v":0},{"$f":"$D$4*$I$5*'Park Allocations'!F89","v":0},{"$f":"$D$4*$I$5*'Park Allocations'!G89","v":0},{"$f":"$D$4*$I$5*'Park Allocations'!H89","v":0},{"$f":"$D$4*$I$5*'Park Allocations'!I89","v":0},{"$f":"$D$4*$I$5*'Park Allocations'!J89","v":0},{"$f":"$D$4*$I$5*'Park Allocations'!K89","v":0},{"$f":"$D$4*$I$5*'Park Allocations'!L89","v":0},{"$f":"$D$4*$I$5*'Park Allocations'!M89","v":0},{"$f":"$D$4*$I$5*'Park Allocations'!N89","v":0},{"$f":"$D$4*$I$5*'Park Allocations'!O89","v":0},{"$f":"$D$4*$I$5*'Park Allocations'!P89","v":0},{"$f":"$D$4*$I$5*'Park Allocations'!Q89","v":0},{"$f":"$D$4*$I$5*'Park Allocations'!R89","v":0},{"$f":"$D$4*$I$5*'Park Allocations'!S89","v":0},{"$f":"$D$4*$I$5*'Park Allocations'!T89","v":0},{"$f":"$D$4*$I$5*'Park Allocations'!U89","v":0},{"$f":"$D$4*$I$5*'Park Allocations'!V89","v":0},{"$f":"$D$4*$I$5*'Park Allocations'!W89","v":0},{"$f":"$D$4*$I$5*'Park Allocations'!X89","v":0},{"$f":"$D$4*$I$5*'Park Allocations'!Y89","v":0},{"$f":"$D$4*$I$5*'Park Allocations'!Z89","v":0},{"$f":"$D$4*$I$5*'Park Allocations'!AA89","v":0},{"$f":"$D$4*$I$5*'Park Allocations'!AB89","v":0},{"$f":"$D$4*$I$5*'Park Allocations'!AC89","v":0},{"$f":"$D$4*$I$5*'Park Allocations'!AD89","v":0},{"$f":"$D$4*$I$5*'Park Allocations'!AE89","v":0},{"$f":"$D$4*$I$5*'Park Allocations'!AF89","v":0},{"$f":"$D$4*$I$5*'Park Allocations'!AG89","v":0},{"$f":"$D$4*$I$5*'Park Allocations'!AH89","v":0},{"$f":"$D$4*$I$5*'Park Allocations'!AI89","v":0},{"$f":"$D$4*$I$5*'Park Allocations'!AJ89","v":0},{"$f":"$D$4*$I$5*'Park Allocations'!AK89","v":0},{"$f":"$D$4*$I$5*'Park Allocations'!AL89","v":0}]
[null,"395 - Eastern Washington State Historical Society","395","Eastern Washington State Historical Society",0,0,0,0,0,0,{"$f":"$D$4*$I$5*'Park Allocations'!E90","v":0},{"$f":"$D$4*$I$5*'Park Allocations'!F90","v":0},{"$f":"$D$4*$I$5*'Park Allocations'!G90","v":0},{"$f":"$D$4*$I$5*'Park Allocations'!H90","v":0},{"$f":"$D$4*$I$5*'Park Allocations'!I90","v":0},{"$f":"$D$4*$I$5*'Park Allocations'!J90","v":0},{"$f":"$D$4*$I$5*'Park Allocations'!K90","v":0},{"$f":"$D$4*$I$5*'Park Allocations'!L90","v":0},{"$f":"$D$4*$I$5*'Park Allocations'!M90","v":0},{"$f":"$D$4*$I$5*'Park Allocations'!N90","v":0},{"$f":"$D$4*$I$5*'Park Allocations'!O90","v":0},{"$f":"$D$4*$I$5*'Park Allocations'!P90","v":0},{"$f":"$D$4*$I$5*'Park Allocations'!Q90","v":0},{"$f":"$D$4*$I$5*'Park Allocations'!R90","v":0},{"$f":"$D$4*$I$5*'Park Allocations'!S90","v":0},{"$f":"$D$4*$I$5*'Park Allocations'!T90","v":0},{"$f":"$D$4*$I$5*'Park Allocations'!U90","v":0},{"$f":"$D$4*$I$5*'Park Allocations'!V90","v":0},{"$f":"$D$4*$I$5*'Park Allocations'!W90","v":0},{"$f":"$D$4*$I$5*'Park Allocations'!X90","v":0},{"$f":"$D$4*$I$5*'Park Allocations'!Y90","v":0},{"$f":"$D$4*$I$5*'Park Allocations'!Z90","v":0},{"$f":"$D$4*$I$5*'Park Allocations'!AA90","v":0},{"$f":"$D$4*$I$5*'Park Allocations'!AB90","v":0},{"$f":"$D$4*$I$5*'Park Allocations'!AC90","v":0},{"$f":"$D$4*$I$5*'Park Allocations'!AD90","v":0},{"$f":"$D$4*$I$5*'Park Allocations'!AE90","v":0},{"$f":"$D$4*$I$5*'Park Allocations'!AF90","v":0},{"$f":"$D$4*$I$5*'Park Allocations'!AG90","v":0},{"$f":"$D$4*$I$5*'Park Allocations'!AH90","v":0},{"$f":"$D$4*$I$5*'Park Allocations'!AI90","v":0},{"$f":"$D$4*$I$5*'Park Allocations'!AJ90","v":0},{"$f":"$D$4*$I$5*'Park Allocations'!AK90","v":0},{"$f":"$D$4*$I$5*'Park Allocations'!AL90","v":0}]
[null,"405 - Department of Transportation","405","Department of Transportation",52583.918759584238,41416.077581767197,1535,2.7211614705497499E-2,7.3376091838482536E-3,4.5450802103836153E-2,{"$f":"$D$4*$I$5*'Park Allocations'!E91","v":0},{"$f":"$D$4*$I$5*'Park Allocations'!F91","v":0},{"$f":"$D$4*$I$5*'Park Allocations'!G91","v":0},{"$f":"$D$4*$I$5*'Park Allocations'!H91","v":0},{"$f":"$D$4*$I$5*'Park Allocations'!I91","v":0},{"$f":"$D$4*$I$5*'Park Allocations'!J91","v":0},{"$f":"$D$4*$I$5*'Park Allocations'!K91","v":0},{"$f":"$D$4*$I$5*'Park Allocations'!L91","v":0},{"$f":"$D$4*$I$5*'Park Allocations'!M91","v":0},{"$f":"$D$4*$I$5*'Park Allocations'!N91","v":11167.841177817043},{"$f":"$D$4*$I$5*'Park Allocations'!O91","v":0},{"$f":"$D$4*$I$5*'Park Allocations'!P91","v":0},{"$f":"$D$4*$I$5*'Park Allocations'!Q91","v":0},{"$f":"$D$4*$I$5*'Park Allocations'!R91","v":0},{"$f":"$D$4*$I$5*'Park Allocations'!S91","v":0},{"$f":"$D$4*$I$5*'Park Allocations'!T91","v":0},{"$f":"$D$4*$I$5*'Park Allocations'!U91","v":0},{"$f":"$D$4*$I$5*'Park Allocations'!V91","v":0},{"$f":"$D$4*$I$5*'Park Allocations'!W91","v":0},{"$f":"$D$4*$I$5*'Park Allocations'!X91","v":0},{"$f":"$D$4*$I$5*'Park Allocations'!Y91","v":0},{"$f":"$D$4*$I$5*'Park Allocations'!Z91","v":0},{"$f":"$D$4*$I$5*'Park Allocations'!AA91","v":0},{"$f":"$D$4*$I$5*'Park Allocations'!AB91","v":0},{"$f":"$D$4*$I$5*'Park Allocations'!AC91","v":0},{"$f":"$D$4*$I$5*'Park Allocations'!AD91","v":0},{"$f":"$D$4*$I$5*'Park Allocations'!AE91","v":0},{"$f":"$D$4*$I$5*'Park Allocations'!AF91","v":0},{"$f":"$D$4*$I$5*'Park Allocations'!AG91","v":0},{"$f":"$D$4*$I$5*'Park Allocations'!AH91","v":0},{"$f":"$D$4*$I$5*'Park Allocations'!AI91","v":0},{"$f":"$D$4*$I$5*'Park Allocations'!AJ91","v":0},{"$f":"$D$4*$I$5*'Park Allocations'!AK91","v":0},{"$f":"$D$4*$I$5*'Park Allocations'!AL91","v":0}]
[null,"406 - County Road Administration Board","406","County Road Administration Board",431.69852853959293,431.69852853959293,16,2.8363898064362214E-4,0,0,{"$f":"$D$4*$I$5*'Park Allocations'!E92","v":0},{"$f":"$D$4*$I$5*'Park Allocations'!F92","v":0},{"$f":"$D$4*$I$5*'Park Allocations'!G92","v":0},{"$f":"$D$4*$I$5*'Park Allocations'!H92","v":0},{"$f":"$D$4*$I$5*'Park Allocations'!I92","v":0},{"$f":"$D$4*$I$5*'Park Allocations'!J92","v":0},{"$f":"$D$4*$I$5*'Park Allocations'!K92","v":0},{"$f":"$D$4*$I$5*'Park Allocations'!L92","v":0},{"$f":"$D$4*$I$5*'Park Allocations'!M92","v":0},{"$f":"$D$4*$I$5*'Park Allocations'!N92","v":0},{"$f":"$D$4*$I$5*'Park Allocations'!O92","v":0},{"$f":"$D$4*$I$5*'Park Allocations'!P92","v":0},{"$f":"$D$4*$I$5*'Park Allocations'!Q92","v":0},{"$f":"$D$4*$I$5*'Park Allocations'!R92","v":0},{"$f":"$D$4*$I$5*'Park Allocations'!S92","v":0},{"$f":"$D$4*$I$5*'Park Allocations'!T92","v":0},{"$f":"$D$4*$I$5*'Park Allocations'!U92","v":0},{"$f":"$D$4*$I$5*'Park Allocations'!V92","v":0},{"$f":"$D$4*$I$5*'Park Allocations'!W92","v":0},{"$f":"$D$4*$I$5*'Park Allocations'!X92","v":0},{"$f":"$D$4*$I$5*'Park Allocations'!Y92","v":0},{"$f":"$D$4*$I$5*'Park Allocations'!Z92","v":0},{"$f":"$D$4*$I$5*'Park Allocations'!AA92","v":0},{"$f":"$D$4*$I$5*'Park Allocations'!AB92","v":0},{"$f":"$D$4*$I$5*'Park Allocations'!AC92","v":0},{"$f":"$D$4*$I$5*'Park Allocations'!AD92","v":0},{"$f":"$D$4*$I$5*'Park Allocations'!AE92","v":0},{"$f":"$D$4*$I$5*'Park Allocations'!AF92","v":0},{"$f":"$D$4*$I$5*'Park Allocations'!AG92","v":0},{"$f":"$D$4*$I$5*'Park Allocations'!AH92","v":0},{"$f":"$D$4*$I$5*'Park Allocations'!AI92","v":0},{"$f":"$D$4*$I$5*'Park Allocations'!AJ92","v":0},{"$f":"$D$4*$I$5*'Park Allocations'!AK92","v":0},{"$f":"$D$4*$I$5*'Park Allocations'!AL92","v":0}]
[null,"407 - Transportation Improvement Board","407","Transportation Improvement Board",296.79273837097014,296.79273837097014,11,1.9500179919249025E-4,0,0,{"$f":"$D$4*$I$5*'Park Allocations'!E93","v":0},{"$f":"$D$4*$I$5*'Park Allocations'!F93","v":0},{"$f":"$D$4*$I$5*'Park Allocations'!G93","v":0},{"$f":"$D$4*$I$5*'Park Allocations'!H93","v":0},{"$f":"$D$4*$I$5*'Park Allocations'!I93","v":0},{"$f":"$D$4*$I$5*'Park Allocations'!J93","v":0},{"$f":"$D$4*$I$5*'Park Allocations'!K93","v":0},{"$f":"$D$4*$I$5*'Park Allocations'!L93","v":0},{"$f":"$D$4*$I$5*'Park Allocations'!M93","v":0},{"$f":"$D$4*$I$5*'Park Allocations'!N93","v":0},{"$f":"$D$4*$I$5*'Park Allocations'!O93","v":0},{"$f":"$D$4*$I$5*'Park Allocations'!P93","v":0},{"$f":"$D$4*$I$5*'Park Allocations'!Q93","v":0},{"$f":"$D$4*$I$5*'Park Allocations'!R93","v":0},{"$f":"$D$4*$I$5*'Park Allocations'!S93","v":0},{"$f":"$D$4*$I$5*'Park Allocations'!T93","v":0},{"$f":"$D$4*$I$5*'Park Allocations'!U93","v":0},{"$f":"$D$4*$I$5*'Park Allocations'!V93","v":0},{"$f":"$D$4*$I$5*'Park Allocations'!W93","v":0},{"$f":"$D$4*$I$5*'Park Allocations'!X93","v":0},{"$f":"$D$4*$I$5*'Park Allocations'!Y93","v":0},{"$f":"$D$4*$I$5*'Park Allocations'!Z93","v":0},{"$f":"$D$4*$I$5*'Park Allocations'!AA93","v":0},{"$f":"$D$4*$I$5*'Park Allocations'!AB93","v":0},{"$f":"$D$4*$I$5*'Park Allocations'!AC93","v":0},{"$f":"$D$4*$I$5*'Park Allocations'!AD93","v":0},{"$f":"$D$4*$I$5*'Park Allocations'!AE93","v":0},{"$f":"$D$4*$I$5*'Park Allocations'!AF93","v":0},{"$f":"$D$4*$I$5*'Park Allocations'!AG93","v":0},{"$f":"$D$4*$I$5*'Park Allocations'!AH93","v":0},{"$f":"$D$4*$I$5*'Park Allocations'!AI93","v":0},{"$f":"$D$4*$I$5*'Park Allocations'!AJ93","v":0},{"$f":"$D$4*$I$5*'Park Allocations'!AK93","v":0},{"$f":"$D$4*$I$5*'Park Allocations'!AL93","v":0}]
[null,"410 - Transportation Commission","410","Transportation Commission",161.88694820234736,161.88694820234736,6,1.0636461774135831E-4,0,0,{"$f":"$D$4*$I$5*'Park Allocations'!E94","v":0},{"$f":"$D$4*$I$5*'Park Allocations'!F94","v":0},{"$f":"$D$4*$I$5*'Park Allocations'!G94","v":0},{"$f":"$D$4*$I$5*'Park Allocations'!H94","v":0},{"$f":"$D$4*$I$5*'Park Allocations'!I94","v":0},{"$f":"$D$4*$I$5*'Park Allocations'!J94","v":0},{"$f":"$D$4*$I$5*'Park Allocations'!K94","v":0},{"$f":"$D$4*$I$5*'Park Allocations'!L94","v":0},{"$f":"$D$4*$I$5*'Park Allocations'!M94","v":0},{"$f":"$D$4*$I$5*'Park Allocations'!N94","v":0},{"$f":"$D$4*$I$5*'Park Allocations'!O94","v":0},{"$f":"$D$4*$I$5*'Park Allocations'!P94","v":0},{"$f":"$D$4*$I$5*'Park Allocations'!Q94","v":0},{"$f":"$D$4*$I$5*'Park Allocations'!R94","v":0},{"$f":"$D$4*$I$5*'Park Allocations'!S94","v":0},{"$f":"$D$4*$I$5*'Park Allocations'!T94","v":0},{"$f":"$D$4*$I$5*'Park Allocations'!U94","v":0},{"$f":"$D$4*$I$5*'Park Allocations'!V94","v":0},{"$f":"$D$4*$I$5*'Park Allocations'!W94","v":0},{"$f":"$D$4*$I$5*'Park Allocations'!X94","v":0},{"$f":"$D$4*$I$5*'Park Allocations'!Y94","v":0},{"$f":"$D$4*$I$5*'Park Allocations'!Z94","v":0},{"$f":"$D$4*$I$5*'Park Allocations'!AA94","v":0},{"$f":"$D$4*$I$5*'Park Allocations'!AB94","v":0},{"$f":"$D$4*$I$5*'Park Allocations'!AC94","v":0},{"$f":"$D$4*$I$5*'Park Allocations'!AD94","v":0},{"$f":"$D$4*$I$5*'Park Allocations'!AE94","v":0},{"$f":"$D$4*$I$5*'Park Allocations'!AF94","v":0},{"$f":"$D$4*$I$5*'Park Allocations'!AG94","v":0},{"$f":"$D$4*$I$5*'Park Allocations'!AH94","v":0},{"$f":"$D$4*$I$5*'Park Allocations'!AI94","v":0},{"$f":"$D$4*$I$5*'Park Allocations'!AJ94","v":0},{"$f":"$D$4*$I$5*'Park Allocations'!AK94","v":0},{"$f":"$D$4*$I$5*'Park Allocations'!AL94","v":0}]
[null,"411 - Freight Mobility Strategic Investment Board","411","Freight Mobility Strategic Investment Board",53.962316067449116,53.962316067449116,2,3.5454872580452768E-5,0,0,{"$f":"$D$4*$I$5*'Park Allocations'!E95","v":0},{"$f":"$D$4*$I$5*'Park Allocations'!F95","v":0},{"$f":"$D$4*$I$5*'Park Allocations'!G95","v":0},{"$f":"$D$4*$I$5*'Park Allocations'!H95","v":0},{"$f":"$D$4*$I$5*'Park Allocations'!I95","v":0},{"$f":"$D$4*$I$5*'Park Allocations'!J95","v":0},{"$f":"$D$4*$I$5*'Park Allocations'!K95","v":0},{"$f":"$D$4*$I$5*'Park Allocations'!L95","v":0},{"$f":"$D$4*$I$5*'Park Allocations'!M95","v":0},{"$f":"$D$4*$I$5*'Park Allocations'!N95","v":0},{"$f":"$D$4*$I$5*'Park Allocations'!O95","v":0},{"$f":"$D$4*$I$5*'Park Allocations'!P95","v":0},{"$f":"$D$4*$I$5*'Park Allocations'!Q95","v":0},{"$f":"$D$4*$I$5*'Park Allocations'!R95","v":0},{"$f":"$D$4*$I$5*'Park Allocations'!S95","v":0},{"$f":"$D$4*$I$5*'Park Allocations'!T95","v":0},{"$f":"$D$4*$I$5*'Park Allocations'!U95","v":0},{"$f":"$D$4*$I$5*'Park Allocations'!V95","v":0},{"$f":"$D$4*$I$5*'Park Allocations'!W95","v":0},{"$f":"$D$4*$I$5*'Park Allocations'!X95","v":0},{"$f":"$D$4*$I$5*'Park Allocations'!Y95","v":0},{"$f":"$D$4*$I$5*'Park Allocations'!Z95","v":0},{"$f":"$D$4*$I$5*'Park Allocations'!AA95","v":0},{"$f":"$D$4*$I$5*'Park Allocations'!AB95","v":0},{"$f":"$D$4*$I$5*'Park Allocations'!AC95","v":0},{"$f":"$D$4*$I$5*'Park Allocations'!AD95","v":0},{"$f":"$D$4*$I$5*'Park Allocations'!AE95","v":0},{"$f":"$D$4*$I$5*'Park Allocations'!AF95","v":0},{"$f":"$D$4*$I$5*'Park Allocations'!AG95","v":0},{"$f":"$D$4*$I$5*'Park Allocations'!AH95","v":0},{"$f":"$D$4*$I$5*'Park Allocations'!AI95","v":0},{"$f":"$D$4*$I$5*'Park Allocations'!AJ95","v":0},{"$f":"$D$4*$I$5*'Park Allocations'!AK95","v":0},{"$f":"$D$4*$I$5*'Park Allocations'!AL95","v":0}]
[null,"460 - Columbia River Gorge Commission","460","Columbia River Gorge Commission",0,0,0,0,0,0,{"$f":"$D$4*$I$5*'Park Allocations'!E96","v":0},{"$f":"$D$4*$I$5*'Park Allocations'!F96","v":0},{"$f":"$D$4*$I$5*'Park Allocations'!G96","v":0},{"$f":"$D$4*$I$5*'Park Allocations'!H96","v":0},{"$f":"$D$4*$I$5*'Park Allocations'!I96","v":0},{"$f":"$D$4*$I$5*'Park Allocations'!J96","v":0},{"$f":"$D$4*$I$5*'Park Allocations'!K96","v":0},{"$f":"$D$4*$I$5*'Park Allocations'!L96","v":0},{"$f":"$D$4*$I$5*'Park Allocations'!M96","v":0},{"$f":"$D$4*$I$5*'Park Allocations'!N96","v":0},{"$f":"$D$4*$I$5*'Park Allocations'!O96","v":0},{"$f":"$D$4*$I$5*'Park Allocations'!P96","v":0},{"$f":"$D$4*$I$5*'Park Allocations'!Q96","v":0},{"$f":"$D$4*$I$5*'Park Allocations'!R96","v":0},{"$f":"$D$4*$I$5*'Park Allocations'!S96","v":0},{"$f":"$D$4*$I$5*'Park Allocations'!T96","v":0},{"$f":"$D$4*$I$5*'Park Allocations'!U96","v":0},{"$f":"$D$4*$I$5*'Park Allocations'!V96","v":0},{"$f":"$D$4*$I$5*'Park Allocations'!W96","v":0},{"$f":"$D$4*$I$5*'Park Allocations'!X96","v":0},{"$f":"$D$4*$I$5*'Park Allocations'!Y96","v":0},{"$f":"$D$4*$I$5*'Park Allocations'!Z96","v":0},{"$f":"$D$4*$I$5*'Park Allocations'!AA96","v":0},{"$f":"$D$4*$I$5*'Park Allocations'!AB96","v":0},{"$f":"$D$4*$I$5*'Park Allocations'!AC96","v":0},{"$f":"$D$4*$I$5*'Park Allocations'!AD96","v":0},{"$f":"$D$4*$I$5*'Park Allocations'!AE96","v":0},{"$f":"$D$4*$I$5*'Park Allocations'!AF96","v":0},{"$f":"$D$4*$I$5*'Park Allocations'!AG96","v":0},{"$f":"$D$4*$I$5*'Park Allocations'!AH96","v":0},{"$f":"$D$4*$I$5*'Park Allocations'!AI96","v":0},{"$f":"$D$4*$I$5*'Park Allocations'!AJ96","v":0},{"$f":"$D$4*$I$5*'Park Allocations'!AK96","v":0},{"$f":"$D$4*$I$5*'Park Allocations'!AL96","v":0}]
[null,"461 - Department of Ecology","461","Department of Ecology",26252.666766813996,26252.666766813996,973,1.7248795510390273E-2,0,0,{"$f":"$D$4*$I$5*'Park Allocations'!E97","v":0},{"$f":"$D$4*$I$5*'Park Allocations'!F97","v":0},{"$f":"$D$4*$I$5*'Park Allocations'!G97","v":0},{"$f":"$D$4*$I$5*'Park Allocations'!H97","v":0},{"$f":"$D$4*$I$5*'Park Allocations'!I97","v":0},{"$f":"$D$4*$I$5*'Park Allocations'!J97","v":0},{"$f":"$D$4*$I$5*'Park Allocations'!K97","v":0},{"$f":"$D$4*$I$5*'Park Allocations'!L97","v":0},{"$f":"$D$4*$I$5*'Park Allocations'!M97","v":0},{"$f":"$D$4*$I$5*'Park Allocations'!N97","v":0},{"$f":"$D$4*$I$5*'Park Allocations'!O97","v":0},{"$f":"$D$4*$I$5*'Park Allocations'!P97","v":0},{"$f":"$D$4*$I$5*'Park Allocations'!Q97","v":0},{"$f":"$D$4*$I$5*'Park Allocations'!R97","v":0},{"$f":"$D$4*$I$5*'Park Allocations'!S97","v":0},{"$f":"$D$4*$I$5*'Park Allocations'!T97","v":0},{"$f":"$D$4*$I$5*'Park Allocations'!U97","v":0},{"$f":"$D$4*$I$5*'Park Allocations'!V97","v":0},{"$f":"$D$4*$I$5*'Park Allocations'!W97","v":0},{"$f":"$D$4*$I$5*'Park Allocations'!X97","v":0},{"$f":"$D$4*$I$5*'Park Allocations'!Y97","v":0},{"$f":"$D$4*$I$5*'Park Allocations'!Z97","v":0},{"$f":"$D$4*$I$5*'Park Allocations'!AA97","v":0},{"$f":"$D$4*$I$5*'Park Allocations'!AB97","v":0},{"$f":"$D$4*$I$5*'Park Allocations'!AC97","v":0},{"$f":"$D$4*$I$5*'Park Allocations'!AD97","v":0},{"$f":"$D$4*$I$5*'Park Allocations'!AE97","v":0},{"$f":"$D$4*$I$5*'Park Allocations'!AF97","v":0},{"$f":"$D$4*$I$5*'Park Allocations'!AG97","v":0},{"$f":"$D$4*$I$5*'Park Allocations'!AH97","v":0},{"$f":"$D$4*$I$5*'Park Allocations'!AI97","v":0},{"$f":"$D$4*$I$5*'Park Allocations'!AJ97","v":0},{"$f":"$D$4*$I$5*'Park Allocations'!AK97","v":0},{"$f":"$D$4*$I$5*'Park Allocations'!AL97","v":0}]
[null,"462 - Pollution Liability Insurance Program","462","Pollution Liability Insurance Program",485.66084460704201,485.66084460704201,18,3.1909385322407489E-4,0,0,{"$f":"$D$4*$I$5*'Park Allocations'!E98","v":0},{"$f":"$D$4*$I$5*'Park Allocations'!F98","v":0},{"$f":"$D$4*$I$5*'Park Allocations'!G98","v":0},{"$f":"$D$4*$I$5*'Park Allocations'!H98","v":0},{"$f":"$D$4*$I$5*'Park Allocations'!I98","v":0},{"$f":"$D$4*$I$5*'Park Allocations'!J98","v":0},{"$f":"$D$4*$I$5*'Park Allocations'!K98","v":0},{"$f":"$D$4*$I$5*'Park Allocations'!L98","v":0},{"$f":"$D$4*$I$5*'Park Allocations'!M98","v":0},{"$f":"$D$4*$I$5*'Park Allocations'!N98","v":0},{"$f":"$D$4*$I$5*'Park Allocations'!O98","v":0},{"$f":"$D$4*$I$5*'Park Allocations'!P98","v":0},{"$f":"$D$4*$I$5*'Park Allocations'!Q98","v":0},{"$f":"$D$4*$I$5*'Park Allocations'!R98","v":0},{"$f":"$D$4*$I$5*'Park Allocations'!S98","v":0},{"$f":"$D$4*$I$5*'Park Allocations'!T98","v":0},{"$f":"$D$4*$I$5*'Park Allocations'!U98","v":0},{"$f":"$D$4*$I$5*'Park Allocations'!V98","v":0},{"$f":"$D$4*$I$5*'Park Allocations'!W98","v":0},{"$f":"$D$4*$I$5*'Park Allocations'!X98","v":0},{"$f":"$D$4*$I$5*'Park Allocations'!Y98","v":0},{"$f":"$D$4*$I$5*'Park Allocations'!Z98","v":0},{"$f":"$D$4*$I$5*'Park Allocations'!AA98","v":0},{"$f":"$D$4*$I$5*'Park Allocations'!AB98","v":0},{"$f":"$D$4*$I$5*'Park Allocations'!AC98","v":0},{"$f":"$D$4*$I$5*'Park Allocations'!AD98","v":0},{"$f":"$D$4*$I$5*'Park Allocations'!AE98","v":0},{"$f":"$D$4*$I$5*'Park Allocations'!AF98","v":0},{"$f":"$D$4*$I$5*'Park Allocations'!AG98","v":0},{"$f":"$D$4*$I$5*'Park Allocations'!AH98","v":0},{"$f":"$D$4*$I$5*'Park Allocations'!AI98","v":0},{"$f":"$D$4*$I$5*'Park Allocations'!AJ98","v":0},{"$f":"$D$4*$I$5*'Park Allocations'!AK98","v":0},{"$f":"$D$4*$I$5*'Park Allocations'!AL98","v":0}]
[null,"465 - State Parks and Recreation Commission","465","State Parks and Recreation Commission",5018.495394272768,5018.495394272768,186,3.2973031499821076E-3,0,0,{"$f":"$D$4*$I$5*'Park Allocations'!E99","v":0},{"$f":"$D$4*$I$5*'Park Allocations'!F99","v":0},{"$f":"$D$4*$I$5*'Park Allocations'!G99","v":0},{"$f":"$D$4*$I$5*'Park Allocations'!H99","v":0},{"$f":"$D$4*$I$5*'Park Allocations'!I99","v":0},{"$f":"$D$4*$I$5*'Park Allocations'!J99","v":0},{"$f":"$D$4*$I$5*'Park Allocations'!K99","v":0},{"$f":"$D$4*$I$5*'Park Allocations'!L99","v":0},{"$f":"$D$4*$I$5*'Park Allocations'!M99","v":0},{"$f":"$D$4*$I$5*'Park Allocations'!N99","v":0},{"$f":"$D$4*$I$5*'Park Allocations'!O99","v":0},{"$f":"$D$4*$I$5*'Park Allocations'!P99","v":0},{"$f":"$D$4*$I$5*'Park Allocations'!Q99","v":0},{"$f":"$D$4*$I$5*'Park Allocations'!R99","v":0},{"$f":"$D$4*$I$5*'Park Allocations'!S99","v":0},{"$f":"$D$4*$I$5*'Park Allocations'!T99","v":0},{"$f":"$D$4*$I$5*'Park Allocations'!U99","v":0},{"$f":"$D$4*$I$5*'Park Allocations'!V99","v":0},{"$f":"$D$4*$I$5*'Park Allocations'!W99","v":0},{"$f":"$D$4*$I$5*'Park Allocations'!X99","v":0},{"$f":"$D$4*$I$5*'Park Allocations'!Y99","v":0},{"$f":"$D$4*$I$5*'Park Allocations'!Z99","v":0},{"$f":"$D$4*$I$5*'Park Allocations'!AA99","v":0},{"$f":"$D$4*$I$5*'Park Allocations'!AB99","v":0},{"$f":"$D$4*$I$5*'Park Allocations'!AC99","v":0},{"$f":"$D$4*$I$5*'Park Allocations'!AD99","v":0},{"$f":"$D$4*$I$5*'Park Allocations'!AE99","v":0},{"$f":"$D$4*$I$5*'Park Allocations'!AF99","v":0},{"$f":"$D$4*$I$5*'Park Allocations'!AG99","v":0},{"$f":"$D$4*$I$5*'Park Allocations'!AH99","v":0},{"$f":"$D$4*$I$5*'Park Allocations'!AI99","v":0},{"$f":"$D$4*$I$5*'Park Allocations'!AJ99","v":0},{"$f":"$D$4*$I$5*'Park Allocations'!AK99","v":0},{"$f":"$D$4*$I$5*'Park Allocations'!AL99","v":0}]
[null,"467 - Recreation and Conservation Funding Board","467","Recreation and Conservation Funding Board",2364.1594860945142,1645.8506400571982,61,1.0813736137038096E-3,4.7195062157510915E-4,2.9383148395067688E-3,{"$f":"$D$4*$I$5*'Park Allocations'!E100","v":0},{"$f":"$D$4*$I$5*'Park Allocations'!F100","v":0},{"$f":"$D$4*$I$5*'Park Allocations'!G100","v":0},{"$f":"$D$4*$I$5*'Park Allocations'!H100","v":0},{"$f":"$D$4*$I$5*'Park Allocations'!I100","v":0},{"$f":"$D$4*$I$5*'Park Allocations'!J100","v":0},{"$f":"$D$4*$I$5*'Park Allocations'!K100","v":0},{"$f":"$D$4*$I$5*'Park Allocations'!L100","v":718.30884603731613},{"$f":"$D$4*$I$5*'Park Allocations'!M100","v":0},{"$f":"$D$4*$I$5*'Park Allocations'!N100","v":0},{"$f":"$D$4*$I$5*'Park Allocations'!O100","v":0},{"$f":"$D$4*$I$5*'Park Allocations'!P100","v":0},{"$f":"$D$4*$I$5*'Park Allocations'!Q100","v":0},{"$f":"$D$4*$I$5*'Park Allocations'!R100","v":0},{"$f":"$D$4*$I$5*'Park Allocations'!S100","v":0},{"$f":"$D$4*$I$5*'Park Allocations'!T100","v":0},{"$f":"$D$4*$I$5*'Park Allocations'!U100","v":0},{"$f":"$D$4*$I$5*'Park Allocations'!V100","v":0},{"$f":"$D$4*$I$5*'Park Allocations'!W100","v":0},{"$f":"$D$4*$I$5*'Park Allocations'!X100","v":0},{"$f":"$D$4*$I$5*'Park Allocations'!Y100","v":0},{"$f":"$D$4*$I$5*'Park Allocations'!Z100","v":0},{"$f":"$D$4*$I$5*'Park Allocations'!AA100","v":0},{"$f":"$D$4*$I$5*'Park Allocations'!AB100","v":0},{"$f":"$D$4*$I$5*'Park Allocations'!AC100","v":0},{"$f":"$D$4*$I$5*'Park Allocations'!AD100","v":0},{"$f":"$D$4*$I$5*'Park Allocations'!AE100","v":0},{"$f":"$D$4*$I$5*'Park Allocations'!AF100","v":0},{"$f":"$D$4*$I$5*'Park Allocations'!AG100","v":0},{"$f":"$D$4*$I$5*'Park Allocations'!AH100","v":0},{"$f":"$D$4*$I$5*'Park Allocations'!AI100","v":0},{"$f":"$D$4*$I$5*'Park Allocations'!AJ100","v":0},{"$f":"$D$4*$I$5*'Park Allocations'!AK100","v":0},{"$f":"$D$4*$I$5*'Park Allocations'!AL100","v":0}]
[null,"468 - Environmental and Land Use Hearings Office","468","Environmental and Land Use Hearings Office",269.81158033724563,269.81158033724563,10,1.7727436290226387E-4,0,0,{"$f":"$D$4*$I$5*'Park Allocations'!E101","v":0},{"$f":"$D$4*$I$5*'Park Allocations'!F101","v":0},{"$f":"$D$4*$I$5*'Park Allocations'!G101","v":0},{"$f":"$D$4*$I$5*'Park Allocations'!H101","v":0},{"$f":"$D$4*$I$5*'Park Allocations'!I101","v":0},{"$f":"$D$4*$I$5*'Park Allocations'!J101","v":0},{"$f":"$D$4*$I$5*'Park Allocations'!K101","v":0},{"$f":"$D$4*$I$5*'Park Allocations'!L101","v":0},{"$f":"$D$4*$I$5*'Park Allocations'!M101","v":0},{"$f":"$D$4*$I$5*'Park Allocations'!N101","v":0},{"$f":"$D$4*$I$5*'Park Allocations'!O101","v":0},{"$f":"$D$4*$I$5*'Park Allocations'!P101","v":0},{"$f":"$D$4*$I$5*'Park Allocations'!Q101","v":0},{"$f":"$D$4*$I$5*'Park Allocations'!R101","v":0},{"$f":"$D$4*$I$5*'Park Allocations'!S101","v":0},{"$f":"$D$4*$I$5*'Park Allocations'!T101","v":0},{"$f":"$D$4*$I$5*'Park Allocations'!U101","v":0},{"$f":"$D$4*$I$5*'Park Allocations'!V101","v":0},{"$f":"$D$4*$I$5*'Park Allocations'!W101","v":0},{"$f":"$D$4*$I$5*'Park Allocations'!X101","v":0},{"$f":"$D$4*$I$5*'Park Allocations'!Y101","v":0},{"$f":"$D$4*$I$5*'Park Allocations'!Z101","v":0},{"$f":"$D$4*$I$5*'Park Allocations'!AA101","v":0},{"$f":"$D$4*$I$5*'Park Allocations'!AB101","v":0},{"$f":"$D$4*$I$5*'Park Allocations'!AC101","v":0},{"$f":"$D$4*$I$5*'Park Allocations'!AD101","v":0},{"$f":"$D$4*$I$5*'Park Allocations'!AE101","v":0},{"$f":"$D$4*$I$5*'Park Allocations'!AF101","v":0},{"$f":"$D$4*$I$5*'Park Allocations'!AG101","v":0},{"$f":"$D$4*$I$5*'Park Allocations'!AH101","v":0},{"$f":"$D$4*$I$5*'Park Allocations'!AI101","v":0},{"$f":"$D$4*$I$5*'Park Allocations'!AJ101","v":0},{"$f":"$D$4*$I$5*'Park Allocations'!AK101","v":0},{"$f":"$D$4*$I$5*'Park Allocations'!AL101","v":0}]
[null,"471 - State Conservation Commission","471","State Conservation Commission",431.69852853959293,431.69852853959293,16,2.8363898064362214E-4,0,0,{"$f":"$D$4*$I$5*'Park Allocations'!E102","v":0},{"$f":"$D$4*$I$5*'Park Allocations'!F102","v":0},{"$f":"$D$4*$I$5*'Park Allocations'!G102","v":0},{"$f":"$D$4*$I$5*'Park Allocations'!H102","v":0},{"$f":"$D$4*$I$5*'Park Allocations'!I102","v":0},{"$f":"$D$4*$I$5*'Park Allocations'!J102","v":0},{"$f":"$D$4*$I$5*'Park Allocations'!K102","v":0},{"$f":"$D$4*$I$5*'Park Allocations'!L102","v":0},{"$f":"$D$4*$I$5*'Park Allocations'!M102","v":0},{"$f":"$D$4*$I$5*'Park Allocations'!N102","v":0},{"$f":"$D$4*$I$5*'Park Allocations'!O102","v":0},{"$f":"$D$4*$I$5*'Park Allocations'!P102","v":0},{"$f":"$D$4*$I$5*'Park Allocations'!Q102","v":0},{"$f":"$D$4*$I$5*'Park Allocations'!R102","v":0},{"$f":"$D$4*$I$5*'Park Allocations'!S102","v":0},{"$f":"$D$4*$I$5*'Park Allocations'!T102","v":0},{"$f":"$D$4*$I$5*'Park Allocations'!U102","v":0},{"$f":"$D$4*$I$5*'Park Allocations'!V102","v":0},{"$f":"$D$4*$I$5*'Park Allocations'!W102","v":0},{"$f":"$D$4*$I$5*'Park Allocations'!X102","v":0},{"$f":"$D$4*$I$5*'Park Allocations'!Y102","v":0},{"$f":"$D$4*$I$5*'Park Allocations'!Z102","v":0},{"$f":"$D$4*$I$5*'Park Allocations'!AA102","v":0},{"$f":"$D$4*$I$5*'Park Allocations'!AB102","v":0},{"$f":"$D$4*$I$5*'Park Allocations'!AC102","v":0},{"$f":"$D$4*$I$5*'Park Allocations'!AD102","v":0},{"$f":"$D$4*$I$5*'Park Allocations'!AE102","v":0},{"$f":"$D$4*$I$5*'Park Allocations'!AF102","v":0},{"$f":"$D$4*$I$5*'Park Allocations'!AG102","v":0},{"$f":"$D$4*$I$5*'Park Allocations'!AH102","v":0},{"$f":"$D$4*$I$5*'Park Allocations'!AI102","v":0},{"$f":"$D$4*$I$5*'Park Allocations'!AJ102","v":0},{"$f":"$D$4*$I$5*'Park Allocations'!AK102","v":0},{"$f":"$D$4*$I$5*'Park Allocations'!AL102","v":0}]
[null,"477 - Department of Fish and Wildlife","477","Department of Fish and Wildlife",28925.118634935669,20370.774315462044,755,1.3384214399120922E-2,5.6204627591810935E-3,3.4992408898795617E-2,{"$f":"$D$4*$I$5*'Park Allocations'!E103","v":0},{"$f":"$D$4*$I$5*'Park Allocations'!F103","v":0},{"$f":"$D$4*$I$5*'Park Allocations'!G103","v":0},{"$f":"$D$4*$I$5*'Park Allocations'!H103","v":0},{"$f":"$D$4*$I$5*'Park Allocations'!I103","v":0},{"$f":"$D$4*$I$5*'Park Allocations'!J103","v":0},{"$f":"$D$4*$I$5*'Park Allocations'!K103","v":0},{"$f":"$D$4*$I$5*'Park Allocations'!L103","v":8554.3443194736246},{"$f":"$D$4*$I$5*'Park Allocations'!M103","v":0},{"$f":"$D$4*$I$5*'Park Allocations'!N103","v":0},{"$f":"$D$4*$I$5*'Park Allocations'!O103","v":0},{"$f":"$D$4*$I$5*'Park Allocations'!P103","v":0},{"$f":"$D$4*$I$5*'Park Allocations'!Q103","v":0},{"$f":"$D$4*$I$5*'Park Allocations'!R103","v":0},{"$f":"$D$4*$I$5*'Park Allocations'!S103","v":0},{"$f":"$D$4*$I$5*'Park Allocations'!T103","v":0},{"$f":"$D$4*$I$5*'Park Allocations'!U103","v":0},{"$f":"$D$4*$I$5*'Park Allocations'!V103","v":0},{"$f":"$D$4*$I$5*'Park Allocations'!W103","v":0},{"$f":"$D$4*$I$5*'Park Allocations'!X103","v":0},{"$f":"$D$4*$I$5*'Park Allocations'!Y103","v":0},{"$f":"$D$4*$I$5*'Park Allocations'!Z103","v":0},{"$f":"$D$4*$I$5*'Park Allocations'!AA103","v":0},{"$f":"$D$4*$I$5*'Park Allocations'!AB103","v":0},{"$f":"$D$4*$I$5*'Park Allocations'!AC103","v":0},{"$f":"$D$4*$I$5*'Park Allocations'!AD103","v":0},{"$f":"$D$4*$I$5*'Park Allocations'!AE103","v":0},{"$f":"$D$4*$I$5*'Park Allocations'!AF103","v":0},{"$f":"$D$4*$I$5*'Park Allocations'!AG103","v":0},{"$f":"$D$4*$I$5*'Park Allocations'!AH103","v":0},{"$f":"$D$4*$I$5*'Park Allocations'!AI103","v":0},{"$f":"$D$4*$I$5*'Park Allocations'!AJ103","v":0},{"$f":"$D$4*$I$5*'Park Allocations'!AK103","v":0},{"$f":"$D$4*$I$5*'Park Allocations'!AL103","v":0}]
[null,"478 - Puget Sound Partnership","478","Puget Sound Partnership",53.962316067449116,53.962316067449116,2,3.5454872580452768E-5,0,2.9202590346532649E-4,{"$f":"$D$4*$I$5*'Park Allocations'!E104","v":0},{"$f":"$D$4*$I$5*'Park Allocations'!F104","v":0},{"$f":"$D$4*$I$5*'Park Allocations'!G104","v":0},{"$f":"$D$4*$I$5*'Park Allocations'!H104","v":0},{"$f":"$D$4*$I$5*'Park Allocations'!I104","v":0},{"$f":"$D$4*$I$5*'Park Allocations'!J104","v":0},{"$f":"$D$4*$I$5*'Park Allocations'!K104","v":0},{"$f":"$D$4*$I$5*'Park Allocations'!L104","v":0},{"$f":"$D$4*$I$5*'Park Allocations'!M104","v":0},{"$f":"$D$4*$I$5*'Park Allocations'!N104","v":0},{"$f":"$D$4*$I$5*'Park Allocations'!O104","v":0},{"$f":"$D$4*$I$5*'Park Allocations'!P104","v":0},{"$f":"$D$4*$I$5*'Park Allocations'!Q104","v":0},{"$f":"$D$4*$I$5*'Park Allocations'!R104","v":0},{"$f":"$D$4*$I$5*'Park Allocations'!S104","v":0},{"$f":"$D$4*$I$5*'Park Allocations'!T104","v":0},{"$f":"$D$4*$I$5*'Park Allocations'!U104","v":0},{"$f":"$D$4*$I$5*'Park Allocations'!V104","v":0},{"$f":"$D$4*$I$5*'Park Allocations'!W104","v":0},{"$f":"$D$4*$I$5*'Park Allocations'!X104","v":0},{"$f":"$D$4*$I$5*'Park Allocations'!Y104","v":0},{"$f":"$D$4*$I$5*'Park Allocations'!Z104","v":0},{"$f":"$D$4*$I$5*'Park Allocations'!AA104","v":0},{"$f":"$D$4*$I$5*'Park Allocations'!AB104","v":0},{"$f":"$D$4*$I$5*'Park Allocations'!AC104","v":0},{"$f":"$D$4*$I$5*'Park Allocations'!AD104","v":0},{"$f":"$D$4*$I$5*'Park Allocations'!AE104","v":0},{"$f":"$D$4*$I$5*'Park Allocations'!AF104","v":0},{"$f":"$D$4*$I$5*'Park Allocations'!AG104","v":0},{"$f":"$D$4*$I$5*'Park Allocations'!AH104","v":0},{"$f":"$D$4*$I$5*'Park Allocations'!AI104","v":0},{"$f":"$D$4*$I$5*'Park Allocations'!AJ104","v":0},{"$f":"$D$4*$I$5*'Park Allocations'!AK104","v":0},{"$f":"$D$4*$I$5*'Park Allocations'!AL104","v":0}]
[null,"490 - Department of Natural Resources","490","Department of Natural Resources",28393.811209756466,19129.64104591071,709,1.2568752329770507E-2,6.0868397922771086E-3,3.7896023163732168E-2,{"$f":"$D$4*$I$5*'Park Allocations'!E105","v":0},{"$f":"$D$4*$I$5*'Park Allocations'!F105","v":0},{"$f":"$D$4*$I$5*'Park Allocations'!G105","v":0},{"$f":"$D$4*$I$5*'Park Allocations'!H105","v":0},{"$f":"$D$4*$I$5*'Park Allocations'!I105","v":0},{"$f":"$D$4*$I$5*'Park Allocations'!J105","v":0},{"$f":"$D$4*$I$5*'Park Allocations'!K105","v":0},{"$f":"$D$4*$I$5*'Park Allocations'!L105","v":9264.170163845758},{"$f":"$D$4*$I$5*'Park Allocations'!M105","v":0},{"$f":"$D$4*$I$5*'Park Allocations'!N105","v":0},{"$f":"$D$4*$I$5*'Park Allocations'!O105","v":0},{"$f":"$D$4*$I$5*'Park Allocations'!P105","v":0},{"$f":"$D$4*$I$5*'Park Allocations'!Q105","v":0},{"$f":"$D$4*$I$5*'Park Allocations'!R105","v":0},{"$f":"$D$4*$I$5*'Park Allocations'!S105","v":0},{"$f":"$D$4*$I$5*'Park Allocations'!T105","v":0},{"$f":"$D$4*$I$5*'Park Allocations'!U105","v":0},{"$f":"$D$4*$I$5*'Park Allocations'!V105","v":0},{"$f":"$D$4*$I$5*'Park Allocations'!W105","v":0},{"$f":"$D$4*$I$5*'Park Allocations'!X105","v":0},{"$f":"$D$4*$I$5*'Park Allocations'!Y105","v":0},{"$f":"$D$4*$I$5*'Park Allocations'!Z105","v":0},{"$f":"$D$4*$I$5*'Park Allocations'!AA105","v":0},{"$f":"$D$4*$I$5*'Park Allocations'!AB105","v":0},{"$f":"$D$4*$I$5*'Park Allocations'!AC105","v":0},{"$f":"$D$4*$I$5*'Park Allocations'!AD105","v":0},{"$f":"$D$4*$I$5*'Park Allocations'!AE105","v":0},{"$f":"$D$4*$I$5*'Park Allocations'!AF105","v":0},{"$f":"$D$4*$I$5*'Park Allocations'!AG105","v":0},{"$f":"$D$4*$I$5*'Park Allocations'!AH105","v":0},{"$f":"$D$4*$I$5*'Park Allocations'!AI105","v":0},{"$f":"$D$4*$I$5*'Park Allocations'!AJ105","v":0},{"$f":"$D$4*$I$5*'Park Allocations'!AK105","v":0},{"$f":"$D$4*$I$5*'Park Allocations'!AL105","v":0}]
[null,"495 - Department of Agriculture","495","Department of Agriculture",9698.4180106408367,6772.270666464864,251,4.4495865088468225E-3,1.922567243216802E-3,1.1969701071353532E-2,{"$f":"$D$4*$I$5*'Park Allocations'!E106","v":0},{"$f":"$D$4*$I$5*'Park Allocations'!F106","v":0},{"$f":"$D$4*$I$5*'Park Allocations'!G106","v":0},{"$f":"$D$4*$I$5*'Park Allocations'!H106","v":0},{"$f":"$D$4*$I$5*'Park Allocations'!I106","v":0},{"$f":"$D$4*$I$5*'Park Allocations'!J106","v":0},{"$f":"$D$4*$I$5*'Park Allocations'!K106","v":0},{"$f":"$D$4*$I$5*'Park Allocations'!L106","v":2926.1473441759726},{"$f":"$D$4*$I$5*'Park Allocations'!M106","v":0},{"$f":"$D$4*$I$5*'Park Allocations'!N106","v":0},{"$f":"$D$4*$I$5*'Park Allocations'!O106","v":0},{"$f":"$D$4*$I$5*'Park Allocations'!P106","v":0},{"$f":"$D$4*$I$5*'Park Allocations'!Q106","v":0},{"$f":"$D$4*$I$5*'Park Allocations'!R106","v":0},{"$f":"$D$4*$I$5*'Park Allocations'!S106","v":0},{"$f":"$D$4*$I$5*'Park Allocations'!T106","v":0},{"$f":"$D$4*$I$5*'Park Allocations'!U106","v":0},{"$f":"$D$4*$I$5*'Park Allocations'!V106","v":0},{"$f":"$D$4*$I$5*'Park Allocations'!W106","v":0},{"$f":"$D$4*$I$5*'Park Allocations'!X106","v":0},{"$f":"$D$4*$I$5*'Park Allocations'!Y106","v":0},{"$f":"$D$4*$I$5*'Park Allocations'!Z106","v":0},{"$f":"$D$4*$I$5*'Park Allocations'!AA106","v":0},{"$f":"$D$4*$I$5*'Park Allocations'!AB106","v":0},{"$f":"$D$4*$I$5*'Park Allocations'!AC106","v":0},{"$f":"$D$4*$I$5*'Park Allocations'!AD106","v":0},{"$f":"$D$4*$I$5*'Park Allocations'!AE106","v":0},{"$f":"$D$4*$I$5*'Park Allocations'!AF106","v":0},{"$f":"$D$4*$I$5*'Park Allocations'!AG106","v":0},{"$f":"$D$4*$I$5*'Park Allocations'!AH106","v":0},{"$f":"$D$4*$I$5*'Park Allocations'!AI106","v":0},{"$f":"$D$4*$I$5*'Park Allocations'!AJ106","v":0},{"$f":"$D$4*$I$5*'Park Allocations'!AK106","v":0},{"$f":"$D$4*$I$5*'Park Allocations'!AL106","v":0}]
[null,"540 - Employment Security Department","540","Employment Security Department",49280.957945046641,43628.532540532608,1617,2.8665264481296065E-2,3.7138143262247267E-3,2.8195293688943232E-2,{"$f":"$D$4*$I$5*'Park Allocations'!E107","v":0},{"$f":"$D$4*$I$5*'Park Allocations'!F107","v":0},{"$f":"$D$4*$I$5*'Park Allocations'!G107","v":0},{"$f":"$D$4*$I$5*'Park Allocations'!H107","v":0},{"$f":"$D$4*$I$5*'Park Allocations'!I107","v":0},{"$f":"$D$4*$I$5*'Park Allocations'!J107","v":0},{"$f":"$D$4*$I$5*'Park Allocations'!K107","v":0},{"$f":"$D$4*$I$5*'Park Allocations'!L107","v":0},{"$f":"$D$4*$I$5*'Park Allocations'!M107","v":5652.4254045140342},{"$f":"$D$4*$I$5*'Park Allocations'!N107","v":0},{"$f":"$D$4*$I$5*'Park Allocations'!O107","v":0},{"$f":"$D$4*$I$5*'Park Allocations'!P107","v":0},{"$f":"$D$4*$I$5*'Park Allocations'!Q107","v":0},{"$f":"$D$4*$I$5*'Park Allocations'!R107","v":0},{"$f":"$D$4*$I$5*'Park Allocations'!S107","v":0},{"$f":"$D$4*$I$5*'Park Allocations'!T107","v":0},{"$f":"$D$4*$I$5*'Park Allocations'!U107","v":0},{"$f":"$D$4*$I$5*'Park Allocations'!V107","v":0},{"$f":"$D$4*$I$5*'Park Allocations'!W107","v":0},{"$f":"$D$4*$I$5*'Park Allocations'!X107","v":0},{"$f":"$D$4*$I$5*'Park Allocations'!Y107","v":0},{"$f":"$D$4*$I$5*'Park Allocations'!Z107","v":0},{"$f":"$D$4*$I$5*'Park Allocations'!AA107","v":0},{"$f":"$D$4*$I$5*'Park Allocations'!AB107","v":0},{"$f":"$D$4*$I$5*'Park Allocations'!AC107","v":0},{"$f":"$D$4*$I$5*'Park Allocations'!AD107","v":0},{"$f":"$D$4*$I$5*'Park Allocations'!AE107","v":0},{"$f":"$D$4*$I$5*'Park Allocations'!AF107","v":0},{"$f":"$D$4*$I$5*'Park Allocations'!AG107","v":0},{"$f":"$D$4*$I$5*'Park Allocations'!AH107","v":0},{"$f":"$D$4*$I$5*'Park Allocations'!AI107","v":0},{"$f":"$D$4*$I$5*'Park Allocations'!AJ107","v":0},{"$f":"$D$4*$I$5*'Park Allocations'!AK107","v":0},{"$f":"$D$4*$I$5*'Park Allocations'!AL107","v":0}]
[null,"699 - Community Colleges","699","Community Colleges",14623.787654278711,14623.787654278711,542,9.6082704693027012E-3,0,0,{"$f":"$D$4*$I$5*'Park Allocations'!E108","v":0},{"$f":"$D$4*$I$5*'Park Allocations'!F108","v":0},{"$f":"$D$4*$I$5*'Park Allocations'!G108","v":0},{"$f":"$D$4*$I$5*'Park Allocations'!H108","v":0},{"$f":"$D$4*$I$5*'Park Allocations'!I108","v":0},{"$f":"$D$4*$I$5*'Park Allocations'!J108","v":0},{"$f":"$D$4*$I$5*'Park Allocations'!K108","v":0},{"$f":"$D$4*$I$5*'Park Allocations'!L108","v":0},{"$f":"$D$4*$I$5*'Park Allocations'!M108","v":0},{"$f":"$D$4*$I$5*'Park Allocations'!N108","v":0},{"$f":"$D$4*$I$5*'Park Allocations'!O108","v":0},{"$f":"$D$4*$I$5*'Park Allocations'!P108","v":0},{"$f":"$D$4*$I$5*'Park Allocations'!Q108","v":0},{"$f":"$D$4*$I$5*'Park Allocations'!R108","v":0},{"$f":"$D$4*$I$5*'Park Allocations'!S108","v":0},{"$f":"$D$4*$I$5*'Park Allocations'!T108","v":0},{"$f":"$D$4*$I$5*'Park Allocations'!U108","v":0},{"$f":"$D$4*$I$5*'Park Allocations'!V108","v":0},{"$f":"$D$4*$I$5*'Park Allocations'!W108","v":0},{"$f":"$D$4*$I$5*'Park Allocations'!X108","v":0},{"$f":"$D$4*$I$5*'Park Allocations'!Y108","v":0},{"$f":"$D$4*$I$5*'Park Allocations'!Z108","v":0},{"$f":"$D$4*$I$5*'Park Allocations'!AA108","v":0},{"$f":"$D$4*$I$5*'Park Allocations'!AB108","v":0},{"$f":"$D$4*$I$5*'Park Allocations'!AC108","v":0},{"$f":"$D$4*$I$5*'Park Allocations'!AD108","v":0},{"$f":"$D$4*$I$5*'Park Allocations'!AE108","v":0},{"$f":"$D$4*$I$5*'Park Allocations'!AF108","v":0},{"$f":"$D$4*$I$5*'Park Allocations'!AG108","v":0},{"$f":"$D$4*$I$5*'Park Allocations'!AH108","v":0},{"$f":"$D$4*$I$5*'Park Allocations'!AI108","v":0},{"$f":"$D$4*$I$5*'Park Allocations'!AJ108","v":0},{"$f":"$D$4*$I$5*'Park Allocations'!AK108","v":0},{"$f":"$D$4*$I$5*'Park Allocations'!AL108","v":0}]
[null,"TOTAL  - All Agencies",null,"Building Total",{"$f":"SUM(E7:E110)","v":793921.89278567722},{"$f":"SUM(F7:F110)","v":692714.2513578441},25674,0.45513419931527233,6.6496479256132238E-2,0.47836932142859545,{"$f":"SUM(K7:K110)","v":4716.3658394740723},{"$f":"SUM(L7:L110)","v":4796.4966393761106},8681.5893444513458,1457.9777682099816,10842.862876614941,15286.552087024043,2923.27899109494,21646.667328296673,5652.4254045140342,11255.356461183017,3363.1745019052178,5968.615560106161,3271.6923472569651,1344.586278325756,0,0,0,0,0,0,0,0,0,0,0,0,0,0,0,0,0,0,0,0]
[]
[null,null,null,null,null,null,null,null,"Building Total RSF",null,77281,78594,142254,23890,177668,250481,47900,354696,92619,184427,55108,97800,53609,22032,95386,47200,14308,10125,0,41341,17000,0,1539,7138,885,2492,872,200592,60581,99000,20708,138355,17600,0]
[null,null,null,null,null,null,null,null,"vacant space",0,0,0,0,0,0,0,0,0,0,0,0,0,0,0,0,0,0,0,0,0,0,0,0,14276,406,872,0,0,0,0,35004,0,0]
[null,null,null,null,null,null,null,null,null,null,{"$f":"K111/K113/2","v":3.0514394479070357E-2},{"$f":"L111/L113/2","v":3.0514394479070353E-2},3.0514394479070346E-2,3.0514394479070357E-2,3.051439447907035E-2,3.0514394479070357E-2,3.0514394479070357E-2,3.051439447907035E-2,3.0514394479070353E-2,3.0514394479070357E-2,3.051439447907035E-2,3.0514394479070353E-2,3.0514394479070353E-2,3.0514394479070353E-2,0,0,0,0,{"$error":"#DIV/0!"},0,0,{"$error":"#DIV/0!"},0,0,0,0,0,0,0,0,0,0,0]

{"sheet":"CC park dollars FY23","index":16,"n_rows":115,"n_cols":44,"rows_kept":115,"cut":false,"hidden":true,"merged":[[3,5,3,7],[4,4,5,4],[4,6,4,7]]}
[]
[]
[null,null,null,null,null,null,null,null,"CC By Building:",3295036.3899590364,3.6363967548430423E-2,3.2046375280960625E-2,8.5304128642872998E-2,1.4408637096514859E-2,9.8770366058120895E-2,0.16702302326358134,2.2384156106772846E-2,0.18510358778290584,5.894043038700976E-2,9.5756498465786266E-2,2.7365590558327428E-2,4.8185997937795683E-2,3.1955937672198675E-2,1.3887625606650295E-2,0,5.0099382732906065E-3,7.9443801169379862E-3,0,0,1.8191920041967968E-2,9.7165173208690683E-3,0,3.0974663905166782E-4,0,0,0,0,0,0,1.0019876546581213E-2,5.0099382732906065E-3,2.6301360380082614E-2,0,0]
[null,null,"CSM Amount",1543002,"Total","PHF Percentage",null,null,"Parking Percentage","Building Percentage",119820.59635536773,105593.97271704901,281080.20809201349,47476.983562730173,325451.95041108323,550346.93961447524,73756.608930340313,609923.0576566516,194210.86296504454,315521.14701982238,90170.616722408304,158774.61669152786,105295.9775051575,45760.231744039658,0,16507.928921941089,26177.021580977689,0,0,59943.038541509573,32016.278155930864,0,1020.6264473427523,0,0,0,0,0,0,33015.857843882179,16507.928921941089,86663.939557799051,0,0]
[null,null,null,null,"Total",null,0.45513419931527221,null,6.6496479256132238E-2,0.47836932142859556,"F6121","F6122","F6123","F6124","F6125","F6126","F6127","F6129","F612A","F612C","F612E","F612H","F612J","F612K","F6131","F6132","F6133","F6134","F6137","F613D","F613E","F613F","F613G","F613H","F613i","F613K","F613L","F613M","F6141","F6142","F6143","F6144","F614G","F6146"]
[null,null,"Agency #","Agency",null,"PHF Thurston FTEs","Thurston FTEs","allocation","allocation","allocation","Cherberg","O'Brien","Legislative","Pritchard","HLB","OB2","Archives","NRB","Emp Sec","Transportation","Insurance","Old Cap","TOJ","Newhouse","Modular Bldg","Isabella Bush","1007 Washington","120 E Union Avenue","Conservatory","Capital Court","James Dolliver Building","Undeveloped Properties","1068 WA Street SE (ST Farm)","232 Perry Street","208 11th Avenue SE (Pro Arts)","Press Houses Ayer(White); Carlyon(Blue)","Visitor Center","Helen Sommers","Kelso Building","Yakima Building","Alaska Street","Tacoma Rhodes","Tacoma Rhodes Garage","North Cascades Gateway Center (NCGC)"]
[null,{"$f":"CONCATENATE(C7,\" - \",D7)","v":"011 - House of Representatives"},"011","House of Representatives",{"$f":"F7+SUM(K7:AR7)","v":16938.509716610701},{"$f":"H7*$D$4","v":9272.8262115845519},339,6.0096009023867447E-3,4.9680321250563193E-3,2.8325875018780835E-2,{"$f":"$D$4*$I$5*'Park Allocations'!E5","v":0},{"$f":"$D$4*$I$5*'Park Allocations'!F5","v":4862.6832506902874},{"$f":"$D$4*$I$5*'Park Allocations'!G5","v":2803.0002543358628},{"$f":"$D$4*$I$5*'Park Allocations'!H5","v":0},{"$f":"$D$4*$I$5*'Park Allocations'!I5","v":0},{"$f":"$D$4*$I$5*'Park Allocations'!J5","v":0},{"$f":"$D$4*$I$5*'Park Allocations'!K5","v":0},{"$f":"$D$4*$I$5*'Park Allocations'!L5","v":0},{"$f":"$D$4*$I$5*'Park Allocations'!M5","v":0},{"$f":"$D$4*$I$5*'Park Allocations'!N5","v":0},{"$f":"$D$4*$I$5*'Park Allocations'!O5","v":0},{"$f":"$D$4*$I$5*'Park Allocations'!P5","v":0},{"$f":"$D$4*$I$5*'Park Allocations'!Q5","v":0},{"$f":"$D$4*$I$5*'Park Allocations'!R5","v":0},{"$f":"$D$4*$I$5*'Park Allocations'!S5","v":0},{"$f":"$D$4*$I$5*'Park Allocations'!T5","v":0},{"$f":"$D$4*$I$5*'Park Allocations'!U5","v":0},{"$f":"$D$4*$I$5*'Park Allocations'!V5","v":0},{"$f":"$D$4*$I$5*'Park Allocations'!W5","v":0},{"$f":"$D$4*$I$5*'Park Allocations'!X5","v":0},{"$f":"$D$4*$I$5*'Park Allocations'!Y5","v":0},{"$f":"$D$4*$I$5*'Park Allocations'!Z5","v":0},{"$f":"$D$4*$I$5*'Park Allocations'!AA5","v":0},{"$f":"$D$4*$I$5*'Park Allocations'!AB5","v":0},{"$f":"$D$4*$I$5*'Park Allocations'!AC5","v":0},{"$f":"$D$4*$I$5*'Park Allocations'!AD5","v":0},{"$f":"$D$4*$I$5*'Park Allocations'!AE5","v":0},{"$f":"$D$4*$I$5*'Park Allocations'!AF5","v":0},{"$f":"$D$4*$I$5*'Park Allocations'!AG5","v":0},{"$f":"$D$4*$I$5*'Park Allocations'!AH5","v":0},{"$f":"$D$4*$I$5*'Park Allocations'!AI5","v":0},{"$f":"$D$4*$I$5*'Park Allocations'!AJ5","v":0},{"$f":"$D$4*$I$5*'Park Allocations'!AK5","v":0},{"$f":"$D$4*$I$5*'Park Allocations'!AL5","v":0}]
[null,{"$f":"CONCATENATE(C8,\" - \",D8)","v":"012 - Senate"},"012","Senate",{"$f":"F8+SUM(K8:AR8)","v":14401.348181355479},{"$f":"H8*$D$4","v":6072.4702624535994},222,3.9354908564302573E-3,5.3978400020880599E-3,3.4166100072064297E-2,{"$f":"$D$4*$I$5*'Park Allocations'!E6","v":4781.4467299869721},{"$f":"$D$4*$I$5*'Park Allocations'!F6","v":0},{"$f":"$D$4*$I$5*'Park Allocations'!G6","v":2184.2910334423736},{"$f":"$D$4*$I$5*'Park Allocations'!H6","v":0},{"$f":"$D$4*$I$5*'Park Allocations'!I6","v":0},{"$f":"$D$4*$I$5*'Park Allocations'!J6","v":0},{"$f":"$D$4*$I$5*'Park Allocations'!K6","v":0},{"$f":"$D$4*$I$5*'Park Allocations'!L6","v":0},{"$f":"$D$4*$I$5*'Park Allocations'!M6","v":0},{"$f":"$D$4*$I$5*'Park Allocations'!N6","v":0},{"$f":"$D$4*$I$5*'Park Allocations'!O6","v":0},{"$f":"$D$4*$I$5*'Park Allocations'!P6","v":0},{"$f":"$D$4*$I$5*'Park Allocations'!Q6","v":0},{"$f":"$D$4*$I$5*'Park Allocations'!R6","v":1363.1401554725351},{"$f":"$D$4*$I$5*'Park Allocations'!S6","v":0},{"$f":"$D$4*$I$5*'Park Allocations'!T6","v":0},{"$f":"$D$4*$I$5*'Park Allocations'!U6","v":0},{"$f":"$D$4*$I$5*'Park Allocations'!V6","v":0},{"$f":"$D$4*$I$5*'Park Allocations'!W6","v":0},{"$f":"$D$4*$I$5*'Park Allocations'!X6","v":0},{"$f":"$D$4*$I$5*'Park Allocations'!Y6","v":0},{"$f":"$D$4*$I$5*'Park Allocations'!Z6","v":0},{"$f":"$D$4*$I$5*'Park Allocations'!AA6","v":0},{"$f":"$D$4*$I$5*'Park Allocations'!AB6","v":0},{"$f":"$D$4*$I$5*'Park Allocations'!AC6","v":0},{"$f":"$D$4*$I$5*'Park Allocations'!AD6","v":0},{"$f":"$D$4*$I$5*'Park Allocations'!AE6","v":0},{"$f":"$D$4*$I$5*'Park Allocations'!AF6","v":0},{"$f":"$D$4*$I$5*'Park Allocations'!AG6","v":0},{"$f":"$D$4*$I$5*'Park Allocations'!AH6","v":0},{"$f":"$D$4*$I$5*'Park Allocations'!AI6","v":0},{"$f":"$D$4*$I$5*'Park Allocations'!AJ6","v":0},{"$f":"$D$4*$I$5*'Park Allocations'!AK6","v":0},{"$f":"$D$4*$I$5*'Park Allocations'!AL6","v":0}]
[null,"013 - Joint Transportation Committee","013","Joint Transportation Committee",109.41387860276757,109.41387860276757,4,7.0909745160905536E-5,0,0,{"$f":"$D$4*$I$5*'Park Allocations'!E7","v":0},{"$f":"$D$4*$I$5*'Park Allocations'!F7","v":0},{"$f":"$D$4*$I$5*'Park Allocations'!G7","v":0},{"$f":"$D$4*$I$5*'Park Allocations'!H7","v":0},{"$f":"$D$4*$I$5*'Park Allocations'!I7","v":0},{"$f":"$D$4*$I$5*'Park Allocations'!J7","v":0},{"$f":"$D$4*$I$5*'Park Allocations'!K7","v":0},{"$f":"$D$4*$I$5*'Park Allocations'!L7","v":0},{"$f":"$D$4*$I$5*'Park Allocations'!M7","v":0},{"$f":"$D$4*$I$5*'Park Allocations'!N7","v":0},{"$f":"$D$4*$I$5*'Park Allocations'!O7","v":0},{"$f":"$D$4*$I$5*'Park Allocations'!P7","v":0},{"$f":"$D$4*$I$5*'Park Allocations'!Q7","v":0},{"$f":"$D$4*$I$5*'Park Allocations'!R7","v":0},{"$f":"$D$4*$I$5*'Park Allocations'!S7","v":0},{"$f":"$D$4*$I$5*'Park Allocations'!T7","v":0},{"$f":"$D$4*$I$5*'Park Allocations'!U7","v":0},{"$f":"$D$4*$I$5*'Park Allocations'!V7","v":0},{"$f":"$D$4*$I$5*'Park Allocations'!W7","v":0},{"$f":"$D$4*$I$5*'Park Allocations'!X7","v":0},{"$f":"$D$4*$I$5*'Park Allocations'!Y7","v":0},{"$f":"$D$4*$I$5*'Park Allocations'!Z7","v":0},{"$f":"$D$4*$I$5*'Park Allocations'!AA7","v":0},{"$f":"$D$4*$I$5*'Park Allocations'!AB7","v":0},{"$f":"$D$4*$I$5*'Park Allocations'!AC7","v":0},{"$f":"$D$4*$I$5*'Park Allocations'!AD7","v":0},{"$f":"$D$4*$I$5*'Park Allocations'!AE7","v":0},{"$f":"$D$4*$I$5*'Park Allocations'!AF7","v":0},{"$f":"$D$4*$I$5*'Park Allocations'!AG7","v":0},{"$f":"$D$4*$I$5*'Park Allocations'!AH7","v":0},{"$f":"$D$4*$I$5*'Park Allocations'!AI7","v":0},{"$f":"$D$4*$I$5*'Park Allocations'!AJ7","v":0},{"$f":"$D$4*$I$5*'Park Allocations'!AK7","v":0},{"$f":"$D$4*$I$5*'Park Allocations'!AL7","v":0}]
[null,"014 - Joint Legislative Audit and Review Committee","014","Joint Legislative Audit and Review Committee",656.48327161660541,656.48327161660541,24,4.2545847096543324E-4,0,0,{"$f":"$D$4*$I$5*'Park Allocations'!E8","v":0},{"$f":"$D$4*$I$5*'Park Allocations'!F8","v":0},{"$f":"$D$4*$I$5*'Park Allocations'!G8","v":0},{"$f":"$D$4*$I$5*'Park Allocations'!H8","v":0},{"$f":"$D$4*$I$5*'Park Allocations'!I8","v":0},{"$f":"$D$4*$I$5*'Park Allocations'!J8","v":0},{"$f":"$D$4*$I$5*'Park Allocations'!K8","v":0},{"$f":"$D$4*$I$5*'Park Allocations'!L8","v":0},{"$f":"$D$4*$I$5*'Park Allocations'!M8","v":0},{"$f":"$D$4*$I$5*'Park Allocations'!N8","v":0},{"$f":"$D$4*$I$5*'Park Allocations'!O8","v":0},{"$f":"$D$4*$I$5*'Park Allocations'!P8","v":0},{"$f":"$D$4*$I$5*'Park Allocations'!Q8","v":0},{"$f":"$D$4*$I$5*'Park Allocations'!R8","v":0},{"$f":"$D$4*$I$5*'Park Allocations'!S8","v":0},{"$f":"$D$4*$I$5*'Park Allocations'!T8","v":0},{"$f":"$D$4*$I$5*'Park Allocations'!U8","v":0},{"$f":"$D$4*$I$5*'Park Allocations'!V8","v":0},{"$f":"$D$4*$I$5*'Park Allocations'!W8","v":0},{"$f":"$D$4*$I$5*'Park Allocations'!X8","v":0},{"$f":"$D$4*$I$5*'Park Allocations'!Y8","v":0},{"$f":"$D$4*$I$5*'Park Allocations'!Z8","v":0},{"$f":"$D$4*$I$5*'Park Allocations'!AA8","v":0},{"$f":"$D$4*$I$5*'Park Allocations'!AB8","v":0},{"$f":"$D$4*$I$5*'Park Allocations'!AC8","v":0},{"$f":"$D$4*$I$5*'Park Allocations'!AD8","v":0},{"$f":"$D$4*$I$5*'Park Allocations'!AE8","v":0},{"$f":"$D$4*$I$5*'Park Allocations'!AF8","v":0},{"$f":"$D$4*$I$5*'Park Allocations'!AG8","v":0},{"$f":"$D$4*$I$5*'Park Allocations'!AH8","v":0},{"$f":"$D$4*$I$5*'Park Allocations'!AI8","v":0},{"$f":"$D$4*$I$5*'Park Allocations'!AJ8","v":0},{"$f":"$D$4*$I$5*'Park Allocations'!AK8","v":0},{"$f":"$D$4*$I$5*'Park Allocations'!AL8","v":0}]
[null,"020 - Legislative Evaluation and Accountability Program Committee","020","Legislative Evaluation and Accountability Program Committee",273.53469650691898,273.53469650691898,10,1.7727436290226387E-4,0,0,{"$f":"$D$4*$I$5*'Park Allocations'!E9","v":0},{"$f":"$D$4*$I$5*'Park Allocations'!F9","v":0},{"$f":"$D$4*$I$5*'Park Allocations'!G9","v":0},{"$f":"$D$4*$I$5*'Park Allocations'!H9","v":0},{"$f":"$D$4*$I$5*'Park Allocations'!I9","v":0},{"$f":"$D$4*$I$5*'Park Allocations'!J9","v":0},{"$f":"$D$4*$I$5*'Park Allocations'!K9","v":0},{"$f":"$D$4*$I$5*'Park Allocations'!L9","v":0},{"$f":"$D$4*$I$5*'Park Allocations'!M9","v":0},{"$f":"$D$4*$I$5*'Park Allocations'!N9","v":0},{"$f":"$D$4*$I$5*'Park Allocations'!O9","v":0},{"$f":"$D$4*$I$5*'Park Allocations'!P9","v":0},{"$f":"$D$4*$I$5*'Park Allocations'!Q9","v":0},{"$f":"$D$4*$I$5*'Park Allocations'!R9","v":0},{"$f":"$D$4*$I$5*'Park Allocations'!S9","v":0},{"$f":"$D$4*$I$5*'Park Allocations'!T9","v":0},{"$f":"$D$4*$I$5*'Park Allocations'!U9","v":0},{"$f":"$D$4*$I$5*'Park Allocations'!V9","v":0},{"$f":"$D$4*$I$5*'Park Allocations'!W9","v":0},{"$f":"$D$4*$I$5*'Park Allocations'!X9","v":0},{"$f":"$D$4*$I$5*'Park Allocations'!Y9","v":0},{"$f":"$D$4*$I$5*'Park Allocations'!Z9","v":0},{"$f":"$D$4*$I$5*'Park Allocations'!AA9","v":0},{"$f":"$D$4*$I$5*'Park Allocations'!AB9","v":0},{"$f":"$D$4*$I$5*'Park Allocations'!AC9","v":0},{"$f":"$D$4*$I$5*'Park Allocations'!AD9","v":0},{"$f":"$D$4*$I$5*'Park Allocations'!AE9","v":0},{"$f":"$D$4*$I$5*'Park Allocations'!AF9","v":0},{"$f":"$D$4*$I$5*'Park Allocations'!AG9","v":0},{"$f":"$D$4*$I$5*'Park Allocations'!AH9","v":0},{"$f":"$D$4*$I$5*'Park Allocations'!AI9","v":0},{"$f":"$D$4*$I$5*'Park Allocations'!AJ9","v":0},{"$f":"$D$4*$I$5*'Park Allocations'!AK9","v":0},{"$f":"$D$4*$I$5*'Park Allocations'!AL9","v":0}]
[null,"035 - Office of the State Actuary","035","Office of the State Actuary",465.00898406176213,465.00898406176213,17,3.0136641693384852E-4,0,0,{"$f":"$D$4*$I$5*'Park Allocations'!E10","v":0},{"$f":"$D$4*$I$5*'Park Allocations'!F10","v":0},{"$f":"$D$4*$I$5*'Park Allocations'!G10","v":0},{"$f":"$D$4*$I$5*'Park Allocations'!H10","v":0},{"$f":"$D$4*$I$5*'Park Allocations'!I10","v":0},{"$f":"$D$4*$I$5*'Park Allocations'!J10","v":0},{"$f":"$D$4*$I$5*'Park Allocations'!K10","v":0},{"$f":"$D$4*$I$5*'Park Allocations'!L10","v":0},{"$f":"$D$4*$I$5*'Park Allocations'!M10","v":0},{"$f":"$D$4*$I$5*'Park Allocations'!N10","v":0},{"$f":"$D$4*$I$5*'Park Allocations'!O10","v":0},{"$f":"$D$4*$I$5*'Park Allocations'!P10","v":0},{"$f":"$D$4*$I$5*'Park Allocations'!Q10","v":0},{"$f":"$D$4*$I$5*'Park Allocations'!R10","v":0},{"$f":"$D$4*$I$5*'Park Allocations'!S10","v":0},{"$f":"$D$4*$I$5*'Park Allocations'!T10","v":0},{"$f":"$D$4*$I$5*'Park Allocations'!U10","v":0},{"$f":"$D$4*$I$5*'Park Allocations'!V10","v":0},{"$f":"$D$4*$I$5*'Park Allocations'!W10","v":0},{"$f":"$D$4*$I$5*'Park Allocations'!X10","v":0},{"$f":"$D$4*$I$5*'Park Allocations'!Y10","v":0},{"$f":"$D$4*$I$5*'Park Allocations'!Z10","v":0},{"$f":"$D$4*$I$5*'Park Allocations'!AA10","v":0},{"$f":"$D$4*$I$5*'Park Allocations'!AB10","v":0},{"$f":"$D$4*$I$5*'Park Allocations'!AC10","v":0},{"$f":"$D$4*$I$5*'Park Allocations'!AD10","v":0},{"$f":"$D$4*$I$5*'Park Allocations'!AE10","v":0},{"$f":"$D$4*$I$5*'Park Allocations'!AF10","v":0},{"$f":"$D$4*$I$5*'Park Allocations'!AG10","v":0},{"$f":"$D$4*$I$5*'Park Allocations'!AH10","v":0},{"$f":"$D$4*$I$5*'Park Allocations'!AI10","v":0},{"$f":"$D$4*$I$5*'Park Allocations'!AJ10","v":0},{"$f":"$D$4*$I$5*'Park Allocations'!AK10","v":0},{"$f":"$D$4*$I$5*'Park Allocations'!AL10","v":0}]
[null,"037 - Office of Legislative Support Services","037","Office of Legislative Support Services",1367.7286535568692,820.60408952075682,30,5.3182308870679154E-4,3.5458448144338913E-4,6.3434462773292698E-3,{"$f":"$D$4*$I$5*'Park Allocations'!E11","v":0},{"$f":"$D$4*$I$5*'Park Allocations'!F11","v":0},{"$f":"$D$4*$I$5*'Park Allocations'!G11","v":308.0553210828682},{"$f":"$D$4*$I$5*'Park Allocations'!H11","v":239.06924295324418},{"$f":"$D$4*$I$5*'Park Allocations'!I11","v":0},{"$f":"$D$4*$I$5*'Park Allocations'!J11","v":0},{"$f":"$D$4*$I$5*'Park Allocations'!K11","v":0},{"$f":"$D$4*$I$5*'Park Allocations'!L11","v":0},{"$f":"$D$4*$I$5*'Park Allocations'!M11","v":0},{"$f":"$D$4*$I$5*'Park Allocations'!N11","v":0},{"$f":"$D$4*$I$5*'Park Allocations'!O11","v":0},{"$f":"$D$4*$I$5*'Park Allocations'!P11","v":0},{"$f":"$D$4*$I$5*'Park Allocations'!Q11","v":0},{"$f":"$D$4*$I$5*'Park Allocations'!R11","v":0},{"$f":"$D$4*$I$5*'Park Allocations'!S11","v":0},{"$f":"$D$4*$I$5*'Park Allocations'!T11","v":0},{"$f":"$D$4*$I$5*'Park Allocations'!U11","v":0},{"$f":"$D$4*$I$5*'Park Allocations'!V11","v":0},{"$f":"$D$4*$I$5*'Park Allocations'!W11","v":0},{"$f":"$D$4*$I$5*'Park Allocations'!X11","v":0},{"$f":"$D$4*$I$5*'Park Allocations'!Y11","v":0},{"$f":"$D$4*$I$5*'Park Allocations'!Z11","v":0},{"$f":"$D$4*$I$5*'Park Allocations'!AA11","v":0},{"$f":"$D$4*$I$5*'Park Allocations'!AB11","v":0},{"$f":"$D$4*$I$5*'Park Allocations'!AC11","v":0},{"$f":"$D$4*$I$5*'Park Allocations'!AD11","v":0},{"$f":"$D$4*$I$5*'Park Allocations'!AE11","v":0},{"$f":"$D$4*$I$5*'Park Allocations'!AF11","v":0},{"$f":"$D$4*$I$5*'Park Allocations'!AG11","v":0},{"$f":"$D$4*$I$5*'Park Allocations'!AH11","v":0},{"$f":"$D$4*$I$5*'Park Allocations'!AI11","v":0},{"$f":"$D$4*$I$5*'Park Allocations'!AJ11","v":0},{"$f":"$D$4*$I$5*'Park Allocations'!AK11","v":0},{"$f":"$D$4*$I$5*'Park Allocations'!AL11","v":0}]
[null,"038 - Joint Legislative Systems Committee","038","Joint Legislative Systems Committee",2159.6799840630574,1613.8547093908217,59,1.0459187411233568E-3,3.5374242850769866E-4,2.5433953771718367E-3,{"$f":"$D$4*$I$5*'Park Allocations'!E12","v":0},{"$f":"$D$4*$I$5*'Park Allocations'!F12","v":0},{"$f":"$D$4*$I$5*'Park Allocations'!G12","v":70.718463948125802},{"$f":"$D$4*$I$5*'Park Allocations'!H12","v":475.10681072411018},{"$f":"$D$4*$I$5*'Park Allocations'!I12","v":0},{"$f":"$D$4*$I$5*'Park Allocations'!J12","v":0},{"$f":"$D$4*$I$5*'Park Allocations'!K12","v":0},{"$f":"$D$4*$I$5*'Park Allocations'!L12","v":0},{"$f":"$D$4*$I$5*'Park Allocations'!M12","v":0},{"$f":"$D$4*$I$5*'Park Allocations'!N12","v":0},{"$f":"$D$4*$I$5*'Park Allocations'!O12","v":0},{"$f":"$D$4*$I$5*'Park Allocations'!P12","v":0},{"$f":"$D$4*$I$5*'Park Allocations'!Q12","v":0},{"$f":"$D$4*$I$5*'Park Allocations'!R12","v":0},{"$f":"$D$4*$I$5*'Park Allocations'!S12","v":0},{"$f":"$D$4*$I$5*'Park Allocations'!T12","v":0},{"$f":"$D$4*$I$5*'Park Allocations'!U12","v":0},{"$f":"$D$4*$I$5*'Park Allocations'!V12","v":0},{"$f":"$D$4*$I$5*'Park Allocations'!W12","v":0},{"$f":"$D$4*$I$5*'Park Allocations'!X12","v":0},{"$f":"$D$4*$I$5*'Park Allocations'!Y12","v":0},{"$f":"$D$4*$I$5*'Park Allocations'!Z12","v":0},{"$f":"$D$4*$I$5*'Park Allocations'!AA12","v":0},{"$f":"$D$4*$I$5*'Park Allocations'!AB12","v":0},{"$f":"$D$4*$I$5*'Park Allocations'!AC12","v":0},{"$f":"$D$4*$I$5*'Park Allocations'!AD12","v":0},{"$f":"$D$4*$I$5*'Park Allocations'!AE12","v":0},{"$f":"$D$4*$I$5*'Park Allocations'!AF12","v":0},{"$f":"$D$4*$I$5*'Park Allocations'!AG12","v":0},{"$f":"$D$4*$I$5*'Park Allocations'!AH12","v":0},{"$f":"$D$4*$I$5*'Park Allocations'!AI12","v":0},{"$f":"$D$4*$I$5*'Park Allocations'!AJ12","v":0},{"$f":"$D$4*$I$5*'Park Allocations'!AK12","v":0},{"$f":"$D$4*$I$5*'Park Allocations'!AL12","v":0}]
[null,"040 - Statute Law Committee (Code Revisor)","040","Statute Law Committee (Code Revisor)",1775.9986521127908,1012.0783770756,37,6.5591514273837621E-4,4.9508702842717691E-4,3.5623084528964614E-3,{"$f":"$D$4*$I$5*'Park Allocations'!E13","v":0},{"$f":"$D$4*$I$5*'Park Allocations'!F13","v":0},{"$f":"$D$4*$I$5*'Park Allocations'!G13","v":0},{"$f":"$D$4*$I$5*'Park Allocations'!H13","v":763.92027503719089},{"$f":"$D$4*$I$5*'Park Allocations'!I13","v":0},{"$f":"$D$4*$I$5*'Park Allocations'!J13","v":0},{"$f":"$D$4*$I$5*'Park Allocations'!K13","v":0},{"$f":"$D$4*$I$5*'Park Allocations'!L13","v":0},{"$f":"$D$4*$I$5*'Park Allocations'!M13","v":0},{"$f":"$D$4*$I$5*'Park Allocations'!N13","v":0},{"$f":"$D$4*$I$5*'Park Allocations'!O13","v":0},{"$f":"$D$4*$I$5*'Park Allocations'!P13","v":0},{"$f":"$D$4*$I$5*'Park Allocations'!Q13","v":0},{"$f":"$D$4*$I$5*'Park Allocations'!R13","v":0},{"$f":"$D$4*$I$5*'Park Allocations'!S13","v":0},{"$f":"$D$4*$I$5*'Park Allocations'!T13","v":0},{"$f":"$D$4*$I$5*'Park Allocations'!U13","v":0},{"$f":"$D$4*$I$5*'Park Allocations'!V13","v":0},{"$f":"$D$4*$I$5*'Park Allocations'!W13","v":0},{"$f":"$D$4*$I$5*'Park Allocations'!X13","v":0},{"$f":"$D$4*$I$5*'Park Allocations'!Y13","v":0},{"$f":"$D$4*$I$5*'Park Allocations'!Z13","v":0},{"$f":"$D$4*$I$5*'Park Allocations'!AA13","v":0},{"$f":"$D$4*$I$5*'Park Allocations'!AB13","v":0},{"$f":"$D$4*$I$5*'Park Allocations'!AC13","v":0},{"$f":"$D$4*$I$5*'Park Allocations'!AD13","v":0},{"$f":"$D$4*$I$5*'Park Allocations'!AE13","v":0},{"$f":"$D$4*$I$5*'Park Allocations'!AF13","v":0},{"$f":"$D$4*$I$5*'Park Allocations'!AG13","v":0},{"$f":"$D$4*$I$5*'Park Allocations'!AH13","v":0},{"$f":"$D$4*$I$5*'Park Allocations'!AI13","v":0},{"$f":"$D$4*$I$5*'Park Allocations'!AJ13","v":0},{"$f":"$D$4*$I$5*'Park Allocations'!AK13","v":0},{"$f":"$D$4*$I$5*'Park Allocations'!AL13","v":0}]
[null,"045 - Supreme Court","045","Supreme Court",3768.4607444047069,1668.5616486922056,61,1.0813736137038096E-3,1.3609179351112323E-3,9.6780757533658536E-3,{"$f":"$D$4*$I$5*'Park Allocations'!E14","v":0},{"$f":"$D$4*$I$5*'Park Allocations'!F14","v":0},{"$f":"$D$4*$I$5*'Park Allocations'!G14","v":0},{"$f":"$D$4*$I$5*'Park Allocations'!H14","v":0},{"$f":"$D$4*$I$5*'Park Allocations'!I14","v":0},{"$f":"$D$4*$I$5*'Park Allocations'!J14","v":0},{"$f":"$D$4*$I$5*'Park Allocations'!K14","v":0},{"$f":"$D$4*$I$5*'Park Allocations'!L14","v":0},{"$f":"$D$4*$I$5*'Park Allocations'!M14","v":0},{"$f":"$D$4*$I$5*'Park Allocations'!N14","v":0},{"$f":"$D$4*$I$5*'Park Allocations'!O14","v":0},{"$f":"$D$4*$I$5*'Park Allocations'!P14","v":0},{"$f":"$D$4*$I$5*'Park Allocations'!Q14","v":2099.8990957125015},{"$f":"$D$4*$I$5*'Park Allocations'!R14","v":0},{"$f":"$D$4*$I$5*'Park Allocations'!S14","v":0},{"$f":"$D$4*$I$5*'Park Allocations'!T14","v":0},{"$f":"$D$4*$I$5*'Park Allocations'!U14","v":0},{"$f":"$D$4*$I$5*'Park Allocations'!V14","v":0},{"$f":"$D$4*$I$5*'Park Allocations'!W14","v":0},{"$f":"$D$4*$I$5*'Park Allocations'!X14","v":0},{"$f":"$D$4*$I$5*'Park Allocations'!Y14","v":0},{"$f":"$D$4*$I$5*'Park Allocations'!Z14","v":0},{"$f":"$D$4*$I$5*'Park Allocations'!AA14","v":0},{"$f":"$D$4*$I$5*'Park Allocations'!AB14","v":0},{"$f":"$D$4*$I$5*'Park Allocations'!AC14","v":0},{"$f":"$D$4*$I$5*'Park Allocations'!AD14","v":0},{"$f":"$D$4*$I$5*'Park Allocations'!AE14","v":0},{"$f":"$D$4*$I$5*'Park Allocations'!AF14","v":0},{"$f":"$D$4*$I$5*'Park Allocations'!AG14","v":0},{"$f":"$D$4*$I$5*'Park Allocations'!AH14","v":0},{"$f":"$D$4*$I$5*'Park Allocations'!AI14","v":0},{"$f":"$D$4*$I$5*'Park Allocations'!AJ14","v":0},{"$f":"$D$4*$I$5*'Park Allocations'!AK14","v":0},{"$f":"$D$4*$I$5*'Park Allocations'!AL14","v":0}]
[null,"046 - Law Library","046","Law Library",1172.7536339791166,218.82775720553514,8,1.4181949032181107E-4,6.1822724583220328E-4,4.3964812011017896E-3,{"$f":"$D$4*$I$5*'Park Allocations'!E15","v":0},{"$f":"$D$4*$I$5*'Park Allocations'!F15","v":0},{"$f":"$D$4*$I$5*'Park Allocations'!G15","v":0},{"$f":"$D$4*$I$5*'Park Allocations'!H15","v":0},{"$f":"$D$4*$I$5*'Park Allocations'!I15","v":0},{"$f":"$D$4*$I$5*'Park Allocations'!J15","v":0},{"$f":"$D$4*$I$5*'Park Allocations'!K15","v":0},{"$f":"$D$4*$I$5*'Park Allocations'!L15","v":0},{"$f":"$D$4*$I$5*'Park Allocations'!M15","v":0},{"$f":"$D$4*$I$5*'Park Allocations'!N15","v":0},{"$f":"$D$4*$I$5*'Park Allocations'!O15","v":0},{"$f":"$D$4*$I$5*'Park Allocations'!P15","v":0},{"$f":"$D$4*$I$5*'Park Allocations'!Q15","v":953.92587677358142},{"$f":"$D$4*$I$5*'Park Allocations'!R15","v":0},{"$f":"$D$4*$I$5*'Park Allocations'!S15","v":0},{"$f":"$D$4*$I$5*'Park Allocations'!T15","v":0},{"$f":"$D$4*$I$5*'Park Allocations'!U15","v":0},{"$f":"$D$4*$I$5*'Park Allocations'!V15","v":0},{"$f":"$D$4*$I$5*'Park Allocations'!W15","v":0},{"$f":"$D$4*$I$5*'Park Allocations'!X15","v":0},{"$f":"$D$4*$I$5*'Park Allocations'!Y15","v":0},{"$f":"$D$4*$I$5*'Park Allocations'!Z15","v":0},{"$f":"$D$4*$I$5*'Park Allocations'!AA15","v":0},{"$f":"$D$4*$I$5*'Park Allocations'!AB15","v":0},{"$f":"$D$4*$I$5*'Park Allocations'!AC15","v":0},{"$f":"$D$4*$I$5*'Park Allocations'!AD15","v":0},{"$f":"$D$4*$I$5*'Park Allocations'!AE15","v":0},{"$f":"$D$4*$I$5*'Park Allocations'!AF15","v":0},{"$f":"$D$4*$I$5*'Park Allocations'!AG15","v":0},{"$f":"$D$4*$I$5*'Park Allocations'!AH15","v":0},{"$f":"$D$4*$I$5*'Park Allocations'!AI15","v":0},{"$f":"$D$4*$I$5*'Park Allocations'!AJ15","v":0},{"$f":"$D$4*$I$5*'Park Allocations'!AK15","v":0},{"$f":"$D$4*$I$5*'Park Allocations'!AL15","v":0}]
[null,"048 - Court of Appeals","048","Court of Appeals",27.353469650691892,27.353469650691892,1,1.7727436290226384E-5,0,4.6249878062481486E-3,{"$f":"$D$4*$I$5*'Park Allocations'!E16","v":0},{"$f":"$D$4*$I$5*'Park Allocations'!F16","v":0},{"$f":"$D$4*$I$5*'Park Allocations'!G16","v":0},{"$f":"$D$4*$I$5*'Park Allocations'!H16","v":0},{"$f":"$D$4*$I$5*'Park Allocations'!I16","v":0},{"$f":"$D$4*$I$5*'Park Allocations'!J16","v":0},{"$f":"$D$4*$I$5*'Park Allocations'!K16","v":0},{"$f":"$D$4*$I$5*'Park Allocations'!L16","v":0},{"$f":"$D$4*$I$5*'Park Allocations'!M16","v":0},{"$f":"$D$4*$I$5*'Park Allocations'!N16","v":0},{"$f":"$D$4*$I$5*'Park Allocations'!O16","v":0},{"$f":"$D$4*$I$5*'Park Allocations'!P16","v":0},{"$f":"$D$4*$I$5*'Park Allocations'!Q16","v":0},{"$f":"$D$4*$I$5*'Park Allocations'!R16","v":0},{"$f":"$D$4*$I$5*'Park Allocations'!S16","v":0},{"$f":"$D$4*$I$5*'Park Allocations'!T16","v":0},{"$f":"$D$4*$I$5*'Park Allocations'!U16","v":0},{"$f":"$D$4*$I$5*'Park Allocations'!V16","v":0},{"$f":"$D$4*$I$5*'Park Allocations'!W16","v":0},{"$f":"$D$4*$I$5*'Park Allocations'!X16","v":0},{"$f":"$D$4*$I$5*'Park Allocations'!Y16","v":0},{"$f":"$D$4*$I$5*'Park Allocations'!Z16","v":0},{"$f":"$D$4*$I$5*'Park Allocations'!AA16","v":0},{"$f":"$D$4*$I$5*'Park Allocations'!AB16","v":0},{"$f":"$D$4*$I$5*'Park Allocations'!AC16","v":0},{"$f":"$D$4*$I$5*'Park Allocations'!AD16","v":0},{"$f":"$D$4*$I$5*'Park Allocations'!AE16","v":0},{"$f":"$D$4*$I$5*'Park Allocations'!AF16","v":0},{"$f":"$D$4*$I$5*'Park Allocations'!AG16","v":0},{"$f":"$D$4*$I$5*'Park Allocations'!AH16","v":0},{"$f":"$D$4*$I$5*'Park Allocations'!AI16","v":0},{"$f":"$D$4*$I$5*'Park Allocations'!AJ16","v":0},{"$f":"$D$4*$I$5*'Park Allocations'!AK16","v":0},{"$f":"$D$4*$I$5*'Park Allocations'!AL16","v":0}]
[null,"050 - Commission on Judicial Conduct","050","Commission on Judicial Conduct",218.82775720553514,218.82775720553514,8,1.4181949032181107E-4,0,1.0935123375058356E-3,{"$f":"$D$4*$I$5*'Park Allocations'!E17","v":0},{"$f":"$D$4*$I$5*'Park Allocations'!F17","v":0},{"$f":"$D$4*$I$5*'Park Allocations'!G17","v":0},{"$f":"$D$4*$I$5*'Park Allocations'!H17","v":0},{"$f":"$D$4*$I$5*'Park Allocations'!I17","v":0},{"$f":"$D$4*$I$5*'Park Allocations'!J17","v":0},{"$f":"$D$4*$I$5*'Park Allocations'!K17","v":0},{"$f":"$D$4*$I$5*'Park Allocations'!L17","v":0},{"$f":"$D$4*$I$5*'Park Allocations'!M17","v":0},{"$f":"$D$4*$I$5*'Park Allocations'!N17","v":0},{"$f":"$D$4*$I$5*'Park Allocations'!O17","v":0},{"$f":"$D$4*$I$5*'Park Allocations'!P17","v":0},{"$f":"$D$4*$I$5*'Park Allocations'!Q17","v":0},{"$f":"$D$4*$I$5*'Park Allocations'!R17","v":0},{"$f":"$D$4*$I$5*'Park Allocations'!S17","v":0},{"$f":"$D$4*$I$5*'Park Allocations'!T17","v":0},{"$f":"$D$4*$I$5*'Park Allocations'!U17","v":0},{"$f":"$D$4*$I$5*'Park Allocations'!V17","v":0},{"$f":"$D$4*$I$5*'Park Allocations'!W17","v":0},{"$f":"$D$4*$I$5*'Park Allocations'!X17","v":0},{"$f":"$D$4*$I$5*'Park Allocations'!Y17","v":0},{"$f":"$D$4*$I$5*'Park Allocations'!Z17","v":0},{"$f":"$D$4*$I$5*'Park Allocations'!AA17","v":0},{"$f":"$D$4*$I$5*'Park Allocations'!AB17","v":0},{"$f":"$D$4*$I$5*'Park Allocations'!AC17","v":0},{"$f":"$D$4*$I$5*'Park Allocations'!AD17","v":0},{"$f":"$D$4*$I$5*'Park Allocations'!AE17","v":0},{"$f":"$D$4*$I$5*'Park Allocations'!AF17","v":0},{"$f":"$D$4*$I$5*'Park Allocations'!AG17","v":0},{"$f":"$D$4*$I$5*'Park Allocations'!AH17","v":0},{"$f":"$D$4*$I$5*'Park Allocations'!AI17","v":0},{"$f":"$D$4*$I$5*'Park Allocations'!AJ17","v":0},{"$f":"$D$4*$I$5*'Park Allocations'!AK17","v":0},{"$f":"$D$4*$I$5*'Park Allocations'!AL17","v":0}]
[null,"055 - Administrative Office of the Courts","055","Administrative Office of the Courts",7128.734172125487,6865.7208823236651,251,4.4495865088468225E-3,1.7045557283906448E-4,1.2121832653965304E-3,{"$f":"$D$4*$I$5*'Park Allocations'!E18","v":0},{"$f":"$D$4*$I$5*'Park Allocations'!F18","v":0},{"$f":"$D$4*$I$5*'Park Allocations'!G18","v":0},{"$f":"$D$4*$I$5*'Park Allocations'!H18","v":0},{"$f":"$D$4*$I$5*'Park Allocations'!I18","v":0},{"$f":"$D$4*$I$5*'Park Allocations'!J18","v":0},{"$f":"$D$4*$I$5*'Park Allocations'!K18","v":0},{"$f":"$D$4*$I$5*'Park Allocations'!L18","v":0},{"$f":"$D$4*$I$5*'Park Allocations'!M18","v":0},{"$f":"$D$4*$I$5*'Park Allocations'!N18","v":0},{"$f":"$D$4*$I$5*'Park Allocations'!O18","v":0},{"$f":"$D$4*$I$5*'Park Allocations'!P18","v":0},{"$f":"$D$4*$I$5*'Park Allocations'!Q18","v":263.01328980182217},{"$f":"$D$4*$I$5*'Park Allocations'!R18","v":0},{"$f":"$D$4*$I$5*'Park Allocations'!S18","v":0},{"$f":"$D$4*$I$5*'Park Allocations'!T18","v":0},{"$f":"$D$4*$I$5*'Park Allocations'!U18","v":0},{"$f":"$D$4*$I$5*'Park Allocations'!V18","v":0},{"$f":"$D$4*$I$5*'Park Allocations'!W18","v":0},{"$f":"$D$4*$I$5*'Park Allocations'!X18","v":0},{"$f":"$D$4*$I$5*'Park Allocations'!Y18","v":0},{"$f":"$D$4*$I$5*'Park Allocations'!Z18","v":0},{"$f":"$D$4*$I$5*'Park Allocations'!AA18","v":0},{"$f":"$D$4*$I$5*'Park Allocations'!AB18","v":0},{"$f":"$D$4*$I$5*'Park Allocations'!AC18","v":0},{"$f":"$D$4*$I$5*'Park Allocations'!AD18","v":0},{"$f":"$D$4*$I$5*'Park Allocations'!AE18","v":0},{"$f":"$D$4*$I$5*'Park Allocations'!AF18","v":0},{"$f":"$D$4*$I$5*'Park Allocations'!AG18","v":0},{"$f":"$D$4*$I$5*'Park Allocations'!AH18","v":0},{"$f":"$D$4*$I$5*'Park Allocations'!AI18","v":0},{"$f":"$D$4*$I$5*'Park Allocations'!AJ18","v":0},{"$f":"$D$4*$I$5*'Park Allocations'!AK18","v":0},{"$f":"$D$4*$I$5*'Park Allocations'!AL18","v":0}]
[null,"056 - Office of Public Defense","056","Office of Public Defense",519.71592336314598,519.71592336314598,19,3.3682128951430132E-4,0,0,{"$f":"$D$4*$I$5*'Park Allocations'!E19","v":0},{"$f":"$D$4*$I$5*'Park Allocations'!F19","v":0},{"$f":"$D$4*$I$5*'Park Allocations'!G19","v":0},{"$f":"$D$4*$I$5*'Park Allocations'!H19","v":0},{"$f":"$D$4*$I$5*'Park Allocations'!I19","v":0},{"$f":"$D$4*$I$5*'Park Allocations'!J19","v":0},{"$f":"$D$4*$I$5*'Park Allocations'!K19","v":0},{"$f":"$D$4*$I$5*'Park Allocations'!L19","v":0},{"$f":"$D$4*$I$5*'Park Allocations'!M19","v":0},{"$f":"$D$4*$I$5*'Park Allocations'!N19","v":0},{"$f":"$D$4*$I$5*'Park Allocations'!O19","v":0},{"$f":"$D$4*$I$5*'Park Allocations'!P19","v":0},{"$f":"$D$4*$I$5*'Park Allocations'!Q19","v":0},{"$f":"$D$4*$I$5*'Park Allocations'!R19","v":0},{"$f":"$D$4*$I$5*'Park Allocations'!S19","v":0},{"$f":"$D$4*$I$5*'Park Allocations'!T19","v":0},{"$f":"$D$4*$I$5*'Park Allocations'!U19","v":0},{"$f":"$D$4*$I$5*'Park Allocations'!V19","v":0},{"$f":"$D$4*$I$5*'Park Allocations'!W19","v":0},{"$f":"$D$4*$I$5*'Park Allocations'!X19","v":0},{"$f":"$D$4*$I$5*'Park Allocations'!Y19","v":0},{"$f":"$D$4*$I$5*'Park Allocations'!Z19","v":0},{"$f":"$D$4*$I$5*'Park Allocations'!AA19","v":0},{"$f":"$D$4*$I$5*'Park Allocations'!AB19","v":0},{"$f":"$D$4*$I$5*'Park Allocations'!AC19","v":0},{"$f":"$D$4*$I$5*'Park Allocations'!AD19","v":0},{"$f":"$D$4*$I$5*'Park Allocations'!AE19","v":0},{"$f":"$D$4*$I$5*'Park Allocations'!AF19","v":0},{"$f":"$D$4*$I$5*'Park Allocations'!AG19","v":0},{"$f":"$D$4*$I$5*'Park Allocations'!AH19","v":0},{"$f":"$D$4*$I$5*'Park Allocations'!AI19","v":0},{"$f":"$D$4*$I$5*'Park Allocations'!AJ19","v":0},{"$f":"$D$4*$I$5*'Park Allocations'!AK19","v":0},{"$f":"$D$4*$I$5*'Park Allocations'!AL19","v":0}]
[null,"057 - Office of Civil Legal Aid","057","Office of Civil Legal Aid",82.060408952075676,82.060408952075676,3,5.3182308870679155E-5,0,0,{"$f":"$D$4*$I$5*'Park Allocations'!E20","v":0},{"$f":"$D$4*$I$5*'Park Allocations'!F20","v":0},{"$f":"$D$4*$I$5*'Park Allocations'!G20","v":0},{"$f":"$D$4*$I$5*'Park Allocations'!H20","v":0},{"$f":"$D$4*$I$5*'Park Allocations'!I20","v":0},{"$f":"$D$4*$I$5*'Park Allocations'!J20","v":0},{"$f":"$D$4*$I$5*'Park Allocations'!K20","v":0},{"$f":"$D$4*$I$5*'Park Allocations'!L20","v":0},{"$f":"$D$4*$I$5*'Park Allocations'!M20","v":0},{"$f":"$D$4*$I$5*'Park Allocations'!N20","v":0},{"$f":"$D$4*$I$5*'Park Allocations'!O20","v":0},{"$f":"$D$4*$I$5*'Park Allocations'!P20","v":0},{"$f":"$D$4*$I$5*'Park Allocations'!Q20","v":0},{"$f":"$D$4*$I$5*'Park Allocations'!R20","v":0},{"$f":"$D$4*$I$5*'Park Allocations'!S20","v":0},{"$f":"$D$4*$I$5*'Park Allocations'!T20","v":0},{"$f":"$D$4*$I$5*'Park Allocations'!U20","v":0},{"$f":"$D$4*$I$5*'Park Allocations'!V20","v":0},{"$f":"$D$4*$I$5*'Park Allocations'!W20","v":0},{"$f":"$D$4*$I$5*'Park Allocations'!X20","v":0},{"$f":"$D$4*$I$5*'Park Allocations'!Y20","v":0},{"$f":"$D$4*$I$5*'Park Allocations'!Z20","v":0},{"$f":"$D$4*$I$5*'Park Allocations'!AA20","v":0},{"$f":"$D$4*$I$5*'Park Allocations'!AB20","v":0},{"$f":"$D$4*$I$5*'Park Allocations'!AC20","v":0},{"$f":"$D$4*$I$5*'Park Allocations'!AD20","v":0},{"$f":"$D$4*$I$5*'Park Allocations'!AE20","v":0},{"$f":"$D$4*$I$5*'Park Allocations'!AF20","v":0},{"$f":"$D$4*$I$5*'Park Allocations'!AG20","v":0},{"$f":"$D$4*$I$5*'Park Allocations'!AH20","v":0},{"$f":"$D$4*$I$5*'Park Allocations'!AI20","v":0},{"$f":"$D$4*$I$5*'Park Allocations'!AJ20","v":0},{"$f":"$D$4*$I$5*'Park Allocations'!AK20","v":0},{"$f":"$D$4*$I$5*'Park Allocations'!AL20","v":0}]
[null,"075 - Office of the Governor","075","Office of the Governor",2845.6820297908671,1777.9755272949731,65,1.1522833588647151E-3,6.919670243433865E-4,4.950330366510285E-3,{"$f":"$D$4*$I$5*'Park Allocations'!E21","v":0},{"$f":"$D$4*$I$5*'Park Allocations'!F21","v":0},{"$f":"$D$4*$I$5*'Park Allocations'!G21","v":1067.706502495894},{"$f":"$D$4*$I$5*'Park Allocations'!H21","v":0},{"$f":"$D$4*$I$5*'Park Allocations'!I21","v":0},{"$f":"$D$4*$I$5*'Park Allocations'!J21","v":0},{"$f":"$D$4*$I$5*'Park Allocations'!K21","v":0},{"$f":"$D$4*$I$5*'Park Allocations'!L21","v":0},{"$f":"$D$4*$I$5*'Park Allocations'!M21","v":0},{"$f":"$D$4*$I$5*'Park Allocations'!N21","v":0},{"$f":"$D$4*$I$5*'Park Allocations'!O21","v":0},{"$f":"$D$4*$I$5*'Park Allocations'!P21","v":0},{"$f":"$D$4*$I$5*'Park Allocations'!Q21","v":0},{"$f":"$D$4*$I$5*'Park Allocations'!R21","v":0},{"$f":"$D$4*$I$5*'Park Allocations'!S21","v":0},{"$f":"$D$4*$I$5*'Park Allocations'!T21","v":0},{"$f":"$D$4*$I$5*'Park Allocations'!U21","v":0},{"$f":"$D$4*$I$5*'Park Allocations'!V21","v":0},{"$f":"$D$4*$I$5*'Park Allocations'!W21","v":0},{"$f":"$D$4*$I$5*'Park Allocations'!X21","v":0},{"$f":"$D$4*$I$5*'Park Allocations'!Y21","v":0},{"$f":"$D$4*$I$5*'Park Allocations'!Z21","v":0},{"$f":"$D$4*$I$5*'Park Allocations'!AA21","v":0},{"$f":"$D$4*$I$5*'Park Allocations'!AB21","v":0},{"$f":"$D$4*$I$5*'Park Allocations'!AC21","v":0},{"$f":"$D$4*$I$5*'Park Allocations'!AD21","v":0},{"$f":"$D$4*$I$5*'Park Allocations'!AE21","v":0},{"$f":"$D$4*$I$5*'Park Allocations'!AF21","v":0},{"$f":"$D$4*$I$5*'Park Allocations'!AG21","v":0},{"$f":"$D$4*$I$5*'Park Allocations'!AH21","v":0},{"$f":"$D$4*$I$5*'Park Allocations'!AI21","v":0},{"$f":"$D$4*$I$5*'Park Allocations'!AJ21","v":0},{"$f":"$D$4*$I$5*'Park Allocations'!AK21","v":0},{"$f":"$D$4*$I$5*'Park Allocations'!AL21","v":0}]
[null,"080 - Office of Lieutenant Governor","080","Office of Lieutenant Governor",713.16338052503352,164.12081790415135,6,1.0636461774135831E-4,3.5582751196750368E-4,2.5455891332451914E-3,{"$f":"$D$4*$I$5*'Park Allocations'!E22","v":0},{"$f":"$D$4*$I$5*'Park Allocations'!F22","v":0},{"$f":"$D$4*$I$5*'Park Allocations'!G22","v":549.04256262088211},{"$f":"$D$4*$I$5*'Park Allocations'!H22","v":0},{"$f":"$D$4*$I$5*'Park Allocations'!I22","v":0},{"$f":"$D$4*$I$5*'Park Allocations'!J22","v":0},{"$f":"$D$4*$I$5*'Park Allocations'!K22","v":0},{"$f":"$D$4*$I$5*'Park Allocations'!L22","v":0},{"$f":"$D$4*$I$5*'Park Allocations'!M22","v":0},{"$f":"$D$4*$I$5*'Park Allocations'!N22","v":0},{"$f":"$D$4*$I$5*'Park Allocations'!O22","v":0},{"$f":"$D$4*$I$5*'Park Allocations'!P22","v":0},{"$f":"$D$4*$I$5*'Park Allocations'!Q22","v":0},{"$f":"$D$4*$I$5*'Park Allocations'!R22","v":0},{"$f":"$D$4*$I$5*'Park Allocations'!S22","v":0},{"$f":"$D$4*$I$5*'Park Allocations'!T22","v":0},{"$f":"$D$4*$I$5*'Park Allocations'!U22","v":0},{"$f":"$D$4*$I$5*'Park Allocations'!V22","v":0},{"$f":"$D$4*$I$5*'Park Allocations'!W22","v":0},{"$f":"$D$4*$I$5*'Park Allocations'!X22","v":0},{"$f":"$D$4*$I$5*'Park Allocations'!Y22","v":0},{"$f":"$D$4*$I$5*'Park Allocations'!Z22","v":0},{"$f":"$D$4*$I$5*'Park Allocations'!AA22","v":0},{"$f":"$D$4*$I$5*'Park Allocations'!AB22","v":0},{"$f":"$D$4*$I$5*'Park Allocations'!AC22","v":0},{"$f":"$D$4*$I$5*'Park Allocations'!AD22","v":0},{"$f":"$D$4*$I$5*'Park Allocations'!AE22","v":0},{"$f":"$D$4*$I$5*'Park Allocations'!AF22","v":0},{"$f":"$D$4*$I$5*'Park Allocations'!AG22","v":0},{"$f":"$D$4*$I$5*'Park Allocations'!AH22","v":0},{"$f":"$D$4*$I$5*'Park Allocations'!AI22","v":0},{"$f":"$D$4*$I$5*'Park Allocations'!AJ22","v":0},{"$f":"$D$4*$I$5*'Park Allocations'!AK22","v":0},{"$f":"$D$4*$I$5*'Park Allocations'!AL22","v":0}]
[null,"082 - Public Disclosure Commission","082","Public Disclosure Commission",847.95755917144857,847.95755917144857,31,5.4955052499701786E-4,0,0,{"$f":"$D$4*$I$5*'Park Allocations'!E23","v":0},{"$f":"$D$4*$I$5*'Park Allocations'!F23","v":0},{"$f":"$D$4*$I$5*'Park Allocations'!G23","v":0},{"$f":"$D$4*$I$5*'Park Allocations'!H23","v":0},{"$f":"$D$4*$I$5*'Park Allocations'!I23","v":0},{"$f":"$D$4*$I$5*'Park Allocations'!J23","v":0},{"$f":"$D$4*$I$5*'Park Allocations'!K23","v":0},{"$f":"$D$4*$I$5*'Park Allocations'!L23","v":0},{"$f":"$D$4*$I$5*'Park Allocations'!M23","v":0},{"$f":"$D$4*$I$5*'Park Allocations'!N23","v":0},{"$f":"$D$4*$I$5*'Park Allocations'!O23","v":0},{"$f":"$D$4*$I$5*'Park Allocations'!P23","v":0},{"$f":"$D$4*$I$5*'Park Allocations'!Q23","v":0},{"$f":"$D$4*$I$5*'Park Allocations'!R23","v":0},{"$f":"$D$4*$I$5*'Park Allocations'!S23","v":0},{"$f":"$D$4*$I$5*'Park Allocations'!T23","v":0},{"$f":"$D$4*$I$5*'Park Allocations'!U23","v":0},{"$f":"$D$4*$I$5*'Park Allocations'!V23","v":0},{"$f":"$D$4*$I$5*'Park Allocations'!W23","v":0},{"$f":"$D$4*$I$5*'Park Allocations'!X23","v":0},{"$f":"$D$4*$I$5*'Park Allocations'!Y23","v":0},{"$f":"$D$4*$I$5*'Park Allocations'!Z23","v":0},{"$f":"$D$4*$I$5*'Park Allocations'!AA23","v":0},{"$f":"$D$4*$I$5*'Park Allocations'!AB23","v":0},{"$f":"$D$4*$I$5*'Park Allocations'!AC23","v":0},{"$f":"$D$4*$I$5*'Park Allocations'!AD23","v":0},{"$f":"$D$4*$I$5*'Park Allocations'!AE23","v":0},{"$f":"$D$4*$I$5*'Park Allocations'!AF23","v":0},{"$f":"$D$4*$I$5*'Park Allocations'!AG23","v":0},{"$f":"$D$4*$I$5*'Park Allocations'!AH23","v":0},{"$f":"$D$4*$I$5*'Park Allocations'!AI23","v":0},{"$f":"$D$4*$I$5*'Park Allocations'!AJ23","v":0},{"$f":"$D$4*$I$5*'Park Allocations'!AK23","v":0},{"$f":"$D$4*$I$5*'Park Allocations'!AL23","v":0}]
[null,"085 - Office of the Secretary of State","085","Office of the Secretary of State",10023.254386593282,6400.711898261904,234,4.1482200919129748E-3,2.3477237802228242E-3,2.0807629328189532E-2,{"$f":"$D$4*$I$5*'Park Allocations'!E24","v":0},{"$f":"$D$4*$I$5*'Park Allocations'!F24","v":0},{"$f":"$D$4*$I$5*'Park Allocations'!G24","v":658.92532025156584},{"$f":"$D$4*$I$5*'Park Allocations'!H24","v":0},{"$f":"$D$4*$I$5*'Park Allocations'!I24","v":0},{"$f":"$D$4*$I$5*'Park Allocations'!J24","v":0},{"$f":"$D$4*$I$5*'Park Allocations'!K24","v":2963.6171680798125},{"$f":"$D$4*$I$5*'Park Allocations'!L24","v":0},{"$f":"$D$4*$I$5*'Park Allocations'!M24","v":0},{"$f":"$D$4*$I$5*'Park Allocations'!N24","v":0},{"$f":"$D$4*$I$5*'Park Allocations'!O24","v":0},{"$f":"$D$4*$I$5*'Park Allocations'!P24","v":0},{"$f":"$D$4*$I$5*'Park Allocations'!Q24","v":0},{"$f":"$D$4*$I$5*'Park Allocations'!R24","v":0},{"$f":"$D$4*$I$5*'Park Allocations'!S24","v":0},{"$f":"$D$4*$I$5*'Park Allocations'!T24","v":0},{"$f":"$D$4*$I$5*'Park Allocations'!U24","v":0},{"$f":"$D$4*$I$5*'Park Allocations'!V24","v":0},{"$f":"$D$4*$I$5*'Park Allocations'!W24","v":0},{"$f":"$D$4*$I$5*'Park Allocations'!X24","v":0},{"$f":"$D$4*$I$5*'Park Allocations'!Y24","v":0},{"$f":"$D$4*$I$5*'Park Allocations'!Z24","v":0},{"$f":"$D$4*$I$5*'Park Allocations'!AA24","v":0},{"$f":"$D$4*$I$5*'Park Allocations'!AB24","v":0},{"$f":"$D$4*$I$5*'Park Allocations'!AC24","v":0},{"$f":"$D$4*$I$5*'Park Allocations'!AD24","v":0},{"$f":"$D$4*$I$5*'Park Allocations'!AE24","v":0},{"$f":"$D$4*$I$5*'Park Allocations'!AF24","v":0},{"$f":"$D$4*$I$5*'Park Allocations'!AG24","v":0},{"$f":"$D$4*$I$5*'Park Allocations'!AH24","v":0},{"$f":"$D$4*$I$5*'Park Allocations'!AI24","v":0},{"$f":"$D$4*$I$5*'Park Allocations'!AJ24","v":0},{"$f":"$D$4*$I$5*'Park Allocations'!AK24","v":0},{"$f":"$D$4*$I$5*'Park Allocations'!AL24","v":0}]
[null,"086 - Governor's Office of Indian Affairs","086","Governor's Office of Indian Affairs",27.353469650691892,27.353469650691892,1,1.7727436290226384E-5,0,2.7723443223336348E-4,{"$f":"$D$4*$I$5*'Park Allocations'!E25","v":0},{"$f":"$D$4*$I$5*'Park Allocations'!F25","v":0},{"$f":"$D$4*$I$5*'Park Allocations'!G25","v":0},{"$f":"$D$4*$I$5*'Park Allocations'!H25","v":0},{"$f":"$D$4*$I$5*'Park Allocations'!I25","v":0},{"$f":"$D$4*$I$5*'Park Allocations'!J25","v":0},{"$f":"$D$4*$I$5*'Park Allocations'!K25","v":0},{"$f":"$D$4*$I$5*'Park Allocations'!L25","v":0},{"$f":"$D$4*$I$5*'Park Allocations'!M25","v":0},{"$f":"$D$4*$I$5*'Park Allocations'!N25","v":0},{"$f":"$D$4*$I$5*'Park Allocations'!O25","v":0},{"$f":"$D$4*$I$5*'Park Allocations'!P25","v":0},{"$f":"$D$4*$I$5*'Park Allocations'!Q25","v":0},{"$f":"$D$4*$I$5*'Park Allocations'!R25","v":0},{"$f":"$D$4*$I$5*'Park Allocations'!S25","v":0},{"$f":"$D$4*$I$5*'Park Allocations'!T25","v":0},{"$f":"$D$4*$I$5*'Park Allocations'!U25","v":0},{"$f":"$D$4*$I$5*'Park Allocations'!V25","v":0},{"$f":"$D$4*$I$5*'Park Allocations'!W25","v":0},{"$f":"$D$4*$I$5*'Park Allocations'!X25","v":0},{"$f":"$D$4*$I$5*'Park Allocations'!Y25","v":0},{"$f":"$D$4*$I$5*'Park Allocations'!Z25","v":0},{"$f":"$D$4*$I$5*'Park Allocations'!AA25","v":0},{"$f":"$D$4*$I$5*'Park Allocations'!AB25","v":0},{"$f":"$D$4*$I$5*'Park Allocations'!AC25","v":0},{"$f":"$D$4*$I$5*'Park Allocations'!AD25","v":0},{"$f":"$D$4*$I$5*'Park Allocations'!AE25","v":0},{"$f":"$D$4*$I$5*'Park Allocations'!AF25","v":0},{"$f":"$D$4*$I$5*'Park Allocations'!AG25","v":0},{"$f":"$D$4*$I$5*'Park Allocations'!AH25","v":0},{"$f":"$D$4*$I$5*'Park Allocations'!AI25","v":0},{"$f":"$D$4*$I$5*'Park Allocations'!AJ25","v":0},{"$f":"$D$4*$I$5*'Park Allocations'!AK25","v":0},{"$f":"$D$4*$I$5*'Park Allocations'!AL25","v":0}]
[null,"087 - Commission on Asian Pacific American Affairs","087","Commission on Asian Pacific American Affairs",82.060408952075676,82.060408952075676,3,5.3182308870679155E-5,0,1.8235770961691519E-4,{"$f":"$D$4*$I$5*'Park Allocations'!E26","v":0},{"$f":"$D$4*$I$5*'Park Allocations'!F26","v":0},{"$f":"$D$4*$I$5*'Park Allocations'!G26","v":0},{"$f":"$D$4*$I$5*'Park Allocations'!H26","v":0},{"$f":"$D$4*$I$5*'Park Allocations'!I26","v":0},{"$f":"$D$4*$I$5*'Park Allocations'!J26","v":0},{"$f":"$D$4*$I$5*'Park Allocations'!K26","v":0},{"$f":"$D$4*$I$5*'Park Allocations'!L26","v":0},{"$f":"$D$4*$I$5*'Park Allocations'!M26","v":0},{"$f":"$D$4*$I$5*'Park Allocations'!N26","v":0},{"$f":"$D$4*$I$5*'Park Allocations'!O26","v":0},{"$f":"$D$4*$I$5*'Park Allocations'!P26","v":0},{"$f":"$D$4*$I$5*'Park Allocations'!Q26","v":0},{"$f":"$D$4*$I$5*'Park Allocations'!R26","v":0},{"$f":"$D$4*$I$5*'Park Allocations'!S26","v":0},{"$f":"$D$4*$I$5*'Park Allocations'!T26","v":0},{"$f":"$D$4*$I$5*'Park Allocations'!U26","v":0},{"$f":"$D$4*$I$5*'Park Allocations'!V26","v":0},{"$f":"$D$4*$I$5*'Park Allocations'!W26","v":0},{"$f":"$D$4*$I$5*'Park Allocations'!X26","v":0},{"$f":"$D$4*$I$5*'Park Allocations'!Y26","v":0},{"$f":"$D$4*$I$5*'Park Allocations'!Z26","v":0},{"$f":"$D$4*$I$5*'Park Allocations'!AA26","v":0},{"$f":"$D$4*$I$5*'Park Allocations'!AB26","v":0},{"$f":"$D$4*$I$5*'Park Allocations'!AC26","v":0},{"$f":"$D$4*$I$5*'Park Allocations'!AD26","v":0},{"$f":"$D$4*$I$5*'Park Allocations'!AE26","v":0},{"$f":"$D$4*$I$5*'Park Allocations'!AF26","v":0},{"$f":"$D$4*$I$5*'Park Allocations'!AG26","v":0},{"$f":"$D$4*$I$5*'Park Allocations'!AH26","v":0},{"$f":"$D$4*$I$5*'Park Allocations'!AI26","v":0},{"$f":"$D$4*$I$5*'Park Allocations'!AJ26","v":0},{"$f":"$D$4*$I$5*'Park Allocations'!AK26","v":0},{"$f":"$D$4*$I$5*'Park Allocations'!AL26","v":0}]
[null,"090 - Office of State Treasurer","090","Office of State Treasurer",2304.1551092288873,1641.2081790415136,60,1.0636461774135831E-3,4.2964748599637163E-4,3.0736970433538685E-3,{"$f":"$D$4*$I$5*'Park Allocations'!E27","v":0},{"$f":"$D$4*$I$5*'Park Allocations'!F27","v":0},{"$f":"$D$4*$I$5*'Park Allocations'!G27","v":662.94693018737348},{"$f":"$D$4*$I$5*'Park Allocations'!H27","v":0},{"$f":"$D$4*$I$5*'Park Allocations'!I27","v":0},{"$f":"$D$4*$I$5*'Park Allocations'!J27","v":0},{"$f":"$D$4*$I$5*'Park Allocations'!K27","v":0},{"$f":"$D$4*$I$5*'Park Allocations'!L27","v":0},{"$f":"$D$4*$I$5*'Park Allocations'!M27","v":0},{"$f":"$D$4*$I$5*'Park Allocations'!N27","v":0},{"$f":"$D$4*$I$5*'Park Allocations'!O27","v":0},{"$f":"$D$4*$I$5*'Park Allocations'!P27","v":0},{"$f":"$D$4*$I$5*'Park Allocations'!Q27","v":0},{"$f":"$D$4*$I$5*'Park Allocations'!R27","v":0},{"$f":"$D$4*$I$5*'Park Allocations'!S27","v":0},{"$f":"$D$4*$I$5*'Park Allocations'!T27","v":0},{"$f":"$D$4*$I$5*'Park Allocations'!U27","v":0},{"$f":"$D$4*$I$5*'Park Allocations'!V27","v":0},{"$f":"$D$4*$I$5*'Park Allocations'!W27","v":0},{"$f":"$D$4*$I$5*'Park Allocations'!X27","v":0},{"$f":"$D$4*$I$5*'Park Allocations'!Y27","v":0},{"$f":"$D$4*$I$5*'Park Allocations'!Z27","v":0},{"$f":"$D$4*$I$5*'Park Allocations'!AA27","v":0},{"$f":"$D$4*$I$5*'Park Allocations'!AB27","v":0},{"$f":"$D$4*$I$5*'Park Allocations'!AC27","v":0},{"$f":"$D$4*$I$5*'Park Allocations'!AD27","v":0},{"$f":"$D$4*$I$5*'Park Allocations'!AE27","v":0},{"$f":"$D$4*$I$5*'Park Allocations'!AF27","v":0},{"$f":"$D$4*$I$5*'Park Allocations'!AG27","v":0},{"$f":"$D$4*$I$5*'Park Allocations'!AH27","v":0},{"$f":"$D$4*$I$5*'Park Allocations'!AI27","v":0},{"$f":"$D$4*$I$5*'Park Allocations'!AJ27","v":0},{"$f":"$D$4*$I$5*'Park Allocations'!AK27","v":0},{"$f":"$D$4*$I$5*'Park Allocations'!AL27","v":0}]
[null,"095 - Office of State Auditor","095","Office of State Auditor",4882.6853751503759,4485.9690227134706,164,2.9072995515971273E-3,2.5710682969750211E-4,2.2617068751083257E-3,{"$f":"$D$4*$I$5*'Park Allocations'!E28","v":0},{"$f":"$D$4*$I$5*'Park Allocations'!F28","v":0},{"$f":"$D$4*$I$5*'Park Allocations'!G28","v":0},{"$f":"$D$4*$I$5*'Park Allocations'!H28","v":0},{"$f":"$D$4*$I$5*'Park Allocations'!I28","v":0},{"$f":"$D$4*$I$5*'Park Allocations'!J28","v":0},{"$f":"$D$4*$I$5*'Park Allocations'!K28","v":0},{"$f":"$D$4*$I$5*'Park Allocations'!L28","v":0},{"$f":"$D$4*$I$5*'Park Allocations'!M28","v":0},{"$f":"$D$4*$I$5*'Park Allocations'!N28","v":0},{"$f":"$D$4*$I$5*'Park Allocations'!O28","v":396.7163524369052},{"$f":"$D$4*$I$5*'Park Allocations'!P28","v":0},{"$f":"$D$4*$I$5*'Park Allocations'!Q28","v":0},{"$f":"$D$4*$I$5*'Park Allocations'!R28","v":0},{"$f":"$D$4*$I$5*'Park Allocations'!S28","v":0},{"$f":"$D$4*$I$5*'Park Allocations'!T28","v":0},{"$f":"$D$4*$I$5*'Park Allocations'!U28","v":0},{"$f":"$D$4*$I$5*'Park Allocations'!V28","v":0},{"$f":"$D$4*$I$5*'Park Allocations'!W28","v":0},{"$f":"$D$4*$I$5*'Park Allocations'!X28","v":0},{"$f":"$D$4*$I$5*'Park Allocations'!Y28","v":0},{"$f":"$D$4*$I$5*'Park Allocations'!Z28","v":0},{"$f":"$D$4*$I$5*'Park Allocations'!AA28","v":0},{"$f":"$D$4*$I$5*'Park Allocations'!AB28","v":0},{"$f":"$D$4*$I$5*'Park Allocations'!AC28","v":0},{"$f":"$D$4*$I$5*'Park Allocations'!AD28","v":0},{"$f":"$D$4*$I$5*'Park Allocations'!AE28","v":0},{"$f":"$D$4*$I$5*'Park Allocations'!AF28","v":0},{"$f":"$D$4*$I$5*'Park Allocations'!AG28","v":0},{"$f":"$D$4*$I$5*'Park Allocations'!AH28","v":0},{"$f":"$D$4*$I$5*'Park Allocations'!AI28","v":0},{"$f":"$D$4*$I$5*'Park Allocations'!AJ28","v":0},{"$f":"$D$4*$I$5*'Park Allocations'!AK28","v":0},{"$f":"$D$4*$I$5*'Park Allocations'!AL28","v":0}]
[null,"099 - Citizens' Commission on Salaries for Elected Officials","099","Citizens' Commission on Salaries for Elected Officials",82.060408952075676,82.060408952075676,3,5.3182308870679155E-5,0,1.407302834355336E-4,{"$f":"$D$4*$I$5*'Park Allocations'!E29","v":0},{"$f":"$D$4*$I$5*'Park Allocations'!F29","v":0},{"$f":"$D$4*$I$5*'Park Allocations'!G29","v":0},{"$f":"$D$4*$I$5*'Park Allocations'!H29","v":0},{"$f":"$D$4*$I$5*'Park Allocations'!I29","v":0},{"$f":"$D$4*$I$5*'Park Allocations'!J29","v":0},{"$f":"$D$4*$I$5*'Park Allocations'!K29","v":0},{"$f":"$D$4*$I$5*'Park Allocations'!L29","v":0},{"$f":"$D$4*$I$5*'Park Allocations'!M29","v":0},{"$f":"$D$4*$I$5*'Park Allocations'!N29","v":0},{"$f":"$D$4*$I$5*'Park Allocations'!O29","v":0},{"$f":"$D$4*$I$5*'Park Allocations'!P29","v":0},{"$f":"$D$4*$I$5*'Park Allocations'!Q29","v":0},{"$f":"$D$4*$I$5*'Park Allocations'!R29","v":0},{"$f":"$D$4*$I$5*'Park Allocations'!S29","v":0},{"$f":"$D$4*$I$5*'Park Allocations'!T29","v":0},{"$f":"$D$4*$I$5*'Park Allocations'!U29","v":0},{"$f":"$D$4*$I$5*'Park Allocations'!V29","v":0},{"$f":"$D$4*$I$5*'Park Allocations'!W29","v":0},{"$f":"$D$4*$I$5*'Park Allocations'!X29","v":0},{"$f":"$D$4*$I$5*'Park Allocations'!Y29","v":0},{"$f":"$D$4*$I$5*'Park Allocations'!Z29","v":0},{"$f":"$D$4*$I$5*'Park Allocations'!AA29","v":0},{"$f":"$D$4*$I$5*'Park Allocations'!AB29","v":0},{"$f":"$D$4*$I$5*'Park Allocations'!AC29","v":0},{"$f":"$D$4*$I$5*'Park Allocations'!AD29","v":0},{"$f":"$D$4*$I$5*'Park Allocations'!AE29","v":0},{"$f":"$D$4*$I$5*'Park Allocations'!AF29","v":0},{"$f":"$D$4*$I$5*'Park Allocations'!AG29","v":0},{"$f":"$D$4*$I$5*'Park Allocations'!AH29","v":0},{"$f":"$D$4*$I$5*'Park Allocations'!AI29","v":0},{"$f":"$D$4*$I$5*'Park Allocations'!AJ29","v":0},{"$f":"$D$4*$I$5*'Park Allocations'!AK29","v":0},{"$f":"$D$4*$I$5*'Park Allocations'!AL29","v":0}]
[null,"100 - Office of Attorney General","100","Office of Attorney General",23231.368620372163,18737.126710723947,685,1.2143293858805075E-2,2.9126611045534709E-3,1.9317486901242777E-2,{"$f":"$D$4*$I$5*'Park Allocations'!E30","v":0},{"$f":"$D$4*$I$5*'Park Allocations'!F30","v":0},{"$f":"$D$4*$I$5*'Park Allocations'!G30","v":0},{"$f":"$D$4*$I$5*'Park Allocations'!H30","v":0},{"$f":"$D$4*$I$5*'Park Allocations'!I30","v":4494.2419096482145},{"$f":"$D$4*$I$5*'Park Allocations'!J30","v":0},{"$f":"$D$4*$I$5*'Park Allocations'!K30","v":0},{"$f":"$D$4*$I$5*'Park Allocations'!L30","v":0},{"$f":"$D$4*$I$5*'Park Allocations'!M30","v":0},{"$f":"$D$4*$I$5*'Park Allocations'!N30","v":0},{"$f":"$D$4*$I$5*'Park Allocations'!O30","v":0},{"$f":"$D$4*$I$5*'Park Allocations'!P30","v":0},{"$f":"$D$4*$I$5*'Park Allocations'!Q30","v":0},{"$f":"$D$4*$I$5*'Park Allocations'!R30","v":0},{"$f":"$D$4*$I$5*'Park Allocations'!S30","v":0},{"$f":"$D$4*$I$5*'Park Allocations'!T30","v":0},{"$f":"$D$4*$I$5*'Park Allocations'!U30","v":0},{"$f":"$D$4*$I$5*'Park Allocations'!V30","v":0},{"$f":"$D$4*$I$5*'Park Allocations'!W30","v":0},{"$f":"$D$4*$I$5*'Park Allocations'!X30","v":0},{"$f":"$D$4*$I$5*'Park Allocations'!Y30","v":0},{"$f":"$D$4*$I$5*'Park Allocations'!Z30","v":0},{"$f":"$D$4*$I$5*'Park Allocations'!AA30","v":0},{"$f":"$D$4*$I$5*'Park Allocations'!AB30","v":0},{"$f":"$D$4*$I$5*'Park Allocations'!AC30","v":0},{"$f":"$D$4*$I$5*'Park Allocations'!AD30","v":0},{"$f":"$D$4*$I$5*'Park Allocations'!AE30","v":0},{"$f":"$D$4*$I$5*'Park Allocations'!AF30","v":0},{"$f":"$D$4*$I$5*'Park Allocations'!AG30","v":0},{"$f":"$D$4*$I$5*'Park Allocations'!AH30","v":0},{"$f":"$D$4*$I$5*'Park Allocations'!AI30","v":0},{"$f":"$D$4*$I$5*'Park Allocations'!AJ30","v":0},{"$f":"$D$4*$I$5*'Park Allocations'!AK30","v":0},{"$f":"$D$4*$I$5*'Park Allocations'!AL30","v":0}]
[null,"101 - Caseload Forecast Council","101","Caseload Forecast Council",273.53469650691898,273.53469650691898,10,1.7727436290226387E-4,0,1.0899201230637873E-3,{"$f":"$D$4*$I$5*'Park Allocations'!E31","v":0},{"$f":"$D$4*$I$5*'Park Allocations'!F31","v":0},{"$f":"$D$4*$I$5*'Park Allocations'!G31","v":0},{"$f":"$D$4*$I$5*'Park Allocations'!H31","v":0},{"$f":"$D$4*$I$5*'Park Allocations'!I31","v":0},{"$f":"$D$4*$I$5*'Park Allocations'!J31","v":0},{"$f":"$D$4*$I$5*'Park Allocations'!K31","v":0},{"$f":"$D$4*$I$5*'Park Allocations'!L31","v":0},{"$f":"$D$4*$I$5*'Park Allocations'!M31","v":0},{"$f":"$D$4*$I$5*'Park Allocations'!N31","v":0},{"$f":"$D$4*$I$5*'Park Allocations'!O31","v":0},{"$f":"$D$4*$I$5*'Park Allocations'!P31","v":0},{"$f":"$D$4*$I$5*'Park Allocations'!Q31","v":0},{"$f":"$D$4*$I$5*'Park Allocations'!R31","v":0},{"$f":"$D$4*$I$5*'Park Allocations'!S31","v":0},{"$f":"$D$4*$I$5*'Park Allocations'!T31","v":0},{"$f":"$D$4*$I$5*'Park Allocations'!U31","v":0},{"$f":"$D$4*$I$5*'Park Allocations'!V31","v":0},{"$f":"$D$4*$I$5*'Park Allocations'!W31","v":0},{"$f":"$D$4*$I$5*'Park Allocations'!X31","v":0},{"$f":"$D$4*$I$5*'Park Allocations'!Y31","v":0},{"$f":"$D$4*$I$5*'Park Allocations'!Z31","v":0},{"$f":"$D$4*$I$5*'Park Allocations'!AA31","v":0},{"$f":"$D$4*$I$5*'Park Allocations'!AB31","v":0},{"$f":"$D$4*$I$5*'Park Allocations'!AC31","v":0},{"$f":"$D$4*$I$5*'Park Allocations'!AD31","v":0},{"$f":"$D$4*$I$5*'Park Allocations'!AE31","v":0},{"$f":"$D$4*$I$5*'Park Allocations'!AF31","v":0},{"$f":"$D$4*$I$5*'Park Allocations'!AG31","v":0},{"$f":"$D$4*$I$5*'Park Allocations'!AH31","v":0},{"$f":"$D$4*$I$5*'Park Allocations'!AI31","v":0},{"$f":"$D$4*$I$5*'Park Allocations'!AJ31","v":0},{"$f":"$D$4*$I$5*'Park Allocations'!AK31","v":0},{"$f":"$D$4*$I$5*'Park Allocations'!AL31","v":0}]
[null,"102 - Department of Financial Institutions","102","Department of Financial Institutions",4403.9086137613949,4403.9086137613949,161,2.8541172427264481E-3,0,0,{"$f":"$D$4*$I$5*'Park Allocations'!E32","v":0},{"$f":"$D$4*$I$5*'Park Allocations'!F32","v":0},{"$f":"$D$4*$I$5*'Park Allocations'!G32","v":0},{"$f":"$D$4*$I$5*'Park Allocations'!H32","v":0},{"$f":"$D$4*$I$5*'Park Allocations'!I32","v":0},{"$f":"$D$4*$I$5*'Park Allocations'!J32","v":0},{"$f":"$D$4*$I$5*'Park Allocations'!K32","v":0},{"$f":"$D$4*$I$5*'Park Allocations'!L32","v":0},{"$f":"$D$4*$I$5*'Park Allocations'!M32","v":0},{"$f":"$D$4*$I$5*'Park Allocations'!N32","v":0},{"$f":"$D$4*$I$5*'Park Allocations'!O32","v":0},{"$f":"$D$4*$I$5*'Park Allocations'!P32","v":0},{"$f":"$D$4*$I$5*'Park Allocations'!Q32","v":0},{"$f":"$D$4*$I$5*'Park Allocations'!R32","v":0},{"$f":"$D$4*$I$5*'Park Allocations'!S32","v":0},{"$f":"$D$4*$I$5*'Park Allocations'!T32","v":0},{"$f":"$D$4*$I$5*'Park Allocations'!U32","v":0},{"$f":"$D$4*$I$5*'Park Allocations'!V32","v":0},{"$f":"$D$4*$I$5*'Park Allocations'!W32","v":0},{"$f":"$D$4*$I$5*'Park Allocations'!X32","v":0},{"$f":"$D$4*$I$5*'Park Allocations'!Y32","v":0},{"$f":"$D$4*$I$5*'Park Allocations'!Z32","v":0},{"$f":"$D$4*$I$5*'Park Allocations'!AA32","v":0},{"$f":"$D$4*$I$5*'Park Allocations'!AB32","v":0},{"$f":"$D$4*$I$5*'Park Allocations'!AC32","v":0},{"$f":"$D$4*$I$5*'Park Allocations'!AD32","v":0},{"$f":"$D$4*$I$5*'Park Allocations'!AE32","v":0},{"$f":"$D$4*$I$5*'Park Allocations'!AF32","v":0},{"$f":"$D$4*$I$5*'Park Allocations'!AG32","v":0},{"$f":"$D$4*$I$5*'Park Allocations'!AH32","v":0},{"$f":"$D$4*$I$5*'Park Allocations'!AI32","v":0},{"$f":"$D$4*$I$5*'Park Allocations'!AJ32","v":0},{"$f":"$D$4*$I$5*'Park Allocations'!AK32","v":0},{"$f":"$D$4*$I$5*'Park Allocations'!AL32","v":0}]
[null,"103 - Department of Commerce","103","Department of Commerce",8397.5151827624104,8397.5151827624104,307,5.4423229410994999E-3,0,0,{"$f":"$D$4*$I$5*'Park Allocations'!E33","v":0},{"$f":"$D$4*$I$5*'Park Allocations'!F33","v":0},{"$f":"$D$4*$I$5*'Park Allocations'!G33","v":0},{"$f":"$D$4*$I$5*'Park Allocations'!H33","v":0},{"$f":"$D$4*$I$5*'Park Allocations'!I33","v":0},{"$f":"$D$4*$I$5*'Park Allocations'!J33","v":0},{"$f":"$D$4*$I$5*'Park Allocations'!K33","v":0},{"$f":"$D$4*$I$5*'Park Allocations'!L33","v":0},{"$f":"$D$4*$I$5*'Park Allocations'!M33","v":0},{"$f":"$D$4*$I$5*'Park Allocations'!N33","v":0},{"$f":"$D$4*$I$5*'Park Allocations'!O33","v":0},{"$f":"$D$4*$I$5*'Park Allocations'!P33","v":0},{"$f":"$D$4*$I$5*'Park Allocations'!Q33","v":0},{"$f":"$D$4*$I$5*'Park Allocations'!R33","v":0},{"$f":"$D$4*$I$5*'Park Allocations'!S33","v":0},{"$f":"$D$4*$I$5*'Park Allocations'!T33","v":0},{"$f":"$D$4*$I$5*'Park Allocations'!U33","v":0},{"$f":"$D$4*$I$5*'Park Allocations'!V33","v":0},{"$f":"$D$4*$I$5*'Park Allocations'!W33","v":0},{"$f":"$D$4*$I$5*'Park Allocations'!X33","v":0},{"$f":"$D$4*$I$5*'Park Allocations'!Y33","v":0},{"$f":"$D$4*$I$5*'Park Allocations'!Z33","v":0},{"$f":"$D$4*$I$5*'Park Allocations'!AA33","v":0},{"$f":"$D$4*$I$5*'Park Allocations'!AB33","v":0},{"$f":"$D$4*$I$5*'Park Allocations'!AC33","v":0},{"$f":"$D$4*$I$5*'Park Allocations'!AD33","v":0},{"$f":"$D$4*$I$5*'Park Allocations'!AE33","v":0},{"$f":"$D$4*$I$5*'Park Allocations'!AF33","v":0},{"$f":"$D$4*$I$5*'Park Allocations'!AG33","v":0},{"$f":"$D$4*$I$5*'Park Allocations'!AH33","v":0},{"$f":"$D$4*$I$5*'Park Allocations'!AI33","v":0},{"$f":"$D$4*$I$5*'Park Allocations'!AJ33","v":0},{"$f":"$D$4*$I$5*'Park Allocations'!AK33","v":0},{"$f":"$D$4*$I$5*'Park Allocations'!AL33","v":0}]
[null,"104 - Economic and Revenue Forecast Council","104","Economic and Revenue Forecast Council",136.76734825345949,136.76734825345949,5,8.8637181451131937E-5,0,0,{"$f":"$D$4*$I$5*'Park Allocations'!E34","v":0},{"$f":"$D$4*$I$5*'Park Allocations'!F34","v":0},{"$f":"$D$4*$I$5*'Park Allocations'!G34","v":0},{"$f":"$D$4*$I$5*'Park Allocations'!H34","v":0},{"$f":"$D$4*$I$5*'Park Allocations'!I34","v":0},{"$f":"$D$4*$I$5*'Park Allocations'!J34","v":0},{"$f":"$D$4*$I$5*'Park Allocations'!K34","v":0},{"$f":"$D$4*$I$5*'Park Allocations'!L34","v":0},{"$f":"$D$4*$I$5*'Park Allocations'!M34","v":0},{"$f":"$D$4*$I$5*'Park Allocations'!N34","v":0},{"$f":"$D$4*$I$5*'Park Allocations'!O34","v":0},{"$f":"$D$4*$I$5*'Park Allocations'!P34","v":0},{"$f":"$D$4*$I$5*'Park Allocations'!Q34","v":0},{"$f":"$D$4*$I$5*'Park Allocations'!R34","v":0},{"$f":"$D$4*$I$5*'Park Allocations'!S34","v":0},{"$f":"$D$4*$I$5*'Park Allocations'!T34","v":0},{"$f":"$D$4*$I$5*'Park Allocations'!U34","v":0},{"$f":"$D$4*$I$5*'Park Allocations'!V34","v":0},{"$f":"$D$4*$I$5*'Park Allocations'!W34","v":0},{"$f":"$D$4*$I$5*'Park Allocations'!X34","v":0},{"$f":"$D$4*$I$5*'Park Allocations'!Y34","v":0},{"$f":"$D$4*$I$5*'Park Allocations'!Z34","v":0},{"$f":"$D$4*$I$5*'Park Allocations'!AA34","v":0},{"$f":"$D$4*$I$5*'Park Allocations'!AB34","v":0},{"$f":"$D$4*$I$5*'Park Allocations'!AC34","v":0},{"$f":"$D$4*$I$5*'Park Allocations'!AD34","v":0},{"$f":"$D$4*$I$5*'Park Allocations'!AE34","v":0},{"$f":"$D$4*$I$5*'Park Allocations'!AF34","v":0},{"$f":"$D$4*$I$5*'Park Allocations'!AG34","v":0},{"$f":"$D$4*$I$5*'Park Allocations'!AH34","v":0},{"$f":"$D$4*$I$5*'Park Allocations'!AI34","v":0},{"$f":"$D$4*$I$5*'Park Allocations'!AJ34","v":0},{"$f":"$D$4*$I$5*'Park Allocations'!AK34","v":0},{"$f":"$D$4*$I$5*'Park Allocations'!AL34","v":0}]
[null,"105 - Office of Financial Management","105","Office of Financial Management",14479.209845631447,11898.759298050973,435,7.7114347862484774E-3,1.6723572280401935E-3,1.0055166128315696E-2,{"$f":"$D$4*$I$5*'Park Allocations'!E35","v":0},{"$f":"$D$4*$I$5*'Park Allocations'!F35","v":0},{"$f":"$D$4*$I$5*'Park Allocations'!G35","v":0},{"$f":"$D$4*$I$5*'Park Allocations'!H35","v":0},{"$f":"$D$4*$I$5*'Park Allocations'!I35","v":0},{"$f":"$D$4*$I$5*'Park Allocations'!J35","v":0},{"$f":"$D$4*$I$5*'Park Allocations'!K35","v":0},{"$f":"$D$4*$I$5*'Park Allocations'!L35","v":0},{"$f":"$D$4*$I$5*'Park Allocations'!M35","v":0},{"$f":"$D$4*$I$5*'Park Allocations'!N35","v":0},{"$f":"$D$4*$I$5*'Park Allocations'!O35","v":2580.4505475804749},{"$f":"$D$4*$I$5*'Park Allocations'!P35","v":0},{"$f":"$D$4*$I$5*'Park Allocations'!Q35","v":0},{"$f":"$D$4*$I$5*'Park Allocations'!R35","v":0},{"$f":"$D$4*$I$5*'Park Allocations'!S35","v":0},{"$f":"$D$4*$I$5*'Park Allocations'!T35","v":0},{"$f":"$D$4*$I$5*'Park Allocations'!U35","v":0},{"$f":"$D$4*$I$5*'Park Allocations'!V35","v":0},{"$f":"$D$4*$I$5*'Park Allocations'!W35","v":0},{"$f":"$D$4*$I$5*'Park Allocations'!X35","v":0},{"$f":"$D$4*$I$5*'Park Allocations'!Y35","v":0},{"$f":"$D$4*$I$5*'Park Allocations'!Z35","v":0},{"$f":"$D$4*$I$5*'Park Allocations'!AA35","v":0},{"$f":"$D$4*$I$5*'Park Allocations'!AB35","v":0},{"$f":"$D$4*$I$5*'Park Allocations'!AC35","v":0},{"$f":"$D$4*$I$5*'Park Allocations'!AD35","v":0},{"$f":"$D$4*$I$5*'Park Allocations'!AE35","v":0},{"$f":"$D$4*$I$5*'Park Allocations'!AF35","v":0},{"$f":"$D$4*$I$5*'Park Allocations'!AG35","v":0},{"$f":"$D$4*$I$5*'Park Allocations'!AH35","v":0},{"$f":"$D$4*$I$5*'Park Allocations'!AI35","v":0},{"$f":"$D$4*$I$5*'Park Allocations'!AJ35","v":0},{"$f":"$D$4*$I$5*'Park Allocations'!AK35","v":0},{"$f":"$D$4*$I$5*'Park Allocations'!AL35","v":0}]
[null,"107 - Washington State Health Care Authority","107","Washington State Health Care Authority",36708.35627122852,36708.35627122852,1342,2.3790219501483807E-2,0,0,{"$f":"$D$4*$I$5*'Park Allocations'!E36","v":0},{"$f":"$D$4*$I$5*'Park Allocations'!F36","v":0},{"$f":"$D$4*$I$5*'Park Allocations'!G36","v":0},{"$f":"$D$4*$I$5*'Park Allocations'!H36","v":0},{"$f":"$D$4*$I$5*'Park Allocations'!I36","v":0},{"$f":"$D$4*$I$5*'Park Allocations'!J36","v":0},{"$f":"$D$4*$I$5*'Park Allocations'!K36","v":0},{"$f":"$D$4*$I$5*'Park Allocations'!L36","v":0},{"$f":"$D$4*$I$5*'Park Allocations'!M36","v":0},{"$f":"$D$4*$I$5*'Park Allocations'!N36","v":0},{"$f":"$D$4*$I$5*'Park Allocations'!O36","v":0},{"$f":"$D$4*$I$5*'Park Allocations'!P36","v":0},{"$f":"$D$4*$I$5*'Park Allocations'!Q36","v":0},{"$f":"$D$4*$I$5*'Park Allocations'!R36","v":0},{"$f":"$D$4*$I$5*'Park Allocations'!S36","v":0},{"$f":"$D$4*$I$5*'Park Allocations'!T36","v":0},{"$f":"$D$4*$I$5*'Park Allocations'!U36","v":0},{"$f":"$D$4*$I$5*'Park Allocations'!V36","v":0},{"$f":"$D$4*$I$5*'Park Allocations'!W36","v":0},{"$f":"$D$4*$I$5*'Park Allocations'!X36","v":0},{"$f":"$D$4*$I$5*'Park Allocations'!Y36","v":0},{"$f":"$D$4*$I$5*'Park Allocations'!Z36","v":0},{"$f":"$D$4*$I$5*'Park Allocations'!AA36","v":0},{"$f":"$D$4*$I$5*'Park Allocations'!AB36","v":0},{"$f":"$D$4*$I$5*'Park Allocations'!AC36","v":0},{"$f":"$D$4*$I$5*'Park Allocations'!AD36","v":0},{"$f":"$D$4*$I$5*'Park Allocations'!AE36","v":0},{"$f":"$D$4*$I$5*'Park Allocations'!AF36","v":0},{"$f":"$D$4*$I$5*'Park Allocations'!AG36","v":0},{"$f":"$D$4*$I$5*'Park Allocations'!AH36","v":0},{"$f":"$D$4*$I$5*'Park Allocations'!AI36","v":0},{"$f":"$D$4*$I$5*'Park Allocations'!AJ36","v":0},{"$f":"$D$4*$I$5*'Park Allocations'!AK36","v":0},{"$f":"$D$4*$I$5*'Park Allocations'!AL36","v":0}]
[null,"110 - Office of Administrative Hearings","110","Office of Administrative Hearings",1805.328996945665,1805.328996945665,66,1.1700107951549414E-3,0,1.8799242650270537E-3,{"$f":"$D$4*$I$5*'Park Allocations'!E37","v":0},{"$f":"$D$4*$I$5*'Park Allocations'!F37","v":0},{"$f":"$D$4*$I$5*'Park Allocations'!G37","v":0},{"$f":"$D$4*$I$5*'Park Allocations'!H37","v":0},{"$f":"$D$4*$I$5*'Park Allocations'!I37","v":0},{"$f":"$D$4*$I$5*'Park Allocations'!J37","v":0},{"$f":"$D$4*$I$5*'Park Allocations'!K37","v":0},{"$f":"$D$4*$I$5*'Park Allocations'!L37","v":0},{"$f":"$D$4*$I$5*'Park Allocations'!M37","v":0},{"$f":"$D$4*$I$5*'Park Allocations'!N37","v":0},{"$f":"$D$4*$I$5*'Park Allocations'!O37","v":0},{"$f":"$D$4*$I$5*'Park Allocations'!P37","v":0},{"$f":"$D$4*$I$5*'Park Allocations'!Q37","v":0},{"$f":"$D$4*$I$5*'Park Allocations'!R37","v":0},{"$f":"$D$4*$I$5*'Park Allocations'!S37","v":0},{"$f":"$D$4*$I$5*'Park Allocations'!T37","v":0},{"$f":"$D$4*$I$5*'Park Allocations'!U37","v":0},{"$f":"$D$4*$I$5*'Park Allocations'!V37","v":0},{"$f":"$D$4*$I$5*'Park Allocations'!W37","v":0},{"$f":"$D$4*$I$5*'Park Allocations'!X37","v":0},{"$f":"$D$4*$I$5*'Park Allocations'!Y37","v":0},{"$f":"$D$4*$I$5*'Park Allocations'!Z37","v":0},{"$f":"$D$4*$I$5*'Park Allocations'!AA37","v":0},{"$f":"$D$4*$I$5*'Park Allocations'!AB37","v":0},{"$f":"$D$4*$I$5*'Park Allocations'!AC37","v":0},{"$f":"$D$4*$I$5*'Park Allocations'!AD37","v":0},{"$f":"$D$4*$I$5*'Park Allocations'!AE37","v":0},{"$f":"$D$4*$I$5*'Park Allocations'!AF37","v":0},{"$f":"$D$4*$I$5*'Park Allocations'!AG37","v":0},{"$f":"$D$4*$I$5*'Park Allocations'!AH37","v":0},{"$f":"$D$4*$I$5*'Park Allocations'!AI37","v":0},{"$f":"$D$4*$I$5*'Park Allocations'!AJ37","v":0},{"$f":"$D$4*$I$5*'Park Allocations'!AK37","v":0},{"$f":"$D$4*$I$5*'Park Allocations'!AL37","v":0}]
[null,"116 - State Lottery","116","State Lottery",1914.7428755484325,1914.7428755484325,70,1.2409205403158469E-3,0,0,{"$f":"$D$4*$I$5*'Park Allocations'!E38","v":0},{"$f":"$D$4*$I$5*'Park Allocations'!F38","v":0},{"$f":"$D$4*$I$5*'Park Allocations'!G38","v":0},{"$f":"$D$4*$I$5*'Park Allocations'!H38","v":0},{"$f":"$D$4*$I$5*'Park Allocations'!I38","v":0},{"$f":"$D$4*$I$5*'Park Allocations'!J38","v":0},{"$f":"$D$4*$I$5*'Park Allocations'!K38","v":0},{"$f":"$D$4*$I$5*'Park Allocations'!L38","v":0},{"$f":"$D$4*$I$5*'Park Allocations'!M38","v":0},{"$f":"$D$4*$I$5*'Park Allocations'!N38","v":0},{"$f":"$D$4*$I$5*'Park Allocations'!O38","v":0},{"$f":"$D$4*$I$5*'Park Allocations'!P38","v":0},{"$f":"$D$4*$I$5*'Park Allocations'!Q38","v":0},{"$f":"$D$4*$I$5*'Park Allocations'!R38","v":0},{"$f":"$D$4*$I$5*'Park Allocations'!S38","v":0},{"$f":"$D$4*$I$5*'Park Allocations'!T38","v":0},{"$f":"$D$4*$I$5*'Park Allocations'!U38","v":0},{"$f":"$D$4*$I$5*'Park Allocations'!V38","v":0},{"$f":"$D$4*$I$5*'Park Allocations'!W38","v":0},{"$f":"$D$4*$I$5*'Park Allocations'!X38","v":0},{"$f":"$D$4*$I$5*'Park Allocations'!Y38","v":0},{"$f":"$D$4*$I$5*'Park Allocations'!Z38","v":0},{"$f":"$D$4*$I$5*'Park Allocations'!AA38","v":0},{"$f":"$D$4*$I$5*'Park Allocations'!AB38","v":0},{"$f":"$D$4*$I$5*'Park Allocations'!AC38","v":0},{"$f":"$D$4*$I$5*'Park Allocations'!AD38","v":0},{"$f":"$D$4*$I$5*'Park Allocations'!AE38","v":0},{"$f":"$D$4*$I$5*'Park Allocations'!AF38","v":0},{"$f":"$D$4*$I$5*'Park Allocations'!AG38","v":0},{"$f":"$D$4*$I$5*'Park Allocations'!AH38","v":0},{"$f":"$D$4*$I$5*'Park Allocations'!AI38","v":0},{"$f":"$D$4*$I$5*'Park Allocations'!AJ38","v":0},{"$f":"$D$4*$I$5*'Park Allocations'!AK38","v":0},{"$f":"$D$4*$I$5*'Park Allocations'!AL38","v":0}]
[null,"117 - Washington State Gambling Commission","117","Washington State Gambling Commission",1559.1477700894377,1559.1477700894377,57,1.0104638685429039E-3,0,0,{"$f":"$D$4*$I$5*'Park Allocations'!E39","v":0},{"$f":"$D$4*$I$5*'Park Allocations'!F39","v":0},{"$f":"$D$4*$I$5*'Park Allocations'!G39","v":0},{"$f":"$D$4*$I$5*'Park Allocations'!H39","v":0},{"$f":"$D$4*$I$5*'Park Allocations'!I39","v":0},{"$f":"$D$4*$I$5*'Park Allocations'!J39","v":0},{"$f":"$D$4*$I$5*'Park Allocations'!K39","v":0},{"$f":"$D$4*$I$5*'Park Allocations'!L39","v":0},{"$f":"$D$4*$I$5*'Park Allocations'!M39","v":0},{"$f":"$D$4*$I$5*'Park Allocations'!N39","v":0},{"$f":"$D$4*$I$5*'Park Allocations'!O39","v":0},{"$f":"$D$4*$I$5*'Park Allocations'!P39","v":0},{"$f":"$D$4*$I$5*'Park Allocations'!Q39","v":0},{"$f":"$D$4*$I$5*'Park Allocations'!R39","v":0},{"$f":"$D$4*$I$5*'Park Allocations'!S39","v":0},{"$f":"$D$4*$I$5*'Park Allocations'!T39","v":0},{"$f":"$D$4*$I$5*'Park Allocations'!U39","v":0},{"$f":"$D$4*$I$5*'Park Allocations'!V39","v":0},{"$f":"$D$4*$I$5*'Park Allocations'!W39","v":0},{"$f":"$D$4*$I$5*'Park Allocations'!X39","v":0},{"$f":"$D$4*$I$5*'Park Allocations'!Y39","v":0},{"$f":"$D$4*$I$5*'Park Allocations'!Z39","v":0},{"$f":"$D$4*$I$5*'Park Allocations'!AA39","v":0},{"$f":"$D$4*$I$5*'Park Allocations'!AB39","v":0},{"$f":"$D$4*$I$5*'Park Allocations'!AC39","v":0},{"$f":"$D$4*$I$5*'Park Allocations'!AD39","v":0},{"$f":"$D$4*$I$5*'Park Allocations'!AE39","v":0},{"$f":"$D$4*$I$5*'Park Allocations'!AF39","v":0},{"$f":"$D$4*$I$5*'Park Allocations'!AG39","v":0},{"$f":"$D$4*$I$5*'Park Allocations'!AH39","v":0},{"$f":"$D$4*$I$5*'Park Allocations'!AI39","v":0},{"$f":"$D$4*$I$5*'Park Allocations'!AJ39","v":0},{"$f":"$D$4*$I$5*'Park Allocations'!AK39","v":0},{"$f":"$D$4*$I$5*'Park Allocations'!AL39","v":0}]
[null,"118 - Commission on Hispanic Affairs","118","Commission on Hispanic Affairs",82.060408952075676,82.060408952075676,3,5.3182308870679155E-5,0,1.8235770961691519E-4,{"$f":"$D$4*$I$5*'Park Allocations'!E40","v":0},{"$f":"$D$4*$I$5*'Park Allocations'!F40","v":0},{"$f":"$D$4*$I$5*'Park Allocations'!G40","v":0},{"$f":"$D$4*$I$5*'Park Allocations'!H40","v":0},{"$f":"$D$4*$I$5*'Park Allocations'!I40","v":0},{"$f":"$D$4*$I$5*'Park Allocations'!J40","v":0},{"$f":"$D$4*$I$5*'Park Allocations'!K40","v":0},{"$f":"$D$4*$I$5*'Park Allocations'!L40","v":0},{"$f":"$D$4*$I$5*'Park Allocations'!M40","v":0},{"$f":"$D$4*$I$5*'Park Allocations'!N40","v":0},{"$f":"$D$4*$I$5*'Park Allocations'!O40","v":0},{"$f":"$D$4*$I$5*'Park Allocations'!P40","v":0},{"$f":"$D$4*$I$5*'Park Allocations'!Q40","v":0},{"$f":"$D$4*$I$5*'Park Allocations'!R40","v":0},{"$f":"$D$4*$I$5*'Park Allocations'!S40","v":0},{"$f":"$D$4*$I$5*'Park Allocations'!T40","v":0},{"$f":"$D$4*$I$5*'Park Allocations'!U40","v":0},{"$f":"$D$4*$I$5*'Park Allocations'!V40","v":0},{"$f":"$D$4*$I$5*'Park Allocations'!W40","v":0},{"$f":"$D$4*$I$5*'Park Allocations'!X40","v":0},{"$f":"$D$4*$I$5*'Park Allocations'!Y40","v":0},{"$f":"$D$4*$I$5*'Park Allocations'!Z40","v":0},{"$f":"$D$4*$I$5*'Park Allocations'!AA40","v":0},{"$f":"$D$4*$I$5*'Park Allocations'!AB40","v":0},{"$f":"$D$4*$I$5*'Park Allocations'!AC40","v":0},{"$f":"$D$4*$I$5*'Park Allocations'!AD40","v":0},{"$f":"$D$4*$I$5*'Park Allocations'!AE40","v":0},{"$f":"$D$4*$I$5*'Park Allocations'!AF40","v":0},{"$f":"$D$4*$I$5*'Park Allocations'!AG40","v":0},{"$f":"$D$4*$I$5*'Park Allocations'!AH40","v":0},{"$f":"$D$4*$I$5*'Park Allocations'!AI40","v":0},{"$f":"$D$4*$I$5*'Park Allocations'!AJ40","v":0},{"$f":"$D$4*$I$5*'Park Allocations'!AK40","v":0},{"$f":"$D$4*$I$5*'Park Allocations'!AL40","v":0}]
[null,"119 - Commission on African-American Affairs","119","Commission on African-American Affairs",54.706939301383784,54.706939301383784,2,3.5454872580452768E-5,0,1.8235770961691519E-4,{"$f":"$D$4*$I$5*'Park Allocations'!E41","v":0},{"$f":"$D$4*$I$5*'Park Allocations'!F41","v":0},{"$f":"$D$4*$I$5*'Park Allocations'!G41","v":0},{"$f":"$D$4*$I$5*'Park Allocations'!H41","v":0},{"$f":"$D$4*$I$5*'Park Allocations'!I41","v":0},{"$f":"$D$4*$I$5*'Park Allocations'!J41","v":0},{"$f":"$D$4*$I$5*'Park Allocations'!K41","v":0},{"$f":"$D$4*$I$5*'Park Allocations'!L41","v":0},{"$f":"$D$4*$I$5*'Park Allocations'!M41","v":0},{"$f":"$D$4*$I$5*'Park Allocations'!N41","v":0},{"$f":"$D$4*$I$5*'Park Allocations'!O41","v":0},{"$f":"$D$4*$I$5*'Park Allocations'!P41","v":0},{"$f":"$D$4*$I$5*'Park Allocations'!Q41","v":0},{"$f":"$D$4*$I$5*'Park Allocations'!R41","v":0},{"$f":"$D$4*$I$5*'Park Allocations'!S41","v":0},{"$f":"$D$4*$I$5*'Park Allocations'!T41","v":0},{"$f":"$D$4*$I$5*'Park Allocations'!U41","v":0},{"$f":"$D$4*$I$5*'Park Allocations'!V41","v":0},{"$f":"$D$4*$I$5*'Park Allocations'!W41","v":0},{"$f":"$D$4*$I$5*'Park Allocations'!X41","v":0},{"$f":"$D$4*$I$5*'Park Allocations'!Y41","v":0},{"$f":"$D$4*$I$5*'Park Allocations'!Z41","v":0},{"$f":"$D$4*$I$5*'Park Allocations'!AA41","v":0},{"$f":"$D$4*$I$5*'Park Allocations'!AB41","v":0},{"$f":"$D$4*$I$5*'Park Allocations'!AC41","v":0},{"$f":"$D$4*$I$5*'Park Allocations'!AD41","v":0},{"$f":"$D$4*$I$5*'Park Allocations'!AE41","v":0},{"$f":"$D$4*$I$5*'Park Allocations'!AF41","v":0},{"$f":"$D$4*$I$5*'Park Allocations'!AG41","v":0},{"$f":"$D$4*$I$5*'Park Allocations'!AH41","v":0},{"$f":"$D$4*$I$5*'Park Allocations'!AI41","v":0},{"$f":"$D$4*$I$5*'Park Allocations'!AJ41","v":0},{"$f":"$D$4*$I$5*'Park Allocations'!AK41","v":0},{"$f":"$D$4*$I$5*'Park Allocations'!AL41","v":0}]
[null,"120 - Human Rights Commission","120","Human Rights Commission",355.59510545899457,355.59510545899457,13,2.30456671772943E-4,0,0,{"$f":"$D$4*$I$5*'Park Allocations'!E42","v":0},{"$f":"$D$4*$I$5*'Park Allocations'!F42","v":0},{"$f":"$D$4*$I$5*'Park Allocations'!G42","v":0},{"$f":"$D$4*$I$5*'Park Allocations'!H42","v":0},{"$f":"$D$4*$I$5*'Park Allocations'!I42","v":0},{"$f":"$D$4*$I$5*'Park Allocations'!J42","v":0},{"$f":"$D$4*$I$5*'Park Allocations'!K42","v":0},{"$f":"$D$4*$I$5*'Park Allocations'!L42","v":0},{"$f":"$D$4*$I$5*'Park Allocations'!M42","v":0},{"$f":"$D$4*$I$5*'Park Allocations'!N42","v":0},{"$f":"$D$4*$I$5*'Park Allocations'!O42","v":0},{"$f":"$D$4*$I$5*'Park Allocations'!P42","v":0},{"$f":"$D$4*$I$5*'Park Allocations'!Q42","v":0},{"$f":"$D$4*$I$5*'Park Allocations'!R42","v":0},{"$f":"$D$4*$I$5*'Park Allocations'!S42","v":0},{"$f":"$D$4*$I$5*'Park Allocations'!T42","v":0},{"$f":"$D$4*$I$5*'Park Allocations'!U42","v":0},{"$f":"$D$4*$I$5*'Park Allocations'!V42","v":0},{"$f":"$D$4*$I$5*'Park Allocations'!W42","v":0},{"$f":"$D$4*$I$5*'Park Allocations'!X42","v":0},{"$f":"$D$4*$I$5*'Park Allocations'!Y42","v":0},{"$f":"$D$4*$I$5*'Park Allocations'!Z42","v":0},{"$f":"$D$4*$I$5*'Park Allocations'!AA42","v":0},{"$f":"$D$4*$I$5*'Park Allocations'!AB42","v":0},{"$f":"$D$4*$I$5*'Park Allocations'!AC42","v":0},{"$f":"$D$4*$I$5*'Park Allocations'!AD42","v":0},{"$f":"$D$4*$I$5*'Park Allocations'!AE42","v":0},{"$f":"$D$4*$I$5*'Park Allocations'!AF42","v":0},{"$f":"$D$4*$I$5*'Park Allocations'!AG42","v":0},{"$f":"$D$4*$I$5*'Park Allocations'!AH42","v":0},{"$f":"$D$4*$I$5*'Park Allocations'!AI42","v":0},{"$f":"$D$4*$I$5*'Park Allocations'!AJ42","v":0},{"$f":"$D$4*$I$5*'Park Allocations'!AK42","v":0},{"$f":"$D$4*$I$5*'Park Allocations'!AL42","v":0}]
[null,"124 - Department of Retirement Systems","124","Department of Retirement Systems",7330.7298663854272,7330.7298663854272,268,4.750952925780671E-3,0,0,{"$f":"$D$4*$I$5*'Park Allocations'!E43","v":0},{"$f":"$D$4*$I$5*'Park Allocations'!F43","v":0},{"$f":"$D$4*$I$5*'Park Allocations'!G43","v":0},{"$f":"$D$4*$I$5*'Park Allocations'!H43","v":0},{"$f":"$D$4*$I$5*'Park Allocations'!I43","v":0},{"$f":"$D$4*$I$5*'Park Allocations'!J43","v":0},{"$f":"$D$4*$I$5*'Park Allocations'!K43","v":0},{"$f":"$D$4*$I$5*'Park Allocations'!L43","v":0},{"$f":"$D$4*$I$5*'Park Allocations'!M43","v":0},{"$f":"$D$4*$I$5*'Park Allocations'!N43","v":0},{"$f":"$D$4*$I$5*'Park Allocations'!O43","v":0},{"$f":"$D$4*$I$5*'Park Allocations'!P43","v":0},{"$f":"$D$4*$I$5*'Park Allocations'!Q43","v":0},{"$f":"$D$4*$I$5*'Park Allocations'!R43","v":0},{"$f":"$D$4*$I$5*'Park Allocations'!S43","v":0},{"$f":"$D$4*$I$5*'Park Allocations'!T43","v":0},{"$f":"$D$4*$I$5*'Park Allocations'!U43","v":0},{"$f":"$D$4*$I$5*'Park Allocations'!V43","v":0},{"$f":"$D$4*$I$5*'Park Allocations'!W43","v":0},{"$f":"$D$4*$I$5*'Park Allocations'!X43","v":0},{"$f":"$D$4*$I$5*'Park Allocations'!Y43","v":0},{"$f":"$D$4*$I$5*'Park Allocations'!Z43","v":0},{"$f":"$D$4*$I$5*'Park Allocations'!AA43","v":0},{"$f":"$D$4*$I$5*'Park Allocations'!AB43","v":0},{"$f":"$D$4*$I$5*'Park Allocations'!AC43","v":0},{"$f":"$D$4*$I$5*'Park Allocations'!AD43","v":0},{"$f":"$D$4*$I$5*'Park Allocations'!AE43","v":0},{"$f":"$D$4*$I$5*'Park Allocations'!AF43","v":0},{"$f":"$D$4*$I$5*'Park Allocations'!AG43","v":0},{"$f":"$D$4*$I$5*'Park Allocations'!AH43","v":0},{"$f":"$D$4*$I$5*'Park Allocations'!AI43","v":0},{"$f":"$D$4*$I$5*'Park Allocations'!AJ43","v":0},{"$f":"$D$4*$I$5*'Park Allocations'!AK43","v":0},{"$f":"$D$4*$I$5*'Park Allocations'!AL43","v":0}]
[null,"126 - State Investment Board","126","State Investment Board",2434.4587989115785,2434.4587989115785,89,1.5777418298301483E-3,0,0,{"$f":"$D$4*$I$5*'Park Allocations'!E44","v":0},{"$f":"$D$4*$I$5*'Park Allocations'!F44","v":0},{"$f":"$D$4*$I$5*'Park Allocations'!G44","v":0},{"$f":"$D$4*$I$5*'Park Allocations'!H44","v":0},{"$f":"$D$4*$I$5*'Park Allocations'!I44","v":0},{"$f":"$D$4*$I$5*'Park Allocations'!J44","v":0},{"$f":"$D$4*$I$5*'Park Allocations'!K44","v":0},{"$f":"$D$4*$I$5*'Park Allocations'!L44","v":0},{"$f":"$D$4*$I$5*'Park Allocations'!M44","v":0},{"$f":"$D$4*$I$5*'Park Allocations'!N44","v":0},{"$f":"$D$4*$I$5*'Park Allocations'!O44","v":0},{"$f":"$D$4*$I$5*'Park Allocations'!P44","v":0},{"$f":"$D$4*$I$5*'Park Allocations'!Q44","v":0},{"$f":"$D$4*$I$5*'Park Allocations'!R44","v":0},{"$f":"$D$4*$I$5*'Park Allocations'!S44","v":0},{"$f":"$D$4*$I$5*'Park Allocations'!T44","v":0},{"$f":"$D$4*$I$5*'Park Allocations'!U44","v":0},{"$f":"$D$4*$I$5*'Park Allocations'!V44","v":0},{"$f":"$D$4*$I$5*'Park Allocations'!W44","v":0},{"$f":"$D$4*$I$5*'Park Allocations'!X44","v":0},{"$f":"$D$4*$I$5*'Park Allocations'!Y44","v":0},{"$f":"$D$4*$I$5*'Park Allocations'!Z44","v":0},{"$f":"$D$4*$I$5*'Park Allocations'!AA44","v":0},{"$f":"$D$4*$I$5*'Park Allocations'!AB44","v":0},{"$f":"$D$4*$I$5*'Park Allocations'!AC44","v":0},{"$f":"$D$4*$I$5*'Park Allocations'!AD44","v":0},{"$f":"$D$4*$I$5*'Park Allocations'!AE44","v":0},{"$f":"$D$4*$I$5*'Park Allocations'!AF44","v":0},{"$f":"$D$4*$I$5*'Park Allocations'!AG44","v":0},{"$f":"$D$4*$I$5*'Park Allocations'!AH44","v":0},{"$f":"$D$4*$I$5*'Park Allocations'!AI44","v":0},{"$f":"$D$4*$I$5*'Park Allocations'!AJ44","v":0},{"$f":"$D$4*$I$5*'Park Allocations'!AK44","v":0},{"$f":"$D$4*$I$5*'Park Allocations'!AL44","v":0}]
[null,"140 - Department of Revenue","140","Department of Revenue",20268.921011162693,20268.921011162693,741,1.3136030291057751E-2,0,0,{"$f":"$D$4*$I$5*'Park Allocations'!E45","v":0},{"$f":"$D$4*$I$5*'Park Allocations'!F45","v":0},{"$f":"$D$4*$I$5*'Park Allocations'!G45","v":0},{"$f":"$D$4*$I$5*'Park Allocations'!H45","v":0},{"$f":"$D$4*$I$5*'Park Allocations'!I45","v":0},{"$f":"$D$4*$I$5*'Park Allocations'!J45","v":0},{"$f":"$D$4*$I$5*'Park Allocations'!K45","v":0},{"$f":"$D$4*$I$5*'Park Allocations'!L45","v":0},{"$f":"$D$4*$I$5*'Park Allocations'!M45","v":0},{"$f":"$D$4*$I$5*'Park Allocations'!N45","v":0},{"$f":"$D$4*$I$5*'Park Allocations'!O45","v":0},{"$f":"$D$4*$I$5*'Park Allocations'!P45","v":0},{"$f":"$D$4*$I$5*'Park Allocations'!Q45","v":0},{"$f":"$D$4*$I$5*'Park Allocations'!R45","v":0},{"$f":"$D$4*$I$5*'Park Allocations'!S45","v":0},{"$f":"$D$4*$I$5*'Park Allocations'!T45","v":0},{"$f":"$D$4*$I$5*'Park Allocations'!U45","v":0},{"$f":"$D$4*$I$5*'Park Allocations'!V45","v":0},{"$f":"$D$4*$I$5*'Park Allocations'!W45","v":0},{"$f":"$D$4*$I$5*'Park Allocations'!X45","v":0},{"$f":"$D$4*$I$5*'Park Allocations'!Y45","v":0},{"$f":"$D$4*$I$5*'Park Allocations'!Z45","v":0},{"$f":"$D$4*$I$5*'Park Allocations'!AA45","v":0},{"$f":"$D$4*$I$5*'Park Allocations'!AB45","v":0},{"$f":"$D$4*$I$5*'Park Allocations'!AC45","v":0},{"$f":"$D$4*$I$5*'Park Allocations'!AD45","v":0},{"$f":"$D$4*$I$5*'Park Allocations'!AE45","v":0},{"$f":"$D$4*$I$5*'Park Allocations'!AF45","v":0},{"$f":"$D$4*$I$5*'Park Allocations'!AG45","v":0},{"$f":"$D$4*$I$5*'Park Allocations'!AH45","v":0},{"$f":"$D$4*$I$5*'Park Allocations'!AI45","v":0},{"$f":"$D$4*$I$5*'Park Allocations'!AJ45","v":0},{"$f":"$D$4*$I$5*'Park Allocations'!AK45","v":0},{"$f":"$D$4*$I$5*'Park Allocations'!AL45","v":0}]
[null,"142 - Board of Tax Appeals","142","Board of Tax Appeals",410.30204476037841,410.30204476037841,15,2.6591154435339577E-4,0,9.8680243790381667E-4,{"$f":"$D$4*$I$5*'Park Allocations'!E46","v":0},{"$f":"$D$4*$I$5*'Park Allocations'!F46","v":0},{"$f":"$D$4*$I$5*'Park Allocations'!G46","v":0},{"$f":"$D$4*$I$5*'Park Allocations'!H46","v":0},{"$f":"$D$4*$I$5*'Park Allocations'!I46","v":0},{"$f":"$D$4*$I$5*'Park Allocations'!J46","v":0},{"$f":"$D$4*$I$5*'Park Allocations'!K46","v":0},{"$f":"$D$4*$I$5*'Park Allocations'!L46","v":0},{"$f":"$D$4*$I$5*'Park Allocations'!M46","v":0},{"$f":"$D$4*$I$5*'Park Allocations'!N46","v":0},{"$f":"$D$4*$I$5*'Park Allocations'!O46","v":0},{"$f":"$D$4*$I$5*'Park Allocations'!P46","v":0},{"$f":"$D$4*$I$5*'Park Allocations'!Q46","v":0},{"$f":"$D$4*$I$5*'Park Allocations'!R46","v":0},{"$f":"$D$4*$I$5*'Park Allocations'!S46","v":0},{"$f":"$D$4*$I$5*'Park Allocations'!T46","v":0},{"$f":"$D$4*$I$5*'Park Allocations'!U46","v":0},{"$f":"$D$4*$I$5*'Park Allocations'!V46","v":0},{"$f":"$D$4*$I$5*'Park Allocations'!W46","v":0},{"$f":"$D$4*$I$5*'Park Allocations'!X46","v":0},{"$f":"$D$4*$I$5*'Park Allocations'!Y46","v":0},{"$f":"$D$4*$I$5*'Park Allocations'!Z46","v":0},{"$f":"$D$4*$I$5*'Park Allocations'!AA46","v":0},{"$f":"$D$4*$I$5*'Park Allocations'!AB46","v":0},{"$f":"$D$4*$I$5*'Park Allocations'!AC46","v":0},{"$f":"$D$4*$I$5*'Park Allocations'!AD46","v":0},{"$f":"$D$4*$I$5*'Park Allocations'!AE46","v":0},{"$f":"$D$4*$I$5*'Park Allocations'!AF46","v":0},{"$f":"$D$4*$I$5*'Park Allocations'!AG46","v":0},{"$f":"$D$4*$I$5*'Park Allocations'!AH46","v":0},{"$f":"$D$4*$I$5*'Park Allocations'!AI46","v":0},{"$f":"$D$4*$I$5*'Park Allocations'!AJ46","v":0},{"$f":"$D$4*$I$5*'Park Allocations'!AK46","v":0},{"$f":"$D$4*$I$5*'Park Allocations'!AL46","v":0}]
[null,"147 - Office of Minority and Women's Business Enterprises","147","Office of Minority and Women's Business Enterprises",656.48327161660541,656.48327161660541,24,4.2545847096543324E-4,0,1.0182871409547096E-3,{"$f":"$D$4*$I$5*'Park Allocations'!E47","v":0},{"$f":"$D$4*$I$5*'Park Allocations'!F47","v":0},{"$f":"$D$4*$I$5*'Park Allocations'!G47","v":0},{"$f":"$D$4*$I$5*'Park Allocations'!H47","v":0},{"$f":"$D$4*$I$5*'Park Allocations'!I47","v":0},{"$f":"$D$4*$I$5*'Park Allocations'!J47","v":0},{"$f":"$D$4*$I$5*'Park Allocations'!K47","v":0},{"$f":"$D$4*$I$5*'Park Allocations'!L47","v":0},{"$f":"$D$4*$I$5*'Park Allocations'!M47","v":0},{"$f":"$D$4*$I$5*'Park Allocations'!N47","v":0},{"$f":"$D$4*$I$5*'Park Allocations'!O47","v":0},{"$f":"$D$4*$I$5*'Park Allocations'!P47","v":0},{"$f":"$D$4*$I$5*'Park Allocations'!Q47","v":0},{"$f":"$D$4*$I$5*'Park Allocations'!R47","v":0},{"$f":"$D$4*$I$5*'Park Allocations'!S47","v":0},{"$f":"$D$4*$I$5*'Park Allocations'!T47","v":0},{"$f":"$D$4*$I$5*'Park Allocations'!U47","v":0},{"$f":"$D$4*$I$5*'Park Allocations'!V47","v":0},{"$f":"$D$4*$I$5*'Park Allocations'!W47","v":0},{"$f":"$D$4*$I$5*'Park Allocations'!X47","v":0},{"$f":"$D$4*$I$5*'Park Allocations'!Y47","v":0},{"$f":"$D$4*$I$5*'Park Allocations'!Z47","v":0},{"$f":"$D$4*$I$5*'Park Allocations'!AA47","v":0},{"$f":"$D$4*$I$5*'Park Allocations'!AB47","v":0},{"$f":"$D$4*$I$5*'Park Allocations'!AC47","v":0},{"$f":"$D$4*$I$5*'Park Allocations'!AD47","v":0},{"$f":"$D$4*$I$5*'Park Allocations'!AE47","v":0},{"$f":"$D$4*$I$5*'Park Allocations'!AF47","v":0},{"$f":"$D$4*$I$5*'Park Allocations'!AG47","v":0},{"$f":"$D$4*$I$5*'Park Allocations'!AH47","v":0},{"$f":"$D$4*$I$5*'Park Allocations'!AI47","v":0},{"$f":"$D$4*$I$5*'Park Allocations'!AJ47","v":0},{"$f":"$D$4*$I$5*'Park Allocations'!AK47","v":0},{"$f":"$D$4*$I$5*'Park Allocations'!AL47","v":0}]
[null,"160 - Office of Insurance Commissioner","160","Office of Insurance Commissioner",6121.937561826373,5689.5216873439131,208,3.6873067483670879E-3,2.8024323654956987E-4,1.6602310635899405E-3,{"$f":"$D$4*$I$5*'Park Allocations'!E48","v":0},{"$f":"$D$4*$I$5*'Park Allocations'!F48","v":0},{"$f":"$D$4*$I$5*'Park Allocations'!G48","v":0},{"$f":"$D$4*$I$5*'Park Allocations'!H48","v":0},{"$f":"$D$4*$I$5*'Park Allocations'!I48","v":0},{"$f":"$D$4*$I$5*'Park Allocations'!J48","v":0},{"$f":"$D$4*$I$5*'Park Allocations'!K48","v":0},{"$f":"$D$4*$I$5*'Park Allocations'!L48","v":0},{"$f":"$D$4*$I$5*'Park Allocations'!M48","v":0},{"$f":"$D$4*$I$5*'Park Allocations'!N48","v":0},{"$f":"$D$4*$I$5*'Park Allocations'!O48","v":432.41587448245946},{"$f":"$D$4*$I$5*'Park Allocations'!P48","v":0},{"$f":"$D$4*$I$5*'Park Allocations'!Q48","v":0},{"$f":"$D$4*$I$5*'Park Allocations'!R48","v":0},{"$f":"$D$4*$I$5*'Park Allocations'!S48","v":0},{"$f":"$D$4*$I$5*'Park Allocations'!T48","v":0},{"$f":"$D$4*$I$5*'Park Allocations'!U48","v":0},{"$f":"$D$4*$I$5*'Park Allocations'!V48","v":0},{"$f":"$D$4*$I$5*'Park Allocations'!W48","v":0},{"$f":"$D$4*$I$5*'Park Allocations'!X48","v":0},{"$f":"$D$4*$I$5*'Park Allocations'!Y48","v":0},{"$f":"$D$4*$I$5*'Park Allocations'!Z48","v":0},{"$f":"$D$4*$I$5*'Park Allocations'!AA48","v":0},{"$f":"$D$4*$I$5*'Park Allocations'!AB48","v":0},{"$f":"$D$4*$I$5*'Park Allocations'!AC48","v":0},{"$f":"$D$4*$I$5*'Park Allocations'!AD48","v":0},{"$f":"$D$4*$I$5*'Park Allocations'!AE48","v":0},{"$f":"$D$4*$I$5*'Park Allocations'!AF48","v":0},{"$f":"$D$4*$I$5*'Park Allocations'!AG48","v":0},{"$f":"$D$4*$I$5*'Park Allocations'!AH48","v":0},{"$f":"$D$4*$I$5*'Park Allocations'!AI48","v":0},{"$f":"$D$4*$I$5*'Park Allocations'!AJ48","v":0},{"$f":"$D$4*$I$5*'Park Allocations'!AK48","v":0},{"$f":"$D$4*$I$5*'Park Allocations'!AL48","v":0}]
[null,"163 - Consolidated Technology Services","163","Consolidated Technology Services",7923.2190383000479,7905.152729049958,289,5.1232290878754257E-3,1.1708545581982318E-5,9.314246417114737E-5,{"$f":"$D$4*$I$5*'Park Allocations'!E49","v":0},{"$f":"$D$4*$I$5*'Park Allocations'!F49","v":0},{"$f":"$D$4*$I$5*'Park Allocations'!G49","v":0},{"$f":"$D$4*$I$5*'Park Allocations'!H49","v":0},{"$f":"$D$4*$I$5*'Park Allocations'!I49","v":0},{"$f":"$D$4*$I$5*'Park Allocations'!J49","v":18.06630925008988},{"$f":"$D$4*$I$5*'Park Allocations'!K49","v":0},{"$f":"$D$4*$I$5*'Park Allocations'!L49","v":0},{"$f":"$D$4*$I$5*'Park Allocations'!M49","v":0},{"$f":"$D$4*$I$5*'Park Allocations'!N49","v":0},{"$f":"$D$4*$I$5*'Park Allocations'!O49","v":0},{"$f":"$D$4*$I$5*'Park Allocations'!P49","v":0},{"$f":"$D$4*$I$5*'Park Allocations'!Q49","v":0},{"$f":"$D$4*$I$5*'Park Allocations'!R49","v":0},{"$f":"$D$4*$I$5*'Park Allocations'!S49","v":0},{"$f":"$D$4*$I$5*'Park Allocations'!T49","v":0},{"$f":"$D$4*$I$5*'Park Allocations'!U49","v":0},{"$f":"$D$4*$I$5*'Park Allocations'!V49","v":0},{"$f":"$D$4*$I$5*'Park Allocations'!W49","v":0},{"$f":"$D$4*$I$5*'Park Allocations'!X49","v":0},{"$f":"$D$4*$I$5*'Park Allocations'!Y49","v":0},{"$f":"$D$4*$I$5*'Park Allocations'!Z49","v":0},{"$f":"$D$4*$I$5*'Park Allocations'!AA49","v":0},{"$f":"$D$4*$I$5*'Park Allocations'!AB49","v":0},{"$f":"$D$4*$I$5*'Park Allocations'!AC49","v":0},{"$f":"$D$4*$I$5*'Park Allocations'!AD49","v":0},{"$f":"$D$4*$I$5*'Park Allocations'!AE49","v":0},{"$f":"$D$4*$I$5*'Park Allocations'!AF49","v":0},{"$f":"$D$4*$I$5*'Park Allocations'!AG49","v":0},{"$f":"$D$4*$I$5*'Park Allocations'!AH49","v":0},{"$f":"$D$4*$I$5*'Park Allocations'!AI49","v":0},{"$f":"$D$4*$I$5*'Park Allocations'!AJ49","v":0},{"$f":"$D$4*$I$5*'Park Allocations'!AK49","v":0},{"$f":"$D$4*$I$5*'Park Allocations'!AL49","v":0}]
[null,"165 - Board of Accountancy","165","Board of Accountancy",273.53469650691898,273.53469650691898,10,1.7727436290226387E-4,0,0,{"$f":"$D$4*$I$5*'Park Allocations'!E50","v":0},{"$f":"$D$4*$I$5*'Park Allocations'!F50","v":0},{"$f":"$D$4*$I$5*'Park Allocations'!G50","v":0},{"$f":"$D$4*$I$5*'Park Allocations'!H50","v":0},{"$f":"$D$4*$I$5*'Park Allocations'!I50","v":0},{"$f":"$D$4*$I$5*'Park Allocations'!J50","v":0},{"$f":"$D$4*$I$5*'Park Allocations'!K50","v":0},{"$f":"$D$4*$I$5*'Park Allocations'!L50","v":0},{"$f":"$D$4*$I$5*'Park Allocations'!M50","v":0},{"$f":"$D$4*$I$5*'Park Allocations'!N50","v":0},{"$f":"$D$4*$I$5*'Park Allocations'!O50","v":0},{"$f":"$D$4*$I$5*'Park Allocations'!P50","v":0},{"$f":"$D$4*$I$5*'Park Allocations'!Q50","v":0},{"$f":"$D$4*$I$5*'Park Allocations'!R50","v":0},{"$f":"$D$4*$I$5*'Park Allocations'!S50","v":0},{"$f":"$D$4*$I$5*'Park Allocations'!T50","v":0},{"$f":"$D$4*$I$5*'Park Allocations'!U50","v":0},{"$f":"$D$4*$I$5*'Park Allocations'!V50","v":0},{"$f":"$D$4*$I$5*'Park Allocations'!W50","v":0},{"$f":"$D$4*$I$5*'Park Allocations'!X50","v":0},{"$f":"$D$4*$I$5*'Park Allocations'!Y50","v":0},{"$f":"$D$4*$I$5*'Park Allocations'!Z50","v":0},{"$f":"$D$4*$I$5*'Park Allocations'!AA50","v":0},{"$f":"$D$4*$I$5*'Park Allocations'!AB50","v":0},{"$f":"$D$4*$I$5*'Park Allocations'!AC50","v":0},{"$f":"$D$4*$I$5*'Park Allocations'!AD50","v":0},{"$f":"$D$4*$I$5*'Park Allocations'!AE50","v":0},{"$f":"$D$4*$I$5*'Park Allocations'!AF50","v":0},{"$f":"$D$4*$I$5*'Park Allocations'!AG50","v":0},{"$f":"$D$4*$I$5*'Park Allocations'!AH50","v":0},{"$f":"$D$4*$I$5*'Park Allocations'!AI50","v":0},{"$f":"$D$4*$I$5*'Park Allocations'!AJ50","v":0},{"$f":"$D$4*$I$5*'Park Allocations'!AK50","v":0},{"$f":"$D$4*$I$5*'Park Allocations'!AL50","v":0}]
[null,"166 - Brd Prof Eng Land Surveyors","166","Brd Prof Eng Land Surveyors",218.82775720553514,218.82775720553514,8,1.4181949032181107E-4,0,0,{"$f":"$D$4*$I$5*'Park Allocations'!E51","v":0},{"$f":"$D$4*$I$5*'Park Allocations'!F51","v":0},{"$f":"$D$4*$I$5*'Park Allocations'!G51","v":0},{"$f":"$D$4*$I$5*'Park Allocations'!H51","v":0},{"$f":"$D$4*$I$5*'Park Allocations'!I51","v":0},{"$f":"$D$4*$I$5*'Park Allocations'!J51","v":0},{"$f":"$D$4*$I$5*'Park Allocations'!K51","v":0},{"$f":"$D$4*$I$5*'Park Allocations'!L51","v":0},{"$f":"$D$4*$I$5*'Park Allocations'!M51","v":0},{"$f":"$D$4*$I$5*'Park Allocations'!N51","v":0},{"$f":"$D$4*$I$5*'Park Allocations'!O51","v":0},{"$f":"$D$4*$I$5*'Park Allocations'!P51","v":0},{"$f":"$D$4*$I$5*'Park Allocations'!Q51","v":0},{"$f":"$D$4*$I$5*'Park Allocations'!R51","v":0},{"$f":"$D$4*$I$5*'Park Allocations'!S51","v":0},{"$f":"$D$4*$I$5*'Park Allocations'!T51","v":0},{"$f":"$D$4*$I$5*'Park Allocations'!U51","v":0},{"$f":"$D$4*$I$5*'Park Allocations'!V51","v":0},{"$f":"$D$4*$I$5*'Park Allocations'!W51","v":0},{"$f":"$D$4*$I$5*'Park Allocations'!X51","v":0},{"$f":"$D$4*$I$5*'Park Allocations'!Y51","v":0},{"$f":"$D$4*$I$5*'Park Allocations'!Z51","v":0},{"$f":"$D$4*$I$5*'Park Allocations'!AA51","v":0},{"$f":"$D$4*$I$5*'Park Allocations'!AB51","v":0},{"$f":"$D$4*$I$5*'Park Allocations'!AC51","v":0},{"$f":"$D$4*$I$5*'Park Allocations'!AD51","v":0},{"$f":"$D$4*$I$5*'Park Allocations'!AE51","v":0},{"$f":"$D$4*$I$5*'Park Allocations'!AF51","v":0},{"$f":"$D$4*$I$5*'Park Allocations'!AG51","v":0},{"$f":"$D$4*$I$5*'Park Allocations'!AH51","v":0},{"$f":"$D$4*$I$5*'Park Allocations'!AI51","v":0},{"$f":"$D$4*$I$5*'Park Allocations'!AJ51","v":0},{"$f":"$D$4*$I$5*'Park Allocations'!AK51","v":0},{"$f":"$D$4*$I$5*'Park Allocations'!AL51","v":0}]
[null,"167 - Forensic Investigations Council","167","Forensic Investigations Council",0,0,0,0,0,0,{"$f":"$D$4*$I$5*'Park Allocations'!E52","v":0},{"$f":"$D$4*$I$5*'Park Allocations'!F52","v":0},{"$f":"$D$4*$I$5*'Park Allocations'!G52","v":0},{"$f":"$D$4*$I$5*'Park Allocations'!H52","v":0},{"$f":"$D$4*$I$5*'Park Allocations'!I52","v":0},{"$f":"$D$4*$I$5*'Park Allocations'!J52","v":0},{"$f":"$D$4*$I$5*'Park Allocations'!K52","v":0},{"$f":"$D$4*$I$5*'Park Allocations'!L52","v":0},{"$f":"$D$4*$I$5*'Park Allocations'!M52","v":0},{"$f":"$D$4*$I$5*'Park Allocations'!N52","v":0},{"$f":"$D$4*$I$5*'Park Allocations'!O52","v":0},{"$f":"$D$4*$I$5*'Park Allocations'!P52","v":0},{"$f":"$D$4*$I$5*'Park Allocations'!Q52","v":0},{"$f":"$D$4*$I$5*'Park Allocations'!R52","v":0},{"$f":"$D$4*$I$5*'Park Allocations'!S52","v":0},{"$f":"$D$4*$I$5*'Park Allocations'!T52","v":0},{"$f":"$D$4*$I$5*'Park Allocations'!U52","v":0},{"$f":"$D$4*$I$5*'Park Allocations'!V52","v":0},{"$f":"$D$4*$I$5*'Park Allocations'!W52","v":0},{"$f":"$D$4*$I$5*'Park Allocations'!X52","v":0},{"$f":"$D$4*$I$5*'Park Allocations'!Y52","v":0},{"$f":"$D$4*$I$5*'Park Allocations'!Z52","v":0},{"$f":"$D$4*$I$5*'Park Allocations'!AA52","v":0},{"$f":"$D$4*$I$5*'Park Allocations'!AB52","v":0},{"$f":"$D$4*$I$5*'Park Allocations'!AC52","v":0},{"$f":"$D$4*$I$5*'Park Allocations'!AD52","v":0},{"$f":"$D$4*$I$5*'Park Allocations'!AE52","v":0},{"$f":"$D$4*$I$5*'Park Allocations'!AF52","v":0},{"$f":"$D$4*$I$5*'Park Allocations'!AG52","v":0},{"$f":"$D$4*$I$5*'Park Allocations'!AH52","v":0},{"$f":"$D$4*$I$5*'Park Allocations'!AI52","v":0},{"$f":"$D$4*$I$5*'Park Allocations'!AJ52","v":0},{"$f":"$D$4*$I$5*'Park Allocations'!AK52","v":0},{"$f":"$D$4*$I$5*'Park Allocations'!AL52","v":0}]
[null,"179 - Department of Enterprise Services","179","Department of Enterprise Services",22499.065097773087,20815.990404176529,761,1.3490579016862278E-2,1.0907793337899484E-3,9.5914625638319501E-3,{"$f":"$D$4*$I$5*'Park Allocations'!E53","v":0},{"$f":"$D$4*$I$5*'Park Allocations'!F53","v":0},{"$f":"$D$4*$I$5*'Park Allocations'!G53","v":427.96116809202636},{"$f":"$D$4*$I$5*'Park Allocations'!H53","v":0},{"$f":"$D$4*$I$5*'Park Allocations'!I53","v":0},{"$f":"$D$4*$I$5*'Park Allocations'!J53","v":1255.1135255045317},{"$f":"$D$4*$I$5*'Park Allocations'!K53","v":0},{"$f":"$D$4*$I$5*'Park Allocations'!L53","v":0},{"$f":"$D$4*$I$5*'Park Allocations'!M53","v":0},{"$f":"$D$4*$I$5*'Park Allocations'!N53","v":0},{"$f":"$D$4*$I$5*'Park Allocations'!O53","v":0},{"$f":"$D$4*$I$5*'Park Allocations'!P53","v":0},{"$f":"$D$4*$I$5*'Park Allocations'!Q53","v":0},{"$f":"$D$4*$I$5*'Park Allocations'!R53","v":0},{"$f":"$D$4*$I$5*'Park Allocations'!S53","v":0},{"$f":"$D$4*$I$5*'Park Allocations'!T53","v":0},{"$f":"$D$4*$I$5*'Park Allocations'!U53","v":0},{"$f":"$D$4*$I$5*'Park Allocations'!V53","v":0},{"$f":"$D$4*$I$5*'Park Allocations'!W53","v":0},{"$f":"$D$4*$I$5*'Park Allocations'!X53","v":0},{"$f":"$D$4*$I$5*'Park Allocations'!Y53","v":0},{"$f":"$D$4*$I$5*'Park Allocations'!Z53","v":0},{"$f":"$D$4*$I$5*'Park Allocations'!AA53","v":0},{"$f":"$D$4*$I$5*'Park Allocations'!AB53","v":0},{"$f":"$D$4*$I$5*'Park Allocations'!AC53","v":0},{"$f":"$D$4*$I$5*'Park Allocations'!AD53","v":0},{"$f":"$D$4*$I$5*'Park Allocations'!AE53","v":0},{"$f":"$D$4*$I$5*'Park Allocations'!AF53","v":0},{"$f":"$D$4*$I$5*'Park Allocations'!AG53","v":0},{"$f":"$D$4*$I$5*'Park Allocations'!AH53","v":0},{"$f":"$D$4*$I$5*'Park Allocations'!AI53","v":0},{"$f":"$D$4*$I$5*'Park Allocations'!AJ53","v":0},{"$f":"$D$4*$I$5*'Park Allocations'!AK53","v":0},{"$f":"$D$4*$I$5*'Park Allocations'!AL53","v":0}]
[null,"185 - Horse Racing Commission","185","Horse Racing Commission",82.060408952075676,82.060408952075676,3,5.3182308870679155E-5,0,0,{"$f":"$D$4*$I$5*'Park Allocations'!E54","v":0},{"$f":"$D$4*$I$5*'Park Allocations'!F54","v":0},{"$f":"$D$4*$I$5*'Park Allocations'!G54","v":0},{"$f":"$D$4*$I$5*'Park Allocations'!H54","v":0},{"$f":"$D$4*$I$5*'Park Allocations'!I54","v":0},{"$f":"$D$4*$I$5*'Park Allocations'!J54","v":0},{"$f":"$D$4*$I$5*'Park Allocations'!K54","v":0},{"$f":"$D$4*$I$5*'Park Allocations'!L54","v":0},{"$f":"$D$4*$I$5*'Park Allocations'!M54","v":0},{"$f":"$D$4*$I$5*'Park Allocations'!N54","v":0},{"$f":"$D$4*$I$5*'Park Allocations'!O54","v":0},{"$f":"$D$4*$I$5*'Park Allocations'!P54","v":0},{"$f":"$D$4*$I$5*'Park Allocations'!Q54","v":0},{"$f":"$D$4*$I$5*'Park Allocations'!R54","v":0},{"$f":"$D$4*$I$5*'Park Allocations'!S54","v":0},{"$f":"$D$4*$I$5*'Park Allocations'!T54","v":0},{"$f":"$D$4*$I$5*'Park Allocations'!U54","v":0},{"$f":"$D$4*$I$5*'Park Allocations'!V54","v":0},{"$f":"$D$4*$I$5*'Park Allocations'!W54","v":0},{"$f":"$D$4*$I$5*'Park Allocations'!X54","v":0},{"$f":"$D$4*$I$5*'Park Allocations'!Y54","v":0},{"$f":"$D$4*$I$5*'Park Allocations'!Z54","v":0},{"$f":"$D$4*$I$5*'Park Allocations'!AA54","v":0},{"$f":"$D$4*$I$5*'Park Allocations'!AB54","v":0},{"$f":"$D$4*$I$5*'Park Allocations'!AC54","v":0},{"$f":"$D$4*$I$5*'Park Allocations'!AD54","v":0},{"$f":"$D$4*$I$5*'Park Allocations'!AE54","v":0},{"$f":"$D$4*$I$5*'Park Allocations'!AF54","v":0},{"$f":"$D$4*$I$5*'Park Allocations'!AG54","v":0},{"$f":"$D$4*$I$5*'Park Allocations'!AH54","v":0},{"$f":"$D$4*$I$5*'Park Allocations'!AI54","v":0},{"$f":"$D$4*$I$5*'Park Allocations'!AJ54","v":0},{"$f":"$D$4*$I$5*'Park Allocations'!AK54","v":0},{"$f":"$D$4*$I$5*'Park Allocations'!AL54","v":0}]
[null,"190 - Board of Industrial Insurance Appeals","190","Board of Industrial Insurance Appeals",2762.7004347198813,2762.7004347198813,101,1.790471065312865E-3,0,0,{"$f":"$D$4*$I$5*'Park Allocations'!E55","v":0},{"$f":"$D$4*$I$5*'Park Allocations'!F55","v":0},{"$f":"$D$4*$I$5*'Park Allocations'!G55","v":0},{"$f":"$D$4*$I$5*'Park Allocations'!H55","v":0},{"$f":"$D$4*$I$5*'Park Allocations'!I55","v":0},{"$f":"$D$4*$I$5*'Park Allocations'!J55","v":0},{"$f":"$D$4*$I$5*'Park Allocations'!K55","v":0},{"$f":"$D$4*$I$5*'Park Allocations'!L55","v":0},{"$f":"$D$4*$I$5*'Park Allocations'!M55","v":0},{"$f":"$D$4*$I$5*'Park Allocations'!N55","v":0},{"$f":"$D$4*$I$5*'Park Allocations'!O55","v":0},{"$f":"$D$4*$I$5*'Park Allocations'!P55","v":0},{"$f":"$D$4*$I$5*'Park Allocations'!Q55","v":0},{"$f":"$D$4*$I$5*'Park Allocations'!R55","v":0},{"$f":"$D$4*$I$5*'Park Allocations'!S55","v":0},{"$f":"$D$4*$I$5*'Park Allocations'!T55","v":0},{"$f":"$D$4*$I$5*'Park Allocations'!U55","v":0},{"$f":"$D$4*$I$5*'Park Allocations'!V55","v":0},{"$f":"$D$4*$I$5*'Park Allocations'!W55","v":0},{"$f":"$D$4*$I$5*'Park Allocations'!X55","v":0},{"$f":"$D$4*$I$5*'Park Allocations'!Y55","v":0},{"$f":"$D$4*$I$5*'Park Allocations'!Z55","v":0},{"$f":"$D$4*$I$5*'Park Allocations'!AA55","v":0},{"$f":"$D$4*$I$5*'Park Allocations'!AB55","v":0},{"$f":"$D$4*$I$5*'Park Allocations'!AC55","v":0},{"$f":"$D$4*$I$5*'Park Allocations'!AD55","v":0},{"$f":"$D$4*$I$5*'Park Allocations'!AE55","v":0},{"$f":"$D$4*$I$5*'Park Allocations'!AF55","v":0},{"$f":"$D$4*$I$5*'Park Allocations'!AG55","v":0},{"$f":"$D$4*$I$5*'Park Allocations'!AH55","v":0},{"$f":"$D$4*$I$5*'Park Allocations'!AI55","v":0},{"$f":"$D$4*$I$5*'Park Allocations'!AJ55","v":0},{"$f":"$D$4*$I$5*'Park Allocations'!AK55","v":0},{"$f":"$D$4*$I$5*'Park Allocations'!AL55","v":0}]
[null,"195 - Liquor Control Board","195","Liquor Control Board",6154.530671405676,6154.530671405676,225,3.9886731653009369E-3,0,0,{"$f":"$D$4*$I$5*'Park Allocations'!E56","v":0},{"$f":"$D$4*$I$5*'Park Allocations'!F56","v":0},{"$f":"$D$4*$I$5*'Park Allocations'!G56","v":0},{"$f":"$D$4*$I$5*'Park Allocations'!H56","v":0},{"$f":"$D$4*$I$5*'Park Allocations'!I56","v":0},{"$f":"$D$4*$I$5*'Park Allocations'!J56","v":0},{"$f":"$D$4*$I$5*'Park Allocations'!K56","v":0},{"$f":"$D$4*$I$5*'Park Allocations'!L56","v":0},{"$f":"$D$4*$I$5*'Park Allocations'!M56","v":0},{"$f":"$D$4*$I$5*'Park Allocations'!N56","v":0},{"$f":"$D$4*$I$5*'Park Allocations'!O56","v":0},{"$f":"$D$4*$I$5*'Park Allocations'!P56","v":0},{"$f":"$D$4*$I$5*'Park Allocations'!Q56","v":0},{"$f":"$D$4*$I$5*'Park Allocations'!R56","v":0},{"$f":"$D$4*$I$5*'Park Allocations'!S56","v":0},{"$f":"$D$4*$I$5*'Park Allocations'!T56","v":0},{"$f":"$D$4*$I$5*'Park Allocations'!U56","v":0},{"$f":"$D$4*$I$5*'Park Allocations'!V56","v":0},{"$f":"$D$4*$I$5*'Park Allocations'!W56","v":0},{"$f":"$D$4*$I$5*'Park Allocations'!X56","v":0},{"$f":"$D$4*$I$5*'Park Allocations'!Y56","v":0},{"$f":"$D$4*$I$5*'Park Allocations'!Z56","v":0},{"$f":"$D$4*$I$5*'Park Allocations'!AA56","v":0},{"$f":"$D$4*$I$5*'Park Allocations'!AB56","v":0},{"$f":"$D$4*$I$5*'Park Allocations'!AC56","v":0},{"$f":"$D$4*$I$5*'Park Allocations'!AD56","v":0},{"$f":"$D$4*$I$5*'Park Allocations'!AE56","v":0},{"$f":"$D$4*$I$5*'Park Allocations'!AF56","v":0},{"$f":"$D$4*$I$5*'Park Allocations'!AG56","v":0},{"$f":"$D$4*$I$5*'Park Allocations'!AH56","v":0},{"$f":"$D$4*$I$5*'Park Allocations'!AI56","v":0},{"$f":"$D$4*$I$5*'Park Allocations'!AJ56","v":0},{"$f":"$D$4*$I$5*'Park Allocations'!AK56","v":0},{"$f":"$D$4*$I$5*'Park Allocations'!AL56","v":0}]
[null,"205 - Board of Pilotage Commissioners","205","Board of Pilotage Commissioners",0,0,0,0,0,0,{"$f":"$D$4*$I$5*'Park Allocations'!E57","v":0},{"$f":"$D$4*$I$5*'Park Allocations'!F57","v":0},{"$f":"$D$4*$I$5*'Park Allocations'!G57","v":0},{"$f":"$D$4*$I$5*'Park Allocations'!H57","v":0},{"$f":"$D$4*$I$5*'Park Allocations'!I57","v":0},{"$f":"$D$4*$I$5*'Park Allocations'!J57","v":0},{"$f":"$D$4*$I$5*'Park Allocations'!K57","v":0},{"$f":"$D$4*$I$5*'Park Allocations'!L57","v":0},{"$f":"$D$4*$I$5*'Park Allocations'!M57","v":0},{"$f":"$D$4*$I$5*'Park Allocations'!N57","v":0},{"$f":"$D$4*$I$5*'Park Allocations'!O57","v":0},{"$f":"$D$4*$I$5*'Park Allocations'!P57","v":0},{"$f":"$D$4*$I$5*'Park Allocations'!Q57","v":0},{"$f":"$D$4*$I$5*'Park Allocations'!R57","v":0},{"$f":"$D$4*$I$5*'Park Allocations'!S57","v":0},{"$f":"$D$4*$I$5*'Park Allocations'!T57","v":0},{"$f":"$D$4*$I$5*'Park Allocations'!U57","v":0},{"$f":"$D$4*$I$5*'Park Allocations'!V57","v":0},{"$f":"$D$4*$I$5*'Park Allocations'!W57","v":0},{"$f":"$D$4*$I$5*'Park Allocations'!X57","v":0},{"$f":"$D$4*$I$5*'Park Allocations'!Y57","v":0},{"$f":"$D$4*$I$5*'Park Allocations'!Z57","v":0},{"$f":"$D$4*$I$5*'Park Allocations'!AA57","v":0},{"$f":"$D$4*$I$5*'Park Allocations'!AB57","v":0},{"$f":"$D$4*$I$5*'Park Allocations'!AC57","v":0},{"$f":"$D$4*$I$5*'Park Allocations'!AD57","v":0},{"$f":"$D$4*$I$5*'Park Allocations'!AE57","v":0},{"$f":"$D$4*$I$5*'Park Allocations'!AF57","v":0},{"$f":"$D$4*$I$5*'Park Allocations'!AG57","v":0},{"$f":"$D$4*$I$5*'Park Allocations'!AH57","v":0},{"$f":"$D$4*$I$5*'Park Allocations'!AI57","v":0},{"$f":"$D$4*$I$5*'Park Allocations'!AJ57","v":0},{"$f":"$D$4*$I$5*'Park Allocations'!AK57","v":0},{"$f":"$D$4*$I$5*'Park Allocations'!AL57","v":0}]
[null,"215 - Utilities and Transportation Commission","215","Utilities and Transportation Commission",4075.6669779530921,4075.6669779530921,149,2.6413880072437314E-3,0,0,{"$f":"$D$4*$I$5*'Park Allocations'!E58","v":0},{"$f":"$D$4*$I$5*'Park Allocations'!F58","v":0},{"$f":"$D$4*$I$5*'Park Allocations'!G58","v":0},{"$f":"$D$4*$I$5*'Park Allocations'!H58","v":0},{"$f":"$D$4*$I$5*'Park Allocations'!I58","v":0},{"$f":"$D$4*$I$5*'Park Allocations'!J58","v":0},{"$f":"$D$4*$I$5*'Park Allocations'!K58","v":0},{"$f":"$D$4*$I$5*'Park Allocations'!L58","v":0},{"$f":"$D$4*$I$5*'Park Allocations'!M58","v":0},{"$f":"$D$4*$I$5*'Park Allocations'!N58","v":0},{"$f":"$D$4*$I$5*'Park Allocations'!O58","v":0},{"$f":"$D$4*$I$5*'Park Allocations'!P58","v":0},{"$f":"$D$4*$I$5*'Park Allocations'!Q58","v":0},{"$f":"$D$4*$I$5*'Park Allocations'!R58","v":0},{"$f":"$D$4*$I$5*'Park Allocations'!S58","v":0},{"$f":"$D$4*$I$5*'Park Allocations'!T58","v":0},{"$f":"$D$4*$I$5*'Park Allocations'!U58","v":0},{"$f":"$D$4*$I$5*'Park Allocations'!V58","v":0},{"$f":"$D$4*$I$5*'Park Allocations'!W58","v":0},{"$f":"$D$4*$I$5*'Park Allocations'!X58","v":0},{"$f":"$D$4*$I$5*'Park Allocations'!Y58","v":0},{"$f":"$D$4*$I$5*'Park Allocations'!Z58","v":0},{"$f":"$D$4*$I$5*'Park Allocations'!AA58","v":0},{"$f":"$D$4*$I$5*'Park Allocations'!AB58","v":0},{"$f":"$D$4*$I$5*'Park Allocations'!AC58","v":0},{"$f":"$D$4*$I$5*'Park Allocations'!AD58","v":0},{"$f":"$D$4*$I$5*'Park Allocations'!AE58","v":0},{"$f":"$D$4*$I$5*'Park Allocations'!AF58","v":0},{"$f":"$D$4*$I$5*'Park Allocations'!AG58","v":0},{"$f":"$D$4*$I$5*'Park Allocations'!AH58","v":0},{"$f":"$D$4*$I$5*'Park Allocations'!AI58","v":0},{"$f":"$D$4*$I$5*'Park Allocations'!AJ58","v":0},{"$f":"$D$4*$I$5*'Park Allocations'!AK58","v":0},{"$f":"$D$4*$I$5*'Park Allocations'!AL58","v":0}]
[null,"220 - Board for Volunteer Firefighters and Reserve Officers","220","Board for Volunteer Firefighters and Reserve Officers",82.060408952075676,82.060408952075676,3,5.3182308870679155E-5,0,0,{"$f":"$D$4*$I$5*'Park Allocations'!E59","v":0},{"$f":"$D$4*$I$5*'Park Allocations'!F59","v":0},{"$f":"$D$4*$I$5*'Park Allocations'!G59","v":0},{"$f":"$D$4*$I$5*'Park Allocations'!H59","v":0},{"$f":"$D$4*$I$5*'Park Allocations'!I59","v":0},{"$f":"$D$4*$I$5*'Park Allocations'!J59","v":0},{"$f":"$D$4*$I$5*'Park Allocations'!K59","v":0},{"$f":"$D$4*$I$5*'Park Allocations'!L59","v":0},{"$f":"$D$4*$I$5*'Park Allocations'!M59","v":0},{"$f":"$D$4*$I$5*'Park Allocations'!N59","v":0},{"$f":"$D$4*$I$5*'Park Allocations'!O59","v":0},{"$f":"$D$4*$I$5*'Park Allocations'!P59","v":0},{"$f":"$D$4*$I$5*'Park Allocations'!Q59","v":0},{"$f":"$D$4*$I$5*'Park Allocations'!R59","v":0},{"$f":"$D$4*$I$5*'Park Allocations'!S59","v":0},{"$f":"$D$4*$I$5*'Park Allocations'!T59","v":0},{"$f":"$D$4*$I$5*'Park Allocations'!U59","v":0},{"$f":"$D$4*$I$5*'Park Allocations'!V59","v":0},{"$f":"$D$4*$I$5*'Park Allocations'!W59","v":0},{"$f":"$D$4*$I$5*'Park Allocations'!X59","v":0},{"$f":"$D$4*$I$5*'Park Allocations'!Y59","v":0},{"$f":"$D$4*$I$5*'Park Allocations'!Z59","v":0},{"$f":"$D$4*$I$5*'Park Allocations'!AA59","v":0},{"$f":"$D$4*$I$5*'Park Allocations'!AB59","v":0},{"$f":"$D$4*$I$5*'Park Allocations'!AC59","v":0},{"$f":"$D$4*$I$5*'Park Allocations'!AD59","v":0},{"$f":"$D$4*$I$5*'Park Allocations'!AE59","v":0},{"$f":"$D$4*$I$5*'Park Allocations'!AF59","v":0},{"$f":"$D$4*$I$5*'Park Allocations'!AG59","v":0},{"$f":"$D$4*$I$5*'Park Allocations'!AH59","v":0},{"$f":"$D$4*$I$5*'Park Allocations'!AI59","v":0},{"$f":"$D$4*$I$5*'Park Allocations'!AJ59","v":0},{"$f":"$D$4*$I$5*'Park Allocations'!AK59","v":0},{"$f":"$D$4*$I$5*'Park Allocations'!AL59","v":0}]
[null,"225 - Washington State Patrol","225","Washington State Patrol",15514.236701778071,15482.06382229161,566,1.0033728940268133E-2,2.0850834598050702E-5,1.4916681871619334E-4,{"$f":"$D$4*$I$5*'Park Allocations'!E60","v":0},{"$f":"$D$4*$I$5*'Park Allocations'!F60","v":0},{"$f":"$D$4*$I$5*'Park Allocations'!G60","v":32.172879486461433},{"$f":"$D$4*$I$5*'Park Allocations'!H60","v":0},{"$f":"$D$4*$I$5*'Park Allocations'!I60","v":0},{"$f":"$D$4*$I$5*'Park Allocations'!J60","v":0},{"$f":"$D$4*$I$5*'Park Allocations'!K60","v":0},{"$f":"$D$4*$I$5*'Park Allocations'!L60","v":0},{"$f":"$D$4*$I$5*'Park Allocations'!M60","v":0},{"$f":"$D$4*$I$5*'Park Allocations'!N60","v":0},{"$f":"$D$4*$I$5*'Park Allocations'!O60","v":0},{"$f":"$D$4*$I$5*'Park Allocations'!P60","v":0},{"$f":"$D$4*$I$5*'Park Allocations'!Q60","v":0},{"$f":"$D$4*$I$5*'Park Allocations'!R60","v":0},{"$f":"$D$4*$I$5*'Park Allocations'!S60","v":0},{"$f":"$D$4*$I$5*'Park Allocations'!T60","v":0},{"$f":"$D$4*$I$5*'Park Allocations'!U60","v":0},{"$f":"$D$4*$I$5*'Park Allocations'!V60","v":0},{"$f":"$D$4*$I$5*'Park Allocations'!W60","v":0},{"$f":"$D$4*$I$5*'Park Allocations'!X60","v":0},{"$f":"$D$4*$I$5*'Park Allocations'!Y60","v":0},{"$f":"$D$4*$I$5*'Park Allocations'!Z60","v":0},{"$f":"$D$4*$I$5*'Park Allocations'!AA60","v":0},{"$f":"$D$4*$I$5*'Park Allocations'!AB60","v":0},{"$f":"$D$4*$I$5*'Park Allocations'!AC60","v":0},{"$f":"$D$4*$I$5*'Park Allocations'!AD60","v":0},{"$f":"$D$4*$I$5*'Park Allocations'!AE60","v":0},{"$f":"$D$4*$I$5*'Park Allocations'!AF60","v":0},{"$f":"$D$4*$I$5*'Park Allocations'!AG60","v":0},{"$f":"$D$4*$I$5*'Park Allocations'!AH60","v":0},{"$f":"$D$4*$I$5*'Park Allocations'!AI60","v":0},{"$f":"$D$4*$I$5*'Park Allocations'!AJ60","v":0},{"$f":"$D$4*$I$5*'Park Allocations'!AK60","v":0},{"$f":"$D$4*$I$5*'Park Allocations'!AL60","v":0}]
[null,"227 - Criminal Justice Training Commission","227","Criminal Justice Training Commission",27.353469650691892,27.353469650691892,1,1.7727436290226384E-5,0,0,{"$f":"$D$4*$I$5*'Park Allocations'!E61","v":0},{"$f":"$D$4*$I$5*'Park Allocations'!F61","v":0},{"$f":"$D$4*$I$5*'Park Allocations'!G61","v":0},{"$f":"$D$4*$I$5*'Park Allocations'!H61","v":0},{"$f":"$D$4*$I$5*'Park Allocations'!I61","v":0},{"$f":"$D$4*$I$5*'Park Allocations'!J61","v":0},{"$f":"$D$4*$I$5*'Park Allocations'!K61","v":0},{"$f":"$D$4*$I$5*'Park Allocations'!L61","v":0},{"$f":"$D$4*$I$5*'Park Allocations'!M61","v":0},{"$f":"$D$4*$I$5*'Park Allocations'!N61","v":0},{"$f":"$D$4*$I$5*'Park Allocations'!O61","v":0},{"$f":"$D$4*$I$5*'Park Allocations'!P61","v":0},{"$f":"$D$4*$I$5*'Park Allocations'!Q61","v":0},{"$f":"$D$4*$I$5*'Park Allocations'!R61","v":0},{"$f":"$D$4*$I$5*'Park Allocations'!S61","v":0},{"$f":"$D$4*$I$5*'Park Allocations'!T61","v":0},{"$f":"$D$4*$I$5*'Park Allocations'!U61","v":0},{"$f":"$D$4*$I$5*'Park Allocations'!V61","v":0},{"$f":"$D$4*$I$5*'Park Allocations'!W61","v":0},{"$f":"$D$4*$I$5*'Park Allocations'!X61","v":0},{"$f":"$D$4*$I$5*'Park Allocations'!Y61","v":0},{"$f":"$D$4*$I$5*'Park Allocations'!Z61","v":0},{"$f":"$D$4*$I$5*'Park Allocations'!AA61","v":0},{"$f":"$D$4*$I$5*'Park Allocations'!AB61","v":0},{"$f":"$D$4*$I$5*'Park Allocations'!AC61","v":0},{"$f":"$D$4*$I$5*'Park Allocations'!AD61","v":0},{"$f":"$D$4*$I$5*'Park Allocations'!AE61","v":0},{"$f":"$D$4*$I$5*'Park Allocations'!AF61","v":0},{"$f":"$D$4*$I$5*'Park Allocations'!AG61","v":0},{"$f":"$D$4*$I$5*'Park Allocations'!AH61","v":0},{"$f":"$D$4*$I$5*'Park Allocations'!AI61","v":0},{"$f":"$D$4*$I$5*'Park Allocations'!AJ61","v":0},{"$f":"$D$4*$I$5*'Park Allocations'!AK61","v":0},{"$f":"$D$4*$I$5*'Park Allocations'!AL61","v":0}]
[null,"228 - Traffic Safety Commission","228","Traffic Safety Commission",574.42286266452982,574.42286266452982,21,3.7227616209475412E-4,0,0,{"$f":"$D$4*$I$5*'Park Allocations'!E62","v":0},{"$f":"$D$4*$I$5*'Park Allocations'!F62","v":0},{"$f":"$D$4*$I$5*'Park Allocations'!G62","v":0},{"$f":"$D$4*$I$5*'Park Allocations'!H62","v":0},{"$f":"$D$4*$I$5*'Park Allocations'!I62","v":0},{"$f":"$D$4*$I$5*'Park Allocations'!J62","v":0},{"$f":"$D$4*$I$5*'Park Allocations'!K62","v":0},{"$f":"$D$4*$I$5*'Park Allocations'!L62","v":0},{"$f":"$D$4*$I$5*'Park Allocations'!M62","v":0},{"$f":"$D$4*$I$5*'Park Allocations'!N62","v":0},{"$f":"$D$4*$I$5*'Park Allocations'!O62","v":0},{"$f":"$D$4*$I$5*'Park Allocations'!P62","v":0},{"$f":"$D$4*$I$5*'Park Allocations'!Q62","v":0},{"$f":"$D$4*$I$5*'Park Allocations'!R62","v":0},{"$f":"$D$4*$I$5*'Park Allocations'!S62","v":0},{"$f":"$D$4*$I$5*'Park Allocations'!T62","v":0},{"$f":"$D$4*$I$5*'Park Allocations'!U62","v":0},{"$f":"$D$4*$I$5*'Park Allocations'!V62","v":0},{"$f":"$D$4*$I$5*'Park Allocations'!W62","v":0},{"$f":"$D$4*$I$5*'Park Allocations'!X62","v":0},{"$f":"$D$4*$I$5*'Park Allocations'!Y62","v":0},{"$f":"$D$4*$I$5*'Park Allocations'!Z62","v":0},{"$f":"$D$4*$I$5*'Park Allocations'!AA62","v":0},{"$f":"$D$4*$I$5*'Park Allocations'!AB62","v":0},{"$f":"$D$4*$I$5*'Park Allocations'!AC62","v":0},{"$f":"$D$4*$I$5*'Park Allocations'!AD62","v":0},{"$f":"$D$4*$I$5*'Park Allocations'!AE62","v":0},{"$f":"$D$4*$I$5*'Park Allocations'!AF62","v":0},{"$f":"$D$4*$I$5*'Park Allocations'!AG62","v":0},{"$f":"$D$4*$I$5*'Park Allocations'!AH62","v":0},{"$f":"$D$4*$I$5*'Park Allocations'!AI62","v":0},{"$f":"$D$4*$I$5*'Park Allocations'!AJ62","v":0},{"$f":"$D$4*$I$5*'Park Allocations'!AK62","v":0},{"$f":"$D$4*$I$5*'Park Allocations'!AL62","v":0}]
[null,"235 - Department of Labor and Industries","235","Department of Labor and Industries",60040.8658832687,60040.8658832687,2195,3.8911722657046913E-2,0,4.874842701457857E-3,{"$f":"$D$4*$I$5*'Park Allocations'!E63","v":0},{"$f":"$D$4*$I$5*'Park Allocations'!F63","v":0},{"$f":"$D$4*$I$5*'Park Allocations'!G63","v":0},{"$f":"$D$4*$I$5*'Park Allocations'!H63","v":0},{"$f":"$D$4*$I$5*'Park Allocations'!I63","v":0},{"$f":"$D$4*$I$5*'Park Allocations'!J63","v":0},{"$f":"$D$4*$I$5*'Park Allocations'!K63","v":0},{"$f":"$D$4*$I$5*'Park Allocations'!L63","v":0},{"$f":"$D$4*$I$5*'Park Allocations'!M63","v":0},{"$f":"$D$4*$I$5*'Park Allocations'!N63","v":0},{"$f":"$D$4*$I$5*'Park Allocations'!O63","v":0},{"$f":"$D$4*$I$5*'Park Allocations'!P63","v":0},{"$f":"$D$4*$I$5*'Park Allocations'!Q63","v":0},{"$f":"$D$4*$I$5*'Park Allocations'!R63","v":0},{"$f":"$D$4*$I$5*'Park Allocations'!S63","v":0},{"$f":"$D$4*$I$5*'Park Allocations'!T63","v":0},{"$f":"$D$4*$I$5*'Park Allocations'!U63","v":0},{"$f":"$D$4*$I$5*'Park Allocations'!V63","v":0},{"$f":"$D$4*$I$5*'Park Allocations'!W63","v":0},{"$f":"$D$4*$I$5*'Park Allocations'!X63","v":0},{"$f":"$D$4*$I$5*'Park Allocations'!Y63","v":0},{"$f":"$D$4*$I$5*'Park Allocations'!Z63","v":0},{"$f":"$D$4*$I$5*'Park Allocations'!AA63","v":0},{"$f":"$D$4*$I$5*'Park Allocations'!AB63","v":0},{"$f":"$D$4*$I$5*'Park Allocations'!AC63","v":0},{"$f":"$D$4*$I$5*'Park Allocations'!AD63","v":0},{"$f":"$D$4*$I$5*'Park Allocations'!AE63","v":0},{"$f":"$D$4*$I$5*'Park Allocations'!AF63","v":0},{"$f":"$D$4*$I$5*'Park Allocations'!AG63","v":0},{"$f":"$D$4*$I$5*'Park Allocations'!AH63","v":0},{"$f":"$D$4*$I$5*'Park Allocations'!AI63","v":0},{"$f":"$D$4*$I$5*'Park Allocations'!AJ63","v":0},{"$f":"$D$4*$I$5*'Park Allocations'!AK63","v":0},{"$f":"$D$4*$I$5*'Park Allocations'!AL63","v":0}]
[null,"240 - Department of Licensing","240","Department of Licensing",30898.538983467224,24454.001867718551,894,1.5848328043462388E-2,4.1766226587837676E-3,2.7700391705837751E-2,{"$f":"$D$4*$I$5*'Park Allocations'!E64","v":0},{"$f":"$D$4*$I$5*'Park Allocations'!F64","v":0},{"$f":"$D$4*$I$5*'Park Allocations'!G64","v":0},{"$f":"$D$4*$I$5*'Park Allocations'!H64","v":0},{"$f":"$D$4*$I$5*'Park Allocations'!I64","v":6444.5371157486716},{"$f":"$D$4*$I$5*'Park Allocations'!J64","v":0},{"$f":"$D$4*$I$5*'Park Allocations'!K64","v":0},{"$f":"$D$4*$I$5*'Park Allocations'!L64","v":0},{"$f":"$D$4*$I$5*'Park Allocations'!M64","v":0},{"$f":"$D$4*$I$5*'Park Allocations'!N64","v":0},{"$f":"$D$4*$I$5*'Park Allocations'!O64","v":0},{"$f":"$D$4*$I$5*'Park Allocations'!P64","v":0},{"$f":"$D$4*$I$5*'Park Allocations'!Q64","v":0},{"$f":"$D$4*$I$5*'Park Allocations'!R64","v":0},{"$f":"$D$4*$I$5*'Park Allocations'!S64","v":0},{"$f":"$D$4*$I$5*'Park Allocations'!T64","v":0},{"$f":"$D$4*$I$5*'Park Allocations'!U64","v":0},{"$f":"$D$4*$I$5*'Park Allocations'!V64","v":0},{"$f":"$D$4*$I$5*'Park Allocations'!W64","v":0},{"$f":"$D$4*$I$5*'Park Allocations'!X64","v":0},{"$f":"$D$4*$I$5*'Park Allocations'!Y64","v":0},{"$f":"$D$4*$I$5*'Park Allocations'!Z64","v":0},{"$f":"$D$4*$I$5*'Park Allocations'!AA64","v":0},{"$f":"$D$4*$I$5*'Park Allocations'!AB64","v":0},{"$f":"$D$4*$I$5*'Park Allocations'!AC64","v":0},{"$f":"$D$4*$I$5*'Park Allocations'!AD64","v":0},{"$f":"$D$4*$I$5*'Park Allocations'!AE64","v":0},{"$f":"$D$4*$I$5*'Park Allocations'!AF64","v":0},{"$f":"$D$4*$I$5*'Park Allocations'!AG64","v":0},{"$f":"$D$4*$I$5*'Park Allocations'!AH64","v":0},{"$f":"$D$4*$I$5*'Park Allocations'!AI64","v":0},{"$f":"$D$4*$I$5*'Park Allocations'!AJ64","v":0},{"$f":"$D$4*$I$5*'Park Allocations'!AK64","v":0},{"$f":"$D$4*$I$5*'Park Allocations'!AL64","v":0}]
[null,"245 - Military Department","245","Military Department",0,0,0,0,0,0,{"$f":"$D$4*$I$5*'Park Allocations'!E65","v":0},{"$f":"$D$4*$I$5*'Park Allocations'!F65","v":0},{"$f":"$D$4*$I$5*'Park Allocations'!G65","v":0},{"$f":"$D$4*$I$5*'Park Allocations'!H65","v":0},{"$f":"$D$4*$I$5*'Park Allocations'!I65","v":0},{"$f":"$D$4*$I$5*'Park Allocations'!J65","v":0},{"$f":"$D$4*$I$5*'Park Allocations'!K65","v":0},{"$f":"$D$4*$I$5*'Park Allocations'!L65","v":0},{"$f":"$D$4*$I$5*'Park Allocations'!M65","v":0},{"$f":"$D$4*$I$5*'Park Allocations'!N65","v":0},{"$f":"$D$4*$I$5*'Park Allocations'!O65","v":0},{"$f":"$D$4*$I$5*'Park Allocations'!P65","v":0},{"$f":"$D$4*$I$5*'Park Allocations'!Q65","v":0},{"$f":"$D$4*$I$5*'Park Allocations'!R65","v":0},{"$f":"$D$4*$I$5*'Park Allocations'!S65","v":0},{"$f":"$D$4*$I$5*'Park Allocations'!T65","v":0},{"$f":"$D$4*$I$5*'Park Allocations'!U65","v":0},{"$f":"$D$4*$I$5*'Park Allocations'!V65","v":0},{"$f":"$D$4*$I$5*'Park Allocations'!W65","v":0},{"$f":"$D$4*$I$5*'Park Allocations'!X65","v":0},{"$f":"$D$4*$I$5*'Park Allocations'!Y65","v":0},{"$f":"$D$4*$I$5*'Park Allocations'!Z65","v":0},{"$f":"$D$4*$I$5*'Park Allocations'!AA65","v":0},{"$f":"$D$4*$I$5*'Park Allocations'!AB65","v":0},{"$f":"$D$4*$I$5*'Park Allocations'!AC65","v":0},{"$f":"$D$4*$I$5*'Park Allocations'!AD65","v":0},{"$f":"$D$4*$I$5*'Park Allocations'!AE65","v":0},{"$f":"$D$4*$I$5*'Park Allocations'!AF65","v":0},{"$f":"$D$4*$I$5*'Park Allocations'!AG65","v":0},{"$f":"$D$4*$I$5*'Park Allocations'!AH65","v":0},{"$f":"$D$4*$I$5*'Park Allocations'!AI65","v":0},{"$f":"$D$4*$I$5*'Park Allocations'!AJ65","v":0},{"$f":"$D$4*$I$5*'Park Allocations'!AK65","v":0},{"$f":"$D$4*$I$5*'Park Allocations'!AL65","v":0}]
[null,"275 - Public Employment Relations Commission","275","Public Employment Relations Commission",574.42286266452982,574.42286266452982,21,3.7227616209475412E-4,0,0,{"$f":"$D$4*$I$5*'Park Allocations'!E66","v":0},{"$f":"$D$4*$I$5*'Park Allocations'!F66","v":0},{"$f":"$D$4*$I$5*'Park Allocations'!G66","v":0},{"$f":"$D$4*$I$5*'Park Allocations'!H66","v":0},{"$f":"$D$4*$I$5*'Park Allocations'!I66","v":0},{"$f":"$D$4*$I$5*'Park Allocations'!J66","v":0},{"$f":"$D$4*$I$5*'Park Allocations'!K66","v":0},{"$f":"$D$4*$I$5*'Park Allocations'!L66","v":0},{"$f":"$D$4*$I$5*'Park Allocations'!M66","v":0},{"$f":"$D$4*$I$5*'Park Allocations'!N66","v":0},{"$f":"$D$4*$I$5*'Park Allocations'!O66","v":0},{"$f":"$D$4*$I$5*'Park Allocations'!P66","v":0},{"$f":"$D$4*$I$5*'Park Allocations'!Q66","v":0},{"$f":"$D$4*$I$5*'Park Allocations'!R66","v":0},{"$f":"$D$4*$I$5*'Park Allocations'!S66","v":0},{"$f":"$D$4*$I$5*'Park Allocations'!T66","v":0},{"$f":"$D$4*$I$5*'Park Allocations'!U66","v":0},{"$f":"$D$4*$I$5*'Park Allocations'!V66","v":0},{"$f":"$D$4*$I$5*'Park Allocations'!W66","v":0},{"$f":"$D$4*$I$5*'Park Allocations'!X66","v":0},{"$f":"$D$4*$I$5*'Park Allocations'!Y66","v":0},{"$f":"$D$4*$I$5*'Park Allocations'!Z66","v":0},{"$f":"$D$4*$I$5*'Park Allocations'!AA66","v":0},{"$f":"$D$4*$I$5*'Park Allocations'!AB66","v":0},{"$f":"$D$4*$I$5*'Park Allocations'!AC66","v":0},{"$f":"$D$4*$I$5*'Park Allocations'!AD66","v":0},{"$f":"$D$4*$I$5*'Park Allocations'!AE66","v":0},{"$f":"$D$4*$I$5*'Park Allocations'!AF66","v":0},{"$f":"$D$4*$I$5*'Park Allocations'!AG66","v":0},{"$f":"$D$4*$I$5*'Park Allocations'!AH66","v":0},{"$f":"$D$4*$I$5*'Park Allocations'!AI66","v":0},{"$f":"$D$4*$I$5*'Park Allocations'!AJ66","v":0},{"$f":"$D$4*$I$5*'Park Allocations'!AK66","v":0},{"$f":"$D$4*$I$5*'Park Allocations'!AL66","v":0}]
[null,"300 - Department of Social and Health Services","300","Department of Social and Health Services",82903.572983457765,72924.350088744599,2666,4.7261345149743547E-2,6.4674076214503761E-3,5.4814518585459653E-2,{"$f":"$D$4*$I$5*'Park Allocations'!E67","v":0},{"$f":"$D$4*$I$5*'Park Allocations'!F67","v":0},{"$f":"$D$4*$I$5*'Park Allocations'!G67","v":0},{"$f":"$D$4*$I$5*'Park Allocations'!H67","v":0},{"$f":"$D$4*$I$5*'Park Allocations'!I67","v":0},{"$f":"$D$4*$I$5*'Park Allocations'!J67","v":9979.2228947131734},{"$f":"$D$4*$I$5*'Park Allocations'!K67","v":0},{"$f":"$D$4*$I$5*'Park Allocations'!L67","v":0},{"$f":"$D$4*$I$5*'Park Allocations'!M67","v":0},{"$f":"$D$4*$I$5*'Park Allocations'!N67","v":0},{"$f":"$D$4*$I$5*'Park Allocations'!O67","v":0},{"$f":"$D$4*$I$5*'Park Allocations'!P67","v":0},{"$f":"$D$4*$I$5*'Park Allocations'!Q67","v":0},{"$f":"$D$4*$I$5*'Park Allocations'!R67","v":0},{"$f":"$D$4*$I$5*'Park Allocations'!S67","v":0},{"$f":"$D$4*$I$5*'Park Allocations'!T67","v":0},{"$f":"$D$4*$I$5*'Park Allocations'!U67","v":0},{"$f":"$D$4*$I$5*'Park Allocations'!V67","v":0},{"$f":"$D$4*$I$5*'Park Allocations'!W67","v":0},{"$f":"$D$4*$I$5*'Park Allocations'!X67","v":0},{"$f":"$D$4*$I$5*'Park Allocations'!Y67","v":0},{"$f":"$D$4*$I$5*'Park Allocations'!Z67","v":0},{"$f":"$D$4*$I$5*'Park Allocations'!AA67","v":0},{"$f":"$D$4*$I$5*'Park Allocations'!AB67","v":0},{"$f":"$D$4*$I$5*'Park Allocations'!AC67","v":0},{"$f":"$D$4*$I$5*'Park Allocations'!AD67","v":0},{"$f":"$D$4*$I$5*'Park Allocations'!AE67","v":0},{"$f":"$D$4*$I$5*'Park Allocations'!AF67","v":0},{"$f":"$D$4*$I$5*'Park Allocations'!AG67","v":0},{"$f":"$D$4*$I$5*'Park Allocations'!AH67","v":0},{"$f":"$D$4*$I$5*'Park Allocations'!AI67","v":0},{"$f":"$D$4*$I$5*'Park Allocations'!AJ67","v":0},{"$f":"$D$4*$I$5*'Park Allocations'!AK67","v":0},{"$f":"$D$4*$I$5*'Park Allocations'!AL67","v":0}]
[null,"303 - Department of Health","303","Department of Health",43163.775108791808,43163.775108791808,1578,2.7973894465977235E-2,0,0,{"$f":"$D$4*$I$5*'Park Allocations'!E68","v":0},{"$f":"$D$4*$I$5*'Park Allocations'!F68","v":0},{"$f":"$D$4*$I$5*'Park Allocations'!G68","v":0},{"$f":"$D$4*$I$5*'Park Allocations'!H68","v":0},{"$f":"$D$4*$I$5*'Park Allocations'!I68","v":0},{"$f":"$D$4*$I$5*'Park Allocations'!J68","v":0},{"$f":"$D$4*$I$5*'Park Allocations'!K68","v":0},{"$f":"$D$4*$I$5*'Park Allocations'!L68","v":0},{"$f":"$D$4*$I$5*'Park Allocations'!M68","v":0},{"$f":"$D$4*$I$5*'Park Allocations'!N68","v":0},{"$f":"$D$4*$I$5*'Park Allocations'!O68","v":0},{"$f":"$D$4*$I$5*'Park Allocations'!P68","v":0},{"$f":"$D$4*$I$5*'Park Allocations'!Q68","v":0},{"$f":"$D$4*$I$5*'Park Allocations'!R68","v":0},{"$f":"$D$4*$I$5*'Park Allocations'!S68","v":0},{"$f":"$D$4*$I$5*'Park Allocations'!T68","v":0},{"$f":"$D$4*$I$5*'Park Allocations'!U68","v":0},{"$f":"$D$4*$I$5*'Park Allocations'!V68","v":0},{"$f":"$D$4*$I$5*'Park Allocations'!W68","v":0},{"$f":"$D$4*$I$5*'Park Allocations'!X68","v":0},{"$f":"$D$4*$I$5*'Park Allocations'!Y68","v":0},{"$f":"$D$4*$I$5*'Park Allocations'!Z68","v":0},{"$f":"$D$4*$I$5*'Park Allocations'!AA68","v":0},{"$f":"$D$4*$I$5*'Park Allocations'!AB68","v":0},{"$f":"$D$4*$I$5*'Park Allocations'!AC68","v":0},{"$f":"$D$4*$I$5*'Park Allocations'!AD68","v":0},{"$f":"$D$4*$I$5*'Park Allocations'!AE68","v":0},{"$f":"$D$4*$I$5*'Park Allocations'!AF68","v":0},{"$f":"$D$4*$I$5*'Park Allocations'!AG68","v":0},{"$f":"$D$4*$I$5*'Park Allocations'!AH68","v":0},{"$f":"$D$4*$I$5*'Park Allocations'!AI68","v":0},{"$f":"$D$4*$I$5*'Park Allocations'!AJ68","v":0},{"$f":"$D$4*$I$5*'Park Allocations'!AK68","v":0},{"$f":"$D$4*$I$5*'Park Allocations'!AL68","v":0}]
[null,"305 - Department of Veterans Affairs","305","Department of Veterans Affairs",2242.9845113567353,2242.9845113567353,82,1.4536497757985636E-3,0,0,{"$f":"$D$4*$I$5*'Park Allocations'!E69","v":0},{"$f":"$D$4*$I$5*'Park Allocations'!F69","v":0},{"$f":"$D$4*$I$5*'Park Allocations'!G69","v":0},{"$f":"$D$4*$I$5*'Park Allocations'!H69","v":0},{"$f":"$D$4*$I$5*'Park Allocations'!I69","v":0},{"$f":"$D$4*$I$5*'Park Allocations'!J69","v":0},{"$f":"$D$4*$I$5*'Park Allocations'!K69","v":0},{"$f":"$D$4*$I$5*'Park Allocations'!L69","v":0},{"$f":"$D$4*$I$5*'Park Allocations'!M69","v":0},{"$f":"$D$4*$I$5*'Park Allocations'!N69","v":0},{"$f":"$D$4*$I$5*'Park Allocations'!O69","v":0},{"$f":"$D$4*$I$5*'Park Allocations'!P69","v":0},{"$f":"$D$4*$I$5*'Park Allocations'!Q69","v":0},{"$f":"$D$4*$I$5*'Park Allocations'!R69","v":0},{"$f":"$D$4*$I$5*'Park Allocations'!S69","v":0},{"$f":"$D$4*$I$5*'Park Allocations'!T69","v":0},{"$f":"$D$4*$I$5*'Park Allocations'!U69","v":0},{"$f":"$D$4*$I$5*'Park Allocations'!V69","v":0},{"$f":"$D$4*$I$5*'Park Allocations'!W69","v":0},{"$f":"$D$4*$I$5*'Park Allocations'!X69","v":0},{"$f":"$D$4*$I$5*'Park Allocations'!Y69","v":0},{"$f":"$D$4*$I$5*'Park Allocations'!Z69","v":0},{"$f":"$D$4*$I$5*'Park Allocations'!AA69","v":0},{"$f":"$D$4*$I$5*'Park Allocations'!AB69","v":0},{"$f":"$D$4*$I$5*'Park Allocations'!AC69","v":0},{"$f":"$D$4*$I$5*'Park Allocations'!AD69","v":0},{"$f":"$D$4*$I$5*'Park Allocations'!AE69","v":0},{"$f":"$D$4*$I$5*'Park Allocations'!AF69","v":0},{"$f":"$D$4*$I$5*'Park Allocations'!AG69","v":0},{"$f":"$D$4*$I$5*'Park Allocations'!AH69","v":0},{"$f":"$D$4*$I$5*'Park Allocations'!AI69","v":0},{"$f":"$D$4*$I$5*'Park Allocations'!AJ69","v":0},{"$f":"$D$4*$I$5*'Park Allocations'!AK69","v":0},{"$f":"$D$4*$I$5*'Park Allocations'!AL69","v":0}]
[null,{"$f":"CONCATENATE(C72,\" - \",D72)","v":"307 - DCYF"},"307","DCYF",{"$f":"F72+SUM(K72:AR72)","v":27117.700882507354},{"$f":"H72*$D$4","v":23031.621445882574},842,1.4926501356370617E-2,2.6481361894701242E-3,2.249360010762344E-2,{"$f":"$D$4*$I$5*'Park Allocations'!E70","v":0},{"$f":"$D$4*$I$5*'Park Allocations'!F70","v":0},{"$f":"$D$4*$I$5*'Park Allocations'!G70","v":0},{"$f":"$D$4*$I$5*'Park Allocations'!H70","v":0},{"$f":"$D$4*$I$5*'Park Allocations'!I70","v":0},{"$f":"$D$4*$I$5*'Park Allocations'!J70","v":4086.0794366247806},{"$f":"$D$4*$I$5*'Park Allocations'!K70","v":0},{"$f":"$D$4*$I$5*'Park Allocations'!L70","v":0},{"$f":"$D$4*$I$5*'Park Allocations'!M70","v":0},{"$f":"$D$4*$I$5*'Park Allocations'!N70","v":0},{"$f":"$D$4*$I$5*'Park Allocations'!O70","v":0},{"$f":"$D$4*$I$5*'Park Allocations'!P70","v":0},{"$f":"$D$4*$I$5*'Park Allocations'!Q70","v":0},{"$f":"$D$4*$I$5*'Park Allocations'!R70","v":0},{"$f":"$D$4*$I$5*'Park Allocations'!S70","v":0},{"$f":"$D$4*$I$5*'Park Allocations'!T70","v":0},{"$f":"$D$4*$I$5*'Park Allocations'!U70","v":0},{"$f":"$D$4*$I$5*'Park Allocations'!V70","v":0},{"$f":"$D$4*$I$5*'Park Allocations'!W70","v":0},{"$f":"$D$4*$I$5*'Park Allocations'!X70","v":0},{"$f":"$D$4*$I$5*'Park Allocations'!Y70","v":0},{"$f":"$D$4*$I$5*'Park Allocations'!Z70","v":0},{"$f":"$D$4*$I$5*'Park Allocations'!AA70","v":0},{"$f":"$D$4*$I$5*'Park Allocations'!AB70","v":0},{"$f":"$D$4*$I$5*'Park Allocations'!AC70","v":0},{"$f":"$D$4*$I$5*'Park Allocations'!AD70","v":0},{"$f":"$D$4*$I$5*'Park Allocations'!AE70","v":0},{"$f":"$D$4*$I$5*'Park Allocations'!AF70","v":0},{"$f":"$D$4*$I$5*'Park Allocations'!AG70","v":0},{"$f":"$D$4*$I$5*'Park Allocations'!AH70","v":0},{"$f":"$D$4*$I$5*'Park Allocations'!AI70","v":0},{"$f":"$D$4*$I$5*'Park Allocations'!AJ70","v":0},{"$f":"$D$4*$I$5*'Park Allocations'!AK70","v":0},{"$f":"$D$4*$I$5*'Park Allocations'!AL70","v":0}]
[null,"310 - Department of Corrections","310","Department of Corrections",29952.049267507624,29952.049267507624,1095,1.9411542737797893E-2,0,0,{"$f":"$D$4*$I$5*'Park Allocations'!E71","v":0},{"$f":"$D$4*$I$5*'Park Allocations'!F71","v":0},{"$f":"$D$4*$I$5*'Park Allocations'!G71","v":0},{"$f":"$D$4*$I$5*'Park Allocations'!H71","v":0},{"$f":"$D$4*$I$5*'Park Allocations'!I71","v":0},{"$f":"$D$4*$I$5*'Park Allocations'!J71","v":0},{"$f":"$D$4*$I$5*'Park Allocations'!K71","v":0},{"$f":"$D$4*$I$5*'Park Allocations'!L71","v":0},{"$f":"$D$4*$I$5*'Park Allocations'!M71","v":0},{"$f":"$D$4*$I$5*'Park Allocations'!N71","v":0},{"$f":"$D$4*$I$5*'Park Allocations'!O71","v":0},{"$f":"$D$4*$I$5*'Park Allocations'!P71","v":0},{"$f":"$D$4*$I$5*'Park Allocations'!Q71","v":0},{"$f":"$D$4*$I$5*'Park Allocations'!R71","v":0},{"$f":"$D$4*$I$5*'Park Allocations'!S71","v":0},{"$f":"$D$4*$I$5*'Park Allocations'!T71","v":0},{"$f":"$D$4*$I$5*'Park Allocations'!U71","v":0},{"$f":"$D$4*$I$5*'Park Allocations'!V71","v":0},{"$f":"$D$4*$I$5*'Park Allocations'!W71","v":0},{"$f":"$D$4*$I$5*'Park Allocations'!X71","v":0},{"$f":"$D$4*$I$5*'Park Allocations'!Y71","v":0},{"$f":"$D$4*$I$5*'Park Allocations'!Z71","v":0},{"$f":"$D$4*$I$5*'Park Allocations'!AA71","v":0},{"$f":"$D$4*$I$5*'Park Allocations'!AB71","v":0},{"$f":"$D$4*$I$5*'Park Allocations'!AC71","v":0},{"$f":"$D$4*$I$5*'Park Allocations'!AD71","v":0},{"$f":"$D$4*$I$5*'Park Allocations'!AE71","v":0},{"$f":"$D$4*$I$5*'Park Allocations'!AF71","v":0},{"$f":"$D$4*$I$5*'Park Allocations'!AG71","v":0},{"$f":"$D$4*$I$5*'Park Allocations'!AH71","v":0},{"$f":"$D$4*$I$5*'Park Allocations'!AI71","v":0},{"$f":"$D$4*$I$5*'Park Allocations'!AJ71","v":0},{"$f":"$D$4*$I$5*'Park Allocations'!AK71","v":0},{"$f":"$D$4*$I$5*'Park Allocations'!AL71","v":0}]
[null,"315 - Department of Services for the Blind","315","Department of Services for the Blind",1071.3017158768912,547.06939301383795,20,3.5454872580452775E-4,3.3974831067169921E-4,5.1878165246980901E-3,{"$f":"$D$4*$I$5*'Park Allocations'!E72","v":0},{"$f":"$D$4*$I$5*'Park Allocations'!F72","v":0},{"$f":"$D$4*$I$5*'Park Allocations'!G72","v":36.565714954805202},{"$f":"$D$4*$I$5*'Park Allocations'!H72","v":0},{"$f":"$D$4*$I$5*'Park Allocations'!I72","v":53.70396037355485},{"$f":"$D$4*$I$5*'Park Allocations'!J72","v":159.00826976962668},{"$f":"$D$4*$I$5*'Park Allocations'!K72","v":0},{"$f":"$D$4*$I$5*'Park Allocations'!L72","v":186.23147548894019},{"$f":"$D$4*$I$5*'Park Allocations'!M72","v":0},{"$f":"$D$4*$I$5*'Park Allocations'!N72","v":88.72290227612632},{"$f":"$D$4*$I$5*'Park Allocations'!O72","v":0},{"$f":"$D$4*$I$5*'Park Allocations'!P72","v":0},{"$f":"$D$4*$I$5*'Park Allocations'!Q72","v":0},{"$f":"$D$4*$I$5*'Park Allocations'!R72","v":0},{"$f":"$D$4*$I$5*'Park Allocations'!S72","v":0},{"$f":"$D$4*$I$5*'Park Allocations'!T72","v":0},{"$f":"$D$4*$I$5*'Park Allocations'!U72","v":0},{"$f":"$D$4*$I$5*'Park Allocations'!V72","v":0},{"$f":"$D$4*$I$5*'Park Allocations'!W72","v":0},{"$f":"$D$4*$I$5*'Park Allocations'!X72","v":0},{"$f":"$D$4*$I$5*'Park Allocations'!Y72","v":0},{"$f":"$D$4*$I$5*'Park Allocations'!Z72","v":0},{"$f":"$D$4*$I$5*'Park Allocations'!AA72","v":0},{"$f":"$D$4*$I$5*'Park Allocations'!AB72","v":0},{"$f":"$D$4*$I$5*'Park Allocations'!AC72","v":0},{"$f":"$D$4*$I$5*'Park Allocations'!AD72","v":0},{"$f":"$D$4*$I$5*'Park Allocations'!AE72","v":0},{"$f":"$D$4*$I$5*'Park Allocations'!AF72","v":0},{"$f":"$D$4*$I$5*'Park Allocations'!AG72","v":0},{"$f":"$D$4*$I$5*'Park Allocations'!AH72","v":0},{"$f":"$D$4*$I$5*'Park Allocations'!AI72","v":0},{"$f":"$D$4*$I$5*'Park Allocations'!AJ72","v":0},{"$f":"$D$4*$I$5*'Park Allocations'!AK72","v":0},{"$f":"$D$4*$I$5*'Park Allocations'!AL72","v":0}]
[null,"340 - Student Achievement Council","340","Student Achievement Council",3090.9420705281841,3090.9420705281841,113,2.0032003007955817E-3,0,0,{"$f":"$D$4*$I$5*'Park Allocations'!E73","v":0},{"$f":"$D$4*$I$5*'Park Allocations'!F73","v":0},{"$f":"$D$4*$I$5*'Park Allocations'!G73","v":0},{"$f":"$D$4*$I$5*'Park Allocations'!H73","v":0},{"$f":"$D$4*$I$5*'Park Allocations'!I73","v":0},{"$f":"$D$4*$I$5*'Park Allocations'!J73","v":0},{"$f":"$D$4*$I$5*'Park Allocations'!K73","v":0},{"$f":"$D$4*$I$5*'Park Allocations'!L73","v":0},{"$f":"$D$4*$I$5*'Park Allocations'!M73","v":0},{"$f":"$D$4*$I$5*'Park Allocations'!N73","v":0},{"$f":"$D$4*$I$5*'Park Allocations'!O73","v":0},{"$f":"$D$4*$I$5*'Park Allocations'!P73","v":0},{"$f":"$D$4*$I$5*'Park Allocations'!Q73","v":0},{"$f":"$D$4*$I$5*'Park Allocations'!R73","v":0},{"$f":"$D$4*$I$5*'Park Allocations'!S73","v":0},{"$f":"$D$4*$I$5*'Park Allocations'!T73","v":0},{"$f":"$D$4*$I$5*'Park Allocations'!U73","v":0},{"$f":"$D$4*$I$5*'Park Allocations'!V73","v":0},{"$f":"$D$4*$I$5*'Park Allocations'!W73","v":0},{"$f":"$D$4*$I$5*'Park Allocations'!X73","v":0},{"$f":"$D$4*$I$5*'Park Allocations'!Y73","v":0},{"$f":"$D$4*$I$5*'Park Allocations'!Z73","v":0},{"$f":"$D$4*$I$5*'Park Allocations'!AA73","v":0},{"$f":"$D$4*$I$5*'Park Allocations'!AB73","v":0},{"$f":"$D$4*$I$5*'Park Allocations'!AC73","v":0},{"$f":"$D$4*$I$5*'Park Allocations'!AD73","v":0},{"$f":"$D$4*$I$5*'Park Allocations'!AE73","v":0},{"$f":"$D$4*$I$5*'Park Allocations'!AF73","v":0},{"$f":"$D$4*$I$5*'Park Allocations'!AG73","v":0},{"$f":"$D$4*$I$5*'Park Allocations'!AH73","v":0},{"$f":"$D$4*$I$5*'Park Allocations'!AI73","v":0},{"$f":"$D$4*$I$5*'Park Allocations'!AJ73","v":0},{"$f":"$D$4*$I$5*'Park Allocations'!AK73","v":0},{"$f":"$D$4*$I$5*'Park Allocations'!AL73","v":0}]
[null,"341 - Law Enforcement Officers' & Fire Fighters' Plan 2 Retirement Board","341","Law Enforcement Officers' & Fire Fighters' Plan 2 Retirement Board",218.82775720553514,218.82775720553514,8,1.4181949032181107E-4,0,0,{"$f":"$D$4*$I$5*'Park Allocations'!E74","v":0},{"$f":"$D$4*$I$5*'Park Allocations'!F74","v":0},{"$f":"$D$4*$I$5*'Park Allocations'!G74","v":0},{"$f":"$D$4*$I$5*'Park Allocations'!H74","v":0},{"$f":"$D$4*$I$5*'Park Allocations'!I74","v":0},{"$f":"$D$4*$I$5*'Park Allocations'!J74","v":0},{"$f":"$D$4*$I$5*'Park Allocations'!K74","v":0},{"$f":"$D$4*$I$5*'Park Allocations'!L74","v":0},{"$f":"$D$4*$I$5*'Park Allocations'!M74","v":0},{"$f":"$D$4*$I$5*'Park Allocations'!N74","v":0},{"$f":"$D$4*$I$5*'Park Allocations'!O74","v":0},{"$f":"$D$4*$I$5*'Park Allocations'!P74","v":0},{"$f":"$D$4*$I$5*'Park Allocations'!Q74","v":0},{"$f":"$D$4*$I$5*'Park Allocations'!R74","v":0},{"$f":"$D$4*$I$5*'Park Allocations'!S74","v":0},{"$f":"$D$4*$I$5*'Park Allocations'!T74","v":0},{"$f":"$D$4*$I$5*'Park Allocations'!U74","v":0},{"$f":"$D$4*$I$5*'Park Allocations'!V74","v":0},{"$f":"$D$4*$I$5*'Park Allocations'!W74","v":0},{"$f":"$D$4*$I$5*'Park Allocations'!X74","v":0},{"$f":"$D$4*$I$5*'Park Allocations'!Y74","v":0},{"$f":"$D$4*$I$5*'Park Allocations'!Z74","v":0},{"$f":"$D$4*$I$5*'Park Allocations'!AA74","v":0},{"$f":"$D$4*$I$5*'Park Allocations'!AB74","v":0},{"$f":"$D$4*$I$5*'Park Allocations'!AC74","v":0},{"$f":"$D$4*$I$5*'Park Allocations'!AD74","v":0},{"$f":"$D$4*$I$5*'Park Allocations'!AE74","v":0},{"$f":"$D$4*$I$5*'Park Allocations'!AF74","v":0},{"$f":"$D$4*$I$5*'Park Allocations'!AG74","v":0},{"$f":"$D$4*$I$5*'Park Allocations'!AH74","v":0},{"$f":"$D$4*$I$5*'Park Allocations'!AI74","v":0},{"$f":"$D$4*$I$5*'Park Allocations'!AJ74","v":0},{"$f":"$D$4*$I$5*'Park Allocations'!AK74","v":0},{"$f":"$D$4*$I$5*'Park Allocations'!AL74","v":0}]
[null,"350 - Superintendent of Public Instruction","350","Superintendent of Public Instruction",18551.511810704516,12500.535630366194,457,8.1014383846334578E-3,3.9215608147872283E-3,2.3198876425400958E-2,{"$f":"$D$4*$I$5*'Park Allocations'!E75","v":0},{"$f":"$D$4*$I$5*'Park Allocations'!F75","v":0},{"$f":"$D$4*$I$5*'Park Allocations'!G75","v":0},{"$f":"$D$4*$I$5*'Park Allocations'!H75","v":0},{"$f":"$D$4*$I$5*'Park Allocations'!I75","v":0},{"$f":"$D$4*$I$5*'Park Allocations'!J75","v":0},{"$f":"$D$4*$I$5*'Park Allocations'!K75","v":0},{"$f":"$D$4*$I$5*'Park Allocations'!L75","v":0},{"$f":"$D$4*$I$5*'Park Allocations'!M75","v":0},{"$f":"$D$4*$I$5*'Park Allocations'!N75","v":0},{"$f":"$D$4*$I$5*'Park Allocations'!O75","v":0},{"$f":"$D$4*$I$5*'Park Allocations'!P75","v":6050.9761803383226},{"$f":"$D$4*$I$5*'Park Allocations'!Q75","v":0},{"$f":"$D$4*$I$5*'Park Allocations'!R75","v":0},{"$f":"$D$4*$I$5*'Park Allocations'!S75","v":0},{"$f":"$D$4*$I$5*'Park Allocations'!T75","v":0},{"$f":"$D$4*$I$5*'Park Allocations'!U75","v":0},{"$f":"$D$4*$I$5*'Park Allocations'!V75","v":0},{"$f":"$D$4*$I$5*'Park Allocations'!W75","v":0},{"$f":"$D$4*$I$5*'Park Allocations'!X75","v":0},{"$f":"$D$4*$I$5*'Park Allocations'!Y75","v":0},{"$f":"$D$4*$I$5*'Park Allocations'!Z75","v":0},{"$f":"$D$4*$I$5*'Park Allocations'!AA75","v":0},{"$f":"$D$4*$I$5*'Park Allocations'!AB75","v":0},{"$f":"$D$4*$I$5*'Park Allocations'!AC75","v":0},{"$f":"$D$4*$I$5*'Park Allocations'!AD75","v":0},{"$f":"$D$4*$I$5*'Park Allocations'!AE75","v":0},{"$f":"$D$4*$I$5*'Park Allocations'!AF75","v":0},{"$f":"$D$4*$I$5*'Park Allocations'!AG75","v":0},{"$f":"$D$4*$I$5*'Park Allocations'!AH75","v":0},{"$f":"$D$4*$I$5*'Park Allocations'!AI75","v":0},{"$f":"$D$4*$I$5*'Park Allocations'!AJ75","v":0},{"$f":"$D$4*$I$5*'Park Allocations'!AK75","v":0},{"$f":"$D$4*$I$5*'Park Allocations'!AL75","v":0}]
[null,"351 - State School For The Blind","351","State School For The Blind",54.706939301383784,54.706939301383784,2,3.5454872580452768E-5,0,0,{"$f":"$D$4*$I$5*'Park Allocations'!E76","v":0},{"$f":"$D$4*$I$5*'Park Allocations'!F76","v":0},{"$f":"$D$4*$I$5*'Park Allocations'!G76","v":0},{"$f":"$D$4*$I$5*'Park Allocations'!H76","v":0},{"$f":"$D$4*$I$5*'Park Allocations'!I76","v":0},{"$f":"$D$4*$I$5*'Park Allocations'!J76","v":0},{"$f":"$D$4*$I$5*'Park Allocations'!K76","v":0},{"$f":"$D$4*$I$5*'Park Allocations'!L76","v":0},{"$f":"$D$4*$I$5*'Park Allocations'!M76","v":0},{"$f":"$D$4*$I$5*'Park Allocations'!N76","v":0},{"$f":"$D$4*$I$5*'Park Allocations'!O76","v":0},{"$f":"$D$4*$I$5*'Park Allocations'!P76","v":0},{"$f":"$D$4*$I$5*'Park Allocations'!Q76","v":0},{"$f":"$D$4*$I$5*'Park Allocations'!R76","v":0},{"$f":"$D$4*$I$5*'Park Allocations'!S76","v":0},{"$f":"$D$4*$I$5*'Park Allocations'!T76","v":0},{"$f":"$D$4*$I$5*'Park Allocations'!U76","v":0},{"$f":"$D$4*$I$5*'Park Allocations'!V76","v":0},{"$f":"$D$4*$I$5*'Park Allocations'!W76","v":0},{"$f":"$D$4*$I$5*'Park Allocations'!X76","v":0},{"$f":"$D$4*$I$5*'Park Allocations'!Y76","v":0},{"$f":"$D$4*$I$5*'Park Allocations'!Z76","v":0},{"$f":"$D$4*$I$5*'Park Allocations'!AA76","v":0},{"$f":"$D$4*$I$5*'Park Allocations'!AB76","v":0},{"$f":"$D$4*$I$5*'Park Allocations'!AC76","v":0},{"$f":"$D$4*$I$5*'Park Allocations'!AD76","v":0},{"$f":"$D$4*$I$5*'Park Allocations'!AE76","v":0},{"$f":"$D$4*$I$5*'Park Allocations'!AF76","v":0},{"$f":"$D$4*$I$5*'Park Allocations'!AG76","v":0},{"$f":"$D$4*$I$5*'Park Allocations'!AH76","v":0},{"$f":"$D$4*$I$5*'Park Allocations'!AI76","v":0},{"$f":"$D$4*$I$5*'Park Allocations'!AJ76","v":0},{"$f":"$D$4*$I$5*'Park Allocations'!AK76","v":0},{"$f":"$D$4*$I$5*'Park Allocations'!AL76","v":0}]
[null,"353 - State Center for Childhood Deafness and Hearing Loss","353","State Center for Childhood Deafness and Hearing Loss",0,0,0,0,0,0,{"$f":"$D$4*$I$5*'Park Allocations'!E77","v":0},{"$f":"$D$4*$I$5*'Park Allocations'!F77","v":0},{"$f":"$D$4*$I$5*'Park Allocations'!G77","v":0},{"$f":"$D$4*$I$5*'Park Allocations'!H77","v":0},{"$f":"$D$4*$I$5*'Park Allocations'!I77","v":0},{"$f":"$D$4*$I$5*'Park Allocations'!J77","v":0},{"$f":"$D$4*$I$5*'Park Allocations'!K77","v":0},{"$f":"$D$4*$I$5*'Park Allocations'!L77","v":0},{"$f":"$D$4*$I$5*'Park Allocations'!M77","v":0},{"$f":"$D$4*$I$5*'Park Allocations'!N77","v":0},{"$f":"$D$4*$I$5*'Park Allocations'!O77","v":0},{"$f":"$D$4*$I$5*'Park Allocations'!P77","v":0},{"$f":"$D$4*$I$5*'Park Allocations'!Q77","v":0},{"$f":"$D$4*$I$5*'Park Allocations'!R77","v":0},{"$f":"$D$4*$I$5*'Park Allocations'!S77","v":0},{"$f":"$D$4*$I$5*'Park Allocations'!T77","v":0},{"$f":"$D$4*$I$5*'Park Allocations'!U77","v":0},{"$f":"$D$4*$I$5*'Park Allocations'!V77","v":0},{"$f":"$D$4*$I$5*'Park Allocations'!W77","v":0},{"$f":"$D$4*$I$5*'Park Allocations'!X77","v":0},{"$f":"$D$4*$I$5*'Park Allocations'!Y77","v":0},{"$f":"$D$4*$I$5*'Park Allocations'!Z77","v":0},{"$f":"$D$4*$I$5*'Park Allocations'!AA77","v":0},{"$f":"$D$4*$I$5*'Park Allocations'!AB77","v":0},{"$f":"$D$4*$I$5*'Park Allocations'!AC77","v":0},{"$f":"$D$4*$I$5*'Park Allocations'!AD77","v":0},{"$f":"$D$4*$I$5*'Park Allocations'!AE77","v":0},{"$f":"$D$4*$I$5*'Park Allocations'!AF77","v":0},{"$f":"$D$4*$I$5*'Park Allocations'!AG77","v":0},{"$f":"$D$4*$I$5*'Park Allocations'!AH77","v":0},{"$f":"$D$4*$I$5*'Park Allocations'!AI77","v":0},{"$f":"$D$4*$I$5*'Park Allocations'!AJ77","v":0},{"$f":"$D$4*$I$5*'Park Allocations'!AK77","v":0},{"$f":"$D$4*$I$5*'Park Allocations'!AL77","v":0}]
[null,"354 - Workforce Training and Education Coordinating Board","354","Workforce Training and Education Coordinating Board",765.89715021937297,765.89715021937297,28,4.9636821612633879E-4,0,0,{"$f":"$D$4*$I$5*'Park Allocations'!E78","v":0},{"$f":"$D$4*$I$5*'Park Allocations'!F78","v":0},{"$f":"$D$4*$I$5*'Park Allocations'!G78","v":0},{"$f":"$D$4*$I$5*'Park Allocations'!H78","v":0},{"$f":"$D$4*$I$5*'Park Allocations'!I78","v":0},{"$f":"$D$4*$I$5*'Park Allocations'!J78","v":0},{"$f":"$D$4*$I$5*'Park Allocations'!K78","v":0},{"$f":"$D$4*$I$5*'Park Allocations'!L78","v":0},{"$f":"$D$4*$I$5*'Park Allocations'!M78","v":0},{"$f":"$D$4*$I$5*'Park Allocations'!N78","v":0},{"$f":"$D$4*$I$5*'Park Allocations'!O78","v":0},{"$f":"$D$4*$I$5*'Park Allocations'!P78","v":0},{"$f":"$D$4*$I$5*'Park Allocations'!Q78","v":0},{"$f":"$D$4*$I$5*'Park Allocations'!R78","v":0},{"$f":"$D$4*$I$5*'Park Allocations'!S78","v":0},{"$f":"$D$4*$I$5*'Park Allocations'!T78","v":0},{"$f":"$D$4*$I$5*'Park Allocations'!U78","v":0},{"$f":"$D$4*$I$5*'Park Allocations'!V78","v":0},{"$f":"$D$4*$I$5*'Park Allocations'!W78","v":0},{"$f":"$D$4*$I$5*'Park Allocations'!X78","v":0},{"$f":"$D$4*$I$5*'Park Allocations'!Y78","v":0},{"$f":"$D$4*$I$5*'Park Allocations'!Z78","v":0},{"$f":"$D$4*$I$5*'Park Allocations'!AA78","v":0},{"$f":"$D$4*$I$5*'Park Allocations'!AB78","v":0},{"$f":"$D$4*$I$5*'Park Allocations'!AC78","v":0},{"$f":"$D$4*$I$5*'Park Allocations'!AD78","v":0},{"$f":"$D$4*$I$5*'Park Allocations'!AE78","v":0},{"$f":"$D$4*$I$5*'Park Allocations'!AF78","v":0},{"$f":"$D$4*$I$5*'Park Allocations'!AG78","v":0},{"$f":"$D$4*$I$5*'Park Allocations'!AH78","v":0},{"$f":"$D$4*$I$5*'Park Allocations'!AI78","v":0},{"$f":"$D$4*$I$5*'Park Allocations'!AJ78","v":0},{"$f":"$D$4*$I$5*'Park Allocations'!AK78","v":0},{"$f":"$D$4*$I$5*'Park Allocations'!AL78","v":0}]
[null,"355 - Department of Archaeology and Historic Preservation","355","Department of Archaeology and Historic Preservation",547.06939301383795,547.06939301383795,20,3.5454872580452775E-4,0,1.972759648880093E-3,{"$f":"$D$4*$I$5*'Park Allocations'!E79","v":0},{"$f":"$D$4*$I$5*'Park Allocations'!F79","v":0},{"$f":"$D$4*$I$5*'Park Allocations'!G79","v":0},{"$f":"$D$4*$I$5*'Park Allocations'!H79","v":0},{"$f":"$D$4*$I$5*'Park Allocations'!I79","v":0},{"$f":"$D$4*$I$5*'Park Allocations'!J79","v":0},{"$f":"$D$4*$I$5*'Park Allocations'!K79","v":0},{"$f":"$D$4*$I$5*'Park Allocations'!L79","v":0},{"$f":"$D$4*$I$5*'Park Allocations'!M79","v":0},{"$f":"$D$4*$I$5*'Park Allocations'!N79","v":0},{"$f":"$D$4*$I$5*'Park Allocations'!O79","v":0},{"$f":"$D$4*$I$5*'Park Allocations'!P79","v":0},{"$f":"$D$4*$I$5*'Park Allocations'!Q79","v":0},{"$f":"$D$4*$I$5*'Park Allocations'!R79","v":0},{"$f":"$D$4*$I$5*'Park Allocations'!S79","v":0},{"$f":"$D$4*$I$5*'Park Allocations'!T79","v":0},{"$f":"$D$4*$I$5*'Park Allocations'!U79","v":0},{"$f":"$D$4*$I$5*'Park Allocations'!V79","v":0},{"$f":"$D$4*$I$5*'Park Allocations'!W79","v":0},{"$f":"$D$4*$I$5*'Park Allocations'!X79","v":0},{"$f":"$D$4*$I$5*'Park Allocations'!Y79","v":0},{"$f":"$D$4*$I$5*'Park Allocations'!Z79","v":0},{"$f":"$D$4*$I$5*'Park Allocations'!AA79","v":0},{"$f":"$D$4*$I$5*'Park Allocations'!AB79","v":0},{"$f":"$D$4*$I$5*'Park Allocations'!AC79","v":0},{"$f":"$D$4*$I$5*'Park Allocations'!AD79","v":0},{"$f":"$D$4*$I$5*'Park Allocations'!AE79","v":0},{"$f":"$D$4*$I$5*'Park Allocations'!AF79","v":0},{"$f":"$D$4*$I$5*'Park Allocations'!AG79","v":0},{"$f":"$D$4*$I$5*'Park Allocations'!AH79","v":0},{"$f":"$D$4*$I$5*'Park Allocations'!AI79","v":0},{"$f":"$D$4*$I$5*'Park Allocations'!AJ79","v":0},{"$f":"$D$4*$I$5*'Park Allocations'!AK79","v":0},{"$f":"$D$4*$I$5*'Park Allocations'!AL79","v":0}]
[null,"357 - Department of Early Learning","357","Department of Early Learning",0,0,0,0,0,0,{"$f":"$D$4*$I$5*'Park Allocations'!E80","v":0},{"$f":"$D$4*$I$5*'Park Allocations'!F80","v":0},{"$f":"$D$4*$I$5*'Park Allocations'!G80","v":0},{"$f":"$D$4*$I$5*'Park Allocations'!H80","v":0},{"$f":"$D$4*$I$5*'Park Allocations'!I80","v":0},{"$f":"$D$4*$I$5*'Park Allocations'!J80","v":0},{"$f":"$D$4*$I$5*'Park Allocations'!K80","v":0},{"$f":"$D$4*$I$5*'Park Allocations'!L80","v":0},{"$f":"$D$4*$I$5*'Park Allocations'!M80","v":0},{"$f":"$D$4*$I$5*'Park Allocations'!N80","v":0},{"$f":"$D$4*$I$5*'Park Allocations'!O80","v":0},{"$f":"$D$4*$I$5*'Park Allocations'!P80","v":0},{"$f":"$D$4*$I$5*'Park Allocations'!Q80","v":0},{"$f":"$D$4*$I$5*'Park Allocations'!R80","v":0},{"$f":"$D$4*$I$5*'Park Allocations'!S80","v":0},{"$f":"$D$4*$I$5*'Park Allocations'!T80","v":0},{"$f":"$D$4*$I$5*'Park Allocations'!U80","v":0},{"$f":"$D$4*$I$5*'Park Allocations'!V80","v":0},{"$f":"$D$4*$I$5*'Park Allocations'!W80","v":0},{"$f":"$D$4*$I$5*'Park Allocations'!X80","v":0},{"$f":"$D$4*$I$5*'Park Allocations'!Y80","v":0},{"$f":"$D$4*$I$5*'Park Allocations'!Z80","v":0},{"$f":"$D$4*$I$5*'Park Allocations'!AA80","v":0},{"$f":"$D$4*$I$5*'Park Allocations'!AB80","v":0},{"$f":"$D$4*$I$5*'Park Allocations'!AC80","v":0},{"$f":"$D$4*$I$5*'Park Allocations'!AD80","v":0},{"$f":"$D$4*$I$5*'Park Allocations'!AE80","v":0},{"$f":"$D$4*$I$5*'Park Allocations'!AF80","v":0},{"$f":"$D$4*$I$5*'Park Allocations'!AG80","v":0},{"$f":"$D$4*$I$5*'Park Allocations'!AH80","v":0},{"$f":"$D$4*$I$5*'Park Allocations'!AI80","v":0},{"$f":"$D$4*$I$5*'Park Allocations'!AJ80","v":0},{"$f":"$D$4*$I$5*'Park Allocations'!AK80","v":0},{"$f":"$D$4*$I$5*'Park Allocations'!AL80","v":0}]
[null,"359 - WA Charter School Commission","359","WA Charter School Commission",0,0,0,0,0,0,{"$f":"$D$4*$I$5*'Park Allocations'!E81","v":0},{"$f":"$D$4*$I$5*'Park Allocations'!F81","v":0},{"$f":"$D$4*$I$5*'Park Allocations'!G81","v":0},{"$f":"$D$4*$I$5*'Park Allocations'!H81","v":0},{"$f":"$D$4*$I$5*'Park Allocations'!I81","v":0},{"$f":"$D$4*$I$5*'Park Allocations'!J81","v":0},{"$f":"$D$4*$I$5*'Park Allocations'!K81","v":0},{"$f":"$D$4*$I$5*'Park Allocations'!L81","v":0},{"$f":"$D$4*$I$5*'Park Allocations'!M81","v":0},{"$f":"$D$4*$I$5*'Park Allocations'!N81","v":0},{"$f":"$D$4*$I$5*'Park Allocations'!O81","v":0},{"$f":"$D$4*$I$5*'Park Allocations'!P81","v":0},{"$f":"$D$4*$I$5*'Park Allocations'!Q81","v":0},{"$f":"$D$4*$I$5*'Park Allocations'!R81","v":0},{"$f":"$D$4*$I$5*'Park Allocations'!S81","v":0},{"$f":"$D$4*$I$5*'Park Allocations'!T81","v":0},{"$f":"$D$4*$I$5*'Park Allocations'!U81","v":0},{"$f":"$D$4*$I$5*'Park Allocations'!V81","v":0},{"$f":"$D$4*$I$5*'Park Allocations'!W81","v":0},{"$f":"$D$4*$I$5*'Park Allocations'!X81","v":0},{"$f":"$D$4*$I$5*'Park Allocations'!Y81","v":0},{"$f":"$D$4*$I$5*'Park Allocations'!Z81","v":0},{"$f":"$D$4*$I$5*'Park Allocations'!AA81","v":0},{"$f":"$D$4*$I$5*'Park Allocations'!AB81","v":0},{"$f":"$D$4*$I$5*'Park Allocations'!AC81","v":0},{"$f":"$D$4*$I$5*'Park Allocations'!AD81","v":0},{"$f":"$D$4*$I$5*'Park Allocations'!AE81","v":0},{"$f":"$D$4*$I$5*'Park Allocations'!AF81","v":0},{"$f":"$D$4*$I$5*'Park Allocations'!AG81","v":0},{"$f":"$D$4*$I$5*'Park Allocations'!AH81","v":0},{"$f":"$D$4*$I$5*'Park Allocations'!AI81","v":0},{"$f":"$D$4*$I$5*'Park Allocations'!AJ81","v":0},{"$f":"$D$4*$I$5*'Park Allocations'!AK81","v":0},{"$f":"$D$4*$I$5*'Park Allocations'!AL81","v":0}]
[null,"360 - University of Washington","360","University of Washington",601.77633231522168,601.77633231522168,22,3.9000359838498049E-4,0,0,{"$f":"$D$4*$I$5*'Park Allocations'!E82","v":0},{"$f":"$D$4*$I$5*'Park Allocations'!F82","v":0},{"$f":"$D$4*$I$5*'Park Allocations'!G82","v":0},{"$f":"$D$4*$I$5*'Park Allocations'!H82","v":0},{"$f":"$D$4*$I$5*'Park Allocations'!I82","v":0},{"$f":"$D$4*$I$5*'Park Allocations'!J82","v":0},{"$f":"$D$4*$I$5*'Park Allocations'!K82","v":0},{"$f":"$D$4*$I$5*'Park Allocations'!L82","v":0},{"$f":"$D$4*$I$5*'Park Allocations'!M82","v":0},{"$f":"$D$4*$I$5*'Park Allocations'!N82","v":0},{"$f":"$D$4*$I$5*'Park Allocations'!O82","v":0},{"$f":"$D$4*$I$5*'Park Allocations'!P82","v":0},{"$f":"$D$4*$I$5*'Park Allocations'!Q82","v":0},{"$f":"$D$4*$I$5*'Park Allocations'!R82","v":0},{"$f":"$D$4*$I$5*'Park Allocations'!S82","v":0},{"$f":"$D$4*$I$5*'Park Allocations'!T82","v":0},{"$f":"$D$4*$I$5*'Park Allocations'!U82","v":0},{"$f":"$D$4*$I$5*'Park Allocations'!V82","v":0},{"$f":"$D$4*$I$5*'Park Allocations'!W82","v":0},{"$f":"$D$4*$I$5*'Park Allocations'!X82","v":0},{"$f":"$D$4*$I$5*'Park Allocations'!Y82","v":0},{"$f":"$D$4*$I$5*'Park Allocations'!Z82","v":0},{"$f":"$D$4*$I$5*'Park Allocations'!AA82","v":0},{"$f":"$D$4*$I$5*'Park Allocations'!AB82","v":0},{"$f":"$D$4*$I$5*'Park Allocations'!AC82","v":0},{"$f":"$D$4*$I$5*'Park Allocations'!AD82","v":0},{"$f":"$D$4*$I$5*'Park Allocations'!AE82","v":0},{"$f":"$D$4*$I$5*'Park Allocations'!AF82","v":0},{"$f":"$D$4*$I$5*'Park Allocations'!AG82","v":0},{"$f":"$D$4*$I$5*'Park Allocations'!AH82","v":0},{"$f":"$D$4*$I$5*'Park Allocations'!AI82","v":0},{"$f":"$D$4*$I$5*'Park Allocations'!AJ82","v":0},{"$f":"$D$4*$I$5*'Park Allocations'!AK82","v":0},{"$f":"$D$4*$I$5*'Park Allocations'!AL82","v":0}]
[null,"365 - Washington State University","365","Washington State University",1668.5616486922056,1668.5616486922056,61,1.0813736137038096E-3,0,0,{"$f":"$D$4*$I$5*'Park Allocations'!E83","v":0},{"$f":"$D$4*$I$5*'Park Allocations'!F83","v":0},{"$f":"$D$4*$I$5*'Park Allocations'!G83","v":0},{"$f":"$D$4*$I$5*'Park Allocations'!H83","v":0},{"$f":"$D$4*$I$5*'Park Allocations'!I83","v":0},{"$f":"$D$4*$I$5*'Park Allocations'!J83","v":0},{"$f":"$D$4*$I$5*'Park Allocations'!K83","v":0},{"$f":"$D$4*$I$5*'Park Allocations'!L83","v":0},{"$f":"$D$4*$I$5*'Park Allocations'!M83","v":0},{"$f":"$D$4*$I$5*'Park Allocations'!N83","v":0},{"$f":"$D$4*$I$5*'Park Allocations'!O83","v":0},{"$f":"$D$4*$I$5*'Park Allocations'!P83","v":0},{"$f":"$D$4*$I$5*'Park Allocations'!Q83","v":0},{"$f":"$D$4*$I$5*'Park Allocations'!R83","v":0},{"$f":"$D$4*$I$5*'Park Allocations'!S83","v":0},{"$f":"$D$4*$I$5*'Park Allocations'!T83","v":0},{"$f":"$D$4*$I$5*'Park Allocations'!U83","v":0},{"$f":"$D$4*$I$5*'Park Allocations'!V83","v":0},{"$f":"$D$4*$I$5*'Park Allocations'!W83","v":0},{"$f":"$D$4*$I$5*'Park Allocations'!X83","v":0},{"$f":"$D$4*$I$5*'Park Allocations'!Y83","v":0},{"$f":"$D$4*$I$5*'Park Allocations'!Z83","v":0},{"$f":"$D$4*$I$5*'Park Allocations'!AA83","v":0},{"$f":"$D$4*$I$5*'Park Allocations'!AB83","v":0},{"$f":"$D$4*$I$5*'Park Allocations'!AC83","v":0},{"$f":"$D$4*$I$5*'Park Allocations'!AD83","v":0},{"$f":"$D$4*$I$5*'Park Allocations'!AE83","v":0},{"$f":"$D$4*$I$5*'Park Allocations'!AF83","v":0},{"$f":"$D$4*$I$5*'Park Allocations'!AG83","v":0},{"$f":"$D$4*$I$5*'Park Allocations'!AH83","v":0},{"$f":"$D$4*$I$5*'Park Allocations'!AI83","v":0},{"$f":"$D$4*$I$5*'Park Allocations'!AJ83","v":0},{"$f":"$D$4*$I$5*'Park Allocations'!AK83","v":0},{"$f":"$D$4*$I$5*'Park Allocations'!AL83","v":0}]
[null,"370 - Eastern Washington University","370","Eastern Washington University",0,0,0,0,0,0,{"$f":"$D$4*$I$5*'Park Allocations'!E84","v":0},{"$f":"$D$4*$I$5*'Park Allocations'!F84","v":0},{"$f":"$D$4*$I$5*'Park Allocations'!G84","v":0},{"$f":"$D$4*$I$5*'Park Allocations'!H84","v":0},{"$f":"$D$4*$I$5*'Park Allocations'!I84","v":0},{"$f":"$D$4*$I$5*'Park Allocations'!J84","v":0},{"$f":"$D$4*$I$5*'Park Allocations'!K84","v":0},{"$f":"$D$4*$I$5*'Park Allocations'!L84","v":0},{"$f":"$D$4*$I$5*'Park Allocations'!M84","v":0},{"$f":"$D$4*$I$5*'Park Allocations'!N84","v":0},{"$f":"$D$4*$I$5*'Park Allocations'!O84","v":0},{"$f":"$D$4*$I$5*'Park Allocations'!P84","v":0},{"$f":"$D$4*$I$5*'Park Allocations'!Q84","v":0},{"$f":"$D$4*$I$5*'Park Allocations'!R84","v":0},{"$f":"$D$4*$I$5*'Park Allocations'!S84","v":0},{"$f":"$D$4*$I$5*'Park Allocations'!T84","v":0},{"$f":"$D$4*$I$5*'Park Allocations'!U84","v":0},{"$f":"$D$4*$I$5*'Park Allocations'!V84","v":0},{"$f":"$D$4*$I$5*'Park Allocations'!W84","v":0},{"$f":"$D$4*$I$5*'Park Allocations'!X84","v":0},{"$f":"$D$4*$I$5*'Park Allocations'!Y84","v":0},{"$f":"$D$4*$I$5*'Park Allocations'!Z84","v":0},{"$f":"$D$4*$I$5*'Park Allocations'!AA84","v":0},{"$f":"$D$4*$I$5*'Park Allocations'!AB84","v":0},{"$f":"$D$4*$I$5*'Park Allocations'!AC84","v":0},{"$f":"$D$4*$I$5*'Park Allocations'!AD84","v":0},{"$f":"$D$4*$I$5*'Park Allocations'!AE84","v":0},{"$f":"$D$4*$I$5*'Park Allocations'!AF84","v":0},{"$f":"$D$4*$I$5*'Park Allocations'!AG84","v":0},{"$f":"$D$4*$I$5*'Park Allocations'!AH84","v":0},{"$f":"$D$4*$I$5*'Park Allocations'!AI84","v":0},{"$f":"$D$4*$I$5*'Park Allocations'!AJ84","v":0},{"$f":"$D$4*$I$5*'Park Allocations'!AK84","v":0},{"$f":"$D$4*$I$5*'Park Allocations'!AL84","v":0}]
[null,"375 - Central Washington University","375","Central Washington University",0,0,0,0,0,0,{"$f":"$D$4*$I$5*'Park Allocations'!E85","v":0},{"$f":"$D$4*$I$5*'Park Allocations'!F85","v":0},{"$f":"$D$4*$I$5*'Park Allocations'!G85","v":0},{"$f":"$D$4*$I$5*'Park Allocations'!H85","v":0},{"$f":"$D$4*$I$5*'Park Allocations'!I85","v":0},{"$f":"$D$4*$I$5*'Park Allocations'!J85","v":0},{"$f":"$D$4*$I$5*'Park Allocations'!K85","v":0},{"$f":"$D$4*$I$5*'Park Allocations'!L85","v":0},{"$f":"$D$4*$I$5*'Park Allocations'!M85","v":0},{"$f":"$D$4*$I$5*'Park Allocations'!N85","v":0},{"$f":"$D$4*$I$5*'Park Allocations'!O85","v":0},{"$f":"$D$4*$I$5*'Park Allocations'!P85","v":0},{"$f":"$D$4*$I$5*'Park Allocations'!Q85","v":0},{"$f":"$D$4*$I$5*'Park Allocations'!R85","v":0},{"$f":"$D$4*$I$5*'Park Allocations'!S85","v":0},{"$f":"$D$4*$I$5*'Park Allocations'!T85","v":0},{"$f":"$D$4*$I$5*'Park Allocations'!U85","v":0},{"$f":"$D$4*$I$5*'Park Allocations'!V85","v":0},{"$f":"$D$4*$I$5*'Park Allocations'!W85","v":0},{"$f":"$D$4*$I$5*'Park Allocations'!X85","v":0},{"$f":"$D$4*$I$5*'Park Allocations'!Y85","v":0},{"$f":"$D$4*$I$5*'Park Allocations'!Z85","v":0},{"$f":"$D$4*$I$5*'Park Allocations'!AA85","v":0},{"$f":"$D$4*$I$5*'Park Allocations'!AB85","v":0},{"$f":"$D$4*$I$5*'Park Allocations'!AC85","v":0},{"$f":"$D$4*$I$5*'Park Allocations'!AD85","v":0},{"$f":"$D$4*$I$5*'Park Allocations'!AE85","v":0},{"$f":"$D$4*$I$5*'Park Allocations'!AF85","v":0},{"$f":"$D$4*$I$5*'Park Allocations'!AG85","v":0},{"$f":"$D$4*$I$5*'Park Allocations'!AH85","v":0},{"$f":"$D$4*$I$5*'Park Allocations'!AI85","v":0},{"$f":"$D$4*$I$5*'Park Allocations'!AJ85","v":0},{"$f":"$D$4*$I$5*'Park Allocations'!AK85","v":0},{"$f":"$D$4*$I$5*'Park Allocations'!AL85","v":0}]
[null,"376 - The Evergreen State College","376","The Evergreen State College",14798.227081024315,14798.227081024315,541,9.5905430330124747E-3,0,0,{"$f":"$D$4*$I$5*'Park Allocations'!E86","v":0},{"$f":"$D$4*$I$5*'Park Allocations'!F86","v":0},{"$f":"$D$4*$I$5*'Park Allocations'!G86","v":0},{"$f":"$D$4*$I$5*'Park Allocations'!H86","v":0},{"$f":"$D$4*$I$5*'Park Allocations'!I86","v":0},{"$f":"$D$4*$I$5*'Park Allocations'!J86","v":0},{"$f":"$D$4*$I$5*'Park Allocations'!K86","v":0},{"$f":"$D$4*$I$5*'Park Allocations'!L86","v":0},{"$f":"$D$4*$I$5*'Park Allocations'!M86","v":0},{"$f":"$D$4*$I$5*'Park Allocations'!N86","v":0},{"$f":"$D$4*$I$5*'Park Allocations'!O86","v":0},{"$f":"$D$4*$I$5*'Park Allocations'!P86","v":0},{"$f":"$D$4*$I$5*'Park Allocations'!Q86","v":0},{"$f":"$D$4*$I$5*'Park Allocations'!R86","v":0},{"$f":"$D$4*$I$5*'Park Allocations'!S86","v":0},{"$f":"$D$4*$I$5*'Park Allocations'!T86","v":0},{"$f":"$D$4*$I$5*'Park Allocations'!U86","v":0},{"$f":"$D$4*$I$5*'Park Allocations'!V86","v":0},{"$f":"$D$4*$I$5*'Park Allocations'!W86","v":0},{"$f":"$D$4*$I$5*'Park Allocations'!X86","v":0},{"$f":"$D$4*$I$5*'Park Allocations'!Y86","v":0},{"$f":"$D$4*$I$5*'Park Allocations'!Z86","v":0},{"$f":"$D$4*$I$5*'Park Allocations'!AA86","v":0},{"$f":"$D$4*$I$5*'Park Allocations'!AB86","v":0},{"$f":"$D$4*$I$5*'Park Allocations'!AC86","v":0},{"$f":"$D$4*$I$5*'Park Allocations'!AD86","v":0},{"$f":"$D$4*$I$5*'Park Allocations'!AE86","v":0},{"$f":"$D$4*$I$5*'Park Allocations'!AF86","v":0},{"$f":"$D$4*$I$5*'Park Allocations'!AG86","v":0},{"$f":"$D$4*$I$5*'Park Allocations'!AH86","v":0},{"$f":"$D$4*$I$5*'Park Allocations'!AI86","v":0},{"$f":"$D$4*$I$5*'Park Allocations'!AJ86","v":0},{"$f":"$D$4*$I$5*'Park Allocations'!AK86","v":0},{"$f":"$D$4*$I$5*'Park Allocations'!AL86","v":0}]
[null,"380 - Western Washington University","380","Western Washington University",0,0,0,0,0,0,{"$f":"$D$4*$I$5*'Park Allocations'!E87","v":0},{"$f":"$D$4*$I$5*'Park Allocations'!F87","v":0},{"$f":"$D$4*$I$5*'Park Allocations'!G87","v":0},{"$f":"$D$4*$I$5*'Park Allocations'!H87","v":0},{"$f":"$D$4*$I$5*'Park Allocations'!I87","v":0},{"$f":"$D$4*$I$5*'Park Allocations'!J87","v":0},{"$f":"$D$4*$I$5*'Park Allocations'!K87","v":0},{"$f":"$D$4*$I$5*'Park Allocations'!L87","v":0},{"$f":"$D$4*$I$5*'Park Allocations'!M87","v":0},{"$f":"$D$4*$I$5*'Park Allocations'!N87","v":0},{"$f":"$D$4*$I$5*'Park Allocations'!O87","v":0},{"$f":"$D$4*$I$5*'Park Allocations'!P87","v":0},{"$f":"$D$4*$I$5*'Park Allocations'!Q87","v":0},{"$f":"$D$4*$I$5*'Park Allocations'!R87","v":0},{"$f":"$D$4*$I$5*'Park Allocations'!S87","v":0},{"$f":"$D$4*$I$5*'Park Allocations'!T87","v":0},{"$f":"$D$4*$I$5*'Park Allocations'!U87","v":0},{"$f":"$D$4*$I$5*'Park Allocations'!V87","v":0},{"$f":"$D$4*$I$5*'Park Allocations'!W87","v":0},{"$f":"$D$4*$I$5*'Park Allocations'!X87","v":0},{"$f":"$D$4*$I$5*'Park Allocations'!Y87","v":0},{"$f":"$D$4*$I$5*'Park Allocations'!Z87","v":0},{"$f":"$D$4*$I$5*'Park Allocations'!AA87","v":0},{"$f":"$D$4*$I$5*'Park Allocations'!AB87","v":0},{"$f":"$D$4*$I$5*'Park Allocations'!AC87","v":0},{"$f":"$D$4*$I$5*'Park Allocations'!AD87","v":0},{"$f":"$D$4*$I$5*'Park Allocations'!AE87","v":0},{"$f":"$D$4*$I$5*'Park Allocations'!AF87","v":0},{"$f":"$D$4*$I$5*'Park Allocations'!AG87","v":0},{"$f":"$D$4*$I$5*'Park Allocations'!AH87","v":0},{"$f":"$D$4*$I$5*'Park Allocations'!AI87","v":0},{"$f":"$D$4*$I$5*'Park Allocations'!AJ87","v":0},{"$f":"$D$4*$I$5*'Park Allocations'!AK87","v":0},{"$f":"$D$4*$I$5*'Park Allocations'!AL87","v":0}]
[null,"387 - Washington State Arts Commission","387","Washington State Arts Commission",547.06939301383795,547.06939301383795,20,3.5454872580452775E-4,0,0,{"$f":"$D$4*$I$5*'Park Allocations'!E88","v":0},{"$f":"$D$4*$I$5*'Park Allocations'!F88","v":0},{"$f":"$D$4*$I$5*'Park Allocations'!G88","v":0},{"$f":"$D$4*$I$5*'Park Allocations'!H88","v":0},{"$f":"$D$4*$I$5*'Park Allocations'!I88","v":0},{"$f":"$D$4*$I$5*'Park Allocations'!J88","v":0},{"$f":"$D$4*$I$5*'Park Allocations'!K88","v":0},{"$f":"$D$4*$I$5*'Park Allocations'!L88","v":0},{"$f":"$D$4*$I$5*'Park Allocations'!M88","v":0},{"$f":"$D$4*$I$5*'Park Allocations'!N88","v":0},{"$f":"$D$4*$I$5*'Park Allocations'!O88","v":0},{"$f":"$D$4*$I$5*'Park Allocations'!P88","v":0},{"$f":"$D$4*$I$5*'Park Allocations'!Q88","v":0},{"$f":"$D$4*$I$5*'Park Allocations'!R88","v":0},{"$f":"$D$4*$I$5*'Park Allocations'!S88","v":0},{"$f":"$D$4*$I$5*'Park Allocations'!T88","v":0},{"$f":"$D$4*$I$5*'Park Allocations'!U88","v":0},{"$f":"$D$4*$I$5*'Park Allocations'!V88","v":0},{"$f":"$D$4*$I$5*'Park Allocations'!W88","v":0},{"$f":"$D$4*$I$5*'Park Allocations'!X88","v":0},{"$f":"$D$4*$I$5*'Park Allocations'!Y88","v":0},{"$f":"$D$4*$I$5*'Park Allocations'!Z88","v":0},{"$f":"$D$4*$I$5*'Park Allocations'!AA88","v":0},{"$f":"$D$4*$I$5*'Park Allocations'!AB88","v":0},{"$f":"$D$4*$I$5*'Park Allocations'!AC88","v":0},{"$f":"$D$4*$I$5*'Park Allocations'!AD88","v":0},{"$f":"$D$4*$I$5*'Park Allocations'!AE88","v":0},{"$f":"$D$4*$I$5*'Park Allocations'!AF88","v":0},{"$f":"$D$4*$I$5*'Park Allocations'!AG88","v":0},{"$f":"$D$4*$I$5*'Park Allocations'!AH88","v":0},{"$f":"$D$4*$I$5*'Park Allocations'!AI88","v":0},{"$f":"$D$4*$I$5*'Park Allocations'!AJ88","v":0},{"$f":"$D$4*$I$5*'Park Allocations'!AK88","v":0},{"$f":"$D$4*$I$5*'Park Allocations'!AL88","v":0}]
[null,"390 - Washington State Historical Society","390","Washington State Historical Society",27.353469650691892,27.353469650691892,1,1.7727436290226384E-5,0,0,{"$f":"$D$4*$I$5*'Park Allocations'!E89","v":0},{"$f":"$D$4*$I$5*'Park Allocations'!F89","v":0},{"$f":"$D$4*$I$5*'Park Allocations'!G89","v":0},{"$f":"$D$4*$I$5*'Park Allocations'!H89","v":0},{"$f":"$D$4*$I$5*'Park Allocations'!I89","v":0},{"$f":"$D$4*$I$5*'Park Allocations'!J89","v":0},{"$f":"$D$4*$I$5*'Park Allocations'!K89","v":0},{"$f":"$D$4*$I$5*'Park Allocations'!L89","v":0},{"$f":"$D$4*$I$5*'Park Allocations'!M89","v":0},{"$f":"$D$4*$I$5*'Park Allocations'!N89","v":0},{"$f":"$D$4*$I$5*'Park Allocations'!O89","v":0},{"$f":"$D$4*$I$5*'Park Allocations'!P89","v":0},{"$f":"$D$4*$I$5*'Park Allocations'!Q89","v":0},{"$f":"$D$4*$I$5*'Park Allocations'!R89","v":0},{"$f":"$D$4*$I$5*'Park Allocations'!S89","v":0},{"$f":"$D$4*$I$5*'Park Allocations'!T89","v":0},{"$f":"$D$4*$I$5*'Park Allocations'!U89","v":0},{"$f":"$D$4*$I$5*'Park Allocations'!V89","v":0},{"$f":"$D$4*$I$5*'Park Allocations'!W89","v":0},{"$f":"$D$4*$I$5*'Park Allocations'!X89","v":0},{"$f":"$D$4*$I$5*'Park Allocations'!Y89","v":0},{"$f":"$D$4*$I$5*'Park Allocations'!Z89","v":0},{"$f":"$D$4*$I$5*'Park Allocations'!AA89","v":0},{"$f":"$D$4*$I$5*'Park Allocations'!AB89","v":0},{"$f":"$D$4*$I$5*'Park Allocations'!AC89","v":0},{"$f":"$D$4*$I$5*'Park Allocations'!AD89","v":0},{"$f":"$D$4*$I$5*'Park Allocations'!AE89","v":0},{"$f":"$D$4*$I$5*'Park Allocations'!AF89","v":0},{"$f":"$D$4*$I$5*'Park Allocations'!AG89","v":0},{"$f":"$D$4*$I$5*'Park Allocations'!AH89","v":0},{"$f":"$D$4*$I$5*'Park Allocations'!AI89","v":0},{"$f":"$D$4*$I$5*'Park Allocations'!AJ89","v":0},{"$f":"$D$4*$I$5*'Park Allocations'!AK89","v":0},{"$f":"$D$4*$I$5*'Park Allocations'!AL89","v":0}]
[null,"395 - Eastern Washington State Historical Society","395","Eastern Washington State Historical Society",0,0,0,0,0,0,{"$f":"$D$4*$I$5*'Park Allocations'!E90","v":0},{"$f":"$D$4*$I$5*'Park Allocations'!F90","v":0},{"$f":"$D$4*$I$5*'Park Allocations'!G90","v":0},{"$f":"$D$4*$I$5*'Park Allocations'!H90","v":0},{"$f":"$D$4*$I$5*'Park Allocations'!I90","v":0},{"$f":"$D$4*$I$5*'Park Allocations'!J90","v":0},{"$f":"$D$4*$I$5*'Park Allocations'!K90","v":0},{"$f":"$D$4*$I$5*'Park Allocations'!L90","v":0},{"$f":"$D$4*$I$5*'Park Allocations'!M90","v":0},{"$f":"$D$4*$I$5*'Park Allocations'!N90","v":0},{"$f":"$D$4*$I$5*'Park Allocations'!O90","v":0},{"$f":"$D$4*$I$5*'Park Allocations'!P90","v":0},{"$f":"$D$4*$I$5*'Park Allocations'!Q90","v":0},{"$f":"$D$4*$I$5*'Park Allocations'!R90","v":0},{"$f":"$D$4*$I$5*'Park Allocations'!S90","v":0},{"$f":"$D$4*$I$5*'Park Allocations'!T90","v":0},{"$f":"$D$4*$I$5*'Park Allocations'!U90","v":0},{"$f":"$D$4*$I$5*'Park Allocations'!V90","v":0},{"$f":"$D$4*$I$5*'Park Allocations'!W90","v":0},{"$f":"$D$4*$I$5*'Park Allocations'!X90","v":0},{"$f":"$D$4*$I$5*'Park Allocations'!Y90","v":0},{"$f":"$D$4*$I$5*'Park Allocations'!Z90","v":0},{"$f":"$D$4*$I$5*'Park Allocations'!AA90","v":0},{"$f":"$D$4*$I$5*'Park Allocations'!AB90","v":0},{"$f":"$D$4*$I$5*'Park Allocations'!AC90","v":0},{"$f":"$D$4*$I$5*'Park Allocations'!AD90","v":0},{"$f":"$D$4*$I$5*'Park Allocations'!AE90","v":0},{"$f":"$D$4*$I$5*'Park Allocations'!AF90","v":0},{"$f":"$D$4*$I$5*'Park Allocations'!AG90","v":0},{"$f":"$D$4*$I$5*'Park Allocations'!AH90","v":0},{"$f":"$D$4*$I$5*'Park Allocations'!AI90","v":0},{"$f":"$D$4*$I$5*'Park Allocations'!AJ90","v":0},{"$f":"$D$4*$I$5*'Park Allocations'!AK90","v":0},{"$f":"$D$4*$I$5*'Park Allocations'!AL90","v":0}]
[null,"405 - Department of Transportation","405","Department of Transportation",53309.521559708279,41987.575913812056,1535,2.7211614705497499E-2,7.3376091838482536E-3,4.5450802103836153E-2,{"$f":"$D$4*$I$5*'Park Allocations'!E91","v":0},{"$f":"$D$4*$I$5*'Park Allocations'!F91","v":0},{"$f":"$D$4*$I$5*'Park Allocations'!G91","v":0},{"$f":"$D$4*$I$5*'Park Allocations'!H91","v":0},{"$f":"$D$4*$I$5*'Park Allocations'!I91","v":0},{"$f":"$D$4*$I$5*'Park Allocations'!J91","v":0},{"$f":"$D$4*$I$5*'Park Allocations'!K91","v":0},{"$f":"$D$4*$I$5*'Park Allocations'!L91","v":0},{"$f":"$D$4*$I$5*'Park Allocations'!M91","v":0},{"$f":"$D$4*$I$5*'Park Allocations'!N91","v":11321.945645896223},{"$f":"$D$4*$I$5*'Park Allocations'!O91","v":0},{"$f":"$D$4*$I$5*'Park Allocations'!P91","v":0},{"$f":"$D$4*$I$5*'Park Allocations'!Q91","v":0},{"$f":"$D$4*$I$5*'Park Allocations'!R91","v":0},{"$f":"$D$4*$I$5*'Park Allocations'!S91","v":0},{"$f":"$D$4*$I$5*'Park Allocations'!T91","v":0},{"$f":"$D$4*$I$5*'Park Allocations'!U91","v":0},{"$f":"$D$4*$I$5*'Park Allocations'!V91","v":0},{"$f":"$D$4*$I$5*'Park Allocations'!W91","v":0},{"$f":"$D$4*$I$5*'Park Allocations'!X91","v":0},{"$f":"$D$4*$I$5*'Park Allocations'!Y91","v":0},{"$f":"$D$4*$I$5*'Park Allocations'!Z91","v":0},{"$f":"$D$4*$I$5*'Park Allocations'!AA91","v":0},{"$f":"$D$4*$I$5*'Park Allocations'!AB91","v":0},{"$f":"$D$4*$I$5*'Park Allocations'!AC91","v":0},{"$f":"$D$4*$I$5*'Park Allocations'!AD91","v":0},{"$f":"$D$4*$I$5*'Park Allocations'!AE91","v":0},{"$f":"$D$4*$I$5*'Park Allocations'!AF91","v":0},{"$f":"$D$4*$I$5*'Park Allocations'!AG91","v":0},{"$f":"$D$4*$I$5*'Park Allocations'!AH91","v":0},{"$f":"$D$4*$I$5*'Park Allocations'!AI91","v":0},{"$f":"$D$4*$I$5*'Park Allocations'!AJ91","v":0},{"$f":"$D$4*$I$5*'Park Allocations'!AK91","v":0},{"$f":"$D$4*$I$5*'Park Allocations'!AL91","v":0}]
[null,"406 - County Road Administration Board","406","County Road Administration Board",437.65551441107027,437.65551441107027,16,2.8363898064362214E-4,0,0,{"$f":"$D$4*$I$5*'Park Allocations'!E92","v":0},{"$f":"$D$4*$I$5*'Park Allocations'!F92","v":0},{"$f":"$D$4*$I$5*'Park Allocations'!G92","v":0},{"$f":"$D$4*$I$5*'Park Allocations'!H92","v":0},{"$f":"$D$4*$I$5*'Park Allocations'!I92","v":0},{"$f":"$D$4*$I$5*'Park Allocations'!J92","v":0},{"$f":"$D$4*$I$5*'Park Allocations'!K92","v":0},{"$f":"$D$4*$I$5*'Park Allocations'!L92","v":0},{"$f":"$D$4*$I$5*'Park Allocations'!M92","v":0},{"$f":"$D$4*$I$5*'Park Allocations'!N92","v":0},{"$f":"$D$4*$I$5*'Park Allocations'!O92","v":0},{"$f":"$D$4*$I$5*'Park Allocations'!P92","v":0},{"$f":"$D$4*$I$5*'Park Allocations'!Q92","v":0},{"$f":"$D$4*$I$5*'Park Allocations'!R92","v":0},{"$f":"$D$4*$I$5*'Park Allocations'!S92","v":0},{"$f":"$D$4*$I$5*'Park Allocations'!T92","v":0},{"$f":"$D$4*$I$5*'Park Allocations'!U92","v":0},{"$f":"$D$4*$I$5*'Park Allocations'!V92","v":0},{"$f":"$D$4*$I$5*'Park Allocations'!W92","v":0},{"$f":"$D$4*$I$5*'Park Allocations'!X92","v":0},{"$f":"$D$4*$I$5*'Park Allocations'!Y92","v":0},{"$f":"$D$4*$I$5*'Park Allocations'!Z92","v":0},{"$f":"$D$4*$I$5*'Park Allocations'!AA92","v":0},{"$f":"$D$4*$I$5*'Park Allocations'!AB92","v":0},{"$f":"$D$4*$I$5*'Park Allocations'!AC92","v":0},{"$f":"$D$4*$I$5*'Park Allocations'!AD92","v":0},{"$f":"$D$4*$I$5*'Park Allocations'!AE92","v":0},{"$f":"$D$4*$I$5*'Park Allocations'!AF92","v":0},{"$f":"$D$4*$I$5*'Park Allocations'!AG92","v":0},{"$f":"$D$4*$I$5*'Park Allocations'!AH92","v":0},{"$f":"$D$4*$I$5*'Park Allocations'!AI92","v":0},{"$f":"$D$4*$I$5*'Park Allocations'!AJ92","v":0},{"$f":"$D$4*$I$5*'Park Allocations'!AK92","v":0},{"$f":"$D$4*$I$5*'Park Allocations'!AL92","v":0}]
[null,"407 - Transportation Improvement Board","407","Transportation Improvement Board",300.88816615761084,300.88816615761084,11,1.9500179919249025E-4,0,0,{"$f":"$D$4*$I$5*'Park Allocations'!E93","v":0},{"$f":"$D$4*$I$5*'Park Allocations'!F93","v":0},{"$f":"$D$4*$I$5*'Park Allocations'!G93","v":0},{"$f":"$D$4*$I$5*'Park Allocations'!H93","v":0},{"$f":"$D$4*$I$5*'Park Allocations'!I93","v":0},{"$f":"$D$4*$I$5*'Park Allocations'!J93","v":0},{"$f":"$D$4*$I$5*'Park Allocations'!K93","v":0},{"$f":"$D$4*$I$5*'Park Allocations'!L93","v":0},{"$f":"$D$4*$I$5*'Park Allocations'!M93","v":0},{"$f":"$D$4*$I$5*'Park Allocations'!N93","v":0},{"$f":"$D$4*$I$5*'Park Allocations'!O93","v":0},{"$f":"$D$4*$I$5*'Park Allocations'!P93","v":0},{"$f":"$D$4*$I$5*'Park Allocations'!Q93","v":0},{"$f":"$D$4*$I$5*'Park Allocations'!R93","v":0},{"$f":"$D$4*$I$5*'Park Allocations'!S93","v":0},{"$f":"$D$4*$I$5*'Park Allocations'!T93","v":0},{"$f":"$D$4*$I$5*'Park Allocations'!U93","v":0},{"$f":"$D$4*$I$5*'Park Allocations'!V93","v":0},{"$f":"$D$4*$I$5*'Park Allocations'!W93","v":0},{"$f":"$D$4*$I$5*'Park Allocations'!X93","v":0},{"$f":"$D$4*$I$5*'Park Allocations'!Y93","v":0},{"$f":"$D$4*$I$5*'Park Allocations'!Z93","v":0},{"$f":"$D$4*$I$5*'Park Allocations'!AA93","v":0},{"$f":"$D$4*$I$5*'Park Allocations'!AB93","v":0},{"$f":"$D$4*$I$5*'Park Allocations'!AC93","v":0},{"$f":"$D$4*$I$5*'Park Allocations'!AD93","v":0},{"$f":"$D$4*$I$5*'Park Allocations'!AE93","v":0},{"$f":"$D$4*$I$5*'Park Allocations'!AF93","v":0},{"$f":"$D$4*$I$5*'Park Allocations'!AG93","v":0},{"$f":"$D$4*$I$5*'Park Allocations'!AH93","v":0},{"$f":"$D$4*$I$5*'Park Allocations'!AI93","v":0},{"$f":"$D$4*$I$5*'Park Allocations'!AJ93","v":0},{"$f":"$D$4*$I$5*'Park Allocations'!AK93","v":0},{"$f":"$D$4*$I$5*'Park Allocations'!AL93","v":0}]
[null,"410 - Transportation Commission","410","Transportation Commission",164.12081790415135,164.12081790415135,6,1.0636461774135831E-4,0,0,{"$f":"$D$4*$I$5*'Park Allocations'!E94","v":0},{"$f":"$D$4*$I$5*'Park Allocations'!F94","v":0},{"$f":"$D$4*$I$5*'Park Allocations'!G94","v":0},{"$f":"$D$4*$I$5*'Park Allocations'!H94","v":0},{"$f":"$D$4*$I$5*'Park Allocations'!I94","v":0},{"$f":"$D$4*$I$5*'Park Allocations'!J94","v":0},{"$f":"$D$4*$I$5*'Park Allocations'!K94","v":0},{"$f":"$D$4*$I$5*'Park Allocations'!L94","v":0},{"$f":"$D$4*$I$5*'Park Allocations'!M94","v":0},{"$f":"$D$4*$I$5*'Park Allocations'!N94","v":0},{"$f":"$D$4*$I$5*'Park Allocations'!O94","v":0},{"$f":"$D$4*$I$5*'Park Allocations'!P94","v":0},{"$f":"$D$4*$I$5*'Park Allocations'!Q94","v":0},{"$f":"$D$4*$I$5*'Park Allocations'!R94","v":0},{"$f":"$D$4*$I$5*'Park Allocations'!S94","v":0},{"$f":"$D$4*$I$5*'Park Allocations'!T94","v":0},{"$f":"$D$4*$I$5*'Park Allocations'!U94","v":0},{"$f":"$D$4*$I$5*'Park Allocations'!V94","v":0},{"$f":"$D$4*$I$5*'Park Allocations'!W94","v":0},{"$f":"$D$4*$I$5*'Park Allocations'!X94","v":0},{"$f":"$D$4*$I$5*'Park Allocations'!Y94","v":0},{"$f":"$D$4*$I$5*'Park Allocations'!Z94","v":0},{"$f":"$D$4*$I$5*'Park Allocations'!AA94","v":0},{"$f":"$D$4*$I$5*'Park Allocations'!AB94","v":0},{"$f":"$D$4*$I$5*'Park Allocations'!AC94","v":0},{"$f":"$D$4*$I$5*'Park Allocations'!AD94","v":0},{"$f":"$D$4*$I$5*'Park Allocations'!AE94","v":0},{"$f":"$D$4*$I$5*'Park Allocations'!AF94","v":0},{"$f":"$D$4*$I$5*'Park Allocations'!AG94","v":0},{"$f":"$D$4*$I$5*'Park Allocations'!AH94","v":0},{"$f":"$D$4*$I$5*'Park Allocations'!AI94","v":0},{"$f":"$D$4*$I$5*'Park Allocations'!AJ94","v":0},{"$f":"$D$4*$I$5*'Park Allocations'!AK94","v":0},{"$f":"$D$4*$I$5*'Park Allocations'!AL94","v":0}]
[null,"411 - Freight Mobility Strategic Investment Board","411","Freight Mobility Strategic Investment Board",54.706939301383784,54.706939301383784,2,3.5454872580452768E-5,0,0,{"$f":"$D$4*$I$5*'Park Allocations'!E95","v":0},{"$f":"$D$4*$I$5*'Park Allocations'!F95","v":0},{"$f":"$D$4*$I$5*'Park Allocations'!G95","v":0},{"$f":"$D$4*$I$5*'Park Allocations'!H95","v":0},{"$f":"$D$4*$I$5*'Park Allocations'!I95","v":0},{"$f":"$D$4*$I$5*'Park Allocations'!J95","v":0},{"$f":"$D$4*$I$5*'Park Allocations'!K95","v":0},{"$f":"$D$4*$I$5*'Park Allocations'!L95","v":0},{"$f":"$D$4*$I$5*'Park Allocations'!M95","v":0},{"$f":"$D$4*$I$5*'Park Allocations'!N95","v":0},{"$f":"$D$4*$I$5*'Park Allocations'!O95","v":0},{"$f":"$D$4*$I$5*'Park Allocations'!P95","v":0},{"$f":"$D$4*$I$5*'Park Allocations'!Q95","v":0},{"$f":"$D$4*$I$5*'Park Allocations'!R95","v":0},{"$f":"$D$4*$I$5*'Park Allocations'!S95","v":0},{"$f":"$D$4*$I$5*'Park Allocations'!T95","v":0},{"$f":"$D$4*$I$5*'Park Allocations'!U95","v":0},{"$f":"$D$4*$I$5*'Park Allocations'!V95","v":0},{"$f":"$D$4*$I$5*'Park Allocations'!W95","v":0},{"$f":"$D$4*$I$5*'Park Allocations'!X95","v":0},{"$f":"$D$4*$I$5*'Park Allocations'!Y95","v":0},{"$f":"$D$4*$I$5*'Park Allocations'!Z95","v":0},{"$f":"$D$4*$I$5*'Park Allocations'!AA95","v":0},{"$f":"$D$4*$I$5*'Park Allocations'!AB95","v":0},{"$f":"$D$4*$I$5*'Park Allocations'!AC95","v":0},{"$f":"$D$4*$I$5*'Park Allocations'!AD95","v":0},{"$f":"$D$4*$I$5*'Park Allocations'!AE95","v":0},{"$f":"$D$4*$I$5*'Park Allocations'!AF95","v":0},{"$f":"$D$4*$I$5*'Park Allocations'!AG95","v":0},{"$f":"$D$4*$I$5*'Park Allocations'!AH95","v":0},{"$f":"$D$4*$I$5*'Park Allocations'!AI95","v":0},{"$f":"$D$4*$I$5*'Park Allocations'!AJ95","v":0},{"$f":"$D$4*$I$5*'Park Allocations'!AK95","v":0},{"$f":"$D$4*$I$5*'Park Allocations'!AL95","v":0}]
[null,"460 - Columbia River Gorge Commission","460","Columbia River Gorge Commission",0,0,0,0,0,0,{"$f":"$D$4*$I$5*'Park Allocations'!E96","v":0},{"$f":"$D$4*$I$5*'Park Allocations'!F96","v":0},{"$f":"$D$4*$I$5*'Park Allocations'!G96","v":0},{"$f":"$D$4*$I$5*'Park Allocations'!H96","v":0},{"$f":"$D$4*$I$5*'Park Allocations'!I96","v":0},{"$f":"$D$4*$I$5*'Park Allocations'!J96","v":0},{"$f":"$D$4*$I$5*'Park Allocations'!K96","v":0},{"$f":"$D$4*$I$5*'Park Allocations'!L96","v":0},{"$f":"$D$4*$I$5*'Park Allocations'!M96","v":0},{"$f":"$D$4*$I$5*'Park Allocations'!N96","v":0},{"$f":"$D$4*$I$5*'Park Allocations'!O96","v":0},{"$f":"$D$4*$I$5*'Park Allocations'!P96","v":0},{"$f":"$D$4*$I$5*'Park Allocations'!Q96","v":0},{"$f":"$D$4*$I$5*'Park Allocations'!R96","v":0},{"$f":"$D$4*$I$5*'Park Allocations'!S96","v":0},{"$f":"$D$4*$I$5*'Park Allocations'!T96","v":0},{"$f":"$D$4*$I$5*'Park Allocations'!U96","v":0},{"$f":"$D$4*$I$5*'Park Allocations'!V96","v":0},{"$f":"$D$4*$I$5*'Park Allocations'!W96","v":0},{"$f":"$D$4*$I$5*'Park Allocations'!X96","v":0},{"$f":"$D$4*$I$5*'Park Allocations'!Y96","v":0},{"$f":"$D$4*$I$5*'Park Allocations'!Z96","v":0},{"$f":"$D$4*$I$5*'Park Allocations'!AA96","v":0},{"$f":"$D$4*$I$5*'Park Allocations'!AB96","v":0},{"$f":"$D$4*$I$5*'Park Allocations'!AC96","v":0},{"$f":"$D$4*$I$5*'Park Allocations'!AD96","v":0},{"$f":"$D$4*$I$5*'Park Allocations'!AE96","v":0},{"$f":"$D$4*$I$5*'Park Allocations'!AF96","v":0},{"$f":"$D$4*$I$5*'Park Allocations'!AG96","v":0},{"$f":"$D$4*$I$5*'Park Allocations'!AH96","v":0},{"$f":"$D$4*$I$5*'Park Allocations'!AI96","v":0},{"$f":"$D$4*$I$5*'Park Allocations'!AJ96","v":0},{"$f":"$D$4*$I$5*'Park Allocations'!AK96","v":0},{"$f":"$D$4*$I$5*'Park Allocations'!AL96","v":0}]
[null,"461 - Department of Ecology","461","Department of Ecology",26614.925970123211,26614.925970123211,973,1.7248795510390273E-2,0,0,{"$f":"$D$4*$I$5*'Park Allocations'!E97","v":0},{"$f":"$D$4*$I$5*'Park Allocations'!F97","v":0},{"$f":"$D$4*$I$5*'Park Allocations'!G97","v":0},{"$f":"$D$4*$I$5*'Park Allocations'!H97","v":0},{"$f":"$D$4*$I$5*'Park Allocations'!I97","v":0},{"$f":"$D$4*$I$5*'Park Allocations'!J97","v":0},{"$f":"$D$4*$I$5*'Park Allocations'!K97","v":0},{"$f":"$D$4*$I$5*'Park Allocations'!L97","v":0},{"$f":"$D$4*$I$5*'Park Allocations'!M97","v":0},{"$f":"$D$4*$I$5*'Park Allocations'!N97","v":0},{"$f":"$D$4*$I$5*'Park Allocations'!O97","v":0},{"$f":"$D$4*$I$5*'Park Allocations'!P97","v":0},{"$f":"$D$4*$I$5*'Park Allocations'!Q97","v":0},{"$f":"$D$4*$I$5*'Park Allocations'!R97","v":0},{"$f":"$D$4*$I$5*'Park Allocations'!S97","v":0},{"$f":"$D$4*$I$5*'Park Allocations'!T97","v":0},{"$f":"$D$4*$I$5*'Park Allocations'!U97","v":0},{"$f":"$D$4*$I$5*'Park Allocations'!V97","v":0},{"$f":"$D$4*$I$5*'Park Allocations'!W97","v":0},{"$f":"$D$4*$I$5*'Park Allocations'!X97","v":0},{"$f":"$D$4*$I$5*'Park Allocations'!Y97","v":0},{"$f":"$D$4*$I$5*'Park Allocations'!Z97","v":0},{"$f":"$D$4*$I$5*'Park Allocations'!AA97","v":0},{"$f":"$D$4*$I$5*'Park Allocations'!AB97","v":0},{"$f":"$D$4*$I$5*'Park Allocations'!AC97","v":0},{"$f":"$D$4*$I$5*'Park Allocations'!AD97","v":0},{"$f":"$D$4*$I$5*'Park Allocations'!AE97","v":0},{"$f":"$D$4*$I$5*'Park Allocations'!AF97","v":0},{"$f":"$D$4*$I$5*'Park Allocations'!AG97","v":0},{"$f":"$D$4*$I$5*'Park Allocations'!AH97","v":0},{"$f":"$D$4*$I$5*'Park Allocations'!AI97","v":0},{"$f":"$D$4*$I$5*'Park Allocations'!AJ97","v":0},{"$f":"$D$4*$I$5*'Park Allocations'!AK97","v":0},{"$f":"$D$4*$I$5*'Park Allocations'!AL97","v":0}]
[null,"462 - Pollution Liability Insurance Program","462","Pollution Liability Insurance Program",492.362453712454,492.362453712454,18,3.1909385322407489E-4,0,0,{"$f":"$D$4*$I$5*'Park Allocations'!E98","v":0},{"$f":"$D$4*$I$5*'Park Allocations'!F98","v":0},{"$f":"$D$4*$I$5*'Park Allocations'!G98","v":0},{"$f":"$D$4*$I$5*'Park Allocations'!H98","v":0},{"$f":"$D$4*$I$5*'Park Allocations'!I98","v":0},{"$f":"$D$4*$I$5*'Park Allocations'!J98","v":0},{"$f":"$D$4*$I$5*'Park Allocations'!K98","v":0},{"$f":"$D$4*$I$5*'Park Allocations'!L98","v":0},{"$f":"$D$4*$I$5*'Park Allocations'!M98","v":0},{"$f":"$D$4*$I$5*'Park Allocations'!N98","v":0},{"$f":"$D$4*$I$5*'Park Allocations'!O98","v":0},{"$f":"$D$4*$I$5*'Park Allocations'!P98","v":0},{"$f":"$D$4*$I$5*'Park Allocations'!Q98","v":0},{"$f":"$D$4*$I$5*'Park Allocations'!R98","v":0},{"$f":"$D$4*$I$5*'Park Allocations'!S98","v":0},{"$f":"$D$4*$I$5*'Park Allocations'!T98","v":0},{"$f":"$D$4*$I$5*'Park Allocations'!U98","v":0},{"$f":"$D$4*$I$5*'Park Allocations'!V98","v":0},{"$f":"$D$4*$I$5*'Park Allocations'!W98","v":0},{"$f":"$D$4*$I$5*'Park Allocations'!X98","v":0},{"$f":"$D$4*$I$5*'Park Allocations'!Y98","v":0},{"$f":"$D$4*$I$5*'Park Allocations'!Z98","v":0},{"$f":"$D$4*$I$5*'Park Allocations'!AA98","v":0},{"$f":"$D$4*$I$5*'Park Allocations'!AB98","v":0},{"$f":"$D$4*$I$5*'Park Allocations'!AC98","v":0},{"$f":"$D$4*$I$5*'Park Allocations'!AD98","v":0},{"$f":"$D$4*$I$5*'Park Allocations'!AE98","v":0},{"$f":"$D$4*$I$5*'Park Allocations'!AF98","v":0},{"$f":"$D$4*$I$5*'Park Allocations'!AG98","v":0},{"$f":"$D$4*$I$5*'Park Allocations'!AH98","v":0},{"$f":"$D$4*$I$5*'Park Allocations'!AI98","v":0},{"$f":"$D$4*$I$5*'Park Allocations'!AJ98","v":0},{"$f":"$D$4*$I$5*'Park Allocations'!AK98","v":0},{"$f":"$D$4*$I$5*'Park Allocations'!AL98","v":0}]
[null,"465 - State Parks and Recreation Commission","465","State Parks and Recreation Commission",5087.7453550286918,5087.7453550286918,186,3.2973031499821076E-3,0,0,{"$f":"$D$4*$I$5*'Park Allocations'!E99","v":0},{"$f":"$D$4*$I$5*'Park Allocations'!F99","v":0},{"$f":"$D$4*$I$5*'Park Allocations'!G99","v":0},{"$f":"$D$4*$I$5*'Park Allocations'!H99","v":0},{"$f":"$D$4*$I$5*'Park Allocations'!I99","v":0},{"$f":"$D$4*$I$5*'Park Allocations'!J99","v":0},{"$f":"$D$4*$I$5*'Park Allocations'!K99","v":0},{"$f":"$D$4*$I$5*'Park Allocations'!L99","v":0},{"$f":"$D$4*$I$5*'Park Allocations'!M99","v":0},{"$f":"$D$4*$I$5*'Park Allocations'!N99","v":0},{"$f":"$D$4*$I$5*'Park Allocations'!O99","v":0},{"$f":"$D$4*$I$5*'Park Allocations'!P99","v":0},{"$f":"$D$4*$I$5*'Park Allocations'!Q99","v":0},{"$f":"$D$4*$I$5*'Park Allocations'!R99","v":0},{"$f":"$D$4*$I$5*'Park Allocations'!S99","v":0},{"$f":"$D$4*$I$5*'Park Allocations'!T99","v":0},{"$f":"$D$4*$I$5*'Park Allocations'!U99","v":0},{"$f":"$D$4*$I$5*'Park Allocations'!V99","v":0},{"$f":"$D$4*$I$5*'Park Allocations'!W99","v":0},{"$f":"$D$4*$I$5*'Park Allocations'!X99","v":0},{"$f":"$D$4*$I$5*'Park Allocations'!Y99","v":0},{"$f":"$D$4*$I$5*'Park Allocations'!Z99","v":0},{"$f":"$D$4*$I$5*'Park Allocations'!AA99","v":0},{"$f":"$D$4*$I$5*'Park Allocations'!AB99","v":0},{"$f":"$D$4*$I$5*'Park Allocations'!AC99","v":0},{"$f":"$D$4*$I$5*'Park Allocations'!AD99","v":0},{"$f":"$D$4*$I$5*'Park Allocations'!AE99","v":0},{"$f":"$D$4*$I$5*'Park Allocations'!AF99","v":0},{"$f":"$D$4*$I$5*'Park Allocations'!AG99","v":0},{"$f":"$D$4*$I$5*'Park Allocations'!AH99","v":0},{"$f":"$D$4*$I$5*'Park Allocations'!AI99","v":0},{"$f":"$D$4*$I$5*'Park Allocations'!AJ99","v":0},{"$f":"$D$4*$I$5*'Park Allocations'!AK99","v":0},{"$f":"$D$4*$I$5*'Park Allocations'!AL99","v":0}]
[null,"467 - Recreation and Conservation Funding Board","467","Recreation and Conservation Funding Board",2396.7824016838422,1668.5616486922056,61,1.0813736137038096E-3,4.7195062157510915E-4,2.9383148395067688E-3,{"$f":"$D$4*$I$5*'Park Allocations'!E100","v":0},{"$f":"$D$4*$I$5*'Park Allocations'!F100","v":0},{"$f":"$D$4*$I$5*'Park Allocations'!G100","v":0},{"$f":"$D$4*$I$5*'Park Allocations'!H100","v":0},{"$f":"$D$4*$I$5*'Park Allocations'!I100","v":0},{"$f":"$D$4*$I$5*'Park Allocations'!J100","v":0},{"$f":"$D$4*$I$5*'Park Allocations'!K100","v":0},{"$f":"$D$4*$I$5*'Park Allocations'!L100","v":728.22075299163657},{"$f":"$D$4*$I$5*'Park Allocations'!M100","v":0},{"$f":"$D$4*$I$5*'Park Allocations'!N100","v":0},{"$f":"$D$4*$I$5*'Park Allocations'!O100","v":0},{"$f":"$D$4*$I$5*'Park Allocations'!P100","v":0},{"$f":"$D$4*$I$5*'Park Allocations'!Q100","v":0},{"$f":"$D$4*$I$5*'Park Allocations'!R100","v":0},{"$f":"$D$4*$I$5*'Park Allocations'!S100","v":0},{"$f":"$D$4*$I$5*'Park Allocations'!T100","v":0},{"$f":"$D$4*$I$5*'Park Allocations'!U100","v":0},{"$f":"$D$4*$I$5*'Park Allocations'!V100","v":0},{"$f":"$D$4*$I$5*'Park Allocations'!W100","v":0},{"$f":"$D$4*$I$5*'Park Allocations'!X100","v":0},{"$f":"$D$4*$I$5*'Park Allocations'!Y100","v":0},{"$f":"$D$4*$I$5*'Park Allocations'!Z100","v":0},{"$f":"$D$4*$I$5*'Park Allocations'!AA100","v":0},{"$f":"$D$4*$I$5*'Park Allocations'!AB100","v":0},{"$f":"$D$4*$I$5*'Park Allocations'!AC100","v":0},{"$f":"$D$4*$I$5*'Park Allocations'!AD100","v":0},{"$f":"$D$4*$I$5*'Park Allocations'!AE100","v":0},{"$f":"$D$4*$I$5*'Park Allocations'!AF100","v":0},{"$f":"$D$4*$I$5*'Park Allocations'!AG100","v":0},{"$f":"$D$4*$I$5*'Park Allocations'!AH100","v":0},{"$f":"$D$4*$I$5*'Park Allocations'!AI100","v":0},{"$f":"$D$4*$I$5*'Park Allocations'!AJ100","v":0},{"$f":"$D$4*$I$5*'Park Allocations'!AK100","v":0},{"$f":"$D$4*$I$5*'Park Allocations'!AL100","v":0}]
[null,"468 - Environmental and Land Use Hearings Office","468","Environmental and Land Use Hearings Office",273.53469650691898,273.53469650691898,10,1.7727436290226387E-4,0,0,{"$f":"$D$4*$I$5*'Park Allocations'!E101","v":0},{"$f":"$D$4*$I$5*'Park Allocations'!F101","v":0},{"$f":"$D$4*$I$5*'Park Allocations'!G101","v":0},{"$f":"$D$4*$I$5*'Park Allocations'!H101","v":0},{"$f":"$D$4*$I$5*'Park Allocations'!I101","v":0},{"$f":"$D$4*$I$5*'Park Allocations'!J101","v":0},{"$f":"$D$4*$I$5*'Park Allocations'!K101","v":0},{"$f":"$D$4*$I$5*'Park Allocations'!L101","v":0},{"$f":"$D$4*$I$5*'Park Allocations'!M101","v":0},{"$f":"$D$4*$I$5*'Park Allocations'!N101","v":0},{"$f":"$D$4*$I$5*'Park Allocations'!O101","v":0},{"$f":"$D$4*$I$5*'Park Allocations'!P101","v":0},{"$f":"$D$4*$I$5*'Park Allocations'!Q101","v":0},{"$f":"$D$4*$I$5*'Park Allocations'!R101","v":0},{"$f":"$D$4*$I$5*'Park Allocations'!S101","v":0},{"$f":"$D$4*$I$5*'Park Allocations'!T101","v":0},{"$f":"$D$4*$I$5*'Park Allocations'!U101","v":0},{"$f":"$D$4*$I$5*'Park Allocations'!V101","v":0},{"$f":"$D$4*$I$5*'Park Allocations'!W101","v":0},{"$f":"$D$4*$I$5*'Park Allocations'!X101","v":0},{"$f":"$D$4*$I$5*'Park Allocations'!Y101","v":0},{"$f":"$D$4*$I$5*'Park Allocations'!Z101","v":0},{"$f":"$D$4*$I$5*'Park Allocations'!AA101","v":0},{"$f":"$D$4*$I$5*'Park Allocations'!AB101","v":0},{"$f":"$D$4*$I$5*'Park Allocations'!AC101","v":0},{"$f":"$D$4*$I$5*'Park Allocations'!AD101","v":0},{"$f":"$D$4*$I$5*'Park Allocations'!AE101","v":0},{"$f":"$D$4*$I$5*'Park Allocations'!AF101","v":0},{"$f":"$D$4*$I$5*'Park Allocations'!AG101","v":0},{"$f":"$D$4*$I$5*'Park Allocations'!AH101","v":0},{"$f":"$D$4*$I$5*'Park Allocations'!AI101","v":0},{"$f":"$D$4*$I$5*'Park Allocations'!AJ101","v":0},{"$f":"$D$4*$I$5*'Park Allocations'!AK101","v":0},{"$f":"$D$4*$I$5*'Park Allocations'!AL101","v":0}]
[null,"471 - State Conservation Commission","471","State Conservation Commission",437.65551441107027,437.65551441107027,16,2.8363898064362214E-4,0,0,{"$f":"$D$4*$I$5*'Park Allocations'!E102","v":0},{"$f":"$D$4*$I$5*'Park Allocations'!F102","v":0},{"$f":"$D$4*$I$5*'Park Allocations'!G102","v":0},{"$f":"$D$4*$I$5*'Park Allocations'!H102","v":0},{"$f":"$D$4*$I$5*'Park Allocations'!I102","v":0},{"$f":"$D$4*$I$5*'Park Allocations'!J102","v":0},{"$f":"$D$4*$I$5*'Park Allocations'!K102","v":0},{"$f":"$D$4*$I$5*'Park Allocations'!L102","v":0},{"$f":"$D$4*$I$5*'Park Allocations'!M102","v":0},{"$f":"$D$4*$I$5*'Park Allocations'!N102","v":0},{"$f":"$D$4*$I$5*'Park Allocations'!O102","v":0},{"$f":"$D$4*$I$5*'Park Allocations'!P102","v":0},{"$f":"$D$4*$I$5*'Park Allocations'!Q102","v":0},{"$f":"$D$4*$I$5*'Park Allocations'!R102","v":0},{"$f":"$D$4*$I$5*'Park Allocations'!S102","v":0},{"$f":"$D$4*$I$5*'Park Allocations'!T102","v":0},{"$f":"$D$4*$I$5*'Park Allocations'!U102","v":0},{"$f":"$D$4*$I$5*'Park Allocations'!V102","v":0},{"$f":"$D$4*$I$5*'Park Allocations'!W102","v":0},{"$f":"$D$4*$I$5*'Park Allocations'!X102","v":0},{"$f":"$D$4*$I$5*'Park Allocations'!Y102","v":0},{"$f":"$D$4*$I$5*'Park Allocations'!Z102","v":0},{"$f":"$D$4*$I$5*'Park Allocations'!AA102","v":0},{"$f":"$D$4*$I$5*'Park Allocations'!AB102","v":0},{"$f":"$D$4*$I$5*'Park Allocations'!AC102","v":0},{"$f":"$D$4*$I$5*'Park Allocations'!AD102","v":0},{"$f":"$D$4*$I$5*'Park Allocations'!AE102","v":0},{"$f":"$D$4*$I$5*'Park Allocations'!AF102","v":0},{"$f":"$D$4*$I$5*'Park Allocations'!AG102","v":0},{"$f":"$D$4*$I$5*'Park Allocations'!AH102","v":0},{"$f":"$D$4*$I$5*'Park Allocations'!AI102","v":0},{"$f":"$D$4*$I$5*'Park Allocations'!AJ102","v":0},{"$f":"$D$4*$I$5*'Park Allocations'!AK102","v":0},{"$f":"$D$4*$I$5*'Park Allocations'!AL102","v":0}]
[null,"477 - Department of Fish and Wildlife","477","Department of Fish and Wildlife",29324.254864614326,20651.86958627238,755,1.3384214399120922E-2,5.6204627591810935E-3,3.4992408898795617E-2,{"$f":"$D$4*$I$5*'Park Allocations'!E103","v":0},{"$f":"$D$4*$I$5*'Park Allocations'!F103","v":0},{"$f":"$D$4*$I$5*'Park Allocations'!G103","v":0},{"$f":"$D$4*$I$5*'Park Allocations'!H103","v":0},{"$f":"$D$4*$I$5*'Park Allocations'!I103","v":0},{"$f":"$D$4*$I$5*'Park Allocations'!J103","v":0},{"$f":"$D$4*$I$5*'Park Allocations'!K103","v":0},{"$f":"$D$4*$I$5*'Park Allocations'!L103","v":8672.3852783419461},{"$f":"$D$4*$I$5*'Park Allocations'!M103","v":0},{"$f":"$D$4*$I$5*'Park Allocations'!N103","v":0},{"$f":"$D$4*$I$5*'Park Allocations'!O103","v":0},{"$f":"$D$4*$I$5*'Park Allocations'!P103","v":0},{"$f":"$D$4*$I$5*'Park Allocations'!Q103","v":0},{"$f":"$D$4*$I$5*'Park Allocations'!R103","v":0},{"$f":"$D$4*$I$5*'Park Allocations'!S103","v":0},{"$f":"$D$4*$I$5*'Park Allocations'!T103","v":0},{"$f":"$D$4*$I$5*'Park Allocations'!U103","v":0},{"$f":"$D$4*$I$5*'Park Allocations'!V103","v":0},{"$f":"$D$4*$I$5*'Park Allocations'!W103","v":0},{"$f":"$D$4*$I$5*'Park Allocations'!X103","v":0},{"$f":"$D$4*$I$5*'Park Allocations'!Y103","v":0},{"$f":"$D$4*$I$5*'Park Allocations'!Z103","v":0},{"$f":"$D$4*$I$5*'Park Allocations'!AA103","v":0},{"$f":"$D$4*$I$5*'Park Allocations'!AB103","v":0},{"$f":"$D$4*$I$5*'Park Allocations'!AC103","v":0},{"$f":"$D$4*$I$5*'Park Allocations'!AD103","v":0},{"$f":"$D$4*$I$5*'Park Allocations'!AE103","v":0},{"$f":"$D$4*$I$5*'Park Allocations'!AF103","v":0},{"$f":"$D$4*$I$5*'Park Allocations'!AG103","v":0},{"$f":"$D$4*$I$5*'Park Allocations'!AH103","v":0},{"$f":"$D$4*$I$5*'Park Allocations'!AI103","v":0},{"$f":"$D$4*$I$5*'Park Allocations'!AJ103","v":0},{"$f":"$D$4*$I$5*'Park Allocations'!AK103","v":0},{"$f":"$D$4*$I$5*'Park Allocations'!AL103","v":0}]
[null,"478 - Puget Sound Partnership","478","Puget Sound Partnership",54.706939301383784,54.706939301383784,2,3.5454872580452768E-5,0,2.9202590346532649E-4,{"$f":"$D$4*$I$5*'Park Allocations'!E104","v":0},{"$f":"$D$4*$I$5*'Park Allocations'!F104","v":0},{"$f":"$D$4*$I$5*'Park Allocations'!G104","v":0},{"$f":"$D$4*$I$5*'Park Allocations'!H104","v":0},{"$f":"$D$4*$I$5*'Park Allocations'!I104","v":0},{"$f":"$D$4*$I$5*'Park Allocations'!J104","v":0},{"$f":"$D$4*$I$5*'Park Allocations'!K104","v":0},{"$f":"$D$4*$I$5*'Park Allocations'!L104","v":0},{"$f":"$D$4*$I$5*'Park Allocations'!M104","v":0},{"$f":"$D$4*$I$5*'Park Allocations'!N104","v":0},{"$f":"$D$4*$I$5*'Park Allocations'!O104","v":0},{"$f":"$D$4*$I$5*'Park Allocations'!P104","v":0},{"$f":"$D$4*$I$5*'Park Allocations'!Q104","v":0},{"$f":"$D$4*$I$5*'Park Allocations'!R104","v":0},{"$f":"$D$4*$I$5*'Park Allocations'!S104","v":0},{"$f":"$D$4*$I$5*'Park Allocations'!T104","v":0},{"$f":"$D$4*$I$5*'Park Allocations'!U104","v":0},{"$f":"$D$4*$I$5*'Park Allocations'!V104","v":0},{"$f":"$D$4*$I$5*'Park Allocations'!W104","v":0},{"$f":"$D$4*$I$5*'Park Allocations'!X104","v":0},{"$f":"$D$4*$I$5*'Park Allocations'!Y104","v":0},{"$f":"$D$4*$I$5*'Park Allocations'!Z104","v":0},{"$f":"$D$4*$I$5*'Park Allocations'!AA104","v":0},{"$f":"$D$4*$I$5*'Park Allocations'!AB104","v":0},{"$f":"$D$4*$I$5*'Park Allocations'!AC104","v":0},{"$f":"$D$4*$I$5*'Park Allocations'!AD104","v":0},{"$f":"$D$4*$I$5*'Park Allocations'!AE104","v":0},{"$f":"$D$4*$I$5*'Park Allocations'!AF104","v":0},{"$f":"$D$4*$I$5*'Park Allocations'!AG104","v":0},{"$f":"$D$4*$I$5*'Park Allocations'!AH104","v":0},{"$f":"$D$4*$I$5*'Park Allocations'!AI104","v":0},{"$f":"$D$4*$I$5*'Park Allocations'!AJ104","v":0},{"$f":"$D$4*$I$5*'Park Allocations'!AK104","v":0},{"$f":"$D$4*$I$5*'Park Allocations'!AL104","v":0}]
[null,"490 - Department of Natural Resources","490","Department of Natural Resources",28785.615955503716,19393.609982340553,709,1.2568752329770507E-2,6.0868397922771086E-3,3.7896023163732168E-2,{"$f":"$D$4*$I$5*'Park Allocations'!E105","v":0},{"$f":"$D$4*$I$5*'Park Allocations'!F105","v":0},{"$f":"$D$4*$I$5*'Park Allocations'!G105","v":0},{"$f":"$D$4*$I$5*'Park Allocations'!H105","v":0},{"$f":"$D$4*$I$5*'Park Allocations'!I105","v":0},{"$f":"$D$4*$I$5*'Park Allocations'!J105","v":0},{"$f":"$D$4*$I$5*'Park Allocations'!K105","v":0},{"$f":"$D$4*$I$5*'Park Allocations'!L105","v":9392.0059731631627},{"$f":"$D$4*$I$5*'Park Allocations'!M105","v":0},{"$f":"$D$4*$I$5*'Park Allocations'!N105","v":0},{"$f":"$D$4*$I$5*'Park Allocations'!O105","v":0},{"$f":"$D$4*$I$5*'Park Allocations'!P105","v":0},{"$f":"$D$4*$I$5*'Park Allocations'!Q105","v":0},{"$f":"$D$4*$I$5*'Park Allocations'!R105","v":0},{"$f":"$D$4*$I$5*'Park Allocations'!S105","v":0},{"$f":"$D$4*$I$5*'Park Allocations'!T105","v":0},{"$f":"$D$4*$I$5*'Park Allocations'!U105","v":0},{"$f":"$D$4*$I$5*'Park Allocations'!V105","v":0},{"$f":"$D$4*$I$5*'Park Allocations'!W105","v":0},{"$f":"$D$4*$I$5*'Park Allocations'!X105","v":0},{"$f":"$D$4*$I$5*'Park Allocations'!Y105","v":0},{"$f":"$D$4*$I$5*'Park Allocations'!Z105","v":0},{"$f":"$D$4*$I$5*'Park Allocations'!AA105","v":0},{"$f":"$D$4*$I$5*'Park Allocations'!AB105","v":0},{"$f":"$D$4*$I$5*'Park Allocations'!AC105","v":0},{"$f":"$D$4*$I$5*'Park Allocations'!AD105","v":0},{"$f":"$D$4*$I$5*'Park Allocations'!AE105","v":0},{"$f":"$D$4*$I$5*'Park Allocations'!AF105","v":0},{"$f":"$D$4*$I$5*'Park Allocations'!AG105","v":0},{"$f":"$D$4*$I$5*'Park Allocations'!AH105","v":0},{"$f":"$D$4*$I$5*'Park Allocations'!AI105","v":0},{"$f":"$D$4*$I$5*'Park Allocations'!AJ105","v":0},{"$f":"$D$4*$I$5*'Park Allocations'!AK105","v":0},{"$f":"$D$4*$I$5*'Park Allocations'!AL105","v":0}]
[null,"495 - Department of Agriculture","495","Department of Agriculture",9832.2459837416773,6865.7208823236651,251,4.4495865088468225E-3,1.922567243216802E-3,1.1969701071353532E-2,{"$f":"$D$4*$I$5*'Park Allocations'!E106","v":0},{"$f":"$D$4*$I$5*'Park Allocations'!F106","v":0},{"$f":"$D$4*$I$5*'Park Allocations'!G106","v":0},{"$f":"$D$4*$I$5*'Park Allocations'!H106","v":0},{"$f":"$D$4*$I$5*'Park Allocations'!I106","v":0},{"$f":"$D$4*$I$5*'Park Allocations'!J106","v":0},{"$f":"$D$4*$I$5*'Park Allocations'!K106","v":0},{"$f":"$D$4*$I$5*'Park Allocations'!L106","v":2966.5251014180121},{"$f":"$D$4*$I$5*'Park Allocations'!M106","v":0},{"$f":"$D$4*$I$5*'Park Allocations'!N106","v":0},{"$f":"$D$4*$I$5*'Park Allocations'!O106","v":0},{"$f":"$D$4*$I$5*'Park Allocations'!P106","v":0},{"$f":"$D$4*$I$5*'Park Allocations'!Q106","v":0},{"$f":"$D$4*$I$5*'Park Allocations'!R106","v":0},{"$f":"$D$4*$I$5*'Park Allocations'!S106","v":0},{"$f":"$D$4*$I$5*'Park Allocations'!T106","v":0},{"$f":"$D$4*$I$5*'Park Allocations'!U106","v":0},{"$f":"$D$4*$I$5*'Park Allocations'!V106","v":0},{"$f":"$D$4*$I$5*'Park Allocations'!W106","v":0},{"$f":"$D$4*$I$5*'Park Allocations'!X106","v":0},{"$f":"$D$4*$I$5*'Park Allocations'!Y106","v":0},{"$f":"$D$4*$I$5*'Park Allocations'!Z106","v":0},{"$f":"$D$4*$I$5*'Park Allocations'!AA106","v":0},{"$f":"$D$4*$I$5*'Park Allocations'!AB106","v":0},{"$f":"$D$4*$I$5*'Park Allocations'!AC106","v":0},{"$f":"$D$4*$I$5*'Park Allocations'!AD106","v":0},{"$f":"$D$4*$I$5*'Park Allocations'!AE106","v":0},{"$f":"$D$4*$I$5*'Park Allocations'!AF106","v":0},{"$f":"$D$4*$I$5*'Park Allocations'!AG106","v":0},{"$f":"$D$4*$I$5*'Park Allocations'!AH106","v":0},{"$f":"$D$4*$I$5*'Park Allocations'!AI106","v":0},{"$f":"$D$4*$I$5*'Park Allocations'!AJ106","v":0},{"$f":"$D$4*$I$5*'Park Allocations'!AK106","v":0},{"$f":"$D$4*$I$5*'Park Allocations'!AL106","v":0}]
[null,"540 - Employment Security Department","540","Employment Security Department",49960.983358162193,44230.560425168791,1617,2.8665264481296065E-2,3.7138143262247267E-3,2.8195293688943232E-2,{"$f":"$D$4*$I$5*'Park Allocations'!E107","v":0},{"$f":"$D$4*$I$5*'Park Allocations'!F107","v":0},{"$f":"$D$4*$I$5*'Park Allocations'!G107","v":0},{"$f":"$D$4*$I$5*'Park Allocations'!H107","v":0},{"$f":"$D$4*$I$5*'Park Allocations'!I107","v":0},{"$f":"$D$4*$I$5*'Park Allocations'!J107","v":0},{"$f":"$D$4*$I$5*'Park Allocations'!K107","v":0},{"$f":"$D$4*$I$5*'Park Allocations'!L107","v":0},{"$f":"$D$4*$I$5*'Park Allocations'!M107","v":5730.422932993406},{"$f":"$D$4*$I$5*'Park Allocations'!N107","v":0},{"$f":"$D$4*$I$5*'Park Allocations'!O107","v":0},{"$f":"$D$4*$I$5*'Park Allocations'!P107","v":0},{"$f":"$D$4*$I$5*'Park Allocations'!Q107","v":0},{"$f":"$D$4*$I$5*'Park Allocations'!R107","v":0},{"$f":"$D$4*$I$5*'Park Allocations'!S107","v":0},{"$f":"$D$4*$I$5*'Park Allocations'!T107","v":0},{"$f":"$D$4*$I$5*'Park Allocations'!U107","v":0},{"$f":"$D$4*$I$5*'Park Allocations'!V107","v":0},{"$f":"$D$4*$I$5*'Park Allocations'!W107","v":0},{"$f":"$D$4*$I$5*'Park Allocations'!X107","v":0},{"$f":"$D$4*$I$5*'Park Allocations'!Y107","v":0},{"$f":"$D$4*$I$5*'Park Allocations'!Z107","v":0},{"$f":"$D$4*$I$5*'Park Allocations'!AA107","v":0},{"$f":"$D$4*$I$5*'Park Allocations'!AB107","v":0},{"$f":"$D$4*$I$5*'Park Allocations'!AC107","v":0},{"$f":"$D$4*$I$5*'Park Allocations'!AD107","v":0},{"$f":"$D$4*$I$5*'Park Allocations'!AE107","v":0},{"$f":"$D$4*$I$5*'Park Allocations'!AF107","v":0},{"$f":"$D$4*$I$5*'Park Allocations'!AG107","v":0},{"$f":"$D$4*$I$5*'Park Allocations'!AH107","v":0},{"$f":"$D$4*$I$5*'Park Allocations'!AI107","v":0},{"$f":"$D$4*$I$5*'Park Allocations'!AJ107","v":0},{"$f":"$D$4*$I$5*'Park Allocations'!AK107","v":0},{"$f":"$D$4*$I$5*'Park Allocations'!AL107","v":0}]
[null,"699 - Community Colleges","699","Community Colleges",14825.580550675006,14825.580550675006,542,9.6082704693027012E-3,0,0,{"$f":"$D$4*$I$5*'Park Allocations'!E108","v":0},{"$f":"$D$4*$I$5*'Park Allocations'!F108","v":0},{"$f":"$D$4*$I$5*'Park Allocations'!G108","v":0},{"$f":"$D$4*$I$5*'Park Allocations'!H108","v":0},{"$f":"$D$4*$I$5*'Park Allocations'!I108","v":0},{"$f":"$D$4*$I$5*'Park Allocations'!J108","v":0},{"$f":"$D$4*$I$5*'Park Allocations'!K108","v":0},{"$f":"$D$4*$I$5*'Park Allocations'!L108","v":0},{"$f":"$D$4*$I$5*'Park Allocations'!M108","v":0},{"$f":"$D$4*$I$5*'Park Allocations'!N108","v":0},{"$f":"$D$4*$I$5*'Park Allocations'!O108","v":0},{"$f":"$D$4*$I$5*'Park Allocations'!P108","v":0},{"$f":"$D$4*$I$5*'Park Allocations'!Q108","v":0},{"$f":"$D$4*$I$5*'Park Allocations'!R108","v":0},{"$f":"$D$4*$I$5*'Park Allocations'!S108","v":0},{"$f":"$D$4*$I$5*'Park Allocations'!T108","v":0},{"$f":"$D$4*$I$5*'Park Allocations'!U108","v":0},{"$f":"$D$4*$I$5*'Park Allocations'!V108","v":0},{"$f":"$D$4*$I$5*'Park Allocations'!W108","v":0},{"$f":"$D$4*$I$5*'Park Allocations'!X108","v":0},{"$f":"$D$4*$I$5*'Park Allocations'!Y108","v":0},{"$f":"$D$4*$I$5*'Park Allocations'!Z108","v":0},{"$f":"$D$4*$I$5*'Park Allocations'!AA108","v":0},{"$f":"$D$4*$I$5*'Park Allocations'!AB108","v":0},{"$f":"$D$4*$I$5*'Park Allocations'!AC108","v":0},{"$f":"$D$4*$I$5*'Park Allocations'!AD108","v":0},{"$f":"$D$4*$I$5*'Park Allocations'!AE108","v":0},{"$f":"$D$4*$I$5*'Park Allocations'!AF108","v":0},{"$f":"$D$4*$I$5*'Park Allocations'!AG108","v":0},{"$f":"$D$4*$I$5*'Park Allocations'!AH108","v":0},{"$f":"$D$4*$I$5*'Park Allocations'!AI108","v":0},{"$f":"$D$4*$I$5*'Park Allocations'!AJ108","v":0},{"$f":"$D$4*$I$5*'Park Allocations'!AK108","v":0},{"$f":"$D$4*$I$5*'Park Allocations'!AL108","v":0}]
[null,"TOTAL  - All Agencies",null,"Building Total",{"$f":"SUM(E7:E110)","v":804877.18029703433},{"$f":"SUM(F7:F110)","v":702272.97981186362},25674,0.45513419931527233,6.6496479256132238E-2,0.47836932142859545,{"$f":"SUM(K7:K110)","v":4781.4467299869721},{"$f":"SUM(L7:L110)","v":4862.6832506902874},8801.3861508982391,1478.0963287145453,10992.482985770441,15497.490435862203,2963.6171680798125,21945.368581403694,5730.422932993406,11410.668548172349,3409.5827744998396,6050.9761803383226,3316.8382622879053,1363.1401554725351,0,0,0,0,0,0,0,0,0,0,0,0,0,0,0,0,0,0,0,0]
[]
[null,null,null,null,null,null,null,null,"Building Total RSF",null,77281,78594,142254,23890,177668,250481,47900,354696,92619,184427,55108,97800,53609,22032,95386,47200,14308,10125,0,41341,17000,0,1539,7138,885,2492,872,200592,60581,99000,20708,138355,17600,0]
[null,null,null,null,null,null,null,null,"vacant space",0,0,0,0,0,0,0,0,0,0,0,0,0,0,0,0,0,0,0,0,0,0,0,0,14276,406,872,0,0,0,0,35004,0,0]
[null,null,null,null,null,null,null,null,null,null,{"$f":"K111/K113/2","v":3.0935461044674449E-2},{"$f":"L111/L113/2","v":3.0935461044674449E-2},3.0935461044674453E-2,3.0935461044674453E-2,3.0935461044674453E-2,3.0935461044674453E-2,3.0935461044674453E-2,3.0935461044674446E-2,3.0935461044674453E-2,3.0935461044674449E-2,3.0935461044674453E-2,3.0935461044674453E-2,3.0935461044674453E-2,3.0935461044674453E-2,0,0,0,0,{"$error":"#DIV/0!"},0,0,{"$error":"#DIV/0!"},0,0,0,0,0,0,0,0,0,0,0]

{"sheet":"Park Allocations","index":17,"n_rows":110,"n_cols":38,"rows_kept":110,"cut":false,"hidden":true,"merged":[[2,3,3,3]]}
[]
[null,null,null,null,"Olympia","Olympia","Olympia","Olympia","Olympia","Olympia","Olympia","Olympia","Olympia","Olympia","Olympia","Olympia","Olympia","Olympia","Tumwater","Tumwater",null,null,"Vacant",null,null,"Vacant",null,null,null,null,null,null,"OTC","OTC","OTC","OTC","OTC","OTC"]
[null,null,null,"Total","F6121","F6122","F6123","F6124","F6125","F6126","F6127","F6129","F612A","F612C","F612E","F612H","F612J","F612K","F6131","F6132","F6133","F6134","F6137","F613D","F613E","F613F","F613G","F613H","F613i","F613K","F613L","F613M","F6141","F6142","F6143","F6144","F614G","F6146"]
[null,"Agency #","Agency",null,"Cherberg","O'Brien","Legislative","Pritchard","HLB","OB2","Archives","NRB","Emp Sec","Transportation","Insurance","Old Cap","TOJ","Newhouse","Modular Bldg","Isabella Bush","1007 Washington","120 E Union Avenue","Conservatory","Capital Court","James Dolliver Building","Undeveloped Properties","1068 WA Street SE (ST Farm)","232 Perry Street","208 11th Avenue SE (Pro Arts)","Press Houses Ayer(White); Carlyon(Blue)","Visitor Center","Helen Sommers","Kelso Building","Yakima Building","Alaska Street","Tacoma Rhodes","Tacoma Rhodes Garage","North Cascades Gateway Center (NCGC)"]
[null,"011","House of Representatives",{"$f":"SUM(E5:AL5)","v":7.4711205474809736E-2},0,4.7392633320047103E-2,2.7318572154762629E-2,0,0,0,0,0,0,0,0,0,0,0,0,0,0,0,0,0,0,0,0,0,0,0,0,0,0,0,0,0,0,0]
[null,"012","Senate",{"$f":"SUM(E6:AL6)","v":8.1174824027849216E-2},4.6600886780244807E-2,0,2.128851473052578E-2,0,0,0,0,0,0,0,0,0,0,1.328542251707863E-2,0,0,0,0,0,0,0,0,0,0,0,0,0,0,0,0,0,0,0,0]
[null,"013","Joint Transportation Committee",0,0,0,0,0,0,0,0,0,0,0,0,0,0,0,0,0,0,0,0,0,0,0,0,0,0,0,0,0,0,0,0,0,0,0]
[null,"014","Joint Legislative Audit and Review Committee",0,0,0,0,0,0,0,0,0,0,0,0,0,0,0,0,0,0,0,0,0,0,0,0,0,0,0,0,0,0,0,0,0,0,0]
[null,"020","Legislative Evaluation and Accountability Program Committee",0,0,0,0,0,0,0,0,0,0,0,0,0,0,0,0,0,0,0,0,0,0,0,0,0,0,0,0,0,0,0,0,0,0,0]
[null,"035","Office of the State Actuary",0,0,0,0,0,0,0,0,0,0,0,0,0,0,0,0,0,0,0,0,0,0,0,0,0,0,0,0,0,0,0,0,0,0,0]
[null,"037","Office of Legislative Support Services",5.3323797802526472E-3,0,0,3.0023655915275282E-3,2.3300141887251193E-3,0,0,0,0,0,0,0,0,0,0,0,0,0,0,0,0,0,0,0,0,0,0,0,0,0,0,0,0,0,0]
[null,"038","Joint Legislative Systems Committee",5.3197166596617501E-3,0,0,6.8923556359027206E-4,4.6304810960714777E-3,0,0,0,0,0,0,0,0,0,0,0,0,0,0,0,0,0,0,0,0,0,0,0,0,0,0,0,0,0,0]
[null,"040","Statute Law Committee (Code Revisor)",7.4453119017052396E-3,0,0,0,7.4453119017052396E-3,0,0,0,0,0,0,0,0,0,0,0,0,0,0,0,0,0,0,0,0,0,0,0,0,0,0,0,0,0,0]
[null,"045","Supreme Court",2.0466014897859871E-2,0,0,0,0,0,0,0,0,0,0,0,0,2.0466014897859871E-2,0,0,0,0,0,0,0,0,0,0,0,0,0,0,0,0,0,0,0,0,0]
[null,"046","Law Library",9.2971425366883773E-3,0,0,0,0,0,0,0,0,0,0,0,0,9.2971425366883773E-3,0,0,0,0,0,0,0,0,0,0,0,0,0,0,0,0,0,0,0,0,0]
[null,"048","Court of Appeals",0,0,0,0,0,0,0,0,0,0,0,0,0,0,0,0,0,0,0,0,0,0,0,0,0,0,0,0,0,0,0,0,0,0,0]
[null,"050","Commission on Judicial Conduct",0,0,0,0,0,0,0,0,0,0,0,0,0,0,0,0,0,0,0,0,0,0,0,0,0,0,0,0,0,0,0,0,0,0,0]
[null,"055","Administrative Office of the Courts",2.5633774110430853E-3,0,0,0,0,0,0,0,0,0,0,0,0,2.5633774110430853E-3,0,0,0,0,0,0,0,0,0,0,0,0,0,0,0,0,0,0,0,0,0]
[null,"056","Office of Public Defense",0,0,0,0,0,0,0,0,0,0,0,0,0,0,0,0,0,0,0,0,0,0,0,0,0,0,0,0,0,0,0,0,0,0,0]
[null,"057","Office of Civil Legal Aid",0,0,0,0,0,0,0,0,0,0,0,0,0,0,0,0,0,0,0,0,0,0,0,0,0,0,0,0,0,0,0,0,0,0,0]
[null,"075","Office of the Governor",1.0406070097005534E-2,0,0,1.0406070097005534E-2,0,0,0,0,0,0,0,0,0,0,0,0,0,0,0,0,0,0,0,0,0,0,0,0,0,0,0,0,0,0,0]
[null,"080","Office of Lieutenant Governor",5.3510729582677812E-3,0,0,5.3510729582677812E-3,0,0,0,0,0,0,0,0,0,0,0,0,0,0,0,0,0,0,0,0,0,0,0,0,0,0,0,0,0,0,0]
[null,"082","Public Disclosure Commission",0,0,0,0,0,0,0,0,0,0,0,0,0,0,0,0,0,0,0,0,0,0,0,0,0,0,0,0,0,0,0,0,0,0,0]
[null,"085","Office of the Secretary of State",3.5305986218906765E-2,0,0,6.4220111568122464E-3,0,0,0,2.8883975062094516E-2,0,0,0,0,0,0,0,0,0,0,0,0,0,0,0,0,0,0,0,0,0,0,0,0,0,0,0]
[null,"086","Governor's Office of Indian Affairs",0,0,0,0,0,0,0,0,0,0,0,0,0,0,0,0,0,0,0,0,0,0,0,0,0,0,0,0,0,0,0,0,0,0,0]
[null,"087","Commission on Asian Pacific American Affairs",0,0,0,0,0,0,0,0,0,0,0,0,0,0,0,0,0,0,0,0,0,0,0,0,0,0,0,0,0,0,0,0,0,0,0]
[null,"090","Office of State Treasurer",6.4612065300697855E-3,0,0,6.4612065300697855E-3,0,0,0,0,0,0,0,0,0,0,0,0,0,0,0,0,0,0,0,0,0,0,0,0,0,0,0,0,0,0,0]
[null,"095","Office of State Auditor",3.866472820420669E-3,0,0,0,0,0,0,0,0,0,0,3.866472820420669E-3,0,0,0,0,0,0,0,0,0,0,0,0,0,0,0,0,0,0,0,0,0,0,0]
[null,"099","Citizens' Commission on Salaries for Elected Officials",0,0,0,0,0,0,0,0,0,0,0,0,0,0,0,0,0,0,0,0,0,0,0,0,0,0,0,0,0,0,0,0,0,0,0]
[null,"100","Office of Attorney General",4.3801734123914061E-2,0,0,0,0,4.3801734123914061E-2,0,0,0,0,0,0,0,0,0,0,0,0,0,0,0,0,0,0,0,0,0,0,0,0,0,0,0,0,0]
[null,"101","Caseload Forecast Council",0,0,0,0,0,0,0,0,0,0,0,0,0,0,0,0,0,0,0,0,0,0,0,0,0,0,0,0,0,0,0,0,0,0,0]
[null,"102","Department of Financial Institutions",0,0,0,0,0,0,0,0,0,0,0,0,0,0,0,0,0,0,0,0,0,0,0,0,0,0,0,0,0,0,0,0,0,0,0]
[null,"103","Department of Commerce",0,0,0,0,0,0,0,0,0,0,0,0,0,0,0,0,0,0,0,0,0,0,0,0,0,0,0,0,0,0,0,0,0,0,0]
[null,"104","Economic and Revenue Forecast Council",0,0,0,0,0,0,0,0,0,0,0,0,0,0,0,0,0,0,0,0,0,0,0,0,0,0,0,0,0,0,0,0,0,0,0]
[null,"105","Office of Financial Management",2.5149560499264634E-2,0,0,0,0,0,0,0,0,0,0,2.5149560499264634E-2,0,0,0,0,0,0,0,0,0,0,0,0,0,0,0,0,0,0,0,0,0,0,0]
[null,"107","Washington State Health Care Authority",0,0,0,0,0,0,0,0,0,0,0,0,0,0,0,0,0,0,0,0,0,0,0,0,0,0,0,0,0,0,0,0,0,0,0]
[null,"110","Office of Administrative Hearings",0,0,0,0,0,0,0,0,0,0,0,0,0,0,0,0,0,0,0,0,0,0,0,0,0,0,0,0,0,0,0,0,0,0,0]
[null,"116","State Lottery",0,0,0,0,0,0,0,0,0,0,0,0,0,0,0,0,0,0,0,0,0,0,0,0,0,0,0,0,0,0,0,0,0,0,0]
[null,"117","Washington State Gambling Commission",0,0,0,0,0,0,0,0,0,0,0,0,0,0,0,0,0,0,0,0,0,0,0,0,0,0,0,0,0,0,0,0,0,0,0]
[null,"118","Commission on Hispanic Affairs",0,0,0,0,0,0,0,0,0,0,0,0,0,0,0,0,0,0,0,0,0,0,0,0,0,0,0,0,0,0,0,0,0,0,0]
[null,"119","Commission on African-American Affairs",0,0,0,0,0,0,0,0,0,0,0,0,0,0,0,0,0,0,0,0,0,0,0,0,0,0,0,0,0,0,0,0,0,0,0]
[null,"120","Human Rights Commission",0,0,0,0,0,0,0,0,0,0,0,0,0,0,0,0,0,0,0,0,0,0,0,0,0,0,0,0,0,0,0,0,0,0,0]
[null,"124","Department of Retirement Systems",0,0,0,0,0,0,0,0,0,0,0,0,0,0,0,0,0,0,0,0,0,0,0,0,0,0,0,0,0,0,0,0,0,0,0]
[null,"126","State Investment Board",0,0,0,0,0,0,0,0,0,0,0,0,0,0,0,0,0,0,0,0,0,0,0,0,0,0,0,0,0,0,0,0,0,0,0]
[null,"140","Department of Revenue",0,0,0,0,0,0,0,0,0,0,0,0,0,0,0,0,0,0,0,0,0,0,0,0,0,0,0,0,0,0,0,0,0,0,0]
[null,"142","Board of Tax Appeals",0,0,0,0,0,0,0,0,0,0,0,0,0,0,0,0,0,0,0,0,0,0,0,0,0,0,0,0,0,0,0,0,0,0,0]
[null,"147","Office of Minority and Women's Business Enterprises",0,0,0,0,0,0,0,0,0,0,0,0,0,0,0,0,0,0,0,0,0,0,0,0,0,0,0,0,0,0,0,0,0,0,0]
[null,"160","Office of Insurance Commissioner",4.2144071337991348E-3,0,0,0,0,0,0,0,0,0,0,4.2144071337991348E-3,0,0,0,0,0,0,0,0,0,0,0,0,0,0,0,0,0,0,0,0,0,0,0]
[null,"163","Consolidated Technology Services",1.7607767678771605E-4,0,0,0,0,0,1.7607767678771605E-4,0,0,0,0,0,0,0,0,0,0,0,0,0,0,0,0,0,0,0,0,0,0,0,0,0,0,0,0]
[null,"165","Board of Accountancy",0,0,0,0,0,0,0,0,0,0,0,0,0,0,0,0,0,0,0,0,0,0,0,0,0,0,0,0,0,0,0,0,0,0,0]
[null,"166","Brd Prof Eng Land Surveyors",0,0,0,0,0,0,0,0,0,0,0,0,0,0,0,0,0,0,0,0,0,0,0,0,0,0,0,0,0,0,0,0,0,0,0]
[null,"167","Forensic Investigations Council",0,0,0,0,0,0,0,0,0,0,0,0,0,0,0,0,0,0,0,0,0,0,0,0,0,0,0,0,0,0,0,0,0,0,0]
[null,"179","Department of Enterprise Services",1.6403565211151504E-2,0,0,4.1709907203446297E-3,0,0,1.2232574490806876E-2,0,0,0,0,0,0,0,0,0,0,0,0,0,0,0,0,0,0,0,0,0,0,0,0,0,0,0,0]
[null,"185","Horse Racing Commission",0,0,0,0,0,0,0,0,0,0,0,0,0,0,0,0,0,0,0,0,0,0,0,0,0,0,0,0,0,0,0,0,0,0,0]
[null,"190","Board of Industrial Insurance Appeals",0,0,0,0,0,0,0,0,0,0,0,0,0,0,0,0,0,0,0,0,0,0,0,0,0,0,0,0,0,0,0,0,0,0,0]
[null,"195","Liquor Control Board",0,0,0,0,0,0,0,0,0,0,0,0,0,0,0,0,0,0,0,0,0,0,0,0,0,0,0,0,0,0,0,0,0,0,0]
[null,"205","Board of Pilotage Commissioners",0,0,0,0,0,0,0,0,0,0,0,0,0,0,0,0,0,0,0,0,0,0,0,0,0,0,0,0,0,0,0,0,0,0,0]
[null,"215","Utilities and Transportation Commission",0,0,0,0,0,0,0,0,0,0,0,0,0,0,0,0,0,0,0,0,0,0,0,0,0,0,0,0,0,0,0,0,0,0,0]
[null,"220","Board for Volunteer Firefighters and Reserve Officers",0,0,0,0,0,0,0,0,0,0,0,0,0,0,0,0,0,0,0,0,0,0,0,0,0,0,0,0,0,0,0,0,0,0,0]
[null,"225","Washington State Patrol",3.1356298606031628E-4,0,0,3.1356298606031628E-4,0,0,0,0,0,0,0,0,0,0,0,0,0,0,0,0,0,0,0,0,0,0,0,0,0,0,0,0,0,0,0]
[null,"227","Criminal Justice Training Commission",0,0,0,0,0,0,0,0,0,0,0,0,0,0,0,0,0,0,0,0,0,0,0,0,0,0,0,0,0,0,0,0,0,0,0]
[null,"228","Traffic Safety Commission",0,0,0,0,0,0,0,0,0,0,0,0,0,0,0,0,0,0,0,0,0,0,0,0,0,0,0,0,0,0,0,0,0,0,0]
[null,"235","Department of Labor and Industries",0,0,0,0,0,0,0,0,0,0,0,0,0,0,0,0,0,0,0,0,0,0,0,0,0,0,0,0,0,0,0,0,0,0,0]
[null,"240","Department of Licensing",6.2809681136593465E-2,0,0,0,0,6.2809681136593465E-2,0,0,0,0,0,0,0,0,0,0,0,0,0,0,0,0,0,0,0,0,0,0,0,0,0,0,0,0,0]
[null,"245","Military Department",0,0,0,0,0,0,0,0,0,0,0,0,0,0,0,0,0,0,0,0,0,0,0,0,0,0,0,0,0,0,0,0,0,0,0]
[null,"275","Public Employment Relations Commission",0,0,0,0,0,0,0,0,0,0,0,0,0,0,0,0,0,0,0,0,0,0,0,0,0,0,0,0,0,0,0,0,0,0,0]
[null,"300","Department of Social and Health Services",9.725939920125859E-2,0,0,0,0,0,9.725939920125859E-2,0,0,0,0,0,0,0,0,0,0,0,0,0,0,0,0,0,0,0,0,0,0,0,0,0,0,0,0]
[null,"303","Department of Health",0,0,0,0,0,0,0,0,0,0,0,0,0,0,0,0,0,0,0,0,0,0,0,0,0,0,0,0,0,0,0,0,0,0,0]
[null,"305","Department of Veterans Affairs",0,0,0,0,0,0,0,0,0,0,0,0,0,0,0,0,0,0,0,0,0,0,0,0,0,0,0,0,0,0,0,0,0,0,0]
[null,"307","DCYF",{"$f":"SUM(E70:AL70)","v":3.9823705241145015E-2},0,0,0,0,0,3.9823705241145015E-2,0,0,0,0,0,0,0,0,0,0,0,0,0,0,0,0,0,0,0,0,0,0,0,0,0,0,0,0]
[null,"310","Department of Corrections",0,0,0,0,0,0,0,0,0,0,0,0,0,0,0,0,0,0,0,0,0,0,0,0,0,0,0,0,0,0,0,0,0,0,0]
[null,"315","Department of Services for the Blind",5.1092676555558837E-3,0,0,3.5637639377239787E-4,0,5.2340898442375871E-4,1.5497247580288707E-3,0,1.8150472846952921E-3,0,8.6471023463556443E-4,0,0,0,0,0,0,0,0,0,0,0,0,0,0,0,0,0,0,0,0,0,0,0,0]
[null,"340","Student Achievement Council",0,0,0,0,0,0,0,0,0,0,0,0,0,0,0,0,0,0,0,0,0,0,0,0,0,0,0,0,0,0,0,0,0,0,0]
[null,"341","Law Enforcement Officers' & Fire Fighters' Plan 2 Retirement Board",0,0,0,0,0,0,0,0,0,0,0,0,0,0,0,0,0,0,0,0,0,0,0,0,0,0,0,0,0,0,0,0,0,0,0]
[null,"350","Superintendent of Public Instruction",5.8973961609036403E-2,0,0,0,0,0,0,0,0,0,0,0,5.8973961609036403E-2,0,0,0,0,0,0,0,0,0,0,0,0,0,0,0,0,0,0,0,0,0,0]
[null,"351","State School For The Blind",0,0,0,0,0,0,0,0,0,0,0,0,0,0,0,0,0,0,0,0,0,0,0,0,0,0,0,0,0,0,0,0,0,0,0]
[null,"353","State Center for Childhood Deafness and Hearing Loss",0,0,0,0,0,0,0,0,0,0,0,0,0,0,0,0,0,0,0,0,0,0,0,0,0,0,0,0,0,0,0,0,0,0,0]
[null,"354","Workforce Training and Education Coordinating Board",0,0,0,0,0,0,0,0,0,0,0,0,0,0,0,0,0,0,0,0,0,0,0,0,0,0,0,0,0,0,0,0,0,0,0]
[null,"355","Department of Archaeology and Historic Preservation",0,0,0,0,0,0,0,0,0,0,0,0,0,0,0,0,0,0,0,0,0,0,0,0,0,0,0,0,0,0,0,0,0,0,0]
[null,"357","Department of Early Learning",0,0,0,0,0,0,0,0,0,0,0,0,0,0,0,0,0,0,0,0,0,0,0,0,0,0,0,0,0,0,0,0,0,0,0]
[null,"359","WA Charter School Commission",0,0,0,0,0,0,0,0,0,0,0,0,0,0,0,0,0,0,0,0,0,0,0,0,0,0,0,0,0,0,0,0,0,0,0]
[null,"360","University of Washington",0,0,0,0,0,0,0,0,0,0,0,0,0,0,0,0,0,0,0,0,0,0,0,0,0,0,0,0,0,0,0,0,0,0,0]
[null,"365","Washington State University",0,0,0,0,0,0,0,0,0,0,0,0,0,0,0,0,0,0,0,0,0,0,0,0,0,0,0,0,0,0,0,0,0,0,0]
[null,"370","Eastern Washington University",0,0,0,0,0,0,0,0,0,0,0,0,0,0,0,0,0,0,0,0,0,0,0,0,0,0,0,0,0,0,0,0,0,0,0]
[null,"375","Central Washington University",0,0,0,0,0,0,0,0,0,0,0,0,0,0,0,0,0,0,0,0,0,0,0,0,0,0,0,0,0,0,0,0,0,0,0]
[null,"376","The Evergreen State College",0,0,0,0,0,0,0,0,0,0,0,0,0,0,0,0,0,0,0,0,0,0,0,0,0,0,0,0,0,0,0,0,0,0,0]
[null,"380","Western Washington University",0,0,0,0,0,0,0,0,0,0,0,0,0,0,0,0,0,0,0,0,0,0,0,0,0,0,0,0,0,0,0,0,0,0,0]
[null,"387","Washington State Arts Commission",0,0,0,0,0,0,0,0,0,0,0,0,0,0,0,0,0,0,0,0,0,0,0,0,0,0,0,0,0,0,0,0,0,0,0]
[null,"390","Washington State Historical Society",0,0,0,0,0,0,0,0,0,0,0,0,0,0,0,0,0,0,0,0,0,0,0,0,0,0,0,0,0,0,0,0,0,0,0]
[null,"395","Eastern Washington State Historical Society",0,0,0,0,0,0,0,0,0,0,0,0,0,0,0,0,0,0,0,0,0,0,0,0,0,0,0,0,0,0,0,0,0,0,0]
[null,"405","Department of Transportation",0.1103458298233374,0,0,0,0,0,0,0,0,0,0.1103458298233374,0,0,0,0,0,0,0,0,0,0,0,0,0,0,0,0,0,0,0,0,0,0,0,0]
[null,"406","County Road Administration Board",0,0,0,0,0,0,0,0,0,0,0,0,0,0,0,0,0,0,0,0,0,0,0,0,0,0,0,0,0,0,0,0,0,0,0]
[null,"407","Transportation Improvement Board",0,0,0,0,0,0,0,0,0,0,0,0,0,0,0,0,0,0,0,0,0,0,0,0,0,0,0,0,0,0,0,0,0,0,0]
[null,"410","Transportation Commission",0,0,0,0,0,0,0,0,0,0,0,0,0,0,0,0,0,0,0,0,0,0,0,0,0,0,0,0,0,0,0,0,0,0,0]
[null,"411","Freight Mobility Strategic Investment Board",0,0,0,0,0,0,0,0,0,0,0,0,0,0,0,0,0,0,0,0,0,0,0,0,0,0,0,0,0,0,0,0,0,0,0]
[null,"460","Columbia River Gorge Commission",0,0,0,0,0,0,0,0,0,0,0,0,0,0,0,0,0,0,0,0,0,0,0,0,0,0,0,0,0,0,0,0,0,0,0]
[null,"461","Department of Ecology",0,0,0,0,0,0,0,0,0,0,0,0,0,0,0,0,0,0,0,0,0,0,0,0,0,0,0,0,0,0,0,0,0,0,0]
[null,"462","Pollution Liability Insurance Program",0,0,0,0,0,0,0,0,0,0,0,0,0,0,0,0,0,0,0,0,0,0,0,0,0,0,0,0,0,0,0,0,0,0,0]
[null,"465","State Parks and Recreation Commission",0,0,0,0,0,0,0,0,0,0,0,0,0,0,0,0,0,0,0,0,0,0,0,0,0,0,0,0,0,0,0,0,0,0,0]
[null,"467","Recreation and Conservation Funding Board",7.0973775883267738E-3,0,0,0,0,0,0,0,7.0973775883267738E-3,0,0,0,0,0,0,0,0,0,0,0,0,0,0,0,0,0,0,0,0,0,0,0,0,0,0]
[null,"468","Environmental and Land Use Hearings Office",0,0,0,0,0,0,0,0,0,0,0,0,0,0,0,0,0,0,0,0,0,0,0,0,0,0,0,0,0,0,0,0,0,0,0]
[null,"471","State Conservation Commission",0,0,0,0,0,0,0,0,0,0,0,0,0,0,0,0,0,0,0,0,0,0,0,0,0,0,0,0,0,0,0,0,0,0,0]
[null,"477","Department of Fish and Wildlife",8.4522711909785511E-2,0,0,0,0,0,0,0,8.4522711909785511E-2,0,0,0,0,0,0,0,0,0,0,0,0,0,0,0,0,0,0,0,0,0,0,0,0,0,0]
[null,"478","Puget Sound Partnership",0,0,0,0,0,0,0,0,0,0,0,0,0,0,0,0,0,0,0,0,0,0,0,0,0,0,0,0,0,0,0,0,0,0,0]
[null,"490","Department of Natural Resources",9.1536271699915392E-2,0,0,0,0,0,0,0,9.1536271699915392E-2,0,0,0,0,0,0,0,0,0,0,0,0,0,0,0,0,0,0,0,0,0,0,0,0,0,0]
[null,"495","Department of Agriculture",2.891231633198843E-2,0,0,0,0,0,0,0,2.891231633198843E-2,0,0,0,0,0,0,0,0,0,0,0,0,0,0,0,0,0,0,0,0,0,0,0,0,0,0]
[null,"540","Employment Security Department",5.5849788857539287E-2,0,0,0,0,0,0,0,0,5.5849788857539287E-2,0,0,0,0,0,0,0,0,0,0,0,0,0,0,0,0,0,0,0,0,0,0,0,0,0]
[null,"699","Community Colleges",0,0,0,0,0,0,0,0,0,0,0,0,0,0,0,0,0,0,0,0,0,0,0,0,0,0,0,0,0,0,0,0,0,0,0]
[null,null,"Building Total",{"$f":"SUM(D5:D108)","v":1},4.6600886780244807E-2,4.7392633320047103E-2,8.5779978882738916E-2,1.4405807186501836E-2,0.10713482424493127,0.15104148136802706,2.8883975062094516E-2,0.21388372481471141,5.5849788857539287E-2,0.11121054005797297,3.3230440453484437E-2,5.8973961609036403E-2,3.2326534845591337E-2,1.328542251707863E-2,0,0,0,0,0,0,0,0,0,0,0,0,0,0,0,0,0,0,0,0]
[null,null,null,0]

{"sheet":"Park Dollars FY22","index":18,"n_rows":113,"n_cols":38,"rows_kept":113,"cut":false,"hidden":true,"merged":[[2,3,3,3]]}
[]
[null,null,null,null,"Olympia","Olympia","Olympia","Olympia","Olympia","Olympia","Olympia","Olympia","Olympia","Olympia","Olympia","Olympia","Olympia","Olympia","Tumwater","Tumwater",null,null,"Vacant",null,null,"Vacant",null,null,null,null,null,null,"OTC","OTC","OTC","OTC","OTC","OTC"]
[null,"CSM Amount",637000,"Total","F6121","F6122","F6123","F6124","F6125","F6126","F6127","F6129","F612A","F612C","F612E","F612H","F612J","F612K","F6131","F6132","F6133","F6134","F6137","F613D","F613E","F613F","F613G","F613H","F613i","F613K","F613L","F613M","F6141","F6142","F6143","F6144","F614G","F6146"]
[null,"Agency #","Agency",null,"Cherberg","O'Brien","Legislative","Pritchard","HLB","OB2","Archives","NRB","Emp Sec","Transportation","Insurance","Old Cap","TOJ","Newhouse","Modular Bldg","Isabella Bush","1007 Washington","120 E Union Avenue","Conservatory","Capital Court","James Dolliver Building","Undeveloped Properties","1068 WA Street SE (ST Farm)","232 Perry Street","208 11th Avenue SE (Pro Arts)","Press Houses Ayer(White); Carlyon(Blue)","Visitor Center","Helen Sommers","Kelso Building","Yakima Building","Alaska Street","Tacoma Rhodes","Tacoma Rhodes Garage","North Cascades Gateway Center (NCGC)"]
[{"$f":"CONCATENATE(B5,\" - \",C5)","v":"011 - House of Representatives"},"011","House of Representatives",{"$f":"SUM(E5:AL5)","v":47591.0378874538},{"$f":"$C$3*'Park Allocations'!E5","v":0},{"$f":"$C$3*'Park Allocations'!F5","v":30189.107424870006},{"$f":"$C$3*'Park Allocations'!G5","v":17401.930462583794},{"$f":"$C$3*'Park Allocations'!H5","v":0},{"$f":"$C$3*'Park Allocations'!I5","v":0},{"$f":"$C$3*'Park Allocations'!J5","v":0},{"$f":"$C$3*'Park Allocations'!K5","v":0},{"$f":"$C$3*'Park Allocations'!L5","v":0},{"$f":"$C$3*'Park Allocations'!M5","v":0},{"$f":"$C$3*'Park Allocations'!N5","v":0},{"$f":"$C$3*'Park Allocations'!O5","v":0},{"$f":"$C$3*'Park Allocations'!P5","v":0},{"$f":"$C$3*'Park Allocations'!Q5","v":0},{"$f":"$C$3*'Park Allocations'!R5","v":0}]
[{"$f":"CONCATENATE(B6,\" - \",C6)","v":"012 - Senate"},"012","Senate",{"$f":"SUM(E6:AL6)","v":51708.362905739952},{"$f":"$C$3*'Park Allocations'!E6","v":29684.764879015944},{"$f":"$C$3*'Park Allocations'!F6","v":0},{"$f":"$C$3*'Park Allocations'!G6","v":13560.783883344922},{"$f":"$C$3*'Park Allocations'!H6","v":0},{"$f":"$C$3*'Park Allocations'!I6","v":0},{"$f":"$C$3*'Park Allocations'!J6","v":0},{"$f":"$C$3*'Park Allocations'!K6","v":0},{"$f":"$C$3*'Park Allocations'!L6","v":0},{"$f":"$C$3*'Park Allocations'!M6","v":0},{"$f":"$C$3*'Park Allocations'!N6","v":0},{"$f":"$C$3*'Park Allocations'!O6","v":0},{"$f":"$C$3*'Park Allocations'!P6","v":0},{"$f":"$C$3*'Park Allocations'!Q6","v":0},{"$f":"$C$3*'Park Allocations'!R6","v":8462.8141433790879}]
["013 - Joint Transportation Committee","013","Joint Transportation Committee",0,{"$f":"$C$3*'Park Allocations'!E7","v":0},{"$f":"$C$3*'Park Allocations'!F7","v":0},{"$f":"$C$3*'Park Allocations'!G7","v":0},{"$f":"$C$3*'Park Allocations'!H7","v":0},{"$f":"$C$3*'Park Allocations'!I7","v":0},{"$f":"$C$3*'Park Allocations'!J7","v":0},{"$f":"$C$3*'Park Allocations'!K7","v":0},{"$f":"$C$3*'Park Allocations'!L7","v":0},{"$f":"$C$3*'Park Allocations'!M7","v":0},{"$f":"$C$3*'Park Allocations'!N7","v":0},{"$f":"$C$3*'Park Allocations'!O7","v":0},{"$f":"$C$3*'Park Allocations'!P7","v":0},{"$f":"$C$3*'Park Allocations'!Q7","v":0},{"$f":"$C$3*'Park Allocations'!R7","v":0}]
["014 - Joint Legislative Audit and Review Committee","014","Joint Legislative Audit and Review Committee",0,{"$f":"$C$3*'Park Allocations'!E8","v":0},{"$f":"$C$3*'Park Allocations'!F8","v":0},{"$f":"$C$3*'Park Allocations'!G8","v":0},{"$f":"$C$3*'Park Allocations'!H8","v":0},{"$f":"$C$3*'Park Allocations'!I8","v":0},{"$f":"$C$3*'Park Allocations'!J8","v":0},{"$f":"$C$3*'Park Allocations'!K8","v":0},{"$f":"$C$3*'Park Allocations'!L8","v":0},{"$f":"$C$3*'Park Allocations'!M8","v":0},{"$f":"$C$3*'Park Allocations'!N8","v":0},{"$f":"$C$3*'Park Allocations'!O8","v":0},{"$f":"$C$3*'Park Allocations'!P8","v":0},{"$f":"$C$3*'Park Allocations'!Q8","v":0},{"$f":"$C$3*'Park Allocations'!R8","v":0}]
["020 - Legislative Evaluation and Accountability Program Committee","020","Legislative Evaluation and Accountability Program Committee",0,{"$f":"$C$3*'Park Allocations'!E9","v":0},{"$f":"$C$3*'Park Allocations'!F9","v":0},{"$f":"$C$3*'Park Allocations'!G9","v":0},{"$f":"$C$3*'Park Allocations'!H9","v":0},{"$f":"$C$3*'Park Allocations'!I9","v":0},{"$f":"$C$3*'Park Allocations'!J9","v":0},{"$f":"$C$3*'Park Allocations'!K9","v":0},{"$f":"$C$3*'Park Allocations'!L9","v":0},{"$f":"$C$3*'Park Allocations'!M9","v":0},{"$f":"$C$3*'Park Allocations'!N9","v":0},{"$f":"$C$3*'Park Allocations'!O9","v":0},{"$f":"$C$3*'Park Allocations'!P9","v":0},{"$f":"$C$3*'Park Allocations'!Q9","v":0},{"$f":"$C$3*'Park Allocations'!R9","v":0}]
["035 - Office of the State Actuary","035","Office of the State Actuary",0,{"$f":"$C$3*'Park Allocations'!E10","v":0},{"$f":"$C$3*'Park Allocations'!F10","v":0},{"$f":"$C$3*'Park Allocations'!G10","v":0},{"$f":"$C$3*'Park Allocations'!H10","v":0},{"$f":"$C$3*'Park Allocations'!I10","v":0},{"$f":"$C$3*'Park Allocations'!J10","v":0},{"$f":"$C$3*'Park Allocations'!K10","v":0},{"$f":"$C$3*'Park Allocations'!L10","v":0},{"$f":"$C$3*'Park Allocations'!M10","v":0},{"$f":"$C$3*'Park Allocations'!N10","v":0},{"$f":"$C$3*'Park Allocations'!O10","v":0},{"$f":"$C$3*'Park Allocations'!P10","v":0},{"$f":"$C$3*'Park Allocations'!Q10","v":0},{"$f":"$C$3*'Park Allocations'!R10","v":0}]
["037 - Office of Legislative Support Services","037","Office of Legislative Support Services",3396.7259200209364,{"$f":"$C$3*'Park Allocations'!E11","v":0},{"$f":"$C$3*'Park Allocations'!F11","v":0},{"$f":"$C$3*'Park Allocations'!G11","v":1912.5068818030354},{"$f":"$C$3*'Park Allocations'!H11","v":1484.219038217901},{"$f":"$C$3*'Park Allocations'!I11","v":0},{"$f":"$C$3*'Park Allocations'!J11","v":0},{"$f":"$C$3*'Park Allocations'!K11","v":0},{"$f":"$C$3*'Park Allocations'!L11","v":0},{"$f":"$C$3*'Park Allocations'!M11","v":0},{"$f":"$C$3*'Park Allocations'!N11","v":0},{"$f":"$C$3*'Park Allocations'!O11","v":0},{"$f":"$C$3*'Park Allocations'!P11","v":0},{"$f":"$C$3*'Park Allocations'!Q11","v":0},{"$f":"$C$3*'Park Allocations'!R11","v":0}]
["038 - Joint Legislative Systems Committee","038","Joint Legislative Systems Committee",3388.6595122045346,{"$f":"$C$3*'Park Allocations'!E12","v":0},{"$f":"$C$3*'Park Allocations'!F12","v":0},{"$f":"$C$3*'Park Allocations'!G12","v":439.04305400700332},{"$f":"$C$3*'Park Allocations'!H12","v":2949.6164581975313},{"$f":"$C$3*'Park Allocations'!I12","v":0},{"$f":"$C$3*'Park Allocations'!J12","v":0},{"$f":"$C$3*'Park Allocations'!K12","v":0},{"$f":"$C$3*'Park Allocations'!L12","v":0},{"$f":"$C$3*'Park Allocations'!M12","v":0},{"$f":"$C$3*'Park Allocations'!N12","v":0},{"$f":"$C$3*'Park Allocations'!O12","v":0},{"$f":"$C$3*'Park Allocations'!P12","v":0},{"$f":"$C$3*'Park Allocations'!Q12","v":0},{"$f":"$C$3*'Park Allocations'!R12","v":0}]
["040 - Statute Law Committee (Code Revisor)","040","Statute Law Committee (Code Revisor)",4742.6636813862378,{"$f":"$C$3*'Park Allocations'!E13","v":0},{"$f":"$C$3*'Park Allocations'!F13","v":0},{"$f":"$C$3*'Park Allocations'!G13","v":0},{"$f":"$C$3*'Park Allocations'!H13","v":4742.6636813862378},{"$f":"$C$3*'Park Allocations'!I13","v":0},{"$f":"$C$3*'Park Allocations'!J13","v":0},{"$f":"$C$3*'Park Allocations'!K13","v":0},{"$f":"$C$3*'Park Allocations'!L13","v":0},{"$f":"$C$3*'Park Allocations'!M13","v":0},{"$f":"$C$3*'Park Allocations'!N13","v":0},{"$f":"$C$3*'Park Allocations'!O13","v":0},{"$f":"$C$3*'Park Allocations'!P13","v":0},{"$f":"$C$3*'Park Allocations'!Q13","v":0},{"$f":"$C$3*'Park Allocations'!R13","v":0}]
["045 - Supreme Court","045","Supreme Court",13036.851489936738,{"$f":"$C$3*'Park Allocations'!E14","v":0},{"$f":"$C$3*'Park Allocations'!F14","v":0},{"$f":"$C$3*'Park Allocations'!G14","v":0},{"$f":"$C$3*'Park Allocations'!H14","v":0},{"$f":"$C$3*'Park Allocations'!I14","v":0},{"$f":"$C$3*'Park Allocations'!J14","v":0},{"$f":"$C$3*'Park Allocations'!K14","v":0},{"$f":"$C$3*'Park Allocations'!L14","v":0},{"$f":"$C$3*'Park Allocations'!M14","v":0},{"$f":"$C$3*'Park Allocations'!N14","v":0},{"$f":"$C$3*'Park Allocations'!O14","v":0},{"$f":"$C$3*'Park Allocations'!P14","v":0},{"$f":"$C$3*'Park Allocations'!Q14","v":13036.851489936738},{"$f":"$C$3*'Park Allocations'!R14","v":0}]
["046 - Law Library","046","Law Library",5922.2797958704959,{"$f":"$C$3*'Park Allocations'!E15","v":0},{"$f":"$C$3*'Park Allocations'!F15","v":0},{"$f":"$C$3*'Park Allocations'!G15","v":0},{"$f":"$C$3*'Park Allocations'!H15","v":0},{"$f":"$C$3*'Park Allocations'!I15","v":0},{"$f":"$C$3*'Park Allocations'!J15","v":0},{"$f":"$C$3*'Park Allocations'!K15","v":0},{"$f":"$C$3*'Park Allocations'!L15","v":0},{"$f":"$C$3*'Park Allocations'!M15","v":0},{"$f":"$C$3*'Park Allocations'!N15","v":0},{"$f":"$C$3*'Park Allocations'!O15","v":0},{"$f":"$C$3*'Park Allocations'!P15","v":0},{"$f":"$C$3*'Park Allocations'!Q15","v":5922.2797958704959},{"$f":"$C$3*'Park Allocations'!R15","v":0}]
["048 - Court of Appeals","048","Court of Appeals",0,{"$f":"$C$3*'Park Allocations'!E16","v":0},{"$f":"$C$3*'Park Allocations'!F16","v":0},{"$f":"$C$3*'Park Allocations'!G16","v":0},{"$f":"$C$3*'Park Allocations'!H16","v":0},{"$f":"$C$3*'Park Allocations'!I16","v":0},{"$f":"$C$3*'Park Allocations'!J16","v":0},{"$f":"$C$3*'Park Allocations'!K16","v":0},{"$f":"$C$3*'Park Allocations'!L16","v":0},{"$f":"$C$3*'Park Allocations'!M16","v":0},{"$f":"$C$3*'Park Allocations'!N16","v":0},{"$f":"$C$3*'Park Allocations'!O16","v":0},{"$f":"$C$3*'Park Allocations'!P16","v":0},{"$f":"$C$3*'Park Allocations'!Q16","v":0},{"$f":"$C$3*'Park Allocations'!R16","v":0}]
["050 - Commission on Judicial Conduct","050","Commission on Judicial Conduct",0,{"$f":"$C$3*'Park Allocations'!E17","v":0},{"$f":"$C$3*'Park Allocations'!F17","v":0},{"$f":"$C$3*'Park Allocations'!G17","v":0},{"$f":"$C$3*'Park Allocations'!H17","v":0},{"$f":"$C$3*'Park Allocations'!I17","v":0},{"$f":"$C$3*'Park Allocations'!J17","v":0},{"$f":"$C$3*'Park Allocations'!K17","v":0},{"$f":"$C$3*'Park Allocations'!L17","v":0},{"$f":"$C$3*'Park Allocations'!M17","v":0},{"$f":"$C$3*'Park Allocations'!N17","v":0},{"$f":"$C$3*'Park Allocations'!O17","v":0},{"$f":"$C$3*'Park Allocations'!P17","v":0},{"$f":"$C$3*'Park Allocations'!Q17","v":0},{"$f":"$C$3*'Park Allocations'!R17","v":0}]
["055 - Administrative Office of the Courts","055","Administrative Office of the Courts",1632.8714108344454,{"$f":"$C$3*'Park Allocations'!E18","v":0},{"$f":"$C$3*'Park Allocations'!F18","v":0},{"$f":"$C$3*'Park Allocations'!G18","v":0},{"$f":"$C$3*'Park Allocations'!H18","v":0},{"$f":"$C$3*'Park Allocations'!I18","v":0},{"$f":"$C$3*'Park Allocations'!J18","v":0},{"$f":"$C$3*'Park Allocations'!K18","v":0},{"$f":"$C$3*'Park Allocations'!L18","v":0},{"$f":"$C$3*'Park Allocations'!M18","v":0},{"$f":"$C$3*'Park Allocations'!N18","v":0},{"$f":"$C$3*'Park Allocations'!O18","v":0},{"$f":"$C$3*'Park Allocations'!P18","v":0},{"$f":"$C$3*'Park Allocations'!Q18","v":1632.8714108344454},{"$f":"$C$3*'Park Allocations'!R18","v":0}]
["056 - Office of Public Defense","056","Office of Public Defense",0,{"$f":"$C$3*'Park Allocations'!E19","v":0},{"$f":"$C$3*'Park Allocations'!F19","v":0},{"$f":"$C$3*'Park Allocations'!G19","v":0},{"$f":"$C$3*'Park Allocations'!H19","v":0},{"$f":"$C$3*'Park Allocations'!I19","v":0},{"$f":"$C$3*'Park Allocations'!J19","v":0},{"$f":"$C$3*'Park Allocations'!K19","v":0},{"$f":"$C$3*'Park Allocations'!L19","v":0},{"$f":"$C$3*'Park Allocations'!M19","v":0},{"$f":"$C$3*'Park Allocations'!N19","v":0},{"$f":"$C$3*'Park Allocations'!O19","v":0},{"$f":"$C$3*'Park Allocations'!P19","v":0},{"$f":"$C$3*'Park Allocations'!Q19","v":0},{"$f":"$C$3*'Park Allocations'!R19","v":0}]
["057 - Office of Civil Legal Aid","057","Office of Civil Legal Aid",0,{"$f":"$C$3*'Park Allocations'!E20","v":0},{"$f":"$C$3*'Park Allocations'!F20","v":0},{"$f":"$C$3*'Park Allocations'!G20","v":0},{"$f":"$C$3*'Park Allocations'!H20","v":0},{"$f":"$C$3*'Park Allocations'!I20","v":0},{"$f":"$C$3*'Park Allocations'!J20","v":0},{"$f":"$C$3*'Park Allocations'!K20","v":0},{"$f":"$C$3*'Park Allocations'!L20","v":0},{"$f":"$C$3*'Park Allocations'!M20","v":0},{"$f":"$C$3*'Park Allocations'!N20","v":0},{"$f":"$C$3*'Park Allocations'!O20","v":0},{"$f":"$C$3*'Park Allocations'!P20","v":0},{"$f":"$C$3*'Park Allocations'!Q20","v":0},{"$f":"$C$3*'Park Allocations'!R20","v":0}]
["075 - Office of the Governor","075","Office of the Governor",6628.666651792525,{"$f":"$C$3*'Park Allocations'!E21","v":0},{"$f":"$C$3*'Park Allocations'!F21","v":0},{"$f":"$C$3*'Park Allocations'!G21","v":6628.666651792525},{"$f":"$C$3*'Park Allocations'!H21","v":0},{"$f":"$C$3*'Park Allocations'!I21","v":0},{"$f":"$C$3*'Park Allocations'!J21","v":0},{"$f":"$C$3*'Park Allocations'!K21","v":0},{"$f":"$C$3*'Park Allocations'!L21","v":0},{"$f":"$C$3*'Park Allocations'!M21","v":0},{"$f":"$C$3*'Park Allocations'!N21","v":0},{"$f":"$C$3*'Park Allocations'!O21","v":0},{"$f":"$C$3*'Park Allocations'!P21","v":0},{"$f":"$C$3*'Park Allocations'!Q21","v":0},{"$f":"$C$3*'Park Allocations'!R21","v":0}]
["080 - Office of Lieutenant Governor","080","Office of Lieutenant Governor",3408.6334744165765,{"$f":"$C$3*'Park Allocations'!E22","v":0},{"$f":"$C$3*'Park Allocations'!F22","v":0},{"$f":"$C$3*'Park Allocations'!G22","v":3408.6334744165765},{"$f":"$C$3*'Park Allocations'!H22","v":0},{"$f":"$C$3*'Park Allocations'!I22","v":0},{"$f":"$C$3*'Park Allocations'!J22","v":0},{"$f":"$C$3*'Park Allocations'!K22","v":0},{"$f":"$C$3*'Park Allocations'!L22","v":0},{"$f":"$C$3*'Park Allocations'!M22","v":0},{"$f":"$C$3*'Park Allocations'!N22","v":0},{"$f":"$C$3*'Park Allocations'!O22","v":0},{"$f":"$C$3*'Park Allocations'!P22","v":0},{"$f":"$C$3*'Park Allocations'!Q22","v":0},{"$f":"$C$3*'Park Allocations'!R22","v":0}]
["082 - Public Disclosure Commission","082","Public Disclosure Commission",0,{"$f":"$C$3*'Park Allocations'!E23","v":0},{"$f":"$C$3*'Park Allocations'!F23","v":0},{"$f":"$C$3*'Park Allocations'!G23","v":0},{"$f":"$C$3*'Park Allocations'!H23","v":0},{"$f":"$C$3*'Park Allocations'!I23","v":0},{"$f":"$C$3*'Park Allocations'!J23","v":0},{"$f":"$C$3*'Park Allocations'!K23","v":0},{"$f":"$C$3*'Park Allocations'!L23","v":0},{"$f":"$C$3*'Park Allocations'!M23","v":0},{"$f":"$C$3*'Park Allocations'!N23","v":0},{"$f":"$C$3*'Park Allocations'!O23","v":0},{"$f":"$C$3*'Park Allocations'!P23","v":0},{"$f":"$C$3*'Park Allocations'!Q23","v":0},{"$f":"$C$3*'Park Allocations'!R23","v":0}]
["085 - Office of the Secretary of State","085","Office of the Secretary of State",22489.913221443607,{"$f":"$C$3*'Park Allocations'!E24","v":0},{"$f":"$C$3*'Park Allocations'!F24","v":0},{"$f":"$C$3*'Park Allocations'!G24","v":4090.8211068894011},{"$f":"$C$3*'Park Allocations'!H24","v":0},{"$f":"$C$3*'Park Allocations'!I24","v":0},{"$f":"$C$3*'Park Allocations'!J24","v":0},{"$f":"$C$3*'Park Allocations'!K24","v":18399.092114554205},{"$f":"$C$3*'Park Allocations'!L24","v":0},{"$f":"$C$3*'Park Allocations'!M24","v":0},{"$f":"$C$3*'Park Allocations'!N24","v":0},{"$f":"$C$3*'Park Allocations'!O24","v":0},{"$f":"$C$3*'Park Allocations'!P24","v":0},{"$f":"$C$3*'Park Allocations'!Q24","v":0},{"$f":"$C$3*'Park Allocations'!R24","v":0}]
["086 - Governor's Office of Indian Affairs","086","Governor's Office of Indian Affairs",0,{"$f":"$C$3*'Park Allocations'!E25","v":0},{"$f":"$C$3*'Park Allocations'!F25","v":0},{"$f":"$C$3*'Park Allocations'!G25","v":0},{"$f":"$C$3*'Park Allocations'!H25","v":0},{"$f":"$C$3*'Park Allocations'!I25","v":0},{"$f":"$C$3*'Park Allocations'!J25","v":0},{"$f":"$C$3*'Park Allocations'!K25","v":0},{"$f":"$C$3*'Park Allocations'!L25","v":0},{"$f":"$C$3*'Park Allocations'!M25","v":0},{"$f":"$C$3*'Park Allocations'!N25","v":0},{"$f":"$C$3*'Park Allocations'!O25","v":0},{"$f":"$C$3*'Park Allocations'!P25","v":0},{"$f":"$C$3*'Park Allocations'!Q25","v":0},{"$f":"$C$3*'Park Allocations'!R25","v":0}]
["087 - Commission on Asian Pacific American Affairs","087","Commission on Asian Pacific American Affairs",0,{"$f":"$C$3*'Park Allocations'!E26","v":0},{"$f":"$C$3*'Park Allocations'!F26","v":0},{"$f":"$C$3*'Park Allocations'!G26","v":0},{"$f":"$C$3*'Park Allocations'!H26","v":0},{"$f":"$C$3*'Park Allocations'!I26","v":0},{"$f":"$C$3*'Park Allocations'!J26","v":0},{"$f":"$C$3*'Park Allocations'!K26","v":0},{"$f":"$C$3*'Park Allocations'!L26","v":0},{"$f":"$C$3*'Park Allocations'!M26","v":0},{"$f":"$C$3*'Park Allocations'!N26","v":0},{"$f":"$C$3*'Park Allocations'!O26","v":0},{"$f":"$C$3*'Park Allocations'!P26","v":0},{"$f":"$C$3*'Park Allocations'!Q26","v":0},{"$f":"$C$3*'Park Allocations'!R26","v":0}]
["090 - Office of State Treasurer","090","Office of State Treasurer",4115.7885596544538,{"$f":"$C$3*'Park Allocations'!E27","v":0},{"$f":"$C$3*'Park Allocations'!F27","v":0},{"$f":"$C$3*'Park Allocations'!G27","v":4115.7885596544538},{"$f":"$C$3*'Park Allocations'!H27","v":0},{"$f":"$C$3*'Park Allocations'!I27","v":0},{"$f":"$C$3*'Park Allocations'!J27","v":0},{"$f":"$C$3*'Park Allocations'!K27","v":0},{"$f":"$C$3*'Park Allocations'!L27","v":0},{"$f":"$C$3*'Park Allocations'!M27","v":0},{"$f":"$C$3*'Park Allocations'!N27","v":0},{"$f":"$C$3*'Park Allocations'!O27","v":0},{"$f":"$C$3*'Park Allocations'!P27","v":0},{"$f":"$C$3*'Park Allocations'!Q27","v":0},{"$f":"$C$3*'Park Allocations'!R27","v":0}]
["095 - Office of State Auditor","095","Office of State Auditor",2462.9431866079663,{"$f":"$C$3*'Park Allocations'!E28","v":0},{"$f":"$C$3*'Park Allocations'!F28","v":0},{"$f":"$C$3*'Park Allocations'!G28","v":0},{"$f":"$C$3*'Park Allocations'!H28","v":0},{"$f":"$C$3*'Park Allocations'!I28","v":0},{"$f":"$C$3*'Park Allocations'!J28","v":0},{"$f":"$C$3*'Park Allocations'!K28","v":0},{"$f":"$C$3*'Park Allocations'!L28","v":0},{"$f":"$C$3*'Park Allocations'!M28","v":0},{"$f":"$C$3*'Park Allocations'!N28","v":0},{"$f":"$C$3*'Park Allocations'!O28","v":2462.9431866079663},{"$f":"$C$3*'Park Allocations'!P28","v":0},{"$f":"$C$3*'Park Allocations'!Q28","v":0},{"$f":"$C$3*'Park Allocations'!R28","v":0}]
["099 - Citizens' Commission on Salaries for Elected Officials","099","Citizens' Commission on Salaries for Elected Officials",0,{"$f":"$C$3*'Park Allocations'!E29","v":0},{"$f":"$C$3*'Park Allocations'!F29","v":0},{"$f":"$C$3*'Park Allocations'!G29","v":0},{"$f":"$C$3*'Park Allocations'!H29","v":0},{"$f":"$C$3*'Park Allocations'!I29","v":0},{"$f":"$C$3*'Park Allocations'!J29","v":0},{"$f":"$C$3*'Park Allocations'!K29","v":0},{"$f":"$C$3*'Park Allocations'!L29","v":0},{"$f":"$C$3*'Park Allocations'!M29","v":0},{"$f":"$C$3*'Park Allocations'!N29","v":0},{"$f":"$C$3*'Park Allocations'!O29","v":0},{"$f":"$C$3*'Park Allocations'!P29","v":0},{"$f":"$C$3*'Park Allocations'!Q29","v":0},{"$f":"$C$3*'Park Allocations'!R29","v":0}]
["100 - Office of Attorney General","100","Office of Attorney General",27901.704636933257,{"$f":"$C$3*'Park Allocations'!E30","v":0},{"$f":"$C$3*'Park Allocations'!F30","v":0},{"$f":"$C$3*'Park Allocations'!G30","v":0},{"$f":"$C$3*'Park Allocations'!H30","v":0},{"$f":"$C$3*'Park Allocations'!I30","v":27901.704636933257},{"$f":"$C$3*'Park Allocations'!J30","v":0},{"$f":"$C$3*'Park Allocations'!K30","v":0},{"$f":"$C$3*'Park Allocations'!L30","v":0},{"$f":"$C$3*'Park Allocations'!M30","v":0},{"$f":"$C$3*'Park Allocations'!N30","v":0},{"$f":"$C$3*'Park Allocations'!O30","v":0},{"$f":"$C$3*'Park Allocations'!P30","v":0},{"$f":"$C$3*'Park Allocations'!Q30","v":0},{"$f":"$C$3*'Park Allocations'!R30","v":0}]
["101 - Caseload Forecast Council","101","Caseload Forecast Council",0,{"$f":"$C$3*'Park Allocations'!E31","v":0},{"$f":"$C$3*'Park Allocations'!F31","v":0},{"$f":"$C$3*'Park Allocations'!G31","v":0},{"$f":"$C$3*'Park Allocations'!H31","v":0},{"$f":"$C$3*'Park Allocations'!I31","v":0},{"$f":"$C$3*'Park Allocations'!J31","v":0},{"$f":"$C$3*'Park Allocations'!K31","v":0},{"$f":"$C$3*'Park Allocations'!L31","v":0},{"$f":"$C$3*'Park Allocations'!M31","v":0},{"$f":"$C$3*'Park Allocations'!N31","v":0},{"$f":"$C$3*'Park Allocations'!O31","v":0},{"$f":"$C$3*'Park Allocations'!P31","v":0},{"$f":"$C$3*'Park Allocations'!Q31","v":0},{"$f":"$C$3*'Park Allocations'!R31","v":0}]
["102 - Department of Financial Institutions","102","Department of Financial Institutions",0,{"$f":"$C$3*'Park Allocations'!E32","v":0},{"$f":"$C$3*'Park Allocations'!F32","v":0},{"$f":"$C$3*'Park Allocations'!G32","v":0},{"$f":"$C$3*'Park Allocations'!H32","v":0},{"$f":"$C$3*'Park Allocations'!I32","v":0},{"$f":"$C$3*'Park Allocations'!J32","v":0},{"$f":"$C$3*'Park Allocations'!K32","v":0},{"$f":"$C$3*'Park Allocations'!L32","v":0},{"$f":"$C$3*'Park Allocations'!M32","v":0},{"$f":"$C$3*'Park Allocations'!N32","v":0},{"$f":"$C$3*'Park Allocations'!O32","v":0},{"$f":"$C$3*'Park Allocations'!P32","v":0},{"$f":"$C$3*'Park Allocations'!Q32","v":0},{"$f":"$C$3*'Park Allocations'!R32","v":0}]
["103 - Department of Commerce","103","Department of Commerce",0,{"$f":"$C$3*'Park Allocations'!E33","v":0},{"$f":"$C$3*'Park Allocations'!F33","v":0},{"$f":"$C$3*'Park Allocations'!G33","v":0},{"$f":"$C$3*'Park Allocations'!H33","v":0},{"$f":"$C$3*'Park Allocations'!I33","v":0},{"$f":"$C$3*'Park Allocations'!J33","v":0},{"$f":"$C$3*'Park Allocations'!K33","v":0},{"$f":"$C$3*'Park Allocations'!L33","v":0},{"$f":"$C$3*'Park Allocations'!M33","v":0},{"$f":"$C$3*'Park Allocations'!N33","v":0},{"$f":"$C$3*'Park Allocations'!O33","v":0},{"$f":"$C$3*'Park Allocations'!P33","v":0},{"$f":"$C$3*'Park Allocations'!Q33","v":0},{"$f":"$C$3*'Park Allocations'!R33","v":0}]
["104 - Economic and Revenue Forecast Council","104","Economic and Revenue Forecast Council",0,{"$f":"$C$3*'Park Allocations'!E34","v":0},{"$f":"$C$3*'Park Allocations'!F34","v":0},{"$f":"$C$3*'Park Allocations'!G34","v":0},{"$f":"$C$3*'Park Allocations'!H34","v":0},{"$f":"$C$3*'Park Allocations'!I34","v":0},{"$f":"$C$3*'Park Allocations'!J34","v":0},{"$f":"$C$3*'Park Allocations'!K34","v":0},{"$f":"$C$3*'Park Allocations'!L34","v":0},{"$f":"$C$3*'Park Allocations'!M34","v":0},{"$f":"$C$3*'Park Allocations'!N34","v":0},{"$f":"$C$3*'Park Allocations'!O34","v":0},{"$f":"$C$3*'Park Allocations'!P34","v":0},{"$f":"$C$3*'Park Allocations'!Q34","v":0},{"$f":"$C$3*'Park Allocations'!R34","v":0}]
["105 - Office of Financial Management","105","Office of Financial Management",16020.270038031573,{"$f":"$C$3*'Park Allocations'!E35","v":0},{"$f":"$C$3*'Park Allocations'!F35","v":0},{"$f":"$C$3*'Park Allocations'!G35","v":0},{"$f":"$C$3*'Park Allocations'!H35","v":0},{"$f":"$C$3*'Park Allocations'!I35","v":0},{"$f":"$C$3*'Park Allocations'!J35","v":0},{"$f":"$C$3*'Park Allocations'!K35","v":0},{"$f":"$C$3*'Park Allocations'!L35","v":0},{"$f":"$C$3*'Park Allocations'!M35","v":0},{"$f":"$C$3*'Park Allocations'!N35","v":0},{"$f":"$C$3*'Park Allocations'!O35","v":16020.270038031573},{"$f":"$C$3*'Park Allocations'!P35","v":0},{"$f":"$C$3*'Park Allocations'!Q35","v":0},{"$f":"$C$3*'Park Allocations'!R35","v":0}]
["107 - Washington State Health Care Authority","107","Washington State Health Care Authority",0,{"$f":"$C$3*'Park Allocations'!E36","v":0},{"$f":"$C$3*'Park Allocations'!F36","v":0},{"$f":"$C$3*'Park Allocations'!G36","v":0},{"$f":"$C$3*'Park Allocations'!H36","v":0},{"$f":"$C$3*'Park Allocations'!I36","v":0},{"$f":"$C$3*'Park Allocations'!J36","v":0},{"$f":"$C$3*'Park Allocations'!K36","v":0},{"$f":"$C$3*'Park Allocations'!L36","v":0},{"$f":"$C$3*'Park Allocations'!M36","v":0},{"$f":"$C$3*'Park Allocations'!N36","v":0},{"$f":"$C$3*'Park Allocations'!O36","v":0},{"$f":"$C$3*'Park Allocations'!P36","v":0},{"$f":"$C$3*'Park Allocations'!Q36","v":0},{"$f":"$C$3*'Park Allocations'!R36","v":0}]
["110 - Office of Administrative Hearings","110","Office of Administrative Hearings",0,{"$f":"$C$3*'Park Allocations'!E37","v":0},{"$f":"$C$3*'Park Allocations'!F37","v":0},{"$f":"$C$3*'Park Allocations'!G37","v":0},{"$f":"$C$3*'Park Allocations'!H37","v":0},{"$f":"$C$3*'Park Allocations'!I37","v":0},{"$f":"$C$3*'Park Allocations'!J37","v":0},{"$f":"$C$3*'Park Allocations'!K37","v":0},{"$f":"$C$3*'Park Allocations'!L37","v":0},{"$f":"$C$3*'Park Allocations'!M37","v":0},{"$f":"$C$3*'Park Allocations'!N37","v":0},{"$f":"$C$3*'Park Allocations'!O37","v":0},{"$f":"$C$3*'Park Allocations'!P37","v":0},{"$f":"$C$3*'Park Allocations'!Q37","v":0},{"$f":"$C$3*'Park Allocations'!R37","v":0}]
["116 - State Lottery","116","State Lottery",0,{"$f":"$C$3*'Park Allocations'!E38","v":0},{"$f":"$C$3*'Park Allocations'!F38","v":0},{"$f":"$C$3*'Park Allocations'!G38","v":0},{"$f":"$C$3*'Park Allocations'!H38","v":0},{"$f":"$C$3*'Park Allocations'!I38","v":0},{"$f":"$C$3*'Park Allocations'!J38","v":0},{"$f":"$C$3*'Park Allocations'!K38","v":0},{"$f":"$C$3*'Park Allocations'!L38","v":0},{"$f":"$C$3*'Park Allocations'!M38","v":0},{"$f":"$C$3*'Park Allocations'!N38","v":0},{"$f":"$C$3*'Park Allocations'!O38","v":0},{"$f":"$C$3*'Park Allocations'!P38","v":0},{"$f":"$C$3*'Park Allocations'!Q38","v":0},{"$f":"$C$3*'Park Allocations'!R38","v":0}]
["117 - Washington State Gambling Commission","117","Washington State Gambling Commission",0,{"$f":"$C$3*'Park Allocations'!E39","v":0},{"$f":"$C$3*'Park Allocations'!F39","v":0},{"$f":"$C$3*'Park Allocations'!G39","v":0},{"$f":"$C$3*'Park Allocations'!H39","v":0},{"$f":"$C$3*'Park Allocations'!I39","v":0},{"$f":"$C$3*'Park Allocations'!J39","v":0},{"$f":"$C$3*'Park Allocations'!K39","v":0},{"$f":"$C$3*'Park Allocations'!L39","v":0},{"$f":"$C$3*'Park Allocations'!M39","v":0},{"$f":"$C$3*'Park Allocations'!N39","v":0},{"$f":"$C$3*'Park Allocations'!O39","v":0},{"$f":"$C$3*'Park Allocations'!P39","v":0},{"$f":"$C$3*'Park Allocations'!Q39","v":0},{"$f":"$C$3*'Park Allocations'!R39","v":0}]
["118 - Commission on Hispanic Affairs","118","Commission on Hispanic Affairs",0,{"$f":"$C$3*'Park Allocations'!E40","v":0},{"$f":"$C$3*'Park Allocations'!F40","v":0},{"$f":"$C$3*'Park Allocations'!G40","v":0},{"$f":"$C$3*'Park Allocations'!H40","v":0},{"$f":"$C$3*'Park Allocations'!I40","v":0},{"$f":"$C$3*'Park Allocations'!J40","v":0},{"$f":"$C$3*'Park Allocations'!K40","v":0},{"$f":"$C$3*'Park Allocations'!L40","v":0},{"$f":"$C$3*'Park Allocations'!M40","v":0},{"$f":"$C$3*'Park Allocations'!N40","v":0},{"$f":"$C$3*'Park Allocations'!O40","v":0},{"$f":"$C$3*'Park Allocations'!P40","v":0},{"$f":"$C$3*'Park Allocations'!Q40","v":0},{"$f":"$C$3*'Park Allocations'!R40","v":0}]
["119 - Commission on African-American Affairs","119","Commission on African-American Affairs",0,{"$f":"$C$3*'Park Allocations'!E41","v":0},{"$f":"$C$3*'Park Allocations'!F41","v":0},{"$f":"$C$3*'Park Allocations'!G41","v":0},{"$f":"$C$3*'Park Allocations'!H41","v":0},{"$f":"$C$3*'Park Allocations'!I41","v":0},{"$f":"$C$3*'Park Allocations'!J41","v":0},{"$f":"$C$3*'Park Allocations'!K41","v":0},{"$f":"$C$3*'Park Allocations'!L41","v":0},{"$f":"$C$3*'Park Allocations'!M41","v":0},{"$f":"$C$3*'Park Allocations'!N41","v":0},{"$f":"$C$3*'Park Allocations'!O41","v":0},{"$f":"$C$3*'Park Allocations'!P41","v":0},{"$f":"$C$3*'Park Allocations'!Q41","v":0},{"$f":"$C$3*'Park Allocations'!R41","v":0}]
["120 - Human Rights Commission","120","Human Rights Commission",0,{"$f":"$C$3*'Park Allocations'!E42","v":0},{"$f":"$C$3*'Park Allocations'!F42","v":0},{"$f":"$C$3*'Park Allocations'!G42","v":0},{"$f":"$C$3*'Park Allocations'!H42","v":0},{"$f":"$C$3*'Park Allocations'!I42","v":0},{"$f":"$C$3*'Park Allocations'!J42","v":0},{"$f":"$C$3*'Park Allocations'!K42","v":0},{"$f":"$C$3*'Park Allocations'!L42","v":0},{"$f":"$C$3*'Park Allocations'!M42","v":0},{"$f":"$C$3*'Park Allocations'!N42","v":0},{"$f":"$C$3*'Park Allocations'!O42","v":0},{"$f":"$C$3*'Park Allocations'!P42","v":0},{"$f":"$C$3*'Park Allocations'!Q42","v":0},{"$f":"$C$3*'Park Allocations'!R42","v":0}]
["124 - Department of Retirement Systems","124","Department of Retirement Systems",0,{"$f":"$C$3*'Park Allocations'!E43","v":0},{"$f":"$C$3*'Park Allocations'!F43","v":0},{"$f":"$C$3*'Park Allocations'!G43","v":0},{"$f":"$C$3*'Park Allocations'!H43","v":0},{"$f":"$C$3*'Park Allocations'!I43","v":0},{"$f":"$C$3*'Park Allocations'!J43","v":0},{"$f":"$C$3*'Park Allocations'!K43","v":0},{"$f":"$C$3*'Park Allocations'!L43","v":0},{"$f":"$C$3*'Park Allocations'!M43","v":0},{"$f":"$C$3*'Park Allocations'!N43","v":0},{"$f":"$C$3*'Park Allocations'!O43","v":0},{"$f":"$C$3*'Park Allocations'!P43","v":0},{"$f":"$C$3*'Park Allocations'!Q43","v":0},{"$f":"$C$3*'Park Allocations'!R43","v":0}]
["126 - State Investment Board","126","State Investment Board",0,{"$f":"$C$3*'Park Allocations'!E44","v":0},{"$f":"$C$3*'Park Allocations'!F44","v":0},{"$f":"$C$3*'Park Allocations'!G44","v":0},{"$f":"$C$3*'Park Allocations'!H44","v":0},{"$f":"$C$3*'Park Allocations'!I44","v":0},{"$f":"$C$3*'Park Allocations'!J44","v":0},{"$f":"$C$3*'Park Allocations'!K44","v":0},{"$f":"$C$3*'Park Allocations'!L44","v":0},{"$f":"$C$3*'Park Allocations'!M44","v":0},{"$f":"$C$3*'Park Allocations'!N44","v":0},{"$f":"$C$3*'Park Allocations'!O44","v":0},{"$f":"$C$3*'Park Allocations'!P44","v":0},{"$f":"$C$3*'Park Allocations'!Q44","v":0},{"$f":"$C$3*'Park Allocations'!R44","v":0}]
["140 - Department of Revenue","140","Department of Revenue",0,{"$f":"$C$3*'Park Allocations'!E45","v":0},{"$f":"$C$3*'Park Allocations'!F45","v":0},{"$f":"$C$3*'Park Allocations'!G45","v":0},{"$f":"$C$3*'Park Allocations'!H45","v":0},{"$f":"$C$3*'Park Allocations'!I45","v":0},{"$f":"$C$3*'Park Allocations'!J45","v":0},{"$f":"$C$3*'Park Allocations'!K45","v":0},{"$f":"$C$3*'Park Allocations'!L45","v":0},{"$f":"$C$3*'Park Allocations'!M45","v":0},{"$f":"$C$3*'Park Allocations'!N45","v":0},{"$f":"$C$3*'Park Allocations'!O45","v":0},{"$f":"$C$3*'Park Allocations'!P45","v":0},{"$f":"$C$3*'Park Allocations'!Q45","v":0},{"$f":"$C$3*'Park Allocations'!R45","v":0}]
["142 - Board of Tax Appeals","142","Board of Tax Appeals",0,{"$f":"$C$3*'Park Allocations'!E46","v":0},{"$f":"$C$3*'Park Allocations'!F46","v":0},{"$f":"$C$3*'Park Allocations'!G46","v":0},{"$f":"$C$3*'Park Allocations'!H46","v":0},{"$f":"$C$3*'Park Allocations'!I46","v":0},{"$f":"$C$3*'Park Allocations'!J46","v":0},{"$f":"$C$3*'Park Allocations'!K46","v":0},{"$f":"$C$3*'Park Allocations'!L46","v":0},{"$f":"$C$3*'Park Allocations'!M46","v":0},{"$f":"$C$3*'Park Allocations'!N46","v":0},{"$f":"$C$3*'Park Allocations'!O46","v":0},{"$f":"$C$3*'Park Allocations'!P46","v":0},{"$f":"$C$3*'Park Allocations'!Q46","v":0},{"$f":"$C$3*'Park Allocations'!R46","v":0}]
["147 - Office of Minority and Women's Business Enterprises","147","Office of Minority and Women's Business Enterprises",0,{"$f":"$C$3*'Park Allocations'!E47","v":0},{"$f":"$C$3*'Park Allocations'!F47","v":0},{"$f":"$C$3*'Park Allocations'!G47","v":0},{"$f":"$C$3*'Park Allocations'!H47","v":0},{"$f":"$C$3*'Park Allocations'!I47","v":0},{"$f":"$C$3*'Park Allocations'!J47","v":0},{"$f":"$C$3*'Park Allocations'!K47","v":0},{"$f":"$C$3*'Park Allocations'!L47","v":0},{"$f":"$C$3*'Park Allocations'!M47","v":0},{"$f":"$C$3*'Park Allocations'!N47","v":0},{"$f":"$C$3*'Park Allocations'!O47","v":0},{"$f":"$C$3*'Park Allocations'!P47","v":0},{"$f":"$C$3*'Park Allocations'!Q47","v":0},{"$f":"$C$3*'Park Allocations'!R47","v":0}]
["160 - Office of Insurance Commissioner","160","Office of Insurance Commissioner",2684.5773442300488,{"$f":"$C$3*'Park Allocations'!E48","v":0},{"$f":"$C$3*'Park Allocations'!F48","v":0},{"$f":"$C$3*'Park Allocations'!G48","v":0},{"$f":"$C$3*'Park Allocations'!H48","v":0},{"$f":"$C$3*'Park Allocations'!I48","v":0},{"$f":"$C$3*'Park Allocations'!J48","v":0},{"$f":"$C$3*'Park Allocations'!K48","v":0},{"$f":"$C$3*'Park Allocations'!L48","v":0},{"$f":"$C$3*'Park Allocations'!M48","v":0},{"$f":"$C$3*'Park Allocations'!N48","v":0},{"$f":"$C$3*'Park Allocations'!O48","v":2684.5773442300488},{"$f":"$C$3*'Park Allocations'!P48","v":0},{"$f":"$C$3*'Park Allocations'!Q48","v":0},{"$f":"$C$3*'Park Allocations'!R48","v":0}]
["163 - Consolidated Technology Services","163","Consolidated Technology Services",112.16148011377513,{"$f":"$C$3*'Park Allocations'!E49","v":0},{"$f":"$C$3*'Park Allocations'!F49","v":0},{"$f":"$C$3*'Park Allocations'!G49","v":0},{"$f":"$C$3*'Park Allocations'!H49","v":0},{"$f":"$C$3*'Park Allocations'!I49","v":0},{"$f":"$C$3*'Park Allocations'!J49","v":112.16148011377513},{"$f":"$C$3*'Park Allocations'!K49","v":0},{"$f":"$C$3*'Park Allocations'!L49","v":0},{"$f":"$C$3*'Park Allocations'!M49","v":0},{"$f":"$C$3*'Park Allocations'!N49","v":0},{"$f":"$C$3*'Park Allocations'!O49","v":0},{"$f":"$C$3*'Park Allocations'!P49","v":0},{"$f":"$C$3*'Park Allocations'!Q49","v":0},{"$f":"$C$3*'Park Allocations'!R49","v":0}]
["165 - Board of Accountancy","165","Board of Accountancy",0,{"$f":"$C$3*'Park Allocations'!E50","v":0},{"$f":"$C$3*'Park Allocations'!F50","v":0},{"$f":"$C$3*'Park Allocations'!G50","v":0},{"$f":"$C$3*'Park Allocations'!H50","v":0},{"$f":"$C$3*'Park Allocations'!I50","v":0},{"$f":"$C$3*'Park Allocations'!J50","v":0},{"$f":"$C$3*'Park Allocations'!K50","v":0},{"$f":"$C$3*'Park Allocations'!L50","v":0},{"$f":"$C$3*'Park Allocations'!M50","v":0},{"$f":"$C$3*'Park Allocations'!N50","v":0},{"$f":"$C$3*'Park Allocations'!O50","v":0},{"$f":"$C$3*'Park Allocations'!P50","v":0},{"$f":"$C$3*'Park Allocations'!Q50","v":0},{"$f":"$C$3*'Park Allocations'!R50","v":0}]
["166 - Brd Prof Eng Land Surveyors","166","Brd Prof Eng Land Surveyors",0,{"$f":"$C$3*'Park Allocations'!E51","v":0},{"$f":"$C$3*'Park Allocations'!F51","v":0},{"$f":"$C$3*'Park Allocations'!G51","v":0},{"$f":"$C$3*'Park Allocations'!H51","v":0},{"$f":"$C$3*'Park Allocations'!I51","v":0},{"$f":"$C$3*'Park Allocations'!J51","v":0},{"$f":"$C$3*'Park Allocations'!K51","v":0},{"$f":"$C$3*'Park Allocations'!L51","v":0},{"$f":"$C$3*'Park Allocations'!M51","v":0},{"$f":"$C$3*'Park Allocations'!N51","v":0},{"$f":"$C$3*'Park Allocations'!O51","v":0},{"$f":"$C$3*'Park Allocations'!P51","v":0},{"$f":"$C$3*'Park Allocations'!Q51","v":0},{"$f":"$C$3*'Park Allocations'!R51","v":0}]
["167 - Forensic Investigations Council","167","Forensic Investigations Council",0,{"$f":"$C$3*'Park Allocations'!E52","v":0},{"$f":"$C$3*'Park Allocations'!F52","v":0},{"$f":"$C$3*'Park Allocations'!G52","v":0},{"$f":"$C$3*'Park Allocations'!H52","v":0},{"$f":"$C$3*'Park Allocations'!I52","v":0},{"$f":"$C$3*'Park Allocations'!J52","v":0},{"$f":"$C$3*'Park Allocations'!K52","v":0},{"$f":"$C$3*'Park Allocations'!L52","v":0},{"$f":"$C$3*'Park Allocations'!M52","v":0},{"$f":"$C$3*'Park Allocations'!N52","v":0},{"$f":"$C$3*'Park Allocations'!O52","v":0},{"$f":"$C$3*'Park Allocations'!P52","v":0},{"$f":"$C$3*'Park Allocations'!Q52","v":0},{"$f":"$C$3*'Park Allocations'!R52","v":0}]
["179 - Department of Enterprise Services","179","Department of Enterprise Services",10449.071039503509,{"$f":"$C$3*'Park Allocations'!E53","v":0},{"$f":"$C$3*'Park Allocations'!F53","v":0},{"$f":"$C$3*'Park Allocations'!G53","v":2656.9210888595289},{"$f":"$C$3*'Park Allocations'!H53","v":0},{"$f":"$C$3*'Park Allocations'!I53","v":0},{"$f":"$C$3*'Park Allocations'!J53","v":7792.1499506439795},{"$f":"$C$3*'Park Allocations'!K53","v":0},{"$f":"$C$3*'Park Allocations'!L53","v":0},{"$f":"$C$3*'Park Allocations'!M53","v":0},{"$f":"$C$3*'Park Allocations'!N53","v":0},{"$f":"$C$3*'Park Allocations'!O53","v":0},{"$f":"$C$3*'Park Allocations'!P53","v":0},{"$f":"$C$3*'Park Allocations'!Q53","v":0},{"$f":"$C$3*'Park Allocations'!R53","v":0}]
["185 - Horse Racing Commission","185","Horse Racing Commission",0,{"$f":"$C$3*'Park Allocations'!E54","v":0},{"$f":"$C$3*'Park Allocations'!F54","v":0},{"$f":"$C$3*'Park Allocations'!G54","v":0},{"$f":"$C$3*'Park Allocations'!H54","v":0},{"$f":"$C$3*'Park Allocations'!I54","v":0},{"$f":"$C$3*'Park Allocations'!J54","v":0},{"$f":"$C$3*'Park Allocations'!K54","v":0},{"$f":"$C$3*'Park Allocations'!L54","v":0},{"$f":"$C$3*'Park Allocations'!M54","v":0},{"$f":"$C$3*'Park Allocations'!N54","v":0},{"$f":"$C$3*'Park Allocations'!O54","v":0},{"$f":"$C$3*'Park Allocations'!P54","v":0},{"$f":"$C$3*'Park Allocations'!Q54","v":0},{"$f":"$C$3*'Park Allocations'!R54","v":0}]
["190 - Board of Industrial Insurance Appeals","190","Board of Industrial Insurance Appeals",0,{"$f":"$C$3*'Park Allocations'!E55","v":0},{"$f":"$C$3*'Park Allocations'!F55","v":0},{"$f":"$C$3*'Park Allocations'!G55","v":0},{"$f":"$C$3*'Park Allocations'!H55","v":0},{"$f":"$C$3*'Park Allocations'!I55","v":0},{"$f":"$C$3*'Park Allocations'!J55","v":0},{"$f":"$C$3*'Park Allocations'!K55","v":0},{"$f":"$C$3*'Park Allocations'!L55","v":0},{"$f":"$C$3*'Park Allocations'!M55","v":0},{"$f":"$C$3*'Park Allocations'!N55","v":0},{"$f":"$C$3*'Park Allocations'!O55","v":0},{"$f":"$C$3*'Park Allocations'!P55","v":0},{"$f":"$C$3*'Park Allocations'!Q55","v":0},{"$f":"$C$3*'Park Allocations'!R55","v":0}]
["195 - Liquor Control Board","195","Liquor Control Board",0,{"$f":"$C$3*'Park Allocations'!E56","v":0},{"$f":"$C$3*'Park Allocations'!F56","v":0},{"$f":"$C$3*'Park Allocations'!G56","v":0},{"$f":"$C$3*'Park Allocations'!H56","v":0},{"$f":"$C$3*'Park Allocations'!I56","v":0},{"$f":"$C$3*'Park Allocations'!J56","v":0},{"$f":"$C$3*'Park Allocations'!K56","v":0},{"$f":"$C$3*'Park Allocations'!L56","v":0},{"$f":"$C$3*'Park Allocations'!M56","v":0},{"$f":"$C$3*'Park Allocations'!N56","v":0},{"$f":"$C$3*'Park Allocations'!O56","v":0},{"$f":"$C$3*'Park Allocations'!P56","v":0},{"$f":"$C$3*'Park Allocations'!Q56","v":0},{"$f":"$C$3*'Park Allocations'!R56","v":0}]
["205 - Board of Pilotage Commissioners","205","Board of Pilotage Commissioners",0,{"$f":"$C$3*'Park Allocations'!E57","v":0},{"$f":"$C$3*'Park Allocations'!F57","v":0},{"$f":"$C$3*'Park Allocations'!G57","v":0},{"$f":"$C$3*'Park Allocations'!H57","v":0},{"$f":"$C$3*'Park Allocations'!I57","v":0},{"$f":"$C$3*'Park Allocations'!J57","v":0},{"$f":"$C$3*'Park Allocations'!K57","v":0},{"$f":"$C$3*'Park Allocations'!L57","v":0},{"$f":"$C$3*'Park Allocations'!M57","v":0},{"$f":"$C$3*'Park Allocations'!N57","v":0},{"$f":"$C$3*'Park Allocations'!O57","v":0},{"$f":"$C$3*'Park Allocations'!P57","v":0},{"$f":"$C$3*'Park Allocations'!Q57","v":0},{"$f":"$C$3*'Park Allocations'!R57","v":0}]
["215 - Utilities and Transportation Commission","215","Utilities and Transportation Commission",0,{"$f":"$C$3*'Park Allocations'!E58","v":0},{"$f":"$C$3*'Park Allocations'!F58","v":0},{"$f":"$C$3*'Park Allocations'!G58","v":0},{"$f":"$C$3*'Park Allocations'!H58","v":0},{"$f":"$C$3*'Park Allocations'!I58","v":0},{"$f":"$C$3*'Park Allocations'!J58","v":0},{"$f":"$C$3*'Park Allocations'!K58","v":0},{"$f":"$C$3*'Park Allocations'!L58","v":0},{"$f":"$C$3*'Park Allocations'!M58","v":0},{"$f":"$C$3*'Park Allocations'!N58","v":0},{"$f":"$C$3*'Park Allocations'!O58","v":0},{"$f":"$C$3*'Park Allocations'!P58","v":0},{"$f":"$C$3*'Park Allocations'!Q58","v":0},{"$f":"$C$3*'Park Allocations'!R58","v":0}]
["220 - Board for Volunteer Firefighters and Reserve Officers","220","Board for Volunteer Firefighters and Reserve Officers",0,{"$f":"$C$3*'Park Allocations'!E59","v":0},{"$f":"$C$3*'Park Allocations'!F59","v":0},{"$f":"$C$3*'Park Allocations'!G59","v":0},{"$f":"$C$3*'Park Allocations'!H59","v":0},{"$f":"$C$3*'Park Allocations'!I59","v":0},{"$f":"$C$3*'Park Allocations'!J59","v":0},{"$f":"$C$3*'Park Allocations'!K59","v":0},{"$f":"$C$3*'Park Allocations'!L59","v":0},{"$f":"$C$3*'Park Allocations'!M59","v":0},{"$f":"$C$3*'Park Allocations'!N59","v":0},{"$f":"$C$3*'Park Allocations'!O59","v":0},{"$f":"$C$3*'Park Allocations'!P59","v":0},{"$f":"$C$3*'Park Allocations'!Q59","v":0},{"$f":"$C$3*'Park Allocations'!R59","v":0}]
["225 - Washington State Patrol","225","Washington State Patrol",199.73962212042147,{"$f":"$C$3*'Park Allocations'!E60","v":0},{"$f":"$C$3*'Park Allocations'!F60","v":0},{"$f":"$C$3*'Park Allocations'!G60","v":199.73962212042147},{"$f":"$C$3*'Park Allocations'!H60","v":0},{"$f":"$C$3*'Park Allocations'!I60","v":0},{"$f":"$C$3*'Park Allocations'!J60","v":0},{"$f":"$C$3*'Park Allocations'!K60","v":0},{"$f":"$C$3*'Park Allocations'!L60","v":0},{"$f":"$C$3*'Park Allocations'!M60","v":0},{"$f":"$C$3*'Park Allocations'!N60","v":0},{"$f":"$C$3*'Park Allocations'!O60","v":0},{"$f":"$C$3*'Park Allocations'!P60","v":0},{"$f":"$C$3*'Park Allocations'!Q60","v":0},{"$f":"$C$3*'Park Allocations'!R60","v":0}]
["227 - Criminal Justice Training Commission","227","Criminal Justice Training Commission",0,{"$f":"$C$3*'Park Allocations'!E61","v":0},{"$f":"$C$3*'Park Allocations'!F61","v":0},{"$f":"$C$3*'Park Allocations'!G61","v":0},{"$f":"$C$3*'Park Allocations'!H61","v":0},{"$f":"$C$3*'Park Allocations'!I61","v":0},{"$f":"$C$3*'Park Allocations'!J61","v":0},{"$f":"$C$3*'Park Allocations'!K61","v":0},{"$f":"$C$3*'Park Allocations'!L61","v":0},{"$f":"$C$3*'Park Allocations'!M61","v":0},{"$f":"$C$3*'Park Allocations'!N61","v":0},{"$f":"$C$3*'Park Allocations'!O61","v":0},{"$f":"$C$3*'Park Allocations'!P61","v":0},{"$f":"$C$3*'Park Allocations'!Q61","v":0},{"$f":"$C$3*'Park Allocations'!R61","v":0}]
["228 - Traffic Safety Commission","228","Traffic Safety Commission",0,{"$f":"$C$3*'Park Allocations'!E62","v":0},{"$f":"$C$3*'Park Allocations'!F62","v":0},{"$f":"$C$3*'Park Allocations'!G62","v":0},{"$f":"$C$3*'Park Allocations'!H62","v":0},{"$f":"$C$3*'Park Allocations'!I62","v":0},{"$f":"$C$3*'Park Allocations'!J62","v":0},{"$f":"$C$3*'Park Allocations'!K62","v":0},{"$f":"$C$3*'Park Allocations'!L62","v":0},{"$f":"$C$3*'Park Allocations'!M62","v":0},{"$f":"$C$3*'Park Allocations'!N62","v":0},{"$f":"$C$3*'Park Allocations'!O62","v":0},{"$f":"$C$3*'Park Allocations'!P62","v":0},{"$f":"$C$3*'Park Allocations'!Q62","v":0},{"$f":"$C$3*'Park Allocations'!R62","v":0}]
["235 - Department of Labor and Industries","235","Department of Labor and Industries",0,{"$f":"$C$3*'Park Allocations'!E63","v":0},{"$f":"$C$3*'Park Allocations'!F63","v":0},{"$f":"$C$3*'Park Allocations'!G63","v":0},{"$f":"$C$3*'Park Allocations'!H63","v":0},{"$f":"$C$3*'Park Allocations'!I63","v":0},{"$f":"$C$3*'Park Allocations'!J63","v":0},{"$f":"$C$3*'Park Allocations'!K63","v":0},{"$f":"$C$3*'Park Allocations'!L63","v":0},{"$f":"$C$3*'Park Allocations'!M63","v":0},{"$f":"$C$3*'Park Allocations'!N63","v":0},{"$f":"$C$3*'Park Allocations'!O63","v":0},{"$f":"$C$3*'Park Allocations'!P63","v":0},{"$f":"$C$3*'Park Allocations'!Q63","v":0},{"$f":"$C$3*'Park Allocations'!R63","v":0}]
["240 - Department of Licensing","240","Department of Licensing",40009.766884010038,{"$f":"$C$3*'Park Allocations'!E64","v":0},{"$f":"$C$3*'Park Allocations'!F64","v":0},{"$f":"$C$3*'Park Allocations'!G64","v":0},{"$f":"$C$3*'Park Allocations'!H64","v":0},{"$f":"$C$3*'Park Allocations'!I64","v":40009.766884010038},{"$f":"$C$3*'Park Allocations'!J64","v":0},{"$f":"$C$3*'Park Allocations'!K64","v":0},{"$f":"$C$3*'Park Allocations'!L64","v":0},{"$f":"$C$3*'Park Allocations'!M64","v":0},{"$f":"$C$3*'Park Allocations'!N64","v":0},{"$f":"$C$3*'Park Allocations'!O64","v":0},{"$f":"$C$3*'Park Allocations'!P64","v":0},{"$f":"$C$3*'Park Allocations'!Q64","v":0},{"$f":"$C$3*'Park Allocations'!R64","v":0}]
["245 - Military Department","245","Military Department",0,{"$f":"$C$3*'Park Allocations'!E65","v":0},{"$f":"$C$3*'Park Allocations'!F65","v":0},{"$f":"$C$3*'Park Allocations'!G65","v":0},{"$f":"$C$3*'Park Allocations'!H65","v":0},{"$f":"$C$3*'Park Allocations'!I65","v":0},{"$f":"$C$3*'Park Allocations'!J65","v":0},{"$f":"$C$3*'Park Allocations'!K65","v":0},{"$f":"$C$3*'Park Allocations'!L65","v":0},{"$f":"$C$3*'Park Allocations'!M65","v":0},{"$f":"$C$3*'Park Allocations'!N65","v":0},{"$f":"$C$3*'Park Allocations'!O65","v":0},{"$f":"$C$3*'Park Allocations'!P65","v":0},{"$f":"$C$3*'Park Allocations'!Q65","v":0},{"$f":"$C$3*'Park Allocations'!R65","v":0}]
["275 - Public Employment Relations Commission","275","Public Employment Relations Commission",0,{"$f":"$C$3*'Park Allocations'!E66","v":0},{"$f":"$C$3*'Park Allocations'!F66","v":0},{"$f":"$C$3*'Park Allocations'!G66","v":0},{"$f":"$C$3*'Park Allocations'!H66","v":0},{"$f":"$C$3*'Park Allocations'!I66","v":0},{"$f":"$C$3*'Park Allocations'!J66","v":0},{"$f":"$C$3*'Park Allocations'!K66","v":0},{"$f":"$C$3*'Park Allocations'!L66","v":0},{"$f":"$C$3*'Park Allocations'!M66","v":0},{"$f":"$C$3*'Park Allocations'!N66","v":0},{"$f":"$C$3*'Park Allocations'!O66","v":0},{"$f":"$C$3*'Park Allocations'!P66","v":0},{"$f":"$C$3*'Park Allocations'!Q66","v":0},{"$f":"$C$3*'Park Allocations'!R66","v":0}]
["300 - Department of Social and Health Services","300","Department of Social and Health Services",61954.237291201724,{"$f":"$C$3*'Park Allocations'!E67","v":0},{"$f":"$C$3*'Park Allocations'!F67","v":0},{"$f":"$C$3*'Park Allocations'!G67","v":0},{"$f":"$C$3*'Park Allocations'!H67","v":0},{"$f":"$C$3*'Park Allocations'!I67","v":0},{"$f":"$C$3*'Park Allocations'!J67","v":61954.237291201724},{"$f":"$C$3*'Park Allocations'!K67","v":0},{"$f":"$C$3*'Park Allocations'!L67","v":0},{"$f":"$C$3*'Park Allocations'!M67","v":0},{"$f":"$C$3*'Park Allocations'!N67","v":0},{"$f":"$C$3*'Park Allocations'!O67","v":0},{"$f":"$C$3*'Park Allocations'!P67","v":0},{"$f":"$C$3*'Park Allocations'!Q67","v":0},{"$f":"$C$3*'Park Allocations'!R67","v":0}]
["303 - Department of Health","303","Department of Health",0,{"$f":"$C$3*'Park Allocations'!E68","v":0},{"$f":"$C$3*'Park Allocations'!F68","v":0},{"$f":"$C$3*'Park Allocations'!G68","v":0},{"$f":"$C$3*'Park Allocations'!H68","v":0},{"$f":"$C$3*'Park Allocations'!I68","v":0},{"$f":"$C$3*'Park Allocations'!J68","v":0},{"$f":"$C$3*'Park Allocations'!K68","v":0},{"$f":"$C$3*'Park Allocations'!L68","v":0},{"$f":"$C$3*'Park Allocations'!M68","v":0},{"$f":"$C$3*'Park Allocations'!N68","v":0},{"$f":"$C$3*'Park Allocations'!O68","v":0},{"$f":"$C$3*'Park Allocations'!P68","v":0},{"$f":"$C$3*'Park Allocations'!Q68","v":0},{"$f":"$C$3*'Park Allocations'!R68","v":0}]
["305 - Department of Veterans Affairs","305","Department of Veterans Affairs",0,{"$f":"$C$3*'Park Allocations'!E69","v":0},{"$f":"$C$3*'Park Allocations'!F69","v":0},{"$f":"$C$3*'Park Allocations'!G69","v":0},{"$f":"$C$3*'Park Allocations'!H69","v":0},{"$f":"$C$3*'Park Allocations'!I69","v":0},{"$f":"$C$3*'Park Allocations'!J69","v":0},{"$f":"$C$3*'Park Allocations'!K69","v":0},{"$f":"$C$3*'Park Allocations'!L69","v":0},{"$f":"$C$3*'Park Allocations'!M69","v":0},{"$f":"$C$3*'Park Allocations'!N69","v":0},{"$f":"$C$3*'Park Allocations'!O69","v":0},{"$f":"$C$3*'Park Allocations'!P69","v":0},{"$f":"$C$3*'Park Allocations'!Q69","v":0},{"$f":"$C$3*'Park Allocations'!R69","v":0}]
[{"$f":"CONCATENATE(B70,\" - \",C70)","v":"307 - DCYF"},"307","DCYF",{"$f":"SUM(E70:AL70)","v":25367.700238609374},{"$f":"$C$3*'Park Allocations'!E70","v":0},{"$f":"$C$3*'Park Allocations'!F70","v":0},{"$f":"$C$3*'Park Allocations'!G70","v":0},{"$f":"$C$3*'Park Allocations'!H70","v":0},{"$f":"$C$3*'Park Allocations'!I70","v":0},{"$f":"$C$3*'Park Allocations'!J70","v":25367.700238609374},{"$f":"$C$3*'Park Allocations'!K70","v":0},{"$f":"$C$3*'Park Allocations'!L70","v":0},{"$f":"$C$3*'Park Allocations'!M70","v":0},{"$f":"$C$3*'Park Allocations'!N70","v":0},{"$f":"$C$3*'Park Allocations'!O70","v":0},{"$f":"$C$3*'Park Allocations'!P70","v":0},{"$f":"$C$3*'Park Allocations'!Q70","v":0},{"$f":"$C$3*'Park Allocations'!R70","v":0}]
["310 - Department of Corrections","310","Department of Corrections",0,{"$f":"$C$3*'Park Allocations'!E71","v":0},{"$f":"$C$3*'Park Allocations'!F71","v":0},{"$f":"$C$3*'Park Allocations'!G71","v":0},{"$f":"$C$3*'Park Allocations'!H71","v":0},{"$f":"$C$3*'Park Allocations'!I71","v":0},{"$f":"$C$3*'Park Allocations'!J71","v":0},{"$f":"$C$3*'Park Allocations'!K71","v":0},{"$f":"$C$3*'Park Allocations'!L71","v":0},{"$f":"$C$3*'Park Allocations'!M71","v":0},{"$f":"$C$3*'Park Allocations'!N71","v":0},{"$f":"$C$3*'Park Allocations'!O71","v":0},{"$f":"$C$3*'Park Allocations'!P71","v":0},{"$f":"$C$3*'Park Allocations'!Q71","v":0},{"$f":"$C$3*'Park Allocations'!R71","v":0}]
["315 - Department of Services for the Blind","315","Department of Services for the Blind",3254.6034965890976,{"$f":"$C$3*'Park Allocations'!E72","v":0},{"$f":"$C$3*'Park Allocations'!F72","v":0},{"$f":"$C$3*'Park Allocations'!G72","v":227.01176283301746},{"$f":"$C$3*'Park Allocations'!H72","v":0},{"$f":"$C$3*'Park Allocations'!I72","v":333.41152307793431},{"$f":"$C$3*'Park Allocations'!J72","v":987.17467086439069},{"$f":"$C$3*'Park Allocations'!K72","v":0},{"$f":"$C$3*'Park Allocations'!L72","v":1156.1851203509011},{"$f":"$C$3*'Park Allocations'!M72","v":0},{"$f":"$C$3*'Park Allocations'!N72","v":550.82041946285449},{"$f":"$C$3*'Park Allocations'!O72","v":0},{"$f":"$C$3*'Park Allocations'!P72","v":0},{"$f":"$C$3*'Park Allocations'!Q72","v":0},{"$f":"$C$3*'Park Allocations'!R72","v":0}]
["340 - Student Achievement Council","340","Student Achievement Council",0,{"$f":"$C$3*'Park Allocations'!E73","v":0},{"$f":"$C$3*'Park Allocations'!F73","v":0},{"$f":"$C$3*'Park Allocations'!G73","v":0},{"$f":"$C$3*'Park Allocations'!H73","v":0},{"$f":"$C$3*'Park Allocations'!I73","v":0},{"$f":"$C$3*'Park Allocations'!J73","v":0},{"$f":"$C$3*'Park Allocations'!K73","v":0},{"$f":"$C$3*'Park Allocations'!L73","v":0},{"$f":"$C$3*'Park Allocations'!M73","v":0},{"$f":"$C$3*'Park Allocations'!N73","v":0},{"$f":"$C$3*'Park Allocations'!O73","v":0},{"$f":"$C$3*'Park Allocations'!P73","v":0},{"$f":"$C$3*'Park Allocations'!Q73","v":0},{"$f":"$C$3*'Park Allocations'!R73","v":0}]
["341 - Law Enforcement Officers' & Fire Fighters' Plan 2 Retirement Board","341","Law Enforcement Officers' & Fire Fighters' Plan 2 Retirement Board",0,{"$f":"$C$3*'Park Allocations'!E74","v":0},{"$f":"$C$3*'Park Allocations'!F74","v":0},{"$f":"$C$3*'Park Allocations'!G74","v":0},{"$f":"$C$3*'Park Allocations'!H74","v":0},{"$f":"$C$3*'Park Allocations'!I74","v":0},{"$f":"$C$3*'Park Allocations'!J74","v":0},{"$f":"$C$3*'Park Allocations'!K74","v":0},{"$f":"$C$3*'Park Allocations'!L74","v":0},{"$f":"$C$3*'Park Allocations'!M74","v":0},{"$f":"$C$3*'Park Allocations'!N74","v":0},{"$f":"$C$3*'Park Allocations'!O74","v":0},{"$f":"$C$3*'Park Allocations'!P74","v":0},{"$f":"$C$3*'Park Allocations'!Q74","v":0},{"$f":"$C$3*'Park Allocations'!R74","v":0}]
["350 - Superintendent of Public Instruction","350","Superintendent of Public Instruction",37566.413544956187,{"$f":"$C$3*'Park Allocations'!E75","v":0},{"$f":"$C$3*'Park Allocations'!F75","v":0},{"$f":"$C$3*'Park Allocations'!G75","v":0},{"$f":"$C$3*'Park Allocations'!H75","v":0},{"$f":"$C$3*'Park Allocations'!I75","v":0},{"$f":"$C$3*'Park Allocations'!J75","v":0},{"$f":"$C$3*'Park Allocations'!K75","v":0},{"$f":"$C$3*'Park Allocations'!L75","v":0},{"$f":"$C$3*'Park Allocations'!M75","v":0},{"$f":"$C$3*'Park Allocations'!N75","v":0},{"$f":"$C$3*'Park Allocations'!O75","v":0},{"$f":"$C$3*'Park Allocations'!P75","v":37566.413544956187},{"$f":"$C$3*'Park Allocations'!Q75","v":0},{"$f":"$C$3*'Park Allocations'!R75","v":0}]
["351 - State School For The Blind","351","State School For The Blind",0,{"$f":"$C$3*'Park Allocations'!E76","v":0},{"$f":"$C$3*'Park Allocations'!F76","v":0},{"$f":"$C$3*'Park Allocations'!G76","v":0},{"$f":"$C$3*'Park Allocations'!H76","v":0},{"$f":"$C$3*'Park Allocations'!I76","v":0},{"$f":"$C$3*'Park Allocations'!J76","v":0},{"$f":"$C$3*'Park Allocations'!K76","v":0},{"$f":"$C$3*'Park Allocations'!L76","v":0},{"$f":"$C$3*'Park Allocations'!M76","v":0},{"$f":"$C$3*'Park Allocations'!N76","v":0},{"$f":"$C$3*'Park Allocations'!O76","v":0},{"$f":"$C$3*'Park Allocations'!P76","v":0},{"$f":"$C$3*'Park Allocations'!Q76","v":0},{"$f":"$C$3*'Park Allocations'!R76","v":0}]
["353 - State Center for Childhood Deafness and Hearing Loss","353","State Center for Childhood Deafness and Hearing Loss",0,{"$f":"$C$3*'Park Allocations'!E77","v":0},{"$f":"$C$3*'Park Allocations'!F77","v":0},{"$f":"$C$3*'Park Allocations'!G77","v":0},{"$f":"$C$3*'Park Allocations'!H77","v":0},{"$f":"$C$3*'Park Allocations'!I77","v":0},{"$f":"$C$3*'Park Allocations'!J77","v":0},{"$f":"$C$3*'Park Allocations'!K77","v":0},{"$f":"$C$3*'Park Allocations'!L77","v":0},{"$f":"$C$3*'Park Allocations'!M77","v":0},{"$f":"$C$3*'Park Allocations'!N77","v":0},{"$f":"$C$3*'Park Allocations'!O77","v":0},{"$f":"$C$3*'Park Allocations'!P77","v":0},{"$f":"$C$3*'Park Allocations'!Q77","v":0},{"$f":"$C$3*'Park Allocations'!R77","v":0}]
["354 - Workforce Training and Education Coordinating Board","354","Workforce Training and Education Coordinating Board",0,{"$f":"$C$3*'Park Allocations'!E78","v":0},{"$f":"$C$3*'Park Allocations'!F78","v":0},{"$f":"$C$3*'Park Allocations'!G78","v":0},{"$f":"$C$3*'Park Allocations'!H78","v":0},{"$f":"$C$3*'Park Allocations'!I78","v":0},{"$f":"$C$3*'Park Allocations'!J78","v":0},{"$f":"$C$3*'Park Allocations'!K78","v":0},{"$f":"$C$3*'Park Allocations'!L78","v":0},{"$f":"$C$3*'Park Allocations'!M78","v":0},{"$f":"$C$3*'Park Allocations'!N78","v":0},{"$f":"$C$3*'Park Allocations'!O78","v":0},{"$f":"$C$3*'Park Allocations'!P78","v":0},{"$f":"$C$3*'Park Allocations'!Q78","v":0},{"$f":"$C$3*'Park Allocations'!R78","v":0}]
["355 - Department of Archaeology and Historic Preservation","355","Department of Archaeology and Historic Preservation",0,{"$f":"$C$3*'Park Allocations'!E79","v":0},{"$f":"$C$3*'Park Allocations'!F79","v":0},{"$f":"$C$3*'Park Allocations'!G79","v":0},{"$f":"$C$3*'Park Allocations'!H79","v":0},{"$f":"$C$3*'Park Allocations'!I79","v":0},{"$f":"$C$3*'Park Allocations'!J79","v":0},{"$f":"$C$3*'Park Allocations'!K79","v":0},{"$f":"$C$3*'Park Allocations'!L79","v":0},{"$f":"$C$3*'Park Allocations'!M79","v":0},{"$f":"$C$3*'Park Allocations'!N79","v":0},{"$f":"$C$3*'Park Allocations'!O79","v":0},{"$f":"$C$3*'Park Allocations'!P79","v":0},{"$f":"$C$3*'Park Allocations'!Q79","v":0},{"$f":"$C$3*'Park Allocations'!R79","v":0}]
["357 - Department of Early Learning","357","Department of Early Learning",0,{"$f":"$C$3*'Park Allocations'!E80","v":0},{"$f":"$C$3*'Park Allocations'!F80","v":0},{"$f":"$C$3*'Park Allocations'!G80","v":0},{"$f":"$C$3*'Park Allocations'!H80","v":0},{"$f":"$C$3*'Park Allocations'!I80","v":0},{"$f":"$C$3*'Park Allocations'!J80","v":0},{"$f":"$C$3*'Park Allocations'!K80","v":0},{"$f":"$C$3*'Park Allocations'!L80","v":0},{"$f":"$C$3*'Park Allocations'!M80","v":0},{"$f":"$C$3*'Park Allocations'!N80","v":0},{"$f":"$C$3*'Park Allocations'!O80","v":0},{"$f":"$C$3*'Park Allocations'!P80","v":0},{"$f":"$C$3*'Park Allocations'!Q80","v":0},{"$f":"$C$3*'Park Allocations'!R80","v":0}]
["359 - WA Charter School Commission","359","WA Charter School Commission",0,{"$f":"$C$3*'Park Allocations'!E81","v":0},{"$f":"$C$3*'Park Allocations'!F81","v":0},{"$f":"$C$3*'Park Allocations'!G81","v":0},{"$f":"$C$3*'Park Allocations'!H81","v":0},{"$f":"$C$3*'Park Allocations'!I81","v":0},{"$f":"$C$3*'Park Allocations'!J81","v":0},{"$f":"$C$3*'Park Allocations'!K81","v":0},{"$f":"$C$3*'Park Allocations'!L81","v":0},{"$f":"$C$3*'Park Allocations'!M81","v":0},{"$f":"$C$3*'Park Allocations'!N81","v":0},{"$f":"$C$3*'Park Allocations'!O81","v":0},{"$f":"$C$3*'Park Allocations'!P81","v":0},{"$f":"$C$3*'Park Allocations'!Q81","v":0},{"$f":"$C$3*'Park Allocations'!R81","v":0}]
["360 - University of Washington","360","University of Washington",0,{"$f":"$C$3*'Park Allocations'!E82","v":0},{"$f":"$C$3*'Park Allocations'!F82","v":0},{"$f":"$C$3*'Park Allocations'!G82","v":0},{"$f":"$C$3*'Park Allocations'!H82","v":0},{"$f":"$C$3*'Park Allocations'!I82","v":0},{"$f":"$C$3*'Park Allocations'!J82","v":0},{"$f":"$C$3*'Park Allocations'!K82","v":0},{"$f":"$C$3*'Park Allocations'!L82","v":0},{"$f":"$C$3*'Park Allocations'!M82","v":0},{"$f":"$C$3*'Park Allocations'!N82","v":0},{"$f":"$C$3*'Park Allocations'!O82","v":0},{"$f":"$C$3*'Park Allocations'!P82","v":0},{"$f":"$C$3*'Park Allocations'!Q82","v":0},{"$f":"$C$3*'Park Allocations'!R82","v":0}]
["365 - Washington State University","365","Washington State University",0,{"$f":"$C$3*'Park Allocations'!E83","v":0},{"$f":"$C$3*'Park Allocations'!F83","v":0},{"$f":"$C$3*'Park Allocations'!G83","v":0},{"$f":"$C$3*'Park Allocations'!H83","v":0},{"$f":"$C$3*'Park Allocations'!I83","v":0},{"$f":"$C$3*'Park Allocations'!J83","v":0},{"$f":"$C$3*'Park Allocations'!K83","v":0},{"$f":"$C$3*'Park Allocations'!L83","v":0},{"$f":"$C$3*'Park Allocations'!M83","v":0},{"$f":"$C$3*'Park Allocations'!N83","v":0},{"$f":"$C$3*'Park Allocations'!O83","v":0},{"$f":"$C$3*'Park Allocations'!P83","v":0},{"$f":"$C$3*'Park Allocations'!Q83","v":0},{"$f":"$C$3*'Park Allocations'!R83","v":0}]
["370 - Eastern Washington University","370","Eastern Washington University",0,{"$f":"$C$3*'Park Allocations'!E84","v":0},{"$f":"$C$3*'Park Allocations'!F84","v":0},{"$f":"$C$3*'Park Allocations'!G84","v":0},{"$f":"$C$3*'Park Allocations'!H84","v":0},{"$f":"$C$3*'Park Allocations'!I84","v":0},{"$f":"$C$3*'Park Allocations'!J84","v":0},{"$f":"$C$3*'Park Allocations'!K84","v":0},{"$f":"$C$3*'Park Allocations'!L84","v":0},{"$f":"$C$3*'Park Allocations'!M84","v":0},{"$f":"$C$3*'Park Allocations'!N84","v":0},{"$f":"$C$3*'Park Allocations'!O84","v":0},{"$f":"$C$3*'Park Allocations'!P84","v":0},{"$f":"$C$3*'Park Allocations'!Q84","v":0},{"$f":"$C$3*'Park Allocations'!R84","v":0}]
["375 - Central Washington University","375","Central Washington University",0,{"$f":"$C$3*'Park Allocations'!E85","v":0},{"$f":"$C$3*'Park Allocations'!F85","v":0},{"$f":"$C$3*'Park Allocations'!G85","v":0},{"$f":"$C$3*'Park Allocations'!H85","v":0},{"$f":"$C$3*'Park Allocations'!I85","v":0},{"$f":"$C$3*'Park Allocations'!J85","v":0},{"$f":"$C$3*'Park Allocations'!K85","v":0},{"$f":"$C$3*'Park Allocations'!L85","v":0},{"$f":"$C$3*'Park Allocations'!M85","v":0},{"$f":"$C$3*'Park Allocations'!N85","v":0},{"$f":"$C$3*'Park Allocations'!O85","v":0},{"$f":"$C$3*'Park Allocations'!P85","v":0},{"$f":"$C$3*'Park Allocations'!Q85","v":0},{"$f":"$C$3*'Park Allocations'!R85","v":0}]
["376 - The Evergreen State College","376","The Evergreen State College",0,{"$f":"$C$3*'Park Allocations'!E86","v":0},{"$f":"$C$3*'Park Allocations'!F86","v":0},{"$f":"$C$3*'Park Allocations'!G86","v":0},{"$f":"$C$3*'Park Allocations'!H86","v":0},{"$f":"$C$3*'Park Allocations'!I86","v":0},{"$f":"$C$3*'Park Allocations'!J86","v":0},{"$f":"$C$3*'Park Allocations'!K86","v":0},{"$f":"$C$3*'Park Allocations'!L86","v":0},{"$f":"$C$3*'Park Allocations'!M86","v":0},{"$f":"$C$3*'Park Allocations'!N86","v":0},{"$f":"$C$3*'Park Allocations'!O86","v":0},{"$f":"$C$3*'Park Allocations'!P86","v":0},{"$f":"$C$3*'Park Allocations'!Q86","v":0},{"$f":"$C$3*'Park Allocations'!R86","v":0}]
["380 - Western Washington University","380","Western Washington University",0,{"$f":"$C$3*'Park Allocations'!E87","v":0},{"$f":"$C$3*'Park Allocations'!F87","v":0},{"$f":"$C$3*'Park Allocations'!G87","v":0},{"$f":"$C$3*'Park Allocations'!H87","v":0},{"$f":"$C$3*'Park Allocations'!I87","v":0},{"$f":"$C$3*'Park Allocations'!J87","v":0},{"$f":"$C$3*'Park Allocations'!K87","v":0},{"$f":"$C$3*'Park Allocations'!L87","v":0},{"$f":"$C$3*'Park Allocations'!M87","v":0},{"$f":"$C$3*'Park Allocations'!N87","v":0},{"$f":"$C$3*'Park Allocations'!O87","v":0},{"$f":"$C$3*'Park Allocations'!P87","v":0},{"$f":"$C$3*'Park Allocations'!Q87","v":0},{"$f":"$C$3*'Park Allocations'!R87","v":0}]
["387 - Washington State Arts Commission","387","Washington State Arts Commission",0,{"$f":"$C$3*'Park Allocations'!E88","v":0},{"$f":"$C$3*'Park Allocations'!F88","v":0},{"$f":"$C$3*'Park Allocations'!G88","v":0},{"$f":"$C$3*'Park Allocations'!H88","v":0},{"$f":"$C$3*'Park Allocations'!I88","v":0},{"$f":"$C$3*'Park Allocations'!J88","v":0},{"$f":"$C$3*'Park Allocations'!K88","v":0},{"$f":"$C$3*'Park Allocations'!L88","v":0},{"$f":"$C$3*'Park Allocations'!M88","v":0},{"$f":"$C$3*'Park Allocations'!N88","v":0},{"$f":"$C$3*'Park Allocations'!O88","v":0},{"$f":"$C$3*'Park Allocations'!P88","v":0},{"$f":"$C$3*'Park Allocations'!Q88","v":0},{"$f":"$C$3*'Park Allocations'!R88","v":0}]
["390 - Washington State Historical Society","390","Washington State Historical Society",0,{"$f":"$C$3*'Park Allocations'!E89","v":0},{"$f":"$C$3*'Park Allocations'!F89","v":0},{"$f":"$C$3*'Park Allocations'!G89","v":0},{"$f":"$C$3*'Park Allocations'!H89","v":0},{"$f":"$C$3*'Park Allocations'!I89","v":0},{"$f":"$C$3*'Park Allocations'!J89","v":0},{"$f":"$C$3*'Park Allocations'!K89","v":0},{"$f":"$C$3*'Park Allocations'!L89","v":0},{"$f":"$C$3*'Park Allocations'!M89","v":0},{"$f":"$C$3*'Park Allocations'!N89","v":0},{"$f":"$C$3*'Park Allocations'!O89","v":0},{"$f":"$C$3*'Park Allocations'!P89","v":0},{"$f":"$C$3*'Park Allocations'!Q89","v":0},{"$f":"$C$3*'Park Allocations'!R89","v":0}]
["395 - Eastern Washington State Historical Society","395","Eastern Washington State Historical Society",0,{"$f":"$C$3*'Park Allocations'!E90","v":0},{"$f":"$C$3*'Park Allocations'!F90","v":0},{"$f":"$C$3*'Park Allocations'!G90","v":0},{"$f":"$C$3*'Park Allocations'!H90","v":0},{"$f":"$C$3*'Park Allocations'!I90","v":0},{"$f":"$C$3*'Park Allocations'!J90","v":0},{"$f":"$C$3*'Park Allocations'!K90","v":0},{"$f":"$C$3*'Park Allocations'!L90","v":0},{"$f":"$C$3*'Park Allocations'!M90","v":0},{"$f":"$C$3*'Park Allocations'!N90","v":0},{"$f":"$C$3*'Park Allocations'!O90","v":0},{"$f":"$C$3*'Park Allocations'!P90","v":0},{"$f":"$C$3*'Park Allocations'!Q90","v":0},{"$f":"$C$3*'Park Allocations'!R90","v":0}]
["405 - Department of Transportation","405","Department of Transportation",70290.293597465934,{"$f":"$C$3*'Park Allocations'!E91","v":0},{"$f":"$C$3*'Park Allocations'!F91","v":0},{"$f":"$C$3*'Park Allocations'!G91","v":0},{"$f":"$C$3*'Park Allocations'!H91","v":0},{"$f":"$C$3*'Park Allocations'!I91","v":0},{"$f":"$C$3*'Park Allocations'!J91","v":0},{"$f":"$C$3*'Park Allocations'!K91","v":0},{"$f":"$C$3*'Park Allocations'!L91","v":0},{"$f":"$C$3*'Park Allocations'!M91","v":0},{"$f":"$C$3*'Park Allocations'!N91","v":70290.293597465934},{"$f":"$C$3*'Park Allocations'!O91","v":0},{"$f":"$C$3*'Park Allocations'!P91","v":0},{"$f":"$C$3*'Park Allocations'!Q91","v":0},{"$f":"$C$3*'Park Allocations'!R91","v":0}]
["406 - County Road Administration Board","406","County Road Administration Board",0,{"$f":"$C$3*'Park Allocations'!E92","v":0},{"$f":"$C$3*'Park Allocations'!F92","v":0},{"$f":"$C$3*'Park Allocations'!G92","v":0},{"$f":"$C$3*'Park Allocations'!H92","v":0},{"$f":"$C$3*'Park Allocations'!I92","v":0},{"$f":"$C$3*'Park Allocations'!J92","v":0},{"$f":"$C$3*'Park Allocations'!K92","v":0},{"$f":"$C$3*'Park Allocations'!L92","v":0},{"$f":"$C$3*'Park Allocations'!M92","v":0},{"$f":"$C$3*'Park Allocations'!N92","v":0},{"$f":"$C$3*'Park Allocations'!O92","v":0},{"$f":"$C$3*'Park Allocations'!P92","v":0},{"$f":"$C$3*'Park Allocations'!Q92","v":0},{"$f":"$C$3*'Park Allocations'!R92","v":0}]
["407 - Transportation Improvement Board","407","Transportation Improvement Board",0,{"$f":"$C$3*'Park Allocations'!E93","v":0},{"$f":"$C$3*'Park Allocations'!F93","v":0},{"$f":"$C$3*'Park Allocations'!G93","v":0},{"$f":"$C$3*'Park Allocations'!H93","v":0},{"$f":"$C$3*'Park Allocations'!I93","v":0},{"$f":"$C$3*'Park Allocations'!J93","v":0},{"$f":"$C$3*'Park Allocations'!K93","v":0},{"$f":"$C$3*'Park Allocations'!L93","v":0},{"$f":"$C$3*'Park Allocations'!M93","v":0},{"$f":"$C$3*'Park Allocations'!N93","v":0},{"$f":"$C$3*'Park Allocations'!O93","v":0},{"$f":"$C$3*'Park Allocations'!P93","v":0},{"$f":"$C$3*'Park Allocations'!Q93","v":0},{"$f":"$C$3*'Park Allocations'!R93","v":0}]
["410 - Transportation Commission","410","Transportation Commission",0,{"$f":"$C$3*'Park Allocations'!E94","v":0},{"$f":"$C$3*'Park Allocations'!F94","v":0},{"$f":"$C$3*'Park Allocations'!G94","v":0},{"$f":"$C$3*'Park Allocations'!H94","v":0},{"$f":"$C$3*'Park Allocations'!I94","v":0},{"$f":"$C$3*'Park Allocations'!J94","v":0},{"$f":"$C$3*'Park Allocations'!K94","v":0},{"$f":"$C$3*'Park Allocations'!L94","v":0},{"$f":"$C$3*'Park Allocations'!M94","v":0},{"$f":"$C$3*'Park Allocations'!N94","v":0},{"$f":"$C$3*'Park Allocations'!O94","v":0},{"$f":"$C$3*'Park Allocations'!P94","v":0},{"$f":"$C$3*'Park Allocations'!Q94","v":0},{"$f":"$C$3*'Park Allocations'!R94","v":0}]
["411 - Freight Mobility Strategic Investment Board","411","Freight Mobility Strategic Investment Board",0,{"$f":"$C$3*'Park Allocations'!E95","v":0},{"$f":"$C$3*'Park Allocations'!F95","v":0},{"$f":"$C$3*'Park Allocations'!G95","v":0},{"$f":"$C$3*'Park Allocations'!H95","v":0},{"$f":"$C$3*'Park Allocations'!I95","v":0},{"$f":"$C$3*'Park Allocations'!J95","v":0},{"$f":"$C$3*'Park Allocations'!K95","v":0},{"$f":"$C$3*'Park Allocations'!L95","v":0},{"$f":"$C$3*'Park Allocations'!M95","v":0},{"$f":"$C$3*'Park Allocations'!N95","v":0},{"$f":"$C$3*'Park Allocations'!O95","v":0},{"$f":"$C$3*'Park Allocations'!P95","v":0},{"$f":"$C$3*'Park Allocations'!Q95","v":0},{"$f":"$C$3*'Park Allocations'!R95","v":0}]
["460 - Columbia River Gorge Commission","460","Columbia River Gorge Commission",0,{"$f":"$C$3*'Park Allocations'!E96","v":0},{"$f":"$C$3*'Park Allocations'!F96","v":0},{"$f":"$C$3*'Park Allocations'!G96","v":0},{"$f":"$C$3*'Park Allocations'!H96","v":0},{"$f":"$C$3*'Park Allocations'!I96","v":0},{"$f":"$C$3*'Park Allocations'!J96","v":0},{"$f":"$C$3*'Park Allocations'!K96","v":0},{"$f":"$C$3*'Park Allocations'!L96","v":0},{"$f":"$C$3*'Park Allocations'!M96","v":0},{"$f":"$C$3*'Park Allocations'!N96","v":0},{"$f":"$C$3*'Park Allocations'!O96","v":0},{"$f":"$C$3*'Park Allocations'!P96","v":0},{"$f":"$C$3*'Park Allocations'!Q96","v":0},{"$f":"$C$3*'Park Allocations'!R96","v":0}]
["461 - Department of Ecology","461","Department of Ecology",0,{"$f":"$C$3*'Park Allocations'!E97","v":0},{"$f":"$C$3*'Park Allocations'!F97","v":0},{"$f":"$C$3*'Park Allocations'!G97","v":0},{"$f":"$C$3*'Park Allocations'!H97","v":0},{"$f":"$C$3*'Park Allocations'!I97","v":0},{"$f":"$C$3*'Park Allocations'!J97","v":0},{"$f":"$C$3*'Park Allocations'!K97","v":0},{"$f":"$C$3*'Park Allocations'!L97","v":0},{"$f":"$C$3*'Park Allocations'!M97","v":0},{"$f":"$C$3*'Park Allocations'!N97","v":0},{"$f":"$C$3*'Park Allocations'!O97","v":0},{"$f":"$C$3*'Park Allocations'!P97","v":0},{"$f":"$C$3*'Park Allocations'!Q97","v":0},{"$f":"$C$3*'Park Allocations'!R97","v":0}]
["462 - Pollution Liability Insurance Program","462","Pollution Liability Insurance Program",0,{"$f":"$C$3*'Park Allocations'!E98","v":0},{"$f":"$C$3*'Park Allocations'!F98","v":0},{"$f":"$C$3*'Park Allocations'!G98","v":0},{"$f":"$C$3*'Park Allocations'!H98","v":0},{"$f":"$C$3*'Park Allocations'!I98","v":0},{"$f":"$C$3*'Park Allocations'!J98","v":0},{"$f":"$C$3*'Park Allocations'!K98","v":0},{"$f":"$C$3*'Park Allocations'!L98","v":0},{"$f":"$C$3*'Park Allocations'!M98","v":0},{"$f":"$C$3*'Park Allocations'!N98","v":0},{"$f":"$C$3*'Park Allocations'!O98","v":0},{"$f":"$C$3*'Park Allocations'!P98","v":0},{"$f":"$C$3*'Park Allocations'!Q98","v":0},{"$f":"$C$3*'Park Allocations'!R98","v":0}]
["465 - State Parks and Recreation Commission","465","State Parks and Recreation Commission",0,{"$f":"$C$3*'Park Allocations'!E99","v":0},{"$f":"$C$3*'Park Allocations'!F99","v":0},{"$f":"$C$3*'Park Allocations'!G99","v":0},{"$f":"$C$3*'Park Allocations'!H99","v":0},{"$f":"$C$3*'Park Allocations'!I99","v":0},{"$f":"$C$3*'Park Allocations'!J99","v":0},{"$f":"$C$3*'Park Allocations'!K99","v":0},{"$f":"$C$3*'Park Allocations'!L99","v":0},{"$f":"$C$3*'Park Allocations'!M99","v":0},{"$f":"$C$3*'Park Allocations'!N99","v":0},{"$f":"$C$3*'Park Allocations'!O99","v":0},{"$f":"$C$3*'Park Allocations'!P99","v":0},{"$f":"$C$3*'Park Allocations'!Q99","v":0},{"$f":"$C$3*'Park Allocations'!R99","v":0}]
["467 - Recreation and Conservation Funding Board","467","Recreation and Conservation Funding Board",4521.0295237641549,{"$f":"$C$3*'Park Allocations'!E100","v":0},{"$f":"$C$3*'Park Allocations'!F100","v":0},{"$f":"$C$3*'Park Allocations'!G100","v":0},{"$f":"$C$3*'Park Allocations'!H100","v":0},{"$f":"$C$3*'Park Allocations'!I100","v":0},{"$f":"$C$3*'Park Allocations'!J100","v":0},{"$f":"$C$3*'Park Allocations'!K100","v":0},{"$f":"$C$3*'Park Allocations'!L100","v":4521.0295237641549},{"$f":"$C$3*'Park Allocations'!M100","v":0},{"$f":"$C$3*'Park Allocations'!N100","v":0},{"$f":"$C$3*'Park Allocations'!O100","v":0},{"$f":"$C$3*'Park Allocations'!P100","v":0},{"$f":"$C$3*'Park Allocations'!Q100","v":0},{"$f":"$C$3*'Park Allocations'!R100","v":0}]
["468 - Environmental and Land Use Hearings Office","468","Environmental and Land Use Hearings Office",0,{"$f":"$C$3*'Park Allocations'!E101","v":0},{"$f":"$C$3*'Park Allocations'!F101","v":0},{"$f":"$C$3*'Park Allocations'!G101","v":0},{"$f":"$C$3*'Park Allocations'!H101","v":0},{"$f":"$C$3*'Park Allocations'!I101","v":0},{"$f":"$C$3*'Park Allocations'!J101","v":0},{"$f":"$C$3*'Park Allocations'!K101","v":0},{"$f":"$C$3*'Park Allocations'!L101","v":0},{"$f":"$C$3*'Park Allocations'!M101","v":0},{"$f":"$C$3*'Park Allocations'!N101","v":0},{"$f":"$C$3*'Park Allocations'!O101","v":0},{"$f":"$C$3*'Park Allocations'!P101","v":0},{"$f":"$C$3*'Park Allocations'!Q101","v":0},{"$f":"$C$3*'Park Allocations'!R101","v":0}]
["471 - State Conservation Commission","471","State Conservation Commission",0,{"$f":"$C$3*'Park Allocations'!E102","v":0},{"$f":"$C$3*'Park Allocations'!F102","v":0},{"$f":"$C$3*'Park Allocations'!G102","v":0},{"$f":"$C$3*'Park Allocations'!H102","v":0},{"$f":"$C$3*'Park Allocations'!I102","v":0},{"$f":"$C$3*'Park Allocations'!J102","v":0},{"$f":"$C$3*'Park Allocations'!K102","v":0},{"$f":"$C$3*'Park Allocations'!L102","v":0},{"$f":"$C$3*'Park Allocations'!M102","v":0},{"$f":"$C$3*'Park Allocations'!N102","v":0},{"$f":"$C$3*'Park Allocations'!O102","v":0},{"$f":"$C$3*'Park Allocations'!P102","v":0},{"$f":"$C$3*'Park Allocations'!Q102","v":0},{"$f":"$C$3*'Park Allocations'!R102","v":0}]
["477 - Department of Fish and Wildlife","477","Department of Fish and Wildlife",53840.967486533373,{"$f":"$C$3*'Park Allocations'!E103","v":0},{"$f":"$C$3*'Park Allocations'!F103","v":0},{"$f":"$C$3*'Park Allocations'!G103","v":0},{"$f":"$C$3*'Park Allocations'!H103","v":0},{"$f":"$C$3*'Park Allocations'!I103","v":0},{"$f":"$C$3*'Park Allocations'!J103","v":0},{"$f":"$C$3*'Park Allocations'!K103","v":0},{"$f":"$C$3*'Park Allocations'!L103","v":53840.967486533373},{"$f":"$C$3*'Park Allocations'!M103","v":0},{"$f":"$C$3*'Park Allocations'!N103","v":0},{"$f":"$C$3*'Park Allocations'!O103","v":0},{"$f":"$C$3*'Park Allocations'!P103","v":0},{"$f":"$C$3*'Park Allocations'!Q103","v":0},{"$f":"$C$3*'Park Allocations'!R103","v":0}]
["478 - Puget Sound Partnership","478","Puget Sound Partnership",0,{"$f":"$C$3*'Park Allocations'!E104","v":0},{"$f":"$C$3*'Park Allocations'!F104","v":0},{"$f":"$C$3*'Park Allocations'!G104","v":0},{"$f":"$C$3*'Park Allocations'!H104","v":0},{"$f":"$C$3*'Park Allocations'!I104","v":0},{"$f":"$C$3*'Park Allocations'!J104","v":0},{"$f":"$C$3*'Park Allocations'!K104","v":0},{"$f":"$C$3*'Park Allocations'!L104","v":0},{"$f":"$C$3*'Park Allocations'!M104","v":0},{"$f":"$C$3*'Park Allocations'!N104","v":0},{"$f":"$C$3*'Park Allocations'!O104","v":0},{"$f":"$C$3*'Park Allocations'!P104","v":0},{"$f":"$C$3*'Park Allocations'!Q104","v":0},{"$f":"$C$3*'Park Allocations'!R104","v":0}]
["490 - Department of Natural Resources","490","Department of Natural Resources",58308.605072846105,{"$f":"$C$3*'Park Allocations'!E105","v":0},{"$f":"$C$3*'Park Allocations'!F105","v":0},{"$f":"$C$3*'Park Allocations'!G105","v":0},{"$f":"$C$3*'Park Allocations'!H105","v":0},{"$f":"$C$3*'Park Allocations'!I105","v":0},{"$f":"$C$3*'Park Allocations'!J105","v":0},{"$f":"$C$3*'Park Allocations'!K105","v":0},{"$f":"$C$3*'Park Allocations'!L105","v":58308.605072846105},{"$f":"$C$3*'Park Allocations'!M105","v":0},{"$f":"$C$3*'Park Allocations'!N105","v":0},{"$f":"$C$3*'Park Allocations'!O105","v":0},{"$f":"$C$3*'Park Allocations'!P105","v":0},{"$f":"$C$3*'Park Allocations'!Q105","v":0},{"$f":"$C$3*'Park Allocations'!R105","v":0}]
["495 - Department of Agriculture","495","Department of Agriculture",18417.14550347663,{"$f":"$C$3*'Park Allocations'!E106","v":0},{"$f":"$C$3*'Park Allocations'!F106","v":0},{"$f":"$C$3*'Park Allocations'!G106","v":0},{"$f":"$C$3*'Park Allocations'!H106","v":0},{"$f":"$C$3*'Park Allocations'!I106","v":0},{"$f":"$C$3*'Park Allocations'!J106","v":0},{"$f":"$C$3*'Park Allocations'!K106","v":0},{"$f":"$C$3*'Park Allocations'!L106","v":18417.14550347663},{"$f":"$C$3*'Park Allocations'!M106","v":0},{"$f":"$C$3*'Park Allocations'!N106","v":0},{"$f":"$C$3*'Park Allocations'!O106","v":0},{"$f":"$C$3*'Park Allocations'!P106","v":0},{"$f":"$C$3*'Park Allocations'!Q106","v":0},{"$f":"$C$3*'Park Allocations'!R106","v":0}]
["540 - Employment Security Department","540","Employment Security Department",35576.315502252524,{"$f":"$C$3*'Park Allocations'!E107","v":0},{"$f":"$C$3*'Park Allocations'!F107","v":0},{"$f":"$C$3*'Park Allocations'!G107","v":0},{"$f":"$C$3*'Park Allocations'!H107","v":0},{"$f":"$C$3*'Park Allocations'!I107","v":0},{"$f":"$C$3*'Park Allocations'!J107","v":0},{"$f":"$C$3*'Park Allocations'!K107","v":0},{"$f":"$C$3*'Park Allocations'!L107","v":0},{"$f":"$C$3*'Park Allocations'!M107","v":35576.315502252524},{"$f":"$C$3*'Park Allocations'!N107","v":0},{"$f":"$C$3*'Park Allocations'!O107","v":0},{"$f":"$C$3*'Park Allocations'!P107","v":0},{"$f":"$C$3*'Park Allocations'!Q107","v":0},{"$f":"$C$3*'Park Allocations'!R107","v":0}]
["699 - Community Colleges","699","Community Colleges",0,{"$f":"$C$3*'Park Allocations'!E108","v":0},{"$f":"$C$3*'Park Allocations'!F108","v":0},{"$f":"$C$3*'Park Allocations'!G108","v":0},{"$f":"$C$3*'Park Allocations'!H108","v":0},{"$f":"$C$3*'Park Allocations'!I108","v":0},{"$f":"$C$3*'Park Allocations'!J108","v":0},{"$f":"$C$3*'Park Allocations'!K108","v":0},{"$f":"$C$3*'Park Allocations'!L108","v":0},{"$f":"$C$3*'Park Allocations'!M108","v":0},{"$f":"$C$3*'Park Allocations'!N108","v":0},{"$f":"$C$3*'Park Allocations'!O108","v":0},{"$f":"$C$3*'Park Allocations'!P108","v":0},{"$f":"$C$3*'Park Allocations'!Q108","v":0},{"$f":"$C$3*'Park Allocations'!R108","v":0}]
["TOTAL  - All Agencies",null,"Building Total",{"$f":"SUM(D5:D108)","v":637000},{"$f":"SUM(E5:E108)","v":29684.764879015944},30189.107424870006,54641.846548304675,9176.4991778016702,68244.883044021219,96213.423631433252,18399.092114554205,136243.93270697116,35576.315502252524,70841.114016928783,21167.790568869586,37566.413544956187,20592.002696641681,8462.8141433790879]
[]
[null,null,"Building Total RSF",null,77281,78594,142254,23890,177668,250481,47900,354696,92619,184427,55108,97800,53609,22032,95386,47200,14308,10125,0,41341,17000,0,1539,7138,885,2492,872,200592,60581,99000,20708,138355,17600,0]
[null,null,"vacant space",0,0,0,0,0,0,0,0,0,0,0,0,0,0,0,0,0,0,0,0,0,0,0,0,14276,406,872,0,0,0,0,35004,0,0]
[null,null,null,null,{"$f":"E109/E111/2","v":0.19205732896194372},{"$f":"F109/F111/2","v":0.19205732896194369},0.19205732896194369,0.19205732896194369,0.19205732896194369,0.19205732896194372,0.19205732896194369,0.19205732896194369,0.19205732896194369,0.19205732896194369,0.19205732896194369,0.19205732896194369,0.19205732896194372,0.19205732896194372,0,0,0,0,{"$error":"#DIV/0!"},0,0,{"$error":"#DIV/0!"},0,0,0,0,0,0,0,0,0,0,0]

{"sheet":"Park Dollars FY23","index":19,"n_rows":113,"n_cols":38,"rows_kept":113,"cut":false,"hidden":true,"merged":[[2,3,3,3]]}
[]
[null,null,null,null,"Olympia","Olympia","Olympia","Olympia","Olympia","Olympia","Olympia","Olympia","Olympia","Olympia","Olympia","Olympia","Olympia","Olympia","Tumwater","Tumwater",null,null,"Vacant",null,null,"Vacant",null,null,null,null,null,null,"OTC","OTC","OTC","OTC","OTC","OTC"]
[null,"CSM Amount",666001,"Total","F6121","F6122","F6123","F6124","F6125","F6126","F6127","F6129","F612A","F612C","F612E","F612H","F612J","F612K","F6131","F6132","F6133","F6134","F6137","F613D","F613E","F613F","F613G","F613H","F613i","F613K","F613L","F613M","F6141","F6142","F6143","F6144","F614G","F6146"]
[null,"Agency #","Agency",null,"Cherberg","O'Brien","Legislative","Pritchard","HLB","OB2","Archives","NRB","Emp Sec","Transportation","Insurance","Old Cap","TOJ","Newhouse","Modular Bldg","Isabella Bush","1007 Washington","120 E Union Avenue","Conservatory","Capital Court","James Dolliver Building","Undeveloped Properties","1068 WA Street SE (ST Farm)","232 Perry Street","208 11th Avenue SE (Pro Arts)","Press Houses Ayer(White); Carlyon(Blue)","Visitor Center","Helen Sommers","Kelso Building","Yakima Building","Alaska Street","Tacoma Rhodes","Tacoma Rhodes Garage","North Cascades Gateway Center (NCGC)"]
[{"$f":"CONCATENATE(B5,\" - \",C5)","v":"011 - House of Representatives"},"011","House of Representatives",{"$f":"SUM(E5:AL5)","v":49757.737557428758},{"$f":"$C$3*'Park Allocations'!E5","v":0},{"$f":"$C$3*'Park Allocations'!F5","v":31563.541183784691},{"$f":"$C$3*'Park Allocations'!G5","v":18194.196373644067},{"$f":"$C$3*'Park Allocations'!H5","v":0},{"$f":"$C$3*'Park Allocations'!I5","v":0},{"$f":"$C$3*'Park Allocations'!J5","v":0},{"$f":"$C$3*'Park Allocations'!K5","v":0},{"$f":"$C$3*'Park Allocations'!L5","v":0},{"$f":"$C$3*'Park Allocations'!M5","v":0},{"$f":"$C$3*'Park Allocations'!N5","v":0},{"$f":"$C$3*'Park Allocations'!O5","v":0},{"$f":"$C$3*'Park Allocations'!P5","v":0},{"$f":"$C$3*'Park Allocations'!Q5","v":0},{"$f":"$C$3*'Park Allocations'!R5","v":0}]
[{"$f":"CONCATENATE(B6,\" - \",C6)","v":"012 - Senate"},"012","Senate",{"$f":"SUM(E6:AL6)","v":54062.5139773716},{"$f":"$C$3*'Park Allocations'!E6","v":31036.237196529823},{"$f":"$C$3*'Park Allocations'!F6","v":0},{"$f":"$C$3*'Park Allocations'!G6","v":14178.172099044899},{"$f":"$C$3*'Park Allocations'!H6","v":0},{"$f":"$C$3*'Park Allocations'!I6","v":0},{"$f":"$C$3*'Park Allocations'!J6","v":0},{"$f":"$C$3*'Park Allocations'!K6","v":0},{"$f":"$C$3*'Park Allocations'!L6","v":0},{"$f":"$C$3*'Park Allocations'!M6","v":0},{"$f":"$C$3*'Park Allocations'!N6","v":0},{"$f":"$C$3*'Park Allocations'!O6","v":0},{"$f":"$C$3*'Park Allocations'!P6","v":0},{"$f":"$C$3*'Park Allocations'!Q6","v":0},{"$f":"$C$3*'Park Allocations'!R6","v":8848.1046817968836}]
["013 - Joint Transportation Committee","013","Joint Transportation Committee",0,{"$f":"$C$3*'Park Allocations'!E7","v":0},{"$f":"$C$3*'Park Allocations'!F7","v":0},{"$f":"$C$3*'Park Allocations'!G7","v":0},{"$f":"$C$3*'Park Allocations'!H7","v":0},{"$f":"$C$3*'Park Allocations'!I7","v":0},{"$f":"$C$3*'Park Allocations'!J7","v":0},{"$f":"$C$3*'Park Allocations'!K7","v":0},{"$f":"$C$3*'Park Allocations'!L7","v":0},{"$f":"$C$3*'Park Allocations'!M7","v":0},{"$f":"$C$3*'Park Allocations'!N7","v":0},{"$f":"$C$3*'Park Allocations'!O7","v":0},{"$f":"$C$3*'Park Allocations'!P7","v":0},{"$f":"$C$3*'Park Allocations'!Q7","v":0},{"$f":"$C$3*'Park Allocations'!R7","v":0}]
["014 - Joint Legislative Audit and Review Committee","014","Joint Legislative Audit and Review Committee",0,{"$f":"$C$3*'Park Allocations'!E8","v":0},{"$f":"$C$3*'Park Allocations'!F8","v":0},{"$f":"$C$3*'Park Allocations'!G8","v":0},{"$f":"$C$3*'Park Allocations'!H8","v":0},{"$f":"$C$3*'Park Allocations'!I8","v":0},{"$f":"$C$3*'Park Allocations'!J8","v":0},{"$f":"$C$3*'Park Allocations'!K8","v":0},{"$f":"$C$3*'Park Allocations'!L8","v":0},{"$f":"$C$3*'Park Allocations'!M8","v":0},{"$f":"$C$3*'Park Allocations'!N8","v":0},{"$f":"$C$3*'Park Allocations'!O8","v":0},{"$f":"$C$3*'Park Allocations'!P8","v":0},{"$f":"$C$3*'Park Allocations'!Q8","v":0},{"$f":"$C$3*'Park Allocations'!R8","v":0}]
["020 - Legislative Evaluation and Accountability Program Committee","020","Legislative Evaluation and Accountability Program Committee",0,{"$f":"$C$3*'Park Allocations'!E9","v":0},{"$f":"$C$3*'Park Allocations'!F9","v":0},{"$f":"$C$3*'Park Allocations'!G9","v":0},{"$f":"$C$3*'Park Allocations'!H9","v":0},{"$f":"$C$3*'Park Allocations'!I9","v":0},{"$f":"$C$3*'Park Allocations'!J9","v":0},{"$f":"$C$3*'Park Allocations'!K9","v":0},{"$f":"$C$3*'Park Allocations'!L9","v":0},{"$f":"$C$3*'Park Allocations'!M9","v":0},{"$f":"$C$3*'Park Allocations'!N9","v":0},{"$f":"$C$3*'Park Allocations'!O9","v":0},{"$f":"$C$3*'Park Allocations'!P9","v":0},{"$f":"$C$3*'Park Allocations'!Q9","v":0},{"$f":"$C$3*'Park Allocations'!R9","v":0}]
["035 - Office of the State Actuary","035","Office of the State Actuary",0,{"$f":"$C$3*'Park Allocations'!E10","v":0},{"$f":"$C$3*'Park Allocations'!F10","v":0},{"$f":"$C$3*'Park Allocations'!G10","v":0},{"$f":"$C$3*'Park Allocations'!H10","v":0},{"$f":"$C$3*'Park Allocations'!I10","v":0},{"$f":"$C$3*'Park Allocations'!J10","v":0},{"$f":"$C$3*'Park Allocations'!K10","v":0},{"$f":"$C$3*'Park Allocations'!L10","v":0},{"$f":"$C$3*'Park Allocations'!M10","v":0},{"$f":"$C$3*'Park Allocations'!N10","v":0},{"$f":"$C$3*'Park Allocations'!O10","v":0},{"$f":"$C$3*'Park Allocations'!P10","v":0},{"$f":"$C$3*'Park Allocations'!Q10","v":0},{"$f":"$C$3*'Park Allocations'!R10","v":0}]
["037 - Office of Legislative Support Services","037","Office of Legislative Support Services",3551.3702660280433,{"$f":"$C$3*'Park Allocations'!E11","v":0},{"$f":"$C$3*'Park Allocations'!F11","v":0},{"$f":"$C$3*'Park Allocations'!G11","v":1999.5784863229253},{"$f":"$C$3*'Park Allocations'!H11","v":1551.7917797051182},{"$f":"$C$3*'Park Allocations'!I11","v":0},{"$f":"$C$3*'Park Allocations'!J11","v":0},{"$f":"$C$3*'Park Allocations'!K11","v":0},{"$f":"$C$3*'Park Allocations'!L11","v":0},{"$f":"$C$3*'Park Allocations'!M11","v":0},{"$f":"$C$3*'Park Allocations'!N11","v":0},{"$f":"$C$3*'Park Allocations'!O11","v":0},{"$f":"$C$3*'Park Allocations'!P11","v":0},{"$f":"$C$3*'Park Allocations'!Q11","v":0},{"$f":"$C$3*'Park Allocations'!R11","v":0}]
["038 - Joint Legislative Systems Committee","038","Joint Legislative Systems Committee",3542.9366150513847,{"$f":"$C$3*'Park Allocations'!E12","v":0},{"$f":"$C$3*'Park Allocations'!F12","v":0},{"$f":"$C$3*'Park Allocations'!G12","v":459.03157458668477},{"$f":"$C$3*'Park Allocations'!H12","v":3083.9050404647001},{"$f":"$C$3*'Park Allocations'!I12","v":0},{"$f":"$C$3*'Park Allocations'!J12","v":0},{"$f":"$C$3*'Park Allocations'!K12","v":0},{"$f":"$C$3*'Park Allocations'!L12","v":0},{"$f":"$C$3*'Park Allocations'!M12","v":0},{"$f":"$C$3*'Park Allocations'!N12","v":0},{"$f":"$C$3*'Park Allocations'!O12","v":0},{"$f":"$C$3*'Park Allocations'!P12","v":0},{"$f":"$C$3*'Park Allocations'!Q12","v":0},{"$f":"$C$3*'Park Allocations'!R12","v":0}]
["040 - Statute Law Committee (Code Revisor)","040","Statute Law Committee (Code Revisor)",4958.5851718475915,{"$f":"$C$3*'Park Allocations'!E13","v":0},{"$f":"$C$3*'Park Allocations'!F13","v":0},{"$f":"$C$3*'Park Allocations'!G13","v":0},{"$f":"$C$3*'Park Allocations'!H13","v":4958.5851718475915},{"$f":"$C$3*'Park Allocations'!I13","v":0},{"$f":"$C$3*'Park Allocations'!J13","v":0},{"$f":"$C$3*'Park Allocations'!K13","v":0},{"$f":"$C$3*'Park Allocations'!L13","v":0},{"$f":"$C$3*'Park Allocations'!M13","v":0},{"$f":"$C$3*'Park Allocations'!N13","v":0},{"$f":"$C$3*'Park Allocations'!O13","v":0},{"$f":"$C$3*'Park Allocations'!P13","v":0},{"$f":"$C$3*'Park Allocations'!Q13","v":0},{"$f":"$C$3*'Park Allocations'!R13","v":0}]
["045 - Supreme Court","045","Supreme Court",13630.386387989573,{"$f":"$C$3*'Park Allocations'!E14","v":0},{"$f":"$C$3*'Park Allocations'!F14","v":0},{"$f":"$C$3*'Park Allocations'!G14","v":0},{"$f":"$C$3*'Park Allocations'!H14","v":0},{"$f":"$C$3*'Park Allocations'!I14","v":0},{"$f":"$C$3*'Park Allocations'!J14","v":0},{"$f":"$C$3*'Park Allocations'!K14","v":0},{"$f":"$C$3*'Park Allocations'!L14","v":0},{"$f":"$C$3*'Park Allocations'!M14","v":0},{"$f":"$C$3*'Park Allocations'!N14","v":0},{"$f":"$C$3*'Park Allocations'!O14","v":0},{"$f":"$C$3*'Park Allocations'!P14","v":0},{"$f":"$C$3*'Park Allocations'!Q14","v":13630.386387989573},{"$f":"$C$3*'Park Allocations'!R14","v":0}]
["046 - Law Library","046","Law Library",6191.9062265769962,{"$f":"$C$3*'Park Allocations'!E15","v":0},{"$f":"$C$3*'Park Allocations'!F15","v":0},{"$f":"$C$3*'Park Allocations'!G15","v":0},{"$f":"$C$3*'Park Allocations'!H15","v":0},{"$f":"$C$3*'Park Allocations'!I15","v":0},{"$f":"$C$3*'Park Allocations'!J15","v":0},{"$f":"$C$3*'Park Allocations'!K15","v":0},{"$f":"$C$3*'Park Allocations'!L15","v":0},{"$f":"$C$3*'Park Allocations'!M15","v":0},{"$f":"$C$3*'Park Allocations'!N15","v":0},{"$f":"$C$3*'Park Allocations'!O15","v":0},{"$f":"$C$3*'Park Allocations'!P15","v":0},{"$f":"$C$3*'Park Allocations'!Q15","v":6191.9062265769962},{"$f":"$C$3*'Park Allocations'!R15","v":0}]
["048 - Court of Appeals","048","Court of Appeals",0,{"$f":"$C$3*'Park Allocations'!E16","v":0},{"$f":"$C$3*'Park Allocations'!F16","v":0},{"$f":"$C$3*'Park Allocations'!G16","v":0},{"$f":"$C$3*'Park Allocations'!H16","v":0},{"$f":"$C$3*'Park Allocations'!I16","v":0},{"$f":"$C$3*'Park Allocations'!J16","v":0},{"$f":"$C$3*'Park Allocations'!K16","v":0},{"$f":"$C$3*'Park Allocations'!L16","v":0},{"$f":"$C$3*'Park Allocations'!M16","v":0},{"$f":"$C$3*'Park Allocations'!N16","v":0},{"$f":"$C$3*'Park Allocations'!O16","v":0},{"$f":"$C$3*'Park Allocations'!P16","v":0},{"$f":"$C$3*'Park Allocations'!Q16","v":0},{"$f":"$C$3*'Park Allocations'!R16","v":0}]
["050 - Commission on Judicial Conduct","050","Commission on Judicial Conduct",0,{"$f":"$C$3*'Park Allocations'!E17","v":0},{"$f":"$C$3*'Park Allocations'!F17","v":0},{"$f":"$C$3*'Park Allocations'!G17","v":0},{"$f":"$C$3*'Park Allocations'!H17","v":0},{"$f":"$C$3*'Park Allocations'!I17","v":0},{"$f":"$C$3*'Park Allocations'!J17","v":0},{"$f":"$C$3*'Park Allocations'!K17","v":0},{"$f":"$C$3*'Park Allocations'!L17","v":0},{"$f":"$C$3*'Park Allocations'!M17","v":0},{"$f":"$C$3*'Park Allocations'!N17","v":0},{"$f":"$C$3*'Park Allocations'!O17","v":0},{"$f":"$C$3*'Park Allocations'!P17","v":0},{"$f":"$C$3*'Park Allocations'!Q17","v":0},{"$f":"$C$3*'Park Allocations'!R17","v":0}]
["055 - Administrative Office of the Courts","055","Administrative Office of the Courts",1707.2119191321058,{"$f":"$C$3*'Park Allocations'!E18","v":0},{"$f":"$C$3*'Park Allocations'!F18","v":0},{"$f":"$C$3*'Park Allocations'!G18","v":0},{"$f":"$C$3*'Park Allocations'!H18","v":0},{"$f":"$C$3*'Park Allocations'!I18","v":0},{"$f":"$C$3*'Park Allocations'!J18","v":0},{"$f":"$C$3*'Park Allocations'!K18","v":0},{"$f":"$C$3*'Park Allocations'!L18","v":0},{"$f":"$C$3*'Park Allocations'!M18","v":0},{"$f":"$C$3*'Park Allocations'!N18","v":0},{"$f":"$C$3*'Park Allocations'!O18","v":0},{"$f":"$C$3*'Park Allocations'!P18","v":0},{"$f":"$C$3*'Park Allocations'!Q18","v":1707.2119191321058},{"$f":"$C$3*'Park Allocations'!R18","v":0}]
["056 - Office of Public Defense","056","Office of Public Defense",0,{"$f":"$C$3*'Park Allocations'!E19","v":0},{"$f":"$C$3*'Park Allocations'!F19","v":0},{"$f":"$C$3*'Park Allocations'!G19","v":0},{"$f":"$C$3*'Park Allocations'!H19","v":0},{"$f":"$C$3*'Park Allocations'!I19","v":0},{"$f":"$C$3*'Park Allocations'!J19","v":0},{"$f":"$C$3*'Park Allocations'!K19","v":0},{"$f":"$C$3*'Park Allocations'!L19","v":0},{"$f":"$C$3*'Park Allocations'!M19","v":0},{"$f":"$C$3*'Park Allocations'!N19","v":0},{"$f":"$C$3*'Park Allocations'!O19","v":0},{"$f":"$C$3*'Park Allocations'!P19","v":0},{"$f":"$C$3*'Park Allocations'!Q19","v":0},{"$f":"$C$3*'Park Allocations'!R19","v":0}]
["057 - Office of Civil Legal Aid","057","Office of Civil Legal Aid",0,{"$f":"$C$3*'Park Allocations'!E20","v":0},{"$f":"$C$3*'Park Allocations'!F20","v":0},{"$f":"$C$3*'Park Allocations'!G20","v":0},{"$f":"$C$3*'Park Allocations'!H20","v":0},{"$f":"$C$3*'Park Allocations'!I20","v":0},{"$f":"$C$3*'Park Allocations'!J20","v":0},{"$f":"$C$3*'Park Allocations'!K20","v":0},{"$f":"$C$3*'Park Allocations'!L20","v":0},{"$f":"$C$3*'Park Allocations'!M20","v":0},{"$f":"$C$3*'Park Allocations'!N20","v":0},{"$f":"$C$3*'Park Allocations'!O20","v":0},{"$f":"$C$3*'Park Allocations'!P20","v":0},{"$f":"$C$3*'Park Allocations'!Q20","v":0},{"$f":"$C$3*'Park Allocations'!R20","v":0}]
["075 - Office of the Governor","075","Office of the Governor",6930.4530906757827,{"$f":"$C$3*'Park Allocations'!E21","v":0},{"$f":"$C$3*'Park Allocations'!F21","v":0},{"$f":"$C$3*'Park Allocations'!G21","v":6930.4530906757827},{"$f":"$C$3*'Park Allocations'!H21","v":0},{"$f":"$C$3*'Park Allocations'!I21","v":0},{"$f":"$C$3*'Park Allocations'!J21","v":0},{"$f":"$C$3*'Park Allocations'!K21","v":0},{"$f":"$C$3*'Park Allocations'!L21","v":0},{"$f":"$C$3*'Park Allocations'!M21","v":0},{"$f":"$C$3*'Park Allocations'!N21","v":0},{"$f":"$C$3*'Park Allocations'!O21","v":0},{"$f":"$C$3*'Park Allocations'!P21","v":0},{"$f":"$C$3*'Park Allocations'!Q21","v":0},{"$f":"$C$3*'Park Allocations'!R21","v":0}]
["080 - Office of Lieutenant Governor","080","Office of Lieutenant Governor",3563.8199412793006,{"$f":"$C$3*'Park Allocations'!E22","v":0},{"$f":"$C$3*'Park Allocations'!F22","v":0},{"$f":"$C$3*'Park Allocations'!G22","v":3563.8199412793006},{"$f":"$C$3*'Park Allocations'!H22","v":0},{"$f":"$C$3*'Park Allocations'!I22","v":0},{"$f":"$C$3*'Park Allocations'!J22","v":0},{"$f":"$C$3*'Park Allocations'!K22","v":0},{"$f":"$C$3*'Park Allocations'!L22","v":0},{"$f":"$C$3*'Park Allocations'!M22","v":0},{"$f":"$C$3*'Park Allocations'!N22","v":0},{"$f":"$C$3*'Park Allocations'!O22","v":0},{"$f":"$C$3*'Park Allocations'!P22","v":0},{"$f":"$C$3*'Park Allocations'!Q22","v":0},{"$f":"$C$3*'Park Allocations'!R22","v":0}]
["082 - Public Disclosure Commission","082","Public Disclosure Commission",0,{"$f":"$C$3*'Park Allocations'!E23","v":0},{"$f":"$C$3*'Park Allocations'!F23","v":0},{"$f":"$C$3*'Park Allocations'!G23","v":0},{"$f":"$C$3*'Park Allocations'!H23","v":0},{"$f":"$C$3*'Park Allocations'!I23","v":0},{"$f":"$C$3*'Park Allocations'!J23","v":0},{"$f":"$C$3*'Park Allocations'!K23","v":0},{"$f":"$C$3*'Park Allocations'!L23","v":0},{"$f":"$C$3*'Park Allocations'!M23","v":0},{"$f":"$C$3*'Park Allocations'!N23","v":0},{"$f":"$C$3*'Park Allocations'!O23","v":0},{"$f":"$C$3*'Park Allocations'!P23","v":0},{"$f":"$C$3*'Park Allocations'!Q23","v":0},{"$f":"$C$3*'Park Allocations'!R23","v":0}]
["085 - Office of the Secretary of State","085","Office of the Secretary of State",23513.822127778127,{"$f":"$C$3*'Park Allocations'!E24","v":0},{"$f":"$C$3*'Park Allocations'!F24","v":0},{"$f":"$C$3*'Park Allocations'!G24","v":4277.0658524481132},{"$f":"$C$3*'Park Allocations'!H24","v":0},{"$f":"$C$3*'Park Allocations'!I24","v":0},{"$f":"$C$3*'Park Allocations'!J24","v":0},{"$f":"$C$3*'Park Allocations'!K24","v":19236.756275330012},{"$f":"$C$3*'Park Allocations'!L24","v":0},{"$f":"$C$3*'Park Allocations'!M24","v":0},{"$f":"$C$3*'Park Allocations'!N24","v":0},{"$f":"$C$3*'Park Allocations'!O24","v":0},{"$f":"$C$3*'Park Allocations'!P24","v":0},{"$f":"$C$3*'Park Allocations'!Q24","v":0},{"$f":"$C$3*'Park Allocations'!R24","v":0}]
["086 - Governor's Office of Indian Affairs","086","Governor's Office of Indian Affairs",0,{"$f":"$C$3*'Park Allocations'!E25","v":0},{"$f":"$C$3*'Park Allocations'!F25","v":0},{"$f":"$C$3*'Park Allocations'!G25","v":0},{"$f":"$C$3*'Park Allocations'!H25","v":0},{"$f":"$C$3*'Park Allocations'!I25","v":0},{"$f":"$C$3*'Park Allocations'!J25","v":0},{"$f":"$C$3*'Park Allocations'!K25","v":0},{"$f":"$C$3*'Park Allocations'!L25","v":0},{"$f":"$C$3*'Park Allocations'!M25","v":0},{"$f":"$C$3*'Park Allocations'!N25","v":0},{"$f":"$C$3*'Park Allocations'!O25","v":0},{"$f":"$C$3*'Park Allocations'!P25","v":0},{"$f":"$C$3*'Park Allocations'!Q25","v":0},{"$f":"$C$3*'Park Allocations'!R25","v":0}]
["087 - Commission on Asian Pacific American Affairs","087","Commission on Asian Pacific American Affairs",0,{"$f":"$C$3*'Park Allocations'!E26","v":0},{"$f":"$C$3*'Park Allocations'!F26","v":0},{"$f":"$C$3*'Park Allocations'!G26","v":0},{"$f":"$C$3*'Park Allocations'!H26","v":0},{"$f":"$C$3*'Park Allocations'!I26","v":0},{"$f":"$C$3*'Park Allocations'!J26","v":0},{"$f":"$C$3*'Park Allocations'!K26","v":0},{"$f":"$C$3*'Park Allocations'!L26","v":0},{"$f":"$C$3*'Park Allocations'!M26","v":0},{"$f":"$C$3*'Park Allocations'!N26","v":0},{"$f":"$C$3*'Park Allocations'!O26","v":0},{"$f":"$C$3*'Park Allocations'!P26","v":0},{"$f":"$C$3*'Park Allocations'!Q26","v":0},{"$f":"$C$3*'Park Allocations'!R26","v":0}]
["090 - Office of State Treasurer","090","Office of State Treasurer",4303.1700102330069,{"$f":"$C$3*'Park Allocations'!E27","v":0},{"$f":"$C$3*'Park Allocations'!F27","v":0},{"$f":"$C$3*'Park Allocations'!G27","v":4303.1700102330069},{"$f":"$C$3*'Park Allocations'!H27","v":0},{"$f":"$C$3*'Park Allocations'!I27","v":0},{"$f":"$C$3*'Park Allocations'!J27","v":0},{"$f":"$C$3*'Park Allocations'!K27","v":0},{"$f":"$C$3*'Park Allocations'!L27","v":0},{"$f":"$C$3*'Park Allocations'!M27","v":0},{"$f":"$C$3*'Park Allocations'!N27","v":0},{"$f":"$C$3*'Park Allocations'!O27","v":0},{"$f":"$C$3*'Park Allocations'!P27","v":0},{"$f":"$C$3*'Park Allocations'!Q27","v":0},{"$f":"$C$3*'Park Allocations'!R27","v":0}]
["095 - Office of State Auditor","095","Office of State Auditor",2575.0747648729862,{"$f":"$C$3*'Park Allocations'!E28","v":0},{"$f":"$C$3*'Park Allocations'!F28","v":0},{"$f":"$C$3*'Park Allocations'!G28","v":0},{"$f":"$C$3*'Park Allocations'!H28","v":0},{"$f":"$C$3*'Park Allocations'!I28","v":0},{"$f":"$C$3*'Park Allocations'!J28","v":0},{"$f":"$C$3*'Park Allocations'!K28","v":0},{"$f":"$C$3*'Park Allocations'!L28","v":0},{"$f":"$C$3*'Park Allocations'!M28","v":0},{"$f":"$C$3*'Park Allocations'!N28","v":0},{"$f":"$C$3*'Park Allocations'!O28","v":2575.0747648729862},{"$f":"$C$3*'Park Allocations'!P28","v":0},{"$f":"$C$3*'Park Allocations'!Q28","v":0},{"$f":"$C$3*'Park Allocations'!R28","v":0}]
["099 - Citizens' Commission on Salaries for Elected Officials","099","Citizens' Commission on Salaries for Elected Officials",0,{"$f":"$C$3*'Park Allocations'!E29","v":0},{"$f":"$C$3*'Park Allocations'!F29","v":0},{"$f":"$C$3*'Park Allocations'!G29","v":0},{"$f":"$C$3*'Park Allocations'!H29","v":0},{"$f":"$C$3*'Park Allocations'!I29","v":0},{"$f":"$C$3*'Park Allocations'!J29","v":0},{"$f":"$C$3*'Park Allocations'!K29","v":0},{"$f":"$C$3*'Park Allocations'!L29","v":0},{"$f":"$C$3*'Park Allocations'!M29","v":0},{"$f":"$C$3*'Park Allocations'!N29","v":0},{"$f":"$C$3*'Park Allocations'!O29","v":0},{"$f":"$C$3*'Park Allocations'!P29","v":0},{"$f":"$C$3*'Park Allocations'!Q29","v":0},{"$f":"$C$3*'Park Allocations'!R29","v":0}]
["100 - Office of Attorney General","100","Office of Attorney General",29171.998728260889,{"$f":"$C$3*'Park Allocations'!E30","v":0},{"$f":"$C$3*'Park Allocations'!F30","v":0},{"$f":"$C$3*'Park Allocations'!G30","v":0},{"$f":"$C$3*'Park Allocations'!H30","v":0},{"$f":"$C$3*'Park Allocations'!I30","v":29171.998728260889},{"$f":"$C$3*'Park Allocations'!J30","v":0},{"$f":"$C$3*'Park Allocations'!K30","v":0},{"$f":"$C$3*'Park Allocations'!L30","v":0},{"$f":"$C$3*'Park Allocations'!M30","v":0},{"$f":"$C$3*'Park Allocations'!N30","v":0},{"$f":"$C$3*'Park Allocations'!O30","v":0},{"$f":"$C$3*'Park Allocations'!P30","v":0},{"$f":"$C$3*'Park Allocations'!Q30","v":0},{"$f":"$C$3*'Park Allocations'!R30","v":0}]
["101 - Caseload Forecast Council","101","Caseload Forecast Council",0,{"$f":"$C$3*'Park Allocations'!E31","v":0},{"$f":"$C$3*'Park Allocations'!F31","v":0},{"$f":"$C$3*'Park Allocations'!G31","v":0},{"$f":"$C$3*'Park Allocations'!H31","v":0},{"$f":"$C$3*'Park Allocations'!I31","v":0},{"$f":"$C$3*'Park Allocations'!J31","v":0},{"$f":"$C$3*'Park Allocations'!K31","v":0},{"$f":"$C$3*'Park Allocations'!L31","v":0},{"$f":"$C$3*'Park Allocations'!M31","v":0},{"$f":"$C$3*'Park Allocations'!N31","v":0},{"$f":"$C$3*'Park Allocations'!O31","v":0},{"$f":"$C$3*'Park Allocations'!P31","v":0},{"$f":"$C$3*'Park Allocations'!Q31","v":0},{"$f":"$C$3*'Park Allocations'!R31","v":0}]
["102 - Department of Financial Institutions","102","Department of Financial Institutions",0,{"$f":"$C$3*'Park Allocations'!E32","v":0},{"$f":"$C$3*'Park Allocations'!F32","v":0},{"$f":"$C$3*'Park Allocations'!G32","v":0},{"$f":"$C$3*'Park Allocations'!H32","v":0},{"$f":"$C$3*'Park Allocations'!I32","v":0},{"$f":"$C$3*'Park Allocations'!J32","v":0},{"$f":"$C$3*'Park Allocations'!K32","v":0},{"$f":"$C$3*'Park Allocations'!L32","v":0},{"$f":"$C$3*'Park Allocations'!M32","v":0},{"$f":"$C$3*'Park Allocations'!N32","v":0},{"$f":"$C$3*'Park Allocations'!O32","v":0},{"$f":"$C$3*'Park Allocations'!P32","v":0},{"$f":"$C$3*'Park Allocations'!Q32","v":0},{"$f":"$C$3*'Park Allocations'!R32","v":0}]
["103 - Department of Commerce","103","Department of Commerce",0,{"$f":"$C$3*'Park Allocations'!E33","v":0},{"$f":"$C$3*'Park Allocations'!F33","v":0},{"$f":"$C$3*'Park Allocations'!G33","v":0},{"$f":"$C$3*'Park Allocations'!H33","v":0},{"$f":"$C$3*'Park Allocations'!I33","v":0},{"$f":"$C$3*'Park Allocations'!J33","v":0},{"$f":"$C$3*'Park Allocations'!K33","v":0},{"$f":"$C$3*'Park Allocations'!L33","v":0},{"$f":"$C$3*'Park Allocations'!M33","v":0},{"$f":"$C$3*'Park Allocations'!N33","v":0},{"$f":"$C$3*'Park Allocations'!O33","v":0},{"$f":"$C$3*'Park Allocations'!P33","v":0},{"$f":"$C$3*'Park Allocations'!Q33","v":0},{"$f":"$C$3*'Park Allocations'!R33","v":0}]
["104 - Economic and Revenue Forecast Council","104","Economic and Revenue Forecast Council",0,{"$f":"$C$3*'Park Allocations'!E34","v":0},{"$f":"$C$3*'Park Allocations'!F34","v":0},{"$f":"$C$3*'Park Allocations'!G34","v":0},{"$f":"$C$3*'Park Allocations'!H34","v":0},{"$f":"$C$3*'Park Allocations'!I34","v":0},{"$f":"$C$3*'Park Allocations'!J34","v":0},{"$f":"$C$3*'Park Allocations'!K34","v":0},{"$f":"$C$3*'Park Allocations'!L34","v":0},{"$f":"$C$3*'Park Allocations'!M34","v":0},{"$f":"$C$3*'Park Allocations'!N34","v":0},{"$f":"$C$3*'Park Allocations'!O34","v":0},{"$f":"$C$3*'Park Allocations'!P34","v":0},{"$f":"$C$3*'Park Allocations'!Q34","v":0},{"$f":"$C$3*'Park Allocations'!R34","v":0}]
["105 - Office of Financial Management","105","Office of Financial Management",16749.632442070746,{"$f":"$C$3*'Park Allocations'!E35","v":0},{"$f":"$C$3*'Park Allocations'!F35","v":0},{"$f":"$C$3*'Park Allocations'!G35","v":0},{"$f":"$C$3*'Park Allocations'!H35","v":0},{"$f":"$C$3*'Park Allocations'!I35","v":0},{"$f":"$C$3*'Park Allocations'!J35","v":0},{"$f":"$C$3*'Park Allocations'!K35","v":0},{"$f":"$C$3*'Park Allocations'!L35","v":0},{"$f":"$C$3*'Park Allocations'!M35","v":0},{"$f":"$C$3*'Park Allocations'!N35","v":0},{"$f":"$C$3*'Park Allocations'!O35","v":16749.632442070746},{"$f":"$C$3*'Park Allocations'!P35","v":0},{"$f":"$C$3*'Park Allocations'!Q35","v":0},{"$f":"$C$3*'Park Allocations'!R35","v":0}]
["107 - Washington State Health Care Authority","107","Washington State Health Care Authority",0,{"$f":"$C$3*'Park Allocations'!E36","v":0},{"$f":"$C$3*'Park Allocations'!F36","v":0},{"$f":"$C$3*'Park Allocations'!G36","v":0},{"$f":"$C$3*'Park Allocations'!H36","v":0},{"$f":"$C$3*'Park Allocations'!I36","v":0},{"$f":"$C$3*'Park Allocations'!J36","v":0},{"$f":"$C$3*'Park Allocations'!K36","v":0},{"$f":"$C$3*'Park Allocations'!L36","v":0},{"$f":"$C$3*'Park Allocations'!M36","v":0},{"$f":"$C$3*'Park Allocations'!N36","v":0},{"$f":"$C$3*'Park Allocations'!O36","v":0},{"$f":"$C$3*'Park Allocations'!P36","v":0},{"$f":"$C$3*'Park Allocations'!Q36","v":0},{"$f":"$C$3*'Park Allocations'!R36","v":0}]
["110 - Office of Administrative Hearings","110","Office of Administrative Hearings",0,{"$f":"$C$3*'Park Allocations'!E37","v":0},{"$f":"$C$3*'Park Allocations'!F37","v":0},{"$f":"$C$3*'Park Allocations'!G37","v":0},{"$f":"$C$3*'Park Allocations'!H37","v":0},{"$f":"$C$3*'Park Allocations'!I37","v":0},{"$f":"$C$3*'Park Allocations'!J37","v":0},{"$f":"$C$3*'Park Allocations'!K37","v":0},{"$f":"$C$3*'Park Allocations'!L37","v":0},{"$f":"$C$3*'Park Allocations'!M37","v":0},{"$f":"$C$3*'Park Allocations'!N37","v":0},{"$f":"$C$3*'Park Allocations'!O37","v":0},{"$f":"$C$3*'Park Allocations'!P37","v":0},{"$f":"$C$3*'Park Allocations'!Q37","v":0},{"$f":"$C$3*'Park Allocations'!R37","v":0}]
["116 - State Lottery","116","State Lottery",0,{"$f":"$C$3*'Park Allocations'!E38","v":0},{"$f":"$C$3*'Park Allocations'!F38","v":0},{"$f":"$C$3*'Park Allocations'!G38","v":0},{"$f":"$C$3*'Park Allocations'!H38","v":0},{"$f":"$C$3*'Park Allocations'!I38","v":0},{"$f":"$C$3*'Park Allocations'!J38","v":0},{"$f":"$C$3*'Park Allocations'!K38","v":0},{"$f":"$C$3*'Park Allocations'!L38","v":0},{"$f":"$C$3*'Park Allocations'!M38","v":0},{"$f":"$C$3*'Park Allocations'!N38","v":0},{"$f":"$C$3*'Park Allocations'!O38","v":0},{"$f":"$C$3*'Park Allocations'!P38","v":0},{"$f":"$C$3*'Park Allocations'!Q38","v":0},{"$f":"$C$3*'Park Allocations'!R38","v":0}]
["117 - Washington State Gambling Commission","117","Washington State Gambling Commission",0,{"$f":"$C$3*'Park Allocations'!E39","v":0},{"$f":"$C$3*'Park Allocations'!F39","v":0},{"$f":"$C$3*'Park Allocations'!G39","v":0},{"$f":"$C$3*'Park Allocations'!H39","v":0},{"$f":"$C$3*'Park Allocations'!I39","v":0},{"$f":"$C$3*'Park Allocations'!J39","v":0},{"$f":"$C$3*'Park Allocations'!K39","v":0},{"$f":"$C$3*'Park Allocations'!L39","v":0},{"$f":"$C$3*'Park Allocations'!M39","v":0},{"$f":"$C$3*'Park Allocations'!N39","v":0},{"$f":"$C$3*'Park Allocations'!O39","v":0},{"$f":"$C$3*'Park Allocations'!P39","v":0},{"$f":"$C$3*'Park Allocations'!Q39","v":0},{"$f":"$C$3*'Park Allocations'!R39","v":0}]
["118 - Commission on Hispanic Affairs","118","Commission on Hispanic Affairs",0,{"$f":"$C$3*'Park Allocations'!E40","v":0},{"$f":"$C$3*'Park Allocations'!F40","v":0},{"$f":"$C$3*'Park Allocations'!G40","v":0},{"$f":"$C$3*'Park Allocations'!H40","v":0},{"$f":"$C$3*'Park Allocations'!I40","v":0},{"$f":"$C$3*'Park Allocations'!J40","v":0},{"$f":"$C$3*'Park Allocations'!K40","v":0},{"$f":"$C$3*'Park Allocations'!L40","v":0},{"$f":"$C$3*'Park Allocations'!M40","v":0},{"$f":"$C$3*'Park Allocations'!N40","v":0},{"$f":"$C$3*'Park Allocations'!O40","v":0},{"$f":"$C$3*'Park Allocations'!P40","v":0},{"$f":"$C$3*'Park Allocations'!Q40","v":0},{"$f":"$C$3*'Park Allocations'!R40","v":0}]
["119 - Commission on African-American Affairs","119","Commission on African-American Affairs",0,{"$f":"$C$3*'Park Allocations'!E41","v":0},{"$f":"$C$3*'Park Allocations'!F41","v":0},{"$f":"$C$3*'Park Allocations'!G41","v":0},{"$f":"$C$3*'Park Allocations'!H41","v":0},{"$f":"$C$3*'Park Allocations'!I41","v":0},{"$f":"$C$3*'Park Allocations'!J41","v":0},{"$f":"$C$3*'Park Allocations'!K41","v":0},{"$f":"$C$3*'Park Allocations'!L41","v":0},{"$f":"$C$3*'Park Allocations'!M41","v":0},{"$f":"$C$3*'Park Allocations'!N41","v":0},{"$f":"$C$3*'Park Allocations'!O41","v":0},{"$f":"$C$3*'Park Allocations'!P41","v":0},{"$f":"$C$3*'Park Allocations'!Q41","v":0},{"$f":"$C$3*'Park Allocations'!R41","v":0}]
["120 - Human Rights Commission","120","Human Rights Commission",0,{"$f":"$C$3*'Park Allocations'!E42","v":0},{"$f":"$C$3*'Park Allocations'!F42","v":0},{"$f":"$C$3*'Park Allocations'!G42","v":0},{"$f":"$C$3*'Park Allocations'!H42","v":0},{"$f":"$C$3*'Park Allocations'!I42","v":0},{"$f":"$C$3*'Park Allocations'!J42","v":0},{"$f":"$C$3*'Park Allocations'!K42","v":0},{"$f":"$C$3*'Park Allocations'!L42","v":0},{"$f":"$C$3*'Park Allocations'!M42","v":0},{"$f":"$C$3*'Park Allocations'!N42","v":0},{"$f":"$C$3*'Park Allocations'!O42","v":0},{"$f":"$C$3*'Park Allocations'!P42","v":0},{"$f":"$C$3*'Park Allocations'!Q42","v":0},{"$f":"$C$3*'Park Allocations'!R42","v":0}]
["124 - Department of Retirement Systems","124","Department of Retirement Systems",0,{"$f":"$C$3*'Park Allocations'!E43","v":0},{"$f":"$C$3*'Park Allocations'!F43","v":0},{"$f":"$C$3*'Park Allocations'!G43","v":0},{"$f":"$C$3*'Park Allocations'!H43","v":0},{"$f":"$C$3*'Park Allocations'!I43","v":0},{"$f":"$C$3*'Park Allocations'!J43","v":0},{"$f":"$C$3*'Park Allocations'!K43","v":0},{"$f":"$C$3*'Park Allocations'!L43","v":0},{"$f":"$C$3*'Park Allocations'!M43","v":0},{"$f":"$C$3*'Park Allocations'!N43","v":0},{"$f":"$C$3*'Park Allocations'!O43","v":0},{"$f":"$C$3*'Park Allocations'!P43","v":0},{"$f":"$C$3*'Park Allocations'!Q43","v":0},{"$f":"$C$3*'Park Allocations'!R43","v":0}]
["126 - State Investment Board","126","State Investment Board",0,{"$f":"$C$3*'Park Allocations'!E44","v":0},{"$f":"$C$3*'Park Allocations'!F44","v":0},{"$f":"$C$3*'Park Allocations'!G44","v":0},{"$f":"$C$3*'Park Allocations'!H44","v":0},{"$f":"$C$3*'Park Allocations'!I44","v":0},{"$f":"$C$3*'Park Allocations'!J44","v":0},{"$f":"$C$3*'Park Allocations'!K44","v":0},{"$f":"$C$3*'Park Allocations'!L44","v":0},{"$f":"$C$3*'Park Allocations'!M44","v":0},{"$f":"$C$3*'Park Allocations'!N44","v":0},{"$f":"$C$3*'Park Allocations'!O44","v":0},{"$f":"$C$3*'Park Allocations'!P44","v":0},{"$f":"$C$3*'Park Allocations'!Q44","v":0},{"$f":"$C$3*'Park Allocations'!R44","v":0}]
["140 - Department of Revenue","140","Department of Revenue",0,{"$f":"$C$3*'Park Allocations'!E45","v":0},{"$f":"$C$3*'Park Allocations'!F45","v":0},{"$f":"$C$3*'Park Allocations'!G45","v":0},{"$f":"$C$3*'Park Allocations'!H45","v":0},{"$f":"$C$3*'Park Allocations'!I45","v":0},{"$f":"$C$3*'Park Allocations'!J45","v":0},{"$f":"$C$3*'Park Allocations'!K45","v":0},{"$f":"$C$3*'Park Allocations'!L45","v":0},{"$f":"$C$3*'Park Allocations'!M45","v":0},{"$f":"$C$3*'Park Allocations'!N45","v":0},{"$f":"$C$3*'Park Allocations'!O45","v":0},{"$f":"$C$3*'Park Allocations'!P45","v":0},{"$f":"$C$3*'Park Allocations'!Q45","v":0},{"$f":"$C$3*'Park Allocations'!R45","v":0}]
["142 - Board of Tax Appeals","142","Board of Tax Appeals",0,{"$f":"$C$3*'Park Allocations'!E46","v":0},{"$f":"$C$3*'Park Allocations'!F46","v":0},{"$f":"$C$3*'Park Allocations'!G46","v":0},{"$f":"$C$3*'Park Allocations'!H46","v":0},{"$f":"$C$3*'Park Allocations'!I46","v":0},{"$f":"$C$3*'Park Allocations'!J46","v":0},{"$f":"$C$3*'Park Allocations'!K46","v":0},{"$f":"$C$3*'Park Allocations'!L46","v":0},{"$f":"$C$3*'Park Allocations'!M46","v":0},{"$f":"$C$3*'Park Allocations'!N46","v":0},{"$f":"$C$3*'Park Allocations'!O46","v":0},{"$f":"$C$3*'Park Allocations'!P46","v":0},{"$f":"$C$3*'Park Allocations'!Q46","v":0},{"$f":"$C$3*'Park Allocations'!R46","v":0}]
["147 - Office of Minority and Women's Business Enterprises","147","Office of Minority and Women's Business Enterprises",0,{"$f":"$C$3*'Park Allocations'!E47","v":0},{"$f":"$C$3*'Park Allocations'!F47","v":0},{"$f":"$C$3*'Park Allocations'!G47","v":0},{"$f":"$C$3*'Park Allocations'!H47","v":0},{"$f":"$C$3*'Park Allocations'!I47","v":0},{"$f":"$C$3*'Park Allocations'!J47","v":0},{"$f":"$C$3*'Park Allocations'!K47","v":0},{"$f":"$C$3*'Park Allocations'!L47","v":0},{"$f":"$C$3*'Park Allocations'!M47","v":0},{"$f":"$C$3*'Park Allocations'!N47","v":0},{"$f":"$C$3*'Park Allocations'!O47","v":0},{"$f":"$C$3*'Park Allocations'!P47","v":0},{"$f":"$C$3*'Park Allocations'!Q47","v":0},{"$f":"$C$3*'Park Allocations'!R47","v":0}]
["160 - Office of Insurance Commissioner","160","Office of Insurance Commissioner",2806.7993655173577,{"$f":"$C$3*'Park Allocations'!E48","v":0},{"$f":"$C$3*'Park Allocations'!F48","v":0},{"$f":"$C$3*'Park Allocations'!G48","v":0},{"$f":"$C$3*'Park Allocations'!H48","v":0},{"$f":"$C$3*'Park Allocations'!I48","v":0},{"$f":"$C$3*'Park Allocations'!J48","v":0},{"$f":"$C$3*'Park Allocations'!K48","v":0},{"$f":"$C$3*'Park Allocations'!L48","v":0},{"$f":"$C$3*'Park Allocations'!M48","v":0},{"$f":"$C$3*'Park Allocations'!N48","v":0},{"$f":"$C$3*'Park Allocations'!O48","v":2806.7993655173577},{"$f":"$C$3*'Park Allocations'!P48","v":0},{"$f":"$C$3*'Park Allocations'!Q48","v":0},{"$f":"$C$3*'Park Allocations'!R48","v":0}]
["163 - Consolidated Technology Services","163","Consolidated Technology Services",117.26790881829568,{"$f":"$C$3*'Park Allocations'!E49","v":0},{"$f":"$C$3*'Park Allocations'!F49","v":0},{"$f":"$C$3*'Park Allocations'!G49","v":0},{"$f":"$C$3*'Park Allocations'!H49","v":0},{"$f":"$C$3*'Park Allocations'!I49","v":0},{"$f":"$C$3*'Park Allocations'!J49","v":117.26790881829568},{"$f":"$C$3*'Park Allocations'!K49","v":0},{"$f":"$C$3*'Park Allocations'!L49","v":0},{"$f":"$C$3*'Park Allocations'!M49","v":0},{"$f":"$C$3*'Park Allocations'!N49","v":0},{"$f":"$C$3*'Park Allocations'!O49","v":0},{"$f":"$C$3*'Park Allocations'!P49","v":0},{"$f":"$C$3*'Park Allocations'!Q49","v":0},{"$f":"$C$3*'Park Allocations'!R49","v":0}]
["165 - Board of Accountancy","165","Board of Accountancy",0,{"$f":"$C$3*'Park Allocations'!E50","v":0},{"$f":"$C$3*'Park Allocations'!F50","v":0},{"$f":"$C$3*'Park Allocations'!G50","v":0},{"$f":"$C$3*'Park Allocations'!H50","v":0},{"$f":"$C$3*'Park Allocations'!I50","v":0},{"$f":"$C$3*'Park Allocations'!J50","v":0},{"$f":"$C$3*'Park Allocations'!K50","v":0},{"$f":"$C$3*'Park Allocations'!L50","v":0},{"$f":"$C$3*'Park Allocations'!M50","v":0},{"$f":"$C$3*'Park Allocations'!N50","v":0},{"$f":"$C$3*'Park Allocations'!O50","v":0},{"$f":"$C$3*'Park Allocations'!P50","v":0},{"$f":"$C$3*'Park Allocations'!Q50","v":0},{"$f":"$C$3*'Park Allocations'!R50","v":0}]
["166 - Brd Prof Eng Land Surveyors","166","Brd Prof Eng Land Surveyors",0,{"$f":"$C$3*'Park Allocations'!E51","v":0},{"$f":"$C$3*'Park Allocations'!F51","v":0},{"$f":"$C$3*'Park Allocations'!G51","v":0},{"$f":"$C$3*'Park Allocations'!H51","v":0},{"$f":"$C$3*'Park Allocations'!I51","v":0},{"$f":"$C$3*'Park Allocations'!J51","v":0},{"$f":"$C$3*'Park Allocations'!K51","v":0},{"$f":"$C$3*'Park Allocations'!L51","v":0},{"$f":"$C$3*'Park Allocations'!M51","v":0},{"$f":"$C$3*'Park Allocations'!N51","v":0},{"$f":"$C$3*'Park Allocations'!O51","v":0},{"$f":"$C$3*'Park Allocations'!P51","v":0},{"$f":"$C$3*'Park Allocations'!Q51","v":0},{"$f":"$C$3*'Park Allocations'!R51","v":0}]
["167 - Forensic Investigations Council","167","Forensic Investigations Council",0,{"$f":"$C$3*'Park Allocations'!E52","v":0},{"$f":"$C$3*'Park Allocations'!F52","v":0},{"$f":"$C$3*'Park Allocations'!G52","v":0},{"$f":"$C$3*'Park Allocations'!H52","v":0},{"$f":"$C$3*'Park Allocations'!I52","v":0},{"$f":"$C$3*'Park Allocations'!J52","v":0},{"$f":"$C$3*'Park Allocations'!K52","v":0},{"$f":"$C$3*'Park Allocations'!L52","v":0},{"$f":"$C$3*'Park Allocations'!M52","v":0},{"$f":"$C$3*'Park Allocations'!N52","v":0},{"$f":"$C$3*'Park Allocations'!O52","v":0},{"$f":"$C$3*'Park Allocations'!P52","v":0},{"$f":"$C$3*'Park Allocations'!Q52","v":0},{"$f":"$C$3*'Park Allocations'!R52","v":0}]
["179 - Department of Enterprise Services","179","Department of Enterprise Services",10924.790834192114,{"$f":"$C$3*'Park Allocations'!E53","v":0},{"$f":"$C$3*'Park Allocations'!F53","v":0},{"$f":"$C$3*'Park Allocations'!G53","v":2777.8839907402439},{"$f":"$C$3*'Park Allocations'!H53","v":0},{"$f":"$C$3*'Park Allocations'!I53","v":0},{"$f":"$C$3*'Park Allocations'!J53","v":8146.9068434518704},{"$f":"$C$3*'Park Allocations'!K53","v":0},{"$f":"$C$3*'Park Allocations'!L53","v":0},{"$f":"$C$3*'Park Allocations'!M53","v":0},{"$f":"$C$3*'Park Allocations'!N53","v":0},{"$f":"$C$3*'Park Allocations'!O53","v":0},{"$f":"$C$3*'Park Allocations'!P53","v":0},{"$f":"$C$3*'Park Allocations'!Q53","v":0},{"$f":"$C$3*'Park Allocations'!R53","v":0}]
["185 - Horse Racing Commission","185","Horse Racing Commission",0,{"$f":"$C$3*'Park Allocations'!E54","v":0},{"$f":"$C$3*'Park Allocations'!F54","v":0},{"$f":"$C$3*'Park Allocations'!G54","v":0},{"$f":"$C$3*'Park Allocations'!H54","v":0},{"$f":"$C$3*'Park Allocations'!I54","v":0},{"$f":"$C$3*'Park Allocations'!J54","v":0},{"$f":"$C$3*'Park Allocations'!K54","v":0},{"$f":"$C$3*'Park Allocations'!L54","v":0},{"$f":"$C$3*'Park Allocations'!M54","v":0},{"$f":"$C$3*'Park Allocations'!N54","v":0},{"$f":"$C$3*'Park Allocations'!O54","v":0},{"$f":"$C$3*'Park Allocations'!P54","v":0},{"$f":"$C$3*'Park Allocations'!Q54","v":0},{"$f":"$C$3*'Park Allocations'!R54","v":0}]
["190 - Board of Industrial Insurance Appeals","190","Board of Industrial Insurance Appeals",0,{"$f":"$C$3*'Park Allocations'!E55","v":0},{"$f":"$C$3*'Park Allocations'!F55","v":0},{"$f":"$C$3*'Park Allocations'!G55","v":0},{"$f":"$C$3*'Park Allocations'!H55","v":0},{"$f":"$C$3*'Park Allocations'!I55","v":0},{"$f":"$C$3*'Park Allocations'!J55","v":0},{"$f":"$C$3*'Park Allocations'!K55","v":0},{"$f":"$C$3*'Park Allocations'!L55","v":0},{"$f":"$C$3*'Park Allocations'!M55","v":0},{"$f":"$C$3*'Park Allocations'!N55","v":0},{"$f":"$C$3*'Park Allocations'!O55","v":0},{"$f":"$C$3*'Park Allocations'!P55","v":0},{"$f":"$C$3*'Park Allocations'!Q55","v":0},{"$f":"$C$3*'Park Allocations'!R55","v":0}]
["195 - Liquor Control Board","195","Liquor Control Board",0,{"$f":"$C$3*'Park Allocations'!E56","v":0},{"$f":"$C$3*'Park Allocations'!F56","v":0},{"$f":"$C$3*'Park Allocations'!G56","v":0},{"$f":"$C$3*'Park Allocations'!H56","v":0},{"$f":"$C$3*'Park Allocations'!I56","v":0},{"$f":"$C$3*'Park Allocations'!J56","v":0},{"$f":"$C$3*'Park Allocations'!K56","v":0},{"$f":"$C$3*'Park Allocations'!L56","v":0},{"$f":"$C$3*'Park Allocations'!M56","v":0},{"$f":"$C$3*'Park Allocations'!N56","v":0},{"$f":"$C$3*'Park Allocations'!O56","v":0},{"$f":"$C$3*'Park Allocations'!P56","v":0},{"$f":"$C$3*'Park Allocations'!Q56","v":0},{"$f":"$C$3*'Park Allocations'!R56","v":0}]
["205 - Board of Pilotage Commissioners","205","Board of Pilotage Commissioners",0,{"$f":"$C$3*'Park Allocations'!E57","v":0},{"$f":"$C$3*'Park Allocations'!F57","v":0},{"$f":"$C$3*'Park Allocations'!G57","v":0},{"$f":"$C$3*'Park Allocations'!H57","v":0},{"$f":"$C$3*'Park Allocations'!I57","v":0},{"$f":"$C$3*'Park Allocations'!J57","v":0},{"$f":"$C$3*'Park Allocations'!K57","v":0},{"$f":"$C$3*'Park Allocations'!L57","v":0},{"$f":"$C$3*'Park Allocations'!M57","v":0},{"$f":"$C$3*'Park Allocations'!N57","v":0},{"$f":"$C$3*'Park Allocations'!O57","v":0},{"$f":"$C$3*'Park Allocations'!P57","v":0},{"$f":"$C$3*'Park Allocations'!Q57","v":0},{"$f":"$C$3*'Park Allocations'!R57","v":0}]
["215 - Utilities and Transportation Commission","215","Utilities and Transportation Commission",0,{"$f":"$C$3*'Park Allocations'!E58","v":0},{"$f":"$C$3*'Park Allocations'!F58","v":0},{"$f":"$C$3*'Park Allocations'!G58","v":0},{"$f":"$C$3*'Park Allocations'!H58","v":0},{"$f":"$C$3*'Park Allocations'!I58","v":0},{"$f":"$C$3*'Park Allocations'!J58","v":0},{"$f":"$C$3*'Park Allocations'!K58","v":0},{"$f":"$C$3*'Park Allocations'!L58","v":0},{"$f":"$C$3*'Park Allocations'!M58","v":0},{"$f":"$C$3*'Park Allocations'!N58","v":0},{"$f":"$C$3*'Park Allocations'!O58","v":0},{"$f":"$C$3*'Park Allocations'!P58","v":0},{"$f":"$C$3*'Park Allocations'!Q58","v":0},{"$f":"$C$3*'Park Allocations'!R58","v":0}]
["220 - Board for Volunteer Firefighters and Reserve Officers","220","Board for Volunteer Firefighters and Reserve Officers",0,{"$f":"$C$3*'Park Allocations'!E59","v":0},{"$f":"$C$3*'Park Allocations'!F59","v":0},{"$f":"$C$3*'Park Allocations'!G59","v":0},{"$f":"$C$3*'Park Allocations'!H59","v":0},{"$f":"$C$3*'Park Allocations'!I59","v":0},{"$f":"$C$3*'Park Allocations'!J59","v":0},{"$f":"$C$3*'Park Allocations'!K59","v":0},{"$f":"$C$3*'Park Allocations'!L59","v":0},{"$f":"$C$3*'Park Allocations'!M59","v":0},{"$f":"$C$3*'Park Allocations'!N59","v":0},{"$f":"$C$3*'Park Allocations'!O59","v":0},{"$f":"$C$3*'Park Allocations'!P59","v":0},{"$f":"$C$3*'Park Allocations'!Q59","v":0},{"$f":"$C$3*'Park Allocations'!R59","v":0}]
["225 - Washington State Patrol","225","Washington State Patrol",208.83326227915671,{"$f":"$C$3*'Park Allocations'!E60","v":0},{"$f":"$C$3*'Park Allocations'!F60","v":0},{"$f":"$C$3*'Park Allocations'!G60","v":208.83326227915671},{"$f":"$C$3*'Park Allocations'!H60","v":0},{"$f":"$C$3*'Park Allocations'!I60","v":0},{"$f":"$C$3*'Park Allocations'!J60","v":0},{"$f":"$C$3*'Park Allocations'!K60","v":0},{"$f":"$C$3*'Park Allocations'!L60","v":0},{"$f":"$C$3*'Park Allocations'!M60","v":0},{"$f":"$C$3*'Park Allocations'!N60","v":0},{"$f":"$C$3*'Park Allocations'!O60","v":0},{"$f":"$C$3*'Park Allocations'!P60","v":0},{"$f":"$C$3*'Park Allocations'!Q60","v":0},{"$f":"$C$3*'Park Allocations'!R60","v":0}]
["227 - Criminal Justice Training Commission","227","Criminal Justice Training Commission",0,{"$f":"$C$3*'Park Allocations'!E61","v":0},{"$f":"$C$3*'Park Allocations'!F61","v":0},{"$f":"$C$3*'Park Allocations'!G61","v":0},{"$f":"$C$3*'Park Allocations'!H61","v":0},{"$f":"$C$3*'Park Allocations'!I61","v":0},{"$f":"$C$3*'Park Allocations'!J61","v":0},{"$f":"$C$3*'Park Allocations'!K61","v":0},{"$f":"$C$3*'Park Allocations'!L61","v":0},{"$f":"$C$3*'Park Allocations'!M61","v":0},{"$f":"$C$3*'Park Allocations'!N61","v":0},{"$f":"$C$3*'Park Allocations'!O61","v":0},{"$f":"$C$3*'Park Allocations'!P61","v":0},{"$f":"$C$3*'Park Allocations'!Q61","v":0},{"$f":"$C$3*'Park Allocations'!R61","v":0}]
["228 - Traffic Safety Commission","228","Traffic Safety Commission",0,{"$f":"$C$3*'Park Allocations'!E62","v":0},{"$f":"$C$3*'Park Allocations'!F62","v":0},{"$f":"$C$3*'Park Allocations'!G62","v":0},{"$f":"$C$3*'Park Allocations'!H62","v":0},{"$f":"$C$3*'Park Allocations'!I62","v":0},{"$f":"$C$3*'Park Allocations'!J62","v":0},{"$f":"$C$3*'Park Allocations'!K62","v":0},{"$f":"$C$3*'Park Allocations'!L62","v":0},{"$f":"$C$3*'Park Allocations'!M62","v":0},{"$f":"$C$3*'Park Allocations'!N62","v":0},{"$f":"$C$3*'Park Allocations'!O62","v":0},{"$f":"$C$3*'Park Allocations'!P62","v":0},{"$f":"$C$3*'Park Allocations'!Q62","v":0},{"$f":"$C$3*'Park Allocations'!R62","v":0}]
["235 - Department of Labor and Industries","235","Department of Labor and Industries",0,{"$f":"$C$3*'Park Allocations'!E63","v":0},{"$f":"$C$3*'Park Allocations'!F63","v":0},{"$f":"$C$3*'Park Allocations'!G63","v":0},{"$f":"$C$3*'Park Allocations'!H63","v":0},{"$f":"$C$3*'Park Allocations'!I63","v":0},{"$f":"$C$3*'Park Allocations'!J63","v":0},{"$f":"$C$3*'Park Allocations'!K63","v":0},{"$f":"$C$3*'Park Allocations'!L63","v":0},{"$f":"$C$3*'Park Allocations'!M63","v":0},{"$f":"$C$3*'Park Allocations'!N63","v":0},{"$f":"$C$3*'Park Allocations'!O63","v":0},{"$f":"$C$3*'Park Allocations'!P63","v":0},{"$f":"$C$3*'Park Allocations'!Q63","v":0},{"$f":"$C$3*'Park Allocations'!R63","v":0}]
["240 - Department of Licensing","240","Department of Licensing",41831.310446652387,{"$f":"$C$3*'Park Allocations'!E64","v":0},{"$f":"$C$3*'Park Allocations'!F64","v":0},{"$f":"$C$3*'Park Allocations'!G64","v":0},{"$f":"$C$3*'Park Allocations'!H64","v":0},{"$f":"$C$3*'Park Allocations'!I64","v":41831.310446652387},{"$f":"$C$3*'Park Allocations'!J64","v":0},{"$f":"$C$3*'Park Allocations'!K64","v":0},{"$f":"$C$3*'Park Allocations'!L64","v":0},{"$f":"$C$3*'Park Allocations'!M64","v":0},{"$f":"$C$3*'Park Allocations'!N64","v":0},{"$f":"$C$3*'Park Allocations'!O64","v":0},{"$f":"$C$3*'Park Allocations'!P64","v":0},{"$f":"$C$3*'Park Allocations'!Q64","v":0},{"$f":"$C$3*'Park Allocations'!R64","v":0}]
["245 - Military Department","245","Military Department",0,{"$f":"$C$3*'Park Allocations'!E65","v":0},{"$f":"$C$3*'Park Allocations'!F65","v":0},{"$f":"$C$3*'Park Allocations'!G65","v":0},{"$f":"$C$3*'Park Allocations'!H65","v":0},{"$f":"$C$3*'Park Allocations'!I65","v":0},{"$f":"$C$3*'Park Allocations'!J65","v":0},{"$f":"$C$3*'Park Allocations'!K65","v":0},{"$f":"$C$3*'Park Allocations'!L65","v":0},{"$f":"$C$3*'Park Allocations'!M65","v":0},{"$f":"$C$3*'Park Allocations'!N65","v":0},{"$f":"$C$3*'Park Allocations'!O65","v":0},{"$f":"$C$3*'Park Allocations'!P65","v":0},{"$f":"$C$3*'Park Allocations'!Q65","v":0},{"$f":"$C$3*'Park Allocations'!R65","v":0}]
["275 - Public Employment Relations Commission","275","Public Employment Relations Commission",0,{"$f":"$C$3*'Park Allocations'!E66","v":0},{"$f":"$C$3*'Park Allocations'!F66","v":0},{"$f":"$C$3*'Park Allocations'!G66","v":0},{"$f":"$C$3*'Park Allocations'!H66","v":0},{"$f":"$C$3*'Park Allocations'!I66","v":0},{"$f":"$C$3*'Park Allocations'!J66","v":0},{"$f":"$C$3*'Park Allocations'!K66","v":0},{"$f":"$C$3*'Park Allocations'!L66","v":0},{"$f":"$C$3*'Park Allocations'!M66","v":0},{"$f":"$C$3*'Park Allocations'!N66","v":0},{"$f":"$C$3*'Park Allocations'!O66","v":0},{"$f":"$C$3*'Park Allocations'!P66","v":0},{"$f":"$C$3*'Park Allocations'!Q66","v":0},{"$f":"$C$3*'Park Allocations'!R66","v":0}]
["300 - Department of Social and Health Services","300","Department of Social and Health Services",64774.857127437419,{"$f":"$C$3*'Park Allocations'!E67","v":0},{"$f":"$C$3*'Park Allocations'!F67","v":0},{"$f":"$C$3*'Park Allocations'!G67","v":0},{"$f":"$C$3*'Park Allocations'!H67","v":0},{"$f":"$C$3*'Park Allocations'!I67","v":0},{"$f":"$C$3*'Park Allocations'!J67","v":64774.857127437419},{"$f":"$C$3*'Park Allocations'!K67","v":0},{"$f":"$C$3*'Park Allocations'!L67","v":0},{"$f":"$C$3*'Park Allocations'!M67","v":0},{"$f":"$C$3*'Park Allocations'!N67","v":0},{"$f":"$C$3*'Park Allocations'!O67","v":0},{"$f":"$C$3*'Park Allocations'!P67","v":0},{"$f":"$C$3*'Park Allocations'!Q67","v":0},{"$f":"$C$3*'Park Allocations'!R67","v":0}]
["303 - Department of Health","303","Department of Health",0,{"$f":"$C$3*'Park Allocations'!E68","v":0},{"$f":"$C$3*'Park Allocations'!F68","v":0},{"$f":"$C$3*'Park Allocations'!G68","v":0},{"$f":"$C$3*'Park Allocations'!H68","v":0},{"$f":"$C$3*'Park Allocations'!I68","v":0},{"$f":"$C$3*'Park Allocations'!J68","v":0},{"$f":"$C$3*'Park Allocations'!K68","v":0},{"$f":"$C$3*'Park Allocations'!L68","v":0},{"$f":"$C$3*'Park Allocations'!M68","v":0},{"$f":"$C$3*'Park Allocations'!N68","v":0},{"$f":"$C$3*'Park Allocations'!O68","v":0},{"$f":"$C$3*'Park Allocations'!P68","v":0},{"$f":"$C$3*'Park Allocations'!Q68","v":0},{"$f":"$C$3*'Park Allocations'!R68","v":0}]
["305 - Department of Veterans Affairs","305","Department of Veterans Affairs",0,{"$f":"$C$3*'Park Allocations'!E69","v":0},{"$f":"$C$3*'Park Allocations'!F69","v":0},{"$f":"$C$3*'Park Allocations'!G69","v":0},{"$f":"$C$3*'Park Allocations'!H69","v":0},{"$f":"$C$3*'Park Allocations'!I69","v":0},{"$f":"$C$3*'Park Allocations'!J69","v":0},{"$f":"$C$3*'Park Allocations'!K69","v":0},{"$f":"$C$3*'Park Allocations'!L69","v":0},{"$f":"$C$3*'Park Allocations'!M69","v":0},{"$f":"$C$3*'Park Allocations'!N69","v":0},{"$f":"$C$3*'Park Allocations'!O69","v":0},{"$f":"$C$3*'Park Allocations'!P69","v":0},{"$f":"$C$3*'Park Allocations'!Q69","v":0},{"$f":"$C$3*'Park Allocations'!R69","v":0}]
[{"$f":"CONCATENATE(B70,\" - \",C70)","v":"307 - DCYF"},"307","DCYF",{"$f":"SUM(E70:AL70)","v":26522.62751430782},{"$f":"$C$3*'Park Allocations'!E70","v":0},{"$f":"$C$3*'Park Allocations'!F70","v":0},{"$f":"$C$3*'Park Allocations'!G70","v":0},{"$f":"$C$3*'Park Allocations'!H70","v":0},{"$f":"$C$3*'Park Allocations'!I70","v":0},{"$f":"$C$3*'Park Allocations'!J70","v":26522.62751430782},{"$f":"$C$3*'Park Allocations'!K70","v":0},{"$f":"$C$3*'Park Allocations'!L70","v":0},{"$f":"$C$3*'Park Allocations'!M70","v":0},{"$f":"$C$3*'Park Allocations'!N70","v":0},{"$f":"$C$3*'Park Allocations'!O70","v":0},{"$f":"$C$3*'Park Allocations'!P70","v":0},{"$f":"$C$3*'Park Allocations'!Q70","v":0},{"$f":"$C$3*'Park Allocations'!R70","v":0}]
["310 - Department of Corrections","310","Department of Corrections",0,{"$f":"$C$3*'Park Allocations'!E71","v":0},{"$f":"$C$3*'Park Allocations'!F71","v":0},{"$f":"$C$3*'Park Allocations'!G71","v":0},{"$f":"$C$3*'Park Allocations'!H71","v":0},{"$f":"$C$3*'Park Allocations'!I71","v":0},{"$f":"$C$3*'Park Allocations'!J71","v":0},{"$f":"$C$3*'Park Allocations'!K71","v":0},{"$f":"$C$3*'Park Allocations'!L71","v":0},{"$f":"$C$3*'Park Allocations'!M71","v":0},{"$f":"$C$3*'Park Allocations'!N71","v":0},{"$f":"$C$3*'Park Allocations'!O71","v":0},{"$f":"$C$3*'Park Allocations'!P71","v":0},{"$f":"$C$3*'Park Allocations'!Q71","v":0},{"$f":"$C$3*'Park Allocations'!R71","v":0}]
["315 - Department of Services for the Blind","315","Department of Services for the Blind",3402.7773678678741,{"$f":"$C$3*'Park Allocations'!E72","v":0},{"$f":"$C$3*'Park Allocations'!F72","v":0},{"$f":"$C$3*'Park Allocations'!G72","v":237.34703462881075},{"$f":"$C$3*'Park Allocations'!H72","v":0},{"$f":"$C$3*'Park Allocations'!I72","v":348.59090703520775},{"$f":"$C$3*'Park Allocations'!J72","v":1032.118238571986},{"$f":"$C$3*'Park Allocations'!K72","v":0},{"$f":"$C$3*'Park Allocations'!L72","v":1208.8233066543492},{"$f":"$C$3*'Park Allocations'!M72","v":0},{"$f":"$C$3*'Park Allocations'!N72","v":575.89788097752057},{"$f":"$C$3*'Park Allocations'!O72","v":0},{"$f":"$C$3*'Park Allocations'!P72","v":0},{"$f":"$C$3*'Park Allocations'!Q72","v":0},{"$f":"$C$3*'Park Allocations'!R72","v":0}]
["340 - Student Achievement Council","340","Student Achievement Council",0,{"$f":"$C$3*'Park Allocations'!E73","v":0},{"$f":"$C$3*'Park Allocations'!F73","v":0},{"$f":"$C$3*'Park Allocations'!G73","v":0},{"$f":"$C$3*'Park Allocations'!H73","v":0},{"$f":"$C$3*'Park Allocations'!I73","v":0},{"$f":"$C$3*'Park Allocations'!J73","v":0},{"$f":"$C$3*'Park Allocations'!K73","v":0},{"$f":"$C$3*'Park Allocations'!L73","v":0},{"$f":"$C$3*'Park Allocations'!M73","v":0},{"$f":"$C$3*'Park Allocations'!N73","v":0},{"$f":"$C$3*'Park Allocations'!O73","v":0},{"$f":"$C$3*'Park Allocations'!P73","v":0},{"$f":"$C$3*'Park Allocations'!Q73","v":0},{"$f":"$C$3*'Park Allocations'!R73","v":0}]
["341 - Law Enforcement Officers' & Fire Fighters' Plan 2 Retirement Board","341","Law Enforcement Officers' & Fire Fighters' Plan 2 Retirement Board",0,{"$f":"$C$3*'Park Allocations'!E74","v":0},{"$f":"$C$3*'Park Allocations'!F74","v":0},{"$f":"$C$3*'Park Allocations'!G74","v":0},{"$f":"$C$3*'Park Allocations'!H74","v":0},{"$f":"$C$3*'Park Allocations'!I74","v":0},{"$f":"$C$3*'Park Allocations'!J74","v":0},{"$f":"$C$3*'Park Allocations'!K74","v":0},{"$f":"$C$3*'Park Allocations'!L74","v":0},{"$f":"$C$3*'Park Allocations'!M74","v":0},{"$f":"$C$3*'Park Allocations'!N74","v":0},{"$f":"$C$3*'Park Allocations'!O74","v":0},{"$f":"$C$3*'Park Allocations'!P74","v":0},{"$f":"$C$3*'Park Allocations'!Q74","v":0},{"$f":"$C$3*'Park Allocations'!R74","v":0}]
["350 - Superintendent of Public Instruction","350","Superintendent of Public Instruction",39276.717405579853,{"$f":"$C$3*'Park Allocations'!E75","v":0},{"$f":"$C$3*'Park Allocations'!F75","v":0},{"$f":"$C$3*'Park Allocations'!G75","v":0},{"$f":"$C$3*'Park Allocations'!H75","v":0},{"$f":"$C$3*'Park Allocations'!I75","v":0},{"$f":"$C$3*'Park Allocations'!J75","v":0},{"$f":"$C$3*'Park Allocations'!K75","v":0},{"$f":"$C$3*'Park Allocations'!L75","v":0},{"$f":"$C$3*'Park Allocations'!M75","v":0},{"$f":"$C$3*'Park Allocations'!N75","v":0},{"$f":"$C$3*'Park Allocations'!O75","v":0},{"$f":"$C$3*'Park Allocations'!P75","v":39276.717405579853},{"$f":"$C$3*'Park Allocations'!Q75","v":0},{"$f":"$C$3*'Park Allocations'!R75","v":0}]
["351 - State School For The Blind","351","State School For The Blind",0,{"$f":"$C$3*'Park Allocations'!E76","v":0},{"$f":"$C$3*'Park Allocations'!F76","v":0},{"$f":"$C$3*'Park Allocations'!G76","v":0},{"$f":"$C$3*'Park Allocations'!H76","v":0},{"$f":"$C$3*'Park Allocations'!I76","v":0},{"$f":"$C$3*'Park Allocations'!J76","v":0},{"$f":"$C$3*'Park Allocations'!K76","v":0},{"$f":"$C$3*'Park Allocations'!L76","v":0},{"$f":"$C$3*'Park Allocations'!M76","v":0},{"$f":"$C$3*'Park Allocations'!N76","v":0},{"$f":"$C$3*'Park Allocations'!O76","v":0},{"$f":"$C$3*'Park Allocations'!P76","v":0},{"$f":"$C$3*'Park Allocations'!Q76","v":0},{"$f":"$C$3*'Park Allocations'!R76","v":0}]
["353 - State Center for Childhood Deafness and Hearing Loss","353","State Center for Childhood Deafness and Hearing Loss",0,{"$f":"$C$3*'Park Allocations'!E77","v":0},{"$f":"$C$3*'Park Allocations'!F77","v":0},{"$f":"$C$3*'Park Allocations'!G77","v":0},{"$f":"$C$3*'Park Allocations'!H77","v":0},{"$f":"$C$3*'Park Allocations'!I77","v":0},{"$f":"$C$3*'Park Allocations'!J77","v":0},{"$f":"$C$3*'Park Allocations'!K77","v":0},{"$f":"$C$3*'Park Allocations'!L77","v":0},{"$f":"$C$3*'Park Allocations'!M77","v":0},{"$f":"$C$3*'Park Allocations'!N77","v":0},{"$f":"$C$3*'Park Allocations'!O77","v":0},{"$f":"$C$3*'Park Allocations'!P77","v":0},{"$f":"$C$3*'Park Allocations'!Q77","v":0},{"$f":"$C$3*'Park Allocations'!R77","v":0}]
["354 - Workforce Training and Education Coordinating Board","354","Workforce Training and Education Coordinating Board",0,{"$f":"$C$3*'Park Allocations'!E78","v":0},{"$f":"$C$3*'Park Allocations'!F78","v":0},{"$f":"$C$3*'Park Allocations'!G78","v":0},{"$f":"$C$3*'Park Allocations'!H78","v":0},{"$f":"$C$3*'Park Allocations'!I78","v":0},{"$f":"$C$3*'Park Allocations'!J78","v":0},{"$f":"$C$3*'Park Allocations'!K78","v":0},{"$f":"$C$3*'Park Allocations'!L78","v":0},{"$f":"$C$3*'Park Allocations'!M78","v":0},{"$f":"$C$3*'Park Allocations'!N78","v":0},{"$f":"$C$3*'Park Allocations'!O78","v":0},{"$f":"$C$3*'Park Allocations'!P78","v":0},{"$f":"$C$3*'Park Allocations'!Q78","v":0},{"$f":"$C$3*'Park Allocations'!R78","v":0}]
["355 - Department of Archaeology and Historic Preservation","355","Department of Archaeology and Historic Preservation",0,{"$f":"$C$3*'Park Allocations'!E79","v":0},{"$f":"$C$3*'Park Allocations'!F79","v":0},{"$f":"$C$3*'Park Allocations'!G79","v":0},{"$f":"$C$3*'Park Allocations'!H79","v":0},{"$f":"$C$3*'Park Allocations'!I79","v":0},{"$f":"$C$3*'Park Allocations'!J79","v":0},{"$f":"$C$3*'Park Allocations'!K79","v":0},{"$f":"$C$3*'Park Allocations'!L79","v":0},{"$f":"$C$3*'Park Allocations'!M79","v":0},{"$f":"$C$3*'Park Allocations'!N79","v":0},{"$f":"$C$3*'Park Allocations'!O79","v":0},{"$f":"$C$3*'Park Allocations'!P79","v":0},{"$f":"$C$3*'Park Allocations'!Q79","v":0},{"$f":"$C$3*'Park Allocations'!R79","v":0}]
["357 - Department of Early Learning","357","Department of Early Learning",0,{"$f":"$C$3*'Park Allocations'!E80","v":0},{"$f":"$C$3*'Park Allocations'!F80","v":0},{"$f":"$C$3*'Park Allocations'!G80","v":0},{"$f":"$C$3*'Park Allocations'!H80","v":0},{"$f":"$C$3*'Park Allocations'!I80","v":0},{"$f":"$C$3*'Park Allocations'!J80","v":0},{"$f":"$C$3*'Park Allocations'!K80","v":0},{"$f":"$C$3*'Park Allocations'!L80","v":0},{"$f":"$C$3*'Park Allocations'!M80","v":0},{"$f":"$C$3*'Park Allocations'!N80","v":0},{"$f":"$C$3*'Park Allocations'!O80","v":0},{"$f":"$C$3*'Park Allocations'!P80","v":0},{"$f":"$C$3*'Park Allocations'!Q80","v":0},{"$f":"$C$3*'Park Allocations'!R80","v":0}]
["359 - WA Charter School Commission","359","WA Charter School Commission",0,{"$f":"$C$3*'Park Allocations'!E81","v":0},{"$f":"$C$3*'Park Allocations'!F81","v":0},{"$f":"$C$3*'Park Allocations'!G81","v":0},{"$f":"$C$3*'Park Allocations'!H81","v":0},{"$f":"$C$3*'Park Allocations'!I81","v":0},{"$f":"$C$3*'Park Allocations'!J81","v":0},{"$f":"$C$3*'Park Allocations'!K81","v":0},{"$f":"$C$3*'Park Allocations'!L81","v":0},{"$f":"$C$3*'Park Allocations'!M81","v":0},{"$f":"$C$3*'Park Allocations'!N81","v":0},{"$f":"$C$3*'Park Allocations'!O81","v":0},{"$f":"$C$3*'Park Allocations'!P81","v":0},{"$f":"$C$3*'Park Allocations'!Q81","v":0},{"$f":"$C$3*'Park Allocations'!R81","v":0}]
["360 - University of Washington","360","University of Washington",0,{"$f":"$C$3*'Park Allocations'!E82","v":0},{"$f":"$C$3*'Park Allocations'!F82","v":0},{"$f":"$C$3*'Park Allocations'!G82","v":0},{"$f":"$C$3*'Park Allocations'!H82","v":0},{"$f":"$C$3*'Park Allocations'!I82","v":0},{"$f":"$C$3*'Park Allocations'!J82","v":0},{"$f":"$C$3*'Park Allocations'!K82","v":0},{"$f":"$C$3*'Park Allocations'!L82","v":0},{"$f":"$C$3*'Park Allocations'!M82","v":0},{"$f":"$C$3*'Park Allocations'!N82","v":0},{"$f":"$C$3*'Park Allocations'!O82","v":0},{"$f":"$C$3*'Park Allocations'!P82","v":0},{"$f":"$C$3*'Park Allocations'!Q82","v":0},{"$f":"$C$3*'Park Allocations'!R82","v":0}]
["365 - Washington State University","365","Washington State University",0,{"$f":"$C$3*'Park Allocations'!E83","v":0},{"$f":"$C$3*'Park Allocations'!F83","v":0},{"$f":"$C$3*'Park Allocations'!G83","v":0},{"$f":"$C$3*'Park Allocations'!H83","v":0},{"$f":"$C$3*'Park Allocations'!I83","v":0},{"$f":"$C$3*'Park Allocations'!J83","v":0},{"$f":"$C$3*'Park Allocations'!K83","v":0},{"$f":"$C$3*'Park Allocations'!L83","v":0},{"$f":"$C$3*'Park Allocations'!M83","v":0},{"$f":"$C$3*'Park Allocations'!N83","v":0},{"$f":"$C$3*'Park Allocations'!O83","v":0},{"$f":"$C$3*'Park Allocations'!P83","v":0},{"$f":"$C$3*'Park Allocations'!Q83","v":0},{"$f":"$C$3*'Park Allocations'!R83","v":0}]
["370 - Eastern Washington University","370","Eastern Washington University",0,{"$f":"$C$3*'Park Allocations'!E84","v":0},{"$f":"$C$3*'Park Allocations'!F84","v":0},{"$f":"$C$3*'Park Allocations'!G84","v":0},{"$f":"$C$3*'Park Allocations'!H84","v":0},{"$f":"$C$3*'Park Allocations'!I84","v":0},{"$f":"$C$3*'Park Allocations'!J84","v":0},{"$f":"$C$3*'Park Allocations'!K84","v":0},{"$f":"$C$3*'Park Allocations'!L84","v":0},{"$f":"$C$3*'Park Allocations'!M84","v":0},{"$f":"$C$3*'Park Allocations'!N84","v":0},{"$f":"$C$3*'Park Allocations'!O84","v":0},{"$f":"$C$3*'Park Allocations'!P84","v":0},{"$f":"$C$3*'Park Allocations'!Q84","v":0},{"$f":"$C$3*'Park Allocations'!R84","v":0}]
["375 - Central Washington University","375","Central Washington University",0,{"$f":"$C$3*'Park Allocations'!E85","v":0},{"$f":"$C$3*'Park Allocations'!F85","v":0},{"$f":"$C$3*'Park Allocations'!G85","v":0},{"$f":"$C$3*'Park Allocations'!H85","v":0},{"$f":"$C$3*'Park Allocations'!I85","v":0},{"$f":"$C$3*'Park Allocations'!J85","v":0},{"$f":"$C$3*'Park Allocations'!K85","v":0},{"$f":"$C$3*'Park Allocations'!L85","v":0},{"$f":"$C$3*'Park Allocations'!M85","v":0},{"$f":"$C$3*'Park Allocations'!N85","v":0},{"$f":"$C$3*'Park Allocations'!O85","v":0},{"$f":"$C$3*'Park Allocations'!P85","v":0},{"$f":"$C$3*'Park Allocations'!Q85","v":0},{"$f":"$C$3*'Park Allocations'!R85","v":0}]
["376 - The Evergreen State College","376","The Evergreen State College",0,{"$f":"$C$3*'Park Allocations'!E86","v":0},{"$f":"$C$3*'Park Allocations'!F86","v":0},{"$f":"$C$3*'Park Allocations'!G86","v":0},{"$f":"$C$3*'Park Allocations'!H86","v":0},{"$f":"$C$3*'Park Allocations'!I86","v":0},{"$f":"$C$3*'Park Allocations'!J86","v":0},{"$f":"$C$3*'Park Allocations'!K86","v":0},{"$f":"$C$3*'Park Allocations'!L86","v":0},{"$f":"$C$3*'Park Allocations'!M86","v":0},{"$f":"$C$3*'Park Allocations'!N86","v":0},{"$f":"$C$3*'Park Allocations'!O86","v":0},{"$f":"$C$3*'Park Allocations'!P86","v":0},{"$f":"$C$3*'Park Allocations'!Q86","v":0},{"$f":"$C$3*'Park Allocations'!R86","v":0}]
["380 - Western Washington University","380","Western Washington University",0,{"$f":"$C$3*'Park Allocations'!E87","v":0},{"$f":"$C$3*'Park Allocations'!F87","v":0},{"$f":"$C$3*'Park Allocations'!G87","v":0},{"$f":"$C$3*'Park Allocations'!H87","v":0},{"$f":"$C$3*'Park Allocations'!I87","v":0},{"$f":"$C$3*'Park Allocations'!J87","v":0},{"$f":"$C$3*'Park Allocations'!K87","v":0},{"$f":"$C$3*'Park Allocations'!L87","v":0},{"$f":"$C$3*'Park Allocations'!M87","v":0},{"$f":"$C$3*'Park Allocations'!N87","v":0},{"$f":"$C$3*'Park Allocations'!O87","v":0},{"$f":"$C$3*'Park Allocations'!P87","v":0},{"$f":"$C$3*'Park Allocations'!Q87","v":0},{"$f":"$C$3*'Park Allocations'!R87","v":0}]
["387 - Washington State Arts Commission","387","Washington State Arts Commission",0,{"$f":"$C$3*'Park Allocations'!E88","v":0},{"$f":"$C$3*'Park Allocations'!F88","v":0},{"$f":"$C$3*'Park Allocations'!G88","v":0},{"$f":"$C$3*'Park Allocations'!H88","v":0},{"$f":"$C$3*'Park Allocations'!I88","v":0},{"$f":"$C$3*'Park Allocations'!J88","v":0},{"$f":"$C$3*'Park Allocations'!K88","v":0},{"$f":"$C$3*'Park Allocations'!L88","v":0},{"$f":"$C$3*'Park Allocations'!M88","v":0},{"$f":"$C$3*'Park Allocations'!N88","v":0},{"$f":"$C$3*'Park Allocations'!O88","v":0},{"$f":"$C$3*'Park Allocations'!P88","v":0},{"$f":"$C$3*'Park Allocations'!Q88","v":0},{"$f":"$C$3*'Park Allocations'!R88","v":0}]
["390 - Washington State Historical Society","390","Washington State Historical Society",0,{"$f":"$C$3*'Park Allocations'!E89","v":0},{"$f":"$C$3*'Park Allocations'!F89","v":0},{"$f":"$C$3*'Park Allocations'!G89","v":0},{"$f":"$C$3*'Park Allocations'!H89","v":0},{"$f":"$C$3*'Park Allocations'!I89","v":0},{"$f":"$C$3*'Park Allocations'!J89","v":0},{"$f":"$C$3*'Park Allocations'!K89","v":0},{"$f":"$C$3*'Park Allocations'!L89","v":0},{"$f":"$C$3*'Park Allocations'!M89","v":0},{"$f":"$C$3*'Park Allocations'!N89","v":0},{"$f":"$C$3*'Park Allocations'!O89","v":0},{"$f":"$C$3*'Park Allocations'!P89","v":0},{"$f":"$C$3*'Park Allocations'!Q89","v":0},{"$f":"$C$3*'Park Allocations'!R89","v":0}]
["395 - Eastern Washington State Historical Society","395","Eastern Washington State Historical Society",0,{"$f":"$C$3*'Park Allocations'!E90","v":0},{"$f":"$C$3*'Park Allocations'!F90","v":0},{"$f":"$C$3*'Park Allocations'!G90","v":0},{"$f":"$C$3*'Park Allocations'!H90","v":0},{"$f":"$C$3*'Park Allocations'!I90","v":0},{"$f":"$C$3*'Park Allocations'!J90","v":0},{"$f":"$C$3*'Park Allocations'!K90","v":0},{"$f":"$C$3*'Park Allocations'!L90","v":0},{"$f":"$C$3*'Park Allocations'!M90","v":0},{"$f":"$C$3*'Park Allocations'!N90","v":0},{"$f":"$C$3*'Park Allocations'!O90","v":0},{"$f":"$C$3*'Park Allocations'!P90","v":0},{"$f":"$C$3*'Park Allocations'!Q90","v":0},{"$f":"$C$3*'Park Allocations'!R90","v":0}]
["405 - Department of Transportation","405","Department of Transportation",73490.433008172535,{"$f":"$C$3*'Park Allocations'!E91","v":0},{"$f":"$C$3*'Park Allocations'!F91","v":0},{"$f":"$C$3*'Park Allocations'!G91","v":0},{"$f":"$C$3*'Park Allocations'!H91","v":0},{"$f":"$C$3*'Park Allocations'!I91","v":0},{"$f":"$C$3*'Park Allocations'!J91","v":0},{"$f":"$C$3*'Park Allocations'!K91","v":0},{"$f":"$C$3*'Park Allocations'!L91","v":0},{"$f":"$C$3*'Park Allocations'!M91","v":0},{"$f":"$C$3*'Park Allocations'!N91","v":73490.433008172535},{"$f":"$C$3*'Park Allocations'!O91","v":0},{"$f":"$C$3*'Park Allocations'!P91","v":0},{"$f":"$C$3*'Park Allocations'!Q91","v":0},{"$f":"$C$3*'Park Allocations'!R91","v":0}]
["406 - County Road Administration Board","406","County Road Administration Board",0,{"$f":"$C$3*'Park Allocations'!E92","v":0},{"$f":"$C$3*'Park Allocations'!F92","v":0},{"$f":"$C$3*'Park Allocations'!G92","v":0},{"$f":"$C$3*'Park Allocations'!H92","v":0},{"$f":"$C$3*'Park Allocations'!I92","v":0},{"$f":"$C$3*'Park Allocations'!J92","v":0},{"$f":"$C$3*'Park Allocations'!K92","v":0},{"$f":"$C$3*'Park Allocations'!L92","v":0},{"$f":"$C$3*'Park Allocations'!M92","v":0},{"$f":"$C$3*'Park Allocations'!N92","v":0},{"$f":"$C$3*'Park Allocations'!O92","v":0},{"$f":"$C$3*'Park Allocations'!P92","v":0},{"$f":"$C$3*'Park Allocations'!Q92","v":0},{"$f":"$C$3*'Park Allocations'!R92","v":0}]
["407 - Transportation Improvement Board","407","Transportation Improvement Board",0,{"$f":"$C$3*'Park Allocations'!E93","v":0},{"$f":"$C$3*'Park Allocations'!F93","v":0},{"$f":"$C$3*'Park Allocations'!G93","v":0},{"$f":"$C$3*'Park Allocations'!H93","v":0},{"$f":"$C$3*'Park Allocations'!I93","v":0},{"$f":"$C$3*'Park Allocations'!J93","v":0},{"$f":"$C$3*'Park Allocations'!K93","v":0},{"$f":"$C$3*'Park Allocations'!L93","v":0},{"$f":"$C$3*'Park Allocations'!M93","v":0},{"$f":"$C$3*'Park Allocations'!N93","v":0},{"$f":"$C$3*'Park Allocations'!O93","v":0},{"$f":"$C$3*'Park Allocations'!P93","v":0},{"$f":"$C$3*'Park Allocations'!Q93","v":0},{"$f":"$C$3*'Park Allocations'!R93","v":0}]
["410 - Transportation Commission","410","Transportation Commission",0,{"$f":"$C$3*'Park Allocations'!E94","v":0},{"$f":"$C$3*'Park Allocations'!F94","v":0},{"$f":"$C$3*'Park Allocations'!G94","v":0},{"$f":"$C$3*'Park Allocations'!H94","v":0},{"$f":"$C$3*'Park Allocations'!I94","v":0},{"$f":"$C$3*'Park Allocations'!J94","v":0},{"$f":"$C$3*'Park Allocations'!K94","v":0},{"$f":"$C$3*'Park Allocations'!L94","v":0},{"$f":"$C$3*'Park Allocations'!M94","v":0},{"$f":"$C$3*'Park Allocations'!N94","v":0},{"$f":"$C$3*'Park Allocations'!O94","v":0},{"$f":"$C$3*'Park Allocations'!P94","v":0},{"$f":"$C$3*'Park Allocations'!Q94","v":0},{"$f":"$C$3*'Park Allocations'!R94","v":0}]
["411 - Freight Mobility Strategic Investment Board","411","Freight Mobility Strategic Investment Board",0,{"$f":"$C$3*'Park Allocations'!E95","v":0},{"$f":"$C$3*'Park Allocations'!F95","v":0},{"$f":"$C$3*'Park Allocations'!G95","v":0},{"$f":"$C$3*'Park Allocations'!H95","v":0},{"$f":"$C$3*'Park Allocations'!I95","v":0},{"$f":"$C$3*'Park Allocations'!J95","v":0},{"$f":"$C$3*'Park Allocations'!K95","v":0},{"$f":"$C$3*'Park Allocations'!L95","v":0},{"$f":"$C$3*'Park Allocations'!M95","v":0},{"$f":"$C$3*'Park Allocations'!N95","v":0},{"$f":"$C$3*'Park Allocations'!O95","v":0},{"$f":"$C$3*'Park Allocations'!P95","v":0},{"$f":"$C$3*'Park Allocations'!Q95","v":0},{"$f":"$C$3*'Park Allocations'!R95","v":0}]
["460 - Columbia River Gorge Commission","460","Columbia River Gorge Commission",0,{"$f":"$C$3*'Park Allocations'!E96","v":0},{"$f":"$C$3*'Park Allocations'!F96","v":0},{"$f":"$C$3*'Park Allocations'!G96","v":0},{"$f":"$C$3*'Park Allocations'!H96","v":0},{"$f":"$C$3*'Park Allocations'!I96","v":0},{"$f":"$C$3*'Park Allocations'!J96","v":0},{"$f":"$C$3*'Park Allocations'!K96","v":0},{"$f":"$C$3*'Park Allocations'!L96","v":0},{"$f":"$C$3*'Park Allocations'!M96","v":0},{"$f":"$C$3*'Park Allocations'!N96","v":0},{"$f":"$C$3*'Park Allocations'!O96","v":0},{"$f":"$C$3*'Park Allocations'!P96","v":0},{"$f":"$C$3*'Park Allocations'!Q96","v":0},{"$f":"$C$3*'Park Allocations'!R96","v":0}]
["461 - Department of Ecology","461","Department of Ecology",0,{"$f":"$C$3*'Park Allocations'!E97","v":0},{"$f":"$C$3*'Park Allocations'!F97","v":0},{"$f":"$C$3*'Park Allocations'!G97","v":0},{"$f":"$C$3*'Park Allocations'!H97","v":0},{"$f":"$C$3*'Park Allocations'!I97","v":0},{"$f":"$C$3*'Park Allocations'!J97","v":0},{"$f":"$C$3*'Park Allocations'!K97","v":0},{"$f":"$C$3*'Park Allocations'!L97","v":0},{"$f":"$C$3*'Park Allocations'!M97","v":0},{"$f":"$C$3*'Park Allocations'!N97","v":0},{"$f":"$C$3*'Park Allocations'!O97","v":0},{"$f":"$C$3*'Park Allocations'!P97","v":0},{"$f":"$C$3*'Park Allocations'!Q97","v":0},{"$f":"$C$3*'Park Allocations'!R97","v":0}]
["462 - Pollution Liability Insurance Program","462","Pollution Liability Insurance Program",0,{"$f":"$C$3*'Park Allocations'!E98","v":0},{"$f":"$C$3*'Park Allocations'!F98","v":0},{"$f":"$C$3*'Park Allocations'!G98","v":0},{"$f":"$C$3*'Park Allocations'!H98","v":0},{"$f":"$C$3*'Park Allocations'!I98","v":0},{"$f":"$C$3*'Park Allocations'!J98","v":0},{"$f":"$C$3*'Park Allocations'!K98","v":0},{"$f":"$C$3*'Park Allocations'!L98","v":0},{"$f":"$C$3*'Park Allocations'!M98","v":0},{"$f":"$C$3*'Park Allocations'!N98","v":0},{"$f":"$C$3*'Park Allocations'!O98","v":0},{"$f":"$C$3*'Park Allocations'!P98","v":0},{"$f":"$C$3*'Park Allocations'!Q98","v":0},{"$f":"$C$3*'Park Allocations'!R98","v":0}]
["465 - State Parks and Recreation Commission","465","State Parks and Recreation Commission",0,{"$f":"$C$3*'Park Allocations'!E99","v":0},{"$f":"$C$3*'Park Allocations'!F99","v":0},{"$f":"$C$3*'Park Allocations'!G99","v":0},{"$f":"$C$3*'Park Allocations'!H99","v":0},{"$f":"$C$3*'Park Allocations'!I99","v":0},{"$f":"$C$3*'Park Allocations'!J99","v":0},{"$f":"$C$3*'Park Allocations'!K99","v":0},{"$f":"$C$3*'Park Allocations'!L99","v":0},{"$f":"$C$3*'Park Allocations'!M99","v":0},{"$f":"$C$3*'Park Allocations'!N99","v":0},{"$f":"$C$3*'Park Allocations'!O99","v":0},{"$f":"$C$3*'Park Allocations'!P99","v":0},{"$f":"$C$3*'Park Allocations'!Q99","v":0},{"$f":"$C$3*'Park Allocations'!R99","v":0}]
["467 - Recreation and Conservation Funding Board","467","Recreation and Conservation Funding Board",4726.8605712032195,{"$f":"$C$3*'Park Allocations'!E100","v":0},{"$f":"$C$3*'Park Allocations'!F100","v":0},{"$f":"$C$3*'Park Allocations'!G100","v":0},{"$f":"$C$3*'Park Allocations'!H100","v":0},{"$f":"$C$3*'Park Allocations'!I100","v":0},{"$f":"$C$3*'Park Allocations'!J100","v":0},{"$f":"$C$3*'Park Allocations'!K100","v":0},{"$f":"$C$3*'Park Allocations'!L100","v":4726.8605712032195},{"$f":"$C$3*'Park Allocations'!M100","v":0},{"$f":"$C$3*'Park Allocations'!N100","v":0},{"$f":"$C$3*'Park Allocations'!O100","v":0},{"$f":"$C$3*'Park Allocations'!P100","v":0},{"$f":"$C$3*'Park Allocations'!Q100","v":0},{"$f":"$C$3*'Park Allocations'!R100","v":0}]
["468 - Environmental and Land Use Hearings Office","468","Environmental and Land Use Hearings Office",0,{"$f":"$C$3*'Park Allocations'!E101","v":0},{"$f":"$C$3*'Park Allocations'!F101","v":0},{"$f":"$C$3*'Park Allocations'!G101","v":0},{"$f":"$C$3*'Park Allocations'!H101","v":0},{"$f":"$C$3*'Park Allocations'!I101","v":0},{"$f":"$C$3*'Park Allocations'!J101","v":0},{"$f":"$C$3*'Park Allocations'!K101","v":0},{"$f":"$C$3*'Park Allocations'!L101","v":0},{"$f":"$C$3*'Park Allocations'!M101","v":0},{"$f":"$C$3*'Park Allocations'!N101","v":0},{"$f":"$C$3*'Park Allocations'!O101","v":0},{"$f":"$C$3*'Park Allocations'!P101","v":0},{"$f":"$C$3*'Park Allocations'!Q101","v":0},{"$f":"$C$3*'Park Allocations'!R101","v":0}]
["471 - State Conservation Commission","471","State Conservation Commission",0,{"$f":"$C$3*'Park Allocations'!E102","v":0},{"$f":"$C$3*'Park Allocations'!F102","v":0},{"$f":"$C$3*'Park Allocations'!G102","v":0},{"$f":"$C$3*'Park Allocations'!H102","v":0},{"$f":"$C$3*'Park Allocations'!I102","v":0},{"$f":"$C$3*'Park Allocations'!J102","v":0},{"$f":"$C$3*'Park Allocations'!K102","v":0},{"$f":"$C$3*'Park Allocations'!L102","v":0},{"$f":"$C$3*'Park Allocations'!M102","v":0},{"$f":"$C$3*'Park Allocations'!N102","v":0},{"$f":"$C$3*'Park Allocations'!O102","v":0},{"$f":"$C$3*'Park Allocations'!P102","v":0},{"$f":"$C$3*'Park Allocations'!Q102","v":0},{"$f":"$C$3*'Park Allocations'!R102","v":0}]
["477 - Department of Fish and Wildlife","477","Department of Fish and Wildlife",56292.21065462906,{"$f":"$C$3*'Park Allocations'!E103","v":0},{"$f":"$C$3*'Park Allocations'!F103","v":0},{"$f":"$C$3*'Park Allocations'!G103","v":0},{"$f":"$C$3*'Park Allocations'!H103","v":0},{"$f":"$C$3*'Park Allocations'!I103","v":0},{"$f":"$C$3*'Park Allocations'!J103","v":0},{"$f":"$C$3*'Park Allocations'!K103","v":0},{"$f":"$C$3*'Park Allocations'!L103","v":56292.21065462906},{"$f":"$C$3*'Park Allocations'!M103","v":0},{"$f":"$C$3*'Park Allocations'!N103","v":0},{"$f":"$C$3*'Park Allocations'!O103","v":0},{"$f":"$C$3*'Park Allocations'!P103","v":0},{"$f":"$C$3*'Park Allocations'!Q103","v":0},{"$f":"$C$3*'Park Allocations'!R103","v":0}]
["478 - Puget Sound Partnership","478","Puget Sound Partnership",0,{"$f":"$C$3*'Park Allocations'!E104","v":0},{"$f":"$C$3*'Park Allocations'!F104","v":0},{"$f":"$C$3*'Park Allocations'!G104","v":0},{"$f":"$C$3*'Park Allocations'!H104","v":0},{"$f":"$C$3*'Park Allocations'!I104","v":0},{"$f":"$C$3*'Park Allocations'!J104","v":0},{"$f":"$C$3*'Park Allocations'!K104","v":0},{"$f":"$C$3*'Park Allocations'!L104","v":0},{"$f":"$C$3*'Park Allocations'!M104","v":0},{"$f":"$C$3*'Park Allocations'!N104","v":0},{"$f":"$C$3*'Park Allocations'!O104","v":0},{"$f":"$C$3*'Park Allocations'!P104","v":0},{"$f":"$C$3*'Park Allocations'!Q104","v":0},{"$f":"$C$3*'Park Allocations'!R104","v":0}]
["490 - Department of Natural Resources","490","Department of Natural Resources",60963.248488415353,{"$f":"$C$3*'Park Allocations'!E105","v":0},{"$f":"$C$3*'Park Allocations'!F105","v":0},{"$f":"$C$3*'Park Allocations'!G105","v":0},{"$f":"$C$3*'Park Allocations'!H105","v":0},{"$f":"$C$3*'Park Allocations'!I105","v":0},{"$f":"$C$3*'Park Allocations'!J105","v":0},{"$f":"$C$3*'Park Allocations'!K105","v":0},{"$f":"$C$3*'Park Allocations'!L105","v":60963.248488415353},{"$f":"$C$3*'Park Allocations'!M105","v":0},{"$f":"$C$3*'Park Allocations'!N105","v":0},{"$f":"$C$3*'Park Allocations'!O105","v":0},{"$f":"$C$3*'Park Allocations'!P105","v":0},{"$f":"$C$3*'Park Allocations'!Q105","v":0},{"$f":"$C$3*'Park Allocations'!R105","v":0}]
["495 - Department of Agriculture","495","Department of Agriculture",19255.631589420627,{"$f":"$C$3*'Park Allocations'!E106","v":0},{"$f":"$C$3*'Park Allocations'!F106","v":0},{"$f":"$C$3*'Park Allocations'!G106","v":0},{"$f":"$C$3*'Park Allocations'!H106","v":0},{"$f":"$C$3*'Park Allocations'!I106","v":0},{"$f":"$C$3*'Park Allocations'!J106","v":0},{"$f":"$C$3*'Park Allocations'!K106","v":0},{"$f":"$C$3*'Park Allocations'!L106","v":19255.631589420627},{"$f":"$C$3*'Park Allocations'!M106","v":0},{"$f":"$C$3*'Park Allocations'!N106","v":0},{"$f":"$C$3*'Park Allocations'!O106","v":0},{"$f":"$C$3*'Park Allocations'!P106","v":0},{"$f":"$C$3*'Park Allocations'!Q106","v":0},{"$f":"$C$3*'Park Allocations'!R106","v":0}]
["540 - Employment Security Department","540","Employment Security Department",37196.015228910022,{"$f":"$C$3*'Park Allocations'!E107","v":0},{"$f":"$C$3*'Park Allocations'!F107","v":0},{"$f":"$C$3*'Park Allocations'!G107","v":0},{"$f":"$C$3*'Park Allocations'!H107","v":0},{"$f":"$C$3*'Park Allocations'!I107","v":0},{"$f":"$C$3*'Park Allocations'!J107","v":0},{"$f":"$C$3*'Park Allocations'!K107","v":0},{"$f":"$C$3*'Park Allocations'!L107","v":0},{"$f":"$C$3*'Park Allocations'!M107","v":37196.015228910022},{"$f":"$C$3*'Park Allocations'!N107","v":0},{"$f":"$C$3*'Park Allocations'!O107","v":0},{"$f":"$C$3*'Park Allocations'!P107","v":0},{"$f":"$C$3*'Park Allocations'!Q107","v":0},{"$f":"$C$3*'Park Allocations'!R107","v":0}]
["699 - Community Colleges","699","Community Colleges",0,{"$f":"$C$3*'Park Allocations'!E108","v":0},{"$f":"$C$3*'Park Allocations'!F108","v":0},{"$f":"$C$3*'Park Allocations'!G108","v":0},{"$f":"$C$3*'Park Allocations'!H108","v":0},{"$f":"$C$3*'Park Allocations'!I108","v":0},{"$f":"$C$3*'Park Allocations'!J108","v":0},{"$f":"$C$3*'Park Allocations'!K108","v":0},{"$f":"$C$3*'Park Allocations'!L108","v":0},{"$f":"$C$3*'Park Allocations'!M108","v":0},{"$f":"$C$3*'Park Allocations'!N108","v":0},{"$f":"$C$3*'Park Allocations'!O108","v":0},{"$f":"$C$3*'Park Allocations'!P108","v":0},{"$f":"$C$3*'Park Allocations'!Q108","v":0},{"$f":"$C$3*'Park Allocations'!R108","v":0}]
["TOTAL  - All Agencies",null,"Building Total",{"$f":"SUM(D5:D108)","v":666001.00000000012},{"$f":"SUM(E5:E108)","v":31036.237196529823},31563.541183784691,57129.551715882983,9594.2819920174097,71351.900081948479,100593.7776325874,19236.756275330012,142446.77461032261,37196.015228910022,74066.330889150049,22131.50657246109,39276.717405579853,21529.504533698677,8848.1046817968836]
[]
[null,null,"Building Total RSF",null,77281,78594,142254,23890,177668,250481,47900,354696,92619,184427,55108,97800,53609,22032,95386,47200,14308,10125,0,41341,17000,0,1539,7138,885,2492,872,200592,60581,99000,20708,138355,17600,0]
[null,null,"vacant space",0,0,0,0,0,0,0,0,0,0,0,0,0,0,0,0,0,0,0,0,0,0,0,0,14276,406,872,0,0,0,0,35004,0,0]
[null,null,null,null,{"$f":"E109/E111/2","v":0.20080121372995835},{"$f":"F109/F111/2","v":0.20080121372995835},0.20080121372995832,0.20080121372995835,0.20080121372995835,0.20080121372995835,0.20080121372995838,0.20080121372995835,0.20080121372995835,0.20080121372995832,0.20080121372995835,0.20080121372995835,0.20080121372995838,0.20080121372995832,0,0,0,0,{"$error":"#DIV/0!"},0,0,{"$error":"#DIV/0!"},0,0,0,0,0,0,0,0,0,0,0]

{"sheet":"CPS Allocations","index":20,"n_rows":110,"n_cols":38,"rows_kept":110,"cut":false,"hidden":true,"merged":[[2,3,3,3]]}
[null,null,null,"CPS Weighting:",1,1,2.39,2.39,2,2.39,2.39,2,2.39,2.39,2.39,2.39,2.39,2.39]
[null,null,null,null,"Olympia","Olympia","Olympia","Olympia","Olympia","Olympia","Olympia","Olympia","Olympia","Olympia","Olympia","Olympia","Olympia","Olympia","Tumwater","Tumwater",null,null,"Vacant",null,null,"Vacant",null,null,null,null,null,null,"OTC","OTC","OTC","OTC","OTC","OTC"]
[null,null,null,"Total","F6121","F6122","F6123","F6124","F6125","F6126","F6127","F6129","F612A","F612C","F612E","F612H","F612J","F612K","F6131","F6132","F6133","F6134","F6137","F613D","F613E","F613F","F613G","F613H","F613i","F613K","F613L","F613M","F6141","F6142","F6143","F6144","F614G","F6146"]
[null,"Agency #","Agency",null,"Cherberg","O'Brien","Legislative","Pritchard","HLB","OB2","Archives","NRB","Emp Sec","Transportation","Insurance","Old Cap","TOJ","Newhouse","Modular Bldg","Isabella Bush","1007 Washington","120 E Union Avenue","Conservatory","Capital Court","James Dolliver Building","Undeveloped Properties","1068 WA Street SE (ST Farm)","232 Perry Street","208 11th Avenue SE (Pro Arts)","Press Houses Ayer(White); Carlyon(Blue)","Visitor Center","Helen Sommers","Kelso Building","Yakima Building","Alaska Street","Tacoma Rhodes","Tacoma Rhodes Garage","North Cascades Gateway Center (NCGC)"]
[null,"011","House of Representatives",{"$f":"SUM(E5:AL5)","v":5.3081414906481814E-2},{"$f":"('[2]21-23 Cap Proj  Sur Alloctns'!F5*E$1)/(SUMPRODUCT('[2]21-23 Cap Proj  Sur Alloctns'!$F$109:$S$109,$E$1:$R$1))","v":0},{"$f":"('[2]21-23 Cap Proj  Sur Alloctns'!G5*F$1)/(SUMPRODUCT('[2]21-23 Cap Proj  Sur Alloctns'!$F$109:$S$109,$E$1:$R$1))","v":2.2324975764829041E-2},{"$f":"('[2]21-23 Cap Proj  Sur Alloctns'!H5*G$1)/(SUMPRODUCT('[2]21-23 Cap Proj  Sur Alloctns'!$F$109:$S$109,$E$1:$R$1))","v":3.0756439141652773E-2},{"$f":"('[2]21-23 Cap Proj  Sur Alloctns'!I5*H$1)/(SUMPRODUCT('[2]21-23 Cap Proj  Sur Alloctns'!$F$109:$S$109,$E$1:$R$1))","v":0},{"$f":"('[2]21-23 Cap Proj  Sur Alloctns'!J5*I$1)/(SUMPRODUCT('[2]21-23 Cap Proj  Sur Alloctns'!$F$109:$S$109,$E$1:$R$1))","v":0},{"$f":"('[2]21-23 Cap Proj  Sur Alloctns'!K5*J$1)/(SUMPRODUCT('[2]21-23 Cap Proj  Sur Alloctns'!$F$109:$S$109,$E$1:$R$1))","v":0},{"$f":"('[2]21-23 Cap Proj  Sur Alloctns'!L5*K$1)/(SUMPRODUCT('[2]21-23 Cap Proj  Sur Alloctns'!$F$109:$S$109,$E$1:$R$1))","v":0},{"$f":"('[2]21-23 Cap Proj  Sur Alloctns'!M5*L$1)/(SUMPRODUCT('[2]21-23 Cap Proj  Sur Alloctns'!$F$109:$S$109,$E$1:$R$1))","v":0},{"$f":"('[2]21-23 Cap Proj  Sur Alloctns'!N5*M$1)/(SUMPRODUCT('[2]21-23 Cap Proj  Sur Alloctns'!$F$109:$S$109,$E$1:$R$1))","v":0},{"$f":"('[2]21-23 Cap Proj  Sur Alloctns'!O5*N$1)/(SUMPRODUCT('[2]21-23 Cap Proj  Sur Alloctns'!$F$109:$S$109,$E$1:$R$1))","v":0},{"$f":"('[2]21-23 Cap Proj  Sur Alloctns'!P5*O$1)/(SUMPRODUCT('[2]21-23 Cap Proj  Sur Alloctns'!$F$109:$S$109,$E$1:$R$1))","v":0},{"$f":"('[2]21-23 Cap Proj  Sur Alloctns'!Q5*P$1)/(SUMPRODUCT('[2]21-23 Cap Proj  Sur Alloctns'!$F$109:$S$109,$E$1:$R$1))","v":0},{"$f":"('[2]21-23 Cap Proj  Sur Alloctns'!R5*Q$1)/(SUMPRODUCT('[2]21-23 Cap Proj  Sur Alloctns'!$F$109:$S$109,$E$1:$R$1))","v":0},{"$f":"('[2]21-23 Cap Proj  Sur Alloctns'!S5*R$1)/(SUMPRODUCT('[2]21-23 Cap Proj  Sur Alloctns'!$F$109:$S$109,$E$1:$R$1))","v":0},0,0,0,0,0,0,0,0,0,0,0,0,0,0,0,0,0,0,0,0]
[null,"012","Senate",{"$f":"SUM(E6:AL6)","v":6.0876857636239436E-2},{"$f":"('[2]21-23 Cap Proj  Sur Alloctns'!F6*E$1)/(SUMPRODUCT('[2]21-23 Cap Proj  Sur Alloctns'!$F$109:$S$109,$E$1:$R$1))","v":2.1952012266607542E-2},{"$f":"('[2]21-23 Cap Proj  Sur Alloctns'!G6*F$1)/(SUMPRODUCT('[2]21-23 Cap Proj  Sur Alloctns'!$F$109:$S$109,$E$1:$R$1))","v":0},{"$f":"('[2]21-23 Cap Proj  Sur Alloctns'!H6*G$1)/(SUMPRODUCT('[2]21-23 Cap Proj  Sur Alloctns'!$F$109:$S$109,$E$1:$R$1))","v":2.3967537688877567E-2},{"$f":"('[2]21-23 Cap Proj  Sur Alloctns'!I6*H$1)/(SUMPRODUCT('[2]21-23 Cap Proj  Sur Alloctns'!$F$109:$S$109,$E$1:$R$1))","v":0},{"$f":"('[2]21-23 Cap Proj  Sur Alloctns'!J6*I$1)/(SUMPRODUCT('[2]21-23 Cap Proj  Sur Alloctns'!$F$109:$S$109,$E$1:$R$1))","v":0},{"$f":"('[2]21-23 Cap Proj  Sur Alloctns'!K6*J$1)/(SUMPRODUCT('[2]21-23 Cap Proj  Sur Alloctns'!$F$109:$S$109,$E$1:$R$1))","v":0},{"$f":"('[2]21-23 Cap Proj  Sur Alloctns'!L6*K$1)/(SUMPRODUCT('[2]21-23 Cap Proj  Sur Alloctns'!$F$109:$S$109,$E$1:$R$1))","v":0},{"$f":"('[2]21-23 Cap Proj  Sur Alloctns'!M6*L$1)/(SUMPRODUCT('[2]21-23 Cap Proj  Sur Alloctns'!$F$109:$S$109,$E$1:$R$1))","v":0},{"$f":"('[2]21-23 Cap Proj  Sur Alloctns'!N6*M$1)/(SUMPRODUCT('[2]21-23 Cap Proj  Sur Alloctns'!$F$109:$S$109,$E$1:$R$1))","v":0},{"$f":"('[2]21-23 Cap Proj  Sur Alloctns'!O6*N$1)/(SUMPRODUCT('[2]21-23 Cap Proj  Sur Alloctns'!$F$109:$S$109,$E$1:$R$1))","v":0},{"$f":"('[2]21-23 Cap Proj  Sur Alloctns'!P6*O$1)/(SUMPRODUCT('[2]21-23 Cap Proj  Sur Alloctns'!$F$109:$S$109,$E$1:$R$1))","v":0},{"$f":"('[2]21-23 Cap Proj  Sur Alloctns'!Q6*P$1)/(SUMPRODUCT('[2]21-23 Cap Proj  Sur Alloctns'!$F$109:$S$109,$E$1:$R$1))","v":0},{"$f":"('[2]21-23 Cap Proj  Sur Alloctns'!R6*Q$1)/(SUMPRODUCT('[2]21-23 Cap Proj  Sur Alloctns'!$F$109:$S$109,$E$1:$R$1))","v":0},{"$f":"('[2]21-23 Cap Proj  Sur Alloctns'!S6*R$1)/(SUMPRODUCT('[2]21-23 Cap Proj  Sur Alloctns'!$F$109:$S$109,$E$1:$R$1))","v":1.4957307680754322E-2},0,0,0,0,0,0,0,0,0,0,0,0,0,0,0,0,0,0,0,0]
[null,"013","Joint Transportation Committee",0,{"$f":"('[2]21-23 Cap Proj  Sur Alloctns'!F7*E$1)/(SUMPRODUCT('[2]21-23 Cap Proj  Sur Alloctns'!$F$109:$S$109,$E$1:$R$1))","v":0},{"$f":"('[2]21-23 Cap Proj  Sur Alloctns'!G7*F$1)/(SUMPRODUCT('[2]21-23 Cap Proj  Sur Alloctns'!$F$109:$S$109,$E$1:$R$1))","v":0},{"$f":"('[2]21-23 Cap Proj  Sur Alloctns'!H7*G$1)/(SUMPRODUCT('[2]21-23 Cap Proj  Sur Alloctns'!$F$109:$S$109,$E$1:$R$1))","v":0},{"$f":"('[2]21-23 Cap Proj  Sur Alloctns'!I7*H$1)/(SUMPRODUCT('[2]21-23 Cap Proj  Sur Alloctns'!$F$109:$S$109,$E$1:$R$1))","v":0},{"$f":"('[2]21-23 Cap Proj  Sur Alloctns'!J7*I$1)/(SUMPRODUCT('[2]21-23 Cap Proj  Sur Alloctns'!$F$109:$S$109,$E$1:$R$1))","v":0},{"$f":"('[2]21-23 Cap Proj  Sur Alloctns'!K7*J$1)/(SUMPRODUCT('[2]21-23 Cap Proj  Sur Alloctns'!$F$109:$S$109,$E$1:$R$1))","v":0},{"$f":"('[2]21-23 Cap Proj  Sur Alloctns'!L7*K$1)/(SUMPRODUCT('[2]21-23 Cap Proj  Sur Alloctns'!$F$109:$S$109,$E$1:$R$1))","v":0},{"$f":"('[2]21-23 Cap Proj  Sur Alloctns'!M7*L$1)/(SUMPRODUCT('[2]21-23 Cap Proj  Sur Alloctns'!$F$109:$S$109,$E$1:$R$1))","v":0},{"$f":"('[2]21-23 Cap Proj  Sur Alloctns'!N7*M$1)/(SUMPRODUCT('[2]21-23 Cap Proj  Sur Alloctns'!$F$109:$S$109,$E$1:$R$1))","v":0},{"$f":"('[2]21-23 Cap Proj  Sur Alloctns'!O7*N$1)/(SUMPRODUCT('[2]21-23 Cap Proj  Sur Alloctns'!$F$109:$S$109,$E$1:$R$1))","v":0},{"$f":"('[2]21-23 Cap Proj  Sur Alloctns'!P7*O$1)/(SUMPRODUCT('[2]21-23 Cap Proj  Sur Alloctns'!$F$109:$S$109,$E$1:$R$1))","v":0},{"$f":"('[2]21-23 Cap Proj  Sur Alloctns'!Q7*P$1)/(SUMPRODUCT('[2]21-23 Cap Proj  Sur Alloctns'!$F$109:$S$109,$E$1:$R$1))","v":0},{"$f":"('[2]21-23 Cap Proj  Sur Alloctns'!R7*Q$1)/(SUMPRODUCT('[2]21-23 Cap Proj  Sur Alloctns'!$F$109:$S$109,$E$1:$R$1))","v":0},{"$f":"('[2]21-23 Cap Proj  Sur Alloctns'!S7*R$1)/(SUMPRODUCT('[2]21-23 Cap Proj  Sur Alloctns'!$F$109:$S$109,$E$1:$R$1))","v":0},0,0,0,0,0,0,0,0,0,0,0,0,0,0,0,0,0,0,0,0]
[null,"014","Joint Legislative Audit and Review Committee",0,{"$f":"('[2]21-23 Cap Proj  Sur Alloctns'!F8*E$1)/(SUMPRODUCT('[2]21-23 Cap Proj  Sur Alloctns'!$F$109:$S$109,$E$1:$R$1))","v":0},{"$f":"('[2]21-23 Cap Proj  Sur Alloctns'!G8*F$1)/(SUMPRODUCT('[2]21-23 Cap Proj  Sur Alloctns'!$F$109:$S$109,$E$1:$R$1))","v":0},{"$f":"('[2]21-23 Cap Proj  Sur Alloctns'!H8*G$1)/(SUMPRODUCT('[2]21-23 Cap Proj  Sur Alloctns'!$F$109:$S$109,$E$1:$R$1))","v":0},{"$f":"('[2]21-23 Cap Proj  Sur Alloctns'!I8*H$1)/(SUMPRODUCT('[2]21-23 Cap Proj  Sur Alloctns'!$F$109:$S$109,$E$1:$R$1))","v":0},{"$f":"('[2]21-23 Cap Proj  Sur Alloctns'!J8*I$1)/(SUMPRODUCT('[2]21-23 Cap Proj  Sur Alloctns'!$F$109:$S$109,$E$1:$R$1))","v":0},{"$f":"('[2]21-23 Cap Proj  Sur Alloctns'!K8*J$1)/(SUMPRODUCT('[2]21-23 Cap Proj  Sur Alloctns'!$F$109:$S$109,$E$1:$R$1))","v":0},{"$f":"('[2]21-23 Cap Proj  Sur Alloctns'!L8*K$1)/(SUMPRODUCT('[2]21-23 Cap Proj  Sur Alloctns'!$F$109:$S$109,$E$1:$R$1))","v":0},{"$f":"('[2]21-23 Cap Proj  Sur Alloctns'!M8*L$1)/(SUMPRODUCT('[2]21-23 Cap Proj  Sur Alloctns'!$F$109:$S$109,$E$1:$R$1))","v":0},{"$f":"('[2]21-23 Cap Proj  Sur Alloctns'!N8*M$1)/(SUMPRODUCT('[2]21-23 Cap Proj  Sur Alloctns'!$F$109:$S$109,$E$1:$R$1))","v":0},{"$f":"('[2]21-23 Cap Proj  Sur Alloctns'!O8*N$1)/(SUMPRODUCT('[2]21-23 Cap Proj  Sur Alloctns'!$F$109:$S$109,$E$1:$R$1))","v":0},{"$f":"('[2]21-23 Cap Proj  Sur Alloctns'!P8*O$1)/(SUMPRODUCT('[2]21-23 Cap Proj  Sur Alloctns'!$F$109:$S$109,$E$1:$R$1))","v":0},{"$f":"('[2]21-23 Cap Proj  Sur Alloctns'!Q8*P$1)/(SUMPRODUCT('[2]21-23 Cap Proj  Sur Alloctns'!$F$109:$S$109,$E$1:$R$1))","v":0},{"$f":"('[2]21-23 Cap Proj  Sur Alloctns'!R8*Q$1)/(SUMPRODUCT('[2]21-23 Cap Proj  Sur Alloctns'!$F$109:$S$109,$E$1:$R$1))","v":0},{"$f":"('[2]21-23 Cap Proj  Sur Alloctns'!S8*R$1)/(SUMPRODUCT('[2]21-23 Cap Proj  Sur Alloctns'!$F$109:$S$109,$E$1:$R$1))","v":0},0,0,0,0,0,0,0,0,0,0,0,0,0,0,0,0,0,0,0,0]
[null,"020","Legislative Evaluation and Accountability Program Committee",0,{"$f":"('[2]21-23 Cap Proj  Sur Alloctns'!F9*E$1)/(SUMPRODUCT('[2]21-23 Cap Proj  Sur Alloctns'!$F$109:$S$109,$E$1:$R$1))","v":0},{"$f":"('[2]21-23 Cap Proj  Sur Alloctns'!G9*F$1)/(SUMPRODUCT('[2]21-23 Cap Proj  Sur Alloctns'!$F$109:$S$109,$E$1:$R$1))","v":0},{"$f":"('[2]21-23 Cap Proj  Sur Alloctns'!H9*G$1)/(SUMPRODUCT('[2]21-23 Cap Proj  Sur Alloctns'!$F$109:$S$109,$E$1:$R$1))","v":0},{"$f":"('[2]21-23 Cap Proj  Sur Alloctns'!I9*H$1)/(SUMPRODUCT('[2]21-23 Cap Proj  Sur Alloctns'!$F$109:$S$109,$E$1:$R$1))","v":0},{"$f":"('[2]21-23 Cap Proj  Sur Alloctns'!J9*I$1)/(SUMPRODUCT('[2]21-23 Cap Proj  Sur Alloctns'!$F$109:$S$109,$E$1:$R$1))","v":0},{"$f":"('[2]21-23 Cap Proj  Sur Alloctns'!K9*J$1)/(SUMPRODUCT('[2]21-23 Cap Proj  Sur Alloctns'!$F$109:$S$109,$E$1:$R$1))","v":0},{"$f":"('[2]21-23 Cap Proj  Sur Alloctns'!L9*K$1)/(SUMPRODUCT('[2]21-23 Cap Proj  Sur Alloctns'!$F$109:$S$109,$E$1:$R$1))","v":0},{"$f":"('[2]21-23 Cap Proj  Sur Alloctns'!M9*L$1)/(SUMPRODUCT('[2]21-23 Cap Proj  Sur Alloctns'!$F$109:$S$109,$E$1:$R$1))","v":0},{"$f":"('[2]21-23 Cap Proj  Sur Alloctns'!N9*M$1)/(SUMPRODUCT('[2]21-23 Cap Proj  Sur Alloctns'!$F$109:$S$109,$E$1:$R$1))","v":0},{"$f":"('[2]21-23 Cap Proj  Sur Alloctns'!O9*N$1)/(SUMPRODUCT('[2]21-23 Cap Proj  Sur Alloctns'!$F$109:$S$109,$E$1:$R$1))","v":0},{"$f":"('[2]21-23 Cap Proj  Sur Alloctns'!P9*O$1)/(SUMPRODUCT('[2]21-23 Cap Proj  Sur Alloctns'!$F$109:$S$109,$E$1:$R$1))","v":0},{"$f":"('[2]21-23 Cap Proj  Sur Alloctns'!Q9*P$1)/(SUMPRODUCT('[2]21-23 Cap Proj  Sur Alloctns'!$F$109:$S$109,$E$1:$R$1))","v":0},{"$f":"('[2]21-23 Cap Proj  Sur Alloctns'!R9*Q$1)/(SUMPRODUCT('[2]21-23 Cap Proj  Sur Alloctns'!$F$109:$S$109,$E$1:$R$1))","v":0},{"$f":"('[2]21-23 Cap Proj  Sur Alloctns'!S9*R$1)/(SUMPRODUCT('[2]21-23 Cap Proj  Sur Alloctns'!$F$109:$S$109,$E$1:$R$1))","v":0},0,0,0,0,0,0,0,0,0,0,0,0,0,0,0,0,0,0,0,0]
[null,"035","Office of the State Actuary",0,{"$f":"('[2]21-23 Cap Proj  Sur Alloctns'!F10*E$1)/(SUMPRODUCT('[2]21-23 Cap Proj  Sur Alloctns'!$F$109:$S$109,$E$1:$R$1))","v":0},{"$f":"('[2]21-23 Cap Proj  Sur Alloctns'!G10*F$1)/(SUMPRODUCT('[2]21-23 Cap Proj  Sur Alloctns'!$F$109:$S$109,$E$1:$R$1))","v":0},{"$f":"('[2]21-23 Cap Proj  Sur Alloctns'!H10*G$1)/(SUMPRODUCT('[2]21-23 Cap Proj  Sur Alloctns'!$F$109:$S$109,$E$1:$R$1))","v":0},{"$f":"('[2]21-23 Cap Proj  Sur Alloctns'!I10*H$1)/(SUMPRODUCT('[2]21-23 Cap Proj  Sur Alloctns'!$F$109:$S$109,$E$1:$R$1))","v":0},{"$f":"('[2]21-23 Cap Proj  Sur Alloctns'!J10*I$1)/(SUMPRODUCT('[2]21-23 Cap Proj  Sur Alloctns'!$F$109:$S$109,$E$1:$R$1))","v":0},{"$f":"('[2]21-23 Cap Proj  Sur Alloctns'!K10*J$1)/(SUMPRODUCT('[2]21-23 Cap Proj  Sur Alloctns'!$F$109:$S$109,$E$1:$R$1))","v":0},{"$f":"('[2]21-23 Cap Proj  Sur Alloctns'!L10*K$1)/(SUMPRODUCT('[2]21-23 Cap Proj  Sur Alloctns'!$F$109:$S$109,$E$1:$R$1))","v":0},{"$f":"('[2]21-23 Cap Proj  Sur Alloctns'!M10*L$1)/(SUMPRODUCT('[2]21-23 Cap Proj  Sur Alloctns'!$F$109:$S$109,$E$1:$R$1))","v":0},{"$f":"('[2]21-23 Cap Proj  Sur Alloctns'!N10*M$1)/(SUMPRODUCT('[2]21-23 Cap Proj  Sur Alloctns'!$F$109:$S$109,$E$1:$R$1))","v":0},{"$f":"('[2]21-23 Cap Proj  Sur Alloctns'!O10*N$1)/(SUMPRODUCT('[2]21-23 Cap Proj  Sur Alloctns'!$F$109:$S$109,$E$1:$R$1))","v":0},{"$f":"('[2]21-23 Cap Proj  Sur Alloctns'!P10*O$1)/(SUMPRODUCT('[2]21-23 Cap Proj  Sur Alloctns'!$F$109:$S$109,$E$1:$R$1))","v":0},{"$f":"('[2]21-23 Cap Proj  Sur Alloctns'!Q10*P$1)/(SUMPRODUCT('[2]21-23 Cap Proj  Sur Alloctns'!$F$109:$S$109,$E$1:$R$1))","v":0},{"$f":"('[2]21-23 Cap Proj  Sur Alloctns'!R10*Q$1)/(SUMPRODUCT('[2]21-23 Cap Proj  Sur Alloctns'!$F$109:$S$109,$E$1:$R$1))","v":0},{"$f":"('[2]21-23 Cap Proj  Sur Alloctns'!S10*R$1)/(SUMPRODUCT('[2]21-23 Cap Proj  Sur Alloctns'!$F$109:$S$109,$E$1:$R$1))","v":0},0,0,0,0,0,0,0,0,0,0,0,0,0,0,0,0,0,0,0,0]
[null,"037","Office of Legislative Support Services",6.0034255546891103E-3,{"$f":"('[2]21-23 Cap Proj  Sur Alloctns'!F11*E$1)/(SUMPRODUCT('[2]21-23 Cap Proj  Sur Alloctns'!$F$109:$S$109,$E$1:$R$1))","v":0},{"$f":"('[2]21-23 Cap Proj  Sur Alloctns'!G11*F$1)/(SUMPRODUCT('[2]21-23 Cap Proj  Sur Alloctns'!$F$109:$S$109,$E$1:$R$1))","v":0},{"$f":"('[2]21-23 Cap Proj  Sur Alloctns'!H11*G$1)/(SUMPRODUCT('[2]21-23 Cap Proj  Sur Alloctns'!$F$109:$S$109,$E$1:$R$1))","v":3.3801940333367726E-3},{"$f":"('[2]21-23 Cap Proj  Sur Alloctns'!I11*H$1)/(SUMPRODUCT('[2]21-23 Cap Proj  Sur Alloctns'!$F$109:$S$109,$E$1:$R$1))","v":2.6232315213523378E-3},{"$f":"('[2]21-23 Cap Proj  Sur Alloctns'!J11*I$1)/(SUMPRODUCT('[2]21-23 Cap Proj  Sur Alloctns'!$F$109:$S$109,$E$1:$R$1))","v":0},{"$f":"('[2]21-23 Cap Proj  Sur Alloctns'!K11*J$1)/(SUMPRODUCT('[2]21-23 Cap Proj  Sur Alloctns'!$F$109:$S$109,$E$1:$R$1))","v":0},{"$f":"('[2]21-23 Cap Proj  Sur Alloctns'!L11*K$1)/(SUMPRODUCT('[2]21-23 Cap Proj  Sur Alloctns'!$F$109:$S$109,$E$1:$R$1))","v":0},{"$f":"('[2]21-23 Cap Proj  Sur Alloctns'!M11*L$1)/(SUMPRODUCT('[2]21-23 Cap Proj  Sur Alloctns'!$F$109:$S$109,$E$1:$R$1))","v":0},{"$f":"('[2]21-23 Cap Proj  Sur Alloctns'!N11*M$1)/(SUMPRODUCT('[2]21-23 Cap Proj  Sur Alloctns'!$F$109:$S$109,$E$1:$R$1))","v":0},{"$f":"('[2]21-23 Cap Proj  Sur Alloctns'!O11*N$1)/(SUMPRODUCT('[2]21-23 Cap Proj  Sur Alloctns'!$F$109:$S$109,$E$1:$R$1))","v":0},{"$f":"('[2]21-23 Cap Proj  Sur Alloctns'!P11*O$1)/(SUMPRODUCT('[2]21-23 Cap Proj  Sur Alloctns'!$F$109:$S$109,$E$1:$R$1))","v":0},{"$f":"('[2]21-23 Cap Proj  Sur Alloctns'!Q11*P$1)/(SUMPRODUCT('[2]21-23 Cap Proj  Sur Alloctns'!$F$109:$S$109,$E$1:$R$1))","v":0},{"$f":"('[2]21-23 Cap Proj  Sur Alloctns'!R11*Q$1)/(SUMPRODUCT('[2]21-23 Cap Proj  Sur Alloctns'!$F$109:$S$109,$E$1:$R$1))","v":0},{"$f":"('[2]21-23 Cap Proj  Sur Alloctns'!S11*R$1)/(SUMPRODUCT('[2]21-23 Cap Proj  Sur Alloctns'!$F$109:$S$109,$E$1:$R$1))","v":0},0,0,0,0,0,0,0,0,0,0,0,0,0,0,0,0,0,0,0,0]
[null,"038","Joint Legislative Systems Committee",5.989168861638282E-3,{"$f":"('[2]21-23 Cap Proj  Sur Alloctns'!F12*E$1)/(SUMPRODUCT('[2]21-23 Cap Proj  Sur Alloctns'!$F$109:$S$109,$E$1:$R$1))","v":0},{"$f":"('[2]21-23 Cap Proj  Sur Alloctns'!G12*F$1)/(SUMPRODUCT('[2]21-23 Cap Proj  Sur Alloctns'!$F$109:$S$109,$E$1:$R$1))","v":0},{"$f":"('[2]21-23 Cap Proj  Sur Alloctns'!H12*G$1)/(SUMPRODUCT('[2]21-23 Cap Proj  Sur Alloctns'!$F$109:$S$109,$E$1:$R$1))","v":7.7597143605220539E-4},{"$f":"('[2]21-23 Cap Proj  Sur Alloctns'!I12*H$1)/(SUMPRODUCT('[2]21-23 Cap Proj  Sur Alloctns'!$F$109:$S$109,$E$1:$R$1))","v":5.2131974255860769E-3},{"$f":"('[2]21-23 Cap Proj  Sur Alloctns'!J12*I$1)/(SUMPRODUCT('[2]21-23 Cap Proj  Sur Alloctns'!$F$109:$S$109,$E$1:$R$1))","v":0},{"$f":"('[2]21-23 Cap Proj  Sur Alloctns'!K12*J$1)/(SUMPRODUCT('[2]21-23 Cap Proj  Sur Alloctns'!$F$109:$S$109,$E$1:$R$1))","v":0},{"$f":"('[2]21-23 Cap Proj  Sur Alloctns'!L12*K$1)/(SUMPRODUCT('[2]21-23 Cap Proj  Sur Alloctns'!$F$109:$S$109,$E$1:$R$1))","v":0},{"$f":"('[2]21-23 Cap Proj  Sur Alloctns'!M12*L$1)/(SUMPRODUCT('[2]21-23 Cap Proj  Sur Alloctns'!$F$109:$S$109,$E$1:$R$1))","v":0},{"$f":"('[2]21-23 Cap Proj  Sur Alloctns'!N12*M$1)/(SUMPRODUCT('[2]21-23 Cap Proj  Sur Alloctns'!$F$109:$S$109,$E$1:$R$1))","v":0},{"$f":"('[2]21-23 Cap Proj  Sur Alloctns'!O12*N$1)/(SUMPRODUCT('[2]21-23 Cap Proj  Sur Alloctns'!$F$109:$S$109,$E$1:$R$1))","v":0},{"$f":"('[2]21-23 Cap Proj  Sur Alloctns'!P12*O$1)/(SUMPRODUCT('[2]21-23 Cap Proj  Sur Alloctns'!$F$109:$S$109,$E$1:$R$1))","v":0},{"$f":"('[2]21-23 Cap Proj  Sur Alloctns'!Q12*P$1)/(SUMPRODUCT('[2]21-23 Cap Proj  Sur Alloctns'!$F$109:$S$109,$E$1:$R$1))","v":0},{"$f":"('[2]21-23 Cap Proj  Sur Alloctns'!R12*Q$1)/(SUMPRODUCT('[2]21-23 Cap Proj  Sur Alloctns'!$F$109:$S$109,$E$1:$R$1))","v":0},{"$f":"('[2]21-23 Cap Proj  Sur Alloctns'!S12*R$1)/(SUMPRODUCT('[2]21-23 Cap Proj  Sur Alloctns'!$F$109:$S$109,$E$1:$R$1))","v":0},0,0,0,0,0,0,0,0,0,0,0,0,0,0,0,0,0,0,0,0]
[null,"040","Statute Law Committee (Code Revisor)",8.3822566237415404E-3,{"$f":"('[2]21-23 Cap Proj  Sur Alloctns'!F13*E$1)/(SUMPRODUCT('[2]21-23 Cap Proj  Sur Alloctns'!$F$109:$S$109,$E$1:$R$1))","v":0},{"$f":"('[2]21-23 Cap Proj  Sur Alloctns'!G13*F$1)/(SUMPRODUCT('[2]21-23 Cap Proj  Sur Alloctns'!$F$109:$S$109,$E$1:$R$1))","v":0},{"$f":"('[2]21-23 Cap Proj  Sur Alloctns'!H13*G$1)/(SUMPRODUCT('[2]21-23 Cap Proj  Sur Alloctns'!$F$109:$S$109,$E$1:$R$1))","v":0},{"$f":"('[2]21-23 Cap Proj  Sur Alloctns'!I13*H$1)/(SUMPRODUCT('[2]21-23 Cap Proj  Sur Alloctns'!$F$109:$S$109,$E$1:$R$1))","v":8.3822566237415404E-3},{"$f":"('[2]21-23 Cap Proj  Sur Alloctns'!J13*I$1)/(SUMPRODUCT('[2]21-23 Cap Proj  Sur Alloctns'!$F$109:$S$109,$E$1:$R$1))","v":0},{"$f":"('[2]21-23 Cap Proj  Sur Alloctns'!K13*J$1)/(SUMPRODUCT('[2]21-23 Cap Proj  Sur Alloctns'!$F$109:$S$109,$E$1:$R$1))","v":0},{"$f":"('[2]21-23 Cap Proj  Sur Alloctns'!L13*K$1)/(SUMPRODUCT('[2]21-23 Cap Proj  Sur Alloctns'!$F$109:$S$109,$E$1:$R$1))","v":0},{"$f":"('[2]21-23 Cap Proj  Sur Alloctns'!M13*L$1)/(SUMPRODUCT('[2]21-23 Cap Proj  Sur Alloctns'!$F$109:$S$109,$E$1:$R$1))","v":0},{"$f":"('[2]21-23 Cap Proj  Sur Alloctns'!N13*M$1)/(SUMPRODUCT('[2]21-23 Cap Proj  Sur Alloctns'!$F$109:$S$109,$E$1:$R$1))","v":0},{"$f":"('[2]21-23 Cap Proj  Sur Alloctns'!O13*N$1)/(SUMPRODUCT('[2]21-23 Cap Proj  Sur Alloctns'!$F$109:$S$109,$E$1:$R$1))","v":0},{"$f":"('[2]21-23 Cap Proj  Sur Alloctns'!P13*O$1)/(SUMPRODUCT('[2]21-23 Cap Proj  Sur Alloctns'!$F$109:$S$109,$E$1:$R$1))","v":0},{"$f":"('[2]21-23 Cap Proj  Sur Alloctns'!Q13*P$1)/(SUMPRODUCT('[2]21-23 Cap Proj  Sur Alloctns'!$F$109:$S$109,$E$1:$R$1))","v":0},{"$f":"('[2]21-23 Cap Proj  Sur Alloctns'!R13*Q$1)/(SUMPRODUCT('[2]21-23 Cap Proj  Sur Alloctns'!$F$109:$S$109,$E$1:$R$1))","v":0},{"$f":"('[2]21-23 Cap Proj  Sur Alloctns'!S13*R$1)/(SUMPRODUCT('[2]21-23 Cap Proj  Sur Alloctns'!$F$109:$S$109,$E$1:$R$1))","v":0},0,0,0,0,0,0,0,0,0,0,0,0,0,0,0,0,0,0,0,0]
[null,"045","Supreme Court",2.3041531530719032E-2,{"$f":"('[2]21-23 Cap Proj  Sur Alloctns'!F14*E$1)/(SUMPRODUCT('[2]21-23 Cap Proj  Sur Alloctns'!$F$109:$S$109,$E$1:$R$1))","v":0},{"$f":"('[2]21-23 Cap Proj  Sur Alloctns'!G14*F$1)/(SUMPRODUCT('[2]21-23 Cap Proj  Sur Alloctns'!$F$109:$S$109,$E$1:$R$1))","v":0},{"$f":"('[2]21-23 Cap Proj  Sur Alloctns'!H14*G$1)/(SUMPRODUCT('[2]21-23 Cap Proj  Sur Alloctns'!$F$109:$S$109,$E$1:$R$1))","v":0},{"$f":"('[2]21-23 Cap Proj  Sur Alloctns'!I14*H$1)/(SUMPRODUCT('[2]21-23 Cap Proj  Sur Alloctns'!$F$109:$S$109,$E$1:$R$1))","v":0},{"$f":"('[2]21-23 Cap Proj  Sur Alloctns'!J14*I$1)/(SUMPRODUCT('[2]21-23 Cap Proj  Sur Alloctns'!$F$109:$S$109,$E$1:$R$1))","v":0},{"$f":"('[2]21-23 Cap Proj  Sur Alloctns'!K14*J$1)/(SUMPRODUCT('[2]21-23 Cap Proj  Sur Alloctns'!$F$109:$S$109,$E$1:$R$1))","v":0},{"$f":"('[2]21-23 Cap Proj  Sur Alloctns'!L14*K$1)/(SUMPRODUCT('[2]21-23 Cap Proj  Sur Alloctns'!$F$109:$S$109,$E$1:$R$1))","v":0},{"$f":"('[2]21-23 Cap Proj  Sur Alloctns'!M14*L$1)/(SUMPRODUCT('[2]21-23 Cap Proj  Sur Alloctns'!$F$109:$S$109,$E$1:$R$1))","v":0},{"$f":"('[2]21-23 Cap Proj  Sur Alloctns'!N14*M$1)/(SUMPRODUCT('[2]21-23 Cap Proj  Sur Alloctns'!$F$109:$S$109,$E$1:$R$1))","v":0},{"$f":"('[2]21-23 Cap Proj  Sur Alloctns'!O14*N$1)/(SUMPRODUCT('[2]21-23 Cap Proj  Sur Alloctns'!$F$109:$S$109,$E$1:$R$1))","v":0},{"$f":"('[2]21-23 Cap Proj  Sur Alloctns'!P14*O$1)/(SUMPRODUCT('[2]21-23 Cap Proj  Sur Alloctns'!$F$109:$S$109,$E$1:$R$1))","v":0},{"$f":"('[2]21-23 Cap Proj  Sur Alloctns'!Q14*P$1)/(SUMPRODUCT('[2]21-23 Cap Proj  Sur Alloctns'!$F$109:$S$109,$E$1:$R$1))","v":0},{"$f":"('[2]21-23 Cap Proj  Sur Alloctns'!R14*Q$1)/(SUMPRODUCT('[2]21-23 Cap Proj  Sur Alloctns'!$F$109:$S$109,$E$1:$R$1))","v":2.3041531530719032E-2},{"$f":"('[2]21-23 Cap Proj  Sur Alloctns'!S14*R$1)/(SUMPRODUCT('[2]21-23 Cap Proj  Sur Alloctns'!$F$109:$S$109,$E$1:$R$1))","v":0},0,0,0,0,0,0,0,0,0,0,0,0,0,0,0,0,0,0,0,0]
[null,"046","Law Library",1.0467128259888806E-2,{"$f":"('[2]21-23 Cap Proj  Sur Alloctns'!F15*E$1)/(SUMPRODUCT('[2]21-23 Cap Proj  Sur Alloctns'!$F$109:$S$109,$E$1:$R$1))","v":0},{"$f":"('[2]21-23 Cap Proj  Sur Alloctns'!G15*F$1)/(SUMPRODUCT('[2]21-23 Cap Proj  Sur Alloctns'!$F$109:$S$109,$E$1:$R$1))","v":0},{"$f":"('[2]21-23 Cap Proj  Sur Alloctns'!H15*G$1)/(SUMPRODUCT('[2]21-23 Cap Proj  Sur Alloctns'!$F$109:$S$109,$E$1:$R$1))","v":0},{"$f":"('[2]21-23 Cap Proj  Sur Alloctns'!I15*H$1)/(SUMPRODUCT('[2]21-23 Cap Proj  Sur Alloctns'!$F$109:$S$109,$E$1:$R$1))","v":0},{"$f":"('[2]21-23 Cap Proj  Sur Alloctns'!J15*I$1)/(SUMPRODUCT('[2]21-23 Cap Proj  Sur Alloctns'!$F$109:$S$109,$E$1:$R$1))","v":0},{"$f":"('[2]21-23 Cap Proj  Sur Alloctns'!K15*J$1)/(SUMPRODUCT('[2]21-23 Cap Proj  Sur Alloctns'!$F$109:$S$109,$E$1:$R$1))","v":0},{"$f":"('[2]21-23 Cap Proj  Sur Alloctns'!L15*K$1)/(SUMPRODUCT('[2]21-23 Cap Proj  Sur Alloctns'!$F$109:$S$109,$E$1:$R$1))","v":0},{"$f":"('[2]21-23 Cap Proj  Sur Alloctns'!M15*L$1)/(SUMPRODUCT('[2]21-23 Cap Proj  Sur Alloctns'!$F$109:$S$109,$E$1:$R$1))","v":0},{"$f":"('[2]21-23 Cap Proj  Sur Alloctns'!N15*M$1)/(SUMPRODUCT('[2]21-23 Cap Proj  Sur Alloctns'!$F$109:$S$109,$E$1:$R$1))","v":0},{"$f":"('[2]21-23 Cap Proj  Sur Alloctns'!O15*N$1)/(SUMPRODUCT('[2]21-23 Cap Proj  Sur Alloctns'!$F$109:$S$109,$E$1:$R$1))","v":0},{"$f":"('[2]21-23 Cap Proj  Sur Alloctns'!P15*O$1)/(SUMPRODUCT('[2]21-23 Cap Proj  Sur Alloctns'!$F$109:$S$109,$E$1:$R$1))","v":0},{"$f":"('[2]21-23 Cap Proj  Sur Alloctns'!Q15*P$1)/(SUMPRODUCT('[2]21-23 Cap Proj  Sur Alloctns'!$F$109:$S$109,$E$1:$R$1))","v":0},{"$f":"('[2]21-23 Cap Proj  Sur Alloctns'!R15*Q$1)/(SUMPRODUCT('[2]21-23 Cap Proj  Sur Alloctns'!$F$109:$S$109,$E$1:$R$1))","v":1.0467128259888806E-2},{"$f":"('[2]21-23 Cap Proj  Sur Alloctns'!S15*R$1)/(SUMPRODUCT('[2]21-23 Cap Proj  Sur Alloctns'!$F$109:$S$109,$E$1:$R$1))","v":0},0,0,0,0,0,0,0,0,0,0,0,0,0,0,0,0,0,0,0,0]
[null,"048","Court of Appeals",0,{"$f":"('[2]21-23 Cap Proj  Sur Alloctns'!F16*E$1)/(SUMPRODUCT('[2]21-23 Cap Proj  Sur Alloctns'!$F$109:$S$109,$E$1:$R$1))","v":0},{"$f":"('[2]21-23 Cap Proj  Sur Alloctns'!G16*F$1)/(SUMPRODUCT('[2]21-23 Cap Proj  Sur Alloctns'!$F$109:$S$109,$E$1:$R$1))","v":0},{"$f":"('[2]21-23 Cap Proj  Sur Alloctns'!H16*G$1)/(SUMPRODUCT('[2]21-23 Cap Proj  Sur Alloctns'!$F$109:$S$109,$E$1:$R$1))","v":0},{"$f":"('[2]21-23 Cap Proj  Sur Alloctns'!I16*H$1)/(SUMPRODUCT('[2]21-23 Cap Proj  Sur Alloctns'!$F$109:$S$109,$E$1:$R$1))","v":0},{"$f":"('[2]21-23 Cap Proj  Sur Alloctns'!J16*I$1)/(SUMPRODUCT('[2]21-23 Cap Proj  Sur Alloctns'!$F$109:$S$109,$E$1:$R$1))","v":0},{"$f":"('[2]21-23 Cap Proj  Sur Alloctns'!K16*J$1)/(SUMPRODUCT('[2]21-23 Cap Proj  Sur Alloctns'!$F$109:$S$109,$E$1:$R$1))","v":0},{"$f":"('[2]21-23 Cap Proj  Sur Alloctns'!L16*K$1)/(SUMPRODUCT('[2]21-23 Cap Proj  Sur Alloctns'!$F$109:$S$109,$E$1:$R$1))","v":0},{"$f":"('[2]21-23 Cap Proj  Sur Alloctns'!M16*L$1)/(SUMPRODUCT('[2]21-23 Cap Proj  Sur Alloctns'!$F$109:$S$109,$E$1:$R$1))","v":0},{"$f":"('[2]21-23 Cap Proj  Sur Alloctns'!N16*M$1)/(SUMPRODUCT('[2]21-23 Cap Proj  Sur Alloctns'!$F$109:$S$109,$E$1:$R$1))","v":0},{"$f":"('[2]21-23 Cap Proj  Sur Alloctns'!O16*N$1)/(SUMPRODUCT('[2]21-23 Cap Proj  Sur Alloctns'!$F$109:$S$109,$E$1:$R$1))","v":0},{"$f":"('[2]21-23 Cap Proj  Sur Alloctns'!P16*O$1)/(SUMPRODUCT('[2]21-23 Cap Proj  Sur Alloctns'!$F$109:$S$109,$E$1:$R$1))","v":0},{"$f":"('[2]21-23 Cap Proj  Sur Alloctns'!Q16*P$1)/(SUMPRODUCT('[2]21-23 Cap Proj  Sur Alloctns'!$F$109:$S$109,$E$1:$R$1))","v":0},{"$f":"('[2]21-23 Cap Proj  Sur Alloctns'!R16*Q$1)/(SUMPRODUCT('[2]21-23 Cap Proj  Sur Alloctns'!$F$109:$S$109,$E$1:$R$1))","v":0},{"$f":"('[2]21-23 Cap Proj  Sur Alloctns'!S16*R$1)/(SUMPRODUCT('[2]21-23 Cap Proj  Sur Alloctns'!$F$109:$S$109,$E$1:$R$1))","v":0},0,0,0,0,0,0,0,0,0,0,0,0,0,0,0,0,0,0,0,0]
[null,"050","Commission on Judicial Conduct",0,{"$f":"('[2]21-23 Cap Proj  Sur Alloctns'!F17*E$1)/(SUMPRODUCT('[2]21-23 Cap Proj  Sur Alloctns'!$F$109:$S$109,$E$1:$R$1))","v":0},{"$f":"('[2]21-23 Cap Proj  Sur Alloctns'!G17*F$1)/(SUMPRODUCT('[2]21-23 Cap Proj  Sur Alloctns'!$F$109:$S$109,$E$1:$R$1))","v":0},{"$f":"('[2]21-23 Cap Proj  Sur Alloctns'!H17*G$1)/(SUMPRODUCT('[2]21-23 Cap Proj  Sur Alloctns'!$F$109:$S$109,$E$1:$R$1))","v":0},{"$f":"('[2]21-23 Cap Proj  Sur Alloctns'!I17*H$1)/(SUMPRODUCT('[2]21-23 Cap Proj  Sur Alloctns'!$F$109:$S$109,$E$1:$R$1))","v":0},{"$f":"('[2]21-23 Cap Proj  Sur Alloctns'!J17*I$1)/(SUMPRODUCT('[2]21-23 Cap Proj  Sur Alloctns'!$F$109:$S$109,$E$1:$R$1))","v":0},{"$f":"('[2]21-23 Cap Proj  Sur Alloctns'!K17*J$1)/(SUMPRODUCT('[2]21-23 Cap Proj  Sur Alloctns'!$F$109:$S$109,$E$1:$R$1))","v":0},{"$f":"('[2]21-23 Cap Proj  Sur Alloctns'!L17*K$1)/(SUMPRODUCT('[2]21-23 Cap Proj  Sur Alloctns'!$F$109:$S$109,$E$1:$R$1))","v":0},{"$f":"('[2]21-23 Cap Proj  Sur Alloctns'!M17*L$1)/(SUMPRODUCT('[2]21-23 Cap Proj  Sur Alloctns'!$F$109:$S$109,$E$1:$R$1))","v":0},{"$f":"('[2]21-23 Cap Proj  Sur Alloctns'!N17*M$1)/(SUMPRODUCT('[2]21-23 Cap Proj  Sur Alloctns'!$F$109:$S$109,$E$1:$R$1))","v":0},{"$f":"('[2]21-23 Cap Proj  Sur Alloctns'!O17*N$1)/(SUMPRODUCT('[2]21-23 Cap Proj  Sur Alloctns'!$F$109:$S$109,$E$1:$R$1))","v":0},{"$f":"('[2]21-23 Cap Proj  Sur Alloctns'!P17*O$1)/(SUMPRODUCT('[2]21-23 Cap Proj  Sur Alloctns'!$F$109:$S$109,$E$1:$R$1))","v":0},{"$f":"('[2]21-23 Cap Proj  Sur Alloctns'!Q17*P$1)/(SUMPRODUCT('[2]21-23 Cap Proj  Sur Alloctns'!$F$109:$S$109,$E$1:$R$1))","v":0},{"$f":"('[2]21-23 Cap Proj  Sur Alloctns'!R17*Q$1)/(SUMPRODUCT('[2]21-23 Cap Proj  Sur Alloctns'!$F$109:$S$109,$E$1:$R$1))","v":0},{"$f":"('[2]21-23 Cap Proj  Sur Alloctns'!S17*R$1)/(SUMPRODUCT('[2]21-23 Cap Proj  Sur Alloctns'!$F$109:$S$109,$E$1:$R$1))","v":0},0,0,0,0,0,0,0,0,0,0,0,0,0,0,0,0,0,0,0,0]
[null,"055","Administrative Office of the Courts",2.8859620075747379E-3,{"$f":"('[2]21-23 Cap Proj  Sur Alloctns'!F18*E$1)/(SUMPRODUCT('[2]21-23 Cap Proj  Sur Alloctns'!$F$109:$S$109,$E$1:$R$1))","v":0},{"$f":"('[2]21-23 Cap Proj  Sur Alloctns'!G18*F$1)/(SUMPRODUCT('[2]21-23 Cap Proj  Sur Alloctns'!$F$109:$S$109,$E$1:$R$1))","v":0},{"$f":"('[2]21-23 Cap Proj  Sur Alloctns'!H18*G$1)/(SUMPRODUCT('[2]21-23 Cap Proj  Sur Alloctns'!$F$109:$S$109,$E$1:$R$1))","v":0},{"$f":"('[2]21-23 Cap Proj  Sur Alloctns'!I18*H$1)/(SUMPRODUCT('[2]21-23 Cap Proj  Sur Alloctns'!$F$109:$S$109,$E$1:$R$1))","v":0},{"$f":"('[2]21-23 Cap Proj  Sur Alloctns'!J18*I$1)/(SUMPRODUCT('[2]21-23 Cap Proj  Sur Alloctns'!$F$109:$S$109,$E$1:$R$1))","v":0},{"$f":"('[2]21-23 Cap Proj  Sur Alloctns'!K18*J$1)/(SUMPRODUCT('[2]21-23 Cap Proj  Sur Alloctns'!$F$109:$S$109,$E$1:$R$1))","v":0},{"$f":"('[2]21-23 Cap Proj  Sur Alloctns'!L18*K$1)/(SUMPRODUCT('[2]21-23 Cap Proj  Sur Alloctns'!$F$109:$S$109,$E$1:$R$1))","v":0},{"$f":"('[2]21-23 Cap Proj  Sur Alloctns'!M18*L$1)/(SUMPRODUCT('[2]21-23 Cap Proj  Sur Alloctns'!$F$109:$S$109,$E$1:$R$1))","v":0},{"$f":"('[2]21-23 Cap Proj  Sur Alloctns'!N18*M$1)/(SUMPRODUCT('[2]21-23 Cap Proj  Sur Alloctns'!$F$109:$S$109,$E$1:$R$1))","v":0},{"$f":"('[2]21-23 Cap Proj  Sur Alloctns'!O18*N$1)/(SUMPRODUCT('[2]21-23 Cap Proj  Sur Alloctns'!$F$109:$S$109,$E$1:$R$1))","v":0},{"$f":"('[2]21-23 Cap Proj  Sur Alloctns'!P18*O$1)/(SUMPRODUCT('[2]21-23 Cap Proj  Sur Alloctns'!$F$109:$S$109,$E$1:$R$1))","v":0},{"$f":"('[2]21-23 Cap Proj  Sur Alloctns'!Q18*P$1)/(SUMPRODUCT('[2]21-23 Cap Proj  Sur Alloctns'!$F$109:$S$109,$E$1:$R$1))","v":0},{"$f":"('[2]21-23 Cap Proj  Sur Alloctns'!R18*Q$1)/(SUMPRODUCT('[2]21-23 Cap Proj  Sur Alloctns'!$F$109:$S$109,$E$1:$R$1))","v":2.8859620075747379E-3},{"$f":"('[2]21-23 Cap Proj  Sur Alloctns'!S18*R$1)/(SUMPRODUCT('[2]21-23 Cap Proj  Sur Alloctns'!$F$109:$S$109,$E$1:$R$1))","v":0},0,0,0,0,0,0,0,0,0,0,0,0,0,0,0,0,0,0,0,0]
[null,"056","Office of Public Defense",0,{"$f":"('[2]21-23 Cap Proj  Sur Alloctns'!F19*E$1)/(SUMPRODUCT('[2]21-23 Cap Proj  Sur Alloctns'!$F$109:$S$109,$E$1:$R$1))","v":0},{"$f":"('[2]21-23 Cap Proj  Sur Alloctns'!G19*F$1)/(SUMPRODUCT('[2]21-23 Cap Proj  Sur Alloctns'!$F$109:$S$109,$E$1:$R$1))","v":0},{"$f":"('[2]21-23 Cap Proj  Sur Alloctns'!H19*G$1)/(SUMPRODUCT('[2]21-23 Cap Proj  Sur Alloctns'!$F$109:$S$109,$E$1:$R$1))","v":0},{"$f":"('[2]21-23 Cap Proj  Sur Alloctns'!I19*H$1)/(SUMPRODUCT('[2]21-23 Cap Proj  Sur Alloctns'!$F$109:$S$109,$E$1:$R$1))","v":0},{"$f":"('[2]21-23 Cap Proj  Sur Alloctns'!J19*I$1)/(SUMPRODUCT('[2]21-23 Cap Proj  Sur Alloctns'!$F$109:$S$109,$E$1:$R$1))","v":0},{"$f":"('[2]21-23 Cap Proj  Sur Alloctns'!K19*J$1)/(SUMPRODUCT('[2]21-23 Cap Proj  Sur Alloctns'!$F$109:$S$109,$E$1:$R$1))","v":0},{"$f":"('[2]21-23 Cap Proj  Sur Alloctns'!L19*K$1)/(SUMPRODUCT('[2]21-23 Cap Proj  Sur Alloctns'!$F$109:$S$109,$E$1:$R$1))","v":0},{"$f":"('[2]21-23 Cap Proj  Sur Alloctns'!M19*L$1)/(SUMPRODUCT('[2]21-23 Cap Proj  Sur Alloctns'!$F$109:$S$109,$E$1:$R$1))","v":0},{"$f":"('[2]21-23 Cap Proj  Sur Alloctns'!N19*M$1)/(SUMPRODUCT('[2]21-23 Cap Proj  Sur Alloctns'!$F$109:$S$109,$E$1:$R$1))","v":0},{"$f":"('[2]21-23 Cap Proj  Sur Alloctns'!O19*N$1)/(SUMPRODUCT('[2]21-23 Cap Proj  Sur Alloctns'!$F$109:$S$109,$E$1:$R$1))","v":0},{"$f":"('[2]21-23 Cap Proj  Sur Alloctns'!P19*O$1)/(SUMPRODUCT('[2]21-23 Cap Proj  Sur Alloctns'!$F$109:$S$109,$E$1:$R$1))","v":0},{"$f":"('[2]21-23 Cap Proj  Sur Alloctns'!Q19*P$1)/(SUMPRODUCT('[2]21-23 Cap Proj  Sur Alloctns'!$F$109:$S$109,$E$1:$R$1))","v":0},{"$f":"('[2]21-23 Cap Proj  Sur Alloctns'!R19*Q$1)/(SUMPRODUCT('[2]21-23 Cap Proj  Sur Alloctns'!$F$109:$S$109,$E$1:$R$1))","v":0},{"$f":"('[2]21-23 Cap Proj  Sur Alloctns'!S19*R$1)/(SUMPRODUCT('[2]21-23 Cap Proj  Sur Alloctns'!$F$109:$S$109,$E$1:$R$1))","v":0},0,0,0,0,0,0,0,0,0,0,0,0,0,0,0,0,0,0,0,0]
[null,"057","Office of Civil Legal Aid",0,{"$f":"('[2]21-23 Cap Proj  Sur Alloctns'!F20*E$1)/(SUMPRODUCT('[2]21-23 Cap Proj  Sur Alloctns'!$F$109:$S$109,$E$1:$R$1))","v":0},{"$f":"('[2]21-23 Cap Proj  Sur Alloctns'!G20*F$1)/(SUMPRODUCT('[2]21-23 Cap Proj  Sur Alloctns'!$F$109:$S$109,$E$1:$R$1))","v":0},{"$f":"('[2]21-23 Cap Proj  Sur Alloctns'!H20*G$1)/(SUMPRODUCT('[2]21-23 Cap Proj  Sur Alloctns'!$F$109:$S$109,$E$1:$R$1))","v":0},{"$f":"('[2]21-23 Cap Proj  Sur Alloctns'!I20*H$1)/(SUMPRODUCT('[2]21-23 Cap Proj  Sur Alloctns'!$F$109:$S$109,$E$1:$R$1))","v":0},{"$f":"('[2]21-23 Cap Proj  Sur Alloctns'!J20*I$1)/(SUMPRODUCT('[2]21-23 Cap Proj  Sur Alloctns'!$F$109:$S$109,$E$1:$R$1))","v":0},{"$f":"('[2]21-23 Cap Proj  Sur Alloctns'!K20*J$1)/(SUMPRODUCT('[2]21-23 Cap Proj  Sur Alloctns'!$F$109:$S$109,$E$1:$R$1))","v":0},{"$f":"('[2]21-23 Cap Proj  Sur Alloctns'!L20*K$1)/(SUMPRODUCT('[2]21-23 Cap Proj  Sur Alloctns'!$F$109:$S$109,$E$1:$R$1))","v":0},{"$f":"('[2]21-23 Cap Proj  Sur Alloctns'!M20*L$1)/(SUMPRODUCT('[2]21-23 Cap Proj  Sur Alloctns'!$F$109:$S$109,$E$1:$R$1))","v":0},{"$f":"('[2]21-23 Cap Proj  Sur Alloctns'!N20*M$1)/(SUMPRODUCT('[2]21-23 Cap Proj  Sur Alloctns'!$F$109:$S$109,$E$1:$R$1))","v":0},{"$f":"('[2]21-23 Cap Proj  Sur Alloctns'!O20*N$1)/(SUMPRODUCT('[2]21-23 Cap Proj  Sur Alloctns'!$F$109:$S$109,$E$1:$R$1))","v":0},{"$f":"('[2]21-23 Cap Proj  Sur Alloctns'!P20*O$1)/(SUMPRODUCT('[2]21-23 Cap Proj  Sur Alloctns'!$F$109:$S$109,$E$1:$R$1))","v":0},{"$f":"('[2]21-23 Cap Proj  Sur Alloctns'!Q20*P$1)/(SUMPRODUCT('[2]21-23 Cap Proj  Sur Alloctns'!$F$109:$S$109,$E$1:$R$1))","v":0},{"$f":"('[2]21-23 Cap Proj  Sur Alloctns'!R20*Q$1)/(SUMPRODUCT('[2]21-23 Cap Proj  Sur Alloctns'!$F$109:$S$109,$E$1:$R$1))","v":0},{"$f":"('[2]21-23 Cap Proj  Sur Alloctns'!S20*R$1)/(SUMPRODUCT('[2]21-23 Cap Proj  Sur Alloctns'!$F$109:$S$109,$E$1:$R$1))","v":0},0,0,0,0,0,0,0,0,0,0,0,0,0,0,0,0,0,0,0,0]
[null,"075","Office of the Governor",1.1715607237054164E-2,{"$f":"('[2]21-23 Cap Proj  Sur Alloctns'!F21*E$1)/(SUMPRODUCT('[2]21-23 Cap Proj  Sur Alloctns'!$F$109:$S$109,$E$1:$R$1))","v":0},{"$f":"('[2]21-23 Cap Proj  Sur Alloctns'!G21*F$1)/(SUMPRODUCT('[2]21-23 Cap Proj  Sur Alloctns'!$F$109:$S$109,$E$1:$R$1))","v":0},{"$f":"('[2]21-23 Cap Proj  Sur Alloctns'!H21*G$1)/(SUMPRODUCT('[2]21-23 Cap Proj  Sur Alloctns'!$F$109:$S$109,$E$1:$R$1))","v":1.1715607237054164E-2},{"$f":"('[2]21-23 Cap Proj  Sur Alloctns'!I21*H$1)/(SUMPRODUCT('[2]21-23 Cap Proj  Sur Alloctns'!$F$109:$S$109,$E$1:$R$1))","v":0},{"$f":"('[2]21-23 Cap Proj  Sur Alloctns'!J21*I$1)/(SUMPRODUCT('[2]21-23 Cap Proj  Sur Alloctns'!$F$109:$S$109,$E$1:$R$1))","v":0},{"$f":"('[2]21-23 Cap Proj  Sur Alloctns'!K21*J$1)/(SUMPRODUCT('[2]21-23 Cap Proj  Sur Alloctns'!$F$109:$S$109,$E$1:$R$1))","v":0},{"$f":"('[2]21-23 Cap Proj  Sur Alloctns'!L21*K$1)/(SUMPRODUCT('[2]21-23 Cap Proj  Sur Alloctns'!$F$109:$S$109,$E$1:$R$1))","v":0},{"$f":"('[2]21-23 Cap Proj  Sur Alloctns'!M21*L$1)/(SUMPRODUCT('[2]21-23 Cap Proj  Sur Alloctns'!$F$109:$S$109,$E$1:$R$1))","v":0},{"$f":"('[2]21-23 Cap Proj  Sur Alloctns'!N21*M$1)/(SUMPRODUCT('[2]21-23 Cap Proj  Sur Alloctns'!$F$109:$S$109,$E$1:$R$1))","v":0},{"$f":"('[2]21-23 Cap Proj  Sur Alloctns'!O21*N$1)/(SUMPRODUCT('[2]21-23 Cap Proj  Sur Alloctns'!$F$109:$S$109,$E$1:$R$1))","v":0},{"$f":"('[2]21-23 Cap Proj  Sur Alloctns'!P21*O$1)/(SUMPRODUCT('[2]21-23 Cap Proj  Sur Alloctns'!$F$109:$S$109,$E$1:$R$1))","v":0},{"$f":"('[2]21-23 Cap Proj  Sur Alloctns'!Q21*P$1)/(SUMPRODUCT('[2]21-23 Cap Proj  Sur Alloctns'!$F$109:$S$109,$E$1:$R$1))","v":0},{"$f":"('[2]21-23 Cap Proj  Sur Alloctns'!R21*Q$1)/(SUMPRODUCT('[2]21-23 Cap Proj  Sur Alloctns'!$F$109:$S$109,$E$1:$R$1))","v":0},{"$f":"('[2]21-23 Cap Proj  Sur Alloctns'!S21*R$1)/(SUMPRODUCT('[2]21-23 Cap Proj  Sur Alloctns'!$F$109:$S$109,$E$1:$R$1))","v":0},0,0,0,0,0,0,0,0,0,0,0,0,0,0,0,0,0,0,0,0]
[null,"080","Office of Lieutenant Governor",6.0244711491927129E-3,{"$f":"('[2]21-23 Cap Proj  Sur Alloctns'!F22*E$1)/(SUMPRODUCT('[2]21-23 Cap Proj  Sur Alloctns'!$F$109:$S$109,$E$1:$R$1))","v":0},{"$f":"('[2]21-23 Cap Proj  Sur Alloctns'!G22*F$1)/(SUMPRODUCT('[2]21-23 Cap Proj  Sur Alloctns'!$F$109:$S$109,$E$1:$R$1))","v":0},{"$f":"('[2]21-23 Cap Proj  Sur Alloctns'!H22*G$1)/(SUMPRODUCT('[2]21-23 Cap Proj  Sur Alloctns'!$F$109:$S$109,$E$1:$R$1))","v":6.0244711491927129E-3},{"$f":"('[2]21-23 Cap Proj  Sur Alloctns'!I22*H$1)/(SUMPRODUCT('[2]21-23 Cap Proj  Sur Alloctns'!$F$109:$S$109,$E$1:$R$1))","v":0},{"$f":"('[2]21-23 Cap Proj  Sur Alloctns'!J22*I$1)/(SUMPRODUCT('[2]21-23 Cap Proj  Sur Alloctns'!$F$109:$S$109,$E$1:$R$1))","v":0},{"$f":"('[2]21-23 Cap Proj  Sur Alloctns'!K22*J$1)/(SUMPRODUCT('[2]21-23 Cap Proj  Sur Alloctns'!$F$109:$S$109,$E$1:$R$1))","v":0},{"$f":"('[2]21-23 Cap Proj  Sur Alloctns'!L22*K$1)/(SUMPRODUCT('[2]21-23 Cap Proj  Sur Alloctns'!$F$109:$S$109,$E$1:$R$1))","v":0},{"$f":"('[2]21-23 Cap Proj  Sur Alloctns'!M22*L$1)/(SUMPRODUCT('[2]21-23 Cap Proj  Sur Alloctns'!$F$109:$S$109,$E$1:$R$1))","v":0},{"$f":"('[2]21-23 Cap Proj  Sur Alloctns'!N22*M$1)/(SUMPRODUCT('[2]21-23 Cap Proj  Sur Alloctns'!$F$109:$S$109,$E$1:$R$1))","v":0},{"$f":"('[2]21-23 Cap Proj  Sur Alloctns'!O22*N$1)/(SUMPRODUCT('[2]21-23 Cap Proj  Sur Alloctns'!$F$109:$S$109,$E$1:$R$1))","v":0},{"$f":"('[2]21-23 Cap Proj  Sur Alloctns'!P22*O$1)/(SUMPRODUCT('[2]21-23 Cap Proj  Sur Alloctns'!$F$109:$S$109,$E$1:$R$1))","v":0},{"$f":"('[2]21-23 Cap Proj  Sur Alloctns'!Q22*P$1)/(SUMPRODUCT('[2]21-23 Cap Proj  Sur Alloctns'!$F$109:$S$109,$E$1:$R$1))","v":0},{"$f":"('[2]21-23 Cap Proj  Sur Alloctns'!R22*Q$1)/(SUMPRODUCT('[2]21-23 Cap Proj  Sur Alloctns'!$F$109:$S$109,$E$1:$R$1))","v":0},{"$f":"('[2]21-23 Cap Proj  Sur Alloctns'!S22*R$1)/(SUMPRODUCT('[2]21-23 Cap Proj  Sur Alloctns'!$F$109:$S$109,$E$1:$R$1))","v":0},0,0,0,0,0,0,0,0,0,0,0,0,0,0,0,0,0,0,0,0]
[null,"082","Public Disclosure Commission",0,{"$f":"('[2]21-23 Cap Proj  Sur Alloctns'!F23*E$1)/(SUMPRODUCT('[2]21-23 Cap Proj  Sur Alloctns'!$F$109:$S$109,$E$1:$R$1))","v":0},{"$f":"('[2]21-23 Cap Proj  Sur Alloctns'!G23*F$1)/(SUMPRODUCT('[2]21-23 Cap Proj  Sur Alloctns'!$F$109:$S$109,$E$1:$R$1))","v":0},{"$f":"('[2]21-23 Cap Proj  Sur Alloctns'!H23*G$1)/(SUMPRODUCT('[2]21-23 Cap Proj  Sur Alloctns'!$F$109:$S$109,$E$1:$R$1))","v":0},{"$f":"('[2]21-23 Cap Proj  Sur Alloctns'!I23*H$1)/(SUMPRODUCT('[2]21-23 Cap Proj  Sur Alloctns'!$F$109:$S$109,$E$1:$R$1))","v":0},{"$f":"('[2]21-23 Cap Proj  Sur Alloctns'!J23*I$1)/(SUMPRODUCT('[2]21-23 Cap Proj  Sur Alloctns'!$F$109:$S$109,$E$1:$R$1))","v":0},{"$f":"('[2]21-23 Cap Proj  Sur Alloctns'!K23*J$1)/(SUMPRODUCT('[2]21-23 Cap Proj  Sur Alloctns'!$F$109:$S$109,$E$1:$R$1))","v":0},{"$f":"('[2]21-23 Cap Proj  Sur Alloctns'!L23*K$1)/(SUMPRODUCT('[2]21-23 Cap Proj  Sur Alloctns'!$F$109:$S$109,$E$1:$R$1))","v":0},{"$f":"('[2]21-23 Cap Proj  Sur Alloctns'!M23*L$1)/(SUMPRODUCT('[2]21-23 Cap Proj  Sur Alloctns'!$F$109:$S$109,$E$1:$R$1))","v":0},{"$f":"('[2]21-23 Cap Proj  Sur Alloctns'!N23*M$1)/(SUMPRODUCT('[2]21-23 Cap Proj  Sur Alloctns'!$F$109:$S$109,$E$1:$R$1))","v":0},{"$f":"('[2]21-23 Cap Proj  Sur Alloctns'!O23*N$1)/(SUMPRODUCT('[2]21-23 Cap Proj  Sur Alloctns'!$F$109:$S$109,$E$1:$R$1))","v":0},{"$f":"('[2]21-23 Cap Proj  Sur Alloctns'!P23*O$1)/(SUMPRODUCT('[2]21-23 Cap Proj  Sur Alloctns'!$F$109:$S$109,$E$1:$R$1))","v":0},{"$f":"('[2]21-23 Cap Proj  Sur Alloctns'!Q23*P$1)/(SUMPRODUCT('[2]21-23 Cap Proj  Sur Alloctns'!$F$109:$S$109,$E$1:$R$1))","v":0},{"$f":"('[2]21-23 Cap Proj  Sur Alloctns'!R23*Q$1)/(SUMPRODUCT('[2]21-23 Cap Proj  Sur Alloctns'!$F$109:$S$109,$E$1:$R$1))","v":0},{"$f":"('[2]21-23 Cap Proj  Sur Alloctns'!S23*R$1)/(SUMPRODUCT('[2]21-23 Cap Proj  Sur Alloctns'!$F$109:$S$109,$E$1:$R$1))","v":0},0,0,0,0,0,0,0,0,0,0,0,0,0,0,0,0,0,0,0,0]
[null,"085","Office of the Secretary of State",3.9749018005998803E-2,{"$f":"('[2]21-23 Cap Proj  Sur Alloctns'!F24*E$1)/(SUMPRODUCT('[2]21-23 Cap Proj  Sur Alloctns'!$F$109:$S$109,$E$1:$R$1))","v":0},{"$f":"('[2]21-23 Cap Proj  Sur Alloctns'!G24*F$1)/(SUMPRODUCT('[2]21-23 Cap Proj  Sur Alloctns'!$F$109:$S$109,$E$1:$R$1))","v":0},{"$f":"('[2]21-23 Cap Proj  Sur Alloctns'!H24*G$1)/(SUMPRODUCT('[2]21-23 Cap Proj  Sur Alloctns'!$F$109:$S$109,$E$1:$R$1))","v":7.2301800472055885E-3},{"$f":"('[2]21-23 Cap Proj  Sur Alloctns'!I24*H$1)/(SUMPRODUCT('[2]21-23 Cap Proj  Sur Alloctns'!$F$109:$S$109,$E$1:$R$1))","v":0},{"$f":"('[2]21-23 Cap Proj  Sur Alloctns'!J24*I$1)/(SUMPRODUCT('[2]21-23 Cap Proj  Sur Alloctns'!$F$109:$S$109,$E$1:$R$1))","v":0},{"$f":"('[2]21-23 Cap Proj  Sur Alloctns'!K24*J$1)/(SUMPRODUCT('[2]21-23 Cap Proj  Sur Alloctns'!$F$109:$S$109,$E$1:$R$1))","v":0},{"$f":"('[2]21-23 Cap Proj  Sur Alloctns'!L24*K$1)/(SUMPRODUCT('[2]21-23 Cap Proj  Sur Alloctns'!$F$109:$S$109,$E$1:$R$1))","v":3.2518837958793213E-2},{"$f":"('[2]21-23 Cap Proj  Sur Alloctns'!M24*L$1)/(SUMPRODUCT('[2]21-23 Cap Proj  Sur Alloctns'!$F$109:$S$109,$E$1:$R$1))","v":0},{"$f":"('[2]21-23 Cap Proj  Sur Alloctns'!N24*M$1)/(SUMPRODUCT('[2]21-23 Cap Proj  Sur Alloctns'!$F$109:$S$109,$E$1:$R$1))","v":0},{"$f":"('[2]21-23 Cap Proj  Sur Alloctns'!O24*N$1)/(SUMPRODUCT('[2]21-23 Cap Proj  Sur Alloctns'!$F$109:$S$109,$E$1:$R$1))","v":0},{"$f":"('[2]21-23 Cap Proj  Sur Alloctns'!P24*O$1)/(SUMPRODUCT('[2]21-23 Cap Proj  Sur Alloctns'!$F$109:$S$109,$E$1:$R$1))","v":0},{"$f":"('[2]21-23 Cap Proj  Sur Alloctns'!Q24*P$1)/(SUMPRODUCT('[2]21-23 Cap Proj  Sur Alloctns'!$F$109:$S$109,$E$1:$R$1))","v":0},{"$f":"('[2]21-23 Cap Proj  Sur Alloctns'!R24*Q$1)/(SUMPRODUCT('[2]21-23 Cap Proj  Sur Alloctns'!$F$109:$S$109,$E$1:$R$1))","v":0},{"$f":"('[2]21-23 Cap Proj  Sur Alloctns'!S24*R$1)/(SUMPRODUCT('[2]21-23 Cap Proj  Sur Alloctns'!$F$109:$S$109,$E$1:$R$1))","v":0},0,0,0,0,0,0,0,0,0,0,0,0,0,0,0,0,0,0,0,0]
[null,"086","Governor's Office of Indian Affairs",0,{"$f":"('[2]21-23 Cap Proj  Sur Alloctns'!F25*E$1)/(SUMPRODUCT('[2]21-23 Cap Proj  Sur Alloctns'!$F$109:$S$109,$E$1:$R$1))","v":0},{"$f":"('[2]21-23 Cap Proj  Sur Alloctns'!G25*F$1)/(SUMPRODUCT('[2]21-23 Cap Proj  Sur Alloctns'!$F$109:$S$109,$E$1:$R$1))","v":0},{"$f":"('[2]21-23 Cap Proj  Sur Alloctns'!H25*G$1)/(SUMPRODUCT('[2]21-23 Cap Proj  Sur Alloctns'!$F$109:$S$109,$E$1:$R$1))","v":0},{"$f":"('[2]21-23 Cap Proj  Sur Alloctns'!I25*H$1)/(SUMPRODUCT('[2]21-23 Cap Proj  Sur Alloctns'!$F$109:$S$109,$E$1:$R$1))","v":0},{"$f":"('[2]21-23 Cap Proj  Sur Alloctns'!J25*I$1)/(SUMPRODUCT('[2]21-23 Cap Proj  Sur Alloctns'!$F$109:$S$109,$E$1:$R$1))","v":0},{"$f":"('[2]21-23 Cap Proj  Sur Alloctns'!K25*J$1)/(SUMPRODUCT('[2]21-23 Cap Proj  Sur Alloctns'!$F$109:$S$109,$E$1:$R$1))","v":0},{"$f":"('[2]21-23 Cap Proj  Sur Alloctns'!L25*K$1)/(SUMPRODUCT('[2]21-23 Cap Proj  Sur Alloctns'!$F$109:$S$109,$E$1:$R$1))","v":0},{"$f":"('[2]21-23 Cap Proj  Sur Alloctns'!M25*L$1)/(SUMPRODUCT('[2]21-23 Cap Proj  Sur Alloctns'!$F$109:$S$109,$E$1:$R$1))","v":0},{"$f":"('[2]21-23 Cap Proj  Sur Alloctns'!N25*M$1)/(SUMPRODUCT('[2]21-23 Cap Proj  Sur Alloctns'!$F$109:$S$109,$E$1:$R$1))","v":0},{"$f":"('[2]21-23 Cap Proj  Sur Alloctns'!O25*N$1)/(SUMPRODUCT('[2]21-23 Cap Proj  Sur Alloctns'!$F$109:$S$109,$E$1:$R$1))","v":0},{"$f":"('[2]21-23 Cap Proj  Sur Alloctns'!P25*O$1)/(SUMPRODUCT('[2]21-23 Cap Proj  Sur Alloctns'!$F$109:$S$109,$E$1:$R$1))","v":0},{"$f":"('[2]21-23 Cap Proj  Sur Alloctns'!Q25*P$1)/(SUMPRODUCT('[2]21-23 Cap Proj  Sur Alloctns'!$F$109:$S$109,$E$1:$R$1))","v":0},{"$f":"('[2]21-23 Cap Proj  Sur Alloctns'!R25*Q$1)/(SUMPRODUCT('[2]21-23 Cap Proj  Sur Alloctns'!$F$109:$S$109,$E$1:$R$1))","v":0},{"$f":"('[2]21-23 Cap Proj  Sur Alloctns'!S25*R$1)/(SUMPRODUCT('[2]21-23 Cap Proj  Sur Alloctns'!$F$109:$S$109,$E$1:$R$1))","v":0},0,0,0,0,0,0,0,0,0,0,0,0,0,0,0,0,0,0,0,0]
[null,"087","Commission on Asian Pacific American Affairs",0,{"$f":"('[2]21-23 Cap Proj  Sur Alloctns'!F26*E$1)/(SUMPRODUCT('[2]21-23 Cap Proj  Sur Alloctns'!$F$109:$S$109,$E$1:$R$1))","v":0},{"$f":"('[2]21-23 Cap Proj  Sur Alloctns'!G26*F$1)/(SUMPRODUCT('[2]21-23 Cap Proj  Sur Alloctns'!$F$109:$S$109,$E$1:$R$1))","v":0},{"$f":"('[2]21-23 Cap Proj  Sur Alloctns'!H26*G$1)/(SUMPRODUCT('[2]21-23 Cap Proj  Sur Alloctns'!$F$109:$S$109,$E$1:$R$1))","v":0},{"$f":"('[2]21-23 Cap Proj  Sur Alloctns'!I26*H$1)/(SUMPRODUCT('[2]21-23 Cap Proj  Sur Alloctns'!$F$109:$S$109,$E$1:$R$1))","v":0},{"$f":"('[2]21-23 Cap Proj  Sur Alloctns'!J26*I$1)/(SUMPRODUCT('[2]21-23 Cap Proj  Sur Alloctns'!$F$109:$S$109,$E$1:$R$1))","v":0},{"$f":"('[2]21-23 Cap Proj  Sur Alloctns'!K26*J$1)/(SUMPRODUCT('[2]21-23 Cap Proj  Sur Alloctns'!$F$109:$S$109,$E$1:$R$1))","v":0},{"$f":"('[2]21-23 Cap Proj  Sur Alloctns'!L26*K$1)/(SUMPRODUCT('[2]21-23 Cap Proj  Sur Alloctns'!$F$109:$S$109,$E$1:$R$1))","v":0},{"$f":"('[2]21-23 Cap Proj  Sur Alloctns'!M26*L$1)/(SUMPRODUCT('[2]21-23 Cap Proj  Sur Alloctns'!$F$109:$S$109,$E$1:$R$1))","v":0},{"$f":"('[2]21-23 Cap Proj  Sur Alloctns'!N26*M$1)/(SUMPRODUCT('[2]21-23 Cap Proj  Sur Alloctns'!$F$109:$S$109,$E$1:$R$1))","v":0},{"$f":"('[2]21-23 Cap Proj  Sur Alloctns'!O26*N$1)/(SUMPRODUCT('[2]21-23 Cap Proj  Sur Alloctns'!$F$109:$S$109,$E$1:$R$1))","v":0},{"$f":"('[2]21-23 Cap Proj  Sur Alloctns'!P26*O$1)/(SUMPRODUCT('[2]21-23 Cap Proj  Sur Alloctns'!$F$109:$S$109,$E$1:$R$1))","v":0},{"$f":"('[2]21-23 Cap Proj  Sur Alloctns'!Q26*P$1)/(SUMPRODUCT('[2]21-23 Cap Proj  Sur Alloctns'!$F$109:$S$109,$E$1:$R$1))","v":0},{"$f":"('[2]21-23 Cap Proj  Sur Alloctns'!R26*Q$1)/(SUMPRODUCT('[2]21-23 Cap Proj  Sur Alloctns'!$F$109:$S$109,$E$1:$R$1))","v":0},{"$f":"('[2]21-23 Cap Proj  Sur Alloctns'!S26*R$1)/(SUMPRODUCT('[2]21-23 Cap Proj  Sur Alloctns'!$F$109:$S$109,$E$1:$R$1))","v":0},0,0,0,0,0,0,0,0,0,0,0,0,0,0,0,0,0,0,0,0]
[null,"090","Office of State Treasurer",7.2743079066486275E-3,{"$f":"('[2]21-23 Cap Proj  Sur Alloctns'!F27*E$1)/(SUMPRODUCT('[2]21-23 Cap Proj  Sur Alloctns'!$F$109:$S$109,$E$1:$R$1))","v":0},{"$f":"('[2]21-23 Cap Proj  Sur Alloctns'!G27*F$1)/(SUMPRODUCT('[2]21-23 Cap Proj  Sur Alloctns'!$F$109:$S$109,$E$1:$R$1))","v":0},{"$f":"('[2]21-23 Cap Proj  Sur Alloctns'!H27*G$1)/(SUMPRODUCT('[2]21-23 Cap Proj  Sur Alloctns'!$F$109:$S$109,$E$1:$R$1))","v":7.2743079066486275E-3},{"$f":"('[2]21-23 Cap Proj  Sur Alloctns'!I27*H$1)/(SUMPRODUCT('[2]21-23 Cap Proj  Sur Alloctns'!$F$109:$S$109,$E$1:$R$1))","v":0},{"$f":"('[2]21-23 Cap Proj  Sur Alloctns'!J27*I$1)/(SUMPRODUCT('[2]21-23 Cap Proj  Sur Alloctns'!$F$109:$S$109,$E$1:$R$1))","v":0},{"$f":"('[2]21-23 Cap Proj  Sur Alloctns'!K27*J$1)/(SUMPRODUCT('[2]21-23 Cap Proj  Sur Alloctns'!$F$109:$S$109,$E$1:$R$1))","v":0},{"$f":"('[2]21-23 Cap Proj  Sur Alloctns'!L27*K$1)/(SUMPRODUCT('[2]21-23 Cap Proj  Sur Alloctns'!$F$109:$S$109,$E$1:$R$1))","v":0},{"$f":"('[2]21-23 Cap Proj  Sur Alloctns'!M27*L$1)/(SUMPRODUCT('[2]21-23 Cap Proj  Sur Alloctns'!$F$109:$S$109,$E$1:$R$1))","v":0},{"$f":"('[2]21-23 Cap Proj  Sur Alloctns'!N27*M$1)/(SUMPRODUCT('[2]21-23 Cap Proj  Sur Alloctns'!$F$109:$S$109,$E$1:$R$1))","v":0},{"$f":"('[2]21-23 Cap Proj  Sur Alloctns'!O27*N$1)/(SUMPRODUCT('[2]21-23 Cap Proj  Sur Alloctns'!$F$109:$S$109,$E$1:$R$1))","v":0},{"$f":"('[2]21-23 Cap Proj  Sur Alloctns'!P27*O$1)/(SUMPRODUCT('[2]21-23 Cap Proj  Sur Alloctns'!$F$109:$S$109,$E$1:$R$1))","v":0},{"$f":"('[2]21-23 Cap Proj  Sur Alloctns'!Q27*P$1)/(SUMPRODUCT('[2]21-23 Cap Proj  Sur Alloctns'!$F$109:$S$109,$E$1:$R$1))","v":0},{"$f":"('[2]21-23 Cap Proj  Sur Alloctns'!R27*Q$1)/(SUMPRODUCT('[2]21-23 Cap Proj  Sur Alloctns'!$F$109:$S$109,$E$1:$R$1))","v":0},{"$f":"('[2]21-23 Cap Proj  Sur Alloctns'!S27*R$1)/(SUMPRODUCT('[2]21-23 Cap Proj  Sur Alloctns'!$F$109:$S$109,$E$1:$R$1))","v":0},0,0,0,0,0,0,0,0,0,0,0,0,0,0,0,0,0,0,0,0]
[null,"095","Office of State Auditor",4.3530436115194584E-3,{"$f":"('[2]21-23 Cap Proj  Sur Alloctns'!F28*E$1)/(SUMPRODUCT('[2]21-23 Cap Proj  Sur Alloctns'!$F$109:$S$109,$E$1:$R$1))","v":0},{"$f":"('[2]21-23 Cap Proj  Sur Alloctns'!G28*F$1)/(SUMPRODUCT('[2]21-23 Cap Proj  Sur Alloctns'!$F$109:$S$109,$E$1:$R$1))","v":0},{"$f":"('[2]21-23 Cap Proj  Sur Alloctns'!H28*G$1)/(SUMPRODUCT('[2]21-23 Cap Proj  Sur Alloctns'!$F$109:$S$109,$E$1:$R$1))","v":0},{"$f":"('[2]21-23 Cap Proj  Sur Alloctns'!I28*H$1)/(SUMPRODUCT('[2]21-23 Cap Proj  Sur Alloctns'!$F$109:$S$109,$E$1:$R$1))","v":0},{"$f":"('[2]21-23 Cap Proj  Sur Alloctns'!J28*I$1)/(SUMPRODUCT('[2]21-23 Cap Proj  Sur Alloctns'!$F$109:$S$109,$E$1:$R$1))","v":0},{"$f":"('[2]21-23 Cap Proj  Sur Alloctns'!K28*J$1)/(SUMPRODUCT('[2]21-23 Cap Proj  Sur Alloctns'!$F$109:$S$109,$E$1:$R$1))","v":0},{"$f":"('[2]21-23 Cap Proj  Sur Alloctns'!L28*K$1)/(SUMPRODUCT('[2]21-23 Cap Proj  Sur Alloctns'!$F$109:$S$109,$E$1:$R$1))","v":0},{"$f":"('[2]21-23 Cap Proj  Sur Alloctns'!M28*L$1)/(SUMPRODUCT('[2]21-23 Cap Proj  Sur Alloctns'!$F$109:$S$109,$E$1:$R$1))","v":0},{"$f":"('[2]21-23 Cap Proj  Sur Alloctns'!N28*M$1)/(SUMPRODUCT('[2]21-23 Cap Proj  Sur Alloctns'!$F$109:$S$109,$E$1:$R$1))","v":0},{"$f":"('[2]21-23 Cap Proj  Sur Alloctns'!O28*N$1)/(SUMPRODUCT('[2]21-23 Cap Proj  Sur Alloctns'!$F$109:$S$109,$E$1:$R$1))","v":0},{"$f":"('[2]21-23 Cap Proj  Sur Alloctns'!P28*O$1)/(SUMPRODUCT('[2]21-23 Cap Proj  Sur Alloctns'!$F$109:$S$109,$E$1:$R$1))","v":4.3530436115194584E-3},{"$f":"('[2]21-23 Cap Proj  Sur Alloctns'!Q28*P$1)/(SUMPRODUCT('[2]21-23 Cap Proj  Sur Alloctns'!$F$109:$S$109,$E$1:$R$1))","v":0},{"$f":"('[2]21-23 Cap Proj  Sur Alloctns'!R28*Q$1)/(SUMPRODUCT('[2]21-23 Cap Proj  Sur Alloctns'!$F$109:$S$109,$E$1:$R$1))","v":0},{"$f":"('[2]21-23 Cap Proj  Sur Alloctns'!S28*R$1)/(SUMPRODUCT('[2]21-23 Cap Proj  Sur Alloctns'!$F$109:$S$109,$E$1:$R$1))","v":0},0,0,0,0,0,0,0,0,0,0,0,0,0,0,0,0,0,0,0,0]
[null,"099","Citizens' Commission on Salaries for Elected Officials",0,{"$f":"('[2]21-23 Cap Proj  Sur Alloctns'!F29*E$1)/(SUMPRODUCT('[2]21-23 Cap Proj  Sur Alloctns'!$F$109:$S$109,$E$1:$R$1))","v":0},{"$f":"('[2]21-23 Cap Proj  Sur Alloctns'!G29*F$1)/(SUMPRODUCT('[2]21-23 Cap Proj  Sur Alloctns'!$F$109:$S$109,$E$1:$R$1))","v":0},{"$f":"('[2]21-23 Cap Proj  Sur Alloctns'!H29*G$1)/(SUMPRODUCT('[2]21-23 Cap Proj  Sur Alloctns'!$F$109:$S$109,$E$1:$R$1))","v":0},{"$f":"('[2]21-23 Cap Proj  Sur Alloctns'!I29*H$1)/(SUMPRODUCT('[2]21-23 Cap Proj  Sur Alloctns'!$F$109:$S$109,$E$1:$R$1))","v":0},{"$f":"('[2]21-23 Cap Proj  Sur Alloctns'!J29*I$1)/(SUMPRODUCT('[2]21-23 Cap Proj  Sur Alloctns'!$F$109:$S$109,$E$1:$R$1))","v":0},{"$f":"('[2]21-23 Cap Proj  Sur Alloctns'!K29*J$1)/(SUMPRODUCT('[2]21-23 Cap Proj  Sur Alloctns'!$F$109:$S$109,$E$1:$R$1))","v":0},{"$f":"('[2]21-23 Cap Proj  Sur Alloctns'!L29*K$1)/(SUMPRODUCT('[2]21-23 Cap Proj  Sur Alloctns'!$F$109:$S$109,$E$1:$R$1))","v":0},{"$f":"('[2]21-23 Cap Proj  Sur Alloctns'!M29*L$1)/(SUMPRODUCT('[2]21-23 Cap Proj  Sur Alloctns'!$F$109:$S$109,$E$1:$R$1))","v":0},{"$f":"('[2]21-23 Cap Proj  Sur Alloctns'!N29*M$1)/(SUMPRODUCT('[2]21-23 Cap Proj  Sur Alloctns'!$F$109:$S$109,$E$1:$R$1))","v":0},{"$f":"('[2]21-23 Cap Proj  Sur Alloctns'!O29*N$1)/(SUMPRODUCT('[2]21-23 Cap Proj  Sur Alloctns'!$F$109:$S$109,$E$1:$R$1))","v":0},{"$f":"('[2]21-23 Cap Proj  Sur Alloctns'!P29*O$1)/(SUMPRODUCT('[2]21-23 Cap Proj  Sur Alloctns'!$F$109:$S$109,$E$1:$R$1))","v":0},{"$f":"('[2]21-23 Cap Proj  Sur Alloctns'!Q29*P$1)/(SUMPRODUCT('[2]21-23 Cap Proj  Sur Alloctns'!$F$109:$S$109,$E$1:$R$1))","v":0},{"$f":"('[2]21-23 Cap Proj  Sur Alloctns'!R29*Q$1)/(SUMPRODUCT('[2]21-23 Cap Proj  Sur Alloctns'!$F$109:$S$109,$E$1:$R$1))","v":0},{"$f":"('[2]21-23 Cap Proj  Sur Alloctns'!S29*R$1)/(SUMPRODUCT('[2]21-23 Cap Proj  Sur Alloctns'!$F$109:$S$109,$E$1:$R$1))","v":0},0,0,0,0,0,0,0,0,0,0,0,0,0,0,0,0,0,0,0,0]
[null,"100","Office of Attorney General",4.1266862981434123E-2,{"$f":"('[2]21-23 Cap Proj  Sur Alloctns'!F30*E$1)/(SUMPRODUCT('[2]21-23 Cap Proj  Sur Alloctns'!$F$109:$S$109,$E$1:$R$1))","v":0},{"$f":"('[2]21-23 Cap Proj  Sur Alloctns'!G30*F$1)/(SUMPRODUCT('[2]21-23 Cap Proj  Sur Alloctns'!$F$109:$S$109,$E$1:$R$1))","v":0},{"$f":"('[2]21-23 Cap Proj  Sur Alloctns'!H30*G$1)/(SUMPRODUCT('[2]21-23 Cap Proj  Sur Alloctns'!$F$109:$S$109,$E$1:$R$1))","v":0},{"$f":"('[2]21-23 Cap Proj  Sur Alloctns'!I30*H$1)/(SUMPRODUCT('[2]21-23 Cap Proj  Sur Alloctns'!$F$109:$S$109,$E$1:$R$1))","v":0},{"$f":"('[2]21-23 Cap Proj  Sur Alloctns'!J30*I$1)/(SUMPRODUCT('[2]21-23 Cap Proj  Sur Alloctns'!$F$109:$S$109,$E$1:$R$1))","v":4.1266862981434123E-2},{"$f":"('[2]21-23 Cap Proj  Sur Alloctns'!K30*J$1)/(SUMPRODUCT('[2]21-23 Cap Proj  Sur Alloctns'!$F$109:$S$109,$E$1:$R$1))","v":0},{"$f":"('[2]21-23 Cap Proj  Sur Alloctns'!L30*K$1)/(SUMPRODUCT('[2]21-23 Cap Proj  Sur Alloctns'!$F$109:$S$109,$E$1:$R$1))","v":0},{"$f":"('[2]21-23 Cap Proj  Sur Alloctns'!M30*L$1)/(SUMPRODUCT('[2]21-23 Cap Proj  Sur Alloctns'!$F$109:$S$109,$E$1:$R$1))","v":0},{"$f":"('[2]21-23 Cap Proj  Sur Alloctns'!N30*M$1)/(SUMPRODUCT('[2]21-23 Cap Proj  Sur Alloctns'!$F$109:$S$109,$E$1:$R$1))","v":0},{"$f":"('[2]21-23 Cap Proj  Sur Alloctns'!O30*N$1)/(SUMPRODUCT('[2]21-23 Cap Proj  Sur Alloctns'!$F$109:$S$109,$E$1:$R$1))","v":0},{"$f":"('[2]21-23 Cap Proj  Sur Alloctns'!P30*O$1)/(SUMPRODUCT('[2]21-23 Cap Proj  Sur Alloctns'!$F$109:$S$109,$E$1:$R$1))","v":0},{"$f":"('[2]21-23 Cap Proj  Sur Alloctns'!Q30*P$1)/(SUMPRODUCT('[2]21-23 Cap Proj  Sur Alloctns'!$F$109:$S$109,$E$1:$R$1))","v":0},{"$f":"('[2]21-23 Cap Proj  Sur Alloctns'!R30*Q$1)/(SUMPRODUCT('[2]21-23 Cap Proj  Sur Alloctns'!$F$109:$S$109,$E$1:$R$1))","v":0},{"$f":"('[2]21-23 Cap Proj  Sur Alloctns'!S30*R$1)/(SUMPRODUCT('[2]21-23 Cap Proj  Sur Alloctns'!$F$109:$S$109,$E$1:$R$1))","v":0},0,0,0,0,0,0,0,0,0,0,0,0,0,0,0,0,0,0,0,0]
[null,"101","Caseload Forecast Council",0,{"$f":"('[2]21-23 Cap Proj  Sur Alloctns'!F31*E$1)/(SUMPRODUCT('[2]21-23 Cap Proj  Sur Alloctns'!$F$109:$S$109,$E$1:$R$1))","v":0},{"$f":"('[2]21-23 Cap Proj  Sur Alloctns'!G31*F$1)/(SUMPRODUCT('[2]21-23 Cap Proj  Sur Alloctns'!$F$109:$S$109,$E$1:$R$1))","v":0},{"$f":"('[2]21-23 Cap Proj  Sur Alloctns'!H31*G$1)/(SUMPRODUCT('[2]21-23 Cap Proj  Sur Alloctns'!$F$109:$S$109,$E$1:$R$1))","v":0},{"$f":"('[2]21-23 Cap Proj  Sur Alloctns'!I31*H$1)/(SUMPRODUCT('[2]21-23 Cap Proj  Sur Alloctns'!$F$109:$S$109,$E$1:$R$1))","v":0},{"$f":"('[2]21-23 Cap Proj  Sur Alloctns'!J31*I$1)/(SUMPRODUCT('[2]21-23 Cap Proj  Sur Alloctns'!$F$109:$S$109,$E$1:$R$1))","v":0},{"$f":"('[2]21-23 Cap Proj  Sur Alloctns'!K31*J$1)/(SUMPRODUCT('[2]21-23 Cap Proj  Sur Alloctns'!$F$109:$S$109,$E$1:$R$1))","v":0},{"$f":"('[2]21-23 Cap Proj  Sur Alloctns'!L31*K$1)/(SUMPRODUCT('[2]21-23 Cap Proj  Sur Alloctns'!$F$109:$S$109,$E$1:$R$1))","v":0},{"$f":"('[2]21-23 Cap Proj  Sur Alloctns'!M31*L$1)/(SUMPRODUCT('[2]21-23 Cap Proj  Sur Alloctns'!$F$109:$S$109,$E$1:$R$1))","v":0},{"$f":"('[2]21-23 Cap Proj  Sur Alloctns'!N31*M$1)/(SUMPRODUCT('[2]21-23 Cap Proj  Sur Alloctns'!$F$109:$S$109,$E$1:$R$1))","v":0},{"$f":"('[2]21-23 Cap Proj  Sur Alloctns'!O31*N$1)/(SUMPRODUCT('[2]21-23 Cap Proj  Sur Alloctns'!$F$109:$S$109,$E$1:$R$1))","v":0},{"$f":"('[2]21-23 Cap Proj  Sur Alloctns'!P31*O$1)/(SUMPRODUCT('[2]21-23 Cap Proj  Sur Alloctns'!$F$109:$S$109,$E$1:$R$1))","v":0},{"$f":"('[2]21-23 Cap Proj  Sur Alloctns'!Q31*P$1)/(SUMPRODUCT('[2]21-23 Cap Proj  Sur Alloctns'!$F$109:$S$109,$E$1:$R$1))","v":0},{"$f":"('[2]21-23 Cap Proj  Sur Alloctns'!R31*Q$1)/(SUMPRODUCT('[2]21-23 Cap Proj  Sur Alloctns'!$F$109:$S$109,$E$1:$R$1))","v":0},{"$f":"('[2]21-23 Cap Proj  Sur Alloctns'!S31*R$1)/(SUMPRODUCT('[2]21-23 Cap Proj  Sur Alloctns'!$F$109:$S$109,$E$1:$R$1))","v":0},0,0,0,0,0,0,0,0,0,0,0,0,0,0,0,0,0,0,0,0]
[null,"102","Department of Financial Institutions",0,{"$f":"('[2]21-23 Cap Proj  Sur Alloctns'!F32*E$1)/(SUMPRODUCT('[2]21-23 Cap Proj  Sur Alloctns'!$F$109:$S$109,$E$1:$R$1))","v":0},{"$f":"('[2]21-23 Cap Proj  Sur Alloctns'!G32*F$1)/(SUMPRODUCT('[2]21-23 Cap Proj  Sur Alloctns'!$F$109:$S$109,$E$1:$R$1))","v":0},{"$f":"('[2]21-23 Cap Proj  Sur Alloctns'!H32*G$1)/(SUMPRODUCT('[2]21-23 Cap Proj  Sur Alloctns'!$F$109:$S$109,$E$1:$R$1))","v":0},{"$f":"('[2]21-23 Cap Proj  Sur Alloctns'!I32*H$1)/(SUMPRODUCT('[2]21-23 Cap Proj  Sur Alloctns'!$F$109:$S$109,$E$1:$R$1))","v":0},{"$f":"('[2]21-23 Cap Proj  Sur Alloctns'!J32*I$1)/(SUMPRODUCT('[2]21-23 Cap Proj  Sur Alloctns'!$F$109:$S$109,$E$1:$R$1))","v":0},{"$f":"('[2]21-23 Cap Proj  Sur Alloctns'!K32*J$1)/(SUMPRODUCT('[2]21-23 Cap Proj  Sur Alloctns'!$F$109:$S$109,$E$1:$R$1))","v":0},{"$f":"('[2]21-23 Cap Proj  Sur Alloctns'!L32*K$1)/(SUMPRODUCT('[2]21-23 Cap Proj  Sur Alloctns'!$F$109:$S$109,$E$1:$R$1))","v":0},{"$f":"('[2]21-23 Cap Proj  Sur Alloctns'!M32*L$1)/(SUMPRODUCT('[2]21-23 Cap Proj  Sur Alloctns'!$F$109:$S$109,$E$1:$R$1))","v":0},{"$f":"('[2]21-23 Cap Proj  Sur Alloctns'!N32*M$1)/(SUMPRODUCT('[2]21-23 Cap Proj  Sur Alloctns'!$F$109:$S$109,$E$1:$R$1))","v":0},{"$f":"('[2]21-23 Cap Proj  Sur Alloctns'!O32*N$1)/(SUMPRODUCT('[2]21-23 Cap Proj  Sur Alloctns'!$F$109:$S$109,$E$1:$R$1))","v":0},{"$f":"('[2]21-23 Cap Proj  Sur Alloctns'!P32*O$1)/(SUMPRODUCT('[2]21-23 Cap Proj  Sur Alloctns'!$F$109:$S$109,$E$1:$R$1))","v":0},{"$f":"('[2]21-23 Cap Proj  Sur Alloctns'!Q32*P$1)/(SUMPRODUCT('[2]21-23 Cap Proj  Sur Alloctns'!$F$109:$S$109,$E$1:$R$1))","v":0},{"$f":"('[2]21-23 Cap Proj  Sur Alloctns'!R32*Q$1)/(SUMPRODUCT('[2]21-23 Cap Proj  Sur Alloctns'!$F$109:$S$109,$E$1:$R$1))","v":0},{"$f":"('[2]21-23 Cap Proj  Sur Alloctns'!S32*R$1)/(SUMPRODUCT('[2]21-23 Cap Proj  Sur Alloctns'!$F$109:$S$109,$E$1:$R$1))","v":0},0,0,0,0,0,0,0,0,0,0,0,0,0,0,0,0,0,0,0,0]
[null,"103","Department of Commerce",0,{"$f":"('[2]21-23 Cap Proj  Sur Alloctns'!F33*E$1)/(SUMPRODUCT('[2]21-23 Cap Proj  Sur Alloctns'!$F$109:$S$109,$E$1:$R$1))","v":0},{"$f":"('[2]21-23 Cap Proj  Sur Alloctns'!G33*F$1)/(SUMPRODUCT('[2]21-23 Cap Proj  Sur Alloctns'!$F$109:$S$109,$E$1:$R$1))","v":0},{"$f":"('[2]21-23 Cap Proj  Sur Alloctns'!H33*G$1)/(SUMPRODUCT('[2]21-23 Cap Proj  Sur Alloctns'!$F$109:$S$109,$E$1:$R$1))","v":0},{"$f":"('[2]21-23 Cap Proj  Sur Alloctns'!I33*H$1)/(SUMPRODUCT('[2]21-23 Cap Proj  Sur Alloctns'!$F$109:$S$109,$E$1:$R$1))","v":0},{"$f":"('[2]21-23 Cap Proj  Sur Alloctns'!J33*I$1)/(SUMPRODUCT('[2]21-23 Cap Proj  Sur Alloctns'!$F$109:$S$109,$E$1:$R$1))","v":0},{"$f":"('[2]21-23 Cap Proj  Sur Alloctns'!K33*J$1)/(SUMPRODUCT('[2]21-23 Cap Proj  Sur Alloctns'!$F$109:$S$109,$E$1:$R$1))","v":0},{"$f":"('[2]21-23 Cap Proj  Sur Alloctns'!L33*K$1)/(SUMPRODUCT('[2]21-23 Cap Proj  Sur Alloctns'!$F$109:$S$109,$E$1:$R$1))","v":0},{"$f":"('[2]21-23 Cap Proj  Sur Alloctns'!M33*L$1)/(SUMPRODUCT('[2]21-23 Cap Proj  Sur Alloctns'!$F$109:$S$109,$E$1:$R$1))","v":0},{"$f":"('[2]21-23 Cap Proj  Sur Alloctns'!N33*M$1)/(SUMPRODUCT('[2]21-23 Cap Proj  Sur Alloctns'!$F$109:$S$109,$E$1:$R$1))","v":0},{"$f":"('[2]21-23 Cap Proj  Sur Alloctns'!O33*N$1)/(SUMPRODUCT('[2]21-23 Cap Proj  Sur Alloctns'!$F$109:$S$109,$E$1:$R$1))","v":0},{"$f":"('[2]21-23 Cap Proj  Sur Alloctns'!P33*O$1)/(SUMPRODUCT('[2]21-23 Cap Proj  Sur Alloctns'!$F$109:$S$109,$E$1:$R$1))","v":0},{"$f":"('[2]21-23 Cap Proj  Sur Alloctns'!Q33*P$1)/(SUMPRODUCT('[2]21-23 Cap Proj  Sur Alloctns'!$F$109:$S$109,$E$1:$R$1))","v":0},{"$f":"('[2]21-23 Cap Proj  Sur Alloctns'!R33*Q$1)/(SUMPRODUCT('[2]21-23 Cap Proj  Sur Alloctns'!$F$109:$S$109,$E$1:$R$1))","v":0},{"$f":"('[2]21-23 Cap Proj  Sur Alloctns'!S33*R$1)/(SUMPRODUCT('[2]21-23 Cap Proj  Sur Alloctns'!$F$109:$S$109,$E$1:$R$1))","v":0},0,0,0,0,0,0,0,0,0,0,0,0,0,0,0,0,0,0,0,0]
[null,"104","Economic and Revenue Forecast Council",0,{"$f":"('[2]21-23 Cap Proj  Sur Alloctns'!F34*E$1)/(SUMPRODUCT('[2]21-23 Cap Proj  Sur Alloctns'!$F$109:$S$109,$E$1:$R$1))","v":0},{"$f":"('[2]21-23 Cap Proj  Sur Alloctns'!G34*F$1)/(SUMPRODUCT('[2]21-23 Cap Proj  Sur Alloctns'!$F$109:$S$109,$E$1:$R$1))","v":0},{"$f":"('[2]21-23 Cap Proj  Sur Alloctns'!H34*G$1)/(SUMPRODUCT('[2]21-23 Cap Proj  Sur Alloctns'!$F$109:$S$109,$E$1:$R$1))","v":0},{"$f":"('[2]21-23 Cap Proj  Sur Alloctns'!I34*H$1)/(SUMPRODUCT('[2]21-23 Cap Proj  Sur Alloctns'!$F$109:$S$109,$E$1:$R$1))","v":0},{"$f":"('[2]21-23 Cap Proj  Sur Alloctns'!J34*I$1)/(SUMPRODUCT('[2]21-23 Cap Proj  Sur Alloctns'!$F$109:$S$109,$E$1:$R$1))","v":0},{"$f":"('[2]21-23 Cap Proj  Sur Alloctns'!K34*J$1)/(SUMPRODUCT('[2]21-23 Cap Proj  Sur Alloctns'!$F$109:$S$109,$E$1:$R$1))","v":0},{"$f":"('[2]21-23 Cap Proj  Sur Alloctns'!L34*K$1)/(SUMPRODUCT('[2]21-23 Cap Proj  Sur Alloctns'!$F$109:$S$109,$E$1:$R$1))","v":0},{"$f":"('[2]21-23 Cap Proj  Sur Alloctns'!M34*L$1)/(SUMPRODUCT('[2]21-23 Cap Proj  Sur Alloctns'!$F$109:$S$109,$E$1:$R$1))","v":0},{"$f":"('[2]21-23 Cap Proj  Sur Alloctns'!N34*M$1)/(SUMPRODUCT('[2]21-23 Cap Proj  Sur Alloctns'!$F$109:$S$109,$E$1:$R$1))","v":0},{"$f":"('[2]21-23 Cap Proj  Sur Alloctns'!O34*N$1)/(SUMPRODUCT('[2]21-23 Cap Proj  Sur Alloctns'!$F$109:$S$109,$E$1:$R$1))","v":0},{"$f":"('[2]21-23 Cap Proj  Sur Alloctns'!P34*O$1)/(SUMPRODUCT('[2]21-23 Cap Proj  Sur Alloctns'!$F$109:$S$109,$E$1:$R$1))","v":0},{"$f":"('[2]21-23 Cap Proj  Sur Alloctns'!Q34*P$1)/(SUMPRODUCT('[2]21-23 Cap Proj  Sur Alloctns'!$F$109:$S$109,$E$1:$R$1))","v":0},{"$f":"('[2]21-23 Cap Proj  Sur Alloctns'!R34*Q$1)/(SUMPRODUCT('[2]21-23 Cap Proj  Sur Alloctns'!$F$109:$S$109,$E$1:$R$1))","v":0},{"$f":"('[2]21-23 Cap Proj  Sur Alloctns'!S34*R$1)/(SUMPRODUCT('[2]21-23 Cap Proj  Sur Alloctns'!$F$109:$S$109,$E$1:$R$1))","v":0},0,0,0,0,0,0,0,0,0,0,0,0,0,0,0,0,0,0,0,0]
[null,"105","Office of Financial Management",2.8314471289089531E-2,{"$f":"('[2]21-23 Cap Proj  Sur Alloctns'!F35*E$1)/(SUMPRODUCT('[2]21-23 Cap Proj  Sur Alloctns'!$F$109:$S$109,$E$1:$R$1))","v":0},{"$f":"('[2]21-23 Cap Proj  Sur Alloctns'!G35*F$1)/(SUMPRODUCT('[2]21-23 Cap Proj  Sur Alloctns'!$F$109:$S$109,$E$1:$R$1))","v":0},{"$f":"('[2]21-23 Cap Proj  Sur Alloctns'!H35*G$1)/(SUMPRODUCT('[2]21-23 Cap Proj  Sur Alloctns'!$F$109:$S$109,$E$1:$R$1))","v":0},{"$f":"('[2]21-23 Cap Proj  Sur Alloctns'!I35*H$1)/(SUMPRODUCT('[2]21-23 Cap Proj  Sur Alloctns'!$F$109:$S$109,$E$1:$R$1))","v":0},{"$f":"('[2]21-23 Cap Proj  Sur Alloctns'!J35*I$1)/(SUMPRODUCT('[2]21-23 Cap Proj  Sur Alloctns'!$F$109:$S$109,$E$1:$R$1))","v":0},{"$f":"('[2]21-23 Cap Proj  Sur Alloctns'!K35*J$1)/(SUMPRODUCT('[2]21-23 Cap Proj  Sur Alloctns'!$F$109:$S$109,$E$1:$R$1))","v":0},{"$f":"('[2]21-23 Cap Proj  Sur Alloctns'!L35*K$1)/(SUMPRODUCT('[2]21-23 Cap Proj  Sur Alloctns'!$F$109:$S$109,$E$1:$R$1))","v":0},{"$f":"('[2]21-23 Cap Proj  Sur Alloctns'!M35*L$1)/(SUMPRODUCT('[2]21-23 Cap Proj  Sur Alloctns'!$F$109:$S$109,$E$1:$R$1))","v":0},{"$f":"('[2]21-23 Cap Proj  Sur Alloctns'!N35*M$1)/(SUMPRODUCT('[2]21-23 Cap Proj  Sur Alloctns'!$F$109:$S$109,$E$1:$R$1))","v":0},{"$f":"('[2]21-23 Cap Proj  Sur Alloctns'!O35*N$1)/(SUMPRODUCT('[2]21-23 Cap Proj  Sur Alloctns'!$F$109:$S$109,$E$1:$R$1))","v":0},{"$f":"('[2]21-23 Cap Proj  Sur Alloctns'!P35*O$1)/(SUMPRODUCT('[2]21-23 Cap Proj  Sur Alloctns'!$F$109:$S$109,$E$1:$R$1))","v":2.8314471289089531E-2},{"$f":"('[2]21-23 Cap Proj  Sur Alloctns'!Q35*P$1)/(SUMPRODUCT('[2]21-23 Cap Proj  Sur Alloctns'!$F$109:$S$109,$E$1:$R$1))","v":0},{"$f":"('[2]21-23 Cap Proj  Sur Alloctns'!R35*Q$1)/(SUMPRODUCT('[2]21-23 Cap Proj  Sur Alloctns'!$F$109:$S$109,$E$1:$R$1))","v":0},{"$f":"('[2]21-23 Cap Proj  Sur Alloctns'!S35*R$1)/(SUMPRODUCT('[2]21-23 Cap Proj  Sur Alloctns'!$F$109:$S$109,$E$1:$R$1))","v":0},0,0,0,0,0,0,0,0,0,0,0,0,0,0,0,0,0,0,0,0]
[null,"107","Washington State Health Care Authority",0,{"$f":"('[2]21-23 Cap Proj  Sur Alloctns'!F36*E$1)/(SUMPRODUCT('[2]21-23 Cap Proj  Sur Alloctns'!$F$109:$S$109,$E$1:$R$1))","v":0},{"$f":"('[2]21-23 Cap Proj  Sur Alloctns'!G36*F$1)/(SUMPRODUCT('[2]21-23 Cap Proj  Sur Alloctns'!$F$109:$S$109,$E$1:$R$1))","v":0},{"$f":"('[2]21-23 Cap Proj  Sur Alloctns'!H36*G$1)/(SUMPRODUCT('[2]21-23 Cap Proj  Sur Alloctns'!$F$109:$S$109,$E$1:$R$1))","v":0},{"$f":"('[2]21-23 Cap Proj  Sur Alloctns'!I36*H$1)/(SUMPRODUCT('[2]21-23 Cap Proj  Sur Alloctns'!$F$109:$S$109,$E$1:$R$1))","v":0},{"$f":"('[2]21-23 Cap Proj  Sur Alloctns'!J36*I$1)/(SUMPRODUCT('[2]21-23 Cap Proj  Sur Alloctns'!$F$109:$S$109,$E$1:$R$1))","v":0},{"$f":"('[2]21-23 Cap Proj  Sur Alloctns'!K36*J$1)/(SUMPRODUCT('[2]21-23 Cap Proj  Sur Alloctns'!$F$109:$S$109,$E$1:$R$1))","v":0},{"$f":"('[2]21-23 Cap Proj  Sur Alloctns'!L36*K$1)/(SUMPRODUCT('[2]21-23 Cap Proj  Sur Alloctns'!$F$109:$S$109,$E$1:$R$1))","v":0},{"$f":"('[2]21-23 Cap Proj  Sur Alloctns'!M36*L$1)/(SUMPRODUCT('[2]21-23 Cap Proj  Sur Alloctns'!$F$109:$S$109,$E$1:$R$1))","v":0},{"$f":"('[2]21-23 Cap Proj  Sur Alloctns'!N36*M$1)/(SUMPRODUCT('[2]21-23 Cap Proj  Sur Alloctns'!$F$109:$S$109,$E$1:$R$1))","v":0},{"$f":"('[2]21-23 Cap Proj  Sur Alloctns'!O36*N$1)/(SUMPRODUCT('[2]21-23 Cap Proj  Sur Alloctns'!$F$109:$S$109,$E$1:$R$1))","v":0},{"$f":"('[2]21-23 Cap Proj  Sur Alloctns'!P36*O$1)/(SUMPRODUCT('[2]21-23 Cap Proj  Sur Alloctns'!$F$109:$S$109,$E$1:$R$1))","v":0},{"$f":"('[2]21-23 Cap Proj  Sur Alloctns'!Q36*P$1)/(SUMPRODUCT('[2]21-23 Cap Proj  Sur Alloctns'!$F$109:$S$109,$E$1:$R$1))","v":0},{"$f":"('[2]21-23 Cap Proj  Sur Alloctns'!R36*Q$1)/(SUMPRODUCT('[2]21-23 Cap Proj  Sur Alloctns'!$F$109:$S$109,$E$1:$R$1))","v":0},{"$f":"('[2]21-23 Cap Proj  Sur Alloctns'!S36*R$1)/(SUMPRODUCT('[2]21-23 Cap Proj  Sur Alloctns'!$F$109:$S$109,$E$1:$R$1))","v":0},0,0,0,0,0,0,0,0,0,0,0,0,0,0,0,0,0,0,0,0]
[null,"110","Office of Administrative Hearings",0,{"$f":"('[2]21-23 Cap Proj  Sur Alloctns'!F37*E$1)/(SUMPRODUCT('[2]21-23 Cap Proj  Sur Alloctns'!$F$109:$S$109,$E$1:$R$1))","v":0},{"$f":"('[2]21-23 Cap Proj  Sur Alloctns'!G37*F$1)/(SUMPRODUCT('[2]21-23 Cap Proj  Sur Alloctns'!$F$109:$S$109,$E$1:$R$1))","v":0},{"$f":"('[2]21-23 Cap Proj  Sur Alloctns'!H37*G$1)/(SUMPRODUCT('[2]21-23 Cap Proj  Sur Alloctns'!$F$109:$S$109,$E$1:$R$1))","v":0},{"$f":"('[2]21-23 Cap Proj  Sur Alloctns'!I37*H$1)/(SUMPRODUCT('[2]21-23 Cap Proj  Sur Alloctns'!$F$109:$S$109,$E$1:$R$1))","v":0},{"$f":"('[2]21-23 Cap Proj  Sur Alloctns'!J37*I$1)/(SUMPRODUCT('[2]21-23 Cap Proj  Sur Alloctns'!$F$109:$S$109,$E$1:$R$1))","v":0},{"$f":"('[2]21-23 Cap Proj  Sur Alloctns'!K37*J$1)/(SUMPRODUCT('[2]21-23 Cap Proj  Sur Alloctns'!$F$109:$S$109,$E$1:$R$1))","v":0},{"$f":"('[2]21-23 Cap Proj  Sur Alloctns'!L37*K$1)/(SUMPRODUCT('[2]21-23 Cap Proj  Sur Alloctns'!$F$109:$S$109,$E$1:$R$1))","v":0},{"$f":"('[2]21-23 Cap Proj  Sur Alloctns'!M37*L$1)/(SUMPRODUCT('[2]21-23 Cap Proj  Sur Alloctns'!$F$109:$S$109,$E$1:$R$1))","v":0},{"$f":"('[2]21-23 Cap Proj  Sur Alloctns'!N37*M$1)/(SUMPRODUCT('[2]21-23 Cap Proj  Sur Alloctns'!$F$109:$S$109,$E$1:$R$1))","v":0},{"$f":"('[2]21-23 Cap Proj  Sur Alloctns'!O37*N$1)/(SUMPRODUCT('[2]21-23 Cap Proj  Sur Alloctns'!$F$109:$S$109,$E$1:$R$1))","v":0},{"$f":"('[2]21-23 Cap Proj  Sur Alloctns'!P37*O$1)/(SUMPRODUCT('[2]21-23 Cap Proj  Sur Alloctns'!$F$109:$S$109,$E$1:$R$1))","v":0},{"$f":"('[2]21-23 Cap Proj  Sur Alloctns'!Q37*P$1)/(SUMPRODUCT('[2]21-23 Cap Proj  Sur Alloctns'!$F$109:$S$109,$E$1:$R$1))","v":0},{"$f":"('[2]21-23 Cap Proj  Sur Alloctns'!R37*Q$1)/(SUMPRODUCT('[2]21-23 Cap Proj  Sur Alloctns'!$F$109:$S$109,$E$1:$R$1))","v":0},{"$f":"('[2]21-23 Cap Proj  Sur Alloctns'!S37*R$1)/(SUMPRODUCT('[2]21-23 Cap Proj  Sur Alloctns'!$F$109:$S$109,$E$1:$R$1))","v":0},0,0,0,0,0,0,0,0,0,0,0,0,0,0,0,0,0,0,0,0]
[null,"116","State Lottery",0,{"$f":"('[2]21-23 Cap Proj  Sur Alloctns'!F38*E$1)/(SUMPRODUCT('[2]21-23 Cap Proj  Sur Alloctns'!$F$109:$S$109,$E$1:$R$1))","v":0},{"$f":"('[2]21-23 Cap Proj  Sur Alloctns'!G38*F$1)/(SUMPRODUCT('[2]21-23 Cap Proj  Sur Alloctns'!$F$109:$S$109,$E$1:$R$1))","v":0},{"$f":"('[2]21-23 Cap Proj  Sur Alloctns'!H38*G$1)/(SUMPRODUCT('[2]21-23 Cap Proj  Sur Alloctns'!$F$109:$S$109,$E$1:$R$1))","v":0},{"$f":"('[2]21-23 Cap Proj  Sur Alloctns'!I38*H$1)/(SUMPRODUCT('[2]21-23 Cap Proj  Sur Alloctns'!$F$109:$S$109,$E$1:$R$1))","v":0},{"$f":"('[2]21-23 Cap Proj  Sur Alloctns'!J38*I$1)/(SUMPRODUCT('[2]21-23 Cap Proj  Sur Alloctns'!$F$109:$S$109,$E$1:$R$1))","v":0},{"$f":"('[2]21-23 Cap Proj  Sur Alloctns'!K38*J$1)/(SUMPRODUCT('[2]21-23 Cap Proj  Sur Alloctns'!$F$109:$S$109,$E$1:$R$1))","v":0},{"$f":"('[2]21-23 Cap Proj  Sur Alloctns'!L38*K$1)/(SUMPRODUCT('[2]21-23 Cap Proj  Sur Alloctns'!$F$109:$S$109,$E$1:$R$1))","v":0},{"$f":"('[2]21-23 Cap Proj  Sur Alloctns'!M38*L$1)/(SUMPRODUCT('[2]21-23 Cap Proj  Sur Alloctns'!$F$109:$S$109,$E$1:$R$1))","v":0},{"$f":"('[2]21-23 Cap Proj  Sur Alloctns'!N38*M$1)/(SUMPRODUCT('[2]21-23 Cap Proj  Sur Alloctns'!$F$109:$S$109,$E$1:$R$1))","v":0},{"$f":"('[2]21-23 Cap Proj  Sur Alloctns'!O38*N$1)/(SUMPRODUCT('[2]21-23 Cap Proj  Sur Alloctns'!$F$109:$S$109,$E$1:$R$1))","v":0},{"$f":"('[2]21-23 Cap Proj  Sur Alloctns'!P38*O$1)/(SUMPRODUCT('[2]21-23 Cap Proj  Sur Alloctns'!$F$109:$S$109,$E$1:$R$1))","v":0},{"$f":"('[2]21-23 Cap Proj  Sur Alloctns'!Q38*P$1)/(SUMPRODUCT('[2]21-23 Cap Proj  Sur Alloctns'!$F$109:$S$109,$E$1:$R$1))","v":0},{"$f":"('[2]21-23 Cap Proj  Sur Alloctns'!R38*Q$1)/(SUMPRODUCT('[2]21-23 Cap Proj  Sur Alloctns'!$F$109:$S$109,$E$1:$R$1))","v":0},{"$f":"('[2]21-23 Cap Proj  Sur Alloctns'!S38*R$1)/(SUMPRODUCT('[2]21-23 Cap Proj  Sur Alloctns'!$F$109:$S$109,$E$1:$R$1))","v":0},0,0,0,0,0,0,0,0,0,0,0,0,0,0,0,0,0,0,0,0]
[null,"117","Washington State Gambling Commission",0,{"$f":"('[2]21-23 Cap Proj  Sur Alloctns'!F39*E$1)/(SUMPRODUCT('[2]21-23 Cap Proj  Sur Alloctns'!$F$109:$S$109,$E$1:$R$1))","v":0},{"$f":"('[2]21-23 Cap Proj  Sur Alloctns'!G39*F$1)/(SUMPRODUCT('[2]21-23 Cap Proj  Sur Alloctns'!$F$109:$S$109,$E$1:$R$1))","v":0},{"$f":"('[2]21-23 Cap Proj  Sur Alloctns'!H39*G$1)/(SUMPRODUCT('[2]21-23 Cap Proj  Sur Alloctns'!$F$109:$S$109,$E$1:$R$1))","v":0},{"$f":"('[2]21-23 Cap Proj  Sur Alloctns'!I39*H$1)/(SUMPRODUCT('[2]21-23 Cap Proj  Sur Alloctns'!$F$109:$S$109,$E$1:$R$1))","v":0},{"$f":"('[2]21-23 Cap Proj  Sur Alloctns'!J39*I$1)/(SUMPRODUCT('[2]21-23 Cap Proj  Sur Alloctns'!$F$109:$S$109,$E$1:$R$1))","v":0},{"$f":"('[2]21-23 Cap Proj  Sur Alloctns'!K39*J$1)/(SUMPRODUCT('[2]21-23 Cap Proj  Sur Alloctns'!$F$109:$S$109,$E$1:$R$1))","v":0},{"$f":"('[2]21-23 Cap Proj  Sur Alloctns'!L39*K$1)/(SUMPRODUCT('[2]21-23 Cap Proj  Sur Alloctns'!$F$109:$S$109,$E$1:$R$1))","v":0},{"$f":"('[2]21-23 Cap Proj  Sur Alloctns'!M39*L$1)/(SUMPRODUCT('[2]21-23 Cap Proj  Sur Alloctns'!$F$109:$S$109,$E$1:$R$1))","v":0},{"$f":"('[2]21-23 Cap Proj  Sur Alloctns'!N39*M$1)/(SUMPRODUCT('[2]21-23 Cap Proj  Sur Alloctns'!$F$109:$S$109,$E$1:$R$1))","v":0},{"$f":"('[2]21-23 Cap Proj  Sur Alloctns'!O39*N$1)/(SUMPRODUCT('[2]21-23 Cap Proj  Sur Alloctns'!$F$109:$S$109,$E$1:$R$1))","v":0},{"$f":"('[2]21-23 Cap Proj  Sur Alloctns'!P39*O$1)/(SUMPRODUCT('[2]21-23 Cap Proj  Sur Alloctns'!$F$109:$S$109,$E$1:$R$1))","v":0},{"$f":"('[2]21-23 Cap Proj  Sur Alloctns'!Q39*P$1)/(SUMPRODUCT('[2]21-23 Cap Proj  Sur Alloctns'!$F$109:$S$109,$E$1:$R$1))","v":0},{"$f":"('[2]21-23 Cap Proj  Sur Alloctns'!R39*Q$1)/(SUMPRODUCT('[2]21-23 Cap Proj  Sur Alloctns'!$F$109:$S$109,$E$1:$R$1))","v":0},{"$f":"('[2]21-23 Cap Proj  Sur Alloctns'!S39*R$1)/(SUMPRODUCT('[2]21-23 Cap Proj  Sur Alloctns'!$F$109:$S$109,$E$1:$R$1))","v":0},0,0,0,0,0,0,0,0,0,0,0,0,0,0,0,0,0,0,0,0]
[null,"118","Commission on Hispanic Affairs",0,{"$f":"('[2]21-23 Cap Proj  Sur Alloctns'!F40*E$1)/(SUMPRODUCT('[2]21-23 Cap Proj  Sur Alloctns'!$F$109:$S$109,$E$1:$R$1))","v":0},{"$f":"('[2]21-23 Cap Proj  Sur Alloctns'!G40*F$1)/(SUMPRODUCT('[2]21-23 Cap Proj  Sur Alloctns'!$F$109:$S$109,$E$1:$R$1))","v":0},{"$f":"('[2]21-23 Cap Proj  Sur Alloctns'!H40*G$1)/(SUMPRODUCT('[2]21-23 Cap Proj  Sur Alloctns'!$F$109:$S$109,$E$1:$R$1))","v":0},{"$f":"('[2]21-23 Cap Proj  Sur Alloctns'!I40*H$1)/(SUMPRODUCT('[2]21-23 Cap Proj  Sur Alloctns'!$F$109:$S$109,$E$1:$R$1))","v":0},{"$f":"('[2]21-23 Cap Proj  Sur Alloctns'!J40*I$1)/(SUMPRODUCT('[2]21-23 Cap Proj  Sur Alloctns'!$F$109:$S$109,$E$1:$R$1))","v":0},{"$f":"('[2]21-23 Cap Proj  Sur Alloctns'!K40*J$1)/(SUMPRODUCT('[2]21-23 Cap Proj  Sur Alloctns'!$F$109:$S$109,$E$1:$R$1))","v":0},{"$f":"('[2]21-23 Cap Proj  Sur Alloctns'!L40*K$1)/(SUMPRODUCT('[2]21-23 Cap Proj  Sur Alloctns'!$F$109:$S$109,$E$1:$R$1))","v":0},{"$f":"('[2]21-23 Cap Proj  Sur Alloctns'!M40*L$1)/(SUMPRODUCT('[2]21-23 Cap Proj  Sur Alloctns'!$F$109:$S$109,$E$1:$R$1))","v":0},{"$f":"('[2]21-23 Cap Proj  Sur Alloctns'!N40*M$1)/(SUMPRODUCT('[2]21-23 Cap Proj  Sur Alloctns'!$F$109:$S$109,$E$1:$R$1))","v":0},{"$f":"('[2]21-23 Cap Proj  Sur Alloctns'!O40*N$1)/(SUMPRODUCT('[2]21-23 Cap Proj  Sur Alloctns'!$F$109:$S$109,$E$1:$R$1))","v":0},{"$f":"('[2]21-23 Cap Proj  Sur Alloctns'!P40*O$1)/(SUMPRODUCT('[2]21-23 Cap Proj  Sur Alloctns'!$F$109:$S$109,$E$1:$R$1))","v":0},{"$f":"('[2]21-23 Cap Proj  Sur Alloctns'!Q40*P$1)/(SUMPRODUCT('[2]21-23 Cap Proj  Sur Alloctns'!$F$109:$S$109,$E$1:$R$1))","v":0},{"$f":"('[2]21-23 Cap Proj  Sur Alloctns'!R40*Q$1)/(SUMPRODUCT('[2]21-23 Cap Proj  Sur Alloctns'!$F$109:$S$109,$E$1:$R$1))","v":0},{"$f":"('[2]21-23 Cap Proj  Sur Alloctns'!S40*R$1)/(SUMPRODUCT('[2]21-23 Cap Proj  Sur Alloctns'!$F$109:$S$109,$E$1:$R$1))","v":0},0,0,0,0,0,0,0,0,0,0,0,0,0,0,0,0,0,0,0,0]
[null,"119","Commission on African-American Affairs",0,{"$f":"('[2]21-23 Cap Proj  Sur Alloctns'!F41*E$1)/(SUMPRODUCT('[2]21-23 Cap Proj  Sur Alloctns'!$F$109:$S$109,$E$1:$R$1))","v":0},{"$f":"('[2]21-23 Cap Proj  Sur Alloctns'!G41*F$1)/(SUMPRODUCT('[2]21-23 Cap Proj  Sur Alloctns'!$F$109:$S$109,$E$1:$R$1))","v":0},{"$f":"('[2]21-23 Cap Proj  Sur Alloctns'!H41*G$1)/(SUMPRODUCT('[2]21-23 Cap Proj  Sur Alloctns'!$F$109:$S$109,$E$1:$R$1))","v":0},{"$f":"('[2]21-23 Cap Proj  Sur Alloctns'!I41*H$1)/(SUMPRODUCT('[2]21-23 Cap Proj  Sur Alloctns'!$F$109:$S$109,$E$1:$R$1))","v":0},{"$f":"('[2]21-23 Cap Proj  Sur Alloctns'!J41*I$1)/(SUMPRODUCT('[2]21-23 Cap Proj  Sur Alloctns'!$F$109:$S$109,$E$1:$R$1))","v":0},{"$f":"('[2]21-23 Cap Proj  Sur Alloctns'!K41*J$1)/(SUMPRODUCT('[2]21-23 Cap Proj  Sur Alloctns'!$F$109:$S$109,$E$1:$R$1))","v":0},{"$f":"('[2]21-23 Cap Proj  Sur Alloctns'!L41*K$1)/(SUMPRODUCT('[2]21-23 Cap Proj  Sur Alloctns'!$F$109:$S$109,$E$1:$R$1))","v":0},{"$f":"('[2]21-23 Cap Proj  Sur Alloctns'!M41*L$1)/(SUMPRODUCT('[2]21-23 Cap Proj  Sur Alloctns'!$F$109:$S$109,$E$1:$R$1))","v":0},{"$f":"('[2]21-23 Cap Proj  Sur Alloctns'!N41*M$1)/(SUMPRODUCT('[2]21-23 Cap Proj  Sur Alloctns'!$F$109:$S$109,$E$1:$R$1))","v":0},{"$f":"('[2]21-23 Cap Proj  Sur Alloctns'!O41*N$1)/(SUMPRODUCT('[2]21-23 Cap Proj  Sur Alloctns'!$F$109:$S$109,$E$1:$R$1))","v":0},{"$f":"('[2]21-23 Cap Proj  Sur Alloctns'!P41*O$1)/(SUMPRODUCT('[2]21-23 Cap Proj  Sur Alloctns'!$F$109:$S$109,$E$1:$R$1))","v":0},{"$f":"('[2]21-23 Cap Proj  Sur Alloctns'!Q41*P$1)/(SUMPRODUCT('[2]21-23 Cap Proj  Sur Alloctns'!$F$109:$S$109,$E$1:$R$1))","v":0},{"$f":"('[2]21-23 Cap Proj  Sur Alloctns'!R41*Q$1)/(SUMPRODUCT('[2]21-23 Cap Proj  Sur Alloctns'!$F$109:$S$109,$E$1:$R$1))","v":0},{"$f":"('[2]21-23 Cap Proj  Sur Alloctns'!S41*R$1)/(SUMPRODUCT('[2]21-23 Cap Proj  Sur Alloctns'!$F$109:$S$109,$E$1:$R$1))","v":0},0,0,0,0,0,0,0,0,0,0,0,0,0,0,0,0,0,0,0,0]
[null,"120","Human Rights Commission",0,{"$f":"('[2]21-23 Cap Proj  Sur Alloctns'!F42*E$1)/(SUMPRODUCT('[2]21-23 Cap Proj  Sur Alloctns'!$F$109:$S$109,$E$1:$R$1))","v":0},{"$f":"('[2]21-23 Cap Proj  Sur Alloctns'!G42*F$1)/(SUMPRODUCT('[2]21-23 Cap Proj  Sur Alloctns'!$F$109:$S$109,$E$1:$R$1))","v":0},{"$f":"('[2]21-23 Cap Proj  Sur Alloctns'!H42*G$1)/(SUMPRODUCT('[2]21-23 Cap Proj  Sur Alloctns'!$F$109:$S$109,$E$1:$R$1))","v":0},{"$f":"('[2]21-23 Cap Proj  Sur Alloctns'!I42*H$1)/(SUMPRODUCT('[2]21-23 Cap Proj  Sur Alloctns'!$F$109:$S$109,$E$1:$R$1))","v":0},{"$f":"('[2]21-23 Cap Proj  Sur Alloctns'!J42*I$1)/(SUMPRODUCT('[2]21-23 Cap Proj  Sur Alloctns'!$F$109:$S$109,$E$1:$R$1))","v":0},{"$f":"('[2]21-23 Cap Proj  Sur Alloctns'!K42*J$1)/(SUMPRODUCT('[2]21-23 Cap Proj  Sur Alloctns'!$F$109:$S$109,$E$1:$R$1))","v":0},{"$f":"('[2]21-23 Cap Proj  Sur Alloctns'!L42*K$1)/(SUMPRODUCT('[2]21-23 Cap Proj  Sur Alloctns'!$F$109:$S$109,$E$1:$R$1))","v":0},{"$f":"('[2]21-23 Cap Proj  Sur Alloctns'!M42*L$1)/(SUMPRODUCT('[2]21-23 Cap Proj  Sur Alloctns'!$F$109:$S$109,$E$1:$R$1))","v":0},{"$f":"('[2]21-23 Cap Proj  Sur Alloctns'!N42*M$1)/(SUMPRODUCT('[2]21-23 Cap Proj  Sur Alloctns'!$F$109:$S$109,$E$1:$R$1))","v":0},{"$f":"('[2]21-23 Cap Proj  Sur Alloctns'!O42*N$1)/(SUMPRODUCT('[2]21-23 Cap Proj  Sur Alloctns'!$F$109:$S$109,$E$1:$R$1))","v":0},{"$f":"('[2]21-23 Cap Proj  Sur Alloctns'!P42*O$1)/(SUMPRODUCT('[2]21-23 Cap Proj  Sur Alloctns'!$F$109:$S$109,$E$1:$R$1))","v":0},{"$f":"('[2]21-23 Cap Proj  Sur Alloctns'!Q42*P$1)/(SUMPRODUCT('[2]21-23 Cap Proj  Sur Alloctns'!$F$109:$S$109,$E$1:$R$1))","v":0},{"$f":"('[2]21-23 Cap Proj  Sur Alloctns'!R42*Q$1)/(SUMPRODUCT('[2]21-23 Cap Proj  Sur Alloctns'!$F$109:$S$109,$E$1:$R$1))","v":0},{"$f":"('[2]21-23 Cap Proj  Sur Alloctns'!S42*R$1)/(SUMPRODUCT('[2]21-23 Cap Proj  Sur Alloctns'!$F$109:$S$109,$E$1:$R$1))","v":0},0,0,0,0,0,0,0,0,0,0,0,0,0,0,0,0,0,0,0,0]
[null,"124","Department of Retirement Systems",0,{"$f":"('[2]21-23 Cap Proj  Sur Alloctns'!F43*E$1)/(SUMPRODUCT('[2]21-23 Cap Proj  Sur Alloctns'!$F$109:$S$109,$E$1:$R$1))","v":0},{"$f":"('[2]21-23 Cap Proj  Sur Alloctns'!G43*F$1)/(SUMPRODUCT('[2]21-23 Cap Proj  Sur Alloctns'!$F$109:$S$109,$E$1:$R$1))","v":0},{"$f":"('[2]21-23 Cap Proj  Sur Alloctns'!H43*G$1)/(SUMPRODUCT('[2]21-23 Cap Proj  Sur Alloctns'!$F$109:$S$109,$E$1:$R$1))","v":0},{"$f":"('[2]21-23 Cap Proj  Sur Alloctns'!I43*H$1)/(SUMPRODUCT('[2]21-23 Cap Proj  Sur Alloctns'!$F$109:$S$109,$E$1:$R$1))","v":0},{"$f":"('[2]21-23 Cap Proj  Sur Alloctns'!J43*I$1)/(SUMPRODUCT('[2]21-23 Cap Proj  Sur Alloctns'!$F$109:$S$109,$E$1:$R$1))","v":0},{"$f":"('[2]21-23 Cap Proj  Sur Alloctns'!K43*J$1)/(SUMPRODUCT('[2]21-23 Cap Proj  Sur Alloctns'!$F$109:$S$109,$E$1:$R$1))","v":0},{"$f":"('[2]21-23 Cap Proj  Sur Alloctns'!L43*K$1)/(SUMPRODUCT('[2]21-23 Cap Proj  Sur Alloctns'!$F$109:$S$109,$E$1:$R$1))","v":0},{"$f":"('[2]21-23 Cap Proj  Sur Alloctns'!M43*L$1)/(SUMPRODUCT('[2]21-23 Cap Proj  Sur Alloctns'!$F$109:$S$109,$E$1:$R$1))","v":0},{"$f":"('[2]21-23 Cap Proj  Sur Alloctns'!N43*M$1)/(SUMPRODUCT('[2]21-23 Cap Proj  Sur Alloctns'!$F$109:$S$109,$E$1:$R$1))","v":0},{"$f":"('[2]21-23 Cap Proj  Sur Alloctns'!O43*N$1)/(SUMPRODUCT('[2]21-23 Cap Proj  Sur Alloctns'!$F$109:$S$109,$E$1:$R$1))","v":0},{"$f":"('[2]21-23 Cap Proj  Sur Alloctns'!P43*O$1)/(SUMPRODUCT('[2]21-23 Cap Proj  Sur Alloctns'!$F$109:$S$109,$E$1:$R$1))","v":0},{"$f":"('[2]21-23 Cap Proj  Sur Alloctns'!Q43*P$1)/(SUMPRODUCT('[2]21-23 Cap Proj  Sur Alloctns'!$F$109:$S$109,$E$1:$R$1))","v":0},{"$f":"('[2]21-23 Cap Proj  Sur Alloctns'!R43*Q$1)/(SUMPRODUCT('[2]21-23 Cap Proj  Sur Alloctns'!$F$109:$S$109,$E$1:$R$1))","v":0},{"$f":"('[2]21-23 Cap Proj  Sur Alloctns'!S43*R$1)/(SUMPRODUCT('[2]21-23 Cap Proj  Sur Alloctns'!$F$109:$S$109,$E$1:$R$1))","v":0},0,0,0,0,0,0,0,0,0,0,0,0,0,0,0,0,0,0,0,0]
[null,"126","State Investment Board",0,{"$f":"('[2]21-23 Cap Proj  Sur Alloctns'!F44*E$1)/(SUMPRODUCT('[2]21-23 Cap Proj  Sur Alloctns'!$F$109:$S$109,$E$1:$R$1))","v":0},{"$f":"('[2]21-23 Cap Proj  Sur Alloctns'!G44*F$1)/(SUMPRODUCT('[2]21-23 Cap Proj  Sur Alloctns'!$F$109:$S$109,$E$1:$R$1))","v":0},{"$f":"('[2]21-23 Cap Proj  Sur Alloctns'!H44*G$1)/(SUMPRODUCT('[2]21-23 Cap Proj  Sur Alloctns'!$F$109:$S$109,$E$1:$R$1))","v":0},{"$f":"('[2]21-23 Cap Proj  Sur Alloctns'!I44*H$1)/(SUMPRODUCT('[2]21-23 Cap Proj  Sur Alloctns'!$F$109:$S$109,$E$1:$R$1))","v":0},{"$f":"('[2]21-23 Cap Proj  Sur Alloctns'!J44*I$1)/(SUMPRODUCT('[2]21-23 Cap Proj  Sur Alloctns'!$F$109:$S$109,$E$1:$R$1))","v":0},{"$f":"('[2]21-23 Cap Proj  Sur Alloctns'!K44*J$1)/(SUMPRODUCT('[2]21-23 Cap Proj  Sur Alloctns'!$F$109:$S$109,$E$1:$R$1))","v":0},{"$f":"('[2]21-23 Cap Proj  Sur Alloctns'!L44*K$1)/(SUMPRODUCT('[2]21-23 Cap Proj  Sur Alloctns'!$F$109:$S$109,$E$1:$R$1))","v":0},{"$f":"('[2]21-23 Cap Proj  Sur Alloctns'!M44*L$1)/(SUMPRODUCT('[2]21-23 Cap Proj  Sur Alloctns'!$F$109:$S$109,$E$1:$R$1))","v":0},{"$f":"('[2]21-23 Cap Proj  Sur Alloctns'!N44*M$1)/(SUMPRODUCT('[2]21-23 Cap Proj  Sur Alloctns'!$F$109:$S$109,$E$1:$R$1))","v":0},{"$f":"('[2]21-23 Cap Proj  Sur Alloctns'!O44*N$1)/(SUMPRODUCT('[2]21-23 Cap Proj  Sur Alloctns'!$F$109:$S$109,$E$1:$R$1))","v":0},{"$f":"('[2]21-23 Cap Proj  Sur Alloctns'!P44*O$1)/(SUMPRODUCT('[2]21-23 Cap Proj  Sur Alloctns'!$F$109:$S$109,$E$1:$R$1))","v":0},{"$f":"('[2]21-23 Cap Proj  Sur Alloctns'!Q44*P$1)/(SUMPRODUCT('[2]21-23 Cap Proj  Sur Alloctns'!$F$109:$S$109,$E$1:$R$1))","v":0},{"$f":"('[2]21-23 Cap Proj  Sur Alloctns'!R44*Q$1)/(SUMPRODUCT('[2]21-23 Cap Proj  Sur Alloctns'!$F$109:$S$109,$E$1:$R$1))","v":0},{"$f":"('[2]21-23 Cap Proj  Sur Alloctns'!S44*R$1)/(SUMPRODUCT('[2]21-23 Cap Proj  Sur Alloctns'!$F$109:$S$109,$E$1:$R$1))","v":0},0,0,0,0,0,0,0,0,0,0,0,0,0,0,0,0,0,0,0,0]
[null,"140","Department of Revenue",0,{"$f":"('[2]21-23 Cap Proj  Sur Alloctns'!F45*E$1)/(SUMPRODUCT('[2]21-23 Cap Proj  Sur Alloctns'!$F$109:$S$109,$E$1:$R$1))","v":0},{"$f":"('[2]21-23 Cap Proj  Sur Alloctns'!G45*F$1)/(SUMPRODUCT('[2]21-23 Cap Proj  Sur Alloctns'!$F$109:$S$109,$E$1:$R$1))","v":0},{"$f":"('[2]21-23 Cap Proj  Sur Alloctns'!H45*G$1)/(SUMPRODUCT('[2]21-23 Cap Proj  Sur Alloctns'!$F$109:$S$109,$E$1:$R$1))","v":0},{"$f":"('[2]21-23 Cap Proj  Sur Alloctns'!I45*H$1)/(SUMPRODUCT('[2]21-23 Cap Proj  Sur Alloctns'!$F$109:$S$109,$E$1:$R$1))","v":0},{"$f":"('[2]21-23 Cap Proj  Sur Alloctns'!J45*I$1)/(SUMPRODUCT('[2]21-23 Cap Proj  Sur Alloctns'!$F$109:$S$109,$E$1:$R$1))","v":0},{"$f":"('[2]21-23 Cap Proj  Sur Alloctns'!K45*J$1)/(SUMPRODUCT('[2]21-23 Cap Proj  Sur Alloctns'!$F$109:$S$109,$E$1:$R$1))","v":0},{"$f":"('[2]21-23 Cap Proj  Sur Alloctns'!L45*K$1)/(SUMPRODUCT('[2]21-23 Cap Proj  Sur Alloctns'!$F$109:$S$109,$E$1:$R$1))","v":0},{"$f":"('[2]21-23 Cap Proj  Sur Alloctns'!M45*L$1)/(SUMPRODUCT('[2]21-23 Cap Proj  Sur Alloctns'!$F$109:$S$109,$E$1:$R$1))","v":0},{"$f":"('[2]21-23 Cap Proj  Sur Alloctns'!N45*M$1)/(SUMPRODUCT('[2]21-23 Cap Proj  Sur Alloctns'!$F$109:$S$109,$E$1:$R$1))","v":0},{"$f":"('[2]21-23 Cap Proj  Sur Alloctns'!O45*N$1)/(SUMPRODUCT('[2]21-23 Cap Proj  Sur Alloctns'!$F$109:$S$109,$E$1:$R$1))","v":0},{"$f":"('[2]21-23 Cap Proj  Sur Alloctns'!P45*O$1)/(SUMPRODUCT('[2]21-23 Cap Proj  Sur Alloctns'!$F$109:$S$109,$E$1:$R$1))","v":0},{"$f":"('[2]21-23 Cap Proj  Sur Alloctns'!Q45*P$1)/(SUMPRODUCT('[2]21-23 Cap Proj  Sur Alloctns'!$F$109:$S$109,$E$1:$R$1))","v":0},{"$f":"('[2]21-23 Cap Proj  Sur Alloctns'!R45*Q$1)/(SUMPRODUCT('[2]21-23 Cap Proj  Sur Alloctns'!$F$109:$S$109,$E$1:$R$1))","v":0},{"$f":"('[2]21-23 Cap Proj  Sur Alloctns'!S45*R$1)/(SUMPRODUCT('[2]21-23 Cap Proj  Sur Alloctns'!$F$109:$S$109,$E$1:$R$1))","v":0},0,0,0,0,0,0,0,0,0,0,0,0,0,0,0,0,0,0,0,0]
[null,"142","Board of Tax Appeals",0,{"$f":"('[2]21-23 Cap Proj  Sur Alloctns'!F46*E$1)/(SUMPRODUCT('[2]21-23 Cap Proj  Sur Alloctns'!$F$109:$S$109,$E$1:$R$1))","v":0},{"$f":"('[2]21-23 Cap Proj  Sur Alloctns'!G46*F$1)/(SUMPRODUCT('[2]21-23 Cap Proj  Sur Alloctns'!$F$109:$S$109,$E$1:$R$1))","v":0},{"$f":"('[2]21-23 Cap Proj  Sur Alloctns'!H46*G$1)/(SUMPRODUCT('[2]21-23 Cap Proj  Sur Alloctns'!$F$109:$S$109,$E$1:$R$1))","v":0},{"$f":"('[2]21-23 Cap Proj  Sur Alloctns'!I46*H$1)/(SUMPRODUCT('[2]21-23 Cap Proj  Sur Alloctns'!$F$109:$S$109,$E$1:$R$1))","v":0},{"$f":"('[2]21-23 Cap Proj  Sur Alloctns'!J46*I$1)/(SUMPRODUCT('[2]21-23 Cap Proj  Sur Alloctns'!$F$109:$S$109,$E$1:$R$1))","v":0},{"$f":"('[2]21-23 Cap Proj  Sur Alloctns'!K46*J$1)/(SUMPRODUCT('[2]21-23 Cap Proj  Sur Alloctns'!$F$109:$S$109,$E$1:$R$1))","v":0},{"$f":"('[2]21-23 Cap Proj  Sur Alloctns'!L46*K$1)/(SUMPRODUCT('[2]21-23 Cap Proj  Sur Alloctns'!$F$109:$S$109,$E$1:$R$1))","v":0},{"$f":"('[2]21-23 Cap Proj  Sur Alloctns'!M46*L$1)/(SUMPRODUCT('[2]21-23 Cap Proj  Sur Alloctns'!$F$109:$S$109,$E$1:$R$1))","v":0},{"$f":"('[2]21-23 Cap Proj  Sur Alloctns'!N46*M$1)/(SUMPRODUCT('[2]21-23 Cap Proj  Sur Alloctns'!$F$109:$S$109,$E$1:$R$1))","v":0},{"$f":"('[2]21-23 Cap Proj  Sur Alloctns'!O46*N$1)/(SUMPRODUCT('[2]21-23 Cap Proj  Sur Alloctns'!$F$109:$S$109,$E$1:$R$1))","v":0},{"$f":"('[2]21-23 Cap Proj  Sur Alloctns'!P46*O$1)/(SUMPRODUCT('[2]21-23 Cap Proj  Sur Alloctns'!$F$109:$S$109,$E$1:$R$1))","v":0},{"$f":"('[2]21-23 Cap Proj  Sur Alloctns'!Q46*P$1)/(SUMPRODUCT('[2]21-23 Cap Proj  Sur Alloctns'!$F$109:$S$109,$E$1:$R$1))","v":0},{"$f":"('[2]21-23 Cap Proj  Sur Alloctns'!R46*Q$1)/(SUMPRODUCT('[2]21-23 Cap Proj  Sur Alloctns'!$F$109:$S$109,$E$1:$R$1))","v":0},{"$f":"('[2]21-23 Cap Proj  Sur Alloctns'!S46*R$1)/(SUMPRODUCT('[2]21-23 Cap Proj  Sur Alloctns'!$F$109:$S$109,$E$1:$R$1))","v":0},0,0,0,0,0,0,0,0,0,0,0,0,0,0,0,0,0,0,0,0]
[null,"147","Office of Minority and Women's Business Enterprises",0,{"$f":"('[2]21-23 Cap Proj  Sur Alloctns'!F47*E$1)/(SUMPRODUCT('[2]21-23 Cap Proj  Sur Alloctns'!$F$109:$S$109,$E$1:$R$1))","v":0},{"$f":"('[2]21-23 Cap Proj  Sur Alloctns'!G47*F$1)/(SUMPRODUCT('[2]21-23 Cap Proj  Sur Alloctns'!$F$109:$S$109,$E$1:$R$1))","v":0},{"$f":"('[2]21-23 Cap Proj  Sur Alloctns'!H47*G$1)/(SUMPRODUCT('[2]21-23 Cap Proj  Sur Alloctns'!$F$109:$S$109,$E$1:$R$1))","v":0},{"$f":"('[2]21-23 Cap Proj  Sur Alloctns'!I47*H$1)/(SUMPRODUCT('[2]21-23 Cap Proj  Sur Alloctns'!$F$109:$S$109,$E$1:$R$1))","v":0},{"$f":"('[2]21-23 Cap Proj  Sur Alloctns'!J47*I$1)/(SUMPRODUCT('[2]21-23 Cap Proj  Sur Alloctns'!$F$109:$S$109,$E$1:$R$1))","v":0},{"$f":"('[2]21-23 Cap Proj  Sur Alloctns'!K47*J$1)/(SUMPRODUCT('[2]21-23 Cap Proj  Sur Alloctns'!$F$109:$S$109,$E$1:$R$1))","v":0},{"$f":"('[2]21-23 Cap Proj  Sur Alloctns'!L47*K$1)/(SUMPRODUCT('[2]21-23 Cap Proj  Sur Alloctns'!$F$109:$S$109,$E$1:$R$1))","v":0},{"$f":"('[2]21-23 Cap Proj  Sur Alloctns'!M47*L$1)/(SUMPRODUCT('[2]21-23 Cap Proj  Sur Alloctns'!$F$109:$S$109,$E$1:$R$1))","v":0},{"$f":"('[2]21-23 Cap Proj  Sur Alloctns'!N47*M$1)/(SUMPRODUCT('[2]21-23 Cap Proj  Sur Alloctns'!$F$109:$S$109,$E$1:$R$1))","v":0},{"$f":"('[2]21-23 Cap Proj  Sur Alloctns'!O47*N$1)/(SUMPRODUCT('[2]21-23 Cap Proj  Sur Alloctns'!$F$109:$S$109,$E$1:$R$1))","v":0},{"$f":"('[2]21-23 Cap Proj  Sur Alloctns'!P47*O$1)/(SUMPRODUCT('[2]21-23 Cap Proj  Sur Alloctns'!$F$109:$S$109,$E$1:$R$1))","v":0},{"$f":"('[2]21-23 Cap Proj  Sur Alloctns'!Q47*P$1)/(SUMPRODUCT('[2]21-23 Cap Proj  Sur Alloctns'!$F$109:$S$109,$E$1:$R$1))","v":0},{"$f":"('[2]21-23 Cap Proj  Sur Alloctns'!R47*Q$1)/(SUMPRODUCT('[2]21-23 Cap Proj  Sur Alloctns'!$F$109:$S$109,$E$1:$R$1))","v":0},{"$f":"('[2]21-23 Cap Proj  Sur Alloctns'!S47*R$1)/(SUMPRODUCT('[2]21-23 Cap Proj  Sur Alloctns'!$F$109:$S$109,$E$1:$R$1))","v":0},0,0,0,0,0,0,0,0,0,0,0,0,0,0,0,0,0,0,0,0]
[null,"160","Office of Insurance Commissioner",4.7447632253445875E-3,{"$f":"('[2]21-23 Cap Proj  Sur Alloctns'!F48*E$1)/(SUMPRODUCT('[2]21-23 Cap Proj  Sur Alloctns'!$F$109:$S$109,$E$1:$R$1))","v":0},{"$f":"('[2]21-23 Cap Proj  Sur Alloctns'!G48*F$1)/(SUMPRODUCT('[2]21-23 Cap Proj  Sur Alloctns'!$F$109:$S$109,$E$1:$R$1))","v":0},{"$f":"('[2]21-23 Cap Proj  Sur Alloctns'!H48*G$1)/(SUMPRODUCT('[2]21-23 Cap Proj  Sur Alloctns'!$F$109:$S$109,$E$1:$R$1))","v":0},{"$f":"('[2]21-23 Cap Proj  Sur Alloctns'!I48*H$1)/(SUMPRODUCT('[2]21-23 Cap Proj  Sur Alloctns'!$F$109:$S$109,$E$1:$R$1))","v":0},{"$f":"('[2]21-23 Cap Proj  Sur Alloctns'!J48*I$1)/(SUMPRODUCT('[2]21-23 Cap Proj  Sur Alloctns'!$F$109:$S$109,$E$1:$R$1))","v":0},{"$f":"('[2]21-23 Cap Proj  Sur Alloctns'!K48*J$1)/(SUMPRODUCT('[2]21-23 Cap Proj  Sur Alloctns'!$F$109:$S$109,$E$1:$R$1))","v":0},{"$f":"('[2]21-23 Cap Proj  Sur Alloctns'!L48*K$1)/(SUMPRODUCT('[2]21-23 Cap Proj  Sur Alloctns'!$F$109:$S$109,$E$1:$R$1))","v":0},{"$f":"('[2]21-23 Cap Proj  Sur Alloctns'!M48*L$1)/(SUMPRODUCT('[2]21-23 Cap Proj  Sur Alloctns'!$F$109:$S$109,$E$1:$R$1))","v":0},{"$f":"('[2]21-23 Cap Proj  Sur Alloctns'!N48*M$1)/(SUMPRODUCT('[2]21-23 Cap Proj  Sur Alloctns'!$F$109:$S$109,$E$1:$R$1))","v":0},{"$f":"('[2]21-23 Cap Proj  Sur Alloctns'!O48*N$1)/(SUMPRODUCT('[2]21-23 Cap Proj  Sur Alloctns'!$F$109:$S$109,$E$1:$R$1))","v":0},{"$f":"('[2]21-23 Cap Proj  Sur Alloctns'!P48*O$1)/(SUMPRODUCT('[2]21-23 Cap Proj  Sur Alloctns'!$F$109:$S$109,$E$1:$R$1))","v":4.7447632253445875E-3},{"$f":"('[2]21-23 Cap Proj  Sur Alloctns'!Q48*P$1)/(SUMPRODUCT('[2]21-23 Cap Proj  Sur Alloctns'!$F$109:$S$109,$E$1:$R$1))","v":0},{"$f":"('[2]21-23 Cap Proj  Sur Alloctns'!R48*Q$1)/(SUMPRODUCT('[2]21-23 Cap Proj  Sur Alloctns'!$F$109:$S$109,$E$1:$R$1))","v":0},{"$f":"('[2]21-23 Cap Proj  Sur Alloctns'!S48*R$1)/(SUMPRODUCT('[2]21-23 Cap Proj  Sur Alloctns'!$F$109:$S$109,$E$1:$R$1))","v":0},0,0,0,0,0,0,0,0,0,0,0,0,0,0,0,0,0,0,0,0]
[null,"163","Consolidated Technology Services",1.9823592242103585E-4,{"$f":"('[2]21-23 Cap Proj  Sur Alloctns'!F49*E$1)/(SUMPRODUCT('[2]21-23 Cap Proj  Sur Alloctns'!$F$109:$S$109,$E$1:$R$1))","v":0},{"$f":"('[2]21-23 Cap Proj  Sur Alloctns'!G49*F$1)/(SUMPRODUCT('[2]21-23 Cap Proj  Sur Alloctns'!$F$109:$S$109,$E$1:$R$1))","v":0},{"$f":"('[2]21-23 Cap Proj  Sur Alloctns'!H49*G$1)/(SUMPRODUCT('[2]21-23 Cap Proj  Sur Alloctns'!$F$109:$S$109,$E$1:$R$1))","v":0},{"$f":"('[2]21-23 Cap Proj  Sur Alloctns'!I49*H$1)/(SUMPRODUCT('[2]21-23 Cap Proj  Sur Alloctns'!$F$109:$S$109,$E$1:$R$1))","v":0},{"$f":"('[2]21-23 Cap Proj  Sur Alloctns'!J49*I$1)/(SUMPRODUCT('[2]21-23 Cap Proj  Sur Alloctns'!$F$109:$S$109,$E$1:$R$1))","v":0},{"$f":"('[2]21-23 Cap Proj  Sur Alloctns'!K49*J$1)/(SUMPRODUCT('[2]21-23 Cap Proj  Sur Alloctns'!$F$109:$S$109,$E$1:$R$1))","v":1.9823592242103585E-4},{"$f":"('[2]21-23 Cap Proj  Sur Alloctns'!L49*K$1)/(SUMPRODUCT('[2]21-23 Cap Proj  Sur Alloctns'!$F$109:$S$109,$E$1:$R$1))","v":0},{"$f":"('[2]21-23 Cap Proj  Sur Alloctns'!M49*L$1)/(SUMPRODUCT('[2]21-23 Cap Proj  Sur Alloctns'!$F$109:$S$109,$E$1:$R$1))","v":0},{"$f":"('[2]21-23 Cap Proj  Sur Alloctns'!N49*M$1)/(SUMPRODUCT('[2]21-23 Cap Proj  Sur Alloctns'!$F$109:$S$109,$E$1:$R$1))","v":0},{"$f":"('[2]21-23 Cap Proj  Sur Alloctns'!O49*N$1)/(SUMPRODUCT('[2]21-23 Cap Proj  Sur Alloctns'!$F$109:$S$109,$E$1:$R$1))","v":0},{"$f":"('[2]21-23 Cap Proj  Sur Alloctns'!P49*O$1)/(SUMPRODUCT('[2]21-23 Cap Proj  Sur Alloctns'!$F$109:$S$109,$E$1:$R$1))","v":0},{"$f":"('[2]21-23 Cap Proj  Sur Alloctns'!Q49*P$1)/(SUMPRODUCT('[2]21-23 Cap Proj  Sur Alloctns'!$F$109:$S$109,$E$1:$R$1))","v":0},{"$f":"('[2]21-23 Cap Proj  Sur Alloctns'!R49*Q$1)/(SUMPRODUCT('[2]21-23 Cap Proj  Sur Alloctns'!$F$109:$S$109,$E$1:$R$1))","v":0},{"$f":"('[2]21-23 Cap Proj  Sur Alloctns'!S49*R$1)/(SUMPRODUCT('[2]21-23 Cap Proj  Sur Alloctns'!$F$109:$S$109,$E$1:$R$1))","v":0},0,0,0,0,0,0,0,0,0,0,0,0,0,0,0,0,0,0,0,0]
[null,"165","Board of Accountancy",0,{"$f":"('[2]21-23 Cap Proj  Sur Alloctns'!F50*E$1)/(SUMPRODUCT('[2]21-23 Cap Proj  Sur Alloctns'!$F$109:$S$109,$E$1:$R$1))","v":0},{"$f":"('[2]21-23 Cap Proj  Sur Alloctns'!G50*F$1)/(SUMPRODUCT('[2]21-23 Cap Proj  Sur Alloctns'!$F$109:$S$109,$E$1:$R$1))","v":0},{"$f":"('[2]21-23 Cap Proj  Sur Alloctns'!H50*G$1)/(SUMPRODUCT('[2]21-23 Cap Proj  Sur Alloctns'!$F$109:$S$109,$E$1:$R$1))","v":0},{"$f":"('[2]21-23 Cap Proj  Sur Alloctns'!I50*H$1)/(SUMPRODUCT('[2]21-23 Cap Proj  Sur Alloctns'!$F$109:$S$109,$E$1:$R$1))","v":0},{"$f":"('[2]21-23 Cap Proj  Sur Alloctns'!J50*I$1)/(SUMPRODUCT('[2]21-23 Cap Proj  Sur Alloctns'!$F$109:$S$109,$E$1:$R$1))","v":0},{"$f":"('[2]21-23 Cap Proj  Sur Alloctns'!K50*J$1)/(SUMPRODUCT('[2]21-23 Cap Proj  Sur Alloctns'!$F$109:$S$109,$E$1:$R$1))","v":0},{"$f":"('[2]21-23 Cap Proj  Sur Alloctns'!L50*K$1)/(SUMPRODUCT('[2]21-23 Cap Proj  Sur Alloctns'!$F$109:$S$109,$E$1:$R$1))","v":0},{"$f":"('[2]21-23 Cap Proj  Sur Alloctns'!M50*L$1)/(SUMPRODUCT('[2]21-23 Cap Proj  Sur Alloctns'!$F$109:$S$109,$E$1:$R$1))","v":0},{"$f":"('[2]21-23 Cap Proj  Sur Alloctns'!N50*M$1)/(SUMPRODUCT('[2]21-23 Cap Proj  Sur Alloctns'!$F$109:$S$109,$E$1:$R$1))","v":0},{"$f":"('[2]21-23 Cap Proj  Sur Alloctns'!O50*N$1)/(SUMPRODUCT('[2]21-23 Cap Proj  Sur Alloctns'!$F$109:$S$109,$E$1:$R$1))","v":0},{"$f":"('[2]21-23 Cap Proj  Sur Alloctns'!P50*O$1)/(SUMPRODUCT('[2]21-23 Cap Proj  Sur Alloctns'!$F$109:$S$109,$E$1:$R$1))","v":0},{"$f":"('[2]21-23 Cap Proj  Sur Alloctns'!Q50*P$1)/(SUMPRODUCT('[2]21-23 Cap Proj  Sur Alloctns'!$F$109:$S$109,$E$1:$R$1))","v":0},{"$f":"('[2]21-23 Cap Proj  Sur Alloctns'!R50*Q$1)/(SUMPRODUCT('[2]21-23 Cap Proj  Sur Alloctns'!$F$109:$S$109,$E$1:$R$1))","v":0},{"$f":"('[2]21-23 Cap Proj  Sur Alloctns'!S50*R$1)/(SUMPRODUCT('[2]21-23 Cap Proj  Sur Alloctns'!$F$109:$S$109,$E$1:$R$1))","v":0},0,0,0,0,0,0,0,0,0,0,0,0,0,0,0,0,0,0,0,0]
[null,"166","Brd Prof Eng Land Surveyors",0,{"$f":"('[2]21-23 Cap Proj  Sur Alloctns'!F51*E$1)/(SUMPRODUCT('[2]21-23 Cap Proj  Sur Alloctns'!$F$109:$S$109,$E$1:$R$1))","v":0},{"$f":"('[2]21-23 Cap Proj  Sur Alloctns'!G51*F$1)/(SUMPRODUCT('[2]21-23 Cap Proj  Sur Alloctns'!$F$109:$S$109,$E$1:$R$1))","v":0},{"$f":"('[2]21-23 Cap Proj  Sur Alloctns'!H51*G$1)/(SUMPRODUCT('[2]21-23 Cap Proj  Sur Alloctns'!$F$109:$S$109,$E$1:$R$1))","v":0},{"$f":"('[2]21-23 Cap Proj  Sur Alloctns'!I51*H$1)/(SUMPRODUCT('[2]21-23 Cap Proj  Sur Alloctns'!$F$109:$S$109,$E$1:$R$1))","v":0},{"$f":"('[2]21-23 Cap Proj  Sur Alloctns'!J51*I$1)/(SUMPRODUCT('[2]21-23 Cap Proj  Sur Alloctns'!$F$109:$S$109,$E$1:$R$1))","v":0},{"$f":"('[2]21-23 Cap Proj  Sur Alloctns'!K51*J$1)/(SUMPRODUCT('[2]21-23 Cap Proj  Sur Alloctns'!$F$109:$S$109,$E$1:$R$1))","v":0},{"$f":"('[2]21-23 Cap Proj  Sur Alloctns'!L51*K$1)/(SUMPRODUCT('[2]21-23 Cap Proj  Sur Alloctns'!$F$109:$S$109,$E$1:$R$1))","v":0},{"$f":"('[2]21-23 Cap Proj  Sur Alloctns'!M51*L$1)/(SUMPRODUCT('[2]21-23 Cap Proj  Sur Alloctns'!$F$109:$S$109,$E$1:$R$1))","v":0},{"$f":"('[2]21-23 Cap Proj  Sur Alloctns'!N51*M$1)/(SUMPRODUCT('[2]21-23 Cap Proj  Sur Alloctns'!$F$109:$S$109,$E$1:$R$1))","v":0},{"$f":"('[2]21-23 Cap Proj  Sur Alloctns'!O51*N$1)/(SUMPRODUCT('[2]21-23 Cap Proj  Sur Alloctns'!$F$109:$S$109,$E$1:$R$1))","v":0},{"$f":"('[2]21-23 Cap Proj  Sur Alloctns'!P51*O$1)/(SUMPRODUCT('[2]21-23 Cap Proj  Sur Alloctns'!$F$109:$S$109,$E$1:$R$1))","v":0},{"$f":"('[2]21-23 Cap Proj  Sur Alloctns'!Q51*P$1)/(SUMPRODUCT('[2]21-23 Cap Proj  Sur Alloctns'!$F$109:$S$109,$E$1:$R$1))","v":0},{"$f":"('[2]21-23 Cap Proj  Sur Alloctns'!R51*Q$1)/(SUMPRODUCT('[2]21-23 Cap Proj  Sur Alloctns'!$F$109:$S$109,$E$1:$R$1))","v":0},{"$f":"('[2]21-23 Cap Proj  Sur Alloctns'!S51*R$1)/(SUMPRODUCT('[2]21-23 Cap Proj  Sur Alloctns'!$F$109:$S$109,$E$1:$R$1))","v":0},0,0,0,0,0,0,0,0,0,0,0,0,0,0,0,0,0,0,0,0]
[null,"167","Forensic Investigations Council",0,{"$f":"('[2]21-23 Cap Proj  Sur Alloctns'!F52*E$1)/(SUMPRODUCT('[2]21-23 Cap Proj  Sur Alloctns'!$F$109:$S$109,$E$1:$R$1))","v":0},{"$f":"('[2]21-23 Cap Proj  Sur Alloctns'!G52*F$1)/(SUMPRODUCT('[2]21-23 Cap Proj  Sur Alloctns'!$F$109:$S$109,$E$1:$R$1))","v":0},{"$f":"('[2]21-23 Cap Proj  Sur Alloctns'!H52*G$1)/(SUMPRODUCT('[2]21-23 Cap Proj  Sur Alloctns'!$F$109:$S$109,$E$1:$R$1))","v":0},{"$f":"('[2]21-23 Cap Proj  Sur Alloctns'!I52*H$1)/(SUMPRODUCT('[2]21-23 Cap Proj  Sur Alloctns'!$F$109:$S$109,$E$1:$R$1))","v":0},{"$f":"('[2]21-23 Cap Proj  Sur Alloctns'!J52*I$1)/(SUMPRODUCT('[2]21-23 Cap Proj  Sur Alloctns'!$F$109:$S$109,$E$1:$R$1))","v":0},{"$f":"('[2]21-23 Cap Proj  Sur Alloctns'!K52*J$1)/(SUMPRODUCT('[2]21-23 Cap Proj  Sur Alloctns'!$F$109:$S$109,$E$1:$R$1))","v":0},{"$f":"('[2]21-23 Cap Proj  Sur Alloctns'!L52*K$1)/(SUMPRODUCT('[2]21-23 Cap Proj  Sur Alloctns'!$F$109:$S$109,$E$1:$R$1))","v":0},{"$f":"('[2]21-23 Cap Proj  Sur Alloctns'!M52*L$1)/(SUMPRODUCT('[2]21-23 Cap Proj  Sur Alloctns'!$F$109:$S$109,$E$1:$R$1))","v":0},{"$f":"('[2]21-23 Cap Proj  Sur Alloctns'!N52*M$1)/(SUMPRODUCT('[2]21-23 Cap Proj  Sur Alloctns'!$F$109:$S$109,$E$1:$R$1))","v":0},{"$f":"('[2]21-23 Cap Proj  Sur Alloctns'!O52*N$1)/(SUMPRODUCT('[2]21-23 Cap Proj  Sur Alloctns'!$F$109:$S$109,$E$1:$R$1))","v":0},{"$f":"('[2]21-23 Cap Proj  Sur Alloctns'!P52*O$1)/(SUMPRODUCT('[2]21-23 Cap Proj  Sur Alloctns'!$F$109:$S$109,$E$1:$R$1))","v":0},{"$f":"('[2]21-23 Cap Proj  Sur Alloctns'!Q52*P$1)/(SUMPRODUCT('[2]21-23 Cap Proj  Sur Alloctns'!$F$109:$S$109,$E$1:$R$1))","v":0},{"$f":"('[2]21-23 Cap Proj  Sur Alloctns'!R52*Q$1)/(SUMPRODUCT('[2]21-23 Cap Proj  Sur Alloctns'!$F$109:$S$109,$E$1:$R$1))","v":0},{"$f":"('[2]21-23 Cap Proj  Sur Alloctns'!S52*R$1)/(SUMPRODUCT('[2]21-23 Cap Proj  Sur Alloctns'!$F$109:$S$109,$E$1:$R$1))","v":0},0,0,0,0,0,0,0,0,0,0,0,0,0,0,0,0,0,0,0,0]
[null,"179","Department of Enterprise Services",1.8467848621984379E-2,{"$f":"('[2]21-23 Cap Proj  Sur Alloctns'!F53*E$1)/(SUMPRODUCT('[2]21-23 Cap Proj  Sur Alloctns'!$F$109:$S$109,$E$1:$R$1))","v":0},{"$f":"('[2]21-23 Cap Proj  Sur Alloctns'!G53*F$1)/(SUMPRODUCT('[2]21-23 Cap Proj  Sur Alloctns'!$F$109:$S$109,$E$1:$R$1))","v":0},{"$f":"('[2]21-23 Cap Proj  Sur Alloctns'!H53*G$1)/(SUMPRODUCT('[2]21-23 Cap Proj  Sur Alloctns'!$F$109:$S$109,$E$1:$R$1))","v":4.6958831348846066E-3},{"$f":"('[2]21-23 Cap Proj  Sur Alloctns'!I53*H$1)/(SUMPRODUCT('[2]21-23 Cap Proj  Sur Alloctns'!$F$109:$S$109,$E$1:$R$1))","v":0},{"$f":"('[2]21-23 Cap Proj  Sur Alloctns'!J53*I$1)/(SUMPRODUCT('[2]21-23 Cap Proj  Sur Alloctns'!$F$109:$S$109,$E$1:$R$1))","v":0},{"$f":"('[2]21-23 Cap Proj  Sur Alloctns'!K53*J$1)/(SUMPRODUCT('[2]21-23 Cap Proj  Sur Alloctns'!$F$109:$S$109,$E$1:$R$1))","v":1.3771965487099773E-2},{"$f":"('[2]21-23 Cap Proj  Sur Alloctns'!L53*K$1)/(SUMPRODUCT('[2]21-23 Cap Proj  Sur Alloctns'!$F$109:$S$109,$E$1:$R$1))","v":0},{"$f":"('[2]21-23 Cap Proj  Sur Alloctns'!M53*L$1)/(SUMPRODUCT('[2]21-23 Cap Proj  Sur Alloctns'!$F$109:$S$109,$E$1:$R$1))","v":0},{"$f":"('[2]21-23 Cap Proj  Sur Alloctns'!N53*M$1)/(SUMPRODUCT('[2]21-23 Cap Proj  Sur Alloctns'!$F$109:$S$109,$E$1:$R$1))","v":0},{"$f":"('[2]21-23 Cap Proj  Sur Alloctns'!O53*N$1)/(SUMPRODUCT('[2]21-23 Cap Proj  Sur Alloctns'!$F$109:$S$109,$E$1:$R$1))","v":0},{"$f":"('[2]21-23 Cap Proj  Sur Alloctns'!P53*O$1)/(SUMPRODUCT('[2]21-23 Cap Proj  Sur Alloctns'!$F$109:$S$109,$E$1:$R$1))","v":0},{"$f":"('[2]21-23 Cap Proj  Sur Alloctns'!Q53*P$1)/(SUMPRODUCT('[2]21-23 Cap Proj  Sur Alloctns'!$F$109:$S$109,$E$1:$R$1))","v":0},{"$f":"('[2]21-23 Cap Proj  Sur Alloctns'!R53*Q$1)/(SUMPRODUCT('[2]21-23 Cap Proj  Sur Alloctns'!$F$109:$S$109,$E$1:$R$1))","v":0},{"$f":"('[2]21-23 Cap Proj  Sur Alloctns'!S53*R$1)/(SUMPRODUCT('[2]21-23 Cap Proj  Sur Alloctns'!$F$109:$S$109,$E$1:$R$1))","v":0},0,0,0,0,0,0,0,0,0,0,0,0,0,0,0,0,0,0,0,0]
[null,"185","Horse Racing Commission",0,{"$f":"('[2]21-23 Cap Proj  Sur Alloctns'!F54*E$1)/(SUMPRODUCT('[2]21-23 Cap Proj  Sur Alloctns'!$F$109:$S$109,$E$1:$R$1))","v":0},{"$f":"('[2]21-23 Cap Proj  Sur Alloctns'!G54*F$1)/(SUMPRODUCT('[2]21-23 Cap Proj  Sur Alloctns'!$F$109:$S$109,$E$1:$R$1))","v":0},{"$f":"('[2]21-23 Cap Proj  Sur Alloctns'!H54*G$1)/(SUMPRODUCT('[2]21-23 Cap Proj  Sur Alloctns'!$F$109:$S$109,$E$1:$R$1))","v":0},{"$f":"('[2]21-23 Cap Proj  Sur Alloctns'!I54*H$1)/(SUMPRODUCT('[2]21-23 Cap Proj  Sur Alloctns'!$F$109:$S$109,$E$1:$R$1))","v":0},{"$f":"('[2]21-23 Cap Proj  Sur Alloctns'!J54*I$1)/(SUMPRODUCT('[2]21-23 Cap Proj  Sur Alloctns'!$F$109:$S$109,$E$1:$R$1))","v":0},{"$f":"('[2]21-23 Cap Proj  Sur Alloctns'!K54*J$1)/(SUMPRODUCT('[2]21-23 Cap Proj  Sur Alloctns'!$F$109:$S$109,$E$1:$R$1))","v":0},{"$f":"('[2]21-23 Cap Proj  Sur Alloctns'!L54*K$1)/(SUMPRODUCT('[2]21-23 Cap Proj  Sur Alloctns'!$F$109:$S$109,$E$1:$R$1))","v":0},{"$f":"('[2]21-23 Cap Proj  Sur Alloctns'!M54*L$1)/(SUMPRODUCT('[2]21-23 Cap Proj  Sur Alloctns'!$F$109:$S$109,$E$1:$R$1))","v":0},{"$f":"('[2]21-23 Cap Proj  Sur Alloctns'!N54*M$1)/(SUMPRODUCT('[2]21-23 Cap Proj  Sur Alloctns'!$F$109:$S$109,$E$1:$R$1))","v":0},{"$f":"('[2]21-23 Cap Proj  Sur Alloctns'!O54*N$1)/(SUMPRODUCT('[2]21-23 Cap Proj  Sur Alloctns'!$F$109:$S$109,$E$1:$R$1))","v":0},{"$f":"('[2]21-23 Cap Proj  Sur Alloctns'!P54*O$1)/(SUMPRODUCT('[2]21-23 Cap Proj  Sur Alloctns'!$F$109:$S$109,$E$1:$R$1))","v":0},{"$f":"('[2]21-23 Cap Proj  Sur Alloctns'!Q54*P$1)/(SUMPRODUCT('[2]21-23 Cap Proj  Sur Alloctns'!$F$109:$S$109,$E$1:$R$1))","v":0},{"$f":"('[2]21-23 Cap Proj  Sur Alloctns'!R54*Q$1)/(SUMPRODUCT('[2]21-23 Cap Proj  Sur Alloctns'!$F$109:$S$109,$E$1:$R$1))","v":0},{"$f":"('[2]21-23 Cap Proj  Sur Alloctns'!S54*R$1)/(SUMPRODUCT('[2]21-23 Cap Proj  Sur Alloctns'!$F$109:$S$109,$E$1:$R$1))","v":0},0,0,0,0,0,0,0,0,0,0,0,0,0,0,0,0,0,0,0,0]
[null,"190","Board of Industrial Insurance Appeals",0,{"$f":"('[2]21-23 Cap Proj  Sur Alloctns'!F55*E$1)/(SUMPRODUCT('[2]21-23 Cap Proj  Sur Alloctns'!$F$109:$S$109,$E$1:$R$1))","v":0},{"$f":"('[2]21-23 Cap Proj  Sur Alloctns'!G55*F$1)/(SUMPRODUCT('[2]21-23 Cap Proj  Sur Alloctns'!$F$109:$S$109,$E$1:$R$1))","v":0},{"$f":"('[2]21-23 Cap Proj  Sur Alloctns'!H55*G$1)/(SUMPRODUCT('[2]21-23 Cap Proj  Sur Alloctns'!$F$109:$S$109,$E$1:$R$1))","v":0},{"$f":"('[2]21-23 Cap Proj  Sur Alloctns'!I55*H$1)/(SUMPRODUCT('[2]21-23 Cap Proj  Sur Alloctns'!$F$109:$S$109,$E$1:$R$1))","v":0},{"$f":"('[2]21-23 Cap Proj  Sur Alloctns'!J55*I$1)/(SUMPRODUCT('[2]21-23 Cap Proj  Sur Alloctns'!$F$109:$S$109,$E$1:$R$1))","v":0},{"$f":"('[2]21-23 Cap Proj  Sur Alloctns'!K55*J$1)/(SUMPRODUCT('[2]21-23 Cap Proj  Sur Alloctns'!$F$109:$S$109,$E$1:$R$1))","v":0},{"$f":"('[2]21-23 Cap Proj  Sur Alloctns'!L55*K$1)/(SUMPRODUCT('[2]21-23 Cap Proj  Sur Alloctns'!$F$109:$S$109,$E$1:$R$1))","v":0},{"$f":"('[2]21-23 Cap Proj  Sur Alloctns'!M55*L$1)/(SUMPRODUCT('[2]21-23 Cap Proj  Sur Alloctns'!$F$109:$S$109,$E$1:$R$1))","v":0},{"$f":"('[2]21-23 Cap Proj  Sur Alloctns'!N55*M$1)/(SUMPRODUCT('[2]21-23 Cap Proj  Sur Alloctns'!$F$109:$S$109,$E$1:$R$1))","v":0},{"$f":"('[2]21-23 Cap Proj  Sur Alloctns'!O55*N$1)/(SUMPRODUCT('[2]21-23 Cap Proj  Sur Alloctns'!$F$109:$S$109,$E$1:$R$1))","v":0},{"$f":"('[2]21-23 Cap Proj  Sur Alloctns'!P55*O$1)/(SUMPRODUCT('[2]21-23 Cap Proj  Sur Alloctns'!$F$109:$S$109,$E$1:$R$1))","v":0},{"$f":"('[2]21-23 Cap Proj  Sur Alloctns'!Q55*P$1)/(SUMPRODUCT('[2]21-23 Cap Proj  Sur Alloctns'!$F$109:$S$109,$E$1:$R$1))","v":0},{"$f":"('[2]21-23 Cap Proj  Sur Alloctns'!R55*Q$1)/(SUMPRODUCT('[2]21-23 Cap Proj  Sur Alloctns'!$F$109:$S$109,$E$1:$R$1))","v":0},{"$f":"('[2]21-23 Cap Proj  Sur Alloctns'!S55*R$1)/(SUMPRODUCT('[2]21-23 Cap Proj  Sur Alloctns'!$F$109:$S$109,$E$1:$R$1))","v":0},0,0,0,0,0,0,0,0,0,0,0,0,0,0,0,0,0,0,0,0]
[null,"195","Liquor Control Board",0,{"$f":"('[2]21-23 Cap Proj  Sur Alloctns'!F56*E$1)/(SUMPRODUCT('[2]21-23 Cap Proj  Sur Alloctns'!$F$109:$S$109,$E$1:$R$1))","v":0},{"$f":"('[2]21-23 Cap Proj  Sur Alloctns'!G56*F$1)/(SUMPRODUCT('[2]21-23 Cap Proj  Sur Alloctns'!$F$109:$S$109,$E$1:$R$1))","v":0},{"$f":"('[2]21-23 Cap Proj  Sur Alloctns'!H56*G$1)/(SUMPRODUCT('[2]21-23 Cap Proj  Sur Alloctns'!$F$109:$S$109,$E$1:$R$1))","v":0},{"$f":"('[2]21-23 Cap Proj  Sur Alloctns'!I56*H$1)/(SUMPRODUCT('[2]21-23 Cap Proj  Sur Alloctns'!$F$109:$S$109,$E$1:$R$1))","v":0},{"$f":"('[2]21-23 Cap Proj  Sur Alloctns'!J56*I$1)/(SUMPRODUCT('[2]21-23 Cap Proj  Sur Alloctns'!$F$109:$S$109,$E$1:$R$1))","v":0},{"$f":"('[2]21-23 Cap Proj  Sur Alloctns'!K56*J$1)/(SUMPRODUCT('[2]21-23 Cap Proj  Sur Alloctns'!$F$109:$S$109,$E$1:$R$1))","v":0},{"$f":"('[2]21-23 Cap Proj  Sur Alloctns'!L56*K$1)/(SUMPRODUCT('[2]21-23 Cap Proj  Sur Alloctns'!$F$109:$S$109,$E$1:$R$1))","v":0},{"$f":"('[2]21-23 Cap Proj  Sur Alloctns'!M56*L$1)/(SUMPRODUCT('[2]21-23 Cap Proj  Sur Alloctns'!$F$109:$S$109,$E$1:$R$1))","v":0},{"$f":"('[2]21-23 Cap Proj  Sur Alloctns'!N56*M$1)/(SUMPRODUCT('[2]21-23 Cap Proj  Sur Alloctns'!$F$109:$S$109,$E$1:$R$1))","v":0},{"$f":"('[2]21-23 Cap Proj  Sur Alloctns'!O56*N$1)/(SUMPRODUCT('[2]21-23 Cap Proj  Sur Alloctns'!$F$109:$S$109,$E$1:$R$1))","v":0},{"$f":"('[2]21-23 Cap Proj  Sur Alloctns'!P56*O$1)/(SUMPRODUCT('[2]21-23 Cap Proj  Sur Alloctns'!$F$109:$S$109,$E$1:$R$1))","v":0},{"$f":"('[2]21-23 Cap Proj  Sur Alloctns'!Q56*P$1)/(SUMPRODUCT('[2]21-23 Cap Proj  Sur Alloctns'!$F$109:$S$109,$E$1:$R$1))","v":0},{"$f":"('[2]21-23 Cap Proj  Sur Alloctns'!R56*Q$1)/(SUMPRODUCT('[2]21-23 Cap Proj  Sur Alloctns'!$F$109:$S$109,$E$1:$R$1))","v":0},{"$f":"('[2]21-23 Cap Proj  Sur Alloctns'!S56*R$1)/(SUMPRODUCT('[2]21-23 Cap Proj  Sur Alloctns'!$F$109:$S$109,$E$1:$R$1))","v":0},0,0,0,0,0,0,0,0,0,0,0,0,0,0,0,0,0,0,0,0]
[null,"205","Board of Pilotage Commissioners",0,{"$f":"('[2]21-23 Cap Proj  Sur Alloctns'!F57*E$1)/(SUMPRODUCT('[2]21-23 Cap Proj  Sur Alloctns'!$F$109:$S$109,$E$1:$R$1))","v":0},{"$f":"('[2]21-23 Cap Proj  Sur Alloctns'!G57*F$1)/(SUMPRODUCT('[2]21-23 Cap Proj  Sur Alloctns'!$F$109:$S$109,$E$1:$R$1))","v":0},{"$f":"('[2]21-23 Cap Proj  Sur Alloctns'!H57*G$1)/(SUMPRODUCT('[2]21-23 Cap Proj  Sur Alloctns'!$F$109:$S$109,$E$1:$R$1))","v":0},{"$f":"('[2]21-23 Cap Proj  Sur Alloctns'!I57*H$1)/(SUMPRODUCT('[2]21-23 Cap Proj  Sur Alloctns'!$F$109:$S$109,$E$1:$R$1))","v":0},{"$f":"('[2]21-23 Cap Proj  Sur Alloctns'!J57*I$1)/(SUMPRODUCT('[2]21-23 Cap Proj  Sur Alloctns'!$F$109:$S$109,$E$1:$R$1))","v":0},{"$f":"('[2]21-23 Cap Proj  Sur Alloctns'!K57*J$1)/(SUMPRODUCT('[2]21-23 Cap Proj  Sur Alloctns'!$F$109:$S$109,$E$1:$R$1))","v":0},{"$f":"('[2]21-23 Cap Proj  Sur Alloctns'!L57*K$1)/(SUMPRODUCT('[2]21-23 Cap Proj  Sur Alloctns'!$F$109:$S$109,$E$1:$R$1))","v":0},{"$f":"('[2]21-23 Cap Proj  Sur Alloctns'!M57*L$1)/(SUMPRODUCT('[2]21-23 Cap Proj  Sur Alloctns'!$F$109:$S$109,$E$1:$R$1))","v":0},{"$f":"('[2]21-23 Cap Proj  Sur Alloctns'!N57*M$1)/(SUMPRODUCT('[2]21-23 Cap Proj  Sur Alloctns'!$F$109:$S$109,$E$1:$R$1))","v":0},{"$f":"('[2]21-23 Cap Proj  Sur Alloctns'!O57*N$1)/(SUMPRODUCT('[2]21-23 Cap Proj  Sur Alloctns'!$F$109:$S$109,$E$1:$R$1))","v":0},{"$f":"('[2]21-23 Cap Proj  Sur Alloctns'!P57*O$1)/(SUMPRODUCT('[2]21-23 Cap Proj  Sur Alloctns'!$F$109:$S$109,$E$1:$R$1))","v":0},{"$f":"('[2]21-23 Cap Proj  Sur Alloctns'!Q57*P$1)/(SUMPRODUCT('[2]21-23 Cap Proj  Sur Alloctns'!$F$109:$S$109,$E$1:$R$1))","v":0},{"$f":"('[2]21-23 Cap Proj  Sur Alloctns'!R57*Q$1)/(SUMPRODUCT('[2]21-23 Cap Proj  Sur Alloctns'!$F$109:$S$109,$E$1:$R$1))","v":0},{"$f":"('[2]21-23 Cap Proj  Sur Alloctns'!S57*R$1)/(SUMPRODUCT('[2]21-23 Cap Proj  Sur Alloctns'!$F$109:$S$109,$E$1:$R$1))","v":0},0,0,0,0,0,0,0,0,0,0,0,0,0,0,0,0,0,0,0,0]
[null,"215","Utilities and Transportation Commission",0,{"$f":"('[2]21-23 Cap Proj  Sur Alloctns'!F58*E$1)/(SUMPRODUCT('[2]21-23 Cap Proj  Sur Alloctns'!$F$109:$S$109,$E$1:$R$1))","v":0},{"$f":"('[2]21-23 Cap Proj  Sur Alloctns'!G58*F$1)/(SUMPRODUCT('[2]21-23 Cap Proj  Sur Alloctns'!$F$109:$S$109,$E$1:$R$1))","v":0},{"$f":"('[2]21-23 Cap Proj  Sur Alloctns'!H58*G$1)/(SUMPRODUCT('[2]21-23 Cap Proj  Sur Alloctns'!$F$109:$S$109,$E$1:$R$1))","v":0},{"$f":"('[2]21-23 Cap Proj  Sur Alloctns'!I58*H$1)/(SUMPRODUCT('[2]21-23 Cap Proj  Sur Alloctns'!$F$109:$S$109,$E$1:$R$1))","v":0},{"$f":"('[2]21-23 Cap Proj  Sur Alloctns'!J58*I$1)/(SUMPRODUCT('[2]21-23 Cap Proj  Sur Alloctns'!$F$109:$S$109,$E$1:$R$1))","v":0},{"$f":"('[2]21-23 Cap Proj  Sur Alloctns'!K58*J$1)/(SUMPRODUCT('[2]21-23 Cap Proj  Sur Alloctns'!$F$109:$S$109,$E$1:$R$1))","v":0},{"$f":"('[2]21-23 Cap Proj  Sur Alloctns'!L58*K$1)/(SUMPRODUCT('[2]21-23 Cap Proj  Sur Alloctns'!$F$109:$S$109,$E$1:$R$1))","v":0},{"$f":"('[2]21-23 Cap Proj  Sur Alloctns'!M58*L$1)/(SUMPRODUCT('[2]21-23 Cap Proj  Sur Alloctns'!$F$109:$S$109,$E$1:$R$1))","v":0},{"$f":"('[2]21-23 Cap Proj  Sur Alloctns'!N58*M$1)/(SUMPRODUCT('[2]21-23 Cap Proj  Sur Alloctns'!$F$109:$S$109,$E$1:$R$1))","v":0},{"$f":"('[2]21-23 Cap Proj  Sur Alloctns'!O58*N$1)/(SUMPRODUCT('[2]21-23 Cap Proj  Sur Alloctns'!$F$109:$S$109,$E$1:$R$1))","v":0},{"$f":"('[2]21-23 Cap Proj  Sur Alloctns'!P58*O$1)/(SUMPRODUCT('[2]21-23 Cap Proj  Sur Alloctns'!$F$109:$S$109,$E$1:$R$1))","v":0},{"$f":"('[2]21-23 Cap Proj  Sur Alloctns'!Q58*P$1)/(SUMPRODUCT('[2]21-23 Cap Proj  Sur Alloctns'!$F$109:$S$109,$E$1:$R$1))","v":0},{"$f":"('[2]21-23 Cap Proj  Sur Alloctns'!R58*Q$1)/(SUMPRODUCT('[2]21-23 Cap Proj  Sur Alloctns'!$F$109:$S$109,$E$1:$R$1))","v":0},{"$f":"('[2]21-23 Cap Proj  Sur Alloctns'!S58*R$1)/(SUMPRODUCT('[2]21-23 Cap Proj  Sur Alloctns'!$F$109:$S$109,$E$1:$R$1))","v":0},0,0,0,0,0,0,0,0,0,0,0,0,0,0,0,0,0,0,0,0]
[null,"220","Board for Volunteer Firefighters and Reserve Officers",0,{"$f":"('[2]21-23 Cap Proj  Sur Alloctns'!F59*E$1)/(SUMPRODUCT('[2]21-23 Cap Proj  Sur Alloctns'!$F$109:$S$109,$E$1:$R$1))","v":0},{"$f":"('[2]21-23 Cap Proj  Sur Alloctns'!G59*F$1)/(SUMPRODUCT('[2]21-23 Cap Proj  Sur Alloctns'!$F$109:$S$109,$E$1:$R$1))","v":0},{"$f":"('[2]21-23 Cap Proj  Sur Alloctns'!H59*G$1)/(SUMPRODUCT('[2]21-23 Cap Proj  Sur Alloctns'!$F$109:$S$109,$E$1:$R$1))","v":0},{"$f":"('[2]21-23 Cap Proj  Sur Alloctns'!I59*H$1)/(SUMPRODUCT('[2]21-23 Cap Proj  Sur Alloctns'!$F$109:$S$109,$E$1:$R$1))","v":0},{"$f":"('[2]21-23 Cap Proj  Sur Alloctns'!J59*I$1)/(SUMPRODUCT('[2]21-23 Cap Proj  Sur Alloctns'!$F$109:$S$109,$E$1:$R$1))","v":0},{"$f":"('[2]21-23 Cap Proj  Sur Alloctns'!K59*J$1)/(SUMPRODUCT('[2]21-23 Cap Proj  Sur Alloctns'!$F$109:$S$109,$E$1:$R$1))","v":0},{"$f":"('[2]21-23 Cap Proj  Sur Alloctns'!L59*K$1)/(SUMPRODUCT('[2]21-23 Cap Proj  Sur Alloctns'!$F$109:$S$109,$E$1:$R$1))","v":0},{"$f":"('[2]21-23 Cap Proj  Sur Alloctns'!M59*L$1)/(SUMPRODUCT('[2]21-23 Cap Proj  Sur Alloctns'!$F$109:$S$109,$E$1:$R$1))","v":0},{"$f":"('[2]21-23 Cap Proj  Sur Alloctns'!N59*M$1)/(SUMPRODUCT('[2]21-23 Cap Proj  Sur Alloctns'!$F$109:$S$109,$E$1:$R$1))","v":0},{"$f":"('[2]21-23 Cap Proj  Sur Alloctns'!O59*N$1)/(SUMPRODUCT('[2]21-23 Cap Proj  Sur Alloctns'!$F$109:$S$109,$E$1:$R$1))","v":0},{"$f":"('[2]21-23 Cap Proj  Sur Alloctns'!P59*O$1)/(SUMPRODUCT('[2]21-23 Cap Proj  Sur Alloctns'!$F$109:$S$109,$E$1:$R$1))","v":0},{"$f":"('[2]21-23 Cap Proj  Sur Alloctns'!Q59*P$1)/(SUMPRODUCT('[2]21-23 Cap Proj  Sur Alloctns'!$F$109:$S$109,$E$1:$R$1))","v":0},{"$f":"('[2]21-23 Cap Proj  Sur Alloctns'!R59*Q$1)/(SUMPRODUCT('[2]21-23 Cap Proj  Sur Alloctns'!$F$109:$S$109,$E$1:$R$1))","v":0},{"$f":"('[2]21-23 Cap Proj  Sur Alloctns'!S59*R$1)/(SUMPRODUCT('[2]21-23 Cap Proj  Sur Alloctns'!$F$109:$S$109,$E$1:$R$1))","v":0},0,0,0,0,0,0,0,0,0,0,0,0,0,0,0,0,0,0,0,0]
[null,"225","Washington State Patrol",3.5302287554431043E-4,{"$f":"('[2]21-23 Cap Proj  Sur Alloctns'!F60*E$1)/(SUMPRODUCT('[2]21-23 Cap Proj  Sur Alloctns'!$F$109:$S$109,$E$1:$R$1))","v":0},{"$f":"('[2]21-23 Cap Proj  Sur Alloctns'!G60*F$1)/(SUMPRODUCT('[2]21-23 Cap Proj  Sur Alloctns'!$F$109:$S$109,$E$1:$R$1))","v":0},{"$f":"('[2]21-23 Cap Proj  Sur Alloctns'!H60*G$1)/(SUMPRODUCT('[2]21-23 Cap Proj  Sur Alloctns'!$F$109:$S$109,$E$1:$R$1))","v":3.5302287554431043E-4},{"$f":"('[2]21-23 Cap Proj  Sur Alloctns'!I60*H$1)/(SUMPRODUCT('[2]21-23 Cap Proj  Sur Alloctns'!$F$109:$S$109,$E$1:$R$1))","v":0},{"$f":"('[2]21-23 Cap Proj  Sur Alloctns'!J60*I$1)/(SUMPRODUCT('[2]21-23 Cap Proj  Sur Alloctns'!$F$109:$S$109,$E$1:$R$1))","v":0},{"$f":"('[2]21-23 Cap Proj  Sur Alloctns'!K60*J$1)/(SUMPRODUCT('[2]21-23 Cap Proj  Sur Alloctns'!$F$109:$S$109,$E$1:$R$1))","v":0},{"$f":"('[2]21-23 Cap Proj  Sur Alloctns'!L60*K$1)/(SUMPRODUCT('[2]21-23 Cap Proj  Sur Alloctns'!$F$109:$S$109,$E$1:$R$1))","v":0},{"$f":"('[2]21-23 Cap Proj  Sur Alloctns'!M60*L$1)/(SUMPRODUCT('[2]21-23 Cap Proj  Sur Alloctns'!$F$109:$S$109,$E$1:$R$1))","v":0},{"$f":"('[2]21-23 Cap Proj  Sur Alloctns'!N60*M$1)/(SUMPRODUCT('[2]21-23 Cap Proj  Sur Alloctns'!$F$109:$S$109,$E$1:$R$1))","v":0},{"$f":"('[2]21-23 Cap Proj  Sur Alloctns'!O60*N$1)/(SUMPRODUCT('[2]21-23 Cap Proj  Sur Alloctns'!$F$109:$S$109,$E$1:$R$1))","v":0},{"$f":"('[2]21-23 Cap Proj  Sur Alloctns'!P60*O$1)/(SUMPRODUCT('[2]21-23 Cap Proj  Sur Alloctns'!$F$109:$S$109,$E$1:$R$1))","v":0},{"$f":"('[2]21-23 Cap Proj  Sur Alloctns'!Q60*P$1)/(SUMPRODUCT('[2]21-23 Cap Proj  Sur Alloctns'!$F$109:$S$109,$E$1:$R$1))","v":0},{"$f":"('[2]21-23 Cap Proj  Sur Alloctns'!R60*Q$1)/(SUMPRODUCT('[2]21-23 Cap Proj  Sur Alloctns'!$F$109:$S$109,$E$1:$R$1))","v":0},{"$f":"('[2]21-23 Cap Proj  Sur Alloctns'!S60*R$1)/(SUMPRODUCT('[2]21-23 Cap Proj  Sur Alloctns'!$F$109:$S$109,$E$1:$R$1))","v":0},0,0,0,0,0,0,0,0,0,0,0,0,0,0,0,0,0,0,0,0]
[null,"227","Criminal Justice Training Commission",0,{"$f":"('[2]21-23 Cap Proj  Sur Alloctns'!F61*E$1)/(SUMPRODUCT('[2]21-23 Cap Proj  Sur Alloctns'!$F$109:$S$109,$E$1:$R$1))","v":0},{"$f":"('[2]21-23 Cap Proj  Sur Alloctns'!G61*F$1)/(SUMPRODUCT('[2]21-23 Cap Proj  Sur Alloctns'!$F$109:$S$109,$E$1:$R$1))","v":0},{"$f":"('[2]21-23 Cap Proj  Sur Alloctns'!H61*G$1)/(SUMPRODUCT('[2]21-23 Cap Proj  Sur Alloctns'!$F$109:$S$109,$E$1:$R$1))","v":0},{"$f":"('[2]21-23 Cap Proj  Sur Alloctns'!I61*H$1)/(SUMPRODUCT('[2]21-23 Cap Proj  Sur Alloctns'!$F$109:$S$109,$E$1:$R$1))","v":0},{"$f":"('[2]21-23 Cap Proj  Sur Alloctns'!J61*I$1)/(SUMPRODUCT('[2]21-23 Cap Proj  Sur Alloctns'!$F$109:$S$109,$E$1:$R$1))","v":0},{"$f":"('[2]21-23 Cap Proj  Sur Alloctns'!K61*J$1)/(SUMPRODUCT('[2]21-23 Cap Proj  Sur Alloctns'!$F$109:$S$109,$E$1:$R$1))","v":0},{"$f":"('[2]21-23 Cap Proj  Sur Alloctns'!L61*K$1)/(SUMPRODUCT('[2]21-23 Cap Proj  Sur Alloctns'!$F$109:$S$109,$E$1:$R$1))","v":0},{"$f":"('[2]21-23 Cap Proj  Sur Alloctns'!M61*L$1)/(SUMPRODUCT('[2]21-23 Cap Proj  Sur Alloctns'!$F$109:$S$109,$E$1:$R$1))","v":0},{"$f":"('[2]21-23 Cap Proj  Sur Alloctns'!N61*M$1)/(SUMPRODUCT('[2]21-23 Cap Proj  Sur Alloctns'!$F$109:$S$109,$E$1:$R$1))","v":0},{"$f":"('[2]21-23 Cap Proj  Sur Alloctns'!O61*N$1)/(SUMPRODUCT('[2]21-23 Cap Proj  Sur Alloctns'!$F$109:$S$109,$E$1:$R$1))","v":0},{"$f":"('[2]21-23 Cap Proj  Sur Alloctns'!P61*O$1)/(SUMPRODUCT('[2]21-23 Cap Proj  Sur Alloctns'!$F$109:$S$109,$E$1:$R$1))","v":0},{"$f":"('[2]21-23 Cap Proj  Sur Alloctns'!Q61*P$1)/(SUMPRODUCT('[2]21-23 Cap Proj  Sur Alloctns'!$F$109:$S$109,$E$1:$R$1))","v":0},{"$f":"('[2]21-23 Cap Proj  Sur Alloctns'!R61*Q$1)/(SUMPRODUCT('[2]21-23 Cap Proj  Sur Alloctns'!$F$109:$S$109,$E$1:$R$1))","v":0},{"$f":"('[2]21-23 Cap Proj  Sur Alloctns'!S61*R$1)/(SUMPRODUCT('[2]21-23 Cap Proj  Sur Alloctns'!$F$109:$S$109,$E$1:$R$1))","v":0},0,0,0,0,0,0,0,0,0,0,0,0,0,0,0,0,0,0,0,0]
[null,"228","Traffic Safety Commission",0,{"$f":"('[2]21-23 Cap Proj  Sur Alloctns'!F62*E$1)/(SUMPRODUCT('[2]21-23 Cap Proj  Sur Alloctns'!$F$109:$S$109,$E$1:$R$1))","v":0},{"$f":"('[2]21-23 Cap Proj  Sur Alloctns'!G62*F$1)/(SUMPRODUCT('[2]21-23 Cap Proj  Sur Alloctns'!$F$109:$S$109,$E$1:$R$1))","v":0},{"$f":"('[2]21-23 Cap Proj  Sur Alloctns'!H62*G$1)/(SUMPRODUCT('[2]21-23 Cap Proj  Sur Alloctns'!$F$109:$S$109,$E$1:$R$1))","v":0},{"$f":"('[2]21-23 Cap Proj  Sur Alloctns'!I62*H$1)/(SUMPRODUCT('[2]21-23 Cap Proj  Sur Alloctns'!$F$109:$S$109,$E$1:$R$1))","v":0},{"$f":"('[2]21-23 Cap Proj  Sur Alloctns'!J62*I$1)/(SUMPRODUCT('[2]21-23 Cap Proj  Sur Alloctns'!$F$109:$S$109,$E$1:$R$1))","v":0},{"$f":"('[2]21-23 Cap Proj  Sur Alloctns'!K62*J$1)/(SUMPRODUCT('[2]21-23 Cap Proj  Sur Alloctns'!$F$109:$S$109,$E$1:$R$1))","v":0},{"$f":"('[2]21-23 Cap Proj  Sur Alloctns'!L62*K$1)/(SUMPRODUCT('[2]21-23 Cap Proj  Sur Alloctns'!$F$109:$S$109,$E$1:$R$1))","v":0},{"$f":"('[2]21-23 Cap Proj  Sur Alloctns'!M62*L$1)/(SUMPRODUCT('[2]21-23 Cap Proj  Sur Alloctns'!$F$109:$S$109,$E$1:$R$1))","v":0},{"$f":"('[2]21-23 Cap Proj  Sur Alloctns'!N62*M$1)/(SUMPRODUCT('[2]21-23 Cap Proj  Sur Alloctns'!$F$109:$S$109,$E$1:$R$1))","v":0},{"$f":"('[2]21-23 Cap Proj  Sur Alloctns'!O62*N$1)/(SUMPRODUCT('[2]21-23 Cap Proj  Sur Alloctns'!$F$109:$S$109,$E$1:$R$1))","v":0},{"$f":"('[2]21-23 Cap Proj  Sur Alloctns'!P62*O$1)/(SUMPRODUCT('[2]21-23 Cap Proj  Sur Alloctns'!$F$109:$S$109,$E$1:$R$1))","v":0},{"$f":"('[2]21-23 Cap Proj  Sur Alloctns'!Q62*P$1)/(SUMPRODUCT('[2]21-23 Cap Proj  Sur Alloctns'!$F$109:$S$109,$E$1:$R$1))","v":0},{"$f":"('[2]21-23 Cap Proj  Sur Alloctns'!R62*Q$1)/(SUMPRODUCT('[2]21-23 Cap Proj  Sur Alloctns'!$F$109:$S$109,$E$1:$R$1))","v":0},{"$f":"('[2]21-23 Cap Proj  Sur Alloctns'!S62*R$1)/(SUMPRODUCT('[2]21-23 Cap Proj  Sur Alloctns'!$F$109:$S$109,$E$1:$R$1))","v":0},0,0,0,0,0,0,0,0,0,0,0,0,0,0,0,0,0,0,0,0]
[null,"235","Department of Labor and Industries",0,{"$f":"('[2]21-23 Cap Proj  Sur Alloctns'!F63*E$1)/(SUMPRODUCT('[2]21-23 Cap Proj  Sur Alloctns'!$F$109:$S$109,$E$1:$R$1))","v":0},{"$f":"('[2]21-23 Cap Proj  Sur Alloctns'!G63*F$1)/(SUMPRODUCT('[2]21-23 Cap Proj  Sur Alloctns'!$F$109:$S$109,$E$1:$R$1))","v":0},{"$f":"('[2]21-23 Cap Proj  Sur Alloctns'!H63*G$1)/(SUMPRODUCT('[2]21-23 Cap Proj  Sur Alloctns'!$F$109:$S$109,$E$1:$R$1))","v":0},{"$f":"('[2]21-23 Cap Proj  Sur Alloctns'!I63*H$1)/(SUMPRODUCT('[2]21-23 Cap Proj  Sur Alloctns'!$F$109:$S$109,$E$1:$R$1))","v":0},{"$f":"('[2]21-23 Cap Proj  Sur Alloctns'!J63*I$1)/(SUMPRODUCT('[2]21-23 Cap Proj  Sur Alloctns'!$F$109:$S$109,$E$1:$R$1))","v":0},{"$f":"('[2]21-23 Cap Proj  Sur Alloctns'!K63*J$1)/(SUMPRODUCT('[2]21-23 Cap Proj  Sur Alloctns'!$F$109:$S$109,$E$1:$R$1))","v":0},{"$f":"('[2]21-23 Cap Proj  Sur Alloctns'!L63*K$1)/(SUMPRODUCT('[2]21-23 Cap Proj  Sur Alloctns'!$F$109:$S$109,$E$1:$R$1))","v":0},{"$f":"('[2]21-23 Cap Proj  Sur Alloctns'!M63*L$1)/(SUMPRODUCT('[2]21-23 Cap Proj  Sur Alloctns'!$F$109:$S$109,$E$1:$R$1))","v":0},{"$f":"('[2]21-23 Cap Proj  Sur Alloctns'!N63*M$1)/(SUMPRODUCT('[2]21-23 Cap Proj  Sur Alloctns'!$F$109:$S$109,$E$1:$R$1))","v":0},{"$f":"('[2]21-23 Cap Proj  Sur Alloctns'!O63*N$1)/(SUMPRODUCT('[2]21-23 Cap Proj  Sur Alloctns'!$F$109:$S$109,$E$1:$R$1))","v":0},{"$f":"('[2]21-23 Cap Proj  Sur Alloctns'!P63*O$1)/(SUMPRODUCT('[2]21-23 Cap Proj  Sur Alloctns'!$F$109:$S$109,$E$1:$R$1))","v":0},{"$f":"('[2]21-23 Cap Proj  Sur Alloctns'!Q63*P$1)/(SUMPRODUCT('[2]21-23 Cap Proj  Sur Alloctns'!$F$109:$S$109,$E$1:$R$1))","v":0},{"$f":"('[2]21-23 Cap Proj  Sur Alloctns'!R63*Q$1)/(SUMPRODUCT('[2]21-23 Cap Proj  Sur Alloctns'!$F$109:$S$109,$E$1:$R$1))","v":0},{"$f":"('[2]21-23 Cap Proj  Sur Alloctns'!S63*R$1)/(SUMPRODUCT('[2]21-23 Cap Proj  Sur Alloctns'!$F$109:$S$109,$E$1:$R$1))","v":0},0,0,0,0,0,0,0,0,0,0,0,0,0,0,0,0,0,0,0,0]
[null,"240","Department of Licensing",5.9174791985147919E-2,{"$f":"('[2]21-23 Cap Proj  Sur Alloctns'!F64*E$1)/(SUMPRODUCT('[2]21-23 Cap Proj  Sur Alloctns'!$F$109:$S$109,$E$1:$R$1))","v":0},{"$f":"('[2]21-23 Cap Proj  Sur Alloctns'!G64*F$1)/(SUMPRODUCT('[2]21-23 Cap Proj  Sur Alloctns'!$F$109:$S$109,$E$1:$R$1))","v":0},{"$f":"('[2]21-23 Cap Proj  Sur Alloctns'!H64*G$1)/(SUMPRODUCT('[2]21-23 Cap Proj  Sur Alloctns'!$F$109:$S$109,$E$1:$R$1))","v":0},{"$f":"('[2]21-23 Cap Proj  Sur Alloctns'!I64*H$1)/(SUMPRODUCT('[2]21-23 Cap Proj  Sur Alloctns'!$F$109:$S$109,$E$1:$R$1))","v":0},{"$f":"('[2]21-23 Cap Proj  Sur Alloctns'!J64*I$1)/(SUMPRODUCT('[2]21-23 Cap Proj  Sur Alloctns'!$F$109:$S$109,$E$1:$R$1))","v":5.9174791985147919E-2},{"$f":"('[2]21-23 Cap Proj  Sur Alloctns'!K64*J$1)/(SUMPRODUCT('[2]21-23 Cap Proj  Sur Alloctns'!$F$109:$S$109,$E$1:$R$1))","v":0},{"$f":"('[2]21-23 Cap Proj  Sur Alloctns'!L64*K$1)/(SUMPRODUCT('[2]21-23 Cap Proj  Sur Alloctns'!$F$109:$S$109,$E$1:$R$1))","v":0},{"$f":"('[2]21-23 Cap Proj  Sur Alloctns'!M64*L$1)/(SUMPRODUCT('[2]21-23 Cap Proj  Sur Alloctns'!$F$109:$S$109,$E$1:$R$1))","v":0},{"$f":"('[2]21-23 Cap Proj  Sur Alloctns'!N64*M$1)/(SUMPRODUCT('[2]21-23 Cap Proj  Sur Alloctns'!$F$109:$S$109,$E$1:$R$1))","v":0},{"$f":"('[2]21-23 Cap Proj  Sur Alloctns'!O64*N$1)/(SUMPRODUCT('[2]21-23 Cap Proj  Sur Alloctns'!$F$109:$S$109,$E$1:$R$1))","v":0},{"$f":"('[2]21-23 Cap Proj  Sur Alloctns'!P64*O$1)/(SUMPRODUCT('[2]21-23 Cap Proj  Sur Alloctns'!$F$109:$S$109,$E$1:$R$1))","v":0},{"$f":"('[2]21-23 Cap Proj  Sur Alloctns'!Q64*P$1)/(SUMPRODUCT('[2]21-23 Cap Proj  Sur Alloctns'!$F$109:$S$109,$E$1:$R$1))","v":0},{"$f":"('[2]21-23 Cap Proj  Sur Alloctns'!R64*Q$1)/(SUMPRODUCT('[2]21-23 Cap Proj  Sur Alloctns'!$F$109:$S$109,$E$1:$R$1))","v":0},{"$f":"('[2]21-23 Cap Proj  Sur Alloctns'!S64*R$1)/(SUMPRODUCT('[2]21-23 Cap Proj  Sur Alloctns'!$F$109:$S$109,$E$1:$R$1))","v":0},0,0,0,0,0,0,0,0,0,0,0,0,0,0,0,0,0,0,0,0]
[null,"245","Military Department",0,{"$f":"('[2]21-23 Cap Proj  Sur Alloctns'!F65*E$1)/(SUMPRODUCT('[2]21-23 Cap Proj  Sur Alloctns'!$F$109:$S$109,$E$1:$R$1))","v":0},{"$f":"('[2]21-23 Cap Proj  Sur Alloctns'!G65*F$1)/(SUMPRODUCT('[2]21-23 Cap Proj  Sur Alloctns'!$F$109:$S$109,$E$1:$R$1))","v":0},{"$f":"('[2]21-23 Cap Proj  Sur Alloctns'!H65*G$1)/(SUMPRODUCT('[2]21-23 Cap Proj  Sur Alloctns'!$F$109:$S$109,$E$1:$R$1))","v":0},{"$f":"('[2]21-23 Cap Proj  Sur Alloctns'!I65*H$1)/(SUMPRODUCT('[2]21-23 Cap Proj  Sur Alloctns'!$F$109:$S$109,$E$1:$R$1))","v":0},{"$f":"('[2]21-23 Cap Proj  Sur Alloctns'!J65*I$1)/(SUMPRODUCT('[2]21-23 Cap Proj  Sur Alloctns'!$F$109:$S$109,$E$1:$R$1))","v":0},{"$f":"('[2]21-23 Cap Proj  Sur Alloctns'!K65*J$1)/(SUMPRODUCT('[2]21-23 Cap Proj  Sur Alloctns'!$F$109:$S$109,$E$1:$R$1))","v":0},{"$f":"('[2]21-23 Cap Proj  Sur Alloctns'!L65*K$1)/(SUMPRODUCT('[2]21-23 Cap Proj  Sur Alloctns'!$F$109:$S$109,$E$1:$R$1))","v":0},{"$f":"('[2]21-23 Cap Proj  Sur Alloctns'!M65*L$1)/(SUMPRODUCT('[2]21-23 Cap Proj  Sur Alloctns'!$F$109:$S$109,$E$1:$R$1))","v":0},{"$f":"('[2]21-23 Cap Proj  Sur Alloctns'!N65*M$1)/(SUMPRODUCT('[2]21-23 Cap Proj  Sur Alloctns'!$F$109:$S$109,$E$1:$R$1))","v":0},{"$f":"('[2]21-23 Cap Proj  Sur Alloctns'!O65*N$1)/(SUMPRODUCT('[2]21-23 Cap Proj  Sur Alloctns'!$F$109:$S$109,$E$1:$R$1))","v":0},{"$f":"('[2]21-23 Cap Proj  Sur Alloctns'!P65*O$1)/(SUMPRODUCT('[2]21-23 Cap Proj  Sur Alloctns'!$F$109:$S$109,$E$1:$R$1))","v":0},{"$f":"('[2]21-23 Cap Proj  Sur Alloctns'!Q65*P$1)/(SUMPRODUCT('[2]21-23 Cap Proj  Sur Alloctns'!$F$109:$S$109,$E$1:$R$1))","v":0},{"$f":"('[2]21-23 Cap Proj  Sur Alloctns'!R65*Q$1)/(SUMPRODUCT('[2]21-23 Cap Proj  Sur Alloctns'!$F$109:$S$109,$E$1:$R$1))","v":0},{"$f":"('[2]21-23 Cap Proj  Sur Alloctns'!S65*R$1)/(SUMPRODUCT('[2]21-23 Cap Proj  Sur Alloctns'!$F$109:$S$109,$E$1:$R$1))","v":0},0,0,0,0,0,0,0,0,0,0,0,0,0,0,0,0,0,0,0,0]
[null,"275","Public Employment Relations Commission",0,{"$f":"('[2]21-23 Cap Proj  Sur Alloctns'!F66*E$1)/(SUMPRODUCT('[2]21-23 Cap Proj  Sur Alloctns'!$F$109:$S$109,$E$1:$R$1))","v":0},{"$f":"('[2]21-23 Cap Proj  Sur Alloctns'!G66*F$1)/(SUMPRODUCT('[2]21-23 Cap Proj  Sur Alloctns'!$F$109:$S$109,$E$1:$R$1))","v":0},{"$f":"('[2]21-23 Cap Proj  Sur Alloctns'!H66*G$1)/(SUMPRODUCT('[2]21-23 Cap Proj  Sur Alloctns'!$F$109:$S$109,$E$1:$R$1))","v":0},{"$f":"('[2]21-23 Cap Proj  Sur Alloctns'!I66*H$1)/(SUMPRODUCT('[2]21-23 Cap Proj  Sur Alloctns'!$F$109:$S$109,$E$1:$R$1))","v":0},{"$f":"('[2]21-23 Cap Proj  Sur Alloctns'!J66*I$1)/(SUMPRODUCT('[2]21-23 Cap Proj  Sur Alloctns'!$F$109:$S$109,$E$1:$R$1))","v":0},{"$f":"('[2]21-23 Cap Proj  Sur Alloctns'!K66*J$1)/(SUMPRODUCT('[2]21-23 Cap Proj  Sur Alloctns'!$F$109:$S$109,$E$1:$R$1))","v":0},{"$f":"('[2]21-23 Cap Proj  Sur Alloctns'!L66*K$1)/(SUMPRODUCT('[2]21-23 Cap Proj  Sur Alloctns'!$F$109:$S$109,$E$1:$R$1))","v":0},{"$f":"('[2]21-23 Cap Proj  Sur Alloctns'!M66*L$1)/(SUMPRODUCT('[2]21-23 Cap Proj  Sur Alloctns'!$F$109:$S$109,$E$1:$R$1))","v":0},{"$f":"('[2]21-23 Cap Proj  Sur Alloctns'!N66*M$1)/(SUMPRODUCT('[2]21-23 Cap Proj  Sur Alloctns'!$F$109:$S$109,$E$1:$R$1))","v":0},{"$f":"('[2]21-23 Cap Proj  Sur Alloctns'!O66*N$1)/(SUMPRODUCT('[2]21-23 Cap Proj  Sur Alloctns'!$F$109:$S$109,$E$1:$R$1))","v":0},{"$f":"('[2]21-23 Cap Proj  Sur Alloctns'!P66*O$1)/(SUMPRODUCT('[2]21-23 Cap Proj  Sur Alloctns'!$F$109:$S$109,$E$1:$R$1))","v":0},{"$f":"('[2]21-23 Cap Proj  Sur Alloctns'!Q66*P$1)/(SUMPRODUCT('[2]21-23 Cap Proj  Sur Alloctns'!$F$109:$S$109,$E$1:$R$1))","v":0},{"$f":"('[2]21-23 Cap Proj  Sur Alloctns'!R66*Q$1)/(SUMPRODUCT('[2]21-23 Cap Proj  Sur Alloctns'!$F$109:$S$109,$E$1:$R$1))","v":0},{"$f":"('[2]21-23 Cap Proj  Sur Alloctns'!S66*R$1)/(SUMPRODUCT('[2]21-23 Cap Proj  Sur Alloctns'!$F$109:$S$109,$E$1:$R$1))","v":0},0,0,0,0,0,0,0,0,0,0,0,0,0,0,0,0,0,0,0,0]
[null,"300","Department of Social and Health Services",0.1094988704219565,{"$f":"('[2]21-23 Cap Proj  Sur Alloctns'!F67*E$1)/(SUMPRODUCT('[2]21-23 Cap Proj  Sur Alloctns'!$F$109:$S$109,$E$1:$R$1))","v":0},{"$f":"('[2]21-23 Cap Proj  Sur Alloctns'!G67*F$1)/(SUMPRODUCT('[2]21-23 Cap Proj  Sur Alloctns'!$F$109:$S$109,$E$1:$R$1))","v":0},{"$f":"('[2]21-23 Cap Proj  Sur Alloctns'!H67*G$1)/(SUMPRODUCT('[2]21-23 Cap Proj  Sur Alloctns'!$F$109:$S$109,$E$1:$R$1))","v":0},{"$f":"('[2]21-23 Cap Proj  Sur Alloctns'!I67*H$1)/(SUMPRODUCT('[2]21-23 Cap Proj  Sur Alloctns'!$F$109:$S$109,$E$1:$R$1))","v":0},{"$f":"('[2]21-23 Cap Proj  Sur Alloctns'!J67*I$1)/(SUMPRODUCT('[2]21-23 Cap Proj  Sur Alloctns'!$F$109:$S$109,$E$1:$R$1))","v":0},{"$f":"('[2]21-23 Cap Proj  Sur Alloctns'!K67*J$1)/(SUMPRODUCT('[2]21-23 Cap Proj  Sur Alloctns'!$F$109:$S$109,$E$1:$R$1))","v":0.1094988704219565},{"$f":"('[2]21-23 Cap Proj  Sur Alloctns'!L67*K$1)/(SUMPRODUCT('[2]21-23 Cap Proj  Sur Alloctns'!$F$109:$S$109,$E$1:$R$1))","v":0},{"$f":"('[2]21-23 Cap Proj  Sur Alloctns'!M67*L$1)/(SUMPRODUCT('[2]21-23 Cap Proj  Sur Alloctns'!$F$109:$S$109,$E$1:$R$1))","v":0},{"$f":"('[2]21-23 Cap Proj  Sur Alloctns'!N67*M$1)/(SUMPRODUCT('[2]21-23 Cap Proj  Sur Alloctns'!$F$109:$S$109,$E$1:$R$1))","v":0},{"$f":"('[2]21-23 Cap Proj  Sur Alloctns'!O67*N$1)/(SUMPRODUCT('[2]21-23 Cap Proj  Sur Alloctns'!$F$109:$S$109,$E$1:$R$1))","v":0},{"$f":"('[2]21-23 Cap Proj  Sur Alloctns'!P67*O$1)/(SUMPRODUCT('[2]21-23 Cap Proj  Sur Alloctns'!$F$109:$S$109,$E$1:$R$1))","v":0},{"$f":"('[2]21-23 Cap Proj  Sur Alloctns'!Q67*P$1)/(SUMPRODUCT('[2]21-23 Cap Proj  Sur Alloctns'!$F$109:$S$109,$E$1:$R$1))","v":0},{"$f":"('[2]21-23 Cap Proj  Sur Alloctns'!R67*Q$1)/(SUMPRODUCT('[2]21-23 Cap Proj  Sur Alloctns'!$F$109:$S$109,$E$1:$R$1))","v":0},{"$f":"('[2]21-23 Cap Proj  Sur Alloctns'!S67*R$1)/(SUMPRODUCT('[2]21-23 Cap Proj  Sur Alloctns'!$F$109:$S$109,$E$1:$R$1))","v":0},0,0,0,0,0,0,0,0,0,0,0,0,0,0,0,0,0,0,0,0]
[null,"303","Department of Health",0,{"$f":"('[2]21-23 Cap Proj  Sur Alloctns'!F68*E$1)/(SUMPRODUCT('[2]21-23 Cap Proj  Sur Alloctns'!$F$109:$S$109,$E$1:$R$1))","v":0},{"$f":"('[2]21-23 Cap Proj  Sur Alloctns'!G68*F$1)/(SUMPRODUCT('[2]21-23 Cap Proj  Sur Alloctns'!$F$109:$S$109,$E$1:$R$1))","v":0},{"$f":"('[2]21-23 Cap Proj  Sur Alloctns'!H68*G$1)/(SUMPRODUCT('[2]21-23 Cap Proj  Sur Alloctns'!$F$109:$S$109,$E$1:$R$1))","v":0},{"$f":"('[2]21-23 Cap Proj  Sur Alloctns'!I68*H$1)/(SUMPRODUCT('[2]21-23 Cap Proj  Sur Alloctns'!$F$109:$S$109,$E$1:$R$1))","v":0},{"$f":"('[2]21-23 Cap Proj  Sur Alloctns'!J68*I$1)/(SUMPRODUCT('[2]21-23 Cap Proj  Sur Alloctns'!$F$109:$S$109,$E$1:$R$1))","v":0},{"$f":"('[2]21-23 Cap Proj  Sur Alloctns'!K68*J$1)/(SUMPRODUCT('[2]21-23 Cap Proj  Sur Alloctns'!$F$109:$S$109,$E$1:$R$1))","v":0},{"$f":"('[2]21-23 Cap Proj  Sur Alloctns'!L68*K$1)/(SUMPRODUCT('[2]21-23 Cap Proj  Sur Alloctns'!$F$109:$S$109,$E$1:$R$1))","v":0},{"$f":"('[2]21-23 Cap Proj  Sur Alloctns'!M68*L$1)/(SUMPRODUCT('[2]21-23 Cap Proj  Sur Alloctns'!$F$109:$S$109,$E$1:$R$1))","v":0},{"$f":"('[2]21-23 Cap Proj  Sur Alloctns'!N68*M$1)/(SUMPRODUCT('[2]21-23 Cap Proj  Sur Alloctns'!$F$109:$S$109,$E$1:$R$1))","v":0},{"$f":"('[2]21-23 Cap Proj  Sur Alloctns'!O68*N$1)/(SUMPRODUCT('[2]21-23 Cap Proj  Sur Alloctns'!$F$109:$S$109,$E$1:$R$1))","v":0},{"$f":"('[2]21-23 Cap Proj  Sur Alloctns'!P68*O$1)/(SUMPRODUCT('[2]21-23 Cap Proj  Sur Alloctns'!$F$109:$S$109,$E$1:$R$1))","v":0},{"$f":"('[2]21-23 Cap Proj  Sur Alloctns'!Q68*P$1)/(SUMPRODUCT('[2]21-23 Cap Proj  Sur Alloctns'!$F$109:$S$109,$E$1:$R$1))","v":0},{"$f":"('[2]21-23 Cap Proj  Sur Alloctns'!R68*Q$1)/(SUMPRODUCT('[2]21-23 Cap Proj  Sur Alloctns'!$F$109:$S$109,$E$1:$R$1))","v":0},{"$f":"('[2]21-23 Cap Proj  Sur Alloctns'!S68*R$1)/(SUMPRODUCT('[2]21-23 Cap Proj  Sur Alloctns'!$F$109:$S$109,$E$1:$R$1))","v":0},0,0,0,0,0,0,0,0,0,0,0,0,0,0,0,0,0,0,0,0]
[null,"305","Department of Veterans Affairs",0,{"$f":"('[2]21-23 Cap Proj  Sur Alloctns'!F69*E$1)/(SUMPRODUCT('[2]21-23 Cap Proj  Sur Alloctns'!$F$109:$S$109,$E$1:$R$1))","v":0},{"$f":"('[2]21-23 Cap Proj  Sur Alloctns'!G69*F$1)/(SUMPRODUCT('[2]21-23 Cap Proj  Sur Alloctns'!$F$109:$S$109,$E$1:$R$1))","v":0},{"$f":"('[2]21-23 Cap Proj  Sur Alloctns'!H69*G$1)/(SUMPRODUCT('[2]21-23 Cap Proj  Sur Alloctns'!$F$109:$S$109,$E$1:$R$1))","v":0},{"$f":"('[2]21-23 Cap Proj  Sur Alloctns'!I69*H$1)/(SUMPRODUCT('[2]21-23 Cap Proj  Sur Alloctns'!$F$109:$S$109,$E$1:$R$1))","v":0},{"$f":"('[2]21-23 Cap Proj  Sur Alloctns'!J69*I$1)/(SUMPRODUCT('[2]21-23 Cap Proj  Sur Alloctns'!$F$109:$S$109,$E$1:$R$1))","v":0},{"$f":"('[2]21-23 Cap Proj  Sur Alloctns'!K69*J$1)/(SUMPRODUCT('[2]21-23 Cap Proj  Sur Alloctns'!$F$109:$S$109,$E$1:$R$1))","v":0},{"$f":"('[2]21-23 Cap Proj  Sur Alloctns'!L69*K$1)/(SUMPRODUCT('[2]21-23 Cap Proj  Sur Alloctns'!$F$109:$S$109,$E$1:$R$1))","v":0},{"$f":"('[2]21-23 Cap Proj  Sur Alloctns'!M69*L$1)/(SUMPRODUCT('[2]21-23 Cap Proj  Sur Alloctns'!$F$109:$S$109,$E$1:$R$1))","v":0},{"$f":"('[2]21-23 Cap Proj  Sur Alloctns'!N69*M$1)/(SUMPRODUCT('[2]21-23 Cap Proj  Sur Alloctns'!$F$109:$S$109,$E$1:$R$1))","v":0},{"$f":"('[2]21-23 Cap Proj  Sur Alloctns'!O69*N$1)/(SUMPRODUCT('[2]21-23 Cap Proj  Sur Alloctns'!$F$109:$S$109,$E$1:$R$1))","v":0},{"$f":"('[2]21-23 Cap Proj  Sur Alloctns'!P69*O$1)/(SUMPRODUCT('[2]21-23 Cap Proj  Sur Alloctns'!$F$109:$S$109,$E$1:$R$1))","v":0},{"$f":"('[2]21-23 Cap Proj  Sur Alloctns'!Q69*P$1)/(SUMPRODUCT('[2]21-23 Cap Proj  Sur Alloctns'!$F$109:$S$109,$E$1:$R$1))","v":0},{"$f":"('[2]21-23 Cap Proj  Sur Alloctns'!R69*Q$1)/(SUMPRODUCT('[2]21-23 Cap Proj  Sur Alloctns'!$F$109:$S$109,$E$1:$R$1))","v":0},{"$f":"('[2]21-23 Cap Proj  Sur Alloctns'!S69*R$1)/(SUMPRODUCT('[2]21-23 Cap Proj  Sur Alloctns'!$F$109:$S$109,$E$1:$R$1))","v":0},0,0,0,0,0,0,0,0,0,0,0,0,0,0,0,0,0,0,0,0]
[null,"307","DCYF",{"$f":"SUM(E70:AL70)","v":4.4835262974417978E-2},{"$f":"('[2]21-23 Cap Proj  Sur Alloctns'!F70*E$1)/(SUMPRODUCT('[2]21-23 Cap Proj  Sur Alloctns'!$F$109:$S$109,$E$1:$R$1))","v":0},{"$f":"('[2]21-23 Cap Proj  Sur Alloctns'!G70*F$1)/(SUMPRODUCT('[2]21-23 Cap Proj  Sur Alloctns'!$F$109:$S$109,$E$1:$R$1))","v":0},{"$f":"('[2]21-23 Cap Proj  Sur Alloctns'!H70*G$1)/(SUMPRODUCT('[2]21-23 Cap Proj  Sur Alloctns'!$F$109:$S$109,$E$1:$R$1))","v":0},{"$f":"('[2]21-23 Cap Proj  Sur Alloctns'!I70*H$1)/(SUMPRODUCT('[2]21-23 Cap Proj  Sur Alloctns'!$F$109:$S$109,$E$1:$R$1))","v":0},{"$f":"('[2]21-23 Cap Proj  Sur Alloctns'!J70*I$1)/(SUMPRODUCT('[2]21-23 Cap Proj  Sur Alloctns'!$F$109:$S$109,$E$1:$R$1))","v":0},{"$f":"('[2]21-23 Cap Proj  Sur Alloctns'!K70*J$1)/(SUMPRODUCT('[2]21-23 Cap Proj  Sur Alloctns'!$F$109:$S$109,$E$1:$R$1))","v":4.4835262974417978E-2},{"$f":"('[2]21-23 Cap Proj  Sur Alloctns'!L70*K$1)/(SUMPRODUCT('[2]21-23 Cap Proj  Sur Alloctns'!$F$109:$S$109,$E$1:$R$1))","v":0},{"$f":"('[2]21-23 Cap Proj  Sur Alloctns'!M70*L$1)/(SUMPRODUCT('[2]21-23 Cap Proj  Sur Alloctns'!$F$109:$S$109,$E$1:$R$1))","v":0},{"$f":"('[2]21-23 Cap Proj  Sur Alloctns'!N70*M$1)/(SUMPRODUCT('[2]21-23 Cap Proj  Sur Alloctns'!$F$109:$S$109,$E$1:$R$1))","v":0},{"$f":"('[2]21-23 Cap Proj  Sur Alloctns'!O70*N$1)/(SUMPRODUCT('[2]21-23 Cap Proj  Sur Alloctns'!$F$109:$S$109,$E$1:$R$1))","v":0},{"$f":"('[2]21-23 Cap Proj  Sur Alloctns'!P70*O$1)/(SUMPRODUCT('[2]21-23 Cap Proj  Sur Alloctns'!$F$109:$S$109,$E$1:$R$1))","v":0},{"$f":"('[2]21-23 Cap Proj  Sur Alloctns'!Q70*P$1)/(SUMPRODUCT('[2]21-23 Cap Proj  Sur Alloctns'!$F$109:$S$109,$E$1:$R$1))","v":0},{"$f":"('[2]21-23 Cap Proj  Sur Alloctns'!R70*Q$1)/(SUMPRODUCT('[2]21-23 Cap Proj  Sur Alloctns'!$F$109:$S$109,$E$1:$R$1))","v":0},{"$f":"('[2]21-23 Cap Proj  Sur Alloctns'!S70*R$1)/(SUMPRODUCT('[2]21-23 Cap Proj  Sur Alloctns'!$F$109:$S$109,$E$1:$R$1))","v":0},0,0,0,0,0,0,0,0,0,0,0,0,0,0,0,0,0,0,0,0]
[null,"310","Department of Corrections",0,{"$f":"('[2]21-23 Cap Proj  Sur Alloctns'!F71*E$1)/(SUMPRODUCT('[2]21-23 Cap Proj  Sur Alloctns'!$F$109:$S$109,$E$1:$R$1))","v":0},{"$f":"('[2]21-23 Cap Proj  Sur Alloctns'!G71*F$1)/(SUMPRODUCT('[2]21-23 Cap Proj  Sur Alloctns'!$F$109:$S$109,$E$1:$R$1))","v":0},{"$f":"('[2]21-23 Cap Proj  Sur Alloctns'!H71*G$1)/(SUMPRODUCT('[2]21-23 Cap Proj  Sur Alloctns'!$F$109:$S$109,$E$1:$R$1))","v":0},{"$f":"('[2]21-23 Cap Proj  Sur Alloctns'!I71*H$1)/(SUMPRODUCT('[2]21-23 Cap Proj  Sur Alloctns'!$F$109:$S$109,$E$1:$R$1))","v":0},{"$f":"('[2]21-23 Cap Proj  Sur Alloctns'!J71*I$1)/(SUMPRODUCT('[2]21-23 Cap Proj  Sur Alloctns'!$F$109:$S$109,$E$1:$R$1))","v":0},{"$f":"('[2]21-23 Cap Proj  Sur Alloctns'!K71*J$1)/(SUMPRODUCT('[2]21-23 Cap Proj  Sur Alloctns'!$F$109:$S$109,$E$1:$R$1))","v":0},{"$f":"('[2]21-23 Cap Proj  Sur Alloctns'!L71*K$1)/(SUMPRODUCT('[2]21-23 Cap Proj  Sur Alloctns'!$F$109:$S$109,$E$1:$R$1))","v":0},{"$f":"('[2]21-23 Cap Proj  Sur Alloctns'!M71*L$1)/(SUMPRODUCT('[2]21-23 Cap Proj  Sur Alloctns'!$F$109:$S$109,$E$1:$R$1))","v":0},{"$f":"('[2]21-23 Cap Proj  Sur Alloctns'!N71*M$1)/(SUMPRODUCT('[2]21-23 Cap Proj  Sur Alloctns'!$F$109:$S$109,$E$1:$R$1))","v":0},{"$f":"('[2]21-23 Cap Proj  Sur Alloctns'!O71*N$1)/(SUMPRODUCT('[2]21-23 Cap Proj  Sur Alloctns'!$F$109:$S$109,$E$1:$R$1))","v":0},{"$f":"('[2]21-23 Cap Proj  Sur Alloctns'!P71*O$1)/(SUMPRODUCT('[2]21-23 Cap Proj  Sur Alloctns'!$F$109:$S$109,$E$1:$R$1))","v":0},{"$f":"('[2]21-23 Cap Proj  Sur Alloctns'!Q71*P$1)/(SUMPRODUCT('[2]21-23 Cap Proj  Sur Alloctns'!$F$109:$S$109,$E$1:$R$1))","v":0},{"$f":"('[2]21-23 Cap Proj  Sur Alloctns'!R71*Q$1)/(SUMPRODUCT('[2]21-23 Cap Proj  Sur Alloctns'!$F$109:$S$109,$E$1:$R$1))","v":0},{"$f":"('[2]21-23 Cap Proj  Sur Alloctns'!S71*R$1)/(SUMPRODUCT('[2]21-23 Cap Proj  Sur Alloctns'!$F$109:$S$109,$E$1:$R$1))","v":0},0,0,0,0,0,0,0,0,0,0,0,0,0,0,0,0,0,0,0,0]
[null,"315","Department of Services for the Blind",0,{"$f":"('[2]21-23 Cap Proj  Sur Alloctns'!F72*E$1)/(SUMPRODUCT('[2]21-23 Cap Proj  Sur Alloctns'!$F$109:$S$109,$E$1:$R$1))","v":0},{"$f":"('[2]21-23 Cap Proj  Sur Alloctns'!G72*F$1)/(SUMPRODUCT('[2]21-23 Cap Proj  Sur Alloctns'!$F$109:$S$109,$E$1:$R$1))","v":0},{"$f":"('[2]21-23 Cap Proj  Sur Alloctns'!H72*G$1)/(SUMPRODUCT('[2]21-23 Cap Proj  Sur Alloctns'!$F$109:$S$109,$E$1:$R$1))","v":0},{"$f":"('[2]21-23 Cap Proj  Sur Alloctns'!I72*H$1)/(SUMPRODUCT('[2]21-23 Cap Proj  Sur Alloctns'!$F$109:$S$109,$E$1:$R$1))","v":0},{"$f":"('[2]21-23 Cap Proj  Sur Alloctns'!J72*I$1)/(SUMPRODUCT('[2]21-23 Cap Proj  Sur Alloctns'!$F$109:$S$109,$E$1:$R$1))","v":0},{"$f":"('[2]21-23 Cap Proj  Sur Alloctns'!K72*J$1)/(SUMPRODUCT('[2]21-23 Cap Proj  Sur Alloctns'!$F$109:$S$109,$E$1:$R$1))","v":0},{"$f":"('[2]21-23 Cap Proj  Sur Alloctns'!L72*K$1)/(SUMPRODUCT('[2]21-23 Cap Proj  Sur Alloctns'!$F$109:$S$109,$E$1:$R$1))","v":0},{"$f":"('[2]21-23 Cap Proj  Sur Alloctns'!M72*L$1)/(SUMPRODUCT('[2]21-23 Cap Proj  Sur Alloctns'!$F$109:$S$109,$E$1:$R$1))","v":0},{"$f":"('[2]21-23 Cap Proj  Sur Alloctns'!N72*M$1)/(SUMPRODUCT('[2]21-23 Cap Proj  Sur Alloctns'!$F$109:$S$109,$E$1:$R$1))","v":0},{"$f":"('[2]21-23 Cap Proj  Sur Alloctns'!O72*N$1)/(SUMPRODUCT('[2]21-23 Cap Proj  Sur Alloctns'!$F$109:$S$109,$E$1:$R$1))","v":0},{"$f":"('[2]21-23 Cap Proj  Sur Alloctns'!P72*O$1)/(SUMPRODUCT('[2]21-23 Cap Proj  Sur Alloctns'!$F$109:$S$109,$E$1:$R$1))","v":0},{"$f":"('[2]21-23 Cap Proj  Sur Alloctns'!Q72*P$1)/(SUMPRODUCT('[2]21-23 Cap Proj  Sur Alloctns'!$F$109:$S$109,$E$1:$R$1))","v":0},{"$f":"('[2]21-23 Cap Proj  Sur Alloctns'!R72*Q$1)/(SUMPRODUCT('[2]21-23 Cap Proj  Sur Alloctns'!$F$109:$S$109,$E$1:$R$1))","v":0},{"$f":"('[2]21-23 Cap Proj  Sur Alloctns'!S72*R$1)/(SUMPRODUCT('[2]21-23 Cap Proj  Sur Alloctns'!$F$109:$S$109,$E$1:$R$1))","v":0},0,0,0,0,0,0,0,0,0,0,0,0,0,0,0,0,0,0,0,0]
[null,"340","Student Achievement Council",0,{"$f":"('[2]21-23 Cap Proj  Sur Alloctns'!F73*E$1)/(SUMPRODUCT('[2]21-23 Cap Proj  Sur Alloctns'!$F$109:$S$109,$E$1:$R$1))","v":0},{"$f":"('[2]21-23 Cap Proj  Sur Alloctns'!G73*F$1)/(SUMPRODUCT('[2]21-23 Cap Proj  Sur Alloctns'!$F$109:$S$109,$E$1:$R$1))","v":0},{"$f":"('[2]21-23 Cap Proj  Sur Alloctns'!H73*G$1)/(SUMPRODUCT('[2]21-23 Cap Proj  Sur Alloctns'!$F$109:$S$109,$E$1:$R$1))","v":0},{"$f":"('[2]21-23 Cap Proj  Sur Alloctns'!I73*H$1)/(SUMPRODUCT('[2]21-23 Cap Proj  Sur Alloctns'!$F$109:$S$109,$E$1:$R$1))","v":0},{"$f":"('[2]21-23 Cap Proj  Sur Alloctns'!J73*I$1)/(SUMPRODUCT('[2]21-23 Cap Proj  Sur Alloctns'!$F$109:$S$109,$E$1:$R$1))","v":0},{"$f":"('[2]21-23 Cap Proj  Sur Alloctns'!K73*J$1)/(SUMPRODUCT('[2]21-23 Cap Proj  Sur Alloctns'!$F$109:$S$109,$E$1:$R$1))","v":0},{"$f":"('[2]21-23 Cap Proj  Sur Alloctns'!L73*K$1)/(SUMPRODUCT('[2]21-23 Cap Proj  Sur Alloctns'!$F$109:$S$109,$E$1:$R$1))","v":0},{"$f":"('[2]21-23 Cap Proj  Sur Alloctns'!M73*L$1)/(SUMPRODUCT('[2]21-23 Cap Proj  Sur Alloctns'!$F$109:$S$109,$E$1:$R$1))","v":0},{"$f":"('[2]21-23 Cap Proj  Sur Alloctns'!N73*M$1)/(SUMPRODUCT('[2]21-23 Cap Proj  Sur Alloctns'!$F$109:$S$109,$E$1:$R$1))","v":0},{"$f":"('[2]21-23 Cap Proj  Sur Alloctns'!O73*N$1)/(SUMPRODUCT('[2]21-23 Cap Proj  Sur Alloctns'!$F$109:$S$109,$E$1:$R$1))","v":0},{"$f":"('[2]21-23 Cap Proj  Sur Alloctns'!P73*O$1)/(SUMPRODUCT('[2]21-23 Cap Proj  Sur Alloctns'!$F$109:$S$109,$E$1:$R$1))","v":0},{"$f":"('[2]21-23 Cap Proj  Sur Alloctns'!Q73*P$1)/(SUMPRODUCT('[2]21-23 Cap Proj  Sur Alloctns'!$F$109:$S$109,$E$1:$R$1))","v":0},{"$f":"('[2]21-23 Cap Proj  Sur Alloctns'!R73*Q$1)/(SUMPRODUCT('[2]21-23 Cap Proj  Sur Alloctns'!$F$109:$S$109,$E$1:$R$1))","v":0},{"$f":"('[2]21-23 Cap Proj  Sur Alloctns'!S73*R$1)/(SUMPRODUCT('[2]21-23 Cap Proj  Sur Alloctns'!$F$109:$S$109,$E$1:$R$1))","v":0},0,0,0,0,0,0,0,0,0,0,0,0,0,0,0,0,0,0,0,0]
[null,"341","Law Enforcement Officers' & Fire Fighters' Plan 2 Retirement Board",0,{"$f":"('[2]21-23 Cap Proj  Sur Alloctns'!F74*E$1)/(SUMPRODUCT('[2]21-23 Cap Proj  Sur Alloctns'!$F$109:$S$109,$E$1:$R$1))","v":0},{"$f":"('[2]21-23 Cap Proj  Sur Alloctns'!G74*F$1)/(SUMPRODUCT('[2]21-23 Cap Proj  Sur Alloctns'!$F$109:$S$109,$E$1:$R$1))","v":0},{"$f":"('[2]21-23 Cap Proj  Sur Alloctns'!H74*G$1)/(SUMPRODUCT('[2]21-23 Cap Proj  Sur Alloctns'!$F$109:$S$109,$E$1:$R$1))","v":0},{"$f":"('[2]21-23 Cap Proj  Sur Alloctns'!I74*H$1)/(SUMPRODUCT('[2]21-23 Cap Proj  Sur Alloctns'!$F$109:$S$109,$E$1:$R$1))","v":0},{"$f":"('[2]21-23 Cap Proj  Sur Alloctns'!J74*I$1)/(SUMPRODUCT('[2]21-23 Cap Proj  Sur Alloctns'!$F$109:$S$109,$E$1:$R$1))","v":0},{"$f":"('[2]21-23 Cap Proj  Sur Alloctns'!K74*J$1)/(SUMPRODUCT('[2]21-23 Cap Proj  Sur Alloctns'!$F$109:$S$109,$E$1:$R$1))","v":0},{"$f":"('[2]21-23 Cap Proj  Sur Alloctns'!L74*K$1)/(SUMPRODUCT('[2]21-23 Cap Proj  Sur Alloctns'!$F$109:$S$109,$E$1:$R$1))","v":0},{"$f":"('[2]21-23 Cap Proj  Sur Alloctns'!M74*L$1)/(SUMPRODUCT('[2]21-23 Cap Proj  Sur Alloctns'!$F$109:$S$109,$E$1:$R$1))","v":0},{"$f":"('[2]21-23 Cap Proj  Sur Alloctns'!N74*M$1)/(SUMPRODUCT('[2]21-23 Cap Proj  Sur Alloctns'!$F$109:$S$109,$E$1:$R$1))","v":0},{"$f":"('[2]21-23 Cap Proj  Sur Alloctns'!O74*N$1)/(SUMPRODUCT('[2]21-23 Cap Proj  Sur Alloctns'!$F$109:$S$109,$E$1:$R$1))","v":0},{"$f":"('[2]21-23 Cap Proj  Sur Alloctns'!P74*O$1)/(SUMPRODUCT('[2]21-23 Cap Proj  Sur Alloctns'!$F$109:$S$109,$E$1:$R$1))","v":0},{"$f":"('[2]21-23 Cap Proj  Sur Alloctns'!Q74*P$1)/(SUMPRODUCT('[2]21-23 Cap Proj  Sur Alloctns'!$F$109:$S$109,$E$1:$R$1))","v":0},{"$f":"('[2]21-23 Cap Proj  Sur Alloctns'!R74*Q$1)/(SUMPRODUCT('[2]21-23 Cap Proj  Sur Alloctns'!$F$109:$S$109,$E$1:$R$1))","v":0},{"$f":"('[2]21-23 Cap Proj  Sur Alloctns'!S74*R$1)/(SUMPRODUCT('[2]21-23 Cap Proj  Sur Alloctns'!$F$109:$S$109,$E$1:$R$1))","v":0},0,0,0,0,0,0,0,0,0,0,0,0,0,0,0,0,0,0,0,0]
[null,"350","Superintendent of Public Instruction",6.6395456208141454E-2,{"$f":"('[2]21-23 Cap Proj  Sur Alloctns'!F75*E$1)/(SUMPRODUCT('[2]21-23 Cap Proj  Sur Alloctns'!$F$109:$S$109,$E$1:$R$1))","v":0},{"$f":"('[2]21-23 Cap Proj  Sur Alloctns'!G75*F$1)/(SUMPRODUCT('[2]21-23 Cap Proj  Sur Alloctns'!$F$109:$S$109,$E$1:$R$1))","v":0},{"$f":"('[2]21-23 Cap Proj  Sur Alloctns'!H75*G$1)/(SUMPRODUCT('[2]21-23 Cap Proj  Sur Alloctns'!$F$109:$S$109,$E$1:$R$1))","v":0},{"$f":"('[2]21-23 Cap Proj  Sur Alloctns'!I75*H$1)/(SUMPRODUCT('[2]21-23 Cap Proj  Sur Alloctns'!$F$109:$S$109,$E$1:$R$1))","v":0},{"$f":"('[2]21-23 Cap Proj  Sur Alloctns'!J75*I$1)/(SUMPRODUCT('[2]21-23 Cap Proj  Sur Alloctns'!$F$109:$S$109,$E$1:$R$1))","v":0},{"$f":"('[2]21-23 Cap Proj  Sur Alloctns'!K75*J$1)/(SUMPRODUCT('[2]21-23 Cap Proj  Sur Alloctns'!$F$109:$S$109,$E$1:$R$1))","v":0},{"$f":"('[2]21-23 Cap Proj  Sur Alloctns'!L75*K$1)/(SUMPRODUCT('[2]21-23 Cap Proj  Sur Alloctns'!$F$109:$S$109,$E$1:$R$1))","v":0},{"$f":"('[2]21-23 Cap Proj  Sur Alloctns'!M75*L$1)/(SUMPRODUCT('[2]21-23 Cap Proj  Sur Alloctns'!$F$109:$S$109,$E$1:$R$1))","v":0},{"$f":"('[2]21-23 Cap Proj  Sur Alloctns'!N75*M$1)/(SUMPRODUCT('[2]21-23 Cap Proj  Sur Alloctns'!$F$109:$S$109,$E$1:$R$1))","v":0},{"$f":"('[2]21-23 Cap Proj  Sur Alloctns'!O75*N$1)/(SUMPRODUCT('[2]21-23 Cap Proj  Sur Alloctns'!$F$109:$S$109,$E$1:$R$1))","v":0},{"$f":"('[2]21-23 Cap Proj  Sur Alloctns'!P75*O$1)/(SUMPRODUCT('[2]21-23 Cap Proj  Sur Alloctns'!$F$109:$S$109,$E$1:$R$1))","v":0},{"$f":"('[2]21-23 Cap Proj  Sur Alloctns'!Q75*P$1)/(SUMPRODUCT('[2]21-23 Cap Proj  Sur Alloctns'!$F$109:$S$109,$E$1:$R$1))","v":6.6395456208141454E-2},{"$f":"('[2]21-23 Cap Proj  Sur Alloctns'!R75*Q$1)/(SUMPRODUCT('[2]21-23 Cap Proj  Sur Alloctns'!$F$109:$S$109,$E$1:$R$1))","v":0},{"$f":"('[2]21-23 Cap Proj  Sur Alloctns'!S75*R$1)/(SUMPRODUCT('[2]21-23 Cap Proj  Sur Alloctns'!$F$109:$S$109,$E$1:$R$1))","v":0},0,0,0,0,0,0,0,0,0,0,0,0,0,0,0,0,0,0,0,0]
[null,"351","State School For The Blind",0,{"$f":"('[2]21-23 Cap Proj  Sur Alloctns'!F76*E$1)/(SUMPRODUCT('[2]21-23 Cap Proj  Sur Alloctns'!$F$109:$S$109,$E$1:$R$1))","v":0},{"$f":"('[2]21-23 Cap Proj  Sur Alloctns'!G76*F$1)/(SUMPRODUCT('[2]21-23 Cap Proj  Sur Alloctns'!$F$109:$S$109,$E$1:$R$1))","v":0},{"$f":"('[2]21-23 Cap Proj  Sur Alloctns'!H76*G$1)/(SUMPRODUCT('[2]21-23 Cap Proj  Sur Alloctns'!$F$109:$S$109,$E$1:$R$1))","v":0},{"$f":"('[2]21-23 Cap Proj  Sur Alloctns'!I76*H$1)/(SUMPRODUCT('[2]21-23 Cap Proj  Sur Alloctns'!$F$109:$S$109,$E$1:$R$1))","v":0},{"$f":"('[2]21-23 Cap Proj  Sur Alloctns'!J76*I$1)/(SUMPRODUCT('[2]21-23 Cap Proj  Sur Alloctns'!$F$109:$S$109,$E$1:$R$1))","v":0},{"$f":"('[2]21-23 Cap Proj  Sur Alloctns'!K76*J$1)/(SUMPRODUCT('[2]21-23 Cap Proj  Sur Alloctns'!$F$109:$S$109,$E$1:$R$1))","v":0},{"$f":"('[2]21-23 Cap Proj  Sur Alloctns'!L76*K$1)/(SUMPRODUCT('[2]21-23 Cap Proj  Sur Alloctns'!$F$109:$S$109,$E$1:$R$1))","v":0},{"$f":"('[2]21-23 Cap Proj  Sur Alloctns'!M76*L$1)/(SUMPRODUCT('[2]21-23 Cap Proj  Sur Alloctns'!$F$109:$S$109,$E$1:$R$1))","v":0},{"$f":"('[2]21-23 Cap Proj  Sur Alloctns'!N76*M$1)/(SUMPRODUCT('[2]21-23 Cap Proj  Sur Alloctns'!$F$109:$S$109,$E$1:$R$1))","v":0},{"$f":"('[2]21-23 Cap Proj  Sur Alloctns'!O76*N$1)/(SUMPRODUCT('[2]21-23 Cap Proj  Sur Alloctns'!$F$109:$S$109,$E$1:$R$1))","v":0},{"$f":"('[2]21-23 Cap Proj  Sur Alloctns'!P76*O$1)/(SUMPRODUCT('[2]21-23 Cap Proj  Sur Alloctns'!$F$109:$S$109,$E$1:$R$1))","v":0},{"$f":"('[2]21-23 Cap Proj  Sur Alloctns'!Q76*P$1)/(SUMPRODUCT('[2]21-23 Cap Proj  Sur Alloctns'!$F$109:$S$109,$E$1:$R$1))","v":0},{"$f":"('[2]21-23 Cap Proj  Sur Alloctns'!R76*Q$1)/(SUMPRODUCT('[2]21-23 Cap Proj  Sur Alloctns'!$F$109:$S$109,$E$1:$R$1))","v":0},{"$f":"('[2]21-23 Cap Proj  Sur Alloctns'!S76*R$1)/(SUMPRODUCT('[2]21-23 Cap Proj  Sur Alloctns'!$F$109:$S$109,$E$1:$R$1))","v":0},0,0,0,0,0,0,0,0,0,0,0,0,0,0,0,0,0,0,0,0]
[null,"353","State Center for Childhood Deafness and Hearing Loss",0,{"$f":"('[2]21-23 Cap Proj  Sur Alloctns'!F77*E$1)/(SUMPRODUCT('[2]21-23 Cap Proj  Sur Alloctns'!$F$109:$S$109,$E$1:$R$1))","v":0},{"$f":"('[2]21-23 Cap Proj  Sur Alloctns'!G77*F$1)/(SUMPRODUCT('[2]21-23 Cap Proj  Sur Alloctns'!$F$109:$S$109,$E$1:$R$1))","v":0},{"$f":"('[2]21-23 Cap Proj  Sur Alloctns'!H77*G$1)/(SUMPRODUCT('[2]21-23 Cap Proj  Sur Alloctns'!$F$109:$S$109,$E$1:$R$1))","v":0},{"$f":"('[2]21-23 Cap Proj  Sur Alloctns'!I77*H$1)/(SUMPRODUCT('[2]21-23 Cap Proj  Sur Alloctns'!$F$109:$S$109,$E$1:$R$1))","v":0},{"$f":"('[2]21-23 Cap Proj  Sur Alloctns'!J77*I$1)/(SUMPRODUCT('[2]21-23 Cap Proj  Sur Alloctns'!$F$109:$S$109,$E$1:$R$1))","v":0},{"$f":"('[2]21-23 Cap Proj  Sur Alloctns'!K77*J$1)/(SUMPRODUCT('[2]21-23 Cap Proj  Sur Alloctns'!$F$109:$S$109,$E$1:$R$1))","v":0},{"$f":"('[2]21-23 Cap Proj  Sur Alloctns'!L77*K$1)/(SUMPRODUCT('[2]21-23 Cap Proj  Sur Alloctns'!$F$109:$S$109,$E$1:$R$1))","v":0},{"$f":"('[2]21-23 Cap Proj  Sur Alloctns'!M77*L$1)/(SUMPRODUCT('[2]21-23 Cap Proj  Sur Alloctns'!$F$109:$S$109,$E$1:$R$1))","v":0},{"$f":"('[2]21-23 Cap Proj  Sur Alloctns'!N77*M$1)/(SUMPRODUCT('[2]21-23 Cap Proj  Sur Alloctns'!$F$109:$S$109,$E$1:$R$1))","v":0},{"$f":"('[2]21-23 Cap Proj  Sur Alloctns'!O77*N$1)/(SUMPRODUCT('[2]21-23 Cap Proj  Sur Alloctns'!$F$109:$S$109,$E$1:$R$1))","v":0},{"$f":"('[2]21-23 Cap Proj  Sur Alloctns'!P77*O$1)/(SUMPRODUCT('[2]21-23 Cap Proj  Sur Alloctns'!$F$109:$S$109,$E$1:$R$1))","v":0},{"$f":"('[2]21-23 Cap Proj  Sur Alloctns'!Q77*P$1)/(SUMPRODUCT('[2]21-23 Cap Proj  Sur Alloctns'!$F$109:$S$109,$E$1:$R$1))","v":0},{"$f":"('[2]21-23 Cap Proj  Sur Alloctns'!R77*Q$1)/(SUMPRODUCT('[2]21-23 Cap Proj  Sur Alloctns'!$F$109:$S$109,$E$1:$R$1))","v":0},{"$f":"('[2]21-23 Cap Proj  Sur Alloctns'!S77*R$1)/(SUMPRODUCT('[2]21-23 Cap Proj  Sur Alloctns'!$F$109:$S$109,$E$1:$R$1))","v":0},0,0,0,0,0,0,0,0,0,0,0,0,0,0,0,0,0,0,0,0]
[null,"354","Workforce Training and Education Coordinating Board",0,{"$f":"('[2]21-23 Cap Proj  Sur Alloctns'!F78*E$1)/(SUMPRODUCT('[2]21-23 Cap Proj  Sur Alloctns'!$F$109:$S$109,$E$1:$R$1))","v":0},{"$f":"('[2]21-23 Cap Proj  Sur Alloctns'!G78*F$1)/(SUMPRODUCT('[2]21-23 Cap Proj  Sur Alloctns'!$F$109:$S$109,$E$1:$R$1))","v":0},{"$f":"('[2]21-23 Cap Proj  Sur Alloctns'!H78*G$1)/(SUMPRODUCT('[2]21-23 Cap Proj  Sur Alloctns'!$F$109:$S$109,$E$1:$R$1))","v":0},{"$f":"('[2]21-23 Cap Proj  Sur Alloctns'!I78*H$1)/(SUMPRODUCT('[2]21-23 Cap Proj  Sur Alloctns'!$F$109:$S$109,$E$1:$R$1))","v":0},{"$f":"('[2]21-23 Cap Proj  Sur Alloctns'!J78*I$1)/(SUMPRODUCT('[2]21-23 Cap Proj  Sur Alloctns'!$F$109:$S$109,$E$1:$R$1))","v":0},{"$f":"('[2]21-23 Cap Proj  Sur Alloctns'!K78*J$1)/(SUMPRODUCT('[2]21-23 Cap Proj  Sur Alloctns'!$F$109:$S$109,$E$1:$R$1))","v":0},{"$f":"('[2]21-23 Cap Proj  Sur Alloctns'!L78*K$1)/(SUMPRODUCT('[2]21-23 Cap Proj  Sur Alloctns'!$F$109:$S$109,$E$1:$R$1))","v":0},{"$f":"('[2]21-23 Cap Proj  Sur Alloctns'!M78*L$1)/(SUMPRODUCT('[2]21-23 Cap Proj  Sur Alloctns'!$F$109:$S$109,$E$1:$R$1))","v":0},{"$f":"('[2]21-23 Cap Proj  Sur Alloctns'!N78*M$1)/(SUMPRODUCT('[2]21-23 Cap Proj  Sur Alloctns'!$F$109:$S$109,$E$1:$R$1))","v":0},{"$f":"('[2]21-23 Cap Proj  Sur Alloctns'!O78*N$1)/(SUMPRODUCT('[2]21-23 Cap Proj  Sur Alloctns'!$F$109:$S$109,$E$1:$R$1))","v":0},{"$f":"('[2]21-23 Cap Proj  Sur Alloctns'!P78*O$1)/(SUMPRODUCT('[2]21-23 Cap Proj  Sur Alloctns'!$F$109:$S$109,$E$1:$R$1))","v":0},{"$f":"('[2]21-23 Cap Proj  Sur Alloctns'!Q78*P$1)/(SUMPRODUCT('[2]21-23 Cap Proj  Sur Alloctns'!$F$109:$S$109,$E$1:$R$1))","v":0},{"$f":"('[2]21-23 Cap Proj  Sur Alloctns'!R78*Q$1)/(SUMPRODUCT('[2]21-23 Cap Proj  Sur Alloctns'!$F$109:$S$109,$E$1:$R$1))","v":0},{"$f":"('[2]21-23 Cap Proj  Sur Alloctns'!S78*R$1)/(SUMPRODUCT('[2]21-23 Cap Proj  Sur Alloctns'!$F$109:$S$109,$E$1:$R$1))","v":0},0,0,0,0,0,0,0,0,0,0,0,0,0,0,0,0,0,0,0,0]
[null,"355","Department of Archaeology and Historic Preservation",0,{"$f":"('[2]21-23 Cap Proj  Sur Alloctns'!F79*E$1)/(SUMPRODUCT('[2]21-23 Cap Proj  Sur Alloctns'!$F$109:$S$109,$E$1:$R$1))","v":0},{"$f":"('[2]21-23 Cap Proj  Sur Alloctns'!G79*F$1)/(SUMPRODUCT('[2]21-23 Cap Proj  Sur Alloctns'!$F$109:$S$109,$E$1:$R$1))","v":0},{"$f":"('[2]21-23 Cap Proj  Sur Alloctns'!H79*G$1)/(SUMPRODUCT('[2]21-23 Cap Proj  Sur Alloctns'!$F$109:$S$109,$E$1:$R$1))","v":0},{"$f":"('[2]21-23 Cap Proj  Sur Alloctns'!I79*H$1)/(SUMPRODUCT('[2]21-23 Cap Proj  Sur Alloctns'!$F$109:$S$109,$E$1:$R$1))","v":0},{"$f":"('[2]21-23 Cap Proj  Sur Alloctns'!J79*I$1)/(SUMPRODUCT('[2]21-23 Cap Proj  Sur Alloctns'!$F$109:$S$109,$E$1:$R$1))","v":0},{"$f":"('[2]21-23 Cap Proj  Sur Alloctns'!K79*J$1)/(SUMPRODUCT('[2]21-23 Cap Proj  Sur Alloctns'!$F$109:$S$109,$E$1:$R$1))","v":0},{"$f":"('[2]21-23 Cap Proj  Sur Alloctns'!L79*K$1)/(SUMPRODUCT('[2]21-23 Cap Proj  Sur Alloctns'!$F$109:$S$109,$E$1:$R$1))","v":0},{"$f":"('[2]21-23 Cap Proj  Sur Alloctns'!M79*L$1)/(SUMPRODUCT('[2]21-23 Cap Proj  Sur Alloctns'!$F$109:$S$109,$E$1:$R$1))","v":0},{"$f":"('[2]21-23 Cap Proj  Sur Alloctns'!N79*M$1)/(SUMPRODUCT('[2]21-23 Cap Proj  Sur Alloctns'!$F$109:$S$109,$E$1:$R$1))","v":0},{"$f":"('[2]21-23 Cap Proj  Sur Alloctns'!O79*N$1)/(SUMPRODUCT('[2]21-23 Cap Proj  Sur Alloctns'!$F$109:$S$109,$E$1:$R$1))","v":0},{"$f":"('[2]21-23 Cap Proj  Sur Alloctns'!P79*O$1)/(SUMPRODUCT('[2]21-23 Cap Proj  Sur Alloctns'!$F$109:$S$109,$E$1:$R$1))","v":0},{"$f":"('[2]21-23 Cap Proj  Sur Alloctns'!Q79*P$1)/(SUMPRODUCT('[2]21-23 Cap Proj  Sur Alloctns'!$F$109:$S$109,$E$1:$R$1))","v":0},{"$f":"('[2]21-23 Cap Proj  Sur Alloctns'!R79*Q$1)/(SUMPRODUCT('[2]21-23 Cap Proj  Sur Alloctns'!$F$109:$S$109,$E$1:$R$1))","v":0},{"$f":"('[2]21-23 Cap Proj  Sur Alloctns'!S79*R$1)/(SUMPRODUCT('[2]21-23 Cap Proj  Sur Alloctns'!$F$109:$S$109,$E$1:$R$1))","v":0},0,0,0,0,0,0,0,0,0,0,0,0,0,0,0,0,0,0,0,0]
[null,"357","Department of Early Learning",0,{"$f":"('[2]21-23 Cap Proj  Sur Alloctns'!F80*E$1)/(SUMPRODUCT('[2]21-23 Cap Proj  Sur Alloctns'!$F$109:$S$109,$E$1:$R$1))","v":0},{"$f":"('[2]21-23 Cap Proj  Sur Alloctns'!G80*F$1)/(SUMPRODUCT('[2]21-23 Cap Proj  Sur Alloctns'!$F$109:$S$109,$E$1:$R$1))","v":0},{"$f":"('[2]21-23 Cap Proj  Sur Alloctns'!H80*G$1)/(SUMPRODUCT('[2]21-23 Cap Proj  Sur Alloctns'!$F$109:$S$109,$E$1:$R$1))","v":0},{"$f":"('[2]21-23 Cap Proj  Sur Alloctns'!I80*H$1)/(SUMPRODUCT('[2]21-23 Cap Proj  Sur Alloctns'!$F$109:$S$109,$E$1:$R$1))","v":0},{"$f":"('[2]21-23 Cap Proj  Sur Alloctns'!J80*I$1)/(SUMPRODUCT('[2]21-23 Cap Proj  Sur Alloctns'!$F$109:$S$109,$E$1:$R$1))","v":0},{"$f":"('[2]21-23 Cap Proj  Sur Alloctns'!K80*J$1)/(SUMPRODUCT('[2]21-23 Cap Proj  Sur Alloctns'!$F$109:$S$109,$E$1:$R$1))","v":0},{"$f":"('[2]21-23 Cap Proj  Sur Alloctns'!L80*K$1)/(SUMPRODUCT('[2]21-23 Cap Proj  Sur Alloctns'!$F$109:$S$109,$E$1:$R$1))","v":0},{"$f":"('[2]21-23 Cap Proj  Sur Alloctns'!M80*L$1)/(SUMPRODUCT('[2]21-23 Cap Proj  Sur Alloctns'!$F$109:$S$109,$E$1:$R$1))","v":0},{"$f":"('[2]21-23 Cap Proj  Sur Alloctns'!N80*M$1)/(SUMPRODUCT('[2]21-23 Cap Proj  Sur Alloctns'!$F$109:$S$109,$E$1:$R$1))","v":0},{"$f":"('[2]21-23 Cap Proj  Sur Alloctns'!O80*N$1)/(SUMPRODUCT('[2]21-23 Cap Proj  Sur Alloctns'!$F$109:$S$109,$E$1:$R$1))","v":0},{"$f":"('[2]21-23 Cap Proj  Sur Alloctns'!P80*O$1)/(SUMPRODUCT('[2]21-23 Cap Proj  Sur Alloctns'!$F$109:$S$109,$E$1:$R$1))","v":0},{"$f":"('[2]21-23 Cap Proj  Sur Alloctns'!Q80*P$1)/(SUMPRODUCT('[2]21-23 Cap Proj  Sur Alloctns'!$F$109:$S$109,$E$1:$R$1))","v":0},{"$f":"('[2]21-23 Cap Proj  Sur Alloctns'!R80*Q$1)/(SUMPRODUCT('[2]21-23 Cap Proj  Sur Alloctns'!$F$109:$S$109,$E$1:$R$1))","v":0},{"$f":"('[2]21-23 Cap Proj  Sur Alloctns'!S80*R$1)/(SUMPRODUCT('[2]21-23 Cap Proj  Sur Alloctns'!$F$109:$S$109,$E$1:$R$1))","v":0},0,0,0,0,0,0,0,0,0,0,0,0,0,0,0,0,0,0,0,0]
[null,"359","WA Charter School Commission",0,{"$f":"('[2]21-23 Cap Proj  Sur Alloctns'!F81*E$1)/(SUMPRODUCT('[2]21-23 Cap Proj  Sur Alloctns'!$F$109:$S$109,$E$1:$R$1))","v":0},{"$f":"('[2]21-23 Cap Proj  Sur Alloctns'!G81*F$1)/(SUMPRODUCT('[2]21-23 Cap Proj  Sur Alloctns'!$F$109:$S$109,$E$1:$R$1))","v":0},{"$f":"('[2]21-23 Cap Proj  Sur Alloctns'!H81*G$1)/(SUMPRODUCT('[2]21-23 Cap Proj  Sur Alloctns'!$F$109:$S$109,$E$1:$R$1))","v":0},{"$f":"('[2]21-23 Cap Proj  Sur Alloctns'!I81*H$1)/(SUMPRODUCT('[2]21-23 Cap Proj  Sur Alloctns'!$F$109:$S$109,$E$1:$R$1))","v":0},{"$f":"('[2]21-23 Cap Proj  Sur Alloctns'!J81*I$1)/(SUMPRODUCT('[2]21-23 Cap Proj  Sur Alloctns'!$F$109:$S$109,$E$1:$R$1))","v":0},{"$f":"('[2]21-23 Cap Proj  Sur Alloctns'!K81*J$1)/(SUMPRODUCT('[2]21-23 Cap Proj  Sur Alloctns'!$F$109:$S$109,$E$1:$R$1))","v":0},{"$f":"('[2]21-23 Cap Proj  Sur Alloctns'!L81*K$1)/(SUMPRODUCT('[2]21-23 Cap Proj  Sur Alloctns'!$F$109:$S$109,$E$1:$R$1))","v":0},{"$f":"('[2]21-23 Cap Proj  Sur Alloctns'!M81*L$1)/(SUMPRODUCT('[2]21-23 Cap Proj  Sur Alloctns'!$F$109:$S$109,$E$1:$R$1))","v":0},{"$f":"('[2]21-23 Cap Proj  Sur Alloctns'!N81*M$1)/(SUMPRODUCT('[2]21-23 Cap Proj  Sur Alloctns'!$F$109:$S$109,$E$1:$R$1))","v":0},{"$f":"('[2]21-23 Cap Proj  Sur Alloctns'!O81*N$1)/(SUMPRODUCT('[2]21-23 Cap Proj  Sur Alloctns'!$F$109:$S$109,$E$1:$R$1))","v":0},{"$f":"('[2]21-23 Cap Proj  Sur Alloctns'!P81*O$1)/(SUMPRODUCT('[2]21-23 Cap Proj  Sur Alloctns'!$F$109:$S$109,$E$1:$R$1))","v":0},{"$f":"('[2]21-23 Cap Proj  Sur Alloctns'!Q81*P$1)/(SUMPRODUCT('[2]21-23 Cap Proj  Sur Alloctns'!$F$109:$S$109,$E$1:$R$1))","v":0},{"$f":"('[2]21-23 Cap Proj  Sur Alloctns'!R81*Q$1)/(SUMPRODUCT('[2]21-23 Cap Proj  Sur Alloctns'!$F$109:$S$109,$E$1:$R$1))","v":0},{"$f":"('[2]21-23 Cap Proj  Sur Alloctns'!S81*R$1)/(SUMPRODUCT('[2]21-23 Cap Proj  Sur Alloctns'!$F$109:$S$109,$E$1:$R$1))","v":0},0,0,0,0,0,0,0,0,0,0,0,0,0,0,0,0,0,0,0,0]
[null,"360","University of Washington",0,{"$f":"('[2]21-23 Cap Proj  Sur Alloctns'!F82*E$1)/(SUMPRODUCT('[2]21-23 Cap Proj  Sur Alloctns'!$F$109:$S$109,$E$1:$R$1))","v":0},{"$f":"('[2]21-23 Cap Proj  Sur Alloctns'!G82*F$1)/(SUMPRODUCT('[2]21-23 Cap Proj  Sur Alloctns'!$F$109:$S$109,$E$1:$R$1))","v":0},{"$f":"('[2]21-23 Cap Proj  Sur Alloctns'!H82*G$1)/(SUMPRODUCT('[2]21-23 Cap Proj  Sur Alloctns'!$F$109:$S$109,$E$1:$R$1))","v":0},{"$f":"('[2]21-23 Cap Proj  Sur Alloctns'!I82*H$1)/(SUMPRODUCT('[2]21-23 Cap Proj  Sur Alloctns'!$F$109:$S$109,$E$1:$R$1))","v":0},{"$f":"('[2]21-23 Cap Proj  Sur Alloctns'!J82*I$1)/(SUMPRODUCT('[2]21-23 Cap Proj  Sur Alloctns'!$F$109:$S$109,$E$1:$R$1))","v":0},{"$f":"('[2]21-23 Cap Proj  Sur Alloctns'!K82*J$1)/(SUMPRODUCT('[2]21-23 Cap Proj  Sur Alloctns'!$F$109:$S$109,$E$1:$R$1))","v":0},{"$f":"('[2]21-23 Cap Proj  Sur Alloctns'!L82*K$1)/(SUMPRODUCT('[2]21-23 Cap Proj  Sur Alloctns'!$F$109:$S$109,$E$1:$R$1))","v":0},{"$f":"('[2]21-23 Cap Proj  Sur Alloctns'!M82*L$1)/(SUMPRODUCT('[2]21-23 Cap Proj  Sur Alloctns'!$F$109:$S$109,$E$1:$R$1))","v":0},{"$f":"('[2]21-23 Cap Proj  Sur Alloctns'!N82*M$1)/(SUMPRODUCT('[2]21-23 Cap Proj  Sur Alloctns'!$F$109:$S$109,$E$1:$R$1))","v":0},{"$f":"('[2]21-23 Cap Proj  Sur Alloctns'!O82*N$1)/(SUMPRODUCT('[2]21-23 Cap Proj  Sur Alloctns'!$F$109:$S$109,$E$1:$R$1))","v":0},{"$f":"('[2]21-23 Cap Proj  Sur Alloctns'!P82*O$1)/(SUMPRODUCT('[2]21-23 Cap Proj  Sur Alloctns'!$F$109:$S$109,$E$1:$R$1))","v":0},{"$f":"('[2]21-23 Cap Proj  Sur Alloctns'!Q82*P$1)/(SUMPRODUCT('[2]21-23 Cap Proj  Sur Alloctns'!$F$109:$S$109,$E$1:$R$1))","v":0},{"$f":"('[2]21-23 Cap Proj  Sur Alloctns'!R82*Q$1)/(SUMPRODUCT('[2]21-23 Cap Proj  Sur Alloctns'!$F$109:$S$109,$E$1:$R$1))","v":0},{"$f":"('[2]21-23 Cap Proj  Sur Alloctns'!S82*R$1)/(SUMPRODUCT('[2]21-23 Cap Proj  Sur Alloctns'!$F$109:$S$109,$E$1:$R$1))","v":0},0,0,0,0,0,0,0,0,0,0,0,0,0,0,0,0,0,0,0,0]
[null,"365","Washington State University",0,{"$f":"('[2]21-23 Cap Proj  Sur Alloctns'!F83*E$1)/(SUMPRODUCT('[2]21-23 Cap Proj  Sur Alloctns'!$F$109:$S$109,$E$1:$R$1))","v":0},{"$f":"('[2]21-23 Cap Proj  Sur Alloctns'!G83*F$1)/(SUMPRODUCT('[2]21-23 Cap Proj  Sur Alloctns'!$F$109:$S$109,$E$1:$R$1))","v":0},{"$f":"('[2]21-23 Cap Proj  Sur Alloctns'!H83*G$1)/(SUMPRODUCT('[2]21-23 Cap Proj  Sur Alloctns'!$F$109:$S$109,$E$1:$R$1))","v":0},{"$f":"('[2]21-23 Cap Proj  Sur Alloctns'!I83*H$1)/(SUMPRODUCT('[2]21-23 Cap Proj  Sur Alloctns'!$F$109:$S$109,$E$1:$R$1))","v":0},{"$f":"('[2]21-23 Cap Proj  Sur Alloctns'!J83*I$1)/(SUMPRODUCT('[2]21-23 Cap Proj  Sur Alloctns'!$F$109:$S$109,$E$1:$R$1))","v":0},{"$f":"('[2]21-23 Cap Proj  Sur Alloctns'!K83*J$1)/(SUMPRODUCT('[2]21-23 Cap Proj  Sur Alloctns'!$F$109:$S$109,$E$1:$R$1))","v":0},{"$f":"('[2]21-23 Cap Proj  Sur Alloctns'!L83*K$1)/(SUMPRODUCT('[2]21-23 Cap Proj  Sur Alloctns'!$F$109:$S$109,$E$1:$R$1))","v":0},{"$f":"('[2]21-23 Cap Proj  Sur Alloctns'!M83*L$1)/(SUMPRODUCT('[2]21-23 Cap Proj  Sur Alloctns'!$F$109:$S$109,$E$1:$R$1))","v":0},{"$f":"('[2]21-23 Cap Proj  Sur Alloctns'!N83*M$1)/(SUMPRODUCT('[2]21-23 Cap Proj  Sur Alloctns'!$F$109:$S$109,$E$1:$R$1))","v":0},{"$f":"('[2]21-23 Cap Proj  Sur Alloctns'!O83*N$1)/(SUMPRODUCT('[2]21-23 Cap Proj  Sur Alloctns'!$F$109:$S$109,$E$1:$R$1))","v":0},{"$f":"('[2]21-23 Cap Proj  Sur Alloctns'!P83*O$1)/(SUMPRODUCT('[2]21-23 Cap Proj  Sur Alloctns'!$F$109:$S$109,$E$1:$R$1))","v":0},{"$f":"('[2]21-23 Cap Proj  Sur Alloctns'!Q83*P$1)/(SUMPRODUCT('[2]21-23 Cap Proj  Sur Alloctns'!$F$109:$S$109,$E$1:$R$1))","v":0},{"$f":"('[2]21-23 Cap Proj  Sur Alloctns'!R83*Q$1)/(SUMPRODUCT('[2]21-23 Cap Proj  Sur Alloctns'!$F$109:$S$109,$E$1:$R$1))","v":0},{"$f":"('[2]21-23 Cap Proj  Sur Alloctns'!S83*R$1)/(SUMPRODUCT('[2]21-23 Cap Proj  Sur Alloctns'!$F$109:$S$109,$E$1:$R$1))","v":0},0,0,0,0,0,0,0,0,0,0,0,0,0,0,0,0,0,0,0,0]
[null,"370","Eastern Washington University",0,{"$f":"('[2]21-23 Cap Proj  Sur Alloctns'!F84*E$1)/(SUMPRODUCT('[2]21-23 Cap Proj  Sur Alloctns'!$F$109:$S$109,$E$1:$R$1))","v":0},{"$f":"('[2]21-23 Cap Proj  Sur Alloctns'!G84*F$1)/(SUMPRODUCT('[2]21-23 Cap Proj  Sur Alloctns'!$F$109:$S$109,$E$1:$R$1))","v":0},{"$f":"('[2]21-23 Cap Proj  Sur Alloctns'!H84*G$1)/(SUMPRODUCT('[2]21-23 Cap Proj  Sur Alloctns'!$F$109:$S$109,$E$1:$R$1))","v":0},{"$f":"('[2]21-23 Cap Proj  Sur Alloctns'!I84*H$1)/(SUMPRODUCT('[2]21-23 Cap Proj  Sur Alloctns'!$F$109:$S$109,$E$1:$R$1))","v":0},{"$f":"('[2]21-23 Cap Proj  Sur Alloctns'!J84*I$1)/(SUMPRODUCT('[2]21-23 Cap Proj  Sur Alloctns'!$F$109:$S$109,$E$1:$R$1))","v":0},{"$f":"('[2]21-23 Cap Proj  Sur Alloctns'!K84*J$1)/(SUMPRODUCT('[2]21-23 Cap Proj  Sur Alloctns'!$F$109:$S$109,$E$1:$R$1))","v":0},{"$f":"('[2]21-23 Cap Proj  Sur Alloctns'!L84*K$1)/(SUMPRODUCT('[2]21-23 Cap Proj  Sur Alloctns'!$F$109:$S$109,$E$1:$R$1))","v":0},{"$f":"('[2]21-23 Cap Proj  Sur Alloctns'!M84*L$1)/(SUMPRODUCT('[2]21-23 Cap Proj  Sur Alloctns'!$F$109:$S$109,$E$1:$R$1))","v":0},{"$f":"('[2]21-23 Cap Proj  Sur Alloctns'!N84*M$1)/(SUMPRODUCT('[2]21-23 Cap Proj  Sur Alloctns'!$F$109:$S$109,$E$1:$R$1))","v":0},{"$f":"('[2]21-23 Cap Proj  Sur Alloctns'!O84*N$1)/(SUMPRODUCT('[2]21-23 Cap Proj  Sur Alloctns'!$F$109:$S$109,$E$1:$R$1))","v":0},{"$f":"('[2]21-23 Cap Proj  Sur Alloctns'!P84*O$1)/(SUMPRODUCT('[2]21-23 Cap Proj  Sur Alloctns'!$F$109:$S$109,$E$1:$R$1))","v":0},{"$f":"('[2]21-23 Cap Proj  Sur Alloctns'!Q84*P$1)/(SUMPRODUCT('[2]21-23 Cap Proj  Sur Alloctns'!$F$109:$S$109,$E$1:$R$1))","v":0},{"$f":"('[2]21-23 Cap Proj  Sur Alloctns'!R84*Q$1)/(SUMPRODUCT('[2]21-23 Cap Proj  Sur Alloctns'!$F$109:$S$109,$E$1:$R$1))","v":0},{"$f":"('[2]21-23 Cap Proj  Sur Alloctns'!S84*R$1)/(SUMPRODUCT('[2]21-23 Cap Proj  Sur Alloctns'!$F$109:$S$109,$E$1:$R$1))","v":0},0,0,0,0,0,0,0,0,0,0,0,0,0,0,0,0,0,0,0,0]
[null,"375","Central Washington University",0,{"$f":"('[2]21-23 Cap Proj  Sur Alloctns'!F85*E$1)/(SUMPRODUCT('[2]21-23 Cap Proj  Sur Alloctns'!$F$109:$S$109,$E$1:$R$1))","v":0},{"$f":"('[2]21-23 Cap Proj  Sur Alloctns'!G85*F$1)/(SUMPRODUCT('[2]21-23 Cap Proj  Sur Alloctns'!$F$109:$S$109,$E$1:$R$1))","v":0},{"$f":"('[2]21-23 Cap Proj  Sur Alloctns'!H85*G$1)/(SUMPRODUCT('[2]21-23 Cap Proj  Sur Alloctns'!$F$109:$S$109,$E$1:$R$1))","v":0},{"$f":"('[2]21-23 Cap Proj  Sur Alloctns'!I85*H$1)/(SUMPRODUCT('[2]21-23 Cap Proj  Sur Alloctns'!$F$109:$S$109,$E$1:$R$1))","v":0},{"$f":"('[2]21-23 Cap Proj  Sur Alloctns'!J85*I$1)/(SUMPRODUCT('[2]21-23 Cap Proj  Sur Alloctns'!$F$109:$S$109,$E$1:$R$1))","v":0},{"$f":"('[2]21-23 Cap Proj  Sur Alloctns'!K85*J$1)/(SUMPRODUCT('[2]21-23 Cap Proj  Sur Alloctns'!$F$109:$S$109,$E$1:$R$1))","v":0},{"$f":"('[2]21-23 Cap Proj  Sur Alloctns'!L85*K$1)/(SUMPRODUCT('[2]21-23 Cap Proj  Sur Alloctns'!$F$109:$S$109,$E$1:$R$1))","v":0},{"$f":"('[2]21-23 Cap Proj  Sur Alloctns'!M85*L$1)/(SUMPRODUCT('[2]21-23 Cap Proj  Sur Alloctns'!$F$109:$S$109,$E$1:$R$1))","v":0},{"$f":"('[2]21-23 Cap Proj  Sur Alloctns'!N85*M$1)/(SUMPRODUCT('[2]21-23 Cap Proj  Sur Alloctns'!$F$109:$S$109,$E$1:$R$1))","v":0},{"$f":"('[2]21-23 Cap Proj  Sur Alloctns'!O85*N$1)/(SUMPRODUCT('[2]21-23 Cap Proj  Sur Alloctns'!$F$109:$S$109,$E$1:$R$1))","v":0},{"$f":"('[2]21-23 Cap Proj  Sur Alloctns'!P85*O$1)/(SUMPRODUCT('[2]21-23 Cap Proj  Sur Alloctns'!$F$109:$S$109,$E$1:$R$1))","v":0},{"$f":"('[2]21-23 Cap Proj  Sur Alloctns'!Q85*P$1)/(SUMPRODUCT('[2]21-23 Cap Proj  Sur Alloctns'!$F$109:$S$109,$E$1:$R$1))","v":0},{"$f":"('[2]21-23 Cap Proj  Sur Alloctns'!R85*Q$1)/(SUMPRODUCT('[2]21-23 Cap Proj  Sur Alloctns'!$F$109:$S$109,$E$1:$R$1))","v":0},{"$f":"('[2]21-23 Cap Proj  Sur Alloctns'!S85*R$1)/(SUMPRODUCT('[2]21-23 Cap Proj  Sur Alloctns'!$F$109:$S$109,$E$1:$R$1))","v":0},0,0,0,0,0,0,0,0,0,0,0,0,0,0,0,0,0,0,0,0]
[null,"376","The Evergreen State College",0,{"$f":"('[2]21-23 Cap Proj  Sur Alloctns'!F86*E$1)/(SUMPRODUCT('[2]21-23 Cap Proj  Sur Alloctns'!$F$109:$S$109,$E$1:$R$1))","v":0},{"$f":"('[2]21-23 Cap Proj  Sur Alloctns'!G86*F$1)/(SUMPRODUCT('[2]21-23 Cap Proj  Sur Alloctns'!$F$109:$S$109,$E$1:$R$1))","v":0},{"$f":"('[2]21-23 Cap Proj  Sur Alloctns'!H86*G$1)/(SUMPRODUCT('[2]21-23 Cap Proj  Sur Alloctns'!$F$109:$S$109,$E$1:$R$1))","v":0},{"$f":"('[2]21-23 Cap Proj  Sur Alloctns'!I86*H$1)/(SUMPRODUCT('[2]21-23 Cap Proj  Sur Alloctns'!$F$109:$S$109,$E$1:$R$1))","v":0},{"$f":"('[2]21-23 Cap Proj  Sur Alloctns'!J86*I$1)/(SUMPRODUCT('[2]21-23 Cap Proj  Sur Alloctns'!$F$109:$S$109,$E$1:$R$1))","v":0},{"$f":"('[2]21-23 Cap Proj  Sur Alloctns'!K86*J$1)/(SUMPRODUCT('[2]21-23 Cap Proj  Sur Alloctns'!$F$109:$S$109,$E$1:$R$1))","v":0},{"$f":"('[2]21-23 Cap Proj  Sur Alloctns'!L86*K$1)/(SUMPRODUCT('[2]21-23 Cap Proj  Sur Alloctns'!$F$109:$S$109,$E$1:$R$1))","v":0},{"$f":"('[2]21-23 Cap Proj  Sur Alloctns'!M86*L$1)/(SUMPRODUCT('[2]21-23 Cap Proj  Sur Alloctns'!$F$109:$S$109,$E$1:$R$1))","v":0},{"$f":"('[2]21-23 Cap Proj  Sur Alloctns'!N86*M$1)/(SUMPRODUCT('[2]21-23 Cap Proj  Sur Alloctns'!$F$109:$S$109,$E$1:$R$1))","v":0},{"$f":"('[2]21-23 Cap Proj  Sur Alloctns'!O86*N$1)/(SUMPRODUCT('[2]21-23 Cap Proj  Sur Alloctns'!$F$109:$S$109,$E$1:$R$1))","v":0},{"$f":"('[2]21-23 Cap Proj  Sur Alloctns'!P86*O$1)/(SUMPRODUCT('[2]21-23 Cap Proj  Sur Alloctns'!$F$109:$S$109,$E$1:$R$1))","v":0},{"$f":"('[2]21-23 Cap Proj  Sur Alloctns'!Q86*P$1)/(SUMPRODUCT('[2]21-23 Cap Proj  Sur Alloctns'!$F$109:$S$109,$E$1:$R$1))","v":0},{"$f":"('[2]21-23 Cap Proj  Sur Alloctns'!R86*Q$1)/(SUMPRODUCT('[2]21-23 Cap Proj  Sur Alloctns'!$F$109:$S$109,$E$1:$R$1))","v":0},{"$f":"('[2]21-23 Cap Proj  Sur Alloctns'!S86*R$1)/(SUMPRODUCT('[2]21-23 Cap Proj  Sur Alloctns'!$F$109:$S$109,$E$1:$R$1))","v":0},0,0,0,0,0,0,0,0,0,0,0,0,0,0,0,0,0,0,0,0]
[null,"380","Western Washington University",0,{"$f":"('[2]21-23 Cap Proj  Sur Alloctns'!F87*E$1)/(SUMPRODUCT('[2]21-23 Cap Proj  Sur Alloctns'!$F$109:$S$109,$E$1:$R$1))","v":0},{"$f":"('[2]21-23 Cap Proj  Sur Alloctns'!G87*F$1)/(SUMPRODUCT('[2]21-23 Cap Proj  Sur Alloctns'!$F$109:$S$109,$E$1:$R$1))","v":0},{"$f":"('[2]21-23 Cap Proj  Sur Alloctns'!H87*G$1)/(SUMPRODUCT('[2]21-23 Cap Proj  Sur Alloctns'!$F$109:$S$109,$E$1:$R$1))","v":0},{"$f":"('[2]21-23 Cap Proj  Sur Alloctns'!I87*H$1)/(SUMPRODUCT('[2]21-23 Cap Proj  Sur Alloctns'!$F$109:$S$109,$E$1:$R$1))","v":0},{"$f":"('[2]21-23 Cap Proj  Sur Alloctns'!J87*I$1)/(SUMPRODUCT('[2]21-23 Cap Proj  Sur Alloctns'!$F$109:$S$109,$E$1:$R$1))","v":0},{"$f":"('[2]21-23 Cap Proj  Sur Alloctns'!K87*J$1)/(SUMPRODUCT('[2]21-23 Cap Proj  Sur Alloctns'!$F$109:$S$109,$E$1:$R$1))","v":0},{"$f":"('[2]21-23 Cap Proj  Sur Alloctns'!L87*K$1)/(SUMPRODUCT('[2]21-23 Cap Proj  Sur Alloctns'!$F$109:$S$109,$E$1:$R$1))","v":0},{"$f":"('[2]21-23 Cap Proj  Sur Alloctns'!M87*L$1)/(SUMPRODUCT('[2]21-23 Cap Proj  Sur Alloctns'!$F$109:$S$109,$E$1:$R$1))","v":0},{"$f":"('[2]21-23 Cap Proj  Sur Alloctns'!N87*M$1)/(SUMPRODUCT('[2]21-23 Cap Proj  Sur Alloctns'!$F$109:$S$109,$E$1:$R$1))","v":0},{"$f":"('[2]21-23 Cap Proj  Sur Alloctns'!O87*N$1)/(SUMPRODUCT('[2]21-23 Cap Proj  Sur Alloctns'!$F$109:$S$109,$E$1:$R$1))","v":0},{"$f":"('[2]21-23 Cap Proj  Sur Alloctns'!P87*O$1)/(SUMPRODUCT('[2]21-23 Cap Proj  Sur Alloctns'!$F$109:$S$109,$E$1:$R$1))","v":0},{"$f":"('[2]21-23 Cap Proj  Sur Alloctns'!Q87*P$1)/(SUMPRODUCT('[2]21-23 Cap Proj  Sur Alloctns'!$F$109:$S$109,$E$1:$R$1))","v":0},{"$f":"('[2]21-23 Cap Proj  Sur Alloctns'!R87*Q$1)/(SUMPRODUCT('[2]21-23 Cap Proj  Sur Alloctns'!$F$109:$S$109,$E$1:$R$1))","v":0},{"$f":"('[2]21-23 Cap Proj  Sur Alloctns'!S87*R$1)/(SUMPRODUCT('[2]21-23 Cap Proj  Sur Alloctns'!$F$109:$S$109,$E$1:$R$1))","v":0},0,0,0,0,0,0,0,0,0,0,0,0,0,0,0,0,0,0,0,0]
[null,"387","Washington State Arts Commission",0,{"$f":"('[2]21-23 Cap Proj  Sur Alloctns'!F88*E$1)/(SUMPRODUCT('[2]21-23 Cap Proj  Sur Alloctns'!$F$109:$S$109,$E$1:$R$1))","v":0},{"$f":"('[2]21-23 Cap Proj  Sur Alloctns'!G88*F$1)/(SUMPRODUCT('[2]21-23 Cap Proj  Sur Alloctns'!$F$109:$S$109,$E$1:$R$1))","v":0},{"$f":"('[2]21-23 Cap Proj  Sur Alloctns'!H88*G$1)/(SUMPRODUCT('[2]21-23 Cap Proj  Sur Alloctns'!$F$109:$S$109,$E$1:$R$1))","v":0},{"$f":"('[2]21-23 Cap Proj  Sur Alloctns'!I88*H$1)/(SUMPRODUCT('[2]21-23 Cap Proj  Sur Alloctns'!$F$109:$S$109,$E$1:$R$1))","v":0},{"$f":"('[2]21-23 Cap Proj  Sur Alloctns'!J88*I$1)/(SUMPRODUCT('[2]21-23 Cap Proj  Sur Alloctns'!$F$109:$S$109,$E$1:$R$1))","v":0},{"$f":"('[2]21-23 Cap Proj  Sur Alloctns'!K88*J$1)/(SUMPRODUCT('[2]21-23 Cap Proj  Sur Alloctns'!$F$109:$S$109,$E$1:$R$1))","v":0},{"$f":"('[2]21-23 Cap Proj  Sur Alloctns'!L88*K$1)/(SUMPRODUCT('[2]21-23 Cap Proj  Sur Alloctns'!$F$109:$S$109,$E$1:$R$1))","v":0},{"$f":"('[2]21-23 Cap Proj  Sur Alloctns'!M88*L$1)/(SUMPRODUCT('[2]21-23 Cap Proj  Sur Alloctns'!$F$109:$S$109,$E$1:$R$1))","v":0},{"$f":"('[2]21-23 Cap Proj  Sur Alloctns'!N88*M$1)/(SUMPRODUCT('[2]21-23 Cap Proj  Sur Alloctns'!$F$109:$S$109,$E$1:$R$1))","v":0},{"$f":"('[2]21-23 Cap Proj  Sur Alloctns'!O88*N$1)/(SUMPRODUCT('[2]21-23 Cap Proj  Sur Alloctns'!$F$109:$S$109,$E$1:$R$1))","v":0},{"$f":"('[2]21-23 Cap Proj  Sur Alloctns'!P88*O$1)/(SUMPRODUCT('[2]21-23 Cap Proj  Sur Alloctns'!$F$109:$S$109,$E$1:$R$1))","v":0},{"$f":"('[2]21-23 Cap Proj  Sur Alloctns'!Q88*P$1)/(SUMPRODUCT('[2]21-23 Cap Proj  Sur Alloctns'!$F$109:$S$109,$E$1:$R$1))","v":0},{"$f":"('[2]21-23 Cap Proj  Sur Alloctns'!R88*Q$1)/(SUMPRODUCT('[2]21-23 Cap Proj  Sur Alloctns'!$F$109:$S$109,$E$1:$R$1))","v":0},{"$f":"('[2]21-23 Cap Proj  Sur Alloctns'!S88*R$1)/(SUMPRODUCT('[2]21-23 Cap Proj  Sur Alloctns'!$F$109:$S$109,$E$1:$R$1))","v":0},0,0,0,0,0,0,0,0,0,0,0,0,0,0,0,0,0,0,0,0]
[null,"390","Washington State Historical Society",0,{"$f":"('[2]21-23 Cap Proj  Sur Alloctns'!F89*E$1)/(SUMPRODUCT('[2]21-23 Cap Proj  Sur Alloctns'!$F$109:$S$109,$E$1:$R$1))","v":0},{"$f":"('[2]21-23 Cap Proj  Sur Alloctns'!G89*F$1)/(SUMPRODUCT('[2]21-23 Cap Proj  Sur Alloctns'!$F$109:$S$109,$E$1:$R$1))","v":0},{"$f":"('[2]21-23 Cap Proj  Sur Alloctns'!H89*G$1)/(SUMPRODUCT('[2]21-23 Cap Proj  Sur Alloctns'!$F$109:$S$109,$E$1:$R$1))","v":0},{"$f":"('[2]21-23 Cap Proj  Sur Alloctns'!I89*H$1)/(SUMPRODUCT('[2]21-23 Cap Proj  Sur Alloctns'!$F$109:$S$109,$E$1:$R$1))","v":0},{"$f":"('[2]21-23 Cap Proj  Sur Alloctns'!J89*I$1)/(SUMPRODUCT('[2]21-23 Cap Proj  Sur Alloctns'!$F$109:$S$109,$E$1:$R$1))","v":0},{"$f":"('[2]21-23 Cap Proj  Sur Alloctns'!K89*J$1)/(SUMPRODUCT('[2]21-23 Cap Proj  Sur Alloctns'!$F$109:$S$109,$E$1:$R$1))","v":0},{"$f":"('[2]21-23 Cap Proj  Sur Alloctns'!L89*K$1)/(SUMPRODUCT('[2]21-23 Cap Proj  Sur Alloctns'!$F$109:$S$109,$E$1:$R$1))","v":0},{"$f":"('[2]21-23 Cap Proj  Sur Alloctns'!M89*L$1)/(SUMPRODUCT('[2]21-23 Cap Proj  Sur Alloctns'!$F$109:$S$109,$E$1:$R$1))","v":0},{"$f":"('[2]21-23 Cap Proj  Sur Alloctns'!N89*M$1)/(SUMPRODUCT('[2]21-23 Cap Proj  Sur Alloctns'!$F$109:$S$109,$E$1:$R$1))","v":0},{"$f":"('[2]21-23 Cap Proj  Sur Alloctns'!O89*N$1)/(SUMPRODUCT('[2]21-23 Cap Proj  Sur Alloctns'!$F$109:$S$109,$E$1:$R$1))","v":0},{"$f":"('[2]21-23 Cap Proj  Sur Alloctns'!P89*O$1)/(SUMPRODUCT('[2]21-23 Cap Proj  Sur Alloctns'!$F$109:$S$109,$E$1:$R$1))","v":0},{"$f":"('[2]21-23 Cap Proj  Sur Alloctns'!Q89*P$1)/(SUMPRODUCT('[2]21-23 Cap Proj  Sur Alloctns'!$F$109:$S$109,$E$1:$R$1))","v":0},{"$f":"('[2]21-23 Cap Proj  Sur Alloctns'!R89*Q$1)/(SUMPRODUCT('[2]21-23 Cap Proj  Sur Alloctns'!$F$109:$S$109,$E$1:$R$1))","v":0},{"$f":"('[2]21-23 Cap Proj  Sur Alloctns'!S89*R$1)/(SUMPRODUCT('[2]21-23 Cap Proj  Sur Alloctns'!$F$109:$S$109,$E$1:$R$1))","v":0},0,0,0,0,0,0,0,0,0,0,0,0,0,0,0,0,0,0,0,0]
[null,"395","Eastern Washington State Historical Society",0,{"$f":"('[2]21-23 Cap Proj  Sur Alloctns'!F90*E$1)/(SUMPRODUCT('[2]21-23 Cap Proj  Sur Alloctns'!$F$109:$S$109,$E$1:$R$1))","v":0},{"$f":"('[2]21-23 Cap Proj  Sur Alloctns'!G90*F$1)/(SUMPRODUCT('[2]21-23 Cap Proj  Sur Alloctns'!$F$109:$S$109,$E$1:$R$1))","v":0},{"$f":"('[2]21-23 Cap Proj  Sur Alloctns'!H90*G$1)/(SUMPRODUCT('[2]21-23 Cap Proj  Sur Alloctns'!$F$109:$S$109,$E$1:$R$1))","v":0},{"$f":"('[2]21-23 Cap Proj  Sur Alloctns'!I90*H$1)/(SUMPRODUCT('[2]21-23 Cap Proj  Sur Alloctns'!$F$109:$S$109,$E$1:$R$1))","v":0},{"$f":"('[2]21-23 Cap Proj  Sur Alloctns'!J90*I$1)/(SUMPRODUCT('[2]21-23 Cap Proj  Sur Alloctns'!$F$109:$S$109,$E$1:$R$1))","v":0},{"$f":"('[2]21-23 Cap Proj  Sur Alloctns'!K90*J$1)/(SUMPRODUCT('[2]21-23 Cap Proj  Sur Alloctns'!$F$109:$S$109,$E$1:$R$1))","v":0},{"$f":"('[2]21-23 Cap Proj  Sur Alloctns'!L90*K$1)/(SUMPRODUCT('[2]21-23 Cap Proj  Sur Alloctns'!$F$109:$S$109,$E$1:$R$1))","v":0},{"$f":"('[2]21-23 Cap Proj  Sur Alloctns'!M90*L$1)/(SUMPRODUCT('[2]21-23 Cap Proj  Sur Alloctns'!$F$109:$S$109,$E$1:$R$1))","v":0},{"$f":"('[2]21-23 Cap Proj  Sur Alloctns'!N90*M$1)/(SUMPRODUCT('[2]21-23 Cap Proj  Sur Alloctns'!$F$109:$S$109,$E$1:$R$1))","v":0},{"$f":"('[2]21-23 Cap Proj  Sur Alloctns'!O90*N$1)/(SUMPRODUCT('[2]21-23 Cap Proj  Sur Alloctns'!$F$109:$S$109,$E$1:$R$1))","v":0},{"$f":"('[2]21-23 Cap Proj  Sur Alloctns'!P90*O$1)/(SUMPRODUCT('[2]21-23 Cap Proj  Sur Alloctns'!$F$109:$S$109,$E$1:$R$1))","v":0},{"$f":"('[2]21-23 Cap Proj  Sur Alloctns'!Q90*P$1)/(SUMPRODUCT('[2]21-23 Cap Proj  Sur Alloctns'!$F$109:$S$109,$E$1:$R$1))","v":0},{"$f":"('[2]21-23 Cap Proj  Sur Alloctns'!R90*Q$1)/(SUMPRODUCT('[2]21-23 Cap Proj  Sur Alloctns'!$F$109:$S$109,$E$1:$R$1))","v":0},{"$f":"('[2]21-23 Cap Proj  Sur Alloctns'!S90*R$1)/(SUMPRODUCT('[2]21-23 Cap Proj  Sur Alloctns'!$F$109:$S$109,$E$1:$R$1))","v":0},0,0,0,0,0,0,0,0,0,0,0,0,0,0,0,0,0,0,0,0]
[null,"405","Department of Transportation",0.12423214435476923,{"$f":"('[2]21-23 Cap Proj  Sur Alloctns'!F91*E$1)/(SUMPRODUCT('[2]21-23 Cap Proj  Sur Alloctns'!$F$109:$S$109,$E$1:$R$1))","v":0},{"$f":"('[2]21-23 Cap Proj  Sur Alloctns'!G91*F$1)/(SUMPRODUCT('[2]21-23 Cap Proj  Sur Alloctns'!$F$109:$S$109,$E$1:$R$1))","v":0},{"$f":"('[2]21-23 Cap Proj  Sur Alloctns'!H91*G$1)/(SUMPRODUCT('[2]21-23 Cap Proj  Sur Alloctns'!$F$109:$S$109,$E$1:$R$1))","v":0},{"$f":"('[2]21-23 Cap Proj  Sur Alloctns'!I91*H$1)/(SUMPRODUCT('[2]21-23 Cap Proj  Sur Alloctns'!$F$109:$S$109,$E$1:$R$1))","v":0},{"$f":"('[2]21-23 Cap Proj  Sur Alloctns'!J91*I$1)/(SUMPRODUCT('[2]21-23 Cap Proj  Sur Alloctns'!$F$109:$S$109,$E$1:$R$1))","v":0},{"$f":"('[2]21-23 Cap Proj  Sur Alloctns'!K91*J$1)/(SUMPRODUCT('[2]21-23 Cap Proj  Sur Alloctns'!$F$109:$S$109,$E$1:$R$1))","v":0},{"$f":"('[2]21-23 Cap Proj  Sur Alloctns'!L91*K$1)/(SUMPRODUCT('[2]21-23 Cap Proj  Sur Alloctns'!$F$109:$S$109,$E$1:$R$1))","v":0},{"$f":"('[2]21-23 Cap Proj  Sur Alloctns'!M91*L$1)/(SUMPRODUCT('[2]21-23 Cap Proj  Sur Alloctns'!$F$109:$S$109,$E$1:$R$1))","v":0},{"$f":"('[2]21-23 Cap Proj  Sur Alloctns'!N91*M$1)/(SUMPRODUCT('[2]21-23 Cap Proj  Sur Alloctns'!$F$109:$S$109,$E$1:$R$1))","v":0},{"$f":"('[2]21-23 Cap Proj  Sur Alloctns'!O91*N$1)/(SUMPRODUCT('[2]21-23 Cap Proj  Sur Alloctns'!$F$109:$S$109,$E$1:$R$1))","v":0.12423214435476923},{"$f":"('[2]21-23 Cap Proj  Sur Alloctns'!P91*O$1)/(SUMPRODUCT('[2]21-23 Cap Proj  Sur Alloctns'!$F$109:$S$109,$E$1:$R$1))","v":0},{"$f":"('[2]21-23 Cap Proj  Sur Alloctns'!Q91*P$1)/(SUMPRODUCT('[2]21-23 Cap Proj  Sur Alloctns'!$F$109:$S$109,$E$1:$R$1))","v":0},{"$f":"('[2]21-23 Cap Proj  Sur Alloctns'!R91*Q$1)/(SUMPRODUCT('[2]21-23 Cap Proj  Sur Alloctns'!$F$109:$S$109,$E$1:$R$1))","v":0},{"$f":"('[2]21-23 Cap Proj  Sur Alloctns'!S91*R$1)/(SUMPRODUCT('[2]21-23 Cap Proj  Sur Alloctns'!$F$109:$S$109,$E$1:$R$1))","v":0},0,0,0,0,0,0,0,0,0,0,0,0,0,0,0,0,0,0,0,0]
[null,"406","County Road Administration Board",0,{"$f":"('[2]21-23 Cap Proj  Sur Alloctns'!F92*E$1)/(SUMPRODUCT('[2]21-23 Cap Proj  Sur Alloctns'!$F$109:$S$109,$E$1:$R$1))","v":0},{"$f":"('[2]21-23 Cap Proj  Sur Alloctns'!G92*F$1)/(SUMPRODUCT('[2]21-23 Cap Proj  Sur Alloctns'!$F$109:$S$109,$E$1:$R$1))","v":0},{"$f":"('[2]21-23 Cap Proj  Sur Alloctns'!H92*G$1)/(SUMPRODUCT('[2]21-23 Cap Proj  Sur Alloctns'!$F$109:$S$109,$E$1:$R$1))","v":0},{"$f":"('[2]21-23 Cap Proj  Sur Alloctns'!I92*H$1)/(SUMPRODUCT('[2]21-23 Cap Proj  Sur Alloctns'!$F$109:$S$109,$E$1:$R$1))","v":0},{"$f":"('[2]21-23 Cap Proj  Sur Alloctns'!J92*I$1)/(SUMPRODUCT('[2]21-23 Cap Proj  Sur Alloctns'!$F$109:$S$109,$E$1:$R$1))","v":0},{"$f":"('[2]21-23 Cap Proj  Sur Alloctns'!K92*J$1)/(SUMPRODUCT('[2]21-23 Cap Proj  Sur Alloctns'!$F$109:$S$109,$E$1:$R$1))","v":0},{"$f":"('[2]21-23 Cap Proj  Sur Alloctns'!L92*K$1)/(SUMPRODUCT('[2]21-23 Cap Proj  Sur Alloctns'!$F$109:$S$109,$E$1:$R$1))","v":0},{"$f":"('[2]21-23 Cap Proj  Sur Alloctns'!M92*L$1)/(SUMPRODUCT('[2]21-23 Cap Proj  Sur Alloctns'!$F$109:$S$109,$E$1:$R$1))","v":0},{"$f":"('[2]21-23 Cap Proj  Sur Alloctns'!N92*M$1)/(SUMPRODUCT('[2]21-23 Cap Proj  Sur Alloctns'!$F$109:$S$109,$E$1:$R$1))","v":0},{"$f":"('[2]21-23 Cap Proj  Sur Alloctns'!O92*N$1)/(SUMPRODUCT('[2]21-23 Cap Proj  Sur Alloctns'!$F$109:$S$109,$E$1:$R$1))","v":0},{"$f":"('[2]21-23 Cap Proj  Sur Alloctns'!P92*O$1)/(SUMPRODUCT('[2]21-23 Cap Proj  Sur Alloctns'!$F$109:$S$109,$E$1:$R$1))","v":0},{"$f":"('[2]21-23 Cap Proj  Sur Alloctns'!Q92*P$1)/(SUMPRODUCT('[2]21-23 Cap Proj  Sur Alloctns'!$F$109:$S$109,$E$1:$R$1))","v":0},{"$f":"('[2]21-23 Cap Proj  Sur Alloctns'!R92*Q$1)/(SUMPRODUCT('[2]21-23 Cap Proj  Sur Alloctns'!$F$109:$S$109,$E$1:$R$1))","v":0},{"$f":"('[2]21-23 Cap Proj  Sur Alloctns'!S92*R$1)/(SUMPRODUCT('[2]21-23 Cap Proj  Sur Alloctns'!$F$109:$S$109,$E$1:$R$1))","v":0},0,0,0,0,0,0,0,0,0,0,0,0,0,0,0,0,0,0,0,0]
[null,"407","Transportation Improvement Board",0,{"$f":"('[2]21-23 Cap Proj  Sur Alloctns'!F93*E$1)/(SUMPRODUCT('[2]21-23 Cap Proj  Sur Alloctns'!$F$109:$S$109,$E$1:$R$1))","v":0},{"$f":"('[2]21-23 Cap Proj  Sur Alloctns'!G93*F$1)/(SUMPRODUCT('[2]21-23 Cap Proj  Sur Alloctns'!$F$109:$S$109,$E$1:$R$1))","v":0},{"$f":"('[2]21-23 Cap Proj  Sur Alloctns'!H93*G$1)/(SUMPRODUCT('[2]21-23 Cap Proj  Sur Alloctns'!$F$109:$S$109,$E$1:$R$1))","v":0},{"$f":"('[2]21-23 Cap Proj  Sur Alloctns'!I93*H$1)/(SUMPRODUCT('[2]21-23 Cap Proj  Sur Alloctns'!$F$109:$S$109,$E$1:$R$1))","v":0},{"$f":"('[2]21-23 Cap Proj  Sur Alloctns'!J93*I$1)/(SUMPRODUCT('[2]21-23 Cap Proj  Sur Alloctns'!$F$109:$S$109,$E$1:$R$1))","v":0},{"$f":"('[2]21-23 Cap Proj  Sur Alloctns'!K93*J$1)/(SUMPRODUCT('[2]21-23 Cap Proj  Sur Alloctns'!$F$109:$S$109,$E$1:$R$1))","v":0},{"$f":"('[2]21-23 Cap Proj  Sur Alloctns'!L93*K$1)/(SUMPRODUCT('[2]21-23 Cap Proj  Sur Alloctns'!$F$109:$S$109,$E$1:$R$1))","v":0},{"$f":"('[2]21-23 Cap Proj  Sur Alloctns'!M93*L$1)/(SUMPRODUCT('[2]21-23 Cap Proj  Sur Alloctns'!$F$109:$S$109,$E$1:$R$1))","v":0},{"$f":"('[2]21-23 Cap Proj  Sur Alloctns'!N93*M$1)/(SUMPRODUCT('[2]21-23 Cap Proj  Sur Alloctns'!$F$109:$S$109,$E$1:$R$1))","v":0},{"$f":"('[2]21-23 Cap Proj  Sur Alloctns'!O93*N$1)/(SUMPRODUCT('[2]21-23 Cap Proj  Sur Alloctns'!$F$109:$S$109,$E$1:$R$1))","v":0},{"$f":"('[2]21-23 Cap Proj  Sur Alloctns'!P93*O$1)/(SUMPRODUCT('[2]21-23 Cap Proj  Sur Alloctns'!$F$109:$S$109,$E$1:$R$1))","v":0},{"$f":"('[2]21-23 Cap Proj  Sur Alloctns'!Q93*P$1)/(SUMPRODUCT('[2]21-23 Cap Proj  Sur Alloctns'!$F$109:$S$109,$E$1:$R$1))","v":0},{"$f":"('[2]21-23 Cap Proj  Sur Alloctns'!R93*Q$1)/(SUMPRODUCT('[2]21-23 Cap Proj  Sur Alloctns'!$F$109:$S$109,$E$1:$R$1))","v":0},{"$f":"('[2]21-23 Cap Proj  Sur Alloctns'!S93*R$1)/(SUMPRODUCT('[2]21-23 Cap Proj  Sur Alloctns'!$F$109:$S$109,$E$1:$R$1))","v":0},0,0,0,0,0,0,0,0,0,0,0,0,0,0,0,0,0,0,0,0]
[null,"410","Transportation Commission",0,{"$f":"('[2]21-23 Cap Proj  Sur Alloctns'!F94*E$1)/(SUMPRODUCT('[2]21-23 Cap Proj  Sur Alloctns'!$F$109:$S$109,$E$1:$R$1))","v":0},{"$f":"('[2]21-23 Cap Proj  Sur Alloctns'!G94*F$1)/(SUMPRODUCT('[2]21-23 Cap Proj  Sur Alloctns'!$F$109:$S$109,$E$1:$R$1))","v":0},{"$f":"('[2]21-23 Cap Proj  Sur Alloctns'!H94*G$1)/(SUMPRODUCT('[2]21-23 Cap Proj  Sur Alloctns'!$F$109:$S$109,$E$1:$R$1))","v":0},{"$f":"('[2]21-23 Cap Proj  Sur Alloctns'!I94*H$1)/(SUMPRODUCT('[2]21-23 Cap Proj  Sur Alloctns'!$F$109:$S$109,$E$1:$R$1))","v":0},{"$f":"('[2]21-23 Cap Proj  Sur Alloctns'!J94*I$1)/(SUMPRODUCT('[2]21-23 Cap Proj  Sur Alloctns'!$F$109:$S$109,$E$1:$R$1))","v":0},{"$f":"('[2]21-23 Cap Proj  Sur Alloctns'!K94*J$1)/(SUMPRODUCT('[2]21-23 Cap Proj  Sur Alloctns'!$F$109:$S$109,$E$1:$R$1))","v":0},{"$f":"('[2]21-23 Cap Proj  Sur Alloctns'!L94*K$1)/(SUMPRODUCT('[2]21-23 Cap Proj  Sur Alloctns'!$F$109:$S$109,$E$1:$R$1))","v":0},{"$f":"('[2]21-23 Cap Proj  Sur Alloctns'!M94*L$1)/(SUMPRODUCT('[2]21-23 Cap Proj  Sur Alloctns'!$F$109:$S$109,$E$1:$R$1))","v":0},{"$f":"('[2]21-23 Cap Proj  Sur Alloctns'!N94*M$1)/(SUMPRODUCT('[2]21-23 Cap Proj  Sur Alloctns'!$F$109:$S$109,$E$1:$R$1))","v":0},{"$f":"('[2]21-23 Cap Proj  Sur Alloctns'!O94*N$1)/(SUMPRODUCT('[2]21-23 Cap Proj  Sur Alloctns'!$F$109:$S$109,$E$1:$R$1))","v":0},{"$f":"('[2]21-23 Cap Proj  Sur Alloctns'!P94*O$1)/(SUMPRODUCT('[2]21-23 Cap Proj  Sur Alloctns'!$F$109:$S$109,$E$1:$R$1))","v":0},{"$f":"('[2]21-23 Cap Proj  Sur Alloctns'!Q94*P$1)/(SUMPRODUCT('[2]21-23 Cap Proj  Sur Alloctns'!$F$109:$S$109,$E$1:$R$1))","v":0},{"$f":"('[2]21-23 Cap Proj  Sur Alloctns'!R94*Q$1)/(SUMPRODUCT('[2]21-23 Cap Proj  Sur Alloctns'!$F$109:$S$109,$E$1:$R$1))","v":0},{"$f":"('[2]21-23 Cap Proj  Sur Alloctns'!S94*R$1)/(SUMPRODUCT('[2]21-23 Cap Proj  Sur Alloctns'!$F$109:$S$109,$E$1:$R$1))","v":0},0,0,0,0,0,0,0,0,0,0,0,0,0,0,0,0,0,0,0,0]
[null,"411","Freight Mobility Strategic Investment Board",0,{"$f":"('[2]21-23 Cap Proj  Sur Alloctns'!F95*E$1)/(SUMPRODUCT('[2]21-23 Cap Proj  Sur Alloctns'!$F$109:$S$109,$E$1:$R$1))","v":0},{"$f":"('[2]21-23 Cap Proj  Sur Alloctns'!G95*F$1)/(SUMPRODUCT('[2]21-23 Cap Proj  Sur Alloctns'!$F$109:$S$109,$E$1:$R$1))","v":0},{"$f":"('[2]21-23 Cap Proj  Sur Alloctns'!H95*G$1)/(SUMPRODUCT('[2]21-23 Cap Proj  Sur Alloctns'!$F$109:$S$109,$E$1:$R$1))","v":0},{"$f":"('[2]21-23 Cap Proj  Sur Alloctns'!I95*H$1)/(SUMPRODUCT('[2]21-23 Cap Proj  Sur Alloctns'!$F$109:$S$109,$E$1:$R$1))","v":0},{"$f":"('[2]21-23 Cap Proj  Sur Alloctns'!J95*I$1)/(SUMPRODUCT('[2]21-23 Cap Proj  Sur Alloctns'!$F$109:$S$109,$E$1:$R$1))","v":0},{"$f":"('[2]21-23 Cap Proj  Sur Alloctns'!K95*J$1)/(SUMPRODUCT('[2]21-23 Cap Proj  Sur Alloctns'!$F$109:$S$109,$E$1:$R$1))","v":0},{"$f":"('[2]21-23 Cap Proj  Sur Alloctns'!L95*K$1)/(SUMPRODUCT('[2]21-23 Cap Proj  Sur Alloctns'!$F$109:$S$109,$E$1:$R$1))","v":0},{"$f":"('[2]21-23 Cap Proj  Sur Alloctns'!M95*L$1)/(SUMPRODUCT('[2]21-23 Cap Proj  Sur Alloctns'!$F$109:$S$109,$E$1:$R$1))","v":0},{"$f":"('[2]21-23 Cap Proj  Sur Alloctns'!N95*M$1)/(SUMPRODUCT('[2]21-23 Cap Proj  Sur Alloctns'!$F$109:$S$109,$E$1:$R$1))","v":0},{"$f":"('[2]21-23 Cap Proj  Sur Alloctns'!O95*N$1)/(SUMPRODUCT('[2]21-23 Cap Proj  Sur Alloctns'!$F$109:$S$109,$E$1:$R$1))","v":0},{"$f":"('[2]21-23 Cap Proj  Sur Alloctns'!P95*O$1)/(SUMPRODUCT('[2]21-23 Cap Proj  Sur Alloctns'!$F$109:$S$109,$E$1:$R$1))","v":0},{"$f":"('[2]21-23 Cap Proj  Sur Alloctns'!Q95*P$1)/(SUMPRODUCT('[2]21-23 Cap Proj  Sur Alloctns'!$F$109:$S$109,$E$1:$R$1))","v":0},{"$f":"('[2]21-23 Cap Proj  Sur Alloctns'!R95*Q$1)/(SUMPRODUCT('[2]21-23 Cap Proj  Sur Alloctns'!$F$109:$S$109,$E$1:$R$1))","v":0},{"$f":"('[2]21-23 Cap Proj  Sur Alloctns'!S95*R$1)/(SUMPRODUCT('[2]21-23 Cap Proj  Sur Alloctns'!$F$109:$S$109,$E$1:$R$1))","v":0},0,0,0,0,0,0,0,0,0,0,0,0,0,0,0,0,0,0,0,0]
[null,"460","Columbia River Gorge Commission",0,{"$f":"('[2]21-23 Cap Proj  Sur Alloctns'!F96*E$1)/(SUMPRODUCT('[2]21-23 Cap Proj  Sur Alloctns'!$F$109:$S$109,$E$1:$R$1))","v":0},{"$f":"('[2]21-23 Cap Proj  Sur Alloctns'!G96*F$1)/(SUMPRODUCT('[2]21-23 Cap Proj  Sur Alloctns'!$F$109:$S$109,$E$1:$R$1))","v":0},{"$f":"('[2]21-23 Cap Proj  Sur Alloctns'!H96*G$1)/(SUMPRODUCT('[2]21-23 Cap Proj  Sur Alloctns'!$F$109:$S$109,$E$1:$R$1))","v":0},{"$f":"('[2]21-23 Cap Proj  Sur Alloctns'!I96*H$1)/(SUMPRODUCT('[2]21-23 Cap Proj  Sur Alloctns'!$F$109:$S$109,$E$1:$R$1))","v":0},{"$f":"('[2]21-23 Cap Proj  Sur Alloctns'!J96*I$1)/(SUMPRODUCT('[2]21-23 Cap Proj  Sur Alloctns'!$F$109:$S$109,$E$1:$R$1))","v":0},{"$f":"('[2]21-23 Cap Proj  Sur Alloctns'!K96*J$1)/(SUMPRODUCT('[2]21-23 Cap Proj  Sur Alloctns'!$F$109:$S$109,$E$1:$R$1))","v":0},{"$f":"('[2]21-23 Cap Proj  Sur Alloctns'!L96*K$1)/(SUMPRODUCT('[2]21-23 Cap Proj  Sur Alloctns'!$F$109:$S$109,$E$1:$R$1))","v":0},{"$f":"('[2]21-23 Cap Proj  Sur Alloctns'!M96*L$1)/(SUMPRODUCT('[2]21-23 Cap Proj  Sur Alloctns'!$F$109:$S$109,$E$1:$R$1))","v":0},{"$f":"('[2]21-23 Cap Proj  Sur Alloctns'!N96*M$1)/(SUMPRODUCT('[2]21-23 Cap Proj  Sur Alloctns'!$F$109:$S$109,$E$1:$R$1))","v":0},{"$f":"('[2]21-23 Cap Proj  Sur Alloctns'!O96*N$1)/(SUMPRODUCT('[2]21-23 Cap Proj  Sur Alloctns'!$F$109:$S$109,$E$1:$R$1))","v":0},{"$f":"('[2]21-23 Cap Proj  Sur Alloctns'!P96*O$1)/(SUMPRODUCT('[2]21-23 Cap Proj  Sur Alloctns'!$F$109:$S$109,$E$1:$R$1))","v":0},{"$f":"('[2]21-23 Cap Proj  Sur Alloctns'!Q96*P$1)/(SUMPRODUCT('[2]21-23 Cap Proj  Sur Alloctns'!$F$109:$S$109,$E$1:$R$1))","v":0},{"$f":"('[2]21-23 Cap Proj  Sur Alloctns'!R96*Q$1)/(SUMPRODUCT('[2]21-23 Cap Proj  Sur Alloctns'!$F$109:$S$109,$E$1:$R$1))","v":0},{"$f":"('[2]21-23 Cap Proj  Sur Alloctns'!S96*R$1)/(SUMPRODUCT('[2]21-23 Cap Proj  Sur Alloctns'!$F$109:$S$109,$E$1:$R$1))","v":0},0,0,0,0,0,0,0,0,0,0,0,0,0,0,0,0,0,0,0,0]
[null,"461","Department of Ecology",0,{"$f":"('[2]21-23 Cap Proj  Sur Alloctns'!F97*E$1)/(SUMPRODUCT('[2]21-23 Cap Proj  Sur Alloctns'!$F$109:$S$109,$E$1:$R$1))","v":0},{"$f":"('[2]21-23 Cap Proj  Sur Alloctns'!G97*F$1)/(SUMPRODUCT('[2]21-23 Cap Proj  Sur Alloctns'!$F$109:$S$109,$E$1:$R$1))","v":0},{"$f":"('[2]21-23 Cap Proj  Sur Alloctns'!H97*G$1)/(SUMPRODUCT('[2]21-23 Cap Proj  Sur Alloctns'!$F$109:$S$109,$E$1:$R$1))","v":0},{"$f":"('[2]21-23 Cap Proj  Sur Alloctns'!I97*H$1)/(SUMPRODUCT('[2]21-23 Cap Proj  Sur Alloctns'!$F$109:$S$109,$E$1:$R$1))","v":0},{"$f":"('[2]21-23 Cap Proj  Sur Alloctns'!J97*I$1)/(SUMPRODUCT('[2]21-23 Cap Proj  Sur Alloctns'!$F$109:$S$109,$E$1:$R$1))","v":0},{"$f":"('[2]21-23 Cap Proj  Sur Alloctns'!K97*J$1)/(SUMPRODUCT('[2]21-23 Cap Proj  Sur Alloctns'!$F$109:$S$109,$E$1:$R$1))","v":0},{"$f":"('[2]21-23 Cap Proj  Sur Alloctns'!L97*K$1)/(SUMPRODUCT('[2]21-23 Cap Proj  Sur Alloctns'!$F$109:$S$109,$E$1:$R$1))","v":0},{"$f":"('[2]21-23 Cap Proj  Sur Alloctns'!M97*L$1)/(SUMPRODUCT('[2]21-23 Cap Proj  Sur Alloctns'!$F$109:$S$109,$E$1:$R$1))","v":0},{"$f":"('[2]21-23 Cap Proj  Sur Alloctns'!N97*M$1)/(SUMPRODUCT('[2]21-23 Cap Proj  Sur Alloctns'!$F$109:$S$109,$E$1:$R$1))","v":0},{"$f":"('[2]21-23 Cap Proj  Sur Alloctns'!O97*N$1)/(SUMPRODUCT('[2]21-23 Cap Proj  Sur Alloctns'!$F$109:$S$109,$E$1:$R$1))","v":0},{"$f":"('[2]21-23 Cap Proj  Sur Alloctns'!P97*O$1)/(SUMPRODUCT('[2]21-23 Cap Proj  Sur Alloctns'!$F$109:$S$109,$E$1:$R$1))","v":0},{"$f":"('[2]21-23 Cap Proj  Sur Alloctns'!Q97*P$1)/(SUMPRODUCT('[2]21-23 Cap Proj  Sur Alloctns'!$F$109:$S$109,$E$1:$R$1))","v":0},{"$f":"('[2]21-23 Cap Proj  Sur Alloctns'!R97*Q$1)/(SUMPRODUCT('[2]21-23 Cap Proj  Sur Alloctns'!$F$109:$S$109,$E$1:$R$1))","v":0},{"$f":"('[2]21-23 Cap Proj  Sur Alloctns'!S97*R$1)/(SUMPRODUCT('[2]21-23 Cap Proj  Sur Alloctns'!$F$109:$S$109,$E$1:$R$1))","v":0},0,0,0,0,0,0,0,0,0,0,0,0,0,0,0,0,0,0,0,0]
[null,"462","Pollution Liability Insurance Program",0,{"$f":"('[2]21-23 Cap Proj  Sur Alloctns'!F98*E$1)/(SUMPRODUCT('[2]21-23 Cap Proj  Sur Alloctns'!$F$109:$S$109,$E$1:$R$1))","v":0},{"$f":"('[2]21-23 Cap Proj  Sur Alloctns'!G98*F$1)/(SUMPRODUCT('[2]21-23 Cap Proj  Sur Alloctns'!$F$109:$S$109,$E$1:$R$1))","v":0},{"$f":"('[2]21-23 Cap Proj  Sur Alloctns'!H98*G$1)/(SUMPRODUCT('[2]21-23 Cap Proj  Sur Alloctns'!$F$109:$S$109,$E$1:$R$1))","v":0},{"$f":"('[2]21-23 Cap Proj  Sur Alloctns'!I98*H$1)/(SUMPRODUCT('[2]21-23 Cap Proj  Sur Alloctns'!$F$109:$S$109,$E$1:$R$1))","v":0},{"$f":"('[2]21-23 Cap Proj  Sur Alloctns'!J98*I$1)/(SUMPRODUCT('[2]21-23 Cap Proj  Sur Alloctns'!$F$109:$S$109,$E$1:$R$1))","v":0},{"$f":"('[2]21-23 Cap Proj  Sur Alloctns'!K98*J$1)/(SUMPRODUCT('[2]21-23 Cap Proj  Sur Alloctns'!$F$109:$S$109,$E$1:$R$1))","v":0},{"$f":"('[2]21-23 Cap Proj  Sur Alloctns'!L98*K$1)/(SUMPRODUCT('[2]21-23 Cap Proj  Sur Alloctns'!$F$109:$S$109,$E$1:$R$1))","v":0},{"$f":"('[2]21-23 Cap Proj  Sur Alloctns'!M98*L$1)/(SUMPRODUCT('[2]21-23 Cap Proj  Sur Alloctns'!$F$109:$S$109,$E$1:$R$1))","v":0},{"$f":"('[2]21-23 Cap Proj  Sur Alloctns'!N98*M$1)/(SUMPRODUCT('[2]21-23 Cap Proj  Sur Alloctns'!$F$109:$S$109,$E$1:$R$1))","v":0},{"$f":"('[2]21-23 Cap Proj  Sur Alloctns'!O98*N$1)/(SUMPRODUCT('[2]21-23 Cap Proj  Sur Alloctns'!$F$109:$S$109,$E$1:$R$1))","v":0},{"$f":"('[2]21-23 Cap Proj  Sur Alloctns'!P98*O$1)/(SUMPRODUCT('[2]21-23 Cap Proj  Sur Alloctns'!$F$109:$S$109,$E$1:$R$1))","v":0},{"$f":"('[2]21-23 Cap Proj  Sur Alloctns'!Q98*P$1)/(SUMPRODUCT('[2]21-23 Cap Proj  Sur Alloctns'!$F$109:$S$109,$E$1:$R$1))","v":0},{"$f":"('[2]21-23 Cap Proj  Sur Alloctns'!R98*Q$1)/(SUMPRODUCT('[2]21-23 Cap Proj  Sur Alloctns'!$F$109:$S$109,$E$1:$R$1))","v":0},{"$f":"('[2]21-23 Cap Proj  Sur Alloctns'!S98*R$1)/(SUMPRODUCT('[2]21-23 Cap Proj  Sur Alloctns'!$F$109:$S$109,$E$1:$R$1))","v":0},0,0,0,0,0,0,0,0,0,0,0,0,0,0,0,0,0,0,0,0]
[null,"465","State Parks and Recreation Commission",0,{"$f":"('[2]21-23 Cap Proj  Sur Alloctns'!F99*E$1)/(SUMPRODUCT('[2]21-23 Cap Proj  Sur Alloctns'!$F$109:$S$109,$E$1:$R$1))","v":0},{"$f":"('[2]21-23 Cap Proj  Sur Alloctns'!G99*F$1)/(SUMPRODUCT('[2]21-23 Cap Proj  Sur Alloctns'!$F$109:$S$109,$E$1:$R$1))","v":0},{"$f":"('[2]21-23 Cap Proj  Sur Alloctns'!H99*G$1)/(SUMPRODUCT('[2]21-23 Cap Proj  Sur Alloctns'!$F$109:$S$109,$E$1:$R$1))","v":0},{"$f":"('[2]21-23 Cap Proj  Sur Alloctns'!I99*H$1)/(SUMPRODUCT('[2]21-23 Cap Proj  Sur Alloctns'!$F$109:$S$109,$E$1:$R$1))","v":0},{"$f":"('[2]21-23 Cap Proj  Sur Alloctns'!J99*I$1)/(SUMPRODUCT('[2]21-23 Cap Proj  Sur Alloctns'!$F$109:$S$109,$E$1:$R$1))","v":0},{"$f":"('[2]21-23 Cap Proj  Sur Alloctns'!K99*J$1)/(SUMPRODUCT('[2]21-23 Cap Proj  Sur Alloctns'!$F$109:$S$109,$E$1:$R$1))","v":0},{"$f":"('[2]21-23 Cap Proj  Sur Alloctns'!L99*K$1)/(SUMPRODUCT('[2]21-23 Cap Proj  Sur Alloctns'!$F$109:$S$109,$E$1:$R$1))","v":0},{"$f":"('[2]21-23 Cap Proj  Sur Alloctns'!M99*L$1)/(SUMPRODUCT('[2]21-23 Cap Proj  Sur Alloctns'!$F$109:$S$109,$E$1:$R$1))","v":0},{"$f":"('[2]21-23 Cap Proj  Sur Alloctns'!N99*M$1)/(SUMPRODUCT('[2]21-23 Cap Proj  Sur Alloctns'!$F$109:$S$109,$E$1:$R$1))","v":0},{"$f":"('[2]21-23 Cap Proj  Sur Alloctns'!O99*N$1)/(SUMPRODUCT('[2]21-23 Cap Proj  Sur Alloctns'!$F$109:$S$109,$E$1:$R$1))","v":0},{"$f":"('[2]21-23 Cap Proj  Sur Alloctns'!P99*O$1)/(SUMPRODUCT('[2]21-23 Cap Proj  Sur Alloctns'!$F$109:$S$109,$E$1:$R$1))","v":0},{"$f":"('[2]21-23 Cap Proj  Sur Alloctns'!Q99*P$1)/(SUMPRODUCT('[2]21-23 Cap Proj  Sur Alloctns'!$F$109:$S$109,$E$1:$R$1))","v":0},{"$f":"('[2]21-23 Cap Proj  Sur Alloctns'!R99*Q$1)/(SUMPRODUCT('[2]21-23 Cap Proj  Sur Alloctns'!$F$109:$S$109,$E$1:$R$1))","v":0},{"$f":"('[2]21-23 Cap Proj  Sur Alloctns'!S99*R$1)/(SUMPRODUCT('[2]21-23 Cap Proj  Sur Alloctns'!$F$109:$S$109,$E$1:$R$1))","v":0},0,0,0,0,0,0,0,0,0,0,0,0,0,0,0,0,0,0,0,0]
[null,"467","Recreation and Conservation Funding Board",6.6866418493024358E-3,{"$f":"('[2]21-23 Cap Proj  Sur Alloctns'!F100*E$1)/(SUMPRODUCT('[2]21-23 Cap Proj  Sur Alloctns'!$F$109:$S$109,$E$1:$R$1))","v":0},{"$f":"('[2]21-23 Cap Proj  Sur Alloctns'!G100*F$1)/(SUMPRODUCT('[2]21-23 Cap Proj  Sur Alloctns'!$F$109:$S$109,$E$1:$R$1))","v":0},{"$f":"('[2]21-23 Cap Proj  Sur Alloctns'!H100*G$1)/(SUMPRODUCT('[2]21-23 Cap Proj  Sur Alloctns'!$F$109:$S$109,$E$1:$R$1))","v":0},{"$f":"('[2]21-23 Cap Proj  Sur Alloctns'!I100*H$1)/(SUMPRODUCT('[2]21-23 Cap Proj  Sur Alloctns'!$F$109:$S$109,$E$1:$R$1))","v":0},{"$f":"('[2]21-23 Cap Proj  Sur Alloctns'!J100*I$1)/(SUMPRODUCT('[2]21-23 Cap Proj  Sur Alloctns'!$F$109:$S$109,$E$1:$R$1))","v":0},{"$f":"('[2]21-23 Cap Proj  Sur Alloctns'!K100*J$1)/(SUMPRODUCT('[2]21-23 Cap Proj  Sur Alloctns'!$F$109:$S$109,$E$1:$R$1))","v":0},{"$f":"('[2]21-23 Cap Proj  Sur Alloctns'!L100*K$1)/(SUMPRODUCT('[2]21-23 Cap Proj  Sur Alloctns'!$F$109:$S$109,$E$1:$R$1))","v":0},{"$f":"('[2]21-23 Cap Proj  Sur Alloctns'!M100*L$1)/(SUMPRODUCT('[2]21-23 Cap Proj  Sur Alloctns'!$F$109:$S$109,$E$1:$R$1))","v":6.6866418493024358E-3},{"$f":"('[2]21-23 Cap Proj  Sur Alloctns'!N100*M$1)/(SUMPRODUCT('[2]21-23 Cap Proj  Sur Alloctns'!$F$109:$S$109,$E$1:$R$1))","v":0},{"$f":"('[2]21-23 Cap Proj  Sur Alloctns'!O100*N$1)/(SUMPRODUCT('[2]21-23 Cap Proj  Sur Alloctns'!$F$109:$S$109,$E$1:$R$1))","v":0},{"$f":"('[2]21-23 Cap Proj  Sur Alloctns'!P100*O$1)/(SUMPRODUCT('[2]21-23 Cap Proj  Sur Alloctns'!$F$109:$S$109,$E$1:$R$1))","v":0},{"$f":"('[2]21-23 Cap Proj  Sur Alloctns'!Q100*P$1)/(SUMPRODUCT('[2]21-23 Cap Proj  Sur Alloctns'!$F$109:$S$109,$E$1:$R$1))","v":0},{"$f":"('[2]21-23 Cap Proj  Sur Alloctns'!R100*Q$1)/(SUMPRODUCT('[2]21-23 Cap Proj  Sur Alloctns'!$F$109:$S$109,$E$1:$R$1))","v":0},{"$f":"('[2]21-23 Cap Proj  Sur Alloctns'!S100*R$1)/(SUMPRODUCT('[2]21-23 Cap Proj  Sur Alloctns'!$F$109:$S$109,$E$1:$R$1))","v":0},0,0,0,0,0,0,0,0,0,0,0,0,0,0,0,0,0,0,0,0]
[null,"468","Environmental and Land Use Hearings Office",0,{"$f":"('[2]21-23 Cap Proj  Sur Alloctns'!F101*E$1)/(SUMPRODUCT('[2]21-23 Cap Proj  Sur Alloctns'!$F$109:$S$109,$E$1:$R$1))","v":0},{"$f":"('[2]21-23 Cap Proj  Sur Alloctns'!G101*F$1)/(SUMPRODUCT('[2]21-23 Cap Proj  Sur Alloctns'!$F$109:$S$109,$E$1:$R$1))","v":0},{"$f":"('[2]21-23 Cap Proj  Sur Alloctns'!H101*G$1)/(SUMPRODUCT('[2]21-23 Cap Proj  Sur Alloctns'!$F$109:$S$109,$E$1:$R$1))","v":0},{"$f":"('[2]21-23 Cap Proj  Sur Alloctns'!I101*H$1)/(SUMPRODUCT('[2]21-23 Cap Proj  Sur Alloctns'!$F$109:$S$109,$E$1:$R$1))","v":0},{"$f":"('[2]21-23 Cap Proj  Sur Alloctns'!J101*I$1)/(SUMPRODUCT('[2]21-23 Cap Proj  Sur Alloctns'!$F$109:$S$109,$E$1:$R$1))","v":0},{"$f":"('[2]21-23 Cap Proj  Sur Alloctns'!K101*J$1)/(SUMPRODUCT('[2]21-23 Cap Proj  Sur Alloctns'!$F$109:$S$109,$E$1:$R$1))","v":0},{"$f":"('[2]21-23 Cap Proj  Sur Alloctns'!L101*K$1)/(SUMPRODUCT('[2]21-23 Cap Proj  Sur Alloctns'!$F$109:$S$109,$E$1:$R$1))","v":0},{"$f":"('[2]21-23 Cap Proj  Sur Alloctns'!M101*L$1)/(SUMPRODUCT('[2]21-23 Cap Proj  Sur Alloctns'!$F$109:$S$109,$E$1:$R$1))","v":0},{"$f":"('[2]21-23 Cap Proj  Sur Alloctns'!N101*M$1)/(SUMPRODUCT('[2]21-23 Cap Proj  Sur Alloctns'!$F$109:$S$109,$E$1:$R$1))","v":0},{"$f":"('[2]21-23 Cap Proj  Sur Alloctns'!O101*N$1)/(SUMPRODUCT('[2]21-23 Cap Proj  Sur Alloctns'!$F$109:$S$109,$E$1:$R$1))","v":0},{"$f":"('[2]21-23 Cap Proj  Sur Alloctns'!P101*O$1)/(SUMPRODUCT('[2]21-23 Cap Proj  Sur Alloctns'!$F$109:$S$109,$E$1:$R$1))","v":0},{"$f":"('[2]21-23 Cap Proj  Sur Alloctns'!Q101*P$1)/(SUMPRODUCT('[2]21-23 Cap Proj  Sur Alloctns'!$F$109:$S$109,$E$1:$R$1))","v":0},{"$f":"('[2]21-23 Cap Proj  Sur Alloctns'!R101*Q$1)/(SUMPRODUCT('[2]21-23 Cap Proj  Sur Alloctns'!$F$109:$S$109,$E$1:$R$1))","v":0},{"$f":"('[2]21-23 Cap Proj  Sur Alloctns'!S101*R$1)/(SUMPRODUCT('[2]21-23 Cap Proj  Sur Alloctns'!$F$109:$S$109,$E$1:$R$1))","v":0},0,0,0,0,0,0,0,0,0,0,0,0,0,0,0,0,0,0,0,0]
[null,"471","State Conservation Commission",0,{"$f":"('[2]21-23 Cap Proj  Sur Alloctns'!F102*E$1)/(SUMPRODUCT('[2]21-23 Cap Proj  Sur Alloctns'!$F$109:$S$109,$E$1:$R$1))","v":0},{"$f":"('[2]21-23 Cap Proj  Sur Alloctns'!G102*F$1)/(SUMPRODUCT('[2]21-23 Cap Proj  Sur Alloctns'!$F$109:$S$109,$E$1:$R$1))","v":0},{"$f":"('[2]21-23 Cap Proj  Sur Alloctns'!H102*G$1)/(SUMPRODUCT('[2]21-23 Cap Proj  Sur Alloctns'!$F$109:$S$109,$E$1:$R$1))","v":0},{"$f":"('[2]21-23 Cap Proj  Sur Alloctns'!I102*H$1)/(SUMPRODUCT('[2]21-23 Cap Proj  Sur Alloctns'!$F$109:$S$109,$E$1:$R$1))","v":0},{"$f":"('[2]21-23 Cap Proj  Sur Alloctns'!J102*I$1)/(SUMPRODUCT('[2]21-23 Cap Proj  Sur Alloctns'!$F$109:$S$109,$E$1:$R$1))","v":0},{"$f":"('[2]21-23 Cap Proj  Sur Alloctns'!K102*J$1)/(SUMPRODUCT('[2]21-23 Cap Proj  Sur Alloctns'!$F$109:$S$109,$E$1:$R$1))","v":0},{"$f":"('[2]21-23 Cap Proj  Sur Alloctns'!L102*K$1)/(SUMPRODUCT('[2]21-23 Cap Proj  Sur Alloctns'!$F$109:$S$109,$E$1:$R$1))","v":0},{"$f":"('[2]21-23 Cap Proj  Sur Alloctns'!M102*L$1)/(SUMPRODUCT('[2]21-23 Cap Proj  Sur Alloctns'!$F$109:$S$109,$E$1:$R$1))","v":0},{"$f":"('[2]21-23 Cap Proj  Sur Alloctns'!N102*M$1)/(SUMPRODUCT('[2]21-23 Cap Proj  Sur Alloctns'!$F$109:$S$109,$E$1:$R$1))","v":0},{"$f":"('[2]21-23 Cap Proj  Sur Alloctns'!O102*N$1)/(SUMPRODUCT('[2]21-23 Cap Proj  Sur Alloctns'!$F$109:$S$109,$E$1:$R$1))","v":0},{"$f":"('[2]21-23 Cap Proj  Sur Alloctns'!P102*O$1)/(SUMPRODUCT('[2]21-23 Cap Proj  Sur Alloctns'!$F$109:$S$109,$E$1:$R$1))","v":0},{"$f":"('[2]21-23 Cap Proj  Sur Alloctns'!Q102*P$1)/(SUMPRODUCT('[2]21-23 Cap Proj  Sur Alloctns'!$F$109:$S$109,$E$1:$R$1))","v":0},{"$f":"('[2]21-23 Cap Proj  Sur Alloctns'!R102*Q$1)/(SUMPRODUCT('[2]21-23 Cap Proj  Sur Alloctns'!$F$109:$S$109,$E$1:$R$1))","v":0},{"$f":"('[2]21-23 Cap Proj  Sur Alloctns'!S102*R$1)/(SUMPRODUCT('[2]21-23 Cap Proj  Sur Alloctns'!$F$109:$S$109,$E$1:$R$1))","v":0},0,0,0,0,0,0,0,0,0,0,0,0,0,0,0,0,0,0,0,0]
[null,"477","Department of Fish and Wildlife",7.9631257550966283E-2,{"$f":"('[2]21-23 Cap Proj  Sur Alloctns'!F103*E$1)/(SUMPRODUCT('[2]21-23 Cap Proj  Sur Alloctns'!$F$109:$S$109,$E$1:$R$1))","v":0},{"$f":"('[2]21-23 Cap Proj  Sur Alloctns'!G103*F$1)/(SUMPRODUCT('[2]21-23 Cap Proj  Sur Alloctns'!$F$109:$S$109,$E$1:$R$1))","v":0},{"$f":"('[2]21-23 Cap Proj  Sur Alloctns'!H103*G$1)/(SUMPRODUCT('[2]21-23 Cap Proj  Sur Alloctns'!$F$109:$S$109,$E$1:$R$1))","v":0},{"$f":"('[2]21-23 Cap Proj  Sur Alloctns'!I103*H$1)/(SUMPRODUCT('[2]21-23 Cap Proj  Sur Alloctns'!$F$109:$S$109,$E$1:$R$1))","v":0},{"$f":"('[2]21-23 Cap Proj  Sur Alloctns'!J103*I$1)/(SUMPRODUCT('[2]21-23 Cap Proj  Sur Alloctns'!$F$109:$S$109,$E$1:$R$1))","v":0},{"$f":"('[2]21-23 Cap Proj  Sur Alloctns'!K103*J$1)/(SUMPRODUCT('[2]21-23 Cap Proj  Sur Alloctns'!$F$109:$S$109,$E$1:$R$1))","v":0},{"$f":"('[2]21-23 Cap Proj  Sur Alloctns'!L103*K$1)/(SUMPRODUCT('[2]21-23 Cap Proj  Sur Alloctns'!$F$109:$S$109,$E$1:$R$1))","v":0},{"$f":"('[2]21-23 Cap Proj  Sur Alloctns'!M103*L$1)/(SUMPRODUCT('[2]21-23 Cap Proj  Sur Alloctns'!$F$109:$S$109,$E$1:$R$1))","v":7.9631257550966283E-2},{"$f":"('[2]21-23 Cap Proj  Sur Alloctns'!N103*M$1)/(SUMPRODUCT('[2]21-23 Cap Proj  Sur Alloctns'!$F$109:$S$109,$E$1:$R$1))","v":0},{"$f":"('[2]21-23 Cap Proj  Sur Alloctns'!O103*N$1)/(SUMPRODUCT('[2]21-23 Cap Proj  Sur Alloctns'!$F$109:$S$109,$E$1:$R$1))","v":0},{"$f":"('[2]21-23 Cap Proj  Sur Alloctns'!P103*O$1)/(SUMPRODUCT('[2]21-23 Cap Proj  Sur Alloctns'!$F$109:$S$109,$E$1:$R$1))","v":0},{"$f":"('[2]21-23 Cap Proj  Sur Alloctns'!Q103*P$1)/(SUMPRODUCT('[2]21-23 Cap Proj  Sur Alloctns'!$F$109:$S$109,$E$1:$R$1))","v":0},{"$f":"('[2]21-23 Cap Proj  Sur Alloctns'!R103*Q$1)/(SUMPRODUCT('[2]21-23 Cap Proj  Sur Alloctns'!$F$109:$S$109,$E$1:$R$1))","v":0},{"$f":"('[2]21-23 Cap Proj  Sur Alloctns'!S103*R$1)/(SUMPRODUCT('[2]21-23 Cap Proj  Sur Alloctns'!$F$109:$S$109,$E$1:$R$1))","v":0},0,0,0,0,0,0,0,0,0,0,0,0,0,0,0,0,0,0,0,0]
[null,"478","Puget Sound Partnership",0,{"$f":"('[2]21-23 Cap Proj  Sur Alloctns'!F104*E$1)/(SUMPRODUCT('[2]21-23 Cap Proj  Sur Alloctns'!$F$109:$S$109,$E$1:$R$1))","v":0},{"$f":"('[2]21-23 Cap Proj  Sur Alloctns'!G104*F$1)/(SUMPRODUCT('[2]21-23 Cap Proj  Sur Alloctns'!$F$109:$S$109,$E$1:$R$1))","v":0},{"$f":"('[2]21-23 Cap Proj  Sur Alloctns'!H104*G$1)/(SUMPRODUCT('[2]21-23 Cap Proj  Sur Alloctns'!$F$109:$S$109,$E$1:$R$1))","v":0},{"$f":"('[2]21-23 Cap Proj  Sur Alloctns'!I104*H$1)/(SUMPRODUCT('[2]21-23 Cap Proj  Sur Alloctns'!$F$109:$S$109,$E$1:$R$1))","v":0},{"$f":"('[2]21-23 Cap Proj  Sur Alloctns'!J104*I$1)/(SUMPRODUCT('[2]21-23 Cap Proj  Sur Alloctns'!$F$109:$S$109,$E$1:$R$1))","v":0},{"$f":"('[2]21-23 Cap Proj  Sur Alloctns'!K104*J$1)/(SUMPRODUCT('[2]21-23 Cap Proj  Sur Alloctns'!$F$109:$S$109,$E$1:$R$1))","v":0},{"$f":"('[2]21-23 Cap Proj  Sur Alloctns'!L104*K$1)/(SUMPRODUCT('[2]21-23 Cap Proj  Sur Alloctns'!$F$109:$S$109,$E$1:$R$1))","v":0},{"$f":"('[2]21-23 Cap Proj  Sur Alloctns'!M104*L$1)/(SUMPRODUCT('[2]21-23 Cap Proj  Sur Alloctns'!$F$109:$S$109,$E$1:$R$1))","v":0},{"$f":"('[2]21-23 Cap Proj  Sur Alloctns'!N104*M$1)/(SUMPRODUCT('[2]21-23 Cap Proj  Sur Alloctns'!$F$109:$S$109,$E$1:$R$1))","v":0},{"$f":"('[2]21-23 Cap Proj  Sur Alloctns'!O104*N$1)/(SUMPRODUCT('[2]21-23 Cap Proj  Sur Alloctns'!$F$109:$S$109,$E$1:$R$1))","v":0},{"$f":"('[2]21-23 Cap Proj  Sur Alloctns'!P104*O$1)/(SUMPRODUCT('[2]21-23 Cap Proj  Sur Alloctns'!$F$109:$S$109,$E$1:$R$1))","v":0},{"$f":"('[2]21-23 Cap Proj  Sur Alloctns'!Q104*P$1)/(SUMPRODUCT('[2]21-23 Cap Proj  Sur Alloctns'!$F$109:$S$109,$E$1:$R$1))","v":0},{"$f":"('[2]21-23 Cap Proj  Sur Alloctns'!R104*Q$1)/(SUMPRODUCT('[2]21-23 Cap Proj  Sur Alloctns'!$F$109:$S$109,$E$1:$R$1))","v":0},{"$f":"('[2]21-23 Cap Proj  Sur Alloctns'!S104*R$1)/(SUMPRODUCT('[2]21-23 Cap Proj  Sur Alloctns'!$F$109:$S$109,$E$1:$R$1))","v":0},0,0,0,0,0,0,0,0,0,0,0,0,0,0,0,0,0,0,0,0]
[null,"490","Department of Natural Resources",8.6238932262031415E-2,{"$f":"('[2]21-23 Cap Proj  Sur Alloctns'!F105*E$1)/(SUMPRODUCT('[2]21-23 Cap Proj  Sur Alloctns'!$F$109:$S$109,$E$1:$R$1))","v":0},{"$f":"('[2]21-23 Cap Proj  Sur Alloctns'!G105*F$1)/(SUMPRODUCT('[2]21-23 Cap Proj  Sur Alloctns'!$F$109:$S$109,$E$1:$R$1))","v":0},{"$f":"('[2]21-23 Cap Proj  Sur Alloctns'!H105*G$1)/(SUMPRODUCT('[2]21-23 Cap Proj  Sur Alloctns'!$F$109:$S$109,$E$1:$R$1))","v":0},{"$f":"('[2]21-23 Cap Proj  Sur Alloctns'!I105*H$1)/(SUMPRODUCT('[2]21-23 Cap Proj  Sur Alloctns'!$F$109:$S$109,$E$1:$R$1))","v":0},{"$f":"('[2]21-23 Cap Proj  Sur Alloctns'!J105*I$1)/(SUMPRODUCT('[2]21-23 Cap Proj  Sur Alloctns'!$F$109:$S$109,$E$1:$R$1))","v":0},{"$f":"('[2]21-23 Cap Proj  Sur Alloctns'!K105*J$1)/(SUMPRODUCT('[2]21-23 Cap Proj  Sur Alloctns'!$F$109:$S$109,$E$1:$R$1))","v":0},{"$f":"('[2]21-23 Cap Proj  Sur Alloctns'!L105*K$1)/(SUMPRODUCT('[2]21-23 Cap Proj  Sur Alloctns'!$F$109:$S$109,$E$1:$R$1))","v":0},{"$f":"('[2]21-23 Cap Proj  Sur Alloctns'!M105*L$1)/(SUMPRODUCT('[2]21-23 Cap Proj  Sur Alloctns'!$F$109:$S$109,$E$1:$R$1))","v":8.6238932262031415E-2},{"$f":"('[2]21-23 Cap Proj  Sur Alloctns'!N105*M$1)/(SUMPRODUCT('[2]21-23 Cap Proj  Sur Alloctns'!$F$109:$S$109,$E$1:$R$1))","v":0},{"$f":"('[2]21-23 Cap Proj  Sur Alloctns'!O105*N$1)/(SUMPRODUCT('[2]21-23 Cap Proj  Sur Alloctns'!$F$109:$S$109,$E$1:$R$1))","v":0},{"$f":"('[2]21-23 Cap Proj  Sur Alloctns'!P105*O$1)/(SUMPRODUCT('[2]21-23 Cap Proj  Sur Alloctns'!$F$109:$S$109,$E$1:$R$1))","v":0},{"$f":"('[2]21-23 Cap Proj  Sur Alloctns'!Q105*P$1)/(SUMPRODUCT('[2]21-23 Cap Proj  Sur Alloctns'!$F$109:$S$109,$E$1:$R$1))","v":0},{"$f":"('[2]21-23 Cap Proj  Sur Alloctns'!R105*Q$1)/(SUMPRODUCT('[2]21-23 Cap Proj  Sur Alloctns'!$F$109:$S$109,$E$1:$R$1))","v":0},{"$f":"('[2]21-23 Cap Proj  Sur Alloctns'!S105*R$1)/(SUMPRODUCT('[2]21-23 Cap Proj  Sur Alloctns'!$F$109:$S$109,$E$1:$R$1))","v":0},0,0,0,0,0,0,0,0,0,0,0,0,0,0,0,0,0,0,0,0]
[null,"495","Department of Agriculture",2.7239117820603561E-2,{"$f":"('[2]21-23 Cap Proj  Sur Alloctns'!F106*E$1)/(SUMPRODUCT('[2]21-23 Cap Proj  Sur Alloctns'!$F$109:$S$109,$E$1:$R$1))","v":0},{"$f":"('[2]21-23 Cap Proj  Sur Alloctns'!G106*F$1)/(SUMPRODUCT('[2]21-23 Cap Proj  Sur Alloctns'!$F$109:$S$109,$E$1:$R$1))","v":0},{"$f":"('[2]21-23 Cap Proj  Sur Alloctns'!H106*G$1)/(SUMPRODUCT('[2]21-23 Cap Proj  Sur Alloctns'!$F$109:$S$109,$E$1:$R$1))","v":0},{"$f":"('[2]21-23 Cap Proj  Sur Alloctns'!I106*H$1)/(SUMPRODUCT('[2]21-23 Cap Proj  Sur Alloctns'!$F$109:$S$109,$E$1:$R$1))","v":0},{"$f":"('[2]21-23 Cap Proj  Sur Alloctns'!J106*I$1)/(SUMPRODUCT('[2]21-23 Cap Proj  Sur Alloctns'!$F$109:$S$109,$E$1:$R$1))","v":0},{"$f":"('[2]21-23 Cap Proj  Sur Alloctns'!K106*J$1)/(SUMPRODUCT('[2]21-23 Cap Proj  Sur Alloctns'!$F$109:$S$109,$E$1:$R$1))","v":0},{"$f":"('[2]21-23 Cap Proj  Sur Alloctns'!L106*K$1)/(SUMPRODUCT('[2]21-23 Cap Proj  Sur Alloctns'!$F$109:$S$109,$E$1:$R$1))","v":0},{"$f":"('[2]21-23 Cap Proj  Sur Alloctns'!M106*L$1)/(SUMPRODUCT('[2]21-23 Cap Proj  Sur Alloctns'!$F$109:$S$109,$E$1:$R$1))","v":2.7239117820603561E-2},{"$f":"('[2]21-23 Cap Proj  Sur Alloctns'!N106*M$1)/(SUMPRODUCT('[2]21-23 Cap Proj  Sur Alloctns'!$F$109:$S$109,$E$1:$R$1))","v":0},{"$f":"('[2]21-23 Cap Proj  Sur Alloctns'!O106*N$1)/(SUMPRODUCT('[2]21-23 Cap Proj  Sur Alloctns'!$F$109:$S$109,$E$1:$R$1))","v":0},{"$f":"('[2]21-23 Cap Proj  Sur Alloctns'!P106*O$1)/(SUMPRODUCT('[2]21-23 Cap Proj  Sur Alloctns'!$F$109:$S$109,$E$1:$R$1))","v":0},{"$f":"('[2]21-23 Cap Proj  Sur Alloctns'!Q106*P$1)/(SUMPRODUCT('[2]21-23 Cap Proj  Sur Alloctns'!$F$109:$S$109,$E$1:$R$1))","v":0},{"$f":"('[2]21-23 Cap Proj  Sur Alloctns'!R106*Q$1)/(SUMPRODUCT('[2]21-23 Cap Proj  Sur Alloctns'!$F$109:$S$109,$E$1:$R$1))","v":0},{"$f":"('[2]21-23 Cap Proj  Sur Alloctns'!S106*R$1)/(SUMPRODUCT('[2]21-23 Cap Proj  Sur Alloctns'!$F$109:$S$109,$E$1:$R$1))","v":0},0,0,0,0,0,0,0,0,0,0,0,0,0,0,0,0,0,0,0,0]
[null,"540","Employment Security Department",6.2878126365458628E-2,{"$f":"('[2]21-23 Cap Proj  Sur Alloctns'!F107*E$1)/(SUMPRODUCT('[2]21-23 Cap Proj  Sur Alloctns'!$F$109:$S$109,$E$1:$R$1))","v":0},{"$f":"('[2]21-23 Cap Proj  Sur Alloctns'!G107*F$1)/(SUMPRODUCT('[2]21-23 Cap Proj  Sur Alloctns'!$F$109:$S$109,$E$1:$R$1))","v":0},{"$f":"('[2]21-23 Cap Proj  Sur Alloctns'!H107*G$1)/(SUMPRODUCT('[2]21-23 Cap Proj  Sur Alloctns'!$F$109:$S$109,$E$1:$R$1))","v":0},{"$f":"('[2]21-23 Cap Proj  Sur Alloctns'!I107*H$1)/(SUMPRODUCT('[2]21-23 Cap Proj  Sur Alloctns'!$F$109:$S$109,$E$1:$R$1))","v":0},{"$f":"('[2]21-23 Cap Proj  Sur Alloctns'!J107*I$1)/(SUMPRODUCT('[2]21-23 Cap Proj  Sur Alloctns'!$F$109:$S$109,$E$1:$R$1))","v":0},{"$f":"('[2]21-23 Cap Proj  Sur Alloctns'!K107*J$1)/(SUMPRODUCT('[2]21-23 Cap Proj  Sur Alloctns'!$F$109:$S$109,$E$1:$R$1))","v":0},{"$f":"('[2]21-23 Cap Proj  Sur Alloctns'!L107*K$1)/(SUMPRODUCT('[2]21-23 Cap Proj  Sur Alloctns'!$F$109:$S$109,$E$1:$R$1))","v":0},{"$f":"('[2]21-23 Cap Proj  Sur Alloctns'!M107*L$1)/(SUMPRODUCT('[2]21-23 Cap Proj  Sur Alloctns'!$F$109:$S$109,$E$1:$R$1))","v":0},{"$f":"('[2]21-23 Cap Proj  Sur Alloctns'!N107*M$1)/(SUMPRODUCT('[2]21-23 Cap Proj  Sur Alloctns'!$F$109:$S$109,$E$1:$R$1))","v":6.2878126365458628E-2},{"$f":"('[2]21-23 Cap Proj  Sur Alloctns'!O107*N$1)/(SUMPRODUCT('[2]21-23 Cap Proj  Sur Alloctns'!$F$109:$S$109,$E$1:$R$1))","v":0},{"$f":"('[2]21-23 Cap Proj  Sur Alloctns'!P107*O$1)/(SUMPRODUCT('[2]21-23 Cap Proj  Sur Alloctns'!$F$109:$S$109,$E$1:$R$1))","v":0},{"$f":"('[2]21-23 Cap Proj  Sur Alloctns'!Q107*P$1)/(SUMPRODUCT('[2]21-23 Cap Proj  Sur Alloctns'!$F$109:$S$109,$E$1:$R$1))","v":0},{"$f":"('[2]21-23 Cap Proj  Sur Alloctns'!R107*Q$1)/(SUMPRODUCT('[2]21-23 Cap Proj  Sur Alloctns'!$F$109:$S$109,$E$1:$R$1))","v":0},{"$f":"('[2]21-23 Cap Proj  Sur Alloctns'!S107*R$1)/(SUMPRODUCT('[2]21-23 Cap Proj  Sur Alloctns'!$F$109:$S$109,$E$1:$R$1))","v":0},0,0,0,0,0,0,0,0,0,0,0,0,0,0,0,0,0,0,0,0]
[null,"699","Community Colleges",0,{"$f":"('[2]21-23 Cap Proj  Sur Alloctns'!F108*E$1)/(SUMPRODUCT('[2]21-23 Cap Proj  Sur Alloctns'!$F$109:$S$109,$E$1:$R$1))","v":0},{"$f":"('[2]21-23 Cap Proj  Sur Alloctns'!G108*F$1)/(SUMPRODUCT('[2]21-23 Cap Proj  Sur Alloctns'!$F$109:$S$109,$E$1:$R$1))","v":0},{"$f":"('[2]21-23 Cap Proj  Sur Alloctns'!H108*G$1)/(SUMPRODUCT('[2]21-23 Cap Proj  Sur Alloctns'!$F$109:$S$109,$E$1:$R$1))","v":0},{"$f":"('[2]21-23 Cap Proj  Sur Alloctns'!I108*H$1)/(SUMPRODUCT('[2]21-23 Cap Proj  Sur Alloctns'!$F$109:$S$109,$E$1:$R$1))","v":0},{"$f":"('[2]21-23 Cap Proj  Sur Alloctns'!J108*I$1)/(SUMPRODUCT('[2]21-23 Cap Proj  Sur Alloctns'!$F$109:$S$109,$E$1:$R$1))","v":0},{"$f":"('[2]21-23 Cap Proj  Sur Alloctns'!K108*J$1)/(SUMPRODUCT('[2]21-23 Cap Proj  Sur Alloctns'!$F$109:$S$109,$E$1:$R$1))","v":0},{"$f":"('[2]21-23 Cap Proj  Sur Alloctns'!L108*K$1)/(SUMPRODUCT('[2]21-23 Cap Proj  Sur Alloctns'!$F$109:$S$109,$E$1:$R$1))","v":0},{"$f":"('[2]21-23 Cap Proj  Sur Alloctns'!M108*L$1)/(SUMPRODUCT('[2]21-23 Cap Proj  Sur Alloctns'!$F$109:$S$109,$E$1:$R$1))","v":0},{"$f":"('[2]21-23 Cap Proj  Sur Alloctns'!N108*M$1)/(SUMPRODUCT('[2]21-23 Cap Proj  Sur Alloctns'!$F$109:$S$109,$E$1:$R$1))","v":0},{"$f":"('[2]21-23 Cap Proj  Sur Alloctns'!O108*N$1)/(SUMPRODUCT('[2]21-23 Cap Proj  Sur Alloctns'!$F$109:$S$109,$E$1:$R$1))","v":0},{"$f":"('[2]21-23 Cap Proj  Sur Alloctns'!P108*O$1)/(SUMPRODUCT('[2]21-23 Cap Proj  Sur Alloctns'!$F$109:$S$109,$E$1:$R$1))","v":0},{"$f":"('[2]21-23 Cap Proj  Sur Alloctns'!Q108*P$1)/(SUMPRODUCT('[2]21-23 Cap Proj  Sur Alloctns'!$F$109:$S$109,$E$1:$R$1))","v":0},{"$f":"('[2]21-23 Cap Proj  Sur Alloctns'!R108*Q$1)/(SUMPRODUCT('[2]21-23 Cap Proj  Sur Alloctns'!$F$109:$S$109,$E$1:$R$1))","v":0},{"$f":"('[2]21-23 Cap Proj  Sur Alloctns'!S108*R$1)/(SUMPRODUCT('[2]21-23 Cap Proj  Sur Alloctns'!$F$109:$S$109,$E$1:$R$1))","v":0},0,0,0,0,0,0,0,0,0,0,0,0,0,0,0,0,0,0,0,0]
[null,null,"Building Total",{"$f":"SUM(D5:D108)","v":0.99999999999999989},4.6600886780244807E-2,4.7392633320047103E-2,8.5779978882738916E-2,1.4405807186501836E-2,0.10713482424493127,0.15104148136802706,2.8883975062094516E-2,0.21388372481471141,5.5849788857539287E-2,0.11121054005797297,3.3230440453484437E-2,5.8973961609036403E-2,3.2326534845591337E-2,1.328542251707863E-2,0,0,0,0,0,0,0,0,0,0,0,0,0,0,0,0,0,0,0,0]
[null,null,null,0]

{"sheet":"CPS Dollars FY22","index":21,"n_rows":110,"n_cols":38,"rows_kept":110,"cut":false,"hidden":true,"merged":[[2,3,3,3]]}
[null,null,null,"CPS Weighting:",1,1,2.39,2.39,2,2.39,2.39,2,2.39,2.39,2.39,2.39,2.39,2.39]
[null,null,null,null,"Olympia","Olympia","Olympia","Olympia","Olympia","Olympia","Olympia","Olympia","Olympia","Olympia","Olympia","Olympia","Olympia","Olympia","Tumwater","Tumwater",null,null,"Vacant",null,null,"Vacant",null,null,null,null,null,null,"OTC","OTC","OTC","OTC","OTC","OTC"]
[null,"CSM Amount",4213000,"Total","F6121","F6122","F6123","F6124","F6125","F6126","F6127","F6129","F612A","F612C","F612E","F612H","F612J","F612K","F6131","F6132","F6133","F6134","F6137","F613D","F613E","F613F","F613G","F613H","F613i","F613K","F613L","F613M","F6141","F6142","F6143","F6144","F614G","F6146"]
[null,"Agency #","Agency",null,"Cherberg","O'Brien","Legislative","Pritchard","HLB","OB2","Archives","NRB","Emp Sec","Transportation","Insurance","Old Cap","TOJ","Newhouse","Modular Bldg","Isabella Bush","1007 Washington","120 E Union Avenue","Conservatory","Capital Court","James Dolliver Building","Undeveloped Properties","1068 WA Street SE (ST Farm)","232 Perry Street","208 11th Avenue SE (Pro Arts)","Press Houses Ayer(White); Carlyon(Blue)","Visitor Center","Helen Sommers","Kelso Building","Yakima Building","Alaska Street","Tacoma Rhodes","Tacoma Rhodes Garage","North Cascades Gateway Center (NCGC)"]
[{"$f":"CONCATENATE(B5,\" - \",C5)","v":"011 - House of Representatives"},"011","House of Representatives",{"$f":"SUM(E5:AL5)","v":223632.00100100788},{"$f":"$C$3*'CPS Allocations'!E5","v":0},{"$f":"$C$3*'CPS Allocations'!F5","v":94055.122897224748},{"$f":"$C$3*'CPS Allocations'!G5","v":129576.87810378314},{"$f":"$C$3*'CPS Allocations'!H5","v":0},{"$f":"$C$3*'CPS Allocations'!I5","v":0},{"$f":"$C$3*'CPS Allocations'!J5","v":0},{"$f":"$C$3*'CPS Allocations'!K5","v":0},{"$f":"$C$3*'CPS Allocations'!L5","v":0},{"$f":"$C$3*'CPS Allocations'!M5","v":0},{"$f":"$C$3*'CPS Allocations'!N5","v":0},{"$f":"$C$3*'CPS Allocations'!O5","v":0},{"$f":"$C$3*'CPS Allocations'!P5","v":0},{"$f":"$C$3*'CPS Allocations'!Q5","v":0},{"$f":"$C$3*'CPS Allocations'!R5","v":0},0,0,0,0,0,0,0,0,0,0,0,0,0,0,0,0,0,0,0,0]
[{"$f":"CONCATENATE(B6,\" - \",C6)","v":"012 - Senate"},"012","Senate",{"$f":"SUM(E6:AL6)","v":256474.20122147672},{"$f":"$C$3*'CPS Allocations'!E6","v":92483.827679217575},{"$f":"$C$3*'CPS Allocations'!F6","v":0},{"$f":"$C$3*'CPS Allocations'!G6","v":100975.23628324119},{"$f":"$C$3*'CPS Allocations'!H6","v":0},{"$f":"$C$3*'CPS Allocations'!I6","v":0},{"$f":"$C$3*'CPS Allocations'!J6","v":0},{"$f":"$C$3*'CPS Allocations'!K6","v":0},{"$f":"$C$3*'CPS Allocations'!L6","v":0},{"$f":"$C$3*'CPS Allocations'!M6","v":0},{"$f":"$C$3*'CPS Allocations'!N6","v":0},{"$f":"$C$3*'CPS Allocations'!O6","v":0},{"$f":"$C$3*'CPS Allocations'!P6","v":0},{"$f":"$C$3*'CPS Allocations'!Q6","v":0},{"$f":"$C$3*'CPS Allocations'!R6","v":63015.13725901796},0,0,0,0,0,0,0,0,0,0,0,0,0,0,0,0,0,0,0,0]
["013 - Joint Transportation Committee","013","Joint Transportation Committee",0,{"$f":"$C$3*'CPS Allocations'!E7","v":0},{"$f":"$C$3*'CPS Allocations'!F7","v":0},{"$f":"$C$3*'CPS Allocations'!G7","v":0},{"$f":"$C$3*'CPS Allocations'!H7","v":0},{"$f":"$C$3*'CPS Allocations'!I7","v":0},{"$f":"$C$3*'CPS Allocations'!J7","v":0},{"$f":"$C$3*'CPS Allocations'!K7","v":0},{"$f":"$C$3*'CPS Allocations'!L7","v":0},{"$f":"$C$3*'CPS Allocations'!M7","v":0},{"$f":"$C$3*'CPS Allocations'!N7","v":0},{"$f":"$C$3*'CPS Allocations'!O7","v":0},{"$f":"$C$3*'CPS Allocations'!P7","v":0},{"$f":"$C$3*'CPS Allocations'!Q7","v":0},{"$f":"$C$3*'CPS Allocations'!R7","v":0},0,0,0,0,0,0,0,0,0,0,0,0,0,0,0,0,0,0,0,0]
["014 - Joint Legislative Audit and Review Committee","014","Joint Legislative Audit and Review Committee",0,{"$f":"$C$3*'CPS Allocations'!E8","v":0},{"$f":"$C$3*'CPS Allocations'!F8","v":0},{"$f":"$C$3*'CPS Allocations'!G8","v":0},{"$f":"$C$3*'CPS Allocations'!H8","v":0},{"$f":"$C$3*'CPS Allocations'!I8","v":0},{"$f":"$C$3*'CPS Allocations'!J8","v":0},{"$f":"$C$3*'CPS Allocations'!K8","v":0},{"$f":"$C$3*'CPS Allocations'!L8","v":0},{"$f":"$C$3*'CPS Allocations'!M8","v":0},{"$f":"$C$3*'CPS Allocations'!N8","v":0},{"$f":"$C$3*'CPS Allocations'!O8","v":0},{"$f":"$C$3*'CPS Allocations'!P8","v":0},{"$f":"$C$3*'CPS Allocations'!Q8","v":0},{"$f":"$C$3*'CPS Allocations'!R8","v":0},0,0,0,0,0,0,0,0,0,0,0,0,0,0,0,0,0,0,0,0]
["020 - Legislative Evaluation and Accountability Program Committee","020","Legislative Evaluation and Accountability Program Committee",0,{"$f":"$C$3*'CPS Allocations'!E9","v":0},{"$f":"$C$3*'CPS Allocations'!F9","v":0},{"$f":"$C$3*'CPS Allocations'!G9","v":0},{"$f":"$C$3*'CPS Allocations'!H9","v":0},{"$f":"$C$3*'CPS Allocations'!I9","v":0},{"$f":"$C$3*'CPS Allocations'!J9","v":0},{"$f":"$C$3*'CPS Allocations'!K9","v":0},{"$f":"$C$3*'CPS Allocations'!L9","v":0},{"$f":"$C$3*'CPS Allocations'!M9","v":0},{"$f":"$C$3*'CPS Allocations'!N9","v":0},{"$f":"$C$3*'CPS Allocations'!O9","v":0},{"$f":"$C$3*'CPS Allocations'!P9","v":0},{"$f":"$C$3*'CPS Allocations'!Q9","v":0},{"$f":"$C$3*'CPS Allocations'!R9","v":0},0,0,0,0,0,0,0,0,0,0,0,0,0,0,0,0,0,0,0,0]
["035 - Office of the State Actuary","035","Office of the State Actuary",0,{"$f":"$C$3*'CPS Allocations'!E10","v":0},{"$f":"$C$3*'CPS Allocations'!F10","v":0},{"$f":"$C$3*'CPS Allocations'!G10","v":0},{"$f":"$C$3*'CPS Allocations'!H10","v":0},{"$f":"$C$3*'CPS Allocations'!I10","v":0},{"$f":"$C$3*'CPS Allocations'!J10","v":0},{"$f":"$C$3*'CPS Allocations'!K10","v":0},{"$f":"$C$3*'CPS Allocations'!L10","v":0},{"$f":"$C$3*'CPS Allocations'!M10","v":0},{"$f":"$C$3*'CPS Allocations'!N10","v":0},{"$f":"$C$3*'CPS Allocations'!O10","v":0},{"$f":"$C$3*'CPS Allocations'!P10","v":0},{"$f":"$C$3*'CPS Allocations'!Q10","v":0},{"$f":"$C$3*'CPS Allocations'!R10","v":0},0,0,0,0,0,0,0,0,0,0,0,0,0,0,0,0,0,0,0,0]
["037 - Office of Legislative Support Services","037","Office of Legislative Support Services",25292.431861905221,{"$f":"$C$3*'CPS Allocations'!E11","v":0},{"$f":"$C$3*'CPS Allocations'!F11","v":0},{"$f":"$C$3*'CPS Allocations'!G11","v":14240.757462447822},{"$f":"$C$3*'CPS Allocations'!H11","v":11051.674399457399},{"$f":"$C$3*'CPS Allocations'!I11","v":0},{"$f":"$C$3*'CPS Allocations'!J11","v":0},{"$f":"$C$3*'CPS Allocations'!K11","v":0},{"$f":"$C$3*'CPS Allocations'!L11","v":0},{"$f":"$C$3*'CPS Allocations'!M11","v":0},{"$f":"$C$3*'CPS Allocations'!N11","v":0},{"$f":"$C$3*'CPS Allocations'!O11","v":0},{"$f":"$C$3*'CPS Allocations'!P11","v":0},{"$f":"$C$3*'CPS Allocations'!Q11","v":0},{"$f":"$C$3*'CPS Allocations'!R11","v":0},0,0,0,0,0,0,0,0,0,0,0,0,0,0,0,0,0,0,0,0]
["038 - Joint Legislative Systems Committee","038","Joint Legislative Systems Committee",25232.368414082081,{"$f":"$C$3*'CPS Allocations'!E12","v":0},{"$f":"$C$3*'CPS Allocations'!F12","v":0},{"$f":"$C$3*'CPS Allocations'!G12","v":3269.1676600879414},{"$f":"$C$3*'CPS Allocations'!H12","v":21963.200753994141},{"$f":"$C$3*'CPS Allocations'!I12","v":0},{"$f":"$C$3*'CPS Allocations'!J12","v":0},{"$f":"$C$3*'CPS Allocations'!K12","v":0},{"$f":"$C$3*'CPS Allocations'!L12","v":0},{"$f":"$C$3*'CPS Allocations'!M12","v":0},{"$f":"$C$3*'CPS Allocations'!N12","v":0},{"$f":"$C$3*'CPS Allocations'!O12","v":0},{"$f":"$C$3*'CPS Allocations'!P12","v":0},{"$f":"$C$3*'CPS Allocations'!Q12","v":0},{"$f":"$C$3*'CPS Allocations'!R12","v":0},0,0,0,0,0,0,0,0,0,0,0,0,0,0,0,0,0,0,0,0]
["040 - Statute Law Committee (Code Revisor)","040","Statute Law Committee (Code Revisor)",35314.447155823109,{"$f":"$C$3*'CPS Allocations'!E13","v":0},{"$f":"$C$3*'CPS Allocations'!F13","v":0},{"$f":"$C$3*'CPS Allocations'!G13","v":0},{"$f":"$C$3*'CPS Allocations'!H13","v":35314.447155823109},{"$f":"$C$3*'CPS Allocations'!I13","v":0},{"$f":"$C$3*'CPS Allocations'!J13","v":0},{"$f":"$C$3*'CPS Allocations'!K13","v":0},{"$f":"$C$3*'CPS Allocations'!L13","v":0},{"$f":"$C$3*'CPS Allocations'!M13","v":0},{"$f":"$C$3*'CPS Allocations'!N13","v":0},{"$f":"$C$3*'CPS Allocations'!O13","v":0},{"$f":"$C$3*'CPS Allocations'!P13","v":0},{"$f":"$C$3*'CPS Allocations'!Q13","v":0},{"$f":"$C$3*'CPS Allocations'!R13","v":0},0,0,0,0,0,0,0,0,0,0,0,0,0,0,0,0,0,0,0,0]
["045 - Supreme Court","045","Supreme Court",97073.97233891928,{"$f":"$C$3*'CPS Allocations'!E14","v":0},{"$f":"$C$3*'CPS Allocations'!F14","v":0},{"$f":"$C$3*'CPS Allocations'!G14","v":0},{"$f":"$C$3*'CPS Allocations'!H14","v":0},{"$f":"$C$3*'CPS Allocations'!I14","v":0},{"$f":"$C$3*'CPS Allocations'!J14","v":0},{"$f":"$C$3*'CPS Allocations'!K14","v":0},{"$f":"$C$3*'CPS Allocations'!L14","v":0},{"$f":"$C$3*'CPS Allocations'!M14","v":0},{"$f":"$C$3*'CPS Allocations'!N14","v":0},{"$f":"$C$3*'CPS Allocations'!O14","v":0},{"$f":"$C$3*'CPS Allocations'!P14","v":0},{"$f":"$C$3*'CPS Allocations'!Q14","v":97073.97233891928},{"$f":"$C$3*'CPS Allocations'!R14","v":0},0,0,0,0,0,0,0,0,0,0,0,0,0,0,0,0,0,0,0,0]
["046 - Law Library","046","Law Library",44098.011358911535,{"$f":"$C$3*'CPS Allocations'!E15","v":0},{"$f":"$C$3*'CPS Allocations'!F15","v":0},{"$f":"$C$3*'CPS Allocations'!G15","v":0},{"$f":"$C$3*'CPS Allocations'!H15","v":0},{"$f":"$C$3*'CPS Allocations'!I15","v":0},{"$f":"$C$3*'CPS Allocations'!J15","v":0},{"$f":"$C$3*'CPS Allocations'!K15","v":0},{"$f":"$C$3*'CPS Allocations'!L15","v":0},{"$f":"$C$3*'CPS Allocations'!M15","v":0},{"$f":"$C$3*'CPS Allocations'!N15","v":0},{"$f":"$C$3*'CPS Allocations'!O15","v":0},{"$f":"$C$3*'CPS Allocations'!P15","v":0},{"$f":"$C$3*'CPS Allocations'!Q15","v":44098.011358911535},{"$f":"$C$3*'CPS Allocations'!R15","v":0},0,0,0,0,0,0,0,0,0,0,0,0,0,0,0,0,0,0,0,0]
["048 - Court of Appeals","048","Court of Appeals",0,{"$f":"$C$3*'CPS Allocations'!E16","v":0},{"$f":"$C$3*'CPS Allocations'!F16","v":0},{"$f":"$C$3*'CPS Allocations'!G16","v":0},{"$f":"$C$3*'CPS Allocations'!H16","v":0},{"$f":"$C$3*'CPS Allocations'!I16","v":0},{"$f":"$C$3*'CPS Allocations'!J16","v":0},{"$f":"$C$3*'CPS Allocations'!K16","v":0},{"$f":"$C$3*'CPS Allocations'!L16","v":0},{"$f":"$C$3*'CPS Allocations'!M16","v":0},{"$f":"$C$3*'CPS Allocations'!N16","v":0},{"$f":"$C$3*'CPS Allocations'!O16","v":0},{"$f":"$C$3*'CPS Allocations'!P16","v":0},{"$f":"$C$3*'CPS Allocations'!Q16","v":0},{"$f":"$C$3*'CPS Allocations'!R16","v":0},0,0,0,0,0,0,0,0,0,0,0,0,0,0,0,0,0,0,0,0]
["050 - Commission on Judicial Conduct","050","Commission on Judicial Conduct",0,{"$f":"$C$3*'CPS Allocations'!E17","v":0},{"$f":"$C$3*'CPS Allocations'!F17","v":0},{"$f":"$C$3*'CPS Allocations'!G17","v":0},{"$f":"$C$3*'CPS Allocations'!H17","v":0},{"$f":"$C$3*'CPS Allocations'!I17","v":0},{"$f":"$C$3*'CPS Allocations'!J17","v":0},{"$f":"$C$3*'CPS Allocations'!K17","v":0},{"$f":"$C$3*'CPS Allocations'!L17","v":0},{"$f":"$C$3*'CPS Allocations'!M17","v":0},{"$f":"$C$3*'CPS Allocations'!N17","v":0},{"$f":"$C$3*'CPS Allocations'!O17","v":0},{"$f":"$C$3*'CPS Allocations'!P17","v":0},{"$f":"$C$3*'CPS Allocations'!Q17","v":0},{"$f":"$C$3*'CPS Allocations'!R17","v":0},0,0,0,0,0,0,0,0,0,0,0,0,0,0,0,0,0,0,0,0]
["055 - Administrative Office of the Courts","055","Administrative Office of the Courts",12158.55793791237,{"$f":"$C$3*'CPS Allocations'!E18","v":0},{"$f":"$C$3*'CPS Allocations'!F18","v":0},{"$f":"$C$3*'CPS Allocations'!G18","v":0},{"$f":"$C$3*'CPS Allocations'!H18","v":0},{"$f":"$C$3*'CPS Allocations'!I18","v":0},{"$f":"$C$3*'CPS Allocations'!J18","v":0},{"$f":"$C$3*'CPS Allocations'!K18","v":0},{"$f":"$C$3*'CPS Allocations'!L18","v":0},{"$f":"$C$3*'CPS Allocations'!M18","v":0},{"$f":"$C$3*'CPS Allocations'!N18","v":0},{"$f":"$C$3*'CPS Allocations'!O18","v":0},{"$f":"$C$3*'CPS Allocations'!P18","v":0},{"$f":"$C$3*'CPS Allocations'!Q18","v":12158.55793791237},{"$f":"$C$3*'CPS Allocations'!R18","v":0},0,0,0,0,0,0,0,0,0,0,0,0,0,0,0,0,0,0,0,0]
["056 - Office of Public Defense","056","Office of Public Defense",0,{"$f":"$C$3*'CPS Allocations'!E19","v":0},{"$f":"$C$3*'CPS Allocations'!F19","v":0},{"$f":"$C$3*'CPS Allocations'!G19","v":0},{"$f":"$C$3*'CPS Allocations'!H19","v":0},{"$f":"$C$3*'CPS Allocations'!I19","v":0},{"$f":"$C$3*'CPS Allocations'!J19","v":0},{"$f":"$C$3*'CPS Allocations'!K19","v":0},{"$f":"$C$3*'CPS Allocations'!L19","v":0},{"$f":"$C$3*'CPS Allocations'!M19","v":0},{"$f":"$C$3*'CPS Allocations'!N19","v":0},{"$f":"$C$3*'CPS Allocations'!O19","v":0},{"$f":"$C$3*'CPS Allocations'!P19","v":0},{"$f":"$C$3*'CPS Allocations'!Q19","v":0},{"$f":"$C$3*'CPS Allocations'!R19","v":0},0,0,0,0,0,0,0,0,0,0,0,0,0,0,0,0,0,0,0,0]
["057 - Office of Civil Legal Aid","057","Office of Civil Legal Aid",0,{"$f":"$C$3*'CPS Allocations'!E20","v":0},{"$f":"$C$3*'CPS Allocations'!F20","v":0},{"$f":"$C$3*'CPS Allocations'!G20","v":0},{"$f":"$C$3*'CPS Allocations'!H20","v":0},{"$f":"$C$3*'CPS Allocations'!I20","v":0},{"$f":"$C$3*'CPS Allocations'!J20","v":0},{"$f":"$C$3*'CPS Allocations'!K20","v":0},{"$f":"$C$3*'CPS Allocations'!L20","v":0},{"$f":"$C$3*'CPS Allocations'!M20","v":0},{"$f":"$C$3*'CPS Allocations'!N20","v":0},{"$f":"$C$3*'CPS Allocations'!O20","v":0},{"$f":"$C$3*'CPS Allocations'!P20","v":0},{"$f":"$C$3*'CPS Allocations'!Q20","v":0},{"$f":"$C$3*'CPS Allocations'!R20","v":0},0,0,0,0,0,0,0,0,0,0,0,0,0,0,0,0,0,0,0,0]
["075 - Office of the Governor","075","Office of the Governor",49357.853289709194,{"$f":"$C$3*'CPS Allocations'!E21","v":0},{"$f":"$C$3*'CPS Allocations'!F21","v":0},{"$f":"$C$3*'CPS Allocations'!G21","v":49357.853289709194},{"$f":"$C$3*'CPS Allocations'!H21","v":0},{"$f":"$C$3*'CPS Allocations'!I21","v":0},{"$f":"$C$3*'CPS Allocations'!J21","v":0},{"$f":"$C$3*'CPS Allocations'!K21","v":0},{"$f":"$C$3*'CPS Allocations'!L21","v":0},{"$f":"$C$3*'CPS Allocations'!M21","v":0},{"$f":"$C$3*'CPS Allocations'!N21","v":0},{"$f":"$C$3*'CPS Allocations'!O21","v":0},{"$f":"$C$3*'CPS Allocations'!P21","v":0},{"$f":"$C$3*'CPS Allocations'!Q21","v":0},{"$f":"$C$3*'CPS Allocations'!R21","v":0},0,0,0,0,0,0,0,0,0,0,0,0,0,0,0,0,0,0,0,0]
["080 - Office of Lieutenant Governor","080","Office of Lieutenant Governor",25381.096951548898,{"$f":"$C$3*'CPS Allocations'!E22","v":0},{"$f":"$C$3*'CPS Allocations'!F22","v":0},{"$f":"$C$3*'CPS Allocations'!G22","v":25381.096951548898},{"$f":"$C$3*'CPS Allocations'!H22","v":0},{"$f":"$C$3*'CPS Allocations'!I22","v":0},{"$f":"$C$3*'CPS Allocations'!J22","v":0},{"$f":"$C$3*'CPS Allocations'!K22","v":0},{"$f":"$C$3*'CPS Allocations'!L22","v":0},{"$f":"$C$3*'CPS Allocations'!M22","v":0},{"$f":"$C$3*'CPS Allocations'!N22","v":0},{"$f":"$C$3*'CPS Allocations'!O22","v":0},{"$f":"$C$3*'CPS Allocations'!P22","v":0},{"$f":"$C$3*'CPS Allocations'!Q22","v":0},{"$f":"$C$3*'CPS Allocations'!R22","v":0},0,0,0,0,0,0,0,0,0,0,0,0,0,0,0,0,0,0,0,0]
["082 - Public Disclosure Commission","082","Public Disclosure Commission",0,{"$f":"$C$3*'CPS Allocations'!E23","v":0},{"$f":"$C$3*'CPS Allocations'!F23","v":0},{"$f":"$C$3*'CPS Allocations'!G23","v":0},{"$f":"$C$3*'CPS Allocations'!H23","v":0},{"$f":"$C$3*'CPS Allocations'!I23","v":0},{"$f":"$C$3*'CPS Allocations'!J23","v":0},{"$f":"$C$3*'CPS Allocations'!K23","v":0},{"$f":"$C$3*'CPS Allocations'!L23","v":0},{"$f":"$C$3*'CPS Allocations'!M23","v":0},{"$f":"$C$3*'CPS Allocations'!N23","v":0},{"$f":"$C$3*'CPS Allocations'!O23","v":0},{"$f":"$C$3*'CPS Allocations'!P23","v":0},{"$f":"$C$3*'CPS Allocations'!Q23","v":0},{"$f":"$C$3*'CPS Allocations'!R23","v":0},0,0,0,0,0,0,0,0,0,0,0,0,0,0,0,0,0,0,0,0]
["085 - Office of the Secretary of State","085","Office of the Secretary of State",167462.61285927295,{"$f":"$C$3*'CPS Allocations'!E24","v":0},{"$f":"$C$3*'CPS Allocations'!F24","v":0},{"$f":"$C$3*'CPS Allocations'!G24","v":30460.748538877146},{"$f":"$C$3*'CPS Allocations'!H24","v":0},{"$f":"$C$3*'CPS Allocations'!I24","v":0},{"$f":"$C$3*'CPS Allocations'!J24","v":0},{"$f":"$C$3*'CPS Allocations'!K24","v":137001.86432039581},{"$f":"$C$3*'CPS Allocations'!L24","v":0},{"$f":"$C$3*'CPS Allocations'!M24","v":0},{"$f":"$C$3*'CPS Allocations'!N24","v":0},{"$f":"$C$3*'CPS Allocations'!O24","v":0},{"$f":"$C$3*'CPS Allocations'!P24","v":0},{"$f":"$C$3*'CPS Allocations'!Q24","v":0},{"$f":"$C$3*'CPS Allocations'!R24","v":0},0,0,0,0,0,0,0,0,0,0,0,0,0,0,0,0,0,0,0,0]
["086 - Governor's Office of Indian Affairs","086","Governor's Office of Indian Affairs",0,{"$f":"$C$3*'CPS Allocations'!E25","v":0},{"$f":"$C$3*'CPS Allocations'!F25","v":0},{"$f":"$C$3*'CPS Allocations'!G25","v":0},{"$f":"$C$3*'CPS Allocations'!H25","v":0},{"$f":"$C$3*'CPS Allocations'!I25","v":0},{"$f":"$C$3*'CPS Allocations'!J25","v":0},{"$f":"$C$3*'CPS Allocations'!K25","v":0},{"$f":"$C$3*'CPS Allocations'!L25","v":0},{"$f":"$C$3*'CPS Allocations'!M25","v":0},{"$f":"$C$3*'CPS Allocations'!N25","v":0},{"$f":"$C$3*'CPS Allocations'!O25","v":0},{"$f":"$C$3*'CPS Allocations'!P25","v":0},{"$f":"$C$3*'CPS Allocations'!Q25","v":0},{"$f":"$C$3*'CPS Allocations'!R25","v":0},0,0,0,0,0,0,0,0,0,0,0,0,0,0,0,0,0,0,0,0]
["087 - Commission on Asian Pacific American Affairs","087","Commission on Asian Pacific American Affairs",0,{"$f":"$C$3*'CPS Allocations'!E26","v":0},{"$f":"$C$3*'CPS Allocations'!F26","v":0},{"$f":"$C$3*'CPS Allocations'!G26","v":0},{"$f":"$C$3*'CPS Allocations'!H26","v":0},{"$f":"$C$3*'CPS Allocations'!I26","v":0},{"$f":"$C$3*'CPS Allocations'!J26","v":0},{"$f":"$C$3*'CPS Allocations'!K26","v":0},{"$f":"$C$3*'CPS Allocations'!L26","v":0},{"$f":"$C$3*'CPS Allocations'!M26","v":0},{"$f":"$C$3*'CPS Allocations'!N26","v":0},{"$f":"$C$3*'CPS Allocations'!O26","v":0},{"$f":"$C$3*'CPS Allocations'!P26","v":0},{"$f":"$C$3*'CPS Allocations'!Q26","v":0},{"$f":"$C$3*'CPS Allocations'!R26","v":0},0,0,0,0,0,0,0,0,0,0,0,0,0,0,0,0,0,0,0,0]
["090 - Office of State Treasurer","090","Office of State Treasurer",30646.659210710666,{"$f":"$C$3*'CPS Allocations'!E27","v":0},{"$f":"$C$3*'CPS Allocations'!F27","v":0},{"$f":"$C$3*'CPS Allocations'!G27","v":30646.659210710666},{"$f":"$C$3*'CPS Allocations'!H27","v":0},{"$f":"$C$3*'CPS Allocations'!I27","v":0},{"$f":"$C$3*'CPS Allocations'!J27","v":0},{"$f":"$C$3*'CPS Allocations'!K27","v":0},{"$f":"$C$3*'CPS Allocations'!L27","v":0},{"$f":"$C$3*'CPS Allocations'!M27","v":0},{"$f":"$C$3*'CPS Allocations'!N27","v":0},{"$f":"$C$3*'CPS Allocations'!O27","v":0},{"$f":"$C$3*'CPS Allocations'!P27","v":0},{"$f":"$C$3*'CPS Allocations'!Q27","v":0},{"$f":"$C$3*'CPS Allocations'!R27","v":0},0,0,0,0,0,0,0,0,0,0,0,0,0,0,0,0,0,0,0,0]
["095 - Office of State Auditor","095","Office of State Auditor",18339.372735331479,{"$f":"$C$3*'CPS Allocations'!E28","v":0},{"$f":"$C$3*'CPS Allocations'!F28","v":0},{"$f":"$C$3*'CPS Allocations'!G28","v":0},{"$f":"$C$3*'CPS Allocations'!H28","v":0},{"$f":"$C$3*'CPS Allocations'!I28","v":0},{"$f":"$C$3*'CPS Allocations'!J28","v":0},{"$f":"$C$3*'CPS Allocations'!K28","v":0},{"$f":"$C$3*'CPS Allocations'!L28","v":0},{"$f":"$C$3*'CPS Allocations'!M28","v":0},{"$f":"$C$3*'CPS Allocations'!N28","v":0},{"$f":"$C$3*'CPS Allocations'!O28","v":18339.372735331479},{"$f":"$C$3*'CPS Allocations'!P28","v":0},{"$f":"$C$3*'CPS Allocations'!Q28","v":0},{"$f":"$C$3*'CPS Allocations'!R28","v":0},0,0,0,0,0,0,0,0,0,0,0,0,0,0,0,0,0,0,0,0]
["099 - Citizens' Commission on Salaries for Elected Officials","099","Citizens' Commission on Salaries for Elected Officials",0,{"$f":"$C$3*'CPS Allocations'!E29","v":0},{"$f":"$C$3*'CPS Allocations'!F29","v":0},{"$f":"$C$3*'CPS Allocations'!G29","v":0},{"$f":"$C$3*'CPS Allocations'!H29","v":0},{"$f":"$C$3*'CPS Allocations'!I29","v":0},{"$f":"$C$3*'CPS Allocations'!J29","v":0},{"$f":"$C$3*'CPS Allocations'!K29","v":0},{"$f":"$C$3*'CPS Allocations'!L29","v":0},{"$f":"$C$3*'CPS Allocations'!M29","v":0},{"$f":"$C$3*'CPS Allocations'!N29","v":0},{"$f":"$C$3*'CPS Allocations'!O29","v":0},{"$f":"$C$3*'CPS Allocations'!P29","v":0},{"$f":"$C$3*'CPS Allocations'!Q29","v":0},{"$f":"$C$3*'CPS Allocations'!R29","v":0},0,0,0,0,0,0,0,0,0,0,0,0,0,0,0,0,0,0,0,0]
["100 - Office of Attorney General","100","Office of Attorney General",173857.29374078196,{"$f":"$C$3*'CPS Allocations'!E30","v":0},{"$f":"$C$3*'CPS Allocations'!F30","v":0},{"$f":"$C$3*'CPS Allocations'!G30","v":0},{"$f":"$C$3*'CPS Allocations'!H30","v":0},{"$f":"$C$3*'CPS Allocations'!I30","v":173857.29374078196},{"$f":"$C$3*'CPS Allocations'!J30","v":0},{"$f":"$C$3*'CPS Allocations'!K30","v":0},{"$f":"$C$3*'CPS Allocations'!L30","v":0},{"$f":"$C$3*'CPS Allocations'!M30","v":0},{"$f":"$C$3*'CPS Allocations'!N30","v":0},{"$f":"$C$3*'CPS Allocations'!O30","v":0},{"$f":"$C$3*'CPS Allocations'!P30","v":0},{"$f":"$C$3*'CPS Allocations'!Q30","v":0},{"$f":"$C$3*'CPS Allocations'!R30","v":0},0,0,0,0,0,0,0,0,0,0,0,0,0,0,0,0,0,0,0,0]
["101 - Caseload Forecast Council","101","Caseload Forecast Council",0,{"$f":"$C$3*'CPS Allocations'!E31","v":0},{"$f":"$C$3*'CPS Allocations'!F31","v":0},{"$f":"$C$3*'CPS Allocations'!G31","v":0},{"$f":"$C$3*'CPS Allocations'!H31","v":0},{"$f":"$C$3*'CPS Allocations'!I31","v":0},{"$f":"$C$3*'CPS Allocations'!J31","v":0},{"$f":"$C$3*'CPS Allocations'!K31","v":0},{"$f":"$C$3*'CPS Allocations'!L31","v":0},{"$f":"$C$3*'CPS Allocations'!M31","v":0},{"$f":"$C$3*'CPS Allocations'!N31","v":0},{"$f":"$C$3*'CPS Allocations'!O31","v":0},{"$f":"$C$3*'CPS Allocations'!P31","v":0},{"$f":"$C$3*'CPS Allocations'!Q31","v":0},{"$f":"$C$3*'CPS Allocations'!R31","v":0},0,0,0,0,0,0,0,0,0,0,0,0,0,0,0,0,0,0,0,0]
["102 - Department of Financial Institutions","102","Department of Financial Institutions",0,{"$f":"$C$3*'CPS Allocations'!E32","v":0},{"$f":"$C$3*'CPS Allocations'!F32","v":0},{"$f":"$C$3*'CPS Allocations'!G32","v":0},{"$f":"$C$3*'CPS Allocations'!H32","v":0},{"$f":"$C$3*'CPS Allocations'!I32","v":0},{"$f":"$C$3*'CPS Allocations'!J32","v":0},{"$f":"$C$3*'CPS Allocations'!K32","v":0},{"$f":"$C$3*'CPS Allocations'!L32","v":0},{"$f":"$C$3*'CPS Allocations'!M32","v":0},{"$f":"$C$3*'CPS Allocations'!N32","v":0},{"$f":"$C$3*'CPS Allocations'!O32","v":0},{"$f":"$C$3*'CPS Allocations'!P32","v":0},{"$f":"$C$3*'CPS Allocations'!Q32","v":0},{"$f":"$C$3*'CPS Allocations'!R32","v":0},0,0,0,0,0,0,0,0,0,0,0,0,0,0,0,0,0,0,0,0]
["103 - Department of Commerce","103","Department of Commerce",0,{"$f":"$C$3*'CPS Allocations'!E33","v":0},{"$f":"$C$3*'CPS Allocations'!F33","v":0},{"$f":"$C$3*'CPS Allocations'!G33","v":0},{"$f":"$C$3*'CPS Allocations'!H33","v":0},{"$f":"$C$3*'CPS Allocations'!I33","v":0},{"$f":"$C$3*'CPS Allocations'!J33","v":0},{"$f":"$C$3*'CPS Allocations'!K33","v":0},{"$f":"$C$3*'CPS Allocations'!L33","v":0},{"$f":"$C$3*'CPS Allocations'!M33","v":0},{"$f":"$C$3*'CPS Allocations'!N33","v":0},{"$f":"$C$3*'CPS Allocations'!O33","v":0},{"$f":"$C$3*'CPS Allocations'!P33","v":0},{"$f":"$C$3*'CPS Allocations'!Q33","v":0},{"$f":"$C$3*'CPS Allocations'!R33","v":0},0,0,0,0,0,0,0,0,0,0,0,0,0,0,0,0,0,0,0,0]
["104 - Economic and Revenue Forecast Council","104","Economic and Revenue Forecast Council",0,{"$f":"$C$3*'CPS Allocations'!E34","v":0},{"$f":"$C$3*'CPS Allocations'!F34","v":0},{"$f":"$C$3*'CPS Allocations'!G34","v":0},{"$f":"$C$3*'CPS Allocations'!H34","v":0},{"$f":"$C$3*'CPS Allocations'!I34","v":0},{"$f":"$C$3*'CPS Allocations'!J34","v":0},{"$f":"$C$3*'CPS Allocations'!K34","v":0},{"$f":"$C$3*'CPS Allocations'!L34","v":0},{"$f":"$C$3*'CPS Allocations'!M34","v":0},{"$f":"$C$3*'CPS Allocations'!N34","v":0},{"$f":"$C$3*'CPS Allocations'!O34","v":0},{"$f":"$C$3*'CPS Allocations'!P34","v":0},{"$f":"$C$3*'CPS Allocations'!Q34","v":0},{"$f":"$C$3*'CPS Allocations'!R34","v":0},0,0,0,0,0,0,0,0,0,0,0,0,0,0,0,0,0,0,0,0]
["105 - Office of Financial Management","105","Office of Financial Management",119288.8675409342,{"$f":"$C$3*'CPS Allocations'!E35","v":0},{"$f":"$C$3*'CPS Allocations'!F35","v":0},{"$f":"$C$3*'CPS Allocations'!G35","v":0},{"$f":"$C$3*'CPS Allocations'!H35","v":0},{"$f":"$C$3*'CPS Allocations'!I35","v":0},{"$f":"$C$3*'CPS Allocations'!J35","v":0},{"$f":"$C$3*'CPS Allocations'!K35","v":0},{"$f":"$C$3*'CPS Allocations'!L35","v":0},{"$f":"$C$3*'CPS Allocations'!M35","v":0},{"$f":"$C$3*'CPS Allocations'!N35","v":0},{"$f":"$C$3*'CPS Allocations'!O35","v":119288.8675409342},{"$f":"$C$3*'CPS Allocations'!P35","v":0},{"$f":"$C$3*'CPS Allocations'!Q35","v":0},{"$f":"$C$3*'CPS Allocations'!R35","v":0},0,0,0,0,0,0,0,0,0,0,0,0,0,0,0,0,0,0,0,0]
["107 - Washington State Health Care Authority","107","Washington State Health Care Authority",0,{"$f":"$C$3*'CPS Allocations'!E36","v":0},{"$f":"$C$3*'CPS Allocations'!F36","v":0},{"$f":"$C$3*'CPS Allocations'!G36","v":0},{"$f":"$C$3*'CPS Allocations'!H36","v":0},{"$f":"$C$3*'CPS Allocations'!I36","v":0},{"$f":"$C$3*'CPS Allocations'!J36","v":0},{"$f":"$C$3*'CPS Allocations'!K36","v":0},{"$f":"$C$3*'CPS Allocations'!L36","v":0},{"$f":"$C$3*'CPS Allocations'!M36","v":0},{"$f":"$C$3*'CPS Allocations'!N36","v":0},{"$f":"$C$3*'CPS Allocations'!O36","v":0},{"$f":"$C$3*'CPS Allocations'!P36","v":0},{"$f":"$C$3*'CPS Allocations'!Q36","v":0},{"$f":"$C$3*'CPS Allocations'!R36","v":0},0,0,0,0,0,0,0,0,0,0,0,0,0,0,0,0,0,0,0,0]
["110 - Office of Administrative Hearings","110","Office of Administrative Hearings",0,{"$f":"$C$3*'CPS Allocations'!E37","v":0},{"$f":"$C$3*'CPS Allocations'!F37","v":0},{"$f":"$C$3*'CPS Allocations'!G37","v":0},{"$f":"$C$3*'CPS Allocations'!H37","v":0},{"$f":"$C$3*'CPS Allocations'!I37","v":0},{"$f":"$C$3*'CPS Allocations'!J37","v":0},{"$f":"$C$3*'CPS Allocations'!K37","v":0},{"$f":"$C$3*'CPS Allocations'!L37","v":0},{"$f":"$C$3*'CPS Allocations'!M37","v":0},{"$f":"$C$3*'CPS Allocations'!N37","v":0},{"$f":"$C$3*'CPS Allocations'!O37","v":0},{"$f":"$C$3*'CPS Allocations'!P37","v":0},{"$f":"$C$3*'CPS Allocations'!Q37","v":0},{"$f":"$C$3*'CPS Allocations'!R37","v":0},0,0,0,0,0,0,0,0,0,0,0,0,0,0,0,0,0,0,0,0]
["116 - State Lottery","116","State Lottery",0,{"$f":"$C$3*'CPS Allocations'!E38","v":0},{"$f":"$C$3*'CPS Allocations'!F38","v":0},{"$f":"$C$3*'CPS Allocations'!G38","v":0},{"$f":"$C$3*'CPS Allocations'!H38","v":0},{"$f":"$C$3*'CPS Allocations'!I38","v":0},{"$f":"$C$3*'CPS Allocations'!J38","v":0},{"$f":"$C$3*'CPS Allocations'!K38","v":0},{"$f":"$C$3*'CPS Allocations'!L38","v":0},{"$f":"$C$3*'CPS Allocations'!M38","v":0},{"$f":"$C$3*'CPS Allocations'!N38","v":0},{"$f":"$C$3*'CPS Allocations'!O38","v":0},{"$f":"$C$3*'CPS Allocations'!P38","v":0},{"$f":"$C$3*'CPS Allocations'!Q38","v":0},{"$f":"$C$3*'CPS Allocations'!R38","v":0},0,0,0,0,0,0,0,0,0,0,0,0,0,0,0,0,0,0,0,0]
["117 - Washington State Gambling Commission","117","Washington State Gambling Commission",0,{"$f":"$C$3*'CPS Allocations'!E39","v":0},{"$f":"$C$3*'CPS Allocations'!F39","v":0},{"$f":"$C$3*'CPS Allocations'!G39","v":0},{"$f":"$C$3*'CPS Allocations'!H39","v":0},{"$f":"$C$3*'CPS Allocations'!I39","v":0},{"$f":"$C$3*'CPS Allocations'!J39","v":0},{"$f":"$C$3*'CPS Allocations'!K39","v":0},{"$f":"$C$3*'CPS Allocations'!L39","v":0},{"$f":"$C$3*'CPS Allocations'!M39","v":0},{"$f":"$C$3*'CPS Allocations'!N39","v":0},{"$f":"$C$3*'CPS Allocations'!O39","v":0},{"$f":"$C$3*'CPS Allocations'!P39","v":0},{"$f":"$C$3*'CPS Allocations'!Q39","v":0},{"$f":"$C$3*'CPS Allocations'!R39","v":0},0,0,0,0,0,0,0,0,0,0,0,0,0,0,0,0,0,0,0,0]
["118 - Commission on Hispanic Affairs","118","Commission on Hispanic Affairs",0,{"$f":"$C$3*'CPS Allocations'!E40","v":0},{"$f":"$C$3*'CPS Allocations'!F40","v":0},{"$f":"$C$3*'CPS Allocations'!G40","v":0},{"$f":"$C$3*'CPS Allocations'!H40","v":0},{"$f":"$C$3*'CPS Allocations'!I40","v":0},{"$f":"$C$3*'CPS Allocations'!J40","v":0},{"$f":"$C$3*'CPS Allocations'!K40","v":0},{"$f":"$C$3*'CPS Allocations'!L40","v":0},{"$f":"$C$3*'CPS Allocations'!M40","v":0},{"$f":"$C$3*'CPS Allocations'!N40","v":0},{"$f":"$C$3*'CPS Allocations'!O40","v":0},{"$f":"$C$3*'CPS Allocations'!P40","v":0},{"$f":"$C$3*'CPS Allocations'!Q40","v":0},{"$f":"$C$3*'CPS Allocations'!R40","v":0},0,0,0,0,0,0,0,0,0,0,0,0,0,0,0,0,0,0,0,0]
["119 - Commission on African-American Affairs","119","Commission on African-American Affairs",0,{"$f":"$C$3*'CPS Allocations'!E41","v":0},{"$f":"$C$3*'CPS Allocations'!F41","v":0},{"$f":"$C$3*'CPS Allocations'!G41","v":0},{"$f":"$C$3*'CPS Allocations'!H41","v":0},{"$f":"$C$3*'CPS Allocations'!I41","v":0},{"$f":"$C$3*'CPS Allocations'!J41","v":0},{"$f":"$C$3*'CPS Allocations'!K41","v":0},{"$f":"$C$3*'CPS Allocations'!L41","v":0},{"$f":"$C$3*'CPS Allocations'!M41","v":0},{"$f":"$C$3*'CPS Allocations'!N41","v":0},{"$f":"$C$3*'CPS Allocations'!O41","v":0},{"$f":"$C$3*'CPS Allocations'!P41","v":0},{"$f":"$C$3*'CPS Allocations'!Q41","v":0},{"$f":"$C$3*'CPS Allocations'!R41","v":0},0,0,0,0,0,0,0,0,0,0,0,0,0,0,0,0,0,0,0,0]
["120 - Human Rights Commission","120","Human Rights Commission",0,{"$f":"$C$3*'CPS Allocations'!E42","v":0},{"$f":"$C$3*'CPS Allocations'!F42","v":0},{"$f":"$C$3*'CPS Allocations'!G42","v":0},{"$f":"$C$3*'CPS Allocations'!H42","v":0},{"$f":"$C$3*'CPS Allocations'!I42","v":0},{"$f":"$C$3*'CPS Allocations'!J42","v":0},{"$f":"$C$3*'CPS Allocations'!K42","v":0},{"$f":"$C$3*'CPS Allocations'!L42","v":0},{"$f":"$C$3*'CPS Allocations'!M42","v":0},{"$f":"$C$3*'CPS Allocations'!N42","v":0},{"$f":"$C$3*'CPS Allocations'!O42","v":0},{"$f":"$C$3*'CPS Allocations'!P42","v":0},{"$f":"$C$3*'CPS Allocations'!Q42","v":0},{"$f":"$C$3*'CPS Allocations'!R42","v":0},0,0,0,0,0,0,0,0,0,0,0,0,0,0,0,0,0,0,0,0]
["124 - Department of Retirement Systems","124","Department of Retirement Systems",0,{"$f":"$C$3*'CPS Allocations'!E43","v":0},{"$f":"$C$3*'CPS Allocations'!F43","v":0},{"$f":"$C$3*'CPS Allocations'!G43","v":0},{"$f":"$C$3*'CPS Allocations'!H43","v":0},{"$f":"$C$3*'CPS Allocations'!I43","v":0},{"$f":"$C$3*'CPS Allocations'!J43","v":0},{"$f":"$C$3*'CPS Allocations'!K43","v":0},{"$f":"$C$3*'CPS Allocations'!L43","v":0},{"$f":"$C$3*'CPS Allocations'!M43","v":0},{"$f":"$C$3*'CPS Allocations'!N43","v":0},{"$f":"$C$3*'CPS Allocations'!O43","v":0},{"$f":"$C$3*'CPS Allocations'!P43","v":0},{"$f":"$C$3*'CPS Allocations'!Q43","v":0},{"$f":"$C$3*'CPS Allocations'!R43","v":0},0,0,0,0,0,0,0,0,0,0,0,0,0,0,0,0,0,0,0,0]
["126 - State Investment Board","126","State Investment Board",0,{"$f":"$C$3*'CPS Allocations'!E44","v":0},{"$f":"$C$3*'CPS Allocations'!F44","v":0},{"$f":"$C$3*'CPS Allocations'!G44","v":0},{"$f":"$C$3*'CPS Allocations'!H44","v":0},{"$f":"$C$3*'CPS Allocations'!I44","v":0},{"$f":"$C$3*'CPS Allocations'!J44","v":0},{"$f":"$C$3*'CPS Allocations'!K44","v":0},{"$f":"$C$3*'CPS Allocations'!L44","v":0},{"$f":"$C$3*'CPS Allocations'!M44","v":0},{"$f":"$C$3*'CPS Allocations'!N44","v":0},{"$f":"$C$3*'CPS Allocations'!O44","v":0},{"$f":"$C$3*'CPS Allocations'!P44","v":0},{"$f":"$C$3*'CPS Allocations'!Q44","v":0},{"$f":"$C$3*'CPS Allocations'!R44","v":0},0,0,0,0,0,0,0,0,0,0,0,0,0,0,0,0,0,0,0,0]
["140 - Department of Revenue","140","Department of Revenue",0,{"$f":"$C$3*'CPS Allocations'!E45","v":0},{"$f":"$C$3*'CPS Allocations'!F45","v":0},{"$f":"$C$3*'CPS Allocations'!G45","v":0},{"$f":"$C$3*'CPS Allocations'!H45","v":0},{"$f":"$C$3*'CPS Allocations'!I45","v":0},{"$f":"$C$3*'CPS Allocations'!J45","v":0},{"$f":"$C$3*'CPS Allocations'!K45","v":0},{"$f":"$C$3*'CPS Allocations'!L45","v":0},{"$f":"$C$3*'CPS Allocations'!M45","v":0},{"$f":"$C$3*'CPS Allocations'!N45","v":0},{"$f":"$C$3*'CPS Allocations'!O45","v":0},{"$f":"$C$3*'CPS Allocations'!P45","v":0},{"$f":"$C$3*'CPS Allocations'!Q45","v":0},{"$f":"$C$3*'CPS Allocations'!R45","v":0},0,0,0,0,0,0,0,0,0,0,0,0,0,0,0,0,0,0,0,0]
["142 - Board of Tax Appeals","142","Board of Tax Appeals",0,{"$f":"$C$3*'CPS Allocations'!E46","v":0},{"$f":"$C$3*'CPS Allocations'!F46","v":0},{"$f":"$C$3*'CPS Allocations'!G46","v":0},{"$f":"$C$3*'CPS Allocations'!H46","v":0},{"$f":"$C$3*'CPS Allocations'!I46","v":0},{"$f":"$C$3*'CPS Allocations'!J46","v":0},{"$f":"$C$3*'CPS Allocations'!K46","v":0},{"$f":"$C$3*'CPS Allocations'!L46","v":0},{"$f":"$C$3*'CPS Allocations'!M46","v":0},{"$f":"$C$3*'CPS Allocations'!N46","v":0},{"$f":"$C$3*'CPS Allocations'!O46","v":0},{"$f":"$C$3*'CPS Allocations'!P46","v":0},{"$f":"$C$3*'CPS Allocations'!Q46","v":0},{"$f":"$C$3*'CPS Allocations'!R46","v":0},0,0,0,0,0,0,0,0,0,0,0,0,0,0,0,0,0,0,0,0]
["147 - Office of Minority and Women's Business Enterprises","147","Office of Minority and Women's Business Enterprises",0,{"$f":"$C$3*'CPS Allocations'!E47","v":0},{"$f":"$C$3*'CPS Allocations'!F47","v":0},{"$f":"$C$3*'CPS Allocations'!G47","v":0},{"$f":"$C$3*'CPS Allocations'!H47","v":0},{"$f":"$C$3*'CPS Allocations'!I47","v":0},{"$f":"$C$3*'CPS Allocations'!J47","v":0},{"$f":"$C$3*'CPS Allocations'!K47","v":0},{"$f":"$C$3*'CPS Allocations'!L47","v":0},{"$f":"$C$3*'CPS Allocations'!M47","v":0},{"$f":"$C$3*'CPS Allocations'!N47","v":0},{"$f":"$C$3*'CPS Allocations'!O47","v":0},{"$f":"$C$3*'CPS Allocations'!P47","v":0},{"$f":"$C$3*'CPS Allocations'!Q47","v":0},{"$f":"$C$3*'CPS Allocations'!R47","v":0},0,0,0,0,0,0,0,0,0,0,0,0,0,0,0,0,0,0,0,0]
["160 - Office of Insurance Commissioner","160","Office of Insurance Commissioner",19989.687468376746,{"$f":"$C$3*'CPS Allocations'!E48","v":0},{"$f":"$C$3*'CPS Allocations'!F48","v":0},{"$f":"$C$3*'CPS Allocations'!G48","v":0},{"$f":"$C$3*'CPS Allocations'!H48","v":0},{"$f":"$C$3*'CPS Allocations'!I48","v":0},{"$f":"$C$3*'CPS Allocations'!J48","v":0},{"$f":"$C$3*'CPS Allocations'!K48","v":0},{"$f":"$C$3*'CPS Allocations'!L48","v":0},{"$f":"$C$3*'CPS Allocations'!M48","v":0},{"$f":"$C$3*'CPS Allocations'!N48","v":0},{"$f":"$C$3*'CPS Allocations'!O48","v":19989.687468376746},{"$f":"$C$3*'CPS Allocations'!P48","v":0},{"$f":"$C$3*'CPS Allocations'!Q48","v":0},{"$f":"$C$3*'CPS Allocations'!R48","v":0},0,0,0,0,0,0,0,0,0,0,0,0,0,0,0,0,0,0,0,0]
["163 - Consolidated Technology Services","163","Consolidated Technology Services",835.16794115982407,{"$f":"$C$3*'CPS Allocations'!E49","v":0},{"$f":"$C$3*'CPS Allocations'!F49","v":0},{"$f":"$C$3*'CPS Allocations'!G49","v":0},{"$f":"$C$3*'CPS Allocations'!H49","v":0},{"$f":"$C$3*'CPS Allocations'!I49","v":0},{"$f":"$C$3*'CPS Allocations'!J49","v":835.16794115982407},{"$f":"$C$3*'CPS Allocations'!K49","v":0},{"$f":"$C$3*'CPS Allocations'!L49","v":0},{"$f":"$C$3*'CPS Allocations'!M49","v":0},{"$f":"$C$3*'CPS Allocations'!N49","v":0},{"$f":"$C$3*'CPS Allocations'!O49","v":0},{"$f":"$C$3*'CPS Allocations'!P49","v":0},{"$f":"$C$3*'CPS Allocations'!Q49","v":0},{"$f":"$C$3*'CPS Allocations'!R49","v":0},0,0,0,0,0,0,0,0,0,0,0,0,0,0,0,0,0,0,0,0]
["165 - Board of Accountancy","165","Board of Accountancy",0,{"$f":"$C$3*'CPS Allocations'!E50","v":0},{"$f":"$C$3*'CPS Allocations'!F50","v":0},{"$f":"$C$3*'CPS Allocations'!G50","v":0},{"$f":"$C$3*'CPS Allocations'!H50","v":0},{"$f":"$C$3*'CPS Allocations'!I50","v":0},{"$f":"$C$3*'CPS Allocations'!J50","v":0},{"$f":"$C$3*'CPS Allocations'!K50","v":0},{"$f":"$C$3*'CPS Allocations'!L50","v":0},{"$f":"$C$3*'CPS Allocations'!M50","v":0},{"$f":"$C$3*'CPS Allocations'!N50","v":0},{"$f":"$C$3*'CPS Allocations'!O50","v":0},{"$f":"$C$3*'CPS Allocations'!P50","v":0},{"$f":"$C$3*'CPS Allocations'!Q50","v":0},{"$f":"$C$3*'CPS Allocations'!R50","v":0},0,0,0,0,0,0,0,0,0,0,0,0,0,0,0,0,0,0,0,0]
["166 - Brd Prof Eng Land Surveyors","166","Brd Prof Eng Land Surveyors",0,{"$f":"$C$3*'CPS Allocations'!E51","v":0},{"$f":"$C$3*'CPS Allocations'!F51","v":0},{"$f":"$C$3*'CPS Allocations'!G51","v":0},{"$f":"$C$3*'CPS Allocations'!H51","v":0},{"$f":"$C$3*'CPS Allocations'!I51","v":0},{"$f":"$C$3*'CPS Allocations'!J51","v":0},{"$f":"$C$3*'CPS Allocations'!K51","v":0},{"$f":"$C$3*'CPS Allocations'!L51","v":0},{"$f":"$C$3*'CPS Allocations'!M51","v":0},{"$f":"$C$3*'CPS Allocations'!N51","v":0},{"$f":"$C$3*'CPS Allocations'!O51","v":0},{"$f":"$C$3*'CPS Allocations'!P51","v":0},{"$f":"$C$3*'CPS Allocations'!Q51","v":0},{"$f":"$C$3*'CPS Allocations'!R51","v":0},0,0,0,0,0,0,0,0,0,0,0,0,0,0,0,0,0,0,0,0]
["167 - Forensic Investigations Council","167","Forensic Investigations Council",0,{"$f":"$C$3*'CPS Allocations'!E52","v":0},{"$f":"$C$3*'CPS Allocations'!F52","v":0},{"$f":"$C$3*'CPS Allocations'!G52","v":0},{"$f":"$C$3*'CPS Allocations'!H52","v":0},{"$f":"$C$3*'CPS Allocations'!I52","v":0},{"$f":"$C$3*'CPS Allocations'!J52","v":0},{"$f":"$C$3*'CPS Allocations'!K52","v":0},{"$f":"$C$3*'CPS Allocations'!L52","v":0},{"$f":"$C$3*'CPS Allocations'!M52","v":0},{"$f":"$C$3*'CPS Allocations'!N52","v":0},{"$f":"$C$3*'CPS Allocations'!O52","v":0},{"$f":"$C$3*'CPS Allocations'!P52","v":0},{"$f":"$C$3*'CPS Allocations'!Q52","v":0},{"$f":"$C$3*'CPS Allocations'!R52","v":0},0,0,0,0,0,0,0,0,0,0,0,0,0,0,0,0,0,0,0,0]
["179 - Department of Enterprise Services","179","Department of Enterprise Services",77805.046244420184,{"$f":"$C$3*'CPS Allocations'!E53","v":0},{"$f":"$C$3*'CPS Allocations'!F53","v":0},{"$f":"$C$3*'CPS Allocations'!G53","v":19783.755647268848},{"$f":"$C$3*'CPS Allocations'!H53","v":0},{"$f":"$C$3*'CPS Allocations'!I53","v":0},{"$f":"$C$3*'CPS Allocations'!J53","v":58021.290597151339},{"$f":"$C$3*'CPS Allocations'!K53","v":0},{"$f":"$C$3*'CPS Allocations'!L53","v":0},{"$f":"$C$3*'CPS Allocations'!M53","v":0},{"$f":"$C$3*'CPS Allocations'!N53","v":0},{"$f":"$C$3*'CPS Allocations'!O53","v":0},{"$f":"$C$3*'CPS Allocations'!P53","v":0},{"$f":"$C$3*'CPS Allocations'!Q53","v":0},{"$f":"$C$3*'CPS Allocations'!R53","v":0},0,0,0,0,0,0,0,0,0,0,0,0,0,0,0,0,0,0,0,0]
["185 - Horse Racing Commission","185","Horse Racing Commission",0,{"$f":"$C$3*'CPS Allocations'!E54","v":0},{"$f":"$C$3*'CPS Allocations'!F54","v":0},{"$f":"$C$3*'CPS Allocations'!G54","v":0},{"$f":"$C$3*'CPS Allocations'!H54","v":0},{"$f":"$C$3*'CPS Allocations'!I54","v":0},{"$f":"$C$3*'CPS Allocations'!J54","v":0},{"$f":"$C$3*'CPS Allocations'!K54","v":0},{"$f":"$C$3*'CPS Allocations'!L54","v":0},{"$f":"$C$3*'CPS Allocations'!M54","v":0},{"$f":"$C$3*'CPS Allocations'!N54","v":0},{"$f":"$C$3*'CPS Allocations'!O54","v":0},{"$f":"$C$3*'CPS Allocations'!P54","v":0},{"$f":"$C$3*'CPS Allocations'!Q54","v":0},{"$f":"$C$3*'CPS Allocations'!R54","v":0},0,0,0,0,0,0,0,0,0,0,0,0,0,0,0,0,0,0,0,0]
["190 - Board of Industrial Insurance Appeals","190","Board of Industrial Insurance Appeals",0,{"$f":"$C$3*'CPS Allocations'!E55","v":0},{"$f":"$C$3*'CPS Allocations'!F55","v":0},{"$f":"$C$3*'CPS Allocations'!G55","v":0},{"$f":"$C$3*'CPS Allocations'!H55","v":0},{"$f":"$C$3*'CPS Allocations'!I55","v":0},{"$f":"$C$3*'CPS Allocations'!J55","v":0},{"$f":"$C$3*'CPS Allocations'!K55","v":0},{"$f":"$C$3*'CPS Allocations'!L55","v":0},{"$f":"$C$3*'CPS Allocations'!M55","v":0},{"$f":"$C$3*'CPS Allocations'!N55","v":0},{"$f":"$C$3*'CPS Allocations'!O55","v":0},{"$f":"$C$3*'CPS Allocations'!P55","v":0},{"$f":"$C$3*'CPS Allocations'!Q55","v":0},{"$f":"$C$3*'CPS Allocations'!R55","v":0},0,0,0,0,0,0,0,0,0,0,0,0,0,0,0,0,0,0,0,0]
["195 - Liquor Control Board","195","Liquor Control Board",0,{"$f":"$C$3*'CPS Allocations'!E56","v":0},{"$f":"$C$3*'CPS Allocations'!F56","v":0},{"$f":"$C$3*'CPS Allocations'!G56","v":0},{"$f":"$C$3*'CPS Allocations'!H56","v":0},{"$f":"$C$3*'CPS Allocations'!I56","v":0},{"$f":"$C$3*'CPS Allocations'!J56","v":0},{"$f":"$C$3*'CPS Allocations'!K56","v":0},{"$f":"$C$3*'CPS Allocations'!L56","v":0},{"$f":"$C$3*'CPS Allocations'!M56","v":0},{"$f":"$C$3*'CPS Allocations'!N56","v":0},{"$f":"$C$3*'CPS Allocations'!O56","v":0},{"$f":"$C$3*'CPS Allocations'!P56","v":0},{"$f":"$C$3*'CPS Allocations'!Q56","v":0},{"$f":"$C$3*'CPS Allocations'!R56","v":0},0,0,0,0,0,0,0,0,0,0,0,0,0,0,0,0,0,0,0,0]
["205 - Board of Pilotage Commissioners","205","Board of Pilotage Commissioners",0,{"$f":"$C$3*'CPS Allocations'!E57","v":0},{"$f":"$C$3*'CPS Allocations'!F57","v":0},{"$f":"$C$3*'CPS Allocations'!G57","v":0},{"$f":"$C$3*'CPS Allocations'!H57","v":0},{"$f":"$C$3*'CPS Allocations'!I57","v":0},{"$f":"$C$3*'CPS Allocations'!J57","v":0},{"$f":"$C$3*'CPS Allocations'!K57","v":0},{"$f":"$C$3*'CPS Allocations'!L57","v":0},{"$f":"$C$3*'CPS Allocations'!M57","v":0},{"$f":"$C$3*'CPS Allocations'!N57","v":0},{"$f":"$C$3*'CPS Allocations'!O57","v":0},{"$f":"$C$3*'CPS Allocations'!P57","v":0},{"$f":"$C$3*'CPS Allocations'!Q57","v":0},{"$f":"$C$3*'CPS Allocations'!R57","v":0},0,0,0,0,0,0,0,0,0,0,0,0,0,0,0,0,0,0,0,0]
["215 - Utilities and Transportation Commission","215","Utilities and Transportation Commission",0,{"$f":"$C$3*'CPS Allocations'!E58","v":0},{"$f":"$C$3*'CPS Allocations'!F58","v":0},{"$f":"$C$3*'CPS Allocations'!G58","v":0},{"$f":"$C$3*'CPS Allocations'!H58","v":0},{"$f":"$C$3*'CPS Allocations'!I58","v":0},{"$f":"$C$3*'CPS Allocations'!J58","v":0},{"$f":"$C$3*'CPS Allocations'!K58","v":0},{"$f":"$C$3*'CPS Allocations'!L58","v":0},{"$f":"$C$3*'CPS Allocations'!M58","v":0},{"$f":"$C$3*'CPS Allocations'!N58","v":0},{"$f":"$C$3*'CPS Allocations'!O58","v":0},{"$f":"$C$3*'CPS Allocations'!P58","v":0},{"$f":"$C$3*'CPS Allocations'!Q58","v":0},{"$f":"$C$3*'CPS Allocations'!R58","v":0},0,0,0,0,0,0,0,0,0,0,0,0,0,0,0,0,0,0,0,0]
["220 - Board for Volunteer Firefighters and Reserve Officers","220","Board for Volunteer Firefighters and Reserve Officers",0,{"$f":"$C$3*'CPS Allocations'!E59","v":0},{"$f":"$C$3*'CPS Allocations'!F59","v":0},{"$f":"$C$3*'CPS Allocations'!G59","v":0},{"$f":"$C$3*'CPS Allocations'!H59","v":0},{"$f":"$C$3*'CPS Allocations'!I59","v":0},{"$f":"$C$3*'CPS Allocations'!J59","v":0},{"$f":"$C$3*'CPS Allocations'!K59","v":0},{"$f":"$C$3*'CPS Allocations'!L59","v":0},{"$f":"$C$3*'CPS Allocations'!M59","v":0},{"$f":"$C$3*'CPS Allocations'!N59","v":0},{"$f":"$C$3*'CPS Allocations'!O59","v":0},{"$f":"$C$3*'CPS Allocations'!P59","v":0},{"$f":"$C$3*'CPS Allocations'!Q59","v":0},{"$f":"$C$3*'CPS Allocations'!R59","v":0},0,0,0,0,0,0,0,0,0,0,0,0,0,0,0,0,0,0,0,0]
["225 - Washington State Patrol","225","Washington State Patrol",1487.2853746681799,{"$f":"$C$3*'CPS Allocations'!E60","v":0},{"$f":"$C$3*'CPS Allocations'!F60","v":0},{"$f":"$C$3*'CPS Allocations'!G60","v":1487.2853746681799},{"$f":"$C$3*'CPS Allocations'!H60","v":0},{"$f":"$C$3*'CPS Allocations'!I60","v":0},{"$f":"$C$3*'CPS Allocations'!J60","v":0},{"$f":"$C$3*'CPS Allocations'!K60","v":0},{"$f":"$C$3*'CPS Allocations'!L60","v":0},{"$f":"$C$3*'CPS Allocations'!M60","v":0},{"$f":"$C$3*'CPS Allocations'!N60","v":0},{"$f":"$C$3*'CPS Allocations'!O60","v":0},{"$f":"$C$3*'CPS Allocations'!P60","v":0},{"$f":"$C$3*'CPS Allocations'!Q60","v":0},{"$f":"$C$3*'CPS Allocations'!R60","v":0},0,0,0,0,0,0,0,0,0,0,0,0,0,0,0,0,0,0,0,0]
["227 - Criminal Justice Training Commission","227","Criminal Justice Training Commission",0,{"$f":"$C$3*'CPS Allocations'!E61","v":0},{"$f":"$C$3*'CPS Allocations'!F61","v":0},{"$f":"$C$3*'CPS Allocations'!G61","v":0},{"$f":"$C$3*'CPS Allocations'!H61","v":0},{"$f":"$C$3*'CPS Allocations'!I61","v":0},{"$f":"$C$3*'CPS Allocations'!J61","v":0},{"$f":"$C$3*'CPS Allocations'!K61","v":0},{"$f":"$C$3*'CPS Allocations'!L61","v":0},{"$f":"$C$3*'CPS Allocations'!M61","v":0},{"$f":"$C$3*'CPS Allocations'!N61","v":0},{"$f":"$C$3*'CPS Allocations'!O61","v":0},{"$f":"$C$3*'CPS Allocations'!P61","v":0},{"$f":"$C$3*'CPS Allocations'!Q61","v":0},{"$f":"$C$3*'CPS Allocations'!R61","v":0},0,0,0,0,0,0,0,0,0,0,0,0,0,0,0,0,0,0,0,0]
["228 - Traffic Safety Commission","228","Traffic Safety Commission",0,{"$f":"$C$3*'CPS Allocations'!E62","v":0},{"$f":"$C$3*'CPS Allocations'!F62","v":0},{"$f":"$C$3*'CPS Allocations'!G62","v":0},{"$f":"$C$3*'CPS Allocations'!H62","v":0},{"$f":"$C$3*'CPS Allocations'!I62","v":0},{"$f":"$C$3*'CPS Allocations'!J62","v":0},{"$f":"$C$3*'CPS Allocations'!K62","v":0},{"$f":"$C$3*'CPS Allocations'!L62","v":0},{"$f":"$C$3*'CPS Allocations'!M62","v":0},{"$f":"$C$3*'CPS Allocations'!N62","v":0},{"$f":"$C$3*'CPS Allocations'!O62","v":0},{"$f":"$C$3*'CPS Allocations'!P62","v":0},{"$f":"$C$3*'CPS Allocations'!Q62","v":0},{"$f":"$C$3*'CPS Allocations'!R62","v":0},0,0,0,0,0,0,0,0,0,0,0,0,0,0,0,0,0,0,0,0]
["235 - Department of Labor and Industries","235","Department of Labor and Industries",0,{"$f":"$C$3*'CPS Allocations'!E63","v":0},{"$f":"$C$3*'CPS Allocations'!F63","v":0},{"$f":"$C$3*'CPS Allocations'!G63","v":0},{"$f":"$C$3*'CPS Allocations'!H63","v":0},{"$f":"$C$3*'CPS Allocations'!I63","v":0},{"$f":"$C$3*'CPS Allocations'!J63","v":0},{"$f":"$C$3*'CPS Allocations'!K63","v":0},{"$f":"$C$3*'CPS Allocations'!L63","v":0},{"$f":"$C$3*'CPS Allocations'!M63","v":0},{"$f":"$C$3*'CPS Allocations'!N63","v":0},{"$f":"$C$3*'CPS Allocations'!O63","v":0},{"$f":"$C$3*'CPS Allocations'!P63","v":0},{"$f":"$C$3*'CPS Allocations'!Q63","v":0},{"$f":"$C$3*'CPS Allocations'!R63","v":0},0,0,0,0,0,0,0,0,0,0,0,0,0,0,0,0,0,0,0,0]
["240 - Department of Licensing","240","Department of Licensing",249303.39863342818,{"$f":"$C$3*'CPS Allocations'!E64","v":0},{"$f":"$C$3*'CPS Allocations'!F64","v":0},{"$f":"$C$3*'CPS Allocations'!G64","v":0},{"$f":"$C$3*'CPS Allocations'!H64","v":0},{"$f":"$C$3*'CPS Allocations'!I64","v":249303.39863342818},{"$f":"$C$3*'CPS Allocations'!J64","v":0},{"$f":"$C$3*'CPS Allocations'!K64","v":0},{"$f":"$C$3*'CPS Allocations'!L64","v":0},{"$f":"$C$3*'CPS Allocations'!M64","v":0},{"$f":"$C$3*'CPS Allocations'!N64","v":0},{"$f":"$C$3*'CPS Allocations'!O64","v":0},{"$f":"$C$3*'CPS Allocations'!P64","v":0},{"$f":"$C$3*'CPS Allocations'!Q64","v":0},{"$f":"$C$3*'CPS Allocations'!R64","v":0},0,0,0,0,0,0,0,0,0,0,0,0,0,0,0,0,0,0,0,0]
["245 - Military Department","245","Military Department",0,{"$f":"$C$3*'CPS Allocations'!E65","v":0},{"$f":"$C$3*'CPS Allocations'!F65","v":0},{"$f":"$C$3*'CPS Allocations'!G65","v":0},{"$f":"$C$3*'CPS Allocations'!H65","v":0},{"$f":"$C$3*'CPS Allocations'!I65","v":0},{"$f":"$C$3*'CPS Allocations'!J65","v":0},{"$f":"$C$3*'CPS Allocations'!K65","v":0},{"$f":"$C$3*'CPS Allocations'!L65","v":0},{"$f":"$C$3*'CPS Allocations'!M65","v":0},{"$f":"$C$3*'CPS Allocations'!N65","v":0},{"$f":"$C$3*'CPS Allocations'!O65","v":0},{"$f":"$C$3*'CPS Allocations'!P65","v":0},{"$f":"$C$3*'CPS Allocations'!Q65","v":0},{"$f":"$C$3*'CPS Allocations'!R65","v":0},0,0,0,0,0,0,0,0,0,0,0,0,0,0,0,0,0,0,0,0]
["275 - Public Employment Relations Commission","275","Public Employment Relations Commission",0,{"$f":"$C$3*'CPS Allocations'!E66","v":0},{"$f":"$C$3*'CPS Allocations'!F66","v":0},{"$f":"$C$3*'CPS Allocations'!G66","v":0},{"$f":"$C$3*'CPS Allocations'!H66","v":0},{"$f":"$C$3*'CPS Allocations'!I66","v":0},{"$f":"$C$3*'CPS Allocations'!J66","v":0},{"$f":"$C$3*'CPS Allocations'!K66","v":0},{"$f":"$C$3*'CPS Allocations'!L66","v":0},{"$f":"$C$3*'CPS Allocations'!M66","v":0},{"$f":"$C$3*'CPS Allocations'!N66","v":0},{"$f":"$C$3*'CPS Allocations'!O66","v":0},{"$f":"$C$3*'CPS Allocations'!P66","v":0},{"$f":"$C$3*'CPS Allocations'!Q66","v":0},{"$f":"$C$3*'CPS Allocations'!R66","v":0},0,0,0,0,0,0,0,0,0,0,0,0,0,0,0,0,0,0,0,0]
["300 - Department of Social and Health Services","300","Department of Social and Health Services",461318.74108770274,{"$f":"$C$3*'CPS Allocations'!E67","v":0},{"$f":"$C$3*'CPS Allocations'!F67","v":0},{"$f":"$C$3*'CPS Allocations'!G67","v":0},{"$f":"$C$3*'CPS Allocations'!H67","v":0},{"$f":"$C$3*'CPS Allocations'!I67","v":0},{"$f":"$C$3*'CPS Allocations'!J67","v":461318.74108770274},{"$f":"$C$3*'CPS Allocations'!K67","v":0},{"$f":"$C$3*'CPS Allocations'!L67","v":0},{"$f":"$C$3*'CPS Allocations'!M67","v":0},{"$f":"$C$3*'CPS Allocations'!N67","v":0},{"$f":"$C$3*'CPS Allocations'!O67","v":0},{"$f":"$C$3*'CPS Allocations'!P67","v":0},{"$f":"$C$3*'CPS Allocations'!Q67","v":0},{"$f":"$C$3*'CPS Allocations'!R67","v":0},0,0,0,0,0,0,0,0,0,0,0,0,0,0,0,0,0,0,0,0]
["303 - Department of Health","303","Department of Health",0,{"$f":"$C$3*'CPS Allocations'!E68","v":0},{"$f":"$C$3*'CPS Allocations'!F68","v":0},{"$f":"$C$3*'CPS Allocations'!G68","v":0},{"$f":"$C$3*'CPS Allocations'!H68","v":0},{"$f":"$C$3*'CPS Allocations'!I68","v":0},{"$f":"$C$3*'CPS Allocations'!J68","v":0},{"$f":"$C$3*'CPS Allocations'!K68","v":0},{"$f":"$C$3*'CPS Allocations'!L68","v":0},{"$f":"$C$3*'CPS Allocations'!M68","v":0},{"$f":"$C$3*'CPS Allocations'!N68","v":0},{"$f":"$C$3*'CPS Allocations'!O68","v":0},{"$f":"$C$3*'CPS Allocations'!P68","v":0},{"$f":"$C$3*'CPS Allocations'!Q68","v":0},{"$f":"$C$3*'CPS Allocations'!R68","v":0},0,0,0,0,0,0,0,0,0,0,0,0,0,0,0,0,0,0,0,0]
["305 - Department of Veterans Affairs","305","Department of Veterans Affairs",0,{"$f":"$C$3*'CPS Allocations'!E69","v":0},{"$f":"$C$3*'CPS Allocations'!F69","v":0},{"$f":"$C$3*'CPS Allocations'!G69","v":0},{"$f":"$C$3*'CPS Allocations'!H69","v":0},{"$f":"$C$3*'CPS Allocations'!I69","v":0},{"$f":"$C$3*'CPS Allocations'!J69","v":0},{"$f":"$C$3*'CPS Allocations'!K69","v":0},{"$f":"$C$3*'CPS Allocations'!L69","v":0},{"$f":"$C$3*'CPS Allocations'!M69","v":0},{"$f":"$C$3*'CPS Allocations'!N69","v":0},{"$f":"$C$3*'CPS Allocations'!O69","v":0},{"$f":"$C$3*'CPS Allocations'!P69","v":0},{"$f":"$C$3*'CPS Allocations'!Q69","v":0},{"$f":"$C$3*'CPS Allocations'!R69","v":0},0,0,0,0,0,0,0,0,0,0,0,0,0,0,0,0,0,0,0,0]
[{"$f":"CONCATENATE(B70,\" - \",C70)","v":"307 - DCYF"},"307","DCYF",{"$f":"SUM(E70:AL70)","v":188890.96291122294},{"$f":"$C$3*'CPS Allocations'!E70","v":0},{"$f":"$C$3*'CPS Allocations'!F70","v":0},{"$f":"$C$3*'CPS Allocations'!G70","v":0},{"$f":"$C$3*'CPS Allocations'!H70","v":0},{"$f":"$C$3*'CPS Allocations'!I70","v":0},{"$f":"$C$3*'CPS Allocations'!J70","v":188890.96291122294},{"$f":"$C$3*'CPS Allocations'!K70","v":0},{"$f":"$C$3*'CPS Allocations'!L70","v":0},{"$f":"$C$3*'CPS Allocations'!M70","v":0},{"$f":"$C$3*'CPS Allocations'!N70","v":0},{"$f":"$C$3*'CPS Allocations'!O70","v":0},{"$f":"$C$3*'CPS Allocations'!P70","v":0},{"$f":"$C$3*'CPS Allocations'!Q70","v":0},{"$f":"$C$3*'CPS Allocations'!R70","v":0},0,0,0,0,0,0,0,0,0,0,0,0,0,0,0,0,0,0,0,0]
["310 - Department of Corrections","310","Department of Corrections",0,{"$f":"$C$3*'CPS Allocations'!E71","v":0},{"$f":"$C$3*'CPS Allocations'!F71","v":0},{"$f":"$C$3*'CPS Allocations'!G71","v":0},{"$f":"$C$3*'CPS Allocations'!H71","v":0},{"$f":"$C$3*'CPS Allocations'!I71","v":0},{"$f":"$C$3*'CPS Allocations'!J71","v":0},{"$f":"$C$3*'CPS Allocations'!K71","v":0},{"$f":"$C$3*'CPS Allocations'!L71","v":0},{"$f":"$C$3*'CPS Allocations'!M71","v":0},{"$f":"$C$3*'CPS Allocations'!N71","v":0},{"$f":"$C$3*'CPS Allocations'!O71","v":0},{"$f":"$C$3*'CPS Allocations'!P71","v":0},{"$f":"$C$3*'CPS Allocations'!Q71","v":0},{"$f":"$C$3*'CPS Allocations'!R71","v":0},0,0,0,0,0,0,0,0,0,0,0,0,0,0,0,0,0,0,0,0]
["315 - Department of Services for the Blind","315","Department of Services for the Blind",0,{"$f":"$C$3*'CPS Allocations'!E72","v":0},{"$f":"$C$3*'CPS Allocations'!F72","v":0},{"$f":"$C$3*'CPS Allocations'!G72","v":0},{"$f":"$C$3*'CPS Allocations'!H72","v":0},{"$f":"$C$3*'CPS Allocations'!I72","v":0},{"$f":"$C$3*'CPS Allocations'!J72","v":0},{"$f":"$C$3*'CPS Allocations'!K72","v":0},{"$f":"$C$3*'CPS Allocations'!L72","v":0},{"$f":"$C$3*'CPS Allocations'!M72","v":0},{"$f":"$C$3*'CPS Allocations'!N72","v":0},{"$f":"$C$3*'CPS Allocations'!O72","v":0},{"$f":"$C$3*'CPS Allocations'!P72","v":0},{"$f":"$C$3*'CPS Allocations'!Q72","v":0},{"$f":"$C$3*'CPS Allocations'!R72","v":0},0,0,0,0,0,0,0,0,0,0,0,0,0,0,0,0,0,0,0,0]
["340 - Student Achievement Council","340","Student Achievement Council",0,{"$f":"$C$3*'CPS Allocations'!E73","v":0},{"$f":"$C$3*'CPS Allocations'!F73","v":0},{"$f":"$C$3*'CPS Allocations'!G73","v":0},{"$f":"$C$3*'CPS Allocations'!H73","v":0},{"$f":"$C$3*'CPS Allocations'!I73","v":0},{"$f":"$C$3*'CPS Allocations'!J73","v":0},{"$f":"$C$3*'CPS Allocations'!K73","v":0},{"$f":"$C$3*'CPS Allocations'!L73","v":0},{"$f":"$C$3*'CPS Allocations'!M73","v":0},{"$f":"$C$3*'CPS Allocations'!N73","v":0},{"$f":"$C$3*'CPS Allocations'!O73","v":0},{"$f":"$C$3*'CPS Allocations'!P73","v":0},{"$f":"$C$3*'CPS Allocations'!Q73","v":0},{"$f":"$C$3*'CPS Allocations'!R73","v":0},0,0,0,0,0,0,0,0,0,0,0,0,0,0,0,0,0,0,0,0]
["341 - Law Enforcement Officers' & Fire Fighters' Plan 2 Retirement Board","341","Law Enforcement Officers' & Fire Fighters' Plan 2 Retirement Board",0,{"$f":"$C$3*'CPS Allocations'!E74","v":0},{"$f":"$C$3*'CPS Allocations'!F74","v":0},{"$f":"$C$3*'CPS Allocations'!G74","v":0},{"$f":"$C$3*'CPS Allocations'!H74","v":0},{"$f":"$C$3*'CPS Allocations'!I74","v":0},{"$f":"$C$3*'CPS Allocations'!J74","v":0},{"$f":"$C$3*'CPS Allocations'!K74","v":0},{"$f":"$C$3*'CPS Allocations'!L74","v":0},{"$f":"$C$3*'CPS Allocations'!M74","v":0},{"$f":"$C$3*'CPS Allocations'!N74","v":0},{"$f":"$C$3*'CPS Allocations'!O74","v":0},{"$f":"$C$3*'CPS Allocations'!P74","v":0},{"$f":"$C$3*'CPS Allocations'!Q74","v":0},{"$f":"$C$3*'CPS Allocations'!R74","v":0},0,0,0,0,0,0,0,0,0,0,0,0,0,0,0,0,0,0,0,0]
["350 - Superintendent of Public Instruction","350","Superintendent of Public Instruction",279724.05700489995,{"$f":"$C$3*'CPS Allocations'!E75","v":0},{"$f":"$C$3*'CPS Allocations'!F75","v":0},{"$f":"$C$3*'CPS Allocations'!G75","v":0},{"$f":"$C$3*'CPS Allocations'!H75","v":0},{"$f":"$C$3*'CPS Allocations'!I75","v":0},{"$f":"$C$3*'CPS Allocations'!J75","v":0},{"$f":"$C$3*'CPS Allocations'!K75","v":0},{"$f":"$C$3*'CPS Allocations'!L75","v":0},{"$f":"$C$3*'CPS Allocations'!M75","v":0},{"$f":"$C$3*'CPS Allocations'!N75","v":0},{"$f":"$C$3*'CPS Allocations'!O75","v":0},{"$f":"$C$3*'CPS Allocations'!P75","v":279724.05700489995},{"$f":"$C$3*'CPS Allocations'!Q75","v":0},{"$f":"$C$3*'CPS Allocations'!R75","v":0},0,0,0,0,0,0,0,0,0,0,0,0,0,0,0,0,0,0,0,0]
["351 - State School For The Blind","351","State School For The Blind",0,{"$f":"$C$3*'CPS Allocations'!E76","v":0},{"$f":"$C$3*'CPS Allocations'!F76","v":0},{"$f":"$C$3*'CPS Allocations'!G76","v":0},{"$f":"$C$3*'CPS Allocations'!H76","v":0},{"$f":"$C$3*'CPS Allocations'!I76","v":0},{"$f":"$C$3*'CPS Allocations'!J76","v":0},{"$f":"$C$3*'CPS Allocations'!K76","v":0},{"$f":"$C$3*'CPS Allocations'!L76","v":0},{"$f":"$C$3*'CPS Allocations'!M76","v":0},{"$f":"$C$3*'CPS Allocations'!N76","v":0},{"$f":"$C$3*'CPS Allocations'!O76","v":0},{"$f":"$C$3*'CPS Allocations'!P76","v":0},{"$f":"$C$3*'CPS Allocations'!Q76","v":0},{"$f":"$C$3*'CPS Allocations'!R76","v":0},0,0,0,0,0,0,0,0,0,0,0,0,0,0,0,0,0,0,0,0]
["353 - State Center for Childhood Deafness and Hearing Loss","353","State Center for Childhood Deafness and Hearing Loss",0,{"$f":"$C$3*'CPS Allocations'!E77","v":0},{"$f":"$C$3*'CPS Allocations'!F77","v":0},{"$f":"$C$3*'CPS Allocations'!G77","v":0},{"$f":"$C$3*'CPS Allocations'!H77","v":0},{"$f":"$C$3*'CPS Allocations'!I77","v":0},{"$f":"$C$3*'CPS Allocations'!J77","v":0},{"$f":"$C$3*'CPS Allocations'!K77","v":0},{"$f":"$C$3*'CPS Allocations'!L77","v":0},{"$f":"$C$3*'CPS Allocations'!M77","v":0},{"$f":"$C$3*'CPS Allocations'!N77","v":0},{"$f":"$C$3*'CPS Allocations'!O77","v":0},{"$f":"$C$3*'CPS Allocations'!P77","v":0},{"$f":"$C$3*'CPS Allocations'!Q77","v":0},{"$f":"$C$3*'CPS Allocations'!R77","v":0},0,0,0,0,0,0,0,0,0,0,0,0,0,0,0,0,0,0,0,0]
["354 - Workforce Training and Education Coordinating Board","354","Workforce Training and Education Coordinating Board",0,{"$f":"$C$3*'CPS Allocations'!E78","v":0},{"$f":"$C$3*'CPS Allocations'!F78","v":0},{"$f":"$C$3*'CPS Allocations'!G78","v":0},{"$f":"$C$3*'CPS Allocations'!H78","v":0},{"$f":"$C$3*'CPS Allocations'!I78","v":0},{"$f":"$C$3*'CPS Allocations'!J78","v":0},{"$f":"$C$3*'CPS Allocations'!K78","v":0},{"$f":"$C$3*'CPS Allocations'!L78","v":0},{"$f":"$C$3*'CPS Allocations'!M78","v":0},{"$f":"$C$3*'CPS Allocations'!N78","v":0},{"$f":"$C$3*'CPS Allocations'!O78","v":0},{"$f":"$C$3*'CPS Allocations'!P78","v":0},{"$f":"$C$3*'CPS Allocations'!Q78","v":0},{"$f":"$C$3*'CPS Allocations'!R78","v":0},0,0,0,0,0,0,0,0,0,0,0,0,0,0,0,0,0,0,0,0]
["355 - Department of Archaeology and Historic Preservation","355","Department of Archaeology and Historic Preservation",0,{"$f":"$C$3*'CPS Allocations'!E79","v":0},{"$f":"$C$3*'CPS Allocations'!F79","v":0},{"$f":"$C$3*'CPS Allocations'!G79","v":0},{"$f":"$C$3*'CPS Allocations'!H79","v":0},{"$f":"$C$3*'CPS Allocations'!I79","v":0},{"$f":"$C$3*'CPS Allocations'!J79","v":0},{"$f":"$C$3*'CPS Allocations'!K79","v":0},{"$f":"$C$3*'CPS Allocations'!L79","v":0},{"$f":"$C$3*'CPS Allocations'!M79","v":0},{"$f":"$C$3*'CPS Allocations'!N79","v":0},{"$f":"$C$3*'CPS Allocations'!O79","v":0},{"$f":"$C$3*'CPS Allocations'!P79","v":0},{"$f":"$C$3*'CPS Allocations'!Q79","v":0},{"$f":"$C$3*'CPS Allocations'!R79","v":0},0,0,0,0,0,0,0,0,0,0,0,0,0,0,0,0,0,0,0,0]
["357 - Department of Early Learning","357","Department of Early Learning",0,{"$f":"$C$3*'CPS Allocations'!E80","v":0},{"$f":"$C$3*'CPS Allocations'!F80","v":0},{"$f":"$C$3*'CPS Allocations'!G80","v":0},{"$f":"$C$3*'CPS Allocations'!H80","v":0},{"$f":"$C$3*'CPS Allocations'!I80","v":0},{"$f":"$C$3*'CPS Allocations'!J80","v":0},{"$f":"$C$3*'CPS Allocations'!K80","v":0},{"$f":"$C$3*'CPS Allocations'!L80","v":0},{"$f":"$C$3*'CPS Allocations'!M80","v":0},{"$f":"$C$3*'CPS Allocations'!N80","v":0},{"$f":"$C$3*'CPS Allocations'!O80","v":0},{"$f":"$C$3*'CPS Allocations'!P80","v":0},{"$f":"$C$3*'CPS Allocations'!Q80","v":0},{"$f":"$C$3*'CPS Allocations'!R80","v":0},0,0,0,0,0,0,0,0,0,0,0,0,0,0,0,0,0,0,0,0]
["359 - WA Charter School Commission","359","WA Charter School Commission",0,{"$f":"$C$3*'CPS Allocations'!E81","v":0},{"$f":"$C$3*'CPS Allocations'!F81","v":0},{"$f":"$C$3*'CPS Allocations'!G81","v":0},{"$f":"$C$3*'CPS Allocations'!H81","v":0},{"$f":"$C$3*'CPS Allocations'!I81","v":0},{"$f":"$C$3*'CPS Allocations'!J81","v":0},{"$f":"$C$3*'CPS Allocations'!K81","v":0},{"$f":"$C$3*'CPS Allocations'!L81","v":0},{"$f":"$C$3*'CPS Allocations'!M81","v":0},{"$f":"$C$3*'CPS Allocations'!N81","v":0},{"$f":"$C$3*'CPS Allocations'!O81","v":0},{"$f":"$C$3*'CPS Allocations'!P81","v":0},{"$f":"$C$3*'CPS Allocations'!Q81","v":0},{"$f":"$C$3*'CPS Allocations'!R81","v":0},0,0,0,0,0,0,0,0,0,0,0,0,0,0,0,0,0,0,0,0]
["360 - University of Washington","360","University of Washington",0,{"$f":"$C$3*'CPS Allocations'!E82","v":0},{"$f":"$C$3*'CPS Allocations'!F82","v":0},{"$f":"$C$3*'CPS Allocations'!G82","v":0},{"$f":"$C$3*'CPS Allocations'!H82","v":0},{"$f":"$C$3*'CPS Allocations'!I82","v":0},{"$f":"$C$3*'CPS Allocations'!J82","v":0},{"$f":"$C$3*'CPS Allocations'!K82","v":0},{"$f":"$C$3*'CPS Allocations'!L82","v":0},{"$f":"$C$3*'CPS Allocations'!M82","v":0},{"$f":"$C$3*'CPS Allocations'!N82","v":0},{"$f":"$C$3*'CPS Allocations'!O82","v":0},{"$f":"$C$3*'CPS Allocations'!P82","v":0},{"$f":"$C$3*'CPS Allocations'!Q82","v":0},{"$f":"$C$3*'CPS Allocations'!R82","v":0},0,0,0,0,0,0,0,0,0,0,0,0,0,0,0,0,0,0,0,0]
["365 - Washington State University","365","Washington State University",0,{"$f":"$C$3*'CPS Allocations'!E83","v":0},{"$f":"$C$3*'CPS Allocations'!F83","v":0},{"$f":"$C$3*'CPS Allocations'!G83","v":0},{"$f":"$C$3*'CPS Allocations'!H83","v":0},{"$f":"$C$3*'CPS Allocations'!I83","v":0},{"$f":"$C$3*'CPS Allocations'!J83","v":0},{"$f":"$C$3*'CPS Allocations'!K83","v":0},{"$f":"$C$3*'CPS Allocations'!L83","v":0},{"$f":"$C$3*'CPS Allocations'!M83","v":0},{"$f":"$C$3*'CPS Allocations'!N83","v":0},{"$f":"$C$3*'CPS Allocations'!O83","v":0},{"$f":"$C$3*'CPS Allocations'!P83","v":0},{"$f":"$C$3*'CPS Allocations'!Q83","v":0},{"$f":"$C$3*'CPS Allocations'!R83","v":0},0,0,0,0,0,0,0,0,0,0,0,0,0,0,0,0,0,0,0,0]
["370 - Eastern Washington University","370","Eastern Washington University",0,{"$f":"$C$3*'CPS Allocations'!E84","v":0},{"$f":"$C$3*'CPS Allocations'!F84","v":0},{"$f":"$C$3*'CPS Allocations'!G84","v":0},{"$f":"$C$3*'CPS Allocations'!H84","v":0},{"$f":"$C$3*'CPS Allocations'!I84","v":0},{"$f":"$C$3*'CPS Allocations'!J84","v":0},{"$f":"$C$3*'CPS Allocations'!K84","v":0},{"$f":"$C$3*'CPS Allocations'!L84","v":0},{"$f":"$C$3*'CPS Allocations'!M84","v":0},{"$f":"$C$3*'CPS Allocations'!N84","v":0},{"$f":"$C$3*'CPS Allocations'!O84","v":0},{"$f":"$C$3*'CPS Allocations'!P84","v":0},{"$f":"$C$3*'CPS Allocations'!Q84","v":0},{"$f":"$C$3*'CPS Allocations'!R84","v":0},0,0,0,0,0,0,0,0,0,0,0,0,0,0,0,0,0,0,0,0]
["375 - Central Washington University","375","Central Washington University",0,{"$f":"$C$3*'CPS Allocations'!E85","v":0},{"$f":"$C$3*'CPS Allocations'!F85","v":0},{"$f":"$C$3*'CPS Allocations'!G85","v":0},{"$f":"$C$3*'CPS Allocations'!H85","v":0},{"$f":"$C$3*'CPS Allocations'!I85","v":0},{"$f":"$C$3*'CPS Allocations'!J85","v":0},{"$f":"$C$3*'CPS Allocations'!K85","v":0},{"$f":"$C$3*'CPS Allocations'!L85","v":0},{"$f":"$C$3*'CPS Allocations'!M85","v":0},{"$f":"$C$3*'CPS Allocations'!N85","v":0},{"$f":"$C$3*'CPS Allocations'!O85","v":0},{"$f":"$C$3*'CPS Allocations'!P85","v":0},{"$f":"$C$3*'CPS Allocations'!Q85","v":0},{"$f":"$C$3*'CPS Allocations'!R85","v":0},0,0,0,0,0,0,0,0,0,0,0,0,0,0,0,0,0,0,0,0]
["376 - The Evergreen State College","376","The Evergreen State College",0,{"$f":"$C$3*'CPS Allocations'!E86","v":0},{"$f":"$C$3*'CPS Allocations'!F86","v":0},{"$f":"$C$3*'CPS Allocations'!G86","v":0},{"$f":"$C$3*'CPS Allocations'!H86","v":0},{"$f":"$C$3*'CPS Allocations'!I86","v":0},{"$f":"$C$3*'CPS Allocations'!J86","v":0},{"$f":"$C$3*'CPS Allocations'!K86","v":0},{"$f":"$C$3*'CPS Allocations'!L86","v":0},{"$f":"$C$3*'CPS Allocations'!M86","v":0},{"$f":"$C$3*'CPS Allocations'!N86","v":0},{"$f":"$C$3*'CPS Allocations'!O86","v":0},{"$f":"$C$3*'CPS Allocations'!P86","v":0},{"$f":"$C$3*'CPS Allocations'!Q86","v":0},{"$f":"$C$3*'CPS Allocations'!R86","v":0},0,0,0,0,0,0,0,0,0,0,0,0,0,0,0,0,0,0,0,0]
["380 - Western Washington University","380","Western Washington University",0,{"$f":"$C$3*'CPS Allocations'!E87","v":0},{"$f":"$C$3*'CPS Allocations'!F87","v":0},{"$f":"$C$3*'CPS Allocations'!G87","v":0},{"$f":"$C$3*'CPS Allocations'!H87","v":0},{"$f":"$C$3*'CPS Allocations'!I87","v":0},{"$f":"$C$3*'CPS Allocations'!J87","v":0},{"$f":"$C$3*'CPS Allocations'!K87","v":0},{"$f":"$C$3*'CPS Allocations'!L87","v":0},{"$f":"$C$3*'CPS Allocations'!M87","v":0},{"$f":"$C$3*'CPS Allocations'!N87","v":0},{"$f":"$C$3*'CPS Allocations'!O87","v":0},{"$f":"$C$3*'CPS Allocations'!P87","v":0},{"$f":"$C$3*'CPS Allocations'!Q87","v":0},{"$f":"$C$3*'CPS Allocations'!R87","v":0},0,0,0,0,0,0,0,0,0,0,0,0,0,0,0,0,0,0,0,0]
["387 - Washington State Arts Commission","387","Washington State Arts Commission",0,{"$f":"$C$3*'CPS Allocations'!E88","v":0},{"$f":"$C$3*'CPS Allocations'!F88","v":0},{"$f":"$C$3*'CPS Allocations'!G88","v":0},{"$f":"$C$3*'CPS Allocations'!H88","v":0},{"$f":"$C$3*'CPS Allocations'!I88","v":0},{"$f":"$C$3*'CPS Allocations'!J88","v":0},{"$f":"$C$3*'CPS Allocations'!K88","v":0},{"$f":"$C$3*'CPS Allocations'!L88","v":0},{"$f":"$C$3*'CPS Allocations'!M88","v":0},{"$f":"$C$3*'CPS Allocations'!N88","v":0},{"$f":"$C$3*'CPS Allocations'!O88","v":0},{"$f":"$C$3*'CPS Allocations'!P88","v":0},{"$f":"$C$3*'CPS Allocations'!Q88","v":0},{"$f":"$C$3*'CPS Allocations'!R88","v":0},0,0,0,0,0,0,0,0,0,0,0,0,0,0,0,0,0,0,0,0]
["390 - Washington State Historical Society","390","Washington State Historical Society",0,{"$f":"$C$3*'CPS Allocations'!E89","v":0},{"$f":"$C$3*'CPS Allocations'!F89","v":0},{"$f":"$C$3*'CPS Allocations'!G89","v":0},{"$f":"$C$3*'CPS Allocations'!H89","v":0},{"$f":"$C$3*'CPS Allocations'!I89","v":0},{"$f":"$C$3*'CPS Allocations'!J89","v":0},{"$f":"$C$3*'CPS Allocations'!K89","v":0},{"$f":"$C$3*'CPS Allocations'!L89","v":0},{"$f":"$C$3*'CPS Allocations'!M89","v":0},{"$f":"$C$3*'CPS Allocations'!N89","v":0},{"$f":"$C$3*'CPS Allocations'!O89","v":0},{"$f":"$C$3*'CPS Allocations'!P89","v":0},{"$f":"$C$3*'CPS Allocations'!Q89","v":0},{"$f":"$C$3*'CPS Allocations'!R89","v":0},0,0,0,0,0,0,0,0,0,0,0,0,0,0,0,0,0,0,0,0]
["395 - Eastern Washington State Historical Society","395","Eastern Washington State Historical Society",0,{"$f":"$C$3*'CPS Allocations'!E90","v":0},{"$f":"$C$3*'CPS Allocations'!F90","v":0},{"$f":"$C$3*'CPS Allocations'!G90","v":0},{"$f":"$C$3*'CPS Allocations'!H90","v":0},{"$f":"$C$3*'CPS Allocations'!I90","v":0},{"$f":"$C$3*'CPS Allocations'!J90","v":0},{"$f":"$C$3*'CPS Allocations'!K90","v":0},{"$f":"$C$3*'CPS Allocations'!L90","v":0},{"$f":"$C$3*'CPS Allocations'!M90","v":0},{"$f":"$C$3*'CPS Allocations'!N90","v":0},{"$f":"$C$3*'CPS Allocations'!O90","v":0},{"$f":"$C$3*'CPS Allocations'!P90","v":0},{"$f":"$C$3*'CPS Allocations'!Q90","v":0},{"$f":"$C$3*'CPS Allocations'!R90","v":0},0,0,0,0,0,0,0,0,0,0,0,0,0,0,0,0,0,0,0,0]
["405 - Department of Transportation","405","Department of Transportation",523390.02416664275,{"$f":"$C$3*'CPS Allocations'!E91","v":0},{"$f":"$C$3*'CPS Allocations'!F91","v":0},{"$f":"$C$3*'CPS Allocations'!G91","v":0},{"$f":"$C$3*'CPS Allocations'!H91","v":0},{"$f":"$C$3*'CPS Allocations'!I91","v":0},{"$f":"$C$3*'CPS Allocations'!J91","v":0},{"$f":"$C$3*'CPS Allocations'!K91","v":0},{"$f":"$C$3*'CPS Allocations'!L91","v":0},{"$f":"$C$3*'CPS Allocations'!M91","v":0},{"$f":"$C$3*'CPS Allocations'!N91","v":523390.02416664275},{"$f":"$C$3*'CPS Allocations'!O91","v":0},{"$f":"$C$3*'CPS Allocations'!P91","v":0},{"$f":"$C$3*'CPS Allocations'!Q91","v":0},{"$f":"$C$3*'CPS Allocations'!R91","v":0},0,0,0,0,0,0,0,0,0,0,0,0,0,0,0,0,0,0,0,0]
["406 - County Road Administration Board","406","County Road Administration Board",0,{"$f":"$C$3*'CPS Allocations'!E92","v":0},{"$f":"$C$3*'CPS Allocations'!F92","v":0},{"$f":"$C$3*'CPS Allocations'!G92","v":0},{"$f":"$C$3*'CPS Allocations'!H92","v":0},{"$f":"$C$3*'CPS Allocations'!I92","v":0},{"$f":"$C$3*'CPS Allocations'!J92","v":0},{"$f":"$C$3*'CPS Allocations'!K92","v":0},{"$f":"$C$3*'CPS Allocations'!L92","v":0},{"$f":"$C$3*'CPS Allocations'!M92","v":0},{"$f":"$C$3*'CPS Allocations'!N92","v":0},{"$f":"$C$3*'CPS Allocations'!O92","v":0},{"$f":"$C$3*'CPS Allocations'!P92","v":0},{"$f":"$C$3*'CPS Allocations'!Q92","v":0},{"$f":"$C$3*'CPS Allocations'!R92","v":0},0,0,0,0,0,0,0,0,0,0,0,0,0,0,0,0,0,0,0,0]
["407 - Transportation Improvement Board","407","Transportation Improvement Board",0,{"$f":"$C$3*'CPS Allocations'!E93","v":0},{"$f":"$C$3*'CPS Allocations'!F93","v":0},{"$f":"$C$3*'CPS Allocations'!G93","v":0},{"$f":"$C$3*'CPS Allocations'!H93","v":0},{"$f":"$C$3*'CPS Allocations'!I93","v":0},{"$f":"$C$3*'CPS Allocations'!J93","v":0},{"$f":"$C$3*'CPS Allocations'!K93","v":0},{"$f":"$C$3*'CPS Allocations'!L93","v":0},{"$f":"$C$3*'CPS Allocations'!M93","v":0},{"$f":"$C$3*'CPS Allocations'!N93","v":0},{"$f":"$C$3*'CPS Allocations'!O93","v":0},{"$f":"$C$3*'CPS Allocations'!P93","v":0},{"$f":"$C$3*'CPS Allocations'!Q93","v":0},{"$f":"$C$3*'CPS Allocations'!R93","v":0},0,0,0,0,0,0,0,0,0,0,0,0,0,0,0,0,0,0,0,0]
["410 - Transportation Commission","410","Transportation Commission",0,{"$f":"$C$3*'CPS Allocations'!E94","v":0},{"$f":"$C$3*'CPS Allocations'!F94","v":0},{"$f":"$C$3*'CPS Allocations'!G94","v":0},{"$f":"$C$3*'CPS Allocations'!H94","v":0},{"$f":"$C$3*'CPS Allocations'!I94","v":0},{"$f":"$C$3*'CPS Allocations'!J94","v":0},{"$f":"$C$3*'CPS Allocations'!K94","v":0},{"$f":"$C$3*'CPS Allocations'!L94","v":0},{"$f":"$C$3*'CPS Allocations'!M94","v":0},{"$f":"$C$3*'CPS Allocations'!N94","v":0},{"$f":"$C$3*'CPS Allocations'!O94","v":0},{"$f":"$C$3*'CPS Allocations'!P94","v":0},{"$f":"$C$3*'CPS Allocations'!Q94","v":0},{"$f":"$C$3*'CPS Allocations'!R94","v":0},0,0,0,0,0,0,0,0,0,0,0,0,0,0,0,0,0,0,0,0]
["411 - Freight Mobility Strategic Investment Board","411","Freight Mobility Strategic Investment Board",0,{"$f":"$C$3*'CPS Allocations'!E95","v":0},{"$f":"$C$3*'CPS Allocations'!F95","v":0},{"$f":"$C$3*'CPS Allocations'!G95","v":0},{"$f":"$C$3*'CPS Allocations'!H95","v":0},{"$f":"$C$3*'CPS Allocations'!I95","v":0},{"$f":"$C$3*'CPS Allocations'!J95","v":0},{"$f":"$C$3*'CPS Allocations'!K95","v":0},{"$f":"$C$3*'CPS Allocations'!L95","v":0},{"$f":"$C$3*'CPS Allocations'!M95","v":0},{"$f":"$C$3*'CPS Allocations'!N95","v":0},{"$f":"$C$3*'CPS Allocations'!O95","v":0},{"$f":"$C$3*'CPS Allocations'!P95","v":0},{"$f":"$C$3*'CPS Allocations'!Q95","v":0},{"$f":"$C$3*'CPS Allocations'!R95","v":0},0,0,0,0,0,0,0,0,0,0,0,0,0,0,0,0,0,0,0,0]
["460 - Columbia River Gorge Commission","460","Columbia River Gorge Commission",0,{"$f":"$C$3*'CPS Allocations'!E96","v":0},{"$f":"$C$3*'CPS Allocations'!F96","v":0},{"$f":"$C$3*'CPS Allocations'!G96","v":0},{"$f":"$C$3*'CPS Allocations'!H96","v":0},{"$f":"$C$3*'CPS Allocations'!I96","v":0},{"$f":"$C$3*'CPS Allocations'!J96","v":0},{"$f":"$C$3*'CPS Allocations'!K96","v":0},{"$f":"$C$3*'CPS Allocations'!L96","v":0},{"$f":"$C$3*'CPS Allocations'!M96","v":0},{"$f":"$C$3*'CPS Allocations'!N96","v":0},{"$f":"$C$3*'CPS Allocations'!O96","v":0},{"$f":"$C$3*'CPS Allocations'!P96","v":0},{"$f":"$C$3*'CPS Allocations'!Q96","v":0},{"$f":"$C$3*'CPS Allocations'!R96","v":0},0,0,0,0,0,0,0,0,0,0,0,0,0,0,0,0,0,0,0,0]
["461 - Department of Ecology","461","Department of Ecology",0,{"$f":"$C$3*'CPS Allocations'!E97","v":0},{"$f":"$C$3*'CPS Allocations'!F97","v":0},{"$f":"$C$3*'CPS Allocations'!G97","v":0},{"$f":"$C$3*'CPS Allocations'!H97","v":0},{"$f":"$C$3*'CPS Allocations'!I97","v":0},{"$f":"$C$3*'CPS Allocations'!J97","v":0},{"$f":"$C$3*'CPS Allocations'!K97","v":0},{"$f":"$C$3*'CPS Allocations'!L97","v":0},{"$f":"$C$3*'CPS Allocations'!M97","v":0},{"$f":"$C$3*'CPS Allocations'!N97","v":0},{"$f":"$C$3*'CPS Allocations'!O97","v":0},{"$f":"$C$3*'CPS Allocations'!P97","v":0},{"$f":"$C$3*'CPS Allocations'!Q97","v":0},{"$f":"$C$3*'CPS Allocations'!R97","v":0},0,0,0,0,0,0,0,0,0,0,0,0,0,0,0,0,0,0,0,0]
["462 - Pollution Liability Insurance Program","462","Pollution Liability Insurance Program",0,{"$f":"$C$3*'CPS Allocations'!E98","v":0},{"$f":"$C$3*'CPS Allocations'!F98","v":0},{"$f":"$C$3*'CPS Allocations'!G98","v":0},{"$f":"$C$3*'CPS Allocations'!H98","v":0},{"$f":"$C$3*'CPS Allocations'!I98","v":0},{"$f":"$C$3*'CPS Allocations'!J98","v":0},{"$f":"$C$3*'CPS Allocations'!K98","v":0},{"$f":"$C$3*'CPS Allocations'!L98","v":0},{"$f":"$C$3*'CPS Allocations'!M98","v":0},{"$f":"$C$3*'CPS Allocations'!N98","v":0},{"$f":"$C$3*'CPS Allocations'!O98","v":0},{"$f":"$C$3*'CPS Allocations'!P98","v":0},{"$f":"$C$3*'CPS Allocations'!Q98","v":0},{"$f":"$C$3*'CPS Allocations'!R98","v":0},0,0,0,0,0,0,0,0,0,0,0,0,0,0,0,0,0,0,0,0]
["465 - State Parks and Recreation Commission","465","State Parks and Recreation Commission",0,{"$f":"$C$3*'CPS Allocations'!E99","v":0},{"$f":"$C$3*'CPS Allocations'!F99","v":0},{"$f":"$C$3*'CPS Allocations'!G99","v":0},{"$f":"$C$3*'CPS Allocations'!H99","v":0},{"$f":"$C$3*'CPS Allocations'!I99","v":0},{"$f":"$C$3*'CPS Allocations'!J99","v":0},{"$f":"$C$3*'CPS Allocations'!K99","v":0},{"$f":"$C$3*'CPS Allocations'!L99","v":0},{"$f":"$C$3*'CPS Allocations'!M99","v":0},{"$f":"$C$3*'CPS Allocations'!N99","v":0},{"$f":"$C$3*'CPS Allocations'!O99","v":0},{"$f":"$C$3*'CPS Allocations'!P99","v":0},{"$f":"$C$3*'CPS Allocations'!Q99","v":0},{"$f":"$C$3*'CPS Allocations'!R99","v":0},0,0,0,0,0,0,0,0,0,0,0,0,0,0,0,0,0,0,0,0]
["467 - Recreation and Conservation Funding Board","467","Recreation and Conservation Funding Board",28170.822111111163,{"$f":"$C$3*'CPS Allocations'!E100","v":0},{"$f":"$C$3*'CPS Allocations'!F100","v":0},{"$f":"$C$3*'CPS Allocations'!G100","v":0},{"$f":"$C$3*'CPS Allocations'!H100","v":0},{"$f":"$C$3*'CPS Allocations'!I100","v":0},{"$f":"$C$3*'CPS Allocations'!J100","v":0},{"$f":"$C$3*'CPS Allocations'!K100","v":0},{"$f":"$C$3*'CPS Allocations'!L100","v":28170.822111111163},{"$f":"$C$3*'CPS Allocations'!M100","v":0},{"$f":"$C$3*'CPS Allocations'!N100","v":0},{"$f":"$C$3*'CPS Allocations'!O100","v":0},{"$f":"$C$3*'CPS Allocations'!P100","v":0},{"$f":"$C$3*'CPS Allocations'!Q100","v":0},{"$f":"$C$3*'CPS Allocations'!R100","v":0},0,0,0,0,0,0,0,0,0,0,0,0,0,0,0,0,0,0,0,0]
["468 - Environmental and Land Use Hearings Office","468","Environmental and Land Use Hearings Office",0,{"$f":"$C$3*'CPS Allocations'!E101","v":0},{"$f":"$C$3*'CPS Allocations'!F101","v":0},{"$f":"$C$3*'CPS Allocations'!G101","v":0},{"$f":"$C$3*'CPS Allocations'!H101","v":0},{"$f":"$C$3*'CPS Allocations'!I101","v":0},{"$f":"$C$3*'CPS Allocations'!J101","v":0},{"$f":"$C$3*'CPS Allocations'!K101","v":0},{"$f":"$C$3*'CPS Allocations'!L101","v":0},{"$f":"$C$3*'CPS Allocations'!M101","v":0},{"$f":"$C$3*'CPS Allocations'!N101","v":0},{"$f":"$C$3*'CPS Allocations'!O101","v":0},{"$f":"$C$3*'CPS Allocations'!P101","v":0},{"$f":"$C$3*'CPS Allocations'!Q101","v":0},{"$f":"$C$3*'CPS Allocations'!R101","v":0},0,0,0,0,0,0,0,0,0,0,0,0,0,0,0,0,0,0,0,0]
["471 - State Conservation Commission","471","State Conservation Commission",0,{"$f":"$C$3*'CPS Allocations'!E102","v":0},{"$f":"$C$3*'CPS Allocations'!F102","v":0},{"$f":"$C$3*'CPS Allocations'!G102","v":0},{"$f":"$C$3*'CPS Allocations'!H102","v":0},{"$f":"$C$3*'CPS Allocations'!I102","v":0},{"$f":"$C$3*'CPS Allocations'!J102","v":0},{"$f":"$C$3*'CPS Allocations'!K102","v":0},{"$f":"$C$3*'CPS Allocations'!L102","v":0},{"$f":"$C$3*'CPS Allocations'!M102","v":0},{"$f":"$C$3*'CPS Allocations'!N102","v":0},{"$f":"$C$3*'CPS Allocations'!O102","v":0},{"$f":"$C$3*'CPS Allocations'!P102","v":0},{"$f":"$C$3*'CPS Allocations'!Q102","v":0},{"$f":"$C$3*'CPS Allocations'!R102","v":0},0,0,0,0,0,0,0,0,0,0,0,0,0,0,0,0,0,0,0,0]
["477 - Department of Fish and Wildlife","477","Department of Fish and Wildlife",335486.48806222097,{"$f":"$C$3*'CPS Allocations'!E103","v":0},{"$f":"$C$3*'CPS Allocations'!F103","v":0},{"$f":"$C$3*'CPS Allocations'!G103","v":0},{"$f":"$C$3*'CPS Allocations'!H103","v":0},{"$f":"$C$3*'CPS Allocations'!I103","v":0},{"$f":"$C$3*'CPS Allocations'!J103","v":0},{"$f":"$C$3*'CPS Allocations'!K103","v":0},{"$f":"$C$3*'CPS Allocations'!L103","v":335486.48806222097},{"$f":"$C$3*'CPS Allocations'!M103","v":0},{"$f":"$C$3*'CPS Allocations'!N103","v":0},{"$f":"$C$3*'CPS Allocations'!O103","v":0},{"$f":"$C$3*'CPS Allocations'!P103","v":0},{"$f":"$C$3*'CPS Allocations'!Q103","v":0},{"$f":"$C$3*'CPS Allocations'!R103","v":0},0,0,0,0,0,0,0,0,0,0,0,0,0,0,0,0,0,0,0,0]
["478 - Puget Sound Partnership","478","Puget Sound Partnership",0,{"$f":"$C$3*'CPS Allocations'!E104","v":0},{"$f":"$C$3*'CPS Allocations'!F104","v":0},{"$f":"$C$3*'CPS Allocations'!G104","v":0},{"$f":"$C$3*'CPS Allocations'!H104","v":0},{"$f":"$C$3*'CPS Allocations'!I104","v":0},{"$f":"$C$3*'CPS Allocations'!J104","v":0},{"$f":"$C$3*'CPS Allocations'!K104","v":0},{"$f":"$C$3*'CPS Allocations'!L104","v":0},{"$f":"$C$3*'CPS Allocations'!M104","v":0},{"$f":"$C$3*'CPS Allocations'!N104","v":0},{"$f":"$C$3*'CPS Allocations'!O104","v":0},{"$f":"$C$3*'CPS Allocations'!P104","v":0},{"$f":"$C$3*'CPS Allocations'!Q104","v":0},{"$f":"$C$3*'CPS Allocations'!R104","v":0},0,0,0,0,0,0,0,0,0,0,0,0,0,0,0,0,0,0,0,0]
["490 - Department of Natural Resources","490","Department of Natural Resources",363324.62161993835,{"$f":"$C$3*'CPS Allocations'!E105","v":0},{"$f":"$C$3*'CPS Allocations'!F105","v":0},{"$f":"$C$3*'CPS Allocations'!G105","v":0},{"$f":"$C$3*'CPS Allocations'!H105","v":0},{"$f":"$C$3*'CPS Allocations'!I105","v":0},{"$f":"$C$3*'CPS Allocations'!J105","v":0},{"$f":"$C$3*'CPS Allocations'!K105","v":0},{"$f":"$C$3*'CPS Allocations'!L105","v":363324.62161993835},{"$f":"$C$3*'CPS Allocations'!M105","v":0},{"$f":"$C$3*'CPS Allocations'!N105","v":0},{"$f":"$C$3*'CPS Allocations'!O105","v":0},{"$f":"$C$3*'CPS Allocations'!P105","v":0},{"$f":"$C$3*'CPS Allocations'!Q105","v":0},{"$f":"$C$3*'CPS Allocations'!R105","v":0},0,0,0,0,0,0,0,0,0,0,0,0,0,0,0,0,0,0,0,0]
["495 - Department of Agriculture","495","Department of Agriculture",114758.4033782028,{"$f":"$C$3*'CPS Allocations'!E106","v":0},{"$f":"$C$3*'CPS Allocations'!F106","v":0},{"$f":"$C$3*'CPS Allocations'!G106","v":0},{"$f":"$C$3*'CPS Allocations'!H106","v":0},{"$f":"$C$3*'CPS Allocations'!I106","v":0},{"$f":"$C$3*'CPS Allocations'!J106","v":0},{"$f":"$C$3*'CPS Allocations'!K106","v":0},{"$f":"$C$3*'CPS Allocations'!L106","v":114758.4033782028},{"$f":"$C$3*'CPS Allocations'!M106","v":0},{"$f":"$C$3*'CPS Allocations'!N106","v":0},{"$f":"$C$3*'CPS Allocations'!O106","v":0},{"$f":"$C$3*'CPS Allocations'!P106","v":0},{"$f":"$C$3*'CPS Allocations'!Q106","v":0},{"$f":"$C$3*'CPS Allocations'!R106","v":0},0,0,0,0,0,0,0,0,0,0,0,0,0,0,0,0,0,0,0,0]
["540 - Employment Security Department","540","Employment Security Department",264905.54637767718,{"$f":"$C$3*'CPS Allocations'!E107","v":0},{"$f":"$C$3*'CPS Allocations'!F107","v":0},{"$f":"$C$3*'CPS Allocations'!G107","v":0},{"$f":"$C$3*'CPS Allocations'!H107","v":0},{"$f":"$C$3*'CPS Allocations'!I107","v":0},{"$f":"$C$3*'CPS Allocations'!J107","v":0},{"$f":"$C$3*'CPS Allocations'!K107","v":0},{"$f":"$C$3*'CPS Allocations'!L107","v":0},{"$f":"$C$3*'CPS Allocations'!M107","v":264905.54637767718},{"$f":"$C$3*'CPS Allocations'!N107","v":0},{"$f":"$C$3*'CPS Allocations'!O107","v":0},{"$f":"$C$3*'CPS Allocations'!P107","v":0},{"$f":"$C$3*'CPS Allocations'!Q107","v":0},{"$f":"$C$3*'CPS Allocations'!R107","v":0},0,0,0,0,0,0,0,0,0,0,0,0,0,0,0,0,0,0,0,0]
["699 - Community Colleges","699","Community Colleges",0,{"$f":"$C$3*'CPS Allocations'!E108","v":0},{"$f":"$C$3*'CPS Allocations'!F108","v":0},{"$f":"$C$3*'CPS Allocations'!G108","v":0},{"$f":"$C$3*'CPS Allocations'!H108","v":0},{"$f":"$C$3*'CPS Allocations'!I108","v":0},{"$f":"$C$3*'CPS Allocations'!J108","v":0},{"$f":"$C$3*'CPS Allocations'!K108","v":0},{"$f":"$C$3*'CPS Allocations'!L108","v":0},{"$f":"$C$3*'CPS Allocations'!M108","v":0},{"$f":"$C$3*'CPS Allocations'!N108","v":0},{"$f":"$C$3*'CPS Allocations'!O108","v":0},{"$f":"$C$3*'CPS Allocations'!P108","v":0},{"$f":"$C$3*'CPS Allocations'!Q108","v":0},{"$f":"$C$3*'CPS Allocations'!R108","v":0},0,0,0,0,0,0,0,0,0,0,0,0,0,0,0,0,0,0,0,0]
["TOTAL  - All Agencies",null,"Building Total",{"$f":"SUM(D5:D108)","v":4213000},{"$f":"SUM(E5:E108)","v":92483.827679217575},{"$f":"SUM(F5:F108)","v":94055.122897224748},405179.43852234306,68329.322309274648,423160.69237421011,709066.16253723693,137001.86432039581,841740.33517147321,264905.54637767718,523390.02416664275,157617.92774464242,279724.05700489995,153330.5416357432,63015.13725901796,0,0,0,0,0,0,0,0,0,0,0,0,0,0,0,0,0,0,0,0]
[null,null,null,0]

{"sheet":"CPS Dollars FY23","index":22,"n_rows":110,"n_cols":38,"rows_kept":110,"cut":false,"hidden":true,"merged":[[2,3,3,3]]}
[null,null,null,"CPS Weighting:",1,1,2.39,2.39,2,2.39,2.39,2,2.39,2.39,2.39,2.39,2.39,2.39]
[null,null,null,null,"Olympia","Olympia","Olympia","Olympia","Olympia","Olympia","Olympia","Olympia","Olympia","Olympia","Olympia","Olympia","Olympia","Olympia","Tumwater","Tumwater",null,null,"Vacant",null,null,"Vacant",null,null,null,null,null,null,"OTC","OTC","OTC","OTC","OTC","OTC"]
[null,"CSM Amount",4213999,"Total","F6121","F6122","F6123","F6124","F6125","F6126","F6127","F6129","F612A","F612C","F612E","F612H","F612J","F612K","F6131","F6132","F6133","F6134","F6137","F613D","F613E","F613F","F613G","F613H","F613i","F613K","F613L","F613M","F6141","F6142","F6143","F6144","F614G","F6146"]
[null,"Agency #","Agency",null,"Cherberg","O'Brien","Legislative","Pritchard","HLB","OB2","Archives","NRB","Emp Sec","Transportation","Insurance","Old Cap","TOJ","Newhouse","Modular Bldg","Isabella Bush","1007 Washington","120 E Union Avenue","Conservatory","Capital Court","James Dolliver Building","Undeveloped Properties","1068 WA Street SE (ST Farm)","232 Perry Street","208 11th Avenue SE (Pro Arts)","Press Houses Ayer(White); Carlyon(Blue)","Visitor Center","Helen Sommers","Kelso Building","Yakima Building","Alaska Street","Tacoma Rhodes","Tacoma Rhodes Garage","North Cascades Gateway Center (NCGC)"]
[{"$f":"CONCATENATE(B5,\" - \",C5)","v":"011 - House of Representatives"},"011","House of Representatives",{"$f":"SUM(E5:AL5)","v":223685.02933449944},{"$f":"$C$3*'CPS Allocations'!E5","v":0},{"$f":"$C$3*'CPS Allocations'!F5","v":94077.425548013809},{"$f":"$C$3*'CPS Allocations'!G5","v":129607.60378648565},{"$f":"$C$3*'CPS Allocations'!H5","v":0},{"$f":"$C$3*'CPS Allocations'!I5","v":0},{"$f":"$C$3*'CPS Allocations'!J5","v":0},{"$f":"$C$3*'CPS Allocations'!K5","v":0},{"$f":"$C$3*'CPS Allocations'!L5","v":0},{"$f":"$C$3*'CPS Allocations'!M5","v":0},{"$f":"$C$3*'CPS Allocations'!N5","v":0},{"$f":"$C$3*'CPS Allocations'!O5","v":0},{"$f":"$C$3*'CPS Allocations'!P5","v":0},{"$f":"$C$3*'CPS Allocations'!Q5","v":0},{"$f":"$C$3*'CPS Allocations'!R5","v":0},0,0,0,0,0,0,0,0,0,0,0,0,0,0,0,0,0,0,0,0]
[{"$f":"CONCATENATE(B6,\" - \",C6)","v":"012 - Senate"},"012","Senate",{"$f":"SUM(E6:AL6)","v":256535.01720225532},{"$f":"$C$3*'CPS Allocations'!E6","v":92505.757739471912},{"$f":"$C$3*'CPS Allocations'!F6","v":0},{"$f":"$C$3*'CPS Allocations'!G6","v":100999.17985339237},{"$f":"$C$3*'CPS Allocations'!H6","v":0},{"$f":"$C$3*'CPS Allocations'!I6","v":0},{"$f":"$C$3*'CPS Allocations'!J6","v":0},{"$f":"$C$3*'CPS Allocations'!K6","v":0},{"$f":"$C$3*'CPS Allocations'!L6","v":0},{"$f":"$C$3*'CPS Allocations'!M6","v":0},{"$f":"$C$3*'CPS Allocations'!N6","v":0},{"$f":"$C$3*'CPS Allocations'!O6","v":0},{"$f":"$C$3*'CPS Allocations'!P6","v":0},{"$f":"$C$3*'CPS Allocations'!Q6","v":0},{"$f":"$C$3*'CPS Allocations'!R6","v":63030.079609391032},0,0,0,0,0,0,0,0,0,0,0,0,0,0,0,0,0,0,0,0]
["013 - Joint Transportation Committee","013","Joint Transportation Committee",0,{"$f":"$C$3*'CPS Allocations'!E7","v":0},{"$f":"$C$3*'CPS Allocations'!F7","v":0},{"$f":"$C$3*'CPS Allocations'!G7","v":0},{"$f":"$C$3*'CPS Allocations'!H7","v":0},{"$f":"$C$3*'CPS Allocations'!I7","v":0},{"$f":"$C$3*'CPS Allocations'!J7","v":0},{"$f":"$C$3*'CPS Allocations'!K7","v":0},{"$f":"$C$3*'CPS Allocations'!L7","v":0},{"$f":"$C$3*'CPS Allocations'!M7","v":0},{"$f":"$C$3*'CPS Allocations'!N7","v":0},{"$f":"$C$3*'CPS Allocations'!O7","v":0},{"$f":"$C$3*'CPS Allocations'!P7","v":0},{"$f":"$C$3*'CPS Allocations'!Q7","v":0},{"$f":"$C$3*'CPS Allocations'!R7","v":0},0,0,0,0,0,0,0,0,0,0,0,0,0,0,0,0,0,0,0,0]
["014 - Joint Legislative Audit and Review Committee","014","Joint Legislative Audit and Review Committee",0,{"$f":"$C$3*'CPS Allocations'!E8","v":0},{"$f":"$C$3*'CPS Allocations'!F8","v":0},{"$f":"$C$3*'CPS Allocations'!G8","v":0},{"$f":"$C$3*'CPS Allocations'!H8","v":0},{"$f":"$C$3*'CPS Allocations'!I8","v":0},{"$f":"$C$3*'CPS Allocations'!J8","v":0},{"$f":"$C$3*'CPS Allocations'!K8","v":0},{"$f":"$C$3*'CPS Allocations'!L8","v":0},{"$f":"$C$3*'CPS Allocations'!M8","v":0},{"$f":"$C$3*'CPS Allocations'!N8","v":0},{"$f":"$C$3*'CPS Allocations'!O8","v":0},{"$f":"$C$3*'CPS Allocations'!P8","v":0},{"$f":"$C$3*'CPS Allocations'!Q8","v":0},{"$f":"$C$3*'CPS Allocations'!R8","v":0},0,0,0,0,0,0,0,0,0,0,0,0,0,0,0,0,0,0,0,0]
["020 - Legislative Evaluation and Accountability Program Committee","020","Legislative Evaluation and Accountability Program Committee",0,{"$f":"$C$3*'CPS Allocations'!E9","v":0},{"$f":"$C$3*'CPS Allocations'!F9","v":0},{"$f":"$C$3*'CPS Allocations'!G9","v":0},{"$f":"$C$3*'CPS Allocations'!H9","v":0},{"$f":"$C$3*'CPS Allocations'!I9","v":0},{"$f":"$C$3*'CPS Allocations'!J9","v":0},{"$f":"$C$3*'CPS Allocations'!K9","v":0},{"$f":"$C$3*'CPS Allocations'!L9","v":0},{"$f":"$C$3*'CPS Allocations'!M9","v":0},{"$f":"$C$3*'CPS Allocations'!N9","v":0},{"$f":"$C$3*'CPS Allocations'!O9","v":0},{"$f":"$C$3*'CPS Allocations'!P9","v":0},{"$f":"$C$3*'CPS Allocations'!Q9","v":0},{"$f":"$C$3*'CPS Allocations'!R9","v":0},0,0,0,0,0,0,0,0,0,0,0,0,0,0,0,0,0,0,0,0]
["035 - Office of the State Actuary","035","Office of the State Actuary",0,{"$f":"$C$3*'CPS Allocations'!E10","v":0},{"$f":"$C$3*'CPS Allocations'!F10","v":0},{"$f":"$C$3*'CPS Allocations'!G10","v":0},{"$f":"$C$3*'CPS Allocations'!H10","v":0},{"$f":"$C$3*'CPS Allocations'!I10","v":0},{"$f":"$C$3*'CPS Allocations'!J10","v":0},{"$f":"$C$3*'CPS Allocations'!K10","v":0},{"$f":"$C$3*'CPS Allocations'!L10","v":0},{"$f":"$C$3*'CPS Allocations'!M10","v":0},{"$f":"$C$3*'CPS Allocations'!N10","v":0},{"$f":"$C$3*'CPS Allocations'!O10","v":0},{"$f":"$C$3*'CPS Allocations'!P10","v":0},{"$f":"$C$3*'CPS Allocations'!Q10","v":0},{"$f":"$C$3*'CPS Allocations'!R10","v":0},0,0,0,0,0,0,0,0,0,0,0,0,0,0,0,0,0,0,0,0]
["037 - Office of Legislative Support Services","037","Office of Legislative Support Services",25298.429284034355,{"$f":"$C$3*'CPS Allocations'!E11","v":0},{"$f":"$C$3*'CPS Allocations'!F11","v":0},{"$f":"$C$3*'CPS Allocations'!G11","v":14244.134276287126},{"$f":"$C$3*'CPS Allocations'!H11","v":11054.295007747231},{"$f":"$C$3*'CPS Allocations'!I11","v":0},{"$f":"$C$3*'CPS Allocations'!J11","v":0},{"$f":"$C$3*'CPS Allocations'!K11","v":0},{"$f":"$C$3*'CPS Allocations'!L11","v":0},{"$f":"$C$3*'CPS Allocations'!M11","v":0},{"$f":"$C$3*'CPS Allocations'!N11","v":0},{"$f":"$C$3*'CPS Allocations'!O11","v":0},{"$f":"$C$3*'CPS Allocations'!P11","v":0},{"$f":"$C$3*'CPS Allocations'!Q11","v":0},{"$f":"$C$3*'CPS Allocations'!R11","v":0},0,0,0,0,0,0,0,0,0,0,0,0,0,0,0,0,0,0,0,0]
["038 - Joint Legislative Systems Committee","038","Joint Legislative Systems Committee",25238.35159377486,{"$f":"$C$3*'CPS Allocations'!E12","v":0},{"$f":"$C$3*'CPS Allocations'!F12","v":0},{"$f":"$C$3*'CPS Allocations'!G12","v":3269.9428555525574},{"$f":"$C$3*'CPS Allocations'!H12","v":21968.408738222304},{"$f":"$C$3*'CPS Allocations'!I12","v":0},{"$f":"$C$3*'CPS Allocations'!J12","v":0},{"$f":"$C$3*'CPS Allocations'!K12","v":0},{"$f":"$C$3*'CPS Allocations'!L12","v":0},{"$f":"$C$3*'CPS Allocations'!M12","v":0},{"$f":"$C$3*'CPS Allocations'!N12","v":0},{"$f":"$C$3*'CPS Allocations'!O12","v":0},{"$f":"$C$3*'CPS Allocations'!P12","v":0},{"$f":"$C$3*'CPS Allocations'!Q12","v":0},{"$f":"$C$3*'CPS Allocations'!R12","v":0},0,0,0,0,0,0,0,0,0,0,0,0,0,0,0,0,0,0,0,0]
["040 - Statute Law Committee (Code Revisor)","040","Statute Law Committee (Code Revisor)",35322.821030190229,{"$f":"$C$3*'CPS Allocations'!E13","v":0},{"$f":"$C$3*'CPS Allocations'!F13","v":0},{"$f":"$C$3*'CPS Allocations'!G13","v":0},{"$f":"$C$3*'CPS Allocations'!H13","v":35322.821030190229},{"$f":"$C$3*'CPS Allocations'!I13","v":0},{"$f":"$C$3*'CPS Allocations'!J13","v":0},{"$f":"$C$3*'CPS Allocations'!K13","v":0},{"$f":"$C$3*'CPS Allocations'!L13","v":0},{"$f":"$C$3*'CPS Allocations'!M13","v":0},{"$f":"$C$3*'CPS Allocations'!N13","v":0},{"$f":"$C$3*'CPS Allocations'!O13","v":0},{"$f":"$C$3*'CPS Allocations'!P13","v":0},{"$f":"$C$3*'CPS Allocations'!Q13","v":0},{"$f":"$C$3*'CPS Allocations'!R13","v":0},0,0,0,0,0,0,0,0,0,0,0,0,0,0,0,0,0,0,0,0]
["045 - Supreme Court","045","Supreme Court",97096.990828918468,{"$f":"$C$3*'CPS Allocations'!E14","v":0},{"$f":"$C$3*'CPS Allocations'!F14","v":0},{"$f":"$C$3*'CPS Allocations'!G14","v":0},{"$f":"$C$3*'CPS Allocations'!H14","v":0},{"$f":"$C$3*'CPS Allocations'!I14","v":0},{"$f":"$C$3*'CPS Allocations'!J14","v":0},{"$f":"$C$3*'CPS Allocations'!K14","v":0},{"$f":"$C$3*'CPS Allocations'!L14","v":0},{"$f":"$C$3*'CPS Allocations'!M14","v":0},{"$f":"$C$3*'CPS Allocations'!N14","v":0},{"$f":"$C$3*'CPS Allocations'!O14","v":0},{"$f":"$C$3*'CPS Allocations'!P14","v":0},{"$f":"$C$3*'CPS Allocations'!Q14","v":97096.990828918468},{"$f":"$C$3*'CPS Allocations'!R14","v":0},0,0,0,0,0,0,0,0,0,0,0,0,0,0,0,0,0,0,0,0]
["046 - Law Library","046","Law Library",44108.468020043169,{"$f":"$C$3*'CPS Allocations'!E15","v":0},{"$f":"$C$3*'CPS Allocations'!F15","v":0},{"$f":"$C$3*'CPS Allocations'!G15","v":0},{"$f":"$C$3*'CPS Allocations'!H15","v":0},{"$f":"$C$3*'CPS Allocations'!I15","v":0},{"$f":"$C$3*'CPS Allocations'!J15","v":0},{"$f":"$C$3*'CPS Allocations'!K15","v":0},{"$f":"$C$3*'CPS Allocations'!L15","v":0},{"$f":"$C$3*'CPS Allocations'!M15","v":0},{"$f":"$C$3*'CPS Allocations'!N15","v":0},{"$f":"$C$3*'CPS Allocations'!O15","v":0},{"$f":"$C$3*'CPS Allocations'!P15","v":0},{"$f":"$C$3*'CPS Allocations'!Q15","v":44108.468020043169},{"$f":"$C$3*'CPS Allocations'!R15","v":0},0,0,0,0,0,0,0,0,0,0,0,0,0,0,0,0,0,0,0,0]
["048 - Court of Appeals","048","Court of Appeals",0,{"$f":"$C$3*'CPS Allocations'!E16","v":0},{"$f":"$C$3*'CPS Allocations'!F16","v":0},{"$f":"$C$3*'CPS Allocations'!G16","v":0},{"$f":"$C$3*'CPS Allocations'!H16","v":0},{"$f":"$C$3*'CPS Allocations'!I16","v":0},{"$f":"$C$3*'CPS Allocations'!J16","v":0},{"$f":"$C$3*'CPS Allocations'!K16","v":0},{"$f":"$C$3*'CPS Allocations'!L16","v":0},{"$f":"$C$3*'CPS Allocations'!M16","v":0},{"$f":"$C$3*'CPS Allocations'!N16","v":0},{"$f":"$C$3*'CPS Allocations'!O16","v":0},{"$f":"$C$3*'CPS Allocations'!P16","v":0},{"$f":"$C$3*'CPS Allocations'!Q16","v":0},{"$f":"$C$3*'CPS Allocations'!R16","v":0},0,0,0,0,0,0,0,0,0,0,0,0,0,0,0,0,0,0,0,0]
["050 - Commission on Judicial Conduct","050","Commission on Judicial Conduct",0,{"$f":"$C$3*'CPS Allocations'!E17","v":0},{"$f":"$C$3*'CPS Allocations'!F17","v":0},{"$f":"$C$3*'CPS Allocations'!G17","v":0},{"$f":"$C$3*'CPS Allocations'!H17","v":0},{"$f":"$C$3*'CPS Allocations'!I17","v":0},{"$f":"$C$3*'CPS Allocations'!J17","v":0},{"$f":"$C$3*'CPS Allocations'!K17","v":0},{"$f":"$C$3*'CPS Allocations'!L17","v":0},{"$f":"$C$3*'CPS Allocations'!M17","v":0},{"$f":"$C$3*'CPS Allocations'!N17","v":0},{"$f":"$C$3*'CPS Allocations'!O17","v":0},{"$f":"$C$3*'CPS Allocations'!P17","v":0},{"$f":"$C$3*'CPS Allocations'!Q17","v":0},{"$f":"$C$3*'CPS Allocations'!R17","v":0},0,0,0,0,0,0,0,0,0,0,0,0,0,0,0,0,0,0,0,0]
["055 - Administrative Office of the Courts","055","Administrative Office of the Courts",12161.441013957938,{"$f":"$C$3*'CPS Allocations'!E18","v":0},{"$f":"$C$3*'CPS Allocations'!F18","v":0},{"$f":"$C$3*'CPS Allocations'!G18","v":0},{"$f":"$C$3*'CPS Allocations'!H18","v":0},{"$f":"$C$3*'CPS Allocations'!I18","v":0},{"$f":"$C$3*'CPS Allocations'!J18","v":0},{"$f":"$C$3*'CPS Allocations'!K18","v":0},{"$f":"$C$3*'CPS Allocations'!L18","v":0},{"$f":"$C$3*'CPS Allocations'!M18","v":0},{"$f":"$C$3*'CPS Allocations'!N18","v":0},{"$f":"$C$3*'CPS Allocations'!O18","v":0},{"$f":"$C$3*'CPS Allocations'!P18","v":0},{"$f":"$C$3*'CPS Allocations'!Q18","v":12161.441013957938},{"$f":"$C$3*'CPS Allocations'!R18","v":0},0,0,0,0,0,0,0,0,0,0,0,0,0,0,0,0,0,0,0,0]
["056 - Office of Public Defense","056","Office of Public Defense",0,{"$f":"$C$3*'CPS Allocations'!E19","v":0},{"$f":"$C$3*'CPS Allocations'!F19","v":0},{"$f":"$C$3*'CPS Allocations'!G19","v":0},{"$f":"$C$3*'CPS Allocations'!H19","v":0},{"$f":"$C$3*'CPS Allocations'!I19","v":0},{"$f":"$C$3*'CPS Allocations'!J19","v":0},{"$f":"$C$3*'CPS Allocations'!K19","v":0},{"$f":"$C$3*'CPS Allocations'!L19","v":0},{"$f":"$C$3*'CPS Allocations'!M19","v":0},{"$f":"$C$3*'CPS Allocations'!N19","v":0},{"$f":"$C$3*'CPS Allocations'!O19","v":0},{"$f":"$C$3*'CPS Allocations'!P19","v":0},{"$f":"$C$3*'CPS Allocations'!Q19","v":0},{"$f":"$C$3*'CPS Allocations'!R19","v":0},0,0,0,0,0,0,0,0,0,0,0,0,0,0,0,0,0,0,0,0]
["057 - Office of Civil Legal Aid","057","Office of Civil Legal Aid",0,{"$f":"$C$3*'CPS Allocations'!E20","v":0},{"$f":"$C$3*'CPS Allocations'!F20","v":0},{"$f":"$C$3*'CPS Allocations'!G20","v":0},{"$f":"$C$3*'CPS Allocations'!H20","v":0},{"$f":"$C$3*'CPS Allocations'!I20","v":0},{"$f":"$C$3*'CPS Allocations'!J20","v":0},{"$f":"$C$3*'CPS Allocations'!K20","v":0},{"$f":"$C$3*'CPS Allocations'!L20","v":0},{"$f":"$C$3*'CPS Allocations'!M20","v":0},{"$f":"$C$3*'CPS Allocations'!N20","v":0},{"$f":"$C$3*'CPS Allocations'!O20","v":0},{"$f":"$C$3*'CPS Allocations'!P20","v":0},{"$f":"$C$3*'CPS Allocations'!Q20","v":0},{"$f":"$C$3*'CPS Allocations'!R20","v":0},0,0,0,0,0,0,0,0,0,0,0,0,0,0,0,0,0,0,0,0]
["075 - Office of the Governor","075","Office of the Governor",49369.557181339012,{"$f":"$C$3*'CPS Allocations'!E21","v":0},{"$f":"$C$3*'CPS Allocations'!F21","v":0},{"$f":"$C$3*'CPS Allocations'!G21","v":49369.557181339012},{"$f":"$C$3*'CPS Allocations'!H21","v":0},{"$f":"$C$3*'CPS Allocations'!I21","v":0},{"$f":"$C$3*'CPS Allocations'!J21","v":0},{"$f":"$C$3*'CPS Allocations'!K21","v":0},{"$f":"$C$3*'CPS Allocations'!L21","v":0},{"$f":"$C$3*'CPS Allocations'!M21","v":0},{"$f":"$C$3*'CPS Allocations'!N21","v":0},{"$f":"$C$3*'CPS Allocations'!O21","v":0},{"$f":"$C$3*'CPS Allocations'!P21","v":0},{"$f":"$C$3*'CPS Allocations'!Q21","v":0},{"$f":"$C$3*'CPS Allocations'!R21","v":0},0,0,0,0,0,0,0,0,0,0,0,0,0,0,0,0,0,0,0,0]
["080 - Office of Lieutenant Governor","080","Office of Lieutenant Governor",25387.115398226942,{"$f":"$C$3*'CPS Allocations'!E22","v":0},{"$f":"$C$3*'CPS Allocations'!F22","v":0},{"$f":"$C$3*'CPS Allocations'!G22","v":25387.115398226942},{"$f":"$C$3*'CPS Allocations'!H22","v":0},{"$f":"$C$3*'CPS Allocations'!I22","v":0},{"$f":"$C$3*'CPS Allocations'!J22","v":0},{"$f":"$C$3*'CPS Allocations'!K22","v":0},{"$f":"$C$3*'CPS Allocations'!L22","v":0},{"$f":"$C$3*'CPS Allocations'!M22","v":0},{"$f":"$C$3*'CPS Allocations'!N22","v":0},{"$f":"$C$3*'CPS Allocations'!O22","v":0},{"$f":"$C$3*'CPS Allocations'!P22","v":0},{"$f":"$C$3*'CPS Allocations'!Q22","v":0},{"$f":"$C$3*'CPS Allocations'!R22","v":0},0,0,0,0,0,0,0,0,0,0,0,0,0,0,0,0,0,0,0,0]
["082 - Public Disclosure Commission","082","Public Disclosure Commission",0,{"$f":"$C$3*'CPS Allocations'!E23","v":0},{"$f":"$C$3*'CPS Allocations'!F23","v":0},{"$f":"$C$3*'CPS Allocations'!G23","v":0},{"$f":"$C$3*'CPS Allocations'!H23","v":0},{"$f":"$C$3*'CPS Allocations'!I23","v":0},{"$f":"$C$3*'CPS Allocations'!J23","v":0},{"$f":"$C$3*'CPS Allocations'!K23","v":0},{"$f":"$C$3*'CPS Allocations'!L23","v":0},{"$f":"$C$3*'CPS Allocations'!M23","v":0},{"$f":"$C$3*'CPS Allocations'!N23","v":0},{"$f":"$C$3*'CPS Allocations'!O23","v":0},{"$f":"$C$3*'CPS Allocations'!P23","v":0},{"$f":"$C$3*'CPS Allocations'!Q23","v":0},{"$f":"$C$3*'CPS Allocations'!R23","v":0},0,0,0,0,0,0,0,0,0,0,0,0,0,0,0,0,0,0,0,0]
["085 - Office of the Secretary of State","085","Office of the Secretary of State",167502.32212826094,{"$f":"$C$3*'CPS Allocations'!E24","v":0},{"$f":"$C$3*'CPS Allocations'!F24","v":0},{"$f":"$C$3*'CPS Allocations'!G24","v":30467.971488744304},{"$f":"$C$3*'CPS Allocations'!H24","v":0},{"$f":"$C$3*'CPS Allocations'!I24","v":0},{"$f":"$C$3*'CPS Allocations'!J24","v":0},{"$f":"$C$3*'CPS Allocations'!K24","v":137034.35063951663},{"$f":"$C$3*'CPS Allocations'!L24","v":0},{"$f":"$C$3*'CPS Allocations'!M24","v":0},{"$f":"$C$3*'CPS Allocations'!N24","v":0},{"$f":"$C$3*'CPS Allocations'!O24","v":0},{"$f":"$C$3*'CPS Allocations'!P24","v":0},{"$f":"$C$3*'CPS Allocations'!Q24","v":0},{"$f":"$C$3*'CPS Allocations'!R24","v":0},0,0,0,0,0,0,0,0,0,0,0,0,0,0,0,0,0,0,0,0]
["086 - Governor's Office of Indian Affairs","086","Governor's Office of Indian Affairs",0,{"$f":"$C$3*'CPS Allocations'!E25","v":0},{"$f":"$C$3*'CPS Allocations'!F25","v":0},{"$f":"$C$3*'CPS Allocations'!G25","v":0},{"$f":"$C$3*'CPS Allocations'!H25","v":0},{"$f":"$C$3*'CPS Allocations'!I25","v":0},{"$f":"$C$3*'CPS Allocations'!J25","v":0},{"$f":"$C$3*'CPS Allocations'!K25","v":0},{"$f":"$C$3*'CPS Allocations'!L25","v":0},{"$f":"$C$3*'CPS Allocations'!M25","v":0},{"$f":"$C$3*'CPS Allocations'!N25","v":0},{"$f":"$C$3*'CPS Allocations'!O25","v":0},{"$f":"$C$3*'CPS Allocations'!P25","v":0},{"$f":"$C$3*'CPS Allocations'!Q25","v":0},{"$f":"$C$3*'CPS Allocations'!R25","v":0},0,0,0,0,0,0,0,0,0,0,0,0,0,0,0,0,0,0,0,0]
["087 - Commission on Asian Pacific American Affairs","087","Commission on Asian Pacific American Affairs",0,{"$f":"$C$3*'CPS Allocations'!E26","v":0},{"$f":"$C$3*'CPS Allocations'!F26","v":0},{"$f":"$C$3*'CPS Allocations'!G26","v":0},{"$f":"$C$3*'CPS Allocations'!H26","v":0},{"$f":"$C$3*'CPS Allocations'!I26","v":0},{"$f":"$C$3*'CPS Allocations'!J26","v":0},{"$f":"$C$3*'CPS Allocations'!K26","v":0},{"$f":"$C$3*'CPS Allocations'!L26","v":0},{"$f":"$C$3*'CPS Allocations'!M26","v":0},{"$f":"$C$3*'CPS Allocations'!N26","v":0},{"$f":"$C$3*'CPS Allocations'!O26","v":0},{"$f":"$C$3*'CPS Allocations'!P26","v":0},{"$f":"$C$3*'CPS Allocations'!Q26","v":0},{"$f":"$C$3*'CPS Allocations'!R26","v":0},0,0,0,0,0,0,0,0,0,0,0,0,0,0,0,0,0,0,0,0]
["090 - Office of State Treasurer","090","Office of State Treasurer",30653.926244309409,{"$f":"$C$3*'CPS Allocations'!E27","v":0},{"$f":"$C$3*'CPS Allocations'!F27","v":0},{"$f":"$C$3*'CPS Allocations'!G27","v":30653.926244309409},{"$f":"$C$3*'CPS Allocations'!H27","v":0},{"$f":"$C$3*'CPS Allocations'!I27","v":0},{"$f":"$C$3*'CPS Allocations'!J27","v":0},{"$f":"$C$3*'CPS Allocations'!K27","v":0},{"$f":"$C$3*'CPS Allocations'!L27","v":0},{"$f":"$C$3*'CPS Allocations'!M27","v":0},{"$f":"$C$3*'CPS Allocations'!N27","v":0},{"$f":"$C$3*'CPS Allocations'!O27","v":0},{"$f":"$C$3*'CPS Allocations'!P27","v":0},{"$f":"$C$3*'CPS Allocations'!Q27","v":0},{"$f":"$C$3*'CPS Allocations'!R27","v":0},0,0,0,0,0,0,0,0,0,0,0,0,0,0,0,0,0,0,0,0]
["095 - Office of State Auditor","095","Office of State Auditor",18343.721425899384,{"$f":"$C$3*'CPS Allocations'!E28","v":0},{"$f":"$C$3*'CPS Allocations'!F28","v":0},{"$f":"$C$3*'CPS Allocations'!G28","v":0},{"$f":"$C$3*'CPS Allocations'!H28","v":0},{"$f":"$C$3*'CPS Allocations'!I28","v":0},{"$f":"$C$3*'CPS Allocations'!J28","v":0},{"$f":"$C$3*'CPS Allocations'!K28","v":0},{"$f":"$C$3*'CPS Allocations'!L28","v":0},{"$f":"$C$3*'CPS Allocations'!M28","v":0},{"$f":"$C$3*'CPS Allocations'!N28","v":0},{"$f":"$C$3*'CPS Allocations'!O28","v":18343.721425899384},{"$f":"$C$3*'CPS Allocations'!P28","v":0},{"$f":"$C$3*'CPS Allocations'!Q28","v":0},{"$f":"$C$3*'CPS Allocations'!R28","v":0},0,0,0,0,0,0,0,0,0,0,0,0,0,0,0,0,0,0,0,0]
["099 - Citizens' Commission on Salaries for Elected Officials","099","Citizens' Commission on Salaries for Elected Officials",0,{"$f":"$C$3*'CPS Allocations'!E29","v":0},{"$f":"$C$3*'CPS Allocations'!F29","v":0},{"$f":"$C$3*'CPS Allocations'!G29","v":0},{"$f":"$C$3*'CPS Allocations'!H29","v":0},{"$f":"$C$3*'CPS Allocations'!I29","v":0},{"$f":"$C$3*'CPS Allocations'!J29","v":0},{"$f":"$C$3*'CPS Allocations'!K29","v":0},{"$f":"$C$3*'CPS Allocations'!L29","v":0},{"$f":"$C$3*'CPS Allocations'!M29","v":0},{"$f":"$C$3*'CPS Allocations'!N29","v":0},{"$f":"$C$3*'CPS Allocations'!O29","v":0},{"$f":"$C$3*'CPS Allocations'!P29","v":0},{"$f":"$C$3*'CPS Allocations'!Q29","v":0},{"$f":"$C$3*'CPS Allocations'!R29","v":0},0,0,0,0,0,0,0,0,0,0,0,0,0,0,0,0,0,0,0,0]
["100 - Office of Attorney General","100","Office of Attorney General",173898.51933690041,{"$f":"$C$3*'CPS Allocations'!E30","v":0},{"$f":"$C$3*'CPS Allocations'!F30","v":0},{"$f":"$C$3*'CPS Allocations'!G30","v":0},{"$f":"$C$3*'CPS Allocations'!H30","v":0},{"$f":"$C$3*'CPS Allocations'!I30","v":173898.51933690041},{"$f":"$C$3*'CPS Allocations'!J30","v":0},{"$f":"$C$3*'CPS Allocations'!K30","v":0},{"$f":"$C$3*'CPS Allocations'!L30","v":0},{"$f":"$C$3*'CPS Allocations'!M30","v":0},{"$f":"$C$3*'CPS Allocations'!N30","v":0},{"$f":"$C$3*'CPS Allocations'!O30","v":0},{"$f":"$C$3*'CPS Allocations'!P30","v":0},{"$f":"$C$3*'CPS Allocations'!Q30","v":0},{"$f":"$C$3*'CPS Allocations'!R30","v":0},0,0,0,0,0,0,0,0,0,0,0,0,0,0,0,0,0,0,0,0]
["101 - Caseload Forecast Council","101","Caseload Forecast Council",0,{"$f":"$C$3*'CPS Allocations'!E31","v":0},{"$f":"$C$3*'CPS Allocations'!F31","v":0},{"$f":"$C$3*'CPS Allocations'!G31","v":0},{"$f":"$C$3*'CPS Allocations'!H31","v":0},{"$f":"$C$3*'CPS Allocations'!I31","v":0},{"$f":"$C$3*'CPS Allocations'!J31","v":0},{"$f":"$C$3*'CPS Allocations'!K31","v":0},{"$f":"$C$3*'CPS Allocations'!L31","v":0},{"$f":"$C$3*'CPS Allocations'!M31","v":0},{"$f":"$C$3*'CPS Allocations'!N31","v":0},{"$f":"$C$3*'CPS Allocations'!O31","v":0},{"$f":"$C$3*'CPS Allocations'!P31","v":0},{"$f":"$C$3*'CPS Allocations'!Q31","v":0},{"$f":"$C$3*'CPS Allocations'!R31","v":0},0,0,0,0,0,0,0,0,0,0,0,0,0,0,0,0,0,0,0,0]
["102 - Department of Financial Institutions","102","Department of Financial Institutions",0,{"$f":"$C$3*'CPS Allocations'!E32","v":0},{"$f":"$C$3*'CPS Allocations'!F32","v":0},{"$f":"$C$3*'CPS Allocations'!G32","v":0},{"$f":"$C$3*'CPS Allocations'!H32","v":0},{"$f":"$C$3*'CPS Allocations'!I32","v":0},{"$f":"$C$3*'CPS Allocations'!J32","v":0},{"$f":"$C$3*'CPS Allocations'!K32","v":0},{"$f":"$C$3*'CPS Allocations'!L32","v":0},{"$f":"$C$3*'CPS Allocations'!M32","v":0},{"$f":"$C$3*'CPS Allocations'!N32","v":0},{"$f":"$C$3*'CPS Allocations'!O32","v":0},{"$f":"$C$3*'CPS Allocations'!P32","v":0},{"$f":"$C$3*'CPS Allocations'!Q32","v":0},{"$f":"$C$3*'CPS Allocations'!R32","v":0},0,0,0,0,0,0,0,0,0,0,0,0,0,0,0,0,0,0,0,0]
["103 - Department of Commerce","103","Department of Commerce",0,{"$f":"$C$3*'CPS Allocations'!E33","v":0},{"$f":"$C$3*'CPS Allocations'!F33","v":0},{"$f":"$C$3*'CPS Allocations'!G33","v":0},{"$f":"$C$3*'CPS Allocations'!H33","v":0},{"$f":"$C$3*'CPS Allocations'!I33","v":0},{"$f":"$C$3*'CPS Allocations'!J33","v":0},{"$f":"$C$3*'CPS Allocations'!K33","v":0},{"$f":"$C$3*'CPS Allocations'!L33","v":0},{"$f":"$C$3*'CPS Allocations'!M33","v":0},{"$f":"$C$3*'CPS Allocations'!N33","v":0},{"$f":"$C$3*'CPS Allocations'!O33","v":0},{"$f":"$C$3*'CPS Allocations'!P33","v":0},{"$f":"$C$3*'CPS Allocations'!Q33","v":0},{"$f":"$C$3*'CPS Allocations'!R33","v":0},0,0,0,0,0,0,0,0,0,0,0,0,0,0,0,0,0,0,0,0]
["104 - Economic and Revenue Forecast Council","104","Economic and Revenue Forecast Council",0,{"$f":"$C$3*'CPS Allocations'!E34","v":0},{"$f":"$C$3*'CPS Allocations'!F34","v":0},{"$f":"$C$3*'CPS Allocations'!G34","v":0},{"$f":"$C$3*'CPS Allocations'!H34","v":0},{"$f":"$C$3*'CPS Allocations'!I34","v":0},{"$f":"$C$3*'CPS Allocations'!J34","v":0},{"$f":"$C$3*'CPS Allocations'!K34","v":0},{"$f":"$C$3*'CPS Allocations'!L34","v":0},{"$f":"$C$3*'CPS Allocations'!M34","v":0},{"$f":"$C$3*'CPS Allocations'!N34","v":0},{"$f":"$C$3*'CPS Allocations'!O34","v":0},{"$f":"$C$3*'CPS Allocations'!P34","v":0},{"$f":"$C$3*'CPS Allocations'!Q34","v":0},{"$f":"$C$3*'CPS Allocations'!R34","v":0},0,0,0,0,0,0,0,0,0,0,0,0,0,0,0,0,0,0,0,0]
["105 - Office of Financial Management","105","Office of Financial Management",119317.153697752,{"$f":"$C$3*'CPS Allocations'!E35","v":0},{"$f":"$C$3*'CPS Allocations'!F35","v":0},{"$f":"$C$3*'CPS Allocations'!G35","v":0},{"$f":"$C$3*'CPS Allocations'!H35","v":0},{"$f":"$C$3*'CPS Allocations'!I35","v":0},{"$f":"$C$3*'CPS Allocations'!J35","v":0},{"$f":"$C$3*'CPS Allocations'!K35","v":0},{"$f":"$C$3*'CPS Allocations'!L35","v":0},{"$f":"$C$3*'CPS Allocations'!M35","v":0},{"$f":"$C$3*'CPS Allocations'!N35","v":0},{"$f":"$C$3*'CPS Allocations'!O35","v":119317.153697752},{"$f":"$C$3*'CPS Allocations'!P35","v":0},{"$f":"$C$3*'CPS Allocations'!Q35","v":0},{"$f":"$C$3*'CPS Allocations'!R35","v":0},0,0,0,0,0,0,0,0,0,0,0,0,0,0,0,0,0,0,0,0]
["107 - Washington State Health Care Authority","107","Washington State Health Care Authority",0,{"$f":"$C$3*'CPS Allocations'!E36","v":0},{"$f":"$C$3*'CPS Allocations'!F36","v":0},{"$f":"$C$3*'CPS Allocations'!G36","v":0},{"$f":"$C$3*'CPS Allocations'!H36","v":0},{"$f":"$C$3*'CPS Allocations'!I36","v":0},{"$f":"$C$3*'CPS Allocations'!J36","v":0},{"$f":"$C$3*'CPS Allocations'!K36","v":0},{"$f":"$C$3*'CPS Allocations'!L36","v":0},{"$f":"$C$3*'CPS Allocations'!M36","v":0},{"$f":"$C$3*'CPS Allocations'!N36","v":0},{"$f":"$C$3*'CPS Allocations'!O36","v":0},{"$f":"$C$3*'CPS Allocations'!P36","v":0},{"$f":"$C$3*'CPS Allocations'!Q36","v":0},{"$f":"$C$3*'CPS Allocations'!R36","v":0},0,0,0,0,0,0,0,0,0,0,0,0,0,0,0,0,0,0,0,0]
["110 - Office of Administrative Hearings","110","Office of Administrative Hearings",0,{"$f":"$C$3*'CPS Allocations'!E37","v":0},{"$f":"$C$3*'CPS Allocations'!F37","v":0},{"$f":"$C$3*'CPS Allocations'!G37","v":0},{"$f":"$C$3*'CPS Allocations'!H37","v":0},{"$f":"$C$3*'CPS Allocations'!I37","v":0},{"$f":"$C$3*'CPS Allocations'!J37","v":0},{"$f":"$C$3*'CPS Allocations'!K37","v":0},{"$f":"$C$3*'CPS Allocations'!L37","v":0},{"$f":"$C$3*'CPS Allocations'!M37","v":0},{"$f":"$C$3*'CPS Allocations'!N37","v":0},{"$f":"$C$3*'CPS Allocations'!O37","v":0},{"$f":"$C$3*'CPS Allocations'!P37","v":0},{"$f":"$C$3*'CPS Allocations'!Q37","v":0},{"$f":"$C$3*'CPS Allocations'!R37","v":0},0,0,0,0,0,0,0,0,0,0,0,0,0,0,0,0,0,0,0,0]
["116 - State Lottery","116","State Lottery",0,{"$f":"$C$3*'CPS Allocations'!E38","v":0},{"$f":"$C$3*'CPS Allocations'!F38","v":0},{"$f":"$C$3*'CPS Allocations'!G38","v":0},{"$f":"$C$3*'CPS Allocations'!H38","v":0},{"$f":"$C$3*'CPS Allocations'!I38","v":0},{"$f":"$C$3*'CPS Allocations'!J38","v":0},{"$f":"$C$3*'CPS Allocations'!K38","v":0},{"$f":"$C$3*'CPS Allocations'!L38","v":0},{"$f":"$C$3*'CPS Allocations'!M38","v":0},{"$f":"$C$3*'CPS Allocations'!N38","v":0},{"$f":"$C$3*'CPS Allocations'!O38","v":0},{"$f":"$C$3*'CPS Allocations'!P38","v":0},{"$f":"$C$3*'CPS Allocations'!Q38","v":0},{"$f":"$C$3*'CPS Allocations'!R38","v":0},0,0,0,0,0,0,0,0,0,0,0,0,0,0,0,0,0,0,0,0]
["117 - Washington State Gambling Commission","117","Washington State Gambling Commission",0,{"$f":"$C$3*'CPS Allocations'!E39","v":0},{"$f":"$C$3*'CPS Allocations'!F39","v":0},{"$f":"$C$3*'CPS Allocations'!G39","v":0},{"$f":"$C$3*'CPS Allocations'!H39","v":0},{"$f":"$C$3*'CPS Allocations'!I39","v":0},{"$f":"$C$3*'CPS Allocations'!J39","v":0},{"$f":"$C$3*'CPS Allocations'!K39","v":0},{"$f":"$C$3*'CPS Allocations'!L39","v":0},{"$f":"$C$3*'CPS Allocations'!M39","v":0},{"$f":"$C$3*'CPS Allocations'!N39","v":0},{"$f":"$C$3*'CPS Allocations'!O39","v":0},{"$f":"$C$3*'CPS Allocations'!P39","v":0},{"$f":"$C$3*'CPS Allocations'!Q39","v":0},{"$f":"$C$3*'CPS Allocations'!R39","v":0},0,0,0,0,0,0,0,0,0,0,0,0,0,0,0,0,0,0,0,0]
["118 - Commission on Hispanic Affairs","118","Commission on Hispanic Affairs",0,{"$f":"$C$3*'CPS Allocations'!E40","v":0},{"$f":"$C$3*'CPS Allocations'!F40","v":0},{"$f":"$C$3*'CPS Allocations'!G40","v":0},{"$f":"$C$3*'CPS Allocations'!H40","v":0},{"$f":"$C$3*'CPS Allocations'!I40","v":0},{"$f":"$C$3*'CPS Allocations'!J40","v":0},{"$f":"$C$3*'CPS Allocations'!K40","v":0},{"$f":"$C$3*'CPS Allocations'!L40","v":0},{"$f":"$C$3*'CPS Allocations'!M40","v":0},{"$f":"$C$3*'CPS Allocations'!N40","v":0},{"$f":"$C$3*'CPS Allocations'!O40","v":0},{"$f":"$C$3*'CPS Allocations'!P40","v":0},{"$f":"$C$3*'CPS Allocations'!Q40","v":0},{"$f":"$C$3*'CPS Allocations'!R40","v":0},0,0,0,0,0,0,0,0,0,0,0,0,0,0,0,0,0,0,0,0]
["119 - Commission on African-American Affairs","119","Commission on African-American Affairs",0,{"$f":"$C$3*'CPS Allocations'!E41","v":0},{"$f":"$C$3*'CPS Allocations'!F41","v":0},{"$f":"$C$3*'CPS Allocations'!G41","v":0},{"$f":"$C$3*'CPS Allocations'!H41","v":0},{"$f":"$C$3*'CPS Allocations'!I41","v":0},{"$f":"$C$3*'CPS Allocations'!J41","v":0},{"$f":"$C$3*'CPS Allocations'!K41","v":0},{"$f":"$C$3*'CPS Allocations'!L41","v":0},{"$f":"$C$3*'CPS Allocations'!M41","v":0},{"$f":"$C$3*'CPS Allocations'!N41","v":0},{"$f":"$C$3*'CPS Allocations'!O41","v":0},{"$f":"$C$3*'CPS Allocations'!P41","v":0},{"$f":"$C$3*'CPS Allocations'!Q41","v":0},{"$f":"$C$3*'CPS Allocations'!R41","v":0},0,0,0,0,0,0,0,0,0,0,0,0,0,0,0,0,0,0,0,0]
["120 - Human Rights Commission","120","Human Rights Commission",0,{"$f":"$C$3*'CPS Allocations'!E42","v":0},{"$f":"$C$3*'CPS Allocations'!F42","v":0},{"$f":"$C$3*'CPS Allocations'!G42","v":0},{"$f":"$C$3*'CPS Allocations'!H42","v":0},{"$f":"$C$3*'CPS Allocations'!I42","v":0},{"$f":"$C$3*'CPS Allocations'!J42","v":0},{"$f":"$C$3*'CPS Allocations'!K42","v":0},{"$f":"$C$3*'CPS Allocations'!L42","v":0},{"$f":"$C$3*'CPS Allocations'!M42","v":0},{"$f":"$C$3*'CPS Allocations'!N42","v":0},{"$f":"$C$3*'CPS Allocations'!O42","v":0},{"$f":"$C$3*'CPS Allocations'!P42","v":0},{"$f":"$C$3*'CPS Allocations'!Q42","v":0},{"$f":"$C$3*'CPS Allocations'!R42","v":0},0,0,0,0,0,0,0,0,0,0,0,0,0,0,0,0,0,0,0,0]
["124 - Department of Retirement Systems","124","Department of Retirement Systems",0,{"$f":"$C$3*'CPS Allocations'!E43","v":0},{"$f":"$C$3*'CPS Allocations'!F43","v":0},{"$f":"$C$3*'CPS Allocations'!G43","v":0},{"$f":"$C$3*'CPS Allocations'!H43","v":0},{"$f":"$C$3*'CPS Allocations'!I43","v":0},{"$f":"$C$3*'CPS Allocations'!J43","v":0},{"$f":"$C$3*'CPS Allocations'!K43","v":0},{"$f":"$C$3*'CPS Allocations'!L43","v":0},{"$f":"$C$3*'CPS Allocations'!M43","v":0},{"$f":"$C$3*'CPS Allocations'!N43","v":0},{"$f":"$C$3*'CPS Allocations'!O43","v":0},{"$f":"$C$3*'CPS Allocations'!P43","v":0},{"$f":"$C$3*'CPS Allocations'!Q43","v":0},{"$f":"$C$3*'CPS Allocations'!R43","v":0},0,0,0,0,0,0,0,0,0,0,0,0,0,0,0,0,0,0,0,0]
["126 - State Investment Board","126","State Investment Board",0,{"$f":"$C$3*'CPS Allocations'!E44","v":0},{"$f":"$C$3*'CPS Allocations'!F44","v":0},{"$f":"$C$3*'CPS Allocations'!G44","v":0},{"$f":"$C$3*'CPS Allocations'!H44","v":0},{"$f":"$C$3*'CPS Allocations'!I44","v":0},{"$f":"$C$3*'CPS Allocations'!J44","v":0},{"$f":"$C$3*'CPS Allocations'!K44","v":0},{"$f":"$C$3*'CPS Allocations'!L44","v":0},{"$f":"$C$3*'CPS Allocations'!M44","v":0},{"$f":"$C$3*'CPS Allocations'!N44","v":0},{"$f":"$C$3*'CPS Allocations'!O44","v":0},{"$f":"$C$3*'CPS Allocations'!P44","v":0},{"$f":"$C$3*'CPS Allocations'!Q44","v":0},{"$f":"$C$3*'CPS Allocations'!R44","v":0},0,0,0,0,0,0,0,0,0,0,0,0,0,0,0,0,0,0,0,0]
["140 - Department of Revenue","140","Department of Revenue",0,{"$f":"$C$3*'CPS Allocations'!E45","v":0},{"$f":"$C$3*'CPS Allocations'!F45","v":0},{"$f":"$C$3*'CPS Allocations'!G45","v":0},{"$f":"$C$3*'CPS Allocations'!H45","v":0},{"$f":"$C$3*'CPS Allocations'!I45","v":0},{"$f":"$C$3*'CPS Allocations'!J45","v":0},{"$f":"$C$3*'CPS Allocations'!K45","v":0},{"$f":"$C$3*'CPS Allocations'!L45","v":0},{"$f":"$C$3*'CPS Allocations'!M45","v":0},{"$f":"$C$3*'CPS Allocations'!N45","v":0},{"$f":"$C$3*'CPS Allocations'!O45","v":0},{"$f":"$C$3*'CPS Allocations'!P45","v":0},{"$f":"$C$3*'CPS Allocations'!Q45","v":0},{"$f":"$C$3*'CPS Allocations'!R45","v":0},0,0,0,0,0,0,0,0,0,0,0,0,0,0,0,0,0,0,0,0]
["142 - Board of Tax Appeals","142","Board of Tax Appeals",0,{"$f":"$C$3*'CPS Allocations'!E46","v":0},{"$f":"$C$3*'CPS Allocations'!F46","v":0},{"$f":"$C$3*'CPS Allocations'!G46","v":0},{"$f":"$C$3*'CPS Allocations'!H46","v":0},{"$f":"$C$3*'CPS Allocations'!I46","v":0},{"$f":"$C$3*'CPS Allocations'!J46","v":0},{"$f":"$C$3*'CPS Allocations'!K46","v":0},{"$f":"$C$3*'CPS Allocations'!L46","v":0},{"$f":"$C$3*'CPS Allocations'!M46","v":0},{"$f":"$C$3*'CPS Allocations'!N46","v":0},{"$f":"$C$3*'CPS Allocations'!O46","v":0},{"$f":"$C$3*'CPS Allocations'!P46","v":0},{"$f":"$C$3*'CPS Allocations'!Q46","v":0},{"$f":"$C$3*'CPS Allocations'!R46","v":0},0,0,0,0,0,0,0,0,0,0,0,0,0,0,0,0,0,0,0,0]
["147 - Office of Minority and Women's Business Enterprises","147","Office of Minority and Women's Business Enterprises",0,{"$f":"$C$3*'CPS Allocations'!E47","v":0},{"$f":"$C$3*'CPS Allocations'!F47","v":0},{"$f":"$C$3*'CPS Allocations'!G47","v":0},{"$f":"$C$3*'CPS Allocations'!H47","v":0},{"$f":"$C$3*'CPS Allocations'!I47","v":0},{"$f":"$C$3*'CPS Allocations'!J47","v":0},{"$f":"$C$3*'CPS Allocations'!K47","v":0},{"$f":"$C$3*'CPS Allocations'!L47","v":0},{"$f":"$C$3*'CPS Allocations'!M47","v":0},{"$f":"$C$3*'CPS Allocations'!N47","v":0},{"$f":"$C$3*'CPS Allocations'!O47","v":0},{"$f":"$C$3*'CPS Allocations'!P47","v":0},{"$f":"$C$3*'CPS Allocations'!Q47","v":0},{"$f":"$C$3*'CPS Allocations'!R47","v":0},0,0,0,0,0,0,0,0,0,0,0,0,0,0,0,0,0,0,0,0]
["160 - Office of Insurance Commissioner","160","Office of Insurance Commissioner",19994.427486838867,{"$f":"$C$3*'CPS Allocations'!E48","v":0},{"$f":"$C$3*'CPS Allocations'!F48","v":0},{"$f":"$C$3*'CPS Allocations'!G48","v":0},{"$f":"$C$3*'CPS Allocations'!H48","v":0},{"$f":"$C$3*'CPS Allocations'!I48","v":0},{"$f":"$C$3*'CPS Allocations'!J48","v":0},{"$f":"$C$3*'CPS Allocations'!K48","v":0},{"$f":"$C$3*'CPS Allocations'!L48","v":0},{"$f":"$C$3*'CPS Allocations'!M48","v":0},{"$f":"$C$3*'CPS Allocations'!N48","v":0},{"$f":"$C$3*'CPS Allocations'!O48","v":19994.427486838867},{"$f":"$C$3*'CPS Allocations'!P48","v":0},{"$f":"$C$3*'CPS Allocations'!Q48","v":0},{"$f":"$C$3*'CPS Allocations'!R48","v":0},0,0,0,0,0,0,0,0,0,0,0,0,0,0,0,0,0,0,0,0]
["163 - Consolidated Technology Services","163","Consolidated Technology Services",835.36597884632261,{"$f":"$C$3*'CPS Allocations'!E49","v":0},{"$f":"$C$3*'CPS Allocations'!F49","v":0},{"$f":"$C$3*'CPS Allocations'!G49","v":0},{"$f":"$C$3*'CPS Allocations'!H49","v":0},{"$f":"$C$3*'CPS Allocations'!I49","v":0},{"$f":"$C$3*'CPS Allocations'!J49","v":835.36597884632261},{"$f":"$C$3*'CPS Allocations'!K49","v":0},{"$f":"$C$3*'CPS Allocations'!L49","v":0},{"$f":"$C$3*'CPS Allocations'!M49","v":0},{"$f":"$C$3*'CPS Allocations'!N49","v":0},{"$f":"$C$3*'CPS Allocations'!O49","v":0},{"$f":"$C$3*'CPS Allocations'!P49","v":0},{"$f":"$C$3*'CPS Allocations'!Q49","v":0},{"$f":"$C$3*'CPS Allocations'!R49","v":0},0,0,0,0,0,0,0,0,0,0,0,0,0,0,0,0,0,0,0,0]
["165 - Board of Accountancy","165","Board of Accountancy",0,{"$f":"$C$3*'CPS Allocations'!E50","v":0},{"$f":"$C$3*'CPS Allocations'!F50","v":0},{"$f":"$C$3*'CPS Allocations'!G50","v":0},{"$f":"$C$3*'CPS Allocations'!H50","v":0},{"$f":"$C$3*'CPS Allocations'!I50","v":0},{"$f":"$C$3*'CPS Allocations'!J50","v":0},{"$f":"$C$3*'CPS Allocations'!K50","v":0},{"$f":"$C$3*'CPS Allocations'!L50","v":0},{"$f":"$C$3*'CPS Allocations'!M50","v":0},{"$f":"$C$3*'CPS Allocations'!N50","v":0},{"$f":"$C$3*'CPS Allocations'!O50","v":0},{"$f":"$C$3*'CPS Allocations'!P50","v":0},{"$f":"$C$3*'CPS Allocations'!Q50","v":0},{"$f":"$C$3*'CPS Allocations'!R50","v":0},0,0,0,0,0,0,0,0,0,0,0,0,0,0,0,0,0,0,0,0]
["166 - Brd Prof Eng Land Surveyors","166","Brd Prof Eng Land Surveyors",0,{"$f":"$C$3*'CPS Allocations'!E51","v":0},{"$f":"$C$3*'CPS Allocations'!F51","v":0},{"$f":"$C$3*'CPS Allocations'!G51","v":0},{"$f":"$C$3*'CPS Allocations'!H51","v":0},{"$f":"$C$3*'CPS Allocations'!I51","v":0},{"$f":"$C$3*'CPS Allocations'!J51","v":0},{"$f":"$C$3*'CPS Allocations'!K51","v":0},{"$f":"$C$3*'CPS Allocations'!L51","v":0},{"$f":"$C$3*'CPS Allocations'!M51","v":0},{"$f":"$C$3*'CPS Allocations'!N51","v":0},{"$f":"$C$3*'CPS Allocations'!O51","v":0},{"$f":"$C$3*'CPS Allocations'!P51","v":0},{"$f":"$C$3*'CPS Allocations'!Q51","v":0},{"$f":"$C$3*'CPS Allocations'!R51","v":0},0,0,0,0,0,0,0,0,0,0,0,0,0,0,0,0,0,0,0,0]
["167 - Forensic Investigations Council","167","Forensic Investigations Council",0,{"$f":"$C$3*'CPS Allocations'!E52","v":0},{"$f":"$C$3*'CPS Allocations'!F52","v":0},{"$f":"$C$3*'CPS Allocations'!G52","v":0},{"$f":"$C$3*'CPS Allocations'!H52","v":0},{"$f":"$C$3*'CPS Allocations'!I52","v":0},{"$f":"$C$3*'CPS Allocations'!J52","v":0},{"$f":"$C$3*'CPS Allocations'!K52","v":0},{"$f":"$C$3*'CPS Allocations'!L52","v":0},{"$f":"$C$3*'CPS Allocations'!M52","v":0},{"$f":"$C$3*'CPS Allocations'!N52","v":0},{"$f":"$C$3*'CPS Allocations'!O52","v":0},{"$f":"$C$3*'CPS Allocations'!P52","v":0},{"$f":"$C$3*'CPS Allocations'!Q52","v":0},{"$f":"$C$3*'CPS Allocations'!R52","v":0},0,0,0,0,0,0,0,0,0,0,0,0,0,0,0,0,0,0,0,0]
["179 - Department of Enterprise Services","179","Department of Enterprise Services",77823.495625193551,{"$f":"$C$3*'CPS Allocations'!E53","v":0},{"$f":"$C$3*'CPS Allocations'!F53","v":0},{"$f":"$C$3*'CPS Allocations'!G53","v":19788.446834520597},{"$f":"$C$3*'CPS Allocations'!H53","v":0},{"$f":"$C$3*'CPS Allocations'!I53","v":0},{"$f":"$C$3*'CPS Allocations'!J53","v":58035.048790672954},{"$f":"$C$3*'CPS Allocations'!K53","v":0},{"$f":"$C$3*'CPS Allocations'!L53","v":0},{"$f":"$C$3*'CPS Allocations'!M53","v":0},{"$f":"$C$3*'CPS Allocations'!N53","v":0},{"$f":"$C$3*'CPS Allocations'!O53","v":0},{"$f":"$C$3*'CPS Allocations'!P53","v":0},{"$f":"$C$3*'CPS Allocations'!Q53","v":0},{"$f":"$C$3*'CPS Allocations'!R53","v":0},0,0,0,0,0,0,0,0,0,0,0,0,0,0,0,0,0,0,0,0]
["185 - Horse Racing Commission","185","Horse Racing Commission",0,{"$f":"$C$3*'CPS Allocations'!E54","v":0},{"$f":"$C$3*'CPS Allocations'!F54","v":0},{"$f":"$C$3*'CPS Allocations'!G54","v":0},{"$f":"$C$3*'CPS Allocations'!H54","v":0},{"$f":"$C$3*'CPS Allocations'!I54","v":0},{"$f":"$C$3*'CPS Allocations'!J54","v":0},{"$f":"$C$3*'CPS Allocations'!K54","v":0},{"$f":"$C$3*'CPS Allocations'!L54","v":0},{"$f":"$C$3*'CPS Allocations'!M54","v":0},{"$f":"$C$3*'CPS Allocations'!N54","v":0},{"$f":"$C$3*'CPS Allocations'!O54","v":0},{"$f":"$C$3*'CPS Allocations'!P54","v":0},{"$f":"$C$3*'CPS Allocations'!Q54","v":0},{"$f":"$C$3*'CPS Allocations'!R54","v":0},0,0,0,0,0,0,0,0,0,0,0,0,0,0,0,0,0,0,0,0]
["190 - Board of Industrial Insurance Appeals","190","Board of Industrial Insurance Appeals",0,{"$f":"$C$3*'CPS Allocations'!E55","v":0},{"$f":"$C$3*'CPS Allocations'!F55","v":0},{"$f":"$C$3*'CPS Allocations'!G55","v":0},{"$f":"$C$3*'CPS Allocations'!H55","v":0},{"$f":"$C$3*'CPS Allocations'!I55","v":0},{"$f":"$C$3*'CPS Allocations'!J55","v":0},{"$f":"$C$3*'CPS Allocations'!K55","v":0},{"$f":"$C$3*'CPS Allocations'!L55","v":0},{"$f":"$C$3*'CPS Allocations'!M55","v":0},{"$f":"$C$3*'CPS Allocations'!N55","v":0},{"$f":"$C$3*'CPS Allocations'!O55","v":0},{"$f":"$C$3*'CPS Allocations'!P55","v":0},{"$f":"$C$3*'CPS Allocations'!Q55","v":0},{"$f":"$C$3*'CPS Allocations'!R55","v":0},0,0,0,0,0,0,0,0,0,0,0,0,0,0,0,0,0,0,0,0]
["195 - Liquor Control Board","195","Liquor Control Board",0,{"$f":"$C$3*'CPS Allocations'!E56","v":0},{"$f":"$C$3*'CPS Allocations'!F56","v":0},{"$f":"$C$3*'CPS Allocations'!G56","v":0},{"$f":"$C$3*'CPS Allocations'!H56","v":0},{"$f":"$C$3*'CPS Allocations'!I56","v":0},{"$f":"$C$3*'CPS Allocations'!J56","v":0},{"$f":"$C$3*'CPS Allocations'!K56","v":0},{"$f":"$C$3*'CPS Allocations'!L56","v":0},{"$f":"$C$3*'CPS Allocations'!M56","v":0},{"$f":"$C$3*'CPS Allocations'!N56","v":0},{"$f":"$C$3*'CPS Allocations'!O56","v":0},{"$f":"$C$3*'CPS Allocations'!P56","v":0},{"$f":"$C$3*'CPS Allocations'!Q56","v":0},{"$f":"$C$3*'CPS Allocations'!R56","v":0},0,0,0,0,0,0,0,0,0,0,0,0,0,0,0,0,0,0,0,0]
["205 - Board of Pilotage Commissioners","205","Board of Pilotage Commissioners",0,{"$f":"$C$3*'CPS Allocations'!E57","v":0},{"$f":"$C$3*'CPS Allocations'!F57","v":0},{"$f":"$C$3*'CPS Allocations'!G57","v":0},{"$f":"$C$3*'CPS Allocations'!H57","v":0},{"$f":"$C$3*'CPS Allocations'!I57","v":0},{"$f":"$C$3*'CPS Allocations'!J57","v":0},{"$f":"$C$3*'CPS Allocations'!K57","v":0},{"$f":"$C$3*'CPS Allocations'!L57","v":0},{"$f":"$C$3*'CPS Allocations'!M57","v":0},{"$f":"$C$3*'CPS Allocations'!N57","v":0},{"$f":"$C$3*'CPS Allocations'!O57","v":0},{"$f":"$C$3*'CPS Allocations'!P57","v":0},{"$f":"$C$3*'CPS Allocations'!Q57","v":0},{"$f":"$C$3*'CPS Allocations'!R57","v":0},0,0,0,0,0,0,0,0,0,0,0,0,0,0,0,0,0,0,0,0]
["215 - Utilities and Transportation Commission","215","Utilities and Transportation Commission",0,{"$f":"$C$3*'CPS Allocations'!E58","v":0},{"$f":"$C$3*'CPS Allocations'!F58","v":0},{"$f":"$C$3*'CPS Allocations'!G58","v":0},{"$f":"$C$3*'CPS Allocations'!H58","v":0},{"$f":"$C$3*'CPS Allocations'!I58","v":0},{"$f":"$C$3*'CPS Allocations'!J58","v":0},{"$f":"$C$3*'CPS Allocations'!K58","v":0},{"$f":"$C$3*'CPS Allocations'!L58","v":0},{"$f":"$C$3*'CPS Allocations'!M58","v":0},{"$f":"$C$3*'CPS Allocations'!N58","v":0},{"$f":"$C$3*'CPS Allocations'!O58","v":0},{"$f":"$C$3*'CPS Allocations'!P58","v":0},{"$f":"$C$3*'CPS Allocations'!Q58","v":0},{"$f":"$C$3*'CPS Allocations'!R58","v":0},0,0,0,0,0,0,0,0,0,0,0,0,0,0,0,0,0,0,0,0]
["220 - Board for Volunteer Firefighters and Reserve Officers","220","Board for Volunteer Firefighters and Reserve Officers",0,{"$f":"$C$3*'CPS Allocations'!E59","v":0},{"$f":"$C$3*'CPS Allocations'!F59","v":0},{"$f":"$C$3*'CPS Allocations'!G59","v":0},{"$f":"$C$3*'CPS Allocations'!H59","v":0},{"$f":"$C$3*'CPS Allocations'!I59","v":0},{"$f":"$C$3*'CPS Allocations'!J59","v":0},{"$f":"$C$3*'CPS Allocations'!K59","v":0},{"$f":"$C$3*'CPS Allocations'!L59","v":0},{"$f":"$C$3*'CPS Allocations'!M59","v":0},{"$f":"$C$3*'CPS Allocations'!N59","v":0},{"$f":"$C$3*'CPS Allocations'!O59","v":0},{"$f":"$C$3*'CPS Allocations'!P59","v":0},{"$f":"$C$3*'CPS Allocations'!Q59","v":0},{"$f":"$C$3*'CPS Allocations'!R59","v":0},0,0,0,0,0,0,0,0,0,0,0,0,0,0,0,0,0,0,0,0]
["225 - Washington State Patrol","225","Washington State Patrol",1487.6380445208486,{"$f":"$C$3*'CPS Allocations'!E60","v":0},{"$f":"$C$3*'CPS Allocations'!F60","v":0},{"$f":"$C$3*'CPS Allocations'!G60","v":1487.6380445208486},{"$f":"$C$3*'CPS Allocations'!H60","v":0},{"$f":"$C$3*'CPS Allocations'!I60","v":0},{"$f":"$C$3*'CPS Allocations'!J60","v":0},{"$f":"$C$3*'CPS Allocations'!K60","v":0},{"$f":"$C$3*'CPS Allocations'!L60","v":0},{"$f":"$C$3*'CPS Allocations'!M60","v":0},{"$f":"$C$3*'CPS Allocations'!N60","v":0},{"$f":"$C$3*'CPS Allocations'!O60","v":0},{"$f":"$C$3*'CPS Allocations'!P60","v":0},{"$f":"$C$3*'CPS Allocations'!Q60","v":0},{"$f":"$C$3*'CPS Allocations'!R60","v":0},0,0,0,0,0,0,0,0,0,0,0,0,0,0,0,0,0,0,0,0]
["227 - Criminal Justice Training Commission","227","Criminal Justice Training Commission",0,{"$f":"$C$3*'CPS Allocations'!E61","v":0},{"$f":"$C$3*'CPS Allocations'!F61","v":0},{"$f":"$C$3*'CPS Allocations'!G61","v":0},{"$f":"$C$3*'CPS Allocations'!H61","v":0},{"$f":"$C$3*'CPS Allocations'!I61","v":0},{"$f":"$C$3*'CPS Allocations'!J61","v":0},{"$f":"$C$3*'CPS Allocations'!K61","v":0},{"$f":"$C$3*'CPS Allocations'!L61","v":0},{"$f":"$C$3*'CPS Allocations'!M61","v":0},{"$f":"$C$3*'CPS Allocations'!N61","v":0},{"$f":"$C$3*'CPS Allocations'!O61","v":0},{"$f":"$C$3*'CPS Allocations'!P61","v":0},{"$f":"$C$3*'CPS Allocations'!Q61","v":0},{"$f":"$C$3*'CPS Allocations'!R61","v":0},0,0,0,0,0,0,0,0,0,0,0,0,0,0,0,0,0,0,0,0]
["228 - Traffic Safety Commission","228","Traffic Safety Commission",0,{"$f":"$C$3*'CPS Allocations'!E62","v":0},{"$f":"$C$3*'CPS Allocations'!F62","v":0},{"$f":"$C$3*'CPS Allocations'!G62","v":0},{"$f":"$C$3*'CPS Allocations'!H62","v":0},{"$f":"$C$3*'CPS Allocations'!I62","v":0},{"$f":"$C$3*'CPS Allocations'!J62","v":0},{"$f":"$C$3*'CPS Allocations'!K62","v":0},{"$f":"$C$3*'CPS Allocations'!L62","v":0},{"$f":"$C$3*'CPS Allocations'!M62","v":0},{"$f":"$C$3*'CPS Allocations'!N62","v":0},{"$f":"$C$3*'CPS Allocations'!O62","v":0},{"$f":"$C$3*'CPS Allocations'!P62","v":0},{"$f":"$C$3*'CPS Allocations'!Q62","v":0},{"$f":"$C$3*'CPS Allocations'!R62","v":0},0,0,0,0,0,0,0,0,0,0,0,0,0,0,0,0,0,0,0,0]
["235 - Department of Labor and Industries","235","Department of Labor and Industries",0,{"$f":"$C$3*'CPS Allocations'!E63","v":0},{"$f":"$C$3*'CPS Allocations'!F63","v":0},{"$f":"$C$3*'CPS Allocations'!G63","v":0},{"$f":"$C$3*'CPS Allocations'!H63","v":0},{"$f":"$C$3*'CPS Allocations'!I63","v":0},{"$f":"$C$3*'CPS Allocations'!J63","v":0},{"$f":"$C$3*'CPS Allocations'!K63","v":0},{"$f":"$C$3*'CPS Allocations'!L63","v":0},{"$f":"$C$3*'CPS Allocations'!M63","v":0},{"$f":"$C$3*'CPS Allocations'!N63","v":0},{"$f":"$C$3*'CPS Allocations'!O63","v":0},{"$f":"$C$3*'CPS Allocations'!P63","v":0},{"$f":"$C$3*'CPS Allocations'!Q63","v":0},{"$f":"$C$3*'CPS Allocations'!R63","v":0},0,0,0,0,0,0,0,0,0,0,0,0,0,0,0,0,0,0,0,0]
["240 - Department of Licensing","240","Department of Licensing",249362.51425062135,{"$f":"$C$3*'CPS Allocations'!E64","v":0},{"$f":"$C$3*'CPS Allocations'!F64","v":0},{"$f":"$C$3*'CPS Allocations'!G64","v":0},{"$f":"$C$3*'CPS Allocations'!H64","v":0},{"$f":"$C$3*'CPS Allocations'!I64","v":249362.51425062135},{"$f":"$C$3*'CPS Allocations'!J64","v":0},{"$f":"$C$3*'CPS Allocations'!K64","v":0},{"$f":"$C$3*'CPS Allocations'!L64","v":0},{"$f":"$C$3*'CPS Allocations'!M64","v":0},{"$f":"$C$3*'CPS Allocations'!N64","v":0},{"$f":"$C$3*'CPS Allocations'!O64","v":0},{"$f":"$C$3*'CPS Allocations'!P64","v":0},{"$f":"$C$3*'CPS Allocations'!Q64","v":0},{"$f":"$C$3*'CPS Allocations'!R64","v":0},0,0,0,0,0,0,0,0,0,0,0,0,0,0,0,0,0,0,0,0]
["245 - Military Department","245","Military Department",0,{"$f":"$C$3*'CPS Allocations'!E65","v":0},{"$f":"$C$3*'CPS Allocations'!F65","v":0},{"$f":"$C$3*'CPS Allocations'!G65","v":0},{"$f":"$C$3*'CPS Allocations'!H65","v":0},{"$f":"$C$3*'CPS Allocations'!I65","v":0},{"$f":"$C$3*'CPS Allocations'!J65","v":0},{"$f":"$C$3*'CPS Allocations'!K65","v":0},{"$f":"$C$3*'CPS Allocations'!L65","v":0},{"$f":"$C$3*'CPS Allocations'!M65","v":0},{"$f":"$C$3*'CPS Allocations'!N65","v":0},{"$f":"$C$3*'CPS Allocations'!O65","v":0},{"$f":"$C$3*'CPS Allocations'!P65","v":0},{"$f":"$C$3*'CPS Allocations'!Q65","v":0},{"$f":"$C$3*'CPS Allocations'!R65","v":0},0,0,0,0,0,0,0,0,0,0,0,0,0,0,0,0,0,0,0,0]
["275 - Public Employment Relations Commission","275","Public Employment Relations Commission",0,{"$f":"$C$3*'CPS Allocations'!E66","v":0},{"$f":"$C$3*'CPS Allocations'!F66","v":0},{"$f":"$C$3*'CPS Allocations'!G66","v":0},{"$f":"$C$3*'CPS Allocations'!H66","v":0},{"$f":"$C$3*'CPS Allocations'!I66","v":0},{"$f":"$C$3*'CPS Allocations'!J66","v":0},{"$f":"$C$3*'CPS Allocations'!K66","v":0},{"$f":"$C$3*'CPS Allocations'!L66","v":0},{"$f":"$C$3*'CPS Allocations'!M66","v":0},{"$f":"$C$3*'CPS Allocations'!N66","v":0},{"$f":"$C$3*'CPS Allocations'!O66","v":0},{"$f":"$C$3*'CPS Allocations'!P66","v":0},{"$f":"$C$3*'CPS Allocations'!Q66","v":0},{"$f":"$C$3*'CPS Allocations'!R66","v":0},0,0,0,0,0,0,0,0,0,0,0,0,0,0,0,0,0,0,0,0]
["300 - Department of Social and Health Services","300","Department of Social and Health Services",461428.13045925426,{"$f":"$C$3*'CPS Allocations'!E67","v":0},{"$f":"$C$3*'CPS Allocations'!F67","v":0},{"$f":"$C$3*'CPS Allocations'!G67","v":0},{"$f":"$C$3*'CPS Allocations'!H67","v":0},{"$f":"$C$3*'CPS Allocations'!I67","v":0},{"$f":"$C$3*'CPS Allocations'!J67","v":461428.13045925426},{"$f":"$C$3*'CPS Allocations'!K67","v":0},{"$f":"$C$3*'CPS Allocations'!L67","v":0},{"$f":"$C$3*'CPS Allocations'!M67","v":0},{"$f":"$C$3*'CPS Allocations'!N67","v":0},{"$f":"$C$3*'CPS Allocations'!O67","v":0},{"$f":"$C$3*'CPS Allocations'!P67","v":0},{"$f":"$C$3*'CPS Allocations'!Q67","v":0},{"$f":"$C$3*'CPS Allocations'!R67","v":0},0,0,0,0,0,0,0,0,0,0,0,0,0,0,0,0,0,0,0,0]
["303 - Department of Health","303","Department of Health",0,{"$f":"$C$3*'CPS Allocations'!E68","v":0},{"$f":"$C$3*'CPS Allocations'!F68","v":0},{"$f":"$C$3*'CPS Allocations'!G68","v":0},{"$f":"$C$3*'CPS Allocations'!H68","v":0},{"$f":"$C$3*'CPS Allocations'!I68","v":0},{"$f":"$C$3*'CPS Allocations'!J68","v":0},{"$f":"$C$3*'CPS Allocations'!K68","v":0},{"$f":"$C$3*'CPS Allocations'!L68","v":0},{"$f":"$C$3*'CPS Allocations'!M68","v":0},{"$f":"$C$3*'CPS Allocations'!N68","v":0},{"$f":"$C$3*'CPS Allocations'!O68","v":0},{"$f":"$C$3*'CPS Allocations'!P68","v":0},{"$f":"$C$3*'CPS Allocations'!Q68","v":0},{"$f":"$C$3*'CPS Allocations'!R68","v":0},0,0,0,0,0,0,0,0,0,0,0,0,0,0,0,0,0,0,0,0]
["305 - Department of Veterans Affairs","305","Department of Veterans Affairs",0,{"$f":"$C$3*'CPS Allocations'!E69","v":0},{"$f":"$C$3*'CPS Allocations'!F69","v":0},{"$f":"$C$3*'CPS Allocations'!G69","v":0},{"$f":"$C$3*'CPS Allocations'!H69","v":0},{"$f":"$C$3*'CPS Allocations'!I69","v":0},{"$f":"$C$3*'CPS Allocations'!J69","v":0},{"$f":"$C$3*'CPS Allocations'!K69","v":0},{"$f":"$C$3*'CPS Allocations'!L69","v":0},{"$f":"$C$3*'CPS Allocations'!M69","v":0},{"$f":"$C$3*'CPS Allocations'!N69","v":0},{"$f":"$C$3*'CPS Allocations'!O69","v":0},{"$f":"$C$3*'CPS Allocations'!P69","v":0},{"$f":"$C$3*'CPS Allocations'!Q69","v":0},{"$f":"$C$3*'CPS Allocations'!R69","v":0},0,0,0,0,0,0,0,0,0,0,0,0,0,0,0,0,0,0,0,0]
[{"$f":"CONCATENATE(B70,\" - \",C70)","v":"307 - DCYF"},"307","DCYF",{"$f":"SUM(E70:AL70)","v":188935.75333893439},{"$f":"$C$3*'CPS Allocations'!E70","v":0},{"$f":"$C$3*'CPS Allocations'!F70","v":0},{"$f":"$C$3*'CPS Allocations'!G70","v":0},{"$f":"$C$3*'CPS Allocations'!H70","v":0},{"$f":"$C$3*'CPS Allocations'!I70","v":0},{"$f":"$C$3*'CPS Allocations'!J70","v":188935.75333893439},{"$f":"$C$3*'CPS Allocations'!K70","v":0},{"$f":"$C$3*'CPS Allocations'!L70","v":0},{"$f":"$C$3*'CPS Allocations'!M70","v":0},{"$f":"$C$3*'CPS Allocations'!N70","v":0},{"$f":"$C$3*'CPS Allocations'!O70","v":0},{"$f":"$C$3*'CPS Allocations'!P70","v":0},{"$f":"$C$3*'CPS Allocations'!Q70","v":0},{"$f":"$C$3*'CPS Allocations'!R70","v":0},0,0,0,0,0,0,0,0,0,0,0,0,0,0,0,0,0,0,0,0]
["310 - Department of Corrections","310","Department of Corrections",0,{"$f":"$C$3*'CPS Allocations'!E71","v":0},{"$f":"$C$3*'CPS Allocations'!F71","v":0},{"$f":"$C$3*'CPS Allocations'!G71","v":0},{"$f":"$C$3*'CPS Allocations'!H71","v":0},{"$f":"$C$3*'CPS Allocations'!I71","v":0},{"$f":"$C$3*'CPS Allocations'!J71","v":0},{"$f":"$C$3*'CPS Allocations'!K71","v":0},{"$f":"$C$3*'CPS Allocations'!L71","v":0},{"$f":"$C$3*'CPS Allocations'!M71","v":0},{"$f":"$C$3*'CPS Allocations'!N71","v":0},{"$f":"$C$3*'CPS Allocations'!O71","v":0},{"$f":"$C$3*'CPS Allocations'!P71","v":0},{"$f":"$C$3*'CPS Allocations'!Q71","v":0},{"$f":"$C$3*'CPS Allocations'!R71","v":0},0,0,0,0,0,0,0,0,0,0,0,0,0,0,0,0,0,0,0,0]
["315 - Department of Services for the Blind","315","Department of Services for the Blind",0,{"$f":"$C$3*'CPS Allocations'!E72","v":0},{"$f":"$C$3*'CPS Allocations'!F72","v":0},{"$f":"$C$3*'CPS Allocations'!G72","v":0},{"$f":"$C$3*'CPS Allocations'!H72","v":0},{"$f":"$C$3*'CPS Allocations'!I72","v":0},{"$f":"$C$3*'CPS Allocations'!J72","v":0},{"$f":"$C$3*'CPS Allocations'!K72","v":0},{"$f":"$C$3*'CPS Allocations'!L72","v":0},{"$f":"$C$3*'CPS Allocations'!M72","v":0},{"$f":"$C$3*'CPS Allocations'!N72","v":0},{"$f":"$C$3*'CPS Allocations'!O72","v":0},{"$f":"$C$3*'CPS Allocations'!P72","v":0},{"$f":"$C$3*'CPS Allocations'!Q72","v":0},{"$f":"$C$3*'CPS Allocations'!R72","v":0},0,0,0,0,0,0,0,0,0,0,0,0,0,0,0,0,0,0,0,0]
["340 - Student Achievement Council","340","Student Achievement Council",0,{"$f":"$C$3*'CPS Allocations'!E73","v":0},{"$f":"$C$3*'CPS Allocations'!F73","v":0},{"$f":"$C$3*'CPS Allocations'!G73","v":0},{"$f":"$C$3*'CPS Allocations'!H73","v":0},{"$f":"$C$3*'CPS Allocations'!I73","v":0},{"$f":"$C$3*'CPS Allocations'!J73","v":0},{"$f":"$C$3*'CPS Allocations'!K73","v":0},{"$f":"$C$3*'CPS Allocations'!L73","v":0},{"$f":"$C$3*'CPS Allocations'!M73","v":0},{"$f":"$C$3*'CPS Allocations'!N73","v":0},{"$f":"$C$3*'CPS Allocations'!O73","v":0},{"$f":"$C$3*'CPS Allocations'!P73","v":0},{"$f":"$C$3*'CPS Allocations'!Q73","v":0},{"$f":"$C$3*'CPS Allocations'!R73","v":0},0,0,0,0,0,0,0,0,0,0,0,0,0,0,0,0,0,0,0,0]
["341 - Law Enforcement Officers' & Fire Fighters' Plan 2 Retirement Board","341","Law Enforcement Officers' & Fire Fighters' Plan 2 Retirement Board",0,{"$f":"$C$3*'CPS Allocations'!E74","v":0},{"$f":"$C$3*'CPS Allocations'!F74","v":0},{"$f":"$C$3*'CPS Allocations'!G74","v":0},{"$f":"$C$3*'CPS Allocations'!H74","v":0},{"$f":"$C$3*'CPS Allocations'!I74","v":0},{"$f":"$C$3*'CPS Allocations'!J74","v":0},{"$f":"$C$3*'CPS Allocations'!K74","v":0},{"$f":"$C$3*'CPS Allocations'!L74","v":0},{"$f":"$C$3*'CPS Allocations'!M74","v":0},{"$f":"$C$3*'CPS Allocations'!N74","v":0},{"$f":"$C$3*'CPS Allocations'!O74","v":0},{"$f":"$C$3*'CPS Allocations'!P74","v":0},{"$f":"$C$3*'CPS Allocations'!Q74","v":0},{"$f":"$C$3*'CPS Allocations'!R74","v":0},0,0,0,0,0,0,0,0,0,0,0,0,0,0,0,0,0,0,0,0]
["350 - Superintendent of Public Instruction","350","Superintendent of Public Instruction",279790.3860656519,{"$f":"$C$3*'CPS Allocations'!E75","v":0},{"$f":"$C$3*'CPS Allocations'!F75","v":0},{"$f":"$C$3*'CPS Allocations'!G75","v":0},{"$f":"$C$3*'CPS Allocations'!H75","v":0},{"$f":"$C$3*'CPS Allocations'!I75","v":0},{"$f":"$C$3*'CPS Allocations'!J75","v":0},{"$f":"$C$3*'CPS Allocations'!K75","v":0},{"$f":"$C$3*'CPS Allocations'!L75","v":0},{"$f":"$C$3*'CPS Allocations'!M75","v":0},{"$f":"$C$3*'CPS Allocations'!N75","v":0},{"$f":"$C$3*'CPS Allocations'!O75","v":0},{"$f":"$C$3*'CPS Allocations'!P75","v":279790.3860656519},{"$f":"$C$3*'CPS Allocations'!Q75","v":0},{"$f":"$C$3*'CPS Allocations'!R75","v":0},0,0,0,0,0,0,0,0,0,0,0,0,0,0,0,0,0,0,0,0]
["351 - State School For The Blind","351","State School For The Blind",0,{"$f":"$C$3*'CPS Allocations'!E76","v":0},{"$f":"$C$3*'CPS Allocations'!F76","v":0},{"$f":"$C$3*'CPS Allocations'!G76","v":0},{"$f":"$C$3*'CPS Allocations'!H76","v":0},{"$f":"$C$3*'CPS Allocations'!I76","v":0},{"$f":"$C$3*'CPS Allocations'!J76","v":0},{"$f":"$C$3*'CPS Allocations'!K76","v":0},{"$f":"$C$3*'CPS Allocations'!L76","v":0},{"$f":"$C$3*'CPS Allocations'!M76","v":0},{"$f":"$C$3*'CPS Allocations'!N76","v":0},{"$f":"$C$3*'CPS Allocations'!O76","v":0},{"$f":"$C$3*'CPS Allocations'!P76","v":0},{"$f":"$C$3*'CPS Allocations'!Q76","v":0},{"$f":"$C$3*'CPS Allocations'!R76","v":0},0,0,0,0,0,0,0,0,0,0,0,0,0,0,0,0,0,0,0,0]
["353 - State Center for Childhood Deafness and Hearing Loss","353","State Center for Childhood Deafness and Hearing Loss",0,{"$f":"$C$3*'CPS Allocations'!E77","v":0},{"$f":"$C$3*'CPS Allocations'!F77","v":0},{"$f":"$C$3*'CPS Allocations'!G77","v":0},{"$f":"$C$3*'CPS Allocations'!H77","v":0},{"$f":"$C$3*'CPS Allocations'!I77","v":0},{"$f":"$C$3*'CPS Allocations'!J77","v":0},{"$f":"$C$3*'CPS Allocations'!K77","v":0},{"$f":"$C$3*'CPS Allocations'!L77","v":0},{"$f":"$C$3*'CPS Allocations'!M77","v":0},{"$f":"$C$3*'CPS Allocations'!N77","v":0},{"$f":"$C$3*'CPS Allocations'!O77","v":0},{"$f":"$C$3*'CPS Allocations'!P77","v":0},{"$f":"$C$3*'CPS Allocations'!Q77","v":0},{"$f":"$C$3*'CPS Allocations'!R77","v":0},0,0,0,0,0,0,0,0,0,0,0,0,0,0,0,0,0,0,0,0]
["354 - Workforce Training and Education Coordinating Board","354","Workforce Training and Education Coordinating Board",0,{"$f":"$C$3*'CPS Allocations'!E78","v":0},{"$f":"$C$3*'CPS Allocations'!F78","v":0},{"$f":"$C$3*'CPS Allocations'!G78","v":0},{"$f":"$C$3*'CPS Allocations'!H78","v":0},{"$f":"$C$3*'CPS Allocations'!I78","v":0},{"$f":"$C$3*'CPS Allocations'!J78","v":0},{"$f":"$C$3*'CPS Allocations'!K78","v":0},{"$f":"$C$3*'CPS Allocations'!L78","v":0},{"$f":"$C$3*'CPS Allocations'!M78","v":0},{"$f":"$C$3*'CPS Allocations'!N78","v":0},{"$f":"$C$3*'CPS Allocations'!O78","v":0},{"$f":"$C$3*'CPS Allocations'!P78","v":0},{"$f":"$C$3*'CPS Allocations'!Q78","v":0},{"$f":"$C$3*'CPS Allocations'!R78","v":0},0,0,0,0,0,0,0,0,0,0,0,0,0,0,0,0,0,0,0,0]
["355 - Department of Archaeology and Historic Preservation","355","Department of Archaeology and Historic Preservation",0,{"$f":"$C$3*'CPS Allocations'!E79","v":0},{"$f":"$C$3*'CPS Allocations'!F79","v":0},{"$f":"$C$3*'CPS Allocations'!G79","v":0},{"$f":"$C$3*'CPS Allocations'!H79","v":0},{"$f":"$C$3*'CPS Allocations'!I79","v":0},{"$f":"$C$3*'CPS Allocations'!J79","v":0},{"$f":"$C$3*'CPS Allocations'!K79","v":0},{"$f":"$C$3*'CPS Allocations'!L79","v":0},{"$f":"$C$3*'CPS Allocations'!M79","v":0},{"$f":"$C$3*'CPS Allocations'!N79","v":0},{"$f":"$C$3*'CPS Allocations'!O79","v":0},{"$f":"$C$3*'CPS Allocations'!P79","v":0},{"$f":"$C$3*'CPS Allocations'!Q79","v":0},{"$f":"$C$3*'CPS Allocations'!R79","v":0},0,0,0,0,0,0,0,0,0,0,0,0,0,0,0,0,0,0,0,0]
["357 - Department of Early Learning","357","Department of Early Learning",0,{"$f":"$C$3*'CPS Allocations'!E80","v":0},{"$f":"$C$3*'CPS Allocations'!F80","v":0},{"$f":"$C$3*'CPS Allocations'!G80","v":0},{"$f":"$C$3*'CPS Allocations'!H80","v":0},{"$f":"$C$3*'CPS Allocations'!I80","v":0},{"$f":"$C$3*'CPS Allocations'!J80","v":0},{"$f":"$C$3*'CPS Allocations'!K80","v":0},{"$f":"$C$3*'CPS Allocations'!L80","v":0},{"$f":"$C$3*'CPS Allocations'!M80","v":0},{"$f":"$C$3*'CPS Allocations'!N80","v":0},{"$f":"$C$3*'CPS Allocations'!O80","v":0},{"$f":"$C$3*'CPS Allocations'!P80","v":0},{"$f":"$C$3*'CPS Allocations'!Q80","v":0},{"$f":"$C$3*'CPS Allocations'!R80","v":0},0,0,0,0,0,0,0,0,0,0,0,0,0,0,0,0,0,0,0,0]
["359 - WA Charter School Commission","359","WA Charter School Commission",0,{"$f":"$C$3*'CPS Allocations'!E81","v":0},{"$f":"$C$3*'CPS Allocations'!F81","v":0},{"$f":"$C$3*'CPS Allocations'!G81","v":0},{"$f":"$C$3*'CPS Allocations'!H81","v":0},{"$f":"$C$3*'CPS Allocations'!I81","v":0},{"$f":"$C$3*'CPS Allocations'!J81","v":0},{"$f":"$C$3*'CPS Allocations'!K81","v":0},{"$f":"$C$3*'CPS Allocations'!L81","v":0},{"$f":"$C$3*'CPS Allocations'!M81","v":0},{"$f":"$C$3*'CPS Allocations'!N81","v":0},{"$f":"$C$3*'CPS Allocations'!O81","v":0},{"$f":"$C$3*'CPS Allocations'!P81","v":0},{"$f":"$C$3*'CPS Allocations'!Q81","v":0},{"$f":"$C$3*'CPS Allocations'!R81","v":0},0,0,0,0,0,0,0,0,0,0,0,0,0,0,0,0,0,0,0,0]
["360 - University of Washington","360","University of Washington",0,{"$f":"$C$3*'CPS Allocations'!E82","v":0},{"$f":"$C$3*'CPS Allocations'!F82","v":0},{"$f":"$C$3*'CPS Allocations'!G82","v":0},{"$f":"$C$3*'CPS Allocations'!H82","v":0},{"$f":"$C$3*'CPS Allocations'!I82","v":0},{"$f":"$C$3*'CPS Allocations'!J82","v":0},{"$f":"$C$3*'CPS Allocations'!K82","v":0},{"$f":"$C$3*'CPS Allocations'!L82","v":0},{"$f":"$C$3*'CPS Allocations'!M82","v":0},{"$f":"$C$3*'CPS Allocations'!N82","v":0},{"$f":"$C$3*'CPS Allocations'!O82","v":0},{"$f":"$C$3*'CPS Allocations'!P82","v":0},{"$f":"$C$3*'CPS Allocations'!Q82","v":0},{"$f":"$C$3*'CPS Allocations'!R82","v":0},0,0,0,0,0,0,0,0,0,0,0,0,0,0,0,0,0,0,0,0]
["365 - Washington State University","365","Washington State University",0,{"$f":"$C$3*'CPS Allocations'!E83","v":0},{"$f":"$C$3*'CPS Allocations'!F83","v":0},{"$f":"$C$3*'CPS Allocations'!G83","v":0},{"$f":"$C$3*'CPS Allocations'!H83","v":0},{"$f":"$C$3*'CPS Allocations'!I83","v":0},{"$f":"$C$3*'CPS Allocations'!J83","v":0},{"$f":"$C$3*'CPS Allocations'!K83","v":0},{"$f":"$C$3*'CPS Allocations'!L83","v":0},{"$f":"$C$3*'CPS Allocations'!M83","v":0},{"$f":"$C$3*'CPS Allocations'!N83","v":0},{"$f":"$C$3*'CPS Allocations'!O83","v":0},{"$f":"$C$3*'CPS Allocations'!P83","v":0},{"$f":"$C$3*'CPS Allocations'!Q83","v":0},{"$f":"$C$3*'CPS Allocations'!R83","v":0},0,0,0,0,0,0,0,0,0,0,0,0,0,0,0,0,0,0,0,0]
["370 - Eastern Washington University","370","Eastern Washington University",0,{"$f":"$C$3*'CPS Allocations'!E84","v":0},{"$f":"$C$3*'CPS Allocations'!F84","v":0},{"$f":"$C$3*'CPS Allocations'!G84","v":0},{"$f":"$C$3*'CPS Allocations'!H84","v":0},{"$f":"$C$3*'CPS Allocations'!I84","v":0},{"$f":"$C$3*'CPS Allocations'!J84","v":0},{"$f":"$C$3*'CPS Allocations'!K84","v":0},{"$f":"$C$3*'CPS Allocations'!L84","v":0},{"$f":"$C$3*'CPS Allocations'!M84","v":0},{"$f":"$C$3*'CPS Allocations'!N84","v":0},{"$f":"$C$3*'CPS Allocations'!O84","v":0},{"$f":"$C$3*'CPS Allocations'!P84","v":0},{"$f":"$C$3*'CPS Allocations'!Q84","v":0},{"$f":"$C$3*'CPS Allocations'!R84","v":0},0,0,0,0,0,0,0,0,0,0,0,0,0,0,0,0,0,0,0,0]
["375 - Central Washington University","375","Central Washington University",0,{"$f":"$C$3*'CPS Allocations'!E85","v":0},{"$f":"$C$3*'CPS Allocations'!F85","v":0},{"$f":"$C$3*'CPS Allocations'!G85","v":0},{"$f":"$C$3*'CPS Allocations'!H85","v":0},{"$f":"$C$3*'CPS Allocations'!I85","v":0},{"$f":"$C$3*'CPS Allocations'!J85","v":0},{"$f":"$C$3*'CPS Allocations'!K85","v":0},{"$f":"$C$3*'CPS Allocations'!L85","v":0},{"$f":"$C$3*'CPS Allocations'!M85","v":0},{"$f":"$C$3*'CPS Allocations'!N85","v":0},{"$f":"$C$3*'CPS Allocations'!O85","v":0},{"$f":"$C$3*'CPS Allocations'!P85","v":0},{"$f":"$C$3*'CPS Allocations'!Q85","v":0},{"$f":"$C$3*'CPS Allocations'!R85","v":0},0,0,0,0,0,0,0,0,0,0,0,0,0,0,0,0,0,0,0,0]
["376 - The Evergreen State College","376","The Evergreen State College",0,{"$f":"$C$3*'CPS Allocations'!E86","v":0},{"$f":"$C$3*'CPS Allocations'!F86","v":0},{"$f":"$C$3*'CPS Allocations'!G86","v":0},{"$f":"$C$3*'CPS Allocations'!H86","v":0},{"$f":"$C$3*'CPS Allocations'!I86","v":0},{"$f":"$C$3*'CPS Allocations'!J86","v":0},{"$f":"$C$3*'CPS Allocations'!K86","v":0},{"$f":"$C$3*'CPS Allocations'!L86","v":0},{"$f":"$C$3*'CPS Allocations'!M86","v":0},{"$f":"$C$3*'CPS Allocations'!N86","v":0},{"$f":"$C$3*'CPS Allocations'!O86","v":0},{"$f":"$C$3*'CPS Allocations'!P86","v":0},{"$f":"$C$3*'CPS Allocations'!Q86","v":0},{"$f":"$C$3*'CPS Allocations'!R86","v":0},0,0,0,0,0,0,0,0,0,0,0,0,0,0,0,0,0,0,0,0]
["380 - Western Washington University","380","Western Washington University",0,{"$f":"$C$3*'CPS Allocations'!E87","v":0},{"$f":"$C$3*'CPS Allocations'!F87","v":0},{"$f":"$C$3*'CPS Allocations'!G87","v":0},{"$f":"$C$3*'CPS Allocations'!H87","v":0},{"$f":"$C$3*'CPS Allocations'!I87","v":0},{"$f":"$C$3*'CPS Allocations'!J87","v":0},{"$f":"$C$3*'CPS Allocations'!K87","v":0},{"$f":"$C$3*'CPS Allocations'!L87","v":0},{"$f":"$C$3*'CPS Allocations'!M87","v":0},{"$f":"$C$3*'CPS Allocations'!N87","v":0},{"$f":"$C$3*'CPS Allocations'!O87","v":0},{"$f":"$C$3*'CPS Allocations'!P87","v":0},{"$f":"$C$3*'CPS Allocations'!Q87","v":0},{"$f":"$C$3*'CPS Allocations'!R87","v":0},0,0,0,0,0,0,0,0,0,0,0,0,0,0,0,0,0,0,0,0]
["387 - Washington State Arts Commission","387","Washington State Arts Commission",0,{"$f":"$C$3*'CPS Allocations'!E88","v":0},{"$f":"$C$3*'CPS Allocations'!F88","v":0},{"$f":"$C$3*'CPS Allocations'!G88","v":0},{"$f":"$C$3*'CPS Allocations'!H88","v":0},{"$f":"$C$3*'CPS Allocations'!I88","v":0},{"$f":"$C$3*'CPS Allocations'!J88","v":0},{"$f":"$C$3*'CPS Allocations'!K88","v":0},{"$f":"$C$3*'CPS Allocations'!L88","v":0},{"$f":"$C$3*'CPS Allocations'!M88","v":0},{"$f":"$C$3*'CPS Allocations'!N88","v":0},{"$f":"$C$3*'CPS Allocations'!O88","v":0},{"$f":"$C$3*'CPS Allocations'!P88","v":0},{"$f":"$C$3*'CPS Allocations'!Q88","v":0},{"$f":"$C$3*'CPS Allocations'!R88","v":0},0,0,0,0,0,0,0,0,0,0,0,0,0,0,0,0,0,0,0,0]
["390 - Washington State Historical Society","390","Washington State Historical Society",0,{"$f":"$C$3*'CPS Allocations'!E89","v":0},{"$f":"$C$3*'CPS Allocations'!F89","v":0},{"$f":"$C$3*'CPS Allocations'!G89","v":0},{"$f":"$C$3*'CPS Allocations'!H89","v":0},{"$f":"$C$3*'CPS Allocations'!I89","v":0},{"$f":"$C$3*'CPS Allocations'!J89","v":0},{"$f":"$C$3*'CPS Allocations'!K89","v":0},{"$f":"$C$3*'CPS Allocations'!L89","v":0},{"$f":"$C$3*'CPS Allocations'!M89","v":0},{"$f":"$C$3*'CPS Allocations'!N89","v":0},{"$f":"$C$3*'CPS Allocations'!O89","v":0},{"$f":"$C$3*'CPS Allocations'!P89","v":0},{"$f":"$C$3*'CPS Allocations'!Q89","v":0},{"$f":"$C$3*'CPS Allocations'!R89","v":0},0,0,0,0,0,0,0,0,0,0,0,0,0,0,0,0,0,0,0,0]
["395 - Eastern Washington State Historical Society","395","Eastern Washington State Historical Society",0,{"$f":"$C$3*'CPS Allocations'!E90","v":0},{"$f":"$C$3*'CPS Allocations'!F90","v":0},{"$f":"$C$3*'CPS Allocations'!G90","v":0},{"$f":"$C$3*'CPS Allocations'!H90","v":0},{"$f":"$C$3*'CPS Allocations'!I90","v":0},{"$f":"$C$3*'CPS Allocations'!J90","v":0},{"$f":"$C$3*'CPS Allocations'!K90","v":0},{"$f":"$C$3*'CPS Allocations'!L90","v":0},{"$f":"$C$3*'CPS Allocations'!M90","v":0},{"$f":"$C$3*'CPS Allocations'!N90","v":0},{"$f":"$C$3*'CPS Allocations'!O90","v":0},{"$f":"$C$3*'CPS Allocations'!P90","v":0},{"$f":"$C$3*'CPS Allocations'!Q90","v":0},{"$f":"$C$3*'CPS Allocations'!R90","v":0},0,0,0,0,0,0,0,0,0,0,0,0,0,0,0,0,0,0,0,0]
["405 - Department of Transportation","405","Department of Transportation",523514.1320788532,{"$f":"$C$3*'CPS Allocations'!E91","v":0},{"$f":"$C$3*'CPS Allocations'!F91","v":0},{"$f":"$C$3*'CPS Allocations'!G91","v":0},{"$f":"$C$3*'CPS Allocations'!H91","v":0},{"$f":"$C$3*'CPS Allocations'!I91","v":0},{"$f":"$C$3*'CPS Allocations'!J91","v":0},{"$f":"$C$3*'CPS Allocations'!K91","v":0},{"$f":"$C$3*'CPS Allocations'!L91","v":0},{"$f":"$C$3*'CPS Allocations'!M91","v":0},{"$f":"$C$3*'CPS Allocations'!N91","v":523514.1320788532},{"$f":"$C$3*'CPS Allocations'!O91","v":0},{"$f":"$C$3*'CPS Allocations'!P91","v":0},{"$f":"$C$3*'CPS Allocations'!Q91","v":0},{"$f":"$C$3*'CPS Allocations'!R91","v":0},0,0,0,0,0,0,0,0,0,0,0,0,0,0,0,0,0,0,0,0]
["406 - County Road Administration Board","406","County Road Administration Board",0,{"$f":"$C$3*'CPS Allocations'!E92","v":0},{"$f":"$C$3*'CPS Allocations'!F92","v":0},{"$f":"$C$3*'CPS Allocations'!G92","v":0},{"$f":"$C$3*'CPS Allocations'!H92","v":0},{"$f":"$C$3*'CPS Allocations'!I92","v":0},{"$f":"$C$3*'CPS Allocations'!J92","v":0},{"$f":"$C$3*'CPS Allocations'!K92","v":0},{"$f":"$C$3*'CPS Allocations'!L92","v":0},{"$f":"$C$3*'CPS Allocations'!M92","v":0},{"$f":"$C$3*'CPS Allocations'!N92","v":0},{"$f":"$C$3*'CPS Allocations'!O92","v":0},{"$f":"$C$3*'CPS Allocations'!P92","v":0},{"$f":"$C$3*'CPS Allocations'!Q92","v":0},{"$f":"$C$3*'CPS Allocations'!R92","v":0},0,0,0,0,0,0,0,0,0,0,0,0,0,0,0,0,0,0,0,0]
["407 - Transportation Improvement Board","407","Transportation Improvement Board",0,{"$f":"$C$3*'CPS Allocations'!E93","v":0},{"$f":"$C$3*'CPS Allocations'!F93","v":0},{"$f":"$C$3*'CPS Allocations'!G93","v":0},{"$f":"$C$3*'CPS Allocations'!H93","v":0},{"$f":"$C$3*'CPS Allocations'!I93","v":0},{"$f":"$C$3*'CPS Allocations'!J93","v":0},{"$f":"$C$3*'CPS Allocations'!K93","v":0},{"$f":"$C$3*'CPS Allocations'!L93","v":0},{"$f":"$C$3*'CPS Allocations'!M93","v":0},{"$f":"$C$3*'CPS Allocations'!N93","v":0},{"$f":"$C$3*'CPS Allocations'!O93","v":0},{"$f":"$C$3*'CPS Allocations'!P93","v":0},{"$f":"$C$3*'CPS Allocations'!Q93","v":0},{"$f":"$C$3*'CPS Allocations'!R93","v":0},0,0,0,0,0,0,0,0,0,0,0,0,0,0,0,0,0,0,0,0]
["410 - Transportation Commission","410","Transportation Commission",0,{"$f":"$C$3*'CPS Allocations'!E94","v":0},{"$f":"$C$3*'CPS Allocations'!F94","v":0},{"$f":"$C$3*'CPS Allocations'!G94","v":0},{"$f":"$C$3*'CPS Allocations'!H94","v":0},{"$f":"$C$3*'CPS Allocations'!I94","v":0},{"$f":"$C$3*'CPS Allocations'!J94","v":0},{"$f":"$C$3*'CPS Allocations'!K94","v":0},{"$f":"$C$3*'CPS Allocations'!L94","v":0},{"$f":"$C$3*'CPS Allocations'!M94","v":0},{"$f":"$C$3*'CPS Allocations'!N94","v":0},{"$f":"$C$3*'CPS Allocations'!O94","v":0},{"$f":"$C$3*'CPS Allocations'!P94","v":0},{"$f":"$C$3*'CPS Allocations'!Q94","v":0},{"$f":"$C$3*'CPS Allocations'!R94","v":0},0,0,0,0,0,0,0,0,0,0,0,0,0,0,0,0,0,0,0,0]
["411 - Freight Mobility Strategic Investment Board","411","Freight Mobility Strategic Investment Board",0,{"$f":"$C$3*'CPS Allocations'!E95","v":0},{"$f":"$C$3*'CPS Allocations'!F95","v":0},{"$f":"$C$3*'CPS Allocations'!G95","v":0},{"$f":"$C$3*'CPS Allocations'!H95","v":0},{"$f":"$C$3*'CPS Allocations'!I95","v":0},{"$f":"$C$3*'CPS Allocations'!J95","v":0},{"$f":"$C$3*'CPS Allocations'!K95","v":0},{"$f":"$C$3*'CPS Allocations'!L95","v":0},{"$f":"$C$3*'CPS Allocations'!M95","v":0},{"$f":"$C$3*'CPS Allocations'!N95","v":0},{"$f":"$C$3*'CPS Allocations'!O95","v":0},{"$f":"$C$3*'CPS Allocations'!P95","v":0},{"$f":"$C$3*'CPS Allocations'!Q95","v":0},{"$f":"$C$3*'CPS Allocations'!R95","v":0},0,0,0,0,0,0,0,0,0,0,0,0,0,0,0,0,0,0,0,0]
["460 - Columbia River Gorge Commission","460","Columbia River Gorge Commission",0,{"$f":"$C$3*'CPS Allocations'!E96","v":0},{"$f":"$C$3*'CPS Allocations'!F96","v":0},{"$f":"$C$3*'CPS Allocations'!G96","v":0},{"$f":"$C$3*'CPS Allocations'!H96","v":0},{"$f":"$C$3*'CPS Allocations'!I96","v":0},{"$f":"$C$3*'CPS Allocations'!J96","v":0},{"$f":"$C$3*'CPS Allocations'!K96","v":0},{"$f":"$C$3*'CPS Allocations'!L96","v":0},{"$f":"$C$3*'CPS Allocations'!M96","v":0},{"$f":"$C$3*'CPS Allocations'!N96","v":0},{"$f":"$C$3*'CPS Allocations'!O96","v":0},{"$f":"$C$3*'CPS Allocations'!P96","v":0},{"$f":"$C$3*'CPS Allocations'!Q96","v":0},{"$f":"$C$3*'CPS Allocations'!R96","v":0},0,0,0,0,0,0,0,0,0,0,0,0,0,0,0,0,0,0,0,0]
["461 - Department of Ecology","461","Department of Ecology",0,{"$f":"$C$3*'CPS Allocations'!E97","v":0},{"$f":"$C$3*'CPS Allocations'!F97","v":0},{"$f":"$C$3*'CPS Allocations'!G97","v":0},{"$f":"$C$3*'CPS Allocations'!H97","v":0},{"$f":"$C$3*'CPS Allocations'!I97","v":0},{"$f":"$C$3*'CPS Allocations'!J97","v":0},{"$f":"$C$3*'CPS Allocations'!K97","v":0},{"$f":"$C$3*'CPS Allocations'!L97","v":0},{"$f":"$C$3*'CPS Allocations'!M97","v":0},{"$f":"$C$3*'CPS Allocations'!N97","v":0},{"$f":"$C$3*'CPS Allocations'!O97","v":0},{"$f":"$C$3*'CPS Allocations'!P97","v":0},{"$f":"$C$3*'CPS Allocations'!Q97","v":0},{"$f":"$C$3*'CPS Allocations'!R97","v":0},0,0,0,0,0,0,0,0,0,0,0,0,0,0,0,0,0,0,0,0]
["462 - Pollution Liability Insurance Program","462","Pollution Liability Insurance Program",0,{"$f":"$C$3*'CPS Allocations'!E98","v":0},{"$f":"$C$3*'CPS Allocations'!F98","v":0},{"$f":"$C$3*'CPS Allocations'!G98","v":0},{"$f":"$C$3*'CPS Allocations'!H98","v":0},{"$f":"$C$3*'CPS Allocations'!I98","v":0},{"$f":"$C$3*'CPS Allocations'!J98","v":0},{"$f":"$C$3*'CPS Allocations'!K98","v":0},{"$f":"$C$3*'CPS Allocations'!L98","v":0},{"$f":"$C$3*'CPS Allocations'!M98","v":0},{"$f":"$C$3*'CPS Allocations'!N98","v":0},{"$f":"$C$3*'CPS Allocations'!O98","v":0},{"$f":"$C$3*'CPS Allocations'!P98","v":0},{"$f":"$C$3*'CPS Allocations'!Q98","v":0},{"$f":"$C$3*'CPS Allocations'!R98","v":0},0,0,0,0,0,0,0,0,0,0,0,0,0,0,0,0,0,0,0,0]
["465 - State Parks and Recreation Commission","465","State Parks and Recreation Commission",0,{"$f":"$C$3*'CPS Allocations'!E99","v":0},{"$f":"$C$3*'CPS Allocations'!F99","v":0},{"$f":"$C$3*'CPS Allocations'!G99","v":0},{"$f":"$C$3*'CPS Allocations'!H99","v":0},{"$f":"$C$3*'CPS Allocations'!I99","v":0},{"$f":"$C$3*'CPS Allocations'!J99","v":0},{"$f":"$C$3*'CPS Allocations'!K99","v":0},{"$f":"$C$3*'CPS Allocations'!L99","v":0},{"$f":"$C$3*'CPS Allocations'!M99","v":0},{"$f":"$C$3*'CPS Allocations'!N99","v":0},{"$f":"$C$3*'CPS Allocations'!O99","v":0},{"$f":"$C$3*'CPS Allocations'!P99","v":0},{"$f":"$C$3*'CPS Allocations'!Q99","v":0},{"$f":"$C$3*'CPS Allocations'!R99","v":0},0,0,0,0,0,0,0,0,0,0,0,0,0,0,0,0,0,0,0,0]
["467 - Recreation and Conservation Funding Board","467","Recreation and Conservation Funding Board",28177.502066318615,{"$f":"$C$3*'CPS Allocations'!E100","v":0},{"$f":"$C$3*'CPS Allocations'!F100","v":0},{"$f":"$C$3*'CPS Allocations'!G100","v":0},{"$f":"$C$3*'CPS Allocations'!H100","v":0},{"$f":"$C$3*'CPS Allocations'!I100","v":0},{"$f":"$C$3*'CPS Allocations'!J100","v":0},{"$f":"$C$3*'CPS Allocations'!K100","v":0},{"$f":"$C$3*'CPS Allocations'!L100","v":28177.502066318615},{"$f":"$C$3*'CPS Allocations'!M100","v":0},{"$f":"$C$3*'CPS Allocations'!N100","v":0},{"$f":"$C$3*'CPS Allocations'!O100","v":0},{"$f":"$C$3*'CPS Allocations'!P100","v":0},{"$f":"$C$3*'CPS Allocations'!Q100","v":0},{"$f":"$C$3*'CPS Allocations'!R100","v":0},0,0,0,0,0,0,0,0,0,0,0,0,0,0,0,0,0,0,0,0]
["468 - Environmental and Land Use Hearings Office","468","Environmental and Land Use Hearings Office",0,{"$f":"$C$3*'CPS Allocations'!E101","v":0},{"$f":"$C$3*'CPS Allocations'!F101","v":0},{"$f":"$C$3*'CPS Allocations'!G101","v":0},{"$f":"$C$3*'CPS Allocations'!H101","v":0},{"$f":"$C$3*'CPS Allocations'!I101","v":0},{"$f":"$C$3*'CPS Allocations'!J101","v":0},{"$f":"$C$3*'CPS Allocations'!K101","v":0},{"$f":"$C$3*'CPS Allocations'!L101","v":0},{"$f":"$C$3*'CPS Allocations'!M101","v":0},{"$f":"$C$3*'CPS Allocations'!N101","v":0},{"$f":"$C$3*'CPS Allocations'!O101","v":0},{"$f":"$C$3*'CPS Allocations'!P101","v":0},{"$f":"$C$3*'CPS Allocations'!Q101","v":0},{"$f":"$C$3*'CPS Allocations'!R101","v":0},0,0,0,0,0,0,0,0,0,0,0,0,0,0,0,0,0,0,0,0]
["471 - State Conservation Commission","471","State Conservation Commission",0,{"$f":"$C$3*'CPS Allocations'!E102","v":0},{"$f":"$C$3*'CPS Allocations'!F102","v":0},{"$f":"$C$3*'CPS Allocations'!G102","v":0},{"$f":"$C$3*'CPS Allocations'!H102","v":0},{"$f":"$C$3*'CPS Allocations'!I102","v":0},{"$f":"$C$3*'CPS Allocations'!J102","v":0},{"$f":"$C$3*'CPS Allocations'!K102","v":0},{"$f":"$C$3*'CPS Allocations'!L102","v":0},{"$f":"$C$3*'CPS Allocations'!M102","v":0},{"$f":"$C$3*'CPS Allocations'!N102","v":0},{"$f":"$C$3*'CPS Allocations'!O102","v":0},{"$f":"$C$3*'CPS Allocations'!P102","v":0},{"$f":"$C$3*'CPS Allocations'!Q102","v":0},{"$f":"$C$3*'CPS Allocations'!R102","v":0},0,0,0,0,0,0,0,0,0,0,0,0,0,0,0,0,0,0,0,0]
["477 - Department of Fish and Wildlife","477","Department of Fish and Wildlife",335566.03968851437,{"$f":"$C$3*'CPS Allocations'!E103","v":0},{"$f":"$C$3*'CPS Allocations'!F103","v":0},{"$f":"$C$3*'CPS Allocations'!G103","v":0},{"$f":"$C$3*'CPS Allocations'!H103","v":0},{"$f":"$C$3*'CPS Allocations'!I103","v":0},{"$f":"$C$3*'CPS Allocations'!J103","v":0},{"$f":"$C$3*'CPS Allocations'!K103","v":0},{"$f":"$C$3*'CPS Allocations'!L103","v":335566.03968851437},{"$f":"$C$3*'CPS Allocations'!M103","v":0},{"$f":"$C$3*'CPS Allocations'!N103","v":0},{"$f":"$C$3*'CPS Allocations'!O103","v":0},{"$f":"$C$3*'CPS Allocations'!P103","v":0},{"$f":"$C$3*'CPS Allocations'!Q103","v":0},{"$f":"$C$3*'CPS Allocations'!R103","v":0},0,0,0,0,0,0,0,0,0,0,0,0,0,0,0,0,0,0,0,0]
["478 - Puget Sound Partnership","478","Puget Sound Partnership",0,{"$f":"$C$3*'CPS Allocations'!E104","v":0},{"$f":"$C$3*'CPS Allocations'!F104","v":0},{"$f":"$C$3*'CPS Allocations'!G104","v":0},{"$f":"$C$3*'CPS Allocations'!H104","v":0},{"$f":"$C$3*'CPS Allocations'!I104","v":0},{"$f":"$C$3*'CPS Allocations'!J104","v":0},{"$f":"$C$3*'CPS Allocations'!K104","v":0},{"$f":"$C$3*'CPS Allocations'!L104","v":0},{"$f":"$C$3*'CPS Allocations'!M104","v":0},{"$f":"$C$3*'CPS Allocations'!N104","v":0},{"$f":"$C$3*'CPS Allocations'!O104","v":0},{"$f":"$C$3*'CPS Allocations'!P104","v":0},{"$f":"$C$3*'CPS Allocations'!Q104","v":0},{"$f":"$C$3*'CPS Allocations'!R104","v":0},0,0,0,0,0,0,0,0,0,0,0,0,0,0,0,0,0,0,0,0]
["490 - Department of Natural Resources","490","Department of Natural Resources",363410.77431326814,{"$f":"$C$3*'CPS Allocations'!E105","v":0},{"$f":"$C$3*'CPS Allocations'!F105","v":0},{"$f":"$C$3*'CPS Allocations'!G105","v":0},{"$f":"$C$3*'CPS Allocations'!H105","v":0},{"$f":"$C$3*'CPS Allocations'!I105","v":0},{"$f":"$C$3*'CPS Allocations'!J105","v":0},{"$f":"$C$3*'CPS Allocations'!K105","v":0},{"$f":"$C$3*'CPS Allocations'!L105","v":363410.77431326814},{"$f":"$C$3*'CPS Allocations'!M105","v":0},{"$f":"$C$3*'CPS Allocations'!N105","v":0},{"$f":"$C$3*'CPS Allocations'!O105","v":0},{"$f":"$C$3*'CPS Allocations'!P105","v":0},{"$f":"$C$3*'CPS Allocations'!Q105","v":0},{"$f":"$C$3*'CPS Allocations'!R105","v":0},0,0,0,0,0,0,0,0,0,0,0,0,0,0,0,0,0,0,0,0]
["495 - Department of Agriculture","495","Department of Agriculture",114785.61525690558,{"$f":"$C$3*'CPS Allocations'!E106","v":0},{"$f":"$C$3*'CPS Allocations'!F106","v":0},{"$f":"$C$3*'CPS Allocations'!G106","v":0},{"$f":"$C$3*'CPS Allocations'!H106","v":0},{"$f":"$C$3*'CPS Allocations'!I106","v":0},{"$f":"$C$3*'CPS Allocations'!J106","v":0},{"$f":"$C$3*'CPS Allocations'!K106","v":0},{"$f":"$C$3*'CPS Allocations'!L106","v":114785.61525690558},{"$f":"$C$3*'CPS Allocations'!M106","v":0},{"$f":"$C$3*'CPS Allocations'!N106","v":0},{"$f":"$C$3*'CPS Allocations'!O106","v":0},{"$f":"$C$3*'CPS Allocations'!P106","v":0},{"$f":"$C$3*'CPS Allocations'!Q106","v":0},{"$f":"$C$3*'CPS Allocations'!R106","v":0},0,0,0,0,0,0,0,0,0,0,0,0,0,0,0,0,0,0,0,0]
["540 - Employment Security Department","540","Employment Security Department",264968.36162591627,{"$f":"$C$3*'CPS Allocations'!E107","v":0},{"$f":"$C$3*'CPS Allocations'!F107","v":0},{"$f":"$C$3*'CPS Allocations'!G107","v":0},{"$f":"$C$3*'CPS Allocations'!H107","v":0},{"$f":"$C$3*'CPS Allocations'!I107","v":0},{"$f":"$C$3*'CPS Allocations'!J107","v":0},{"$f":"$C$3*'CPS Allocations'!K107","v":0},{"$f":"$C$3*'CPS Allocations'!L107","v":0},{"$f":"$C$3*'CPS Allocations'!M107","v":264968.36162591627},{"$f":"$C$3*'CPS Allocations'!N107","v":0},{"$f":"$C$3*'CPS Allocations'!O107","v":0},{"$f":"$C$3*'CPS Allocations'!P107","v":0},{"$f":"$C$3*'CPS Allocations'!Q107","v":0},{"$f":"$C$3*'CPS Allocations'!R107","v":0},0,0,0,0,0,0,0,0,0,0,0,0,0,0,0,0,0,0,0,0]
["699 - Community Colleges","699","Community Colleges",0,{"$f":"$C$3*'CPS Allocations'!E108","v":0},{"$f":"$C$3*'CPS Allocations'!F108","v":0},{"$f":"$C$3*'CPS Allocations'!G108","v":0},{"$f":"$C$3*'CPS Allocations'!H108","v":0},{"$f":"$C$3*'CPS Allocations'!I108","v":0},{"$f":"$C$3*'CPS Allocations'!J108","v":0},{"$f":"$C$3*'CPS Allocations'!K108","v":0},{"$f":"$C$3*'CPS Allocations'!L108","v":0},{"$f":"$C$3*'CPS Allocations'!M108","v":0},{"$f":"$C$3*'CPS Allocations'!N108","v":0},{"$f":"$C$3*'CPS Allocations'!O108","v":0},{"$f":"$C$3*'CPS Allocations'!P108","v":0},{"$f":"$C$3*'CPS Allocations'!Q108","v":0},{"$f":"$C$3*'CPS Allocations'!R108","v":0},0,0,0,0,0,0,0,0,0,0,0,0,0,0,0,0,0,0,0,0]
["TOTAL  - All Agencies",null,"Building Total",{"$f":"SUM(D5:D108)","v":4213998.9999999991},{"$f":"SUM(E5:E108)","v":92505.757739471912},{"$f":"SUM(F5:F108)","v":94077.425548013809},405275.51596337889,68345.524776159757,423261.03358752176,709234.29856770788,137034.35063951663,841939.93132500665,264968.36162591627,523514.1320788532,157655.30261049024,279790.3860656519,153366.89986291956,63030.079609391032,0,0,0,0,0,0,0,0,0,0,0,0,0,0,0,0,0,0,0,0]
[null,null,null,0]

{"sheet":"PHF Allocations","index":23,"n_rows":111,"n_cols":8,"rows_kept":111,"cut":false,"hidden":true,"merged":[[3,4,3,5],[4,4,4,5]]}
[]
[null,null,"CSM Amount FY22",3963000]
[null,null,"CSM Amount FY23",4007000]
[null,null,null,null,"PHF Percentage"]
[null,null,null,null,null,null,"FY22","FY23"]
[null,null,"Agency #","Agency","PHF Thurston FTEs","allocation","$"]
[null,{"$f":"CONCATENATE(C7,\" - \",D7)","v":"011 - House of Representatives"},"011","House of Representatives",339,{"$f":"E7/$E$111","v":1.3204019630754849E-2},{"$f":"F7*$D$2","v":52327.529796681461},{"$f":"F7*$D$3","v":52908.506660434679}]
[null,{"$f":"CONCATENATE(C8,\" - \",D8)","v":"012 - Senate"},"012","Senate",222,{"$f":"E8/$E$111","v":8.6468801121757418E-3},34267.585884552464,{"$f":"F8*$D$3","v":34648.0486094882}]
[null,"013 - Joint Transportation Committee","013","Joint Transportation Committee",4,1.5579964166082417E-4,617.43397990184621,624.28916413492243]
[null,"014 - Joint Legislative Audit and Review Committee","014","Joint Legislative Audit and Review Committee",24,9.3479784996494512E-4,3704.6038794110777,3745.734984809535]
[null,"020 - Legislative Evaluation and Accountability Program Committee","020","Legislative Evaluation and Accountability Program Committee",10,3.8949910415206048E-4,1543.5849497546158,1560.7229103373063]
[null,"035 - Office of the State Actuary","035","Office of the State Actuary",17,6.6214847705850272E-4,2624.0944145828462,2653.2289475734206]
[null,"037 - Office of Legislative Support Services","037","Office of Legislative Support Services",30,1.1684973124561813E-3,4630.7548492638462,4682.1687310119187]
[null,"038 - Joint Legislative Systems Committee","038","Joint Legislative Systems Committee",59,2.2980447144971567E-3,9107.1512035522319,9208.2651709901074]
[null,"040 - Statute Law Committee (Code Revisor)","040","Statute Law Committee (Code Revisor)",37,1.4411466853626236E-3,5711.2643140920773,5774.6747682480327]
[null,"045 - Supreme Court","045","Supreme Court",61,2.3759445353275688E-3,9415.8681935031545,9520.4097530575673]
[null,"046 - Law Library","046","Law Library",8,3.1159928332164834E-4,1234.8679598036924,1248.5783282698449]
[null,"048 - Court of Appeals","048","Court of Appeals",1,3.8949910415206042E-5,154.35849497546155,156.07229103373061]
[null,"050 - Commission on Judicial Conduct","050","Commission on Judicial Conduct",8,3.1159928332164834E-4,1234.8679598036924,1248.5783282698449]
[null,"055 - Administrative Office of the Courts","055","Administrative Office of the Courts",251,9.7764275142167168E-3,38743.98223884085,39174.145049466388]
[null,"056 - Office of Public Defense","056","Office of Public Defense",19,7.400482978889148E-4,2932.8114045337693,2965.3735296408818]
[null,"057 - Office of Civil Legal Aid","057","Office of Civil Legal Aid",3,1.1684973124561814E-4,463.07548492638472,468.21687310119188]
[null,"075 - Office of the Governor","075","Office of the Governor",65,2.531744176988393E-3,10033.302173405002,10144.698917192491]
[null,"080 - Office of Lieutenant Governor","080","Office of Lieutenant Governor",6,2.3369946249123628E-4,926.15096985276944,936.43374620238376]
[null,"082 - Public Disclosure Commission","082","Public Disclosure Commission",31,1.2074472228713873E-3,4785.1133442393075,4838.2410220456486]
[null,"085 - Office of the Secretary of State","085","Office of the Secretary of State",234,9.1142790371582152E-3,36119.88782425801,36520.916101892966]
[null,"086 - Governor's Office of Indian Affairs","086","Governor's Office of Indian Affairs",1,3.8949910415206042E-5,154.35849497546155,156.07229103373061]
[null,"087 - Commission on Asian Pacific American Affairs","087","Commission on Asian Pacific American Affairs",3,1.1684973124561814E-4,463.07548492638472,468.21687310119188]
[null,"090 - Office of State Treasurer","090","Office of State Treasurer",60,2.3369946249123625E-3,9261.5096985276923,9364.3374620238374]
[null,"095 - Office of State Auditor","095","Office of State Auditor",164,6.3877853080937918E-3,25314.793175975698,25595.855729531824]
[null,"099 - Citizens' Commission on Salaries for Elected Officials","099","Citizens' Commission on Salaries for Elected Officials",3,1.1684973124561814E-4,463.07548492638472,468.21687310119188]
[null,"100 - Office of Attorney General","100","Office of Attorney General",685,2.6680688634416142E-2,105735.56905819118,106909.51935810548]
[null,"101 - Caseload Forecast Council","101","Caseload Forecast Council",10,3.8949910415206048E-4,1543.5849497546158,1560.7229103373063]
[null,"102 - Department of Financial Institutions","102","Department of Financial Institutions",161,6.2709355768481734E-3,24851.717691049311,25127.638856430633]
[null,"103 - Department of Commerce","103","Department of Commerce",307,1.1957622497468255E-2,47388.057957466692,47914.1933473553]
[null,"104 - Economic and Revenue Forecast Council","104","Economic and Revenue Forecast Council",5,1.9474955207603024E-4,771.79247487730788,780.36145516865315]
[null,"105 - Office of Financial Management","105","Office of Financial Management",435,1.6943211030614629E-2,67145.945314325771,67891.44659967281]
[null,"107 - Washington State Health Care Authority","107","Washington State Health Care Authority",1342,5.2270779777206511E-2,207149.1002570694,209449.01456726648]
[null,"110 - Office of Administrative Hearings","110","Office of Administrative Hearings",66,2.5706940874035988E-3,{"$f":"F39*$D$2","v":10187.660668380462},10300.771208226221]
[null,"116 - State Lottery","116","State Lottery",70,2.726493729064423E-3,10805.094648282307,10925.060372361142]
[null,"117 - Washington State Gambling Commission","117","Washington State Gambling Commission",57,2.2201448936667446E-3,8798.4342136013092,8896.1205889226458]
[null,"118 - Commission on Hispanic Affairs","118","Commission on Hispanic Affairs",3,1.1684973124561814E-4,463.07548492638472,468.21687310119188]
[null,"119 - Commission on African-American Affairs","119","Commission on African-American Affairs",2,7.7899820830412084E-5,308.71698995092311,312.14458206746122]
[null,"120 - Human Rights Commission","120","Human Rights Commission",13,5.0634883539767855E-4,2006.6604346810002,2028.9397834384979]
[null,"124 - Department of Retirement Systems","124","Department of Retirement Systems",268,1.043857599127522E-2,41368.076653423697,41827.373997039809]
[null,"126 - State Investment Board","126","State Investment Board",89,3.466542026953338E-3,13737.906052816079,13890.433902002025]
[null,"140 - Department of Revenue","140","Department of Revenue",741,2.8861883617667679E-2,114379.64477681702,115649.56765599438]
[null,"142 - Board of Tax Appeals","142","Board of Tax Appeals",15,5.8424865622809063E-4,2315.3774246319231,2341.0843655059593]
[null,"147 - Office of Minority and Women's Business Enterprises","147","Office of Minority and Women's Business Enterprises",24,9.3479784996494512E-4,3704.6038794110777,3745.734984809535]
[null,"160 - Office of Insurance Commissioner","160","Office of Insurance Commissioner",208,8.1015813663628568E-3,32106.566954896003,32463.036535015966]
[null,"163 - Consolidated Technology Services","163","Consolidated Technology Services",289,1.1256524109994547E-2,44609.605047908386,45104.89210874815]
[null,"165 - Board of Accountancy","165","Board of Accountancy",10,3.8949910415206048E-4,1543.5849497546158,1560.7229103373063]
[null,"166 - Brd Prof Eng Land Surveyors","166","Brd Prof Eng Land Surveyors",8,3.1159928332164834E-4,1234.8679598036924,1248.5783282698449]
[null,"167 - Forensic Investigations Council","167","Forensic Investigations Council",0,0,0,0]
[null,"179 - Department of Enterprise Services","179","Department of Enterprise Services",761,2.9640881825971799E-2,117466.81467632623,118771.013476669]
[null,"185 - Horse Racing Commission","185","Horse Racing Commission",3,1.1684973124561814E-4,463.07548492638472,468.21687310119188]
[null,"190 - Board of Industrial Insurance Appeals","190","Board of Industrial Insurance Appeals",101,3.9339409519358109E-3,15590.207992521619,15763.301394406795]
[null,"195 - Liquor Control Board","195","Liquor Control Board",225,8.7637298434213601E-3,34730.661369478854,35116.265482589391]
[null,"205 - Board of Pilotage Commissioners","205","Board of Pilotage Commissioners",0,0,0,0]
[null,"215 - Utilities and Transportation Commission","215","Utilities and Transportation Commission",149,5.8035366518657009E-3,22999.415751343771,23254.771364025863]
[null,"220 - Board for Volunteer Firefighters and Reserve Officers","220","Board for Volunteer Firefighters and Reserve Officers",3,1.1684973124561814E-4,463.07548492638472,468.21687310119188]
[null,"225 - Washington State Patrol","225","Washington State Patrol",566,2.204564929500662E-2,87366.90815611124,88336.916725091534]
[null,"227 - Criminal Justice Training Commission","227","Criminal Justice Training Commission",1,3.8949910415206042E-5,154.35849497546155,156.07229103373061]
[null,"228 - Traffic Safety Commission","228","Traffic Safety Commission",21,8.1794811871932699E-4,3241.5283944846929,3277.5181117083434]
[null,"235 - Department of Labor and Industries","235","Department of Labor and Industries",2195,8.5495053361377263E-2,338816.89647113811,342578.67881903867]
[null,"240 - Department of Licensing","240","Department of Licensing",894,3.4821219911194204E-2,137996.49450806263,139528.62818415518]
[null,"245 - Military Department","245","Military Department",0,0,0,0]
[null,"275 - Public Employment Relations Commission","275","Public Employment Relations Commission",21,8.1794811871932699E-4,3241.5283944846929,3277.5181117083434]
[null,"300 - Department of Social and Health Services","300","Department of Social and Health Services",2666,0.10384046116693932,411519.74760458054,416088.72789592587]
[null,"303 - Department of Health","303","Department of Health",1578,6.1462958635195138E-2,243577.70507127832,246282.07525122692]
[null,"305 - Department of Veterans Affairs","305","Department of Veterans Affairs",82,3.1938926540468959E-3,{"$f":"F71*$D$2","v":12657.396587987849},12797.927864765912]
[null,{"$f":"CONCATENATE(C72,\" - \",D72)","v":"307 - DCYF"},"307","DCYF",842,{"$f":"E72/$E$111","v":3.2795824569603491E-2},129969.85276933863,{"$f":"F72*$D$3","v":131412.86905040118}]
[null,"310 - Department of Corrections","310","Department of Corrections",1095,4.2650151904650623E-2,169022.55199813042,170899.15868193505]
[null,"315 - Department of Services for the Blind","315","Department of Services for the Blind",20,7.7899820830412095E-4,3087.1698995092315,3121.4458206746126]
[null,"340 - Student Achievement Council","340","Student Achievement Council",113,4.4013398769182834E-3,17442.509932227156,17636.168886811563]
[null,"341 - Law Enforcement Officers' & Fire Fighters' Plan 2 Retirement Board","341","Law Enforcement Officers' & Fire Fighters' Plan 2 Retirement Board",8,3.1159928332164834E-4,1234.8679598036924,1248.5783282698449]
[null,"350 - Superintendent of Public Instruction","350","Superintendent of Public Instruction",457,1.7800109059749162E-2,70541.832203785933,71325.037002414887]
[null,"351 - State School For The Blind","351","State School For The Blind",2,7.7899820830412084E-5,308.71698995092311,312.14458206746122]
[null,"353 - State Center for Childhood Deafness and Hearing Loss","353","State Center for Childhood Deafness and Hearing Loss",0,0,0,0]
[null,"354 - Workforce Training and Education Coordinating Board","354","Workforce Training and Education Coordinating Board",28,1.0905974916257692E-3,4322.0378593129235,4370.024148944457]
[null,"355 - Department of Archaeology and Historic Preservation","355","Department of Archaeology and Historic Preservation",20,7.7899820830412095E-4,3087.1698995092315,3121.4458206746126]
[null,"357 - Department of Early Learning","357","Department of Early Learning",0,0,0,0]
[null,"359 - WA Charter School Commission","359","WA Charter School Commission",0,0,0,0]
[null,"360 - University of Washington","360","University of Washington",22,8.5689802913453304E-4,3395.8868894601546,3433.5904027420738]
[null,"365 - Washington State University","365","Washington State University",61,2.3759445353275688E-3,9415.8681935031545,9520.4097530575673]
[null,"370 - Eastern Washington University","370","Eastern Washington University",0,0,0,0]
[null,"375 - Central Washington University","375","Central Washington University",0,0,0,0]
[null,"376 - The Evergreen State College","376","The Evergreen State College",541,2.1071901534626472E-2,83507.945781724702,84435.109449248281]
[null,"380 - Western Washington University","380","Western Washington University",0,0,0,0]
[null,"387 - Washington State Arts Commission","387","Washington State Arts Commission",20,7.7899820830412095E-4,3087.1698995092315,3121.4458206746126]
[null,"390 - Washington State Historical Society","390","Washington State Historical Society",1,3.8949910415206042E-5,154.35849497546155,156.07229103373061]
[null,"395 - Eastern Washington State Historical Society","395","Eastern Washington State Historical Society",0,0,0,0]
[null,"405 - Department of Transportation","405","Department of Transportation",1535,5.9788112487341276E-2,236940.28978733349,239570.96673677649]
[null,"406 - County Road Administration Board","406","County Road Administration Board",16,6.2319856664329668E-4,2469.7359196073849,2497.1566565396897]
[null,"407 - Transportation Improvement Board","407","Transportation Improvement Board",11,4.2844901456726652E-4,1697.9434447300773,1716.7952013710369]
[null,"410 - Transportation Commission","410","Transportation Commission",6,2.3369946249123628E-4,926.15096985276944,936.43374620238376]
[null,"411 - Freight Mobility Strategic Investment Board","411","Freight Mobility Strategic Investment Board",2,7.7899820830412084E-5,308.71698995092311,312.14458206746122]
[null,"460 - Columbia River Gorge Commission","460","Columbia River Gorge Commission",0,0,0,0]
[null,"461 - Department of Ecology","461","Department of Ecology",973,3.7898262833995479E-2,150190.8156111241,151858.33917581988]
[null,"462 - Pollution Liability Insurance Program","462","Pollution Liability Insurance Program",18,7.0109838747370876E-4,2778.452909558308,2809.3012386071509]
[null,"465 - State Parks and Recreation Commission","465","State Parks and Recreation Commission",186,7.2446833372283243E-3,28710.680065435849,29029.446132273897]
[null,"467 - Recreation and Conservation Funding Board","467","Recreation and Conservation Funding Board",61,2.3759445353275688E-3,9415.8681935031545,9520.4097530575673]
[null,"468 - Environmental and Land Use Hearings Office","468","Environmental and Land Use Hearings Office",10,3.8949910415206048E-4,{"$f":"F103*$D$2","v":1543.5849497546158},1560.7229103373063]
[null,"471 - State Conservation Commission","471","State Conservation Commission",16,6.2319856664329668E-4,2469.7359196073849,2497.1566565396897]
[null,"477 - Department of Fish and Wildlife","477","Department of Fish and Wildlife",755,2.9407182363480566E-2,116540.66370647348,117834.57973046662]
[null,"478 - Puget Sound Partnership","478","Puget Sound Partnership",2,7.7899820830412084E-5,308.71698995092311,312.14458206746122]
[null,"490 - Department of Natural Resources","490","Department of Natural Resources",709,2.7615486484381085E-2,109440.17293760224,110655.25434291501]
[null,"495 - Department of Agriculture","495","Department of Agriculture",251,9.7764275142167168E-3,38743.98223884085,39174.145049466388]
[null,"540 - Employment Security Department","540","Employment Security Department",1617,6.2982005141388173E-2,249597.68637532133,252368.89460154242]
[null,"699 - Community Colleges","699","Community Colleges",542,2.1110851445041677E-2,83662.304276700161,84591.181740282002]
[null,"TOTAL  - All Agencies",null,"Building Total",25674,1,3963000,4007000]

{"sheet":"Childcare","index":24,"n_rows":111,"n_cols":8,"rows_kept":111,"cut":false,"hidden":true,"merged":[[3,4,3,5],[4,4,4,5]]}
[]
[null,null,"CSM Amount FY22",530000]
[null,null,"CSM Amount FY23",532000]
[null,null,null,null,"PHF Percentage"]
[null,null,null,null,null,null,"FY22","FY23"]
[null,null,"Agency #","Agency","PHF Thurston FTEs","allocation","$"]
[null,{"$f":"CONCATENATE(C7,\" - \",D7)","v":"011 - House of Representatives"},"011","House of Representatives",339,{"$f":"E7/$E$111","v":1.3204019630754849E-2},{"$f":"F7*$D$2","v":6998.13040430007},{"$f":"F7*$D$3","v":7024.5384435615797}]
[null,{"$f":"CONCATENATE(C8,\" - \",D8)","v":"012 - Senate"},"012","Senate",222,{"$f":"E8/$E$111","v":8.6468801121757418E-3},4582.8464594531433,{"$f":"F8*$D$3","v":4600.1402196774943}]
[null,"013 - Joint Transportation Committee","013","Joint Transportation Committee",4,1.5579964166082417E-4,82.573810080236811,82.885409363558452]
[null,"014 - Joint Legislative Audit and Review Committee","014","Joint Legislative Audit and Review Committee",24,9.3479784996494512E-4,495.44286048142089,497.3124561813508]
[null,"020 - Legislative Evaluation and Accountability Program Committee","020","Legislative Evaluation and Accountability Program Committee",10,3.8949910415206048E-4,206.43452520059205,207.21352340889618]
[null,"035 - Office of the State Actuary","035","Office of the State Actuary",17,6.6214847705850272E-4,350.93869284100646,352.26298979512347]
[null,"037 - Office of Legislative Support Services","037","Office of Legislative Support Services",30,1.1684973124561813E-3,619.30357560177606,621.6405702266884]
[null,"038 - Joint Legislative Systems Committee","038","Joint Legislative Systems Committee",59,2.2980447144971567E-3,1217.963698683493,1222.5597881124875]
[null,"040 - Statute Law Committee (Code Revisor)","040","Statute Law Committee (Code Revisor)",37,1.4411466853626236E-3,763.80774324219044,766.69003661291572]
[null,"045 - Supreme Court","045","Supreme Court",61,2.3759445353275688E-3,1259.2506037236114,1264.0024927942666]
[null,"046 - Law Library","046","Law Library",8,3.1159928332164834E-4,165.14762016047362,165.7708187271169]
[null,"048 - Court of Appeals","048","Court of Appeals",1,3.8949910415206042E-5,20.643452520059203,20.721352340889613]
[null,"050 - Commission on Judicial Conduct","050","Commission on Judicial Conduct",8,3.1159928332164834E-4,165.14762016047362,165.7708187271169]
[null,"055 - Administrative Office of the Courts","055","Administrative Office of the Courts",251,9.7764275142167168E-3,5181.5065825348602,5201.0594375632936]
[null,"056 - Office of Public Defense","056","Office of Public Defense",19,7.400482978889148E-4,392.22559788112483,393.70569447690269]
[null,"057 - Office of Civil Legal Aid","057","Office of Civil Legal Aid",3,1.1684973124561814E-4,61.930357560177612,62.16405702266885]
[null,"075 - Office of the Governor","075","Office of the Governor",65,2.531744176988393E-3,1341.8244138038483,1346.887902157825]
[null,"080 - Office of Lieutenant Governor","080","Office of Lieutenant Governor",6,2.3369946249123628E-4,123.86071512035522,124.3281140453377]
[null,"082 - Public Disclosure Commission","082","Public Disclosure Commission",31,1.2074472228713873E-3,639.94702812183527,642.36192256757806]
[null,"085 - Office of the Secretary of State","085","Office of the Secretary of State",234,9.1142790371582152E-3,4830.5678896938543,4848.7964477681708]
[null,"086 - Governor's Office of Indian Affairs","086","Governor's Office of Indian Affairs",1,3.8949910415206042E-5,20.643452520059203,20.721352340889613]
[null,"087 - Commission on Asian Pacific American Affairs","087","Commission on Asian Pacific American Affairs",3,1.1684973124561814E-4,61.930357560177612,62.16405702266885]
[null,"090 - Office of State Treasurer","090","Office of State Treasurer",60,2.3369946249123625E-3,1238.6071512035521,1243.2811404533768]
[null,"095 - Office of State Auditor","095","Office of State Auditor",164,6.3877853080937918E-3,3385.5262132897096,3398.3017839058971]
[null,"099 - Citizens' Commission on Salaries for Elected Officials","099","Citizens' Commission on Salaries for Elected Officials",3,1.1684973124561814E-4,61.930357560177612,62.16405702266885]
[null,"100 - Office of Attorney General","100","Office of Attorney General",685,2.6680688634416142E-2,14140.764976240554,14194.126353509388]
[null,"101 - Caseload Forecast Council","101","Caseload Forecast Council",10,3.8949910415206048E-4,206.43452520059205,207.21352340889618]
[null,"102 - Department of Financial Institutions","102","Department of Financial Institutions",161,6.2709355768481734E-3,3323.5958557295321,3336.1377268832284]
[null,"103 - Department of Commerce","103","Department of Commerce",307,1.1957622497468255E-2,6337.5399236581752,6361.4551686531122]
[null,"104 - Economic and Revenue Forecast Council","104","Economic and Revenue Forecast Council",5,1.9474955207603024E-4,103.21726260029602,103.60676170444809]
[null,"105 - Office of Financial Management","105","Office of Financial Management",435,1.6943211030614629E-2,8979.9018462257536,9013.7882682869822]
[null,"107 - Washington State Health Care Authority","107","Washington State Health Care Authority",1342,5.2270779777206511E-2,27703.513281919451,27808.054841473862]
[null,"110 - Office of Administrative Hearings","110","Office of Administrative Hearings",66,2.5706940874035988E-3,{"$f":"F39*$D$2","v":1362.4678663239074},1367.6092544987146]
[null,"116 - State Lottery","116","State Lottery",70,2.726493729064423E-3,1445.0416764041443,1450.494663862273]
[null,"117 - Washington State Gambling Commission","117","Washington State Gambling Commission",57,2.2201448936667446E-3,1176.6767936433746,1181.1170834307081]
[null,"118 - Commission on Hispanic Affairs","118","Commission on Hispanic Affairs",3,1.1684973124561814E-4,61.930357560177612,62.16405702266885]
[null,"119 - Commission on African-American Affairs","119","Commission on African-American Affairs",2,7.7899820830412084E-5,41.286905040118405,41.442704681779226]
[null,"120 - Human Rights Commission","120","Human Rights Commission",13,5.0634883539767855E-4,268.3648827607696,269.37758043156498]
[null,"124 - Department of Retirement Systems","124","Department of Retirement Systems",268,1.043857599127522E-2,5532.4452753758669,5553.3224273584174]
[null,"126 - State Investment Board","126","State Investment Board",89,3.466542026953338E-3,1837.2672742852692,1844.2003583391759]
[null,"140 - Department of Revenue","140","Department of Revenue",741,2.8861883617667679E-2,15296.79831736387,15354.522084599204]
[null,"142 - Board of Tax Appeals","142","Board of Tax Appeals",15,5.8424865622809063E-4,309.65178780088803,310.8202851133442]
[null,"147 - Office of Minority and Women's Business Enterprises","147","Office of Minority and Women's Business Enterprises",24,9.3479784996494512E-4,495.44286048142089,497.3124561813508]
[null,"160 - Office of Insurance Commissioner","160","Office of Insurance Commissioner",208,8.1015813663628568E-3,4293.8381241723137,4310.0412869050397]
[null,"163 - Consolidated Technology Services","163","Consolidated Technology Services",289,1.1256524109994547E-2,5965.9577782971101,5988.4708265170993]
[null,"165 - Board of Accountancy","165","Board of Accountancy",10,3.8949910415206048E-4,206.43452520059205,207.21352340889618]
[null,"166 - Brd Prof Eng Land Surveyors","166","Brd Prof Eng Land Surveyors",8,3.1159928332164834E-4,165.14762016047362,165.7708187271169]
[null,"167 - Forensic Investigations Council","167","Forensic Investigations Council",0,0,0,0]
[null,"179 - Department of Enterprise Services","179","Department of Enterprise Services",761,2.9640881825971799E-2,15709.667367765054,15768.949131416997]
[null,"185 - Horse Racing Commission","185","Horse Racing Commission",3,1.1684973124561814E-4,61.930357560177612,62.16405702266885]
[null,"190 - Board of Industrial Insurance Appeals","190","Board of Industrial Insurance Appeals",101,3.9339409519358109E-3,2084.9887045259798,2092.8565864298516]
[null,"195 - Liquor Control Board","195","Liquor Control Board",225,8.7637298434213601E-3,4644.7768170133213,4662.3042767001634]
[null,"205 - Board of Pilotage Commissioners","205","Board of Pilotage Commissioners",0,0,0,0]
[null,"215 - Utilities and Transportation Commission","215","Utilities and Transportation Commission",149,5.8035366518657009E-3,3075.8744254888215,3087.4814987925529]
[null,"220 - Board for Volunteer Firefighters and Reserve Officers","220","Board for Volunteer Firefighters and Reserve Officers",3,1.1684973124561814E-4,61.930357560177612,62.16405702266885]
[null,"225 - Washington State Patrol","225","Washington State Patrol",566,2.204564929500662E-2,11684.194126353508,11728.285424943522]
[null,"227 - Criminal Justice Training Commission","227","Criminal Justice Training Commission",1,3.8949910415206042E-5,20.643452520059203,20.721352340889613]
[null,"228 - Traffic Safety Commission","228","Traffic Safety Commission",21,8.1794811871932699E-4,433.51250292124331,435.14839915868197]
[null,"235 - Department of Labor and Industries","235","Department of Labor and Industries",2195,8.5495053361377263E-2,45312.378281529949,45483.368388252704]
[null,"240 - Department of Licensing","240","Department of Licensing",894,3.4821219911194204E-2,18455.246552932927,18524.888992755317]
[null,"245 - Military Department","245","Military Department",0,0,0,0]
[null,"275 - Public Employment Relations Commission","275","Public Employment Relations Commission",21,8.1794811871932699E-4,433.51250292124331,435.14839915868197]
[null,"300 - Department of Social and Health Services","300","Department of Social and Health Services",2666,0.10384046116693932,55035.44441847784,55243.125340811719]
[null,"303 - Department of Health","303","Department of Health",1578,6.1462958635195138E-2,32575.368076653423,32698.293993923813]
[null,"305 - Department of Veterans Affairs","305","Department of Veterans Affairs",82,3.1938926540468959E-3,{"$f":"F71*$D$2","v":1692.7631066448548},1699.1508919529485]
[null,{"$f":"CONCATENATE(C72,\" - \",D72)","v":"307 - DCYF"},"307","DCYF",842,{"$f":"E72/$E$111","v":3.2795824569603491E-2},17381.78702188985,{"$f":"F72*$D$3","v":17447.378671029059}]
[null,"310 - Department of Corrections","310","Department of Corrections",1095,4.2650151904650623E-2,22604.580509464831,22689.880813274132]
[null,"315 - Department of Services for the Blind","315","Department of Services for the Blind",20,7.7899820830412095E-4,412.8690504011841,414.42704681779236]
[null,"340 - Student Achievement Council","340","Student Achievement Council",113,4.4013398769182834E-3,2332.7101347666903,2341.5128145205267]
[null,"341 - Law Enforcement Officers' & Fire Fighters' Plan 2 Retirement Board","341","Law Enforcement Officers' & Fire Fighters' Plan 2 Retirement Board",8,3.1159928332164834E-4,165.14762016047362,165.7708187271169]
[null,"350 - Superintendent of Public Instruction","350","Superintendent of Public Instruction",457,1.7800109059749162E-2,9434.0578016670552,9469.6580197865533]
[null,"351 - State School For The Blind","351","State School For The Blind",2,7.7899820830412084E-5,41.286905040118405,41.442704681779226]
[null,"353 - State Center for Childhood Deafness and Hearing Loss","353","State Center for Childhood Deafness and Hearing Loss",0,0,0,0]
[null,"354 - Workforce Training and Education Coordinating Board","354","Workforce Training and Education Coordinating Board",28,1.0905974916257692E-3,578.01667056165763,580.19786554490918]
[null,"355 - Department of Archaeology and Historic Preservation","355","Department of Archaeology and Historic Preservation",20,7.7899820830412095E-4,412.8690504011841,414.42704681779236]
[null,"357 - Department of Early Learning","357","Department of Early Learning",0,0,0,0]
[null,"359 - WA Charter School Commission","359","WA Charter School Commission",0,0,0,0]
[null,"360 - University of Washington","360","University of Washington",22,8.5689802913453304E-4,454.15595544130252,455.86975149957158]
[null,"365 - Washington State University","365","Washington State University",61,2.3759445353275688E-3,1259.2506037236114,1264.0024927942666]
[null,"370 - Eastern Washington University","370","Eastern Washington University",0,0,0,0]
[null,"375 - Central Washington University","375","Central Washington University",0,0,0,0]
[null,"376 - The Evergreen State College","376","The Evergreen State College",541,2.1071901534626472E-2,11168.10781335203,11210.251616421283]
[null,"380 - Western Washington University","380","Western Washington University",0,0,0,0]
[null,"387 - Washington State Arts Commission","387","Washington State Arts Commission",20,7.7899820830412095E-4,412.8690504011841,414.42704681779236]
[null,"390 - Washington State Historical Society","390","Washington State Historical Society",1,3.8949910415206042E-5,20.643452520059203,20.721352340889613]
[null,"395 - Eastern Washington State Historical Society","395","Eastern Washington State Historical Society",0,0,0,0]
[null,"405 - Department of Transportation","405","Department of Transportation",1535,5.9788112487341276E-2,31687.699618290877,31807.275843265557]
[null,"406 - County Road Administration Board","406","County Road Administration Board",16,6.2319856664329668E-4,330.29524032094724,331.54163745423381]
[null,"407 - Transportation Improvement Board","407","Transportation Improvement Board",11,4.2844901456726652E-4,227.07797772065126,227.93487574978579]
[null,"410 - Transportation Commission","410","Transportation Commission",6,2.3369946249123628E-4,123.86071512035522,124.3281140453377]
[null,"411 - Freight Mobility Strategic Investment Board","411","Freight Mobility Strategic Investment Board",2,7.7899820830412084E-5,41.286905040118405,41.442704681779226]
[null,"460 - Columbia River Gorge Commission","460","Columbia River Gorge Commission",0,0,0,0]
[null,"461 - Department of Ecology","461","Department of Ecology",973,3.7898262833995479E-2,20086.079302017602,20161.875827685595]
[null,"462 - Pollution Liability Insurance Program","462","Pollution Liability Insurance Program",18,7.0109838747370876E-4,371.58214536106567,372.98434213601308]
[null,"465 - State Parks and Recreation Commission","465","State Parks and Recreation Commission",186,7.2446833372283243E-3,3839.6821687310121,3854.1715354054686]
[null,"467 - Recreation and Conservation Funding Board","467","Recreation and Conservation Funding Board",61,2.3759445353275688E-3,1259.2506037236114,1264.0024927942666]
[null,"468 - Environmental and Land Use Hearings Office","468","Environmental and Land Use Hearings Office",10,3.8949910415206048E-4,{"$f":"F103*$D$2","v":206.43452520059205},207.21352340889618]
[null,"471 - State Conservation Commission","471","State Conservation Commission",16,6.2319856664329668E-4,330.29524032094724,331.54163745423381]
[null,"477 - Department of Fish and Wildlife","477","Department of Fish and Wildlife",755,2.9407182363480566E-2,15585.8066526447,15644.621017371661]
[null,"478 - Puget Sound Partnership","478","Puget Sound Partnership",2,7.7899820830412084E-5,41.286905040118405,41.442704681779226]
[null,"490 - Department of Natural Resources","490","Department of Natural Resources",709,2.7615486484381085E-2,14636.207836721975,14691.438809690737]
[null,"495 - Department of Agriculture","495","Department of Agriculture",251,9.7764275142167168E-3,5181.5065825348602,5201.0594375632936]
[null,"540 - Employment Security Department","540","Employment Security Department",1617,6.2982005141388173E-2,33380.462724935729,33506.426735218505]
[null,"699 - Community Colleges","699","Community Colleges",542,2.1110851445041677E-2,11188.751265872088,11230.972968762173]
[null,"TOTAL  - All Agencies",null,"Building Total",25674,1,530000,532000]

{"sheet":"Security Dollars FY22","index":25,"n_rows":112,"n_cols":38,"rows_kept":112,"cut":false,"hidden":true,"merged":[[1,3,2,3]]}
[null,"BI TOTAL",5928000]
[null,null,null,"Total","F6121","F6122","F6123","F6124","F6125","F6126","F6127","F6129","F612A","F612C","F612E","F612H","F612J","F612K","F6131","F6132","F6133","F6134","F6137","F613D","F613E","F613F","F613G","F613H","F613i","F613K","F613L","F613M","F6141","F6142","F6143","F6144","F614G","F6146"]
[null,"Agency #","Agency",null,"Cherberg","O'Brien","Legislative","Pritchard","HLB","OB2","Archives","NRB","Emp Sec","Transportation","Insurance","Old Cap","TOJ","Newhouse","Modular Bldg","Isabella Bush","1007 Washington","120 E Union Avenue","Conservatory","Capital Court","James Dolliver Building","Undeveloped Properties","1068 WA Street SE (ST Farm)","232 Perry Street","208 11th Avenue SE (Pro Arts)","Press Houses Ayer(White); Carlyon(Blue)","Visitor Center","Helen Sommers","Kelso Building","Yakima Building","Alaska Street","Tacoma Rhodes","Tacoma Rhodes Garage","North Cascades Gateway Center (NCGC)"]
[{"$f":"CONCATENATE(B4,\" - \",C4)","v":"011 - House of Representatives"},"011","House of Representatives",{"$f":"'rent allocations'!D4*$C$1","v":345685.6718770602},{"$f":"'rent allocations'!E4*$C$1","v":0},{"$f":"'rent allocations'!F4*$C$1","v":157645.6095236594},{"$f":"'rent allocations'!G4*$C$1","v":188040.06235340083},{"$f":"'rent allocations'!H4*$C$1","v":0},{"$f":"'rent allocations'!I4*$C$1","v":0},{"$f":"'rent allocations'!J4*$C$1","v":0},{"$f":"'rent allocations'!K4*$C$1","v":0},{"$f":"'rent allocations'!L4*$C$1","v":0},{"$f":"'rent allocations'!M4*$C$1","v":0},{"$f":"'rent allocations'!N4*$C$1","v":0},{"$f":"'rent allocations'!O4*$C$1","v":0},{"$f":"'rent allocations'!P4*$C$1","v":0},{"$f":"'rent allocations'!Q4*$C$1","v":0},{"$f":"'rent allocations'!R4*$C$1","v":0},{"$f":"'rent allocations'!S4*$C$1","v":0},{"$f":"'rent allocations'!T4*$C$1","v":0},{"$f":"'rent allocations'!U4*$C$1","v":0},{"$f":"'rent allocations'!V4*$C$1","v":0},{"$f":"'rent allocations'!W4*$C$1","v":0},{"$f":"'rent allocations'!X4*$C$1","v":0},{"$f":"'rent allocations'!Y4*$C$1","v":0},{"$f":"'rent allocations'!Z4*$C$1","v":0},{"$f":"'rent allocations'!AA4*$C$1","v":0},{"$f":"'rent allocations'!AB4*$C$1","v":0},{"$f":"'rent allocations'!AC4*$C$1","v":0},{"$f":"'rent allocations'!AD4*$C$1","v":0},{"$f":"'rent allocations'!AE4*$C$1","v":0},{"$f":"'rent allocations'!AF4*$C$1","v":0},{"$f":"'rent allocations'!AG4*$C$1","v":0},{"$f":"'rent allocations'!AH4*$C$1","v":0},{"$f":"'rent allocations'!AI4*$C$1","v":0},{"$f":"'rent allocations'!AJ4*$C$1","v":0},{"$f":"'rent allocations'!AK4*$C$1","v":0},{"$f":"'rent allocations'!AL4*$C$1","v":0}]
[{"$f":"CONCATENATE(B5,\" - \",C5)","v":"012 - Senate"},"012","Senate",{"$f":"'rent allocations'!D5*$C$1","v":483720.16478436586},{"$f":"'rent allocations'!E5*$C$1","v":245904.56671717076},{"$f":"'rent allocations'!F5*$C$1","v":0},{"$f":"'rent allocations'!G5*$C$1","v":146533.77982792823},{"$f":"'rent allocations'!H5*$C$1","v":0},{"$f":"'rent allocations'!I5*$C$1","v":0},{"$f":"'rent allocations'!J5*$C$1","v":0},{"$f":"'rent allocations'!K5*$C$1","v":0},{"$f":"'rent allocations'!L5*$C$1","v":0},{"$f":"'rent allocations'!M5*$C$1","v":0},{"$f":"'rent allocations'!N5*$C$1","v":0},{"$f":"'rent allocations'!O5*$C$1","v":0},{"$f":"'rent allocations'!P5*$C$1","v":0},{"$f":"'rent allocations'!Q5*$C$1","v":0},{"$f":"'rent allocations'!R5*$C$1","v":91281.818239266839},{"$f":"'rent allocations'!S5*$C$1","v":0},{"$f":"'rent allocations'!T5*$C$1","v":0},{"$f":"'rent allocations'!U5*$C$1","v":0},{"$f":"'rent allocations'!V5*$C$1","v":0},{"$f":"'rent allocations'!W5*$C$1","v":0},{"$f":"'rent allocations'!X5*$C$1","v":0},{"$f":"'rent allocations'!Y5*$C$1","v":0},{"$f":"'rent allocations'!Z5*$C$1","v":0},{"$f":"'rent allocations'!AA5*$C$1","v":0},{"$f":"'rent allocations'!AB5*$C$1","v":0},{"$f":"'rent allocations'!AC5*$C$1","v":0},{"$f":"'rent allocations'!AD5*$C$1","v":0},{"$f":"'rent allocations'!AE5*$C$1","v":0},{"$f":"'rent allocations'!AF5*$C$1","v":0},{"$f":"'rent allocations'!AG5*$C$1","v":0},{"$f":"'rent allocations'!AH5*$C$1","v":0},{"$f":"'rent allocations'!AI5*$C$1","v":0},{"$f":"'rent allocations'!AJ5*$C$1","v":0},{"$f":"'rent allocations'!AK5*$C$1","v":0},{"$f":"'rent allocations'!AL5*$C$1","v":0}]
["013 - Joint Transportation Committee","013","Joint Transportation Committee",{"$f":"'rent allocations'!D6*$C$1","v":0},{"$f":"'rent allocations'!E6*$C$1","v":0},{"$f":"'rent allocations'!F6*$C$1","v":0},{"$f":"'rent allocations'!G6*$C$1","v":0},{"$f":"'rent allocations'!H6*$C$1","v":0},{"$f":"'rent allocations'!I6*$C$1","v":0},{"$f":"'rent allocations'!J6*$C$1","v":0},{"$f":"'rent allocations'!K6*$C$1","v":0},{"$f":"'rent allocations'!L6*$C$1","v":0},{"$f":"'rent allocations'!M6*$C$1","v":0},{"$f":"'rent allocations'!N6*$C$1","v":0},{"$f":"'rent allocations'!O6*$C$1","v":0},{"$f":"'rent allocations'!P6*$C$1","v":0},{"$f":"'rent allocations'!Q6*$C$1","v":0},{"$f":"'rent allocations'!R6*$C$1","v":0},{"$f":"'rent allocations'!S6*$C$1","v":0},{"$f":"'rent allocations'!T6*$C$1","v":0},{"$f":"'rent allocations'!U6*$C$1","v":0},{"$f":"'rent allocations'!V6*$C$1","v":0},{"$f":"'rent allocations'!W6*$C$1","v":0},{"$f":"'rent allocations'!X6*$C$1","v":0},{"$f":"'rent allocations'!Y6*$C$1","v":0},{"$f":"'rent allocations'!Z6*$C$1","v":0},{"$f":"'rent allocations'!AA6*$C$1","v":0},{"$f":"'rent allocations'!AB6*$C$1","v":0},{"$f":"'rent allocations'!AC6*$C$1","v":0},{"$f":"'rent allocations'!AD6*$C$1","v":0},{"$f":"'rent allocations'!AE6*$C$1","v":0},{"$f":"'rent allocations'!AF6*$C$1","v":0},{"$f":"'rent allocations'!AG6*$C$1","v":0},{"$f":"'rent allocations'!AH6*$C$1","v":0},{"$f":"'rent allocations'!AI6*$C$1","v":0},{"$f":"'rent allocations'!AJ6*$C$1","v":0},{"$f":"'rent allocations'!AK6*$C$1","v":0},{"$f":"'rent allocations'!AL6*$C$1","v":0}]
["014 - Joint Legislative Audit and Review Committee","014","Joint Legislative Audit and Review Committee",{"$f":"'rent allocations'!D7*$C$1","v":16294.565995043125},{"$f":"'rent allocations'!E7*$C$1","v":0},{"$f":"'rent allocations'!F7*$C$1","v":0},{"$f":"'rent allocations'!G7*$C$1","v":0},{"$f":"'rent allocations'!H7*$C$1","v":0},{"$f":"'rent allocations'!I7*$C$1","v":0},{"$f":"'rent allocations'!J7*$C$1","v":0},{"$f":"'rent allocations'!K7*$C$1","v":0},{"$f":"'rent allocations'!L7*$C$1","v":0},{"$f":"'rent allocations'!M7*$C$1","v":0},{"$f":"'rent allocations'!N7*$C$1","v":0},{"$f":"'rent allocations'!O7*$C$1","v":0},{"$f":"'rent allocations'!P7*$C$1","v":0},{"$f":"'rent allocations'!Q7*$C$1","v":0},{"$f":"'rent allocations'!R7*$C$1","v":0},{"$f":"'rent allocations'!S7*$C$1","v":0},{"$f":"'rent allocations'!T7*$C$1","v":0},{"$f":"'rent allocations'!U7*$C$1","v":0},{"$f":"'rent allocations'!V7*$C$1","v":0},{"$f":"'rent allocations'!W7*$C$1","v":0},{"$f":"'rent allocations'!X7*$C$1","v":0},{"$f":"'rent allocations'!Y7*$C$1","v":0},{"$f":"'rent allocations'!Z7*$C$1","v":0},{"$f":"'rent allocations'!AA7*$C$1","v":0},{"$f":"'rent allocations'!AB7*$C$1","v":0},{"$f":"'rent allocations'!AC7*$C$1","v":0},{"$f":"'rent allocations'!AD7*$C$1","v":0},{"$f":"'rent allocations'!AE7*$C$1","v":0},{"$f":"'rent allocations'!AF7*$C$1","v":16294.565995043125},{"$f":"'rent allocations'!AG7*$C$1","v":0},{"$f":"'rent allocations'!AH7*$C$1","v":0},{"$f":"'rent allocations'!AI7*$C$1","v":0},{"$f":"'rent allocations'!AJ7*$C$1","v":0},{"$f":"'rent allocations'!AK7*$C$1","v":0},{"$f":"'rent allocations'!AL7*$C$1","v":0}]
["020 - Legislative Evaluation and Accountability Program Committee","020","Legislative Evaluation and Accountability Program Committee",{"$f":"'rent allocations'!D8*$C$1","v":7779.660573530773},{"$f":"'rent allocations'!E8*$C$1","v":0},{"$f":"'rent allocations'!F8*$C$1","v":0},{"$f":"'rent allocations'!G8*$C$1","v":0},{"$f":"'rent allocations'!H8*$C$1","v":0},{"$f":"'rent allocations'!I8*$C$1","v":0},{"$f":"'rent allocations'!J8*$C$1","v":0},{"$f":"'rent allocations'!K8*$C$1","v":0},{"$f":"'rent allocations'!L8*$C$1","v":0},{"$f":"'rent allocations'!M8*$C$1","v":0},{"$f":"'rent allocations'!N8*$C$1","v":0},{"$f":"'rent allocations'!O8*$C$1","v":0},{"$f":"'rent allocations'!P8*$C$1","v":0},{"$f":"'rent allocations'!Q8*$C$1","v":0},{"$f":"'rent allocations'!R8*$C$1","v":0},{"$f":"'rent allocations'!S8*$C$1","v":0},{"$f":"'rent allocations'!T8*$C$1","v":0},{"$f":"'rent allocations'!U8*$C$1","v":0},{"$f":"'rent allocations'!V8*$C$1","v":0},{"$f":"'rent allocations'!W8*$C$1","v":0},{"$f":"'rent allocations'!X8*$C$1","v":0},{"$f":"'rent allocations'!Y8*$C$1","v":0},{"$f":"'rent allocations'!Z8*$C$1","v":0},{"$f":"'rent allocations'!AA8*$C$1","v":0},{"$f":"'rent allocations'!AB8*$C$1","v":0},{"$f":"'rent allocations'!AC8*$C$1","v":0},{"$f":"'rent allocations'!AD8*$C$1","v":0},{"$f":"'rent allocations'!AE8*$C$1","v":0},{"$f":"'rent allocations'!AF8*$C$1","v":7779.660573530773},{"$f":"'rent allocations'!AG8*$C$1","v":0},{"$f":"'rent allocations'!AH8*$C$1","v":0},{"$f":"'rent allocations'!AI8*$C$1","v":0},{"$f":"'rent allocations'!AJ8*$C$1","v":0},{"$f":"'rent allocations'!AK8*$C$1","v":0},{"$f":"'rent allocations'!AL8*$C$1","v":0}]
["035 - Office of the State Actuary","035","Office of the State Actuary",{"$f":"'rent allocations'!D9*$C$1","v":0},{"$f":"'rent allocations'!E9*$C$1","v":0},{"$f":"'rent allocations'!F9*$C$1","v":0},{"$f":"'rent allocations'!G9*$C$1","v":0},{"$f":"'rent allocations'!H9*$C$1","v":0},{"$f":"'rent allocations'!I9*$C$1","v":0},{"$f":"'rent allocations'!J9*$C$1","v":0},{"$f":"'rent allocations'!K9*$C$1","v":0},{"$f":"'rent allocations'!L9*$C$1","v":0},{"$f":"'rent allocations'!M9*$C$1","v":0},{"$f":"'rent allocations'!N9*$C$1","v":0},{"$f":"'rent allocations'!O9*$C$1","v":0},{"$f":"'rent allocations'!P9*$C$1","v":0},{"$f":"'rent allocations'!Q9*$C$1","v":0},{"$f":"'rent allocations'!R9*$C$1","v":0},{"$f":"'rent allocations'!S9*$C$1","v":0},{"$f":"'rent allocations'!T9*$C$1","v":0},{"$f":"'rent allocations'!U9*$C$1","v":0},{"$f":"'rent allocations'!V9*$C$1","v":0},{"$f":"'rent allocations'!W9*$C$1","v":0},{"$f":"'rent allocations'!X9*$C$1","v":0},{"$f":"'rent allocations'!Y9*$C$1","v":0},{"$f":"'rent allocations'!Z9*$C$1","v":0},{"$f":"'rent allocations'!AA9*$C$1","v":0},{"$f":"'rent allocations'!AB9*$C$1","v":0},{"$f":"'rent allocations'!AC9*$C$1","v":0},{"$f":"'rent allocations'!AD9*$C$1","v":0},{"$f":"'rent allocations'!AE9*$C$1","v":0},{"$f":"'rent allocations'!AF9*$C$1","v":0},{"$f":"'rent allocations'!AG9*$C$1","v":0},{"$f":"'rent allocations'!AH9*$C$1","v":0},{"$f":"'rent allocations'!AI9*$C$1","v":0},{"$f":"'rent allocations'!AJ9*$C$1","v":0},{"$f":"'rent allocations'!AK9*$C$1","v":0},{"$f":"'rent allocations'!AL9*$C$1","v":0}]
["037 - Office of Legislative Support Services","037","Office of Legislative Support Services",{"$f":"'rent allocations'!D10*$C$1","v":58081.34240182567},{"$f":"'rent allocations'!E10*$C$1","v":0},{"$f":"'rent allocations'!F10*$C$1","v":0},{"$f":"'rent allocations'!G10*$C$1","v":20665.978069432778},{"$f":"'rent allocations'!H10*$C$1","v":20845.826648138092},{"$f":"'rent allocations'!I10*$C$1","v":0},{"$f":"'rent allocations'!J10*$C$1","v":0},{"$f":"'rent allocations'!K10*$C$1","v":0},{"$f":"'rent allocations'!L10*$C$1","v":0},{"$f":"'rent allocations'!M10*$C$1","v":0},{"$f":"'rent allocations'!N10*$C$1","v":0},{"$f":"'rent allocations'!O10*$C$1","v":0},{"$f":"'rent allocations'!P10*$C$1","v":0},{"$f":"'rent allocations'!Q10*$C$1","v":0},{"$f":"'rent allocations'!R10*$C$1","v":0},{"$f":"'rent allocations'!S10*$C$1","v":0},{"$f":"'rent allocations'!T10*$C$1","v":0},{"$f":"'rent allocations'!U10*$C$1","v":16569.537684254799},{"$f":"'rent allocations'!V10*$C$1","v":0},{"$f":"'rent allocations'!W10*$C$1","v":0},{"$f":"'rent allocations'!X10*$C$1","v":0},{"$f":"'rent allocations'!Y10*$C$1","v":0},{"$f":"'rent allocations'!Z10*$C$1","v":0},{"$f":"'rent allocations'!AA10*$C$1","v":0},{"$f":"'rent allocations'!AB10*$C$1","v":0},{"$f":"'rent allocations'!AC10*$C$1","v":0},{"$f":"'rent allocations'!AD10*$C$1","v":0},{"$f":"'rent allocations'!AE10*$C$1","v":0},{"$f":"'rent allocations'!AF10*$C$1","v":0},{"$f":"'rent allocations'!AG10*$C$1","v":0},{"$f":"'rent allocations'!AH10*$C$1","v":0},{"$f":"'rent allocations'!AI10*$C$1","v":0},{"$f":"'rent allocations'!AJ10*$C$1","v":0},{"$f":"'rent allocations'!AK10*$C$1","v":0},{"$f":"'rent allocations'!AL10*$C$1","v":0}]
["038 - Joint Legislative Systems Committee","038","Joint Legislative Systems Committee",{"$f":"'rent allocations'!D11*$C$1","v":68116.972351160759},{"$f":"'rent allocations'!E11*$C$1","v":0},{"$f":"'rent allocations'!F11*$C$1","v":0},{"$f":"'rent allocations'!G11*$C$1","v":4744.1680926615118},{"$f":"'rent allocations'!H11*$C$1","v":41427.304045303426},{"$f":"'rent allocations'!I11*$C$1","v":0},{"$f":"'rent allocations'!J11*$C$1","v":0},{"$f":"'rent allocations'!K11*$C$1","v":0},{"$f":"'rent allocations'!L11*$C$1","v":0},{"$f":"'rent allocations'!M11*$C$1","v":0},{"$f":"'rent allocations'!N11*$C$1","v":0},{"$f":"'rent allocations'!O11*$C$1","v":0},{"$f":"'rent allocations'!P11*$C$1","v":0},{"$f":"'rent allocations'!Q11*$C$1","v":0},{"$f":"'rent allocations'!R11*$C$1","v":0},{"$f":"'rent allocations'!S11*$C$1","v":0},{"$f":"'rent allocations'!T11*$C$1","v":0},{"$f":"'rent allocations'!U11*$C$1","v":0},{"$f":"'rent allocations'!V11*$C$1","v":0},{"$f":"'rent allocations'!W11*$C$1","v":0},{"$f":"'rent allocations'!X11*$C$1","v":0},{"$f":"'rent allocations'!Y11*$C$1","v":0},{"$f":"'rent allocations'!Z11*$C$1","v":0},{"$f":"'rent allocations'!AA11*$C$1","v":0},{"$f":"'rent allocations'!AB11*$C$1","v":0},{"$f":"'rent allocations'!AC11*$C$1","v":0},{"$f":"'rent allocations'!AD11*$C$1","v":0},{"$f":"'rent allocations'!AE11*$C$1","v":0},{"$f":"'rent allocations'!AF11*$C$1","v":21945.50021319581},{"$f":"'rent allocations'!AG11*$C$1","v":0},{"$f":"'rent allocations'!AH11*$C$1","v":0},{"$f":"'rent allocations'!AI11*$C$1","v":0},{"$f":"'rent allocations'!AJ11*$C$1","v":0},{"$f":"'rent allocations'!AK11*$C$1","v":0},{"$f":"'rent allocations'!AL11*$C$1","v":0}]
["040 - Statute Law Committee (Code Revisor)","040","Statute Law Committee (Code Revisor)",{"$f":"'rent allocations'!D12*$C$1","v":66610.616362464032},{"$f":"'rent allocations'!E12*$C$1","v":0},{"$f":"'rent allocations'!F12*$C$1","v":0},{"$f":"'rent allocations'!G12*$C$1","v":0},{"$f":"'rent allocations'!H12*$C$1","v":66610.616362464032},{"$f":"'rent allocations'!I12*$C$1","v":0},{"$f":"'rent allocations'!J12*$C$1","v":0},{"$f":"'rent allocations'!K12*$C$1","v":0},{"$f":"'rent allocations'!L12*$C$1","v":0},{"$f":"'rent allocations'!M12*$C$1","v":0},{"$f":"'rent allocations'!N12*$C$1","v":0},{"$f":"'rent allocations'!O12*$C$1","v":0},{"$f":"'rent allocations'!P12*$C$1","v":0},{"$f":"'rent allocations'!Q12*$C$1","v":0},{"$f":"'rent allocations'!R12*$C$1","v":0},{"$f":"'rent allocations'!S12*$C$1","v":0},{"$f":"'rent allocations'!T12*$C$1","v":0},{"$f":"'rent allocations'!U12*$C$1","v":0},{"$f":"'rent allocations'!V12*$C$1","v":0},{"$f":"'rent allocations'!W12*$C$1","v":0},{"$f":"'rent allocations'!X12*$C$1","v":0},{"$f":"'rent allocations'!Y12*$C$1","v":0},{"$f":"'rent allocations'!Z12*$C$1","v":0},{"$f":"'rent allocations'!AA12*$C$1","v":0},{"$f":"'rent allocations'!AB12*$C$1","v":0},{"$f":"'rent allocations'!AC12*$C$1","v":0},{"$f":"'rent allocations'!AD12*$C$1","v":0},{"$f":"'rent allocations'!AE12*$C$1","v":0},{"$f":"'rent allocations'!AF12*$C$1","v":0},{"$f":"'rent allocations'!AG12*$C$1","v":0},{"$f":"'rent allocations'!AH12*$C$1","v":0},{"$f":"'rent allocations'!AI12*$C$1","v":0},{"$f":"'rent allocations'!AJ12*$C$1","v":0},{"$f":"'rent allocations'!AK12*$C$1","v":0},{"$f":"'rent allocations'!AL12*$C$1","v":0}]
["045 - Supreme Court","045","Supreme Court",{"$f":"'rent allocations'!D13*$C$1","v":110049.41288456891},{"$f":"'rent allocations'!E13*$C$1","v":0},{"$f":"'rent allocations'!F13*$C$1","v":0},{"$f":"'rent allocations'!G13*$C$1","v":0},{"$f":"'rent allocations'!H13*$C$1","v":0},{"$f":"'rent allocations'!I13*$C$1","v":0},{"$f":"'rent allocations'!J13*$C$1","v":0},{"$f":"'rent allocations'!K13*$C$1","v":0},{"$f":"'rent allocations'!L13*$C$1","v":0},{"$f":"'rent allocations'!M13*$C$1","v":0},{"$f":"'rent allocations'!N13*$C$1","v":0},{"$f":"'rent allocations'!O13*$C$1","v":0},{"$f":"'rent allocations'!P13*$C$1","v":0},{"$f":"'rent allocations'!Q13*$C$1","v":110049.41288456891},{"$f":"'rent allocations'!R13*$C$1","v":0},{"$f":"'rent allocations'!S13*$C$1","v":0},{"$f":"'rent allocations'!T13*$C$1","v":0},{"$f":"'rent allocations'!U13*$C$1","v":0},{"$f":"'rent allocations'!V13*$C$1","v":0},{"$f":"'rent allocations'!W13*$C$1","v":0},{"$f":"'rent allocations'!X13*$C$1","v":0},{"$f":"'rent allocations'!Y13*$C$1","v":0},{"$f":"'rent allocations'!Z13*$C$1","v":0},{"$f":"'rent allocations'!AA13*$C$1","v":0},{"$f":"'rent allocations'!AB13*$C$1","v":0},{"$f":"'rent allocations'!AC13*$C$1","v":0},{"$f":"'rent allocations'!AD13*$C$1","v":0},{"$f":"'rent allocations'!AE13*$C$1","v":0},{"$f":"'rent allocations'!AF13*$C$1","v":0},{"$f":"'rent allocations'!AG13*$C$1","v":0},{"$f":"'rent allocations'!AH13*$C$1","v":0},{"$f":"'rent allocations'!AI13*$C$1","v":0},{"$f":"'rent allocations'!AJ13*$C$1","v":0},{"$f":"'rent allocations'!AK13*$C$1","v":0},{"$f":"'rent allocations'!AL13*$C$1","v":0}]
["046 - Law Library","046","Law Library",{"$f":"'rent allocations'!D14*$C$1","v":49992.393867244653},{"$f":"'rent allocations'!E14*$C$1","v":0},{"$f":"'rent allocations'!F14*$C$1","v":0},{"$f":"'rent allocations'!G14*$C$1","v":0},{"$f":"'rent allocations'!H14*$C$1","v":0},{"$f":"'rent allocations'!I14*$C$1","v":0},{"$f":"'rent allocations'!J14*$C$1","v":0},{"$f":"'rent allocations'!K14*$C$1","v":0},{"$f":"'rent allocations'!L14*$C$1","v":0},{"$f":"'rent allocations'!M14*$C$1","v":0},{"$f":"'rent allocations'!N14*$C$1","v":0},{"$f":"'rent allocations'!O14*$C$1","v":0},{"$f":"'rent allocations'!P14*$C$1","v":0},{"$f":"'rent allocations'!Q14*$C$1","v":49992.393867244653},{"$f":"'rent allocations'!R14*$C$1","v":0},{"$f":"'rent allocations'!S14*$C$1","v":0},{"$f":"'rent allocations'!T14*$C$1","v":0},{"$f":"'rent allocations'!U14*$C$1","v":0},{"$f":"'rent allocations'!V14*$C$1","v":0},{"$f":"'rent allocations'!W14*$C$1","v":0},{"$f":"'rent allocations'!X14*$C$1","v":0},{"$f":"'rent allocations'!Y14*$C$1","v":0},{"$f":"'rent allocations'!Z14*$C$1","v":0},{"$f":"'rent allocations'!AA14*$C$1","v":0},{"$f":"'rent allocations'!AB14*$C$1","v":0},{"$f":"'rent allocations'!AC14*$C$1","v":0},{"$f":"'rent allocations'!AD14*$C$1","v":0},{"$f":"'rent allocations'!AE14*$C$1","v":0},{"$f":"'rent allocations'!AF14*$C$1","v":0},{"$f":"'rent allocations'!AG14*$C$1","v":0},{"$f":"'rent allocations'!AH14*$C$1","v":0},{"$f":"'rent allocations'!AI14*$C$1","v":0},{"$f":"'rent allocations'!AJ14*$C$1","v":0},{"$f":"'rent allocations'!AK14*$C$1","v":0},{"$f":"'rent allocations'!AL14*$C$1","v":0}]
["048 - Court of Appeals","048","Court of Appeals",{"$f":"'rent allocations'!D15*$C$1","v":115718.65982841009},{"$f":"'rent allocations'!E15*$C$1","v":0},{"$f":"'rent allocations'!F15*$C$1","v":0},{"$f":"'rent allocations'!G15*$C$1","v":0},{"$f":"'rent allocations'!H15*$C$1","v":0},{"$f":"'rent allocations'!I15*$C$1","v":0},{"$f":"'rent allocations'!J15*$C$1","v":0},{"$f":"'rent allocations'!K15*$C$1","v":0},{"$f":"'rent allocations'!L15*$C$1","v":0},{"$f":"'rent allocations'!M15*$C$1","v":0},{"$f":"'rent allocations'!N15*$C$1","v":0},{"$f":"'rent allocations'!O15*$C$1","v":0},{"$f":"'rent allocations'!P15*$C$1","v":0},{"$f":"'rent allocations'!Q15*$C$1","v":0},{"$f":"'rent allocations'!R15*$C$1","v":0},{"$f":"'rent allocations'!S15*$C$1","v":0},{"$f":"'rent allocations'!T15*$C$1","v":0},{"$f":"'rent allocations'!U15*$C$1","v":0},{"$f":"'rent allocations'!V15*$C$1","v":0},{"$f":"'rent allocations'!W15*$C$1","v":0},{"$f":"'rent allocations'!X15*$C$1","v":0},{"$f":"'rent allocations'!Y15*$C$1","v":0},{"$f":"'rent allocations'!Z15*$C$1","v":0},{"$f":"'rent allocations'!AA15*$C$1","v":0},{"$f":"'rent allocations'!AB15*$C$1","v":0},{"$f":"'rent allocations'!AC15*$C$1","v":0},{"$f":"'rent allocations'!AD15*$C$1","v":0},{"$f":"'rent allocations'!AE15*$C$1","v":0},{"$f":"'rent allocations'!AF15*$C$1","v":0},{"$f":"'rent allocations'!AG15*$C$1","v":0},{"$f":"'rent allocations'!AH15*$C$1","v":0},{"$f":"'rent allocations'!AI15*$C$1","v":0},{"$f":"'rent allocations'!AJ15*$C$1","v":115718.65982841009},{"$f":"'rent allocations'!AK15*$C$1","v":0},{"$f":"'rent allocations'!AL15*$C$1","v":0}]
["050 - Commission on Judicial Conduct","050","Commission on Judicial Conduct",{"$f":"'rent allocations'!D16*$C$1","v":25613.6196597571},{"$f":"'rent allocations'!E16*$C$1","v":0},{"$f":"'rent allocations'!F16*$C$1","v":0},{"$f":"'rent allocations'!G16*$C$1","v":0},{"$f":"'rent allocations'!H16*$C$1","v":0},{"$f":"'rent allocations'!I16*$C$1","v":0},{"$f":"'rent allocations'!J16*$C$1","v":0},{"$f":"'rent allocations'!K16*$C$1","v":0},{"$f":"'rent allocations'!L16*$C$1","v":0},{"$f":"'rent allocations'!M16*$C$1","v":0},{"$f":"'rent allocations'!N16*$C$1","v":0},{"$f":"'rent allocations'!O16*$C$1","v":0},{"$f":"'rent allocations'!P16*$C$1","v":0},{"$f":"'rent allocations'!Q16*$C$1","v":0},{"$f":"'rent allocations'!R16*$C$1","v":0},{"$f":"'rent allocations'!S16*$C$1","v":0},{"$f":"'rent allocations'!T16*$C$1","v":0},{"$f":"'rent allocations'!U16*$C$1","v":0},{"$f":"'rent allocations'!V16*$C$1","v":0},{"$f":"'rent allocations'!W16*$C$1","v":0},{"$f":"'rent allocations'!X16*$C$1","v":25613.6196597571},{"$f":"'rent allocations'!Y16*$C$1","v":0},{"$f":"'rent allocations'!Z16*$C$1","v":0},{"$f":"'rent allocations'!AA16*$C$1","v":0},{"$f":"'rent allocations'!AB16*$C$1","v":0},{"$f":"'rent allocations'!AC16*$C$1","v":0},{"$f":"'rent allocations'!AD16*$C$1","v":0},{"$f":"'rent allocations'!AE16*$C$1","v":0},{"$f":"'rent allocations'!AF16*$C$1","v":0},{"$f":"'rent allocations'!AG16*$C$1","v":0},{"$f":"'rent allocations'!AH16*$C$1","v":0},{"$f":"'rent allocations'!AI16*$C$1","v":0},{"$f":"'rent allocations'!AJ16*$C$1","v":0},{"$f":"'rent allocations'!AK16*$C$1","v":0},{"$f":"'rent allocations'!AL16*$C$1","v":0}]
["055 - Administrative Office of the Courts","055","Administrative Office of the Courts",{"$f":"'rent allocations'!D17*$C$1","v":13783.737600833896},{"$f":"'rent allocations'!E17*$C$1","v":0},{"$f":"'rent allocations'!F17*$C$1","v":0},{"$f":"'rent allocations'!G17*$C$1","v":0},{"$f":"'rent allocations'!H17*$C$1","v":0},{"$f":"'rent allocations'!I17*$C$1","v":0},{"$f":"'rent allocations'!J17*$C$1","v":0},{"$f":"'rent allocations'!K17*$C$1","v":0},{"$f":"'rent allocations'!L17*$C$1","v":0},{"$f":"'rent allocations'!M17*$C$1","v":0},{"$f":"'rent allocations'!N17*$C$1","v":0},{"$f":"'rent allocations'!O17*$C$1","v":0},{"$f":"'rent allocations'!P17*$C$1","v":0},{"$f":"'rent allocations'!Q17*$C$1","v":13783.737600833896},{"$f":"'rent allocations'!R17*$C$1","v":0},{"$f":"'rent allocations'!S17*$C$1","v":0},{"$f":"'rent allocations'!T17*$C$1","v":0},{"$f":"'rent allocations'!U17*$C$1","v":0},{"$f":"'rent allocations'!V17*$C$1","v":0},{"$f":"'rent allocations'!W17*$C$1","v":0},{"$f":"'rent allocations'!X17*$C$1","v":0},{"$f":"'rent allocations'!Y17*$C$1","v":0},{"$f":"'rent allocations'!Z17*$C$1","v":0},{"$f":"'rent allocations'!AA17*$C$1","v":0},{"$f":"'rent allocations'!AB17*$C$1","v":0},{"$f":"'rent allocations'!AC17*$C$1","v":0},{"$f":"'rent allocations'!AD17*$C$1","v":0},{"$f":"'rent allocations'!AE17*$C$1","v":0},{"$f":"'rent allocations'!AF17*$C$1","v":0},{"$f":"'rent allocations'!AG17*$C$1","v":0},{"$f":"'rent allocations'!AH17*$C$1","v":0},{"$f":"'rent allocations'!AI17*$C$1","v":0},{"$f":"'rent allocations'!AJ17*$C$1","v":0},{"$f":"'rent allocations'!AK17*$C$1","v":0},{"$f":"'rent allocations'!AL17*$C$1","v":0}]
["056 - Office of Public Defense","056","Office of Public Defense",{"$f":"'rent allocations'!D18*$C$1","v":0},{"$f":"'rent allocations'!E18*$C$1","v":0},{"$f":"'rent allocations'!F18*$C$1","v":0},{"$f":"'rent allocations'!G18*$C$1","v":0},{"$f":"'rent allocations'!H18*$C$1","v":0},{"$f":"'rent allocations'!I18*$C$1","v":0},{"$f":"'rent allocations'!J18*$C$1","v":0},{"$f":"'rent allocations'!K18*$C$1","v":0},{"$f":"'rent allocations'!L18*$C$1","v":0},{"$f":"'rent allocations'!M18*$C$1","v":0},{"$f":"'rent allocations'!N18*$C$1","v":0},{"$f":"'rent allocations'!O18*$C$1","v":0},{"$f":"'rent allocations'!P18*$C$1","v":0},{"$f":"'rent allocations'!Q18*$C$1","v":0},{"$f":"'rent allocations'!R18*$C$1","v":0},{"$f":"'rent allocations'!S18*$C$1","v":0},{"$f":"'rent allocations'!T18*$C$1","v":0},{"$f":"'rent allocations'!U18*$C$1","v":0},{"$f":"'rent allocations'!V18*$C$1","v":0},{"$f":"'rent allocations'!W18*$C$1","v":0},{"$f":"'rent allocations'!X18*$C$1","v":0},{"$f":"'rent allocations'!Y18*$C$1","v":0},{"$f":"'rent allocations'!Z18*$C$1","v":0},{"$f":"'rent allocations'!AA18*$C$1","v":0},{"$f":"'rent allocations'!AB18*$C$1","v":0},{"$f":"'rent allocations'!AC18*$C$1","v":0},{"$f":"'rent allocations'!AD18*$C$1","v":0},{"$f":"'rent allocations'!AE18*$C$1","v":0},{"$f":"'rent allocations'!AF18*$C$1","v":0},{"$f":"'rent allocations'!AG18*$C$1","v":0},{"$f":"'rent allocations'!AH18*$C$1","v":0},{"$f":"'rent allocations'!AI18*$C$1","v":0},{"$f":"'rent allocations'!AJ18*$C$1","v":0},{"$f":"'rent allocations'!AK18*$C$1","v":0},{"$f":"'rent allocations'!AL18*$C$1","v":0}]
["057 - Office of Civil Legal Aid","057","Office of Civil Legal Aid",{"$f":"'rent allocations'!D19*$C$1","v":0},{"$f":"'rent allocations'!E19*$C$1","v":0},{"$f":"'rent allocations'!F19*$C$1","v":0},{"$f":"'rent allocations'!G19*$C$1","v":0},{"$f":"'rent allocations'!H19*$C$1","v":0},{"$f":"'rent allocations'!I19*$C$1","v":0},{"$f":"'rent allocations'!J19*$C$1","v":0},{"$f":"'rent allocations'!K19*$C$1","v":0},{"$f":"'rent allocations'!L19*$C$1","v":0},{"$f":"'rent allocations'!M19*$C$1","v":0},{"$f":"'rent allocations'!N19*$C$1","v":0},{"$f":"'rent allocations'!O19*$C$1","v":0},{"$f":"'rent allocations'!P19*$C$1","v":0},{"$f":"'rent allocations'!Q19*$C$1","v":0},{"$f":"'rent allocations'!R19*$C$1","v":0},{"$f":"'rent allocations'!S19*$C$1","v":0},{"$f":"'rent allocations'!T19*$C$1","v":0},{"$f":"'rent allocations'!U19*$C$1","v":0},{"$f":"'rent allocations'!V19*$C$1","v":0},{"$f":"'rent allocations'!W19*$C$1","v":0},{"$f":"'rent allocations'!X19*$C$1","v":0},{"$f":"'rent allocations'!Y19*$C$1","v":0},{"$f":"'rent allocations'!Z19*$C$1","v":0},{"$f":"'rent allocations'!AA19*$C$1","v":0},{"$f":"'rent allocations'!AB19*$C$1","v":0},{"$f":"'rent allocations'!AC19*$C$1","v":0},{"$f":"'rent allocations'!AD19*$C$1","v":0},{"$f":"'rent allocations'!AE19*$C$1","v":0},{"$f":"'rent allocations'!AF19*$C$1","v":0},{"$f":"'rent allocations'!AG19*$C$1","v":0},{"$f":"'rent allocations'!AH19*$C$1","v":0},{"$f":"'rent allocations'!AI19*$C$1","v":0},{"$f":"'rent allocations'!AJ19*$C$1","v":0},{"$f":"'rent allocations'!AK19*$C$1","v":0},{"$f":"'rent allocations'!AL19*$C$1","v":0}]
["075 - Office of the Governor","075","Office of the Governor",{"$f":"'rent allocations'!D20*$C$1","v":71627.391754207973},{"$f":"'rent allocations'!E20*$C$1","v":0},{"$f":"'rent allocations'!F20*$C$1","v":0},{"$f":"'rent allocations'!G20*$C$1","v":71627.391754207973},{"$f":"'rent allocations'!H20*$C$1","v":0},{"$f":"'rent allocations'!I20*$C$1","v":0},{"$f":"'rent allocations'!J20*$C$1","v":0},{"$f":"'rent allocations'!K20*$C$1","v":0},{"$f":"'rent allocations'!L20*$C$1","v":0},{"$f":"'rent allocations'!M20*$C$1","v":0},{"$f":"'rent allocations'!N20*$C$1","v":0},{"$f":"'rent allocations'!O20*$C$1","v":0},{"$f":"'rent allocations'!P20*$C$1","v":0},{"$f":"'rent allocations'!Q20*$C$1","v":0},{"$f":"'rent allocations'!R20*$C$1","v":0},{"$f":"'rent allocations'!S20*$C$1","v":0},{"$f":"'rent allocations'!T20*$C$1","v":0},{"$f":"'rent allocations'!U20*$C$1","v":0},{"$f":"'rent allocations'!V20*$C$1","v":0},{"$f":"'rent allocations'!W20*$C$1","v":0},{"$f":"'rent allocations'!X20*$C$1","v":0},{"$f":"'rent allocations'!Y20*$C$1","v":0},{"$f":"'rent allocations'!Z20*$C$1","v":0},{"$f":"'rent allocations'!AA20*$C$1","v":0},{"$f":"'rent allocations'!AB20*$C$1","v":0},{"$f":"'rent allocations'!AC20*$C$1","v":0},{"$f":"'rent allocations'!AD20*$C$1","v":0},{"$f":"'rent allocations'!AE20*$C$1","v":0},{"$f":"'rent allocations'!AF20*$C$1","v":0},{"$f":"'rent allocations'!AG20*$C$1","v":0},{"$f":"'rent allocations'!AH20*$C$1","v":0},{"$f":"'rent allocations'!AI20*$C$1","v":0},{"$f":"'rent allocations'!AJ20*$C$1","v":0},{"$f":"'rent allocations'!AK20*$C$1","v":0},{"$f":"'rent allocations'!AL20*$C$1","v":0}]
["080 - Office of Lieutenant Governor","080","Office of Lieutenant Governor",{"$f":"'rent allocations'!D21*$C$1","v":36832.675113104335},{"$f":"'rent allocations'!E21*$C$1","v":0},{"$f":"'rent allocations'!F21*$C$1","v":0},{"$f":"'rent allocations'!G21*$C$1","v":36832.675113104335},{"$f":"'rent allocations'!H21*$C$1","v":0},{"$f":"'rent allocations'!I21*$C$1","v":0},{"$f":"'rent allocations'!J21*$C$1","v":0},{"$f":"'rent allocations'!K21*$C$1","v":0},{"$f":"'rent allocations'!L21*$C$1","v":0},{"$f":"'rent allocations'!M21*$C$1","v":0},{"$f":"'rent allocations'!N21*$C$1","v":0},{"$f":"'rent allocations'!O21*$C$1","v":0},{"$f":"'rent allocations'!P21*$C$1","v":0},{"$f":"'rent allocations'!Q21*$C$1","v":0},{"$f":"'rent allocations'!R21*$C$1","v":0},{"$f":"'rent allocations'!S21*$C$1","v":0},{"$f":"'rent allocations'!T21*$C$1","v":0},{"$f":"'rent allocations'!U21*$C$1","v":0},{"$f":"'rent allocations'!V21*$C$1","v":0},{"$f":"'rent allocations'!W21*$C$1","v":0},{"$f":"'rent allocations'!X21*$C$1","v":0},{"$f":"'rent allocations'!Y21*$C$1","v":0},{"$f":"'rent allocations'!Z21*$C$1","v":0},{"$f":"'rent allocations'!AA21*$C$1","v":0},{"$f":"'rent allocations'!AB21*$C$1","v":0},{"$f":"'rent allocations'!AC21*$C$1","v":0},{"$f":"'rent allocations'!AD21*$C$1","v":0},{"$f":"'rent allocations'!AE21*$C$1","v":0},{"$f":"'rent allocations'!AF21*$C$1","v":0},{"$f":"'rent allocations'!AG21*$C$1","v":0},{"$f":"'rent allocations'!AH21*$C$1","v":0},{"$f":"'rent allocations'!AI21*$C$1","v":0},{"$f":"'rent allocations'!AJ21*$C$1","v":0},{"$f":"'rent allocations'!AK21*$C$1","v":0},{"$f":"'rent allocations'!AL21*$C$1","v":0}]
["082 - Public Disclosure Commission","082","Public Disclosure Commission",{"$f":"'rent allocations'!D22*$C$1","v":0},{"$f":"'rent allocations'!E22*$C$1","v":0},{"$f":"'rent allocations'!F22*$C$1","v":0},{"$f":"'rent allocations'!G22*$C$1","v":0},{"$f":"'rent allocations'!H22*$C$1","v":0},{"$f":"'rent allocations'!I22*$C$1","v":0},{"$f":"'rent allocations'!J22*$C$1","v":0},{"$f":"'rent allocations'!K22*$C$1","v":0},{"$f":"'rent allocations'!L22*$C$1","v":0},{"$f":"'rent allocations'!M22*$C$1","v":0},{"$f":"'rent allocations'!N22*$C$1","v":0},{"$f":"'rent allocations'!O22*$C$1","v":0},{"$f":"'rent allocations'!P22*$C$1","v":0},{"$f":"'rent allocations'!Q22*$C$1","v":0},{"$f":"'rent allocations'!R22*$C$1","v":0},{"$f":"'rent allocations'!S22*$C$1","v":0},{"$f":"'rent allocations'!T22*$C$1","v":0},{"$f":"'rent allocations'!U22*$C$1","v":0},{"$f":"'rent allocations'!V22*$C$1","v":0},{"$f":"'rent allocations'!W22*$C$1","v":0},{"$f":"'rent allocations'!X22*$C$1","v":0},{"$f":"'rent allocations'!Y22*$C$1","v":0},{"$f":"'rent allocations'!Z22*$C$1","v":0},{"$f":"'rent allocations'!AA22*$C$1","v":0},{"$f":"'rent allocations'!AB22*$C$1","v":0},{"$f":"'rent allocations'!AC22*$C$1","v":0},{"$f":"'rent allocations'!AD22*$C$1","v":0},{"$f":"'rent allocations'!AE22*$C$1","v":0},{"$f":"'rent allocations'!AF22*$C$1","v":0},{"$f":"'rent allocations'!AG22*$C$1","v":0},{"$f":"'rent allocations'!AH22*$C$1","v":0},{"$f":"'rent allocations'!AI22*$C$1","v":0},{"$f":"'rent allocations'!AJ22*$C$1","v":0},{"$f":"'rent allocations'!AK22*$C$1","v":0},{"$f":"'rent allocations'!AL22*$C$1","v":0}]
["085 - Office of the Secretary of State","085","Office of the Secretary of State",{"$f":"'rent allocations'!D23*$C$1","v":243632.62082605792},{"$f":"'rent allocations'!E23*$C$1","v":0},{"$f":"'rent allocations'!F23*$C$1","v":0},{"$f":"'rent allocations'!G23*$C$1","v":44204.190889628262},{"$f":"'rent allocations'!H23*$C$1","v":0},{"$f":"'rent allocations'!I23*$C$1","v":0},{"$f":"'rent allocations'!J23*$C$1","v":0},{"$f":"'rent allocations'!K23*$C$1","v":100424.38505853532},{"$f":"'rent allocations'!L23*$C$1","v":0},{"$f":"'rent allocations'!M23*$C$1","v":0},{"$f":"'rent allocations'!N23*$C$1","v":0},{"$f":"'rent allocations'!O23*$C$1","v":0},{"$f":"'rent allocations'!P23*$C$1","v":0},{"$f":"'rent allocations'!Q23*$C$1","v":0},{"$f":"'rent allocations'!R23*$C$1","v":0},{"$f":"'rent allocations'!S23*$C$1","v":7767.1817691883389},{"$f":"'rent allocations'!T23*$C$1","v":25247.728448801576},{"$f":"'rent allocations'!U23*$C$1","v":0},{"$f":"'rent allocations'!V23*$C$1","v":0},{"$f":"'rent allocations'!W23*$C$1","v":0},{"$f":"'rent allocations'!X23*$C$1","v":0},{"$f":"'rent allocations'!Y23*$C$1","v":65989.134659904448},{"$f":"'rent allocations'!Z23*$C$1","v":0},{"$f":"'rent allocations'!AA23*$C$1","v":0},{"$f":"'rent allocations'!AB23*$C$1","v":0},{"$f":"'rent allocations'!AC23*$C$1","v":0},{"$f":"'rent allocations'!AD23*$C$1","v":0},{"$f":"'rent allocations'!AE23*$C$1","v":0},{"$f":"'rent allocations'!AF23*$C$1","v":0},{"$f":"'rent allocations'!AG23*$C$1","v":0},{"$f":"'rent allocations'!AH23*$C$1","v":0},{"$f":"'rent allocations'!AI23*$C$1","v":0},{"$f":"'rent allocations'!AJ23*$C$1","v":0},{"$f":"'rent allocations'!AK23*$C$1","v":0},{"$f":"'rent allocations'!AL23*$C$1","v":0}]
["086 - Governor's Office of Indian Affairs","086","Governor's Office of Indian Affairs",{"$f":"'rent allocations'!D24*$C$1","v":6493.7331388601569},{"$f":"'rent allocations'!E24*$C$1","v":0},{"$f":"'rent allocations'!F24*$C$1","v":0},{"$f":"'rent allocations'!G24*$C$1","v":0},{"$f":"'rent allocations'!H24*$C$1","v":0},{"$f":"'rent allocations'!I24*$C$1","v":0},{"$f":"'rent allocations'!J24*$C$1","v":0},{"$f":"'rent allocations'!K24*$C$1","v":0},{"$f":"'rent allocations'!L24*$C$1","v":0},{"$f":"'rent allocations'!M24*$C$1","v":0},{"$f":"'rent allocations'!N24*$C$1","v":0},{"$f":"'rent allocations'!O24*$C$1","v":0},{"$f":"'rent allocations'!P24*$C$1","v":0},{"$f":"'rent allocations'!Q24*$C$1","v":0},{"$f":"'rent allocations'!R24*$C$1","v":0},{"$f":"'rent allocations'!S24*$C$1","v":0},{"$f":"'rent allocations'!T24*$C$1","v":0},{"$f":"'rent allocations'!U24*$C$1","v":0},{"$f":"'rent allocations'!V24*$C$1","v":0},{"$f":"'rent allocations'!W24*$C$1","v":0},{"$f":"'rent allocations'!X24*$C$1","v":6493.7331388601569},{"$f":"'rent allocations'!Y24*$C$1","v":0},{"$f":"'rent allocations'!Z24*$C$1","v":0},{"$f":"'rent allocations'!AA24*$C$1","v":0},{"$f":"'rent allocations'!AB24*$C$1","v":0},{"$f":"'rent allocations'!AC24*$C$1","v":0},{"$f":"'rent allocations'!AD24*$C$1","v":0},{"$f":"'rent allocations'!AE24*$C$1","v":0},{"$f":"'rent allocations'!AF24*$C$1","v":0},{"$f":"'rent allocations'!AG24*$C$1","v":0},{"$f":"'rent allocations'!AH24*$C$1","v":0},{"$f":"'rent allocations'!AI24*$C$1","v":0},{"$f":"'rent allocations'!AJ24*$C$1","v":0},{"$f":"'rent allocations'!AK24*$C$1","v":0},{"$f":"'rent allocations'!AL24*$C$1","v":0}]
["087 - Commission on Asian Pacific American Affairs","087","Commission on Asian Pacific American Affairs",{"$f":"'rent allocations'!D25*$C$1","v":4271.4113558203617},{"$f":"'rent allocations'!E25*$C$1","v":0},{"$f":"'rent allocations'!F25*$C$1","v":0},{"$f":"'rent allocations'!G25*$C$1","v":0},{"$f":"'rent allocations'!H25*$C$1","v":0},{"$f":"'rent allocations'!I25*$C$1","v":0},{"$f":"'rent allocations'!J25*$C$1","v":0},{"$f":"'rent allocations'!K25*$C$1","v":0},{"$f":"'rent allocations'!L25*$C$1","v":0},{"$f":"'rent allocations'!M25*$C$1","v":0},{"$f":"'rent allocations'!N25*$C$1","v":0},{"$f":"'rent allocations'!O25*$C$1","v":0},{"$f":"'rent allocations'!P25*$C$1","v":0},{"$f":"'rent allocations'!Q25*$C$1","v":0},{"$f":"'rent allocations'!R25*$C$1","v":0},{"$f":"'rent allocations'!S25*$C$1","v":0},{"$f":"'rent allocations'!T25*$C$1","v":0},{"$f":"'rent allocations'!U25*$C$1","v":0},{"$f":"'rent allocations'!V25*$C$1","v":0},{"$f":"'rent allocations'!W25*$C$1","v":0},{"$f":"'rent allocations'!X25*$C$1","v":4271.4113558203617},{"$f":"'rent allocations'!Y25*$C$1","v":0},{"$f":"'rent allocations'!Z25*$C$1","v":0},{"$f":"'rent allocations'!AA25*$C$1","v":0},{"$f":"'rent allocations'!AB25*$C$1","v":0},{"$f":"'rent allocations'!AC25*$C$1","v":0},{"$f":"'rent allocations'!AD25*$C$1","v":0},{"$f":"'rent allocations'!AE25*$C$1","v":0},{"$f":"'rent allocations'!AF25*$C$1","v":0},{"$f":"'rent allocations'!AG25*$C$1","v":0},{"$f":"'rent allocations'!AH25*$C$1","v":0},{"$f":"'rent allocations'!AI25*$C$1","v":0},{"$f":"'rent allocations'!AJ25*$C$1","v":0},{"$f":"'rent allocations'!AK25*$C$1","v":0},{"$f":"'rent allocations'!AL25*$C$1","v":0}]
["090 - Office of State Treasurer","090","Office of State Treasurer",{"$f":"'rent allocations'!D26*$C$1","v":68153.999710288452},{"$f":"'rent allocations'!E26*$C$1","v":0},{"$f":"'rent allocations'!F26*$C$1","v":0},{"$f":"'rent allocations'!G26*$C$1","v":44473.981726043821},{"$f":"'rent allocations'!H26*$C$1","v":0},{"$f":"'rent allocations'!I26*$C$1","v":0},{"$f":"'rent allocations'!J26*$C$1","v":0},{"$f":"'rent allocations'!K26*$C$1","v":0},{"$f":"'rent allocations'!L26*$C$1","v":0},{"$f":"'rent allocations'!M26*$C$1","v":0},{"$f":"'rent allocations'!N26*$C$1","v":0},{"$f":"'rent allocations'!O26*$C$1","v":0},{"$f":"'rent allocations'!P26*$C$1","v":0},{"$f":"'rent allocations'!Q26*$C$1","v":0},{"$f":"'rent allocations'!R26*$C$1","v":0},{"$f":"'rent allocations'!S26*$C$1","v":0},{"$f":"'rent allocations'!T26*$C$1","v":0},{"$f":"'rent allocations'!U26*$C$1","v":0},{"$f":"'rent allocations'!V26*$C$1","v":0},{"$f":"'rent allocations'!W26*$C$1","v":0},{"$f":"'rent allocations'!X26*$C$1","v":0},{"$f":"'rent allocations'!Y26*$C$1","v":0},{"$f":"'rent allocations'!Z26*$C$1","v":0},{"$f":"'rent allocations'!AA26*$C$1","v":0},{"$f":"'rent allocations'!AB26*$C$1","v":0},{"$f":"'rent allocations'!AC26*$C$1","v":0},{"$f":"'rent allocations'!AD26*$C$1","v":0},{"$f":"'rent allocations'!AE26*$C$1","v":0},{"$f":"'rent allocations'!AF26*$C$1","v":23680.017984244627},{"$f":"'rent allocations'!AG26*$C$1","v":0},{"$f":"'rent allocations'!AH26*$C$1","v":0},{"$f":"'rent allocations'!AI26*$C$1","v":0},{"$f":"'rent allocations'!AJ26*$C$1","v":0},{"$f":"'rent allocations'!AK26*$C$1","v":0},{"$f":"'rent allocations'!AL26*$C$1","v":0}]
["095 - Office of State Auditor","095","Office of State Auditor",{"$f":"'rent allocations'!D27*$C$1","v":38432.482580250296},{"$f":"'rent allocations'!E27*$C$1","v":0},{"$f":"'rent allocations'!F27*$C$1","v":0},{"$f":"'rent allocations'!G27*$C$1","v":0},{"$f":"'rent allocations'!H27*$C$1","v":0},{"$f":"'rent allocations'!I27*$C$1","v":0},{"$f":"'rent allocations'!J27*$C$1","v":0},{"$f":"'rent allocations'!K27*$C$1","v":0},{"$f":"'rent allocations'!L27*$C$1","v":0},{"$f":"'rent allocations'!M27*$C$1","v":0},{"$f":"'rent allocations'!N27*$C$1","v":0},{"$f":"'rent allocations'!O27*$C$1","v":19953.935932798708},{"$f":"'rent allocations'!P27*$C$1","v":0},{"$f":"'rent allocations'!Q27*$C$1","v":0},{"$f":"'rent allocations'!R27*$C$1","v":0},{"$f":"'rent allocations'!S27*$C$1","v":0},{"$f":"'rent allocations'!T27*$C$1","v":0},{"$f":"'rent allocations'!U27*$C$1","v":0},{"$f":"'rent allocations'!V27*$C$1","v":0},{"$f":"'rent allocations'!W27*$C$1","v":0},{"$f":"'rent allocations'!X27*$C$1","v":0},{"$f":"'rent allocations'!Y27*$C$1","v":0},{"$f":"'rent allocations'!Z27*$C$1","v":0},{"$f":"'rent allocations'!AA27*$C$1","v":0},{"$f":"'rent allocations'!AB27*$C$1","v":0},{"$f":"'rent allocations'!AC27*$C$1","v":0},{"$f":"'rent allocations'!AD27*$C$1","v":0},{"$f":"'rent allocations'!AE27*$C$1","v":0},{"$f":"'rent allocations'!AF27*$C$1","v":0},{"$f":"'rent allocations'!AG27*$C$1","v":0},{"$f":"'rent allocations'!AH27*$C$1","v":0},{"$f":"'rent allocations'!AI27*$C$1","v":0},{"$f":"'rent allocations'!AJ27*$C$1","v":18478.546647451585},{"$f":"'rent allocations'!AK27*$C$1","v":0},{"$f":"'rent allocations'!AL27*$C$1","v":0}]
["099 - Citizens' Commission on Salaries for Elected Officials","099","Citizens' Commission on Salaries for Elected Officials",{"$f":"'rent allocations'!D28*$C$1","v":3296.3614866470002},{"$f":"'rent allocations'!E28*$C$1","v":0},{"$f":"'rent allocations'!F28*$C$1","v":0},{"$f":"'rent allocations'!G28*$C$1","v":0},{"$f":"'rent allocations'!H28*$C$1","v":0},{"$f":"'rent allocations'!I28*$C$1","v":0},{"$f":"'rent allocations'!J28*$C$1","v":0},{"$f":"'rent allocations'!K28*$C$1","v":0},{"$f":"'rent allocations'!L28*$C$1","v":0},{"$f":"'rent allocations'!M28*$C$1","v":0},{"$f":"'rent allocations'!N28*$C$1","v":0},{"$f":"'rent allocations'!O28*$C$1","v":0},{"$f":"'rent allocations'!P28*$C$1","v":0},{"$f":"'rent allocations'!Q28*$C$1","v":0},{"$f":"'rent allocations'!R28*$C$1","v":0},{"$f":"'rent allocations'!S28*$C$1","v":0},{"$f":"'rent allocations'!T28*$C$1","v":0},{"$f":"'rent allocations'!U28*$C$1","v":0},{"$f":"'rent allocations'!V28*$C$1","v":0},{"$f":"'rent allocations'!W28*$C$1","v":0},{"$f":"'rent allocations'!X28*$C$1","v":3296.3614866470002},{"$f":"'rent allocations'!Y28*$C$1","v":0},{"$f":"'rent allocations'!Z28*$C$1","v":0},{"$f":"'rent allocations'!AA28*$C$1","v":0},{"$f":"'rent allocations'!AB28*$C$1","v":0},{"$f":"'rent allocations'!AC28*$C$1","v":0},{"$f":"'rent allocations'!AD28*$C$1","v":0},{"$f":"'rent allocations'!AE28*$C$1","v":0},{"$f":"'rent allocations'!AF28*$C$1","v":0},{"$f":"'rent allocations'!AG28*$C$1","v":0},{"$f":"'rent allocations'!AH28*$C$1","v":0},{"$f":"'rent allocations'!AI28*$C$1","v":0},{"$f":"'rent allocations'!AJ28*$C$1","v":0},{"$f":"'rent allocations'!AK28*$C$1","v":0},{"$f":"'rent allocations'!AL28*$C$1","v":0}]
["100 - Office of Attorney General","100","Office of Attorney General",{"$f":"'rent allocations'!D29*$C$1","v":173435.17785421864},{"$f":"'rent allocations'!E29*$C$1","v":0},{"$f":"'rent allocations'!F29*$C$1","v":0},{"$f":"'rent allocations'!G29*$C$1","v":0},{"$f":"'rent allocations'!H29*$C$1","v":0},{"$f":"'rent allocations'!I29*$C$1","v":173435.17785421864},{"$f":"'rent allocations'!J29*$C$1","v":0},{"$f":"'rent allocations'!K29*$C$1","v":0},{"$f":"'rent allocations'!L29*$C$1","v":0},{"$f":"'rent allocations'!M29*$C$1","v":0},{"$f":"'rent allocations'!N29*$C$1","v":0},{"$f":"'rent allocations'!O29*$C$1","v":0},{"$f":"'rent allocations'!P29*$C$1","v":0},{"$f":"'rent allocations'!Q29*$C$1","v":0},{"$f":"'rent allocations'!R29*$C$1","v":0},{"$f":"'rent allocations'!S29*$C$1","v":0},{"$f":"'rent allocations'!T29*$C$1","v":0},{"$f":"'rent allocations'!U29*$C$1","v":0},{"$f":"'rent allocations'!V29*$C$1","v":0},{"$f":"'rent allocations'!W29*$C$1","v":0},{"$f":"'rent allocations'!X29*$C$1","v":0},{"$f":"'rent allocations'!Y29*$C$1","v":0},{"$f":"'rent allocations'!Z29*$C$1","v":0},{"$f":"'rent allocations'!AA29*$C$1","v":0},{"$f":"'rent allocations'!AB29*$C$1","v":0},{"$f":"'rent allocations'!AC29*$C$1","v":0},{"$f":"'rent allocations'!AD29*$C$1","v":0},{"$f":"'rent allocations'!AE29*$C$1","v":0},{"$f":"'rent allocations'!AF29*$C$1","v":0},{"$f":"'rent allocations'!AG29*$C$1","v":0},{"$f":"'rent allocations'!AH29*$C$1","v":0},{"$f":"'rent allocations'!AI29*$C$1","v":0},{"$f":"'rent allocations'!AJ29*$C$1","v":0},{"$f":"'rent allocations'!AK29*$C$1","v":0},{"$f":"'rent allocations'!AL29*$C$1","v":0}]
["101 - Caseload Forecast Council","101","Caseload Forecast Council",{"$f":"'rent allocations'!D30*$C$1","v":25529.478300488332},{"$f":"'rent allocations'!E30*$C$1","v":0},{"$f":"'rent allocations'!F30*$C$1","v":0},{"$f":"'rent allocations'!G30*$C$1","v":0},{"$f":"'rent allocations'!H30*$C$1","v":0},{"$f":"'rent allocations'!I30*$C$1","v":0},{"$f":"'rent allocations'!J30*$C$1","v":0},{"$f":"'rent allocations'!K30*$C$1","v":0},{"$f":"'rent allocations'!L30*$C$1","v":0},{"$f":"'rent allocations'!M30*$C$1","v":0},{"$f":"'rent allocations'!N30*$C$1","v":0},{"$f":"'rent allocations'!O30*$C$1","v":0},{"$f":"'rent allocations'!P30*$C$1","v":0},{"$f":"'rent allocations'!Q30*$C$1","v":0},{"$f":"'rent allocations'!R30*$C$1","v":0},{"$f":"'rent allocations'!S30*$C$1","v":0},{"$f":"'rent allocations'!T30*$C$1","v":0},{"$f":"'rent allocations'!U30*$C$1","v":0},{"$f":"'rent allocations'!V30*$C$1","v":0},{"$f":"'rent allocations'!W30*$C$1","v":0},{"$f":"'rent allocations'!X30*$C$1","v":25529.478300488332},{"$f":"'rent allocations'!Y30*$C$1","v":0},{"$f":"'rent allocations'!Z30*$C$1","v":0},{"$f":"'rent allocations'!AA30*$C$1","v":0},{"$f":"'rent allocations'!AB30*$C$1","v":0},{"$f":"'rent allocations'!AC30*$C$1","v":0},{"$f":"'rent allocations'!AD30*$C$1","v":0},{"$f":"'rent allocations'!AE30*$C$1","v":0},{"$f":"'rent allocations'!AF30*$C$1","v":0},{"$f":"'rent allocations'!AG30*$C$1","v":0},{"$f":"'rent allocations'!AH30*$C$1","v":0},{"$f":"'rent allocations'!AI30*$C$1","v":0},{"$f":"'rent allocations'!AJ30*$C$1","v":0},{"$f":"'rent allocations'!AK30*$C$1","v":0},{"$f":"'rent allocations'!AL30*$C$1","v":0}]
["102 - Department of Financial Institutions","102","Department of Financial Institutions",{"$f":"'rent allocations'!D31*$C$1","v":0},{"$f":"'rent allocations'!E31*$C$1","v":0},{"$f":"'rent allocations'!F31*$C$1","v":0},{"$f":"'rent allocations'!G31*$C$1","v":0},{"$f":"'rent allocations'!H31*$C$1","v":0},{"$f":"'rent allocations'!I31*$C$1","v":0},{"$f":"'rent allocations'!J31*$C$1","v":0},{"$f":"'rent allocations'!K31*$C$1","v":0},{"$f":"'rent allocations'!L31*$C$1","v":0},{"$f":"'rent allocations'!M31*$C$1","v":0},{"$f":"'rent allocations'!N31*$C$1","v":0},{"$f":"'rent allocations'!O31*$C$1","v":0},{"$f":"'rent allocations'!P31*$C$1","v":0},{"$f":"'rent allocations'!Q31*$C$1","v":0},{"$f":"'rent allocations'!R31*$C$1","v":0},{"$f":"'rent allocations'!S31*$C$1","v":0},{"$f":"'rent allocations'!T31*$C$1","v":0},{"$f":"'rent allocations'!U31*$C$1","v":0},{"$f":"'rent allocations'!V31*$C$1","v":0},{"$f":"'rent allocations'!W31*$C$1","v":0},{"$f":"'rent allocations'!X31*$C$1","v":0},{"$f":"'rent allocations'!Y31*$C$1","v":0},{"$f":"'rent allocations'!Z31*$C$1","v":0},{"$f":"'rent allocations'!AA31*$C$1","v":0},{"$f":"'rent allocations'!AB31*$C$1","v":0},{"$f":"'rent allocations'!AC31*$C$1","v":0},{"$f":"'rent allocations'!AD31*$C$1","v":0},{"$f":"'rent allocations'!AE31*$C$1","v":0},{"$f":"'rent allocations'!AF31*$C$1","v":0},{"$f":"'rent allocations'!AG31*$C$1","v":0},{"$f":"'rent allocations'!AH31*$C$1","v":0},{"$f":"'rent allocations'!AI31*$C$1","v":0},{"$f":"'rent allocations'!AJ31*$C$1","v":0},{"$f":"'rent allocations'!AK31*$C$1","v":0},{"$f":"'rent allocations'!AL31*$C$1","v":0}]
["103 - Department of Commerce","103","Department of Commerce",{"$f":"'rent allocations'!D32*$C$1","v":0},{"$f":"'rent allocations'!E32*$C$1","v":0},{"$f":"'rent allocations'!F32*$C$1","v":0},{"$f":"'rent allocations'!G32*$C$1","v":0},{"$f":"'rent allocations'!H32*$C$1","v":0},{"$f":"'rent allocations'!I32*$C$1","v":0},{"$f":"'rent allocations'!J32*$C$1","v":0},{"$f":"'rent allocations'!K32*$C$1","v":0},{"$f":"'rent allocations'!L32*$C$1","v":0},{"$f":"'rent allocations'!M32*$C$1","v":0},{"$f":"'rent allocations'!N32*$C$1","v":0},{"$f":"'rent allocations'!O32*$C$1","v":0},{"$f":"'rent allocations'!P32*$C$1","v":0},{"$f":"'rent allocations'!Q32*$C$1","v":0},{"$f":"'rent allocations'!R32*$C$1","v":0},{"$f":"'rent allocations'!S32*$C$1","v":0},{"$f":"'rent allocations'!T32*$C$1","v":0},{"$f":"'rent allocations'!U32*$C$1","v":0},{"$f":"'rent allocations'!V32*$C$1","v":0},{"$f":"'rent allocations'!W32*$C$1","v":0},{"$f":"'rent allocations'!X32*$C$1","v":0},{"$f":"'rent allocations'!Y32*$C$1","v":0},{"$f":"'rent allocations'!Z32*$C$1","v":0},{"$f":"'rent allocations'!AA32*$C$1","v":0},{"$f":"'rent allocations'!AB32*$C$1","v":0},{"$f":"'rent allocations'!AC32*$C$1","v":0},{"$f":"'rent allocations'!AD32*$C$1","v":0},{"$f":"'rent allocations'!AE32*$C$1","v":0},{"$f":"'rent allocations'!AF32*$C$1","v":0},{"$f":"'rent allocations'!AG32*$C$1","v":0},{"$f":"'rent allocations'!AH32*$C$1","v":0},{"$f":"'rent allocations'!AI32*$C$1","v":0},{"$f":"'rent allocations'!AJ32*$C$1","v":0},{"$f":"'rent allocations'!AK32*$C$1","v":0},{"$f":"'rent allocations'!AL32*$C$1","v":0}]
["104 - Economic and Revenue Forecast Council","104","Economic and Revenue Forecast Council",{"$f":"'rent allocations'!D33*$C$1","v":0},{"$f":"'rent allocations'!E33*$C$1","v":0},{"$f":"'rent allocations'!F33*$C$1","v":0},{"$f":"'rent allocations'!G33*$C$1","v":0},{"$f":"'rent allocations'!H33*$C$1","v":0},{"$f":"'rent allocations'!I33*$C$1","v":0},{"$f":"'rent allocations'!J33*$C$1","v":0},{"$f":"'rent allocations'!K33*$C$1","v":0},{"$f":"'rent allocations'!L33*$C$1","v":0},{"$f":"'rent allocations'!M33*$C$1","v":0},{"$f":"'rent allocations'!N33*$C$1","v":0},{"$f":"'rent allocations'!O33*$C$1","v":0},{"$f":"'rent allocations'!P33*$C$1","v":0},{"$f":"'rent allocations'!Q33*$C$1","v":0},{"$f":"'rent allocations'!R33*$C$1","v":0},{"$f":"'rent allocations'!S33*$C$1","v":0},{"$f":"'rent allocations'!T33*$C$1","v":0},{"$f":"'rent allocations'!U33*$C$1","v":0},{"$f":"'rent allocations'!V33*$C$1","v":0},{"$f":"'rent allocations'!W33*$C$1","v":0},{"$f":"'rent allocations'!X33*$C$1","v":0},{"$f":"'rent allocations'!Y33*$C$1","v":0},{"$f":"'rent allocations'!Z33*$C$1","v":0},{"$f":"'rent allocations'!AA33*$C$1","v":0},{"$f":"'rent allocations'!AB33*$C$1","v":0},{"$f":"'rent allocations'!AC33*$C$1","v":0},{"$f":"'rent allocations'!AD33*$C$1","v":0},{"$f":"'rent allocations'!AE33*$C$1","v":0},{"$f":"'rent allocations'!AF33*$C$1","v":0},{"$f":"'rent allocations'!AG33*$C$1","v":0},{"$f":"'rent allocations'!AH33*$C$1","v":0},{"$f":"'rent allocations'!AI33*$C$1","v":0},{"$f":"'rent allocations'!AJ33*$C$1","v":0},{"$f":"'rent allocations'!AK33*$C$1","v":0},{"$f":"'rent allocations'!AL33*$C$1","v":0}]
["105 - Office of Financial Management","105","Office of Financial Management",{"$f":"'rent allocations'!D34*$C$1","v":178866.87589155877},{"$f":"'rent allocations'!E34*$C$1","v":0},{"$f":"'rent allocations'!F34*$C$1","v":0},{"$f":"'rent allocations'!G34*$C$1","v":0},{"$f":"'rent allocations'!H34*$C$1","v":0},{"$f":"'rent allocations'!I34*$C$1","v":0},{"$f":"'rent allocations'!J34*$C$1","v":0},{"$f":"'rent allocations'!K34*$C$1","v":0},{"$f":"'rent allocations'!L34*$C$1","v":0},{"$f":"'rent allocations'!M34*$C$1","v":0},{"$f":"'rent allocations'!N34*$C$1","v":0},{"$f":"'rent allocations'!O34*$C$1","v":129790.83062215152},{"$f":"'rent allocations'!P34*$C$1","v":0},{"$f":"'rent allocations'!Q34*$C$1","v":0},{"$f":"'rent allocations'!R34*$C$1","v":0},{"$f":"'rent allocations'!S34*$C$1","v":0},{"$f":"'rent allocations'!T34*$C$1","v":0},{"$f":"'rent allocations'!U34*$C$1","v":0},{"$f":"'rent allocations'!V34*$C$1","v":0},{"$f":"'rent allocations'!W34*$C$1","v":0},{"$f":"'rent allocations'!X34*$C$1","v":3459.6947134628431},{"$f":"'rent allocations'!Y34*$C$1","v":0},{"$f":"'rent allocations'!Z34*$C$1","v":0},{"$f":"'rent allocations'!AA34*$C$1","v":0},{"$f":"'rent allocations'!AB34*$C$1","v":0},{"$f":"'rent allocations'!AC34*$C$1","v":0},{"$f":"'rent allocations'!AD34*$C$1","v":0},{"$f":"'rent allocations'!AE34*$C$1","v":0},{"$f":"'rent allocations'!AF34*$C$1","v":45616.350555944402},{"$f":"'rent allocations'!AG34*$C$1","v":0},{"$f":"'rent allocations'!AH34*$C$1","v":0},{"$f":"'rent allocations'!AI34*$C$1","v":0},{"$f":"'rent allocations'!AJ34*$C$1","v":0},{"$f":"'rent allocations'!AK34*$C$1","v":0},{"$f":"'rent allocations'!AL34*$C$1","v":0}]
["107 - Washington State Health Care Authority","107","Washington State Health Care Authority",{"$f":"'rent allocations'!D35*$C$1","v":0},{"$f":"'rent allocations'!E35*$C$1","v":0},{"$f":"'rent allocations'!F35*$C$1","v":0},{"$f":"'rent allocations'!G35*$C$1","v":0},{"$f":"'rent allocations'!H35*$C$1","v":0},{"$f":"'rent allocations'!I35*$C$1","v":0},{"$f":"'rent allocations'!J35*$C$1","v":0},{"$f":"'rent allocations'!K35*$C$1","v":0},{"$f":"'rent allocations'!L35*$C$1","v":0},{"$f":"'rent allocations'!M35*$C$1","v":0},{"$f":"'rent allocations'!N35*$C$1","v":0},{"$f":"'rent allocations'!O35*$C$1","v":0},{"$f":"'rent allocations'!P35*$C$1","v":0},{"$f":"'rent allocations'!Q35*$C$1","v":0},{"$f":"'rent allocations'!R35*$C$1","v":0},{"$f":"'rent allocations'!S35*$C$1","v":0},{"$f":"'rent allocations'!T35*$C$1","v":0},{"$f":"'rent allocations'!U35*$C$1","v":0},{"$f":"'rent allocations'!V35*$C$1","v":0},{"$f":"'rent allocations'!W35*$C$1","v":0},{"$f":"'rent allocations'!X35*$C$1","v":0},{"$f":"'rent allocations'!Y35*$C$1","v":0},{"$f":"'rent allocations'!Z35*$C$1","v":0},{"$f":"'rent allocations'!AA35*$C$1","v":0},{"$f":"'rent allocations'!AB35*$C$1","v":0},{"$f":"'rent allocations'!AC35*$C$1","v":0},{"$f":"'rent allocations'!AD35*$C$1","v":0},{"$f":"'rent allocations'!AE35*$C$1","v":0},{"$f":"'rent allocations'!AF35*$C$1","v":0},{"$f":"'rent allocations'!AG35*$C$1","v":0},{"$f":"'rent allocations'!AH35*$C$1","v":0},{"$f":"'rent allocations'!AI35*$C$1","v":0},{"$f":"'rent allocations'!AJ35*$C$1","v":0},{"$f":"'rent allocations'!AK35*$C$1","v":0},{"$f":"'rent allocations'!AL35*$C$1","v":0}]
["110 - Office of Administrative Hearings","110","Office of Administrative Hearings",{"$f":"'rent allocations'!D36*$C$1","v":47036.300557149494},{"$f":"'rent allocations'!E36*$C$1","v":0},{"$f":"'rent allocations'!F36*$C$1","v":0},{"$f":"'rent allocations'!G36*$C$1","v":0},{"$f":"'rent allocations'!H36*$C$1","v":0},{"$f":"'rent allocations'!I36*$C$1","v":0},{"$f":"'rent allocations'!J36*$C$1","v":0},{"$f":"'rent allocations'!K36*$C$1","v":0},{"$f":"'rent allocations'!L36*$C$1","v":0},{"$f":"'rent allocations'!M36*$C$1","v":0},{"$f":"'rent allocations'!N36*$C$1","v":0},{"$f":"'rent allocations'!O36*$C$1","v":0},{"$f":"'rent allocations'!P36*$C$1","v":0},{"$f":"'rent allocations'!Q36*$C$1","v":0},{"$f":"'rent allocations'!R36*$C$1","v":0},{"$f":"'rent allocations'!S36*$C$1","v":0},{"$f":"'rent allocations'!T36*$C$1","v":0},{"$f":"'rent allocations'!U36*$C$1","v":0},{"$f":"'rent allocations'!V36*$C$1","v":0},{"$f":"'rent allocations'!W36*$C$1","v":0},{"$f":"'rent allocations'!X36*$C$1","v":0},{"$f":"'rent allocations'!Y36*$C$1","v":0},{"$f":"'rent allocations'!Z36*$C$1","v":0},{"$f":"'rent allocations'!AA36*$C$1","v":0},{"$f":"'rent allocations'!AB36*$C$1","v":0},{"$f":"'rent allocations'!AC36*$C$1","v":0},{"$f":"'rent allocations'!AD36*$C$1","v":0},{"$f":"'rent allocations'!AE36*$C$1","v":0},{"$f":"'rent allocations'!AF36*$C$1","v":0},{"$f":"'rent allocations'!AG36*$C$1","v":0},{"$f":"'rent allocations'!AH36*$C$1","v":0},{"$f":"'rent allocations'!AI36*$C$1","v":0},{"$f":"'rent allocations'!AJ36*$C$1","v":47036.300557149494},{"$f":"'rent allocations'!AK36*$C$1","v":0},{"$f":"'rent allocations'!AL36*$C$1","v":0}]
["116 - State Lottery","116","State Lottery",{"$f":"'rent allocations'!D37*$C$1","v":0},{"$f":"'rent allocations'!E37*$C$1","v":0},{"$f":"'rent allocations'!F37*$C$1","v":0},{"$f":"'rent allocations'!G37*$C$1","v":0},{"$f":"'rent allocations'!H37*$C$1","v":0},{"$f":"'rent allocations'!I37*$C$1","v":0},{"$f":"'rent allocations'!J37*$C$1","v":0},{"$f":"'rent allocations'!K37*$C$1","v":0},{"$f":"'rent allocations'!L37*$C$1","v":0},{"$f":"'rent allocations'!M37*$C$1","v":0},{"$f":"'rent allocations'!N37*$C$1","v":0},{"$f":"'rent allocations'!O37*$C$1","v":0},{"$f":"'rent allocations'!P37*$C$1","v":0},{"$f":"'rent allocations'!Q37*$C$1","v":0},{"$f":"'rent allocations'!R37*$C$1","v":0},{"$f":"'rent allocations'!S37*$C$1","v":0},{"$f":"'rent allocations'!T37*$C$1","v":0},{"$f":"'rent allocations'!U37*$C$1","v":0},{"$f":"'rent allocations'!V37*$C$1","v":0},{"$f":"'rent allocations'!W37*$C$1","v":0},{"$f":"'rent allocations'!X37*$C$1","v":0},{"$f":"'rent allocations'!Y37*$C$1","v":0},{"$f":"'rent allocations'!Z37*$C$1","v":0},{"$f":"'rent allocations'!AA37*$C$1","v":0},{"$f":"'rent allocations'!AB37*$C$1","v":0},{"$f":"'rent allocations'!AC37*$C$1","v":0},{"$f":"'rent allocations'!AD37*$C$1","v":0},{"$f":"'rent allocations'!AE37*$C$1","v":0},{"$f":"'rent allocations'!AF37*$C$1","v":0},{"$f":"'rent allocations'!AG37*$C$1","v":0},{"$f":"'rent allocations'!AH37*$C$1","v":0},{"$f":"'rent allocations'!AI37*$C$1","v":0},{"$f":"'rent allocations'!AJ37*$C$1","v":0},{"$f":"'rent allocations'!AK37*$C$1","v":0},{"$f":"'rent allocations'!AL37*$C$1","v":0}]
["117 - Washington State Gambling Commission","117","Washington State Gambling Commission",{"$f":"'rent allocations'!D38*$C$1","v":0},{"$f":"'rent allocations'!E38*$C$1","v":0},{"$f":"'rent allocations'!F38*$C$1","v":0},{"$f":"'rent allocations'!G38*$C$1","v":0},{"$f":"'rent allocations'!H38*$C$1","v":0},{"$f":"'rent allocations'!I38*$C$1","v":0},{"$f":"'rent allocations'!J38*$C$1","v":0},{"$f":"'rent allocations'!K38*$C$1","v":0},{"$f":"'rent allocations'!L38*$C$1","v":0},{"$f":"'rent allocations'!M38*$C$1","v":0},{"$f":"'rent allocations'!N38*$C$1","v":0},{"$f":"'rent allocations'!O38*$C$1","v":0},{"$f":"'rent allocations'!P38*$C$1","v":0},{"$f":"'rent allocations'!Q38*$C$1","v":0},{"$f":"'rent allocations'!R38*$C$1","v":0},{"$f":"'rent allocations'!S38*$C$1","v":0},{"$f":"'rent allocations'!T38*$C$1","v":0},{"$f":"'rent allocations'!U38*$C$1","v":0},{"$f":"'rent allocations'!V38*$C$1","v":0},{"$f":"'rent allocations'!W38*$C$1","v":0},{"$f":"'rent allocations'!X38*$C$1","v":0},{"$f":"'rent allocations'!Y38*$C$1","v":0},{"$f":"'rent allocations'!Z38*$C$1","v":0},{"$f":"'rent allocations'!AA38*$C$1","v":0},{"$f":"'rent allocations'!AB38*$C$1","v":0},{"$f":"'rent allocations'!AC38*$C$1","v":0},{"$f":"'rent allocations'!AD38*$C$1","v":0},{"$f":"'rent allocations'!AE38*$C$1","v":0},{"$f":"'rent allocations'!AF38*$C$1","v":0},{"$f":"'rent allocations'!AG38*$C$1","v":0},{"$f":"'rent allocations'!AH38*$C$1","v":0},{"$f":"'rent allocations'!AI38*$C$1","v":0},{"$f":"'rent allocations'!AJ38*$C$1","v":0},{"$f":"'rent allocations'!AK38*$C$1","v":0},{"$f":"'rent allocations'!AL38*$C$1","v":0}]
["118 - Commission on Hispanic Affairs","118","Commission on Hispanic Affairs",{"$f":"'rent allocations'!D39*$C$1","v":4271.4113558203617},{"$f":"'rent allocations'!E39*$C$1","v":0},{"$f":"'rent allocations'!F39*$C$1","v":0},{"$f":"'rent allocations'!G39*$C$1","v":0},{"$f":"'rent allocations'!H39*$C$1","v":0},{"$f":"'rent allocations'!I39*$C$1","v":0},{"$f":"'rent allocations'!J39*$C$1","v":0},{"$f":"'rent allocations'!K39*$C$1","v":0},{"$f":"'rent allocations'!L39*$C$1","v":0},{"$f":"'rent allocations'!M39*$C$1","v":0},{"$f":"'rent allocations'!N39*$C$1","v":0},{"$f":"'rent allocations'!O39*$C$1","v":0},{"$f":"'rent allocations'!P39*$C$1","v":0},{"$f":"'rent allocations'!Q39*$C$1","v":0},{"$f":"'rent allocations'!R39*$C$1","v":0},{"$f":"'rent allocations'!S39*$C$1","v":0},{"$f":"'rent allocations'!T39*$C$1","v":0},{"$f":"'rent allocations'!U39*$C$1","v":0},{"$f":"'rent allocations'!V39*$C$1","v":0},{"$f":"'rent allocations'!W39*$C$1","v":0},{"$f":"'rent allocations'!X39*$C$1","v":4271.4113558203617},{"$f":"'rent allocations'!Y39*$C$1","v":0},{"$f":"'rent allocations'!Z39*$C$1","v":0},{"$f":"'rent allocations'!AA39*$C$1","v":0},{"$f":"'rent allocations'!AB39*$C$1","v":0},{"$f":"'rent allocations'!AC39*$C$1","v":0},{"$f":"'rent allocations'!AD39*$C$1","v":0},{"$f":"'rent allocations'!AE39*$C$1","v":0},{"$f":"'rent allocations'!AF39*$C$1","v":0},{"$f":"'rent allocations'!AG39*$C$1","v":0},{"$f":"'rent allocations'!AH39*$C$1","v":0},{"$f":"'rent allocations'!AI39*$C$1","v":0},{"$f":"'rent allocations'!AJ39*$C$1","v":0},{"$f":"'rent allocations'!AK39*$C$1","v":0},{"$f":"'rent allocations'!AL39*$C$1","v":0}]
["119 - Commission on African-American Affairs","119","Commission on African-American Affairs",{"$f":"'rent allocations'!D40*$C$1","v":4271.4113558203617},{"$f":"'rent allocations'!E40*$C$1","v":0},{"$f":"'rent allocations'!F40*$C$1","v":0},{"$f":"'rent allocations'!G40*$C$1","v":0},{"$f":"'rent allocations'!H40*$C$1","v":0},{"$f":"'rent allocations'!I40*$C$1","v":0},{"$f":"'rent allocations'!J40*$C$1","v":0},{"$f":"'rent allocations'!K40*$C$1","v":0},{"$f":"'rent allocations'!L40*$C$1","v":0},{"$f":"'rent allocations'!M40*$C$1","v":0},{"$f":"'rent allocations'!N40*$C$1","v":0},{"$f":"'rent allocations'!O40*$C$1","v":0},{"$f":"'rent allocations'!P40*$C$1","v":0},{"$f":"'rent allocations'!Q40*$C$1","v":0},{"$f":"'rent allocations'!R40*$C$1","v":0},{"$f":"'rent allocations'!S40*$C$1","v":0},{"$f":"'rent allocations'!T40*$C$1","v":0},{"$f":"'rent allocations'!U40*$C$1","v":0},{"$f":"'rent allocations'!V40*$C$1","v":0},{"$f":"'rent allocations'!W40*$C$1","v":0},{"$f":"'rent allocations'!X40*$C$1","v":4271.4113558203617},{"$f":"'rent allocations'!Y40*$C$1","v":0},{"$f":"'rent allocations'!Z40*$C$1","v":0},{"$f":"'rent allocations'!AA40*$C$1","v":0},{"$f":"'rent allocations'!AB40*$C$1","v":0},{"$f":"'rent allocations'!AC40*$C$1","v":0},{"$f":"'rent allocations'!AD40*$C$1","v":0},{"$f":"'rent allocations'!AE40*$C$1","v":0},{"$f":"'rent allocations'!AF40*$C$1","v":0},{"$f":"'rent allocations'!AG40*$C$1","v":0},{"$f":"'rent allocations'!AH40*$C$1","v":0},{"$f":"'rent allocations'!AI40*$C$1","v":0},{"$f":"'rent allocations'!AJ40*$C$1","v":0},{"$f":"'rent allocations'!AK40*$C$1","v":0},{"$f":"'rent allocations'!AL40*$C$1","v":0}]
["120 - Human Rights Commission","120","Human Rights Commission",{"$f":"'rent allocations'!D41*$C$1","v":0},{"$f":"'rent allocations'!E41*$C$1","v":0},{"$f":"'rent allocations'!F41*$C$1","v":0},{"$f":"'rent allocations'!G41*$C$1","v":0},{"$f":"'rent allocations'!H41*$C$1","v":0},{"$f":"'rent allocations'!I41*$C$1","v":0},{"$f":"'rent allocations'!J41*$C$1","v":0},{"$f":"'rent allocations'!K41*$C$1","v":0},{"$f":"'rent allocations'!L41*$C$1","v":0},{"$f":"'rent allocations'!M41*$C$1","v":0},{"$f":"'rent allocations'!N41*$C$1","v":0},{"$f":"'rent allocations'!O41*$C$1","v":0},{"$f":"'rent allocations'!P41*$C$1","v":0},{"$f":"'rent allocations'!Q41*$C$1","v":0},{"$f":"'rent allocations'!R41*$C$1","v":0},{"$f":"'rent allocations'!S41*$C$1","v":0},{"$f":"'rent allocations'!T41*$C$1","v":0},{"$f":"'rent allocations'!U41*$C$1","v":0},{"$f":"'rent allocations'!V41*$C$1","v":0},{"$f":"'rent allocations'!W41*$C$1","v":0},{"$f":"'rent allocations'!X41*$C$1","v":0},{"$f":"'rent allocations'!Y41*$C$1","v":0},{"$f":"'rent allocations'!Z41*$C$1","v":0},{"$f":"'rent allocations'!AA41*$C$1","v":0},{"$f":"'rent allocations'!AB41*$C$1","v":0},{"$f":"'rent allocations'!AC41*$C$1","v":0},{"$f":"'rent allocations'!AD41*$C$1","v":0},{"$f":"'rent allocations'!AE41*$C$1","v":0},{"$f":"'rent allocations'!AF41*$C$1","v":0},{"$f":"'rent allocations'!AG41*$C$1","v":0},{"$f":"'rent allocations'!AH41*$C$1","v":0},{"$f":"'rent allocations'!AI41*$C$1","v":0},{"$f":"'rent allocations'!AJ41*$C$1","v":0},{"$f":"'rent allocations'!AK41*$C$1","v":0},{"$f":"'rent allocations'!AL41*$C$1","v":0}]
["124 - Department of Retirement Systems","124","Department of Retirement Systems",{"$f":"'rent allocations'!D42*$C$1","v":0},{"$f":"'rent allocations'!E42*$C$1","v":0},{"$f":"'rent allocations'!F42*$C$1","v":0},{"$f":"'rent allocations'!G42*$C$1","v":0},{"$f":"'rent allocations'!H42*$C$1","v":0},{"$f":"'rent allocations'!I42*$C$1","v":0},{"$f":"'rent allocations'!J42*$C$1","v":0},{"$f":"'rent allocations'!K42*$C$1","v":0},{"$f":"'rent allocations'!L42*$C$1","v":0},{"$f":"'rent allocations'!M42*$C$1","v":0},{"$f":"'rent allocations'!N42*$C$1","v":0},{"$f":"'rent allocations'!O42*$C$1","v":0},{"$f":"'rent allocations'!P42*$C$1","v":0},{"$f":"'rent allocations'!Q42*$C$1","v":0},{"$f":"'rent allocations'!R42*$C$1","v":0},{"$f":"'rent allocations'!S42*$C$1","v":0},{"$f":"'rent allocations'!T42*$C$1","v":0},{"$f":"'rent allocations'!U42*$C$1","v":0},{"$f":"'rent allocations'!V42*$C$1","v":0},{"$f":"'rent allocations'!W42*$C$1","v":0},{"$f":"'rent allocations'!X42*$C$1","v":0},{"$f":"'rent allocations'!Y42*$C$1","v":0},{"$f":"'rent allocations'!Z42*$C$1","v":0},{"$f":"'rent allocations'!AA42*$C$1","v":0},{"$f":"'rent allocations'!AB42*$C$1","v":0},{"$f":"'rent allocations'!AC42*$C$1","v":0},{"$f":"'rent allocations'!AD42*$C$1","v":0},{"$f":"'rent allocations'!AE42*$C$1","v":0},{"$f":"'rent allocations'!AF42*$C$1","v":0},{"$f":"'rent allocations'!AG42*$C$1","v":0},{"$f":"'rent allocations'!AH42*$C$1","v":0},{"$f":"'rent allocations'!AI42*$C$1","v":0},{"$f":"'rent allocations'!AJ42*$C$1","v":0},{"$f":"'rent allocations'!AK42*$C$1","v":0},{"$f":"'rent allocations'!AL42*$C$1","v":0}]
["126 - State Investment Board","126","State Investment Board",{"$f":"'rent allocations'!D43*$C$1","v":0},{"$f":"'rent allocations'!E43*$C$1","v":0},{"$f":"'rent allocations'!F43*$C$1","v":0},{"$f":"'rent allocations'!G43*$C$1","v":0},{"$f":"'rent allocations'!H43*$C$1","v":0},{"$f":"'rent allocations'!I43*$C$1","v":0},{"$f":"'rent allocations'!J43*$C$1","v":0},{"$f":"'rent allocations'!K43*$C$1","v":0},{"$f":"'rent allocations'!L43*$C$1","v":0},{"$f":"'rent allocations'!M43*$C$1","v":0},{"$f":"'rent allocations'!N43*$C$1","v":0},{"$f":"'rent allocations'!O43*$C$1","v":0},{"$f":"'rent allocations'!P43*$C$1","v":0},{"$f":"'rent allocations'!Q43*$C$1","v":0},{"$f":"'rent allocations'!R43*$C$1","v":0},{"$f":"'rent allocations'!S43*$C$1","v":0},{"$f":"'rent allocations'!T43*$C$1","v":0},{"$f":"'rent allocations'!U43*$C$1","v":0},{"$f":"'rent allocations'!V43*$C$1","v":0},{"$f":"'rent allocations'!W43*$C$1","v":0},{"$f":"'rent allocations'!X43*$C$1","v":0},{"$f":"'rent allocations'!Y43*$C$1","v":0},{"$f":"'rent allocations'!Z43*$C$1","v":0},{"$f":"'rent allocations'!AA43*$C$1","v":0},{"$f":"'rent allocations'!AB43*$C$1","v":0},{"$f":"'rent allocations'!AC43*$C$1","v":0},{"$f":"'rent allocations'!AD43*$C$1","v":0},{"$f":"'rent allocations'!AE43*$C$1","v":0},{"$f":"'rent allocations'!AF43*$C$1","v":0},{"$f":"'rent allocations'!AG43*$C$1","v":0},{"$f":"'rent allocations'!AH43*$C$1","v":0},{"$f":"'rent allocations'!AI43*$C$1","v":0},{"$f":"'rent allocations'!AJ43*$C$1","v":0},{"$f":"'rent allocations'!AK43*$C$1","v":0},{"$f":"'rent allocations'!AL43*$C$1","v":0}]
["140 - Department of Revenue","140","Department of Revenue",{"$f":"'rent allocations'!D44*$C$1","v":0},{"$f":"'rent allocations'!E44*$C$1","v":0},{"$f":"'rent allocations'!F44*$C$1","v":0},{"$f":"'rent allocations'!G44*$C$1","v":0},{"$f":"'rent allocations'!H44*$C$1","v":0},{"$f":"'rent allocations'!I44*$C$1","v":0},{"$f":"'rent allocations'!J44*$C$1","v":0},{"$f":"'rent allocations'!K44*$C$1","v":0},{"$f":"'rent allocations'!L44*$C$1","v":0},{"$f":"'rent allocations'!M44*$C$1","v":0},{"$f":"'rent allocations'!N44*$C$1","v":0},{"$f":"'rent allocations'!O44*$C$1","v":0},{"$f":"'rent allocations'!P44*$C$1","v":0},{"$f":"'rent allocations'!Q44*$C$1","v":0},{"$f":"'rent allocations'!R44*$C$1","v":0},{"$f":"'rent allocations'!S44*$C$1","v":0},{"$f":"'rent allocations'!T44*$C$1","v":0},{"$f":"'rent allocations'!U44*$C$1","v":0},{"$f":"'rent allocations'!V44*$C$1","v":0},{"$f":"'rent allocations'!W44*$C$1","v":0},{"$f":"'rent allocations'!X44*$C$1","v":0},{"$f":"'rent allocations'!Y44*$C$1","v":0},{"$f":"'rent allocations'!Z44*$C$1","v":0},{"$f":"'rent allocations'!AA44*$C$1","v":0},{"$f":"'rent allocations'!AB44*$C$1","v":0},{"$f":"'rent allocations'!AC44*$C$1","v":0},{"$f":"'rent allocations'!AD44*$C$1","v":0},{"$f":"'rent allocations'!AE44*$C$1","v":0},{"$f":"'rent allocations'!AF44*$C$1","v":0},{"$f":"'rent allocations'!AG44*$C$1","v":0},{"$f":"'rent allocations'!AH44*$C$1","v":0},{"$f":"'rent allocations'!AI44*$C$1","v":0},{"$f":"'rent allocations'!AJ44*$C$1","v":0},{"$f":"'rent allocations'!AK44*$C$1","v":0},{"$f":"'rent allocations'!AL44*$C$1","v":0}]
["142 - Board of Tax Appeals","142","Board of Tax Appeals",{"$f":"'rent allocations'!D45*$C$1","v":23114.12634030254},{"$f":"'rent allocations'!E45*$C$1","v":0},{"$f":"'rent allocations'!F45*$C$1","v":0},{"$f":"'rent allocations'!G45*$C$1","v":0},{"$f":"'rent allocations'!H45*$C$1","v":0},{"$f":"'rent allocations'!I45*$C$1","v":0},{"$f":"'rent allocations'!J45*$C$1","v":0},{"$f":"'rent allocations'!K45*$C$1","v":0},{"$f":"'rent allocations'!L45*$C$1","v":0},{"$f":"'rent allocations'!M45*$C$1","v":0},{"$f":"'rent allocations'!N45*$C$1","v":0},{"$f":"'rent allocations'!O45*$C$1","v":0},{"$f":"'rent allocations'!P45*$C$1","v":0},{"$f":"'rent allocations'!Q45*$C$1","v":0},{"$f":"'rent allocations'!R45*$C$1","v":0},{"$f":"'rent allocations'!S45*$C$1","v":0},{"$f":"'rent allocations'!T45*$C$1","v":0},{"$f":"'rent allocations'!U45*$C$1","v":0},{"$f":"'rent allocations'!V45*$C$1","v":0},{"$f":"'rent allocations'!W45*$C$1","v":0},{"$f":"'rent allocations'!X45*$C$1","v":23114.12634030254},{"$f":"'rent allocations'!Y45*$C$1","v":0},{"$f":"'rent allocations'!Z45*$C$1","v":0},{"$f":"'rent allocations'!AA45*$C$1","v":0},{"$f":"'rent allocations'!AB45*$C$1","v":0},{"$f":"'rent allocations'!AC45*$C$1","v":0},{"$f":"'rent allocations'!AD45*$C$1","v":0},{"$f":"'rent allocations'!AE45*$C$1","v":0},{"$f":"'rent allocations'!AF45*$C$1","v":0},{"$f":"'rent allocations'!AG45*$C$1","v":0},{"$f":"'rent allocations'!AH45*$C$1","v":0},{"$f":"'rent allocations'!AI45*$C$1","v":0},{"$f":"'rent allocations'!AJ45*$C$1","v":0},{"$f":"'rent allocations'!AK45*$C$1","v":0},{"$f":"'rent allocations'!AL45*$C$1","v":0}]
["147 - Office of Minority and Women's Business Enterprises","147","Office of Minority and Women's Business Enterprises",{"$f":"'rent allocations'!D46*$C$1","v":23851.60060683468},{"$f":"'rent allocations'!E46*$C$1","v":0},{"$f":"'rent allocations'!F46*$C$1","v":0},{"$f":"'rent allocations'!G46*$C$1","v":0},{"$f":"'rent allocations'!H46*$C$1","v":0},{"$f":"'rent allocations'!I46*$C$1","v":0},{"$f":"'rent allocations'!J46*$C$1","v":0},{"$f":"'rent allocations'!K46*$C$1","v":0},{"$f":"'rent allocations'!L46*$C$1","v":0},{"$f":"'rent allocations'!M46*$C$1","v":0},{"$f":"'rent allocations'!N46*$C$1","v":0},{"$f":"'rent allocations'!O46*$C$1","v":0},{"$f":"'rent allocations'!P46*$C$1","v":0},{"$f":"'rent allocations'!Q46*$C$1","v":0},{"$f":"'rent allocations'!R46*$C$1","v":0},{"$f":"'rent allocations'!S46*$C$1","v":0},{"$f":"'rent allocations'!T46*$C$1","v":0},{"$f":"'rent allocations'!U46*$C$1","v":0},{"$f":"'rent allocations'!V46*$C$1","v":0},{"$f":"'rent allocations'!W46*$C$1","v":0},{"$f":"'rent allocations'!X46*$C$1","v":23851.60060683468},{"$f":"'rent allocations'!Y46*$C$1","v":0},{"$f":"'rent allocations'!Z46*$C$1","v":0},{"$f":"'rent allocations'!AA46*$C$1","v":0},{"$f":"'rent allocations'!AB46*$C$1","v":0},{"$f":"'rent allocations'!AC46*$C$1","v":0},{"$f":"'rent allocations'!AD46*$C$1","v":0},{"$f":"'rent allocations'!AE46*$C$1","v":0},{"$f":"'rent allocations'!AF46*$C$1","v":0},{"$f":"'rent allocations'!AG46*$C$1","v":0},{"$f":"'rent allocations'!AH46*$C$1","v":0},{"$f":"'rent allocations'!AI46*$C$1","v":0},{"$f":"'rent allocations'!AJ46*$C$1","v":0},{"$f":"'rent allocations'!AK46*$C$1","v":0},{"$f":"'rent allocations'!AL46*$C$1","v":0}]
["160 - Office of Insurance Commissioner","160","Office of Insurance Commissioner",{"$f":"'rent allocations'!D47*$C$1","v":21749.54120934656},{"$f":"'rent allocations'!E47*$C$1","v":0},{"$f":"'rent allocations'!F47*$C$1","v":0},{"$f":"'rent allocations'!G47*$C$1","v":0},{"$f":"'rent allocations'!H47*$C$1","v":0},{"$f":"'rent allocations'!I47*$C$1","v":0},{"$f":"'rent allocations'!J47*$C$1","v":0},{"$f":"'rent allocations'!K47*$C$1","v":0},{"$f":"'rent allocations'!L47*$C$1","v":0},{"$f":"'rent allocations'!M47*$C$1","v":0},{"$f":"'rent allocations'!N47*$C$1","v":0},{"$f":"'rent allocations'!O47*$C$1","v":21749.54120934656},{"$f":"'rent allocations'!P47*$C$1","v":0},{"$f":"'rent allocations'!Q47*$C$1","v":0},{"$f":"'rent allocations'!R47*$C$1","v":0},{"$f":"'rent allocations'!S47*$C$1","v":0},{"$f":"'rent allocations'!T47*$C$1","v":0},{"$f":"'rent allocations'!U47*$C$1","v":0},{"$f":"'rent allocations'!V47*$C$1","v":0},{"$f":"'rent allocations'!W47*$C$1","v":0},{"$f":"'rent allocations'!X47*$C$1","v":0},{"$f":"'rent allocations'!Y47*$C$1","v":0},{"$f":"'rent allocations'!Z47*$C$1","v":0},{"$f":"'rent allocations'!AA47*$C$1","v":0},{"$f":"'rent allocations'!AB47*$C$1","v":0},{"$f":"'rent allocations'!AC47*$C$1","v":0},{"$f":"'rent allocations'!AD47*$C$1","v":0},{"$f":"'rent allocations'!AE47*$C$1","v":0},{"$f":"'rent allocations'!AF47*$C$1","v":0},{"$f":"'rent allocations'!AG47*$C$1","v":0},{"$f":"'rent allocations'!AH47*$C$1","v":0},{"$f":"'rent allocations'!AI47*$C$1","v":0},{"$f":"'rent allocations'!AJ47*$C$1","v":0},{"$f":"'rent allocations'!AK47*$C$1","v":0},{"$f":"'rent allocations'!AL47*$C$1","v":0}]
["163 - Consolidated Technology Services","163","Consolidated Technology Services",{"$f":"'rent allocations'!D48*$C$1","v":694.5329898908044},{"$f":"'rent allocations'!E48*$C$1","v":0},{"$f":"'rent allocations'!F48*$C$1","v":0},{"$f":"'rent allocations'!G48*$C$1","v":0},{"$f":"'rent allocations'!H48*$C$1","v":0},{"$f":"'rent allocations'!I48*$C$1","v":0},{"$f":"'rent allocations'!J48*$C$1","v":694.5329898908044},{"$f":"'rent allocations'!K48*$C$1","v":0},{"$f":"'rent allocations'!L48*$C$1","v":0},{"$f":"'rent allocations'!M48*$C$1","v":0},{"$f":"'rent allocations'!N48*$C$1","v":0},{"$f":"'rent allocations'!O48*$C$1","v":0},{"$f":"'rent allocations'!P48*$C$1","v":0},{"$f":"'rent allocations'!Q48*$C$1","v":0},{"$f":"'rent allocations'!R48*$C$1","v":0},{"$f":"'rent allocations'!S48*$C$1","v":0},{"$f":"'rent allocations'!T48*$C$1","v":0},{"$f":"'rent allocations'!U48*$C$1","v":0},{"$f":"'rent allocations'!V48*$C$1","v":0},{"$f":"'rent allocations'!W48*$C$1","v":0},{"$f":"'rent allocations'!X48*$C$1","v":0},{"$f":"'rent allocations'!Y48*$C$1","v":0},{"$f":"'rent allocations'!Z48*$C$1","v":0},{"$f":"'rent allocations'!AA48*$C$1","v":0},{"$f":"'rent allocations'!AB48*$C$1","v":0},{"$f":"'rent allocations'!AC48*$C$1","v":0},{"$f":"'rent allocations'!AD48*$C$1","v":0},{"$f":"'rent allocations'!AE48*$C$1","v":0},{"$f":"'rent allocations'!AF48*$C$1","v":0},{"$f":"'rent allocations'!AG48*$C$1","v":0},{"$f":"'rent allocations'!AH48*$C$1","v":0},{"$f":"'rent allocations'!AI48*$C$1","v":0},{"$f":"'rent allocations'!AJ48*$C$1","v":0},{"$f":"'rent allocations'!AK48*$C$1","v":0},{"$f":"'rent allocations'!AL48*$C$1","v":0}]
["165 - Board of Accountancy","165","Board of Accountancy",{"$f":"'rent allocations'!D49*$C$1","v":0},{"$f":"'rent allocations'!E49*$C$1","v":0},{"$f":"'rent allocations'!F49*$C$1","v":0},{"$f":"'rent allocations'!G49*$C$1","v":0},{"$f":"'rent allocations'!H49*$C$1","v":0},{"$f":"'rent allocations'!I49*$C$1","v":0},{"$f":"'rent allocations'!J49*$C$1","v":0},{"$f":"'rent allocations'!K49*$C$1","v":0},{"$f":"'rent allocations'!L49*$C$1","v":0},{"$f":"'rent allocations'!M49*$C$1","v":0},{"$f":"'rent allocations'!N49*$C$1","v":0},{"$f":"'rent allocations'!O49*$C$1","v":0},{"$f":"'rent allocations'!P49*$C$1","v":0},{"$f":"'rent allocations'!Q49*$C$1","v":0},{"$f":"'rent allocations'!R49*$C$1","v":0},{"$f":"'rent allocations'!S49*$C$1","v":0},{"$f":"'rent allocations'!T49*$C$1","v":0},{"$f":"'rent allocations'!U49*$C$1","v":0},{"$f":"'rent allocations'!V49*$C$1","v":0},{"$f":"'rent allocations'!W49*$C$1","v":0},{"$f":"'rent allocations'!X49*$C$1","v":0},{"$f":"'rent allocations'!Y49*$C$1","v":0},{"$f":"'rent allocations'!Z49*$C$1","v":0},{"$f":"'rent allocations'!AA49*$C$1","v":0},{"$f":"'rent allocations'!AB49*$C$1","v":0},{"$f":"'rent allocations'!AC49*$C$1","v":0},{"$f":"'rent allocations'!AD49*$C$1","v":0},{"$f":"'rent allocations'!AE49*$C$1","v":0},{"$f":"'rent allocations'!AF49*$C$1","v":0},{"$f":"'rent allocations'!AG49*$C$1","v":0},{"$f":"'rent allocations'!AH49*$C$1","v":0},{"$f":"'rent allocations'!AI49*$C$1","v":0},{"$f":"'rent allocations'!AJ49*$C$1","v":0},{"$f":"'rent allocations'!AK49*$C$1","v":0},{"$f":"'rent allocations'!AL49*$C$1","v":0}]
["166 - Brd Prof Eng Land Surveyors","166","Brd Prof Eng Land Surveyors",{"$f":"'rent allocations'!D50*$C$1","v":0},{"$f":"'rent allocations'!E50*$C$1","v":0},{"$f":"'rent allocations'!F50*$C$1","v":0},{"$f":"'rent allocations'!G50*$C$1","v":0},{"$f":"'rent allocations'!H50*$C$1","v":0},{"$f":"'rent allocations'!I50*$C$1","v":0},{"$f":"'rent allocations'!J50*$C$1","v":0},{"$f":"'rent allocations'!K50*$C$1","v":0},{"$f":"'rent allocations'!L50*$C$1","v":0},{"$f":"'rent allocations'!M50*$C$1","v":0},{"$f":"'rent allocations'!N50*$C$1","v":0},{"$f":"'rent allocations'!O50*$C$1","v":0},{"$f":"'rent allocations'!P50*$C$1","v":0},{"$f":"'rent allocations'!Q50*$C$1","v":0},{"$f":"'rent allocations'!R50*$C$1","v":0},{"$f":"'rent allocations'!S50*$C$1","v":0},{"$f":"'rent allocations'!T50*$C$1","v":0},{"$f":"'rent allocations'!U50*$C$1","v":0},{"$f":"'rent allocations'!V50*$C$1","v":0},{"$f":"'rent allocations'!W50*$C$1","v":0},{"$f":"'rent allocations'!X50*$C$1","v":0},{"$f":"'rent allocations'!Y50*$C$1","v":0},{"$f":"'rent allocations'!Z50*$C$1","v":0},{"$f":"'rent allocations'!AA50*$C$1","v":0},{"$f":"'rent allocations'!AB50*$C$1","v":0},{"$f":"'rent allocations'!AC50*$C$1","v":0},{"$f":"'rent allocations'!AD50*$C$1","v":0},{"$f":"'rent allocations'!AE50*$C$1","v":0},{"$f":"'rent allocations'!AF50*$C$1","v":0},{"$f":"'rent allocations'!AG50*$C$1","v":0},{"$f":"'rent allocations'!AH50*$C$1","v":0},{"$f":"'rent allocations'!AI50*$C$1","v":0},{"$f":"'rent allocations'!AJ50*$C$1","v":0},{"$f":"'rent allocations'!AK50*$C$1","v":0},{"$f":"'rent allocations'!AL50*$C$1","v":0}]
["167 - Forensic Investigations Council","167","Forensic Investigations Council",{"$f":"'rent allocations'!D51*$C$1","v":0},{"$f":"'rent allocations'!E51*$C$1","v":0},{"$f":"'rent allocations'!F51*$C$1","v":0},{"$f":"'rent allocations'!G51*$C$1","v":0},{"$f":"'rent allocations'!H51*$C$1","v":0},{"$f":"'rent allocations'!I51*$C$1","v":0},{"$f":"'rent allocations'!J51*$C$1","v":0},{"$f":"'rent allocations'!K51*$C$1","v":0},{"$f":"'rent allocations'!L51*$C$1","v":0},{"$f":"'rent allocations'!M51*$C$1","v":0},{"$f":"'rent allocations'!N51*$C$1","v":0},{"$f":"'rent allocations'!O51*$C$1","v":0},{"$f":"'rent allocations'!P51*$C$1","v":0},{"$f":"'rent allocations'!Q51*$C$1","v":0},{"$f":"'rent allocations'!R51*$C$1","v":0},{"$f":"'rent allocations'!S51*$C$1","v":0},{"$f":"'rent allocations'!T51*$C$1","v":0},{"$f":"'rent allocations'!U51*$C$1","v":0},{"$f":"'rent allocations'!V51*$C$1","v":0},{"$f":"'rent allocations'!W51*$C$1","v":0},{"$f":"'rent allocations'!X51*$C$1","v":0},{"$f":"'rent allocations'!Y51*$C$1","v":0},{"$f":"'rent allocations'!Z51*$C$1","v":0},{"$f":"'rent allocations'!AA51*$C$1","v":0},{"$f":"'rent allocations'!AB51*$C$1","v":0},{"$f":"'rent allocations'!AC51*$C$1","v":0},{"$f":"'rent allocations'!AD51*$C$1","v":0},{"$f":"'rent allocations'!AE51*$C$1","v":0},{"$f":"'rent allocations'!AF51*$C$1","v":0},{"$f":"'rent allocations'!AG51*$C$1","v":0},{"$f":"'rent allocations'!AH51*$C$1","v":0},{"$f":"'rent allocations'!AI51*$C$1","v":0},{"$f":"'rent allocations'!AJ51*$C$1","v":0},{"$f":"'rent allocations'!AK51*$C$1","v":0},{"$f":"'rent allocations'!AL51*$C$1","v":0}]
["179 - Department of Enterprise Services","179","Department of Enterprise Services",{"$f":"'rent allocations'!D52*$C$1","v":212451.2163456273},{"$f":"'rent allocations'!E52*$C$1","v":0},{"$f":"'rent allocations'!F52*$C$1","v":0},{"$f":"'rent allocations'!G52*$C$1","v":28709.895622869357},{"$f":"'rent allocations'!H52*$C$1","v":0},{"$f":"'rent allocations'!I52*$C$1","v":0},{"$f":"'rent allocations'!J52*$C$1","v":48251.014496318006},{"$f":"'rent allocations'!K52*$C$1","v":0},{"$f":"'rent allocations'!L52*$C$1","v":0},{"$f":"'rent allocations'!M52*$C$1","v":0},{"$f":"'rent allocations'!N52*$C$1","v":0},{"$f":"'rent allocations'!O52*$C$1","v":0},{"$f":"'rent allocations'!P52*$C$1","v":0},{"$f":"'rent allocations'!Q52*$C$1","v":0},{"$f":"'rent allocations'!R52*$C$1","v":0},{"$f":"'rent allocations'!S52*$C$1","v":108321.88125741757},{"$f":"'rent allocations'!T52*$C$1","v":0},{"$f":"'rent allocations'!U52*$C$1","v":0},{"$f":"'rent allocations'!V52*$C$1","v":0},{"$f":"'rent allocations'!W52*$C$1","v":0},{"$f":"'rent allocations'!X52*$C$1","v":26618.366479260614},{"$f":"'rent allocations'!Y52*$C$1","v":0},{"$f":"'rent allocations'!Z52*$C$1","v":0},{"$f":"'rent allocations'!AA52*$C$1","v":0},{"$f":"'rent allocations'!AB52*$C$1","v":0},{"$f":"'rent allocations'!AC52*$C$1","v":0},{"$f":"'rent allocations'!AD52*$C$1","v":0},{"$f":"'rent allocations'!AE52*$C$1","v":0},{"$f":"'rent allocations'!AF52*$C$1","v":550.05848976177992},{"$f":"'rent allocations'!AG52*$C$1","v":0},{"$f":"'rent allocations'!AH52*$C$1","v":0},{"$f":"'rent allocations'!AI52*$C$1","v":0},{"$f":"'rent allocations'!AJ52*$C$1","v":0},{"$f":"'rent allocations'!AK52*$C$1","v":0},{"$f":"'rent allocations'!AL52*$C$1","v":0}]
["185 - Horse Racing Commission","185","Horse Racing Commission",{"$f":"'rent allocations'!D53*$C$1","v":0},{"$f":"'rent allocations'!E53*$C$1","v":0},{"$f":"'rent allocations'!F53*$C$1","v":0},{"$f":"'rent allocations'!G53*$C$1","v":0},{"$f":"'rent allocations'!H53*$C$1","v":0},{"$f":"'rent allocations'!I53*$C$1","v":0},{"$f":"'rent allocations'!J53*$C$1","v":0},{"$f":"'rent allocations'!K53*$C$1","v":0},{"$f":"'rent allocations'!L53*$C$1","v":0},{"$f":"'rent allocations'!M53*$C$1","v":0},{"$f":"'rent allocations'!N53*$C$1","v":0},{"$f":"'rent allocations'!O53*$C$1","v":0},{"$f":"'rent allocations'!P53*$C$1","v":0},{"$f":"'rent allocations'!Q53*$C$1","v":0},{"$f":"'rent allocations'!R53*$C$1","v":0},{"$f":"'rent allocations'!S53*$C$1","v":0},{"$f":"'rent allocations'!T53*$C$1","v":0},{"$f":"'rent allocations'!U53*$C$1","v":0},{"$f":"'rent allocations'!V53*$C$1","v":0},{"$f":"'rent allocations'!W53*$C$1","v":0},{"$f":"'rent allocations'!X53*$C$1","v":0},{"$f":"'rent allocations'!Y53*$C$1","v":0},{"$f":"'rent allocations'!Z53*$C$1","v":0},{"$f":"'rent allocations'!AA53*$C$1","v":0},{"$f":"'rent allocations'!AB53*$C$1","v":0},{"$f":"'rent allocations'!AC53*$C$1","v":0},{"$f":"'rent allocations'!AD53*$C$1","v":0},{"$f":"'rent allocations'!AE53*$C$1","v":0},{"$f":"'rent allocations'!AF53*$C$1","v":0},{"$f":"'rent allocations'!AG53*$C$1","v":0},{"$f":"'rent allocations'!AH53*$C$1","v":0},{"$f":"'rent allocations'!AI53*$C$1","v":0},{"$f":"'rent allocations'!AJ53*$C$1","v":0},{"$f":"'rent allocations'!AK53*$C$1","v":0},{"$f":"'rent allocations'!AL53*$C$1","v":0}]
["190 - Board of Industrial Insurance Appeals","190","Board of Industrial Insurance Appeals",{"$f":"'rent allocations'!D54*$C$1","v":0},{"$f":"'rent allocations'!E54*$C$1","v":0},{"$f":"'rent allocations'!F54*$C$1","v":0},{"$f":"'rent allocations'!G54*$C$1","v":0},{"$f":"'rent allocations'!H54*$C$1","v":0},{"$f":"'rent allocations'!I54*$C$1","v":0},{"$f":"'rent allocations'!J54*$C$1","v":0},{"$f":"'rent allocations'!K54*$C$1","v":0},{"$f":"'rent allocations'!L54*$C$1","v":0},{"$f":"'rent allocations'!M54*$C$1","v":0},{"$f":"'rent allocations'!N54*$C$1","v":0},{"$f":"'rent allocations'!O54*$C$1","v":0},{"$f":"'rent allocations'!P54*$C$1","v":0},{"$f":"'rent allocations'!Q54*$C$1","v":0},{"$f":"'rent allocations'!R54*$C$1","v":0},{"$f":"'rent allocations'!S54*$C$1","v":0},{"$f":"'rent allocations'!T54*$C$1","v":0},{"$f":"'rent allocations'!U54*$C$1","v":0},{"$f":"'rent allocations'!V54*$C$1","v":0},{"$f":"'rent allocations'!W54*$C$1","v":0},{"$f":"'rent allocations'!X54*$C$1","v":0},{"$f":"'rent allocations'!Y54*$C$1","v":0},{"$f":"'rent allocations'!Z54*$C$1","v":0},{"$f":"'rent allocations'!AA54*$C$1","v":0},{"$f":"'rent allocations'!AB54*$C$1","v":0},{"$f":"'rent allocations'!AC54*$C$1","v":0},{"$f":"'rent allocations'!AD54*$C$1","v":0},{"$f":"'rent allocations'!AE54*$C$1","v":0},{"$f":"'rent allocations'!AF54*$C$1","v":0},{"$f":"'rent allocations'!AG54*$C$1","v":0},{"$f":"'rent allocations'!AH54*$C$1","v":0},{"$f":"'rent allocations'!AI54*$C$1","v":0},{"$f":"'rent allocations'!AJ54*$C$1","v":0},{"$f":"'rent allocations'!AK54*$C$1","v":0},{"$f":"'rent allocations'!AL54*$C$1","v":0}]
["195 - Liquor Control Board","195","Liquor Control Board",{"$f":"'rent allocations'!D55*$C$1","v":0},{"$f":"'rent allocations'!E55*$C$1","v":0},{"$f":"'rent allocations'!F55*$C$1","v":0},{"$f":"'rent allocations'!G55*$C$1","v":0},{"$f":"'rent allocations'!H55*$C$1","v":0},{"$f":"'rent allocations'!I55*$C$1","v":0},{"$f":"'rent allocations'!J55*$C$1","v":0},{"$f":"'rent allocations'!K55*$C$1","v":0},{"$f":"'rent allocations'!L55*$C$1","v":0},{"$f":"'rent allocations'!M55*$C$1","v":0},{"$f":"'rent allocations'!N55*$C$1","v":0},{"$f":"'rent allocations'!O55*$C$1","v":0},{"$f":"'rent allocations'!P55*$C$1","v":0},{"$f":"'rent allocations'!Q55*$C$1","v":0},{"$f":"'rent allocations'!R55*$C$1","v":0},{"$f":"'rent allocations'!S55*$C$1","v":0},{"$f":"'rent allocations'!T55*$C$1","v":0},{"$f":"'rent allocations'!U55*$C$1","v":0},{"$f":"'rent allocations'!V55*$C$1","v":0},{"$f":"'rent allocations'!W55*$C$1","v":0},{"$f":"'rent allocations'!X55*$C$1","v":0},{"$f":"'rent allocations'!Y55*$C$1","v":0},{"$f":"'rent allocations'!Z55*$C$1","v":0},{"$f":"'rent allocations'!AA55*$C$1","v":0},{"$f":"'rent allocations'!AB55*$C$1","v":0},{"$f":"'rent allocations'!AC55*$C$1","v":0},{"$f":"'rent allocations'!AD55*$C$1","v":0},{"$f":"'rent allocations'!AE55*$C$1","v":0},{"$f":"'rent allocations'!AF55*$C$1","v":0},{"$f":"'rent allocations'!AG55*$C$1","v":0},{"$f":"'rent allocations'!AH55*$C$1","v":0},{"$f":"'rent allocations'!AI55*$C$1","v":0},{"$f":"'rent allocations'!AJ55*$C$1","v":0},{"$f":"'rent allocations'!AK55*$C$1","v":0},{"$f":"'rent allocations'!AL55*$C$1","v":0}]
["205 - Board of Pilotage Commissioners","205","Board of Pilotage Commissioners",{"$f":"'rent allocations'!D56*$C$1","v":0},{"$f":"'rent allocations'!E56*$C$1","v":0},{"$f":"'rent allocations'!F56*$C$1","v":0},{"$f":"'rent allocations'!G56*$C$1","v":0},{"$f":"'rent allocations'!H56*$C$1","v":0},{"$f":"'rent allocations'!I56*$C$1","v":0},{"$f":"'rent allocations'!J56*$C$1","v":0},{"$f":"'rent allocations'!K56*$C$1","v":0},{"$f":"'rent allocations'!L56*$C$1","v":0},{"$f":"'rent allocations'!M56*$C$1","v":0},{"$f":"'rent allocations'!N56*$C$1","v":0},{"$f":"'rent allocations'!O56*$C$1","v":0},{"$f":"'rent allocations'!P56*$C$1","v":0},{"$f":"'rent allocations'!Q56*$C$1","v":0},{"$f":"'rent allocations'!R56*$C$1","v":0},{"$f":"'rent allocations'!S56*$C$1","v":0},{"$f":"'rent allocations'!T56*$C$1","v":0},{"$f":"'rent allocations'!U56*$C$1","v":0},{"$f":"'rent allocations'!V56*$C$1","v":0},{"$f":"'rent allocations'!W56*$C$1","v":0},{"$f":"'rent allocations'!X56*$C$1","v":0},{"$f":"'rent allocations'!Y56*$C$1","v":0},{"$f":"'rent allocations'!Z56*$C$1","v":0},{"$f":"'rent allocations'!AA56*$C$1","v":0},{"$f":"'rent allocations'!AB56*$C$1","v":0},{"$f":"'rent allocations'!AC56*$C$1","v":0},{"$f":"'rent allocations'!AD56*$C$1","v":0},{"$f":"'rent allocations'!AE56*$C$1","v":0},{"$f":"'rent allocations'!AF56*$C$1","v":0},{"$f":"'rent allocations'!AG56*$C$1","v":0},{"$f":"'rent allocations'!AH56*$C$1","v":0},{"$f":"'rent allocations'!AI56*$C$1","v":0},{"$f":"'rent allocations'!AJ56*$C$1","v":0},{"$f":"'rent allocations'!AK56*$C$1","v":0},{"$f":"'rent allocations'!AL56*$C$1","v":0}]
["215 - Utilities and Transportation Commission","215","Utilities and Transportation Commission",{"$f":"'rent allocations'!D57*$C$1","v":0},{"$f":"'rent allocations'!E57*$C$1","v":0},{"$f":"'rent allocations'!F57*$C$1","v":0},{"$f":"'rent allocations'!G57*$C$1","v":0},{"$f":"'rent allocations'!H57*$C$1","v":0},{"$f":"'rent allocations'!I57*$C$1","v":0},{"$f":"'rent allocations'!J57*$C$1","v":0},{"$f":"'rent allocations'!K57*$C$1","v":0},{"$f":"'rent allocations'!L57*$C$1","v":0},{"$f":"'rent allocations'!M57*$C$1","v":0},{"$f":"'rent allocations'!N57*$C$1","v":0},{"$f":"'rent allocations'!O57*$C$1","v":0},{"$f":"'rent allocations'!P57*$C$1","v":0},{"$f":"'rent allocations'!Q57*$C$1","v":0},{"$f":"'rent allocations'!R57*$C$1","v":0},{"$f":"'rent allocations'!S57*$C$1","v":0},{"$f":"'rent allocations'!T57*$C$1","v":0},{"$f":"'rent allocations'!U57*$C$1","v":0},{"$f":"'rent allocations'!V57*$C$1","v":0},{"$f":"'rent allocations'!W57*$C$1","v":0},{"$f":"'rent allocations'!X57*$C$1","v":0},{"$f":"'rent allocations'!Y57*$C$1","v":0},{"$f":"'rent allocations'!Z57*$C$1","v":0},{"$f":"'rent allocations'!AA57*$C$1","v":0},{"$f":"'rent allocations'!AB57*$C$1","v":0},{"$f":"'rent allocations'!AC57*$C$1","v":0},{"$f":"'rent allocations'!AD57*$C$1","v":0},{"$f":"'rent allocations'!AE57*$C$1","v":0},{"$f":"'rent allocations'!AF57*$C$1","v":0},{"$f":"'rent allocations'!AG57*$C$1","v":0},{"$f":"'rent allocations'!AH57*$C$1","v":0},{"$f":"'rent allocations'!AI57*$C$1","v":0},{"$f":"'rent allocations'!AJ57*$C$1","v":0},{"$f":"'rent allocations'!AK57*$C$1","v":0},{"$f":"'rent allocations'!AL57*$C$1","v":0}]
["220 - Board for Volunteer Firefighters and Reserve Officers","220","Board for Volunteer Firefighters and Reserve Officers",{"$f":"'rent allocations'!D58*$C$1","v":0},{"$f":"'rent allocations'!E58*$C$1","v":0},{"$f":"'rent allocations'!F58*$C$1","v":0},{"$f":"'rent allocations'!G58*$C$1","v":0},{"$f":"'rent allocations'!H58*$C$1","v":0},{"$f":"'rent allocations'!I58*$C$1","v":0},{"$f":"'rent allocations'!J58*$C$1","v":0},{"$f":"'rent allocations'!K58*$C$1","v":0},{"$f":"'rent allocations'!L58*$C$1","v":0},{"$f":"'rent allocations'!M58*$C$1","v":0},{"$f":"'rent allocations'!N58*$C$1","v":0},{"$f":"'rent allocations'!O58*$C$1","v":0},{"$f":"'rent allocations'!P58*$C$1","v":0},{"$f":"'rent allocations'!Q58*$C$1","v":0},{"$f":"'rent allocations'!R58*$C$1","v":0},{"$f":"'rent allocations'!S58*$C$1","v":0},{"$f":"'rent allocations'!T58*$C$1","v":0},{"$f":"'rent allocations'!U58*$C$1","v":0},{"$f":"'rent allocations'!V58*$C$1","v":0},{"$f":"'rent allocations'!W58*$C$1","v":0},{"$f":"'rent allocations'!X58*$C$1","v":0},{"$f":"'rent allocations'!Y58*$C$1","v":0},{"$f":"'rent allocations'!Z58*$C$1","v":0},{"$f":"'rent allocations'!AA58*$C$1","v":0},{"$f":"'rent allocations'!AB58*$C$1","v":0},{"$f":"'rent allocations'!AC58*$C$1","v":0},{"$f":"'rent allocations'!AD58*$C$1","v":0},{"$f":"'rent allocations'!AE58*$C$1","v":0},{"$f":"'rent allocations'!AF58*$C$1","v":0},{"$f":"'rent allocations'!AG58*$C$1","v":0},{"$f":"'rent allocations'!AH58*$C$1","v":0},{"$f":"'rent allocations'!AI58*$C$1","v":0},{"$f":"'rent allocations'!AJ58*$C$1","v":0},{"$f":"'rent allocations'!AK58*$C$1","v":0},{"$f":"'rent allocations'!AL58*$C$1","v":0}]
["225 - Washington State Patrol","225","Washington State Patrol",{"$f":"'rent allocations'!D59*$C$1","v":254083.28147392054},{"$f":"'rent allocations'!E59*$C$1","v":0},{"$f":"'rent allocations'!F59*$C$1","v":0},{"$f":"'rent allocations'!G59*$C$1","v":2158.3266913245725},{"$f":"'rent allocations'!H59*$C$1","v":0},{"$f":"'rent allocations'!I59*$C$1","v":0},{"$f":"'rent allocations'!J59*$C$1","v":0},{"$f":"'rent allocations'!K59*$C$1","v":0},{"$f":"'rent allocations'!L59*$C$1","v":0},{"$f":"'rent allocations'!M59*$C$1","v":0},{"$f":"'rent allocations'!N59*$C$1","v":0},{"$f":"'rent allocations'!O59*$C$1","v":0},{"$f":"'rent allocations'!P59*$C$1","v":0},{"$f":"'rent allocations'!Q59*$C$1","v":0},{"$f":"'rent allocations'!R59*$C$1","v":0},{"$f":"'rent allocations'!S59*$C$1","v":0},{"$f":"'rent allocations'!T59*$C$1","v":0},{"$f":"'rent allocations'!U59*$C$1","v":0},{"$f":"'rent allocations'!V59*$C$1","v":0},{"$f":"'rent allocations'!W59*$C$1","v":0},{"$f":"'rent allocations'!X59*$C$1","v":0},{"$f":"'rent allocations'!Y59*$C$1","v":0},{"$f":"'rent allocations'!Z59*$C$1","v":0},{"$f":"'rent allocations'!AA59*$C$1","v":0},{"$f":"'rent allocations'!AB59*$C$1","v":0},{"$f":"'rent allocations'!AC59*$C$1","v":0},{"$f":"'rent allocations'!AD59*$C$1","v":0},{"$f":"'rent allocations'!AE59*$C$1","v":0},{"$f":"'rent allocations'!AF59*$C$1","v":251924.95478259595},{"$f":"'rent allocations'!AG59*$C$1","v":0},{"$f":"'rent allocations'!AH59*$C$1","v":0},{"$f":"'rent allocations'!AI59*$C$1","v":0},{"$f":"'rent allocations'!AJ59*$C$1","v":0},{"$f":"'rent allocations'!AK59*$C$1","v":0},{"$f":"'rent allocations'!AL59*$C$1","v":0}]
["227 - Criminal Justice Training Commission","227","Criminal Justice Training Commission",{"$f":"'rent allocations'!D60*$C$1","v":0},{"$f":"'rent allocations'!E60*$C$1","v":0},{"$f":"'rent allocations'!F60*$C$1","v":0},{"$f":"'rent allocations'!G60*$C$1","v":0},{"$f":"'rent allocations'!H60*$C$1","v":0},{"$f":"'rent allocations'!I60*$C$1","v":0},{"$f":"'rent allocations'!J60*$C$1","v":0},{"$f":"'rent allocations'!K60*$C$1","v":0},{"$f":"'rent allocations'!L60*$C$1","v":0},{"$f":"'rent allocations'!M60*$C$1","v":0},{"$f":"'rent allocations'!N60*$C$1","v":0},{"$f":"'rent allocations'!O60*$C$1","v":0},{"$f":"'rent allocations'!P60*$C$1","v":0},{"$f":"'rent allocations'!Q60*$C$1","v":0},{"$f":"'rent allocations'!R60*$C$1","v":0},{"$f":"'rent allocations'!S60*$C$1","v":0},{"$f":"'rent allocations'!T60*$C$1","v":0},{"$f":"'rent allocations'!U60*$C$1","v":0},{"$f":"'rent allocations'!V60*$C$1","v":0},{"$f":"'rent allocations'!W60*$C$1","v":0},{"$f":"'rent allocations'!X60*$C$1","v":0},{"$f":"'rent allocations'!Y60*$C$1","v":0},{"$f":"'rent allocations'!Z60*$C$1","v":0},{"$f":"'rent allocations'!AA60*$C$1","v":0},{"$f":"'rent allocations'!AB60*$C$1","v":0},{"$f":"'rent allocations'!AC60*$C$1","v":0},{"$f":"'rent allocations'!AD60*$C$1","v":0},{"$f":"'rent allocations'!AE60*$C$1","v":0},{"$f":"'rent allocations'!AF60*$C$1","v":0},{"$f":"'rent allocations'!AG60*$C$1","v":0},{"$f":"'rent allocations'!AH60*$C$1","v":0},{"$f":"'rent allocations'!AI60*$C$1","v":0},{"$f":"'rent allocations'!AJ60*$C$1","v":0},{"$f":"'rent allocations'!AK60*$C$1","v":0},{"$f":"'rent allocations'!AL60*$C$1","v":0}]
["228 - Traffic Safety Commission","228","Traffic Safety Commission",{"$f":"'rent allocations'!D61*$C$1","v":0},{"$f":"'rent allocations'!E61*$C$1","v":0},{"$f":"'rent allocations'!F61*$C$1","v":0},{"$f":"'rent allocations'!G61*$C$1","v":0},{"$f":"'rent allocations'!H61*$C$1","v":0},{"$f":"'rent allocations'!I61*$C$1","v":0},{"$f":"'rent allocations'!J61*$C$1","v":0},{"$f":"'rent allocations'!K61*$C$1","v":0},{"$f":"'rent allocations'!L61*$C$1","v":0},{"$f":"'rent allocations'!M61*$C$1","v":0},{"$f":"'rent allocations'!N61*$C$1","v":0},{"$f":"'rent allocations'!O61*$C$1","v":0},{"$f":"'rent allocations'!P61*$C$1","v":0},{"$f":"'rent allocations'!Q61*$C$1","v":0},{"$f":"'rent allocations'!R61*$C$1","v":0},{"$f":"'rent allocations'!S61*$C$1","v":0},{"$f":"'rent allocations'!T61*$C$1","v":0},{"$f":"'rent allocations'!U61*$C$1","v":0},{"$f":"'rent allocations'!V61*$C$1","v":0},{"$f":"'rent allocations'!W61*$C$1","v":0},{"$f":"'rent allocations'!X61*$C$1","v":0},{"$f":"'rent allocations'!Y61*$C$1","v":0},{"$f":"'rent allocations'!Z61*$C$1","v":0},{"$f":"'rent allocations'!AA61*$C$1","v":0},{"$f":"'rent allocations'!AB61*$C$1","v":0},{"$f":"'rent allocations'!AC61*$C$1","v":0},{"$f":"'rent allocations'!AD61*$C$1","v":0},{"$f":"'rent allocations'!AE61*$C$1","v":0},{"$f":"'rent allocations'!AF61*$C$1","v":0},{"$f":"'rent allocations'!AG61*$C$1","v":0},{"$f":"'rent allocations'!AH61*$C$1","v":0},{"$f":"'rent allocations'!AI61*$C$1","v":0},{"$f":"'rent allocations'!AJ61*$C$1","v":0},{"$f":"'rent allocations'!AK61*$C$1","v":0},{"$f":"'rent allocations'!AL61*$C$1","v":0}]
["235 - Department of Labor and Industries","235","Department of Labor and Industries",{"$f":"'rent allocations'!D62*$C$1","v":164480.97190089666},{"$f":"'rent allocations'!E62*$C$1","v":0},{"$f":"'rent allocations'!F62*$C$1","v":0},{"$f":"'rent allocations'!G62*$C$1","v":0},{"$f":"'rent allocations'!H62*$C$1","v":0},{"$f":"'rent allocations'!I62*$C$1","v":0},{"$f":"'rent allocations'!J62*$C$1","v":0},{"$f":"'rent allocations'!K62*$C$1","v":0},{"$f":"'rent allocations'!L62*$C$1","v":0},{"$f":"'rent allocations'!M62*$C$1","v":0},{"$f":"'rent allocations'!N62*$C$1","v":0},{"$f":"'rent allocations'!O62*$C$1","v":0},{"$f":"'rent allocations'!P62*$C$1","v":0},{"$f":"'rent allocations'!Q62*$C$1","v":0},{"$f":"'rent allocations'!R62*$C$1","v":0},{"$f":"'rent allocations'!S62*$C$1","v":0},{"$f":"'rent allocations'!T62*$C$1","v":0},{"$f":"'rent allocations'!U62*$C$1","v":0},{"$f":"'rent allocations'!V62*$C$1","v":0},{"$f":"'rent allocations'!W62*$C$1","v":0},{"$f":"'rent allocations'!X62*$C$1","v":0},{"$f":"'rent allocations'!Y62*$C$1","v":0},{"$f":"'rent allocations'!Z62*$C$1","v":0},{"$f":"'rent allocations'!AA62*$C$1","v":0},{"$f":"'rent allocations'!AB62*$C$1","v":0},{"$f":"'rent allocations'!AC62*$C$1","v":0},{"$f":"'rent allocations'!AD62*$C$1","v":0},{"$f":"'rent allocations'!AE62*$C$1","v":0},{"$f":"'rent allocations'!AF62*$C$1","v":0},{"$f":"'rent allocations'!AG62*$C$1","v":42510.86345543831},{"$f":"'rent allocations'!AH62*$C$1","v":0},{"$f":"'rent allocations'!AI62*$C$1","v":0},{"$f":"'rent allocations'!AJ62*$C$1","v":121970.10844545836},{"$f":"'rent allocations'!AK62*$C$1","v":0},{"$f":"'rent allocations'!AL62*$C$1","v":0}]
["240 - Department of Licensing","240","Department of Licensing",{"$f":"'rent allocations'!D63*$C$1","v":248698.10377997038},{"$f":"'rent allocations'!E63*$C$1","v":0},{"$f":"'rent allocations'!F63*$C$1","v":0},{"$f":"'rent allocations'!G63*$C$1","v":0},{"$f":"'rent allocations'!H63*$C$1","v":0},{"$f":"'rent allocations'!I63*$C$1","v":248698.10377997038},{"$f":"'rent allocations'!J63*$C$1","v":0},{"$f":"'rent allocations'!K63*$C$1","v":0},{"$f":"'rent allocations'!L63*$C$1","v":0},{"$f":"'rent allocations'!M63*$C$1","v":0},{"$f":"'rent allocations'!N63*$C$1","v":0},{"$f":"'rent allocations'!O63*$C$1","v":0},{"$f":"'rent allocations'!P63*$C$1","v":0},{"$f":"'rent allocations'!Q63*$C$1","v":0},{"$f":"'rent allocations'!R63*$C$1","v":0},{"$f":"'rent allocations'!S63*$C$1","v":0},{"$f":"'rent allocations'!T63*$C$1","v":0},{"$f":"'rent allocations'!U63*$C$1","v":0},{"$f":"'rent allocations'!V63*$C$1","v":0},{"$f":"'rent allocations'!W63*$C$1","v":0},{"$f":"'rent allocations'!X63*$C$1","v":0},{"$f":"'rent allocations'!Y63*$C$1","v":0},{"$f":"'rent allocations'!Z63*$C$1","v":0},{"$f":"'rent allocations'!AA63*$C$1","v":0},{"$f":"'rent allocations'!AB63*$C$1","v":0},{"$f":"'rent allocations'!AC63*$C$1","v":0},{"$f":"'rent allocations'!AD63*$C$1","v":0},{"$f":"'rent allocations'!AE63*$C$1","v":0},{"$f":"'rent allocations'!AF63*$C$1","v":0},{"$f":"'rent allocations'!AG63*$C$1","v":0},{"$f":"'rent allocations'!AH63*$C$1","v":0},{"$f":"'rent allocations'!AI63*$C$1","v":0},{"$f":"'rent allocations'!AJ63*$C$1","v":0},{"$f":"'rent allocations'!AK63*$C$1","v":0},{"$f":"'rent allocations'!AL63*$C$1","v":0}]
["245 - Military Department","245","Military Department",{"$f":"'rent allocations'!D64*$C$1","v":0},{"$f":"'rent allocations'!E64*$C$1","v":0},{"$f":"'rent allocations'!F64*$C$1","v":0},{"$f":"'rent allocations'!G64*$C$1","v":0},{"$f":"'rent allocations'!H64*$C$1","v":0},{"$f":"'rent allocations'!I64*$C$1","v":0},{"$f":"'rent allocations'!J64*$C$1","v":0},{"$f":"'rent allocations'!K64*$C$1","v":0},{"$f":"'rent allocations'!L64*$C$1","v":0},{"$f":"'rent allocations'!M64*$C$1","v":0},{"$f":"'rent allocations'!N64*$C$1","v":0},{"$f":"'rent allocations'!O64*$C$1","v":0},{"$f":"'rent allocations'!P64*$C$1","v":0},{"$f":"'rent allocations'!Q64*$C$1","v":0},{"$f":"'rent allocations'!R64*$C$1","v":0},{"$f":"'rent allocations'!S64*$C$1","v":0},{"$f":"'rent allocations'!T64*$C$1","v":0},{"$f":"'rent allocations'!U64*$C$1","v":0},{"$f":"'rent allocations'!V64*$C$1","v":0},{"$f":"'rent allocations'!W64*$C$1","v":0},{"$f":"'rent allocations'!X64*$C$1","v":0},{"$f":"'rent allocations'!Y64*$C$1","v":0},{"$f":"'rent allocations'!Z64*$C$1","v":0},{"$f":"'rent allocations'!AA64*$C$1","v":0},{"$f":"'rent allocations'!AB64*$C$1","v":0},{"$f":"'rent allocations'!AC64*$C$1","v":0},{"$f":"'rent allocations'!AD64*$C$1","v":0},{"$f":"'rent allocations'!AE64*$C$1","v":0},{"$f":"'rent allocations'!AF64*$C$1","v":0},{"$f":"'rent allocations'!AG64*$C$1","v":0},{"$f":"'rent allocations'!AH64*$C$1","v":0},{"$f":"'rent allocations'!AI64*$C$1","v":0},{"$f":"'rent allocations'!AJ64*$C$1","v":0},{"$f":"'rent allocations'!AK64*$C$1","v":0},{"$f":"'rent allocations'!AL64*$C$1","v":0}]
["275 - Public Employment Relations Commission","275","Public Employment Relations Commission",{"$f":"'rent allocations'!D65*$C$1","v":0},{"$f":"'rent allocations'!E65*$C$1","v":0},{"$f":"'rent allocations'!F65*$C$1","v":0},{"$f":"'rent allocations'!G65*$C$1","v":0},{"$f":"'rent allocations'!H65*$C$1","v":0},{"$f":"'rent allocations'!I65*$C$1","v":0},{"$f":"'rent allocations'!J65*$C$1","v":0},{"$f":"'rent allocations'!K65*$C$1","v":0},{"$f":"'rent allocations'!L65*$C$1","v":0},{"$f":"'rent allocations'!M65*$C$1","v":0},{"$f":"'rent allocations'!N65*$C$1","v":0},{"$f":"'rent allocations'!O65*$C$1","v":0},{"$f":"'rent allocations'!P65*$C$1","v":0},{"$f":"'rent allocations'!Q65*$C$1","v":0},{"$f":"'rent allocations'!R65*$C$1","v":0},{"$f":"'rent allocations'!S65*$C$1","v":0},{"$f":"'rent allocations'!T65*$C$1","v":0},{"$f":"'rent allocations'!U65*$C$1","v":0},{"$f":"'rent allocations'!V65*$C$1","v":0},{"$f":"'rent allocations'!W65*$C$1","v":0},{"$f":"'rent allocations'!X65*$C$1","v":0},{"$f":"'rent allocations'!Y65*$C$1","v":0},{"$f":"'rent allocations'!Z65*$C$1","v":0},{"$f":"'rent allocations'!AA65*$C$1","v":0},{"$f":"'rent allocations'!AB65*$C$1","v":0},{"$f":"'rent allocations'!AC65*$C$1","v":0},{"$f":"'rent allocations'!AD65*$C$1","v":0},{"$f":"'rent allocations'!AE65*$C$1","v":0},{"$f":"'rent allocations'!AF65*$C$1","v":0},{"$f":"'rent allocations'!AG65*$C$1","v":0},{"$f":"'rent allocations'!AH65*$C$1","v":0},{"$f":"'rent allocations'!AI65*$C$1","v":0},{"$f":"'rent allocations'!AJ65*$C$1","v":0},{"$f":"'rent allocations'!AK65*$C$1","v":0},{"$f":"'rent allocations'!AL65*$C$1","v":0}]
["300 - Department of Social and Health Services","300","Department of Social and Health Services",{"$f":"'rent allocations'!D66*$C$1","v":776168.83695062471},{"$f":"'rent allocations'!E66*$C$1","v":0},{"$f":"'rent allocations'!F66*$C$1","v":0},{"$f":"'rent allocations'!G66*$C$1","v":0},{"$f":"'rent allocations'!H66*$C$1","v":0},{"$f":"'rent allocations'!I66*$C$1","v":0},{"$f":"'rent allocations'!J66*$C$1","v":383636.7139468416},{"$f":"'rent allocations'!K66*$C$1","v":0},{"$f":"'rent allocations'!L66*$C$1","v":0},{"$f":"'rent allocations'!M66*$C$1","v":0},{"$f":"'rent allocations'!N66*$C$1","v":0},{"$f":"'rent allocations'!O66*$C$1","v":0},{"$f":"'rent allocations'!P66*$C$1","v":0},{"$f":"'rent allocations'!Q66*$C$1","v":0},{"$f":"'rent allocations'!R66*$C$1","v":0},{"$f":"'rent allocations'!S66*$C$1","v":0},{"$f":"'rent allocations'!T66*$C$1","v":0},{"$f":"'rent allocations'!U66*$C$1","v":0},{"$f":"'rent allocations'!V66*$C$1","v":0},{"$f":"'rent allocations'!W66*$C$1","v":0},{"$f":"'rent allocations'!X66*$C$1","v":0},{"$f":"'rent allocations'!Y66*$C$1","v":0},{"$f":"'rent allocations'!Z66*$C$1","v":0},{"$f":"'rent allocations'!AA66*$C$1","v":0},{"$f":"'rent allocations'!AB66*$C$1","v":0},{"$f":"'rent allocations'!AC66*$C$1","v":0},{"$f":"'rent allocations'!AD66*$C$1","v":0},{"$f":"'rent allocations'!AE66*$C$1","v":0},{"$f":"'rent allocations'!AF66*$C$1","v":0},{"$f":"'rent allocations'!AG66*$C$1","v":119428.22348844002},{"$f":"'rent allocations'!AH66*$C$1","v":273103.89951534307},{"$f":"'rent allocations'!AI66*$C$1","v":0},{"$f":"'rent allocations'!AJ66*$C$1","v":0},{"$f":"'rent allocations'!AK66*$C$1","v":0},{"$f":"'rent allocations'!AL66*$C$1","v":0}]
["303 - Department of Health","303","Department of Health",{"$f":"'rent allocations'!D67*$C$1","v":0},{"$f":"'rent allocations'!E67*$C$1","v":0},{"$f":"'rent allocations'!F67*$C$1","v":0},{"$f":"'rent allocations'!G67*$C$1","v":0},{"$f":"'rent allocations'!H67*$C$1","v":0},{"$f":"'rent allocations'!I67*$C$1","v":0},{"$f":"'rent allocations'!J67*$C$1","v":0},{"$f":"'rent allocations'!K67*$C$1","v":0},{"$f":"'rent allocations'!L67*$C$1","v":0},{"$f":"'rent allocations'!M67*$C$1","v":0},{"$f":"'rent allocations'!N67*$C$1","v":0},{"$f":"'rent allocations'!O67*$C$1","v":0},{"$f":"'rent allocations'!P67*$C$1","v":0},{"$f":"'rent allocations'!Q67*$C$1","v":0},{"$f":"'rent allocations'!R67*$C$1","v":0},{"$f":"'rent allocations'!S67*$C$1","v":0},{"$f":"'rent allocations'!T67*$C$1","v":0},{"$f":"'rent allocations'!U67*$C$1","v":0},{"$f":"'rent allocations'!V67*$C$1","v":0},{"$f":"'rent allocations'!W67*$C$1","v":0},{"$f":"'rent allocations'!X67*$C$1","v":0},{"$f":"'rent allocations'!Y67*$C$1","v":0},{"$f":"'rent allocations'!Z67*$C$1","v":0},{"$f":"'rent allocations'!AA67*$C$1","v":0},{"$f":"'rent allocations'!AB67*$C$1","v":0},{"$f":"'rent allocations'!AC67*$C$1","v":0},{"$f":"'rent allocations'!AD67*$C$1","v":0},{"$f":"'rent allocations'!AE67*$C$1","v":0},{"$f":"'rent allocations'!AF67*$C$1","v":0},{"$f":"'rent allocations'!AG67*$C$1","v":0},{"$f":"'rent allocations'!AH67*$C$1","v":0},{"$f":"'rent allocations'!AI67*$C$1","v":0},{"$f":"'rent allocations'!AJ67*$C$1","v":0},{"$f":"'rent allocations'!AK67*$C$1","v":0},{"$f":"'rent allocations'!AL67*$C$1","v":0}]
["305 - Department of Veterans Affairs","305","Department of Veterans Affairs",{"$f":"'rent allocations'!D68*$C$1","v":0},{"$f":"'rent allocations'!E68*$C$1","v":0},{"$f":"'rent allocations'!F68*$C$1","v":0},{"$f":"'rent allocations'!G68*$C$1","v":0},{"$f":"'rent allocations'!H68*$C$1","v":0},{"$f":"'rent allocations'!I68*$C$1","v":0},{"$f":"'rent allocations'!J68*$C$1","v":0},{"$f":"'rent allocations'!K68*$C$1","v":0},{"$f":"'rent allocations'!L68*$C$1","v":0},{"$f":"'rent allocations'!M68*$C$1","v":0},{"$f":"'rent allocations'!N68*$C$1","v":0},{"$f":"'rent allocations'!O68*$C$1","v":0},{"$f":"'rent allocations'!P68*$C$1","v":0},{"$f":"'rent allocations'!Q68*$C$1","v":0},{"$f":"'rent allocations'!R68*$C$1","v":0},{"$f":"'rent allocations'!S68*$C$1","v":0},{"$f":"'rent allocations'!T68*$C$1","v":0},{"$f":"'rent allocations'!U68*$C$1","v":0},{"$f":"'rent allocations'!V68*$C$1","v":0},{"$f":"'rent allocations'!W68*$C$1","v":0},{"$f":"'rent allocations'!X68*$C$1","v":0},{"$f":"'rent allocations'!Y68*$C$1","v":0},{"$f":"'rent allocations'!Z68*$C$1","v":0},{"$f":"'rent allocations'!AA68*$C$1","v":0},{"$f":"'rent allocations'!AB68*$C$1","v":0},{"$f":"'rent allocations'!AC68*$C$1","v":0},{"$f":"'rent allocations'!AD68*$C$1","v":0},{"$f":"'rent allocations'!AE68*$C$1","v":0},{"$f":"'rent allocations'!AF68*$C$1","v":0},{"$f":"'rent allocations'!AG68*$C$1","v":0},{"$f":"'rent allocations'!AH68*$C$1","v":0},{"$f":"'rent allocations'!AI68*$C$1","v":0},{"$f":"'rent allocations'!AJ68*$C$1","v":0},{"$f":"'rent allocations'!AK68*$C$1","v":0},{"$f":"'rent allocations'!AL68*$C$1","v":0}]
[{"$f":"CONCATENATE(B69,\" - \",C69)","v":"307 - DCYF"},"307","DCYF",{"$f":"'rent allocations'!D69*$C$1","v":360447.91684690811},{"$f":"'rent allocations'!E69*$C$1","v":0},{"$f":"'rent allocations'!F69*$C$1","v":0},{"$f":"'rent allocations'!G69*$C$1","v":0},{"$f":"'rent allocations'!H69*$C$1","v":0},{"$f":"'rent allocations'!I69*$C$1","v":0},{"$f":"'rent allocations'!J69*$C$1","v":157083.38259715243},{"$f":"'rent allocations'!K69*$C$1","v":0},{"$f":"'rent allocations'!L69*$C$1","v":0},{"$f":"'rent allocations'!M69*$C$1","v":0},{"$f":"'rent allocations'!N69*$C$1","v":0},{"$f":"'rent allocations'!O69*$C$1","v":0},{"$f":"'rent allocations'!P69*$C$1","v":0},{"$f":"'rent allocations'!Q69*$C$1","v":0},{"$f":"'rent allocations'!R69*$C$1","v":0},{"$f":"'rent allocations'!S69*$C$1","v":0},{"$f":"'rent allocations'!T69*$C$1","v":0},{"$f":"'rent allocations'!U69*$C$1","v":0},{"$f":"'rent allocations'!V69*$C$1","v":0},{"$f":"'rent allocations'!W69*$C$1","v":0},{"$f":"'rent allocations'!X69*$C$1","v":0},{"$f":"'rent allocations'!Y69*$C$1","v":0},{"$f":"'rent allocations'!Z69*$C$1","v":0},{"$f":"'rent allocations'!AA69*$C$1","v":0},{"$f":"'rent allocations'!AB69*$C$1","v":0},{"$f":"'rent allocations'!AC69*$C$1","v":0},{"$f":"'rent allocations'!AD69*$C$1","v":0},{"$f":"'rent allocations'!AE69*$C$1","v":0},{"$f":"'rent allocations'!AF69*$C$1","v":0},{"$f":"'rent allocations'!AG69*$C$1","v":87537.86926981034},{"$f":"'rent allocations'!AH69*$C$1","v":115826.66497994534},{"$f":"'rent allocations'!AI69*$C$1","v":0},{"$f":"'rent allocations'!AJ69*$C$1","v":0},{"$f":"'rent allocations'!AK69*$C$1","v":0},{"$f":"'rent allocations'!AL69*$C$1","v":0}]
["310 - Department of Corrections","310","Department of Corrections",{"$f":"'rent allocations'!D70*$C$1","v":0},{"$f":"'rent allocations'!E70*$C$1","v":0},{"$f":"'rent allocations'!F70*$C$1","v":0},{"$f":"'rent allocations'!G70*$C$1","v":0},{"$f":"'rent allocations'!H70*$C$1","v":0},{"$f":"'rent allocations'!I70*$C$1","v":0},{"$f":"'rent allocations'!J70*$C$1","v":0},{"$f":"'rent allocations'!K70*$C$1","v":0},{"$f":"'rent allocations'!L70*$C$1","v":0},{"$f":"'rent allocations'!M70*$C$1","v":0},{"$f":"'rent allocations'!N70*$C$1","v":0},{"$f":"'rent allocations'!O70*$C$1","v":0},{"$f":"'rent allocations'!P70*$C$1","v":0},{"$f":"'rent allocations'!Q70*$C$1","v":0},{"$f":"'rent allocations'!R70*$C$1","v":0},{"$f":"'rent allocations'!S70*$C$1","v":0},{"$f":"'rent allocations'!T70*$C$1","v":0},{"$f":"'rent allocations'!U70*$C$1","v":0},{"$f":"'rent allocations'!V70*$C$1","v":0},{"$f":"'rent allocations'!W70*$C$1","v":0},{"$f":"'rent allocations'!X70*$C$1","v":0},{"$f":"'rent allocations'!Y70*$C$1","v":0},{"$f":"'rent allocations'!Z70*$C$1","v":0},{"$f":"'rent allocations'!AA70*$C$1","v":0},{"$f":"'rent allocations'!AB70*$C$1","v":0},{"$f":"'rent allocations'!AC70*$C$1","v":0},{"$f":"'rent allocations'!AD70*$C$1","v":0},{"$f":"'rent allocations'!AE70*$C$1","v":0},{"$f":"'rent allocations'!AF70*$C$1","v":0},{"$f":"'rent allocations'!AG70*$C$1","v":0},{"$f":"'rent allocations'!AH70*$C$1","v":0},{"$f":"'rent allocations'!AI70*$C$1","v":0},{"$f":"'rent allocations'!AJ70*$C$1","v":0},{"$f":"'rent allocations'!AK70*$C$1","v":0},{"$f":"'rent allocations'!AL70*$C$1","v":0}]
["315 - Department of Services for the Blind","315","Department of Services for the Blind",{"$f":"'rent allocations'!D71*$C$1","v":52428.055001883593},{"$f":"'rent allocations'!E71*$C$1","v":0},{"$f":"'rent allocations'!F71*$C$1","v":0},{"$f":"'rent allocations'!G71*$C$1","v":2453.0212972554273},{"$f":"'rent allocations'!H71*$C$1","v":0},{"$f":"'rent allocations'!I71*$C$1","v":2072.4643012357246},{"$f":"'rent allocations'!J71*$C$1","v":6112.8417260937249},{"$f":"'rent allocations'!K71*$C$1","v":0},{"$f":"'rent allocations'!L71*$C$1","v":5386.7462362572969},{"$f":"'rent allocations'!M71*$C$1","v":0},{"$f":"'rent allocations'!N71*$C$1","v":2953.3196631261676},{"$f":"'rent allocations'!O71*$C$1","v":0},{"$f":"'rent allocations'!P71*$C$1","v":0},{"$f":"'rent allocations'!Q71*$C$1","v":0},{"$f":"'rent allocations'!R71*$C$1","v":0},{"$f":"'rent allocations'!S71*$C$1","v":0},{"$f":"'rent allocations'!T71*$C$1","v":0},{"$f":"'rent allocations'!U71*$C$1","v":0},{"$f":"'rent allocations'!V71*$C$1","v":0},{"$f":"'rent allocations'!W71*$C$1","v":0},{"$f":"'rent allocations'!X71*$C$1","v":0},{"$f":"'rent allocations'!Y71*$C$1","v":0},{"$f":"'rent allocations'!Z71*$C$1","v":0},{"$f":"'rent allocations'!AA71*$C$1","v":0},{"$f":"'rent allocations'!AB71*$C$1","v":0},{"$f":"'rent allocations'!AC71*$C$1","v":0},{"$f":"'rent allocations'!AD71*$C$1","v":0},{"$f":"'rent allocations'!AE71*$C$1","v":0},{"$f":"'rent allocations'!AF71*$C$1","v":0},{"$f":"'rent allocations'!AG71*$C$1","v":0},{"$f":"'rent allocations'!AH71*$C$1","v":0},{"$f":"'rent allocations'!AI71*$C$1","v":21853.558895355742},{"$f":"'rent allocations'!AJ71*$C$1","v":11596.102882559511},{"$f":"'rent allocations'!AK71*$C$1","v":0},{"$f":"'rent allocations'!AL71*$C$1","v":0}]
["340 - Student Achievement Council","340","Student Achievement Council",{"$f":"'rent allocations'!D72*$C$1","v":0},{"$f":"'rent allocations'!E72*$C$1","v":0},{"$f":"'rent allocations'!F72*$C$1","v":0},{"$f":"'rent allocations'!G72*$C$1","v":0},{"$f":"'rent allocations'!H72*$C$1","v":0},{"$f":"'rent allocations'!I72*$C$1","v":0},{"$f":"'rent allocations'!J72*$C$1","v":0},{"$f":"'rent allocations'!K72*$C$1","v":0},{"$f":"'rent allocations'!L72*$C$1","v":0},{"$f":"'rent allocations'!M72*$C$1","v":0},{"$f":"'rent allocations'!N72*$C$1","v":0},{"$f":"'rent allocations'!O72*$C$1","v":0},{"$f":"'rent allocations'!P72*$C$1","v":0},{"$f":"'rent allocations'!Q72*$C$1","v":0},{"$f":"'rent allocations'!R72*$C$1","v":0},{"$f":"'rent allocations'!S72*$C$1","v":0},{"$f":"'rent allocations'!T72*$C$1","v":0},{"$f":"'rent allocations'!U72*$C$1","v":0},{"$f":"'rent allocations'!V72*$C$1","v":0},{"$f":"'rent allocations'!W72*$C$1","v":0},{"$f":"'rent allocations'!X72*$C$1","v":0},{"$f":"'rent allocations'!Y72*$C$1","v":0},{"$f":"'rent allocations'!Z72*$C$1","v":0},{"$f":"'rent allocations'!AA72*$C$1","v":0},{"$f":"'rent allocations'!AB72*$C$1","v":0},{"$f":"'rent allocations'!AC72*$C$1","v":0},{"$f":"'rent allocations'!AD72*$C$1","v":0},{"$f":"'rent allocations'!AE72*$C$1","v":0},{"$f":"'rent allocations'!AF72*$C$1","v":0},{"$f":"'rent allocations'!AG72*$C$1","v":0},{"$f":"'rent allocations'!AH72*$C$1","v":0},{"$f":"'rent allocations'!AI72*$C$1","v":0},{"$f":"'rent allocations'!AJ72*$C$1","v":0},{"$f":"'rent allocations'!AK72*$C$1","v":0},{"$f":"'rent allocations'!AL72*$C$1","v":0}]
["341 - Law Enforcement Officers' & Fire Fighters' Plan 2 Retirement Board","341","Law Enforcement Officers' & Fire Fighters' Plan 2 Retirement Board",{"$f":"'rent allocations'!D73*$C$1","v":0},{"$f":"'rent allocations'!E73*$C$1","v":0},{"$f":"'rent allocations'!F73*$C$1","v":0},{"$f":"'rent allocations'!G73*$C$1","v":0},{"$f":"'rent allocations'!H73*$C$1","v":0},{"$f":"'rent allocations'!I73*$C$1","v":0},{"$f":"'rent allocations'!J73*$C$1","v":0},{"$f":"'rent allocations'!K73*$C$1","v":0},{"$f":"'rent allocations'!L73*$C$1","v":0},{"$f":"'rent allocations'!M73*$C$1","v":0},{"$f":"'rent allocations'!N73*$C$1","v":0},{"$f":"'rent allocations'!O73*$C$1","v":0},{"$f":"'rent allocations'!P73*$C$1","v":0},{"$f":"'rent allocations'!Q73*$C$1","v":0},{"$f":"'rent allocations'!R73*$C$1","v":0},{"$f":"'rent allocations'!S73*$C$1","v":0},{"$f":"'rent allocations'!T73*$C$1","v":0},{"$f":"'rent allocations'!U73*$C$1","v":0},{"$f":"'rent allocations'!V73*$C$1","v":0},{"$f":"'rent allocations'!W73*$C$1","v":0},{"$f":"'rent allocations'!X73*$C$1","v":0},{"$f":"'rent allocations'!Y73*$C$1","v":0},{"$f":"'rent allocations'!Z73*$C$1","v":0},{"$f":"'rent allocations'!AA73*$C$1","v":0},{"$f":"'rent allocations'!AB73*$C$1","v":0},{"$f":"'rent allocations'!AC73*$C$1","v":0},{"$f":"'rent allocations'!AD73*$C$1","v":0},{"$f":"'rent allocations'!AE73*$C$1","v":0},{"$f":"'rent allocations'!AF73*$C$1","v":0},{"$f":"'rent allocations'!AG73*$C$1","v":0},{"$f":"'rent allocations'!AH73*$C$1","v":0},{"$f":"'rent allocations'!AI73*$C$1","v":0},{"$f":"'rent allocations'!AJ73*$C$1","v":0},{"$f":"'rent allocations'!AK73*$C$1","v":0},{"$f":"'rent allocations'!AL73*$C$1","v":0}]
["350 - Superintendent of Public Instruction","350","Superintendent of Public Instruction",{"$f":"'rent allocations'!D74*$C$1","v":236254.44973515891},{"$f":"'rent allocations'!E74*$C$1","v":0},{"$f":"'rent allocations'!F74*$C$1","v":0},{"$f":"'rent allocations'!G74*$C$1","v":0},{"$f":"'rent allocations'!H74*$C$1","v":0},{"$f":"'rent allocations'!I74*$C$1","v":0},{"$f":"'rent allocations'!J74*$C$1","v":0},{"$f":"'rent allocations'!K74*$C$1","v":0},{"$f":"'rent allocations'!L74*$C$1","v":0},{"$f":"'rent allocations'!M74*$C$1","v":0},{"$f":"'rent allocations'!N74*$C$1","v":0},{"$f":"'rent allocations'!O74*$C$1","v":0},{"$f":"'rent allocations'!P74*$C$1","v":230768.22653047121},{"$f":"'rent allocations'!Q74*$C$1","v":0},{"$f":"'rent allocations'!R74*$C$1","v":0},{"$f":"'rent allocations'!S74*$C$1","v":0},{"$f":"'rent allocations'!T74*$C$1","v":0},{"$f":"'rent allocations'!U74*$C$1","v":0},{"$f":"'rent allocations'!V74*$C$1","v":0},{"$f":"'rent allocations'!W74*$C$1","v":0},{"$f":"'rent allocations'!X74*$C$1","v":0},{"$f":"'rent allocations'!Y74*$C$1","v":0},{"$f":"'rent allocations'!Z74*$C$1","v":0},{"$f":"'rent allocations'!AA74*$C$1","v":5486.2232046876861},{"$f":"'rent allocations'!AB74*$C$1","v":0},{"$f":"'rent allocations'!AC74*$C$1","v":0},{"$f":"'rent allocations'!AD74*$C$1","v":0},{"$f":"'rent allocations'!AE74*$C$1","v":0},{"$f":"'rent allocations'!AF74*$C$1","v":0},{"$f":"'rent allocations'!AG74*$C$1","v":0},{"$f":"'rent allocations'!AH74*$C$1","v":0},{"$f":"'rent allocations'!AI74*$C$1","v":0},{"$f":"'rent allocations'!AJ74*$C$1","v":0},{"$f":"'rent allocations'!AK74*$C$1","v":0},{"$f":"'rent allocations'!AL74*$C$1","v":0}]
["351 - State School For The Blind","351","State School For The Blind",{"$f":"'rent allocations'!D75*$C$1","v":0},{"$f":"'rent allocations'!E75*$C$1","v":0},{"$f":"'rent allocations'!F75*$C$1","v":0},{"$f":"'rent allocations'!G75*$C$1","v":0},{"$f":"'rent allocations'!H75*$C$1","v":0},{"$f":"'rent allocations'!I75*$C$1","v":0},{"$f":"'rent allocations'!J75*$C$1","v":0},{"$f":"'rent allocations'!K75*$C$1","v":0},{"$f":"'rent allocations'!L75*$C$1","v":0},{"$f":"'rent allocations'!M75*$C$1","v":0},{"$f":"'rent allocations'!N75*$C$1","v":0},{"$f":"'rent allocations'!O75*$C$1","v":0},{"$f":"'rent allocations'!P75*$C$1","v":0},{"$f":"'rent allocations'!Q75*$C$1","v":0},{"$f":"'rent allocations'!R75*$C$1","v":0},{"$f":"'rent allocations'!S75*$C$1","v":0},{"$f":"'rent allocations'!T75*$C$1","v":0},{"$f":"'rent allocations'!U75*$C$1","v":0},{"$f":"'rent allocations'!V75*$C$1","v":0},{"$f":"'rent allocations'!W75*$C$1","v":0},{"$f":"'rent allocations'!X75*$C$1","v":0},{"$f":"'rent allocations'!Y75*$C$1","v":0},{"$f":"'rent allocations'!Z75*$C$1","v":0},{"$f":"'rent allocations'!AA75*$C$1","v":0},{"$f":"'rent allocations'!AB75*$C$1","v":0},{"$f":"'rent allocations'!AC75*$C$1","v":0},{"$f":"'rent allocations'!AD75*$C$1","v":0},{"$f":"'rent allocations'!AE75*$C$1","v":0},{"$f":"'rent allocations'!AF75*$C$1","v":0},{"$f":"'rent allocations'!AG75*$C$1","v":0},{"$f":"'rent allocations'!AH75*$C$1","v":0},{"$f":"'rent allocations'!AI75*$C$1","v":0},{"$f":"'rent allocations'!AJ75*$C$1","v":0},{"$f":"'rent allocations'!AK75*$C$1","v":0},{"$f":"'rent allocations'!AL75*$C$1","v":0}]
["353 - State Center for Childhood Deafness and Hearing Loss","353","State Center for Childhood Deafness and Hearing Loss",{"$f":"'rent allocations'!D76*$C$1","v":0},{"$f":"'rent allocations'!E76*$C$1","v":0},{"$f":"'rent allocations'!F76*$C$1","v":0},{"$f":"'rent allocations'!G76*$C$1","v":0},{"$f":"'rent allocations'!H76*$C$1","v":0},{"$f":"'rent allocations'!I76*$C$1","v":0},{"$f":"'rent allocations'!J76*$C$1","v":0},{"$f":"'rent allocations'!K76*$C$1","v":0},{"$f":"'rent allocations'!L76*$C$1","v":0},{"$f":"'rent allocations'!M76*$C$1","v":0},{"$f":"'rent allocations'!N76*$C$1","v":0},{"$f":"'rent allocations'!O76*$C$1","v":0},{"$f":"'rent allocations'!P76*$C$1","v":0},{"$f":"'rent allocations'!Q76*$C$1","v":0},{"$f":"'rent allocations'!R76*$C$1","v":0},{"$f":"'rent allocations'!S76*$C$1","v":0},{"$f":"'rent allocations'!T76*$C$1","v":0},{"$f":"'rent allocations'!U76*$C$1","v":0},{"$f":"'rent allocations'!V76*$C$1","v":0},{"$f":"'rent allocations'!W76*$C$1","v":0},{"$f":"'rent allocations'!X76*$C$1","v":0},{"$f":"'rent allocations'!Y76*$C$1","v":0},{"$f":"'rent allocations'!Z76*$C$1","v":0},{"$f":"'rent allocations'!AA76*$C$1","v":0},{"$f":"'rent allocations'!AB76*$C$1","v":0},{"$f":"'rent allocations'!AC76*$C$1","v":0},{"$f":"'rent allocations'!AD76*$C$1","v":0},{"$f":"'rent allocations'!AE76*$C$1","v":0},{"$f":"'rent allocations'!AF76*$C$1","v":0},{"$f":"'rent allocations'!AG76*$C$1","v":0},{"$f":"'rent allocations'!AH76*$C$1","v":0},{"$f":"'rent allocations'!AI76*$C$1","v":0},{"$f":"'rent allocations'!AJ76*$C$1","v":0},{"$f":"'rent allocations'!AK76*$C$1","v":0},{"$f":"'rent allocations'!AL76*$C$1","v":0}]
["354 - Workforce Training and Education Coordinating Board","354","Workforce Training and Education Coordinating Board",{"$f":"'rent allocations'!D77*$C$1","v":0},{"$f":"'rent allocations'!E77*$C$1","v":0},{"$f":"'rent allocations'!F77*$C$1","v":0},{"$f":"'rent allocations'!G77*$C$1","v":0},{"$f":"'rent allocations'!H77*$C$1","v":0},{"$f":"'rent allocations'!I77*$C$1","v":0},{"$f":"'rent allocations'!J77*$C$1","v":0},{"$f":"'rent allocations'!K77*$C$1","v":0},{"$f":"'rent allocations'!L77*$C$1","v":0},{"$f":"'rent allocations'!M77*$C$1","v":0},{"$f":"'rent allocations'!N77*$C$1","v":0},{"$f":"'rent allocations'!O77*$C$1","v":0},{"$f":"'rent allocations'!P77*$C$1","v":0},{"$f":"'rent allocations'!Q77*$C$1","v":0},{"$f":"'rent allocations'!R77*$C$1","v":0},{"$f":"'rent allocations'!S77*$C$1","v":0},{"$f":"'rent allocations'!T77*$C$1","v":0},{"$f":"'rent allocations'!U77*$C$1","v":0},{"$f":"'rent allocations'!V77*$C$1","v":0},{"$f":"'rent allocations'!W77*$C$1","v":0},{"$f":"'rent allocations'!X77*$C$1","v":0},{"$f":"'rent allocations'!Y77*$C$1","v":0},{"$f":"'rent allocations'!Z77*$C$1","v":0},{"$f":"'rent allocations'!AA77*$C$1","v":0},{"$f":"'rent allocations'!AB77*$C$1","v":0},{"$f":"'rent allocations'!AC77*$C$1","v":0},{"$f":"'rent allocations'!AD77*$C$1","v":0},{"$f":"'rent allocations'!AE77*$C$1","v":0},{"$f":"'rent allocations'!AF77*$C$1","v":0},{"$f":"'rent allocations'!AG77*$C$1","v":0},{"$f":"'rent allocations'!AH77*$C$1","v":0},{"$f":"'rent allocations'!AI77*$C$1","v":0},{"$f":"'rent allocations'!AJ77*$C$1","v":0},{"$f":"'rent allocations'!AK77*$C$1","v":0},{"$f":"'rent allocations'!AL77*$C$1","v":0}]
["355 - Department of Archaeology and Historic Preservation","355","Department of Archaeology and Historic Preservation",{"$f":"'rent allocations'!D78*$C$1","v":46208.454713718318},{"$f":"'rent allocations'!E78*$C$1","v":0},{"$f":"'rent allocations'!F78*$C$1","v":0},{"$f":"'rent allocations'!G78*$C$1","v":0},{"$f":"'rent allocations'!H78*$C$1","v":0},{"$f":"'rent allocations'!I78*$C$1","v":0},{"$f":"'rent allocations'!J78*$C$1","v":0},{"$f":"'rent allocations'!K78*$C$1","v":0},{"$f":"'rent allocations'!L78*$C$1","v":0},{"$f":"'rent allocations'!M78*$C$1","v":0},{"$f":"'rent allocations'!N78*$C$1","v":0},{"$f":"'rent allocations'!O78*$C$1","v":0},{"$f":"'rent allocations'!P78*$C$1","v":0},{"$f":"'rent allocations'!Q78*$C$1","v":0},{"$f":"'rent allocations'!R78*$C$1","v":0},{"$f":"'rent allocations'!S78*$C$1","v":0},{"$f":"'rent allocations'!T78*$C$1","v":0},{"$f":"'rent allocations'!U78*$C$1","v":0},{"$f":"'rent allocations'!V78*$C$1","v":0},{"$f":"'rent allocations'!W78*$C$1","v":0},{"$f":"'rent allocations'!X78*$C$1","v":46208.454713718318},{"$f":"'rent allocations'!Y78*$C$1","v":0},{"$f":"'rent allocations'!Z78*$C$1","v":0},{"$f":"'rent allocations'!AA78*$C$1","v":0},{"$f":"'rent allocations'!AB78*$C$1","v":0},{"$f":"'rent allocations'!AC78*$C$1","v":0},{"$f":"'rent allocations'!AD78*$C$1","v":0},{"$f":"'rent allocations'!AE78*$C$1","v":0},{"$f":"'rent allocations'!AF78*$C$1","v":0},{"$f":"'rent allocations'!AG78*$C$1","v":0},{"$f":"'rent allocations'!AH78*$C$1","v":0},{"$f":"'rent allocations'!AI78*$C$1","v":0},{"$f":"'rent allocations'!AJ78*$C$1","v":0},{"$f":"'rent allocations'!AK78*$C$1","v":0},{"$f":"'rent allocations'!AL78*$C$1","v":0}]
["357 - Department of Early Learning","357","Department of Early Learning",{"$f":"'rent allocations'!D79*$C$1","v":0},{"$f":"'rent allocations'!E79*$C$1","v":0},{"$f":"'rent allocations'!F79*$C$1","v":0},{"$f":"'rent allocations'!G79*$C$1","v":0},{"$f":"'rent allocations'!H79*$C$1","v":0},{"$f":"'rent allocations'!I79*$C$1","v":0},{"$f":"'rent allocations'!J79*$C$1","v":0},{"$f":"'rent allocations'!K79*$C$1","v":0},{"$f":"'rent allocations'!L79*$C$1","v":0},{"$f":"'rent allocations'!M79*$C$1","v":0},{"$f":"'rent allocations'!N79*$C$1","v":0},{"$f":"'rent allocations'!O79*$C$1","v":0},{"$f":"'rent allocations'!P79*$C$1","v":0},{"$f":"'rent allocations'!Q79*$C$1","v":0},{"$f":"'rent allocations'!R79*$C$1","v":0},{"$f":"'rent allocations'!S79*$C$1","v":0},{"$f":"'rent allocations'!T79*$C$1","v":0},{"$f":"'rent allocations'!U79*$C$1","v":0},{"$f":"'rent allocations'!V79*$C$1","v":0},{"$f":"'rent allocations'!W79*$C$1","v":0},{"$f":"'rent allocations'!X79*$C$1","v":0},{"$f":"'rent allocations'!Y79*$C$1","v":0},{"$f":"'rent allocations'!Z79*$C$1","v":0},{"$f":"'rent allocations'!AA79*$C$1","v":0},{"$f":"'rent allocations'!AB79*$C$1","v":0},{"$f":"'rent allocations'!AC79*$C$1","v":0},{"$f":"'rent allocations'!AD79*$C$1","v":0},{"$f":"'rent allocations'!AE79*$C$1","v":0},{"$f":"'rent allocations'!AF79*$C$1","v":0},{"$f":"'rent allocations'!AG79*$C$1","v":0},{"$f":"'rent allocations'!AH79*$C$1","v":0},{"$f":"'rent allocations'!AI79*$C$1","v":0},{"$f":"'rent allocations'!AJ79*$C$1","v":0},{"$f":"'rent allocations'!AK79*$C$1","v":0},{"$f":"'rent allocations'!AL79*$C$1","v":0}]
["359 - WA Charter School Commission","359","WA Charter School Commission",{"$f":"'rent allocations'!D80*$C$1","v":0},{"$f":"'rent allocations'!E80*$C$1","v":0},{"$f":"'rent allocations'!F80*$C$1","v":0},{"$f":"'rent allocations'!G80*$C$1","v":0},{"$f":"'rent allocations'!H80*$C$1","v":0},{"$f":"'rent allocations'!I80*$C$1","v":0},{"$f":"'rent allocations'!J80*$C$1","v":0},{"$f":"'rent allocations'!K80*$C$1","v":0},{"$f":"'rent allocations'!L80*$C$1","v":0},{"$f":"'rent allocations'!M80*$C$1","v":0},{"$f":"'rent allocations'!N80*$C$1","v":0},{"$f":"'rent allocations'!O80*$C$1","v":0},{"$f":"'rent allocations'!P80*$C$1","v":0},{"$f":"'rent allocations'!Q80*$C$1","v":0},{"$f":"'rent allocations'!R80*$C$1","v":0},{"$f":"'rent allocations'!S80*$C$1","v":0},{"$f":"'rent allocations'!T80*$C$1","v":0},{"$f":"'rent allocations'!U80*$C$1","v":0},{"$f":"'rent allocations'!V80*$C$1","v":0},{"$f":"'rent allocations'!W80*$C$1","v":0},{"$f":"'rent allocations'!X80*$C$1","v":0},{"$f":"'rent allocations'!Y80*$C$1","v":0},{"$f":"'rent allocations'!Z80*$C$1","v":0},{"$f":"'rent allocations'!AA80*$C$1","v":0},{"$f":"'rent allocations'!AB80*$C$1","v":0},{"$f":"'rent allocations'!AC80*$C$1","v":0},{"$f":"'rent allocations'!AD80*$C$1","v":0},{"$f":"'rent allocations'!AE80*$C$1","v":0},{"$f":"'rent allocations'!AF80*$C$1","v":0},{"$f":"'rent allocations'!AG80*$C$1","v":0},{"$f":"'rent allocations'!AH80*$C$1","v":0},{"$f":"'rent allocations'!AI80*$C$1","v":0},{"$f":"'rent allocations'!AJ80*$C$1","v":0},{"$f":"'rent allocations'!AK80*$C$1","v":0},{"$f":"'rent allocations'!AL80*$C$1","v":0}]
["360 - University of Washington","360","University of Washington",{"$f":"'rent allocations'!D81*$C$1","v":0},{"$f":"'rent allocations'!E81*$C$1","v":0},{"$f":"'rent allocations'!F81*$C$1","v":0},{"$f":"'rent allocations'!G81*$C$1","v":0},{"$f":"'rent allocations'!H81*$C$1","v":0},{"$f":"'rent allocations'!I81*$C$1","v":0},{"$f":"'rent allocations'!J81*$C$1","v":0},{"$f":"'rent allocations'!K81*$C$1","v":0},{"$f":"'rent allocations'!L81*$C$1","v":0},{"$f":"'rent allocations'!M81*$C$1","v":0},{"$f":"'rent allocations'!N81*$C$1","v":0},{"$f":"'rent allocations'!O81*$C$1","v":0},{"$f":"'rent allocations'!P81*$C$1","v":0},{"$f":"'rent allocations'!Q81*$C$1","v":0},{"$f":"'rent allocations'!R81*$C$1","v":0},{"$f":"'rent allocations'!S81*$C$1","v":0},{"$f":"'rent allocations'!T81*$C$1","v":0},{"$f":"'rent allocations'!U81*$C$1","v":0},{"$f":"'rent allocations'!V81*$C$1","v":0},{"$f":"'rent allocations'!W81*$C$1","v":0},{"$f":"'rent allocations'!X81*$C$1","v":0},{"$f":"'rent allocations'!Y81*$C$1","v":0},{"$f":"'rent allocations'!Z81*$C$1","v":0},{"$f":"'rent allocations'!AA81*$C$1","v":0},{"$f":"'rent allocations'!AB81*$C$1","v":0},{"$f":"'rent allocations'!AC81*$C$1","v":0},{"$f":"'rent allocations'!AD81*$C$1","v":0},{"$f":"'rent allocations'!AE81*$C$1","v":0},{"$f":"'rent allocations'!AF81*$C$1","v":0},{"$f":"'rent allocations'!AG81*$C$1","v":0},{"$f":"'rent allocations'!AH81*$C$1","v":0},{"$f":"'rent allocations'!AI81*$C$1","v":0},{"$f":"'rent allocations'!AJ81*$C$1","v":0},{"$f":"'rent allocations'!AK81*$C$1","v":0},{"$f":"'rent allocations'!AL81*$C$1","v":0}]
["365 - Washington State University","365","Washington State University",{"$f":"'rent allocations'!D82*$C$1","v":0},{"$f":"'rent allocations'!E82*$C$1","v":0},{"$f":"'rent allocations'!F82*$C$1","v":0},{"$f":"'rent allocations'!G82*$C$1","v":0},{"$f":"'rent allocations'!H82*$C$1","v":0},{"$f":"'rent allocations'!I82*$C$1","v":0},{"$f":"'rent allocations'!J82*$C$1","v":0},{"$f":"'rent allocations'!K82*$C$1","v":0},{"$f":"'rent allocations'!L82*$C$1","v":0},{"$f":"'rent allocations'!M82*$C$1","v":0},{"$f":"'rent allocations'!N82*$C$1","v":0},{"$f":"'rent allocations'!O82*$C$1","v":0},{"$f":"'rent allocations'!P82*$C$1","v":0},{"$f":"'rent allocations'!Q82*$C$1","v":0},{"$f":"'rent allocations'!R82*$C$1","v":0},{"$f":"'rent allocations'!S82*$C$1","v":0},{"$f":"'rent allocations'!T82*$C$1","v":0},{"$f":"'rent allocations'!U82*$C$1","v":0},{"$f":"'rent allocations'!V82*$C$1","v":0},{"$f":"'rent allocations'!W82*$C$1","v":0},{"$f":"'rent allocations'!X82*$C$1","v":0},{"$f":"'rent allocations'!Y82*$C$1","v":0},{"$f":"'rent allocations'!Z82*$C$1","v":0},{"$f":"'rent allocations'!AA82*$C$1","v":0},{"$f":"'rent allocations'!AB82*$C$1","v":0},{"$f":"'rent allocations'!AC82*$C$1","v":0},{"$f":"'rent allocations'!AD82*$C$1","v":0},{"$f":"'rent allocations'!AE82*$C$1","v":0},{"$f":"'rent allocations'!AF82*$C$1","v":0},{"$f":"'rent allocations'!AG82*$C$1","v":0},{"$f":"'rent allocations'!AH82*$C$1","v":0},{"$f":"'rent allocations'!AI82*$C$1","v":0},{"$f":"'rent allocations'!AJ82*$C$1","v":0},{"$f":"'rent allocations'!AK82*$C$1","v":0},{"$f":"'rent allocations'!AL82*$C$1","v":0}]
["370 - Eastern Washington University","370","Eastern Washington University",{"$f":"'rent allocations'!D83*$C$1","v":0},{"$f":"'rent allocations'!E83*$C$1","v":0},{"$f":"'rent allocations'!F83*$C$1","v":0},{"$f":"'rent allocations'!G83*$C$1","v":0},{"$f":"'rent allocations'!H83*$C$1","v":0},{"$f":"'rent allocations'!I83*$C$1","v":0},{"$f":"'rent allocations'!J83*$C$1","v":0},{"$f":"'rent allocations'!K83*$C$1","v":0},{"$f":"'rent allocations'!L83*$C$1","v":0},{"$f":"'rent allocations'!M83*$C$1","v":0},{"$f":"'rent allocations'!N83*$C$1","v":0},{"$f":"'rent allocations'!O83*$C$1","v":0},{"$f":"'rent allocations'!P83*$C$1","v":0},{"$f":"'rent allocations'!Q83*$C$1","v":0},{"$f":"'rent allocations'!R83*$C$1","v":0},{"$f":"'rent allocations'!S83*$C$1","v":0},{"$f":"'rent allocations'!T83*$C$1","v":0},{"$f":"'rent allocations'!U83*$C$1","v":0},{"$f":"'rent allocations'!V83*$C$1","v":0},{"$f":"'rent allocations'!W83*$C$1","v":0},{"$f":"'rent allocations'!X83*$C$1","v":0},{"$f":"'rent allocations'!Y83*$C$1","v":0},{"$f":"'rent allocations'!Z83*$C$1","v":0},{"$f":"'rent allocations'!AA83*$C$1","v":0},{"$f":"'rent allocations'!AB83*$C$1","v":0},{"$f":"'rent allocations'!AC83*$C$1","v":0},{"$f":"'rent allocations'!AD83*$C$1","v":0},{"$f":"'rent allocations'!AE83*$C$1","v":0},{"$f":"'rent allocations'!AF83*$C$1","v":0},{"$f":"'rent allocations'!AG83*$C$1","v":0},{"$f":"'rent allocations'!AH83*$C$1","v":0},{"$f":"'rent allocations'!AI83*$C$1","v":0},{"$f":"'rent allocations'!AJ83*$C$1","v":0},{"$f":"'rent allocations'!AK83*$C$1","v":0},{"$f":"'rent allocations'!AL83*$C$1","v":0}]
["375 - Central Washington University","375","Central Washington University",{"$f":"'rent allocations'!D84*$C$1","v":0},{"$f":"'rent allocations'!E84*$C$1","v":0},{"$f":"'rent allocations'!F84*$C$1","v":0},{"$f":"'rent allocations'!G84*$C$1","v":0},{"$f":"'rent allocations'!H84*$C$1","v":0},{"$f":"'rent allocations'!I84*$C$1","v":0},{"$f":"'rent allocations'!J84*$C$1","v":0},{"$f":"'rent allocations'!K84*$C$1","v":0},{"$f":"'rent allocations'!L84*$C$1","v":0},{"$f":"'rent allocations'!M84*$C$1","v":0},{"$f":"'rent allocations'!N84*$C$1","v":0},{"$f":"'rent allocations'!O84*$C$1","v":0},{"$f":"'rent allocations'!P84*$C$1","v":0},{"$f":"'rent allocations'!Q84*$C$1","v":0},{"$f":"'rent allocations'!R84*$C$1","v":0},{"$f":"'rent allocations'!S84*$C$1","v":0},{"$f":"'rent allocations'!T84*$C$1","v":0},{"$f":"'rent allocations'!U84*$C$1","v":0},{"$f":"'rent allocations'!V84*$C$1","v":0},{"$f":"'rent allocations'!W84*$C$1","v":0},{"$f":"'rent allocations'!X84*$C$1","v":0},{"$f":"'rent allocations'!Y84*$C$1","v":0},{"$f":"'rent allocations'!Z84*$C$1","v":0},{"$f":"'rent allocations'!AA84*$C$1","v":0},{"$f":"'rent allocations'!AB84*$C$1","v":0},{"$f":"'rent allocations'!AC84*$C$1","v":0},{"$f":"'rent allocations'!AD84*$C$1","v":0},{"$f":"'rent allocations'!AE84*$C$1","v":0},{"$f":"'rent allocations'!AF84*$C$1","v":0},{"$f":"'rent allocations'!AG84*$C$1","v":0},{"$f":"'rent allocations'!AH84*$C$1","v":0},{"$f":"'rent allocations'!AI84*$C$1","v":0},{"$f":"'rent allocations'!AJ84*$C$1","v":0},{"$f":"'rent allocations'!AK84*$C$1","v":0},{"$f":"'rent allocations'!AL84*$C$1","v":0}]
["376 - The Evergreen State College","376","The Evergreen State College",{"$f":"'rent allocations'!D85*$C$1","v":0},{"$f":"'rent allocations'!E85*$C$1","v":0},{"$f":"'rent allocations'!F85*$C$1","v":0},{"$f":"'rent allocations'!G85*$C$1","v":0},{"$f":"'rent allocations'!H85*$C$1","v":0},{"$f":"'rent allocations'!I85*$C$1","v":0},{"$f":"'rent allocations'!J85*$C$1","v":0},{"$f":"'rent allocations'!K85*$C$1","v":0},{"$f":"'rent allocations'!L85*$C$1","v":0},{"$f":"'rent allocations'!M85*$C$1","v":0},{"$f":"'rent allocations'!N85*$C$1","v":0},{"$f":"'rent allocations'!O85*$C$1","v":0},{"$f":"'rent allocations'!P85*$C$1","v":0},{"$f":"'rent allocations'!Q85*$C$1","v":0},{"$f":"'rent allocations'!R85*$C$1","v":0},{"$f":"'rent allocations'!S85*$C$1","v":0},{"$f":"'rent allocations'!T85*$C$1","v":0},{"$f":"'rent allocations'!U85*$C$1","v":0},{"$f":"'rent allocations'!V85*$C$1","v":0},{"$f":"'rent allocations'!W85*$C$1","v":0},{"$f":"'rent allocations'!X85*$C$1","v":0},{"$f":"'rent allocations'!Y85*$C$1","v":0},{"$f":"'rent allocations'!Z85*$C$1","v":0},{"$f":"'rent allocations'!AA85*$C$1","v":0},{"$f":"'rent allocations'!AB85*$C$1","v":0},{"$f":"'rent allocations'!AC85*$C$1","v":0},{"$f":"'rent allocations'!AD85*$C$1","v":0},{"$f":"'rent allocations'!AE85*$C$1","v":0},{"$f":"'rent allocations'!AF85*$C$1","v":0},{"$f":"'rent allocations'!AG85*$C$1","v":0},{"$f":"'rent allocations'!AH85*$C$1","v":0},{"$f":"'rent allocations'!AI85*$C$1","v":0},{"$f":"'rent allocations'!AJ85*$C$1","v":0},{"$f":"'rent allocations'!AK85*$C$1","v":0},{"$f":"'rent allocations'!AL85*$C$1","v":0}]
["380 - Western Washington University","380","Western Washington University",{"$f":"'rent allocations'!D86*$C$1","v":0},{"$f":"'rent allocations'!E86*$C$1","v":0},{"$f":"'rent allocations'!F86*$C$1","v":0},{"$f":"'rent allocations'!G86*$C$1","v":0},{"$f":"'rent allocations'!H86*$C$1","v":0},{"$f":"'rent allocations'!I86*$C$1","v":0},{"$f":"'rent allocations'!J86*$C$1","v":0},{"$f":"'rent allocations'!K86*$C$1","v":0},{"$f":"'rent allocations'!L86*$C$1","v":0},{"$f":"'rent allocations'!M86*$C$1","v":0},{"$f":"'rent allocations'!N86*$C$1","v":0},{"$f":"'rent allocations'!O86*$C$1","v":0},{"$f":"'rent allocations'!P86*$C$1","v":0},{"$f":"'rent allocations'!Q86*$C$1","v":0},{"$f":"'rent allocations'!R86*$C$1","v":0},{"$f":"'rent allocations'!S86*$C$1","v":0},{"$f":"'rent allocations'!T86*$C$1","v":0},{"$f":"'rent allocations'!U86*$C$1","v":0},{"$f":"'rent allocations'!V86*$C$1","v":0},{"$f":"'rent allocations'!W86*$C$1","v":0},{"$f":"'rent allocations'!X86*$C$1","v":0},{"$f":"'rent allocations'!Y86*$C$1","v":0},{"$f":"'rent allocations'!Z86*$C$1","v":0},{"$f":"'rent allocations'!AA86*$C$1","v":0},{"$f":"'rent allocations'!AB86*$C$1","v":0},{"$f":"'rent allocations'!AC86*$C$1","v":0},{"$f":"'rent allocations'!AD86*$C$1","v":0},{"$f":"'rent allocations'!AE86*$C$1","v":0},{"$f":"'rent allocations'!AF86*$C$1","v":0},{"$f":"'rent allocations'!AG86*$C$1","v":0},{"$f":"'rent allocations'!AH86*$C$1","v":0},{"$f":"'rent allocations'!AI86*$C$1","v":0},{"$f":"'rent allocations'!AJ86*$C$1","v":0},{"$f":"'rent allocations'!AK86*$C$1","v":0},{"$f":"'rent allocations'!AL86*$C$1","v":0}]
["387 - Washington State Arts Commission","387","Washington State Arts Commission",{"$f":"'rent allocations'!D87*$C$1","v":0},{"$f":"'rent allocations'!E87*$C$1","v":0},{"$f":"'rent allocations'!F87*$C$1","v":0},{"$f":"'rent allocations'!G87*$C$1","v":0},{"$f":"'rent allocations'!H87*$C$1","v":0},{"$f":"'rent allocations'!I87*$C$1","v":0},{"$f":"'rent allocations'!J87*$C$1","v":0},{"$f":"'rent allocations'!K87*$C$1","v":0},{"$f":"'rent allocations'!L87*$C$1","v":0},{"$f":"'rent allocations'!M87*$C$1","v":0},{"$f":"'rent allocations'!N87*$C$1","v":0},{"$f":"'rent allocations'!O87*$C$1","v":0},{"$f":"'rent allocations'!P87*$C$1","v":0},{"$f":"'rent allocations'!Q87*$C$1","v":0},{"$f":"'rent allocations'!R87*$C$1","v":0},{"$f":"'rent allocations'!S87*$C$1","v":0},{"$f":"'rent allocations'!T87*$C$1","v":0},{"$f":"'rent allocations'!U87*$C$1","v":0},{"$f":"'rent allocations'!V87*$C$1","v":0},{"$f":"'rent allocations'!W87*$C$1","v":0},{"$f":"'rent allocations'!X87*$C$1","v":0},{"$f":"'rent allocations'!Y87*$C$1","v":0},{"$f":"'rent allocations'!Z87*$C$1","v":0},{"$f":"'rent allocations'!AA87*$C$1","v":0},{"$f":"'rent allocations'!AB87*$C$1","v":0},{"$f":"'rent allocations'!AC87*$C$1","v":0},{"$f":"'rent allocations'!AD87*$C$1","v":0},{"$f":"'rent allocations'!AE87*$C$1","v":0},{"$f":"'rent allocations'!AF87*$C$1","v":0},{"$f":"'rent allocations'!AG87*$C$1","v":0},{"$f":"'rent allocations'!AH87*$C$1","v":0},{"$f":"'rent allocations'!AI87*$C$1","v":0},{"$f":"'rent allocations'!AJ87*$C$1","v":0},{"$f":"'rent allocations'!AK87*$C$1","v":0},{"$f":"'rent allocations'!AL87*$C$1","v":0}]
["390 - Washington State Historical Society","390","Washington State Historical Society",{"$f":"'rent allocations'!D88*$C$1","v":0},{"$f":"'rent allocations'!E88*$C$1","v":0},{"$f":"'rent allocations'!F88*$C$1","v":0},{"$f":"'rent allocations'!G88*$C$1","v":0},{"$f":"'rent allocations'!H88*$C$1","v":0},{"$f":"'rent allocations'!I88*$C$1","v":0},{"$f":"'rent allocations'!J88*$C$1","v":0},{"$f":"'rent allocations'!K88*$C$1","v":0},{"$f":"'rent allocations'!L88*$C$1","v":0},{"$f":"'rent allocations'!M88*$C$1","v":0},{"$f":"'rent allocations'!N88*$C$1","v":0},{"$f":"'rent allocations'!O88*$C$1","v":0},{"$f":"'rent allocations'!P88*$C$1","v":0},{"$f":"'rent allocations'!Q88*$C$1","v":0},{"$f":"'rent allocations'!R88*$C$1","v":0},{"$f":"'rent allocations'!S88*$C$1","v":0},{"$f":"'rent allocations'!T88*$C$1","v":0},{"$f":"'rent allocations'!U88*$C$1","v":0},{"$f":"'rent allocations'!V88*$C$1","v":0},{"$f":"'rent allocations'!W88*$C$1","v":0},{"$f":"'rent allocations'!X88*$C$1","v":0},{"$f":"'rent allocations'!Y88*$C$1","v":0},{"$f":"'rent allocations'!Z88*$C$1","v":0},{"$f":"'rent allocations'!AA88*$C$1","v":0},{"$f":"'rent allocations'!AB88*$C$1","v":0},{"$f":"'rent allocations'!AC88*$C$1","v":0},{"$f":"'rent allocations'!AD88*$C$1","v":0},{"$f":"'rent allocations'!AE88*$C$1","v":0},{"$f":"'rent allocations'!AF88*$C$1","v":0},{"$f":"'rent allocations'!AG88*$C$1","v":0},{"$f":"'rent allocations'!AH88*$C$1","v":0},{"$f":"'rent allocations'!AI88*$C$1","v":0},{"$f":"'rent allocations'!AJ88*$C$1","v":0},{"$f":"'rent allocations'!AK88*$C$1","v":0},{"$f":"'rent allocations'!AL88*$C$1","v":0}]
["395 - Eastern Washington State Historical Society","395","Eastern Washington State Historical Society",{"$f":"'rent allocations'!D89*$C$1","v":0},{"$f":"'rent allocations'!E89*$C$1","v":0},{"$f":"'rent allocations'!F89*$C$1","v":0},{"$f":"'rent allocations'!G89*$C$1","v":0},{"$f":"'rent allocations'!H89*$C$1","v":0},{"$f":"'rent allocations'!I89*$C$1","v":0},{"$f":"'rent allocations'!J89*$C$1","v":0},{"$f":"'rent allocations'!K89*$C$1","v":0},{"$f":"'rent allocations'!L89*$C$1","v":0},{"$f":"'rent allocations'!M89*$C$1","v":0},{"$f":"'rent allocations'!N89*$C$1","v":0},{"$f":"'rent allocations'!O89*$C$1","v":0},{"$f":"'rent allocations'!P89*$C$1","v":0},{"$f":"'rent allocations'!Q89*$C$1","v":0},{"$f":"'rent allocations'!R89*$C$1","v":0},{"$f":"'rent allocations'!S89*$C$1","v":0},{"$f":"'rent allocations'!T89*$C$1","v":0},{"$f":"'rent allocations'!U89*$C$1","v":0},{"$f":"'rent allocations'!V89*$C$1","v":0},{"$f":"'rent allocations'!W89*$C$1","v":0},{"$f":"'rent allocations'!X89*$C$1","v":0},{"$f":"'rent allocations'!Y89*$C$1","v":0},{"$f":"'rent allocations'!Z89*$C$1","v":0},{"$f":"'rent allocations'!AA89*$C$1","v":0},{"$f":"'rent allocations'!AB89*$C$1","v":0},{"$f":"'rent allocations'!AC89*$C$1","v":0},{"$f":"'rent allocations'!AD89*$C$1","v":0},{"$f":"'rent allocations'!AE89*$C$1","v":0},{"$f":"'rent allocations'!AF89*$C$1","v":0},{"$f":"'rent allocations'!AG89*$C$1","v":0},{"$f":"'rent allocations'!AH89*$C$1","v":0},{"$f":"'rent allocations'!AI89*$C$1","v":0},{"$f":"'rent allocations'!AJ89*$C$1","v":0},{"$f":"'rent allocations'!AK89*$C$1","v":0},{"$f":"'rent allocations'!AL89*$C$1","v":0}]
["405 - Department of Transportation","405","Department of Transportation",{"$f":"'rent allocations'!D90*$C$1","v":376873.65768092521},{"$f":"'rent allocations'!E90*$C$1","v":0},{"$f":"'rent allocations'!F90*$C$1","v":0},{"$f":"'rent allocations'!G90*$C$1","v":0},{"$f":"'rent allocations'!H90*$C$1","v":0},{"$f":"'rent allocations'!I90*$C$1","v":0},{"$f":"'rent allocations'!J90*$C$1","v":0},{"$f":"'rent allocations'!K90*$C$1","v":0},{"$f":"'rent allocations'!L90*$C$1","v":0},{"$f":"'rent allocations'!M90*$C$1","v":0},{"$f":"'rent allocations'!N90*$C$1","v":376873.65768092521},{"$f":"'rent allocations'!O90*$C$1","v":0},{"$f":"'rent allocations'!P90*$C$1","v":0},{"$f":"'rent allocations'!Q90*$C$1","v":0},{"$f":"'rent allocations'!R90*$C$1","v":0},{"$f":"'rent allocations'!S90*$C$1","v":0},{"$f":"'rent allocations'!T90*$C$1","v":0},{"$f":"'rent allocations'!U90*$C$1","v":0},{"$f":"'rent allocations'!V90*$C$1","v":0},{"$f":"'rent allocations'!W90*$C$1","v":0},{"$f":"'rent allocations'!X90*$C$1","v":0},{"$f":"'rent allocations'!Y90*$C$1","v":0},{"$f":"'rent allocations'!Z90*$C$1","v":0},{"$f":"'rent allocations'!AA90*$C$1","v":0},{"$f":"'rent allocations'!AB90*$C$1","v":0},{"$f":"'rent allocations'!AC90*$C$1","v":0},{"$f":"'rent allocations'!AD90*$C$1","v":0},{"$f":"'rent allocations'!AE90*$C$1","v":0},{"$f":"'rent allocations'!AF90*$C$1","v":0},{"$f":"'rent allocations'!AG90*$C$1","v":0},{"$f":"'rent allocations'!AH90*$C$1","v":0},{"$f":"'rent allocations'!AI90*$C$1","v":0},{"$f":"'rent allocations'!AJ90*$C$1","v":0},{"$f":"'rent allocations'!AK90*$C$1","v":0},{"$f":"'rent allocations'!AL90*$C$1","v":0}]
["406 - County Road Administration Board","406","County Road Administration Board",{"$f":"'rent allocations'!D91*$C$1","v":0},{"$f":"'rent allocations'!E91*$C$1","v":0},{"$f":"'rent allocations'!F91*$C$1","v":0},{"$f":"'rent allocations'!G91*$C$1","v":0},{"$f":"'rent allocations'!H91*$C$1","v":0},{"$f":"'rent allocations'!I91*$C$1","v":0},{"$f":"'rent allocations'!J91*$C$1","v":0},{"$f":"'rent allocations'!K91*$C$1","v":0},{"$f":"'rent allocations'!L91*$C$1","v":0},{"$f":"'rent allocations'!M91*$C$1","v":0},{"$f":"'rent allocations'!N91*$C$1","v":0},{"$f":"'rent allocations'!O91*$C$1","v":0},{"$f":"'rent allocations'!P91*$C$1","v":0},{"$f":"'rent allocations'!Q91*$C$1","v":0},{"$f":"'rent allocations'!R91*$C$1","v":0},{"$f":"'rent allocations'!S91*$C$1","v":0},{"$f":"'rent allocations'!T91*$C$1","v":0},{"$f":"'rent allocations'!U91*$C$1","v":0},{"$f":"'rent allocations'!V91*$C$1","v":0},{"$f":"'rent allocations'!W91*$C$1","v":0},{"$f":"'rent allocations'!X91*$C$1","v":0},{"$f":"'rent allocations'!Y91*$C$1","v":0},{"$f":"'rent allocations'!Z91*$C$1","v":0},{"$f":"'rent allocations'!AA91*$C$1","v":0},{"$f":"'rent allocations'!AB91*$C$1","v":0},{"$f":"'rent allocations'!AC91*$C$1","v":0},{"$f":"'rent allocations'!AD91*$C$1","v":0},{"$f":"'rent allocations'!AE91*$C$1","v":0},{"$f":"'rent allocations'!AF91*$C$1","v":0},{"$f":"'rent allocations'!AG91*$C$1","v":0},{"$f":"'rent allocations'!AH91*$C$1","v":0},{"$f":"'rent allocations'!AI91*$C$1","v":0},{"$f":"'rent allocations'!AJ91*$C$1","v":0},{"$f":"'rent allocations'!AK91*$C$1","v":0},{"$f":"'rent allocations'!AL91*$C$1","v":0}]
["407 - Transportation Improvement Board","407","Transportation Improvement Board",{"$f":"'rent allocations'!D92*$C$1","v":0},{"$f":"'rent allocations'!E92*$C$1","v":0},{"$f":"'rent allocations'!F92*$C$1","v":0},{"$f":"'rent allocations'!G92*$C$1","v":0},{"$f":"'rent allocations'!H92*$C$1","v":0},{"$f":"'rent allocations'!I92*$C$1","v":0},{"$f":"'rent allocations'!J92*$C$1","v":0},{"$f":"'rent allocations'!K92*$C$1","v":0},{"$f":"'rent allocations'!L92*$C$1","v":0},{"$f":"'rent allocations'!M92*$C$1","v":0},{"$f":"'rent allocations'!N92*$C$1","v":0},{"$f":"'rent allocations'!O92*$C$1","v":0},{"$f":"'rent allocations'!P92*$C$1","v":0},{"$f":"'rent allocations'!Q92*$C$1","v":0},{"$f":"'rent allocations'!R92*$C$1","v":0},{"$f":"'rent allocations'!S92*$C$1","v":0},{"$f":"'rent allocations'!T92*$C$1","v":0},{"$f":"'rent allocations'!U92*$C$1","v":0},{"$f":"'rent allocations'!V92*$C$1","v":0},{"$f":"'rent allocations'!W92*$C$1","v":0},{"$f":"'rent allocations'!X92*$C$1","v":0},{"$f":"'rent allocations'!Y92*$C$1","v":0},{"$f":"'rent allocations'!Z92*$C$1","v":0},{"$f":"'rent allocations'!AA92*$C$1","v":0},{"$f":"'rent allocations'!AB92*$C$1","v":0},{"$f":"'rent allocations'!AC92*$C$1","v":0},{"$f":"'rent allocations'!AD92*$C$1","v":0},{"$f":"'rent allocations'!AE92*$C$1","v":0},{"$f":"'rent allocations'!AF92*$C$1","v":0},{"$f":"'rent allocations'!AG92*$C$1","v":0},{"$f":"'rent allocations'!AH92*$C$1","v":0},{"$f":"'rent allocations'!AI92*$C$1","v":0},{"$f":"'rent allocations'!AJ92*$C$1","v":0},{"$f":"'rent allocations'!AK92*$C$1","v":0},{"$f":"'rent allocations'!AL92*$C$1","v":0}]
["410 - Transportation Commission","410","Transportation Commission",{"$f":"'rent allocations'!D93*$C$1","v":0},{"$f":"'rent allocations'!E93*$C$1","v":0},{"$f":"'rent allocations'!F93*$C$1","v":0},{"$f":"'rent allocations'!G93*$C$1","v":0},{"$f":"'rent allocations'!H93*$C$1","v":0},{"$f":"'rent allocations'!I93*$C$1","v":0},{"$f":"'rent allocations'!J93*$C$1","v":0},{"$f":"'rent allocations'!K93*$C$1","v":0},{"$f":"'rent allocations'!L93*$C$1","v":0},{"$f":"'rent allocations'!M93*$C$1","v":0},{"$f":"'rent allocations'!N93*$C$1","v":0},{"$f":"'rent allocations'!O93*$C$1","v":0},{"$f":"'rent allocations'!P93*$C$1","v":0},{"$f":"'rent allocations'!Q93*$C$1","v":0},{"$f":"'rent allocations'!R93*$C$1","v":0},{"$f":"'rent allocations'!S93*$C$1","v":0},{"$f":"'rent allocations'!T93*$C$1","v":0},{"$f":"'rent allocations'!U93*$C$1","v":0},{"$f":"'rent allocations'!V93*$C$1","v":0},{"$f":"'rent allocations'!W93*$C$1","v":0},{"$f":"'rent allocations'!X93*$C$1","v":0},{"$f":"'rent allocations'!Y93*$C$1","v":0},{"$f":"'rent allocations'!Z93*$C$1","v":0},{"$f":"'rent allocations'!AA93*$C$1","v":0},{"$f":"'rent allocations'!AB93*$C$1","v":0},{"$f":"'rent allocations'!AC93*$C$1","v":0},{"$f":"'rent allocations'!AD93*$C$1","v":0},{"$f":"'rent allocations'!AE93*$C$1","v":0},{"$f":"'rent allocations'!AF93*$C$1","v":0},{"$f":"'rent allocations'!AG93*$C$1","v":0},{"$f":"'rent allocations'!AH93*$C$1","v":0},{"$f":"'rent allocations'!AI93*$C$1","v":0},{"$f":"'rent allocations'!AJ93*$C$1","v":0},{"$f":"'rent allocations'!AK93*$C$1","v":0},{"$f":"'rent allocations'!AL93*$C$1","v":0}]
["411 - Freight Mobility Strategic Investment Board","411","Freight Mobility Strategic Investment Board",{"$f":"'rent allocations'!D94*$C$1","v":0},{"$f":"'rent allocations'!E94*$C$1","v":0},{"$f":"'rent allocations'!F94*$C$1","v":0},{"$f":"'rent allocations'!G94*$C$1","v":0},{"$f":"'rent allocations'!H94*$C$1","v":0},{"$f":"'rent allocations'!I94*$C$1","v":0},{"$f":"'rent allocations'!J94*$C$1","v":0},{"$f":"'rent allocations'!K94*$C$1","v":0},{"$f":"'rent allocations'!L94*$C$1","v":0},{"$f":"'rent allocations'!M94*$C$1","v":0},{"$f":"'rent allocations'!N94*$C$1","v":0},{"$f":"'rent allocations'!O94*$C$1","v":0},{"$f":"'rent allocations'!P94*$C$1","v":0},{"$f":"'rent allocations'!Q94*$C$1","v":0},{"$f":"'rent allocations'!R94*$C$1","v":0},{"$f":"'rent allocations'!S94*$C$1","v":0},{"$f":"'rent allocations'!T94*$C$1","v":0},{"$f":"'rent allocations'!U94*$C$1","v":0},{"$f":"'rent allocations'!V94*$C$1","v":0},{"$f":"'rent allocations'!W94*$C$1","v":0},{"$f":"'rent allocations'!X94*$C$1","v":0},{"$f":"'rent allocations'!Y94*$C$1","v":0},{"$f":"'rent allocations'!Z94*$C$1","v":0},{"$f":"'rent allocations'!AA94*$C$1","v":0},{"$f":"'rent allocations'!AB94*$C$1","v":0},{"$f":"'rent allocations'!AC94*$C$1","v":0},{"$f":"'rent allocations'!AD94*$C$1","v":0},{"$f":"'rent allocations'!AE94*$C$1","v":0},{"$f":"'rent allocations'!AF94*$C$1","v":0},{"$f":"'rent allocations'!AG94*$C$1","v":0},{"$f":"'rent allocations'!AH94*$C$1","v":0},{"$f":"'rent allocations'!AI94*$C$1","v":0},{"$f":"'rent allocations'!AJ94*$C$1","v":0},{"$f":"'rent allocations'!AK94*$C$1","v":0},{"$f":"'rent allocations'!AL94*$C$1","v":0}]
["460 - Columbia River Gorge Commission","460","Columbia River Gorge Commission",{"$f":"'rent allocations'!D95*$C$1","v":0},{"$f":"'rent allocations'!E95*$C$1","v":0},{"$f":"'rent allocations'!F95*$C$1","v":0},{"$f":"'rent allocations'!G95*$C$1","v":0},{"$f":"'rent allocations'!H95*$C$1","v":0},{"$f":"'rent allocations'!I95*$C$1","v":0},{"$f":"'rent allocations'!J95*$C$1","v":0},{"$f":"'rent allocations'!K95*$C$1","v":0},{"$f":"'rent allocations'!L95*$C$1","v":0},{"$f":"'rent allocations'!M95*$C$1","v":0},{"$f":"'rent allocations'!N95*$C$1","v":0},{"$f":"'rent allocations'!O95*$C$1","v":0},{"$f":"'rent allocations'!P95*$C$1","v":0},{"$f":"'rent allocations'!Q95*$C$1","v":0},{"$f":"'rent allocations'!R95*$C$1","v":0},{"$f":"'rent allocations'!S95*$C$1","v":0},{"$f":"'rent allocations'!T95*$C$1","v":0},{"$f":"'rent allocations'!U95*$C$1","v":0},{"$f":"'rent allocations'!V95*$C$1","v":0},{"$f":"'rent allocations'!W95*$C$1","v":0},{"$f":"'rent allocations'!X95*$C$1","v":0},{"$f":"'rent allocations'!Y95*$C$1","v":0},{"$f":"'rent allocations'!Z95*$C$1","v":0},{"$f":"'rent allocations'!AA95*$C$1","v":0},{"$f":"'rent allocations'!AB95*$C$1","v":0},{"$f":"'rent allocations'!AC95*$C$1","v":0},{"$f":"'rent allocations'!AD95*$C$1","v":0},{"$f":"'rent allocations'!AE95*$C$1","v":0},{"$f":"'rent allocations'!AF95*$C$1","v":0},{"$f":"'rent allocations'!AG95*$C$1","v":0},{"$f":"'rent allocations'!AH95*$C$1","v":0},{"$f":"'rent allocations'!AI95*$C$1","v":0},{"$f":"'rent allocations'!AJ95*$C$1","v":0},{"$f":"'rent allocations'!AK95*$C$1","v":0},{"$f":"'rent allocations'!AL95*$C$1","v":0}]
["461 - Department of Ecology","461","Department of Ecology",{"$f":"'rent allocations'!D96*$C$1","v":0},{"$f":"'rent allocations'!E96*$C$1","v":0},{"$f":"'rent allocations'!F96*$C$1","v":0},{"$f":"'rent allocations'!G96*$C$1","v":0},{"$f":"'rent allocations'!H96*$C$1","v":0},{"$f":"'rent allocations'!I96*$C$1","v":0},{"$f":"'rent allocations'!J96*$C$1","v":0},{"$f":"'rent allocations'!K96*$C$1","v":0},{"$f":"'rent allocations'!L96*$C$1","v":0},{"$f":"'rent allocations'!M96*$C$1","v":0},{"$f":"'rent allocations'!N96*$C$1","v":0},{"$f":"'rent allocations'!O96*$C$1","v":0},{"$f":"'rent allocations'!P96*$C$1","v":0},{"$f":"'rent allocations'!Q96*$C$1","v":0},{"$f":"'rent allocations'!R96*$C$1","v":0},{"$f":"'rent allocations'!S96*$C$1","v":0},{"$f":"'rent allocations'!T96*$C$1","v":0},{"$f":"'rent allocations'!U96*$C$1","v":0},{"$f":"'rent allocations'!V96*$C$1","v":0},{"$f":"'rent allocations'!W96*$C$1","v":0},{"$f":"'rent allocations'!X96*$C$1","v":0},{"$f":"'rent allocations'!Y96*$C$1","v":0},{"$f":"'rent allocations'!Z96*$C$1","v":0},{"$f":"'rent allocations'!AA96*$C$1","v":0},{"$f":"'rent allocations'!AB96*$C$1","v":0},{"$f":"'rent allocations'!AC96*$C$1","v":0},{"$f":"'rent allocations'!AD96*$C$1","v":0},{"$f":"'rent allocations'!AE96*$C$1","v":0},{"$f":"'rent allocations'!AF96*$C$1","v":0},{"$f":"'rent allocations'!AG96*$C$1","v":0},{"$f":"'rent allocations'!AH96*$C$1","v":0},{"$f":"'rent allocations'!AI96*$C$1","v":0},{"$f":"'rent allocations'!AJ96*$C$1","v":0},{"$f":"'rent allocations'!AK96*$C$1","v":0},{"$f":"'rent allocations'!AL96*$C$1","v":0}]
["462 - Pollution Liability Insurance Program","462","Pollution Liability Insurance Program",{"$f":"'rent allocations'!D97*$C$1","v":0},{"$f":"'rent allocations'!E97*$C$1","v":0},{"$f":"'rent allocations'!F97*$C$1","v":0},{"$f":"'rent allocations'!G97*$C$1","v":0},{"$f":"'rent allocations'!H97*$C$1","v":0},{"$f":"'rent allocations'!I97*$C$1","v":0},{"$f":"'rent allocations'!J97*$C$1","v":0},{"$f":"'rent allocations'!K97*$C$1","v":0},{"$f":"'rent allocations'!L97*$C$1","v":0},{"$f":"'rent allocations'!M97*$C$1","v":0},{"$f":"'rent allocations'!N97*$C$1","v":0},{"$f":"'rent allocations'!O97*$C$1","v":0},{"$f":"'rent allocations'!P97*$C$1","v":0},{"$f":"'rent allocations'!Q97*$C$1","v":0},{"$f":"'rent allocations'!R97*$C$1","v":0},{"$f":"'rent allocations'!S97*$C$1","v":0},{"$f":"'rent allocations'!T97*$C$1","v":0},{"$f":"'rent allocations'!U97*$C$1","v":0},{"$f":"'rent allocations'!V97*$C$1","v":0},{"$f":"'rent allocations'!W97*$C$1","v":0},{"$f":"'rent allocations'!X97*$C$1","v":0},{"$f":"'rent allocations'!Y97*$C$1","v":0},{"$f":"'rent allocations'!Z97*$C$1","v":0},{"$f":"'rent allocations'!AA97*$C$1","v":0},{"$f":"'rent allocations'!AB97*$C$1","v":0},{"$f":"'rent allocations'!AC97*$C$1","v":0},{"$f":"'rent allocations'!AD97*$C$1","v":0},{"$f":"'rent allocations'!AE97*$C$1","v":0},{"$f":"'rent allocations'!AF97*$C$1","v":0},{"$f":"'rent allocations'!AG97*$C$1","v":0},{"$f":"'rent allocations'!AH97*$C$1","v":0},{"$f":"'rent allocations'!AI97*$C$1","v":0},{"$f":"'rent allocations'!AJ97*$C$1","v":0},{"$f":"'rent allocations'!AK97*$C$1","v":0},{"$f":"'rent allocations'!AL97*$C$1","v":0}]
["465 - State Parks and Recreation Commission","465","State Parks and Recreation Commission",{"$f":"'rent allocations'!D98*$C$1","v":0},{"$f":"'rent allocations'!E98*$C$1","v":0},{"$f":"'rent allocations'!F98*$C$1","v":0},{"$f":"'rent allocations'!G98*$C$1","v":0},{"$f":"'rent allocations'!H98*$C$1","v":0},{"$f":"'rent allocations'!I98*$C$1","v":0},{"$f":"'rent allocations'!J98*$C$1","v":0},{"$f":"'rent allocations'!K98*$C$1","v":0},{"$f":"'rent allocations'!L98*$C$1","v":0},{"$f":"'rent allocations'!M98*$C$1","v":0},{"$f":"'rent allocations'!N98*$C$1","v":0},{"$f":"'rent allocations'!O98*$C$1","v":0},{"$f":"'rent allocations'!P98*$C$1","v":0},{"$f":"'rent allocations'!Q98*$C$1","v":0},{"$f":"'rent allocations'!R98*$C$1","v":0},{"$f":"'rent allocations'!S98*$C$1","v":0},{"$f":"'rent allocations'!T98*$C$1","v":0},{"$f":"'rent allocations'!U98*$C$1","v":0},{"$f":"'rent allocations'!V98*$C$1","v":0},{"$f":"'rent allocations'!W98*$C$1","v":0},{"$f":"'rent allocations'!X98*$C$1","v":0},{"$f":"'rent allocations'!Y98*$C$1","v":0},{"$f":"'rent allocations'!Z98*$C$1","v":0},{"$f":"'rent allocations'!AA98*$C$1","v":0},{"$f":"'rent allocations'!AB98*$C$1","v":0},{"$f":"'rent allocations'!AC98*$C$1","v":0},{"$f":"'rent allocations'!AD98*$C$1","v":0},{"$f":"'rent allocations'!AE98*$C$1","v":0},{"$f":"'rent allocations'!AF98*$C$1","v":0},{"$f":"'rent allocations'!AG98*$C$1","v":0},{"$f":"'rent allocations'!AH98*$C$1","v":0},{"$f":"'rent allocations'!AI98*$C$1","v":0},{"$f":"'rent allocations'!AJ98*$C$1","v":0},{"$f":"'rent allocations'!AK98*$C$1","v":0},{"$f":"'rent allocations'!AL98*$C$1","v":0}]
["467 - Recreation and Conservation Funding Board","467","Recreation and Conservation Funding Board",{"$f":"'rent allocations'!D99*$C$1","v":21063.788438786836},{"$f":"'rent allocations'!E99*$C$1","v":0},{"$f":"'rent allocations'!F99*$C$1","v":0},{"$f":"'rent allocations'!G99*$C$1","v":0},{"$f":"'rent allocations'!H99*$C$1","v":0},{"$f":"'rent allocations'!I99*$C$1","v":0},{"$f":"'rent allocations'!J99*$C$1","v":0},{"$f":"'rent allocations'!K99*$C$1","v":0},{"$f":"'rent allocations'!L99*$C$1","v":21063.788438786836},{"$f":"'rent allocations'!M99*$C$1","v":0},{"$f":"'rent allocations'!N99*$C$1","v":0},{"$f":"'rent allocations'!O99*$C$1","v":0},{"$f":"'rent allocations'!P99*$C$1","v":0},{"$f":"'rent allocations'!Q99*$C$1","v":0},{"$f":"'rent allocations'!R99*$C$1","v":0},{"$f":"'rent allocations'!S99*$C$1","v":0},{"$f":"'rent allocations'!T99*$C$1","v":0},{"$f":"'rent allocations'!U99*$C$1","v":0},{"$f":"'rent allocations'!V99*$C$1","v":0},{"$f":"'rent allocations'!W99*$C$1","v":0},{"$f":"'rent allocations'!X99*$C$1","v":0},{"$f":"'rent allocations'!Y99*$C$1","v":0},{"$f":"'rent allocations'!Z99*$C$1","v":0},{"$f":"'rent allocations'!AA99*$C$1","v":0},{"$f":"'rent allocations'!AB99*$C$1","v":0},{"$f":"'rent allocations'!AC99*$C$1","v":0},{"$f":"'rent allocations'!AD99*$C$1","v":0},{"$f":"'rent allocations'!AE99*$C$1","v":0},{"$f":"'rent allocations'!AF99*$C$1","v":0},{"$f":"'rent allocations'!AG99*$C$1","v":0},{"$f":"'rent allocations'!AH99*$C$1","v":0},{"$f":"'rent allocations'!AI99*$C$1","v":0},{"$f":"'rent allocations'!AJ99*$C$1","v":0},{"$f":"'rent allocations'!AK99*$C$1","v":0},{"$f":"'rent allocations'!AL99*$C$1","v":0}]
["468 - Environmental and Land Use Hearings Office","468","Environmental and Land Use Hearings Office",{"$f":"'rent allocations'!D100*$C$1","v":0},{"$f":"'rent allocations'!E100*$C$1","v":0},{"$f":"'rent allocations'!F100*$C$1","v":0},{"$f":"'rent allocations'!G100*$C$1","v":0},{"$f":"'rent allocations'!H100*$C$1","v":0},{"$f":"'rent allocations'!I100*$C$1","v":0},{"$f":"'rent allocations'!J100*$C$1","v":0},{"$f":"'rent allocations'!K100*$C$1","v":0},{"$f":"'rent allocations'!L100*$C$1","v":0},{"$f":"'rent allocations'!M100*$C$1","v":0},{"$f":"'rent allocations'!N100*$C$1","v":0},{"$f":"'rent allocations'!O100*$C$1","v":0},{"$f":"'rent allocations'!P100*$C$1","v":0},{"$f":"'rent allocations'!Q100*$C$1","v":0},{"$f":"'rent allocations'!R100*$C$1","v":0},{"$f":"'rent allocations'!S100*$C$1","v":0},{"$f":"'rent allocations'!T100*$C$1","v":0},{"$f":"'rent allocations'!U100*$C$1","v":0},{"$f":"'rent allocations'!V100*$C$1","v":0},{"$f":"'rent allocations'!W100*$C$1","v":0},{"$f":"'rent allocations'!X100*$C$1","v":0},{"$f":"'rent allocations'!Y100*$C$1","v":0},{"$f":"'rent allocations'!Z100*$C$1","v":0},{"$f":"'rent allocations'!AA100*$C$1","v":0},{"$f":"'rent allocations'!AB100*$C$1","v":0},{"$f":"'rent allocations'!AC100*$C$1","v":0},{"$f":"'rent allocations'!AD100*$C$1","v":0},{"$f":"'rent allocations'!AE100*$C$1","v":0},{"$f":"'rent allocations'!AF100*$C$1","v":0},{"$f":"'rent allocations'!AG100*$C$1","v":0},{"$f":"'rent allocations'!AH100*$C$1","v":0},{"$f":"'rent allocations'!AI100*$C$1","v":0},{"$f":"'rent allocations'!AJ100*$C$1","v":0},{"$f":"'rent allocations'!AK100*$C$1","v":0},{"$f":"'rent allocations'!AL100*$C$1","v":0}]
["471 - State Conservation Commission","471","State Conservation Commission",{"$f":"'rent allocations'!D101*$C$1","v":0},{"$f":"'rent allocations'!E101*$C$1","v":0},{"$f":"'rent allocations'!F101*$C$1","v":0},{"$f":"'rent allocations'!G101*$C$1","v":0},{"$f":"'rent allocations'!H101*$C$1","v":0},{"$f":"'rent allocations'!I101*$C$1","v":0},{"$f":"'rent allocations'!J101*$C$1","v":0},{"$f":"'rent allocations'!K101*$C$1","v":0},{"$f":"'rent allocations'!L101*$C$1","v":0},{"$f":"'rent allocations'!M101*$C$1","v":0},{"$f":"'rent allocations'!N101*$C$1","v":0},{"$f":"'rent allocations'!O101*$C$1","v":0},{"$f":"'rent allocations'!P101*$C$1","v":0},{"$f":"'rent allocations'!Q101*$C$1","v":0},{"$f":"'rent allocations'!R101*$C$1","v":0},{"$f":"'rent allocations'!S101*$C$1","v":0},{"$f":"'rent allocations'!T101*$C$1","v":0},{"$f":"'rent allocations'!U101*$C$1","v":0},{"$f":"'rent allocations'!V101*$C$1","v":0},{"$f":"'rent allocations'!W101*$C$1","v":0},{"$f":"'rent allocations'!X101*$C$1","v":0},{"$f":"'rent allocations'!Y101*$C$1","v":0},{"$f":"'rent allocations'!Z101*$C$1","v":0},{"$f":"'rent allocations'!AA101*$C$1","v":0},{"$f":"'rent allocations'!AB101*$C$1","v":0},{"$f":"'rent allocations'!AC101*$C$1","v":0},{"$f":"'rent allocations'!AD101*$C$1","v":0},{"$f":"'rent allocations'!AE101*$C$1","v":0},{"$f":"'rent allocations'!AF101*$C$1","v":0},{"$f":"'rent allocations'!AG101*$C$1","v":0},{"$f":"'rent allocations'!AH101*$C$1","v":0},{"$f":"'rent allocations'!AI101*$C$1","v":0},{"$f":"'rent allocations'!AJ101*$C$1","v":0},{"$f":"'rent allocations'!AK101*$C$1","v":0},{"$f":"'rent allocations'!AL101*$C$1","v":0}]
["477 - Department of Fish and Wildlife","477","Department of Fish and Wildlife",{"$f":"'rent allocations'!D102*$C$1","v":250848.78179068072},{"$f":"'rent allocations'!E102*$C$1","v":0},{"$f":"'rent allocations'!F102*$C$1","v":0},{"$f":"'rent allocations'!G102*$C$1","v":0},{"$f":"'rent allocations'!H102*$C$1","v":0},{"$f":"'rent allocations'!I102*$C$1","v":0},{"$f":"'rent allocations'!J102*$C$1","v":0},{"$f":"'rent allocations'!K102*$C$1","v":0},{"$f":"'rent allocations'!L102*$C$1","v":250848.78179068072},{"$f":"'rent allocations'!M102*$C$1","v":0},{"$f":"'rent allocations'!N102*$C$1","v":0},{"$f":"'rent allocations'!O102*$C$1","v":0},{"$f":"'rent allocations'!P102*$C$1","v":0},{"$f":"'rent allocations'!Q102*$C$1","v":0},{"$f":"'rent allocations'!R102*$C$1","v":0},{"$f":"'rent allocations'!S102*$C$1","v":0},{"$f":"'rent allocations'!T102*$C$1","v":0},{"$f":"'rent allocations'!U102*$C$1","v":0},{"$f":"'rent allocations'!V102*$C$1","v":0},{"$f":"'rent allocations'!W102*$C$1","v":0},{"$f":"'rent allocations'!X102*$C$1","v":0},{"$f":"'rent allocations'!Y102*$C$1","v":0},{"$f":"'rent allocations'!Z102*$C$1","v":0},{"$f":"'rent allocations'!AA102*$C$1","v":0},{"$f":"'rent allocations'!AB102*$C$1","v":0},{"$f":"'rent allocations'!AC102*$C$1","v":0},{"$f":"'rent allocations'!AD102*$C$1","v":0},{"$f":"'rent allocations'!AE102*$C$1","v":0},{"$f":"'rent allocations'!AF102*$C$1","v":0},{"$f":"'rent allocations'!AG102*$C$1","v":0},{"$f":"'rent allocations'!AH102*$C$1","v":0},{"$f":"'rent allocations'!AI102*$C$1","v":0},{"$f":"'rent allocations'!AJ102*$C$1","v":0},{"$f":"'rent allocations'!AK102*$C$1","v":0},{"$f":"'rent allocations'!AL102*$C$1","v":0}]
["478 - Puget Sound Partnership","478","Puget Sound Partnership",{"$f":"'rent allocations'!D103*$C$1","v":6840.197559378611},{"$f":"'rent allocations'!E103*$C$1","v":0},{"$f":"'rent allocations'!F103*$C$1","v":0},{"$f":"'rent allocations'!G103*$C$1","v":0},{"$f":"'rent allocations'!H103*$C$1","v":0},{"$f":"'rent allocations'!I103*$C$1","v":0},{"$f":"'rent allocations'!J103*$C$1","v":0},{"$f":"'rent allocations'!K103*$C$1","v":0},{"$f":"'rent allocations'!L103*$C$1","v":0},{"$f":"'rent allocations'!M103*$C$1","v":0},{"$f":"'rent allocations'!N103*$C$1","v":0},{"$f":"'rent allocations'!O103*$C$1","v":0},{"$f":"'rent allocations'!P103*$C$1","v":0},{"$f":"'rent allocations'!Q103*$C$1","v":0},{"$f":"'rent allocations'!R103*$C$1","v":0},{"$f":"'rent allocations'!S103*$C$1","v":0},{"$f":"'rent allocations'!T103*$C$1","v":0},{"$f":"'rent allocations'!U103*$C$1","v":0},{"$f":"'rent allocations'!V103*$C$1","v":0},{"$f":"'rent allocations'!W103*$C$1","v":0},{"$f":"'rent allocations'!X103*$C$1","v":6840.197559378611},{"$f":"'rent allocations'!Y103*$C$1","v":0},{"$f":"'rent allocations'!Z103*$C$1","v":0},{"$f":"'rent allocations'!AA103*$C$1","v":0},{"$f":"'rent allocations'!AB103*$C$1","v":0},{"$f":"'rent allocations'!AC103*$C$1","v":0},{"$f":"'rent allocations'!AD103*$C$1","v":0},{"$f":"'rent allocations'!AE103*$C$1","v":0},{"$f":"'rent allocations'!AF103*$C$1","v":0},{"$f":"'rent allocations'!AG103*$C$1","v":0},{"$f":"'rent allocations'!AH103*$C$1","v":0},{"$f":"'rent allocations'!AI103*$C$1","v":0},{"$f":"'rent allocations'!AJ103*$C$1","v":0},{"$f":"'rent allocations'!AK103*$C$1","v":0},{"$f":"'rent allocations'!AL103*$C$1","v":0}]
["490 - Department of Natural Resources","490","Department of Natural Resources",{"$f":"'rent allocations'!D104*$C$1","v":271663.81350958726},{"$f":"'rent allocations'!E104*$C$1","v":0},{"$f":"'rent allocations'!F104*$C$1","v":0},{"$f":"'rent allocations'!G104*$C$1","v":0},{"$f":"'rent allocations'!H104*$C$1","v":0},{"$f":"'rent allocations'!I104*$C$1","v":0},{"$f":"'rent allocations'!J104*$C$1","v":0},{"$f":"'rent allocations'!K104*$C$1","v":0},{"$f":"'rent allocations'!L104*$C$1","v":271663.81350958726},{"$f":"'rent allocations'!M104*$C$1","v":0},{"$f":"'rent allocations'!N104*$C$1","v":0},{"$f":"'rent allocations'!O104*$C$1","v":0},{"$f":"'rent allocations'!P104*$C$1","v":0},{"$f":"'rent allocations'!Q104*$C$1","v":0},{"$f":"'rent allocations'!R104*$C$1","v":0},{"$f":"'rent allocations'!S104*$C$1","v":0},{"$f":"'rent allocations'!T104*$C$1","v":0},{"$f":"'rent allocations'!U104*$C$1","v":0},{"$f":"'rent allocations'!V104*$C$1","v":0},{"$f":"'rent allocations'!W104*$C$1","v":0},{"$f":"'rent allocations'!X104*$C$1","v":0},{"$f":"'rent allocations'!Y104*$C$1","v":0},{"$f":"'rent allocations'!Z104*$C$1","v":0},{"$f":"'rent allocations'!AA104*$C$1","v":0},{"$f":"'rent allocations'!AB104*$C$1","v":0},{"$f":"'rent allocations'!AC104*$C$1","v":0},{"$f":"'rent allocations'!AD104*$C$1","v":0},{"$f":"'rent allocations'!AE104*$C$1","v":0},{"$f":"'rent allocations'!AF104*$C$1","v":0},{"$f":"'rent allocations'!AG104*$C$1","v":0},{"$f":"'rent allocations'!AH104*$C$1","v":0},{"$f":"'rent allocations'!AI104*$C$1","v":0},{"$f":"'rent allocations'!AJ104*$C$1","v":0},{"$f":"'rent allocations'!AK104*$C$1","v":0},{"$f":"'rent allocations'!AL104*$C$1","v":0}]
["495 - Department of Agriculture","495","Department of Agriculture",{"$f":"'rent allocations'!D105*$C$1","v":85806.75142519224},{"$f":"'rent allocations'!E105*$C$1","v":0},{"$f":"'rent allocations'!F105*$C$1","v":0},{"$f":"'rent allocations'!G105*$C$1","v":0},{"$f":"'rent allocations'!H105*$C$1","v":0},{"$f":"'rent allocations'!I105*$C$1","v":0},{"$f":"'rent allocations'!J105*$C$1","v":0},{"$f":"'rent allocations'!K105*$C$1","v":0},{"$f":"'rent allocations'!L105*$C$1","v":85806.75142519224},{"$f":"'rent allocations'!M105*$C$1","v":0},{"$f":"'rent allocations'!N105*$C$1","v":0},{"$f":"'rent allocations'!O105*$C$1","v":0},{"$f":"'rent allocations'!P105*$C$1","v":0},{"$f":"'rent allocations'!Q105*$C$1","v":0},{"$f":"'rent allocations'!R105*$C$1","v":0},{"$f":"'rent allocations'!S105*$C$1","v":0},{"$f":"'rent allocations'!T105*$C$1","v":0},{"$f":"'rent allocations'!U105*$C$1","v":0},{"$f":"'rent allocations'!V105*$C$1","v":0},{"$f":"'rent allocations'!W105*$C$1","v":0},{"$f":"'rent allocations'!X105*$C$1","v":0},{"$f":"'rent allocations'!Y105*$C$1","v":0},{"$f":"'rent allocations'!Z105*$C$1","v":0},{"$f":"'rent allocations'!AA105*$C$1","v":0},{"$f":"'rent allocations'!AB105*$C$1","v":0},{"$f":"'rent allocations'!AC105*$C$1","v":0},{"$f":"'rent allocations'!AD105*$C$1","v":0},{"$f":"'rent allocations'!AE105*$C$1","v":0},{"$f":"'rent allocations'!AF105*$C$1","v":0},{"$f":"'rent allocations'!AG105*$C$1","v":0},{"$f":"'rent allocations'!AH105*$C$1","v":0},{"$f":"'rent allocations'!AI105*$C$1","v":0},{"$f":"'rent allocations'!AJ105*$C$1","v":0},{"$f":"'rent allocations'!AK105*$C$1","v":0},{"$f":"'rent allocations'!AL105*$C$1","v":0}]
["540 - Employment Security Department","540","Employment Security Department",{"$f":"'rent allocations'!D106*$C$1","v":226673.77223380812},{"$f":"'rent allocations'!E106*$C$1","v":0},{"$f":"'rent allocations'!F106*$C$1","v":0},{"$f":"'rent allocations'!G106*$C$1","v":0},{"$f":"'rent allocations'!H106*$C$1","v":0},{"$f":"'rent allocations'!I106*$C$1","v":0},{"$f":"'rent allocations'!J106*$C$1","v":0},{"$f":"'rent allocations'!K106*$C$1","v":0},{"$f":"'rent allocations'!L106*$C$1","v":0},{"$f":"'rent allocations'!M106*$C$1","v":226673.77223380812},{"$f":"'rent allocations'!N106*$C$1","v":0},{"$f":"'rent allocations'!O106*$C$1","v":0},{"$f":"'rent allocations'!P106*$C$1","v":0},{"$f":"'rent allocations'!Q106*$C$1","v":0},{"$f":"'rent allocations'!R106*$C$1","v":0},{"$f":"'rent allocations'!S106*$C$1","v":0},{"$f":"'rent allocations'!T106*$C$1","v":0},{"$f":"'rent allocations'!U106*$C$1","v":0},{"$f":"'rent allocations'!V106*$C$1","v":0},{"$f":"'rent allocations'!W106*$C$1","v":0},{"$f":"'rent allocations'!X106*$C$1","v":0},{"$f":"'rent allocations'!Y106*$C$1","v":0},{"$f":"'rent allocations'!Z106*$C$1","v":0},{"$f":"'rent allocations'!AA106*$C$1","v":0},{"$f":"'rent allocations'!AB106*$C$1","v":0},{"$f":"'rent allocations'!AC106*$C$1","v":0},{"$f":"'rent allocations'!AD106*$C$1","v":0},{"$f":"'rent allocations'!AE106*$C$1","v":0},{"$f":"'rent allocations'!AF106*$C$1","v":0},{"$f":"'rent allocations'!AG106*$C$1","v":0},{"$f":"'rent allocations'!AH106*$C$1","v":0},{"$f":"'rent allocations'!AI106*$C$1","v":0},{"$f":"'rent allocations'!AJ106*$C$1","v":0},{"$f":"'rent allocations'!AK106*$C$1","v":0},{"$f":"'rent allocations'!AL106*$C$1","v":0}]
["699 - Community Colleges","699","Community Colleges",{"$f":"'rent allocations'!D107*$C$1","v":0},{"$f":"'rent allocations'!E107*$C$1","v":0},{"$f":"'rent allocations'!F107*$C$1","v":0},{"$f":"'rent allocations'!G107*$C$1","v":0},{"$f":"'rent allocations'!H107*$C$1","v":0},{"$f":"'rent allocations'!I107*$C$1","v":0},{"$f":"'rent allocations'!J107*$C$1","v":0},{"$f":"'rent allocations'!K107*$C$1","v":0},{"$f":"'rent allocations'!L107*$C$1","v":0},{"$f":"'rent allocations'!M107*$C$1","v":0},{"$f":"'rent allocations'!N107*$C$1","v":0},{"$f":"'rent allocations'!O107*$C$1","v":0},{"$f":"'rent allocations'!P107*$C$1","v":0},{"$f":"'rent allocations'!Q107*$C$1","v":0},{"$f":"'rent allocations'!R107*$C$1","v":0},{"$f":"'rent allocations'!S107*$C$1","v":0},{"$f":"'rent allocations'!T107*$C$1","v":0},{"$f":"'rent allocations'!U107*$C$1","v":0},{"$f":"'rent allocations'!V107*$C$1","v":0},{"$f":"'rent allocations'!W107*$C$1","v":0},{"$f":"'rent allocations'!X107*$C$1","v":0},{"$f":"'rent allocations'!Y107*$C$1","v":0},{"$f":"'rent allocations'!Z107*$C$1","v":0},{"$f":"'rent allocations'!AA107*$C$1","v":0},{"$f":"'rent allocations'!AB107*$C$1","v":0},{"$f":"'rent allocations'!AC107*$C$1","v":0},{"$f":"'rent allocations'!AD107*$C$1","v":0},{"$f":"'rent allocations'!AE107*$C$1","v":0},{"$f":"'rent allocations'!AF107*$C$1","v":0},{"$f":"'rent allocations'!AG107*$C$1","v":0},{"$f":"'rent allocations'!AH107*$C$1","v":0},{"$f":"'rent allocations'!AI107*$C$1","v":0},{"$f":"'rent allocations'!AJ107*$C$1","v":0},{"$f":"'rent allocations'!AK107*$C$1","v":0},{"$f":"'rent allocations'!AL107*$C$1","v":0}]
["TOTAL  - All Agencies",null,"Building Total",{"$f":"'rent allocations'!D108*$C$1","v":5928000},{"$f":"'rent allocations'!E108*$C$1","v":245904.56671717076},{"$f":"'rent allocations'!F108*$C$1","v":157645.6095236594},{"$f":"'rent allocations'!G108*$C$1","v":590443.47143785714},{"$f":"'rent allocations'!H108*$C$1","v":128883.74705590557},{"$f":"'rent allocations'!I108*$C$1","v":424205.74593542475},{"$f":"'rent allocations'!J108*$C$1","v":595778.48575629655},{"$f":"'rent allocations'!K108*$C$1","v":100424.38505853532},{"$f":"'rent allocations'!L108*$C$1","v":634769.88140050427},{"$f":"'rent allocations'!M108*$C$1","v":226673.77223380812},{"$f":"'rent allocations'!N108*$C$1","v":379826.97734405135},{"$f":"'rent allocations'!O108*$C$1","v":171494.3077642968},{"$f":"'rent allocations'!P108*$C$1","v":230768.22653047121},{"$f":"'rent allocations'!Q108*$C$1","v":173825.54435264747},{"$f":"'rent allocations'!R108*$C$1","v":91281.818239266839},{"$f":"'rent allocations'!S108*$C$1","v":116089.06302660592},{"$f":"'rent allocations'!T108*$C$1","v":25247.728448801576},{"$f":"'rent allocations'!U108*$C$1","v":16569.537684254799},{"$f":"'rent allocations'!V108*$C$1","v":0},{"$f":"'rent allocations'!W108*$C$1","v":0},{"$f":"'rent allocations'!X108*$C$1","v":203839.86706617128},{"$f":"'rent allocations'!Y108*$C$1","v":65989.134659904448},{"$f":"'rent allocations'!Z108*$C$1","v":0},{"$f":"'rent allocations'!AA108*$C$1","v":5486.2232046876861},{"$f":"'rent allocations'!AB108*$C$1","v":0},{"$f":"'rent allocations'!AC108*$C$1","v":0},{"$f":"'rent allocations'!AD108*$C$1","v":0},{"$f":"'rent allocations'!AE108*$C$1","v":0},{"$f":"'rent allocations'!AF108*$C$1","v":367791.10859431647},{"$f":"'rent allocations'!AG108*$C$1","v":249476.95621368868},{"$f":"'rent allocations'!AH108*$C$1","v":388930.56449528842},{"$f":"'rent allocations'!AI108*$C$1","v":21853.558895355742},{"$f":"'rent allocations'!AJ108*$C$1","v":314799.71836102899},{"$f":"'rent allocations'!AK108*$C$1","v":0},{"$f":"'rent allocations'!AL108*$C$1","v":0}]
[]
[null,null,"Building Total RSF",null,77281,78594,142254,23890,177668,250481,47900,354696,92619,184427,55108,97800,53609,22032,95386,47200,14308,10125,0,41341,17000,0,1539,7138,885,2492,872,200592,60581,99000,20708,138355,17600,0]
[null,null,"vacant space",0,0,0,0,0,0,0,0,0,0,0,0,0,0,0,0,0,0,0,0,0,0,0,0,14276,406,872,0,0,0,0,35004,0,0]
[null,null,null,null,{"$f":"E108/E110/2","v":1.5909768682934406},{"$f":"F108/F110/2","v":1.0029112242897638},2.0753141262736272,2.6974413364567931,1.1938158417256477,1.1892688183061719,1.0482712427822058,0.89480834489323857,1.2236893738531409,1.0297488365153999,1.5559837751714525,1.1797966591537383,1.6212347213401432,2.0715735802302748,0.60852254537671102,0.26745475051696582,0.57903053132005866,0,{"$error":"#DIV/0!"},2.4653475613334375,1.9408569017618955,{"$error":"#DIV/0!"},1.7823987019778058,0,0,0,0,0.91676414960296637,2.0590363002730947,1.9642957802792345,0.52765981493518788,1.1376521208522605,0]

{"sheet":"Security Dollars FY23","index":26,"n_rows":112,"n_cols":38,"rows_kept":112,"cut":false,"hidden":true,"merged":[[1,3,2,3]]}
[null,"BI TOTAL",4796002]
[null,null,null,"Total","F6121","F6122","F6123","F6124","F6125","F6126","F6127","F6129","F612A","F612C","F612E","F612H","F612J","F612K","F6131","F6132","F6133","F6134","F6137","F613D","F613E","F613F","F613G","F613H","F613i","F613K","F613L","F613M","F6141","F6142","F6143","F6144","F614G","F6146"]
[null,"Agency #","Agency",null,"Cherberg","O'Brien","Legislative","Pritchard","HLB","OB2","Archives","NRB","Emp Sec","Transportation","Insurance","Old Cap","TOJ","Newhouse","Modular Bldg","Isabella Bush","1007 Washington","120 E Union Avenue","Conservatory","Capital Court","James Dolliver Building","Undeveloped Properties","1068 WA Street SE (ST Farm)","232 Perry Street","208 11th Avenue SE (Pro Arts)","Press Houses Ayer(White); Carlyon(Blue)","Visitor Center","Helen Sommers","Kelso Building","Yakima Building","Alaska Street","Tacoma Rhodes","Tacoma Rhodes Garage","North Cascades Gateway Center (NCGC)"]
[{"$f":"CONCATENATE(B4,\" - \",C4)","v":"011 - House of Representatives"},"011","House of Representatives",{"$f":"'rent allocations'!D4*$C$1","v":279674.28706034488},{"$f":"'rent allocations'!E4*$C$1","v":0},{"$f":"'rent allocations'!F4*$C$1","v":127541.9464518707},{"$f":"'rent allocations'!G4*$C$1","v":152132.34060847419},{"$f":"'rent allocations'!H4*$C$1","v":0},{"$f":"'rent allocations'!I4*$C$1","v":0},{"$f":"'rent allocations'!J4*$C$1","v":0},{"$f":"'rent allocations'!K4*$C$1","v":0},{"$f":"'rent allocations'!L4*$C$1","v":0},{"$f":"'rent allocations'!M4*$C$1","v":0},{"$f":"'rent allocations'!N4*$C$1","v":0},{"$f":"'rent allocations'!O4*$C$1","v":0},{"$f":"'rent allocations'!P4*$C$1","v":0},{"$f":"'rent allocations'!Q4*$C$1","v":0},{"$f":"'rent allocations'!R4*$C$1","v":0},{"$f":"'rent allocations'!S4*$C$1","v":0},{"$f":"'rent allocations'!T4*$C$1","v":0},{"$f":"'rent allocations'!U4*$C$1","v":0},{"$f":"'rent allocations'!V4*$C$1","v":0},{"$f":"'rent allocations'!W4*$C$1","v":0},{"$f":"'rent allocations'!X4*$C$1","v":0},{"$f":"'rent allocations'!Y4*$C$1","v":0},{"$f":"'rent allocations'!Z4*$C$1","v":0},{"$f":"'rent allocations'!AA4*$C$1","v":0},{"$f":"'rent allocations'!AB4*$C$1","v":0},{"$f":"'rent allocations'!AC4*$C$1","v":0},{"$f":"'rent allocations'!AD4*$C$1","v":0},{"$f":"'rent allocations'!AE4*$C$1","v":0},{"$f":"'rent allocations'!AF4*$C$1","v":0},{"$f":"'rent allocations'!AG4*$C$1","v":0},{"$f":"'rent allocations'!AH4*$C$1","v":0},{"$f":"'rent allocations'!AI4*$C$1","v":0},{"$f":"'rent allocations'!AJ4*$C$1","v":0},{"$f":"'rent allocations'!AK4*$C$1","v":0},{"$f":"'rent allocations'!AL4*$C$1","v":0}]
[{"$f":"CONCATENATE(B5,\" - \",C5)","v":"012 - Senate"},"012","Senate",{"$f":"'rent allocations'!D5*$C$1","v":391350.01311507222},{"$f":"'rent allocations'!E5*$C$1","v":198947.16494343529},{"$f":"'rent allocations'!F5*$C$1","v":0},{"$f":"'rent allocations'!G5*$C$1","v":118552.00761172461},{"$f":"'rent allocations'!H5*$C$1","v":0},{"$f":"'rent allocations'!I5*$C$1","v":0},{"$f":"'rent allocations'!J5*$C$1","v":0},{"$f":"'rent allocations'!K5*$C$1","v":0},{"$f":"'rent allocations'!L5*$C$1","v":0},{"$f":"'rent allocations'!M5*$C$1","v":0},{"$f":"'rent allocations'!N5*$C$1","v":0},{"$f":"'rent allocations'!O5*$C$1","v":0},{"$f":"'rent allocations'!P5*$C$1","v":0},{"$f":"'rent allocations'!Q5*$C$1","v":0},{"$f":"'rent allocations'!R5*$C$1","v":73850.840559912322},{"$f":"'rent allocations'!S5*$C$1","v":0},{"$f":"'rent allocations'!T5*$C$1","v":0},{"$f":"'rent allocations'!U5*$C$1","v":0},{"$f":"'rent allocations'!V5*$C$1","v":0},{"$f":"'rent allocations'!W5*$C$1","v":0},{"$f":"'rent allocations'!X5*$C$1","v":0},{"$f":"'rent allocations'!Y5*$C$1","v":0},{"$f":"'rent allocations'!Z5*$C$1","v":0},{"$f":"'rent allocations'!AA5*$C$1","v":0},{"$f":"'rent allocations'!AB5*$C$1","v":0},{"$f":"'rent allocations'!AC5*$C$1","v":0},{"$f":"'rent allocations'!AD5*$C$1","v":0},{"$f":"'rent allocations'!AE5*$C$1","v":0},{"$f":"'rent allocations'!AF5*$C$1","v":0},{"$f":"'rent allocations'!AG5*$C$1","v":0},{"$f":"'rent allocations'!AH5*$C$1","v":0},{"$f":"'rent allocations'!AI5*$C$1","v":0},{"$f":"'rent allocations'!AJ5*$C$1","v":0},{"$f":"'rent allocations'!AK5*$C$1","v":0},{"$f":"'rent allocations'!AL5*$C$1","v":0}]
["013 - Joint Transportation Committee","013","Joint Transportation Committee",{"$f":"'rent allocations'!D6*$C$1","v":0},{"$f":"'rent allocations'!E6*$C$1","v":0},{"$f":"'rent allocations'!F6*$C$1","v":0},{"$f":"'rent allocations'!G6*$C$1","v":0},{"$f":"'rent allocations'!H6*$C$1","v":0},{"$f":"'rent allocations'!I6*$C$1","v":0},{"$f":"'rent allocations'!J6*$C$1","v":0},{"$f":"'rent allocations'!K6*$C$1","v":0},{"$f":"'rent allocations'!L6*$C$1","v":0},{"$f":"'rent allocations'!M6*$C$1","v":0},{"$f":"'rent allocations'!N6*$C$1","v":0},{"$f":"'rent allocations'!O6*$C$1","v":0},{"$f":"'rent allocations'!P6*$C$1","v":0},{"$f":"'rent allocations'!Q6*$C$1","v":0},{"$f":"'rent allocations'!R6*$C$1","v":0},{"$f":"'rent allocations'!S6*$C$1","v":0},{"$f":"'rent allocations'!T6*$C$1","v":0},{"$f":"'rent allocations'!U6*$C$1","v":0},{"$f":"'rent allocations'!V6*$C$1","v":0},{"$f":"'rent allocations'!W6*$C$1","v":0},{"$f":"'rent allocations'!X6*$C$1","v":0},{"$f":"'rent allocations'!Y6*$C$1","v":0},{"$f":"'rent allocations'!Z6*$C$1","v":0},{"$f":"'rent allocations'!AA6*$C$1","v":0},{"$f":"'rent allocations'!AB6*$C$1","v":0},{"$f":"'rent allocations'!AC6*$C$1","v":0},{"$f":"'rent allocations'!AD6*$C$1","v":0},{"$f":"'rent allocations'!AE6*$C$1","v":0},{"$f":"'rent allocations'!AF6*$C$1","v":0},{"$f":"'rent allocations'!AG6*$C$1","v":0},{"$f":"'rent allocations'!AH6*$C$1","v":0},{"$f":"'rent allocations'!AI6*$C$1","v":0},{"$f":"'rent allocations'!AJ6*$C$1","v":0},{"$f":"'rent allocations'!AK6*$C$1","v":0},{"$f":"'rent allocations'!AL6*$C$1","v":0}]
["014 - Joint Legislative Audit and Review Committee","014","Joint Legislative Audit and Review Committee",{"$f":"'rent allocations'!D7*$C$1","v":13182.991076477534},{"$f":"'rent allocations'!E7*$C$1","v":0},{"$f":"'rent allocations'!F7*$C$1","v":0},{"$f":"'rent allocations'!G7*$C$1","v":0},{"$f":"'rent allocations'!H7*$C$1","v":0},{"$f":"'rent allocations'!I7*$C$1","v":0},{"$f":"'rent allocations'!J7*$C$1","v":0},{"$f":"'rent allocations'!K7*$C$1","v":0},{"$f":"'rent allocations'!L7*$C$1","v":0},{"$f":"'rent allocations'!M7*$C$1","v":0},{"$f":"'rent allocations'!N7*$C$1","v":0},{"$f":"'rent allocations'!O7*$C$1","v":0},{"$f":"'rent allocations'!P7*$C$1","v":0},{"$f":"'rent allocations'!Q7*$C$1","v":0},{"$f":"'rent allocations'!R7*$C$1","v":0},{"$f":"'rent allocations'!S7*$C$1","v":0},{"$f":"'rent allocations'!T7*$C$1","v":0},{"$f":"'rent allocations'!U7*$C$1","v":0},{"$f":"'rent allocations'!V7*$C$1","v":0},{"$f":"'rent allocations'!W7*$C$1","v":0},{"$f":"'rent allocations'!X7*$C$1","v":0},{"$f":"'rent allocations'!Y7*$C$1","v":0},{"$f":"'rent allocations'!Z7*$C$1","v":0},{"$f":"'rent allocations'!AA7*$C$1","v":0},{"$f":"'rent allocations'!AB7*$C$1","v":0},{"$f":"'rent allocations'!AC7*$C$1","v":0},{"$f":"'rent allocations'!AD7*$C$1","v":0},{"$f":"'rent allocations'!AE7*$C$1","v":0},{"$f":"'rent allocations'!AF7*$C$1","v":13182.991076477534},{"$f":"'rent allocations'!AG7*$C$1","v":0},{"$f":"'rent allocations'!AH7*$C$1","v":0},{"$f":"'rent allocations'!AI7*$C$1","v":0},{"$f":"'rent allocations'!AJ7*$C$1","v":0},{"$f":"'rent allocations'!AK7*$C$1","v":0},{"$f":"'rent allocations'!AL7*$C$1","v":0}]
["020 - Legislative Evaluation and Accountability Program Committee","020","Legislative Evaluation and Accountability Program Committee",{"$f":"'rent allocations'!D8*$C$1","v":6294.0734935854816},{"$f":"'rent allocations'!E8*$C$1","v":0},{"$f":"'rent allocations'!F8*$C$1","v":0},{"$f":"'rent allocations'!G8*$C$1","v":0},{"$f":"'rent allocations'!H8*$C$1","v":0},{"$f":"'rent allocations'!I8*$C$1","v":0},{"$f":"'rent allocations'!J8*$C$1","v":0},{"$f":"'rent allocations'!K8*$C$1","v":0},{"$f":"'rent allocations'!L8*$C$1","v":0},{"$f":"'rent allocations'!M8*$C$1","v":0},{"$f":"'rent allocations'!N8*$C$1","v":0},{"$f":"'rent allocations'!O8*$C$1","v":0},{"$f":"'rent allocations'!P8*$C$1","v":0},{"$f":"'rent allocations'!Q8*$C$1","v":0},{"$f":"'rent allocations'!R8*$C$1","v":0},{"$f":"'rent allocations'!S8*$C$1","v":0},{"$f":"'rent allocations'!T8*$C$1","v":0},{"$f":"'rent allocations'!U8*$C$1","v":0},{"$f":"'rent allocations'!V8*$C$1","v":0},{"$f":"'rent allocations'!W8*$C$1","v":0},{"$f":"'rent allocations'!X8*$C$1","v":0},{"$f":"'rent allocations'!Y8*$C$1","v":0},{"$f":"'rent allocations'!Z8*$C$1","v":0},{"$f":"'rent allocations'!AA8*$C$1","v":0},{"$f":"'rent allocations'!AB8*$C$1","v":0},{"$f":"'rent allocations'!AC8*$C$1","v":0},{"$f":"'rent allocations'!AD8*$C$1","v":0},{"$f":"'rent allocations'!AE8*$C$1","v":0},{"$f":"'rent allocations'!AF8*$C$1","v":6294.0734935854816},{"$f":"'rent allocations'!AG8*$C$1","v":0},{"$f":"'rent allocations'!AH8*$C$1","v":0},{"$f":"'rent allocations'!AI8*$C$1","v":0},{"$f":"'rent allocations'!AJ8*$C$1","v":0},{"$f":"'rent allocations'!AK8*$C$1","v":0},{"$f":"'rent allocations'!AL8*$C$1","v":0}]
["035 - Office of the State Actuary","035","Office of the State Actuary",{"$f":"'rent allocations'!D9*$C$1","v":0},{"$f":"'rent allocations'!E9*$C$1","v":0},{"$f":"'rent allocations'!F9*$C$1","v":0},{"$f":"'rent allocations'!G9*$C$1","v":0},{"$f":"'rent allocations'!H9*$C$1","v":0},{"$f":"'rent allocations'!I9*$C$1","v":0},{"$f":"'rent allocations'!J9*$C$1","v":0},{"$f":"'rent allocations'!K9*$C$1","v":0},{"$f":"'rent allocations'!L9*$C$1","v":0},{"$f":"'rent allocations'!M9*$C$1","v":0},{"$f":"'rent allocations'!N9*$C$1","v":0},{"$f":"'rent allocations'!O9*$C$1","v":0},{"$f":"'rent allocations'!P9*$C$1","v":0},{"$f":"'rent allocations'!Q9*$C$1","v":0},{"$f":"'rent allocations'!R9*$C$1","v":0},{"$f":"'rent allocations'!S9*$C$1","v":0},{"$f":"'rent allocations'!T9*$C$1","v":0},{"$f":"'rent allocations'!U9*$C$1","v":0},{"$f":"'rent allocations'!V9*$C$1","v":0},{"$f":"'rent allocations'!W9*$C$1","v":0},{"$f":"'rent allocations'!X9*$C$1","v":0},{"$f":"'rent allocations'!Y9*$C$1","v":0},{"$f":"'rent allocations'!Z9*$C$1","v":0},{"$f":"'rent allocations'!AA9*$C$1","v":0},{"$f":"'rent allocations'!AB9*$C$1","v":0},{"$f":"'rent allocations'!AC9*$C$1","v":0},{"$f":"'rent allocations'!AD9*$C$1","v":0},{"$f":"'rent allocations'!AE9*$C$1","v":0},{"$f":"'rent allocations'!AF9*$C$1","v":0},{"$f":"'rent allocations'!AG9*$C$1","v":0},{"$f":"'rent allocations'!AH9*$C$1","v":0},{"$f":"'rent allocations'!AI9*$C$1","v":0},{"$f":"'rent allocations'!AJ9*$C$1","v":0},{"$f":"'rent allocations'!AK9*$C$1","v":0},{"$f":"'rent allocations'!AL9*$C$1","v":0}]
["037 - Office of Legislative Support Services","037","Office of Legislative Support Services",{"$f":"'rent allocations'!D10*$C$1","v":46990.255452402278},{"$f":"'rent allocations'!E10*$C$1","v":0},{"$f":"'rent allocations'!F10*$C$1","v":0},{"$f":"'rent allocations'!G10*$C$1","v":16719.647799081602},{"$f":"'rent allocations'!H10*$C$1","v":16865.152883961469},{"$f":"'rent allocations'!I10*$C$1","v":0},{"$f":"'rent allocations'!J10*$C$1","v":0},{"$f":"'rent allocations'!K10*$C$1","v":0},{"$f":"'rent allocations'!L10*$C$1","v":0},{"$f":"'rent allocations'!M10*$C$1","v":0},{"$f":"'rent allocations'!N10*$C$1","v":0},{"$f":"'rent allocations'!O10*$C$1","v":0},{"$f":"'rent allocations'!P10*$C$1","v":0},{"$f":"'rent allocations'!Q10*$C$1","v":0},{"$f":"'rent allocations'!R10*$C$1","v":0},{"$f":"'rent allocations'!S10*$C$1","v":0},{"$f":"'rent allocations'!T10*$C$1","v":0},{"$f":"'rent allocations'!U10*$C$1","v":13405.454769359209},{"$f":"'rent allocations'!V10*$C$1","v":0},{"$f":"'rent allocations'!W10*$C$1","v":0},{"$f":"'rent allocations'!X10*$C$1","v":0},{"$f":"'rent allocations'!Y10*$C$1","v":0},{"$f":"'rent allocations'!Z10*$C$1","v":0},{"$f":"'rent allocations'!AA10*$C$1","v":0},{"$f":"'rent allocations'!AB10*$C$1","v":0},{"$f":"'rent allocations'!AC10*$C$1","v":0},{"$f":"'rent allocations'!AD10*$C$1","v":0},{"$f":"'rent allocations'!AE10*$C$1","v":0},{"$f":"'rent allocations'!AF10*$C$1","v":0},{"$f":"'rent allocations'!AG10*$C$1","v":0},{"$f":"'rent allocations'!AH10*$C$1","v":0},{"$f":"'rent allocations'!AI10*$C$1","v":0},{"$f":"'rent allocations'!AJ10*$C$1","v":0},{"$f":"'rent allocations'!AK10*$C$1","v":0},{"$f":"'rent allocations'!AL10*$C$1","v":0}]
["038 - Joint Legislative Systems Committee","038","Joint Legislative Systems Committee",{"$f":"'rent allocations'!D11*$C$1","v":55109.503311422348},{"$f":"'rent allocations'!E11*$C$1","v":0},{"$f":"'rent allocations'!F11*$C$1","v":0},{"$f":"'rent allocations'!G11*$C$1","v":3838.2320615284743},{"$f":"'rent allocations'!H11*$C$1","v":33516.436075553866},{"$f":"'rent allocations'!I11*$C$1","v":0},{"$f":"'rent allocations'!J11*$C$1","v":0},{"$f":"'rent allocations'!K11*$C$1","v":0},{"$f":"'rent allocations'!L11*$C$1","v":0},{"$f":"'rent allocations'!M11*$C$1","v":0},{"$f":"'rent allocations'!N11*$C$1","v":0},{"$f":"'rent allocations'!O11*$C$1","v":0},{"$f":"'rent allocations'!P11*$C$1","v":0},{"$f":"'rent allocations'!Q11*$C$1","v":0},{"$f":"'rent allocations'!R11*$C$1","v":0},{"$f":"'rent allocations'!S11*$C$1","v":0},{"$f":"'rent allocations'!T11*$C$1","v":0},{"$f":"'rent allocations'!U11*$C$1","v":0},{"$f":"'rent allocations'!V11*$C$1","v":0},{"$f":"'rent allocations'!W11*$C$1","v":0},{"$f":"'rent allocations'!X11*$C$1","v":0},{"$f":"'rent allocations'!Y11*$C$1","v":0},{"$f":"'rent allocations'!Z11*$C$1","v":0},{"$f":"'rent allocations'!AA11*$C$1","v":0},{"$f":"'rent allocations'!AB11*$C$1","v":0},{"$f":"'rent allocations'!AC11*$C$1","v":0},{"$f":"'rent allocations'!AD11*$C$1","v":0},{"$f":"'rent allocations'!AE11*$C$1","v":0},{"$f":"'rent allocations'!AF11*$C$1","v":17754.835174340002},{"$f":"'rent allocations'!AG11*$C$1","v":0},{"$f":"'rent allocations'!AH11*$C$1","v":0},{"$f":"'rent allocations'!AI11*$C$1","v":0},{"$f":"'rent allocations'!AJ11*$C$1","v":0},{"$f":"'rent allocations'!AK11*$C$1","v":0},{"$f":"'rent allocations'!AL11*$C$1","v":0}]
["040 - Statute Law Committee (Code Revisor)","040","Statute Law Committee (Code Revisor)",{"$f":"'rent allocations'!D12*$C$1","v":53890.797789407938},{"$f":"'rent allocations'!E12*$C$1","v":0},{"$f":"'rent allocations'!F12*$C$1","v":0},{"$f":"'rent allocations'!G12*$C$1","v":0},{"$f":"'rent allocations'!H12*$C$1","v":53890.797789407938},{"$f":"'rent allocations'!I12*$C$1","v":0},{"$f":"'rent allocations'!J12*$C$1","v":0},{"$f":"'rent allocations'!K12*$C$1","v":0},{"$f":"'rent allocations'!L12*$C$1","v":0},{"$f":"'rent allocations'!M12*$C$1","v":0},{"$f":"'rent allocations'!N12*$C$1","v":0},{"$f":"'rent allocations'!O12*$C$1","v":0},{"$f":"'rent allocations'!P12*$C$1","v":0},{"$f":"'rent allocations'!Q12*$C$1","v":0},{"$f":"'rent allocations'!R12*$C$1","v":0},{"$f":"'rent allocations'!S12*$C$1","v":0},{"$f":"'rent allocations'!T12*$C$1","v":0},{"$f":"'rent allocations'!U12*$C$1","v":0},{"$f":"'rent allocations'!V12*$C$1","v":0},{"$f":"'rent allocations'!W12*$C$1","v":0},{"$f":"'rent allocations'!X12*$C$1","v":0},{"$f":"'rent allocations'!Y12*$C$1","v":0},{"$f":"'rent allocations'!Z12*$C$1","v":0},{"$f":"'rent allocations'!AA12*$C$1","v":0},{"$f":"'rent allocations'!AB12*$C$1","v":0},{"$f":"'rent allocations'!AC12*$C$1","v":0},{"$f":"'rent allocations'!AD12*$C$1","v":0},{"$f":"'rent allocations'!AE12*$C$1","v":0},{"$f":"'rent allocations'!AF12*$C$1","v":0},{"$f":"'rent allocations'!AG12*$C$1","v":0},{"$f":"'rent allocations'!AH12*$C$1","v":0},{"$f":"'rent allocations'!AI12*$C$1","v":0},{"$f":"'rent allocations'!AJ12*$C$1","v":0},{"$f":"'rent allocations'!AK12*$C$1","v":0},{"$f":"'rent allocations'!AL12*$C$1","v":0}]
["045 - Supreme Court","045","Supreme Court",{"$f":"'rent allocations'!D13*$C$1","v":89034.616108842485},{"$f":"'rent allocations'!E13*$C$1","v":0},{"$f":"'rent allocations'!F13*$C$1","v":0},{"$f":"'rent allocations'!G13*$C$1","v":0},{"$f":"'rent allocations'!H13*$C$1","v":0},{"$f":"'rent allocations'!I13*$C$1","v":0},{"$f":"'rent allocations'!J13*$C$1","v":0},{"$f":"'rent allocations'!K13*$C$1","v":0},{"$f":"'rent allocations'!L13*$C$1","v":0},{"$f":"'rent allocations'!M13*$C$1","v":0},{"$f":"'rent allocations'!N13*$C$1","v":0},{"$f":"'rent allocations'!O13*$C$1","v":0},{"$f":"'rent allocations'!P13*$C$1","v":0},{"$f":"'rent allocations'!Q13*$C$1","v":89034.616108842485},{"$f":"'rent allocations'!R13*$C$1","v":0},{"$f":"'rent allocations'!S13*$C$1","v":0},{"$f":"'rent allocations'!T13*$C$1","v":0},{"$f":"'rent allocations'!U13*$C$1","v":0},{"$f":"'rent allocations'!V13*$C$1","v":0},{"$f":"'rent allocations'!W13*$C$1","v":0},{"$f":"'rent allocations'!X13*$C$1","v":0},{"$f":"'rent allocations'!Y13*$C$1","v":0},{"$f":"'rent allocations'!Z13*$C$1","v":0},{"$f":"'rent allocations'!AA13*$C$1","v":0},{"$f":"'rent allocations'!AB13*$C$1","v":0},{"$f":"'rent allocations'!AC13*$C$1","v":0},{"$f":"'rent allocations'!AD13*$C$1","v":0},{"$f":"'rent allocations'!AE13*$C$1","v":0},{"$f":"'rent allocations'!AF13*$C$1","v":0},{"$f":"'rent allocations'!AG13*$C$1","v":0},{"$f":"'rent allocations'!AH13*$C$1","v":0},{"$f":"'rent allocations'!AI13*$C$1","v":0},{"$f":"'rent allocations'!AJ13*$C$1","v":0},{"$f":"'rent allocations'!AK13*$C$1","v":0},{"$f":"'rent allocations'!AL13*$C$1","v":0}]
["046 - Law Library","046","Law Library",{"$f":"'rent allocations'!D14*$C$1","v":40445.954954806526},{"$f":"'rent allocations'!E14*$C$1","v":0},{"$f":"'rent allocations'!F14*$C$1","v":0},{"$f":"'rent allocations'!G14*$C$1","v":0},{"$f":"'rent allocations'!H14*$C$1","v":0},{"$f":"'rent allocations'!I14*$C$1","v":0},{"$f":"'rent allocations'!J14*$C$1","v":0},{"$f":"'rent allocations'!K14*$C$1","v":0},{"$f":"'rent allocations'!L14*$C$1","v":0},{"$f":"'rent allocations'!M14*$C$1","v":0},{"$f":"'rent allocations'!N14*$C$1","v":0},{"$f":"'rent allocations'!O14*$C$1","v":0},{"$f":"'rent allocations'!P14*$C$1","v":0},{"$f":"'rent allocations'!Q14*$C$1","v":40445.954954806526},{"$f":"'rent allocations'!R14*$C$1","v":0},{"$f":"'rent allocations'!S14*$C$1","v":0},{"$f":"'rent allocations'!T14*$C$1","v":0},{"$f":"'rent allocations'!U14*$C$1","v":0},{"$f":"'rent allocations'!V14*$C$1","v":0},{"$f":"'rent allocations'!W14*$C$1","v":0},{"$f":"'rent allocations'!X14*$C$1","v":0},{"$f":"'rent allocations'!Y14*$C$1","v":0},{"$f":"'rent allocations'!Z14*$C$1","v":0},{"$f":"'rent allocations'!AA14*$C$1","v":0},{"$f":"'rent allocations'!AB14*$C$1","v":0},{"$f":"'rent allocations'!AC14*$C$1","v":0},{"$f":"'rent allocations'!AD14*$C$1","v":0},{"$f":"'rent allocations'!AE14*$C$1","v":0},{"$f":"'rent allocations'!AF14*$C$1","v":0},{"$f":"'rent allocations'!AG14*$C$1","v":0},{"$f":"'rent allocations'!AH14*$C$1","v":0},{"$f":"'rent allocations'!AI14*$C$1","v":0},{"$f":"'rent allocations'!AJ14*$C$1","v":0},{"$f":"'rent allocations'!AK14*$C$1","v":0},{"$f":"'rent allocations'!AL14*$C$1","v":0}]
["048 - Court of Appeals","048","Court of Appeals",{"$f":"'rent allocations'!D15*$C$1","v":93621.275974084754},{"$f":"'rent allocations'!E15*$C$1","v":0},{"$f":"'rent allocations'!F15*$C$1","v":0},{"$f":"'rent allocations'!G15*$C$1","v":0},{"$f":"'rent allocations'!H15*$C$1","v":0},{"$f":"'rent allocations'!I15*$C$1","v":0},{"$f":"'rent allocations'!J15*$C$1","v":0},{"$f":"'rent allocations'!K15*$C$1","v":0},{"$f":"'rent allocations'!L15*$C$1","v":0},{"$f":"'rent allocations'!M15*$C$1","v":0},{"$f":"'rent allocations'!N15*$C$1","v":0},{"$f":"'rent allocations'!O15*$C$1","v":0},{"$f":"'rent allocations'!P15*$C$1","v":0},{"$f":"'rent allocations'!Q15*$C$1","v":0},{"$f":"'rent allocations'!R15*$C$1","v":0},{"$f":"'rent allocations'!S15*$C$1","v":0},{"$f":"'rent allocations'!T15*$C$1","v":0},{"$f":"'rent allocations'!U15*$C$1","v":0},{"$f":"'rent allocations'!V15*$C$1","v":0},{"$f":"'rent allocations'!W15*$C$1","v":0},{"$f":"'rent allocations'!X15*$C$1","v":0},{"$f":"'rent allocations'!Y15*$C$1","v":0},{"$f":"'rent allocations'!Z15*$C$1","v":0},{"$f":"'rent allocations'!AA15*$C$1","v":0},{"$f":"'rent allocations'!AB15*$C$1","v":0},{"$f":"'rent allocations'!AC15*$C$1","v":0},{"$f":"'rent allocations'!AD15*$C$1","v":0},{"$f":"'rent allocations'!AE15*$C$1","v":0},{"$f":"'rent allocations'!AF15*$C$1","v":0},{"$f":"'rent allocations'!AG15*$C$1","v":0},{"$f":"'rent allocations'!AH15*$C$1","v":0},{"$f":"'rent allocations'!AI15*$C$1","v":0},{"$f":"'rent allocations'!AJ15*$C$1","v":93621.275974084754},{"$f":"'rent allocations'!AK15*$C$1","v":0},{"$f":"'rent allocations'!AL15*$C$1","v":0}]
["050 - Commission on Judicial Conduct","050","Commission on Judicial Conduct",{"$f":"'rent allocations'!D16*$C$1","v":20722.498501254111},{"$f":"'rent allocations'!E16*$C$1","v":0},{"$f":"'rent allocations'!F16*$C$1","v":0},{"$f":"'rent allocations'!G16*$C$1","v":0},{"$f":"'rent allocations'!H16*$C$1","v":0},{"$f":"'rent allocations'!I16*$C$1","v":0},{"$f":"'rent allocations'!J16*$C$1","v":0},{"$f":"'rent allocations'!K16*$C$1","v":0},{"$f":"'rent allocations'!L16*$C$1","v":0},{"$f":"'rent allocations'!M16*$C$1","v":0},{"$f":"'rent allocations'!N16*$C$1","v":0},{"$f":"'rent allocations'!O16*$C$1","v":0},{"$f":"'rent allocations'!P16*$C$1","v":0},{"$f":"'rent allocations'!Q16*$C$1","v":0},{"$f":"'rent allocations'!R16*$C$1","v":0},{"$f":"'rent allocations'!S16*$C$1","v":0},{"$f":"'rent allocations'!T16*$C$1","v":0},{"$f":"'rent allocations'!U16*$C$1","v":0},{"$f":"'rent allocations'!V16*$C$1","v":0},{"$f":"'rent allocations'!W16*$C$1","v":0},{"$f":"'rent allocations'!X16*$C$1","v":20722.498501254111},{"$f":"'rent allocations'!Y16*$C$1","v":0},{"$f":"'rent allocations'!Z16*$C$1","v":0},{"$f":"'rent allocations'!AA16*$C$1","v":0},{"$f":"'rent allocations'!AB16*$C$1","v":0},{"$f":"'rent allocations'!AC16*$C$1","v":0},{"$f":"'rent allocations'!AD16*$C$1","v":0},{"$f":"'rent allocations'!AE16*$C$1","v":0},{"$f":"'rent allocations'!AF16*$C$1","v":0},{"$f":"'rent allocations'!AG16*$C$1","v":0},{"$f":"'rent allocations'!AH16*$C$1","v":0},{"$f":"'rent allocations'!AI16*$C$1","v":0},{"$f":"'rent allocations'!AJ16*$C$1","v":0},{"$f":"'rent allocations'!AK16*$C$1","v":0},{"$f":"'rent allocations'!AL16*$C$1","v":0}]
["055 - Administrative Office of the Courts","055","Administrative Office of the Courts",{"$f":"'rent allocations'!D17*$C$1","v":11151.625017050366},{"$f":"'rent allocations'!E17*$C$1","v":0},{"$f":"'rent allocations'!F17*$C$1","v":0},{"$f":"'rent allocations'!G17*$C$1","v":0},{"$f":"'rent allocations'!H17*$C$1","v":0},{"$f":"'rent allocations'!I17*$C$1","v":0},{"$f":"'rent allocations'!J17*$C$1","v":0},{"$f":"'rent allocations'!K17*$C$1","v":0},{"$f":"'rent allocations'!L17*$C$1","v":0},{"$f":"'rent allocations'!M17*$C$1","v":0},{"$f":"'rent allocations'!N17*$C$1","v":0},{"$f":"'rent allocations'!O17*$C$1","v":0},{"$f":"'rent allocations'!P17*$C$1","v":0},{"$f":"'rent allocations'!Q17*$C$1","v":11151.625017050366},{"$f":"'rent allocations'!R17*$C$1","v":0},{"$f":"'rent allocations'!S17*$C$1","v":0},{"$f":"'rent allocations'!T17*$C$1","v":0},{"$f":"'rent allocations'!U17*$C$1","v":0},{"$f":"'rent allocations'!V17*$C$1","v":0},{"$f":"'rent allocations'!W17*$C$1","v":0},{"$f":"'rent allocations'!X17*$C$1","v":0},{"$f":"'rent allocations'!Y17*$C$1","v":0},{"$f":"'rent allocations'!Z17*$C$1","v":0},{"$f":"'rent allocations'!AA17*$C$1","v":0},{"$f":"'rent allocations'!AB17*$C$1","v":0},{"$f":"'rent allocations'!AC17*$C$1","v":0},{"$f":"'rent allocations'!AD17*$C$1","v":0},{"$f":"'rent allocations'!AE17*$C$1","v":0},{"$f":"'rent allocations'!AF17*$C$1","v":0},{"$f":"'rent allocations'!AG17*$C$1","v":0},{"$f":"'rent allocations'!AH17*$C$1","v":0},{"$f":"'rent allocations'!AI17*$C$1","v":0},{"$f":"'rent allocations'!AJ17*$C$1","v":0},{"$f":"'rent allocations'!AK17*$C$1","v":0},{"$f":"'rent allocations'!AL17*$C$1","v":0}]
["056 - Office of Public Defense","056","Office of Public Defense",{"$f":"'rent allocations'!D18*$C$1","v":0},{"$f":"'rent allocations'!E18*$C$1","v":0},{"$f":"'rent allocations'!F18*$C$1","v":0},{"$f":"'rent allocations'!G18*$C$1","v":0},{"$f":"'rent allocations'!H18*$C$1","v":0},{"$f":"'rent allocations'!I18*$C$1","v":0},{"$f":"'rent allocations'!J18*$C$1","v":0},{"$f":"'rent allocations'!K18*$C$1","v":0},{"$f":"'rent allocations'!L18*$C$1","v":0},{"$f":"'rent allocations'!M18*$C$1","v":0},{"$f":"'rent allocations'!N18*$C$1","v":0},{"$f":"'rent allocations'!O18*$C$1","v":0},{"$f":"'rent allocations'!P18*$C$1","v":0},{"$f":"'rent allocations'!Q18*$C$1","v":0},{"$f":"'rent allocations'!R18*$C$1","v":0},{"$f":"'rent allocations'!S18*$C$1","v":0},{"$f":"'rent allocations'!T18*$C$1","v":0},{"$f":"'rent allocations'!U18*$C$1","v":0},{"$f":"'rent allocations'!V18*$C$1","v":0},{"$f":"'rent allocations'!W18*$C$1","v":0},{"$f":"'rent allocations'!X18*$C$1","v":0},{"$f":"'rent allocations'!Y18*$C$1","v":0},{"$f":"'rent allocations'!Z18*$C$1","v":0},{"$f":"'rent allocations'!AA18*$C$1","v":0},{"$f":"'rent allocations'!AB18*$C$1","v":0},{"$f":"'rent allocations'!AC18*$C$1","v":0},{"$f":"'rent allocations'!AD18*$C$1","v":0},{"$f":"'rent allocations'!AE18*$C$1","v":0},{"$f":"'rent allocations'!AF18*$C$1","v":0},{"$f":"'rent allocations'!AG18*$C$1","v":0},{"$f":"'rent allocations'!AH18*$C$1","v":0},{"$f":"'rent allocations'!AI18*$C$1","v":0},{"$f":"'rent allocations'!AJ18*$C$1","v":0},{"$f":"'rent allocations'!AK18*$C$1","v":0},{"$f":"'rent allocations'!AL18*$C$1","v":0}]
["057 - Office of Civil Legal Aid","057","Office of Civil Legal Aid",{"$f":"'rent allocations'!D19*$C$1","v":0},{"$f":"'rent allocations'!E19*$C$1","v":0},{"$f":"'rent allocations'!F19*$C$1","v":0},{"$f":"'rent allocations'!G19*$C$1","v":0},{"$f":"'rent allocations'!H19*$C$1","v":0},{"$f":"'rent allocations'!I19*$C$1","v":0},{"$f":"'rent allocations'!J19*$C$1","v":0},{"$f":"'rent allocations'!K19*$C$1","v":0},{"$f":"'rent allocations'!L19*$C$1","v":0},{"$f":"'rent allocations'!M19*$C$1","v":0},{"$f":"'rent allocations'!N19*$C$1","v":0},{"$f":"'rent allocations'!O19*$C$1","v":0},{"$f":"'rent allocations'!P19*$C$1","v":0},{"$f":"'rent allocations'!Q19*$C$1","v":0},{"$f":"'rent allocations'!R19*$C$1","v":0},{"$f":"'rent allocations'!S19*$C$1","v":0},{"$f":"'rent allocations'!T19*$C$1","v":0},{"$f":"'rent allocations'!U19*$C$1","v":0},{"$f":"'rent allocations'!V19*$C$1","v":0},{"$f":"'rent allocations'!W19*$C$1","v":0},{"$f":"'rent allocations'!X19*$C$1","v":0},{"$f":"'rent allocations'!Y19*$C$1","v":0},{"$f":"'rent allocations'!Z19*$C$1","v":0},{"$f":"'rent allocations'!AA19*$C$1","v":0},{"$f":"'rent allocations'!AB19*$C$1","v":0},{"$f":"'rent allocations'!AC19*$C$1","v":0},{"$f":"'rent allocations'!AD19*$C$1","v":0},{"$f":"'rent allocations'!AE19*$C$1","v":0},{"$f":"'rent allocations'!AF19*$C$1","v":0},{"$f":"'rent allocations'!AG19*$C$1","v":0},{"$f":"'rent allocations'!AH19*$C$1","v":0},{"$f":"'rent allocations'!AI19*$C$1","v":0},{"$f":"'rent allocations'!AJ19*$C$1","v":0},{"$f":"'rent allocations'!AK19*$C$1","v":0},{"$f":"'rent allocations'!AL19*$C$1","v":0}]
["075 - Office of the Governor","075","Office of the Governor",{"$f":"'rent allocations'!D20*$C$1","v":57949.580652490709},{"$f":"'rent allocations'!E20*$C$1","v":0},{"$f":"'rent allocations'!F20*$C$1","v":0},{"$f":"'rent allocations'!G20*$C$1","v":57949.580652490709},{"$f":"'rent allocations'!H20*$C$1","v":0},{"$f":"'rent allocations'!I20*$C$1","v":0},{"$f":"'rent allocations'!J20*$C$1","v":0},{"$f":"'rent allocations'!K20*$C$1","v":0},{"$f":"'rent allocations'!L20*$C$1","v":0},{"$f":"'rent allocations'!M20*$C$1","v":0},{"$f":"'rent allocations'!N20*$C$1","v":0},{"$f":"'rent allocations'!O20*$C$1","v":0},{"$f":"'rent allocations'!P20*$C$1","v":0},{"$f":"'rent allocations'!Q20*$C$1","v":0},{"$f":"'rent allocations'!R20*$C$1","v":0},{"$f":"'rent allocations'!S20*$C$1","v":0},{"$f":"'rent allocations'!T20*$C$1","v":0},{"$f":"'rent allocations'!U20*$C$1","v":0},{"$f":"'rent allocations'!V20*$C$1","v":0},{"$f":"'rent allocations'!W20*$C$1","v":0},{"$f":"'rent allocations'!X20*$C$1","v":0},{"$f":"'rent allocations'!Y20*$C$1","v":0},{"$f":"'rent allocations'!Z20*$C$1","v":0},{"$f":"'rent allocations'!AA20*$C$1","v":0},{"$f":"'rent allocations'!AB20*$C$1","v":0},{"$f":"'rent allocations'!AC20*$C$1","v":0},{"$f":"'rent allocations'!AD20*$C$1","v":0},{"$f":"'rent allocations'!AE20*$C$1","v":0},{"$f":"'rent allocations'!AF20*$C$1","v":0},{"$f":"'rent allocations'!AG20*$C$1","v":0},{"$f":"'rent allocations'!AH20*$C$1","v":0},{"$f":"'rent allocations'!AI20*$C$1","v":0},{"$f":"'rent allocations'!AJ20*$C$1","v":0},{"$f":"'rent allocations'!AK20*$C$1","v":0},{"$f":"'rent allocations'!AL20*$C$1","v":0}]
["080 - Office of Lieutenant Governor","080","Office of Lieutenant Governor",{"$f":"'rent allocations'!D21*$C$1","v":29799.187501315555},{"$f":"'rent allocations'!E21*$C$1","v":0},{"$f":"'rent allocations'!F21*$C$1","v":0},{"$f":"'rent allocations'!G21*$C$1","v":29799.187501315555},{"$f":"'rent allocations'!H21*$C$1","v":0},{"$f":"'rent allocations'!I21*$C$1","v":0},{"$f":"'rent allocations'!J21*$C$1","v":0},{"$f":"'rent allocations'!K21*$C$1","v":0},{"$f":"'rent allocations'!L21*$C$1","v":0},{"$f":"'rent allocations'!M21*$C$1","v":0},{"$f":"'rent allocations'!N21*$C$1","v":0},{"$f":"'rent allocations'!O21*$C$1","v":0},{"$f":"'rent allocations'!P21*$C$1","v":0},{"$f":"'rent allocations'!Q21*$C$1","v":0},{"$f":"'rent allocations'!R21*$C$1","v":0},{"$f":"'rent allocations'!S21*$C$1","v":0},{"$f":"'rent allocations'!T21*$C$1","v":0},{"$f":"'rent allocations'!U21*$C$1","v":0},{"$f":"'rent allocations'!V21*$C$1","v":0},{"$f":"'rent allocations'!W21*$C$1","v":0},{"$f":"'rent allocations'!X21*$C$1","v":0},{"$f":"'rent allocations'!Y21*$C$1","v":0},{"$f":"'rent allocations'!Z21*$C$1","v":0},{"$f":"'rent allocations'!AA21*$C$1","v":0},{"$f":"'rent allocations'!AB21*$C$1","v":0},{"$f":"'rent allocations'!AC21*$C$1","v":0},{"$f":"'rent allocations'!AD21*$C$1","v":0},{"$f":"'rent allocations'!AE21*$C$1","v":0},{"$f":"'rent allocations'!AF21*$C$1","v":0},{"$f":"'rent allocations'!AG21*$C$1","v":0},{"$f":"'rent allocations'!AH21*$C$1","v":0},{"$f":"'rent allocations'!AI21*$C$1","v":0},{"$f":"'rent allocations'!AJ21*$C$1","v":0},{"$f":"'rent allocations'!AK21*$C$1","v":0},{"$f":"'rent allocations'!AL21*$C$1","v":0}]
["082 - Public Disclosure Commission","082","Public Disclosure Commission",{"$f":"'rent allocations'!D22*$C$1","v":0},{"$f":"'rent allocations'!E22*$C$1","v":0},{"$f":"'rent allocations'!F22*$C$1","v":0},{"$f":"'rent allocations'!G22*$C$1","v":0},{"$f":"'rent allocations'!H22*$C$1","v":0},{"$f":"'rent allocations'!I22*$C$1","v":0},{"$f":"'rent allocations'!J22*$C$1","v":0},{"$f":"'rent allocations'!K22*$C$1","v":0},{"$f":"'rent allocations'!L22*$C$1","v":0},{"$f":"'rent allocations'!M22*$C$1","v":0},{"$f":"'rent allocations'!N22*$C$1","v":0},{"$f":"'rent allocations'!O22*$C$1","v":0},{"$f":"'rent allocations'!P22*$C$1","v":0},{"$f":"'rent allocations'!Q22*$C$1","v":0},{"$f":"'rent allocations'!R22*$C$1","v":0},{"$f":"'rent allocations'!S22*$C$1","v":0},{"$f":"'rent allocations'!T22*$C$1","v":0},{"$f":"'rent allocations'!U22*$C$1","v":0},{"$f":"'rent allocations'!V22*$C$1","v":0},{"$f":"'rent allocations'!W22*$C$1","v":0},{"$f":"'rent allocations'!X22*$C$1","v":0},{"$f":"'rent allocations'!Y22*$C$1","v":0},{"$f":"'rent allocations'!Z22*$C$1","v":0},{"$f":"'rent allocations'!AA22*$C$1","v":0},{"$f":"'rent allocations'!AB22*$C$1","v":0},{"$f":"'rent allocations'!AC22*$C$1","v":0},{"$f":"'rent allocations'!AD22*$C$1","v":0},{"$f":"'rent allocations'!AE22*$C$1","v":0},{"$f":"'rent allocations'!AF22*$C$1","v":0},{"$f":"'rent allocations'!AG22*$C$1","v":0},{"$f":"'rent allocations'!AH22*$C$1","v":0},{"$f":"'rent allocations'!AI22*$C$1","v":0},{"$f":"'rent allocations'!AJ22*$C$1","v":0},{"$f":"'rent allocations'!AK22*$C$1","v":0},{"$f":"'rent allocations'!AL22*$C$1","v":0}]
["085 - Office of the Secretary of State","085","Office of the Secretary of State",{"$f":"'rent allocations'!D23*$C$1","v":197109.06490334269},{"$f":"'rent allocations'!E23*$C$1","v":0},{"$f":"'rent allocations'!F23*$C$1","v":0},{"$f":"'rent allocations'!G23*$C$1","v":35763.054641538278},{"$f":"'rent allocations'!H23*$C$1","v":0},{"$f":"'rent allocations'!I23*$C$1","v":0},{"$f":"'rent allocations'!J23*$C$1","v":0},{"$f":"'rent allocations'!K23*$C$1","v":81247.562683789729},{"$f":"'rent allocations'!L23*$C$1","v":0},{"$f":"'rent allocations'!M23*$C$1","v":0},{"$f":"'rent allocations'!N23*$C$1","v":0},{"$f":"'rent allocations'!O23*$C$1","v":0},{"$f":"'rent allocations'!P23*$C$1","v":0},{"$f":"'rent allocations'!Q23*$C$1","v":0},{"$f":"'rent allocations'!R23*$C$1","v":0},{"$f":"'rent allocations'!S23*$C$1","v":6283.9776146070872},{"$f":"'rent allocations'!T23*$C$1","v":20426.477080956352},{"$f":"'rent allocations'!U23*$C$1","v":0},{"$f":"'rent allocations'!V23*$C$1","v":0},{"$f":"'rent allocations'!W23*$C$1","v":0},{"$f":"'rent allocations'!X23*$C$1","v":0},{"$f":"'rent allocations'!Y23*$C$1","v":53387.992882451254},{"$f":"'rent allocations'!Z23*$C$1","v":0},{"$f":"'rent allocations'!AA23*$C$1","v":0},{"$f":"'rent allocations'!AB23*$C$1","v":0},{"$f":"'rent allocations'!AC23*$C$1","v":0},{"$f":"'rent allocations'!AD23*$C$1","v":0},{"$f":"'rent allocations'!AE23*$C$1","v":0},{"$f":"'rent allocations'!AF23*$C$1","v":0},{"$f":"'rent allocations'!AG23*$C$1","v":0},{"$f":"'rent allocations'!AH23*$C$1","v":0},{"$f":"'rent allocations'!AI23*$C$1","v":0},{"$f":"'rent allocations'!AJ23*$C$1","v":0},{"$f":"'rent allocations'!AK23*$C$1","v":0},{"$f":"'rent allocations'!AL23*$C$1","v":0}]
["086 - Governor's Office of Indian Affairs","086","Governor's Office of Indian Affairs",{"$f":"'rent allocations'!D24*$C$1","v":5253.7039678541814},{"$f":"'rent allocations'!E24*$C$1","v":0},{"$f":"'rent allocations'!F24*$C$1","v":0},{"$f":"'rent allocations'!G24*$C$1","v":0},{"$f":"'rent allocations'!H24*$C$1","v":0},{"$f":"'rent allocations'!I24*$C$1","v":0},{"$f":"'rent allocations'!J24*$C$1","v":0},{"$f":"'rent allocations'!K24*$C$1","v":0},{"$f":"'rent allocations'!L24*$C$1","v":0},{"$f":"'rent allocations'!M24*$C$1","v":0},{"$f":"'rent allocations'!N24*$C$1","v":0},{"$f":"'rent allocations'!O24*$C$1","v":0},{"$f":"'rent allocations'!P24*$C$1","v":0},{"$f":"'rent allocations'!Q24*$C$1","v":0},{"$f":"'rent allocations'!R24*$C$1","v":0},{"$f":"'rent allocations'!S24*$C$1","v":0},{"$f":"'rent allocations'!T24*$C$1","v":0},{"$f":"'rent allocations'!U24*$C$1","v":0},{"$f":"'rent allocations'!V24*$C$1","v":0},{"$f":"'rent allocations'!W24*$C$1","v":0},{"$f":"'rent allocations'!X24*$C$1","v":5253.7039678541814},{"$f":"'rent allocations'!Y24*$C$1","v":0},{"$f":"'rent allocations'!Z24*$C$1","v":0},{"$f":"'rent allocations'!AA24*$C$1","v":0},{"$f":"'rent allocations'!AB24*$C$1","v":0},{"$f":"'rent allocations'!AC24*$C$1","v":0},{"$f":"'rent allocations'!AD24*$C$1","v":0},{"$f":"'rent allocations'!AE24*$C$1","v":0},{"$f":"'rent allocations'!AF24*$C$1","v":0},{"$f":"'rent allocations'!AG24*$C$1","v":0},{"$f":"'rent allocations'!AH24*$C$1","v":0},{"$f":"'rent allocations'!AI24*$C$1","v":0},{"$f":"'rent allocations'!AJ24*$C$1","v":0},{"$f":"'rent allocations'!AK24*$C$1","v":0},{"$f":"'rent allocations'!AL24*$C$1","v":0}]
["087 - Commission on Asian Pacific American Affairs","087","Commission on Asian Pacific American Affairs",{"$f":"'rent allocations'!D25*$C$1","v":3455.751923977255},{"$f":"'rent allocations'!E25*$C$1","v":0},{"$f":"'rent allocations'!F25*$C$1","v":0},{"$f":"'rent allocations'!G25*$C$1","v":0},{"$f":"'rent allocations'!H25*$C$1","v":0},{"$f":"'rent allocations'!I25*$C$1","v":0},{"$f":"'rent allocations'!J25*$C$1","v":0},{"$f":"'rent allocations'!K25*$C$1","v":0},{"$f":"'rent allocations'!L25*$C$1","v":0},{"$f":"'rent allocations'!M25*$C$1","v":0},{"$f":"'rent allocations'!N25*$C$1","v":0},{"$f":"'rent allocations'!O25*$C$1","v":0},{"$f":"'rent allocations'!P25*$C$1","v":0},{"$f":"'rent allocations'!Q25*$C$1","v":0},{"$f":"'rent allocations'!R25*$C$1","v":0},{"$f":"'rent allocations'!S25*$C$1","v":0},{"$f":"'rent allocations'!T25*$C$1","v":0},{"$f":"'rent allocations'!U25*$C$1","v":0},{"$f":"'rent allocations'!V25*$C$1","v":0},{"$f":"'rent allocations'!W25*$C$1","v":0},{"$f":"'rent allocations'!X25*$C$1","v":3455.751923977255},{"$f":"'rent allocations'!Y25*$C$1","v":0},{"$f":"'rent allocations'!Z25*$C$1","v":0},{"$f":"'rent allocations'!AA25*$C$1","v":0},{"$f":"'rent allocations'!AB25*$C$1","v":0},{"$f":"'rent allocations'!AC25*$C$1","v":0},{"$f":"'rent allocations'!AD25*$C$1","v":0},{"$f":"'rent allocations'!AE25*$C$1","v":0},{"$f":"'rent allocations'!AF25*$C$1","v":0},{"$f":"'rent allocations'!AG25*$C$1","v":0},{"$f":"'rent allocations'!AH25*$C$1","v":0},{"$f":"'rent allocations'!AI25*$C$1","v":0},{"$f":"'rent allocations'!AJ25*$C$1","v":0},{"$f":"'rent allocations'!AK25*$C$1","v":0},{"$f":"'rent allocations'!AL25*$C$1","v":0}]
["090 - Office of State Treasurer","090","Office of State Treasurer",{"$f":"'rent allocations'!D26*$C$1","v":55139.460006501831},{"$f":"'rent allocations'!E26*$C$1","v":0},{"$f":"'rent allocations'!F26*$C$1","v":0},{"$f":"'rent allocations'!G26*$C$1","v":35981.326806017147},{"$f":"'rent allocations'!H26*$C$1","v":0},{"$f":"'rent allocations'!I26*$C$1","v":0},{"$f":"'rent allocations'!J26*$C$1","v":0},{"$f":"'rent allocations'!K26*$C$1","v":0},{"$f":"'rent allocations'!L26*$C$1","v":0},{"$f":"'rent allocations'!M26*$C$1","v":0},{"$f":"'rent allocations'!N26*$C$1","v":0},{"$f":"'rent allocations'!O26*$C$1","v":0},{"$f":"'rent allocations'!P26*$C$1","v":0},{"$f":"'rent allocations'!Q26*$C$1","v":0},{"$f":"'rent allocations'!R26*$C$1","v":0},{"$f":"'rent allocations'!S26*$C$1","v":0},{"$f":"'rent allocations'!T26*$C$1","v":0},{"$f":"'rent allocations'!U26*$C$1","v":0},{"$f":"'rent allocations'!V26*$C$1","v":0},{"$f":"'rent allocations'!W26*$C$1","v":0},{"$f":"'rent allocations'!X26*$C$1","v":0},{"$f":"'rent allocations'!Y26*$C$1","v":0},{"$f":"'rent allocations'!Z26*$C$1","v":0},{"$f":"'rent allocations'!AA26*$C$1","v":0},{"$f":"'rent allocations'!AB26*$C$1","v":0},{"$f":"'rent allocations'!AC26*$C$1","v":0},{"$f":"'rent allocations'!AD26*$C$1","v":0},{"$f":"'rent allocations'!AE26*$C$1","v":0},{"$f":"'rent allocations'!AF26*$C$1","v":19158.133200484681},{"$f":"'rent allocations'!AG26*$C$1","v":0},{"$f":"'rent allocations'!AH26*$C$1","v":0},{"$f":"'rent allocations'!AI26*$C$1","v":0},{"$f":"'rent allocations'!AJ26*$C$1","v":0},{"$f":"'rent allocations'!AK26*$C$1","v":0},{"$f":"'rent allocations'!AL26*$C$1","v":0}]
["095 - Office of State Auditor","095","Office of State Auditor",{"$f":"'rent allocations'!D27*$C$1","v":31093.499210500268},{"$f":"'rent allocations'!E27*$C$1","v":0},{"$f":"'rent allocations'!F27*$C$1","v":0},{"$f":"'rent allocations'!G27*$C$1","v":0},{"$f":"'rent allocations'!H27*$C$1","v":0},{"$f":"'rent allocations'!I27*$C$1","v":0},{"$f":"'rent allocations'!J27*$C$1","v":0},{"$f":"'rent allocations'!K27*$C$1","v":0},{"$f":"'rent allocations'!L27*$C$1","v":0},{"$f":"'rent allocations'!M27*$C$1","v":0},{"$f":"'rent allocations'!N27*$C$1","v":0},{"$f":"'rent allocations'!O27*$C$1","v":16143.575681777069},{"$f":"'rent allocations'!P27*$C$1","v":0},{"$f":"'rent allocations'!Q27*$C$1","v":0},{"$f":"'rent allocations'!R27*$C$1","v":0},{"$f":"'rent allocations'!S27*$C$1","v":0},{"$f":"'rent allocations'!T27*$C$1","v":0},{"$f":"'rent allocations'!U27*$C$1","v":0},{"$f":"'rent allocations'!V27*$C$1","v":0},{"$f":"'rent allocations'!W27*$C$1","v":0},{"$f":"'rent allocations'!X27*$C$1","v":0},{"$f":"'rent allocations'!Y27*$C$1","v":0},{"$f":"'rent allocations'!Z27*$C$1","v":0},{"$f":"'rent allocations'!AA27*$C$1","v":0},{"$f":"'rent allocations'!AB27*$C$1","v":0},{"$f":"'rent allocations'!AC27*$C$1","v":0},{"$f":"'rent allocations'!AD27*$C$1","v":0},{"$f":"'rent allocations'!AE27*$C$1","v":0},{"$f":"'rent allocations'!AF27*$C$1","v":0},{"$f":"'rent allocations'!AG27*$C$1","v":0},{"$f":"'rent allocations'!AH27*$C$1","v":0},{"$f":"'rent allocations'!AI27*$C$1","v":0},{"$f":"'rent allocations'!AJ27*$C$1","v":14949.923528723195},{"$f":"'rent allocations'!AK27*$C$1","v":0},{"$f":"'rent allocations'!AL27*$C$1","v":0}]
["099 - Citizens' Commission on Salaries for Elected Officials","099","Citizens' Commission on Salaries for Elected Officials",{"$f":"'rent allocations'!D28*$C$1","v":2666.895459291833},{"$f":"'rent allocations'!E28*$C$1","v":0},{"$f":"'rent allocations'!F28*$C$1","v":0},{"$f":"'rent allocations'!G28*$C$1","v":0},{"$f":"'rent allocations'!H28*$C$1","v":0},{"$f":"'rent allocations'!I28*$C$1","v":0},{"$f":"'rent allocations'!J28*$C$1","v":0},{"$f":"'rent allocations'!K28*$C$1","v":0},{"$f":"'rent allocations'!L28*$C$1","v":0},{"$f":"'rent allocations'!M28*$C$1","v":0},{"$f":"'rent allocations'!N28*$C$1","v":0},{"$f":"'rent allocations'!O28*$C$1","v":0},{"$f":"'rent allocations'!P28*$C$1","v":0},{"$f":"'rent allocations'!Q28*$C$1","v":0},{"$f":"'rent allocations'!R28*$C$1","v":0},{"$f":"'rent allocations'!S28*$C$1","v":0},{"$f":"'rent allocations'!T28*$C$1","v":0},{"$f":"'rent allocations'!U28*$C$1","v":0},{"$f":"'rent allocations'!V28*$C$1","v":0},{"$f":"'rent allocations'!W28*$C$1","v":0},{"$f":"'rent allocations'!X28*$C$1","v":2666.895459291833},{"$f":"'rent allocations'!Y28*$C$1","v":0},{"$f":"'rent allocations'!Z28*$C$1","v":0},{"$f":"'rent allocations'!AA28*$C$1","v":0},{"$f":"'rent allocations'!AB28*$C$1","v":0},{"$f":"'rent allocations'!AC28*$C$1","v":0},{"$f":"'rent allocations'!AD28*$C$1","v":0},{"$f":"'rent allocations'!AE28*$C$1","v":0},{"$f":"'rent allocations'!AF28*$C$1","v":0},{"$f":"'rent allocations'!AG28*$C$1","v":0},{"$f":"'rent allocations'!AH28*$C$1","v":0},{"$f":"'rent allocations'!AI28*$C$1","v":0},{"$f":"'rent allocations'!AJ28*$C$1","v":0},{"$f":"'rent allocations'!AK28*$C$1","v":0},{"$f":"'rent allocations'!AL28*$C$1","v":0}]
["100 - Office of Attorney General","100","Office of Attorney General",{"$f":"'rent allocations'!D29*$C$1","v":140316.37312064579},{"$f":"'rent allocations'!E29*$C$1","v":0},{"$f":"'rent allocations'!F29*$C$1","v":0},{"$f":"'rent allocations'!G29*$C$1","v":0},{"$f":"'rent allocations'!H29*$C$1","v":0},{"$f":"'rent allocations'!I29*$C$1","v":140316.37312064579},{"$f":"'rent allocations'!J29*$C$1","v":0},{"$f":"'rent allocations'!K29*$C$1","v":0},{"$f":"'rent allocations'!L29*$C$1","v":0},{"$f":"'rent allocations'!M29*$C$1","v":0},{"$f":"'rent allocations'!N29*$C$1","v":0},{"$f":"'rent allocations'!O29*$C$1","v":0},{"$f":"'rent allocations'!P29*$C$1","v":0},{"$f":"'rent allocations'!Q29*$C$1","v":0},{"$f":"'rent allocations'!R29*$C$1","v":0},{"$f":"'rent allocations'!S29*$C$1","v":0},{"$f":"'rent allocations'!T29*$C$1","v":0},{"$f":"'rent allocations'!U29*$C$1","v":0},{"$f":"'rent allocations'!V29*$C$1","v":0},{"$f":"'rent allocations'!W29*$C$1","v":0},{"$f":"'rent allocations'!X29*$C$1","v":0},{"$f":"'rent allocations'!Y29*$C$1","v":0},{"$f":"'rent allocations'!Z29*$C$1","v":0},{"$f":"'rent allocations'!AA29*$C$1","v":0},{"$f":"'rent allocations'!AB29*$C$1","v":0},{"$f":"'rent allocations'!AC29*$C$1","v":0},{"$f":"'rent allocations'!AD29*$C$1","v":0},{"$f":"'rent allocations'!AE29*$C$1","v":0},{"$f":"'rent allocations'!AF29*$C$1","v":0},{"$f":"'rent allocations'!AG29*$C$1","v":0},{"$f":"'rent allocations'!AH29*$C$1","v":0},{"$f":"'rent allocations'!AI29*$C$1","v":0},{"$f":"'rent allocations'!AJ29*$C$1","v":0},{"$f":"'rent allocations'!AK29*$C$1","v":0},{"$f":"'rent allocations'!AL29*$C$1","v":0}]
["101 - Caseload Forecast Council","101","Caseload Forecast Council",{"$f":"'rent allocations'!D30*$C$1","v":20654.424593134048},{"$f":"'rent allocations'!E30*$C$1","v":0},{"$f":"'rent allocations'!F30*$C$1","v":0},{"$f":"'rent allocations'!G30*$C$1","v":0},{"$f":"'rent allocations'!H30*$C$1","v":0},{"$f":"'rent allocations'!I30*$C$1","v":0},{"$f":"'rent allocations'!J30*$C$1","v":0},{"$f":"'rent allocations'!K30*$C$1","v":0},{"$f":"'rent allocations'!L30*$C$1","v":0},{"$f":"'rent allocations'!M30*$C$1","v":0},{"$f":"'rent allocations'!N30*$C$1","v":0},{"$f":"'rent allocations'!O30*$C$1","v":0},{"$f":"'rent allocations'!P30*$C$1","v":0},{"$f":"'rent allocations'!Q30*$C$1","v":0},{"$f":"'rent allocations'!R30*$C$1","v":0},{"$f":"'rent allocations'!S30*$C$1","v":0},{"$f":"'rent allocations'!T30*$C$1","v":0},{"$f":"'rent allocations'!U30*$C$1","v":0},{"$f":"'rent allocations'!V30*$C$1","v":0},{"$f":"'rent allocations'!W30*$C$1","v":0},{"$f":"'rent allocations'!X30*$C$1","v":20654.424593134048},{"$f":"'rent allocations'!Y30*$C$1","v":0},{"$f":"'rent allocations'!Z30*$C$1","v":0},{"$f":"'rent allocations'!AA30*$C$1","v":0},{"$f":"'rent allocations'!AB30*$C$1","v":0},{"$f":"'rent allocations'!AC30*$C$1","v":0},{"$f":"'rent allocations'!AD30*$C$1","v":0},{"$f":"'rent allocations'!AE30*$C$1","v":0},{"$f":"'rent allocations'!AF30*$C$1","v":0},{"$f":"'rent allocations'!AG30*$C$1","v":0},{"$f":"'rent allocations'!AH30*$C$1","v":0},{"$f":"'rent allocations'!AI30*$C$1","v":0},{"$f":"'rent allocations'!AJ30*$C$1","v":0},{"$f":"'rent allocations'!AK30*$C$1","v":0},{"$f":"'rent allocations'!AL30*$C$1","v":0}]
["102 - Department of Financial Institutions","102","Department of Financial Institutions",{"$f":"'rent allocations'!D31*$C$1","v":0},{"$f":"'rent allocations'!E31*$C$1","v":0},{"$f":"'rent allocations'!F31*$C$1","v":0},{"$f":"'rent allocations'!G31*$C$1","v":0},{"$f":"'rent allocations'!H31*$C$1","v":0},{"$f":"'rent allocations'!I31*$C$1","v":0},{"$f":"'rent allocations'!J31*$C$1","v":0},{"$f":"'rent allocations'!K31*$C$1","v":0},{"$f":"'rent allocations'!L31*$C$1","v":0},{"$f":"'rent allocations'!M31*$C$1","v":0},{"$f":"'rent allocations'!N31*$C$1","v":0},{"$f":"'rent allocations'!O31*$C$1","v":0},{"$f":"'rent allocations'!P31*$C$1","v":0},{"$f":"'rent allocations'!Q31*$C$1","v":0},{"$f":"'rent allocations'!R31*$C$1","v":0},{"$f":"'rent allocations'!S31*$C$1","v":0},{"$f":"'rent allocations'!T31*$C$1","v":0},{"$f":"'rent allocations'!U31*$C$1","v":0},{"$f":"'rent allocations'!V31*$C$1","v":0},{"$f":"'rent allocations'!W31*$C$1","v":0},{"$f":"'rent allocations'!X31*$C$1","v":0},{"$f":"'rent allocations'!Y31*$C$1","v":0},{"$f":"'rent allocations'!Z31*$C$1","v":0},{"$f":"'rent allocations'!AA31*$C$1","v":0},{"$f":"'rent allocations'!AB31*$C$1","v":0},{"$f":"'rent allocations'!AC31*$C$1","v":0},{"$f":"'rent allocations'!AD31*$C$1","v":0},{"$f":"'rent allocations'!AE31*$C$1","v":0},{"$f":"'rent allocations'!AF31*$C$1","v":0},{"$f":"'rent allocations'!AG31*$C$1","v":0},{"$f":"'rent allocations'!AH31*$C$1","v":0},{"$f":"'rent allocations'!AI31*$C$1","v":0},{"$f":"'rent allocations'!AJ31*$C$1","v":0},{"$f":"'rent allocations'!AK31*$C$1","v":0},{"$f":"'rent allocations'!AL31*$C$1","v":0}]
["103 - Department of Commerce","103","Department of Commerce",{"$f":"'rent allocations'!D32*$C$1","v":0},{"$f":"'rent allocations'!E32*$C$1","v":0},{"$f":"'rent allocations'!F32*$C$1","v":0},{"$f":"'rent allocations'!G32*$C$1","v":0},{"$f":"'rent allocations'!H32*$C$1","v":0},{"$f":"'rent allocations'!I32*$C$1","v":0},{"$f":"'rent allocations'!J32*$C$1","v":0},{"$f":"'rent allocations'!K32*$C$1","v":0},{"$f":"'rent allocations'!L32*$C$1","v":0},{"$f":"'rent allocations'!M32*$C$1","v":0},{"$f":"'rent allocations'!N32*$C$1","v":0},{"$f":"'rent allocations'!O32*$C$1","v":0},{"$f":"'rent allocations'!P32*$C$1","v":0},{"$f":"'rent allocations'!Q32*$C$1","v":0},{"$f":"'rent allocations'!R32*$C$1","v":0},{"$f":"'rent allocations'!S32*$C$1","v":0},{"$f":"'rent allocations'!T32*$C$1","v":0},{"$f":"'rent allocations'!U32*$C$1","v":0},{"$f":"'rent allocations'!V32*$C$1","v":0},{"$f":"'rent allocations'!W32*$C$1","v":0},{"$f":"'rent allocations'!X32*$C$1","v":0},{"$f":"'rent allocations'!Y32*$C$1","v":0},{"$f":"'rent allocations'!Z32*$C$1","v":0},{"$f":"'rent allocations'!AA32*$C$1","v":0},{"$f":"'rent allocations'!AB32*$C$1","v":0},{"$f":"'rent allocations'!AC32*$C$1","v":0},{"$f":"'rent allocations'!AD32*$C$1","v":0},{"$f":"'rent allocations'!AE32*$C$1","v":0},{"$f":"'rent allocations'!AF32*$C$1","v":0},{"$f":"'rent allocations'!AG32*$C$1","v":0},{"$f":"'rent allocations'!AH32*$C$1","v":0},{"$f":"'rent allocations'!AI32*$C$1","v":0},{"$f":"'rent allocations'!AJ32*$C$1","v":0},{"$f":"'rent allocations'!AK32*$C$1","v":0},{"$f":"'rent allocations'!AL32*$C$1","v":0}]
["104 - Economic and Revenue Forecast Council","104","Economic and Revenue Forecast Council",{"$f":"'rent allocations'!D33*$C$1","v":0},{"$f":"'rent allocations'!E33*$C$1","v":0},{"$f":"'rent allocations'!F33*$C$1","v":0},{"$f":"'rent allocations'!G33*$C$1","v":0},{"$f":"'rent allocations'!H33*$C$1","v":0},{"$f":"'rent allocations'!I33*$C$1","v":0},{"$f":"'rent allocations'!J33*$C$1","v":0},{"$f":"'rent allocations'!K33*$C$1","v":0},{"$f":"'rent allocations'!L33*$C$1","v":0},{"$f":"'rent allocations'!M33*$C$1","v":0},{"$f":"'rent allocations'!N33*$C$1","v":0},{"$f":"'rent allocations'!O33*$C$1","v":0},{"$f":"'rent allocations'!P33*$C$1","v":0},{"$f":"'rent allocations'!Q33*$C$1","v":0},{"$f":"'rent allocations'!R33*$C$1","v":0},{"$f":"'rent allocations'!S33*$C$1","v":0},{"$f":"'rent allocations'!T33*$C$1","v":0},{"$f":"'rent allocations'!U33*$C$1","v":0},{"$f":"'rent allocations'!V33*$C$1","v":0},{"$f":"'rent allocations'!W33*$C$1","v":0},{"$f":"'rent allocations'!X33*$C$1","v":0},{"$f":"'rent allocations'!Y33*$C$1","v":0},{"$f":"'rent allocations'!Z33*$C$1","v":0},{"$f":"'rent allocations'!AA33*$C$1","v":0},{"$f":"'rent allocations'!AB33*$C$1","v":0},{"$f":"'rent allocations'!AC33*$C$1","v":0},{"$f":"'rent allocations'!AD33*$C$1","v":0},{"$f":"'rent allocations'!AE33*$C$1","v":0},{"$f":"'rent allocations'!AF33*$C$1","v":0},{"$f":"'rent allocations'!AG33*$C$1","v":0},{"$f":"'rent allocations'!AH33*$C$1","v":0},{"$f":"'rent allocations'!AI33*$C$1","v":0},{"$f":"'rent allocations'!AJ33*$C$1","v":0},{"$f":"'rent allocations'!AK33*$C$1","v":0},{"$f":"'rent allocations'!AL33*$C$1","v":0}]
["105 - Office of Financial Management","105","Office of Financial Management",{"$f":"'rent allocations'!D34*$C$1","v":144710.84590244057},{"$f":"'rent allocations'!E34*$C$1","v":0},{"$f":"'rent allocations'!F34*$C$1","v":0},{"$f":"'rent allocations'!G34*$C$1","v":0},{"$f":"'rent allocations'!H34*$C$1","v":0},{"$f":"'rent allocations'!I34*$C$1","v":0},{"$f":"'rent allocations'!J34*$C$1","v":0},{"$f":"'rent allocations'!K34*$C$1","v":0},{"$f":"'rent allocations'!L34*$C$1","v":0},{"$f":"'rent allocations'!M34*$C$1","v":0},{"$f":"'rent allocations'!N34*$C$1","v":0},{"$f":"'rent allocations'!O34*$C$1","v":105006.25560821524},{"$f":"'rent allocations'!P34*$C$1","v":0},{"$f":"'rent allocations'!Q34*$C$1","v":0},{"$f":"'rent allocations'!R34*$C$1","v":0},{"$f":"'rent allocations'!S34*$C$1","v":0},{"$f":"'rent allocations'!T34*$C$1","v":0},{"$f":"'rent allocations'!U34*$C$1","v":0},{"$f":"'rent allocations'!V34*$C$1","v":0},{"$f":"'rent allocations'!W34*$C$1","v":0},{"$f":"'rent allocations'!X34*$C$1","v":2799.0389279954829},{"$f":"'rent allocations'!Y34*$C$1","v":0},{"$f":"'rent allocations'!Z34*$C$1","v":0},{"$f":"'rent allocations'!AA34*$C$1","v":0},{"$f":"'rent allocations'!AB34*$C$1","v":0},{"$f":"'rent allocations'!AC34*$C$1","v":0},{"$f":"'rent allocations'!AD34*$C$1","v":0},{"$f":"'rent allocations'!AE34*$C$1","v":0},{"$f":"'rent allocations'!AF34*$C$1","v":36905.551366229833},{"$f":"'rent allocations'!AG34*$C$1","v":0},{"$f":"'rent allocations'!AH34*$C$1","v":0},{"$f":"'rent allocations'!AI34*$C$1","v":0},{"$f":"'rent allocations'!AJ34*$C$1","v":0},{"$f":"'rent allocations'!AK34*$C$1","v":0},{"$f":"'rent allocations'!AL34*$C$1","v":0}]
["107 - Washington State Health Care Authority","107","Washington State Health Care Authority",{"$f":"'rent allocations'!D35*$C$1","v":0},{"$f":"'rent allocations'!E35*$C$1","v":0},{"$f":"'rent allocations'!F35*$C$1","v":0},{"$f":"'rent allocations'!G35*$C$1","v":0},{"$f":"'rent allocations'!H35*$C$1","v":0},{"$f":"'rent allocations'!I35*$C$1","v":0},{"$f":"'rent allocations'!J35*$C$1","v":0},{"$f":"'rent allocations'!K35*$C$1","v":0},{"$f":"'rent allocations'!L35*$C$1","v":0},{"$f":"'rent allocations'!M35*$C$1","v":0},{"$f":"'rent allocations'!N35*$C$1","v":0},{"$f":"'rent allocations'!O35*$C$1","v":0},{"$f":"'rent allocations'!P35*$C$1","v":0},{"$f":"'rent allocations'!Q35*$C$1","v":0},{"$f":"'rent allocations'!R35*$C$1","v":0},{"$f":"'rent allocations'!S35*$C$1","v":0},{"$f":"'rent allocations'!T35*$C$1","v":0},{"$f":"'rent allocations'!U35*$C$1","v":0},{"$f":"'rent allocations'!V35*$C$1","v":0},{"$f":"'rent allocations'!W35*$C$1","v":0},{"$f":"'rent allocations'!X35*$C$1","v":0},{"$f":"'rent allocations'!Y35*$C$1","v":0},{"$f":"'rent allocations'!Z35*$C$1","v":0},{"$f":"'rent allocations'!AA35*$C$1","v":0},{"$f":"'rent allocations'!AB35*$C$1","v":0},{"$f":"'rent allocations'!AC35*$C$1","v":0},{"$f":"'rent allocations'!AD35*$C$1","v":0},{"$f":"'rent allocations'!AE35*$C$1","v":0},{"$f":"'rent allocations'!AF35*$C$1","v":0},{"$f":"'rent allocations'!AG35*$C$1","v":0},{"$f":"'rent allocations'!AH35*$C$1","v":0},{"$f":"'rent allocations'!AI35*$C$1","v":0},{"$f":"'rent allocations'!AJ35*$C$1","v":0},{"$f":"'rent allocations'!AK35*$C$1","v":0},{"$f":"'rent allocations'!AL35*$C$1","v":0}]
["110 - Office of Administrative Hearings","110","Office of Administrative Hearings",{"$f":"'rent allocations'!D36*$C$1","v":38054.350800386317},{"$f":"'rent allocations'!E36*$C$1","v":0},{"$f":"'rent allocations'!F36*$C$1","v":0},{"$f":"'rent allocations'!G36*$C$1","v":0},{"$f":"'rent allocations'!H36*$C$1","v":0},{"$f":"'rent allocations'!I36*$C$1","v":0},{"$f":"'rent allocations'!J36*$C$1","v":0},{"$f":"'rent allocations'!K36*$C$1","v":0},{"$f":"'rent allocations'!L36*$C$1","v":0},{"$f":"'rent allocations'!M36*$C$1","v":0},{"$f":"'rent allocations'!N36*$C$1","v":0},{"$f":"'rent allocations'!O36*$C$1","v":0},{"$f":"'rent allocations'!P36*$C$1","v":0},{"$f":"'rent allocations'!Q36*$C$1","v":0},{"$f":"'rent allocations'!R36*$C$1","v":0},{"$f":"'rent allocations'!S36*$C$1","v":0},{"$f":"'rent allocations'!T36*$C$1","v":0},{"$f":"'rent allocations'!U36*$C$1","v":0},{"$f":"'rent allocations'!V36*$C$1","v":0},{"$f":"'rent allocations'!W36*$C$1","v":0},{"$f":"'rent allocations'!X36*$C$1","v":0},{"$f":"'rent allocations'!Y36*$C$1","v":0},{"$f":"'rent allocations'!Z36*$C$1","v":0},{"$f":"'rent allocations'!AA36*$C$1","v":0},{"$f":"'rent allocations'!AB36*$C$1","v":0},{"$f":"'rent allocations'!AC36*$C$1","v":0},{"$f":"'rent allocations'!AD36*$C$1","v":0},{"$f":"'rent allocations'!AE36*$C$1","v":0},{"$f":"'rent allocations'!AF36*$C$1","v":0},{"$f":"'rent allocations'!AG36*$C$1","v":0},{"$f":"'rent allocations'!AH36*$C$1","v":0},{"$f":"'rent allocations'!AI36*$C$1","v":0},{"$f":"'rent allocations'!AJ36*$C$1","v":38054.350800386317},{"$f":"'rent allocations'!AK36*$C$1","v":0},{"$f":"'rent allocations'!AL36*$C$1","v":0}]
["116 - State Lottery","116","State Lottery",{"$f":"'rent allocations'!D37*$C$1","v":0},{"$f":"'rent allocations'!E37*$C$1","v":0},{"$f":"'rent allocations'!F37*$C$1","v":0},{"$f":"'rent allocations'!G37*$C$1","v":0},{"$f":"'rent allocations'!H37*$C$1","v":0},{"$f":"'rent allocations'!I37*$C$1","v":0},{"$f":"'rent allocations'!J37*$C$1","v":0},{"$f":"'rent allocations'!K37*$C$1","v":0},{"$f":"'rent allocations'!L37*$C$1","v":0},{"$f":"'rent allocations'!M37*$C$1","v":0},{"$f":"'rent allocations'!N37*$C$1","v":0},{"$f":"'rent allocations'!O37*$C$1","v":0},{"$f":"'rent allocations'!P37*$C$1","v":0},{"$f":"'rent allocations'!Q37*$C$1","v":0},{"$f":"'rent allocations'!R37*$C$1","v":0},{"$f":"'rent allocations'!S37*$C$1","v":0},{"$f":"'rent allocations'!T37*$C$1","v":0},{"$f":"'rent allocations'!U37*$C$1","v":0},{"$f":"'rent allocations'!V37*$C$1","v":0},{"$f":"'rent allocations'!W37*$C$1","v":0},{"$f":"'rent allocations'!X37*$C$1","v":0},{"$f":"'rent allocations'!Y37*$C$1","v":0},{"$f":"'rent allocations'!Z37*$C$1","v":0},{"$f":"'rent allocations'!AA37*$C$1","v":0},{"$f":"'rent allocations'!AB37*$C$1","v":0},{"$f":"'rent allocations'!AC37*$C$1","v":0},{"$f":"'rent allocations'!AD37*$C$1","v":0},{"$f":"'rent allocations'!AE37*$C$1","v":0},{"$f":"'rent allocations'!AF37*$C$1","v":0},{"$f":"'rent allocations'!AG37*$C$1","v":0},{"$f":"'rent allocations'!AH37*$C$1","v":0},{"$f":"'rent allocations'!AI37*$C$1","v":0},{"$f":"'rent allocations'!AJ37*$C$1","v":0},{"$f":"'rent allocations'!AK37*$C$1","v":0},{"$f":"'rent allocations'!AL37*$C$1","v":0}]
["117 - Washington State Gambling Commission","117","Washington State Gambling Commission",{"$f":"'rent allocations'!D38*$C$1","v":0},{"$f":"'rent allocations'!E38*$C$1","v":0},{"$f":"'rent allocations'!F38*$C$1","v":0},{"$f":"'rent allocations'!G38*$C$1","v":0},{"$f":"'rent allocations'!H38*$C$1","v":0},{"$f":"'rent allocations'!I38*$C$1","v":0},{"$f":"'rent allocations'!J38*$C$1","v":0},{"$f":"'rent allocations'!K38*$C$1","v":0},{"$f":"'rent allocations'!L38*$C$1","v":0},{"$f":"'rent allocations'!M38*$C$1","v":0},{"$f":"'rent allocations'!N38*$C$1","v":0},{"$f":"'rent allocations'!O38*$C$1","v":0},{"$f":"'rent allocations'!P38*$C$1","v":0},{"$f":"'rent allocations'!Q38*$C$1","v":0},{"$f":"'rent allocations'!R38*$C$1","v":0},{"$f":"'rent allocations'!S38*$C$1","v":0},{"$f":"'rent allocations'!T38*$C$1","v":0},{"$f":"'rent allocations'!U38*$C$1","v":0},{"$f":"'rent allocations'!V38*$C$1","v":0},{"$f":"'rent allocations'!W38*$C$1","v":0},{"$f":"'rent allocations'!X38*$C$1","v":0},{"$f":"'rent allocations'!Y38*$C$1","v":0},{"$f":"'rent allocations'!Z38*$C$1","v":0},{"$f":"'rent allocations'!AA38*$C$1","v":0},{"$f":"'rent allocations'!AB38*$C$1","v":0},{"$f":"'rent allocations'!AC38*$C$1","v":0},{"$f":"'rent allocations'!AD38*$C$1","v":0},{"$f":"'rent allocations'!AE38*$C$1","v":0},{"$f":"'rent allocations'!AF38*$C$1","v":0},{"$f":"'rent allocations'!AG38*$C$1","v":0},{"$f":"'rent allocations'!AH38*$C$1","v":0},{"$f":"'rent allocations'!AI38*$C$1","v":0},{"$f":"'rent allocations'!AJ38*$C$1","v":0},{"$f":"'rent allocations'!AK38*$C$1","v":0},{"$f":"'rent allocations'!AL38*$C$1","v":0}]
["118 - Commission on Hispanic Affairs","118","Commission on Hispanic Affairs",{"$f":"'rent allocations'!D39*$C$1","v":3455.751923977255},{"$f":"'rent allocations'!E39*$C$1","v":0},{"$f":"'rent allocations'!F39*$C$1","v":0},{"$f":"'rent allocations'!G39*$C$1","v":0},{"$f":"'rent allocations'!H39*$C$1","v":0},{"$f":"'rent allocations'!I39*$C$1","v":0},{"$f":"'rent allocations'!J39*$C$1","v":0},{"$f":"'rent allocations'!K39*$C$1","v":0},{"$f":"'rent allocations'!L39*$C$1","v":0},{"$f":"'rent allocations'!M39*$C$1","v":0},{"$f":"'rent allocations'!N39*$C$1","v":0},{"$f":"'rent allocations'!O39*$C$1","v":0},{"$f":"'rent allocations'!P39*$C$1","v":0},{"$f":"'rent allocations'!Q39*$C$1","v":0},{"$f":"'rent allocations'!R39*$C$1","v":0},{"$f":"'rent allocations'!S39*$C$1","v":0},{"$f":"'rent allocations'!T39*$C$1","v":0},{"$f":"'rent allocations'!U39*$C$1","v":0},{"$f":"'rent allocations'!V39*$C$1","v":0},{"$f":"'rent allocations'!W39*$C$1","v":0},{"$f":"'rent allocations'!X39*$C$1","v":3455.751923977255},{"$f":"'rent allocations'!Y39*$C$1","v":0},{"$f":"'rent allocations'!Z39*$C$1","v":0},{"$f":"'rent allocations'!AA39*$C$1","v":0},{"$f":"'rent allocations'!AB39*$C$1","v":0},{"$f":"'rent allocations'!AC39*$C$1","v":0},{"$f":"'rent allocations'!AD39*$C$1","v":0},{"$f":"'rent allocations'!AE39*$C$1","v":0},{"$f":"'rent allocations'!AF39*$C$1","v":0},{"$f":"'rent allocations'!AG39*$C$1","v":0},{"$f":"'rent allocations'!AH39*$C$1","v":0},{"$f":"'rent allocations'!AI39*$C$1","v":0},{"$f":"'rent allocations'!AJ39*$C$1","v":0},{"$f":"'rent allocations'!AK39*$C$1","v":0},{"$f":"'rent allocations'!AL39*$C$1","v":0}]
["119 - Commission on African-American Affairs","119","Commission on African-American Affairs",{"$f":"'rent allocations'!D40*$C$1","v":3455.751923977255},{"$f":"'rent allocations'!E40*$C$1","v":0},{"$f":"'rent allocations'!F40*$C$1","v":0},{"$f":"'rent allocations'!G40*$C$1","v":0},{"$f":"'rent allocations'!H40*$C$1","v":0},{"$f":"'rent allocations'!I40*$C$1","v":0},{"$f":"'rent allocations'!J40*$C$1","v":0},{"$f":"'rent allocations'!K40*$C$1","v":0},{"$f":"'rent allocations'!L40*$C$1","v":0},{"$f":"'rent allocations'!M40*$C$1","v":0},{"$f":"'rent allocations'!N40*$C$1","v":0},{"$f":"'rent allocations'!O40*$C$1","v":0},{"$f":"'rent allocations'!P40*$C$1","v":0},{"$f":"'rent allocations'!Q40*$C$1","v":0},{"$f":"'rent allocations'!R40*$C$1","v":0},{"$f":"'rent allocations'!S40*$C$1","v":0},{"$f":"'rent allocations'!T40*$C$1","v":0},{"$f":"'rent allocations'!U40*$C$1","v":0},{"$f":"'rent allocations'!V40*$C$1","v":0},{"$f":"'rent allocations'!W40*$C$1","v":0},{"$f":"'rent allocations'!X40*$C$1","v":3455.751923977255},{"$f":"'rent allocations'!Y40*$C$1","v":0},{"$f":"'rent allocations'!Z40*$C$1","v":0},{"$f":"'rent allocations'!AA40*$C$1","v":0},{"$f":"'rent allocations'!AB40*$C$1","v":0},{"$f":"'rent allocations'!AC40*$C$1","v":0},{"$f":"'rent allocations'!AD40*$C$1","v":0},{"$f":"'rent allocations'!AE40*$C$1","v":0},{"$f":"'rent allocations'!AF40*$C$1","v":0},{"$f":"'rent allocations'!AG40*$C$1","v":0},{"$f":"'rent allocations'!AH40*$C$1","v":0},{"$f":"'rent allocations'!AI40*$C$1","v":0},{"$f":"'rent allocations'!AJ40*$C$1","v":0},{"$f":"'rent allocations'!AK40*$C$1","v":0},{"$f":"'rent allocations'!AL40*$C$1","v":0}]
["120 - Human Rights Commission","120","Human Rights Commission",{"$f":"'rent allocations'!D41*$C$1","v":0},{"$f":"'rent allocations'!E41*$C$1","v":0},{"$f":"'rent allocations'!F41*$C$1","v":0},{"$f":"'rent allocations'!G41*$C$1","v":0},{"$f":"'rent allocations'!H41*$C$1","v":0},{"$f":"'rent allocations'!I41*$C$1","v":0},{"$f":"'rent allocations'!J41*$C$1","v":0},{"$f":"'rent allocations'!K41*$C$1","v":0},{"$f":"'rent allocations'!L41*$C$1","v":0},{"$f":"'rent allocations'!M41*$C$1","v":0},{"$f":"'rent allocations'!N41*$C$1","v":0},{"$f":"'rent allocations'!O41*$C$1","v":0},{"$f":"'rent allocations'!P41*$C$1","v":0},{"$f":"'rent allocations'!Q41*$C$1","v":0},{"$f":"'rent allocations'!R41*$C$1","v":0},{"$f":"'rent allocations'!S41*$C$1","v":0},{"$f":"'rent allocations'!T41*$C$1","v":0},{"$f":"'rent allocations'!U41*$C$1","v":0},{"$f":"'rent allocations'!V41*$C$1","v":0},{"$f":"'rent allocations'!W41*$C$1","v":0},{"$f":"'rent allocations'!X41*$C$1","v":0},{"$f":"'rent allocations'!Y41*$C$1","v":0},{"$f":"'rent allocations'!Z41*$C$1","v":0},{"$f":"'rent allocations'!AA41*$C$1","v":0},{"$f":"'rent allocations'!AB41*$C$1","v":0},{"$f":"'rent allocations'!AC41*$C$1","v":0},{"$f":"'rent allocations'!AD41*$C$1","v":0},{"$f":"'rent allocations'!AE41*$C$1","v":0},{"$f":"'rent allocations'!AF41*$C$1","v":0},{"$f":"'rent allocations'!AG41*$C$1","v":0},{"$f":"'rent allocations'!AH41*$C$1","v":0},{"$f":"'rent allocations'!AI41*$C$1","v":0},{"$f":"'rent allocations'!AJ41*$C$1","v":0},{"$f":"'rent allocations'!AK41*$C$1","v":0},{"$f":"'rent allocations'!AL41*$C$1","v":0}]
["124 - Department of Retirement Systems","124","Department of Retirement Systems",{"$f":"'rent allocations'!D42*$C$1","v":0},{"$f":"'rent allocations'!E42*$C$1","v":0},{"$f":"'rent allocations'!F42*$C$1","v":0},{"$f":"'rent allocations'!G42*$C$1","v":0},{"$f":"'rent allocations'!H42*$C$1","v":0},{"$f":"'rent allocations'!I42*$C$1","v":0},{"$f":"'rent allocations'!J42*$C$1","v":0},{"$f":"'rent allocations'!K42*$C$1","v":0},{"$f":"'rent allocations'!L42*$C$1","v":0},{"$f":"'rent allocations'!M42*$C$1","v":0},{"$f":"'rent allocations'!N42*$C$1","v":0},{"$f":"'rent allocations'!O42*$C$1","v":0},{"$f":"'rent allocations'!P42*$C$1","v":0},{"$f":"'rent allocations'!Q42*$C$1","v":0},{"$f":"'rent allocations'!R42*$C$1","v":0},{"$f":"'rent allocations'!S42*$C$1","v":0},{"$f":"'rent allocations'!T42*$C$1","v":0},{"$f":"'rent allocations'!U42*$C$1","v":0},{"$f":"'rent allocations'!V42*$C$1","v":0},{"$f":"'rent allocations'!W42*$C$1","v":0},{"$f":"'rent allocations'!X42*$C$1","v":0},{"$f":"'rent allocations'!Y42*$C$1","v":0},{"$f":"'rent allocations'!Z42*$C$1","v":0},{"$f":"'rent allocations'!AA42*$C$1","v":0},{"$f":"'rent allocations'!AB42*$C$1","v":0},{"$f":"'rent allocations'!AC42*$C$1","v":0},{"$f":"'rent allocations'!AD42*$C$1","v":0},{"$f":"'rent allocations'!AE42*$C$1","v":0},{"$f":"'rent allocations'!AF42*$C$1","v":0},{"$f":"'rent allocations'!AG42*$C$1","v":0},{"$f":"'rent allocations'!AH42*$C$1","v":0},{"$f":"'rent allocations'!AI42*$C$1","v":0},{"$f":"'rent allocations'!AJ42*$C$1","v":0},{"$f":"'rent allocations'!AK42*$C$1","v":0},{"$f":"'rent allocations'!AL42*$C$1","v":0}]
["126 - State Investment Board","126","State Investment Board",{"$f":"'rent allocations'!D43*$C$1","v":0},{"$f":"'rent allocations'!E43*$C$1","v":0},{"$f":"'rent allocations'!F43*$C$1","v":0},{"$f":"'rent allocations'!G43*$C$1","v":0},{"$f":"'rent allocations'!H43*$C$1","v":0},{"$f":"'rent allocations'!I43*$C$1","v":0},{"$f":"'rent allocations'!J43*$C$1","v":0},{"$f":"'rent allocations'!K43*$C$1","v":0},{"$f":"'rent allocations'!L43*$C$1","v":0},{"$f":"'rent allocations'!M43*$C$1","v":0},{"$f":"'rent allocations'!N43*$C$1","v":0},{"$f":"'rent allocations'!O43*$C$1","v":0},{"$f":"'rent allocations'!P43*$C$1","v":0},{"$f":"'rent allocations'!Q43*$C$1","v":0},{"$f":"'rent allocations'!R43*$C$1","v":0},{"$f":"'rent allocations'!S43*$C$1","v":0},{"$f":"'rent allocations'!T43*$C$1","v":0},{"$f":"'rent allocations'!U43*$C$1","v":0},{"$f":"'rent allocations'!V43*$C$1","v":0},{"$f":"'rent allocations'!W43*$C$1","v":0},{"$f":"'rent allocations'!X43*$C$1","v":0},{"$f":"'rent allocations'!Y43*$C$1","v":0},{"$f":"'rent allocations'!Z43*$C$1","v":0},{"$f":"'rent allocations'!AA43*$C$1","v":0},{"$f":"'rent allocations'!AB43*$C$1","v":0},{"$f":"'rent allocations'!AC43*$C$1","v":0},{"$f":"'rent allocations'!AD43*$C$1","v":0},{"$f":"'rent allocations'!AE43*$C$1","v":0},{"$f":"'rent allocations'!AF43*$C$1","v":0},{"$f":"'rent allocations'!AG43*$C$1","v":0},{"$f":"'rent allocations'!AH43*$C$1","v":0},{"$f":"'rent allocations'!AI43*$C$1","v":0},{"$f":"'rent allocations'!AJ43*$C$1","v":0},{"$f":"'rent allocations'!AK43*$C$1","v":0},{"$f":"'rent allocations'!AL43*$C$1","v":0}]
["140 - Department of Revenue","140","Department of Revenue",{"$f":"'rent allocations'!D44*$C$1","v":0},{"$f":"'rent allocations'!E44*$C$1","v":0},{"$f":"'rent allocations'!F44*$C$1","v":0},{"$f":"'rent allocations'!G44*$C$1","v":0},{"$f":"'rent allocations'!H44*$C$1","v":0},{"$f":"'rent allocations'!I44*$C$1","v":0},{"$f":"'rent allocations'!J44*$C$1","v":0},{"$f":"'rent allocations'!K44*$C$1","v":0},{"$f":"'rent allocations'!L44*$C$1","v":0},{"$f":"'rent allocations'!M44*$C$1","v":0},{"$f":"'rent allocations'!N44*$C$1","v":0},{"$f":"'rent allocations'!O44*$C$1","v":0},{"$f":"'rent allocations'!P44*$C$1","v":0},{"$f":"'rent allocations'!Q44*$C$1","v":0},{"$f":"'rent allocations'!R44*$C$1","v":0},{"$f":"'rent allocations'!S44*$C$1","v":0},{"$f":"'rent allocations'!T44*$C$1","v":0},{"$f":"'rent allocations'!U44*$C$1","v":0},{"$f":"'rent allocations'!V44*$C$1","v":0},{"$f":"'rent allocations'!W44*$C$1","v":0},{"$f":"'rent allocations'!X44*$C$1","v":0},{"$f":"'rent allocations'!Y44*$C$1","v":0},{"$f":"'rent allocations'!Z44*$C$1","v":0},{"$f":"'rent allocations'!AA44*$C$1","v":0},{"$f":"'rent allocations'!AB44*$C$1","v":0},{"$f":"'rent allocations'!AC44*$C$1","v":0},{"$f":"'rent allocations'!AD44*$C$1","v":0},{"$f":"'rent allocations'!AE44*$C$1","v":0},{"$f":"'rent allocations'!AF44*$C$1","v":0},{"$f":"'rent allocations'!AG44*$C$1","v":0},{"$f":"'rent allocations'!AH44*$C$1","v":0},{"$f":"'rent allocations'!AI44*$C$1","v":0},{"$f":"'rent allocations'!AJ44*$C$1","v":0},{"$f":"'rent allocations'!AK44*$C$1","v":0},{"$f":"'rent allocations'!AL44*$C$1","v":0}]
["142 - Board of Tax Appeals","142","Board of Tax Appeals",{"$f":"'rent allocations'!D45*$C$1","v":18700.302995334623},{"$f":"'rent allocations'!E45*$C$1","v":0},{"$f":"'rent allocations'!F45*$C$1","v":0},{"$f":"'rent allocations'!G45*$C$1","v":0},{"$f":"'rent allocations'!H45*$C$1","v":0},{"$f":"'rent allocations'!I45*$C$1","v":0},{"$f":"'rent allocations'!J45*$C$1","v":0},{"$f":"'rent allocations'!K45*$C$1","v":0},{"$f":"'rent allocations'!L45*$C$1","v":0},{"$f":"'rent allocations'!M45*$C$1","v":0},{"$f":"'rent allocations'!N45*$C$1","v":0},{"$f":"'rent allocations'!O45*$C$1","v":0},{"$f":"'rent allocations'!P45*$C$1","v":0},{"$f":"'rent allocations'!Q45*$C$1","v":0},{"$f":"'rent allocations'!R45*$C$1","v":0},{"$f":"'rent allocations'!S45*$C$1","v":0},{"$f":"'rent allocations'!T45*$C$1","v":0},{"$f":"'rent allocations'!U45*$C$1","v":0},{"$f":"'rent allocations'!V45*$C$1","v":0},{"$f":"'rent allocations'!W45*$C$1","v":0},{"$f":"'rent allocations'!X45*$C$1","v":18700.302995334623},{"$f":"'rent allocations'!Y45*$C$1","v":0},{"$f":"'rent allocations'!Z45*$C$1","v":0},{"$f":"'rent allocations'!AA45*$C$1","v":0},{"$f":"'rent allocations'!AB45*$C$1","v":0},{"$f":"'rent allocations'!AC45*$C$1","v":0},{"$f":"'rent allocations'!AD45*$C$1","v":0},{"$f":"'rent allocations'!AE45*$C$1","v":0},{"$f":"'rent allocations'!AF45*$C$1","v":0},{"$f":"'rent allocations'!AG45*$C$1","v":0},{"$f":"'rent allocations'!AH45*$C$1","v":0},{"$f":"'rent allocations'!AI45*$C$1","v":0},{"$f":"'rent allocations'!AJ45*$C$1","v":0},{"$f":"'rent allocations'!AK45*$C$1","v":0},{"$f":"'rent allocations'!AL45*$C$1","v":0}]
["147 - Office of Minority and Women's Business Enterprises","147","Office of Minority and Women's Business Enterprises",{"$f":"'rent allocations'!D46*$C$1","v":19296.950778269289},{"$f":"'rent allocations'!E46*$C$1","v":0},{"$f":"'rent allocations'!F46*$C$1","v":0},{"$f":"'rent allocations'!G46*$C$1","v":0},{"$f":"'rent allocations'!H46*$C$1","v":0},{"$f":"'rent allocations'!I46*$C$1","v":0},{"$f":"'rent allocations'!J46*$C$1","v":0},{"$f":"'rent allocations'!K46*$C$1","v":0},{"$f":"'rent allocations'!L46*$C$1","v":0},{"$f":"'rent allocations'!M46*$C$1","v":0},{"$f":"'rent allocations'!N46*$C$1","v":0},{"$f":"'rent allocations'!O46*$C$1","v":0},{"$f":"'rent allocations'!P46*$C$1","v":0},{"$f":"'rent allocations'!Q46*$C$1","v":0},{"$f":"'rent allocations'!R46*$C$1","v":0},{"$f":"'rent allocations'!S46*$C$1","v":0},{"$f":"'rent allocations'!T46*$C$1","v":0},{"$f":"'rent allocations'!U46*$C$1","v":0},{"$f":"'rent allocations'!V46*$C$1","v":0},{"$f":"'rent allocations'!W46*$C$1","v":0},{"$f":"'rent allocations'!X46*$C$1","v":19296.950778269289},{"$f":"'rent allocations'!Y46*$C$1","v":0},{"$f":"'rent allocations'!Z46*$C$1","v":0},{"$f":"'rent allocations'!AA46*$C$1","v":0},{"$f":"'rent allocations'!AB46*$C$1","v":0},{"$f":"'rent allocations'!AC46*$C$1","v":0},{"$f":"'rent allocations'!AD46*$C$1","v":0},{"$f":"'rent allocations'!AE46*$C$1","v":0},{"$f":"'rent allocations'!AF46*$C$1","v":0},{"$f":"'rent allocations'!AG46*$C$1","v":0},{"$f":"'rent allocations'!AH46*$C$1","v":0},{"$f":"'rent allocations'!AI46*$C$1","v":0},{"$f":"'rent allocations'!AJ46*$C$1","v":0},{"$f":"'rent allocations'!AK46*$C$1","v":0},{"$f":"'rent allocations'!AL46*$C$1","v":0}]
["160 - Office of Insurance Commissioner","160","Office of Insurance Commissioner",{"$f":"'rent allocations'!D47*$C$1","v":17596.296076097929},{"$f":"'rent allocations'!E47*$C$1","v":0},{"$f":"'rent allocations'!F47*$C$1","v":0},{"$f":"'rent allocations'!G47*$C$1","v":0},{"$f":"'rent allocations'!H47*$C$1","v":0},{"$f":"'rent allocations'!I47*$C$1","v":0},{"$f":"'rent allocations'!J47*$C$1","v":0},{"$f":"'rent allocations'!K47*$C$1","v":0},{"$f":"'rent allocations'!L47*$C$1","v":0},{"$f":"'rent allocations'!M47*$C$1","v":0},{"$f":"'rent allocations'!N47*$C$1","v":0},{"$f":"'rent allocations'!O47*$C$1","v":17596.296076097929},{"$f":"'rent allocations'!P47*$C$1","v":0},{"$f":"'rent allocations'!Q47*$C$1","v":0},{"$f":"'rent allocations'!R47*$C$1","v":0},{"$f":"'rent allocations'!S47*$C$1","v":0},{"$f":"'rent allocations'!T47*$C$1","v":0},{"$f":"'rent allocations'!U47*$C$1","v":0},{"$f":"'rent allocations'!V47*$C$1","v":0},{"$f":"'rent allocations'!W47*$C$1","v":0},{"$f":"'rent allocations'!X47*$C$1","v":0},{"$f":"'rent allocations'!Y47*$C$1","v":0},{"$f":"'rent allocations'!Z47*$C$1","v":0},{"$f":"'rent allocations'!AA47*$C$1","v":0},{"$f":"'rent allocations'!AB47*$C$1","v":0},{"$f":"'rent allocations'!AC47*$C$1","v":0},{"$f":"'rent allocations'!AD47*$C$1","v":0},{"$f":"'rent allocations'!AE47*$C$1","v":0},{"$f":"'rent allocations'!AF47*$C$1","v":0},{"$f":"'rent allocations'!AG47*$C$1","v":0},{"$f":"'rent allocations'!AH47*$C$1","v":0},{"$f":"'rent allocations'!AI47*$C$1","v":0},{"$f":"'rent allocations'!AJ47*$C$1","v":0},{"$f":"'rent allocations'!AK47*$C$1","v":0},{"$f":"'rent allocations'!AL47*$C$1","v":0}]
["163 - Consolidated Technology Services","163","Consolidated Technology Services",{"$f":"'rent allocations'!D48*$C$1","v":561.90647918054617},{"$f":"'rent allocations'!E48*$C$1","v":0},{"$f":"'rent allocations'!F48*$C$1","v":0},{"$f":"'rent allocations'!G48*$C$1","v":0},{"$f":"'rent allocations'!H48*$C$1","v":0},{"$f":"'rent allocations'!I48*$C$1","v":0},{"$f":"'rent allocations'!J48*$C$1","v":561.90647918054617},{"$f":"'rent allocations'!K48*$C$1","v":0},{"$f":"'rent allocations'!L48*$C$1","v":0},{"$f":"'rent allocations'!M48*$C$1","v":0},{"$f":"'rent allocations'!N48*$C$1","v":0},{"$f":"'rent allocations'!O48*$C$1","v":0},{"$f":"'rent allocations'!P48*$C$1","v":0},{"$f":"'rent allocations'!Q48*$C$1","v":0},{"$f":"'rent allocations'!R48*$C$1","v":0},{"$f":"'rent allocations'!S48*$C$1","v":0},{"$f":"'rent allocations'!T48*$C$1","v":0},{"$f":"'rent allocations'!U48*$C$1","v":0},{"$f":"'rent allocations'!V48*$C$1","v":0},{"$f":"'rent allocations'!W48*$C$1","v":0},{"$f":"'rent allocations'!X48*$C$1","v":0},{"$f":"'rent allocations'!Y48*$C$1","v":0},{"$f":"'rent allocations'!Z48*$C$1","v":0},{"$f":"'rent allocations'!AA48*$C$1","v":0},{"$f":"'rent allocations'!AB48*$C$1","v":0},{"$f":"'rent allocations'!AC48*$C$1","v":0},{"$f":"'rent allocations'!AD48*$C$1","v":0},{"$f":"'rent allocations'!AE48*$C$1","v":0},{"$f":"'rent allocations'!AF48*$C$1","v":0},{"$f":"'rent allocations'!AG48*$C$1","v":0},{"$f":"'rent allocations'!AH48*$C$1","v":0},{"$f":"'rent allocations'!AI48*$C$1","v":0},{"$f":"'rent allocations'!AJ48*$C$1","v":0},{"$f":"'rent allocations'!AK48*$C$1","v":0},{"$f":"'rent allocations'!AL48*$C$1","v":0}]
["165 - Board of Accountancy","165","Board of Accountancy",{"$f":"'rent allocations'!D49*$C$1","v":0},{"$f":"'rent allocations'!E49*$C$1","v":0},{"$f":"'rent allocations'!F49*$C$1","v":0},{"$f":"'rent allocations'!G49*$C$1","v":0},{"$f":"'rent allocations'!H49*$C$1","v":0},{"$f":"'rent allocations'!I49*$C$1","v":0},{"$f":"'rent allocations'!J49*$C$1","v":0},{"$f":"'rent allocations'!K49*$C$1","v":0},{"$f":"'rent allocations'!L49*$C$1","v":0},{"$f":"'rent allocations'!M49*$C$1","v":0},{"$f":"'rent allocations'!N49*$C$1","v":0},{"$f":"'rent allocations'!O49*$C$1","v":0},{"$f":"'rent allocations'!P49*$C$1","v":0},{"$f":"'rent allocations'!Q49*$C$1","v":0},{"$f":"'rent allocations'!R49*$C$1","v":0},{"$f":"'rent allocations'!S49*$C$1","v":0},{"$f":"'rent allocations'!T49*$C$1","v":0},{"$f":"'rent allocations'!U49*$C$1","v":0},{"$f":"'rent allocations'!V49*$C$1","v":0},{"$f":"'rent allocations'!W49*$C$1","v":0},{"$f":"'rent allocations'!X49*$C$1","v":0},{"$f":"'rent allocations'!Y49*$C$1","v":0},{"$f":"'rent allocations'!Z49*$C$1","v":0},{"$f":"'rent allocations'!AA49*$C$1","v":0},{"$f":"'rent allocations'!AB49*$C$1","v":0},{"$f":"'rent allocations'!AC49*$C$1","v":0},{"$f":"'rent allocations'!AD49*$C$1","v":0},{"$f":"'rent allocations'!AE49*$C$1","v":0},{"$f":"'rent allocations'!AF49*$C$1","v":0},{"$f":"'rent allocations'!AG49*$C$1","v":0},{"$f":"'rent allocations'!AH49*$C$1","v":0},{"$f":"'rent allocations'!AI49*$C$1","v":0},{"$f":"'rent allocations'!AJ49*$C$1","v":0},{"$f":"'rent allocations'!AK49*$C$1","v":0},{"$f":"'rent allocations'!AL49*$C$1","v":0}]
["166 - Brd Prof Eng Land Surveyors","166","Brd Prof Eng Land Surveyors",{"$f":"'rent allocations'!D50*$C$1","v":0},{"$f":"'rent allocations'!E50*$C$1","v":0},{"$f":"'rent allocations'!F50*$C$1","v":0},{"$f":"'rent allocations'!G50*$C$1","v":0},{"$f":"'rent allocations'!H50*$C$1","v":0},{"$f":"'rent allocations'!I50*$C$1","v":0},{"$f":"'rent allocations'!J50*$C$1","v":0},{"$f":"'rent allocations'!K50*$C$1","v":0},{"$f":"'rent allocations'!L50*$C$1","v":0},{"$f":"'rent allocations'!M50*$C$1","v":0},{"$f":"'rent allocations'!N50*$C$1","v":0},{"$f":"'rent allocations'!O50*$C$1","v":0},{"$f":"'rent allocations'!P50*$C$1","v":0},{"$f":"'rent allocations'!Q50*$C$1","v":0},{"$f":"'rent allocations'!R50*$C$1","v":0},{"$f":"'rent allocations'!S50*$C$1","v":0},{"$f":"'rent allocations'!T50*$C$1","v":0},{"$f":"'rent allocations'!U50*$C$1","v":0},{"$f":"'rent allocations'!V50*$C$1","v":0},{"$f":"'rent allocations'!W50*$C$1","v":0},{"$f":"'rent allocations'!X50*$C$1","v":0},{"$f":"'rent allocations'!Y50*$C$1","v":0},{"$f":"'rent allocations'!Z50*$C$1","v":0},{"$f":"'rent allocations'!AA50*$C$1","v":0},{"$f":"'rent allocations'!AB50*$C$1","v":0},{"$f":"'rent allocations'!AC50*$C$1","v":0},{"$f":"'rent allocations'!AD50*$C$1","v":0},{"$f":"'rent allocations'!AE50*$C$1","v":0},{"$f":"'rent allocations'!AF50*$C$1","v":0},{"$f":"'rent allocations'!AG50*$C$1","v":0},{"$f":"'rent allocations'!AH50*$C$1","v":0},{"$f":"'rent allocations'!AI50*$C$1","v":0},{"$f":"'rent allocations'!AJ50*$C$1","v":0},{"$f":"'rent allocations'!AK50*$C$1","v":0},{"$f":"'rent allocations'!AL50*$C$1","v":0}]
["167 - Forensic Investigations Council","167","Forensic Investigations Council",{"$f":"'rent allocations'!D51*$C$1","v":0},{"$f":"'rent allocations'!E51*$C$1","v":0},{"$f":"'rent allocations'!F51*$C$1","v":0},{"$f":"'rent allocations'!G51*$C$1","v":0},{"$f":"'rent allocations'!H51*$C$1","v":0},{"$f":"'rent allocations'!I51*$C$1","v":0},{"$f":"'rent allocations'!J51*$C$1","v":0},{"$f":"'rent allocations'!K51*$C$1","v":0},{"$f":"'rent allocations'!L51*$C$1","v":0},{"$f":"'rent allocations'!M51*$C$1","v":0},{"$f":"'rent allocations'!N51*$C$1","v":0},{"$f":"'rent allocations'!O51*$C$1","v":0},{"$f":"'rent allocations'!P51*$C$1","v":0},{"$f":"'rent allocations'!Q51*$C$1","v":0},{"$f":"'rent allocations'!R51*$C$1","v":0},{"$f":"'rent allocations'!S51*$C$1","v":0},{"$f":"'rent allocations'!T51*$C$1","v":0},{"$f":"'rent allocations'!U51*$C$1","v":0},{"$f":"'rent allocations'!V51*$C$1","v":0},{"$f":"'rent allocations'!W51*$C$1","v":0},{"$f":"'rent allocations'!X51*$C$1","v":0},{"$f":"'rent allocations'!Y51*$C$1","v":0},{"$f":"'rent allocations'!Z51*$C$1","v":0},{"$f":"'rent allocations'!AA51*$C$1","v":0},{"$f":"'rent allocations'!AB51*$C$1","v":0},{"$f":"'rent allocations'!AC51*$C$1","v":0},{"$f":"'rent allocations'!AD51*$C$1","v":0},{"$f":"'rent allocations'!AE51*$C$1","v":0},{"$f":"'rent allocations'!AF51*$C$1","v":0},{"$f":"'rent allocations'!AG51*$C$1","v":0},{"$f":"'rent allocations'!AH51*$C$1","v":0},{"$f":"'rent allocations'!AI51*$C$1","v":0},{"$f":"'rent allocations'!AJ51*$C$1","v":0},{"$f":"'rent allocations'!AK51*$C$1","v":0},{"$f":"'rent allocations'!AL51*$C$1","v":0}]
["179 - Department of Enterprise Services","179","Department of Enterprise Services",{"$f":"'rent allocations'!D52*$C$1","v":171881.99367342464},{"$f":"'rent allocations'!E52*$C$1","v":0},{"$f":"'rent allocations'!F52*$C$1","v":0},{"$f":"'rent allocations'!G52*$C$1","v":23227.516333851665},{"$f":"'rent allocations'!H52*$C$1","v":0},{"$f":"'rent allocations'!I52*$C$1","v":0},{"$f":"'rent allocations'!J52*$C$1","v":39037.105604988217},{"$f":"'rent allocations'!K52*$C$1","v":0},{"$f":"'rent allocations'!L52*$C$1","v":0},{"$f":"'rent allocations'!M52*$C$1","v":0},{"$f":"'rent allocations'!N52*$C$1","v":0},{"$f":"'rent allocations'!O52*$C$1","v":0},{"$f":"'rent allocations'!P52*$C$1","v":0},{"$f":"'rent allocations'!Q52*$C$1","v":0},{"$f":"'rent allocations'!R52*$C$1","v":0},{"$f":"'rent allocations'!S52*$C$1","v":87636.970167735693},{"$f":"'rent allocations'!T52*$C$1","v":0},{"$f":"'rent allocations'!U52*$C$1","v":0},{"$f":"'rent allocations'!V52*$C$1","v":0},{"$f":"'rent allocations'!W52*$C$1","v":0},{"$f":"'rent allocations'!X52*$C$1","v":21535.38105115838},{"$f":"'rent allocations'!Y52*$C$1","v":0},{"$f":"'rent allocations'!Z52*$C$1","v":0},{"$f":"'rent allocations'!AA52*$C$1","v":0},{"$f":"'rent allocations'!AB52*$C$1","v":0},{"$f":"'rent allocations'!AC52*$C$1","v":0},{"$f":"'rent allocations'!AD52*$C$1","v":0},{"$f":"'rent allocations'!AE52*$C$1","v":0},{"$f":"'rent allocations'!AF52*$C$1","v":445.02051569070107},{"$f":"'rent allocations'!AG52*$C$1","v":0},{"$f":"'rent allocations'!AH52*$C$1","v":0},{"$f":"'rent allocations'!AI52*$C$1","v":0},{"$f":"'rent allocations'!AJ52*$C$1","v":0},{"$f":"'rent allocations'!AK52*$C$1","v":0},{"$f":"'rent allocations'!AL52*$C$1","v":0}]
["185 - Horse Racing Commission","185","Horse Racing Commission",{"$f":"'rent allocations'!D53*$C$1","v":0},{"$f":"'rent allocations'!E53*$C$1","v":0},{"$f":"'rent allocations'!F53*$C$1","v":0},{"$f":"'rent allocations'!G53*$C$1","v":0},{"$f":"'rent allocations'!H53*$C$1","v":0},{"$f":"'rent allocations'!I53*$C$1","v":0},{"$f":"'rent allocations'!J53*$C$1","v":0},{"$f":"'rent allocations'!K53*$C$1","v":0},{"$f":"'rent allocations'!L53*$C$1","v":0},{"$f":"'rent allocations'!M53*$C$1","v":0},{"$f":"'rent allocations'!N53*$C$1","v":0},{"$f":"'rent allocations'!O53*$C$1","v":0},{"$f":"'rent allocations'!P53*$C$1","v":0},{"$f":"'rent allocations'!Q53*$C$1","v":0},{"$f":"'rent allocations'!R53*$C$1","v":0},{"$f":"'rent allocations'!S53*$C$1","v":0},{"$f":"'rent allocations'!T53*$C$1","v":0},{"$f":"'rent allocations'!U53*$C$1","v":0},{"$f":"'rent allocations'!V53*$C$1","v":0},{"$f":"'rent allocations'!W53*$C$1","v":0},{"$f":"'rent allocations'!X53*$C$1","v":0},{"$f":"'rent allocations'!Y53*$C$1","v":0},{"$f":"'rent allocations'!Z53*$C$1","v":0},{"$f":"'rent allocations'!AA53*$C$1","v":0},{"$f":"'rent allocations'!AB53*$C$1","v":0},{"$f":"'rent allocations'!AC53*$C$1","v":0},{"$f":"'rent allocations'!AD53*$C$1","v":0},{"$f":"'rent allocations'!AE53*$C$1","v":0},{"$f":"'rent allocations'!AF53*$C$1","v":0},{"$f":"'rent allocations'!AG53*$C$1","v":0},{"$f":"'rent allocations'!AH53*$C$1","v":0},{"$f":"'rent allocations'!AI53*$C$1","v":0},{"$f":"'rent allocations'!AJ53*$C$1","v":0},{"$f":"'rent allocations'!AK53*$C$1","v":0},{"$f":"'rent allocations'!AL53*$C$1","v":0}]
["190 - Board of Industrial Insurance Appeals","190","Board of Industrial Insurance Appeals",{"$f":"'rent allocations'!D54*$C$1","v":0},{"$f":"'rent allocations'!E54*$C$1","v":0},{"$f":"'rent allocations'!F54*$C$1","v":0},{"$f":"'rent allocations'!G54*$C$1","v":0},{"$f":"'rent allocations'!H54*$C$1","v":0},{"$f":"'rent allocations'!I54*$C$1","v":0},{"$f":"'rent allocations'!J54*$C$1","v":0},{"$f":"'rent allocations'!K54*$C$1","v":0},{"$f":"'rent allocations'!L54*$C$1","v":0},{"$f":"'rent allocations'!M54*$C$1","v":0},{"$f":"'rent allocations'!N54*$C$1","v":0},{"$f":"'rent allocations'!O54*$C$1","v":0},{"$f":"'rent allocations'!P54*$C$1","v":0},{"$f":"'rent allocations'!Q54*$C$1","v":0},{"$f":"'rent allocations'!R54*$C$1","v":0},{"$f":"'rent allocations'!S54*$C$1","v":0},{"$f":"'rent allocations'!T54*$C$1","v":0},{"$f":"'rent allocations'!U54*$C$1","v":0},{"$f":"'rent allocations'!V54*$C$1","v":0},{"$f":"'rent allocations'!W54*$C$1","v":0},{"$f":"'rent allocations'!X54*$C$1","v":0},{"$f":"'rent allocations'!Y54*$C$1","v":0},{"$f":"'rent allocations'!Z54*$C$1","v":0},{"$f":"'rent allocations'!AA54*$C$1","v":0},{"$f":"'rent allocations'!AB54*$C$1","v":0},{"$f":"'rent allocations'!AC54*$C$1","v":0},{"$f":"'rent allocations'!AD54*$C$1","v":0},{"$f":"'rent allocations'!AE54*$C$1","v":0},{"$f":"'rent allocations'!AF54*$C$1","v":0},{"$f":"'rent allocations'!AG54*$C$1","v":0},{"$f":"'rent allocations'!AH54*$C$1","v":0},{"$f":"'rent allocations'!AI54*$C$1","v":0},{"$f":"'rent allocations'!AJ54*$C$1","v":0},{"$f":"'rent allocations'!AK54*$C$1","v":0},{"$f":"'rent allocations'!AL54*$C$1","v":0}]
["195 - Liquor Control Board","195","Liquor Control Board",{"$f":"'rent allocations'!D55*$C$1","v":0},{"$f":"'rent allocations'!E55*$C$1","v":0},{"$f":"'rent allocations'!F55*$C$1","v":0},{"$f":"'rent allocations'!G55*$C$1","v":0},{"$f":"'rent allocations'!H55*$C$1","v":0},{"$f":"'rent allocations'!I55*$C$1","v":0},{"$f":"'rent allocations'!J55*$C$1","v":0},{"$f":"'rent allocations'!K55*$C$1","v":0},{"$f":"'rent allocations'!L55*$C$1","v":0},{"$f":"'rent allocations'!M55*$C$1","v":0},{"$f":"'rent allocations'!N55*$C$1","v":0},{"$f":"'rent allocations'!O55*$C$1","v":0},{"$f":"'rent allocations'!P55*$C$1","v":0},{"$f":"'rent allocations'!Q55*$C$1","v":0},{"$f":"'rent allocations'!R55*$C$1","v":0},{"$f":"'rent allocations'!S55*$C$1","v":0},{"$f":"'rent allocations'!T55*$C$1","v":0},{"$f":"'rent allocations'!U55*$C$1","v":0},{"$f":"'rent allocations'!V55*$C$1","v":0},{"$f":"'rent allocations'!W55*$C$1","v":0},{"$f":"'rent allocations'!X55*$C$1","v":0},{"$f":"'rent allocations'!Y55*$C$1","v":0},{"$f":"'rent allocations'!Z55*$C$1","v":0},{"$f":"'rent allocations'!AA55*$C$1","v":0},{"$f":"'rent allocations'!AB55*$C$1","v":0},{"$f":"'rent allocations'!AC55*$C$1","v":0},{"$f":"'rent allocations'!AD55*$C$1","v":0},{"$f":"'rent allocations'!AE55*$C$1","v":0},{"$f":"'rent allocations'!AF55*$C$1","v":0},{"$f":"'rent allocations'!AG55*$C$1","v":0},{"$f":"'rent allocations'!AH55*$C$1","v":0},{"$f":"'rent allocations'!AI55*$C$1","v":0},{"$f":"'rent allocations'!AJ55*$C$1","v":0},{"$f":"'rent allocations'!AK55*$C$1","v":0},{"$f":"'rent allocations'!AL55*$C$1","v":0}]
["205 - Board of Pilotage Commissioners","205","Board of Pilotage Commissioners",{"$f":"'rent allocations'!D56*$C$1","v":0},{"$f":"'rent allocations'!E56*$C$1","v":0},{"$f":"'rent allocations'!F56*$C$1","v":0},{"$f":"'rent allocations'!G56*$C$1","v":0},{"$f":"'rent allocations'!H56*$C$1","v":0},{"$f":"'rent allocations'!I56*$C$1","v":0},{"$f":"'rent allocations'!J56*$C$1","v":0},{"$f":"'rent allocations'!K56*$C$1","v":0},{"$f":"'rent allocations'!L56*$C$1","v":0},{"$f":"'rent allocations'!M56*$C$1","v":0},{"$f":"'rent allocations'!N56*$C$1","v":0},{"$f":"'rent allocations'!O56*$C$1","v":0},{"$f":"'rent allocations'!P56*$C$1","v":0},{"$f":"'rent allocations'!Q56*$C$1","v":0},{"$f":"'rent allocations'!R56*$C$1","v":0},{"$f":"'rent allocations'!S56*$C$1","v":0},{"$f":"'rent allocations'!T56*$C$1","v":0},{"$f":"'rent allocations'!U56*$C$1","v":0},{"$f":"'rent allocations'!V56*$C$1","v":0},{"$f":"'rent allocations'!W56*$C$1","v":0},{"$f":"'rent allocations'!X56*$C$1","v":0},{"$f":"'rent allocations'!Y56*$C$1","v":0},{"$f":"'rent allocations'!Z56*$C$1","v":0},{"$f":"'rent allocations'!AA56*$C$1","v":0},{"$f":"'rent allocations'!AB56*$C$1","v":0},{"$f":"'rent allocations'!AC56*$C$1","v":0},{"$f":"'rent allocations'!AD56*$C$1","v":0},{"$f":"'rent allocations'!AE56*$C$1","v":0},{"$f":"'rent allocations'!AF56*$C$1","v":0},{"$f":"'rent allocations'!AG56*$C$1","v":0},{"$f":"'rent allocations'!AH56*$C$1","v":0},{"$f":"'rent allocations'!AI56*$C$1","v":0},{"$f":"'rent allocations'!AJ56*$C$1","v":0},{"$f":"'rent allocations'!AK56*$C$1","v":0},{"$f":"'rent allocations'!AL56*$C$1","v":0}]
["215 - Utilities and Transportation Commission","215","Utilities and Transportation Commission",{"$f":"'rent allocations'!D57*$C$1","v":0},{"$f":"'rent allocations'!E57*$C$1","v":0},{"$f":"'rent allocations'!F57*$C$1","v":0},{"$f":"'rent allocations'!G57*$C$1","v":0},{"$f":"'rent allocations'!H57*$C$1","v":0},{"$f":"'rent allocations'!I57*$C$1","v":0},{"$f":"'rent allocations'!J57*$C$1","v":0},{"$f":"'rent allocations'!K57*$C$1","v":0},{"$f":"'rent allocations'!L57*$C$1","v":0},{"$f":"'rent allocations'!M57*$C$1","v":0},{"$f":"'rent allocations'!N57*$C$1","v":0},{"$f":"'rent allocations'!O57*$C$1","v":0},{"$f":"'rent allocations'!P57*$C$1","v":0},{"$f":"'rent allocations'!Q57*$C$1","v":0},{"$f":"'rent allocations'!R57*$C$1","v":0},{"$f":"'rent allocations'!S57*$C$1","v":0},{"$f":"'rent allocations'!T57*$C$1","v":0},{"$f":"'rent allocations'!U57*$C$1","v":0},{"$f":"'rent allocations'!V57*$C$1","v":0},{"$f":"'rent allocations'!W57*$C$1","v":0},{"$f":"'rent allocations'!X57*$C$1","v":0},{"$f":"'rent allocations'!Y57*$C$1","v":0},{"$f":"'rent allocations'!Z57*$C$1","v":0},{"$f":"'rent allocations'!AA57*$C$1","v":0},{"$f":"'rent allocations'!AB57*$C$1","v":0},{"$f":"'rent allocations'!AC57*$C$1","v":0},{"$f":"'rent allocations'!AD57*$C$1","v":0},{"$f":"'rent allocations'!AE57*$C$1","v":0},{"$f":"'rent allocations'!AF57*$C$1","v":0},{"$f":"'rent allocations'!AG57*$C$1","v":0},{"$f":"'rent allocations'!AH57*$C$1","v":0},{"$f":"'rent allocations'!AI57*$C$1","v":0},{"$f":"'rent allocations'!AJ57*$C$1","v":0},{"$f":"'rent allocations'!AK57*$C$1","v":0},{"$f":"'rent allocations'!AL57*$C$1","v":0}]
["220 - Board for Volunteer Firefighters and Reserve Officers","220","Board for Volunteer Firefighters and Reserve Officers",{"$f":"'rent allocations'!D58*$C$1","v":0},{"$f":"'rent allocations'!E58*$C$1","v":0},{"$f":"'rent allocations'!F58*$C$1","v":0},{"$f":"'rent allocations'!G58*$C$1","v":0},{"$f":"'rent allocations'!H58*$C$1","v":0},{"$f":"'rent allocations'!I58*$C$1","v":0},{"$f":"'rent allocations'!J58*$C$1","v":0},{"$f":"'rent allocations'!K58*$C$1","v":0},{"$f":"'rent allocations'!L58*$C$1","v":0},{"$f":"'rent allocations'!M58*$C$1","v":0},{"$f":"'rent allocations'!N58*$C$1","v":0},{"$f":"'rent allocations'!O58*$C$1","v":0},{"$f":"'rent allocations'!P58*$C$1","v":0},{"$f":"'rent allocations'!Q58*$C$1","v":0},{"$f":"'rent allocations'!R58*$C$1","v":0},{"$f":"'rent allocations'!S58*$C$1","v":0},{"$f":"'rent allocations'!T58*$C$1","v":0},{"$f":"'rent allocations'!U58*$C$1","v":0},{"$f":"'rent allocations'!V58*$C$1","v":0},{"$f":"'rent allocations'!W58*$C$1","v":0},{"$f":"'rent allocations'!X58*$C$1","v":0},{"$f":"'rent allocations'!Y58*$C$1","v":0},{"$f":"'rent allocations'!Z58*$C$1","v":0},{"$f":"'rent allocations'!AA58*$C$1","v":0},{"$f":"'rent allocations'!AB58*$C$1","v":0},{"$f":"'rent allocations'!AC58*$C$1","v":0},{"$f":"'rent allocations'!AD58*$C$1","v":0},{"$f":"'rent allocations'!AE58*$C$1","v":0},{"$f":"'rent allocations'!AF58*$C$1","v":0},{"$f":"'rent allocations'!AG58*$C$1","v":0},{"$f":"'rent allocations'!AH58*$C$1","v":0},{"$f":"'rent allocations'!AI58*$C$1","v":0},{"$f":"'rent allocations'!AJ58*$C$1","v":0},{"$f":"'rent allocations'!AK58*$C$1","v":0},{"$f":"'rent allocations'!AL58*$C$1","v":0}]
["225 - Washington State Patrol","225","Washington State Patrol",{"$f":"'rent allocations'!D59*$C$1","v":205564.09010045306},{"$f":"'rent allocations'!E59*$C$1","v":0},{"$f":"'rent allocations'!F59*$C$1","v":0},{"$f":"'rent allocations'!G59*$C$1","v":1746.177315830977},{"$f":"'rent allocations'!H59*$C$1","v":0},{"$f":"'rent allocations'!I59*$C$1","v":0},{"$f":"'rent allocations'!J59*$C$1","v":0},{"$f":"'rent allocations'!K59*$C$1","v":0},{"$f":"'rent allocations'!L59*$C$1","v":0},{"$f":"'rent allocations'!M59*$C$1","v":0},{"$f":"'rent allocations'!N59*$C$1","v":0},{"$f":"'rent allocations'!O59*$C$1","v":0},{"$f":"'rent allocations'!P59*$C$1","v":0},{"$f":"'rent allocations'!Q59*$C$1","v":0},{"$f":"'rent allocations'!R59*$C$1","v":0},{"$f":"'rent allocations'!S59*$C$1","v":0},{"$f":"'rent allocations'!T59*$C$1","v":0},{"$f":"'rent allocations'!U59*$C$1","v":0},{"$f":"'rent allocations'!V59*$C$1","v":0},{"$f":"'rent allocations'!W59*$C$1","v":0},{"$f":"'rent allocations'!X59*$C$1","v":0},{"$f":"'rent allocations'!Y59*$C$1","v":0},{"$f":"'rent allocations'!Z59*$C$1","v":0},{"$f":"'rent allocations'!AA59*$C$1","v":0},{"$f":"'rent allocations'!AB59*$C$1","v":0},{"$f":"'rent allocations'!AC59*$C$1","v":0},{"$f":"'rent allocations'!AD59*$C$1","v":0},{"$f":"'rent allocations'!AE59*$C$1","v":0},{"$f":"'rent allocations'!AF59*$C$1","v":203817.91278462208},{"$f":"'rent allocations'!AG59*$C$1","v":0},{"$f":"'rent allocations'!AH59*$C$1","v":0},{"$f":"'rent allocations'!AI59*$C$1","v":0},{"$f":"'rent allocations'!AJ59*$C$1","v":0},{"$f":"'rent allocations'!AK59*$C$1","v":0},{"$f":"'rent allocations'!AL59*$C$1","v":0}]
["227 - Criminal Justice Training Commission","227","Criminal Justice Training Commission",{"$f":"'rent allocations'!D60*$C$1","v":0},{"$f":"'rent allocations'!E60*$C$1","v":0},{"$f":"'rent allocations'!F60*$C$1","v":0},{"$f":"'rent allocations'!G60*$C$1","v":0},{"$f":"'rent allocations'!H60*$C$1","v":0},{"$f":"'rent allocations'!I60*$C$1","v":0},{"$f":"'rent allocations'!J60*$C$1","v":0},{"$f":"'rent allocations'!K60*$C$1","v":0},{"$f":"'rent allocations'!L60*$C$1","v":0},{"$f":"'rent allocations'!M60*$C$1","v":0},{"$f":"'rent allocations'!N60*$C$1","v":0},{"$f":"'rent allocations'!O60*$C$1","v":0},{"$f":"'rent allocations'!P60*$C$1","v":0},{"$f":"'rent allocations'!Q60*$C$1","v":0},{"$f":"'rent allocations'!R60*$C$1","v":0},{"$f":"'rent allocations'!S60*$C$1","v":0},{"$f":"'rent allocations'!T60*$C$1","v":0},{"$f":"'rent allocations'!U60*$C$1","v":0},{"$f":"'rent allocations'!V60*$C$1","v":0},{"$f":"'rent allocations'!W60*$C$1","v":0},{"$f":"'rent allocations'!X60*$C$1","v":0},{"$f":"'rent allocations'!Y60*$C$1","v":0},{"$f":"'rent allocations'!Z60*$C$1","v":0},{"$f":"'rent allocations'!AA60*$C$1","v":0},{"$f":"'rent allocations'!AB60*$C$1","v":0},{"$f":"'rent allocations'!AC60*$C$1","v":0},{"$f":"'rent allocations'!AD60*$C$1","v":0},{"$f":"'rent allocations'!AE60*$C$1","v":0},{"$f":"'rent allocations'!AF60*$C$1","v":0},{"$f":"'rent allocations'!AG60*$C$1","v":0},{"$f":"'rent allocations'!AH60*$C$1","v":0},{"$f":"'rent allocations'!AI60*$C$1","v":0},{"$f":"'rent allocations'!AJ60*$C$1","v":0},{"$f":"'rent allocations'!AK60*$C$1","v":0},{"$f":"'rent allocations'!AL60*$C$1","v":0}]
["228 - Traffic Safety Commission","228","Traffic Safety Commission",{"$f":"'rent allocations'!D61*$C$1","v":0},{"$f":"'rent allocations'!E61*$C$1","v":0},{"$f":"'rent allocations'!F61*$C$1","v":0},{"$f":"'rent allocations'!G61*$C$1","v":0},{"$f":"'rent allocations'!H61*$C$1","v":0},{"$f":"'rent allocations'!I61*$C$1","v":0},{"$f":"'rent allocations'!J61*$C$1","v":0},{"$f":"'rent allocations'!K61*$C$1","v":0},{"$f":"'rent allocations'!L61*$C$1","v":0},{"$f":"'rent allocations'!M61*$C$1","v":0},{"$f":"'rent allocations'!N61*$C$1","v":0},{"$f":"'rent allocations'!O61*$C$1","v":0},{"$f":"'rent allocations'!P61*$C$1","v":0},{"$f":"'rent allocations'!Q61*$C$1","v":0},{"$f":"'rent allocations'!R61*$C$1","v":0},{"$f":"'rent allocations'!S61*$C$1","v":0},{"$f":"'rent allocations'!T61*$C$1","v":0},{"$f":"'rent allocations'!U61*$C$1","v":0},{"$f":"'rent allocations'!V61*$C$1","v":0},{"$f":"'rent allocations'!W61*$C$1","v":0},{"$f":"'rent allocations'!X61*$C$1","v":0},{"$f":"'rent allocations'!Y61*$C$1","v":0},{"$f":"'rent allocations'!Z61*$C$1","v":0},{"$f":"'rent allocations'!AA61*$C$1","v":0},{"$f":"'rent allocations'!AB61*$C$1","v":0},{"$f":"'rent allocations'!AC61*$C$1","v":0},{"$f":"'rent allocations'!AD61*$C$1","v":0},{"$f":"'rent allocations'!AE61*$C$1","v":0},{"$f":"'rent allocations'!AF61*$C$1","v":0},{"$f":"'rent allocations'!AG61*$C$1","v":0},{"$f":"'rent allocations'!AH61*$C$1","v":0},{"$f":"'rent allocations'!AI61*$C$1","v":0},{"$f":"'rent allocations'!AJ61*$C$1","v":0},{"$f":"'rent allocations'!AK61*$C$1","v":0},{"$f":"'rent allocations'!AL61*$C$1","v":0}]
["235 - Department of Labor and Industries","235","Department of Labor and Industries",{"$f":"'rent allocations'!D62*$C$1","v":133072.04288101287},{"$f":"'rent allocations'!E62*$C$1","v":0},{"$f":"'rent allocations'!F62*$C$1","v":0},{"$f":"'rent allocations'!G62*$C$1","v":0},{"$f":"'rent allocations'!H62*$C$1","v":0},{"$f":"'rent allocations'!I62*$C$1","v":0},{"$f":"'rent allocations'!J62*$C$1","v":0},{"$f":"'rent allocations'!K62*$C$1","v":0},{"$f":"'rent allocations'!L62*$C$1","v":0},{"$f":"'rent allocations'!M62*$C$1","v":0},{"$f":"'rent allocations'!N62*$C$1","v":0},{"$f":"'rent allocations'!O62*$C$1","v":0},{"$f":"'rent allocations'!P62*$C$1","v":0},{"$f":"'rent allocations'!Q62*$C$1","v":0},{"$f":"'rent allocations'!R62*$C$1","v":0},{"$f":"'rent allocations'!S62*$C$1","v":0},{"$f":"'rent allocations'!T62*$C$1","v":0},{"$f":"'rent allocations'!U62*$C$1","v":0},{"$f":"'rent allocations'!V62*$C$1","v":0},{"$f":"'rent allocations'!W62*$C$1","v":0},{"$f":"'rent allocations'!X62*$C$1","v":0},{"$f":"'rent allocations'!Y62*$C$1","v":0},{"$f":"'rent allocations'!Z62*$C$1","v":0},{"$f":"'rent allocations'!AA62*$C$1","v":0},{"$f":"'rent allocations'!AB62*$C$1","v":0},{"$f":"'rent allocations'!AC62*$C$1","v":0},{"$f":"'rent allocations'!AD62*$C$1","v":0},{"$f":"'rent allocations'!AE62*$C$1","v":0},{"$f":"'rent allocations'!AF62*$C$1","v":0},{"$f":"'rent allocations'!AG62*$C$1","v":34393.081335021772},{"$f":"'rent allocations'!AH62*$C$1","v":0},{"$f":"'rent allocations'!AI62*$C$1","v":0},{"$f":"'rent allocations'!AJ62*$C$1","v":98678.9615459911},{"$f":"'rent allocations'!AK62*$C$1","v":0},{"$f":"'rent allocations'!AL62*$C$1","v":0}]
["240 - Department of Licensing","240","Department of Licensing",{"$f":"'rent allocations'!D63*$C$1","v":201207.25423835113},{"$f":"'rent allocations'!E63*$C$1","v":0},{"$f":"'rent allocations'!F63*$C$1","v":0},{"$f":"'rent allocations'!G63*$C$1","v":0},{"$f":"'rent allocations'!H63*$C$1","v":0},{"$f":"'rent allocations'!I63*$C$1","v":201207.25423835113},{"$f":"'rent allocations'!J63*$C$1","v":0},{"$f":"'rent allocations'!K63*$C$1","v":0},{"$f":"'rent allocations'!L63*$C$1","v":0},{"$f":"'rent allocations'!M63*$C$1","v":0},{"$f":"'rent allocations'!N63*$C$1","v":0},{"$f":"'rent allocations'!O63*$C$1","v":0},{"$f":"'rent allocations'!P63*$C$1","v":0},{"$f":"'rent allocations'!Q63*$C$1","v":0},{"$f":"'rent allocations'!R63*$C$1","v":0},{"$f":"'rent allocations'!S63*$C$1","v":0},{"$f":"'rent allocations'!T63*$C$1","v":0},{"$f":"'rent allocations'!U63*$C$1","v":0},{"$f":"'rent allocations'!V63*$C$1","v":0},{"$f":"'rent allocations'!W63*$C$1","v":0},{"$f":"'rent allocations'!X63*$C$1","v":0},{"$f":"'rent allocations'!Y63*$C$1","v":0},{"$f":"'rent allocations'!Z63*$C$1","v":0},{"$f":"'rent allocations'!AA63*$C$1","v":0},{"$f":"'rent allocations'!AB63*$C$1","v":0},{"$f":"'rent allocations'!AC63*$C$1","v":0},{"$f":"'rent allocations'!AD63*$C$1","v":0},{"$f":"'rent allocations'!AE63*$C$1","v":0},{"$f":"'rent allocations'!AF63*$C$1","v":0},{"$f":"'rent allocations'!AG63*$C$1","v":0},{"$f":"'rent allocations'!AH63*$C$1","v":0},{"$f":"'rent allocations'!AI63*$C$1","v":0},{"$f":"'rent allocations'!AJ63*$C$1","v":0},{"$f":"'rent allocations'!AK63*$C$1","v":0},{"$f":"'rent allocations'!AL63*$C$1","v":0}]
["245 - Military Department","245","Military Department",{"$f":"'rent allocations'!D64*$C$1","v":0},{"$f":"'rent allocations'!E64*$C$1","v":0},{"$f":"'rent allocations'!F64*$C$1","v":0},{"$f":"'rent allocations'!G64*$C$1","v":0},{"$f":"'rent allocations'!H64*$C$1","v":0},{"$f":"'rent allocations'!I64*$C$1","v":0},{"$f":"'rent allocations'!J64*$C$1","v":0},{"$f":"'rent allocations'!K64*$C$1","v":0},{"$f":"'rent allocations'!L64*$C$1","v":0},{"$f":"'rent allocations'!M64*$C$1","v":0},{"$f":"'rent allocations'!N64*$C$1","v":0},{"$f":"'rent allocations'!O64*$C$1","v":0},{"$f":"'rent allocations'!P64*$C$1","v":0},{"$f":"'rent allocations'!Q64*$C$1","v":0},{"$f":"'rent allocations'!R64*$C$1","v":0},{"$f":"'rent allocations'!S64*$C$1","v":0},{"$f":"'rent allocations'!T64*$C$1","v":0},{"$f":"'rent allocations'!U64*$C$1","v":0},{"$f":"'rent allocations'!V64*$C$1","v":0},{"$f":"'rent allocations'!W64*$C$1","v":0},{"$f":"'rent allocations'!X64*$C$1","v":0},{"$f":"'rent allocations'!Y64*$C$1","v":0},{"$f":"'rent allocations'!Z64*$C$1","v":0},{"$f":"'rent allocations'!AA64*$C$1","v":0},{"$f":"'rent allocations'!AB64*$C$1","v":0},{"$f":"'rent allocations'!AC64*$C$1","v":0},{"$f":"'rent allocations'!AD64*$C$1","v":0},{"$f":"'rent allocations'!AE64*$C$1","v":0},{"$f":"'rent allocations'!AF64*$C$1","v":0},{"$f":"'rent allocations'!AG64*$C$1","v":0},{"$f":"'rent allocations'!AH64*$C$1","v":0},{"$f":"'rent allocations'!AI64*$C$1","v":0},{"$f":"'rent allocations'!AJ64*$C$1","v":0},{"$f":"'rent allocations'!AK64*$C$1","v":0},{"$f":"'rent allocations'!AL64*$C$1","v":0}]
["275 - Public Employment Relations Commission","275","Public Employment Relations Commission",{"$f":"'rent allocations'!D65*$C$1","v":0},{"$f":"'rent allocations'!E65*$C$1","v":0},{"$f":"'rent allocations'!F65*$C$1","v":0},{"$f":"'rent allocations'!G65*$C$1","v":0},{"$f":"'rent allocations'!H65*$C$1","v":0},{"$f":"'rent allocations'!I65*$C$1","v":0},{"$f":"'rent allocations'!J65*$C$1","v":0},{"$f":"'rent allocations'!K65*$C$1","v":0},{"$f":"'rent allocations'!L65*$C$1","v":0},{"$f":"'rent allocations'!M65*$C$1","v":0},{"$f":"'rent allocations'!N65*$C$1","v":0},{"$f":"'rent allocations'!O65*$C$1","v":0},{"$f":"'rent allocations'!P65*$C$1","v":0},{"$f":"'rent allocations'!Q65*$C$1","v":0},{"$f":"'rent allocations'!R65*$C$1","v":0},{"$f":"'rent allocations'!S65*$C$1","v":0},{"$f":"'rent allocations'!T65*$C$1","v":0},{"$f":"'rent allocations'!U65*$C$1","v":0},{"$f":"'rent allocations'!V65*$C$1","v":0},{"$f":"'rent allocations'!W65*$C$1","v":0},{"$f":"'rent allocations'!X65*$C$1","v":0},{"$f":"'rent allocations'!Y65*$C$1","v":0},{"$f":"'rent allocations'!Z65*$C$1","v":0},{"$f":"'rent allocations'!AA65*$C$1","v":0},{"$f":"'rent allocations'!AB65*$C$1","v":0},{"$f":"'rent allocations'!AC65*$C$1","v":0},{"$f":"'rent allocations'!AD65*$C$1","v":0},{"$f":"'rent allocations'!AE65*$C$1","v":0},{"$f":"'rent allocations'!AF65*$C$1","v":0},{"$f":"'rent allocations'!AG65*$C$1","v":0},{"$f":"'rent allocations'!AH65*$C$1","v":0},{"$f":"'rent allocations'!AI65*$C$1","v":0},{"$f":"'rent allocations'!AJ65*$C$1","v":0},{"$f":"'rent allocations'!AK65*$C$1","v":0},{"$f":"'rent allocations'!AL65*$C$1","v":0}]
["300 - Department of Social and Health Services","300","Department of Social and Health Services",{"$f":"'rent allocations'!D66*$C$1","v":627953.32225925603},{"$f":"'rent allocations'!E66*$C$1","v":0},{"$f":"'rent allocations'!F66*$C$1","v":0},{"$f":"'rent allocations'!G66*$C$1","v":0},{"$f":"'rent allocations'!H66*$C$1","v":0},{"$f":"'rent allocations'!I66*$C$1","v":0},{"$f":"'rent allocations'!J66*$C$1","v":310378.28059421055},{"$f":"'rent allocations'!K66*$C$1","v":0},{"$f":"'rent allocations'!L66*$C$1","v":0},{"$f":"'rent allocations'!M66*$C$1","v":0},{"$f":"'rent allocations'!N66*$C$1","v":0},{"$f":"'rent allocations'!O66*$C$1","v":0},{"$f":"'rent allocations'!P66*$C$1","v":0},{"$f":"'rent allocations'!Q66*$C$1","v":0},{"$f":"'rent allocations'!R66*$C$1","v":0},{"$f":"'rent allocations'!S66*$C$1","v":0},{"$f":"'rent allocations'!T66*$C$1","v":0},{"$f":"'rent allocations'!U66*$C$1","v":0},{"$f":"'rent allocations'!V66*$C$1","v":0},{"$f":"'rent allocations'!W66*$C$1","v":0},{"$f":"'rent allocations'!X66*$C$1","v":0},{"$f":"'rent allocations'!Y66*$C$1","v":0},{"$f":"'rent allocations'!Z66*$C$1","v":0},{"$f":"'rent allocations'!AA66*$C$1","v":0},{"$f":"'rent allocations'!AB66*$C$1","v":0},{"$f":"'rent allocations'!AC66*$C$1","v":0},{"$f":"'rent allocations'!AD66*$C$1","v":0},{"$f":"'rent allocations'!AE66*$C$1","v":0},{"$f":"'rent allocations'!AF66*$C$1","v":0},{"$f":"'rent allocations'!AG66*$C$1","v":96622.46941751102},{"$f":"'rent allocations'!AH66*$C$1","v":220952.5722475345},{"$f":"'rent allocations'!AI66*$C$1","v":0},{"$f":"'rent allocations'!AJ66*$C$1","v":0},{"$f":"'rent allocations'!AK66*$C$1","v":0},{"$f":"'rent allocations'!AL66*$C$1","v":0}]
["303 - Department of Health","303","Department of Health",{"$f":"'rent allocations'!D67*$C$1","v":0},{"$f":"'rent allocations'!E67*$C$1","v":0},{"$f":"'rent allocations'!F67*$C$1","v":0},{"$f":"'rent allocations'!G67*$C$1","v":0},{"$f":"'rent allocations'!H67*$C$1","v":0},{"$f":"'rent allocations'!I67*$C$1","v":0},{"$f":"'rent allocations'!J67*$C$1","v":0},{"$f":"'rent allocations'!K67*$C$1","v":0},{"$f":"'rent allocations'!L67*$C$1","v":0},{"$f":"'rent allocations'!M67*$C$1","v":0},{"$f":"'rent allocations'!N67*$C$1","v":0},{"$f":"'rent allocations'!O67*$C$1","v":0},{"$f":"'rent allocations'!P67*$C$1","v":0},{"$f":"'rent allocations'!Q67*$C$1","v":0},{"$f":"'rent allocations'!R67*$C$1","v":0},{"$f":"'rent allocations'!S67*$C$1","v":0},{"$f":"'rent allocations'!T67*$C$1","v":0},{"$f":"'rent allocations'!U67*$C$1","v":0},{"$f":"'rent allocations'!V67*$C$1","v":0},{"$f":"'rent allocations'!W67*$C$1","v":0},{"$f":"'rent allocations'!X67*$C$1","v":0},{"$f":"'rent allocations'!Y67*$C$1","v":0},{"$f":"'rent allocations'!Z67*$C$1","v":0},{"$f":"'rent allocations'!AA67*$C$1","v":0},{"$f":"'rent allocations'!AB67*$C$1","v":0},{"$f":"'rent allocations'!AC67*$C$1","v":0},{"$f":"'rent allocations'!AD67*$C$1","v":0},{"$f":"'rent allocations'!AE67*$C$1","v":0},{"$f":"'rent allocations'!AF67*$C$1","v":0},{"$f":"'rent allocations'!AG67*$C$1","v":0},{"$f":"'rent allocations'!AH67*$C$1","v":0},{"$f":"'rent allocations'!AI67*$C$1","v":0},{"$f":"'rent allocations'!AJ67*$C$1","v":0},{"$f":"'rent allocations'!AK67*$C$1","v":0},{"$f":"'rent allocations'!AL67*$C$1","v":0}]
["305 - Department of Veterans Affairs","305","Department of Veterans Affairs",{"$f":"'rent allocations'!D68*$C$1","v":0},{"$f":"'rent allocations'!E68*$C$1","v":0},{"$f":"'rent allocations'!F68*$C$1","v":0},{"$f":"'rent allocations'!G68*$C$1","v":0},{"$f":"'rent allocations'!H68*$C$1","v":0},{"$f":"'rent allocations'!I68*$C$1","v":0},{"$f":"'rent allocations'!J68*$C$1","v":0},{"$f":"'rent allocations'!K68*$C$1","v":0},{"$f":"'rent allocations'!L68*$C$1","v":0},{"$f":"'rent allocations'!M68*$C$1","v":0},{"$f":"'rent allocations'!N68*$C$1","v":0},{"$f":"'rent allocations'!O68*$C$1","v":0},{"$f":"'rent allocations'!P68*$C$1","v":0},{"$f":"'rent allocations'!Q68*$C$1","v":0},{"$f":"'rent allocations'!R68*$C$1","v":0},{"$f":"'rent allocations'!S68*$C$1","v":0},{"$f":"'rent allocations'!T68*$C$1","v":0},{"$f":"'rent allocations'!U68*$C$1","v":0},{"$f":"'rent allocations'!V68*$C$1","v":0},{"$f":"'rent allocations'!W68*$C$1","v":0},{"$f":"'rent allocations'!X68*$C$1","v":0},{"$f":"'rent allocations'!Y68*$C$1","v":0},{"$f":"'rent allocations'!Z68*$C$1","v":0},{"$f":"'rent allocations'!AA68*$C$1","v":0},{"$f":"'rent allocations'!AB68*$C$1","v":0},{"$f":"'rent allocations'!AC68*$C$1","v":0},{"$f":"'rent allocations'!AD68*$C$1","v":0},{"$f":"'rent allocations'!AE68*$C$1","v":0},{"$f":"'rent allocations'!AF68*$C$1","v":0},{"$f":"'rent allocations'!AG68*$C$1","v":0},{"$f":"'rent allocations'!AH68*$C$1","v":0},{"$f":"'rent allocations'!AI68*$C$1","v":0},{"$f":"'rent allocations'!AJ68*$C$1","v":0},{"$f":"'rent allocations'!AK68*$C$1","v":0},{"$f":"'rent allocations'!AL68*$C$1","v":0}]
[{"$f":"CONCATENATE(B69,\" - \",C69)","v":"307 - DCYF"},"307","DCYF",{"$f":"'rent allocations'!D69*$C$1","v":291617.56580526399},{"$f":"'rent allocations'!E69*$C$1","v":0},{"$f":"'rent allocations'!F69*$C$1","v":0},{"$f":"'rent allocations'!G69*$C$1","v":0},{"$f":"'rent allocations'!H69*$C$1","v":0},{"$f":"'rent allocations'!I69*$C$1","v":0},{"$f":"'rent allocations'!J69*$C$1","v":127087.08115767683},{"$f":"'rent allocations'!K69*$C$1","v":0},{"$f":"'rent allocations'!L69*$C$1","v":0},{"$f":"'rent allocations'!M69*$C$1","v":0},{"$f":"'rent allocations'!N69*$C$1","v":0},{"$f":"'rent allocations'!O69*$C$1","v":0},{"$f":"'rent allocations'!P69*$C$1","v":0},{"$f":"'rent allocations'!Q69*$C$1","v":0},{"$f":"'rent allocations'!R69*$C$1","v":0},{"$f":"'rent allocations'!S69*$C$1","v":0},{"$f":"'rent allocations'!T69*$C$1","v":0},{"$f":"'rent allocations'!U69*$C$1","v":0},{"$f":"'rent allocations'!V69*$C$1","v":0},{"$f":"'rent allocations'!W69*$C$1","v":0},{"$f":"'rent allocations'!X69*$C$1","v":0},{"$f":"'rent allocations'!Y69*$C$1","v":0},{"$f":"'rent allocations'!Z69*$C$1","v":0},{"$f":"'rent allocations'!AA69*$C$1","v":0},{"$f":"'rent allocations'!AB69*$C$1","v":0},{"$f":"'rent allocations'!AC69*$C$1","v":0},{"$f":"'rent allocations'!AD69*$C$1","v":0},{"$f":"'rent allocations'!AE69*$C$1","v":0},{"$f":"'rent allocations'!AF69*$C$1","v":0},{"$f":"'rent allocations'!AG69*$C$1","v":70821.827951037267},{"$f":"'rent allocations'!AH69*$C$1","v":93708.656696549908},{"$f":"'rent allocations'!AI69*$C$1","v":0},{"$f":"'rent allocations'!AJ69*$C$1","v":0},{"$f":"'rent allocations'!AK69*$C$1","v":0},{"$f":"'rent allocations'!AL69*$C$1","v":0}]
["310 - Department of Corrections","310","Department of Corrections",{"$f":"'rent allocations'!D70*$C$1","v":0},{"$f":"'rent allocations'!E70*$C$1","v":0},{"$f":"'rent allocations'!F70*$C$1","v":0},{"$f":"'rent allocations'!G70*$C$1","v":0},{"$f":"'rent allocations'!H70*$C$1","v":0},{"$f":"'rent allocations'!I70*$C$1","v":0},{"$f":"'rent allocations'!J70*$C$1","v":0},{"$f":"'rent allocations'!K70*$C$1","v":0},{"$f":"'rent allocations'!L70*$C$1","v":0},{"$f":"'rent allocations'!M70*$C$1","v":0},{"$f":"'rent allocations'!N70*$C$1","v":0},{"$f":"'rent allocations'!O70*$C$1","v":0},{"$f":"'rent allocations'!P70*$C$1","v":0},{"$f":"'rent allocations'!Q70*$C$1","v":0},{"$f":"'rent allocations'!R70*$C$1","v":0},{"$f":"'rent allocations'!S70*$C$1","v":0},{"$f":"'rent allocations'!T70*$C$1","v":0},{"$f":"'rent allocations'!U70*$C$1","v":0},{"$f":"'rent allocations'!V70*$C$1","v":0},{"$f":"'rent allocations'!W70*$C$1","v":0},{"$f":"'rent allocations'!X70*$C$1","v":0},{"$f":"'rent allocations'!Y70*$C$1","v":0},{"$f":"'rent allocations'!Z70*$C$1","v":0},{"$f":"'rent allocations'!AA70*$C$1","v":0},{"$f":"'rent allocations'!AB70*$C$1","v":0},{"$f":"'rent allocations'!AC70*$C$1","v":0},{"$f":"'rent allocations'!AD70*$C$1","v":0},{"$f":"'rent allocations'!AE70*$C$1","v":0},{"$f":"'rent allocations'!AF70*$C$1","v":0},{"$f":"'rent allocations'!AG70*$C$1","v":0},{"$f":"'rent allocations'!AH70*$C$1","v":0},{"$f":"'rent allocations'!AI70*$C$1","v":0},{"$f":"'rent allocations'!AJ70*$C$1","v":0},{"$f":"'rent allocations'!AK70*$C$1","v":0},{"$f":"'rent allocations'!AL70*$C$1","v":0}]
["315 - Department of Services for the Blind","315","Department of Services for the Blind",{"$f":"'rent allocations'!D71*$C$1","v":42416.50753123207},{"$f":"'rent allocations'!E71*$C$1","v":0},{"$f":"'rent allocations'!F71*$C$1","v":0},{"$f":"'rent allocations'!G71*$C$1","v":1984.5976801078987},{"$f":"'rent allocations'!H71*$C$1","v":0},{"$f":"'rent allocations'!I71*$C$1","v":1676.7110211968854},{"$f":"'rent allocations'!J71*$C$1","v":4945.5467516917943},{"$f":"'rent allocations'!K71*$C$1","v":0},{"$f":"'rent allocations'!L71*$C$1","v":4358.1048789781489},{"$f":"'rent allocations'!M71*$C$1","v":0},{"$f":"'rent allocations'!N71*$C$1","v":2389.3601570500045},{"$f":"'rent allocations'!O71*$C$1","v":0},{"$f":"'rent allocations'!P71*$C$1","v":0},{"$f":"'rent allocations'!Q71*$C$1","v":0},{"$f":"'rent allocations'!R71*$C$1","v":0},{"$f":"'rent allocations'!S71*$C$1","v":0},{"$f":"'rent allocations'!T71*$C$1","v":0},{"$f":"'rent allocations'!U71*$C$1","v":0},{"$f":"'rent allocations'!V71*$C$1","v":0},{"$f":"'rent allocations'!W71*$C$1","v":0},{"$f":"'rent allocations'!X71*$C$1","v":0},{"$f":"'rent allocations'!Y71*$C$1","v":0},{"$f":"'rent allocations'!Z71*$C$1","v":0},{"$f":"'rent allocations'!AA71*$C$1","v":0},{"$f":"'rent allocations'!AB71*$C$1","v":0},{"$f":"'rent allocations'!AC71*$C$1","v":0},{"$f":"'rent allocations'!AD71*$C$1","v":0},{"$f":"'rent allocations'!AE71*$C$1","v":0},{"$f":"'rent allocations'!AF71*$C$1","v":0},{"$f":"'rent allocations'!AG71*$C$1","v":0},{"$f":"'rent allocations'!AH71*$C$1","v":0},{"$f":"'rent allocations'!AI71*$C$1","v":17680.450770790136},{"$f":"'rent allocations'!AJ71*$C$1","v":9381.7362714172032},{"$f":"'rent allocations'!AK71*$C$1","v":0},{"$f":"'rent allocations'!AL71*$C$1","v":0}]
["340 - Student Achievement Council","340","Student Achievement Council",{"$f":"'rent allocations'!D72*$C$1","v":0},{"$f":"'rent allocations'!E72*$C$1","v":0},{"$f":"'rent allocations'!F72*$C$1","v":0},{"$f":"'rent allocations'!G72*$C$1","v":0},{"$f":"'rent allocations'!H72*$C$1","v":0},{"$f":"'rent allocations'!I72*$C$1","v":0},{"$f":"'rent allocations'!J72*$C$1","v":0},{"$f":"'rent allocations'!K72*$C$1","v":0},{"$f":"'rent allocations'!L72*$C$1","v":0},{"$f":"'rent allocations'!M72*$C$1","v":0},{"$f":"'rent allocations'!N72*$C$1","v":0},{"$f":"'rent allocations'!O72*$C$1","v":0},{"$f":"'rent allocations'!P72*$C$1","v":0},{"$f":"'rent allocations'!Q72*$C$1","v":0},{"$f":"'rent allocations'!R72*$C$1","v":0},{"$f":"'rent allocations'!S72*$C$1","v":0},{"$f":"'rent allocations'!T72*$C$1","v":0},{"$f":"'rent allocations'!U72*$C$1","v":0},{"$f":"'rent allocations'!V72*$C$1","v":0},{"$f":"'rent allocations'!W72*$C$1","v":0},{"$f":"'rent allocations'!X72*$C$1","v":0},{"$f":"'rent allocations'!Y72*$C$1","v":0},{"$f":"'rent allocations'!Z72*$C$1","v":0},{"$f":"'rent allocations'!AA72*$C$1","v":0},{"$f":"'rent allocations'!AB72*$C$1","v":0},{"$f":"'rent allocations'!AC72*$C$1","v":0},{"$f":"'rent allocations'!AD72*$C$1","v":0},{"$f":"'rent allocations'!AE72*$C$1","v":0},{"$f":"'rent allocations'!AF72*$C$1","v":0},{"$f":"'rent allocations'!AG72*$C$1","v":0},{"$f":"'rent allocations'!AH72*$C$1","v":0},{"$f":"'rent allocations'!AI72*$C$1","v":0},{"$f":"'rent allocations'!AJ72*$C$1","v":0},{"$f":"'rent allocations'!AK72*$C$1","v":0},{"$f":"'rent allocations'!AL72*$C$1","v":0}]
["341 - Law Enforcement Officers' & Fire Fighters' Plan 2 Retirement Board","341","Law Enforcement Officers' & Fire Fighters' Plan 2 Retirement Board",{"$f":"'rent allocations'!D73*$C$1","v":0},{"$f":"'rent allocations'!E73*$C$1","v":0},{"$f":"'rent allocations'!F73*$C$1","v":0},{"$f":"'rent allocations'!G73*$C$1","v":0},{"$f":"'rent allocations'!H73*$C$1","v":0},{"$f":"'rent allocations'!I73*$C$1","v":0},{"$f":"'rent allocations'!J73*$C$1","v":0},{"$f":"'rent allocations'!K73*$C$1","v":0},{"$f":"'rent allocations'!L73*$C$1","v":0},{"$f":"'rent allocations'!M73*$C$1","v":0},{"$f":"'rent allocations'!N73*$C$1","v":0},{"$f":"'rent allocations'!O73*$C$1","v":0},{"$f":"'rent allocations'!P73*$C$1","v":0},{"$f":"'rent allocations'!Q73*$C$1","v":0},{"$f":"'rent allocations'!R73*$C$1","v":0},{"$f":"'rent allocations'!S73*$C$1","v":0},{"$f":"'rent allocations'!T73*$C$1","v":0},{"$f":"'rent allocations'!U73*$C$1","v":0},{"$f":"'rent allocations'!V73*$C$1","v":0},{"$f":"'rent allocations'!W73*$C$1","v":0},{"$f":"'rent allocations'!X73*$C$1","v":0},{"$f":"'rent allocations'!Y73*$C$1","v":0},{"$f":"'rent allocations'!Z73*$C$1","v":0},{"$f":"'rent allocations'!AA73*$C$1","v":0},{"$f":"'rent allocations'!AB73*$C$1","v":0},{"$f":"'rent allocations'!AC73*$C$1","v":0},{"$f":"'rent allocations'!AD73*$C$1","v":0},{"$f":"'rent allocations'!AE73*$C$1","v":0},{"$f":"'rent allocations'!AF73*$C$1","v":0},{"$f":"'rent allocations'!AG73*$C$1","v":0},{"$f":"'rent allocations'!AH73*$C$1","v":0},{"$f":"'rent allocations'!AI73*$C$1","v":0},{"$f":"'rent allocations'!AJ73*$C$1","v":0},{"$f":"'rent allocations'!AK73*$C$1","v":0},{"$f":"'rent allocations'!AL73*$C$1","v":0}]
["350 - Superintendent of Public Instruction","350","Superintendent of Public Instruction",{"$f":"'rent allocations'!D74*$C$1","v":191139.81333311769},{"$f":"'rent allocations'!E74*$C$1","v":0},{"$f":"'rent allocations'!F74*$C$1","v":0},{"$f":"'rent allocations'!G74*$C$1","v":0},{"$f":"'rent allocations'!H74*$C$1","v":0},{"$f":"'rent allocations'!I74*$C$1","v":0},{"$f":"'rent allocations'!J74*$C$1","v":0},{"$f":"'rent allocations'!K74*$C$1","v":0},{"$f":"'rent allocations'!L74*$C$1","v":0},{"$f":"'rent allocations'!M74*$C$1","v":0},{"$f":"'rent allocations'!N74*$C$1","v":0},{"$f":"'rent allocations'!O74*$C$1","v":0},{"$f":"'rent allocations'!P74*$C$1","v":186701.22739146306},{"$f":"'rent allocations'!Q74*$C$1","v":0},{"$f":"'rent allocations'!R74*$C$1","v":0},{"$f":"'rent allocations'!S74*$C$1","v":0},{"$f":"'rent allocations'!T74*$C$1","v":0},{"$f":"'rent allocations'!U74*$C$1","v":0},{"$f":"'rent allocations'!V74*$C$1","v":0},{"$f":"'rent allocations'!W74*$C$1","v":0},{"$f":"'rent allocations'!X74*$C$1","v":0},{"$f":"'rent allocations'!Y74*$C$1","v":0},{"$f":"'rent allocations'!Z74*$C$1","v":0},{"$f":"'rent allocations'!AA74*$C$1","v":4438.5859416546145},{"$f":"'rent allocations'!AB74*$C$1","v":0},{"$f":"'rent allocations'!AC74*$C$1","v":0},{"$f":"'rent allocations'!AD74*$C$1","v":0},{"$f":"'rent allocations'!AE74*$C$1","v":0},{"$f":"'rent allocations'!AF74*$C$1","v":0},{"$f":"'rent allocations'!AG74*$C$1","v":0},{"$f":"'rent allocations'!AH74*$C$1","v":0},{"$f":"'rent allocations'!AI74*$C$1","v":0},{"$f":"'rent allocations'!AJ74*$C$1","v":0},{"$f":"'rent allocations'!AK74*$C$1","v":0},{"$f":"'rent allocations'!AL74*$C$1","v":0}]
["351 - State School For The Blind","351","State School For The Blind",{"$f":"'rent allocations'!D75*$C$1","v":0},{"$f":"'rent allocations'!E75*$C$1","v":0},{"$f":"'rent allocations'!F75*$C$1","v":0},{"$f":"'rent allocations'!G75*$C$1","v":0},{"$f":"'rent allocations'!H75*$C$1","v":0},{"$f":"'rent allocations'!I75*$C$1","v":0},{"$f":"'rent allocations'!J75*$C$1","v":0},{"$f":"'rent allocations'!K75*$C$1","v":0},{"$f":"'rent allocations'!L75*$C$1","v":0},{"$f":"'rent allocations'!M75*$C$1","v":0},{"$f":"'rent allocations'!N75*$C$1","v":0},{"$f":"'rent allocations'!O75*$C$1","v":0},{"$f":"'rent allocations'!P75*$C$1","v":0},{"$f":"'rent allocations'!Q75*$C$1","v":0},{"$f":"'rent allocations'!R75*$C$1","v":0},{"$f":"'rent allocations'!S75*$C$1","v":0},{"$f":"'rent allocations'!T75*$C$1","v":0},{"$f":"'rent allocations'!U75*$C$1","v":0},{"$f":"'rent allocations'!V75*$C$1","v":0},{"$f":"'rent allocations'!W75*$C$1","v":0},{"$f":"'rent allocations'!X75*$C$1","v":0},{"$f":"'rent allocations'!Y75*$C$1","v":0},{"$f":"'rent allocations'!Z75*$C$1","v":0},{"$f":"'rent allocations'!AA75*$C$1","v":0},{"$f":"'rent allocations'!AB75*$C$1","v":0},{"$f":"'rent allocations'!AC75*$C$1","v":0},{"$f":"'rent allocations'!AD75*$C$1","v":0},{"$f":"'rent allocations'!AE75*$C$1","v":0},{"$f":"'rent allocations'!AF75*$C$1","v":0},{"$f":"'rent allocations'!AG75*$C$1","v":0},{"$f":"'rent allocations'!AH75*$C$1","v":0},{"$f":"'rent allocations'!AI75*$C$1","v":0},{"$f":"'rent allocations'!AJ75*$C$1","v":0},{"$f":"'rent allocations'!AK75*$C$1","v":0},{"$f":"'rent allocations'!AL75*$C$1","v":0}]
["353 - State Center for Childhood Deafness and Hearing Loss","353","State Center for Childhood Deafness and Hearing Loss",{"$f":"'rent allocations'!D76*$C$1","v":0},{"$f":"'rent allocations'!E76*$C$1","v":0},{"$f":"'rent allocations'!F76*$C$1","v":0},{"$f":"'rent allocations'!G76*$C$1","v":0},{"$f":"'rent allocations'!H76*$C$1","v":0},{"$f":"'rent allocations'!I76*$C$1","v":0},{"$f":"'rent allocations'!J76*$C$1","v":0},{"$f":"'rent allocations'!K76*$C$1","v":0},{"$f":"'rent allocations'!L76*$C$1","v":0},{"$f":"'rent allocations'!M76*$C$1","v":0},{"$f":"'rent allocations'!N76*$C$1","v":0},{"$f":"'rent allocations'!O76*$C$1","v":0},{"$f":"'rent allocations'!P76*$C$1","v":0},{"$f":"'rent allocations'!Q76*$C$1","v":0},{"$f":"'rent allocations'!R76*$C$1","v":0},{"$f":"'rent allocations'!S76*$C$1","v":0},{"$f":"'rent allocations'!T76*$C$1","v":0},{"$f":"'rent allocations'!U76*$C$1","v":0},{"$f":"'rent allocations'!V76*$C$1","v":0},{"$f":"'rent allocations'!W76*$C$1","v":0},{"$f":"'rent allocations'!X76*$C$1","v":0},{"$f":"'rent allocations'!Y76*$C$1","v":0},{"$f":"'rent allocations'!Z76*$C$1","v":0},{"$f":"'rent allocations'!AA76*$C$1","v":0},{"$f":"'rent allocations'!AB76*$C$1","v":0},{"$f":"'rent allocations'!AC76*$C$1","v":0},{"$f":"'rent allocations'!AD76*$C$1","v":0},{"$f":"'rent allocations'!AE76*$C$1","v":0},{"$f":"'rent allocations'!AF76*$C$1","v":0},{"$f":"'rent allocations'!AG76*$C$1","v":0},{"$f":"'rent allocations'!AH76*$C$1","v":0},{"$f":"'rent allocations'!AI76*$C$1","v":0},{"$f":"'rent allocations'!AJ76*$C$1","v":0},{"$f":"'rent allocations'!AK76*$C$1","v":0},{"$f":"'rent allocations'!AL76*$C$1","v":0}]
["354 - Workforce Training and Education Coordinating Board","354","Workforce Training and Education Coordinating Board",{"$f":"'rent allocations'!D77*$C$1","v":0},{"$f":"'rent allocations'!E77*$C$1","v":0},{"$f":"'rent allocations'!F77*$C$1","v":0},{"$f":"'rent allocations'!G77*$C$1","v":0},{"$f":"'rent allocations'!H77*$C$1","v":0},{"$f":"'rent allocations'!I77*$C$1","v":0},{"$f":"'rent allocations'!J77*$C$1","v":0},{"$f":"'rent allocations'!K77*$C$1","v":0},{"$f":"'rent allocations'!L77*$C$1","v":0},{"$f":"'rent allocations'!M77*$C$1","v":0},{"$f":"'rent allocations'!N77*$C$1","v":0},{"$f":"'rent allocations'!O77*$C$1","v":0},{"$f":"'rent allocations'!P77*$C$1","v":0},{"$f":"'rent allocations'!Q77*$C$1","v":0},{"$f":"'rent allocations'!R77*$C$1","v":0},{"$f":"'rent allocations'!S77*$C$1","v":0},{"$f":"'rent allocations'!T77*$C$1","v":0},{"$f":"'rent allocations'!U77*$C$1","v":0},{"$f":"'rent allocations'!V77*$C$1","v":0},{"$f":"'rent allocations'!W77*$C$1","v":0},{"$f":"'rent allocations'!X77*$C$1","v":0},{"$f":"'rent allocations'!Y77*$C$1","v":0},{"$f":"'rent allocations'!Z77*$C$1","v":0},{"$f":"'rent allocations'!AA77*$C$1","v":0},{"$f":"'rent allocations'!AB77*$C$1","v":0},{"$f":"'rent allocations'!AC77*$C$1","v":0},{"$f":"'rent allocations'!AD77*$C$1","v":0},{"$f":"'rent allocations'!AE77*$C$1","v":0},{"$f":"'rent allocations'!AF77*$C$1","v":0},{"$f":"'rent allocations'!AG77*$C$1","v":0},{"$f":"'rent allocations'!AH77*$C$1","v":0},{"$f":"'rent allocations'!AI77*$C$1","v":0},{"$f":"'rent allocations'!AJ77*$C$1","v":0},{"$f":"'rent allocations'!AK77*$C$1","v":0},{"$f":"'rent allocations'!AL77*$C$1","v":0}]
["355 - Department of Archaeology and Historic Preservation","355","Department of Archaeology and Historic Preservation",{"$f":"'rent allocations'!D78*$C$1","v":37384.588600523362},{"$f":"'rent allocations'!E78*$C$1","v":0},{"$f":"'rent allocations'!F78*$C$1","v":0},{"$f":"'rent allocations'!G78*$C$1","v":0},{"$f":"'rent allocations'!H78*$C$1","v":0},{"$f":"'rent allocations'!I78*$C$1","v":0},{"$f":"'rent allocations'!J78*$C$1","v":0},{"$f":"'rent allocations'!K78*$C$1","v":0},{"$f":"'rent allocations'!L78*$C$1","v":0},{"$f":"'rent allocations'!M78*$C$1","v":0},{"$f":"'rent allocations'!N78*$C$1","v":0},{"$f":"'rent allocations'!O78*$C$1","v":0},{"$f":"'rent allocations'!P78*$C$1","v":0},{"$f":"'rent allocations'!Q78*$C$1","v":0},{"$f":"'rent allocations'!R78*$C$1","v":0},{"$f":"'rent allocations'!S78*$C$1","v":0},{"$f":"'rent allocations'!T78*$C$1","v":0},{"$f":"'rent allocations'!U78*$C$1","v":0},{"$f":"'rent allocations'!V78*$C$1","v":0},{"$f":"'rent allocations'!W78*$C$1","v":0},{"$f":"'rent allocations'!X78*$C$1","v":37384.588600523362},{"$f":"'rent allocations'!Y78*$C$1","v":0},{"$f":"'rent allocations'!Z78*$C$1","v":0},{"$f":"'rent allocations'!AA78*$C$1","v":0},{"$f":"'rent allocations'!AB78*$C$1","v":0},{"$f":"'rent allocations'!AC78*$C$1","v":0},{"$f":"'rent allocations'!AD78*$C$1","v":0},{"$f":"'rent allocations'!AE78*$C$1","v":0},{"$f":"'rent allocations'!AF78*$C$1","v":0},{"$f":"'rent allocations'!AG78*$C$1","v":0},{"$f":"'rent allocations'!AH78*$C$1","v":0},{"$f":"'rent allocations'!AI78*$C$1","v":0},{"$f":"'rent allocations'!AJ78*$C$1","v":0},{"$f":"'rent allocations'!AK78*$C$1","v":0},{"$f":"'rent allocations'!AL78*$C$1","v":0}]
["357 - Department of Early Learning","357","Department of Early Learning",{"$f":"'rent allocations'!D79*$C$1","v":0},{"$f":"'rent allocations'!E79*$C$1","v":0},{"$f":"'rent allocations'!F79*$C$1","v":0},{"$f":"'rent allocations'!G79*$C$1","v":0},{"$f":"'rent allocations'!H79*$C$1","v":0},{"$f":"'rent allocations'!I79*$C$1","v":0},{"$f":"'rent allocations'!J79*$C$1","v":0},{"$f":"'rent allocations'!K79*$C$1","v":0},{"$f":"'rent allocations'!L79*$C$1","v":0},{"$f":"'rent allocations'!M79*$C$1","v":0},{"$f":"'rent allocations'!N79*$C$1","v":0},{"$f":"'rent allocations'!O79*$C$1","v":0},{"$f":"'rent allocations'!P79*$C$1","v":0},{"$f":"'rent allocations'!Q79*$C$1","v":0},{"$f":"'rent allocations'!R79*$C$1","v":0},{"$f":"'rent allocations'!S79*$C$1","v":0},{"$f":"'rent allocations'!T79*$C$1","v":0},{"$f":"'rent allocations'!U79*$C$1","v":0},{"$f":"'rent allocations'!V79*$C$1","v":0},{"$f":"'rent allocations'!W79*$C$1","v":0},{"$f":"'rent allocations'!X79*$C$1","v":0},{"$f":"'rent allocations'!Y79*$C$1","v":0},{"$f":"'rent allocations'!Z79*$C$1","v":0},{"$f":"'rent allocations'!AA79*$C$1","v":0},{"$f":"'rent allocations'!AB79*$C$1","v":0},{"$f":"'rent allocations'!AC79*$C$1","v":0},{"$f":"'rent allocations'!AD79*$C$1","v":0},{"$f":"'rent allocations'!AE79*$C$1","v":0},{"$f":"'rent allocations'!AF79*$C$1","v":0},{"$f":"'rent allocations'!AG79*$C$1","v":0},{"$f":"'rent allocations'!AH79*$C$1","v":0},{"$f":"'rent allocations'!AI79*$C$1","v":0},{"$f":"'rent allocations'!AJ79*$C$1","v":0},{"$f":"'rent allocations'!AK79*$C$1","v":0},{"$f":"'rent allocations'!AL79*$C$1","v":0}]
["359 - WA Charter School Commission","359","WA Charter School Commission",{"$f":"'rent allocations'!D80*$C$1","v":0},{"$f":"'rent allocations'!E80*$C$1","v":0},{"$f":"'rent allocations'!F80*$C$1","v":0},{"$f":"'rent allocations'!G80*$C$1","v":0},{"$f":"'rent allocations'!H80*$C$1","v":0},{"$f":"'rent allocations'!I80*$C$1","v":0},{"$f":"'rent allocations'!J80*$C$1","v":0},{"$f":"'rent allocations'!K80*$C$1","v":0},{"$f":"'rent allocations'!L80*$C$1","v":0},{"$f":"'rent allocations'!M80*$C$1","v":0},{"$f":"'rent allocations'!N80*$C$1","v":0},{"$f":"'rent allocations'!O80*$C$1","v":0},{"$f":"'rent allocations'!P80*$C$1","v":0},{"$f":"'rent allocations'!Q80*$C$1","v":0},{"$f":"'rent allocations'!R80*$C$1","v":0},{"$f":"'rent allocations'!S80*$C$1","v":0},{"$f":"'rent allocations'!T80*$C$1","v":0},{"$f":"'rent allocations'!U80*$C$1","v":0},{"$f":"'rent allocations'!V80*$C$1","v":0},{"$f":"'rent allocations'!W80*$C$1","v":0},{"$f":"'rent allocations'!X80*$C$1","v":0},{"$f":"'rent allocations'!Y80*$C$1","v":0},{"$f":"'rent allocations'!Z80*$C$1","v":0},{"$f":"'rent allocations'!AA80*$C$1","v":0},{"$f":"'rent allocations'!AB80*$C$1","v":0},{"$f":"'rent allocations'!AC80*$C$1","v":0},{"$f":"'rent allocations'!AD80*$C$1","v":0},{"$f":"'rent allocations'!AE80*$C$1","v":0},{"$f":"'rent allocations'!AF80*$C$1","v":0},{"$f":"'rent allocations'!AG80*$C$1","v":0},{"$f":"'rent allocations'!AH80*$C$1","v":0},{"$f":"'rent allocations'!AI80*$C$1","v":0},{"$f":"'rent allocations'!AJ80*$C$1","v":0},{"$f":"'rent allocations'!AK80*$C$1","v":0},{"$f":"'rent allocations'!AL80*$C$1","v":0}]
["360 - University of Washington","360","University of Washington",{"$f":"'rent allocations'!D81*$C$1","v":0},{"$f":"'rent allocations'!E81*$C$1","v":0},{"$f":"'rent allocations'!F81*$C$1","v":0},{"$f":"'rent allocations'!G81*$C$1","v":0},{"$f":"'rent allocations'!H81*$C$1","v":0},{"$f":"'rent allocations'!I81*$C$1","v":0},{"$f":"'rent allocations'!J81*$C$1","v":0},{"$f":"'rent allocations'!K81*$C$1","v":0},{"$f":"'rent allocations'!L81*$C$1","v":0},{"$f":"'rent allocations'!M81*$C$1","v":0},{"$f":"'rent allocations'!N81*$C$1","v":0},{"$f":"'rent allocations'!O81*$C$1","v":0},{"$f":"'rent allocations'!P81*$C$1","v":0},{"$f":"'rent allocations'!Q81*$C$1","v":0},{"$f":"'rent allocations'!R81*$C$1","v":0},{"$f":"'rent allocations'!S81*$C$1","v":0},{"$f":"'rent allocations'!T81*$C$1","v":0},{"$f":"'rent allocations'!U81*$C$1","v":0},{"$f":"'rent allocations'!V81*$C$1","v":0},{"$f":"'rent allocations'!W81*$C$1","v":0},{"$f":"'rent allocations'!X81*$C$1","v":0},{"$f":"'rent allocations'!Y81*$C$1","v":0},{"$f":"'rent allocations'!Z81*$C$1","v":0},{"$f":"'rent allocations'!AA81*$C$1","v":0},{"$f":"'rent allocations'!AB81*$C$1","v":0},{"$f":"'rent allocations'!AC81*$C$1","v":0},{"$f":"'rent allocations'!AD81*$C$1","v":0},{"$f":"'rent allocations'!AE81*$C$1","v":0},{"$f":"'rent allocations'!AF81*$C$1","v":0},{"$f":"'rent allocations'!AG81*$C$1","v":0},{"$f":"'rent allocations'!AH81*$C$1","v":0},{"$f":"'rent allocations'!AI81*$C$1","v":0},{"$f":"'rent allocations'!AJ81*$C$1","v":0},{"$f":"'rent allocations'!AK81*$C$1","v":0},{"$f":"'rent allocations'!AL81*$C$1","v":0}]
["365 - Washington State University","365","Washington State University",{"$f":"'rent allocations'!D82*$C$1","v":0},{"$f":"'rent allocations'!E82*$C$1","v":0},{"$f":"'rent allocations'!F82*$C$1","v":0},{"$f":"'rent allocations'!G82*$C$1","v":0},{"$f":"'rent allocations'!H82*$C$1","v":0},{"$f":"'rent allocations'!I82*$C$1","v":0},{"$f":"'rent allocations'!J82*$C$1","v":0},{"$f":"'rent allocations'!K82*$C$1","v":0},{"$f":"'rent allocations'!L82*$C$1","v":0},{"$f":"'rent allocations'!M82*$C$1","v":0},{"$f":"'rent allocations'!N82*$C$1","v":0},{"$f":"'rent allocations'!O82*$C$1","v":0},{"$f":"'rent allocations'!P82*$C$1","v":0},{"$f":"'rent allocations'!Q82*$C$1","v":0},{"$f":"'rent allocations'!R82*$C$1","v":0},{"$f":"'rent allocations'!S82*$C$1","v":0},{"$f":"'rent allocations'!T82*$C$1","v":0},{"$f":"'rent allocations'!U82*$C$1","v":0},{"$f":"'rent allocations'!V82*$C$1","v":0},{"$f":"'rent allocations'!W82*$C$1","v":0},{"$f":"'rent allocations'!X82*$C$1","v":0},{"$f":"'rent allocations'!Y82*$C$1","v":0},{"$f":"'rent allocations'!Z82*$C$1","v":0},{"$f":"'rent allocations'!AA82*$C$1","v":0},{"$f":"'rent allocations'!AB82*$C$1","v":0},{"$f":"'rent allocations'!AC82*$C$1","v":0},{"$f":"'rent allocations'!AD82*$C$1","v":0},{"$f":"'rent allocations'!AE82*$C$1","v":0},{"$f":"'rent allocations'!AF82*$C$1","v":0},{"$f":"'rent allocations'!AG82*$C$1","v":0},{"$f":"'rent allocations'!AH82*$C$1","v":0},{"$f":"'rent allocations'!AI82*$C$1","v":0},{"$f":"'rent allocations'!AJ82*$C$1","v":0},{"$f":"'rent allocations'!AK82*$C$1","v":0},{"$f":"'rent allocations'!AL82*$C$1","v":0}]
["370 - Eastern Washington University","370","Eastern Washington University",{"$f":"'rent allocations'!D83*$C$1","v":0},{"$f":"'rent allocations'!E83*$C$1","v":0},{"$f":"'rent allocations'!F83*$C$1","v":0},{"$f":"'rent allocations'!G83*$C$1","v":0},{"$f":"'rent allocations'!H83*$C$1","v":0},{"$f":"'rent allocations'!I83*$C$1","v":0},{"$f":"'rent allocations'!J83*$C$1","v":0},{"$f":"'rent allocations'!K83*$C$1","v":0},{"$f":"'rent allocations'!L83*$C$1","v":0},{"$f":"'rent allocations'!M83*$C$1","v":0},{"$f":"'rent allocations'!N83*$C$1","v":0},{"$f":"'rent allocations'!O83*$C$1","v":0},{"$f":"'rent allocations'!P83*$C$1","v":0},{"$f":"'rent allocations'!Q83*$C$1","v":0},{"$f":"'rent allocations'!R83*$C$1","v":0},{"$f":"'rent allocations'!S83*$C$1","v":0},{"$f":"'rent allocations'!T83*$C$1","v":0},{"$f":"'rent allocations'!U83*$C$1","v":0},{"$f":"'rent allocations'!V83*$C$1","v":0},{"$f":"'rent allocations'!W83*$C$1","v":0},{"$f":"'rent allocations'!X83*$C$1","v":0},{"$f":"'rent allocations'!Y83*$C$1","v":0},{"$f":"'rent allocations'!Z83*$C$1","v":0},{"$f":"'rent allocations'!AA83*$C$1","v":0},{"$f":"'rent allocations'!AB83*$C$1","v":0},{"$f":"'rent allocations'!AC83*$C$1","v":0},{"$f":"'rent allocations'!AD83*$C$1","v":0},{"$f":"'rent allocations'!AE83*$C$1","v":0},{"$f":"'rent allocations'!AF83*$C$1","v":0},{"$f":"'rent allocations'!AG83*$C$1","v":0},{"$f":"'rent allocations'!AH83*$C$1","v":0},{"$f":"'rent allocations'!AI83*$C$1","v":0},{"$f":"'rent allocations'!AJ83*$C$1","v":0},{"$f":"'rent allocations'!AK83*$C$1","v":0},{"$f":"'rent allocations'!AL83*$C$1","v":0}]
["375 - Central Washington University","375","Central Washington University",{"$f":"'rent allocations'!D84*$C$1","v":0},{"$f":"'rent allocations'!E84*$C$1","v":0},{"$f":"'rent allocations'!F84*$C$1","v":0},{"$f":"'rent allocations'!G84*$C$1","v":0},{"$f":"'rent allocations'!H84*$C$1","v":0},{"$f":"'rent allocations'!I84*$C$1","v":0},{"$f":"'rent allocations'!J84*$C$1","v":0},{"$f":"'rent allocations'!K84*$C$1","v":0},{"$f":"'rent allocations'!L84*$C$1","v":0},{"$f":"'rent allocations'!M84*$C$1","v":0},{"$f":"'rent allocations'!N84*$C$1","v":0},{"$f":"'rent allocations'!O84*$C$1","v":0},{"$f":"'rent allocations'!P84*$C$1","v":0},{"$f":"'rent allocations'!Q84*$C$1","v":0},{"$f":"'rent allocations'!R84*$C$1","v":0},{"$f":"'rent allocations'!S84*$C$1","v":0},{"$f":"'rent allocations'!T84*$C$1","v":0},{"$f":"'rent allocations'!U84*$C$1","v":0},{"$f":"'rent allocations'!V84*$C$1","v":0},{"$f":"'rent allocations'!W84*$C$1","v":0},{"$f":"'rent allocations'!X84*$C$1","v":0},{"$f":"'rent allocations'!Y84*$C$1","v":0},{"$f":"'rent allocations'!Z84*$C$1","v":0},{"$f":"'rent allocations'!AA84*$C$1","v":0},{"$f":"'rent allocations'!AB84*$C$1","v":0},{"$f":"'rent allocations'!AC84*$C$1","v":0},{"$f":"'rent allocations'!AD84*$C$1","v":0},{"$f":"'rent allocations'!AE84*$C$1","v":0},{"$f":"'rent allocations'!AF84*$C$1","v":0},{"$f":"'rent allocations'!AG84*$C$1","v":0},{"$f":"'rent allocations'!AH84*$C$1","v":0},{"$f":"'rent allocations'!AI84*$C$1","v":0},{"$f":"'rent allocations'!AJ84*$C$1","v":0},{"$f":"'rent allocations'!AK84*$C$1","v":0},{"$f":"'rent allocations'!AL84*$C$1","v":0}]
["376 - The Evergreen State College","376","The Evergreen State College",{"$f":"'rent allocations'!D85*$C$1","v":0},{"$f":"'rent allocations'!E85*$C$1","v":0},{"$f":"'rent allocations'!F85*$C$1","v":0},{"$f":"'rent allocations'!G85*$C$1","v":0},{"$f":"'rent allocations'!H85*$C$1","v":0},{"$f":"'rent allocations'!I85*$C$1","v":0},{"$f":"'rent allocations'!J85*$C$1","v":0},{"$f":"'rent allocations'!K85*$C$1","v":0},{"$f":"'rent allocations'!L85*$C$1","v":0},{"$f":"'rent allocations'!M85*$C$1","v":0},{"$f":"'rent allocations'!N85*$C$1","v":0},{"$f":"'rent allocations'!O85*$C$1","v":0},{"$f":"'rent allocations'!P85*$C$1","v":0},{"$f":"'rent allocations'!Q85*$C$1","v":0},{"$f":"'rent allocations'!R85*$C$1","v":0},{"$f":"'rent allocations'!S85*$C$1","v":0},{"$f":"'rent allocations'!T85*$C$1","v":0},{"$f":"'rent allocations'!U85*$C$1","v":0},{"$f":"'rent allocations'!V85*$C$1","v":0},{"$f":"'rent allocations'!W85*$C$1","v":0},{"$f":"'rent allocations'!X85*$C$1","v":0},{"$f":"'rent allocations'!Y85*$C$1","v":0},{"$f":"'rent allocations'!Z85*$C$1","v":0},{"$f":"'rent allocations'!AA85*$C$1","v":0},{"$f":"'rent allocations'!AB85*$C$1","v":0},{"$f":"'rent allocations'!AC85*$C$1","v":0},{"$f":"'rent allocations'!AD85*$C$1","v":0},{"$f":"'rent allocations'!AE85*$C$1","v":0},{"$f":"'rent allocations'!AF85*$C$1","v":0},{"$f":"'rent allocations'!AG85*$C$1","v":0},{"$f":"'rent allocations'!AH85*$C$1","v":0},{"$f":"'rent allocations'!AI85*$C$1","v":0},{"$f":"'rent allocations'!AJ85*$C$1","v":0},{"$f":"'rent allocations'!AK85*$C$1","v":0},{"$f":"'rent allocations'!AL85*$C$1","v":0}]
["380 - Western Washington University","380","Western Washington University",{"$f":"'rent allocations'!D86*$C$1","v":0},{"$f":"'rent allocations'!E86*$C$1","v":0},{"$f":"'rent allocations'!F86*$C$1","v":0},{"$f":"'rent allocations'!G86*$C$1","v":0},{"$f":"'rent allocations'!H86*$C$1","v":0},{"$f":"'rent allocations'!I86*$C$1","v":0},{"$f":"'rent allocations'!J86*$C$1","v":0},{"$f":"'rent allocations'!K86*$C$1","v":0},{"$f":"'rent allocations'!L86*$C$1","v":0},{"$f":"'rent allocations'!M86*$C$1","v":0},{"$f":"'rent allocations'!N86*$C$1","v":0},{"$f":"'rent allocations'!O86*$C$1","v":0},{"$f":"'rent allocations'!P86*$C$1","v":0},{"$f":"'rent allocations'!Q86*$C$1","v":0},{"$f":"'rent allocations'!R86*$C$1","v":0},{"$f":"'rent allocations'!S86*$C$1","v":0},{"$f":"'rent allocations'!T86*$C$1","v":0},{"$f":"'rent allocations'!U86*$C$1","v":0},{"$f":"'rent allocations'!V86*$C$1","v":0},{"$f":"'rent allocations'!W86*$C$1","v":0},{"$f":"'rent allocations'!X86*$C$1","v":0},{"$f":"'rent allocations'!Y86*$C$1","v":0},{"$f":"'rent allocations'!Z86*$C$1","v":0},{"$f":"'rent allocations'!AA86*$C$1","v":0},{"$f":"'rent allocations'!AB86*$C$1","v":0},{"$f":"'rent allocations'!AC86*$C$1","v":0},{"$f":"'rent allocations'!AD86*$C$1","v":0},{"$f":"'rent allocations'!AE86*$C$1","v":0},{"$f":"'rent allocations'!AF86*$C$1","v":0},{"$f":"'rent allocations'!AG86*$C$1","v":0},{"$f":"'rent allocations'!AH86*$C$1","v":0},{"$f":"'rent allocations'!AI86*$C$1","v":0},{"$f":"'rent allocations'!AJ86*$C$1","v":0},{"$f":"'rent allocations'!AK86*$C$1","v":0},{"$f":"'rent allocations'!AL86*$C$1","v":0}]
["387 - Washington State Arts Commission","387","Washington State Arts Commission",{"$f":"'rent allocations'!D87*$C$1","v":0},{"$f":"'rent allocations'!E87*$C$1","v":0},{"$f":"'rent allocations'!F87*$C$1","v":0},{"$f":"'rent allocations'!G87*$C$1","v":0},{"$f":"'rent allocations'!H87*$C$1","v":0},{"$f":"'rent allocations'!I87*$C$1","v":0},{"$f":"'rent allocations'!J87*$C$1","v":0},{"$f":"'rent allocations'!K87*$C$1","v":0},{"$f":"'rent allocations'!L87*$C$1","v":0},{"$f":"'rent allocations'!M87*$C$1","v":0},{"$f":"'rent allocations'!N87*$C$1","v":0},{"$f":"'rent allocations'!O87*$C$1","v":0},{"$f":"'rent allocations'!P87*$C$1","v":0},{"$f":"'rent allocations'!Q87*$C$1","v":0},{"$f":"'rent allocations'!R87*$C$1","v":0},{"$f":"'rent allocations'!S87*$C$1","v":0},{"$f":"'rent allocations'!T87*$C$1","v":0},{"$f":"'rent allocations'!U87*$C$1","v":0},{"$f":"'rent allocations'!V87*$C$1","v":0},{"$f":"'rent allocations'!W87*$C$1","v":0},{"$f":"'rent allocations'!X87*$C$1","v":0},{"$f":"'rent allocations'!Y87*$C$1","v":0},{"$f":"'rent allocations'!Z87*$C$1","v":0},{"$f":"'rent allocations'!AA87*$C$1","v":0},{"$f":"'rent allocations'!AB87*$C$1","v":0},{"$f":"'rent allocations'!AC87*$C$1","v":0},{"$f":"'rent allocations'!AD87*$C$1","v":0},{"$f":"'rent allocations'!AE87*$C$1","v":0},{"$f":"'rent allocations'!AF87*$C$1","v":0},{"$f":"'rent allocations'!AG87*$C$1","v":0},{"$f":"'rent allocations'!AH87*$C$1","v":0},{"$f":"'rent allocations'!AI87*$C$1","v":0},{"$f":"'rent allocations'!AJ87*$C$1","v":0},{"$f":"'rent allocations'!AK87*$C$1","v":0},{"$f":"'rent allocations'!AL87*$C$1","v":0}]
["390 - Washington State Historical Society","390","Washington State Historical Society",{"$f":"'rent allocations'!D88*$C$1","v":0},{"$f":"'rent allocations'!E88*$C$1","v":0},{"$f":"'rent allocations'!F88*$C$1","v":0},{"$f":"'rent allocations'!G88*$C$1","v":0},{"$f":"'rent allocations'!H88*$C$1","v":0},{"$f":"'rent allocations'!I88*$C$1","v":0},{"$f":"'rent allocations'!J88*$C$1","v":0},{"$f":"'rent allocations'!K88*$C$1","v":0},{"$f":"'rent allocations'!L88*$C$1","v":0},{"$f":"'rent allocations'!M88*$C$1","v":0},{"$f":"'rent allocations'!N88*$C$1","v":0},{"$f":"'rent allocations'!O88*$C$1","v":0},{"$f":"'rent allocations'!P88*$C$1","v":0},{"$f":"'rent allocations'!Q88*$C$1","v":0},{"$f":"'rent allocations'!R88*$C$1","v":0},{"$f":"'rent allocations'!S88*$C$1","v":0},{"$f":"'rent allocations'!T88*$C$1","v":0},{"$f":"'rent allocations'!U88*$C$1","v":0},{"$f":"'rent allocations'!V88*$C$1","v":0},{"$f":"'rent allocations'!W88*$C$1","v":0},{"$f":"'rent allocations'!X88*$C$1","v":0},{"$f":"'rent allocations'!Y88*$C$1","v":0},{"$f":"'rent allocations'!Z88*$C$1","v":0},{"$f":"'rent allocations'!AA88*$C$1","v":0},{"$f":"'rent allocations'!AB88*$C$1","v":0},{"$f":"'rent allocations'!AC88*$C$1","v":0},{"$f":"'rent allocations'!AD88*$C$1","v":0},{"$f":"'rent allocations'!AE88*$C$1","v":0},{"$f":"'rent allocations'!AF88*$C$1","v":0},{"$f":"'rent allocations'!AG88*$C$1","v":0},{"$f":"'rent allocations'!AH88*$C$1","v":0},{"$f":"'rent allocations'!AI88*$C$1","v":0},{"$f":"'rent allocations'!AJ88*$C$1","v":0},{"$f":"'rent allocations'!AK88*$C$1","v":0},{"$f":"'rent allocations'!AL88*$C$1","v":0}]
["395 - Eastern Washington State Historical Society","395","Eastern Washington State Historical Society",{"$f":"'rent allocations'!D89*$C$1","v":0},{"$f":"'rent allocations'!E89*$C$1","v":0},{"$f":"'rent allocations'!F89*$C$1","v":0},{"$f":"'rent allocations'!G89*$C$1","v":0},{"$f":"'rent allocations'!H89*$C$1","v":0},{"$f":"'rent allocations'!I89*$C$1","v":0},{"$f":"'rent allocations'!J89*$C$1","v":0},{"$f":"'rent allocations'!K89*$C$1","v":0},{"$f":"'rent allocations'!L89*$C$1","v":0},{"$f":"'rent allocations'!M89*$C$1","v":0},{"$f":"'rent allocations'!N89*$C$1","v":0},{"$f":"'rent allocations'!O89*$C$1","v":0},{"$f":"'rent allocations'!P89*$C$1","v":0},{"$f":"'rent allocations'!Q89*$C$1","v":0},{"$f":"'rent allocations'!R89*$C$1","v":0},{"$f":"'rent allocations'!S89*$C$1","v":0},{"$f":"'rent allocations'!T89*$C$1","v":0},{"$f":"'rent allocations'!U89*$C$1","v":0},{"$f":"'rent allocations'!V89*$C$1","v":0},{"$f":"'rent allocations'!W89*$C$1","v":0},{"$f":"'rent allocations'!X89*$C$1","v":0},{"$f":"'rent allocations'!Y89*$C$1","v":0},{"$f":"'rent allocations'!Z89*$C$1","v":0},{"$f":"'rent allocations'!AA89*$C$1","v":0},{"$f":"'rent allocations'!AB89*$C$1","v":0},{"$f":"'rent allocations'!AC89*$C$1","v":0},{"$f":"'rent allocations'!AD89*$C$1","v":0},{"$f":"'rent allocations'!AE89*$C$1","v":0},{"$f":"'rent allocations'!AF89*$C$1","v":0},{"$f":"'rent allocations'!AG89*$C$1","v":0},{"$f":"'rent allocations'!AH89*$C$1","v":0},{"$f":"'rent allocations'!AI89*$C$1","v":0},{"$f":"'rent allocations'!AJ89*$C$1","v":0},{"$f":"'rent allocations'!AK89*$C$1","v":0},{"$f":"'rent allocations'!AL89*$C$1","v":0}]
["405 - Department of Transportation","405","Department of Transportation",{"$f":"'rent allocations'!D90*$C$1","v":304906.6828584738},{"$f":"'rent allocations'!E90*$C$1","v":0},{"$f":"'rent allocations'!F90*$C$1","v":0},{"$f":"'rent allocations'!G90*$C$1","v":0},{"$f":"'rent allocations'!H90*$C$1","v":0},{"$f":"'rent allocations'!I90*$C$1","v":0},{"$f":"'rent allocations'!J90*$C$1","v":0},{"$f":"'rent allocations'!K90*$C$1","v":0},{"$f":"'rent allocations'!L90*$C$1","v":0},{"$f":"'rent allocations'!M90*$C$1","v":0},{"$f":"'rent allocations'!N90*$C$1","v":304906.6828584738},{"$f":"'rent allocations'!O90*$C$1","v":0},{"$f":"'rent allocations'!P90*$C$1","v":0},{"$f":"'rent allocations'!Q90*$C$1","v":0},{"$f":"'rent allocations'!R90*$C$1","v":0},{"$f":"'rent allocations'!S90*$C$1","v":0},{"$f":"'rent allocations'!T90*$C$1","v":0},{"$f":"'rent allocations'!U90*$C$1","v":0},{"$f":"'rent allocations'!V90*$C$1","v":0},{"$f":"'rent allocations'!W90*$C$1","v":0},{"$f":"'rent allocations'!X90*$C$1","v":0},{"$f":"'rent allocations'!Y90*$C$1","v":0},{"$f":"'rent allocations'!Z90*$C$1","v":0},{"$f":"'rent allocations'!AA90*$C$1","v":0},{"$f":"'rent allocations'!AB90*$C$1","v":0},{"$f":"'rent allocations'!AC90*$C$1","v":0},{"$f":"'rent allocations'!AD90*$C$1","v":0},{"$f":"'rent allocations'!AE90*$C$1","v":0},{"$f":"'rent allocations'!AF90*$C$1","v":0},{"$f":"'rent allocations'!AG90*$C$1","v":0},{"$f":"'rent allocations'!AH90*$C$1","v":0},{"$f":"'rent allocations'!AI90*$C$1","v":0},{"$f":"'rent allocations'!AJ90*$C$1","v":0},{"$f":"'rent allocations'!AK90*$C$1","v":0},{"$f":"'rent allocations'!AL90*$C$1","v":0}]
["406 - County Road Administration Board","406","County Road Administration Board",{"$f":"'rent allocations'!D91*$C$1","v":0},{"$f":"'rent allocations'!E91*$C$1","v":0},{"$f":"'rent allocations'!F91*$C$1","v":0},{"$f":"'rent allocations'!G91*$C$1","v":0},{"$f":"'rent allocations'!H91*$C$1","v":0},{"$f":"'rent allocations'!I91*$C$1","v":0},{"$f":"'rent allocations'!J91*$C$1","v":0},{"$f":"'rent allocations'!K91*$C$1","v":0},{"$f":"'rent allocations'!L91*$C$1","v":0},{"$f":"'rent allocations'!M91*$C$1","v":0},{"$f":"'rent allocations'!N91*$C$1","v":0},{"$f":"'rent allocations'!O91*$C$1","v":0},{"$f":"'rent allocations'!P91*$C$1","v":0},{"$f":"'rent allocations'!Q91*$C$1","v":0},{"$f":"'rent allocations'!R91*$C$1","v":0},{"$f":"'rent allocations'!S91*$C$1","v":0},{"$f":"'rent allocations'!T91*$C$1","v":0},{"$f":"'rent allocations'!U91*$C$1","v":0},{"$f":"'rent allocations'!V91*$C$1","v":0},{"$f":"'rent allocations'!W91*$C$1","v":0},{"$f":"'rent allocations'!X91*$C$1","v":0},{"$f":"'rent allocations'!Y91*$C$1","v":0},{"$f":"'rent allocations'!Z91*$C$1","v":0},{"$f":"'rent allocations'!AA91*$C$1","v":0},{"$f":"'rent allocations'!AB91*$C$1","v":0},{"$f":"'rent allocations'!AC91*$C$1","v":0},{"$f":"'rent allocations'!AD91*$C$1","v":0},{"$f":"'rent allocations'!AE91*$C$1","v":0},{"$f":"'rent allocations'!AF91*$C$1","v":0},{"$f":"'rent allocations'!AG91*$C$1","v":0},{"$f":"'rent allocations'!AH91*$C$1","v":0},{"$f":"'rent allocations'!AI91*$C$1","v":0},{"$f":"'rent allocations'!AJ91*$C$1","v":0},{"$f":"'rent allocations'!AK91*$C$1","v":0},{"$f":"'rent allocations'!AL91*$C$1","v":0}]
["407 - Transportation Improvement Board","407","Transportation Improvement Board",{"$f":"'rent allocations'!D92*$C$1","v":0},{"$f":"'rent allocations'!E92*$C$1","v":0},{"$f":"'rent allocations'!F92*$C$1","v":0},{"$f":"'rent allocations'!G92*$C$1","v":0},{"$f":"'rent allocations'!H92*$C$1","v":0},{"$f":"'rent allocations'!I92*$C$1","v":0},{"$f":"'rent allocations'!J92*$C$1","v":0},{"$f":"'rent allocations'!K92*$C$1","v":0},{"$f":"'rent allocations'!L92*$C$1","v":0},{"$f":"'rent allocations'!M92*$C$1","v":0},{"$f":"'rent allocations'!N92*$C$1","v":0},{"$f":"'rent allocations'!O92*$C$1","v":0},{"$f":"'rent allocations'!P92*$C$1","v":0},{"$f":"'rent allocations'!Q92*$C$1","v":0},{"$f":"'rent allocations'!R92*$C$1","v":0},{"$f":"'rent allocations'!S92*$C$1","v":0},{"$f":"'rent allocations'!T92*$C$1","v":0},{"$f":"'rent allocations'!U92*$C$1","v":0},{"$f":"'rent allocations'!V92*$C$1","v":0},{"$f":"'rent allocations'!W92*$C$1","v":0},{"$f":"'rent allocations'!X92*$C$1","v":0},{"$f":"'rent allocations'!Y92*$C$1","v":0},{"$f":"'rent allocations'!Z92*$C$1","v":0},{"$f":"'rent allocations'!AA92*$C$1","v":0},{"$f":"'rent allocations'!AB92*$C$1","v":0},{"$f":"'rent allocations'!AC92*$C$1","v":0},{"$f":"'rent allocations'!AD92*$C$1","v":0},{"$f":"'rent allocations'!AE92*$C$1","v":0},{"$f":"'rent allocations'!AF92*$C$1","v":0},{"$f":"'rent allocations'!AG92*$C$1","v":0},{"$f":"'rent allocations'!AH92*$C$1","v":0},{"$f":"'rent allocations'!AI92*$C$1","v":0},{"$f":"'rent allocations'!AJ92*$C$1","v":0},{"$f":"'rent allocations'!AK92*$C$1","v":0},{"$f":"'rent allocations'!AL92*$C$1","v":0}]
["410 - Transportation Commission","410","Transportation Commission",{"$f":"'rent allocations'!D93*$C$1","v":0},{"$f":"'rent allocations'!E93*$C$1","v":0},{"$f":"'rent allocations'!F93*$C$1","v":0},{"$f":"'rent allocations'!G93*$C$1","v":0},{"$f":"'rent allocations'!H93*$C$1","v":0},{"$f":"'rent allocations'!I93*$C$1","v":0},{"$f":"'rent allocations'!J93*$C$1","v":0},{"$f":"'rent allocations'!K93*$C$1","v":0},{"$f":"'rent allocations'!L93*$C$1","v":0},{"$f":"'rent allocations'!M93*$C$1","v":0},{"$f":"'rent allocations'!N93*$C$1","v":0},{"$f":"'rent allocations'!O93*$C$1","v":0},{"$f":"'rent allocations'!P93*$C$1","v":0},{"$f":"'rent allocations'!Q93*$C$1","v":0},{"$f":"'rent allocations'!R93*$C$1","v":0},{"$f":"'rent allocations'!S93*$C$1","v":0},{"$f":"'rent allocations'!T93*$C$1","v":0},{"$f":"'rent allocations'!U93*$C$1","v":0},{"$f":"'rent allocations'!V93*$C$1","v":0},{"$f":"'rent allocations'!W93*$C$1","v":0},{"$f":"'rent allocations'!X93*$C$1","v":0},{"$f":"'rent allocations'!Y93*$C$1","v":0},{"$f":"'rent allocations'!Z93*$C$1","v":0},{"$f":"'rent allocations'!AA93*$C$1","v":0},{"$f":"'rent allocations'!AB93*$C$1","v":0},{"$f":"'rent allocations'!AC93*$C$1","v":0},{"$f":"'rent allocations'!AD93*$C$1","v":0},{"$f":"'rent allocations'!AE93*$C$1","v":0},{"$f":"'rent allocations'!AF93*$C$1","v":0},{"$f":"'rent allocations'!AG93*$C$1","v":0},{"$f":"'rent allocations'!AH93*$C$1","v":0},{"$f":"'rent allocations'!AI93*$C$1","v":0},{"$f":"'rent allocations'!AJ93*$C$1","v":0},{"$f":"'rent allocations'!AK93*$C$1","v":0},{"$f":"'rent allocations'!AL93*$C$1","v":0}]
["411 - Freight Mobility Strategic Investment Board","411","Freight Mobility Strategic Investment Board",{"$f":"'rent allocations'!D94*$C$1","v":0},{"$f":"'rent allocations'!E94*$C$1","v":0},{"$f":"'rent allocations'!F94*$C$1","v":0},{"$f":"'rent allocations'!G94*$C$1","v":0},{"$f":"'rent allocations'!H94*$C$1","v":0},{"$f":"'rent allocations'!I94*$C$1","v":0},{"$f":"'rent allocations'!J94*$C$1","v":0},{"$f":"'rent allocations'!K94*$C$1","v":0},{"$f":"'rent allocations'!L94*$C$1","v":0},{"$f":"'rent allocations'!M94*$C$1","v":0},{"$f":"'rent allocations'!N94*$C$1","v":0},{"$f":"'rent allocations'!O94*$C$1","v":0},{"$f":"'rent allocations'!P94*$C$1","v":0},{"$f":"'rent allocations'!Q94*$C$1","v":0},{"$f":"'rent allocations'!R94*$C$1","v":0},{"$f":"'rent allocations'!S94*$C$1","v":0},{"$f":"'rent allocations'!T94*$C$1","v":0},{"$f":"'rent allocations'!U94*$C$1","v":0},{"$f":"'rent allocations'!V94*$C$1","v":0},{"$f":"'rent allocations'!W94*$C$1","v":0},{"$f":"'rent allocations'!X94*$C$1","v":0},{"$f":"'rent allocations'!Y94*$C$1","v":0},{"$f":"'rent allocations'!Z94*$C$1","v":0},{"$f":"'rent allocations'!AA94*$C$1","v":0},{"$f":"'rent allocations'!AB94*$C$1","v":0},{"$f":"'rent allocations'!AC94*$C$1","v":0},{"$f":"'rent allocations'!AD94*$C$1","v":0},{"$f":"'rent allocations'!AE94*$C$1","v":0},{"$f":"'rent allocations'!AF94*$C$1","v":0},{"$f":"'rent allocations'!AG94*$C$1","v":0},{"$f":"'rent allocations'!AH94*$C$1","v":0},{"$f":"'rent allocations'!AI94*$C$1","v":0},{"$f":"'rent allocations'!AJ94*$C$1","v":0},{"$f":"'rent allocations'!AK94*$C$1","v":0},{"$f":"'rent allocations'!AL94*$C$1","v":0}]
["460 - Columbia River Gorge Commission","460","Columbia River Gorge Commission",{"$f":"'rent allocations'!D95*$C$1","v":0},{"$f":"'rent allocations'!E95*$C$1","v":0},{"$f":"'rent allocations'!F95*$C$1","v":0},{"$f":"'rent allocations'!G95*$C$1","v":0},{"$f":"'rent allocations'!H95*$C$1","v":0},{"$f":"'rent allocations'!I95*$C$1","v":0},{"$f":"'rent allocations'!J95*$C$1","v":0},{"$f":"'rent allocations'!K95*$C$1","v":0},{"$f":"'rent allocations'!L95*$C$1","v":0},{"$f":"'rent allocations'!M95*$C$1","v":0},{"$f":"'rent allocations'!N95*$C$1","v":0},{"$f":"'rent allocations'!O95*$C$1","v":0},{"$f":"'rent allocations'!P95*$C$1","v":0},{"$f":"'rent allocations'!Q95*$C$1","v":0},{"$f":"'rent allocations'!R95*$C$1","v":0},{"$f":"'rent allocations'!S95*$C$1","v":0},{"$f":"'rent allocations'!T95*$C$1","v":0},{"$f":"'rent allocations'!U95*$C$1","v":0},{"$f":"'rent allocations'!V95*$C$1","v":0},{"$f":"'rent allocations'!W95*$C$1","v":0},{"$f":"'rent allocations'!X95*$C$1","v":0},{"$f":"'rent allocations'!Y95*$C$1","v":0},{"$f":"'rent allocations'!Z95*$C$1","v":0},{"$f":"'rent allocations'!AA95*$C$1","v":0},{"$f":"'rent allocations'!AB95*$C$1","v":0},{"$f":"'rent allocations'!AC95*$C$1","v":0},{"$f":"'rent allocations'!AD95*$C$1","v":0},{"$f":"'rent allocations'!AE95*$C$1","v":0},{"$f":"'rent allocations'!AF95*$C$1","v":0},{"$f":"'rent allocations'!AG95*$C$1","v":0},{"$f":"'rent allocations'!AH95*$C$1","v":0},{"$f":"'rent allocations'!AI95*$C$1","v":0},{"$f":"'rent allocations'!AJ95*$C$1","v":0},{"$f":"'rent allocations'!AK95*$C$1","v":0},{"$f":"'rent allocations'!AL95*$C$1","v":0}]
["461 - Department of Ecology","461","Department of Ecology",{"$f":"'rent allocations'!D96*$C$1","v":0},{"$f":"'rent allocations'!E96*$C$1","v":0},{"$f":"'rent allocations'!F96*$C$1","v":0},{"$f":"'rent allocations'!G96*$C$1","v":0},{"$f":"'rent allocations'!H96*$C$1","v":0},{"$f":"'rent allocations'!I96*$C$1","v":0},{"$f":"'rent allocations'!J96*$C$1","v":0},{"$f":"'rent allocations'!K96*$C$1","v":0},{"$f":"'rent allocations'!L96*$C$1","v":0},{"$f":"'rent allocations'!M96*$C$1","v":0},{"$f":"'rent allocations'!N96*$C$1","v":0},{"$f":"'rent allocations'!O96*$C$1","v":0},{"$f":"'rent allocations'!P96*$C$1","v":0},{"$f":"'rent allocations'!Q96*$C$1","v":0},{"$f":"'rent allocations'!R96*$C$1","v":0},{"$f":"'rent allocations'!S96*$C$1","v":0},{"$f":"'rent allocations'!T96*$C$1","v":0},{"$f":"'rent allocations'!U96*$C$1","v":0},{"$f":"'rent allocations'!V96*$C$1","v":0},{"$f":"'rent allocations'!W96*$C$1","v":0},{"$f":"'rent allocations'!X96*$C$1","v":0},{"$f":"'rent allocations'!Y96*$C$1","v":0},{"$f":"'rent allocations'!Z96*$C$1","v":0},{"$f":"'rent allocations'!AA96*$C$1","v":0},{"$f":"'rent allocations'!AB96*$C$1","v":0},{"$f":"'rent allocations'!AC96*$C$1","v":0},{"$f":"'rent allocations'!AD96*$C$1","v":0},{"$f":"'rent allocations'!AE96*$C$1","v":0},{"$f":"'rent allocations'!AF96*$C$1","v":0},{"$f":"'rent allocations'!AG96*$C$1","v":0},{"$f":"'rent allocations'!AH96*$C$1","v":0},{"$f":"'rent allocations'!AI96*$C$1","v":0},{"$f":"'rent allocations'!AJ96*$C$1","v":0},{"$f":"'rent allocations'!AK96*$C$1","v":0},{"$f":"'rent allocations'!AL96*$C$1","v":0}]
["462 - Pollution Liability Insurance Program","462","Pollution Liability Insurance Program",{"$f":"'rent allocations'!D97*$C$1","v":0},{"$f":"'rent allocations'!E97*$C$1","v":0},{"$f":"'rent allocations'!F97*$C$1","v":0},{"$f":"'rent allocations'!G97*$C$1","v":0},{"$f":"'rent allocations'!H97*$C$1","v":0},{"$f":"'rent allocations'!I97*$C$1","v":0},{"$f":"'rent allocations'!J97*$C$1","v":0},{"$f":"'rent allocations'!K97*$C$1","v":0},{"$f":"'rent allocations'!L97*$C$1","v":0},{"$f":"'rent allocations'!M97*$C$1","v":0},{"$f":"'rent allocations'!N97*$C$1","v":0},{"$f":"'rent allocations'!O97*$C$1","v":0},{"$f":"'rent allocations'!P97*$C$1","v":0},{"$f":"'rent allocations'!Q97*$C$1","v":0},{"$f":"'rent allocations'!R97*$C$1","v":0},{"$f":"'rent allocations'!S97*$C$1","v":0},{"$f":"'rent allocations'!T97*$C$1","v":0},{"$f":"'rent allocations'!U97*$C$1","v":0},{"$f":"'rent allocations'!V97*$C$1","v":0},{"$f":"'rent allocations'!W97*$C$1","v":0},{"$f":"'rent allocations'!X97*$C$1","v":0},{"$f":"'rent allocations'!Y97*$C$1","v":0},{"$f":"'rent allocations'!Z97*$C$1","v":0},{"$f":"'rent allocations'!AA97*$C$1","v":0},{"$f":"'rent allocations'!AB97*$C$1","v":0},{"$f":"'rent allocations'!AC97*$C$1","v":0},{"$f":"'rent allocations'!AD97*$C$1","v":0},{"$f":"'rent allocations'!AE97*$C$1","v":0},{"$f":"'rent allocations'!AF97*$C$1","v":0},{"$f":"'rent allocations'!AG97*$C$1","v":0},{"$f":"'rent allocations'!AH97*$C$1","v":0},{"$f":"'rent allocations'!AI97*$C$1","v":0},{"$f":"'rent allocations'!AJ97*$C$1","v":0},{"$f":"'rent allocations'!AK97*$C$1","v":0},{"$f":"'rent allocations'!AL97*$C$1","v":0}]
["465 - State Parks and Recreation Commission","465","State Parks and Recreation Commission",{"$f":"'rent allocations'!D98*$C$1","v":0},{"$f":"'rent allocations'!E98*$C$1","v":0},{"$f":"'rent allocations'!F98*$C$1","v":0},{"$f":"'rent allocations'!G98*$C$1","v":0},{"$f":"'rent allocations'!H98*$C$1","v":0},{"$f":"'rent allocations'!I98*$C$1","v":0},{"$f":"'rent allocations'!J98*$C$1","v":0},{"$f":"'rent allocations'!K98*$C$1","v":0},{"$f":"'rent allocations'!L98*$C$1","v":0},{"$f":"'rent allocations'!M98*$C$1","v":0},{"$f":"'rent allocations'!N98*$C$1","v":0},{"$f":"'rent allocations'!O98*$C$1","v":0},{"$f":"'rent allocations'!P98*$C$1","v":0},{"$f":"'rent allocations'!Q98*$C$1","v":0},{"$f":"'rent allocations'!R98*$C$1","v":0},{"$f":"'rent allocations'!S98*$C$1","v":0},{"$f":"'rent allocations'!T98*$C$1","v":0},{"$f":"'rent allocations'!U98*$C$1","v":0},{"$f":"'rent allocations'!V98*$C$1","v":0},{"$f":"'rent allocations'!W98*$C$1","v":0},{"$f":"'rent allocations'!X98*$C$1","v":0},{"$f":"'rent allocations'!Y98*$C$1","v":0},{"$f":"'rent allocations'!Z98*$C$1","v":0},{"$f":"'rent allocations'!AA98*$C$1","v":0},{"$f":"'rent allocations'!AB98*$C$1","v":0},{"$f":"'rent allocations'!AC98*$C$1","v":0},{"$f":"'rent allocations'!AD98*$C$1","v":0},{"$f":"'rent allocations'!AE98*$C$1","v":0},{"$f":"'rent allocations'!AF98*$C$1","v":0},{"$f":"'rent allocations'!AG98*$C$1","v":0},{"$f":"'rent allocations'!AH98*$C$1","v":0},{"$f":"'rent allocations'!AI98*$C$1","v":0},{"$f":"'rent allocations'!AJ98*$C$1","v":0},{"$f":"'rent allocations'!AK98*$C$1","v":0},{"$f":"'rent allocations'!AL98*$C$1","v":0}]
["467 - Recreation and Conservation Funding Board","467","Recreation and Conservation Funding Board",{"$f":"'rent allocations'!D99*$C$1","v":17041.493164642132},{"$f":"'rent allocations'!E99*$C$1","v":0},{"$f":"'rent allocations'!F99*$C$1","v":0},{"$f":"'rent allocations'!G99*$C$1","v":0},{"$f":"'rent allocations'!H99*$C$1","v":0},{"$f":"'rent allocations'!I99*$C$1","v":0},{"$f":"'rent allocations'!J99*$C$1","v":0},{"$f":"'rent allocations'!K99*$C$1","v":0},{"$f":"'rent allocations'!L99*$C$1","v":17041.493164642132},{"$f":"'rent allocations'!M99*$C$1","v":0},{"$f":"'rent allocations'!N99*$C$1","v":0},{"$f":"'rent allocations'!O99*$C$1","v":0},{"$f":"'rent allocations'!P99*$C$1","v":0},{"$f":"'rent allocations'!Q99*$C$1","v":0},{"$f":"'rent allocations'!R99*$C$1","v":0},{"$f":"'rent allocations'!S99*$C$1","v":0},{"$f":"'rent allocations'!T99*$C$1","v":0},{"$f":"'rent allocations'!U99*$C$1","v":0},{"$f":"'rent allocations'!V99*$C$1","v":0},{"$f":"'rent allocations'!W99*$C$1","v":0},{"$f":"'rent allocations'!X99*$C$1","v":0},{"$f":"'rent allocations'!Y99*$C$1","v":0},{"$f":"'rent allocations'!Z99*$C$1","v":0},{"$f":"'rent allocations'!AA99*$C$1","v":0},{"$f":"'rent allocations'!AB99*$C$1","v":0},{"$f":"'rent allocations'!AC99*$C$1","v":0},{"$f":"'rent allocations'!AD99*$C$1","v":0},{"$f":"'rent allocations'!AE99*$C$1","v":0},{"$f":"'rent allocations'!AF99*$C$1","v":0},{"$f":"'rent allocations'!AG99*$C$1","v":0},{"$f":"'rent allocations'!AH99*$C$1","v":0},{"$f":"'rent allocations'!AI99*$C$1","v":0},{"$f":"'rent allocations'!AJ99*$C$1","v":0},{"$f":"'rent allocations'!AK99*$C$1","v":0},{"$f":"'rent allocations'!AL99*$C$1","v":0}]
["468 - Environmental and Land Use Hearings Office","468","Environmental and Land Use Hearings Office",{"$f":"'rent allocations'!D100*$C$1","v":0},{"$f":"'rent allocations'!E100*$C$1","v":0},{"$f":"'rent allocations'!F100*$C$1","v":0},{"$f":"'rent allocations'!G100*$C$1","v":0},{"$f":"'rent allocations'!H100*$C$1","v":0},{"$f":"'rent allocations'!I100*$C$1","v":0},{"$f":"'rent allocations'!J100*$C$1","v":0},{"$f":"'rent allocations'!K100*$C$1","v":0},{"$f":"'rent allocations'!L100*$C$1","v":0},{"$f":"'rent allocations'!M100*$C$1","v":0},{"$f":"'rent allocations'!N100*$C$1","v":0},{"$f":"'rent allocations'!O100*$C$1","v":0},{"$f":"'rent allocations'!P100*$C$1","v":0},{"$f":"'rent allocations'!Q100*$C$1","v":0},{"$f":"'rent allocations'!R100*$C$1","v":0},{"$f":"'rent allocations'!S100*$C$1","v":0},{"$f":"'rent allocations'!T100*$C$1","v":0},{"$f":"'rent allocations'!U100*$C$1","v":0},{"$f":"'rent allocations'!V100*$C$1","v":0},{"$f":"'rent allocations'!W100*$C$1","v":0},{"$f":"'rent allocations'!X100*$C$1","v":0},{"$f":"'rent allocations'!Y100*$C$1","v":0},{"$f":"'rent allocations'!Z100*$C$1","v":0},{"$f":"'rent allocations'!AA100*$C$1","v":0},{"$f":"'rent allocations'!AB100*$C$1","v":0},{"$f":"'rent allocations'!AC100*$C$1","v":0},{"$f":"'rent allocations'!AD100*$C$1","v":0},{"$f":"'rent allocations'!AE100*$C$1","v":0},{"$f":"'rent allocations'!AF100*$C$1","v":0},{"$f":"'rent allocations'!AG100*$C$1","v":0},{"$f":"'rent allocations'!AH100*$C$1","v":0},{"$f":"'rent allocations'!AI100*$C$1","v":0},{"$f":"'rent allocations'!AJ100*$C$1","v":0},{"$f":"'rent allocations'!AK100*$C$1","v":0},{"$f":"'rent allocations'!AL100*$C$1","v":0}]
["471 - State Conservation Commission","471","State Conservation Commission",{"$f":"'rent allocations'!D101*$C$1","v":0},{"$f":"'rent allocations'!E101*$C$1","v":0},{"$f":"'rent allocations'!F101*$C$1","v":0},{"$f":"'rent allocations'!G101*$C$1","v":0},{"$f":"'rent allocations'!H101*$C$1","v":0},{"$f":"'rent allocations'!I101*$C$1","v":0},{"$f":"'rent allocations'!J101*$C$1","v":0},{"$f":"'rent allocations'!K101*$C$1","v":0},{"$f":"'rent allocations'!L101*$C$1","v":0},{"$f":"'rent allocations'!M101*$C$1","v":0},{"$f":"'rent allocations'!N101*$C$1","v":0},{"$f":"'rent allocations'!O101*$C$1","v":0},{"$f":"'rent allocations'!P101*$C$1","v":0},{"$f":"'rent allocations'!Q101*$C$1","v":0},{"$f":"'rent allocations'!R101*$C$1","v":0},{"$f":"'rent allocations'!S101*$C$1","v":0},{"$f":"'rent allocations'!T101*$C$1","v":0},{"$f":"'rent allocations'!U101*$C$1","v":0},{"$f":"'rent allocations'!V101*$C$1","v":0},{"$f":"'rent allocations'!W101*$C$1","v":0},{"$f":"'rent allocations'!X101*$C$1","v":0},{"$f":"'rent allocations'!Y101*$C$1","v":0},{"$f":"'rent allocations'!Z101*$C$1","v":0},{"$f":"'rent allocations'!AA101*$C$1","v":0},{"$f":"'rent allocations'!AB101*$C$1","v":0},{"$f":"'rent allocations'!AC101*$C$1","v":0},{"$f":"'rent allocations'!AD101*$C$1","v":0},{"$f":"'rent allocations'!AE101*$C$1","v":0},{"$f":"'rent allocations'!AF101*$C$1","v":0},{"$f":"'rent allocations'!AG101*$C$1","v":0},{"$f":"'rent allocations'!AH101*$C$1","v":0},{"$f":"'rent allocations'!AI101*$C$1","v":0},{"$f":"'rent allocations'!AJ101*$C$1","v":0},{"$f":"'rent allocations'!AK101*$C$1","v":0},{"$f":"'rent allocations'!AL101*$C$1","v":0}]
["477 - Department of Fish and Wildlife","477","Department of Fish and Wildlife",{"$f":"'rent allocations'!D102*$C$1","v":202947.24344899936},{"$f":"'rent allocations'!E102*$C$1","v":0},{"$f":"'rent allocations'!F102*$C$1","v":0},{"$f":"'rent allocations'!G102*$C$1","v":0},{"$f":"'rent allocations'!H102*$C$1","v":0},{"$f":"'rent allocations'!I102*$C$1","v":0},{"$f":"'rent allocations'!J102*$C$1","v":0},{"$f":"'rent allocations'!K102*$C$1","v":0},{"$f":"'rent allocations'!L102*$C$1","v":202947.24344899936},{"$f":"'rent allocations'!M102*$C$1","v":0},{"$f":"'rent allocations'!N102*$C$1","v":0},{"$f":"'rent allocations'!O102*$C$1","v":0},{"$f":"'rent allocations'!P102*$C$1","v":0},{"$f":"'rent allocations'!Q102*$C$1","v":0},{"$f":"'rent allocations'!R102*$C$1","v":0},{"$f":"'rent allocations'!S102*$C$1","v":0},{"$f":"'rent allocations'!T102*$C$1","v":0},{"$f":"'rent allocations'!U102*$C$1","v":0},{"$f":"'rent allocations'!V102*$C$1","v":0},{"$f":"'rent allocations'!W102*$C$1","v":0},{"$f":"'rent allocations'!X102*$C$1","v":0},{"$f":"'rent allocations'!Y102*$C$1","v":0},{"$f":"'rent allocations'!Z102*$C$1","v":0},{"$f":"'rent allocations'!AA102*$C$1","v":0},{"$f":"'rent allocations'!AB102*$C$1","v":0},{"$f":"'rent allocations'!AC102*$C$1","v":0},{"$f":"'rent allocations'!AD102*$C$1","v":0},{"$f":"'rent allocations'!AE102*$C$1","v":0},{"$f":"'rent allocations'!AF102*$C$1","v":0},{"$f":"'rent allocations'!AG102*$C$1","v":0},{"$f":"'rent allocations'!AH102*$C$1","v":0},{"$f":"'rent allocations'!AI102*$C$1","v":0},{"$f":"'rent allocations'!AJ102*$C$1","v":0},{"$f":"'rent allocations'!AK102*$C$1","v":0},{"$f":"'rent allocations'!AL102*$C$1","v":0}]
["478 - Puget Sound Partnership","478","Puget Sound Partnership",{"$f":"'rent allocations'!D103*$C$1","v":5534.0082954073787},{"$f":"'rent allocations'!E103*$C$1","v":0},{"$f":"'rent allocations'!F103*$C$1","v":0},{"$f":"'rent allocations'!G103*$C$1","v":0},{"$f":"'rent allocations'!H103*$C$1","v":0},{"$f":"'rent allocations'!I103*$C$1","v":0},{"$f":"'rent allocations'!J103*$C$1","v":0},{"$f":"'rent allocations'!K103*$C$1","v":0},{"$f":"'rent allocations'!L103*$C$1","v":0},{"$f":"'rent allocations'!M103*$C$1","v":0},{"$f":"'rent allocations'!N103*$C$1","v":0},{"$f":"'rent allocations'!O103*$C$1","v":0},{"$f":"'rent allocations'!P103*$C$1","v":0},{"$f":"'rent allocations'!Q103*$C$1","v":0},{"$f":"'rent allocations'!R103*$C$1","v":0},{"$f":"'rent allocations'!S103*$C$1","v":0},{"$f":"'rent allocations'!T103*$C$1","v":0},{"$f":"'rent allocations'!U103*$C$1","v":0},{"$f":"'rent allocations'!V103*$C$1","v":0},{"$f":"'rent allocations'!W103*$C$1","v":0},{"$f":"'rent allocations'!X103*$C$1","v":5534.0082954073787},{"$f":"'rent allocations'!Y103*$C$1","v":0},{"$f":"'rent allocations'!Z103*$C$1","v":0},{"$f":"'rent allocations'!AA103*$C$1","v":0},{"$f":"'rent allocations'!AB103*$C$1","v":0},{"$f":"'rent allocations'!AC103*$C$1","v":0},{"$f":"'rent allocations'!AD103*$C$1","v":0},{"$f":"'rent allocations'!AE103*$C$1","v":0},{"$f":"'rent allocations'!AF103*$C$1","v":0},{"$f":"'rent allocations'!AG103*$C$1","v":0},{"$f":"'rent allocations'!AH103*$C$1","v":0},{"$f":"'rent allocations'!AI103*$C$1","v":0},{"$f":"'rent allocations'!AJ103*$C$1","v":0},{"$f":"'rent allocations'!AK103*$C$1","v":0},{"$f":"'rent allocations'!AL103*$C$1","v":0}]
["490 - Department of Natural Resources","490","Department of Natural Resources",{"$f":"'rent allocations'!D104*$C$1","v":219787.48193650597},{"$f":"'rent allocations'!E104*$C$1","v":0},{"$f":"'rent allocations'!F104*$C$1","v":0},{"$f":"'rent allocations'!G104*$C$1","v":0},{"$f":"'rent allocations'!H104*$C$1","v":0},{"$f":"'rent allocations'!I104*$C$1","v":0},{"$f":"'rent allocations'!J104*$C$1","v":0},{"$f":"'rent allocations'!K104*$C$1","v":0},{"$f":"'rent allocations'!L104*$C$1","v":219787.48193650597},{"$f":"'rent allocations'!M104*$C$1","v":0},{"$f":"'rent allocations'!N104*$C$1","v":0},{"$f":"'rent allocations'!O104*$C$1","v":0},{"$f":"'rent allocations'!P104*$C$1","v":0},{"$f":"'rent allocations'!Q104*$C$1","v":0},{"$f":"'rent allocations'!R104*$C$1","v":0},{"$f":"'rent allocations'!S104*$C$1","v":0},{"$f":"'rent allocations'!T104*$C$1","v":0},{"$f":"'rent allocations'!U104*$C$1","v":0},{"$f":"'rent allocations'!V104*$C$1","v":0},{"$f":"'rent allocations'!W104*$C$1","v":0},{"$f":"'rent allocations'!X104*$C$1","v":0},{"$f":"'rent allocations'!Y104*$C$1","v":0},{"$f":"'rent allocations'!Z104*$C$1","v":0},{"$f":"'rent allocations'!AA104*$C$1","v":0},{"$f":"'rent allocations'!AB104*$C$1","v":0},{"$f":"'rent allocations'!AC104*$C$1","v":0},{"$f":"'rent allocations'!AD104*$C$1","v":0},{"$f":"'rent allocations'!AE104*$C$1","v":0},{"$f":"'rent allocations'!AF104*$C$1","v":0},{"$f":"'rent allocations'!AG104*$C$1","v":0},{"$f":"'rent allocations'!AH104*$C$1","v":0},{"$f":"'rent allocations'!AI104*$C$1","v":0},{"$f":"'rent allocations'!AJ104*$C$1","v":0},{"$f":"'rent allocations'!AK104*$C$1","v":0},{"$f":"'rent allocations'!AL104*$C$1","v":0}]
["495 - Department of Agriculture","495","Department of Agriculture",{"$f":"'rent allocations'!D105*$C$1","v":69421.280608759247},{"$f":"'rent allocations'!E105*$C$1","v":0},{"$f":"'rent allocations'!F105*$C$1","v":0},{"$f":"'rent allocations'!G105*$C$1","v":0},{"$f":"'rent allocations'!H105*$C$1","v":0},{"$f":"'rent allocations'!I105*$C$1","v":0},{"$f":"'rent allocations'!J105*$C$1","v":0},{"$f":"'rent allocations'!K105*$C$1","v":0},{"$f":"'rent allocations'!L105*$C$1","v":69421.280608759247},{"$f":"'rent allocations'!M105*$C$1","v":0},{"$f":"'rent allocations'!N105*$C$1","v":0},{"$f":"'rent allocations'!O105*$C$1","v":0},{"$f":"'rent allocations'!P105*$C$1","v":0},{"$f":"'rent allocations'!Q105*$C$1","v":0},{"$f":"'rent allocations'!R105*$C$1","v":0},{"$f":"'rent allocations'!S105*$C$1","v":0},{"$f":"'rent allocations'!T105*$C$1","v":0},{"$f":"'rent allocations'!U105*$C$1","v":0},{"$f":"'rent allocations'!V105*$C$1","v":0},{"$f":"'rent allocations'!W105*$C$1","v":0},{"$f":"'rent allocations'!X105*$C$1","v":0},{"$f":"'rent allocations'!Y105*$C$1","v":0},{"$f":"'rent allocations'!Z105*$C$1","v":0},{"$f":"'rent allocations'!AA105*$C$1","v":0},{"$f":"'rent allocations'!AB105*$C$1","v":0},{"$f":"'rent allocations'!AC105*$C$1","v":0},{"$f":"'rent allocations'!AD105*$C$1","v":0},{"$f":"'rent allocations'!AE105*$C$1","v":0},{"$f":"'rent allocations'!AF105*$C$1","v":0},{"$f":"'rent allocations'!AG105*$C$1","v":0},{"$f":"'rent allocations'!AH105*$C$1","v":0},{"$f":"'rent allocations'!AI105*$C$1","v":0},{"$f":"'rent allocations'!AJ105*$C$1","v":0},{"$f":"'rent allocations'!AK105*$C$1","v":0},{"$f":"'rent allocations'!AL105*$C$1","v":0}]
["540 - Employment Security Department","540","Employment Security Department",{"$f":"'rent allocations'!D106*$C$1","v":183388.64119110801},{"$f":"'rent allocations'!E106*$C$1","v":0},{"$f":"'rent allocations'!F106*$C$1","v":0},{"$f":"'rent allocations'!G106*$C$1","v":0},{"$f":"'rent allocations'!H106*$C$1","v":0},{"$f":"'rent allocations'!I106*$C$1","v":0},{"$f":"'rent allocations'!J106*$C$1","v":0},{"$f":"'rent allocations'!K106*$C$1","v":0},{"$f":"'rent allocations'!L106*$C$1","v":0},{"$f":"'rent allocations'!M106*$C$1","v":183388.64119110801},{"$f":"'rent allocations'!N106*$C$1","v":0},{"$f":"'rent allocations'!O106*$C$1","v":0},{"$f":"'rent allocations'!P106*$C$1","v":0},{"$f":"'rent allocations'!Q106*$C$1","v":0},{"$f":"'rent allocations'!R106*$C$1","v":0},{"$f":"'rent allocations'!S106*$C$1","v":0},{"$f":"'rent allocations'!T106*$C$1","v":0},{"$f":"'rent allocations'!U106*$C$1","v":0},{"$f":"'rent allocations'!V106*$C$1","v":0},{"$f":"'rent allocations'!W106*$C$1","v":0},{"$f":"'rent allocations'!X106*$C$1","v":0},{"$f":"'rent allocations'!Y106*$C$1","v":0},{"$f":"'rent allocations'!Z106*$C$1","v":0},{"$f":"'rent allocations'!AA106*$C$1","v":0},{"$f":"'rent allocations'!AB106*$C$1","v":0},{"$f":"'rent allocations'!AC106*$C$1","v":0},{"$f":"'rent allocations'!AD106*$C$1","v":0},{"$f":"'rent allocations'!AE106*$C$1","v":0},{"$f":"'rent allocations'!AF106*$C$1","v":0},{"$f":"'rent allocations'!AG106*$C$1","v":0},{"$f":"'rent allocations'!AH106*$C$1","v":0},{"$f":"'rent allocations'!AI106*$C$1","v":0},{"$f":"'rent allocations'!AJ106*$C$1","v":0},{"$f":"'rent allocations'!AK106*$C$1","v":0},{"$f":"'rent allocations'!AL106*$C$1","v":0}]
["699 - Community Colleges","699","Community Colleges",{"$f":"'rent allocations'!D107*$C$1","v":0},{"$f":"'rent allocations'!E107*$C$1","v":0},{"$f":"'rent allocations'!F107*$C$1","v":0},{"$f":"'rent allocations'!G107*$C$1","v":0},{"$f":"'rent allocations'!H107*$C$1","v":0},{"$f":"'rent allocations'!I107*$C$1","v":0},{"$f":"'rent allocations'!J107*$C$1","v":0},{"$f":"'rent allocations'!K107*$C$1","v":0},{"$f":"'rent allocations'!L107*$C$1","v":0},{"$f":"'rent allocations'!M107*$C$1","v":0},{"$f":"'rent allocations'!N107*$C$1","v":0},{"$f":"'rent allocations'!O107*$C$1","v":0},{"$f":"'rent allocations'!P107*$C$1","v":0},{"$f":"'rent allocations'!Q107*$C$1","v":0},{"$f":"'rent allocations'!R107*$C$1","v":0},{"$f":"'rent allocations'!S107*$C$1","v":0},{"$f":"'rent allocations'!T107*$C$1","v":0},{"$f":"'rent allocations'!U107*$C$1","v":0},{"$f":"'rent allocations'!V107*$C$1","v":0},{"$f":"'rent allocations'!W107*$C$1","v":0},{"$f":"'rent allocations'!X107*$C$1","v":0},{"$f":"'rent allocations'!Y107*$C$1","v":0},{"$f":"'rent allocations'!Z107*$C$1","v":0},{"$f":"'rent allocations'!AA107*$C$1","v":0},{"$f":"'rent allocations'!AB107*$C$1","v":0},{"$f":"'rent allocations'!AC107*$C$1","v":0},{"$f":"'rent allocations'!AD107*$C$1","v":0},{"$f":"'rent allocations'!AE107*$C$1","v":0},{"$f":"'rent allocations'!AF107*$C$1","v":0},{"$f":"'rent allocations'!AG107*$C$1","v":0},{"$f":"'rent allocations'!AH107*$C$1","v":0},{"$f":"'rent allocations'!AI107*$C$1","v":0},{"$f":"'rent allocations'!AJ107*$C$1","v":0},{"$f":"'rent allocations'!AK107*$C$1","v":0},{"$f":"'rent allocations'!AL107*$C$1","v":0}]
["TOTAL  - All Agencies",null,"Building Total",{"$f":"'rent allocations'!D108*$C$1","v":4796002},{"$f":"'rent allocations'!E108*$C$1","v":198947.16494343529},{"$f":"'rent allocations'!F108*$C$1","v":127541.9464518707},{"$f":"'rent allocations'!G108*$C$1","v":477693.6690119612},{"$f":"'rent allocations'!H108*$C$1","v":104272.38674892328},{"$f":"'rent allocations'!I108*$C$1","v":343200.33838019386},{"$f":"'rent allocations'!J108*$C$1","v":482009.92058774794},{"$f":"'rent allocations'!K108*$C$1","v":81247.562683789729},{"$f":"'rent allocations'!L108*$C$1","v":513555.6040378848},{"$f":"'rent allocations'!M108*$C$1","v":183388.64119110801},{"$f":"'rent allocations'!N108*$C$1","v":307296.04301552381},{"$f":"'rent allocations'!O108*$C$1","v":138746.12736609022},{"$f":"'rent allocations'!P108*$C$1","v":186701.22739146306},{"$f":"'rent allocations'!Q108*$C$1","v":140632.19608069939},{"$f":"'rent allocations'!R108*$C$1","v":73850.840559912322},{"$f":"'rent allocations'!S108*$C$1","v":93920.947782342788},{"$f":"'rent allocations'!T108*$C$1","v":20426.477080956352},{"$f":"'rent allocations'!U108*$C$1","v":13405.454769359209},{"$f":"'rent allocations'!V108*$C$1","v":0},{"$f":"'rent allocations'!W108*$C$1","v":0},{"$f":"'rent allocations'!X108*$C$1","v":164915.04894215445},{"$f":"'rent allocations'!Y108*$C$1","v":53387.992882451254},{"$f":"'rent allocations'!Z108*$C$1","v":0},{"$f":"'rent allocations'!AA108*$C$1","v":4438.5859416546145},{"$f":"'rent allocations'!AB108*$C$1","v":0},{"$f":"'rent allocations'!AC108*$C$1","v":0},{"$f":"'rent allocations'!AD108*$C$1","v":0},{"$f":"'rent allocations'!AE108*$C$1","v":0},{"$f":"'rent allocations'!AF108*$C$1","v":297558.51761143032},{"$f":"'rent allocations'!AG108*$C$1","v":201837.37870357005},{"$f":"'rent allocations'!AH108*$C$1","v":314661.22894408437},{"$f":"'rent allocations'!AI108*$C$1","v":17680.450770790136},{"$f":"'rent allocations'!AJ108*$C$1","v":254686.24812060254},{"$f":"'rent allocations'!AK108*$C$1","v":0},{"$f":"'rent allocations'!AL108*$C$1","v":0}]
[]
[null,null,"Building Total RSF",null,77281,78594,142254,23890,177668,250481,47900,354696,92619,184427,55108,97800,53609,22032,95386,47200,14308,10125,0,41341,17000,0,1539,7138,885,2492,872,200592,60581,99000,20708,138355,17600,0]
[null,null,"vacant space",0,0,0,0,0,0,0,0,0,0,0,0,0,0,0,0,0,0,0,0,0,0,0,0,14276,406,872,0,0,0,0,35004,0,0]
[null,null,null,null,{"$f":"E108/E110/2","v":1.2871673823024758},{"$f":"F108/F110/2","v":0.81139747596426381},1.6790166498374781,2.1823437996844555,0.96584736244060232,0.96216862873381204,0.84809564388089487,0.72393768753789833,0.99001630978043387,0.83311023607043388,1.2588564942121854,0.95450525251259233,1.3116472614738139,1.6759903903393318,0.49232040227257035,0.21638217246775798,0.46846011914171121,0,{"$error":"#DIV/0!"},1.9945701475793334,1.570235084777978,{"$error":"#DIV/0!"},1.442035718536262,0,0,0,0,0.74170085948450171,1.6658472021225306,1.5891981259802241,0.42689904314250859,0.92040854367605995,0]